{"text_format":"1","workbook":"xlsx","n_sheets":16,"sheets":["Images_Map","Introduction","Dashboard","Contest Rules","2012","2011","2010","Unemployement","Info Sheet","ParetoPivot","Per Income capita","In_out migration","Total","Per_capita_income","Cost_of_living_index","Notes"],"not_rendered":{"charts":3,"images":6,"macros":1,"external_links":0,"defined_names":7,"comments":0,"pivot_tables":2},"unopened":[],"bounds":{"document_bytes":16777216,"sheet_cells":100000,"rows_first":2000,"rows_last":500,"rows_between":2000,"halvings":0,"cell_chars":16384,"cell_head_chars":4096},"cells_cut":0,"cells_raw":0,"read":"whole","date_system":"1900"}

{"sheet":"Images_Map","index":0,"n_rows":55,"n_cols":28,"rows_kept":55,"cut":false,"hidden":true,"merged":[[3,10,3,15],[24,15,24,21]]}
[null,null,"OutMigrants",null,null,null,"InMigrants"]
[1,"CA",1705220,"A",1,"FL",1574851,"A"]
[2,"FL",1315448,"A",2,"TX",1522876,"A"]
[3,"TX",1220448,"A",3,"CA",1411708,"A"]
[4,"NY",1156500,"A",4,"NY",846332,"B"]
[5,"IL",827827,"B",5,"NC",806515,"B"]
[6,"GA",746832,"B",6,"GA",802377,"B"]
[7,"VA",701922,"B",7,"VA",770334,"B"]
[8,"NC",671819,"B",8,"PA",702216,"B"]
[9,"PA",667900,"B",9,"AZ",681320,"B"]
[10,"NJ",634859,"B",10,"IL",635409,"B"]
[11,"AZ",595997,"B",11,"WA",617893,"B"]
[12,"OH",593661,"B",12,"CO",596044,"B"]
[13,"MI",541057,"B",13,"OH",565952,"B",null,null,"Key",null,null,null,null,null,null,null,"Key"]
[14,"WA",537309,"B",14,"TN",509645,"B",null,null,"Over 1Mill.",null,null,null,null,null,null,null,"Under 100,000",null,null,null,null,null,null,null,null,"Key"]
[15,"MD",482808,"C",15,"MD",475131,"C",null,null,"500,000 - 1Mill.",null,null,null,null,null,null,null,"100,000 - 300,000",null,null,null,null,null,null,null,null,"Under 100,000"]
[16,"CO",463161,"C",16,"SC",470295,"C",null,null,"300,000 - 500,000",null,null,null,null,null,null,null,"300,000 - 500,000",null,null,null,null,null,null,null,null,"100,000 - 300,000"]
[17,"TN",461490,"C",17,"MO",459997,"C",null,null,"100,000 - 300,000",null,null,null,null,null,null,null,"500,000 - 1M",null,null,null,null,null,null,null,null,"300,000 - 500,000"]
[18,"MA",453851,"C",18,"MA",434123,"C",null,null,"Under 100,000",null,null,null,null,null,null,null,"Over 1Mill.",null,null,null,null,null,null,null,null,"500,000 - 1M"]
[19,"MO",429535,"C",19,"NJ",407404,"C",null,null,null,null,null,null,null,null,null,null,null,null,null,null,null,null,null,null,null,"Over 1Mill."]
[20,"IN",419009,"C",20,"MI",392410,"C"]
[21,"SC",366529,"C",21,"IN",390204,"C"]
[22,"NV",324234,"C",22,"OR",364508,"C"]
[23,"MN",324014,"C",23,"KY",341802,"C",null,null,null,null,null,null,null,null,null,null,null,null,null,null,null,null,null,"InMigrants"]
[24,"OR",318162,"C",24,"NV",338199,"C"]
[25,"WI",316137,"C",25,"AL",332465,"C"]
[26,"AL",315909,"C",26,"OK",324675,"C"]
[27,"KY",295550,"D",27,"WI",303920,"C"]
[28,"KS",278288,"D",28,"MN",292170,"D"]
[29,"OK",274276,"D",29,"LA",289692,"D"]
[30,"LA",270848,"D",30,"KS",267908,"D"]
[31,"CT",270796,"D",31,"UT",251489,"D"]
[32,"AK",268201,"D",32,"CT",236506,"D"]
[33,"UT",231799,"D",33,"AR",226536,"D",null,null,null,null,null,null,null,"Key"]
[34,"IA",214763,"D",34,"IA",219714,"D",null,null,null,null,null,null,null,"Under 100,000"]
[35,"PR",210603,"D",35,"MS",215545,"D",null,null,null,null,null,null,null,"100,000 - 300,000"]
[36,"AR",206550,"D",36,"NM",191588,"D",null,null,null,null,null,null,null,"300,000 - 500,000"]
[37,"MS",204104,"D",37,"ID",175875,"D",null,null,null,null,null,null,null,"500,000 - 1M"]
[38,"NM",176233,"D",38,"HI",166842,"D",null,null,null,null,null,null,null,"Over 1Mill."]
[39,"HI",172777,"D",39,"DC",153140,"D"]
[40,"ID",166157,"D",40,"NE",146626,"D"]
[41,"DC",165509,"D",41,"WV",137743,"D"]
[42,"NE",145156,"D",42,"NH",126982,"D"]
[43,"WV",142893,"D",43,"MT",107237,"D"]
[44,"NH",120372,"D",44,"AK",105913,"D"]
[45,"ME",104512,"D",45,"DE",101446,"D"]
[46,"MT",100906,"D",46,"ND",100899,"D"]
[47,"WY",92405,"E",47,"RI",92959,"E"]
[48,"RI",88309,"E",48,"WY",89862,"E"]
[49,"DE",81848,"E",49,"ME",89406,"E"]
[50,"SD",79945,"E",50,"SD",79468,"E"]
[51,"ND",74972,"E",51,"PR",74425,"E"]
[52,"VT",56608,"E",52,"VT",67442,"E"]
[]
[1]

{"sheet":"Introduction","index":1,"n_rows":32,"n_cols":4,"rows_kept":32,"cut":false,"hidden":false,"merged":[]}
[]
["Dear User,"]
[]
["The following dashboard contains the state to state population migration data in the United States between 2010 - 2012"]
["The top portion shows the summarized information for the whole country. The heat map on the top right shows the inmigration or outmigration. "]
["Please toggle the dropdown to get the map of your choice (inmigration or outmigration)"]
[]
["The bottom portion of the sheet allows you to drill down on a particular state."]
["Choose the state of your choice and it shows the trends and movement patterns of people of that particular state."]
["You can also toggle the radio buttons to get a pareto chart showing the contribution of each state to the selected state's migration"]
[]
["The dashboard was constructed using MS Excel 2010 with macros enabled."]
["The data used for this dashboard comes from the following sources"]
[]
["Base - Migration Data"]
[null,"As given by Chandoo.org for the competition"]
["Unemployment Data"]
[null,"http://www.dlt.ri.gov/lmi/laus/us/annavg.htm"]
["Per Capital Income Data"]
[null,"http://bber.unm.edu/econ/us-pci.htm"]
["Cost of Living Index Data (Not Used in Dashboard)"]
[null,"https://www.census.gov/compendia/statab/cats/prices.html"]
["Fun Facts Data"]
[null,"http://www.50states.com/facts/#.U1PV4_mSwlL"]
[null,"http://www.factmonster.com/ipka/A0770175.html"]
[null,"Wikipedia"]
[]
["Please note, the unemployment and Per Capita Income data for Puerto Rico are fictional numbers due to unavailability of Data"]
[]
["Submitted by"]
["Karthik Rajkumar",null,"karthikayan70@gmail.com"]
["Thiru Selvan Sathiamoorthy",null,null,"thiruselvancbe@gmail.com"]

{"sheet":"Dashboard","index":2,"n_rows":181,"n_cols":32,"rows_kept":181,"cut":false,"hidden":false,"merged":[[8,8,8,9],[4,8,4,9],[5,8,5,9],[34,12,35,15],[36,12,37,14],[38,12,39,15],[41,12,42,15],[43,2,43,18],[44,3,44,18],[2,5,2,6],[1,2,1,18],[25,31,25,33],[25,2,25,4],[28,8,28,9],[29,8,29,9],[30,8,30,9],[31,8,31,9],[32,8,32,9],[27,8,27,9],[3,8,3,9],[6,8,6,9],[7,8,7,9]]}
["State Migration Data"]
[null,null,"State to State Migration Data (2010 - 2012)",null,null,null,null,null,null,null,null,null,null,null,null,null,null,null,null,null,null,null,1]
[]
[null,null,"Quick Facts",null,2010,2011,2012,"Average","Trend"]
[null,null,"Total Population",null,{"$f":"'In_out migration'!R55","v":309305100},{"$f":"'In_out migration'!Q55","v":311569514},{"$f":"'In_out migration'!P55","v":313841157},{"$f":"AVERAGE(E5:G5)","v":311571923.66666669}]
[null,null,"% Migrated",null,{"$f":"E7/E5","v":2.1801221512351397E-2},{"$f":"F7/F5","v":2.242650736361838E-2},2.2528418731262833E-2,2.2253813025692491E-2]
[null,null,"Number of Migrations",null,{"$f":"'2010'!J11","v":6743229},{"$f":"'2011'!K12","v":6987416},{"$f":"'2012'!J11","v":7070345},{"$f":"AVERAGE(E7:G7)","v":6933663.333333333}]
[null,null,"Unemployment Index",null,{"$f":"Unemployement!G56","v":8.7750000000000004},{"$f":"Unemployement!E56","v":8.1596153846153836},{"$f":"Unemployement!C56","v":7.365384615384615},{"$f":"AVERAGE(E8:G8)","v":8.1}]
[null,null,"Per Capita Income",null,{"$f":"Per_capita_income!G55","v":39529.519230769234},{"$f":"Per_capita_income!E55","v":41414.538461538461},{"$f":"Per_capita_income!C55","v":42482.826923076922},41142.294871794868]
[]
[]
[]
[]
[]
[]
[]
[]
[]
[]
[]
[]
[]
[]
[]
[]
[null,null,"Select a State",null,null,null,null,null,null,null,null,"Key Statistics compared to Selected State",null,null,null,null,null,null,null,null,null,null,null,null,null,null,null,"Selected State",null,null,null,{"$f":"VLOOKUP(G130,A130:C181,2,0)","v":"ALASKA"}]
[]
[null,null,"Quick Facts",null,2010,2011,2012,"Average","Trend",null,null,null,null,null,null,"State","Unemployment","Per Capita Income",null,null,null,null,null,"Unemployment","Per capita Income"]
[null,null,"InMigration (people)",null,{"$f":"VLOOKUP(H130,'In_out migration'!A:G,2,0)","v":36326},{"$f":"VLOOKUP(H130,'In_out migration'!A:G,4,0)","v":35084},{"$f":"VLOOKUP(H130,'In_out migration'!A:G,6,0)","v":33415},{"$f":"AVERAGE(E29:G29)","v":34941.666666666664},null,null,null,"State Most Migrated From",null,null,null,{"$f":"VLOOKUP(Total!BF1,Dashboard!$A$130:$C$181,2,0)","v":"WASHINGTON"},{"$f":"X29-$H$32","v":1.5666666666666647},{"$f":"H33-Y29","v":1625.6666666666715},null,null,null,null,null,{"$f":"VLOOKUP(P29,Unemployement!A:I,9,0)","v":9.0666666666666647},{"$f":"VLOOKUP(P29,'Per Income capita'!A:H,8,0)","v":43771.666666666664}]
[null,null,"OutMigration (people)",null,{"$f":"VLOOKUP(H130,'In_out migration'!A:G,3,0)","v":94692},{"$f":"VLOOKUP(H130,'In_out migration'!A:G,5,0)","v":88850},{"$f":"VLOOKUP(H130,'In_out migration'!A:G,7,0)","v":84068},{"$f":"AVERAGE(E30:G30)","v":89203.333333333328},null,null,null,"State Most Migrated To",null,null,null,{"$f":"VLOOKUP(Total!BE1,Dashboard!$A$130:$C$181,2,0)","v":"TEXAS"},{"$f":"H32-X30","v":-0.13333333333333286},{"$f":"Y30-H33","v":-5450.6666666666715},null,null,null,null,null,{"$f":"VLOOKUP(P30,Unemployement!A:I,9,0)","v":7.6333333333333329},{"$f":"VLOOKUP(P30,'Per Income capita'!A:H,8,0)","v":39946.666666666664}]
[null,null,"Net Migration",null,{"$f":"E29-E30","v":-58366},{"$f":"F29-F30","v":-53766},-50653,{"$f":"AVERAGE(E31:G31)","v":-54261.666666666664}]
[null,null,"Unemployment Index",null,{"$f":"VLOOKUP(H130,Unemployement!A:H,7,0)","v":8},{"$f":"VLOOKUP(H130,Unemployement!A:H,5,0)","v":7.6},{"$f":"VLOOKUP(H130,Unemployement!A:H,3,0)","v":6.9},{"$f":"(E32+F32+G32)/3","v":7.5},null,null,null,null,null,null,null,null,"T"]
[null,null,"Per Capita Income",null,{"$f":"VLOOKUP(H130,'Per Income capita'!A:H,6,0)","v":43749},{"$f":"VLOOKUP(H130,'Per Income capita'!A:H,4,0)","v":45665},{"$f":"VLOOKUP(H130,'Per Income capita'!A:H,2,0)","v":46778},{"$f":"(E33+F33+G33)/3","v":45397.333333333336}]
[null,null,"Pareto Chart Showing % of In/OutMigrants by State"]
[null,null,null,null,null,null,null,null,null,null,null,null,null,null,null,null,null,null,"Selected State"]
[]
[null,null,null,null,null,null,null,null,null,null,null,null,null,null,null,null,null,null,"Most Migrated From"]
[]
[null,null,null,null,null,null,null,null,null,null,null,null,null,null,null,null,null,null,"Most Migrated To"]
[]
[null,null,null,null,null,null,null,null,null,null,null,null,null,null,null,null,null,null,"Most Migrated To & From"]
[]
[]
[null,null,{"$f":"VLOOKUP(Dashboard!H130,Notes!A:B,2,0)","v":"Alaska has most inmigrants from the west coast states of Washington, California,Oregon & Texas while majority of the outmigrants of Alaska move to much warmer states like California, Texas & Florida"}]
[null,null,"Fun Fact:",{"$f":"VLOOKUP(H130,Notes!C:D,2,0)","v":"The longest coastline in the U.S., 6,640 miles, greater than that of all other states combined"}]
[]
[]
[]
[null,null,"Roger A. Pielke Jr.1; Joel Gratz2; Christopher W. Landsea3; Douglas Collins4; Mark A. Saunders5; and Rade Musulin6"]
[]
[]
[]
[]
[]
[]
[]
[]
[]
[]
[]
[]
[]
[]
[]
[]
[]
[]
[]
[]
[]
[]
[]
[]
[]
[]
[]
[]
[]
[]
[null,null,null,1]
[]
[]
[]
[]
[]
[]
[]
[]
[]
[]
[]
[]
[]
[]
[]
[]
[]
[]
[]
[]
[]
[]
[]
[]
[]
[]
[]
[]
[]
[]
[]
[]
[]
[]
[]
[]
[]
[]
[]
[]
[]
[]
[]
[]
[]
[null,null,"InMigrants Heat Map",1]
[null,null,"OutMigrants Heat Map",null,null,10]
[]
[null,null,null,null,null,2]
["AK","ALASKA",null,null,null,1,{"$f":"OFFSET(A130,F130-1,0)","v":"AK"},{"$f":"VLOOKUP(G130,$A$130:$B$181,2,0)","v":"ALASKA"},null,"ALASKA",null,null,null,null,null,null,"NORTH CAROLINA"]
["AL","ALABAMA",null,null,null,35]
["AR","ARKANSAS"]
["AZ","ARIZONA",null,null,null,10]
["CA","CALIFORNIA"]
["CO","COLORADO"]
["CT","CONNECTICUT"]
["DC","DISTRICT OF COLUMBIA"]
["DE","DELAWARE"]
["FL","FLORIDA"]
["GA","GEORGIA"]
["HI","HAWAII"]
["IA","IOWA"]
["ID","IDAHO"]
["IL","ILLINOIS"]
["IN","INDIANA"]
["KS","KANSAS"]
["KY","KENTUCKY"]
["LA","LOUISIANA"]
["MA","MASSACHUSETTS"]
["MD","MARYLAND"]
["ME","MAINE"]
["MI","MICHIGAN"]
["MN","MINNESOTA"]
["MO","MISSOURI"]
["MS","MISSISSIPPI",null,null,null,2]
["MT","MONTANA"]
["NC","NORTH CAROLINA"]
["ND","NORTH DAKOTA"]
["NE","NEBRASKA"]
["NH","NEW HAMPSHIRE"]
["NJ","NEW JERSEY"]
["NM","NEW MEXICO"]
["NV","NEVADA"]
["NY","NEW YORK"]
["OH","OHIO"]
["OK","OKLAHOMA"]
["OR","OREGON"]
["PA","PENNSYLVANIA"]
["PR","PUERTO RICO"]
["RI","RHODE ISLAND"]
["SC","SOUTH CAROLINA"]
["SD","SOUTH DAKOTA"]
["TN","TENNESSEE"]
["TX","TEXAS"]
["UT","UTAH"]
["VA","VIRGINIA"]
["VT","VERMONT"]
["WA","WASHINGTON"]
["WI","WISCONSIN"]
["WV","WEST VIRGINIA"]
["WY","WYOMING"]

{"sheet":"Contest Rules","index":3,"n_rows":49,"n_cols":7,"rows_kept":49,"cut":false,"hidden":false,"merged":[[46,2,46,13],[18,6,18,9],[48,2,48,7]]}
[null,"Excel Datavis Contest - Chandoo.org - 2014"]
[]
[null,"Contest Rules"]
[]
[null,null,"Make a dashboard or set of charts."]
[null,null,"Help us understand state to state migration trends and interesting facts"]
[null,null,"Use any standard Excel feature (no add-ins, no Power Pivot etc.)"]
[null,null,"You can use Macros & VBA to add interaction to charts. (Code must be commented clearly and sources should be credited)"]
[null,null,"You can add additional demographic or economic data as long as,"]
[null,null,"You use publicly available data sources"]
[null,null,"You provide links to the data sources and credit them"]
[null,null,"Examples: Percaptia income, weather or living conditions"]
[null,null,"You may ignore the Margin of Error data (provided in extreme right in the data tables). "]
[null,null,"You may submit more than one entry. For voting & selecting winners only 1 entry from each individual is considered."]
[]
[null,"Important Dates"]
[]
[null,null,"Contest start date",null,"9th of April, 2014"]
[null,null,"Last date for submission",null,"20th of April, 2014",null,{"$f":"DATE(2014,4,20)-TODAY()","v":0}]
[]
[null,"How to submit your entry?"]
[]
[null,null,"Email"]
[null,null,"Send to: chandoo.d@gmail.com"]
[null,null,"Subject: Datavis contest 2014"]
[null,null,"Include: Your workbook, Your name, Email Address & Version of Excel used to make it"]
[]
[null,null,"Facebook"]
[null,null,"Join chandoo.org fan page (Click here)"]
[null,null,"Send your entry as a message (with workbook as attachment)"]
[null,null,"Include: Your workbook, Your name, Email Address & Version of Excel used to make it"]
[]
[null,"What do you get?"]
[null,null,"First prize"]
[null,null,"iPad (Latest version) 16 GB"]
[]
[null,null,"Second prize"]
[null,null,"iPad Mini (latest version) 16 GB"]
[]
[null,null,"Third prize (2 nos)"]
[null,null,"Samsung Galaxy Tab 3"]
[]
[null,"How winners are selected"]
[null,null,"Winners will be selected by voting and a panel of judges (to be revealed). If there is a tie, Judges' decision will be given more weightage."]
[]
[null,"Fine Print"]
[null,null,"Prizes will be delivered thru Amazon.com. If you are located in a country where shipping Amazon goods is not possible (or prohibitively expensive) you will be offered a choice of either getting money payment or purchase from a local website.\n\nYou also agree that Chandoo.org reserves the right to showcase your files, share them, use them in courses & training programs or any other publication as deemed fit. You agree to share the copy-right of your workbook with Chandoo.org indefinetly for no compensation.\n\nChandoo.org may get in touch with you if we need any clarifications or we are unable to use your file.\n\nChandoo.org reserves the right to disqualify a contest entry based on sole discretion."]
[null,null,"For updates on rules, dates & policies, please click below link:"]
[null,null,"http://chandoo.org/wp/2014/04/09/visualize-state-migration-contest/"]

{"sheet":"2012","index":4,"n_rows":121,"n_cols":115,"rows_kept":121,"cut":false,"hidden":true,"merged":[[6,1,8,1],[6,2,7,3],[6,4,7,5],[6,6,7,7]]}
[]
[null,"Table 1.  State-to-State Migration Flows*: 2012"]
[null,"Dataset: 2012 American Community Survey 1-Year Estimates"]
[null,"Universe: Population 1 year and over",null,null,null,null,null,null,null,null,206691,{"$f":"K4+SUM(K12:K63)","v":315909}]
[null,"Source: http://www.census.gov/hhes/migration/files/acs/st-to-st/State_to_State_Migrations_Table_2012.xls"]
[null,null,null,null,null,null,null,null,null,"ESTIMATES",null,null,null,null,null,null,null,null,null,null,null,null,null,null,null,null,null,null,null,null,null,null,null,null,null,null,null,null,null,null,null,null,null,null,null,null,null,null,null,null,null,null,null,null,null,null,null,null,null,null,null,null,"Margin of Error"]
[null,"Current residence in --","Population 1 year and over",null,"Same residence 1 year ago",null,"Different residence, same state 1 year ago",null,null,1,2,3,4,5,6,7,8,9,10,11,12,13,14,15,16,17,18,19,20,21,22,23,24,25,26,27,28,29,30,31,32,33,34,35,36,37,38,39,40,41,42,43,44,45,46,47,48,49,50,51,52,53,1,2,3,4,5,6,7,8,9,10,11,12,13,14,15,16,17,18,19,20,21,22,23,24,25,26,27,28,29,30,31,32,33,34,35,36,37,38,39,40,41,42,43,44,45,46,47,48,49,50,51,52,53]
[null,null,null,null,null,null,null,null,null,"State of Residence Last year (Estimate)",null,null,null,null,null,null,null,null,null,null,null,null,null,null,null,null,null,null,null,null,null,null,null,null,null,null,null,null,null,null,null,null,null,null,null,null,null,null,null,null,null,null,null,null,null,null,null,null,null,null,null,null,"State of Residence Last year (Margin of Error)"]
[null,null,"Estimate","MOE","Estimate","MOE","Estimate","MOE",null,"TOTAL","Alabama","Alaska","Arizona","Arkansas","California","Colorado","Connecticut","Delaware","District of Columbia ","Florida","Georgia","Hawaii","Idaho","Illinois","Indiana","Iowa","Kansas","Kentucky","Louisiana","Maine","Maryland","Massachusetts","Michigan","Minnesota","Mississippi","Missouri","Montana","Nebraska","Nevada","New Hampshire","New Jersey","New Mexico","New York","North Carolina","North Dakota","Ohio","Oklahoma","Oregon","Pennsylvania","Rhode Island","South Carolina","South Dakota","Tennessee","Texas","Utah","Vermont","Virginia","Washington","West Virginia","Wisconsin","Wyoming","Puerto Rico","TOTAL","Alabama","Alaska","Arizona","Arkansas","California","Colorado","Connecticut","Delaware","District of Columbia ","Florida","Georgia","Hawaii","Idaho","Illinois","Indiana","Iowa","Kansas","Kentucky","Louisiana","Maine","Maryland","Massachusetts","Michigan","Minnesota","Mississippi","Missouri","Montana","Nebraska","Nevada","New Hampshire","New Jersey","New Mexico","New York","North Carolina","North Dakota","Ohio","Oklahoma","Oregon","Pennsylvania","Rhode Island","South Carolina","South Dakota","Tennessee","Texas","Utah","Vermont","Virginia","Washington","West Virginia","Wisconsin","Wyoming","Puerto Rico"]
[null,null,null,null,null,null,null,null,null,null,{"$f":"K11/$J$11","v":1.5446205241752701E-2},{"$f":"L11/$J$11","v":1.1890226007358905E-2},2.925486662956334E-2,9.1886605250521714E-3,8.0192126409673076E-2,2.2846127027747586E-2,1.2308168837588548E-2,3.5569692850914631E-3,8.4172695957552279E-3,6.058049501120525E-2,3.567888129928596E-2,8.6995754804044222E-3,7.8059840078525166E-3,3.9312508795539679E-2,2.0451194390089876E-2,1.037078105806718E-2,1.3172483096652286E-2,1.4568454580363476E-2,1.3571614963626244E-2,5.4557450874037974E-3,2.2299336171007215E-2,2.2368922591471843E-2,2.4854939893314967E-2,1.6398916884536752E-2,9.4687034366781261E-3,2.0190528184975416E-2,4.7850564576410346E-3,6.9043306939053188E-3,1.3985456155251264E-2,5.4730002567060024E-3,3.1003013290016257E-2,9.0407186636578558E-3,5.7403705194018113E-2,3.3755495665345893E-2,3.3886606664879863E-3,2.8174297010966225E-2,1.4507354308735995E-2,1.5300809225009529E-2,3.3542351893719471E-2,4.3135094539233938E-3,1.802146854219985E-2,3.1871146316056714E-3,2.3173268065419722E-2,5.6883645706114767E-2,1.1621073653407294E-2,2.8366366846313724E-3,3.3738099060229731E-2,2.5523789857496346E-2,6.7075934766973886E-3,1.3821673482694268E-2,4.5581934120612223E-3]
[null,"United States",310212755,25814,263612596,229733,37696597,211307,null,{"$f":"HLOOKUP(J$7,$J$67:$DK$121,ROWS($A$11:$A11)+2,FALSE)","v":7070345},{"$f":"HLOOKUP(K$7,$J$67:$DK$121,ROWS($A$11:$A11)+2,FALSE)","v":109210},{"$f":"HLOOKUP(L$7,$J$67:$DK$121,ROWS($A$11:$A11)+2,FALSE)","v":84068},{"$f":"HLOOKUP(M$7,$J$67:$DK$121,ROWS($A$11:$A11)+2,FALSE)","v":206842},{"$f":"HLOOKUP(N$7,$J$67:$DK$121,ROWS($A$11:$A11)+2,FALSE)","v":64967},{"$f":"HLOOKUP(O$7,$J$67:$DK$121,ROWS($A$11:$A11)+2,FALSE)","v":566986},{"$f":"HLOOKUP(P$7,$J$67:$DK$121,ROWS($A$11:$A11)+2,FALSE)","v":161530},{"$f":"HLOOKUP(Q$7,$J$67:$DK$121,ROWS($A$11:$A11)+2,FALSE)","v":87023},{"$f":"HLOOKUP(R$7,$J$67:$DK$121,ROWS($A$11:$A11)+2,FALSE)","v":25149},{"$f":"HLOOKUP(S$7,$J$67:$DK$121,ROWS($A$11:$A11)+2,FALSE)","v":59513},{"$f":"HLOOKUP(T$7,$J$67:$DK$121,ROWS($A$11:$A11)+2,FALSE)","v":428325},{"$f":"HLOOKUP(U$7,$J$67:$DK$121,ROWS($A$11:$A11)+2,FALSE)","v":252262},{"$f":"HLOOKUP(V$7,$J$67:$DK$121,ROWS($A$11:$A11)+2,FALSE)","v":61509},{"$f":"HLOOKUP(W$7,$J$67:$DK$121,ROWS($A$11:$A11)+2,FALSE)","v":55191},{"$f":"HLOOKUP(X$7,$J$67:$DK$121,ROWS($A$11:$A11)+2,FALSE)","v":277953},{"$f":"HLOOKUP(Y$7,$J$67:$DK$121,ROWS($A$11:$A11)+2,FALSE)","v":144597},{"$f":"HLOOKUP(Z$7,$J$67:$DK$121,ROWS($A$11:$A11)+2,FALSE)","v":73325},{"$f":"HLOOKUP(AA$7,$J$67:$DK$121,ROWS($A$11:$A11)+2,FALSE)","v":93134},{"$f":"HLOOKUP(AB$7,$J$67:$DK$121,ROWS($A$11:$A11)+2,FALSE)","v":103004},{"$f":"HLOOKUP(AC$7,$J$67:$DK$121,ROWS($A$11:$A11)+2,FALSE)","v":95956},{"$f":"HLOOKUP(AD$7,$J$67:$DK$121,ROWS($A$11:$A11)+2,FALSE)","v":38574},{"$f":"HLOOKUP(AE$7,$J$67:$DK$121,ROWS($A$11:$A11)+2,FALSE)","v":157664},{"$f":"HLOOKUP(AF$7,$J$67:$DK$121,ROWS($A$11:$A11)+2,FALSE)","v":158156},{"$f":"HLOOKUP(AG$7,$J$67:$DK$121,ROWS($A$11:$A11)+2,FALSE)","v":175733},{"$f":"HLOOKUP(AH$7,$J$67:$DK$121,ROWS($A$11:$A11)+2,FALSE)","v":115946},{"$f":"HLOOKUP(AI$7,$J$67:$DK$121,ROWS($A$11:$A11)+2,FALSE)","v":66947},{"$f":"HLOOKUP(AJ$7,$J$67:$DK$121,ROWS($A$11:$A11)+2,FALSE)","v":142754},{"$f":"HLOOKUP(AK$7,$J$67:$DK$121,ROWS($A$11:$A11)+2,FALSE)","v":33832},{"$f":"HLOOKUP(AL$7,$J$67:$DK$121,ROWS($A$11:$A11)+2,FALSE)","v":48816},{"$f":"HLOOKUP(AM$7,$J$67:$DK$121,ROWS($A$11:$A11)+2,FALSE)","v":98882},{"$f":"HLOOKUP(AN$7,$J$67:$DK$121,ROWS($A$11:$A11)+2,FALSE)","v":38696},{"$f":"HLOOKUP(AO$7,$J$67:$DK$121,ROWS($A$11:$A11)+2,FALSE)","v":219202},{"$f":"HLOOKUP(AP$7,$J$67:$DK$121,ROWS($A$11:$A11)+2,FALSE)","v":63921},{"$f":"HLOOKUP(AQ$7,$J$67:$DK$121,ROWS($A$11:$A11)+2,FALSE)","v":405864},{"$f":"HLOOKUP(AR$7,$J$67:$DK$121,ROWS($A$11:$A11)+2,FALSE)","v":238663},{"$f":"HLOOKUP(AS$7,$J$67:$DK$121,ROWS($A$11:$A11)+2,FALSE)","v":23959},{"$f":"HLOOKUP(AT$7,$J$67:$DK$121,ROWS($A$11:$A11)+2,FALSE)","v":199202},{"$f":"HLOOKUP(AU$7,$J$67:$DK$121,ROWS($A$11:$A11)+2,FALSE)","v":102572},{"$f":"HLOOKUP(AV$7,$J$67:$DK$121,ROWS($A$11:$A11)+2,FALSE)","v":108182},{"$f":"HLOOKUP(AW$7,$J$67:$DK$121,ROWS($A$11:$A11)+2,FALSE)","v":237156},{"$f":"HLOOKUP(AX$7,$J$67:$DK$121,ROWS($A$11:$A11)+2,FALSE)","v":30498},{"$f":"HLOOKUP(AY$7,$J$67:$DK$121,ROWS($A$11:$A11)+2,FALSE)","v":127418},{"$f":"HLOOKUP(AZ$7,$J$67:$DK$121,ROWS($A$11:$A11)+2,FALSE)","v":22534},{"$f":"HLOOKUP(BA$7,$J$67:$DK$121,ROWS($A$11:$A11)+2,FALSE)","v":163843},{"$f":"HLOOKUP(BB$7,$J$67:$DK$121,ROWS($A$11:$A11)+2,FALSE)","v":402187},{"$f":"HLOOKUP(BC$7,$J$67:$DK$121,ROWS($A$11:$A11)+2,FALSE)","v":82165},{"$f":"HLOOKUP(BD$7,$J$67:$DK$121,ROWS($A$11:$A11)+2,FALSE)","v":20056},{"$f":"HLOOKUP(BE$7,$J$67:$DK$121,ROWS($A$11:$A11)+2,FALSE)","v":238540},{"$f":"HLOOKUP(BF$7,$J$67:$DK$121,ROWS($A$11:$A11)+2,FALSE)","v":180462},{"$f":"HLOOKUP(BG$7,$J$67:$DK$121,ROWS($A$11:$A11)+2,FALSE)","v":47425},{"$f":"HLOOKUP(BH$7,$J$67:$DK$121,ROWS($A$11:$A11)+2,FALSE)","v":97724},{"$f":"HLOOKUP(BI$7,$J$67:$DK$121,ROWS($A$11:$A11)+2,FALSE)","v":32228},{"$f":"HLOOKUP(BJ$7,$J$67:$DK$121,ROWS($A$11:$A11)+2,FALSE)","v":74500},{"$f":"HLOOKUP(BK$7+0.5,$J$67:$DK$121,ROWS($A$11:$A11)+2,FALSE)","v":58599},{"$f":"HLOOKUP(BL$7+0.5,$J$67:$DK$121,ROWS($A$11:$A11)+2,FALSE)","v":9027},{"$f":"HLOOKUP(BM$7+0.5,$J$67:$DK$121,ROWS($A$11:$A11)+2,FALSE)","v":7600},{"$f":"HLOOKUP(BN$7+0.5,$J$67:$DK$121,ROWS($A$11:$A11)+2,FALSE)","v":12859},{"$f":"HLOOKUP(BO$7+0.5,$J$67:$DK$121,ROWS($A$11:$A11)+2,FALSE)","v":6563},{"$f":"HLOOKUP(BP$7+0.5,$J$67:$DK$121,ROWS($A$11:$A11)+2,FALSE)","v":19755},{"$f":"HLOOKUP(BQ$7+0.5,$J$67:$DK$121,ROWS($A$11:$A11)+2,FALSE)","v":10348},{"$f":"HLOOKUP(BR$7+0.5,$J$67:$DK$121,ROWS($A$11:$A11)+2,FALSE)","v":5968},{"$f":"HLOOKUP(BS$7+0.5,$J$67:$DK$121,ROWS($A$11:$A11)+2,FALSE)","v":3775},{"$f":"HLOOKUP(BT$7+0.5,$J$67:$DK$121,ROWS($A$11:$A11)+2,FALSE)","v":6154},{"$f":"HLOOKUP(BU$7+0.5,$J$67:$DK$121,ROWS($A$11:$A11)+2,FALSE)","v":18406},{"$f":"HLOOKUP(BV$7+0.5,$J$67:$DK$121,ROWS($A$11:$A11)+2,FALSE)","v":12868},{"$f":"HLOOKUP(BW$7+0.5,$J$67:$DK$121,ROWS($A$11:$A11)+2,FALSE)","v":6100},{"$f":"HLOOKUP(BX$7+0.5,$J$67:$DK$121,ROWS($A$11:$A11)+2,FALSE)","v":6257},{"$f":"HLOOKUP(BY$7+0.5,$J$67:$DK$121,ROWS($A$11:$A11)+2,FALSE)","v":12722},{"$f":"HLOOKUP(BZ$7+0.5,$J$67:$DK$121,ROWS($A$11:$A11)+2,FALSE)","v":8929},{"$f":"HLOOKUP(CA$7+0.5,$J$67:$DK$121,ROWS($A$11:$A11)+2,FALSE)","v":6129},{"$f":"HLOOKUP(CB$7+0.5,$J$67:$DK$121,ROWS($A$11:$A11)+2,FALSE)","v":7286},{"$f":"HLOOKUP(CC$7+0.5,$J$67:$DK$121,ROWS($A$11:$A11)+2,FALSE)","v":7490},{"$f":"HLOOKUP(CD$7+0.5,$J$67:$DK$121,ROWS($A$11:$A11)+2,FALSE)","v":7745},{"$f":"HLOOKUP(CE$7+0.5,$J$67:$DK$121,ROWS($A$11:$A11)+2,FALSE)","v":5351},{"$f":"HLOOKUP(CF$7+0.5,$J$67:$DK$121,ROWS($A$11:$A11)+2,FALSE)","v":9686},{"$f":"HLOOKUP(CG$7+0.5,$J$67:$DK$121,ROWS($A$11:$A11)+2,FALSE)","v":10755},{"$f":"HLOOKUP(CH$7+0.5,$J$67:$DK$121,ROWS($A$11:$A11)+2,FALSE)","v":9302},{"$f":"HLOOKUP(CI$7+0.5,$J$67:$DK$121,ROWS($A$11:$A11)+2,FALSE)","v":8402},{"$f":"HLOOKUP(CJ$7+0.5,$J$67:$DK$121,ROWS($A$11:$A11)+2,FALSE)","v":7206},{"$f":"HLOOKUP(CK$7+0.5,$J$67:$DK$121,ROWS($A$11:$A11)+2,FALSE)","v":9402},{"$f":"HLOOKUP(CL$7+0.5,$J$67:$DK$121,ROWS($A$11:$A11)+2,FALSE)","v":4879},{"$f":"HLOOKUP(CM$7+0.5,$J$67:$DK$121,ROWS($A$11:$A11)+2,FALSE)","v":4967},{"$f":"HLOOKUP(CN$7+0.5,$J$67:$DK$121,ROWS($A$11:$A11)+2,FALSE)","v":9332},{"$f":"HLOOKUP(CO$7+0.5,$J$67:$DK$121,ROWS($A$11:$A11)+2,FALSE)","v":3364},{"$f":"HLOOKUP(CP$7+0.5,$J$67:$DK$121,ROWS($A$11:$A11)+2,FALSE)","v":11087},{"$f":"HLOOKUP(CQ$7+0.5,$J$67:$DK$121,ROWS($A$11:$A11)+2,FALSE)","v":5867},{"$f":"HLOOKUP(CR$7+0.5,$J$67:$DK$121,ROWS($A$11:$A11)+2,FALSE)","v":15692},{"$f":"HLOOKUP(CS$7+0.5,$J$67:$DK$121,ROWS($A$11:$A11)+2,FALSE)","v":13414},{"$f":"HLOOKUP(CT$7+0.5,$J$67:$DK$121,ROWS($A$11:$A11)+2,FALSE)","v":3373},{"$f":"HLOOKUP(CU$7+0.5,$J$67:$DK$121,ROWS($A$11:$A11)+2,FALSE)","v":10288},{"$f":"HLOOKUP(CV$7+0.5,$J$67:$DK$121,ROWS($A$11:$A11)+2,FALSE)","v":9213},{"$f":"HLOOKUP(CW$7+0.5,$J$67:$DK$121,ROWS($A$11:$A11)+2,FALSE)","v":7867},{"$f":"HLOOKUP(CX$7+0.5,$J$67:$DK$121,ROWS($A$11:$A11)+2,FALSE)","v":10246},{"$f":"HLOOKUP(CY$7+0.5,$J$67:$DK$121,ROWS($A$11:$A11)+2,FALSE)","v":3414},{"$f":"HLOOKUP(CZ$7+0.5,$J$67:$DK$121,ROWS($A$11:$A11)+2,FALSE)","v":8502},{"$f":"HLOOKUP(DA$7+0.5,$J$67:$DK$121,ROWS($A$11:$A11)+2,FALSE)","v":2998},{"$f":"HLOOKUP(DB$7+0.5,$J$67:$DK$121,ROWS($A$11:$A11)+2,FALSE)","v":8717},{"$f":"HLOOKUP(DC$7+0.5,$J$67:$DK$121,ROWS($A$11:$A11)+2,FALSE)","v":15471},{"$f":"HLOOKUP(DD$7+0.5,$J$67:$DK$121,ROWS($A$11:$A11)+2,FALSE)","v":8304},{"$f":"HLOOKUP(DE$7+0.5,$J$67:$DK$121,ROWS($A$11:$A11)+2,FALSE)","v":2967},{"$f":"HLOOKUP(DF$7+0.5,$J$67:$DK$121,ROWS($A$11:$A11)+2,FALSE)","v":11611},{"$f":"HLOOKUP(DG$7+0.5,$J$67:$DK$121,ROWS($A$11:$A11)+2,FALSE)","v":9674},{"$f":"HLOOKUP(DH$7+0.5,$J$67:$DK$121,ROWS($A$11:$A11)+2,FALSE)","v":5262},{"$f":"HLOOKUP(DI$7+0.5,$J$67:$DK$121,ROWS($A$11:$A11)+2,FALSE)","v":5859},{"$f":"HLOOKUP(DJ$7+0.5,$J$67:$DK$121,ROWS($A$11:$A11)+2,FALSE)","v":5150},{"$f":"HLOOKUP(DK$7+0.5,$J$67:$DK$121,ROWS($A$11:$A11)+2,FALSE)","v":8156}]
[null,"Alabama",4764428,3589,4054260,21464,590326,19701,{"$f":"J12/$J$11","v":1.4794186139431668E-2},{"$f":"HLOOKUP(J$7,$J$67:$DK$121,ROWS($A$11:$A12)+2,FALSE)","v":104600},{"$f":"HLOOKUP(K$7,$J$67:$DK$121,ROWS($A$11:$A12)+2,FALSE)","v":"N/A"},{"$f":"HLOOKUP(L$7,$J$67:$DK$121,ROWS($A$11:$A12)+2,FALSE)","v":1004},{"$f":"HLOOKUP(M$7,$J$67:$DK$121,ROWS($A$11:$A12)+2,FALSE)","v":962},{"$f":"HLOOKUP(N$7,$J$67:$DK$121,ROWS($A$11:$A12)+2,FALSE)","v":660},{"$f":"HLOOKUP(O$7,$J$67:$DK$121,ROWS($A$11:$A12)+2,FALSE)","v":3077},{"$f":"HLOOKUP(P$7,$J$67:$DK$121,ROWS($A$11:$A12)+2,FALSE)","v":1386},{"$f":"HLOOKUP(Q$7,$J$67:$DK$121,ROWS($A$11:$A12)+2,FALSE)","v":284},{"$f":"HLOOKUP(R$7,$J$67:$DK$121,ROWS($A$11:$A12)+2,FALSE)","v":42},{"$f":"HLOOKUP(S$7,$J$67:$DK$121,ROWS($A$11:$A12)+2,FALSE)","v":162},{"$f":"HLOOKUP(T$7,$J$67:$DK$121,ROWS($A$11:$A12)+2,FALSE)","v":11244},{"$f":"HLOOKUP(U$7,$J$67:$DK$121,ROWS($A$11:$A12)+2,FALSE)","v":19920},{"$f":"HLOOKUP(V$7,$J$67:$DK$121,ROWS($A$11:$A12)+2,FALSE)","v":627},{"$f":"HLOOKUP(W$7,$J$67:$DK$121,ROWS($A$11:$A12)+2,FALSE)","v":493},{"$f":"HLOOKUP(X$7,$J$67:$DK$121,ROWS($A$11:$A12)+2,FALSE)","v":2722},{"$f":"HLOOKUP(Y$7,$J$67:$DK$121,ROWS($A$11:$A12)+2,FALSE)","v":1347},{"$f":"HLOOKUP(Z$7,$J$67:$DK$121,ROWS($A$11:$A12)+2,FALSE)","v":345},{"$f":"HLOOKUP(AA$7,$J$67:$DK$121,ROWS($A$11:$A12)+2,FALSE)","v":865},{"$f":"HLOOKUP(AB$7,$J$67:$DK$121,ROWS($A$11:$A12)+2,FALSE)","v":2495},{"$f":"HLOOKUP(AC$7,$J$67:$DK$121,ROWS($A$11:$A12)+2,FALSE)","v":3104},{"$f":"HLOOKUP(AD$7,$J$67:$DK$121,ROWS($A$11:$A12)+2,FALSE)","v":67},{"$f":"HLOOKUP(AE$7,$J$67:$DK$121,ROWS($A$11:$A12)+2,FALSE)","v":1513},{"$f":"HLOOKUP(AF$7,$J$67:$DK$121,ROWS($A$11:$A12)+2,FALSE)","v":334},{"$f":"HLOOKUP(AG$7,$J$67:$DK$121,ROWS($A$11:$A12)+2,FALSE)","v":2298},{"$f":"HLOOKUP(AH$7,$J$67:$DK$121,ROWS($A$11:$A12)+2,FALSE)","v":752},{"$f":"HLOOKUP(AI$7,$J$67:$DK$121,ROWS($A$11:$A12)+2,FALSE)","v":4952},{"$f":"HLOOKUP(AJ$7,$J$67:$DK$121,ROWS($A$11:$A12)+2,FALSE)","v":1555},{"$f":"HLOOKUP(AK$7,$J$67:$DK$121,ROWS($A$11:$A12)+2,FALSE)","v":101},{"$f":"HLOOKUP(AL$7,$J$67:$DK$121,ROWS($A$11:$A12)+2,FALSE)","v":151},{"$f":"HLOOKUP(AM$7,$J$67:$DK$121,ROWS($A$11:$A12)+2,FALSE)","v":1009},{"$f":"HLOOKUP(AN$7,$J$67:$DK$121,ROWS($A$11:$A12)+2,FALSE)","v":161},{"$f":"HLOOKUP(AO$7,$J$67:$DK$121,ROWS($A$11:$A12)+2,FALSE)","v":1702},{"$f":"HLOOKUP(AP$7,$J$67:$DK$121,ROWS($A$11:$A12)+2,FALSE)","v":459},{"$f":"HLOOKUP(AQ$7,$J$67:$DK$121,ROWS($A$11:$A12)+2,FALSE)","v":2709},{"$f":"HLOOKUP(AR$7,$J$67:$DK$121,ROWS($A$11:$A12)+2,FALSE)","v":5133},{"$f":"HLOOKUP(AS$7,$J$67:$DK$121,ROWS($A$11:$A12)+2,FALSE)","v":228},{"$f":"HLOOKUP(AT$7,$J$67:$DK$121,ROWS($A$11:$A12)+2,FALSE)","v":1411},{"$f":"HLOOKUP(AU$7,$J$67:$DK$121,ROWS($A$11:$A12)+2,FALSE)","v":194},{"$f":"HLOOKUP(AV$7,$J$67:$DK$121,ROWS($A$11:$A12)+2,FALSE)","v":200},{"$f":"HLOOKUP(AW$7,$J$67:$DK$121,ROWS($A$11:$A12)+2,FALSE)","v":1837},{"$f":"HLOOKUP(AX$7,$J$67:$DK$121,ROWS($A$11:$A12)+2,FALSE)","v":0},{"$f":"HLOOKUP(AY$7,$J$67:$DK$121,ROWS($A$11:$A12)+2,FALSE)","v":2811},{"$f":"HLOOKUP(AZ$7,$J$67:$DK$121,ROWS($A$11:$A12)+2,FALSE)","v":518},{"$f":"HLOOKUP(BA$7,$J$67:$DK$121,ROWS($A$11:$A12)+2,FALSE)","v":10539},{"$f":"HLOOKUP(BB$7,$J$67:$DK$121,ROWS($A$11:$A12)+2,FALSE)","v":7468},{"$f":"HLOOKUP(BC$7,$J$67:$DK$121,ROWS($A$11:$A12)+2,FALSE)","v":579},{"$f":"HLOOKUP(BD$7,$J$67:$DK$121,ROWS($A$11:$A12)+2,FALSE)","v":0},{"$f":"HLOOKUP(BE$7,$J$67:$DK$121,ROWS($A$11:$A12)+2,FALSE)","v":3170},{"$f":"HLOOKUP(BF$7,$J$67:$DK$121,ROWS($A$11:$A12)+2,FALSE)","v":1034},{"$f":"HLOOKUP(BG$7,$J$67:$DK$121,ROWS($A$11:$A12)+2,FALSE)","v":128},{"$f":"HLOOKUP(BH$7,$J$67:$DK$121,ROWS($A$11:$A12)+2,FALSE)","v":760},{"$f":"HLOOKUP(BI$7,$J$67:$DK$121,ROWS($A$11:$A12)+2,FALSE)","v":88},{"$f":"HLOOKUP(BJ$7,$J$67:$DK$121,ROWS($A$11:$A12)+2,FALSE)","v":619},{"$f":"HLOOKUP(BK$7+0.5,$J$67:$DK$121,ROWS($A$11:$A12)+2,FALSE)","v":8482},{"$f":"HLOOKUP(BL$7+0.5,$J$67:$DK$121,ROWS($A$11:$A12)+2,FALSE)","v":"N/A"},{"$f":"HLOOKUP(BM$7+0.5,$J$67:$DK$121,ROWS($A$11:$A12)+2,FALSE)","v":829},{"$f":"HLOOKUP(BN$7+0.5,$J$67:$DK$121,ROWS($A$11:$A12)+2,FALSE)","v":583},{"$f":"HLOOKUP(BO$7+0.5,$J$67:$DK$121,ROWS($A$11:$A12)+2,FALSE)","v":382},{"$f":"HLOOKUP(BP$7+0.5,$J$67:$DK$121,ROWS($A$11:$A12)+2,FALSE)","v":1037},{"$f":"HLOOKUP(BQ$7+0.5,$J$67:$DK$121,ROWS($A$11:$A12)+2,FALSE)","v":1393},{"$f":"HLOOKUP(BR$7+0.5,$J$67:$DK$121,ROWS($A$11:$A12)+2,FALSE)","v":256},{"$f":"HLOOKUP(BS$7+0.5,$J$67:$DK$121,ROWS($A$11:$A12)+2,FALSE)","v":68},{"$f":"HLOOKUP(BT$7+0.5,$J$67:$DK$121,ROWS($A$11:$A12)+2,FALSE)","v":195},{"$f":"HLOOKUP(BU$7+0.5,$J$67:$DK$121,ROWS($A$11:$A12)+2,FALSE)","v":2476},{"$f":"HLOOKUP(BV$7+0.5,$J$67:$DK$121,ROWS($A$11:$A12)+2,FALSE)","v":3636},{"$f":"HLOOKUP(BW$7+0.5,$J$67:$DK$121,ROWS($A$11:$A12)+2,FALSE)","v":477},{"$f":"HLOOKUP(BX$7+0.5,$J$67:$DK$121,ROWS($A$11:$A12)+2,FALSE)","v":456},{"$f":"HLOOKUP(BY$7+0.5,$J$67:$DK$121,ROWS($A$11:$A12)+2,FALSE)","v":1030},{"$f":"HLOOKUP(BZ$7+0.5,$J$67:$DK$121,ROWS($A$11:$A12)+2,FALSE)","v":536},{"$f":"HLOOKUP(CA$7+0.5,$J$67:$DK$121,ROWS($A$11:$A12)+2,FALSE)","v":337},{"$f":"HLOOKUP(CB$7+0.5,$J$67:$DK$121,ROWS($A$11:$A12)+2,FALSE)","v":760},{"$f":"HLOOKUP(CC$7+0.5,$J$67:$DK$121,ROWS($A$11:$A12)+2,FALSE)","v":981},{"$f":"HLOOKUP(CD$7+0.5,$J$67:$DK$121,ROWS($A$11:$A12)+2,FALSE)","v":1216},{"$f":"HLOOKUP(CE$7+0.5,$J$67:$DK$121,ROWS($A$11:$A12)+2,FALSE)","v":82},{"$f":"HLOOKUP(CF$7+0.5,$J$67:$DK$121,ROWS($A$11:$A12)+2,FALSE)","v":847},{"$f":"HLOOKUP(CG$7+0.5,$J$67:$DK$121,ROWS($A$11:$A12)+2,FALSE)","v":272},{"$f":"HLOOKUP(CH$7+0.5,$J$67:$DK$121,ROWS($A$11:$A12)+2,FALSE)","v":881},{"$f":"HLOOKUP(CI$7+0.5,$J$67:$DK$121,ROWS($A$11:$A12)+2,FALSE)","v":716},{"$f":"HLOOKUP(CJ$7+0.5,$J$67:$DK$121,ROWS($A$11:$A12)+2,FALSE)","v":1703},{"$f":"HLOOKUP(CK$7+0.5,$J$67:$DK$121,ROWS($A$11:$A12)+2,FALSE)","v":836},{"$f":"HLOOKUP(CL$7+0.5,$J$67:$DK$121,ROWS($A$11:$A12)+2,FALSE)","v":132},{"$f":"HLOOKUP(CM$7+0.5,$J$67:$DK$121,ROWS($A$11:$A12)+2,FALSE)","v":167},{"$f":"HLOOKUP(CN$7+0.5,$J$67:$DK$121,ROWS($A$11:$A12)+2,FALSE)","v":824},{"$f":"HLOOKUP(CO$7+0.5,$J$67:$DK$121,ROWS($A$11:$A12)+2,FALSE)","v":166},{"$f":"HLOOKUP(CP$7+0.5,$J$67:$DK$121,ROWS($A$11:$A12)+2,FALSE)","v":1200},{"$f":"HLOOKUP(CQ$7+0.5,$J$67:$DK$121,ROWS($A$11:$A12)+2,FALSE)","v":576},{"$f":"HLOOKUP(CR$7+0.5,$J$67:$DK$121,ROWS($A$11:$A12)+2,FALSE)","v":1188},{"$f":"HLOOKUP(CS$7+0.5,$J$67:$DK$121,ROWS($A$11:$A12)+2,FALSE)","v":1788},{"$f":"HLOOKUP(CT$7+0.5,$J$67:$DK$121,ROWS($A$11:$A12)+2,FALSE)","v":194},{"$f":"HLOOKUP(CU$7+0.5,$J$67:$DK$121,ROWS($A$11:$A12)+2,FALSE)","v":576},{"$f":"HLOOKUP(CV$7+0.5,$J$67:$DK$121,ROWS($A$11:$A12)+2,FALSE)","v":157},{"$f":"HLOOKUP(CW$7+0.5,$J$67:$DK$121,ROWS($A$11:$A12)+2,FALSE)","v":169},{"$f":"HLOOKUP(CX$7+0.5,$J$67:$DK$121,ROWS($A$11:$A12)+2,FALSE)","v":736},{"$f":"HLOOKUP(CY$7+0.5,$J$67:$DK$121,ROWS($A$11:$A12)+2,FALSE)","v":184},{"$f":"HLOOKUP(CZ$7+0.5,$J$67:$DK$121,ROWS($A$11:$A12)+2,FALSE)","v":1951},{"$f":"HLOOKUP(DA$7+0.5,$J$67:$DK$121,ROWS($A$11:$A12)+2,FALSE)","v":758},{"$f":"HLOOKUP(DB$7+0.5,$J$67:$DK$121,ROWS($A$11:$A12)+2,FALSE)","v":2731},{"$f":"HLOOKUP(DC$7+0.5,$J$67:$DK$121,ROWS($A$11:$A12)+2,FALSE)","v":2136},{"$f":"HLOOKUP(DD$7+0.5,$J$67:$DK$121,ROWS($A$11:$A12)+2,FALSE)","v":713},{"$f":"HLOOKUP(DE$7+0.5,$J$67:$DK$121,ROWS($A$11:$A12)+2,FALSE)","v":184},{"$f":"HLOOKUP(DF$7+0.5,$J$67:$DK$121,ROWS($A$11:$A12)+2,FALSE)","v":1577},{"$f":"HLOOKUP(DG$7+0.5,$J$67:$DK$121,ROWS($A$11:$A12)+2,FALSE)","v":684},{"$f":"HLOOKUP(DH$7+0.5,$J$67:$DK$121,ROWS($A$11:$A12)+2,FALSE)","v":156},{"$f":"HLOOKUP(DI$7+0.5,$J$67:$DK$121,ROWS($A$11:$A12)+2,FALSE)","v":605},{"$f":"HLOOKUP(DJ$7+0.5,$J$67:$DK$121,ROWS($A$11:$A12)+2,FALSE)","v":107},{"$f":"HLOOKUP(DK$7+0.5,$J$67:$DK$121,ROWS($A$11:$A12)+2,FALSE)","v":551}]
[null,"Alaska",721186,1290,592551,8741,90613,7239,{"$f":"J13/$J$11","v":4.7260777232228414E-3},{"$f":"HLOOKUP(J$7,$J$67:$DK$121,ROWS($A$11:$A13)+2,FALSE)","v":33415},{"$f":"HLOOKUP(K$7,$J$67:$DK$121,ROWS($A$11:$A13)+2,FALSE)","v":1097},{"$f":"HLOOKUP(L$7,$J$67:$DK$121,ROWS($A$11:$A13)+2,FALSE)","v":"N/A"},{"$f":"HLOOKUP(M$7,$J$67:$DK$121,ROWS($A$11:$A13)+2,FALSE)","v":1520},{"$f":"HLOOKUP(N$7,$J$67:$DK$121,ROWS($A$11:$A13)+2,FALSE)","v":196},{"$f":"HLOOKUP(O$7,$J$67:$DK$121,ROWS($A$11:$A13)+2,FALSE)","v":3494},{"$f":"HLOOKUP(P$7,$J$67:$DK$121,ROWS($A$11:$A13)+2,FALSE)","v":556},{"$f":"HLOOKUP(Q$7,$J$67:$DK$121,ROWS($A$11:$A13)+2,FALSE)","v":0},{"$f":"HLOOKUP(R$7,$J$67:$DK$121,ROWS($A$11:$A13)+2,FALSE)","v":0},{"$f":"HLOOKUP(S$7,$J$67:$DK$121,ROWS($A$11:$A13)+2,FALSE)","v":356},{"$f":"HLOOKUP(T$7,$J$67:$DK$121,ROWS($A$11:$A13)+2,FALSE)","v":1991},{"$f":"HLOOKUP(U$7,$J$67:$DK$121,ROWS($A$11:$A13)+2,FALSE)","v":928},{"$f":"HLOOKUP(V$7,$J$67:$DK$121,ROWS($A$11:$A13)+2,FALSE)","v":1376},{"$f":"HLOOKUP(W$7,$J$67:$DK$121,ROWS($A$11:$A13)+2,FALSE)","v":538},{"$f":"HLOOKUP(X$7,$J$67:$DK$121,ROWS($A$11:$A13)+2,FALSE)","v":58},{"$f":"HLOOKUP(Y$7,$J$67:$DK$121,ROWS($A$11:$A13)+2,FALSE)","v":260},{"$f":"HLOOKUP(Z$7,$J$67:$DK$121,ROWS($A$11:$A13)+2,FALSE)","v":13},{"$f":"HLOOKUP(AA$7,$J$67:$DK$121,ROWS($A$11:$A13)+2,FALSE)","v":221},{"$f":"HLOOKUP(AB$7,$J$67:$DK$121,ROWS($A$11:$A13)+2,FALSE)","v":161},{"$f":"HLOOKUP(AC$7,$J$67:$DK$121,ROWS($A$11:$A13)+2,FALSE)","v":120},{"$f":"HLOOKUP(AD$7,$J$67:$DK$121,ROWS($A$11:$A13)+2,FALSE)","v":66},{"$f":"HLOOKUP(AE$7,$J$67:$DK$121,ROWS($A$11:$A13)+2,FALSE)","v":508},{"$f":"HLOOKUP(AF$7,$J$67:$DK$121,ROWS($A$11:$A13)+2,FALSE)","v":297},{"$f":"HLOOKUP(AG$7,$J$67:$DK$121,ROWS($A$11:$A13)+2,FALSE)","v":563},{"$f":"HLOOKUP(AH$7,$J$67:$DK$121,ROWS($A$11:$A13)+2,FALSE)","v":192},{"$f":"HLOOKUP(AI$7,$J$67:$DK$121,ROWS($A$11:$A13)+2,FALSE)","v":56},{"$f":"HLOOKUP(AJ$7,$J$67:$DK$121,ROWS($A$11:$A13)+2,FALSE)","v":819},{"$f":"HLOOKUP(AK$7,$J$67:$DK$121,ROWS($A$11:$A13)+2,FALSE)","v":371},{"$f":"HLOOKUP(AL$7,$J$67:$DK$121,ROWS($A$11:$A13)+2,FALSE)","v":1195},{"$f":"HLOOKUP(AM$7,$J$67:$DK$121,ROWS($A$11:$A13)+2,FALSE)","v":803},{"$f":"HLOOKUP(AN$7,$J$67:$DK$121,ROWS($A$11:$A13)+2,FALSE)","v":118},{"$f":"HLOOKUP(AO$7,$J$67:$DK$121,ROWS($A$11:$A13)+2,FALSE)","v":116},{"$f":"HLOOKUP(AP$7,$J$67:$DK$121,ROWS($A$11:$A13)+2,FALSE)","v":263},{"$f":"HLOOKUP(AQ$7,$J$67:$DK$121,ROWS($A$11:$A13)+2,FALSE)","v":736},{"$f":"HLOOKUP(AR$7,$J$67:$DK$121,ROWS($A$11:$A13)+2,FALSE)","v":920},{"$f":"HLOOKUP(AS$7,$J$67:$DK$121,ROWS($A$11:$A13)+2,FALSE)","v":264},{"$f":"HLOOKUP(AT$7,$J$67:$DK$121,ROWS($A$11:$A13)+2,FALSE)","v":1316},{"$f":"HLOOKUP(AU$7,$J$67:$DK$121,ROWS($A$11:$A13)+2,FALSE)","v":335},{"$f":"HLOOKUP(AV$7,$J$67:$DK$121,ROWS($A$11:$A13)+2,FALSE)","v":3174},{"$f":"HLOOKUP(AW$7,$J$67:$DK$121,ROWS($A$11:$A13)+2,FALSE)","v":255},{"$f":"HLOOKUP(AX$7,$J$67:$DK$121,ROWS($A$11:$A13)+2,FALSE)","v":0},{"$f":"HLOOKUP(AY$7,$J$67:$DK$121,ROWS($A$11:$A13)+2,FALSE)","v":384},{"$f":"HLOOKUP(AZ$7,$J$67:$DK$121,ROWS($A$11:$A13)+2,FALSE)","v":99},{"$f":"HLOOKUP(BA$7,$J$67:$DK$121,ROWS($A$11:$A13)+2,FALSE)","v":451},{"$f":"HLOOKUP(BB$7,$J$67:$DK$121,ROWS($A$11:$A13)+2,FALSE)","v":1488},{"$f":"HLOOKUP(BC$7,$J$67:$DK$121,ROWS($A$11:$A13)+2,FALSE)","v":330},{"$f":"HLOOKUP(BD$7,$J$67:$DK$121,ROWS($A$11:$A13)+2,FALSE)","v":79},{"$f":"HLOOKUP(BE$7,$J$67:$DK$121,ROWS($A$11:$A13)+2,FALSE)","v":1265},{"$f":"HLOOKUP(BF$7,$J$67:$DK$121,ROWS($A$11:$A13)+2,FALSE)","v":3725},{"$f":"HLOOKUP(BG$7,$J$67:$DK$121,ROWS($A$11:$A13)+2,FALSE)","v":0},{"$f":"HLOOKUP(BH$7,$J$67:$DK$121,ROWS($A$11:$A13)+2,FALSE)","v":206},{"$f":"HLOOKUP(BI$7,$J$67:$DK$121,ROWS($A$11:$A13)+2,FALSE)","v":136},{"$f":"HLOOKUP(BJ$7,$J$67:$DK$121,ROWS($A$11:$A13)+2,FALSE)","v":25},{"$f":"HLOOKUP(BK$7+0.5,$J$67:$DK$121,ROWS($A$11:$A13)+2,FALSE)","v":4385},{"$f":"HLOOKUP(BL$7+0.5,$J$67:$DK$121,ROWS($A$11:$A13)+2,FALSE)","v":825},{"$f":"HLOOKUP(BM$7+0.5,$J$67:$DK$121,ROWS($A$11:$A13)+2,FALSE)","v":"N/A"},{"$f":"HLOOKUP(BN$7+0.5,$J$67:$DK$121,ROWS($A$11:$A13)+2,FALSE)","v":1441},{"$f":"HLOOKUP(BO$7+0.5,$J$67:$DK$121,ROWS($A$11:$A13)+2,FALSE)","v":202},{"$f":"HLOOKUP(BP$7+0.5,$J$67:$DK$121,ROWS($A$11:$A13)+2,FALSE)","v":1643},{"$f":"HLOOKUP(BQ$7+0.5,$J$67:$DK$121,ROWS($A$11:$A13)+2,FALSE)","v":279},{"$f":"HLOOKUP(BR$7+0.5,$J$67:$DK$121,ROWS($A$11:$A13)+2,FALSE)","v":143},{"$f":"HLOOKUP(BS$7+0.5,$J$67:$DK$121,ROWS($A$11:$A13)+2,FALSE)","v":143},{"$f":"HLOOKUP(BT$7+0.5,$J$67:$DK$121,ROWS($A$11:$A13)+2,FALSE)","v":459},{"$f":"HLOOKUP(BU$7+0.5,$J$67:$DK$121,ROWS($A$11:$A13)+2,FALSE)","v":942},{"$f":"HLOOKUP(BV$7+0.5,$J$67:$DK$121,ROWS($A$11:$A13)+2,FALSE)","v":894},{"$f":"HLOOKUP(BW$7+0.5,$J$67:$DK$121,ROWS($A$11:$A13)+2,FALSE)","v":805},{"$f":"HLOOKUP(BX$7+0.5,$J$67:$DK$121,ROWS($A$11:$A13)+2,FALSE)","v":387},{"$f":"HLOOKUP(BY$7+0.5,$J$67:$DK$121,ROWS($A$11:$A13)+2,FALSE)","v":118},{"$f":"HLOOKUP(BZ$7+0.5,$J$67:$DK$121,ROWS($A$11:$A13)+2,FALSE)","v":235},{"$f":"HLOOKUP(CA$7+0.5,$J$67:$DK$121,ROWS($A$11:$A13)+2,FALSE)","v":24},{"$f":"HLOOKUP(CB$7+0.5,$J$67:$DK$121,ROWS($A$11:$A13)+2,FALSE)","v":272},{"$f":"HLOOKUP(CC$7+0.5,$J$67:$DK$121,ROWS($A$11:$A13)+2,FALSE)","v":196},{"$f":"HLOOKUP(CD$7+0.5,$J$67:$DK$121,ROWS($A$11:$A13)+2,FALSE)","v":145},{"$f":"HLOOKUP(CE$7+0.5,$J$67:$DK$121,ROWS($A$11:$A13)+2,FALSE)","v":62},{"$f":"HLOOKUP(CF$7+0.5,$J$67:$DK$121,ROWS($A$11:$A13)+2,FALSE)","v":591},{"$f":"HLOOKUP(CG$7+0.5,$J$67:$DK$121,ROWS($A$11:$A13)+2,FALSE)","v":289},{"$f":"HLOOKUP(CH$7+0.5,$J$67:$DK$121,ROWS($A$11:$A13)+2,FALSE)","v":426},{"$f":"HLOOKUP(CI$7+0.5,$J$67:$DK$121,ROWS($A$11:$A13)+2,FALSE)","v":191},{"$f":"HLOOKUP(CJ$7+0.5,$J$67:$DK$121,ROWS($A$11:$A13)+2,FALSE)","v":76},{"$f":"HLOOKUP(CK$7+0.5,$J$67:$DK$121,ROWS($A$11:$A13)+2,FALSE)","v":628},{"$f":"HLOOKUP(CL$7+0.5,$J$67:$DK$121,ROWS($A$11:$A13)+2,FALSE)","v":334},{"$f":"HLOOKUP(CM$7+0.5,$J$67:$DK$121,ROWS($A$11:$A13)+2,FALSE)","v":1128},{"$f":"HLOOKUP(CN$7+0.5,$J$67:$DK$121,ROWS($A$11:$A13)+2,FALSE)","v":382},{"$f":"HLOOKUP(CO$7+0.5,$J$67:$DK$121,ROWS($A$11:$A13)+2,FALSE)","v":206},{"$f":"HLOOKUP(CP$7+0.5,$J$67:$DK$121,ROWS($A$11:$A13)+2,FALSE)","v":156},{"$f":"HLOOKUP(CQ$7+0.5,$J$67:$DK$121,ROWS($A$11:$A13)+2,FALSE)","v":219},{"$f":"HLOOKUP(CR$7+0.5,$J$67:$DK$121,ROWS($A$11:$A13)+2,FALSE)","v":576},{"$f":"HLOOKUP(CS$7+0.5,$J$67:$DK$121,ROWS($A$11:$A13)+2,FALSE)","v":784},{"$f":"HLOOKUP(CT$7+0.5,$J$67:$DK$121,ROWS($A$11:$A13)+2,FALSE)","v":359},{"$f":"HLOOKUP(CU$7+0.5,$J$67:$DK$121,ROWS($A$11:$A13)+2,FALSE)","v":757},{"$f":"HLOOKUP(CV$7+0.5,$J$67:$DK$121,ROWS($A$11:$A13)+2,FALSE)","v":252},{"$f":"HLOOKUP(CW$7+0.5,$J$67:$DK$121,ROWS($A$11:$A13)+2,FALSE)","v":1510},{"$f":"HLOOKUP(CX$7+0.5,$J$67:$DK$121,ROWS($A$11:$A13)+2,FALSE)","v":240},{"$f":"HLOOKUP(CY$7+0.5,$J$67:$DK$121,ROWS($A$11:$A13)+2,FALSE)","v":143},{"$f":"HLOOKUP(CZ$7+0.5,$J$67:$DK$121,ROWS($A$11:$A13)+2,FALSE)","v":394},{"$f":"HLOOKUP(DA$7+0.5,$J$67:$DK$121,ROWS($A$11:$A13)+2,FALSE)","v":123},{"$f":"HLOOKUP(DB$7+0.5,$J$67:$DK$121,ROWS($A$11:$A13)+2,FALSE)","v":413},{"$f":"HLOOKUP(DC$7+0.5,$J$67:$DK$121,ROWS($A$11:$A13)+2,FALSE)","v":760},{"$f":"HLOOKUP(DD$7+0.5,$J$67:$DK$121,ROWS($A$11:$A13)+2,FALSE)","v":347},{"$f":"HLOOKUP(DE$7+0.5,$J$67:$DK$121,ROWS($A$11:$A13)+2,FALSE)","v":108},{"$f":"HLOOKUP(DF$7+0.5,$J$67:$DK$121,ROWS($A$11:$A13)+2,FALSE)","v":674},{"$f":"HLOOKUP(DG$7+0.5,$J$67:$DK$121,ROWS($A$11:$A13)+2,FALSE)","v":1488},{"$f":"HLOOKUP(DH$7+0.5,$J$67:$DK$121,ROWS($A$11:$A13)+2,FALSE)","v":143},{"$f":"HLOOKUP(DI$7+0.5,$J$67:$DK$121,ROWS($A$11:$A13)+2,FALSE)","v":261},{"$f":"HLOOKUP(DJ$7+0.5,$J$67:$DK$121,ROWS($A$11:$A13)+2,FALSE)","v":217},{"$f":"HLOOKUP(DK$7+0.5,$J$67:$DK$121,ROWS($A$11:$A13)+2,FALSE)","v":43}]
[null,"Arizona",6468907,3874,5242674,32185,953789,28803,3.2877745003956668E-2,{"$f":"HLOOKUP(J$7,$J$67:$DK$121,ROWS($A$11:$A14)+2,FALSE)","v":232457},{"$f":"HLOOKUP(K$7,$J$67:$DK$121,ROWS($A$11:$A14)+2,FALSE)","v":1331},{"$f":"HLOOKUP(L$7,$J$67:$DK$121,ROWS($A$11:$A14)+2,FALSE)","v":3717},{"$f":"HLOOKUP(M$7,$J$67:$DK$121,ROWS($A$11:$A14)+2,FALSE)","v":"N/A"},{"$f":"HLOOKUP(N$7,$J$67:$DK$121,ROWS($A$11:$A14)+2,FALSE)","v":1214},{"$f":"HLOOKUP(O$7,$J$67:$DK$121,ROWS($A$11:$A14)+2,FALSE)","v":44889},{"$f":"HLOOKUP(P$7,$J$67:$DK$121,ROWS($A$11:$A14)+2,FALSE)","v":13790},{"$f":"HLOOKUP(Q$7,$J$67:$DK$121,ROWS($A$11:$A14)+2,FALSE)","v":417},{"$f":"HLOOKUP(R$7,$J$67:$DK$121,ROWS($A$11:$A14)+2,FALSE)","v":246},{"$f":"HLOOKUP(S$7,$J$67:$DK$121,ROWS($A$11:$A14)+2,FALSE)","v":36},{"$f":"HLOOKUP(T$7,$J$67:$DK$121,ROWS($A$11:$A14)+2,FALSE)","v":5553},{"$f":"HLOOKUP(U$7,$J$67:$DK$121,ROWS($A$11:$A14)+2,FALSE)","v":2263},{"$f":"HLOOKUP(V$7,$J$67:$DK$121,ROWS($A$11:$A14)+2,FALSE)","v":2491},{"$f":"HLOOKUP(W$7,$J$67:$DK$121,ROWS($A$11:$A14)+2,FALSE)","v":2934},{"$f":"HLOOKUP(X$7,$J$67:$DK$121,ROWS($A$11:$A14)+2,FALSE)","v":10744},{"$f":"HLOOKUP(Y$7,$J$67:$DK$121,ROWS($A$11:$A14)+2,FALSE)","v":2930},{"$f":"HLOOKUP(Z$7,$J$67:$DK$121,ROWS($A$11:$A14)+2,FALSE)","v":2702},{"$f":"HLOOKUP(AA$7,$J$67:$DK$121,ROWS($A$11:$A14)+2,FALSE)","v":2498},{"$f":"HLOOKUP(AB$7,$J$67:$DK$121,ROWS($A$11:$A14)+2,FALSE)","v":1328},{"$f":"HLOOKUP(AC$7,$J$67:$DK$121,ROWS($A$11:$A14)+2,FALSE)","v":724},{"$f":"HLOOKUP(AD$7,$J$67:$DK$121,ROWS($A$11:$A14)+2,FALSE)","v":616},{"$f":"HLOOKUP(AE$7,$J$67:$DK$121,ROWS($A$11:$A14)+2,FALSE)","v":3007},{"$f":"HLOOKUP(AF$7,$J$67:$DK$121,ROWS($A$11:$A14)+2,FALSE)","v":1961},{"$f":"HLOOKUP(AG$7,$J$67:$DK$121,ROWS($A$11:$A14)+2,FALSE)","v":9598},{"$f":"HLOOKUP(AH$7,$J$67:$DK$121,ROWS($A$11:$A14)+2,FALSE)","v":8570},{"$f":"HLOOKUP(AI$7,$J$67:$DK$121,ROWS($A$11:$A14)+2,FALSE)","v":293},{"$f":"HLOOKUP(AJ$7,$J$67:$DK$121,ROWS($A$11:$A14)+2,FALSE)","v":2595},{"$f":"HLOOKUP(AK$7,$J$67:$DK$121,ROWS($A$11:$A14)+2,FALSE)","v":1118},{"$f":"HLOOKUP(AL$7,$J$67:$DK$121,ROWS($A$11:$A14)+2,FALSE)","v":2293},{"$f":"HLOOKUP(AM$7,$J$67:$DK$121,ROWS($A$11:$A14)+2,FALSE)","v":6712},{"$f":"HLOOKUP(AN$7,$J$67:$DK$121,ROWS($A$11:$A14)+2,FALSE)","v":510},{"$f":"HLOOKUP(AO$7,$J$67:$DK$121,ROWS($A$11:$A14)+2,FALSE)","v":2564},{"$f":"HLOOKUP(AP$7,$J$67:$DK$121,ROWS($A$11:$A14)+2,FALSE)","v":6946},{"$f":"HLOOKUP(AQ$7,$J$67:$DK$121,ROWS($A$11:$A14)+2,FALSE)","v":7402},{"$f":"HLOOKUP(AR$7,$J$67:$DK$121,ROWS($A$11:$A14)+2,FALSE)","v":2721},{"$f":"HLOOKUP(AS$7,$J$67:$DK$121,ROWS($A$11:$A14)+2,FALSE)","v":877},{"$f":"HLOOKUP(AT$7,$J$67:$DK$121,ROWS($A$11:$A14)+2,FALSE)","v":7906},{"$f":"HLOOKUP(AU$7,$J$67:$DK$121,ROWS($A$11:$A14)+2,FALSE)","v":1626},{"$f":"HLOOKUP(AV$7,$J$67:$DK$121,ROWS($A$11:$A14)+2,FALSE)","v":8587},{"$f":"HLOOKUP(AW$7,$J$67:$DK$121,ROWS($A$11:$A14)+2,FALSE)","v":4280},{"$f":"HLOOKUP(AX$7,$J$67:$DK$121,ROWS($A$11:$A14)+2,FALSE)","v":614},{"$f":"HLOOKUP(AY$7,$J$67:$DK$121,ROWS($A$11:$A14)+2,FALSE)","v":1070},{"$f":"HLOOKUP(AZ$7,$J$67:$DK$121,ROWS($A$11:$A14)+2,FALSE)","v":1472},{"$f":"HLOOKUP(BA$7,$J$67:$DK$121,ROWS($A$11:$A14)+2,FALSE)","v":5075},{"$f":"HLOOKUP(BB$7,$J$67:$DK$121,ROWS($A$11:$A14)+2,FALSE)","v":14788},{"$f":"HLOOKUP(BC$7,$J$67:$DK$121,ROWS($A$11:$A14)+2,FALSE)","v":5916},{"$f":"HLOOKUP(BD$7,$J$67:$DK$121,ROWS($A$11:$A14)+2,FALSE)","v":207},{"$f":"HLOOKUP(BE$7,$J$67:$DK$121,ROWS($A$11:$A14)+2,FALSE)","v":2763},{"$f":"HLOOKUP(BF$7,$J$67:$DK$121,ROWS($A$11:$A14)+2,FALSE)","v":13247},{"$f":"HLOOKUP(BG$7,$J$67:$DK$121,ROWS($A$11:$A14)+2,FALSE)","v":765},{"$f":"HLOOKUP(BH$7,$J$67:$DK$121,ROWS($A$11:$A14)+2,FALSE)","v":3765},{"$f":"HLOOKUP(BI$7,$J$67:$DK$121,ROWS($A$11:$A14)+2,FALSE)","v":2786},{"$f":"HLOOKUP(BJ$7,$J$67:$DK$121,ROWS($A$11:$A14)+2,FALSE)","v":1791},{"$f":"HLOOKUP(BK$7+0.5,$J$67:$DK$121,ROWS($A$11:$A14)+2,FALSE)","v":14183},{"$f":"HLOOKUP(BL$7+0.5,$J$67:$DK$121,ROWS($A$11:$A14)+2,FALSE)","v":1286},{"$f":"HLOOKUP(BM$7+0.5,$J$67:$DK$121,ROWS($A$11:$A14)+2,FALSE)","v":1505},{"$f":"HLOOKUP(BN$7+0.5,$J$67:$DK$121,ROWS($A$11:$A14)+2,FALSE)","v":"N/A"},{"$f":"HLOOKUP(BO$7+0.5,$J$67:$DK$121,ROWS($A$11:$A14)+2,FALSE)","v":659},{"$f":"HLOOKUP(BP$7+0.5,$J$67:$DK$121,ROWS($A$11:$A14)+2,FALSE)","v":5435},{"$f":"HLOOKUP(BQ$7+0.5,$J$67:$DK$121,ROWS($A$11:$A14)+2,FALSE)","v":6133},{"$f":"HLOOKUP(BR$7+0.5,$J$67:$DK$121,ROWS($A$11:$A14)+2,FALSE)","v":309},{"$f":"HLOOKUP(BS$7+0.5,$J$67:$DK$121,ROWS($A$11:$A14)+2,FALSE)","v":215},{"$f":"HLOOKUP(BT$7+0.5,$J$67:$DK$121,ROWS($A$11:$A14)+2,FALSE)","v":60},{"$f":"HLOOKUP(BU$7+0.5,$J$67:$DK$121,ROWS($A$11:$A14)+2,FALSE)","v":2160},{"$f":"HLOOKUP(BV$7+0.5,$J$67:$DK$121,ROWS($A$11:$A14)+2,FALSE)","v":961},{"$f":"HLOOKUP(BW$7+0.5,$J$67:$DK$121,ROWS($A$11:$A14)+2,FALSE)","v":1285},{"$f":"HLOOKUP(BX$7+0.5,$J$67:$DK$121,ROWS($A$11:$A14)+2,FALSE)","v":1362},{"$f":"HLOOKUP(BY$7+0.5,$J$67:$DK$121,ROWS($A$11:$A14)+2,FALSE)","v":2614},{"$f":"HLOOKUP(BZ$7+0.5,$J$67:$DK$121,ROWS($A$11:$A14)+2,FALSE)","v":1447},{"$f":"HLOOKUP(CA$7+0.5,$J$67:$DK$121,ROWS($A$11:$A14)+2,FALSE)","v":1000},{"$f":"HLOOKUP(CB$7+0.5,$J$67:$DK$121,ROWS($A$11:$A14)+2,FALSE)","v":852},{"$f":"HLOOKUP(CC$7+0.5,$J$67:$DK$121,ROWS($A$11:$A14)+2,FALSE)","v":997},{"$f":"HLOOKUP(CD$7+0.5,$J$67:$DK$121,ROWS($A$11:$A14)+2,FALSE)","v":442},{"$f":"HLOOKUP(CE$7+0.5,$J$67:$DK$121,ROWS($A$11:$A14)+2,FALSE)","v":593},{"$f":"HLOOKUP(CF$7+0.5,$J$67:$DK$121,ROWS($A$11:$A14)+2,FALSE)","v":1288},{"$f":"HLOOKUP(CG$7+0.5,$J$67:$DK$121,ROWS($A$11:$A14)+2,FALSE)","v":1083},{"$f":"HLOOKUP(CH$7+0.5,$J$67:$DK$121,ROWS($A$11:$A14)+2,FALSE)","v":3471},{"$f":"HLOOKUP(CI$7+0.5,$J$67:$DK$121,ROWS($A$11:$A14)+2,FALSE)","v":3050},{"$f":"HLOOKUP(CJ$7+0.5,$J$67:$DK$121,ROWS($A$11:$A14)+2,FALSE)","v":215},{"$f":"HLOOKUP(CK$7+0.5,$J$67:$DK$121,ROWS($A$11:$A14)+2,FALSE)","v":1099},{"$f":"HLOOKUP(CL$7+0.5,$J$67:$DK$121,ROWS($A$11:$A14)+2,FALSE)","v":536},{"$f":"HLOOKUP(CM$7+0.5,$J$67:$DK$121,ROWS($A$11:$A14)+2,FALSE)","v":1037},{"$f":"HLOOKUP(CN$7+0.5,$J$67:$DK$121,ROWS($A$11:$A14)+2,FALSE)","v":2202},{"$f":"HLOOKUP(CO$7+0.5,$J$67:$DK$121,ROWS($A$11:$A14)+2,FALSE)","v":443},{"$f":"HLOOKUP(CP$7+0.5,$J$67:$DK$121,ROWS($A$11:$A14)+2,FALSE)","v":1085},{"$f":"HLOOKUP(CQ$7+0.5,$J$67:$DK$121,ROWS($A$11:$A14)+2,FALSE)","v":1907},{"$f":"HLOOKUP(CR$7+0.5,$J$67:$DK$121,ROWS($A$11:$A14)+2,FALSE)","v":2615},{"$f":"HLOOKUP(CS$7+0.5,$J$67:$DK$121,ROWS($A$11:$A14)+2,FALSE)","v":939},{"$f":"HLOOKUP(CT$7+0.5,$J$67:$DK$121,ROWS($A$11:$A14)+2,FALSE)","v":444},{"$f":"HLOOKUP(CU$7+0.5,$J$67:$DK$121,ROWS($A$11:$A14)+2,FALSE)","v":2239},{"$f":"HLOOKUP(CV$7+0.5,$J$67:$DK$121,ROWS($A$11:$A14)+2,FALSE)","v":838},{"$f":"HLOOKUP(CW$7+0.5,$J$67:$DK$121,ROWS($A$11:$A14)+2,FALSE)","v":3200},{"$f":"HLOOKUP(CX$7+0.5,$J$67:$DK$121,ROWS($A$11:$A14)+2,FALSE)","v":1395},{"$f":"HLOOKUP(CY$7+0.5,$J$67:$DK$121,ROWS($A$11:$A14)+2,FALSE)","v":687},{"$f":"HLOOKUP(CZ$7+0.5,$J$67:$DK$121,ROWS($A$11:$A14)+2,FALSE)","v":573},{"$f":"HLOOKUP(DA$7+0.5,$J$67:$DK$121,ROWS($A$11:$A14)+2,FALSE)","v":776},{"$f":"HLOOKUP(DB$7+0.5,$J$67:$DK$121,ROWS($A$11:$A14)+2,FALSE)","v":1919},{"$f":"HLOOKUP(DC$7+0.5,$J$67:$DK$121,ROWS($A$11:$A14)+2,FALSE)","v":3541},{"$f":"HLOOKUP(DD$7+0.5,$J$67:$DK$121,ROWS($A$11:$A14)+2,FALSE)","v":1789},{"$f":"HLOOKUP(DE$7+0.5,$J$67:$DK$121,ROWS($A$11:$A14)+2,FALSE)","v":291},{"$f":"HLOOKUP(DF$7+0.5,$J$67:$DK$121,ROWS($A$11:$A14)+2,FALSE)","v":1031},{"$f":"HLOOKUP(DG$7+0.5,$J$67:$DK$121,ROWS($A$11:$A14)+2,FALSE)","v":2448},{"$f":"HLOOKUP(DH$7+0.5,$J$67:$DK$121,ROWS($A$11:$A14)+2,FALSE)","v":734},{"$f":"HLOOKUP(DI$7+0.5,$J$67:$DK$121,ROWS($A$11:$A14)+2,FALSE)","v":1168},{"$f":"HLOOKUP(DJ$7+0.5,$J$67:$DK$121,ROWS($A$11:$A14)+2,FALSE)","v":1401},{"$f":"HLOOKUP(DK$7+0.5,$J$67:$DK$121,ROWS($A$11:$A14)+2,FALSE)","v":1662}]
[null,"Arkansas",2912680,2753,2453347,16841,373046,14543,1.0883203012017093E-2,{"$f":"HLOOKUP(J$7,$J$67:$DK$121,ROWS($A$11:$A15)+2,FALSE)","v":76948},{"$f":"HLOOKUP(K$7,$J$67:$DK$121,ROWS($A$11:$A15)+2,FALSE)","v":374},{"$f":"HLOOKUP(L$7,$J$67:$DK$121,ROWS($A$11:$A15)+2,FALSE)","v":855},{"$f":"HLOOKUP(M$7,$J$67:$DK$121,ROWS($A$11:$A15)+2,FALSE)","v":1677},{"$f":"HLOOKUP(N$7,$J$67:$DK$121,ROWS($A$11:$A15)+2,FALSE)","v":"N/A"},{"$f":"HLOOKUP(O$7,$J$67:$DK$121,ROWS($A$11:$A15)+2,FALSE)","v":3525},{"$f":"HLOOKUP(P$7,$J$67:$DK$121,ROWS($A$11:$A15)+2,FALSE)","v":603},{"$f":"HLOOKUP(Q$7,$J$67:$DK$121,ROWS($A$11:$A15)+2,FALSE)","v":185},{"$f":"HLOOKUP(R$7,$J$67:$DK$121,ROWS($A$11:$A15)+2,FALSE)","v":0},{"$f":"HLOOKUP(S$7,$J$67:$DK$121,ROWS($A$11:$A15)+2,FALSE)","v":205},{"$f":"HLOOKUP(T$7,$J$67:$DK$121,ROWS($A$11:$A15)+2,FALSE)","v":2682},{"$f":"HLOOKUP(U$7,$J$67:$DK$121,ROWS($A$11:$A15)+2,FALSE)","v":1525},{"$f":"HLOOKUP(V$7,$J$67:$DK$121,ROWS($A$11:$A15)+2,FALSE)","v":0},{"$f":"HLOOKUP(W$7,$J$67:$DK$121,ROWS($A$11:$A15)+2,FALSE)","v":0},{"$f":"HLOOKUP(X$7,$J$67:$DK$121,ROWS($A$11:$A15)+2,FALSE)","v":3576},{"$f":"HLOOKUP(Y$7,$J$67:$DK$121,ROWS($A$11:$A15)+2,FALSE)","v":1172},{"$f":"HLOOKUP(Z$7,$J$67:$DK$121,ROWS($A$11:$A15)+2,FALSE)","v":409},{"$f":"HLOOKUP(AA$7,$J$67:$DK$121,ROWS($A$11:$A15)+2,FALSE)","v":1033},{"$f":"HLOOKUP(AB$7,$J$67:$DK$121,ROWS($A$11:$A15)+2,FALSE)","v":1310},{"$f":"HLOOKUP(AC$7,$J$67:$DK$121,ROWS($A$11:$A15)+2,FALSE)","v":3953},{"$f":"HLOOKUP(AD$7,$J$67:$DK$121,ROWS($A$11:$A15)+2,FALSE)","v":17},{"$f":"HLOOKUP(AE$7,$J$67:$DK$121,ROWS($A$11:$A15)+2,FALSE)","v":169},{"$f":"HLOOKUP(AF$7,$J$67:$DK$121,ROWS($A$11:$A15)+2,FALSE)","v":254},{"$f":"HLOOKUP(AG$7,$J$67:$DK$121,ROWS($A$11:$A15)+2,FALSE)","v":1283},{"$f":"HLOOKUP(AH$7,$J$67:$DK$121,ROWS($A$11:$A15)+2,FALSE)","v":295},{"$f":"HLOOKUP(AI$7,$J$67:$DK$121,ROWS($A$11:$A15)+2,FALSE)","v":3689},{"$f":"HLOOKUP(AJ$7,$J$67:$DK$121,ROWS($A$11:$A15)+2,FALSE)","v":9105},{"$f":"HLOOKUP(AK$7,$J$67:$DK$121,ROWS($A$11:$A15)+2,FALSE)","v":258},{"$f":"HLOOKUP(AL$7,$J$67:$DK$121,ROWS($A$11:$A15)+2,FALSE)","v":166},{"$f":"HLOOKUP(AM$7,$J$67:$DK$121,ROWS($A$11:$A15)+2,FALSE)","v":121},{"$f":"HLOOKUP(AN$7,$J$67:$DK$121,ROWS($A$11:$A15)+2,FALSE)","v":0},{"$f":"HLOOKUP(AO$7,$J$67:$DK$121,ROWS($A$11:$A15)+2,FALSE)","v":157},{"$f":"HLOOKUP(AP$7,$J$67:$DK$121,ROWS($A$11:$A15)+2,FALSE)","v":547},{"$f":"HLOOKUP(AQ$7,$J$67:$DK$121,ROWS($A$11:$A15)+2,FALSE)","v":2262},{"$f":"HLOOKUP(AR$7,$J$67:$DK$121,ROWS($A$11:$A15)+2,FALSE)","v":3057},{"$f":"HLOOKUP(AS$7,$J$67:$DK$121,ROWS($A$11:$A15)+2,FALSE)","v":0},{"$f":"HLOOKUP(AT$7,$J$67:$DK$121,ROWS($A$11:$A15)+2,FALSE)","v":1135},{"$f":"HLOOKUP(AU$7,$J$67:$DK$121,ROWS($A$11:$A15)+2,FALSE)","v":9938},{"$f":"HLOOKUP(AV$7,$J$67:$DK$121,ROWS($A$11:$A15)+2,FALSE)","v":193},{"$f":"HLOOKUP(AW$7,$J$67:$DK$121,ROWS($A$11:$A15)+2,FALSE)","v":516},{"$f":"HLOOKUP(AX$7,$J$67:$DK$121,ROWS($A$11:$A15)+2,FALSE)","v":59},{"$f":"HLOOKUP(AY$7,$J$67:$DK$121,ROWS($A$11:$A15)+2,FALSE)","v":52},{"$f":"HLOOKUP(AZ$7,$J$67:$DK$121,ROWS($A$11:$A15)+2,FALSE)","v":673},{"$f":"HLOOKUP(BA$7,$J$67:$DK$121,ROWS($A$11:$A15)+2,FALSE)","v":4195},{"$f":"HLOOKUP(BB$7,$J$67:$DK$121,ROWS($A$11:$A15)+2,FALSE)","v":11767},{"$f":"HLOOKUP(BC$7,$J$67:$DK$121,ROWS($A$11:$A15)+2,FALSE)","v":269},{"$f":"HLOOKUP(BD$7,$J$67:$DK$121,ROWS($A$11:$A15)+2,FALSE)","v":0},{"$f":"HLOOKUP(BE$7,$J$67:$DK$121,ROWS($A$11:$A15)+2,FALSE)","v":1159},{"$f":"HLOOKUP(BF$7,$J$67:$DK$121,ROWS($A$11:$A15)+2,FALSE)","v":251},{"$f":"HLOOKUP(BG$7,$J$67:$DK$121,ROWS($A$11:$A15)+2,FALSE)","v":84},{"$f":"HLOOKUP(BH$7,$J$67:$DK$121,ROWS($A$11:$A15)+2,FALSE)","v":695},{"$f":"HLOOKUP(BI$7,$J$67:$DK$121,ROWS($A$11:$A15)+2,FALSE)","v":1498},{"$f":"HLOOKUP(BJ$7,$J$67:$DK$121,ROWS($A$11:$A15)+2,FALSE)","v":0},{"$f":"HLOOKUP(BK$7+0.5,$J$67:$DK$121,ROWS($A$11:$A15)+2,FALSE)","v":7223},{"$f":"HLOOKUP(BL$7+0.5,$J$67:$DK$121,ROWS($A$11:$A15)+2,FALSE)","v":293},{"$f":"HLOOKUP(BM$7+0.5,$J$67:$DK$121,ROWS($A$11:$A15)+2,FALSE)","v":906},{"$f":"HLOOKUP(BN$7+0.5,$J$67:$DK$121,ROWS($A$11:$A15)+2,FALSE)","v":954},{"$f":"HLOOKUP(BO$7+0.5,$J$67:$DK$121,ROWS($A$11:$A15)+2,FALSE)","v":"N/A"},{"$f":"HLOOKUP(BP$7+0.5,$J$67:$DK$121,ROWS($A$11:$A15)+2,FALSE)","v":1202},{"$f":"HLOOKUP(BQ$7+0.5,$J$67:$DK$121,ROWS($A$11:$A15)+2,FALSE)","v":369},{"$f":"HLOOKUP(BR$7+0.5,$J$67:$DK$121,ROWS($A$11:$A15)+2,FALSE)","v":264},{"$f":"HLOOKUP(BS$7+0.5,$J$67:$DK$121,ROWS($A$11:$A15)+2,FALSE)","v":184},{"$f":"HLOOKUP(BT$7+0.5,$J$67:$DK$121,ROWS($A$11:$A15)+2,FALSE)","v":232},{"$f":"HLOOKUP(BU$7+0.5,$J$67:$DK$121,ROWS($A$11:$A15)+2,FALSE)","v":1052},{"$f":"HLOOKUP(BV$7+0.5,$J$67:$DK$121,ROWS($A$11:$A15)+2,FALSE)","v":1006},{"$f":"HLOOKUP(BW$7+0.5,$J$67:$DK$121,ROWS($A$11:$A15)+2,FALSE)","v":184},{"$f":"HLOOKUP(BX$7+0.5,$J$67:$DK$121,ROWS($A$11:$A15)+2,FALSE)","v":184},{"$f":"HLOOKUP(BY$7+0.5,$J$67:$DK$121,ROWS($A$11:$A15)+2,FALSE)","v":1286},{"$f":"HLOOKUP(BZ$7+0.5,$J$67:$DK$121,ROWS($A$11:$A15)+2,FALSE)","v":587},{"$f":"HLOOKUP(CA$7+0.5,$J$67:$DK$121,ROWS($A$11:$A15)+2,FALSE)","v":330},{"$f":"HLOOKUP(CB$7+0.5,$J$67:$DK$121,ROWS($A$11:$A15)+2,FALSE)","v":539},{"$f":"HLOOKUP(CC$7+0.5,$J$67:$DK$121,ROWS($A$11:$A15)+2,FALSE)","v":884},{"$f":"HLOOKUP(CD$7+0.5,$J$67:$DK$121,ROWS($A$11:$A15)+2,FALSE)","v":1340},{"$f":"HLOOKUP(CE$7+0.5,$J$67:$DK$121,ROWS($A$11:$A15)+2,FALSE)","v":39},{"$f":"HLOOKUP(CF$7+0.5,$J$67:$DK$121,ROWS($A$11:$A15)+2,FALSE)","v":209},{"$f":"HLOOKUP(CG$7+0.5,$J$67:$DK$121,ROWS($A$11:$A15)+2,FALSE)","v":262},{"$f":"HLOOKUP(CH$7+0.5,$J$67:$DK$121,ROWS($A$11:$A15)+2,FALSE)","v":607},{"$f":"HLOOKUP(CI$7+0.5,$J$67:$DK$121,ROWS($A$11:$A15)+2,FALSE)","v":285},{"$f":"HLOOKUP(CJ$7+0.5,$J$67:$DK$121,ROWS($A$11:$A15)+2,FALSE)","v":2537},{"$f":"HLOOKUP(CK$7+0.5,$J$67:$DK$121,ROWS($A$11:$A15)+2,FALSE)","v":2916},{"$f":"HLOOKUP(CL$7+0.5,$J$67:$DK$121,ROWS($A$11:$A15)+2,FALSE)","v":293},{"$f":"HLOOKUP(CM$7+0.5,$J$67:$DK$121,ROWS($A$11:$A15)+2,FALSE)","v":201},{"$f":"HLOOKUP(CN$7+0.5,$J$67:$DK$121,ROWS($A$11:$A15)+2,FALSE)","v":161},{"$f":"HLOOKUP(CO$7+0.5,$J$67:$DK$121,ROWS($A$11:$A15)+2,FALSE)","v":184},{"$f":"HLOOKUP(CP$7+0.5,$J$67:$DK$121,ROWS($A$11:$A15)+2,FALSE)","v":171},{"$f":"HLOOKUP(CQ$7+0.5,$J$67:$DK$121,ROWS($A$11:$A15)+2,FALSE)","v":482},{"$f":"HLOOKUP(CR$7+0.5,$J$67:$DK$121,ROWS($A$11:$A15)+2,FALSE)","v":1559},{"$f":"HLOOKUP(CS$7+0.5,$J$67:$DK$121,ROWS($A$11:$A15)+2,FALSE)","v":2173},{"$f":"HLOOKUP(CT$7+0.5,$J$67:$DK$121,ROWS($A$11:$A15)+2,FALSE)","v":184},{"$f":"HLOOKUP(CU$7+0.5,$J$67:$DK$121,ROWS($A$11:$A15)+2,FALSE)","v":626},{"$f":"HLOOKUP(CV$7+0.5,$J$67:$DK$121,ROWS($A$11:$A15)+2,FALSE)","v":2371},{"$f":"HLOOKUP(CW$7+0.5,$J$67:$DK$121,ROWS($A$11:$A15)+2,FALSE)","v":179},{"$f":"HLOOKUP(CX$7+0.5,$J$67:$DK$121,ROWS($A$11:$A15)+2,FALSE)","v":475},{"$f":"HLOOKUP(CY$7+0.5,$J$67:$DK$121,ROWS($A$11:$A15)+2,FALSE)","v":103},{"$f":"HLOOKUP(CZ$7+0.5,$J$67:$DK$121,ROWS($A$11:$A15)+2,FALSE)","v":71},{"$f":"HLOOKUP(DA$7+0.5,$J$67:$DK$121,ROWS($A$11:$A15)+2,FALSE)","v":588},{"$f":"HLOOKUP(DB$7+0.5,$J$67:$DK$121,ROWS($A$11:$A15)+2,FALSE)","v":1127},{"$f":"HLOOKUP(DC$7+0.5,$J$67:$DK$121,ROWS($A$11:$A15)+2,FALSE)","v":2841},{"$f":"HLOOKUP(DD$7+0.5,$J$67:$DK$121,ROWS($A$11:$A15)+2,FALSE)","v":216},{"$f":"HLOOKUP(DE$7+0.5,$J$67:$DK$121,ROWS($A$11:$A15)+2,FALSE)","v":184},{"$f":"HLOOKUP(DF$7+0.5,$J$67:$DK$121,ROWS($A$11:$A15)+2,FALSE)","v":824},{"$f":"HLOOKUP(DG$7+0.5,$J$67:$DK$121,ROWS($A$11:$A15)+2,FALSE)","v":226},{"$f":"HLOOKUP(DH$7+0.5,$J$67:$DK$121,ROWS($A$11:$A15)+2,FALSE)","v":148},{"$f":"HLOOKUP(DI$7+0.5,$J$67:$DK$121,ROWS($A$11:$A15)+2,FALSE)","v":467},{"$f":"HLOOKUP(DJ$7+0.5,$J$67:$DK$121,ROWS($A$11:$A15)+2,FALSE)","v":2098},{"$f":"HLOOKUP(DK$7+0.5,$J$67:$DK$121,ROWS($A$11:$A15)+2,FALSE)","v":184}]
[null,"California",37572738,10274,31777868,67939,5046618,65422,6.9818516635326844E-2,{"$f":"HLOOKUP(J$7,$J$67:$DK$121,ROWS($A$11:$A16)+2,FALSE)","v":493641},{"$f":"HLOOKUP(K$7,$J$67:$DK$121,ROWS($A$11:$A16)+2,FALSE)","v":2509},{"$f":"HLOOKUP(L$7,$J$67:$DK$121,ROWS($A$11:$A16)+2,FALSE)","v":6995},{"$f":"HLOOKUP(M$7,$J$67:$DK$121,ROWS($A$11:$A16)+2,FALSE)","v":38916},{"$f":"HLOOKUP(N$7,$J$67:$DK$121,ROWS($A$11:$A16)+2,FALSE)","v":3472},{"$f":"HLOOKUP(O$7,$J$67:$DK$121,ROWS($A$11:$A16)+2,FALSE)","v":"N/A"},{"$f":"HLOOKUP(P$7,$J$67:$DK$121,ROWS($A$11:$A16)+2,FALSE)","v":15150},{"$f":"HLOOKUP(Q$7,$J$67:$DK$121,ROWS($A$11:$A16)+2,FALSE)","v":6764},{"$f":"HLOOKUP(R$7,$J$67:$DK$121,ROWS($A$11:$A16)+2,FALSE)","v":474},{"$f":"HLOOKUP(S$7,$J$67:$DK$121,ROWS($A$11:$A16)+2,FALSE)","v":3199},{"$f":"HLOOKUP(T$7,$J$67:$DK$121,ROWS($A$11:$A16)+2,FALSE)","v":21004},{"$f":"HLOOKUP(U$7,$J$67:$DK$121,ROWS($A$11:$A16)+2,FALSE)","v":10790},{"$f":"HLOOKUP(V$7,$J$67:$DK$121,ROWS($A$11:$A16)+2,FALSE)","v":11906},{"$f":"HLOOKUP(W$7,$J$67:$DK$121,ROWS($A$11:$A16)+2,FALSE)","v":5331},{"$f":"HLOOKUP(X$7,$J$67:$DK$121,ROWS($A$11:$A16)+2,FALSE)","v":21251},{"$f":"HLOOKUP(Y$7,$J$67:$DK$121,ROWS($A$11:$A16)+2,FALSE)","v":5891},{"$f":"HLOOKUP(Z$7,$J$67:$DK$121,ROWS($A$11:$A16)+2,FALSE)","v":2284},{"$f":"HLOOKUP(AA$7,$J$67:$DK$121,ROWS($A$11:$A16)+2,FALSE)","v":2790},{"$f":"HLOOKUP(AB$7,$J$67:$DK$121,ROWS($A$11:$A16)+2,FALSE)","v":3763},{"$f":"HLOOKUP(AC$7,$J$67:$DK$121,ROWS($A$11:$A16)+2,FALSE)","v":5180},{"$f":"HLOOKUP(AD$7,$J$67:$DK$121,ROWS($A$11:$A16)+2,FALSE)","v":1256},{"$f":"HLOOKUP(AE$7,$J$67:$DK$121,ROWS($A$11:$A16)+2,FALSE)","v":7902},{"$f":"HLOOKUP(AF$7,$J$67:$DK$121,ROWS($A$11:$A16)+2,FALSE)","v":14356},{"$f":"HLOOKUP(AG$7,$J$67:$DK$121,ROWS($A$11:$A16)+2,FALSE)","v":8921},{"$f":"HLOOKUP(AH$7,$J$67:$DK$121,ROWS($A$11:$A16)+2,FALSE)","v":8539},{"$f":"HLOOKUP(AI$7,$J$67:$DK$121,ROWS($A$11:$A16)+2,FALSE)","v":2556},{"$f":"HLOOKUP(AJ$7,$J$67:$DK$121,ROWS($A$11:$A16)+2,FALSE)","v":6729},{"$f":"HLOOKUP(AK$7,$J$67:$DK$121,ROWS($A$11:$A16)+2,FALSE)","v":3060},{"$f":"HLOOKUP(AL$7,$J$67:$DK$121,ROWS($A$11:$A16)+2,FALSE)","v":3302},{"$f":"HLOOKUP(AM$7,$J$67:$DK$121,ROWS($A$11:$A16)+2,FALSE)","v":27968},{"$f":"HLOOKUP(AN$7,$J$67:$DK$121,ROWS($A$11:$A16)+2,FALSE)","v":1327},{"$f":"HLOOKUP(AO$7,$J$67:$DK$121,ROWS($A$11:$A16)+2,FALSE)","v":12057},{"$f":"HLOOKUP(AP$7,$J$67:$DK$121,ROWS($A$11:$A16)+2,FALSE)","v":5921},{"$f":"HLOOKUP(AQ$7,$J$67:$DK$121,ROWS($A$11:$A16)+2,FALSE)","v":31261},{"$f":"HLOOKUP(AR$7,$J$67:$DK$121,ROWS($A$11:$A16)+2,FALSE)","v":11195},{"$f":"HLOOKUP(AS$7,$J$67:$DK$121,ROWS($A$11:$A16)+2,FALSE)","v":1827},{"$f":"HLOOKUP(AT$7,$J$67:$DK$121,ROWS($A$11:$A16)+2,FALSE)","v":10653},{"$f":"HLOOKUP(AU$7,$J$67:$DK$121,ROWS($A$11:$A16)+2,FALSE)","v":6671},{"$f":"HLOOKUP(AV$7,$J$67:$DK$121,ROWS($A$11:$A16)+2,FALSE)","v":22724},{"$f":"HLOOKUP(AW$7,$J$67:$DK$121,ROWS($A$11:$A16)+2,FALSE)","v":10466},{"$f":"HLOOKUP(AX$7,$J$67:$DK$121,ROWS($A$11:$A16)+2,FALSE)","v":1648},{"$f":"HLOOKUP(AY$7,$J$67:$DK$121,ROWS($A$11:$A16)+2,FALSE)","v":4110},{"$f":"HLOOKUP(AZ$7,$J$67:$DK$121,ROWS($A$11:$A16)+2,FALSE)","v":826},{"$f":"HLOOKUP(BA$7,$J$67:$DK$121,ROWS($A$11:$A16)+2,FALSE)","v":5802},{"$f":"HLOOKUP(BB$7,$J$67:$DK$121,ROWS($A$11:$A16)+2,FALSE)","v":43005},{"$f":"HLOOKUP(BC$7,$J$67:$DK$121,ROWS($A$11:$A16)+2,FALSE)","v":12172},{"$f":"HLOOKUP(BD$7,$J$67:$DK$121,ROWS($A$11:$A16)+2,FALSE)","v":544},{"$f":"HLOOKUP(BE$7,$J$67:$DK$121,ROWS($A$11:$A16)+2,FALSE)","v":15625},{"$f":"HLOOKUP(BF$7,$J$67:$DK$121,ROWS($A$11:$A16)+2,FALSE)","v":34569},{"$f":"HLOOKUP(BG$7,$J$67:$DK$121,ROWS($A$11:$A16)+2,FALSE)","v":1413},{"$f":"HLOOKUP(BH$7,$J$67:$DK$121,ROWS($A$11:$A16)+2,FALSE)","v":5681},{"$f":"HLOOKUP(BI$7,$J$67:$DK$121,ROWS($A$11:$A16)+2,FALSE)","v":1886},{"$f":"HLOOKUP(BJ$7,$J$67:$DK$121,ROWS($A$11:$A16)+2,FALSE)","v":2323},{"$f":"HLOOKUP(BK$7+0.5,$J$67:$DK$121,ROWS($A$11:$A16)+2,FALSE)","v":19652},{"$f":"HLOOKUP(BL$7+0.5,$J$67:$DK$121,ROWS($A$11:$A16)+2,FALSE)","v":983},{"$f":"HLOOKUP(BM$7+0.5,$J$67:$DK$121,ROWS($A$11:$A16)+2,FALSE)","v":1948},{"$f":"HLOOKUP(BN$7+0.5,$J$67:$DK$121,ROWS($A$11:$A16)+2,FALSE)","v":5726},{"$f":"HLOOKUP(BO$7+0.5,$J$67:$DK$121,ROWS($A$11:$A16)+2,FALSE)","v":1354},{"$f":"HLOOKUP(BP$7+0.5,$J$67:$DK$121,ROWS($A$11:$A16)+2,FALSE)","v":"N/A"},{"$f":"HLOOKUP(BQ$7+0.5,$J$67:$DK$121,ROWS($A$11:$A16)+2,FALSE)","v":2598},{"$f":"HLOOKUP(BR$7+0.5,$J$67:$DK$121,ROWS($A$11:$A16)+2,FALSE)","v":2194},{"$f":"HLOOKUP(BS$7+0.5,$J$67:$DK$121,ROWS($A$11:$A16)+2,FALSE)","v":413},{"$f":"HLOOKUP(BT$7+0.5,$J$67:$DK$121,ROWS($A$11:$A16)+2,FALSE)","v":1061},{"$f":"HLOOKUP(BU$7+0.5,$J$67:$DK$121,ROWS($A$11:$A16)+2,FALSE)","v":3394},{"$f":"HLOOKUP(BV$7+0.5,$J$67:$DK$121,ROWS($A$11:$A16)+2,FALSE)","v":2458},{"$f":"HLOOKUP(BW$7+0.5,$J$67:$DK$121,ROWS($A$11:$A16)+2,FALSE)","v":2720},{"$f":"HLOOKUP(BX$7+0.5,$J$67:$DK$121,ROWS($A$11:$A16)+2,FALSE)","v":1519},{"$f":"HLOOKUP(BY$7+0.5,$J$67:$DK$121,ROWS($A$11:$A16)+2,FALSE)","v":3521},{"$f":"HLOOKUP(BZ$7+0.5,$J$67:$DK$121,ROWS($A$11:$A16)+2,FALSE)","v":1629},{"$f":"HLOOKUP(CA$7+0.5,$J$67:$DK$121,ROWS($A$11:$A16)+2,FALSE)","v":987},{"$f":"HLOOKUP(CB$7+0.5,$J$67:$DK$121,ROWS($A$11:$A16)+2,FALSE)","v":984},{"$f":"HLOOKUP(CC$7+0.5,$J$67:$DK$121,ROWS($A$11:$A16)+2,FALSE)","v":1292},{"$f":"HLOOKUP(CD$7+0.5,$J$67:$DK$121,ROWS($A$11:$A16)+2,FALSE)","v":1525},{"$f":"HLOOKUP(CE$7+0.5,$J$67:$DK$121,ROWS($A$11:$A16)+2,FALSE)","v":951},{"$f":"HLOOKUP(CF$7+0.5,$J$67:$DK$121,ROWS($A$11:$A16)+2,FALSE)","v":2347},{"$f":"HLOOKUP(CG$7+0.5,$J$67:$DK$121,ROWS($A$11:$A16)+2,FALSE)","v":2682},{"$f":"HLOOKUP(CH$7+0.5,$J$67:$DK$121,ROWS($A$11:$A16)+2,FALSE)","v":2069},{"$f":"HLOOKUP(CI$7+0.5,$J$67:$DK$121,ROWS($A$11:$A16)+2,FALSE)","v":1942},{"$f":"HLOOKUP(CJ$7+0.5,$J$67:$DK$121,ROWS($A$11:$A16)+2,FALSE)","v":993},{"$f":"HLOOKUP(CK$7+0.5,$J$67:$DK$121,ROWS($A$11:$A16)+2,FALSE)","v":1595},{"$f":"HLOOKUP(CL$7+0.5,$J$67:$DK$121,ROWS($A$11:$A16)+2,FALSE)","v":1275},{"$f":"HLOOKUP(CM$7+0.5,$J$67:$DK$121,ROWS($A$11:$A16)+2,FALSE)","v":2007},{"$f":"HLOOKUP(CN$7+0.5,$J$67:$DK$121,ROWS($A$11:$A16)+2,FALSE)","v":3857},{"$f":"HLOOKUP(CO$7+0.5,$J$67:$DK$121,ROWS($A$11:$A16)+2,FALSE)","v":615},{"$f":"HLOOKUP(CP$7+0.5,$J$67:$DK$121,ROWS($A$11:$A16)+2,FALSE)","v":2447},{"$f":"HLOOKUP(CQ$7+0.5,$J$67:$DK$121,ROWS($A$11:$A16)+2,FALSE)","v":2240},{"$f":"HLOOKUP(CR$7+0.5,$J$67:$DK$121,ROWS($A$11:$A16)+2,FALSE)","v":5136},{"$f":"HLOOKUP(CS$7+0.5,$J$67:$DK$121,ROWS($A$11:$A16)+2,FALSE)","v":2366},{"$f":"HLOOKUP(CT$7+0.5,$J$67:$DK$121,ROWS($A$11:$A16)+2,FALSE)","v":1272},{"$f":"HLOOKUP(CU$7+0.5,$J$67:$DK$121,ROWS($A$11:$A16)+2,FALSE)","v":2869},{"$f":"HLOOKUP(CV$7+0.5,$J$67:$DK$121,ROWS($A$11:$A16)+2,FALSE)","v":1795},{"$f":"HLOOKUP(CW$7+0.5,$J$67:$DK$121,ROWS($A$11:$A16)+2,FALSE)","v":3271},{"$f":"HLOOKUP(CX$7+0.5,$J$67:$DK$121,ROWS($A$11:$A16)+2,FALSE)","v":2392},{"$f":"HLOOKUP(CY$7+0.5,$J$67:$DK$121,ROWS($A$11:$A16)+2,FALSE)","v":697},{"$f":"HLOOKUP(CZ$7+0.5,$J$67:$DK$121,ROWS($A$11:$A16)+2,FALSE)","v":1492},{"$f":"HLOOKUP(DA$7+0.5,$J$67:$DK$121,ROWS($A$11:$A16)+2,FALSE)","v":674},{"$f":"HLOOKUP(DB$7+0.5,$J$67:$DK$121,ROWS($A$11:$A16)+2,FALSE)","v":1880},{"$f":"HLOOKUP(DC$7+0.5,$J$67:$DK$121,ROWS($A$11:$A16)+2,FALSE)","v":5519},{"$f":"HLOOKUP(DD$7+0.5,$J$67:$DK$121,ROWS($A$11:$A16)+2,FALSE)","v":2457},{"$f":"HLOOKUP(DE$7+0.5,$J$67:$DK$121,ROWS($A$11:$A16)+2,FALSE)","v":345},{"$f":"HLOOKUP(DF$7+0.5,$J$67:$DK$121,ROWS($A$11:$A16)+2,FALSE)","v":3457},{"$f":"HLOOKUP(DG$7+0.5,$J$67:$DK$121,ROWS($A$11:$A16)+2,FALSE)","v":4540},{"$f":"HLOOKUP(DH$7+0.5,$J$67:$DK$121,ROWS($A$11:$A16)+2,FALSE)","v":1135},{"$f":"HLOOKUP(DI$7+0.5,$J$67:$DK$121,ROWS($A$11:$A16)+2,FALSE)","v":1716},{"$f":"HLOOKUP(DJ$7+0.5,$J$67:$DK$121,ROWS($A$11:$A16)+2,FALSE)","v":1117},{"$f":"HLOOKUP(DK$7+0.5,$J$67:$DK$121,ROWS($A$11:$A16)+2,FALSE)","v":1076}]
[null,"Colorado",5123944,2939,4131357,21752,751921,19587,2.9002828009099979E-2,{"$f":"HLOOKUP(J$7,$J$67:$DK$121,ROWS($A$11:$A17)+2,FALSE)","v":205060},{"$f":"HLOOKUP(K$7,$J$67:$DK$121,ROWS($A$11:$A17)+2,FALSE)","v":3108},{"$f":"HLOOKUP(L$7,$J$67:$DK$121,ROWS($A$11:$A17)+2,FALSE)","v":3457},{"$f":"HLOOKUP(M$7,$J$67:$DK$121,ROWS($A$11:$A17)+2,FALSE)","v":10589},{"$f":"HLOOKUP(N$7,$J$67:$DK$121,ROWS($A$11:$A17)+2,FALSE)","v":1043},{"$f":"HLOOKUP(O$7,$J$67:$DK$121,ROWS($A$11:$A17)+2,FALSE)","v":22152},{"$f":"HLOOKUP(P$7,$J$67:$DK$121,ROWS($A$11:$A17)+2,FALSE)","v":"N/A"},{"$f":"HLOOKUP(Q$7,$J$67:$DK$121,ROWS($A$11:$A17)+2,FALSE)","v":1317},{"$f":"HLOOKUP(R$7,$J$67:$DK$121,ROWS($A$11:$A17)+2,FALSE)","v":70},{"$f":"HLOOKUP(S$7,$J$67:$DK$121,ROWS($A$11:$A17)+2,FALSE)","v":488},{"$f":"HLOOKUP(T$7,$J$67:$DK$121,ROWS($A$11:$A17)+2,FALSE)","v":8615},{"$f":"HLOOKUP(U$7,$J$67:$DK$121,ROWS($A$11:$A17)+2,FALSE)","v":5834},{"$f":"HLOOKUP(V$7,$J$67:$DK$121,ROWS($A$11:$A17)+2,FALSE)","v":2536},{"$f":"HLOOKUP(W$7,$J$67:$DK$121,ROWS($A$11:$A17)+2,FALSE)","v":2660},{"$f":"HLOOKUP(X$7,$J$67:$DK$121,ROWS($A$11:$A17)+2,FALSE)","v":6374},{"$f":"HLOOKUP(Y$7,$J$67:$DK$121,ROWS($A$11:$A17)+2,FALSE)","v":4336},{"$f":"HLOOKUP(Z$7,$J$67:$DK$121,ROWS($A$11:$A17)+2,FALSE)","v":2776},{"$f":"HLOOKUP(AA$7,$J$67:$DK$121,ROWS($A$11:$A17)+2,FALSE)","v":5283},{"$f":"HLOOKUP(AB$7,$J$67:$DK$121,ROWS($A$11:$A17)+2,FALSE)","v":2500},{"$f":"HLOOKUP(AC$7,$J$67:$DK$121,ROWS($A$11:$A17)+2,FALSE)","v":5048},{"$f":"HLOOKUP(AD$7,$J$67:$DK$121,ROWS($A$11:$A17)+2,FALSE)","v":20},{"$f":"HLOOKUP(AE$7,$J$67:$DK$121,ROWS($A$11:$A17)+2,FALSE)","v":2844},{"$f":"HLOOKUP(AF$7,$J$67:$DK$121,ROWS($A$11:$A17)+2,FALSE)","v":5939},{"$f":"HLOOKUP(AG$7,$J$67:$DK$121,ROWS($A$11:$A17)+2,FALSE)","v":3343},{"$f":"HLOOKUP(AH$7,$J$67:$DK$121,ROWS($A$11:$A17)+2,FALSE)","v":2992},{"$f":"HLOOKUP(AI$7,$J$67:$DK$121,ROWS($A$11:$A17)+2,FALSE)","v":835},{"$f":"HLOOKUP(AJ$7,$J$67:$DK$121,ROWS($A$11:$A17)+2,FALSE)","v":3771},{"$f":"HLOOKUP(AK$7,$J$67:$DK$121,ROWS($A$11:$A17)+2,FALSE)","v":2021},{"$f":"HLOOKUP(AL$7,$J$67:$DK$121,ROWS($A$11:$A17)+2,FALSE)","v":4472},{"$f":"HLOOKUP(AM$7,$J$67:$DK$121,ROWS($A$11:$A17)+2,FALSE)","v":3789},{"$f":"HLOOKUP(AN$7,$J$67:$DK$121,ROWS($A$11:$A17)+2,FALSE)","v":679},{"$f":"HLOOKUP(AO$7,$J$67:$DK$121,ROWS($A$11:$A17)+2,FALSE)","v":2464},{"$f":"HLOOKUP(AP$7,$J$67:$DK$121,ROWS($A$11:$A17)+2,FALSE)","v":6520},{"$f":"HLOOKUP(AQ$7,$J$67:$DK$121,ROWS($A$11:$A17)+2,FALSE)","v":7250},{"$f":"HLOOKUP(AR$7,$J$67:$DK$121,ROWS($A$11:$A17)+2,FALSE)","v":4378},{"$f":"HLOOKUP(AS$7,$J$67:$DK$121,ROWS($A$11:$A17)+2,FALSE)","v":1918},{"$f":"HLOOKUP(AT$7,$J$67:$DK$121,ROWS($A$11:$A17)+2,FALSE)","v":4533},{"$f":"HLOOKUP(AU$7,$J$67:$DK$121,ROWS($A$11:$A17)+2,FALSE)","v":4582},{"$f":"HLOOKUP(AV$7,$J$67:$DK$121,ROWS($A$11:$A17)+2,FALSE)","v":2419},{"$f":"HLOOKUP(AW$7,$J$67:$DK$121,ROWS($A$11:$A17)+2,FALSE)","v":3950},{"$f":"HLOOKUP(AX$7,$J$67:$DK$121,ROWS($A$11:$A17)+2,FALSE)","v":137},{"$f":"HLOOKUP(AY$7,$J$67:$DK$121,ROWS($A$11:$A17)+2,FALSE)","v":2383},{"$f":"HLOOKUP(AZ$7,$J$67:$DK$121,ROWS($A$11:$A17)+2,FALSE)","v":756},{"$f":"HLOOKUP(BA$7,$J$67:$DK$121,ROWS($A$11:$A17)+2,FALSE)","v":2535},{"$f":"HLOOKUP(BB$7,$J$67:$DK$121,ROWS($A$11:$A17)+2,FALSE)","v":17355},{"$f":"HLOOKUP(BC$7,$J$67:$DK$121,ROWS($A$11:$A17)+2,FALSE)","v":6398},{"$f":"HLOOKUP(BD$7,$J$67:$DK$121,ROWS($A$11:$A17)+2,FALSE)","v":503},{"$f":"HLOOKUP(BE$7,$J$67:$DK$121,ROWS($A$11:$A17)+2,FALSE)","v":3796},{"$f":"HLOOKUP(BF$7,$J$67:$DK$121,ROWS($A$11:$A17)+2,FALSE)","v":4853},{"$f":"HLOOKUP(BG$7,$J$67:$DK$121,ROWS($A$11:$A17)+2,FALSE)","v":837},{"$f":"HLOOKUP(BH$7,$J$67:$DK$121,ROWS($A$11:$A17)+2,FALSE)","v":3000},{"$f":"HLOOKUP(BI$7,$J$67:$DK$121,ROWS($A$11:$A17)+2,FALSE)","v":5602},{"$f":"HLOOKUP(BJ$7,$J$67:$DK$121,ROWS($A$11:$A17)+2,FALSE)","v":1144},{"$f":"HLOOKUP(BK$7+0.5,$J$67:$DK$121,ROWS($A$11:$A17)+2,FALSE)","v":11855},{"$f":"HLOOKUP(BL$7+0.5,$J$67:$DK$121,ROWS($A$11:$A17)+2,FALSE)","v":1610},{"$f":"HLOOKUP(BM$7+0.5,$J$67:$DK$121,ROWS($A$11:$A17)+2,FALSE)","v":1695},{"$f":"HLOOKUP(BN$7+0.5,$J$67:$DK$121,ROWS($A$11:$A17)+2,FALSE)","v":2218},{"$f":"HLOOKUP(BO$7+0.5,$J$67:$DK$121,ROWS($A$11:$A17)+2,FALSE)","v":580},{"$f":"HLOOKUP(BP$7+0.5,$J$67:$DK$121,ROWS($A$11:$A17)+2,FALSE)","v":4260},{"$f":"HLOOKUP(BQ$7+0.5,$J$67:$DK$121,ROWS($A$11:$A17)+2,FALSE)","v":"N/A"},{"$f":"HLOOKUP(BR$7+0.5,$J$67:$DK$121,ROWS($A$11:$A17)+2,FALSE)","v":677},{"$f":"HLOOKUP(BS$7+0.5,$J$67:$DK$121,ROWS($A$11:$A17)+2,FALSE)","v":133},{"$f":"HLOOKUP(BT$7+0.5,$J$67:$DK$121,ROWS($A$11:$A17)+2,FALSE)","v":387},{"$f":"HLOOKUP(BU$7+0.5,$J$67:$DK$121,ROWS($A$11:$A17)+2,FALSE)","v":1907},{"$f":"HLOOKUP(BV$7+0.5,$J$67:$DK$121,ROWS($A$11:$A17)+2,FALSE)","v":2086},{"$f":"HLOOKUP(BW$7+0.5,$J$67:$DK$121,ROWS($A$11:$A17)+2,FALSE)","v":1020},{"$f":"HLOOKUP(BX$7+0.5,$J$67:$DK$121,ROWS($A$11:$A17)+2,FALSE)","v":1468},{"$f":"HLOOKUP(BY$7+0.5,$J$67:$DK$121,ROWS($A$11:$A17)+2,FALSE)","v":1617},{"$f":"HLOOKUP(BZ$7+0.5,$J$67:$DK$121,ROWS($A$11:$A17)+2,FALSE)","v":2128},{"$f":"HLOOKUP(CA$7+0.5,$J$67:$DK$121,ROWS($A$11:$A17)+2,FALSE)","v":1486},{"$f":"HLOOKUP(CB$7+0.5,$J$67:$DK$121,ROWS($A$11:$A17)+2,FALSE)","v":1843},{"$f":"HLOOKUP(CC$7+0.5,$J$67:$DK$121,ROWS($A$11:$A17)+2,FALSE)","v":2135},{"$f":"HLOOKUP(CD$7+0.5,$J$67:$DK$121,ROWS($A$11:$A17)+2,FALSE)","v":2468},{"$f":"HLOOKUP(CE$7+0.5,$J$67:$DK$121,ROWS($A$11:$A17)+2,FALSE)","v":40},{"$f":"HLOOKUP(CF$7+0.5,$J$67:$DK$121,ROWS($A$11:$A17)+2,FALSE)","v":1196},{"$f":"HLOOKUP(CG$7+0.5,$J$67:$DK$121,ROWS($A$11:$A17)+2,FALSE)","v":2238},{"$f":"HLOOKUP(CH$7+0.5,$J$67:$DK$121,ROWS($A$11:$A17)+2,FALSE)","v":1293},{"$f":"HLOOKUP(CI$7+0.5,$J$67:$DK$121,ROWS($A$11:$A17)+2,FALSE)","v":909},{"$f":"HLOOKUP(CJ$7+0.5,$J$67:$DK$121,ROWS($A$11:$A17)+2,FALSE)","v":522},{"$f":"HLOOKUP(CK$7+0.5,$J$67:$DK$121,ROWS($A$11:$A17)+2,FALSE)","v":1262},{"$f":"HLOOKUP(CL$7+0.5,$J$67:$DK$121,ROWS($A$11:$A17)+2,FALSE)","v":923},{"$f":"HLOOKUP(CM$7+0.5,$J$67:$DK$121,ROWS($A$11:$A17)+2,FALSE)","v":1729},{"$f":"HLOOKUP(CN$7+0.5,$J$67:$DK$121,ROWS($A$11:$A17)+2,FALSE)","v":1433},{"$f":"HLOOKUP(CO$7+0.5,$J$67:$DK$121,ROWS($A$11:$A17)+2,FALSE)","v":308},{"$f":"HLOOKUP(CP$7+0.5,$J$67:$DK$121,ROWS($A$11:$A17)+2,FALSE)","v":1179},{"$f":"HLOOKUP(CQ$7+0.5,$J$67:$DK$121,ROWS($A$11:$A17)+2,FALSE)","v":1851},{"$f":"HLOOKUP(CR$7+0.5,$J$67:$DK$121,ROWS($A$11:$A17)+2,FALSE)","v":2604},{"$f":"HLOOKUP(CS$7+0.5,$J$67:$DK$121,ROWS($A$11:$A17)+2,FALSE)","v":1678},{"$f":"HLOOKUP(CT$7+0.5,$J$67:$DK$121,ROWS($A$11:$A17)+2,FALSE)","v":1071},{"$f":"HLOOKUP(CU$7+0.5,$J$67:$DK$121,ROWS($A$11:$A17)+2,FALSE)","v":2214},{"$f":"HLOOKUP(CV$7+0.5,$J$67:$DK$121,ROWS($A$11:$A17)+2,FALSE)","v":2102},{"$f":"HLOOKUP(CW$7+0.5,$J$67:$DK$121,ROWS($A$11:$A17)+2,FALSE)","v":836},{"$f":"HLOOKUP(CX$7+0.5,$J$67:$DK$121,ROWS($A$11:$A17)+2,FALSE)","v":1530},{"$f":"HLOOKUP(CY$7+0.5,$J$67:$DK$121,ROWS($A$11:$A17)+2,FALSE)","v":153},{"$f":"HLOOKUP(CZ$7+0.5,$J$67:$DK$121,ROWS($A$11:$A17)+2,FALSE)","v":1479},{"$f":"HLOOKUP(DA$7+0.5,$J$67:$DK$121,ROWS($A$11:$A17)+2,FALSE)","v":553},{"$f":"HLOOKUP(DB$7+0.5,$J$67:$DK$121,ROWS($A$11:$A17)+2,FALSE)","v":1135},{"$f":"HLOOKUP(DC$7+0.5,$J$67:$DK$121,ROWS($A$11:$A17)+2,FALSE)","v":3352},{"$f":"HLOOKUP(DD$7+0.5,$J$67:$DK$121,ROWS($A$11:$A17)+2,FALSE)","v":2035},{"$f":"HLOOKUP(DE$7+0.5,$J$67:$DK$121,ROWS($A$11:$A17)+2,FALSE)","v":371},{"$f":"HLOOKUP(DF$7+0.5,$J$67:$DK$121,ROWS($A$11:$A17)+2,FALSE)","v":1568},{"$f":"HLOOKUP(DG$7+0.5,$J$67:$DK$121,ROWS($A$11:$A17)+2,FALSE)","v":1401},{"$f":"HLOOKUP(DH$7+0.5,$J$67:$DK$121,ROWS($A$11:$A17)+2,FALSE)","v":429},{"$f":"HLOOKUP(DI$7+0.5,$J$67:$DK$121,ROWS($A$11:$A17)+2,FALSE)","v":1006},{"$f":"HLOOKUP(DJ$7+0.5,$J$67:$DK$121,ROWS($A$11:$A17)+2,FALSE)","v":2808},{"$f":"HLOOKUP(DK$7+0.5,$J$67:$DK$121,ROWS($A$11:$A17)+2,FALSE)","v":903}]
[null,"Connecticut",3555319,2447,3114940,16188,334918,14546,1.1358851654339357E-2,{"$f":"HLOOKUP(J$7,$J$67:$DK$121,ROWS($A$11:$A18)+2,FALSE)","v":80311},{"$f":"HLOOKUP(K$7,$J$67:$DK$121,ROWS($A$11:$A18)+2,FALSE)","v":46},{"$f":"HLOOKUP(L$7,$J$67:$DK$121,ROWS($A$11:$A18)+2,FALSE)","v":439},{"$f":"HLOOKUP(M$7,$J$67:$DK$121,ROWS($A$11:$A18)+2,FALSE)","v":3167},{"$f":"HLOOKUP(N$7,$J$67:$DK$121,ROWS($A$11:$A18)+2,FALSE)","v":200},{"$f":"HLOOKUP(O$7,$J$67:$DK$121,ROWS($A$11:$A18)+2,FALSE)","v":3161},{"$f":"HLOOKUP(P$7,$J$67:$DK$121,ROWS($A$11:$A18)+2,FALSE)","v":367},{"$f":"HLOOKUP(Q$7,$J$67:$DK$121,ROWS($A$11:$A18)+2,FALSE)","v":"N/A"},{"$f":"HLOOKUP(R$7,$J$67:$DK$121,ROWS($A$11:$A18)+2,FALSE)","v":22},{"$f":"HLOOKUP(S$7,$J$67:$DK$121,ROWS($A$11:$A18)+2,FALSE)","v":288},{"$f":"HLOOKUP(T$7,$J$67:$DK$121,ROWS($A$11:$A18)+2,FALSE)","v":6578},{"$f":"HLOOKUP(U$7,$J$67:$DK$121,ROWS($A$11:$A18)+2,FALSE)","v":1702},{"$f":"HLOOKUP(V$7,$J$67:$DK$121,ROWS($A$11:$A18)+2,FALSE)","v":408},{"$f":"HLOOKUP(W$7,$J$67:$DK$121,ROWS($A$11:$A18)+2,FALSE)","v":97},{"$f":"HLOOKUP(X$7,$J$67:$DK$121,ROWS($A$11:$A18)+2,FALSE)","v":912},{"$f":"HLOOKUP(Y$7,$J$67:$DK$121,ROWS($A$11:$A18)+2,FALSE)","v":53},{"$f":"HLOOKUP(Z$7,$J$67:$DK$121,ROWS($A$11:$A18)+2,FALSE)","v":0},{"$f":"HLOOKUP(AA$7,$J$67:$DK$121,ROWS($A$11:$A18)+2,FALSE)","v":0},{"$f":"HLOOKUP(AB$7,$J$67:$DK$121,ROWS($A$11:$A18)+2,FALSE)","v":124},{"$f":"HLOOKUP(AC$7,$J$67:$DK$121,ROWS($A$11:$A18)+2,FALSE)","v":909},{"$f":"HLOOKUP(AD$7,$J$67:$DK$121,ROWS($A$11:$A18)+2,FALSE)","v":1224},{"$f":"HLOOKUP(AE$7,$J$67:$DK$121,ROWS($A$11:$A18)+2,FALSE)","v":1752},{"$f":"HLOOKUP(AF$7,$J$67:$DK$121,ROWS($A$11:$A18)+2,FALSE)","v":8743},{"$f":"HLOOKUP(AG$7,$J$67:$DK$121,ROWS($A$11:$A18)+2,FALSE)","v":753},{"$f":"HLOOKUP(AH$7,$J$67:$DK$121,ROWS($A$11:$A18)+2,FALSE)","v":605},{"$f":"HLOOKUP(AI$7,$J$67:$DK$121,ROWS($A$11:$A18)+2,FALSE)","v":276},{"$f":"HLOOKUP(AJ$7,$J$67:$DK$121,ROWS($A$11:$A18)+2,FALSE)","v":358},{"$f":"HLOOKUP(AK$7,$J$67:$DK$121,ROWS($A$11:$A18)+2,FALSE)","v":50},{"$f":"HLOOKUP(AL$7,$J$67:$DK$121,ROWS($A$11:$A18)+2,FALSE)","v":45},{"$f":"HLOOKUP(AM$7,$J$67:$DK$121,ROWS($A$11:$A18)+2,FALSE)","v":172},{"$f":"HLOOKUP(AN$7,$J$67:$DK$121,ROWS($A$11:$A18)+2,FALSE)","v":1009},{"$f":"HLOOKUP(AO$7,$J$67:$DK$121,ROWS($A$11:$A18)+2,FALSE)","v":5665},{"$f":"HLOOKUP(AP$7,$J$67:$DK$121,ROWS($A$11:$A18)+2,FALSE)","v":444},{"$f":"HLOOKUP(AQ$7,$J$67:$DK$121,ROWS($A$11:$A18)+2,FALSE)","v":23310},{"$f":"HLOOKUP(AR$7,$J$67:$DK$121,ROWS($A$11:$A18)+2,FALSE)","v":3379},{"$f":"HLOOKUP(AS$7,$J$67:$DK$121,ROWS($A$11:$A18)+2,FALSE)","v":0},{"$f":"HLOOKUP(AT$7,$J$67:$DK$121,ROWS($A$11:$A18)+2,FALSE)","v":287},{"$f":"HLOOKUP(AU$7,$J$67:$DK$121,ROWS($A$11:$A18)+2,FALSE)","v":415},{"$f":"HLOOKUP(AV$7,$J$67:$DK$121,ROWS($A$11:$A18)+2,FALSE)","v":35},{"$f":"HLOOKUP(AW$7,$J$67:$DK$121,ROWS($A$11:$A18)+2,FALSE)","v":2214},{"$f":"HLOOKUP(AX$7,$J$67:$DK$121,ROWS($A$11:$A18)+2,FALSE)","v":1558},{"$f":"HLOOKUP(AY$7,$J$67:$DK$121,ROWS($A$11:$A18)+2,FALSE)","v":940},{"$f":"HLOOKUP(AZ$7,$J$67:$DK$121,ROWS($A$11:$A18)+2,FALSE)","v":0},{"$f":"HLOOKUP(BA$7,$J$67:$DK$121,ROWS($A$11:$A18)+2,FALSE)","v":260},{"$f":"HLOOKUP(BB$7,$J$67:$DK$121,ROWS($A$11:$A18)+2,FALSE)","v":3279},{"$f":"HLOOKUP(BC$7,$J$67:$DK$121,ROWS($A$11:$A18)+2,FALSE)","v":45},{"$f":"HLOOKUP(BD$7,$J$67:$DK$121,ROWS($A$11:$A18)+2,FALSE)","v":709},{"$f":"HLOOKUP(BE$7,$J$67:$DK$121,ROWS($A$11:$A18)+2,FALSE)","v":1729},{"$f":"HLOOKUP(BF$7,$J$67:$DK$121,ROWS($A$11:$A18)+2,FALSE)","v":1593},{"$f":"HLOOKUP(BG$7,$J$67:$DK$121,ROWS($A$11:$A18)+2,FALSE)","v":174},{"$f":"HLOOKUP(BH$7,$J$67:$DK$121,ROWS($A$11:$A18)+2,FALSE)","v":711},{"$f":"HLOOKUP(BI$7,$J$67:$DK$121,ROWS($A$11:$A18)+2,FALSE)","v":104},{"$f":"HLOOKUP(BJ$7,$J$67:$DK$121,ROWS($A$11:$A18)+2,FALSE)","v":3228},{"$f":"HLOOKUP(BK$7+0.5,$J$67:$DK$121,ROWS($A$11:$A18)+2,FALSE)","v":6574},{"$f":"HLOOKUP(BL$7+0.5,$J$67:$DK$121,ROWS($A$11:$A18)+2,FALSE)","v":103},{"$f":"HLOOKUP(BM$7+0.5,$J$67:$DK$121,ROWS($A$11:$A18)+2,FALSE)","v":511},{"$f":"HLOOKUP(BN$7+0.5,$J$67:$DK$121,ROWS($A$11:$A18)+2,FALSE)","v":3028},{"$f":"HLOOKUP(BO$7+0.5,$J$67:$DK$121,ROWS($A$11:$A18)+2,FALSE)","v":228},{"$f":"HLOOKUP(BP$7+0.5,$J$67:$DK$121,ROWS($A$11:$A18)+2,FALSE)","v":1015},{"$f":"HLOOKUP(BQ$7+0.5,$J$67:$DK$121,ROWS($A$11:$A18)+2,FALSE)","v":341},{"$f":"HLOOKUP(BR$7+0.5,$J$67:$DK$121,ROWS($A$11:$A18)+2,FALSE)","v":"N/A"},{"$f":"HLOOKUP(BS$7+0.5,$J$67:$DK$121,ROWS($A$11:$A18)+2,FALSE)","v":36},{"$f":"HLOOKUP(BT$7+0.5,$J$67:$DK$121,ROWS($A$11:$A18)+2,FALSE)","v":230},{"$f":"HLOOKUP(BU$7+0.5,$J$67:$DK$121,ROWS($A$11:$A18)+2,FALSE)","v":1844},{"$f":"HLOOKUP(BV$7+0.5,$J$67:$DK$121,ROWS($A$11:$A18)+2,FALSE)","v":971},{"$f":"HLOOKUP(BW$7+0.5,$J$67:$DK$121,ROWS($A$11:$A18)+2,FALSE)","v":476},{"$f":"HLOOKUP(BX$7+0.5,$J$67:$DK$121,ROWS($A$11:$A18)+2,FALSE)","v":155},{"$f":"HLOOKUP(BY$7+0.5,$J$67:$DK$121,ROWS($A$11:$A18)+2,FALSE)","v":583},{"$f":"HLOOKUP(BZ$7+0.5,$J$67:$DK$121,ROWS($A$11:$A18)+2,FALSE)","v":90},{"$f":"HLOOKUP(CA$7+0.5,$J$67:$DK$121,ROWS($A$11:$A18)+2,FALSE)","v":193},{"$f":"HLOOKUP(CB$7+0.5,$J$67:$DK$121,ROWS($A$11:$A18)+2,FALSE)","v":193},{"$f":"HLOOKUP(CC$7+0.5,$J$67:$DK$121,ROWS($A$11:$A18)+2,FALSE)","v":159},{"$f":"HLOOKUP(CD$7+0.5,$J$67:$DK$121,ROWS($A$11:$A18)+2,FALSE)","v":733},{"$f":"HLOOKUP(CE$7+0.5,$J$67:$DK$121,ROWS($A$11:$A18)+2,FALSE)","v":696},{"$f":"HLOOKUP(CF$7+0.5,$J$67:$DK$121,ROWS($A$11:$A18)+2,FALSE)","v":748},{"$f":"HLOOKUP(CG$7+0.5,$J$67:$DK$121,ROWS($A$11:$A18)+2,FALSE)","v":1587},{"$f":"HLOOKUP(CH$7+0.5,$J$67:$DK$121,ROWS($A$11:$A18)+2,FALSE)","v":539},{"$f":"HLOOKUP(CI$7+0.5,$J$67:$DK$121,ROWS($A$11:$A18)+2,FALSE)","v":564},{"$f":"HLOOKUP(CJ$7+0.5,$J$67:$DK$121,ROWS($A$11:$A18)+2,FALSE)","v":293},{"$f":"HLOOKUP(CK$7+0.5,$J$67:$DK$121,ROWS($A$11:$A18)+2,FALSE)","v":330},{"$f":"HLOOKUP(CL$7+0.5,$J$67:$DK$121,ROWS($A$11:$A18)+2,FALSE)","v":91},{"$f":"HLOOKUP(CM$7+0.5,$J$67:$DK$121,ROWS($A$11:$A18)+2,FALSE)","v":74},{"$f":"HLOOKUP(CN$7+0.5,$J$67:$DK$121,ROWS($A$11:$A18)+2,FALSE)","v":166},{"$f":"HLOOKUP(CO$7+0.5,$J$67:$DK$121,ROWS($A$11:$A18)+2,FALSE)","v":551},{"$f":"HLOOKUP(CP$7+0.5,$J$67:$DK$121,ROWS($A$11:$A18)+2,FALSE)","v":1490},{"$f":"HLOOKUP(CQ$7+0.5,$J$67:$DK$121,ROWS($A$11:$A18)+2,FALSE)","v":450},{"$f":"HLOOKUP(CR$7+0.5,$J$67:$DK$121,ROWS($A$11:$A18)+2,FALSE)","v":3774},{"$f":"HLOOKUP(CS$7+0.5,$J$67:$DK$121,ROWS($A$11:$A18)+2,FALSE)","v":1609},{"$f":"HLOOKUP(CT$7+0.5,$J$67:$DK$121,ROWS($A$11:$A18)+2,FALSE)","v":193},{"$f":"HLOOKUP(CU$7+0.5,$J$67:$DK$121,ROWS($A$11:$A18)+2,FALSE)","v":254},{"$f":"HLOOKUP(CV$7+0.5,$J$67:$DK$121,ROWS($A$11:$A18)+2,FALSE)","v":411},{"$f":"HLOOKUP(CW$7+0.5,$J$67:$DK$121,ROWS($A$11:$A18)+2,FALSE)","v":58},{"$f":"HLOOKUP(CX$7+0.5,$J$67:$DK$121,ROWS($A$11:$A18)+2,FALSE)","v":1037},{"$f":"HLOOKUP(CY$7+0.5,$J$67:$DK$121,ROWS($A$11:$A18)+2,FALSE)","v":689},{"$f":"HLOOKUP(CZ$7+0.5,$J$67:$DK$121,ROWS($A$11:$A18)+2,FALSE)","v":665},{"$f":"HLOOKUP(DA$7+0.5,$J$67:$DK$121,ROWS($A$11:$A18)+2,FALSE)","v":193},{"$f":"HLOOKUP(DB$7+0.5,$J$67:$DK$121,ROWS($A$11:$A18)+2,FALSE)","v":216},{"$f":"HLOOKUP(DC$7+0.5,$J$67:$DK$121,ROWS($A$11:$A18)+2,FALSE)","v":1568},{"$f":"HLOOKUP(DD$7+0.5,$J$67:$DK$121,ROWS($A$11:$A18)+2,FALSE)","v":69},{"$f":"HLOOKUP(DE$7+0.5,$J$67:$DK$121,ROWS($A$11:$A18)+2,FALSE)","v":556},{"$f":"HLOOKUP(DF$7+0.5,$J$67:$DK$121,ROWS($A$11:$A18)+2,FALSE)","v":707},{"$f":"HLOOKUP(DG$7+0.5,$J$67:$DK$121,ROWS($A$11:$A18)+2,FALSE)","v":1274},{"$f":"HLOOKUP(DH$7+0.5,$J$67:$DK$121,ROWS($A$11:$A18)+2,FALSE)","v":293},{"$f":"HLOOKUP(DI$7+0.5,$J$67:$DK$121,ROWS($A$11:$A18)+2,FALSE)","v":684},{"$f":"HLOOKUP(DJ$7+0.5,$J$67:$DK$121,ROWS($A$11:$A18)+2,FALSE)","v":120},{"$f":"HLOOKUP(DK$7+0.5,$J$67:$DK$121,ROWS($A$11:$A18)+2,FALSE)","v":1540}]
[null,"Delaware",906576,1624,782216,9177,86003,7626,4.9158845855470984E-3,{"$f":"HLOOKUP(J$7,$J$67:$DK$121,ROWS($A$11:$A19)+2,FALSE)","v":34757},{"$f":"HLOOKUP(K$7,$J$67:$DK$121,ROWS($A$11:$A19)+2,FALSE)","v":119},{"$f":"HLOOKUP(L$7,$J$67:$DK$121,ROWS($A$11:$A19)+2,FALSE)","v":692},{"$f":"HLOOKUP(M$7,$J$67:$DK$121,ROWS($A$11:$A19)+2,FALSE)","v":188},{"$f":"HLOOKUP(N$7,$J$67:$DK$121,ROWS($A$11:$A19)+2,FALSE)","v":0},{"$f":"HLOOKUP(O$7,$J$67:$DK$121,ROWS($A$11:$A19)+2,FALSE)","v":2221},{"$f":"HLOOKUP(P$7,$J$67:$DK$121,ROWS($A$11:$A19)+2,FALSE)","v":0},{"$f":"HLOOKUP(Q$7,$J$67:$DK$121,ROWS($A$11:$A19)+2,FALSE)","v":1489},{"$f":"HLOOKUP(R$7,$J$67:$DK$121,ROWS($A$11:$A19)+2,FALSE)","v":"N/A"},{"$f":"HLOOKUP(S$7,$J$67:$DK$121,ROWS($A$11:$A19)+2,FALSE)","v":11},{"$f":"HLOOKUP(T$7,$J$67:$DK$121,ROWS($A$11:$A19)+2,FALSE)","v":715},{"$f":"HLOOKUP(U$7,$J$67:$DK$121,ROWS($A$11:$A19)+2,FALSE)","v":179},{"$f":"HLOOKUP(V$7,$J$67:$DK$121,ROWS($A$11:$A19)+2,FALSE)","v":0},{"$f":"HLOOKUP(W$7,$J$67:$DK$121,ROWS($A$11:$A19)+2,FALSE)","v":32},{"$f":"HLOOKUP(X$7,$J$67:$DK$121,ROWS($A$11:$A19)+2,FALSE)","v":567},{"$f":"HLOOKUP(Y$7,$J$67:$DK$121,ROWS($A$11:$A19)+2,FALSE)","v":62},{"$f":"HLOOKUP(Z$7,$J$67:$DK$121,ROWS($A$11:$A19)+2,FALSE)","v":30},{"$f":"HLOOKUP(AA$7,$J$67:$DK$121,ROWS($A$11:$A19)+2,FALSE)","v":113},{"$f":"HLOOKUP(AB$7,$J$67:$DK$121,ROWS($A$11:$A19)+2,FALSE)","v":0},{"$f":"HLOOKUP(AC$7,$J$67:$DK$121,ROWS($A$11:$A19)+2,FALSE)","v":178},{"$f":"HLOOKUP(AD$7,$J$67:$DK$121,ROWS($A$11:$A19)+2,FALSE)","v":0},{"$f":"HLOOKUP(AE$7,$J$67:$DK$121,ROWS($A$11:$A19)+2,FALSE)","v":5649},{"$f":"HLOOKUP(AF$7,$J$67:$DK$121,ROWS($A$11:$A19)+2,FALSE)","v":157},{"$f":"HLOOKUP(AG$7,$J$67:$DK$121,ROWS($A$11:$A19)+2,FALSE)","v":227},{"$f":"HLOOKUP(AH$7,$J$67:$DK$121,ROWS($A$11:$A19)+2,FALSE)","v":351},{"$f":"HLOOKUP(AI$7,$J$67:$DK$121,ROWS($A$11:$A19)+2,FALSE)","v":58},{"$f":"HLOOKUP(AJ$7,$J$67:$DK$121,ROWS($A$11:$A19)+2,FALSE)","v":80},{"$f":"HLOOKUP(AK$7,$J$67:$DK$121,ROWS($A$11:$A19)+2,FALSE)","v":0},{"$f":"HLOOKUP(AL$7,$J$67:$DK$121,ROWS($A$11:$A19)+2,FALSE)","v":91},{"$f":"HLOOKUP(AM$7,$J$67:$DK$121,ROWS($A$11:$A19)+2,FALSE)","v":572},{"$f":"HLOOKUP(AN$7,$J$67:$DK$121,ROWS($A$11:$A19)+2,FALSE)","v":99},{"$f":"HLOOKUP(AO$7,$J$67:$DK$121,ROWS($A$11:$A19)+2,FALSE)","v":5846},{"$f":"HLOOKUP(AP$7,$J$67:$DK$121,ROWS($A$11:$A19)+2,FALSE)","v":85},{"$f":"HLOOKUP(AQ$7,$J$67:$DK$121,ROWS($A$11:$A19)+2,FALSE)","v":3566},{"$f":"HLOOKUP(AR$7,$J$67:$DK$121,ROWS($A$11:$A19)+2,FALSE)","v":1349},{"$f":"HLOOKUP(AS$7,$J$67:$DK$121,ROWS($A$11:$A19)+2,FALSE)","v":0},{"$f":"HLOOKUP(AT$7,$J$67:$DK$121,ROWS($A$11:$A19)+2,FALSE)","v":191},{"$f":"HLOOKUP(AU$7,$J$67:$DK$121,ROWS($A$11:$A19)+2,FALSE)","v":0},{"$f":"HLOOKUP(AV$7,$J$67:$DK$121,ROWS($A$11:$A19)+2,FALSE)","v":0},{"$f":"HLOOKUP(AW$7,$J$67:$DK$121,ROWS($A$11:$A19)+2,FALSE)","v":6828},{"$f":"HLOOKUP(AX$7,$J$67:$DK$121,ROWS($A$11:$A19)+2,FALSE)","v":135},{"$f":"HLOOKUP(AY$7,$J$67:$DK$121,ROWS($A$11:$A19)+2,FALSE)","v":298},{"$f":"HLOOKUP(AZ$7,$J$67:$DK$121,ROWS($A$11:$A19)+2,FALSE)","v":0},{"$f":"HLOOKUP(BA$7,$J$67:$DK$121,ROWS($A$11:$A19)+2,FALSE)","v":344},{"$f":"HLOOKUP(BB$7,$J$67:$DK$121,ROWS($A$11:$A19)+2,FALSE)","v":133},{"$f":"HLOOKUP(BC$7,$J$67:$DK$121,ROWS($A$11:$A19)+2,FALSE)","v":166},{"$f":"HLOOKUP(BD$7,$J$67:$DK$121,ROWS($A$11:$A19)+2,FALSE)","v":0},{"$f":"HLOOKUP(BE$7,$J$67:$DK$121,ROWS($A$11:$A19)+2,FALSE)","v":1746},{"$f":"HLOOKUP(BF$7,$J$67:$DK$121,ROWS($A$11:$A19)+2,FALSE)","v":29},{"$f":"HLOOKUP(BG$7,$J$67:$DK$121,ROWS($A$11:$A19)+2,FALSE)","v":161},{"$f":"HLOOKUP(BH$7,$J$67:$DK$121,ROWS($A$11:$A19)+2,FALSE)","v":0},{"$f":"HLOOKUP(BI$7,$J$67:$DK$121,ROWS($A$11:$A19)+2,FALSE)","v":0},{"$f":"HLOOKUP(BJ$7,$J$67:$DK$121,ROWS($A$11:$A19)+2,FALSE)","v":56},{"$f":"HLOOKUP(BK$7+0.5,$J$67:$DK$121,ROWS($A$11:$A19)+2,FALSE)","v":4691},{"$f":"HLOOKUP(BL$7+0.5,$J$67:$DK$121,ROWS($A$11:$A19)+2,FALSE)","v":164},{"$f":"HLOOKUP(BM$7+0.5,$J$67:$DK$121,ROWS($A$11:$A19)+2,FALSE)","v":920},{"$f":"HLOOKUP(BN$7+0.5,$J$67:$DK$121,ROWS($A$11:$A19)+2,FALSE)","v":227},{"$f":"HLOOKUP(BO$7+0.5,$J$67:$DK$121,ROWS($A$11:$A19)+2,FALSE)","v":182},{"$f":"HLOOKUP(BP$7+0.5,$J$67:$DK$121,ROWS($A$11:$A19)+2,FALSE)","v":2189},{"$f":"HLOOKUP(BQ$7+0.5,$J$67:$DK$121,ROWS($A$11:$A19)+2,FALSE)","v":182},{"$f":"HLOOKUP(BR$7+0.5,$J$67:$DK$121,ROWS($A$11:$A19)+2,FALSE)","v":679},{"$f":"HLOOKUP(BS$7+0.5,$J$67:$DK$121,ROWS($A$11:$A19)+2,FALSE)","v":"N/A"},{"$f":"HLOOKUP(BT$7+0.5,$J$67:$DK$121,ROWS($A$11:$A19)+2,FALSE)","v":21},{"$f":"HLOOKUP(BU$7+0.5,$J$67:$DK$121,ROWS($A$11:$A19)+2,FALSE)","v":481},{"$f":"HLOOKUP(BV$7+0.5,$J$67:$DK$121,ROWS($A$11:$A19)+2,FALSE)","v":224},{"$f":"HLOOKUP(BW$7+0.5,$J$67:$DK$121,ROWS($A$11:$A19)+2,FALSE)","v":182},{"$f":"HLOOKUP(BX$7+0.5,$J$67:$DK$121,ROWS($A$11:$A19)+2,FALSE)","v":51},{"$f":"HLOOKUP(BY$7+0.5,$J$67:$DK$121,ROWS($A$11:$A19)+2,FALSE)","v":468},{"$f":"HLOOKUP(BZ$7+0.5,$J$67:$DK$121,ROWS($A$11:$A19)+2,FALSE)","v":80},{"$f":"HLOOKUP(CA$7+0.5,$J$67:$DK$121,ROWS($A$11:$A19)+2,FALSE)","v":49},{"$f":"HLOOKUP(CB$7+0.5,$J$67:$DK$121,ROWS($A$11:$A19)+2,FALSE)","v":190},{"$f":"HLOOKUP(CC$7+0.5,$J$67:$DK$121,ROWS($A$11:$A19)+2,FALSE)","v":182},{"$f":"HLOOKUP(CD$7+0.5,$J$67:$DK$121,ROWS($A$11:$A19)+2,FALSE)","v":266},{"$f":"HLOOKUP(CE$7+0.5,$J$67:$DK$121,ROWS($A$11:$A19)+2,FALSE)","v":182},{"$f":"HLOOKUP(CF$7+0.5,$J$67:$DK$121,ROWS($A$11:$A19)+2,FALSE)","v":1598},{"$f":"HLOOKUP(CG$7+0.5,$J$67:$DK$121,ROWS($A$11:$A19)+2,FALSE)","v":131},{"$f":"HLOOKUP(CH$7+0.5,$J$67:$DK$121,ROWS($A$11:$A19)+2,FALSE)","v":233},{"$f":"HLOOKUP(CI$7+0.5,$J$67:$DK$121,ROWS($A$11:$A19)+2,FALSE)","v":390},{"$f":"HLOOKUP(CJ$7+0.5,$J$67:$DK$121,ROWS($A$11:$A19)+2,FALSE)","v":110},{"$f":"HLOOKUP(CK$7+0.5,$J$67:$DK$121,ROWS($A$11:$A19)+2,FALSE)","v":138},{"$f":"HLOOKUP(CL$7+0.5,$J$67:$DK$121,ROWS($A$11:$A19)+2,FALSE)","v":182},{"$f":"HLOOKUP(CM$7+0.5,$J$67:$DK$121,ROWS($A$11:$A19)+2,FALSE)","v":116},{"$f":"HLOOKUP(CN$7+0.5,$J$67:$DK$121,ROWS($A$11:$A19)+2,FALSE)","v":474},{"$f":"HLOOKUP(CO$7+0.5,$J$67:$DK$121,ROWS($A$11:$A19)+2,FALSE)","v":127},{"$f":"HLOOKUP(CP$7+0.5,$J$67:$DK$121,ROWS($A$11:$A19)+2,FALSE)","v":2122},{"$f":"HLOOKUP(CQ$7+0.5,$J$67:$DK$121,ROWS($A$11:$A19)+2,FALSE)","v":136},{"$f":"HLOOKUP(CR$7+0.5,$J$67:$DK$121,ROWS($A$11:$A19)+2,FALSE)","v":1751},{"$f":"HLOOKUP(CS$7+0.5,$J$67:$DK$121,ROWS($A$11:$A19)+2,FALSE)","v":809},{"$f":"HLOOKUP(CT$7+0.5,$J$67:$DK$121,ROWS($A$11:$A19)+2,FALSE)","v":182},{"$f":"HLOOKUP(CU$7+0.5,$J$67:$DK$121,ROWS($A$11:$A19)+2,FALSE)","v":201},{"$f":"HLOOKUP(CV$7+0.5,$J$67:$DK$121,ROWS($A$11:$A19)+2,FALSE)","v":182},{"$f":"HLOOKUP(CW$7+0.5,$J$67:$DK$121,ROWS($A$11:$A19)+2,FALSE)","v":182},{"$f":"HLOOKUP(CX$7+0.5,$J$67:$DK$121,ROWS($A$11:$A19)+2,FALSE)","v":1815},{"$f":"HLOOKUP(CY$7+0.5,$J$67:$DK$121,ROWS($A$11:$A19)+2,FALSE)","v":185},{"$f":"HLOOKUP(CZ$7+0.5,$J$67:$DK$121,ROWS($A$11:$A19)+2,FALSE)","v":235},{"$f":"HLOOKUP(DA$7+0.5,$J$67:$DK$121,ROWS($A$11:$A19)+2,FALSE)","v":182},{"$f":"HLOOKUP(DB$7+0.5,$J$67:$DK$121,ROWS($A$11:$A19)+2,FALSE)","v":440},{"$f":"HLOOKUP(DC$7+0.5,$J$67:$DK$121,ROWS($A$11:$A19)+2,FALSE)","v":158},{"$f":"HLOOKUP(DD$7+0.5,$J$67:$DK$121,ROWS($A$11:$A19)+2,FALSE)","v":279},{"$f":"HLOOKUP(DE$7+0.5,$J$67:$DK$121,ROWS($A$11:$A19)+2,FALSE)","v":182},{"$f":"HLOOKUP(DF$7+0.5,$J$67:$DK$121,ROWS($A$11:$A19)+2,FALSE)","v":910},{"$f":"HLOOKUP(DG$7+0.5,$J$67:$DK$121,ROWS($A$11:$A19)+2,FALSE)","v":49},{"$f":"HLOOKUP(DH$7+0.5,$J$67:$DK$121,ROWS($A$11:$A19)+2,FALSE)","v":205},{"$f":"HLOOKUP(DI$7+0.5,$J$67:$DK$121,ROWS($A$11:$A19)+2,FALSE)","v":182},{"$f":"HLOOKUP(DJ$7+0.5,$J$67:$DK$121,ROWS($A$11:$A19)+2,FALSE)","v":182},{"$f":"HLOOKUP(DK$7+0.5,$J$67:$DK$121,ROWS($A$11:$A19)+2,FALSE)","v":90}]
[null,"District of Columbia ",624847,948,500267,6225,61992,5668,7.6134898650631619E-3,{"$f":"HLOOKUP(J$7,$J$67:$DK$121,ROWS($A$11:$A20)+2,FALSE)","v":53830},{"$f":"HLOOKUP(K$7,$J$67:$DK$121,ROWS($A$11:$A20)+2,FALSE)","v":79},{"$f":"HLOOKUP(L$7,$J$67:$DK$121,ROWS($A$11:$A20)+2,FALSE)","v":1247},{"$f":"HLOOKUP(M$7,$J$67:$DK$121,ROWS($A$11:$A20)+2,FALSE)","v":902},{"$f":"HLOOKUP(N$7,$J$67:$DK$121,ROWS($A$11:$A20)+2,FALSE)","v":35},{"$f":"HLOOKUP(O$7,$J$67:$DK$121,ROWS($A$11:$A20)+2,FALSE)","v":4999},{"$f":"HLOOKUP(P$7,$J$67:$DK$121,ROWS($A$11:$A20)+2,FALSE)","v":677},{"$f":"HLOOKUP(Q$7,$J$67:$DK$121,ROWS($A$11:$A20)+2,FALSE)","v":618},{"$f":"HLOOKUP(R$7,$J$67:$DK$121,ROWS($A$11:$A20)+2,FALSE)","v":78},{"$f":"HLOOKUP(S$7,$J$67:$DK$121,ROWS($A$11:$A20)+2,FALSE)","v":"N/A"},{"$f":"HLOOKUP(T$7,$J$67:$DK$121,ROWS($A$11:$A20)+2,FALSE)","v":1705},{"$f":"HLOOKUP(U$7,$J$67:$DK$121,ROWS($A$11:$A20)+2,FALSE)","v":1079},{"$f":"HLOOKUP(V$7,$J$67:$DK$121,ROWS($A$11:$A20)+2,FALSE)","v":38},{"$f":"HLOOKUP(W$7,$J$67:$DK$121,ROWS($A$11:$A20)+2,FALSE)","v":46},{"$f":"HLOOKUP(X$7,$J$67:$DK$121,ROWS($A$11:$A20)+2,FALSE)","v":795},{"$f":"HLOOKUP(Y$7,$J$67:$DK$121,ROWS($A$11:$A20)+2,FALSE)","v":469},{"$f":"HLOOKUP(Z$7,$J$67:$DK$121,ROWS($A$11:$A20)+2,FALSE)","v":133},{"$f":"HLOOKUP(AA$7,$J$67:$DK$121,ROWS($A$11:$A20)+2,FALSE)","v":164},{"$f":"HLOOKUP(AB$7,$J$67:$DK$121,ROWS($A$11:$A20)+2,FALSE)","v":112},{"$f":"HLOOKUP(AC$7,$J$67:$DK$121,ROWS($A$11:$A20)+2,FALSE)","v":283},{"$f":"HLOOKUP(AD$7,$J$67:$DK$121,ROWS($A$11:$A20)+2,FALSE)","v":194},{"$f":"HLOOKUP(AE$7,$J$67:$DK$121,ROWS($A$11:$A20)+2,FALSE)","v":14120},{"$f":"HLOOKUP(AF$7,$J$67:$DK$121,ROWS($A$11:$A20)+2,FALSE)","v":1524},{"$f":"HLOOKUP(AG$7,$J$67:$DK$121,ROWS($A$11:$A20)+2,FALSE)","v":944},{"$f":"HLOOKUP(AH$7,$J$67:$DK$121,ROWS($A$11:$A20)+2,FALSE)","v":393},{"$f":"HLOOKUP(AI$7,$J$67:$DK$121,ROWS($A$11:$A20)+2,FALSE)","v":44},{"$f":"HLOOKUP(AJ$7,$J$67:$DK$121,ROWS($A$11:$A20)+2,FALSE)","v":337},{"$f":"HLOOKUP(AK$7,$J$67:$DK$121,ROWS($A$11:$A20)+2,FALSE)","v":0},{"$f":"HLOOKUP(AL$7,$J$67:$DK$121,ROWS($A$11:$A20)+2,FALSE)","v":172},{"$f":"HLOOKUP(AM$7,$J$67:$DK$121,ROWS($A$11:$A20)+2,FALSE)","v":42},{"$f":"HLOOKUP(AN$7,$J$67:$DK$121,ROWS($A$11:$A20)+2,FALSE)","v":197},{"$f":"HLOOKUP(AO$7,$J$67:$DK$121,ROWS($A$11:$A20)+2,FALSE)","v":1451},{"$f":"HLOOKUP(AP$7,$J$67:$DK$121,ROWS($A$11:$A20)+2,FALSE)","v":116},{"$f":"HLOOKUP(AQ$7,$J$67:$DK$121,ROWS($A$11:$A20)+2,FALSE)","v":3085},{"$f":"HLOOKUP(AR$7,$J$67:$DK$121,ROWS($A$11:$A20)+2,FALSE)","v":985},{"$f":"HLOOKUP(AS$7,$J$67:$DK$121,ROWS($A$11:$A20)+2,FALSE)","v":0},{"$f":"HLOOKUP(AT$7,$J$67:$DK$121,ROWS($A$11:$A20)+2,FALSE)","v":651},{"$f":"HLOOKUP(AU$7,$J$67:$DK$121,ROWS($A$11:$A20)+2,FALSE)","v":0},{"$f":"HLOOKUP(AV$7,$J$67:$DK$121,ROWS($A$11:$A20)+2,FALSE)","v":157},{"$f":"HLOOKUP(AW$7,$J$67:$DK$121,ROWS($A$11:$A20)+2,FALSE)","v":1494},{"$f":"HLOOKUP(AX$7,$J$67:$DK$121,ROWS($A$11:$A20)+2,FALSE)","v":635},{"$f":"HLOOKUP(AY$7,$J$67:$DK$121,ROWS($A$11:$A20)+2,FALSE)","v":150},{"$f":"HLOOKUP(AZ$7,$J$67:$DK$121,ROWS($A$11:$A20)+2,FALSE)","v":0},{"$f":"HLOOKUP(BA$7,$J$67:$DK$121,ROWS($A$11:$A20)+2,FALSE)","v":577},{"$f":"HLOOKUP(BB$7,$J$67:$DK$121,ROWS($A$11:$A20)+2,FALSE)","v":1473},{"$f":"HLOOKUP(BC$7,$J$67:$DK$121,ROWS($A$11:$A20)+2,FALSE)","v":116},{"$f":"HLOOKUP(BD$7,$J$67:$DK$121,ROWS($A$11:$A20)+2,FALSE)","v":267},{"$f":"HLOOKUP(BE$7,$J$67:$DK$121,ROWS($A$11:$A20)+2,FALSE)","v":9537},{"$f":"HLOOKUP(BF$7,$J$67:$DK$121,ROWS($A$11:$A20)+2,FALSE)","v":481},{"$f":"HLOOKUP(BG$7,$J$67:$DK$121,ROWS($A$11:$A20)+2,FALSE)","v":293},{"$f":"HLOOKUP(BH$7,$J$67:$DK$121,ROWS($A$11:$A20)+2,FALSE)","v":721},{"$f":"HLOOKUP(BI$7,$J$67:$DK$121,ROWS($A$11:$A20)+2,FALSE)","v":215},{"$f":"HLOOKUP(BJ$7,$J$67:$DK$121,ROWS($A$11:$A20)+2,FALSE)","v":0},{"$f":"HLOOKUP(BK$7+0.5,$J$67:$DK$121,ROWS($A$11:$A20)+2,FALSE)","v":5001},{"$f":"HLOOKUP(BL$7+0.5,$J$67:$DK$121,ROWS($A$11:$A20)+2,FALSE)","v":138},{"$f":"HLOOKUP(BM$7+0.5,$J$67:$DK$121,ROWS($A$11:$A20)+2,FALSE)","v":715},{"$f":"HLOOKUP(BN$7+0.5,$J$67:$DK$121,ROWS($A$11:$A20)+2,FALSE)","v":646},{"$f":"HLOOKUP(BO$7+0.5,$J$67:$DK$121,ROWS($A$11:$A20)+2,FALSE)","v":59},{"$f":"HLOOKUP(BP$7+0.5,$J$67:$DK$121,ROWS($A$11:$A20)+2,FALSE)","v":2108},{"$f":"HLOOKUP(BQ$7+0.5,$J$67:$DK$121,ROWS($A$11:$A20)+2,FALSE)","v":546},{"$f":"HLOOKUP(BR$7+0.5,$J$67:$DK$121,ROWS($A$11:$A20)+2,FALSE)","v":439},{"$f":"HLOOKUP(BS$7+0.5,$J$67:$DK$121,ROWS($A$11:$A20)+2,FALSE)","v":127},{"$f":"HLOOKUP(BT$7+0.5,$J$67:$DK$121,ROWS($A$11:$A20)+2,FALSE)","v":"N/A"},{"$f":"HLOOKUP(BU$7+0.5,$J$67:$DK$121,ROWS($A$11:$A20)+2,FALSE)","v":661},{"$f":"HLOOKUP(BV$7+0.5,$J$67:$DK$121,ROWS($A$11:$A20)+2,FALSE)","v":470},{"$f":"HLOOKUP(BW$7+0.5,$J$67:$DK$121,ROWS($A$11:$A20)+2,FALSE)","v":87},{"$f":"HLOOKUP(BX$7+0.5,$J$67:$DK$121,ROWS($A$11:$A20)+2,FALSE)","v":75},{"$f":"HLOOKUP(BY$7+0.5,$J$67:$DK$121,ROWS($A$11:$A20)+2,FALSE)","v":446},{"$f":"HLOOKUP(BZ$7+0.5,$J$67:$DK$121,ROWS($A$11:$A20)+2,FALSE)","v":379},{"$f":"HLOOKUP(CA$7+0.5,$J$67:$DK$121,ROWS($A$11:$A20)+2,FALSE)","v":221},{"$f":"HLOOKUP(CB$7+0.5,$J$67:$DK$121,ROWS($A$11:$A20)+2,FALSE)","v":267},{"$f":"HLOOKUP(CC$7+0.5,$J$67:$DK$121,ROWS($A$11:$A20)+2,FALSE)","v":136},{"$f":"HLOOKUP(CD$7+0.5,$J$67:$DK$121,ROWS($A$11:$A20)+2,FALSE)","v":295},{"$f":"HLOOKUP(CE$7+0.5,$J$67:$DK$121,ROWS($A$11:$A20)+2,FALSE)","v":244},{"$f":"HLOOKUP(CF$7+0.5,$J$67:$DK$121,ROWS($A$11:$A20)+2,FALSE)","v":2487},{"$f":"HLOOKUP(CG$7+0.5,$J$67:$DK$121,ROWS($A$11:$A20)+2,FALSE)","v":717},{"$f":"HLOOKUP(CH$7+0.5,$J$67:$DK$121,ROWS($A$11:$A20)+2,FALSE)","v":670},{"$f":"HLOOKUP(CI$7+0.5,$J$67:$DK$121,ROWS($A$11:$A20)+2,FALSE)","v":240},{"$f":"HLOOKUP(CJ$7+0.5,$J$67:$DK$121,ROWS($A$11:$A20)+2,FALSE)","v":74},{"$f":"HLOOKUP(CK$7+0.5,$J$67:$DK$121,ROWS($A$11:$A20)+2,FALSE)","v":354},{"$f":"HLOOKUP(CL$7+0.5,$J$67:$DK$121,ROWS($A$11:$A20)+2,FALSE)","v":197},{"$f":"HLOOKUP(CM$7+0.5,$J$67:$DK$121,ROWS($A$11:$A20)+2,FALSE)","v":182},{"$f":"HLOOKUP(CN$7+0.5,$J$67:$DK$121,ROWS($A$11:$A20)+2,FALSE)","v":69},{"$f":"HLOOKUP(CO$7+0.5,$J$67:$DK$121,ROWS($A$11:$A20)+2,FALSE)","v":183},{"$f":"HLOOKUP(CP$7+0.5,$J$67:$DK$121,ROWS($A$11:$A20)+2,FALSE)","v":792},{"$f":"HLOOKUP(CQ$7+0.5,$J$67:$DK$121,ROWS($A$11:$A20)+2,FALSE)","v":139},{"$f":"HLOOKUP(CR$7+0.5,$J$67:$DK$121,ROWS($A$11:$A20)+2,FALSE)","v":851},{"$f":"HLOOKUP(CS$7+0.5,$J$67:$DK$121,ROWS($A$11:$A20)+2,FALSE)","v":503},{"$f":"HLOOKUP(CT$7+0.5,$J$67:$DK$121,ROWS($A$11:$A20)+2,FALSE)","v":197},{"$f":"HLOOKUP(CU$7+0.5,$J$67:$DK$121,ROWS($A$11:$A20)+2,FALSE)","v":429},{"$f":"HLOOKUP(CV$7+0.5,$J$67:$DK$121,ROWS($A$11:$A20)+2,FALSE)","v":197},{"$f":"HLOOKUP(CW$7+0.5,$J$67:$DK$121,ROWS($A$11:$A20)+2,FALSE)","v":182},{"$f":"HLOOKUP(CX$7+0.5,$J$67:$DK$121,ROWS($A$11:$A20)+2,FALSE)","v":608},{"$f":"HLOOKUP(CY$7+0.5,$J$67:$DK$121,ROWS($A$11:$A20)+2,FALSE)","v":596},{"$f":"HLOOKUP(CZ$7+0.5,$J$67:$DK$121,ROWS($A$11:$A20)+2,FALSE)","v":140},{"$f":"HLOOKUP(DA$7+0.5,$J$67:$DK$121,ROWS($A$11:$A20)+2,FALSE)","v":197},{"$f":"HLOOKUP(DB$7+0.5,$J$67:$DK$121,ROWS($A$11:$A20)+2,FALSE)","v":478},{"$f":"HLOOKUP(DC$7+0.5,$J$67:$DK$121,ROWS($A$11:$A20)+2,FALSE)","v":826},{"$f":"HLOOKUP(DD$7+0.5,$J$67:$DK$121,ROWS($A$11:$A20)+2,FALSE)","v":145},{"$f":"HLOOKUP(DE$7+0.5,$J$67:$DK$121,ROWS($A$11:$A20)+2,FALSE)","v":250},{"$f":"HLOOKUP(DF$7+0.5,$J$67:$DK$121,ROWS($A$11:$A20)+2,FALSE)","v":1762},{"$f":"HLOOKUP(DG$7+0.5,$J$67:$DK$121,ROWS($A$11:$A20)+2,FALSE)","v":358},{"$f":"HLOOKUP(DH$7+0.5,$J$67:$DK$121,ROWS($A$11:$A20)+2,FALSE)","v":219},{"$f":"HLOOKUP(DI$7+0.5,$J$67:$DK$121,ROWS($A$11:$A20)+2,FALSE)","v":420},{"$f":"HLOOKUP(DJ$7+0.5,$J$67:$DK$121,ROWS($A$11:$A20)+2,FALSE)","v":303},{"$f":"HLOOKUP(DK$7+0.5,$J$67:$DK$121,ROWS($A$11:$A20)+2,FALSE)","v":197}]
[null,"Florida",19114620,6877,16032617,49245,2380288,44658,7.5971964592958338E-2,{"$f":"HLOOKUP(J$7,$J$67:$DK$121,ROWS($A$11:$A21)+2,FALSE)","v":537148},{"$f":"HLOOKUP(K$7,$J$67:$DK$121,ROWS($A$11:$A21)+2,FALSE)","v":18599},{"$f":"HLOOKUP(L$7,$J$67:$DK$121,ROWS($A$11:$A21)+2,FALSE)","v":10704},{"$f":"HLOOKUP(M$7,$J$67:$DK$121,ROWS($A$11:$A21)+2,FALSE)","v":6473},{"$f":"HLOOKUP(N$7,$J$67:$DK$121,ROWS($A$11:$A21)+2,FALSE)","v":3321},{"$f":"HLOOKUP(O$7,$J$67:$DK$121,ROWS($A$11:$A21)+2,FALSE)","v":20386},{"$f":"HLOOKUP(P$7,$J$67:$DK$121,ROWS($A$11:$A21)+2,FALSE)","v":8766},{"$f":"HLOOKUP(Q$7,$J$67:$DK$121,ROWS($A$11:$A21)+2,FALSE)","v":8975},{"$f":"HLOOKUP(R$7,$J$67:$DK$121,ROWS($A$11:$A21)+2,FALSE)","v":1099},{"$f":"HLOOKUP(S$7,$J$67:$DK$121,ROWS($A$11:$A21)+2,FALSE)","v":780},{"$f":"HLOOKUP(T$7,$J$67:$DK$121,ROWS($A$11:$A21)+2,FALSE)","v":"N/A"},{"$f":"HLOOKUP(U$7,$J$67:$DK$121,ROWS($A$11:$A21)+2,FALSE)","v":42754},{"$f":"HLOOKUP(V$7,$J$67:$DK$121,ROWS($A$11:$A21)+2,FALSE)","v":3177},{"$f":"HLOOKUP(W$7,$J$67:$DK$121,ROWS($A$11:$A21)+2,FALSE)","v":1268},{"$f":"HLOOKUP(X$7,$J$67:$DK$121,ROWS($A$11:$A21)+2,FALSE)","v":22565},{"$f":"HLOOKUP(Y$7,$J$67:$DK$121,ROWS($A$11:$A21)+2,FALSE)","v":13803},{"$f":"HLOOKUP(Z$7,$J$67:$DK$121,ROWS($A$11:$A21)+2,FALSE)","v":3864},{"$f":"HLOOKUP(AA$7,$J$67:$DK$121,ROWS($A$11:$A21)+2,FALSE)","v":5661},{"$f":"HLOOKUP(AB$7,$J$67:$DK$121,ROWS($A$11:$A21)+2,FALSE)","v":6912},{"$f":"HLOOKUP(AC$7,$J$67:$DK$121,ROWS($A$11:$A21)+2,FALSE)","v":5550},{"$f":"HLOOKUP(AD$7,$J$67:$DK$121,ROWS($A$11:$A21)+2,FALSE)","v":7348},{"$f":"HLOOKUP(AE$7,$J$67:$DK$121,ROWS($A$11:$A21)+2,FALSE)","v":10442},{"$f":"HLOOKUP(AF$7,$J$67:$DK$121,ROWS($A$11:$A21)+2,FALSE)","v":15159},{"$f":"HLOOKUP(AG$7,$J$67:$DK$121,ROWS($A$11:$A21)+2,FALSE)","v":23400},{"$f":"HLOOKUP(AH$7,$J$67:$DK$121,ROWS($A$11:$A21)+2,FALSE)","v":5460},{"$f":"HLOOKUP(AI$7,$J$67:$DK$121,ROWS($A$11:$A21)+2,FALSE)","v":5490},{"$f":"HLOOKUP(AJ$7,$J$67:$DK$121,ROWS($A$11:$A21)+2,FALSE)","v":10666},{"$f":"HLOOKUP(AK$7,$J$67:$DK$121,ROWS($A$11:$A21)+2,FALSE)","v":1758},{"$f":"HLOOKUP(AL$7,$J$67:$DK$121,ROWS($A$11:$A21)+2,FALSE)","v":945},{"$f":"HLOOKUP(AM$7,$J$67:$DK$121,ROWS($A$11:$A21)+2,FALSE)","v":1241},{"$f":"HLOOKUP(AN$7,$J$67:$DK$121,ROWS($A$11:$A21)+2,FALSE)","v":2362},{"$f":"HLOOKUP(AO$7,$J$67:$DK$121,ROWS($A$11:$A21)+2,FALSE)","v":27606},{"$f":"HLOOKUP(AP$7,$J$67:$DK$121,ROWS($A$11:$A21)+2,FALSE)","v":2853},{"$f":"HLOOKUP(AQ$7,$J$67:$DK$121,ROWS($A$11:$A21)+2,FALSE)","v":53009},{"$f":"HLOOKUP(AR$7,$J$67:$DK$121,ROWS($A$11:$A21)+2,FALSE)","v":23133},{"$f":"HLOOKUP(AS$7,$J$67:$DK$121,ROWS($A$11:$A21)+2,FALSE)","v":239},{"$f":"HLOOKUP(AT$7,$J$67:$DK$121,ROWS($A$11:$A21)+2,FALSE)","v":22927},{"$f":"HLOOKUP(AU$7,$J$67:$DK$121,ROWS($A$11:$A21)+2,FALSE)","v":3142},{"$f":"HLOOKUP(AV$7,$J$67:$DK$121,ROWS($A$11:$A21)+2,FALSE)","v":2919},{"$f":"HLOOKUP(AW$7,$J$67:$DK$121,ROWS($A$11:$A21)+2,FALSE)","v":25659},{"$f":"HLOOKUP(AX$7,$J$67:$DK$121,ROWS($A$11:$A21)+2,FALSE)","v":3050},{"$f":"HLOOKUP(AY$7,$J$67:$DK$121,ROWS($A$11:$A21)+2,FALSE)","v":11366},{"$f":"HLOOKUP(AZ$7,$J$67:$DK$121,ROWS($A$11:$A21)+2,FALSE)","v":1070},{"$f":"HLOOKUP(BA$7,$J$67:$DK$121,ROWS($A$11:$A21)+2,FALSE)","v":16275},{"$f":"HLOOKUP(BB$7,$J$67:$DK$121,ROWS($A$11:$A21)+2,FALSE)","v":28564},{"$f":"HLOOKUP(BC$7,$J$67:$DK$121,ROWS($A$11:$A21)+2,FALSE)","v":2499},{"$f":"HLOOKUP(BD$7,$J$67:$DK$121,ROWS($A$11:$A21)+2,FALSE)","v":2747},{"$f":"HLOOKUP(BE$7,$J$67:$DK$121,ROWS($A$11:$A21)+2,FALSE)","v":25697},{"$f":"HLOOKUP(BF$7,$J$67:$DK$121,ROWS($A$11:$A21)+2,FALSE)","v":4943},{"$f":"HLOOKUP(BG$7,$J$67:$DK$121,ROWS($A$11:$A21)+2,FALSE)","v":3533},{"$f":"HLOOKUP(BH$7,$J$67:$DK$121,ROWS($A$11:$A21)+2,FALSE)","v":6216},{"$f":"HLOOKUP(BI$7,$J$67:$DK$121,ROWS($A$11:$A21)+2,FALSE)","v":773},{"$f":"HLOOKUP(BJ$7,$J$67:$DK$121,ROWS($A$11:$A21)+2,FALSE)","v":21638},{"$f":"HLOOKUP(BK$7+0.5,$J$67:$DK$121,ROWS($A$11:$A21)+2,FALSE)","v":19784},{"$f":"HLOOKUP(BL$7+0.5,$J$67:$DK$121,ROWS($A$11:$A21)+2,FALSE)","v":4762},{"$f":"HLOOKUP(BM$7+0.5,$J$67:$DK$121,ROWS($A$11:$A21)+2,FALSE)","v":4327},{"$f":"HLOOKUP(BN$7+0.5,$J$67:$DK$121,ROWS($A$11:$A21)+2,FALSE)","v":1865},{"$f":"HLOOKUP(BO$7+0.5,$J$67:$DK$121,ROWS($A$11:$A21)+2,FALSE)","v":1136},{"$f":"HLOOKUP(BP$7+0.5,$J$67:$DK$121,ROWS($A$11:$A21)+2,FALSE)","v":4221},{"$f":"HLOOKUP(BQ$7+0.5,$J$67:$DK$121,ROWS($A$11:$A21)+2,FALSE)","v":2537},{"$f":"HLOOKUP(BR$7+0.5,$J$67:$DK$121,ROWS($A$11:$A21)+2,FALSE)","v":1882},{"$f":"HLOOKUP(BS$7+0.5,$J$67:$DK$121,ROWS($A$11:$A21)+2,FALSE)","v":608},{"$f":"HLOOKUP(BT$7+0.5,$J$67:$DK$121,ROWS($A$11:$A21)+2,FALSE)","v":481},{"$f":"HLOOKUP(BU$7+0.5,$J$67:$DK$121,ROWS($A$11:$A21)+2,FALSE)","v":"N/A"},{"$f":"HLOOKUP(BV$7+0.5,$J$67:$DK$121,ROWS($A$11:$A21)+2,FALSE)","v":6205},{"$f":"HLOOKUP(BW$7+0.5,$J$67:$DK$121,ROWS($A$11:$A21)+2,FALSE)","v":2730},{"$f":"HLOOKUP(BX$7+0.5,$J$67:$DK$121,ROWS($A$11:$A21)+2,FALSE)","v":923},{"$f":"HLOOKUP(BY$7+0.5,$J$67:$DK$121,ROWS($A$11:$A21)+2,FALSE)","v":3828},{"$f":"HLOOKUP(BZ$7+0.5,$J$67:$DK$121,ROWS($A$11:$A21)+2,FALSE)","v":2852},{"$f":"HLOOKUP(CA$7+0.5,$J$67:$DK$121,ROWS($A$11:$A21)+2,FALSE)","v":1332},{"$f":"HLOOKUP(CB$7+0.5,$J$67:$DK$121,ROWS($A$11:$A21)+2,FALSE)","v":3133},{"$f":"HLOOKUP(CC$7+0.5,$J$67:$DK$121,ROWS($A$11:$A21)+2,FALSE)","v":1607},{"$f":"HLOOKUP(CD$7+0.5,$J$67:$DK$121,ROWS($A$11:$A21)+2,FALSE)","v":2266},{"$f":"HLOOKUP(CE$7+0.5,$J$67:$DK$121,ROWS($A$11:$A21)+2,FALSE)","v":3032},{"$f":"HLOOKUP(CF$7+0.5,$J$67:$DK$121,ROWS($A$11:$A21)+2,FALSE)","v":2378},{"$f":"HLOOKUP(CG$7+0.5,$J$67:$DK$121,ROWS($A$11:$A21)+2,FALSE)","v":2747},{"$f":"HLOOKUP(CH$7+0.5,$J$67:$DK$121,ROWS($A$11:$A21)+2,FALSE)","v":3519},{"$f":"HLOOKUP(CI$7+0.5,$J$67:$DK$121,ROWS($A$11:$A21)+2,FALSE)","v":2185},{"$f":"HLOOKUP(CJ$7+0.5,$J$67:$DK$121,ROWS($A$11:$A21)+2,FALSE)","v":3345},{"$f":"HLOOKUP(CK$7+0.5,$J$67:$DK$121,ROWS($A$11:$A21)+2,FALSE)","v":3498},{"$f":"HLOOKUP(CL$7+0.5,$J$67:$DK$121,ROWS($A$11:$A21)+2,FALSE)","v":2104},{"$f":"HLOOKUP(CM$7+0.5,$J$67:$DK$121,ROWS($A$11:$A21)+2,FALSE)","v":713},{"$f":"HLOOKUP(CN$7+0.5,$J$67:$DK$121,ROWS($A$11:$A21)+2,FALSE)","v":515},{"$f":"HLOOKUP(CO$7+0.5,$J$67:$DK$121,ROWS($A$11:$A21)+2,FALSE)","v":922},{"$f":"HLOOKUP(CP$7+0.5,$J$67:$DK$121,ROWS($A$11:$A21)+2,FALSE)","v":4242},{"$f":"HLOOKUP(CQ$7+0.5,$J$67:$DK$121,ROWS($A$11:$A21)+2,FALSE)","v":1004},{"$f":"HLOOKUP(CR$7+0.5,$J$67:$DK$121,ROWS($A$11:$A21)+2,FALSE)","v":5886},{"$f":"HLOOKUP(CS$7+0.5,$J$67:$DK$121,ROWS($A$11:$A21)+2,FALSE)","v":3843},{"$f":"HLOOKUP(CT$7+0.5,$J$67:$DK$121,ROWS($A$11:$A21)+2,FALSE)","v":203},{"$f":"HLOOKUP(CU$7+0.5,$J$67:$DK$121,ROWS($A$11:$A21)+2,FALSE)","v":4305},{"$f":"HLOOKUP(CV$7+0.5,$J$67:$DK$121,ROWS($A$11:$A21)+2,FALSE)","v":1301},{"$f":"HLOOKUP(CW$7+0.5,$J$67:$DK$121,ROWS($A$11:$A21)+2,FALSE)","v":1736},{"$f":"HLOOKUP(CX$7+0.5,$J$67:$DK$121,ROWS($A$11:$A21)+2,FALSE)","v":4174},{"$f":"HLOOKUP(CY$7+0.5,$J$67:$DK$121,ROWS($A$11:$A21)+2,FALSE)","v":1458},{"$f":"HLOOKUP(CZ$7+0.5,$J$67:$DK$121,ROWS($A$11:$A21)+2,FALSE)","v":2719},{"$f":"HLOOKUP(DA$7+0.5,$J$67:$DK$121,ROWS($A$11:$A21)+2,FALSE)","v":762},{"$f":"HLOOKUP(DB$7+0.5,$J$67:$DK$121,ROWS($A$11:$A21)+2,FALSE)","v":3583},{"$f":"HLOOKUP(DC$7+0.5,$J$67:$DK$121,ROWS($A$11:$A21)+2,FALSE)","v":4750},{"$f":"HLOOKUP(DD$7+0.5,$J$67:$DK$121,ROWS($A$11:$A21)+2,FALSE)","v":1348},{"$f":"HLOOKUP(DE$7+0.5,$J$67:$DK$121,ROWS($A$11:$A21)+2,FALSE)","v":1190},{"$f":"HLOOKUP(DF$7+0.5,$J$67:$DK$121,ROWS($A$11:$A21)+2,FALSE)","v":3965},{"$f":"HLOOKUP(DG$7+0.5,$J$67:$DK$121,ROWS($A$11:$A21)+2,FALSE)","v":1710},{"$f":"HLOOKUP(DH$7+0.5,$J$67:$DK$121,ROWS($A$11:$A21)+2,FALSE)","v":1587},{"$f":"HLOOKUP(DI$7+0.5,$J$67:$DK$121,ROWS($A$11:$A21)+2,FALSE)","v":1993},{"$f":"HLOOKUP(DJ$7+0.5,$J$67:$DK$121,ROWS($A$11:$A21)+2,FALSE)","v":567},{"$f":"HLOOKUP(DK$7+0.5,$J$67:$DK$121,ROWS($A$11:$A21)+2,FALSE)","v":4641}]
[null,"Georgia",9796547,5863,8231384,34188,1236302,31155,3.9243629554144809E-2,{"$f":"HLOOKUP(J$7,$J$67:$DK$121,ROWS($A$11:$A22)+2,FALSE)","v":277466},{"$f":"HLOOKUP(K$7,$J$67:$DK$121,ROWS($A$11:$A22)+2,FALSE)","v":13864},{"$f":"HLOOKUP(L$7,$J$67:$DK$121,ROWS($A$11:$A22)+2,FALSE)","v":2654},{"$f":"HLOOKUP(M$7,$J$67:$DK$121,ROWS($A$11:$A22)+2,FALSE)","v":6657},{"$f":"HLOOKUP(N$7,$J$67:$DK$121,ROWS($A$11:$A22)+2,FALSE)","v":1041},{"$f":"HLOOKUP(O$7,$J$67:$DK$121,ROWS($A$11:$A22)+2,FALSE)","v":14174},{"$f":"HLOOKUP(P$7,$J$67:$DK$121,ROWS($A$11:$A22)+2,FALSE)","v":4710},{"$f":"HLOOKUP(Q$7,$J$67:$DK$121,ROWS($A$11:$A22)+2,FALSE)","v":1829},{"$f":"HLOOKUP(R$7,$J$67:$DK$121,ROWS($A$11:$A22)+2,FALSE)","v":226},{"$f":"HLOOKUP(S$7,$J$67:$DK$121,ROWS($A$11:$A22)+2,FALSE)","v":1352},{"$f":"HLOOKUP(T$7,$J$67:$DK$121,ROWS($A$11:$A22)+2,FALSE)","v":42870},{"$f":"HLOOKUP(U$7,$J$67:$DK$121,ROWS($A$11:$A22)+2,FALSE)","v":"N/A"},{"$f":"HLOOKUP(V$7,$J$67:$DK$121,ROWS($A$11:$A22)+2,FALSE)","v":1409},{"$f":"HLOOKUP(W$7,$J$67:$DK$121,ROWS($A$11:$A22)+2,FALSE)","v":936},{"$f":"HLOOKUP(X$7,$J$67:$DK$121,ROWS($A$11:$A22)+2,FALSE)","v":7143},{"$f":"HLOOKUP(Y$7,$J$67:$DK$121,ROWS($A$11:$A22)+2,FALSE)","v":5972},{"$f":"HLOOKUP(Z$7,$J$67:$DK$121,ROWS($A$11:$A22)+2,FALSE)","v":1687},{"$f":"HLOOKUP(AA$7,$J$67:$DK$121,ROWS($A$11:$A22)+2,FALSE)","v":1497},{"$f":"HLOOKUP(AB$7,$J$67:$DK$121,ROWS($A$11:$A22)+2,FALSE)","v":6172},{"$f":"HLOOKUP(AC$7,$J$67:$DK$121,ROWS($A$11:$A22)+2,FALSE)","v":4100},{"$f":"HLOOKUP(AD$7,$J$67:$DK$121,ROWS($A$11:$A22)+2,FALSE)","v":222},{"$f":"HLOOKUP(AE$7,$J$67:$DK$121,ROWS($A$11:$A22)+2,FALSE)","v":3619},{"$f":"HLOOKUP(AF$7,$J$67:$DK$121,ROWS($A$11:$A22)+2,FALSE)","v":4153},{"$f":"HLOOKUP(AG$7,$J$67:$DK$121,ROWS($A$11:$A22)+2,FALSE)","v":9949},{"$f":"HLOOKUP(AH$7,$J$67:$DK$121,ROWS($A$11:$A22)+2,FALSE)","v":2237},{"$f":"HLOOKUP(AI$7,$J$67:$DK$121,ROWS($A$11:$A22)+2,FALSE)","v":3280},{"$f":"HLOOKUP(AJ$7,$J$67:$DK$121,ROWS($A$11:$A22)+2,FALSE)","v":3377},{"$f":"HLOOKUP(AK$7,$J$67:$DK$121,ROWS($A$11:$A22)+2,FALSE)","v":251},{"$f":"HLOOKUP(AL$7,$J$67:$DK$121,ROWS($A$11:$A22)+2,FALSE)","v":1283},{"$f":"HLOOKUP(AM$7,$J$67:$DK$121,ROWS($A$11:$A22)+2,FALSE)","v":3783},{"$f":"HLOOKUP(AN$7,$J$67:$DK$121,ROWS($A$11:$A22)+2,FALSE)","v":15},{"$f":"HLOOKUP(AO$7,$J$67:$DK$121,ROWS($A$11:$A22)+2,FALSE)","v":4920},{"$f":"HLOOKUP(AP$7,$J$67:$DK$121,ROWS($A$11:$A22)+2,FALSE)","v":915},{"$f":"HLOOKUP(AQ$7,$J$67:$DK$121,ROWS($A$11:$A22)+2,FALSE)","v":13957},{"$f":"HLOOKUP(AR$7,$J$67:$DK$121,ROWS($A$11:$A22)+2,FALSE)","v":16009},{"$f":"HLOOKUP(AS$7,$J$67:$DK$121,ROWS($A$11:$A22)+2,FALSE)","v":207},{"$f":"HLOOKUP(AT$7,$J$67:$DK$121,ROWS($A$11:$A22)+2,FALSE)","v":7501},{"$f":"HLOOKUP(AU$7,$J$67:$DK$121,ROWS($A$11:$A22)+2,FALSE)","v":3299},{"$f":"HLOOKUP(AV$7,$J$67:$DK$121,ROWS($A$11:$A22)+2,FALSE)","v":453},{"$f":"HLOOKUP(AW$7,$J$67:$DK$121,ROWS($A$11:$A22)+2,FALSE)","v":9076},{"$f":"HLOOKUP(AX$7,$J$67:$DK$121,ROWS($A$11:$A22)+2,FALSE)","v":440},{"$f":"HLOOKUP(AY$7,$J$67:$DK$121,ROWS($A$11:$A22)+2,FALSE)","v":18611},{"$f":"HLOOKUP(AZ$7,$J$67:$DK$121,ROWS($A$11:$A22)+2,FALSE)","v":257},{"$f":"HLOOKUP(BA$7,$J$67:$DK$121,ROWS($A$11:$A22)+2,FALSE)","v":17606},{"$f":"HLOOKUP(BB$7,$J$67:$DK$121,ROWS($A$11:$A22)+2,FALSE)","v":16198},{"$f":"HLOOKUP(BC$7,$J$67:$DK$121,ROWS($A$11:$A22)+2,FALSE)","v":20},{"$f":"HLOOKUP(BD$7,$J$67:$DK$121,ROWS($A$11:$A22)+2,FALSE)","v":84},{"$f":"HLOOKUP(BE$7,$J$67:$DK$121,ROWS($A$11:$A22)+2,FALSE)","v":10702},{"$f":"HLOOKUP(BF$7,$J$67:$DK$121,ROWS($A$11:$A22)+2,FALSE)","v":1965},{"$f":"HLOOKUP(BG$7,$J$67:$DK$121,ROWS($A$11:$A22)+2,FALSE)","v":1237},{"$f":"HLOOKUP(BH$7,$J$67:$DK$121,ROWS($A$11:$A22)+2,FALSE)","v":3441},{"$f":"HLOOKUP(BI$7,$J$67:$DK$121,ROWS($A$11:$A22)+2,FALSE)","v":106},{"$f":"HLOOKUP(BJ$7,$J$67:$DK$121,ROWS($A$11:$A22)+2,FALSE)","v":1730},{"$f":"HLOOKUP(BK$7+0.5,$J$67:$DK$121,ROWS($A$11:$A22)+2,FALSE)","v":14075},{"$f":"HLOOKUP(BL$7+0.5,$J$67:$DK$121,ROWS($A$11:$A22)+2,FALSE)","v":2903},{"$f":"HLOOKUP(BM$7+0.5,$J$67:$DK$121,ROWS($A$11:$A22)+2,FALSE)","v":1444},{"$f":"HLOOKUP(BN$7+0.5,$J$67:$DK$121,ROWS($A$11:$A22)+2,FALSE)","v":2675},{"$f":"HLOOKUP(BO$7+0.5,$J$67:$DK$121,ROWS($A$11:$A22)+2,FALSE)","v":519},{"$f":"HLOOKUP(BP$7+0.5,$J$67:$DK$121,ROWS($A$11:$A22)+2,FALSE)","v":3182},{"$f":"HLOOKUP(BQ$7+0.5,$J$67:$DK$121,ROWS($A$11:$A22)+2,FALSE)","v":2093},{"$f":"HLOOKUP(BR$7+0.5,$J$67:$DK$121,ROWS($A$11:$A22)+2,FALSE)","v":824},{"$f":"HLOOKUP(BS$7+0.5,$J$67:$DK$121,ROWS($A$11:$A22)+2,FALSE)","v":246},{"$f":"HLOOKUP(BT$7+0.5,$J$67:$DK$121,ROWS($A$11:$A22)+2,FALSE)","v":994},{"$f":"HLOOKUP(BU$7+0.5,$J$67:$DK$121,ROWS($A$11:$A22)+2,FALSE)","v":5472},{"$f":"HLOOKUP(BV$7+0.5,$J$67:$DK$121,ROWS($A$11:$A22)+2,FALSE)","v":"N/A"},{"$f":"HLOOKUP(BW$7+0.5,$J$67:$DK$121,ROWS($A$11:$A22)+2,FALSE)","v":831},{"$f":"HLOOKUP(BX$7+0.5,$J$67:$DK$121,ROWS($A$11:$A22)+2,FALSE)","v":797},{"$f":"HLOOKUP(BY$7+0.5,$J$67:$DK$121,ROWS($A$11:$A22)+2,FALSE)","v":1833},{"$f":"HLOOKUP(BZ$7+0.5,$J$67:$DK$121,ROWS($A$11:$A22)+2,FALSE)","v":2678},{"$f":"HLOOKUP(CA$7+0.5,$J$67:$DK$121,ROWS($A$11:$A22)+2,FALSE)","v":1036},{"$f":"HLOOKUP(CB$7+0.5,$J$67:$DK$121,ROWS($A$11:$A22)+2,FALSE)","v":707},{"$f":"HLOOKUP(CC$7+0.5,$J$67:$DK$121,ROWS($A$11:$A22)+2,FALSE)","v":1972},{"$f":"HLOOKUP(CD$7+0.5,$J$67:$DK$121,ROWS($A$11:$A22)+2,FALSE)","v":1490},{"$f":"HLOOKUP(CE$7+0.5,$J$67:$DK$121,ROWS($A$11:$A22)+2,FALSE)","v":178},{"$f":"HLOOKUP(CF$7+0.5,$J$67:$DK$121,ROWS($A$11:$A22)+2,FALSE)","v":1621},{"$f":"HLOOKUP(CG$7+0.5,$J$67:$DK$121,ROWS($A$11:$A22)+2,FALSE)","v":1720},{"$f":"HLOOKUP(CH$7+0.5,$J$67:$DK$121,ROWS($A$11:$A22)+2,FALSE)","v":3100},{"$f":"HLOOKUP(CI$7+0.5,$J$67:$DK$121,ROWS($A$11:$A22)+2,FALSE)","v":2164},{"$f":"HLOOKUP(CJ$7+0.5,$J$67:$DK$121,ROWS($A$11:$A22)+2,FALSE)","v":1372},{"$f":"HLOOKUP(CK$7+0.5,$J$67:$DK$121,ROWS($A$11:$A22)+2,FALSE)","v":1479},{"$f":"HLOOKUP(CL$7+0.5,$J$67:$DK$121,ROWS($A$11:$A22)+2,FALSE)","v":224},{"$f":"HLOOKUP(CM$7+0.5,$J$67:$DK$121,ROWS($A$11:$A22)+2,FALSE)","v":1001},{"$f":"HLOOKUP(CN$7+0.5,$J$67:$DK$121,ROWS($A$11:$A22)+2,FALSE)","v":2622},{"$f":"HLOOKUP(CO$7+0.5,$J$67:$DK$121,ROWS($A$11:$A22)+2,FALSE)","v":27},{"$f":"HLOOKUP(CP$7+0.5,$J$67:$DK$121,ROWS($A$11:$A22)+2,FALSE)","v":1544},{"$f":"HLOOKUP(CQ$7+0.5,$J$67:$DK$121,ROWS($A$11:$A22)+2,FALSE)","v":512},{"$f":"HLOOKUP(CR$7+0.5,$J$67:$DK$121,ROWS($A$11:$A22)+2,FALSE)","v":3960},{"$f":"HLOOKUP(CS$7+0.5,$J$67:$DK$121,ROWS($A$11:$A22)+2,FALSE)","v":2963},{"$f":"HLOOKUP(CT$7+0.5,$J$67:$DK$121,ROWS($A$11:$A22)+2,FALSE)","v":250},{"$f":"HLOOKUP(CU$7+0.5,$J$67:$DK$121,ROWS($A$11:$A22)+2,FALSE)","v":2501},{"$f":"HLOOKUP(CV$7+0.5,$J$67:$DK$121,ROWS($A$11:$A22)+2,FALSE)","v":1818},{"$f":"HLOOKUP(CW$7+0.5,$J$67:$DK$121,ROWS($A$11:$A22)+2,FALSE)","v":472},{"$f":"HLOOKUP(CX$7+0.5,$J$67:$DK$121,ROWS($A$11:$A22)+2,FALSE)","v":2622},{"$f":"HLOOKUP(CY$7+0.5,$J$67:$DK$121,ROWS($A$11:$A22)+2,FALSE)","v":620},{"$f":"HLOOKUP(CZ$7+0.5,$J$67:$DK$121,ROWS($A$11:$A22)+2,FALSE)","v":3871},{"$f":"HLOOKUP(DA$7+0.5,$J$67:$DK$121,ROWS($A$11:$A22)+2,FALSE)","v":291},{"$f":"HLOOKUP(DB$7+0.5,$J$67:$DK$121,ROWS($A$11:$A22)+2,FALSE)","v":4620},{"$f":"HLOOKUP(DC$7+0.5,$J$67:$DK$121,ROWS($A$11:$A22)+2,FALSE)","v":3367},{"$f":"HLOOKUP(DD$7+0.5,$J$67:$DK$121,ROWS($A$11:$A22)+2,FALSE)","v":35},{"$f":"HLOOKUP(DE$7+0.5,$J$67:$DK$121,ROWS($A$11:$A22)+2,FALSE)","v":142},{"$f":"HLOOKUP(DF$7+0.5,$J$67:$DK$121,ROWS($A$11:$A22)+2,FALSE)","v":2094},{"$f":"HLOOKUP(DG$7+0.5,$J$67:$DK$121,ROWS($A$11:$A22)+2,FALSE)","v":826},{"$f":"HLOOKUP(DH$7+0.5,$J$67:$DK$121,ROWS($A$11:$A22)+2,FALSE)","v":625},{"$f":"HLOOKUP(DI$7+0.5,$J$67:$DK$121,ROWS($A$11:$A22)+2,FALSE)","v":1725},{"$f":"HLOOKUP(DJ$7+0.5,$J$67:$DK$121,ROWS($A$11:$A22)+2,FALSE)","v":154},{"$f":"HLOOKUP(DK$7+0.5,$J$67:$DK$121,ROWS($A$11:$A22)+2,FALSE)","v":1190}]
[null,"Hawaii",1374852,1662,1164145,10466,134827,9196,7.7994779604107015E-3,{"$f":"HLOOKUP(J$7,$J$67:$DK$121,ROWS($A$11:$A23)+2,FALSE)","v":55145},{"$f":"HLOOKUP(K$7,$J$67:$DK$121,ROWS($A$11:$A23)+2,FALSE)","v":608},{"$f":"HLOOKUP(L$7,$J$67:$DK$121,ROWS($A$11:$A23)+2,FALSE)","v":1417},{"$f":"HLOOKUP(M$7,$J$67:$DK$121,ROWS($A$11:$A23)+2,FALSE)","v":1865},{"$f":"HLOOKUP(N$7,$J$67:$DK$121,ROWS($A$11:$A23)+2,FALSE)","v":24},{"$f":"HLOOKUP(O$7,$J$67:$DK$121,ROWS($A$11:$A23)+2,FALSE)","v":9756},{"$f":"HLOOKUP(P$7,$J$67:$DK$121,ROWS($A$11:$A23)+2,FALSE)","v":1216},{"$f":"HLOOKUP(Q$7,$J$67:$DK$121,ROWS($A$11:$A23)+2,FALSE)","v":191},{"$f":"HLOOKUP(R$7,$J$67:$DK$121,ROWS($A$11:$A23)+2,FALSE)","v":278},{"$f":"HLOOKUP(S$7,$J$67:$DK$121,ROWS($A$11:$A23)+2,FALSE)","v":230},{"$f":"HLOOKUP(T$7,$J$67:$DK$121,ROWS($A$11:$A23)+2,FALSE)","v":2780},{"$f":"HLOOKUP(U$7,$J$67:$DK$121,ROWS($A$11:$A23)+2,FALSE)","v":1448},{"$f":"HLOOKUP(V$7,$J$67:$DK$121,ROWS($A$11:$A23)+2,FALSE)","v":"N/A"},{"$f":"HLOOKUP(W$7,$J$67:$DK$121,ROWS($A$11:$A23)+2,FALSE)","v":404},{"$f":"HLOOKUP(X$7,$J$67:$DK$121,ROWS($A$11:$A23)+2,FALSE)","v":318},{"$f":"HLOOKUP(Y$7,$J$67:$DK$121,ROWS($A$11:$A23)+2,FALSE)","v":292},{"$f":"HLOOKUP(Z$7,$J$67:$DK$121,ROWS($A$11:$A23)+2,FALSE)","v":84},{"$f":"HLOOKUP(AA$7,$J$67:$DK$121,ROWS($A$11:$A23)+2,FALSE)","v":1135},{"$f":"HLOOKUP(AB$7,$J$67:$DK$121,ROWS($A$11:$A23)+2,FALSE)","v":485},{"$f":"HLOOKUP(AC$7,$J$67:$DK$121,ROWS($A$11:$A23)+2,FALSE)","v":207},{"$f":"HLOOKUP(AD$7,$J$67:$DK$121,ROWS($A$11:$A23)+2,FALSE)","v":91},{"$f":"HLOOKUP(AE$7,$J$67:$DK$121,ROWS($A$11:$A23)+2,FALSE)","v":2491},{"$f":"HLOOKUP(AF$7,$J$67:$DK$121,ROWS($A$11:$A23)+2,FALSE)","v":1266},{"$f":"HLOOKUP(AG$7,$J$67:$DK$121,ROWS($A$11:$A23)+2,FALSE)","v":321},{"$f":"HLOOKUP(AH$7,$J$67:$DK$121,ROWS($A$11:$A23)+2,FALSE)","v":192},{"$f":"HLOOKUP(AI$7,$J$67:$DK$121,ROWS($A$11:$A23)+2,FALSE)","v":44},{"$f":"HLOOKUP(AJ$7,$J$67:$DK$121,ROWS($A$11:$A23)+2,FALSE)","v":944},{"$f":"HLOOKUP(AK$7,$J$67:$DK$121,ROWS($A$11:$A23)+2,FALSE)","v":131},{"$f":"HLOOKUP(AL$7,$J$67:$DK$121,ROWS($A$11:$A23)+2,FALSE)","v":75},{"$f":"HLOOKUP(AM$7,$J$67:$DK$121,ROWS($A$11:$A23)+2,FALSE)","v":760},{"$f":"HLOOKUP(AN$7,$J$67:$DK$121,ROWS($A$11:$A23)+2,FALSE)","v":85},{"$f":"HLOOKUP(AO$7,$J$67:$DK$121,ROWS($A$11:$A23)+2,FALSE)","v":410},{"$f":"HLOOKUP(AP$7,$J$67:$DK$121,ROWS($A$11:$A23)+2,FALSE)","v":284},{"$f":"HLOOKUP(AQ$7,$J$67:$DK$121,ROWS($A$11:$A23)+2,FALSE)","v":2382},{"$f":"HLOOKUP(AR$7,$J$67:$DK$121,ROWS($A$11:$A23)+2,FALSE)","v":2241},{"$f":"HLOOKUP(AS$7,$J$67:$DK$121,ROWS($A$11:$A23)+2,FALSE)","v":0},{"$f":"HLOOKUP(AT$7,$J$67:$DK$121,ROWS($A$11:$A23)+2,FALSE)","v":884},{"$f":"HLOOKUP(AU$7,$J$67:$DK$121,ROWS($A$11:$A23)+2,FALSE)","v":1095},{"$f":"HLOOKUP(AV$7,$J$67:$DK$121,ROWS($A$11:$A23)+2,FALSE)","v":1763},{"$f":"HLOOKUP(AW$7,$J$67:$DK$121,ROWS($A$11:$A23)+2,FALSE)","v":1087},{"$f":"HLOOKUP(AX$7,$J$67:$DK$121,ROWS($A$11:$A23)+2,FALSE)","v":106},{"$f":"HLOOKUP(AY$7,$J$67:$DK$121,ROWS($A$11:$A23)+2,FALSE)","v":644},{"$f":"HLOOKUP(AZ$7,$J$67:$DK$121,ROWS($A$11:$A23)+2,FALSE)","v":459},{"$f":"HLOOKUP(BA$7,$J$67:$DK$121,ROWS($A$11:$A23)+2,FALSE)","v":1314},{"$f":"HLOOKUP(BB$7,$J$67:$DK$121,ROWS($A$11:$A23)+2,FALSE)","v":3300},{"$f":"HLOOKUP(BC$7,$J$67:$DK$121,ROWS($A$11:$A23)+2,FALSE)","v":2183},{"$f":"HLOOKUP(BD$7,$J$67:$DK$121,ROWS($A$11:$A23)+2,FALSE)","v":0},{"$f":"HLOOKUP(BE$7,$J$67:$DK$121,ROWS($A$11:$A23)+2,FALSE)","v":1393},{"$f":"HLOOKUP(BF$7,$J$67:$DK$121,ROWS($A$11:$A23)+2,FALSE)","v":5920},{"$f":"HLOOKUP(BG$7,$J$67:$DK$121,ROWS($A$11:$A23)+2,FALSE)","v":197},{"$f":"HLOOKUP(BH$7,$J$67:$DK$121,ROWS($A$11:$A23)+2,FALSE)","v":295},{"$f":"HLOOKUP(BI$7,$J$67:$DK$121,ROWS($A$11:$A23)+2,FALSE)","v":50},{"$f":"HLOOKUP(BJ$7,$J$67:$DK$121,ROWS($A$11:$A23)+2,FALSE)","v":336},{"$f":"HLOOKUP(BK$7+0.5,$J$67:$DK$121,ROWS($A$11:$A23)+2,FALSE)","v":5749},{"$f":"HLOOKUP(BL$7+0.5,$J$67:$DK$121,ROWS($A$11:$A23)+2,FALSE)","v":479},{"$f":"HLOOKUP(BM$7+0.5,$J$67:$DK$121,ROWS($A$11:$A23)+2,FALSE)","v":869},{"$f":"HLOOKUP(BN$7+0.5,$J$67:$DK$121,ROWS($A$11:$A23)+2,FALSE)","v":695},{"$f":"HLOOKUP(BO$7+0.5,$J$67:$DK$121,ROWS($A$11:$A23)+2,FALSE)","v":54},{"$f":"HLOOKUP(BP$7+0.5,$J$67:$DK$121,ROWS($A$11:$A23)+2,FALSE)","v":1508},{"$f":"HLOOKUP(BQ$7+0.5,$J$67:$DK$121,ROWS($A$11:$A23)+2,FALSE)","v":574},{"$f":"HLOOKUP(BR$7+0.5,$J$67:$DK$121,ROWS($A$11:$A23)+2,FALSE)","v":222},{"$f":"HLOOKUP(BS$7+0.5,$J$67:$DK$121,ROWS($A$11:$A23)+2,FALSE)","v":253},{"$f":"HLOOKUP(BT$7+0.5,$J$67:$DK$121,ROWS($A$11:$A23)+2,FALSE)","v":253},{"$f":"HLOOKUP(BU$7+0.5,$J$67:$DK$121,ROWS($A$11:$A23)+2,FALSE)","v":1227},{"$f":"HLOOKUP(BV$7+0.5,$J$67:$DK$121,ROWS($A$11:$A23)+2,FALSE)","v":639},{"$f":"HLOOKUP(BW$7+0.5,$J$67:$DK$121,ROWS($A$11:$A23)+2,FALSE)","v":"N/A"},{"$f":"HLOOKUP(BX$7+0.5,$J$67:$DK$121,ROWS($A$11:$A23)+2,FALSE)","v":431},{"$f":"HLOOKUP(BY$7+0.5,$J$67:$DK$121,ROWS($A$11:$A23)+2,FALSE)","v":194},{"$f":"HLOOKUP(BZ$7+0.5,$J$67:$DK$121,ROWS($A$11:$A23)+2,FALSE)","v":261},{"$f":"HLOOKUP(CA$7+0.5,$J$67:$DK$121,ROWS($A$11:$A23)+2,FALSE)","v":98},{"$f":"HLOOKUP(CB$7+0.5,$J$67:$DK$121,ROWS($A$11:$A23)+2,FALSE)","v":709},{"$f":"HLOOKUP(CC$7+0.5,$J$67:$DK$121,ROWS($A$11:$A23)+2,FALSE)","v":630},{"$f":"HLOOKUP(CD$7+0.5,$J$67:$DK$121,ROWS($A$11:$A23)+2,FALSE)","v":183},{"$f":"HLOOKUP(CE$7+0.5,$J$67:$DK$121,ROWS($A$11:$A23)+2,FALSE)","v":147},{"$f":"HLOOKUP(CF$7+0.5,$J$67:$DK$121,ROWS($A$11:$A23)+2,FALSE)","v":1610},{"$f":"HLOOKUP(CG$7+0.5,$J$67:$DK$121,ROWS($A$11:$A23)+2,FALSE)","v":962},{"$f":"HLOOKUP(CH$7+0.5,$J$67:$DK$121,ROWS($A$11:$A23)+2,FALSE)","v":189},{"$f":"HLOOKUP(CI$7+0.5,$J$67:$DK$121,ROWS($A$11:$A23)+2,FALSE)","v":240},{"$f":"HLOOKUP(CJ$7+0.5,$J$67:$DK$121,ROWS($A$11:$A23)+2,FALSE)","v":52},{"$f":"HLOOKUP(CK$7+0.5,$J$67:$DK$121,ROWS($A$11:$A23)+2,FALSE)","v":630},{"$f":"HLOOKUP(CL$7+0.5,$J$67:$DK$121,ROWS($A$11:$A23)+2,FALSE)","v":172},{"$f":"HLOOKUP(CM$7+0.5,$J$67:$DK$121,ROWS($A$11:$A23)+2,FALSE)","v":125},{"$f":"HLOOKUP(CN$7+0.5,$J$67:$DK$121,ROWS($A$11:$A23)+2,FALSE)","v":424},{"$f":"HLOOKUP(CO$7+0.5,$J$67:$DK$121,ROWS($A$11:$A23)+2,FALSE)","v":119},{"$f":"HLOOKUP(CP$7+0.5,$J$67:$DK$121,ROWS($A$11:$A23)+2,FALSE)","v":435},{"$f":"HLOOKUP(CQ$7+0.5,$J$67:$DK$121,ROWS($A$11:$A23)+2,FALSE)","v":243},{"$f":"HLOOKUP(CR$7+0.5,$J$67:$DK$121,ROWS($A$11:$A23)+2,FALSE)","v":1279},{"$f":"HLOOKUP(CS$7+0.5,$J$67:$DK$121,ROWS($A$11:$A23)+2,FALSE)","v":1274},{"$f":"HLOOKUP(CT$7+0.5,$J$67:$DK$121,ROWS($A$11:$A23)+2,FALSE)","v":177},{"$f":"HLOOKUP(CU$7+0.5,$J$67:$DK$121,ROWS($A$11:$A23)+2,FALSE)","v":995},{"$f":"HLOOKUP(CV$7+0.5,$J$67:$DK$121,ROWS($A$11:$A23)+2,FALSE)","v":933},{"$f":"HLOOKUP(CW$7+0.5,$J$67:$DK$121,ROWS($A$11:$A23)+2,FALSE)","v":764},{"$f":"HLOOKUP(CX$7+0.5,$J$67:$DK$121,ROWS($A$11:$A23)+2,FALSE)","v":770},{"$f":"HLOOKUP(CY$7+0.5,$J$67:$DK$121,ROWS($A$11:$A23)+2,FALSE)","v":176},{"$f":"HLOOKUP(CZ$7+0.5,$J$67:$DK$121,ROWS($A$11:$A23)+2,FALSE)","v":460},{"$f":"HLOOKUP(DA$7+0.5,$J$67:$DK$121,ROWS($A$11:$A23)+2,FALSE)","v":726},{"$f":"HLOOKUP(DB$7+0.5,$J$67:$DK$121,ROWS($A$11:$A23)+2,FALSE)","v":675},{"$f":"HLOOKUP(DC$7+0.5,$J$67:$DK$121,ROWS($A$11:$A23)+2,FALSE)","v":1887},{"$f":"HLOOKUP(DD$7+0.5,$J$67:$DK$121,ROWS($A$11:$A23)+2,FALSE)","v":1283},{"$f":"HLOOKUP(DE$7+0.5,$J$67:$DK$121,ROWS($A$11:$A23)+2,FALSE)","v":177},{"$f":"HLOOKUP(DF$7+0.5,$J$67:$DK$121,ROWS($A$11:$A23)+2,FALSE)","v":755},{"$f":"HLOOKUP(DG$7+0.5,$J$67:$DK$121,ROWS($A$11:$A23)+2,FALSE)","v":1901},{"$f":"HLOOKUP(DH$7+0.5,$J$67:$DK$121,ROWS($A$11:$A23)+2,FALSE)","v":330},{"$f":"HLOOKUP(DI$7+0.5,$J$67:$DK$121,ROWS($A$11:$A23)+2,FALSE)","v":234},{"$f":"HLOOKUP(DJ$7+0.5,$J$67:$DK$121,ROWS($A$11:$A23)+2,FALSE)","v":66},{"$f":"HLOOKUP(DK$7+0.5,$J$67:$DK$121,ROWS($A$11:$A23)+2,FALSE)","v":436}]
[null,"Idaho",1573036,2184,1296975,12998,210151,11483,8.3847393585461533E-3,{"$f":"HLOOKUP(J$7,$J$67:$DK$121,ROWS($A$11:$A24)+2,FALSE)","v":59283},{"$f":"HLOOKUP(K$7,$J$67:$DK$121,ROWS($A$11:$A24)+2,FALSE)","v":575},{"$f":"HLOOKUP(L$7,$J$67:$DK$121,ROWS($A$11:$A24)+2,FALSE)","v":1198},{"$f":"HLOOKUP(M$7,$J$67:$DK$121,ROWS($A$11:$A24)+2,FALSE)","v":2424},{"$f":"HLOOKUP(N$7,$J$67:$DK$121,ROWS($A$11:$A24)+2,FALSE)","v":291},{"$f":"HLOOKUP(O$7,$J$67:$DK$121,ROWS($A$11:$A24)+2,FALSE)","v":10280},{"$f":"HLOOKUP(P$7,$J$67:$DK$121,ROWS($A$11:$A24)+2,FALSE)","v":1186},{"$f":"HLOOKUP(Q$7,$J$67:$DK$121,ROWS($A$11:$A24)+2,FALSE)","v":44},{"$f":"HLOOKUP(R$7,$J$67:$DK$121,ROWS($A$11:$A24)+2,FALSE)","v":120},{"$f":"HLOOKUP(S$7,$J$67:$DK$121,ROWS($A$11:$A24)+2,FALSE)","v":116},{"$f":"HLOOKUP(T$7,$J$67:$DK$121,ROWS($A$11:$A24)+2,FALSE)","v":2014},{"$f":"HLOOKUP(U$7,$J$67:$DK$121,ROWS($A$11:$A24)+2,FALSE)","v":583},{"$f":"HLOOKUP(V$7,$J$67:$DK$121,ROWS($A$11:$A24)+2,FALSE)","v":206},{"$f":"HLOOKUP(W$7,$J$67:$DK$121,ROWS($A$11:$A24)+2,FALSE)","v":"N/A"},{"$f":"HLOOKUP(X$7,$J$67:$DK$121,ROWS($A$11:$A24)+2,FALSE)","v":532},{"$f":"HLOOKUP(Y$7,$J$67:$DK$121,ROWS($A$11:$A24)+2,FALSE)","v":283},{"$f":"HLOOKUP(Z$7,$J$67:$DK$121,ROWS($A$11:$A24)+2,FALSE)","v":90},{"$f":"HLOOKUP(AA$7,$J$67:$DK$121,ROWS($A$11:$A24)+2,FALSE)","v":63},{"$f":"HLOOKUP(AB$7,$J$67:$DK$121,ROWS($A$11:$A24)+2,FALSE)","v":83},{"$f":"HLOOKUP(AC$7,$J$67:$DK$121,ROWS($A$11:$A24)+2,FALSE)","v":54},{"$f":"HLOOKUP(AD$7,$J$67:$DK$121,ROWS($A$11:$A24)+2,FALSE)","v":0},{"$f":"HLOOKUP(AE$7,$J$67:$DK$121,ROWS($A$11:$A24)+2,FALSE)","v":107},{"$f":"HLOOKUP(AF$7,$J$67:$DK$121,ROWS($A$11:$A24)+2,FALSE)","v":338},{"$f":"HLOOKUP(AG$7,$J$67:$DK$121,ROWS($A$11:$A24)+2,FALSE)","v":683},{"$f":"HLOOKUP(AH$7,$J$67:$DK$121,ROWS($A$11:$A24)+2,FALSE)","v":637},{"$f":"HLOOKUP(AI$7,$J$67:$DK$121,ROWS($A$11:$A24)+2,FALSE)","v":87},{"$f":"HLOOKUP(AJ$7,$J$67:$DK$121,ROWS($A$11:$A24)+2,FALSE)","v":214},{"$f":"HLOOKUP(AK$7,$J$67:$DK$121,ROWS($A$11:$A24)+2,FALSE)","v":3800},{"$f":"HLOOKUP(AL$7,$J$67:$DK$121,ROWS($A$11:$A24)+2,FALSE)","v":35},{"$f":"HLOOKUP(AM$7,$J$67:$DK$121,ROWS($A$11:$A24)+2,FALSE)","v":2535},{"$f":"HLOOKUP(AN$7,$J$67:$DK$121,ROWS($A$11:$A24)+2,FALSE)","v":0},{"$f":"HLOOKUP(AO$7,$J$67:$DK$121,ROWS($A$11:$A24)+2,FALSE)","v":214},{"$f":"HLOOKUP(AP$7,$J$67:$DK$121,ROWS($A$11:$A24)+2,FALSE)","v":675},{"$f":"HLOOKUP(AQ$7,$J$67:$DK$121,ROWS($A$11:$A24)+2,FALSE)","v":938},{"$f":"HLOOKUP(AR$7,$J$67:$DK$121,ROWS($A$11:$A24)+2,FALSE)","v":817},{"$f":"HLOOKUP(AS$7,$J$67:$DK$121,ROWS($A$11:$A24)+2,FALSE)","v":0},{"$f":"HLOOKUP(AT$7,$J$67:$DK$121,ROWS($A$11:$A24)+2,FALSE)","v":1018},{"$f":"HLOOKUP(AU$7,$J$67:$DK$121,ROWS($A$11:$A24)+2,FALSE)","v":93},{"$f":"HLOOKUP(AV$7,$J$67:$DK$121,ROWS($A$11:$A24)+2,FALSE)","v":4963},{"$f":"HLOOKUP(AW$7,$J$67:$DK$121,ROWS($A$11:$A24)+2,FALSE)","v":169},{"$f":"HLOOKUP(AX$7,$J$67:$DK$121,ROWS($A$11:$A24)+2,FALSE)","v":0},{"$f":"HLOOKUP(AY$7,$J$67:$DK$121,ROWS($A$11:$A24)+2,FALSE)","v":205},{"$f":"HLOOKUP(AZ$7,$J$67:$DK$121,ROWS($A$11:$A24)+2,FALSE)","v":118},{"$f":"HLOOKUP(BA$7,$J$67:$DK$121,ROWS($A$11:$A24)+2,FALSE)","v":1957},{"$f":"HLOOKUP(BB$7,$J$67:$DK$121,ROWS($A$11:$A24)+2,FALSE)","v":1352},{"$f":"HLOOKUP(BC$7,$J$67:$DK$121,ROWS($A$11:$A24)+2,FALSE)","v":6617},{"$f":"HLOOKUP(BD$7,$J$67:$DK$121,ROWS($A$11:$A24)+2,FALSE)","v":0},{"$f":"HLOOKUP(BE$7,$J$67:$DK$121,ROWS($A$11:$A24)+2,FALSE)","v":269},{"$f":"HLOOKUP(BF$7,$J$67:$DK$121,ROWS($A$11:$A24)+2,FALSE)","v":10398},{"$f":"HLOOKUP(BG$7,$J$67:$DK$121,ROWS($A$11:$A24)+2,FALSE)","v":0},{"$f":"HLOOKUP(BH$7,$J$67:$DK$121,ROWS($A$11:$A24)+2,FALSE)","v":225},{"$f":"HLOOKUP(BI$7,$J$67:$DK$121,ROWS($A$11:$A24)+2,FALSE)","v":677},{"$f":"HLOOKUP(BJ$7,$J$67:$DK$121,ROWS($A$11:$A24)+2,FALSE)","v":136},{"$f":"HLOOKUP(BK$7+0.5,$J$67:$DK$121,ROWS($A$11:$A24)+2,FALSE)","v":6040},{"$f":"HLOOKUP(BL$7+0.5,$J$67:$DK$121,ROWS($A$11:$A24)+2,FALSE)","v":838},{"$f":"HLOOKUP(BM$7+0.5,$J$67:$DK$121,ROWS($A$11:$A24)+2,FALSE)","v":790},{"$f":"HLOOKUP(BN$7+0.5,$J$67:$DK$121,ROWS($A$11:$A24)+2,FALSE)","v":1307},{"$f":"HLOOKUP(BO$7+0.5,$J$67:$DK$121,ROWS($A$11:$A24)+2,FALSE)","v":268},{"$f":"HLOOKUP(BP$7+0.5,$J$67:$DK$121,ROWS($A$11:$A24)+2,FALSE)","v":2708},{"$f":"HLOOKUP(BQ$7+0.5,$J$67:$DK$121,ROWS($A$11:$A24)+2,FALSE)","v":614},{"$f":"HLOOKUP(BR$7+0.5,$J$67:$DK$121,ROWS($A$11:$A24)+2,FALSE)","v":81},{"$f":"HLOOKUP(BS$7+0.5,$J$67:$DK$121,ROWS($A$11:$A24)+2,FALSE)","v":199},{"$f":"HLOOKUP(BT$7+0.5,$J$67:$DK$121,ROWS($A$11:$A24)+2,FALSE)","v":124},{"$f":"HLOOKUP(BU$7+0.5,$J$67:$DK$121,ROWS($A$11:$A24)+2,FALSE)","v":1608},{"$f":"HLOOKUP(BV$7+0.5,$J$67:$DK$121,ROWS($A$11:$A24)+2,FALSE)","v":848},{"$f":"HLOOKUP(BW$7+0.5,$J$67:$DK$121,ROWS($A$11:$A24)+2,FALSE)","v":194},{"$f":"HLOOKUP(BX$7+0.5,$J$67:$DK$121,ROWS($A$11:$A24)+2,FALSE)","v":"N/A"},{"$f":"HLOOKUP(BY$7+0.5,$J$67:$DK$121,ROWS($A$11:$A24)+2,FALSE)","v":469},{"$f":"HLOOKUP(BZ$7+0.5,$J$67:$DK$121,ROWS($A$11:$A24)+2,FALSE)","v":282},{"$f":"HLOOKUP(CA$7+0.5,$J$67:$DK$121,ROWS($A$11:$A24)+2,FALSE)","v":170},{"$f":"HLOOKUP(CB$7+0.5,$J$67:$DK$121,ROWS($A$11:$A24)+2,FALSE)","v":69},{"$f":"HLOOKUP(CC$7+0.5,$J$67:$DK$121,ROWS($A$11:$A24)+2,FALSE)","v":128},{"$f":"HLOOKUP(CD$7+0.5,$J$67:$DK$121,ROWS($A$11:$A24)+2,FALSE)","v":92},{"$f":"HLOOKUP(CE$7+0.5,$J$67:$DK$121,ROWS($A$11:$A24)+2,FALSE)","v":187},{"$f":"HLOOKUP(CF$7+0.5,$J$67:$DK$121,ROWS($A$11:$A24)+2,FALSE)","v":161},{"$f":"HLOOKUP(CG$7+0.5,$J$67:$DK$121,ROWS($A$11:$A24)+2,FALSE)","v":391},{"$f":"HLOOKUP(CH$7+0.5,$J$67:$DK$121,ROWS($A$11:$A24)+2,FALSE)","v":777},{"$f":"HLOOKUP(CI$7+0.5,$J$67:$DK$121,ROWS($A$11:$A24)+2,FALSE)","v":528},{"$f":"HLOOKUP(CJ$7+0.5,$J$67:$DK$121,ROWS($A$11:$A24)+2,FALSE)","v":170},{"$f":"HLOOKUP(CK$7+0.5,$J$67:$DK$121,ROWS($A$11:$A24)+2,FALSE)","v":259},{"$f":"HLOOKUP(CL$7+0.5,$J$67:$DK$121,ROWS($A$11:$A24)+2,FALSE)","v":2162},{"$f":"HLOOKUP(CM$7+0.5,$J$67:$DK$121,ROWS($A$11:$A24)+2,FALSE)","v":60},{"$f":"HLOOKUP(CN$7+0.5,$J$67:$DK$121,ROWS($A$11:$A24)+2,FALSE)","v":1031},{"$f":"HLOOKUP(CO$7+0.5,$J$67:$DK$121,ROWS($A$11:$A24)+2,FALSE)","v":187},{"$f":"HLOOKUP(CP$7+0.5,$J$67:$DK$121,ROWS($A$11:$A24)+2,FALSE)","v":206},{"$f":"HLOOKUP(CQ$7+0.5,$J$67:$DK$121,ROWS($A$11:$A24)+2,FALSE)","v":554},{"$f":"HLOOKUP(CR$7+0.5,$J$67:$DK$121,ROWS($A$11:$A24)+2,FALSE)","v":554},{"$f":"HLOOKUP(CS$7+0.5,$J$67:$DK$121,ROWS($A$11:$A24)+2,FALSE)","v":843},{"$f":"HLOOKUP(CT$7+0.5,$J$67:$DK$121,ROWS($A$11:$A24)+2,FALSE)","v":187},{"$f":"HLOOKUP(CU$7+0.5,$J$67:$DK$121,ROWS($A$11:$A24)+2,FALSE)","v":753},{"$f":"HLOOKUP(CV$7+0.5,$J$67:$DK$121,ROWS($A$11:$A24)+2,FALSE)","v":108},{"$f":"HLOOKUP(CW$7+0.5,$J$67:$DK$121,ROWS($A$11:$A24)+2,FALSE)","v":1377},{"$f":"HLOOKUP(CX$7+0.5,$J$67:$DK$121,ROWS($A$11:$A24)+2,FALSE)","v":181},{"$f":"HLOOKUP(CY$7+0.5,$J$67:$DK$121,ROWS($A$11:$A24)+2,FALSE)","v":187},{"$f":"HLOOKUP(CZ$7+0.5,$J$67:$DK$121,ROWS($A$11:$A24)+2,FALSE)","v":238},{"$f":"HLOOKUP(DA$7+0.5,$J$67:$DK$121,ROWS($A$11:$A24)+2,FALSE)","v":192},{"$f":"HLOOKUP(DB$7+0.5,$J$67:$DK$121,ROWS($A$11:$A24)+2,FALSE)","v":1539},{"$f":"HLOOKUP(DC$7+0.5,$J$67:$DK$121,ROWS($A$11:$A24)+2,FALSE)","v":714},{"$f":"HLOOKUP(DD$7+0.5,$J$67:$DK$121,ROWS($A$11:$A24)+2,FALSE)","v":3016},{"$f":"HLOOKUP(DE$7+0.5,$J$67:$DK$121,ROWS($A$11:$A24)+2,FALSE)","v":187},{"$f":"HLOOKUP(DF$7+0.5,$J$67:$DK$121,ROWS($A$11:$A24)+2,FALSE)","v":388},{"$f":"HLOOKUP(DG$7+0.5,$J$67:$DK$121,ROWS($A$11:$A24)+2,FALSE)","v":1919},{"$f":"HLOOKUP(DH$7+0.5,$J$67:$DK$121,ROWS($A$11:$A24)+2,FALSE)","v":187},{"$f":"HLOOKUP(DI$7+0.5,$J$67:$DK$121,ROWS($A$11:$A24)+2,FALSE)","v":272},{"$f":"HLOOKUP(DJ$7+0.5,$J$67:$DK$121,ROWS($A$11:$A24)+2,FALSE)","v":406},{"$f":"HLOOKUP(DK$7+0.5,$J$67:$DK$121,ROWS($A$11:$A24)+2,FALSE)","v":228}]
[null,"Illinois",12725119,5939,11009321,31714,1441191,27618,2.9525433341654472E-2,{"$f":"HLOOKUP(J$7,$J$67:$DK$121,ROWS($A$11:$A25)+2,FALSE)","v":208755},{"$f":"HLOOKUP(K$7,$J$67:$DK$121,ROWS($A$11:$A25)+2,FALSE)","v":883},{"$f":"HLOOKUP(L$7,$J$67:$DK$121,ROWS($A$11:$A25)+2,FALSE)","v":2250},{"$f":"HLOOKUP(M$7,$J$67:$DK$121,ROWS($A$11:$A25)+2,FALSE)","v":7139},{"$f":"HLOOKUP(N$7,$J$67:$DK$121,ROWS($A$11:$A25)+2,FALSE)","v":1587},{"$f":"HLOOKUP(O$7,$J$67:$DK$121,ROWS($A$11:$A25)+2,FALSE)","v":14940},{"$f":"HLOOKUP(P$7,$J$67:$DK$121,ROWS($A$11:$A25)+2,FALSE)","v":3036},{"$f":"HLOOKUP(Q$7,$J$67:$DK$121,ROWS($A$11:$A25)+2,FALSE)","v":955},{"$f":"HLOOKUP(R$7,$J$67:$DK$121,ROWS($A$11:$A25)+2,FALSE)","v":234},{"$f":"HLOOKUP(S$7,$J$67:$DK$121,ROWS($A$11:$A25)+2,FALSE)","v":1066},{"$f":"HLOOKUP(T$7,$J$67:$DK$121,ROWS($A$11:$A25)+2,FALSE)","v":12687},{"$f":"HLOOKUP(U$7,$J$67:$DK$121,ROWS($A$11:$A25)+2,FALSE)","v":8745},{"$f":"HLOOKUP(V$7,$J$67:$DK$121,ROWS($A$11:$A25)+2,FALSE)","v":869},{"$f":"HLOOKUP(W$7,$J$67:$DK$121,ROWS($A$11:$A25)+2,FALSE)","v":1384},{"$f":"HLOOKUP(X$7,$J$67:$DK$121,ROWS($A$11:$A25)+2,FALSE)","v":"N/A"},{"$f":"HLOOKUP(Y$7,$J$67:$DK$121,ROWS($A$11:$A25)+2,FALSE)","v":16907},{"$f":"HLOOKUP(Z$7,$J$67:$DK$121,ROWS($A$11:$A25)+2,FALSE)","v":8529},{"$f":"HLOOKUP(AA$7,$J$67:$DK$121,ROWS($A$11:$A25)+2,FALSE)","v":2009},{"$f":"HLOOKUP(AB$7,$J$67:$DK$121,ROWS($A$11:$A25)+2,FALSE)","v":2923},{"$f":"HLOOKUP(AC$7,$J$67:$DK$121,ROWS($A$11:$A25)+2,FALSE)","v":1229},{"$f":"HLOOKUP(AD$7,$J$67:$DK$121,ROWS($A$11:$A25)+2,FALSE)","v":526},{"$f":"HLOOKUP(AE$7,$J$67:$DK$121,ROWS($A$11:$A25)+2,FALSE)","v":1865},{"$f":"HLOOKUP(AF$7,$J$67:$DK$121,ROWS($A$11:$A25)+2,FALSE)","v":3296},{"$f":"HLOOKUP(AG$7,$J$67:$DK$121,ROWS($A$11:$A25)+2,FALSE)","v":12583},{"$f":"HLOOKUP(AH$7,$J$67:$DK$121,ROWS($A$11:$A25)+2,FALSE)","v":6537},{"$f":"HLOOKUP(AI$7,$J$67:$DK$121,ROWS($A$11:$A25)+2,FALSE)","v":2744},{"$f":"HLOOKUP(AJ$7,$J$67:$DK$121,ROWS($A$11:$A25)+2,FALSE)","v":13264},{"$f":"HLOOKUP(AK$7,$J$67:$DK$121,ROWS($A$11:$A25)+2,FALSE)","v":228},{"$f":"HLOOKUP(AL$7,$J$67:$DK$121,ROWS($A$11:$A25)+2,FALSE)","v":1302},{"$f":"HLOOKUP(AM$7,$J$67:$DK$121,ROWS($A$11:$A25)+2,FALSE)","v":1478},{"$f":"HLOOKUP(AN$7,$J$67:$DK$121,ROWS($A$11:$A25)+2,FALSE)","v":283},{"$f":"HLOOKUP(AO$7,$J$67:$DK$121,ROWS($A$11:$A25)+2,FALSE)","v":2366},{"$f":"HLOOKUP(AP$7,$J$67:$DK$121,ROWS($A$11:$A25)+2,FALSE)","v":1359},{"$f":"HLOOKUP(AQ$7,$J$67:$DK$121,ROWS($A$11:$A25)+2,FALSE)","v":7561},{"$f":"HLOOKUP(AR$7,$J$67:$DK$121,ROWS($A$11:$A25)+2,FALSE)","v":3761},{"$f":"HLOOKUP(AS$7,$J$67:$DK$121,ROWS($A$11:$A25)+2,FALSE)","v":196},{"$f":"HLOOKUP(AT$7,$J$67:$DK$121,ROWS($A$11:$A25)+2,FALSE)","v":6872},{"$f":"HLOOKUP(AU$7,$J$67:$DK$121,ROWS($A$11:$A25)+2,FALSE)","v":1491},{"$f":"HLOOKUP(AV$7,$J$67:$DK$121,ROWS($A$11:$A25)+2,FALSE)","v":954},{"$f":"HLOOKUP(AW$7,$J$67:$DK$121,ROWS($A$11:$A25)+2,FALSE)","v":4588},{"$f":"HLOOKUP(AX$7,$J$67:$DK$121,ROWS($A$11:$A25)+2,FALSE)","v":462},{"$f":"HLOOKUP(AY$7,$J$67:$DK$121,ROWS($A$11:$A25)+2,FALSE)","v":1583},{"$f":"HLOOKUP(AZ$7,$J$67:$DK$121,ROWS($A$11:$A25)+2,FALSE)","v":394},{"$f":"HLOOKUP(BA$7,$J$67:$DK$121,ROWS($A$11:$A25)+2,FALSE)","v":4648},{"$f":"HLOOKUP(BB$7,$J$67:$DK$121,ROWS($A$11:$A25)+2,FALSE)","v":16780},{"$f":"HLOOKUP(BC$7,$J$67:$DK$121,ROWS($A$11:$A25)+2,FALSE)","v":1154},{"$f":"HLOOKUP(BD$7,$J$67:$DK$121,ROWS($A$11:$A25)+2,FALSE)","v":156},{"$f":"HLOOKUP(BE$7,$J$67:$DK$121,ROWS($A$11:$A25)+2,FALSE)","v":4311},{"$f":"HLOOKUP(BF$7,$J$67:$DK$121,ROWS($A$11:$A25)+2,FALSE)","v":2704},{"$f":"HLOOKUP(BG$7,$J$67:$DK$121,ROWS($A$11:$A25)+2,FALSE)","v":1221},{"$f":"HLOOKUP(BH$7,$J$67:$DK$121,ROWS($A$11:$A25)+2,FALSE)","v":14414},{"$f":"HLOOKUP(BI$7,$J$67:$DK$121,ROWS($A$11:$A25)+2,FALSE)","v":302},{"$f":"HLOOKUP(BJ$7,$J$67:$DK$121,ROWS($A$11:$A25)+2,FALSE)","v":2049},{"$f":"HLOOKUP(BK$7+0.5,$J$67:$DK$121,ROWS($A$11:$A25)+2,FALSE)","v":10844},{"$f":"HLOOKUP(BL$7+0.5,$J$67:$DK$121,ROWS($A$11:$A25)+2,FALSE)","v":478},{"$f":"HLOOKUP(BM$7+0.5,$J$67:$DK$121,ROWS($A$11:$A25)+2,FALSE)","v":1511},{"$f":"HLOOKUP(BN$7+0.5,$J$67:$DK$121,ROWS($A$11:$A25)+2,FALSE)","v":2314},{"$f":"HLOOKUP(BO$7+0.5,$J$67:$DK$121,ROWS($A$11:$A25)+2,FALSE)","v":643},{"$f":"HLOOKUP(BP$7+0.5,$J$67:$DK$121,ROWS($A$11:$A25)+2,FALSE)","v":2770},{"$f":"HLOOKUP(BQ$7+0.5,$J$67:$DK$121,ROWS($A$11:$A25)+2,FALSE)","v":1235},{"$f":"HLOOKUP(BR$7+0.5,$J$67:$DK$121,ROWS($A$11:$A25)+2,FALSE)","v":634},{"$f":"HLOOKUP(BS$7+0.5,$J$67:$DK$121,ROWS($A$11:$A25)+2,FALSE)","v":228},{"$f":"HLOOKUP(BT$7+0.5,$J$67:$DK$121,ROWS($A$11:$A25)+2,FALSE)","v":615},{"$f":"HLOOKUP(BU$7+0.5,$J$67:$DK$121,ROWS($A$11:$A25)+2,FALSE)","v":2735},{"$f":"HLOOKUP(BV$7+0.5,$J$67:$DK$121,ROWS($A$11:$A25)+2,FALSE)","v":3894},{"$f":"HLOOKUP(BW$7+0.5,$J$67:$DK$121,ROWS($A$11:$A25)+2,FALSE)","v":593},{"$f":"HLOOKUP(BX$7+0.5,$J$67:$DK$121,ROWS($A$11:$A25)+2,FALSE)","v":868},{"$f":"HLOOKUP(BY$7+0.5,$J$67:$DK$121,ROWS($A$11:$A25)+2,FALSE)","v":"N/A"},{"$f":"HLOOKUP(BZ$7+0.5,$J$67:$DK$121,ROWS($A$11:$A25)+2,FALSE)","v":2654},{"$f":"HLOOKUP(CA$7+0.5,$J$67:$DK$121,ROWS($A$11:$A25)+2,FALSE)","v":1959},{"$f":"HLOOKUP(CB$7+0.5,$J$67:$DK$121,ROWS($A$11:$A25)+2,FALSE)","v":988},{"$f":"HLOOKUP(CC$7+0.5,$J$67:$DK$121,ROWS($A$11:$A25)+2,FALSE)","v":1049},{"$f":"HLOOKUP(CD$7+0.5,$J$67:$DK$121,ROWS($A$11:$A25)+2,FALSE)","v":561},{"$f":"HLOOKUP(CE$7+0.5,$J$67:$DK$121,ROWS($A$11:$A25)+2,FALSE)","v":347},{"$f":"HLOOKUP(CF$7+0.5,$J$67:$DK$121,ROWS($A$11:$A25)+2,FALSE)","v":755},{"$f":"HLOOKUP(CG$7+0.5,$J$67:$DK$121,ROWS($A$11:$A25)+2,FALSE)","v":1088},{"$f":"HLOOKUP(CH$7+0.5,$J$67:$DK$121,ROWS($A$11:$A25)+2,FALSE)","v":3412},{"$f":"HLOOKUP(CI$7+0.5,$J$67:$DK$121,ROWS($A$11:$A25)+2,FALSE)","v":1781},{"$f":"HLOOKUP(CJ$7+0.5,$J$67:$DK$121,ROWS($A$11:$A25)+2,FALSE)","v":1178},{"$f":"HLOOKUP(CK$7+0.5,$J$67:$DK$121,ROWS($A$11:$A25)+2,FALSE)","v":3449},{"$f":"HLOOKUP(CL$7+0.5,$J$67:$DK$121,ROWS($A$11:$A25)+2,FALSE)","v":183},{"$f":"HLOOKUP(CM$7+0.5,$J$67:$DK$121,ROWS($A$11:$A25)+2,FALSE)","v":637},{"$f":"HLOOKUP(CN$7+0.5,$J$67:$DK$121,ROWS($A$11:$A25)+2,FALSE)","v":817},{"$f":"HLOOKUP(CO$7+0.5,$J$67:$DK$121,ROWS($A$11:$A25)+2,FALSE)","v":255},{"$f":"HLOOKUP(CP$7+0.5,$J$67:$DK$121,ROWS($A$11:$A25)+2,FALSE)","v":1097},{"$f":"HLOOKUP(CQ$7+0.5,$J$67:$DK$121,ROWS($A$11:$A25)+2,FALSE)","v":1078},{"$f":"HLOOKUP(CR$7+0.5,$J$67:$DK$121,ROWS($A$11:$A25)+2,FALSE)","v":2307},{"$f":"HLOOKUP(CS$7+0.5,$J$67:$DK$121,ROWS($A$11:$A25)+2,FALSE)","v":1150},{"$f":"HLOOKUP(CT$7+0.5,$J$67:$DK$121,ROWS($A$11:$A25)+2,FALSE)","v":184},{"$f":"HLOOKUP(CU$7+0.5,$J$67:$DK$121,ROWS($A$11:$A25)+2,FALSE)","v":1834},{"$f":"HLOOKUP(CV$7+0.5,$J$67:$DK$121,ROWS($A$11:$A25)+2,FALSE)","v":860},{"$f":"HLOOKUP(CW$7+0.5,$J$67:$DK$121,ROWS($A$11:$A25)+2,FALSE)","v":517},{"$f":"HLOOKUP(CX$7+0.5,$J$67:$DK$121,ROWS($A$11:$A25)+2,FALSE)","v":1506},{"$f":"HLOOKUP(CY$7+0.5,$J$67:$DK$121,ROWS($A$11:$A25)+2,FALSE)","v":478},{"$f":"HLOOKUP(CZ$7+0.5,$J$67:$DK$121,ROWS($A$11:$A25)+2,FALSE)","v":875},{"$f":"HLOOKUP(DA$7+0.5,$J$67:$DK$121,ROWS($A$11:$A25)+2,FALSE)","v":444},{"$f":"HLOOKUP(DB$7+0.5,$J$67:$DK$121,ROWS($A$11:$A25)+2,FALSE)","v":1468},{"$f":"HLOOKUP(DC$7+0.5,$J$67:$DK$121,ROWS($A$11:$A25)+2,FALSE)","v":3035},{"$f":"HLOOKUP(DD$7+0.5,$J$67:$DK$121,ROWS($A$11:$A25)+2,FALSE)","v":495},{"$f":"HLOOKUP(DE$7+0.5,$J$67:$DK$121,ROWS($A$11:$A25)+2,FALSE)","v":133},{"$f":"HLOOKUP(DF$7+0.5,$J$67:$DK$121,ROWS($A$11:$A25)+2,FALSE)","v":1212},{"$f":"HLOOKUP(DG$7+0.5,$J$67:$DK$121,ROWS($A$11:$A25)+2,FALSE)","v":971},{"$f":"HLOOKUP(DH$7+0.5,$J$67:$DK$121,ROWS($A$11:$A25)+2,FALSE)","v":1224},{"$f":"HLOOKUP(DI$7+0.5,$J$67:$DK$121,ROWS($A$11:$A25)+2,FALSE)","v":2249},{"$f":"HLOOKUP(DJ$7+0.5,$J$67:$DK$121,ROWS($A$11:$A25)+2,FALSE)","v":309},{"$f":"HLOOKUP(DK$7+0.5,$J$67:$DK$121,ROWS($A$11:$A25)+2,FALSE)","v":1480}]
[null,"Indiana",6457067,4184,5493090,26865,805228,22224,1.8971775776146709E-2,{"$f":"HLOOKUP(J$7,$J$67:$DK$121,ROWS($A$11:$A26)+2,FALSE)","v":134137},{"$f":"HLOOKUP(K$7,$J$67:$DK$121,ROWS($A$11:$A26)+2,FALSE)","v":1625},{"$f":"HLOOKUP(L$7,$J$67:$DK$121,ROWS($A$11:$A26)+2,FALSE)","v":479},{"$f":"HLOOKUP(M$7,$J$67:$DK$121,ROWS($A$11:$A26)+2,FALSE)","v":2763},{"$f":"HLOOKUP(N$7,$J$67:$DK$121,ROWS($A$11:$A26)+2,FALSE)","v":564},{"$f":"HLOOKUP(O$7,$J$67:$DK$121,ROWS($A$11:$A26)+2,FALSE)","v":6033},{"$f":"HLOOKUP(P$7,$J$67:$DK$121,ROWS($A$11:$A26)+2,FALSE)","v":1225},{"$f":"HLOOKUP(Q$7,$J$67:$DK$121,ROWS($A$11:$A26)+2,FALSE)","v":823},{"$f":"HLOOKUP(R$7,$J$67:$DK$121,ROWS($A$11:$A26)+2,FALSE)","v":639},{"$f":"HLOOKUP(S$7,$J$67:$DK$121,ROWS($A$11:$A26)+2,FALSE)","v":1045},{"$f":"HLOOKUP(T$7,$J$67:$DK$121,ROWS($A$11:$A26)+2,FALSE)","v":11472},{"$f":"HLOOKUP(U$7,$J$67:$DK$121,ROWS($A$11:$A26)+2,FALSE)","v":2258},{"$f":"HLOOKUP(V$7,$J$67:$DK$121,ROWS($A$11:$A26)+2,FALSE)","v":856},{"$f":"HLOOKUP(W$7,$J$67:$DK$121,ROWS($A$11:$A26)+2,FALSE)","v":186},{"$f":"HLOOKUP(X$7,$J$67:$DK$121,ROWS($A$11:$A26)+2,FALSE)","v":28436},{"$f":"HLOOKUP(Y$7,$J$67:$DK$121,ROWS($A$11:$A26)+2,FALSE)","v":"N/A"},{"$f":"HLOOKUP(Z$7,$J$67:$DK$121,ROWS($A$11:$A26)+2,FALSE)","v":1678},{"$f":"HLOOKUP(AA$7,$J$67:$DK$121,ROWS($A$11:$A26)+2,FALSE)","v":1624},{"$f":"HLOOKUP(AB$7,$J$67:$DK$121,ROWS($A$11:$A26)+2,FALSE)","v":11177},{"$f":"HLOOKUP(AC$7,$J$67:$DK$121,ROWS($A$11:$A26)+2,FALSE)","v":736},{"$f":"HLOOKUP(AD$7,$J$67:$DK$121,ROWS($A$11:$A26)+2,FALSE)","v":0},{"$f":"HLOOKUP(AE$7,$J$67:$DK$121,ROWS($A$11:$A26)+2,FALSE)","v":1050},{"$f":"HLOOKUP(AF$7,$J$67:$DK$121,ROWS($A$11:$A26)+2,FALSE)","v":837},{"$f":"HLOOKUP(AG$7,$J$67:$DK$121,ROWS($A$11:$A26)+2,FALSE)","v":11017},{"$f":"HLOOKUP(AH$7,$J$67:$DK$121,ROWS($A$11:$A26)+2,FALSE)","v":1543},{"$f":"HLOOKUP(AI$7,$J$67:$DK$121,ROWS($A$11:$A26)+2,FALSE)","v":1948},{"$f":"HLOOKUP(AJ$7,$J$67:$DK$121,ROWS($A$11:$A26)+2,FALSE)","v":4526},{"$f":"HLOOKUP(AK$7,$J$67:$DK$121,ROWS($A$11:$A26)+2,FALSE)","v":134},{"$f":"HLOOKUP(AL$7,$J$67:$DK$121,ROWS($A$11:$A26)+2,FALSE)","v":591},{"$f":"HLOOKUP(AM$7,$J$67:$DK$121,ROWS($A$11:$A26)+2,FALSE)","v":1011},{"$f":"HLOOKUP(AN$7,$J$67:$DK$121,ROWS($A$11:$A26)+2,FALSE)","v":0},{"$f":"HLOOKUP(AO$7,$J$67:$DK$121,ROWS($A$11:$A26)+2,FALSE)","v":1537},{"$f":"HLOOKUP(AP$7,$J$67:$DK$121,ROWS($A$11:$A26)+2,FALSE)","v":219},{"$f":"HLOOKUP(AQ$7,$J$67:$DK$121,ROWS($A$11:$A26)+2,FALSE)","v":2316},{"$f":"HLOOKUP(AR$7,$J$67:$DK$121,ROWS($A$11:$A26)+2,FALSE)","v":2665},{"$f":"HLOOKUP(AS$7,$J$67:$DK$121,ROWS($A$11:$A26)+2,FALSE)","v":113},{"$f":"HLOOKUP(AT$7,$J$67:$DK$121,ROWS($A$11:$A26)+2,FALSE)","v":11235},{"$f":"HLOOKUP(AU$7,$J$67:$DK$121,ROWS($A$11:$A26)+2,FALSE)","v":1198},{"$f":"HLOOKUP(AV$7,$J$67:$DK$121,ROWS($A$11:$A26)+2,FALSE)","v":387},{"$f":"HLOOKUP(AW$7,$J$67:$DK$121,ROWS($A$11:$A26)+2,FALSE)","v":2419},{"$f":"HLOOKUP(AX$7,$J$67:$DK$121,ROWS($A$11:$A26)+2,FALSE)","v":0},{"$f":"HLOOKUP(AY$7,$J$67:$DK$121,ROWS($A$11:$A26)+2,FALSE)","v":1414},{"$f":"HLOOKUP(AZ$7,$J$67:$DK$121,ROWS($A$11:$A26)+2,FALSE)","v":111},{"$f":"HLOOKUP(BA$7,$J$67:$DK$121,ROWS($A$11:$A26)+2,FALSE)","v":3547},{"$f":"HLOOKUP(BB$7,$J$67:$DK$121,ROWS($A$11:$A26)+2,FALSE)","v":4490},{"$f":"HLOOKUP(BC$7,$J$67:$DK$121,ROWS($A$11:$A26)+2,FALSE)","v":105},{"$f":"HLOOKUP(BD$7,$J$67:$DK$121,ROWS($A$11:$A26)+2,FALSE)","v":0},{"$f":"HLOOKUP(BE$7,$J$67:$DK$121,ROWS($A$11:$A26)+2,FALSE)","v":1932},{"$f":"HLOOKUP(BF$7,$J$67:$DK$121,ROWS($A$11:$A26)+2,FALSE)","v":258},{"$f":"HLOOKUP(BG$7,$J$67:$DK$121,ROWS($A$11:$A26)+2,FALSE)","v":507},{"$f":"HLOOKUP(BH$7,$J$67:$DK$121,ROWS($A$11:$A26)+2,FALSE)","v":1727},{"$f":"HLOOKUP(BI$7,$J$67:$DK$121,ROWS($A$11:$A26)+2,FALSE)","v":1681},{"$f":"HLOOKUP(BJ$7,$J$67:$DK$121,ROWS($A$11:$A26)+2,FALSE)","v":136},{"$f":"HLOOKUP(BK$7+0.5,$J$67:$DK$121,ROWS($A$11:$A26)+2,FALSE)","v":9664},{"$f":"HLOOKUP(BL$7+0.5,$J$67:$DK$121,ROWS($A$11:$A26)+2,FALSE)","v":788},{"$f":"HLOOKUP(BM$7+0.5,$J$67:$DK$121,ROWS($A$11:$A26)+2,FALSE)","v":429},{"$f":"HLOOKUP(BN$7+0.5,$J$67:$DK$121,ROWS($A$11:$A26)+2,FALSE)","v":1095},{"$f":"HLOOKUP(BO$7+0.5,$J$67:$DK$121,ROWS($A$11:$A26)+2,FALSE)","v":753},{"$f":"HLOOKUP(BP$7+0.5,$J$67:$DK$121,ROWS($A$11:$A26)+2,FALSE)","v":1477},{"$f":"HLOOKUP(BQ$7+0.5,$J$67:$DK$121,ROWS($A$11:$A26)+2,FALSE)","v":531},{"$f":"HLOOKUP(BR$7+0.5,$J$67:$DK$121,ROWS($A$11:$A26)+2,FALSE)","v":595},{"$f":"HLOOKUP(BS$7+0.5,$J$67:$DK$121,ROWS($A$11:$A26)+2,FALSE)","v":831},{"$f":"HLOOKUP(BT$7+0.5,$J$67:$DK$121,ROWS($A$11:$A26)+2,FALSE)","v":733},{"$f":"HLOOKUP(BU$7+0.5,$J$67:$DK$121,ROWS($A$11:$A26)+2,FALSE)","v":2864},{"$f":"HLOOKUP(BV$7+0.5,$J$67:$DK$121,ROWS($A$11:$A26)+2,FALSE)","v":1176},{"$f":"HLOOKUP(BW$7+0.5,$J$67:$DK$121,ROWS($A$11:$A26)+2,FALSE)","v":998},{"$f":"HLOOKUP(BX$7+0.5,$J$67:$DK$121,ROWS($A$11:$A26)+2,FALSE)","v":176},{"$f":"HLOOKUP(BY$7+0.5,$J$67:$DK$121,ROWS($A$11:$A26)+2,FALSE)","v":4261},{"$f":"HLOOKUP(BZ$7+0.5,$J$67:$DK$121,ROWS($A$11:$A26)+2,FALSE)","v":"N/A"},{"$f":"HLOOKUP(CA$7+0.5,$J$67:$DK$121,ROWS($A$11:$A26)+2,FALSE)","v":860},{"$f":"HLOOKUP(CB$7+0.5,$J$67:$DK$121,ROWS($A$11:$A26)+2,FALSE)","v":785},{"$f":"HLOOKUP(CC$7+0.5,$J$67:$DK$121,ROWS($A$11:$A26)+2,FALSE)","v":2929},{"$f":"HLOOKUP(CD$7+0.5,$J$67:$DK$121,ROWS($A$11:$A26)+2,FALSE)","v":416},{"$f":"HLOOKUP(CE$7+0.5,$J$67:$DK$121,ROWS($A$11:$A26)+2,FALSE)","v":184},{"$f":"HLOOKUP(CF$7+0.5,$J$67:$DK$121,ROWS($A$11:$A26)+2,FALSE)","v":648},{"$f":"HLOOKUP(CG$7+0.5,$J$67:$DK$121,ROWS($A$11:$A26)+2,FALSE)","v":590},{"$f":"HLOOKUP(CH$7+0.5,$J$67:$DK$121,ROWS($A$11:$A26)+2,FALSE)","v":2594},{"$f":"HLOOKUP(CI$7+0.5,$J$67:$DK$121,ROWS($A$11:$A26)+2,FALSE)","v":732},{"$f":"HLOOKUP(CJ$7+0.5,$J$67:$DK$121,ROWS($A$11:$A26)+2,FALSE)","v":1655},{"$f":"HLOOKUP(CK$7+0.5,$J$67:$DK$121,ROWS($A$11:$A26)+2,FALSE)","v":1802},{"$f":"HLOOKUP(CL$7+0.5,$J$67:$DK$121,ROWS($A$11:$A26)+2,FALSE)","v":191},{"$f":"HLOOKUP(CM$7+0.5,$J$67:$DK$121,ROWS($A$11:$A26)+2,FALSE)","v":541},{"$f":"HLOOKUP(CN$7+0.5,$J$67:$DK$121,ROWS($A$11:$A26)+2,FALSE)","v":549},{"$f":"HLOOKUP(CO$7+0.5,$J$67:$DK$121,ROWS($A$11:$A26)+2,FALSE)","v":184},{"$f":"HLOOKUP(CP$7+0.5,$J$67:$DK$121,ROWS($A$11:$A26)+2,FALSE)","v":1034},{"$f":"HLOOKUP(CQ$7+0.5,$J$67:$DK$121,ROWS($A$11:$A26)+2,FALSE)","v":245},{"$f":"HLOOKUP(CR$7+0.5,$J$67:$DK$121,ROWS($A$11:$A26)+2,FALSE)","v":724},{"$f":"HLOOKUP(CS$7+0.5,$J$67:$DK$121,ROWS($A$11:$A26)+2,FALSE)","v":884},{"$f":"HLOOKUP(CT$7+0.5,$J$67:$DK$121,ROWS($A$11:$A26)+2,FALSE)","v":164},{"$f":"HLOOKUP(CU$7+0.5,$J$67:$DK$121,ROWS($A$11:$A26)+2,FALSE)","v":2192},{"$f":"HLOOKUP(CV$7+0.5,$J$67:$DK$121,ROWS($A$11:$A26)+2,FALSE)","v":725},{"$f":"HLOOKUP(CW$7+0.5,$J$67:$DK$121,ROWS($A$11:$A26)+2,FALSE)","v":239},{"$f":"HLOOKUP(CX$7+0.5,$J$67:$DK$121,ROWS($A$11:$A26)+2,FALSE)","v":1101},{"$f":"HLOOKUP(CY$7+0.5,$J$67:$DK$121,ROWS($A$11:$A26)+2,FALSE)","v":184},{"$f":"HLOOKUP(CZ$7+0.5,$J$67:$DK$121,ROWS($A$11:$A26)+2,FALSE)","v":901},{"$f":"HLOOKUP(DA$7+0.5,$J$67:$DK$121,ROWS($A$11:$A26)+2,FALSE)","v":147},{"$f":"HLOOKUP(DB$7+0.5,$J$67:$DK$121,ROWS($A$11:$A26)+2,FALSE)","v":1422},{"$f":"HLOOKUP(DC$7+0.5,$J$67:$DK$121,ROWS($A$11:$A26)+2,FALSE)","v":1562},{"$f":"HLOOKUP(DD$7+0.5,$J$67:$DK$121,ROWS($A$11:$A26)+2,FALSE)","v":124},{"$f":"HLOOKUP(DE$7+0.5,$J$67:$DK$121,ROWS($A$11:$A26)+2,FALSE)","v":184},{"$f":"HLOOKUP(DF$7+0.5,$J$67:$DK$121,ROWS($A$11:$A26)+2,FALSE)","v":1101},{"$f":"HLOOKUP(DG$7+0.5,$J$67:$DK$121,ROWS($A$11:$A26)+2,FALSE)","v":221},{"$f":"HLOOKUP(DH$7+0.5,$J$67:$DK$121,ROWS($A$11:$A26)+2,FALSE)","v":345},{"$f":"HLOOKUP(DI$7+0.5,$J$67:$DK$121,ROWS($A$11:$A26)+2,FALSE)","v":769},{"$f":"HLOOKUP(DJ$7+0.5,$J$67:$DK$121,ROWS($A$11:$A26)+2,FALSE)","v":2023},{"$f":"HLOOKUP(DK$7+0.5,$J$67:$DK$121,ROWS($A$11:$A26)+2,FALSE)","v":194}]
[null,"Iowa",3035469,2721,2585979,14093,362938,11238,1.0715177265041523E-2,{"$f":"HLOOKUP(J$7,$J$67:$DK$121,ROWS($A$11:$A27)+2,FALSE)","v":75760},{"$f":"HLOOKUP(K$7,$J$67:$DK$121,ROWS($A$11:$A27)+2,FALSE)","v":503},{"$f":"HLOOKUP(L$7,$J$67:$DK$121,ROWS($A$11:$A27)+2,FALSE)","v":951},{"$f":"HLOOKUP(M$7,$J$67:$DK$121,ROWS($A$11:$A27)+2,FALSE)","v":1590},{"$f":"HLOOKUP(N$7,$J$67:$DK$121,ROWS($A$11:$A27)+2,FALSE)","v":451},{"$f":"HLOOKUP(O$7,$J$67:$DK$121,ROWS($A$11:$A27)+2,FALSE)","v":3268},{"$f":"HLOOKUP(P$7,$J$67:$DK$121,ROWS($A$11:$A27)+2,FALSE)","v":3252},{"$f":"HLOOKUP(Q$7,$J$67:$DK$121,ROWS($A$11:$A27)+2,FALSE)","v":112},{"$f":"HLOOKUP(R$7,$J$67:$DK$121,ROWS($A$11:$A27)+2,FALSE)","v":0},{"$f":"HLOOKUP(S$7,$J$67:$DK$121,ROWS($A$11:$A27)+2,FALSE)","v":151},{"$f":"HLOOKUP(T$7,$J$67:$DK$121,ROWS($A$11:$A27)+2,FALSE)","v":4335},{"$f":"HLOOKUP(U$7,$J$67:$DK$121,ROWS($A$11:$A27)+2,FALSE)","v":596},{"$f":"HLOOKUP(V$7,$J$67:$DK$121,ROWS($A$11:$A27)+2,FALSE)","v":521},{"$f":"HLOOKUP(W$7,$J$67:$DK$121,ROWS($A$11:$A27)+2,FALSE)","v":290},{"$f":"HLOOKUP(X$7,$J$67:$DK$121,ROWS($A$11:$A27)+2,FALSE)","v":11969},{"$f":"HLOOKUP(Y$7,$J$67:$DK$121,ROWS($A$11:$A27)+2,FALSE)","v":1716},{"$f":"HLOOKUP(Z$7,$J$67:$DK$121,ROWS($A$11:$A27)+2,FALSE)","v":"N/A"},{"$f":"HLOOKUP(AA$7,$J$67:$DK$121,ROWS($A$11:$A27)+2,FALSE)","v":918},{"$f":"HLOOKUP(AB$7,$J$67:$DK$121,ROWS($A$11:$A27)+2,FALSE)","v":819},{"$f":"HLOOKUP(AC$7,$J$67:$DK$121,ROWS($A$11:$A27)+2,FALSE)","v":763},{"$f":"HLOOKUP(AD$7,$J$67:$DK$121,ROWS($A$11:$A27)+2,FALSE)","v":78},{"$f":"HLOOKUP(AE$7,$J$67:$DK$121,ROWS($A$11:$A27)+2,FALSE)","v":419},{"$f":"HLOOKUP(AF$7,$J$67:$DK$121,ROWS($A$11:$A27)+2,FALSE)","v":585},{"$f":"HLOOKUP(AG$7,$J$67:$DK$121,ROWS($A$11:$A27)+2,FALSE)","v":946},{"$f":"HLOOKUP(AH$7,$J$67:$DK$121,ROWS($A$11:$A27)+2,FALSE)","v":7505},{"$f":"HLOOKUP(AI$7,$J$67:$DK$121,ROWS($A$11:$A27)+2,FALSE)","v":751},{"$f":"HLOOKUP(AJ$7,$J$67:$DK$121,ROWS($A$11:$A27)+2,FALSE)","v":4168},{"$f":"HLOOKUP(AK$7,$J$67:$DK$121,ROWS($A$11:$A27)+2,FALSE)","v":452},{"$f":"HLOOKUP(AL$7,$J$67:$DK$121,ROWS($A$11:$A27)+2,FALSE)","v":7698},{"$f":"HLOOKUP(AM$7,$J$67:$DK$121,ROWS($A$11:$A27)+2,FALSE)","v":681},{"$f":"HLOOKUP(AN$7,$J$67:$DK$121,ROWS($A$11:$A27)+2,FALSE)","v":56},{"$f":"HLOOKUP(AO$7,$J$67:$DK$121,ROWS($A$11:$A27)+2,FALSE)","v":1018},{"$f":"HLOOKUP(AP$7,$J$67:$DK$121,ROWS($A$11:$A27)+2,FALSE)","v":114},{"$f":"HLOOKUP(AQ$7,$J$67:$DK$121,ROWS($A$11:$A27)+2,FALSE)","v":1230},{"$f":"HLOOKUP(AR$7,$J$67:$DK$121,ROWS($A$11:$A27)+2,FALSE)","v":734},{"$f":"HLOOKUP(AS$7,$J$67:$DK$121,ROWS($A$11:$A27)+2,FALSE)","v":833},{"$f":"HLOOKUP(AT$7,$J$67:$DK$121,ROWS($A$11:$A27)+2,FALSE)","v":1127},{"$f":"HLOOKUP(AU$7,$J$67:$DK$121,ROWS($A$11:$A27)+2,FALSE)","v":1465},{"$f":"HLOOKUP(AV$7,$J$67:$DK$121,ROWS($A$11:$A27)+2,FALSE)","v":348},{"$f":"HLOOKUP(AW$7,$J$67:$DK$121,ROWS($A$11:$A27)+2,FALSE)","v":451},{"$f":"HLOOKUP(AX$7,$J$67:$DK$121,ROWS($A$11:$A27)+2,FALSE)","v":0},{"$f":"HLOOKUP(AY$7,$J$67:$DK$121,ROWS($A$11:$A27)+2,FALSE)","v":943},{"$f":"HLOOKUP(AZ$7,$J$67:$DK$121,ROWS($A$11:$A27)+2,FALSE)","v":1158},{"$f":"HLOOKUP(BA$7,$J$67:$DK$121,ROWS($A$11:$A27)+2,FALSE)","v":1148},{"$f":"HLOOKUP(BB$7,$J$67:$DK$121,ROWS($A$11:$A27)+2,FALSE)","v":3553},{"$f":"HLOOKUP(BC$7,$J$67:$DK$121,ROWS($A$11:$A27)+2,FALSE)","v":886},{"$f":"HLOOKUP(BD$7,$J$67:$DK$121,ROWS($A$11:$A27)+2,FALSE)","v":0},{"$f":"HLOOKUP(BE$7,$J$67:$DK$121,ROWS($A$11:$A27)+2,FALSE)","v":268},{"$f":"HLOOKUP(BF$7,$J$67:$DK$121,ROWS($A$11:$A27)+2,FALSE)","v":919},{"$f":"HLOOKUP(BG$7,$J$67:$DK$121,ROWS($A$11:$A27)+2,FALSE)","v":22},{"$f":"HLOOKUP(BH$7,$J$67:$DK$121,ROWS($A$11:$A27)+2,FALSE)","v":3607},{"$f":"HLOOKUP(BI$7,$J$67:$DK$121,ROWS($A$11:$A27)+2,FALSE)","v":392},{"$f":"HLOOKUP(BJ$7,$J$67:$DK$121,ROWS($A$11:$A27)+2,FALSE)","v":786},{"$f":"HLOOKUP(BK$7+0.5,$J$67:$DK$121,ROWS($A$11:$A27)+2,FALSE)","v":5982},{"$f":"HLOOKUP(BL$7+0.5,$J$67:$DK$121,ROWS($A$11:$A27)+2,FALSE)","v":400},{"$f":"HLOOKUP(BM$7+0.5,$J$67:$DK$121,ROWS($A$11:$A27)+2,FALSE)","v":814},{"$f":"HLOOKUP(BN$7+0.5,$J$67:$DK$121,ROWS($A$11:$A27)+2,FALSE)","v":803},{"$f":"HLOOKUP(BO$7+0.5,$J$67:$DK$121,ROWS($A$11:$A27)+2,FALSE)","v":237},{"$f":"HLOOKUP(BP$7+0.5,$J$67:$DK$121,ROWS($A$11:$A27)+2,FALSE)","v":1296},{"$f":"HLOOKUP(BQ$7+0.5,$J$67:$DK$121,ROWS($A$11:$A27)+2,FALSE)","v":1250},{"$f":"HLOOKUP(BR$7+0.5,$J$67:$DK$121,ROWS($A$11:$A27)+2,FALSE)","v":135},{"$f":"HLOOKUP(BS$7+0.5,$J$67:$DK$121,ROWS($A$11:$A27)+2,FALSE)","v":151},{"$f":"HLOOKUP(BT$7+0.5,$J$67:$DK$121,ROWS($A$11:$A27)+2,FALSE)","v":155},{"$f":"HLOOKUP(BU$7+0.5,$J$67:$DK$121,ROWS($A$11:$A27)+2,FALSE)","v":2060},{"$f":"HLOOKUP(BV$7+0.5,$J$67:$DK$121,ROWS($A$11:$A27)+2,FALSE)","v":481},{"$f":"HLOOKUP(BW$7+0.5,$J$67:$DK$121,ROWS($A$11:$A27)+2,FALSE)","v":476},{"$f":"HLOOKUP(BX$7+0.5,$J$67:$DK$121,ROWS($A$11:$A27)+2,FALSE)","v":218},{"$f":"HLOOKUP(BY$7+0.5,$J$67:$DK$121,ROWS($A$11:$A27)+2,FALSE)","v":2313},{"$f":"HLOOKUP(BZ$7+0.5,$J$67:$DK$121,ROWS($A$11:$A27)+2,FALSE)","v":1097},{"$f":"HLOOKUP(CA$7+0.5,$J$67:$DK$121,ROWS($A$11:$A27)+2,FALSE)","v":"N/A"},{"$f":"HLOOKUP(CB$7+0.5,$J$67:$DK$121,ROWS($A$11:$A27)+2,FALSE)","v":500},{"$f":"HLOOKUP(CC$7+0.5,$J$67:$DK$121,ROWS($A$11:$A27)+2,FALSE)","v":609},{"$f":"HLOOKUP(CD$7+0.5,$J$67:$DK$121,ROWS($A$11:$A27)+2,FALSE)","v":568},{"$f":"HLOOKUP(CE$7+0.5,$J$67:$DK$121,ROWS($A$11:$A27)+2,FALSE)","v":125},{"$f":"HLOOKUP(CF$7+0.5,$J$67:$DK$121,ROWS($A$11:$A27)+2,FALSE)","v":287},{"$f":"HLOOKUP(CG$7+0.5,$J$67:$DK$121,ROWS($A$11:$A27)+2,FALSE)","v":520},{"$f":"HLOOKUP(CH$7+0.5,$J$67:$DK$121,ROWS($A$11:$A27)+2,FALSE)","v":497},{"$f":"HLOOKUP(CI$7+0.5,$J$67:$DK$121,ROWS($A$11:$A27)+2,FALSE)","v":1826},{"$f":"HLOOKUP(CJ$7+0.5,$J$67:$DK$121,ROWS($A$11:$A27)+2,FALSE)","v":621},{"$f":"HLOOKUP(CK$7+0.5,$J$67:$DK$121,ROWS($A$11:$A27)+2,FALSE)","v":1021},{"$f":"HLOOKUP(CL$7+0.5,$J$67:$DK$121,ROWS($A$11:$A27)+2,FALSE)","v":305},{"$f":"HLOOKUP(CM$7+0.5,$J$67:$DK$121,ROWS($A$11:$A27)+2,FALSE)","v":1806},{"$f":"HLOOKUP(CN$7+0.5,$J$67:$DK$121,ROWS($A$11:$A27)+2,FALSE)","v":602},{"$f":"HLOOKUP(CO$7+0.5,$J$67:$DK$121,ROWS($A$11:$A27)+2,FALSE)","v":93},{"$f":"HLOOKUP(CP$7+0.5,$J$67:$DK$121,ROWS($A$11:$A27)+2,FALSE)","v":767},{"$f":"HLOOKUP(CQ$7+0.5,$J$67:$DK$121,ROWS($A$11:$A27)+2,FALSE)","v":188},{"$f":"HLOOKUP(CR$7+0.5,$J$67:$DK$121,ROWS($A$11:$A27)+2,FALSE)","v":819},{"$f":"HLOOKUP(CS$7+0.5,$J$67:$DK$121,ROWS($A$11:$A27)+2,FALSE)","v":428},{"$f":"HLOOKUP(CT$7+0.5,$J$67:$DK$121,ROWS($A$11:$A27)+2,FALSE)","v":617},{"$f":"HLOOKUP(CU$7+0.5,$J$67:$DK$121,ROWS($A$11:$A27)+2,FALSE)","v":692},{"$f":"HLOOKUP(CV$7+0.5,$J$67:$DK$121,ROWS($A$11:$A27)+2,FALSE)","v":974},{"$f":"HLOOKUP(CW$7+0.5,$J$67:$DK$121,ROWS($A$11:$A27)+2,FALSE)","v":302},{"$f":"HLOOKUP(CX$7+0.5,$J$67:$DK$121,ROWS($A$11:$A27)+2,FALSE)","v":353},{"$f":"HLOOKUP(CY$7+0.5,$J$67:$DK$121,ROWS($A$11:$A27)+2,FALSE)","v":151},{"$f":"HLOOKUP(CZ$7+0.5,$J$67:$DK$121,ROWS($A$11:$A27)+2,FALSE)","v":556},{"$f":"HLOOKUP(DA$7+0.5,$J$67:$DK$121,ROWS($A$11:$A27)+2,FALSE)","v":441},{"$f":"HLOOKUP(DB$7+0.5,$J$67:$DK$121,ROWS($A$11:$A27)+2,FALSE)","v":871},{"$f":"HLOOKUP(DC$7+0.5,$J$67:$DK$121,ROWS($A$11:$A27)+2,FALSE)","v":1275},{"$f":"HLOOKUP(DD$7+0.5,$J$67:$DK$121,ROWS($A$11:$A27)+2,FALSE)","v":880},{"$f":"HLOOKUP(DE$7+0.5,$J$67:$DK$121,ROWS($A$11:$A27)+2,FALSE)","v":151},{"$f":"HLOOKUP(DF$7+0.5,$J$67:$DK$121,ROWS($A$11:$A27)+2,FALSE)","v":200},{"$f":"HLOOKUP(DG$7+0.5,$J$67:$DK$121,ROWS($A$11:$A27)+2,FALSE)","v":485},{"$f":"HLOOKUP(DH$7+0.5,$J$67:$DK$121,ROWS($A$11:$A27)+2,FALSE)","v":41},{"$f":"HLOOKUP(DI$7+0.5,$J$67:$DK$121,ROWS($A$11:$A27)+2,FALSE)","v":849},{"$f":"HLOOKUP(DJ$7+0.5,$J$67:$DK$121,ROWS($A$11:$A27)+2,FALSE)","v":316},{"$f":"HLOOKUP(DK$7+0.5,$J$67:$DK$121,ROWS($A$11:$A27)+2,FALSE)","v":1190}]
[null,"Kansas",2848708,2507,2361899,16878,381695,15902,1.2486519398982652E-2,{"$f":"HLOOKUP(J$7,$J$67:$DK$121,ROWS($A$11:$A28)+2,FALSE)","v":88284},{"$f":"HLOOKUP(K$7,$J$67:$DK$121,ROWS($A$11:$A28)+2,FALSE)","v":853},{"$f":"HLOOKUP(L$7,$J$67:$DK$121,ROWS($A$11:$A28)+2,FALSE)","v":333},{"$f":"HLOOKUP(M$7,$J$67:$DK$121,ROWS($A$11:$A28)+2,FALSE)","v":3094},{"$f":"HLOOKUP(N$7,$J$67:$DK$121,ROWS($A$11:$A28)+2,FALSE)","v":2158},{"$f":"HLOOKUP(O$7,$J$67:$DK$121,ROWS($A$11:$A28)+2,FALSE)","v":5411},{"$f":"HLOOKUP(P$7,$J$67:$DK$121,ROWS($A$11:$A28)+2,FALSE)","v":3746},{"$f":"HLOOKUP(Q$7,$J$67:$DK$121,ROWS($A$11:$A28)+2,FALSE)","v":210},{"$f":"HLOOKUP(R$7,$J$67:$DK$121,ROWS($A$11:$A28)+2,FALSE)","v":0},{"$f":"HLOOKUP(S$7,$J$67:$DK$121,ROWS($A$11:$A28)+2,FALSE)","v":456},{"$f":"HLOOKUP(T$7,$J$67:$DK$121,ROWS($A$11:$A28)+2,FALSE)","v":3118},{"$f":"HLOOKUP(U$7,$J$67:$DK$121,ROWS($A$11:$A28)+2,FALSE)","v":1896},{"$f":"HLOOKUP(V$7,$J$67:$DK$121,ROWS($A$11:$A28)+2,FALSE)","v":149},{"$f":"HLOOKUP(W$7,$J$67:$DK$121,ROWS($A$11:$A28)+2,FALSE)","v":456},{"$f":"HLOOKUP(X$7,$J$67:$DK$121,ROWS($A$11:$A28)+2,FALSE)","v":1702},{"$f":"HLOOKUP(Y$7,$J$67:$DK$121,ROWS($A$11:$A28)+2,FALSE)","v":1679},{"$f":"HLOOKUP(Z$7,$J$67:$DK$121,ROWS($A$11:$A28)+2,FALSE)","v":1527},{"$f":"HLOOKUP(AA$7,$J$67:$DK$121,ROWS($A$11:$A28)+2,FALSE)","v":"N/A"},{"$f":"HLOOKUP(AB$7,$J$67:$DK$121,ROWS($A$11:$A28)+2,FALSE)","v":617},{"$f":"HLOOKUP(AC$7,$J$67:$DK$121,ROWS($A$11:$A28)+2,FALSE)","v":438},{"$f":"HLOOKUP(AD$7,$J$67:$DK$121,ROWS($A$11:$A28)+2,FALSE)","v":211},{"$f":"HLOOKUP(AE$7,$J$67:$DK$121,ROWS($A$11:$A28)+2,FALSE)","v":282},{"$f":"HLOOKUP(AF$7,$J$67:$DK$121,ROWS($A$11:$A28)+2,FALSE)","v":187},{"$f":"HLOOKUP(AG$7,$J$67:$DK$121,ROWS($A$11:$A28)+2,FALSE)","v":1125},{"$f":"HLOOKUP(AH$7,$J$67:$DK$121,ROWS($A$11:$A28)+2,FALSE)","v":682},{"$f":"HLOOKUP(AI$7,$J$67:$DK$121,ROWS($A$11:$A28)+2,FALSE)","v":452},{"$f":"HLOOKUP(AJ$7,$J$67:$DK$121,ROWS($A$11:$A28)+2,FALSE)","v":21022},{"$f":"HLOOKUP(AK$7,$J$67:$DK$121,ROWS($A$11:$A28)+2,FALSE)","v":300},{"$f":"HLOOKUP(AL$7,$J$67:$DK$121,ROWS($A$11:$A28)+2,FALSE)","v":4126},{"$f":"HLOOKUP(AM$7,$J$67:$DK$121,ROWS($A$11:$A28)+2,FALSE)","v":851},{"$f":"HLOOKUP(AN$7,$J$67:$DK$121,ROWS($A$11:$A28)+2,FALSE)","v":0},{"$f":"HLOOKUP(AO$7,$J$67:$DK$121,ROWS($A$11:$A28)+2,FALSE)","v":267},{"$f":"HLOOKUP(AP$7,$J$67:$DK$121,ROWS($A$11:$A28)+2,FALSE)","v":1029},{"$f":"HLOOKUP(AQ$7,$J$67:$DK$121,ROWS($A$11:$A28)+2,FALSE)","v":571},{"$f":"HLOOKUP(AR$7,$J$67:$DK$121,ROWS($A$11:$A28)+2,FALSE)","v":813},{"$f":"HLOOKUP(AS$7,$J$67:$DK$121,ROWS($A$11:$A28)+2,FALSE)","v":261},{"$f":"HLOOKUP(AT$7,$J$67:$DK$121,ROWS($A$11:$A28)+2,FALSE)","v":1310},{"$f":"HLOOKUP(AU$7,$J$67:$DK$121,ROWS($A$11:$A28)+2,FALSE)","v":8408},{"$f":"HLOOKUP(AV$7,$J$67:$DK$121,ROWS($A$11:$A28)+2,FALSE)","v":848},{"$f":"HLOOKUP(AW$7,$J$67:$DK$121,ROWS($A$11:$A28)+2,FALSE)","v":918},{"$f":"HLOOKUP(AX$7,$J$67:$DK$121,ROWS($A$11:$A28)+2,FALSE)","v":18},{"$f":"HLOOKUP(AY$7,$J$67:$DK$121,ROWS($A$11:$A28)+2,FALSE)","v":556},{"$f":"HLOOKUP(AZ$7,$J$67:$DK$121,ROWS($A$11:$A28)+2,FALSE)","v":154},{"$f":"HLOOKUP(BA$7,$J$67:$DK$121,ROWS($A$11:$A28)+2,FALSE)","v":1542},{"$f":"HLOOKUP(BB$7,$J$67:$DK$121,ROWS($A$11:$A28)+2,FALSE)","v":8468},{"$f":"HLOOKUP(BC$7,$J$67:$DK$121,ROWS($A$11:$A28)+2,FALSE)","v":97},{"$f":"HLOOKUP(BD$7,$J$67:$DK$121,ROWS($A$11:$A28)+2,FALSE)","v":70},{"$f":"HLOOKUP(BE$7,$J$67:$DK$121,ROWS($A$11:$A28)+2,FALSE)","v":1705},{"$f":"HLOOKUP(BF$7,$J$67:$DK$121,ROWS($A$11:$A28)+2,FALSE)","v":3265},{"$f":"HLOOKUP(BG$7,$J$67:$DK$121,ROWS($A$11:$A28)+2,FALSE)","v":139},{"$f":"HLOOKUP(BH$7,$J$67:$DK$121,ROWS($A$11:$A28)+2,FALSE)","v":486},{"$f":"HLOOKUP(BI$7,$J$67:$DK$121,ROWS($A$11:$A28)+2,FALSE)","v":278},{"$f":"HLOOKUP(BJ$7,$J$67:$DK$121,ROWS($A$11:$A28)+2,FALSE)","v":82},{"$f":"HLOOKUP(BK$7+0.5,$J$67:$DK$121,ROWS($A$11:$A28)+2,FALSE)","v":7145},{"$f":"HLOOKUP(BL$7+0.5,$J$67:$DK$121,ROWS($A$11:$A28)+2,FALSE)","v":609},{"$f":"HLOOKUP(BM$7+0.5,$J$67:$DK$121,ROWS($A$11:$A28)+2,FALSE)","v":407},{"$f":"HLOOKUP(BN$7+0.5,$J$67:$DK$121,ROWS($A$11:$A28)+2,FALSE)","v":1630},{"$f":"HLOOKUP(BO$7+0.5,$J$67:$DK$121,ROWS($A$11:$A28)+2,FALSE)","v":890},{"$f":"HLOOKUP(BP$7+0.5,$J$67:$DK$121,ROWS($A$11:$A28)+2,FALSE)","v":2012},{"$f":"HLOOKUP(BQ$7+0.5,$J$67:$DK$121,ROWS($A$11:$A28)+2,FALSE)","v":1360},{"$f":"HLOOKUP(BR$7+0.5,$J$67:$DK$121,ROWS($A$11:$A28)+2,FALSE)","v":208},{"$f":"HLOOKUP(BS$7+0.5,$J$67:$DK$121,ROWS($A$11:$A28)+2,FALSE)","v":165},{"$f":"HLOOKUP(BT$7+0.5,$J$67:$DK$121,ROWS($A$11:$A28)+2,FALSE)","v":737},{"$f":"HLOOKUP(BU$7+0.5,$J$67:$DK$121,ROWS($A$11:$A28)+2,FALSE)","v":1380},{"$f":"HLOOKUP(BV$7+0.5,$J$67:$DK$121,ROWS($A$11:$A28)+2,FALSE)","v":1395},{"$f":"HLOOKUP(BW$7+0.5,$J$67:$DK$121,ROWS($A$11:$A28)+2,FALSE)","v":156},{"$f":"HLOOKUP(BX$7+0.5,$J$67:$DK$121,ROWS($A$11:$A28)+2,FALSE)","v":356},{"$f":"HLOOKUP(BY$7+0.5,$J$67:$DK$121,ROWS($A$11:$A28)+2,FALSE)","v":582},{"$f":"HLOOKUP(BZ$7+0.5,$J$67:$DK$121,ROWS($A$11:$A28)+2,FALSE)","v":839},{"$f":"HLOOKUP(CA$7+0.5,$J$67:$DK$121,ROWS($A$11:$A28)+2,FALSE)","v":860},{"$f":"HLOOKUP(CB$7+0.5,$J$67:$DK$121,ROWS($A$11:$A28)+2,FALSE)","v":"N/A"},{"$f":"HLOOKUP(CC$7+0.5,$J$67:$DK$121,ROWS($A$11:$A28)+2,FALSE)","v":476},{"$f":"HLOOKUP(CD$7+0.5,$J$67:$DK$121,ROWS($A$11:$A28)+2,FALSE)","v":408},{"$f":"HLOOKUP(CE$7+0.5,$J$67:$DK$121,ROWS($A$11:$A28)+2,FALSE)","v":225},{"$f":"HLOOKUP(CF$7+0.5,$J$67:$DK$121,ROWS($A$11:$A28)+2,FALSE)","v":282},{"$f":"HLOOKUP(CG$7+0.5,$J$67:$DK$121,ROWS($A$11:$A28)+2,FALSE)","v":203},{"$f":"HLOOKUP(CH$7+0.5,$J$67:$DK$121,ROWS($A$11:$A28)+2,FALSE)","v":682},{"$f":"HLOOKUP(CI$7+0.5,$J$67:$DK$121,ROWS($A$11:$A28)+2,FALSE)","v":367},{"$f":"HLOOKUP(CJ$7+0.5,$J$67:$DK$121,ROWS($A$11:$A28)+2,FALSE)","v":501},{"$f":"HLOOKUP(CK$7+0.5,$J$67:$DK$121,ROWS($A$11:$A28)+2,FALSE)","v":3073},{"$f":"HLOOKUP(CL$7+0.5,$J$67:$DK$121,ROWS($A$11:$A28)+2,FALSE)","v":326},{"$f":"HLOOKUP(CM$7+0.5,$J$67:$DK$121,ROWS($A$11:$A28)+2,FALSE)","v":1245},{"$f":"HLOOKUP(CN$7+0.5,$J$67:$DK$121,ROWS($A$11:$A28)+2,FALSE)","v":606},{"$f":"HLOOKUP(CO$7+0.5,$J$67:$DK$121,ROWS($A$11:$A28)+2,FALSE)","v":165},{"$f":"HLOOKUP(CP$7+0.5,$J$67:$DK$121,ROWS($A$11:$A28)+2,FALSE)","v":228},{"$f":"HLOOKUP(CQ$7+0.5,$J$67:$DK$121,ROWS($A$11:$A28)+2,FALSE)","v":627},{"$f":"HLOOKUP(CR$7+0.5,$J$67:$DK$121,ROWS($A$11:$A28)+2,FALSE)","v":367},{"$f":"HLOOKUP(CS$7+0.5,$J$67:$DK$121,ROWS($A$11:$A28)+2,FALSE)","v":476},{"$f":"HLOOKUP(CT$7+0.5,$J$67:$DK$121,ROWS($A$11:$A28)+2,FALSE)","v":263},{"$f":"HLOOKUP(CU$7+0.5,$J$67:$DK$121,ROWS($A$11:$A28)+2,FALSE)","v":638},{"$f":"HLOOKUP(CV$7+0.5,$J$67:$DK$121,ROWS($A$11:$A28)+2,FALSE)","v":2299},{"$f":"HLOOKUP(CW$7+0.5,$J$67:$DK$121,ROWS($A$11:$A28)+2,FALSE)","v":557},{"$f":"HLOOKUP(CX$7+0.5,$J$67:$DK$121,ROWS($A$11:$A28)+2,FALSE)","v":672},{"$f":"HLOOKUP(CY$7+0.5,$J$67:$DK$121,ROWS($A$11:$A28)+2,FALSE)","v":31},{"$f":"HLOOKUP(CZ$7+0.5,$J$67:$DK$121,ROWS($A$11:$A28)+2,FALSE)","v":375},{"$f":"HLOOKUP(DA$7+0.5,$J$67:$DK$121,ROWS($A$11:$A28)+2,FALSE)","v":195},{"$f":"HLOOKUP(DB$7+0.5,$J$67:$DK$121,ROWS($A$11:$A28)+2,FALSE)","v":825},{"$f":"HLOOKUP(DC$7+0.5,$J$67:$DK$121,ROWS($A$11:$A28)+2,FALSE)","v":2434},{"$f":"HLOOKUP(DD$7+0.5,$J$67:$DK$121,ROWS($A$11:$A28)+2,FALSE)","v":106},{"$f":"HLOOKUP(DE$7+0.5,$J$67:$DK$121,ROWS($A$11:$A28)+2,FALSE)","v":138},{"$f":"HLOOKUP(DF$7+0.5,$J$67:$DK$121,ROWS($A$11:$A28)+2,FALSE)","v":853},{"$f":"HLOOKUP(DG$7+0.5,$J$67:$DK$121,ROWS($A$11:$A28)+2,FALSE)","v":1675},{"$f":"HLOOKUP(DH$7+0.5,$J$67:$DK$121,ROWS($A$11:$A28)+2,FALSE)","v":132},{"$f":"HLOOKUP(DI$7+0.5,$J$67:$DK$121,ROWS($A$11:$A28)+2,FALSE)","v":530},{"$f":"HLOOKUP(DJ$7+0.5,$J$67:$DK$121,ROWS($A$11:$A28)+2,FALSE)","v":239},{"$f":"HLOOKUP(DK$7+0.5,$J$67:$DK$121,ROWS($A$11:$A28)+2,FALSE)","v":147}]
[null,"Kentucky",4328626,2851,3676472,15304,521511,14825,1.5952121148260799E-2,{"$f":"HLOOKUP(J$7,$J$67:$DK$121,ROWS($A$11:$A29)+2,FALSE)","v":112787},{"$f":"HLOOKUP(K$7,$J$67:$DK$121,ROWS($A$11:$A29)+2,FALSE)","v":4137},{"$f":"HLOOKUP(L$7,$J$67:$DK$121,ROWS($A$11:$A29)+2,FALSE)","v":304},{"$f":"HLOOKUP(M$7,$J$67:$DK$121,ROWS($A$11:$A29)+2,FALSE)","v":1103},{"$f":"HLOOKUP(N$7,$J$67:$DK$121,ROWS($A$11:$A29)+2,FALSE)","v":518},{"$f":"HLOOKUP(O$7,$J$67:$DK$121,ROWS($A$11:$A29)+2,FALSE)","v":3415},{"$f":"HLOOKUP(P$7,$J$67:$DK$121,ROWS($A$11:$A29)+2,FALSE)","v":712},{"$f":"HLOOKUP(Q$7,$J$67:$DK$121,ROWS($A$11:$A29)+2,FALSE)","v":246},{"$f":"HLOOKUP(R$7,$J$67:$DK$121,ROWS($A$11:$A29)+2,FALSE)","v":706},{"$f":"HLOOKUP(S$7,$J$67:$DK$121,ROWS($A$11:$A29)+2,FALSE)","v":254},{"$f":"HLOOKUP(T$7,$J$67:$DK$121,ROWS($A$11:$A29)+2,FALSE)","v":9232},{"$f":"HLOOKUP(U$7,$J$67:$DK$121,ROWS($A$11:$A29)+2,FALSE)","v":4173},{"$f":"HLOOKUP(V$7,$J$67:$DK$121,ROWS($A$11:$A29)+2,FALSE)","v":647},{"$f":"HLOOKUP(W$7,$J$67:$DK$121,ROWS($A$11:$A29)+2,FALSE)","v":50},{"$f":"HLOOKUP(X$7,$J$67:$DK$121,ROWS($A$11:$A29)+2,FALSE)","v":4445},{"$f":"HLOOKUP(Y$7,$J$67:$DK$121,ROWS($A$11:$A29)+2,FALSE)","v":12203},{"$f":"HLOOKUP(Z$7,$J$67:$DK$121,ROWS($A$11:$A29)+2,FALSE)","v":238},{"$f":"HLOOKUP(AA$7,$J$67:$DK$121,ROWS($A$11:$A29)+2,FALSE)","v":602},{"$f":"HLOOKUP(AB$7,$J$67:$DK$121,ROWS($A$11:$A29)+2,FALSE)","v":"N/A"},{"$f":"HLOOKUP(AC$7,$J$67:$DK$121,ROWS($A$11:$A29)+2,FALSE)","v":666},{"$f":"HLOOKUP(AD$7,$J$67:$DK$121,ROWS($A$11:$A29)+2,FALSE)","v":46},{"$f":"HLOOKUP(AE$7,$J$67:$DK$121,ROWS($A$11:$A29)+2,FALSE)","v":1120},{"$f":"HLOOKUP(AF$7,$J$67:$DK$121,ROWS($A$11:$A29)+2,FALSE)","v":419},{"$f":"HLOOKUP(AG$7,$J$67:$DK$121,ROWS($A$11:$A29)+2,FALSE)","v":7302},{"$f":"HLOOKUP(AH$7,$J$67:$DK$121,ROWS($A$11:$A29)+2,FALSE)","v":605},{"$f":"HLOOKUP(AI$7,$J$67:$DK$121,ROWS($A$11:$A29)+2,FALSE)","v":646},{"$f":"HLOOKUP(AJ$7,$J$67:$DK$121,ROWS($A$11:$A29)+2,FALSE)","v":2381},{"$f":"HLOOKUP(AK$7,$J$67:$DK$121,ROWS($A$11:$A29)+2,FALSE)","v":0},{"$f":"HLOOKUP(AL$7,$J$67:$DK$121,ROWS($A$11:$A29)+2,FALSE)","v":723},{"$f":"HLOOKUP(AM$7,$J$67:$DK$121,ROWS($A$11:$A29)+2,FALSE)","v":301},{"$f":"HLOOKUP(AN$7,$J$67:$DK$121,ROWS($A$11:$A29)+2,FALSE)","v":84},{"$f":"HLOOKUP(AO$7,$J$67:$DK$121,ROWS($A$11:$A29)+2,FALSE)","v":496},{"$f":"HLOOKUP(AP$7,$J$67:$DK$121,ROWS($A$11:$A29)+2,FALSE)","v":554},{"$f":"HLOOKUP(AQ$7,$J$67:$DK$121,ROWS($A$11:$A29)+2,FALSE)","v":5239},{"$f":"HLOOKUP(AR$7,$J$67:$DK$121,ROWS($A$11:$A29)+2,FALSE)","v":3643},{"$f":"HLOOKUP(AS$7,$J$67:$DK$121,ROWS($A$11:$A29)+2,FALSE)","v":122},{"$f":"HLOOKUP(AT$7,$J$67:$DK$121,ROWS($A$11:$A29)+2,FALSE)","v":17041},{"$f":"HLOOKUP(AU$7,$J$67:$DK$121,ROWS($A$11:$A29)+2,FALSE)","v":577},{"$f":"HLOOKUP(AV$7,$J$67:$DK$121,ROWS($A$11:$A29)+2,FALSE)","v":298},{"$f":"HLOOKUP(AW$7,$J$67:$DK$121,ROWS($A$11:$A29)+2,FALSE)","v":2226},{"$f":"HLOOKUP(AX$7,$J$67:$DK$121,ROWS($A$11:$A29)+2,FALSE)","v":0},{"$f":"HLOOKUP(AY$7,$J$67:$DK$121,ROWS($A$11:$A29)+2,FALSE)","v":1347},{"$f":"HLOOKUP(AZ$7,$J$67:$DK$121,ROWS($A$11:$A29)+2,FALSE)","v":0},{"$f":"HLOOKUP(BA$7,$J$67:$DK$121,ROWS($A$11:$A29)+2,FALSE)","v":10064},{"$f":"HLOOKUP(BB$7,$J$67:$DK$121,ROWS($A$11:$A29)+2,FALSE)","v":3345},{"$f":"HLOOKUP(BC$7,$J$67:$DK$121,ROWS($A$11:$A29)+2,FALSE)","v":464},{"$f":"HLOOKUP(BD$7,$J$67:$DK$121,ROWS($A$11:$A29)+2,FALSE)","v":45},{"$f":"HLOOKUP(BE$7,$J$67:$DK$121,ROWS($A$11:$A29)+2,FALSE)","v":3319},{"$f":"HLOOKUP(BF$7,$J$67:$DK$121,ROWS($A$11:$A29)+2,FALSE)","v":1988},{"$f":"HLOOKUP(BG$7,$J$67:$DK$121,ROWS($A$11:$A29)+2,FALSE)","v":3346},{"$f":"HLOOKUP(BH$7,$J$67:$DK$121,ROWS($A$11:$A29)+2,FALSE)","v":1395},{"$f":"HLOOKUP(BI$7,$J$67:$DK$121,ROWS($A$11:$A29)+2,FALSE)","v":0},{"$f":"HLOOKUP(BJ$7,$J$67:$DK$121,ROWS($A$11:$A29)+2,FALSE)","v":170},{"$f":"HLOOKUP(BK$7+0.5,$J$67:$DK$121,ROWS($A$11:$A29)+2,FALSE)","v":7854},{"$f":"HLOOKUP(BL$7+0.5,$J$67:$DK$121,ROWS($A$11:$A29)+2,FALSE)","v":1628},{"$f":"HLOOKUP(BM$7+0.5,$J$67:$DK$121,ROWS($A$11:$A29)+2,FALSE)","v":370},{"$f":"HLOOKUP(BN$7+0.5,$J$67:$DK$121,ROWS($A$11:$A29)+2,FALSE)","v":715},{"$f":"HLOOKUP(BO$7+0.5,$J$67:$DK$121,ROWS($A$11:$A29)+2,FALSE)","v":299},{"$f":"HLOOKUP(BP$7+0.5,$J$67:$DK$121,ROWS($A$11:$A29)+2,FALSE)","v":1157},{"$f":"HLOOKUP(BQ$7+0.5,$J$67:$DK$121,ROWS($A$11:$A29)+2,FALSE)","v":572},{"$f":"HLOOKUP(BR$7+0.5,$J$67:$DK$121,ROWS($A$11:$A29)+2,FALSE)","v":290},{"$f":"HLOOKUP(BS$7+0.5,$J$67:$DK$121,ROWS($A$11:$A29)+2,FALSE)","v":774},{"$f":"HLOOKUP(BT$7+0.5,$J$67:$DK$121,ROWS($A$11:$A29)+2,FALSE)","v":262},{"$f":"HLOOKUP(BU$7+0.5,$J$67:$DK$121,ROWS($A$11:$A29)+2,FALSE)","v":2697},{"$f":"HLOOKUP(BV$7+0.5,$J$67:$DK$121,ROWS($A$11:$A29)+2,FALSE)","v":1184},{"$f":"HLOOKUP(BW$7+0.5,$J$67:$DK$121,ROWS($A$11:$A29)+2,FALSE)","v":665},{"$f":"HLOOKUP(BX$7+0.5,$J$67:$DK$121,ROWS($A$11:$A29)+2,FALSE)","v":91},{"$f":"HLOOKUP(BY$7+0.5,$J$67:$DK$121,ROWS($A$11:$A29)+2,FALSE)","v":1359},{"$f":"HLOOKUP(BZ$7+0.5,$J$67:$DK$121,ROWS($A$11:$A29)+2,FALSE)","v":2150},{"$f":"HLOOKUP(CA$7+0.5,$J$67:$DK$121,ROWS($A$11:$A29)+2,FALSE)","v":257},{"$f":"HLOOKUP(CB$7+0.5,$J$67:$DK$121,ROWS($A$11:$A29)+2,FALSE)","v":464},{"$f":"HLOOKUP(CC$7+0.5,$J$67:$DK$121,ROWS($A$11:$A29)+2,FALSE)","v":"N/A"},{"$f":"HLOOKUP(CD$7+0.5,$J$67:$DK$121,ROWS($A$11:$A29)+2,FALSE)","v":294},{"$f":"HLOOKUP(CE$7+0.5,$J$67:$DK$121,ROWS($A$11:$A29)+2,FALSE)","v":80},{"$f":"HLOOKUP(CF$7+0.5,$J$67:$DK$121,ROWS($A$11:$A29)+2,FALSE)","v":615},{"$f":"HLOOKUP(CG$7+0.5,$J$67:$DK$121,ROWS($A$11:$A29)+2,FALSE)","v":285},{"$f":"HLOOKUP(CH$7+0.5,$J$67:$DK$121,ROWS($A$11:$A29)+2,FALSE)","v":1809},{"$f":"HLOOKUP(CI$7+0.5,$J$67:$DK$121,ROWS($A$11:$A29)+2,FALSE)","v":346},{"$f":"HLOOKUP(CJ$7+0.5,$J$67:$DK$121,ROWS($A$11:$A29)+2,FALSE)","v":467},{"$f":"HLOOKUP(CK$7+0.5,$J$67:$DK$121,ROWS($A$11:$A29)+2,FALSE)","v":1021},{"$f":"HLOOKUP(CL$7+0.5,$J$67:$DK$121,ROWS($A$11:$A29)+2,FALSE)","v":181},{"$f":"HLOOKUP(CM$7+0.5,$J$67:$DK$121,ROWS($A$11:$A29)+2,FALSE)","v":588},{"$f":"HLOOKUP(CN$7+0.5,$J$67:$DK$121,ROWS($A$11:$A29)+2,FALSE)","v":294},{"$f":"HLOOKUP(CO$7+0.5,$J$67:$DK$121,ROWS($A$11:$A29)+2,FALSE)","v":103},{"$f":"HLOOKUP(CP$7+0.5,$J$67:$DK$121,ROWS($A$11:$A29)+2,FALSE)","v":551},{"$f":"HLOOKUP(CQ$7+0.5,$J$67:$DK$121,ROWS($A$11:$A29)+2,FALSE)","v":348},{"$f":"HLOOKUP(CR$7+0.5,$J$67:$DK$121,ROWS($A$11:$A29)+2,FALSE)","v":1774},{"$f":"HLOOKUP(CS$7+0.5,$J$67:$DK$121,ROWS($A$11:$A29)+2,FALSE)","v":1903},{"$f":"HLOOKUP(CT$7+0.5,$J$67:$DK$121,ROWS($A$11:$A29)+2,FALSE)","v":192},{"$f":"HLOOKUP(CU$7+0.5,$J$67:$DK$121,ROWS($A$11:$A29)+2,FALSE)","v":3384},{"$f":"HLOOKUP(CV$7+0.5,$J$67:$DK$121,ROWS($A$11:$A29)+2,FALSE)","v":437},{"$f":"HLOOKUP(CW$7+0.5,$J$67:$DK$121,ROWS($A$11:$A29)+2,FALSE)","v":212},{"$f":"HLOOKUP(CX$7+0.5,$J$67:$DK$121,ROWS($A$11:$A29)+2,FALSE)","v":964},{"$f":"HLOOKUP(CY$7+0.5,$J$67:$DK$121,ROWS($A$11:$A29)+2,FALSE)","v":181},{"$f":"HLOOKUP(CZ$7+0.5,$J$67:$DK$121,ROWS($A$11:$A29)+2,FALSE)","v":671},{"$f":"HLOOKUP(DA$7+0.5,$J$67:$DK$121,ROWS($A$11:$A29)+2,FALSE)","v":181},{"$f":"HLOOKUP(DB$7+0.5,$J$67:$DK$121,ROWS($A$11:$A29)+2,FALSE)","v":2378},{"$f":"HLOOKUP(DC$7+0.5,$J$67:$DK$121,ROWS($A$11:$A29)+2,FALSE)","v":1420},{"$f":"HLOOKUP(DD$7+0.5,$J$67:$DK$121,ROWS($A$11:$A29)+2,FALSE)","v":360},{"$f":"HLOOKUP(DE$7+0.5,$J$67:$DK$121,ROWS($A$11:$A29)+2,FALSE)","v":81},{"$f":"HLOOKUP(DF$7+0.5,$J$67:$DK$121,ROWS($A$11:$A29)+2,FALSE)","v":1111},{"$f":"HLOOKUP(DG$7+0.5,$J$67:$DK$121,ROWS($A$11:$A29)+2,FALSE)","v":998},{"$f":"HLOOKUP(DH$7+0.5,$J$67:$DK$121,ROWS($A$11:$A29)+2,FALSE)","v":1472},{"$f":"HLOOKUP(DI$7+0.5,$J$67:$DK$121,ROWS($A$11:$A29)+2,FALSE)","v":845},{"$f":"HLOOKUP(DJ$7+0.5,$J$67:$DK$121,ROWS($A$11:$A29)+2,FALSE)","v":181},{"$f":"HLOOKUP(DK$7+0.5,$J$67:$DK$121,ROWS($A$11:$A29)+2,FALSE)","v":197}]
[null,"Louisiana",4545914,4612,3912023,21791,528406,20131,1.2901067769677435E-2,{"$f":"HLOOKUP(J$7,$J$67:$DK$121,ROWS($A$11:$A30)+2,FALSE)","v":91215},{"$f":"HLOOKUP(K$7,$J$67:$DK$121,ROWS($A$11:$A30)+2,FALSE)","v":2329},{"$f":"HLOOKUP(L$7,$J$67:$DK$121,ROWS($A$11:$A30)+2,FALSE)","v":403},{"$f":"HLOOKUP(M$7,$J$67:$DK$121,ROWS($A$11:$A30)+2,FALSE)","v":2021},{"$f":"HLOOKUP(N$7,$J$67:$DK$121,ROWS($A$11:$A30)+2,FALSE)","v":3645},{"$f":"HLOOKUP(O$7,$J$67:$DK$121,ROWS($A$11:$A30)+2,FALSE)","v":5139},{"$f":"HLOOKUP(P$7,$J$67:$DK$121,ROWS($A$11:$A30)+2,FALSE)","v":1433},{"$f":"HLOOKUP(Q$7,$J$67:$DK$121,ROWS($A$11:$A30)+2,FALSE)","v":164},{"$f":"HLOOKUP(R$7,$J$67:$DK$121,ROWS($A$11:$A30)+2,FALSE)","v":0},{"$f":"HLOOKUP(S$7,$J$67:$DK$121,ROWS($A$11:$A30)+2,FALSE)","v":596},{"$f":"HLOOKUP(T$7,$J$67:$DK$121,ROWS($A$11:$A30)+2,FALSE)","v":6534},{"$f":"HLOOKUP(U$7,$J$67:$DK$121,ROWS($A$11:$A30)+2,FALSE)","v":4478},{"$f":"HLOOKUP(V$7,$J$67:$DK$121,ROWS($A$11:$A30)+2,FALSE)","v":378},{"$f":"HLOOKUP(W$7,$J$67:$DK$121,ROWS($A$11:$A30)+2,FALSE)","v":265},{"$f":"HLOOKUP(X$7,$J$67:$DK$121,ROWS($A$11:$A30)+2,FALSE)","v":1229},{"$f":"HLOOKUP(Y$7,$J$67:$DK$121,ROWS($A$11:$A30)+2,FALSE)","v":1359},{"$f":"HLOOKUP(Z$7,$J$67:$DK$121,ROWS($A$11:$A30)+2,FALSE)","v":544},{"$f":"HLOOKUP(AA$7,$J$67:$DK$121,ROWS($A$11:$A30)+2,FALSE)","v":420},{"$f":"HLOOKUP(AB$7,$J$67:$DK$121,ROWS($A$11:$A30)+2,FALSE)","v":1649},{"$f":"HLOOKUP(AC$7,$J$67:$DK$121,ROWS($A$11:$A30)+2,FALSE)","v":"N/A"},{"$f":"HLOOKUP(AD$7,$J$67:$DK$121,ROWS($A$11:$A30)+2,FALSE)","v":251},{"$f":"HLOOKUP(AE$7,$J$67:$DK$121,ROWS($A$11:$A30)+2,FALSE)","v":642},{"$f":"HLOOKUP(AF$7,$J$67:$DK$121,ROWS($A$11:$A30)+2,FALSE)","v":549},{"$f":"HLOOKUP(AG$7,$J$67:$DK$121,ROWS($A$11:$A30)+2,FALSE)","v":1080},{"$f":"HLOOKUP(AH$7,$J$67:$DK$121,ROWS($A$11:$A30)+2,FALSE)","v":330},{"$f":"HLOOKUP(AI$7,$J$67:$DK$121,ROWS($A$11:$A30)+2,FALSE)","v":6791},{"$f":"HLOOKUP(AJ$7,$J$67:$DK$121,ROWS($A$11:$A30)+2,FALSE)","v":1591},{"$f":"HLOOKUP(AK$7,$J$67:$DK$121,ROWS($A$11:$A30)+2,FALSE)","v":428},{"$f":"HLOOKUP(AL$7,$J$67:$DK$121,ROWS($A$11:$A30)+2,FALSE)","v":745},{"$f":"HLOOKUP(AM$7,$J$67:$DK$121,ROWS($A$11:$A30)+2,FALSE)","v":931},{"$f":"HLOOKUP(AN$7,$J$67:$DK$121,ROWS($A$11:$A30)+2,FALSE)","v":11},{"$f":"HLOOKUP(AO$7,$J$67:$DK$121,ROWS($A$11:$A30)+2,FALSE)","v":975},{"$f":"HLOOKUP(AP$7,$J$67:$DK$121,ROWS($A$11:$A30)+2,FALSE)","v":150},{"$f":"HLOOKUP(AQ$7,$J$67:$DK$121,ROWS($A$11:$A30)+2,FALSE)","v":2786},{"$f":"HLOOKUP(AR$7,$J$67:$DK$121,ROWS($A$11:$A30)+2,FALSE)","v":2284},{"$f":"HLOOKUP(AS$7,$J$67:$DK$121,ROWS($A$11:$A30)+2,FALSE)","v":64},{"$f":"HLOOKUP(AT$7,$J$67:$DK$121,ROWS($A$11:$A30)+2,FALSE)","v":1115},{"$f":"HLOOKUP(AU$7,$J$67:$DK$121,ROWS($A$11:$A30)+2,FALSE)","v":2159},{"$f":"HLOOKUP(AV$7,$J$67:$DK$121,ROWS($A$11:$A30)+2,FALSE)","v":195},{"$f":"HLOOKUP(AW$7,$J$67:$DK$121,ROWS($A$11:$A30)+2,FALSE)","v":1239},{"$f":"HLOOKUP(AX$7,$J$67:$DK$121,ROWS($A$11:$A30)+2,FALSE)","v":737},{"$f":"HLOOKUP(AY$7,$J$67:$DK$121,ROWS($A$11:$A30)+2,FALSE)","v":1914},{"$f":"HLOOKUP(AZ$7,$J$67:$DK$121,ROWS($A$11:$A30)+2,FALSE)","v":0},{"$f":"HLOOKUP(BA$7,$J$67:$DK$121,ROWS($A$11:$A30)+2,FALSE)","v":2348},{"$f":"HLOOKUP(BB$7,$J$67:$DK$121,ROWS($A$11:$A30)+2,FALSE)","v":24488},{"$f":"HLOOKUP(BC$7,$J$67:$DK$121,ROWS($A$11:$A30)+2,FALSE)","v":277},{"$f":"HLOOKUP(BD$7,$J$67:$DK$121,ROWS($A$11:$A30)+2,FALSE)","v":45},{"$f":"HLOOKUP(BE$7,$J$67:$DK$121,ROWS($A$11:$A30)+2,FALSE)","v":1857},{"$f":"HLOOKUP(BF$7,$J$67:$DK$121,ROWS($A$11:$A30)+2,FALSE)","v":1581},{"$f":"HLOOKUP(BG$7,$J$67:$DK$121,ROWS($A$11:$A30)+2,FALSE)","v":238},{"$f":"HLOOKUP(BH$7,$J$67:$DK$121,ROWS($A$11:$A30)+2,FALSE)","v":682},{"$f":"HLOOKUP(BI$7,$J$67:$DK$121,ROWS($A$11:$A30)+2,FALSE)","v":146},{"$f":"HLOOKUP(BJ$7,$J$67:$DK$121,ROWS($A$11:$A30)+2,FALSE)","v":655},{"$f":"HLOOKUP(BK$7+0.5,$J$67:$DK$121,ROWS($A$11:$A30)+2,FALSE)","v":6941},{"$f":"HLOOKUP(BL$7+0.5,$J$67:$DK$121,ROWS($A$11:$A30)+2,FALSE)","v":1114},{"$f":"HLOOKUP(BM$7+0.5,$J$67:$DK$121,ROWS($A$11:$A30)+2,FALSE)","v":467},{"$f":"HLOOKUP(BN$7+0.5,$J$67:$DK$121,ROWS($A$11:$A30)+2,FALSE)","v":1191},{"$f":"HLOOKUP(BO$7+0.5,$J$67:$DK$121,ROWS($A$11:$A30)+2,FALSE)","v":2324},{"$f":"HLOOKUP(BP$7+0.5,$J$67:$DK$121,ROWS($A$11:$A30)+2,FALSE)","v":1438},{"$f":"HLOOKUP(BQ$7+0.5,$J$67:$DK$121,ROWS($A$11:$A30)+2,FALSE)","v":1002},{"$f":"HLOOKUP(BR$7+0.5,$J$67:$DK$121,ROWS($A$11:$A30)+2,FALSE)","v":149},{"$f":"HLOOKUP(BS$7+0.5,$J$67:$DK$121,ROWS($A$11:$A30)+2,FALSE)","v":193},{"$f":"HLOOKUP(BT$7+0.5,$J$67:$DK$121,ROWS($A$11:$A30)+2,FALSE)","v":517},{"$f":"HLOOKUP(BU$7+0.5,$J$67:$DK$121,ROWS($A$11:$A30)+2,FALSE)","v":2276},{"$f":"HLOOKUP(BV$7+0.5,$J$67:$DK$121,ROWS($A$11:$A30)+2,FALSE)","v":1559},{"$f":"HLOOKUP(BW$7+0.5,$J$67:$DK$121,ROWS($A$11:$A30)+2,FALSE)","v":283},{"$f":"HLOOKUP(BX$7+0.5,$J$67:$DK$121,ROWS($A$11:$A30)+2,FALSE)","v":242},{"$f":"HLOOKUP(BY$7+0.5,$J$67:$DK$121,ROWS($A$11:$A30)+2,FALSE)","v":466},{"$f":"HLOOKUP(BZ$7+0.5,$J$67:$DK$121,ROWS($A$11:$A30)+2,FALSE)","v":954},{"$f":"HLOOKUP(CA$7+0.5,$J$67:$DK$121,ROWS($A$11:$A30)+2,FALSE)","v":447},{"$f":"HLOOKUP(CB$7+0.5,$J$67:$DK$121,ROWS($A$11:$A30)+2,FALSE)","v":392},{"$f":"HLOOKUP(CC$7+0.5,$J$67:$DK$121,ROWS($A$11:$A30)+2,FALSE)","v":1224},{"$f":"HLOOKUP(CD$7+0.5,$J$67:$DK$121,ROWS($A$11:$A30)+2,FALSE)","v":"N/A"},{"$f":"HLOOKUP(CE$7+0.5,$J$67:$DK$121,ROWS($A$11:$A30)+2,FALSE)","v":334},{"$f":"HLOOKUP(CF$7+0.5,$J$67:$DK$121,ROWS($A$11:$A30)+2,FALSE)","v":701},{"$f":"HLOOKUP(CG$7+0.5,$J$67:$DK$121,ROWS($A$11:$A30)+2,FALSE)","v":354},{"$f":"HLOOKUP(CH$7+0.5,$J$67:$DK$121,ROWS($A$11:$A30)+2,FALSE)","v":782},{"$f":"HLOOKUP(CI$7+0.5,$J$67:$DK$121,ROWS($A$11:$A30)+2,FALSE)","v":324},{"$f":"HLOOKUP(CJ$7+0.5,$J$67:$DK$121,ROWS($A$11:$A30)+2,FALSE)","v":1938},{"$f":"HLOOKUP(CK$7+0.5,$J$67:$DK$121,ROWS($A$11:$A30)+2,FALSE)","v":684},{"$f":"HLOOKUP(CL$7+0.5,$J$67:$DK$121,ROWS($A$11:$A30)+2,FALSE)","v":524},{"$f":"HLOOKUP(CM$7+0.5,$J$67:$DK$121,ROWS($A$11:$A30)+2,FALSE)","v":538},{"$f":"HLOOKUP(CN$7+0.5,$J$67:$DK$121,ROWS($A$11:$A30)+2,FALSE)","v":682},{"$f":"HLOOKUP(CO$7+0.5,$J$67:$DK$121,ROWS($A$11:$A30)+2,FALSE)","v":21},{"$f":"HLOOKUP(CP$7+0.5,$J$67:$DK$121,ROWS($A$11:$A30)+2,FALSE)","v":575},{"$f":"HLOOKUP(CQ$7+0.5,$J$67:$DK$121,ROWS($A$11:$A30)+2,FALSE)","v":188},{"$f":"HLOOKUP(CR$7+0.5,$J$67:$DK$121,ROWS($A$11:$A30)+2,FALSE)","v":1105},{"$f":"HLOOKUP(CS$7+0.5,$J$67:$DK$121,ROWS($A$11:$A30)+2,FALSE)","v":1152},{"$f":"HLOOKUP(CT$7+0.5,$J$67:$DK$121,ROWS($A$11:$A30)+2,FALSE)","v":113},{"$f":"HLOOKUP(CU$7+0.5,$J$67:$DK$121,ROWS($A$11:$A30)+2,FALSE)","v":773},{"$f":"HLOOKUP(CV$7+0.5,$J$67:$DK$121,ROWS($A$11:$A30)+2,FALSE)","v":1365},{"$f":"HLOOKUP(CW$7+0.5,$J$67:$DK$121,ROWS($A$11:$A30)+2,FALSE)","v":232},{"$f":"HLOOKUP(CX$7+0.5,$J$67:$DK$121,ROWS($A$11:$A30)+2,FALSE)","v":616},{"$f":"HLOOKUP(CY$7+0.5,$J$67:$DK$121,ROWS($A$11:$A30)+2,FALSE)","v":695},{"$f":"HLOOKUP(CZ$7+0.5,$J$67:$DK$121,ROWS($A$11:$A30)+2,FALSE)","v":1377},{"$f":"HLOOKUP(DA$7+0.5,$J$67:$DK$121,ROWS($A$11:$A30)+2,FALSE)","v":193},{"$f":"HLOOKUP(DB$7+0.5,$J$67:$DK$121,ROWS($A$11:$A30)+2,FALSE)","v":1546},{"$f":"HLOOKUP(DC$7+0.5,$J$67:$DK$121,ROWS($A$11:$A30)+2,FALSE)","v":4076},{"$f":"HLOOKUP(DD$7+0.5,$J$67:$DK$121,ROWS($A$11:$A30)+2,FALSE)","v":288},{"$f":"HLOOKUP(DE$7+0.5,$J$67:$DK$121,ROWS($A$11:$A30)+2,FALSE)","v":72},{"$f":"HLOOKUP(DF$7+0.5,$J$67:$DK$121,ROWS($A$11:$A30)+2,FALSE)","v":1033},{"$f":"HLOOKUP(DG$7+0.5,$J$67:$DK$121,ROWS($A$11:$A30)+2,FALSE)","v":631},{"$f":"HLOOKUP(DH$7+0.5,$J$67:$DK$121,ROWS($A$11:$A30)+2,FALSE)","v":271},{"$f":"HLOOKUP(DI$7+0.5,$J$67:$DK$121,ROWS($A$11:$A30)+2,FALSE)","v":474},{"$f":"HLOOKUP(DJ$7+0.5,$J$67:$DK$121,ROWS($A$11:$A30)+2,FALSE)","v":216},{"$f":"HLOOKUP(DK$7+0.5,$J$67:$DK$121,ROWS($A$11:$A30)+2,FALSE)","v":507}]
[null,"Maine",1315586,1384,1132344,9895,151438,9223,3.8927379074147018E-3,{"$f":"HLOOKUP(J$7,$J$67:$DK$121,ROWS($A$11:$A31)+2,FALSE)","v":27523},{"$f":"HLOOKUP(K$7,$J$67:$DK$121,ROWS($A$11:$A31)+2,FALSE)","v":129},{"$f":"HLOOKUP(L$7,$J$67:$DK$121,ROWS($A$11:$A31)+2,FALSE)","v":38},{"$f":"HLOOKUP(M$7,$J$67:$DK$121,ROWS($A$11:$A31)+2,FALSE)","v":230},{"$f":"HLOOKUP(N$7,$J$67:$DK$121,ROWS($A$11:$A31)+2,FALSE)","v":0},{"$f":"HLOOKUP(O$7,$J$67:$DK$121,ROWS($A$11:$A31)+2,FALSE)","v":1610},{"$f":"HLOOKUP(P$7,$J$67:$DK$121,ROWS($A$11:$A31)+2,FALSE)","v":314},{"$f":"HLOOKUP(Q$7,$J$67:$DK$121,ROWS($A$11:$A31)+2,FALSE)","v":1468},{"$f":"HLOOKUP(R$7,$J$67:$DK$121,ROWS($A$11:$A31)+2,FALSE)","v":234},{"$f":"HLOOKUP(S$7,$J$67:$DK$121,ROWS($A$11:$A31)+2,FALSE)","v":32},{"$f":"HLOOKUP(T$7,$J$67:$DK$121,ROWS($A$11:$A31)+2,FALSE)","v":2926},{"$f":"HLOOKUP(U$7,$J$67:$DK$121,ROWS($A$11:$A31)+2,FALSE)","v":511},{"$f":"HLOOKUP(V$7,$J$67:$DK$121,ROWS($A$11:$A31)+2,FALSE)","v":0},{"$f":"HLOOKUP(W$7,$J$67:$DK$121,ROWS($A$11:$A31)+2,FALSE)","v":143},{"$f":"HLOOKUP(X$7,$J$67:$DK$121,ROWS($A$11:$A31)+2,FALSE)","v":195},{"$f":"HLOOKUP(Y$7,$J$67:$DK$121,ROWS($A$11:$A31)+2,FALSE)","v":0},{"$f":"HLOOKUP(Z$7,$J$67:$DK$121,ROWS($A$11:$A31)+2,FALSE)","v":7},{"$f":"HLOOKUP(AA$7,$J$67:$DK$121,ROWS($A$11:$A31)+2,FALSE)","v":277},{"$f":"HLOOKUP(AB$7,$J$67:$DK$121,ROWS($A$11:$A31)+2,FALSE)","v":482},{"$f":"HLOOKUP(AC$7,$J$67:$DK$121,ROWS($A$11:$A31)+2,FALSE)","v":15},{"$f":"HLOOKUP(AD$7,$J$67:$DK$121,ROWS($A$11:$A31)+2,FALSE)","v":"N/A"},{"$f":"HLOOKUP(AE$7,$J$67:$DK$121,ROWS($A$11:$A31)+2,FALSE)","v":325},{"$f":"HLOOKUP(AF$7,$J$67:$DK$121,ROWS($A$11:$A31)+2,FALSE)","v":3887},{"$f":"HLOOKUP(AG$7,$J$67:$DK$121,ROWS($A$11:$A31)+2,FALSE)","v":116},{"$f":"HLOOKUP(AH$7,$J$67:$DK$121,ROWS($A$11:$A31)+2,FALSE)","v":430},{"$f":"HLOOKUP(AI$7,$J$67:$DK$121,ROWS($A$11:$A31)+2,FALSE)","v":79},{"$f":"HLOOKUP(AJ$7,$J$67:$DK$121,ROWS($A$11:$A31)+2,FALSE)","v":69},{"$f":"HLOOKUP(AK$7,$J$67:$DK$121,ROWS($A$11:$A31)+2,FALSE)","v":0},{"$f":"HLOOKUP(AL$7,$J$67:$DK$121,ROWS($A$11:$A31)+2,FALSE)","v":82},{"$f":"HLOOKUP(AM$7,$J$67:$DK$121,ROWS($A$11:$A31)+2,FALSE)","v":35},{"$f":"HLOOKUP(AN$7,$J$67:$DK$121,ROWS($A$11:$A31)+2,FALSE)","v":3655},{"$f":"HLOOKUP(AO$7,$J$67:$DK$121,ROWS($A$11:$A31)+2,FALSE)","v":405},{"$f":"HLOOKUP(AP$7,$J$67:$DK$121,ROWS($A$11:$A31)+2,FALSE)","v":272},{"$f":"HLOOKUP(AQ$7,$J$67:$DK$121,ROWS($A$11:$A31)+2,FALSE)","v":2519},{"$f":"HLOOKUP(AR$7,$J$67:$DK$121,ROWS($A$11:$A31)+2,FALSE)","v":1112},{"$f":"HLOOKUP(AS$7,$J$67:$DK$121,ROWS($A$11:$A31)+2,FALSE)","v":0},{"$f":"HLOOKUP(AT$7,$J$67:$DK$121,ROWS($A$11:$A31)+2,FALSE)","v":628},{"$f":"HLOOKUP(AU$7,$J$67:$DK$121,ROWS($A$11:$A31)+2,FALSE)","v":79},{"$f":"HLOOKUP(AV$7,$J$67:$DK$121,ROWS($A$11:$A31)+2,FALSE)","v":215},{"$f":"HLOOKUP(AW$7,$J$67:$DK$121,ROWS($A$11:$A31)+2,FALSE)","v":976},{"$f":"HLOOKUP(AX$7,$J$67:$DK$121,ROWS($A$11:$A31)+2,FALSE)","v":1024},{"$f":"HLOOKUP(AY$7,$J$67:$DK$121,ROWS($A$11:$A31)+2,FALSE)","v":173},{"$f":"HLOOKUP(AZ$7,$J$67:$DK$121,ROWS($A$11:$A31)+2,FALSE)","v":0},{"$f":"HLOOKUP(BA$7,$J$67:$DK$121,ROWS($A$11:$A31)+2,FALSE)","v":985},{"$f":"HLOOKUP(BB$7,$J$67:$DK$121,ROWS($A$11:$A31)+2,FALSE)","v":496},{"$f":"HLOOKUP(BC$7,$J$67:$DK$121,ROWS($A$11:$A31)+2,FALSE)","v":200},{"$f":"HLOOKUP(BD$7,$J$67:$DK$121,ROWS($A$11:$A31)+2,FALSE)","v":349},{"$f":"HLOOKUP(BE$7,$J$67:$DK$121,ROWS($A$11:$A31)+2,FALSE)","v":573},{"$f":"HLOOKUP(BF$7,$J$67:$DK$121,ROWS($A$11:$A31)+2,FALSE)","v":118},{"$f":"HLOOKUP(BG$7,$J$67:$DK$121,ROWS($A$11:$A31)+2,FALSE)","v":51},{"$f":"HLOOKUP(BH$7,$J$67:$DK$121,ROWS($A$11:$A31)+2,FALSE)","v":0},{"$f":"HLOOKUP(BI$7,$J$67:$DK$121,ROWS($A$11:$A31)+2,FALSE)","v":59},{"$f":"HLOOKUP(BJ$7,$J$67:$DK$121,ROWS($A$11:$A31)+2,FALSE)","v":38},{"$f":"HLOOKUP(BK$7+0.5,$J$67:$DK$121,ROWS($A$11:$A31)+2,FALSE)","v":3132},{"$f":"HLOOKUP(BL$7+0.5,$J$67:$DK$121,ROWS($A$11:$A31)+2,FALSE)","v":172},{"$f":"HLOOKUP(BM$7+0.5,$J$67:$DK$121,ROWS($A$11:$A31)+2,FALSE)","v":48},{"$f":"HLOOKUP(BN$7+0.5,$J$67:$DK$121,ROWS($A$11:$A31)+2,FALSE)","v":170},{"$f":"HLOOKUP(BO$7+0.5,$J$67:$DK$121,ROWS($A$11:$A31)+2,FALSE)","v":155},{"$f":"HLOOKUP(BP$7+0.5,$J$67:$DK$121,ROWS($A$11:$A31)+2,FALSE)","v":860},{"$f":"HLOOKUP(BQ$7+0.5,$J$67:$DK$121,ROWS($A$11:$A31)+2,FALSE)","v":287},{"$f":"HLOOKUP(BR$7+0.5,$J$67:$DK$121,ROWS($A$11:$A31)+2,FALSE)","v":620},{"$f":"HLOOKUP(BS$7+0.5,$J$67:$DK$121,ROWS($A$11:$A31)+2,FALSE)","v":299},{"$f":"HLOOKUP(BT$7+0.5,$J$67:$DK$121,ROWS($A$11:$A31)+2,FALSE)","v":55},{"$f":"HLOOKUP(BU$7+0.5,$J$67:$DK$121,ROWS($A$11:$A31)+2,FALSE)","v":1292},{"$f":"HLOOKUP(BV$7+0.5,$J$67:$DK$121,ROWS($A$11:$A31)+2,FALSE)","v":538},{"$f":"HLOOKUP(BW$7+0.5,$J$67:$DK$121,ROWS($A$11:$A31)+2,FALSE)","v":155},{"$f":"HLOOKUP(BX$7+0.5,$J$67:$DK$121,ROWS($A$11:$A31)+2,FALSE)","v":128},{"$f":"HLOOKUP(BY$7+0.5,$J$67:$DK$121,ROWS($A$11:$A31)+2,FALSE)","v":277},{"$f":"HLOOKUP(BZ$7+0.5,$J$67:$DK$121,ROWS($A$11:$A31)+2,FALSE)","v":155},{"$f":"HLOOKUP(CA$7+0.5,$J$67:$DK$121,ROWS($A$11:$A31)+2,FALSE)","v":16},{"$f":"HLOOKUP(CB$7+0.5,$J$67:$DK$121,ROWS($A$11:$A31)+2,FALSE)","v":401},{"$f":"HLOOKUP(CC$7+0.5,$J$67:$DK$121,ROWS($A$11:$A31)+2,FALSE)","v":521},{"$f":"HLOOKUP(CD$7+0.5,$J$67:$DK$121,ROWS($A$11:$A31)+2,FALSE)","v":30},{"$f":"HLOOKUP(CE$7+0.5,$J$67:$DK$121,ROWS($A$11:$A31)+2,FALSE)","v":"N/A"},{"$f":"HLOOKUP(CF$7+0.5,$J$67:$DK$121,ROWS($A$11:$A31)+2,FALSE)","v":263},{"$f":"HLOOKUP(CG$7+0.5,$J$67:$DK$121,ROWS($A$11:$A31)+2,FALSE)","v":1167},{"$f":"HLOOKUP(CH$7+0.5,$J$67:$DK$121,ROWS($A$11:$A31)+2,FALSE)","v":123},{"$f":"HLOOKUP(CI$7+0.5,$J$67:$DK$121,ROWS($A$11:$A31)+2,FALSE)","v":359},{"$f":"HLOOKUP(CJ$7+0.5,$J$67:$DK$121,ROWS($A$11:$A31)+2,FALSE)","v":134},{"$f":"HLOOKUP(CK$7+0.5,$J$67:$DK$121,ROWS($A$11:$A31)+2,FALSE)","v":112},{"$f":"HLOOKUP(CL$7+0.5,$J$67:$DK$121,ROWS($A$11:$A31)+2,FALSE)","v":155},{"$f":"HLOOKUP(CM$7+0.5,$J$67:$DK$121,ROWS($A$11:$A31)+2,FALSE)","v":136},{"$f":"HLOOKUP(CN$7+0.5,$J$67:$DK$121,ROWS($A$11:$A31)+2,FALSE)","v":56},{"$f":"HLOOKUP(CO$7+0.5,$J$67:$DK$121,ROWS($A$11:$A31)+2,FALSE)","v":1077},{"$f":"HLOOKUP(CP$7+0.5,$J$67:$DK$121,ROWS($A$11:$A31)+2,FALSE)","v":281},{"$f":"HLOOKUP(CQ$7+0.5,$J$67:$DK$121,ROWS($A$11:$A31)+2,FALSE)","v":320},{"$f":"HLOOKUP(CR$7+0.5,$J$67:$DK$121,ROWS($A$11:$A31)+2,FALSE)","v":1180},{"$f":"HLOOKUP(CS$7+0.5,$J$67:$DK$121,ROWS($A$11:$A31)+2,FALSE)","v":574},{"$f":"HLOOKUP(CT$7+0.5,$J$67:$DK$121,ROWS($A$11:$A31)+2,FALSE)","v":155},{"$f":"HLOOKUP(CU$7+0.5,$J$67:$DK$121,ROWS($A$11:$A31)+2,FALSE)","v":368},{"$f":"HLOOKUP(CV$7+0.5,$J$67:$DK$121,ROWS($A$11:$A31)+2,FALSE)","v":115},{"$f":"HLOOKUP(CW$7+0.5,$J$67:$DK$121,ROWS($A$11:$A31)+2,FALSE)","v":255},{"$f":"HLOOKUP(CX$7+0.5,$J$67:$DK$121,ROWS($A$11:$A31)+2,FALSE)","v":600},{"$f":"HLOOKUP(CY$7+0.5,$J$67:$DK$121,ROWS($A$11:$A31)+2,FALSE)","v":656},{"$f":"HLOOKUP(CZ$7+0.5,$J$67:$DK$121,ROWS($A$11:$A31)+2,FALSE)","v":143},{"$f":"HLOOKUP(DA$7+0.5,$J$67:$DK$121,ROWS($A$11:$A31)+2,FALSE)","v":155},{"$f":"HLOOKUP(DB$7+0.5,$J$67:$DK$121,ROWS($A$11:$A31)+2,FALSE)","v":1062},{"$f":"HLOOKUP(DC$7+0.5,$J$67:$DK$121,ROWS($A$11:$A31)+2,FALSE)","v":381},{"$f":"HLOOKUP(DD$7+0.5,$J$67:$DK$121,ROWS($A$11:$A31)+2,FALSE)","v":183},{"$f":"HLOOKUP(DE$7+0.5,$J$67:$DK$121,ROWS($A$11:$A31)+2,FALSE)","v":340},{"$f":"HLOOKUP(DF$7+0.5,$J$67:$DK$121,ROWS($A$11:$A31)+2,FALSE)","v":408},{"$f":"HLOOKUP(DG$7+0.5,$J$67:$DK$121,ROWS($A$11:$A31)+2,FALSE)","v":137},{"$f":"HLOOKUP(DH$7+0.5,$J$67:$DK$121,ROWS($A$11:$A31)+2,FALSE)","v":85},{"$f":"HLOOKUP(DI$7+0.5,$J$67:$DK$121,ROWS($A$11:$A31)+2,FALSE)","v":155},{"$f":"HLOOKUP(DJ$7+0.5,$J$67:$DK$121,ROWS($A$11:$A31)+2,FALSE)","v":81},{"$f":"HLOOKUP(DK$7+0.5,$J$67:$DK$121,ROWS($A$11:$A31)+2,FALSE)","v":69}]
[null,"Maryland",5816472,3717,5068457,21604,549973,20595,2.1920146753800558E-2,{"$f":"HLOOKUP(J$7,$J$67:$DK$121,ROWS($A$11:$A32)+2,FALSE)","v":154983},{"$f":"HLOOKUP(K$7,$J$67:$DK$121,ROWS($A$11:$A32)+2,FALSE)","v":1261},{"$f":"HLOOKUP(L$7,$J$67:$DK$121,ROWS($A$11:$A32)+2,FALSE)","v":1947},{"$f":"HLOOKUP(M$7,$J$67:$DK$121,ROWS($A$11:$A32)+2,FALSE)","v":760},{"$f":"HLOOKUP(N$7,$J$67:$DK$121,ROWS($A$11:$A32)+2,FALSE)","v":136},{"$f":"HLOOKUP(O$7,$J$67:$DK$121,ROWS($A$11:$A32)+2,FALSE)","v":8614},{"$f":"HLOOKUP(P$7,$J$67:$DK$121,ROWS($A$11:$A32)+2,FALSE)","v":1071},{"$f":"HLOOKUP(Q$7,$J$67:$DK$121,ROWS($A$11:$A32)+2,FALSE)","v":881},{"$f":"HLOOKUP(R$7,$J$67:$DK$121,ROWS($A$11:$A32)+2,FALSE)","v":4100},{"$f":"HLOOKUP(S$7,$J$67:$DK$121,ROWS($A$11:$A32)+2,FALSE)","v":21213},{"$f":"HLOOKUP(T$7,$J$67:$DK$121,ROWS($A$11:$A32)+2,FALSE)","v":9610},{"$f":"HLOOKUP(U$7,$J$67:$DK$121,ROWS($A$11:$A32)+2,FALSE)","v":4610},{"$f":"HLOOKUP(V$7,$J$67:$DK$121,ROWS($A$11:$A32)+2,FALSE)","v":610},{"$f":"HLOOKUP(W$7,$J$67:$DK$121,ROWS($A$11:$A32)+2,FALSE)","v":429},{"$f":"HLOOKUP(X$7,$J$67:$DK$121,ROWS($A$11:$A32)+2,FALSE)","v":3621},{"$f":"HLOOKUP(Y$7,$J$67:$DK$121,ROWS($A$11:$A32)+2,FALSE)","v":1210},{"$f":"HLOOKUP(Z$7,$J$67:$DK$121,ROWS($A$11:$A32)+2,FALSE)","v":569},{"$f":"HLOOKUP(AA$7,$J$67:$DK$121,ROWS($A$11:$A32)+2,FALSE)","v":1726},{"$f":"HLOOKUP(AB$7,$J$67:$DK$121,ROWS($A$11:$A32)+2,FALSE)","v":715},{"$f":"HLOOKUP(AC$7,$J$67:$DK$121,ROWS($A$11:$A32)+2,FALSE)","v":606},{"$f":"HLOOKUP(AD$7,$J$67:$DK$121,ROWS($A$11:$A32)+2,FALSE)","v":332},{"$f":"HLOOKUP(AE$7,$J$67:$DK$121,ROWS($A$11:$A32)+2,FALSE)","v":"N/A"},{"$f":"HLOOKUP(AF$7,$J$67:$DK$121,ROWS($A$11:$A32)+2,FALSE)","v":3977},{"$f":"HLOOKUP(AG$7,$J$67:$DK$121,ROWS($A$11:$A32)+2,FALSE)","v":2167},{"$f":"HLOOKUP(AH$7,$J$67:$DK$121,ROWS($A$11:$A32)+2,FALSE)","v":1422},{"$f":"HLOOKUP(AI$7,$J$67:$DK$121,ROWS($A$11:$A32)+2,FALSE)","v":581},{"$f":"HLOOKUP(AJ$7,$J$67:$DK$121,ROWS($A$11:$A32)+2,FALSE)","v":256},{"$f":"HLOOKUP(AK$7,$J$67:$DK$121,ROWS($A$11:$A32)+2,FALSE)","v":0},{"$f":"HLOOKUP(AL$7,$J$67:$DK$121,ROWS($A$11:$A32)+2,FALSE)","v":132},{"$f":"HLOOKUP(AM$7,$J$67:$DK$121,ROWS($A$11:$A32)+2,FALSE)","v":330},{"$f":"HLOOKUP(AN$7,$J$67:$DK$121,ROWS($A$11:$A32)+2,FALSE)","v":1124},{"$f":"HLOOKUP(AO$7,$J$67:$DK$121,ROWS($A$11:$A32)+2,FALSE)","v":6260},{"$f":"HLOOKUP(AP$7,$J$67:$DK$121,ROWS($A$11:$A32)+2,FALSE)","v":638},{"$f":"HLOOKUP(AQ$7,$J$67:$DK$121,ROWS($A$11:$A32)+2,FALSE)","v":11736},{"$f":"HLOOKUP(AR$7,$J$67:$DK$121,ROWS($A$11:$A32)+2,FALSE)","v":7507},{"$f":"HLOOKUP(AS$7,$J$67:$DK$121,ROWS($A$11:$A32)+2,FALSE)","v":116},{"$f":"HLOOKUP(AT$7,$J$67:$DK$121,ROWS($A$11:$A32)+2,FALSE)","v":2522},{"$f":"HLOOKUP(AU$7,$J$67:$DK$121,ROWS($A$11:$A32)+2,FALSE)","v":463},{"$f":"HLOOKUP(AV$7,$J$67:$DK$121,ROWS($A$11:$A32)+2,FALSE)","v":378},{"$f":"HLOOKUP(AW$7,$J$67:$DK$121,ROWS($A$11:$A32)+2,FALSE)","v":15485},{"$f":"HLOOKUP(AX$7,$J$67:$DK$121,ROWS($A$11:$A32)+2,FALSE)","v":82},{"$f":"HLOOKUP(AY$7,$J$67:$DK$121,ROWS($A$11:$A32)+2,FALSE)","v":2297},{"$f":"HLOOKUP(AZ$7,$J$67:$DK$121,ROWS($A$11:$A32)+2,FALSE)","v":0},{"$f":"HLOOKUP(BA$7,$J$67:$DK$121,ROWS($A$11:$A32)+2,FALSE)","v":1800},{"$f":"HLOOKUP(BB$7,$J$67:$DK$121,ROWS($A$11:$A32)+2,FALSE)","v":5612},{"$f":"HLOOKUP(BC$7,$J$67:$DK$121,ROWS($A$11:$A32)+2,FALSE)","v":1061},{"$f":"HLOOKUP(BD$7,$J$67:$DK$121,ROWS($A$11:$A32)+2,FALSE)","v":589},{"$f":"HLOOKUP(BE$7,$J$67:$DK$121,ROWS($A$11:$A32)+2,FALSE)","v":20579},{"$f":"HLOOKUP(BF$7,$J$67:$DK$121,ROWS($A$11:$A32)+2,FALSE)","v":1431},{"$f":"HLOOKUP(BG$7,$J$67:$DK$121,ROWS($A$11:$A32)+2,FALSE)","v":1957},{"$f":"HLOOKUP(BH$7,$J$67:$DK$121,ROWS($A$11:$A32)+2,FALSE)","v":460},{"$f":"HLOOKUP(BI$7,$J$67:$DK$121,ROWS($A$11:$A32)+2,FALSE)","v":0},{"$f":"HLOOKUP(BJ$7,$J$67:$DK$121,ROWS($A$11:$A32)+2,FALSE)","v":294},{"$f":"HLOOKUP(BK$7+0.5,$J$67:$DK$121,ROWS($A$11:$A32)+2,FALSE)","v":8958},{"$f":"HLOOKUP(BL$7+0.5,$J$67:$DK$121,ROWS($A$11:$A32)+2,FALSE)","v":713},{"$f":"HLOOKUP(BM$7+0.5,$J$67:$DK$121,ROWS($A$11:$A32)+2,FALSE)","v":1123},{"$f":"HLOOKUP(BN$7+0.5,$J$67:$DK$121,ROWS($A$11:$A32)+2,FALSE)","v":359},{"$f":"HLOOKUP(BO$7+0.5,$J$67:$DK$121,ROWS($A$11:$A32)+2,FALSE)","v":159},{"$f":"HLOOKUP(BP$7+0.5,$J$67:$DK$121,ROWS($A$11:$A32)+2,FALSE)","v":2155},{"$f":"HLOOKUP(BQ$7+0.5,$J$67:$DK$121,ROWS($A$11:$A32)+2,FALSE)","v":609},{"$f":"HLOOKUP(BR$7+0.5,$J$67:$DK$121,ROWS($A$11:$A32)+2,FALSE)","v":516},{"$f":"HLOOKUP(BS$7+0.5,$J$67:$DK$121,ROWS($A$11:$A32)+2,FALSE)","v":1303},{"$f":"HLOOKUP(BT$7+0.5,$J$67:$DK$121,ROWS($A$11:$A32)+2,FALSE)","v":3437},{"$f":"HLOOKUP(BU$7+0.5,$J$67:$DK$121,ROWS($A$11:$A32)+2,FALSE)","v":2515},{"$f":"HLOOKUP(BV$7+0.5,$J$67:$DK$121,ROWS($A$11:$A32)+2,FALSE)","v":2430},{"$f":"HLOOKUP(BW$7+0.5,$J$67:$DK$121,ROWS($A$11:$A32)+2,FALSE)","v":474},{"$f":"HLOOKUP(BX$7+0.5,$J$67:$DK$121,ROWS($A$11:$A32)+2,FALSE)","v":444},{"$f":"HLOOKUP(BY$7+0.5,$J$67:$DK$121,ROWS($A$11:$A32)+2,FALSE)","v":1647},{"$f":"HLOOKUP(BZ$7+0.5,$J$67:$DK$121,ROWS($A$11:$A32)+2,FALSE)","v":709},{"$f":"HLOOKUP(CA$7+0.5,$J$67:$DK$121,ROWS($A$11:$A32)+2,FALSE)","v":389},{"$f":"HLOOKUP(CB$7+0.5,$J$67:$DK$121,ROWS($A$11:$A32)+2,FALSE)","v":1123},{"$f":"HLOOKUP(CC$7+0.5,$J$67:$DK$121,ROWS($A$11:$A32)+2,FALSE)","v":602},{"$f":"HLOOKUP(CD$7+0.5,$J$67:$DK$121,ROWS($A$11:$A32)+2,FALSE)","v":441},{"$f":"HLOOKUP(CE$7+0.5,$J$67:$DK$121,ROWS($A$11:$A32)+2,FALSE)","v":261},{"$f":"HLOOKUP(CF$7+0.5,$J$67:$DK$121,ROWS($A$11:$A32)+2,FALSE)","v":"N/A"},{"$f":"HLOOKUP(CG$7+0.5,$J$67:$DK$121,ROWS($A$11:$A32)+2,FALSE)","v":1805},{"$f":"HLOOKUP(CH$7+0.5,$J$67:$DK$121,ROWS($A$11:$A32)+2,FALSE)","v":973},{"$f":"HLOOKUP(CI$7+0.5,$J$67:$DK$121,ROWS($A$11:$A32)+2,FALSE)","v":707},{"$f":"HLOOKUP(CJ$7+0.5,$J$67:$DK$121,ROWS($A$11:$A32)+2,FALSE)","v":706},{"$f":"HLOOKUP(CK$7+0.5,$J$67:$DK$121,ROWS($A$11:$A32)+2,FALSE)","v":199},{"$f":"HLOOKUP(CL$7+0.5,$J$67:$DK$121,ROWS($A$11:$A32)+2,FALSE)","v":190},{"$f":"HLOOKUP(CM$7+0.5,$J$67:$DK$121,ROWS($A$11:$A32)+2,FALSE)","v":152},{"$f":"HLOOKUP(CN$7+0.5,$J$67:$DK$121,ROWS($A$11:$A32)+2,FALSE)","v":258},{"$f":"HLOOKUP(CO$7+0.5,$J$67:$DK$121,ROWS($A$11:$A32)+2,FALSE)","v":820},{"$f":"HLOOKUP(CP$7+0.5,$J$67:$DK$121,ROWS($A$11:$A32)+2,FALSE)","v":2244},{"$f":"HLOOKUP(CQ$7+0.5,$J$67:$DK$121,ROWS($A$11:$A32)+2,FALSE)","v":453},{"$f":"HLOOKUP(CR$7+0.5,$J$67:$DK$121,ROWS($A$11:$A32)+2,FALSE)","v":2585},{"$f":"HLOOKUP(CS$7+0.5,$J$67:$DK$121,ROWS($A$11:$A32)+2,FALSE)","v":2284},{"$f":"HLOOKUP(CT$7+0.5,$J$67:$DK$121,ROWS($A$11:$A32)+2,FALSE)","v":94},{"$f":"HLOOKUP(CU$7+0.5,$J$67:$DK$121,ROWS($A$11:$A32)+2,FALSE)","v":1035},{"$f":"HLOOKUP(CV$7+0.5,$J$67:$DK$121,ROWS($A$11:$A32)+2,FALSE)","v":447},{"$f":"HLOOKUP(CW$7+0.5,$J$67:$DK$121,ROWS($A$11:$A32)+2,FALSE)","v":426},{"$f":"HLOOKUP(CX$7+0.5,$J$67:$DK$121,ROWS($A$11:$A32)+2,FALSE)","v":2922},{"$f":"HLOOKUP(CY$7+0.5,$J$67:$DK$121,ROWS($A$11:$A32)+2,FALSE)","v":95},{"$f":"HLOOKUP(CZ$7+0.5,$J$67:$DK$121,ROWS($A$11:$A32)+2,FALSE)","v":1139},{"$f":"HLOOKUP(DA$7+0.5,$J$67:$DK$121,ROWS($A$11:$A32)+2,FALSE)","v":190},{"$f":"HLOOKUP(DB$7+0.5,$J$67:$DK$121,ROWS($A$11:$A32)+2,FALSE)","v":986},{"$f":"HLOOKUP(DC$7+0.5,$J$67:$DK$121,ROWS($A$11:$A32)+2,FALSE)","v":1271},{"$f":"HLOOKUP(DD$7+0.5,$J$67:$DK$121,ROWS($A$11:$A32)+2,FALSE)","v":831},{"$f":"HLOOKUP(DE$7+0.5,$J$67:$DK$121,ROWS($A$11:$A32)+2,FALSE)","v":598},{"$f":"HLOOKUP(DF$7+0.5,$J$67:$DK$121,ROWS($A$11:$A32)+2,FALSE)","v":2668},{"$f":"HLOOKUP(DG$7+0.5,$J$67:$DK$121,ROWS($A$11:$A32)+2,FALSE)","v":884},{"$f":"HLOOKUP(DH$7+0.5,$J$67:$DK$121,ROWS($A$11:$A32)+2,FALSE)","v":799},{"$f":"HLOOKUP(DI$7+0.5,$J$67:$DK$121,ROWS($A$11:$A32)+2,FALSE)","v":371},{"$f":"HLOOKUP(DJ$7+0.5,$J$67:$DK$121,ROWS($A$11:$A32)+2,FALSE)","v":190},{"$f":"HLOOKUP(DK$7+0.5,$J$67:$DK$121,ROWS($A$11:$A32)+2,FALSE)","v":249}]
[null,"Massachusetts",6580641,3587,5752166,19793,626380,17354,2.0165494045905823E-2,{"$f":"HLOOKUP(J$7,$J$67:$DK$121,ROWS($A$11:$A33)+2,FALSE)","v":142577},{"$f":"HLOOKUP(K$7,$J$67:$DK$121,ROWS($A$11:$A33)+2,FALSE)","v":636},{"$f":"HLOOKUP(L$7,$J$67:$DK$121,ROWS($A$11:$A33)+2,FALSE)","v":890},{"$f":"HLOOKUP(M$7,$J$67:$DK$121,ROWS($A$11:$A33)+2,FALSE)","v":1972},{"$f":"HLOOKUP(N$7,$J$67:$DK$121,ROWS($A$11:$A33)+2,FALSE)","v":394},{"$f":"HLOOKUP(O$7,$J$67:$DK$121,ROWS($A$11:$A33)+2,FALSE)","v":12770},{"$f":"HLOOKUP(P$7,$J$67:$DK$121,ROWS($A$11:$A33)+2,FALSE)","v":980},{"$f":"HLOOKUP(Q$7,$J$67:$DK$121,ROWS($A$11:$A33)+2,FALSE)","v":10525},{"$f":"HLOOKUP(R$7,$J$67:$DK$121,ROWS($A$11:$A33)+2,FALSE)","v":506},{"$f":"HLOOKUP(S$7,$J$67:$DK$121,ROWS($A$11:$A33)+2,FALSE)","v":379},{"$f":"HLOOKUP(T$7,$J$67:$DK$121,ROWS($A$11:$A33)+2,FALSE)","v":12890},{"$f":"HLOOKUP(U$7,$J$67:$DK$121,ROWS($A$11:$A33)+2,FALSE)","v":2789},{"$f":"HLOOKUP(V$7,$J$67:$DK$121,ROWS($A$11:$A33)+2,FALSE)","v":1108},{"$f":"HLOOKUP(W$7,$J$67:$DK$121,ROWS($A$11:$A33)+2,FALSE)","v":188},{"$f":"HLOOKUP(X$7,$J$67:$DK$121,ROWS($A$11:$A33)+2,FALSE)","v":2886},{"$f":"HLOOKUP(Y$7,$J$67:$DK$121,ROWS($A$11:$A33)+2,FALSE)","v":677},{"$f":"HLOOKUP(Z$7,$J$67:$DK$121,ROWS($A$11:$A33)+2,FALSE)","v":151},{"$f":"HLOOKUP(AA$7,$J$67:$DK$121,ROWS($A$11:$A33)+2,FALSE)","v":565},{"$f":"HLOOKUP(AB$7,$J$67:$DK$121,ROWS($A$11:$A33)+2,FALSE)","v":52},{"$f":"HLOOKUP(AC$7,$J$67:$DK$121,ROWS($A$11:$A33)+2,FALSE)","v":1556},{"$f":"HLOOKUP(AD$7,$J$67:$DK$121,ROWS($A$11:$A33)+2,FALSE)","v":3907},{"$f":"HLOOKUP(AE$7,$J$67:$DK$121,ROWS($A$11:$A33)+2,FALSE)","v":2381},{"$f":"HLOOKUP(AF$7,$J$67:$DK$121,ROWS($A$11:$A33)+2,FALSE)","v":"N/A"},{"$f":"HLOOKUP(AG$7,$J$67:$DK$121,ROWS($A$11:$A33)+2,FALSE)","v":1337},{"$f":"HLOOKUP(AH$7,$J$67:$DK$121,ROWS($A$11:$A33)+2,FALSE)","v":966},{"$f":"HLOOKUP(AI$7,$J$67:$DK$121,ROWS($A$11:$A33)+2,FALSE)","v":155},{"$f":"HLOOKUP(AJ$7,$J$67:$DK$121,ROWS($A$11:$A33)+2,FALSE)","v":453},{"$f":"HLOOKUP(AK$7,$J$67:$DK$121,ROWS($A$11:$A33)+2,FALSE)","v":49},{"$f":"HLOOKUP(AL$7,$J$67:$DK$121,ROWS($A$11:$A33)+2,FALSE)","v":182},{"$f":"HLOOKUP(AM$7,$J$67:$DK$121,ROWS($A$11:$A33)+2,FALSE)","v":787},{"$f":"HLOOKUP(AN$7,$J$67:$DK$121,ROWS($A$11:$A33)+2,FALSE)","v":13331},{"$f":"HLOOKUP(AO$7,$J$67:$DK$121,ROWS($A$11:$A33)+2,FALSE)","v":8046},{"$f":"HLOOKUP(AP$7,$J$67:$DK$121,ROWS($A$11:$A33)+2,FALSE)","v":521},{"$f":"HLOOKUP(AQ$7,$J$67:$DK$121,ROWS($A$11:$A33)+2,FALSE)","v":19467},{"$f":"HLOOKUP(AR$7,$J$67:$DK$121,ROWS($A$11:$A33)+2,FALSE)","v":2514},{"$f":"HLOOKUP(AS$7,$J$67:$DK$121,ROWS($A$11:$A33)+2,FALSE)","v":81},{"$f":"HLOOKUP(AT$7,$J$67:$DK$121,ROWS($A$11:$A33)+2,FALSE)","v":1829},{"$f":"HLOOKUP(AU$7,$J$67:$DK$121,ROWS($A$11:$A33)+2,FALSE)","v":297},{"$f":"HLOOKUP(AV$7,$J$67:$DK$121,ROWS($A$11:$A33)+2,FALSE)","v":1528},{"$f":"HLOOKUP(AW$7,$J$67:$DK$121,ROWS($A$11:$A33)+2,FALSE)","v":8236},{"$f":"HLOOKUP(AX$7,$J$67:$DK$121,ROWS($A$11:$A33)+2,FALSE)","v":6863},{"$f":"HLOOKUP(AY$7,$J$67:$DK$121,ROWS($A$11:$A33)+2,FALSE)","v":2477},{"$f":"HLOOKUP(AZ$7,$J$67:$DK$121,ROWS($A$11:$A33)+2,FALSE)","v":194},{"$f":"HLOOKUP(BA$7,$J$67:$DK$121,ROWS($A$11:$A33)+2,FALSE)","v":823},{"$f":"HLOOKUP(BB$7,$J$67:$DK$121,ROWS($A$11:$A33)+2,FALSE)","v":3694},{"$f":"HLOOKUP(BC$7,$J$67:$DK$121,ROWS($A$11:$A33)+2,FALSE)","v":1027},{"$f":"HLOOKUP(BD$7,$J$67:$DK$121,ROWS($A$11:$A33)+2,FALSE)","v":2534},{"$f":"HLOOKUP(BE$7,$J$67:$DK$121,ROWS($A$11:$A33)+2,FALSE)","v":4098},{"$f":"HLOOKUP(BF$7,$J$67:$DK$121,ROWS($A$11:$A33)+2,FALSE)","v":1653},{"$f":"HLOOKUP(BG$7,$J$67:$DK$121,ROWS($A$11:$A33)+2,FALSE)","v":385},{"$f":"HLOOKUP(BH$7,$J$67:$DK$121,ROWS($A$11:$A33)+2,FALSE)","v":584},{"$f":"HLOOKUP(BI$7,$J$67:$DK$121,ROWS($A$11:$A33)+2,FALSE)","v":264},{"$f":"HLOOKUP(BJ$7,$J$67:$DK$121,ROWS($A$11:$A33)+2,FALSE)","v":4056},{"$f":"HLOOKUP(BK$7+0.5,$J$67:$DK$121,ROWS($A$11:$A33)+2,FALSE)","v":7863},{"$f":"HLOOKUP(BL$7+0.5,$J$67:$DK$121,ROWS($A$11:$A33)+2,FALSE)","v":622},{"$f":"HLOOKUP(BM$7+0.5,$J$67:$DK$121,ROWS($A$11:$A33)+2,FALSE)","v":600},{"$f":"HLOOKUP(BN$7+0.5,$J$67:$DK$121,ROWS($A$11:$A33)+2,FALSE)","v":979},{"$f":"HLOOKUP(BO$7+0.5,$J$67:$DK$121,ROWS($A$11:$A33)+2,FALSE)","v":340},{"$f":"HLOOKUP(BP$7+0.5,$J$67:$DK$121,ROWS($A$11:$A33)+2,FALSE)","v":2994},{"$f":"HLOOKUP(BQ$7+0.5,$J$67:$DK$121,ROWS($A$11:$A33)+2,FALSE)","v":438},{"$f":"HLOOKUP(BR$7+0.5,$J$67:$DK$121,ROWS($A$11:$A33)+2,FALSE)","v":2062},{"$f":"HLOOKUP(BS$7+0.5,$J$67:$DK$121,ROWS($A$11:$A33)+2,FALSE)","v":505},{"$f":"HLOOKUP(BT$7+0.5,$J$67:$DK$121,ROWS($A$11:$A33)+2,FALSE)","v":219},{"$f":"HLOOKUP(BU$7+0.5,$J$67:$DK$121,ROWS($A$11:$A33)+2,FALSE)","v":2568},{"$f":"HLOOKUP(BV$7+0.5,$J$67:$DK$121,ROWS($A$11:$A33)+2,FALSE)","v":1129},{"$f":"HLOOKUP(BW$7+0.5,$J$67:$DK$121,ROWS($A$11:$A33)+2,FALSE)","v":564},{"$f":"HLOOKUP(BX$7+0.5,$J$67:$DK$121,ROWS($A$11:$A33)+2,FALSE)","v":164},{"$f":"HLOOKUP(BY$7+0.5,$J$67:$DK$121,ROWS($A$11:$A33)+2,FALSE)","v":1041},{"$f":"HLOOKUP(BZ$7+0.5,$J$67:$DK$121,ROWS($A$11:$A33)+2,FALSE)","v":497},{"$f":"HLOOKUP(CA$7+0.5,$J$67:$DK$121,ROWS($A$11:$A33)+2,FALSE)","v":251},{"$f":"HLOOKUP(CB$7+0.5,$J$67:$DK$121,ROWS($A$11:$A33)+2,FALSE)","v":429},{"$f":"HLOOKUP(CC$7+0.5,$J$67:$DK$121,ROWS($A$11:$A33)+2,FALSE)","v":87},{"$f":"HLOOKUP(CD$7+0.5,$J$67:$DK$121,ROWS($A$11:$A33)+2,FALSE)","v":742},{"$f":"HLOOKUP(CE$7+0.5,$J$67:$DK$121,ROWS($A$11:$A33)+2,FALSE)","v":1349},{"$f":"HLOOKUP(CF$7+0.5,$J$67:$DK$121,ROWS($A$11:$A33)+2,FALSE)","v":895},{"$f":"HLOOKUP(CG$7+0.5,$J$67:$DK$121,ROWS($A$11:$A33)+2,FALSE)","v":"N/A"},{"$f":"HLOOKUP(CH$7+0.5,$J$67:$DK$121,ROWS($A$11:$A33)+2,FALSE)","v":680},{"$f":"HLOOKUP(CI$7+0.5,$J$67:$DK$121,ROWS($A$11:$A33)+2,FALSE)","v":367},{"$f":"HLOOKUP(CJ$7+0.5,$J$67:$DK$121,ROWS($A$11:$A33)+2,FALSE)","v":186},{"$f":"HLOOKUP(CK$7+0.5,$J$67:$DK$121,ROWS($A$11:$A33)+2,FALSE)","v":218},{"$f":"HLOOKUP(CL$7+0.5,$J$67:$DK$121,ROWS($A$11:$A33)+2,FALSE)","v":81},{"$f":"HLOOKUP(CM$7+0.5,$J$67:$DK$121,ROWS($A$11:$A33)+2,FALSE)","v":189},{"$f":"HLOOKUP(CN$7+0.5,$J$67:$DK$121,ROWS($A$11:$A33)+2,FALSE)","v":544},{"$f":"HLOOKUP(CO$7+0.5,$J$67:$DK$121,ROWS($A$11:$A33)+2,FALSE)","v":2144},{"$f":"HLOOKUP(CP$7+0.5,$J$67:$DK$121,ROWS($A$11:$A33)+2,FALSE)","v":1874},{"$f":"HLOOKUP(CQ$7+0.5,$J$67:$DK$121,ROWS($A$11:$A33)+2,FALSE)","v":364},{"$f":"HLOOKUP(CR$7+0.5,$J$67:$DK$121,ROWS($A$11:$A33)+2,FALSE)","v":2432},{"$f":"HLOOKUP(CS$7+0.5,$J$67:$DK$121,ROWS($A$11:$A33)+2,FALSE)","v":1003},{"$f":"HLOOKUP(CT$7+0.5,$J$67:$DK$121,ROWS($A$11:$A33)+2,FALSE)","v":133},{"$f":"HLOOKUP(CU$7+0.5,$J$67:$DK$121,ROWS($A$11:$A33)+2,FALSE)","v":772},{"$f":"HLOOKUP(CV$7+0.5,$J$67:$DK$121,ROWS($A$11:$A33)+2,FALSE)","v":206},{"$f":"HLOOKUP(CW$7+0.5,$J$67:$DK$121,ROWS($A$11:$A33)+2,FALSE)","v":1359},{"$f":"HLOOKUP(CX$7+0.5,$J$67:$DK$121,ROWS($A$11:$A33)+2,FALSE)","v":1924},{"$f":"HLOOKUP(CY$7+0.5,$J$67:$DK$121,ROWS($A$11:$A33)+2,FALSE)","v":1317},{"$f":"HLOOKUP(CZ$7+0.5,$J$67:$DK$121,ROWS($A$11:$A33)+2,FALSE)","v":1120},{"$f":"HLOOKUP(DA$7+0.5,$J$67:$DK$121,ROWS($A$11:$A33)+2,FALSE)","v":326},{"$f":"HLOOKUP(DB$7+0.5,$J$67:$DK$121,ROWS($A$11:$A33)+2,FALSE)","v":342},{"$f":"HLOOKUP(DC$7+0.5,$J$67:$DK$121,ROWS($A$11:$A33)+2,FALSE)","v":1078},{"$f":"HLOOKUP(DD$7+0.5,$J$67:$DK$121,ROWS($A$11:$A33)+2,FALSE)","v":666},{"$f":"HLOOKUP(DE$7+0.5,$J$67:$DK$121,ROWS($A$11:$A33)+2,FALSE)","v":913},{"$f":"HLOOKUP(DF$7+0.5,$J$67:$DK$121,ROWS($A$11:$A33)+2,FALSE)","v":1470},{"$f":"HLOOKUP(DG$7+0.5,$J$67:$DK$121,ROWS($A$11:$A33)+2,FALSE)","v":696},{"$f":"HLOOKUP(DH$7+0.5,$J$67:$DK$121,ROWS($A$11:$A33)+2,FALSE)","v":569},{"$f":"HLOOKUP(DI$7+0.5,$J$67:$DK$121,ROWS($A$11:$A33)+2,FALSE)","v":445},{"$f":"HLOOKUP(DJ$7+0.5,$J$67:$DK$121,ROWS($A$11:$A33)+2,FALSE)","v":404},{"$f":"HLOOKUP(DK$7+0.5,$J$67:$DK$121,ROWS($A$11:$A33)+2,FALSE)","v":1883}]
[null,"Michigan",9778980,4263,8330990,24803,1268105,23226,1.8949711789170119E-2,{"$f":"HLOOKUP(J$7,$J$67:$DK$121,ROWS($A$11:$A34)+2,FALSE)","v":133981},{"$f":"HLOOKUP(K$7,$J$67:$DK$121,ROWS($A$11:$A34)+2,FALSE)","v":2341},{"$f":"HLOOKUP(L$7,$J$67:$DK$121,ROWS($A$11:$A34)+2,FALSE)","v":1152},{"$f":"HLOOKUP(M$7,$J$67:$DK$121,ROWS($A$11:$A34)+2,FALSE)","v":7168},{"$f":"HLOOKUP(N$7,$J$67:$DK$121,ROWS($A$11:$A34)+2,FALSE)","v":906},{"$f":"HLOOKUP(O$7,$J$67:$DK$121,ROWS($A$11:$A34)+2,FALSE)","v":8085},{"$f":"HLOOKUP(P$7,$J$67:$DK$121,ROWS($A$11:$A34)+2,FALSE)","v":2363},{"$f":"HLOOKUP(Q$7,$J$67:$DK$121,ROWS($A$11:$A34)+2,FALSE)","v":798},{"$f":"HLOOKUP(R$7,$J$67:$DK$121,ROWS($A$11:$A34)+2,FALSE)","v":114},{"$f":"HLOOKUP(S$7,$J$67:$DK$121,ROWS($A$11:$A34)+2,FALSE)","v":274},{"$f":"HLOOKUP(T$7,$J$67:$DK$121,ROWS($A$11:$A34)+2,FALSE)","v":13146},{"$f":"HLOOKUP(U$7,$J$67:$DK$121,ROWS($A$11:$A34)+2,FALSE)","v":4270},{"$f":"HLOOKUP(V$7,$J$67:$DK$121,ROWS($A$11:$A34)+2,FALSE)","v":291},{"$f":"HLOOKUP(W$7,$J$67:$DK$121,ROWS($A$11:$A34)+2,FALSE)","v":242},{"$f":"HLOOKUP(X$7,$J$67:$DK$121,ROWS($A$11:$A34)+2,FALSE)","v":10047},{"$f":"HLOOKUP(Y$7,$J$67:$DK$121,ROWS($A$11:$A34)+2,FALSE)","v":10976},{"$f":"HLOOKUP(Z$7,$J$67:$DK$121,ROWS($A$11:$A34)+2,FALSE)","v":993},{"$f":"HLOOKUP(AA$7,$J$67:$DK$121,ROWS($A$11:$A34)+2,FALSE)","v":805},{"$f":"HLOOKUP(AB$7,$J$67:$DK$121,ROWS($A$11:$A34)+2,FALSE)","v":3409},{"$f":"HLOOKUP(AC$7,$J$67:$DK$121,ROWS($A$11:$A34)+2,FALSE)","v":1284},{"$f":"HLOOKUP(AD$7,$J$67:$DK$121,ROWS($A$11:$A34)+2,FALSE)","v":261},{"$f":"HLOOKUP(AE$7,$J$67:$DK$121,ROWS($A$11:$A34)+2,FALSE)","v":2201},{"$f":"HLOOKUP(AF$7,$J$67:$DK$121,ROWS($A$11:$A34)+2,FALSE)","v":1720},{"$f":"HLOOKUP(AG$7,$J$67:$DK$121,ROWS($A$11:$A34)+2,FALSE)","v":"N/A"},{"$f":"HLOOKUP(AH$7,$J$67:$DK$121,ROWS($A$11:$A34)+2,FALSE)","v":1127},{"$f":"HLOOKUP(AI$7,$J$67:$DK$121,ROWS($A$11:$A34)+2,FALSE)","v":922},{"$f":"HLOOKUP(AJ$7,$J$67:$DK$121,ROWS($A$11:$A34)+2,FALSE)","v":2206},{"$f":"HLOOKUP(AK$7,$J$67:$DK$121,ROWS($A$11:$A34)+2,FALSE)","v":218},{"$f":"HLOOKUP(AL$7,$J$67:$DK$121,ROWS($A$11:$A34)+2,FALSE)","v":113},{"$f":"HLOOKUP(AM$7,$J$67:$DK$121,ROWS($A$11:$A34)+2,FALSE)","v":1354},{"$f":"HLOOKUP(AN$7,$J$67:$DK$121,ROWS($A$11:$A34)+2,FALSE)","v":446},{"$f":"HLOOKUP(AO$7,$J$67:$DK$121,ROWS($A$11:$A34)+2,FALSE)","v":1617},{"$f":"HLOOKUP(AP$7,$J$67:$DK$121,ROWS($A$11:$A34)+2,FALSE)","v":1318},{"$f":"HLOOKUP(AQ$7,$J$67:$DK$121,ROWS($A$11:$A34)+2,FALSE)","v":5731},{"$f":"HLOOKUP(AR$7,$J$67:$DK$121,ROWS($A$11:$A34)+2,FALSE)","v":3912},{"$f":"HLOOKUP(AS$7,$J$67:$DK$121,ROWS($A$11:$A34)+2,FALSE)","v":265},{"$f":"HLOOKUP(AT$7,$J$67:$DK$121,ROWS($A$11:$A34)+2,FALSE)","v":11318},{"$f":"HLOOKUP(AU$7,$J$67:$DK$121,ROWS($A$11:$A34)+2,FALSE)","v":705},{"$f":"HLOOKUP(AV$7,$J$67:$DK$121,ROWS($A$11:$A34)+2,FALSE)","v":811},{"$f":"HLOOKUP(AW$7,$J$67:$DK$121,ROWS($A$11:$A34)+2,FALSE)","v":2739},{"$f":"HLOOKUP(AX$7,$J$67:$DK$121,ROWS($A$11:$A34)+2,FALSE)","v":68},{"$f":"HLOOKUP(AY$7,$J$67:$DK$121,ROWS($A$11:$A34)+2,FALSE)","v":1822},{"$f":"HLOOKUP(AZ$7,$J$67:$DK$121,ROWS($A$11:$A34)+2,FALSE)","v":66},{"$f":"HLOOKUP(BA$7,$J$67:$DK$121,ROWS($A$11:$A34)+2,FALSE)","v":3259},{"$f":"HLOOKUP(BB$7,$J$67:$DK$121,ROWS($A$11:$A34)+2,FALSE)","v":8638},{"$f":"HLOOKUP(BC$7,$J$67:$DK$121,ROWS($A$11:$A34)+2,FALSE)","v":819},{"$f":"HLOOKUP(BD$7,$J$67:$DK$121,ROWS($A$11:$A34)+2,FALSE)","v":60},{"$f":"HLOOKUP(BE$7,$J$67:$DK$121,ROWS($A$11:$A34)+2,FALSE)","v":3057},{"$f":"HLOOKUP(BF$7,$J$67:$DK$121,ROWS($A$11:$A34)+2,FALSE)","v":2146},{"$f":"HLOOKUP(BG$7,$J$67:$DK$121,ROWS($A$11:$A34)+2,FALSE)","v":353},{"$f":"HLOOKUP(BH$7,$J$67:$DK$121,ROWS($A$11:$A34)+2,FALSE)","v":4768},{"$f":"HLOOKUP(BI$7,$J$67:$DK$121,ROWS($A$11:$A34)+2,FALSE)","v":1277},{"$f":"HLOOKUP(BJ$7,$J$67:$DK$121,ROWS($A$11:$A34)+2,FALSE)","v":782},{"$f":"HLOOKUP(BK$7+0.5,$J$67:$DK$121,ROWS($A$11:$A34)+2,FALSE)","v":8566},{"$f":"HLOOKUP(BL$7+0.5,$J$67:$DK$121,ROWS($A$11:$A34)+2,FALSE)","v":1013},{"$f":"HLOOKUP(BM$7+0.5,$J$67:$DK$121,ROWS($A$11:$A34)+2,FALSE)","v":685},{"$f":"HLOOKUP(BN$7+0.5,$J$67:$DK$121,ROWS($A$11:$A34)+2,FALSE)","v":3100},{"$f":"HLOOKUP(BO$7+0.5,$J$67:$DK$121,ROWS($A$11:$A34)+2,FALSE)","v":559},{"$f":"HLOOKUP(BP$7+0.5,$J$67:$DK$121,ROWS($A$11:$A34)+2,FALSE)","v":1721},{"$f":"HLOOKUP(BQ$7+0.5,$J$67:$DK$121,ROWS($A$11:$A34)+2,FALSE)","v":967},{"$f":"HLOOKUP(BR$7+0.5,$J$67:$DK$121,ROWS($A$11:$A34)+2,FALSE)","v":506},{"$f":"HLOOKUP(BS$7+0.5,$J$67:$DK$121,ROWS($A$11:$A34)+2,FALSE)","v":164},{"$f":"HLOOKUP(BT$7+0.5,$J$67:$DK$121,ROWS($A$11:$A34)+2,FALSE)","v":282},{"$f":"HLOOKUP(BU$7+0.5,$J$67:$DK$121,ROWS($A$11:$A34)+2,FALSE)","v":3306},{"$f":"HLOOKUP(BV$7+0.5,$J$67:$DK$121,ROWS($A$11:$A34)+2,FALSE)","v":1652},{"$f":"HLOOKUP(BW$7+0.5,$J$67:$DK$121,ROWS($A$11:$A34)+2,FALSE)","v":238},{"$f":"HLOOKUP(BX$7+0.5,$J$67:$DK$121,ROWS($A$11:$A34)+2,FALSE)","v":371},{"$f":"HLOOKUP(BY$7+0.5,$J$67:$DK$121,ROWS($A$11:$A34)+2,FALSE)","v":1702},{"$f":"HLOOKUP(BZ$7+0.5,$J$67:$DK$121,ROWS($A$11:$A34)+2,FALSE)","v":2324},{"$f":"HLOOKUP(CA$7+0.5,$J$67:$DK$121,ROWS($A$11:$A34)+2,FALSE)","v":495},{"$f":"HLOOKUP(CB$7+0.5,$J$67:$DK$121,ROWS($A$11:$A34)+2,FALSE)","v":608},{"$f":"HLOOKUP(CC$7+0.5,$J$67:$DK$121,ROWS($A$11:$A34)+2,FALSE)","v":1388},{"$f":"HLOOKUP(CD$7+0.5,$J$67:$DK$121,ROWS($A$11:$A34)+2,FALSE)","v":662},{"$f":"HLOOKUP(CE$7+0.5,$J$67:$DK$121,ROWS($A$11:$A34)+2,FALSE)","v":218},{"$f":"HLOOKUP(CF$7+0.5,$J$67:$DK$121,ROWS($A$11:$A34)+2,FALSE)","v":1094},{"$f":"HLOOKUP(CG$7+0.5,$J$67:$DK$121,ROWS($A$11:$A34)+2,FALSE)","v":764},{"$f":"HLOOKUP(CH$7+0.5,$J$67:$DK$121,ROWS($A$11:$A34)+2,FALSE)","v":"N/A"},{"$f":"HLOOKUP(CI$7+0.5,$J$67:$DK$121,ROWS($A$11:$A34)+2,FALSE)","v":512},{"$f":"HLOOKUP(CJ$7+0.5,$J$67:$DK$121,ROWS($A$11:$A34)+2,FALSE)","v":671},{"$f":"HLOOKUP(CK$7+0.5,$J$67:$DK$121,ROWS($A$11:$A34)+2,FALSE)","v":695},{"$f":"HLOOKUP(CL$7+0.5,$J$67:$DK$121,ROWS($A$11:$A34)+2,FALSE)","v":171},{"$f":"HLOOKUP(CM$7+0.5,$J$67:$DK$121,ROWS($A$11:$A34)+2,FALSE)","v":137},{"$f":"HLOOKUP(CN$7+0.5,$J$67:$DK$121,ROWS($A$11:$A34)+2,FALSE)","v":715},{"$f":"HLOOKUP(CO$7+0.5,$J$67:$DK$121,ROWS($A$11:$A34)+2,FALSE)","v":342},{"$f":"HLOOKUP(CP$7+0.5,$J$67:$DK$121,ROWS($A$11:$A34)+2,FALSE)","v":721},{"$f":"HLOOKUP(CQ$7+0.5,$J$67:$DK$121,ROWS($A$11:$A34)+2,FALSE)","v":685},{"$f":"HLOOKUP(CR$7+0.5,$J$67:$DK$121,ROWS($A$11:$A34)+2,FALSE)","v":1680},{"$f":"HLOOKUP(CS$7+0.5,$J$67:$DK$121,ROWS($A$11:$A34)+2,FALSE)","v":1056},{"$f":"HLOOKUP(CT$7+0.5,$J$67:$DK$121,ROWS($A$11:$A34)+2,FALSE)","v":202},{"$f":"HLOOKUP(CU$7+0.5,$J$67:$DK$121,ROWS($A$11:$A34)+2,FALSE)","v":2251},{"$f":"HLOOKUP(CV$7+0.5,$J$67:$DK$121,ROWS($A$11:$A34)+2,FALSE)","v":307},{"$f":"HLOOKUP(CW$7+0.5,$J$67:$DK$121,ROWS($A$11:$A34)+2,FALSE)","v":440},{"$f":"HLOOKUP(CX$7+0.5,$J$67:$DK$121,ROWS($A$11:$A34)+2,FALSE)","v":686},{"$f":"HLOOKUP(CY$7+0.5,$J$67:$DK$121,ROWS($A$11:$A34)+2,FALSE)","v":114},{"$f":"HLOOKUP(CZ$7+0.5,$J$67:$DK$121,ROWS($A$11:$A34)+2,FALSE)","v":797},{"$f":"HLOOKUP(DA$7+0.5,$J$67:$DK$121,ROWS($A$11:$A34)+2,FALSE)","v":77},{"$f":"HLOOKUP(DB$7+0.5,$J$67:$DK$121,ROWS($A$11:$A34)+2,FALSE)","v":997},{"$f":"HLOOKUP(DC$7+0.5,$J$67:$DK$121,ROWS($A$11:$A34)+2,FALSE)","v":2574},{"$f":"HLOOKUP(DD$7+0.5,$J$67:$DK$121,ROWS($A$11:$A34)+2,FALSE)","v":534},{"$f":"HLOOKUP(DE$7+0.5,$J$67:$DK$121,ROWS($A$11:$A34)+2,FALSE)","v":120},{"$f":"HLOOKUP(DF$7+0.5,$J$67:$DK$121,ROWS($A$11:$A34)+2,FALSE)","v":855},{"$f":"HLOOKUP(DG$7+0.5,$J$67:$DK$121,ROWS($A$11:$A34)+2,FALSE)","v":839},{"$f":"HLOOKUP(DH$7+0.5,$J$67:$DK$121,ROWS($A$11:$A34)+2,FALSE)","v":279},{"$f":"HLOOKUP(DI$7+0.5,$J$67:$DK$121,ROWS($A$11:$A34)+2,FALSE)","v":1111},{"$f":"HLOOKUP(DJ$7+0.5,$J$67:$DK$121,ROWS($A$11:$A34)+2,FALSE)","v":862},{"$f":"HLOOKUP(DK$7+0.5,$J$67:$DK$121,ROWS($A$11:$A34)+2,FALSE)","v":797}]
[null,"Minnesota",5315228,2787,4536303,18312,653012,17074,1.4290957513388668E-2,{"$f":"HLOOKUP(J$7,$J$67:$DK$121,ROWS($A$11:$A35)+2,FALSE)","v":101042},{"$f":"HLOOKUP(K$7,$J$67:$DK$121,ROWS($A$11:$A35)+2,FALSE)","v":1299},{"$f":"HLOOKUP(L$7,$J$67:$DK$121,ROWS($A$11:$A35)+2,FALSE)","v":523},{"$f":"HLOOKUP(M$7,$J$67:$DK$121,ROWS($A$11:$A35)+2,FALSE)","v":3065},{"$f":"HLOOKUP(N$7,$J$67:$DK$121,ROWS($A$11:$A35)+2,FALSE)","v":375},{"$f":"HLOOKUP(O$7,$J$67:$DK$121,ROWS($A$11:$A35)+2,FALSE)","v":8086},{"$f":"HLOOKUP(P$7,$J$67:$DK$121,ROWS($A$11:$A35)+2,FALSE)","v":3565},{"$f":"HLOOKUP(Q$7,$J$67:$DK$121,ROWS($A$11:$A35)+2,FALSE)","v":696},{"$f":"HLOOKUP(R$7,$J$67:$DK$121,ROWS($A$11:$A35)+2,FALSE)","v":0},{"$f":"HLOOKUP(S$7,$J$67:$DK$121,ROWS($A$11:$A35)+2,FALSE)","v":310},{"$f":"HLOOKUP(T$7,$J$67:$DK$121,ROWS($A$11:$A35)+2,FALSE)","v":2372},{"$f":"HLOOKUP(U$7,$J$67:$DK$121,ROWS($A$11:$A35)+2,FALSE)","v":2235},{"$f":"HLOOKUP(V$7,$J$67:$DK$121,ROWS($A$11:$A35)+2,FALSE)","v":1277},{"$f":"HLOOKUP(W$7,$J$67:$DK$121,ROWS($A$11:$A35)+2,FALSE)","v":575},{"$f":"HLOOKUP(X$7,$J$67:$DK$121,ROWS($A$11:$A35)+2,FALSE)","v":5896},{"$f":"HLOOKUP(Y$7,$J$67:$DK$121,ROWS($A$11:$A35)+2,FALSE)","v":2026},{"$f":"HLOOKUP(Z$7,$J$67:$DK$121,ROWS($A$11:$A35)+2,FALSE)","v":7220},{"$f":"HLOOKUP(AA$7,$J$67:$DK$121,ROWS($A$11:$A35)+2,FALSE)","v":924},{"$f":"HLOOKUP(AB$7,$J$67:$DK$121,ROWS($A$11:$A35)+2,FALSE)","v":57},{"$f":"HLOOKUP(AC$7,$J$67:$DK$121,ROWS($A$11:$A35)+2,FALSE)","v":791},{"$f":"HLOOKUP(AD$7,$J$67:$DK$121,ROWS($A$11:$A35)+2,FALSE)","v":187},{"$f":"HLOOKUP(AE$7,$J$67:$DK$121,ROWS($A$11:$A35)+2,FALSE)","v":1841},{"$f":"HLOOKUP(AF$7,$J$67:$DK$121,ROWS($A$11:$A35)+2,FALSE)","v":814},{"$f":"HLOOKUP(AG$7,$J$67:$DK$121,ROWS($A$11:$A35)+2,FALSE)","v":2212},{"$f":"HLOOKUP(AH$7,$J$67:$DK$121,ROWS($A$11:$A35)+2,FALSE)","v":"N/A"},{"$f":"HLOOKUP(AI$7,$J$67:$DK$121,ROWS($A$11:$A35)+2,FALSE)","v":202},{"$f":"HLOOKUP(AJ$7,$J$67:$DK$121,ROWS($A$11:$A35)+2,FALSE)","v":1709},{"$f":"HLOOKUP(AK$7,$J$67:$DK$121,ROWS($A$11:$A35)+2,FALSE)","v":1257},{"$f":"HLOOKUP(AL$7,$J$67:$DK$121,ROWS($A$11:$A35)+2,FALSE)","v":992},{"$f":"HLOOKUP(AM$7,$J$67:$DK$121,ROWS($A$11:$A35)+2,FALSE)","v":932},{"$f":"HLOOKUP(AN$7,$J$67:$DK$121,ROWS($A$11:$A35)+2,FALSE)","v":0},{"$f":"HLOOKUP(AO$7,$J$67:$DK$121,ROWS($A$11:$A35)+2,FALSE)","v":1038},{"$f":"HLOOKUP(AP$7,$J$67:$DK$121,ROWS($A$11:$A35)+2,FALSE)","v":322},{"$f":"HLOOKUP(AQ$7,$J$67:$DK$121,ROWS($A$11:$A35)+2,FALSE)","v":1849},{"$f":"HLOOKUP(AR$7,$J$67:$DK$121,ROWS($A$11:$A35)+2,FALSE)","v":1745},{"$f":"HLOOKUP(AS$7,$J$67:$DK$121,ROWS($A$11:$A35)+2,FALSE)","v":6672},{"$f":"HLOOKUP(AT$7,$J$67:$DK$121,ROWS($A$11:$A35)+2,FALSE)","v":2635},{"$f":"HLOOKUP(AU$7,$J$67:$DK$121,ROWS($A$11:$A35)+2,FALSE)","v":1212},{"$f":"HLOOKUP(AV$7,$J$67:$DK$121,ROWS($A$11:$A35)+2,FALSE)","v":781},{"$f":"HLOOKUP(AW$7,$J$67:$DK$121,ROWS($A$11:$A35)+2,FALSE)","v":1106},{"$f":"HLOOKUP(AX$7,$J$67:$DK$121,ROWS($A$11:$A35)+2,FALSE)","v":299},{"$f":"HLOOKUP(AY$7,$J$67:$DK$121,ROWS($A$11:$A35)+2,FALSE)","v":1705},{"$f":"HLOOKUP(AZ$7,$J$67:$DK$121,ROWS($A$11:$A35)+2,FALSE)","v":3442},{"$f":"HLOOKUP(BA$7,$J$67:$DK$121,ROWS($A$11:$A35)+2,FALSE)","v":1738},{"$f":"HLOOKUP(BB$7,$J$67:$DK$121,ROWS($A$11:$A35)+2,FALSE)","v":4001},{"$f":"HLOOKUP(BC$7,$J$67:$DK$121,ROWS($A$11:$A35)+2,FALSE)","v":429},{"$f":"HLOOKUP(BD$7,$J$67:$DK$121,ROWS($A$11:$A35)+2,FALSE)","v":77},{"$f":"HLOOKUP(BE$7,$J$67:$DK$121,ROWS($A$11:$A35)+2,FALSE)","v":1037},{"$f":"HLOOKUP(BF$7,$J$67:$DK$121,ROWS($A$11:$A35)+2,FALSE)","v":1685},{"$f":"HLOOKUP(BG$7,$J$67:$DK$121,ROWS($A$11:$A35)+2,FALSE)","v":0},{"$f":"HLOOKUP(BH$7,$J$67:$DK$121,ROWS($A$11:$A35)+2,FALSE)","v":17618},{"$f":"HLOOKUP(BI$7,$J$67:$DK$121,ROWS($A$11:$A35)+2,FALSE)","v":213},{"$f":"HLOOKUP(BJ$7,$J$67:$DK$121,ROWS($A$11:$A35)+2,FALSE)","v":134},{"$f":"HLOOKUP(BK$7+0.5,$J$67:$DK$121,ROWS($A$11:$A35)+2,FALSE)","v":6534},{"$f":"HLOOKUP(BL$7+0.5,$J$67:$DK$121,ROWS($A$11:$A35)+2,FALSE)","v":919},{"$f":"HLOOKUP(BM$7+0.5,$J$67:$DK$121,ROWS($A$11:$A35)+2,FALSE)","v":312},{"$f":"HLOOKUP(BN$7+0.5,$J$67:$DK$121,ROWS($A$11:$A35)+2,FALSE)","v":861},{"$f":"HLOOKUP(BO$7+0.5,$J$67:$DK$121,ROWS($A$11:$A35)+2,FALSE)","v":222},{"$f":"HLOOKUP(BP$7+0.5,$J$67:$DK$121,ROWS($A$11:$A35)+2,FALSE)","v":2263},{"$f":"HLOOKUP(BQ$7+0.5,$J$67:$DK$121,ROWS($A$11:$A35)+2,FALSE)","v":1095},{"$f":"HLOOKUP(BR$7+0.5,$J$67:$DK$121,ROWS($A$11:$A35)+2,FALSE)","v":360},{"$f":"HLOOKUP(BS$7+0.5,$J$67:$DK$121,ROWS($A$11:$A35)+2,FALSE)","v":139},{"$f":"HLOOKUP(BT$7+0.5,$J$67:$DK$121,ROWS($A$11:$A35)+2,FALSE)","v":353},{"$f":"HLOOKUP(BU$7+0.5,$J$67:$DK$121,ROWS($A$11:$A35)+2,FALSE)","v":752},{"$f":"HLOOKUP(BV$7+0.5,$J$67:$DK$121,ROWS($A$11:$A35)+2,FALSE)","v":1482},{"$f":"HLOOKUP(BW$7+0.5,$J$67:$DK$121,ROWS($A$11:$A35)+2,FALSE)","v":1179},{"$f":"HLOOKUP(BX$7+0.5,$J$67:$DK$121,ROWS($A$11:$A35)+2,FALSE)","v":531},{"$f":"HLOOKUP(BY$7+0.5,$J$67:$DK$121,ROWS($A$11:$A35)+2,FALSE)","v":1405},{"$f":"HLOOKUP(BZ$7+0.5,$J$67:$DK$121,ROWS($A$11:$A35)+2,FALSE)","v":1057},{"$f":"HLOOKUP(CA$7+0.5,$J$67:$DK$121,ROWS($A$11:$A35)+2,FALSE)","v":1774},{"$f":"HLOOKUP(CB$7+0.5,$J$67:$DK$121,ROWS($A$11:$A35)+2,FALSE)","v":513},{"$f":"HLOOKUP(CC$7+0.5,$J$67:$DK$121,ROWS($A$11:$A35)+2,FALSE)","v":103},{"$f":"HLOOKUP(CD$7+0.5,$J$67:$DK$121,ROWS($A$11:$A35)+2,FALSE)","v":858},{"$f":"HLOOKUP(CE$7+0.5,$J$67:$DK$121,ROWS($A$11:$A35)+2,FALSE)","v":136},{"$f":"HLOOKUP(CF$7+0.5,$J$67:$DK$121,ROWS($A$11:$A35)+2,FALSE)","v":2080},{"$f":"HLOOKUP(CG$7+0.5,$J$67:$DK$121,ROWS($A$11:$A35)+2,FALSE)","v":434},{"$f":"HLOOKUP(CH$7+0.5,$J$67:$DK$121,ROWS($A$11:$A35)+2,FALSE)","v":822},{"$f":"HLOOKUP(CI$7+0.5,$J$67:$DK$121,ROWS($A$11:$A35)+2,FALSE)","v":"N/A"},{"$f":"HLOOKUP(CJ$7+0.5,$J$67:$DK$121,ROWS($A$11:$A35)+2,FALSE)","v":323},{"$f":"HLOOKUP(CK$7+0.5,$J$67:$DK$121,ROWS($A$11:$A35)+2,FALSE)","v":750},{"$f":"HLOOKUP(CL$7+0.5,$J$67:$DK$121,ROWS($A$11:$A35)+2,FALSE)","v":900},{"$f":"HLOOKUP(CM$7+0.5,$J$67:$DK$121,ROWS($A$11:$A35)+2,FALSE)","v":477},{"$f":"HLOOKUP(CN$7+0.5,$J$67:$DK$121,ROWS($A$11:$A35)+2,FALSE)","v":542},{"$f":"HLOOKUP(CO$7+0.5,$J$67:$DK$121,ROWS($A$11:$A35)+2,FALSE)","v":139},{"$f":"HLOOKUP(CP$7+0.5,$J$67:$DK$121,ROWS($A$11:$A35)+2,FALSE)","v":546},{"$f":"HLOOKUP(CQ$7+0.5,$J$67:$DK$121,ROWS($A$11:$A35)+2,FALSE)","v":224},{"$f":"HLOOKUP(CR$7+0.5,$J$67:$DK$121,ROWS($A$11:$A35)+2,FALSE)","v":732},{"$f":"HLOOKUP(CS$7+0.5,$J$67:$DK$121,ROWS($A$11:$A35)+2,FALSE)","v":956},{"$f":"HLOOKUP(CT$7+0.5,$J$67:$DK$121,ROWS($A$11:$A35)+2,FALSE)","v":1485},{"$f":"HLOOKUP(CU$7+0.5,$J$67:$DK$121,ROWS($A$11:$A35)+2,FALSE)","v":1248},{"$f":"HLOOKUP(CV$7+0.5,$J$67:$DK$121,ROWS($A$11:$A35)+2,FALSE)","v":894},{"$f":"HLOOKUP(CW$7+0.5,$J$67:$DK$121,ROWS($A$11:$A35)+2,FALSE)","v":513},{"$f":"HLOOKUP(CX$7+0.5,$J$67:$DK$121,ROWS($A$11:$A35)+2,FALSE)","v":570},{"$f":"HLOOKUP(CY$7+0.5,$J$67:$DK$121,ROWS($A$11:$A35)+2,FALSE)","v":226},{"$f":"HLOOKUP(CZ$7+0.5,$J$67:$DK$121,ROWS($A$11:$A35)+2,FALSE)","v":1448},{"$f":"HLOOKUP(DA$7+0.5,$J$67:$DK$121,ROWS($A$11:$A35)+2,FALSE)","v":990},{"$f":"HLOOKUP(DB$7+0.5,$J$67:$DK$121,ROWS($A$11:$A35)+2,FALSE)","v":1141},{"$f":"HLOOKUP(DC$7+0.5,$J$67:$DK$121,ROWS($A$11:$A35)+2,FALSE)","v":1244},{"$f":"HLOOKUP(DD$7+0.5,$J$67:$DK$121,ROWS($A$11:$A35)+2,FALSE)","v":312},{"$f":"HLOOKUP(DE$7+0.5,$J$67:$DK$121,ROWS($A$11:$A35)+2,FALSE)","v":126},{"$f":"HLOOKUP(DF$7+0.5,$J$67:$DK$121,ROWS($A$11:$A35)+2,FALSE)","v":434},{"$f":"HLOOKUP(DG$7+0.5,$J$67:$DK$121,ROWS($A$11:$A35)+2,FALSE)","v":678},{"$f":"HLOOKUP(DH$7+0.5,$J$67:$DK$121,ROWS($A$11:$A35)+2,FALSE)","v":139},{"$f":"HLOOKUP(DI$7+0.5,$J$67:$DK$121,ROWS($A$11:$A35)+2,FALSE)","v":2358},{"$f":"HLOOKUP(DJ$7+0.5,$J$67:$DK$121,ROWS($A$11:$A35)+2,FALSE)","v":213},{"$f":"HLOOKUP(DK$7+0.5,$J$67:$DK$121,ROWS($A$11:$A35)+2,FALSE)","v":136}]
[null,"Mississippi",2947696,2744,2529377,17940,339807,16126,1.0395532325508869E-2,{"$f":"HLOOKUP(J$7,$J$67:$DK$121,ROWS($A$11:$A36)+2,FALSE)","v":73500},{"$f":"HLOOKUP(K$7,$J$67:$DK$121,ROWS($A$11:$A36)+2,FALSE)","v":5141},{"$f":"HLOOKUP(L$7,$J$67:$DK$121,ROWS($A$11:$A36)+2,FALSE)","v":0},{"$f":"HLOOKUP(M$7,$J$67:$DK$121,ROWS($A$11:$A36)+2,FALSE)","v":710},{"$f":"HLOOKUP(N$7,$J$67:$DK$121,ROWS($A$11:$A36)+2,FALSE)","v":2680},{"$f":"HLOOKUP(O$7,$J$67:$DK$121,ROWS($A$11:$A36)+2,FALSE)","v":4371},{"$f":"HLOOKUP(P$7,$J$67:$DK$121,ROWS($A$11:$A36)+2,FALSE)","v":799},{"$f":"HLOOKUP(Q$7,$J$67:$DK$121,ROWS($A$11:$A36)+2,FALSE)","v":106},{"$f":"HLOOKUP(R$7,$J$67:$DK$121,ROWS($A$11:$A36)+2,FALSE)","v":0},{"$f":"HLOOKUP(S$7,$J$67:$DK$121,ROWS($A$11:$A36)+2,FALSE)","v":97},{"$f":"HLOOKUP(T$7,$J$67:$DK$121,ROWS($A$11:$A36)+2,FALSE)","v":4676},{"$f":"HLOOKUP(U$7,$J$67:$DK$121,ROWS($A$11:$A36)+2,FALSE)","v":2669},{"$f":"HLOOKUP(V$7,$J$67:$DK$121,ROWS($A$11:$A36)+2,FALSE)","v":184},{"$f":"HLOOKUP(W$7,$J$67:$DK$121,ROWS($A$11:$A36)+2,FALSE)","v":586},{"$f":"HLOOKUP(X$7,$J$67:$DK$121,ROWS($A$11:$A36)+2,FALSE)","v":2703},{"$f":"HLOOKUP(Y$7,$J$67:$DK$121,ROWS($A$11:$A36)+2,FALSE)","v":1200},{"$f":"HLOOKUP(Z$7,$J$67:$DK$121,ROWS($A$11:$A36)+2,FALSE)","v":160},{"$f":"HLOOKUP(AA$7,$J$67:$DK$121,ROWS($A$11:$A36)+2,FALSE)","v":400},{"$f":"HLOOKUP(AB$7,$J$67:$DK$121,ROWS($A$11:$A36)+2,FALSE)","v":446},{"$f":"HLOOKUP(AC$7,$J$67:$DK$121,ROWS($A$11:$A36)+2,FALSE)","v":8588},{"$f":"HLOOKUP(AD$7,$J$67:$DK$121,ROWS($A$11:$A36)+2,FALSE)","v":163},{"$f":"HLOOKUP(AE$7,$J$67:$DK$121,ROWS($A$11:$A36)+2,FALSE)","v":379},{"$f":"HLOOKUP(AF$7,$J$67:$DK$121,ROWS($A$11:$A36)+2,FALSE)","v":67},{"$f":"HLOOKUP(AG$7,$J$67:$DK$121,ROWS($A$11:$A36)+2,FALSE)","v":1768},{"$f":"HLOOKUP(AH$7,$J$67:$DK$121,ROWS($A$11:$A36)+2,FALSE)","v":568},{"$f":"HLOOKUP(AI$7,$J$67:$DK$121,ROWS($A$11:$A36)+2,FALSE)","v":"N/A"},{"$f":"HLOOKUP(AJ$7,$J$67:$DK$121,ROWS($A$11:$A36)+2,FALSE)","v":2634},{"$f":"HLOOKUP(AK$7,$J$67:$DK$121,ROWS($A$11:$A36)+2,FALSE)","v":166},{"$f":"HLOOKUP(AL$7,$J$67:$DK$121,ROWS($A$11:$A36)+2,FALSE)","v":138},{"$f":"HLOOKUP(AM$7,$J$67:$DK$121,ROWS($A$11:$A36)+2,FALSE)","v":526},{"$f":"HLOOKUP(AN$7,$J$67:$DK$121,ROWS($A$11:$A36)+2,FALSE)","v":60},{"$f":"HLOOKUP(AO$7,$J$67:$DK$121,ROWS($A$11:$A36)+2,FALSE)","v":2127},{"$f":"HLOOKUP(AP$7,$J$67:$DK$121,ROWS($A$11:$A36)+2,FALSE)","v":86},{"$f":"HLOOKUP(AQ$7,$J$67:$DK$121,ROWS($A$11:$A36)+2,FALSE)","v":1492},{"$f":"HLOOKUP(AR$7,$J$67:$DK$121,ROWS($A$11:$A36)+2,FALSE)","v":1709},{"$f":"HLOOKUP(AS$7,$J$67:$DK$121,ROWS($A$11:$A36)+2,FALSE)","v":98},{"$f":"HLOOKUP(AT$7,$J$67:$DK$121,ROWS($A$11:$A36)+2,FALSE)","v":896},{"$f":"HLOOKUP(AU$7,$J$67:$DK$121,ROWS($A$11:$A36)+2,FALSE)","v":562},{"$f":"HLOOKUP(AV$7,$J$67:$DK$121,ROWS($A$11:$A36)+2,FALSE)","v":465},{"$f":"HLOOKUP(AW$7,$J$67:$DK$121,ROWS($A$11:$A36)+2,FALSE)","v":613},{"$f":"HLOOKUP(AX$7,$J$67:$DK$121,ROWS($A$11:$A36)+2,FALSE)","v":185},{"$f":"HLOOKUP(AY$7,$J$67:$DK$121,ROWS($A$11:$A36)+2,FALSE)","v":596},{"$f":"HLOOKUP(AZ$7,$J$67:$DK$121,ROWS($A$11:$A36)+2,FALSE)","v":79},{"$f":"HLOOKUP(BA$7,$J$67:$DK$121,ROWS($A$11:$A36)+2,FALSE)","v":11643},{"$f":"HLOOKUP(BB$7,$J$67:$DK$121,ROWS($A$11:$A36)+2,FALSE)","v":7230},{"$f":"HLOOKUP(BC$7,$J$67:$DK$121,ROWS($A$11:$A36)+2,FALSE)","v":454},{"$f":"HLOOKUP(BD$7,$J$67:$DK$121,ROWS($A$11:$A36)+2,FALSE)","v":0},{"$f":"HLOOKUP(BE$7,$J$67:$DK$121,ROWS($A$11:$A36)+2,FALSE)","v":1929},{"$f":"HLOOKUP(BF$7,$J$67:$DK$121,ROWS($A$11:$A36)+2,FALSE)","v":433},{"$f":"HLOOKUP(BG$7,$J$67:$DK$121,ROWS($A$11:$A36)+2,FALSE)","v":0},{"$f":"HLOOKUP(BH$7,$J$67:$DK$121,ROWS($A$11:$A36)+2,FALSE)","v":611},{"$f":"HLOOKUP(BI$7,$J$67:$DK$121,ROWS($A$11:$A36)+2,FALSE)","v":307},{"$f":"HLOOKUP(BJ$7,$J$67:$DK$121,ROWS($A$11:$A36)+2,FALSE)","v":81},{"$f":"HLOOKUP(BK$7+0.5,$J$67:$DK$121,ROWS($A$11:$A36)+2,FALSE)","v":7080},{"$f":"HLOOKUP(BL$7+0.5,$J$67:$DK$121,ROWS($A$11:$A36)+2,FALSE)","v":1870},{"$f":"HLOOKUP(BM$7+0.5,$J$67:$DK$121,ROWS($A$11:$A36)+2,FALSE)","v":198},{"$f":"HLOOKUP(BN$7+0.5,$J$67:$DK$121,ROWS($A$11:$A36)+2,FALSE)","v":509},{"$f":"HLOOKUP(BO$7+0.5,$J$67:$DK$121,ROWS($A$11:$A36)+2,FALSE)","v":1447},{"$f":"HLOOKUP(BP$7+0.5,$J$67:$DK$121,ROWS($A$11:$A36)+2,FALSE)","v":1070},{"$f":"HLOOKUP(BQ$7+0.5,$J$67:$DK$121,ROWS($A$11:$A36)+2,FALSE)","v":426},{"$f":"HLOOKUP(BR$7+0.5,$J$67:$DK$121,ROWS($A$11:$A36)+2,FALSE)","v":147},{"$f":"HLOOKUP(BS$7+0.5,$J$67:$DK$121,ROWS($A$11:$A36)+2,FALSE)","v":198},{"$f":"HLOOKUP(BT$7+0.5,$J$67:$DK$121,ROWS($A$11:$A36)+2,FALSE)","v":164},{"$f":"HLOOKUP(BU$7+0.5,$J$67:$DK$121,ROWS($A$11:$A36)+2,FALSE)","v":1396},{"$f":"HLOOKUP(BV$7+0.5,$J$67:$DK$121,ROWS($A$11:$A36)+2,FALSE)","v":865},{"$f":"HLOOKUP(BW$7+0.5,$J$67:$DK$121,ROWS($A$11:$A36)+2,FALSE)","v":191},{"$f":"HLOOKUP(BX$7+0.5,$J$67:$DK$121,ROWS($A$11:$A36)+2,FALSE)","v":597},{"$f":"HLOOKUP(BY$7+0.5,$J$67:$DK$121,ROWS($A$11:$A36)+2,FALSE)","v":933},{"$f":"HLOOKUP(BZ$7+0.5,$J$67:$DK$121,ROWS($A$11:$A36)+2,FALSE)","v":621},{"$f":"HLOOKUP(CA$7+0.5,$J$67:$DK$121,ROWS($A$11:$A36)+2,FALSE)","v":275},{"$f":"HLOOKUP(CB$7+0.5,$J$67:$DK$121,ROWS($A$11:$A36)+2,FALSE)","v":339},{"$f":"HLOOKUP(CC$7+0.5,$J$67:$DK$121,ROWS($A$11:$A36)+2,FALSE)","v":276},{"$f":"HLOOKUP(CD$7+0.5,$J$67:$DK$121,ROWS($A$11:$A36)+2,FALSE)","v":2293},{"$f":"HLOOKUP(CE$7+0.5,$J$67:$DK$121,ROWS($A$11:$A36)+2,FALSE)","v":167},{"$f":"HLOOKUP(CF$7+0.5,$J$67:$DK$121,ROWS($A$11:$A36)+2,FALSE)","v":262},{"$f":"HLOOKUP(CG$7+0.5,$J$67:$DK$121,ROWS($A$11:$A36)+2,FALSE)","v":113},{"$f":"HLOOKUP(CH$7+0.5,$J$67:$DK$121,ROWS($A$11:$A36)+2,FALSE)","v":1071},{"$f":"HLOOKUP(CI$7+0.5,$J$67:$DK$121,ROWS($A$11:$A36)+2,FALSE)","v":385},{"$f":"HLOOKUP(CJ$7+0.5,$J$67:$DK$121,ROWS($A$11:$A36)+2,FALSE)","v":"N/A"},{"$f":"HLOOKUP(CK$7+0.5,$J$67:$DK$121,ROWS($A$11:$A36)+2,FALSE)","v":1581},{"$f":"HLOOKUP(CL$7+0.5,$J$67:$DK$121,ROWS($A$11:$A36)+2,FALSE)","v":168},{"$f":"HLOOKUP(CM$7+0.5,$J$67:$DK$121,ROWS($A$11:$A36)+2,FALSE)","v":159},{"$f":"HLOOKUP(CN$7+0.5,$J$67:$DK$121,ROWS($A$11:$A36)+2,FALSE)","v":342},{"$f":"HLOOKUP(CO$7+0.5,$J$67:$DK$121,ROWS($A$11:$A36)+2,FALSE)","v":117},{"$f":"HLOOKUP(CP$7+0.5,$J$67:$DK$121,ROWS($A$11:$A36)+2,FALSE)","v":1495},{"$f":"HLOOKUP(CQ$7+0.5,$J$67:$DK$121,ROWS($A$11:$A36)+2,FALSE)","v":102},{"$f":"HLOOKUP(CR$7+0.5,$J$67:$DK$121,ROWS($A$11:$A36)+2,FALSE)","v":660},{"$f":"HLOOKUP(CS$7+0.5,$J$67:$DK$121,ROWS($A$11:$A36)+2,FALSE)","v":609},{"$f":"HLOOKUP(CT$7+0.5,$J$67:$DK$121,ROWS($A$11:$A36)+2,FALSE)","v":118},{"$f":"HLOOKUP(CU$7+0.5,$J$67:$DK$121,ROWS($A$11:$A36)+2,FALSE)","v":703},{"$f":"HLOOKUP(CV$7+0.5,$J$67:$DK$121,ROWS($A$11:$A36)+2,FALSE)","v":352},{"$f":"HLOOKUP(CW$7+0.5,$J$67:$DK$121,ROWS($A$11:$A36)+2,FALSE)","v":768},{"$f":"HLOOKUP(CX$7+0.5,$J$67:$DK$121,ROWS($A$11:$A36)+2,FALSE)","v":434},{"$f":"HLOOKUP(CY$7+0.5,$J$67:$DK$121,ROWS($A$11:$A36)+2,FALSE)","v":229},{"$f":"HLOOKUP(CZ$7+0.5,$J$67:$DK$121,ROWS($A$11:$A36)+2,FALSE)","v":469},{"$f":"HLOOKUP(DA$7+0.5,$J$67:$DK$121,ROWS($A$11:$A36)+2,FALSE)","v":129},{"$f":"HLOOKUP(DB$7+0.5,$J$67:$DK$121,ROWS($A$11:$A36)+2,FALSE)","v":2856},{"$f":"HLOOKUP(DC$7+0.5,$J$67:$DK$121,ROWS($A$11:$A36)+2,FALSE)","v":2491},{"$f":"HLOOKUP(DD$7+0.5,$J$67:$DK$121,ROWS($A$11:$A36)+2,FALSE)","v":724},{"$f":"HLOOKUP(DE$7+0.5,$J$67:$DK$121,ROWS($A$11:$A36)+2,FALSE)","v":198},{"$f":"HLOOKUP(DF$7+0.5,$J$67:$DK$121,ROWS($A$11:$A36)+2,FALSE)","v":1285},{"$f":"HLOOKUP(DG$7+0.5,$J$67:$DK$121,ROWS($A$11:$A36)+2,FALSE)","v":309},{"$f":"HLOOKUP(DH$7+0.5,$J$67:$DK$121,ROWS($A$11:$A36)+2,FALSE)","v":198},{"$f":"HLOOKUP(DI$7+0.5,$J$67:$DK$121,ROWS($A$11:$A36)+2,FALSE)","v":521},{"$f":"HLOOKUP(DJ$7+0.5,$J$67:$DK$121,ROWS($A$11:$A36)+2,FALSE)","v":287},{"$f":"HLOOKUP(DK$7+0.5,$J$67:$DK$121,ROWS($A$11:$A36)+2,FALSE)","v":108}]
[null,"Missouri",5951913,3866,4965459,21306,801093,19635,2.3044137167281088E-2,{"$f":"HLOOKUP(J$7,$J$67:$DK$121,ROWS($A$11:$A37)+2,FALSE)","v":162930},{"$f":"HLOOKUP(K$7,$J$67:$DK$121,ROWS($A$11:$A37)+2,FALSE)","v":1333},{"$f":"HLOOKUP(L$7,$J$67:$DK$121,ROWS($A$11:$A37)+2,FALSE)","v":2186},{"$f":"HLOOKUP(M$7,$J$67:$DK$121,ROWS($A$11:$A37)+2,FALSE)","v":2297},{"$f":"HLOOKUP(N$7,$J$67:$DK$121,ROWS($A$11:$A37)+2,FALSE)","v":9434},{"$f":"HLOOKUP(O$7,$J$67:$DK$121,ROWS($A$11:$A37)+2,FALSE)","v":10717},{"$f":"HLOOKUP(P$7,$J$67:$DK$121,ROWS($A$11:$A37)+2,FALSE)","v":3798},{"$f":"HLOOKUP(Q$7,$J$67:$DK$121,ROWS($A$11:$A37)+2,FALSE)","v":410},{"$f":"HLOOKUP(R$7,$J$67:$DK$121,ROWS($A$11:$A37)+2,FALSE)","v":234},{"$f":"HLOOKUP(S$7,$J$67:$DK$121,ROWS($A$11:$A37)+2,FALSE)","v":144},{"$f":"HLOOKUP(T$7,$J$67:$DK$121,ROWS($A$11:$A37)+2,FALSE)","v":8374},{"$f":"HLOOKUP(U$7,$J$67:$DK$121,ROWS($A$11:$A37)+2,FALSE)","v":3451},{"$f":"HLOOKUP(V$7,$J$67:$DK$121,ROWS($A$11:$A37)+2,FALSE)","v":2114},{"$f":"HLOOKUP(W$7,$J$67:$DK$121,ROWS($A$11:$A37)+2,FALSE)","v":596},{"$f":"HLOOKUP(X$7,$J$67:$DK$121,ROWS($A$11:$A37)+2,FALSE)","v":22001},{"$f":"HLOOKUP(Y$7,$J$67:$DK$121,ROWS($A$11:$A37)+2,FALSE)","v":4184},{"$f":"HLOOKUP(Z$7,$J$67:$DK$121,ROWS($A$11:$A37)+2,FALSE)","v":5956},{"$f":"HLOOKUP(AA$7,$J$67:$DK$121,ROWS($A$11:$A37)+2,FALSE)","v":20218},{"$f":"HLOOKUP(AB$7,$J$67:$DK$121,ROWS($A$11:$A37)+2,FALSE)","v":2291},{"$f":"HLOOKUP(AC$7,$J$67:$DK$121,ROWS($A$11:$A37)+2,FALSE)","v":1178},{"$f":"HLOOKUP(AD$7,$J$67:$DK$121,ROWS($A$11:$A37)+2,FALSE)","v":996},{"$f":"HLOOKUP(AE$7,$J$67:$DK$121,ROWS($A$11:$A37)+2,FALSE)","v":1246},{"$f":"HLOOKUP(AF$7,$J$67:$DK$121,ROWS($A$11:$A37)+2,FALSE)","v":810},{"$f":"HLOOKUP(AG$7,$J$67:$DK$121,ROWS($A$11:$A37)+2,FALSE)","v":2964},{"$f":"HLOOKUP(AH$7,$J$67:$DK$121,ROWS($A$11:$A37)+2,FALSE)","v":2798},{"$f":"HLOOKUP(AI$7,$J$67:$DK$121,ROWS($A$11:$A37)+2,FALSE)","v":1110},{"$f":"HLOOKUP(AJ$7,$J$67:$DK$121,ROWS($A$11:$A37)+2,FALSE)","v":"N/A"},{"$f":"HLOOKUP(AK$7,$J$67:$DK$121,ROWS($A$11:$A37)+2,FALSE)","v":511},{"$f":"HLOOKUP(AL$7,$J$67:$DK$121,ROWS($A$11:$A37)+2,FALSE)","v":1999},{"$f":"HLOOKUP(AM$7,$J$67:$DK$121,ROWS($A$11:$A37)+2,FALSE)","v":836},{"$f":"HLOOKUP(AN$7,$J$67:$DK$121,ROWS($A$11:$A37)+2,FALSE)","v":35},{"$f":"HLOOKUP(AO$7,$J$67:$DK$121,ROWS($A$11:$A37)+2,FALSE)","v":960},{"$f":"HLOOKUP(AP$7,$J$67:$DK$121,ROWS($A$11:$A37)+2,FALSE)","v":451},{"$f":"HLOOKUP(AQ$7,$J$67:$DK$121,ROWS($A$11:$A37)+2,FALSE)","v":2834},{"$f":"HLOOKUP(AR$7,$J$67:$DK$121,ROWS($A$11:$A37)+2,FALSE)","v":3988},{"$f":"HLOOKUP(AS$7,$J$67:$DK$121,ROWS($A$11:$A37)+2,FALSE)","v":636},{"$f":"HLOOKUP(AT$7,$J$67:$DK$121,ROWS($A$11:$A37)+2,FALSE)","v":3557},{"$f":"HLOOKUP(AU$7,$J$67:$DK$121,ROWS($A$11:$A37)+2,FALSE)","v":5298},{"$f":"HLOOKUP(AV$7,$J$67:$DK$121,ROWS($A$11:$A37)+2,FALSE)","v":1186},{"$f":"HLOOKUP(AW$7,$J$67:$DK$121,ROWS($A$11:$A37)+2,FALSE)","v":1535},{"$f":"HLOOKUP(AX$7,$J$67:$DK$121,ROWS($A$11:$A37)+2,FALSE)","v":361},{"$f":"HLOOKUP(AY$7,$J$67:$DK$121,ROWS($A$11:$A37)+2,FALSE)","v":2856},{"$f":"HLOOKUP(AZ$7,$J$67:$DK$121,ROWS($A$11:$A37)+2,FALSE)","v":527},{"$f":"HLOOKUP(BA$7,$J$67:$DK$121,ROWS($A$11:$A37)+2,FALSE)","v":3122},{"$f":"HLOOKUP(BB$7,$J$67:$DK$121,ROWS($A$11:$A37)+2,FALSE)","v":9278},{"$f":"HLOOKUP(BC$7,$J$67:$DK$121,ROWS($A$11:$A37)+2,FALSE)","v":3287},{"$f":"HLOOKUP(BD$7,$J$67:$DK$121,ROWS($A$11:$A37)+2,FALSE)","v":318},{"$f":"HLOOKUP(BE$7,$J$67:$DK$121,ROWS($A$11:$A37)+2,FALSE)","v":2609},{"$f":"HLOOKUP(BF$7,$J$67:$DK$121,ROWS($A$11:$A37)+2,FALSE)","v":2312},{"$f":"HLOOKUP(BG$7,$J$67:$DK$121,ROWS($A$11:$A37)+2,FALSE)","v":148},{"$f":"HLOOKUP(BH$7,$J$67:$DK$121,ROWS($A$11:$A37)+2,FALSE)","v":2636},{"$f":"HLOOKUP(BI$7,$J$67:$DK$121,ROWS($A$11:$A37)+2,FALSE)","v":810},{"$f":"HLOOKUP(BJ$7,$J$67:$DK$121,ROWS($A$11:$A37)+2,FALSE)","v":826},{"$f":"HLOOKUP(BK$7+0.5,$J$67:$DK$121,ROWS($A$11:$A37)+2,FALSE)","v":8034},{"$f":"HLOOKUP(BL$7+0.5,$J$67:$DK$121,ROWS($A$11:$A37)+2,FALSE)","v":768},{"$f":"HLOOKUP(BM$7+0.5,$J$67:$DK$121,ROWS($A$11:$A37)+2,FALSE)","v":1289},{"$f":"HLOOKUP(BN$7+0.5,$J$67:$DK$121,ROWS($A$11:$A37)+2,FALSE)","v":741},{"$f":"HLOOKUP(BO$7+0.5,$J$67:$DK$121,ROWS($A$11:$A37)+2,FALSE)","v":2224},{"$f":"HLOOKUP(BP$7+0.5,$J$67:$DK$121,ROWS($A$11:$A37)+2,FALSE)","v":2409},{"$f":"HLOOKUP(BQ$7+0.5,$J$67:$DK$121,ROWS($A$11:$A37)+2,FALSE)","v":1371},{"$f":"HLOOKUP(BR$7+0.5,$J$67:$DK$121,ROWS($A$11:$A37)+2,FALSE)","v":331},{"$f":"HLOOKUP(BS$7+0.5,$J$67:$DK$121,ROWS($A$11:$A37)+2,FALSE)","v":314},{"$f":"HLOOKUP(BT$7+0.5,$J$67:$DK$121,ROWS($A$11:$A37)+2,FALSE)","v":172},{"$f":"HLOOKUP(BU$7+0.5,$J$67:$DK$121,ROWS($A$11:$A37)+2,FALSE)","v":1990},{"$f":"HLOOKUP(BV$7+0.5,$J$67:$DK$121,ROWS($A$11:$A37)+2,FALSE)","v":1391},{"$f":"HLOOKUP(BW$7+0.5,$J$67:$DK$121,ROWS($A$11:$A37)+2,FALSE)","v":1271},{"$f":"HLOOKUP(BX$7+0.5,$J$67:$DK$121,ROWS($A$11:$A37)+2,FALSE)","v":478},{"$f":"HLOOKUP(BY$7+0.5,$J$67:$DK$121,ROWS($A$11:$A37)+2,FALSE)","v":2893},{"$f":"HLOOKUP(BZ$7+0.5,$J$67:$DK$121,ROWS($A$11:$A37)+2,FALSE)","v":1267},{"$f":"HLOOKUP(CA$7+0.5,$J$67:$DK$121,ROWS($A$11:$A37)+2,FALSE)","v":1324},{"$f":"HLOOKUP(CB$7+0.5,$J$67:$DK$121,ROWS($A$11:$A37)+2,FALSE)","v":3673},{"$f":"HLOOKUP(CC$7+0.5,$J$67:$DK$121,ROWS($A$11:$A37)+2,FALSE)","v":1067},{"$f":"HLOOKUP(CD$7+0.5,$J$67:$DK$121,ROWS($A$11:$A37)+2,FALSE)","v":651},{"$f":"HLOOKUP(CE$7+0.5,$J$67:$DK$121,ROWS($A$11:$A37)+2,FALSE)","v":1247},{"$f":"HLOOKUP(CF$7+0.5,$J$67:$DK$121,ROWS($A$11:$A37)+2,FALSE)","v":717},{"$f":"HLOOKUP(CG$7+0.5,$J$67:$DK$121,ROWS($A$11:$A37)+2,FALSE)","v":486},{"$f":"HLOOKUP(CH$7+0.5,$J$67:$DK$121,ROWS($A$11:$A37)+2,FALSE)","v":1169},{"$f":"HLOOKUP(CI$7+0.5,$J$67:$DK$121,ROWS($A$11:$A37)+2,FALSE)","v":1265},{"$f":"HLOOKUP(CJ$7+0.5,$J$67:$DK$121,ROWS($A$11:$A37)+2,FALSE)","v":532},{"$f":"HLOOKUP(CK$7+0.5,$J$67:$DK$121,ROWS($A$11:$A37)+2,FALSE)","v":"N/A"},{"$f":"HLOOKUP(CL$7+0.5,$J$67:$DK$121,ROWS($A$11:$A37)+2,FALSE)","v":506},{"$f":"HLOOKUP(CM$7+0.5,$J$67:$DK$121,ROWS($A$11:$A37)+2,FALSE)","v":833},{"$f":"HLOOKUP(CN$7+0.5,$J$67:$DK$121,ROWS($A$11:$A37)+2,FALSE)","v":366},{"$f":"HLOOKUP(CO$7+0.5,$J$67:$DK$121,ROWS($A$11:$A37)+2,FALSE)","v":58},{"$f":"HLOOKUP(CP$7+0.5,$J$67:$DK$121,ROWS($A$11:$A37)+2,FALSE)","v":536},{"$f":"HLOOKUP(CQ$7+0.5,$J$67:$DK$121,ROWS($A$11:$A37)+2,FALSE)","v":309},{"$f":"HLOOKUP(CR$7+0.5,$J$67:$DK$121,ROWS($A$11:$A37)+2,FALSE)","v":918},{"$f":"HLOOKUP(CS$7+0.5,$J$67:$DK$121,ROWS($A$11:$A37)+2,FALSE)","v":1420},{"$f":"HLOOKUP(CT$7+0.5,$J$67:$DK$121,ROWS($A$11:$A37)+2,FALSE)","v":462},{"$f":"HLOOKUP(CU$7+0.5,$J$67:$DK$121,ROWS($A$11:$A37)+2,FALSE)","v":1317},{"$f":"HLOOKUP(CV$7+0.5,$J$67:$DK$121,ROWS($A$11:$A37)+2,FALSE)","v":2199},{"$f":"HLOOKUP(CW$7+0.5,$J$67:$DK$121,ROWS($A$11:$A37)+2,FALSE)","v":899},{"$f":"HLOOKUP(CX$7+0.5,$J$67:$DK$121,ROWS($A$11:$A37)+2,FALSE)","v":639},{"$f":"HLOOKUP(CY$7+0.5,$J$67:$DK$121,ROWS($A$11:$A37)+2,FALSE)","v":582},{"$f":"HLOOKUP(CZ$7+0.5,$J$67:$DK$121,ROWS($A$11:$A37)+2,FALSE)","v":1625},{"$f":"HLOOKUP(DA$7+0.5,$J$67:$DK$121,ROWS($A$11:$A37)+2,FALSE)","v":542},{"$f":"HLOOKUP(DB$7+0.5,$J$67:$DK$121,ROWS($A$11:$A37)+2,FALSE)","v":1350},{"$f":"HLOOKUP(DC$7+0.5,$J$67:$DK$121,ROWS($A$11:$A37)+2,FALSE)","v":2841},{"$f":"HLOOKUP(DD$7+0.5,$J$67:$DK$121,ROWS($A$11:$A37)+2,FALSE)","v":1733},{"$f":"HLOOKUP(DE$7+0.5,$J$67:$DK$121,ROWS($A$11:$A37)+2,FALSE)","v":413},{"$f":"HLOOKUP(DF$7+0.5,$J$67:$DK$121,ROWS($A$11:$A37)+2,FALSE)","v":1081},{"$f":"HLOOKUP(DG$7+0.5,$J$67:$DK$121,ROWS($A$11:$A37)+2,FALSE)","v":1093},{"$f":"HLOOKUP(DH$7+0.5,$J$67:$DK$121,ROWS($A$11:$A37)+2,FALSE)","v":181},{"$f":"HLOOKUP(DI$7+0.5,$J$67:$DK$121,ROWS($A$11:$A37)+2,FALSE)","v":999},{"$f":"HLOOKUP(DJ$7+0.5,$J$67:$DK$121,ROWS($A$11:$A37)+2,FALSE)","v":452},{"$f":"HLOOKUP(DK$7+0.5,$J$67:$DK$121,ROWS($A$11:$A37)+2,FALSE)","v":958}]
[null,"Montana",995544,947,829489,8669,126463,7466,5.3307158278697855E-3,{"$f":"HLOOKUP(J$7,$J$67:$DK$121,ROWS($A$11:$A38)+2,FALSE)","v":37690},{"$f":"HLOOKUP(K$7,$J$67:$DK$121,ROWS($A$11:$A38)+2,FALSE)","v":31},{"$f":"HLOOKUP(L$7,$J$67:$DK$121,ROWS($A$11:$A38)+2,FALSE)","v":726},{"$f":"HLOOKUP(M$7,$J$67:$DK$121,ROWS($A$11:$A38)+2,FALSE)","v":1548},{"$f":"HLOOKUP(N$7,$J$67:$DK$121,ROWS($A$11:$A38)+2,FALSE)","v":63},{"$f":"HLOOKUP(O$7,$J$67:$DK$121,ROWS($A$11:$A38)+2,FALSE)","v":5428},{"$f":"HLOOKUP(P$7,$J$67:$DK$121,ROWS($A$11:$A38)+2,FALSE)","v":2135},{"$f":"HLOOKUP(Q$7,$J$67:$DK$121,ROWS($A$11:$A38)+2,FALSE)","v":0},{"$f":"HLOOKUP(R$7,$J$67:$DK$121,ROWS($A$11:$A38)+2,FALSE)","v":0},{"$f":"HLOOKUP(S$7,$J$67:$DK$121,ROWS($A$11:$A38)+2,FALSE)","v":0},{"$f":"HLOOKUP(T$7,$J$67:$DK$121,ROWS($A$11:$A38)+2,FALSE)","v":1875},{"$f":"HLOOKUP(U$7,$J$67:$DK$121,ROWS($A$11:$A38)+2,FALSE)","v":292},{"$f":"HLOOKUP(V$7,$J$67:$DK$121,ROWS($A$11:$A38)+2,FALSE)","v":556},{"$f":"HLOOKUP(W$7,$J$67:$DK$121,ROWS($A$11:$A38)+2,FALSE)","v":3385},{"$f":"HLOOKUP(X$7,$J$67:$DK$121,ROWS($A$11:$A38)+2,FALSE)","v":542},{"$f":"HLOOKUP(Y$7,$J$67:$DK$121,ROWS($A$11:$A38)+2,FALSE)","v":163},{"$f":"HLOOKUP(Z$7,$J$67:$DK$121,ROWS($A$11:$A38)+2,FALSE)","v":415},{"$f":"HLOOKUP(AA$7,$J$67:$DK$121,ROWS($A$11:$A38)+2,FALSE)","v":224},{"$f":"HLOOKUP(AB$7,$J$67:$DK$121,ROWS($A$11:$A38)+2,FALSE)","v":367},{"$f":"HLOOKUP(AC$7,$J$67:$DK$121,ROWS($A$11:$A38)+2,FALSE)","v":0},{"$f":"HLOOKUP(AD$7,$J$67:$DK$121,ROWS($A$11:$A38)+2,FALSE)","v":225},{"$f":"HLOOKUP(AE$7,$J$67:$DK$121,ROWS($A$11:$A38)+2,FALSE)","v":33},{"$f":"HLOOKUP(AF$7,$J$67:$DK$121,ROWS($A$11:$A38)+2,FALSE)","v":97},{"$f":"HLOOKUP(AG$7,$J$67:$DK$121,ROWS($A$11:$A38)+2,FALSE)","v":822},{"$f":"HLOOKUP(AH$7,$J$67:$DK$121,ROWS($A$11:$A38)+2,FALSE)","v":481},{"$f":"HLOOKUP(AI$7,$J$67:$DK$121,ROWS($A$11:$A38)+2,FALSE)","v":32},{"$f":"HLOOKUP(AJ$7,$J$67:$DK$121,ROWS($A$11:$A38)+2,FALSE)","v":447},{"$f":"HLOOKUP(AK$7,$J$67:$DK$121,ROWS($A$11:$A38)+2,FALSE)","v":"N/A"},{"$f":"HLOOKUP(AL$7,$J$67:$DK$121,ROWS($A$11:$A38)+2,FALSE)","v":108},{"$f":"HLOOKUP(AM$7,$J$67:$DK$121,ROWS($A$11:$A38)+2,FALSE)","v":968},{"$f":"HLOOKUP(AN$7,$J$67:$DK$121,ROWS($A$11:$A38)+2,FALSE)","v":115},{"$f":"HLOOKUP(AO$7,$J$67:$DK$121,ROWS($A$11:$A38)+2,FALSE)","v":156},{"$f":"HLOOKUP(AP$7,$J$67:$DK$121,ROWS($A$11:$A38)+2,FALSE)","v":259},{"$f":"HLOOKUP(AQ$7,$J$67:$DK$121,ROWS($A$11:$A38)+2,FALSE)","v":482},{"$f":"HLOOKUP(AR$7,$J$67:$DK$121,ROWS($A$11:$A38)+2,FALSE)","v":1082},{"$f":"HLOOKUP(AS$7,$J$67:$DK$121,ROWS($A$11:$A38)+2,FALSE)","v":977},{"$f":"HLOOKUP(AT$7,$J$67:$DK$121,ROWS($A$11:$A38)+2,FALSE)","v":402},{"$f":"HLOOKUP(AU$7,$J$67:$DK$121,ROWS($A$11:$A38)+2,FALSE)","v":1018},{"$f":"HLOOKUP(AV$7,$J$67:$DK$121,ROWS($A$11:$A38)+2,FALSE)","v":2950},{"$f":"HLOOKUP(AW$7,$J$67:$DK$121,ROWS($A$11:$A38)+2,FALSE)","v":457},{"$f":"HLOOKUP(AX$7,$J$67:$DK$121,ROWS($A$11:$A38)+2,FALSE)","v":0},{"$f":"HLOOKUP(AY$7,$J$67:$DK$121,ROWS($A$11:$A38)+2,FALSE)","v":230},{"$f":"HLOOKUP(AZ$7,$J$67:$DK$121,ROWS($A$11:$A38)+2,FALSE)","v":191},{"$f":"HLOOKUP(BA$7,$J$67:$DK$121,ROWS($A$11:$A38)+2,FALSE)","v":45},{"$f":"HLOOKUP(BB$7,$J$67:$DK$121,ROWS($A$11:$A38)+2,FALSE)","v":1393},{"$f":"HLOOKUP(BC$7,$J$67:$DK$121,ROWS($A$11:$A38)+2,FALSE)","v":260},{"$f":"HLOOKUP(BD$7,$J$67:$DK$121,ROWS($A$11:$A38)+2,FALSE)","v":87},{"$f":"HLOOKUP(BE$7,$J$67:$DK$121,ROWS($A$11:$A38)+2,FALSE)","v":156},{"$f":"HLOOKUP(BF$7,$J$67:$DK$121,ROWS($A$11:$A38)+2,FALSE)","v":4783},{"$f":"HLOOKUP(BG$7,$J$67:$DK$121,ROWS($A$11:$A38)+2,FALSE)","v":0},{"$f":"HLOOKUP(BH$7,$J$67:$DK$121,ROWS($A$11:$A38)+2,FALSE)","v":750},{"$f":"HLOOKUP(BI$7,$J$67:$DK$121,ROWS($A$11:$A38)+2,FALSE)","v":934},{"$f":"HLOOKUP(BJ$7,$J$67:$DK$121,ROWS($A$11:$A38)+2,FALSE)","v":0},{"$f":"HLOOKUP(BK$7+0.5,$J$67:$DK$121,ROWS($A$11:$A38)+2,FALSE)","v":4305},{"$f":"HLOOKUP(BL$7+0.5,$J$67:$DK$121,ROWS($A$11:$A38)+2,FALSE)","v":55},{"$f":"HLOOKUP(BM$7+0.5,$J$67:$DK$121,ROWS($A$11:$A38)+2,FALSE)","v":442},{"$f":"HLOOKUP(BN$7+0.5,$J$67:$DK$121,ROWS($A$11:$A38)+2,FALSE)","v":938},{"$f":"HLOOKUP(BO$7+0.5,$J$67:$DK$121,ROWS($A$11:$A38)+2,FALSE)","v":102},{"$f":"HLOOKUP(BP$7+0.5,$J$67:$DK$121,ROWS($A$11:$A38)+2,FALSE)","v":2229},{"$f":"HLOOKUP(BQ$7+0.5,$J$67:$DK$121,ROWS($A$11:$A38)+2,FALSE)","v":896},{"$f":"HLOOKUP(BR$7+0.5,$J$67:$DK$121,ROWS($A$11:$A38)+2,FALSE)","v":157},{"$f":"HLOOKUP(BS$7+0.5,$J$67:$DK$121,ROWS($A$11:$A38)+2,FALSE)","v":157},{"$f":"HLOOKUP(BT$7+0.5,$J$67:$DK$121,ROWS($A$11:$A38)+2,FALSE)","v":157},{"$f":"HLOOKUP(BU$7+0.5,$J$67:$DK$121,ROWS($A$11:$A38)+2,FALSE)","v":1029},{"$f":"HLOOKUP(BV$7+0.5,$J$67:$DK$121,ROWS($A$11:$A38)+2,FALSE)","v":270},{"$f":"HLOOKUP(BW$7+0.5,$J$67:$DK$121,ROWS($A$11:$A38)+2,FALSE)","v":572},{"$f":"HLOOKUP(BX$7+0.5,$J$67:$DK$121,ROWS($A$11:$A38)+2,FALSE)","v":1349},{"$f":"HLOOKUP(BY$7+0.5,$J$67:$DK$121,ROWS($A$11:$A38)+2,FALSE)","v":371},{"$f":"HLOOKUP(BZ$7+0.5,$J$67:$DK$121,ROWS($A$11:$A38)+2,FALSE)","v":164},{"$f":"HLOOKUP(CA$7+0.5,$J$67:$DK$121,ROWS($A$11:$A38)+2,FALSE)","v":384},{"$f":"HLOOKUP(CB$7+0.5,$J$67:$DK$121,ROWS($A$11:$A38)+2,FALSE)","v":268},{"$f":"HLOOKUP(CC$7+0.5,$J$67:$DK$121,ROWS($A$11:$A38)+2,FALSE)","v":352},{"$f":"HLOOKUP(CD$7+0.5,$J$67:$DK$121,ROWS($A$11:$A38)+2,FALSE)","v":157},{"$f":"HLOOKUP(CE$7+0.5,$J$67:$DK$121,ROWS($A$11:$A38)+2,FALSE)","v":269},{"$f":"HLOOKUP(CF$7+0.5,$J$67:$DK$121,ROWS($A$11:$A38)+2,FALSE)","v":65},{"$f":"HLOOKUP(CG$7+0.5,$J$67:$DK$121,ROWS($A$11:$A38)+2,FALSE)","v":109},{"$f":"HLOOKUP(CH$7+0.5,$J$67:$DK$121,ROWS($A$11:$A38)+2,FALSE)","v":760},{"$f":"HLOOKUP(CI$7+0.5,$J$67:$DK$121,ROWS($A$11:$A38)+2,FALSE)","v":297},{"$f":"HLOOKUP(CJ$7+0.5,$J$67:$DK$121,ROWS($A$11:$A38)+2,FALSE)","v":58},{"$f":"HLOOKUP(CK$7+0.5,$J$67:$DK$121,ROWS($A$11:$A38)+2,FALSE)","v":385},{"$f":"HLOOKUP(CL$7+0.5,$J$67:$DK$121,ROWS($A$11:$A38)+2,FALSE)","v":"N/A"},{"$f":"HLOOKUP(CM$7+0.5,$J$67:$DK$121,ROWS($A$11:$A38)+2,FALSE)","v":149},{"$f":"HLOOKUP(CN$7+0.5,$J$67:$DK$121,ROWS($A$11:$A38)+2,FALSE)","v":499},{"$f":"HLOOKUP(CO$7+0.5,$J$67:$DK$121,ROWS($A$11:$A38)+2,FALSE)","v":177},{"$f":"HLOOKUP(CP$7+0.5,$J$67:$DK$121,ROWS($A$11:$A38)+2,FALSE)","v":198},{"$f":"HLOOKUP(CQ$7+0.5,$J$67:$DK$121,ROWS($A$11:$A38)+2,FALSE)","v":178},{"$f":"HLOOKUP(CR$7+0.5,$J$67:$DK$121,ROWS($A$11:$A38)+2,FALSE)","v":371},{"$f":"HLOOKUP(CS$7+0.5,$J$67:$DK$121,ROWS($A$11:$A38)+2,FALSE)","v":808},{"$f":"HLOOKUP(CT$7+0.5,$J$67:$DK$121,ROWS($A$11:$A38)+2,FALSE)","v":604},{"$f":"HLOOKUP(CU$7+0.5,$J$67:$DK$121,ROWS($A$11:$A38)+2,FALSE)","v":332},{"$f":"HLOOKUP(CV$7+0.5,$J$67:$DK$121,ROWS($A$11:$A38)+2,FALSE)","v":948},{"$f":"HLOOKUP(CW$7+0.5,$J$67:$DK$121,ROWS($A$11:$A38)+2,FALSE)","v":1687},{"$f":"HLOOKUP(CX$7+0.5,$J$67:$DK$121,ROWS($A$11:$A38)+2,FALSE)","v":362},{"$f":"HLOOKUP(CY$7+0.5,$J$67:$DK$121,ROWS($A$11:$A38)+2,FALSE)","v":157},{"$f":"HLOOKUP(CZ$7+0.5,$J$67:$DK$121,ROWS($A$11:$A38)+2,FALSE)","v":304},{"$f":"HLOOKUP(DA$7+0.5,$J$67:$DK$121,ROWS($A$11:$A38)+2,FALSE)","v":142},{"$f":"HLOOKUP(DB$7+0.5,$J$67:$DK$121,ROWS($A$11:$A38)+2,FALSE)","v":40},{"$f":"HLOOKUP(DC$7+0.5,$J$67:$DK$121,ROWS($A$11:$A38)+2,FALSE)","v":612},{"$f":"HLOOKUP(DD$7+0.5,$J$67:$DK$121,ROWS($A$11:$A38)+2,FALSE)","v":261},{"$f":"HLOOKUP(DE$7+0.5,$J$67:$DK$121,ROWS($A$11:$A38)+2,FALSE)","v":135},{"$f":"HLOOKUP(DF$7+0.5,$J$67:$DK$121,ROWS($A$11:$A38)+2,FALSE)","v":153},{"$f":"HLOOKUP(DG$7+0.5,$J$67:$DK$121,ROWS($A$11:$A38)+2,FALSE)","v":1555},{"$f":"HLOOKUP(DH$7+0.5,$J$67:$DK$121,ROWS($A$11:$A38)+2,FALSE)","v":157},{"$f":"HLOOKUP(DI$7+0.5,$J$67:$DK$121,ROWS($A$11:$A38)+2,FALSE)","v":425},{"$f":"HLOOKUP(DJ$7+0.5,$J$67:$DK$121,ROWS($A$11:$A38)+2,FALSE)","v":387},{"$f":"HLOOKUP(DK$7+0.5,$J$67:$DK$121,ROWS($A$11:$A38)+2,FALSE)","v":157}]
[null,"Nebraska",1829420,2101,1540361,9074,237937,9736,6.1193619264689348E-3,{"$f":"HLOOKUP(J$7,$J$67:$DK$121,ROWS($A$11:$A39)+2,FALSE)","v":43266},{"$f":"HLOOKUP(K$7,$J$67:$DK$121,ROWS($A$11:$A39)+2,FALSE)","v":245},{"$f":"HLOOKUP(L$7,$J$67:$DK$121,ROWS($A$11:$A39)+2,FALSE)","v":626},{"$f":"HLOOKUP(M$7,$J$67:$DK$121,ROWS($A$11:$A39)+2,FALSE)","v":2406},{"$f":"HLOOKUP(N$7,$J$67:$DK$121,ROWS($A$11:$A39)+2,FALSE)","v":363},{"$f":"HLOOKUP(O$7,$J$67:$DK$121,ROWS($A$11:$A39)+2,FALSE)","v":3438},{"$f":"HLOOKUP(P$7,$J$67:$DK$121,ROWS($A$11:$A39)+2,FALSE)","v":2023},{"$f":"HLOOKUP(Q$7,$J$67:$DK$121,ROWS($A$11:$A39)+2,FALSE)","v":0},{"$f":"HLOOKUP(R$7,$J$67:$DK$121,ROWS($A$11:$A39)+2,FALSE)","v":0},{"$f":"HLOOKUP(S$7,$J$67:$DK$121,ROWS($A$11:$A39)+2,FALSE)","v":0},{"$f":"HLOOKUP(T$7,$J$67:$DK$121,ROWS($A$11:$A39)+2,FALSE)","v":1368},{"$f":"HLOOKUP(U$7,$J$67:$DK$121,ROWS($A$11:$A39)+2,FALSE)","v":786},{"$f":"HLOOKUP(V$7,$J$67:$DK$121,ROWS($A$11:$A39)+2,FALSE)","v":165},{"$f":"HLOOKUP(W$7,$J$67:$DK$121,ROWS($A$11:$A39)+2,FALSE)","v":315},{"$f":"HLOOKUP(X$7,$J$67:$DK$121,ROWS($A$11:$A39)+2,FALSE)","v":1193},{"$f":"HLOOKUP(Y$7,$J$67:$DK$121,ROWS($A$11:$A39)+2,FALSE)","v":290},{"$f":"HLOOKUP(Z$7,$J$67:$DK$121,ROWS($A$11:$A39)+2,FALSE)","v":6815},{"$f":"HLOOKUP(AA$7,$J$67:$DK$121,ROWS($A$11:$A39)+2,FALSE)","v":3103},{"$f":"HLOOKUP(AB$7,$J$67:$DK$121,ROWS($A$11:$A39)+2,FALSE)","v":131},{"$f":"HLOOKUP(AC$7,$J$67:$DK$121,ROWS($A$11:$A39)+2,FALSE)","v":411},{"$f":"HLOOKUP(AD$7,$J$67:$DK$121,ROWS($A$11:$A39)+2,FALSE)","v":68},{"$f":"HLOOKUP(AE$7,$J$67:$DK$121,ROWS($A$11:$A39)+2,FALSE)","v":129},{"$f":"HLOOKUP(AF$7,$J$67:$DK$121,ROWS($A$11:$A39)+2,FALSE)","v":195},{"$f":"HLOOKUP(AG$7,$J$67:$DK$121,ROWS($A$11:$A39)+2,FALSE)","v":258},{"$f":"HLOOKUP(AH$7,$J$67:$DK$121,ROWS($A$11:$A39)+2,FALSE)","v":1489},{"$f":"HLOOKUP(AI$7,$J$67:$DK$121,ROWS($A$11:$A39)+2,FALSE)","v":176},{"$f":"HLOOKUP(AJ$7,$J$67:$DK$121,ROWS($A$11:$A39)+2,FALSE)","v":2223},{"$f":"HLOOKUP(AK$7,$J$67:$DK$121,ROWS($A$11:$A39)+2,FALSE)","v":108},{"$f":"HLOOKUP(AL$7,$J$67:$DK$121,ROWS($A$11:$A39)+2,FALSE)","v":"N/A"},{"$f":"HLOOKUP(AM$7,$J$67:$DK$121,ROWS($A$11:$A39)+2,FALSE)","v":233},{"$f":"HLOOKUP(AN$7,$J$67:$DK$121,ROWS($A$11:$A39)+2,FALSE)","v":0},{"$f":"HLOOKUP(AO$7,$J$67:$DK$121,ROWS($A$11:$A39)+2,FALSE)","v":524},{"$f":"HLOOKUP(AP$7,$J$67:$DK$121,ROWS($A$11:$A39)+2,FALSE)","v":158},{"$f":"HLOOKUP(AQ$7,$J$67:$DK$121,ROWS($A$11:$A39)+2,FALSE)","v":318},{"$f":"HLOOKUP(AR$7,$J$67:$DK$121,ROWS($A$11:$A39)+2,FALSE)","v":874},{"$f":"HLOOKUP(AS$7,$J$67:$DK$121,ROWS($A$11:$A39)+2,FALSE)","v":497},{"$f":"HLOOKUP(AT$7,$J$67:$DK$121,ROWS($A$11:$A39)+2,FALSE)","v":563},{"$f":"HLOOKUP(AU$7,$J$67:$DK$121,ROWS($A$11:$A39)+2,FALSE)","v":587},{"$f":"HLOOKUP(AV$7,$J$67:$DK$121,ROWS($A$11:$A39)+2,FALSE)","v":106},{"$f":"HLOOKUP(AW$7,$J$67:$DK$121,ROWS($A$11:$A39)+2,FALSE)","v":702},{"$f":"HLOOKUP(AX$7,$J$67:$DK$121,ROWS($A$11:$A39)+2,FALSE)","v":0},{"$f":"HLOOKUP(AY$7,$J$67:$DK$121,ROWS($A$11:$A39)+2,FALSE)","v":456},{"$f":"HLOOKUP(AZ$7,$J$67:$DK$121,ROWS($A$11:$A39)+2,FALSE)","v":2507},{"$f":"HLOOKUP(BA$7,$J$67:$DK$121,ROWS($A$11:$A39)+2,FALSE)","v":232},{"$f":"HLOOKUP(BB$7,$J$67:$DK$121,ROWS($A$11:$A39)+2,FALSE)","v":3130},{"$f":"HLOOKUP(BC$7,$J$67:$DK$121,ROWS($A$11:$A39)+2,FALSE)","v":229},{"$f":"HLOOKUP(BD$7,$J$67:$DK$121,ROWS($A$11:$A39)+2,FALSE)","v":79},{"$f":"HLOOKUP(BE$7,$J$67:$DK$121,ROWS($A$11:$A39)+2,FALSE)","v":1076},{"$f":"HLOOKUP(BF$7,$J$67:$DK$121,ROWS($A$11:$A39)+2,FALSE)","v":1327},{"$f":"HLOOKUP(BG$7,$J$67:$DK$121,ROWS($A$11:$A39)+2,FALSE)","v":111},{"$f":"HLOOKUP(BH$7,$J$67:$DK$121,ROWS($A$11:$A39)+2,FALSE)","v":316},{"$f":"HLOOKUP(BI$7,$J$67:$DK$121,ROWS($A$11:$A39)+2,FALSE)","v":917},{"$f":"HLOOKUP(BJ$7,$J$67:$DK$121,ROWS($A$11:$A39)+2,FALSE)","v":0},{"$f":"HLOOKUP(BK$7+0.5,$J$67:$DK$121,ROWS($A$11:$A39)+2,FALSE)","v":4512},{"$f":"HLOOKUP(BL$7+0.5,$J$67:$DK$121,ROWS($A$11:$A39)+2,FALSE)","v":275},{"$f":"HLOOKUP(BM$7+0.5,$J$67:$DK$121,ROWS($A$11:$A39)+2,FALSE)","v":531},{"$f":"HLOOKUP(BN$7+0.5,$J$67:$DK$121,ROWS($A$11:$A39)+2,FALSE)","v":1120},{"$f":"HLOOKUP(BO$7+0.5,$J$67:$DK$121,ROWS($A$11:$A39)+2,FALSE)","v":317},{"$f":"HLOOKUP(BP$7+0.5,$J$67:$DK$121,ROWS($A$11:$A39)+2,FALSE)","v":1425},{"$f":"HLOOKUP(BQ$7+0.5,$J$67:$DK$121,ROWS($A$11:$A39)+2,FALSE)","v":791},{"$f":"HLOOKUP(BR$7+0.5,$J$67:$DK$121,ROWS($A$11:$A39)+2,FALSE)","v":149},{"$f":"HLOOKUP(BS$7+0.5,$J$67:$DK$121,ROWS($A$11:$A39)+2,FALSE)","v":149},{"$f":"HLOOKUP(BT$7+0.5,$J$67:$DK$121,ROWS($A$11:$A39)+2,FALSE)","v":149},{"$f":"HLOOKUP(BU$7+0.5,$J$67:$DK$121,ROWS($A$11:$A39)+2,FALSE)","v":978},{"$f":"HLOOKUP(BV$7+0.5,$J$67:$DK$121,ROWS($A$11:$A39)+2,FALSE)","v":482},{"$f":"HLOOKUP(BW$7+0.5,$J$67:$DK$121,ROWS($A$11:$A39)+2,FALSE)","v":149},{"$f":"HLOOKUP(BX$7+0.5,$J$67:$DK$121,ROWS($A$11:$A39)+2,FALSE)","v":374},{"$f":"HLOOKUP(BY$7+0.5,$J$67:$DK$121,ROWS($A$11:$A39)+2,FALSE)","v":546},{"$f":"HLOOKUP(BZ$7+0.5,$J$67:$DK$121,ROWS($A$11:$A39)+2,FALSE)","v":214},{"$f":"HLOOKUP(CA$7+0.5,$J$67:$DK$121,ROWS($A$11:$A39)+2,FALSE)","v":2803},{"$f":"HLOOKUP(CB$7+0.5,$J$67:$DK$121,ROWS($A$11:$A39)+2,FALSE)","v":822},{"$f":"HLOOKUP(CC$7+0.5,$J$67:$DK$121,ROWS($A$11:$A39)+2,FALSE)","v":133},{"$f":"HLOOKUP(CD$7+0.5,$J$67:$DK$121,ROWS($A$11:$A39)+2,FALSE)","v":371},{"$f":"HLOOKUP(CE$7+0.5,$J$67:$DK$121,ROWS($A$11:$A39)+2,FALSE)","v":90},{"$f":"HLOOKUP(CF$7+0.5,$J$67:$DK$121,ROWS($A$11:$A39)+2,FALSE)","v":126},{"$f":"HLOOKUP(CG$7+0.5,$J$67:$DK$121,ROWS($A$11:$A39)+2,FALSE)","v":112},{"$f":"HLOOKUP(CH$7+0.5,$J$67:$DK$121,ROWS($A$11:$A39)+2,FALSE)","v":197},{"$f":"HLOOKUP(CI$7+0.5,$J$67:$DK$121,ROWS($A$11:$A39)+2,FALSE)","v":1049},{"$f":"HLOOKUP(CJ$7+0.5,$J$67:$DK$121,ROWS($A$11:$A39)+2,FALSE)","v":132},{"$f":"HLOOKUP(CK$7+0.5,$J$67:$DK$121,ROWS($A$11:$A39)+2,FALSE)","v":836},{"$f":"HLOOKUP(CL$7+0.5,$J$67:$DK$121,ROWS($A$11:$A39)+2,FALSE)","v":156},{"$f":"HLOOKUP(CM$7+0.5,$J$67:$DK$121,ROWS($A$11:$A39)+2,FALSE)","v":"N/A"},{"$f":"HLOOKUP(CN$7+0.5,$J$67:$DK$121,ROWS($A$11:$A39)+2,FALSE)","v":178},{"$f":"HLOOKUP(CO$7+0.5,$J$67:$DK$121,ROWS($A$11:$A39)+2,FALSE)","v":149},{"$f":"HLOOKUP(CP$7+0.5,$J$67:$DK$121,ROWS($A$11:$A39)+2,FALSE)","v":363},{"$f":"HLOOKUP(CQ$7+0.5,$J$67:$DK$121,ROWS($A$11:$A39)+2,FALSE)","v":187},{"$f":"HLOOKUP(CR$7+0.5,$J$67:$DK$121,ROWS($A$11:$A39)+2,FALSE)","v":246},{"$f":"HLOOKUP(CS$7+0.5,$J$67:$DK$121,ROWS($A$11:$A39)+2,FALSE)","v":414},{"$f":"HLOOKUP(CT$7+0.5,$J$67:$DK$121,ROWS($A$11:$A39)+2,FALSE)","v":492},{"$f":"HLOOKUP(CU$7+0.5,$J$67:$DK$121,ROWS($A$11:$A39)+2,FALSE)","v":373},{"$f":"HLOOKUP(CV$7+0.5,$J$67:$DK$121,ROWS($A$11:$A39)+2,FALSE)","v":408},{"$f":"HLOOKUP(CW$7+0.5,$J$67:$DK$121,ROWS($A$11:$A39)+2,FALSE)","v":113},{"$f":"HLOOKUP(CX$7+0.5,$J$67:$DK$121,ROWS($A$11:$A39)+2,FALSE)","v":528},{"$f":"HLOOKUP(CY$7+0.5,$J$67:$DK$121,ROWS($A$11:$A39)+2,FALSE)","v":149},{"$f":"HLOOKUP(CZ$7+0.5,$J$67:$DK$121,ROWS($A$11:$A39)+2,FALSE)","v":381},{"$f":"HLOOKUP(DA$7+0.5,$J$67:$DK$121,ROWS($A$11:$A39)+2,FALSE)","v":677},{"$f":"HLOOKUP(DB$7+0.5,$J$67:$DK$121,ROWS($A$11:$A39)+2,FALSE)","v":184},{"$f":"HLOOKUP(DC$7+0.5,$J$67:$DK$121,ROWS($A$11:$A39)+2,FALSE)","v":1218},{"$f":"HLOOKUP(DD$7+0.5,$J$67:$DK$121,ROWS($A$11:$A39)+2,FALSE)","v":230},{"$f":"HLOOKUP(DE$7+0.5,$J$67:$DK$121,ROWS($A$11:$A39)+2,FALSE)","v":131},{"$f":"HLOOKUP(DF$7+0.5,$J$67:$DK$121,ROWS($A$11:$A39)+2,FALSE)","v":758},{"$f":"HLOOKUP(DG$7+0.5,$J$67:$DK$121,ROWS($A$11:$A39)+2,FALSE)","v":673},{"$f":"HLOOKUP(DH$7+0.5,$J$67:$DK$121,ROWS($A$11:$A39)+2,FALSE)","v":152},{"$f":"HLOOKUP(DI$7+0.5,$J$67:$DK$121,ROWS($A$11:$A39)+2,FALSE)","v":218},{"$f":"HLOOKUP(DJ$7+0.5,$J$67:$DK$121,ROWS($A$11:$A39)+2,FALSE)","v":371},{"$f":"HLOOKUP(DK$7+0.5,$J$67:$DK$121,ROWS($A$11:$A39)+2,FALSE)","v":149}]
[null,"Nevada",2725280,3005,2105070,21984,481496,19389,1.7578350137086661E-2,{"$f":"HLOOKUP(J$7,$J$67:$DK$121,ROWS($A$11:$A40)+2,FALSE)","v":124285},{"$f":"HLOOKUP(K$7,$J$67:$DK$121,ROWS($A$11:$A40)+2,FALSE)","v":761},{"$f":"HLOOKUP(L$7,$J$67:$DK$121,ROWS($A$11:$A40)+2,FALSE)","v":2161},{"$f":"HLOOKUP(M$7,$J$67:$DK$121,ROWS($A$11:$A40)+2,FALSE)","v":8748},{"$f":"HLOOKUP(N$7,$J$67:$DK$121,ROWS($A$11:$A40)+2,FALSE)","v":353},{"$f":"HLOOKUP(O$7,$J$67:$DK$121,ROWS($A$11:$A40)+2,FALSE)","v":49978},{"$f":"HLOOKUP(P$7,$J$67:$DK$121,ROWS($A$11:$A40)+2,FALSE)","v":6402},{"$f":"HLOOKUP(Q$7,$J$67:$DK$121,ROWS($A$11:$A40)+2,FALSE)","v":143},{"$f":"HLOOKUP(R$7,$J$67:$DK$121,ROWS($A$11:$A40)+2,FALSE)","v":373},{"$f":"HLOOKUP(S$7,$J$67:$DK$121,ROWS($A$11:$A40)+2,FALSE)","v":468},{"$f":"HLOOKUP(T$7,$J$67:$DK$121,ROWS($A$11:$A40)+2,FALSE)","v":3381},{"$f":"HLOOKUP(U$7,$J$67:$DK$121,ROWS($A$11:$A40)+2,FALSE)","v":745},{"$f":"HLOOKUP(V$7,$J$67:$DK$121,ROWS($A$11:$A40)+2,FALSE)","v":2053},{"$f":"HLOOKUP(W$7,$J$67:$DK$121,ROWS($A$11:$A40)+2,FALSE)","v":1503},{"$f":"HLOOKUP(X$7,$J$67:$DK$121,ROWS($A$11:$A40)+2,FALSE)","v":2822},{"$f":"HLOOKUP(Y$7,$J$67:$DK$121,ROWS($A$11:$A40)+2,FALSE)","v":362},{"$f":"HLOOKUP(Z$7,$J$67:$DK$121,ROWS($A$11:$A40)+2,FALSE)","v":714},{"$f":"HLOOKUP(AA$7,$J$67:$DK$121,ROWS($A$11:$A40)+2,FALSE)","v":1202},{"$f":"HLOOKUP(AB$7,$J$67:$DK$121,ROWS($A$11:$A40)+2,FALSE)","v":952},{"$f":"HLOOKUP(AC$7,$J$67:$DK$121,ROWS($A$11:$A40)+2,FALSE)","v":421},{"$f":"HLOOKUP(AD$7,$J$67:$DK$121,ROWS($A$11:$A40)+2,FALSE)","v":209},{"$f":"HLOOKUP(AE$7,$J$67:$DK$121,ROWS($A$11:$A40)+2,FALSE)","v":934},{"$f":"HLOOKUP(AF$7,$J$67:$DK$121,ROWS($A$11:$A40)+2,FALSE)","v":318},{"$f":"HLOOKUP(AG$7,$J$67:$DK$121,ROWS($A$11:$A40)+2,FALSE)","v":1235},{"$f":"HLOOKUP(AH$7,$J$67:$DK$121,ROWS($A$11:$A40)+2,FALSE)","v":1157},{"$f":"HLOOKUP(AI$7,$J$67:$DK$121,ROWS($A$11:$A40)+2,FALSE)","v":783},{"$f":"HLOOKUP(AJ$7,$J$67:$DK$121,ROWS($A$11:$A40)+2,FALSE)","v":694},{"$f":"HLOOKUP(AK$7,$J$67:$DK$121,ROWS($A$11:$A40)+2,FALSE)","v":1086},{"$f":"HLOOKUP(AL$7,$J$67:$DK$121,ROWS($A$11:$A40)+2,FALSE)","v":714},{"$f":"HLOOKUP(AM$7,$J$67:$DK$121,ROWS($A$11:$A40)+2,FALSE)","v":"N/A"},{"$f":"HLOOKUP(AN$7,$J$67:$DK$121,ROWS($A$11:$A40)+2,FALSE)","v":175},{"$f":"HLOOKUP(AO$7,$J$67:$DK$121,ROWS($A$11:$A40)+2,FALSE)","v":912},{"$f":"HLOOKUP(AP$7,$J$67:$DK$121,ROWS($A$11:$A40)+2,FALSE)","v":1138},{"$f":"HLOOKUP(AQ$7,$J$67:$DK$121,ROWS($A$11:$A40)+2,FALSE)","v":3521},{"$f":"HLOOKUP(AR$7,$J$67:$DK$121,ROWS($A$11:$A40)+2,FALSE)","v":767},{"$f":"HLOOKUP(AS$7,$J$67:$DK$121,ROWS($A$11:$A40)+2,FALSE)","v":702},{"$f":"HLOOKUP(AT$7,$J$67:$DK$121,ROWS($A$11:$A40)+2,FALSE)","v":1407},{"$f":"HLOOKUP(AU$7,$J$67:$DK$121,ROWS($A$11:$A40)+2,FALSE)","v":1520},{"$f":"HLOOKUP(AV$7,$J$67:$DK$121,ROWS($A$11:$A40)+2,FALSE)","v":3101},{"$f":"HLOOKUP(AW$7,$J$67:$DK$121,ROWS($A$11:$A40)+2,FALSE)","v":1601},{"$f":"HLOOKUP(AX$7,$J$67:$DK$121,ROWS($A$11:$A40)+2,FALSE)","v":336},{"$f":"HLOOKUP(AY$7,$J$67:$DK$121,ROWS($A$11:$A40)+2,FALSE)","v":480},{"$f":"HLOOKUP(AZ$7,$J$67:$DK$121,ROWS($A$11:$A40)+2,FALSE)","v":0},{"$f":"HLOOKUP(BA$7,$J$67:$DK$121,ROWS($A$11:$A40)+2,FALSE)","v":1699},{"$f":"HLOOKUP(BB$7,$J$67:$DK$121,ROWS($A$11:$A40)+2,FALSE)","v":5484},{"$f":"HLOOKUP(BC$7,$J$67:$DK$121,ROWS($A$11:$A40)+2,FALSE)","v":4605},{"$f":"HLOOKUP(BD$7,$J$67:$DK$121,ROWS($A$11:$A40)+2,FALSE)","v":121},{"$f":"HLOOKUP(BE$7,$J$67:$DK$121,ROWS($A$11:$A40)+2,FALSE)","v":1135},{"$f":"HLOOKUP(BF$7,$J$67:$DK$121,ROWS($A$11:$A40)+2,FALSE)","v":2997},{"$f":"HLOOKUP(BG$7,$J$67:$DK$121,ROWS($A$11:$A40)+2,FALSE)","v":100},{"$f":"HLOOKUP(BH$7,$J$67:$DK$121,ROWS($A$11:$A40)+2,FALSE)","v":1046},{"$f":"HLOOKUP(BI$7,$J$67:$DK$121,ROWS($A$11:$A40)+2,FALSE)","v":766},{"$f":"HLOOKUP(BJ$7,$J$67:$DK$121,ROWS($A$11:$A40)+2,FALSE)","v":237},{"$f":"HLOOKUP(BK$7+0.5,$J$67:$DK$121,ROWS($A$11:$A40)+2,FALSE)","v":9956},{"$f":"HLOOKUP(BL$7+0.5,$J$67:$DK$121,ROWS($A$11:$A40)+2,FALSE)","v":724},{"$f":"HLOOKUP(BM$7+0.5,$J$67:$DK$121,ROWS($A$11:$A40)+2,FALSE)","v":1047},{"$f":"HLOOKUP(BN$7+0.5,$J$67:$DK$121,ROWS($A$11:$A40)+2,FALSE)","v":2540},{"$f":"HLOOKUP(BO$7+0.5,$J$67:$DK$121,ROWS($A$11:$A40)+2,FALSE)","v":404},{"$f":"HLOOKUP(BP$7+0.5,$J$67:$DK$121,ROWS($A$11:$A40)+2,FALSE)","v":7637},{"$f":"HLOOKUP(BQ$7+0.5,$J$67:$DK$121,ROWS($A$11:$A40)+2,FALSE)","v":2736},{"$f":"HLOOKUP(BR$7+0.5,$J$67:$DK$121,ROWS($A$11:$A40)+2,FALSE)","v":181},{"$f":"HLOOKUP(BS$7+0.5,$J$67:$DK$121,ROWS($A$11:$A40)+2,FALSE)","v":521},{"$f":"HLOOKUP(BT$7+0.5,$J$67:$DK$121,ROWS($A$11:$A40)+2,FALSE)","v":759},{"$f":"HLOOKUP(BU$7+0.5,$J$67:$DK$121,ROWS($A$11:$A40)+2,FALSE)","v":1488},{"$f":"HLOOKUP(BV$7+0.5,$J$67:$DK$121,ROWS($A$11:$A40)+2,FALSE)","v":477},{"$f":"HLOOKUP(BW$7+0.5,$J$67:$DK$121,ROWS($A$11:$A40)+2,FALSE)","v":949},{"$f":"HLOOKUP(BX$7+0.5,$J$67:$DK$121,ROWS($A$11:$A40)+2,FALSE)","v":743},{"$f":"HLOOKUP(BY$7+0.5,$J$67:$DK$121,ROWS($A$11:$A40)+2,FALSE)","v":1412},{"$f":"HLOOKUP(BZ$7+0.5,$J$67:$DK$121,ROWS($A$11:$A40)+2,FALSE)","v":341},{"$f":"HLOOKUP(CA$7+0.5,$J$67:$DK$121,ROWS($A$11:$A40)+2,FALSE)","v":592},{"$f":"HLOOKUP(CB$7+0.5,$J$67:$DK$121,ROWS($A$11:$A40)+2,FALSE)","v":1085},{"$f":"HLOOKUP(CC$7+0.5,$J$67:$DK$121,ROWS($A$11:$A40)+2,FALSE)","v":651},{"$f":"HLOOKUP(CD$7+0.5,$J$67:$DK$121,ROWS($A$11:$A40)+2,FALSE)","v":296},{"$f":"HLOOKUP(CE$7+0.5,$J$67:$DK$121,ROWS($A$11:$A40)+2,FALSE)","v":286},{"$f":"HLOOKUP(CF$7+0.5,$J$67:$DK$121,ROWS($A$11:$A40)+2,FALSE)","v":689},{"$f":"HLOOKUP(CG$7+0.5,$J$67:$DK$121,ROWS($A$11:$A40)+2,FALSE)","v":267},{"$f":"HLOOKUP(CH$7+0.5,$J$67:$DK$121,ROWS($A$11:$A40)+2,FALSE)","v":574},{"$f":"HLOOKUP(CI$7+0.5,$J$67:$DK$121,ROWS($A$11:$A40)+2,FALSE)","v":718},{"$f":"HLOOKUP(CJ$7+0.5,$J$67:$DK$121,ROWS($A$11:$A40)+2,FALSE)","v":658},{"$f":"HLOOKUP(CK$7+0.5,$J$67:$DK$121,ROWS($A$11:$A40)+2,FALSE)","v":516},{"$f":"HLOOKUP(CL$7+0.5,$J$67:$DK$121,ROWS($A$11:$A40)+2,FALSE)","v":605},{"$f":"HLOOKUP(CM$7+0.5,$J$67:$DK$121,ROWS($A$11:$A40)+2,FALSE)","v":551},{"$f":"HLOOKUP(CN$7+0.5,$J$67:$DK$121,ROWS($A$11:$A40)+2,FALSE)","v":"N/A"},{"$f":"HLOOKUP(CO$7+0.5,$J$67:$DK$121,ROWS($A$11:$A40)+2,FALSE)","v":230},{"$f":"HLOOKUP(CP$7+0.5,$J$67:$DK$121,ROWS($A$11:$A40)+2,FALSE)","v":600},{"$f":"HLOOKUP(CQ$7+0.5,$J$67:$DK$121,ROWS($A$11:$A40)+2,FALSE)","v":665},{"$f":"HLOOKUP(CR$7+0.5,$J$67:$DK$121,ROWS($A$11:$A40)+2,FALSE)","v":1460},{"$f":"HLOOKUP(CS$7+0.5,$J$67:$DK$121,ROWS($A$11:$A40)+2,FALSE)","v":589},{"$f":"HLOOKUP(CT$7+0.5,$J$67:$DK$121,ROWS($A$11:$A40)+2,FALSE)","v":661},{"$f":"HLOOKUP(CU$7+0.5,$J$67:$DK$121,ROWS($A$11:$A40)+2,FALSE)","v":791},{"$f":"HLOOKUP(CV$7+0.5,$J$67:$DK$121,ROWS($A$11:$A40)+2,FALSE)","v":1384},{"$f":"HLOOKUP(CW$7+0.5,$J$67:$DK$121,ROWS($A$11:$A40)+2,FALSE)","v":1186},{"$f":"HLOOKUP(CX$7+0.5,$J$67:$DK$121,ROWS($A$11:$A40)+2,FALSE)","v":1078},{"$f":"HLOOKUP(CY$7+0.5,$J$67:$DK$121,ROWS($A$11:$A40)+2,FALSE)","v":548},{"$f":"HLOOKUP(CZ$7+0.5,$J$67:$DK$121,ROWS($A$11:$A40)+2,FALSE)","v":403},{"$f":"HLOOKUP(DA$7+0.5,$J$67:$DK$121,ROWS($A$11:$A40)+2,FALSE)","v":200},{"$f":"HLOOKUP(DB$7+0.5,$J$67:$DK$121,ROWS($A$11:$A40)+2,FALSE)","v":822},{"$f":"HLOOKUP(DC$7+0.5,$J$67:$DK$121,ROWS($A$11:$A40)+2,FALSE)","v":1772},{"$f":"HLOOKUP(DD$7+0.5,$J$67:$DK$121,ROWS($A$11:$A40)+2,FALSE)","v":1899},{"$f":"HLOOKUP(DE$7+0.5,$J$67:$DK$121,ROWS($A$11:$A40)+2,FALSE)","v":222},{"$f":"HLOOKUP(DF$7+0.5,$J$67:$DK$121,ROWS($A$11:$A40)+2,FALSE)","v":832},{"$f":"HLOOKUP(DG$7+0.5,$J$67:$DK$121,ROWS($A$11:$A40)+2,FALSE)","v":1103},{"$f":"HLOOKUP(DH$7+0.5,$J$67:$DK$121,ROWS($A$11:$A40)+2,FALSE)","v":161},{"$f":"HLOOKUP(DI$7+0.5,$J$67:$DK$121,ROWS($A$11:$A40)+2,FALSE)","v":666},{"$f":"HLOOKUP(DJ$7+0.5,$J$67:$DK$121,ROWS($A$11:$A40)+2,FALSE)","v":706},{"$f":"HLOOKUP(DK$7+0.5,$J$67:$DK$121,ROWS($A$11:$A40)+2,FALSE)","v":356}]
[null,"New Hampshire",1309203,1504,1127376,9730,125118,9101,7.140245631578091E-3,{"$f":"HLOOKUP(J$7,$J$67:$DK$121,ROWS($A$11:$A41)+2,FALSE)","v":50484},{"$f":"HLOOKUP(K$7,$J$67:$DK$121,ROWS($A$11:$A41)+2,FALSE)","v":0},{"$f":"HLOOKUP(L$7,$J$67:$DK$121,ROWS($A$11:$A41)+2,FALSE)","v":437},{"$f":"HLOOKUP(M$7,$J$67:$DK$121,ROWS($A$11:$A41)+2,FALSE)","v":440},{"$f":"HLOOKUP(N$7,$J$67:$DK$121,ROWS($A$11:$A41)+2,FALSE)","v":0},{"$f":"HLOOKUP(O$7,$J$67:$DK$121,ROWS($A$11:$A41)+2,FALSE)","v":1514},{"$f":"HLOOKUP(P$7,$J$67:$DK$121,ROWS($A$11:$A41)+2,FALSE)","v":572},{"$f":"HLOOKUP(Q$7,$J$67:$DK$121,ROWS($A$11:$A41)+2,FALSE)","v":1345},{"$f":"HLOOKUP(R$7,$J$67:$DK$121,ROWS($A$11:$A41)+2,FALSE)","v":0},{"$f":"HLOOKUP(S$7,$J$67:$DK$121,ROWS($A$11:$A41)+2,FALSE)","v":101},{"$f":"HLOOKUP(T$7,$J$67:$DK$121,ROWS($A$11:$A41)+2,FALSE)","v":2746},{"$f":"HLOOKUP(U$7,$J$67:$DK$121,ROWS($A$11:$A41)+2,FALSE)","v":470},{"$f":"HLOOKUP(V$7,$J$67:$DK$121,ROWS($A$11:$A41)+2,FALSE)","v":43},{"$f":"HLOOKUP(W$7,$J$67:$DK$121,ROWS($A$11:$A41)+2,FALSE)","v":20},{"$f":"HLOOKUP(X$7,$J$67:$DK$121,ROWS($A$11:$A41)+2,FALSE)","v":673},{"$f":"HLOOKUP(Y$7,$J$67:$DK$121,ROWS($A$11:$A41)+2,FALSE)","v":297},{"$f":"HLOOKUP(Z$7,$J$67:$DK$121,ROWS($A$11:$A41)+2,FALSE)","v":53},{"$f":"HLOOKUP(AA$7,$J$67:$DK$121,ROWS($A$11:$A41)+2,FALSE)","v":102},{"$f":"HLOOKUP(AB$7,$J$67:$DK$121,ROWS($A$11:$A41)+2,FALSE)","v":284},{"$f":"HLOOKUP(AC$7,$J$67:$DK$121,ROWS($A$11:$A41)+2,FALSE)","v":7},{"$f":"HLOOKUP(AD$7,$J$67:$DK$121,ROWS($A$11:$A41)+2,FALSE)","v":6118},{"$f":"HLOOKUP(AE$7,$J$67:$DK$121,ROWS($A$11:$A41)+2,FALSE)","v":33},{"$f":"HLOOKUP(AF$7,$J$67:$DK$121,ROWS($A$11:$A41)+2,FALSE)","v":18990},{"$f":"HLOOKUP(AG$7,$J$67:$DK$121,ROWS($A$11:$A41)+2,FALSE)","v":426},{"$f":"HLOOKUP(AH$7,$J$67:$DK$121,ROWS($A$11:$A41)+2,FALSE)","v":0},{"$f":"HLOOKUP(AI$7,$J$67:$DK$121,ROWS($A$11:$A41)+2,FALSE)","v":0},{"$f":"HLOOKUP(AJ$7,$J$67:$DK$121,ROWS($A$11:$A41)+2,FALSE)","v":289},{"$f":"HLOOKUP(AK$7,$J$67:$DK$121,ROWS($A$11:$A41)+2,FALSE)","v":0},{"$f":"HLOOKUP(AL$7,$J$67:$DK$121,ROWS($A$11:$A41)+2,FALSE)","v":110},{"$f":"HLOOKUP(AM$7,$J$67:$DK$121,ROWS($A$11:$A41)+2,FALSE)","v":0},{"$f":"HLOOKUP(AN$7,$J$67:$DK$121,ROWS($A$11:$A41)+2,FALSE)","v":"N/A"},{"$f":"HLOOKUP(AO$7,$J$67:$DK$121,ROWS($A$11:$A41)+2,FALSE)","v":591},{"$f":"HLOOKUP(AP$7,$J$67:$DK$121,ROWS($A$11:$A41)+2,FALSE)","v":223},{"$f":"HLOOKUP(AQ$7,$J$67:$DK$121,ROWS($A$11:$A41)+2,FALSE)","v":2905},{"$f":"HLOOKUP(AR$7,$J$67:$DK$121,ROWS($A$11:$A41)+2,FALSE)","v":1609},{"$f":"HLOOKUP(AS$7,$J$67:$DK$121,ROWS($A$11:$A41)+2,FALSE)","v":0},{"$f":"HLOOKUP(AT$7,$J$67:$DK$121,ROWS($A$11:$A41)+2,FALSE)","v":324},{"$f":"HLOOKUP(AU$7,$J$67:$DK$121,ROWS($A$11:$A41)+2,FALSE)","v":186},{"$f":"HLOOKUP(AV$7,$J$67:$DK$121,ROWS($A$11:$A41)+2,FALSE)","v":208},{"$f":"HLOOKUP(AW$7,$J$67:$DK$121,ROWS($A$11:$A41)+2,FALSE)","v":890},{"$f":"HLOOKUP(AX$7,$J$67:$DK$121,ROWS($A$11:$A41)+2,FALSE)","v":1248},{"$f":"HLOOKUP(AY$7,$J$67:$DK$121,ROWS($A$11:$A41)+2,FALSE)","v":323},{"$f":"HLOOKUP(AZ$7,$J$67:$DK$121,ROWS($A$11:$A41)+2,FALSE)","v":0},{"$f":"HLOOKUP(BA$7,$J$67:$DK$121,ROWS($A$11:$A41)+2,FALSE)","v":77},{"$f":"HLOOKUP(BB$7,$J$67:$DK$121,ROWS($A$11:$A41)+2,FALSE)","v":2150},{"$f":"HLOOKUP(BC$7,$J$67:$DK$121,ROWS($A$11:$A41)+2,FALSE)","v":557},{"$f":"HLOOKUP(BD$7,$J$67:$DK$121,ROWS($A$11:$A41)+2,FALSE)","v":2960},{"$f":"HLOOKUP(BE$7,$J$67:$DK$121,ROWS($A$11:$A41)+2,FALSE)","v":660},{"$f":"HLOOKUP(BF$7,$J$67:$DK$121,ROWS($A$11:$A41)+2,FALSE)","v":113},{"$f":"HLOOKUP(BG$7,$J$67:$DK$121,ROWS($A$11:$A41)+2,FALSE)","v":80},{"$f":"HLOOKUP(BH$7,$J$67:$DK$121,ROWS($A$11:$A41)+2,FALSE)","v":239},{"$f":"HLOOKUP(BI$7,$J$67:$DK$121,ROWS($A$11:$A41)+2,FALSE)","v":71},{"$f":"HLOOKUP(BJ$7,$J$67:$DK$121,ROWS($A$11:$A41)+2,FALSE)","v":75},{"$f":"HLOOKUP(BK$7+0.5,$J$67:$DK$121,ROWS($A$11:$A41)+2,FALSE)","v":5282},{"$f":"HLOOKUP(BL$7+0.5,$J$67:$DK$121,ROWS($A$11:$A41)+2,FALSE)","v":181},{"$f":"HLOOKUP(BM$7+0.5,$J$67:$DK$121,ROWS($A$11:$A41)+2,FALSE)","v":378},{"$f":"HLOOKUP(BN$7+0.5,$J$67:$DK$121,ROWS($A$11:$A41)+2,FALSE)","v":413},{"$f":"HLOOKUP(BO$7+0.5,$J$67:$DK$121,ROWS($A$11:$A41)+2,FALSE)","v":181},{"$f":"HLOOKUP(BP$7+0.5,$J$67:$DK$121,ROWS($A$11:$A41)+2,FALSE)","v":935},{"$f":"HLOOKUP(BQ$7+0.5,$J$67:$DK$121,ROWS($A$11:$A41)+2,FALSE)","v":637},{"$f":"HLOOKUP(BR$7+0.5,$J$67:$DK$121,ROWS($A$11:$A41)+2,FALSE)","v":478},{"$f":"HLOOKUP(BS$7+0.5,$J$67:$DK$121,ROWS($A$11:$A41)+2,FALSE)","v":181},{"$f":"HLOOKUP(BT$7+0.5,$J$67:$DK$121,ROWS($A$11:$A41)+2,FALSE)","v":131},{"$f":"HLOOKUP(BU$7+0.5,$J$67:$DK$121,ROWS($A$11:$A41)+2,FALSE)","v":1312},{"$f":"HLOOKUP(BV$7+0.5,$J$67:$DK$121,ROWS($A$11:$A41)+2,FALSE)","v":324},{"$f":"HLOOKUP(BW$7+0.5,$J$67:$DK$121,ROWS($A$11:$A41)+2,FALSE)","v":78},{"$f":"HLOOKUP(BX$7+0.5,$J$67:$DK$121,ROWS($A$11:$A41)+2,FALSE)","v":38},{"$f":"HLOOKUP(BY$7+0.5,$J$67:$DK$121,ROWS($A$11:$A41)+2,FALSE)","v":608},{"$f":"HLOOKUP(BZ$7+0.5,$J$67:$DK$121,ROWS($A$11:$A41)+2,FALSE)","v":365},{"$f":"HLOOKUP(CA$7+0.5,$J$67:$DK$121,ROWS($A$11:$A41)+2,FALSE)","v":89},{"$f":"HLOOKUP(CB$7+0.5,$J$67:$DK$121,ROWS($A$11:$A41)+2,FALSE)","v":161},{"$f":"HLOOKUP(CC$7+0.5,$J$67:$DK$121,ROWS($A$11:$A41)+2,FALSE)","v":250},{"$f":"HLOOKUP(CD$7+0.5,$J$67:$DK$121,ROWS($A$11:$A41)+2,FALSE)","v":13},{"$f":"HLOOKUP(CE$7+0.5,$J$67:$DK$121,ROWS($A$11:$A41)+2,FALSE)","v":1749},{"$f":"HLOOKUP(CF$7+0.5,$J$67:$DK$121,ROWS($A$11:$A41)+2,FALSE)","v":57},{"$f":"HLOOKUP(CG$7+0.5,$J$67:$DK$121,ROWS($A$11:$A41)+2,FALSE)","v":3350},{"$f":"HLOOKUP(CH$7+0.5,$J$67:$DK$121,ROWS($A$11:$A41)+2,FALSE)","v":441},{"$f":"HLOOKUP(CI$7+0.5,$J$67:$DK$121,ROWS($A$11:$A41)+2,FALSE)","v":181},{"$f":"HLOOKUP(CJ$7+0.5,$J$67:$DK$121,ROWS($A$11:$A41)+2,FALSE)","v":181},{"$f":"HLOOKUP(CK$7+0.5,$J$67:$DK$121,ROWS($A$11:$A41)+2,FALSE)","v":262},{"$f":"HLOOKUP(CL$7+0.5,$J$67:$DK$121,ROWS($A$11:$A41)+2,FALSE)","v":181},{"$f":"HLOOKUP(CM$7+0.5,$J$67:$DK$121,ROWS($A$11:$A41)+2,FALSE)","v":136},{"$f":"HLOOKUP(CN$7+0.5,$J$67:$DK$121,ROWS($A$11:$A41)+2,FALSE)","v":181},{"$f":"HLOOKUP(CO$7+0.5,$J$67:$DK$121,ROWS($A$11:$A41)+2,FALSE)","v":"N/A"},{"$f":"HLOOKUP(CP$7+0.5,$J$67:$DK$121,ROWS($A$11:$A41)+2,FALSE)","v":330},{"$f":"HLOOKUP(CQ$7+0.5,$J$67:$DK$121,ROWS($A$11:$A41)+2,FALSE)","v":279},{"$f":"HLOOKUP(CR$7+0.5,$J$67:$DK$121,ROWS($A$11:$A41)+2,FALSE)","v":1027},{"$f":"HLOOKUP(CS$7+0.5,$J$67:$DK$121,ROWS($A$11:$A41)+2,FALSE)","v":1456},{"$f":"HLOOKUP(CT$7+0.5,$J$67:$DK$121,ROWS($A$11:$A41)+2,FALSE)","v":181},{"$f":"HLOOKUP(CU$7+0.5,$J$67:$DK$121,ROWS($A$11:$A41)+2,FALSE)","v":240},{"$f":"HLOOKUP(CV$7+0.5,$J$67:$DK$121,ROWS($A$11:$A41)+2,FALSE)","v":266},{"$f":"HLOOKUP(CW$7+0.5,$J$67:$DK$121,ROWS($A$11:$A41)+2,FALSE)","v":299},{"$f":"HLOOKUP(CX$7+0.5,$J$67:$DK$121,ROWS($A$11:$A41)+2,FALSE)","v":561},{"$f":"HLOOKUP(CY$7+0.5,$J$67:$DK$121,ROWS($A$11:$A41)+2,FALSE)","v":819},{"$f":"HLOOKUP(CZ$7+0.5,$J$67:$DK$121,ROWS($A$11:$A41)+2,FALSE)","v":257},{"$f":"HLOOKUP(DA$7+0.5,$J$67:$DK$121,ROWS($A$11:$A41)+2,FALSE)","v":181},{"$f":"HLOOKUP(DB$7+0.5,$J$67:$DK$121,ROWS($A$11:$A41)+2,FALSE)","v":133},{"$f":"HLOOKUP(DC$7+0.5,$J$67:$DK$121,ROWS($A$11:$A41)+2,FALSE)","v":1715},{"$f":"HLOOKUP(DD$7+0.5,$J$67:$DK$121,ROWS($A$11:$A41)+2,FALSE)","v":762},{"$f":"HLOOKUP(DE$7+0.5,$J$67:$DK$121,ROWS($A$11:$A41)+2,FALSE)","v":1339},{"$f":"HLOOKUP(DF$7+0.5,$J$67:$DK$121,ROWS($A$11:$A41)+2,FALSE)","v":433},{"$f":"HLOOKUP(DG$7+0.5,$J$67:$DK$121,ROWS($A$11:$A41)+2,FALSE)","v":119},{"$f":"HLOOKUP(DH$7+0.5,$J$67:$DK$121,ROWS($A$11:$A41)+2,FALSE)","v":131},{"$f":"HLOOKUP(DI$7+0.5,$J$67:$DK$121,ROWS($A$11:$A41)+2,FALSE)","v":277},{"$f":"HLOOKUP(DJ$7+0.5,$J$67:$DK$121,ROWS($A$11:$A41)+2,FALSE)","v":120},{"$f":"HLOOKUP(DK$7+0.5,$J$67:$DK$121,ROWS($A$11:$A41)+2,FALSE)","v":123}]
[null,"New Jersey",8772744,4541,7929570,23298,655465,21808,1.8418196000336617E-2,{"$f":"HLOOKUP(J$7,$J$67:$DK$121,ROWS($A$11:$A42)+2,FALSE)","v":130223},{"$f":"HLOOKUP(K$7,$J$67:$DK$121,ROWS($A$11:$A42)+2,FALSE)","v":779},{"$f":"HLOOKUP(L$7,$J$67:$DK$121,ROWS($A$11:$A42)+2,FALSE)","v":359},{"$f":"HLOOKUP(M$7,$J$67:$DK$121,ROWS($A$11:$A42)+2,FALSE)","v":1328},{"$f":"HLOOKUP(N$7,$J$67:$DK$121,ROWS($A$11:$A42)+2,FALSE)","v":57},{"$f":"HLOOKUP(O$7,$J$67:$DK$121,ROWS($A$11:$A42)+2,FALSE)","v":4330},{"$f":"HLOOKUP(P$7,$J$67:$DK$121,ROWS($A$11:$A42)+2,FALSE)","v":380},{"$f":"HLOOKUP(Q$7,$J$67:$DK$121,ROWS($A$11:$A42)+2,FALSE)","v":3466},{"$f":"HLOOKUP(R$7,$J$67:$DK$121,ROWS($A$11:$A42)+2,FALSE)","v":1921},{"$f":"HLOOKUP(S$7,$J$67:$DK$121,ROWS($A$11:$A42)+2,FALSE)","v":840},{"$f":"HLOOKUP(T$7,$J$67:$DK$121,ROWS($A$11:$A42)+2,FALSE)","v":10649},{"$f":"HLOOKUP(U$7,$J$67:$DK$121,ROWS($A$11:$A42)+2,FALSE)","v":3002},{"$f":"HLOOKUP(V$7,$J$67:$DK$121,ROWS($A$11:$A42)+2,FALSE)","v":22},{"$f":"HLOOKUP(W$7,$J$67:$DK$121,ROWS($A$11:$A42)+2,FALSE)","v":113},{"$f":"HLOOKUP(X$7,$J$67:$DK$121,ROWS($A$11:$A42)+2,FALSE)","v":2052},{"$f":"HLOOKUP(Y$7,$J$67:$DK$121,ROWS($A$11:$A42)+2,FALSE)","v":1039},{"$f":"HLOOKUP(Z$7,$J$67:$DK$121,ROWS($A$11:$A42)+2,FALSE)","v":357},{"$f":"HLOOKUP(AA$7,$J$67:$DK$121,ROWS($A$11:$A42)+2,FALSE)","v":426},{"$f":"HLOOKUP(AB$7,$J$67:$DK$121,ROWS($A$11:$A42)+2,FALSE)","v":631},{"$f":"HLOOKUP(AC$7,$J$67:$DK$121,ROWS($A$11:$A42)+2,FALSE)","v":339},{"$f":"HLOOKUP(AD$7,$J$67:$DK$121,ROWS($A$11:$A42)+2,FALSE)","v":430},{"$f":"HLOOKUP(AE$7,$J$67:$DK$121,ROWS($A$11:$A42)+2,FALSE)","v":3474},{"$f":"HLOOKUP(AF$7,$J$67:$DK$121,ROWS($A$11:$A42)+2,FALSE)","v":4907},{"$f":"HLOOKUP(AG$7,$J$67:$DK$121,ROWS($A$11:$A42)+2,FALSE)","v":324},{"$f":"HLOOKUP(AH$7,$J$67:$DK$121,ROWS($A$11:$A42)+2,FALSE)","v":570},{"$f":"HLOOKUP(AI$7,$J$67:$DK$121,ROWS($A$11:$A42)+2,FALSE)","v":106},{"$f":"HLOOKUP(AJ$7,$J$67:$DK$121,ROWS($A$11:$A42)+2,FALSE)","v":384},{"$f":"HLOOKUP(AK$7,$J$67:$DK$121,ROWS($A$11:$A42)+2,FALSE)","v":67},{"$f":"HLOOKUP(AL$7,$J$67:$DK$121,ROWS($A$11:$A42)+2,FALSE)","v":35},{"$f":"HLOOKUP(AM$7,$J$67:$DK$121,ROWS($A$11:$A42)+2,FALSE)","v":908},{"$f":"HLOOKUP(AN$7,$J$67:$DK$121,ROWS($A$11:$A42)+2,FALSE)","v":126},{"$f":"HLOOKUP(AO$7,$J$67:$DK$121,ROWS($A$11:$A42)+2,FALSE)","v":"N/A"},{"$f":"HLOOKUP(AP$7,$J$67:$DK$121,ROWS($A$11:$A42)+2,FALSE)","v":45},{"$f":"HLOOKUP(AQ$7,$J$67:$DK$121,ROWS($A$11:$A42)+2,FALSE)","v":40495},{"$f":"HLOOKUP(AR$7,$J$67:$DK$121,ROWS($A$11:$A42)+2,FALSE)","v":3236},{"$f":"HLOOKUP(AS$7,$J$67:$DK$121,ROWS($A$11:$A42)+2,FALSE)","v":55},{"$f":"HLOOKUP(AT$7,$J$67:$DK$121,ROWS($A$11:$A42)+2,FALSE)","v":1452},{"$f":"HLOOKUP(AU$7,$J$67:$DK$121,ROWS($A$11:$A42)+2,FALSE)","v":1540},{"$f":"HLOOKUP(AV$7,$J$67:$DK$121,ROWS($A$11:$A42)+2,FALSE)","v":760},{"$f":"HLOOKUP(AW$7,$J$67:$DK$121,ROWS($A$11:$A42)+2,FALSE)","v":23597},{"$f":"HLOOKUP(AX$7,$J$67:$DK$121,ROWS($A$11:$A42)+2,FALSE)","v":429},{"$f":"HLOOKUP(AY$7,$J$67:$DK$121,ROWS($A$11:$A42)+2,FALSE)","v":2372},{"$f":"HLOOKUP(AZ$7,$J$67:$DK$121,ROWS($A$11:$A42)+2,FALSE)","v":581},{"$f":"HLOOKUP(BA$7,$J$67:$DK$121,ROWS($A$11:$A42)+2,FALSE)","v":1400},{"$f":"HLOOKUP(BB$7,$J$67:$DK$121,ROWS($A$11:$A42)+2,FALSE)","v":2509},{"$f":"HLOOKUP(BC$7,$J$67:$DK$121,ROWS($A$11:$A42)+2,FALSE)","v":425},{"$f":"HLOOKUP(BD$7,$J$67:$DK$121,ROWS($A$11:$A42)+2,FALSE)","v":35},{"$f":"HLOOKUP(BE$7,$J$67:$DK$121,ROWS($A$11:$A42)+2,FALSE)","v":5024},{"$f":"HLOOKUP(BF$7,$J$67:$DK$121,ROWS($A$11:$A42)+2,FALSE)","v":1847},{"$f":"HLOOKUP(BG$7,$J$67:$DK$121,ROWS($A$11:$A42)+2,FALSE)","v":297},{"$f":"HLOOKUP(BH$7,$J$67:$DK$121,ROWS($A$11:$A42)+2,FALSE)","v":680},{"$f":"HLOOKUP(BI$7,$J$67:$DK$121,ROWS($A$11:$A42)+2,FALSE)","v":23},{"$f":"HLOOKUP(BJ$7,$J$67:$DK$121,ROWS($A$11:$A42)+2,FALSE)","v":2574},{"$f":"HLOOKUP(BK$7+0.5,$J$67:$DK$121,ROWS($A$11:$A42)+2,FALSE)","v":7649},{"$f":"HLOOKUP(BL$7+0.5,$J$67:$DK$121,ROWS($A$11:$A42)+2,FALSE)","v":509},{"$f":"HLOOKUP(BM$7+0.5,$J$67:$DK$121,ROWS($A$11:$A42)+2,FALSE)","v":437},{"$f":"HLOOKUP(BN$7+0.5,$J$67:$DK$121,ROWS($A$11:$A42)+2,FALSE)","v":704},{"$f":"HLOOKUP(BO$7+0.5,$J$67:$DK$121,ROWS($A$11:$A42)+2,FALSE)","v":70},{"$f":"HLOOKUP(BP$7+0.5,$J$67:$DK$121,ROWS($A$11:$A42)+2,FALSE)","v":1070},{"$f":"HLOOKUP(BQ$7+0.5,$J$67:$DK$121,ROWS($A$11:$A42)+2,FALSE)","v":264},{"$f":"HLOOKUP(BR$7+0.5,$J$67:$DK$121,ROWS($A$11:$A42)+2,FALSE)","v":1711},{"$f":"HLOOKUP(BS$7+0.5,$J$67:$DK$121,ROWS($A$11:$A42)+2,FALSE)","v":1383},{"$f":"HLOOKUP(BT$7+0.5,$J$67:$DK$121,ROWS($A$11:$A42)+2,FALSE)","v":637},{"$f":"HLOOKUP(BU$7+0.5,$J$67:$DK$121,ROWS($A$11:$A42)+2,FALSE)","v":2430},{"$f":"HLOOKUP(BV$7+0.5,$J$67:$DK$121,ROWS($A$11:$A42)+2,FALSE)","v":1032},{"$f":"HLOOKUP(BW$7+0.5,$J$67:$DK$121,ROWS($A$11:$A42)+2,FALSE)","v":41},{"$f":"HLOOKUP(BX$7+0.5,$J$67:$DK$121,ROWS($A$11:$A42)+2,FALSE)","v":134},{"$f":"HLOOKUP(BY$7+0.5,$J$67:$DK$121,ROWS($A$11:$A42)+2,FALSE)","v":874},{"$f":"HLOOKUP(BZ$7+0.5,$J$67:$DK$121,ROWS($A$11:$A42)+2,FALSE)","v":559},{"$f":"HLOOKUP(CA$7+0.5,$J$67:$DK$121,ROWS($A$11:$A42)+2,FALSE)","v":405},{"$f":"HLOOKUP(CB$7+0.5,$J$67:$DK$121,ROWS($A$11:$A42)+2,FALSE)","v":405},{"$f":"HLOOKUP(CC$7+0.5,$J$67:$DK$121,ROWS($A$11:$A42)+2,FALSE)","v":614},{"$f":"HLOOKUP(CD$7+0.5,$J$67:$DK$121,ROWS($A$11:$A42)+2,FALSE)","v":343},{"$f":"HLOOKUP(CE$7+0.5,$J$67:$DK$121,ROWS($A$11:$A42)+2,FALSE)","v":388},{"$f":"HLOOKUP(CF$7+0.5,$J$67:$DK$121,ROWS($A$11:$A42)+2,FALSE)","v":1241},{"$f":"HLOOKUP(CG$7+0.5,$J$67:$DK$121,ROWS($A$11:$A42)+2,FALSE)","v":1730},{"$f":"HLOOKUP(CH$7+0.5,$J$67:$DK$121,ROWS($A$11:$A42)+2,FALSE)","v":191},{"$f":"HLOOKUP(CI$7+0.5,$J$67:$DK$121,ROWS($A$11:$A42)+2,FALSE)","v":429},{"$f":"HLOOKUP(CJ$7+0.5,$J$67:$DK$121,ROWS($A$11:$A42)+2,FALSE)","v":165},{"$f":"HLOOKUP(CK$7+0.5,$J$67:$DK$121,ROWS($A$11:$A42)+2,FALSE)","v":363},{"$f":"HLOOKUP(CL$7+0.5,$J$67:$DK$121,ROWS($A$11:$A42)+2,FALSE)","v":112},{"$f":"HLOOKUP(CM$7+0.5,$J$67:$DK$121,ROWS($A$11:$A42)+2,FALSE)","v":58},{"$f":"HLOOKUP(CN$7+0.5,$J$67:$DK$121,ROWS($A$11:$A42)+2,FALSE)","v":526},{"$f":"HLOOKUP(CO$7+0.5,$J$67:$DK$121,ROWS($A$11:$A42)+2,FALSE)","v":219},{"$f":"HLOOKUP(CP$7+0.5,$J$67:$DK$121,ROWS($A$11:$A42)+2,FALSE)","v":"N/A"},{"$f":"HLOOKUP(CQ$7+0.5,$J$67:$DK$121,ROWS($A$11:$A42)+2,FALSE)","v":75},{"$f":"HLOOKUP(CR$7+0.5,$J$67:$DK$121,ROWS($A$11:$A42)+2,FALSE)","v":4293},{"$f":"HLOOKUP(CS$7+0.5,$J$67:$DK$121,ROWS($A$11:$A42)+2,FALSE)","v":1238},{"$f":"HLOOKUP(CT$7+0.5,$J$67:$DK$121,ROWS($A$11:$A42)+2,FALSE)","v":93},{"$f":"HLOOKUP(CU$7+0.5,$J$67:$DK$121,ROWS($A$11:$A42)+2,FALSE)","v":596},{"$f":"HLOOKUP(CV$7+0.5,$J$67:$DK$121,ROWS($A$11:$A42)+2,FALSE)","v":1537},{"$f":"HLOOKUP(CW$7+0.5,$J$67:$DK$121,ROWS($A$11:$A42)+2,FALSE)","v":587},{"$f":"HLOOKUP(CX$7+0.5,$J$67:$DK$121,ROWS($A$11:$A42)+2,FALSE)","v":2976},{"$f":"HLOOKUP(CY$7+0.5,$J$67:$DK$121,ROWS($A$11:$A42)+2,FALSE)","v":410},{"$f":"HLOOKUP(CZ$7+0.5,$J$67:$DK$121,ROWS($A$11:$A42)+2,FALSE)","v":1386},{"$f":"HLOOKUP(DA$7+0.5,$J$67:$DK$121,ROWS($A$11:$A42)+2,FALSE)","v":644},{"$f":"HLOOKUP(DB$7+0.5,$J$67:$DK$121,ROWS($A$11:$A42)+2,FALSE)","v":612},{"$f":"HLOOKUP(DC$7+0.5,$J$67:$DK$121,ROWS($A$11:$A42)+2,FALSE)","v":1335},{"$f":"HLOOKUP(DD$7+0.5,$J$67:$DK$121,ROWS($A$11:$A42)+2,FALSE)","v":341},{"$f":"HLOOKUP(DE$7+0.5,$J$67:$DK$121,ROWS($A$11:$A42)+2,FALSE)","v":57},{"$f":"HLOOKUP(DF$7+0.5,$J$67:$DK$121,ROWS($A$11:$A42)+2,FALSE)","v":1899},{"$f":"HLOOKUP(DG$7+0.5,$J$67:$DK$121,ROWS($A$11:$A42)+2,FALSE)","v":1244},{"$f":"HLOOKUP(DH$7+0.5,$J$67:$DK$121,ROWS($A$11:$A42)+2,FALSE)","v":201},{"$f":"HLOOKUP(DI$7+0.5,$J$67:$DK$121,ROWS($A$11:$A42)+2,FALSE)","v":457},{"$f":"HLOOKUP(DJ$7+0.5,$J$67:$DK$121,ROWS($A$11:$A42)+2,FALSE)","v":30},{"$f":"HLOOKUP(DK$7+0.5,$J$67:$DK$121,ROWS($A$11:$A42)+2,FALSE)","v":1462}]
[null,"New Mexico",2060595,2119,1769341,11461,226243,12069,7.735548972504171E-3,{"$f":"HLOOKUP(J$7,$J$67:$DK$121,ROWS($A$11:$A43)+2,FALSE)","v":54693},{"$f":"HLOOKUP(K$7,$J$67:$DK$121,ROWS($A$11:$A43)+2,FALSE)","v":787},{"$f":"HLOOKUP(L$7,$J$67:$DK$121,ROWS($A$11:$A43)+2,FALSE)","v":320},{"$f":"HLOOKUP(M$7,$J$67:$DK$121,ROWS($A$11:$A43)+2,FALSE)","v":6391},{"$f":"HLOOKUP(N$7,$J$67:$DK$121,ROWS($A$11:$A43)+2,FALSE)","v":410},{"$f":"HLOOKUP(O$7,$J$67:$DK$121,ROWS($A$11:$A43)+2,FALSE)","v":4536},{"$f":"HLOOKUP(P$7,$J$67:$DK$121,ROWS($A$11:$A43)+2,FALSE)","v":4780},{"$f":"HLOOKUP(Q$7,$J$67:$DK$121,ROWS($A$11:$A43)+2,FALSE)","v":280},{"$f":"HLOOKUP(R$7,$J$67:$DK$121,ROWS($A$11:$A43)+2,FALSE)","v":100},{"$f":"HLOOKUP(S$7,$J$67:$DK$121,ROWS($A$11:$A43)+2,FALSE)","v":25},{"$f":"HLOOKUP(T$7,$J$67:$DK$121,ROWS($A$11:$A43)+2,FALSE)","v":4707},{"$f":"HLOOKUP(U$7,$J$67:$DK$121,ROWS($A$11:$A43)+2,FALSE)","v":192},{"$f":"HLOOKUP(V$7,$J$67:$DK$121,ROWS($A$11:$A43)+2,FALSE)","v":168},{"$f":"HLOOKUP(W$7,$J$67:$DK$121,ROWS($A$11:$A43)+2,FALSE)","v":355},{"$f":"HLOOKUP(X$7,$J$67:$DK$121,ROWS($A$11:$A43)+2,FALSE)","v":790},{"$f":"HLOOKUP(Y$7,$J$67:$DK$121,ROWS($A$11:$A43)+2,FALSE)","v":660},{"$f":"HLOOKUP(Z$7,$J$67:$DK$121,ROWS($A$11:$A43)+2,FALSE)","v":384},{"$f":"HLOOKUP(AA$7,$J$67:$DK$121,ROWS($A$11:$A43)+2,FALSE)","v":672},{"$f":"HLOOKUP(AB$7,$J$67:$DK$121,ROWS($A$11:$A43)+2,FALSE)","v":159},{"$f":"HLOOKUP(AC$7,$J$67:$DK$121,ROWS($A$11:$A43)+2,FALSE)","v":790},{"$f":"HLOOKUP(AD$7,$J$67:$DK$121,ROWS($A$11:$A43)+2,FALSE)","v":57},{"$f":"HLOOKUP(AE$7,$J$67:$DK$121,ROWS($A$11:$A43)+2,FALSE)","v":505},{"$f":"HLOOKUP(AF$7,$J$67:$DK$121,ROWS($A$11:$A43)+2,FALSE)","v":303},{"$f":"HLOOKUP(AG$7,$J$67:$DK$121,ROWS($A$11:$A43)+2,FALSE)","v":602},{"$f":"HLOOKUP(AH$7,$J$67:$DK$121,ROWS($A$11:$A43)+2,FALSE)","v":284},{"$f":"HLOOKUP(AI$7,$J$67:$DK$121,ROWS($A$11:$A43)+2,FALSE)","v":451},{"$f":"HLOOKUP(AJ$7,$J$67:$DK$121,ROWS($A$11:$A43)+2,FALSE)","v":1216},{"$f":"HLOOKUP(AK$7,$J$67:$DK$121,ROWS($A$11:$A43)+2,FALSE)","v":139},{"$f":"HLOOKUP(AL$7,$J$67:$DK$121,ROWS($A$11:$A43)+2,FALSE)","v":194},{"$f":"HLOOKUP(AM$7,$J$67:$DK$121,ROWS($A$11:$A43)+2,FALSE)","v":604},{"$f":"HLOOKUP(AN$7,$J$67:$DK$121,ROWS($A$11:$A43)+2,FALSE)","v":268},{"$f":"HLOOKUP(AO$7,$J$67:$DK$121,ROWS($A$11:$A43)+2,FALSE)","v":252},{"$f":"HLOOKUP(AP$7,$J$67:$DK$121,ROWS($A$11:$A43)+2,FALSE)","v":"N/A"},{"$f":"HLOOKUP(AQ$7,$J$67:$DK$121,ROWS($A$11:$A43)+2,FALSE)","v":1111},{"$f":"HLOOKUP(AR$7,$J$67:$DK$121,ROWS($A$11:$A43)+2,FALSE)","v":335},{"$f":"HLOOKUP(AS$7,$J$67:$DK$121,ROWS($A$11:$A43)+2,FALSE)","v":41},{"$f":"HLOOKUP(AT$7,$J$67:$DK$121,ROWS($A$11:$A43)+2,FALSE)","v":1178},{"$f":"HLOOKUP(AU$7,$J$67:$DK$121,ROWS($A$11:$A43)+2,FALSE)","v":1076},{"$f":"HLOOKUP(AV$7,$J$67:$DK$121,ROWS($A$11:$A43)+2,FALSE)","v":932},{"$f":"HLOOKUP(AW$7,$J$67:$DK$121,ROWS($A$11:$A43)+2,FALSE)","v":822},{"$f":"HLOOKUP(AX$7,$J$67:$DK$121,ROWS($A$11:$A43)+2,FALSE)","v":0},{"$f":"HLOOKUP(AY$7,$J$67:$DK$121,ROWS($A$11:$A43)+2,FALSE)","v":325},{"$f":"HLOOKUP(AZ$7,$J$67:$DK$121,ROWS($A$11:$A43)+2,FALSE)","v":509},{"$f":"HLOOKUP(BA$7,$J$67:$DK$121,ROWS($A$11:$A43)+2,FALSE)","v":338},{"$f":"HLOOKUP(BB$7,$J$67:$DK$121,ROWS($A$11:$A43)+2,FALSE)","v":11955},{"$f":"HLOOKUP(BC$7,$J$67:$DK$121,ROWS($A$11:$A43)+2,FALSE)","v":1382},{"$f":"HLOOKUP(BD$7,$J$67:$DK$121,ROWS($A$11:$A43)+2,FALSE)","v":81},{"$f":"HLOOKUP(BE$7,$J$67:$DK$121,ROWS($A$11:$A43)+2,FALSE)","v":1560},{"$f":"HLOOKUP(BF$7,$J$67:$DK$121,ROWS($A$11:$A43)+2,FALSE)","v":1251},{"$f":"HLOOKUP(BG$7,$J$67:$DK$121,ROWS($A$11:$A43)+2,FALSE)","v":0},{"$f":"HLOOKUP(BH$7,$J$67:$DK$121,ROWS($A$11:$A43)+2,FALSE)","v":321},{"$f":"HLOOKUP(BI$7,$J$67:$DK$121,ROWS($A$11:$A43)+2,FALSE)","v":95},{"$f":"HLOOKUP(BJ$7,$J$67:$DK$121,ROWS($A$11:$A43)+2,FALSE)","v":429},{"$f":"HLOOKUP(BK$7+0.5,$J$67:$DK$121,ROWS($A$11:$A43)+2,FALSE)","v":5877},{"$f":"HLOOKUP(BL$7+0.5,$J$67:$DK$121,ROWS($A$11:$A43)+2,FALSE)","v":509},{"$f":"HLOOKUP(BM$7+0.5,$J$67:$DK$121,ROWS($A$11:$A43)+2,FALSE)","v":264},{"$f":"HLOOKUP(BN$7+0.5,$J$67:$DK$121,ROWS($A$11:$A43)+2,FALSE)","v":1673},{"$f":"HLOOKUP(BO$7+0.5,$J$67:$DK$121,ROWS($A$11:$A43)+2,FALSE)","v":286},{"$f":"HLOOKUP(BP$7+0.5,$J$67:$DK$121,ROWS($A$11:$A43)+2,FALSE)","v":1440},{"$f":"HLOOKUP(BQ$7+0.5,$J$67:$DK$121,ROWS($A$11:$A43)+2,FALSE)","v":1546},{"$f":"HLOOKUP(BR$7+0.5,$J$67:$DK$121,ROWS($A$11:$A43)+2,FALSE)","v":250},{"$f":"HLOOKUP(BS$7+0.5,$J$67:$DK$121,ROWS($A$11:$A43)+2,FALSE)","v":136},{"$f":"HLOOKUP(BT$7+0.5,$J$67:$DK$121,ROWS($A$11:$A43)+2,FALSE)","v":51},{"$f":"HLOOKUP(BU$7+0.5,$J$67:$DK$121,ROWS($A$11:$A43)+2,FALSE)","v":2184},{"$f":"HLOOKUP(BV$7+0.5,$J$67:$DK$121,ROWS($A$11:$A43)+2,FALSE)","v":184},{"$f":"HLOOKUP(BW$7+0.5,$J$67:$DK$121,ROWS($A$11:$A43)+2,FALSE)","v":127},{"$f":"HLOOKUP(BX$7+0.5,$J$67:$DK$121,ROWS($A$11:$A43)+2,FALSE)","v":352},{"$f":"HLOOKUP(BY$7+0.5,$J$67:$DK$121,ROWS($A$11:$A43)+2,FALSE)","v":530},{"$f":"HLOOKUP(BZ$7+0.5,$J$67:$DK$121,ROWS($A$11:$A43)+2,FALSE)","v":524},{"$f":"HLOOKUP(CA$7+0.5,$J$67:$DK$121,ROWS($A$11:$A43)+2,FALSE)","v":331},{"$f":"HLOOKUP(CB$7+0.5,$J$67:$DK$121,ROWS($A$11:$A43)+2,FALSE)","v":537},{"$f":"HLOOKUP(CC$7+0.5,$J$67:$DK$121,ROWS($A$11:$A43)+2,FALSE)","v":160},{"$f":"HLOOKUP(CD$7+0.5,$J$67:$DK$121,ROWS($A$11:$A43)+2,FALSE)","v":883},{"$f":"HLOOKUP(CE$7+0.5,$J$67:$DK$121,ROWS($A$11:$A43)+2,FALSE)","v":80},{"$f":"HLOOKUP(CF$7+0.5,$J$67:$DK$121,ROWS($A$11:$A43)+2,FALSE)","v":355},{"$f":"HLOOKUP(CG$7+0.5,$J$67:$DK$121,ROWS($A$11:$A43)+2,FALSE)","v":298},{"$f":"HLOOKUP(CH$7+0.5,$J$67:$DK$121,ROWS($A$11:$A43)+2,FALSE)","v":490},{"$f":"HLOOKUP(CI$7+0.5,$J$67:$DK$121,ROWS($A$11:$A43)+2,FALSE)","v":428},{"$f":"HLOOKUP(CJ$7+0.5,$J$67:$DK$121,ROWS($A$11:$A43)+2,FALSE)","v":630},{"$f":"HLOOKUP(CK$7+0.5,$J$67:$DK$121,ROWS($A$11:$A43)+2,FALSE)","v":793},{"$f":"HLOOKUP(CL$7+0.5,$J$67:$DK$121,ROWS($A$11:$A43)+2,FALSE)","v":162},{"$f":"HLOOKUP(CM$7+0.5,$J$67:$DK$121,ROWS($A$11:$A43)+2,FALSE)","v":220},{"$f":"HLOOKUP(CN$7+0.5,$J$67:$DK$121,ROWS($A$11:$A43)+2,FALSE)","v":853},{"$f":"HLOOKUP(CO$7+0.5,$J$67:$DK$121,ROWS($A$11:$A43)+2,FALSE)","v":259},{"$f":"HLOOKUP(CP$7+0.5,$J$67:$DK$121,ROWS($A$11:$A43)+2,FALSE)","v":271},{"$f":"HLOOKUP(CQ$7+0.5,$J$67:$DK$121,ROWS($A$11:$A43)+2,FALSE)","v":"N/A"},{"$f":"HLOOKUP(CR$7+0.5,$J$67:$DK$121,ROWS($A$11:$A43)+2,FALSE)","v":618},{"$f":"HLOOKUP(CS$7+0.5,$J$67:$DK$121,ROWS($A$11:$A43)+2,FALSE)","v":373},{"$f":"HLOOKUP(CT$7+0.5,$J$67:$DK$121,ROWS($A$11:$A43)+2,FALSE)","v":82},{"$f":"HLOOKUP(CU$7+0.5,$J$67:$DK$121,ROWS($A$11:$A43)+2,FALSE)","v":1049},{"$f":"HLOOKUP(CV$7+0.5,$J$67:$DK$121,ROWS($A$11:$A43)+2,FALSE)","v":568},{"$f":"HLOOKUP(CW$7+0.5,$J$67:$DK$121,ROWS($A$11:$A43)+2,FALSE)","v":481},{"$f":"HLOOKUP(CX$7+0.5,$J$67:$DK$121,ROWS($A$11:$A43)+2,FALSE)","v":666},{"$f":"HLOOKUP(CY$7+0.5,$J$67:$DK$121,ROWS($A$11:$A43)+2,FALSE)","v":185},{"$f":"HLOOKUP(CZ$7+0.5,$J$67:$DK$121,ROWS($A$11:$A43)+2,FALSE)","v":260},{"$f":"HLOOKUP(DA$7+0.5,$J$67:$DK$121,ROWS($A$11:$A43)+2,FALSE)","v":547},{"$f":"HLOOKUP(DB$7+0.5,$J$67:$DK$121,ROWS($A$11:$A43)+2,FALSE)","v":274},{"$f":"HLOOKUP(DC$7+0.5,$J$67:$DK$121,ROWS($A$11:$A43)+2,FALSE)","v":2917},{"$f":"HLOOKUP(DD$7+0.5,$J$67:$DK$121,ROWS($A$11:$A43)+2,FALSE)","v":889},{"$f":"HLOOKUP(DE$7+0.5,$J$67:$DK$121,ROWS($A$11:$A43)+2,FALSE)","v":103},{"$f":"HLOOKUP(DF$7+0.5,$J$67:$DK$121,ROWS($A$11:$A43)+2,FALSE)","v":1330},{"$f":"HLOOKUP(DG$7+0.5,$J$67:$DK$121,ROWS($A$11:$A43)+2,FALSE)","v":575},{"$f":"HLOOKUP(DH$7+0.5,$J$67:$DK$121,ROWS($A$11:$A43)+2,FALSE)","v":185},{"$f":"HLOOKUP(DI$7+0.5,$J$67:$DK$121,ROWS($A$11:$A43)+2,FALSE)","v":514},{"$f":"HLOOKUP(DJ$7+0.5,$J$67:$DK$121,ROWS($A$11:$A43)+2,FALSE)","v":100},{"$f":"HLOOKUP(DK$7+0.5,$J$67:$DK$121,ROWS($A$11:$A43)+2,FALSE)","v":466}]
[null,"New York",19352153,6112,17202134,34343,1723117,30910,3.819516586531492E-2,{"$f":"HLOOKUP(J$7,$J$67:$DK$121,ROWS($A$11:$A44)+2,FALSE)","v":270053},{"$f":"HLOOKUP(K$7,$J$67:$DK$121,ROWS($A$11:$A44)+2,FALSE)","v":1364},{"$f":"HLOOKUP(L$7,$J$67:$DK$121,ROWS($A$11:$A44)+2,FALSE)","v":4002},{"$f":"HLOOKUP(M$7,$J$67:$DK$121,ROWS($A$11:$A44)+2,FALSE)","v":4146},{"$f":"HLOOKUP(N$7,$J$67:$DK$121,ROWS($A$11:$A44)+2,FALSE)","v":247},{"$f":"HLOOKUP(O$7,$J$67:$DK$121,ROWS($A$11:$A44)+2,FALSE)","v":24623},{"$f":"HLOOKUP(P$7,$J$67:$DK$121,ROWS($A$11:$A44)+2,FALSE)","v":3596},{"$f":"HLOOKUP(Q$7,$J$67:$DK$121,ROWS($A$11:$A44)+2,FALSE)","v":14595},{"$f":"HLOOKUP(R$7,$J$67:$DK$121,ROWS($A$11:$A44)+2,FALSE)","v":477},{"$f":"HLOOKUP(S$7,$J$67:$DK$121,ROWS($A$11:$A44)+2,FALSE)","v":3936},{"$f":"HLOOKUP(T$7,$J$67:$DK$121,ROWS($A$11:$A44)+2,FALSE)","v":27392},{"$f":"HLOOKUP(U$7,$J$67:$DK$121,ROWS($A$11:$A44)+2,FALSE)","v":7592},{"$f":"HLOOKUP(V$7,$J$67:$DK$121,ROWS($A$11:$A44)+2,FALSE)","v":1598},{"$f":"HLOOKUP(W$7,$J$67:$DK$121,ROWS($A$11:$A44)+2,FALSE)","v":607},{"$f":"HLOOKUP(X$7,$J$67:$DK$121,ROWS($A$11:$A44)+2,FALSE)","v":8017},{"$f":"HLOOKUP(Y$7,$J$67:$DK$121,ROWS($A$11:$A44)+2,FALSE)","v":3040},{"$f":"HLOOKUP(Z$7,$J$67:$DK$121,ROWS($A$11:$A44)+2,FALSE)","v":955},{"$f":"HLOOKUP(AA$7,$J$67:$DK$121,ROWS($A$11:$A44)+2,FALSE)","v":1437},{"$f":"HLOOKUP(AB$7,$J$67:$DK$121,ROWS($A$11:$A44)+2,FALSE)","v":1753},{"$f":"HLOOKUP(AC$7,$J$67:$DK$121,ROWS($A$11:$A44)+2,FALSE)","v":1083},{"$f":"HLOOKUP(AD$7,$J$67:$DK$121,ROWS($A$11:$A44)+2,FALSE)","v":1345},{"$f":"HLOOKUP(AE$7,$J$67:$DK$121,ROWS($A$11:$A44)+2,FALSE)","v":7321},{"$f":"HLOOKUP(AF$7,$J$67:$DK$121,ROWS($A$11:$A44)+2,FALSE)","v":15073},{"$f":"HLOOKUP(AG$7,$J$67:$DK$121,ROWS($A$11:$A44)+2,FALSE)","v":5191},{"$f":"HLOOKUP(AH$7,$J$67:$DK$121,ROWS($A$11:$A44)+2,FALSE)","v":1059},{"$f":"HLOOKUP(AI$7,$J$67:$DK$121,ROWS($A$11:$A44)+2,FALSE)","v":773},{"$f":"HLOOKUP(AJ$7,$J$67:$DK$121,ROWS($A$11:$A44)+2,FALSE)","v":3310},{"$f":"HLOOKUP(AK$7,$J$67:$DK$121,ROWS($A$11:$A44)+2,FALSE)","v":421},{"$f":"HLOOKUP(AL$7,$J$67:$DK$121,ROWS($A$11:$A44)+2,FALSE)","v":78},{"$f":"HLOOKUP(AM$7,$J$67:$DK$121,ROWS($A$11:$A44)+2,FALSE)","v":600},{"$f":"HLOOKUP(AN$7,$J$67:$DK$121,ROWS($A$11:$A44)+2,FALSE)","v":2760},{"$f":"HLOOKUP(AO$7,$J$67:$DK$121,ROWS($A$11:$A44)+2,FALSE)","v":42574},{"$f":"HLOOKUP(AP$7,$J$67:$DK$121,ROWS($A$11:$A44)+2,FALSE)","v":646},{"$f":"HLOOKUP(AQ$7,$J$67:$DK$121,ROWS($A$11:$A44)+2,FALSE)","v":"N/A"},{"$f":"HLOOKUP(AR$7,$J$67:$DK$121,ROWS($A$11:$A44)+2,FALSE)","v":10544},{"$f":"HLOOKUP(AS$7,$J$67:$DK$121,ROWS($A$11:$A44)+2,FALSE)","v":77},{"$f":"HLOOKUP(AT$7,$J$67:$DK$121,ROWS($A$11:$A44)+2,FALSE)","v":4625},{"$f":"HLOOKUP(AU$7,$J$67:$DK$121,ROWS($A$11:$A44)+2,FALSE)","v":1327},{"$f":"HLOOKUP(AV$7,$J$67:$DK$121,ROWS($A$11:$A44)+2,FALSE)","v":1055},{"$f":"HLOOKUP(AW$7,$J$67:$DK$121,ROWS($A$11:$A44)+2,FALSE)","v":22895},{"$f":"HLOOKUP(AX$7,$J$67:$DK$121,ROWS($A$11:$A44)+2,FALSE)","v":3222},{"$f":"HLOOKUP(AY$7,$J$67:$DK$121,ROWS($A$11:$A44)+2,FALSE)","v":5952},{"$f":"HLOOKUP(AZ$7,$J$67:$DK$121,ROWS($A$11:$A44)+2,FALSE)","v":0},{"$f":"HLOOKUP(BA$7,$J$67:$DK$121,ROWS($A$11:$A44)+2,FALSE)","v":1279},{"$f":"HLOOKUP(BB$7,$J$67:$DK$121,ROWS($A$11:$A44)+2,FALSE)","v":11231},{"$f":"HLOOKUP(BC$7,$J$67:$DK$121,ROWS($A$11:$A44)+2,FALSE)","v":622},{"$f":"HLOOKUP(BD$7,$J$67:$DK$121,ROWS($A$11:$A44)+2,FALSE)","v":2764},{"$f":"HLOOKUP(BE$7,$J$67:$DK$121,ROWS($A$11:$A44)+2,FALSE)","v":7939},{"$f":"HLOOKUP(BF$7,$J$67:$DK$121,ROWS($A$11:$A44)+2,FALSE)","v":2614},{"$f":"HLOOKUP(BG$7,$J$67:$DK$121,ROWS($A$11:$A44)+2,FALSE)","v":921},{"$f":"HLOOKUP(BH$7,$J$67:$DK$121,ROWS($A$11:$A44)+2,FALSE)","v":979},{"$f":"HLOOKUP(BI$7,$J$67:$DK$121,ROWS($A$11:$A44)+2,FALSE)","v":396},{"$f":"HLOOKUP(BJ$7,$J$67:$DK$121,ROWS($A$11:$A44)+2,FALSE)","v":7321},{"$f":"HLOOKUP(BK$7+0.5,$J$67:$DK$121,ROWS($A$11:$A44)+2,FALSE)","v":11861},{"$f":"HLOOKUP(BL$7+0.5,$J$67:$DK$121,ROWS($A$11:$A44)+2,FALSE)","v":864},{"$f":"HLOOKUP(BM$7+0.5,$J$67:$DK$121,ROWS($A$11:$A44)+2,FALSE)","v":2016},{"$f":"HLOOKUP(BN$7+0.5,$J$67:$DK$121,ROWS($A$11:$A44)+2,FALSE)","v":2468},{"$f":"HLOOKUP(BO$7+0.5,$J$67:$DK$121,ROWS($A$11:$A44)+2,FALSE)","v":203},{"$f":"HLOOKUP(BP$7+0.5,$J$67:$DK$121,ROWS($A$11:$A44)+2,FALSE)","v":2557},{"$f":"HLOOKUP(BQ$7+0.5,$J$67:$DK$121,ROWS($A$11:$A44)+2,FALSE)","v":976},{"$f":"HLOOKUP(BR$7+0.5,$J$67:$DK$121,ROWS($A$11:$A44)+2,FALSE)","v":2921},{"$f":"HLOOKUP(BS$7+0.5,$J$67:$DK$121,ROWS($A$11:$A44)+2,FALSE)","v":284},{"$f":"HLOOKUP(BT$7+0.5,$J$67:$DK$121,ROWS($A$11:$A44)+2,FALSE)","v":1392},{"$f":"HLOOKUP(BU$7+0.5,$J$67:$DK$121,ROWS($A$11:$A44)+2,FALSE)","v":3450},{"$f":"HLOOKUP(BV$7+0.5,$J$67:$DK$121,ROWS($A$11:$A44)+2,FALSE)","v":1925},{"$f":"HLOOKUP(BW$7+0.5,$J$67:$DK$121,ROWS($A$11:$A44)+2,FALSE)","v":734},{"$f":"HLOOKUP(BX$7+0.5,$J$67:$DK$121,ROWS($A$11:$A44)+2,FALSE)","v":472},{"$f":"HLOOKUP(BY$7+0.5,$J$67:$DK$121,ROWS($A$11:$A44)+2,FALSE)","v":2204},{"$f":"HLOOKUP(BZ$7+0.5,$J$67:$DK$121,ROWS($A$11:$A44)+2,FALSE)","v":1128},{"$f":"HLOOKUP(CA$7+0.5,$J$67:$DK$121,ROWS($A$11:$A44)+2,FALSE)","v":658},{"$f":"HLOOKUP(CB$7+0.5,$J$67:$DK$121,ROWS($A$11:$A44)+2,FALSE)","v":906},{"$f":"HLOOKUP(CC$7+0.5,$J$67:$DK$121,ROWS($A$11:$A44)+2,FALSE)","v":808},{"$f":"HLOOKUP(CD$7+0.5,$J$67:$DK$121,ROWS($A$11:$A44)+2,FALSE)","v":465},{"$f":"HLOOKUP(CE$7+0.5,$J$67:$DK$121,ROWS($A$11:$A44)+2,FALSE)","v":536},{"$f":"HLOOKUP(CF$7+0.5,$J$67:$DK$121,ROWS($A$11:$A44)+2,FALSE)","v":1575},{"$f":"HLOOKUP(CG$7+0.5,$J$67:$DK$121,ROWS($A$11:$A44)+2,FALSE)","v":2292},{"$f":"HLOOKUP(CH$7+0.5,$J$67:$DK$121,ROWS($A$11:$A44)+2,FALSE)","v":1445},{"$f":"HLOOKUP(CI$7+0.5,$J$67:$DK$121,ROWS($A$11:$A44)+2,FALSE)","v":631},{"$f":"HLOOKUP(CJ$7+0.5,$J$67:$DK$121,ROWS($A$11:$A44)+2,FALSE)","v":800},{"$f":"HLOOKUP(CK$7+0.5,$J$67:$DK$121,ROWS($A$11:$A44)+2,FALSE)","v":1260},{"$f":"HLOOKUP(CL$7+0.5,$J$67:$DK$121,ROWS($A$11:$A44)+2,FALSE)","v":424},{"$f":"HLOOKUP(CM$7+0.5,$J$67:$DK$121,ROWS($A$11:$A44)+2,FALSE)","v":108},{"$f":"HLOOKUP(CN$7+0.5,$J$67:$DK$121,ROWS($A$11:$A44)+2,FALSE)","v":382},{"$f":"HLOOKUP(CO$7+0.5,$J$67:$DK$121,ROWS($A$11:$A44)+2,FALSE)","v":1059},{"$f":"HLOOKUP(CP$7+0.5,$J$67:$DK$121,ROWS($A$11:$A44)+2,FALSE)","v":4802},{"$f":"HLOOKUP(CQ$7+0.5,$J$67:$DK$121,ROWS($A$11:$A44)+2,FALSE)","v":445},{"$f":"HLOOKUP(CR$7+0.5,$J$67:$DK$121,ROWS($A$11:$A44)+2,FALSE)","v":"N/A"},{"$f":"HLOOKUP(CS$7+0.5,$J$67:$DK$121,ROWS($A$11:$A44)+2,FALSE)","v":2568},{"$f":"HLOOKUP(CT$7+0.5,$J$67:$DK$121,ROWS($A$11:$A44)+2,FALSE)","v":129},{"$f":"HLOOKUP(CU$7+0.5,$J$67:$DK$121,ROWS($A$11:$A44)+2,FALSE)","v":1103},{"$f":"HLOOKUP(CV$7+0.5,$J$67:$DK$121,ROWS($A$11:$A44)+2,FALSE)","v":652},{"$f":"HLOOKUP(CW$7+0.5,$J$67:$DK$121,ROWS($A$11:$A44)+2,FALSE)","v":716},{"$f":"HLOOKUP(CX$7+0.5,$J$67:$DK$121,ROWS($A$11:$A44)+2,FALSE)","v":3206},{"$f":"HLOOKUP(CY$7+0.5,$J$67:$DK$121,ROWS($A$11:$A44)+2,FALSE)","v":1538},{"$f":"HLOOKUP(CZ$7+0.5,$J$67:$DK$121,ROWS($A$11:$A44)+2,FALSE)","v":1542},{"$f":"HLOOKUP(DA$7+0.5,$J$67:$DK$121,ROWS($A$11:$A44)+2,FALSE)","v":185},{"$f":"HLOOKUP(DB$7+0.5,$J$67:$DK$121,ROWS($A$11:$A44)+2,FALSE)","v":624},{"$f":"HLOOKUP(DC$7+0.5,$J$67:$DK$121,ROWS($A$11:$A44)+2,FALSE)","v":2384},{"$f":"HLOOKUP(DD$7+0.5,$J$67:$DK$121,ROWS($A$11:$A44)+2,FALSE)","v":489},{"$f":"HLOOKUP(DE$7+0.5,$J$67:$DK$121,ROWS($A$11:$A44)+2,FALSE)","v":1025},{"$f":"HLOOKUP(DF$7+0.5,$J$67:$DK$121,ROWS($A$11:$A44)+2,FALSE)","v":2109},{"$f":"HLOOKUP(DG$7+0.5,$J$67:$DK$121,ROWS($A$11:$A44)+2,FALSE)","v":840},{"$f":"HLOOKUP(DH$7+0.5,$J$67:$DK$121,ROWS($A$11:$A44)+2,FALSE)","v":689},{"$f":"HLOOKUP(DI$7+0.5,$J$67:$DK$121,ROWS($A$11:$A44)+2,FALSE)","v":507},{"$f":"HLOOKUP(DJ$7+0.5,$J$67:$DK$121,ROWS($A$11:$A44)+2,FALSE)","v":370},{"$f":"HLOOKUP(DK$7+0.5,$J$67:$DK$121,ROWS($A$11:$A44)+2,FALSE)","v":1791}]
[null,"North Carolina",9640490,5097,8167830,27074,1149080,24801,3.8633051145311861E-2,{"$f":"HLOOKUP(J$7,$J$67:$DK$121,ROWS($A$11:$A45)+2,FALSE)","v":273149},{"$f":"HLOOKUP(K$7,$J$67:$DK$121,ROWS($A$11:$A45)+2,FALSE)","v":4329},{"$f":"HLOOKUP(L$7,$J$67:$DK$121,ROWS($A$11:$A45)+2,FALSE)","v":1458},{"$f":"HLOOKUP(M$7,$J$67:$DK$121,ROWS($A$11:$A45)+2,FALSE)","v":3493},{"$f":"HLOOKUP(N$7,$J$67:$DK$121,ROWS($A$11:$A45)+2,FALSE)","v":861},{"$f":"HLOOKUP(O$7,$J$67:$DK$121,ROWS($A$11:$A45)+2,FALSE)","v":13883},{"$f":"HLOOKUP(P$7,$J$67:$DK$121,ROWS($A$11:$A45)+2,FALSE)","v":4790},{"$f":"HLOOKUP(Q$7,$J$67:$DK$121,ROWS($A$11:$A45)+2,FALSE)","v":4914},{"$f":"HLOOKUP(R$7,$J$67:$DK$121,ROWS($A$11:$A45)+2,FALSE)","v":2180},{"$f":"HLOOKUP(S$7,$J$67:$DK$121,ROWS($A$11:$A45)+2,FALSE)","v":1801},{"$f":"HLOOKUP(T$7,$J$67:$DK$121,ROWS($A$11:$A45)+2,FALSE)","v":26365},{"$f":"HLOOKUP(U$7,$J$67:$DK$121,ROWS($A$11:$A45)+2,FALSE)","v":16823},{"$f":"HLOOKUP(V$7,$J$67:$DK$121,ROWS($A$11:$A45)+2,FALSE)","v":1566},{"$f":"HLOOKUP(W$7,$J$67:$DK$121,ROWS($A$11:$A45)+2,FALSE)","v":334},{"$f":"HLOOKUP(X$7,$J$67:$DK$121,ROWS($A$11:$A45)+2,FALSE)","v":6378},{"$f":"HLOOKUP(Y$7,$J$67:$DK$121,ROWS($A$11:$A45)+2,FALSE)","v":4532},{"$f":"HLOOKUP(Z$7,$J$67:$DK$121,ROWS($A$11:$A45)+2,FALSE)","v":775},{"$f":"HLOOKUP(AA$7,$J$67:$DK$121,ROWS($A$11:$A45)+2,FALSE)","v":1595},{"$f":"HLOOKUP(AB$7,$J$67:$DK$121,ROWS($A$11:$A45)+2,FALSE)","v":1531},{"$f":"HLOOKUP(AC$7,$J$67:$DK$121,ROWS($A$11:$A45)+2,FALSE)","v":919},{"$f":"HLOOKUP(AD$7,$J$67:$DK$121,ROWS($A$11:$A45)+2,FALSE)","v":1259},{"$f":"HLOOKUP(AE$7,$J$67:$DK$121,ROWS($A$11:$A45)+2,FALSE)","v":9005},{"$f":"HLOOKUP(AF$7,$J$67:$DK$121,ROWS($A$11:$A45)+2,FALSE)","v":3710},{"$f":"HLOOKUP(AG$7,$J$67:$DK$121,ROWS($A$11:$A45)+2,FALSE)","v":6161},{"$f":"HLOOKUP(AH$7,$J$67:$DK$121,ROWS($A$11:$A45)+2,FALSE)","v":1523},{"$f":"HLOOKUP(AI$7,$J$67:$DK$121,ROWS($A$11:$A45)+2,FALSE)","v":2377},{"$f":"HLOOKUP(AJ$7,$J$67:$DK$121,ROWS($A$11:$A45)+2,FALSE)","v":2623},{"$f":"HLOOKUP(AK$7,$J$67:$DK$121,ROWS($A$11:$A45)+2,FALSE)","v":244},{"$f":"HLOOKUP(AL$7,$J$67:$DK$121,ROWS($A$11:$A45)+2,FALSE)","v":628},{"$f":"HLOOKUP(AM$7,$J$67:$DK$121,ROWS($A$11:$A45)+2,FALSE)","v":1627},{"$f":"HLOOKUP(AN$7,$J$67:$DK$121,ROWS($A$11:$A45)+2,FALSE)","v":754},{"$f":"HLOOKUP(AO$7,$J$67:$DK$121,ROWS($A$11:$A45)+2,FALSE)","v":11468},{"$f":"HLOOKUP(AP$7,$J$67:$DK$121,ROWS($A$11:$A45)+2,FALSE)","v":1138},{"$f":"HLOOKUP(AQ$7,$J$67:$DK$121,ROWS($A$11:$A45)+2,FALSE)","v":19891},{"$f":"HLOOKUP(AR$7,$J$67:$DK$121,ROWS($A$11:$A45)+2,FALSE)","v":"N/A"},{"$f":"HLOOKUP(AS$7,$J$67:$DK$121,ROWS($A$11:$A45)+2,FALSE)","v":206},{"$f":"HLOOKUP(AT$7,$J$67:$DK$121,ROWS($A$11:$A45)+2,FALSE)","v":9337},{"$f":"HLOOKUP(AU$7,$J$67:$DK$121,ROWS($A$11:$A45)+2,FALSE)","v":1263},{"$f":"HLOOKUP(AV$7,$J$67:$DK$121,ROWS($A$11:$A45)+2,FALSE)","v":1333},{"$f":"HLOOKUP(AW$7,$J$67:$DK$121,ROWS($A$11:$A45)+2,FALSE)","v":12179},{"$f":"HLOOKUP(AX$7,$J$67:$DK$121,ROWS($A$11:$A45)+2,FALSE)","v":290},{"$f":"HLOOKUP(AY$7,$J$67:$DK$121,ROWS($A$11:$A45)+2,FALSE)","v":25532},{"$f":"HLOOKUP(AZ$7,$J$67:$DK$121,ROWS($A$11:$A45)+2,FALSE)","v":351},{"$f":"HLOOKUP(BA$7,$J$67:$DK$121,ROWS($A$11:$A45)+2,FALSE)","v":9230},{"$f":"HLOOKUP(BB$7,$J$67:$DK$121,ROWS($A$11:$A45)+2,FALSE)","v":12638},{"$f":"HLOOKUP(BC$7,$J$67:$DK$121,ROWS($A$11:$A45)+2,FALSE)","v":1189},{"$f":"HLOOKUP(BD$7,$J$67:$DK$121,ROWS($A$11:$A45)+2,FALSE)","v":445},{"$f":"HLOOKUP(BE$7,$J$67:$DK$121,ROWS($A$11:$A45)+2,FALSE)","v":26759},{"$f":"HLOOKUP(BF$7,$J$67:$DK$121,ROWS($A$11:$A45)+2,FALSE)","v":5915},{"$f":"HLOOKUP(BG$7,$J$67:$DK$121,ROWS($A$11:$A45)+2,FALSE)","v":2677},{"$f":"HLOOKUP(BH$7,$J$67:$DK$121,ROWS($A$11:$A45)+2,FALSE)","v":2266},{"$f":"HLOOKUP(BI$7,$J$67:$DK$121,ROWS($A$11:$A45)+2,FALSE)","v":604},{"$f":"HLOOKUP(BJ$7,$J$67:$DK$121,ROWS($A$11:$A45)+2,FALSE)","v":2025},{"$f":"HLOOKUP(BK$7+0.5,$J$67:$DK$121,ROWS($A$11:$A45)+2,FALSE)","v":13136},{"$f":"HLOOKUP(BL$7+0.5,$J$67:$DK$121,ROWS($A$11:$A45)+2,FALSE)","v":1544},{"$f":"HLOOKUP(BM$7+0.5,$J$67:$DK$121,ROWS($A$11:$A45)+2,FALSE)","v":925},{"$f":"HLOOKUP(BN$7+0.5,$J$67:$DK$121,ROWS($A$11:$A45)+2,FALSE)","v":1189},{"$f":"HLOOKUP(BO$7+0.5,$J$67:$DK$121,ROWS($A$11:$A45)+2,FALSE)","v":649},{"$f":"HLOOKUP(BP$7+0.5,$J$67:$DK$121,ROWS($A$11:$A45)+2,FALSE)","v":2813},{"$f":"HLOOKUP(BQ$7+0.5,$J$67:$DK$121,ROWS($A$11:$A45)+2,FALSE)","v":2047},{"$f":"HLOOKUP(BR$7+0.5,$J$67:$DK$121,ROWS($A$11:$A45)+2,FALSE)","v":1990},{"$f":"HLOOKUP(BS$7+0.5,$J$67:$DK$121,ROWS($A$11:$A45)+2,FALSE)","v":1732},{"$f":"HLOOKUP(BT$7+0.5,$J$67:$DK$121,ROWS($A$11:$A45)+2,FALSE)","v":687},{"$f":"HLOOKUP(BU$7+0.5,$J$67:$DK$121,ROWS($A$11:$A45)+2,FALSE)","v":3750},{"$f":"HLOOKUP(BV$7+0.5,$J$67:$DK$121,ROWS($A$11:$A45)+2,FALSE)","v":2851},{"$f":"HLOOKUP(BW$7+0.5,$J$67:$DK$121,ROWS($A$11:$A45)+2,FALSE)","v":921},{"$f":"HLOOKUP(BX$7+0.5,$J$67:$DK$121,ROWS($A$11:$A45)+2,FALSE)","v":256},{"$f":"HLOOKUP(BY$7+0.5,$J$67:$DK$121,ROWS($A$11:$A45)+2,FALSE)","v":2177},{"$f":"HLOOKUP(BZ$7+0.5,$J$67:$DK$121,ROWS($A$11:$A45)+2,FALSE)","v":2259},{"$f":"HLOOKUP(CA$7+0.5,$J$67:$DK$121,ROWS($A$11:$A45)+2,FALSE)","v":524},{"$f":"HLOOKUP(CB$7+0.5,$J$67:$DK$121,ROWS($A$11:$A45)+2,FALSE)","v":748},{"$f":"HLOOKUP(CC$7+0.5,$J$67:$DK$121,ROWS($A$11:$A45)+2,FALSE)","v":794},{"$f":"HLOOKUP(CD$7+0.5,$J$67:$DK$121,ROWS($A$11:$A45)+2,FALSE)","v":758},{"$f":"HLOOKUP(CE$7+0.5,$J$67:$DK$121,ROWS($A$11:$A45)+2,FALSE)","v":972},{"$f":"HLOOKUP(CF$7+0.5,$J$67:$DK$121,ROWS($A$11:$A45)+2,FALSE)","v":2221},{"$f":"HLOOKUP(CG$7+0.5,$J$67:$DK$121,ROWS($A$11:$A45)+2,FALSE)","v":1158},{"$f":"HLOOKUP(CH$7+0.5,$J$67:$DK$121,ROWS($A$11:$A45)+2,FALSE)","v":2547},{"$f":"HLOOKUP(CI$7+0.5,$J$67:$DK$121,ROWS($A$11:$A45)+2,FALSE)","v":838},{"$f":"HLOOKUP(CJ$7+0.5,$J$67:$DK$121,ROWS($A$11:$A45)+2,FALSE)","v":1092},{"$f":"HLOOKUP(CK$7+0.5,$J$67:$DK$121,ROWS($A$11:$A45)+2,FALSE)","v":1742},{"$f":"HLOOKUP(CL$7+0.5,$J$67:$DK$121,ROWS($A$11:$A45)+2,FALSE)","v":306},{"$f":"HLOOKUP(CM$7+0.5,$J$67:$DK$121,ROWS($A$11:$A45)+2,FALSE)","v":628},{"$f":"HLOOKUP(CN$7+0.5,$J$67:$DK$121,ROWS($A$11:$A45)+2,FALSE)","v":807},{"$f":"HLOOKUP(CO$7+0.5,$J$67:$DK$121,ROWS($A$11:$A45)+2,FALSE)","v":525},{"$f":"HLOOKUP(CP$7+0.5,$J$67:$DK$121,ROWS($A$11:$A45)+2,FALSE)","v":4262},{"$f":"HLOOKUP(CQ$7+0.5,$J$67:$DK$121,ROWS($A$11:$A45)+2,FALSE)","v":705},{"$f":"HLOOKUP(CR$7+0.5,$J$67:$DK$121,ROWS($A$11:$A45)+2,FALSE)","v":3951},{"$f":"HLOOKUP(CS$7+0.5,$J$67:$DK$121,ROWS($A$11:$A45)+2,FALSE)","v":"N/A"},{"$f":"HLOOKUP(CT$7+0.5,$J$67:$DK$121,ROWS($A$11:$A45)+2,FALSE)","v":232},{"$f":"HLOOKUP(CU$7+0.5,$J$67:$DK$121,ROWS($A$11:$A45)+2,FALSE)","v":2484},{"$f":"HLOOKUP(CV$7+0.5,$J$67:$DK$121,ROWS($A$11:$A45)+2,FALSE)","v":753},{"$f":"HLOOKUP(CW$7+0.5,$J$67:$DK$121,ROWS($A$11:$A45)+2,FALSE)","v":772},{"$f":"HLOOKUP(CX$7+0.5,$J$67:$DK$121,ROWS($A$11:$A45)+2,FALSE)","v":2356},{"$f":"HLOOKUP(CY$7+0.5,$J$67:$DK$121,ROWS($A$11:$A45)+2,FALSE)","v":198},{"$f":"HLOOKUP(CZ$7+0.5,$J$67:$DK$121,ROWS($A$11:$A45)+2,FALSE)","v":4732},{"$f":"HLOOKUP(DA$7+0.5,$J$67:$DK$121,ROWS($A$11:$A45)+2,FALSE)","v":186},{"$f":"HLOOKUP(DB$7+0.5,$J$67:$DK$121,ROWS($A$11:$A45)+2,FALSE)","v":2122},{"$f":"HLOOKUP(DC$7+0.5,$J$67:$DK$121,ROWS($A$11:$A45)+2,FALSE)","v":2381},{"$f":"HLOOKUP(DD$7+0.5,$J$67:$DK$121,ROWS($A$11:$A45)+2,FALSE)","v":1040},{"$f":"HLOOKUP(DE$7+0.5,$J$67:$DK$121,ROWS($A$11:$A45)+2,FALSE)","v":291},{"$f":"HLOOKUP(DF$7+0.5,$J$67:$DK$121,ROWS($A$11:$A45)+2,FALSE)","v":4229},{"$f":"HLOOKUP(DG$7+0.5,$J$67:$DK$121,ROWS($A$11:$A45)+2,FALSE)","v":2630},{"$f":"HLOOKUP(DH$7+0.5,$J$67:$DK$121,ROWS($A$11:$A45)+2,FALSE)","v":985},{"$f":"HLOOKUP(DI$7+0.5,$J$67:$DK$121,ROWS($A$11:$A45)+2,FALSE)","v":980},{"$f":"HLOOKUP(DJ$7+0.5,$J$67:$DK$121,ROWS($A$11:$A45)+2,FALSE)","v":687},{"$f":"HLOOKUP(DK$7+0.5,$J$67:$DK$121,ROWS($A$11:$A45)+2,FALSE)","v":1218}]
[null,"North Dakota",689838,1379,563978,6361,84294,5380,5.4046867585669442E-3,{"$f":"HLOOKUP(J$7,$J$67:$DK$121,ROWS($A$11:$A46)+2,FALSE)","v":38213},{"$f":"HLOOKUP(K$7,$J$67:$DK$121,ROWS($A$11:$A46)+2,FALSE)","v":83},{"$f":"HLOOKUP(L$7,$J$67:$DK$121,ROWS($A$11:$A46)+2,FALSE)","v":70},{"$f":"HLOOKUP(M$7,$J$67:$DK$121,ROWS($A$11:$A46)+2,FALSE)","v":1571},{"$f":"HLOOKUP(N$7,$J$67:$DK$121,ROWS($A$11:$A46)+2,FALSE)","v":0},{"$f":"HLOOKUP(O$7,$J$67:$DK$121,ROWS($A$11:$A46)+2,FALSE)","v":999},{"$f":"HLOOKUP(P$7,$J$67:$DK$121,ROWS($A$11:$A46)+2,FALSE)","v":546},{"$f":"HLOOKUP(Q$7,$J$67:$DK$121,ROWS($A$11:$A46)+2,FALSE)","v":65},{"$f":"HLOOKUP(R$7,$J$67:$DK$121,ROWS($A$11:$A46)+2,FALSE)","v":0},{"$f":"HLOOKUP(S$7,$J$67:$DK$121,ROWS($A$11:$A46)+2,FALSE)","v":70},{"$f":"HLOOKUP(T$7,$J$67:$DK$121,ROWS($A$11:$A46)+2,FALSE)","v":950},{"$f":"HLOOKUP(U$7,$J$67:$DK$121,ROWS($A$11:$A46)+2,FALSE)","v":98},{"$f":"HLOOKUP(V$7,$J$67:$DK$121,ROWS($A$11:$A46)+2,FALSE)","v":160},{"$f":"HLOOKUP(W$7,$J$67:$DK$121,ROWS($A$11:$A46)+2,FALSE)","v":540},{"$f":"HLOOKUP(X$7,$J$67:$DK$121,ROWS($A$11:$A46)+2,FALSE)","v":799},{"$f":"HLOOKUP(Y$7,$J$67:$DK$121,ROWS($A$11:$A46)+2,FALSE)","v":55},{"$f":"HLOOKUP(Z$7,$J$67:$DK$121,ROWS($A$11:$A46)+2,FALSE)","v":458},{"$f":"HLOOKUP(AA$7,$J$67:$DK$121,ROWS($A$11:$A46)+2,FALSE)","v":161},{"$f":"HLOOKUP(AB$7,$J$67:$DK$121,ROWS($A$11:$A46)+2,FALSE)","v":22},{"$f":"HLOOKUP(AC$7,$J$67:$DK$121,ROWS($A$11:$A46)+2,FALSE)","v":18},{"$f":"HLOOKUP(AD$7,$J$67:$DK$121,ROWS($A$11:$A46)+2,FALSE)","v":98},{"$f":"HLOOKUP(AE$7,$J$67:$DK$121,ROWS($A$11:$A46)+2,FALSE)","v":232},{"$f":"HLOOKUP(AF$7,$J$67:$DK$121,ROWS($A$11:$A46)+2,FALSE)","v":187},{"$f":"HLOOKUP(AG$7,$J$67:$DK$121,ROWS($A$11:$A46)+2,FALSE)","v":757},{"$f":"HLOOKUP(AH$7,$J$67:$DK$121,ROWS($A$11:$A46)+2,FALSE)","v":15257},{"$f":"HLOOKUP(AI$7,$J$67:$DK$121,ROWS($A$11:$A46)+2,FALSE)","v":72},{"$f":"HLOOKUP(AJ$7,$J$67:$DK$121,ROWS($A$11:$A46)+2,FALSE)","v":1490},{"$f":"HLOOKUP(AK$7,$J$67:$DK$121,ROWS($A$11:$A46)+2,FALSE)","v":1776},{"$f":"HLOOKUP(AL$7,$J$67:$DK$121,ROWS($A$11:$A46)+2,FALSE)","v":950},{"$f":"HLOOKUP(AM$7,$J$67:$DK$121,ROWS($A$11:$A46)+2,FALSE)","v":854},{"$f":"HLOOKUP(AN$7,$J$67:$DK$121,ROWS($A$11:$A46)+2,FALSE)","v":0},{"$f":"HLOOKUP(AO$7,$J$67:$DK$121,ROWS($A$11:$A46)+2,FALSE)","v":140},{"$f":"HLOOKUP(AP$7,$J$67:$DK$121,ROWS($A$11:$A46)+2,FALSE)","v":161},{"$f":"HLOOKUP(AQ$7,$J$67:$DK$121,ROWS($A$11:$A46)+2,FALSE)","v":331},{"$f":"HLOOKUP(AR$7,$J$67:$DK$121,ROWS($A$11:$A46)+2,FALSE)","v":231},{"$f":"HLOOKUP(AS$7,$J$67:$DK$121,ROWS($A$11:$A46)+2,FALSE)","v":"N/A"},{"$f":"HLOOKUP(AT$7,$J$67:$DK$121,ROWS($A$11:$A46)+2,FALSE)","v":6},{"$f":"HLOOKUP(AU$7,$J$67:$DK$121,ROWS($A$11:$A46)+2,FALSE)","v":280},{"$f":"HLOOKUP(AV$7,$J$67:$DK$121,ROWS($A$11:$A46)+2,FALSE)","v":724},{"$f":"HLOOKUP(AW$7,$J$67:$DK$121,ROWS($A$11:$A46)+2,FALSE)","v":114},{"$f":"HLOOKUP(AX$7,$J$67:$DK$121,ROWS($A$11:$A46)+2,FALSE)","v":244},{"$f":"HLOOKUP(AY$7,$J$67:$DK$121,ROWS($A$11:$A46)+2,FALSE)","v":14},{"$f":"HLOOKUP(AZ$7,$J$67:$DK$121,ROWS($A$11:$A46)+2,FALSE)","v":1754},{"$f":"HLOOKUP(BA$7,$J$67:$DK$121,ROWS($A$11:$A46)+2,FALSE)","v":746},{"$f":"HLOOKUP(BB$7,$J$67:$DK$121,ROWS($A$11:$A46)+2,FALSE)","v":1414},{"$f":"HLOOKUP(BC$7,$J$67:$DK$121,ROWS($A$11:$A46)+2,FALSE)","v":43},{"$f":"HLOOKUP(BD$7,$J$67:$DK$121,ROWS($A$11:$A46)+2,FALSE)","v":758},{"$f":"HLOOKUP(BE$7,$J$67:$DK$121,ROWS($A$11:$A46)+2,FALSE)","v":403},{"$f":"HLOOKUP(BF$7,$J$67:$DK$121,ROWS($A$11:$A46)+2,FALSE)","v":1604},{"$f":"HLOOKUP(BG$7,$J$67:$DK$121,ROWS($A$11:$A46)+2,FALSE)","v":0},{"$f":"HLOOKUP(BH$7,$J$67:$DK$121,ROWS($A$11:$A46)+2,FALSE)","v":543},{"$f":"HLOOKUP(BI$7,$J$67:$DK$121,ROWS($A$11:$A46)+2,FALSE)","v":365},{"$f":"HLOOKUP(BJ$7,$J$67:$DK$121,ROWS($A$11:$A46)+2,FALSE)","v":0},{"$f":"HLOOKUP(BK$7+0.5,$J$67:$DK$121,ROWS($A$11:$A46)+2,FALSE)","v":3616},{"$f":"HLOOKUP(BL$7+0.5,$J$67:$DK$121,ROWS($A$11:$A46)+2,FALSE)","v":142},{"$f":"HLOOKUP(BM$7+0.5,$J$67:$DK$121,ROWS($A$11:$A46)+2,FALSE)","v":105},{"$f":"HLOOKUP(BN$7+0.5,$J$67:$DK$121,ROWS($A$11:$A46)+2,FALSE)","v":788},{"$f":"HLOOKUP(BO$7+0.5,$J$67:$DK$121,ROWS($A$11:$A46)+2,FALSE)","v":141},{"$f":"HLOOKUP(BP$7+0.5,$J$67:$DK$121,ROWS($A$11:$A46)+2,FALSE)","v":460},{"$f":"HLOOKUP(BQ$7+0.5,$J$67:$DK$121,ROWS($A$11:$A46)+2,FALSE)","v":293},{"$f":"HLOOKUP(BR$7+0.5,$J$67:$DK$121,ROWS($A$11:$A46)+2,FALSE)","v":100},{"$f":"HLOOKUP(BS$7+0.5,$J$67:$DK$121,ROWS($A$11:$A46)+2,FALSE)","v":141},{"$f":"HLOOKUP(BT$7+0.5,$J$67:$DK$121,ROWS($A$11:$A46)+2,FALSE)","v":112},{"$f":"HLOOKUP(BU$7+0.5,$J$67:$DK$121,ROWS($A$11:$A46)+2,FALSE)","v":860},{"$f":"HLOOKUP(BV$7+0.5,$J$67:$DK$121,ROWS($A$11:$A46)+2,FALSE)","v":154},{"$f":"HLOOKUP(BW$7+0.5,$J$67:$DK$121,ROWS($A$11:$A46)+2,FALSE)","v":148},{"$f":"HLOOKUP(BX$7+0.5,$J$67:$DK$121,ROWS($A$11:$A46)+2,FALSE)","v":521},{"$f":"HLOOKUP(BY$7+0.5,$J$67:$DK$121,ROWS($A$11:$A46)+2,FALSE)","v":523},{"$f":"HLOOKUP(BZ$7+0.5,$J$67:$DK$121,ROWS($A$11:$A46)+2,FALSE)","v":77},{"$f":"HLOOKUP(CA$7+0.5,$J$67:$DK$121,ROWS($A$11:$A46)+2,FALSE)","v":316},{"$f":"HLOOKUP(CB$7+0.5,$J$67:$DK$121,ROWS($A$11:$A46)+2,FALSE)","v":122},{"$f":"HLOOKUP(CC$7+0.5,$J$67:$DK$121,ROWS($A$11:$A46)+2,FALSE)","v":44},{"$f":"HLOOKUP(CD$7+0.5,$J$67:$DK$121,ROWS($A$11:$A46)+2,FALSE)","v":27},{"$f":"HLOOKUP(CE$7+0.5,$J$67:$DK$121,ROWS($A$11:$A46)+2,FALSE)","v":176},{"$f":"HLOOKUP(CF$7+0.5,$J$67:$DK$121,ROWS($A$11:$A46)+2,FALSE)","v":311},{"$f":"HLOOKUP(CG$7+0.5,$J$67:$DK$121,ROWS($A$11:$A46)+2,FALSE)","v":281},{"$f":"HLOOKUP(CH$7+0.5,$J$67:$DK$121,ROWS($A$11:$A46)+2,FALSE)","v":571},{"$f":"HLOOKUP(CI$7+0.5,$J$67:$DK$121,ROWS($A$11:$A46)+2,FALSE)","v":2266},{"$f":"HLOOKUP(CJ$7+0.5,$J$67:$DK$121,ROWS($A$11:$A46)+2,FALSE)","v":109},{"$f":"HLOOKUP(CK$7+0.5,$J$67:$DK$121,ROWS($A$11:$A46)+2,FALSE)","v":1346},{"$f":"HLOOKUP(CL$7+0.5,$J$67:$DK$121,ROWS($A$11:$A46)+2,FALSE)","v":709},{"$f":"HLOOKUP(CM$7+0.5,$J$67:$DK$121,ROWS($A$11:$A46)+2,FALSE)","v":764},{"$f":"HLOOKUP(CN$7+0.5,$J$67:$DK$121,ROWS($A$11:$A46)+2,FALSE)","v":572},{"$f":"HLOOKUP(CO$7+0.5,$J$67:$DK$121,ROWS($A$11:$A46)+2,FALSE)","v":141},{"$f":"HLOOKUP(CP$7+0.5,$J$67:$DK$121,ROWS($A$11:$A46)+2,FALSE)","v":231},{"$f":"HLOOKUP(CQ$7+0.5,$J$67:$DK$121,ROWS($A$11:$A46)+2,FALSE)","v":228},{"$f":"HLOOKUP(CR$7+0.5,$J$67:$DK$121,ROWS($A$11:$A46)+2,FALSE)","v":331},{"$f":"HLOOKUP(CS$7+0.5,$J$67:$DK$121,ROWS($A$11:$A46)+2,FALSE)","v":243},{"$f":"HLOOKUP(CT$7+0.5,$J$67:$DK$121,ROWS($A$11:$A46)+2,FALSE)","v":"N/A"},{"$f":"HLOOKUP(CU$7+0.5,$J$67:$DK$121,ROWS($A$11:$A46)+2,FALSE)","v":14},{"$f":"HLOOKUP(CV$7+0.5,$J$67:$DK$121,ROWS($A$11:$A46)+2,FALSE)","v":260},{"$f":"HLOOKUP(CW$7+0.5,$J$67:$DK$121,ROWS($A$11:$A46)+2,FALSE)","v":529},{"$f":"HLOOKUP(CX$7+0.5,$J$67:$DK$121,ROWS($A$11:$A46)+2,FALSE)","v":157},{"$f":"HLOOKUP(CY$7+0.5,$J$67:$DK$121,ROWS($A$11:$A46)+2,FALSE)","v":255},{"$f":"HLOOKUP(CZ$7+0.5,$J$67:$DK$121,ROWS($A$11:$A46)+2,FALSE)","v":28},{"$f":"HLOOKUP(DA$7+0.5,$J$67:$DK$121,ROWS($A$11:$A46)+2,FALSE)","v":822},{"$f":"HLOOKUP(DB$7+0.5,$J$67:$DK$121,ROWS($A$11:$A46)+2,FALSE)","v":694},{"$f":"HLOOKUP(DC$7+0.5,$J$67:$DK$121,ROWS($A$11:$A46)+2,FALSE)","v":756},{"$f":"HLOOKUP(DD$7+0.5,$J$67:$DK$121,ROWS($A$11:$A46)+2,FALSE)","v":60},{"$f":"HLOOKUP(DE$7+0.5,$J$67:$DK$121,ROWS($A$11:$A46)+2,FALSE)","v":1014},{"$f":"HLOOKUP(DF$7+0.5,$J$67:$DK$121,ROWS($A$11:$A46)+2,FALSE)","v":309},{"$f":"HLOOKUP(DG$7+0.5,$J$67:$DK$121,ROWS($A$11:$A46)+2,FALSE)","v":796},{"$f":"HLOOKUP(DH$7+0.5,$J$67:$DK$121,ROWS($A$11:$A46)+2,FALSE)","v":141},{"$f":"HLOOKUP(DI$7+0.5,$J$67:$DK$121,ROWS($A$11:$A46)+2,FALSE)","v":327},{"$f":"HLOOKUP(DJ$7+0.5,$J$67:$DK$121,ROWS($A$11:$A46)+2,FALSE)","v":269},{"$f":"HLOOKUP(DK$7+0.5,$J$67:$DK$121,ROWS($A$11:$A46)+2,FALSE)","v":141}]
[null,"Ohio",11414635,5725,9735390,29715,1440815,28423,2.7776720937945743E-2,{"$f":"HLOOKUP(J$7,$J$67:$DK$121,ROWS($A$11:$A47)+2,FALSE)","v":196391},{"$f":"HLOOKUP(K$7,$J$67:$DK$121,ROWS($A$11:$A47)+2,FALSE)","v":3705},{"$f":"HLOOKUP(L$7,$J$67:$DK$121,ROWS($A$11:$A47)+2,FALSE)","v":2207},{"$f":"HLOOKUP(M$7,$J$67:$DK$121,ROWS($A$11:$A47)+2,FALSE)","v":4929},{"$f":"HLOOKUP(N$7,$J$67:$DK$121,ROWS($A$11:$A47)+2,FALSE)","v":884},{"$f":"HLOOKUP(O$7,$J$67:$DK$121,ROWS($A$11:$A47)+2,FALSE)","v":8995},{"$f":"HLOOKUP(P$7,$J$67:$DK$121,ROWS($A$11:$A47)+2,FALSE)","v":3180},{"$f":"HLOOKUP(Q$7,$J$67:$DK$121,ROWS($A$11:$A47)+2,FALSE)","v":1355},{"$f":"HLOOKUP(R$7,$J$67:$DK$121,ROWS($A$11:$A47)+2,FALSE)","v":1079},{"$f":"HLOOKUP(S$7,$J$67:$DK$121,ROWS($A$11:$A47)+2,FALSE)","v":985},{"$f":"HLOOKUP(T$7,$J$67:$DK$121,ROWS($A$11:$A47)+2,FALSE)","v":16366},{"$f":"HLOOKUP(U$7,$J$67:$DK$121,ROWS($A$11:$A47)+2,FALSE)","v":8052},{"$f":"HLOOKUP(V$7,$J$67:$DK$121,ROWS($A$11:$A47)+2,FALSE)","v":1198},{"$f":"HLOOKUP(W$7,$J$67:$DK$121,ROWS($A$11:$A47)+2,FALSE)","v":412},{"$f":"HLOOKUP(X$7,$J$67:$DK$121,ROWS($A$11:$A47)+2,FALSE)","v":9510},{"$f":"HLOOKUP(Y$7,$J$67:$DK$121,ROWS($A$11:$A47)+2,FALSE)","v":13534},{"$f":"HLOOKUP(Z$7,$J$67:$DK$121,ROWS($A$11:$A47)+2,FALSE)","v":1039},{"$f":"HLOOKUP(AA$7,$J$67:$DK$121,ROWS($A$11:$A47)+2,FALSE)","v":1166},{"$f":"HLOOKUP(AB$7,$J$67:$DK$121,ROWS($A$11:$A47)+2,FALSE)","v":13227},{"$f":"HLOOKUP(AC$7,$J$67:$DK$121,ROWS($A$11:$A47)+2,FALSE)","v":2214},{"$f":"HLOOKUP(AD$7,$J$67:$DK$121,ROWS($A$11:$A47)+2,FALSE)","v":1189},{"$f":"HLOOKUP(AE$7,$J$67:$DK$121,ROWS($A$11:$A47)+2,FALSE)","v":5026},{"$f":"HLOOKUP(AF$7,$J$67:$DK$121,ROWS($A$11:$A47)+2,FALSE)","v":2189},{"$f":"HLOOKUP(AG$7,$J$67:$DK$121,ROWS($A$11:$A47)+2,FALSE)","v":16336},{"$f":"HLOOKUP(AH$7,$J$67:$DK$121,ROWS($A$11:$A47)+2,FALSE)","v":1122},{"$f":"HLOOKUP(AI$7,$J$67:$DK$121,ROWS($A$11:$A47)+2,FALSE)","v":1017},{"$f":"HLOOKUP(AJ$7,$J$67:$DK$121,ROWS($A$11:$A47)+2,FALSE)","v":3026},{"$f":"HLOOKUP(AK$7,$J$67:$DK$121,ROWS($A$11:$A47)+2,FALSE)","v":276},{"$f":"HLOOKUP(AL$7,$J$67:$DK$121,ROWS($A$11:$A47)+2,FALSE)","v":1052},{"$f":"HLOOKUP(AM$7,$J$67:$DK$121,ROWS($A$11:$A47)+2,FALSE)","v":907},{"$f":"HLOOKUP(AN$7,$J$67:$DK$121,ROWS($A$11:$A47)+2,FALSE)","v":189},{"$f":"HLOOKUP(AO$7,$J$67:$DK$121,ROWS($A$11:$A47)+2,FALSE)","v":4703},{"$f":"HLOOKUP(AP$7,$J$67:$DK$121,ROWS($A$11:$A47)+2,FALSE)","v":1361},{"$f":"HLOOKUP(AQ$7,$J$67:$DK$121,ROWS($A$11:$A47)+2,FALSE)","v":8732},{"$f":"HLOOKUP(AR$7,$J$67:$DK$121,ROWS($A$11:$A47)+2,FALSE)","v":5498},{"$f":"HLOOKUP(AS$7,$J$67:$DK$121,ROWS($A$11:$A47)+2,FALSE)","v":453},{"$f":"HLOOKUP(AT$7,$J$67:$DK$121,ROWS($A$11:$A47)+2,FALSE)","v":"N/A"},{"$f":"HLOOKUP(AU$7,$J$67:$DK$121,ROWS($A$11:$A47)+2,FALSE)","v":858},{"$f":"HLOOKUP(AV$7,$J$67:$DK$121,ROWS($A$11:$A47)+2,FALSE)","v":432},{"$f":"HLOOKUP(AW$7,$J$67:$DK$121,ROWS($A$11:$A47)+2,FALSE)","v":14147},{"$f":"HLOOKUP(AX$7,$J$67:$DK$121,ROWS($A$11:$A47)+2,FALSE)","v":435},{"$f":"HLOOKUP(AY$7,$J$67:$DK$121,ROWS($A$11:$A47)+2,FALSE)","v":2445},{"$f":"HLOOKUP(AZ$7,$J$67:$DK$121,ROWS($A$11:$A47)+2,FALSE)","v":47},{"$f":"HLOOKUP(BA$7,$J$67:$DK$121,ROWS($A$11:$A47)+2,FALSE)","v":3542},{"$f":"HLOOKUP(BB$7,$J$67:$DK$121,ROWS($A$11:$A47)+2,FALSE)","v":11760},{"$f":"HLOOKUP(BC$7,$J$67:$DK$121,ROWS($A$11:$A47)+2,FALSE)","v":197},{"$f":"HLOOKUP(BD$7,$J$67:$DK$121,ROWS($A$11:$A47)+2,FALSE)","v":364},{"$f":"HLOOKUP(BE$7,$J$67:$DK$121,ROWS($A$11:$A47)+2,FALSE)","v":3193},{"$f":"HLOOKUP(BF$7,$J$67:$DK$121,ROWS($A$11:$A47)+2,FALSE)","v":2862},{"$f":"HLOOKUP(BG$7,$J$67:$DK$121,ROWS($A$11:$A47)+2,FALSE)","v":7820},{"$f":"HLOOKUP(BH$7,$J$67:$DK$121,ROWS($A$11:$A47)+2,FALSE)","v":974},{"$f":"HLOOKUP(BI$7,$J$67:$DK$121,ROWS($A$11:$A47)+2,FALSE)","v":202},{"$f":"HLOOKUP(BJ$7,$J$67:$DK$121,ROWS($A$11:$A47)+2,FALSE)","v":1403},{"$f":"HLOOKUP(BK$7+0.5,$J$67:$DK$121,ROWS($A$11:$A47)+2,FALSE)","v":9611},{"$f":"HLOOKUP(BL$7+0.5,$J$67:$DK$121,ROWS($A$11:$A47)+2,FALSE)","v":2297},{"$f":"HLOOKUP(BM$7+0.5,$J$67:$DK$121,ROWS($A$11:$A47)+2,FALSE)","v":1757},{"$f":"HLOOKUP(BN$7+0.5,$J$67:$DK$121,ROWS($A$11:$A47)+2,FALSE)","v":1912},{"$f":"HLOOKUP(BO$7+0.5,$J$67:$DK$121,ROWS($A$11:$A47)+2,FALSE)","v":604},{"$f":"HLOOKUP(BP$7+0.5,$J$67:$DK$121,ROWS($A$11:$A47)+2,FALSE)","v":1803},{"$f":"HLOOKUP(BQ$7+0.5,$J$67:$DK$121,ROWS($A$11:$A47)+2,FALSE)","v":1230},{"$f":"HLOOKUP(BR$7+0.5,$J$67:$DK$121,ROWS($A$11:$A47)+2,FALSE)","v":887},{"$f":"HLOOKUP(BS$7+0.5,$J$67:$DK$121,ROWS($A$11:$A47)+2,FALSE)","v":696},{"$f":"HLOOKUP(BT$7+0.5,$J$67:$DK$121,ROWS($A$11:$A47)+2,FALSE)","v":722},{"$f":"HLOOKUP(BU$7+0.5,$J$67:$DK$121,ROWS($A$11:$A47)+2,FALSE)","v":2560},{"$f":"HLOOKUP(BV$7+0.5,$J$67:$DK$121,ROWS($A$11:$A47)+2,FALSE)","v":2973},{"$f":"HLOOKUP(BW$7+0.5,$J$67:$DK$121,ROWS($A$11:$A47)+2,FALSE)","v":591},{"$f":"HLOOKUP(BX$7+0.5,$J$67:$DK$121,ROWS($A$11:$A47)+2,FALSE)","v":295},{"$f":"HLOOKUP(BY$7+0.5,$J$67:$DK$121,ROWS($A$11:$A47)+2,FALSE)","v":2157},{"$f":"HLOOKUP(BZ$7+0.5,$J$67:$DK$121,ROWS($A$11:$A47)+2,FALSE)","v":2157},{"$f":"HLOOKUP(CA$7+0.5,$J$67:$DK$121,ROWS($A$11:$A47)+2,FALSE)","v":765},{"$f":"HLOOKUP(CB$7+0.5,$J$67:$DK$121,ROWS($A$11:$A47)+2,FALSE)","v":617},{"$f":"HLOOKUP(CC$7+0.5,$J$67:$DK$121,ROWS($A$11:$A47)+2,FALSE)","v":2976},{"$f":"HLOOKUP(CD$7+0.5,$J$67:$DK$121,ROWS($A$11:$A47)+2,FALSE)","v":1011},{"$f":"HLOOKUP(CE$7+0.5,$J$67:$DK$121,ROWS($A$11:$A47)+2,FALSE)","v":889},{"$f":"HLOOKUP(CF$7+0.5,$J$67:$DK$121,ROWS($A$11:$A47)+2,FALSE)","v":2570},{"$f":"HLOOKUP(CG$7+0.5,$J$67:$DK$121,ROWS($A$11:$A47)+2,FALSE)","v":808},{"$f":"HLOOKUP(CH$7+0.5,$J$67:$DK$121,ROWS($A$11:$A47)+2,FALSE)","v":2656},{"$f":"HLOOKUP(CI$7+0.5,$J$67:$DK$121,ROWS($A$11:$A47)+2,FALSE)","v":597},{"$f":"HLOOKUP(CJ$7+0.5,$J$67:$DK$121,ROWS($A$11:$A47)+2,FALSE)","v":865},{"$f":"HLOOKUP(CK$7+0.5,$J$67:$DK$121,ROWS($A$11:$A47)+2,FALSE)","v":1068},{"$f":"HLOOKUP(CL$7+0.5,$J$67:$DK$121,ROWS($A$11:$A47)+2,FALSE)","v":292},{"$f":"HLOOKUP(CM$7+0.5,$J$67:$DK$121,ROWS($A$11:$A47)+2,FALSE)","v":656},{"$f":"HLOOKUP(CN$7+0.5,$J$67:$DK$121,ROWS($A$11:$A47)+2,FALSE)","v":525},{"$f":"HLOOKUP(CO$7+0.5,$J$67:$DK$121,ROWS($A$11:$A47)+2,FALSE)","v":156},{"$f":"HLOOKUP(CP$7+0.5,$J$67:$DK$121,ROWS($A$11:$A47)+2,FALSE)","v":2119},{"$f":"HLOOKUP(CQ$7+0.5,$J$67:$DK$121,ROWS($A$11:$A47)+2,FALSE)","v":817},{"$f":"HLOOKUP(CR$7+0.5,$J$67:$DK$121,ROWS($A$11:$A47)+2,FALSE)","v":1741},{"$f":"HLOOKUP(CS$7+0.5,$J$67:$DK$121,ROWS($A$11:$A47)+2,FALSE)","v":1525},{"$f":"HLOOKUP(CT$7+0.5,$J$67:$DK$121,ROWS($A$11:$A47)+2,FALSE)","v":346},{"$f":"HLOOKUP(CU$7+0.5,$J$67:$DK$121,ROWS($A$11:$A47)+2,FALSE)","v":"N/A"},{"$f":"HLOOKUP(CV$7+0.5,$J$67:$DK$121,ROWS($A$11:$A47)+2,FALSE)","v":417},{"$f":"HLOOKUP(CW$7+0.5,$J$67:$DK$121,ROWS($A$11:$A47)+2,FALSE)","v":307},{"$f":"HLOOKUP(CX$7+0.5,$J$67:$DK$121,ROWS($A$11:$A47)+2,FALSE)","v":2612},{"$f":"HLOOKUP(CY$7+0.5,$J$67:$DK$121,ROWS($A$11:$A47)+2,FALSE)","v":384},{"$f":"HLOOKUP(CZ$7+0.5,$J$67:$DK$121,ROWS($A$11:$A47)+2,FALSE)","v":1029},{"$f":"HLOOKUP(DA$7+0.5,$J$67:$DK$121,ROWS($A$11:$A47)+2,FALSE)","v":76},{"$f":"HLOOKUP(DB$7+0.5,$J$67:$DK$121,ROWS($A$11:$A47)+2,FALSE)","v":1429},{"$f":"HLOOKUP(DC$7+0.5,$J$67:$DK$121,ROWS($A$11:$A47)+2,FALSE)","v":2739},{"$f":"HLOOKUP(DD$7+0.5,$J$67:$DK$121,ROWS($A$11:$A47)+2,FALSE)","v":211},{"$f":"HLOOKUP(DE$7+0.5,$J$67:$DK$121,ROWS($A$11:$A47)+2,FALSE)","v":350},{"$f":"HLOOKUP(DF$7+0.5,$J$67:$DK$121,ROWS($A$11:$A47)+2,FALSE)","v":1055},{"$f":"HLOOKUP(DG$7+0.5,$J$67:$DK$121,ROWS($A$11:$A47)+2,FALSE)","v":2150},{"$f":"HLOOKUP(DH$7+0.5,$J$67:$DK$121,ROWS($A$11:$A47)+2,FALSE)","v":2219},{"$f":"HLOOKUP(DI$7+0.5,$J$67:$DK$121,ROWS($A$11:$A47)+2,FALSE)","v":725},{"$f":"HLOOKUP(DJ$7+0.5,$J$67:$DK$121,ROWS($A$11:$A47)+2,FALSE)","v":210},{"$f":"HLOOKUP(DK$7+0.5,$J$67:$DK$121,ROWS($A$11:$A47)+2,FALSE)","v":910}]
[null,"Oklahoma",3762311,2764,3107367,14635,531347,12812,1.5412543518032005E-2,{"$f":"HLOOKUP(J$7,$J$67:$DK$121,ROWS($A$11:$A48)+2,FALSE)","v":108972},{"$f":"HLOOKUP(K$7,$J$67:$DK$121,ROWS($A$11:$A48)+2,FALSE)","v":1030},{"$f":"HLOOKUP(L$7,$J$67:$DK$121,ROWS($A$11:$A48)+2,FALSE)","v":1279},{"$f":"HLOOKUP(M$7,$J$67:$DK$121,ROWS($A$11:$A48)+2,FALSE)","v":2974},{"$f":"HLOOKUP(N$7,$J$67:$DK$121,ROWS($A$11:$A48)+2,FALSE)","v":5777},{"$f":"HLOOKUP(O$7,$J$67:$DK$121,ROWS($A$11:$A48)+2,FALSE)","v":8950},{"$f":"HLOOKUP(P$7,$J$67:$DK$121,ROWS($A$11:$A48)+2,FALSE)","v":4717},{"$f":"HLOOKUP(Q$7,$J$67:$DK$121,ROWS($A$11:$A48)+2,FALSE)","v":0},{"$f":"HLOOKUP(R$7,$J$67:$DK$121,ROWS($A$11:$A48)+2,FALSE)","v":380},{"$f":"HLOOKUP(S$7,$J$67:$DK$121,ROWS($A$11:$A48)+2,FALSE)","v":151},{"$f":"HLOOKUP(T$7,$J$67:$DK$121,ROWS($A$11:$A48)+2,FALSE)","v":5011},{"$f":"HLOOKUP(U$7,$J$67:$DK$121,ROWS($A$11:$A48)+2,FALSE)","v":2581},{"$f":"HLOOKUP(V$7,$J$67:$DK$121,ROWS($A$11:$A48)+2,FALSE)","v":189},{"$f":"HLOOKUP(W$7,$J$67:$DK$121,ROWS($A$11:$A48)+2,FALSE)","v":905},{"$f":"HLOOKUP(X$7,$J$67:$DK$121,ROWS($A$11:$A48)+2,FALSE)","v":1100},{"$f":"HLOOKUP(Y$7,$J$67:$DK$121,ROWS($A$11:$A48)+2,FALSE)","v":1490},{"$f":"HLOOKUP(Z$7,$J$67:$DK$121,ROWS($A$11:$A48)+2,FALSE)","v":1088},{"$f":"HLOOKUP(AA$7,$J$67:$DK$121,ROWS($A$11:$A48)+2,FALSE)","v":7065},{"$f":"HLOOKUP(AB$7,$J$67:$DK$121,ROWS($A$11:$A48)+2,FALSE)","v":1354},{"$f":"HLOOKUP(AC$7,$J$67:$DK$121,ROWS($A$11:$A48)+2,FALSE)","v":2562},{"$f":"HLOOKUP(AD$7,$J$67:$DK$121,ROWS($A$11:$A48)+2,FALSE)","v":167},{"$f":"HLOOKUP(AE$7,$J$67:$DK$121,ROWS($A$11:$A48)+2,FALSE)","v":750},{"$f":"HLOOKUP(AF$7,$J$67:$DK$121,ROWS($A$11:$A48)+2,FALSE)","v":1233},{"$f":"HLOOKUP(AG$7,$J$67:$DK$121,ROWS($A$11:$A48)+2,FALSE)","v":1347},{"$f":"HLOOKUP(AH$7,$J$67:$DK$121,ROWS($A$11:$A48)+2,FALSE)","v":906},{"$f":"HLOOKUP(AI$7,$J$67:$DK$121,ROWS($A$11:$A48)+2,FALSE)","v":1850},{"$f":"HLOOKUP(AJ$7,$J$67:$DK$121,ROWS($A$11:$A48)+2,FALSE)","v":5210},{"$f":"HLOOKUP(AK$7,$J$67:$DK$121,ROWS($A$11:$A48)+2,FALSE)","v":798},{"$f":"HLOOKUP(AL$7,$J$67:$DK$121,ROWS($A$11:$A48)+2,FALSE)","v":300},{"$f":"HLOOKUP(AM$7,$J$67:$DK$121,ROWS($A$11:$A48)+2,FALSE)","v":1101},{"$f":"HLOOKUP(AN$7,$J$67:$DK$121,ROWS($A$11:$A48)+2,FALSE)","v":549},{"$f":"HLOOKUP(AO$7,$J$67:$DK$121,ROWS($A$11:$A48)+2,FALSE)","v":1523},{"$f":"HLOOKUP(AP$7,$J$67:$DK$121,ROWS($A$11:$A48)+2,FALSE)","v":1244},{"$f":"HLOOKUP(AQ$7,$J$67:$DK$121,ROWS($A$11:$A48)+2,FALSE)","v":1981},{"$f":"HLOOKUP(AR$7,$J$67:$DK$121,ROWS($A$11:$A48)+2,FALSE)","v":1961},{"$f":"HLOOKUP(AS$7,$J$67:$DK$121,ROWS($A$11:$A48)+2,FALSE)","v":308},{"$f":"HLOOKUP(AT$7,$J$67:$DK$121,ROWS($A$11:$A48)+2,FALSE)","v":1148},{"$f":"HLOOKUP(AU$7,$J$67:$DK$121,ROWS($A$11:$A48)+2,FALSE)","v":"N/A"},{"$f":"HLOOKUP(AV$7,$J$67:$DK$121,ROWS($A$11:$A48)+2,FALSE)","v":1261},{"$f":"HLOOKUP(AW$7,$J$67:$DK$121,ROWS($A$11:$A48)+2,FALSE)","v":494},{"$f":"HLOOKUP(AX$7,$J$67:$DK$121,ROWS($A$11:$A48)+2,FALSE)","v":0},{"$f":"HLOOKUP(AY$7,$J$67:$DK$121,ROWS($A$11:$A48)+2,FALSE)","v":569},{"$f":"HLOOKUP(AZ$7,$J$67:$DK$121,ROWS($A$11:$A48)+2,FALSE)","v":108},{"$f":"HLOOKUP(BA$7,$J$67:$DK$121,ROWS($A$11:$A48)+2,FALSE)","v":2471},{"$f":"HLOOKUP(BB$7,$J$67:$DK$121,ROWS($A$11:$A48)+2,FALSE)","v":25508},{"$f":"HLOOKUP(BC$7,$J$67:$DK$121,ROWS($A$11:$A48)+2,FALSE)","v":2588},{"$f":"HLOOKUP(BD$7,$J$67:$DK$121,ROWS($A$11:$A48)+2,FALSE)","v":197},{"$f":"HLOOKUP(BE$7,$J$67:$DK$121,ROWS($A$11:$A48)+2,FALSE)","v":1749},{"$f":"HLOOKUP(BF$7,$J$67:$DK$121,ROWS($A$11:$A48)+2,FALSE)","v":1574},{"$f":"HLOOKUP(BG$7,$J$67:$DK$121,ROWS($A$11:$A48)+2,FALSE)","v":368},{"$f":"HLOOKUP(BH$7,$J$67:$DK$121,ROWS($A$11:$A48)+2,FALSE)","v":1061},{"$f":"HLOOKUP(BI$7,$J$67:$DK$121,ROWS($A$11:$A48)+2,FALSE)","v":45},{"$f":"HLOOKUP(BJ$7,$J$67:$DK$121,ROWS($A$11:$A48)+2,FALSE)","v":0},{"$f":"HLOOKUP(BK$7+0.5,$J$67:$DK$121,ROWS($A$11:$A48)+2,FALSE)","v":6570},{"$f":"HLOOKUP(BL$7+0.5,$J$67:$DK$121,ROWS($A$11:$A48)+2,FALSE)","v":467},{"$f":"HLOOKUP(BM$7+0.5,$J$67:$DK$121,ROWS($A$11:$A48)+2,FALSE)","v":600},{"$f":"HLOOKUP(BN$7+0.5,$J$67:$DK$121,ROWS($A$11:$A48)+2,FALSE)","v":1435},{"$f":"HLOOKUP(BO$7+0.5,$J$67:$DK$121,ROWS($A$11:$A48)+2,FALSE)","v":1187},{"$f":"HLOOKUP(BP$7+0.5,$J$67:$DK$121,ROWS($A$11:$A48)+2,FALSE)","v":2184},{"$f":"HLOOKUP(BQ$7+0.5,$J$67:$DK$121,ROWS($A$11:$A48)+2,FALSE)","v":1556},{"$f":"HLOOKUP(BR$7+0.5,$J$67:$DK$121,ROWS($A$11:$A48)+2,FALSE)","v":149},{"$f":"HLOOKUP(BS$7+0.5,$J$67:$DK$121,ROWS($A$11:$A48)+2,FALSE)","v":288},{"$f":"HLOOKUP(BT$7+0.5,$J$67:$DK$121,ROWS($A$11:$A48)+2,FALSE)","v":148},{"$f":"HLOOKUP(BU$7+0.5,$J$67:$DK$121,ROWS($A$11:$A48)+2,FALSE)","v":1525},{"$f":"HLOOKUP(BV$7+0.5,$J$67:$DK$121,ROWS($A$11:$A48)+2,FALSE)","v":935},{"$f":"HLOOKUP(BW$7+0.5,$J$67:$DK$121,ROWS($A$11:$A48)+2,FALSE)","v":295},{"$f":"HLOOKUP(BX$7+0.5,$J$67:$DK$121,ROWS($A$11:$A48)+2,FALSE)","v":600},{"$f":"HLOOKUP(BY$7+0.5,$J$67:$DK$121,ROWS($A$11:$A48)+2,FALSE)","v":487},{"$f":"HLOOKUP(BZ$7+0.5,$J$67:$DK$121,ROWS($A$11:$A48)+2,FALSE)","v":936},{"$f":"HLOOKUP(CA$7+0.5,$J$67:$DK$121,ROWS($A$11:$A48)+2,FALSE)","v":689},{"$f":"HLOOKUP(CB$7+0.5,$J$67:$DK$121,ROWS($A$11:$A48)+2,FALSE)","v":1535},{"$f":"HLOOKUP(CC$7+0.5,$J$67:$DK$121,ROWS($A$11:$A48)+2,FALSE)","v":898},{"$f":"HLOOKUP(CD$7+0.5,$J$67:$DK$121,ROWS($A$11:$A48)+2,FALSE)","v":1354},{"$f":"HLOOKUP(CE$7+0.5,$J$67:$DK$121,ROWS($A$11:$A48)+2,FALSE)","v":260},{"$f":"HLOOKUP(CF$7+0.5,$J$67:$DK$121,ROWS($A$11:$A48)+2,FALSE)","v":685},{"$f":"HLOOKUP(CG$7+0.5,$J$67:$DK$121,ROWS($A$11:$A48)+2,FALSE)","v":906},{"$f":"HLOOKUP(CH$7+0.5,$J$67:$DK$121,ROWS($A$11:$A48)+2,FALSE)","v":671},{"$f":"HLOOKUP(CI$7+0.5,$J$67:$DK$121,ROWS($A$11:$A48)+2,FALSE)","v":469},{"$f":"HLOOKUP(CJ$7+0.5,$J$67:$DK$121,ROWS($A$11:$A48)+2,FALSE)","v":752},{"$f":"HLOOKUP(CK$7+0.5,$J$67:$DK$121,ROWS($A$11:$A48)+2,FALSE)","v":1349},{"$f":"HLOOKUP(CL$7+0.5,$J$67:$DK$121,ROWS($A$11:$A48)+2,FALSE)","v":710},{"$f":"HLOOKUP(CM$7+0.5,$J$67:$DK$121,ROWS($A$11:$A48)+2,FALSE)","v":208},{"$f":"HLOOKUP(CN$7+0.5,$J$67:$DK$121,ROWS($A$11:$A48)+2,FALSE)","v":799},{"$f":"HLOOKUP(CO$7+0.5,$J$67:$DK$121,ROWS($A$11:$A48)+2,FALSE)","v":383},{"$f":"HLOOKUP(CP$7+0.5,$J$67:$DK$121,ROWS($A$11:$A48)+2,FALSE)","v":748},{"$f":"HLOOKUP(CQ$7+0.5,$J$67:$DK$121,ROWS($A$11:$A48)+2,FALSE)","v":712},{"$f":"HLOOKUP(CR$7+0.5,$J$67:$DK$121,ROWS($A$11:$A48)+2,FALSE)","v":936},{"$f":"HLOOKUP(CS$7+0.5,$J$67:$DK$121,ROWS($A$11:$A48)+2,FALSE)","v":912},{"$f":"HLOOKUP(CT$7+0.5,$J$67:$DK$121,ROWS($A$11:$A48)+2,FALSE)","v":340},{"$f":"HLOOKUP(CU$7+0.5,$J$67:$DK$121,ROWS($A$11:$A48)+2,FALSE)","v":533},{"$f":"HLOOKUP(CV$7+0.5,$J$67:$DK$121,ROWS($A$11:$A48)+2,FALSE)","v":"N/A"},{"$f":"HLOOKUP(CW$7+0.5,$J$67:$DK$121,ROWS($A$11:$A48)+2,FALSE)","v":771},{"$f":"HLOOKUP(CX$7+0.5,$J$67:$DK$121,ROWS($A$11:$A48)+2,FALSE)","v":285},{"$f":"HLOOKUP(CY$7+0.5,$J$67:$DK$121,ROWS($A$11:$A48)+2,FALSE)","v":149},{"$f":"HLOOKUP(CZ$7+0.5,$J$67:$DK$121,ROWS($A$11:$A48)+2,FALSE)","v":346},{"$f":"HLOOKUP(DA$7+0.5,$J$67:$DK$121,ROWS($A$11:$A48)+2,FALSE)","v":154},{"$f":"HLOOKUP(DB$7+0.5,$J$67:$DK$121,ROWS($A$11:$A48)+2,FALSE)","v":1035},{"$f":"HLOOKUP(DC$7+0.5,$J$67:$DK$121,ROWS($A$11:$A48)+2,FALSE)","v":2960},{"$f":"HLOOKUP(DD$7+0.5,$J$67:$DK$121,ROWS($A$11:$A48)+2,FALSE)","v":1465},{"$f":"HLOOKUP(DE$7+0.5,$J$67:$DK$121,ROWS($A$11:$A48)+2,FALSE)","v":316},{"$f":"HLOOKUP(DF$7+0.5,$J$67:$DK$121,ROWS($A$11:$A48)+2,FALSE)","v":829},{"$f":"HLOOKUP(DG$7+0.5,$J$67:$DK$121,ROWS($A$11:$A48)+2,FALSE)","v":575},{"$f":"HLOOKUP(DH$7+0.5,$J$67:$DK$121,ROWS($A$11:$A48)+2,FALSE)","v":298},{"$f":"HLOOKUP(DI$7+0.5,$J$67:$DK$121,ROWS($A$11:$A48)+2,FALSE)","v":758},{"$f":"HLOOKUP(DJ$7+0.5,$J$67:$DK$121,ROWS($A$11:$A48)+2,FALSE)","v":68},{"$f":"HLOOKUP(DK$7+0.5,$J$67:$DK$121,ROWS($A$11:$A48)+2,FALSE)","v":149}]
[null,"Oregon",3857465,2984,3158450,19251,560673,17729,1.6820254174301254E-2,{"$f":"HLOOKUP(J$7,$J$67:$DK$121,ROWS($A$11:$A49)+2,FALSE)","v":118925},{"$f":"HLOOKUP(K$7,$J$67:$DK$121,ROWS($A$11:$A49)+2,FALSE)","v":373},{"$f":"HLOOKUP(L$7,$J$67:$DK$121,ROWS($A$11:$A49)+2,FALSE)","v":2513},{"$f":"HLOOKUP(M$7,$J$67:$DK$121,ROWS($A$11:$A49)+2,FALSE)","v":7954},{"$f":"HLOOKUP(N$7,$J$67:$DK$121,ROWS($A$11:$A49)+2,FALSE)","v":165},{"$f":"HLOOKUP(O$7,$J$67:$DK$121,ROWS($A$11:$A49)+2,FALSE)","v":31862},{"$f":"HLOOKUP(P$7,$J$67:$DK$121,ROWS($A$11:$A49)+2,FALSE)","v":4472},{"$f":"HLOOKUP(Q$7,$J$67:$DK$121,ROWS($A$11:$A49)+2,FALSE)","v":381},{"$f":"HLOOKUP(R$7,$J$67:$DK$121,ROWS($A$11:$A49)+2,FALSE)","v":0},{"$f":"HLOOKUP(S$7,$J$67:$DK$121,ROWS($A$11:$A49)+2,FALSE)","v":696},{"$f":"HLOOKUP(T$7,$J$67:$DK$121,ROWS($A$11:$A49)+2,FALSE)","v":1660},{"$f":"HLOOKUP(U$7,$J$67:$DK$121,ROWS($A$11:$A49)+2,FALSE)","v":1032},{"$f":"HLOOKUP(V$7,$J$67:$DK$121,ROWS($A$11:$A49)+2,FALSE)","v":2501},{"$f":"HLOOKUP(W$7,$J$67:$DK$121,ROWS($A$11:$A49)+2,FALSE)","v":5093},{"$f":"HLOOKUP(X$7,$J$67:$DK$121,ROWS($A$11:$A49)+2,FALSE)","v":1676},{"$f":"HLOOKUP(Y$7,$J$67:$DK$121,ROWS($A$11:$A49)+2,FALSE)","v":1380},{"$f":"HLOOKUP(Z$7,$J$67:$DK$121,ROWS($A$11:$A49)+2,FALSE)","v":834},{"$f":"HLOOKUP(AA$7,$J$67:$DK$121,ROWS($A$11:$A49)+2,FALSE)","v":556},{"$f":"HLOOKUP(AB$7,$J$67:$DK$121,ROWS($A$11:$A49)+2,FALSE)","v":202},{"$f":"HLOOKUP(AC$7,$J$67:$DK$121,ROWS($A$11:$A49)+2,FALSE)","v":227},{"$f":"HLOOKUP(AD$7,$J$67:$DK$121,ROWS($A$11:$A49)+2,FALSE)","v":446},{"$f":"HLOOKUP(AE$7,$J$67:$DK$121,ROWS($A$11:$A49)+2,FALSE)","v":457},{"$f":"HLOOKUP(AF$7,$J$67:$DK$121,ROWS($A$11:$A49)+2,FALSE)","v":760},{"$f":"HLOOKUP(AG$7,$J$67:$DK$121,ROWS($A$11:$A49)+2,FALSE)","v":570},{"$f":"HLOOKUP(AH$7,$J$67:$DK$121,ROWS($A$11:$A49)+2,FALSE)","v":1792},{"$f":"HLOOKUP(AI$7,$J$67:$DK$121,ROWS($A$11:$A49)+2,FALSE)","v":186},{"$f":"HLOOKUP(AJ$7,$J$67:$DK$121,ROWS($A$11:$A49)+2,FALSE)","v":403},{"$f":"HLOOKUP(AK$7,$J$67:$DK$121,ROWS($A$11:$A49)+2,FALSE)","v":2192},{"$f":"HLOOKUP(AL$7,$J$67:$DK$121,ROWS($A$11:$A49)+2,FALSE)","v":570},{"$f":"HLOOKUP(AM$7,$J$67:$DK$121,ROWS($A$11:$A49)+2,FALSE)","v":5935},{"$f":"HLOOKUP(AN$7,$J$67:$DK$121,ROWS($A$11:$A49)+2,FALSE)","v":39},{"$f":"HLOOKUP(AO$7,$J$67:$DK$121,ROWS($A$11:$A49)+2,FALSE)","v":385},{"$f":"HLOOKUP(AP$7,$J$67:$DK$121,ROWS($A$11:$A49)+2,FALSE)","v":920},{"$f":"HLOOKUP(AQ$7,$J$67:$DK$121,ROWS($A$11:$A49)+2,FALSE)","v":2379},{"$f":"HLOOKUP(AR$7,$J$67:$DK$121,ROWS($A$11:$A49)+2,FALSE)","v":1482},{"$f":"HLOOKUP(AS$7,$J$67:$DK$121,ROWS($A$11:$A49)+2,FALSE)","v":42},{"$f":"HLOOKUP(AT$7,$J$67:$DK$121,ROWS($A$11:$A49)+2,FALSE)","v":1411},{"$f":"HLOOKUP(AU$7,$J$67:$DK$121,ROWS($A$11:$A49)+2,FALSE)","v":725},{"$f":"HLOOKUP(AV$7,$J$67:$DK$121,ROWS($A$11:$A49)+2,FALSE)","v":"N/A"},{"$f":"HLOOKUP(AW$7,$J$67:$DK$121,ROWS($A$11:$A49)+2,FALSE)","v":904},{"$f":"HLOOKUP(AX$7,$J$67:$DK$121,ROWS($A$11:$A49)+2,FALSE)","v":177},{"$f":"HLOOKUP(AY$7,$J$67:$DK$121,ROWS($A$11:$A49)+2,FALSE)","v":461},{"$f":"HLOOKUP(AZ$7,$J$67:$DK$121,ROWS($A$11:$A49)+2,FALSE)","v":119},{"$f":"HLOOKUP(BA$7,$J$67:$DK$121,ROWS($A$11:$A49)+2,FALSE)","v":802},{"$f":"HLOOKUP(BB$7,$J$67:$DK$121,ROWS($A$11:$A49)+2,FALSE)","v":3347},{"$f":"HLOOKUP(BC$7,$J$67:$DK$121,ROWS($A$11:$A49)+2,FALSE)","v":4793},{"$f":"HLOOKUP(BD$7,$J$67:$DK$121,ROWS($A$11:$A49)+2,FALSE)","v":367},{"$f":"HLOOKUP(BE$7,$J$67:$DK$121,ROWS($A$11:$A49)+2,FALSE)","v":676},{"$f":"HLOOKUP(BF$7,$J$67:$DK$121,ROWS($A$11:$A49)+2,FALSE)","v":21224},{"$f":"HLOOKUP(BG$7,$J$67:$DK$121,ROWS($A$11:$A49)+2,FALSE)","v":593},{"$f":"HLOOKUP(BH$7,$J$67:$DK$121,ROWS($A$11:$A49)+2,FALSE)","v":426},{"$f":"HLOOKUP(BI$7,$J$67:$DK$121,ROWS($A$11:$A49)+2,FALSE)","v":765},{"$f":"HLOOKUP(BJ$7,$J$67:$DK$121,ROWS($A$11:$A49)+2,FALSE)","v":152},{"$f":"HLOOKUP(BK$7+0.5,$J$67:$DK$121,ROWS($A$11:$A49)+2,FALSE)","v":7769},{"$f":"HLOOKUP(BL$7+0.5,$J$67:$DK$121,ROWS($A$11:$A49)+2,FALSE)","v":425},{"$f":"HLOOKUP(BM$7+0.5,$J$67:$DK$121,ROWS($A$11:$A49)+2,FALSE)","v":953},{"$f":"HLOOKUP(BN$7+0.5,$J$67:$DK$121,ROWS($A$11:$A49)+2,FALSE)","v":2060},{"$f":"HLOOKUP(BO$7+0.5,$J$67:$DK$121,ROWS($A$11:$A49)+2,FALSE)","v":158},{"$f":"HLOOKUP(BP$7+0.5,$J$67:$DK$121,ROWS($A$11:$A49)+2,FALSE)","v":3767},{"$f":"HLOOKUP(BQ$7+0.5,$J$67:$DK$121,ROWS($A$11:$A49)+2,FALSE)","v":2133},{"$f":"HLOOKUP(BR$7+0.5,$J$67:$DK$121,ROWS($A$11:$A49)+2,FALSE)","v":457},{"$f":"HLOOKUP(BS$7+0.5,$J$67:$DK$121,ROWS($A$11:$A49)+2,FALSE)","v":193},{"$f":"HLOOKUP(BT$7+0.5,$J$67:$DK$121,ROWS($A$11:$A49)+2,FALSE)","v":919},{"$f":"HLOOKUP(BU$7+0.5,$J$67:$DK$121,ROWS($A$11:$A49)+2,FALSE)","v":620},{"$f":"HLOOKUP(BV$7+0.5,$J$67:$DK$121,ROWS($A$11:$A49)+2,FALSE)","v":523},{"$f":"HLOOKUP(BW$7+0.5,$J$67:$DK$121,ROWS($A$11:$A49)+2,FALSE)","v":813},{"$f":"HLOOKUP(BX$7+0.5,$J$67:$DK$121,ROWS($A$11:$A49)+2,FALSE)","v":1880},{"$f":"HLOOKUP(BY$7+0.5,$J$67:$DK$121,ROWS($A$11:$A49)+2,FALSE)","v":1192},{"$f":"HLOOKUP(BZ$7+0.5,$J$67:$DK$121,ROWS($A$11:$A49)+2,FALSE)","v":1000},{"$f":"HLOOKUP(CA$7+0.5,$J$67:$DK$121,ROWS($A$11:$A49)+2,FALSE)","v":781},{"$f":"HLOOKUP(CB$7+0.5,$J$67:$DK$121,ROWS($A$11:$A49)+2,FALSE)","v":534},{"$f":"HLOOKUP(CC$7+0.5,$J$67:$DK$121,ROWS($A$11:$A49)+2,FALSE)","v":261},{"$f":"HLOOKUP(CD$7+0.5,$J$67:$DK$121,ROWS($A$11:$A49)+2,FALSE)","v":229},{"$f":"HLOOKUP(CE$7+0.5,$J$67:$DK$121,ROWS($A$11:$A49)+2,FALSE)","v":353},{"$f":"HLOOKUP(CF$7+0.5,$J$67:$DK$121,ROWS($A$11:$A49)+2,FALSE)","v":422},{"$f":"HLOOKUP(CG$7+0.5,$J$67:$DK$121,ROWS($A$11:$A49)+2,FALSE)","v":604},{"$f":"HLOOKUP(CH$7+0.5,$J$67:$DK$121,ROWS($A$11:$A49)+2,FALSE)","v":338},{"$f":"HLOOKUP(CI$7+0.5,$J$67:$DK$121,ROWS($A$11:$A49)+2,FALSE)","v":799},{"$f":"HLOOKUP(CJ$7+0.5,$J$67:$DK$121,ROWS($A$11:$A49)+2,FALSE)","v":237},{"$f":"HLOOKUP(CK$7+0.5,$J$67:$DK$121,ROWS($A$11:$A49)+2,FALSE)","v":269},{"$f":"HLOOKUP(CL$7+0.5,$J$67:$DK$121,ROWS($A$11:$A49)+2,FALSE)","v":968},{"$f":"HLOOKUP(CM$7+0.5,$J$67:$DK$121,ROWS($A$11:$A49)+2,FALSE)","v":448},{"$f":"HLOOKUP(CN$7+0.5,$J$67:$DK$121,ROWS($A$11:$A49)+2,FALSE)","v":2774},{"$f":"HLOOKUP(CO$7+0.5,$J$67:$DK$121,ROWS($A$11:$A49)+2,FALSE)","v":65},{"$f":"HLOOKUP(CP$7+0.5,$J$67:$DK$121,ROWS($A$11:$A49)+2,FALSE)","v":327},{"$f":"HLOOKUP(CQ$7+0.5,$J$67:$DK$121,ROWS($A$11:$A49)+2,FALSE)","v":676},{"$f":"HLOOKUP(CR$7+0.5,$J$67:$DK$121,ROWS($A$11:$A49)+2,FALSE)","v":1032},{"$f":"HLOOKUP(CS$7+0.5,$J$67:$DK$121,ROWS($A$11:$A49)+2,FALSE)","v":1046},{"$f":"HLOOKUP(CT$7+0.5,$J$67:$DK$121,ROWS($A$11:$A49)+2,FALSE)","v":85},{"$f":"HLOOKUP(CU$7+0.5,$J$67:$DK$121,ROWS($A$11:$A49)+2,FALSE)","v":789},{"$f":"HLOOKUP(CV$7+0.5,$J$67:$DK$121,ROWS($A$11:$A49)+2,FALSE)","v":546},{"$f":"HLOOKUP(CW$7+0.5,$J$67:$DK$121,ROWS($A$11:$A49)+2,FALSE)","v":"N/A"},{"$f":"HLOOKUP(CX$7+0.5,$J$67:$DK$121,ROWS($A$11:$A49)+2,FALSE)","v":535},{"$f":"HLOOKUP(CY$7+0.5,$J$67:$DK$121,ROWS($A$11:$A49)+2,FALSE)","v":214},{"$f":"HLOOKUP(CZ$7+0.5,$J$67:$DK$121,ROWS($A$11:$A49)+2,FALSE)","v":364},{"$f":"HLOOKUP(DA$7+0.5,$J$67:$DK$121,ROWS($A$11:$A49)+2,FALSE)","v":143},{"$f":"HLOOKUP(DB$7+0.5,$J$67:$DK$121,ROWS($A$11:$A49)+2,FALSE)","v":583},{"$f":"HLOOKUP(DC$7+0.5,$J$67:$DK$121,ROWS($A$11:$A49)+2,FALSE)","v":1277},{"$f":"HLOOKUP(DD$7+0.5,$J$67:$DK$121,ROWS($A$11:$A49)+2,FALSE)","v":2328},{"$f":"HLOOKUP(DE$7+0.5,$J$67:$DK$121,ROWS($A$11:$A49)+2,FALSE)","v":435},{"$f":"HLOOKUP(DF$7+0.5,$J$67:$DK$121,ROWS($A$11:$A49)+2,FALSE)","v":510},{"$f":"HLOOKUP(DG$7+0.5,$J$67:$DK$121,ROWS($A$11:$A49)+2,FALSE)","v":3153},{"$f":"HLOOKUP(DH$7+0.5,$J$67:$DK$121,ROWS($A$11:$A49)+2,FALSE)","v":502},{"$f":"HLOOKUP(DI$7+0.5,$J$67:$DK$121,ROWS($A$11:$A49)+2,FALSE)","v":284},{"$f":"HLOOKUP(DJ$7+0.5,$J$67:$DK$121,ROWS($A$11:$A49)+2,FALSE)","v":664},{"$f":"HLOOKUP(DK$7+0.5,$J$67:$DK$121,ROWS($A$11:$A49)+2,FALSE)","v":177}]
[null,"Pennsylvania",12630082,4558,11107110,28998,1252378,26347,3.0479417906764096E-2,{"$f":"HLOOKUP(J$7,$J$67:$DK$121,ROWS($A$11:$A50)+2,FALSE)","v":215500},{"$f":"HLOOKUP(K$7,$J$67:$DK$121,ROWS($A$11:$A50)+2,FALSE)","v":1926},{"$f":"HLOOKUP(L$7,$J$67:$DK$121,ROWS($A$11:$A50)+2,FALSE)","v":1658},{"$f":"HLOOKUP(M$7,$J$67:$DK$121,ROWS($A$11:$A50)+2,FALSE)","v":3529},{"$f":"HLOOKUP(N$7,$J$67:$DK$121,ROWS($A$11:$A50)+2,FALSE)","v":573},{"$f":"HLOOKUP(O$7,$J$67:$DK$121,ROWS($A$11:$A50)+2,FALSE)","v":7772},{"$f":"HLOOKUP(P$7,$J$67:$DK$121,ROWS($A$11:$A50)+2,FALSE)","v":2574},{"$f":"HLOOKUP(Q$7,$J$67:$DK$121,ROWS($A$11:$A50)+2,FALSE)","v":3311},{"$f":"HLOOKUP(R$7,$J$67:$DK$121,ROWS($A$11:$A50)+2,FALSE)","v":4814},{"$f":"HLOOKUP(S$7,$J$67:$DK$121,ROWS($A$11:$A50)+2,FALSE)","v":2921},{"$f":"HLOOKUP(T$7,$J$67:$DK$121,ROWS($A$11:$A50)+2,FALSE)","v":14631},{"$f":"HLOOKUP(U$7,$J$67:$DK$121,ROWS($A$11:$A50)+2,FALSE)","v":4337},{"$f":"HLOOKUP(V$7,$J$67:$DK$121,ROWS($A$11:$A50)+2,FALSE)","v":245},{"$f":"HLOOKUP(W$7,$J$67:$DK$121,ROWS($A$11:$A50)+2,FALSE)","v":359},{"$f":"HLOOKUP(X$7,$J$67:$DK$121,ROWS($A$11:$A50)+2,FALSE)","v":3749},{"$f":"HLOOKUP(Y$7,$J$67:$DK$121,ROWS($A$11:$A50)+2,FALSE)","v":1599},{"$f":"HLOOKUP(Z$7,$J$67:$DK$121,ROWS($A$11:$A50)+2,FALSE)","v":125},{"$f":"HLOOKUP(AA$7,$J$67:$DK$121,ROWS($A$11:$A50)+2,FALSE)","v":967},{"$f":"HLOOKUP(AB$7,$J$67:$DK$121,ROWS($A$11:$A50)+2,FALSE)","v":1233},{"$f":"HLOOKUP(AC$7,$J$67:$DK$121,ROWS($A$11:$A50)+2,FALSE)","v":694},{"$f":"HLOOKUP(AD$7,$J$67:$DK$121,ROWS($A$11:$A50)+2,FALSE)","v":988},{"$f":"HLOOKUP(AE$7,$J$67:$DK$121,ROWS($A$11:$A50)+2,FALSE)","v":17529},{"$f":"HLOOKUP(AF$7,$J$67:$DK$121,ROWS($A$11:$A50)+2,FALSE)","v":5900},{"$f":"HLOOKUP(AG$7,$J$67:$DK$121,ROWS($A$11:$A50)+2,FALSE)","v":2642},{"$f":"HLOOKUP(AH$7,$J$67:$DK$121,ROWS($A$11:$A50)+2,FALSE)","v":1169},{"$f":"HLOOKUP(AI$7,$J$67:$DK$121,ROWS($A$11:$A50)+2,FALSE)","v":55},{"$f":"HLOOKUP(AJ$7,$J$67:$DK$121,ROWS($A$11:$A50)+2,FALSE)","v":1171},{"$f":"HLOOKUP(AK$7,$J$67:$DK$121,ROWS($A$11:$A50)+2,FALSE)","v":135},{"$f":"HLOOKUP(AL$7,$J$67:$DK$121,ROWS($A$11:$A50)+2,FALSE)","v":214},{"$f":"HLOOKUP(AM$7,$J$67:$DK$121,ROWS($A$11:$A50)+2,FALSE)","v":1600},{"$f":"HLOOKUP(AN$7,$J$67:$DK$121,ROWS($A$11:$A50)+2,FALSE)","v":1138},{"$f":"HLOOKUP(AO$7,$J$67:$DK$121,ROWS($A$11:$A50)+2,FALSE)","v":33791},{"$f":"HLOOKUP(AP$7,$J$67:$DK$121,ROWS($A$11:$A50)+2,FALSE)","v":1001},{"$f":"HLOOKUP(AQ$7,$J$67:$DK$121,ROWS($A$11:$A50)+2,FALSE)","v":32898},{"$f":"HLOOKUP(AR$7,$J$67:$DK$121,ROWS($A$11:$A50)+2,FALSE)","v":6380},{"$f":"HLOOKUP(AS$7,$J$67:$DK$121,ROWS($A$11:$A50)+2,FALSE)","v":166},{"$f":"HLOOKUP(AT$7,$J$67:$DK$121,ROWS($A$11:$A50)+2,FALSE)","v":14319},{"$f":"HLOOKUP(AU$7,$J$67:$DK$121,ROWS($A$11:$A50)+2,FALSE)","v":378},{"$f":"HLOOKUP(AV$7,$J$67:$DK$121,ROWS($A$11:$A50)+2,FALSE)","v":234},{"$f":"HLOOKUP(AW$7,$J$67:$DK$121,ROWS($A$11:$A50)+2,FALSE)","v":"N/A"},{"$f":"HLOOKUP(AX$7,$J$67:$DK$121,ROWS($A$11:$A50)+2,FALSE)","v":771},{"$f":"HLOOKUP(AY$7,$J$67:$DK$121,ROWS($A$11:$A50)+2,FALSE)","v":3023},{"$f":"HLOOKUP(AZ$7,$J$67:$DK$121,ROWS($A$11:$A50)+2,FALSE)","v":159},{"$f":"HLOOKUP(BA$7,$J$67:$DK$121,ROWS($A$11:$A50)+2,FALSE)","v":1273},{"$f":"HLOOKUP(BB$7,$J$67:$DK$121,ROWS($A$11:$A50)+2,FALSE)","v":6768},{"$f":"HLOOKUP(BC$7,$J$67:$DK$121,ROWS($A$11:$A50)+2,FALSE)","v":1276},{"$f":"HLOOKUP(BD$7,$J$67:$DK$121,ROWS($A$11:$A50)+2,FALSE)","v":1012},{"$f":"HLOOKUP(BE$7,$J$67:$DK$121,ROWS($A$11:$A50)+2,FALSE)","v":11960},{"$f":"HLOOKUP(BF$7,$J$67:$DK$121,ROWS($A$11:$A50)+2,FALSE)","v":1787},{"$f":"HLOOKUP(BG$7,$J$67:$DK$121,ROWS($A$11:$A50)+2,FALSE)","v":6762},{"$f":"HLOOKUP(BH$7,$J$67:$DK$121,ROWS($A$11:$A50)+2,FALSE)","v":1550},{"$f":"HLOOKUP(BI$7,$J$67:$DK$121,ROWS($A$11:$A50)+2,FALSE)","v":434},{"$f":"HLOOKUP(BJ$7,$J$67:$DK$121,ROWS($A$11:$A50)+2,FALSE)","v":7847},{"$f":"HLOOKUP(BK$7+0.5,$J$67:$DK$121,ROWS($A$11:$A50)+2,FALSE)","v":8872},{"$f":"HLOOKUP(BL$7+0.5,$J$67:$DK$121,ROWS($A$11:$A50)+2,FALSE)","v":1318},{"$f":"HLOOKUP(BM$7+0.5,$J$67:$DK$121,ROWS($A$11:$A50)+2,FALSE)","v":857},{"$f":"HLOOKUP(BN$7+0.5,$J$67:$DK$121,ROWS($A$11:$A50)+2,FALSE)","v":1256},{"$f":"HLOOKUP(BO$7+0.5,$J$67:$DK$121,ROWS($A$11:$A50)+2,FALSE)","v":315},{"$f":"HLOOKUP(BP$7+0.5,$J$67:$DK$121,ROWS($A$11:$A50)+2,FALSE)","v":1558},{"$f":"HLOOKUP(BQ$7+0.5,$J$67:$DK$121,ROWS($A$11:$A50)+2,FALSE)","v":1488},{"$f":"HLOOKUP(BR$7+0.5,$J$67:$DK$121,ROWS($A$11:$A50)+2,FALSE)","v":905},{"$f":"HLOOKUP(BS$7+0.5,$J$67:$DK$121,ROWS($A$11:$A50)+2,FALSE)","v":1468},{"$f":"HLOOKUP(BT$7+0.5,$J$67:$DK$121,ROWS($A$11:$A50)+2,FALSE)","v":830},{"$f":"HLOOKUP(BU$7+0.5,$J$67:$DK$121,ROWS($A$11:$A50)+2,FALSE)","v":2565},{"$f":"HLOOKUP(BV$7+0.5,$J$67:$DK$121,ROWS($A$11:$A50)+2,FALSE)","v":1703},{"$f":"HLOOKUP(BW$7+0.5,$J$67:$DK$121,ROWS($A$11:$A50)+2,FALSE)","v":180},{"$f":"HLOOKUP(BX$7+0.5,$J$67:$DK$121,ROWS($A$11:$A50)+2,FALSE)","v":350},{"$f":"HLOOKUP(BY$7+0.5,$J$67:$DK$121,ROWS($A$11:$A50)+2,FALSE)","v":1137},{"$f":"HLOOKUP(BZ$7+0.5,$J$67:$DK$121,ROWS($A$11:$A50)+2,FALSE)","v":680},{"$f":"HLOOKUP(CA$7+0.5,$J$67:$DK$121,ROWS($A$11:$A50)+2,FALSE)","v":177},{"$f":"HLOOKUP(CB$7+0.5,$J$67:$DK$121,ROWS($A$11:$A50)+2,FALSE)","v":860},{"$f":"HLOOKUP(CC$7+0.5,$J$67:$DK$121,ROWS($A$11:$A50)+2,FALSE)","v":604},{"$f":"HLOOKUP(CD$7+0.5,$J$67:$DK$121,ROWS($A$11:$A50)+2,FALSE)","v":431},{"$f":"HLOOKUP(CE$7+0.5,$J$67:$DK$121,ROWS($A$11:$A50)+2,FALSE)","v":675},{"$f":"HLOOKUP(CF$7+0.5,$J$67:$DK$121,ROWS($A$11:$A50)+2,FALSE)","v":3084},{"$f":"HLOOKUP(CG$7+0.5,$J$67:$DK$121,ROWS($A$11:$A50)+2,FALSE)","v":1368},{"$f":"HLOOKUP(CH$7+0.5,$J$67:$DK$121,ROWS($A$11:$A50)+2,FALSE)","v":1235},{"$f":"HLOOKUP(CI$7+0.5,$J$67:$DK$121,ROWS($A$11:$A50)+2,FALSE)","v":588},{"$f":"HLOOKUP(CJ$7+0.5,$J$67:$DK$121,ROWS($A$11:$A50)+2,FALSE)","v":49},{"$f":"HLOOKUP(CK$7+0.5,$J$67:$DK$121,ROWS($A$11:$A50)+2,FALSE)","v":575},{"$f":"HLOOKUP(CL$7+0.5,$J$67:$DK$121,ROWS($A$11:$A50)+2,FALSE)","v":169},{"$f":"HLOOKUP(CM$7+0.5,$J$67:$DK$121,ROWS($A$11:$A50)+2,FALSE)","v":187},{"$f":"HLOOKUP(CN$7+0.5,$J$67:$DK$121,ROWS($A$11:$A50)+2,FALSE)","v":999},{"$f":"HLOOKUP(CO$7+0.5,$J$67:$DK$121,ROWS($A$11:$A50)+2,FALSE)","v":609},{"$f":"HLOOKUP(CP$7+0.5,$J$67:$DK$121,ROWS($A$11:$A50)+2,FALSE)","v":4576},{"$f":"HLOOKUP(CQ$7+0.5,$J$67:$DK$121,ROWS($A$11:$A50)+2,FALSE)","v":740},{"$f":"HLOOKUP(CR$7+0.5,$J$67:$DK$121,ROWS($A$11:$A50)+2,FALSE)","v":4482},{"$f":"HLOOKUP(CS$7+0.5,$J$67:$DK$121,ROWS($A$11:$A50)+2,FALSE)","v":1734},{"$f":"HLOOKUP(CT$7+0.5,$J$67:$DK$121,ROWS($A$11:$A50)+2,FALSE)","v":195},{"$f":"HLOOKUP(CU$7+0.5,$J$67:$DK$121,ROWS($A$11:$A50)+2,FALSE)","v":2479},{"$f":"HLOOKUP(CV$7+0.5,$J$67:$DK$121,ROWS($A$11:$A50)+2,FALSE)","v":253},{"$f":"HLOOKUP(CW$7+0.5,$J$67:$DK$121,ROWS($A$11:$A50)+2,FALSE)","v":220},{"$f":"HLOOKUP(CX$7+0.5,$J$67:$DK$121,ROWS($A$11:$A50)+2,FALSE)","v":"N/A"},{"$f":"HLOOKUP(CY$7+0.5,$J$67:$DK$121,ROWS($A$11:$A50)+2,FALSE)","v":472},{"$f":"HLOOKUP(CZ$7+0.5,$J$67:$DK$121,ROWS($A$11:$A50)+2,FALSE)","v":869},{"$f":"HLOOKUP(DA$7+0.5,$J$67:$DK$121,ROWS($A$11:$A50)+2,FALSE)","v":206},{"$f":"HLOOKUP(DB$7+0.5,$J$67:$DK$121,ROWS($A$11:$A50)+2,FALSE)","v":533},{"$f":"HLOOKUP(DC$7+0.5,$J$67:$DK$121,ROWS($A$11:$A50)+2,FALSE)","v":1688},{"$f":"HLOOKUP(DD$7+0.5,$J$67:$DK$121,ROWS($A$11:$A50)+2,FALSE)","v":804},{"$f":"HLOOKUP(DE$7+0.5,$J$67:$DK$121,ROWS($A$11:$A50)+2,FALSE)","v":873},{"$f":"HLOOKUP(DF$7+0.5,$J$67:$DK$121,ROWS($A$11:$A50)+2,FALSE)","v":2213},{"$f":"HLOOKUP(DG$7+0.5,$J$67:$DK$121,ROWS($A$11:$A50)+2,FALSE)","v":1202},{"$f":"HLOOKUP(DH$7+0.5,$J$67:$DK$121,ROWS($A$11:$A50)+2,FALSE)","v":2075},{"$f":"HLOOKUP(DI$7+0.5,$J$67:$DK$121,ROWS($A$11:$A50)+2,FALSE)","v":722},{"$f":"HLOOKUP(DJ$7+0.5,$J$67:$DK$121,ROWS($A$11:$A50)+2,FALSE)","v":439},{"$f":"HLOOKUP(DK$7+0.5,$J$67:$DK$121,ROWS($A$11:$A50)+2,FALSE)","v":2646}]
[null,"Rhode Island",1040527,1533,899551,9890,101165,8498,4.7304622334553691E-3,{"$f":"HLOOKUP(J$7,$J$67:$DK$121,ROWS($A$11:$A51)+2,FALSE)","v":33446},{"$f":"HLOOKUP(K$7,$J$67:$DK$121,ROWS($A$11:$A51)+2,FALSE)","v":20},{"$f":"HLOOKUP(L$7,$J$67:$DK$121,ROWS($A$11:$A51)+2,FALSE)","v":0},{"$f":"HLOOKUP(M$7,$J$67:$DK$121,ROWS($A$11:$A51)+2,FALSE)","v":93},{"$f":"HLOOKUP(N$7,$J$67:$DK$121,ROWS($A$11:$A51)+2,FALSE)","v":0},{"$f":"HLOOKUP(O$7,$J$67:$DK$121,ROWS($A$11:$A51)+2,FALSE)","v":2146},{"$f":"HLOOKUP(P$7,$J$67:$DK$121,ROWS($A$11:$A51)+2,FALSE)","v":332},{"$f":"HLOOKUP(Q$7,$J$67:$DK$121,ROWS($A$11:$A51)+2,FALSE)","v":4170},{"$f":"HLOOKUP(R$7,$J$67:$DK$121,ROWS($A$11:$A51)+2,FALSE)","v":0},{"$f":"HLOOKUP(S$7,$J$67:$DK$121,ROWS($A$11:$A51)+2,FALSE)","v":313},{"$f":"HLOOKUP(T$7,$J$67:$DK$121,ROWS($A$11:$A51)+2,FALSE)","v":2752},{"$f":"HLOOKUP(U$7,$J$67:$DK$121,ROWS($A$11:$A51)+2,FALSE)","v":168},{"$f":"HLOOKUP(V$7,$J$67:$DK$121,ROWS($A$11:$A51)+2,FALSE)","v":120},{"$f":"HLOOKUP(W$7,$J$67:$DK$121,ROWS($A$11:$A51)+2,FALSE)","v":0},{"$f":"HLOOKUP(X$7,$J$67:$DK$121,ROWS($A$11:$A51)+2,FALSE)","v":385},{"$f":"HLOOKUP(Y$7,$J$67:$DK$121,ROWS($A$11:$A51)+2,FALSE)","v":0},{"$f":"HLOOKUP(Z$7,$J$67:$DK$121,ROWS($A$11:$A51)+2,FALSE)","v":0},{"$f":"HLOOKUP(AA$7,$J$67:$DK$121,ROWS($A$11:$A51)+2,FALSE)","v":27},{"$f":"HLOOKUP(AB$7,$J$67:$DK$121,ROWS($A$11:$A51)+2,FALSE)","v":286},{"$f":"HLOOKUP(AC$7,$J$67:$DK$121,ROWS($A$11:$A51)+2,FALSE)","v":24},{"$f":"HLOOKUP(AD$7,$J$67:$DK$121,ROWS($A$11:$A51)+2,FALSE)","v":279},{"$f":"HLOOKUP(AE$7,$J$67:$DK$121,ROWS($A$11:$A51)+2,FALSE)","v":482},{"$f":"HLOOKUP(AF$7,$J$67:$DK$121,ROWS($A$11:$A51)+2,FALSE)","v":11253},{"$f":"HLOOKUP(AG$7,$J$67:$DK$121,ROWS($A$11:$A51)+2,FALSE)","v":230},{"$f":"HLOOKUP(AH$7,$J$67:$DK$121,ROWS($A$11:$A51)+2,FALSE)","v":131},{"$f":"HLOOKUP(AI$7,$J$67:$DK$121,ROWS($A$11:$A51)+2,FALSE)","v":0},{"$f":"HLOOKUP(AJ$7,$J$67:$DK$121,ROWS($A$11:$A51)+2,FALSE)","v":210},{"$f":"HLOOKUP(AK$7,$J$67:$DK$121,ROWS($A$11:$A51)+2,FALSE)","v":0},{"$f":"HLOOKUP(AL$7,$J$67:$DK$121,ROWS($A$11:$A51)+2,FALSE)","v":188},{"$f":"HLOOKUP(AM$7,$J$67:$DK$121,ROWS($A$11:$A51)+2,FALSE)","v":25},{"$f":"HLOOKUP(AN$7,$J$67:$DK$121,ROWS($A$11:$A51)+2,FALSE)","v":611},{"$f":"HLOOKUP(AO$7,$J$67:$DK$121,ROWS($A$11:$A51)+2,FALSE)","v":1219},{"$f":"HLOOKUP(AP$7,$J$67:$DK$121,ROWS($A$11:$A51)+2,FALSE)","v":36},{"$f":"HLOOKUP(AQ$7,$J$67:$DK$121,ROWS($A$11:$A51)+2,FALSE)","v":3603},{"$f":"HLOOKUP(AR$7,$J$67:$DK$121,ROWS($A$11:$A51)+2,FALSE)","v":478},{"$f":"HLOOKUP(AS$7,$J$67:$DK$121,ROWS($A$11:$A51)+2,FALSE)","v":0},{"$f":"HLOOKUP(AT$7,$J$67:$DK$121,ROWS($A$11:$A51)+2,FALSE)","v":63},{"$f":"HLOOKUP(AU$7,$J$67:$DK$121,ROWS($A$11:$A51)+2,FALSE)","v":0},{"$f":"HLOOKUP(AV$7,$J$67:$DK$121,ROWS($A$11:$A51)+2,FALSE)","v":139},{"$f":"HLOOKUP(AW$7,$J$67:$DK$121,ROWS($A$11:$A51)+2,FALSE)","v":735},{"$f":"HLOOKUP(AX$7,$J$67:$DK$121,ROWS($A$11:$A51)+2,FALSE)","v":"N/A"},{"$f":"HLOOKUP(AY$7,$J$67:$DK$121,ROWS($A$11:$A51)+2,FALSE)","v":481},{"$f":"HLOOKUP(AZ$7,$J$67:$DK$121,ROWS($A$11:$A51)+2,FALSE)","v":0},{"$f":"HLOOKUP(BA$7,$J$67:$DK$121,ROWS($A$11:$A51)+2,FALSE)","v":120},{"$f":"HLOOKUP(BB$7,$J$67:$DK$121,ROWS($A$11:$A51)+2,FALSE)","v":823},{"$f":"HLOOKUP(BC$7,$J$67:$DK$121,ROWS($A$11:$A51)+2,FALSE)","v":0},{"$f":"HLOOKUP(BD$7,$J$67:$DK$121,ROWS($A$11:$A51)+2,FALSE)","v":53},{"$f":"HLOOKUP(BE$7,$J$67:$DK$121,ROWS($A$11:$A51)+2,FALSE)","v":1008},{"$f":"HLOOKUP(BF$7,$J$67:$DK$121,ROWS($A$11:$A51)+2,FALSE)","v":287},{"$f":"HLOOKUP(BG$7,$J$67:$DK$121,ROWS($A$11:$A51)+2,FALSE)","v":0},{"$f":"HLOOKUP(BH$7,$J$67:$DK$121,ROWS($A$11:$A51)+2,FALSE)","v":135},{"$f":"HLOOKUP(BI$7,$J$67:$DK$121,ROWS($A$11:$A51)+2,FALSE)","v":21},{"$f":"HLOOKUP(BJ$7,$J$67:$DK$121,ROWS($A$11:$A51)+2,FALSE)","v":116},{"$f":"HLOOKUP(BK$7+0.5,$J$67:$DK$121,ROWS($A$11:$A51)+2,FALSE)","v":3551},{"$f":"HLOOKUP(BL$7+0.5,$J$67:$DK$121,ROWS($A$11:$A51)+2,FALSE)","v":44},{"$f":"HLOOKUP(BM$7+0.5,$J$67:$DK$121,ROWS($A$11:$A51)+2,FALSE)","v":200},{"$f":"HLOOKUP(BN$7+0.5,$J$67:$DK$121,ROWS($A$11:$A51)+2,FALSE)","v":151},{"$f":"HLOOKUP(BO$7+0.5,$J$67:$DK$121,ROWS($A$11:$A51)+2,FALSE)","v":200},{"$f":"HLOOKUP(BP$7+0.5,$J$67:$DK$121,ROWS($A$11:$A51)+2,FALSE)","v":811},{"$f":"HLOOKUP(BQ$7+0.5,$J$67:$DK$121,ROWS($A$11:$A51)+2,FALSE)","v":315},{"$f":"HLOOKUP(BR$7+0.5,$J$67:$DK$121,ROWS($A$11:$A51)+2,FALSE)","v":1101},{"$f":"HLOOKUP(BS$7+0.5,$J$67:$DK$121,ROWS($A$11:$A51)+2,FALSE)","v":200},{"$f":"HLOOKUP(BT$7+0.5,$J$67:$DK$121,ROWS($A$11:$A51)+2,FALSE)","v":381},{"$f":"HLOOKUP(BU$7+0.5,$J$67:$DK$121,ROWS($A$11:$A51)+2,FALSE)","v":1143},{"$f":"HLOOKUP(BV$7+0.5,$J$67:$DK$121,ROWS($A$11:$A51)+2,FALSE)","v":211},{"$f":"HLOOKUP(BW$7+0.5,$J$67:$DK$121,ROWS($A$11:$A51)+2,FALSE)","v":145},{"$f":"HLOOKUP(BX$7+0.5,$J$67:$DK$121,ROWS($A$11:$A51)+2,FALSE)","v":200},{"$f":"HLOOKUP(BY$7+0.5,$J$67:$DK$121,ROWS($A$11:$A51)+2,FALSE)","v":382},{"$f":"HLOOKUP(BZ$7+0.5,$J$67:$DK$121,ROWS($A$11:$A51)+2,FALSE)","v":200},{"$f":"HLOOKUP(CA$7+0.5,$J$67:$DK$121,ROWS($A$11:$A51)+2,FALSE)","v":200},{"$f":"HLOOKUP(CB$7+0.5,$J$67:$DK$121,ROWS($A$11:$A51)+2,FALSE)","v":47},{"$f":"HLOOKUP(CC$7+0.5,$J$67:$DK$121,ROWS($A$11:$A51)+2,FALSE)","v":405},{"$f":"HLOOKUP(CD$7+0.5,$J$67:$DK$121,ROWS($A$11:$A51)+2,FALSE)","v":45},{"$f":"HLOOKUP(CE$7+0.5,$J$67:$DK$121,ROWS($A$11:$A51)+2,FALSE)","v":249},{"$f":"HLOOKUP(CF$7+0.5,$J$67:$DK$121,ROWS($A$11:$A51)+2,FALSE)","v":325},{"$f":"HLOOKUP(CG$7+0.5,$J$67:$DK$121,ROWS($A$11:$A51)+2,FALSE)","v":1937},{"$f":"HLOOKUP(CH$7+0.5,$J$67:$DK$121,ROWS($A$11:$A51)+2,FALSE)","v":169},{"$f":"HLOOKUP(CI$7+0.5,$J$67:$DK$121,ROWS($A$11:$A51)+2,FALSE)","v":131},{"$f":"HLOOKUP(CJ$7+0.5,$J$67:$DK$121,ROWS($A$11:$A51)+2,FALSE)","v":200},{"$f":"HLOOKUP(CK$7+0.5,$J$67:$DK$121,ROWS($A$11:$A51)+2,FALSE)","v":158},{"$f":"HLOOKUP(CL$7+0.5,$J$67:$DK$121,ROWS($A$11:$A51)+2,FALSE)","v":200},{"$f":"HLOOKUP(CM$7+0.5,$J$67:$DK$121,ROWS($A$11:$A51)+2,FALSE)","v":250},{"$f":"HLOOKUP(CN$7+0.5,$J$67:$DK$121,ROWS($A$11:$A51)+2,FALSE)","v":48},{"$f":"HLOOKUP(CO$7+0.5,$J$67:$DK$121,ROWS($A$11:$A51)+2,FALSE)","v":385},{"$f":"HLOOKUP(CP$7+0.5,$J$67:$DK$121,ROWS($A$11:$A51)+2,FALSE)","v":641},{"$f":"HLOOKUP(CQ$7+0.5,$J$67:$DK$121,ROWS($A$11:$A51)+2,FALSE)","v":58},{"$f":"HLOOKUP(CR$7+0.5,$J$67:$DK$121,ROWS($A$11:$A51)+2,FALSE)","v":1335},{"$f":"HLOOKUP(CS$7+0.5,$J$67:$DK$121,ROWS($A$11:$A51)+2,FALSE)","v":508},{"$f":"HLOOKUP(CT$7+0.5,$J$67:$DK$121,ROWS($A$11:$A51)+2,FALSE)","v":200},{"$f":"HLOOKUP(CU$7+0.5,$J$67:$DK$121,ROWS($A$11:$A51)+2,FALSE)","v":80},{"$f":"HLOOKUP(CV$7+0.5,$J$67:$DK$121,ROWS($A$11:$A51)+2,FALSE)","v":200},{"$f":"HLOOKUP(CW$7+0.5,$J$67:$DK$121,ROWS($A$11:$A51)+2,FALSE)","v":235},{"$f":"HLOOKUP(CX$7+0.5,$J$67:$DK$121,ROWS($A$11:$A51)+2,FALSE)","v":552},{"$f":"HLOOKUP(CY$7+0.5,$J$67:$DK$121,ROWS($A$11:$A51)+2,FALSE)","v":"N/A"},{"$f":"HLOOKUP(CZ$7+0.5,$J$67:$DK$121,ROWS($A$11:$A51)+2,FALSE)","v":609},{"$f":"HLOOKUP(DA$7+0.5,$J$67:$DK$121,ROWS($A$11:$A51)+2,FALSE)","v":200},{"$f":"HLOOKUP(DB$7+0.5,$J$67:$DK$121,ROWS($A$11:$A51)+2,FALSE)","v":199},{"$f":"HLOOKUP(DC$7+0.5,$J$67:$DK$121,ROWS($A$11:$A51)+2,FALSE)","v":433},{"$f":"HLOOKUP(DD$7+0.5,$J$67:$DK$121,ROWS($A$11:$A51)+2,FALSE)","v":200},{"$f":"HLOOKUP(DE$7+0.5,$J$67:$DK$121,ROWS($A$11:$A51)+2,FALSE)","v":76},{"$f":"HLOOKUP(DF$7+0.5,$J$67:$DK$121,ROWS($A$11:$A51)+2,FALSE)","v":569},{"$f":"HLOOKUP(DG$7+0.5,$J$67:$DK$121,ROWS($A$11:$A51)+2,FALSE)","v":320},{"$f":"HLOOKUP(DH$7+0.5,$J$67:$DK$121,ROWS($A$11:$A51)+2,FALSE)","v":200},{"$f":"HLOOKUP(DI$7+0.5,$J$67:$DK$121,ROWS($A$11:$A51)+2,FALSE)","v":124},{"$f":"HLOOKUP(DJ$7+0.5,$J$67:$DK$121,ROWS($A$11:$A51)+2,FALSE)","v":32},{"$f":"HLOOKUP(DK$7+0.5,$J$67:$DK$121,ROWS($A$11:$A51)+2,FALSE)","v":186}]
[null,"South Carolina",4668886,3434,3929626,20572,564350,20053,2.2163699225426766E-2,{"$f":"HLOOKUP(J$7,$J$67:$DK$121,ROWS($A$11:$A52)+2,FALSE)","v":156705},{"$f":"HLOOKUP(K$7,$J$67:$DK$121,ROWS($A$11:$A52)+2,FALSE)","v":1665},{"$f":"HLOOKUP(L$7,$J$67:$DK$121,ROWS($A$11:$A52)+2,FALSE)","v":1244},{"$f":"HLOOKUP(M$7,$J$67:$DK$121,ROWS($A$11:$A52)+2,FALSE)","v":2222},{"$f":"HLOOKUP(N$7,$J$67:$DK$121,ROWS($A$11:$A52)+2,FALSE)","v":839},{"$f":"HLOOKUP(O$7,$J$67:$DK$121,ROWS($A$11:$A52)+2,FALSE)","v":5979},{"$f":"HLOOKUP(P$7,$J$67:$DK$121,ROWS($A$11:$A52)+2,FALSE)","v":1915},{"$f":"HLOOKUP(Q$7,$J$67:$DK$121,ROWS($A$11:$A52)+2,FALSE)","v":1590},{"$f":"HLOOKUP(R$7,$J$67:$DK$121,ROWS($A$11:$A52)+2,FALSE)","v":697},{"$f":"HLOOKUP(S$7,$J$67:$DK$121,ROWS($A$11:$A52)+2,FALSE)","v":435},{"$f":"HLOOKUP(T$7,$J$67:$DK$121,ROWS($A$11:$A52)+2,FALSE)","v":11552},{"$f":"HLOOKUP(U$7,$J$67:$DK$121,ROWS($A$11:$A52)+2,FALSE)","v":18570},{"$f":"HLOOKUP(V$7,$J$67:$DK$121,ROWS($A$11:$A52)+2,FALSE)","v":638},{"$f":"HLOOKUP(W$7,$J$67:$DK$121,ROWS($A$11:$A52)+2,FALSE)","v":198},{"$f":"HLOOKUP(X$7,$J$67:$DK$121,ROWS($A$11:$A52)+2,FALSE)","v":2125},{"$f":"HLOOKUP(Y$7,$J$67:$DK$121,ROWS($A$11:$A52)+2,FALSE)","v":3802},{"$f":"HLOOKUP(Z$7,$J$67:$DK$121,ROWS($A$11:$A52)+2,FALSE)","v":643},{"$f":"HLOOKUP(AA$7,$J$67:$DK$121,ROWS($A$11:$A52)+2,FALSE)","v":1064},{"$f":"HLOOKUP(AB$7,$J$67:$DK$121,ROWS($A$11:$A52)+2,FALSE)","v":1924},{"$f":"HLOOKUP(AC$7,$J$67:$DK$121,ROWS($A$11:$A52)+2,FALSE)","v":2709},{"$f":"HLOOKUP(AD$7,$J$67:$DK$121,ROWS($A$11:$A52)+2,FALSE)","v":2077},{"$f":"HLOOKUP(AE$7,$J$67:$DK$121,ROWS($A$11:$A52)+2,FALSE)","v":3565},{"$f":"HLOOKUP(AF$7,$J$67:$DK$121,ROWS($A$11:$A52)+2,FALSE)","v":2313},{"$f":"HLOOKUP(AG$7,$J$67:$DK$121,ROWS($A$11:$A52)+2,FALSE)","v":2966},{"$f":"HLOOKUP(AH$7,$J$67:$DK$121,ROWS($A$11:$A52)+2,FALSE)","v":757},{"$f":"HLOOKUP(AI$7,$J$67:$DK$121,ROWS($A$11:$A52)+2,FALSE)","v":1407},{"$f":"HLOOKUP(AJ$7,$J$67:$DK$121,ROWS($A$11:$A52)+2,FALSE)","v":1884},{"$f":"HLOOKUP(AK$7,$J$67:$DK$121,ROWS($A$11:$A52)+2,FALSE)","v":93},{"$f":"HLOOKUP(AL$7,$J$67:$DK$121,ROWS($A$11:$A52)+2,FALSE)","v":158},{"$f":"HLOOKUP(AM$7,$J$67:$DK$121,ROWS($A$11:$A52)+2,FALSE)","v":1025},{"$f":"HLOOKUP(AN$7,$J$67:$DK$121,ROWS($A$11:$A52)+2,FALSE)","v":917},{"$f":"HLOOKUP(AO$7,$J$67:$DK$121,ROWS($A$11:$A52)+2,FALSE)","v":6517},{"$f":"HLOOKUP(AP$7,$J$67:$DK$121,ROWS($A$11:$A52)+2,FALSE)","v":1052},{"$f":"HLOOKUP(AQ$7,$J$67:$DK$121,ROWS($A$11:$A52)+2,FALSE)","v":10746},{"$f":"HLOOKUP(AR$7,$J$67:$DK$121,ROWS($A$11:$A52)+2,FALSE)","v":24764},{"$f":"HLOOKUP(AS$7,$J$67:$DK$121,ROWS($A$11:$A52)+2,FALSE)","v":656},{"$f":"HLOOKUP(AT$7,$J$67:$DK$121,ROWS($A$11:$A52)+2,FALSE)","v":4388},{"$f":"HLOOKUP(AU$7,$J$67:$DK$121,ROWS($A$11:$A52)+2,FALSE)","v":555},{"$f":"HLOOKUP(AV$7,$J$67:$DK$121,ROWS($A$11:$A52)+2,FALSE)","v":255},{"$f":"HLOOKUP(AW$7,$J$67:$DK$121,ROWS($A$11:$A52)+2,FALSE)","v":6497},{"$f":"HLOOKUP(AX$7,$J$67:$DK$121,ROWS($A$11:$A52)+2,FALSE)","v":538},{"$f":"HLOOKUP(AY$7,$J$67:$DK$121,ROWS($A$11:$A52)+2,FALSE)","v":"N/A"},{"$f":"HLOOKUP(AZ$7,$J$67:$DK$121,ROWS($A$11:$A52)+2,FALSE)","v":816},{"$f":"HLOOKUP(BA$7,$J$67:$DK$121,ROWS($A$11:$A52)+2,FALSE)","v":3550},{"$f":"HLOOKUP(BB$7,$J$67:$DK$121,ROWS($A$11:$A52)+2,FALSE)","v":5351},{"$f":"HLOOKUP(BC$7,$J$67:$DK$121,ROWS($A$11:$A52)+2,FALSE)","v":566},{"$f":"HLOOKUP(BD$7,$J$67:$DK$121,ROWS($A$11:$A52)+2,FALSE)","v":298},{"$f":"HLOOKUP(BE$7,$J$67:$DK$121,ROWS($A$11:$A52)+2,FALSE)","v":9377},{"$f":"HLOOKUP(BF$7,$J$67:$DK$121,ROWS($A$11:$A52)+2,FALSE)","v":1629},{"$f":"HLOOKUP(BG$7,$J$67:$DK$121,ROWS($A$11:$A52)+2,FALSE)","v":1345},{"$f":"HLOOKUP(BH$7,$J$67:$DK$121,ROWS($A$11:$A52)+2,FALSE)","v":832},{"$f":"HLOOKUP(BI$7,$J$67:$DK$121,ROWS($A$11:$A52)+2,FALSE)","v":0},{"$f":"HLOOKUP(BJ$7,$J$67:$DK$121,ROWS($A$11:$A52)+2,FALSE)","v":1070},{"$f":"HLOOKUP(BK$7+0.5,$J$67:$DK$121,ROWS($A$11:$A52)+2,FALSE)","v":9611},{"$f":"HLOOKUP(BL$7+0.5,$J$67:$DK$121,ROWS($A$11:$A52)+2,FALSE)","v":635},{"$f":"HLOOKUP(BM$7+0.5,$J$67:$DK$121,ROWS($A$11:$A52)+2,FALSE)","v":1016},{"$f":"HLOOKUP(BN$7+0.5,$J$67:$DK$121,ROWS($A$11:$A52)+2,FALSE)","v":1160},{"$f":"HLOOKUP(BO$7+0.5,$J$67:$DK$121,ROWS($A$11:$A52)+2,FALSE)","v":526},{"$f":"HLOOKUP(BP$7+0.5,$J$67:$DK$121,ROWS($A$11:$A52)+2,FALSE)","v":1473},{"$f":"HLOOKUP(BQ$7+0.5,$J$67:$DK$121,ROWS($A$11:$A52)+2,FALSE)","v":1059},{"$f":"HLOOKUP(BR$7+0.5,$J$67:$DK$121,ROWS($A$11:$A52)+2,FALSE)","v":729},{"$f":"HLOOKUP(BS$7+0.5,$J$67:$DK$121,ROWS($A$11:$A52)+2,FALSE)","v":492},{"$f":"HLOOKUP(BT$7+0.5,$J$67:$DK$121,ROWS($A$11:$A52)+2,FALSE)","v":352},{"$f":"HLOOKUP(BU$7+0.5,$J$67:$DK$121,ROWS($A$11:$A52)+2,FALSE)","v":2367},{"$f":"HLOOKUP(BV$7+0.5,$J$67:$DK$121,ROWS($A$11:$A52)+2,FALSE)","v":3616},{"$f":"HLOOKUP(BW$7+0.5,$J$67:$DK$121,ROWS($A$11:$A52)+2,FALSE)","v":493},{"$f":"HLOOKUP(BX$7+0.5,$J$67:$DK$121,ROWS($A$11:$A52)+2,FALSE)","v":321},{"$f":"HLOOKUP(BY$7+0.5,$J$67:$DK$121,ROWS($A$11:$A52)+2,FALSE)","v":1128},{"$f":"HLOOKUP(BZ$7+0.5,$J$67:$DK$121,ROWS($A$11:$A52)+2,FALSE)","v":1911},{"$f":"HLOOKUP(CA$7+0.5,$J$67:$DK$121,ROWS($A$11:$A52)+2,FALSE)","v":437},{"$f":"HLOOKUP(CB$7+0.5,$J$67:$DK$121,ROWS($A$11:$A52)+2,FALSE)","v":855},{"$f":"HLOOKUP(CC$7+0.5,$J$67:$DK$121,ROWS($A$11:$A52)+2,FALSE)","v":991},{"$f":"HLOOKUP(CD$7+0.5,$J$67:$DK$121,ROWS($A$11:$A52)+2,FALSE)","v":2265},{"$f":"HLOOKUP(CE$7+0.5,$J$67:$DK$121,ROWS($A$11:$A52)+2,FALSE)","v":942},{"$f":"HLOOKUP(CF$7+0.5,$J$67:$DK$121,ROWS($A$11:$A52)+2,FALSE)","v":1205},{"$f":"HLOOKUP(CG$7+0.5,$J$67:$DK$121,ROWS($A$11:$A52)+2,FALSE)","v":826},{"$f":"HLOOKUP(CH$7+0.5,$J$67:$DK$121,ROWS($A$11:$A52)+2,FALSE)","v":1289},{"$f":"HLOOKUP(CI$7+0.5,$J$67:$DK$121,ROWS($A$11:$A52)+2,FALSE)","v":582},{"$f":"HLOOKUP(CJ$7+0.5,$J$67:$DK$121,ROWS($A$11:$A52)+2,FALSE)","v":802},{"$f":"HLOOKUP(CK$7+0.5,$J$67:$DK$121,ROWS($A$11:$A52)+2,FALSE)","v":724},{"$f":"HLOOKUP(CL$7+0.5,$J$67:$DK$121,ROWS($A$11:$A52)+2,FALSE)","v":127},{"$f":"HLOOKUP(CM$7+0.5,$J$67:$DK$121,ROWS($A$11:$A52)+2,FALSE)","v":165},{"$f":"HLOOKUP(CN$7+0.5,$J$67:$DK$121,ROWS($A$11:$A52)+2,FALSE)","v":834},{"$f":"HLOOKUP(CO$7+0.5,$J$67:$DK$121,ROWS($A$11:$A52)+2,FALSE)","v":696},{"$f":"HLOOKUP(CP$7+0.5,$J$67:$DK$121,ROWS($A$11:$A52)+2,FALSE)","v":2181},{"$f":"HLOOKUP(CQ$7+0.5,$J$67:$DK$121,ROWS($A$11:$A52)+2,FALSE)","v":1085},{"$f":"HLOOKUP(CR$7+0.5,$J$67:$DK$121,ROWS($A$11:$A52)+2,FALSE)","v":3642},{"$f":"HLOOKUP(CS$7+0.5,$J$67:$DK$121,ROWS($A$11:$A52)+2,FALSE)","v":3907},{"$f":"HLOOKUP(CT$7+0.5,$J$67:$DK$121,ROWS($A$11:$A52)+2,FALSE)","v":650},{"$f":"HLOOKUP(CU$7+0.5,$J$67:$DK$121,ROWS($A$11:$A52)+2,FALSE)","v":1326},{"$f":"HLOOKUP(CV$7+0.5,$J$67:$DK$121,ROWS($A$11:$A52)+2,FALSE)","v":354},{"$f":"HLOOKUP(CW$7+0.5,$J$67:$DK$121,ROWS($A$11:$A52)+2,FALSE)","v":202},{"$f":"HLOOKUP(CX$7+0.5,$J$67:$DK$121,ROWS($A$11:$A52)+2,FALSE)","v":2067},{"$f":"HLOOKUP(CY$7+0.5,$J$67:$DK$121,ROWS($A$11:$A52)+2,FALSE)","v":332},{"$f":"HLOOKUP(CZ$7+0.5,$J$67:$DK$121,ROWS($A$11:$A52)+2,FALSE)","v":"N/A"},{"$f":"HLOOKUP(DA$7+0.5,$J$67:$DK$121,ROWS($A$11:$A52)+2,FALSE)","v":1252},{"$f":"HLOOKUP(DB$7+0.5,$J$67:$DK$121,ROWS($A$11:$A52)+2,FALSE)","v":1136},{"$f":"HLOOKUP(DC$7+0.5,$J$67:$DK$121,ROWS($A$11:$A52)+2,FALSE)","v":1482},{"$f":"HLOOKUP(DD$7+0.5,$J$67:$DK$121,ROWS($A$11:$A52)+2,FALSE)","v":425},{"$f":"HLOOKUP(DE$7+0.5,$J$67:$DK$121,ROWS($A$11:$A52)+2,FALSE)","v":244},{"$f":"HLOOKUP(DF$7+0.5,$J$67:$DK$121,ROWS($A$11:$A52)+2,FALSE)","v":3040},{"$f":"HLOOKUP(DG$7+0.5,$J$67:$DK$121,ROWS($A$11:$A52)+2,FALSE)","v":1165},{"$f":"HLOOKUP(DH$7+0.5,$J$67:$DK$121,ROWS($A$11:$A52)+2,FALSE)","v":720},{"$f":"HLOOKUP(DI$7+0.5,$J$67:$DK$121,ROWS($A$11:$A52)+2,FALSE)","v":570},{"$f":"HLOOKUP(DJ$7+0.5,$J$67:$DK$121,ROWS($A$11:$A52)+2,FALSE)","v":197},{"$f":"HLOOKUP(DK$7+0.5,$J$67:$DK$121,ROWS($A$11:$A52)+2,FALSE)","v":890}]
[null,"South Dakota",821669,1036,676014,7752,115606,7423,3.6845443892766193E-3,{"$f":"HLOOKUP(J$7,$J$67:$DK$121,ROWS($A$11:$A53)+2,FALSE)","v":26051},{"$f":"HLOOKUP(K$7,$J$67:$DK$121,ROWS($A$11:$A53)+2,FALSE)","v":0},{"$f":"HLOOKUP(L$7,$J$67:$DK$121,ROWS($A$11:$A53)+2,FALSE)","v":855},{"$f":"HLOOKUP(M$7,$J$67:$DK$121,ROWS($A$11:$A53)+2,FALSE)","v":435},{"$f":"HLOOKUP(N$7,$J$67:$DK$121,ROWS($A$11:$A53)+2,FALSE)","v":227},{"$f":"HLOOKUP(O$7,$J$67:$DK$121,ROWS($A$11:$A53)+2,FALSE)","v":1494},{"$f":"HLOOKUP(P$7,$J$67:$DK$121,ROWS($A$11:$A53)+2,FALSE)","v":1744},{"$f":"HLOOKUP(Q$7,$J$67:$DK$121,ROWS($A$11:$A53)+2,FALSE)","v":2},{"$f":"HLOOKUP(R$7,$J$67:$DK$121,ROWS($A$11:$A53)+2,FALSE)","v":0},{"$f":"HLOOKUP(S$7,$J$67:$DK$121,ROWS($A$11:$A53)+2,FALSE)","v":0},{"$f":"HLOOKUP(T$7,$J$67:$DK$121,ROWS($A$11:$A53)+2,FALSE)","v":970},{"$f":"HLOOKUP(U$7,$J$67:$DK$121,ROWS($A$11:$A53)+2,FALSE)","v":122},{"$f":"HLOOKUP(V$7,$J$67:$DK$121,ROWS($A$11:$A53)+2,FALSE)","v":8},{"$f":"HLOOKUP(W$7,$J$67:$DK$121,ROWS($A$11:$A53)+2,FALSE)","v":78},{"$f":"HLOOKUP(X$7,$J$67:$DK$121,ROWS($A$11:$A53)+2,FALSE)","v":74},{"$f":"HLOOKUP(Y$7,$J$67:$DK$121,ROWS($A$11:$A53)+2,FALSE)","v":210},{"$f":"HLOOKUP(Z$7,$J$67:$DK$121,ROWS($A$11:$A53)+2,FALSE)","v":2441},{"$f":"HLOOKUP(AA$7,$J$67:$DK$121,ROWS($A$11:$A53)+2,FALSE)","v":403},{"$f":"HLOOKUP(AB$7,$J$67:$DK$121,ROWS($A$11:$A53)+2,FALSE)","v":0},{"$f":"HLOOKUP(AC$7,$J$67:$DK$121,ROWS($A$11:$A53)+2,FALSE)","v":0},{"$f":"HLOOKUP(AD$7,$J$67:$DK$121,ROWS($A$11:$A53)+2,FALSE)","v":0},{"$f":"HLOOKUP(AE$7,$J$67:$DK$121,ROWS($A$11:$A53)+2,FALSE)","v":60},{"$f":"HLOOKUP(AF$7,$J$67:$DK$121,ROWS($A$11:$A53)+2,FALSE)","v":61},{"$f":"HLOOKUP(AG$7,$J$67:$DK$121,ROWS($A$11:$A53)+2,FALSE)","v":892},{"$f":"HLOOKUP(AH$7,$J$67:$DK$121,ROWS($A$11:$A53)+2,FALSE)","v":3568},{"$f":"HLOOKUP(AI$7,$J$67:$DK$121,ROWS($A$11:$A53)+2,FALSE)","v":34},{"$f":"HLOOKUP(AJ$7,$J$67:$DK$121,ROWS($A$11:$A53)+2,FALSE)","v":474},{"$f":"HLOOKUP(AK$7,$J$67:$DK$121,ROWS($A$11:$A53)+2,FALSE)","v":248},{"$f":"HLOOKUP(AL$7,$J$67:$DK$121,ROWS($A$11:$A53)+2,FALSE)","v":2175},{"$f":"HLOOKUP(AM$7,$J$67:$DK$121,ROWS($A$11:$A53)+2,FALSE)","v":135},{"$f":"HLOOKUP(AN$7,$J$67:$DK$121,ROWS($A$11:$A53)+2,FALSE)","v":0},{"$f":"HLOOKUP(AO$7,$J$67:$DK$121,ROWS($A$11:$A53)+2,FALSE)","v":0},{"$f":"HLOOKUP(AP$7,$J$67:$DK$121,ROWS($A$11:$A53)+2,FALSE)","v":175},{"$f":"HLOOKUP(AQ$7,$J$67:$DK$121,ROWS($A$11:$A53)+2,FALSE)","v":371},{"$f":"HLOOKUP(AR$7,$J$67:$DK$121,ROWS($A$11:$A53)+2,FALSE)","v":240},{"$f":"HLOOKUP(AS$7,$J$67:$DK$121,ROWS($A$11:$A53)+2,FALSE)","v":1725},{"$f":"HLOOKUP(AT$7,$J$67:$DK$121,ROWS($A$11:$A53)+2,FALSE)","v":64},{"$f":"HLOOKUP(AU$7,$J$67:$DK$121,ROWS($A$11:$A53)+2,FALSE)","v":21},{"$f":"HLOOKUP(AV$7,$J$67:$DK$121,ROWS($A$11:$A53)+2,FALSE)","v":667},{"$f":"HLOOKUP(AW$7,$J$67:$DK$121,ROWS($A$11:$A53)+2,FALSE)","v":515},{"$f":"HLOOKUP(AX$7,$J$67:$DK$121,ROWS($A$11:$A53)+2,FALSE)","v":0},{"$f":"HLOOKUP(AY$7,$J$67:$DK$121,ROWS($A$11:$A53)+2,FALSE)","v":158},{"$f":"HLOOKUP(AZ$7,$J$67:$DK$121,ROWS($A$11:$A53)+2,FALSE)","v":"N/A"},{"$f":"HLOOKUP(BA$7,$J$67:$DK$121,ROWS($A$11:$A53)+2,FALSE)","v":507},{"$f":"HLOOKUP(BB$7,$J$67:$DK$121,ROWS($A$11:$A53)+2,FALSE)","v":1715},{"$f":"HLOOKUP(BC$7,$J$67:$DK$121,ROWS($A$11:$A53)+2,FALSE)","v":388},{"$f":"HLOOKUP(BD$7,$J$67:$DK$121,ROWS($A$11:$A53)+2,FALSE)","v":5},{"$f":"HLOOKUP(BE$7,$J$67:$DK$121,ROWS($A$11:$A53)+2,FALSE)","v":340},{"$f":"HLOOKUP(BF$7,$J$67:$DK$121,ROWS($A$11:$A53)+2,FALSE)","v":1026},{"$f":"HLOOKUP(BG$7,$J$67:$DK$121,ROWS($A$11:$A53)+2,FALSE)","v":131},{"$f":"HLOOKUP(BH$7,$J$67:$DK$121,ROWS($A$11:$A53)+2,FALSE)","v":314},{"$f":"HLOOKUP(BI$7,$J$67:$DK$121,ROWS($A$11:$A53)+2,FALSE)","v":979},{"$f":"HLOOKUP(BJ$7,$J$67:$DK$121,ROWS($A$11:$A53)+2,FALSE)","v":134},{"$f":"HLOOKUP(BK$7+0.5,$J$67:$DK$121,ROWS($A$11:$A53)+2,FALSE)","v":2891},{"$f":"HLOOKUP(BL$7+0.5,$J$67:$DK$121,ROWS($A$11:$A53)+2,FALSE)","v":147},{"$f":"HLOOKUP(BM$7+0.5,$J$67:$DK$121,ROWS($A$11:$A53)+2,FALSE)","v":1127},{"$f":"HLOOKUP(BN$7+0.5,$J$67:$DK$121,ROWS($A$11:$A53)+2,FALSE)","v":333},{"$f":"HLOOKUP(BO$7+0.5,$J$67:$DK$121,ROWS($A$11:$A53)+2,FALSE)","v":354},{"$f":"HLOOKUP(BP$7+0.5,$J$67:$DK$121,ROWS($A$11:$A53)+2,FALSE)","v":663},{"$f":"HLOOKUP(BQ$7+0.5,$J$67:$DK$121,ROWS($A$11:$A53)+2,FALSE)","v":839},{"$f":"HLOOKUP(BR$7+0.5,$J$67:$DK$121,ROWS($A$11:$A53)+2,FALSE)","v":4},{"$f":"HLOOKUP(BS$7+0.5,$J$67:$DK$121,ROWS($A$11:$A53)+2,FALSE)","v":147},{"$f":"HLOOKUP(BT$7+0.5,$J$67:$DK$121,ROWS($A$11:$A53)+2,FALSE)","v":147},{"$f":"HLOOKUP(BU$7+0.5,$J$67:$DK$121,ROWS($A$11:$A53)+2,FALSE)","v":638},{"$f":"HLOOKUP(BV$7+0.5,$J$67:$DK$121,ROWS($A$11:$A53)+2,FALSE)","v":130},{"$f":"HLOOKUP(BW$7+0.5,$J$67:$DK$121,ROWS($A$11:$A53)+2,FALSE)","v":13},{"$f":"HLOOKUP(BX$7+0.5,$J$67:$DK$121,ROWS($A$11:$A53)+2,FALSE)","v":104},{"$f":"HLOOKUP(BY$7+0.5,$J$67:$DK$121,ROWS($A$11:$A53)+2,FALSE)","v":102},{"$f":"HLOOKUP(BZ$7+0.5,$J$67:$DK$121,ROWS($A$11:$A53)+2,FALSE)","v":289},{"$f":"HLOOKUP(CA$7+0.5,$J$67:$DK$121,ROWS($A$11:$A53)+2,FALSE)","v":932},{"$f":"HLOOKUP(CB$7+0.5,$J$67:$DK$121,ROWS($A$11:$A53)+2,FALSE)","v":295},{"$f":"HLOOKUP(CC$7+0.5,$J$67:$DK$121,ROWS($A$11:$A53)+2,FALSE)","v":147},{"$f":"HLOOKUP(CD$7+0.5,$J$67:$DK$121,ROWS($A$11:$A53)+2,FALSE)","v":147},{"$f":"HLOOKUP(CE$7+0.5,$J$67:$DK$121,ROWS($A$11:$A53)+2,FALSE)","v":147},{"$f":"HLOOKUP(CF$7+0.5,$J$67:$DK$121,ROWS($A$11:$A53)+2,FALSE)","v":65},{"$f":"HLOOKUP(CG$7+0.5,$J$67:$DK$121,ROWS($A$11:$A53)+2,FALSE)","v":101},{"$f":"HLOOKUP(CH$7+0.5,$J$67:$DK$121,ROWS($A$11:$A53)+2,FALSE)","v":747},{"$f":"HLOOKUP(CI$7+0.5,$J$67:$DK$121,ROWS($A$11:$A53)+2,FALSE)","v":1023},{"$f":"HLOOKUP(CJ$7+0.5,$J$67:$DK$121,ROWS($A$11:$A53)+2,FALSE)","v":48},{"$f":"HLOOKUP(CK$7+0.5,$J$67:$DK$121,ROWS($A$11:$A53)+2,FALSE)","v":274},{"$f":"HLOOKUP(CL$7+0.5,$J$67:$DK$121,ROWS($A$11:$A53)+2,FALSE)","v":208},{"$f":"HLOOKUP(CM$7+0.5,$J$67:$DK$121,ROWS($A$11:$A53)+2,FALSE)","v":801},{"$f":"HLOOKUP(CN$7+0.5,$J$67:$DK$121,ROWS($A$11:$A53)+2,FALSE)","v":171},{"$f":"HLOOKUP(CO$7+0.5,$J$67:$DK$121,ROWS($A$11:$A53)+2,FALSE)","v":147},{"$f":"HLOOKUP(CP$7+0.5,$J$67:$DK$121,ROWS($A$11:$A53)+2,FALSE)","v":147},{"$f":"HLOOKUP(CQ$7+0.5,$J$67:$DK$121,ROWS($A$11:$A53)+2,FALSE)","v":187},{"$f":"HLOOKUP(CR$7+0.5,$J$67:$DK$121,ROWS($A$11:$A53)+2,FALSE)","v":317},{"$f":"HLOOKUP(CS$7+0.5,$J$67:$DK$121,ROWS($A$11:$A53)+2,FALSE)","v":220},{"$f":"HLOOKUP(CT$7+0.5,$J$67:$DK$121,ROWS($A$11:$A53)+2,FALSE)","v":823},{"$f":"HLOOKUP(CU$7+0.5,$J$67:$DK$121,ROWS($A$11:$A53)+2,FALSE)","v":77},{"$f":"HLOOKUP(CV$7+0.5,$J$67:$DK$121,ROWS($A$11:$A53)+2,FALSE)","v":36},{"$f":"HLOOKUP(CW$7+0.5,$J$67:$DK$121,ROWS($A$11:$A53)+2,FALSE)","v":583},{"$f":"HLOOKUP(CX$7+0.5,$J$67:$DK$121,ROWS($A$11:$A53)+2,FALSE)","v":633},{"$f":"HLOOKUP(CY$7+0.5,$J$67:$DK$121,ROWS($A$11:$A53)+2,FALSE)","v":147},{"$f":"HLOOKUP(CZ$7+0.5,$J$67:$DK$121,ROWS($A$11:$A53)+2,FALSE)","v":159},{"$f":"HLOOKUP(DA$7+0.5,$J$67:$DK$121,ROWS($A$11:$A53)+2,FALSE)","v":"N/A"},{"$f":"HLOOKUP(DB$7+0.5,$J$67:$DK$121,ROWS($A$11:$A53)+2,FALSE)","v":346},{"$f":"HLOOKUP(DC$7+0.5,$J$67:$DK$121,ROWS($A$11:$A53)+2,FALSE)","v":1067},{"$f":"HLOOKUP(DD$7+0.5,$J$67:$DK$121,ROWS($A$11:$A53)+2,FALSE)","v":372},{"$f":"HLOOKUP(DE$7+0.5,$J$67:$DK$121,ROWS($A$11:$A53)+2,FALSE)","v":9},{"$f":"HLOOKUP(DF$7+0.5,$J$67:$DK$121,ROWS($A$11:$A53)+2,FALSE)","v":300},{"$f":"HLOOKUP(DG$7+0.5,$J$67:$DK$121,ROWS($A$11:$A53)+2,FALSE)","v":681},{"$f":"HLOOKUP(DH$7+0.5,$J$67:$DK$121,ROWS($A$11:$A53)+2,FALSE)","v":216},{"$f":"HLOOKUP(DI$7+0.5,$J$67:$DK$121,ROWS($A$11:$A53)+2,FALSE)","v":413},{"$f":"HLOOKUP(DJ$7+0.5,$J$67:$DK$121,ROWS($A$11:$A53)+2,FALSE)","v":735},{"$f":"HLOOKUP(DK$7+0.5,$J$67:$DK$121,ROWS($A$11:$A53)+2,FALSE)","v":235}]
[null,"Tennessee",6378278,4412,5396833,24470,783077,21860,2.504799977936013E-2,{"$f":"HLOOKUP(J$7,$J$67:$DK$121,ROWS($A$11:$A54)+2,FALSE)","v":177098},{"$f":"HLOOKUP(K$7,$J$67:$DK$121,ROWS($A$11:$A54)+2,FALSE)","v":12116},{"$f":"HLOOKUP(L$7,$J$67:$DK$121,ROWS($A$11:$A54)+2,FALSE)","v":1281},{"$f":"HLOOKUP(M$7,$J$67:$DK$121,ROWS($A$11:$A54)+2,FALSE)","v":2250},{"$f":"HLOOKUP(N$7,$J$67:$DK$121,ROWS($A$11:$A54)+2,FALSE)","v":3306},{"$f":"HLOOKUP(O$7,$J$67:$DK$121,ROWS($A$11:$A54)+2,FALSE)","v":8396},{"$f":"HLOOKUP(P$7,$J$67:$DK$121,ROWS($A$11:$A54)+2,FALSE)","v":2473},{"$f":"HLOOKUP(Q$7,$J$67:$DK$121,ROWS($A$11:$A54)+2,FALSE)","v":936},{"$f":"HLOOKUP(R$7,$J$67:$DK$121,ROWS($A$11:$A54)+2,FALSE)","v":176},{"$f":"HLOOKUP(S$7,$J$67:$DK$121,ROWS($A$11:$A54)+2,FALSE)","v":180},{"$f":"HLOOKUP(T$7,$J$67:$DK$121,ROWS($A$11:$A54)+2,FALSE)","v":15641},{"$f":"HLOOKUP(U$7,$J$67:$DK$121,ROWS($A$11:$A54)+2,FALSE)","v":16012},{"$f":"HLOOKUP(V$7,$J$67:$DK$121,ROWS($A$11:$A54)+2,FALSE)","v":1058},{"$f":"HLOOKUP(W$7,$J$67:$DK$121,ROWS($A$11:$A54)+2,FALSE)","v":787},{"$f":"HLOOKUP(X$7,$J$67:$DK$121,ROWS($A$11:$A54)+2,FALSE)","v":7094},{"$f":"HLOOKUP(Y$7,$J$67:$DK$121,ROWS($A$11:$A54)+2,FALSE)","v":5591},{"$f":"HLOOKUP(Z$7,$J$67:$DK$121,ROWS($A$11:$A54)+2,FALSE)","v":617},{"$f":"HLOOKUP(AA$7,$J$67:$DK$121,ROWS($A$11:$A54)+2,FALSE)","v":2630},{"$f":"HLOOKUP(AB$7,$J$67:$DK$121,ROWS($A$11:$A54)+2,FALSE)","v":13202},{"$f":"HLOOKUP(AC$7,$J$67:$DK$121,ROWS($A$11:$A54)+2,FALSE)","v":2452},{"$f":"HLOOKUP(AD$7,$J$67:$DK$121,ROWS($A$11:$A54)+2,FALSE)","v":1040},{"$f":"HLOOKUP(AE$7,$J$67:$DK$121,ROWS($A$11:$A54)+2,FALSE)","v":1743},{"$f":"HLOOKUP(AF$7,$J$67:$DK$121,ROWS($A$11:$A54)+2,FALSE)","v":1525},{"$f":"HLOOKUP(AG$7,$J$67:$DK$121,ROWS($A$11:$A54)+2,FALSE)","v":4507},{"$f":"HLOOKUP(AH$7,$J$67:$DK$121,ROWS($A$11:$A54)+2,FALSE)","v":1178},{"$f":"HLOOKUP(AI$7,$J$67:$DK$121,ROWS($A$11:$A54)+2,FALSE)","v":10568},{"$f":"HLOOKUP(AJ$7,$J$67:$DK$121,ROWS($A$11:$A54)+2,FALSE)","v":2694},{"$f":"HLOOKUP(AK$7,$J$67:$DK$121,ROWS($A$11:$A54)+2,FALSE)","v":308},{"$f":"HLOOKUP(AL$7,$J$67:$DK$121,ROWS($A$11:$A54)+2,FALSE)","v":432},{"$f":"HLOOKUP(AM$7,$J$67:$DK$121,ROWS($A$11:$A54)+2,FALSE)","v":735},{"$f":"HLOOKUP(AN$7,$J$67:$DK$121,ROWS($A$11:$A54)+2,FALSE)","v":271},{"$f":"HLOOKUP(AO$7,$J$67:$DK$121,ROWS($A$11:$A54)+2,FALSE)","v":783},{"$f":"HLOOKUP(AP$7,$J$67:$DK$121,ROWS($A$11:$A54)+2,FALSE)","v":751},{"$f":"HLOOKUP(AQ$7,$J$67:$DK$121,ROWS($A$11:$A54)+2,FALSE)","v":6279},{"$f":"HLOOKUP(AR$7,$J$67:$DK$121,ROWS($A$11:$A54)+2,FALSE)","v":5904},{"$f":"HLOOKUP(AS$7,$J$67:$DK$121,ROWS($A$11:$A54)+2,FALSE)","v":7},{"$f":"HLOOKUP(AT$7,$J$67:$DK$121,ROWS($A$11:$A54)+2,FALSE)","v":6200},{"$f":"HLOOKUP(AU$7,$J$67:$DK$121,ROWS($A$11:$A54)+2,FALSE)","v":2495},{"$f":"HLOOKUP(AV$7,$J$67:$DK$121,ROWS($A$11:$A54)+2,FALSE)","v":1080},{"$f":"HLOOKUP(AW$7,$J$67:$DK$121,ROWS($A$11:$A54)+2,FALSE)","v":3329},{"$f":"HLOOKUP(AX$7,$J$67:$DK$121,ROWS($A$11:$A54)+2,FALSE)","v":26},{"$f":"HLOOKUP(AY$7,$J$67:$DK$121,ROWS($A$11:$A54)+2,FALSE)","v":4300},{"$f":"HLOOKUP(AZ$7,$J$67:$DK$121,ROWS($A$11:$A54)+2,FALSE)","v":0},{"$f":"HLOOKUP(BA$7,$J$67:$DK$121,ROWS($A$11:$A54)+2,FALSE)","v":"N/A"},{"$f":"HLOOKUP(BB$7,$J$67:$DK$121,ROWS($A$11:$A54)+2,FALSE)","v":8716},{"$f":"HLOOKUP(BC$7,$J$67:$DK$121,ROWS($A$11:$A54)+2,FALSE)","v":784},{"$f":"HLOOKUP(BD$7,$J$67:$DK$121,ROWS($A$11:$A54)+2,FALSE)","v":133},{"$f":"HLOOKUP(BE$7,$J$67:$DK$121,ROWS($A$11:$A54)+2,FALSE)","v":8008},{"$f":"HLOOKUP(BF$7,$J$67:$DK$121,ROWS($A$11:$A54)+2,FALSE)","v":1876},{"$f":"HLOOKUP(BG$7,$J$67:$DK$121,ROWS($A$11:$A54)+2,FALSE)","v":3248},{"$f":"HLOOKUP(BH$7,$J$67:$DK$121,ROWS($A$11:$A54)+2,FALSE)","v":1622},{"$f":"HLOOKUP(BI$7,$J$67:$DK$121,ROWS($A$11:$A54)+2,FALSE)","v":358},{"$f":"HLOOKUP(BJ$7,$J$67:$DK$121,ROWS($A$11:$A54)+2,FALSE)","v":717},{"$f":"HLOOKUP(BK$7+0.5,$J$67:$DK$121,ROWS($A$11:$A54)+2,FALSE)","v":10625},{"$f":"HLOOKUP(BL$7+0.5,$J$67:$DK$121,ROWS($A$11:$A54)+2,FALSE)","v":3309},{"$f":"HLOOKUP(BM$7+0.5,$J$67:$DK$121,ROWS($A$11:$A54)+2,FALSE)","v":847},{"$f":"HLOOKUP(BN$7+0.5,$J$67:$DK$121,ROWS($A$11:$A54)+2,FALSE)","v":907},{"$f":"HLOOKUP(BO$7+0.5,$J$67:$DK$121,ROWS($A$11:$A54)+2,FALSE)","v":1731},{"$f":"HLOOKUP(BP$7+0.5,$J$67:$DK$121,ROWS($A$11:$A54)+2,FALSE)","v":2447},{"$f":"HLOOKUP(BQ$7+0.5,$J$67:$DK$121,ROWS($A$11:$A54)+2,FALSE)","v":1156},{"$f":"HLOOKUP(BR$7+0.5,$J$67:$DK$121,ROWS($A$11:$A54)+2,FALSE)","v":900},{"$f":"HLOOKUP(BS$7+0.5,$J$67:$DK$121,ROWS($A$11:$A54)+2,FALSE)","v":222},{"$f":"HLOOKUP(BT$7+0.5,$J$67:$DK$121,ROWS($A$11:$A54)+2,FALSE)","v":203},{"$f":"HLOOKUP(BU$7+0.5,$J$67:$DK$121,ROWS($A$11:$A54)+2,FALSE)","v":3639},{"$f":"HLOOKUP(BV$7+0.5,$J$67:$DK$121,ROWS($A$11:$A54)+2,FALSE)","v":3114},{"$f":"HLOOKUP(BW$7+0.5,$J$67:$DK$121,ROWS($A$11:$A54)+2,FALSE)","v":1052},{"$f":"HLOOKUP(BX$7+0.5,$J$67:$DK$121,ROWS($A$11:$A54)+2,FALSE)","v":817},{"$f":"HLOOKUP(BY$7+0.5,$J$67:$DK$121,ROWS($A$11:$A54)+2,FALSE)","v":1891},{"$f":"HLOOKUP(BZ$7+0.5,$J$67:$DK$121,ROWS($A$11:$A54)+2,FALSE)","v":2209},{"$f":"HLOOKUP(CA$7+0.5,$J$67:$DK$121,ROWS($A$11:$A54)+2,FALSE)","v":556},{"$f":"HLOOKUP(CB$7+0.5,$J$67:$DK$121,ROWS($A$11:$A54)+2,FALSE)","v":1972},{"$f":"HLOOKUP(CC$7+0.5,$J$67:$DK$121,ROWS($A$11:$A54)+2,FALSE)","v":2695},{"$f":"HLOOKUP(CD$7+0.5,$J$67:$DK$121,ROWS($A$11:$A54)+2,FALSE)","v":1206},{"$f":"HLOOKUP(CE$7+0.5,$J$67:$DK$121,ROWS($A$11:$A54)+2,FALSE)","v":589},{"$f":"HLOOKUP(CF$7+0.5,$J$67:$DK$121,ROWS($A$11:$A54)+2,FALSE)","v":867},{"$f":"HLOOKUP(CG$7+0.5,$J$67:$DK$121,ROWS($A$11:$A54)+2,FALSE)","v":706},{"$f":"HLOOKUP(CH$7+0.5,$J$67:$DK$121,ROWS($A$11:$A54)+2,FALSE)","v":1434},{"$f":"HLOOKUP(CI$7+0.5,$J$67:$DK$121,ROWS($A$11:$A54)+2,FALSE)","v":896},{"$f":"HLOOKUP(CJ$7+0.5,$J$67:$DK$121,ROWS($A$11:$A54)+2,FALSE)","v":2321},{"$f":"HLOOKUP(CK$7+0.5,$J$67:$DK$121,ROWS($A$11:$A54)+2,FALSE)","v":1254},{"$f":"HLOOKUP(CL$7+0.5,$J$67:$DK$121,ROWS($A$11:$A54)+2,FALSE)","v":278},{"$f":"HLOOKUP(CM$7+0.5,$J$67:$DK$121,ROWS($A$11:$A54)+2,FALSE)","v":389},{"$f":"HLOOKUP(CN$7+0.5,$J$67:$DK$121,ROWS($A$11:$A54)+2,FALSE)","v":443},{"$f":"HLOOKUP(CO$7+0.5,$J$67:$DK$121,ROWS($A$11:$A54)+2,FALSE)","v":287},{"$f":"HLOOKUP(CP$7+0.5,$J$67:$DK$121,ROWS($A$11:$A54)+2,FALSE)","v":507},{"$f":"HLOOKUP(CQ$7+0.5,$J$67:$DK$121,ROWS($A$11:$A54)+2,FALSE)","v":640},{"$f":"HLOOKUP(CR$7+0.5,$J$67:$DK$121,ROWS($A$11:$A54)+2,FALSE)","v":2008},{"$f":"HLOOKUP(CS$7+0.5,$J$67:$DK$121,ROWS($A$11:$A54)+2,FALSE)","v":1834},{"$f":"HLOOKUP(CT$7+0.5,$J$67:$DK$121,ROWS($A$11:$A54)+2,FALSE)","v":16},{"$f":"HLOOKUP(CU$7+0.5,$J$67:$DK$121,ROWS($A$11:$A54)+2,FALSE)","v":1742},{"$f":"HLOOKUP(CV$7+0.5,$J$67:$DK$121,ROWS($A$11:$A54)+2,FALSE)","v":1410},{"$f":"HLOOKUP(CW$7+0.5,$J$67:$DK$121,ROWS($A$11:$A54)+2,FALSE)","v":589},{"$f":"HLOOKUP(CX$7+0.5,$J$67:$DK$121,ROWS($A$11:$A54)+2,FALSE)","v":999},{"$f":"HLOOKUP(CY$7+0.5,$J$67:$DK$121,ROWS($A$11:$A54)+2,FALSE)","v":55},{"$f":"HLOOKUP(CZ$7+0.5,$J$67:$DK$121,ROWS($A$11:$A54)+2,FALSE)","v":1280},{"$f":"HLOOKUP(DA$7+0.5,$J$67:$DK$121,ROWS($A$11:$A54)+2,FALSE)","v":193},{"$f":"HLOOKUP(DB$7+0.5,$J$67:$DK$121,ROWS($A$11:$A54)+2,FALSE)","v":"N/A"},{"$f":"HLOOKUP(DC$7+0.5,$J$67:$DK$121,ROWS($A$11:$A54)+2,FALSE)","v":2938},{"$f":"HLOOKUP(DD$7+0.5,$J$67:$DK$121,ROWS($A$11:$A54)+2,FALSE)","v":1131},{"$f":"HLOOKUP(DE$7+0.5,$J$67:$DK$121,ROWS($A$11:$A54)+2,FALSE)","v":133},{"$f":"HLOOKUP(DF$7+0.5,$J$67:$DK$121,ROWS($A$11:$A54)+2,FALSE)","v":2159},{"$f":"HLOOKUP(DG$7+0.5,$J$67:$DK$121,ROWS($A$11:$A54)+2,FALSE)","v":852},{"$f":"HLOOKUP(DH$7+0.5,$J$67:$DK$121,ROWS($A$11:$A54)+2,FALSE)","v":1760},{"$f":"HLOOKUP(DI$7+0.5,$J$67:$DK$121,ROWS($A$11:$A54)+2,FALSE)","v":727},{"$f":"HLOOKUP(DJ$7+0.5,$J$67:$DK$121,ROWS($A$11:$A54)+2,FALSE)","v":382},{"$f":"HLOOKUP(DK$7+0.5,$J$67:$DK$121,ROWS($A$11:$A54)+2,FALSE)","v":499}]
[null,"Texas",25711791,10124,21354247,60947,3656070,53747,7.1814317406010603E-2,{"$f":"HLOOKUP(J$7,$J$67:$DK$121,ROWS($A$11:$A55)+2,FALSE)","v":507752},{"$f":"HLOOKUP(K$7,$J$67:$DK$121,ROWS($A$11:$A55)+2,FALSE)","v":9993},{"$f":"HLOOKUP(L$7,$J$67:$DK$121,ROWS($A$11:$A55)+2,FALSE)","v":6759},{"$f":"HLOOKUP(M$7,$J$67:$DK$121,ROWS($A$11:$A55)+2,FALSE)","v":18908},{"$f":"HLOOKUP(N$7,$J$67:$DK$121,ROWS($A$11:$A55)+2,FALSE)","v":13781},{"$f":"HLOOKUP(O$7,$J$67:$DK$121,ROWS($A$11:$A55)+2,FALSE)","v":62702},{"$f":"HLOOKUP(P$7,$J$67:$DK$121,ROWS($A$11:$A55)+2,FALSE)","v":16616},{"$f":"HLOOKUP(Q$7,$J$67:$DK$121,ROWS($A$11:$A55)+2,FALSE)","v":2769},{"$f":"HLOOKUP(R$7,$J$67:$DK$121,ROWS($A$11:$A55)+2,FALSE)","v":181},{"$f":"HLOOKUP(S$7,$J$67:$DK$121,ROWS($A$11:$A55)+2,FALSE)","v":1189},{"$f":"HLOOKUP(T$7,$J$67:$DK$121,ROWS($A$11:$A55)+2,FALSE)","v":31259},{"$f":"HLOOKUP(U$7,$J$67:$DK$121,ROWS($A$11:$A55)+2,FALSE)","v":20362},{"$f":"HLOOKUP(V$7,$J$67:$DK$121,ROWS($A$11:$A55)+2,FALSE)","v":5040},{"$f":"HLOOKUP(W$7,$J$67:$DK$121,ROWS($A$11:$A55)+2,FALSE)","v":2387},{"$f":"HLOOKUP(X$7,$J$67:$DK$121,ROWS($A$11:$A55)+2,FALSE)","v":19672},{"$f":"HLOOKUP(Y$7,$J$67:$DK$121,ROWS($A$11:$A55)+2,FALSE)","v":8264},{"$f":"HLOOKUP(Z$7,$J$67:$DK$121,ROWS($A$11:$A55)+2,FALSE)","v":4934},{"$f":"HLOOKUP(AA$7,$J$67:$DK$121,ROWS($A$11:$A55)+2,FALSE)","v":12699},{"$f":"HLOOKUP(AB$7,$J$67:$DK$121,ROWS($A$11:$A55)+2,FALSE)","v":6040},{"$f":"HLOOKUP(AC$7,$J$67:$DK$121,ROWS($A$11:$A55)+2,FALSE)","v":29348},{"$f":"HLOOKUP(AD$7,$J$67:$DK$121,ROWS($A$11:$A55)+2,FALSE)","v":1293},{"$f":"HLOOKUP(AE$7,$J$67:$DK$121,ROWS($A$11:$A55)+2,FALSE)","v":4969},{"$f":"HLOOKUP(AF$7,$J$67:$DK$121,ROWS($A$11:$A55)+2,FALSE)","v":4813},{"$f":"HLOOKUP(AG$7,$J$67:$DK$121,ROWS($A$11:$A55)+2,FALSE)","v":9501},{"$f":"HLOOKUP(AH$7,$J$67:$DK$121,ROWS($A$11:$A55)+2,FALSE)","v":2803},{"$f":"HLOOKUP(AI$7,$J$67:$DK$121,ROWS($A$11:$A55)+2,FALSE)","v":6402},{"$f":"HLOOKUP(AJ$7,$J$67:$DK$121,ROWS($A$11:$A55)+2,FALSE)","v":12319},{"$f":"HLOOKUP(AK$7,$J$67:$DK$121,ROWS($A$11:$A55)+2,FALSE)","v":1813},{"$f":"HLOOKUP(AL$7,$J$67:$DK$121,ROWS($A$11:$A55)+2,FALSE)","v":4794},{"$f":"HLOOKUP(AM$7,$J$67:$DK$121,ROWS($A$11:$A55)+2,FALSE)","v":8266},{"$f":"HLOOKUP(AN$7,$J$67:$DK$121,ROWS($A$11:$A55)+2,FALSE)","v":761},{"$f":"HLOOKUP(AO$7,$J$67:$DK$121,ROWS($A$11:$A55)+2,FALSE)","v":6797},{"$f":"HLOOKUP(AP$7,$J$67:$DK$121,ROWS($A$11:$A55)+2,FALSE)","v":16762},{"$f":"HLOOKUP(AQ$7,$J$67:$DK$121,ROWS($A$11:$A55)+2,FALSE)","v":20274},{"$f":"HLOOKUP(AR$7,$J$67:$DK$121,ROWS($A$11:$A55)+2,FALSE)","v":22660},{"$f":"HLOOKUP(AS$7,$J$67:$DK$121,ROWS($A$11:$A55)+2,FALSE)","v":989},{"$f":"HLOOKUP(AT$7,$J$67:$DK$121,ROWS($A$11:$A55)+2,FALSE)","v":8728},{"$f":"HLOOKUP(AU$7,$J$67:$DK$121,ROWS($A$11:$A55)+2,FALSE)","v":26284},{"$f":"HLOOKUP(AV$7,$J$67:$DK$121,ROWS($A$11:$A55)+2,FALSE)","v":3827},{"$f":"HLOOKUP(AW$7,$J$67:$DK$121,ROWS($A$11:$A55)+2,FALSE)","v":10449},{"$f":"HLOOKUP(AX$7,$J$67:$DK$121,ROWS($A$11:$A55)+2,FALSE)","v":1763},{"$f":"HLOOKUP(AY$7,$J$67:$DK$121,ROWS($A$11:$A55)+2,FALSE)","v":4470},{"$f":"HLOOKUP(AZ$7,$J$67:$DK$121,ROWS($A$11:$A55)+2,FALSE)","v":1264},{"$f":"HLOOKUP(BA$7,$J$67:$DK$121,ROWS($A$11:$A55)+2,FALSE)","v":10368},{"$f":"HLOOKUP(BB$7,$J$67:$DK$121,ROWS($A$11:$A55)+2,FALSE)","v":"N/A"},{"$f":"HLOOKUP(BC$7,$J$67:$DK$121,ROWS($A$11:$A55)+2,FALSE)","v":4610},{"$f":"HLOOKUP(BD$7,$J$67:$DK$121,ROWS($A$11:$A55)+2,FALSE)","v":113},{"$f":"HLOOKUP(BE$7,$J$67:$DK$121,ROWS($A$11:$A55)+2,FALSE)","v":17734},{"$f":"HLOOKUP(BF$7,$J$67:$DK$121,ROWS($A$11:$A55)+2,FALSE)","v":11630},{"$f":"HLOOKUP(BG$7,$J$67:$DK$121,ROWS($A$11:$A55)+2,FALSE)","v":1729},{"$f":"HLOOKUP(BH$7,$J$67:$DK$121,ROWS($A$11:$A55)+2,FALSE)","v":4192},{"$f":"HLOOKUP(BI$7,$J$67:$DK$121,ROWS($A$11:$A55)+2,FALSE)","v":2472},{"$f":"HLOOKUP(BJ$7,$J$67:$DK$121,ROWS($A$11:$A55)+2,FALSE)","v":4435},{"$f":"HLOOKUP(BK$7+0.5,$J$67:$DK$121,ROWS($A$11:$A55)+2,FALSE)","v":20202},{"$f":"HLOOKUP(BL$7+0.5,$J$67:$DK$121,ROWS($A$11:$A55)+2,FALSE)","v":3132},{"$f":"HLOOKUP(BM$7+0.5,$J$67:$DK$121,ROWS($A$11:$A55)+2,FALSE)","v":2614},{"$f":"HLOOKUP(BN$7+0.5,$J$67:$DK$121,ROWS($A$11:$A55)+2,FALSE)","v":3870},{"$f":"HLOOKUP(BO$7+0.5,$J$67:$DK$121,ROWS($A$11:$A55)+2,FALSE)","v":3771},{"$f":"HLOOKUP(BP$7+0.5,$J$67:$DK$121,ROWS($A$11:$A55)+2,FALSE)","v":8792},{"$f":"HLOOKUP(BQ$7+0.5,$J$67:$DK$121,ROWS($A$11:$A55)+2,FALSE)","v":3638},{"$f":"HLOOKUP(BR$7+0.5,$J$67:$DK$121,ROWS($A$11:$A55)+2,FALSE)","v":1124},{"$f":"HLOOKUP(BS$7+0.5,$J$67:$DK$121,ROWS($A$11:$A55)+2,FALSE)","v":168},{"$f":"HLOOKUP(BT$7+0.5,$J$67:$DK$121,ROWS($A$11:$A55)+2,FALSE)","v":610},{"$f":"HLOOKUP(BU$7+0.5,$J$67:$DK$121,ROWS($A$11:$A55)+2,FALSE)","v":6252},{"$f":"HLOOKUP(BV$7+0.5,$J$67:$DK$121,ROWS($A$11:$A55)+2,FALSE)","v":3365},{"$f":"HLOOKUP(BW$7+0.5,$J$67:$DK$121,ROWS($A$11:$A55)+2,FALSE)","v":2386},{"$f":"HLOOKUP(BX$7+0.5,$J$67:$DK$121,ROWS($A$11:$A55)+2,FALSE)","v":1190},{"$f":"HLOOKUP(BY$7+0.5,$J$67:$DK$121,ROWS($A$11:$A55)+2,FALSE)","v":3645},{"$f":"HLOOKUP(BZ$7+0.5,$J$67:$DK$121,ROWS($A$11:$A55)+2,FALSE)","v":2734},{"$f":"HLOOKUP(CA$7+0.5,$J$67:$DK$121,ROWS($A$11:$A55)+2,FALSE)","v":2063},{"$f":"HLOOKUP(CB$7+0.5,$J$67:$DK$121,ROWS($A$11:$A55)+2,FALSE)","v":3202},{"$f":"HLOOKUP(CC$7+0.5,$J$67:$DK$121,ROWS($A$11:$A55)+2,FALSE)","v":2224},{"$f":"HLOOKUP(CD$7+0.5,$J$67:$DK$121,ROWS($A$11:$A55)+2,FALSE)","v":5712},{"$f":"HLOOKUP(CE$7+0.5,$J$67:$DK$121,ROWS($A$11:$A55)+2,FALSE)","v":1284},{"$f":"HLOOKUP(CF$7+0.5,$J$67:$DK$121,ROWS($A$11:$A55)+2,FALSE)","v":2026},{"$f":"HLOOKUP(CG$7+0.5,$J$67:$DK$121,ROWS($A$11:$A55)+2,FALSE)","v":1584},{"$f":"HLOOKUP(CH$7+0.5,$J$67:$DK$121,ROWS($A$11:$A55)+2,FALSE)","v":2273},{"$f":"HLOOKUP(CI$7+0.5,$J$67:$DK$121,ROWS($A$11:$A55)+2,FALSE)","v":948},{"$f":"HLOOKUP(CJ$7+0.5,$J$67:$DK$121,ROWS($A$11:$A55)+2,FALSE)","v":2032},{"$f":"HLOOKUP(CK$7+0.5,$J$67:$DK$121,ROWS($A$11:$A55)+2,FALSE)","v":2205},{"$f":"HLOOKUP(CL$7+0.5,$J$67:$DK$121,ROWS($A$11:$A55)+2,FALSE)","v":986},{"$f":"HLOOKUP(CM$7+0.5,$J$67:$DK$121,ROWS($A$11:$A55)+2,FALSE)","v":2045},{"$f":"HLOOKUP(CN$7+0.5,$J$67:$DK$121,ROWS($A$11:$A55)+2,FALSE)","v":4162},{"$f":"HLOOKUP(CO$7+0.5,$J$67:$DK$121,ROWS($A$11:$A55)+2,FALSE)","v":749},{"$f":"HLOOKUP(CP$7+0.5,$J$67:$DK$121,ROWS($A$11:$A55)+2,FALSE)","v":2141},{"$f":"HLOOKUP(CQ$7+0.5,$J$67:$DK$121,ROWS($A$11:$A55)+2,FALSE)","v":3127},{"$f":"HLOOKUP(CR$7+0.5,$J$67:$DK$121,ROWS($A$11:$A55)+2,FALSE)","v":4211},{"$f":"HLOOKUP(CS$7+0.5,$J$67:$DK$121,ROWS($A$11:$A55)+2,FALSE)","v":6953},{"$f":"HLOOKUP(CT$7+0.5,$J$67:$DK$121,ROWS($A$11:$A55)+2,FALSE)","v":542},{"$f":"HLOOKUP(CU$7+0.5,$J$67:$DK$121,ROWS($A$11:$A55)+2,FALSE)","v":1739},{"$f":"HLOOKUP(CV$7+0.5,$J$67:$DK$121,ROWS($A$11:$A55)+2,FALSE)","v":4418},{"$f":"HLOOKUP(CW$7+0.5,$J$67:$DK$121,ROWS($A$11:$A55)+2,FALSE)","v":1684},{"$f":"HLOOKUP(CX$7+0.5,$J$67:$DK$121,ROWS($A$11:$A55)+2,FALSE)","v":2158},{"$f":"HLOOKUP(CY$7+0.5,$J$67:$DK$121,ROWS($A$11:$A55)+2,FALSE)","v":1605},{"$f":"HLOOKUP(CZ$7+0.5,$J$67:$DK$121,ROWS($A$11:$A55)+2,FALSE)","v":1665},{"$f":"HLOOKUP(DA$7+0.5,$J$67:$DK$121,ROWS($A$11:$A55)+2,FALSE)","v":757},{"$f":"HLOOKUP(DB$7+0.5,$J$67:$DK$121,ROWS($A$11:$A55)+2,FALSE)","v":2623},{"$f":"HLOOKUP(DC$7+0.5,$J$67:$DK$121,ROWS($A$11:$A55)+2,FALSE)","v":"N/A"},{"$f":"HLOOKUP(DD$7+0.5,$J$67:$DK$121,ROWS($A$11:$A55)+2,FALSE)","v":2045},{"$f":"HLOOKUP(DE$7+0.5,$J$67:$DK$121,ROWS($A$11:$A55)+2,FALSE)","v":135},{"$f":"HLOOKUP(DF$7+0.5,$J$67:$DK$121,ROWS($A$11:$A55)+2,FALSE)","v":4904},{"$f":"HLOOKUP(DG$7+0.5,$J$67:$DK$121,ROWS($A$11:$A55)+2,FALSE)","v":2741},{"$f":"HLOOKUP(DH$7+0.5,$J$67:$DK$121,ROWS($A$11:$A55)+2,FALSE)","v":938},{"$f":"HLOOKUP(DI$7+0.5,$J$67:$DK$121,ROWS($A$11:$A55)+2,FALSE)","v":1322},{"$f":"HLOOKUP(DJ$7+0.5,$J$67:$DK$121,ROWS($A$11:$A55)+2,FALSE)","v":1676},{"$f":"HLOOKUP(DK$7+0.5,$J$67:$DK$121,ROWS($A$11:$A55)+2,FALSE)","v":1611}]
[null,"Utah",2805440,2571,2324019,16852,373980,16586,1.2427964972006317E-2,{"$f":"HLOOKUP(J$7,$J$67:$DK$121,ROWS($A$11:$A56)+2,FALSE)","v":87870},{"$f":"HLOOKUP(K$7,$J$67:$DK$121,ROWS($A$11:$A56)+2,FALSE)","v":126},{"$f":"HLOOKUP(L$7,$J$67:$DK$121,ROWS($A$11:$A56)+2,FALSE)","v":2819},{"$f":"HLOOKUP(M$7,$J$67:$DK$121,ROWS($A$11:$A56)+2,FALSE)","v":7966},{"$f":"HLOOKUP(N$7,$J$67:$DK$121,ROWS($A$11:$A56)+2,FALSE)","v":361},{"$f":"HLOOKUP(O$7,$J$67:$DK$121,ROWS($A$11:$A56)+2,FALSE)","v":15286},{"$f":"HLOOKUP(P$7,$J$67:$DK$121,ROWS($A$11:$A56)+2,FALSE)","v":5350},{"$f":"HLOOKUP(Q$7,$J$67:$DK$121,ROWS($A$11:$A56)+2,FALSE)","v":142},{"$f":"HLOOKUP(R$7,$J$67:$DK$121,ROWS($A$11:$A56)+2,FALSE)","v":0},{"$f":"HLOOKUP(S$7,$J$67:$DK$121,ROWS($A$11:$A56)+2,FALSE)","v":0},{"$f":"HLOOKUP(T$7,$J$67:$DK$121,ROWS($A$11:$A56)+2,FALSE)","v":2428},{"$f":"HLOOKUP(U$7,$J$67:$DK$121,ROWS($A$11:$A56)+2,FALSE)","v":1142},{"$f":"HLOOKUP(V$7,$J$67:$DK$121,ROWS($A$11:$A56)+2,FALSE)","v":1436},{"$f":"HLOOKUP(W$7,$J$67:$DK$121,ROWS($A$11:$A56)+2,FALSE)","v":5129},{"$f":"HLOOKUP(X$7,$J$67:$DK$121,ROWS($A$11:$A56)+2,FALSE)","v":1588},{"$f":"HLOOKUP(Y$7,$J$67:$DK$121,ROWS($A$11:$A56)+2,FALSE)","v":475},{"$f":"HLOOKUP(Z$7,$J$67:$DK$121,ROWS($A$11:$A56)+2,FALSE)","v":2791},{"$f":"HLOOKUP(AA$7,$J$67:$DK$121,ROWS($A$11:$A56)+2,FALSE)","v":398},{"$f":"HLOOKUP(AB$7,$J$67:$DK$121,ROWS($A$11:$A56)+2,FALSE)","v":217},{"$f":"HLOOKUP(AC$7,$J$67:$DK$121,ROWS($A$11:$A56)+2,FALSE)","v":345},{"$f":"HLOOKUP(AD$7,$J$67:$DK$121,ROWS($A$11:$A56)+2,FALSE)","v":380},{"$f":"HLOOKUP(AE$7,$J$67:$DK$121,ROWS($A$11:$A56)+2,FALSE)","v":613},{"$f":"HLOOKUP(AF$7,$J$67:$DK$121,ROWS($A$11:$A56)+2,FALSE)","v":1503},{"$f":"HLOOKUP(AG$7,$J$67:$DK$121,ROWS($A$11:$A56)+2,FALSE)","v":1670},{"$f":"HLOOKUP(AH$7,$J$67:$DK$121,ROWS($A$11:$A56)+2,FALSE)","v":385},{"$f":"HLOOKUP(AI$7,$J$67:$DK$121,ROWS($A$11:$A56)+2,FALSE)","v":284},{"$f":"HLOOKUP(AJ$7,$J$67:$DK$121,ROWS($A$11:$A56)+2,FALSE)","v":1553},{"$f":"HLOOKUP(AK$7,$J$67:$DK$121,ROWS($A$11:$A56)+2,FALSE)","v":1057},{"$f":"HLOOKUP(AL$7,$J$67:$DK$121,ROWS($A$11:$A56)+2,FALSE)","v":489},{"$f":"HLOOKUP(AM$7,$J$67:$DK$121,ROWS($A$11:$A56)+2,FALSE)","v":5391},{"$f":"HLOOKUP(AN$7,$J$67:$DK$121,ROWS($A$11:$A56)+2,FALSE)","v":507},{"$f":"HLOOKUP(AO$7,$J$67:$DK$121,ROWS($A$11:$A56)+2,FALSE)","v":437},{"$f":"HLOOKUP(AP$7,$J$67:$DK$121,ROWS($A$11:$A56)+2,FALSE)","v":686},{"$f":"HLOOKUP(AQ$7,$J$67:$DK$121,ROWS($A$11:$A56)+2,FALSE)","v":2129},{"$f":"HLOOKUP(AR$7,$J$67:$DK$121,ROWS($A$11:$A56)+2,FALSE)","v":842},{"$f":"HLOOKUP(AS$7,$J$67:$DK$121,ROWS($A$11:$A56)+2,FALSE)","v":175},{"$f":"HLOOKUP(AT$7,$J$67:$DK$121,ROWS($A$11:$A56)+2,FALSE)","v":1875},{"$f":"HLOOKUP(AU$7,$J$67:$DK$121,ROWS($A$11:$A56)+2,FALSE)","v":1338},{"$f":"HLOOKUP(AV$7,$J$67:$DK$121,ROWS($A$11:$A56)+2,FALSE)","v":4089},{"$f":"HLOOKUP(AW$7,$J$67:$DK$121,ROWS($A$11:$A56)+2,FALSE)","v":944},{"$f":"HLOOKUP(AX$7,$J$67:$DK$121,ROWS($A$11:$A56)+2,FALSE)","v":351},{"$f":"HLOOKUP(AY$7,$J$67:$DK$121,ROWS($A$11:$A56)+2,FALSE)","v":60},{"$f":"HLOOKUP(AZ$7,$J$67:$DK$121,ROWS($A$11:$A56)+2,FALSE)","v":47},{"$f":"HLOOKUP(BA$7,$J$67:$DK$121,ROWS($A$11:$A56)+2,FALSE)","v":863},{"$f":"HLOOKUP(BB$7,$J$67:$DK$121,ROWS($A$11:$A56)+2,FALSE)","v":3605},{"$f":"HLOOKUP(BC$7,$J$67:$DK$121,ROWS($A$11:$A56)+2,FALSE)","v":"N/A"},{"$f":"HLOOKUP(BD$7,$J$67:$DK$121,ROWS($A$11:$A56)+2,FALSE)","v":39},{"$f":"HLOOKUP(BE$7,$J$67:$DK$121,ROWS($A$11:$A56)+2,FALSE)","v":1369},{"$f":"HLOOKUP(BF$7,$J$67:$DK$121,ROWS($A$11:$A56)+2,FALSE)","v":3529},{"$f":"HLOOKUP(BG$7,$J$67:$DK$121,ROWS($A$11:$A56)+2,FALSE)","v":0},{"$f":"HLOOKUP(BH$7,$J$67:$DK$121,ROWS($A$11:$A56)+2,FALSE)","v":1445},{"$f":"HLOOKUP(BI$7,$J$67:$DK$121,ROWS($A$11:$A56)+2,FALSE)","v":2216},{"$f":"HLOOKUP(BJ$7,$J$67:$DK$121,ROWS($A$11:$A56)+2,FALSE)","v":239},{"$f":"HLOOKUP(BK$7+0.5,$J$67:$DK$121,ROWS($A$11:$A56)+2,FALSE)","v":7490},{"$f":"HLOOKUP(BL$7+0.5,$J$67:$DK$121,ROWS($A$11:$A56)+2,FALSE)","v":171},{"$f":"HLOOKUP(BM$7+0.5,$J$67:$DK$121,ROWS($A$11:$A56)+2,FALSE)","v":1292},{"$f":"HLOOKUP(BN$7+0.5,$J$67:$DK$121,ROWS($A$11:$A56)+2,FALSE)","v":2419},{"$f":"HLOOKUP(BO$7+0.5,$J$67:$DK$121,ROWS($A$11:$A56)+2,FALSE)","v":402},{"$f":"HLOOKUP(BP$7+0.5,$J$67:$DK$121,ROWS($A$11:$A56)+2,FALSE)","v":2837},{"$f":"HLOOKUP(BQ$7+0.5,$J$67:$DK$121,ROWS($A$11:$A56)+2,FALSE)","v":1845},{"$f":"HLOOKUP(BR$7+0.5,$J$67:$DK$121,ROWS($A$11:$A56)+2,FALSE)","v":168},{"$f":"HLOOKUP(BS$7+0.5,$J$67:$DK$121,ROWS($A$11:$A56)+2,FALSE)","v":181},{"$f":"HLOOKUP(BT$7+0.5,$J$67:$DK$121,ROWS($A$11:$A56)+2,FALSE)","v":181},{"$f":"HLOOKUP(BU$7+0.5,$J$67:$DK$121,ROWS($A$11:$A56)+2,FALSE)","v":1105},{"$f":"HLOOKUP(BV$7+0.5,$J$67:$DK$121,ROWS($A$11:$A56)+2,FALSE)","v":622},{"$f":"HLOOKUP(BW$7+0.5,$J$67:$DK$121,ROWS($A$11:$A56)+2,FALSE)","v":876},{"$f":"HLOOKUP(BX$7+0.5,$J$67:$DK$121,ROWS($A$11:$A56)+2,FALSE)","v":1135},{"$f":"HLOOKUP(BY$7+0.5,$J$67:$DK$121,ROWS($A$11:$A56)+2,FALSE)","v":802},{"$f":"HLOOKUP(BZ$7+0.5,$J$67:$DK$121,ROWS($A$11:$A56)+2,FALSE)","v":296},{"$f":"HLOOKUP(CA$7+0.5,$J$67:$DK$121,ROWS($A$11:$A56)+2,FALSE)","v":2779},{"$f":"HLOOKUP(CB$7+0.5,$J$67:$DK$121,ROWS($A$11:$A56)+2,FALSE)","v":333},{"$f":"HLOOKUP(CC$7+0.5,$J$67:$DK$121,ROWS($A$11:$A56)+2,FALSE)","v":221},{"$f":"HLOOKUP(CD$7+0.5,$J$67:$DK$121,ROWS($A$11:$A56)+2,FALSE)","v":313},{"$f":"HLOOKUP(CE$7+0.5,$J$67:$DK$121,ROWS($A$11:$A56)+2,FALSE)","v":339},{"$f":"HLOOKUP(CF$7+0.5,$J$67:$DK$121,ROWS($A$11:$A56)+2,FALSE)","v":361},{"$f":"HLOOKUP(CG$7+0.5,$J$67:$DK$121,ROWS($A$11:$A56)+2,FALSE)","v":1343},{"$f":"HLOOKUP(CH$7+0.5,$J$67:$DK$121,ROWS($A$11:$A56)+2,FALSE)","v":1210},{"$f":"HLOOKUP(CI$7+0.5,$J$67:$DK$121,ROWS($A$11:$A56)+2,FALSE)","v":300},{"$f":"HLOOKUP(CJ$7+0.5,$J$67:$DK$121,ROWS($A$11:$A56)+2,FALSE)","v":229},{"$f":"HLOOKUP(CK$7+0.5,$J$67:$DK$121,ROWS($A$11:$A56)+2,FALSE)","v":769},{"$f":"HLOOKUP(CL$7+0.5,$J$67:$DK$121,ROWS($A$11:$A56)+2,FALSE)","v":729},{"$f":"HLOOKUP(CM$7+0.5,$J$67:$DK$121,ROWS($A$11:$A56)+2,FALSE)","v":384},{"$f":"HLOOKUP(CN$7+0.5,$J$67:$DK$121,ROWS($A$11:$A56)+2,FALSE)","v":1743},{"$f":"HLOOKUP(CO$7+0.5,$J$67:$DK$121,ROWS($A$11:$A56)+2,FALSE)","v":442},{"$f":"HLOOKUP(CP$7+0.5,$J$67:$DK$121,ROWS($A$11:$A56)+2,FALSE)","v":322},{"$f":"HLOOKUP(CQ$7+0.5,$J$67:$DK$121,ROWS($A$11:$A56)+2,FALSE)","v":505},{"$f":"HLOOKUP(CR$7+0.5,$J$67:$DK$121,ROWS($A$11:$A56)+2,FALSE)","v":924},{"$f":"HLOOKUP(CS$7+0.5,$J$67:$DK$121,ROWS($A$11:$A56)+2,FALSE)","v":611},{"$f":"HLOOKUP(CT$7+0.5,$J$67:$DK$121,ROWS($A$11:$A56)+2,FALSE)","v":218},{"$f":"HLOOKUP(CU$7+0.5,$J$67:$DK$121,ROWS($A$11:$A56)+2,FALSE)","v":881},{"$f":"HLOOKUP(CV$7+0.5,$J$67:$DK$121,ROWS($A$11:$A56)+2,FALSE)","v":691},{"$f":"HLOOKUP(CW$7+0.5,$J$67:$DK$121,ROWS($A$11:$A56)+2,FALSE)","v":2693},{"$f":"HLOOKUP(CX$7+0.5,$J$67:$DK$121,ROWS($A$11:$A56)+2,FALSE)","v":450},{"$f":"HLOOKUP(CY$7+0.5,$J$67:$DK$121,ROWS($A$11:$A56)+2,FALSE)","v":571},{"$f":"HLOOKUP(CZ$7+0.5,$J$67:$DK$121,ROWS($A$11:$A56)+2,FALSE)","v":100},{"$f":"HLOOKUP(DA$7+0.5,$J$67:$DK$121,ROWS($A$11:$A56)+2,FALSE)","v":74},{"$f":"HLOOKUP(DB$7+0.5,$J$67:$DK$121,ROWS($A$11:$A56)+2,FALSE)","v":529},{"$f":"HLOOKUP(DC$7+0.5,$J$67:$DK$121,ROWS($A$11:$A56)+2,FALSE)","v":1278},{"$f":"HLOOKUP(DD$7+0.5,$J$67:$DK$121,ROWS($A$11:$A56)+2,FALSE)","v":"N/A"},{"$f":"HLOOKUP(DE$7+0.5,$J$67:$DK$121,ROWS($A$11:$A56)+2,FALSE)","v":63},{"$f":"HLOOKUP(DF$7+0.5,$J$67:$DK$121,ROWS($A$11:$A56)+2,FALSE)","v":668},{"$f":"HLOOKUP(DG$7+0.5,$J$67:$DK$121,ROWS($A$11:$A56)+2,FALSE)","v":1319},{"$f":"HLOOKUP(DH$7+0.5,$J$67:$DK$121,ROWS($A$11:$A56)+2,FALSE)","v":181},{"$f":"HLOOKUP(DI$7+0.5,$J$67:$DK$121,ROWS($A$11:$A56)+2,FALSE)","v":1512},{"$f":"HLOOKUP(DJ$7+0.5,$J$67:$DK$121,ROWS($A$11:$A56)+2,FALSE)","v":715},{"$f":"HLOOKUP(DK$7+0.5,$J$67:$DK$121,ROWS($A$11:$A56)+2,FALSE)","v":190}]
[null,"Vermont",620224,821,532237,5326,61242,5294,3.455418370673567E-3,{"$f":"HLOOKUP(J$7,$J$67:$DK$121,ROWS($A$11:$A57)+2,FALSE)","v":24431},{"$f":"HLOOKUP(K$7,$J$67:$DK$121,ROWS($A$11:$A57)+2,FALSE)","v":16},{"$f":"HLOOKUP(L$7,$J$67:$DK$121,ROWS($A$11:$A57)+2,FALSE)","v":93},{"$f":"HLOOKUP(M$7,$J$67:$DK$121,ROWS($A$11:$A57)+2,FALSE)","v":127},{"$f":"HLOOKUP(N$7,$J$67:$DK$121,ROWS($A$11:$A57)+2,FALSE)","v":0},{"$f":"HLOOKUP(O$7,$J$67:$DK$121,ROWS($A$11:$A57)+2,FALSE)","v":1112},{"$f":"HLOOKUP(P$7,$J$67:$DK$121,ROWS($A$11:$A57)+2,FALSE)","v":382},{"$f":"HLOOKUP(Q$7,$J$67:$DK$121,ROWS($A$11:$A57)+2,FALSE)","v":1626},{"$f":"HLOOKUP(R$7,$J$67:$DK$121,ROWS($A$11:$A57)+2,FALSE)","v":0},{"$f":"HLOOKUP(S$7,$J$67:$DK$121,ROWS($A$11:$A57)+2,FALSE)","v":116},{"$f":"HLOOKUP(T$7,$J$67:$DK$121,ROWS($A$11:$A57)+2,FALSE)","v":966},{"$f":"HLOOKUP(U$7,$J$67:$DK$121,ROWS($A$11:$A57)+2,FALSE)","v":56},{"$f":"HLOOKUP(V$7,$J$67:$DK$121,ROWS($A$11:$A57)+2,FALSE)","v":6},{"$f":"HLOOKUP(W$7,$J$67:$DK$121,ROWS($A$11:$A57)+2,FALSE)","v":0},{"$f":"HLOOKUP(X$7,$J$67:$DK$121,ROWS($A$11:$A57)+2,FALSE)","v":230},{"$f":"HLOOKUP(Y$7,$J$67:$DK$121,ROWS($A$11:$A57)+2,FALSE)","v":68},{"$f":"HLOOKUP(Z$7,$J$67:$DK$121,ROWS($A$11:$A57)+2,FALSE)","v":30},{"$f":"HLOOKUP(AA$7,$J$67:$DK$121,ROWS($A$11:$A57)+2,FALSE)","v":0},{"$f":"HLOOKUP(AB$7,$J$67:$DK$121,ROWS($A$11:$A57)+2,FALSE)","v":1243},{"$f":"HLOOKUP(AC$7,$J$67:$DK$121,ROWS($A$11:$A57)+2,FALSE)","v":73},{"$f":"HLOOKUP(AD$7,$J$67:$DK$121,ROWS($A$11:$A57)+2,FALSE)","v":883},{"$f":"HLOOKUP(AE$7,$J$67:$DK$121,ROWS($A$11:$A57)+2,FALSE)","v":862},{"$f":"HLOOKUP(AF$7,$J$67:$DK$121,ROWS($A$11:$A57)+2,FALSE)","v":3318},{"$f":"HLOOKUP(AG$7,$J$67:$DK$121,ROWS($A$11:$A57)+2,FALSE)","v":284},{"$f":"HLOOKUP(AH$7,$J$67:$DK$121,ROWS($A$11:$A57)+2,FALSE)","v":315},{"$f":"HLOOKUP(AI$7,$J$67:$DK$121,ROWS($A$11:$A57)+2,FALSE)","v":0},{"$f":"HLOOKUP(AJ$7,$J$67:$DK$121,ROWS($A$11:$A57)+2,FALSE)","v":23},{"$f":"HLOOKUP(AK$7,$J$67:$DK$121,ROWS($A$11:$A57)+2,FALSE)","v":147},{"$f":"HLOOKUP(AL$7,$J$67:$DK$121,ROWS($A$11:$A57)+2,FALSE)","v":0},{"$f":"HLOOKUP(AM$7,$J$67:$DK$121,ROWS($A$11:$A57)+2,FALSE)","v":17},{"$f":"HLOOKUP(AN$7,$J$67:$DK$121,ROWS($A$11:$A57)+2,FALSE)","v":2893},{"$f":"HLOOKUP(AO$7,$J$67:$DK$121,ROWS($A$11:$A57)+2,FALSE)","v":833},{"$f":"HLOOKUP(AP$7,$J$67:$DK$121,ROWS($A$11:$A57)+2,FALSE)","v":74},{"$f":"HLOOKUP(AQ$7,$J$67:$DK$121,ROWS($A$11:$A57)+2,FALSE)","v":4780},{"$f":"HLOOKUP(AR$7,$J$67:$DK$121,ROWS($A$11:$A57)+2,FALSE)","v":328},{"$f":"HLOOKUP(AS$7,$J$67:$DK$121,ROWS($A$11:$A57)+2,FALSE)","v":0},{"$f":"HLOOKUP(AT$7,$J$67:$DK$121,ROWS($A$11:$A57)+2,FALSE)","v":214},{"$f":"HLOOKUP(AU$7,$J$67:$DK$121,ROWS($A$11:$A57)+2,FALSE)","v":11},{"$f":"HLOOKUP(AV$7,$J$67:$DK$121,ROWS($A$11:$A57)+2,FALSE)","v":26},{"$f":"HLOOKUP(AW$7,$J$67:$DK$121,ROWS($A$11:$A57)+2,FALSE)","v":935},{"$f":"HLOOKUP(AX$7,$J$67:$DK$121,ROWS($A$11:$A57)+2,FALSE)","v":341},{"$f":"HLOOKUP(AY$7,$J$67:$DK$121,ROWS($A$11:$A57)+2,FALSE)","v":124},{"$f":"HLOOKUP(AZ$7,$J$67:$DK$121,ROWS($A$11:$A57)+2,FALSE)","v":39},{"$f":"HLOOKUP(BA$7,$J$67:$DK$121,ROWS($A$11:$A57)+2,FALSE)","v":193},{"$f":"HLOOKUP(BB$7,$J$67:$DK$121,ROWS($A$11:$A57)+2,FALSE)","v":493},{"$f":"HLOOKUP(BC$7,$J$67:$DK$121,ROWS($A$11:$A57)+2,FALSE)","v":81},{"$f":"HLOOKUP(BD$7,$J$67:$DK$121,ROWS($A$11:$A57)+2,FALSE)","v":"N/A"},{"$f":"HLOOKUP(BE$7,$J$67:$DK$121,ROWS($A$11:$A57)+2,FALSE)","v":728},{"$f":"HLOOKUP(BF$7,$J$67:$DK$121,ROWS($A$11:$A57)+2,FALSE)","v":98},{"$f":"HLOOKUP(BG$7,$J$67:$DK$121,ROWS($A$11:$A57)+2,FALSE)","v":0},{"$f":"HLOOKUP(BH$7,$J$67:$DK$121,ROWS($A$11:$A57)+2,FALSE)","v":151},{"$f":"HLOOKUP(BI$7,$J$67:$DK$121,ROWS($A$11:$A57)+2,FALSE)","v":96},{"$f":"HLOOKUP(BJ$7,$J$67:$DK$121,ROWS($A$11:$A57)+2,FALSE)","v":0},{"$f":"HLOOKUP(BK$7+0.5,$J$67:$DK$121,ROWS($A$11:$A57)+2,FALSE)","v":2713},{"$f":"HLOOKUP(BL$7+0.5,$J$67:$DK$121,ROWS($A$11:$A57)+2,FALSE)","v":23},{"$f":"HLOOKUP(BM$7+0.5,$J$67:$DK$121,ROWS($A$11:$A57)+2,FALSE)","v":153},{"$f":"HLOOKUP(BN$7+0.5,$J$67:$DK$121,ROWS($A$11:$A57)+2,FALSE)","v":165},{"$f":"HLOOKUP(BO$7+0.5,$J$67:$DK$121,ROWS($A$11:$A57)+2,FALSE)","v":143},{"$f":"HLOOKUP(BP$7+0.5,$J$67:$DK$121,ROWS($A$11:$A57)+2,FALSE)","v":537},{"$f":"HLOOKUP(BQ$7+0.5,$J$67:$DK$121,ROWS($A$11:$A57)+2,FALSE)","v":296},{"$f":"HLOOKUP(BR$7+0.5,$J$67:$DK$121,ROWS($A$11:$A57)+2,FALSE)","v":540},{"$f":"HLOOKUP(BS$7+0.5,$J$67:$DK$121,ROWS($A$11:$A57)+2,FALSE)","v":143},{"$f":"HLOOKUP(BT$7+0.5,$J$67:$DK$121,ROWS($A$11:$A57)+2,FALSE)","v":134},{"$f":"HLOOKUP(BU$7+0.5,$J$67:$DK$121,ROWS($A$11:$A57)+2,FALSE)","v":519},{"$f":"HLOOKUP(BV$7+0.5,$J$67:$DK$121,ROWS($A$11:$A57)+2,FALSE)","v":81},{"$f":"HLOOKUP(BW$7+0.5,$J$67:$DK$121,ROWS($A$11:$A57)+2,FALSE)","v":10},{"$f":"HLOOKUP(BX$7+0.5,$J$67:$DK$121,ROWS($A$11:$A57)+2,FALSE)","v":143},{"$f":"HLOOKUP(BY$7+0.5,$J$67:$DK$121,ROWS($A$11:$A57)+2,FALSE)","v":221},{"$f":"HLOOKUP(BZ$7+0.5,$J$67:$DK$121,ROWS($A$11:$A57)+2,FALSE)","v":81},{"$f":"HLOOKUP(CA$7+0.5,$J$67:$DK$121,ROWS($A$11:$A57)+2,FALSE)","v":43},{"$f":"HLOOKUP(CB$7+0.5,$J$67:$DK$121,ROWS($A$11:$A57)+2,FALSE)","v":143},{"$f":"HLOOKUP(CC$7+0.5,$J$67:$DK$121,ROWS($A$11:$A57)+2,FALSE)","v":1690},{"$f":"HLOOKUP(CD$7+0.5,$J$67:$DK$121,ROWS($A$11:$A57)+2,FALSE)","v":105},{"$f":"HLOOKUP(CE$7+0.5,$J$67:$DK$121,ROWS($A$11:$A57)+2,FALSE)","v":546},{"$f":"HLOOKUP(CF$7+0.5,$J$67:$DK$121,ROWS($A$11:$A57)+2,FALSE)","v":396},{"$f":"HLOOKUP(CG$7+0.5,$J$67:$DK$121,ROWS($A$11:$A57)+2,FALSE)","v":657},{"$f":"HLOOKUP(CH$7+0.5,$J$67:$DK$121,ROWS($A$11:$A57)+2,FALSE)","v":246},{"$f":"HLOOKUP(CI$7+0.5,$J$67:$DK$121,ROWS($A$11:$A57)+2,FALSE)","v":349},{"$f":"HLOOKUP(CJ$7+0.5,$J$67:$DK$121,ROWS($A$11:$A57)+2,FALSE)","v":143},{"$f":"HLOOKUP(CK$7+0.5,$J$67:$DK$121,ROWS($A$11:$A57)+2,FALSE)","v":26},{"$f":"HLOOKUP(CL$7+0.5,$J$67:$DK$121,ROWS($A$11:$A57)+2,FALSE)","v":189},{"$f":"HLOOKUP(CM$7+0.5,$J$67:$DK$121,ROWS($A$11:$A57)+2,FALSE)","v":143},{"$f":"HLOOKUP(CN$7+0.5,$J$67:$DK$121,ROWS($A$11:$A57)+2,FALSE)","v":37},{"$f":"HLOOKUP(CO$7+0.5,$J$67:$DK$121,ROWS($A$11:$A57)+2,FALSE)","v":812},{"$f":"HLOOKUP(CP$7+0.5,$J$67:$DK$121,ROWS($A$11:$A57)+2,FALSE)","v":364},{"$f":"HLOOKUP(CQ$7+0.5,$J$67:$DK$121,ROWS($A$11:$A57)+2,FALSE)","v":89},{"$f":"HLOOKUP(CR$7+0.5,$J$67:$DK$121,ROWS($A$11:$A57)+2,FALSE)","v":921},{"$f":"HLOOKUP(CS$7+0.5,$J$67:$DK$121,ROWS($A$11:$A57)+2,FALSE)","v":248},{"$f":"HLOOKUP(CT$7+0.5,$J$67:$DK$121,ROWS($A$11:$A57)+2,FALSE)","v":143},{"$f":"HLOOKUP(CU$7+0.5,$J$67:$DK$121,ROWS($A$11:$A57)+2,FALSE)","v":247},{"$f":"HLOOKUP(CV$7+0.5,$J$67:$DK$121,ROWS($A$11:$A57)+2,FALSE)","v":13},{"$f":"HLOOKUP(CW$7+0.5,$J$67:$DK$121,ROWS($A$11:$A57)+2,FALSE)","v":38},{"$f":"HLOOKUP(CX$7+0.5,$J$67:$DK$121,ROWS($A$11:$A57)+2,FALSE)","v":525},{"$f":"HLOOKUP(CY$7+0.5,$J$67:$DK$121,ROWS($A$11:$A57)+2,FALSE)","v":220},{"$f":"HLOOKUP(CZ$7+0.5,$J$67:$DK$121,ROWS($A$11:$A57)+2,FALSE)","v":208},{"$f":"HLOOKUP(DA$7+0.5,$J$67:$DK$121,ROWS($A$11:$A57)+2,FALSE)","v":66},{"$f":"HLOOKUP(DB$7+0.5,$J$67:$DK$121,ROWS($A$11:$A57)+2,FALSE)","v":185},{"$f":"HLOOKUP(DC$7+0.5,$J$67:$DK$121,ROWS($A$11:$A57)+2,FALSE)","v":334},{"$f":"HLOOKUP(DD$7+0.5,$J$67:$DK$121,ROWS($A$11:$A57)+2,FALSE)","v":96},{"$f":"HLOOKUP(DE$7+0.5,$J$67:$DK$121,ROWS($A$11:$A57)+2,FALSE)","v":"N/A"},{"$f":"HLOOKUP(DF$7+0.5,$J$67:$DK$121,ROWS($A$11:$A57)+2,FALSE)","v":427},{"$f":"HLOOKUP(DG$7+0.5,$J$67:$DK$121,ROWS($A$11:$A57)+2,FALSE)","v":109},{"$f":"HLOOKUP(DH$7+0.5,$J$67:$DK$121,ROWS($A$11:$A57)+2,FALSE)","v":143},{"$f":"HLOOKUP(DI$7+0.5,$J$67:$DK$121,ROWS($A$11:$A57)+2,FALSE)","v":115},{"$f":"HLOOKUP(DJ$7+0.5,$J$67:$DK$121,ROWS($A$11:$A57)+2,FALSE)","v":102},{"$f":"HLOOKUP(DK$7+0.5,$J$67:$DK$121,ROWS($A$11:$A57)+2,FALSE)","v":143}]
[null,"Virginia",8085389,4754,6857430,25550,915242,24032,3.5451311074636387E-2,{"$f":"HLOOKUP(J$7,$J$67:$DK$121,ROWS($A$11:$A58)+2,FALSE)","v":250653},{"$f":"HLOOKUP(K$7,$J$67:$DK$121,ROWS($A$11:$A58)+2,FALSE)","v":2515},{"$f":"HLOOKUP(L$7,$J$67:$DK$121,ROWS($A$11:$A58)+2,FALSE)","v":1906},{"$f":"HLOOKUP(M$7,$J$67:$DK$121,ROWS($A$11:$A58)+2,FALSE)","v":2420},{"$f":"HLOOKUP(N$7,$J$67:$DK$121,ROWS($A$11:$A58)+2,FALSE)","v":445},{"$f":"HLOOKUP(O$7,$J$67:$DK$121,ROWS($A$11:$A58)+2,FALSE)","v":14780},{"$f":"HLOOKUP(P$7,$J$67:$DK$121,ROWS($A$11:$A58)+2,FALSE)","v":5352},{"$f":"HLOOKUP(Q$7,$J$67:$DK$121,ROWS($A$11:$A58)+2,FALSE)","v":2725},{"$f":"HLOOKUP(R$7,$J$67:$DK$121,ROWS($A$11:$A58)+2,FALSE)","v":2279},{"$f":"HLOOKUP(S$7,$J$67:$DK$121,ROWS($A$11:$A58)+2,FALSE)","v":10964},{"$f":"HLOOKUP(T$7,$J$67:$DK$121,ROWS($A$11:$A58)+2,FALSE)","v":19574},{"$f":"HLOOKUP(U$7,$J$67:$DK$121,ROWS($A$11:$A58)+2,FALSE)","v":9535},{"$f":"HLOOKUP(V$7,$J$67:$DK$121,ROWS($A$11:$A58)+2,FALSE)","v":3823},{"$f":"HLOOKUP(W$7,$J$67:$DK$121,ROWS($A$11:$A58)+2,FALSE)","v":652},{"$f":"HLOOKUP(X$7,$J$67:$DK$121,ROWS($A$11:$A58)+2,FALSE)","v":7089},{"$f":"HLOOKUP(Y$7,$J$67:$DK$121,ROWS($A$11:$A58)+2,FALSE)","v":2663},{"$f":"HLOOKUP(Z$7,$J$67:$DK$121,ROWS($A$11:$A58)+2,FALSE)","v":221},{"$f":"HLOOKUP(AA$7,$J$67:$DK$121,ROWS($A$11:$A58)+2,FALSE)","v":1144},{"$f":"HLOOKUP(AB$7,$J$67:$DK$121,ROWS($A$11:$A58)+2,FALSE)","v":3908},{"$f":"HLOOKUP(AC$7,$J$67:$DK$121,ROWS($A$11:$A58)+2,FALSE)","v":1638},{"$f":"HLOOKUP(AD$7,$J$67:$DK$121,ROWS($A$11:$A58)+2,FALSE)","v":1144},{"$f":"HLOOKUP(AE$7,$J$67:$DK$121,ROWS($A$11:$A58)+2,FALSE)","v":23925},{"$f":"HLOOKUP(AF$7,$J$67:$DK$121,ROWS($A$11:$A58)+2,FALSE)","v":3767},{"$f":"HLOOKUP(AG$7,$J$67:$DK$121,ROWS($A$11:$A58)+2,FALSE)","v":2982},{"$f":"HLOOKUP(AH$7,$J$67:$DK$121,ROWS($A$11:$A58)+2,FALSE)","v":2294},{"$f":"HLOOKUP(AI$7,$J$67:$DK$121,ROWS($A$11:$A58)+2,FALSE)","v":1344},{"$f":"HLOOKUP(AJ$7,$J$67:$DK$121,ROWS($A$11:$A58)+2,FALSE)","v":1914},{"$f":"HLOOKUP(AK$7,$J$67:$DK$121,ROWS($A$11:$A58)+2,FALSE)","v":658},{"$f":"HLOOKUP(AL$7,$J$67:$DK$121,ROWS($A$11:$A58)+2,FALSE)","v":357},{"$f":"HLOOKUP(AM$7,$J$67:$DK$121,ROWS($A$11:$A58)+2,FALSE)","v":973},{"$f":"HLOOKUP(AN$7,$J$67:$DK$121,ROWS($A$11:$A58)+2,FALSE)","v":535},{"$f":"HLOOKUP(AO$7,$J$67:$DK$121,ROWS($A$11:$A58)+2,FALSE)","v":9073},{"$f":"HLOOKUP(AP$7,$J$67:$DK$121,ROWS($A$11:$A58)+2,FALSE)","v":947},{"$f":"HLOOKUP(AQ$7,$J$67:$DK$121,ROWS($A$11:$A58)+2,FALSE)","v":15893},{"$f":"HLOOKUP(AR$7,$J$67:$DK$121,ROWS($A$11:$A58)+2,FALSE)","v":25575},{"$f":"HLOOKUP(AS$7,$J$67:$DK$121,ROWS($A$11:$A58)+2,FALSE)","v":852},{"$f":"HLOOKUP(AT$7,$J$67:$DK$121,ROWS($A$11:$A58)+2,FALSE)","v":5622},{"$f":"HLOOKUP(AU$7,$J$67:$DK$121,ROWS($A$11:$A58)+2,FALSE)","v":2810},{"$f":"HLOOKUP(AV$7,$J$67:$DK$121,ROWS($A$11:$A58)+2,FALSE)","v":1541},{"$f":"HLOOKUP(AW$7,$J$67:$DK$121,ROWS($A$11:$A58)+2,FALSE)","v":14190},{"$f":"HLOOKUP(AX$7,$J$67:$DK$121,ROWS($A$11:$A58)+2,FALSE)","v":1605},{"$f":"HLOOKUP(AY$7,$J$67:$DK$121,ROWS($A$11:$A58)+2,FALSE)","v":7936},{"$f":"HLOOKUP(AZ$7,$J$67:$DK$121,ROWS($A$11:$A58)+2,FALSE)","v":35},{"$f":"HLOOKUP(BA$7,$J$67:$DK$121,ROWS($A$11:$A58)+2,FALSE)","v":6189},{"$f":"HLOOKUP(BB$7,$J$67:$DK$121,ROWS($A$11:$A58)+2,FALSE)","v":12944},{"$f":"HLOOKUP(BC$7,$J$67:$DK$121,ROWS($A$11:$A58)+2,FALSE)","v":2092},{"$f":"HLOOKUP(BD$7,$J$67:$DK$121,ROWS($A$11:$A58)+2,FALSE)","v":423},{"$f":"HLOOKUP(BE$7,$J$67:$DK$121,ROWS($A$11:$A58)+2,FALSE)","v":"N/A"},{"$f":"HLOOKUP(BF$7,$J$67:$DK$121,ROWS($A$11:$A58)+2,FALSE)","v":4160},{"$f":"HLOOKUP(BG$7,$J$67:$DK$121,ROWS($A$11:$A58)+2,FALSE)","v":3839},{"$f":"HLOOKUP(BH$7,$J$67:$DK$121,ROWS($A$11:$A58)+2,FALSE)","v":1258},{"$f":"HLOOKUP(BI$7,$J$67:$DK$121,ROWS($A$11:$A58)+2,FALSE)","v":143},{"$f":"HLOOKUP(BJ$7,$J$67:$DK$121,ROWS($A$11:$A58)+2,FALSE)","v":516},{"$f":"HLOOKUP(BK$7+0.5,$J$67:$DK$121,ROWS($A$11:$A58)+2,FALSE)","v":11997},{"$f":"HLOOKUP(BL$7+0.5,$J$67:$DK$121,ROWS($A$11:$A58)+2,FALSE)","v":990},{"$f":"HLOOKUP(BM$7+0.5,$J$67:$DK$121,ROWS($A$11:$A58)+2,FALSE)","v":1287},{"$f":"HLOOKUP(BN$7+0.5,$J$67:$DK$121,ROWS($A$11:$A58)+2,FALSE)","v":1030},{"$f":"HLOOKUP(BO$7+0.5,$J$67:$DK$121,ROWS($A$11:$A58)+2,FALSE)","v":319},{"$f":"HLOOKUP(BP$7+0.5,$J$67:$DK$121,ROWS($A$11:$A58)+2,FALSE)","v":2760},{"$f":"HLOOKUP(BQ$7+0.5,$J$67:$DK$121,ROWS($A$11:$A58)+2,FALSE)","v":1834},{"$f":"HLOOKUP(BR$7+0.5,$J$67:$DK$121,ROWS($A$11:$A58)+2,FALSE)","v":1001},{"$f":"HLOOKUP(BS$7+0.5,$J$67:$DK$121,ROWS($A$11:$A58)+2,FALSE)","v":1465},{"$f":"HLOOKUP(BT$7+0.5,$J$67:$DK$121,ROWS($A$11:$A58)+2,FALSE)","v":4084},{"$f":"HLOOKUP(BU$7+0.5,$J$67:$DK$121,ROWS($A$11:$A58)+2,FALSE)","v":3694},{"$f":"HLOOKUP(BV$7+0.5,$J$67:$DK$121,ROWS($A$11:$A58)+2,FALSE)","v":1889},{"$f":"HLOOKUP(BW$7+0.5,$J$67:$DK$121,ROWS($A$11:$A58)+2,FALSE)","v":1460},{"$f":"HLOOKUP(BX$7+0.5,$J$67:$DK$121,ROWS($A$11:$A58)+2,FALSE)","v":411},{"$f":"HLOOKUP(BY$7+0.5,$J$67:$DK$121,ROWS($A$11:$A58)+2,FALSE)","v":3237},{"$f":"HLOOKUP(BZ$7+0.5,$J$67:$DK$121,ROWS($A$11:$A58)+2,FALSE)","v":1228},{"$f":"HLOOKUP(CA$7+0.5,$J$67:$DK$121,ROWS($A$11:$A58)+2,FALSE)","v":209},{"$f":"HLOOKUP(CB$7+0.5,$J$67:$DK$121,ROWS($A$11:$A58)+2,FALSE)","v":669},{"$f":"HLOOKUP(CC$7+0.5,$J$67:$DK$121,ROWS($A$11:$A58)+2,FALSE)","v":1422},{"$f":"HLOOKUP(CD$7+0.5,$J$67:$DK$121,ROWS($A$11:$A58)+2,FALSE)","v":936},{"$f":"HLOOKUP(CE$7+0.5,$J$67:$DK$121,ROWS($A$11:$A58)+2,FALSE)","v":689},{"$f":"HLOOKUP(CF$7+0.5,$J$67:$DK$121,ROWS($A$11:$A58)+2,FALSE)","v":4264},{"$f":"HLOOKUP(CG$7+0.5,$J$67:$DK$121,ROWS($A$11:$A58)+2,FALSE)","v":1503},{"$f":"HLOOKUP(CH$7+0.5,$J$67:$DK$121,ROWS($A$11:$A58)+2,FALSE)","v":1136},{"$f":"HLOOKUP(CI$7+0.5,$J$67:$DK$121,ROWS($A$11:$A58)+2,FALSE)","v":1414},{"$f":"HLOOKUP(CJ$7+0.5,$J$67:$DK$121,ROWS($A$11:$A58)+2,FALSE)","v":730},{"$f":"HLOOKUP(CK$7+0.5,$J$67:$DK$121,ROWS($A$11:$A58)+2,FALSE)","v":837},{"$f":"HLOOKUP(CL$7+0.5,$J$67:$DK$121,ROWS($A$11:$A58)+2,FALSE)","v":433},{"$f":"HLOOKUP(CM$7+0.5,$J$67:$DK$121,ROWS($A$11:$A58)+2,FALSE)","v":313},{"$f":"HLOOKUP(CN$7+0.5,$J$67:$DK$121,ROWS($A$11:$A58)+2,FALSE)","v":522},{"$f":"HLOOKUP(CO$7+0.5,$J$67:$DK$121,ROWS($A$11:$A58)+2,FALSE)","v":398},{"$f":"HLOOKUP(CP$7+0.5,$J$67:$DK$121,ROWS($A$11:$A58)+2,FALSE)","v":2029},{"$f":"HLOOKUP(CQ$7+0.5,$J$67:$DK$121,ROWS($A$11:$A58)+2,FALSE)","v":637},{"$f":"HLOOKUP(CR$7+0.5,$J$67:$DK$121,ROWS($A$11:$A58)+2,FALSE)","v":3260},{"$f":"HLOOKUP(CS$7+0.5,$J$67:$DK$121,ROWS($A$11:$A58)+2,FALSE)","v":4182},{"$f":"HLOOKUP(CT$7+0.5,$J$67:$DK$121,ROWS($A$11:$A58)+2,FALSE)","v":1019},{"$f":"HLOOKUP(CU$7+0.5,$J$67:$DK$121,ROWS($A$11:$A58)+2,FALSE)","v":1519},{"$f":"HLOOKUP(CV$7+0.5,$J$67:$DK$121,ROWS($A$11:$A58)+2,FALSE)","v":1873},{"$f":"HLOOKUP(CW$7+0.5,$J$67:$DK$121,ROWS($A$11:$A58)+2,FALSE)","v":1069},{"$f":"HLOOKUP(CX$7+0.5,$J$67:$DK$121,ROWS($A$11:$A58)+2,FALSE)","v":2998},{"$f":"HLOOKUP(CY$7+0.5,$J$67:$DK$121,ROWS($A$11:$A58)+2,FALSE)","v":731},{"$f":"HLOOKUP(CZ$7+0.5,$J$67:$DK$121,ROWS($A$11:$A58)+2,FALSE)","v":2435},{"$f":"HLOOKUP(DA$7+0.5,$J$67:$DK$121,ROWS($A$11:$A58)+2,FALSE)","v":57},{"$f":"HLOOKUP(DB$7+0.5,$J$67:$DK$121,ROWS($A$11:$A58)+2,FALSE)","v":1858},{"$f":"HLOOKUP(DC$7+0.5,$J$67:$DK$121,ROWS($A$11:$A58)+2,FALSE)","v":2828},{"$f":"HLOOKUP(DD$7+0.5,$J$67:$DK$121,ROWS($A$11:$A58)+2,FALSE)","v":994},{"$f":"HLOOKUP(DE$7+0.5,$J$67:$DK$121,ROWS($A$11:$A58)+2,FALSE)","v":437},{"$f":"HLOOKUP(DF$7+0.5,$J$67:$DK$121,ROWS($A$11:$A58)+2,FALSE)","v":"N/A"},{"$f":"HLOOKUP(DG$7+0.5,$J$67:$DK$121,ROWS($A$11:$A58)+2,FALSE)","v":1420},{"$f":"HLOOKUP(DH$7+0.5,$J$67:$DK$121,ROWS($A$11:$A58)+2,FALSE)","v":1234},{"$f":"HLOOKUP(DI$7+0.5,$J$67:$DK$121,ROWS($A$11:$A58)+2,FALSE)","v":880},{"$f":"HLOOKUP(DJ$7+0.5,$J$67:$DK$121,ROWS($A$11:$A58)+2,FALSE)","v":166},{"$f":"HLOOKUP(DK$7+0.5,$J$67:$DK$121,ROWS($A$11:$A58)+2,FALSE)","v":466}]
[null,"Washington",6815763,3864,5648199,25225,904695,24285,3.0478569291880381E-2,{"$f":"HLOOKUP(J$7,$J$67:$DK$121,ROWS($A$11:$A59)+2,FALSE)","v":215494},{"$f":"HLOOKUP(K$7,$J$67:$DK$121,ROWS($A$11:$A59)+2,FALSE)","v":1507},{"$f":"HLOOKUP(L$7,$J$67:$DK$121,ROWS($A$11:$A59)+2,FALSE)","v":4328},{"$f":"HLOOKUP(M$7,$J$67:$DK$121,ROWS($A$11:$A59)+2,FALSE)","v":8362},{"$f":"HLOOKUP(N$7,$J$67:$DK$121,ROWS($A$11:$A59)+2,FALSE)","v":1413},{"$f":"HLOOKUP(O$7,$J$67:$DK$121,ROWS($A$11:$A59)+2,FALSE)","v":45597},{"$f":"HLOOKUP(P$7,$J$67:$DK$121,ROWS($A$11:$A59)+2,FALSE)","v":5195},{"$f":"HLOOKUP(Q$7,$J$67:$DK$121,ROWS($A$11:$A59)+2,FALSE)","v":2901},{"$f":"HLOOKUP(R$7,$J$67:$DK$121,ROWS($A$11:$A59)+2,FALSE)","v":100},{"$f":"HLOOKUP(S$7,$J$67:$DK$121,ROWS($A$11:$A59)+2,FALSE)","v":773},{"$f":"HLOOKUP(T$7,$J$67:$DK$121,ROWS($A$11:$A59)+2,FALSE)","v":9370},{"$f":"HLOOKUP(U$7,$J$67:$DK$121,ROWS($A$11:$A59)+2,FALSE)","v":6363},{"$f":"HLOOKUP(V$7,$J$67:$DK$121,ROWS($A$11:$A59)+2,FALSE)","v":5239},{"$f":"HLOOKUP(W$7,$J$67:$DK$121,ROWS($A$11:$A59)+2,FALSE)","v":10604},{"$f":"HLOOKUP(X$7,$J$67:$DK$121,ROWS($A$11:$A59)+2,FALSE)","v":4298},{"$f":"HLOOKUP(Y$7,$J$67:$DK$121,ROWS($A$11:$A59)+2,FALSE)","v":1089},{"$f":"HLOOKUP(Z$7,$J$67:$DK$121,ROWS($A$11:$A59)+2,FALSE)","v":1159},{"$f":"HLOOKUP(AA$7,$J$67:$DK$121,ROWS($A$11:$A59)+2,FALSE)","v":2544},{"$f":"HLOOKUP(AB$7,$J$67:$DK$121,ROWS($A$11:$A59)+2,FALSE)","v":1368},{"$f":"HLOOKUP(AC$7,$J$67:$DK$121,ROWS($A$11:$A59)+2,FALSE)","v":1646},{"$f":"HLOOKUP(AD$7,$J$67:$DK$121,ROWS($A$11:$A59)+2,FALSE)","v":532},{"$f":"HLOOKUP(AE$7,$J$67:$DK$121,ROWS($A$11:$A59)+2,FALSE)","v":1191},{"$f":"HLOOKUP(AF$7,$J$67:$DK$121,ROWS($A$11:$A59)+2,FALSE)","v":2911},{"$f":"HLOOKUP(AG$7,$J$67:$DK$121,ROWS($A$11:$A59)+2,FALSE)","v":3470},{"$f":"HLOOKUP(AH$7,$J$67:$DK$121,ROWS($A$11:$A59)+2,FALSE)","v":2703},{"$f":"HLOOKUP(AI$7,$J$67:$DK$121,ROWS($A$11:$A59)+2,FALSE)","v":615},{"$f":"HLOOKUP(AJ$7,$J$67:$DK$121,ROWS($A$11:$A59)+2,FALSE)","v":2802},{"$f":"HLOOKUP(AK$7,$J$67:$DK$121,ROWS($A$11:$A59)+2,FALSE)","v":2919},{"$f":"HLOOKUP(AL$7,$J$67:$DK$121,ROWS($A$11:$A59)+2,FALSE)","v":682},{"$f":"HLOOKUP(AM$7,$J$67:$DK$121,ROWS($A$11:$A59)+2,FALSE)","v":5671},{"$f":"HLOOKUP(AN$7,$J$67:$DK$121,ROWS($A$11:$A59)+2,FALSE)","v":309},{"$f":"HLOOKUP(AO$7,$J$67:$DK$121,ROWS($A$11:$A59)+2,FALSE)","v":2300},{"$f":"HLOOKUP(AP$7,$J$67:$DK$121,ROWS($A$11:$A59)+2,FALSE)","v":872},{"$f":"HLOOKUP(AQ$7,$J$67:$DK$121,ROWS($A$11:$A59)+2,FALSE)","v":5562},{"$f":"HLOOKUP(AR$7,$J$67:$DK$121,ROWS($A$11:$A59)+2,FALSE)","v":4088},{"$f":"HLOOKUP(AS$7,$J$67:$DK$121,ROWS($A$11:$A59)+2,FALSE)","v":217},{"$f":"HLOOKUP(AT$7,$J$67:$DK$121,ROWS($A$11:$A59)+2,FALSE)","v":3192},{"$f":"HLOOKUP(AU$7,$J$67:$DK$121,ROWS($A$11:$A59)+2,FALSE)","v":1223},{"$f":"HLOOKUP(AV$7,$J$67:$DK$121,ROWS($A$11:$A59)+2,FALSE)","v":25525},{"$f":"HLOOKUP(AW$7,$J$67:$DK$121,ROWS($A$11:$A59)+2,FALSE)","v":3397},{"$f":"HLOOKUP(AX$7,$J$67:$DK$121,ROWS($A$11:$A59)+2,FALSE)","v":97},{"$f":"HLOOKUP(AY$7,$J$67:$DK$121,ROWS($A$11:$A59)+2,FALSE)","v":2727},{"$f":"HLOOKUP(AZ$7,$J$67:$DK$121,ROWS($A$11:$A59)+2,FALSE)","v":94},{"$f":"HLOOKUP(BA$7,$J$67:$DK$121,ROWS($A$11:$A59)+2,FALSE)","v":3206},{"$f":"HLOOKUP(BB$7,$J$67:$DK$121,ROWS($A$11:$A59)+2,FALSE)","v":14196},{"$f":"HLOOKUP(BC$7,$J$67:$DK$121,ROWS($A$11:$A59)+2,FALSE)","v":5298},{"$f":"HLOOKUP(BD$7,$J$67:$DK$121,ROWS($A$11:$A59)+2,FALSE)","v":223},{"$f":"HLOOKUP(BE$7,$J$67:$DK$121,ROWS($A$11:$A59)+2,FALSE)","v":3839},{"$f":"HLOOKUP(BF$7,$J$67:$DK$121,ROWS($A$11:$A59)+2,FALSE)","v":"N/A"},{"$f":"HLOOKUP(BG$7,$J$67:$DK$121,ROWS($A$11:$A59)+2,FALSE)","v":215},{"$f":"HLOOKUP(BH$7,$J$67:$DK$121,ROWS($A$11:$A59)+2,FALSE)","v":1168},{"$f":"HLOOKUP(BI$7,$J$67:$DK$121,ROWS($A$11:$A59)+2,FALSE)","v":394},{"$f":"HLOOKUP(BJ$7,$J$67:$DK$121,ROWS($A$11:$A59)+2,FALSE)","v":1025},{"$f":"HLOOKUP(BK$7+0.5,$J$67:$DK$121,ROWS($A$11:$A59)+2,FALSE)","v":12552},{"$f":"HLOOKUP(BL$7+0.5,$J$67:$DK$121,ROWS($A$11:$A59)+2,FALSE)","v":730},{"$f":"HLOOKUP(BM$7+0.5,$J$67:$DK$121,ROWS($A$11:$A59)+2,FALSE)","v":1682},{"$f":"HLOOKUP(BN$7+0.5,$J$67:$DK$121,ROWS($A$11:$A59)+2,FALSE)","v":2641},{"$f":"HLOOKUP(BO$7+0.5,$J$67:$DK$121,ROWS($A$11:$A59)+2,FALSE)","v":1121},{"$f":"HLOOKUP(BP$7+0.5,$J$67:$DK$121,ROWS($A$11:$A59)+2,FALSE)","v":5884},{"$f":"HLOOKUP(BQ$7+0.5,$J$67:$DK$121,ROWS($A$11:$A59)+2,FALSE)","v":2150},{"$f":"HLOOKUP(BR$7+0.5,$J$67:$DK$121,ROWS($A$11:$A59)+2,FALSE)","v":1138},{"$f":"HLOOKUP(BS$7+0.5,$J$67:$DK$121,ROWS($A$11:$A59)+2,FALSE)","v":164},{"$f":"HLOOKUP(BT$7+0.5,$J$67:$DK$121,ROWS($A$11:$A59)+2,FALSE)","v":528},{"$f":"HLOOKUP(BU$7+0.5,$J$67:$DK$121,ROWS($A$11:$A59)+2,FALSE)","v":2417},{"$f":"HLOOKUP(BV$7+0.5,$J$67:$DK$121,ROWS($A$11:$A59)+2,FALSE)","v":2288},{"$f":"HLOOKUP(BW$7+0.5,$J$67:$DK$121,ROWS($A$11:$A59)+2,FALSE)","v":2393},{"$f":"HLOOKUP(BX$7+0.5,$J$67:$DK$121,ROWS($A$11:$A59)+2,FALSE)","v":2191},{"$f":"HLOOKUP(BY$7+0.5,$J$67:$DK$121,ROWS($A$11:$A59)+2,FALSE)","v":1727},{"$f":"HLOOKUP(BZ$7+0.5,$J$67:$DK$121,ROWS($A$11:$A59)+2,FALSE)","v":521},{"$f":"HLOOKUP(CA$7+0.5,$J$67:$DK$121,ROWS($A$11:$A59)+2,FALSE)","v":845},{"$f":"HLOOKUP(CB$7+0.5,$J$67:$DK$121,ROWS($A$11:$A59)+2,FALSE)","v":1029},{"$f":"HLOOKUP(CC$7+0.5,$J$67:$DK$121,ROWS($A$11:$A59)+2,FALSE)","v":911},{"$f":"HLOOKUP(CD$7+0.5,$J$67:$DK$121,ROWS($A$11:$A59)+2,FALSE)","v":915},{"$f":"HLOOKUP(CE$7+0.5,$J$67:$DK$121,ROWS($A$11:$A59)+2,FALSE)","v":655},{"$f":"HLOOKUP(CF$7+0.5,$J$67:$DK$121,ROWS($A$11:$A59)+2,FALSE)","v":923},{"$f":"HLOOKUP(CG$7+0.5,$J$67:$DK$121,ROWS($A$11:$A59)+2,FALSE)","v":1011},{"$f":"HLOOKUP(CH$7+0.5,$J$67:$DK$121,ROWS($A$11:$A59)+2,FALSE)","v":1605},{"$f":"HLOOKUP(CI$7+0.5,$J$67:$DK$121,ROWS($A$11:$A59)+2,FALSE)","v":1971},{"$f":"HLOOKUP(CJ$7+0.5,$J$67:$DK$121,ROWS($A$11:$A59)+2,FALSE)","v":444},{"$f":"HLOOKUP(CK$7+0.5,$J$67:$DK$121,ROWS($A$11:$A59)+2,FALSE)","v":1017},{"$f":"HLOOKUP(CL$7+0.5,$J$67:$DK$121,ROWS($A$11:$A59)+2,FALSE)","v":1013},{"$f":"HLOOKUP(CM$7+0.5,$J$67:$DK$121,ROWS($A$11:$A59)+2,FALSE)","v":456},{"$f":"HLOOKUP(CN$7+0.5,$J$67:$DK$121,ROWS($A$11:$A59)+2,FALSE)","v":2919},{"$f":"HLOOKUP(CO$7+0.5,$J$67:$DK$121,ROWS($A$11:$A59)+2,FALSE)","v":248},{"$f":"HLOOKUP(CP$7+0.5,$J$67:$DK$121,ROWS($A$11:$A59)+2,FALSE)","v":1441},{"$f":"HLOOKUP(CQ$7+0.5,$J$67:$DK$121,ROWS($A$11:$A59)+2,FALSE)","v":527},{"$f":"HLOOKUP(CR$7+0.5,$J$67:$DK$121,ROWS($A$11:$A59)+2,FALSE)","v":1947},{"$f":"HLOOKUP(CS$7+0.5,$J$67:$DK$121,ROWS($A$11:$A59)+2,FALSE)","v":1854},{"$f":"HLOOKUP(CT$7+0.5,$J$67:$DK$121,ROWS($A$11:$A59)+2,FALSE)","v":200},{"$f":"HLOOKUP(CU$7+0.5,$J$67:$DK$121,ROWS($A$11:$A59)+2,FALSE)","v":1400},{"$f":"HLOOKUP(CV$7+0.5,$J$67:$DK$121,ROWS($A$11:$A59)+2,FALSE)","v":768},{"$f":"HLOOKUP(CW$7+0.5,$J$67:$DK$121,ROWS($A$11:$A59)+2,FALSE)","v":4052},{"$f":"HLOOKUP(CX$7+0.5,$J$67:$DK$121,ROWS($A$11:$A59)+2,FALSE)","v":1799},{"$f":"HLOOKUP(CY$7+0.5,$J$67:$DK$121,ROWS($A$11:$A59)+2,FALSE)","v":162},{"$f":"HLOOKUP(CZ$7+0.5,$J$67:$DK$121,ROWS($A$11:$A59)+2,FALSE)","v":1542},{"$f":"HLOOKUP(DA$7+0.5,$J$67:$DK$121,ROWS($A$11:$A59)+2,FALSE)","v":155},{"$f":"HLOOKUP(DB$7+0.5,$J$67:$DK$121,ROWS($A$11:$A59)+2,FALSE)","v":1819},{"$f":"HLOOKUP(DC$7+0.5,$J$67:$DK$121,ROWS($A$11:$A59)+2,FALSE)","v":3417},{"$f":"HLOOKUP(DD$7+0.5,$J$67:$DK$121,ROWS($A$11:$A59)+2,FALSE)","v":1995},{"$f":"HLOOKUP(DE$7+0.5,$J$67:$DK$121,ROWS($A$11:$A59)+2,FALSE)","v":216},{"$f":"HLOOKUP(DF$7+0.5,$J$67:$DK$121,ROWS($A$11:$A59)+2,FALSE)","v":1320},{"$f":"HLOOKUP(DG$7+0.5,$J$67:$DK$121,ROWS($A$11:$A59)+2,FALSE)","v":"N/A"},{"$f":"HLOOKUP(DH$7+0.5,$J$67:$DK$121,ROWS($A$11:$A59)+2,FALSE)","v":271},{"$f":"HLOOKUP(DI$7+0.5,$J$67:$DK$121,ROWS($A$11:$A59)+2,FALSE)","v":638},{"$f":"HLOOKUP(DJ$7+0.5,$J$67:$DK$121,ROWS($A$11:$A59)+2,FALSE)","v":495},{"$f":"HLOOKUP(DK$7+0.5,$J$67:$DK$121,ROWS($A$11:$A59)+2,FALSE)","v":878}]
[null,"West Virginia",1837518,2090,1613322,11785,174112,11396,6.6651627325116387E-3,{"$f":"HLOOKUP(J$7,$J$67:$DK$121,ROWS($A$11:$A60)+2,FALSE)","v":47125},{"$f":"HLOOKUP(K$7,$J$67:$DK$121,ROWS($A$11:$A60)+2,FALSE)","v":477},{"$f":"HLOOKUP(L$7,$J$67:$DK$121,ROWS($A$11:$A60)+2,FALSE)","v":306},{"$f":"HLOOKUP(M$7,$J$67:$DK$121,ROWS($A$11:$A60)+2,FALSE)","v":79},{"$f":"HLOOKUP(N$7,$J$67:$DK$121,ROWS($A$11:$A60)+2,FALSE)","v":0},{"$f":"HLOOKUP(O$7,$J$67:$DK$121,ROWS($A$11:$A60)+2,FALSE)","v":1231},{"$f":"HLOOKUP(P$7,$J$67:$DK$121,ROWS($A$11:$A60)+2,FALSE)","v":104},{"$f":"HLOOKUP(Q$7,$J$67:$DK$121,ROWS($A$11:$A60)+2,FALSE)","v":143},{"$f":"HLOOKUP(R$7,$J$67:$DK$121,ROWS($A$11:$A60)+2,FALSE)","v":674},{"$f":"HLOOKUP(S$7,$J$67:$DK$121,ROWS($A$11:$A60)+2,FALSE)","v":294},{"$f":"HLOOKUP(T$7,$J$67:$DK$121,ROWS($A$11:$A60)+2,FALSE)","v":1919},{"$f":"HLOOKUP(U$7,$J$67:$DK$121,ROWS($A$11:$A60)+2,FALSE)","v":1108},{"$f":"HLOOKUP(V$7,$J$67:$DK$121,ROWS($A$11:$A60)+2,FALSE)","v":166},{"$f":"HLOOKUP(W$7,$J$67:$DK$121,ROWS($A$11:$A60)+2,FALSE)","v":181},{"$f":"HLOOKUP(X$7,$J$67:$DK$121,ROWS($A$11:$A60)+2,FALSE)","v":220},{"$f":"HLOOKUP(Y$7,$J$67:$DK$121,ROWS($A$11:$A60)+2,FALSE)","v":328},{"$f":"HLOOKUP(Z$7,$J$67:$DK$121,ROWS($A$11:$A60)+2,FALSE)","v":68},{"$f":"HLOOKUP(AA$7,$J$67:$DK$121,ROWS($A$11:$A60)+2,FALSE)","v":39},{"$f":"HLOOKUP(AB$7,$J$67:$DK$121,ROWS($A$11:$A60)+2,FALSE)","v":2249},{"$f":"HLOOKUP(AC$7,$J$67:$DK$121,ROWS($A$11:$A60)+2,FALSE)","v":90},{"$f":"HLOOKUP(AD$7,$J$67:$DK$121,ROWS($A$11:$A60)+2,FALSE)","v":35},{"$f":"HLOOKUP(AE$7,$J$67:$DK$121,ROWS($A$11:$A60)+2,FALSE)","v":5352},{"$f":"HLOOKUP(AF$7,$J$67:$DK$121,ROWS($A$11:$A60)+2,FALSE)","v":164},{"$f":"HLOOKUP(AG$7,$J$67:$DK$121,ROWS($A$11:$A60)+2,FALSE)","v":778},{"$f":"HLOOKUP(AH$7,$J$67:$DK$121,ROWS($A$11:$A60)+2,FALSE)","v":20},{"$f":"HLOOKUP(AI$7,$J$67:$DK$121,ROWS($A$11:$A60)+2,FALSE)","v":0},{"$f":"HLOOKUP(AJ$7,$J$67:$DK$121,ROWS($A$11:$A60)+2,FALSE)","v":59},{"$f":"HLOOKUP(AK$7,$J$67:$DK$121,ROWS($A$11:$A60)+2,FALSE)","v":0},{"$f":"HLOOKUP(AL$7,$J$67:$DK$121,ROWS($A$11:$A60)+2,FALSE)","v":0},{"$f":"HLOOKUP(AM$7,$J$67:$DK$121,ROWS($A$11:$A60)+2,FALSE)","v":229},{"$f":"HLOOKUP(AN$7,$J$67:$DK$121,ROWS($A$11:$A60)+2,FALSE)","v":129},{"$f":"HLOOKUP(AO$7,$J$67:$DK$121,ROWS($A$11:$A60)+2,FALSE)","v":1213},{"$f":"HLOOKUP(AP$7,$J$67:$DK$121,ROWS($A$11:$A60)+2,FALSE)","v":81},{"$f":"HLOOKUP(AQ$7,$J$67:$DK$121,ROWS($A$11:$A60)+2,FALSE)","v":1721},{"$f":"HLOOKUP(AR$7,$J$67:$DK$121,ROWS($A$11:$A60)+2,FALSE)","v":4683},{"$f":"HLOOKUP(AS$7,$J$67:$DK$121,ROWS($A$11:$A60)+2,FALSE)","v":175},{"$f":"HLOOKUP(AT$7,$J$67:$DK$121,ROWS($A$11:$A60)+2,FALSE)","v":6757},{"$f":"HLOOKUP(AU$7,$J$67:$DK$121,ROWS($A$11:$A60)+2,FALSE)","v":520},{"$f":"HLOOKUP(AV$7,$J$67:$DK$121,ROWS($A$11:$A60)+2,FALSE)","v":118},{"$f":"HLOOKUP(AW$7,$J$67:$DK$121,ROWS($A$11:$A60)+2,FALSE)","v":5208},{"$f":"HLOOKUP(AX$7,$J$67:$DK$121,ROWS($A$11:$A60)+2,FALSE)","v":0},{"$f":"HLOOKUP(AY$7,$J$67:$DK$121,ROWS($A$11:$A60)+2,FALSE)","v":1098},{"$f":"HLOOKUP(AZ$7,$J$67:$DK$121,ROWS($A$11:$A60)+2,FALSE)","v":36},{"$f":"HLOOKUP(BA$7,$J$67:$DK$121,ROWS($A$11:$A60)+2,FALSE)","v":1061},{"$f":"HLOOKUP(BB$7,$J$67:$DK$121,ROWS($A$11:$A60)+2,FALSE)","v":622},{"$f":"HLOOKUP(BC$7,$J$67:$DK$121,ROWS($A$11:$A60)+2,FALSE)","v":0},{"$f":"HLOOKUP(BD$7,$J$67:$DK$121,ROWS($A$11:$A60)+2,FALSE)","v":54},{"$f":"HLOOKUP(BE$7,$J$67:$DK$121,ROWS($A$11:$A60)+2,FALSE)","v":6317},{"$f":"HLOOKUP(BF$7,$J$67:$DK$121,ROWS($A$11:$A60)+2,FALSE)","v":297},{"$f":"HLOOKUP(BG$7,$J$67:$DK$121,ROWS($A$11:$A60)+2,FALSE)","v":"N/A"},{"$f":"HLOOKUP(BH$7,$J$67:$DK$121,ROWS($A$11:$A60)+2,FALSE)","v":470},{"$f":"HLOOKUP(BI$7,$J$67:$DK$121,ROWS($A$11:$A60)+2,FALSE)","v":252},{"$f":"HLOOKUP(BJ$7,$J$67:$DK$121,ROWS($A$11:$A60)+2,FALSE)","v":79},{"$f":"HLOOKUP(BK$7+0.5,$J$67:$DK$121,ROWS($A$11:$A60)+2,FALSE)","v":4317},{"$f":"HLOOKUP(BL$7+0.5,$J$67:$DK$121,ROWS($A$11:$A60)+2,FALSE)","v":339},{"$f":"HLOOKUP(BM$7+0.5,$J$67:$DK$121,ROWS($A$11:$A60)+2,FALSE)","v":455},{"$f":"HLOOKUP(BN$7+0.5,$J$67:$DK$121,ROWS($A$11:$A60)+2,FALSE)","v":129},{"$f":"HLOOKUP(BO$7+0.5,$J$67:$DK$121,ROWS($A$11:$A60)+2,FALSE)","v":182},{"$f":"HLOOKUP(BP$7+0.5,$J$67:$DK$121,ROWS($A$11:$A60)+2,FALSE)","v":516},{"$f":"HLOOKUP(BQ$7+0.5,$J$67:$DK$121,ROWS($A$11:$A60)+2,FALSE)","v":114},{"$f":"HLOOKUP(BR$7+0.5,$J$67:$DK$121,ROWS($A$11:$A60)+2,FALSE)","v":177},{"$f":"HLOOKUP(BS$7+0.5,$J$67:$DK$121,ROWS($A$11:$A60)+2,FALSE)","v":525},{"$f":"HLOOKUP(BT$7+0.5,$J$67:$DK$121,ROWS($A$11:$A60)+2,FALSE)","v":194},{"$f":"HLOOKUP(BU$7+0.5,$J$67:$DK$121,ROWS($A$11:$A60)+2,FALSE)","v":666},{"$f":"HLOOKUP(BV$7+0.5,$J$67:$DK$121,ROWS($A$11:$A60)+2,FALSE)","v":483},{"$f":"HLOOKUP(BW$7+0.5,$J$67:$DK$121,ROWS($A$11:$A60)+2,FALSE)","v":277},{"$f":"HLOOKUP(BX$7+0.5,$J$67:$DK$121,ROWS($A$11:$A60)+2,FALSE)","v":250},{"$f":"HLOOKUP(BY$7+0.5,$J$67:$DK$121,ROWS($A$11:$A60)+2,FALSE)","v":190},{"$f":"HLOOKUP(BZ$7+0.5,$J$67:$DK$121,ROWS($A$11:$A60)+2,FALSE)","v":406},{"$f":"HLOOKUP(CA$7+0.5,$J$67:$DK$121,ROWS($A$11:$A60)+2,FALSE)","v":111},{"$f":"HLOOKUP(CB$7+0.5,$J$67:$DK$121,ROWS($A$11:$A60)+2,FALSE)","v":64},{"$f":"HLOOKUP(CC$7+0.5,$J$67:$DK$121,ROWS($A$11:$A60)+2,FALSE)","v":1019},{"$f":"HLOOKUP(CD$7+0.5,$J$67:$DK$121,ROWS($A$11:$A60)+2,FALSE)","v":88},{"$f":"HLOOKUP(CE$7+0.5,$J$67:$DK$121,ROWS($A$11:$A60)+2,FALSE)","v":74},{"$f":"HLOOKUP(CF$7+0.5,$J$67:$DK$121,ROWS($A$11:$A60)+2,FALSE)","v":1897},{"$f":"HLOOKUP(CG$7+0.5,$J$67:$DK$121,ROWS($A$11:$A60)+2,FALSE)","v":191},{"$f":"HLOOKUP(CH$7+0.5,$J$67:$DK$121,ROWS($A$11:$A60)+2,FALSE)","v":581},{"$f":"HLOOKUP(CI$7+0.5,$J$67:$DK$121,ROWS($A$11:$A60)+2,FALSE)","v":37},{"$f":"HLOOKUP(CJ$7+0.5,$J$67:$DK$121,ROWS($A$11:$A60)+2,FALSE)","v":182},{"$f":"HLOOKUP(CK$7+0.5,$J$67:$DK$121,ROWS($A$11:$A60)+2,FALSE)","v":76},{"$f":"HLOOKUP(CL$7+0.5,$J$67:$DK$121,ROWS($A$11:$A60)+2,FALSE)","v":182},{"$f":"HLOOKUP(CM$7+0.5,$J$67:$DK$121,ROWS($A$11:$A60)+2,FALSE)","v":182},{"$f":"HLOOKUP(CN$7+0.5,$J$67:$DK$121,ROWS($A$11:$A60)+2,FALSE)","v":268},{"$f":"HLOOKUP(CO$7+0.5,$J$67:$DK$121,ROWS($A$11:$A60)+2,FALSE)","v":147},{"$f":"HLOOKUP(CP$7+0.5,$J$67:$DK$121,ROWS($A$11:$A60)+2,FALSE)","v":679},{"$f":"HLOOKUP(CQ$7+0.5,$J$67:$DK$121,ROWS($A$11:$A60)+2,FALSE)","v":90},{"$f":"HLOOKUP(CR$7+0.5,$J$67:$DK$121,ROWS($A$11:$A60)+2,FALSE)","v":965},{"$f":"HLOOKUP(CS$7+0.5,$J$67:$DK$121,ROWS($A$11:$A60)+2,FALSE)","v":1933},{"$f":"HLOOKUP(CT$7+0.5,$J$67:$DK$121,ROWS($A$11:$A60)+2,FALSE)","v":215},{"$f":"HLOOKUP(CU$7+0.5,$J$67:$DK$121,ROWS($A$11:$A60)+2,FALSE)","v":1474},{"$f":"HLOOKUP(CV$7+0.5,$J$67:$DK$121,ROWS($A$11:$A60)+2,FALSE)","v":447},{"$f":"HLOOKUP(CW$7+0.5,$J$67:$DK$121,ROWS($A$11:$A60)+2,FALSE)","v":207},{"$f":"HLOOKUP(CX$7+0.5,$J$67:$DK$121,ROWS($A$11:$A60)+2,FALSE)","v":1699},{"$f":"HLOOKUP(CY$7+0.5,$J$67:$DK$121,ROWS($A$11:$A60)+2,FALSE)","v":182},{"$f":"HLOOKUP(CZ$7+0.5,$J$67:$DK$121,ROWS($A$11:$A60)+2,FALSE)","v":671},{"$f":"HLOOKUP(DA$7+0.5,$J$67:$DK$121,ROWS($A$11:$A60)+2,FALSE)","v":65},{"$f":"HLOOKUP(DB$7+0.5,$J$67:$DK$121,ROWS($A$11:$A60)+2,FALSE)","v":513},{"$f":"HLOOKUP(DC$7+0.5,$J$67:$DK$121,ROWS($A$11:$A60)+2,FALSE)","v":415},{"$f":"HLOOKUP(DD$7+0.5,$J$67:$DK$121,ROWS($A$11:$A60)+2,FALSE)","v":182},{"$f":"HLOOKUP(DE$7+0.5,$J$67:$DK$121,ROWS($A$11:$A60)+2,FALSE)","v":89},{"$f":"HLOOKUP(DF$7+0.5,$J$67:$DK$121,ROWS($A$11:$A60)+2,FALSE)","v":1774},{"$f":"HLOOKUP(DG$7+0.5,$J$67:$DK$121,ROWS($A$11:$A60)+2,FALSE)","v":285},{"$f":"HLOOKUP(DH$7+0.5,$J$67:$DK$121,ROWS($A$11:$A60)+2,FALSE)","v":"N/A"},{"$f":"HLOOKUP(DI$7+0.5,$J$67:$DK$121,ROWS($A$11:$A60)+2,FALSE)","v":555},{"$f":"HLOOKUP(DJ$7+0.5,$J$67:$DK$121,ROWS($A$11:$A60)+2,FALSE)","v":395},{"$f":"HLOOKUP(DK$7+0.5,$J$67:$DK$121,ROWS($A$11:$A60)+2,FALSE)","v":123}]
[null,"Wisconsin",5660677,3351,4849945,15530,693737,15440,1.4029301257576539E-2,{"$f":"HLOOKUP(J$7,$J$67:$DK$121,ROWS($A$11:$A61)+2,FALSE)","v":99192},{"$f":"HLOOKUP(K$7,$J$67:$DK$121,ROWS($A$11:$A61)+2,FALSE)","v":323},{"$f":"HLOOKUP(L$7,$J$67:$DK$121,ROWS($A$11:$A61)+2,FALSE)","v":236},{"$f":"HLOOKUP(M$7,$J$67:$DK$121,ROWS($A$11:$A61)+2,FALSE)","v":3257},{"$f":"HLOOKUP(N$7,$J$67:$DK$121,ROWS($A$11:$A61)+2,FALSE)","v":253},{"$f":"HLOOKUP(O$7,$J$67:$DK$121,ROWS($A$11:$A61)+2,FALSE)","v":5347},{"$f":"HLOOKUP(P$7,$J$67:$DK$121,ROWS($A$11:$A61)+2,FALSE)","v":1600},{"$f":"HLOOKUP(Q$7,$J$67:$DK$121,ROWS($A$11:$A61)+2,FALSE)","v":657},{"$f":"HLOOKUP(R$7,$J$67:$DK$121,ROWS($A$11:$A61)+2,FALSE)","v":296},{"$f":"HLOOKUP(S$7,$J$67:$DK$121,ROWS($A$11:$A61)+2,FALSE)","v":15},{"$f":"HLOOKUP(T$7,$J$67:$DK$121,ROWS($A$11:$A61)+2,FALSE)","v":4937},{"$f":"HLOOKUP(U$7,$J$67:$DK$121,ROWS($A$11:$A61)+2,FALSE)","v":970},{"$f":"HLOOKUP(V$7,$J$67:$DK$121,ROWS($A$11:$A61)+2,FALSE)","v":333},{"$f":"HLOOKUP(W$7,$J$67:$DK$121,ROWS($A$11:$A61)+2,FALSE)","v":360},{"$f":"HLOOKUP(X$7,$J$67:$DK$121,ROWS($A$11:$A61)+2,FALSE)","v":22285},{"$f":"HLOOKUP(Y$7,$J$67:$DK$121,ROWS($A$11:$A61)+2,FALSE)","v":2480},{"$f":"HLOOKUP(Z$7,$J$67:$DK$121,ROWS($A$11:$A61)+2,FALSE)","v":4161},{"$f":"HLOOKUP(AA$7,$J$67:$DK$121,ROWS($A$11:$A61)+2,FALSE)","v":1160},{"$f":"HLOOKUP(AB$7,$J$67:$DK$121,ROWS($A$11:$A61)+2,FALSE)","v":635},{"$f":"HLOOKUP(AC$7,$J$67:$DK$121,ROWS($A$11:$A61)+2,FALSE)","v":598},{"$f":"HLOOKUP(AD$7,$J$67:$DK$121,ROWS($A$11:$A61)+2,FALSE)","v":233},{"$f":"HLOOKUP(AE$7,$J$67:$DK$121,ROWS($A$11:$A61)+2,FALSE)","v":1306},{"$f":"HLOOKUP(AF$7,$J$67:$DK$121,ROWS($A$11:$A61)+2,FALSE)","v":489},{"$f":"HLOOKUP(AG$7,$J$67:$DK$121,ROWS($A$11:$A61)+2,FALSE)","v":3917},{"$f":"HLOOKUP(AH$7,$J$67:$DK$121,ROWS($A$11:$A61)+2,FALSE)","v":18965},{"$f":"HLOOKUP(AI$7,$J$67:$DK$121,ROWS($A$11:$A61)+2,FALSE)","v":238},{"$f":"HLOOKUP(AJ$7,$J$67:$DK$121,ROWS($A$11:$A61)+2,FALSE)","v":1263},{"$f":"HLOOKUP(AK$7,$J$67:$DK$121,ROWS($A$11:$A61)+2,FALSE)","v":784},{"$f":"HLOOKUP(AL$7,$J$67:$DK$121,ROWS($A$11:$A61)+2,FALSE)","v":324},{"$f":"HLOOKUP(AM$7,$J$67:$DK$121,ROWS($A$11:$A61)+2,FALSE)","v":1163},{"$f":"HLOOKUP(AN$7,$J$67:$DK$121,ROWS($A$11:$A61)+2,FALSE)","v":3},{"$f":"HLOOKUP(AO$7,$J$67:$DK$121,ROWS($A$11:$A61)+2,FALSE)","v":606},{"$f":"HLOOKUP(AP$7,$J$67:$DK$121,ROWS($A$11:$A61)+2,FALSE)","v":526},{"$f":"HLOOKUP(AQ$7,$J$67:$DK$121,ROWS($A$11:$A61)+2,FALSE)","v":2033},{"$f":"HLOOKUP(AR$7,$J$67:$DK$121,ROWS($A$11:$A61)+2,FALSE)","v":2939},{"$f":"HLOOKUP(AS$7,$J$67:$DK$121,ROWS($A$11:$A61)+2,FALSE)","v":284},{"$f":"HLOOKUP(AT$7,$J$67:$DK$121,ROWS($A$11:$A61)+2,FALSE)","v":2610},{"$f":"HLOOKUP(AU$7,$J$67:$DK$121,ROWS($A$11:$A61)+2,FALSE)","v":289},{"$f":"HLOOKUP(AV$7,$J$67:$DK$121,ROWS($A$11:$A61)+2,FALSE)","v":945},{"$f":"HLOOKUP(AW$7,$J$67:$DK$121,ROWS($A$11:$A61)+2,FALSE)","v":1563},{"$f":"HLOOKUP(AX$7,$J$67:$DK$121,ROWS($A$11:$A61)+2,FALSE)","v":144},{"$f":"HLOOKUP(AY$7,$J$67:$DK$121,ROWS($A$11:$A61)+2,FALSE)","v":1053},{"$f":"HLOOKUP(AZ$7,$J$67:$DK$121,ROWS($A$11:$A61)+2,FALSE)","v":329},{"$f":"HLOOKUP(BA$7,$J$67:$DK$121,ROWS($A$11:$A61)+2,FALSE)","v":1051},{"$f":"HLOOKUP(BB$7,$J$67:$DK$121,ROWS($A$11:$A61)+2,FALSE)","v":2765},{"$f":"HLOOKUP(BC$7,$J$67:$DK$121,ROWS($A$11:$A61)+2,FALSE)","v":900},{"$f":"HLOOKUP(BD$7,$J$67:$DK$121,ROWS($A$11:$A61)+2,FALSE)","v":62},{"$f":"HLOOKUP(BE$7,$J$67:$DK$121,ROWS($A$11:$A61)+2,FALSE)","v":1267},{"$f":"HLOOKUP(BF$7,$J$67:$DK$121,ROWS($A$11:$A61)+2,FALSE)","v":1208},{"$f":"HLOOKUP(BG$7,$J$67:$DK$121,ROWS($A$11:$A61)+2,FALSE)","v":0},{"$f":"HLOOKUP(BH$7,$J$67:$DK$121,ROWS($A$11:$A61)+2,FALSE)","v":"N/A"},{"$f":"HLOOKUP(BI$7,$J$67:$DK$121,ROWS($A$11:$A61)+2,FALSE)","v":30},{"$f":"HLOOKUP(BJ$7,$J$67:$DK$121,ROWS($A$11:$A61)+2,FALSE)","v":975},{"$f":"HLOOKUP(BK$7+0.5,$J$67:$DK$121,ROWS($A$11:$A61)+2,FALSE)","v":6959},{"$f":"HLOOKUP(BL$7+0.5,$J$67:$DK$121,ROWS($A$11:$A61)+2,FALSE)","v":262},{"$f":"HLOOKUP(BM$7+0.5,$J$67:$DK$121,ROWS($A$11:$A61)+2,FALSE)","v":193},{"$f":"HLOOKUP(BN$7+0.5,$J$67:$DK$121,ROWS($A$11:$A61)+2,FALSE)","v":1696},{"$f":"HLOOKUP(BO$7+0.5,$J$67:$DK$121,ROWS($A$11:$A61)+2,FALSE)","v":216},{"$f":"HLOOKUP(BP$7+0.5,$J$67:$DK$121,ROWS($A$11:$A61)+2,FALSE)","v":2126},{"$f":"HLOOKUP(BQ$7+0.5,$J$67:$DK$121,ROWS($A$11:$A61)+2,FALSE)","v":604},{"$f":"HLOOKUP(BR$7+0.5,$J$67:$DK$121,ROWS($A$11:$A61)+2,FALSE)","v":432},{"$f":"HLOOKUP(BS$7+0.5,$J$67:$DK$121,ROWS($A$11:$A61)+2,FALSE)","v":475},{"$f":"HLOOKUP(BT$7+0.5,$J$67:$DK$121,ROWS($A$11:$A61)+2,FALSE)","v":25},{"$f":"HLOOKUP(BU$7+0.5,$J$67:$DK$121,ROWS($A$11:$A61)+2,FALSE)","v":1590},{"$f":"HLOOKUP(BV$7+0.5,$J$67:$DK$121,ROWS($A$11:$A61)+2,FALSE)","v":396},{"$f":"HLOOKUP(BW$7+0.5,$J$67:$DK$121,ROWS($A$11:$A61)+2,FALSE)","v":416},{"$f":"HLOOKUP(BX$7+0.5,$J$67:$DK$121,ROWS($A$11:$A61)+2,FALSE)","v":231},{"$f":"HLOOKUP(BY$7+0.5,$J$67:$DK$121,ROWS($A$11:$A61)+2,FALSE)","v":3020},{"$f":"HLOOKUP(BZ$7+0.5,$J$67:$DK$121,ROWS($A$11:$A61)+2,FALSE)","v":1136},{"$f":"HLOOKUP(CA$7+0.5,$J$67:$DK$121,ROWS($A$11:$A61)+2,FALSE)","v":1283},{"$f":"HLOOKUP(CB$7+0.5,$J$67:$DK$121,ROWS($A$11:$A61)+2,FALSE)","v":1199},{"$f":"HLOOKUP(CC$7+0.5,$J$67:$DK$121,ROWS($A$11:$A61)+2,FALSE)","v":502},{"$f":"HLOOKUP(CD$7+0.5,$J$67:$DK$121,ROWS($A$11:$A61)+2,FALSE)","v":403},{"$f":"HLOOKUP(CE$7+0.5,$J$67:$DK$121,ROWS($A$11:$A61)+2,FALSE)","v":195},{"$f":"HLOOKUP(CF$7+0.5,$J$67:$DK$121,ROWS($A$11:$A61)+2,FALSE)","v":586},{"$f":"HLOOKUP(CG$7+0.5,$J$67:$DK$121,ROWS($A$11:$A61)+2,FALSE)","v":356},{"$f":"HLOOKUP(CH$7+0.5,$J$67:$DK$121,ROWS($A$11:$A61)+2,FALSE)","v":1160},{"$f":"HLOOKUP(CI$7+0.5,$J$67:$DK$121,ROWS($A$11:$A61)+2,FALSE)","v":2405},{"$f":"HLOOKUP(CJ$7+0.5,$J$67:$DK$121,ROWS($A$11:$A61)+2,FALSE)","v":211},{"$f":"HLOOKUP(CK$7+0.5,$J$67:$DK$121,ROWS($A$11:$A61)+2,FALSE)","v":681},{"$f":"HLOOKUP(CL$7+0.5,$J$67:$DK$121,ROWS($A$11:$A61)+2,FALSE)","v":512},{"$f":"HLOOKUP(CM$7+0.5,$J$67:$DK$121,ROWS($A$11:$A61)+2,FALSE)","v":240},{"$f":"HLOOKUP(CN$7+0.5,$J$67:$DK$121,ROWS($A$11:$A61)+2,FALSE)","v":682},{"$f":"HLOOKUP(CO$7+0.5,$J$67:$DK$121,ROWS($A$11:$A61)+2,FALSE)","v":7},{"$f":"HLOOKUP(CP$7+0.5,$J$67:$DK$121,ROWS($A$11:$A61)+2,FALSE)","v":477},{"$f":"HLOOKUP(CQ$7+0.5,$J$67:$DK$121,ROWS($A$11:$A61)+2,FALSE)","v":553},{"$f":"HLOOKUP(CR$7+0.5,$J$67:$DK$121,ROWS($A$11:$A61)+2,FALSE)","v":980},{"$f":"HLOOKUP(CS$7+0.5,$J$67:$DK$121,ROWS($A$11:$A61)+2,FALSE)","v":1454},{"$f":"HLOOKUP(CT$7+0.5,$J$67:$DK$121,ROWS($A$11:$A61)+2,FALSE)","v":318},{"$f":"HLOOKUP(CU$7+0.5,$J$67:$DK$121,ROWS($A$11:$A61)+2,FALSE)","v":1053},{"$f":"HLOOKUP(CV$7+0.5,$J$67:$DK$121,ROWS($A$11:$A61)+2,FALSE)","v":204},{"$f":"HLOOKUP(CW$7+0.5,$J$67:$DK$121,ROWS($A$11:$A61)+2,FALSE)","v":601},{"$f":"HLOOKUP(CX$7+0.5,$J$67:$DK$121,ROWS($A$11:$A61)+2,FALSE)","v":750},{"$f":"HLOOKUP(CY$7+0.5,$J$67:$DK$121,ROWS($A$11:$A61)+2,FALSE)","v":157},{"$f":"HLOOKUP(CZ$7+0.5,$J$67:$DK$121,ROWS($A$11:$A61)+2,FALSE)","v":675},{"$f":"HLOOKUP(DA$7+0.5,$J$67:$DK$121,ROWS($A$11:$A61)+2,FALSE)","v":220},{"$f":"HLOOKUP(DB$7+0.5,$J$67:$DK$121,ROWS($A$11:$A61)+2,FALSE)","v":638},{"$f":"HLOOKUP(DC$7+0.5,$J$67:$DK$121,ROWS($A$11:$A61)+2,FALSE)","v":1112},{"$f":"HLOOKUP(DD$7+0.5,$J$67:$DK$121,ROWS($A$11:$A61)+2,FALSE)","v":1091},{"$f":"HLOOKUP(DE$7+0.5,$J$67:$DK$121,ROWS($A$11:$A61)+2,FALSE)","v":88},{"$f":"HLOOKUP(DF$7+0.5,$J$67:$DK$121,ROWS($A$11:$A61)+2,FALSE)","v":916},{"$f":"HLOOKUP(DG$7+0.5,$J$67:$DK$121,ROWS($A$11:$A61)+2,FALSE)","v":416},{"$f":"HLOOKUP(DH$7+0.5,$J$67:$DK$121,ROWS($A$11:$A61)+2,FALSE)","v":145},{"$f":"HLOOKUP(DI$7+0.5,$J$67:$DK$121,ROWS($A$11:$A61)+2,FALSE)","v":"N/A"},{"$f":"HLOOKUP(DJ$7+0.5,$J$67:$DK$121,ROWS($A$11:$A61)+2,FALSE)","v":46},{"$f":"HLOOKUP(DK$7+0.5,$J$67:$DK$121,ROWS($A$11:$A61)+2,FALSE)","v":943}]
[null,"Wyoming",569734,1083,459226,7512,77324,6960,4.4055841688064729E-3,{"$f":"HLOOKUP(J$7,$J$67:$DK$121,ROWS($A$11:$A62)+2,FALSE)","v":31149},{"$f":"HLOOKUP(K$7,$J$67:$DK$121,ROWS($A$11:$A62)+2,FALSE)","v":260},{"$f":"HLOOKUP(L$7,$J$67:$DK$121,ROWS($A$11:$A62)+2,FALSE)","v":590},{"$f":"HLOOKUP(M$7,$J$67:$DK$121,ROWS($A$11:$A62)+2,FALSE)","v":2014},{"$f":"HLOOKUP(N$7,$J$67:$DK$121,ROWS($A$11:$A62)+2,FALSE)","v":244},{"$f":"HLOOKUP(O$7,$J$67:$DK$121,ROWS($A$11:$A62)+2,FALSE)","v":2035},{"$f":"HLOOKUP(P$7,$J$67:$DK$121,ROWS($A$11:$A62)+2,FALSE)","v":5599},{"$f":"HLOOKUP(Q$7,$J$67:$DK$121,ROWS($A$11:$A62)+2,FALSE)","v":0},{"$f":"HLOOKUP(R$7,$J$67:$DK$121,ROWS($A$11:$A62)+2,FALSE)","v":0},{"$f":"HLOOKUP(S$7,$J$67:$DK$121,ROWS($A$11:$A62)+2,FALSE)","v":0},{"$f":"HLOOKUP(T$7,$J$67:$DK$121,ROWS($A$11:$A62)+2,FALSE)","v":733},{"$f":"HLOOKUP(U$7,$J$67:$DK$121,ROWS($A$11:$A62)+2,FALSE)","v":166},{"$f":"HLOOKUP(V$7,$J$67:$DK$121,ROWS($A$11:$A62)+2,FALSE)","v":0},{"$f":"HLOOKUP(W$7,$J$67:$DK$121,ROWS($A$11:$A62)+2,FALSE)","v":745},{"$f":"HLOOKUP(X$7,$J$67:$DK$121,ROWS($A$11:$A62)+2,FALSE)","v":905},{"$f":"HLOOKUP(Y$7,$J$67:$DK$121,ROWS($A$11:$A62)+2,FALSE)","v":179},{"$f":"HLOOKUP(Z$7,$J$67:$DK$121,ROWS($A$11:$A62)+2,FALSE)","v":259},{"$f":"HLOOKUP(AA$7,$J$67:$DK$121,ROWS($A$11:$A62)+2,FALSE)","v":539},{"$f":"HLOOKUP(AB$7,$J$67:$DK$121,ROWS($A$11:$A62)+2,FALSE)","v":4},{"$f":"HLOOKUP(AC$7,$J$67:$DK$121,ROWS($A$11:$A62)+2,FALSE)","v":88},{"$f":"HLOOKUP(AD$7,$J$67:$DK$121,ROWS($A$11:$A62)+2,FALSE)","v":0},{"$f":"HLOOKUP(AE$7,$J$67:$DK$121,ROWS($A$11:$A62)+2,FALSE)","v":294},{"$f":"HLOOKUP(AF$7,$J$67:$DK$121,ROWS($A$11:$A62)+2,FALSE)","v":548},{"$f":"HLOOKUP(AG$7,$J$67:$DK$121,ROWS($A$11:$A62)+2,FALSE)","v":965},{"$f":"HLOOKUP(AH$7,$J$67:$DK$121,ROWS($A$11:$A62)+2,FALSE)","v":290},{"$f":"HLOOKUP(AI$7,$J$67:$DK$121,ROWS($A$11:$A62)+2,FALSE)","v":136},{"$f":"HLOOKUP(AJ$7,$J$67:$DK$121,ROWS($A$11:$A62)+2,FALSE)","v":244},{"$f":"HLOOKUP(AK$7,$J$67:$DK$121,ROWS($A$11:$A62)+2,FALSE)","v":1901},{"$f":"HLOOKUP(AL$7,$J$67:$DK$121,ROWS($A$11:$A62)+2,FALSE)","v":1216},{"$f":"HLOOKUP(AM$7,$J$67:$DK$121,ROWS($A$11:$A62)+2,FALSE)","v":355},{"$f":"HLOOKUP(AN$7,$J$67:$DK$121,ROWS($A$11:$A62)+2,FALSE)","v":0},{"$f":"HLOOKUP(AO$7,$J$67:$DK$121,ROWS($A$11:$A62)+2,FALSE)","v":121},{"$f":"HLOOKUP(AP$7,$J$67:$DK$121,ROWS($A$11:$A62)+2,FALSE)","v":604},{"$f":"HLOOKUP(AQ$7,$J$67:$DK$121,ROWS($A$11:$A62)+2,FALSE)","v":231},{"$f":"HLOOKUP(AR$7,$J$67:$DK$121,ROWS($A$11:$A62)+2,FALSE)","v":459},{"$f":"HLOOKUP(AS$7,$J$67:$DK$121,ROWS($A$11:$A62)+2,FALSE)","v":338},{"$f":"HLOOKUP(AT$7,$J$67:$DK$121,ROWS($A$11:$A62)+2,FALSE)","v":819},{"$f":"HLOOKUP(AU$7,$J$67:$DK$121,ROWS($A$11:$A62)+2,FALSE)","v":964},{"$f":"HLOOKUP(AV$7,$J$67:$DK$121,ROWS($A$11:$A62)+2,FALSE)","v":893},{"$f":"HLOOKUP(AW$7,$J$67:$DK$121,ROWS($A$11:$A62)+2,FALSE)","v":230},{"$f":"HLOOKUP(AX$7,$J$67:$DK$121,ROWS($A$11:$A62)+2,FALSE)","v":0},{"$f":"HLOOKUP(AY$7,$J$67:$DK$121,ROWS($A$11:$A62)+2,FALSE)","v":122},{"$f":"HLOOKUP(AZ$7,$J$67:$DK$121,ROWS($A$11:$A62)+2,FALSE)","v":1175},{"$f":"HLOOKUP(BA$7,$J$67:$DK$121,ROWS($A$11:$A62)+2,FALSE)","v":4},{"$f":"HLOOKUP(BB$7,$J$67:$DK$121,ROWS($A$11:$A62)+2,FALSE)","v":1427},{"$f":"HLOOKUP(BC$7,$J$67:$DK$121,ROWS($A$11:$A62)+2,FALSE)","v":1710},{"$f":"HLOOKUP(BD$7,$J$67:$DK$121,ROWS($A$11:$A62)+2,FALSE)","v":0},{"$f":"HLOOKUP(BE$7,$J$67:$DK$121,ROWS($A$11:$A62)+2,FALSE)","v":138},{"$f":"HLOOKUP(BF$7,$J$67:$DK$121,ROWS($A$11:$A62)+2,FALSE)","v":1323},{"$f":"HLOOKUP(BG$7,$J$67:$DK$121,ROWS($A$11:$A62)+2,FALSE)","v":0},{"$f":"HLOOKUP(BH$7,$J$67:$DK$121,ROWS($A$11:$A62)+2,FALSE)","v":282},{"$f":"HLOOKUP(BI$7,$J$67:$DK$121,ROWS($A$11:$A62)+2,FALSE)","v":"N/A"},{"$f":"HLOOKUP(BJ$7,$J$67:$DK$121,ROWS($A$11:$A62)+2,FALSE)","v":16},{"$f":"HLOOKUP(BK$7+0.5,$J$67:$DK$121,ROWS($A$11:$A62)+2,FALSE)","v":3430},{"$f":"HLOOKUP(BL$7+0.5,$J$67:$DK$121,ROWS($A$11:$A62)+2,FALSE)","v":284},{"$f":"HLOOKUP(BM$7+0.5,$J$67:$DK$121,ROWS($A$11:$A62)+2,FALSE)","v":661},{"$f":"HLOOKUP(BN$7+0.5,$J$67:$DK$121,ROWS($A$11:$A62)+2,FALSE)","v":1234},{"$f":"HLOOKUP(BO$7+0.5,$J$67:$DK$121,ROWS($A$11:$A62)+2,FALSE)","v":405},{"$f":"HLOOKUP(BP$7+0.5,$J$67:$DK$121,ROWS($A$11:$A62)+2,FALSE)","v":720},{"$f":"HLOOKUP(BQ$7+0.5,$J$67:$DK$121,ROWS($A$11:$A62)+2,FALSE)","v":1618},{"$f":"HLOOKUP(BR$7+0.5,$J$67:$DK$121,ROWS($A$11:$A62)+2,FALSE)","v":185},{"$f":"HLOOKUP(BS$7+0.5,$J$67:$DK$121,ROWS($A$11:$A62)+2,FALSE)","v":185},{"$f":"HLOOKUP(BT$7+0.5,$J$67:$DK$121,ROWS($A$11:$A62)+2,FALSE)","v":185},{"$f":"HLOOKUP(BU$7+0.5,$J$67:$DK$121,ROWS($A$11:$A62)+2,FALSE)","v":572},{"$f":"HLOOKUP(BV$7+0.5,$J$67:$DK$121,ROWS($A$11:$A62)+2,FALSE)","v":173},{"$f":"HLOOKUP(BW$7+0.5,$J$67:$DK$121,ROWS($A$11:$A62)+2,FALSE)","v":185},{"$f":"HLOOKUP(BX$7+0.5,$J$67:$DK$121,ROWS($A$11:$A62)+2,FALSE)","v":481},{"$f":"HLOOKUP(BY$7+0.5,$J$67:$DK$121,ROWS($A$11:$A62)+2,FALSE)","v":823},{"$f":"HLOOKUP(BZ$7+0.5,$J$67:$DK$121,ROWS($A$11:$A62)+2,FALSE)","v":179},{"$f":"HLOOKUP(CA$7+0.5,$J$67:$DK$121,ROWS($A$11:$A62)+2,FALSE)","v":273},{"$f":"HLOOKUP(CB$7+0.5,$J$67:$DK$121,ROWS($A$11:$A62)+2,FALSE)","v":412},{"$f":"HLOOKUP(CC$7+0.5,$J$67:$DK$121,ROWS($A$11:$A62)+2,FALSE)","v":10},{"$f":"HLOOKUP(CD$7+0.5,$J$67:$DK$121,ROWS($A$11:$A62)+2,FALSE)","v":100},{"$f":"HLOOKUP(CE$7+0.5,$J$67:$DK$121,ROWS($A$11:$A62)+2,FALSE)","v":185},{"$f":"HLOOKUP(CF$7+0.5,$J$67:$DK$121,ROWS($A$11:$A62)+2,FALSE)","v":304},{"$f":"HLOOKUP(CG$7+0.5,$J$67:$DK$121,ROWS($A$11:$A62)+2,FALSE)","v":638},{"$f":"HLOOKUP(CH$7+0.5,$J$67:$DK$121,ROWS($A$11:$A62)+2,FALSE)","v":730},{"$f":"HLOOKUP(CI$7+0.5,$J$67:$DK$121,ROWS($A$11:$A62)+2,FALSE)","v":240},{"$f":"HLOOKUP(CJ$7+0.5,$J$67:$DK$121,ROWS($A$11:$A62)+2,FALSE)","v":229},{"$f":"HLOOKUP(CK$7+0.5,$J$67:$DK$121,ROWS($A$11:$A62)+2,FALSE)","v":257},{"$f":"HLOOKUP(CL$7+0.5,$J$67:$DK$121,ROWS($A$11:$A62)+2,FALSE)","v":789},{"$f":"HLOOKUP(CM$7+0.5,$J$67:$DK$121,ROWS($A$11:$A62)+2,FALSE)","v":559},{"$f":"HLOOKUP(CN$7+0.5,$J$67:$DK$121,ROWS($A$11:$A62)+2,FALSE)","v":304},{"$f":"HLOOKUP(CO$7+0.5,$J$67:$DK$121,ROWS($A$11:$A62)+2,FALSE)","v":185},{"$f":"HLOOKUP(CP$7+0.5,$J$67:$DK$121,ROWS($A$11:$A62)+2,FALSE)","v":147},{"$f":"HLOOKUP(CQ$7+0.5,$J$67:$DK$121,ROWS($A$11:$A62)+2,FALSE)","v":658},{"$f":"HLOOKUP(CR$7+0.5,$J$67:$DK$121,ROWS($A$11:$A62)+2,FALSE)","v":252},{"$f":"HLOOKUP(CS$7+0.5,$J$67:$DK$121,ROWS($A$11:$A62)+2,FALSE)","v":399},{"$f":"HLOOKUP(CT$7+0.5,$J$67:$DK$121,ROWS($A$11:$A62)+2,FALSE)","v":300},{"$f":"HLOOKUP(CU$7+0.5,$J$67:$DK$121,ROWS($A$11:$A62)+2,FALSE)","v":447},{"$f":"HLOOKUP(CV$7+0.5,$J$67:$DK$121,ROWS($A$11:$A62)+2,FALSE)","v":670},{"$f":"HLOOKUP(CW$7+0.5,$J$67:$DK$121,ROWS($A$11:$A62)+2,FALSE)","v":605},{"$f":"HLOOKUP(CX$7+0.5,$J$67:$DK$121,ROWS($A$11:$A62)+2,FALSE)","v":254},{"$f":"HLOOKUP(CY$7+0.5,$J$67:$DK$121,ROWS($A$11:$A62)+2,FALSE)","v":185},{"$f":"HLOOKUP(CZ$7+0.5,$J$67:$DK$121,ROWS($A$11:$A62)+2,FALSE)","v":201},{"$f":"HLOOKUP(DA$7+0.5,$J$67:$DK$121,ROWS($A$11:$A62)+2,FALSE)","v":730},{"$f":"HLOOKUP(DB$7+0.5,$J$67:$DK$121,ROWS($A$11:$A62)+2,FALSE)","v":7},{"$f":"HLOOKUP(DC$7+0.5,$J$67:$DK$121,ROWS($A$11:$A62)+2,FALSE)","v":920},{"$f":"HLOOKUP(DD$7+0.5,$J$67:$DK$121,ROWS($A$11:$A62)+2,FALSE)","v":948},{"$f":"HLOOKUP(DE$7+0.5,$J$67:$DK$121,ROWS($A$11:$A62)+2,FALSE)","v":185},{"$f":"HLOOKUP(DF$7+0.5,$J$67:$DK$121,ROWS($A$11:$A62)+2,FALSE)","v":169},{"$f":"HLOOKUP(DG$7+0.5,$J$67:$DK$121,ROWS($A$11:$A62)+2,FALSE)","v":785},{"$f":"HLOOKUP(DH$7+0.5,$J$67:$DK$121,ROWS($A$11:$A62)+2,FALSE)","v":185},{"$f":"HLOOKUP(DI$7+0.5,$J$67:$DK$121,ROWS($A$11:$A62)+2,FALSE)","v":210},{"$f":"HLOOKUP(DJ$7+0.5,$J$67:$DK$121,ROWS($A$11:$A62)+2,FALSE)","v":"N/A"},{"$f":"HLOOKUP(DK$7+0.5,$J$67:$DK$121,ROWS($A$11:$A62)+2,FALSE)","v":27}]
[null,"Puerto Rico",3628402,2934,3366593,12125,238042,11523,null,{"$f":"HLOOKUP(J$7,$J$67:$DK$121,ROWS($A$11:$A63)+2,FALSE)","v":20044},{"$f":"HLOOKUP(K$7,$J$67:$DK$121,ROWS($A$11:$A63)+2,FALSE)","v":8},{"$f":"HLOOKUP(L$7,$J$67:$DK$121,ROWS($A$11:$A63)+2,FALSE)","v":57},{"$f":"HLOOKUP(M$7,$J$67:$DK$121,ROWS($A$11:$A63)+2,FALSE)","v":54},{"$f":"HLOOKUP(N$7,$J$67:$DK$121,ROWS($A$11:$A63)+2,FALSE)","v":93},{"$f":"HLOOKUP(O$7,$J$67:$DK$121,ROWS($A$11:$A63)+2,FALSE)","v":519},{"$f":"HLOOKUP(P$7,$J$67:$DK$121,ROWS($A$11:$A63)+2,FALSE)","v":0},{"$f":"HLOOKUP(Q$7,$J$67:$DK$121,ROWS($A$11:$A63)+2,FALSE)","v":370},{"$f":"HLOOKUP(R$7,$J$67:$DK$121,ROWS($A$11:$A63)+2,FALSE)","v":0},{"$f":"HLOOKUP(S$7,$J$67:$DK$121,ROWS($A$11:$A63)+2,FALSE)","v":0},{"$f":"HLOOKUP(T$7,$J$67:$DK$121,ROWS($A$11:$A63)+2,FALSE)","v":4192},{"$f":"HLOOKUP(U$7,$J$67:$DK$121,ROWS($A$11:$A63)+2,FALSE)","v":232},{"$f":"HLOOKUP(V$7,$J$67:$DK$121,ROWS($A$11:$A63)+2,FALSE)","v":110},{"$f":"HLOOKUP(W$7,$J$67:$DK$121,ROWS($A$11:$A63)+2,FALSE)","v":0},{"$f":"HLOOKUP(X$7,$J$67:$DK$121,ROWS($A$11:$A63)+2,FALSE)","v":1021},{"$f":"HLOOKUP(Y$7,$J$67:$DK$121,ROWS($A$11:$A63)+2,FALSE)","v":121},{"$f":"HLOOKUP(Z$7,$J$67:$DK$121,ROWS($A$11:$A63)+2,FALSE)","v":0},{"$f":"HLOOKUP(AA$7,$J$67:$DK$121,ROWS($A$11:$A63)+2,FALSE)","v":143},{"$f":"HLOOKUP(AB$7,$J$67:$DK$121,ROWS($A$11:$A63)+2,FALSE)","v":37},{"$f":"HLOOKUP(AC$7,$J$67:$DK$121,ROWS($A$11:$A63)+2,FALSE)","v":59},{"$f":"HLOOKUP(AD$7,$J$67:$DK$121,ROWS($A$11:$A63)+2,FALSE)","v":0},{"$f":"HLOOKUP(AE$7,$J$67:$DK$121,ROWS($A$11:$A63)+2,FALSE)","v":108},{"$f":"HLOOKUP(AF$7,$J$67:$DK$121,ROWS($A$11:$A63)+2,FALSE)","v":2258},{"$f":"HLOOKUP(AG$7,$J$67:$DK$121,ROWS($A$11:$A63)+2,FALSE)","v":435},{"$f":"HLOOKUP(AH$7,$J$67:$DK$121,ROWS($A$11:$A63)+2,FALSE)","v":0},{"$f":"HLOOKUP(AI$7,$J$67:$DK$121,ROWS($A$11:$A63)+2,FALSE)","v":0},{"$f":"HLOOKUP(AJ$7,$J$67:$DK$121,ROWS($A$11:$A63)+2,FALSE)","v":0},{"$f":"HLOOKUP(AK$7,$J$67:$DK$121,ROWS($A$11:$A63)+2,FALSE)","v":0},{"$f":"HLOOKUP(AL$7,$J$67:$DK$121,ROWS($A$11:$A63)+2,FALSE)","v":0},{"$f":"HLOOKUP(AM$7,$J$67:$DK$121,ROWS($A$11:$A63)+2,FALSE)","v":0},{"$f":"HLOOKUP(AN$7,$J$67:$DK$121,ROWS($A$11:$A63)+2,FALSE)","v":0},{"$f":"HLOOKUP(AO$7,$J$67:$DK$121,ROWS($A$11:$A63)+2,FALSE)","v":1922},{"$f":"HLOOKUP(AP$7,$J$67:$DK$121,ROWS($A$11:$A63)+2,FALSE)","v":28},{"$f":"HLOOKUP(AQ$7,$J$67:$DK$121,ROWS($A$11:$A63)+2,FALSE)","v":2314},{"$f":"HLOOKUP(AR$7,$J$67:$DK$121,ROWS($A$11:$A63)+2,FALSE)","v":638},{"$f":"HLOOKUP(AS$7,$J$67:$DK$121,ROWS($A$11:$A63)+2,FALSE)","v":0},{"$f":"HLOOKUP(AT$7,$J$67:$DK$121,ROWS($A$11:$A63)+2,FALSE)","v":328},{"$f":"HLOOKUP(AU$7,$J$67:$DK$121,ROWS($A$11:$A63)+2,FALSE)","v":0},{"$f":"HLOOKUP(AV$7,$J$67:$DK$121,ROWS($A$11:$A63)+2,FALSE)","v":0},{"$f":"HLOOKUP(AW$7,$J$67:$DK$121,ROWS($A$11:$A63)+2,FALSE)","v":2313},{"$f":"HLOOKUP(AX$7,$J$67:$DK$121,ROWS($A$11:$A63)+2,FALSE)","v":624},{"$f":"HLOOKUP(AY$7,$J$67:$DK$121,ROWS($A$11:$A63)+2,FALSE)","v":4},{"$f":"HLOOKUP(AZ$7,$J$67:$DK$121,ROWS($A$11:$A63)+2,FALSE)","v":0},{"$f":"HLOOKUP(BA$7,$J$67:$DK$121,ROWS($A$11:$A63)+2,FALSE)","v":15},{"$f":"HLOOKUP(BB$7,$J$67:$DK$121,ROWS($A$11:$A63)+2,FALSE)","v":360},{"$f":"HLOOKUP(BC$7,$J$67:$DK$121,ROWS($A$11:$A63)+2,FALSE)","v":0},{"$f":"HLOOKUP(BD$7,$J$67:$DK$121,ROWS($A$11:$A63)+2,FALSE)","v":0},{"$f":"HLOOKUP(BE$7,$J$67:$DK$121,ROWS($A$11:$A63)+2,FALSE)","v":684},{"$f":"HLOOKUP(BF$7,$J$67:$DK$121,ROWS($A$11:$A63)+2,FALSE)","v":0},{"$f":"HLOOKUP(BG$7,$J$67:$DK$121,ROWS($A$11:$A63)+2,FALSE)","v":8},{"$f":"HLOOKUP(BH$7,$J$67:$DK$121,ROWS($A$11:$A63)+2,FALSE)","v":989},{"$f":"HLOOKUP(BI$7,$J$67:$DK$121,ROWS($A$11:$A63)+2,FALSE)","v":0},{"$f":"HLOOKUP(BJ$7,$J$67:$DK$121,ROWS($A$11:$A63)+2,FALSE)","v":"N/A"},{"$f":"HLOOKUP(BK$7+0.5,$J$67:$DK$121,ROWS($A$11:$A63)+2,FALSE)","v":2902},{"$f":"HLOOKUP(BL$7+0.5,$J$67:$DK$121,ROWS($A$11:$A63)+2,FALSE)","v":15},{"$f":"HLOOKUP(BM$7+0.5,$J$67:$DK$121,ROWS($A$11:$A63)+2,FALSE)","v":94},{"$f":"HLOOKUP(BN$7+0.5,$J$67:$DK$121,ROWS($A$11:$A63)+2,FALSE)","v":90},{"$f":"HLOOKUP(BO$7+0.5,$J$67:$DK$121,ROWS($A$11:$A63)+2,FALSE)","v":158},{"$f":"HLOOKUP(BP$7+0.5,$J$67:$DK$121,ROWS($A$11:$A63)+2,FALSE)","v":484},{"$f":"HLOOKUP(BQ$7+0.5,$J$67:$DK$121,ROWS($A$11:$A63)+2,FALSE)","v":214},{"$f":"HLOOKUP(BR$7+0.5,$J$67:$DK$121,ROWS($A$11:$A63)+2,FALSE)","v":365},{"$f":"HLOOKUP(BS$7+0.5,$J$67:$DK$121,ROWS($A$11:$A63)+2,FALSE)","v":214},{"$f":"HLOOKUP(BT$7+0.5,$J$67:$DK$121,ROWS($A$11:$A63)+2,FALSE)","v":214},{"$f":"HLOOKUP(BU$7+0.5,$J$67:$DK$121,ROWS($A$11:$A63)+2,FALSE)","v":1203},{"$f":"HLOOKUP(BV$7+0.5,$J$67:$DK$121,ROWS($A$11:$A63)+2,FALSE)","v":300},{"$f":"HLOOKUP(BW$7+0.5,$J$67:$DK$121,ROWS($A$11:$A63)+2,FALSE)","v":172},{"$f":"HLOOKUP(BX$7+0.5,$J$67:$DK$121,ROWS($A$11:$A63)+2,FALSE)","v":214},{"$f":"HLOOKUP(BY$7+0.5,$J$67:$DK$121,ROWS($A$11:$A63)+2,FALSE)","v":602},{"$f":"HLOOKUP(BZ$7+0.5,$J$67:$DK$121,ROWS($A$11:$A63)+2,FALSE)","v":153},{"$f":"HLOOKUP(CA$7+0.5,$J$67:$DK$121,ROWS($A$11:$A63)+2,FALSE)","v":214},{"$f":"HLOOKUP(CB$7+0.5,$J$67:$DK$121,ROWS($A$11:$A63)+2,FALSE)","v":240},{"$f":"HLOOKUP(CC$7+0.5,$J$67:$DK$121,ROWS($A$11:$A63)+2,FALSE)","v":72},{"$f":"HLOOKUP(CD$7+0.5,$J$67:$DK$121,ROWS($A$11:$A63)+2,FALSE)","v":101},{"$f":"HLOOKUP(CE$7+0.5,$J$67:$DK$121,ROWS($A$11:$A63)+2,FALSE)","v":214},{"$f":"HLOOKUP(CF$7+0.5,$J$67:$DK$121,ROWS($A$11:$A63)+2,FALSE)","v":177},{"$f":"HLOOKUP(CG$7+0.5,$J$67:$DK$121,ROWS($A$11:$A63)+2,FALSE)","v":1289},{"$f":"HLOOKUP(CH$7+0.5,$J$67:$DK$121,ROWS($A$11:$A63)+2,FALSE)","v":451},{"$f":"HLOOKUP(CI$7+0.5,$J$67:$DK$121,ROWS($A$11:$A63)+2,FALSE)","v":214},{"$f":"HLOOKUP(CJ$7+0.5,$J$67:$DK$121,ROWS($A$11:$A63)+2,FALSE)","v":214},{"$f":"HLOOKUP(CK$7+0.5,$J$67:$DK$121,ROWS($A$11:$A63)+2,FALSE)","v":214},{"$f":"HLOOKUP(CL$7+0.5,$J$67:$DK$121,ROWS($A$11:$A63)+2,FALSE)","v":214},{"$f":"HLOOKUP(CM$7+0.5,$J$67:$DK$121,ROWS($A$11:$A63)+2,FALSE)","v":214},{"$f":"HLOOKUP(CN$7+0.5,$J$67:$DK$121,ROWS($A$11:$A63)+2,FALSE)","v":214},{"$f":"HLOOKUP(CO$7+0.5,$J$67:$DK$121,ROWS($A$11:$A63)+2,FALSE)","v":214},{"$f":"HLOOKUP(CP$7+0.5,$J$67:$DK$121,ROWS($A$11:$A63)+2,FALSE)","v":1129},{"$f":"HLOOKUP(CQ$7+0.5,$J$67:$DK$121,ROWS($A$11:$A63)+2,FALSE)","v":48},{"$f":"HLOOKUP(CR$7+0.5,$J$67:$DK$121,ROWS($A$11:$A63)+2,FALSE)","v":761},{"$f":"HLOOKUP(CS$7+0.5,$J$67:$DK$121,ROWS($A$11:$A63)+2,FALSE)","v":565},{"$f":"HLOOKUP(CT$7+0.5,$J$67:$DK$121,ROWS($A$11:$A63)+2,FALSE)","v":214},{"$f":"HLOOKUP(CU$7+0.5,$J$67:$DK$121,ROWS($A$11:$A63)+2,FALSE)","v":499},{"$f":"HLOOKUP(CV$7+0.5,$J$67:$DK$121,ROWS($A$11:$A63)+2,FALSE)","v":214},{"$f":"HLOOKUP(CW$7+0.5,$J$67:$DK$121,ROWS($A$11:$A63)+2,FALSE)","v":214},{"$f":"HLOOKUP(CX$7+0.5,$J$67:$DK$121,ROWS($A$11:$A63)+2,FALSE)","v":1063},{"$f":"HLOOKUP(CY$7+0.5,$J$67:$DK$121,ROWS($A$11:$A63)+2,FALSE)","v":688},{"$f":"HLOOKUP(CZ$7+0.5,$J$67:$DK$121,ROWS($A$11:$A63)+2,FALSE)","v":7},{"$f":"HLOOKUP(DA$7+0.5,$J$67:$DK$121,ROWS($A$11:$A63)+2,FALSE)","v":214},{"$f":"HLOOKUP(DB$7+0.5,$J$67:$DK$121,ROWS($A$11:$A63)+2,FALSE)","v":31},{"$f":"HLOOKUP(DC$7+0.5,$J$67:$DK$121,ROWS($A$11:$A63)+2,FALSE)","v":291},{"$f":"HLOOKUP(DD$7+0.5,$J$67:$DK$121,ROWS($A$11:$A63)+2,FALSE)","v":214},{"$f":"HLOOKUP(DE$7+0.5,$J$67:$DK$121,ROWS($A$11:$A63)+2,FALSE)","v":214},{"$f":"HLOOKUP(DF$7+0.5,$J$67:$DK$121,ROWS($A$11:$A63)+2,FALSE)","v":777},{"$f":"HLOOKUP(DG$7+0.5,$J$67:$DK$121,ROWS($A$11:$A63)+2,FALSE)","v":214},{"$f":"HLOOKUP(DH$7+0.5,$J$67:$DK$121,ROWS($A$11:$A63)+2,FALSE)","v":15},{"$f":"HLOOKUP(DI$7+0.5,$J$67:$DK$121,ROWS($A$11:$A63)+2,FALSE)","v":654},{"$f":"HLOOKUP(DJ$7+0.5,$J$67:$DK$121,ROWS($A$11:$A63)+2,FALSE)","v":214},{"$f":"HLOOKUP(DK$7+0.5,$J$67:$DK$121,ROWS($A$11:$A63)+2,FALSE)","v":"N/A"}]
[]
[]
[]
[null,null,null,null,null,null,null,null,null,1,1.5,2,2.5,3,3.5,4,4.5,5,5.5,6,6.5,7,7.5,8,8.5,9,9.5,10,10.5,11,11.5,12,12.5,13,13.5,14,14.5,15,15.5,16,16.5,17,17.5,18,18.5,19,19.5,20,20.5,21,21.5,22,22.5,23,23.5,24,24.5,25,25.5,26,26.5,27,27.5,28,28.5,29,29.5,30,30.5,31,31.5,32,32.5,33,33.5,34,34.5,35,35.5,36,36.5,37,37.5,38,38.5,39,39.5,40,40.5,41,41.5,42,42.5,43,43.5,44,44.5,45,45.5,46,46.5,47,47.5,48,48.5,49,49.5,50,50.5,51,51.5,52,52.5,53,53.5]
[null,null,null,null,null,null,null,null,null,"Estimate","MOE","Estimate","MOE","Estimate","MOE","Estimate","MOE","Estimate","MOE","Estimate","MOE","Estimate","MOE","Estimate","MOE","Estimate","MOE","Estimate","MOE","Estimate","MOE","Estimate","MOE","Estimate","MOE","Estimate","MOE","Estimate","MOE","Estimate","MOE","Estimate","MOE","Estimate","MOE","Estimate","MOE","Estimate","MOE","Estimate","MOE","Estimate","MOE","Estimate","MOE","Estimate","MOE","Estimate","MOE","Estimate","MOE","Estimate","MOE","Estimate","MOE","Estimate","MOE","Estimate","MOE","Estimate","MOE","Estimate","MOE","Estimate","MOE","Estimate","MOE","Estimate","MOE","Estimate","MOE","Estimate","MOE","Estimate","MOE","Estimate","MOE","Estimate","MOE","Estimate","MOE","Estimate","MOE","Estimate","MOE","Estimate","MOE","Estimate","MOE","Estimate","MOE","Estimate","MOE","Estimate","MOE","Estimate","MOE","Estimate","MOE","Estimate","MOE","Estimate","MOE","Estimate","MOE"]
[null,null,null,null,null,null,null,null,null,7070345,58599,109210,9027,84068,7600,206842,12859,64967,6563,566986,19755,161530,10348,87023,5968,25149,3775,59513,6154,428325,18406,252262,12868,61509,6100,55191,6257,277953,12722,144597,8929,73325,6129,93134,7286,103004,7490,95956,7745,38574,5351,157664,9686,158156,10755,175733,9302,115946,8402,66947,7206,142754,9402,33832,4879,48816,4967,98882,9332,38696,3364,219202,11087,63921,5867,405864,15692,238663,13414,23959,3373,199202,10288,102572,9213,108182,7867,237156,10246,30498,3414,127418,8502,22534,2998,163843,8717,402187,15471,82165,8304,20056,2967,238540,11611,180462,9674,47425,5262,97724,5859,32228,5150,74500,8156]
[null,null,null,null,null,null,null,null,null,104600,8482,"N/A","N/A",1004,829,962,583,660,382,3077,1037,1386,1393,284,256,42,68,162,195,11244,2476,19920,3636,627,477,493,456,2722,1030,1347,536,345,337,865,760,2495,981,3104,1216,67,82,1513,847,334,272,2298,881,752,716,4952,1703,1555,836,101,132,151,167,1009,824,161,166,1702,1200,459,576,2709,1188,5133,1788,228,194,1411,576,194,157,200,169,1837,736,0,184,2811,1951,518,758,10539,2731,7468,2136,579,713,0,184,3170,1577,1034,684,128,156,760,605,88,107,619,551]
[null,null,null,null,null,null,null,null,null,33415,4385,1097,825,"N/A","N/A",1520,1441,196,202,3494,1643,556,279,0,143,0,143,356,459,1991,942,928,894,1376,805,538,387,58,118,260,235,13,24,221,272,161,196,120,145,66,62,508,591,297,289,563,426,192,191,56,76,819,628,371,334,1195,1128,803,382,118,206,116,156,263,219,736,576,920,784,264,359,1316,757,335,252,3174,1510,255,240,0,143,384,394,99,123,451,413,1488,760,330,347,79,108,1265,674,3725,1488,0,143,206,261,136,217,25,43]
[null,null,null,null,null,null,null,null,null,232457,14183,1331,1286,3717,1505,"N/A","N/A",1214,659,44889,5435,13790,6133,417,309,246,215,36,60,5553,2160,2263,961,2491,1285,2934,1362,10744,2614,2930,1447,2702,1000,2498,852,1328,997,724,442,616,593,3007,1288,1961,1083,9598,3471,8570,3050,293,215,2595,1099,1118,536,2293,1037,6712,2202,510,443,2564,1085,6946,1907,7402,2615,2721,939,877,444,7906,2239,1626,838,8587,3200,4280,1395,614,687,1070,573,1472,776,5075,1919,14788,3541,5916,1789,207,291,2763,1031,13247,2448,765,734,3765,1168,2786,1401,1791,1662]
[null,null,null,null,null,null,null,null,null,76948,7223,374,293,855,906,1677,954,"N/A","N/A",3525,1202,603,369,185,264,0,184,205,232,2682,1052,1525,1006,0,184,0,184,3576,1286,1172,587,409,330,1033,539,1310,884,3953,1340,17,39,169,209,254,262,1283,607,295,285,3689,2537,9105,2916,258,293,166,201,121,161,0,184,157,171,547,482,2262,1559,3057,2173,0,184,1135,626,9938,2371,193,179,516,475,59,103,52,71,673,588,4195,1127,11767,2841,269,216,0,184,1159,824,251,226,84,148,695,467,1498,2098,0,184]
[null,null,null,null,null,null,null,null,null,493641,19652,2509,983,6995,1948,38916,5726,3472,1354,"N/A","N/A",15150,2598,6764,2194,474,413,3199,1061,21004,3394,10790,2458,11906,2720,5331,1519,21251,3521,5891,1629,2284,987,2790,984,3763,1292,5180,1525,1256,951,7902,2347,14356,2682,8921,2069,8539,1942,2556,993,6729,1595,3060,1275,3302,2007,27968,3857,1327,615,12057,2447,5921,2240,31261,5136,11195,2366,1827,1272,10653,2869,6671,1795,22724,3271,10466,2392,1648,697,4110,1492,826,674,5802,1880,43005,5519,12172,2457,544,345,15625,3457,34569,4540,1413,1135,5681,1716,1886,1117,2323,1076]
[null,null,null,null,null,null,null,null,null,205060,11855,3108,1610,3457,1695,10589,2218,1043,580,22152,4260,"N/A","N/A",1317,677,70,133,488,387,8615,1907,5834,2086,2536,1020,2660,1468,6374,1617,4336,2128,2776,1486,5283,1843,2500,2135,5048,2468,20,40,2844,1196,5939,2238,3343,1293,2992,909,835,522,3771,1262,2021,923,4472,1729,3789,1433,679,308,2464,1179,6520,1851,7250,2604,4378,1678,1918,1071,4533,2214,4582,2102,2419,836,3950,1530,137,153,2383,1479,756,553,2535,1135,17355,3352,6398,2035,503,371,3796,1568,4853,1401,837,429,3000,1006,5602,2808,1144,903]
[null,null,null,null,null,null,null,null,null,80311,6574,46,103,439,511,3167,3028,200,228,3161,1015,367,341,"N/A","N/A",22,36,288,230,6578,1844,1702,971,408,476,97,155,912,583,53,90,0,193,0,193,124,159,909,733,1224,696,1752,748,8743,1587,753,539,605,564,276,293,358,330,50,91,45,74,172,166,1009,551,5665,1490,444,450,23310,3774,3379,1609,0,193,287,254,415,411,35,58,2214,1037,1558,689,940,665,0,193,260,216,3279,1568,45,69,709,556,1729,707,1593,1274,174,293,711,684,104,120,3228,1540]
[null,null,null,null,null,null,null,null,null,34757,4691,119,164,692,920,188,227,0,182,2221,2189,0,182,1489,679,"N/A","N/A",11,21,715,481,179,224,0,182,32,51,567,468,62,80,30,49,113,190,0,182,178,266,0,182,5649,1598,157,131,227,233,351,390,58,110,80,138,0,182,91,116,572,474,99,127,5846,2122,85,136,3566,1751,1349,809,0,182,191,201,0,182,0,182,6828,1815,135,185,298,235,0,182,344,440,133,158,166,279,0,182,1746,910,29,49,161,205,0,182,0,182,56,90]
[null,null,null,null,null,null,null,null,null,53830,5001,79,138,1247,715,902,646,35,59,4999,2108,677,546,618,439,78,127,"N/A","N/A",1705,661,1079,470,38,87,46,75,795,446,469,379,133,221,164,267,112,136,283,295,194,244,14120,2487,1524,717,944,670,393,240,44,74,337,354,0,197,172,182,42,69,197,183,1451,792,116,139,3085,851,985,503,0,197,651,429,0,197,157,182,1494,608,635,596,150,140,0,197,577,478,1473,826,116,145,267,250,9537,1762,481,358,293,219,721,420,215,303,0,197]
[null,null,null,null,null,null,null,null,null,537148,19784,18599,4762,10704,4327,6473,1865,3321,1136,20386,4221,8766,2537,8975,1882,1099,608,780,481,"N/A","N/A",42754,6205,3177,2730,1268,923,22565,3828,13803,2852,3864,1332,5661,3133,6912,1607,5550,2266,7348,3032,10442,2378,15159,2747,23400,3519,5460,2185,5490,3345,10666,3498,1758,2104,945,713,1241,515,2362,922,27606,4242,2853,1004,53009,5886,23133,3843,239,203,22927,4305,3142,1301,2919,1736,25659,4174,3050,1458,11366,2719,1070,762,16275,3583,28564,4750,2499,1348,2747,1190,25697,3965,4943,1710,3533,1587,6216,1993,773,567,21638,4641]
[null,null,null,null,null,null,null,null,null,277466,14075,13864,2903,2654,1444,6657,2675,1041,519,14174,3182,4710,2093,1829,824,226,246,1352,994,42870,5472,"N/A","N/A",1409,831,936,797,7143,1833,5972,2678,1687,1036,1497,707,6172,1972,4100,1490,222,178,3619,1621,4153,1720,9949,3100,2237,2164,3280,1372,3377,1479,251,224,1283,1001,3783,2622,15,27,4920,1544,915,512,13957,3960,16009,2963,207,250,7501,2501,3299,1818,453,472,9076,2622,440,620,18611,3871,257,291,17606,4620,16198,3367,20,35,84,142,10702,2094,1965,826,1237,625,3441,1725,106,154,1730,1190]
[null,null,null,null,null,null,null,null,null,55145,5749,608,479,1417,869,1865,695,24,54,9756,1508,1216,574,191,222,278,253,230,253,2780,1227,1448,639,"N/A","N/A",404,431,318,194,292,261,84,98,1135,709,485,630,207,183,91,147,2491,1610,1266,962,321,189,192,240,44,52,944,630,131,172,75,125,760,424,85,119,410,435,284,243,2382,1279,2241,1274,0,177,884,995,1095,933,1763,764,1087,770,106,176,644,460,459,726,1314,675,3300,1887,2183,1283,0,177,1393,755,5920,1901,197,330,295,234,50,66,336,436]
[null,null,null,null,null,null,null,null,null,59283,6040,575,838,1198,790,2424,1307,291,268,10280,2708,1186,614,44,81,120,199,116,124,2014,1608,583,848,206,194,"N/A","N/A",532,469,283,282,90,170,63,69,83,128,54,92,0,187,107,161,338,391,683,777,637,528,87,170,214,259,3800,2162,35,60,2535,1031,0,187,214,206,675,554,938,554,817,843,0,187,1018,753,93,108,4963,1377,169,181,0,187,205,238,118,192,1957,1539,1352,714,6617,3016,0,187,269,388,10398,1919,0,187,225,272,677,406,136,228]
[null,null,null,null,null,null,null,null,null,208755,10844,883,478,2250,1511,7139,2314,1587,643,14940,2770,3036,1235,955,634,234,228,1066,615,12687,2735,8745,3894,869,593,1384,868,"N/A","N/A",16907,2654,8529,1959,2009,988,2923,1049,1229,561,526,347,1865,755,3296,1088,12583,3412,6537,1781,2744,1178,13264,3449,228,183,1302,637,1478,817,283,255,2366,1097,1359,1078,7561,2307,3761,1150,196,184,6872,1834,1491,860,954,517,4588,1506,462,478,1583,875,394,444,4648,1468,16780,3035,1154,495,156,133,4311,1212,2704,971,1221,1224,14414,2249,302,309,2049,1480]
[null,null,null,null,null,null,null,null,null,134137,9664,1625,788,479,429,2763,1095,564,753,6033,1477,1225,531,823,595,639,831,1045,733,11472,2864,2258,1176,856,998,186,176,28436,4261,"N/A","N/A",1678,860,1624,785,11177,2929,736,416,0,184,1050,648,837,590,11017,2594,1543,732,1948,1655,4526,1802,134,191,591,541,1011,549,0,184,1537,1034,219,245,2316,724,2665,884,113,164,11235,2192,1198,725,387,239,2419,1101,0,184,1414,901,111,147,3547,1422,4490,1562,105,124,0,184,1932,1101,258,221,507,345,1727,769,1681,2023,136,194]
[null,null,null,null,null,null,null,null,null,75760,5982,503,400,951,814,1590,803,451,237,3268,1296,3252,1250,112,135,0,151,151,155,4335,2060,596,481,521,476,290,218,11969,2313,1716,1097,"N/A","N/A",918,500,819,609,763,568,78,125,419,287,585,520,946,497,7505,1826,751,621,4168,1021,452,305,7698,1806,681,602,56,93,1018,767,114,188,1230,819,734,428,833,617,1127,692,1465,974,348,302,451,353,0,151,943,556,1158,441,1148,871,3553,1275,886,880,0,151,268,200,919,485,22,41,3607,849,392,316,786,1190]
[null,null,null,null,null,null,null,null,null,88284,7145,853,609,333,407,3094,1630,2158,890,5411,2012,3746,1360,210,208,0,165,456,737,3118,1380,1896,1395,149,156,456,356,1702,582,1679,839,1527,860,"N/A","N/A",617,476,438,408,211,225,282,282,187,203,1125,682,682,367,452,501,21022,3073,300,326,4126,1245,851,606,0,165,267,228,1029,627,571,367,813,476,261,263,1310,638,8408,2299,848,557,918,672,18,31,556,375,154,195,1542,825,8468,2434,97,106,70,138,1705,853,3265,1675,139,132,486,530,278,239,82,147]
[null,null,null,null,null,null,null,null,null,112787,7854,4137,1628,304,370,1103,715,518,299,3415,1157,712,572,246,290,706,774,254,262,9232,2697,4173,1184,647,665,50,91,4445,1359,12203,2150,238,257,602,464,"N/A","N/A",666,294,46,80,1120,615,419,285,7302,1809,605,346,646,467,2381,1021,0,181,723,588,301,294,84,103,496,551,554,348,5239,1774,3643,1903,122,192,17041,3384,577,437,298,212,2226,964,0,181,1347,671,0,181,10064,2378,3345,1420,464,360,45,81,3319,1111,1988,998,3346,1472,1395,845,0,181,170,197]
[null,null,null,null,null,null,null,null,null,91215,6941,2329,1114,403,467,2021,1191,3645,2324,5139,1438,1433,1002,164,149,0,193,596,517,6534,2276,4478,1559,378,283,265,242,1229,466,1359,954,544,447,420,392,1649,1224,"N/A","N/A",251,334,642,701,549,354,1080,782,330,324,6791,1938,1591,684,428,524,745,538,931,682,11,21,975,575,150,188,2786,1105,2284,1152,64,113,1115,773,2159,1365,195,232,1239,616,737,695,1914,1377,0,193,2348,1546,24488,4076,277,288,45,72,1857,1033,1581,631,238,271,682,474,146,216,655,507]
[null,null,null,null,null,null,null,null,null,27523,3132,129,172,38,48,230,170,0,155,1610,860,314,287,1468,620,234,299,32,55,2926,1292,511,538,0,155,143,128,195,277,0,155,7,16,277,401,482,521,15,30,"N/A","N/A",325,263,3887,1167,116,123,430,359,79,134,69,112,0,155,82,136,35,56,3655,1077,405,281,272,320,2519,1180,1112,574,0,155,628,368,79,115,215,255,976,600,1024,656,173,143,0,155,985,1062,496,381,200,183,349,340,573,408,118,137,51,85,0,155,59,81,38,69]
[null,null,null,null,null,null,null,null,null,154983,8958,1261,713,1947,1123,760,359,136,159,8614,2155,1071,609,881,516,4100,1303,21213,3437,9610,2515,4610,2430,610,474,429,444,3621,1647,1210,709,569,389,1726,1123,715,602,606,441,332,261,"N/A","N/A",3977,1805,2167,973,1422,707,581,706,256,199,0,190,132,152,330,258,1124,820,6260,2244,638,453,11736,2585,7507,2284,116,94,2522,1035,463,447,378,426,15485,2922,82,95,2297,1139,0,190,1800,986,5612,1271,1061,831,589,598,20579,2668,1431,884,1957,799,460,371,0,190,294,249]
[null,null,null,null,null,null,null,null,null,142577,7863,636,622,890,600,1972,979,394,340,12770,2994,980,438,10525,2062,506,505,379,219,12890,2568,2789,1129,1108,564,188,164,2886,1041,677,497,151,251,565,429,52,87,1556,742,3907,1349,2381,895,"N/A","N/A",1337,680,966,367,155,186,453,218,49,81,182,189,787,544,13331,2144,8046,1874,521,364,19467,2432,2514,1003,81,133,1829,772,297,206,1528,1359,8236,1924,6863,1317,2477,1120,194,326,823,342,3694,1078,1027,666,2534,913,4098,1470,1653,696,385,569,584,445,264,404,4056,1883]
[null,null,null,null,null,null,null,null,null,133981,8566,2341,1013,1152,685,7168,3100,906,559,8085,1721,2363,967,798,506,114,164,274,282,13146,3306,4270,1652,291,238,242,371,10047,1702,10976,2324,993,495,805,608,3409,1388,1284,662,261,218,2201,1094,1720,764,"N/A","N/A",1127,512,922,671,2206,695,218,171,113,137,1354,715,446,342,1617,721,1318,685,5731,1680,3912,1056,265,202,11318,2251,705,307,811,440,2739,686,68,114,1822,797,66,77,3259,997,8638,2574,819,534,60,120,3057,855,2146,839,353,279,4768,1111,1277,862,782,797]
[null,null,null,null,null,null,null,null,null,101042,6534,1299,919,523,312,3065,861,375,222,8086,2263,3565,1095,696,360,0,139,310,353,2372,752,2235,1482,1277,1179,575,531,5896,1405,2026,1057,7220,1774,924,513,57,103,791,858,187,136,1841,2080,814,434,2212,822,"N/A","N/A",202,323,1709,750,1257,900,992,477,932,542,0,139,1038,546,322,224,1849,732,1745,956,6672,1485,2635,1248,1212,894,781,513,1106,570,299,226,1705,1448,3442,990,1738,1141,4001,1244,429,312,77,126,1037,434,1685,678,0,139,17618,2358,213,213,134,136]
[null,null,null,null,null,null,null,null,null,73500,7080,5141,1870,0,198,710,509,2680,1447,4371,1070,799,426,106,147,0,198,97,164,4676,1396,2669,865,184,191,586,597,2703,933,1200,621,160,275,400,339,446,276,8588,2293,163,167,379,262,67,113,1768,1071,568,385,"N/A","N/A",2634,1581,166,168,138,159,526,342,60,117,2127,1495,86,102,1492,660,1709,609,98,118,896,703,562,352,465,768,613,434,185,229,596,469,79,129,11643,2856,7230,2491,454,724,0,198,1929,1285,433,309,0,198,611,521,307,287,81,108]
[null,null,null,null,null,null,null,null,null,162930,8034,1333,768,2186,1289,2297,741,9434,2224,10717,2409,3798,1371,410,331,234,314,144,172,8374,1990,3451,1391,2114,1271,596,478,22001,2893,4184,1267,5956,1324,20218,3673,2291,1067,1178,651,996,1247,1246,717,810,486,2964,1169,2798,1265,1110,532,"N/A","N/A",511,506,1999,833,836,366,35,58,960,536,451,309,2834,918,3988,1420,636,462,3557,1317,5298,2199,1186,899,1535,639,361,582,2856,1625,527,542,3122,1350,9278,2841,3287,1733,318,413,2609,1081,2312,1093,148,181,2636,999,810,452,826,958]
[null,null,null,null,null,null,null,null,null,37690,4305,31,55,726,442,1548,938,63,102,5428,2229,2135,896,0,157,0,157,0,157,1875,1029,292,270,556,572,3385,1349,542,371,163,164,415,384,224,268,367,352,0,157,225,269,33,65,97,109,822,760,481,297,32,58,447,385,"N/A","N/A",108,149,968,499,115,177,156,198,259,178,482,371,1082,808,977,604,402,332,1018,948,2950,1687,457,362,0,157,230,304,191,142,45,40,1393,612,260,261,87,135,156,153,4783,1555,0,157,750,425,934,387,0,157]
[null,null,null,null,null,null,null,null,null,43266,4512,245,275,626,531,2406,1120,363,317,3438,1425,2023,791,0,149,0,149,0,149,1368,978,786,482,165,149,315,374,1193,546,290,214,6815,2803,3103,822,131,133,411,371,68,90,129,126,195,112,258,197,1489,1049,176,132,2223,836,108,156,"N/A","N/A",233,178,0,149,524,363,158,187,318,246,874,414,497,492,563,373,587,408,106,113,702,528,0,149,456,381,2507,677,232,184,3130,1218,229,230,79,131,1076,758,1327,673,111,152,316,218,917,371,0,149]
[null,null,null,null,null,null,null,null,null,124285,9956,761,724,2161,1047,8748,2540,353,404,49978,7637,6402,2736,143,181,373,521,468,759,3381,1488,745,477,2053,949,1503,743,2822,1412,362,341,714,592,1202,1085,952,651,421,296,209,286,934,689,318,267,1235,574,1157,718,783,658,694,516,1086,605,714,551,"N/A","N/A",175,230,912,600,1138,665,3521,1460,767,589,702,661,1407,791,1520,1384,3101,1186,1601,1078,336,548,480,403,0,200,1699,822,5484,1772,4605,1899,121,222,1135,832,2997,1103,100,161,1046,666,766,706,237,356]
[null,null,null,null,null,null,null,null,null,50484,5282,0,181,437,378,440,413,0,181,1514,935,572,637,1345,478,0,181,101,131,2746,1312,470,324,43,78,20,38,673,608,297,365,53,89,102,161,284,250,7,13,6118,1749,33,57,18990,3350,426,441,0,181,0,181,289,262,0,181,110,136,0,181,"N/A","N/A",591,330,223,279,2905,1027,1609,1456,0,181,324,240,186,266,208,299,890,561,1248,819,323,257,0,181,77,133,2150,1715,557,762,2960,1339,660,433,113,119,80,131,239,277,71,120,75,123]
[null,null,null,null,null,null,null,null,null,130223,7649,779,509,359,437,1328,704,57,70,4330,1070,380,264,3466,1711,1921,1383,840,637,10649,2430,3002,1032,22,41,113,134,2052,874,1039,559,357,405,426,405,631,614,339,343,430,388,3474,1241,4907,1730,324,191,570,429,106,165,384,363,67,112,35,58,908,526,126,219,"N/A","N/A",45,75,40495,4293,3236,1238,55,93,1452,596,1540,1537,760,587,23597,2976,429,410,2372,1386,581,644,1400,612,2509,1335,425,341,35,57,5024,1899,1847,1244,297,201,680,457,23,30,2574,1462]
[null,null,null,null,null,null,null,null,null,54693,5877,787,509,320,264,6391,1673,410,286,4536,1440,4780,1546,280,250,100,136,25,51,4707,2184,192,184,168,127,355,352,790,530,660,524,384,331,672,537,159,160,790,883,57,80,505,355,303,298,602,490,284,428,451,630,1216,793,139,162,194,220,604,853,268,259,252,271,"N/A","N/A",1111,618,335,373,41,82,1178,1049,1076,568,932,481,822,666,0,185,325,260,509,547,338,274,11955,2917,1382,889,81,103,1560,1330,1251,575,0,185,321,514,95,100,429,466]
[null,null,null,null,null,null,null,null,null,270053,11861,1364,864,4002,2016,4146,2468,247,203,24623,2557,3596,976,14595,2921,477,284,3936,1392,27392,3450,7592,1925,1598,734,607,472,8017,2204,3040,1128,955,658,1437,906,1753,808,1083,465,1345,536,7321,1575,15073,2292,5191,1445,1059,631,773,800,3310,1260,421,424,78,108,600,382,2760,1059,42574,4802,646,445,"N/A","N/A",10544,2568,77,129,4625,1103,1327,652,1055,716,22895,3206,3222,1538,5952,1542,0,185,1279,624,11231,2384,622,489,2764,1025,7939,2109,2614,840,921,689,979,507,396,370,7321,1791]
[null,null,null,null,null,null,null,null,null,273149,13136,4329,1544,1458,925,3493,1189,861,649,13883,2813,4790,2047,4914,1990,2180,1732,1801,687,26365,3750,16823,2851,1566,921,334,256,6378,2177,4532,2259,775,524,1595,748,1531,794,919,758,1259,972,9005,2221,3710,1158,6161,2547,1523,838,2377,1092,2623,1742,244,306,628,628,1627,807,754,525,11468,4262,1138,705,19891,3951,"N/A","N/A",206,232,9337,2484,1263,753,1333,772,12179,2356,290,198,25532,4732,351,186,9230,2122,12638,2381,1189,1040,445,291,26759,4229,5915,2630,2677,985,2266,980,604,687,2025,1218]
[null,null,null,null,null,null,null,null,null,38213,3616,83,142,70,105,1571,788,0,141,999,460,546,293,65,100,0,141,70,112,950,860,98,154,160,148,540,521,799,523,55,77,458,316,161,122,22,44,18,27,98,176,232,311,187,281,757,571,15257,2266,72,109,1490,1346,1776,709,950,764,854,572,0,141,140,231,161,228,331,331,231,243,"N/A","N/A",6,14,280,260,724,529,114,157,244,255,14,28,1754,822,746,694,1414,756,43,60,758,1014,403,309,1604,796,0,141,543,327,365,269,0,141]
[null,null,null,null,null,null,null,null,null,196391,9611,3705,2297,2207,1757,4929,1912,884,604,8995,1803,3180,1230,1355,887,1079,696,985,722,16366,2560,8052,2973,1198,591,412,295,9510,2157,13534,2157,1039,765,1166,617,13227,2976,2214,1011,1189,889,5026,2570,2189,808,16336,2656,1122,597,1017,865,3026,1068,276,292,1052,656,907,525,189,156,4703,2119,1361,817,8732,1741,5498,1525,453,346,"N/A","N/A",858,417,432,307,14147,2612,435,384,2445,1029,47,76,3542,1429,11760,2739,197,211,364,350,3193,1055,2862,2150,7820,2219,974,725,202,210,1403,910]
[null,null,null,null,null,null,null,null,null,108972,6570,1030,467,1279,600,2974,1435,5777,1187,8950,2184,4717,1556,0,149,380,288,151,148,5011,1525,2581,935,189,295,905,600,1100,487,1490,936,1088,689,7065,1535,1354,898,2562,1354,167,260,750,685,1233,906,1347,671,906,469,1850,752,5210,1349,798,710,300,208,1101,799,549,383,1523,748,1244,712,1981,936,1961,912,308,340,1148,533,"N/A","N/A",1261,771,494,285,0,149,569,346,108,154,2471,1035,25508,2960,2588,1465,197,316,1749,829,1574,575,368,298,1061,758,45,68,0,149]
[null,null,null,null,null,null,null,null,null,118925,7769,373,425,2513,953,7954,2060,165,158,31862,3767,4472,2133,381,457,0,193,696,919,1660,620,1032,523,2501,813,5093,1880,1676,1192,1380,1000,834,781,556,534,202,261,227,229,446,353,457,422,760,604,570,338,1792,799,186,237,403,269,2192,968,570,448,5935,2774,39,65,385,327,920,676,2379,1032,1482,1046,42,85,1411,789,725,546,"N/A","N/A",904,535,177,214,461,364,119,143,802,583,3347,1277,4793,2328,367,435,676,510,21224,3153,593,502,426,284,765,664,152,177]
[null,null,null,null,null,null,null,null,null,215500,8872,1926,1318,1658,857,3529,1256,573,315,7772,1558,2574,1488,3311,905,4814,1468,2921,830,14631,2565,4337,1703,245,180,359,350,3749,1137,1599,680,125,177,967,860,1233,604,694,431,988,675,17529,3084,5900,1368,2642,1235,1169,588,55,49,1171,575,135,169,214,187,1600,999,1138,609,33791,4576,1001,740,32898,4482,6380,1734,166,195,14319,2479,378,253,234,220,"N/A","N/A",771,472,3023,869,159,206,1273,533,6768,1688,1276,804,1012,873,11960,2213,1787,1202,6762,2075,1550,722,434,439,7847,2646]
[null,null,null,null,null,null,null,null,null,33446,3551,20,44,0,200,93,151,0,200,2146,811,332,315,4170,1101,0,200,313,381,2752,1143,168,211,120,145,0,200,385,382,0,200,0,200,27,47,286,405,24,45,279,249,482,325,11253,1937,230,169,131,131,0,200,210,158,0,200,188,250,25,48,611,385,1219,641,36,58,3603,1335,478,508,0,200,63,80,0,200,139,235,735,552,"N/A","N/A",481,609,0,200,120,199,823,433,0,200,53,76,1008,569,287,320,0,200,135,124,21,32,116,186]
[null,null,null,null,null,null,null,null,null,156705,9611,1665,635,1244,1016,2222,1160,839,526,5979,1473,1915,1059,1590,729,697,492,435,352,11552,2367,18570,3616,638,493,198,321,2125,1128,3802,1911,643,437,1064,855,1924,991,2709,2265,2077,942,3565,1205,2313,826,2966,1289,757,582,1407,802,1884,724,93,127,158,165,1025,834,917,696,6517,2181,1052,1085,10746,3642,24764,3907,656,650,4388,1326,555,354,255,202,6497,2067,538,332,"N/A","N/A",816,1252,3550,1136,5351,1482,566,425,298,244,9377,3040,1629,1165,1345,720,832,570,0,197,1070,890]
[null,null,null,null,null,null,null,null,null,26051,2891,0,147,855,1127,435,333,227,354,1494,663,1744,839,2,4,0,147,0,147,970,638,122,130,8,13,78,104,74,102,210,289,2441,932,403,295,0,147,0,147,0,147,60,65,61,101,892,747,3568,1023,34,48,474,274,248,208,2175,801,135,171,0,147,0,147,175,187,371,317,240,220,1725,823,64,77,21,36,667,583,515,633,0,147,158,159,"N/A","N/A",507,346,1715,1067,388,372,5,9,340,300,1026,681,131,216,314,413,979,735,134,235]
[null,null,null,null,null,null,null,null,null,177098,10625,12116,3309,1281,847,2250,907,3306,1731,8396,2447,2473,1156,936,900,176,222,180,203,15641,3639,16012,3114,1058,1052,787,817,7094,1891,5591,2209,617,556,2630,1972,13202,2695,2452,1206,1040,589,1743,867,1525,706,4507,1434,1178,896,10568,2321,2694,1254,308,278,432,389,735,443,271,287,783,507,751,640,6279,2008,5904,1834,7,16,6200,1742,2495,1410,1080,589,3329,999,26,55,4300,1280,0,193,"N/A","N/A",8716,2938,784,1131,133,133,8008,2159,1876,852,3248,1760,1622,727,358,382,717,499]
[null,null,null,null,null,null,null,null,null,507752,20202,9993,3132,6759,2614,18908,3870,13781,3771,62702,8792,16616,3638,2769,1124,181,168,1189,610,31259,6252,20362,3365,5040,2386,2387,1190,19672,3645,8264,2734,4934,2063,12699,3202,6040,2224,29348,5712,1293,1284,4969,2026,4813,1584,9501,2273,2803,948,6402,2032,12319,2205,1813,986,4794,2045,8266,4162,761,749,6797,2141,16762,3127,20274,4211,22660,6953,989,542,8728,1739,26284,4418,3827,1684,10449,2158,1763,1605,4470,1665,1264,757,10368,2623,"N/A","N/A",4610,2045,113,135,17734,4904,11630,2741,1729,938,4192,1322,2472,1676,4435,1611]
[null,null,null,null,null,null,null,null,null,87870,7490,126,171,2819,1292,7966,2419,361,402,15286,2837,5350,1845,142,168,0,181,0,181,2428,1105,1142,622,1436,876,5129,1135,1588,802,475,296,2791,2779,398,333,217,221,345,313,380,339,613,361,1503,1343,1670,1210,385,300,284,229,1553,769,1057,729,489,384,5391,1743,507,442,437,322,686,505,2129,924,842,611,175,218,1875,881,1338,691,4089,2693,944,450,351,571,60,100,47,74,863,529,3605,1278,"N/A","N/A",39,63,1369,668,3529,1319,0,181,1445,1512,2216,715,239,190]
[null,null,null,null,null,null,null,null,null,24431,2713,16,23,93,153,127,165,0,143,1112,537,382,296,1626,540,0,143,116,134,966,519,56,81,6,10,0,143,230,221,68,81,30,43,0,143,1243,1690,73,105,883,546,862,396,3318,657,284,246,315,349,0,143,23,26,147,189,0,143,17,37,2893,812,833,364,74,89,4780,921,328,248,0,143,214,247,11,13,26,38,935,525,341,220,124,208,39,66,193,185,493,334,81,96,"N/A","N/A",728,427,98,109,0,143,151,115,96,102,0,143]
[null,null,null,null,null,null,null,null,null,250653,11997,2515,990,1906,1287,2420,1030,445,319,14780,2760,5352,1834,2725,1001,2279,1465,10964,4084,19574,3694,9535,1889,3823,1460,652,411,7089,3237,2663,1228,221,209,1144,669,3908,1422,1638,936,1144,689,23925,4264,3767,1503,2982,1136,2294,1414,1344,730,1914,837,658,433,357,313,973,522,535,398,9073,2029,947,637,15893,3260,25575,4182,852,1019,5622,1519,2810,1873,1541,1069,14190,2998,1605,731,7936,2435,35,57,6189,1858,12944,2828,2092,994,423,437,"N/A","N/A",4160,1420,3839,1234,1258,880,143,166,516,466]
[null,null,null,null,null,null,null,null,null,215494,12552,1507,730,4328,1682,8362,2641,1413,1121,45597,5884,5195,2150,2901,1138,100,164,773,528,9370,2417,6363,2288,5239,2393,10604,2191,4298,1727,1089,521,1159,845,2544,1029,1368,911,1646,915,532,655,1191,923,2911,1011,3470,1605,2703,1971,615,444,2802,1017,2919,1013,682,456,5671,2919,309,248,2300,1441,872,527,5562,1947,4088,1854,217,200,3192,1400,1223,768,25525,4052,3397,1799,97,162,2727,1542,94,155,3206,1819,14196,3417,5298,1995,223,216,3839,1320,"N/A","N/A",215,271,1168,638,394,495,1025,878]
[null,null,null,null,null,null,null,null,null,47125,4317,477,339,306,455,79,129,0,182,1231,516,104,114,143,177,674,525,294,194,1919,666,1108,483,166,277,181,250,220,190,328,406,68,111,39,64,2249,1019,90,88,35,74,5352,1897,164,191,778,581,20,37,0,182,59,76,0,182,0,182,229,268,129,147,1213,679,81,90,1721,965,4683,1933,175,215,6757,1474,520,447,118,207,5208,1699,0,182,1098,671,36,65,1061,513,622,415,0,182,54,89,6317,1774,297,285,"N/A","N/A",470,555,252,395,79,123]
[null,null,null,null,null,null,null,null,null,99192,6959,323,262,236,193,3257,1696,253,216,5347,2126,1600,604,657,432,296,475,15,25,4937,1590,970,396,333,416,360,231,22285,3020,2480,1136,4161,1283,1160,1199,635,502,598,403,233,195,1306,586,489,356,3917,1160,18965,2405,238,211,1263,681,784,512,324,240,1163,682,3,7,606,477,526,553,2033,980,2939,1454,284,318,2610,1053,289,204,945,601,1563,750,144,157,1053,675,329,220,1051,638,2765,1112,900,1091,62,88,1267,916,1208,416,0,145,"N/A","N/A",30,46,975,943]
[null,null,null,null,null,null,null,null,null,31149,3430,260,284,590,661,2014,1234,244,405,2035,720,5599,1618,0,185,0,185,0,185,733,572,166,173,0,185,745,481,905,823,179,179,259,273,539,412,4,10,88,100,0,185,294,304,548,638,965,730,290,240,136,229,244,257,1901,789,1216,559,355,304,0,185,121,147,604,658,231,252,459,399,338,300,819,447,964,670,893,605,230,254,0,185,122,201,1175,730,4,7,1427,920,1710,948,0,185,138,169,1323,785,0,185,282,210,"N/A","N/A",16,27]
[null,null,null,null,null,null,null,null,null,20044,2902,8,15,57,94,54,90,93,158,519,484,0,214,370,365,0,214,0,214,4192,1203,232,300,110,172,0,214,1021,602,121,153,0,214,143,240,37,72,59,101,0,214,108,177,2258,1289,435,451,0,214,0,214,0,214,0,214,0,214,0,214,0,214,1922,1129,28,48,2314,761,638,565,0,214,328,499,0,214,0,214,2313,1063,624,688,4,7,0,214,15,31,360,291,0,214,0,214,684,777,0,214,8,15,989,654,0,214,"N/A","N/A"]

{"sheet":"2011","index":5,"n_rows":122,"n_cols":116,"rows_kept":122,"cut":false,"hidden":true,"merged":[[6,2,8,2],[6,3,7,4],[6,5,7,6],[6,7,7,8]]}
[]
[null,null,"Table 2  State-to-State Migration Flows*: 2011"]
[null,null,"Dataset: 2011 American Community Survey 1-Year Estimates"]
[null,null,"Universe: Population 1 year and over"]
[null,null,"Source: http://www.census.gov/hhes/migration/files/acs/st-to-st/State_to_State_Migrations_Table_2011.xls",null,null,null,null,null,null,null,null,{"$f":"99850+SUM(L13:L64)","v":206691}]
[null,null,null,null,null,{"$f":"F13+H13+K13","v":4730461},null,null,null,null,"ESTIMATES",null,null,null,null,null,null,null,null,null,null,null,null,null,null,null,null,null,null,null,null,null,null,null,null,null,null,null,null,null,null,null,null,null,null,null,null,null,null,null,null,null,null,null,null,null,null,null,null,null,null,null,null,"Margin of Error"]
[null,null,"Current residence in --","Population 1 year and over",null,"Same residence 1 year ago",null,"Different residence, same state 1 year ago",null,null,1,2,3,4,5,6,7,8,9,10,11,12,13,14,15,16,17,18,19,20,21,22,23,24,25,26,27,28,29,30,31,32,33,34,35,36,37,38,39,40,41,42,43,44,45,46,47,48,49,50,51,52,53,1,2,3,4,5,6,7,8,9,10,11,12,13,14,15,16,17,18,19,20,21,22,23,24,25,26,27,28,29,30,31,32,33,34,35,36,37,38,39,40,41,42,43,44,45,46,47,48,49,50,51,52,53]
[null,null,null,null,null,null,null,null,null,null,"State of Residence Last year (Estimate)",null,null,null,"Leavers",null,null,null,null,null,null,null,null,null,null,null,null,null,null,null,null,null,null,null,null,null,null,null,null,null,null,null,null,null,null,null,null,null,null,null,null,null,null,null,null,null,null,null,null,null,null,null,null,"State of Residence Last year (Margin of Error)"]
[null,null,null,"Estimate","MOE","Estimate","MOE","Estimate","MOE",null,"TOTAL","Alabama","Alaska","Arizona","Arkansas","California","Colorado","Connecticut","Delaware","District of Columbia ","Florida","Georgia","Hawaii","Idaho","Illinois","Indiana","Iowa","Kansas","Kentucky","Louisiana","Maine","Maryland","Massachusetts","Michigan","Minnesota","Mississippi","Missouri","Montana","Nebraska","Nevada","New Hampshire","New Jersey","New Mexico","New York","North Carolina","North Dakota","Ohio","Oklahoma","Oregon","Pennsylvania","Rhode Island","South Carolina","South Dakota","Tennessee","Texas","Utah","Vermont","Virginia","Washington","West Virginia","Wisconsin","Wyoming","Puerto Rico","TOTAL","Alabama","Alaska","Arizona","Arkansas","California","Colorado","Connecticut","Delaware","District of Columbia ","Florida","Georgia","Hawaii","Idaho","Illinois","Indiana","Iowa","Kansas","Kentucky","Louisiana","Maine","Maryland","Massachusetts","Michigan","Minnesota","Mississippi","Missouri","Montana","Nebraska","Nevada","New Hampshire","New Jersey","New Mexico","New York","North Carolina","North Dakota","Ohio","Oklahoma","Oregon","Pennsylvania","Rhode Island","South Carolina","South Dakota","Tennessee","Texas","Utah","Vermont","Virginia","Washington","West Virginia","Wisconsin","Wyoming","Puerto Rico"]
[null,null,null,null,null,null,null,null,null,null,null,{"$f":"L12/$K$12","v":1.5285478923825346E-2},1.2715716367824672E-2,3.0313924346281943E-2,1.1052154330012698E-2,8.0479393240648622E-2,2.2987467756320792E-2,1.306563112887511E-2,3.8112801642266611E-3,7.1173664198610756E-3,6.2569911394999234E-2,3.5620034645139208E-2,8.8645072799444034E-3,8.2764501211892924E-3,3.8498924352006518E-2,2.0497992390892426E-2,1.0664314247212417E-2,1.3478516235472455E-2,1.4204965040009067E-2,1.2392707118053368E-2,4.8271063294356596E-3,2.3619747271380435E-2,2.0875957578595578E-2,2.6691555218696011E-2,1.4776993383534056E-2,9.8172199851847951E-3,1.9807608420623589E-2,4.4657424146494215E-3,7.5577294954243457E-3,1.6593115394875589E-2,6.1935628278035832E-3,3.0965524308270754E-2,8.7916620393003655E-3,{"$f":"AR12/$K$12","v":5.4068628517323143E-2},3.2221782701931587E-2,3.8015483835512299E-3,2.9488583476352345E-2,1.1593556187294416E-2,1.5713247930279232E-2,3.0787776196522433E-2,4.445849510033466E-3,1.737781176904309E-2,4.2051310527382365E-3,2.2074397745890612E-2,5.7938299365602394E-2,1.0477549926897154E-2,2.6006752710873377E-3,3.2805689542457467E-2,2.7283905810102045E-2,6.5769663635312399E-3,1.5079966614267706E-2,4.5783734645253697E-3]
[]
[null,null,"United States",307900319,29996,261087925,263315,37998701,233440,null,{"$f":"HLOOKUP(K$7,$K$68:$DL$122,ROWS($B$12:$B12)+2,FALSE)","v":6987416},{"$f":"HLOOKUP(L$7,$K$68:$DL$122,ROWS($B$12:$B12)+2,FALSE)","v":106806},{"$f":"HLOOKUP(M$7,$K$68:$DL$122,ROWS($B$12:$B12)+2,FALSE)","v":88850},{"$f":"HLOOKUP(N$7,$K$68:$DL$122,ROWS($B$12:$B12)+2,FALSE)","v":211816},{"$f":"HLOOKUP(O$7,$K$68:$DL$122,ROWS($B$12:$B12)+2,FALSE)","v":77226},{"$f":"HLOOKUP(P$7,$K$68:$DL$122,ROWS($B$12:$B12)+2,FALSE)","v":562343},{"$f":"HLOOKUP(Q$7,$K$68:$DL$122,ROWS($B$12:$B12)+2,FALSE)","v":160623},{"$f":"HLOOKUP(R$7,$K$68:$DL$122,ROWS($B$12:$B12)+2,FALSE)","v":91295},{"$f":"HLOOKUP(S$7,$K$68:$DL$122,ROWS($B$12:$B12)+2,FALSE)","v":26631},{"$f":"HLOOKUP(T$7,$K$68:$DL$122,ROWS($B$12:$B12)+2,FALSE)","v":49732},{"$f":"HLOOKUP(U$7,$K$68:$DL$122,ROWS($B$12:$B12)+2,FALSE)","v":437202},{"$f":"HLOOKUP(V$7,$K$68:$DL$122,ROWS($B$12:$B12)+2,FALSE)","v":248892},{"$f":"HLOOKUP(W$7,$K$68:$DL$122,ROWS($B$12:$B12)+2,FALSE)","v":61940},{"$f":"HLOOKUP(X$7,$K$68:$DL$122,ROWS($B$12:$B12)+2,FALSE)","v":57831},{"$f":"HLOOKUP(Y$7,$K$68:$DL$122,ROWS($B$12:$B12)+2,FALSE)","v":269008},{"$f":"HLOOKUP(Z$7,$K$68:$DL$122,ROWS($B$12:$B12)+2,FALSE)","v":143228},{"$f":"HLOOKUP(AA$7,$K$68:$DL$122,ROWS($B$12:$B12)+2,FALSE)","v":74516},{"$f":"HLOOKUP(AB$7,$K$68:$DL$122,ROWS($B$12:$B12)+2,FALSE)","v":94180},{"$f":"HLOOKUP(AC$7,$K$68:$DL$122,ROWS($B$12:$B12)+2,FALSE)","v":99256},{"$f":"HLOOKUP(AD$7,$K$68:$DL$122,ROWS($B$12:$B12)+2,FALSE)","v":86593},{"$f":"HLOOKUP(AE$7,$K$68:$DL$122,ROWS($B$12:$B12)+2,FALSE)","v":33729},{"$f":"HLOOKUP(AF$7,$K$68:$DL$122,ROWS($B$12:$B12)+2,FALSE)","v":165041},{"$f":"HLOOKUP(AG$7,$K$68:$DL$122,ROWS($B$12:$B12)+2,FALSE)","v":145869},{"$f":"HLOOKUP(AH$7,$K$68:$DL$122,ROWS($B$12:$B12)+2,FALSE)","v":186505},{"$f":"HLOOKUP(AI$7,$K$68:$DL$122,ROWS($B$12:$B12)+2,FALSE)","v":103253},{"$f":"HLOOKUP(AJ$7,$K$68:$DL$122,ROWS($B$12:$B12)+2,FALSE)","v":68597},{"$f":"HLOOKUP(AK$7,$K$68:$DL$122,ROWS($B$12:$B12)+2,FALSE)","v":138404},{"$f":"HLOOKUP(AL$7,$K$68:$DL$122,ROWS($B$12:$B12)+2,FALSE)","v":31204},{"$f":"HLOOKUP(AM$7,$K$68:$DL$122,ROWS($B$12:$B12)+2,FALSE)","v":52809},{"$f":"HLOOKUP(AN$7,$K$68:$DL$122,ROWS($B$12:$B12)+2,FALSE)","v":115943},{"$f":"HLOOKUP(AO$7,$K$68:$DL$122,ROWS($B$12:$B12)+2,FALSE)","v":43277},{"$f":"HLOOKUP(AP$7,$K$68:$DL$122,ROWS($B$12:$B12)+2,FALSE)","v":216369},{"$f":"HLOOKUP(AQ$7,$K$68:$DL$122,ROWS($B$12:$B12)+2,FALSE)","v":61431},{"$f":"HLOOKUP(AR$7,$K$68:$DL$122,ROWS($B$12:$B12)+2,FALSE)","v":377800},{"$f":"HLOOKUP(AS$7,$K$68:$DL$122,ROWS($B$12:$B12)+2,FALSE)","v":225147},{"$f":"HLOOKUP(AT$7,$K$68:$DL$122,ROWS($B$12:$B12)+2,FALSE)","v":26563},{"$f":"HLOOKUP(AU$7,$K$68:$DL$122,ROWS($B$12:$B12)+2,FALSE)","v":206049},{"$f":"HLOOKUP(AV$7,$K$68:$DL$122,ROWS($B$12:$B12)+2,FALSE)","v":81009},{"$f":"HLOOKUP(AW$7,$K$68:$DL$122,ROWS($B$12:$B12)+2,FALSE)","v":109795},{"$f":"HLOOKUP(AX$7,$K$68:$DL$122,ROWS($B$12:$B12)+2,FALSE)","v":215127},{"$f":"HLOOKUP(AY$7,$K$68:$DL$122,ROWS($B$12:$B12)+2,FALSE)","v":31065},{"$f":"HLOOKUP(AZ$7,$K$68:$DL$122,ROWS($B$12:$B12)+2,FALSE)","v":121426},{"$f":"HLOOKUP(BA$7,$K$68:$DL$122,ROWS($B$12:$B12)+2,FALSE)","v":29383},{"$f":"HLOOKUP(BB$7,$K$68:$DL$122,ROWS($B$12:$B12)+2,FALSE)","v":154243},{"$f":"HLOOKUP(BC$7,$K$68:$DL$122,ROWS($B$12:$B12)+2,FALSE)","v":404839},{"$f":"HLOOKUP(BD$7,$K$68:$DL$122,ROWS($B$12:$B12)+2,FALSE)","v":73211},{"$f":"HLOOKUP(BE$7,$K$68:$DL$122,ROWS($B$12:$B12)+2,FALSE)","v":18172},{"$f":"HLOOKUP(BF$7,$K$68:$DL$122,ROWS($B$12:$B12)+2,FALSE)","v":229227},{"$f":"HLOOKUP(BG$7,$K$68:$DL$122,ROWS($B$12:$B12)+2,FALSE)","v":190644},{"$f":"HLOOKUP(BH$7,$K$68:$DL$122,ROWS($B$12:$B12)+2,FALSE)","v":45956},{"$f":"HLOOKUP(BI$7,$K$68:$DL$122,ROWS($B$12:$B12)+2,FALSE)","v":105370},{"$f":"HLOOKUP(BJ$7,$K$68:$DL$122,ROWS($B$12:$B12)+2,FALSE)","v":31991},{"$f":"HLOOKUP(BK$7,$K$68:$DL$122,ROWS($B$12:$B12)+2,FALSE)","v":76218},{"$f":"HLOOKUP(BL$7+0.5,$K$68:$DL$122,ROWS($B$12:$B12)+2,FALSE)","v":77858},{"$f":"HLOOKUP(BM$7+0.5,$K$68:$DL$122,ROWS($B$12:$B12)+2,FALSE)","v":10575},{"$f":"HLOOKUP(BN$7+0.5,$K$68:$DL$122,ROWS($B$12:$B12)+2,FALSE)","v":10161},{"$f":"HLOOKUP(BO$7+0.5,$K$68:$DL$122,ROWS($B$12:$B12)+2,FALSE)","v":17644},{"$f":"HLOOKUP(BP$7+0.5,$K$68:$DL$122,ROWS($B$12:$B12)+2,FALSE)","v":6899},{"$f":"HLOOKUP(BQ$7+0.5,$K$68:$DL$122,ROWS($B$12:$B12)+2,FALSE)","v":20646},{"$f":"HLOOKUP(BR$7+0.5,$K$68:$DL$122,ROWS($B$12:$B12)+2,FALSE)","v":10427},{"$f":"HLOOKUP(BS$7+0.5,$K$68:$DL$122,ROWS($B$12:$B12)+2,FALSE)","v":7653},{"$f":"HLOOKUP(BT$7+0.5,$K$68:$DL$122,ROWS($B$12:$B12)+2,FALSE)","v":3629},{"$f":"HLOOKUP(BU$7+0.5,$K$68:$DL$122,ROWS($B$12:$B12)+2,FALSE)","v":4949},{"$f":"HLOOKUP(BV$7+0.5,$K$68:$DL$122,ROWS($B$12:$B12)+2,FALSE)","v":19015},{"$f":"HLOOKUP(BW$7+0.5,$K$68:$DL$122,ROWS($B$12:$B12)+2,FALSE)","v":13318},{"$f":"HLOOKUP(BX$7+0.5,$K$68:$DL$122,ROWS($B$12:$B12)+2,FALSE)","v":7295},{"$f":"HLOOKUP(BY$7+0.5,$K$68:$DL$122,ROWS($B$12:$B12)+2,FALSE)","v":7401},{"$f":"HLOOKUP(BZ$7+0.5,$K$68:$DL$122,ROWS($B$12:$B12)+2,FALSE)","v":13750},{"$f":"HLOOKUP(CA$7+0.5,$K$68:$DL$122,ROWS($B$12:$B12)+2,FALSE)","v":10568},{"$f":"HLOOKUP(CB$7+0.5,$K$68:$DL$122,ROWS($B$12:$B12)+2,FALSE)","v":6398},{"$f":"HLOOKUP(CC$7+0.5,$K$68:$DL$122,ROWS($B$12:$B12)+2,FALSE)","v":10699},{"$f":"HLOOKUP(CD$7+0.5,$K$68:$DL$122,ROWS($B$12:$B12)+2,FALSE)","v":7329},{"$f":"HLOOKUP(CE$7+0.5,$K$68:$DL$122,ROWS($B$12:$B12)+2,FALSE)","v":8952},{"$f":"HLOOKUP(CF$7+0.5,$K$68:$DL$122,ROWS($B$12:$B12)+2,FALSE)","v":4154},{"$f":"HLOOKUP(CG$7+0.5,$K$68:$DL$122,ROWS($B$12:$B12)+2,FALSE)","v":11278},{"$f":"HLOOKUP(CH$7+0.5,$K$68:$DL$122,ROWS($B$12:$B12)+2,FALSE)","v":10414},{"$f":"HLOOKUP(CI$7+0.5,$K$68:$DL$122,ROWS($B$12:$B12)+2,FALSE)","v":13304},{"$f":"HLOOKUP(CJ$7+0.5,$K$68:$DL$122,ROWS($B$12:$B12)+2,FALSE)","v":6978},{"$f":"HLOOKUP(CK$7+0.5,$K$68:$DL$122,ROWS($B$12:$B12)+2,FALSE)","v":7559},{"$f":"HLOOKUP(CL$7+0.5,$K$68:$DL$122,ROWS($B$12:$B12)+2,FALSE)","v":11145},{"$f":"HLOOKUP(CM$7+0.5,$K$68:$DL$122,ROWS($B$12:$B12)+2,FALSE)","v":4179},{"$f":"HLOOKUP(CN$7+0.5,$K$68:$DL$122,ROWS($B$12:$B12)+2,FALSE)","v":6362},{"$f":"HLOOKUP(CO$7+0.5,$K$68:$DL$122,ROWS($B$12:$B12)+2,FALSE)","v":8686},{"$f":"HLOOKUP(CP$7+0.5,$K$68:$DL$122,ROWS($B$12:$B12)+2,FALSE)","v":4875},{"$f":"HLOOKUP(CQ$7+0.5,$K$68:$DL$122,ROWS($B$12:$B12)+2,FALSE)","v":12474},{"$f":"HLOOKUP(CR$7+0.5,$K$68:$DL$122,ROWS($B$12:$B12)+2,FALSE)","v":5579},{"$f":"HLOOKUP(CS$7+0.5,$K$68:$DL$122,ROWS($B$12:$B12)+2,FALSE)","v":15333},{"$f":"HLOOKUP(CT$7+0.5,$K$68:$DL$122,ROWS($B$12:$B12)+2,FALSE)","v":14191},{"$f":"HLOOKUP(CU$7+0.5,$K$68:$DL$122,ROWS($B$12:$B12)+2,FALSE)","v":3090},{"$f":"HLOOKUP(CV$7+0.5,$K$68:$DL$122,ROWS($B$12:$B12)+2,FALSE)","v":11406},{"$f":"HLOOKUP(CW$7+0.5,$K$68:$DL$122,ROWS($B$12:$B12)+2,FALSE)","v":8616},{"$f":"HLOOKUP(CX$7+0.5,$K$68:$DL$122,ROWS($B$12:$B12)+2,FALSE)","v":8590},{"$f":"HLOOKUP(CY$7+0.5,$K$68:$DL$122,ROWS($B$12:$B12)+2,FALSE)","v":11482},{"$f":"HLOOKUP(CZ$7+0.5,$K$68:$DL$122,ROWS($B$12:$B12)+2,FALSE)","v":4192},{"$f":"HLOOKUP(DA$7+0.5,$K$68:$DL$122,ROWS($B$12:$B12)+2,FALSE)","v":9952},{"$f":"HLOOKUP(DB$7+0.5,$K$68:$DL$122,ROWS($B$12:$B12)+2,FALSE)","v":4358},{"$f":"HLOOKUP(DC$7+0.5,$K$68:$DL$122,ROWS($B$12:$B12)+2,FALSE)","v":9679},{"$f":"HLOOKUP(DD$7+0.5,$K$68:$DL$122,ROWS($B$12:$B12)+2,FALSE)","v":17998},{"$f":"HLOOKUP(DE$7+0.5,$K$68:$DL$122,ROWS($B$12:$B12)+2,FALSE)","v":7130},{"$f":"HLOOKUP(DF$7+0.5,$K$68:$DL$122,ROWS($B$12:$B12)+2,FALSE)","v":2845},{"$f":"HLOOKUP(DG$7+0.5,$K$68:$DL$122,ROWS($B$12:$B12)+2,FALSE)","v":11582},{"$f":"HLOOKUP(DH$7+0.5,$K$68:$DL$122,ROWS($B$12:$B12)+2,FALSE)","v":11567},{"$f":"HLOOKUP(DI$7+0.5,$K$68:$DL$122,ROWS($B$12:$B12)+2,FALSE)","v":5684},{"$f":"HLOOKUP(DJ$7+0.5,$K$68:$DL$122,ROWS($B$12:$B12)+2,FALSE)","v":8011},{"$f":"HLOOKUP(DK$7+0.5,$K$68:$DL$122,ROWS($B$12:$B12)+2,FALSE)","v":4631},{"$f":"HLOOKUP(DL$7+0.5,$K$68:$DL$122,ROWS($B$12:$B12)+2,FALSE)","v":8799}]
[null,null,"Alabama",4745278,4078,4024442,22751,588293,20366,{"$f":"K13/$K$12","v":1.6848288408762267E-2},{"$f":"HLOOKUP(K$7,$K$68:$DL$122,ROWS($B$12:$B13)+2,FALSE)","v":117726},{"$f":"HLOOKUP(L$7,$K$68:$DL$122,ROWS($B$12:$B13)+2,FALSE)","v":"N/A"},{"$f":"HLOOKUP(M$7,$K$68:$DL$122,ROWS($B$12:$B13)+2,FALSE)","v":1771},{"$f":"HLOOKUP(N$7,$K$68:$DL$122,ROWS($B$12:$B13)+2,FALSE)","v":1677},{"$f":"HLOOKUP(O$7,$K$68:$DL$122,ROWS($B$12:$B13)+2,FALSE)","v":1642},{"$f":"HLOOKUP(P$7,$K$68:$DL$122,ROWS($B$12:$B13)+2,FALSE)","v":3389},{"$f":"HLOOKUP(Q$7,$K$68:$DL$122,ROWS($B$12:$B13)+2,FALSE)","v":348},{"$f":"HLOOKUP(R$7,$K$68:$DL$122,ROWS($B$12:$B13)+2,FALSE)","v":2921},{"$f":"HLOOKUP(S$7,$K$68:$DL$122,ROWS($B$12:$B13)+2,FALSE)","v":232},{"$f":"HLOOKUP(T$7,$K$68:$DL$122,ROWS($B$12:$B13)+2,FALSE)","v":399},{"$f":"HLOOKUP(U$7,$K$68:$DL$122,ROWS($B$12:$B13)+2,FALSE)","v":20063},{"$f":"HLOOKUP(V$7,$K$68:$DL$122,ROWS($B$12:$B13)+2,FALSE)","v":19346},{"$f":"HLOOKUP(W$7,$K$68:$DL$122,ROWS($B$12:$B13)+2,FALSE)","v":1259},{"$f":"HLOOKUP(X$7,$K$68:$DL$122,ROWS($B$12:$B13)+2,FALSE)","v":137},{"$f":"HLOOKUP(Y$7,$K$68:$DL$122,ROWS($B$12:$B13)+2,FALSE)","v":6991},{"$f":"HLOOKUP(Z$7,$K$68:$DL$122,ROWS($B$12:$B13)+2,FALSE)","v":1434},{"$f":"HLOOKUP(AA$7,$K$68:$DL$122,ROWS($B$12:$B13)+2,FALSE)","v":30},{"$f":"HLOOKUP(AB$7,$K$68:$DL$122,ROWS($B$12:$B13)+2,FALSE)","v":842},{"$f":"HLOOKUP(AC$7,$K$68:$DL$122,ROWS($B$12:$B13)+2,FALSE)","v":2686},{"$f":"HLOOKUP(AD$7,$K$68:$DL$122,ROWS($B$12:$B13)+2,FALSE)","v":2413},{"$f":"HLOOKUP(AE$7,$K$68:$DL$122,ROWS($B$12:$B13)+2,FALSE)","v":626},{"$f":"HLOOKUP(AF$7,$K$68:$DL$122,ROWS($B$12:$B13)+2,FALSE)","v":1606},{"$f":"HLOOKUP(AG$7,$K$68:$DL$122,ROWS($B$12:$B13)+2,FALSE)","v":112},{"$f":"HLOOKUP(AH$7,$K$68:$DL$122,ROWS($B$12:$B13)+2,FALSE)","v":2797},{"$f":"HLOOKUP(AI$7,$K$68:$DL$122,ROWS($B$12:$B13)+2,FALSE)","v":327},{"$f":"HLOOKUP(AJ$7,$K$68:$DL$122,ROWS($B$12:$B13)+2,FALSE)","v":3945},{"$f":"HLOOKUP(AK$7,$K$68:$DL$122,ROWS($B$12:$B13)+2,FALSE)","v":1086},{"$f":"HLOOKUP(AL$7,$K$68:$DL$122,ROWS($B$12:$B13)+2,FALSE)","v":317},{"$f":"HLOOKUP(AM$7,$K$68:$DL$122,ROWS($B$12:$B13)+2,FALSE)","v":770},{"$f":"HLOOKUP(AN$7,$K$68:$DL$122,ROWS($B$12:$B13)+2,FALSE)","v":257},{"$f":"HLOOKUP(AO$7,$K$68:$DL$122,ROWS($B$12:$B13)+2,FALSE)","v":64},{"$f":"HLOOKUP(AP$7,$K$68:$DL$122,ROWS($B$12:$B13)+2,FALSE)","v":1996},{"$f":"HLOOKUP(AQ$7,$K$68:$DL$122,ROWS($B$12:$B13)+2,FALSE)","v":119},{"$f":"HLOOKUP(AR$7,$K$68:$DL$122,ROWS($B$12:$B13)+2,FALSE)","v":1108},{"$f":"HLOOKUP(AS$7,$K$68:$DL$122,ROWS($B$12:$B13)+2,FALSE)","v":2697},{"$f":"HLOOKUP(AT$7,$K$68:$DL$122,ROWS($B$12:$B13)+2,FALSE)","v":284},{"$f":"HLOOKUP(AU$7,$K$68:$DL$122,ROWS($B$12:$B13)+2,FALSE)","v":2596},{"$f":"HLOOKUP(AV$7,$K$68:$DL$122,ROWS($B$12:$B13)+2,FALSE)","v":973},{"$f":"HLOOKUP(AW$7,$K$68:$DL$122,ROWS($B$12:$B13)+2,FALSE)","v":169},{"$f":"HLOOKUP(AX$7,$K$68:$DL$122,ROWS($B$12:$B13)+2,FALSE)","v":1075},{"$f":"HLOOKUP(AY$7,$K$68:$DL$122,ROWS($B$12:$B13)+2,FALSE)","v":0},{"$f":"HLOOKUP(AZ$7,$K$68:$DL$122,ROWS($B$12:$B13)+2,FALSE)","v":2036},{"$f":"HLOOKUP(BA$7,$K$68:$DL$122,ROWS($B$12:$B13)+2,FALSE)","v":90},{"$f":"HLOOKUP(BB$7,$K$68:$DL$122,ROWS($B$12:$B13)+2,FALSE)","v":8710},{"$f":"HLOOKUP(BC$7,$K$68:$DL$122,ROWS($B$12:$B13)+2,FALSE)","v":7973},{"$f":"HLOOKUP(BD$7,$K$68:$DL$122,ROWS($B$12:$B13)+2,FALSE)","v":300},{"$f":"HLOOKUP(BE$7,$K$68:$DL$122,ROWS($B$12:$B13)+2,FALSE)","v":66},{"$f":"HLOOKUP(BF$7,$K$68:$DL$122,ROWS($B$12:$B13)+2,FALSE)","v":4935},{"$f":"HLOOKUP(BG$7,$K$68:$DL$122,ROWS($B$12:$B13)+2,FALSE)","v":2621},{"$f":"HLOOKUP(BH$7,$K$68:$DL$122,ROWS($B$12:$B13)+2,FALSE)","v":65},{"$f":"HLOOKUP(BI$7,$K$68:$DL$122,ROWS($B$12:$B13)+2,FALSE)","v":417},{"$f":"HLOOKUP(BJ$7,$K$68:$DL$122,ROWS($B$12:$B13)+2,FALSE)","v":9},{"$f":"HLOOKUP(BK$7,$K$68:$DL$122,ROWS($B$12:$B13)+2,FALSE)","v":569},{"$f":"HLOOKUP(BL$7+0.5,$K$68:$DL$122,ROWS($B$12:$B13)+2,FALSE)","v":9414},{"$f":"HLOOKUP(BM$7+0.5,$K$68:$DL$122,ROWS($B$12:$B13)+2,FALSE)","v":"N/A"},{"$f":"HLOOKUP(BN$7+0.5,$K$68:$DL$122,ROWS($B$12:$B13)+2,FALSE)","v":1098},{"$f":"HLOOKUP(BO$7+0.5,$K$68:$DL$122,ROWS($B$12:$B13)+2,FALSE)","v":1060},{"$f":"HLOOKUP(BP$7+0.5,$K$68:$DL$122,ROWS($B$12:$B13)+2,FALSE)","v":1063},{"$f":"HLOOKUP(BQ$7+0.5,$K$68:$DL$122,ROWS($B$12:$B13)+2,FALSE)","v":1286},{"$f":"HLOOKUP(BR$7+0.5,$K$68:$DL$122,ROWS($B$12:$B13)+2,FALSE)","v":295},{"$f":"HLOOKUP(BS$7+0.5,$K$68:$DL$122,ROWS($B$12:$B13)+2,FALSE)","v":3231},{"$f":"HLOOKUP(BT$7+0.5,$K$68:$DL$122,ROWS($B$12:$B13)+2,FALSE)","v":301},{"$f":"HLOOKUP(BU$7+0.5,$K$68:$DL$122,ROWS($B$12:$B13)+2,FALSE)","v":359},{"$f":"HLOOKUP(BV$7+0.5,$K$68:$DL$122,ROWS($B$12:$B13)+2,FALSE)","v":4141},{"$f":"HLOOKUP(BW$7+0.5,$K$68:$DL$122,ROWS($B$12:$B13)+2,FALSE)","v":3711},{"$f":"HLOOKUP(BX$7+0.5,$K$68:$DL$122,ROWS($B$12:$B13)+2,FALSE)","v":1292},{"$f":"HLOOKUP(BY$7+0.5,$K$68:$DL$122,ROWS($B$12:$B13)+2,FALSE)","v":173},{"$f":"HLOOKUP(BZ$7+0.5,$K$68:$DL$122,ROWS($B$12:$B13)+2,FALSE)","v":3376},{"$f":"HLOOKUP(CA$7+0.5,$K$68:$DL$122,ROWS($B$12:$B13)+2,FALSE)","v":634},{"$f":"HLOOKUP(CB$7+0.5,$K$68:$DL$122,ROWS($B$12:$B13)+2,FALSE)","v":52},{"$f":"HLOOKUP(CC$7+0.5,$K$68:$DL$122,ROWS($B$12:$B13)+2,FALSE)","v":632},{"$f":"HLOOKUP(CD$7+0.5,$K$68:$DL$122,ROWS($B$12:$B13)+2,FALSE)","v":856},{"$f":"HLOOKUP(CE$7+0.5,$K$68:$DL$122,ROWS($B$12:$B13)+2,FALSE)","v":972},{"$f":"HLOOKUP(CF$7+0.5,$K$68:$DL$122,ROWS($B$12:$B13)+2,FALSE)","v":378},{"$f":"HLOOKUP(CG$7+0.5,$K$68:$DL$122,ROWS($B$12:$B13)+2,FALSE)","v":987},{"$f":"HLOOKUP(CH$7+0.5,$K$68:$DL$122,ROWS($B$12:$B13)+2,FALSE)","v":146},{"$f":"HLOOKUP(CI$7+0.5,$K$68:$DL$122,ROWS($B$12:$B13)+2,FALSE)","v":1250},{"$f":"HLOOKUP(CJ$7+0.5,$K$68:$DL$122,ROWS($B$12:$B13)+2,FALSE)","v":342},{"$f":"HLOOKUP(CK$7+0.5,$K$68:$DL$122,ROWS($B$12:$B13)+2,FALSE)","v":1492},{"$f":"HLOOKUP(CL$7+0.5,$K$68:$DL$122,ROWS($B$12:$B13)+2,FALSE)","v":536},{"$f":"HLOOKUP(CM$7+0.5,$K$68:$DL$122,ROWS($B$12:$B13)+2,FALSE)","v":463},{"$f":"HLOOKUP(CN$7+0.5,$K$68:$DL$122,ROWS($B$12:$B13)+2,FALSE)","v":638},{"$f":"HLOOKUP(CO$7+0.5,$K$68:$DL$122,ROWS($B$12:$B13)+2,FALSE)","v":333},{"$f":"HLOOKUP(CP$7+0.5,$K$68:$DL$122,ROWS($B$12:$B13)+2,FALSE)","v":109},{"$f":"HLOOKUP(CQ$7+0.5,$K$68:$DL$122,ROWS($B$12:$B13)+2,FALSE)","v":2284},{"$f":"HLOOKUP(CR$7+0.5,$K$68:$DL$122,ROWS($B$12:$B13)+2,FALSE)","v":184},{"$f":"HLOOKUP(CS$7+0.5,$K$68:$DL$122,ROWS($B$12:$B13)+2,FALSE)","v":442},{"$f":"HLOOKUP(CT$7+0.5,$K$68:$DL$122,ROWS($B$12:$B13)+2,FALSE)","v":1820},{"$f":"HLOOKUP(CU$7+0.5,$K$68:$DL$122,ROWS($B$12:$B13)+2,FALSE)","v":333},{"$f":"HLOOKUP(CV$7+0.5,$K$68:$DL$122,ROWS($B$12:$B13)+2,FALSE)","v":958},{"$f":"HLOOKUP(CW$7+0.5,$K$68:$DL$122,ROWS($B$12:$B13)+2,FALSE)","v":840},{"$f":"HLOOKUP(CX$7+0.5,$K$68:$DL$122,ROWS($B$12:$B13)+2,FALSE)","v":182},{"$f":"HLOOKUP(CY$7+0.5,$K$68:$DL$122,ROWS($B$12:$B13)+2,FALSE)","v":474},{"$f":"HLOOKUP(CZ$7+0.5,$K$68:$DL$122,ROWS($B$12:$B13)+2,FALSE)","v":190},{"$f":"HLOOKUP(DA$7+0.5,$K$68:$DL$122,ROWS($B$12:$B13)+2,FALSE)","v":973},{"$f":"HLOOKUP(DB$7+0.5,$K$68:$DL$122,ROWS($B$12:$B13)+2,FALSE)","v":98},{"$f":"HLOOKUP(DC$7+0.5,$K$68:$DL$122,ROWS($B$12:$B13)+2,FALSE)","v":2300},{"$f":"HLOOKUP(DD$7+0.5,$K$68:$DL$122,ROWS($B$12:$B13)+2,FALSE)","v":2240},{"$f":"HLOOKUP(DE$7+0.5,$K$68:$DL$122,ROWS($B$12:$B13)+2,FALSE)","v":390},{"$f":"HLOOKUP(DF$7+0.5,$K$68:$DL$122,ROWS($B$12:$B13)+2,FALSE)","v":108},{"$f":"HLOOKUP(DG$7+0.5,$K$68:$DL$122,ROWS($B$12:$B13)+2,FALSE)","v":2151},{"$f":"HLOOKUP(DH$7+0.5,$K$68:$DL$122,ROWS($B$12:$B13)+2,FALSE)","v":1272},{"$f":"HLOOKUP(DI$7+0.5,$K$68:$DL$122,ROWS($B$12:$B13)+2,FALSE)","v":110},{"$f":"HLOOKUP(DJ$7+0.5,$K$68:$DL$122,ROWS($B$12:$B13)+2,FALSE)","v":457},{"$f":"HLOOKUP(DK$7+0.5,$K$68:$DL$122,ROWS($B$12:$B13)+2,FALSE)","v":15},{"$f":"HLOOKUP(DL$7+0.5,$K$68:$DL$122,ROWS($B$12:$B13)+2,FALSE)","v":601}]
[null,null,"Alaska",711962,1401,571857,8892,100280,8388,{"$f":"K14/$K$12","v":5.0210263708358E-3},{"$f":"HLOOKUP(K$7,$K$68:$DL$122,ROWS($B$12:$B14)+2,FALSE)","v":35084},{"$f":"HLOOKUP(L$7,$K$68:$DL$122,ROWS($B$12:$B14)+2,FALSE)","v":93},{"$f":"HLOOKUP(M$7,$K$68:$DL$122,ROWS($B$12:$B14)+2,FALSE)","v":"N/A"},{"$f":"HLOOKUP(N$7,$K$68:$DL$122,ROWS($B$12:$B14)+2,FALSE)","v":2467},{"$f":"HLOOKUP(O$7,$K$68:$DL$122,ROWS($B$12:$B14)+2,FALSE)","v":190},{"$f":"HLOOKUP(P$7,$K$68:$DL$122,ROWS($B$12:$B14)+2,FALSE)","v":3098},{"$f":"HLOOKUP(Q$7,$K$68:$DL$122,ROWS($B$12:$B14)+2,FALSE)","v":1583},{"$f":"HLOOKUP(R$7,$K$68:$DL$122,ROWS($B$12:$B14)+2,FALSE)","v":138},{"$f":"HLOOKUP(S$7,$K$68:$DL$122,ROWS($B$12:$B14)+2,FALSE)","v":11},{"$f":"HLOOKUP(T$7,$K$68:$DL$122,ROWS($B$12:$B14)+2,FALSE)","v":140},{"$f":"HLOOKUP(U$7,$K$68:$DL$122,ROWS($B$12:$B14)+2,FALSE)","v":1188},{"$f":"HLOOKUP(V$7,$K$68:$DL$122,ROWS($B$12:$B14)+2,FALSE)","v":556},{"$f":"HLOOKUP(W$7,$K$68:$DL$122,ROWS($B$12:$B14)+2,FALSE)","v":1366},{"$f":"HLOOKUP(X$7,$K$68:$DL$122,ROWS($B$12:$B14)+2,FALSE)","v":475},{"$f":"HLOOKUP(Y$7,$K$68:$DL$122,ROWS($B$12:$B14)+2,FALSE)","v":985},{"$f":"HLOOKUP(Z$7,$K$68:$DL$122,ROWS($B$12:$B14)+2,FALSE)","v":181},{"$f":"HLOOKUP(AA$7,$K$68:$DL$122,ROWS($B$12:$B14)+2,FALSE)","v":319},{"$f":"HLOOKUP(AB$7,$K$68:$DL$122,ROWS($B$12:$B14)+2,FALSE)","v":750},{"$f":"HLOOKUP(AC$7,$K$68:$DL$122,ROWS($B$12:$B14)+2,FALSE)","v":237},{"$f":"HLOOKUP(AD$7,$K$68:$DL$122,ROWS($B$12:$B14)+2,FALSE)","v":1077},{"$f":"HLOOKUP(AE$7,$K$68:$DL$122,ROWS($B$12:$B14)+2,FALSE)","v":0},{"$f":"HLOOKUP(AF$7,$K$68:$DL$122,ROWS($B$12:$B14)+2,FALSE)","v":216},{"$f":"HLOOKUP(AG$7,$K$68:$DL$122,ROWS($B$12:$B14)+2,FALSE)","v":141},{"$f":"HLOOKUP(AH$7,$K$68:$DL$122,ROWS($B$12:$B14)+2,FALSE)","v":771},{"$f":"HLOOKUP(AI$7,$K$68:$DL$122,ROWS($B$12:$B14)+2,FALSE)","v":593},{"$f":"HLOOKUP(AJ$7,$K$68:$DL$122,ROWS($B$12:$B14)+2,FALSE)","v":554},{"$f":"HLOOKUP(AK$7,$K$68:$DL$122,ROWS($B$12:$B14)+2,FALSE)","v":921},{"$f":"HLOOKUP(AL$7,$K$68:$DL$122,ROWS($B$12:$B14)+2,FALSE)","v":248},{"$f":"HLOOKUP(AM$7,$K$68:$DL$122,ROWS($B$12:$B14)+2,FALSE)","v":5},{"$f":"HLOOKUP(AN$7,$K$68:$DL$122,ROWS($B$12:$B14)+2,FALSE)","v":532},{"$f":"HLOOKUP(AO$7,$K$68:$DL$122,ROWS($B$12:$B14)+2,FALSE)","v":520},{"$f":"HLOOKUP(AP$7,$K$68:$DL$122,ROWS($B$12:$B14)+2,FALSE)","v":128},{"$f":"HLOOKUP(AQ$7,$K$68:$DL$122,ROWS($B$12:$B14)+2,FALSE)","v":226},{"$f":"HLOOKUP(AR$7,$K$68:$DL$122,ROWS($B$12:$B14)+2,FALSE)","v":940},{"$f":"HLOOKUP(AS$7,$K$68:$DL$122,ROWS($B$12:$B14)+2,FALSE)","v":470},{"$f":"HLOOKUP(AT$7,$K$68:$DL$122,ROWS($B$12:$B14)+2,FALSE)","v":0},{"$f":"HLOOKUP(AU$7,$K$68:$DL$122,ROWS($B$12:$B14)+2,FALSE)","v":319},{"$f":"HLOOKUP(AV$7,$K$68:$DL$122,ROWS($B$12:$B14)+2,FALSE)","v":616},{"$f":"HLOOKUP(AW$7,$K$68:$DL$122,ROWS($B$12:$B14)+2,FALSE)","v":2161},{"$f":"HLOOKUP(AX$7,$K$68:$DL$122,ROWS($B$12:$B14)+2,FALSE)","v":378},{"$f":"HLOOKUP(AY$7,$K$68:$DL$122,ROWS($B$12:$B14)+2,FALSE)","v":0},{"$f":"HLOOKUP(AZ$7,$K$68:$DL$122,ROWS($B$12:$B14)+2,FALSE)","v":186},{"$f":"HLOOKUP(BA$7,$K$68:$DL$122,ROWS($B$12:$B14)+2,FALSE)","v":301},{"$f":"HLOOKUP(BB$7,$K$68:$DL$122,ROWS($B$12:$B14)+2,FALSE)","v":388},{"$f":"HLOOKUP(BC$7,$K$68:$DL$122,ROWS($B$12:$B14)+2,FALSE)","v":2492},{"$f":"HLOOKUP(BD$7,$K$68:$DL$122,ROWS($B$12:$B14)+2,FALSE)","v":662},{"$f":"HLOOKUP(BE$7,$K$68:$DL$122,ROWS($B$12:$B14)+2,FALSE)","v":68},{"$f":"HLOOKUP(BF$7,$K$68:$DL$122,ROWS($B$12:$B14)+2,FALSE)","v":1488},{"$f":"HLOOKUP(BG$7,$K$68:$DL$122,ROWS($B$12:$B14)+2,FALSE)","v":4548},{"$f":"HLOOKUP(BH$7,$K$68:$DL$122,ROWS($B$12:$B14)+2,FALSE)","v":89},{"$f":"HLOOKUP(BI$7,$K$68:$DL$122,ROWS($B$12:$B14)+2,FALSE)","v":23},{"$f":"HLOOKUP(BJ$7,$K$68:$DL$122,ROWS($B$12:$B14)+2,FALSE)","v":246},{"$f":"HLOOKUP(BK$7,$K$68:$DL$122,ROWS($B$12:$B14)+2,FALSE)","v":1044},{"$f":"HLOOKUP(BL$7+0.5,$K$68:$DL$122,ROWS($B$12:$B14)+2,FALSE)","v":4168},{"$f":"HLOOKUP(BM$7+0.5,$K$68:$DL$122,ROWS($B$12:$B14)+2,FALSE)","v":113},{"$f":"HLOOKUP(BN$7+0.5,$K$68:$DL$122,ROWS($B$12:$B14)+2,FALSE)","v":"N/A"},{"$f":"HLOOKUP(BO$7+0.5,$K$68:$DL$122,ROWS($B$12:$B14)+2,FALSE)","v":1902},{"$f":"HLOOKUP(BP$7+0.5,$K$68:$DL$122,ROWS($B$12:$B14)+2,FALSE)","v":258},{"$f":"HLOOKUP(BQ$7+0.5,$K$68:$DL$122,ROWS($B$12:$B14)+2,FALSE)","v":1921},{"$f":"HLOOKUP(BR$7+0.5,$K$68:$DL$122,ROWS($B$12:$B14)+2,FALSE)","v":727},{"$f":"HLOOKUP(BS$7+0.5,$K$68:$DL$122,ROWS($B$12:$B14)+2,FALSE)","v":167},{"$f":"HLOOKUP(BT$7+0.5,$K$68:$DL$122,ROWS($B$12:$B14)+2,FALSE)","v":24},{"$f":"HLOOKUP(BU$7+0.5,$K$68:$DL$122,ROWS($B$12:$B14)+2,FALSE)","v":220},{"$f":"HLOOKUP(BV$7+0.5,$K$68:$DL$122,ROWS($B$12:$B14)+2,FALSE)","v":476},{"$f":"HLOOKUP(BW$7+0.5,$K$68:$DL$122,ROWS($B$12:$B14)+2,FALSE)","v":419},{"$f":"HLOOKUP(BX$7+0.5,$K$68:$DL$122,ROWS($B$12:$B14)+2,FALSE)","v":703},{"$f":"HLOOKUP(BY$7+0.5,$K$68:$DL$122,ROWS($B$12:$B14)+2,FALSE)","v":253},{"$f":"HLOOKUP(BZ$7+0.5,$K$68:$DL$122,ROWS($B$12:$B14)+2,FALSE)","v":686},{"$f":"HLOOKUP(CA$7+0.5,$K$68:$DL$122,ROWS($B$12:$B14)+2,FALSE)","v":156},{"$f":"HLOOKUP(CB$7+0.5,$K$68:$DL$122,ROWS($B$12:$B14)+2,FALSE)","v":374},{"$f":"HLOOKUP(CC$7+0.5,$K$68:$DL$122,ROWS($B$12:$B14)+2,FALSE)","v":741},{"$f":"HLOOKUP(CD$7+0.5,$K$68:$DL$122,ROWS($B$12:$B14)+2,FALSE)","v":354},{"$f":"HLOOKUP(CE$7+0.5,$K$68:$DL$122,ROWS($B$12:$B14)+2,FALSE)","v":1276},{"$f":"HLOOKUP(CF$7+0.5,$K$68:$DL$122,ROWS($B$12:$B14)+2,FALSE)","v":149},{"$f":"HLOOKUP(CG$7+0.5,$K$68:$DL$122,ROWS($B$12:$B14)+2,FALSE)","v":155},{"$f":"HLOOKUP(CH$7+0.5,$K$68:$DL$122,ROWS($B$12:$B14)+2,FALSE)","v":120},{"$f":"HLOOKUP(CI$7+0.5,$K$68:$DL$122,ROWS($B$12:$B14)+2,FALSE)","v":435},{"$f":"HLOOKUP(CJ$7+0.5,$K$68:$DL$122,ROWS($B$12:$B14)+2,FALSE)","v":568},{"$f":"HLOOKUP(CK$7+0.5,$K$68:$DL$122,ROWS($B$12:$B14)+2,FALSE)","v":904},{"$f":"HLOOKUP(CL$7+0.5,$K$68:$DL$122,ROWS($B$12:$B14)+2,FALSE)","v":1014},{"$f":"HLOOKUP(CM$7+0.5,$K$68:$DL$122,ROWS($B$12:$B14)+2,FALSE)","v":185},{"$f":"HLOOKUP(CN$7+0.5,$K$68:$DL$122,ROWS($B$12:$B14)+2,FALSE)","v":12},{"$f":"HLOOKUP(CO$7+0.5,$K$68:$DL$122,ROWS($B$12:$B14)+2,FALSE)","v":485},{"$f":"HLOOKUP(CP$7+0.5,$K$68:$DL$122,ROWS($B$12:$B14)+2,FALSE)","v":744},{"$f":"HLOOKUP(CQ$7+0.5,$K$68:$DL$122,ROWS($B$12:$B14)+2,FALSE)","v":136},{"$f":"HLOOKUP(CR$7+0.5,$K$68:$DL$122,ROWS($B$12:$B14)+2,FALSE)","v":188},{"$f":"HLOOKUP(CS$7+0.5,$K$68:$DL$122,ROWS($B$12:$B14)+2,FALSE)","v":613},{"$f":"HLOOKUP(CT$7+0.5,$K$68:$DL$122,ROWS($B$12:$B14)+2,FALSE)","v":404},{"$f":"HLOOKUP(CU$7+0.5,$K$68:$DL$122,ROWS($B$12:$B14)+2,FALSE)","v":149},{"$f":"HLOOKUP(CV$7+0.5,$K$68:$DL$122,ROWS($B$12:$B14)+2,FALSE)","v":286},{"$f":"HLOOKUP(CW$7+0.5,$K$68:$DL$122,ROWS($B$12:$B14)+2,FALSE)","v":733},{"$f":"HLOOKUP(CX$7+0.5,$K$68:$DL$122,ROWS($B$12:$B14)+2,FALSE)","v":841},{"$f":"HLOOKUP(CY$7+0.5,$K$68:$DL$122,ROWS($B$12:$B14)+2,FALSE)","v":371},{"$f":"HLOOKUP(CZ$7+0.5,$K$68:$DL$122,ROWS($B$12:$B14)+2,FALSE)","v":149},{"$f":"HLOOKUP(DA$7+0.5,$K$68:$DL$122,ROWS($B$12:$B14)+2,FALSE)","v":182},{"$f":"HLOOKUP(DB$7+0.5,$K$68:$DL$122,ROWS($B$12:$B14)+2,FALSE)","v":343},{"$f":"HLOOKUP(DC$7+0.5,$K$68:$DL$122,ROWS($B$12:$B14)+2,FALSE)","v":308},{"$f":"HLOOKUP(DD$7+0.5,$K$68:$DL$122,ROWS($B$12:$B14)+2,FALSE)","v":1105},{"$f":"HLOOKUP(DE$7+0.5,$K$68:$DL$122,ROWS($B$12:$B14)+2,FALSE)","v":731},{"$f":"HLOOKUP(DF$7+0.5,$K$68:$DL$122,ROWS($B$12:$B14)+2,FALSE)","v":105},{"$f":"HLOOKUP(DG$7+0.5,$K$68:$DL$122,ROWS($B$12:$B14)+2,FALSE)","v":1112},{"$f":"HLOOKUP(DH$7+0.5,$K$68:$DL$122,ROWS($B$12:$B14)+2,FALSE)","v":1520},{"$f":"HLOOKUP(DI$7+0.5,$K$68:$DL$122,ROWS($B$12:$B14)+2,FALSE)","v":75},{"$f":"HLOOKUP(DJ$7+0.5,$K$68:$DL$122,ROWS($B$12:$B14)+2,FALSE)","v":35},{"$f":"HLOOKUP(DK$7+0.5,$K$68:$DL$122,ROWS($B$12:$B14)+2,FALSE)","v":272},{"$f":"HLOOKUP(DL$7+0.5,$K$68:$DL$122,ROWS($B$12:$B14)+2,FALSE)","v":962}]
[null,null,"Arizona",6402301,5660,5107496,39045,1028366,36556,3.1896912964678219E-2,{"$f":"HLOOKUP(K$7,$K$68:$DL$122,ROWS($B$12:$B15)+2,FALSE)","v":222877},{"$f":"HLOOKUP(L$7,$K$68:$DL$122,ROWS($B$12:$B15)+2,FALSE)","v":833},{"$f":"HLOOKUP(M$7,$K$68:$DL$122,ROWS($B$12:$B15)+2,FALSE)","v":5001},{"$f":"HLOOKUP(N$7,$K$68:$DL$122,ROWS($B$12:$B15)+2,FALSE)","v":"N/A"},{"$f":"HLOOKUP(O$7,$K$68:$DL$122,ROWS($B$12:$B15)+2,FALSE)","v":1066},{"$f":"HLOOKUP(P$7,$K$68:$DL$122,ROWS($B$12:$B15)+2,FALSE)","v":49635},{"$f":"HLOOKUP(Q$7,$K$68:$DL$122,ROWS($B$12:$B15)+2,FALSE)","v":10189},{"$f":"HLOOKUP(R$7,$K$68:$DL$122,ROWS($B$12:$B15)+2,FALSE)","v":1875},{"$f":"HLOOKUP(S$7,$K$68:$DL$122,ROWS($B$12:$B15)+2,FALSE)","v":0},{"$f":"HLOOKUP(T$7,$K$68:$DL$122,ROWS($B$12:$B15)+2,FALSE)","v":389},{"$f":"HLOOKUP(U$7,$K$68:$DL$122,ROWS($B$12:$B15)+2,FALSE)","v":3732},{"$f":"HLOOKUP(V$7,$K$68:$DL$122,ROWS($B$12:$B15)+2,FALSE)","v":2206},{"$f":"HLOOKUP(W$7,$K$68:$DL$122,ROWS($B$12:$B15)+2,FALSE)","v":2199},{"$f":"HLOOKUP(X$7,$K$68:$DL$122,ROWS($B$12:$B15)+2,FALSE)","v":2190},{"$f":"HLOOKUP(Y$7,$K$68:$DL$122,ROWS($B$12:$B15)+2,FALSE)","v":10035},{"$f":"HLOOKUP(Z$7,$K$68:$DL$122,ROWS($B$12:$B15)+2,FALSE)","v":5855},{"$f":"HLOOKUP(AA$7,$K$68:$DL$122,ROWS($B$12:$B15)+2,FALSE)","v":4526},{"$f":"HLOOKUP(AB$7,$K$68:$DL$122,ROWS($B$12:$B15)+2,FALSE)","v":1708},{"$f":"HLOOKUP(AC$7,$K$68:$DL$122,ROWS($B$12:$B15)+2,FALSE)","v":2134},{"$f":"HLOOKUP(AD$7,$K$68:$DL$122,ROWS($B$12:$B15)+2,FALSE)","v":844},{"$f":"HLOOKUP(AE$7,$K$68:$DL$122,ROWS($B$12:$B15)+2,FALSE)","v":0},{"$f":"HLOOKUP(AF$7,$K$68:$DL$122,ROWS($B$12:$B15)+2,FALSE)","v":1918},{"$f":"HLOOKUP(AG$7,$K$68:$DL$122,ROWS($B$12:$B15)+2,FALSE)","v":743},{"$f":"HLOOKUP(AH$7,$K$68:$DL$122,ROWS($B$12:$B15)+2,FALSE)","v":9396},{"$f":"HLOOKUP(AI$7,$K$68:$DL$122,ROWS($B$12:$B15)+2,FALSE)","v":3297},{"$f":"HLOOKUP(AJ$7,$K$68:$DL$122,ROWS($B$12:$B15)+2,FALSE)","v":1226},{"$f":"HLOOKUP(AK$7,$K$68:$DL$122,ROWS($B$12:$B15)+2,FALSE)","v":3872},{"$f":"HLOOKUP(AL$7,$K$68:$DL$122,ROWS($B$12:$B15)+2,FALSE)","v":2431},{"$f":"HLOOKUP(AM$7,$K$68:$DL$122,ROWS($B$12:$B15)+2,FALSE)","v":1393},{"$f":"HLOOKUP(AN$7,$K$68:$DL$122,ROWS($B$12:$B15)+2,FALSE)","v":8756},{"$f":"HLOOKUP(AO$7,$K$68:$DL$122,ROWS($B$12:$B15)+2,FALSE)","v":228},{"$f":"HLOOKUP(AP$7,$K$68:$DL$122,ROWS($B$12:$B15)+2,FALSE)","v":3379},{"$f":"HLOOKUP(AQ$7,$K$68:$DL$122,ROWS($B$12:$B15)+2,FALSE)","v":4610},{"$f":"HLOOKUP(AR$7,$K$68:$DL$122,ROWS($B$12:$B15)+2,FALSE)","v":3880},{"$f":"HLOOKUP(AS$7,$K$68:$DL$122,ROWS($B$12:$B15)+2,FALSE)","v":2548},{"$f":"HLOOKUP(AT$7,$K$68:$DL$122,ROWS($B$12:$B15)+2,FALSE)","v":1159},{"$f":"HLOOKUP(AU$7,$K$68:$DL$122,ROWS($B$12:$B15)+2,FALSE)","v":4682},{"$f":"HLOOKUP(AV$7,$K$68:$DL$122,ROWS($B$12:$B15)+2,FALSE)","v":3219},{"$f":"HLOOKUP(AW$7,$K$68:$DL$122,ROWS($B$12:$B15)+2,FALSE)","v":4613},{"$f":"HLOOKUP(AX$7,$K$68:$DL$122,ROWS($B$12:$B15)+2,FALSE)","v":3436},{"$f":"HLOOKUP(AY$7,$K$68:$DL$122,ROWS($B$12:$B15)+2,FALSE)","v":72},{"$f":"HLOOKUP(AZ$7,$K$68:$DL$122,ROWS($B$12:$B15)+2,FALSE)","v":1774},{"$f":"HLOOKUP(BA$7,$K$68:$DL$122,ROWS($B$12:$B15)+2,FALSE)","v":1657},{"$f":"HLOOKUP(BB$7,$K$68:$DL$122,ROWS($B$12:$B15)+2,FALSE)","v":1680},{"$f":"HLOOKUP(BC$7,$K$68:$DL$122,ROWS($B$12:$B15)+2,FALSE)","v":12688},{"$f":"HLOOKUP(BD$7,$K$68:$DL$122,ROWS($B$12:$B15)+2,FALSE)","v":10577},{"$f":"HLOOKUP(BE$7,$K$68:$DL$122,ROWS($B$12:$B15)+2,FALSE)","v":0},{"$f":"HLOOKUP(BF$7,$K$68:$DL$122,ROWS($B$12:$B15)+2,FALSE)","v":2233},{"$f":"HLOOKUP(BG$7,$K$68:$DL$122,ROWS($B$12:$B15)+2,FALSE)","v":13940},{"$f":"HLOOKUP(BH$7,$K$68:$DL$122,ROWS($B$12:$B15)+2,FALSE)","v":70},{"$f":"HLOOKUP(BI$7,$K$68:$DL$122,ROWS($B$12:$B15)+2,FALSE)","v":6473},{"$f":"HLOOKUP(BJ$7,$K$68:$DL$122,ROWS($B$12:$B15)+2,FALSE)","v":2510},{"$f":"HLOOKUP(BK$7,$K$68:$DL$122,ROWS($B$12:$B15)+2,FALSE)","v":871},{"$f":"HLOOKUP(BL$7+0.5,$K$68:$DL$122,ROWS($B$12:$B15)+2,FALSE)","v":14358},{"$f":"HLOOKUP(BM$7+0.5,$K$68:$DL$122,ROWS($B$12:$B15)+2,FALSE)","v":587},{"$f":"HLOOKUP(BN$7+0.5,$K$68:$DL$122,ROWS($B$12:$B15)+2,FALSE)","v":2214},{"$f":"HLOOKUP(BO$7+0.5,$K$68:$DL$122,ROWS($B$12:$B15)+2,FALSE)","v":"N/A"},{"$f":"HLOOKUP(BP$7+0.5,$K$68:$DL$122,ROWS($B$12:$B15)+2,FALSE)","v":740},{"$f":"HLOOKUP(BQ$7+0.5,$K$68:$DL$122,ROWS($B$12:$B15)+2,FALSE)","v":8755},{"$f":"HLOOKUP(BR$7+0.5,$K$68:$DL$122,ROWS($B$12:$B15)+2,FALSE)","v":2958},{"$f":"HLOOKUP(BS$7+0.5,$K$68:$DL$122,ROWS($B$12:$B15)+2,FALSE)","v":1213},{"$f":"HLOOKUP(BT$7+0.5,$K$68:$DL$122,ROWS($B$12:$B15)+2,FALSE)","v":229},{"$f":"HLOOKUP(BU$7+0.5,$K$68:$DL$122,ROWS($B$12:$B15)+2,FALSE)","v":389},{"$f":"HLOOKUP(BV$7+0.5,$K$68:$DL$122,ROWS($B$12:$B15)+2,FALSE)","v":1842},{"$f":"HLOOKUP(BW$7+0.5,$K$68:$DL$122,ROWS($B$12:$B15)+2,FALSE)","v":1147},{"$f":"HLOOKUP(BX$7+0.5,$K$68:$DL$122,ROWS($B$12:$B15)+2,FALSE)","v":1109},{"$f":"HLOOKUP(BY$7+0.5,$K$68:$DL$122,ROWS($B$12:$B15)+2,FALSE)","v":1183},{"$f":"HLOOKUP(BZ$7+0.5,$K$68:$DL$122,ROWS($B$12:$B15)+2,FALSE)","v":4129},{"$f":"HLOOKUP(CA$7+0.5,$K$68:$DL$122,ROWS($B$12:$B15)+2,FALSE)","v":1956},{"$f":"HLOOKUP(CB$7+0.5,$K$68:$DL$122,ROWS($B$12:$B15)+2,FALSE)","v":1745},{"$f":"HLOOKUP(CC$7+0.5,$K$68:$DL$122,ROWS($B$12:$B15)+2,FALSE)","v":883},{"$f":"HLOOKUP(CD$7+0.5,$K$68:$DL$122,ROWS($B$12:$B15)+2,FALSE)","v":1257},{"$f":"HLOOKUP(CE$7+0.5,$K$68:$DL$122,ROWS($B$12:$B15)+2,FALSE)","v":867},{"$f":"HLOOKUP(CF$7+0.5,$K$68:$DL$122,ROWS($B$12:$B15)+2,FALSE)","v":229},{"$f":"HLOOKUP(CG$7+0.5,$K$68:$DL$122,ROWS($B$12:$B15)+2,FALSE)","v":1096},{"$f":"HLOOKUP(CH$7+0.5,$K$68:$DL$122,ROWS($B$12:$B15)+2,FALSE)","v":430},{"$f":"HLOOKUP(CI$7+0.5,$K$68:$DL$122,ROWS($B$12:$B15)+2,FALSE)","v":5283},{"$f":"HLOOKUP(CJ$7+0.5,$K$68:$DL$122,ROWS($B$12:$B15)+2,FALSE)","v":1064},{"$f":"HLOOKUP(CK$7+0.5,$K$68:$DL$122,ROWS($B$12:$B15)+2,FALSE)","v":1492},{"$f":"HLOOKUP(CL$7+0.5,$K$68:$DL$122,ROWS($B$12:$B15)+2,FALSE)","v":1689},{"$f":"HLOOKUP(CM$7+0.5,$K$68:$DL$122,ROWS($B$12:$B15)+2,FALSE)","v":1191},{"$f":"HLOOKUP(CN$7+0.5,$K$68:$DL$122,ROWS($B$12:$B15)+2,FALSE)","v":798},{"$f":"HLOOKUP(CO$7+0.5,$K$68:$DL$122,ROWS($B$12:$B15)+2,FALSE)","v":3417},{"$f":"HLOOKUP(CP$7+0.5,$K$68:$DL$122,ROWS($B$12:$B15)+2,FALSE)","v":229},{"$f":"HLOOKUP(CQ$7+0.5,$K$68:$DL$122,ROWS($B$12:$B15)+2,FALSE)","v":1757},{"$f":"HLOOKUP(CR$7+0.5,$K$68:$DL$122,ROWS($B$12:$B15)+2,FALSE)","v":1448},{"$f":"HLOOKUP(CS$7+0.5,$K$68:$DL$122,ROWS($B$12:$B15)+2,FALSE)","v":1363},{"$f":"HLOOKUP(CT$7+0.5,$K$68:$DL$122,ROWS($B$12:$B15)+2,FALSE)","v":1269},{"$f":"HLOOKUP(CU$7+0.5,$K$68:$DL$122,ROWS($B$12:$B15)+2,FALSE)","v":891},{"$f":"HLOOKUP(CV$7+0.5,$K$68:$DL$122,ROWS($B$12:$B15)+2,FALSE)","v":2116},{"$f":"HLOOKUP(CW$7+0.5,$K$68:$DL$122,ROWS($B$12:$B15)+2,FALSE)","v":1761},{"$f":"HLOOKUP(CX$7+0.5,$K$68:$DL$122,ROWS($B$12:$B15)+2,FALSE)","v":1465},{"$f":"HLOOKUP(CY$7+0.5,$K$68:$DL$122,ROWS($B$12:$B15)+2,FALSE)","v":1476},{"$f":"HLOOKUP(CZ$7+0.5,$K$68:$DL$122,ROWS($B$12:$B15)+2,FALSE)","v":131},{"$f":"HLOOKUP(DA$7+0.5,$K$68:$DL$122,ROWS($B$12:$B15)+2,FALSE)","v":1932},{"$f":"HLOOKUP(DB$7+0.5,$K$68:$DL$122,ROWS($B$12:$B15)+2,FALSE)","v":1589},{"$f":"HLOOKUP(DC$7+0.5,$K$68:$DL$122,ROWS($B$12:$B15)+2,FALSE)","v":647},{"$f":"HLOOKUP(DD$7+0.5,$K$68:$DL$122,ROWS($B$12:$B15)+2,FALSE)","v":2976},{"$f":"HLOOKUP(DE$7+0.5,$K$68:$DL$122,ROWS($B$12:$B15)+2,FALSE)","v":3336},{"$f":"HLOOKUP(DF$7+0.5,$K$68:$DL$122,ROWS($B$12:$B15)+2,FALSE)","v":229},{"$f":"HLOOKUP(DG$7+0.5,$K$68:$DL$122,ROWS($B$12:$B15)+2,FALSE)","v":1094},{"$f":"HLOOKUP(DH$7+0.5,$K$68:$DL$122,ROWS($B$12:$B15)+2,FALSE)","v":5479},{"$f":"HLOOKUP(DI$7+0.5,$K$68:$DL$122,ROWS($B$12:$B15)+2,FALSE)","v":118},{"$f":"HLOOKUP(DJ$7+0.5,$K$68:$DL$122,ROWS($B$12:$B15)+2,FALSE)","v":2066},{"$f":"HLOOKUP(DK$7+0.5,$K$68:$DL$122,ROWS($B$12:$B15)+2,FALSE)","v":1288},{"$f":"HLOOKUP(DL$7+0.5,$K$68:$DL$122,ROWS($B$12:$B15)+2,FALSE)","v":639}]
[null,null,"Arkansas",2906632,2928,2421746,18606,405831,18050,9.9958267834633005E-3,{"$f":"HLOOKUP(K$7,$K$68:$DL$122,ROWS($B$12:$B16)+2,FALSE)","v":69845},{"$f":"HLOOKUP(L$7,$K$68:$DL$122,ROWS($B$12:$B16)+2,FALSE)","v":691},{"$f":"HLOOKUP(M$7,$K$68:$DL$122,ROWS($B$12:$B16)+2,FALSE)","v":560},{"$f":"HLOOKUP(N$7,$K$68:$DL$122,ROWS($B$12:$B16)+2,FALSE)","v":439},{"$f":"HLOOKUP(O$7,$K$68:$DL$122,ROWS($B$12:$B16)+2,FALSE)","v":"N/A"},{"$f":"HLOOKUP(P$7,$K$68:$DL$122,ROWS($B$12:$B16)+2,FALSE)","v":4077},{"$f":"HLOOKUP(Q$7,$K$68:$DL$122,ROWS($B$12:$B16)+2,FALSE)","v":746},{"$f":"HLOOKUP(R$7,$K$68:$DL$122,ROWS($B$12:$B16)+2,FALSE)","v":519},{"$f":"HLOOKUP(S$7,$K$68:$DL$122,ROWS($B$12:$B16)+2,FALSE)","v":79},{"$f":"HLOOKUP(T$7,$K$68:$DL$122,ROWS($B$12:$B16)+2,FALSE)","v":0},{"$f":"HLOOKUP(U$7,$K$68:$DL$122,ROWS($B$12:$B16)+2,FALSE)","v":3067},{"$f":"HLOOKUP(V$7,$K$68:$DL$122,ROWS($B$12:$B16)+2,FALSE)","v":1446},{"$f":"HLOOKUP(W$7,$K$68:$DL$122,ROWS($B$12:$B16)+2,FALSE)","v":13},{"$f":"HLOOKUP(X$7,$K$68:$DL$122,ROWS($B$12:$B16)+2,FALSE)","v":179},{"$f":"HLOOKUP(Y$7,$K$68:$DL$122,ROWS($B$12:$B16)+2,FALSE)","v":3684},{"$f":"HLOOKUP(Z$7,$K$68:$DL$122,ROWS($B$12:$B16)+2,FALSE)","v":1362},{"$f":"HLOOKUP(AA$7,$K$68:$DL$122,ROWS($B$12:$B16)+2,FALSE)","v":851},{"$f":"HLOOKUP(AB$7,$K$68:$DL$122,ROWS($B$12:$B16)+2,FALSE)","v":2008},{"$f":"HLOOKUP(AC$7,$K$68:$DL$122,ROWS($B$12:$B16)+2,FALSE)","v":213},{"$f":"HLOOKUP(AD$7,$K$68:$DL$122,ROWS($B$12:$B16)+2,FALSE)","v":2120},{"$f":"HLOOKUP(AE$7,$K$68:$DL$122,ROWS($B$12:$B16)+2,FALSE)","v":30},{"$f":"HLOOKUP(AF$7,$K$68:$DL$122,ROWS($B$12:$B16)+2,FALSE)","v":133},{"$f":"HLOOKUP(AG$7,$K$68:$DL$122,ROWS($B$12:$B16)+2,FALSE)","v":781},{"$f":"HLOOKUP(AH$7,$K$68:$DL$122,ROWS($B$12:$B16)+2,FALSE)","v":1881},{"$f":"HLOOKUP(AI$7,$K$68:$DL$122,ROWS($B$12:$B16)+2,FALSE)","v":232},{"$f":"HLOOKUP(AJ$7,$K$68:$DL$122,ROWS($B$12:$B16)+2,FALSE)","v":1731},{"$f":"HLOOKUP(AK$7,$K$68:$DL$122,ROWS($B$12:$B16)+2,FALSE)","v":7314},{"$f":"HLOOKUP(AL$7,$K$68:$DL$122,ROWS($B$12:$B16)+2,FALSE)","v":713},{"$f":"HLOOKUP(AM$7,$K$68:$DL$122,ROWS($B$12:$B16)+2,FALSE)","v":332},{"$f":"HLOOKUP(AN$7,$K$68:$DL$122,ROWS($B$12:$B16)+2,FALSE)","v":641},{"$f":"HLOOKUP(AO$7,$K$68:$DL$122,ROWS($B$12:$B16)+2,FALSE)","v":52},{"$f":"HLOOKUP(AP$7,$K$68:$DL$122,ROWS($B$12:$B16)+2,FALSE)","v":341},{"$f":"HLOOKUP(AQ$7,$K$68:$DL$122,ROWS($B$12:$B16)+2,FALSE)","v":775},{"$f":"HLOOKUP(AR$7,$K$68:$DL$122,ROWS($B$12:$B16)+2,FALSE)","v":674},{"$f":"HLOOKUP(AS$7,$K$68:$DL$122,ROWS($B$12:$B16)+2,FALSE)","v":1664},{"$f":"HLOOKUP(AT$7,$K$68:$DL$122,ROWS($B$12:$B16)+2,FALSE)","v":214},{"$f":"HLOOKUP(AU$7,$K$68:$DL$122,ROWS($B$12:$B16)+2,FALSE)","v":174},{"$f":"HLOOKUP(AV$7,$K$68:$DL$122,ROWS($B$12:$B16)+2,FALSE)","v":3761},{"$f":"HLOOKUP(AW$7,$K$68:$DL$122,ROWS($B$12:$B16)+2,FALSE)","v":632},{"$f":"HLOOKUP(AX$7,$K$68:$DL$122,ROWS($B$12:$B16)+2,FALSE)","v":567},{"$f":"HLOOKUP(AY$7,$K$68:$DL$122,ROWS($B$12:$B16)+2,FALSE)","v":0},{"$f":"HLOOKUP(AZ$7,$K$68:$DL$122,ROWS($B$12:$B16)+2,FALSE)","v":235},{"$f":"HLOOKUP(BA$7,$K$68:$DL$122,ROWS($B$12:$B16)+2,FALSE)","v":0},{"$f":"HLOOKUP(BB$7,$K$68:$DL$122,ROWS($B$12:$B16)+2,FALSE)","v":6462},{"$f":"HLOOKUP(BC$7,$K$68:$DL$122,ROWS($B$12:$B16)+2,FALSE)","v":14767},{"$f":"HLOOKUP(BD$7,$K$68:$DL$122,ROWS($B$12:$B16)+2,FALSE)","v":0},{"$f":"HLOOKUP(BE$7,$K$68:$DL$122,ROWS($B$12:$B16)+2,FALSE)","v":0},{"$f":"HLOOKUP(BF$7,$K$68:$DL$122,ROWS($B$12:$B16)+2,FALSE)","v":1245},{"$f":"HLOOKUP(BG$7,$K$68:$DL$122,ROWS($B$12:$B16)+2,FALSE)","v":1477},{"$f":"HLOOKUP(BH$7,$K$68:$DL$122,ROWS($B$12:$B16)+2,FALSE)","v":24},{"$f":"HLOOKUP(BI$7,$K$68:$DL$122,ROWS($B$12:$B16)+2,FALSE)","v":687},{"$f":"HLOOKUP(BJ$7,$K$68:$DL$122,ROWS($B$12:$B16)+2,FALSE)","v":252},{"$f":"HLOOKUP(BK$7,$K$68:$DL$122,ROWS($B$12:$B16)+2,FALSE)","v":529},{"$f":"HLOOKUP(BL$7+0.5,$K$68:$DL$122,ROWS($B$12:$B16)+2,FALSE)","v":7292},{"$f":"HLOOKUP(BM$7+0.5,$K$68:$DL$122,ROWS($B$12:$B16)+2,FALSE)","v":573},{"$f":"HLOOKUP(BN$7+0.5,$K$68:$DL$122,ROWS($B$12:$B16)+2,FALSE)","v":669},{"$f":"HLOOKUP(BO$7+0.5,$K$68:$DL$122,ROWS($B$12:$B16)+2,FALSE)","v":381},{"$f":"HLOOKUP(BP$7+0.5,$K$68:$DL$122,ROWS($B$12:$B16)+2,FALSE)","v":"N/A"},{"$f":"HLOOKUP(BQ$7+0.5,$K$68:$DL$122,ROWS($B$12:$B16)+2,FALSE)","v":2327},{"$f":"HLOOKUP(BR$7+0.5,$K$68:$DL$122,ROWS($B$12:$B16)+2,FALSE)","v":451},{"$f":"HLOOKUP(BS$7+0.5,$K$68:$DL$122,ROWS($B$12:$B16)+2,FALSE)","v":654},{"$f":"HLOOKUP(BT$7+0.5,$K$68:$DL$122,ROWS($B$12:$B16)+2,FALSE)","v":141},{"$f":"HLOOKUP(BU$7+0.5,$K$68:$DL$122,ROWS($B$12:$B16)+2,FALSE)","v":192},{"$f":"HLOOKUP(BV$7+0.5,$K$68:$DL$122,ROWS($B$12:$B16)+2,FALSE)","v":1273},{"$f":"HLOOKUP(BW$7+0.5,$K$68:$DL$122,ROWS($B$12:$B16)+2,FALSE)","v":759},{"$f":"HLOOKUP(BX$7+0.5,$K$68:$DL$122,ROWS($B$12:$B16)+2,FALSE)","v":27},{"$f":"HLOOKUP(BY$7+0.5,$K$68:$DL$122,ROWS($B$12:$B16)+2,FALSE)","v":271},{"$f":"HLOOKUP(BZ$7+0.5,$K$68:$DL$122,ROWS($B$12:$B16)+2,FALSE)","v":2143},{"$f":"HLOOKUP(CA$7+0.5,$K$68:$DL$122,ROWS($B$12:$B16)+2,FALSE)","v":1007},{"$f":"HLOOKUP(CB$7+0.5,$K$68:$DL$122,ROWS($B$12:$B16)+2,FALSE)","v":773},{"$f":"HLOOKUP(CC$7+0.5,$K$68:$DL$122,ROWS($B$12:$B16)+2,FALSE)","v":1142},{"$f":"HLOOKUP(CD$7+0.5,$K$68:$DL$122,ROWS($B$12:$B16)+2,FALSE)","v":311},{"$f":"HLOOKUP(CE$7+0.5,$K$68:$DL$122,ROWS($B$12:$B16)+2,FALSE)","v":1015},{"$f":"HLOOKUP(CF$7+0.5,$K$68:$DL$122,ROWS($B$12:$B16)+2,FALSE)","v":53},{"$f":"HLOOKUP(CG$7+0.5,$K$68:$DL$122,ROWS($B$12:$B16)+2,FALSE)","v":176},{"$f":"HLOOKUP(CH$7+0.5,$K$68:$DL$122,ROWS($B$12:$B16)+2,FALSE)","v":901},{"$f":"HLOOKUP(CI$7+0.5,$K$68:$DL$122,ROWS($B$12:$B16)+2,FALSE)","v":1130},{"$f":"HLOOKUP(CJ$7+0.5,$K$68:$DL$122,ROWS($B$12:$B16)+2,FALSE)","v":396},{"$f":"HLOOKUP(CK$7+0.5,$K$68:$DL$122,ROWS($B$12:$B16)+2,FALSE)","v":864},{"$f":"HLOOKUP(CL$7+0.5,$K$68:$DL$122,ROWS($B$12:$B16)+2,FALSE)","v":2602},{"$f":"HLOOKUP(CM$7+0.5,$K$68:$DL$122,ROWS($B$12:$B16)+2,FALSE)","v":858},{"$f":"HLOOKUP(CN$7+0.5,$K$68:$DL$122,ROWS($B$12:$B16)+2,FALSE)","v":417},{"$f":"HLOOKUP(CO$7+0.5,$K$68:$DL$122,ROWS($B$12:$B16)+2,FALSE)","v":525},{"$f":"HLOOKUP(CP$7+0.5,$K$68:$DL$122,ROWS($B$12:$B16)+2,FALSE)","v":69},{"$f":"HLOOKUP(CQ$7+0.5,$K$68:$DL$122,ROWS($B$12:$B16)+2,FALSE)","v":220},{"$f":"HLOOKUP(CR$7+0.5,$K$68:$DL$122,ROWS($B$12:$B16)+2,FALSE)","v":680},{"$f":"HLOOKUP(CS$7+0.5,$K$68:$DL$122,ROWS($B$12:$B16)+2,FALSE)","v":362},{"$f":"HLOOKUP(CT$7+0.5,$K$68:$DL$122,ROWS($B$12:$B16)+2,FALSE)","v":1220},{"$f":"HLOOKUP(CU$7+0.5,$K$68:$DL$122,ROWS($B$12:$B16)+2,FALSE)","v":248},{"$f":"HLOOKUP(CV$7+0.5,$K$68:$DL$122,ROWS($B$12:$B16)+2,FALSE)","v":176},{"$f":"HLOOKUP(CW$7+0.5,$K$68:$DL$122,ROWS($B$12:$B16)+2,FALSE)","v":1456},{"$f":"HLOOKUP(CX$7+0.5,$K$68:$DL$122,ROWS($B$12:$B16)+2,FALSE)","v":587},{"$f":"HLOOKUP(CY$7+0.5,$K$68:$DL$122,ROWS($B$12:$B16)+2,FALSE)","v":628},{"$f":"HLOOKUP(CZ$7+0.5,$K$68:$DL$122,ROWS($B$12:$B16)+2,FALSE)","v":192},{"$f":"HLOOKUP(DA$7+0.5,$K$68:$DL$122,ROWS($B$12:$B16)+2,FALSE)","v":269},{"$f":"HLOOKUP(DB$7+0.5,$K$68:$DL$122,ROWS($B$12:$B16)+2,FALSE)","v":192},{"$f":"HLOOKUP(DC$7+0.5,$K$68:$DL$122,ROWS($B$12:$B16)+2,FALSE)","v":2269},{"$f":"HLOOKUP(DD$7+0.5,$K$68:$DL$122,ROWS($B$12:$B16)+2,FALSE)","v":2746},{"$f":"HLOOKUP(DE$7+0.5,$K$68:$DL$122,ROWS($B$12:$B16)+2,FALSE)","v":192},{"$f":"HLOOKUP(DF$7+0.5,$K$68:$DL$122,ROWS($B$12:$B16)+2,FALSE)","v":192},{"$f":"HLOOKUP(DG$7+0.5,$K$68:$DL$122,ROWS($B$12:$B16)+2,FALSE)","v":769},{"$f":"HLOOKUP(DH$7+0.5,$K$68:$DL$122,ROWS($B$12:$B16)+2,FALSE)","v":636},{"$f":"HLOOKUP(DI$7+0.5,$K$68:$DL$122,ROWS($B$12:$B16)+2,FALSE)","v":45},{"$f":"HLOOKUP(DJ$7+0.5,$K$68:$DL$122,ROWS($B$12:$B16)+2,FALSE)","v":632},{"$f":"HLOOKUP(DK$7+0.5,$K$68:$DL$122,ROWS($B$12:$B16)+2,FALSE)","v":399},{"$f":"HLOOKUP(DL$7+0.5,$K$68:$DL$122,ROWS($B$12:$B16)+2,FALSE)","v":507}]
[null,null,"California",37222678,9999,31213310,71183,5271168,68394,6.7038802326926009E-2,{"$f":"HLOOKUP(K$7,$K$68:$DL$122,ROWS($B$12:$B17)+2,FALSE)","v":468428},{"$f":"HLOOKUP(L$7,$K$68:$DL$122,ROWS($B$12:$B17)+2,FALSE)","v":2087},{"$f":"HLOOKUP(M$7,$K$68:$DL$122,ROWS($B$12:$B17)+2,FALSE)","v":7358},{"$f":"HLOOKUP(N$7,$K$68:$DL$122,ROWS($B$12:$B17)+2,FALSE)","v":35650},{"$f":"HLOOKUP(O$7,$K$68:$DL$122,ROWS($B$12:$B17)+2,FALSE)","v":2648},{"$f":"HLOOKUP(P$7,$K$68:$DL$122,ROWS($B$12:$B17)+2,FALSE)","v":"N/A"},{"$f":"HLOOKUP(Q$7,$K$68:$DL$122,ROWS($B$12:$B17)+2,FALSE)","v":21245},{"$f":"HLOOKUP(R$7,$K$68:$DL$122,ROWS($B$12:$B17)+2,FALSE)","v":3073},{"$f":"HLOOKUP(S$7,$K$68:$DL$122,ROWS($B$12:$B17)+2,FALSE)","v":1302},{"$f":"HLOOKUP(T$7,$K$68:$DL$122,ROWS($B$12:$B17)+2,FALSE)","v":3240},{"$f":"HLOOKUP(U$7,$K$68:$DL$122,ROWS($B$12:$B17)+2,FALSE)","v":22094},{"$f":"HLOOKUP(V$7,$K$68:$DL$122,ROWS($B$12:$B17)+2,FALSE)","v":13303},{"$f":"HLOOKUP(W$7,$K$68:$DL$122,ROWS($B$12:$B17)+2,FALSE)","v":9864},{"$f":"HLOOKUP(X$7,$K$68:$DL$122,ROWS($B$12:$B17)+2,FALSE)","v":4796},{"$f":"HLOOKUP(Y$7,$K$68:$DL$122,ROWS($B$12:$B17)+2,FALSE)","v":20834},{"$f":"HLOOKUP(Z$7,$K$68:$DL$122,ROWS($B$12:$B17)+2,FALSE)","v":4673},{"$f":"HLOOKUP(AA$7,$K$68:$DL$122,ROWS($B$12:$B17)+2,FALSE)","v":3324},{"$f":"HLOOKUP(AB$7,$K$68:$DL$122,ROWS($B$12:$B17)+2,FALSE)","v":2810},{"$f":"HLOOKUP(AC$7,$K$68:$DL$122,ROWS($B$12:$B17)+2,FALSE)","v":1201},{"$f":"HLOOKUP(AD$7,$K$68:$DL$122,ROWS($B$12:$B17)+2,FALSE)","v":3600},{"$f":"HLOOKUP(AE$7,$K$68:$DL$122,ROWS($B$12:$B17)+2,FALSE)","v":1658},{"$f":"HLOOKUP(AF$7,$K$68:$DL$122,ROWS($B$12:$B17)+2,FALSE)","v":7793},{"$f":"HLOOKUP(AG$7,$K$68:$DL$122,ROWS($B$12:$B17)+2,FALSE)","v":10244},{"$f":"HLOOKUP(AH$7,$K$68:$DL$122,ROWS($B$12:$B17)+2,FALSE)","v":12069},{"$f":"HLOOKUP(AI$7,$K$68:$DL$122,ROWS($B$12:$B17)+2,FALSE)","v":5687},{"$f":"HLOOKUP(AJ$7,$K$68:$DL$122,ROWS($B$12:$B17)+2,FALSE)","v":2092},{"$f":"HLOOKUP(AK$7,$K$68:$DL$122,ROWS($B$12:$B17)+2,FALSE)","v":7677},{"$f":"HLOOKUP(AL$7,$K$68:$DL$122,ROWS($B$12:$B17)+2,FALSE)","v":2599},{"$f":"HLOOKUP(AM$7,$K$68:$DL$122,ROWS($B$12:$B17)+2,FALSE)","v":1955},{"$f":"HLOOKUP(AN$7,$K$68:$DL$122,ROWS($B$12:$B17)+2,FALSE)","v":36159},{"$f":"HLOOKUP(AO$7,$K$68:$DL$122,ROWS($B$12:$B17)+2,FALSE)","v":1222},{"$f":"HLOOKUP(AP$7,$K$68:$DL$122,ROWS($B$12:$B17)+2,FALSE)","v":8053},{"$f":"HLOOKUP(AQ$7,$K$68:$DL$122,ROWS($B$12:$B17)+2,FALSE)","v":5904},{"$f":"HLOOKUP(AR$7,$K$68:$DL$122,ROWS($B$12:$B17)+2,FALSE)","v":25629},{"$f":"HLOOKUP(AS$7,$K$68:$DL$122,ROWS($B$12:$B17)+2,FALSE)","v":8708},{"$f":"HLOOKUP(AT$7,$K$68:$DL$122,ROWS($B$12:$B17)+2,FALSE)","v":1392},{"$f":"HLOOKUP(AU$7,$K$68:$DL$122,ROWS($B$12:$B17)+2,FALSE)","v":10474},{"$f":"HLOOKUP(AV$7,$K$68:$DL$122,ROWS($B$12:$B17)+2,FALSE)","v":5113},{"$f":"HLOOKUP(AW$7,$K$68:$DL$122,ROWS($B$12:$B17)+2,FALSE)","v":18165},{"$f":"HLOOKUP(AX$7,$K$68:$DL$122,ROWS($B$12:$B17)+2,FALSE)","v":8550},{"$f":"HLOOKUP(AY$7,$K$68:$DL$122,ROWS($B$12:$B17)+2,FALSE)","v":1103},{"$f":"HLOOKUP(AZ$7,$K$68:$DL$122,ROWS($B$12:$B17)+2,FALSE)","v":5758},{"$f":"HLOOKUP(BA$7,$K$68:$DL$122,ROWS($B$12:$B17)+2,FALSE)","v":1004},{"$f":"HLOOKUP(BB$7,$K$68:$DL$122,ROWS($B$12:$B17)+2,FALSE)","v":8761},{"$f":"HLOOKUP(BC$7,$K$68:$DL$122,ROWS($B$12:$B17)+2,FALSE)","v":37087},{"$f":"HLOOKUP(BD$7,$K$68:$DL$122,ROWS($B$12:$B17)+2,FALSE)","v":8944},{"$f":"HLOOKUP(BE$7,$K$68:$DL$122,ROWS($B$12:$B17)+2,FALSE)","v":745},{"$f":"HLOOKUP(BF$7,$K$68:$DL$122,ROWS($B$12:$B17)+2,FALSE)","v":15753},{"$f":"HLOOKUP(BG$7,$K$68:$DL$122,ROWS($B$12:$B17)+2,FALSE)","v":36481},{"$f":"HLOOKUP(BH$7,$K$68:$DL$122,ROWS($B$12:$B17)+2,FALSE)","v":832},{"$f":"HLOOKUP(BI$7,$K$68:$DL$122,ROWS($B$12:$B17)+2,FALSE)","v":5668},{"$f":"HLOOKUP(BJ$7,$K$68:$DL$122,ROWS($B$12:$B17)+2,FALSE)","v":2047},{"$f":"HLOOKUP(BK$7,$K$68:$DL$122,ROWS($B$12:$B17)+2,FALSE)","v":1344},{"$f":"HLOOKUP(BL$7+0.5,$K$68:$DL$122,ROWS($B$12:$B17)+2,FALSE)","v":17921},{"$f":"HLOOKUP(BM$7+0.5,$K$68:$DL$122,ROWS($B$12:$B17)+2,FALSE)","v":927},{"$f":"HLOOKUP(BN$7+0.5,$K$68:$DL$122,ROWS($B$12:$B17)+2,FALSE)","v":2501},{"$f":"HLOOKUP(BO$7+0.5,$K$68:$DL$122,ROWS($B$12:$B17)+2,FALSE)","v":4362},{"$f":"HLOOKUP(BP$7+0.5,$K$68:$DL$122,ROWS($B$12:$B17)+2,FALSE)","v":1019},{"$f":"HLOOKUP(BQ$7+0.5,$K$68:$DL$122,ROWS($B$12:$B17)+2,FALSE)","v":"N/A"},{"$f":"HLOOKUP(BR$7+0.5,$K$68:$DL$122,ROWS($B$12:$B17)+2,FALSE)","v":3867},{"$f":"HLOOKUP(BS$7+0.5,$K$68:$DL$122,ROWS($B$12:$B17)+2,FALSE)","v":1222},{"$f":"HLOOKUP(BT$7+0.5,$K$68:$DL$122,ROWS($B$12:$B17)+2,FALSE)","v":1343},{"$f":"HLOOKUP(BU$7+0.5,$K$68:$DL$122,ROWS($B$12:$B17)+2,FALSE)","v":1457},{"$f":"HLOOKUP(BV$7+0.5,$K$68:$DL$122,ROWS($B$12:$B17)+2,FALSE)","v":4333},{"$f":"HLOOKUP(BW$7+0.5,$K$68:$DL$122,ROWS($B$12:$B17)+2,FALSE)","v":3042},{"$f":"HLOOKUP(BX$7+0.5,$K$68:$DL$122,ROWS($B$12:$B17)+2,FALSE)","v":2683},{"$f":"HLOOKUP(BY$7+0.5,$K$68:$DL$122,ROWS($B$12:$B17)+2,FALSE)","v":1560},{"$f":"HLOOKUP(BZ$7+0.5,$K$68:$DL$122,ROWS($B$12:$B17)+2,FALSE)","v":3496},{"$f":"HLOOKUP(CA$7+0.5,$K$68:$DL$122,ROWS($B$12:$B17)+2,FALSE)","v":1297},{"$f":"HLOOKUP(CB$7+0.5,$K$68:$DL$122,ROWS($B$12:$B17)+2,FALSE)","v":1701},{"$f":"HLOOKUP(CC$7+0.5,$K$68:$DL$122,ROWS($B$12:$B17)+2,FALSE)","v":1256},{"$f":"HLOOKUP(CD$7+0.5,$K$68:$DL$122,ROWS($B$12:$B17)+2,FALSE)","v":507},{"$f":"HLOOKUP(CE$7+0.5,$K$68:$DL$122,ROWS($B$12:$B17)+2,FALSE)","v":1751},{"$f":"HLOOKUP(CF$7+0.5,$K$68:$DL$122,ROWS($B$12:$B17)+2,FALSE)","v":1175},{"$f":"HLOOKUP(CG$7+0.5,$K$68:$DL$122,ROWS($B$12:$B17)+2,FALSE)","v":1924},{"$f":"HLOOKUP(CH$7+0.5,$K$68:$DL$122,ROWS($B$12:$B17)+2,FALSE)","v":2069},{"$f":"HLOOKUP(CI$7+0.5,$K$68:$DL$122,ROWS($B$12:$B17)+2,FALSE)","v":4117},{"$f":"HLOOKUP(CJ$7+0.5,$K$68:$DL$122,ROWS($B$12:$B17)+2,FALSE)","v":1375},{"$f":"HLOOKUP(CK$7+0.5,$K$68:$DL$122,ROWS($B$12:$B17)+2,FALSE)","v":896},{"$f":"HLOOKUP(CL$7+0.5,$K$68:$DL$122,ROWS($B$12:$B17)+2,FALSE)","v":1995},{"$f":"HLOOKUP(CM$7+0.5,$K$68:$DL$122,ROWS($B$12:$B17)+2,FALSE)","v":1492},{"$f":"HLOOKUP(CN$7+0.5,$K$68:$DL$122,ROWS($B$12:$B17)+2,FALSE)","v":821},{"$f":"HLOOKUP(CO$7+0.5,$K$68:$DL$122,ROWS($B$12:$B17)+2,FALSE)","v":5100},{"$f":"HLOOKUP(CP$7+0.5,$K$68:$DL$122,ROWS($B$12:$B17)+2,FALSE)","v":869},{"$f":"HLOOKUP(CQ$7+0.5,$K$68:$DL$122,ROWS($B$12:$B17)+2,FALSE)","v":2169},{"$f":"HLOOKUP(CR$7+0.5,$K$68:$DL$122,ROWS($B$12:$B17)+2,FALSE)","v":2207},{"$f":"HLOOKUP(CS$7+0.5,$K$68:$DL$122,ROWS($B$12:$B17)+2,FALSE)","v":3287},{"$f":"HLOOKUP(CT$7+0.5,$K$68:$DL$122,ROWS($B$12:$B17)+2,FALSE)","v":2611},{"$f":"HLOOKUP(CU$7+0.5,$K$68:$DL$122,ROWS($B$12:$B17)+2,FALSE)","v":898},{"$f":"HLOOKUP(CV$7+0.5,$K$68:$DL$122,ROWS($B$12:$B17)+2,FALSE)","v":3555},{"$f":"HLOOKUP(CW$7+0.5,$K$68:$DL$122,ROWS($B$12:$B17)+2,FALSE)","v":1763},{"$f":"HLOOKUP(CX$7+0.5,$K$68:$DL$122,ROWS($B$12:$B17)+2,FALSE)","v":2845},{"$f":"HLOOKUP(CY$7+0.5,$K$68:$DL$122,ROWS($B$12:$B17)+2,FALSE)","v":2017},{"$f":"HLOOKUP(CZ$7+0.5,$K$68:$DL$122,ROWS($B$12:$B17)+2,FALSE)","v":545},{"$f":"HLOOKUP(DA$7+0.5,$K$68:$DL$122,ROWS($B$12:$B17)+2,FALSE)","v":2383},{"$f":"HLOOKUP(DB$7+0.5,$K$68:$DL$122,ROWS($B$12:$B17)+2,FALSE)","v":686},{"$f":"HLOOKUP(DC$7+0.5,$K$68:$DL$122,ROWS($B$12:$B17)+2,FALSE)","v":2325},{"$f":"HLOOKUP(DD$7+0.5,$K$68:$DL$122,ROWS($B$12:$B17)+2,FALSE)","v":5877},{"$f":"HLOOKUP(DE$7+0.5,$K$68:$DL$122,ROWS($B$12:$B17)+2,FALSE)","v":2725},{"$f":"HLOOKUP(DF$7+0.5,$K$68:$DL$122,ROWS($B$12:$B17)+2,FALSE)","v":504},{"$f":"HLOOKUP(DG$7+0.5,$K$68:$DL$122,ROWS($B$12:$B17)+2,FALSE)","v":2373},{"$f":"HLOOKUP(DH$7+0.5,$K$68:$DL$122,ROWS($B$12:$B17)+2,FALSE)","v":6266},{"$f":"HLOOKUP(DI$7+0.5,$K$68:$DL$122,ROWS($B$12:$B17)+2,FALSE)","v":463},{"$f":"HLOOKUP(DJ$7+0.5,$K$68:$DL$122,ROWS($B$12:$B17)+2,FALSE)","v":1495},{"$f":"HLOOKUP(DK$7+0.5,$K$68:$DL$122,ROWS($B$12:$B17)+2,FALSE)","v":1810},{"$f":"HLOOKUP(DL$7+0.5,$K$68:$DL$122,ROWS($B$12:$B17)+2,FALSE)","v":635}]
[null,null,"Colorado",5048443,4037,4048042,22888,763233,18937,2.8926859371189578E-2,{"$f":"HLOOKUP(K$7,$K$68:$DL$122,ROWS($B$12:$B18)+2,FALSE)","v":202124},{"$f":"HLOOKUP(L$7,$K$68:$DL$122,ROWS($B$12:$B18)+2,FALSE)","v":2340},{"$f":"HLOOKUP(M$7,$K$68:$DL$122,ROWS($B$12:$B18)+2,FALSE)","v":3191},{"$f":"HLOOKUP(N$7,$K$68:$DL$122,ROWS($B$12:$B18)+2,FALSE)","v":12338},{"$f":"HLOOKUP(O$7,$K$68:$DL$122,ROWS($B$12:$B18)+2,FALSE)","v":1615},{"$f":"HLOOKUP(P$7,$K$68:$DL$122,ROWS($B$12:$B18)+2,FALSE)","v":23234},{"$f":"HLOOKUP(Q$7,$K$68:$DL$122,ROWS($B$12:$B18)+2,FALSE)","v":"N/A"},{"$f":"HLOOKUP(R$7,$K$68:$DL$122,ROWS($B$12:$B18)+2,FALSE)","v":1567},{"$f":"HLOOKUP(S$7,$K$68:$DL$122,ROWS($B$12:$B18)+2,FALSE)","v":501},{"$f":"HLOOKUP(T$7,$K$68:$DL$122,ROWS($B$12:$B18)+2,FALSE)","v":298},{"$f":"HLOOKUP(U$7,$K$68:$DL$122,ROWS($B$12:$B18)+2,FALSE)","v":8075},{"$f":"HLOOKUP(V$7,$K$68:$DL$122,ROWS($B$12:$B18)+2,FALSE)","v":3250},{"$f":"HLOOKUP(W$7,$K$68:$DL$122,ROWS($B$12:$B18)+2,FALSE)","v":1852},{"$f":"HLOOKUP(X$7,$K$68:$DL$122,ROWS($B$12:$B18)+2,FALSE)","v":1578},{"$f":"HLOOKUP(Y$7,$K$68:$DL$122,ROWS($B$12:$B18)+2,FALSE)","v":6027},{"$f":"HLOOKUP(Z$7,$K$68:$DL$122,ROWS($B$12:$B18)+2,FALSE)","v":2116},{"$f":"HLOOKUP(AA$7,$K$68:$DL$122,ROWS($B$12:$B18)+2,FALSE)","v":3510},{"$f":"HLOOKUP(AB$7,$K$68:$DL$122,ROWS($B$12:$B18)+2,FALSE)","v":3718},{"$f":"HLOOKUP(AC$7,$K$68:$DL$122,ROWS($B$12:$B18)+2,FALSE)","v":1361},{"$f":"HLOOKUP(AD$7,$K$68:$DL$122,ROWS($B$12:$B18)+2,FALSE)","v":908},{"$f":"HLOOKUP(AE$7,$K$68:$DL$122,ROWS($B$12:$B18)+2,FALSE)","v":1358},{"$f":"HLOOKUP(AF$7,$K$68:$DL$122,ROWS($B$12:$B18)+2,FALSE)","v":3303},{"$f":"HLOOKUP(AG$7,$K$68:$DL$122,ROWS($B$12:$B18)+2,FALSE)","v":2157},{"$f":"HLOOKUP(AH$7,$K$68:$DL$122,ROWS($B$12:$B18)+2,FALSE)","v":3225},{"$f":"HLOOKUP(AI$7,$K$68:$DL$122,ROWS($B$12:$B18)+2,FALSE)","v":3055},{"$f":"HLOOKUP(AJ$7,$K$68:$DL$122,ROWS($B$12:$B18)+2,FALSE)","v":879},{"$f":"HLOOKUP(AK$7,$K$68:$DL$122,ROWS($B$12:$B18)+2,FALSE)","v":4552},{"$f":"HLOOKUP(AL$7,$K$68:$DL$122,ROWS($B$12:$B18)+2,FALSE)","v":4079},{"$f":"HLOOKUP(AM$7,$K$68:$DL$122,ROWS($B$12:$B18)+2,FALSE)","v":4582},{"$f":"HLOOKUP(AN$7,$K$68:$DL$122,ROWS($B$12:$B18)+2,FALSE)","v":4061},{"$f":"HLOOKUP(AO$7,$K$68:$DL$122,ROWS($B$12:$B18)+2,FALSE)","v":489},{"$f":"HLOOKUP(AP$7,$K$68:$DL$122,ROWS($B$12:$B18)+2,FALSE)","v":2863},{"$f":"HLOOKUP(AQ$7,$K$68:$DL$122,ROWS($B$12:$B18)+2,FALSE)","v":8797},{"$f":"HLOOKUP(AR$7,$K$68:$DL$122,ROWS($B$12:$B18)+2,FALSE)","v":3998},{"$f":"HLOOKUP(AS$7,$K$68:$DL$122,ROWS($B$12:$B18)+2,FALSE)","v":4756},{"$f":"HLOOKUP(AT$7,$K$68:$DL$122,ROWS($B$12:$B18)+2,FALSE)","v":2249},{"$f":"HLOOKUP(AU$7,$K$68:$DL$122,ROWS($B$12:$B18)+2,FALSE)","v":5527},{"$f":"HLOOKUP(AV$7,$K$68:$DL$122,ROWS($B$12:$B18)+2,FALSE)","v":3824},{"$f":"HLOOKUP(AW$7,$K$68:$DL$122,ROWS($B$12:$B18)+2,FALSE)","v":5543},{"$f":"HLOOKUP(AX$7,$K$68:$DL$122,ROWS($B$12:$B18)+2,FALSE)","v":3348},{"$f":"HLOOKUP(AY$7,$K$68:$DL$122,ROWS($B$12:$B18)+2,FALSE)","v":435},{"$f":"HLOOKUP(AZ$7,$K$68:$DL$122,ROWS($B$12:$B18)+2,FALSE)","v":718},{"$f":"HLOOKUP(BA$7,$K$68:$DL$122,ROWS($B$12:$B18)+2,FALSE)","v":1340},{"$f":"HLOOKUP(BB$7,$K$68:$DL$122,ROWS($B$12:$B18)+2,FALSE)","v":3193},{"$f":"HLOOKUP(BC$7,$K$68:$DL$122,ROWS($B$12:$B18)+2,FALSE)","v":22390},{"$f":"HLOOKUP(BD$7,$K$68:$DL$122,ROWS($B$12:$B18)+2,FALSE)","v":3856},{"$f":"HLOOKUP(BE$7,$K$68:$DL$122,ROWS($B$12:$B18)+2,FALSE)","v":914},{"$f":"HLOOKUP(BF$7,$K$68:$DL$122,ROWS($B$12:$B18)+2,FALSE)","v":6281},{"$f":"HLOOKUP(BG$7,$K$68:$DL$122,ROWS($B$12:$B18)+2,FALSE)","v":5524},{"$f":"HLOOKUP(BH$7,$K$68:$DL$122,ROWS($B$12:$B18)+2,FALSE)","v":412},{"$f":"HLOOKUP(BI$7,$K$68:$DL$122,ROWS($B$12:$B18)+2,FALSE)","v":3995},{"$f":"HLOOKUP(BJ$7,$K$68:$DL$122,ROWS($B$12:$B18)+2,FALSE)","v":2942},{"$f":"HLOOKUP(BK$7,$K$68:$DL$122,ROWS($B$12:$B18)+2,FALSE)","v":476},{"$f":"HLOOKUP(BL$7+0.5,$K$68:$DL$122,ROWS($B$12:$B18)+2,FALSE)","v":11431},{"$f":"HLOOKUP(BM$7+0.5,$K$68:$DL$122,ROWS($B$12:$B18)+2,FALSE)","v":1681},{"$f":"HLOOKUP(BN$7+0.5,$K$68:$DL$122,ROWS($B$12:$B18)+2,FALSE)","v":1622},{"$f":"HLOOKUP(BO$7+0.5,$K$68:$DL$122,ROWS($B$12:$B18)+2,FALSE)","v":3704},{"$f":"HLOOKUP(BP$7+0.5,$K$68:$DL$122,ROWS($B$12:$B18)+2,FALSE)","v":1191},{"$f":"HLOOKUP(BQ$7+0.5,$K$68:$DL$122,ROWS($B$12:$B18)+2,FALSE)","v":3742},{"$f":"HLOOKUP(BR$7+0.5,$K$68:$DL$122,ROWS($B$12:$B18)+2,FALSE)","v":"N/A"},{"$f":"HLOOKUP(BS$7+0.5,$K$68:$DL$122,ROWS($B$12:$B18)+2,FALSE)","v":838},{"$f":"HLOOKUP(BT$7+0.5,$K$68:$DL$122,ROWS($B$12:$B18)+2,FALSE)","v":556},{"$f":"HLOOKUP(BU$7+0.5,$K$68:$DL$122,ROWS($B$12:$B18)+2,FALSE)","v":301},{"$f":"HLOOKUP(BV$7+0.5,$K$68:$DL$122,ROWS($B$12:$B18)+2,FALSE)","v":2090},{"$f":"HLOOKUP(BW$7+0.5,$K$68:$DL$122,ROWS($B$12:$B18)+2,FALSE)","v":1254},{"$f":"HLOOKUP(BX$7+0.5,$K$68:$DL$122,ROWS($B$12:$B18)+2,FALSE)","v":832},{"$f":"HLOOKUP(BY$7+0.5,$K$68:$DL$122,ROWS($B$12:$B18)+2,FALSE)","v":766},{"$f":"HLOOKUP(BZ$7+0.5,$K$68:$DL$122,ROWS($B$12:$B18)+2,FALSE)","v":1536},{"$f":"HLOOKUP(CA$7+0.5,$K$68:$DL$122,ROWS($B$12:$B18)+2,FALSE)","v":1289},{"$f":"HLOOKUP(CB$7+0.5,$K$68:$DL$122,ROWS($B$12:$B18)+2,FALSE)","v":1495},{"$f":"HLOOKUP(CC$7+0.5,$K$68:$DL$122,ROWS($B$12:$B18)+2,FALSE)","v":1495},{"$f":"HLOOKUP(CD$7+0.5,$K$68:$DL$122,ROWS($B$12:$B18)+2,FALSE)","v":1028},{"$f":"HLOOKUP(CE$7+0.5,$K$68:$DL$122,ROWS($B$12:$B18)+2,FALSE)","v":550},{"$f":"HLOOKUP(CF$7+0.5,$K$68:$DL$122,ROWS($B$12:$B18)+2,FALSE)","v":1235},{"$f":"HLOOKUP(CG$7+0.5,$K$68:$DL$122,ROWS($B$12:$B18)+2,FALSE)","v":1416},{"$f":"HLOOKUP(CH$7+0.5,$K$68:$DL$122,ROWS($B$12:$B18)+2,FALSE)","v":1085},{"$f":"HLOOKUP(CI$7+0.5,$K$68:$DL$122,ROWS($B$12:$B18)+2,FALSE)","v":1061},{"$f":"HLOOKUP(CJ$7+0.5,$K$68:$DL$122,ROWS($B$12:$B18)+2,FALSE)","v":1092},{"$f":"HLOOKUP(CK$7+0.5,$K$68:$DL$122,ROWS($B$12:$B18)+2,FALSE)","v":621},{"$f":"HLOOKUP(CL$7+0.5,$K$68:$DL$122,ROWS($B$12:$B18)+2,FALSE)","v":1382},{"$f":"HLOOKUP(CM$7+0.5,$K$68:$DL$122,ROWS($B$12:$B18)+2,FALSE)","v":1579},{"$f":"HLOOKUP(CN$7+0.5,$K$68:$DL$122,ROWS($B$12:$B18)+2,FALSE)","v":1961},{"$f":"HLOOKUP(CO$7+0.5,$K$68:$DL$122,ROWS($B$12:$B18)+2,FALSE)","v":1432},{"$f":"HLOOKUP(CP$7+0.5,$K$68:$DL$122,ROWS($B$12:$B18)+2,FALSE)","v":396},{"$f":"HLOOKUP(CQ$7+0.5,$K$68:$DL$122,ROWS($B$12:$B18)+2,FALSE)","v":1788},{"$f":"HLOOKUP(CR$7+0.5,$K$68:$DL$122,ROWS($B$12:$B18)+2,FALSE)","v":2308},{"$f":"HLOOKUP(CS$7+0.5,$K$68:$DL$122,ROWS($B$12:$B18)+2,FALSE)","v":1621},{"$f":"HLOOKUP(CT$7+0.5,$K$68:$DL$122,ROWS($B$12:$B18)+2,FALSE)","v":1686},{"$f":"HLOOKUP(CU$7+0.5,$K$68:$DL$122,ROWS($B$12:$B18)+2,FALSE)","v":1245},{"$f":"HLOOKUP(CV$7+0.5,$K$68:$DL$122,ROWS($B$12:$B18)+2,FALSE)","v":2388},{"$f":"HLOOKUP(CW$7+0.5,$K$68:$DL$122,ROWS($B$12:$B18)+2,FALSE)","v":2137},{"$f":"HLOOKUP(CX$7+0.5,$K$68:$DL$122,ROWS($B$12:$B18)+2,FALSE)","v":2105},{"$f":"HLOOKUP(CY$7+0.5,$K$68:$DL$122,ROWS($B$12:$B18)+2,FALSE)","v":1302},{"$f":"HLOOKUP(CZ$7+0.5,$K$68:$DL$122,ROWS($B$12:$B18)+2,FALSE)","v":560},{"$f":"HLOOKUP(DA$7+0.5,$K$68:$DL$122,ROWS($B$12:$B18)+2,FALSE)","v":480},{"$f":"HLOOKUP(DB$7+0.5,$K$68:$DL$122,ROWS($B$12:$B18)+2,FALSE)","v":1037},{"$f":"HLOOKUP(DC$7+0.5,$K$68:$DL$122,ROWS($B$12:$B18)+2,FALSE)","v":1472},{"$f":"HLOOKUP(DD$7+0.5,$K$68:$DL$122,ROWS($B$12:$B18)+2,FALSE)","v":4287},{"$f":"HLOOKUP(DE$7+0.5,$K$68:$DL$122,ROWS($B$12:$B18)+2,FALSE)","v":1446},{"$f":"HLOOKUP(DF$7+0.5,$K$68:$DL$122,ROWS($B$12:$B18)+2,FALSE)","v":772},{"$f":"HLOOKUP(DG$7+0.5,$K$68:$DL$122,ROWS($B$12:$B18)+2,FALSE)","v":2671},{"$f":"HLOOKUP(DH$7+0.5,$K$68:$DL$122,ROWS($B$12:$B18)+2,FALSE)","v":2092},{"$f":"HLOOKUP(DI$7+0.5,$K$68:$DL$122,ROWS($B$12:$B18)+2,FALSE)","v":490},{"$f":"HLOOKUP(DJ$7+0.5,$K$68:$DL$122,ROWS($B$12:$B18)+2,FALSE)","v":1774},{"$f":"HLOOKUP(DK$7+0.5,$K$68:$DL$122,ROWS($B$12:$B18)+2,FALSE)","v":923},{"$f":"HLOOKUP(DL$7+0.5,$K$68:$DL$122,ROWS($B$12:$B18)+2,FALSE)","v":556}]
[null,null,"Connecticut",3548667,2644,3139496,16755,316883,15392,1.0232967380216092E-2,{"$f":"HLOOKUP(K$7,$K$68:$DL$122,ROWS($B$12:$B19)+2,FALSE)","v":71502},{"$f":"HLOOKUP(L$7,$K$68:$DL$122,ROWS($B$12:$B19)+2,FALSE)","v":101},{"$f":"HLOOKUP(M$7,$K$68:$DL$122,ROWS($B$12:$B19)+2,FALSE)","v":180},{"$f":"HLOOKUP(N$7,$K$68:$DL$122,ROWS($B$12:$B19)+2,FALSE)","v":1387},{"$f":"HLOOKUP(O$7,$K$68:$DL$122,ROWS($B$12:$B19)+2,FALSE)","v":84},{"$f":"HLOOKUP(P$7,$K$68:$DL$122,ROWS($B$12:$B19)+2,FALSE)","v":3699},{"$f":"HLOOKUP(Q$7,$K$68:$DL$122,ROWS($B$12:$B19)+2,FALSE)","v":1502},{"$f":"HLOOKUP(R$7,$K$68:$DL$122,ROWS($B$12:$B19)+2,FALSE)","v":"N/A"},{"$f":"HLOOKUP(S$7,$K$68:$DL$122,ROWS($B$12:$B19)+2,FALSE)","v":62},{"$f":"HLOOKUP(T$7,$K$68:$DL$122,ROWS($B$12:$B19)+2,FALSE)","v":607},{"$f":"HLOOKUP(U$7,$K$68:$DL$122,ROWS($B$12:$B19)+2,FALSE)","v":4771},{"$f":"HLOOKUP(V$7,$K$68:$DL$122,ROWS($B$12:$B19)+2,FALSE)","v":2000},{"$f":"HLOOKUP(W$7,$K$68:$DL$122,ROWS($B$12:$B19)+2,FALSE)","v":587},{"$f":"HLOOKUP(X$7,$K$68:$DL$122,ROWS($B$12:$B19)+2,FALSE)","v":133},{"$f":"HLOOKUP(Y$7,$K$68:$DL$122,ROWS($B$12:$B19)+2,FALSE)","v":1843},{"$f":"HLOOKUP(Z$7,$K$68:$DL$122,ROWS($B$12:$B19)+2,FALSE)","v":168},{"$f":"HLOOKUP(AA$7,$K$68:$DL$122,ROWS($B$12:$B19)+2,FALSE)","v":67},{"$f":"HLOOKUP(AB$7,$K$68:$DL$122,ROWS($B$12:$B19)+2,FALSE)","v":16},{"$f":"HLOOKUP(AC$7,$K$68:$DL$122,ROWS($B$12:$B19)+2,FALSE)","v":0},{"$f":"HLOOKUP(AD$7,$K$68:$DL$122,ROWS($B$12:$B19)+2,FALSE)","v":315},{"$f":"HLOOKUP(AE$7,$K$68:$DL$122,ROWS($B$12:$B19)+2,FALSE)","v":259},{"$f":"HLOOKUP(AF$7,$K$68:$DL$122,ROWS($B$12:$B19)+2,FALSE)","v":1267},{"$f":"HLOOKUP(AG$7,$K$68:$DL$122,ROWS($B$12:$B19)+2,FALSE)","v":8691},{"$f":"HLOOKUP(AH$7,$K$68:$DL$122,ROWS($B$12:$B19)+2,FALSE)","v":692},{"$f":"HLOOKUP(AI$7,$K$68:$DL$122,ROWS($B$12:$B19)+2,FALSE)","v":76},{"$f":"HLOOKUP(AJ$7,$K$68:$DL$122,ROWS($B$12:$B19)+2,FALSE)","v":69},{"$f":"HLOOKUP(AK$7,$K$68:$DL$122,ROWS($B$12:$B19)+2,FALSE)","v":365},{"$f":"HLOOKUP(AL$7,$K$68:$DL$122,ROWS($B$12:$B19)+2,FALSE)","v":206},{"$f":"HLOOKUP(AM$7,$K$68:$DL$122,ROWS($B$12:$B19)+2,FALSE)","v":62},{"$f":"HLOOKUP(AN$7,$K$68:$DL$122,ROWS($B$12:$B19)+2,FALSE)","v":160},{"$f":"HLOOKUP(AO$7,$K$68:$DL$122,ROWS($B$12:$B19)+2,FALSE)","v":1221},{"$f":"HLOOKUP(AP$7,$K$68:$DL$122,ROWS($B$12:$B19)+2,FALSE)","v":3809},{"$f":"HLOOKUP(AQ$7,$K$68:$DL$122,ROWS($B$12:$B19)+2,FALSE)","v":265},{"$f":"HLOOKUP(AR$7,$K$68:$DL$122,ROWS($B$12:$B19)+2,FALSE)","v":20015},{"$f":"HLOOKUP(AS$7,$K$68:$DL$122,ROWS($B$12:$B19)+2,FALSE)","v":1029},{"$f":"HLOOKUP(AT$7,$K$68:$DL$122,ROWS($B$12:$B19)+2,FALSE)","v":0},{"$f":"HLOOKUP(AU$7,$K$68:$DL$122,ROWS($B$12:$B19)+2,FALSE)","v":1383},{"$f":"HLOOKUP(AV$7,$K$68:$DL$122,ROWS($B$12:$B19)+2,FALSE)","v":217},{"$f":"HLOOKUP(AW$7,$K$68:$DL$122,ROWS($B$12:$B19)+2,FALSE)","v":117},{"$f":"HLOOKUP(AX$7,$K$68:$DL$122,ROWS($B$12:$B19)+2,FALSE)","v":3668},{"$f":"HLOOKUP(AY$7,$K$68:$DL$122,ROWS($B$12:$B19)+2,FALSE)","v":1488},{"$f":"HLOOKUP(AZ$7,$K$68:$DL$122,ROWS($B$12:$B19)+2,FALSE)","v":997},{"$f":"HLOOKUP(BA$7,$K$68:$DL$122,ROWS($B$12:$B19)+2,FALSE)","v":0},{"$f":"HLOOKUP(BB$7,$K$68:$DL$122,ROWS($B$12:$B19)+2,FALSE)","v":123},{"$f":"HLOOKUP(BC$7,$K$68:$DL$122,ROWS($B$12:$B19)+2,FALSE)","v":1214},{"$f":"HLOOKUP(BD$7,$K$68:$DL$122,ROWS($B$12:$B19)+2,FALSE)","v":398},{"$f":"HLOOKUP(BE$7,$K$68:$DL$122,ROWS($B$12:$B19)+2,FALSE)","v":608},{"$f":"HLOOKUP(BF$7,$K$68:$DL$122,ROWS($B$12:$B19)+2,FALSE)","v":2555},{"$f":"HLOOKUP(BG$7,$K$68:$DL$122,ROWS($B$12:$B19)+2,FALSE)","v":2255},{"$f":"HLOOKUP(BH$7,$K$68:$DL$122,ROWS($B$12:$B19)+2,FALSE)","v":46},{"$f":"HLOOKUP(BI$7,$K$68:$DL$122,ROWS($B$12:$B19)+2,FALSE)","v":660},{"$f":"HLOOKUP(BJ$7,$K$68:$DL$122,ROWS($B$12:$B19)+2,FALSE)","v":65},{"$f":"HLOOKUP(BK$7,$K$68:$DL$122,ROWS($B$12:$B19)+2,FALSE)","v":2105},{"$f":"HLOOKUP(BL$7+0.5,$K$68:$DL$122,ROWS($B$12:$B19)+2,FALSE)","v":6552},{"$f":"HLOOKUP(BM$7+0.5,$K$68:$DL$122,ROWS($B$12:$B19)+2,FALSE)","v":120},{"$f":"HLOOKUP(BN$7+0.5,$K$68:$DL$122,ROWS($B$12:$B19)+2,FALSE)","v":299},{"$f":"HLOOKUP(BO$7+0.5,$K$68:$DL$122,ROWS($B$12:$B19)+2,FALSE)","v":939},{"$f":"HLOOKUP(BP$7+0.5,$K$68:$DL$122,ROWS($B$12:$B19)+2,FALSE)","v":178},{"$f":"HLOOKUP(BQ$7+0.5,$K$68:$DL$122,ROWS($B$12:$B19)+2,FALSE)","v":1455},{"$f":"HLOOKUP(BR$7+0.5,$K$68:$DL$122,ROWS($B$12:$B19)+2,FALSE)","v":618},{"$f":"HLOOKUP(BS$7+0.5,$K$68:$DL$122,ROWS($B$12:$B19)+2,FALSE)","v":"N/A"},{"$f":"HLOOKUP(BT$7+0.5,$K$68:$DL$122,ROWS($B$12:$B19)+2,FALSE)","v":132},{"$f":"HLOOKUP(BU$7+0.5,$K$68:$DL$122,ROWS($B$12:$B19)+2,FALSE)","v":373},{"$f":"HLOOKUP(BV$7+0.5,$K$68:$DL$122,ROWS($B$12:$B19)+2,FALSE)","v":1275},{"$f":"HLOOKUP(BW$7+0.5,$K$68:$DL$122,ROWS($B$12:$B19)+2,FALSE)","v":988},{"$f":"HLOOKUP(BX$7+0.5,$K$68:$DL$122,ROWS($B$12:$B19)+2,FALSE)","v":523},{"$f":"HLOOKUP(BY$7+0.5,$K$68:$DL$122,ROWS($B$12:$B19)+2,FALSE)","v":224},{"$f":"HLOOKUP(BZ$7+0.5,$K$68:$DL$122,ROWS($B$12:$B19)+2,FALSE)","v":965},{"$f":"HLOOKUP(CA$7+0.5,$K$68:$DL$122,ROWS($B$12:$B19)+2,FALSE)","v":214},{"$f":"HLOOKUP(CB$7+0.5,$K$68:$DL$122,ROWS($B$12:$B19)+2,FALSE)","v":120},{"$f":"HLOOKUP(CC$7+0.5,$K$68:$DL$122,ROWS($B$12:$B19)+2,FALSE)","v":36},{"$f":"HLOOKUP(CD$7+0.5,$K$68:$DL$122,ROWS($B$12:$B19)+2,FALSE)","v":198},{"$f":"HLOOKUP(CE$7+0.5,$K$68:$DL$122,ROWS($B$12:$B19)+2,FALSE)","v":238},{"$f":"HLOOKUP(CF$7+0.5,$K$68:$DL$122,ROWS($B$12:$B19)+2,FALSE)","v":193},{"$f":"HLOOKUP(CG$7+0.5,$K$68:$DL$122,ROWS($B$12:$B19)+2,FALSE)","v":744},{"$f":"HLOOKUP(CH$7+0.5,$K$68:$DL$122,ROWS($B$12:$B19)+2,FALSE)","v":1998},{"$f":"HLOOKUP(CI$7+0.5,$K$68:$DL$122,ROWS($B$12:$B19)+2,FALSE)","v":736},{"$f":"HLOOKUP(CJ$7+0.5,$K$68:$DL$122,ROWS($B$12:$B19)+2,FALSE)","v":120},{"$f":"HLOOKUP(CK$7+0.5,$K$68:$DL$122,ROWS($B$12:$B19)+2,FALSE)","v":116},{"$f":"HLOOKUP(CL$7+0.5,$K$68:$DL$122,ROWS($B$12:$B19)+2,FALSE)","v":297},{"$f":"HLOOKUP(CM$7+0.5,$K$68:$DL$122,ROWS($B$12:$B19)+2,FALSE)","v":277},{"$f":"HLOOKUP(CN$7+0.5,$K$68:$DL$122,ROWS($B$12:$B19)+2,FALSE)","v":103},{"$f":"HLOOKUP(CO$7+0.5,$K$68:$DL$122,ROWS($B$12:$B19)+2,FALSE)","v":189},{"$f":"HLOOKUP(CP$7+0.5,$K$68:$DL$122,ROWS($B$12:$B19)+2,FALSE)","v":803},{"$f":"HLOOKUP(CQ$7+0.5,$K$68:$DL$122,ROWS($B$12:$B19)+2,FALSE)","v":1324},{"$f":"HLOOKUP(CR$7+0.5,$K$68:$DL$122,ROWS($B$12:$B19)+2,FALSE)","v":225},{"$f":"HLOOKUP(CS$7+0.5,$K$68:$DL$122,ROWS($B$12:$B19)+2,FALSE)","v":4005},{"$f":"HLOOKUP(CT$7+0.5,$K$68:$DL$122,ROWS($B$12:$B19)+2,FALSE)","v":593},{"$f":"HLOOKUP(CU$7+0.5,$K$68:$DL$122,ROWS($B$12:$B19)+2,FALSE)","v":198},{"$f":"HLOOKUP(CV$7+0.5,$K$68:$DL$122,ROWS($B$12:$B19)+2,FALSE)","v":791},{"$f":"HLOOKUP(CW$7+0.5,$K$68:$DL$122,ROWS($B$12:$B19)+2,FALSE)","v":211},{"$f":"HLOOKUP(CX$7+0.5,$K$68:$DL$122,ROWS($B$12:$B19)+2,FALSE)","v":161},{"$f":"HLOOKUP(CY$7+0.5,$K$68:$DL$122,ROWS($B$12:$B19)+2,FALSE)","v":1639},{"$f":"HLOOKUP(CZ$7+0.5,$K$68:$DL$122,ROWS($B$12:$B19)+2,FALSE)","v":645},{"$f":"HLOOKUP(DA$7+0.5,$K$68:$DL$122,ROWS($B$12:$B19)+2,FALSE)","v":476},{"$f":"HLOOKUP(DB$7+0.5,$K$68:$DL$122,ROWS($B$12:$B19)+2,FALSE)","v":198},{"$f":"HLOOKUP(DC$7+0.5,$K$68:$DL$122,ROWS($B$12:$B19)+2,FALSE)","v":141},{"$f":"HLOOKUP(DD$7+0.5,$K$68:$DL$122,ROWS($B$12:$B19)+2,FALSE)","v":646},{"$f":"HLOOKUP(DE$7+0.5,$K$68:$DL$122,ROWS($B$12:$B19)+2,FALSE)","v":359},{"$f":"HLOOKUP(DF$7+0.5,$K$68:$DL$122,ROWS($B$12:$B19)+2,FALSE)","v":354},{"$f":"HLOOKUP(DG$7+0.5,$K$68:$DL$122,ROWS($B$12:$B19)+2,FALSE)","v":1053},{"$f":"HLOOKUP(DH$7+0.5,$K$68:$DL$122,ROWS($B$12:$B19)+2,FALSE)","v":1469},{"$f":"HLOOKUP(DI$7+0.5,$K$68:$DL$122,ROWS($B$12:$B19)+2,FALSE)","v":77},{"$f":"HLOOKUP(DJ$7+0.5,$K$68:$DL$122,ROWS($B$12:$B19)+2,FALSE)","v":898},{"$f":"HLOOKUP(DK$7+0.5,$K$68:$DL$122,ROWS($B$12:$B19)+2,FALSE)","v":110},{"$f":"HLOOKUP(DL$7+0.5,$K$68:$DL$122,ROWS($B$12:$B19)+2,FALSE)","v":1756}]
[null,null,"Delaware",897187,1369,775414,8584,83156,6851,4.8532962686063056E-3,{"$f":"HLOOKUP(K$7,$K$68:$DL$122,ROWS($B$12:$B20)+2,FALSE)","v":33912},{"$f":"HLOOKUP(L$7,$K$68:$DL$122,ROWS($B$12:$B20)+2,FALSE)","v":81},{"$f":"HLOOKUP(M$7,$K$68:$DL$122,ROWS($B$12:$B20)+2,FALSE)","v":329},{"$f":"HLOOKUP(N$7,$K$68:$DL$122,ROWS($B$12:$B20)+2,FALSE)","v":541},{"$f":"HLOOKUP(O$7,$K$68:$DL$122,ROWS($B$12:$B20)+2,FALSE)","v":0},{"$f":"HLOOKUP(P$7,$K$68:$DL$122,ROWS($B$12:$B20)+2,FALSE)","v":699},{"$f":"HLOOKUP(Q$7,$K$68:$DL$122,ROWS($B$12:$B20)+2,FALSE)","v":169},{"$f":"HLOOKUP(R$7,$K$68:$DL$122,ROWS($B$12:$B20)+2,FALSE)","v":66},{"$f":"HLOOKUP(S$7,$K$68:$DL$122,ROWS($B$12:$B20)+2,FALSE)","v":"N/A"},{"$f":"HLOOKUP(T$7,$K$68:$DL$122,ROWS($B$12:$B20)+2,FALSE)","v":154},{"$f":"HLOOKUP(U$7,$K$68:$DL$122,ROWS($B$12:$B20)+2,FALSE)","v":810},{"$f":"HLOOKUP(V$7,$K$68:$DL$122,ROWS($B$12:$B20)+2,FALSE)","v":639},{"$f":"HLOOKUP(W$7,$K$68:$DL$122,ROWS($B$12:$B20)+2,FALSE)","v":201},{"$f":"HLOOKUP(X$7,$K$68:$DL$122,ROWS($B$12:$B20)+2,FALSE)","v":441},{"$f":"HLOOKUP(Y$7,$K$68:$DL$122,ROWS($B$12:$B20)+2,FALSE)","v":34},{"$f":"HLOOKUP(Z$7,$K$68:$DL$122,ROWS($B$12:$B20)+2,FALSE)","v":210},{"$f":"HLOOKUP(AA$7,$K$68:$DL$122,ROWS($B$12:$B20)+2,FALSE)","v":0},{"$f":"HLOOKUP(AB$7,$K$68:$DL$122,ROWS($B$12:$B20)+2,FALSE)","v":7},{"$f":"HLOOKUP(AC$7,$K$68:$DL$122,ROWS($B$12:$B20)+2,FALSE)","v":305},{"$f":"HLOOKUP(AD$7,$K$68:$DL$122,ROWS($B$12:$B20)+2,FALSE)","v":0},{"$f":"HLOOKUP(AE$7,$K$68:$DL$122,ROWS($B$12:$B20)+2,FALSE)","v":0},{"$f":"HLOOKUP(AF$7,$K$68:$DL$122,ROWS($B$12:$B20)+2,FALSE)","v":4238},{"$f":"HLOOKUP(AG$7,$K$68:$DL$122,ROWS($B$12:$B20)+2,FALSE)","v":806},{"$f":"HLOOKUP(AH$7,$K$68:$DL$122,ROWS($B$12:$B20)+2,FALSE)","v":43},{"$f":"HLOOKUP(AI$7,$K$68:$DL$122,ROWS($B$12:$B20)+2,FALSE)","v":201},{"$f":"HLOOKUP(AJ$7,$K$68:$DL$122,ROWS($B$12:$B20)+2,FALSE)","v":0},{"$f":"HLOOKUP(AK$7,$K$68:$DL$122,ROWS($B$12:$B20)+2,FALSE)","v":713},{"$f":"HLOOKUP(AL$7,$K$68:$DL$122,ROWS($B$12:$B20)+2,FALSE)","v":0},{"$f":"HLOOKUP(AM$7,$K$68:$DL$122,ROWS($B$12:$B20)+2,FALSE)","v":12},{"$f":"HLOOKUP(AN$7,$K$68:$DL$122,ROWS($B$12:$B20)+2,FALSE)","v":0},{"$f":"HLOOKUP(AO$7,$K$68:$DL$122,ROWS($B$12:$B20)+2,FALSE)","v":0},{"$f":"HLOOKUP(AP$7,$K$68:$DL$122,ROWS($B$12:$B20)+2,FALSE)","v":6297},{"$f":"HLOOKUP(AQ$7,$K$68:$DL$122,ROWS($B$12:$B20)+2,FALSE)","v":0},{"$f":"HLOOKUP(AR$7,$K$68:$DL$122,ROWS($B$12:$B20)+2,FALSE)","v":3141},{"$f":"HLOOKUP(AS$7,$K$68:$DL$122,ROWS($B$12:$B20)+2,FALSE)","v":388},{"$f":"HLOOKUP(AT$7,$K$68:$DL$122,ROWS($B$12:$B20)+2,FALSE)","v":0},{"$f":"HLOOKUP(AU$7,$K$68:$DL$122,ROWS($B$12:$B20)+2,FALSE)","v":664},{"$f":"HLOOKUP(AV$7,$K$68:$DL$122,ROWS($B$12:$B20)+2,FALSE)","v":27},{"$f":"HLOOKUP(AW$7,$K$68:$DL$122,ROWS($B$12:$B20)+2,FALSE)","v":0},{"$f":"HLOOKUP(AX$7,$K$68:$DL$122,ROWS($B$12:$B20)+2,FALSE)","v":8571},{"$f":"HLOOKUP(AY$7,$K$68:$DL$122,ROWS($B$12:$B20)+2,FALSE)","v":131},{"$f":"HLOOKUP(AZ$7,$K$68:$DL$122,ROWS($B$12:$B20)+2,FALSE)","v":153},{"$f":"HLOOKUP(BA$7,$K$68:$DL$122,ROWS($B$12:$B20)+2,FALSE)","v":0},{"$f":"HLOOKUP(BB$7,$K$68:$DL$122,ROWS($B$12:$B20)+2,FALSE)","v":221},{"$f":"HLOOKUP(BC$7,$K$68:$DL$122,ROWS($B$12:$B20)+2,FALSE)","v":883},{"$f":"HLOOKUP(BD$7,$K$68:$DL$122,ROWS($B$12:$B20)+2,FALSE)","v":475},{"$f":"HLOOKUP(BE$7,$K$68:$DL$122,ROWS($B$12:$B20)+2,FALSE)","v":0},{"$f":"HLOOKUP(BF$7,$K$68:$DL$122,ROWS($B$12:$B20)+2,FALSE)","v":1064},{"$f":"HLOOKUP(BG$7,$K$68:$DL$122,ROWS($B$12:$B20)+2,FALSE)","v":482},{"$f":"HLOOKUP(BH$7,$K$68:$DL$122,ROWS($B$12:$B20)+2,FALSE)","v":198},{"$f":"HLOOKUP(BI$7,$K$68:$DL$122,ROWS($B$12:$B20)+2,FALSE)","v":55},{"$f":"HLOOKUP(BJ$7,$K$68:$DL$122,ROWS($B$12:$B20)+2,FALSE)","v":463},{"$f":"HLOOKUP(BK$7,$K$68:$DL$122,ROWS($B$12:$B20)+2,FALSE)","v":1008},{"$f":"HLOOKUP(BL$7+0.5,$K$68:$DL$122,ROWS($B$12:$B20)+2,FALSE)","v":3955},{"$f":"HLOOKUP(BM$7+0.5,$K$68:$DL$122,ROWS($B$12:$B20)+2,FALSE)","v":135},{"$f":"HLOOKUP(BN$7+0.5,$K$68:$DL$122,ROWS($B$12:$B20)+2,FALSE)","v":544},{"$f":"HLOOKUP(BO$7+0.5,$K$68:$DL$122,ROWS($B$12:$B20)+2,FALSE)","v":728},{"$f":"HLOOKUP(BP$7+0.5,$K$68:$DL$122,ROWS($B$12:$B20)+2,FALSE)","v":192},{"$f":"HLOOKUP(BQ$7+0.5,$K$68:$DL$122,ROWS($B$12:$B20)+2,FALSE)","v":594},{"$f":"HLOOKUP(BR$7+0.5,$K$68:$DL$122,ROWS($B$12:$B20)+2,FALSE)","v":218},{"$f":"HLOOKUP(BS$7+0.5,$K$68:$DL$122,ROWS($B$12:$B20)+2,FALSE)","v":94},{"$f":"HLOOKUP(BT$7+0.5,$K$68:$DL$122,ROWS($B$12:$B20)+2,FALSE)","v":"N/A"},{"$f":"HLOOKUP(BU$7+0.5,$K$68:$DL$122,ROWS($B$12:$B20)+2,FALSE)","v":144},{"$f":"HLOOKUP(BV$7+0.5,$K$68:$DL$122,ROWS($B$12:$B20)+2,FALSE)","v":449},{"$f":"HLOOKUP(BW$7+0.5,$K$68:$DL$122,ROWS($B$12:$B20)+2,FALSE)","v":422},{"$f":"HLOOKUP(BX$7+0.5,$K$68:$DL$122,ROWS($B$12:$B20)+2,FALSE)","v":171},{"$f":"HLOOKUP(BY$7+0.5,$K$68:$DL$122,ROWS($B$12:$B20)+2,FALSE)","v":347},{"$f":"HLOOKUP(BZ$7+0.5,$K$68:$DL$122,ROWS($B$12:$B20)+2,FALSE)","v":35},{"$f":"HLOOKUP(CA$7+0.5,$K$68:$DL$122,ROWS($B$12:$B20)+2,FALSE)","v":235},{"$f":"HLOOKUP(CB$7+0.5,$K$68:$DL$122,ROWS($B$12:$B20)+2,FALSE)","v":192},{"$f":"HLOOKUP(CC$7+0.5,$K$68:$DL$122,ROWS($B$12:$B20)+2,FALSE)","v":17},{"$f":"HLOOKUP(CD$7+0.5,$K$68:$DL$122,ROWS($B$12:$B20)+2,FALSE)","v":391},{"$f":"HLOOKUP(CE$7+0.5,$K$68:$DL$122,ROWS($B$12:$B20)+2,FALSE)","v":192},{"$f":"HLOOKUP(CF$7+0.5,$K$68:$DL$122,ROWS($B$12:$B20)+2,FALSE)","v":192},{"$f":"HLOOKUP(CG$7+0.5,$K$68:$DL$122,ROWS($B$12:$B20)+2,FALSE)","v":1274},{"$f":"HLOOKUP(CH$7+0.5,$K$68:$DL$122,ROWS($B$12:$B20)+2,FALSE)","v":558},{"$f":"HLOOKUP(CI$7+0.5,$K$68:$DL$122,ROWS($B$12:$B20)+2,FALSE)","v":71},{"$f":"HLOOKUP(CJ$7+0.5,$K$68:$DL$122,ROWS($B$12:$B20)+2,FALSE)","v":299},{"$f":"HLOOKUP(CK$7+0.5,$K$68:$DL$122,ROWS($B$12:$B20)+2,FALSE)","v":192},{"$f":"HLOOKUP(CL$7+0.5,$K$68:$DL$122,ROWS($B$12:$B20)+2,FALSE)","v":684},{"$f":"HLOOKUP(CM$7+0.5,$K$68:$DL$122,ROWS($B$12:$B20)+2,FALSE)","v":192},{"$f":"HLOOKUP(CN$7+0.5,$K$68:$DL$122,ROWS($B$12:$B20)+2,FALSE)","v":28},{"$f":"HLOOKUP(CO$7+0.5,$K$68:$DL$122,ROWS($B$12:$B20)+2,FALSE)","v":192},{"$f":"HLOOKUP(CP$7+0.5,$K$68:$DL$122,ROWS($B$12:$B20)+2,FALSE)","v":192},{"$f":"HLOOKUP(CQ$7+0.5,$K$68:$DL$122,ROWS($B$12:$B20)+2,FALSE)","v":1765},{"$f":"HLOOKUP(CR$7+0.5,$K$68:$DL$122,ROWS($B$12:$B20)+2,FALSE)","v":192},{"$f":"HLOOKUP(CS$7+0.5,$K$68:$DL$122,ROWS($B$12:$B20)+2,FALSE)","v":1083},{"$f":"HLOOKUP(CT$7+0.5,$K$68:$DL$122,ROWS($B$12:$B20)+2,FALSE)","v":256},{"$f":"HLOOKUP(CU$7+0.5,$K$68:$DL$122,ROWS($B$12:$B20)+2,FALSE)","v":192},{"$f":"HLOOKUP(CV$7+0.5,$K$68:$DL$122,ROWS($B$12:$B20)+2,FALSE)","v":608},{"$f":"HLOOKUP(CW$7+0.5,$K$68:$DL$122,ROWS($B$12:$B20)+2,FALSE)","v":45},{"$f":"HLOOKUP(CX$7+0.5,$K$68:$DL$122,ROWS($B$12:$B20)+2,FALSE)","v":192},{"$f":"HLOOKUP(CY$7+0.5,$K$68:$DL$122,ROWS($B$12:$B20)+2,FALSE)","v":1728},{"$f":"HLOOKUP(CZ$7+0.5,$K$68:$DL$122,ROWS($B$12:$B20)+2,FALSE)","v":217},{"$f":"HLOOKUP(DA$7+0.5,$K$68:$DL$122,ROWS($B$12:$B20)+2,FALSE)","v":179},{"$f":"HLOOKUP(DB$7+0.5,$K$68:$DL$122,ROWS($B$12:$B20)+2,FALSE)","v":192},{"$f":"HLOOKUP(DC$7+0.5,$K$68:$DL$122,ROWS($B$12:$B20)+2,FALSE)","v":259},{"$f":"HLOOKUP(DD$7+0.5,$K$68:$DL$122,ROWS($B$12:$B20)+2,FALSE)","v":755},{"$f":"HLOOKUP(DE$7+0.5,$K$68:$DL$122,ROWS($B$12:$B20)+2,FALSE)","v":738},{"$f":"HLOOKUP(DF$7+0.5,$K$68:$DL$122,ROWS($B$12:$B20)+2,FALSE)","v":192},{"$f":"HLOOKUP(DG$7+0.5,$K$68:$DL$122,ROWS($B$12:$B20)+2,FALSE)","v":512},{"$f":"HLOOKUP(DH$7+0.5,$K$68:$DL$122,ROWS($B$12:$B20)+2,FALSE)","v":530},{"$f":"HLOOKUP(DI$7+0.5,$K$68:$DL$122,ROWS($B$12:$B20)+2,FALSE)","v":174},{"$f":"HLOOKUP(DJ$7+0.5,$K$68:$DL$122,ROWS($B$12:$B20)+2,FALSE)","v":96},{"$f":"HLOOKUP(DK$7+0.5,$K$68:$DL$122,ROWS($B$12:$B20)+2,FALSE)","v":527},{"$f":"HLOOKUP(DL$7+0.5,$K$68:$DL$122,ROWS($B$12:$B20)+2,FALSE)","v":971}]
[null,null,"District of Columbia ",611608,1403,489659,6701,66519,6073,6.8789377933130072E-3,{"$f":"HLOOKUP(K$7,$K$68:$DL$122,ROWS($B$12:$B21)+2,FALSE)","v":48066},{"$f":"HLOOKUP(L$7,$K$68:$DL$122,ROWS($B$12:$B21)+2,FALSE)","v":13},{"$f":"HLOOKUP(M$7,$K$68:$DL$122,ROWS($B$12:$B21)+2,FALSE)","v":135},{"$f":"HLOOKUP(N$7,$K$68:$DL$122,ROWS($B$12:$B21)+2,FALSE)","v":43},{"$f":"HLOOKUP(O$7,$K$68:$DL$122,ROWS($B$12:$B21)+2,FALSE)","v":81},{"$f":"HLOOKUP(P$7,$K$68:$DL$122,ROWS($B$12:$B21)+2,FALSE)","v":3797},{"$f":"HLOOKUP(Q$7,$K$68:$DL$122,ROWS($B$12:$B21)+2,FALSE)","v":452},{"$f":"HLOOKUP(R$7,$K$68:$DL$122,ROWS($B$12:$B21)+2,FALSE)","v":981},{"$f":"HLOOKUP(S$7,$K$68:$DL$122,ROWS($B$12:$B21)+2,FALSE)","v":128},{"$f":"HLOOKUP(T$7,$K$68:$DL$122,ROWS($B$12:$B21)+2,FALSE)","v":"N/A"},{"$f":"HLOOKUP(U$7,$K$68:$DL$122,ROWS($B$12:$B21)+2,FALSE)","v":1254},{"$f":"HLOOKUP(V$7,$K$68:$DL$122,ROWS($B$12:$B21)+2,FALSE)","v":937},{"$f":"HLOOKUP(W$7,$K$68:$DL$122,ROWS($B$12:$B21)+2,FALSE)","v":372},{"$f":"HLOOKUP(X$7,$K$68:$DL$122,ROWS($B$12:$B21)+2,FALSE)","v":68},{"$f":"HLOOKUP(Y$7,$K$68:$DL$122,ROWS($B$12:$B21)+2,FALSE)","v":1397},{"$f":"HLOOKUP(Z$7,$K$68:$DL$122,ROWS($B$12:$B21)+2,FALSE)","v":128},{"$f":"HLOOKUP(AA$7,$K$68:$DL$122,ROWS($B$12:$B21)+2,FALSE)","v":241},{"$f":"HLOOKUP(AB$7,$K$68:$DL$122,ROWS($B$12:$B21)+2,FALSE)","v":6},{"$f":"HLOOKUP(AC$7,$K$68:$DL$122,ROWS($B$12:$B21)+2,FALSE)","v":297},{"$f":"HLOOKUP(AD$7,$K$68:$DL$122,ROWS($B$12:$B21)+2,FALSE)","v":0},{"$f":"HLOOKUP(AE$7,$K$68:$DL$122,ROWS($B$12:$B21)+2,FALSE)","v":0},{"$f":"HLOOKUP(AF$7,$K$68:$DL$122,ROWS($B$12:$B21)+2,FALSE)","v":14129},{"$f":"HLOOKUP(AG$7,$K$68:$DL$122,ROWS($B$12:$B21)+2,FALSE)","v":2048},{"$f":"HLOOKUP(AH$7,$K$68:$DL$122,ROWS($B$12:$B21)+2,FALSE)","v":1108},{"$f":"HLOOKUP(AI$7,$K$68:$DL$122,ROWS($B$12:$B21)+2,FALSE)","v":409},{"$f":"HLOOKUP(AJ$7,$K$68:$DL$122,ROWS($B$12:$B21)+2,FALSE)","v":83},{"$f":"HLOOKUP(AK$7,$K$68:$DL$122,ROWS($B$12:$B21)+2,FALSE)","v":112},{"$f":"HLOOKUP(AL$7,$K$68:$DL$122,ROWS($B$12:$B21)+2,FALSE)","v":38},{"$f":"HLOOKUP(AM$7,$K$68:$DL$122,ROWS($B$12:$B21)+2,FALSE)","v":79},{"$f":"HLOOKUP(AN$7,$K$68:$DL$122,ROWS($B$12:$B21)+2,FALSE)","v":238},{"$f":"HLOOKUP(AO$7,$K$68:$DL$122,ROWS($B$12:$B21)+2,FALSE)","v":145},{"$f":"HLOOKUP(AP$7,$K$68:$DL$122,ROWS($B$12:$B21)+2,FALSE)","v":1035},{"$f":"HLOOKUP(AQ$7,$K$68:$DL$122,ROWS($B$12:$B21)+2,FALSE)","v":0},{"$f":"HLOOKUP(AR$7,$K$68:$DL$122,ROWS($B$12:$B21)+2,FALSE)","v":2313},{"$f":"HLOOKUP(AS$7,$K$68:$DL$122,ROWS($B$12:$B21)+2,FALSE)","v":1716},{"$f":"HLOOKUP(AT$7,$K$68:$DL$122,ROWS($B$12:$B21)+2,FALSE)","v":285},{"$f":"HLOOKUP(AU$7,$K$68:$DL$122,ROWS($B$12:$B21)+2,FALSE)","v":306},{"$f":"HLOOKUP(AV$7,$K$68:$DL$122,ROWS($B$12:$B21)+2,FALSE)","v":0},{"$f":"HLOOKUP(AW$7,$K$68:$DL$122,ROWS($B$12:$B21)+2,FALSE)","v":51},{"$f":"HLOOKUP(AX$7,$K$68:$DL$122,ROWS($B$12:$B21)+2,FALSE)","v":1589},{"$f":"HLOOKUP(AY$7,$K$68:$DL$122,ROWS($B$12:$B21)+2,FALSE)","v":50},{"$f":"HLOOKUP(AZ$7,$K$68:$DL$122,ROWS($B$12:$B21)+2,FALSE)","v":357},{"$f":"HLOOKUP(BA$7,$K$68:$DL$122,ROWS($B$12:$B21)+2,FALSE)","v":104},{"$f":"HLOOKUP(BB$7,$K$68:$DL$122,ROWS($B$12:$B21)+2,FALSE)","v":421},{"$f":"HLOOKUP(BC$7,$K$68:$DL$122,ROWS($B$12:$B21)+2,FALSE)","v":1083},{"$f":"HLOOKUP(BD$7,$K$68:$DL$122,ROWS($B$12:$B21)+2,FALSE)","v":75},{"$f":"HLOOKUP(BE$7,$K$68:$DL$122,ROWS($B$12:$B21)+2,FALSE)","v":445},{"$f":"HLOOKUP(BF$7,$K$68:$DL$122,ROWS($B$12:$B21)+2,FALSE)","v":7975},{"$f":"HLOOKUP(BG$7,$K$68:$DL$122,ROWS($B$12:$B21)+2,FALSE)","v":476},{"$f":"HLOOKUP(BH$7,$K$68:$DL$122,ROWS($B$12:$B21)+2,FALSE)","v":120},{"$f":"HLOOKUP(BI$7,$K$68:$DL$122,ROWS($B$12:$B21)+2,FALSE)","v":946},{"$f":"HLOOKUP(BJ$7,$K$68:$DL$122,ROWS($B$12:$B21)+2,FALSE)","v":0},{"$f":"HLOOKUP(BK$7,$K$68:$DL$122,ROWS($B$12:$B21)+2,FALSE)","v":0},{"$f":"HLOOKUP(BL$7+0.5,$K$68:$DL$122,ROWS($B$12:$B21)+2,FALSE)","v":4295},{"$f":"HLOOKUP(BM$7+0.5,$K$68:$DL$122,ROWS($B$12:$B21)+2,FALSE)","v":29},{"$f":"HLOOKUP(BN$7+0.5,$K$68:$DL$122,ROWS($B$12:$B21)+2,FALSE)","v":217},{"$f":"HLOOKUP(BO$7+0.5,$K$68:$DL$122,ROWS($B$12:$B21)+2,FALSE)","v":71},{"$f":"HLOOKUP(BP$7+0.5,$K$68:$DL$122,ROWS($B$12:$B21)+2,FALSE)","v":93},{"$f":"HLOOKUP(BQ$7+0.5,$K$68:$DL$122,ROWS($B$12:$B21)+2,FALSE)","v":1233},{"$f":"HLOOKUP(BR$7+0.5,$K$68:$DL$122,ROWS($B$12:$B21)+2,FALSE)","v":321},{"$f":"HLOOKUP(BS$7+0.5,$K$68:$DL$122,ROWS($B$12:$B21)+2,FALSE)","v":472},{"$f":"HLOOKUP(BT$7+0.5,$K$68:$DL$122,ROWS($B$12:$B21)+2,FALSE)","v":125},{"$f":"HLOOKUP(BU$7+0.5,$K$68:$DL$122,ROWS($B$12:$B21)+2,FALSE)","v":"N/A"},{"$f":"HLOOKUP(BV$7+0.5,$K$68:$DL$122,ROWS($B$12:$B21)+2,FALSE)","v":651},{"$f":"HLOOKUP(BW$7+0.5,$K$68:$DL$122,ROWS($B$12:$B21)+2,FALSE)","v":572},{"$f":"HLOOKUP(BX$7+0.5,$K$68:$DL$122,ROWS($B$12:$B21)+2,FALSE)","v":396},{"$f":"HLOOKUP(BY$7+0.5,$K$68:$DL$122,ROWS($B$12:$B21)+2,FALSE)","v":113},{"$f":"HLOOKUP(BZ$7+0.5,$K$68:$DL$122,ROWS($B$12:$B21)+2,FALSE)","v":814},{"$f":"HLOOKUP(CA$7+0.5,$K$68:$DL$122,ROWS($B$12:$B21)+2,FALSE)","v":147},{"$f":"HLOOKUP(CB$7+0.5,$K$68:$DL$122,ROWS($B$12:$B21)+2,FALSE)","v":284},{"$f":"HLOOKUP(CC$7+0.5,$K$68:$DL$122,ROWS($B$12:$B21)+2,FALSE)","v":19},{"$f":"HLOOKUP(CD$7+0.5,$K$68:$DL$122,ROWS($B$12:$B21)+2,FALSE)","v":260},{"$f":"HLOOKUP(CE$7+0.5,$K$68:$DL$122,ROWS($B$12:$B21)+2,FALSE)","v":200},{"$f":"HLOOKUP(CF$7+0.5,$K$68:$DL$122,ROWS($B$12:$B21)+2,FALSE)","v":200},{"$f":"HLOOKUP(CG$7+0.5,$K$68:$DL$122,ROWS($B$12:$B21)+2,FALSE)","v":2971},{"$f":"HLOOKUP(CH$7+0.5,$K$68:$DL$122,ROWS($B$12:$B21)+2,FALSE)","v":789},{"$f":"HLOOKUP(CI$7+0.5,$K$68:$DL$122,ROWS($B$12:$B21)+2,FALSE)","v":554},{"$f":"HLOOKUP(CJ$7+0.5,$K$68:$DL$122,ROWS($B$12:$B21)+2,FALSE)","v":457},{"$f":"HLOOKUP(CK$7+0.5,$K$68:$DL$122,ROWS($B$12:$B21)+2,FALSE)","v":99},{"$f":"HLOOKUP(CL$7+0.5,$K$68:$DL$122,ROWS($B$12:$B21)+2,FALSE)","v":184},{"$f":"HLOOKUP(CM$7+0.5,$K$68:$DL$122,ROWS($B$12:$B21)+2,FALSE)","v":64},{"$f":"HLOOKUP(CN$7+0.5,$K$68:$DL$122,ROWS($B$12:$B21)+2,FALSE)","v":110},{"$f":"HLOOKUP(CO$7+0.5,$K$68:$DL$122,ROWS($B$12:$B21)+2,FALSE)","v":282},{"$f":"HLOOKUP(CP$7+0.5,$K$68:$DL$122,ROWS($B$12:$B21)+2,FALSE)","v":139},{"$f":"HLOOKUP(CQ$7+0.5,$K$68:$DL$122,ROWS($B$12:$B21)+2,FALSE)","v":605},{"$f":"HLOOKUP(CR$7+0.5,$K$68:$DL$122,ROWS($B$12:$B21)+2,FALSE)","v":200},{"$f":"HLOOKUP(CS$7+0.5,$K$68:$DL$122,ROWS($B$12:$B21)+2,FALSE)","v":697},{"$f":"HLOOKUP(CT$7+0.5,$K$68:$DL$122,ROWS($B$12:$B21)+2,FALSE)","v":760},{"$f":"HLOOKUP(CU$7+0.5,$K$68:$DL$122,ROWS($B$12:$B21)+2,FALSE)","v":360},{"$f":"HLOOKUP(CV$7+0.5,$K$68:$DL$122,ROWS($B$12:$B21)+2,FALSE)","v":224},{"$f":"HLOOKUP(CW$7+0.5,$K$68:$DL$122,ROWS($B$12:$B21)+2,FALSE)","v":200},{"$f":"HLOOKUP(CX$7+0.5,$K$68:$DL$122,ROWS($B$12:$B21)+2,FALSE)","v":64},{"$f":"HLOOKUP(CY$7+0.5,$K$68:$DL$122,ROWS($B$12:$B21)+2,FALSE)","v":757},{"$f":"HLOOKUP(CZ$7+0.5,$K$68:$DL$122,ROWS($B$12:$B21)+2,FALSE)","v":63},{"$f":"HLOOKUP(DA$7+0.5,$K$68:$DL$122,ROWS($B$12:$B21)+2,FALSE)","v":329},{"$f":"HLOOKUP(DB$7+0.5,$K$68:$DL$122,ROWS($B$12:$B21)+2,FALSE)","v":129},{"$f":"HLOOKUP(DC$7+0.5,$K$68:$DL$122,ROWS($B$12:$B21)+2,FALSE)","v":358},{"$f":"HLOOKUP(DD$7+0.5,$K$68:$DL$122,ROWS($B$12:$B21)+2,FALSE)","v":491},{"$f":"HLOOKUP(DE$7+0.5,$K$68:$DL$122,ROWS($B$12:$B21)+2,FALSE)","v":118},{"$f":"HLOOKUP(DF$7+0.5,$K$68:$DL$122,ROWS($B$12:$B21)+2,FALSE)","v":489},{"$f":"HLOOKUP(DG$7+0.5,$K$68:$DL$122,ROWS($B$12:$B21)+2,FALSE)","v":1285},{"$f":"HLOOKUP(DH$7+0.5,$K$68:$DL$122,ROWS($B$12:$B21)+2,FALSE)","v":300},{"$f":"HLOOKUP(DI$7+0.5,$K$68:$DL$122,ROWS($B$12:$B21)+2,FALSE)","v":138},{"$f":"HLOOKUP(DJ$7+0.5,$K$68:$DL$122,ROWS($B$12:$B21)+2,FALSE)","v":668},{"$f":"HLOOKUP(DK$7+0.5,$K$68:$DL$122,ROWS($B$12:$B21)+2,FALSE)","v":200},{"$f":"HLOOKUP(DL$7+0.5,$K$68:$DL$122,ROWS($B$12:$B21)+2,FALSE)","v":200}]
[null,null,"Florida",18863948,8536,15742168,59355,2454255,53419,7.135642131511849E-2,{"$f":"HLOOKUP(K$7,$K$68:$DL$122,ROWS($B$12:$B22)+2,FALSE)","v":498597},{"$f":"HLOOKUP(L$7,$K$68:$DL$122,ROWS($B$12:$B22)+2,FALSE)","v":12635},{"$f":"HLOOKUP(M$7,$K$68:$DL$122,ROWS($B$12:$B22)+2,FALSE)","v":7405},{"$f":"HLOOKUP(N$7,$K$68:$DL$122,ROWS($B$12:$B22)+2,FALSE)","v":8451},{"$f":"HLOOKUP(O$7,$K$68:$DL$122,ROWS($B$12:$B22)+2,FALSE)","v":3025},{"$f":"HLOOKUP(P$7,$K$68:$DL$122,ROWS($B$12:$B22)+2,FALSE)","v":22420},{"$f":"HLOOKUP(Q$7,$K$68:$DL$122,ROWS($B$12:$B22)+2,FALSE)","v":9383},{"$f":"HLOOKUP(R$7,$K$68:$DL$122,ROWS($B$12:$B22)+2,FALSE)","v":11704},{"$f":"HLOOKUP(S$7,$K$68:$DL$122,ROWS($B$12:$B22)+2,FALSE)","v":1264},{"$f":"HLOOKUP(T$7,$K$68:$DL$122,ROWS($B$12:$B22)+2,FALSE)","v":891},{"$f":"HLOOKUP(U$7,$K$68:$DL$122,ROWS($B$12:$B22)+2,FALSE)","v":"N/A"},{"$f":"HLOOKUP(V$7,$K$68:$DL$122,ROWS($B$12:$B22)+2,FALSE)","v":38658},{"$f":"HLOOKUP(W$7,$K$68:$DL$122,ROWS($B$12:$B22)+2,FALSE)","v":3639},{"$f":"HLOOKUP(X$7,$K$68:$DL$122,ROWS($B$12:$B22)+2,FALSE)","v":312},{"$f":"HLOOKUP(Y$7,$K$68:$DL$122,ROWS($B$12:$B22)+2,FALSE)","v":19152},{"$f":"HLOOKUP(Z$7,$K$68:$DL$122,ROWS($B$12:$B22)+2,FALSE)","v":11472},{"$f":"HLOOKUP(AA$7,$K$68:$DL$122,ROWS($B$12:$B22)+2,FALSE)","v":1846},{"$f":"HLOOKUP(AB$7,$K$68:$DL$122,ROWS($B$12:$B22)+2,FALSE)","v":2661},{"$f":"HLOOKUP(AC$7,$K$68:$DL$122,ROWS($B$12:$B22)+2,FALSE)","v":5441},{"$f":"HLOOKUP(AD$7,$K$68:$DL$122,ROWS($B$12:$B22)+2,FALSE)","v":6094},{"$f":"HLOOKUP(AE$7,$K$68:$DL$122,ROWS($B$12:$B22)+2,FALSE)","v":4689},{"$f":"HLOOKUP(AF$7,$K$68:$DL$122,ROWS($B$12:$B22)+2,FALSE)","v":15410},{"$f":"HLOOKUP(AG$7,$K$68:$DL$122,ROWS($B$12:$B22)+2,FALSE)","v":13701},{"$f":"HLOOKUP(AH$7,$K$68:$DL$122,ROWS($B$12:$B22)+2,FALSE)","v":19640},{"$f":"HLOOKUP(AI$7,$K$68:$DL$122,ROWS($B$12:$B22)+2,FALSE)","v":4663},{"$f":"HLOOKUP(AJ$7,$K$68:$DL$122,ROWS($B$12:$B22)+2,FALSE)","v":5175},{"$f":"HLOOKUP(AK$7,$K$68:$DL$122,ROWS($B$12:$B22)+2,FALSE)","v":7114},{"$f":"HLOOKUP(AL$7,$K$68:$DL$122,ROWS($B$12:$B22)+2,FALSE)","v":559},{"$f":"HLOOKUP(AM$7,$K$68:$DL$122,ROWS($B$12:$B22)+2,FALSE)","v":3857},{"$f":"HLOOKUP(AN$7,$K$68:$DL$122,ROWS($B$12:$B22)+2,FALSE)","v":3527},{"$f":"HLOOKUP(AO$7,$K$68:$DL$122,ROWS($B$12:$B22)+2,FALSE)","v":4324},{"$f":"HLOOKUP(AP$7,$K$68:$DL$122,ROWS($B$12:$B22)+2,FALSE)","v":25206},{"$f":"HLOOKUP(AQ$7,$K$68:$DL$122,ROWS($B$12:$B22)+2,FALSE)","v":1376},{"$f":"HLOOKUP(AR$7,$K$68:$DL$122,ROWS($B$12:$B22)+2,FALSE)","v":59288},{"$f":"HLOOKUP(AS$7,$K$68:$DL$122,ROWS($B$12:$B22)+2,FALSE)","v":23983},{"$f":"HLOOKUP(AT$7,$K$68:$DL$122,ROWS($B$12:$B22)+2,FALSE)","v":514},{"$f":"HLOOKUP(AU$7,$K$68:$DL$122,ROWS($B$12:$B22)+2,FALSE)","v":18191},{"$f":"HLOOKUP(AV$7,$K$68:$DL$122,ROWS($B$12:$B22)+2,FALSE)","v":2600},{"$f":"HLOOKUP(AW$7,$K$68:$DL$122,ROWS($B$12:$B22)+2,FALSE)","v":3315},{"$f":"HLOOKUP(AX$7,$K$68:$DL$122,ROWS($B$12:$B22)+2,FALSE)","v":20821},{"$f":"HLOOKUP(AY$7,$K$68:$DL$122,ROWS($B$12:$B22)+2,FALSE)","v":5002},{"$f":"HLOOKUP(AZ$7,$K$68:$DL$122,ROWS($B$12:$B22)+2,FALSE)","v":11953},{"$f":"HLOOKUP(BA$7,$K$68:$DL$122,ROWS($B$12:$B22)+2,FALSE)","v":716},{"$f":"HLOOKUP(BB$7,$K$68:$DL$122,ROWS($B$12:$B22)+2,FALSE)","v":10451},{"$f":"HLOOKUP(BC$7,$K$68:$DL$122,ROWS($B$12:$B22)+2,FALSE)","v":25532},{"$f":"HLOOKUP(BD$7,$K$68:$DL$122,ROWS($B$12:$B22)+2,FALSE)","v":2343},{"$f":"HLOOKUP(BE$7,$K$68:$DL$122,ROWS($B$12:$B22)+2,FALSE)","v":2019},{"$f":"HLOOKUP(BF$7,$K$68:$DL$122,ROWS($B$12:$B22)+2,FALSE)","v":16614},{"$f":"HLOOKUP(BG$7,$K$68:$DL$122,ROWS($B$12:$B22)+2,FALSE)","v":6339},{"$f":"HLOOKUP(BH$7,$K$68:$DL$122,ROWS($B$12:$B22)+2,FALSE)","v":4964},{"$f":"HLOOKUP(BI$7,$K$68:$DL$122,ROWS($B$12:$B22)+2,FALSE)","v":7412},{"$f":"HLOOKUP(BJ$7,$K$68:$DL$122,ROWS($B$12:$B22)+2,FALSE)","v":846},{"$f":"HLOOKUP(BK$7,$K$68:$DL$122,ROWS($B$12:$B22)+2,FALSE)","v":21611},{"$f":"HLOOKUP(BL$7+0.5,$K$68:$DL$122,ROWS($B$12:$B22)+2,FALSE)","v":22483},{"$f":"HLOOKUP(BM$7+0.5,$K$68:$DL$122,ROWS($B$12:$B22)+2,FALSE)","v":3566},{"$f":"HLOOKUP(BN$7+0.5,$K$68:$DL$122,ROWS($B$12:$B22)+2,FALSE)","v":3412},{"$f":"HLOOKUP(BO$7+0.5,$K$68:$DL$122,ROWS($B$12:$B22)+2,FALSE)","v":3258},{"$f":"HLOOKUP(BP$7+0.5,$K$68:$DL$122,ROWS($B$12:$B22)+2,FALSE)","v":1241},{"$f":"HLOOKUP(BQ$7+0.5,$K$68:$DL$122,ROWS($B$12:$B22)+2,FALSE)","v":4065},{"$f":"HLOOKUP(BR$7+0.5,$K$68:$DL$122,ROWS($B$12:$B22)+2,FALSE)","v":2988},{"$f":"HLOOKUP(BS$7+0.5,$K$68:$DL$122,ROWS($B$12:$B22)+2,FALSE)","v":3121},{"$f":"HLOOKUP(BT$7+0.5,$K$68:$DL$122,ROWS($B$12:$B22)+2,FALSE)","v":949},{"$f":"HLOOKUP(BU$7+0.5,$K$68:$DL$122,ROWS($B$12:$B22)+2,FALSE)","v":495},{"$f":"HLOOKUP(BV$7+0.5,$K$68:$DL$122,ROWS($B$12:$B22)+2,FALSE)","v":"N/A"},{"$f":"HLOOKUP(BW$7+0.5,$K$68:$DL$122,ROWS($B$12:$B22)+2,FALSE)","v":6270},{"$f":"HLOOKUP(BX$7+0.5,$K$68:$DL$122,ROWS($B$12:$B22)+2,FALSE)","v":2081},{"$f":"HLOOKUP(BY$7+0.5,$K$68:$DL$122,ROWS($B$12:$B22)+2,FALSE)","v":268},{"$f":"HLOOKUP(BZ$7+0.5,$K$68:$DL$122,ROWS($B$12:$B22)+2,FALSE)","v":3962},{"$f":"HLOOKUP(CA$7+0.5,$K$68:$DL$122,ROWS($B$12:$B22)+2,FALSE)","v":3254},{"$f":"HLOOKUP(CB$7+0.5,$K$68:$DL$122,ROWS($B$12:$B22)+2,FALSE)","v":1137},{"$f":"HLOOKUP(CC$7+0.5,$K$68:$DL$122,ROWS($B$12:$B22)+2,FALSE)","v":1410},{"$f":"HLOOKUP(CD$7+0.5,$K$68:$DL$122,ROWS($B$12:$B22)+2,FALSE)","v":1674},{"$f":"HLOOKUP(CE$7+0.5,$K$68:$DL$122,ROWS($B$12:$B22)+2,FALSE)","v":2316},{"$f":"HLOOKUP(CF$7+0.5,$K$68:$DL$122,ROWS($B$12:$B22)+2,FALSE)","v":2049},{"$f":"HLOOKUP(CG$7+0.5,$K$68:$DL$122,ROWS($B$12:$B22)+2,FALSE)","v":3515},{"$f":"HLOOKUP(CH$7+0.5,$K$68:$DL$122,ROWS($B$12:$B22)+2,FALSE)","v":3380},{"$f":"HLOOKUP(CI$7+0.5,$K$68:$DL$122,ROWS($B$12:$B22)+2,FALSE)","v":3920},{"$f":"HLOOKUP(CJ$7+0.5,$K$68:$DL$122,ROWS($B$12:$B22)+2,FALSE)","v":1888},{"$f":"HLOOKUP(CK$7+0.5,$K$68:$DL$122,ROWS($B$12:$B22)+2,FALSE)","v":1968},{"$f":"HLOOKUP(CL$7+0.5,$K$68:$DL$122,ROWS($B$12:$B22)+2,FALSE)","v":2753},{"$f":"HLOOKUP(CM$7+0.5,$K$68:$DL$122,ROWS($B$12:$B22)+2,FALSE)","v":424},{"$f":"HLOOKUP(CN$7+0.5,$K$68:$DL$122,ROWS($B$12:$B22)+2,FALSE)","v":2208},{"$f":"HLOOKUP(CO$7+0.5,$K$68:$DL$122,ROWS($B$12:$B22)+2,FALSE)","v":1810},{"$f":"HLOOKUP(CP$7+0.5,$K$68:$DL$122,ROWS($B$12:$B22)+2,FALSE)","v":1798},{"$f":"HLOOKUP(CQ$7+0.5,$K$68:$DL$122,ROWS($B$12:$B22)+2,FALSE)","v":6219},{"$f":"HLOOKUP(CR$7+0.5,$K$68:$DL$122,ROWS($B$12:$B22)+2,FALSE)","v":781},{"$f":"HLOOKUP(CS$7+0.5,$K$68:$DL$122,ROWS($B$12:$B22)+2,FALSE)","v":7171},{"$f":"HLOOKUP(CT$7+0.5,$K$68:$DL$122,ROWS($B$12:$B22)+2,FALSE)","v":5251},{"$f":"HLOOKUP(CU$7+0.5,$K$68:$DL$122,ROWS($B$12:$B22)+2,FALSE)","v":600},{"$f":"HLOOKUP(CV$7+0.5,$K$68:$DL$122,ROWS($B$12:$B22)+2,FALSE)","v":3264},{"$f":"HLOOKUP(CW$7+0.5,$K$68:$DL$122,ROWS($B$12:$B22)+2,FALSE)","v":1168},{"$f":"HLOOKUP(CX$7+0.5,$K$68:$DL$122,ROWS($B$12:$B22)+2,FALSE)","v":2046},{"$f":"HLOOKUP(CY$7+0.5,$K$68:$DL$122,ROWS($B$12:$B22)+2,FALSE)","v":4267},{"$f":"HLOOKUP(CZ$7+0.5,$K$68:$DL$122,ROWS($B$12:$B22)+2,FALSE)","v":2668},{"$f":"HLOOKUP(DA$7+0.5,$K$68:$DL$122,ROWS($B$12:$B22)+2,FALSE)","v":2956},{"$f":"HLOOKUP(DB$7+0.5,$K$68:$DL$122,ROWS($B$12:$B22)+2,FALSE)","v":1027},{"$f":"HLOOKUP(DC$7+0.5,$K$68:$DL$122,ROWS($B$12:$B22)+2,FALSE)","v":4102},{"$f":"HLOOKUP(DD$7+0.5,$K$68:$DL$122,ROWS($B$12:$B22)+2,FALSE)","v":4638},{"$f":"HLOOKUP(DE$7+0.5,$K$68:$DL$122,ROWS($B$12:$B22)+2,FALSE)","v":1891},{"$f":"HLOOKUP(DF$7+0.5,$K$68:$DL$122,ROWS($B$12:$B22)+2,FALSE)","v":1616},{"$f":"HLOOKUP(DG$7+0.5,$K$68:$DL$122,ROWS($B$12:$B22)+2,FALSE)","v":3087},{"$f":"HLOOKUP(DH$7+0.5,$K$68:$DL$122,ROWS($B$12:$B22)+2,FALSE)","v":2687},{"$f":"HLOOKUP(DI$7+0.5,$K$68:$DL$122,ROWS($B$12:$B22)+2,FALSE)","v":2202},{"$f":"HLOOKUP(DJ$7+0.5,$K$68:$DL$122,ROWS($B$12:$B22)+2,FALSE)","v":2467},{"$f":"HLOOKUP(DK$7+0.5,$K$68:$DL$122,ROWS($B$12:$B22)+2,FALSE)","v":725},{"$f":"HLOOKUP(DL$7+0.5,$K$68:$DL$122,ROWS($B$12:$B22)+2,FALSE)","v":5621}]
[null,null,"Georgia",9699859,5580,8095407,40769,1289450,37444,3.8795028090498694E-2,{"$f":"HLOOKUP(K$7,$K$68:$DL$122,ROWS($B$12:$B23)+2,FALSE)","v":271077},{"$f":"HLOOKUP(L$7,$K$68:$DL$122,ROWS($B$12:$B23)+2,FALSE)","v":18799},{"$f":"HLOOKUP(M$7,$K$68:$DL$122,ROWS($B$12:$B23)+2,FALSE)","v":1079},{"$f":"HLOOKUP(N$7,$K$68:$DL$122,ROWS($B$12:$B23)+2,FALSE)","v":4292},{"$f":"HLOOKUP(O$7,$K$68:$DL$122,ROWS($B$12:$B23)+2,FALSE)","v":2112},{"$f":"HLOOKUP(P$7,$K$68:$DL$122,ROWS($B$12:$B23)+2,FALSE)","v":14949},{"$f":"HLOOKUP(Q$7,$K$68:$DL$122,ROWS($B$12:$B23)+2,FALSE)","v":2325},{"$f":"HLOOKUP(R$7,$K$68:$DL$122,ROWS($B$12:$B23)+2,FALSE)","v":709},{"$f":"HLOOKUP(S$7,$K$68:$DL$122,ROWS($B$12:$B23)+2,FALSE)","v":619},{"$f":"HLOOKUP(T$7,$K$68:$DL$122,ROWS($B$12:$B23)+2,FALSE)","v":364},{"$f":"HLOOKUP(U$7,$K$68:$DL$122,ROWS($B$12:$B23)+2,FALSE)","v":42666},{"$f":"HLOOKUP(V$7,$K$68:$DL$122,ROWS($B$12:$B23)+2,FALSE)","v":"N/A"},{"$f":"HLOOKUP(W$7,$K$68:$DL$122,ROWS($B$12:$B23)+2,FALSE)","v":1006},{"$f":"HLOOKUP(X$7,$K$68:$DL$122,ROWS($B$12:$B23)+2,FALSE)","v":126},{"$f":"HLOOKUP(Y$7,$K$68:$DL$122,ROWS($B$12:$B23)+2,FALSE)","v":6080},{"$f":"HLOOKUP(Z$7,$K$68:$DL$122,ROWS($B$12:$B23)+2,FALSE)","v":2442},{"$f":"HLOOKUP(AA$7,$K$68:$DL$122,ROWS($B$12:$B23)+2,FALSE)","v":950},{"$f":"HLOOKUP(AB$7,$K$68:$DL$122,ROWS($B$12:$B23)+2,FALSE)","v":4513},{"$f":"HLOOKUP(AC$7,$K$68:$DL$122,ROWS($B$12:$B23)+2,FALSE)","v":3686},{"$f":"HLOOKUP(AD$7,$K$68:$DL$122,ROWS($B$12:$B23)+2,FALSE)","v":6541},{"$f":"HLOOKUP(AE$7,$K$68:$DL$122,ROWS($B$12:$B23)+2,FALSE)","v":408},{"$f":"HLOOKUP(AF$7,$K$68:$DL$122,ROWS($B$12:$B23)+2,FALSE)","v":3708},{"$f":"HLOOKUP(AG$7,$K$68:$DL$122,ROWS($B$12:$B23)+2,FALSE)","v":4436},{"$f":"HLOOKUP(AH$7,$K$68:$DL$122,ROWS($B$12:$B23)+2,FALSE)","v":6992},{"$f":"HLOOKUP(AI$7,$K$68:$DL$122,ROWS($B$12:$B23)+2,FALSE)","v":1808},{"$f":"HLOOKUP(AJ$7,$K$68:$DL$122,ROWS($B$12:$B23)+2,FALSE)","v":5380},{"$f":"HLOOKUP(AK$7,$K$68:$DL$122,ROWS($B$12:$B23)+2,FALSE)","v":2514},{"$f":"HLOOKUP(AL$7,$K$68:$DL$122,ROWS($B$12:$B23)+2,FALSE)","v":246},{"$f":"HLOOKUP(AM$7,$K$68:$DL$122,ROWS($B$12:$B23)+2,FALSE)","v":4144},{"$f":"HLOOKUP(AN$7,$K$68:$DL$122,ROWS($B$12:$B23)+2,FALSE)","v":774},{"$f":"HLOOKUP(AO$7,$K$68:$DL$122,ROWS($B$12:$B23)+2,FALSE)","v":132},{"$f":"HLOOKUP(AP$7,$K$68:$DL$122,ROWS($B$12:$B23)+2,FALSE)","v":8371},{"$f":"HLOOKUP(AQ$7,$K$68:$DL$122,ROWS($B$12:$B23)+2,FALSE)","v":791},{"$f":"HLOOKUP(AR$7,$K$68:$DL$122,ROWS($B$12:$B23)+2,FALSE)","v":14454},{"$f":"HLOOKUP(AS$7,$K$68:$DL$122,ROWS($B$12:$B23)+2,FALSE)","v":19138},{"$f":"HLOOKUP(AT$7,$K$68:$DL$122,ROWS($B$12:$B23)+2,FALSE)","v":201},{"$f":"HLOOKUP(AU$7,$K$68:$DL$122,ROWS($B$12:$B23)+2,FALSE)","v":6863},{"$f":"HLOOKUP(AV$7,$K$68:$DL$122,ROWS($B$12:$B23)+2,FALSE)","v":1632},{"$f":"HLOOKUP(AW$7,$K$68:$DL$122,ROWS($B$12:$B23)+2,FALSE)","v":727},{"$f":"HLOOKUP(AX$7,$K$68:$DL$122,ROWS($B$12:$B23)+2,FALSE)","v":5791},{"$f":"HLOOKUP(AY$7,$K$68:$DL$122,ROWS($B$12:$B23)+2,FALSE)","v":337},{"$f":"HLOOKUP(AZ$7,$K$68:$DL$122,ROWS($B$12:$B23)+2,FALSE)","v":16914},{"$f":"HLOOKUP(BA$7,$K$68:$DL$122,ROWS($B$12:$B23)+2,FALSE)","v":536},{"$f":"HLOOKUP(BB$7,$K$68:$DL$122,ROWS($B$12:$B23)+2,FALSE)","v":16898},{"$f":"HLOOKUP(BC$7,$K$68:$DL$122,ROWS($B$12:$B23)+2,FALSE)","v":15760},{"$f":"HLOOKUP(BD$7,$K$68:$DL$122,ROWS($B$12:$B23)+2,FALSE)","v":793},{"$f":"HLOOKUP(BE$7,$K$68:$DL$122,ROWS($B$12:$B23)+2,FALSE)","v":361},{"$f":"HLOOKUP(BF$7,$K$68:$DL$122,ROWS($B$12:$B23)+2,FALSE)","v":9438},{"$f":"HLOOKUP(BG$7,$K$68:$DL$122,ROWS($B$12:$B23)+2,FALSE)","v":3701},{"$f":"HLOOKUP(BH$7,$K$68:$DL$122,ROWS($B$12:$B23)+2,FALSE)","v":1340},{"$f":"HLOOKUP(BI$7,$K$68:$DL$122,ROWS($B$12:$B23)+2,FALSE)","v":2727},{"$f":"HLOOKUP(BJ$7,$K$68:$DL$122,ROWS($B$12:$B23)+2,FALSE)","v":504},{"$f":"HLOOKUP(BK$7,$K$68:$DL$122,ROWS($B$12:$B23)+2,FALSE)","v":1635},{"$f":"HLOOKUP(BL$7+0.5,$K$68:$DL$122,ROWS($B$12:$B23)+2,FALSE)","v":15123},{"$f":"HLOOKUP(BM$7+0.5,$K$68:$DL$122,ROWS($B$12:$B23)+2,FALSE)","v":5015},{"$f":"HLOOKUP(BN$7+0.5,$K$68:$DL$122,ROWS($B$12:$B23)+2,FALSE)","v":765},{"$f":"HLOOKUP(BO$7+0.5,$K$68:$DL$122,ROWS($B$12:$B23)+2,FALSE)","v":1849},{"$f":"HLOOKUP(BP$7+0.5,$K$68:$DL$122,ROWS($B$12:$B23)+2,FALSE)","v":1366},{"$f":"HLOOKUP(BQ$7+0.5,$K$68:$DL$122,ROWS($B$12:$B23)+2,FALSE)","v":3387},{"$f":"HLOOKUP(BR$7+0.5,$K$68:$DL$122,ROWS($B$12:$B23)+2,FALSE)","v":1399},{"$f":"HLOOKUP(BS$7+0.5,$K$68:$DL$122,ROWS($B$12:$B23)+2,FALSE)","v":455},{"$f":"HLOOKUP(BT$7+0.5,$K$68:$DL$122,ROWS($B$12:$B23)+2,FALSE)","v":606},{"$f":"HLOOKUP(BU$7+0.5,$K$68:$DL$122,ROWS($B$12:$B23)+2,FALSE)","v":283},{"$f":"HLOOKUP(BV$7+0.5,$K$68:$DL$122,ROWS($B$12:$B23)+2,FALSE)","v":5232},{"$f":"HLOOKUP(BW$7+0.5,$K$68:$DL$122,ROWS($B$12:$B23)+2,FALSE)","v":"N/A"},{"$f":"HLOOKUP(BX$7+0.5,$K$68:$DL$122,ROWS($B$12:$B23)+2,FALSE)","v":883},{"$f":"HLOOKUP(BY$7+0.5,$K$68:$DL$122,ROWS($B$12:$B23)+2,FALSE)","v":139},{"$f":"HLOOKUP(BZ$7+0.5,$K$68:$DL$122,ROWS($B$12:$B23)+2,FALSE)","v":1774},{"$f":"HLOOKUP(CA$7+0.5,$K$68:$DL$122,ROWS($B$12:$B23)+2,FALSE)","v":1297},{"$f":"HLOOKUP(CB$7+0.5,$K$68:$DL$122,ROWS($B$12:$B23)+2,FALSE)","v":528},{"$f":"HLOOKUP(CC$7+0.5,$K$68:$DL$122,ROWS($B$12:$B23)+2,FALSE)","v":2909},{"$f":"HLOOKUP(CD$7+0.5,$K$68:$DL$122,ROWS($B$12:$B23)+2,FALSE)","v":1708},{"$f":"HLOOKUP(CE$7+0.5,$K$68:$DL$122,ROWS($B$12:$B23)+2,FALSE)","v":3121},{"$f":"HLOOKUP(CF$7+0.5,$K$68:$DL$122,ROWS($B$12:$B23)+2,FALSE)","v":269},{"$f":"HLOOKUP(CG$7+0.5,$K$68:$DL$122,ROWS($B$12:$B23)+2,FALSE)","v":1807},{"$f":"HLOOKUP(CH$7+0.5,$K$68:$DL$122,ROWS($B$12:$B23)+2,FALSE)","v":1979},{"$f":"HLOOKUP(CI$7+0.5,$K$68:$DL$122,ROWS($B$12:$B23)+2,FALSE)","v":2441},{"$f":"HLOOKUP(CJ$7+0.5,$K$68:$DL$122,ROWS($B$12:$B23)+2,FALSE)","v":1416},{"$f":"HLOOKUP(CK$7+0.5,$K$68:$DL$122,ROWS($B$12:$B23)+2,FALSE)","v":3077},{"$f":"HLOOKUP(CL$7+0.5,$K$68:$DL$122,ROWS($B$12:$B23)+2,FALSE)","v":989},{"$f":"HLOOKUP(CM$7+0.5,$K$68:$DL$122,ROWS($B$12:$B23)+2,FALSE)","v":211},{"$f":"HLOOKUP(CN$7+0.5,$K$68:$DL$122,ROWS($B$12:$B23)+2,FALSE)","v":3300},{"$f":"HLOOKUP(CO$7+0.5,$K$68:$DL$122,ROWS($B$12:$B23)+2,FALSE)","v":559},{"$f":"HLOOKUP(CP$7+0.5,$K$68:$DL$122,ROWS($B$12:$B23)+2,FALSE)","v":150},{"$f":"HLOOKUP(CQ$7+0.5,$K$68:$DL$122,ROWS($B$12:$B23)+2,FALSE)","v":3016},{"$f":"HLOOKUP(CR$7+0.5,$K$68:$DL$122,ROWS($B$12:$B23)+2,FALSE)","v":421},{"$f":"HLOOKUP(CS$7+0.5,$K$68:$DL$122,ROWS($B$12:$B23)+2,FALSE)","v":4681},{"$f":"HLOOKUP(CT$7+0.5,$K$68:$DL$122,ROWS($B$12:$B23)+2,FALSE)","v":3931},{"$f":"HLOOKUP(CU$7+0.5,$K$68:$DL$122,ROWS($B$12:$B23)+2,FALSE)","v":221},{"$f":"HLOOKUP(CV$7+0.5,$K$68:$DL$122,ROWS($B$12:$B23)+2,FALSE)","v":1986},{"$f":"HLOOKUP(CW$7+0.5,$K$68:$DL$122,ROWS($B$12:$B23)+2,FALSE)","v":1107},{"$f":"HLOOKUP(CX$7+0.5,$K$68:$DL$122,ROWS($B$12:$B23)+2,FALSE)","v":472},{"$f":"HLOOKUP(CY$7+0.5,$K$68:$DL$122,ROWS($B$12:$B23)+2,FALSE)","v":1896},{"$f":"HLOOKUP(CZ$7+0.5,$K$68:$DL$122,ROWS($B$12:$B23)+2,FALSE)","v":504},{"$f":"HLOOKUP(DA$7+0.5,$K$68:$DL$122,ROWS($B$12:$B23)+2,FALSE)","v":5257},{"$f":"HLOOKUP(DB$7+0.5,$K$68:$DL$122,ROWS($B$12:$B23)+2,FALSE)","v":730},{"$f":"HLOOKUP(DC$7+0.5,$K$68:$DL$122,ROWS($B$12:$B23)+2,FALSE)","v":3610},{"$f":"HLOOKUP(DD$7+0.5,$K$68:$DL$122,ROWS($B$12:$B23)+2,FALSE)","v":3421},{"$f":"HLOOKUP(DE$7+0.5,$K$68:$DL$122,ROWS($B$12:$B23)+2,FALSE)","v":1061},{"$f":"HLOOKUP(DF$7+0.5,$K$68:$DL$122,ROWS($B$12:$B23)+2,FALSE)","v":334},{"$f":"HLOOKUP(DG$7+0.5,$K$68:$DL$122,ROWS($B$12:$B23)+2,FALSE)","v":3336},{"$f":"HLOOKUP(DH$7+0.5,$K$68:$DL$122,ROWS($B$12:$B23)+2,FALSE)","v":1532},{"$f":"HLOOKUP(DI$7+0.5,$K$68:$DL$122,ROWS($B$12:$B23)+2,FALSE)","v":778},{"$f":"HLOOKUP(DJ$7+0.5,$K$68:$DL$122,ROWS($B$12:$B23)+2,FALSE)","v":1401},{"$f":"HLOOKUP(DK$7+0.5,$K$68:$DL$122,ROWS($B$12:$B23)+2,FALSE)","v":775},{"$f":"HLOOKUP(DL$7+0.5,$K$68:$DL$122,ROWS($B$12:$B23)+2,FALSE)","v":841}]
[null,null,"Hawaii",1357806,1803,1160948,10743,122727,8676,8.2350900533187093E-3,{"$f":"HLOOKUP(K$7,$K$68:$DL$122,ROWS($B$12:$B24)+2,FALSE)","v":57542},{"$f":"HLOOKUP(L$7,$K$68:$DL$122,ROWS($B$12:$B24)+2,FALSE)","v":1268},{"$f":"HLOOKUP(M$7,$K$68:$DL$122,ROWS($B$12:$B24)+2,FALSE)","v":844},{"$f":"HLOOKUP(N$7,$K$68:$DL$122,ROWS($B$12:$B24)+2,FALSE)","v":2900},{"$f":"HLOOKUP(O$7,$K$68:$DL$122,ROWS($B$12:$B24)+2,FALSE)","v":242},{"$f":"HLOOKUP(P$7,$K$68:$DL$122,ROWS($B$12:$B24)+2,FALSE)","v":10173},{"$f":"HLOOKUP(Q$7,$K$68:$DL$122,ROWS($B$12:$B24)+2,FALSE)","v":950},{"$f":"HLOOKUP(R$7,$K$68:$DL$122,ROWS($B$12:$B24)+2,FALSE)","v":731},{"$f":"HLOOKUP(S$7,$K$68:$DL$122,ROWS($B$12:$B24)+2,FALSE)","v":784},{"$f":"HLOOKUP(T$7,$K$68:$DL$122,ROWS($B$12:$B24)+2,FALSE)","v":222},{"$f":"HLOOKUP(U$7,$K$68:$DL$122,ROWS($B$12:$B24)+2,FALSE)","v":3160},{"$f":"HLOOKUP(V$7,$K$68:$DL$122,ROWS($B$12:$B24)+2,FALSE)","v":2519},{"$f":"HLOOKUP(W$7,$K$68:$DL$122,ROWS($B$12:$B24)+2,FALSE)","v":"N/A"},{"$f":"HLOOKUP(X$7,$K$68:$DL$122,ROWS($B$12:$B24)+2,FALSE)","v":112},{"$f":"HLOOKUP(Y$7,$K$68:$DL$122,ROWS($B$12:$B24)+2,FALSE)","v":1884},{"$f":"HLOOKUP(Z$7,$K$68:$DL$122,ROWS($B$12:$B24)+2,FALSE)","v":402},{"$f":"HLOOKUP(AA$7,$K$68:$DL$122,ROWS($B$12:$B24)+2,FALSE)","v":478},{"$f":"HLOOKUP(AB$7,$K$68:$DL$122,ROWS($B$12:$B24)+2,FALSE)","v":125},{"$f":"HLOOKUP(AC$7,$K$68:$DL$122,ROWS($B$12:$B24)+2,FALSE)","v":18},{"$f":"HLOOKUP(AD$7,$K$68:$DL$122,ROWS($B$12:$B24)+2,FALSE)","v":179},{"$f":"HLOOKUP(AE$7,$K$68:$DL$122,ROWS($B$12:$B24)+2,FALSE)","v":106},{"$f":"HLOOKUP(AF$7,$K$68:$DL$122,ROWS($B$12:$B24)+2,FALSE)","v":341},{"$f":"HLOOKUP(AG$7,$K$68:$DL$122,ROWS($B$12:$B24)+2,FALSE)","v":92},{"$f":"HLOOKUP(AH$7,$K$68:$DL$122,ROWS($B$12:$B24)+2,FALSE)","v":1303},{"$f":"HLOOKUP(AI$7,$K$68:$DL$122,ROWS($B$12:$B24)+2,FALSE)","v":933},{"$f":"HLOOKUP(AJ$7,$K$68:$DL$122,ROWS($B$12:$B24)+2,FALSE)","v":371},{"$f":"HLOOKUP(AK$7,$K$68:$DL$122,ROWS($B$12:$B24)+2,FALSE)","v":308},{"$f":"HLOOKUP(AL$7,$K$68:$DL$122,ROWS($B$12:$B24)+2,FALSE)","v":85},{"$f":"HLOOKUP(AM$7,$K$68:$DL$122,ROWS($B$12:$B24)+2,FALSE)","v":91},{"$f":"HLOOKUP(AN$7,$K$68:$DL$122,ROWS($B$12:$B24)+2,FALSE)","v":1548},{"$f":"HLOOKUP(AO$7,$K$68:$DL$122,ROWS($B$12:$B24)+2,FALSE)","v":107},{"$f":"HLOOKUP(AP$7,$K$68:$DL$122,ROWS($B$12:$B24)+2,FALSE)","v":564},{"$f":"HLOOKUP(AQ$7,$K$68:$DL$122,ROWS($B$12:$B24)+2,FALSE)","v":354},{"$f":"HLOOKUP(AR$7,$K$68:$DL$122,ROWS($B$12:$B24)+2,FALSE)","v":4246},{"$f":"HLOOKUP(AS$7,$K$68:$DL$122,ROWS($B$12:$B24)+2,FALSE)","v":2307},{"$f":"HLOOKUP(AT$7,$K$68:$DL$122,ROWS($B$12:$B24)+2,FALSE)","v":32},{"$f":"HLOOKUP(AU$7,$K$68:$DL$122,ROWS($B$12:$B24)+2,FALSE)","v":970},{"$f":"HLOOKUP(AV$7,$K$68:$DL$122,ROWS($B$12:$B24)+2,FALSE)","v":685},{"$f":"HLOOKUP(AW$7,$K$68:$DL$122,ROWS($B$12:$B24)+2,FALSE)","v":2030},{"$f":"HLOOKUP(AX$7,$K$68:$DL$122,ROWS($B$12:$B24)+2,FALSE)","v":870},{"$f":"HLOOKUP(AY$7,$K$68:$DL$122,ROWS($B$12:$B24)+2,FALSE)","v":58},{"$f":"HLOOKUP(AZ$7,$K$68:$DL$122,ROWS($B$12:$B24)+2,FALSE)","v":1681},{"$f":"HLOOKUP(BA$7,$K$68:$DL$122,ROWS($B$12:$B24)+2,FALSE)","v":0},{"$f":"HLOOKUP(BB$7,$K$68:$DL$122,ROWS($B$12:$B24)+2,FALSE)","v":636},{"$f":"HLOOKUP(BC$7,$K$68:$DL$122,ROWS($B$12:$B24)+2,FALSE)","v":3007},{"$f":"HLOOKUP(BD$7,$K$68:$DL$122,ROWS($B$12:$B24)+2,FALSE)","v":1040},{"$f":"HLOOKUP(BE$7,$K$68:$DL$122,ROWS($B$12:$B24)+2,FALSE)","v":0},{"$f":"HLOOKUP(BF$7,$K$68:$DL$122,ROWS($B$12:$B24)+2,FALSE)","v":2523},{"$f":"HLOOKUP(BG$7,$K$68:$DL$122,ROWS($B$12:$B24)+2,FALSE)","v":3790},{"$f":"HLOOKUP(BH$7,$K$68:$DL$122,ROWS($B$12:$B24)+2,FALSE)","v":312},{"$f":"HLOOKUP(BI$7,$K$68:$DL$122,ROWS($B$12:$B24)+2,FALSE)","v":147},{"$f":"HLOOKUP(BJ$7,$K$68:$DL$122,ROWS($B$12:$B24)+2,FALSE)","v":14},{"$f":"HLOOKUP(BK$7,$K$68:$DL$122,ROWS($B$12:$B24)+2,FALSE)","v":238},{"$f":"HLOOKUP(BL$7+0.5,$K$68:$DL$122,ROWS($B$12:$B24)+2,FALSE)","v":5083},{"$f":"HLOOKUP(BM$7+0.5,$K$68:$DL$122,ROWS($B$12:$B24)+2,FALSE)","v":846},{"$f":"HLOOKUP(BN$7+0.5,$K$68:$DL$122,ROWS($B$12:$B24)+2,FALSE)","v":670},{"$f":"HLOOKUP(BO$7+0.5,$K$68:$DL$122,ROWS($B$12:$B24)+2,FALSE)","v":1208},{"$f":"HLOOKUP(BP$7+0.5,$K$68:$DL$122,ROWS($B$12:$B24)+2,FALSE)","v":260},{"$f":"HLOOKUP(BQ$7+0.5,$K$68:$DL$122,ROWS($B$12:$B24)+2,FALSE)","v":2201},{"$f":"HLOOKUP(BR$7+0.5,$K$68:$DL$122,ROWS($B$12:$B24)+2,FALSE)","v":493},{"$f":"HLOOKUP(BS$7+0.5,$K$68:$DL$122,ROWS($B$12:$B24)+2,FALSE)","v":739},{"$f":"HLOOKUP(BT$7+0.5,$K$68:$DL$122,ROWS($B$12:$B24)+2,FALSE)","v":877},{"$f":"HLOOKUP(BU$7+0.5,$K$68:$DL$122,ROWS($B$12:$B24)+2,FALSE)","v":275},{"$f":"HLOOKUP(BV$7+0.5,$K$68:$DL$122,ROWS($B$12:$B24)+2,FALSE)","v":1311},{"$f":"HLOOKUP(BW$7+0.5,$K$68:$DL$122,ROWS($B$12:$B24)+2,FALSE)","v":956},{"$f":"HLOOKUP(BX$7+0.5,$K$68:$DL$122,ROWS($B$12:$B24)+2,FALSE)","v":"N/A"},{"$f":"HLOOKUP(BY$7+0.5,$K$68:$DL$122,ROWS($B$12:$B24)+2,FALSE)","v":199},{"$f":"HLOOKUP(BZ$7+0.5,$K$68:$DL$122,ROWS($B$12:$B24)+2,FALSE)","v":728},{"$f":"HLOOKUP(CA$7+0.5,$K$68:$DL$122,ROWS($B$12:$B24)+2,FALSE)","v":280},{"$f":"HLOOKUP(CB$7+0.5,$K$68:$DL$122,ROWS($B$12:$B24)+2,FALSE)","v":504},{"$f":"HLOOKUP(CC$7+0.5,$K$68:$DL$122,ROWS($B$12:$B24)+2,FALSE)","v":154},{"$f":"HLOOKUP(CD$7+0.5,$K$68:$DL$122,ROWS($B$12:$B24)+2,FALSE)","v":36},{"$f":"HLOOKUP(CE$7+0.5,$K$68:$DL$122,ROWS($B$12:$B24)+2,FALSE)","v":270},{"$f":"HLOOKUP(CF$7+0.5,$K$68:$DL$122,ROWS($B$12:$B24)+2,FALSE)","v":161},{"$f":"HLOOKUP(CG$7+0.5,$K$68:$DL$122,ROWS($B$12:$B24)+2,FALSE)","v":212},{"$f":"HLOOKUP(CH$7+0.5,$K$68:$DL$122,ROWS($B$12:$B24)+2,FALSE)","v":123},{"$f":"HLOOKUP(CI$7+0.5,$K$68:$DL$122,ROWS($B$12:$B24)+2,FALSE)","v":1067},{"$f":"HLOOKUP(CJ$7+0.5,$K$68:$DL$122,ROWS($B$12:$B24)+2,FALSE)","v":750},{"$f":"HLOOKUP(CK$7+0.5,$K$68:$DL$122,ROWS($B$12:$B24)+2,FALSE)","v":391},{"$f":"HLOOKUP(CL$7+0.5,$K$68:$DL$122,ROWS($B$12:$B24)+2,FALSE)","v":219},{"$f":"HLOOKUP(CM$7+0.5,$K$68:$DL$122,ROWS($B$12:$B24)+2,FALSE)","v":140},{"$f":"HLOOKUP(CN$7+0.5,$K$68:$DL$122,ROWS($B$12:$B24)+2,FALSE)","v":95},{"$f":"HLOOKUP(CO$7+0.5,$K$68:$DL$122,ROWS($B$12:$B24)+2,FALSE)","v":795},{"$f":"HLOOKUP(CP$7+0.5,$K$68:$DL$122,ROWS($B$12:$B24)+2,FALSE)","v":141},{"$f":"HLOOKUP(CQ$7+0.5,$K$68:$DL$122,ROWS($B$12:$B24)+2,FALSE)","v":697},{"$f":"HLOOKUP(CR$7+0.5,$K$68:$DL$122,ROWS($B$12:$B24)+2,FALSE)","v":366},{"$f":"HLOOKUP(CS$7+0.5,$K$68:$DL$122,ROWS($B$12:$B24)+2,FALSE)","v":2556},{"$f":"HLOOKUP(CT$7+0.5,$K$68:$DL$122,ROWS($B$12:$B24)+2,FALSE)","v":1256},{"$f":"HLOOKUP(CU$7+0.5,$K$68:$DL$122,ROWS($B$12:$B24)+2,FALSE)","v":54},{"$f":"HLOOKUP(CV$7+0.5,$K$68:$DL$122,ROWS($B$12:$B24)+2,FALSE)","v":677},{"$f":"HLOOKUP(CW$7+0.5,$K$68:$DL$122,ROWS($B$12:$B24)+2,FALSE)","v":502},{"$f":"HLOOKUP(CX$7+0.5,$K$68:$DL$122,ROWS($B$12:$B24)+2,FALSE)","v":1378},{"$f":"HLOOKUP(CY$7+0.5,$K$68:$DL$122,ROWS($B$12:$B24)+2,FALSE)","v":468},{"$f":"HLOOKUP(CZ$7+0.5,$K$68:$DL$122,ROWS($B$12:$B24)+2,FALSE)","v":70},{"$f":"HLOOKUP(DA$7+0.5,$K$68:$DL$122,ROWS($B$12:$B24)+2,FALSE)","v":919},{"$f":"HLOOKUP(DB$7+0.5,$K$68:$DL$122,ROWS($B$12:$B24)+2,FALSE)","v":187},{"$f":"HLOOKUP(DC$7+0.5,$K$68:$DL$122,ROWS($B$12:$B24)+2,FALSE)","v":1018},{"$f":"HLOOKUP(DD$7+0.5,$K$68:$DL$122,ROWS($B$12:$B24)+2,FALSE)","v":1122},{"$f":"HLOOKUP(DE$7+0.5,$K$68:$DL$122,ROWS($B$12:$B24)+2,FALSE)","v":872},{"$f":"HLOOKUP(DF$7+0.5,$K$68:$DL$122,ROWS($B$12:$B24)+2,FALSE)","v":187},{"$f":"HLOOKUP(DG$7+0.5,$K$68:$DL$122,ROWS($B$12:$B24)+2,FALSE)","v":1318},{"$f":"HLOOKUP(DH$7+0.5,$K$68:$DL$122,ROWS($B$12:$B24)+2,FALSE)","v":1075},{"$f":"HLOOKUP(DI$7+0.5,$K$68:$DL$122,ROWS($B$12:$B24)+2,FALSE)","v":306},{"$f":"HLOOKUP(DJ$7+0.5,$K$68:$DL$122,ROWS($B$12:$B24)+2,FALSE)","v":159},{"$f":"HLOOKUP(DK$7+0.5,$K$68:$DL$122,ROWS($B$12:$B24)+2,FALSE)","v":23},{"$f":"HLOOKUP(DL$7+0.5,$K$68:$DL$122,ROWS($B$12:$B24)+2,FALSE)","v":398}]
[null,null,"Idaho",1559637,2674,1284530,13188,208434,13285,8.6349517475415808E-3,{"$f":"HLOOKUP(K$7,$K$68:$DL$122,ROWS($B$12:$B25)+2,FALSE)","v":60336},{"$f":"HLOOKUP(L$7,$K$68:$DL$122,ROWS($B$12:$B25)+2,FALSE)","v":263},{"$f":"HLOOKUP(M$7,$K$68:$DL$122,ROWS($B$12:$B25)+2,FALSE)","v":4510},{"$f":"HLOOKUP(N$7,$K$68:$DL$122,ROWS($B$12:$B25)+2,FALSE)","v":3543},{"$f":"HLOOKUP(O$7,$K$68:$DL$122,ROWS($B$12:$B25)+2,FALSE)","v":224},{"$f":"HLOOKUP(P$7,$K$68:$DL$122,ROWS($B$12:$B25)+2,FALSE)","v":9021},{"$f":"HLOOKUP(Q$7,$K$68:$DL$122,ROWS($B$12:$B25)+2,FALSE)","v":1813},{"$f":"HLOOKUP(R$7,$K$68:$DL$122,ROWS($B$12:$B25)+2,FALSE)","v":0},{"$f":"HLOOKUP(S$7,$K$68:$DL$122,ROWS($B$12:$B25)+2,FALSE)","v":0},{"$f":"HLOOKUP(T$7,$K$68:$DL$122,ROWS($B$12:$B25)+2,FALSE)","v":0},{"$f":"HLOOKUP(U$7,$K$68:$DL$122,ROWS($B$12:$B25)+2,FALSE)","v":1733},{"$f":"HLOOKUP(V$7,$K$68:$DL$122,ROWS($B$12:$B25)+2,FALSE)","v":275},{"$f":"HLOOKUP(W$7,$K$68:$DL$122,ROWS($B$12:$B25)+2,FALSE)","v":254},{"$f":"HLOOKUP(X$7,$K$68:$DL$122,ROWS($B$12:$B25)+2,FALSE)","v":"N/A"},{"$f":"HLOOKUP(Y$7,$K$68:$DL$122,ROWS($B$12:$B25)+2,FALSE)","v":390},{"$f":"HLOOKUP(Z$7,$K$68:$DL$122,ROWS($B$12:$B25)+2,FALSE)","v":296},{"$f":"HLOOKUP(AA$7,$K$68:$DL$122,ROWS($B$12:$B25)+2,FALSE)","v":318},{"$f":"HLOOKUP(AB$7,$K$68:$DL$122,ROWS($B$12:$B25)+2,FALSE)","v":479},{"$f":"HLOOKUP(AC$7,$K$68:$DL$122,ROWS($B$12:$B25)+2,FALSE)","v":120},{"$f":"HLOOKUP(AD$7,$K$68:$DL$122,ROWS($B$12:$B25)+2,FALSE)","v":51},{"$f":"HLOOKUP(AE$7,$K$68:$DL$122,ROWS($B$12:$B25)+2,FALSE)","v":0},{"$f":"HLOOKUP(AF$7,$K$68:$DL$122,ROWS($B$12:$B25)+2,FALSE)","v":0},{"$f":"HLOOKUP(AG$7,$K$68:$DL$122,ROWS($B$12:$B25)+2,FALSE)","v":396},{"$f":"HLOOKUP(AH$7,$K$68:$DL$122,ROWS($B$12:$B25)+2,FALSE)","v":615},{"$f":"HLOOKUP(AI$7,$K$68:$DL$122,ROWS($B$12:$B25)+2,FALSE)","v":566},{"$f":"HLOOKUP(AJ$7,$K$68:$DL$122,ROWS($B$12:$B25)+2,FALSE)","v":62},{"$f":"HLOOKUP(AK$7,$K$68:$DL$122,ROWS($B$12:$B25)+2,FALSE)","v":384},{"$f":"HLOOKUP(AL$7,$K$68:$DL$122,ROWS($B$12:$B25)+2,FALSE)","v":1602},{"$f":"HLOOKUP(AM$7,$K$68:$DL$122,ROWS($B$12:$B25)+2,FALSE)","v":439},{"$f":"HLOOKUP(AN$7,$K$68:$DL$122,ROWS($B$12:$B25)+2,FALSE)","v":3581},{"$f":"HLOOKUP(AO$7,$K$68:$DL$122,ROWS($B$12:$B25)+2,FALSE)","v":129},{"$f":"HLOOKUP(AP$7,$K$68:$DL$122,ROWS($B$12:$B25)+2,FALSE)","v":84},{"$f":"HLOOKUP(AQ$7,$K$68:$DL$122,ROWS($B$12:$B25)+2,FALSE)","v":141},{"$f":"HLOOKUP(AR$7,$K$68:$DL$122,ROWS($B$12:$B25)+2,FALSE)","v":419},{"$f":"HLOOKUP(AS$7,$K$68:$DL$122,ROWS($B$12:$B25)+2,FALSE)","v":263},{"$f":"HLOOKUP(AT$7,$K$68:$DL$122,ROWS($B$12:$B25)+2,FALSE)","v":1201},{"$f":"HLOOKUP(AU$7,$K$68:$DL$122,ROWS($B$12:$B25)+2,FALSE)","v":260},{"$f":"HLOOKUP(AV$7,$K$68:$DL$122,ROWS($B$12:$B25)+2,FALSE)","v":288},{"$f":"HLOOKUP(AW$7,$K$68:$DL$122,ROWS($B$12:$B25)+2,FALSE)","v":7170},{"$f":"HLOOKUP(AX$7,$K$68:$DL$122,ROWS($B$12:$B25)+2,FALSE)","v":343},{"$f":"HLOOKUP(AY$7,$K$68:$DL$122,ROWS($B$12:$B25)+2,FALSE)","v":0},{"$f":"HLOOKUP(AZ$7,$K$68:$DL$122,ROWS($B$12:$B25)+2,FALSE)","v":55},{"$f":"HLOOKUP(BA$7,$K$68:$DL$122,ROWS($B$12:$B25)+2,FALSE)","v":842},{"$f":"HLOOKUP(BB$7,$K$68:$DL$122,ROWS($B$12:$B25)+2,FALSE)","v":296},{"$f":"HLOOKUP(BC$7,$K$68:$DL$122,ROWS($B$12:$B25)+2,FALSE)","v":1303},{"$f":"HLOOKUP(BD$7,$K$68:$DL$122,ROWS($B$12:$B25)+2,FALSE)","v":6059},{"$f":"HLOOKUP(BE$7,$K$68:$DL$122,ROWS($B$12:$B25)+2,FALSE)","v":0},{"$f":"HLOOKUP(BF$7,$K$68:$DL$122,ROWS($B$12:$B25)+2,FALSE)","v":905},{"$f":"HLOOKUP(BG$7,$K$68:$DL$122,ROWS($B$12:$B25)+2,FALSE)","v":8991},{"$f":"HLOOKUP(BH$7,$K$68:$DL$122,ROWS($B$12:$B25)+2,FALSE)","v":0},{"$f":"HLOOKUP(BI$7,$K$68:$DL$122,ROWS($B$12:$B25)+2,FALSE)","v":165},{"$f":"HLOOKUP(BJ$7,$K$68:$DL$122,ROWS($B$12:$B25)+2,FALSE)","v":487},{"$f":"HLOOKUP(BK$7,$K$68:$DL$122,ROWS($B$12:$B25)+2,FALSE)","v":249},{"$f":"HLOOKUP(BL$7+0.5,$K$68:$DL$122,ROWS($B$12:$B25)+2,FALSE)","v":6293},{"$f":"HLOOKUP(BM$7+0.5,$K$68:$DL$122,ROWS($B$12:$B25)+2,FALSE)","v":259},{"$f":"HLOOKUP(BN$7+0.5,$K$68:$DL$122,ROWS($B$12:$B25)+2,FALSE)","v":2938},{"$f":"HLOOKUP(BO$7+0.5,$K$68:$DL$122,ROWS($B$12:$B25)+2,FALSE)","v":1771},{"$f":"HLOOKUP(BP$7+0.5,$K$68:$DL$122,ROWS($B$12:$B25)+2,FALSE)","v":188},{"$f":"HLOOKUP(BQ$7+0.5,$K$68:$DL$122,ROWS($B$12:$B25)+2,FALSE)","v":2484},{"$f":"HLOOKUP(BR$7+0.5,$K$68:$DL$122,ROWS($B$12:$B25)+2,FALSE)","v":1022},{"$f":"HLOOKUP(BS$7+0.5,$K$68:$DL$122,ROWS($B$12:$B25)+2,FALSE)","v":195},{"$f":"HLOOKUP(BT$7+0.5,$K$68:$DL$122,ROWS($B$12:$B25)+2,FALSE)","v":195},{"$f":"HLOOKUP(BU$7+0.5,$K$68:$DL$122,ROWS($B$12:$B25)+2,FALSE)","v":195},{"$f":"HLOOKUP(BV$7+0.5,$K$68:$DL$122,ROWS($B$12:$B25)+2,FALSE)","v":1210},{"$f":"HLOOKUP(BW$7+0.5,$K$68:$DL$122,ROWS($B$12:$B25)+2,FALSE)","v":234},{"$f":"HLOOKUP(BX$7+0.5,$K$68:$DL$122,ROWS($B$12:$B25)+2,FALSE)","v":314},{"$f":"HLOOKUP(BY$7+0.5,$K$68:$DL$122,ROWS($B$12:$B25)+2,FALSE)","v":"N/A"},{"$f":"HLOOKUP(BZ$7+0.5,$K$68:$DL$122,ROWS($B$12:$B25)+2,FALSE)","v":342},{"$f":"HLOOKUP(CA$7+0.5,$K$68:$DL$122,ROWS($B$12:$B25)+2,FALSE)","v":352},{"$f":"HLOOKUP(CB$7+0.5,$K$68:$DL$122,ROWS($B$12:$B25)+2,FALSE)","v":424},{"$f":"HLOOKUP(CC$7+0.5,$K$68:$DL$122,ROWS($B$12:$B25)+2,FALSE)","v":503},{"$f":"HLOOKUP(CD$7+0.5,$K$68:$DL$122,ROWS($B$12:$B25)+2,FALSE)","v":170},{"$f":"HLOOKUP(CE$7+0.5,$K$68:$DL$122,ROWS($B$12:$B25)+2,FALSE)","v":110},{"$f":"HLOOKUP(CF$7+0.5,$K$68:$DL$122,ROWS($B$12:$B25)+2,FALSE)","v":195},{"$f":"HLOOKUP(CG$7+0.5,$K$68:$DL$122,ROWS($B$12:$B25)+2,FALSE)","v":195},{"$f":"HLOOKUP(CH$7+0.5,$K$68:$DL$122,ROWS($B$12:$B25)+2,FALSE)","v":625},{"$f":"HLOOKUP(CI$7+0.5,$K$68:$DL$122,ROWS($B$12:$B25)+2,FALSE)","v":524},{"$f":"HLOOKUP(CJ$7+0.5,$K$68:$DL$122,ROWS($B$12:$B25)+2,FALSE)","v":352},{"$f":"HLOOKUP(CK$7+0.5,$K$68:$DL$122,ROWS($B$12:$B25)+2,FALSE)","v":106},{"$f":"HLOOKUP(CL$7+0.5,$K$68:$DL$122,ROWS($B$12:$B25)+2,FALSE)","v":304},{"$f":"HLOOKUP(CM$7+0.5,$K$68:$DL$122,ROWS($B$12:$B25)+2,FALSE)","v":828},{"$f":"HLOOKUP(CN$7+0.5,$K$68:$DL$122,ROWS($B$12:$B25)+2,FALSE)","v":591},{"$f":"HLOOKUP(CO$7+0.5,$K$68:$DL$122,ROWS($B$12:$B25)+2,FALSE)","v":1400},{"$f":"HLOOKUP(CP$7+0.5,$K$68:$DL$122,ROWS($B$12:$B25)+2,FALSE)","v":123},{"$f":"HLOOKUP(CQ$7+0.5,$K$68:$DL$122,ROWS($B$12:$B25)+2,FALSE)","v":78},{"$f":"HLOOKUP(CR$7+0.5,$K$68:$DL$122,ROWS($B$12:$B25)+2,FALSE)","v":229},{"$f":"HLOOKUP(CS$7+0.5,$K$68:$DL$122,ROWS($B$12:$B25)+2,FALSE)","v":399},{"$f":"HLOOKUP(CT$7+0.5,$K$68:$DL$122,ROWS($B$12:$B25)+2,FALSE)","v":435},{"$f":"HLOOKUP(CU$7+0.5,$K$68:$DL$122,ROWS($B$12:$B25)+2,FALSE)","v":1099},{"$f":"HLOOKUP(CV$7+0.5,$K$68:$DL$122,ROWS($B$12:$B25)+2,FALSE)","v":212},{"$f":"HLOOKUP(CW$7+0.5,$K$68:$DL$122,ROWS($B$12:$B25)+2,FALSE)","v":243},{"$f":"HLOOKUP(CX$7+0.5,$K$68:$DL$122,ROWS($B$12:$B25)+2,FALSE)","v":1894},{"$f":"HLOOKUP(CY$7+0.5,$K$68:$DL$122,ROWS($B$12:$B25)+2,FALSE)","v":265},{"$f":"HLOOKUP(CZ$7+0.5,$K$68:$DL$122,ROWS($B$12:$B25)+2,FALSE)","v":195},{"$f":"HLOOKUP(DA$7+0.5,$K$68:$DL$122,ROWS($B$12:$B25)+2,FALSE)","v":90},{"$f":"HLOOKUP(DB$7+0.5,$K$68:$DL$122,ROWS($B$12:$B25)+2,FALSE)","v":1132},{"$f":"HLOOKUP(DC$7+0.5,$K$68:$DL$122,ROWS($B$12:$B25)+2,FALSE)","v":356},{"$f":"HLOOKUP(DD$7+0.5,$K$68:$DL$122,ROWS($B$12:$B25)+2,FALSE)","v":952},{"$f":"HLOOKUP(DE$7+0.5,$K$68:$DL$122,ROWS($B$12:$B25)+2,FALSE)","v":2187},{"$f":"HLOOKUP(DF$7+0.5,$K$68:$DL$122,ROWS($B$12:$B25)+2,FALSE)","v":195},{"$f":"HLOOKUP(DG$7+0.5,$K$68:$DL$122,ROWS($B$12:$B25)+2,FALSE)","v":707},{"$f":"HLOOKUP(DH$7+0.5,$K$68:$DL$122,ROWS($B$12:$B25)+2,FALSE)","v":2313},{"$f":"HLOOKUP(DI$7+0.5,$K$68:$DL$122,ROWS($B$12:$B25)+2,FALSE)","v":195},{"$f":"HLOOKUP(DJ$7+0.5,$K$68:$DL$122,ROWS($B$12:$B25)+2,FALSE)","v":174},{"$f":"HLOOKUP(DK$7+0.5,$K$68:$DL$122,ROWS($B$12:$B25)+2,FALSE)","v":340},{"$f":"HLOOKUP(DL$7+0.5,$K$68:$DL$122,ROWS($B$12:$B25)+2,FALSE)","v":412}]
[null,null,"Illinois",12718402,5792,11076528,31383,1353853,28856,3.0941910428690662E-2,{"$f":"HLOOKUP(K$7,$K$68:$DL$122,ROWS($B$12:$B26)+2,FALSE)","v":216204},{"$f":"HLOOKUP(L$7,$K$68:$DL$122,ROWS($B$12:$B26)+2,FALSE)","v":2823},{"$f":"HLOOKUP(M$7,$K$68:$DL$122,ROWS($B$12:$B26)+2,FALSE)","v":4119},{"$f":"HLOOKUP(N$7,$K$68:$DL$122,ROWS($B$12:$B26)+2,FALSE)","v":7657},{"$f":"HLOOKUP(O$7,$K$68:$DL$122,ROWS($B$12:$B26)+2,FALSE)","v":3185},{"$f":"HLOOKUP(P$7,$K$68:$DL$122,ROWS($B$12:$B26)+2,FALSE)","v":13930},{"$f":"HLOOKUP(Q$7,$K$68:$DL$122,ROWS($B$12:$B26)+2,FALSE)","v":3271},{"$f":"HLOOKUP(R$7,$K$68:$DL$122,ROWS($B$12:$B26)+2,FALSE)","v":1819},{"$f":"HLOOKUP(S$7,$K$68:$DL$122,ROWS($B$12:$B26)+2,FALSE)","v":277},{"$f":"HLOOKUP(T$7,$K$68:$DL$122,ROWS($B$12:$B26)+2,FALSE)","v":1440},{"$f":"HLOOKUP(U$7,$K$68:$DL$122,ROWS($B$12:$B26)+2,FALSE)","v":17548},{"$f":"HLOOKUP(V$7,$K$68:$DL$122,ROWS($B$12:$B26)+2,FALSE)","v":6042},{"$f":"HLOOKUP(W$7,$K$68:$DL$122,ROWS($B$12:$B26)+2,FALSE)","v":1269},{"$f":"HLOOKUP(X$7,$K$68:$DL$122,ROWS($B$12:$B26)+2,FALSE)","v":393},{"$f":"HLOOKUP(Y$7,$K$68:$DL$122,ROWS($B$12:$B26)+2,FALSE)","v":"N/A"},{"$f":"HLOOKUP(Z$7,$K$68:$DL$122,ROWS($B$12:$B26)+2,FALSE)","v":23491},{"$f":"HLOOKUP(AA$7,$K$68:$DL$122,ROWS($B$12:$B26)+2,FALSE)","v":8420},{"$f":"HLOOKUP(AB$7,$K$68:$DL$122,ROWS($B$12:$B26)+2,FALSE)","v":2533},{"$f":"HLOOKUP(AC$7,$K$68:$DL$122,ROWS($B$12:$B26)+2,FALSE)","v":5569},{"$f":"HLOOKUP(AD$7,$K$68:$DL$122,ROWS($B$12:$B26)+2,FALSE)","v":1315},{"$f":"HLOOKUP(AE$7,$K$68:$DL$122,ROWS($B$12:$B26)+2,FALSE)","v":693},{"$f":"HLOOKUP(AF$7,$K$68:$DL$122,ROWS($B$12:$B26)+2,FALSE)","v":2565},{"$f":"HLOOKUP(AG$7,$K$68:$DL$122,ROWS($B$12:$B26)+2,FALSE)","v":3507},{"$f":"HLOOKUP(AH$7,$K$68:$DL$122,ROWS($B$12:$B26)+2,FALSE)","v":10274},{"$f":"HLOOKUP(AI$7,$K$68:$DL$122,ROWS($B$12:$B26)+2,FALSE)","v":4496},{"$f":"HLOOKUP(AJ$7,$K$68:$DL$122,ROWS($B$12:$B26)+2,FALSE)","v":1521},{"$f":"HLOOKUP(AK$7,$K$68:$DL$122,ROWS($B$12:$B26)+2,FALSE)","v":13889},{"$f":"HLOOKUP(AL$7,$K$68:$DL$122,ROWS($B$12:$B26)+2,FALSE)","v":304},{"$f":"HLOOKUP(AM$7,$K$68:$DL$122,ROWS($B$12:$B26)+2,FALSE)","v":827},{"$f":"HLOOKUP(AN$7,$K$68:$DL$122,ROWS($B$12:$B26)+2,FALSE)","v":2454},{"$f":"HLOOKUP(AO$7,$K$68:$DL$122,ROWS($B$12:$B26)+2,FALSE)","v":590},{"$f":"HLOOKUP(AP$7,$K$68:$DL$122,ROWS($B$12:$B26)+2,FALSE)","v":3009},{"$f":"HLOOKUP(AQ$7,$K$68:$DL$122,ROWS($B$12:$B26)+2,FALSE)","v":1573},{"$f":"HLOOKUP(AR$7,$K$68:$DL$122,ROWS($B$12:$B26)+2,FALSE)","v":6412},{"$f":"HLOOKUP(AS$7,$K$68:$DL$122,ROWS($B$12:$B26)+2,FALSE)","v":4057},{"$f":"HLOOKUP(AT$7,$K$68:$DL$122,ROWS($B$12:$B26)+2,FALSE)","v":105},{"$f":"HLOOKUP(AU$7,$K$68:$DL$122,ROWS($B$12:$B26)+2,FALSE)","v":8384},{"$f":"HLOOKUP(AV$7,$K$68:$DL$122,ROWS($B$12:$B26)+2,FALSE)","v":1002},{"$f":"HLOOKUP(AW$7,$K$68:$DL$122,ROWS($B$12:$B26)+2,FALSE)","v":792},{"$f":"HLOOKUP(AX$7,$K$68:$DL$122,ROWS($B$12:$B26)+2,FALSE)","v":3012},{"$f":"HLOOKUP(AY$7,$K$68:$DL$122,ROWS($B$12:$B26)+2,FALSE)","v":278},{"$f":"HLOOKUP(AZ$7,$K$68:$DL$122,ROWS($B$12:$B26)+2,FALSE)","v":1582},{"$f":"HLOOKUP(BA$7,$K$68:$DL$122,ROWS($B$12:$B26)+2,FALSE)","v":1318},{"$f":"HLOOKUP(BB$7,$K$68:$DL$122,ROWS($B$12:$B26)+2,FALSE)","v":3223},{"$f":"HLOOKUP(BC$7,$K$68:$DL$122,ROWS($B$12:$B26)+2,FALSE)","v":11011},{"$f":"HLOOKUP(BD$7,$K$68:$DL$122,ROWS($B$12:$B26)+2,FALSE)","v":951},{"$f":"HLOOKUP(BE$7,$K$68:$DL$122,ROWS($B$12:$B26)+2,FALSE)","v":49},{"$f":"HLOOKUP(BF$7,$K$68:$DL$122,ROWS($B$12:$B26)+2,FALSE)","v":5233},{"$f":"HLOOKUP(BG$7,$K$68:$DL$122,ROWS($B$12:$B26)+2,FALSE)","v":3075},{"$f":"HLOOKUP(BH$7,$K$68:$DL$122,ROWS($B$12:$B26)+2,FALSE)","v":352},{"$f":"HLOOKUP(BI$7,$K$68:$DL$122,ROWS($B$12:$B26)+2,FALSE)","v":14507},{"$f":"HLOOKUP(BJ$7,$K$68:$DL$122,ROWS($B$12:$B26)+2,FALSE)","v":58},{"$f":"HLOOKUP(BK$7,$K$68:$DL$122,ROWS($B$12:$B26)+2,FALSE)","v":2387},{"$f":"HLOOKUP(BL$7+0.5,$K$68:$DL$122,ROWS($B$12:$B26)+2,FALSE)","v":11862},{"$f":"HLOOKUP(BM$7+0.5,$K$68:$DL$122,ROWS($B$12:$B26)+2,FALSE)","v":1526},{"$f":"HLOOKUP(BN$7+0.5,$K$68:$DL$122,ROWS($B$12:$B26)+2,FALSE)","v":3153},{"$f":"HLOOKUP(BO$7+0.5,$K$68:$DL$122,ROWS($B$12:$B26)+2,FALSE)","v":1987},{"$f":"HLOOKUP(BP$7+0.5,$K$68:$DL$122,ROWS($B$12:$B26)+2,FALSE)","v":1513},{"$f":"HLOOKUP(BQ$7+0.5,$K$68:$DL$122,ROWS($B$12:$B26)+2,FALSE)","v":2863},{"$f":"HLOOKUP(BR$7+0.5,$K$68:$DL$122,ROWS($B$12:$B26)+2,FALSE)","v":1390},{"$f":"HLOOKUP(BS$7+0.5,$K$68:$DL$122,ROWS($B$12:$B26)+2,FALSE)","v":959},{"$f":"HLOOKUP(BT$7+0.5,$K$68:$DL$122,ROWS($B$12:$B26)+2,FALSE)","v":303},{"$f":"HLOOKUP(BU$7+0.5,$K$68:$DL$122,ROWS($B$12:$B26)+2,FALSE)","v":708},{"$f":"HLOOKUP(BV$7+0.5,$K$68:$DL$122,ROWS($B$12:$B26)+2,FALSE)","v":3370},{"$f":"HLOOKUP(BW$7+0.5,$K$68:$DL$122,ROWS($B$12:$B26)+2,FALSE)","v":2192},{"$f":"HLOOKUP(BX$7+0.5,$K$68:$DL$122,ROWS($B$12:$B26)+2,FALSE)","v":735},{"$f":"HLOOKUP(BY$7+0.5,$K$68:$DL$122,ROWS($B$12:$B26)+2,FALSE)","v":356},{"$f":"HLOOKUP(BZ$7+0.5,$K$68:$DL$122,ROWS($B$12:$B26)+2,FALSE)","v":"N/A"},{"$f":"HLOOKUP(CA$7+0.5,$K$68:$DL$122,ROWS($B$12:$B26)+2,FALSE)","v":5269},{"$f":"HLOOKUP(CB$7+0.5,$K$68:$DL$122,ROWS($B$12:$B26)+2,FALSE)","v":1581},{"$f":"HLOOKUP(CC$7+0.5,$K$68:$DL$122,ROWS($B$12:$B26)+2,FALSE)","v":1130},{"$f":"HLOOKUP(CD$7+0.5,$K$68:$DL$122,ROWS($B$12:$B26)+2,FALSE)","v":1718},{"$f":"HLOOKUP(CE$7+0.5,$K$68:$DL$122,ROWS($B$12:$B26)+2,FALSE)","v":761},{"$f":"HLOOKUP(CF$7+0.5,$K$68:$DL$122,ROWS($B$12:$B26)+2,FALSE)","v":510},{"$f":"HLOOKUP(CG$7+0.5,$K$68:$DL$122,ROWS($B$12:$B26)+2,FALSE)","v":916},{"$f":"HLOOKUP(CH$7+0.5,$K$68:$DL$122,ROWS($B$12:$B26)+2,FALSE)","v":1540},{"$f":"HLOOKUP(CI$7+0.5,$K$68:$DL$122,ROWS($B$12:$B26)+2,FALSE)","v":2032},{"$f":"HLOOKUP(CJ$7+0.5,$K$68:$DL$122,ROWS($B$12:$B26)+2,FALSE)","v":1177},{"$f":"HLOOKUP(CK$7+0.5,$K$68:$DL$122,ROWS($B$12:$B26)+2,FALSE)","v":581},{"$f":"HLOOKUP(CL$7+0.5,$K$68:$DL$122,ROWS($B$12:$B26)+2,FALSE)","v":2736},{"$f":"HLOOKUP(CM$7+0.5,$K$68:$DL$122,ROWS($B$12:$B26)+2,FALSE)","v":275},{"$f":"HLOOKUP(CN$7+0.5,$K$68:$DL$122,ROWS($B$12:$B26)+2,FALSE)","v":520},{"$f":"HLOOKUP(CO$7+0.5,$K$68:$DL$122,ROWS($B$12:$B26)+2,FALSE)","v":1187},{"$f":"HLOOKUP(CP$7+0.5,$K$68:$DL$122,ROWS($B$12:$B26)+2,FALSE)","v":334},{"$f":"HLOOKUP(CQ$7+0.5,$K$68:$DL$122,ROWS($B$12:$B26)+2,FALSE)","v":1033},{"$f":"HLOOKUP(CR$7+0.5,$K$68:$DL$122,ROWS($B$12:$B26)+2,FALSE)","v":1619},{"$f":"HLOOKUP(CS$7+0.5,$K$68:$DL$122,ROWS($B$12:$B26)+2,FALSE)","v":1874},{"$f":"HLOOKUP(CT$7+0.5,$K$68:$DL$122,ROWS($B$12:$B26)+2,FALSE)","v":1663},{"$f":"HLOOKUP(CU$7+0.5,$K$68:$DL$122,ROWS($B$12:$B26)+2,FALSE)","v":115},{"$f":"HLOOKUP(CV$7+0.5,$K$68:$DL$122,ROWS($B$12:$B26)+2,FALSE)","v":1627},{"$f":"HLOOKUP(CW$7+0.5,$K$68:$DL$122,ROWS($B$12:$B26)+2,FALSE)","v":552},{"$f":"HLOOKUP(CX$7+0.5,$K$68:$DL$122,ROWS($B$12:$B26)+2,FALSE)","v":426},{"$f":"HLOOKUP(CY$7+0.5,$K$68:$DL$122,ROWS($B$12:$B26)+2,FALSE)","v":1197},{"$f":"HLOOKUP(CZ$7+0.5,$K$68:$DL$122,ROWS($B$12:$B26)+2,FALSE)","v":266},{"$f":"HLOOKUP(DA$7+0.5,$K$68:$DL$122,ROWS($B$12:$B26)+2,FALSE)","v":783},{"$f":"HLOOKUP(DB$7+0.5,$K$68:$DL$122,ROWS($B$12:$B26)+2,FALSE)","v":1474},{"$f":"HLOOKUP(DC$7+0.5,$K$68:$DL$122,ROWS($B$12:$B26)+2,FALSE)","v":1222},{"$f":"HLOOKUP(DD$7+0.5,$K$68:$DL$122,ROWS($B$12:$B26)+2,FALSE)","v":2803},{"$f":"HLOOKUP(DE$7+0.5,$K$68:$DL$122,ROWS($B$12:$B26)+2,FALSE)","v":595},{"$f":"HLOOKUP(DF$7+0.5,$K$68:$DL$122,ROWS($B$12:$B26)+2,FALSE)","v":81},{"$f":"HLOOKUP(DG$7+0.5,$K$68:$DL$122,ROWS($B$12:$B26)+2,FALSE)","v":2524},{"$f":"HLOOKUP(DH$7+0.5,$K$68:$DL$122,ROWS($B$12:$B26)+2,FALSE)","v":1254},{"$f":"HLOOKUP(DI$7+0.5,$K$68:$DL$122,ROWS($B$12:$B26)+2,FALSE)","v":288},{"$f":"HLOOKUP(DJ$7+0.5,$K$68:$DL$122,ROWS($B$12:$B26)+2,FALSE)","v":2936},{"$f":"HLOOKUP(DK$7+0.5,$K$68:$DL$122,ROWS($B$12:$B26)+2,FALSE)","v":76},{"$f":"HLOOKUP(DL$7+0.5,$K$68:$DL$122,ROWS($B$12:$B26)+2,FALSE)","v":715}]
[null,null,"Indiana",6437155,3841,5478683,24180,809158,21392,1.8300613560148702E-2,{"$f":"HLOOKUP(K$7,$K$68:$DL$122,ROWS($B$12:$B27)+2,FALSE)","v":127874},{"$f":"HLOOKUP(L$7,$K$68:$DL$122,ROWS($B$12:$B27)+2,FALSE)","v":1562},{"$f":"HLOOKUP(M$7,$K$68:$DL$122,ROWS($B$12:$B27)+2,FALSE)","v":371},{"$f":"HLOOKUP(N$7,$K$68:$DL$122,ROWS($B$12:$B27)+2,FALSE)","v":3975},{"$f":"HLOOKUP(O$7,$K$68:$DL$122,ROWS($B$12:$B27)+2,FALSE)","v":2016},{"$f":"HLOOKUP(P$7,$K$68:$DL$122,ROWS($B$12:$B27)+2,FALSE)","v":7649},{"$f":"HLOOKUP(Q$7,$K$68:$DL$122,ROWS($B$12:$B27)+2,FALSE)","v":1930},{"$f":"HLOOKUP(R$7,$K$68:$DL$122,ROWS($B$12:$B27)+2,FALSE)","v":1227},{"$f":"HLOOKUP(S$7,$K$68:$DL$122,ROWS($B$12:$B27)+2,FALSE)","v":79},{"$f":"HLOOKUP(T$7,$K$68:$DL$122,ROWS($B$12:$B27)+2,FALSE)","v":0},{"$f":"HLOOKUP(U$7,$K$68:$DL$122,ROWS($B$12:$B27)+2,FALSE)","v":8595},{"$f":"HLOOKUP(V$7,$K$68:$DL$122,ROWS($B$12:$B27)+2,FALSE)","v":2543},{"$f":"HLOOKUP(W$7,$K$68:$DL$122,ROWS($B$12:$B27)+2,FALSE)","v":1057},{"$f":"HLOOKUP(X$7,$K$68:$DL$122,ROWS($B$12:$B27)+2,FALSE)","v":1368},{"$f":"HLOOKUP(Y$7,$K$68:$DL$122,ROWS($B$12:$B27)+2,FALSE)","v":23071},{"$f":"HLOOKUP(Z$7,$K$68:$DL$122,ROWS($B$12:$B27)+2,FALSE)","v":"N/A"},{"$f":"HLOOKUP(AA$7,$K$68:$DL$122,ROWS($B$12:$B27)+2,FALSE)","v":916},{"$f":"HLOOKUP(AB$7,$K$68:$DL$122,ROWS($B$12:$B27)+2,FALSE)","v":1321},{"$f":"HLOOKUP(AC$7,$K$68:$DL$122,ROWS($B$12:$B27)+2,FALSE)","v":10177},{"$f":"HLOOKUP(AD$7,$K$68:$DL$122,ROWS($B$12:$B27)+2,FALSE)","v":2241},{"$f":"HLOOKUP(AE$7,$K$68:$DL$122,ROWS($B$12:$B27)+2,FALSE)","v":275},{"$f":"HLOOKUP(AF$7,$K$68:$DL$122,ROWS($B$12:$B27)+2,FALSE)","v":480},{"$f":"HLOOKUP(AG$7,$K$68:$DL$122,ROWS($B$12:$B27)+2,FALSE)","v":952},{"$f":"HLOOKUP(AH$7,$K$68:$DL$122,ROWS($B$12:$B27)+2,FALSE)","v":7896},{"$f":"HLOOKUP(AI$7,$K$68:$DL$122,ROWS($B$12:$B27)+2,FALSE)","v":1168},{"$f":"HLOOKUP(AJ$7,$K$68:$DL$122,ROWS($B$12:$B27)+2,FALSE)","v":469},{"$f":"HLOOKUP(AK$7,$K$68:$DL$122,ROWS($B$12:$B27)+2,FALSE)","v":1824},{"$f":"HLOOKUP(AL$7,$K$68:$DL$122,ROWS($B$12:$B27)+2,FALSE)","v":34},{"$f":"HLOOKUP(AM$7,$K$68:$DL$122,ROWS($B$12:$B27)+2,FALSE)","v":622},{"$f":"HLOOKUP(AN$7,$K$68:$DL$122,ROWS($B$12:$B27)+2,FALSE)","v":511},{"$f":"HLOOKUP(AO$7,$K$68:$DL$122,ROWS($B$12:$B27)+2,FALSE)","v":90},{"$f":"HLOOKUP(AP$7,$K$68:$DL$122,ROWS($B$12:$B27)+2,FALSE)","v":651},{"$f":"HLOOKUP(AQ$7,$K$68:$DL$122,ROWS($B$12:$B27)+2,FALSE)","v":504},{"$f":"HLOOKUP(AR$7,$K$68:$DL$122,ROWS($B$12:$B27)+2,FALSE)","v":2518},{"$f":"HLOOKUP(AS$7,$K$68:$DL$122,ROWS($B$12:$B27)+2,FALSE)","v":3038},{"$f":"HLOOKUP(AT$7,$K$68:$DL$122,ROWS($B$12:$B27)+2,FALSE)","v":70},{"$f":"HLOOKUP(AU$7,$K$68:$DL$122,ROWS($B$12:$B27)+2,FALSE)","v":11109},{"$f":"HLOOKUP(AV$7,$K$68:$DL$122,ROWS($B$12:$B27)+2,FALSE)","v":844},{"$f":"HLOOKUP(AW$7,$K$68:$DL$122,ROWS($B$12:$B27)+2,FALSE)","v":505},{"$f":"HLOOKUP(AX$7,$K$68:$DL$122,ROWS($B$12:$B27)+2,FALSE)","v":3998},{"$f":"HLOOKUP(AY$7,$K$68:$DL$122,ROWS($B$12:$B27)+2,FALSE)","v":49},{"$f":"HLOOKUP(AZ$7,$K$68:$DL$122,ROWS($B$12:$B27)+2,FALSE)","v":3306},{"$f":"HLOOKUP(BA$7,$K$68:$DL$122,ROWS($B$12:$B27)+2,FALSE)","v":235},{"$f":"HLOOKUP(BB$7,$K$68:$DL$122,ROWS($B$12:$B27)+2,FALSE)","v":3879},{"$f":"HLOOKUP(BC$7,$K$68:$DL$122,ROWS($B$12:$B27)+2,FALSE)","v":6326},{"$f":"HLOOKUP(BD$7,$K$68:$DL$122,ROWS($B$12:$B27)+2,FALSE)","v":123},{"$f":"HLOOKUP(BE$7,$K$68:$DL$122,ROWS($B$12:$B27)+2,FALSE)","v":530},{"$f":"HLOOKUP(BF$7,$K$68:$DL$122,ROWS($B$12:$B27)+2,FALSE)","v":1486},{"$f":"HLOOKUP(BG$7,$K$68:$DL$122,ROWS($B$12:$B27)+2,FALSE)","v":1028},{"$f":"HLOOKUP(BH$7,$K$68:$DL$122,ROWS($B$12:$B27)+2,FALSE)","v":216},{"$f":"HLOOKUP(BI$7,$K$68:$DL$122,ROWS($B$12:$B27)+2,FALSE)","v":2923},{"$f":"HLOOKUP(BJ$7,$K$68:$DL$122,ROWS($B$12:$B27)+2,FALSE)","v":117},{"$f":"HLOOKUP(BK$7,$K$68:$DL$122,ROWS($B$12:$B27)+2,FALSE)","v":132},{"$f":"HLOOKUP(BL$7+0.5,$K$68:$DL$122,ROWS($B$12:$B27)+2,FALSE)","v":8918},{"$f":"HLOOKUP(BM$7+0.5,$K$68:$DL$122,ROWS($B$12:$B27)+2,FALSE)","v":1293},{"$f":"HLOOKUP(BN$7+0.5,$K$68:$DL$122,ROWS($B$12:$B27)+2,FALSE)","v":324},{"$f":"HLOOKUP(BO$7+0.5,$K$68:$DL$122,ROWS($B$12:$B27)+2,FALSE)","v":1427},{"$f":"HLOOKUP(BP$7+0.5,$K$68:$DL$122,ROWS($B$12:$B27)+2,FALSE)","v":1321},{"$f":"HLOOKUP(BQ$7+0.5,$K$68:$DL$122,ROWS($B$12:$B27)+2,FALSE)","v":2229},{"$f":"HLOOKUP(BR$7+0.5,$K$68:$DL$122,ROWS($B$12:$B27)+2,FALSE)","v":759},{"$f":"HLOOKUP(BS$7+0.5,$K$68:$DL$122,ROWS($B$12:$B27)+2,FALSE)","v":698},{"$f":"HLOOKUP(BT$7+0.5,$K$68:$DL$122,ROWS($B$12:$B27)+2,FALSE)","v":134},{"$f":"HLOOKUP(BU$7+0.5,$K$68:$DL$122,ROWS($B$12:$B27)+2,FALSE)","v":190},{"$f":"HLOOKUP(BV$7+0.5,$K$68:$DL$122,ROWS($B$12:$B27)+2,FALSE)","v":3053},{"$f":"HLOOKUP(BW$7+0.5,$K$68:$DL$122,ROWS($B$12:$B27)+2,FALSE)","v":1176},{"$f":"HLOOKUP(BX$7+0.5,$K$68:$DL$122,ROWS($B$12:$B27)+2,FALSE)","v":717},{"$f":"HLOOKUP(BY$7+0.5,$K$68:$DL$122,ROWS($B$12:$B27)+2,FALSE)","v":1278},{"$f":"HLOOKUP(BZ$7+0.5,$K$68:$DL$122,ROWS($B$12:$B27)+2,FALSE)","v":4221},{"$f":"HLOOKUP(CA$7+0.5,$K$68:$DL$122,ROWS($B$12:$B27)+2,FALSE)","v":"N/A"},{"$f":"HLOOKUP(CB$7+0.5,$K$68:$DL$122,ROWS($B$12:$B27)+2,FALSE)","v":468},{"$f":"HLOOKUP(CC$7+0.5,$K$68:$DL$122,ROWS($B$12:$B27)+2,FALSE)","v":946},{"$f":"HLOOKUP(CD$7+0.5,$K$68:$DL$122,ROWS($B$12:$B27)+2,FALSE)","v":2220},{"$f":"HLOOKUP(CE$7+0.5,$K$68:$DL$122,ROWS($B$12:$B27)+2,FALSE)","v":1537},{"$f":"HLOOKUP(CF$7+0.5,$K$68:$DL$122,ROWS($B$12:$B27)+2,FALSE)","v":388},{"$f":"HLOOKUP(CG$7+0.5,$K$68:$DL$122,ROWS($B$12:$B27)+2,FALSE)","v":256},{"$f":"HLOOKUP(CH$7+0.5,$K$68:$DL$122,ROWS($B$12:$B27)+2,FALSE)","v":703},{"$f":"HLOOKUP(CI$7+0.5,$K$68:$DL$122,ROWS($B$12:$B27)+2,FALSE)","v":1777},{"$f":"HLOOKUP(CJ$7+0.5,$K$68:$DL$122,ROWS($B$12:$B27)+2,FALSE)","v":568},{"$f":"HLOOKUP(CK$7+0.5,$K$68:$DL$122,ROWS($B$12:$B27)+2,FALSE)","v":366},{"$f":"HLOOKUP(CL$7+0.5,$K$68:$DL$122,ROWS($B$12:$B27)+2,FALSE)","v":1033},{"$f":"HLOOKUP(CM$7+0.5,$K$68:$DL$122,ROWS($B$12:$B27)+2,FALSE)","v":62},{"$f":"HLOOKUP(CN$7+0.5,$K$68:$DL$122,ROWS($B$12:$B27)+2,FALSE)","v":491},{"$f":"HLOOKUP(CO$7+0.5,$K$68:$DL$122,ROWS($B$12:$B27)+2,FALSE)","v":338},{"$f":"HLOOKUP(CP$7+0.5,$K$68:$DL$122,ROWS($B$12:$B27)+2,FALSE)","v":152},{"$f":"HLOOKUP(CQ$7+0.5,$K$68:$DL$122,ROWS($B$12:$B27)+2,FALSE)","v":348},{"$f":"HLOOKUP(CR$7+0.5,$K$68:$DL$122,ROWS($B$12:$B27)+2,FALSE)","v":410},{"$f":"HLOOKUP(CS$7+0.5,$K$68:$DL$122,ROWS($B$12:$B27)+2,FALSE)","v":816},{"$f":"HLOOKUP(CT$7+0.5,$K$68:$DL$122,ROWS($B$12:$B27)+2,FALSE)","v":1840},{"$f":"HLOOKUP(CU$7+0.5,$K$68:$DL$122,ROWS($B$12:$B27)+2,FALSE)","v":94},{"$f":"HLOOKUP(CV$7+0.5,$K$68:$DL$122,ROWS($B$12:$B27)+2,FALSE)","v":2141},{"$f":"HLOOKUP(CW$7+0.5,$K$68:$DL$122,ROWS($B$12:$B27)+2,FALSE)","v":522},{"$f":"HLOOKUP(CX$7+0.5,$K$68:$DL$122,ROWS($B$12:$B27)+2,FALSE)","v":617},{"$f":"HLOOKUP(CY$7+0.5,$K$68:$DL$122,ROWS($B$12:$B27)+2,FALSE)","v":1871},{"$f":"HLOOKUP(CZ$7+0.5,$K$68:$DL$122,ROWS($B$12:$B27)+2,FALSE)","v":84},{"$f":"HLOOKUP(DA$7+0.5,$K$68:$DL$122,ROWS($B$12:$B27)+2,FALSE)","v":1917},{"$f":"HLOOKUP(DB$7+0.5,$K$68:$DL$122,ROWS($B$12:$B27)+2,FALSE)","v":231},{"$f":"HLOOKUP(DC$7+0.5,$K$68:$DL$122,ROWS($B$12:$B27)+2,FALSE)","v":1292},{"$f":"HLOOKUP(DD$7+0.5,$K$68:$DL$122,ROWS($B$12:$B27)+2,FALSE)","v":2074},{"$f":"HLOOKUP(DE$7+0.5,$K$68:$DL$122,ROWS($B$12:$B27)+2,FALSE)","v":127},{"$f":"HLOOKUP(DF$7+0.5,$K$68:$DL$122,ROWS($B$12:$B27)+2,FALSE)","v":349},{"$f":"HLOOKUP(DG$7+0.5,$K$68:$DL$122,ROWS($B$12:$B27)+2,FALSE)","v":853},{"$f":"HLOOKUP(DH$7+0.5,$K$68:$DL$122,ROWS($B$12:$B27)+2,FALSE)","v":744},{"$f":"HLOOKUP(DI$7+0.5,$K$68:$DL$122,ROWS($B$12:$B27)+2,FALSE)","v":194},{"$f":"HLOOKUP(DJ$7+0.5,$K$68:$DL$122,ROWS($B$12:$B27)+2,FALSE)","v":1307},{"$f":"HLOOKUP(DK$7+0.5,$K$68:$DL$122,ROWS($B$12:$B27)+2,FALSE)","v":170},{"$f":"HLOOKUP(DL$7+0.5,$K$68:$DL$122,ROWS($B$12:$B27)+2,FALSE)","v":220}]
[null,null,"Iowa",3027718,2514,2573313,16682,370554,15638,1.0075970859613911E-2,{"$f":"HLOOKUP(K$7,$K$68:$DL$122,ROWS($B$12:$B28)+2,FALSE)","v":70405},{"$f":"HLOOKUP(L$7,$K$68:$DL$122,ROWS($B$12:$B28)+2,FALSE)","v":207},{"$f":"HLOOKUP(M$7,$K$68:$DL$122,ROWS($B$12:$B28)+2,FALSE)","v":967},{"$f":"HLOOKUP(N$7,$K$68:$DL$122,ROWS($B$12:$B28)+2,FALSE)","v":1411},{"$f":"HLOOKUP(O$7,$K$68:$DL$122,ROWS($B$12:$B28)+2,FALSE)","v":433},{"$f":"HLOOKUP(P$7,$K$68:$DL$122,ROWS($B$12:$B28)+2,FALSE)","v":3297},{"$f":"HLOOKUP(Q$7,$K$68:$DL$122,ROWS($B$12:$B28)+2,FALSE)","v":2891},{"$f":"HLOOKUP(R$7,$K$68:$DL$122,ROWS($B$12:$B28)+2,FALSE)","v":424},{"$f":"HLOOKUP(S$7,$K$68:$DL$122,ROWS($B$12:$B28)+2,FALSE)","v":0},{"$f":"HLOOKUP(T$7,$K$68:$DL$122,ROWS($B$12:$B28)+2,FALSE)","v":0},{"$f":"HLOOKUP(U$7,$K$68:$DL$122,ROWS($B$12:$B28)+2,FALSE)","v":707},{"$f":"HLOOKUP(V$7,$K$68:$DL$122,ROWS($B$12:$B28)+2,FALSE)","v":1938},{"$f":"HLOOKUP(W$7,$K$68:$DL$122,ROWS($B$12:$B28)+2,FALSE)","v":299},{"$f":"HLOOKUP(X$7,$K$68:$DL$122,ROWS($B$12:$B28)+2,FALSE)","v":161},{"$f":"HLOOKUP(Y$7,$K$68:$DL$122,ROWS($B$12:$B28)+2,FALSE)","v":13725},{"$f":"HLOOKUP(Z$7,$K$68:$DL$122,ROWS($B$12:$B28)+2,FALSE)","v":349},{"$f":"HLOOKUP(AA$7,$K$68:$DL$122,ROWS($B$12:$B28)+2,FALSE)","v":"N/A"},{"$f":"HLOOKUP(AB$7,$K$68:$DL$122,ROWS($B$12:$B28)+2,FALSE)","v":1776},{"$f":"HLOOKUP(AC$7,$K$68:$DL$122,ROWS($B$12:$B28)+2,FALSE)","v":387},{"$f":"HLOOKUP(AD$7,$K$68:$DL$122,ROWS($B$12:$B28)+2,FALSE)","v":228},{"$f":"HLOOKUP(AE$7,$K$68:$DL$122,ROWS($B$12:$B28)+2,FALSE)","v":26},{"$f":"HLOOKUP(AF$7,$K$68:$DL$122,ROWS($B$12:$B28)+2,FALSE)","v":487},{"$f":"HLOOKUP(AG$7,$K$68:$DL$122,ROWS($B$12:$B28)+2,FALSE)","v":466},{"$f":"HLOOKUP(AH$7,$K$68:$DL$122,ROWS($B$12:$B28)+2,FALSE)","v":1687},{"$f":"HLOOKUP(AI$7,$K$68:$DL$122,ROWS($B$12:$B28)+2,FALSE)","v":5634},{"$f":"HLOOKUP(AJ$7,$K$68:$DL$122,ROWS($B$12:$B28)+2,FALSE)","v":408},{"$f":"HLOOKUP(AK$7,$K$68:$DL$122,ROWS($B$12:$B28)+2,FALSE)","v":3649},{"$f":"HLOOKUP(AL$7,$K$68:$DL$122,ROWS($B$12:$B28)+2,FALSE)","v":370},{"$f":"HLOOKUP(AM$7,$K$68:$DL$122,ROWS($B$12:$B28)+2,FALSE)","v":6490},{"$f":"HLOOKUP(AN$7,$K$68:$DL$122,ROWS($B$12:$B28)+2,FALSE)","v":2009},{"$f":"HLOOKUP(AO$7,$K$68:$DL$122,ROWS($B$12:$B28)+2,FALSE)","v":0},{"$f":"HLOOKUP(AP$7,$K$68:$DL$122,ROWS($B$12:$B28)+2,FALSE)","v":185},{"$f":"HLOOKUP(AQ$7,$K$68:$DL$122,ROWS($B$12:$B28)+2,FALSE)","v":421},{"$f":"HLOOKUP(AR$7,$K$68:$DL$122,ROWS($B$12:$B28)+2,FALSE)","v":2361},{"$f":"HLOOKUP(AS$7,$K$68:$DL$122,ROWS($B$12:$B28)+2,FALSE)","v":1760},{"$f":"HLOOKUP(AT$7,$K$68:$DL$122,ROWS($B$12:$B28)+2,FALSE)","v":604},{"$f":"HLOOKUP(AU$7,$K$68:$DL$122,ROWS($B$12:$B28)+2,FALSE)","v":993},{"$f":"HLOOKUP(AV$7,$K$68:$DL$122,ROWS($B$12:$B28)+2,FALSE)","v":532},{"$f":"HLOOKUP(AW$7,$K$68:$DL$122,ROWS($B$12:$B28)+2,FALSE)","v":811},{"$f":"HLOOKUP(AX$7,$K$68:$DL$122,ROWS($B$12:$B28)+2,FALSE)","v":388},{"$f":"HLOOKUP(AY$7,$K$68:$DL$122,ROWS($B$12:$B28)+2,FALSE)","v":65},{"$f":"HLOOKUP(AZ$7,$K$68:$DL$122,ROWS($B$12:$B28)+2,FALSE)","v":172},{"$f":"HLOOKUP(BA$7,$K$68:$DL$122,ROWS($B$12:$B28)+2,FALSE)","v":2842},{"$f":"HLOOKUP(BB$7,$K$68:$DL$122,ROWS($B$12:$B28)+2,FALSE)","v":623},{"$f":"HLOOKUP(BC$7,$K$68:$DL$122,ROWS($B$12:$B28)+2,FALSE)","v":2334},{"$f":"HLOOKUP(BD$7,$K$68:$DL$122,ROWS($B$12:$B28)+2,FALSE)","v":1482},{"$f":"HLOOKUP(BE$7,$K$68:$DL$122,ROWS($B$12:$B28)+2,FALSE)","v":38},{"$f":"HLOOKUP(BF$7,$K$68:$DL$122,ROWS($B$12:$B28)+2,FALSE)","v":720},{"$f":"HLOOKUP(BG$7,$K$68:$DL$122,ROWS($B$12:$B28)+2,FALSE)","v":856},{"$f":"HLOOKUP(BH$7,$K$68:$DL$122,ROWS($B$12:$B28)+2,FALSE)","v":115},{"$f":"HLOOKUP(BI$7,$K$68:$DL$122,ROWS($B$12:$B28)+2,FALSE)","v":2537},{"$f":"HLOOKUP(BJ$7,$K$68:$DL$122,ROWS($B$12:$B28)+2,FALSE)","v":140},{"$f":"HLOOKUP(BK$7,$K$68:$DL$122,ROWS($B$12:$B28)+2,FALSE)","v":57},{"$f":"HLOOKUP(BL$7+0.5,$K$68:$DL$122,ROWS($B$12:$B28)+2,FALSE)","v":5539},{"$f":"HLOOKUP(BM$7+0.5,$K$68:$DL$122,ROWS($B$12:$B28)+2,FALSE)","v":259},{"$f":"HLOOKUP(BN$7+0.5,$K$68:$DL$122,ROWS($B$12:$B28)+2,FALSE)","v":651},{"$f":"HLOOKUP(BO$7+0.5,$K$68:$DL$122,ROWS($B$12:$B28)+2,FALSE)","v":726},{"$f":"HLOOKUP(BP$7+0.5,$K$68:$DL$122,ROWS($B$12:$B28)+2,FALSE)","v":317},{"$f":"HLOOKUP(BQ$7+0.5,$K$68:$DL$122,ROWS($B$12:$B28)+2,FALSE)","v":1022},{"$f":"HLOOKUP(BR$7+0.5,$K$68:$DL$122,ROWS($B$12:$B28)+2,FALSE)","v":1129},{"$f":"HLOOKUP(BS$7+0.5,$K$68:$DL$122,ROWS($B$12:$B28)+2,FALSE)","v":628},{"$f":"HLOOKUP(BT$7+0.5,$K$68:$DL$122,ROWS($B$12:$B28)+2,FALSE)","v":155},{"$f":"HLOOKUP(BU$7+0.5,$K$68:$DL$122,ROWS($B$12:$B28)+2,FALSE)","v":155},{"$f":"HLOOKUP(BV$7+0.5,$K$68:$DL$122,ROWS($B$12:$B28)+2,FALSE)","v":455},{"$f":"HLOOKUP(BW$7+0.5,$K$68:$DL$122,ROWS($B$12:$B28)+2,FALSE)","v":1485},{"$f":"HLOOKUP(BX$7+0.5,$K$68:$DL$122,ROWS($B$12:$B28)+2,FALSE)","v":454},{"$f":"HLOOKUP(BY$7+0.5,$K$68:$DL$122,ROWS($B$12:$B28)+2,FALSE)","v":175},{"$f":"HLOOKUP(BZ$7+0.5,$K$68:$DL$122,ROWS($B$12:$B28)+2,FALSE)","v":2238},{"$f":"HLOOKUP(CA$7+0.5,$K$68:$DL$122,ROWS($B$12:$B28)+2,FALSE)","v":204},{"$f":"HLOOKUP(CB$7+0.5,$K$68:$DL$122,ROWS($B$12:$B28)+2,FALSE)","v":"N/A"},{"$f":"HLOOKUP(CC$7+0.5,$K$68:$DL$122,ROWS($B$12:$B28)+2,FALSE)","v":819},{"$f":"HLOOKUP(CD$7+0.5,$K$68:$DL$122,ROWS($B$12:$B28)+2,FALSE)","v":303},{"$f":"HLOOKUP(CE$7+0.5,$K$68:$DL$122,ROWS($B$12:$B28)+2,FALSE)","v":223},{"$f":"HLOOKUP(CF$7+0.5,$K$68:$DL$122,ROWS($B$12:$B28)+2,FALSE)","v":43},{"$f":"HLOOKUP(CG$7+0.5,$K$68:$DL$122,ROWS($B$12:$B28)+2,FALSE)","v":319},{"$f":"HLOOKUP(CH$7+0.5,$K$68:$DL$122,ROWS($B$12:$B28)+2,FALSE)","v":632},{"$f":"HLOOKUP(CI$7+0.5,$K$68:$DL$122,ROWS($B$12:$B28)+2,FALSE)","v":954},{"$f":"HLOOKUP(CJ$7+0.5,$K$68:$DL$122,ROWS($B$12:$B28)+2,FALSE)","v":1117},{"$f":"HLOOKUP(CK$7+0.5,$K$68:$DL$122,ROWS($B$12:$B28)+2,FALSE)","v":306},{"$f":"HLOOKUP(CL$7+0.5,$K$68:$DL$122,ROWS($B$12:$B28)+2,FALSE)","v":1188},{"$f":"HLOOKUP(CM$7+0.5,$K$68:$DL$122,ROWS($B$12:$B28)+2,FALSE)","v":338},{"$f":"HLOOKUP(CN$7+0.5,$K$68:$DL$122,ROWS($B$12:$B28)+2,FALSE)","v":1780},{"$f":"HLOOKUP(CO$7+0.5,$K$68:$DL$122,ROWS($B$12:$B28)+2,FALSE)","v":1634},{"$f":"HLOOKUP(CP$7+0.5,$K$68:$DL$122,ROWS($B$12:$B28)+2,FALSE)","v":155},{"$f":"HLOOKUP(CQ$7+0.5,$K$68:$DL$122,ROWS($B$12:$B28)+2,FALSE)","v":209},{"$f":"HLOOKUP(CR$7+0.5,$K$68:$DL$122,ROWS($B$12:$B28)+2,FALSE)","v":347},{"$f":"HLOOKUP(CS$7+0.5,$K$68:$DL$122,ROWS($B$12:$B28)+2,FALSE)","v":1104},{"$f":"HLOOKUP(CT$7+0.5,$K$68:$DL$122,ROWS($B$12:$B28)+2,FALSE)","v":1268},{"$f":"HLOOKUP(CU$7+0.5,$K$68:$DL$122,ROWS($B$12:$B28)+2,FALSE)","v":377},{"$f":"HLOOKUP(CV$7+0.5,$K$68:$DL$122,ROWS($B$12:$B28)+2,FALSE)","v":482},{"$f":"HLOOKUP(CW$7+0.5,$K$68:$DL$122,ROWS($B$12:$B28)+2,FALSE)","v":417},{"$f":"HLOOKUP(CX$7+0.5,$K$68:$DL$122,ROWS($B$12:$B28)+2,FALSE)","v":476},{"$f":"HLOOKUP(CY$7+0.5,$K$68:$DL$122,ROWS($B$12:$B28)+2,FALSE)","v":292},{"$f":"HLOOKUP(CZ$7+0.5,$K$68:$DL$122,ROWS($B$12:$B28)+2,FALSE)","v":108},{"$f":"HLOOKUP(DA$7+0.5,$K$68:$DL$122,ROWS($B$12:$B28)+2,FALSE)","v":200},{"$f":"HLOOKUP(DB$7+0.5,$K$68:$DL$122,ROWS($B$12:$B28)+2,FALSE)","v":965},{"$f":"HLOOKUP(DC$7+0.5,$K$68:$DL$122,ROWS($B$12:$B28)+2,FALSE)","v":529},{"$f":"HLOOKUP(DD$7+0.5,$K$68:$DL$122,ROWS($B$12:$B28)+2,FALSE)","v":1235},{"$f":"HLOOKUP(DE$7+0.5,$K$68:$DL$122,ROWS($B$12:$B28)+2,FALSE)","v":940},{"$f":"HLOOKUP(DF$7+0.5,$K$68:$DL$122,ROWS($B$12:$B28)+2,FALSE)","v":71},{"$f":"HLOOKUP(DG$7+0.5,$K$68:$DL$122,ROWS($B$12:$B28)+2,FALSE)","v":854},{"$f":"HLOOKUP(DH$7+0.5,$K$68:$DL$122,ROWS($B$12:$B28)+2,FALSE)","v":577},{"$f":"HLOOKUP(DI$7+0.5,$K$68:$DL$122,ROWS($B$12:$B28)+2,FALSE)","v":181},{"$f":"HLOOKUP(DJ$7+0.5,$K$68:$DL$122,ROWS($B$12:$B28)+2,FALSE)","v":850},{"$f":"HLOOKUP(DK$7+0.5,$K$68:$DL$122,ROWS($B$12:$B28)+2,FALSE)","v":117},{"$f":"HLOOKUP(DL$7+0.5,$K$68:$DL$122,ROWS($B$12:$B28)+2,FALSE)","v":115}]
[null,null,"Kansas",2833584,2851,2372033,15236,362782,14847,1.1970090230780592E-2,{"$f":"HLOOKUP(K$7,$K$68:$DL$122,ROWS($B$12:$B29)+2,FALSE)","v":83640},{"$f":"HLOOKUP(L$7,$K$68:$DL$122,ROWS($B$12:$B29)+2,FALSE)","v":434},{"$f":"HLOOKUP(M$7,$K$68:$DL$122,ROWS($B$12:$B29)+2,FALSE)","v":108},{"$f":"HLOOKUP(N$7,$K$68:$DL$122,ROWS($B$12:$B29)+2,FALSE)","v":2028},{"$f":"HLOOKUP(O$7,$K$68:$DL$122,ROWS($B$12:$B29)+2,FALSE)","v":998},{"$f":"HLOOKUP(P$7,$K$68:$DL$122,ROWS($B$12:$B29)+2,FALSE)","v":4743},{"$f":"HLOOKUP(Q$7,$K$68:$DL$122,ROWS($B$12:$B29)+2,FALSE)","v":5030},{"$f":"HLOOKUP(R$7,$K$68:$DL$122,ROWS($B$12:$B29)+2,FALSE)","v":412},{"$f":"HLOOKUP(S$7,$K$68:$DL$122,ROWS($B$12:$B29)+2,FALSE)","v":74},{"$f":"HLOOKUP(T$7,$K$68:$DL$122,ROWS($B$12:$B29)+2,FALSE)","v":128},{"$f":"HLOOKUP(U$7,$K$68:$DL$122,ROWS($B$12:$B29)+2,FALSE)","v":1581},{"$f":"HLOOKUP(V$7,$K$68:$DL$122,ROWS($B$12:$B29)+2,FALSE)","v":1146},{"$f":"HLOOKUP(W$7,$K$68:$DL$122,ROWS($B$12:$B29)+2,FALSE)","v":287},{"$f":"HLOOKUP(X$7,$K$68:$DL$122,ROWS($B$12:$B29)+2,FALSE)","v":264},{"$f":"HLOOKUP(Y$7,$K$68:$DL$122,ROWS($B$12:$B29)+2,FALSE)","v":2760},{"$f":"HLOOKUP(Z$7,$K$68:$DL$122,ROWS($B$12:$B29)+2,FALSE)","v":863},{"$f":"HLOOKUP(AA$7,$K$68:$DL$122,ROWS($B$12:$B29)+2,FALSE)","v":1715},{"$f":"HLOOKUP(AB$7,$K$68:$DL$122,ROWS($B$12:$B29)+2,FALSE)","v":"N/A"},{"$f":"HLOOKUP(AC$7,$K$68:$DL$122,ROWS($B$12:$B29)+2,FALSE)","v":1167},{"$f":"HLOOKUP(AD$7,$K$68:$DL$122,ROWS($B$12:$B29)+2,FALSE)","v":519},{"$f":"HLOOKUP(AE$7,$K$68:$DL$122,ROWS($B$12:$B29)+2,FALSE)","v":481},{"$f":"HLOOKUP(AF$7,$K$68:$DL$122,ROWS($B$12:$B29)+2,FALSE)","v":3180},{"$f":"HLOOKUP(AG$7,$K$68:$DL$122,ROWS($B$12:$B29)+2,FALSE)","v":28},{"$f":"HLOOKUP(AH$7,$K$68:$DL$122,ROWS($B$12:$B29)+2,FALSE)","v":1947},{"$f":"HLOOKUP(AI$7,$K$68:$DL$122,ROWS($B$12:$B29)+2,FALSE)","v":679},{"$f":"HLOOKUP(AJ$7,$K$68:$DL$122,ROWS($B$12:$B29)+2,FALSE)","v":1517},{"$f":"HLOOKUP(AK$7,$K$68:$DL$122,ROWS($B$12:$B29)+2,FALSE)","v":22033},{"$f":"HLOOKUP(AL$7,$K$68:$DL$122,ROWS($B$12:$B29)+2,FALSE)","v":270},{"$f":"HLOOKUP(AM$7,$K$68:$DL$122,ROWS($B$12:$B29)+2,FALSE)","v":1648},{"$f":"HLOOKUP(AN$7,$K$68:$DL$122,ROWS($B$12:$B29)+2,FALSE)","v":657},{"$f":"HLOOKUP(AO$7,$K$68:$DL$122,ROWS($B$12:$B29)+2,FALSE)","v":27},{"$f":"HLOOKUP(AP$7,$K$68:$DL$122,ROWS($B$12:$B29)+2,FALSE)","v":1189},{"$f":"HLOOKUP(AQ$7,$K$68:$DL$122,ROWS($B$12:$B29)+2,FALSE)","v":769},{"$f":"HLOOKUP(AR$7,$K$68:$DL$122,ROWS($B$12:$B29)+2,FALSE)","v":780},{"$f":"HLOOKUP(AS$7,$K$68:$DL$122,ROWS($B$12:$B29)+2,FALSE)","v":1223},{"$f":"HLOOKUP(AT$7,$K$68:$DL$122,ROWS($B$12:$B29)+2,FALSE)","v":379},{"$f":"HLOOKUP(AU$7,$K$68:$DL$122,ROWS($B$12:$B29)+2,FALSE)","v":1616},{"$f":"HLOOKUP(AV$7,$K$68:$DL$122,ROWS($B$12:$B29)+2,FALSE)","v":5022},{"$f":"HLOOKUP(AW$7,$K$68:$DL$122,ROWS($B$12:$B29)+2,FALSE)","v":285},{"$f":"HLOOKUP(AX$7,$K$68:$DL$122,ROWS($B$12:$B29)+2,FALSE)","v":1494},{"$f":"HLOOKUP(AY$7,$K$68:$DL$122,ROWS($B$12:$B29)+2,FALSE)","v":180},{"$f":"HLOOKUP(AZ$7,$K$68:$DL$122,ROWS($B$12:$B29)+2,FALSE)","v":1102},{"$f":"HLOOKUP(BA$7,$K$68:$DL$122,ROWS($B$12:$B29)+2,FALSE)","v":104},{"$f":"HLOOKUP(BB$7,$K$68:$DL$122,ROWS($B$12:$B29)+2,FALSE)","v":1066},{"$f":"HLOOKUP(BC$7,$K$68:$DL$122,ROWS($B$12:$B29)+2,FALSE)","v":6575},{"$f":"HLOOKUP(BD$7,$K$68:$DL$122,ROWS($B$12:$B29)+2,FALSE)","v":196},{"$f":"HLOOKUP(BE$7,$K$68:$DL$122,ROWS($B$12:$B29)+2,FALSE)","v":0},{"$f":"HLOOKUP(BF$7,$K$68:$DL$122,ROWS($B$12:$B29)+2,FALSE)","v":1986},{"$f":"HLOOKUP(BG$7,$K$68:$DL$122,ROWS($B$12:$B29)+2,FALSE)","v":772},{"$f":"HLOOKUP(BH$7,$K$68:$DL$122,ROWS($B$12:$B29)+2,FALSE)","v":0},{"$f":"HLOOKUP(BI$7,$K$68:$DL$122,ROWS($B$12:$B29)+2,FALSE)","v":893},{"$f":"HLOOKUP(BJ$7,$K$68:$DL$122,ROWS($B$12:$B29)+2,FALSE)","v":1285},{"$f":"HLOOKUP(BK$7,$K$68:$DL$122,ROWS($B$12:$B29)+2,FALSE)","v":775},{"$f":"HLOOKUP(BL$7+0.5,$K$68:$DL$122,ROWS($B$12:$B29)+2,FALSE)","v":7144},{"$f":"HLOOKUP(BM$7+0.5,$K$68:$DL$122,ROWS($B$12:$B29)+2,FALSE)","v":310},{"$f":"HLOOKUP(BN$7+0.5,$K$68:$DL$122,ROWS($B$12:$B29)+2,FALSE)","v":84},{"$f":"HLOOKUP(BO$7+0.5,$K$68:$DL$122,ROWS($B$12:$B29)+2,FALSE)","v":858},{"$f":"HLOOKUP(BP$7+0.5,$K$68:$DL$122,ROWS($B$12:$B29)+2,FALSE)","v":697},{"$f":"HLOOKUP(BQ$7+0.5,$K$68:$DL$122,ROWS($B$12:$B29)+2,FALSE)","v":2121},{"$f":"HLOOKUP(BR$7+0.5,$K$68:$DL$122,ROWS($B$12:$B29)+2,FALSE)","v":1611},{"$f":"HLOOKUP(BS$7+0.5,$K$68:$DL$122,ROWS($B$12:$B29)+2,FALSE)","v":519},{"$f":"HLOOKUP(BT$7+0.5,$K$68:$DL$122,ROWS($B$12:$B29)+2,FALSE)","v":85},{"$f":"HLOOKUP(BU$7+0.5,$K$68:$DL$122,ROWS($B$12:$B29)+2,FALSE)","v":141},{"$f":"HLOOKUP(BV$7+0.5,$K$68:$DL$122,ROWS($B$12:$B29)+2,FALSE)","v":790},{"$f":"HLOOKUP(BW$7+0.5,$K$68:$DL$122,ROWS($B$12:$B29)+2,FALSE)","v":666},{"$f":"HLOOKUP(BX$7+0.5,$K$68:$DL$122,ROWS($B$12:$B29)+2,FALSE)","v":282},{"$f":"HLOOKUP(BY$7+0.5,$K$68:$DL$122,ROWS($B$12:$B29)+2,FALSE)","v":358},{"$f":"HLOOKUP(BZ$7+0.5,$K$68:$DL$122,ROWS($B$12:$B29)+2,FALSE)","v":1019},{"$f":"HLOOKUP(CA$7+0.5,$K$68:$DL$122,ROWS($B$12:$B29)+2,FALSE)","v":458},{"$f":"HLOOKUP(CB$7+0.5,$K$68:$DL$122,ROWS($B$12:$B29)+2,FALSE)","v":888},{"$f":"HLOOKUP(CC$7+0.5,$K$68:$DL$122,ROWS($B$12:$B29)+2,FALSE)","v":"N/A"},{"$f":"HLOOKUP(CD$7+0.5,$K$68:$DL$122,ROWS($B$12:$B29)+2,FALSE)","v":770},{"$f":"HLOOKUP(CE$7+0.5,$K$68:$DL$122,ROWS($B$12:$B29)+2,FALSE)","v":338},{"$f":"HLOOKUP(CF$7+0.5,$K$68:$DL$122,ROWS($B$12:$B29)+2,FALSE)","v":527},{"$f":"HLOOKUP(CG$7+0.5,$K$68:$DL$122,ROWS($B$12:$B29)+2,FALSE)","v":2454},{"$f":"HLOOKUP(CH$7+0.5,$K$68:$DL$122,ROWS($B$12:$B29)+2,FALSE)","v":49},{"$f":"HLOOKUP(CI$7+0.5,$K$68:$DL$122,ROWS($B$12:$B29)+2,FALSE)","v":1003},{"$f":"HLOOKUP(CJ$7+0.5,$K$68:$DL$122,ROWS($B$12:$B29)+2,FALSE)","v":418},{"$f":"HLOOKUP(CK$7+0.5,$K$68:$DL$122,ROWS($B$12:$B29)+2,FALSE)","v":1370},{"$f":"HLOOKUP(CL$7+0.5,$K$68:$DL$122,ROWS($B$12:$B29)+2,FALSE)","v":4568},{"$f":"HLOOKUP(CM$7+0.5,$K$68:$DL$122,ROWS($B$12:$B29)+2,FALSE)","v":255},{"$f":"HLOOKUP(CN$7+0.5,$K$68:$DL$122,ROWS($B$12:$B29)+2,FALSE)","v":701},{"$f":"HLOOKUP(CO$7+0.5,$K$68:$DL$122,ROWS($B$12:$B29)+2,FALSE)","v":359},{"$f":"HLOOKUP(CP$7+0.5,$K$68:$DL$122,ROWS($B$12:$B29)+2,FALSE)","v":37},{"$f":"HLOOKUP(CQ$7+0.5,$K$68:$DL$122,ROWS($B$12:$B29)+2,FALSE)","v":724},{"$f":"HLOOKUP(CR$7+0.5,$K$68:$DL$122,ROWS($B$12:$B29)+2,FALSE)","v":810},{"$f":"HLOOKUP(CS$7+0.5,$K$68:$DL$122,ROWS($B$12:$B29)+2,FALSE)","v":411},{"$f":"HLOOKUP(CT$7+0.5,$K$68:$DL$122,ROWS($B$12:$B29)+2,FALSE)","v":840},{"$f":"HLOOKUP(CU$7+0.5,$K$68:$DL$122,ROWS($B$12:$B29)+2,FALSE)","v":558},{"$f":"HLOOKUP(CV$7+0.5,$K$68:$DL$122,ROWS($B$12:$B29)+2,FALSE)","v":901},{"$f":"HLOOKUP(CW$7+0.5,$K$68:$DL$122,ROWS($B$12:$B29)+2,FALSE)","v":1204},{"$f":"HLOOKUP(CX$7+0.5,$K$68:$DL$122,ROWS($B$12:$B29)+2,FALSE)","v":284},{"$f":"HLOOKUP(CY$7+0.5,$K$68:$DL$122,ROWS($B$12:$B29)+2,FALSE)","v":1815},{"$f":"HLOOKUP(CZ$7+0.5,$K$68:$DL$122,ROWS($B$12:$B29)+2,FALSE)","v":261},{"$f":"HLOOKUP(DA$7+0.5,$K$68:$DL$122,ROWS($B$12:$B29)+2,FALSE)","v":670},{"$f":"HLOOKUP(DB$7+0.5,$K$68:$DL$122,ROWS($B$12:$B29)+2,FALSE)","v":147},{"$f":"HLOOKUP(DC$7+0.5,$K$68:$DL$122,ROWS($B$12:$B29)+2,FALSE)","v":496},{"$f":"HLOOKUP(DD$7+0.5,$K$68:$DL$122,ROWS($B$12:$B29)+2,FALSE)","v":1436},{"$f":"HLOOKUP(DE$7+0.5,$K$68:$DL$122,ROWS($B$12:$B29)+2,FALSE)","v":265},{"$f":"HLOOKUP(DF$7+0.5,$K$68:$DL$122,ROWS($B$12:$B29)+2,FALSE)","v":168},{"$f":"HLOOKUP(DG$7+0.5,$K$68:$DL$122,ROWS($B$12:$B29)+2,FALSE)","v":1018},{"$f":"HLOOKUP(DH$7+0.5,$K$68:$DL$122,ROWS($B$12:$B29)+2,FALSE)","v":459},{"$f":"HLOOKUP(DI$7+0.5,$K$68:$DL$122,ROWS($B$12:$B29)+2,FALSE)","v":168},{"$f":"HLOOKUP(DJ$7+0.5,$K$68:$DL$122,ROWS($B$12:$B29)+2,FALSE)","v":575},{"$f":"HLOOKUP(DK$7+0.5,$K$68:$DL$122,ROWS($B$12:$B29)+2,FALSE)","v":791},{"$f":"HLOOKUP(DL$7+0.5,$K$68:$DL$122,ROWS($B$12:$B29)+2,FALSE)","v":1013}]
[null,null,"Kentucky",4316297,3382,3686232,19523,505741,18525,1.5747022933799849E-2,{"$f":"HLOOKUP(K$7,$K$68:$DL$122,ROWS($B$12:$B30)+2,FALSE)","v":110031},{"$f":"HLOOKUP(L$7,$K$68:$DL$122,ROWS($B$12:$B30)+2,FALSE)","v":925},{"$f":"HLOOKUP(M$7,$K$68:$DL$122,ROWS($B$12:$B30)+2,FALSE)","v":0},{"$f":"HLOOKUP(N$7,$K$68:$DL$122,ROWS($B$12:$B30)+2,FALSE)","v":1818},{"$f":"HLOOKUP(O$7,$K$68:$DL$122,ROWS($B$12:$B30)+2,FALSE)","v":1058},{"$f":"HLOOKUP(P$7,$K$68:$DL$122,ROWS($B$12:$B30)+2,FALSE)","v":2130},{"$f":"HLOOKUP(Q$7,$K$68:$DL$122,ROWS($B$12:$B30)+2,FALSE)","v":221},{"$f":"HLOOKUP(R$7,$K$68:$DL$122,ROWS($B$12:$B30)+2,FALSE)","v":176},{"$f":"HLOOKUP(S$7,$K$68:$DL$122,ROWS($B$12:$B30)+2,FALSE)","v":0},{"$f":"HLOOKUP(T$7,$K$68:$DL$122,ROWS($B$12:$B30)+2,FALSE)","v":201},{"$f":"HLOOKUP(U$7,$K$68:$DL$122,ROWS($B$12:$B30)+2,FALSE)","v":7400},{"$f":"HLOOKUP(V$7,$K$68:$DL$122,ROWS($B$12:$B30)+2,FALSE)","v":2725},{"$f":"HLOOKUP(W$7,$K$68:$DL$122,ROWS($B$12:$B30)+2,FALSE)","v":63},{"$f":"HLOOKUP(X$7,$K$68:$DL$122,ROWS($B$12:$B30)+2,FALSE)","v":36},{"$f":"HLOOKUP(Y$7,$K$68:$DL$122,ROWS($B$12:$B30)+2,FALSE)","v":4273},{"$f":"HLOOKUP(Z$7,$K$68:$DL$122,ROWS($B$12:$B30)+2,FALSE)","v":11071},{"$f":"HLOOKUP(AA$7,$K$68:$DL$122,ROWS($B$12:$B30)+2,FALSE)","v":536},{"$f":"HLOOKUP(AB$7,$K$68:$DL$122,ROWS($B$12:$B30)+2,FALSE)","v":253},{"$f":"HLOOKUP(AC$7,$K$68:$DL$122,ROWS($B$12:$B30)+2,FALSE)","v":"N/A"},{"$f":"HLOOKUP(AD$7,$K$68:$DL$122,ROWS($B$12:$B30)+2,FALSE)","v":1399},{"$f":"HLOOKUP(AE$7,$K$68:$DL$122,ROWS($B$12:$B30)+2,FALSE)","v":71},{"$f":"HLOOKUP(AF$7,$K$68:$DL$122,ROWS($B$12:$B30)+2,FALSE)","v":2076},{"$f":"HLOOKUP(AG$7,$K$68:$DL$122,ROWS($B$12:$B30)+2,FALSE)","v":1019},{"$f":"HLOOKUP(AH$7,$K$68:$DL$122,ROWS($B$12:$B30)+2,FALSE)","v":3178},{"$f":"HLOOKUP(AI$7,$K$68:$DL$122,ROWS($B$12:$B30)+2,FALSE)","v":475},{"$f":"HLOOKUP(AJ$7,$K$68:$DL$122,ROWS($B$12:$B30)+2,FALSE)","v":1248},{"$f":"HLOOKUP(AK$7,$K$68:$DL$122,ROWS($B$12:$B30)+2,FALSE)","v":2793},{"$f":"HLOOKUP(AL$7,$K$68:$DL$122,ROWS($B$12:$B30)+2,FALSE)","v":216},{"$f":"HLOOKUP(AM$7,$K$68:$DL$122,ROWS($B$12:$B30)+2,FALSE)","v":471},{"$f":"HLOOKUP(AN$7,$K$68:$DL$122,ROWS($B$12:$B30)+2,FALSE)","v":1358},{"$f":"HLOOKUP(AO$7,$K$68:$DL$122,ROWS($B$12:$B30)+2,FALSE)","v":52},{"$f":"HLOOKUP(AP$7,$K$68:$DL$122,ROWS($B$12:$B30)+2,FALSE)","v":1289},{"$f":"HLOOKUP(AQ$7,$K$68:$DL$122,ROWS($B$12:$B30)+2,FALSE)","v":553},{"$f":"HLOOKUP(AR$7,$K$68:$DL$122,ROWS($B$12:$B30)+2,FALSE)","v":2174},{"$f":"HLOOKUP(AS$7,$K$68:$DL$122,ROWS($B$12:$B30)+2,FALSE)","v":3916},{"$f":"HLOOKUP(AT$7,$K$68:$DL$122,ROWS($B$12:$B30)+2,FALSE)","v":117},{"$f":"HLOOKUP(AU$7,$K$68:$DL$122,ROWS($B$12:$B30)+2,FALSE)","v":19617},{"$f":"HLOOKUP(AV$7,$K$68:$DL$122,ROWS($B$12:$B30)+2,FALSE)","v":1256},{"$f":"HLOOKUP(AW$7,$K$68:$DL$122,ROWS($B$12:$B30)+2,FALSE)","v":459},{"$f":"HLOOKUP(AX$7,$K$68:$DL$122,ROWS($B$12:$B30)+2,FALSE)","v":1490},{"$f":"HLOOKUP(AY$7,$K$68:$DL$122,ROWS($B$12:$B30)+2,FALSE)","v":640},{"$f":"HLOOKUP(AZ$7,$K$68:$DL$122,ROWS($B$12:$B30)+2,FALSE)","v":1387},{"$f":"HLOOKUP(BA$7,$K$68:$DL$122,ROWS($B$12:$B30)+2,FALSE)","v":0},{"$f":"HLOOKUP(BB$7,$K$68:$DL$122,ROWS($B$12:$B30)+2,FALSE)","v":16852},{"$f":"HLOOKUP(BC$7,$K$68:$DL$122,ROWS($B$12:$B30)+2,FALSE)","v":4661},{"$f":"HLOOKUP(BD$7,$K$68:$DL$122,ROWS($B$12:$B30)+2,FALSE)","v":140},{"$f":"HLOOKUP(BE$7,$K$68:$DL$122,ROWS($B$12:$B30)+2,FALSE)","v":151},{"$f":"HLOOKUP(BF$7,$K$68:$DL$122,ROWS($B$12:$B30)+2,FALSE)","v":5154},{"$f":"HLOOKUP(BG$7,$K$68:$DL$122,ROWS($B$12:$B30)+2,FALSE)","v":1121},{"$f":"HLOOKUP(BH$7,$K$68:$DL$122,ROWS($B$12:$B30)+2,FALSE)","v":1174},{"$f":"HLOOKUP(BI$7,$K$68:$DL$122,ROWS($B$12:$B30)+2,FALSE)","v":581},{"$f":"HLOOKUP(BJ$7,$K$68:$DL$122,ROWS($B$12:$B30)+2,FALSE)","v":57},{"$f":"HLOOKUP(BK$7,$K$68:$DL$122,ROWS($B$12:$B30)+2,FALSE)","v":192},{"$f":"HLOOKUP(BL$7+0.5,$K$68:$DL$122,ROWS($B$12:$B30)+2,FALSE)","v":9177},{"$f":"HLOOKUP(BM$7+0.5,$K$68:$DL$122,ROWS($B$12:$B30)+2,FALSE)","v":441},{"$f":"HLOOKUP(BN$7+0.5,$K$68:$DL$122,ROWS($B$12:$B30)+2,FALSE)","v":189},{"$f":"HLOOKUP(BO$7+0.5,$K$68:$DL$122,ROWS($B$12:$B30)+2,FALSE)","v":916},{"$f":"HLOOKUP(BP$7+0.5,$K$68:$DL$122,ROWS($B$12:$B30)+2,FALSE)","v":778},{"$f":"HLOOKUP(BQ$7+0.5,$K$68:$DL$122,ROWS($B$12:$B30)+2,FALSE)","v":1154},{"$f":"HLOOKUP(BR$7+0.5,$K$68:$DL$122,ROWS($B$12:$B30)+2,FALSE)","v":197},{"$f":"HLOOKUP(BS$7+0.5,$K$68:$DL$122,ROWS($B$12:$B30)+2,FALSE)","v":251},{"$f":"HLOOKUP(BT$7+0.5,$K$68:$DL$122,ROWS($B$12:$B30)+2,FALSE)","v":189},{"$f":"HLOOKUP(BU$7+0.5,$K$68:$DL$122,ROWS($B$12:$B30)+2,FALSE)","v":248},{"$f":"HLOOKUP(BV$7+0.5,$K$68:$DL$122,ROWS($B$12:$B30)+2,FALSE)","v":1965},{"$f":"HLOOKUP(BW$7+0.5,$K$68:$DL$122,ROWS($B$12:$B30)+2,FALSE)","v":892},{"$f":"HLOOKUP(BX$7+0.5,$K$68:$DL$122,ROWS($B$12:$B30)+2,FALSE)","v":80},{"$f":"HLOOKUP(BY$7+0.5,$K$68:$DL$122,ROWS($B$12:$B30)+2,FALSE)","v":69},{"$f":"HLOOKUP(BZ$7+0.5,$K$68:$DL$122,ROWS($B$12:$B30)+2,FALSE)","v":1415},{"$f":"HLOOKUP(CA$7+0.5,$K$68:$DL$122,ROWS($B$12:$B30)+2,FALSE)","v":2846},{"$f":"HLOOKUP(CB$7+0.5,$K$68:$DL$122,ROWS($B$12:$B30)+2,FALSE)","v":410},{"$f":"HLOOKUP(CC$7+0.5,$K$68:$DL$122,ROWS($B$12:$B30)+2,FALSE)","v":212},{"$f":"HLOOKUP(CD$7+0.5,$K$68:$DL$122,ROWS($B$12:$B30)+2,FALSE)","v":"N/A"},{"$f":"HLOOKUP(CE$7+0.5,$K$68:$DL$122,ROWS($B$12:$B30)+2,FALSE)","v":906},{"$f":"HLOOKUP(CF$7+0.5,$K$68:$DL$122,ROWS($B$12:$B30)+2,FALSE)","v":137},{"$f":"HLOOKUP(CG$7+0.5,$K$68:$DL$122,ROWS($B$12:$B30)+2,FALSE)","v":1444},{"$f":"HLOOKUP(CH$7+0.5,$K$68:$DL$122,ROWS($B$12:$B30)+2,FALSE)","v":885},{"$f":"HLOOKUP(CI$7+0.5,$K$68:$DL$122,ROWS($B$12:$B30)+2,FALSE)","v":1248},{"$f":"HLOOKUP(CJ$7+0.5,$K$68:$DL$122,ROWS($B$12:$B30)+2,FALSE)","v":415},{"$f":"HLOOKUP(CK$7+0.5,$K$68:$DL$122,ROWS($B$12:$B30)+2,FALSE)","v":868},{"$f":"HLOOKUP(CL$7+0.5,$K$68:$DL$122,ROWS($B$12:$B30)+2,FALSE)","v":1158},{"$f":"HLOOKUP(CM$7+0.5,$K$68:$DL$122,ROWS($B$12:$B30)+2,FALSE)","v":238},{"$f":"HLOOKUP(CN$7+0.5,$K$68:$DL$122,ROWS($B$12:$B30)+2,FALSE)","v":517},{"$f":"HLOOKUP(CO$7+0.5,$K$68:$DL$122,ROWS($B$12:$B30)+2,FALSE)","v":976},{"$f":"HLOOKUP(CP$7+0.5,$K$68:$DL$122,ROWS($B$12:$B30)+2,FALSE)","v":84},{"$f":"HLOOKUP(CQ$7+0.5,$K$68:$DL$122,ROWS($B$12:$B30)+2,FALSE)","v":1472},{"$f":"HLOOKUP(CR$7+0.5,$K$68:$DL$122,ROWS($B$12:$B30)+2,FALSE)","v":370},{"$f":"HLOOKUP(CS$7+0.5,$K$68:$DL$122,ROWS($B$12:$B30)+2,FALSE)","v":1660},{"$f":"HLOOKUP(CT$7+0.5,$K$68:$DL$122,ROWS($B$12:$B30)+2,FALSE)","v":1965},{"$f":"HLOOKUP(CU$7+0.5,$K$68:$DL$122,ROWS($B$12:$B30)+2,FALSE)","v":195},{"$f":"HLOOKUP(CV$7+0.5,$K$68:$DL$122,ROWS($B$12:$B30)+2,FALSE)","v":3115},{"$f":"HLOOKUP(CW$7+0.5,$K$68:$DL$122,ROWS($B$12:$B30)+2,FALSE)","v":853},{"$f":"HLOOKUP(CX$7+0.5,$K$68:$DL$122,ROWS($B$12:$B30)+2,FALSE)","v":328},{"$f":"HLOOKUP(CY$7+0.5,$K$68:$DL$122,ROWS($B$12:$B30)+2,FALSE)","v":598},{"$f":"HLOOKUP(CZ$7+0.5,$K$68:$DL$122,ROWS($B$12:$B30)+2,FALSE)","v":876},{"$f":"HLOOKUP(DA$7+0.5,$K$68:$DL$122,ROWS($B$12:$B30)+2,FALSE)","v":814},{"$f":"HLOOKUP(DB$7+0.5,$K$68:$DL$122,ROWS($B$12:$B30)+2,FALSE)","v":189},{"$f":"HLOOKUP(DC$7+0.5,$K$68:$DL$122,ROWS($B$12:$B30)+2,FALSE)","v":3762},{"$f":"HLOOKUP(DD$7+0.5,$K$68:$DL$122,ROWS($B$12:$B30)+2,FALSE)","v":1468},{"$f":"HLOOKUP(DE$7+0.5,$K$68:$DL$122,ROWS($B$12:$B30)+2,FALSE)","v":202},{"$f":"HLOOKUP(DF$7+0.5,$K$68:$DL$122,ROWS($B$12:$B30)+2,FALSE)","v":152},{"$f":"HLOOKUP(DG$7+0.5,$K$68:$DL$122,ROWS($B$12:$B30)+2,FALSE)","v":1719},{"$f":"HLOOKUP(DH$7+0.5,$K$68:$DL$122,ROWS($B$12:$B30)+2,FALSE)","v":614},{"$f":"HLOOKUP(DI$7+0.5,$K$68:$DL$122,ROWS($B$12:$B30)+2,FALSE)","v":566},{"$f":"HLOOKUP(DJ$7+0.5,$K$68:$DL$122,ROWS($B$12:$B30)+2,FALSE)","v":414},{"$f":"HLOOKUP(DK$7+0.5,$K$68:$DL$122,ROWS($B$12:$B30)+2,FALSE)","v":93},{"$f":"HLOOKUP(DL$7+0.5,$K$68:$DL$122,ROWS($B$12:$B30)+2,FALSE)","v":262}]
[null,null,"Louisiana",4518629,3250,3865118,18789,538691,17818,1.418807753824876E-2,{"$f":"HLOOKUP(K$7,$K$68:$DL$122,ROWS($B$12:$B31)+2,FALSE)","v":99138},{"$f":"HLOOKUP(L$7,$K$68:$DL$122,ROWS($B$12:$B31)+2,FALSE)","v":3065},{"$f":"HLOOKUP(M$7,$K$68:$DL$122,ROWS($B$12:$B31)+2,FALSE)","v":288},{"$f":"HLOOKUP(N$7,$K$68:$DL$122,ROWS($B$12:$B31)+2,FALSE)","v":2010},{"$f":"HLOOKUP(O$7,$K$68:$DL$122,ROWS($B$12:$B31)+2,FALSE)","v":2774},{"$f":"HLOOKUP(P$7,$K$68:$DL$122,ROWS($B$12:$B31)+2,FALSE)","v":3957},{"$f":"HLOOKUP(Q$7,$K$68:$DL$122,ROWS($B$12:$B31)+2,FALSE)","v":1202},{"$f":"HLOOKUP(R$7,$K$68:$DL$122,ROWS($B$12:$B31)+2,FALSE)","v":358},{"$f":"HLOOKUP(S$7,$K$68:$DL$122,ROWS($B$12:$B31)+2,FALSE)","v":0},{"$f":"HLOOKUP(T$7,$K$68:$DL$122,ROWS($B$12:$B31)+2,FALSE)","v":195},{"$f":"HLOOKUP(U$7,$K$68:$DL$122,ROWS($B$12:$B31)+2,FALSE)","v":5193},{"$f":"HLOOKUP(V$7,$K$68:$DL$122,ROWS($B$12:$B31)+2,FALSE)","v":4425},{"$f":"HLOOKUP(W$7,$K$68:$DL$122,ROWS($B$12:$B31)+2,FALSE)","v":688},{"$f":"HLOOKUP(X$7,$K$68:$DL$122,ROWS($B$12:$B31)+2,FALSE)","v":230},{"$f":"HLOOKUP(Y$7,$K$68:$DL$122,ROWS($B$12:$B31)+2,FALSE)","v":1189},{"$f":"HLOOKUP(Z$7,$K$68:$DL$122,ROWS($B$12:$B31)+2,FALSE)","v":1549},{"$f":"HLOOKUP(AA$7,$K$68:$DL$122,ROWS($B$12:$B31)+2,FALSE)","v":468},{"$f":"HLOOKUP(AB$7,$K$68:$DL$122,ROWS($B$12:$B31)+2,FALSE)","v":312},{"$f":"HLOOKUP(AC$7,$K$68:$DL$122,ROWS($B$12:$B31)+2,FALSE)","v":1520},{"$f":"HLOOKUP(AD$7,$K$68:$DL$122,ROWS($B$12:$B31)+2,FALSE)","v":"N/A"},{"$f":"HLOOKUP(AE$7,$K$68:$DL$122,ROWS($B$12:$B31)+2,FALSE)","v":120},{"$f":"HLOOKUP(AF$7,$K$68:$DL$122,ROWS($B$12:$B31)+2,FALSE)","v":1221},{"$f":"HLOOKUP(AG$7,$K$68:$DL$122,ROWS($B$12:$B31)+2,FALSE)","v":439},{"$f":"HLOOKUP(AH$7,$K$68:$DL$122,ROWS($B$12:$B31)+2,FALSE)","v":1163},{"$f":"HLOOKUP(AI$7,$K$68:$DL$122,ROWS($B$12:$B31)+2,FALSE)","v":698},{"$f":"HLOOKUP(AJ$7,$K$68:$DL$122,ROWS($B$12:$B31)+2,FALSE)","v":10255},{"$f":"HLOOKUP(AK$7,$K$68:$DL$122,ROWS($B$12:$B31)+2,FALSE)","v":1375},{"$f":"HLOOKUP(AL$7,$K$68:$DL$122,ROWS($B$12:$B31)+2,FALSE)","v":278},{"$f":"HLOOKUP(AM$7,$K$68:$DL$122,ROWS($B$12:$B31)+2,FALSE)","v":176},{"$f":"HLOOKUP(AN$7,$K$68:$DL$122,ROWS($B$12:$B31)+2,FALSE)","v":994},{"$f":"HLOOKUP(AO$7,$K$68:$DL$122,ROWS($B$12:$B31)+2,FALSE)","v":15},{"$f":"HLOOKUP(AP$7,$K$68:$DL$122,ROWS($B$12:$B31)+2,FALSE)","v":453},{"$f":"HLOOKUP(AQ$7,$K$68:$DL$122,ROWS($B$12:$B31)+2,FALSE)","v":1028},{"$f":"HLOOKUP(AR$7,$K$68:$DL$122,ROWS($B$12:$B31)+2,FALSE)","v":1360},{"$f":"HLOOKUP(AS$7,$K$68:$DL$122,ROWS($B$12:$B31)+2,FALSE)","v":2134},{"$f":"HLOOKUP(AT$7,$K$68:$DL$122,ROWS($B$12:$B31)+2,FALSE)","v":277},{"$f":"HLOOKUP(AU$7,$K$68:$DL$122,ROWS($B$12:$B31)+2,FALSE)","v":2641},{"$f":"HLOOKUP(AV$7,$K$68:$DL$122,ROWS($B$12:$B31)+2,FALSE)","v":4235},{"$f":"HLOOKUP(AW$7,$K$68:$DL$122,ROWS($B$12:$B31)+2,FALSE)","v":1531},{"$f":"HLOOKUP(AX$7,$K$68:$DL$122,ROWS($B$12:$B31)+2,FALSE)","v":455},{"$f":"HLOOKUP(AY$7,$K$68:$DL$122,ROWS($B$12:$B31)+2,FALSE)","v":268},{"$f":"HLOOKUP(AZ$7,$K$68:$DL$122,ROWS($B$12:$B31)+2,FALSE)","v":1573},{"$f":"HLOOKUP(BA$7,$K$68:$DL$122,ROWS($B$12:$B31)+2,FALSE)","v":37},{"$f":"HLOOKUP(BB$7,$K$68:$DL$122,ROWS($B$12:$B31)+2,FALSE)","v":2495},{"$f":"HLOOKUP(BC$7,$K$68:$DL$122,ROWS($B$12:$B31)+2,FALSE)","v":30292},{"$f":"HLOOKUP(BD$7,$K$68:$DL$122,ROWS($B$12:$B31)+2,FALSE)","v":179},{"$f":"HLOOKUP(BE$7,$K$68:$DL$122,ROWS($B$12:$B31)+2,FALSE)","v":87},{"$f":"HLOOKUP(BF$7,$K$68:$DL$122,ROWS($B$12:$B31)+2,FALSE)","v":2055},{"$f":"HLOOKUP(BG$7,$K$68:$DL$122,ROWS($B$12:$B31)+2,FALSE)","v":1075},{"$f":"HLOOKUP(BH$7,$K$68:$DL$122,ROWS($B$12:$B31)+2,FALSE)","v":110},{"$f":"HLOOKUP(BI$7,$K$68:$DL$122,ROWS($B$12:$B31)+2,FALSE)","v":339},{"$f":"HLOOKUP(BJ$7,$K$68:$DL$122,ROWS($B$12:$B31)+2,FALSE)","v":357},{"$f":"HLOOKUP(BK$7,$K$68:$DL$122,ROWS($B$12:$B31)+2,FALSE)","v":393},{"$f":"HLOOKUP(BL$7+0.5,$K$68:$DL$122,ROWS($B$12:$B31)+2,FALSE)","v":7082},{"$f":"HLOOKUP(BM$7+0.5,$K$68:$DL$122,ROWS($B$12:$B31)+2,FALSE)","v":1401},{"$f":"HLOOKUP(BN$7+0.5,$K$68:$DL$122,ROWS($B$12:$B31)+2,FALSE)","v":266},{"$f":"HLOOKUP(BO$7+0.5,$K$68:$DL$122,ROWS($B$12:$B31)+2,FALSE)","v":1529},{"$f":"HLOOKUP(BP$7+0.5,$K$68:$DL$122,ROWS($B$12:$B31)+2,FALSE)","v":1144},{"$f":"HLOOKUP(BQ$7+0.5,$K$68:$DL$122,ROWS($B$12:$B31)+2,FALSE)","v":898},{"$f":"HLOOKUP(BR$7+0.5,$K$68:$DL$122,ROWS($B$12:$B31)+2,FALSE)","v":983},{"$f":"HLOOKUP(BS$7+0.5,$K$68:$DL$122,ROWS($B$12:$B31)+2,FALSE)","v":264},{"$f":"HLOOKUP(BT$7+0.5,$K$68:$DL$122,ROWS($B$12:$B31)+2,FALSE)","v":198},{"$f":"HLOOKUP(BU$7+0.5,$K$68:$DL$122,ROWS($B$12:$B31)+2,FALSE)","v":168},{"$f":"HLOOKUP(BV$7+0.5,$K$68:$DL$122,ROWS($B$12:$B31)+2,FALSE)","v":2120},{"$f":"HLOOKUP(BW$7+0.5,$K$68:$DL$122,ROWS($B$12:$B31)+2,FALSE)","v":1541},{"$f":"HLOOKUP(BX$7+0.5,$K$68:$DL$122,ROWS($B$12:$B31)+2,FALSE)","v":808},{"$f":"HLOOKUP(BY$7+0.5,$K$68:$DL$122,ROWS($B$12:$B31)+2,FALSE)","v":269},{"$f":"HLOOKUP(BZ$7+0.5,$K$68:$DL$122,ROWS($B$12:$B31)+2,FALSE)","v":417},{"$f":"HLOOKUP(CA$7+0.5,$K$68:$DL$122,ROWS($B$12:$B31)+2,FALSE)","v":827},{"$f":"HLOOKUP(CB$7+0.5,$K$68:$DL$122,ROWS($B$12:$B31)+2,FALSE)","v":441},{"$f":"HLOOKUP(CC$7+0.5,$K$68:$DL$122,ROWS($B$12:$B31)+2,FALSE)","v":466},{"$f":"HLOOKUP(CD$7+0.5,$K$68:$DL$122,ROWS($B$12:$B31)+2,FALSE)","v":1286},{"$f":"HLOOKUP(CE$7+0.5,$K$68:$DL$122,ROWS($B$12:$B31)+2,FALSE)","v":"N/A"},{"$f":"HLOOKUP(CF$7+0.5,$K$68:$DL$122,ROWS($B$12:$B31)+2,FALSE)","v":163},{"$f":"HLOOKUP(CG$7+0.5,$K$68:$DL$122,ROWS($B$12:$B31)+2,FALSE)","v":1058},{"$f":"HLOOKUP(CH$7+0.5,$K$68:$DL$122,ROWS($B$12:$B31)+2,FALSE)","v":255},{"$f":"HLOOKUP(CI$7+0.5,$K$68:$DL$122,ROWS($B$12:$B31)+2,FALSE)","v":875},{"$f":"HLOOKUP(CJ$7+0.5,$K$68:$DL$122,ROWS($B$12:$B31)+2,FALSE)","v":445},{"$f":"HLOOKUP(CK$7+0.5,$K$68:$DL$122,ROWS($B$12:$B31)+2,FALSE)","v":2829},{"$f":"HLOOKUP(CL$7+0.5,$K$68:$DL$122,ROWS($B$12:$B31)+2,FALSE)","v":565},{"$f":"HLOOKUP(CM$7+0.5,$K$68:$DL$122,ROWS($B$12:$B31)+2,FALSE)","v":364},{"$f":"HLOOKUP(CN$7+0.5,$K$68:$DL$122,ROWS($B$12:$B31)+2,FALSE)","v":198},{"$f":"HLOOKUP(CO$7+0.5,$K$68:$DL$122,ROWS($B$12:$B31)+2,FALSE)","v":623},{"$f":"HLOOKUP(CP$7+0.5,$K$68:$DL$122,ROWS($B$12:$B31)+2,FALSE)","v":26},{"$f":"HLOOKUP(CQ$7+0.5,$K$68:$DL$122,ROWS($B$12:$B31)+2,FALSE)","v":269},{"$f":"HLOOKUP(CR$7+0.5,$K$68:$DL$122,ROWS($B$12:$B31)+2,FALSE)","v":867},{"$f":"HLOOKUP(CS$7+0.5,$K$68:$DL$122,ROWS($B$12:$B31)+2,FALSE)","v":849},{"$f":"HLOOKUP(CT$7+0.5,$K$68:$DL$122,ROWS($B$12:$B31)+2,FALSE)","v":1242},{"$f":"HLOOKUP(CU$7+0.5,$K$68:$DL$122,ROWS($B$12:$B31)+2,FALSE)","v":359},{"$f":"HLOOKUP(CV$7+0.5,$K$68:$DL$122,ROWS($B$12:$B31)+2,FALSE)","v":2281},{"$f":"HLOOKUP(CW$7+0.5,$K$68:$DL$122,ROWS($B$12:$B31)+2,FALSE)","v":3044},{"$f":"HLOOKUP(CX$7+0.5,$K$68:$DL$122,ROWS($B$12:$B31)+2,FALSE)","v":1577},{"$f":"HLOOKUP(CY$7+0.5,$K$68:$DL$122,ROWS($B$12:$B31)+2,FALSE)","v":473},{"$f":"HLOOKUP(CZ$7+0.5,$K$68:$DL$122,ROWS($B$12:$B31)+2,FALSE)","v":395},{"$f":"HLOOKUP(DA$7+0.5,$K$68:$DL$122,ROWS($B$12:$B31)+2,FALSE)","v":1149},{"$f":"HLOOKUP(DB$7+0.5,$K$68:$DL$122,ROWS($B$12:$B31)+2,FALSE)","v":47},{"$f":"HLOOKUP(DC$7+0.5,$K$68:$DL$122,ROWS($B$12:$B31)+2,FALSE)","v":938},{"$f":"HLOOKUP(DD$7+0.5,$K$68:$DL$122,ROWS($B$12:$B31)+2,FALSE)","v":5028},{"$f":"HLOOKUP(DE$7+0.5,$K$68:$DL$122,ROWS($B$12:$B31)+2,FALSE)","v":275},{"$f":"HLOOKUP(DF$7+0.5,$K$68:$DL$122,ROWS($B$12:$B31)+2,FALSE)","v":149},{"$f":"HLOOKUP(DG$7+0.5,$K$68:$DL$122,ROWS($B$12:$B31)+2,FALSE)","v":1060},{"$f":"HLOOKUP(DH$7+0.5,$K$68:$DL$122,ROWS($B$12:$B31)+2,FALSE)","v":504},{"$f":"HLOOKUP(DI$7+0.5,$K$68:$DL$122,ROWS($B$12:$B31)+2,FALSE)","v":123},{"$f":"HLOOKUP(DJ$7+0.5,$K$68:$DL$122,ROWS($B$12:$B31)+2,FALSE)","v":372},{"$f":"HLOOKUP(DK$7+0.5,$K$68:$DL$122,ROWS($B$12:$B31)+2,FALSE)","v":541},{"$f":"HLOOKUP(DL$7+0.5,$K$68:$DL$122,ROWS($B$12:$B31)+2,FALSE)","v":384}]
[null,null,"Maine",1315833,1456,1120364,10400,157102,9401,4.8398435129667393E-3,{"$f":"HLOOKUP(K$7,$K$68:$DL$122,ROWS($B$12:$B32)+2,FALSE)","v":33818},{"$f":"HLOOKUP(L$7,$K$68:$DL$122,ROWS($B$12:$B32)+2,FALSE)","v":634},{"$f":"HLOOKUP(M$7,$K$68:$DL$122,ROWS($B$12:$B32)+2,FALSE)","v":37},{"$f":"HLOOKUP(N$7,$K$68:$DL$122,ROWS($B$12:$B32)+2,FALSE)","v":325},{"$f":"HLOOKUP(O$7,$K$68:$DL$122,ROWS($B$12:$B32)+2,FALSE)","v":38},{"$f":"HLOOKUP(P$7,$K$68:$DL$122,ROWS($B$12:$B32)+2,FALSE)","v":829},{"$f":"HLOOKUP(Q$7,$K$68:$DL$122,ROWS($B$12:$B32)+2,FALSE)","v":290},{"$f":"HLOOKUP(R$7,$K$68:$DL$122,ROWS($B$12:$B32)+2,FALSE)","v":2481},{"$f":"HLOOKUP(S$7,$K$68:$DL$122,ROWS($B$12:$B32)+2,FALSE)","v":238},{"$f":"HLOOKUP(T$7,$K$68:$DL$122,ROWS($B$12:$B32)+2,FALSE)","v":239},{"$f":"HLOOKUP(U$7,$K$68:$DL$122,ROWS($B$12:$B32)+2,FALSE)","v":4304},{"$f":"HLOOKUP(V$7,$K$68:$DL$122,ROWS($B$12:$B32)+2,FALSE)","v":507},{"$f":"HLOOKUP(W$7,$K$68:$DL$122,ROWS($B$12:$B32)+2,FALSE)","v":177},{"$f":"HLOOKUP(X$7,$K$68:$DL$122,ROWS($B$12:$B32)+2,FALSE)","v":0},{"$f":"HLOOKUP(Y$7,$K$68:$DL$122,ROWS($B$12:$B32)+2,FALSE)","v":675},{"$f":"HLOOKUP(Z$7,$K$68:$DL$122,ROWS($B$12:$B32)+2,FALSE)","v":164},{"$f":"HLOOKUP(AA$7,$K$68:$DL$122,ROWS($B$12:$B32)+2,FALSE)","v":275},{"$f":"HLOOKUP(AB$7,$K$68:$DL$122,ROWS($B$12:$B32)+2,FALSE)","v":523},{"$f":"HLOOKUP(AC$7,$K$68:$DL$122,ROWS($B$12:$B32)+2,FALSE)","v":158},{"$f":"HLOOKUP(AD$7,$K$68:$DL$122,ROWS($B$12:$B32)+2,FALSE)","v":138},{"$f":"HLOOKUP(AE$7,$K$68:$DL$122,ROWS($B$12:$B32)+2,FALSE)","v":"N/A"},{"$f":"HLOOKUP(AF$7,$K$68:$DL$122,ROWS($B$12:$B32)+2,FALSE)","v":52},{"$f":"HLOOKUP(AG$7,$K$68:$DL$122,ROWS($B$12:$B32)+2,FALSE)","v":4439},{"$f":"HLOOKUP(AH$7,$K$68:$DL$122,ROWS($B$12:$B32)+2,FALSE)","v":702},{"$f":"HLOOKUP(AI$7,$K$68:$DL$122,ROWS($B$12:$B32)+2,FALSE)","v":296},{"$f":"HLOOKUP(AJ$7,$K$68:$DL$122,ROWS($B$12:$B32)+2,FALSE)","v":0},{"$f":"HLOOKUP(AK$7,$K$68:$DL$122,ROWS($B$12:$B32)+2,FALSE)","v":325},{"$f":"HLOOKUP(AL$7,$K$68:$DL$122,ROWS($B$12:$B32)+2,FALSE)","v":10},{"$f":"HLOOKUP(AM$7,$K$68:$DL$122,ROWS($B$12:$B32)+2,FALSE)","v":0},{"$f":"HLOOKUP(AN$7,$K$68:$DL$122,ROWS($B$12:$B32)+2,FALSE)","v":150},{"$f":"HLOOKUP(AO$7,$K$68:$DL$122,ROWS($B$12:$B32)+2,FALSE)","v":4302},{"$f":"HLOOKUP(AP$7,$K$68:$DL$122,ROWS($B$12:$B32)+2,FALSE)","v":694},{"$f":"HLOOKUP(AQ$7,$K$68:$DL$122,ROWS($B$12:$B32)+2,FALSE)","v":144},{"$f":"HLOOKUP(AR$7,$K$68:$DL$122,ROWS($B$12:$B32)+2,FALSE)","v":2589},{"$f":"HLOOKUP(AS$7,$K$68:$DL$122,ROWS($B$12:$B32)+2,FALSE)","v":1439},{"$f":"HLOOKUP(AT$7,$K$68:$DL$122,ROWS($B$12:$B32)+2,FALSE)","v":19},{"$f":"HLOOKUP(AU$7,$K$68:$DL$122,ROWS($B$12:$B32)+2,FALSE)","v":483},{"$f":"HLOOKUP(AV$7,$K$68:$DL$122,ROWS($B$12:$B32)+2,FALSE)","v":25},{"$f":"HLOOKUP(AW$7,$K$68:$DL$122,ROWS($B$12:$B32)+2,FALSE)","v":471},{"$f":"HLOOKUP(AX$7,$K$68:$DL$122,ROWS($B$12:$B32)+2,FALSE)","v":915},{"$f":"HLOOKUP(AY$7,$K$68:$DL$122,ROWS($B$12:$B32)+2,FALSE)","v":234},{"$f":"HLOOKUP(AZ$7,$K$68:$DL$122,ROWS($B$12:$B32)+2,FALSE)","v":587},{"$f":"HLOOKUP(BA$7,$K$68:$DL$122,ROWS($B$12:$B32)+2,FALSE)","v":42},{"$f":"HLOOKUP(BB$7,$K$68:$DL$122,ROWS($B$12:$B32)+2,FALSE)","v":394},{"$f":"HLOOKUP(BC$7,$K$68:$DL$122,ROWS($B$12:$B32)+2,FALSE)","v":1637},{"$f":"HLOOKUP(BD$7,$K$68:$DL$122,ROWS($B$12:$B32)+2,FALSE)","v":182},{"$f":"HLOOKUP(BE$7,$K$68:$DL$122,ROWS($B$12:$B32)+2,FALSE)","v":612},{"$f":"HLOOKUP(BF$7,$K$68:$DL$122,ROWS($B$12:$B32)+2,FALSE)","v":570},{"$f":"HLOOKUP(BG$7,$K$68:$DL$122,ROWS($B$12:$B32)+2,FALSE)","v":88},{"$f":"HLOOKUP(BH$7,$K$68:$DL$122,ROWS($B$12:$B32)+2,FALSE)","v":43},{"$f":"HLOOKUP(BI$7,$K$68:$DL$122,ROWS($B$12:$B32)+2,FALSE)","v":321},{"$f":"HLOOKUP(BJ$7,$K$68:$DL$122,ROWS($B$12:$B32)+2,FALSE)","v":21},{"$f":"HLOOKUP(BK$7,$K$68:$DL$122,ROWS($B$12:$B32)+2,FALSE)","v":65},{"$f":"HLOOKUP(BL$7+0.5,$K$68:$DL$122,ROWS($B$12:$B32)+2,FALSE)","v":4248},{"$f":"HLOOKUP(BM$7+0.5,$K$68:$DL$122,ROWS($B$12:$B32)+2,FALSE)","v":541},{"$f":"HLOOKUP(BN$7+0.5,$K$68:$DL$122,ROWS($B$12:$B32)+2,FALSE)","v":43},{"$f":"HLOOKUP(BO$7+0.5,$K$68:$DL$122,ROWS($B$12:$B32)+2,FALSE)","v":301},{"$f":"HLOOKUP(BP$7+0.5,$K$68:$DL$122,ROWS($B$12:$B32)+2,FALSE)","v":67},{"$f":"HLOOKUP(BQ$7+0.5,$K$68:$DL$122,ROWS($B$12:$B32)+2,FALSE)","v":428},{"$f":"HLOOKUP(BR$7+0.5,$K$68:$DL$122,ROWS($B$12:$B32)+2,FALSE)","v":222},{"$f":"HLOOKUP(BS$7+0.5,$K$68:$DL$122,ROWS($B$12:$B32)+2,FALSE)","v":668},{"$f":"HLOOKUP(BT$7+0.5,$K$68:$DL$122,ROWS($B$12:$B32)+2,FALSE)","v":228},{"$f":"HLOOKUP(BU$7+0.5,$K$68:$DL$122,ROWS($B$12:$B32)+2,FALSE)","v":177},{"$f":"HLOOKUP(BV$7+0.5,$K$68:$DL$122,ROWS($B$12:$B32)+2,FALSE)","v":1908},{"$f":"HLOOKUP(BW$7+0.5,$K$68:$DL$122,ROWS($B$12:$B32)+2,FALSE)","v":415},{"$f":"HLOOKUP(BX$7+0.5,$K$68:$DL$122,ROWS($B$12:$B32)+2,FALSE)","v":214},{"$f":"HLOOKUP(BY$7+0.5,$K$68:$DL$122,ROWS($B$12:$B32)+2,FALSE)","v":157},{"$f":"HLOOKUP(BZ$7+0.5,$K$68:$DL$122,ROWS($B$12:$B32)+2,FALSE)","v":358},{"$f":"HLOOKUP(CA$7+0.5,$K$68:$DL$122,ROWS($B$12:$B32)+2,FALSE)","v":157},{"$f":"HLOOKUP(CB$7+0.5,$K$68:$DL$122,ROWS($B$12:$B32)+2,FALSE)","v":452},{"$f":"HLOOKUP(CC$7+0.5,$K$68:$DL$122,ROWS($B$12:$B32)+2,FALSE)","v":641},{"$f":"HLOOKUP(CD$7+0.5,$K$68:$DL$122,ROWS($B$12:$B32)+2,FALSE)","v":217},{"$f":"HLOOKUP(CE$7+0.5,$K$68:$DL$122,ROWS($B$12:$B32)+2,FALSE)","v":218},{"$f":"HLOOKUP(CF$7+0.5,$K$68:$DL$122,ROWS($B$12:$B32)+2,FALSE)","v":"N/A"},{"$f":"HLOOKUP(CG$7+0.5,$K$68:$DL$122,ROWS($B$12:$B32)+2,FALSE)","v":105},{"$f":"HLOOKUP(CH$7+0.5,$K$68:$DL$122,ROWS($B$12:$B32)+2,FALSE)","v":1293},{"$f":"HLOOKUP(CI$7+0.5,$K$68:$DL$122,ROWS($B$12:$B32)+2,FALSE)","v":703},{"$f":"HLOOKUP(CJ$7+0.5,$K$68:$DL$122,ROWS($B$12:$B32)+2,FALSE)","v":307},{"$f":"HLOOKUP(CK$7+0.5,$K$68:$DL$122,ROWS($B$12:$B32)+2,FALSE)","v":157},{"$f":"HLOOKUP(CL$7+0.5,$K$68:$DL$122,ROWS($B$12:$B32)+2,FALSE)","v":228},{"$f":"HLOOKUP(CM$7+0.5,$K$68:$DL$122,ROWS($B$12:$B32)+2,FALSE)","v":18},{"$f":"HLOOKUP(CN$7+0.5,$K$68:$DL$122,ROWS($B$12:$B32)+2,FALSE)","v":157},{"$f":"HLOOKUP(CO$7+0.5,$K$68:$DL$122,ROWS($B$12:$B32)+2,FALSE)","v":250},{"$f":"HLOOKUP(CP$7+0.5,$K$68:$DL$122,ROWS($B$12:$B32)+2,FALSE)","v":1394},{"$f":"HLOOKUP(CQ$7+0.5,$K$68:$DL$122,ROWS($B$12:$B32)+2,FALSE)","v":498},{"$f":"HLOOKUP(CR$7+0.5,$K$68:$DL$122,ROWS($B$12:$B32)+2,FALSE)","v":191},{"$f":"HLOOKUP(CS$7+0.5,$K$68:$DL$122,ROWS($B$12:$B32)+2,FALSE)","v":1633},{"$f":"HLOOKUP(CT$7+0.5,$K$68:$DL$122,ROWS($B$12:$B32)+2,FALSE)","v":1059},{"$f":"HLOOKUP(CU$7+0.5,$K$68:$DL$122,ROWS($B$12:$B32)+2,FALSE)","v":31},{"$f":"HLOOKUP(CV$7+0.5,$K$68:$DL$122,ROWS($B$12:$B32)+2,FALSE)","v":530},{"$f":"HLOOKUP(CW$7+0.5,$K$68:$DL$122,ROWS($B$12:$B32)+2,FALSE)","v":48},{"$f":"HLOOKUP(CX$7+0.5,$K$68:$DL$122,ROWS($B$12:$B32)+2,FALSE)","v":406},{"$f":"HLOOKUP(CY$7+0.5,$K$68:$DL$122,ROWS($B$12:$B32)+2,FALSE)","v":418},{"$f":"HLOOKUP(CZ$7+0.5,$K$68:$DL$122,ROWS($B$12:$B32)+2,FALSE)","v":282},{"$f":"HLOOKUP(DA$7+0.5,$K$68:$DL$122,ROWS($B$12:$B32)+2,FALSE)","v":429},{"$f":"HLOOKUP(DB$7+0.5,$K$68:$DL$122,ROWS($B$12:$B32)+2,FALSE)","v":89},{"$f":"HLOOKUP(DC$7+0.5,$K$68:$DL$122,ROWS($B$12:$B32)+2,FALSE)","v":513},{"$f":"HLOOKUP(DD$7+0.5,$K$68:$DL$122,ROWS($B$12:$B32)+2,FALSE)","v":1115},{"$f":"HLOOKUP(DE$7+0.5,$K$68:$DL$122,ROWS($B$12:$B32)+2,FALSE)","v":202},{"$f":"HLOOKUP(DF$7+0.5,$K$68:$DL$122,ROWS($B$12:$B32)+2,FALSE)","v":341},{"$f":"HLOOKUP(DG$7+0.5,$K$68:$DL$122,ROWS($B$12:$B32)+2,FALSE)","v":337},{"$f":"HLOOKUP(DH$7+0.5,$K$68:$DL$122,ROWS($B$12:$B32)+2,FALSE)","v":131},{"$f":"HLOOKUP(DI$7+0.5,$K$68:$DL$122,ROWS($B$12:$B32)+2,FALSE)","v":73},{"$f":"HLOOKUP(DJ$7+0.5,$K$68:$DL$122,ROWS($B$12:$B32)+2,FALSE)","v":408},{"$f":"HLOOKUP(DK$7+0.5,$K$68:$DL$122,ROWS($B$12:$B32)+2,FALSE)","v":37},{"$f":"HLOOKUP(DL$7+0.5,$K$68:$DL$122,ROWS($B$12:$B32)+2,FALSE)","v":64}]
[null,null,"Maryland",5759087,4326,5008452,20478,553895,18323,2.2036615538562468E-2,{"$f":"HLOOKUP(K$7,$K$68:$DL$122,ROWS($B$12:$B33)+2,FALSE)","v":153979},{"$f":"HLOOKUP(L$7,$K$68:$DL$122,ROWS($B$12:$B33)+2,FALSE)","v":228},{"$f":"HLOOKUP(M$7,$K$68:$DL$122,ROWS($B$12:$B33)+2,FALSE)","v":671},{"$f":"HLOOKUP(N$7,$K$68:$DL$122,ROWS($B$12:$B33)+2,FALSE)","v":945},{"$f":"HLOOKUP(O$7,$K$68:$DL$122,ROWS($B$12:$B33)+2,FALSE)","v":423},{"$f":"HLOOKUP(P$7,$K$68:$DL$122,ROWS($B$12:$B33)+2,FALSE)","v":8595},{"$f":"HLOOKUP(Q$7,$K$68:$DL$122,ROWS($B$12:$B33)+2,FALSE)","v":1796},{"$f":"HLOOKUP(R$7,$K$68:$DL$122,ROWS($B$12:$B33)+2,FALSE)","v":1608},{"$f":"HLOOKUP(S$7,$K$68:$DL$122,ROWS($B$12:$B33)+2,FALSE)","v":6652},{"$f":"HLOOKUP(T$7,$K$68:$DL$122,ROWS($B$12:$B33)+2,FALSE)","v":18492},{"$f":"HLOOKUP(U$7,$K$68:$DL$122,ROWS($B$12:$B33)+2,FALSE)","v":7825},{"$f":"HLOOKUP(V$7,$K$68:$DL$122,ROWS($B$12:$B33)+2,FALSE)","v":7113},{"$f":"HLOOKUP(W$7,$K$68:$DL$122,ROWS($B$12:$B33)+2,FALSE)","v":1170},{"$f":"HLOOKUP(X$7,$K$68:$DL$122,ROWS($B$12:$B33)+2,FALSE)","v":389},{"$f":"HLOOKUP(Y$7,$K$68:$DL$122,ROWS($B$12:$B33)+2,FALSE)","v":2392},{"$f":"HLOOKUP(Z$7,$K$68:$DL$122,ROWS($B$12:$B33)+2,FALSE)","v":1318},{"$f":"HLOOKUP(AA$7,$K$68:$DL$122,ROWS($B$12:$B33)+2,FALSE)","v":110},{"$f":"HLOOKUP(AB$7,$K$68:$DL$122,ROWS($B$12:$B33)+2,FALSE)","v":689},{"$f":"HLOOKUP(AC$7,$K$68:$DL$122,ROWS($B$12:$B33)+2,FALSE)","v":848},{"$f":"HLOOKUP(AD$7,$K$68:$DL$122,ROWS($B$12:$B33)+2,FALSE)","v":860},{"$f":"HLOOKUP(AE$7,$K$68:$DL$122,ROWS($B$12:$B33)+2,FALSE)","v":1526},{"$f":"HLOOKUP(AF$7,$K$68:$DL$122,ROWS($B$12:$B33)+2,FALSE)","v":"N/A"},{"$f":"HLOOKUP(AG$7,$K$68:$DL$122,ROWS($B$12:$B33)+2,FALSE)","v":3470},{"$f":"HLOOKUP(AH$7,$K$68:$DL$122,ROWS($B$12:$B33)+2,FALSE)","v":2077},{"$f":"HLOOKUP(AI$7,$K$68:$DL$122,ROWS($B$12:$B33)+2,FALSE)","v":810},{"$f":"HLOOKUP(AJ$7,$K$68:$DL$122,ROWS($B$12:$B33)+2,FALSE)","v":1109},{"$f":"HLOOKUP(AK$7,$K$68:$DL$122,ROWS($B$12:$B33)+2,FALSE)","v":1469},{"$f":"HLOOKUP(AL$7,$K$68:$DL$122,ROWS($B$12:$B33)+2,FALSE)","v":73},{"$f":"HLOOKUP(AM$7,$K$68:$DL$122,ROWS($B$12:$B33)+2,FALSE)","v":0},{"$f":"HLOOKUP(AN$7,$K$68:$DL$122,ROWS($B$12:$B33)+2,FALSE)","v":1105},{"$f":"HLOOKUP(AO$7,$K$68:$DL$122,ROWS($B$12:$B33)+2,FALSE)","v":232},{"$f":"HLOOKUP(AP$7,$K$68:$DL$122,ROWS($B$12:$B33)+2,FALSE)","v":9627},{"$f":"HLOOKUP(AQ$7,$K$68:$DL$122,ROWS($B$12:$B33)+2,FALSE)","v":797},{"$f":"HLOOKUP(AR$7,$K$68:$DL$122,ROWS($B$12:$B33)+2,FALSE)","v":9222},{"$f":"HLOOKUP(AS$7,$K$68:$DL$122,ROWS($B$12:$B33)+2,FALSE)","v":6686},{"$f":"HLOOKUP(AT$7,$K$68:$DL$122,ROWS($B$12:$B33)+2,FALSE)","v":0},{"$f":"HLOOKUP(AU$7,$K$68:$DL$122,ROWS($B$12:$B33)+2,FALSE)","v":3396},{"$f":"HLOOKUP(AV$7,$K$68:$DL$122,ROWS($B$12:$B33)+2,FALSE)","v":845},{"$f":"HLOOKUP(AW$7,$K$68:$DL$122,ROWS($B$12:$B33)+2,FALSE)","v":276},{"$f":"HLOOKUP(AX$7,$K$68:$DL$122,ROWS($B$12:$B33)+2,FALSE)","v":14158},{"$f":"HLOOKUP(AY$7,$K$68:$DL$122,ROWS($B$12:$B33)+2,FALSE)","v":197},{"$f":"HLOOKUP(AZ$7,$K$68:$DL$122,ROWS($B$12:$B33)+2,FALSE)","v":2882},{"$f":"HLOOKUP(BA$7,$K$68:$DL$122,ROWS($B$12:$B33)+2,FALSE)","v":0},{"$f":"HLOOKUP(BB$7,$K$68:$DL$122,ROWS($B$12:$B33)+2,FALSE)","v":1942},{"$f":"HLOOKUP(BC$7,$K$68:$DL$122,ROWS($B$12:$B33)+2,FALSE)","v":3619},{"$f":"HLOOKUP(BD$7,$K$68:$DL$122,ROWS($B$12:$B33)+2,FALSE)","v":223},{"$f":"HLOOKUP(BE$7,$K$68:$DL$122,ROWS($B$12:$B33)+2,FALSE)","v":40},{"$f":"HLOOKUP(BF$7,$K$68:$DL$122,ROWS($B$12:$B33)+2,FALSE)","v":22089},{"$f":"HLOOKUP(BG$7,$K$68:$DL$122,ROWS($B$12:$B33)+2,FALSE)","v":1525},{"$f":"HLOOKUP(BH$7,$K$68:$DL$122,ROWS($B$12:$B33)+2,FALSE)","v":2027},{"$f":"HLOOKUP(BI$7,$K$68:$DL$122,ROWS($B$12:$B33)+2,FALSE)","v":353},{"$f":"HLOOKUP(BJ$7,$K$68:$DL$122,ROWS($B$12:$B33)+2,FALSE)","v":80},{"$f":"HLOOKUP(BK$7,$K$68:$DL$122,ROWS($B$12:$B33)+2,FALSE)","v":779},{"$f":"HLOOKUP(BL$7+0.5,$K$68:$DL$122,ROWS($B$12:$B33)+2,FALSE)","v":9033},{"$f":"HLOOKUP(BM$7+0.5,$K$68:$DL$122,ROWS($B$12:$B33)+2,FALSE)","v":128},{"$f":"HLOOKUP(BN$7+0.5,$K$68:$DL$122,ROWS($B$12:$B33)+2,FALSE)","v":493},{"$f":"HLOOKUP(BO$7+0.5,$K$68:$DL$122,ROWS($B$12:$B33)+2,FALSE)","v":604},{"$f":"HLOOKUP(BP$7+0.5,$K$68:$DL$122,ROWS($B$12:$B33)+2,FALSE)","v":528},{"$f":"HLOOKUP(BQ$7+0.5,$K$68:$DL$122,ROWS($B$12:$B33)+2,FALSE)","v":1773},{"$f":"HLOOKUP(BR$7+0.5,$K$68:$DL$122,ROWS($B$12:$B33)+2,FALSE)","v":837},{"$f":"HLOOKUP(BS$7+0.5,$K$68:$DL$122,ROWS($B$12:$B33)+2,FALSE)","v":903},{"$f":"HLOOKUP(BT$7+0.5,$K$68:$DL$122,ROWS($B$12:$B33)+2,FALSE)","v":1916},{"$f":"HLOOKUP(BU$7+0.5,$K$68:$DL$122,ROWS($B$12:$B33)+2,FALSE)","v":3025},{"$f":"HLOOKUP(BV$7+0.5,$K$68:$DL$122,ROWS($B$12:$B33)+2,FALSE)","v":1691},{"$f":"HLOOKUP(BW$7+0.5,$K$68:$DL$122,ROWS($B$12:$B33)+2,FALSE)","v":1789},{"$f":"HLOOKUP(BX$7+0.5,$K$68:$DL$122,ROWS($B$12:$B33)+2,FALSE)","v":815},{"$f":"HLOOKUP(BY$7+0.5,$K$68:$DL$122,ROWS($B$12:$B33)+2,FALSE)","v":366},{"$f":"HLOOKUP(BZ$7+0.5,$K$68:$DL$122,ROWS($B$12:$B33)+2,FALSE)","v":1052},{"$f":"HLOOKUP(CA$7+0.5,$K$68:$DL$122,ROWS($B$12:$B33)+2,FALSE)","v":791},{"$f":"HLOOKUP(CB$7+0.5,$K$68:$DL$122,ROWS($B$12:$B33)+2,FALSE)","v":146},{"$f":"HLOOKUP(CC$7+0.5,$K$68:$DL$122,ROWS($B$12:$B33)+2,FALSE)","v":551},{"$f":"HLOOKUP(CD$7+0.5,$K$68:$DL$122,ROWS($B$12:$B33)+2,FALSE)","v":671},{"$f":"HLOOKUP(CE$7+0.5,$K$68:$DL$122,ROWS($B$12:$B33)+2,FALSE)","v":484},{"$f":"HLOOKUP(CF$7+0.5,$K$68:$DL$122,ROWS($B$12:$B33)+2,FALSE)","v":1245},{"$f":"HLOOKUP(CG$7+0.5,$K$68:$DL$122,ROWS($B$12:$B33)+2,FALSE)","v":"N/A"},{"$f":"HLOOKUP(CH$7+0.5,$K$68:$DL$122,ROWS($B$12:$B33)+2,FALSE)","v":1341},{"$f":"HLOOKUP(CI$7+0.5,$K$68:$DL$122,ROWS($B$12:$B33)+2,FALSE)","v":1273},{"$f":"HLOOKUP(CJ$7+0.5,$K$68:$DL$122,ROWS($B$12:$B33)+2,FALSE)","v":503},{"$f":"HLOOKUP(CK$7+0.5,$K$68:$DL$122,ROWS($B$12:$B33)+2,FALSE)","v":825},{"$f":"HLOOKUP(CL$7+0.5,$K$68:$DL$122,ROWS($B$12:$B33)+2,FALSE)","v":944},{"$f":"HLOOKUP(CM$7+0.5,$K$68:$DL$122,ROWS($B$12:$B33)+2,FALSE)","v":103},{"$f":"HLOOKUP(CN$7+0.5,$K$68:$DL$122,ROWS($B$12:$B33)+2,FALSE)","v":204},{"$f":"HLOOKUP(CO$7+0.5,$K$68:$DL$122,ROWS($B$12:$B33)+2,FALSE)","v":1033},{"$f":"HLOOKUP(CP$7+0.5,$K$68:$DL$122,ROWS($B$12:$B33)+2,FALSE)","v":160},{"$f":"HLOOKUP(CQ$7+0.5,$K$68:$DL$122,ROWS($B$12:$B33)+2,FALSE)","v":1880},{"$f":"HLOOKUP(CR$7+0.5,$K$68:$DL$122,ROWS($B$12:$B33)+2,FALSE)","v":676},{"$f":"HLOOKUP(CS$7+0.5,$K$68:$DL$122,ROWS($B$12:$B33)+2,FALSE)","v":2041},{"$f":"HLOOKUP(CT$7+0.5,$K$68:$DL$122,ROWS($B$12:$B33)+2,FALSE)","v":2008},{"$f":"HLOOKUP(CU$7+0.5,$K$68:$DL$122,ROWS($B$12:$B33)+2,FALSE)","v":204},{"$f":"HLOOKUP(CV$7+0.5,$K$68:$DL$122,ROWS($B$12:$B33)+2,FALSE)","v":1110},{"$f":"HLOOKUP(CW$7+0.5,$K$68:$DL$122,ROWS($B$12:$B33)+2,FALSE)","v":592},{"$f":"HLOOKUP(CX$7+0.5,$K$68:$DL$122,ROWS($B$12:$B33)+2,FALSE)","v":247},{"$f":"HLOOKUP(CY$7+0.5,$K$68:$DL$122,ROWS($B$12:$B33)+2,FALSE)","v":3380},{"$f":"HLOOKUP(CZ$7+0.5,$K$68:$DL$122,ROWS($B$12:$B33)+2,FALSE)","v":162},{"$f":"HLOOKUP(DA$7+0.5,$K$68:$DL$122,ROWS($B$12:$B33)+2,FALSE)","v":1696},{"$f":"HLOOKUP(DB$7+0.5,$K$68:$DL$122,ROWS($B$12:$B33)+2,FALSE)","v":204},{"$f":"HLOOKUP(DC$7+0.5,$K$68:$DL$122,ROWS($B$12:$B33)+2,FALSE)","v":1093},{"$f":"HLOOKUP(DD$7+0.5,$K$68:$DL$122,ROWS($B$12:$B33)+2,FALSE)","v":1102},{"$f":"HLOOKUP(DE$7+0.5,$K$68:$DL$122,ROWS($B$12:$B33)+2,FALSE)","v":230},{"$f":"HLOOKUP(DF$7+0.5,$K$68:$DL$122,ROWS($B$12:$B33)+2,FALSE)","v":69},{"$f":"HLOOKUP(DG$7+0.5,$K$68:$DL$122,ROWS($B$12:$B33)+2,FALSE)","v":3805},{"$f":"HLOOKUP(DH$7+0.5,$K$68:$DL$122,ROWS($B$12:$B33)+2,FALSE)","v":611},{"$f":"HLOOKUP(DI$7+0.5,$K$68:$DL$122,ROWS($B$12:$B33)+2,FALSE)","v":859},{"$f":"HLOOKUP(DJ$7+0.5,$K$68:$DL$122,ROWS($B$12:$B33)+2,FALSE)","v":514},{"$f":"HLOOKUP(DK$7+0.5,$K$68:$DL$122,ROWS($B$12:$B33)+2,FALSE)","v":132},{"$f":"HLOOKUP(DL$7+0.5,$K$68:$DL$122,ROWS($B$12:$B33)+2,FALSE)","v":654}]
[null,null,"Massachusetts",6515057,3680,5658768,20357,656441,18778,2.0011689585964252E-2,{"$f":"HLOOKUP(K$7,$K$68:$DL$122,ROWS($B$12:$B34)+2,FALSE)","v":139830},{"$f":"HLOOKUP(L$7,$K$68:$DL$122,ROWS($B$12:$B34)+2,FALSE)","v":1201},{"$f":"HLOOKUP(M$7,$K$68:$DL$122,ROWS($B$12:$B34)+2,FALSE)","v":225},{"$f":"HLOOKUP(N$7,$K$68:$DL$122,ROWS($B$12:$B34)+2,FALSE)","v":1017},{"$f":"HLOOKUP(O$7,$K$68:$DL$122,ROWS($B$12:$B34)+2,FALSE)","v":167},{"$f":"HLOOKUP(P$7,$K$68:$DL$122,ROWS($B$12:$B34)+2,FALSE)","v":11556},{"$f":"HLOOKUP(Q$7,$K$68:$DL$122,ROWS($B$12:$B34)+2,FALSE)","v":1388},{"$f":"HLOOKUP(R$7,$K$68:$DL$122,ROWS($B$12:$B34)+2,FALSE)","v":9445},{"$f":"HLOOKUP(S$7,$K$68:$DL$122,ROWS($B$12:$B34)+2,FALSE)","v":399},{"$f":"HLOOKUP(T$7,$K$68:$DL$122,ROWS($B$12:$B34)+2,FALSE)","v":676},{"$f":"HLOOKUP(U$7,$K$68:$DL$122,ROWS($B$12:$B34)+2,FALSE)","v":11396},{"$f":"HLOOKUP(V$7,$K$68:$DL$122,ROWS($B$12:$B34)+2,FALSE)","v":3264},{"$f":"HLOOKUP(W$7,$K$68:$DL$122,ROWS($B$12:$B34)+2,FALSE)","v":733},{"$f":"HLOOKUP(X$7,$K$68:$DL$122,ROWS($B$12:$B34)+2,FALSE)","v":412},{"$f":"HLOOKUP(Y$7,$K$68:$DL$122,ROWS($B$12:$B34)+2,FALSE)","v":2991},{"$f":"HLOOKUP(Z$7,$K$68:$DL$122,ROWS($B$12:$B34)+2,FALSE)","v":640},{"$f":"HLOOKUP(AA$7,$K$68:$DL$122,ROWS($B$12:$B34)+2,FALSE)","v":138},{"$f":"HLOOKUP(AB$7,$K$68:$DL$122,ROWS($B$12:$B34)+2,FALSE)","v":969},{"$f":"HLOOKUP(AC$7,$K$68:$DL$122,ROWS($B$12:$B34)+2,FALSE)","v":180},{"$f":"HLOOKUP(AD$7,$K$68:$DL$122,ROWS($B$12:$B34)+2,FALSE)","v":977},{"$f":"HLOOKUP(AE$7,$K$68:$DL$122,ROWS($B$12:$B34)+2,FALSE)","v":4006},{"$f":"HLOOKUP(AF$7,$K$68:$DL$122,ROWS($B$12:$B34)+2,FALSE)","v":2762},{"$f":"HLOOKUP(AG$7,$K$68:$DL$122,ROWS($B$12:$B34)+2,FALSE)","v":"N/A"},{"$f":"HLOOKUP(AH$7,$K$68:$DL$122,ROWS($B$12:$B34)+2,FALSE)","v":2629},{"$f":"HLOOKUP(AI$7,$K$68:$DL$122,ROWS($B$12:$B34)+2,FALSE)","v":862},{"$f":"HLOOKUP(AJ$7,$K$68:$DL$122,ROWS($B$12:$B34)+2,FALSE)","v":356},{"$f":"HLOOKUP(AK$7,$K$68:$DL$122,ROWS($B$12:$B34)+2,FALSE)","v":1261},{"$f":"HLOOKUP(AL$7,$K$68:$DL$122,ROWS($B$12:$B34)+2,FALSE)","v":596},{"$f":"HLOOKUP(AM$7,$K$68:$DL$122,ROWS($B$12:$B34)+2,FALSE)","v":637},{"$f":"HLOOKUP(AN$7,$K$68:$DL$122,ROWS($B$12:$B34)+2,FALSE)","v":163},{"$f":"HLOOKUP(AO$7,$K$68:$DL$122,ROWS($B$12:$B34)+2,FALSE)","v":12010},{"$f":"HLOOKUP(AP$7,$K$68:$DL$122,ROWS($B$12:$B34)+2,FALSE)","v":8332},{"$f":"HLOOKUP(AQ$7,$K$68:$DL$122,ROWS($B$12:$B34)+2,FALSE)","v":199},{"$f":"HLOOKUP(AR$7,$K$68:$DL$122,ROWS($B$12:$B34)+2,FALSE)","v":19431},{"$f":"HLOOKUP(AS$7,$K$68:$DL$122,ROWS($B$12:$B34)+2,FALSE)","v":3964},{"$f":"HLOOKUP(AT$7,$K$68:$DL$122,ROWS($B$12:$B34)+2,FALSE)","v":61},{"$f":"HLOOKUP(AU$7,$K$68:$DL$122,ROWS($B$12:$B34)+2,FALSE)","v":1757},{"$f":"HLOOKUP(AV$7,$K$68:$DL$122,ROWS($B$12:$B34)+2,FALSE)","v":90},{"$f":"HLOOKUP(AW$7,$K$68:$DL$122,ROWS($B$12:$B34)+2,FALSE)","v":178},{"$f":"HLOOKUP(AX$7,$K$68:$DL$122,ROWS($B$12:$B34)+2,FALSE)","v":6538},{"$f":"HLOOKUP(AY$7,$K$68:$DL$122,ROWS($B$12:$B34)+2,FALSE)","v":10182},{"$f":"HLOOKUP(AZ$7,$K$68:$DL$122,ROWS($B$12:$B34)+2,FALSE)","v":1621},{"$f":"HLOOKUP(BA$7,$K$68:$DL$122,ROWS($B$12:$B34)+2,FALSE)","v":44},{"$f":"HLOOKUP(BB$7,$K$68:$DL$122,ROWS($B$12:$B34)+2,FALSE)","v":371},{"$f":"HLOOKUP(BC$7,$K$68:$DL$122,ROWS($B$12:$B34)+2,FALSE)","v":5203},{"$f":"HLOOKUP(BD$7,$K$68:$DL$122,ROWS($B$12:$B34)+2,FALSE)","v":548},{"$f":"HLOOKUP(BE$7,$K$68:$DL$122,ROWS($B$12:$B34)+2,FALSE)","v":2246},{"$f":"HLOOKUP(BF$7,$K$68:$DL$122,ROWS($B$12:$B34)+2,FALSE)","v":2984},{"$f":"HLOOKUP(BG$7,$K$68:$DL$122,ROWS($B$12:$B34)+2,FALSE)","v":1673},{"$f":"HLOOKUP(BH$7,$K$68:$DL$122,ROWS($B$12:$B34)+2,FALSE)","v":911},{"$f":"HLOOKUP(BI$7,$K$68:$DL$122,ROWS($B$12:$B34)+2,FALSE)","v":441},{"$f":"HLOOKUP(BJ$7,$K$68:$DL$122,ROWS($B$12:$B34)+2,FALSE)","v":0},{"$f":"HLOOKUP(BK$7,$K$68:$DL$122,ROWS($B$12:$B34)+2,FALSE)","v":4413},{"$f":"HLOOKUP(BL$7+0.5,$K$68:$DL$122,ROWS($B$12:$B34)+2,FALSE)","v":8282},{"$f":"HLOOKUP(BM$7+0.5,$K$68:$DL$122,ROWS($B$12:$B34)+2,FALSE)","v":1083},{"$f":"HLOOKUP(BN$7+0.5,$K$68:$DL$122,ROWS($B$12:$B34)+2,FALSE)","v":345},{"$f":"HLOOKUP(BO$7+0.5,$K$68:$DL$122,ROWS($B$12:$B34)+2,FALSE)","v":518},{"$f":"HLOOKUP(BP$7+0.5,$K$68:$DL$122,ROWS($B$12:$B34)+2,FALSE)","v":201},{"$f":"HLOOKUP(BQ$7+0.5,$K$68:$DL$122,ROWS($B$12:$B34)+2,FALSE)","v":2290},{"$f":"HLOOKUP(BR$7+0.5,$K$68:$DL$122,ROWS($B$12:$B34)+2,FALSE)","v":972},{"$f":"HLOOKUP(BS$7+0.5,$K$68:$DL$122,ROWS($B$12:$B34)+2,FALSE)","v":1884},{"$f":"HLOOKUP(BT$7+0.5,$K$68:$DL$122,ROWS($B$12:$B34)+2,FALSE)","v":579},{"$f":"HLOOKUP(BU$7+0.5,$K$68:$DL$122,ROWS($B$12:$B34)+2,FALSE)","v":358},{"$f":"HLOOKUP(BV$7+0.5,$K$68:$DL$122,ROWS($B$12:$B34)+2,FALSE)","v":2715},{"$f":"HLOOKUP(BW$7+0.5,$K$68:$DL$122,ROWS($B$12:$B34)+2,FALSE)","v":1666},{"$f":"HLOOKUP(BX$7+0.5,$K$68:$DL$122,ROWS($B$12:$B34)+2,FALSE)","v":860},{"$f":"HLOOKUP(BY$7+0.5,$K$68:$DL$122,ROWS($B$12:$B34)+2,FALSE)","v":695},{"$f":"HLOOKUP(BZ$7+0.5,$K$68:$DL$122,ROWS($B$12:$B34)+2,FALSE)","v":899},{"$f":"HLOOKUP(CA$7+0.5,$K$68:$DL$122,ROWS($B$12:$B34)+2,FALSE)","v":456},{"$f":"HLOOKUP(CB$7+0.5,$K$68:$DL$122,ROWS($B$12:$B34)+2,FALSE)","v":136},{"$f":"HLOOKUP(CC$7+0.5,$K$68:$DL$122,ROWS($B$12:$B34)+2,FALSE)","v":867},{"$f":"HLOOKUP(CD$7+0.5,$K$68:$DL$122,ROWS($B$12:$B34)+2,FALSE)","v":203},{"$f":"HLOOKUP(CE$7+0.5,$K$68:$DL$122,ROWS($B$12:$B34)+2,FALSE)","v":1200},{"$f":"HLOOKUP(CF$7+0.5,$K$68:$DL$122,ROWS($B$12:$B34)+2,FALSE)","v":1526},{"$f":"HLOOKUP(CG$7+0.5,$K$68:$DL$122,ROWS($B$12:$B34)+2,FALSE)","v":2048},{"$f":"HLOOKUP(CH$7+0.5,$K$68:$DL$122,ROWS($B$12:$B34)+2,FALSE)","v":"N/A"},{"$f":"HLOOKUP(CI$7+0.5,$K$68:$DL$122,ROWS($B$12:$B34)+2,FALSE)","v":1245},{"$f":"HLOOKUP(CJ$7+0.5,$K$68:$DL$122,ROWS($B$12:$B34)+2,FALSE)","v":537},{"$f":"HLOOKUP(CK$7+0.5,$K$68:$DL$122,ROWS($B$12:$B34)+2,FALSE)","v":567},{"$f":"HLOOKUP(CL$7+0.5,$K$68:$DL$122,ROWS($B$12:$B34)+2,FALSE)","v":654},{"$f":"HLOOKUP(CM$7+0.5,$K$68:$DL$122,ROWS($B$12:$B34)+2,FALSE)","v":719},{"$f":"HLOOKUP(CN$7+0.5,$K$68:$DL$122,ROWS($B$12:$B34)+2,FALSE)","v":727},{"$f":"HLOOKUP(CO$7+0.5,$K$68:$DL$122,ROWS($B$12:$B34)+2,FALSE)","v":158},{"$f":"HLOOKUP(CP$7+0.5,$K$68:$DL$122,ROWS($B$12:$B34)+2,FALSE)","v":2630},{"$f":"HLOOKUP(CQ$7+0.5,$K$68:$DL$122,ROWS($B$12:$B34)+2,FALSE)","v":1949},{"$f":"HLOOKUP(CR$7+0.5,$K$68:$DL$122,ROWS($B$12:$B34)+2,FALSE)","v":276},{"$f":"HLOOKUP(CS$7+0.5,$K$68:$DL$122,ROWS($B$12:$B34)+2,FALSE)","v":3914},{"$f":"HLOOKUP(CT$7+0.5,$K$68:$DL$122,ROWS($B$12:$B34)+2,FALSE)","v":1384},{"$f":"HLOOKUP(CU$7+0.5,$K$68:$DL$122,ROWS($B$12:$B34)+2,FALSE)","v":111},{"$f":"HLOOKUP(CV$7+0.5,$K$68:$DL$122,ROWS($B$12:$B34)+2,FALSE)","v":681},{"$f":"HLOOKUP(CW$7+0.5,$K$68:$DL$122,ROWS($B$12:$B34)+2,FALSE)","v":123},{"$f":"HLOOKUP(CX$7+0.5,$K$68:$DL$122,ROWS($B$12:$B34)+2,FALSE)","v":220},{"$f":"HLOOKUP(CY$7+0.5,$K$68:$DL$122,ROWS($B$12:$B34)+2,FALSE)","v":1883},{"$f":"HLOOKUP(CZ$7+0.5,$K$68:$DL$122,ROWS($B$12:$B34)+2,FALSE)","v":2144},{"$f":"HLOOKUP(DA$7+0.5,$K$68:$DL$122,ROWS($B$12:$B34)+2,FALSE)","v":989},{"$f":"HLOOKUP(DB$7+0.5,$K$68:$DL$122,ROWS($B$12:$B34)+2,FALSE)","v":72},{"$f":"HLOOKUP(DC$7+0.5,$K$68:$DL$122,ROWS($B$12:$B34)+2,FALSE)","v":355},{"$f":"HLOOKUP(DD$7+0.5,$K$68:$DL$122,ROWS($B$12:$B34)+2,FALSE)","v":1491},{"$f":"HLOOKUP(DE$7+0.5,$K$68:$DL$122,ROWS($B$12:$B34)+2,FALSE)","v":411},{"$f":"HLOOKUP(DF$7+0.5,$K$68:$DL$122,ROWS($B$12:$B34)+2,FALSE)","v":944},{"$f":"HLOOKUP(DG$7+0.5,$K$68:$DL$122,ROWS($B$12:$B34)+2,FALSE)","v":1241},{"$f":"HLOOKUP(DH$7+0.5,$K$68:$DL$122,ROWS($B$12:$B34)+2,FALSE)","v":741},{"$f":"HLOOKUP(DI$7+0.5,$K$68:$DL$122,ROWS($B$12:$B34)+2,FALSE)","v":855},{"$f":"HLOOKUP(DJ$7+0.5,$K$68:$DL$122,ROWS($B$12:$B34)+2,FALSE)","v":311},{"$f":"HLOOKUP(DK$7+0.5,$K$68:$DL$122,ROWS($B$12:$B34)+2,FALSE)","v":204},{"$f":"HLOOKUP(DL$7+0.5,$K$68:$DL$122,ROWS($B$12:$B34)+2,FALSE)","v":1542}]
[null,null,"Michigan",9766574,4376,8340767,29076,1242917,25401,1.991551669458352E-2,{"$f":"HLOOKUP(K$7,$K$68:$DL$122,ROWS($B$12:$B35)+2,FALSE)","v":139158},{"$f":"HLOOKUP(L$7,$K$68:$DL$122,ROWS($B$12:$B35)+2,FALSE)","v":3527},{"$f":"HLOOKUP(M$7,$K$68:$DL$122,ROWS($B$12:$B35)+2,FALSE)","v":3456},{"$f":"HLOOKUP(N$7,$K$68:$DL$122,ROWS($B$12:$B35)+2,FALSE)","v":3840},{"$f":"HLOOKUP(O$7,$K$68:$DL$122,ROWS($B$12:$B35)+2,FALSE)","v":2054},{"$f":"HLOOKUP(P$7,$K$68:$DL$122,ROWS($B$12:$B35)+2,FALSE)","v":7793},{"$f":"HLOOKUP(Q$7,$K$68:$DL$122,ROWS($B$12:$B35)+2,FALSE)","v":3425},{"$f":"HLOOKUP(R$7,$K$68:$DL$122,ROWS($B$12:$B35)+2,FALSE)","v":1656},{"$f":"HLOOKUP(S$7,$K$68:$DL$122,ROWS($B$12:$B35)+2,FALSE)","v":0},{"$f":"HLOOKUP(T$7,$K$68:$DL$122,ROWS($B$12:$B35)+2,FALSE)","v":256},{"$f":"HLOOKUP(U$7,$K$68:$DL$122,ROWS($B$12:$B35)+2,FALSE)","v":17712},{"$f":"HLOOKUP(V$7,$K$68:$DL$122,ROWS($B$12:$B35)+2,FALSE)","v":4254},{"$f":"HLOOKUP(W$7,$K$68:$DL$122,ROWS($B$12:$B35)+2,FALSE)","v":630},{"$f":"HLOOKUP(X$7,$K$68:$DL$122,ROWS($B$12:$B35)+2,FALSE)","v":882},{"$f":"HLOOKUP(Y$7,$K$68:$DL$122,ROWS($B$12:$B35)+2,FALSE)","v":9897},{"$f":"HLOOKUP(Z$7,$K$68:$DL$122,ROWS($B$12:$B35)+2,FALSE)","v":7668},{"$f":"HLOOKUP(AA$7,$K$68:$DL$122,ROWS($B$12:$B35)+2,FALSE)","v":1709},{"$f":"HLOOKUP(AB$7,$K$68:$DL$122,ROWS($B$12:$B35)+2,FALSE)","v":1148},{"$f":"HLOOKUP(AC$7,$K$68:$DL$122,ROWS($B$12:$B35)+2,FALSE)","v":2578},{"$f":"HLOOKUP(AD$7,$K$68:$DL$122,ROWS($B$12:$B35)+2,FALSE)","v":955},{"$f":"HLOOKUP(AE$7,$K$68:$DL$122,ROWS($B$12:$B35)+2,FALSE)","v":599},{"$f":"HLOOKUP(AF$7,$K$68:$DL$122,ROWS($B$12:$B35)+2,FALSE)","v":1035},{"$f":"HLOOKUP(AG$7,$K$68:$DL$122,ROWS($B$12:$B35)+2,FALSE)","v":2861},{"$f":"HLOOKUP(AH$7,$K$68:$DL$122,ROWS($B$12:$B35)+2,FALSE)","v":"N/A"},{"$f":"HLOOKUP(AI$7,$K$68:$DL$122,ROWS($B$12:$B35)+2,FALSE)","v":2671},{"$f":"HLOOKUP(AJ$7,$K$68:$DL$122,ROWS($B$12:$B35)+2,FALSE)","v":715},{"$f":"HLOOKUP(AK$7,$K$68:$DL$122,ROWS($B$12:$B35)+2,FALSE)","v":2509},{"$f":"HLOOKUP(AL$7,$K$68:$DL$122,ROWS($B$12:$B35)+2,FALSE)","v":84},{"$f":"HLOOKUP(AM$7,$K$68:$DL$122,ROWS($B$12:$B35)+2,FALSE)","v":439},{"$f":"HLOOKUP(AN$7,$K$68:$DL$122,ROWS($B$12:$B35)+2,FALSE)","v":1215},{"$f":"HLOOKUP(AO$7,$K$68:$DL$122,ROWS($B$12:$B35)+2,FALSE)","v":73},{"$f":"HLOOKUP(AP$7,$K$68:$DL$122,ROWS($B$12:$B35)+2,FALSE)","v":1849},{"$f":"HLOOKUP(AQ$7,$K$68:$DL$122,ROWS($B$12:$B35)+2,FALSE)","v":508},{"$f":"HLOOKUP(AR$7,$K$68:$DL$122,ROWS($B$12:$B35)+2,FALSE)","v":6087},{"$f":"HLOOKUP(AS$7,$K$68:$DL$122,ROWS($B$12:$B35)+2,FALSE)","v":3405},{"$f":"HLOOKUP(AT$7,$K$68:$DL$122,ROWS($B$12:$B35)+2,FALSE)","v":159},{"$f":"HLOOKUP(AU$7,$K$68:$DL$122,ROWS($B$12:$B35)+2,FALSE)","v":11224},{"$f":"HLOOKUP(AV$7,$K$68:$DL$122,ROWS($B$12:$B35)+2,FALSE)","v":917},{"$f":"HLOOKUP(AW$7,$K$68:$DL$122,ROWS($B$12:$B35)+2,FALSE)","v":647},{"$f":"HLOOKUP(AX$7,$K$68:$DL$122,ROWS($B$12:$B35)+2,FALSE)","v":2864},{"$f":"HLOOKUP(AY$7,$K$68:$DL$122,ROWS($B$12:$B35)+2,FALSE)","v":385},{"$f":"HLOOKUP(AZ$7,$K$68:$DL$122,ROWS($B$12:$B35)+2,FALSE)","v":2185},{"$f":"HLOOKUP(BA$7,$K$68:$DL$122,ROWS($B$12:$B35)+2,FALSE)","v":571},{"$f":"HLOOKUP(BB$7,$K$68:$DL$122,ROWS($B$12:$B35)+2,FALSE)","v":3106},{"$f":"HLOOKUP(BC$7,$K$68:$DL$122,ROWS($B$12:$B35)+2,FALSE)","v":9935},{"$f":"HLOOKUP(BD$7,$K$68:$DL$122,ROWS($B$12:$B35)+2,FALSE)","v":642},{"$f":"HLOOKUP(BE$7,$K$68:$DL$122,ROWS($B$12:$B35)+2,FALSE)","v":0},{"$f":"HLOOKUP(BF$7,$K$68:$DL$122,ROWS($B$12:$B35)+2,FALSE)","v":2327},{"$f":"HLOOKUP(BG$7,$K$68:$DL$122,ROWS($B$12:$B35)+2,FALSE)","v":1430},{"$f":"HLOOKUP(BH$7,$K$68:$DL$122,ROWS($B$12:$B35)+2,FALSE)","v":417},{"$f":"HLOOKUP(BI$7,$K$68:$DL$122,ROWS($B$12:$B35)+2,FALSE)","v":4018},{"$f":"HLOOKUP(BJ$7,$K$68:$DL$122,ROWS($B$12:$B35)+2,FALSE)","v":841},{"$f":"HLOOKUP(BK$7,$K$68:$DL$122,ROWS($B$12:$B35)+2,FALSE)","v":908},{"$f":"HLOOKUP(BL$7+0.5,$K$68:$DL$122,ROWS($B$12:$B35)+2,FALSE)","v":8465},{"$f":"HLOOKUP(BM$7+0.5,$K$68:$DL$122,ROWS($B$12:$B35)+2,FALSE)","v":2060},{"$f":"HLOOKUP(BN$7+0.5,$K$68:$DL$122,ROWS($B$12:$B35)+2,FALSE)","v":1793},{"$f":"HLOOKUP(BO$7+0.5,$K$68:$DL$122,ROWS($B$12:$B35)+2,FALSE)","v":1382},{"$f":"HLOOKUP(BP$7+0.5,$K$68:$DL$122,ROWS($B$12:$B35)+2,FALSE)","v":1024},{"$f":"HLOOKUP(BQ$7+0.5,$K$68:$DL$122,ROWS($B$12:$B35)+2,FALSE)","v":1752},{"$f":"HLOOKUP(BR$7+0.5,$K$68:$DL$122,ROWS($B$12:$B35)+2,FALSE)","v":1462},{"$f":"HLOOKUP(BS$7+0.5,$K$68:$DL$122,ROWS($B$12:$B35)+2,FALSE)","v":1087},{"$f":"HLOOKUP(BT$7+0.5,$K$68:$DL$122,ROWS($B$12:$B35)+2,FALSE)","v":167},{"$f":"HLOOKUP(BU$7+0.5,$K$68:$DL$122,ROWS($B$12:$B35)+2,FALSE)","v":259},{"$f":"HLOOKUP(BV$7+0.5,$K$68:$DL$122,ROWS($B$12:$B35)+2,FALSE)","v":3844},{"$f":"HLOOKUP(BW$7+0.5,$K$68:$DL$122,ROWS($B$12:$B35)+2,FALSE)","v":1566},{"$f":"HLOOKUP(BX$7+0.5,$K$68:$DL$122,ROWS($B$12:$B35)+2,FALSE)","v":469},{"$f":"HLOOKUP(BY$7+0.5,$K$68:$DL$122,ROWS($B$12:$B35)+2,FALSE)","v":675},{"$f":"HLOOKUP(BZ$7+0.5,$K$68:$DL$122,ROWS($B$12:$B35)+2,FALSE)","v":1863},{"$f":"HLOOKUP(CA$7+0.5,$K$68:$DL$122,ROWS($B$12:$B35)+2,FALSE)","v":1841},{"$f":"HLOOKUP(CB$7+0.5,$K$68:$DL$122,ROWS($B$12:$B35)+2,FALSE)","v":1026},{"$f":"HLOOKUP(CC$7+0.5,$K$68:$DL$122,ROWS($B$12:$B35)+2,FALSE)","v":867},{"$f":"HLOOKUP(CD$7+0.5,$K$68:$DL$122,ROWS($B$12:$B35)+2,FALSE)","v":1158},{"$f":"HLOOKUP(CE$7+0.5,$K$68:$DL$122,ROWS($B$12:$B35)+2,FALSE)","v":556},{"$f":"HLOOKUP(CF$7+0.5,$K$68:$DL$122,ROWS($B$12:$B35)+2,FALSE)","v":735},{"$f":"HLOOKUP(CG$7+0.5,$K$68:$DL$122,ROWS($B$12:$B35)+2,FALSE)","v":431},{"$f":"HLOOKUP(CH$7+0.5,$K$68:$DL$122,ROWS($B$12:$B35)+2,FALSE)","v":1135},{"$f":"HLOOKUP(CI$7+0.5,$K$68:$DL$122,ROWS($B$12:$B35)+2,FALSE)","v":"N/A"},{"$f":"HLOOKUP(CJ$7+0.5,$K$68:$DL$122,ROWS($B$12:$B35)+2,FALSE)","v":1085},{"$f":"HLOOKUP(CK$7+0.5,$K$68:$DL$122,ROWS($B$12:$B35)+2,FALSE)","v":558},{"$f":"HLOOKUP(CL$7+0.5,$K$68:$DL$122,ROWS($B$12:$B35)+2,FALSE)","v":1200},{"$f":"HLOOKUP(CM$7+0.5,$K$68:$DL$122,ROWS($B$12:$B35)+2,FALSE)","v":105},{"$f":"HLOOKUP(CN$7+0.5,$K$68:$DL$122,ROWS($B$12:$B35)+2,FALSE)","v":312},{"$f":"HLOOKUP(CO$7+0.5,$K$68:$DL$122,ROWS($B$12:$B35)+2,FALSE)","v":610},{"$f":"HLOOKUP(CP$7+0.5,$K$68:$DL$122,ROWS($B$12:$B35)+2,FALSE)","v":120},{"$f":"HLOOKUP(CQ$7+0.5,$K$68:$DL$122,ROWS($B$12:$B35)+2,FALSE)","v":779},{"$f":"HLOOKUP(CR$7+0.5,$K$68:$DL$122,ROWS($B$12:$B35)+2,FALSE)","v":367},{"$f":"HLOOKUP(CS$7+0.5,$K$68:$DL$122,ROWS($B$12:$B35)+2,FALSE)","v":2170},{"$f":"HLOOKUP(CT$7+0.5,$K$68:$DL$122,ROWS($B$12:$B35)+2,FALSE)","v":1427},{"$f":"HLOOKUP(CU$7+0.5,$K$68:$DL$122,ROWS($B$12:$B35)+2,FALSE)","v":164},{"$f":"HLOOKUP(CV$7+0.5,$K$68:$DL$122,ROWS($B$12:$B35)+2,FALSE)","v":2069},{"$f":"HLOOKUP(CW$7+0.5,$K$68:$DL$122,ROWS($B$12:$B35)+2,FALSE)","v":570},{"$f":"HLOOKUP(CX$7+0.5,$K$68:$DL$122,ROWS($B$12:$B35)+2,FALSE)","v":324},{"$f":"HLOOKUP(CY$7+0.5,$K$68:$DL$122,ROWS($B$12:$B35)+2,FALSE)","v":1095},{"$f":"HLOOKUP(CZ$7+0.5,$K$68:$DL$122,ROWS($B$12:$B35)+2,FALSE)","v":377},{"$f":"HLOOKUP(DA$7+0.5,$K$68:$DL$122,ROWS($B$12:$B35)+2,FALSE)","v":1094},{"$f":"HLOOKUP(DB$7+0.5,$K$68:$DL$122,ROWS($B$12:$B35)+2,FALSE)","v":599},{"$f":"HLOOKUP(DC$7+0.5,$K$68:$DL$122,ROWS($B$12:$B35)+2,FALSE)","v":973},{"$f":"HLOOKUP(DD$7+0.5,$K$68:$DL$122,ROWS($B$12:$B35)+2,FALSE)","v":2208},{"$f":"HLOOKUP(DE$7+0.5,$K$68:$DL$122,ROWS($B$12:$B35)+2,FALSE)","v":582},{"$f":"HLOOKUP(DF$7+0.5,$K$68:$DL$122,ROWS($B$12:$B35)+2,FALSE)","v":167},{"$f":"HLOOKUP(DG$7+0.5,$K$68:$DL$122,ROWS($B$12:$B35)+2,FALSE)","v":834},{"$f":"HLOOKUP(DH$7+0.5,$K$68:$DL$122,ROWS($B$12:$B35)+2,FALSE)","v":669},{"$f":"HLOOKUP(DI$7+0.5,$K$68:$DL$122,ROWS($B$12:$B35)+2,FALSE)","v":301},{"$f":"HLOOKUP(DJ$7+0.5,$K$68:$DL$122,ROWS($B$12:$B35)+2,FALSE)","v":1002},{"$f":"HLOOKUP(DK$7+0.5,$K$68:$DL$122,ROWS($B$12:$B35)+2,FALSE)","v":655},{"$f":"HLOOKUP(DL$7+0.5,$K$68:$DL$122,ROWS($B$12:$B35)+2,FALSE)","v":857}]
[null,null,"Minnesota",5277329,3380,4505462,20788,646176,19647,1.4458706909678772E-2,{"$f":"HLOOKUP(K$7,$K$68:$DL$122,ROWS($B$12:$B36)+2,FALSE)","v":101029},{"$f":"HLOOKUP(L$7,$K$68:$DL$122,ROWS($B$12:$B36)+2,FALSE)","v":123},{"$f":"HLOOKUP(M$7,$K$68:$DL$122,ROWS($B$12:$B36)+2,FALSE)","v":893},{"$f":"HLOOKUP(N$7,$K$68:$DL$122,ROWS($B$12:$B36)+2,FALSE)","v":2314},{"$f":"HLOOKUP(O$7,$K$68:$DL$122,ROWS($B$12:$B36)+2,FALSE)","v":951},{"$f":"HLOOKUP(P$7,$K$68:$DL$122,ROWS($B$12:$B36)+2,FALSE)","v":6638},{"$f":"HLOOKUP(Q$7,$K$68:$DL$122,ROWS($B$12:$B36)+2,FALSE)","v":2662},{"$f":"HLOOKUP(R$7,$K$68:$DL$122,ROWS($B$12:$B36)+2,FALSE)","v":74},{"$f":"HLOOKUP(S$7,$K$68:$DL$122,ROWS($B$12:$B36)+2,FALSE)","v":86},{"$f":"HLOOKUP(T$7,$K$68:$DL$122,ROWS($B$12:$B36)+2,FALSE)","v":367},{"$f":"HLOOKUP(U$7,$K$68:$DL$122,ROWS($B$12:$B36)+2,FALSE)","v":2820},{"$f":"HLOOKUP(V$7,$K$68:$DL$122,ROWS($B$12:$B36)+2,FALSE)","v":840},{"$f":"HLOOKUP(W$7,$K$68:$DL$122,ROWS($B$12:$B36)+2,FALSE)","v":901},{"$f":"HLOOKUP(X$7,$K$68:$DL$122,ROWS($B$12:$B36)+2,FALSE)","v":402},{"$f":"HLOOKUP(Y$7,$K$68:$DL$122,ROWS($B$12:$B36)+2,FALSE)","v":8209},{"$f":"HLOOKUP(Z$7,$K$68:$DL$122,ROWS($B$12:$B36)+2,FALSE)","v":786},{"$f":"HLOOKUP(AA$7,$K$68:$DL$122,ROWS($B$12:$B36)+2,FALSE)","v":6175},{"$f":"HLOOKUP(AB$7,$K$68:$DL$122,ROWS($B$12:$B36)+2,FALSE)","v":606},{"$f":"HLOOKUP(AC$7,$K$68:$DL$122,ROWS($B$12:$B36)+2,FALSE)","v":755},{"$f":"HLOOKUP(AD$7,$K$68:$DL$122,ROWS($B$12:$B36)+2,FALSE)","v":573},{"$f":"HLOOKUP(AE$7,$K$68:$DL$122,ROWS($B$12:$B36)+2,FALSE)","v":321},{"$f":"HLOOKUP(AF$7,$K$68:$DL$122,ROWS($B$12:$B36)+2,FALSE)","v":424},{"$f":"HLOOKUP(AG$7,$K$68:$DL$122,ROWS($B$12:$B36)+2,FALSE)","v":970},{"$f":"HLOOKUP(AH$7,$K$68:$DL$122,ROWS($B$12:$B36)+2,FALSE)","v":5164},{"$f":"HLOOKUP(AI$7,$K$68:$DL$122,ROWS($B$12:$B36)+2,FALSE)","v":"N/A"},{"$f":"HLOOKUP(AJ$7,$K$68:$DL$122,ROWS($B$12:$B36)+2,FALSE)","v":549},{"$f":"HLOOKUP(AK$7,$K$68:$DL$122,ROWS($B$12:$B36)+2,FALSE)","v":1345},{"$f":"HLOOKUP(AL$7,$K$68:$DL$122,ROWS($B$12:$B36)+2,FALSE)","v":1457},{"$f":"HLOOKUP(AM$7,$K$68:$DL$122,ROWS($B$12:$B36)+2,FALSE)","v":1936},{"$f":"HLOOKUP(AN$7,$K$68:$DL$122,ROWS($B$12:$B36)+2,FALSE)","v":2682},{"$f":"HLOOKUP(AO$7,$K$68:$DL$122,ROWS($B$12:$B36)+2,FALSE)","v":21},{"$f":"HLOOKUP(AP$7,$K$68:$DL$122,ROWS($B$12:$B36)+2,FALSE)","v":631},{"$f":"HLOOKUP(AQ$7,$K$68:$DL$122,ROWS($B$12:$B36)+2,FALSE)","v":540},{"$f":"HLOOKUP(AR$7,$K$68:$DL$122,ROWS($B$12:$B36)+2,FALSE)","v":2416},{"$f":"HLOOKUP(AS$7,$K$68:$DL$122,ROWS($B$12:$B36)+2,FALSE)","v":845},{"$f":"HLOOKUP(AT$7,$K$68:$DL$122,ROWS($B$12:$B36)+2,FALSE)","v":7574},{"$f":"HLOOKUP(AU$7,$K$68:$DL$122,ROWS($B$12:$B36)+2,FALSE)","v":1961},{"$f":"HLOOKUP(AV$7,$K$68:$DL$122,ROWS($B$12:$B36)+2,FALSE)","v":546},{"$f":"HLOOKUP(AW$7,$K$68:$DL$122,ROWS($B$12:$B36)+2,FALSE)","v":1800},{"$f":"HLOOKUP(AX$7,$K$68:$DL$122,ROWS($B$12:$B36)+2,FALSE)","v":870},{"$f":"HLOOKUP(AY$7,$K$68:$DL$122,ROWS($B$12:$B36)+2,FALSE)","v":0},{"$f":"HLOOKUP(AZ$7,$K$68:$DL$122,ROWS($B$12:$B36)+2,FALSE)","v":447},{"$f":"HLOOKUP(BA$7,$K$68:$DL$122,ROWS($B$12:$B36)+2,FALSE)","v":5305},{"$f":"HLOOKUP(BB$7,$K$68:$DL$122,ROWS($B$12:$B36)+2,FALSE)","v":874},{"$f":"HLOOKUP(BC$7,$K$68:$DL$122,ROWS($B$12:$B36)+2,FALSE)","v":3062},{"$f":"HLOOKUP(BD$7,$K$68:$DL$122,ROWS($B$12:$B36)+2,FALSE)","v":919},{"$f":"HLOOKUP(BE$7,$K$68:$DL$122,ROWS($B$12:$B36)+2,FALSE)","v":177},{"$f":"HLOOKUP(BF$7,$K$68:$DL$122,ROWS($B$12:$B36)+2,FALSE)","v":1034},{"$f":"HLOOKUP(BG$7,$K$68:$DL$122,ROWS($B$12:$B36)+2,FALSE)","v":1413},{"$f":"HLOOKUP(BH$7,$K$68:$DL$122,ROWS($B$12:$B36)+2,FALSE)","v":92},{"$f":"HLOOKUP(BI$7,$K$68:$DL$122,ROWS($B$12:$B36)+2,FALSE)","v":19255},{"$f":"HLOOKUP(BJ$7,$K$68:$DL$122,ROWS($B$12:$B36)+2,FALSE)","v":224},{"$f":"HLOOKUP(BK$7,$K$68:$DL$122,ROWS($B$12:$B36)+2,FALSE)","v":54},{"$f":"HLOOKUP(BL$7+0.5,$K$68:$DL$122,ROWS($B$12:$B36)+2,FALSE)","v":7052},{"$f":"HLOOKUP(BM$7+0.5,$K$68:$DL$122,ROWS($B$12:$B36)+2,FALSE)","v":150},{"$f":"HLOOKUP(BN$7+0.5,$K$68:$DL$122,ROWS($B$12:$B36)+2,FALSE)","v":619},{"$f":"HLOOKUP(BO$7+0.5,$K$68:$DL$122,ROWS($B$12:$B36)+2,FALSE)","v":1071},{"$f":"HLOOKUP(BP$7+0.5,$K$68:$DL$122,ROWS($B$12:$B36)+2,FALSE)","v":599},{"$f":"HLOOKUP(BQ$7+0.5,$K$68:$DL$122,ROWS($B$12:$B36)+2,FALSE)","v":2072},{"$f":"HLOOKUP(BR$7+0.5,$K$68:$DL$122,ROWS($B$12:$B36)+2,FALSE)","v":1023},{"$f":"HLOOKUP(BS$7+0.5,$K$68:$DL$122,ROWS($B$12:$B36)+2,FALSE)","v":131},{"$f":"HLOOKUP(BT$7+0.5,$K$68:$DL$122,ROWS($B$12:$B36)+2,FALSE)","v":143},{"$f":"HLOOKUP(BU$7+0.5,$K$68:$DL$122,ROWS($B$12:$B36)+2,FALSE)","v":391},{"$f":"HLOOKUP(BV$7+0.5,$K$68:$DL$122,ROWS($B$12:$B36)+2,FALSE)","v":806},{"$f":"HLOOKUP(BW$7+0.5,$K$68:$DL$122,ROWS($B$12:$B36)+2,FALSE)","v":467},{"$f":"HLOOKUP(BX$7+0.5,$K$68:$DL$122,ROWS($B$12:$B36)+2,FALSE)","v":634},{"$f":"HLOOKUP(BY$7+0.5,$K$68:$DL$122,ROWS($B$12:$B36)+2,FALSE)","v":328},{"$f":"HLOOKUP(BZ$7+0.5,$K$68:$DL$122,ROWS($B$12:$B36)+2,FALSE)","v":2632},{"$f":"HLOOKUP(CA$7+0.5,$K$68:$DL$122,ROWS($B$12:$B36)+2,FALSE)","v":470},{"$f":"HLOOKUP(CB$7+0.5,$K$68:$DL$122,ROWS($B$12:$B36)+2,FALSE)","v":1326},{"$f":"HLOOKUP(CC$7+0.5,$K$68:$DL$122,ROWS($B$12:$B36)+2,FALSE)","v":324},{"$f":"HLOOKUP(CD$7+0.5,$K$68:$DL$122,ROWS($B$12:$B36)+2,FALSE)","v":580},{"$f":"HLOOKUP(CE$7+0.5,$K$68:$DL$122,ROWS($B$12:$B36)+2,FALSE)","v":599},{"$f":"HLOOKUP(CF$7+0.5,$K$68:$DL$122,ROWS($B$12:$B36)+2,FALSE)","v":343},{"$f":"HLOOKUP(CG$7+0.5,$K$68:$DL$122,ROWS($B$12:$B36)+2,FALSE)","v":382},{"$f":"HLOOKUP(CH$7+0.5,$K$68:$DL$122,ROWS($B$12:$B36)+2,FALSE)","v":422},{"$f":"HLOOKUP(CI$7+0.5,$K$68:$DL$122,ROWS($B$12:$B36)+2,FALSE)","v":2149},{"$f":"HLOOKUP(CJ$7+0.5,$K$68:$DL$122,ROWS($B$12:$B36)+2,FALSE)","v":"N/A"},{"$f":"HLOOKUP(CK$7+0.5,$K$68:$DL$122,ROWS($B$12:$B36)+2,FALSE)","v":593},{"$f":"HLOOKUP(CL$7+0.5,$K$68:$DL$122,ROWS($B$12:$B36)+2,FALSE)","v":712},{"$f":"HLOOKUP(CM$7+0.5,$K$68:$DL$122,ROWS($B$12:$B36)+2,FALSE)","v":859},{"$f":"HLOOKUP(CN$7+0.5,$K$68:$DL$122,ROWS($B$12:$B36)+2,FALSE)","v":821},{"$f":"HLOOKUP(CO$7+0.5,$K$68:$DL$122,ROWS($B$12:$B36)+2,FALSE)","v":1858},{"$f":"HLOOKUP(CP$7+0.5,$K$68:$DL$122,ROWS($B$12:$B36)+2,FALSE)","v":26},{"$f":"HLOOKUP(CQ$7+0.5,$K$68:$DL$122,ROWS($B$12:$B36)+2,FALSE)","v":522},{"$f":"HLOOKUP(CR$7+0.5,$K$68:$DL$122,ROWS($B$12:$B36)+2,FALSE)","v":319},{"$f":"HLOOKUP(CS$7+0.5,$K$68:$DL$122,ROWS($B$12:$B36)+2,FALSE)","v":913},{"$f":"HLOOKUP(CT$7+0.5,$K$68:$DL$122,ROWS($B$12:$B36)+2,FALSE)","v":520},{"$f":"HLOOKUP(CU$7+0.5,$K$68:$DL$122,ROWS($B$12:$B36)+2,FALSE)","v":1390},{"$f":"HLOOKUP(CV$7+0.5,$K$68:$DL$122,ROWS($B$12:$B36)+2,FALSE)","v":1059},{"$f":"HLOOKUP(CW$7+0.5,$K$68:$DL$122,ROWS($B$12:$B36)+2,FALSE)","v":399},{"$f":"HLOOKUP(CX$7+0.5,$K$68:$DL$122,ROWS($B$12:$B36)+2,FALSE)","v":1169},{"$f":"HLOOKUP(CY$7+0.5,$K$68:$DL$122,ROWS($B$12:$B36)+2,FALSE)","v":509},{"$f":"HLOOKUP(CZ$7+0.5,$K$68:$DL$122,ROWS($B$12:$B36)+2,FALSE)","v":143},{"$f":"HLOOKUP(DA$7+0.5,$K$68:$DL$122,ROWS($B$12:$B36)+2,FALSE)","v":428},{"$f":"HLOOKUP(DB$7+0.5,$K$68:$DL$122,ROWS($B$12:$B36)+2,FALSE)","v":1596},{"$f":"HLOOKUP(DC$7+0.5,$K$68:$DL$122,ROWS($B$12:$B36)+2,FALSE)","v":489},{"$f":"HLOOKUP(DD$7+0.5,$K$68:$DL$122,ROWS($B$12:$B36)+2,FALSE)","v":1108},{"$f":"HLOOKUP(DE$7+0.5,$K$68:$DL$122,ROWS($B$12:$B36)+2,FALSE)","v":742},{"$f":"HLOOKUP(DF$7+0.5,$K$68:$DL$122,ROWS($B$12:$B36)+2,FALSE)","v":161},{"$f":"HLOOKUP(DG$7+0.5,$K$68:$DL$122,ROWS($B$12:$B36)+2,FALSE)","v":420},{"$f":"HLOOKUP(DH$7+0.5,$K$68:$DL$122,ROWS($B$12:$B36)+2,FALSE)","v":656},{"$f":"HLOOKUP(DI$7+0.5,$K$68:$DL$122,ROWS($B$12:$B36)+2,FALSE)","v":98},{"$f":"HLOOKUP(DJ$7+0.5,$K$68:$DL$122,ROWS($B$12:$B36)+2,FALSE)","v":2960},{"$f":"HLOOKUP(DK$7+0.5,$K$68:$DL$122,ROWS($B$12:$B36)+2,FALSE)","v":178},{"$f":"HLOOKUP(DL$7+0.5,$K$68:$DL$122,ROWS($B$12:$B36)+2,FALSE)","v":91}]
[null,null,"Mississippi",2943021,3088,2534036,16620,332934,15960,9.8049121449188086E-3,{"$f":"HLOOKUP(K$7,$K$68:$DL$122,ROWS($B$12:$B37)+2,FALSE)","v":68511},{"$f":"HLOOKUP(L$7,$K$68:$DL$122,ROWS($B$12:$B37)+2,FALSE)","v":8922},{"$f":"HLOOKUP(M$7,$K$68:$DL$122,ROWS($B$12:$B37)+2,FALSE)","v":117},{"$f":"HLOOKUP(N$7,$K$68:$DL$122,ROWS($B$12:$B37)+2,FALSE)","v":556},{"$f":"HLOOKUP(O$7,$K$68:$DL$122,ROWS($B$12:$B37)+2,FALSE)","v":2315},{"$f":"HLOOKUP(P$7,$K$68:$DL$122,ROWS($B$12:$B37)+2,FALSE)","v":4723},{"$f":"HLOOKUP(Q$7,$K$68:$DL$122,ROWS($B$12:$B37)+2,FALSE)","v":484},{"$f":"HLOOKUP(R$7,$K$68:$DL$122,ROWS($B$12:$B37)+2,FALSE)","v":54},{"$f":"HLOOKUP(S$7,$K$68:$DL$122,ROWS($B$12:$B37)+2,FALSE)","v":0},{"$f":"HLOOKUP(T$7,$K$68:$DL$122,ROWS($B$12:$B37)+2,FALSE)","v":415},{"$f":"HLOOKUP(U$7,$K$68:$DL$122,ROWS($B$12:$B37)+2,FALSE)","v":6152},{"$f":"HLOOKUP(V$7,$K$68:$DL$122,ROWS($B$12:$B37)+2,FALSE)","v":3136},{"$f":"HLOOKUP(W$7,$K$68:$DL$122,ROWS($B$12:$B37)+2,FALSE)","v":369},{"$f":"HLOOKUP(X$7,$K$68:$DL$122,ROWS($B$12:$B37)+2,FALSE)","v":55},{"$f":"HLOOKUP(Y$7,$K$68:$DL$122,ROWS($B$12:$B37)+2,FALSE)","v":2068},{"$f":"HLOOKUP(Z$7,$K$68:$DL$122,ROWS($B$12:$B37)+2,FALSE)","v":611},{"$f":"HLOOKUP(AA$7,$K$68:$DL$122,ROWS($B$12:$B37)+2,FALSE)","v":650},{"$f":"HLOOKUP(AB$7,$K$68:$DL$122,ROWS($B$12:$B37)+2,FALSE)","v":66},{"$f":"HLOOKUP(AC$7,$K$68:$DL$122,ROWS($B$12:$B37)+2,FALSE)","v":1626},{"$f":"HLOOKUP(AD$7,$K$68:$DL$122,ROWS($B$12:$B37)+2,FALSE)","v":7139},{"$f":"HLOOKUP(AE$7,$K$68:$DL$122,ROWS($B$12:$B37)+2,FALSE)","v":0},{"$f":"HLOOKUP(AF$7,$K$68:$DL$122,ROWS($B$12:$B37)+2,FALSE)","v":265},{"$f":"HLOOKUP(AG$7,$K$68:$DL$122,ROWS($B$12:$B37)+2,FALSE)","v":1445},{"$f":"HLOOKUP(AH$7,$K$68:$DL$122,ROWS($B$12:$B37)+2,FALSE)","v":1610},{"$f":"HLOOKUP(AI$7,$K$68:$DL$122,ROWS($B$12:$B37)+2,FALSE)","v":614},{"$f":"HLOOKUP(AJ$7,$K$68:$DL$122,ROWS($B$12:$B37)+2,FALSE)","v":"N/A"},{"$f":"HLOOKUP(AK$7,$K$68:$DL$122,ROWS($B$12:$B37)+2,FALSE)","v":1581},{"$f":"HLOOKUP(AL$7,$K$68:$DL$122,ROWS($B$12:$B37)+2,FALSE)","v":0},{"$f":"HLOOKUP(AM$7,$K$68:$DL$122,ROWS($B$12:$B37)+2,FALSE)","v":118},{"$f":"HLOOKUP(AN$7,$K$68:$DL$122,ROWS($B$12:$B37)+2,FALSE)","v":84},{"$f":"HLOOKUP(AO$7,$K$68:$DL$122,ROWS($B$12:$B37)+2,FALSE)","v":65},{"$f":"HLOOKUP(AP$7,$K$68:$DL$122,ROWS($B$12:$B37)+2,FALSE)","v":269},{"$f":"HLOOKUP(AQ$7,$K$68:$DL$122,ROWS($B$12:$B37)+2,FALSE)","v":1075},{"$f":"HLOOKUP(AR$7,$K$68:$DL$122,ROWS($B$12:$B37)+2,FALSE)","v":364},{"$f":"HLOOKUP(AS$7,$K$68:$DL$122,ROWS($B$12:$B37)+2,FALSE)","v":483},{"$f":"HLOOKUP(AT$7,$K$68:$DL$122,ROWS($B$12:$B37)+2,FALSE)","v":0},{"$f":"HLOOKUP(AU$7,$K$68:$DL$122,ROWS($B$12:$B37)+2,FALSE)","v":991},{"$f":"HLOOKUP(AV$7,$K$68:$DL$122,ROWS($B$12:$B37)+2,FALSE)","v":566},{"$f":"HLOOKUP(AW$7,$K$68:$DL$122,ROWS($B$12:$B37)+2,FALSE)","v":74},{"$f":"HLOOKUP(AX$7,$K$68:$DL$122,ROWS($B$12:$B37)+2,FALSE)","v":2568},{"$f":"HLOOKUP(AY$7,$K$68:$DL$122,ROWS($B$12:$B37)+2,FALSE)","v":41},{"$f":"HLOOKUP(AZ$7,$K$68:$DL$122,ROWS($B$12:$B37)+2,FALSE)","v":398},{"$f":"HLOOKUP(BA$7,$K$68:$DL$122,ROWS($B$12:$B37)+2,FALSE)","v":6},{"$f":"HLOOKUP(BB$7,$K$68:$DL$122,ROWS($B$12:$B37)+2,FALSE)","v":7683},{"$f":"HLOOKUP(BC$7,$K$68:$DL$122,ROWS($B$12:$B37)+2,FALSE)","v":5243},{"$f":"HLOOKUP(BD$7,$K$68:$DL$122,ROWS($B$12:$B37)+2,FALSE)","v":332},{"$f":"HLOOKUP(BE$7,$K$68:$DL$122,ROWS($B$12:$B37)+2,FALSE)","v":0},{"$f":"HLOOKUP(BF$7,$K$68:$DL$122,ROWS($B$12:$B37)+2,FALSE)","v":1453},{"$f":"HLOOKUP(BG$7,$K$68:$DL$122,ROWS($B$12:$B37)+2,FALSE)","v":286},{"$f":"HLOOKUP(BH$7,$K$68:$DL$122,ROWS($B$12:$B37)+2,FALSE)","v":303},{"$f":"HLOOKUP(BI$7,$K$68:$DL$122,ROWS($B$12:$B37)+2,FALSE)","v":1136},{"$f":"HLOOKUP(BJ$7,$K$68:$DL$122,ROWS($B$12:$B37)+2,FALSE)","v":0},{"$f":"HLOOKUP(BK$7,$K$68:$DL$122,ROWS($B$12:$B37)+2,FALSE)","v":318},{"$f":"HLOOKUP(BL$7+0.5,$K$68:$DL$122,ROWS($B$12:$B37)+2,FALSE)","v":5606},{"$f":"HLOOKUP(BM$7+0.5,$K$68:$DL$122,ROWS($B$12:$B37)+2,FALSE)","v":2639},{"$f":"HLOOKUP(BN$7+0.5,$K$68:$DL$122,ROWS($B$12:$B37)+2,FALSE)","v":102},{"$f":"HLOOKUP(BO$7+0.5,$K$68:$DL$122,ROWS($B$12:$B37)+2,FALSE)","v":405},{"$f":"HLOOKUP(BP$7+0.5,$K$68:$DL$122,ROWS($B$12:$B37)+2,FALSE)","v":1360},{"$f":"HLOOKUP(BQ$7+0.5,$K$68:$DL$122,ROWS($B$12:$B37)+2,FALSE)","v":1290},{"$f":"HLOOKUP(BR$7+0.5,$K$68:$DL$122,ROWS($B$12:$B37)+2,FALSE)","v":453},{"$f":"HLOOKUP(BS$7+0.5,$K$68:$DL$122,ROWS($B$12:$B37)+2,FALSE)","v":74},{"$f":"HLOOKUP(BT$7+0.5,$K$68:$DL$122,ROWS($B$12:$B37)+2,FALSE)","v":206},{"$f":"HLOOKUP(BU$7+0.5,$K$68:$DL$122,ROWS($B$12:$B37)+2,FALSE)","v":434},{"$f":"HLOOKUP(BV$7+0.5,$K$68:$DL$122,ROWS($B$12:$B37)+2,FALSE)","v":2463},{"$f":"HLOOKUP(BW$7+0.5,$K$68:$DL$122,ROWS($B$12:$B37)+2,FALSE)","v":1397},{"$f":"HLOOKUP(BX$7+0.5,$K$68:$DL$122,ROWS($B$12:$B37)+2,FALSE)","v":429},{"$f":"HLOOKUP(BY$7+0.5,$K$68:$DL$122,ROWS($B$12:$B37)+2,FALSE)","v":82},{"$f":"HLOOKUP(BZ$7+0.5,$K$68:$DL$122,ROWS($B$12:$B37)+2,FALSE)","v":853},{"$f":"HLOOKUP(CA$7+0.5,$K$68:$DL$122,ROWS($B$12:$B37)+2,FALSE)","v":411},{"$f":"HLOOKUP(CB$7+0.5,$K$68:$DL$122,ROWS($B$12:$B37)+2,FALSE)","v":603},{"$f":"HLOOKUP(CC$7+0.5,$K$68:$DL$122,ROWS($B$12:$B37)+2,FALSE)","v":90},{"$f":"HLOOKUP(CD$7+0.5,$K$68:$DL$122,ROWS($B$12:$B37)+2,FALSE)","v":841},{"$f":"HLOOKUP(CE$7+0.5,$K$68:$DL$122,ROWS($B$12:$B37)+2,FALSE)","v":1767},{"$f":"HLOOKUP(CF$7+0.5,$K$68:$DL$122,ROWS($B$12:$B37)+2,FALSE)","v":206},{"$f":"HLOOKUP(CG$7+0.5,$K$68:$DL$122,ROWS($B$12:$B37)+2,FALSE)","v":239},{"$f":"HLOOKUP(CH$7+0.5,$K$68:$DL$122,ROWS($B$12:$B37)+2,FALSE)","v":1561},{"$f":"HLOOKUP(CI$7+0.5,$K$68:$DL$122,ROWS($B$12:$B37)+2,FALSE)","v":900},{"$f":"HLOOKUP(CJ$7+0.5,$K$68:$DL$122,ROWS($B$12:$B37)+2,FALSE)","v":615},{"$f":"HLOOKUP(CK$7+0.5,$K$68:$DL$122,ROWS($B$12:$B37)+2,FALSE)","v":"N/A"},{"$f":"HLOOKUP(CL$7+0.5,$K$68:$DL$122,ROWS($B$12:$B37)+2,FALSE)","v":973},{"$f":"HLOOKUP(CM$7+0.5,$K$68:$DL$122,ROWS($B$12:$B37)+2,FALSE)","v":206},{"$f":"HLOOKUP(CN$7+0.5,$K$68:$DL$122,ROWS($B$12:$B37)+2,FALSE)","v":198},{"$f":"HLOOKUP(CO$7+0.5,$K$68:$DL$122,ROWS($B$12:$B37)+2,FALSE)","v":141},{"$f":"HLOOKUP(CP$7+0.5,$K$68:$DL$122,ROWS($B$12:$B37)+2,FALSE)","v":135},{"$f":"HLOOKUP(CQ$7+0.5,$K$68:$DL$122,ROWS($B$12:$B37)+2,FALSE)","v":293},{"$f":"HLOOKUP(CR$7+0.5,$K$68:$DL$122,ROWS($B$12:$B37)+2,FALSE)","v":1040},{"$f":"HLOOKUP(CS$7+0.5,$K$68:$DL$122,ROWS($B$12:$B37)+2,FALSE)","v":449},{"$f":"HLOOKUP(CT$7+0.5,$K$68:$DL$122,ROWS($B$12:$B37)+2,FALSE)","v":299},{"$f":"HLOOKUP(CU$7+0.5,$K$68:$DL$122,ROWS($B$12:$B37)+2,FALSE)","v":206},{"$f":"HLOOKUP(CV$7+0.5,$K$68:$DL$122,ROWS($B$12:$B37)+2,FALSE)","v":536},{"$f":"HLOOKUP(CW$7+0.5,$K$68:$DL$122,ROWS($B$12:$B37)+2,FALSE)","v":362},{"$f":"HLOOKUP(CX$7+0.5,$K$68:$DL$122,ROWS($B$12:$B37)+2,FALSE)","v":107},{"$f":"HLOOKUP(CY$7+0.5,$K$68:$DL$122,ROWS($B$12:$B37)+2,FALSE)","v":1700},{"$f":"HLOOKUP(CZ$7+0.5,$K$68:$DL$122,ROWS($B$12:$B37)+2,FALSE)","v":89},{"$f":"HLOOKUP(DA$7+0.5,$K$68:$DL$122,ROWS($B$12:$B37)+2,FALSE)","v":320},{"$f":"HLOOKUP(DB$7+0.5,$K$68:$DL$122,ROWS($B$12:$B37)+2,FALSE)","v":15},{"$f":"HLOOKUP(DC$7+0.5,$K$68:$DL$122,ROWS($B$12:$B37)+2,FALSE)","v":2248},{"$f":"HLOOKUP(DD$7+0.5,$K$68:$DL$122,ROWS($B$12:$B37)+2,FALSE)","v":1807},{"$f":"HLOOKUP(DE$7+0.5,$K$68:$DL$122,ROWS($B$12:$B37)+2,FALSE)","v":520},{"$f":"HLOOKUP(DF$7+0.5,$K$68:$DL$122,ROWS($B$12:$B37)+2,FALSE)","v":206},{"$f":"HLOOKUP(DG$7+0.5,$K$68:$DL$122,ROWS($B$12:$B37)+2,FALSE)","v":805},{"$f":"HLOOKUP(DH$7+0.5,$K$68:$DL$122,ROWS($B$12:$B37)+2,FALSE)","v":252},{"$f":"HLOOKUP(DI$7+0.5,$K$68:$DL$122,ROWS($B$12:$B37)+2,FALSE)","v":411},{"$f":"HLOOKUP(DJ$7+0.5,$K$68:$DL$122,ROWS($B$12:$B37)+2,FALSE)","v":1061},{"$f":"HLOOKUP(DK$7+0.5,$K$68:$DL$122,ROWS($B$12:$B37)+2,FALSE)","v":206},{"$f":"HLOOKUP(DL$7+0.5,$K$68:$DL$122,ROWS($B$12:$B37)+2,FALSE)","v":411}]
[null,null,"Missouri",5937896,4110,4963040,26160,801046,25054,2.1386876064055725E-2,{"$f":"HLOOKUP(K$7,$K$68:$DL$122,ROWS($B$12:$B38)+2,FALSE)","v":149439},{"$f":"HLOOKUP(L$7,$K$68:$DL$122,ROWS($B$12:$B38)+2,FALSE)","v":1395},{"$f":"HLOOKUP(M$7,$K$68:$DL$122,ROWS($B$12:$B38)+2,FALSE)","v":2043},{"$f":"HLOOKUP(N$7,$K$68:$DL$122,ROWS($B$12:$B38)+2,FALSE)","v":2356},{"$f":"HLOOKUP(O$7,$K$68:$DL$122,ROWS($B$12:$B38)+2,FALSE)","v":6168},{"$f":"HLOOKUP(P$7,$K$68:$DL$122,ROWS($B$12:$B38)+2,FALSE)","v":8386},{"$f":"HLOOKUP(Q$7,$K$68:$DL$122,ROWS($B$12:$B38)+2,FALSE)","v":3144},{"$f":"HLOOKUP(R$7,$K$68:$DL$122,ROWS($B$12:$B38)+2,FALSE)","v":1516},{"$f":"HLOOKUP(S$7,$K$68:$DL$122,ROWS($B$12:$B38)+2,FALSE)","v":0},{"$f":"HLOOKUP(T$7,$K$68:$DL$122,ROWS($B$12:$B38)+2,FALSE)","v":215},{"$f":"HLOOKUP(U$7,$K$68:$DL$122,ROWS($B$12:$B38)+2,FALSE)","v":4513},{"$f":"HLOOKUP(V$7,$K$68:$DL$122,ROWS($B$12:$B38)+2,FALSE)","v":2964},{"$f":"HLOOKUP(W$7,$K$68:$DL$122,ROWS($B$12:$B38)+2,FALSE)","v":871},{"$f":"HLOOKUP(X$7,$K$68:$DL$122,ROWS($B$12:$B38)+2,FALSE)","v":560},{"$f":"HLOOKUP(Y$7,$K$68:$DL$122,ROWS($B$12:$B38)+2,FALSE)","v":20161},{"$f":"HLOOKUP(Z$7,$K$68:$DL$122,ROWS($B$12:$B38)+2,FALSE)","v":4404},{"$f":"HLOOKUP(AA$7,$K$68:$DL$122,ROWS($B$12:$B38)+2,FALSE)","v":4811},{"$f":"HLOOKUP(AB$7,$K$68:$DL$122,ROWS($B$12:$B38)+2,FALSE)","v":20884},{"$f":"HLOOKUP(AC$7,$K$68:$DL$122,ROWS($B$12:$B38)+2,FALSE)","v":1993},{"$f":"HLOOKUP(AD$7,$K$68:$DL$122,ROWS($B$12:$B38)+2,FALSE)","v":1728},{"$f":"HLOOKUP(AE$7,$K$68:$DL$122,ROWS($B$12:$B38)+2,FALSE)","v":291},{"$f":"HLOOKUP(AF$7,$K$68:$DL$122,ROWS($B$12:$B38)+2,FALSE)","v":716},{"$f":"HLOOKUP(AG$7,$K$68:$DL$122,ROWS($B$12:$B38)+2,FALSE)","v":463},{"$f":"HLOOKUP(AH$7,$K$68:$DL$122,ROWS($B$12:$B38)+2,FALSE)","v":2830},{"$f":"HLOOKUP(AI$7,$K$68:$DL$122,ROWS($B$12:$B38)+2,FALSE)","v":2026},{"$f":"HLOOKUP(AJ$7,$K$68:$DL$122,ROWS($B$12:$B38)+2,FALSE)","v":1641},{"$f":"HLOOKUP(AK$7,$K$68:$DL$122,ROWS($B$12:$B38)+2,FALSE)","v":"N/A"},{"$f":"HLOOKUP(AL$7,$K$68:$DL$122,ROWS($B$12:$B38)+2,FALSE)","v":845},{"$f":"HLOOKUP(AM$7,$K$68:$DL$122,ROWS($B$12:$B38)+2,FALSE)","v":4860},{"$f":"HLOOKUP(AN$7,$K$68:$DL$122,ROWS($B$12:$B38)+2,FALSE)","v":1544},{"$f":"HLOOKUP(AO$7,$K$68:$DL$122,ROWS($B$12:$B38)+2,FALSE)","v":769},{"$f":"HLOOKUP(AP$7,$K$68:$DL$122,ROWS($B$12:$B38)+2,FALSE)","v":1114},{"$f":"HLOOKUP(AQ$7,$K$68:$DL$122,ROWS($B$12:$B38)+2,FALSE)","v":1016},{"$f":"HLOOKUP(AR$7,$K$68:$DL$122,ROWS($B$12:$B38)+2,FALSE)","v":2904},{"$f":"HLOOKUP(AS$7,$K$68:$DL$122,ROWS($B$12:$B38)+2,FALSE)","v":3669},{"$f":"HLOOKUP(AT$7,$K$68:$DL$122,ROWS($B$12:$B38)+2,FALSE)","v":977},{"$f":"HLOOKUP(AU$7,$K$68:$DL$122,ROWS($B$12:$B38)+2,FALSE)","v":3240},{"$f":"HLOOKUP(AV$7,$K$68:$DL$122,ROWS($B$12:$B38)+2,FALSE)","v":6073},{"$f":"HLOOKUP(AW$7,$K$68:$DL$122,ROWS($B$12:$B38)+2,FALSE)","v":777},{"$f":"HLOOKUP(AX$7,$K$68:$DL$122,ROWS($B$12:$B38)+2,FALSE)","v":1810},{"$f":"HLOOKUP(AY$7,$K$68:$DL$122,ROWS($B$12:$B38)+2,FALSE)","v":359},{"$f":"HLOOKUP(AZ$7,$K$68:$DL$122,ROWS($B$12:$B38)+2,FALSE)","v":267},{"$f":"HLOOKUP(BA$7,$K$68:$DL$122,ROWS($B$12:$B38)+2,FALSE)","v":361},{"$f":"HLOOKUP(BB$7,$K$68:$DL$122,ROWS($B$12:$B38)+2,FALSE)","v":2676},{"$f":"HLOOKUP(BC$7,$K$68:$DL$122,ROWS($B$12:$B38)+2,FALSE)","v":10293},{"$f":"HLOOKUP(BD$7,$K$68:$DL$122,ROWS($B$12:$B38)+2,FALSE)","v":1697},{"$f":"HLOOKUP(BE$7,$K$68:$DL$122,ROWS($B$12:$B38)+2,FALSE)","v":88},{"$f":"HLOOKUP(BF$7,$K$68:$DL$122,ROWS($B$12:$B38)+2,FALSE)","v":2684},{"$f":"HLOOKUP(BG$7,$K$68:$DL$122,ROWS($B$12:$B38)+2,FALSE)","v":2518},{"$f":"HLOOKUP(BH$7,$K$68:$DL$122,ROWS($B$12:$B38)+2,FALSE)","v":196},{"$f":"HLOOKUP(BI$7,$K$68:$DL$122,ROWS($B$12:$B38)+2,FALSE)","v":1503},{"$f":"HLOOKUP(BJ$7,$K$68:$DL$122,ROWS($B$12:$B38)+2,FALSE)","v":1120},{"$f":"HLOOKUP(BK$7,$K$68:$DL$122,ROWS($B$12:$B38)+2,FALSE)","v":709},{"$f":"HLOOKUP(BL$7+0.5,$K$68:$DL$122,ROWS($B$12:$B38)+2,FALSE)","v":9288},{"$f":"HLOOKUP(BM$7+0.5,$K$68:$DL$122,ROWS($B$12:$B38)+2,FALSE)","v":654},{"$f":"HLOOKUP(BN$7+0.5,$K$68:$DL$122,ROWS($B$12:$B38)+2,FALSE)","v":2471},{"$f":"HLOOKUP(BO$7+0.5,$K$68:$DL$122,ROWS($B$12:$B38)+2,FALSE)","v":1028},{"$f":"HLOOKUP(BP$7+0.5,$K$68:$DL$122,ROWS($B$12:$B38)+2,FALSE)","v":1528},{"$f":"HLOOKUP(BQ$7+0.5,$K$68:$DL$122,ROWS($B$12:$B38)+2,FALSE)","v":1909},{"$f":"HLOOKUP(BR$7+0.5,$K$68:$DL$122,ROWS($B$12:$B38)+2,FALSE)","v":1163},{"$f":"HLOOKUP(BS$7+0.5,$K$68:$DL$122,ROWS($B$12:$B38)+2,FALSE)","v":1078},{"$f":"HLOOKUP(BT$7+0.5,$K$68:$DL$122,ROWS($B$12:$B38)+2,FALSE)","v":184},{"$f":"HLOOKUP(BU$7+0.5,$K$68:$DL$122,ROWS($B$12:$B38)+2,FALSE)","v":254},{"$f":"HLOOKUP(BV$7+0.5,$K$68:$DL$122,ROWS($B$12:$B38)+2,FALSE)","v":1398},{"$f":"HLOOKUP(BW$7+0.5,$K$68:$DL$122,ROWS($B$12:$B38)+2,FALSE)","v":972},{"$f":"HLOOKUP(BX$7+0.5,$K$68:$DL$122,ROWS($B$12:$B38)+2,FALSE)","v":517},{"$f":"HLOOKUP(BY$7+0.5,$K$68:$DL$122,ROWS($B$12:$B38)+2,FALSE)","v":439},{"$f":"HLOOKUP(BZ$7+0.5,$K$68:$DL$122,ROWS($B$12:$B38)+2,FALSE)","v":3086},{"$f":"HLOOKUP(CA$7+0.5,$K$68:$DL$122,ROWS($B$12:$B38)+2,FALSE)","v":1588},{"$f":"HLOOKUP(CB$7+0.5,$K$68:$DL$122,ROWS($B$12:$B38)+2,FALSE)","v":1405},{"$f":"HLOOKUP(CC$7+0.5,$K$68:$DL$122,ROWS($B$12:$B38)+2,FALSE)","v":4170},{"$f":"HLOOKUP(CD$7+0.5,$K$68:$DL$122,ROWS($B$12:$B38)+2,FALSE)","v":803},{"$f":"HLOOKUP(CE$7+0.5,$K$68:$DL$122,ROWS($B$12:$B38)+2,FALSE)","v":905},{"$f":"HLOOKUP(CF$7+0.5,$K$68:$DL$122,ROWS($B$12:$B38)+2,FALSE)","v":295},{"$f":"HLOOKUP(CG$7+0.5,$K$68:$DL$122,ROWS($B$12:$B38)+2,FALSE)","v":317},{"$f":"HLOOKUP(CH$7+0.5,$K$68:$DL$122,ROWS($B$12:$B38)+2,FALSE)","v":306},{"$f":"HLOOKUP(CI$7+0.5,$K$68:$DL$122,ROWS($B$12:$B38)+2,FALSE)","v":1176},{"$f":"HLOOKUP(CJ$7+0.5,$K$68:$DL$122,ROWS($B$12:$B38)+2,FALSE)","v":809},{"$f":"HLOOKUP(CK$7+0.5,$K$68:$DL$122,ROWS($B$12:$B38)+2,FALSE)","v":884},{"$f":"HLOOKUP(CL$7+0.5,$K$68:$DL$122,ROWS($B$12:$B38)+2,FALSE)","v":"N/A"},{"$f":"HLOOKUP(CM$7+0.5,$K$68:$DL$122,ROWS($B$12:$B38)+2,FALSE)","v":541},{"$f":"HLOOKUP(CN$7+0.5,$K$68:$DL$122,ROWS($B$12:$B38)+2,FALSE)","v":1645},{"$f":"HLOOKUP(CO$7+0.5,$K$68:$DL$122,ROWS($B$12:$B38)+2,FALSE)","v":830},{"$f":"HLOOKUP(CP$7+0.5,$K$68:$DL$122,ROWS($B$12:$B38)+2,FALSE)","v":750},{"$f":"HLOOKUP(CQ$7+0.5,$K$68:$DL$122,ROWS($B$12:$B38)+2,FALSE)","v":755},{"$f":"HLOOKUP(CR$7+0.5,$K$68:$DL$122,ROWS($B$12:$B38)+2,FALSE)","v":718},{"$f":"HLOOKUP(CS$7+0.5,$K$68:$DL$122,ROWS($B$12:$B38)+2,FALSE)","v":1260},{"$f":"HLOOKUP(CT$7+0.5,$K$68:$DL$122,ROWS($B$12:$B38)+2,FALSE)","v":1527},{"$f":"HLOOKUP(CU$7+0.5,$K$68:$DL$122,ROWS($B$12:$B38)+2,FALSE)","v":446},{"$f":"HLOOKUP(CV$7+0.5,$K$68:$DL$122,ROWS($B$12:$B38)+2,FALSE)","v":1684},{"$f":"HLOOKUP(CW$7+0.5,$K$68:$DL$122,ROWS($B$12:$B38)+2,FALSE)","v":2312},{"$f":"HLOOKUP(CX$7+0.5,$K$68:$DL$122,ROWS($B$12:$B38)+2,FALSE)","v":538},{"$f":"HLOOKUP(CY$7+0.5,$K$68:$DL$122,ROWS($B$12:$B38)+2,FALSE)","v":1085},{"$f":"HLOOKUP(CZ$7+0.5,$K$68:$DL$122,ROWS($B$12:$B38)+2,FALSE)","v":424},{"$f":"HLOOKUP(DA$7+0.5,$K$68:$DL$122,ROWS($B$12:$B38)+2,FALSE)","v":237},{"$f":"HLOOKUP(DB$7+0.5,$K$68:$DL$122,ROWS($B$12:$B38)+2,FALSE)","v":296},{"$f":"HLOOKUP(DC$7+0.5,$K$68:$DL$122,ROWS($B$12:$B38)+2,FALSE)","v":1056},{"$f":"HLOOKUP(DD$7+0.5,$K$68:$DL$122,ROWS($B$12:$B38)+2,FALSE)","v":2994},{"$f":"HLOOKUP(DE$7+0.5,$K$68:$DL$122,ROWS($B$12:$B38)+2,FALSE)","v":946},{"$f":"HLOOKUP(DF$7+0.5,$K$68:$DL$122,ROWS($B$12:$B38)+2,FALSE)","v":195},{"$f":"HLOOKUP(DG$7+0.5,$K$68:$DL$122,ROWS($B$12:$B38)+2,FALSE)","v":1493},{"$f":"HLOOKUP(DH$7+0.5,$K$68:$DL$122,ROWS($B$12:$B38)+2,FALSE)","v":843},{"$f":"HLOOKUP(DI$7+0.5,$K$68:$DL$122,ROWS($B$12:$B38)+2,FALSE)","v":214},{"$f":"HLOOKUP(DJ$7+0.5,$K$68:$DL$122,ROWS($B$12:$B38)+2,FALSE)","v":671},{"$f":"HLOOKUP(DK$7+0.5,$K$68:$DL$122,ROWS($B$12:$B38)+2,FALSE)","v":900},{"$f":"HLOOKUP(DL$7+0.5,$K$68:$DL$122,ROWS($B$12:$B38)+2,FALSE)","v":463}]
[null,null,"Montana",987076,1359,828254,8593,122210,8386,4.8019181912168961E-3,{"$f":"HLOOKUP(K$7,$K$68:$DL$122,ROWS($B$12:$B39)+2,FALSE)","v":33553},{"$f":"HLOOKUP(L$7,$K$68:$DL$122,ROWS($B$12:$B39)+2,FALSE)","v":449},{"$f":"HLOOKUP(M$7,$K$68:$DL$122,ROWS($B$12:$B39)+2,FALSE)","v":1118},{"$f":"HLOOKUP(N$7,$K$68:$DL$122,ROWS($B$12:$B39)+2,FALSE)","v":1971},{"$f":"HLOOKUP(O$7,$K$68:$DL$122,ROWS($B$12:$B39)+2,FALSE)","v":49},{"$f":"HLOOKUP(P$7,$K$68:$DL$122,ROWS($B$12:$B39)+2,FALSE)","v":3033},{"$f":"HLOOKUP(Q$7,$K$68:$DL$122,ROWS($B$12:$B39)+2,FALSE)","v":2856},{"$f":"HLOOKUP(R$7,$K$68:$DL$122,ROWS($B$12:$B39)+2,FALSE)","v":58},{"$f":"HLOOKUP(S$7,$K$68:$DL$122,ROWS($B$12:$B39)+2,FALSE)","v":365},{"$f":"HLOOKUP(T$7,$K$68:$DL$122,ROWS($B$12:$B39)+2,FALSE)","v":0},{"$f":"HLOOKUP(U$7,$K$68:$DL$122,ROWS($B$12:$B39)+2,FALSE)","v":291},{"$f":"HLOOKUP(V$7,$K$68:$DL$122,ROWS($B$12:$B39)+2,FALSE)","v":231},{"$f":"HLOOKUP(W$7,$K$68:$DL$122,ROWS($B$12:$B39)+2,FALSE)","v":32},{"$f":"HLOOKUP(X$7,$K$68:$DL$122,ROWS($B$12:$B39)+2,FALSE)","v":1543},{"$f":"HLOOKUP(Y$7,$K$68:$DL$122,ROWS($B$12:$B39)+2,FALSE)","v":765},{"$f":"HLOOKUP(Z$7,$K$68:$DL$122,ROWS($B$12:$B39)+2,FALSE)","v":646},{"$f":"HLOOKUP(AA$7,$K$68:$DL$122,ROWS($B$12:$B39)+2,FALSE)","v":417},{"$f":"HLOOKUP(AB$7,$K$68:$DL$122,ROWS($B$12:$B39)+2,FALSE)","v":845},{"$f":"HLOOKUP(AC$7,$K$68:$DL$122,ROWS($B$12:$B39)+2,FALSE)","v":0},{"$f":"HLOOKUP(AD$7,$K$68:$DL$122,ROWS($B$12:$B39)+2,FALSE)","v":0},{"$f":"HLOOKUP(AE$7,$K$68:$DL$122,ROWS($B$12:$B39)+2,FALSE)","v":71},{"$f":"HLOOKUP(AF$7,$K$68:$DL$122,ROWS($B$12:$B39)+2,FALSE)","v":57},{"$f":"HLOOKUP(AG$7,$K$68:$DL$122,ROWS($B$12:$B39)+2,FALSE)","v":10},{"$f":"HLOOKUP(AH$7,$K$68:$DL$122,ROWS($B$12:$B39)+2,FALSE)","v":353},{"$f":"HLOOKUP(AI$7,$K$68:$DL$122,ROWS($B$12:$B39)+2,FALSE)","v":969},{"$f":"HLOOKUP(AJ$7,$K$68:$DL$122,ROWS($B$12:$B39)+2,FALSE)","v":0},{"$f":"HLOOKUP(AK$7,$K$68:$DL$122,ROWS($B$12:$B39)+2,FALSE)","v":158},{"$f":"HLOOKUP(AL$7,$K$68:$DL$122,ROWS($B$12:$B39)+2,FALSE)","v":"N/A"},{"$f":"HLOOKUP(AM$7,$K$68:$DL$122,ROWS($B$12:$B39)+2,FALSE)","v":384},{"$f":"HLOOKUP(AN$7,$K$68:$DL$122,ROWS($B$12:$B39)+2,FALSE)","v":688},{"$f":"HLOOKUP(AO$7,$K$68:$DL$122,ROWS($B$12:$B39)+2,FALSE)","v":0},{"$f":"HLOOKUP(AP$7,$K$68:$DL$122,ROWS($B$12:$B39)+2,FALSE)","v":889},{"$f":"HLOOKUP(AQ$7,$K$68:$DL$122,ROWS($B$12:$B39)+2,FALSE)","v":264},{"$f":"HLOOKUP(AR$7,$K$68:$DL$122,ROWS($B$12:$B39)+2,FALSE)","v":422},{"$f":"HLOOKUP(AS$7,$K$68:$DL$122,ROWS($B$12:$B39)+2,FALSE)","v":1173},{"$f":"HLOOKUP(AT$7,$K$68:$DL$122,ROWS($B$12:$B39)+2,FALSE)","v":360},{"$f":"HLOOKUP(AU$7,$K$68:$DL$122,ROWS($B$12:$B39)+2,FALSE)","v":321},{"$f":"HLOOKUP(AV$7,$K$68:$DL$122,ROWS($B$12:$B39)+2,FALSE)","v":96},{"$f":"HLOOKUP(AW$7,$K$68:$DL$122,ROWS($B$12:$B39)+2,FALSE)","v":1959},{"$f":"HLOOKUP(AX$7,$K$68:$DL$122,ROWS($B$12:$B39)+2,FALSE)","v":840},{"$f":"HLOOKUP(AY$7,$K$68:$DL$122,ROWS($B$12:$B39)+2,FALSE)","v":0},{"$f":"HLOOKUP(AZ$7,$K$68:$DL$122,ROWS($B$12:$B39)+2,FALSE)","v":77},{"$f":"HLOOKUP(BA$7,$K$68:$DL$122,ROWS($B$12:$B39)+2,FALSE)","v":227},{"$f":"HLOOKUP(BB$7,$K$68:$DL$122,ROWS($B$12:$B39)+2,FALSE)","v":266},{"$f":"HLOOKUP(BC$7,$K$68:$DL$122,ROWS($B$12:$B39)+2,FALSE)","v":1329},{"$f":"HLOOKUP(BD$7,$K$68:$DL$122,ROWS($B$12:$B39)+2,FALSE)","v":1232},{"$f":"HLOOKUP(BE$7,$K$68:$DL$122,ROWS($B$12:$B39)+2,FALSE)","v":53},{"$f":"HLOOKUP(BF$7,$K$68:$DL$122,ROWS($B$12:$B39)+2,FALSE)","v":278},{"$f":"HLOOKUP(BG$7,$K$68:$DL$122,ROWS($B$12:$B39)+2,FALSE)","v":3835},{"$f":"HLOOKUP(BH$7,$K$68:$DL$122,ROWS($B$12:$B39)+2,FALSE)","v":14},{"$f":"HLOOKUP(BI$7,$K$68:$DL$122,ROWS($B$12:$B39)+2,FALSE)","v":146},{"$f":"HLOOKUP(BJ$7,$K$68:$DL$122,ROWS($B$12:$B39)+2,FALSE)","v":2413},{"$f":"HLOOKUP(BK$7,$K$68:$DL$122,ROWS($B$12:$B39)+2,FALSE)","v":353},{"$f":"HLOOKUP(BL$7+0.5,$K$68:$DL$122,ROWS($B$12:$B39)+2,FALSE)","v":4015},{"$f":"HLOOKUP(BM$7+0.5,$K$68:$DL$122,ROWS($B$12:$B39)+2,FALSE)","v":318},{"$f":"HLOOKUP(BN$7+0.5,$K$68:$DL$122,ROWS($B$12:$B39)+2,FALSE)","v":921},{"$f":"HLOOKUP(BO$7+0.5,$K$68:$DL$122,ROWS($B$12:$B39)+2,FALSE)","v":1358},{"$f":"HLOOKUP(BP$7+0.5,$K$68:$DL$122,ROWS($B$12:$B39)+2,FALSE)","v":70},{"$f":"HLOOKUP(BQ$7+0.5,$K$68:$DL$122,ROWS($B$12:$B39)+2,FALSE)","v":1110},{"$f":"HLOOKUP(BR$7+0.5,$K$68:$DL$122,ROWS($B$12:$B39)+2,FALSE)","v":1265},{"$f":"HLOOKUP(BS$7+0.5,$K$68:$DL$122,ROWS($B$12:$B39)+2,FALSE)","v":72},{"$f":"HLOOKUP(BT$7+0.5,$K$68:$DL$122,ROWS($B$12:$B39)+2,FALSE)","v":392},{"$f":"HLOOKUP(BU$7+0.5,$K$68:$DL$122,ROWS($B$12:$B39)+2,FALSE)","v":165},{"$f":"HLOOKUP(BV$7+0.5,$K$68:$DL$122,ROWS($B$12:$B39)+2,FALSE)","v":235},{"$f":"HLOOKUP(BW$7+0.5,$K$68:$DL$122,ROWS($B$12:$B39)+2,FALSE)","v":193},{"$f":"HLOOKUP(BX$7+0.5,$K$68:$DL$122,ROWS($B$12:$B39)+2,FALSE)","v":35},{"$f":"HLOOKUP(BY$7+0.5,$K$68:$DL$122,ROWS($B$12:$B39)+2,FALSE)","v":1005},{"$f":"HLOOKUP(BZ$7+0.5,$K$68:$DL$122,ROWS($B$12:$B39)+2,FALSE)","v":526},{"$f":"HLOOKUP(CA$7+0.5,$K$68:$DL$122,ROWS($B$12:$B39)+2,FALSE)","v":646},{"$f":"HLOOKUP(CB$7+0.5,$K$68:$DL$122,ROWS($B$12:$B39)+2,FALSE)","v":307},{"$f":"HLOOKUP(CC$7+0.5,$K$68:$DL$122,ROWS($B$12:$B39)+2,FALSE)","v":492},{"$f":"HLOOKUP(CD$7+0.5,$K$68:$DL$122,ROWS($B$12:$B39)+2,FALSE)","v":165},{"$f":"HLOOKUP(CE$7+0.5,$K$68:$DL$122,ROWS($B$12:$B39)+2,FALSE)","v":165},{"$f":"HLOOKUP(CF$7+0.5,$K$68:$DL$122,ROWS($B$12:$B39)+2,FALSE)","v":127},{"$f":"HLOOKUP(CG$7+0.5,$K$68:$DL$122,ROWS($B$12:$B39)+2,FALSE)","v":71},{"$f":"HLOOKUP(CH$7+0.5,$K$68:$DL$122,ROWS($B$12:$B39)+2,FALSE)","v":18},{"$f":"HLOOKUP(CI$7+0.5,$K$68:$DL$122,ROWS($B$12:$B39)+2,FALSE)","v":295},{"$f":"HLOOKUP(CJ$7+0.5,$K$68:$DL$122,ROWS($B$12:$B39)+2,FALSE)","v":634},{"$f":"HLOOKUP(CK$7+0.5,$K$68:$DL$122,ROWS($B$12:$B39)+2,FALSE)","v":165},{"$f":"HLOOKUP(CL$7+0.5,$K$68:$DL$122,ROWS($B$12:$B39)+2,FALSE)","v":220},{"$f":"HLOOKUP(CM$7+0.5,$K$68:$DL$122,ROWS($B$12:$B39)+2,FALSE)","v":"N/A"},{"$f":"HLOOKUP(CN$7+0.5,$K$68:$DL$122,ROWS($B$12:$B39)+2,FALSE)","v":392},{"$f":"HLOOKUP(CO$7+0.5,$K$68:$DL$122,ROWS($B$12:$B39)+2,FALSE)","v":543},{"$f":"HLOOKUP(CP$7+0.5,$K$68:$DL$122,ROWS($B$12:$B39)+2,FALSE)","v":165},{"$f":"HLOOKUP(CQ$7+0.5,$K$68:$DL$122,ROWS($B$12:$B39)+2,FALSE)","v":589},{"$f":"HLOOKUP(CR$7+0.5,$K$68:$DL$122,ROWS($B$12:$B39)+2,FALSE)","v":389},{"$f":"HLOOKUP(CS$7+0.5,$K$68:$DL$122,ROWS($B$12:$B39)+2,FALSE)","v":377},{"$f":"HLOOKUP(CT$7+0.5,$K$68:$DL$122,ROWS($B$12:$B39)+2,FALSE)","v":982},{"$f":"HLOOKUP(CU$7+0.5,$K$68:$DL$122,ROWS($B$12:$B39)+2,FALSE)","v":250},{"$f":"HLOOKUP(CV$7+0.5,$K$68:$DL$122,ROWS($B$12:$B39)+2,FALSE)","v":409},{"$f":"HLOOKUP(CW$7+0.5,$K$68:$DL$122,ROWS($B$12:$B39)+2,FALSE)","v":127},{"$f":"HLOOKUP(CX$7+0.5,$K$68:$DL$122,ROWS($B$12:$B39)+2,FALSE)","v":914},{"$f":"HLOOKUP(CY$7+0.5,$K$68:$DL$122,ROWS($B$12:$B39)+2,FALSE)","v":640},{"$f":"HLOOKUP(CZ$7+0.5,$K$68:$DL$122,ROWS($B$12:$B39)+2,FALSE)","v":165},{"$f":"HLOOKUP(DA$7+0.5,$K$68:$DL$122,ROWS($B$12:$B39)+2,FALSE)","v":92},{"$f":"HLOOKUP(DB$7+0.5,$K$68:$DL$122,ROWS($B$12:$B39)+2,FALSE)","v":233},{"$f":"HLOOKUP(DC$7+0.5,$K$68:$DL$122,ROWS($B$12:$B39)+2,FALSE)","v":237},{"$f":"HLOOKUP(DD$7+0.5,$K$68:$DL$122,ROWS($B$12:$B39)+2,FALSE)","v":643},{"$f":"HLOOKUP(DE$7+0.5,$K$68:$DL$122,ROWS($B$12:$B39)+2,FALSE)","v":623},{"$f":"HLOOKUP(DF$7+0.5,$K$68:$DL$122,ROWS($B$12:$B39)+2,FALSE)","v":71},{"$f":"HLOOKUP(DG$7+0.5,$K$68:$DL$122,ROWS($B$12:$B39)+2,FALSE)","v":288},{"$f":"HLOOKUP(DH$7+0.5,$K$68:$DL$122,ROWS($B$12:$B39)+2,FALSE)","v":1160},{"$f":"HLOOKUP(DI$7+0.5,$K$68:$DL$122,ROWS($B$12:$B39)+2,FALSE)","v":28},{"$f":"HLOOKUP(DJ$7+0.5,$K$68:$DL$122,ROWS($B$12:$B39)+2,FALSE)","v":184},{"$f":"HLOOKUP(DK$7+0.5,$K$68:$DL$122,ROWS($B$12:$B39)+2,FALSE)","v":1709},{"$f":"HLOOKUP(DL$7+0.5,$K$68:$DL$122,ROWS($B$12:$B39)+2,FALSE)","v":522}]
[null,null,"Nebraska",1817126,2304,1505191,11978,253269,10841,7.4519679377898782E-3,{"$f":"HLOOKUP(K$7,$K$68:$DL$122,ROWS($B$12:$B40)+2,FALSE)","v":52070},{"$f":"HLOOKUP(L$7,$K$68:$DL$122,ROWS($B$12:$B40)+2,FALSE)","v":169},{"$f":"HLOOKUP(M$7,$K$68:$DL$122,ROWS($B$12:$B40)+2,FALSE)","v":721},{"$f":"HLOOKUP(N$7,$K$68:$DL$122,ROWS($B$12:$B40)+2,FALSE)","v":1646},{"$f":"HLOOKUP(O$7,$K$68:$DL$122,ROWS($B$12:$B40)+2,FALSE)","v":161},{"$f":"HLOOKUP(P$7,$K$68:$DL$122,ROWS($B$12:$B40)+2,FALSE)","v":5124},{"$f":"HLOOKUP(Q$7,$K$68:$DL$122,ROWS($B$12:$B40)+2,FALSE)","v":3245},{"$f":"HLOOKUP(R$7,$K$68:$DL$122,ROWS($B$12:$B40)+2,FALSE)","v":381},{"$f":"HLOOKUP(S$7,$K$68:$DL$122,ROWS($B$12:$B40)+2,FALSE)","v":0},{"$f":"HLOOKUP(T$7,$K$68:$DL$122,ROWS($B$12:$B40)+2,FALSE)","v":29},{"$f":"HLOOKUP(U$7,$K$68:$DL$122,ROWS($B$12:$B40)+2,FALSE)","v":1105},{"$f":"HLOOKUP(V$7,$K$68:$DL$122,ROWS($B$12:$B40)+2,FALSE)","v":434},{"$f":"HLOOKUP(W$7,$K$68:$DL$122,ROWS($B$12:$B40)+2,FALSE)","v":275},{"$f":"HLOOKUP(X$7,$K$68:$DL$122,ROWS($B$12:$B40)+2,FALSE)","v":506},{"$f":"HLOOKUP(Y$7,$K$68:$DL$122,ROWS($B$12:$B40)+2,FALSE)","v":1415},{"$f":"HLOOKUP(Z$7,$K$68:$DL$122,ROWS($B$12:$B40)+2,FALSE)","v":615},{"$f":"HLOOKUP(AA$7,$K$68:$DL$122,ROWS($B$12:$B40)+2,FALSE)","v":9575},{"$f":"HLOOKUP(AB$7,$K$68:$DL$122,ROWS($B$12:$B40)+2,FALSE)","v":3040},{"$f":"HLOOKUP(AC$7,$K$68:$DL$122,ROWS($B$12:$B40)+2,FALSE)","v":352},{"$f":"HLOOKUP(AD$7,$K$68:$DL$122,ROWS($B$12:$B40)+2,FALSE)","v":222},{"$f":"HLOOKUP(AE$7,$K$68:$DL$122,ROWS($B$12:$B40)+2,FALSE)","v":122},{"$f":"HLOOKUP(AF$7,$K$68:$DL$122,ROWS($B$12:$B40)+2,FALSE)","v":318},{"$f":"HLOOKUP(AG$7,$K$68:$DL$122,ROWS($B$12:$B40)+2,FALSE)","v":0},{"$f":"HLOOKUP(AH$7,$K$68:$DL$122,ROWS($B$12:$B40)+2,FALSE)","v":683},{"$f":"HLOOKUP(AI$7,$K$68:$DL$122,ROWS($B$12:$B40)+2,FALSE)","v":1455},{"$f":"HLOOKUP(AJ$7,$K$68:$DL$122,ROWS($B$12:$B40)+2,FALSE)","v":424},{"$f":"HLOOKUP(AK$7,$K$68:$DL$122,ROWS($B$12:$B40)+2,FALSE)","v":1848},{"$f":"HLOOKUP(AL$7,$K$68:$DL$122,ROWS($B$12:$B40)+2,FALSE)","v":64},{"$f":"HLOOKUP(AM$7,$K$68:$DL$122,ROWS($B$12:$B40)+2,FALSE)","v":"N/A"},{"$f":"HLOOKUP(AN$7,$K$68:$DL$122,ROWS($B$12:$B40)+2,FALSE)","v":240},{"$f":"HLOOKUP(AO$7,$K$68:$DL$122,ROWS($B$12:$B40)+2,FALSE)","v":0},{"$f":"HLOOKUP(AP$7,$K$68:$DL$122,ROWS($B$12:$B40)+2,FALSE)","v":119},{"$f":"HLOOKUP(AQ$7,$K$68:$DL$122,ROWS($B$12:$B40)+2,FALSE)","v":242},{"$f":"HLOOKUP(AR$7,$K$68:$DL$122,ROWS($B$12:$B40)+2,FALSE)","v":544},{"$f":"HLOOKUP(AS$7,$K$68:$DL$122,ROWS($B$12:$B40)+2,FALSE)","v":829},{"$f":"HLOOKUP(AT$7,$K$68:$DL$122,ROWS($B$12:$B40)+2,FALSE)","v":292},{"$f":"HLOOKUP(AU$7,$K$68:$DL$122,ROWS($B$12:$B40)+2,FALSE)","v":268},{"$f":"HLOOKUP(AV$7,$K$68:$DL$122,ROWS($B$12:$B40)+2,FALSE)","v":1255},{"$f":"HLOOKUP(AW$7,$K$68:$DL$122,ROWS($B$12:$B40)+2,FALSE)","v":1556},{"$f":"HLOOKUP(AX$7,$K$68:$DL$122,ROWS($B$12:$B40)+2,FALSE)","v":252},{"$f":"HLOOKUP(AY$7,$K$68:$DL$122,ROWS($B$12:$B40)+2,FALSE)","v":0},{"$f":"HLOOKUP(AZ$7,$K$68:$DL$122,ROWS($B$12:$B40)+2,FALSE)","v":243},{"$f":"HLOOKUP(BA$7,$K$68:$DL$122,ROWS($B$12:$B40)+2,FALSE)","v":2999},{"$f":"HLOOKUP(BB$7,$K$68:$DL$122,ROWS($B$12:$B40)+2,FALSE)","v":226},{"$f":"HLOOKUP(BC$7,$K$68:$DL$122,ROWS($B$12:$B40)+2,FALSE)","v":5343},{"$f":"HLOOKUP(BD$7,$K$68:$DL$122,ROWS($B$12:$B40)+2,FALSE)","v":734},{"$f":"HLOOKUP(BE$7,$K$68:$DL$122,ROWS($B$12:$B40)+2,FALSE)","v":0},{"$f":"HLOOKUP(BF$7,$K$68:$DL$122,ROWS($B$12:$B40)+2,FALSE)","v":615},{"$f":"HLOOKUP(BG$7,$K$68:$DL$122,ROWS($B$12:$B40)+2,FALSE)","v":835},{"$f":"HLOOKUP(BH$7,$K$68:$DL$122,ROWS($B$12:$B40)+2,FALSE)","v":24},{"$f":"HLOOKUP(BI$7,$K$68:$DL$122,ROWS($B$12:$B40)+2,FALSE)","v":560},{"$f":"HLOOKUP(BJ$7,$K$68:$DL$122,ROWS($B$12:$B40)+2,FALSE)","v":965},{"$f":"HLOOKUP(BK$7,$K$68:$DL$122,ROWS($B$12:$B40)+2,FALSE)","v":0},{"$f":"HLOOKUP(BL$7+0.5,$K$68:$DL$122,ROWS($B$12:$B40)+2,FALSE)","v":5507},{"$f":"HLOOKUP(BM$7+0.5,$K$68:$DL$122,ROWS($B$12:$B40)+2,FALSE)","v":271},{"$f":"HLOOKUP(BN$7+0.5,$K$68:$DL$122,ROWS($B$12:$B40)+2,FALSE)","v":785},{"$f":"HLOOKUP(BO$7+0.5,$K$68:$DL$122,ROWS($B$12:$B40)+2,FALSE)","v":898},{"$f":"HLOOKUP(BP$7+0.5,$K$68:$DL$122,ROWS($B$12:$B40)+2,FALSE)","v":146},{"$f":"HLOOKUP(BQ$7+0.5,$K$68:$DL$122,ROWS($B$12:$B40)+2,FALSE)","v":1727},{"$f":"HLOOKUP(BR$7+0.5,$K$68:$DL$122,ROWS($B$12:$B40)+2,FALSE)","v":962},{"$f":"HLOOKUP(BS$7+0.5,$K$68:$DL$122,ROWS($B$12:$B40)+2,FALSE)","v":372},{"$f":"HLOOKUP(BT$7+0.5,$K$68:$DL$122,ROWS($B$12:$B40)+2,FALSE)","v":155},{"$f":"HLOOKUP(BU$7+0.5,$K$68:$DL$122,ROWS($B$12:$B40)+2,FALSE)","v":48},{"$f":"HLOOKUP(BV$7+0.5,$K$68:$DL$122,ROWS($B$12:$B40)+2,FALSE)","v":499},{"$f":"HLOOKUP(BW$7+0.5,$K$68:$DL$122,ROWS($B$12:$B40)+2,FALSE)","v":358},{"$f":"HLOOKUP(BX$7+0.5,$K$68:$DL$122,ROWS($B$12:$B40)+2,FALSE)","v":215},{"$f":"HLOOKUP(BY$7+0.5,$K$68:$DL$122,ROWS($B$12:$B40)+2,FALSE)","v":464},{"$f":"HLOOKUP(BZ$7+0.5,$K$68:$DL$122,ROWS($B$12:$B40)+2,FALSE)","v":777},{"$f":"HLOOKUP(CA$7+0.5,$K$68:$DL$122,ROWS($B$12:$B40)+2,FALSE)","v":541},{"$f":"HLOOKUP(CB$7+0.5,$K$68:$DL$122,ROWS($B$12:$B40)+2,FALSE)","v":2602},{"$f":"HLOOKUP(CC$7+0.5,$K$68:$DL$122,ROWS($B$12:$B40)+2,FALSE)","v":1210},{"$f":"HLOOKUP(CD$7+0.5,$K$68:$DL$122,ROWS($B$12:$B40)+2,FALSE)","v":457},{"$f":"HLOOKUP(CE$7+0.5,$K$68:$DL$122,ROWS($B$12:$B40)+2,FALSE)","v":253},{"$f":"HLOOKUP(CF$7+0.5,$K$68:$DL$122,ROWS($B$12:$B40)+2,FALSE)","v":127},{"$f":"HLOOKUP(CG$7+0.5,$K$68:$DL$122,ROWS($B$12:$B40)+2,FALSE)","v":344},{"$f":"HLOOKUP(CH$7+0.5,$K$68:$DL$122,ROWS($B$12:$B40)+2,FALSE)","v":155},{"$f":"HLOOKUP(CI$7+0.5,$K$68:$DL$122,ROWS($B$12:$B40)+2,FALSE)","v":435},{"$f":"HLOOKUP(CJ$7+0.5,$K$68:$DL$122,ROWS($B$12:$B40)+2,FALSE)","v":1009},{"$f":"HLOOKUP(CK$7+0.5,$K$68:$DL$122,ROWS($B$12:$B40)+2,FALSE)","v":430},{"$f":"HLOOKUP(CL$7+0.5,$K$68:$DL$122,ROWS($B$12:$B40)+2,FALSE)","v":771},{"$f":"HLOOKUP(CM$7+0.5,$K$68:$DL$122,ROWS($B$12:$B40)+2,FALSE)","v":88},{"$f":"HLOOKUP(CN$7+0.5,$K$68:$DL$122,ROWS($B$12:$B40)+2,FALSE)","v":"N/A"},{"$f":"HLOOKUP(CO$7+0.5,$K$68:$DL$122,ROWS($B$12:$B40)+2,FALSE)","v":165},{"$f":"HLOOKUP(CP$7+0.5,$K$68:$DL$122,ROWS($B$12:$B40)+2,FALSE)","v":155},{"$f":"HLOOKUP(CQ$7+0.5,$K$68:$DL$122,ROWS($B$12:$B40)+2,FALSE)","v":101},{"$f":"HLOOKUP(CR$7+0.5,$K$68:$DL$122,ROWS($B$12:$B40)+2,FALSE)","v":326},{"$f":"HLOOKUP(CS$7+0.5,$K$68:$DL$122,ROWS($B$12:$B40)+2,FALSE)","v":349},{"$f":"HLOOKUP(CT$7+0.5,$K$68:$DL$122,ROWS($B$12:$B40)+2,FALSE)","v":872},{"$f":"HLOOKUP(CU$7+0.5,$K$68:$DL$122,ROWS($B$12:$B40)+2,FALSE)","v":213},{"$f":"HLOOKUP(CV$7+0.5,$K$68:$DL$122,ROWS($B$12:$B40)+2,FALSE)","v":250},{"$f":"HLOOKUP(CW$7+0.5,$K$68:$DL$122,ROWS($B$12:$B40)+2,FALSE)","v":884},{"$f":"HLOOKUP(CX$7+0.5,$K$68:$DL$122,ROWS($B$12:$B40)+2,FALSE)","v":1249},{"$f":"HLOOKUP(CY$7+0.5,$K$68:$DL$122,ROWS($B$12:$B40)+2,FALSE)","v":179},{"$f":"HLOOKUP(CZ$7+0.5,$K$68:$DL$122,ROWS($B$12:$B40)+2,FALSE)","v":155},{"$f":"HLOOKUP(DA$7+0.5,$K$68:$DL$122,ROWS($B$12:$B40)+2,FALSE)","v":285},{"$f":"HLOOKUP(DB$7+0.5,$K$68:$DL$122,ROWS($B$12:$B40)+2,FALSE)","v":1280},{"$f":"HLOOKUP(DC$7+0.5,$K$68:$DL$122,ROWS($B$12:$B40)+2,FALSE)","v":244},{"$f":"HLOOKUP(DD$7+0.5,$K$68:$DL$122,ROWS($B$12:$B40)+2,FALSE)","v":2737},{"$f":"HLOOKUP(DE$7+0.5,$K$68:$DL$122,ROWS($B$12:$B40)+2,FALSE)","v":507},{"$f":"HLOOKUP(DF$7+0.5,$K$68:$DL$122,ROWS($B$12:$B40)+2,FALSE)","v":155},{"$f":"HLOOKUP(DG$7+0.5,$K$68:$DL$122,ROWS($B$12:$B40)+2,FALSE)","v":478},{"$f":"HLOOKUP(DH$7+0.5,$K$68:$DL$122,ROWS($B$12:$B40)+2,FALSE)","v":593},{"$f":"HLOOKUP(DI$7+0.5,$K$68:$DL$122,ROWS($B$12:$B40)+2,FALSE)","v":40},{"$f":"HLOOKUP(DJ$7+0.5,$K$68:$DL$122,ROWS($B$12:$B40)+2,FALSE)","v":427},{"$f":"HLOOKUP(DK$7+0.5,$K$68:$DL$122,ROWS($B$12:$B40)+2,FALSE)","v":421},{"$f":"HLOOKUP(DL$7+0.5,$K$68:$DL$122,ROWS($B$12:$B40)+2,FALSE)","v":155}]
[null,null,"Nevada",2688336,3578,2084668,23272,480317,23514,1.5791960862212871E-2,{"$f":"HLOOKUP(K$7,$K$68:$DL$122,ROWS($B$12:$B41)+2,FALSE)","v":110345},{"$f":"HLOOKUP(L$7,$K$68:$DL$122,ROWS($B$12:$B41)+2,FALSE)","v":280},{"$f":"HLOOKUP(M$7,$K$68:$DL$122,ROWS($B$12:$B41)+2,FALSE)","v":597},{"$f":"HLOOKUP(N$7,$K$68:$DL$122,ROWS($B$12:$B41)+2,FALSE)","v":10142},{"$f":"HLOOKUP(O$7,$K$68:$DL$122,ROWS($B$12:$B41)+2,FALSE)","v":310},{"$f":"HLOOKUP(P$7,$K$68:$DL$122,ROWS($B$12:$B41)+2,FALSE)","v":40114},{"$f":"HLOOKUP(Q$7,$K$68:$DL$122,ROWS($B$12:$B41)+2,FALSE)","v":2714},{"$f":"HLOOKUP(R$7,$K$68:$DL$122,ROWS($B$12:$B41)+2,FALSE)","v":189},{"$f":"HLOOKUP(S$7,$K$68:$DL$122,ROWS($B$12:$B41)+2,FALSE)","v":184},{"$f":"HLOOKUP(T$7,$K$68:$DL$122,ROWS($B$12:$B41)+2,FALSE)","v":983},{"$f":"HLOOKUP(U$7,$K$68:$DL$122,ROWS($B$12:$B41)+2,FALSE)","v":2923},{"$f":"HLOOKUP(V$7,$K$68:$DL$122,ROWS($B$12:$B41)+2,FALSE)","v":1731},{"$f":"HLOOKUP(W$7,$K$68:$DL$122,ROWS($B$12:$B41)+2,FALSE)","v":4093},{"$f":"HLOOKUP(X$7,$K$68:$DL$122,ROWS($B$12:$B41)+2,FALSE)","v":3929},{"$f":"HLOOKUP(Y$7,$K$68:$DL$122,ROWS($B$12:$B41)+2,FALSE)","v":1668},{"$f":"HLOOKUP(Z$7,$K$68:$DL$122,ROWS($B$12:$B41)+2,FALSE)","v":855},{"$f":"HLOOKUP(AA$7,$K$68:$DL$122,ROWS($B$12:$B41)+2,FALSE)","v":114},{"$f":"HLOOKUP(AB$7,$K$68:$DL$122,ROWS($B$12:$B41)+2,FALSE)","v":602},{"$f":"HLOOKUP(AC$7,$K$68:$DL$122,ROWS($B$12:$B41)+2,FALSE)","v":628},{"$f":"HLOOKUP(AD$7,$K$68:$DL$122,ROWS($B$12:$B41)+2,FALSE)","v":78},{"$f":"HLOOKUP(AE$7,$K$68:$DL$122,ROWS($B$12:$B41)+2,FALSE)","v":49},{"$f":"HLOOKUP(AF$7,$K$68:$DL$122,ROWS($B$12:$B41)+2,FALSE)","v":931},{"$f":"HLOOKUP(AG$7,$K$68:$DL$122,ROWS($B$12:$B41)+2,FALSE)","v":256},{"$f":"HLOOKUP(AH$7,$K$68:$DL$122,ROWS($B$12:$B41)+2,FALSE)","v":1663},{"$f":"HLOOKUP(AI$7,$K$68:$DL$122,ROWS($B$12:$B41)+2,FALSE)","v":1055},{"$f":"HLOOKUP(AJ$7,$K$68:$DL$122,ROWS($B$12:$B41)+2,FALSE)","v":203},{"$f":"HLOOKUP(AK$7,$K$68:$DL$122,ROWS($B$12:$B41)+2,FALSE)","v":335},{"$f":"HLOOKUP(AL$7,$K$68:$DL$122,ROWS($B$12:$B41)+2,FALSE)","v":1137},{"$f":"HLOOKUP(AM$7,$K$68:$DL$122,ROWS($B$12:$B41)+2,FALSE)","v":32},{"$f":"HLOOKUP(AN$7,$K$68:$DL$122,ROWS($B$12:$B41)+2,FALSE)","v":"N/A"},{"$f":"HLOOKUP(AO$7,$K$68:$DL$122,ROWS($B$12:$B41)+2,FALSE)","v":0},{"$f":"HLOOKUP(AP$7,$K$68:$DL$122,ROWS($B$12:$B41)+2,FALSE)","v":2118},{"$f":"HLOOKUP(AQ$7,$K$68:$DL$122,ROWS($B$12:$B41)+2,FALSE)","v":2136},{"$f":"HLOOKUP(AR$7,$K$68:$DL$122,ROWS($B$12:$B41)+2,FALSE)","v":1516},{"$f":"HLOOKUP(AS$7,$K$68:$DL$122,ROWS($B$12:$B41)+2,FALSE)","v":1333},{"$f":"HLOOKUP(AT$7,$K$68:$DL$122,ROWS($B$12:$B41)+2,FALSE)","v":0},{"$f":"HLOOKUP(AU$7,$K$68:$DL$122,ROWS($B$12:$B41)+2,FALSE)","v":1354},{"$f":"HLOOKUP(AV$7,$K$68:$DL$122,ROWS($B$12:$B41)+2,FALSE)","v":258},{"$f":"HLOOKUP(AW$7,$K$68:$DL$122,ROWS($B$12:$B41)+2,FALSE)","v":1691},{"$f":"HLOOKUP(AX$7,$K$68:$DL$122,ROWS($B$12:$B41)+2,FALSE)","v":570},{"$f":"HLOOKUP(AY$7,$K$68:$DL$122,ROWS($B$12:$B41)+2,FALSE)","v":86},{"$f":"HLOOKUP(AZ$7,$K$68:$DL$122,ROWS($B$12:$B41)+2,FALSE)","v":165},{"$f":"HLOOKUP(BA$7,$K$68:$DL$122,ROWS($B$12:$B41)+2,FALSE)","v":588},{"$f":"HLOOKUP(BB$7,$K$68:$DL$122,ROWS($B$12:$B41)+2,FALSE)","v":96},{"$f":"HLOOKUP(BC$7,$K$68:$DL$122,ROWS($B$12:$B41)+2,FALSE)","v":7249},{"$f":"HLOOKUP(BD$7,$K$68:$DL$122,ROWS($B$12:$B41)+2,FALSE)","v":3365},{"$f":"HLOOKUP(BE$7,$K$68:$DL$122,ROWS($B$12:$B41)+2,FALSE)","v":0},{"$f":"HLOOKUP(BF$7,$K$68:$DL$122,ROWS($B$12:$B41)+2,FALSE)","v":1740},{"$f":"HLOOKUP(BG$7,$K$68:$DL$122,ROWS($B$12:$B41)+2,FALSE)","v":4680},{"$f":"HLOOKUP(BH$7,$K$68:$DL$122,ROWS($B$12:$B41)+2,FALSE)","v":0},{"$f":"HLOOKUP(BI$7,$K$68:$DL$122,ROWS($B$12:$B41)+2,FALSE)","v":2672},{"$f":"HLOOKUP(BJ$7,$K$68:$DL$122,ROWS($B$12:$B41)+2,FALSE)","v":933},{"$f":"HLOOKUP(BK$7,$K$68:$DL$122,ROWS($B$12:$B41)+2,FALSE)","v":153},{"$f":"HLOOKUP(BL$7+0.5,$K$68:$DL$122,ROWS($B$12:$B41)+2,FALSE)","v":9419},{"$f":"HLOOKUP(BM$7+0.5,$K$68:$DL$122,ROWS($B$12:$B41)+2,FALSE)","v":330},{"$f":"HLOOKUP(BN$7+0.5,$K$68:$DL$122,ROWS($B$12:$B41)+2,FALSE)","v":525},{"$f":"HLOOKUP(BO$7+0.5,$K$68:$DL$122,ROWS($B$12:$B41)+2,FALSE)","v":4338},{"$f":"HLOOKUP(BP$7+0.5,$K$68:$DL$122,ROWS($B$12:$B41)+2,FALSE)","v":358},{"$f":"HLOOKUP(BQ$7+0.5,$K$68:$DL$122,ROWS($B$12:$B41)+2,FALSE)","v":5354},{"$f":"HLOOKUP(BR$7+0.5,$K$68:$DL$122,ROWS($B$12:$B41)+2,FALSE)","v":1470},{"$f":"HLOOKUP(BS$7+0.5,$K$68:$DL$122,ROWS($B$12:$B41)+2,FALSE)","v":163},{"$f":"HLOOKUP(BT$7+0.5,$K$68:$DL$122,ROWS($B$12:$B41)+2,FALSE)","v":226},{"$f":"HLOOKUP(BU$7+0.5,$K$68:$DL$122,ROWS($B$12:$B41)+2,FALSE)","v":1261},{"$f":"HLOOKUP(BV$7+0.5,$K$68:$DL$122,ROWS($B$12:$B41)+2,FALSE)","v":1608},{"$f":"HLOOKUP(BW$7+0.5,$K$68:$DL$122,ROWS($B$12:$B41)+2,FALSE)","v":909},{"$f":"HLOOKUP(BX$7+0.5,$K$68:$DL$122,ROWS($B$12:$B41)+2,FALSE)","v":2643},{"$f":"HLOOKUP(BY$7+0.5,$K$68:$DL$122,ROWS($B$12:$B41)+2,FALSE)","v":1734},{"$f":"HLOOKUP(BZ$7+0.5,$K$68:$DL$122,ROWS($B$12:$B41)+2,FALSE)","v":1031},{"$f":"HLOOKUP(CA$7+0.5,$K$68:$DL$122,ROWS($B$12:$B41)+2,FALSE)","v":781},{"$f":"HLOOKUP(CB$7+0.5,$K$68:$DL$122,ROWS($B$12:$B41)+2,FALSE)","v":188},{"$f":"HLOOKUP(CC$7+0.5,$K$68:$DL$122,ROWS($B$12:$B41)+2,FALSE)","v":734},{"$f":"HLOOKUP(CD$7+0.5,$K$68:$DL$122,ROWS($B$12:$B41)+2,FALSE)","v":620},{"$f":"HLOOKUP(CE$7+0.5,$K$68:$DL$122,ROWS($B$12:$B41)+2,FALSE)","v":128},{"$f":"HLOOKUP(CF$7+0.5,$K$68:$DL$122,ROWS($B$12:$B41)+2,FALSE)","v":80},{"$f":"HLOOKUP(CG$7+0.5,$K$68:$DL$122,ROWS($B$12:$B41)+2,FALSE)","v":701},{"$f":"HLOOKUP(CH$7+0.5,$K$68:$DL$122,ROWS($B$12:$B41)+2,FALSE)","v":255},{"$f":"HLOOKUP(CI$7+0.5,$K$68:$DL$122,ROWS($B$12:$B41)+2,FALSE)","v":831},{"$f":"HLOOKUP(CJ$7+0.5,$K$68:$DL$122,ROWS($B$12:$B41)+2,FALSE)","v":1329},{"$f":"HLOOKUP(CK$7+0.5,$K$68:$DL$122,ROWS($B$12:$B41)+2,FALSE)","v":279},{"$f":"HLOOKUP(CL$7+0.5,$K$68:$DL$122,ROWS($B$12:$B41)+2,FALSE)","v":237},{"$f":"HLOOKUP(CM$7+0.5,$K$68:$DL$122,ROWS($B$12:$B41)+2,FALSE)","v":740},{"$f":"HLOOKUP(CN$7+0.5,$K$68:$DL$122,ROWS($B$12:$B41)+2,FALSE)","v":37},{"$f":"HLOOKUP(CO$7+0.5,$K$68:$DL$122,ROWS($B$12:$B41)+2,FALSE)","v":"N/A"},{"$f":"HLOOKUP(CP$7+0.5,$K$68:$DL$122,ROWS($B$12:$B41)+2,FALSE)","v":234},{"$f":"HLOOKUP(CQ$7+0.5,$K$68:$DL$122,ROWS($B$12:$B41)+2,FALSE)","v":1709},{"$f":"HLOOKUP(CR$7+0.5,$K$68:$DL$122,ROWS($B$12:$B41)+2,FALSE)","v":1429},{"$f":"HLOOKUP(CS$7+0.5,$K$68:$DL$122,ROWS($B$12:$B41)+2,FALSE)","v":819},{"$f":"HLOOKUP(CT$7+0.5,$K$68:$DL$122,ROWS($B$12:$B41)+2,FALSE)","v":895},{"$f":"HLOOKUP(CU$7+0.5,$K$68:$DL$122,ROWS($B$12:$B41)+2,FALSE)","v":234},{"$f":"HLOOKUP(CV$7+0.5,$K$68:$DL$122,ROWS($B$12:$B41)+2,FALSE)","v":894},{"$f":"HLOOKUP(CW$7+0.5,$K$68:$DL$122,ROWS($B$12:$B41)+2,FALSE)","v":254},{"$f":"HLOOKUP(CX$7+0.5,$K$68:$DL$122,ROWS($B$12:$B41)+2,FALSE)","v":695},{"$f":"HLOOKUP(CY$7+0.5,$K$68:$DL$122,ROWS($B$12:$B41)+2,FALSE)","v":581},{"$f":"HLOOKUP(CZ$7+0.5,$K$68:$DL$122,ROWS($B$12:$B41)+2,FALSE)","v":148},{"$f":"HLOOKUP(DA$7+0.5,$K$68:$DL$122,ROWS($B$12:$B41)+2,FALSE)","v":273},{"$f":"HLOOKUP(DB$7+0.5,$K$68:$DL$122,ROWS($B$12:$B41)+2,FALSE)","v":557},{"$f":"HLOOKUP(DC$7+0.5,$K$68:$DL$122,ROWS($B$12:$B41)+2,FALSE)","v":150},{"$f":"HLOOKUP(DD$7+0.5,$K$68:$DL$122,ROWS($B$12:$B41)+2,FALSE)","v":3923},{"$f":"HLOOKUP(DE$7+0.5,$K$68:$DL$122,ROWS($B$12:$B41)+2,FALSE)","v":2105},{"$f":"HLOOKUP(DF$7+0.5,$K$68:$DL$122,ROWS($B$12:$B41)+2,FALSE)","v":234},{"$f":"HLOOKUP(DG$7+0.5,$K$68:$DL$122,ROWS($B$12:$B41)+2,FALSE)","v":1369},{"$f":"HLOOKUP(DH$7+0.5,$K$68:$DL$122,ROWS($B$12:$B41)+2,FALSE)","v":1646},{"$f":"HLOOKUP(DI$7+0.5,$K$68:$DL$122,ROWS($B$12:$B41)+2,FALSE)","v":234},{"$f":"HLOOKUP(DJ$7+0.5,$K$68:$DL$122,ROWS($B$12:$B41)+2,FALSE)","v":2369},{"$f":"HLOOKUP(DK$7+0.5,$K$68:$DL$122,ROWS($B$12:$B41)+2,FALSE)","v":702},{"$f":"HLOOKUP(DL$7+0.5,$K$68:$DL$122,ROWS($B$12:$B41)+2,FALSE)","v":258}]
[null,null,"New Hampshire",1305678,2046,1141236,9064,122129,8186,5.2952336028082485E-3,{"$f":"HLOOKUP(K$7,$K$68:$DL$122,ROWS($B$12:$B42)+2,FALSE)","v":37000},{"$f":"HLOOKUP(L$7,$K$68:$DL$122,ROWS($B$12:$B42)+2,FALSE)","v":193},{"$f":"HLOOKUP(M$7,$K$68:$DL$122,ROWS($B$12:$B42)+2,FALSE)","v":0},{"$f":"HLOOKUP(N$7,$K$68:$DL$122,ROWS($B$12:$B42)+2,FALSE)","v":246},{"$f":"HLOOKUP(O$7,$K$68:$DL$122,ROWS($B$12:$B42)+2,FALSE)","v":22},{"$f":"HLOOKUP(P$7,$K$68:$DL$122,ROWS($B$12:$B42)+2,FALSE)","v":547},{"$f":"HLOOKUP(Q$7,$K$68:$DL$122,ROWS($B$12:$B42)+2,FALSE)","v":403},{"$f":"HLOOKUP(R$7,$K$68:$DL$122,ROWS($B$12:$B42)+2,FALSE)","v":1617},{"$f":"HLOOKUP(S$7,$K$68:$DL$122,ROWS($B$12:$B42)+2,FALSE)","v":20},{"$f":"HLOOKUP(T$7,$K$68:$DL$122,ROWS($B$12:$B42)+2,FALSE)","v":68},{"$f":"HLOOKUP(U$7,$K$68:$DL$122,ROWS($B$12:$B42)+2,FALSE)","v":1970},{"$f":"HLOOKUP(V$7,$K$68:$DL$122,ROWS($B$12:$B42)+2,FALSE)","v":535},{"$f":"HLOOKUP(W$7,$K$68:$DL$122,ROWS($B$12:$B42)+2,FALSE)","v":0},{"$f":"HLOOKUP(X$7,$K$68:$DL$122,ROWS($B$12:$B42)+2,FALSE)","v":0},{"$f":"HLOOKUP(Y$7,$K$68:$DL$122,ROWS($B$12:$B42)+2,FALSE)","v":478},{"$f":"HLOOKUP(Z$7,$K$68:$DL$122,ROWS($B$12:$B42)+2,FALSE)","v":470},{"$f":"HLOOKUP(AA$7,$K$68:$DL$122,ROWS($B$12:$B42)+2,FALSE)","v":47},{"$f":"HLOOKUP(AB$7,$K$68:$DL$122,ROWS($B$12:$B42)+2,FALSE)","v":0},{"$f":"HLOOKUP(AC$7,$K$68:$DL$122,ROWS($B$12:$B42)+2,FALSE)","v":0},{"$f":"HLOOKUP(AD$7,$K$68:$DL$122,ROWS($B$12:$B42)+2,FALSE)","v":0},{"$f":"HLOOKUP(AE$7,$K$68:$DL$122,ROWS($B$12:$B42)+2,FALSE)","v":3080},{"$f":"HLOOKUP(AF$7,$K$68:$DL$122,ROWS($B$12:$B42)+2,FALSE)","v":222},{"$f":"HLOOKUP(AG$7,$K$68:$DL$122,ROWS($B$12:$B42)+2,FALSE)","v":15526},{"$f":"HLOOKUP(AH$7,$K$68:$DL$122,ROWS($B$12:$B42)+2,FALSE)","v":155},{"$f":"HLOOKUP(AI$7,$K$68:$DL$122,ROWS($B$12:$B42)+2,FALSE)","v":104},{"$f":"HLOOKUP(AJ$7,$K$68:$DL$122,ROWS($B$12:$B42)+2,FALSE)","v":160},{"$f":"HLOOKUP(AK$7,$K$68:$DL$122,ROWS($B$12:$B42)+2,FALSE)","v":153},{"$f":"HLOOKUP(AL$7,$K$68:$DL$122,ROWS($B$12:$B42)+2,FALSE)","v":230},{"$f":"HLOOKUP(AM$7,$K$68:$DL$122,ROWS($B$12:$B42)+2,FALSE)","v":33},{"$f":"HLOOKUP(AN$7,$K$68:$DL$122,ROWS($B$12:$B42)+2,FALSE)","v":186},{"$f":"HLOOKUP(AO$7,$K$68:$DL$122,ROWS($B$12:$B42)+2,FALSE)","v":"N/A"},{"$f":"HLOOKUP(AP$7,$K$68:$DL$122,ROWS($B$12:$B42)+2,FALSE)","v":294},{"$f":"HLOOKUP(AQ$7,$K$68:$DL$122,ROWS($B$12:$B42)+2,FALSE)","v":186},{"$f":"HLOOKUP(AR$7,$K$68:$DL$122,ROWS($B$12:$B42)+2,FALSE)","v":1471},{"$f":"HLOOKUP(AS$7,$K$68:$DL$122,ROWS($B$12:$B42)+2,FALSE)","v":1297},{"$f":"HLOOKUP(AT$7,$K$68:$DL$122,ROWS($B$12:$B42)+2,FALSE)","v":47},{"$f":"HLOOKUP(AU$7,$K$68:$DL$122,ROWS($B$12:$B42)+2,FALSE)","v":248},{"$f":"HLOOKUP(AV$7,$K$68:$DL$122,ROWS($B$12:$B42)+2,FALSE)","v":0},{"$f":"HLOOKUP(AW$7,$K$68:$DL$122,ROWS($B$12:$B42)+2,FALSE)","v":198},{"$f":"HLOOKUP(AX$7,$K$68:$DL$122,ROWS($B$12:$B42)+2,FALSE)","v":1015},{"$f":"HLOOKUP(AY$7,$K$68:$DL$122,ROWS($B$12:$B42)+2,FALSE)","v":608},{"$f":"HLOOKUP(AZ$7,$K$68:$DL$122,ROWS($B$12:$B42)+2,FALSE)","v":588},{"$f":"HLOOKUP(BA$7,$K$68:$DL$122,ROWS($B$12:$B42)+2,FALSE)","v":86},{"$f":"HLOOKUP(BB$7,$K$68:$DL$122,ROWS($B$12:$B42)+2,FALSE)","v":126},{"$f":"HLOOKUP(BC$7,$K$68:$DL$122,ROWS($B$12:$B42)+2,FALSE)","v":605},{"$f":"HLOOKUP(BD$7,$K$68:$DL$122,ROWS($B$12:$B42)+2,FALSE)","v":158},{"$f":"HLOOKUP(BE$7,$K$68:$DL$122,ROWS($B$12:$B42)+2,FALSE)","v":2138},{"$f":"HLOOKUP(BF$7,$K$68:$DL$122,ROWS($B$12:$B42)+2,FALSE)","v":880},{"$f":"HLOOKUP(BG$7,$K$68:$DL$122,ROWS($B$12:$B42)+2,FALSE)","v":428},{"$f":"HLOOKUP(BH$7,$K$68:$DL$122,ROWS($B$12:$B42)+2,FALSE)","v":0},{"$f":"HLOOKUP(BI$7,$K$68:$DL$122,ROWS($B$12:$B42)+2,FALSE)","v":0},{"$f":"HLOOKUP(BJ$7,$K$68:$DL$122,ROWS($B$12:$B42)+2,FALSE)","v":162},{"$f":"HLOOKUP(BK$7,$K$68:$DL$122,ROWS($B$12:$B42)+2,FALSE)","v":0},{"$f":"HLOOKUP(BL$7+0.5,$K$68:$DL$122,ROWS($B$12:$B42)+2,FALSE)","v":3717},{"$f":"HLOOKUP(BM$7+0.5,$K$68:$DL$122,ROWS($B$12:$B42)+2,FALSE)","v":237},{"$f":"HLOOKUP(BN$7+0.5,$K$68:$DL$122,ROWS($B$12:$B42)+2,FALSE)","v":184},{"$f":"HLOOKUP(BO$7+0.5,$K$68:$DL$122,ROWS($B$12:$B42)+2,FALSE)","v":210},{"$f":"HLOOKUP(BP$7+0.5,$K$68:$DL$122,ROWS($B$12:$B42)+2,FALSE)","v":37},{"$f":"HLOOKUP(BQ$7+0.5,$K$68:$DL$122,ROWS($B$12:$B42)+2,FALSE)","v":334},{"$f":"HLOOKUP(BR$7+0.5,$K$68:$DL$122,ROWS($B$12:$B42)+2,FALSE)","v":313},{"$f":"HLOOKUP(BS$7+0.5,$K$68:$DL$122,ROWS($B$12:$B42)+2,FALSE)","v":519},{"$f":"HLOOKUP(BT$7+0.5,$K$68:$DL$122,ROWS($B$12:$B42)+2,FALSE)","v":32},{"$f":"HLOOKUP(BU$7+0.5,$K$68:$DL$122,ROWS($B$12:$B42)+2,FALSE)","v":112},{"$f":"HLOOKUP(BV$7+0.5,$K$68:$DL$122,ROWS($B$12:$B42)+2,FALSE)","v":813},{"$f":"HLOOKUP(BW$7+0.5,$K$68:$DL$122,ROWS($B$12:$B42)+2,FALSE)","v":449},{"$f":"HLOOKUP(BX$7+0.5,$K$68:$DL$122,ROWS($B$12:$B42)+2,FALSE)","v":184},{"$f":"HLOOKUP(BY$7+0.5,$K$68:$DL$122,ROWS($B$12:$B42)+2,FALSE)","v":184},{"$f":"HLOOKUP(BZ$7+0.5,$K$68:$DL$122,ROWS($B$12:$B42)+2,FALSE)","v":402},{"$f":"HLOOKUP(CA$7+0.5,$K$68:$DL$122,ROWS($B$12:$B42)+2,FALSE)","v":394},{"$f":"HLOOKUP(CB$7+0.5,$K$68:$DL$122,ROWS($B$12:$B42)+2,FALSE)","v":78},{"$f":"HLOOKUP(CC$7+0.5,$K$68:$DL$122,ROWS($B$12:$B42)+2,FALSE)","v":184},{"$f":"HLOOKUP(CD$7+0.5,$K$68:$DL$122,ROWS($B$12:$B42)+2,FALSE)","v":184},{"$f":"HLOOKUP(CE$7+0.5,$K$68:$DL$122,ROWS($B$12:$B42)+2,FALSE)","v":184},{"$f":"HLOOKUP(CF$7+0.5,$K$68:$DL$122,ROWS($B$12:$B42)+2,FALSE)","v":1064},{"$f":"HLOOKUP(CG$7+0.5,$K$68:$DL$122,ROWS($B$12:$B42)+2,FALSE)","v":177},{"$f":"HLOOKUP(CH$7+0.5,$K$68:$DL$122,ROWS($B$12:$B42)+2,FALSE)","v":2811},{"$f":"HLOOKUP(CI$7+0.5,$K$68:$DL$122,ROWS($B$12:$B42)+2,FALSE)","v":165},{"$f":"HLOOKUP(CJ$7+0.5,$K$68:$DL$122,ROWS($B$12:$B42)+2,FALSE)","v":145},{"$f":"HLOOKUP(CK$7+0.5,$K$68:$DL$122,ROWS($B$12:$B42)+2,FALSE)","v":258},{"$f":"HLOOKUP(CL$7+0.5,$K$68:$DL$122,ROWS($B$12:$B42)+2,FALSE)","v":181},{"$f":"HLOOKUP(CM$7+0.5,$K$68:$DL$122,ROWS($B$12:$B42)+2,FALSE)","v":378},{"$f":"HLOOKUP(CN$7+0.5,$K$68:$DL$122,ROWS($B$12:$B42)+2,FALSE)","v":54},{"$f":"HLOOKUP(CO$7+0.5,$K$68:$DL$122,ROWS($B$12:$B42)+2,FALSE)","v":231},{"$f":"HLOOKUP(CP$7+0.5,$K$68:$DL$122,ROWS($B$12:$B42)+2,FALSE)","v":"N/A"},{"$f":"HLOOKUP(CQ$7+0.5,$K$68:$DL$122,ROWS($B$12:$B42)+2,FALSE)","v":247},{"$f":"HLOOKUP(CR$7+0.5,$K$68:$DL$122,ROWS($B$12:$B42)+2,FALSE)","v":179},{"$f":"HLOOKUP(CS$7+0.5,$K$68:$DL$122,ROWS($B$12:$B42)+2,FALSE)","v":510},{"$f":"HLOOKUP(CT$7+0.5,$K$68:$DL$122,ROWS($B$12:$B42)+2,FALSE)","v":649},{"$f":"HLOOKUP(CU$7+0.5,$K$68:$DL$122,ROWS($B$12:$B42)+2,FALSE)","v":79},{"$f":"HLOOKUP(CV$7+0.5,$K$68:$DL$122,ROWS($B$12:$B42)+2,FALSE)","v":223},{"$f":"HLOOKUP(CW$7+0.5,$K$68:$DL$122,ROWS($B$12:$B42)+2,FALSE)","v":184},{"$f":"HLOOKUP(CX$7+0.5,$K$68:$DL$122,ROWS($B$12:$B42)+2,FALSE)","v":267},{"$f":"HLOOKUP(CY$7+0.5,$K$68:$DL$122,ROWS($B$12:$B42)+2,FALSE)","v":569},{"$f":"HLOOKUP(CZ$7+0.5,$K$68:$DL$122,ROWS($B$12:$B42)+2,FALSE)","v":301},{"$f":"HLOOKUP(DA$7+0.5,$K$68:$DL$122,ROWS($B$12:$B42)+2,FALSE)","v":757},{"$f":"HLOOKUP(DB$7+0.5,$K$68:$DL$122,ROWS($B$12:$B42)+2,FALSE)","v":102},{"$f":"HLOOKUP(DC$7+0.5,$K$68:$DL$122,ROWS($B$12:$B42)+2,FALSE)","v":159},{"$f":"HLOOKUP(DD$7+0.5,$K$68:$DL$122,ROWS($B$12:$B42)+2,FALSE)","v":438},{"$f":"HLOOKUP(DE$7+0.5,$K$68:$DL$122,ROWS($B$12:$B42)+2,FALSE)","v":271},{"$f":"HLOOKUP(DF$7+0.5,$K$68:$DL$122,ROWS($B$12:$B42)+2,FALSE)","v":991},{"$f":"HLOOKUP(DG$7+0.5,$K$68:$DL$122,ROWS($B$12:$B42)+2,FALSE)","v":575},{"$f":"HLOOKUP(DH$7+0.5,$K$68:$DL$122,ROWS($B$12:$B42)+2,FALSE)","v":497},{"$f":"HLOOKUP(DI$7+0.5,$K$68:$DL$122,ROWS($B$12:$B42)+2,FALSE)","v":184},{"$f":"HLOOKUP(DJ$7+0.5,$K$68:$DL$122,ROWS($B$12:$B42)+2,FALSE)","v":184},{"$f":"HLOOKUP(DK$7+0.5,$K$68:$DL$122,ROWS($B$12:$B42)+2,FALSE)","v":218},{"$f":"HLOOKUP(DL$7+0.5,$K$68:$DL$122,ROWS($B$12:$B42)+2,FALSE)","v":184}]
[null,null,"New Jersey",8719952,4595,7825661,21158,693380,21063,2.0063783235462151E-2,{"$f":"HLOOKUP(K$7,$K$68:$DL$122,ROWS($B$12:$B43)+2,FALSE)","v":140194},{"$f":"HLOOKUP(L$7,$K$68:$DL$122,ROWS($B$12:$B43)+2,FALSE)","v":189},{"$f":"HLOOKUP(M$7,$K$68:$DL$122,ROWS($B$12:$B43)+2,FALSE)","v":1198},{"$f":"HLOOKUP(N$7,$K$68:$DL$122,ROWS($B$12:$B43)+2,FALSE)","v":3784},{"$f":"HLOOKUP(O$7,$K$68:$DL$122,ROWS($B$12:$B43)+2,FALSE)","v":57},{"$f":"HLOOKUP(P$7,$K$68:$DL$122,ROWS($B$12:$B43)+2,FALSE)","v":5986},{"$f":"HLOOKUP(Q$7,$K$68:$DL$122,ROWS($B$12:$B43)+2,FALSE)","v":2203},{"$f":"HLOOKUP(R$7,$K$68:$DL$122,ROWS($B$12:$B43)+2,FALSE)","v":1924},{"$f":"HLOOKUP(S$7,$K$68:$DL$122,ROWS($B$12:$B43)+2,FALSE)","v":2100},{"$f":"HLOOKUP(T$7,$K$68:$DL$122,ROWS($B$12:$B43)+2,FALSE)","v":781},{"$f":"HLOOKUP(U$7,$K$68:$DL$122,ROWS($B$12:$B43)+2,FALSE)","v":12907},{"$f":"HLOOKUP(V$7,$K$68:$DL$122,ROWS($B$12:$B43)+2,FALSE)","v":4268},{"$f":"HLOOKUP(W$7,$K$68:$DL$122,ROWS($B$12:$B43)+2,FALSE)","v":264},{"$f":"HLOOKUP(X$7,$K$68:$DL$122,ROWS($B$12:$B43)+2,FALSE)","v":256},{"$f":"HLOOKUP(Y$7,$K$68:$DL$122,ROWS($B$12:$B43)+2,FALSE)","v":3690},{"$f":"HLOOKUP(Z$7,$K$68:$DL$122,ROWS($B$12:$B43)+2,FALSE)","v":718},{"$f":"HLOOKUP(AA$7,$K$68:$DL$122,ROWS($B$12:$B43)+2,FALSE)","v":332},{"$f":"HLOOKUP(AB$7,$K$68:$DL$122,ROWS($B$12:$B43)+2,FALSE)","v":317},{"$f":"HLOOKUP(AC$7,$K$68:$DL$122,ROWS($B$12:$B43)+2,FALSE)","v":102},{"$f":"HLOOKUP(AD$7,$K$68:$DL$122,ROWS($B$12:$B43)+2,FALSE)","v":871},{"$f":"HLOOKUP(AE$7,$K$68:$DL$122,ROWS($B$12:$B43)+2,FALSE)","v":624},{"$f":"HLOOKUP(AF$7,$K$68:$DL$122,ROWS($B$12:$B43)+2,FALSE)","v":5335},{"$f":"HLOOKUP(AG$7,$K$68:$DL$122,ROWS($B$12:$B43)+2,FALSE)","v":4675},{"$f":"HLOOKUP(AH$7,$K$68:$DL$122,ROWS($B$12:$B43)+2,FALSE)","v":1889},{"$f":"HLOOKUP(AI$7,$K$68:$DL$122,ROWS($B$12:$B43)+2,FALSE)","v":1261},{"$f":"HLOOKUP(AJ$7,$K$68:$DL$122,ROWS($B$12:$B43)+2,FALSE)","v":510},{"$f":"HLOOKUP(AK$7,$K$68:$DL$122,ROWS($B$12:$B43)+2,FALSE)","v":583},{"$f":"HLOOKUP(AL$7,$K$68:$DL$122,ROWS($B$12:$B43)+2,FALSE)","v":49},{"$f":"HLOOKUP(AM$7,$K$68:$DL$122,ROWS($B$12:$B43)+2,FALSE)","v":312},{"$f":"HLOOKUP(AN$7,$K$68:$DL$122,ROWS($B$12:$B43)+2,FALSE)","v":899},{"$f":"HLOOKUP(AO$7,$K$68:$DL$122,ROWS($B$12:$B43)+2,FALSE)","v":499},{"$f":"HLOOKUP(AP$7,$K$68:$DL$122,ROWS($B$12:$B43)+2,FALSE)","v":"N/A"},{"$f":"HLOOKUP(AQ$7,$K$68:$DL$122,ROWS($B$12:$B43)+2,FALSE)","v":355},{"$f":"HLOOKUP(AR$7,$K$68:$DL$122,ROWS($B$12:$B43)+2,FALSE)","v":40815},{"$f":"HLOOKUP(AS$7,$K$68:$DL$122,ROWS($B$12:$B43)+2,FALSE)","v":2482},{"$f":"HLOOKUP(AT$7,$K$68:$DL$122,ROWS($B$12:$B43)+2,FALSE)","v":61},{"$f":"HLOOKUP(AU$7,$K$68:$DL$122,ROWS($B$12:$B43)+2,FALSE)","v":1121},{"$f":"HLOOKUP(AV$7,$K$68:$DL$122,ROWS($B$12:$B43)+2,FALSE)","v":773},{"$f":"HLOOKUP(AW$7,$K$68:$DL$122,ROWS($B$12:$B43)+2,FALSE)","v":360},{"$f":"HLOOKUP(AX$7,$K$68:$DL$122,ROWS($B$12:$B43)+2,FALSE)","v":19733},{"$f":"HLOOKUP(AY$7,$K$68:$DL$122,ROWS($B$12:$B43)+2,FALSE)","v":463},{"$f":"HLOOKUP(AZ$7,$K$68:$DL$122,ROWS($B$12:$B43)+2,FALSE)","v":1586},{"$f":"HLOOKUP(BA$7,$K$68:$DL$122,ROWS($B$12:$B43)+2,FALSE)","v":0},{"$f":"HLOOKUP(BB$7,$K$68:$DL$122,ROWS($B$12:$B43)+2,FALSE)","v":1412},{"$f":"HLOOKUP(BC$7,$K$68:$DL$122,ROWS($B$12:$B43)+2,FALSE)","v":3801},{"$f":"HLOOKUP(BD$7,$K$68:$DL$122,ROWS($B$12:$B43)+2,FALSE)","v":256},{"$f":"HLOOKUP(BE$7,$K$68:$DL$122,ROWS($B$12:$B43)+2,FALSE)","v":0},{"$f":"HLOOKUP(BF$7,$K$68:$DL$122,ROWS($B$12:$B43)+2,FALSE)","v":4458},{"$f":"HLOOKUP(BG$7,$K$68:$DL$122,ROWS($B$12:$B43)+2,FALSE)","v":2454},{"$f":"HLOOKUP(BH$7,$K$68:$DL$122,ROWS($B$12:$B43)+2,FALSE)","v":1252},{"$f":"HLOOKUP(BI$7,$K$68:$DL$122,ROWS($B$12:$B43)+2,FALSE)","v":214},{"$f":"HLOOKUP(BJ$7,$K$68:$DL$122,ROWS($B$12:$B43)+2,FALSE)","v":15},{"$f":"HLOOKUP(BK$7,$K$68:$DL$122,ROWS($B$12:$B43)+2,FALSE)","v":4312},{"$f":"HLOOKUP(BL$7+0.5,$K$68:$DL$122,ROWS($B$12:$B43)+2,FALSE)","v":8607},{"$f":"HLOOKUP(BM$7+0.5,$K$68:$DL$122,ROWS($B$12:$B43)+2,FALSE)","v":209},{"$f":"HLOOKUP(BN$7+0.5,$K$68:$DL$122,ROWS($B$12:$B43)+2,FALSE)","v":790},{"$f":"HLOOKUP(BO$7+0.5,$K$68:$DL$122,ROWS($B$12:$B43)+2,FALSE)","v":2287},{"$f":"HLOOKUP(BP$7+0.5,$K$68:$DL$122,ROWS($B$12:$B43)+2,FALSE)","v":97},{"$f":"HLOOKUP(BQ$7+0.5,$K$68:$DL$122,ROWS($B$12:$B43)+2,FALSE)","v":1519},{"$f":"HLOOKUP(BR$7+0.5,$K$68:$DL$122,ROWS($B$12:$B43)+2,FALSE)","v":1931},{"$f":"HLOOKUP(BS$7+0.5,$K$68:$DL$122,ROWS($B$12:$B43)+2,FALSE)","v":845},{"$f":"HLOOKUP(BT$7+0.5,$K$68:$DL$122,ROWS($B$12:$B43)+2,FALSE)","v":1025},{"$f":"HLOOKUP(BU$7+0.5,$K$68:$DL$122,ROWS($B$12:$B43)+2,FALSE)","v":409},{"$f":"HLOOKUP(BV$7+0.5,$K$68:$DL$122,ROWS($B$12:$B43)+2,FALSE)","v":3313},{"$f":"HLOOKUP(BW$7+0.5,$K$68:$DL$122,ROWS($B$12:$B43)+2,FALSE)","v":2025},{"$f":"HLOOKUP(BX$7+0.5,$K$68:$DL$122,ROWS($B$12:$B43)+2,FALSE)","v":307},{"$f":"HLOOKUP(BY$7+0.5,$K$68:$DL$122,ROWS($B$12:$B43)+2,FALSE)","v":262},{"$f":"HLOOKUP(BZ$7+0.5,$K$68:$DL$122,ROWS($B$12:$B43)+2,FALSE)","v":1572},{"$f":"HLOOKUP(CA$7+0.5,$K$68:$DL$122,ROWS($B$12:$B43)+2,FALSE)","v":436},{"$f":"HLOOKUP(CB$7+0.5,$K$68:$DL$122,ROWS($B$12:$B43)+2,FALSE)","v":441},{"$f":"HLOOKUP(CC$7+0.5,$K$68:$DL$122,ROWS($B$12:$B43)+2,FALSE)","v":306},{"$f":"HLOOKUP(CD$7+0.5,$K$68:$DL$122,ROWS($B$12:$B43)+2,FALSE)","v":125},{"$f":"HLOOKUP(CE$7+0.5,$K$68:$DL$122,ROWS($B$12:$B43)+2,FALSE)","v":590},{"$f":"HLOOKUP(CF$7+0.5,$K$68:$DL$122,ROWS($B$12:$B43)+2,FALSE)","v":629},{"$f":"HLOOKUP(CG$7+0.5,$K$68:$DL$122,ROWS($B$12:$B43)+2,FALSE)","v":2324},{"$f":"HLOOKUP(CH$7+0.5,$K$68:$DL$122,ROWS($B$12:$B43)+2,FALSE)","v":1356},{"$f":"HLOOKUP(CI$7+0.5,$K$68:$DL$122,ROWS($B$12:$B43)+2,FALSE)","v":1056},{"$f":"HLOOKUP(CJ$7+0.5,$K$68:$DL$122,ROWS($B$12:$B43)+2,FALSE)","v":1200},{"$f":"HLOOKUP(CK$7+0.5,$K$68:$DL$122,ROWS($B$12:$B43)+2,FALSE)","v":677},{"$f":"HLOOKUP(CL$7+0.5,$K$68:$DL$122,ROWS($B$12:$B43)+2,FALSE)","v":544},{"$f":"HLOOKUP(CM$7+0.5,$K$68:$DL$122,ROWS($B$12:$B43)+2,FALSE)","v":80},{"$f":"HLOOKUP(CN$7+0.5,$K$68:$DL$122,ROWS($B$12:$B43)+2,FALSE)","v":429},{"$f":"HLOOKUP(CO$7+0.5,$K$68:$DL$122,ROWS($B$12:$B43)+2,FALSE)","v":566},{"$f":"HLOOKUP(CP$7+0.5,$K$68:$DL$122,ROWS($B$12:$B43)+2,FALSE)","v":360},{"$f":"HLOOKUP(CQ$7+0.5,$K$68:$DL$122,ROWS($B$12:$B43)+2,FALSE)","v":"N/A"},{"$f":"HLOOKUP(CR$7+0.5,$K$68:$DL$122,ROWS($B$12:$B43)+2,FALSE)","v":537},{"$f":"HLOOKUP(CS$7+0.5,$K$68:$DL$122,ROWS($B$12:$B43)+2,FALSE)","v":4703},{"$f":"HLOOKUP(CT$7+0.5,$K$68:$DL$122,ROWS($B$12:$B43)+2,FALSE)","v":1416},{"$f":"HLOOKUP(CU$7+0.5,$K$68:$DL$122,ROWS($B$12:$B43)+2,FALSE)","v":103},{"$f":"HLOOKUP(CV$7+0.5,$K$68:$DL$122,ROWS($B$12:$B43)+2,FALSE)","v":608},{"$f":"HLOOKUP(CW$7+0.5,$K$68:$DL$122,ROWS($B$12:$B43)+2,FALSE)","v":707},{"$f":"HLOOKUP(CX$7+0.5,$K$68:$DL$122,ROWS($B$12:$B43)+2,FALSE)","v":331},{"$f":"HLOOKUP(CY$7+0.5,$K$68:$DL$122,ROWS($B$12:$B43)+2,FALSE)","v":2951},{"$f":"HLOOKUP(CZ$7+0.5,$K$68:$DL$122,ROWS($B$12:$B43)+2,FALSE)","v":319},{"$f":"HLOOKUP(DA$7+0.5,$K$68:$DL$122,ROWS($B$12:$B43)+2,FALSE)","v":789},{"$f":"HLOOKUP(DB$7+0.5,$K$68:$DL$122,ROWS($B$12:$B43)+2,FALSE)","v":198},{"$f":"HLOOKUP(DC$7+0.5,$K$68:$DL$122,ROWS($B$12:$B43)+2,FALSE)","v":782},{"$f":"HLOOKUP(DD$7+0.5,$K$68:$DL$122,ROWS($B$12:$B43)+2,FALSE)","v":1818},{"$f":"HLOOKUP(DE$7+0.5,$K$68:$DL$122,ROWS($B$12:$B43)+2,FALSE)","v":229},{"$f":"HLOOKUP(DF$7+0.5,$K$68:$DL$122,ROWS($B$12:$B43)+2,FALSE)","v":198},{"$f":"HLOOKUP(DG$7+0.5,$K$68:$DL$122,ROWS($B$12:$B43)+2,FALSE)","v":1750},{"$f":"HLOOKUP(DH$7+0.5,$K$68:$DL$122,ROWS($B$12:$B43)+2,FALSE)","v":1946},{"$f":"HLOOKUP(DI$7+0.5,$K$68:$DL$122,ROWS($B$12:$B43)+2,FALSE)","v":1293},{"$f":"HLOOKUP(DJ$7+0.5,$K$68:$DL$122,ROWS($B$12:$B43)+2,FALSE)","v":259},{"$f":"HLOOKUP(DK$7+0.5,$K$68:$DL$122,ROWS($B$12:$B43)+2,FALSE)","v":29},{"$f":"HLOOKUP(DL$7+0.5,$K$68:$DL$122,ROWS($B$12:$B43)+2,FALSE)","v":1535}]
[null,null,"New Mexico",2055293,2718,1753413,15690,228218,13801,8.8916990200669319E-3,{"$f":"HLOOKUP(K$7,$K$68:$DL$122,ROWS($B$12:$B44)+2,FALSE)","v":62130},{"$f":"HLOOKUP(L$7,$K$68:$DL$122,ROWS($B$12:$B44)+2,FALSE)","v":410},{"$f":"HLOOKUP(M$7,$K$68:$DL$122,ROWS($B$12:$B44)+2,FALSE)","v":416},{"$f":"HLOOKUP(N$7,$K$68:$DL$122,ROWS($B$12:$B44)+2,FALSE)","v":7444},{"$f":"HLOOKUP(O$7,$K$68:$DL$122,ROWS($B$12:$B44)+2,FALSE)","v":682},{"$f":"HLOOKUP(P$7,$K$68:$DL$122,ROWS($B$12:$B44)+2,FALSE)","v":7066},{"$f":"HLOOKUP(Q$7,$K$68:$DL$122,ROWS($B$12:$B44)+2,FALSE)","v":5525},{"$f":"HLOOKUP(R$7,$K$68:$DL$122,ROWS($B$12:$B44)+2,FALSE)","v":0},{"$f":"HLOOKUP(S$7,$K$68:$DL$122,ROWS($B$12:$B44)+2,FALSE)","v":0},{"$f":"HLOOKUP(T$7,$K$68:$DL$122,ROWS($B$12:$B44)+2,FALSE)","v":212},{"$f":"HLOOKUP(U$7,$K$68:$DL$122,ROWS($B$12:$B44)+2,FALSE)","v":2806},{"$f":"HLOOKUP(V$7,$K$68:$DL$122,ROWS($B$12:$B44)+2,FALSE)","v":676},{"$f":"HLOOKUP(W$7,$K$68:$DL$122,ROWS($B$12:$B44)+2,FALSE)","v":81},{"$f":"HLOOKUP(X$7,$K$68:$DL$122,ROWS($B$12:$B44)+2,FALSE)","v":355},{"$f":"HLOOKUP(Y$7,$K$68:$DL$122,ROWS($B$12:$B44)+2,FALSE)","v":466},{"$f":"HLOOKUP(Z$7,$K$68:$DL$122,ROWS($B$12:$B44)+2,FALSE)","v":2030},{"$f":"HLOOKUP(AA$7,$K$68:$DL$122,ROWS($B$12:$B44)+2,FALSE)","v":0},{"$f":"HLOOKUP(AB$7,$K$68:$DL$122,ROWS($B$12:$B44)+2,FALSE)","v":1333},{"$f":"HLOOKUP(AC$7,$K$68:$DL$122,ROWS($B$12:$B44)+2,FALSE)","v":87},{"$f":"HLOOKUP(AD$7,$K$68:$DL$122,ROWS($B$12:$B44)+2,FALSE)","v":184},{"$f":"HLOOKUP(AE$7,$K$68:$DL$122,ROWS($B$12:$B44)+2,FALSE)","v":510},{"$f":"HLOOKUP(AF$7,$K$68:$DL$122,ROWS($B$12:$B44)+2,FALSE)","v":2277},{"$f":"HLOOKUP(AG$7,$K$68:$DL$122,ROWS($B$12:$B44)+2,FALSE)","v":252},{"$f":"HLOOKUP(AH$7,$K$68:$DL$122,ROWS($B$12:$B44)+2,FALSE)","v":908},{"$f":"HLOOKUP(AI$7,$K$68:$DL$122,ROWS($B$12:$B44)+2,FALSE)","v":438},{"$f":"HLOOKUP(AJ$7,$K$68:$DL$122,ROWS($B$12:$B44)+2,FALSE)","v":556},{"$f":"HLOOKUP(AK$7,$K$68:$DL$122,ROWS($B$12:$B44)+2,FALSE)","v":1183},{"$f":"HLOOKUP(AL$7,$K$68:$DL$122,ROWS($B$12:$B44)+2,FALSE)","v":544},{"$f":"HLOOKUP(AM$7,$K$68:$DL$122,ROWS($B$12:$B44)+2,FALSE)","v":353},{"$f":"HLOOKUP(AN$7,$K$68:$DL$122,ROWS($B$12:$B44)+2,FALSE)","v":2099},{"$f":"HLOOKUP(AO$7,$K$68:$DL$122,ROWS($B$12:$B44)+2,FALSE)","v":114},{"$f":"HLOOKUP(AP$7,$K$68:$DL$122,ROWS($B$12:$B44)+2,FALSE)","v":245},{"$f":"HLOOKUP(AQ$7,$K$68:$DL$122,ROWS($B$12:$B44)+2,FALSE)","v":"N/A"},{"$f":"HLOOKUP(AR$7,$K$68:$DL$122,ROWS($B$12:$B44)+2,FALSE)","v":1445},{"$f":"HLOOKUP(AS$7,$K$68:$DL$122,ROWS($B$12:$B44)+2,FALSE)","v":522},{"$f":"HLOOKUP(AT$7,$K$68:$DL$122,ROWS($B$12:$B44)+2,FALSE)","v":264},{"$f":"HLOOKUP(AU$7,$K$68:$DL$122,ROWS($B$12:$B44)+2,FALSE)","v":1742},{"$f":"HLOOKUP(AV$7,$K$68:$DL$122,ROWS($B$12:$B44)+2,FALSE)","v":234},{"$f":"HLOOKUP(AW$7,$K$68:$DL$122,ROWS($B$12:$B44)+2,FALSE)","v":916},{"$f":"HLOOKUP(AX$7,$K$68:$DL$122,ROWS($B$12:$B44)+2,FALSE)","v":492},{"$f":"HLOOKUP(AY$7,$K$68:$DL$122,ROWS($B$12:$B44)+2,FALSE)","v":0},{"$f":"HLOOKUP(AZ$7,$K$68:$DL$122,ROWS($B$12:$B44)+2,FALSE)","v":145},{"$f":"HLOOKUP(BA$7,$K$68:$DL$122,ROWS($B$12:$B44)+2,FALSE)","v":240},{"$f":"HLOOKUP(BB$7,$K$68:$DL$122,ROWS($B$12:$B44)+2,FALSE)","v":899},{"$f":"HLOOKUP(BC$7,$K$68:$DL$122,ROWS($B$12:$B44)+2,FALSE)","v":13633},{"$f":"HLOOKUP(BD$7,$K$68:$DL$122,ROWS($B$12:$B44)+2,FALSE)","v":303},{"$f":"HLOOKUP(BE$7,$K$68:$DL$122,ROWS($B$12:$B44)+2,FALSE)","v":71},{"$f":"HLOOKUP(BF$7,$K$68:$DL$122,ROWS($B$12:$B44)+2,FALSE)","v":425},{"$f":"HLOOKUP(BG$7,$K$68:$DL$122,ROWS($B$12:$B44)+2,FALSE)","v":924},{"$f":"HLOOKUP(BH$7,$K$68:$DL$122,ROWS($B$12:$B44)+2,FALSE)","v":0},{"$f":"HLOOKUP(BI$7,$K$68:$DL$122,ROWS($B$12:$B44)+2,FALSE)","v":340},{"$f":"HLOOKUP(BJ$7,$K$68:$DL$122,ROWS($B$12:$B44)+2,FALSE)","v":283},{"$f":"HLOOKUP(BK$7,$K$68:$DL$122,ROWS($B$12:$B44)+2,FALSE)","v":99},{"$f":"HLOOKUP(BL$7+0.5,$K$68:$DL$122,ROWS($B$12:$B44)+2,FALSE)","v":7330},{"$f":"HLOOKUP(BM$7+0.5,$K$68:$DL$122,ROWS($B$12:$B44)+2,FALSE)","v":494},{"$f":"HLOOKUP(BN$7+0.5,$K$68:$DL$122,ROWS($B$12:$B44)+2,FALSE)","v":446},{"$f":"HLOOKUP(BO$7+0.5,$K$68:$DL$122,ROWS($B$12:$B44)+2,FALSE)","v":3409},{"$f":"HLOOKUP(BP$7+0.5,$K$68:$DL$122,ROWS($B$12:$B44)+2,FALSE)","v":607},{"$f":"HLOOKUP(BQ$7+0.5,$K$68:$DL$122,ROWS($B$12:$B44)+2,FALSE)","v":2324},{"$f":"HLOOKUP(BR$7+0.5,$K$68:$DL$122,ROWS($B$12:$B44)+2,FALSE)","v":1537},{"$f":"HLOOKUP(BS$7+0.5,$K$68:$DL$122,ROWS($B$12:$B44)+2,FALSE)","v":198},{"$f":"HLOOKUP(BT$7+0.5,$K$68:$DL$122,ROWS($B$12:$B44)+2,FALSE)","v":198},{"$f":"HLOOKUP(BU$7+0.5,$K$68:$DL$122,ROWS($B$12:$B44)+2,FALSE)","v":336},{"$f":"HLOOKUP(BV$7+0.5,$K$68:$DL$122,ROWS($B$12:$B44)+2,FALSE)","v":1557},{"$f":"HLOOKUP(BW$7+0.5,$K$68:$DL$122,ROWS($B$12:$B44)+2,FALSE)","v":406},{"$f":"HLOOKUP(BX$7+0.5,$K$68:$DL$122,ROWS($B$12:$B44)+2,FALSE)","v":128},{"$f":"HLOOKUP(BY$7+0.5,$K$68:$DL$122,ROWS($B$12:$B44)+2,FALSE)","v":326},{"$f":"HLOOKUP(BZ$7+0.5,$K$68:$DL$122,ROWS($B$12:$B44)+2,FALSE)","v":315},{"$f":"HLOOKUP(CA$7+0.5,$K$68:$DL$122,ROWS($B$12:$B44)+2,FALSE)","v":2244},{"$f":"HLOOKUP(CB$7+0.5,$K$68:$DL$122,ROWS($B$12:$B44)+2,FALSE)","v":198},{"$f":"HLOOKUP(CC$7+0.5,$K$68:$DL$122,ROWS($B$12:$B44)+2,FALSE)","v":1078},{"$f":"HLOOKUP(CD$7+0.5,$K$68:$DL$122,ROWS($B$12:$B44)+2,FALSE)","v":152},{"$f":"HLOOKUP(CE$7+0.5,$K$68:$DL$122,ROWS($B$12:$B44)+2,FALSE)","v":244},{"$f":"HLOOKUP(CF$7+0.5,$K$68:$DL$122,ROWS($B$12:$B44)+2,FALSE)","v":384},{"$f":"HLOOKUP(CG$7+0.5,$K$68:$DL$122,ROWS($B$12:$B44)+2,FALSE)","v":1964},{"$f":"HLOOKUP(CH$7+0.5,$K$68:$DL$122,ROWS($B$12:$B44)+2,FALSE)","v":213},{"$f":"HLOOKUP(CI$7+0.5,$K$68:$DL$122,ROWS($B$12:$B44)+2,FALSE)","v":699},{"$f":"HLOOKUP(CJ$7+0.5,$K$68:$DL$122,ROWS($B$12:$B44)+2,FALSE)","v":435},{"$f":"HLOOKUP(CK$7+0.5,$K$68:$DL$122,ROWS($B$12:$B44)+2,FALSE)","v":553},{"$f":"HLOOKUP(CL$7+0.5,$K$68:$DL$122,ROWS($B$12:$B44)+2,FALSE)","v":877},{"$f":"HLOOKUP(CM$7+0.5,$K$68:$DL$122,ROWS($B$12:$B44)+2,FALSE)","v":340},{"$f":"HLOOKUP(CN$7+0.5,$K$68:$DL$122,ROWS($B$12:$B44)+2,FALSE)","v":312},{"$f":"HLOOKUP(CO$7+0.5,$K$68:$DL$122,ROWS($B$12:$B44)+2,FALSE)","v":1159},{"$f":"HLOOKUP(CP$7+0.5,$K$68:$DL$122,ROWS($B$12:$B44)+2,FALSE)","v":130},{"$f":"HLOOKUP(CQ$7+0.5,$K$68:$DL$122,ROWS($B$12:$B44)+2,FALSE)","v":229},{"$f":"HLOOKUP(CR$7+0.5,$K$68:$DL$122,ROWS($B$12:$B44)+2,FALSE)","v":"N/A"},{"$f":"HLOOKUP(CS$7+0.5,$K$68:$DL$122,ROWS($B$12:$B44)+2,FALSE)","v":781},{"$f":"HLOOKUP(CT$7+0.5,$K$68:$DL$122,ROWS($B$12:$B44)+2,FALSE)","v":300},{"$f":"HLOOKUP(CU$7+0.5,$K$68:$DL$122,ROWS($B$12:$B44)+2,FALSE)","v":310},{"$f":"HLOOKUP(CV$7+0.5,$K$68:$DL$122,ROWS($B$12:$B44)+2,FALSE)","v":1115},{"$f":"HLOOKUP(CW$7+0.5,$K$68:$DL$122,ROWS($B$12:$B44)+2,FALSE)","v":203},{"$f":"HLOOKUP(CX$7+0.5,$K$68:$DL$122,ROWS($B$12:$B44)+2,FALSE)","v":655},{"$f":"HLOOKUP(CY$7+0.5,$K$68:$DL$122,ROWS($B$12:$B44)+2,FALSE)","v":284},{"$f":"HLOOKUP(CZ$7+0.5,$K$68:$DL$122,ROWS($B$12:$B44)+2,FALSE)","v":198},{"$f":"HLOOKUP(DA$7+0.5,$K$68:$DL$122,ROWS($B$12:$B44)+2,FALSE)","v":204},{"$f":"HLOOKUP(DB$7+0.5,$K$68:$DL$122,ROWS($B$12:$B44)+2,FALSE)","v":281},{"$f":"HLOOKUP(DC$7+0.5,$K$68:$DL$122,ROWS($B$12:$B44)+2,FALSE)","v":577},{"$f":"HLOOKUP(DD$7+0.5,$K$68:$DL$122,ROWS($B$12:$B44)+2,FALSE)","v":3724},{"$f":"HLOOKUP(DE$7+0.5,$K$68:$DL$122,ROWS($B$12:$B44)+2,FALSE)","v":218},{"$f":"HLOOKUP(DF$7+0.5,$K$68:$DL$122,ROWS($B$12:$B44)+2,FALSE)","v":120},{"$f":"HLOOKUP(DG$7+0.5,$K$68:$DL$122,ROWS($B$12:$B44)+2,FALSE)","v":337},{"$f":"HLOOKUP(DH$7+0.5,$K$68:$DL$122,ROWS($B$12:$B44)+2,FALSE)","v":616},{"$f":"HLOOKUP(DI$7+0.5,$K$68:$DL$122,ROWS($B$12:$B44)+2,FALSE)","v":198},{"$f":"HLOOKUP(DJ$7+0.5,$K$68:$DL$122,ROWS($B$12:$B44)+2,FALSE)","v":342},{"$f":"HLOOKUP(DK$7+0.5,$K$68:$DL$122,ROWS($B$12:$B44)+2,FALSE)","v":313},{"$f":"HLOOKUP(DL$7+0.5,$K$68:$DL$122,ROWS($B$12:$B44)+2,FALSE)","v":158}]
[null,null,"New York",19248685,7023,17055260,37016,1756105,32216,4.0388177832835485E-2,{"$f":"HLOOKUP(K$7,$K$68:$DL$122,ROWS($B$12:$B45)+2,FALSE)","v":282209},{"$f":"HLOOKUP(L$7,$K$68:$DL$122,ROWS($B$12:$B45)+2,FALSE)","v":1812},{"$f":"HLOOKUP(M$7,$K$68:$DL$122,ROWS($B$12:$B45)+2,FALSE)","v":6124},{"$f":"HLOOKUP(N$7,$K$68:$DL$122,ROWS($B$12:$B45)+2,FALSE)","v":2821},{"$f":"HLOOKUP(O$7,$K$68:$DL$122,ROWS($B$12:$B45)+2,FALSE)","v":1041},{"$f":"HLOOKUP(P$7,$K$68:$DL$122,ROWS($B$12:$B45)+2,FALSE)","v":25761},{"$f":"HLOOKUP(Q$7,$K$68:$DL$122,ROWS($B$12:$B45)+2,FALSE)","v":3724},{"$f":"HLOOKUP(R$7,$K$68:$DL$122,ROWS($B$12:$B45)+2,FALSE)","v":15123},{"$f":"HLOOKUP(S$7,$K$68:$DL$122,ROWS($B$12:$B45)+2,FALSE)","v":1124},{"$f":"HLOOKUP(T$7,$K$68:$DL$122,ROWS($B$12:$B45)+2,FALSE)","v":3702},{"$f":"HLOOKUP(U$7,$K$68:$DL$122,ROWS($B$12:$B45)+2,FALSE)","v":29344},{"$f":"HLOOKUP(V$7,$K$68:$DL$122,ROWS($B$12:$B45)+2,FALSE)","v":10584},{"$f":"HLOOKUP(W$7,$K$68:$DL$122,ROWS($B$12:$B45)+2,FALSE)","v":1002},{"$f":"HLOOKUP(X$7,$K$68:$DL$122,ROWS($B$12:$B45)+2,FALSE)","v":434},{"$f":"HLOOKUP(Y$7,$K$68:$DL$122,ROWS($B$12:$B45)+2,FALSE)","v":6914},{"$f":"HLOOKUP(Z$7,$K$68:$DL$122,ROWS($B$12:$B45)+2,FALSE)","v":2198},{"$f":"HLOOKUP(AA$7,$K$68:$DL$122,ROWS($B$12:$B45)+2,FALSE)","v":928},{"$f":"HLOOKUP(AB$7,$K$68:$DL$122,ROWS($B$12:$B45)+2,FALSE)","v":838},{"$f":"HLOOKUP(AC$7,$K$68:$DL$122,ROWS($B$12:$B45)+2,FALSE)","v":2414},{"$f":"HLOOKUP(AD$7,$K$68:$DL$122,ROWS($B$12:$B45)+2,FALSE)","v":1495},{"$f":"HLOOKUP(AE$7,$K$68:$DL$122,ROWS($B$12:$B45)+2,FALSE)","v":2915},{"$f":"HLOOKUP(AF$7,$K$68:$DL$122,ROWS($B$12:$B45)+2,FALSE)","v":5037},{"$f":"HLOOKUP(AG$7,$K$68:$DL$122,ROWS($B$12:$B45)+2,FALSE)","v":14646},{"$f":"HLOOKUP(AH$7,$K$68:$DL$122,ROWS($B$12:$B45)+2,FALSE)","v":3936},{"$f":"HLOOKUP(AI$7,$K$68:$DL$122,ROWS($B$12:$B45)+2,FALSE)","v":1824},{"$f":"HLOOKUP(AJ$7,$K$68:$DL$122,ROWS($B$12:$B45)+2,FALSE)","v":401},{"$f":"HLOOKUP(AK$7,$K$68:$DL$122,ROWS($B$12:$B45)+2,FALSE)","v":1417},{"$f":"HLOOKUP(AL$7,$K$68:$DL$122,ROWS($B$12:$B45)+2,FALSE)","v":391},{"$f":"HLOOKUP(AM$7,$K$68:$DL$122,ROWS($B$12:$B45)+2,FALSE)","v":579},{"$f":"HLOOKUP(AN$7,$K$68:$DL$122,ROWS($B$12:$B45)+2,FALSE)","v":1785},{"$f":"HLOOKUP(AO$7,$K$68:$DL$122,ROWS($B$12:$B45)+2,FALSE)","v":2972},{"$f":"HLOOKUP(AP$7,$K$68:$DL$122,ROWS($B$12:$B45)+2,FALSE)","v":41450},{"$f":"HLOOKUP(AQ$7,$K$68:$DL$122,ROWS($B$12:$B45)+2,FALSE)","v":461},{"$f":"HLOOKUP(AR$7,$K$68:$DL$122,ROWS($B$12:$B45)+2,FALSE)","v":"N/A"},{"$f":"HLOOKUP(AS$7,$K$68:$DL$122,ROWS($B$12:$B45)+2,FALSE)","v":9336},{"$f":"HLOOKUP(AT$7,$K$68:$DL$122,ROWS($B$12:$B45)+2,FALSE)","v":374},{"$f":"HLOOKUP(AU$7,$K$68:$DL$122,ROWS($B$12:$B45)+2,FALSE)","v":5191},{"$f":"HLOOKUP(AV$7,$K$68:$DL$122,ROWS($B$12:$B45)+2,FALSE)","v":1425},{"$f":"HLOOKUP(AW$7,$K$68:$DL$122,ROWS($B$12:$B45)+2,FALSE)","v":2189},{"$f":"HLOOKUP(AX$7,$K$68:$DL$122,ROWS($B$12:$B45)+2,FALSE)","v":26596},{"$f":"HLOOKUP(AY$7,$K$68:$DL$122,ROWS($B$12:$B45)+2,FALSE)","v":1393},{"$f":"HLOOKUP(AZ$7,$K$68:$DL$122,ROWS($B$12:$B45)+2,FALSE)","v":6947},{"$f":"HLOOKUP(BA$7,$K$68:$DL$122,ROWS($B$12:$B45)+2,FALSE)","v":112},{"$f":"HLOOKUP(BB$7,$K$68:$DL$122,ROWS($B$12:$B45)+2,FALSE)","v":2660},{"$f":"HLOOKUP(BC$7,$K$68:$DL$122,ROWS($B$12:$B45)+2,FALSE)","v":9151},{"$f":"HLOOKUP(BD$7,$K$68:$DL$122,ROWS($B$12:$B45)+2,FALSE)","v":773},{"$f":"HLOOKUP(BE$7,$K$68:$DL$122,ROWS($B$12:$B45)+2,FALSE)","v":3882},{"$f":"HLOOKUP(BF$7,$K$68:$DL$122,ROWS($B$12:$B45)+2,FALSE)","v":10800},{"$f":"HLOOKUP(BG$7,$K$68:$DL$122,ROWS($B$12:$B45)+2,FALSE)","v":2986},{"$f":"HLOOKUP(BH$7,$K$68:$DL$122,ROWS($B$12:$B45)+2,FALSE)","v":631},{"$f":"HLOOKUP(BI$7,$K$68:$DL$122,ROWS($B$12:$B45)+2,FALSE)","v":1878},{"$f":"HLOOKUP(BJ$7,$K$68:$DL$122,ROWS($B$12:$B45)+2,FALSE)","v":688},{"$f":"HLOOKUP(BK$7,$K$68:$DL$122,ROWS($B$12:$B45)+2,FALSE)","v":10582},{"$f":"HLOOKUP(BL$7+0.5,$K$68:$DL$122,ROWS($B$12:$B45)+2,FALSE)","v":11956},{"$f":"HLOOKUP(BM$7+0.5,$K$68:$DL$122,ROWS($B$12:$B45)+2,FALSE)","v":1002},{"$f":"HLOOKUP(BN$7+0.5,$K$68:$DL$122,ROWS($B$12:$B45)+2,FALSE)","v":2270},{"$f":"HLOOKUP(BO$7+0.5,$K$68:$DL$122,ROWS($B$12:$B45)+2,FALSE)","v":1100},{"$f":"HLOOKUP(BP$7+0.5,$K$68:$DL$122,ROWS($B$12:$B45)+2,FALSE)","v":734},{"$f":"HLOOKUP(BQ$7+0.5,$K$68:$DL$122,ROWS($B$12:$B45)+2,FALSE)","v":3856},{"$f":"HLOOKUP(BR$7+0.5,$K$68:$DL$122,ROWS($B$12:$B45)+2,FALSE)","v":1151},{"$f":"HLOOKUP(BS$7+0.5,$K$68:$DL$122,ROWS($B$12:$B45)+2,FALSE)","v":3667},{"$f":"HLOOKUP(BT$7+0.5,$K$68:$DL$122,ROWS($B$12:$B45)+2,FALSE)","v":588},{"$f":"HLOOKUP(BU$7+0.5,$K$68:$DL$122,ROWS($B$12:$B45)+2,FALSE)","v":1051},{"$f":"HLOOKUP(BV$7+0.5,$K$68:$DL$122,ROWS($B$12:$B45)+2,FALSE)","v":4718},{"$f":"HLOOKUP(BW$7+0.5,$K$68:$DL$122,ROWS($B$12:$B45)+2,FALSE)","v":2320},{"$f":"HLOOKUP(BX$7+0.5,$K$68:$DL$122,ROWS($B$12:$B45)+2,FALSE)","v":973},{"$f":"HLOOKUP(BY$7+0.5,$K$68:$DL$122,ROWS($B$12:$B45)+2,FALSE)","v":377},{"$f":"HLOOKUP(BZ$7+0.5,$K$68:$DL$122,ROWS($B$12:$B45)+2,FALSE)","v":1720},{"$f":"HLOOKUP(CA$7+0.5,$K$68:$DL$122,ROWS($B$12:$B45)+2,FALSE)","v":958},{"$f":"HLOOKUP(CB$7+0.5,$K$68:$DL$122,ROWS($B$12:$B45)+2,FALSE)","v":783},{"$f":"HLOOKUP(CC$7+0.5,$K$68:$DL$122,ROWS($B$12:$B45)+2,FALSE)","v":397},{"$f":"HLOOKUP(CD$7+0.5,$K$68:$DL$122,ROWS($B$12:$B45)+2,FALSE)","v":1223},{"$f":"HLOOKUP(CE$7+0.5,$K$68:$DL$122,ROWS($B$12:$B45)+2,FALSE)","v":916},{"$f":"HLOOKUP(CF$7+0.5,$K$68:$DL$122,ROWS($B$12:$B45)+2,FALSE)","v":1114},{"$f":"HLOOKUP(CG$7+0.5,$K$68:$DL$122,ROWS($B$12:$B45)+2,FALSE)","v":1192},{"$f":"HLOOKUP(CH$7+0.5,$K$68:$DL$122,ROWS($B$12:$B45)+2,FALSE)","v":2367},{"$f":"HLOOKUP(CI$7+0.5,$K$68:$DL$122,ROWS($B$12:$B45)+2,FALSE)","v":947},{"$f":"HLOOKUP(CJ$7+0.5,$K$68:$DL$122,ROWS($B$12:$B45)+2,FALSE)","v":678},{"$f":"HLOOKUP(CK$7+0.5,$K$68:$DL$122,ROWS($B$12:$B45)+2,FALSE)","v":266},{"$f":"HLOOKUP(CL$7+0.5,$K$68:$DL$122,ROWS($B$12:$B45)+2,FALSE)","v":595},{"$f":"HLOOKUP(CM$7+0.5,$K$68:$DL$122,ROWS($B$12:$B45)+2,FALSE)","v":282},{"$f":"HLOOKUP(CN$7+0.5,$K$68:$DL$122,ROWS($B$12:$B45)+2,FALSE)","v":553},{"$f":"HLOOKUP(CO$7+0.5,$K$68:$DL$122,ROWS($B$12:$B45)+2,FALSE)","v":1037},{"$f":"HLOOKUP(CP$7+0.5,$K$68:$DL$122,ROWS($B$12:$B45)+2,FALSE)","v":1172},{"$f":"HLOOKUP(CQ$7+0.5,$K$68:$DL$122,ROWS($B$12:$B45)+2,FALSE)","v":4170},{"$f":"HLOOKUP(CR$7+0.5,$K$68:$DL$122,ROWS($B$12:$B45)+2,FALSE)","v":276},{"$f":"HLOOKUP(CS$7+0.5,$K$68:$DL$122,ROWS($B$12:$B45)+2,FALSE)","v":"N/A"},{"$f":"HLOOKUP(CT$7+0.5,$K$68:$DL$122,ROWS($B$12:$B45)+2,FALSE)","v":1874},{"$f":"HLOOKUP(CU$7+0.5,$K$68:$DL$122,ROWS($B$12:$B45)+2,FALSE)","v":266},{"$f":"HLOOKUP(CV$7+0.5,$K$68:$DL$122,ROWS($B$12:$B45)+2,FALSE)","v":1717},{"$f":"HLOOKUP(CW$7+0.5,$K$68:$DL$122,ROWS($B$12:$B45)+2,FALSE)","v":887},{"$f":"HLOOKUP(CX$7+0.5,$K$68:$DL$122,ROWS($B$12:$B45)+2,FALSE)","v":977},{"$f":"HLOOKUP(CY$7+0.5,$K$68:$DL$122,ROWS($B$12:$B45)+2,FALSE)","v":3427},{"$f":"HLOOKUP(CZ$7+0.5,$K$68:$DL$122,ROWS($B$12:$B45)+2,FALSE)","v":663},{"$f":"HLOOKUP(DA$7+0.5,$K$68:$DL$122,ROWS($B$12:$B45)+2,FALSE)","v":2791},{"$f":"HLOOKUP(DB$7+0.5,$K$68:$DL$122,ROWS($B$12:$B45)+2,FALSE)","v":121},{"$f":"HLOOKUP(DC$7+0.5,$K$68:$DL$122,ROWS($B$12:$B45)+2,FALSE)","v":1051},{"$f":"HLOOKUP(DD$7+0.5,$K$68:$DL$122,ROWS($B$12:$B45)+2,FALSE)","v":2132},{"$f":"HLOOKUP(DE$7+0.5,$K$68:$DL$122,ROWS($B$12:$B45)+2,FALSE)","v":482},{"$f":"HLOOKUP(DF$7+0.5,$K$68:$DL$122,ROWS($B$12:$B45)+2,FALSE)","v":1242},{"$f":"HLOOKUP(DG$7+0.5,$K$68:$DL$122,ROWS($B$12:$B45)+2,FALSE)","v":2343},{"$f":"HLOOKUP(DH$7+0.5,$K$68:$DL$122,ROWS($B$12:$B45)+2,FALSE)","v":1367},{"$f":"HLOOKUP(DI$7+0.5,$K$68:$DL$122,ROWS($B$12:$B45)+2,FALSE)","v":470},{"$f":"HLOOKUP(DJ$7+0.5,$K$68:$DL$122,ROWS($B$12:$B45)+2,FALSE)","v":1014},{"$f":"HLOOKUP(DK$7+0.5,$K$68:$DL$122,ROWS($B$12:$B45)+2,FALSE)","v":645},{"$f":"HLOOKUP(DL$7+0.5,$K$68:$DL$122,ROWS($B$12:$B45)+2,FALSE)","v":3796}]
[null,null,"North Carolina",9539412,5364,8070238,36924,1160510,33476,3.7966968046556838E-2,{"$f":"HLOOKUP(K$7,$K$68:$DL$122,ROWS($B$12:$B46)+2,FALSE)","v":265291},{"$f":"HLOOKUP(L$7,$K$68:$DL$122,ROWS($B$12:$B46)+2,FALSE)","v":5420},{"$f":"HLOOKUP(M$7,$K$68:$DL$122,ROWS($B$12:$B46)+2,FALSE)","v":3991},{"$f":"HLOOKUP(N$7,$K$68:$DL$122,ROWS($B$12:$B46)+2,FALSE)","v":4286},{"$f":"HLOOKUP(O$7,$K$68:$DL$122,ROWS($B$12:$B46)+2,FALSE)","v":327},{"$f":"HLOOKUP(P$7,$K$68:$DL$122,ROWS($B$12:$B46)+2,FALSE)","v":15373},{"$f":"HLOOKUP(Q$7,$K$68:$DL$122,ROWS($B$12:$B46)+2,FALSE)","v":3919},{"$f":"HLOOKUP(R$7,$K$68:$DL$122,ROWS($B$12:$B46)+2,FALSE)","v":1975},{"$f":"HLOOKUP(S$7,$K$68:$DL$122,ROWS($B$12:$B46)+2,FALSE)","v":954},{"$f":"HLOOKUP(T$7,$K$68:$DL$122,ROWS($B$12:$B46)+2,FALSE)","v":1135},{"$f":"HLOOKUP(U$7,$K$68:$DL$122,ROWS($B$12:$B46)+2,FALSE)","v":28044},{"$f":"HLOOKUP(V$7,$K$68:$DL$122,ROWS($B$12:$B46)+2,FALSE)","v":16192},{"$f":"HLOOKUP(W$7,$K$68:$DL$122,ROWS($B$12:$B46)+2,FALSE)","v":1806},{"$f":"HLOOKUP(X$7,$K$68:$DL$122,ROWS($B$12:$B46)+2,FALSE)","v":675},{"$f":"HLOOKUP(Y$7,$K$68:$DL$122,ROWS($B$12:$B46)+2,FALSE)","v":5971},{"$f":"HLOOKUP(Z$7,$K$68:$DL$122,ROWS($B$12:$B46)+2,FALSE)","v":3228},{"$f":"HLOOKUP(AA$7,$K$68:$DL$122,ROWS($B$12:$B46)+2,FALSE)","v":654},{"$f":"HLOOKUP(AB$7,$K$68:$DL$122,ROWS($B$12:$B46)+2,FALSE)","v":4995},{"$f":"HLOOKUP(AC$7,$K$68:$DL$122,ROWS($B$12:$B46)+2,FALSE)","v":1637},{"$f":"HLOOKUP(AD$7,$K$68:$DL$122,ROWS($B$12:$B46)+2,FALSE)","v":2936},{"$f":"HLOOKUP(AE$7,$K$68:$DL$122,ROWS($B$12:$B46)+2,FALSE)","v":824},{"$f":"HLOOKUP(AF$7,$K$68:$DL$122,ROWS($B$12:$B46)+2,FALSE)","v":10485},{"$f":"HLOOKUP(AG$7,$K$68:$DL$122,ROWS($B$12:$B46)+2,FALSE)","v":9053},{"$f":"HLOOKUP(AH$7,$K$68:$DL$122,ROWS($B$12:$B46)+2,FALSE)","v":7530},{"$f":"HLOOKUP(AI$7,$K$68:$DL$122,ROWS($B$12:$B46)+2,FALSE)","v":1294},{"$f":"HLOOKUP(AJ$7,$K$68:$DL$122,ROWS($B$12:$B46)+2,FALSE)","v":1273},{"$f":"HLOOKUP(AK$7,$K$68:$DL$122,ROWS($B$12:$B46)+2,FALSE)","v":2638},{"$f":"HLOOKUP(AL$7,$K$68:$DL$122,ROWS($B$12:$B46)+2,FALSE)","v":563},{"$f":"HLOOKUP(AM$7,$K$68:$DL$122,ROWS($B$12:$B46)+2,FALSE)","v":1056},{"$f":"HLOOKUP(AN$7,$K$68:$DL$122,ROWS($B$12:$B46)+2,FALSE)","v":1048},{"$f":"HLOOKUP(AO$7,$K$68:$DL$122,ROWS($B$12:$B46)+2,FALSE)","v":2078},{"$f":"HLOOKUP(AP$7,$K$68:$DL$122,ROWS($B$12:$B46)+2,FALSE)","v":10374},{"$f":"HLOOKUP(AQ$7,$K$68:$DL$122,ROWS($B$12:$B46)+2,FALSE)","v":1737},{"$f":"HLOOKUP(AR$7,$K$68:$DL$122,ROWS($B$12:$B46)+2,FALSE)","v":18321},{"$f":"HLOOKUP(AS$7,$K$68:$DL$122,ROWS($B$12:$B46)+2,FALSE)","v":"N/A"},{"$f":"HLOOKUP(AT$7,$K$68:$DL$122,ROWS($B$12:$B46)+2,FALSE)","v":189},{"$f":"HLOOKUP(AU$7,$K$68:$DL$122,ROWS($B$12:$B46)+2,FALSE)","v":10187},{"$f":"HLOOKUP(AV$7,$K$68:$DL$122,ROWS($B$12:$B46)+2,FALSE)","v":1390},{"$f":"HLOOKUP(AW$7,$K$68:$DL$122,ROWS($B$12:$B46)+2,FALSE)","v":1175},{"$f":"HLOOKUP(AX$7,$K$68:$DL$122,ROWS($B$12:$B46)+2,FALSE)","v":9450},{"$f":"HLOOKUP(AY$7,$K$68:$DL$122,ROWS($B$12:$B46)+2,FALSE)","v":444},{"$f":"HLOOKUP(AZ$7,$K$68:$DL$122,ROWS($B$12:$B46)+2,FALSE)","v":20427},{"$f":"HLOOKUP(BA$7,$K$68:$DL$122,ROWS($B$12:$B46)+2,FALSE)","v":565},{"$f":"HLOOKUP(BB$7,$K$68:$DL$122,ROWS($B$12:$B46)+2,FALSE)","v":6057},{"$f":"HLOOKUP(BC$7,$K$68:$DL$122,ROWS($B$12:$B46)+2,FALSE)","v":6621},{"$f":"HLOOKUP(BD$7,$K$68:$DL$122,ROWS($B$12:$B46)+2,FALSE)","v":961},{"$f":"HLOOKUP(BE$7,$K$68:$DL$122,ROWS($B$12:$B46)+2,FALSE)","v":212},{"$f":"HLOOKUP(BF$7,$K$68:$DL$122,ROWS($B$12:$B46)+2,FALSE)","v":27302},{"$f":"HLOOKUP(BG$7,$K$68:$DL$122,ROWS($B$12:$B46)+2,FALSE)","v":3295},{"$f":"HLOOKUP(BH$7,$K$68:$DL$122,ROWS($B$12:$B46)+2,FALSE)","v":2780},{"$f":"HLOOKUP(BI$7,$K$68:$DL$122,ROWS($B$12:$B46)+2,FALSE)","v":2291},{"$f":"HLOOKUP(BJ$7,$K$68:$DL$122,ROWS($B$12:$B46)+2,FALSE)","v":153},{"$f":"HLOOKUP(BK$7,$K$68:$DL$122,ROWS($B$12:$B46)+2,FALSE)","v":844},{"$f":"HLOOKUP(BL$7+0.5,$K$68:$DL$122,ROWS($B$12:$B46)+2,FALSE)","v":16660},{"$f":"HLOOKUP(BM$7+0.5,$K$68:$DL$122,ROWS($B$12:$B46)+2,FALSE)","v":2338},{"$f":"HLOOKUP(BN$7+0.5,$K$68:$DL$122,ROWS($B$12:$B46)+2,FALSE)","v":2185},{"$f":"HLOOKUP(BO$7+0.5,$K$68:$DL$122,ROWS($B$12:$B46)+2,FALSE)","v":2860},{"$f":"HLOOKUP(BP$7+0.5,$K$68:$DL$122,ROWS($B$12:$B46)+2,FALSE)","v":322},{"$f":"HLOOKUP(BQ$7+0.5,$K$68:$DL$122,ROWS($B$12:$B46)+2,FALSE)","v":5531},{"$f":"HLOOKUP(BR$7+0.5,$K$68:$DL$122,ROWS($B$12:$B46)+2,FALSE)","v":1645},{"$f":"HLOOKUP(BS$7+0.5,$K$68:$DL$122,ROWS($B$12:$B46)+2,FALSE)","v":820},{"$f":"HLOOKUP(BT$7+0.5,$K$68:$DL$122,ROWS($B$12:$B46)+2,FALSE)","v":600},{"$f":"HLOOKUP(BU$7+0.5,$K$68:$DL$122,ROWS($B$12:$B46)+2,FALSE)","v":591},{"$f":"HLOOKUP(BV$7+0.5,$K$68:$DL$122,ROWS($B$12:$B46)+2,FALSE)","v":4471},{"$f":"HLOOKUP(BW$7+0.5,$K$68:$DL$122,ROWS($B$12:$B46)+2,FALSE)","v":3163},{"$f":"HLOOKUP(BX$7+0.5,$K$68:$DL$122,ROWS($B$12:$B46)+2,FALSE)","v":1362},{"$f":"HLOOKUP(BY$7+0.5,$K$68:$DL$122,ROWS($B$12:$B46)+2,FALSE)","v":615},{"$f":"HLOOKUP(BZ$7+0.5,$K$68:$DL$122,ROWS($B$12:$B46)+2,FALSE)","v":2065},{"$f":"HLOOKUP(CA$7+0.5,$K$68:$DL$122,ROWS($B$12:$B46)+2,FALSE)","v":1379},{"$f":"HLOOKUP(CB$7+0.5,$K$68:$DL$122,ROWS($B$12:$B46)+2,FALSE)","v":530},{"$f":"HLOOKUP(CC$7+0.5,$K$68:$DL$122,ROWS($B$12:$B46)+2,FALSE)","v":4644},{"$f":"HLOOKUP(CD$7+0.5,$K$68:$DL$122,ROWS($B$12:$B46)+2,FALSE)","v":786},{"$f":"HLOOKUP(CE$7+0.5,$K$68:$DL$122,ROWS($B$12:$B46)+2,FALSE)","v":1135},{"$f":"HLOOKUP(CF$7+0.5,$K$68:$DL$122,ROWS($B$12:$B46)+2,FALSE)","v":663},{"$f":"HLOOKUP(CG$7+0.5,$K$68:$DL$122,ROWS($B$12:$B46)+2,FALSE)","v":2304},{"$f":"HLOOKUP(CH$7+0.5,$K$68:$DL$122,ROWS($B$12:$B46)+2,FALSE)","v":4920},{"$f":"HLOOKUP(CI$7+0.5,$K$68:$DL$122,ROWS($B$12:$B46)+2,FALSE)","v":2879},{"$f":"HLOOKUP(CJ$7+0.5,$K$68:$DL$122,ROWS($B$12:$B46)+2,FALSE)","v":825},{"$f":"HLOOKUP(CK$7+0.5,$K$68:$DL$122,ROWS($B$12:$B46)+2,FALSE)","v":829},{"$f":"HLOOKUP(CL$7+0.5,$K$68:$DL$122,ROWS($B$12:$B46)+2,FALSE)","v":1150},{"$f":"HLOOKUP(CM$7+0.5,$K$68:$DL$122,ROWS($B$12:$B46)+2,FALSE)","v":549},{"$f":"HLOOKUP(CN$7+0.5,$K$68:$DL$122,ROWS($B$12:$B46)+2,FALSE)","v":1334},{"$f":"HLOOKUP(CO$7+0.5,$K$68:$DL$122,ROWS($B$12:$B46)+2,FALSE)","v":716},{"$f":"HLOOKUP(CP$7+0.5,$K$68:$DL$122,ROWS($B$12:$B46)+2,FALSE)","v":1738},{"$f":"HLOOKUP(CQ$7+0.5,$K$68:$DL$122,ROWS($B$12:$B46)+2,FALSE)","v":2643},{"$f":"HLOOKUP(CR$7+0.5,$K$68:$DL$122,ROWS($B$12:$B46)+2,FALSE)","v":1297},{"$f":"HLOOKUP(CS$7+0.5,$K$68:$DL$122,ROWS($B$12:$B46)+2,FALSE)","v":3621},{"$f":"HLOOKUP(CT$7+0.5,$K$68:$DL$122,ROWS($B$12:$B46)+2,FALSE)","v":"N/A"},{"$f":"HLOOKUP(CU$7+0.5,$K$68:$DL$122,ROWS($B$12:$B46)+2,FALSE)","v":272},{"$f":"HLOOKUP(CV$7+0.5,$K$68:$DL$122,ROWS($B$12:$B46)+2,FALSE)","v":3649},{"$f":"HLOOKUP(CW$7+0.5,$K$68:$DL$122,ROWS($B$12:$B46)+2,FALSE)","v":684},{"$f":"HLOOKUP(CX$7+0.5,$K$68:$DL$122,ROWS($B$12:$B46)+2,FALSE)","v":826},{"$f":"HLOOKUP(CY$7+0.5,$K$68:$DL$122,ROWS($B$12:$B46)+2,FALSE)","v":2770},{"$f":"HLOOKUP(CZ$7+0.5,$K$68:$DL$122,ROWS($B$12:$B46)+2,FALSE)","v":384},{"$f":"HLOOKUP(DA$7+0.5,$K$68:$DL$122,ROWS($B$12:$B46)+2,FALSE)","v":3260},{"$f":"HLOOKUP(DB$7+0.5,$K$68:$DL$122,ROWS($B$12:$B46)+2,FALSE)","v":609},{"$f":"HLOOKUP(DC$7+0.5,$K$68:$DL$122,ROWS($B$12:$B46)+2,FALSE)","v":2083},{"$f":"HLOOKUP(DD$7+0.5,$K$68:$DL$122,ROWS($B$12:$B46)+2,FALSE)","v":2034},{"$f":"HLOOKUP(DE$7+0.5,$K$68:$DL$122,ROWS($B$12:$B46)+2,FALSE)","v":692},{"$f":"HLOOKUP(DF$7+0.5,$K$68:$DL$122,ROWS($B$12:$B46)+2,FALSE)","v":345},{"$f":"HLOOKUP(DG$7+0.5,$K$68:$DL$122,ROWS($B$12:$B46)+2,FALSE)","v":4012},{"$f":"HLOOKUP(DH$7+0.5,$K$68:$DL$122,ROWS($B$12:$B46)+2,FALSE)","v":1566},{"$f":"HLOOKUP(DI$7+0.5,$K$68:$DL$122,ROWS($B$12:$B46)+2,FALSE)","v":1517},{"$f":"HLOOKUP(DJ$7+0.5,$K$68:$DL$122,ROWS($B$12:$B46)+2,FALSE)","v":1192},{"$f":"HLOOKUP(DK$7+0.5,$K$68:$DL$122,ROWS($B$12:$B46)+2,FALSE)","v":228},{"$f":"HLOOKUP(DL$7+0.5,$K$68:$DL$122,ROWS($B$12:$B46)+2,FALSE)","v":447}]
[null,null,"North Dakota",675161,1047,559906,6503,79837,6140,4.6526498493863824E-3,{"$f":"HLOOKUP(K$7,$K$68:$DL$122,ROWS($B$12:$B47)+2,FALSE)","v":32510},{"$f":"HLOOKUP(L$7,$K$68:$DL$122,ROWS($B$12:$B47)+2,FALSE)","v":97},{"$f":"HLOOKUP(M$7,$K$68:$DL$122,ROWS($B$12:$B47)+2,FALSE)","v":393},{"$f":"HLOOKUP(N$7,$K$68:$DL$122,ROWS($B$12:$B47)+2,FALSE)","v":1313},{"$f":"HLOOKUP(O$7,$K$68:$DL$122,ROWS($B$12:$B47)+2,FALSE)","v":249},{"$f":"HLOOKUP(P$7,$K$68:$DL$122,ROWS($B$12:$B47)+2,FALSE)","v":1356},{"$f":"HLOOKUP(Q$7,$K$68:$DL$122,ROWS($B$12:$B47)+2,FALSE)","v":1229},{"$f":"HLOOKUP(R$7,$K$68:$DL$122,ROWS($B$12:$B47)+2,FALSE)","v":0},{"$f":"HLOOKUP(S$7,$K$68:$DL$122,ROWS($B$12:$B47)+2,FALSE)","v":84},{"$f":"HLOOKUP(T$7,$K$68:$DL$122,ROWS($B$12:$B47)+2,FALSE)","v":0},{"$f":"HLOOKUP(U$7,$K$68:$DL$122,ROWS($B$12:$B47)+2,FALSE)","v":459},{"$f":"HLOOKUP(V$7,$K$68:$DL$122,ROWS($B$12:$B47)+2,FALSE)","v":364},{"$f":"HLOOKUP(W$7,$K$68:$DL$122,ROWS($B$12:$B47)+2,FALSE)","v":138},{"$f":"HLOOKUP(X$7,$K$68:$DL$122,ROWS($B$12:$B47)+2,FALSE)","v":1209},{"$f":"HLOOKUP(Y$7,$K$68:$DL$122,ROWS($B$12:$B47)+2,FALSE)","v":571},{"$f":"HLOOKUP(Z$7,$K$68:$DL$122,ROWS($B$12:$B47)+2,FALSE)","v":130},{"$f":"HLOOKUP(AA$7,$K$68:$DL$122,ROWS($B$12:$B47)+2,FALSE)","v":208},{"$f":"HLOOKUP(AB$7,$K$68:$DL$122,ROWS($B$12:$B47)+2,FALSE)","v":75},{"$f":"HLOOKUP(AC$7,$K$68:$DL$122,ROWS($B$12:$B47)+2,FALSE)","v":0},{"$f":"HLOOKUP(AD$7,$K$68:$DL$122,ROWS($B$12:$B47)+2,FALSE)","v":422},{"$f":"HLOOKUP(AE$7,$K$68:$DL$122,ROWS($B$12:$B47)+2,FALSE)","v":50},{"$f":"HLOOKUP(AF$7,$K$68:$DL$122,ROWS($B$12:$B47)+2,FALSE)","v":10},{"$f":"HLOOKUP(AG$7,$K$68:$DL$122,ROWS($B$12:$B47)+2,FALSE)","v":369},{"$f":"HLOOKUP(AH$7,$K$68:$DL$122,ROWS($B$12:$B47)+2,FALSE)","v":328},{"$f":"HLOOKUP(AI$7,$K$68:$DL$122,ROWS($B$12:$B47)+2,FALSE)","v":12244},{"$f":"HLOOKUP(AJ$7,$K$68:$DL$122,ROWS($B$12:$B47)+2,FALSE)","v":80},{"$f":"HLOOKUP(AK$7,$K$68:$DL$122,ROWS($B$12:$B47)+2,FALSE)","v":330},{"$f":"HLOOKUP(AL$7,$K$68:$DL$122,ROWS($B$12:$B47)+2,FALSE)","v":1227},{"$f":"HLOOKUP(AM$7,$K$68:$DL$122,ROWS($B$12:$B47)+2,FALSE)","v":218},{"$f":"HLOOKUP(AN$7,$K$68:$DL$122,ROWS($B$12:$B47)+2,FALSE)","v":845},{"$f":"HLOOKUP(AO$7,$K$68:$DL$122,ROWS($B$12:$B47)+2,FALSE)","v":0},{"$f":"HLOOKUP(AP$7,$K$68:$DL$122,ROWS($B$12:$B47)+2,FALSE)","v":183},{"$f":"HLOOKUP(AQ$7,$K$68:$DL$122,ROWS($B$12:$B47)+2,FALSE)","v":99},{"$f":"HLOOKUP(AR$7,$K$68:$DL$122,ROWS($B$12:$B47)+2,FALSE)","v":264},{"$f":"HLOOKUP(AS$7,$K$68:$DL$122,ROWS($B$12:$B47)+2,FALSE)","v":900},{"$f":"HLOOKUP(AT$7,$K$68:$DL$122,ROWS($B$12:$B47)+2,FALSE)","v":"N/A"},{"$f":"HLOOKUP(AU$7,$K$68:$DL$122,ROWS($B$12:$B47)+2,FALSE)","v":286},{"$f":"HLOOKUP(AV$7,$K$68:$DL$122,ROWS($B$12:$B47)+2,FALSE)","v":59},{"$f":"HLOOKUP(AW$7,$K$68:$DL$122,ROWS($B$12:$B47)+2,FALSE)","v":264},{"$f":"HLOOKUP(AX$7,$K$68:$DL$122,ROWS($B$12:$B47)+2,FALSE)","v":652},{"$f":"HLOOKUP(AY$7,$K$68:$DL$122,ROWS($B$12:$B47)+2,FALSE)","v":0},{"$f":"HLOOKUP(AZ$7,$K$68:$DL$122,ROWS($B$12:$B47)+2,FALSE)","v":1},{"$f":"HLOOKUP(BA$7,$K$68:$DL$122,ROWS($B$12:$B47)+2,FALSE)","v":1293},{"$f":"HLOOKUP(BB$7,$K$68:$DL$122,ROWS($B$12:$B47)+2,FALSE)","v":113},{"$f":"HLOOKUP(BC$7,$K$68:$DL$122,ROWS($B$12:$B47)+2,FALSE)","v":1862},{"$f":"HLOOKUP(BD$7,$K$68:$DL$122,ROWS($B$12:$B47)+2,FALSE)","v":429},{"$f":"HLOOKUP(BE$7,$K$68:$DL$122,ROWS($B$12:$B47)+2,FALSE)","v":0},{"$f":"HLOOKUP(BF$7,$K$68:$DL$122,ROWS($B$12:$B47)+2,FALSE)","v":166},{"$f":"HLOOKUP(BG$7,$K$68:$DL$122,ROWS($B$12:$B47)+2,FALSE)","v":404},{"$f":"HLOOKUP(BH$7,$K$68:$DL$122,ROWS($B$12:$B47)+2,FALSE)","v":0},{"$f":"HLOOKUP(BI$7,$K$68:$DL$122,ROWS($B$12:$B47)+2,FALSE)","v":1398},{"$f":"HLOOKUP(BJ$7,$K$68:$DL$122,ROWS($B$12:$B47)+2,FALSE)","v":139},{"$f":"HLOOKUP(BK$7,$K$68:$DL$122,ROWS($B$12:$B47)+2,FALSE)","v":76},{"$f":"HLOOKUP(BL$7+0.5,$K$68:$DL$122,ROWS($B$12:$B47)+2,FALSE)","v":3641},{"$f":"HLOOKUP(BM$7+0.5,$K$68:$DL$122,ROWS($B$12:$B47)+2,FALSE)","v":125},{"$f":"HLOOKUP(BN$7+0.5,$K$68:$DL$122,ROWS($B$12:$B47)+2,FALSE)","v":365},{"$f":"HLOOKUP(BO$7+0.5,$K$68:$DL$122,ROWS($B$12:$B47)+2,FALSE)","v":613},{"$f":"HLOOKUP(BP$7+0.5,$K$68:$DL$122,ROWS($B$12:$B47)+2,FALSE)","v":293},{"$f":"HLOOKUP(BQ$7+0.5,$K$68:$DL$122,ROWS($B$12:$B47)+2,FALSE)","v":1011},{"$f":"HLOOKUP(BR$7+0.5,$K$68:$DL$122,ROWS($B$12:$B47)+2,FALSE)","v":612},{"$f":"HLOOKUP(BS$7+0.5,$K$68:$DL$122,ROWS($B$12:$B47)+2,FALSE)","v":143},{"$f":"HLOOKUP(BT$7+0.5,$K$68:$DL$122,ROWS($B$12:$B47)+2,FALSE)","v":100},{"$f":"HLOOKUP(BU$7+0.5,$K$68:$DL$122,ROWS($B$12:$B47)+2,FALSE)","v":143},{"$f":"HLOOKUP(BV$7+0.5,$K$68:$DL$122,ROWS($B$12:$B47)+2,FALSE)","v":303},{"$f":"HLOOKUP(BW$7+0.5,$K$68:$DL$122,ROWS($B$12:$B47)+2,FALSE)","v":410},{"$f":"HLOOKUP(BX$7+0.5,$K$68:$DL$122,ROWS($B$12:$B47)+2,FALSE)","v":216},{"$f":"HLOOKUP(BY$7+0.5,$K$68:$DL$122,ROWS($B$12:$B47)+2,FALSE)","v":817},{"$f":"HLOOKUP(BZ$7+0.5,$K$68:$DL$122,ROWS($B$12:$B47)+2,FALSE)","v":504},{"$f":"HLOOKUP(CA$7+0.5,$K$68:$DL$122,ROWS($B$12:$B47)+2,FALSE)","v":171},{"$f":"HLOOKUP(CB$7+0.5,$K$68:$DL$122,ROWS($B$12:$B47)+2,FALSE)","v":178},{"$f":"HLOOKUP(CC$7+0.5,$K$68:$DL$122,ROWS($B$12:$B47)+2,FALSE)","v":96},{"$f":"HLOOKUP(CD$7+0.5,$K$68:$DL$122,ROWS($B$12:$B47)+2,FALSE)","v":143},{"$f":"HLOOKUP(CE$7+0.5,$K$68:$DL$122,ROWS($B$12:$B47)+2,FALSE)","v":441},{"$f":"HLOOKUP(CF$7+0.5,$K$68:$DL$122,ROWS($B$12:$B47)+2,FALSE)","v":72},{"$f":"HLOOKUP(CG$7+0.5,$K$68:$DL$122,ROWS($B$12:$B47)+2,FALSE)","v":16},{"$f":"HLOOKUP(CH$7+0.5,$K$68:$DL$122,ROWS($B$12:$B47)+2,FALSE)","v":359},{"$f":"HLOOKUP(CI$7+0.5,$K$68:$DL$122,ROWS($B$12:$B47)+2,FALSE)","v":324},{"$f":"HLOOKUP(CJ$7+0.5,$K$68:$DL$122,ROWS($B$12:$B47)+2,FALSE)","v":2374},{"$f":"HLOOKUP(CK$7+0.5,$K$68:$DL$122,ROWS($B$12:$B47)+2,FALSE)","v":143},{"$f":"HLOOKUP(CL$7+0.5,$K$68:$DL$122,ROWS($B$12:$B47)+2,FALSE)","v":284},{"$f":"HLOOKUP(CM$7+0.5,$K$68:$DL$122,ROWS($B$12:$B47)+2,FALSE)","v":612},{"$f":"HLOOKUP(CN$7+0.5,$K$68:$DL$122,ROWS($B$12:$B47)+2,FALSE)","v":170},{"$f":"HLOOKUP(CO$7+0.5,$K$68:$DL$122,ROWS($B$12:$B47)+2,FALSE)","v":860},{"$f":"HLOOKUP(CP$7+0.5,$K$68:$DL$122,ROWS($B$12:$B47)+2,FALSE)","v":143},{"$f":"HLOOKUP(CQ$7+0.5,$K$68:$DL$122,ROWS($B$12:$B47)+2,FALSE)","v":306},{"$f":"HLOOKUP(CR$7+0.5,$K$68:$DL$122,ROWS($B$12:$B47)+2,FALSE)","v":112},{"$f":"HLOOKUP(CS$7+0.5,$K$68:$DL$122,ROWS($B$12:$B47)+2,FALSE)","v":233},{"$f":"HLOOKUP(CT$7+0.5,$K$68:$DL$122,ROWS($B$12:$B47)+2,FALSE)","v":678},{"$f":"HLOOKUP(CU$7+0.5,$K$68:$DL$122,ROWS($B$12:$B47)+2,FALSE)","v":"N/A"},{"$f":"HLOOKUP(CV$7+0.5,$K$68:$DL$122,ROWS($B$12:$B47)+2,FALSE)","v":248},{"$f":"HLOOKUP(CW$7+0.5,$K$68:$DL$122,ROWS($B$12:$B47)+2,FALSE)","v":68},{"$f":"HLOOKUP(CX$7+0.5,$K$68:$DL$122,ROWS($B$12:$B47)+2,FALSE)","v":256},{"$f":"HLOOKUP(CY$7+0.5,$K$68:$DL$122,ROWS($B$12:$B47)+2,FALSE)","v":637},{"$f":"HLOOKUP(CZ$7+0.5,$K$68:$DL$122,ROWS($B$12:$B47)+2,FALSE)","v":143},{"$f":"HLOOKUP(DA$7+0.5,$K$68:$DL$122,ROWS($B$12:$B47)+2,FALSE)","v":2},{"$f":"HLOOKUP(DB$7+0.5,$K$68:$DL$122,ROWS($B$12:$B47)+2,FALSE)","v":714},{"$f":"HLOOKUP(DC$7+0.5,$K$68:$DL$122,ROWS($B$12:$B47)+2,FALSE)","v":120},{"$f":"HLOOKUP(DD$7+0.5,$K$68:$DL$122,ROWS($B$12:$B47)+2,FALSE)","v":1029},{"$f":"HLOOKUP(DE$7+0.5,$K$68:$DL$122,ROWS($B$12:$B47)+2,FALSE)","v":427},{"$f":"HLOOKUP(DF$7+0.5,$K$68:$DL$122,ROWS($B$12:$B47)+2,FALSE)","v":143},{"$f":"HLOOKUP(DG$7+0.5,$K$68:$DL$122,ROWS($B$12:$B47)+2,FALSE)","v":202},{"$f":"HLOOKUP(DH$7+0.5,$K$68:$DL$122,ROWS($B$12:$B47)+2,FALSE)","v":312},{"$f":"HLOOKUP(DI$7+0.5,$K$68:$DL$122,ROWS($B$12:$B47)+2,FALSE)","v":143},{"$f":"HLOOKUP(DJ$7+0.5,$K$68:$DL$122,ROWS($B$12:$B47)+2,FALSE)","v":601},{"$f":"HLOOKUP(DK$7+0.5,$K$68:$DL$122,ROWS($B$12:$B47)+2,FALSE)","v":102},{"$f":"HLOOKUP(DL$7+0.5,$K$68:$DL$122,ROWS($B$12:$B47)+2,FALSE)","v":110}]
[null,null,"Ohio",11418944,4418,9764366,32087,1425709,29701,2.7446197564307034E-2,{"$f":"HLOOKUP(K$7,$K$68:$DL$122,ROWS($B$12:$B48)+2,FALSE)","v":191778},{"$f":"HLOOKUP(L$7,$K$68:$DL$122,ROWS($B$12:$B48)+2,FALSE)","v":1567},{"$f":"HLOOKUP(M$7,$K$68:$DL$122,ROWS($B$12:$B48)+2,FALSE)","v":1637},{"$f":"HLOOKUP(N$7,$K$68:$DL$122,ROWS($B$12:$B48)+2,FALSE)","v":6763},{"$f":"HLOOKUP(O$7,$K$68:$DL$122,ROWS($B$12:$B48)+2,FALSE)","v":1952},{"$f":"HLOOKUP(P$7,$K$68:$DL$122,ROWS($B$12:$B48)+2,FALSE)","v":9032},{"$f":"HLOOKUP(Q$7,$K$68:$DL$122,ROWS($B$12:$B48)+2,FALSE)","v":2690},{"$f":"HLOOKUP(R$7,$K$68:$DL$122,ROWS($B$12:$B48)+2,FALSE)","v":1189},{"$f":"HLOOKUP(S$7,$K$68:$DL$122,ROWS($B$12:$B48)+2,FALSE)","v":263},{"$f":"HLOOKUP(T$7,$K$68:$DL$122,ROWS($B$12:$B48)+2,FALSE)","v":587},{"$f":"HLOOKUP(U$7,$K$68:$DL$122,ROWS($B$12:$B48)+2,FALSE)","v":16492},{"$f":"HLOOKUP(V$7,$K$68:$DL$122,ROWS($B$12:$B48)+2,FALSE)","v":4290},{"$f":"HLOOKUP(W$7,$K$68:$DL$122,ROWS($B$12:$B48)+2,FALSE)","v":1044},{"$f":"HLOOKUP(X$7,$K$68:$DL$122,ROWS($B$12:$B48)+2,FALSE)","v":312},{"$f":"HLOOKUP(Y$7,$K$68:$DL$122,ROWS($B$12:$B48)+2,FALSE)","v":7027},{"$f":"HLOOKUP(Z$7,$K$68:$DL$122,ROWS($B$12:$B48)+2,FALSE)","v":11588},{"$f":"HLOOKUP(AA$7,$K$68:$DL$122,ROWS($B$12:$B48)+2,FALSE)","v":1146},{"$f":"HLOOKUP(AB$7,$K$68:$DL$122,ROWS($B$12:$B48)+2,FALSE)","v":657},{"$f":"HLOOKUP(AC$7,$K$68:$DL$122,ROWS($B$12:$B48)+2,FALSE)","v":12744},{"$f":"HLOOKUP(AD$7,$K$68:$DL$122,ROWS($B$12:$B48)+2,FALSE)","v":1872},{"$f":"HLOOKUP(AE$7,$K$68:$DL$122,ROWS($B$12:$B48)+2,FALSE)","v":0},{"$f":"HLOOKUP(AF$7,$K$68:$DL$122,ROWS($B$12:$B48)+2,FALSE)","v":4982},{"$f":"HLOOKUP(AG$7,$K$68:$DL$122,ROWS($B$12:$B48)+2,FALSE)","v":2101},{"$f":"HLOOKUP(AH$7,$K$68:$DL$122,ROWS($B$12:$B48)+2,FALSE)","v":14330},{"$f":"HLOOKUP(AI$7,$K$68:$DL$122,ROWS($B$12:$B48)+2,FALSE)","v":1788},{"$f":"HLOOKUP(AJ$7,$K$68:$DL$122,ROWS($B$12:$B48)+2,FALSE)","v":691},{"$f":"HLOOKUP(AK$7,$K$68:$DL$122,ROWS($B$12:$B48)+2,FALSE)","v":2003},{"$f":"HLOOKUP(AL$7,$K$68:$DL$122,ROWS($B$12:$B48)+2,FALSE)","v":101},{"$f":"HLOOKUP(AM$7,$K$68:$DL$122,ROWS($B$12:$B48)+2,FALSE)","v":1176},{"$f":"HLOOKUP(AN$7,$K$68:$DL$122,ROWS($B$12:$B48)+2,FALSE)","v":1851},{"$f":"HLOOKUP(AO$7,$K$68:$DL$122,ROWS($B$12:$B48)+2,FALSE)","v":1992},{"$f":"HLOOKUP(AP$7,$K$68:$DL$122,ROWS($B$12:$B48)+2,FALSE)","v":3936},{"$f":"HLOOKUP(AQ$7,$K$68:$DL$122,ROWS($B$12:$B48)+2,FALSE)","v":255},{"$f":"HLOOKUP(AR$7,$K$68:$DL$122,ROWS($B$12:$B48)+2,FALSE)","v":8784},{"$f":"HLOOKUP(AS$7,$K$68:$DL$122,ROWS($B$12:$B48)+2,FALSE)","v":4572},{"$f":"HLOOKUP(AT$7,$K$68:$DL$122,ROWS($B$12:$B48)+2,FALSE)","v":204},{"$f":"HLOOKUP(AU$7,$K$68:$DL$122,ROWS($B$12:$B48)+2,FALSE)","v":"N/A"},{"$f":"HLOOKUP(AV$7,$K$68:$DL$122,ROWS($B$12:$B48)+2,FALSE)","v":2333},{"$f":"HLOOKUP(AW$7,$K$68:$DL$122,ROWS($B$12:$B48)+2,FALSE)","v":1326},{"$f":"HLOOKUP(AX$7,$K$68:$DL$122,ROWS($B$12:$B48)+2,FALSE)","v":14292},{"$f":"HLOOKUP(AY$7,$K$68:$DL$122,ROWS($B$12:$B48)+2,FALSE)","v":369},{"$f":"HLOOKUP(AZ$7,$K$68:$DL$122,ROWS($B$12:$B48)+2,FALSE)","v":3826},{"$f":"HLOOKUP(BA$7,$K$68:$DL$122,ROWS($B$12:$B48)+2,FALSE)","v":34},{"$f":"HLOOKUP(BB$7,$K$68:$DL$122,ROWS($B$12:$B48)+2,FALSE)","v":6468},{"$f":"HLOOKUP(BC$7,$K$68:$DL$122,ROWS($B$12:$B48)+2,FALSE)","v":11987},{"$f":"HLOOKUP(BD$7,$K$68:$DL$122,ROWS($B$12:$B48)+2,FALSE)","v":691},{"$f":"HLOOKUP(BE$7,$K$68:$DL$122,ROWS($B$12:$B48)+2,FALSE)","v":68},{"$f":"HLOOKUP(BF$7,$K$68:$DL$122,ROWS($B$12:$B48)+2,FALSE)","v":5425},{"$f":"HLOOKUP(BG$7,$K$68:$DL$122,ROWS($B$12:$B48)+2,FALSE)","v":1979},{"$f":"HLOOKUP(BH$7,$K$68:$DL$122,ROWS($B$12:$B48)+2,FALSE)","v":7548},{"$f":"HLOOKUP(BI$7,$K$68:$DL$122,ROWS($B$12:$B48)+2,FALSE)","v":2534},{"$f":"HLOOKUP(BJ$7,$K$68:$DL$122,ROWS($B$12:$B48)+2,FALSE)","v":1280},{"$f":"HLOOKUP(BK$7,$K$68:$DL$122,ROWS($B$12:$B48)+2,FALSE)","v":1607},{"$f":"HLOOKUP(BL$7+0.5,$K$68:$DL$122,ROWS($B$12:$B48)+2,FALSE)","v":11799},{"$f":"HLOOKUP(BM$7+0.5,$K$68:$DL$122,ROWS($B$12:$B48)+2,FALSE)","v":705},{"$f":"HLOOKUP(BN$7+0.5,$K$68:$DL$122,ROWS($B$12:$B48)+2,FALSE)","v":1579},{"$f":"HLOOKUP(BO$7+0.5,$K$68:$DL$122,ROWS($B$12:$B48)+2,FALSE)","v":3193},{"$f":"HLOOKUP(BP$7+0.5,$K$68:$DL$122,ROWS($B$12:$B48)+2,FALSE)","v":1128},{"$f":"HLOOKUP(BQ$7+0.5,$K$68:$DL$122,ROWS($B$12:$B48)+2,FALSE)","v":1771},{"$f":"HLOOKUP(BR$7+0.5,$K$68:$DL$122,ROWS($B$12:$B48)+2,FALSE)","v":1023},{"$f":"HLOOKUP(BS$7+0.5,$K$68:$DL$122,ROWS($B$12:$B48)+2,FALSE)","v":663},{"$f":"HLOOKUP(BT$7+0.5,$K$68:$DL$122,ROWS($B$12:$B48)+2,FALSE)","v":270},{"$f":"HLOOKUP(BU$7+0.5,$K$68:$DL$122,ROWS($B$12:$B48)+2,FALSE)","v":449},{"$f":"HLOOKUP(BV$7+0.5,$K$68:$DL$122,ROWS($B$12:$B48)+2,FALSE)","v":3173},{"$f":"HLOOKUP(BW$7+0.5,$K$68:$DL$122,ROWS($B$12:$B48)+2,FALSE)","v":1143},{"$f":"HLOOKUP(BX$7+0.5,$K$68:$DL$122,ROWS($B$12:$B48)+2,FALSE)","v":694},{"$f":"HLOOKUP(BY$7+0.5,$K$68:$DL$122,ROWS($B$12:$B48)+2,FALSE)","v":223},{"$f":"HLOOKUP(BZ$7+0.5,$K$68:$DL$122,ROWS($B$12:$B48)+2,FALSE)","v":1504},{"$f":"HLOOKUP(CA$7+0.5,$K$68:$DL$122,ROWS($B$12:$B48)+2,FALSE)","v":2147},{"$f":"HLOOKUP(CB$7+0.5,$K$68:$DL$122,ROWS($B$12:$B48)+2,FALSE)","v":614},{"$f":"HLOOKUP(CC$7+0.5,$K$68:$DL$122,ROWS($B$12:$B48)+2,FALSE)","v":519},{"$f":"HLOOKUP(CD$7+0.5,$K$68:$DL$122,ROWS($B$12:$B48)+2,FALSE)","v":3507},{"$f":"HLOOKUP(CE$7+0.5,$K$68:$DL$122,ROWS($B$12:$B48)+2,FALSE)","v":1784},{"$f":"HLOOKUP(CF$7+0.5,$K$68:$DL$122,ROWS($B$12:$B48)+2,FALSE)","v":187},{"$f":"HLOOKUP(CG$7+0.5,$K$68:$DL$122,ROWS($B$12:$B48)+2,FALSE)","v":1578},{"$f":"HLOOKUP(CH$7+0.5,$K$68:$DL$122,ROWS($B$12:$B48)+2,FALSE)","v":1008},{"$f":"HLOOKUP(CI$7+0.5,$K$68:$DL$122,ROWS($B$12:$B48)+2,FALSE)","v":2896},{"$f":"HLOOKUP(CJ$7+0.5,$K$68:$DL$122,ROWS($B$12:$B48)+2,FALSE)","v":784},{"$f":"HLOOKUP(CK$7+0.5,$K$68:$DL$122,ROWS($B$12:$B48)+2,FALSE)","v":462},{"$f":"HLOOKUP(CL$7+0.5,$K$68:$DL$122,ROWS($B$12:$B48)+2,FALSE)","v":873},{"$f":"HLOOKUP(CM$7+0.5,$K$68:$DL$122,ROWS($B$12:$B48)+2,FALSE)","v":172},{"$f":"HLOOKUP(CN$7+0.5,$K$68:$DL$122,ROWS($B$12:$B48)+2,FALSE)","v":616},{"$f":"HLOOKUP(CO$7+0.5,$K$68:$DL$122,ROWS($B$12:$B48)+2,FALSE)","v":1107},{"$f":"HLOOKUP(CP$7+0.5,$K$68:$DL$122,ROWS($B$12:$B48)+2,FALSE)","v":1509},{"$f":"HLOOKUP(CQ$7+0.5,$K$68:$DL$122,ROWS($B$12:$B48)+2,FALSE)","v":1643},{"$f":"HLOOKUP(CR$7+0.5,$K$68:$DL$122,ROWS($B$12:$B48)+2,FALSE)","v":287},{"$f":"HLOOKUP(CS$7+0.5,$K$68:$DL$122,ROWS($B$12:$B48)+2,FALSE)","v":2659},{"$f":"HLOOKUP(CT$7+0.5,$K$68:$DL$122,ROWS($B$12:$B48)+2,FALSE)","v":1270},{"$f":"HLOOKUP(CU$7+0.5,$K$68:$DL$122,ROWS($B$12:$B48)+2,FALSE)","v":270},{"$f":"HLOOKUP(CV$7+0.5,$K$68:$DL$122,ROWS($B$12:$B48)+2,FALSE)","v":"N/A"},{"$f":"HLOOKUP(CW$7+0.5,$K$68:$DL$122,ROWS($B$12:$B48)+2,FALSE)","v":1263},{"$f":"HLOOKUP(CX$7+0.5,$K$68:$DL$122,ROWS($B$12:$B48)+2,FALSE)","v":614},{"$f":"HLOOKUP(CY$7+0.5,$K$68:$DL$122,ROWS($B$12:$B48)+2,FALSE)","v":2842},{"$f":"HLOOKUP(CZ$7+0.5,$K$68:$DL$122,ROWS($B$12:$B48)+2,FALSE)","v":353},{"$f":"HLOOKUP(DA$7+0.5,$K$68:$DL$122,ROWS($B$12:$B48)+2,FALSE)","v":1192},{"$f":"HLOOKUP(DB$7+0.5,$K$68:$DL$122,ROWS($B$12:$B48)+2,FALSE)","v":68},{"$f":"HLOOKUP(DC$7+0.5,$K$68:$DL$122,ROWS($B$12:$B48)+2,FALSE)","v":2336},{"$f":"HLOOKUP(DD$7+0.5,$K$68:$DL$122,ROWS($B$12:$B48)+2,FALSE)","v":4302},{"$f":"HLOOKUP(DE$7+0.5,$K$68:$DL$122,ROWS($B$12:$B48)+2,FALSE)","v":469},{"$f":"HLOOKUP(DF$7+0.5,$K$68:$DL$122,ROWS($B$12:$B48)+2,FALSE)","v":77},{"$f":"HLOOKUP(DG$7+0.5,$K$68:$DL$122,ROWS($B$12:$B48)+2,FALSE)","v":2020},{"$f":"HLOOKUP(DH$7+0.5,$K$68:$DL$122,ROWS($B$12:$B48)+2,FALSE)","v":965},{"$f":"HLOOKUP(DI$7+0.5,$K$68:$DL$122,ROWS($B$12:$B48)+2,FALSE)","v":1866},{"$f":"HLOOKUP(DJ$7+0.5,$K$68:$DL$122,ROWS($B$12:$B48)+2,FALSE)","v":1620},{"$f":"HLOOKUP(DK$7+0.5,$K$68:$DL$122,ROWS($B$12:$B48)+2,FALSE)","v":793},{"$f":"HLOOKUP(DL$7+0.5,$K$68:$DL$122,ROWS($B$12:$B48)+2,FALSE)","v":1062}]
[null,null,"Oklahoma",3742698,2585,3089041,15209,528498,15584,1.5582012005582607E-2,{"$f":"HLOOKUP(K$7,$K$68:$DL$122,ROWS($B$12:$B49)+2,FALSE)","v":108878},{"$f":"HLOOKUP(L$7,$K$68:$DL$122,ROWS($B$12:$B49)+2,FALSE)","v":591},{"$f":"HLOOKUP(M$7,$K$68:$DL$122,ROWS($B$12:$B49)+2,FALSE)","v":1137},{"$f":"HLOOKUP(N$7,$K$68:$DL$122,ROWS($B$12:$B49)+2,FALSE)","v":3770},{"$f":"HLOOKUP(O$7,$K$68:$DL$122,ROWS($B$12:$B49)+2,FALSE)","v":6894},{"$f":"HLOOKUP(P$7,$K$68:$DL$122,ROWS($B$12:$B49)+2,FALSE)","v":8233},{"$f":"HLOOKUP(Q$7,$K$68:$DL$122,ROWS($B$12:$B49)+2,FALSE)","v":3273},{"$f":"HLOOKUP(R$7,$K$68:$DL$122,ROWS($B$12:$B49)+2,FALSE)","v":97},{"$f":"HLOOKUP(S$7,$K$68:$DL$122,ROWS($B$12:$B49)+2,FALSE)","v":66},{"$f":"HLOOKUP(T$7,$K$68:$DL$122,ROWS($B$12:$B49)+2,FALSE)","v":191},{"$f":"HLOOKUP(U$7,$K$68:$DL$122,ROWS($B$12:$B49)+2,FALSE)","v":6056},{"$f":"HLOOKUP(V$7,$K$68:$DL$122,ROWS($B$12:$B49)+2,FALSE)","v":3514},{"$f":"HLOOKUP(W$7,$K$68:$DL$122,ROWS($B$12:$B49)+2,FALSE)","v":140},{"$f":"HLOOKUP(X$7,$K$68:$DL$122,ROWS($B$12:$B49)+2,FALSE)","v":21},{"$f":"HLOOKUP(Y$7,$K$68:$DL$122,ROWS($B$12:$B49)+2,FALSE)","v":2179},{"$f":"HLOOKUP(Z$7,$K$68:$DL$122,ROWS($B$12:$B49)+2,FALSE)","v":2113},{"$f":"HLOOKUP(AA$7,$K$68:$DL$122,ROWS($B$12:$B49)+2,FALSE)","v":580},{"$f":"HLOOKUP(AB$7,$K$68:$DL$122,ROWS($B$12:$B49)+2,FALSE)","v":4626},{"$f":"HLOOKUP(AC$7,$K$68:$DL$122,ROWS($B$12:$B49)+2,FALSE)","v":1398},{"$f":"HLOOKUP(AD$7,$K$68:$DL$122,ROWS($B$12:$B49)+2,FALSE)","v":1934},{"$f":"HLOOKUP(AE$7,$K$68:$DL$122,ROWS($B$12:$B49)+2,FALSE)","v":271},{"$f":"HLOOKUP(AF$7,$K$68:$DL$122,ROWS($B$12:$B49)+2,FALSE)","v":432},{"$f":"HLOOKUP(AG$7,$K$68:$DL$122,ROWS($B$12:$B49)+2,FALSE)","v":160},{"$f":"HLOOKUP(AH$7,$K$68:$DL$122,ROWS($B$12:$B49)+2,FALSE)","v":1038},{"$f":"HLOOKUP(AI$7,$K$68:$DL$122,ROWS($B$12:$B49)+2,FALSE)","v":497},{"$f":"HLOOKUP(AJ$7,$K$68:$DL$122,ROWS($B$12:$B49)+2,FALSE)","v":199},{"$f":"HLOOKUP(AK$7,$K$68:$DL$122,ROWS($B$12:$B49)+2,FALSE)","v":5781},{"$f":"HLOOKUP(AL$7,$K$68:$DL$122,ROWS($B$12:$B49)+2,FALSE)","v":803},{"$f":"HLOOKUP(AM$7,$K$68:$DL$122,ROWS($B$12:$B49)+2,FALSE)","v":1979},{"$f":"HLOOKUP(AN$7,$K$68:$DL$122,ROWS($B$12:$B49)+2,FALSE)","v":705},{"$f":"HLOOKUP(AO$7,$K$68:$DL$122,ROWS($B$12:$B49)+2,FALSE)","v":0},{"$f":"HLOOKUP(AP$7,$K$68:$DL$122,ROWS($B$12:$B49)+2,FALSE)","v":391},{"$f":"HLOOKUP(AQ$7,$K$68:$DL$122,ROWS($B$12:$B49)+2,FALSE)","v":403},{"$f":"HLOOKUP(AR$7,$K$68:$DL$122,ROWS($B$12:$B49)+2,FALSE)","v":1858},{"$f":"HLOOKUP(AS$7,$K$68:$DL$122,ROWS($B$12:$B49)+2,FALSE)","v":1322},{"$f":"HLOOKUP(AT$7,$K$68:$DL$122,ROWS($B$12:$B49)+2,FALSE)","v":928},{"$f":"HLOOKUP(AU$7,$K$68:$DL$122,ROWS($B$12:$B49)+2,FALSE)","v":1608},{"$f":"HLOOKUP(AV$7,$K$68:$DL$122,ROWS($B$12:$B49)+2,FALSE)","v":"N/A"},{"$f":"HLOOKUP(AW$7,$K$68:$DL$122,ROWS($B$12:$B49)+2,FALSE)","v":917},{"$f":"HLOOKUP(AX$7,$K$68:$DL$122,ROWS($B$12:$B49)+2,FALSE)","v":1116},{"$f":"HLOOKUP(AY$7,$K$68:$DL$122,ROWS($B$12:$B49)+2,FALSE)","v":152},{"$f":"HLOOKUP(AZ$7,$K$68:$DL$122,ROWS($B$12:$B49)+2,FALSE)","v":2015},{"$f":"HLOOKUP(BA$7,$K$68:$DL$122,ROWS($B$12:$B49)+2,FALSE)","v":600},{"$f":"HLOOKUP(BB$7,$K$68:$DL$122,ROWS($B$12:$B49)+2,FALSE)","v":1700},{"$f":"HLOOKUP(BC$7,$K$68:$DL$122,ROWS($B$12:$B49)+2,FALSE)","v":31595},{"$f":"HLOOKUP(BD$7,$K$68:$DL$122,ROWS($B$12:$B49)+2,FALSE)","v":587},{"$f":"HLOOKUP(BE$7,$K$68:$DL$122,ROWS($B$12:$B49)+2,FALSE)","v":0},{"$f":"HLOOKUP(BF$7,$K$68:$DL$122,ROWS($B$12:$B49)+2,FALSE)","v":1013},{"$f":"HLOOKUP(BG$7,$K$68:$DL$122,ROWS($B$12:$B49)+2,FALSE)","v":1246},{"$f":"HLOOKUP(BH$7,$K$68:$DL$122,ROWS($B$12:$B49)+2,FALSE)","v":44},{"$f":"HLOOKUP(BI$7,$K$68:$DL$122,ROWS($B$12:$B49)+2,FALSE)","v":942},{"$f":"HLOOKUP(BJ$7,$K$68:$DL$122,ROWS($B$12:$B49)+2,FALSE)","v":1763},{"$f":"HLOOKUP(BK$7,$K$68:$DL$122,ROWS($B$12:$B49)+2,FALSE)","v":105},{"$f":"HLOOKUP(BL$7+0.5,$K$68:$DL$122,ROWS($B$12:$B49)+2,FALSE)","v":7998},{"$f":"HLOOKUP(BM$7+0.5,$K$68:$DL$122,ROWS($B$12:$B49)+2,FALSE)","v":368},{"$f":"HLOOKUP(BN$7+0.5,$K$68:$DL$122,ROWS($B$12:$B49)+2,FALSE)","v":857},{"$f":"HLOOKUP(BO$7+0.5,$K$68:$DL$122,ROWS($B$12:$B49)+2,FALSE)","v":1522},{"$f":"HLOOKUP(BP$7+0.5,$K$68:$DL$122,ROWS($B$12:$B49)+2,FALSE)","v":2060},{"$f":"HLOOKUP(BQ$7+0.5,$K$68:$DL$122,ROWS($B$12:$B49)+2,FALSE)","v":2583},{"$f":"HLOOKUP(BR$7+0.5,$K$68:$DL$122,ROWS($B$12:$B49)+2,FALSE)","v":1511},{"$f":"HLOOKUP(BS$7+0.5,$K$68:$DL$122,ROWS($B$12:$B49)+2,FALSE)","v":138},{"$f":"HLOOKUP(BT$7+0.5,$K$68:$DL$122,ROWS($B$12:$B49)+2,FALSE)","v":110},{"$f":"HLOOKUP(BU$7+0.5,$K$68:$DL$122,ROWS($B$12:$B49)+2,FALSE)","v":234},{"$f":"HLOOKUP(BV$7+0.5,$K$68:$DL$122,ROWS($B$12:$B49)+2,FALSE)","v":1588},{"$f":"HLOOKUP(BW$7+0.5,$K$68:$DL$122,ROWS($B$12:$B49)+2,FALSE)","v":1642},{"$f":"HLOOKUP(BX$7+0.5,$K$68:$DL$122,ROWS($B$12:$B49)+2,FALSE)","v":148},{"$f":"HLOOKUP(BY$7+0.5,$K$68:$DL$122,ROWS($B$12:$B49)+2,FALSE)","v":35},{"$f":"HLOOKUP(BZ$7+0.5,$K$68:$DL$122,ROWS($B$12:$B49)+2,FALSE)","v":1297},{"$f":"HLOOKUP(CA$7+0.5,$K$68:$DL$122,ROWS($B$12:$B49)+2,FALSE)","v":1098},{"$f":"HLOOKUP(CB$7+0.5,$K$68:$DL$122,ROWS($B$12:$B49)+2,FALSE)","v":536},{"$f":"HLOOKUP(CC$7+0.5,$K$68:$DL$122,ROWS($B$12:$B49)+2,FALSE)","v":1250},{"$f":"HLOOKUP(CD$7+0.5,$K$68:$DL$122,ROWS($B$12:$B49)+2,FALSE)","v":747},{"$f":"HLOOKUP(CE$7+0.5,$K$68:$DL$122,ROWS($B$12:$B49)+2,FALSE)","v":727},{"$f":"HLOOKUP(CF$7+0.5,$K$68:$DL$122,ROWS($B$12:$B49)+2,FALSE)","v":425},{"$f":"HLOOKUP(CG$7+0.5,$K$68:$DL$122,ROWS($B$12:$B49)+2,FALSE)","v":312},{"$f":"HLOOKUP(CH$7+0.5,$K$68:$DL$122,ROWS($B$12:$B49)+2,FALSE)","v":103},{"$f":"HLOOKUP(CI$7+0.5,$K$68:$DL$122,ROWS($B$12:$B49)+2,FALSE)","v":848},{"$f":"HLOOKUP(CJ$7+0.5,$K$68:$DL$122,ROWS($B$12:$B49)+2,FALSE)","v":341},{"$f":"HLOOKUP(CK$7+0.5,$K$68:$DL$122,ROWS($B$12:$B49)+2,FALSE)","v":202},{"$f":"HLOOKUP(CL$7+0.5,$K$68:$DL$122,ROWS($B$12:$B49)+2,FALSE)","v":1311},{"$f":"HLOOKUP(CM$7+0.5,$K$68:$DL$122,ROWS($B$12:$B49)+2,FALSE)","v":793},{"$f":"HLOOKUP(CN$7+0.5,$K$68:$DL$122,ROWS($B$12:$B49)+2,FALSE)","v":1196},{"$f":"HLOOKUP(CO$7+0.5,$K$68:$DL$122,ROWS($B$12:$B49)+2,FALSE)","v":532},{"$f":"HLOOKUP(CP$7+0.5,$K$68:$DL$122,ROWS($B$12:$B49)+2,FALSE)","v":163},{"$f":"HLOOKUP(CQ$7+0.5,$K$68:$DL$122,ROWS($B$12:$B49)+2,FALSE)","v":333},{"$f":"HLOOKUP(CR$7+0.5,$K$68:$DL$122,ROWS($B$12:$B49)+2,FALSE)","v":259},{"$f":"HLOOKUP(CS$7+0.5,$K$68:$DL$122,ROWS($B$12:$B49)+2,FALSE)","v":925},{"$f":"HLOOKUP(CT$7+0.5,$K$68:$DL$122,ROWS($B$12:$B49)+2,FALSE)","v":800},{"$f":"HLOOKUP(CU$7+0.5,$K$68:$DL$122,ROWS($B$12:$B49)+2,FALSE)","v":805},{"$f":"HLOOKUP(CV$7+0.5,$K$68:$DL$122,ROWS($B$12:$B49)+2,FALSE)","v":791},{"$f":"HLOOKUP(CW$7+0.5,$K$68:$DL$122,ROWS($B$12:$B49)+2,FALSE)","v":"N/A"},{"$f":"HLOOKUP(CX$7+0.5,$K$68:$DL$122,ROWS($B$12:$B49)+2,FALSE)","v":713},{"$f":"HLOOKUP(CY$7+0.5,$K$68:$DL$122,ROWS($B$12:$B49)+2,FALSE)","v":492},{"$f":"HLOOKUP(CZ$7+0.5,$K$68:$DL$122,ROWS($B$12:$B49)+2,FALSE)","v":179},{"$f":"HLOOKUP(DA$7+0.5,$K$68:$DL$122,ROWS($B$12:$B49)+2,FALSE)","v":971},{"$f":"HLOOKUP(DB$7+0.5,$K$68:$DL$122,ROWS($B$12:$B49)+2,FALSE)","v":379},{"$f":"HLOOKUP(DC$7+0.5,$K$68:$DL$122,ROWS($B$12:$B49)+2,FALSE)","v":1101},{"$f":"HLOOKUP(DD$7+0.5,$K$68:$DL$122,ROWS($B$12:$B49)+2,FALSE)","v":4987},{"$f":"HLOOKUP(DE$7+0.5,$K$68:$DL$122,ROWS($B$12:$B49)+2,FALSE)","v":450},{"$f":"HLOOKUP(DF$7+0.5,$K$68:$DL$122,ROWS($B$12:$B49)+2,FALSE)","v":163},{"$f":"HLOOKUP(DG$7+0.5,$K$68:$DL$122,ROWS($B$12:$B49)+2,FALSE)","v":610},{"$f":"HLOOKUP(DH$7+0.5,$K$68:$DL$122,ROWS($B$12:$B49)+2,FALSE)","v":620},{"$f":"HLOOKUP(DI$7+0.5,$K$68:$DL$122,ROWS($B$12:$B49)+2,FALSE)","v":68},{"$f":"HLOOKUP(DJ$7+0.5,$K$68:$DL$122,ROWS($B$12:$B49)+2,FALSE)","v":474},{"$f":"HLOOKUP(DK$7+0.5,$K$68:$DL$122,ROWS($B$12:$B49)+2,FALSE)","v":1572},{"$f":"HLOOKUP(DL$7+0.5,$K$68:$DL$122,ROWS($B$12:$B49)+2,FALSE)","v":139}]
[null,null,"Oregon",3828714,3857,3128121,20096,549332,19087,1.8305193221643021E-2,{"$f":"HLOOKUP(K$7,$K$68:$DL$122,ROWS($B$12:$B50)+2,FALSE)","v":127906},{"$f":"HLOOKUP(L$7,$K$68:$DL$122,ROWS($B$12:$B50)+2,FALSE)","v":758},{"$f":"HLOOKUP(M$7,$K$68:$DL$122,ROWS($B$12:$B50)+2,FALSE)","v":1935},{"$f":"HLOOKUP(N$7,$K$68:$DL$122,ROWS($B$12:$B50)+2,FALSE)","v":7911},{"$f":"HLOOKUP(O$7,$K$68:$DL$122,ROWS($B$12:$B50)+2,FALSE)","v":988},{"$f":"HLOOKUP(P$7,$K$68:$DL$122,ROWS($B$12:$B50)+2,FALSE)","v":34214},{"$f":"HLOOKUP(Q$7,$K$68:$DL$122,ROWS($B$12:$B50)+2,FALSE)","v":2110},{"$f":"HLOOKUP(R$7,$K$68:$DL$122,ROWS($B$12:$B50)+2,FALSE)","v":949},{"$f":"HLOOKUP(S$7,$K$68:$DL$122,ROWS($B$12:$B50)+2,FALSE)","v":251},{"$f":"HLOOKUP(T$7,$K$68:$DL$122,ROWS($B$12:$B50)+2,FALSE)","v":349},{"$f":"HLOOKUP(U$7,$K$68:$DL$122,ROWS($B$12:$B50)+2,FALSE)","v":3384},{"$f":"HLOOKUP(V$7,$K$68:$DL$122,ROWS($B$12:$B50)+2,FALSE)","v":1946},{"$f":"HLOOKUP(W$7,$K$68:$DL$122,ROWS($B$12:$B50)+2,FALSE)","v":2491},{"$f":"HLOOKUP(X$7,$K$68:$DL$122,ROWS($B$12:$B50)+2,FALSE)","v":6236},{"$f":"HLOOKUP(Y$7,$K$68:$DL$122,ROWS($B$12:$B50)+2,FALSE)","v":1350},{"$f":"HLOOKUP(Z$7,$K$68:$DL$122,ROWS($B$12:$B50)+2,FALSE)","v":1371},{"$f":"HLOOKUP(AA$7,$K$68:$DL$122,ROWS($B$12:$B50)+2,FALSE)","v":659},{"$f":"HLOOKUP(AB$7,$K$68:$DL$122,ROWS($B$12:$B50)+2,FALSE)","v":1263},{"$f":"HLOOKUP(AC$7,$K$68:$DL$122,ROWS($B$12:$B50)+2,FALSE)","v":71},{"$f":"HLOOKUP(AD$7,$K$68:$DL$122,ROWS($B$12:$B50)+2,FALSE)","v":0},{"$f":"HLOOKUP(AE$7,$K$68:$DL$122,ROWS($B$12:$B50)+2,FALSE)","v":269},{"$f":"HLOOKUP(AF$7,$K$68:$DL$122,ROWS($B$12:$B50)+2,FALSE)","v":453},{"$f":"HLOOKUP(AG$7,$K$68:$DL$122,ROWS($B$12:$B50)+2,FALSE)","v":1423},{"$f":"HLOOKUP(AH$7,$K$68:$DL$122,ROWS($B$12:$B50)+2,FALSE)","v":1652},{"$f":"HLOOKUP(AI$7,$K$68:$DL$122,ROWS($B$12:$B50)+2,FALSE)","v":1413},{"$f":"HLOOKUP(AJ$7,$K$68:$DL$122,ROWS($B$12:$B50)+2,FALSE)","v":7},{"$f":"HLOOKUP(AK$7,$K$68:$DL$122,ROWS($B$12:$B50)+2,FALSE)","v":1172},{"$f":"HLOOKUP(AL$7,$K$68:$DL$122,ROWS($B$12:$B50)+2,FALSE)","v":1079},{"$f":"HLOOKUP(AM$7,$K$68:$DL$122,ROWS($B$12:$B50)+2,FALSE)","v":324},{"$f":"HLOOKUP(AN$7,$K$68:$DL$122,ROWS($B$12:$B50)+2,FALSE)","v":7222},{"$f":"HLOOKUP(AO$7,$K$68:$DL$122,ROWS($B$12:$B50)+2,FALSE)","v":427},{"$f":"HLOOKUP(AP$7,$K$68:$DL$122,ROWS($B$12:$B50)+2,FALSE)","v":1322},{"$f":"HLOOKUP(AQ$7,$K$68:$DL$122,ROWS($B$12:$B50)+2,FALSE)","v":537},{"$f":"HLOOKUP(AR$7,$K$68:$DL$122,ROWS($B$12:$B50)+2,FALSE)","v":2056},{"$f":"HLOOKUP(AS$7,$K$68:$DL$122,ROWS($B$12:$B50)+2,FALSE)","v":1099},{"$f":"HLOOKUP(AT$7,$K$68:$DL$122,ROWS($B$12:$B50)+2,FALSE)","v":313},{"$f":"HLOOKUP(AU$7,$K$68:$DL$122,ROWS($B$12:$B50)+2,FALSE)","v":949},{"$f":"HLOOKUP(AV$7,$K$68:$DL$122,ROWS($B$12:$B50)+2,FALSE)","v":2034},{"$f":"HLOOKUP(AW$7,$K$68:$DL$122,ROWS($B$12:$B50)+2,FALSE)","v":"N/A"},{"$f":"HLOOKUP(AX$7,$K$68:$DL$122,ROWS($B$12:$B50)+2,FALSE)","v":1407},{"$f":"HLOOKUP(AY$7,$K$68:$DL$122,ROWS($B$12:$B50)+2,FALSE)","v":0},{"$f":"HLOOKUP(AZ$7,$K$68:$DL$122,ROWS($B$12:$B50)+2,FALSE)","v":370},{"$f":"HLOOKUP(BA$7,$K$68:$DL$122,ROWS($B$12:$B50)+2,FALSE)","v":417},{"$f":"HLOOKUP(BB$7,$K$68:$DL$122,ROWS($B$12:$B50)+2,FALSE)","v":673},{"$f":"HLOOKUP(BC$7,$K$68:$DL$122,ROWS($B$12:$B50)+2,FALSE)","v":4498},{"$f":"HLOOKUP(BD$7,$K$68:$DL$122,ROWS($B$12:$B50)+2,FALSE)","v":3443},{"$f":"HLOOKUP(BE$7,$K$68:$DL$122,ROWS($B$12:$B50)+2,FALSE)","v":176},{"$f":"HLOOKUP(BF$7,$K$68:$DL$122,ROWS($B$12:$B50)+2,FALSE)","v":1179},{"$f":"HLOOKUP(BG$7,$K$68:$DL$122,ROWS($B$12:$B50)+2,FALSE)","v":21862},{"$f":"HLOOKUP(BH$7,$K$68:$DL$122,ROWS($B$12:$B50)+2,FALSE)","v":66},{"$f":"HLOOKUP(BI$7,$K$68:$DL$122,ROWS($B$12:$B50)+2,FALSE)","v":914},{"$f":"HLOOKUP(BJ$7,$K$68:$DL$122,ROWS($B$12:$B50)+2,FALSE)","v":914},{"$f":"HLOOKUP(BK$7,$K$68:$DL$122,ROWS($B$12:$B50)+2,FALSE)","v":4},{"$f":"HLOOKUP(BL$7+0.5,$K$68:$DL$122,ROWS($B$12:$B50)+2,FALSE)","v":9071},{"$f":"HLOOKUP(BM$7+0.5,$K$68:$DL$122,ROWS($B$12:$B50)+2,FALSE)","v":1071},{"$f":"HLOOKUP(BN$7+0.5,$K$68:$DL$122,ROWS($B$12:$B50)+2,FALSE)","v":1062},{"$f":"HLOOKUP(BO$7+0.5,$K$68:$DL$122,ROWS($B$12:$B50)+2,FALSE)","v":3054},{"$f":"HLOOKUP(BP$7+0.5,$K$68:$DL$122,ROWS($B$12:$B50)+2,FALSE)","v":1155},{"$f":"HLOOKUP(BQ$7+0.5,$K$68:$DL$122,ROWS($B$12:$B50)+2,FALSE)","v":4555},{"$f":"HLOOKUP(BR$7+0.5,$K$68:$DL$122,ROWS($B$12:$B50)+2,FALSE)","v":659},{"$f":"HLOOKUP(BS$7+0.5,$K$68:$DL$122,ROWS($B$12:$B50)+2,FALSE)","v":564},{"$f":"HLOOKUP(BT$7+0.5,$K$68:$DL$122,ROWS($B$12:$B50)+2,FALSE)","v":264},{"$f":"HLOOKUP(BU$7+0.5,$K$68:$DL$122,ROWS($B$12:$B50)+2,FALSE)","v":291},{"$f":"HLOOKUP(BV$7+0.5,$K$68:$DL$122,ROWS($B$12:$B50)+2,FALSE)","v":1934},{"$f":"HLOOKUP(BW$7+0.5,$K$68:$DL$122,ROWS($B$12:$B50)+2,FALSE)","v":1914},{"$f":"HLOOKUP(BX$7+0.5,$K$68:$DL$122,ROWS($B$12:$B50)+2,FALSE)","v":1173},{"$f":"HLOOKUP(BY$7+0.5,$K$68:$DL$122,ROWS($B$12:$B50)+2,FALSE)","v":2097},{"$f":"HLOOKUP(BZ$7+0.5,$K$68:$DL$122,ROWS($B$12:$B50)+2,FALSE)","v":663},{"$f":"HLOOKUP(CA$7+0.5,$K$68:$DL$122,ROWS($B$12:$B50)+2,FALSE)","v":1707},{"$f":"HLOOKUP(CB$7+0.5,$K$68:$DL$122,ROWS($B$12:$B50)+2,FALSE)","v":627},{"$f":"HLOOKUP(CC$7+0.5,$K$68:$DL$122,ROWS($B$12:$B50)+2,FALSE)","v":1355},{"$f":"HLOOKUP(CD$7+0.5,$K$68:$DL$122,ROWS($B$12:$B50)+2,FALSE)","v":118},{"$f":"HLOOKUP(CE$7+0.5,$K$68:$DL$122,ROWS($B$12:$B50)+2,FALSE)","v":203},{"$f":"HLOOKUP(CF$7+0.5,$K$68:$DL$122,ROWS($B$12:$B50)+2,FALSE)","v":320},{"$f":"HLOOKUP(CG$7+0.5,$K$68:$DL$122,ROWS($B$12:$B50)+2,FALSE)","v":482},{"$f":"HLOOKUP(CH$7+0.5,$K$68:$DL$122,ROWS($B$12:$B50)+2,FALSE)","v":768},{"$f":"HLOOKUP(CI$7+0.5,$K$68:$DL$122,ROWS($B$12:$B50)+2,FALSE)","v":1174},{"$f":"HLOOKUP(CJ$7+0.5,$K$68:$DL$122,ROWS($B$12:$B50)+2,FALSE)","v":863},{"$f":"HLOOKUP(CK$7+0.5,$K$68:$DL$122,ROWS($B$12:$B50)+2,FALSE)","v":14},{"$f":"HLOOKUP(CL$7+0.5,$K$68:$DL$122,ROWS($B$12:$B50)+2,FALSE)","v":664},{"$f":"HLOOKUP(CM$7+0.5,$K$68:$DL$122,ROWS($B$12:$B50)+2,FALSE)","v":784},{"$f":"HLOOKUP(CN$7+0.5,$K$68:$DL$122,ROWS($B$12:$B50)+2,FALSE)","v":342},{"$f":"HLOOKUP(CO$7+0.5,$K$68:$DL$122,ROWS($B$12:$B50)+2,FALSE)","v":3426},{"$f":"HLOOKUP(CP$7+0.5,$K$68:$DL$122,ROWS($B$12:$B50)+2,FALSE)","v":404},{"$f":"HLOOKUP(CQ$7+0.5,$K$68:$DL$122,ROWS($B$12:$B50)+2,FALSE)","v":771},{"$f":"HLOOKUP(CR$7+0.5,$K$68:$DL$122,ROWS($B$12:$B50)+2,FALSE)","v":449},{"$f":"HLOOKUP(CS$7+0.5,$K$68:$DL$122,ROWS($B$12:$B50)+2,FALSE)","v":850},{"$f":"HLOOKUP(CT$7+0.5,$K$68:$DL$122,ROWS($B$12:$B50)+2,FALSE)","v":740},{"$f":"HLOOKUP(CU$7+0.5,$K$68:$DL$122,ROWS($B$12:$B50)+2,FALSE)","v":340},{"$f":"HLOOKUP(CV$7+0.5,$K$68:$DL$122,ROWS($B$12:$B50)+2,FALSE)","v":789},{"$f":"HLOOKUP(CW$7+0.5,$K$68:$DL$122,ROWS($B$12:$B50)+2,FALSE)","v":1244},{"$f":"HLOOKUP(CX$7+0.5,$K$68:$DL$122,ROWS($B$12:$B50)+2,FALSE)","v":"N/A"},{"$f":"HLOOKUP(CY$7+0.5,$K$68:$DL$122,ROWS($B$12:$B50)+2,FALSE)","v":775},{"$f":"HLOOKUP(CZ$7+0.5,$K$68:$DL$122,ROWS($B$12:$B50)+2,FALSE)","v":203},{"$f":"HLOOKUP(DA$7+0.5,$K$68:$DL$122,ROWS($B$12:$B50)+2,FALSE)","v":292},{"$f":"HLOOKUP(DB$7+0.5,$K$68:$DL$122,ROWS($B$12:$B50)+2,FALSE)","v":395},{"$f":"HLOOKUP(DC$7+0.5,$K$68:$DL$122,ROWS($B$12:$B50)+2,FALSE)","v":420},{"$f":"HLOOKUP(DD$7+0.5,$K$68:$DL$122,ROWS($B$12:$B50)+2,FALSE)","v":2398},{"$f":"HLOOKUP(DE$7+0.5,$K$68:$DL$122,ROWS($B$12:$B50)+2,FALSE)","v":1781},{"$f":"HLOOKUP(DF$7+0.5,$K$68:$DL$122,ROWS($B$12:$B50)+2,FALSE)","v":203},{"$f":"HLOOKUP(DG$7+0.5,$K$68:$DL$122,ROWS($B$12:$B50)+2,FALSE)","v":619},{"$f":"HLOOKUP(DH$7+0.5,$K$68:$DL$122,ROWS($B$12:$B50)+2,FALSE)","v":3732},{"$f":"HLOOKUP(DI$7+0.5,$K$68:$DL$122,ROWS($B$12:$B50)+2,FALSE)","v":115},{"$f":"HLOOKUP(DJ$7+0.5,$K$68:$DL$122,ROWS($B$12:$B50)+2,FALSE)","v":697},{"$f":"HLOOKUP(DK$7+0.5,$K$68:$DL$122,ROWS($B$12:$B50)+2,FALSE)","v":880},{"$f":"HLOOKUP(DL$7+0.5,$K$68:$DL$122,ROWS($B$12:$B50)+2,FALSE)","v":8}]
[null,null,"Pennsylvania",12610486,5092,11099077,27780,1224564,25195,3.353042097393371E-2,{"$f":"HLOOKUP(K$7,$K$68:$DL$122,ROWS($B$12:$B51)+2,FALSE)","v":234291},{"$f":"HLOOKUP(L$7,$K$68:$DL$122,ROWS($B$12:$B51)+2,FALSE)","v":1332},{"$f":"HLOOKUP(M$7,$K$68:$DL$122,ROWS($B$12:$B51)+2,FALSE)","v":759},{"$f":"HLOOKUP(N$7,$K$68:$DL$122,ROWS($B$12:$B51)+2,FALSE)","v":2278},{"$f":"HLOOKUP(O$7,$K$68:$DL$122,ROWS($B$12:$B51)+2,FALSE)","v":582},{"$f":"HLOOKUP(P$7,$K$68:$DL$122,ROWS($B$12:$B51)+2,FALSE)","v":10672},{"$f":"HLOOKUP(Q$7,$K$68:$DL$122,ROWS($B$12:$B51)+2,FALSE)","v":2491},{"$f":"HLOOKUP(R$7,$K$68:$DL$122,ROWS($B$12:$B51)+2,FALSE)","v":4150},{"$f":"HLOOKUP(S$7,$K$68:$DL$122,ROWS($B$12:$B51)+2,FALSE)","v":5177},{"$f":"HLOOKUP(T$7,$K$68:$DL$122,ROWS($B$12:$B51)+2,FALSE)","v":1401},{"$f":"HLOOKUP(U$7,$K$68:$DL$122,ROWS($B$12:$B51)+2,FALSE)","v":19299},{"$f":"HLOOKUP(V$7,$K$68:$DL$122,ROWS($B$12:$B51)+2,FALSE)","v":4627},{"$f":"HLOOKUP(W$7,$K$68:$DL$122,ROWS($B$12:$B51)+2,FALSE)","v":495},{"$f":"HLOOKUP(X$7,$K$68:$DL$122,ROWS($B$12:$B51)+2,FALSE)","v":236},{"$f":"HLOOKUP(Y$7,$K$68:$DL$122,ROWS($B$12:$B51)+2,FALSE)","v":3902},{"$f":"HLOOKUP(Z$7,$K$68:$DL$122,ROWS($B$12:$B51)+2,FALSE)","v":4086},{"$f":"HLOOKUP(AA$7,$K$68:$DL$122,ROWS($B$12:$B51)+2,FALSE)","v":1176},{"$f":"HLOOKUP(AB$7,$K$68:$DL$122,ROWS($B$12:$B51)+2,FALSE)","v":2323},{"$f":"HLOOKUP(AC$7,$K$68:$DL$122,ROWS($B$12:$B51)+2,FALSE)","v":4013},{"$f":"HLOOKUP(AD$7,$K$68:$DL$122,ROWS($B$12:$B51)+2,FALSE)","v":615},{"$f":"HLOOKUP(AE$7,$K$68:$DL$122,ROWS($B$12:$B51)+2,FALSE)","v":608},{"$f":"HLOOKUP(AF$7,$K$68:$DL$122,ROWS($B$12:$B51)+2,FALSE)","v":17751},{"$f":"HLOOKUP(AG$7,$K$68:$DL$122,ROWS($B$12:$B51)+2,FALSE)","v":6284},{"$f":"HLOOKUP(AH$7,$K$68:$DL$122,ROWS($B$12:$B51)+2,FALSE)","v":4406},{"$f":"HLOOKUP(AI$7,$K$68:$DL$122,ROWS($B$12:$B51)+2,FALSE)","v":853},{"$f":"HLOOKUP(AJ$7,$K$68:$DL$122,ROWS($B$12:$B51)+2,FALSE)","v":1238},{"$f":"HLOOKUP(AK$7,$K$68:$DL$122,ROWS($B$12:$B51)+2,FALSE)","v":1761},{"$f":"HLOOKUP(AL$7,$K$68:$DL$122,ROWS($B$12:$B51)+2,FALSE)","v":338},{"$f":"HLOOKUP(AM$7,$K$68:$DL$122,ROWS($B$12:$B51)+2,FALSE)","v":582},{"$f":"HLOOKUP(AN$7,$K$68:$DL$122,ROWS($B$12:$B51)+2,FALSE)","v":1057},{"$f":"HLOOKUP(AO$7,$K$68:$DL$122,ROWS($B$12:$B51)+2,FALSE)","v":1326},{"$f":"HLOOKUP(AP$7,$K$68:$DL$122,ROWS($B$12:$B51)+2,FALSE)","v":36133},{"$f":"HLOOKUP(AQ$7,$K$68:$DL$122,ROWS($B$12:$B51)+2,FALSE)","v":325},{"$f":"HLOOKUP(AR$7,$K$68:$DL$122,ROWS($B$12:$B51)+2,FALSE)","v":29436},{"$f":"HLOOKUP(AS$7,$K$68:$DL$122,ROWS($B$12:$B51)+2,FALSE)","v":11254},{"$f":"HLOOKUP(AT$7,$K$68:$DL$122,ROWS($B$12:$B51)+2,FALSE)","v":195},{"$f":"HLOOKUP(AU$7,$K$68:$DL$122,ROWS($B$12:$B51)+2,FALSE)","v":13075},{"$f":"HLOOKUP(AV$7,$K$68:$DL$122,ROWS($B$12:$B51)+2,FALSE)","v":283},{"$f":"HLOOKUP(AW$7,$K$68:$DL$122,ROWS($B$12:$B51)+2,FALSE)","v":1594},{"$f":"HLOOKUP(AX$7,$K$68:$DL$122,ROWS($B$12:$B51)+2,FALSE)","v":"N/A"},{"$f":"HLOOKUP(AY$7,$K$68:$DL$122,ROWS($B$12:$B51)+2,FALSE)","v":799},{"$f":"HLOOKUP(AZ$7,$K$68:$DL$122,ROWS($B$12:$B51)+2,FALSE)","v":3438},{"$f":"HLOOKUP(BA$7,$K$68:$DL$122,ROWS($B$12:$B51)+2,FALSE)","v":142},{"$f":"HLOOKUP(BB$7,$K$68:$DL$122,ROWS($B$12:$B51)+2,FALSE)","v":3742},{"$f":"HLOOKUP(BC$7,$K$68:$DL$122,ROWS($B$12:$B51)+2,FALSE)","v":7006},{"$f":"HLOOKUP(BD$7,$K$68:$DL$122,ROWS($B$12:$B51)+2,FALSE)","v":1246},{"$f":"HLOOKUP(BE$7,$K$68:$DL$122,ROWS($B$12:$B51)+2,FALSE)","v":446},{"$f":"HLOOKUP(BF$7,$K$68:$DL$122,ROWS($B$12:$B51)+2,FALSE)","v":8419},{"$f":"HLOOKUP(BG$7,$K$68:$DL$122,ROWS($B$12:$B51)+2,FALSE)","v":3688},{"$f":"HLOOKUP(BH$7,$K$68:$DL$122,ROWS($B$12:$B51)+2,FALSE)","v":4631},{"$f":"HLOOKUP(BI$7,$K$68:$DL$122,ROWS($B$12:$B51)+2,FALSE)","v":2426},{"$f":"HLOOKUP(BJ$7,$K$68:$DL$122,ROWS($B$12:$B51)+2,FALSE)","v":195},{"$f":"HLOOKUP(BK$7,$K$68:$DL$122,ROWS($B$12:$B51)+2,FALSE)","v":2723},{"$f":"HLOOKUP(BL$7+0.5,$K$68:$DL$122,ROWS($B$12:$B51)+2,FALSE)","v":11246},{"$f":"HLOOKUP(BM$7+0.5,$K$68:$DL$122,ROWS($B$12:$B51)+2,FALSE)","v":684},{"$f":"HLOOKUP(BN$7+0.5,$K$68:$DL$122,ROWS($B$12:$B51)+2,FALSE)","v":664},{"$f":"HLOOKUP(BO$7+0.5,$K$68:$DL$122,ROWS($B$12:$B51)+2,FALSE)","v":917},{"$f":"HLOOKUP(BP$7+0.5,$K$68:$DL$122,ROWS($B$12:$B51)+2,FALSE)","v":601},{"$f":"HLOOKUP(BQ$7+0.5,$K$68:$DL$122,ROWS($B$12:$B51)+2,FALSE)","v":2349},{"$f":"HLOOKUP(BR$7+0.5,$K$68:$DL$122,ROWS($B$12:$B51)+2,FALSE)","v":1027},{"$f":"HLOOKUP(BS$7+0.5,$K$68:$DL$122,ROWS($B$12:$B51)+2,FALSE)","v":993},{"$f":"HLOOKUP(BT$7+0.5,$K$68:$DL$122,ROWS($B$12:$B51)+2,FALSE)","v":1304},{"$f":"HLOOKUP(BU$7+0.5,$K$68:$DL$122,ROWS($B$12:$B51)+2,FALSE)","v":584},{"$f":"HLOOKUP(BV$7+0.5,$K$68:$DL$122,ROWS($B$12:$B51)+2,FALSE)","v":3790},{"$f":"HLOOKUP(BW$7+0.5,$K$68:$DL$122,ROWS($B$12:$B51)+2,FALSE)","v":1185},{"$f":"HLOOKUP(BX$7+0.5,$K$68:$DL$122,ROWS($B$12:$B51)+2,FALSE)","v":369},{"$f":"HLOOKUP(BY$7+0.5,$K$68:$DL$122,ROWS($B$12:$B51)+2,FALSE)","v":223},{"$f":"HLOOKUP(BZ$7+0.5,$K$68:$DL$122,ROWS($B$12:$B51)+2,FALSE)","v":1438},{"$f":"HLOOKUP(CA$7+0.5,$K$68:$DL$122,ROWS($B$12:$B51)+2,FALSE)","v":1429},{"$f":"HLOOKUP(CB$7+0.5,$K$68:$DL$122,ROWS($B$12:$B51)+2,FALSE)","v":960},{"$f":"HLOOKUP(CC$7+0.5,$K$68:$DL$122,ROWS($B$12:$B51)+2,FALSE)","v":1449},{"$f":"HLOOKUP(CD$7+0.5,$K$68:$DL$122,ROWS($B$12:$B51)+2,FALSE)","v":1826},{"$f":"HLOOKUP(CE$7+0.5,$K$68:$DL$122,ROWS($B$12:$B51)+2,FALSE)","v":294},{"$f":"HLOOKUP(CF$7+0.5,$K$68:$DL$122,ROWS($B$12:$B51)+2,FALSE)","v":328},{"$f":"HLOOKUP(CG$7+0.5,$K$68:$DL$122,ROWS($B$12:$B51)+2,FALSE)","v":3723},{"$f":"HLOOKUP(CH$7+0.5,$K$68:$DL$122,ROWS($B$12:$B51)+2,FALSE)","v":1711},{"$f":"HLOOKUP(CI$7+0.5,$K$68:$DL$122,ROWS($B$12:$B51)+2,FALSE)","v":1278},{"$f":"HLOOKUP(CJ$7+0.5,$K$68:$DL$122,ROWS($B$12:$B51)+2,FALSE)","v":592},{"$f":"HLOOKUP(CK$7+0.5,$K$68:$DL$122,ROWS($B$12:$B51)+2,FALSE)","v":943},{"$f":"HLOOKUP(CL$7+0.5,$K$68:$DL$122,ROWS($B$12:$B51)+2,FALSE)","v":1063},{"$f":"HLOOKUP(CM$7+0.5,$K$68:$DL$122,ROWS($B$12:$B51)+2,FALSE)","v":308},{"$f":"HLOOKUP(CN$7+0.5,$K$68:$DL$122,ROWS($B$12:$B51)+2,FALSE)","v":439},{"$f":"HLOOKUP(CO$7+0.5,$K$68:$DL$122,ROWS($B$12:$B51)+2,FALSE)","v":501},{"$f":"HLOOKUP(CP$7+0.5,$K$68:$DL$122,ROWS($B$12:$B51)+2,FALSE)","v":520},{"$f":"HLOOKUP(CQ$7+0.5,$K$68:$DL$122,ROWS($B$12:$B51)+2,FALSE)","v":4167},{"$f":"HLOOKUP(CR$7+0.5,$K$68:$DL$122,ROWS($B$12:$B51)+2,FALSE)","v":405},{"$f":"HLOOKUP(CS$7+0.5,$K$68:$DL$122,ROWS($B$12:$B51)+2,FALSE)","v":3921},{"$f":"HLOOKUP(CT$7+0.5,$K$68:$DL$122,ROWS($B$12:$B51)+2,FALSE)","v":3103},{"$f":"HLOOKUP(CU$7+0.5,$K$68:$DL$122,ROWS($B$12:$B51)+2,FALSE)","v":208},{"$f":"HLOOKUP(CV$7+0.5,$K$68:$DL$122,ROWS($B$12:$B51)+2,FALSE)","v":2133},{"$f":"HLOOKUP(CW$7+0.5,$K$68:$DL$122,ROWS($B$12:$B51)+2,FALSE)","v":220},{"$f":"HLOOKUP(CX$7+0.5,$K$68:$DL$122,ROWS($B$12:$B51)+2,FALSE)","v":1022},{"$f":"HLOOKUP(CY$7+0.5,$K$68:$DL$122,ROWS($B$12:$B51)+2,FALSE)","v":"N/A"},{"$f":"HLOOKUP(CZ$7+0.5,$K$68:$DL$122,ROWS($B$12:$B51)+2,FALSE)","v":558},{"$f":"HLOOKUP(DA$7+0.5,$K$68:$DL$122,ROWS($B$12:$B51)+2,FALSE)","v":1057},{"$f":"HLOOKUP(DB$7+0.5,$K$68:$DL$122,ROWS($B$12:$B51)+2,FALSE)","v":140},{"$f":"HLOOKUP(DC$7+0.5,$K$68:$DL$122,ROWS($B$12:$B51)+2,FALSE)","v":1402},{"$f":"HLOOKUP(DD$7+0.5,$K$68:$DL$122,ROWS($B$12:$B51)+2,FALSE)","v":1441},{"$f":"HLOOKUP(DE$7+0.5,$K$68:$DL$122,ROWS($B$12:$B51)+2,FALSE)","v":776},{"$f":"HLOOKUP(DF$7+0.5,$K$68:$DL$122,ROWS($B$12:$B51)+2,FALSE)","v":327},{"$f":"HLOOKUP(DG$7+0.5,$K$68:$DL$122,ROWS($B$12:$B51)+2,FALSE)","v":1530},{"$f":"HLOOKUP(DH$7+0.5,$K$68:$DL$122,ROWS($B$12:$B51)+2,FALSE)","v":1533},{"$f":"HLOOKUP(DI$7+0.5,$K$68:$DL$122,ROWS($B$12:$B51)+2,FALSE)","v":1483},{"$f":"HLOOKUP(DJ$7+0.5,$K$68:$DL$122,ROWS($B$12:$B51)+2,FALSE)","v":1046},{"$f":"HLOOKUP(DK$7+0.5,$K$68:$DL$122,ROWS($B$12:$B51)+2,FALSE)","v":237},{"$f":"HLOOKUP(DL$7+0.5,$K$68:$DL$122,ROWS($B$12:$B51)+2,FALSE)","v":1294}]
[null,null,"Rhode Island",1040022,1440,903786,8645,101689,7813,3.8310299544209192E-3,{"$f":"HLOOKUP(K$7,$K$68:$DL$122,ROWS($B$12:$B52)+2,FALSE)","v":26769},{"$f":"HLOOKUP(L$7,$K$68:$DL$122,ROWS($B$12:$B52)+2,FALSE)","v":0},{"$f":"HLOOKUP(M$7,$K$68:$DL$122,ROWS($B$12:$B52)+2,FALSE)","v":0},{"$f":"HLOOKUP(N$7,$K$68:$DL$122,ROWS($B$12:$B52)+2,FALSE)","v":214},{"$f":"HLOOKUP(O$7,$K$68:$DL$122,ROWS($B$12:$B52)+2,FALSE)","v":0},{"$f":"HLOOKUP(P$7,$K$68:$DL$122,ROWS($B$12:$B52)+2,FALSE)","v":1949},{"$f":"HLOOKUP(Q$7,$K$68:$DL$122,ROWS($B$12:$B52)+2,FALSE)","v":301},{"$f":"HLOOKUP(R$7,$K$68:$DL$122,ROWS($B$12:$B52)+2,FALSE)","v":2613},{"$f":"HLOOKUP(S$7,$K$68:$DL$122,ROWS($B$12:$B52)+2,FALSE)","v":0},{"$f":"HLOOKUP(T$7,$K$68:$DL$122,ROWS($B$12:$B52)+2,FALSE)","v":0},{"$f":"HLOOKUP(U$7,$K$68:$DL$122,ROWS($B$12:$B52)+2,FALSE)","v":2230},{"$f":"HLOOKUP(V$7,$K$68:$DL$122,ROWS($B$12:$B52)+2,FALSE)","v":476},{"$f":"HLOOKUP(W$7,$K$68:$DL$122,ROWS($B$12:$B52)+2,FALSE)","v":0},{"$f":"HLOOKUP(X$7,$K$68:$DL$122,ROWS($B$12:$B52)+2,FALSE)","v":107},{"$f":"HLOOKUP(Y$7,$K$68:$DL$122,ROWS($B$12:$B52)+2,FALSE)","v":373},{"$f":"HLOOKUP(Z$7,$K$68:$DL$122,ROWS($B$12:$B52)+2,FALSE)","v":41},{"$f":"HLOOKUP(AA$7,$K$68:$DL$122,ROWS($B$12:$B52)+2,FALSE)","v":82},{"$f":"HLOOKUP(AB$7,$K$68:$DL$122,ROWS($B$12:$B52)+2,FALSE)","v":374},{"$f":"HLOOKUP(AC$7,$K$68:$DL$122,ROWS($B$12:$B52)+2,FALSE)","v":211},{"$f":"HLOOKUP(AD$7,$K$68:$DL$122,ROWS($B$12:$B52)+2,FALSE)","v":121},{"$f":"HLOOKUP(AE$7,$K$68:$DL$122,ROWS($B$12:$B52)+2,FALSE)","v":228},{"$f":"HLOOKUP(AF$7,$K$68:$DL$122,ROWS($B$12:$B52)+2,FALSE)","v":472},{"$f":"HLOOKUP(AG$7,$K$68:$DL$122,ROWS($B$12:$B52)+2,FALSE)","v":7715},{"$f":"HLOOKUP(AH$7,$K$68:$DL$122,ROWS($B$12:$B52)+2,FALSE)","v":178},{"$f":"HLOOKUP(AI$7,$K$68:$DL$122,ROWS($B$12:$B52)+2,FALSE)","v":27},{"$f":"HLOOKUP(AJ$7,$K$68:$DL$122,ROWS($B$12:$B52)+2,FALSE)","v":0},{"$f":"HLOOKUP(AK$7,$K$68:$DL$122,ROWS($B$12:$B52)+2,FALSE)","v":109},{"$f":"HLOOKUP(AL$7,$K$68:$DL$122,ROWS($B$12:$B52)+2,FALSE)","v":0},{"$f":"HLOOKUP(AM$7,$K$68:$DL$122,ROWS($B$12:$B52)+2,FALSE)","v":0},{"$f":"HLOOKUP(AN$7,$K$68:$DL$122,ROWS($B$12:$B52)+2,FALSE)","v":0},{"$f":"HLOOKUP(AO$7,$K$68:$DL$122,ROWS($B$12:$B52)+2,FALSE)","v":941},{"$f":"HLOOKUP(AP$7,$K$68:$DL$122,ROWS($B$12:$B52)+2,FALSE)","v":1224},{"$f":"HLOOKUP(AQ$7,$K$68:$DL$122,ROWS($B$12:$B52)+2,FALSE)","v":93},{"$f":"HLOOKUP(AR$7,$K$68:$DL$122,ROWS($B$12:$B52)+2,FALSE)","v":2776},{"$f":"HLOOKUP(AS$7,$K$68:$DL$122,ROWS($B$12:$B52)+2,FALSE)","v":259},{"$f":"HLOOKUP(AT$7,$K$68:$DL$122,ROWS($B$12:$B52)+2,FALSE)","v":0},{"$f":"HLOOKUP(AU$7,$K$68:$DL$122,ROWS($B$12:$B52)+2,FALSE)","v":60},{"$f":"HLOOKUP(AV$7,$K$68:$DL$122,ROWS($B$12:$B52)+2,FALSE)","v":0},{"$f":"HLOOKUP(AW$7,$K$68:$DL$122,ROWS($B$12:$B52)+2,FALSE)","v":57},{"$f":"HLOOKUP(AX$7,$K$68:$DL$122,ROWS($B$12:$B52)+2,FALSE)","v":1125},{"$f":"HLOOKUP(AY$7,$K$68:$DL$122,ROWS($B$12:$B52)+2,FALSE)","v":"N/A"},{"$f":"HLOOKUP(AZ$7,$K$68:$DL$122,ROWS($B$12:$B52)+2,FALSE)","v":223},{"$f":"HLOOKUP(BA$7,$K$68:$DL$122,ROWS($B$12:$B52)+2,FALSE)","v":0},{"$f":"HLOOKUP(BB$7,$K$68:$DL$122,ROWS($B$12:$B52)+2,FALSE)","v":210},{"$f":"HLOOKUP(BC$7,$K$68:$DL$122,ROWS($B$12:$B52)+2,FALSE)","v":207},{"$f":"HLOOKUP(BD$7,$K$68:$DL$122,ROWS($B$12:$B52)+2,FALSE)","v":181},{"$f":"HLOOKUP(BE$7,$K$68:$DL$122,ROWS($B$12:$B52)+2,FALSE)","v":621},{"$f":"HLOOKUP(BF$7,$K$68:$DL$122,ROWS($B$12:$B52)+2,FALSE)","v":485},{"$f":"HLOOKUP(BG$7,$K$68:$DL$122,ROWS($B$12:$B52)+2,FALSE)","v":262},{"$f":"HLOOKUP(BH$7,$K$68:$DL$122,ROWS($B$12:$B52)+2,FALSE)","v":199},{"$f":"HLOOKUP(BI$7,$K$68:$DL$122,ROWS($B$12:$B52)+2,FALSE)","v":2},{"$f":"HLOOKUP(BJ$7,$K$68:$DL$122,ROWS($B$12:$B52)+2,FALSE)","v":23},{"$f":"HLOOKUP(BK$7,$K$68:$DL$122,ROWS($B$12:$B52)+2,FALSE)","v":293},{"$f":"HLOOKUP(BL$7+0.5,$K$68:$DL$122,ROWS($B$12:$B52)+2,FALSE)","v":2836},{"$f":"HLOOKUP(BM$7+0.5,$K$68:$DL$122,ROWS($B$12:$B52)+2,FALSE)","v":207},{"$f":"HLOOKUP(BN$7+0.5,$K$68:$DL$122,ROWS($B$12:$B52)+2,FALSE)","v":207},{"$f":"HLOOKUP(BO$7+0.5,$K$68:$DL$122,ROWS($B$12:$B52)+2,FALSE)","v":348},{"$f":"HLOOKUP(BP$7+0.5,$K$68:$DL$122,ROWS($B$12:$B52)+2,FALSE)","v":207},{"$f":"HLOOKUP(BQ$7+0.5,$K$68:$DL$122,ROWS($B$12:$B52)+2,FALSE)","v":734},{"$f":"HLOOKUP(BR$7+0.5,$K$68:$DL$122,ROWS($B$12:$B52)+2,FALSE)","v":271},{"$f":"HLOOKUP(BS$7+0.5,$K$68:$DL$122,ROWS($B$12:$B52)+2,FALSE)","v":984},{"$f":"HLOOKUP(BT$7+0.5,$K$68:$DL$122,ROWS($B$12:$B52)+2,FALSE)","v":207},{"$f":"HLOOKUP(BU$7+0.5,$K$68:$DL$122,ROWS($B$12:$B52)+2,FALSE)","v":207},{"$f":"HLOOKUP(BV$7+0.5,$K$68:$DL$122,ROWS($B$12:$B52)+2,FALSE)","v":915},{"$f":"HLOOKUP(BW$7+0.5,$K$68:$DL$122,ROWS($B$12:$B52)+2,FALSE)","v":361},{"$f":"HLOOKUP(BX$7+0.5,$K$68:$DL$122,ROWS($B$12:$B52)+2,FALSE)","v":207},{"$f":"HLOOKUP(BY$7+0.5,$K$68:$DL$122,ROWS($B$12:$B52)+2,FALSE)","v":199},{"$f":"HLOOKUP(BZ$7+0.5,$K$68:$DL$122,ROWS($B$12:$B52)+2,FALSE)","v":375},{"$f":"HLOOKUP(CA$7+0.5,$K$68:$DL$122,ROWS($B$12:$B52)+2,FALSE)","v":95},{"$f":"HLOOKUP(CB$7+0.5,$K$68:$DL$122,ROWS($B$12:$B52)+2,FALSE)","v":145},{"$f":"HLOOKUP(CC$7+0.5,$K$68:$DL$122,ROWS($B$12:$B52)+2,FALSE)","v":433},{"$f":"HLOOKUP(CD$7+0.5,$K$68:$DL$122,ROWS($B$12:$B52)+2,FALSE)","v":318},{"$f":"HLOOKUP(CE$7+0.5,$K$68:$DL$122,ROWS($B$12:$B52)+2,FALSE)","v":185},{"$f":"HLOOKUP(CF$7+0.5,$K$68:$DL$122,ROWS($B$12:$B52)+2,FALSE)","v":177},{"$f":"HLOOKUP(CG$7+0.5,$K$68:$DL$122,ROWS($B$12:$B52)+2,FALSE)","v":323},{"$f":"HLOOKUP(CH$7+0.5,$K$68:$DL$122,ROWS($B$12:$B52)+2,FALSE)","v":1532},{"$f":"HLOOKUP(CI$7+0.5,$K$68:$DL$122,ROWS($B$12:$B52)+2,FALSE)","v":117},{"$f":"HLOOKUP(CJ$7+0.5,$K$68:$DL$122,ROWS($B$12:$B52)+2,FALSE)","v":60},{"$f":"HLOOKUP(CK$7+0.5,$K$68:$DL$122,ROWS($B$12:$B52)+2,FALSE)","v":207},{"$f":"HLOOKUP(CL$7+0.5,$K$68:$DL$122,ROWS($B$12:$B52)+2,FALSE)","v":163},{"$f":"HLOOKUP(CM$7+0.5,$K$68:$DL$122,ROWS($B$12:$B52)+2,FALSE)","v":207},{"$f":"HLOOKUP(CN$7+0.5,$K$68:$DL$122,ROWS($B$12:$B52)+2,FALSE)","v":207},{"$f":"HLOOKUP(CO$7+0.5,$K$68:$DL$122,ROWS($B$12:$B52)+2,FALSE)","v":207},{"$f":"HLOOKUP(CP$7+0.5,$K$68:$DL$122,ROWS($B$12:$B52)+2,FALSE)","v":745},{"$f":"HLOOKUP(CQ$7+0.5,$K$68:$DL$122,ROWS($B$12:$B52)+2,FALSE)","v":501},{"$f":"HLOOKUP(CR$7+0.5,$K$68:$DL$122,ROWS($B$12:$B52)+2,FALSE)","v":153},{"$f":"HLOOKUP(CS$7+0.5,$K$68:$DL$122,ROWS($B$12:$B52)+2,FALSE)","v":1118},{"$f":"HLOOKUP(CT$7+0.5,$K$68:$DL$122,ROWS($B$12:$B52)+2,FALSE)","v":212},{"$f":"HLOOKUP(CU$7+0.5,$K$68:$DL$122,ROWS($B$12:$B52)+2,FALSE)","v":207},{"$f":"HLOOKUP(CV$7+0.5,$K$68:$DL$122,ROWS($B$12:$B52)+2,FALSE)","v":89},{"$f":"HLOOKUP(CW$7+0.5,$K$68:$DL$122,ROWS($B$12:$B52)+2,FALSE)","v":207},{"$f":"HLOOKUP(CX$7+0.5,$K$68:$DL$122,ROWS($B$12:$B52)+2,FALSE)","v":94},{"$f":"HLOOKUP(CY$7+0.5,$K$68:$DL$122,ROWS($B$12:$B52)+2,FALSE)","v":725},{"$f":"HLOOKUP(CZ$7+0.5,$K$68:$DL$122,ROWS($B$12:$B52)+2,FALSE)","v":"N/A"},{"$f":"HLOOKUP(DA$7+0.5,$K$68:$DL$122,ROWS($B$12:$B52)+2,FALSE)","v":232},{"$f":"HLOOKUP(DB$7+0.5,$K$68:$DL$122,ROWS($B$12:$B52)+2,FALSE)","v":207},{"$f":"HLOOKUP(DC$7+0.5,$K$68:$DL$122,ROWS($B$12:$B52)+2,FALSE)","v":187},{"$f":"HLOOKUP(DD$7+0.5,$K$68:$DL$122,ROWS($B$12:$B52)+2,FALSE)","v":153},{"$f":"HLOOKUP(DE$7+0.5,$K$68:$DL$122,ROWS($B$12:$B52)+2,FALSE)","v":267},{"$f":"HLOOKUP(DF$7+0.5,$K$68:$DL$122,ROWS($B$12:$B52)+2,FALSE)","v":328},{"$f":"HLOOKUP(DG$7+0.5,$K$68:$DL$122,ROWS($B$12:$B52)+2,FALSE)","v":448},{"$f":"HLOOKUP(DH$7+0.5,$K$68:$DL$122,ROWS($B$12:$B52)+2,FALSE)","v":277},{"$f":"HLOOKUP(DI$7+0.5,$K$68:$DL$122,ROWS($B$12:$B52)+2,FALSE)","v":253},{"$f":"HLOOKUP(DJ$7+0.5,$K$68:$DL$122,ROWS($B$12:$B52)+2,FALSE)","v":5},{"$f":"HLOOKUP(DK$7+0.5,$K$68:$DL$122,ROWS($B$12:$B52)+2,FALSE)","v":47},{"$f":"HLOOKUP(DL$7+0.5,$K$68:$DL$122,ROWS($B$12:$B52)+2,FALSE)","v":292}]
[null,null,"South Carolina",4624180,3871,3899705,25459,546666,21151,2.2561129894083879E-2,{"$f":"HLOOKUP(K$7,$K$68:$DL$122,ROWS($B$12:$B53)+2,FALSE)","v":157644},{"$f":"HLOOKUP(L$7,$K$68:$DL$122,ROWS($B$12:$B53)+2,FALSE)","v":2999},{"$f":"HLOOKUP(M$7,$K$68:$DL$122,ROWS($B$12:$B53)+2,FALSE)","v":2421},{"$f":"HLOOKUP(N$7,$K$68:$DL$122,ROWS($B$12:$B53)+2,FALSE)","v":1971},{"$f":"HLOOKUP(O$7,$K$68:$DL$122,ROWS($B$12:$B53)+2,FALSE)","v":1333},{"$f":"HLOOKUP(P$7,$K$68:$DL$122,ROWS($B$12:$B53)+2,FALSE)","v":6592},{"$f":"HLOOKUP(Q$7,$K$68:$DL$122,ROWS($B$12:$B53)+2,FALSE)","v":1000},{"$f":"HLOOKUP(R$7,$K$68:$DL$122,ROWS($B$12:$B53)+2,FALSE)","v":1752},{"$f":"HLOOKUP(S$7,$K$68:$DL$122,ROWS($B$12:$B53)+2,FALSE)","v":841},{"$f":"HLOOKUP(T$7,$K$68:$DL$122,ROWS($B$12:$B53)+2,FALSE)","v":589},{"$f":"HLOOKUP(U$7,$K$68:$DL$122,ROWS($B$12:$B53)+2,FALSE)","v":15476},{"$f":"HLOOKUP(V$7,$K$68:$DL$122,ROWS($B$12:$B53)+2,FALSE)","v":16355},{"$f":"HLOOKUP(W$7,$K$68:$DL$122,ROWS($B$12:$B53)+2,FALSE)","v":712},{"$f":"HLOOKUP(X$7,$K$68:$DL$122,ROWS($B$12:$B53)+2,FALSE)","v":55},{"$f":"HLOOKUP(Y$7,$K$68:$DL$122,ROWS($B$12:$B53)+2,FALSE)","v":2371},{"$f":"HLOOKUP(Z$7,$K$68:$DL$122,ROWS($B$12:$B53)+2,FALSE)","v":3249},{"$f":"HLOOKUP(AA$7,$K$68:$DL$122,ROWS($B$12:$B53)+2,FALSE)","v":1379},{"$f":"HLOOKUP(AB$7,$K$68:$DL$122,ROWS($B$12:$B53)+2,FALSE)","v":1885},{"$f":"HLOOKUP(AC$7,$K$68:$DL$122,ROWS($B$12:$B53)+2,FALSE)","v":2454},{"$f":"HLOOKUP(AD$7,$K$68:$DL$122,ROWS($B$12:$B53)+2,FALSE)","v":878},{"$f":"HLOOKUP(AE$7,$K$68:$DL$122,ROWS($B$12:$B53)+2,FALSE)","v":652},{"$f":"HLOOKUP(AF$7,$K$68:$DL$122,ROWS($B$12:$B53)+2,FALSE)","v":3807},{"$f":"HLOOKUP(AG$7,$K$68:$DL$122,ROWS($B$12:$B53)+2,FALSE)","v":730},{"$f":"HLOOKUP(AH$7,$K$68:$DL$122,ROWS($B$12:$B53)+2,FALSE)","v":4483},{"$f":"HLOOKUP(AI$7,$K$68:$DL$122,ROWS($B$12:$B53)+2,FALSE)","v":471},{"$f":"HLOOKUP(AJ$7,$K$68:$DL$122,ROWS($B$12:$B53)+2,FALSE)","v":2163},{"$f":"HLOOKUP(AK$7,$K$68:$DL$122,ROWS($B$12:$B53)+2,FALSE)","v":1522},{"$f":"HLOOKUP(AL$7,$K$68:$DL$122,ROWS($B$12:$B53)+2,FALSE)","v":915},{"$f":"HLOOKUP(AM$7,$K$68:$DL$122,ROWS($B$12:$B53)+2,FALSE)","v":204},{"$f":"HLOOKUP(AN$7,$K$68:$DL$122,ROWS($B$12:$B53)+2,FALSE)","v":1017},{"$f":"HLOOKUP(AO$7,$K$68:$DL$122,ROWS($B$12:$B53)+2,FALSE)","v":372},{"$f":"HLOOKUP(AP$7,$K$68:$DL$122,ROWS($B$12:$B53)+2,FALSE)","v":4241},{"$f":"HLOOKUP(AQ$7,$K$68:$DL$122,ROWS($B$12:$B53)+2,FALSE)","v":598},{"$f":"HLOOKUP(AR$7,$K$68:$DL$122,ROWS($B$12:$B53)+2,FALSE)","v":11317},{"$f":"HLOOKUP(AS$7,$K$68:$DL$122,ROWS($B$12:$B53)+2,FALSE)","v":23102},{"$f":"HLOOKUP(AT$7,$K$68:$DL$122,ROWS($B$12:$B53)+2,FALSE)","v":271},{"$f":"HLOOKUP(AU$7,$K$68:$DL$122,ROWS($B$12:$B53)+2,FALSE)","v":6327},{"$f":"HLOOKUP(AV$7,$K$68:$DL$122,ROWS($B$12:$B53)+2,FALSE)","v":1008},{"$f":"HLOOKUP(AW$7,$K$68:$DL$122,ROWS($B$12:$B53)+2,FALSE)","v":833},{"$f":"HLOOKUP(AX$7,$K$68:$DL$122,ROWS($B$12:$B53)+2,FALSE)","v":3523},{"$f":"HLOOKUP(AY$7,$K$68:$DL$122,ROWS($B$12:$B53)+2,FALSE)","v":453},{"$f":"HLOOKUP(AZ$7,$K$68:$DL$122,ROWS($B$12:$B53)+2,FALSE)","v":"N/A"},{"$f":"HLOOKUP(BA$7,$K$68:$DL$122,ROWS($B$12:$B53)+2,FALSE)","v":62},{"$f":"HLOOKUP(BB$7,$K$68:$DL$122,ROWS($B$12:$B53)+2,FALSE)","v":3324},{"$f":"HLOOKUP(BC$7,$K$68:$DL$122,ROWS($B$12:$B53)+2,FALSE)","v":8623},{"$f":"HLOOKUP(BD$7,$K$68:$DL$122,ROWS($B$12:$B53)+2,FALSE)","v":181},{"$f":"HLOOKUP(BE$7,$K$68:$DL$122,ROWS($B$12:$B53)+2,FALSE)","v":91},{"$f":"HLOOKUP(BF$7,$K$68:$DL$122,ROWS($B$12:$B53)+2,FALSE)","v":7879},{"$f":"HLOOKUP(BG$7,$K$68:$DL$122,ROWS($B$12:$B53)+2,FALSE)","v":2510},{"$f":"HLOOKUP(BH$7,$K$68:$DL$122,ROWS($B$12:$B53)+2,FALSE)","v":1680},{"$f":"HLOOKUP(BI$7,$K$68:$DL$122,ROWS($B$12:$B53)+2,FALSE)","v":341},{"$f":"HLOOKUP(BJ$7,$K$68:$DL$122,ROWS($B$12:$B53)+2,FALSE)","v":632},{"$f":"HLOOKUP(BK$7,$K$68:$DL$122,ROWS($B$12:$B53)+2,FALSE)","v":2166},{"$f":"HLOOKUP(BL$7+0.5,$K$68:$DL$122,ROWS($B$12:$B53)+2,FALSE)","v":12647},{"$f":"HLOOKUP(BM$7+0.5,$K$68:$DL$122,ROWS($B$12:$B53)+2,FALSE)","v":1543},{"$f":"HLOOKUP(BN$7+0.5,$K$68:$DL$122,ROWS($B$12:$B53)+2,FALSE)","v":1281},{"$f":"HLOOKUP(BO$7+0.5,$K$68:$DL$122,ROWS($B$12:$B53)+2,FALSE)","v":1391},{"$f":"HLOOKUP(BP$7+0.5,$K$68:$DL$122,ROWS($B$12:$B53)+2,FALSE)","v":1301},{"$f":"HLOOKUP(BQ$7+0.5,$K$68:$DL$122,ROWS($B$12:$B53)+2,FALSE)","v":1789},{"$f":"HLOOKUP(BR$7+0.5,$K$68:$DL$122,ROWS($B$12:$B53)+2,FALSE)","v":598},{"$f":"HLOOKUP(BS$7+0.5,$K$68:$DL$122,ROWS($B$12:$B53)+2,FALSE)","v":1005},{"$f":"HLOOKUP(BT$7+0.5,$K$68:$DL$122,ROWS($B$12:$B53)+2,FALSE)","v":746},{"$f":"HLOOKUP(BU$7+0.5,$K$68:$DL$122,ROWS($B$12:$B53)+2,FALSE)","v":681},{"$f":"HLOOKUP(BV$7+0.5,$K$68:$DL$122,ROWS($B$12:$B53)+2,FALSE)","v":4230},{"$f":"HLOOKUP(BW$7+0.5,$K$68:$DL$122,ROWS($B$12:$B53)+2,FALSE)","v":2798},{"$f":"HLOOKUP(BX$7+0.5,$K$68:$DL$122,ROWS($B$12:$B53)+2,FALSE)","v":626},{"$f":"HLOOKUP(BY$7+0.5,$K$68:$DL$122,ROWS($B$12:$B53)+2,FALSE)","v":68},{"$f":"HLOOKUP(BZ$7+0.5,$K$68:$DL$122,ROWS($B$12:$B53)+2,FALSE)","v":831},{"$f":"HLOOKUP(CA$7+0.5,$K$68:$DL$122,ROWS($B$12:$B53)+2,FALSE)","v":1601},{"$f":"HLOOKUP(CB$7+0.5,$K$68:$DL$122,ROWS($B$12:$B53)+2,FALSE)","v":1468},{"$f":"HLOOKUP(CC$7+0.5,$K$68:$DL$122,ROWS($B$12:$B53)+2,FALSE)","v":1445},{"$f":"HLOOKUP(CD$7+0.5,$K$68:$DL$122,ROWS($B$12:$B53)+2,FALSE)","v":1692},{"$f":"HLOOKUP(CE$7+0.5,$K$68:$DL$122,ROWS($B$12:$B53)+2,FALSE)","v":486},{"$f":"HLOOKUP(CF$7+0.5,$K$68:$DL$122,ROWS($B$12:$B53)+2,FALSE)","v":566},{"$f":"HLOOKUP(CG$7+0.5,$K$68:$DL$122,ROWS($B$12:$B53)+2,FALSE)","v":1261},{"$f":"HLOOKUP(CH$7+0.5,$K$68:$DL$122,ROWS($B$12:$B53)+2,FALSE)","v":447},{"$f":"HLOOKUP(CI$7+0.5,$K$68:$DL$122,ROWS($B$12:$B53)+2,FALSE)","v":1737},{"$f":"HLOOKUP(CJ$7+0.5,$K$68:$DL$122,ROWS($B$12:$B53)+2,FALSE)","v":393},{"$f":"HLOOKUP(CK$7+0.5,$K$68:$DL$122,ROWS($B$12:$B53)+2,FALSE)","v":1979},{"$f":"HLOOKUP(CL$7+0.5,$K$68:$DL$122,ROWS($B$12:$B53)+2,FALSE)","v":1671},{"$f":"HLOOKUP(CM$7+0.5,$K$68:$DL$122,ROWS($B$12:$B53)+2,FALSE)","v":999},{"$f":"HLOOKUP(CN$7+0.5,$K$68:$DL$122,ROWS($B$12:$B53)+2,FALSE)","v":329},{"$f":"HLOOKUP(CO$7+0.5,$K$68:$DL$122,ROWS($B$12:$B53)+2,FALSE)","v":722},{"$f":"HLOOKUP(CP$7+0.5,$K$68:$DL$122,ROWS($B$12:$B53)+2,FALSE)","v":280},{"$f":"HLOOKUP(CQ$7+0.5,$K$68:$DL$122,ROWS($B$12:$B53)+2,FALSE)","v":1445},{"$f":"HLOOKUP(CR$7+0.5,$K$68:$DL$122,ROWS($B$12:$B53)+2,FALSE)","v":609},{"$f":"HLOOKUP(CS$7+0.5,$K$68:$DL$122,ROWS($B$12:$B53)+2,FALSE)","v":3991},{"$f":"HLOOKUP(CT$7+0.5,$K$68:$DL$122,ROWS($B$12:$B53)+2,FALSE)","v":4356},{"$f":"HLOOKUP(CU$7+0.5,$K$68:$DL$122,ROWS($B$12:$B53)+2,FALSE)","v":213},{"$f":"HLOOKUP(CV$7+0.5,$K$68:$DL$122,ROWS($B$12:$B53)+2,FALSE)","v":2177},{"$f":"HLOOKUP(CW$7+0.5,$K$68:$DL$122,ROWS($B$12:$B53)+2,FALSE)","v":934},{"$f":"HLOOKUP(CX$7+0.5,$K$68:$DL$122,ROWS($B$12:$B53)+2,FALSE)","v":583},{"$f":"HLOOKUP(CY$7+0.5,$K$68:$DL$122,ROWS($B$12:$B53)+2,FALSE)","v":1139},{"$f":"HLOOKUP(CZ$7+0.5,$K$68:$DL$122,ROWS($B$12:$B53)+2,FALSE)","v":360},{"$f":"HLOOKUP(DA$7+0.5,$K$68:$DL$122,ROWS($B$12:$B53)+2,FALSE)","v":"N/A"},{"$f":"HLOOKUP(DB$7+0.5,$K$68:$DL$122,ROWS($B$12:$B53)+2,FALSE)","v":107},{"$f":"HLOOKUP(DC$7+0.5,$K$68:$DL$122,ROWS($B$12:$B53)+2,FALSE)","v":1252},{"$f":"HLOOKUP(DD$7+0.5,$K$68:$DL$122,ROWS($B$12:$B53)+2,FALSE)","v":4005},{"$f":"HLOOKUP(DE$7+0.5,$K$68:$DL$122,ROWS($B$12:$B53)+2,FALSE)","v":188},{"$f":"HLOOKUP(DF$7+0.5,$K$68:$DL$122,ROWS($B$12:$B53)+2,FALSE)","v":115},{"$f":"HLOOKUP(DG$7+0.5,$K$68:$DL$122,ROWS($B$12:$B53)+2,FALSE)","v":2193},{"$f":"HLOOKUP(DH$7+0.5,$K$68:$DL$122,ROWS($B$12:$B53)+2,FALSE)","v":1257},{"$f":"HLOOKUP(DI$7+0.5,$K$68:$DL$122,ROWS($B$12:$B53)+2,FALSE)","v":1114},{"$f":"HLOOKUP(DJ$7+0.5,$K$68:$DL$122,ROWS($B$12:$B53)+2,FALSE)","v":291},{"$f":"HLOOKUP(DK$7+0.5,$K$68:$DL$122,ROWS($B$12:$B53)+2,FALSE)","v":647},{"$f":"HLOOKUP(DL$7+0.5,$K$68:$DL$122,ROWS($B$12:$B53)+2,FALSE)","v":1534}]
[null,null,"South Dakota",814175,1297,688436,7824,94655,6542,3.9365052832119911E-3,{"$f":"HLOOKUP(K$7,$K$68:$DL$122,ROWS($B$12:$B54)+2,FALSE)","v":27506},{"$f":"HLOOKUP(L$7,$K$68:$DL$122,ROWS($B$12:$B54)+2,FALSE)","v":0},{"$f":"HLOOKUP(M$7,$K$68:$DL$122,ROWS($B$12:$B54)+2,FALSE)","v":554},{"$f":"HLOOKUP(N$7,$K$68:$DL$122,ROWS($B$12:$B54)+2,FALSE)","v":1422},{"$f":"HLOOKUP(O$7,$K$68:$DL$122,ROWS($B$12:$B54)+2,FALSE)","v":659},{"$f":"HLOOKUP(P$7,$K$68:$DL$122,ROWS($B$12:$B54)+2,FALSE)","v":1286},{"$f":"HLOOKUP(Q$7,$K$68:$DL$122,ROWS($B$12:$B54)+2,FALSE)","v":1021},{"$f":"HLOOKUP(R$7,$K$68:$DL$122,ROWS($B$12:$B54)+2,FALSE)","v":0},{"$f":"HLOOKUP(S$7,$K$68:$DL$122,ROWS($B$12:$B54)+2,FALSE)","v":0},{"$f":"HLOOKUP(T$7,$K$68:$DL$122,ROWS($B$12:$B54)+2,FALSE)","v":0},{"$f":"HLOOKUP(U$7,$K$68:$DL$122,ROWS($B$12:$B54)+2,FALSE)","v":101},{"$f":"HLOOKUP(V$7,$K$68:$DL$122,ROWS($B$12:$B54)+2,FALSE)","v":69},{"$f":"HLOOKUP(W$7,$K$68:$DL$122,ROWS($B$12:$B54)+2,FALSE)","v":0},{"$f":"HLOOKUP(X$7,$K$68:$DL$122,ROWS($B$12:$B54)+2,FALSE)","v":186},{"$f":"HLOOKUP(Y$7,$K$68:$DL$122,ROWS($B$12:$B54)+2,FALSE)","v":267},{"$f":"HLOOKUP(Z$7,$K$68:$DL$122,ROWS($B$12:$B54)+2,FALSE)","v":285},{"$f":"HLOOKUP(AA$7,$K$68:$DL$122,ROWS($B$12:$B54)+2,FALSE)","v":4772},{"$f":"HLOOKUP(AB$7,$K$68:$DL$122,ROWS($B$12:$B54)+2,FALSE)","v":144},{"$f":"HLOOKUP(AC$7,$K$68:$DL$122,ROWS($B$12:$B54)+2,FALSE)","v":211},{"$f":"HLOOKUP(AD$7,$K$68:$DL$122,ROWS($B$12:$B54)+2,FALSE)","v":0},{"$f":"HLOOKUP(AE$7,$K$68:$DL$122,ROWS($B$12:$B54)+2,FALSE)","v":0},{"$f":"HLOOKUP(AF$7,$K$68:$DL$122,ROWS($B$12:$B54)+2,FALSE)","v":254},{"$f":"HLOOKUP(AG$7,$K$68:$DL$122,ROWS($B$12:$B54)+2,FALSE)","v":113},{"$f":"HLOOKUP(AH$7,$K$68:$DL$122,ROWS($B$12:$B54)+2,FALSE)","v":239},{"$f":"HLOOKUP(AI$7,$K$68:$DL$122,ROWS($B$12:$B54)+2,FALSE)","v":5342},{"$f":"HLOOKUP(AJ$7,$K$68:$DL$122,ROWS($B$12:$B54)+2,FALSE)","v":129},{"$f":"HLOOKUP(AK$7,$K$68:$DL$122,ROWS($B$12:$B54)+2,FALSE)","v":354},{"$f":"HLOOKUP(AL$7,$K$68:$DL$122,ROWS($B$12:$B54)+2,FALSE)","v":232},{"$f":"HLOOKUP(AM$7,$K$68:$DL$122,ROWS($B$12:$B54)+2,FALSE)","v":1695},{"$f":"HLOOKUP(AN$7,$K$68:$DL$122,ROWS($B$12:$B54)+2,FALSE)","v":110},{"$f":"HLOOKUP(AO$7,$K$68:$DL$122,ROWS($B$12:$B54)+2,FALSE)","v":0},{"$f":"HLOOKUP(AP$7,$K$68:$DL$122,ROWS($B$12:$B54)+2,FALSE)","v":441},{"$f":"HLOOKUP(AQ$7,$K$68:$DL$122,ROWS($B$12:$B54)+2,FALSE)","v":513},{"$f":"HLOOKUP(AR$7,$K$68:$DL$122,ROWS($B$12:$B54)+2,FALSE)","v":6},{"$f":"HLOOKUP(AS$7,$K$68:$DL$122,ROWS($B$12:$B54)+2,FALSE)","v":166},{"$f":"HLOOKUP(AT$7,$K$68:$DL$122,ROWS($B$12:$B54)+2,FALSE)","v":2060},{"$f":"HLOOKUP(AU$7,$K$68:$DL$122,ROWS($B$12:$B54)+2,FALSE)","v":84},{"$f":"HLOOKUP(AV$7,$K$68:$DL$122,ROWS($B$12:$B54)+2,FALSE)","v":40},{"$f":"HLOOKUP(AW$7,$K$68:$DL$122,ROWS($B$12:$B54)+2,FALSE)","v":15},{"$f":"HLOOKUP(AX$7,$K$68:$DL$122,ROWS($B$12:$B54)+2,FALSE)","v":57},{"$f":"HLOOKUP(AY$7,$K$68:$DL$122,ROWS($B$12:$B54)+2,FALSE)","v":7},{"$f":"HLOOKUP(AZ$7,$K$68:$DL$122,ROWS($B$12:$B54)+2,FALSE)","v":529},{"$f":"HLOOKUP(BA$7,$K$68:$DL$122,ROWS($B$12:$B54)+2,FALSE)","v":"N/A"},{"$f":"HLOOKUP(BB$7,$K$68:$DL$122,ROWS($B$12:$B54)+2,FALSE)","v":0},{"$f":"HLOOKUP(BC$7,$K$68:$DL$122,ROWS($B$12:$B54)+2,FALSE)","v":1156},{"$f":"HLOOKUP(BD$7,$K$68:$DL$122,ROWS($B$12:$B54)+2,FALSE)","v":560},{"$f":"HLOOKUP(BE$7,$K$68:$DL$122,ROWS($B$12:$B54)+2,FALSE)","v":0},{"$f":"HLOOKUP(BF$7,$K$68:$DL$122,ROWS($B$12:$B54)+2,FALSE)","v":79},{"$f":"HLOOKUP(BG$7,$K$68:$DL$122,ROWS($B$12:$B54)+2,FALSE)","v":557},{"$f":"HLOOKUP(BH$7,$K$68:$DL$122,ROWS($B$12:$B54)+2,FALSE)","v":0},{"$f":"HLOOKUP(BI$7,$K$68:$DL$122,ROWS($B$12:$B54)+2,FALSE)","v":481},{"$f":"HLOOKUP(BJ$7,$K$68:$DL$122,ROWS($B$12:$B54)+2,FALSE)","v":1310},{"$f":"HLOOKUP(BK$7,$K$68:$DL$122,ROWS($B$12:$B54)+2,FALSE)","v":0},{"$f":"HLOOKUP(BL$7+0.5,$K$68:$DL$122,ROWS($B$12:$B54)+2,FALSE)","v":3893},{"$f":"HLOOKUP(BM$7+0.5,$K$68:$DL$122,ROWS($B$12:$B54)+2,FALSE)","v":155},{"$f":"HLOOKUP(BN$7+0.5,$K$68:$DL$122,ROWS($B$12:$B54)+2,FALSE)","v":492},{"$f":"HLOOKUP(BO$7+0.5,$K$68:$DL$122,ROWS($B$12:$B54)+2,FALSE)","v":1445},{"$f":"HLOOKUP(BP$7+0.5,$K$68:$DL$122,ROWS($B$12:$B54)+2,FALSE)","v":778},{"$f":"HLOOKUP(BQ$7+0.5,$K$68:$DL$122,ROWS($B$12:$B54)+2,FALSE)","v":622},{"$f":"HLOOKUP(BR$7+0.5,$K$68:$DL$122,ROWS($B$12:$B54)+2,FALSE)","v":604},{"$f":"HLOOKUP(BS$7+0.5,$K$68:$DL$122,ROWS($B$12:$B54)+2,FALSE)","v":155},{"$f":"HLOOKUP(BT$7+0.5,$K$68:$DL$122,ROWS($B$12:$B54)+2,FALSE)","v":155},{"$f":"HLOOKUP(BU$7+0.5,$K$68:$DL$122,ROWS($B$12:$B54)+2,FALSE)","v":155},{"$f":"HLOOKUP(BV$7+0.5,$K$68:$DL$122,ROWS($B$12:$B54)+2,FALSE)","v":102},{"$f":"HLOOKUP(BW$7+0.5,$K$68:$DL$122,ROWS($B$12:$B54)+2,FALSE)","v":104},{"$f":"HLOOKUP(BX$7+0.5,$K$68:$DL$122,ROWS($B$12:$B54)+2,FALSE)","v":155},{"$f":"HLOOKUP(BY$7+0.5,$K$68:$DL$122,ROWS($B$12:$B54)+2,FALSE)","v":262},{"$f":"HLOOKUP(BZ$7+0.5,$K$68:$DL$122,ROWS($B$12:$B54)+2,FALSE)","v":235},{"$f":"HLOOKUP(CA$7+0.5,$K$68:$DL$122,ROWS($B$12:$B54)+2,FALSE)","v":378},{"$f":"HLOOKUP(CB$7+0.5,$K$68:$DL$122,ROWS($B$12:$B54)+2,FALSE)","v":1898},{"$f":"HLOOKUP(CC$7+0.5,$K$68:$DL$122,ROWS($B$12:$B54)+2,FALSE)","v":212},{"$f":"HLOOKUP(CD$7+0.5,$K$68:$DL$122,ROWS($B$12:$B54)+2,FALSE)","v":208},{"$f":"HLOOKUP(CE$7+0.5,$K$68:$DL$122,ROWS($B$12:$B54)+2,FALSE)","v":155},{"$f":"HLOOKUP(CF$7+0.5,$K$68:$DL$122,ROWS($B$12:$B54)+2,FALSE)","v":155},{"$f":"HLOOKUP(CG$7+0.5,$K$68:$DL$122,ROWS($B$12:$B54)+2,FALSE)","v":222},{"$f":"HLOOKUP(CH$7+0.5,$K$68:$DL$122,ROWS($B$12:$B54)+2,FALSE)","v":179},{"$f":"HLOOKUP(CI$7+0.5,$K$68:$DL$122,ROWS($B$12:$B54)+2,FALSE)","v":201},{"$f":"HLOOKUP(CJ$7+0.5,$K$68:$DL$122,ROWS($B$12:$B54)+2,FALSE)","v":1981},{"$f":"HLOOKUP(CK$7+0.5,$K$68:$DL$122,ROWS($B$12:$B54)+2,FALSE)","v":155},{"$f":"HLOOKUP(CL$7+0.5,$K$68:$DL$122,ROWS($B$12:$B54)+2,FALSE)","v":294},{"$f":"HLOOKUP(CM$7+0.5,$K$68:$DL$122,ROWS($B$12:$B54)+2,FALSE)","v":258},{"$f":"HLOOKUP(CN$7+0.5,$K$68:$DL$122,ROWS($B$12:$B54)+2,FALSE)","v":784},{"$f":"HLOOKUP(CO$7+0.5,$K$68:$DL$122,ROWS($B$12:$B54)+2,FALSE)","v":177},{"$f":"HLOOKUP(CP$7+0.5,$K$68:$DL$122,ROWS($B$12:$B54)+2,FALSE)","v":155},{"$f":"HLOOKUP(CQ$7+0.5,$K$68:$DL$122,ROWS($B$12:$B54)+2,FALSE)","v":473},{"$f":"HLOOKUP(CR$7+0.5,$K$68:$DL$122,ROWS($B$12:$B54)+2,FALSE)","v":571},{"$f":"HLOOKUP(CS$7+0.5,$K$68:$DL$122,ROWS($B$12:$B54)+2,FALSE)","v":11},{"$f":"HLOOKUP(CT$7+0.5,$K$68:$DL$122,ROWS($B$12:$B54)+2,FALSE)","v":257},{"$f":"HLOOKUP(CU$7+0.5,$K$68:$DL$122,ROWS($B$12:$B54)+2,FALSE)","v":1025},{"$f":"HLOOKUP(CV$7+0.5,$K$68:$DL$122,ROWS($B$12:$B54)+2,FALSE)","v":102},{"$f":"HLOOKUP(CW$7+0.5,$K$68:$DL$122,ROWS($B$12:$B54)+2,FALSE)","v":46},{"$f":"HLOOKUP(CX$7+0.5,$K$68:$DL$122,ROWS($B$12:$B54)+2,FALSE)","v":26},{"$f":"HLOOKUP(CY$7+0.5,$K$68:$DL$122,ROWS($B$12:$B54)+2,FALSE)","v":77},{"$f":"HLOOKUP(CZ$7+0.5,$K$68:$DL$122,ROWS($B$12:$B54)+2,FALSE)","v":12},{"$f":"HLOOKUP(DA$7+0.5,$K$68:$DL$122,ROWS($B$12:$B54)+2,FALSE)","v":706},{"$f":"HLOOKUP(DB$7+0.5,$K$68:$DL$122,ROWS($B$12:$B54)+2,FALSE)","v":"N/A"},{"$f":"HLOOKUP(DC$7+0.5,$K$68:$DL$122,ROWS($B$12:$B54)+2,FALSE)","v":155},{"$f":"HLOOKUP(DD$7+0.5,$K$68:$DL$122,ROWS($B$12:$B54)+2,FALSE)","v":384},{"$f":"HLOOKUP(DE$7+0.5,$K$68:$DL$122,ROWS($B$12:$B54)+2,FALSE)","v":567},{"$f":"HLOOKUP(DF$7+0.5,$K$68:$DL$122,ROWS($B$12:$B54)+2,FALSE)","v":155},{"$f":"HLOOKUP(DG$7+0.5,$K$68:$DL$122,ROWS($B$12:$B54)+2,FALSE)","v":92},{"$f":"HLOOKUP(DH$7+0.5,$K$68:$DL$122,ROWS($B$12:$B54)+2,FALSE)","v":780},{"$f":"HLOOKUP(DI$7+0.5,$K$68:$DL$122,ROWS($B$12:$B54)+2,FALSE)","v":155},{"$f":"HLOOKUP(DJ$7+0.5,$K$68:$DL$122,ROWS($B$12:$B54)+2,FALSE)","v":594},{"$f":"HLOOKUP(DK$7+0.5,$K$68:$DL$122,ROWS($B$12:$B54)+2,FALSE)","v":880},{"$f":"HLOOKUP(DL$7+0.5,$K$68:$DL$122,ROWS($B$12:$B54)+2,FALSE)","v":155}]
[null,null,"Tennessee",6333466,4450,5342978,29750,794556,26578,2.4468129563203336E-2,{"$f":"HLOOKUP(K$7,$K$68:$DL$122,ROWS($B$12:$B55)+2,FALSE)","v":170969},{"$f":"HLOOKUP(L$7,$K$68:$DL$122,ROWS($B$12:$B55)+2,FALSE)","v":9326},{"$f":"HLOOKUP(M$7,$K$68:$DL$122,ROWS($B$12:$B55)+2,FALSE)","v":531},{"$f":"HLOOKUP(N$7,$K$68:$DL$122,ROWS($B$12:$B55)+2,FALSE)","v":1346},{"$f":"HLOOKUP(O$7,$K$68:$DL$122,ROWS($B$12:$B55)+2,FALSE)","v":7393},{"$f":"HLOOKUP(P$7,$K$68:$DL$122,ROWS($B$12:$B55)+2,FALSE)","v":7130},{"$f":"HLOOKUP(Q$7,$K$68:$DL$122,ROWS($B$12:$B55)+2,FALSE)","v":1372},{"$f":"HLOOKUP(R$7,$K$68:$DL$122,ROWS($B$12:$B55)+2,FALSE)","v":150},{"$f":"HLOOKUP(S$7,$K$68:$DL$122,ROWS($B$12:$B55)+2,FALSE)","v":155},{"$f":"HLOOKUP(T$7,$K$68:$DL$122,ROWS($B$12:$B55)+2,FALSE)","v":307},{"$f":"HLOOKUP(U$7,$K$68:$DL$122,ROWS($B$12:$B55)+2,FALSE)","v":15491},{"$f":"HLOOKUP(V$7,$K$68:$DL$122,ROWS($B$12:$B55)+2,FALSE)","v":17507},{"$f":"HLOOKUP(W$7,$K$68:$DL$122,ROWS($B$12:$B55)+2,FALSE)","v":179},{"$f":"HLOOKUP(X$7,$K$68:$DL$122,ROWS($B$12:$B55)+2,FALSE)","v":0},{"$f":"HLOOKUP(Y$7,$K$68:$DL$122,ROWS($B$12:$B55)+2,FALSE)","v":8593},{"$f":"HLOOKUP(Z$7,$K$68:$DL$122,ROWS($B$12:$B55)+2,FALSE)","v":5645},{"$f":"HLOOKUP(AA$7,$K$68:$DL$122,ROWS($B$12:$B55)+2,FALSE)","v":387},{"$f":"HLOOKUP(AB$7,$K$68:$DL$122,ROWS($B$12:$B55)+2,FALSE)","v":1805},{"$f":"HLOOKUP(AC$7,$K$68:$DL$122,ROWS($B$12:$B55)+2,FALSE)","v":13884},{"$f":"HLOOKUP(AD$7,$K$68:$DL$122,ROWS($B$12:$B55)+2,FALSE)","v":1901},{"$f":"HLOOKUP(AE$7,$K$68:$DL$122,ROWS($B$12:$B55)+2,FALSE)","v":9},{"$f":"HLOOKUP(AF$7,$K$68:$DL$122,ROWS($B$12:$B55)+2,FALSE)","v":1135},{"$f":"HLOOKUP(AG$7,$K$68:$DL$122,ROWS($B$12:$B55)+2,FALSE)","v":1690},{"$f":"HLOOKUP(AH$7,$K$68:$DL$122,ROWS($B$12:$B55)+2,FALSE)","v":5983},{"$f":"HLOOKUP(AI$7,$K$68:$DL$122,ROWS($B$12:$B55)+2,FALSE)","v":445},{"$f":"HLOOKUP(AJ$7,$K$68:$DL$122,ROWS($B$12:$B55)+2,FALSE)","v":9172},{"$f":"HLOOKUP(AK$7,$K$68:$DL$122,ROWS($B$12:$B55)+2,FALSE)","v":3795},{"$f":"HLOOKUP(AL$7,$K$68:$DL$122,ROWS($B$12:$B55)+2,FALSE)","v":43},{"$f":"HLOOKUP(AM$7,$K$68:$DL$122,ROWS($B$12:$B55)+2,FALSE)","v":631},{"$f":"HLOOKUP(AN$7,$K$68:$DL$122,ROWS($B$12:$B55)+2,FALSE)","v":883},{"$f":"HLOOKUP(AO$7,$K$68:$DL$122,ROWS($B$12:$B55)+2,FALSE)","v":132},{"$f":"HLOOKUP(AP$7,$K$68:$DL$122,ROWS($B$12:$B55)+2,FALSE)","v":1396},{"$f":"HLOOKUP(AQ$7,$K$68:$DL$122,ROWS($B$12:$B55)+2,FALSE)","v":381},{"$f":"HLOOKUP(AR$7,$K$68:$DL$122,ROWS($B$12:$B55)+2,FALSE)","v":4921},{"$f":"HLOOKUP(AS$7,$K$68:$DL$122,ROWS($B$12:$B55)+2,FALSE)","v":9353},{"$f":"HLOOKUP(AT$7,$K$68:$DL$122,ROWS($B$12:$B55)+2,FALSE)","v":50},{"$f":"HLOOKUP(AU$7,$K$68:$DL$122,ROWS($B$12:$B55)+2,FALSE)","v":5944},{"$f":"HLOOKUP(AV$7,$K$68:$DL$122,ROWS($B$12:$B55)+2,FALSE)","v":3166},{"$f":"HLOOKUP(AW$7,$K$68:$DL$122,ROWS($B$12:$B55)+2,FALSE)","v":726},{"$f":"HLOOKUP(AX$7,$K$68:$DL$122,ROWS($B$12:$B55)+2,FALSE)","v":3360},{"$f":"HLOOKUP(AY$7,$K$68:$DL$122,ROWS($B$12:$B55)+2,FALSE)","v":14},{"$f":"HLOOKUP(AZ$7,$K$68:$DL$122,ROWS($B$12:$B55)+2,FALSE)","v":5531},{"$f":"HLOOKUP(BA$7,$K$68:$DL$122,ROWS($B$12:$B55)+2,FALSE)","v":181},{"$f":"HLOOKUP(BB$7,$K$68:$DL$122,ROWS($B$12:$B55)+2,FALSE)","v":"N/A"},{"$f":"HLOOKUP(BC$7,$K$68:$DL$122,ROWS($B$12:$B55)+2,FALSE)","v":7009},{"$f":"HLOOKUP(BD$7,$K$68:$DL$122,ROWS($B$12:$B55)+2,FALSE)","v":200},{"$f":"HLOOKUP(BE$7,$K$68:$DL$122,ROWS($B$12:$B55)+2,FALSE)","v":38},{"$f":"HLOOKUP(BF$7,$K$68:$DL$122,ROWS($B$12:$B55)+2,FALSE)","v":6098},{"$f":"HLOOKUP(BG$7,$K$68:$DL$122,ROWS($B$12:$B55)+2,FALSE)","v":2852},{"$f":"HLOOKUP(BH$7,$K$68:$DL$122,ROWS($B$12:$B55)+2,FALSE)","v":1385},{"$f":"HLOOKUP(BI$7,$K$68:$DL$122,ROWS($B$12:$B55)+2,FALSE)","v":1213},{"$f":"HLOOKUP(BJ$7,$K$68:$DL$122,ROWS($B$12:$B55)+2,FALSE)","v":131},{"$f":"HLOOKUP(BK$7,$K$68:$DL$122,ROWS($B$12:$B55)+2,FALSE)","v":1083},{"$f":"HLOOKUP(BL$7+0.5,$K$68:$DL$122,ROWS($B$12:$B55)+2,FALSE)","v":13046},{"$f":"HLOOKUP(BM$7+0.5,$K$68:$DL$122,ROWS($B$12:$B55)+2,FALSE)","v":2717},{"$f":"HLOOKUP(BN$7+0.5,$K$68:$DL$122,ROWS($B$12:$B55)+2,FALSE)","v":465},{"$f":"HLOOKUP(BO$7+0.5,$K$68:$DL$122,ROWS($B$12:$B55)+2,FALSE)","v":1176},{"$f":"HLOOKUP(BP$7+0.5,$K$68:$DL$122,ROWS($B$12:$B55)+2,FALSE)","v":3038},{"$f":"HLOOKUP(BQ$7+0.5,$K$68:$DL$122,ROWS($B$12:$B55)+2,FALSE)","v":2041},{"$f":"HLOOKUP(BR$7+0.5,$K$68:$DL$122,ROWS($B$12:$B55)+2,FALSE)","v":902},{"$f":"HLOOKUP(BS$7+0.5,$K$68:$DL$122,ROWS($B$12:$B55)+2,FALSE)","v":163},{"$f":"HLOOKUP(BT$7+0.5,$K$68:$DL$122,ROWS($B$12:$B55)+2,FALSE)","v":191},{"$f":"HLOOKUP(BU$7+0.5,$K$68:$DL$122,ROWS($B$12:$B55)+2,FALSE)","v":186},{"$f":"HLOOKUP(BV$7+0.5,$K$68:$DL$122,ROWS($B$12:$B55)+2,FALSE)","v":3282},{"$f":"HLOOKUP(BW$7+0.5,$K$68:$DL$122,ROWS($B$12:$B55)+2,FALSE)","v":4897},{"$f":"HLOOKUP(BX$7+0.5,$K$68:$DL$122,ROWS($B$12:$B55)+2,FALSE)","v":230},{"$f":"HLOOKUP(BY$7+0.5,$K$68:$DL$122,ROWS($B$12:$B55)+2,FALSE)","v":208},{"$f":"HLOOKUP(BZ$7+0.5,$K$68:$DL$122,ROWS($B$12:$B55)+2,FALSE)","v":2245},{"$f":"HLOOKUP(CA$7+0.5,$K$68:$DL$122,ROWS($B$12:$B55)+2,FALSE)","v":1932},{"$f":"HLOOKUP(CB$7+0.5,$K$68:$DL$122,ROWS($B$12:$B55)+2,FALSE)","v":432},{"$f":"HLOOKUP(CC$7+0.5,$K$68:$DL$122,ROWS($B$12:$B55)+2,FALSE)","v":1529},{"$f":"HLOOKUP(CD$7+0.5,$K$68:$DL$122,ROWS($B$12:$B55)+2,FALSE)","v":2654},{"$f":"HLOOKUP(CE$7+0.5,$K$68:$DL$122,ROWS($B$12:$B55)+2,FALSE)","v":908},{"$f":"HLOOKUP(CF$7+0.5,$K$68:$DL$122,ROWS($B$12:$B55)+2,FALSE)","v":17},{"$f":"HLOOKUP(CG$7+0.5,$K$68:$DL$122,ROWS($B$12:$B55)+2,FALSE)","v":675},{"$f":"HLOOKUP(CH$7+0.5,$K$68:$DL$122,ROWS($B$12:$B55)+2,FALSE)","v":1886},{"$f":"HLOOKUP(CI$7+0.5,$K$68:$DL$122,ROWS($B$12:$B55)+2,FALSE)","v":2441},{"$f":"HLOOKUP(CJ$7+0.5,$K$68:$DL$122,ROWS($B$12:$B55)+2,FALSE)","v":315},{"$f":"HLOOKUP(CK$7+0.5,$K$68:$DL$122,ROWS($B$12:$B55)+2,FALSE)","v":2752},{"$f":"HLOOKUP(CL$7+0.5,$K$68:$DL$122,ROWS($B$12:$B55)+2,FALSE)","v":1409},{"$f":"HLOOKUP(CM$7+0.5,$K$68:$DL$122,ROWS($B$12:$B55)+2,FALSE)","v":69},{"$f":"HLOOKUP(CN$7+0.5,$K$68:$DL$122,ROWS($B$12:$B55)+2,FALSE)","v":660},{"$f":"HLOOKUP(CO$7+0.5,$K$68:$DL$122,ROWS($B$12:$B55)+2,FALSE)","v":816},{"$f":"HLOOKUP(CP$7+0.5,$K$68:$DL$122,ROWS($B$12:$B55)+2,FALSE)","v":134},{"$f":"HLOOKUP(CQ$7+0.5,$K$68:$DL$122,ROWS($B$12:$B55)+2,FALSE)","v":850},{"$f":"HLOOKUP(CR$7+0.5,$K$68:$DL$122,ROWS($B$12:$B55)+2,FALSE)","v":330},{"$f":"HLOOKUP(CS$7+0.5,$K$68:$DL$122,ROWS($B$12:$B55)+2,FALSE)","v":1493},{"$f":"HLOOKUP(CT$7+0.5,$K$68:$DL$122,ROWS($B$12:$B55)+2,FALSE)","v":2989},{"$f":"HLOOKUP(CU$7+0.5,$K$68:$DL$122,ROWS($B$12:$B55)+2,FALSE)","v":92},{"$f":"HLOOKUP(CV$7+0.5,$K$68:$DL$122,ROWS($B$12:$B55)+2,FALSE)","v":2044},{"$f":"HLOOKUP(CW$7+0.5,$K$68:$DL$122,ROWS($B$12:$B55)+2,FALSE)","v":3444},{"$f":"HLOOKUP(CX$7+0.5,$K$68:$DL$122,ROWS($B$12:$B55)+2,FALSE)","v":610},{"$f":"HLOOKUP(CY$7+0.5,$K$68:$DL$122,ROWS($B$12:$B55)+2,FALSE)","v":1716},{"$f":"HLOOKUP(CZ$7+0.5,$K$68:$DL$122,ROWS($B$12:$B55)+2,FALSE)","v":31},{"$f":"HLOOKUP(DA$7+0.5,$K$68:$DL$122,ROWS($B$12:$B55)+2,FALSE)","v":1883},{"$f":"HLOOKUP(DB$7+0.5,$K$68:$DL$122,ROWS($B$12:$B55)+2,FALSE)","v":156},{"$f":"HLOOKUP(DC$7+0.5,$K$68:$DL$122,ROWS($B$12:$B55)+2,FALSE)","v":"N/A"},{"$f":"HLOOKUP(DD$7+0.5,$K$68:$DL$122,ROWS($B$12:$B55)+2,FALSE)","v":1999},{"$f":"HLOOKUP(DE$7+0.5,$K$68:$DL$122,ROWS($B$12:$B55)+2,FALSE)","v":223},{"$f":"HLOOKUP(DF$7+0.5,$K$68:$DL$122,ROWS($B$12:$B55)+2,FALSE)","v":64},{"$f":"HLOOKUP(DG$7+0.5,$K$68:$DL$122,ROWS($B$12:$B55)+2,FALSE)","v":1279},{"$f":"HLOOKUP(DH$7+0.5,$K$68:$DL$122,ROWS($B$12:$B55)+2,FALSE)","v":2746},{"$f":"HLOOKUP(DI$7+0.5,$K$68:$DL$122,ROWS($B$12:$B55)+2,FALSE)","v":764},{"$f":"HLOOKUP(DJ$7+0.5,$K$68:$DL$122,ROWS($B$12:$B55)+2,FALSE)","v":631},{"$f":"HLOOKUP(DK$7+0.5,$K$68:$DL$122,ROWS($B$12:$B55)+2,FALSE)","v":214},{"$f":"HLOOKUP(DL$7+0.5,$K$68:$DL$122,ROWS($B$12:$B55)+2,FALSE)","v":1191}]
[null,null,"Texas",25327104,10987,20984855,65490,3648260,63784,7.3664713822677794E-2,{"$f":"HLOOKUP(K$7,$K$68:$DL$122,ROWS($B$12:$B56)+2,FALSE)","v":514726},{"$f":"HLOOKUP(L$7,$K$68:$DL$122,ROWS($B$12:$B56)+2,FALSE)","v":8747},{"$f":"HLOOKUP(M$7,$K$68:$DL$122,ROWS($B$12:$B56)+2,FALSE)","v":6670},{"$f":"HLOOKUP(N$7,$K$68:$DL$122,ROWS($B$12:$B56)+2,FALSE)","v":20073},{"$f":"HLOOKUP(O$7,$K$68:$DL$122,ROWS($B$12:$B56)+2,FALSE)","v":16461},{"$f":"HLOOKUP(P$7,$K$68:$DL$122,ROWS($B$12:$B56)+2,FALSE)","v":58992},{"$f":"HLOOKUP(Q$7,$K$68:$DL$122,ROWS($B$12:$B56)+2,FALSE)","v":19126},{"$f":"HLOOKUP(R$7,$K$68:$DL$122,ROWS($B$12:$B56)+2,FALSE)","v":2927},{"$f":"HLOOKUP(S$7,$K$68:$DL$122,ROWS($B$12:$B56)+2,FALSE)","v":884},{"$f":"HLOOKUP(T$7,$K$68:$DL$122,ROWS($B$12:$B56)+2,FALSE)","v":2276},{"$f":"HLOOKUP(U$7,$K$68:$DL$122,ROWS($B$12:$B56)+2,FALSE)","v":35777},{"$f":"HLOOKUP(V$7,$K$68:$DL$122,ROWS($B$12:$B56)+2,FALSE)","v":17401},{"$f":"HLOOKUP(W$7,$K$68:$DL$122,ROWS($B$12:$B56)+2,FALSE)","v":6106},{"$f":"HLOOKUP(X$7,$K$68:$DL$122,ROWS($B$12:$B56)+2,FALSE)","v":4379},{"$f":"HLOOKUP(Y$7,$K$68:$DL$122,ROWS($B$12:$B56)+2,FALSE)","v":15064},{"$f":"HLOOKUP(Z$7,$K$68:$DL$122,ROWS($B$12:$B56)+2,FALSE)","v":10265},{"$f":"HLOOKUP(AA$7,$K$68:$DL$122,ROWS($B$12:$B56)+2,FALSE)","v":3236},{"$f":"HLOOKUP(AB$7,$K$68:$DL$122,ROWS($B$12:$B56)+2,FALSE)","v":12766},{"$f":"HLOOKUP(AC$7,$K$68:$DL$122,ROWS($B$12:$B56)+2,FALSE)","v":6616},{"$f":"HLOOKUP(AD$7,$K$68:$DL$122,ROWS($B$12:$B56)+2,FALSE)","v":25513},{"$f":"HLOOKUP(AE$7,$K$68:$DL$122,ROWS($B$12:$B56)+2,FALSE)","v":1357},{"$f":"HLOOKUP(AF$7,$K$68:$DL$122,ROWS($B$12:$B56)+2,FALSE)","v":9443},{"$f":"HLOOKUP(AG$7,$K$68:$DL$122,ROWS($B$12:$B56)+2,FALSE)","v":5035},{"$f":"HLOOKUP(AH$7,$K$68:$DL$122,ROWS($B$12:$B56)+2,FALSE)","v":15654},{"$f":"HLOOKUP(AI$7,$K$68:$DL$122,ROWS($B$12:$B56)+2,FALSE)","v":7691},{"$f":"HLOOKUP(AJ$7,$K$68:$DL$122,ROWS($B$12:$B56)+2,FALSE)","v":6048},{"$f":"HLOOKUP(AK$7,$K$68:$DL$122,ROWS($B$12:$B56)+2,FALSE)","v":13473},{"$f":"HLOOKUP(AL$7,$K$68:$DL$122,ROWS($B$12:$B56)+2,FALSE)","v":537},{"$f":"HLOOKUP(AM$7,$K$68:$DL$122,ROWS($B$12:$B56)+2,FALSE)","v":3837},{"$f":"HLOOKUP(AN$7,$K$68:$DL$122,ROWS($B$12:$B56)+2,FALSE)","v":7793},{"$f":"HLOOKUP(AO$7,$K$68:$DL$122,ROWS($B$12:$B56)+2,FALSE)","v":459},{"$f":"HLOOKUP(AP$7,$K$68:$DL$122,ROWS($B$12:$B56)+2,FALSE)","v":7578},{"$f":"HLOOKUP(AQ$7,$K$68:$DL$122,ROWS($B$12:$B56)+2,FALSE)","v":15225},{"$f":"HLOOKUP(AR$7,$K$68:$DL$122,ROWS($B$12:$B56)+2,FALSE)","v":26155},{"$f":"HLOOKUP(AS$7,$K$68:$DL$122,ROWS($B$12:$B56)+2,FALSE)","v":14956},{"$f":"HLOOKUP(AT$7,$K$68:$DL$122,ROWS($B$12:$B56)+2,FALSE)","v":809},{"$f":"HLOOKUP(AU$7,$K$68:$DL$122,ROWS($B$12:$B56)+2,FALSE)","v":12315},{"$f":"HLOOKUP(AV$7,$K$68:$DL$122,ROWS($B$12:$B56)+2,FALSE)","v":19302},{"$f":"HLOOKUP(AW$7,$K$68:$DL$122,ROWS($B$12:$B56)+2,FALSE)","v":3743},{"$f":"HLOOKUP(AX$7,$K$68:$DL$122,ROWS($B$12:$B56)+2,FALSE)","v":9107},{"$f":"HLOOKUP(AY$7,$K$68:$DL$122,ROWS($B$12:$B56)+2,FALSE)","v":1297},{"$f":"HLOOKUP(AZ$7,$K$68:$DL$122,ROWS($B$12:$B56)+2,FALSE)","v":4075},{"$f":"HLOOKUP(BA$7,$K$68:$DL$122,ROWS($B$12:$B56)+2,FALSE)","v":1486},{"$f":"HLOOKUP(BB$7,$K$68:$DL$122,ROWS($B$12:$B56)+2,FALSE)","v":10788},{"$f":"HLOOKUP(BC$7,$K$68:$DL$122,ROWS($B$12:$B56)+2,FALSE)","v":"N/A"},{"$f":"HLOOKUP(BD$7,$K$68:$DL$122,ROWS($B$12:$B56)+2,FALSE)","v":5234},{"$f":"HLOOKUP(BE$7,$K$68:$DL$122,ROWS($B$12:$B56)+2,FALSE)","v":349},{"$f":"HLOOKUP(BF$7,$K$68:$DL$122,ROWS($B$12:$B56)+2,FALSE)","v":13231},{"$f":"HLOOKUP(BG$7,$K$68:$DL$122,ROWS($B$12:$B56)+2,FALSE)","v":15325},{"$f":"HLOOKUP(BH$7,$K$68:$DL$122,ROWS($B$12:$B56)+2,FALSE)","v":663},{"$f":"HLOOKUP(BI$7,$K$68:$DL$122,ROWS($B$12:$B56)+2,FALSE)","v":5982},{"$f":"HLOOKUP(BJ$7,$K$68:$DL$122,ROWS($B$12:$B56)+2,FALSE)","v":2500},{"$f":"HLOOKUP(BK$7,$K$68:$DL$122,ROWS($B$12:$B56)+2,FALSE)","v":5225},{"$f":"HLOOKUP(BL$7+0.5,$K$68:$DL$122,ROWS($B$12:$B56)+2,FALSE)","v":23860},{"$f":"HLOOKUP(BM$7+0.5,$K$68:$DL$122,ROWS($B$12:$B56)+2,FALSE)","v":2609},{"$f":"HLOOKUP(BN$7+0.5,$K$68:$DL$122,ROWS($B$12:$B56)+2,FALSE)","v":2828},{"$f":"HLOOKUP(BO$7+0.5,$K$68:$DL$122,ROWS($B$12:$B56)+2,FALSE)","v":5295},{"$f":"HLOOKUP(BP$7+0.5,$K$68:$DL$122,ROWS($B$12:$B56)+2,FALSE)","v":3965},{"$f":"HLOOKUP(BQ$7+0.5,$K$68:$DL$122,ROWS($B$12:$B56)+2,FALSE)","v":7044},{"$f":"HLOOKUP(BR$7+0.5,$K$68:$DL$122,ROWS($B$12:$B56)+2,FALSE)","v":3821},{"$f":"HLOOKUP(BS$7+0.5,$K$68:$DL$122,ROWS($B$12:$B56)+2,FALSE)","v":1710},{"$f":"HLOOKUP(BT$7+0.5,$K$68:$DL$122,ROWS($B$12:$B56)+2,FALSE)","v":658},{"$f":"HLOOKUP(BU$7+0.5,$K$68:$DL$122,ROWS($B$12:$B56)+2,FALSE)","v":1540},{"$f":"HLOOKUP(BV$7+0.5,$K$68:$DL$122,ROWS($B$12:$B56)+2,FALSE)","v":6888},{"$f":"HLOOKUP(BW$7+0.5,$K$68:$DL$122,ROWS($B$12:$B56)+2,FALSE)","v":3608},{"$f":"HLOOKUP(BX$7+0.5,$K$68:$DL$122,ROWS($B$12:$B56)+2,FALSE)","v":2623},{"$f":"HLOOKUP(BY$7+0.5,$K$68:$DL$122,ROWS($B$12:$B56)+2,FALSE)","v":3119},{"$f":"HLOOKUP(BZ$7+0.5,$K$68:$DL$122,ROWS($B$12:$B56)+2,FALSE)","v":3097},{"$f":"HLOOKUP(CA$7+0.5,$K$68:$DL$122,ROWS($B$12:$B56)+2,FALSE)","v":3693},{"$f":"HLOOKUP(CB$7+0.5,$K$68:$DL$122,ROWS($B$12:$B56)+2,FALSE)","v":1628},{"$f":"HLOOKUP(CC$7+0.5,$K$68:$DL$122,ROWS($B$12:$B56)+2,FALSE)","v":4731},{"$f":"HLOOKUP(CD$7+0.5,$K$68:$DL$122,ROWS($B$12:$B56)+2,FALSE)","v":2648},{"$f":"HLOOKUP(CE$7+0.5,$K$68:$DL$122,ROWS($B$12:$B56)+2,FALSE)","v":5283},{"$f":"HLOOKUP(CF$7+0.5,$K$68:$DL$122,ROWS($B$12:$B56)+2,FALSE)","v":1052},{"$f":"HLOOKUP(CG$7+0.5,$K$68:$DL$122,ROWS($B$12:$B56)+2,FALSE)","v":3323},{"$f":"HLOOKUP(CH$7+0.5,$K$68:$DL$122,ROWS($B$12:$B56)+2,FALSE)","v":1644},{"$f":"HLOOKUP(CI$7+0.5,$K$68:$DL$122,ROWS($B$12:$B56)+2,FALSE)","v":4327},{"$f":"HLOOKUP(CJ$7+0.5,$K$68:$DL$122,ROWS($B$12:$B56)+2,FALSE)","v":2576},{"$f":"HLOOKUP(CK$7+0.5,$K$68:$DL$122,ROWS($B$12:$B56)+2,FALSE)","v":2921},{"$f":"HLOOKUP(CL$7+0.5,$K$68:$DL$122,ROWS($B$12:$B56)+2,FALSE)","v":3950},{"$f":"HLOOKUP(CM$7+0.5,$K$68:$DL$122,ROWS($B$12:$B56)+2,FALSE)","v":423},{"$f":"HLOOKUP(CN$7+0.5,$K$68:$DL$122,ROWS($B$12:$B56)+2,FALSE)","v":2060},{"$f":"HLOOKUP(CO$7+0.5,$K$68:$DL$122,ROWS($B$12:$B56)+2,FALSE)","v":2927},{"$f":"HLOOKUP(CP$7+0.5,$K$68:$DL$122,ROWS($B$12:$B56)+2,FALSE)","v":334},{"$f":"HLOOKUP(CQ$7+0.5,$K$68:$DL$122,ROWS($B$12:$B56)+2,FALSE)","v":2982},{"$f":"HLOOKUP(CR$7+0.5,$K$68:$DL$122,ROWS($B$12:$B56)+2,FALSE)","v":2786},{"$f":"HLOOKUP(CS$7+0.5,$K$68:$DL$122,ROWS($B$12:$B56)+2,FALSE)","v":6509},{"$f":"HLOOKUP(CT$7+0.5,$K$68:$DL$122,ROWS($B$12:$B56)+2,FALSE)","v":4396},{"$f":"HLOOKUP(CU$7+0.5,$K$68:$DL$122,ROWS($B$12:$B56)+2,FALSE)","v":652},{"$f":"HLOOKUP(CV$7+0.5,$K$68:$DL$122,ROWS($B$12:$B56)+2,FALSE)","v":2730},{"$f":"HLOOKUP(CW$7+0.5,$K$68:$DL$122,ROWS($B$12:$B56)+2,FALSE)","v":4804},{"$f":"HLOOKUP(CX$7+0.5,$K$68:$DL$122,ROWS($B$12:$B56)+2,FALSE)","v":1552},{"$f":"HLOOKUP(CY$7+0.5,$K$68:$DL$122,ROWS($B$12:$B56)+2,FALSE)","v":2433},{"$f":"HLOOKUP(CZ$7+0.5,$K$68:$DL$122,ROWS($B$12:$B56)+2,FALSE)","v":1223},{"$f":"HLOOKUP(DA$7+0.5,$K$68:$DL$122,ROWS($B$12:$B56)+2,FALSE)","v":1969},{"$f":"HLOOKUP(DB$7+0.5,$K$68:$DL$122,ROWS($B$12:$B56)+2,FALSE)","v":1045},{"$f":"HLOOKUP(DC$7+0.5,$K$68:$DL$122,ROWS($B$12:$B56)+2,FALSE)","v":3114},{"$f":"HLOOKUP(DD$7+0.5,$K$68:$DL$122,ROWS($B$12:$B56)+2,FALSE)","v":"N/A"},{"$f":"HLOOKUP(DE$7+0.5,$K$68:$DL$122,ROWS($B$12:$B56)+2,FALSE)","v":2551},{"$f":"HLOOKUP(DF$7+0.5,$K$68:$DL$122,ROWS($B$12:$B56)+2,FALSE)","v":344},{"$f":"HLOOKUP(DG$7+0.5,$K$68:$DL$122,ROWS($B$12:$B56)+2,FALSE)","v":3158},{"$f":"HLOOKUP(DH$7+0.5,$K$68:$DL$122,ROWS($B$12:$B56)+2,FALSE)","v":3090},{"$f":"HLOOKUP(DI$7+0.5,$K$68:$DL$122,ROWS($B$12:$B56)+2,FALSE)","v":563},{"$f":"HLOOKUP(DJ$7+0.5,$K$68:$DL$122,ROWS($B$12:$B56)+2,FALSE)","v":2396},{"$f":"HLOOKUP(DK$7+0.5,$K$68:$DL$122,ROWS($B$12:$B56)+2,FALSE)","v":1485},{"$f":"HLOOKUP(DL$7+0.5,$K$68:$DL$122,ROWS($B$12:$B56)+2,FALSE)","v":2173}]
[null,null,"Utah",2769627,2949,2295961,19215,373984,17246,1.2195781673797581E-2,{"$f":"HLOOKUP(K$7,$K$68:$DL$122,ROWS($B$12:$B57)+2,FALSE)","v":85217},{"$f":"HLOOKUP(L$7,$K$68:$DL$122,ROWS($B$12:$B57)+2,FALSE)","v":486},{"$f":"HLOOKUP(M$7,$K$68:$DL$122,ROWS($B$12:$B57)+2,FALSE)","v":2151},{"$f":"HLOOKUP(N$7,$K$68:$DL$122,ROWS($B$12:$B57)+2,FALSE)","v":6585},{"$f":"HLOOKUP(O$7,$K$68:$DL$122,ROWS($B$12:$B57)+2,FALSE)","v":422},{"$f":"HLOOKUP(P$7,$K$68:$DL$122,ROWS($B$12:$B57)+2,FALSE)","v":18237},{"$f":"HLOOKUP(Q$7,$K$68:$DL$122,ROWS($B$12:$B57)+2,FALSE)","v":3986},{"$f":"HLOOKUP(R$7,$K$68:$DL$122,ROWS($B$12:$B57)+2,FALSE)","v":562},{"$f":"HLOOKUP(S$7,$K$68:$DL$122,ROWS($B$12:$B57)+2,FALSE)","v":0},{"$f":"HLOOKUP(T$7,$K$68:$DL$122,ROWS($B$12:$B57)+2,FALSE)","v":132},{"$f":"HLOOKUP(U$7,$K$68:$DL$122,ROWS($B$12:$B57)+2,FALSE)","v":1643},{"$f":"HLOOKUP(V$7,$K$68:$DL$122,ROWS($B$12:$B57)+2,FALSE)","v":1052},{"$f":"HLOOKUP(W$7,$K$68:$DL$122,ROWS($B$12:$B57)+2,FALSE)","v":1701},{"$f":"HLOOKUP(X$7,$K$68:$DL$122,ROWS($B$12:$B57)+2,FALSE)","v":7538},{"$f":"HLOOKUP(Y$7,$K$68:$DL$122,ROWS($B$12:$B57)+2,FALSE)","v":1447},{"$f":"HLOOKUP(Z$7,$K$68:$DL$122,ROWS($B$12:$B57)+2,FALSE)","v":545},{"$f":"HLOOKUP(AA$7,$K$68:$DL$122,ROWS($B$12:$B57)+2,FALSE)","v":290},{"$f":"HLOOKUP(AB$7,$K$68:$DL$122,ROWS($B$12:$B57)+2,FALSE)","v":1146},{"$f":"HLOOKUP(AC$7,$K$68:$DL$122,ROWS($B$12:$B57)+2,FALSE)","v":611},{"$f":"HLOOKUP(AD$7,$K$68:$DL$122,ROWS($B$12:$B57)+2,FALSE)","v":494},{"$f":"HLOOKUP(AE$7,$K$68:$DL$122,ROWS($B$12:$B57)+2,FALSE)","v":0},{"$f":"HLOOKUP(AF$7,$K$68:$DL$122,ROWS($B$12:$B57)+2,FALSE)","v":342},{"$f":"HLOOKUP(AG$7,$K$68:$DL$122,ROWS($B$12:$B57)+2,FALSE)","v":959},{"$f":"HLOOKUP(AH$7,$K$68:$DL$122,ROWS($B$12:$B57)+2,FALSE)","v":1099},{"$f":"HLOOKUP(AI$7,$K$68:$DL$122,ROWS($B$12:$B57)+2,FALSE)","v":939},{"$f":"HLOOKUP(AJ$7,$K$68:$DL$122,ROWS($B$12:$B57)+2,FALSE)","v":143},{"$f":"HLOOKUP(AK$7,$K$68:$DL$122,ROWS($B$12:$B57)+2,FALSE)","v":511},{"$f":"HLOOKUP(AL$7,$K$68:$DL$122,ROWS($B$12:$B57)+2,FALSE)","v":1241},{"$f":"HLOOKUP(AM$7,$K$68:$DL$122,ROWS($B$12:$B57)+2,FALSE)","v":195},{"$f":"HLOOKUP(AN$7,$K$68:$DL$122,ROWS($B$12:$B57)+2,FALSE)","v":4315},{"$f":"HLOOKUP(AO$7,$K$68:$DL$122,ROWS($B$12:$B57)+2,FALSE)","v":34},{"$f":"HLOOKUP(AP$7,$K$68:$DL$122,ROWS($B$12:$B57)+2,FALSE)","v":506},{"$f":"HLOOKUP(AQ$7,$K$68:$DL$122,ROWS($B$12:$B57)+2,FALSE)","v":1707},{"$f":"HLOOKUP(AR$7,$K$68:$DL$122,ROWS($B$12:$B57)+2,FALSE)","v":1937},{"$f":"HLOOKUP(AS$7,$K$68:$DL$122,ROWS($B$12:$B57)+2,FALSE)","v":1653},{"$f":"HLOOKUP(AT$7,$K$68:$DL$122,ROWS($B$12:$B57)+2,FALSE)","v":2},{"$f":"HLOOKUP(AU$7,$K$68:$DL$122,ROWS($B$12:$B57)+2,FALSE)","v":2584},{"$f":"HLOOKUP(AV$7,$K$68:$DL$122,ROWS($B$12:$B57)+2,FALSE)","v":150},{"$f":"HLOOKUP(AW$7,$K$68:$DL$122,ROWS($B$12:$B57)+2,FALSE)","v":2037},{"$f":"HLOOKUP(AX$7,$K$68:$DL$122,ROWS($B$12:$B57)+2,FALSE)","v":1496},{"$f":"HLOOKUP(AY$7,$K$68:$DL$122,ROWS($B$12:$B57)+2,FALSE)","v":0},{"$f":"HLOOKUP(AZ$7,$K$68:$DL$122,ROWS($B$12:$B57)+2,FALSE)","v":309},{"$f":"HLOOKUP(BA$7,$K$68:$DL$122,ROWS($B$12:$B57)+2,FALSE)","v":128},{"$f":"HLOOKUP(BB$7,$K$68:$DL$122,ROWS($B$12:$B57)+2,FALSE)","v":549},{"$f":"HLOOKUP(BC$7,$K$68:$DL$122,ROWS($B$12:$B57)+2,FALSE)","v":4507},{"$f":"HLOOKUP(BD$7,$K$68:$DL$122,ROWS($B$12:$B57)+2,FALSE)","v":"N/A"},{"$f":"HLOOKUP(BE$7,$K$68:$DL$122,ROWS($B$12:$B57)+2,FALSE)","v":122},{"$f":"HLOOKUP(BF$7,$K$68:$DL$122,ROWS($B$12:$B57)+2,FALSE)","v":2413},{"$f":"HLOOKUP(BG$7,$K$68:$DL$122,ROWS($B$12:$B57)+2,FALSE)","v":4825},{"$f":"HLOOKUP(BH$7,$K$68:$DL$122,ROWS($B$12:$B57)+2,FALSE)","v":270},{"$f":"HLOOKUP(BI$7,$K$68:$DL$122,ROWS($B$12:$B57)+2,FALSE)","v":158},{"$f":"HLOOKUP(BJ$7,$K$68:$DL$122,ROWS($B$12:$B57)+2,FALSE)","v":1058},{"$f":"HLOOKUP(BK$7,$K$68:$DL$122,ROWS($B$12:$B57)+2,FALSE)","v":0},{"$f":"HLOOKUP(BL$7+0.5,$K$68:$DL$122,ROWS($B$12:$B57)+2,FALSE)","v":7587},{"$f":"HLOOKUP(BM$7+0.5,$K$68:$DL$122,ROWS($B$12:$B57)+2,FALSE)","v":558},{"$f":"HLOOKUP(BN$7+0.5,$K$68:$DL$122,ROWS($B$12:$B57)+2,FALSE)","v":1259},{"$f":"HLOOKUP(BO$7+0.5,$K$68:$DL$122,ROWS($B$12:$B57)+2,FALSE)","v":2560},{"$f":"HLOOKUP(BP$7+0.5,$K$68:$DL$122,ROWS($B$12:$B57)+2,FALSE)","v":455},{"$f":"HLOOKUP(BQ$7+0.5,$K$68:$DL$122,ROWS($B$12:$B57)+2,FALSE)","v":4113},{"$f":"HLOOKUP(BR$7+0.5,$K$68:$DL$122,ROWS($B$12:$B57)+2,FALSE)","v":1191},{"$f":"HLOOKUP(BS$7+0.5,$K$68:$DL$122,ROWS($B$12:$B57)+2,FALSE)","v":590},{"$f":"HLOOKUP(BT$7+0.5,$K$68:$DL$122,ROWS($B$12:$B57)+2,FALSE)","v":192},{"$f":"HLOOKUP(BU$7+0.5,$K$68:$DL$122,ROWS($B$12:$B57)+2,FALSE)","v":141},{"$f":"HLOOKUP(BV$7+0.5,$K$68:$DL$122,ROWS($B$12:$B57)+2,FALSE)","v":960},{"$f":"HLOOKUP(BW$7+0.5,$K$68:$DL$122,ROWS($B$12:$B57)+2,FALSE)","v":595},{"$f":"HLOOKUP(BX$7+0.5,$K$68:$DL$122,ROWS($B$12:$B57)+2,FALSE)","v":997},{"$f":"HLOOKUP(BY$7+0.5,$K$68:$DL$122,ROWS($B$12:$B57)+2,FALSE)","v":3248},{"$f":"HLOOKUP(BZ$7+0.5,$K$68:$DL$122,ROWS($B$12:$B57)+2,FALSE)","v":825},{"$f":"HLOOKUP(CA$7+0.5,$K$68:$DL$122,ROWS($B$12:$B57)+2,FALSE)","v":398},{"$f":"HLOOKUP(CB$7+0.5,$K$68:$DL$122,ROWS($B$12:$B57)+2,FALSE)","v":250},{"$f":"HLOOKUP(CC$7+0.5,$K$68:$DL$122,ROWS($B$12:$B57)+2,FALSE)","v":829},{"$f":"HLOOKUP(CD$7+0.5,$K$68:$DL$122,ROWS($B$12:$B57)+2,FALSE)","v":529},{"$f":"HLOOKUP(CE$7+0.5,$K$68:$DL$122,ROWS($B$12:$B57)+2,FALSE)","v":402},{"$f":"HLOOKUP(CF$7+0.5,$K$68:$DL$122,ROWS($B$12:$B57)+2,FALSE)","v":192},{"$f":"HLOOKUP(CG$7+0.5,$K$68:$DL$122,ROWS($B$12:$B57)+2,FALSE)","v":301},{"$f":"HLOOKUP(CH$7+0.5,$K$68:$DL$122,ROWS($B$12:$B57)+2,FALSE)","v":638},{"$f":"HLOOKUP(CI$7+0.5,$K$68:$DL$122,ROWS($B$12:$B57)+2,FALSE)","v":724},{"$f":"HLOOKUP(CJ$7+0.5,$K$68:$DL$122,ROWS($B$12:$B57)+2,FALSE)","v":634},{"$f":"HLOOKUP(CK$7+0.5,$K$68:$DL$122,ROWS($B$12:$B57)+2,FALSE)","v":163},{"$f":"HLOOKUP(CL$7+0.5,$K$68:$DL$122,ROWS($B$12:$B57)+2,FALSE)","v":372},{"$f":"HLOOKUP(CM$7+0.5,$K$68:$DL$122,ROWS($B$12:$B57)+2,FALSE)","v":623},{"$f":"HLOOKUP(CN$7+0.5,$K$68:$DL$122,ROWS($B$12:$B57)+2,FALSE)","v":178},{"$f":"HLOOKUP(CO$7+0.5,$K$68:$DL$122,ROWS($B$12:$B57)+2,FALSE)","v":1358},{"$f":"HLOOKUP(CP$7+0.5,$K$68:$DL$122,ROWS($B$12:$B57)+2,FALSE)","v":42},{"$f":"HLOOKUP(CQ$7+0.5,$K$68:$DL$122,ROWS($B$12:$B57)+2,FALSE)","v":485},{"$f":"HLOOKUP(CR$7+0.5,$K$68:$DL$122,ROWS($B$12:$B57)+2,FALSE)","v":1068},{"$f":"HLOOKUP(CS$7+0.5,$K$68:$DL$122,ROWS($B$12:$B57)+2,FALSE)","v":1299},{"$f":"HLOOKUP(CT$7+0.5,$K$68:$DL$122,ROWS($B$12:$B57)+2,FALSE)","v":1181},{"$f":"HLOOKUP(CU$7+0.5,$K$68:$DL$122,ROWS($B$12:$B57)+2,FALSE)","v":5},{"$f":"HLOOKUP(CV$7+0.5,$K$68:$DL$122,ROWS($B$12:$B57)+2,FALSE)","v":1124},{"$f":"HLOOKUP(CW$7+0.5,$K$68:$DL$122,ROWS($B$12:$B57)+2,FALSE)","v":218},{"$f":"HLOOKUP(CX$7+0.5,$K$68:$DL$122,ROWS($B$12:$B57)+2,FALSE)","v":1026},{"$f":"HLOOKUP(CY$7+0.5,$K$68:$DL$122,ROWS($B$12:$B57)+2,FALSE)","v":808},{"$f":"HLOOKUP(CZ$7+0.5,$K$68:$DL$122,ROWS($B$12:$B57)+2,FALSE)","v":192},{"$f":"HLOOKUP(DA$7+0.5,$K$68:$DL$122,ROWS($B$12:$B57)+2,FALSE)","v":259},{"$f":"HLOOKUP(DB$7+0.5,$K$68:$DL$122,ROWS($B$12:$B57)+2,FALSE)","v":146},{"$f":"HLOOKUP(DC$7+0.5,$K$68:$DL$122,ROWS($B$12:$B57)+2,FALSE)","v":419},{"$f":"HLOOKUP(DD$7+0.5,$K$68:$DL$122,ROWS($B$12:$B57)+2,FALSE)","v":1517},{"$f":"HLOOKUP(DE$7+0.5,$K$68:$DL$122,ROWS($B$12:$B57)+2,FALSE)","v":"N/A"},{"$f":"HLOOKUP(DF$7+0.5,$K$68:$DL$122,ROWS($B$12:$B57)+2,FALSE)","v":205},{"$f":"HLOOKUP(DG$7+0.5,$K$68:$DL$122,ROWS($B$12:$B57)+2,FALSE)","v":1459},{"$f":"HLOOKUP(DH$7+0.5,$K$68:$DL$122,ROWS($B$12:$B57)+2,FALSE)","v":2196},{"$f":"HLOOKUP(DI$7+0.5,$K$68:$DL$122,ROWS($B$12:$B57)+2,FALSE)","v":268},{"$f":"HLOOKUP(DJ$7+0.5,$K$68:$DL$122,ROWS($B$12:$B57)+2,FALSE)","v":153},{"$f":"HLOOKUP(DK$7+0.5,$K$68:$DL$122,ROWS($B$12:$B57)+2,FALSE)","v":609},{"$f":"HLOOKUP(DL$7+0.5,$K$68:$DL$122,ROWS($B$12:$B57)+2,FALSE)","v":192}]
[null,null,"Vermont",621354,940,537304,5021,60719,4634,2.9285504111963563E-3,{"$f":"HLOOKUP(K$7,$K$68:$DL$122,ROWS($B$12:$B58)+2,FALSE)","v":20463},{"$f":"HLOOKUP(L$7,$K$68:$DL$122,ROWS($B$12:$B58)+2,FALSE)","v":0},{"$f":"HLOOKUP(M$7,$K$68:$DL$122,ROWS($B$12:$B58)+2,FALSE)","v":580},{"$f":"HLOOKUP(N$7,$K$68:$DL$122,ROWS($B$12:$B58)+2,FALSE)","v":310},{"$f":"HLOOKUP(O$7,$K$68:$DL$122,ROWS($B$12:$B58)+2,FALSE)","v":0},{"$f":"HLOOKUP(P$7,$K$68:$DL$122,ROWS($B$12:$B58)+2,FALSE)","v":819},{"$f":"HLOOKUP(Q$7,$K$68:$DL$122,ROWS($B$12:$B58)+2,FALSE)","v":529},{"$f":"HLOOKUP(R$7,$K$68:$DL$122,ROWS($B$12:$B58)+2,FALSE)","v":2105},{"$f":"HLOOKUP(S$7,$K$68:$DL$122,ROWS($B$12:$B58)+2,FALSE)","v":107},{"$f":"HLOOKUP(T$7,$K$68:$DL$122,ROWS($B$12:$B58)+2,FALSE)","v":27},{"$f":"HLOOKUP(U$7,$K$68:$DL$122,ROWS($B$12:$B58)+2,FALSE)","v":366},{"$f":"HLOOKUP(V$7,$K$68:$DL$122,ROWS($B$12:$B58)+2,FALSE)","v":101},{"$f":"HLOOKUP(W$7,$K$68:$DL$122,ROWS($B$12:$B58)+2,FALSE)","v":143},{"$f":"HLOOKUP(X$7,$K$68:$DL$122,ROWS($B$12:$B58)+2,FALSE)","v":0},{"$f":"HLOOKUP(Y$7,$K$68:$DL$122,ROWS($B$12:$B58)+2,FALSE)","v":386},{"$f":"HLOOKUP(Z$7,$K$68:$DL$122,ROWS($B$12:$B58)+2,FALSE)","v":258},{"$f":"HLOOKUP(AA$7,$K$68:$DL$122,ROWS($B$12:$B58)+2,FALSE)","v":0},{"$f":"HLOOKUP(AB$7,$K$68:$DL$122,ROWS($B$12:$B58)+2,FALSE)","v":7},{"$f":"HLOOKUP(AC$7,$K$68:$DL$122,ROWS($B$12:$B58)+2,FALSE)","v":627},{"$f":"HLOOKUP(AD$7,$K$68:$DL$122,ROWS($B$12:$B58)+2,FALSE)","v":41},{"$f":"HLOOKUP(AE$7,$K$68:$DL$122,ROWS($B$12:$B58)+2,FALSE)","v":322},{"$f":"HLOOKUP(AF$7,$K$68:$DL$122,ROWS($B$12:$B58)+2,FALSE)","v":361},{"$f":"HLOOKUP(AG$7,$K$68:$DL$122,ROWS($B$12:$B58)+2,FALSE)","v":2378},{"$f":"HLOOKUP(AH$7,$K$68:$DL$122,ROWS($B$12:$B58)+2,FALSE)","v":335},{"$f":"HLOOKUP(AI$7,$K$68:$DL$122,ROWS($B$12:$B58)+2,FALSE)","v":206},{"$f":"HLOOKUP(AJ$7,$K$68:$DL$122,ROWS($B$12:$B58)+2,FALSE)","v":0},{"$f":"HLOOKUP(AK$7,$K$68:$DL$122,ROWS($B$12:$B58)+2,FALSE)","v":69},{"$f":"HLOOKUP(AL$7,$K$68:$DL$122,ROWS($B$12:$B58)+2,FALSE)","v":0},{"$f":"HLOOKUP(AM$7,$K$68:$DL$122,ROWS($B$12:$B58)+2,FALSE)","v":0},{"$f":"HLOOKUP(AN$7,$K$68:$DL$122,ROWS($B$12:$B58)+2,FALSE)","v":15},{"$f":"HLOOKUP(AO$7,$K$68:$DL$122,ROWS($B$12:$B58)+2,FALSE)","v":2244},{"$f":"HLOOKUP(AP$7,$K$68:$DL$122,ROWS($B$12:$B58)+2,FALSE)","v":962},{"$f":"HLOOKUP(AQ$7,$K$68:$DL$122,ROWS($B$12:$B58)+2,FALSE)","v":56},{"$f":"HLOOKUP(AR$7,$K$68:$DL$122,ROWS($B$12:$B58)+2,FALSE)","v":3723},{"$f":"HLOOKUP(AS$7,$K$68:$DL$122,ROWS($B$12:$B58)+2,FALSE)","v":250},{"$f":"HLOOKUP(AT$7,$K$68:$DL$122,ROWS($B$12:$B58)+2,FALSE)","v":0},{"$f":"HLOOKUP(AU$7,$K$68:$DL$122,ROWS($B$12:$B58)+2,FALSE)","v":383},{"$f":"HLOOKUP(AV$7,$K$68:$DL$122,ROWS($B$12:$B58)+2,FALSE)","v":0},{"$f":"HLOOKUP(AW$7,$K$68:$DL$122,ROWS($B$12:$B58)+2,FALSE)","v":124},{"$f":"HLOOKUP(AX$7,$K$68:$DL$122,ROWS($B$12:$B58)+2,FALSE)","v":389},{"$f":"HLOOKUP(AY$7,$K$68:$DL$122,ROWS($B$12:$B58)+2,FALSE)","v":401},{"$f":"HLOOKUP(AZ$7,$K$68:$DL$122,ROWS($B$12:$B58)+2,FALSE)","v":21},{"$f":"HLOOKUP(BA$7,$K$68:$DL$122,ROWS($B$12:$B58)+2,FALSE)","v":0},{"$f":"HLOOKUP(BB$7,$K$68:$DL$122,ROWS($B$12:$B58)+2,FALSE)","v":327},{"$f":"HLOOKUP(BC$7,$K$68:$DL$122,ROWS($B$12:$B58)+2,FALSE)","v":185},{"$f":"HLOOKUP(BD$7,$K$68:$DL$122,ROWS($B$12:$B58)+2,FALSE)","v":182},{"$f":"HLOOKUP(BE$7,$K$68:$DL$122,ROWS($B$12:$B58)+2,FALSE)","v":"N/A"},{"$f":"HLOOKUP(BF$7,$K$68:$DL$122,ROWS($B$12:$B58)+2,FALSE)","v":740},{"$f":"HLOOKUP(BG$7,$K$68:$DL$122,ROWS($B$12:$B58)+2,FALSE)","v":156},{"$f":"HLOOKUP(BH$7,$K$68:$DL$122,ROWS($B$12:$B58)+2,FALSE)","v":53},{"$f":"HLOOKUP(BI$7,$K$68:$DL$122,ROWS($B$12:$B58)+2,FALSE)","v":137},{"$f":"HLOOKUP(BJ$7,$K$68:$DL$122,ROWS($B$12:$B58)+2,FALSE)","v":38},{"$f":"HLOOKUP(BK$7,$K$68:$DL$122,ROWS($B$12:$B58)+2,FALSE)","v":19},{"$f":"HLOOKUP(BL$7+0.5,$K$68:$DL$122,ROWS($B$12:$B58)+2,FALSE)","v":1946},{"$f":"HLOOKUP(BM$7+0.5,$K$68:$DL$122,ROWS($B$12:$B58)+2,FALSE)","v":145},{"$f":"HLOOKUP(BN$7+0.5,$K$68:$DL$122,ROWS($B$12:$B58)+2,FALSE)","v":441},{"$f":"HLOOKUP(BO$7+0.5,$K$68:$DL$122,ROWS($B$12:$B58)+2,FALSE)","v":325},{"$f":"HLOOKUP(BP$7+0.5,$K$68:$DL$122,ROWS($B$12:$B58)+2,FALSE)","v":145},{"$f":"HLOOKUP(BQ$7+0.5,$K$68:$DL$122,ROWS($B$12:$B58)+2,FALSE)","v":508},{"$f":"HLOOKUP(BR$7+0.5,$K$68:$DL$122,ROWS($B$12:$B58)+2,FALSE)","v":493},{"$f":"HLOOKUP(BS$7+0.5,$K$68:$DL$122,ROWS($B$12:$B58)+2,FALSE)","v":608},{"$f":"HLOOKUP(BT$7+0.5,$K$68:$DL$122,ROWS($B$12:$B58)+2,FALSE)","v":135},{"$f":"HLOOKUP(BU$7+0.5,$K$68:$DL$122,ROWS($B$12:$B58)+2,FALSE)","v":53},{"$f":"HLOOKUP(BV$7+0.5,$K$68:$DL$122,ROWS($B$12:$B58)+2,FALSE)","v":199},{"$f":"HLOOKUP(BW$7+0.5,$K$68:$DL$122,ROWS($B$12:$B58)+2,FALSE)","v":99},{"$f":"HLOOKUP(BX$7+0.5,$K$68:$DL$122,ROWS($B$12:$B58)+2,FALSE)","v":85},{"$f":"HLOOKUP(BY$7+0.5,$K$68:$DL$122,ROWS($B$12:$B58)+2,FALSE)","v":145},{"$f":"HLOOKUP(BZ$7+0.5,$K$68:$DL$122,ROWS($B$12:$B58)+2,FALSE)","v":245},{"$f":"HLOOKUP(CA$7+0.5,$K$68:$DL$122,ROWS($B$12:$B58)+2,FALSE)","v":210},{"$f":"HLOOKUP(CB$7+0.5,$K$68:$DL$122,ROWS($B$12:$B58)+2,FALSE)","v":145},{"$f":"HLOOKUP(CC$7+0.5,$K$68:$DL$122,ROWS($B$12:$B58)+2,FALSE)","v":13},{"$f":"HLOOKUP(CD$7+0.5,$K$68:$DL$122,ROWS($B$12:$B58)+2,FALSE)","v":660},{"$f":"HLOOKUP(CE$7+0.5,$K$68:$DL$122,ROWS($B$12:$B58)+2,FALSE)","v":74},{"$f":"HLOOKUP(CF$7+0.5,$K$68:$DL$122,ROWS($B$12:$B58)+2,FALSE)","v":200},{"$f":"HLOOKUP(CG$7+0.5,$K$68:$DL$122,ROWS($B$12:$B58)+2,FALSE)","v":233},{"$f":"HLOOKUP(CH$7+0.5,$K$68:$DL$122,ROWS($B$12:$B58)+2,FALSE)","v":606},{"$f":"HLOOKUP(CI$7+0.5,$K$68:$DL$122,ROWS($B$12:$B58)+2,FALSE)","v":345},{"$f":"HLOOKUP(CJ$7+0.5,$K$68:$DL$122,ROWS($B$12:$B58)+2,FALSE)","v":255},{"$f":"HLOOKUP(CK$7+0.5,$K$68:$DL$122,ROWS($B$12:$B58)+2,FALSE)","v":145},{"$f":"HLOOKUP(CL$7+0.5,$K$68:$DL$122,ROWS($B$12:$B58)+2,FALSE)","v":86},{"$f":"HLOOKUP(CM$7+0.5,$K$68:$DL$122,ROWS($B$12:$B58)+2,FALSE)","v":145},{"$f":"HLOOKUP(CN$7+0.5,$K$68:$DL$122,ROWS($B$12:$B58)+2,FALSE)","v":145},{"$f":"HLOOKUP(CO$7+0.5,$K$68:$DL$122,ROWS($B$12:$B58)+2,FALSE)","v":26},{"$f":"HLOOKUP(CP$7+0.5,$K$68:$DL$122,ROWS($B$12:$B58)+2,FALSE)","v":783},{"$f":"HLOOKUP(CQ$7+0.5,$K$68:$DL$122,ROWS($B$12:$B58)+2,FALSE)","v":305},{"$f":"HLOOKUP(CR$7+0.5,$K$68:$DL$122,ROWS($B$12:$B58)+2,FALSE)","v":105},{"$f":"HLOOKUP(CS$7+0.5,$K$68:$DL$122,ROWS($B$12:$B58)+2,FALSE)","v":904},{"$f":"HLOOKUP(CT$7+0.5,$K$68:$DL$122,ROWS($B$12:$B58)+2,FALSE)","v":193},{"$f":"HLOOKUP(CU$7+0.5,$K$68:$DL$122,ROWS($B$12:$B58)+2,FALSE)","v":145},{"$f":"HLOOKUP(CV$7+0.5,$K$68:$DL$122,ROWS($B$12:$B58)+2,FALSE)","v":485},{"$f":"HLOOKUP(CW$7+0.5,$K$68:$DL$122,ROWS($B$12:$B58)+2,FALSE)","v":145},{"$f":"HLOOKUP(CX$7+0.5,$K$68:$DL$122,ROWS($B$12:$B58)+2,FALSE)","v":128},{"$f":"HLOOKUP(CY$7+0.5,$K$68:$DL$122,ROWS($B$12:$B58)+2,FALSE)","v":231},{"$f":"HLOOKUP(CZ$7+0.5,$K$68:$DL$122,ROWS($B$12:$B58)+2,FALSE)","v":411},{"$f":"HLOOKUP(DA$7+0.5,$K$68:$DL$122,ROWS($B$12:$B58)+2,FALSE)","v":36},{"$f":"HLOOKUP(DB$7+0.5,$K$68:$DL$122,ROWS($B$12:$B58)+2,FALSE)","v":145},{"$f":"HLOOKUP(DC$7+0.5,$K$68:$DL$122,ROWS($B$12:$B58)+2,FALSE)","v":498},{"$f":"HLOOKUP(DD$7+0.5,$K$68:$DL$122,ROWS($B$12:$B58)+2,FALSE)","v":147},{"$f":"HLOOKUP(DE$7+0.5,$K$68:$DL$122,ROWS($B$12:$B58)+2,FALSE)","v":212},{"$f":"HLOOKUP(DF$7+0.5,$K$68:$DL$122,ROWS($B$12:$B58)+2,FALSE)","v":"N/A"},{"$f":"HLOOKUP(DG$7+0.5,$K$68:$DL$122,ROWS($B$12:$B58)+2,FALSE)","v":420},{"$f":"HLOOKUP(DH$7+0.5,$K$68:$DL$122,ROWS($B$12:$B58)+2,FALSE)","v":159},{"$f":"HLOOKUP(DI$7+0.5,$K$68:$DL$122,ROWS($B$12:$B58)+2,FALSE)","v":81},{"$f":"HLOOKUP(DJ$7+0.5,$K$68:$DL$122,ROWS($B$12:$B58)+2,FALSE)","v":115},{"$f":"HLOOKUP(DK$7+0.5,$K$68:$DL$122,ROWS($B$12:$B58)+2,FALSE)","v":62},{"$f":"HLOOKUP(DL$7+0.5,$K$68:$DL$122,ROWS($B$12:$B58)+2,FALSE)","v":45}]
[null,null,"Virginia",7996552,5256,6789620,30962,889751,30111,3.6799011251083376E-2,{"$f":"HLOOKUP(K$7,$K$68:$DL$122,ROWS($B$12:$B59)+2,FALSE)","v":257130},{"$f":"HLOOKUP(L$7,$K$68:$DL$122,ROWS($B$12:$B59)+2,FALSE)","v":4930},{"$f":"HLOOKUP(M$7,$K$68:$DL$122,ROWS($B$12:$B59)+2,FALSE)","v":3202},{"$f":"HLOOKUP(N$7,$K$68:$DL$122,ROWS($B$12:$B59)+2,FALSE)","v":4679},{"$f":"HLOOKUP(O$7,$K$68:$DL$122,ROWS($B$12:$B59)+2,FALSE)","v":645},{"$f":"HLOOKUP(P$7,$K$68:$DL$122,ROWS($B$12:$B59)+2,FALSE)","v":19371},{"$f":"HLOOKUP(Q$7,$K$68:$DL$122,ROWS($B$12:$B59)+2,FALSE)","v":4908},{"$f":"HLOOKUP(R$7,$K$68:$DL$122,ROWS($B$12:$B59)+2,FALSE)","v":5376},{"$f":"HLOOKUP(S$7,$K$68:$DL$122,ROWS($B$12:$B59)+2,FALSE)","v":961},{"$f":"HLOOKUP(T$7,$K$68:$DL$122,ROWS($B$12:$B59)+2,FALSE)","v":6854},{"$f":"HLOOKUP(U$7,$K$68:$DL$122,ROWS($B$12:$B59)+2,FALSE)","v":17773},{"$f":"HLOOKUP(V$7,$K$68:$DL$122,ROWS($B$12:$B59)+2,FALSE)","v":8715},{"$f":"HLOOKUP(W$7,$K$68:$DL$122,ROWS($B$12:$B59)+2,FALSE)","v":2917},{"$f":"HLOOKUP(X$7,$K$68:$DL$122,ROWS($B$12:$B59)+2,FALSE)","v":434},{"$f":"HLOOKUP(Y$7,$K$68:$DL$122,ROWS($B$12:$B59)+2,FALSE)","v":4000},{"$f":"HLOOKUP(Z$7,$K$68:$DL$122,ROWS($B$12:$B59)+2,FALSE)","v":2703},{"$f":"HLOOKUP(AA$7,$K$68:$DL$122,ROWS($B$12:$B59)+2,FALSE)","v":1503},{"$f":"HLOOKUP(AB$7,$K$68:$DL$122,ROWS($B$12:$B59)+2,FALSE)","v":892},{"$f":"HLOOKUP(AC$7,$K$68:$DL$122,ROWS($B$12:$B59)+2,FALSE)","v":3630},{"$f":"HLOOKUP(AD$7,$K$68:$DL$122,ROWS($B$12:$B59)+2,FALSE)","v":2496},{"$f":"HLOOKUP(AE$7,$K$68:$DL$122,ROWS($B$12:$B59)+2,FALSE)","v":2855},{"$f":"HLOOKUP(AF$7,$K$68:$DL$122,ROWS($B$12:$B59)+2,FALSE)","v":22051},{"$f":"HLOOKUP(AG$7,$K$68:$DL$122,ROWS($B$12:$B59)+2,FALSE)","v":5386},{"$f":"HLOOKUP(AH$7,$K$68:$DL$122,ROWS($B$12:$B59)+2,FALSE)","v":7323},{"$f":"HLOOKUP(AI$7,$K$68:$DL$122,ROWS($B$12:$B59)+2,FALSE)","v":834},{"$f":"HLOOKUP(AJ$7,$K$68:$DL$122,ROWS($B$12:$B59)+2,FALSE)","v":1682},{"$f":"HLOOKUP(AK$7,$K$68:$DL$122,ROWS($B$12:$B59)+2,FALSE)","v":2277},{"$f":"HLOOKUP(AL$7,$K$68:$DL$122,ROWS($B$12:$B59)+2,FALSE)","v":617},{"$f":"HLOOKUP(AM$7,$K$68:$DL$122,ROWS($B$12:$B59)+2,FALSE)","v":256},{"$f":"HLOOKUP(AN$7,$K$68:$DL$122,ROWS($B$12:$B59)+2,FALSE)","v":1717},{"$f":"HLOOKUP(AO$7,$K$68:$DL$122,ROWS($B$12:$B59)+2,FALSE)","v":1344},{"$f":"HLOOKUP(AP$7,$K$68:$DL$122,ROWS($B$12:$B59)+2,FALSE)","v":7327},{"$f":"HLOOKUP(AQ$7,$K$68:$DL$122,ROWS($B$12:$B59)+2,FALSE)","v":1014},{"$f":"HLOOKUP(AR$7,$K$68:$DL$122,ROWS($B$12:$B59)+2,FALSE)","v":12455},{"$f":"HLOOKUP(AS$7,$K$68:$DL$122,ROWS($B$12:$B59)+2,FALSE)","v":22753},{"$f":"HLOOKUP(AT$7,$K$68:$DL$122,ROWS($B$12:$B59)+2,FALSE)","v":462},{"$f":"HLOOKUP(AU$7,$K$68:$DL$122,ROWS($B$12:$B59)+2,FALSE)","v":9570},{"$f":"HLOOKUP(AV$7,$K$68:$DL$122,ROWS($B$12:$B59)+2,FALSE)","v":853},{"$f":"HLOOKUP(AW$7,$K$68:$DL$122,ROWS($B$12:$B59)+2,FALSE)","v":3499},{"$f":"HLOOKUP(AX$7,$K$68:$DL$122,ROWS($B$12:$B59)+2,FALSE)","v":12009},{"$f":"HLOOKUP(AY$7,$K$68:$DL$122,ROWS($B$12:$B59)+2,FALSE)","v":1897},{"$f":"HLOOKUP(AZ$7,$K$68:$DL$122,ROWS($B$12:$B59)+2,FALSE)","v":6612},{"$f":"HLOOKUP(BA$7,$K$68:$DL$122,ROWS($B$12:$B59)+2,FALSE)","v":908},{"$f":"HLOOKUP(BB$7,$K$68:$DL$122,ROWS($B$12:$B59)+2,FALSE)","v":7482},{"$f":"HLOOKUP(BC$7,$K$68:$DL$122,ROWS($B$12:$B59)+2,FALSE)","v":11655},{"$f":"HLOOKUP(BD$7,$K$68:$DL$122,ROWS($B$12:$B59)+2,FALSE)","v":1426},{"$f":"HLOOKUP(BE$7,$K$68:$DL$122,ROWS($B$12:$B59)+2,FALSE)","v":173},{"$f":"HLOOKUP(BF$7,$K$68:$DL$122,ROWS($B$12:$B59)+2,FALSE)","v":"N/A"},{"$f":"HLOOKUP(BG$7,$K$68:$DL$122,ROWS($B$12:$B59)+2,FALSE)","v":4615},{"$f":"HLOOKUP(BH$7,$K$68:$DL$122,ROWS($B$12:$B59)+2,FALSE)","v":9041},{"$f":"HLOOKUP(BI$7,$K$68:$DL$122,ROWS($B$12:$B59)+2,FALSE)","v":858},{"$f":"HLOOKUP(BJ$7,$K$68:$DL$122,ROWS($B$12:$B59)+2,FALSE)","v":190},{"$f":"HLOOKUP(BK$7,$K$68:$DL$122,ROWS($B$12:$B59)+2,FALSE)","v":1222},{"$f":"HLOOKUP(BL$7+0.5,$K$68:$DL$122,ROWS($B$12:$B59)+2,FALSE)","v":14025},{"$f":"HLOOKUP(BM$7+0.5,$K$68:$DL$122,ROWS($B$12:$B59)+2,FALSE)","v":2057},{"$f":"HLOOKUP(BN$7+0.5,$K$68:$DL$122,ROWS($B$12:$B59)+2,FALSE)","v":1687},{"$f":"HLOOKUP(BO$7+0.5,$K$68:$DL$122,ROWS($B$12:$B59)+2,FALSE)","v":2151},{"$f":"HLOOKUP(BP$7+0.5,$K$68:$DL$122,ROWS($B$12:$B59)+2,FALSE)","v":606},{"$f":"HLOOKUP(BQ$7+0.5,$K$68:$DL$122,ROWS($B$12:$B59)+2,FALSE)","v":4241},{"$f":"HLOOKUP(BR$7+0.5,$K$68:$DL$122,ROWS($B$12:$B59)+2,FALSE)","v":2334},{"$f":"HLOOKUP(BS$7+0.5,$K$68:$DL$122,ROWS($B$12:$B59)+2,FALSE)","v":2730},{"$f":"HLOOKUP(BT$7+0.5,$K$68:$DL$122,ROWS($B$12:$B59)+2,FALSE)","v":652},{"$f":"HLOOKUP(BU$7+0.5,$K$68:$DL$122,ROWS($B$12:$B59)+2,FALSE)","v":1711},{"$f":"HLOOKUP(BV$7+0.5,$K$68:$DL$122,ROWS($B$12:$B59)+2,FALSE)","v":3494},{"$f":"HLOOKUP(BW$7+0.5,$K$68:$DL$122,ROWS($B$12:$B59)+2,FALSE)","v":1962},{"$f":"HLOOKUP(BX$7+0.5,$K$68:$DL$122,ROWS($B$12:$B59)+2,FALSE)","v":1400},{"$f":"HLOOKUP(BY$7+0.5,$K$68:$DL$122,ROWS($B$12:$B59)+2,FALSE)","v":430},{"$f":"HLOOKUP(BZ$7+0.5,$K$68:$DL$122,ROWS($B$12:$B59)+2,FALSE)","v":1213},{"$f":"HLOOKUP(CA$7+0.5,$K$68:$DL$122,ROWS($B$12:$B59)+2,FALSE)","v":1067},{"$f":"HLOOKUP(CB$7+0.5,$K$68:$DL$122,ROWS($B$12:$B59)+2,FALSE)","v":899},{"$f":"HLOOKUP(CC$7+0.5,$K$68:$DL$122,ROWS($B$12:$B59)+2,FALSE)","v":645},{"$f":"HLOOKUP(CD$7+0.5,$K$68:$DL$122,ROWS($B$12:$B59)+2,FALSE)","v":1551},{"$f":"HLOOKUP(CE$7+0.5,$K$68:$DL$122,ROWS($B$12:$B59)+2,FALSE)","v":1642},{"$f":"HLOOKUP(CF$7+0.5,$K$68:$DL$122,ROWS($B$12:$B59)+2,FALSE)","v":1930},{"$f":"HLOOKUP(CG$7+0.5,$K$68:$DL$122,ROWS($B$12:$B59)+2,FALSE)","v":3143},{"$f":"HLOOKUP(CH$7+0.5,$K$68:$DL$122,ROWS($B$12:$B59)+2,FALSE)","v":2316},{"$f":"HLOOKUP(CI$7+0.5,$K$68:$DL$122,ROWS($B$12:$B59)+2,FALSE)","v":3026},{"$f":"HLOOKUP(CJ$7+0.5,$K$68:$DL$122,ROWS($B$12:$B59)+2,FALSE)","v":361},{"$f":"HLOOKUP(CK$7+0.5,$K$68:$DL$122,ROWS($B$12:$B59)+2,FALSE)","v":1191},{"$f":"HLOOKUP(CL$7+0.5,$K$68:$DL$122,ROWS($B$12:$B59)+2,FALSE)","v":1178},{"$f":"HLOOKUP(CM$7+0.5,$K$68:$DL$122,ROWS($B$12:$B59)+2,FALSE)","v":714},{"$f":"HLOOKUP(CN$7+0.5,$K$68:$DL$122,ROWS($B$12:$B59)+2,FALSE)","v":289},{"$f":"HLOOKUP(CO$7+0.5,$K$68:$DL$122,ROWS($B$12:$B59)+2,FALSE)","v":961},{"$f":"HLOOKUP(CP$7+0.5,$K$68:$DL$122,ROWS($B$12:$B59)+2,FALSE)","v":798},{"$f":"HLOOKUP(CQ$7+0.5,$K$68:$DL$122,ROWS($B$12:$B59)+2,FALSE)","v":2046},{"$f":"HLOOKUP(CR$7+0.5,$K$68:$DL$122,ROWS($B$12:$B59)+2,FALSE)","v":604},{"$f":"HLOOKUP(CS$7+0.5,$K$68:$DL$122,ROWS($B$12:$B59)+2,FALSE)","v":2816},{"$f":"HLOOKUP(CT$7+0.5,$K$68:$DL$122,ROWS($B$12:$B59)+2,FALSE)","v":4584},{"$f":"HLOOKUP(CU$7+0.5,$K$68:$DL$122,ROWS($B$12:$B59)+2,FALSE)","v":729},{"$f":"HLOOKUP(CV$7+0.5,$K$68:$DL$122,ROWS($B$12:$B59)+2,FALSE)","v":2217},{"$f":"HLOOKUP(CW$7+0.5,$K$68:$DL$122,ROWS($B$12:$B59)+2,FALSE)","v":477},{"$f":"HLOOKUP(CX$7+0.5,$K$68:$DL$122,ROWS($B$12:$B59)+2,FALSE)","v":1935},{"$f":"HLOOKUP(CY$7+0.5,$K$68:$DL$122,ROWS($B$12:$B59)+2,FALSE)","v":2497},{"$f":"HLOOKUP(CZ$7+0.5,$K$68:$DL$122,ROWS($B$12:$B59)+2,FALSE)","v":1477},{"$f":"HLOOKUP(DA$7+0.5,$K$68:$DL$122,ROWS($B$12:$B59)+2,FALSE)","v":2032},{"$f":"HLOOKUP(DB$7+0.5,$K$68:$DL$122,ROWS($B$12:$B59)+2,FALSE)","v":841},{"$f":"HLOOKUP(DC$7+0.5,$K$68:$DL$122,ROWS($B$12:$B59)+2,FALSE)","v":2452},{"$f":"HLOOKUP(DD$7+0.5,$K$68:$DL$122,ROWS($B$12:$B59)+2,FALSE)","v":3004},{"$f":"HLOOKUP(DE$7+0.5,$K$68:$DL$122,ROWS($B$12:$B59)+2,FALSE)","v":641},{"$f":"HLOOKUP(DF$7+0.5,$K$68:$DL$122,ROWS($B$12:$B59)+2,FALSE)","v":138},{"$f":"HLOOKUP(DG$7+0.5,$K$68:$DL$122,ROWS($B$12:$B59)+2,FALSE)","v":"N/A"},{"$f":"HLOOKUP(DH$7+0.5,$K$68:$DL$122,ROWS($B$12:$B59)+2,FALSE)","v":1717},{"$f":"HLOOKUP(DI$7+0.5,$K$68:$DL$122,ROWS($B$12:$B59)+2,FALSE)","v":2596},{"$f":"HLOOKUP(DJ$7+0.5,$K$68:$DL$122,ROWS($B$12:$B59)+2,FALSE)","v":745},{"$f":"HLOOKUP(DK$7+0.5,$K$68:$DL$122,ROWS($B$12:$B59)+2,FALSE)","v":274},{"$f":"HLOOKUP(DL$7+0.5,$K$68:$DL$122,ROWS($B$12:$B59)+2,FALSE)","v":779}]
[null,null,"Washington",6748474,4248,5565069,27197,919925,27221,2.9840358724884851E-2,{"$f":"HLOOKUP(K$7,$K$68:$DL$122,ROWS($B$12:$B60)+2,FALSE)","v":208507},{"$f":"HLOOKUP(L$7,$K$68:$DL$122,ROWS($B$12:$B60)+2,FALSE)","v":1821},{"$f":"HLOOKUP(M$7,$K$68:$DL$122,ROWS($B$12:$B60)+2,FALSE)","v":5266},{"$f":"HLOOKUP(N$7,$K$68:$DL$122,ROWS($B$12:$B60)+2,FALSE)","v":12397},{"$f":"HLOOKUP(O$7,$K$68:$DL$122,ROWS($B$12:$B60)+2,FALSE)","v":756},{"$f":"HLOOKUP(P$7,$K$68:$DL$122,ROWS($B$12:$B60)+2,FALSE)","v":38421},{"$f":"HLOOKUP(Q$7,$K$68:$DL$122,ROWS($B$12:$B60)+2,FALSE)","v":3938},{"$f":"HLOOKUP(R$7,$K$68:$DL$122,ROWS($B$12:$B60)+2,FALSE)","v":1026},{"$f":"HLOOKUP(S$7,$K$68:$DL$122,ROWS($B$12:$B60)+2,FALSE)","v":0},{"$f":"HLOOKUP(T$7,$K$68:$DL$122,ROWS($B$12:$B60)+2,FALSE)","v":358},{"$f":"HLOOKUP(U$7,$K$68:$DL$122,ROWS($B$12:$B60)+2,FALSE)","v":6094},{"$f":"HLOOKUP(V$7,$K$68:$DL$122,ROWS($B$12:$B60)+2,FALSE)","v":8705},{"$f":"HLOOKUP(W$7,$K$68:$DL$122,ROWS($B$12:$B60)+2,FALSE)","v":5940},{"$f":"HLOOKUP(X$7,$K$68:$DL$122,ROWS($B$12:$B60)+2,FALSE)","v":10895},{"$f":"HLOOKUP(Y$7,$K$68:$DL$122,ROWS($B$12:$B60)+2,FALSE)","v":2062},{"$f":"HLOOKUP(Z$7,$K$68:$DL$122,ROWS($B$12:$B60)+2,FALSE)","v":2303},{"$f":"HLOOKUP(AA$7,$K$68:$DL$122,ROWS($B$12:$B60)+2,FALSE)","v":1000},{"$f":"HLOOKUP(AB$7,$K$68:$DL$122,ROWS($B$12:$B60)+2,FALSE)","v":2820},{"$f":"HLOOKUP(AC$7,$K$68:$DL$122,ROWS($B$12:$B60)+2,FALSE)","v":1271},{"$f":"HLOOKUP(AD$7,$K$68:$DL$122,ROWS($B$12:$B60)+2,FALSE)","v":1016},{"$f":"HLOOKUP(AE$7,$K$68:$DL$122,ROWS($B$12:$B60)+2,FALSE)","v":1313},{"$f":"HLOOKUP(AF$7,$K$68:$DL$122,ROWS($B$12:$B60)+2,FALSE)","v":1899},{"$f":"HLOOKUP(AG$7,$K$68:$DL$122,ROWS($B$12:$B60)+2,FALSE)","v":1580},{"$f":"HLOOKUP(AH$7,$K$68:$DL$122,ROWS($B$12:$B60)+2,FALSE)","v":3720},{"$f":"HLOOKUP(AI$7,$K$68:$DL$122,ROWS($B$12:$B60)+2,FALSE)","v":1543},{"$f":"HLOOKUP(AJ$7,$K$68:$DL$122,ROWS($B$12:$B60)+2,FALSE)","v":1110},{"$f":"HLOOKUP(AK$7,$K$68:$DL$122,ROWS($B$12:$B60)+2,FALSE)","v":3307},{"$f":"HLOOKUP(AL$7,$K$68:$DL$122,ROWS($B$12:$B60)+2,FALSE)","v":2125},{"$f":"HLOOKUP(AM$7,$K$68:$DL$122,ROWS($B$12:$B60)+2,FALSE)","v":673},{"$f":"HLOOKUP(AN$7,$K$68:$DL$122,ROWS($B$12:$B60)+2,FALSE)","v":4925},{"$f":"HLOOKUP(AO$7,$K$68:$DL$122,ROWS($B$12:$B60)+2,FALSE)","v":824},{"$f":"HLOOKUP(AP$7,$K$68:$DL$122,ROWS($B$12:$B60)+2,FALSE)","v":2006},{"$f":"HLOOKUP(AQ$7,$K$68:$DL$122,ROWS($B$12:$B60)+2,FALSE)","v":1569},{"$f":"HLOOKUP(AR$7,$K$68:$DL$122,ROWS($B$12:$B60)+2,FALSE)","v":4512},{"$f":"HLOOKUP(AS$7,$K$68:$DL$122,ROWS($B$12:$B60)+2,FALSE)","v":3870},{"$f":"HLOOKUP(AT$7,$K$68:$DL$122,ROWS($B$12:$B60)+2,FALSE)","v":189},{"$f":"HLOOKUP(AU$7,$K$68:$DL$122,ROWS($B$12:$B60)+2,FALSE)","v":2686},{"$f":"HLOOKUP(AV$7,$K$68:$DL$122,ROWS($B$12:$B60)+2,FALSE)","v":765},{"$f":"HLOOKUP(AW$7,$K$68:$DL$122,ROWS($B$12:$B60)+2,FALSE)","v":29168},{"$f":"HLOOKUP(AX$7,$K$68:$DL$122,ROWS($B$12:$B60)+2,FALSE)","v":2296},{"$f":"HLOOKUP(AY$7,$K$68:$DL$122,ROWS($B$12:$B60)+2,FALSE)","v":463},{"$f":"HLOOKUP(AZ$7,$K$68:$DL$122,ROWS($B$12:$B60)+2,FALSE)","v":1519},{"$f":"HLOOKUP(BA$7,$K$68:$DL$122,ROWS($B$12:$B60)+2,FALSE)","v":227},{"$f":"HLOOKUP(BB$7,$K$68:$DL$122,ROWS($B$12:$B60)+2,FALSE)","v":2342},{"$f":"HLOOKUP(BC$7,$K$68:$DL$122,ROWS($B$12:$B60)+2,FALSE)","v":15491},{"$f":"HLOOKUP(BD$7,$K$68:$DL$122,ROWS($B$12:$B60)+2,FALSE)","v":4789},{"$f":"HLOOKUP(BE$7,$K$68:$DL$122,ROWS($B$12:$B60)+2,FALSE)","v":119},{"$f":"HLOOKUP(BF$7,$K$68:$DL$122,ROWS($B$12:$B60)+2,FALSE)","v":4233},{"$f":"HLOOKUP(BG$7,$K$68:$DL$122,ROWS($B$12:$B60)+2,FALSE)","v":"N/A"},{"$f":"HLOOKUP(BH$7,$K$68:$DL$122,ROWS($B$12:$B60)+2,FALSE)","v":157},{"$f":"HLOOKUP(BI$7,$K$68:$DL$122,ROWS($B$12:$B60)+2,FALSE)","v":1491},{"$f":"HLOOKUP(BJ$7,$K$68:$DL$122,ROWS($B$12:$B60)+2,FALSE)","v":1507},{"$f":"HLOOKUP(BK$7,$K$68:$DL$122,ROWS($B$12:$B60)+2,FALSE)","v":1083},{"$f":"HLOOKUP(BL$7+0.5,$K$68:$DL$122,ROWS($B$12:$B60)+2,FALSE)","v":13639},{"$f":"HLOOKUP(BM$7+0.5,$K$68:$DL$122,ROWS($B$12:$B60)+2,FALSE)","v":1049},{"$f":"HLOOKUP(BN$7+0.5,$K$68:$DL$122,ROWS($B$12:$B60)+2,FALSE)","v":2233},{"$f":"HLOOKUP(BO$7+0.5,$K$68:$DL$122,ROWS($B$12:$B60)+2,FALSE)","v":3133},{"$f":"HLOOKUP(BP$7+0.5,$K$68:$DL$122,ROWS($B$12:$B60)+2,FALSE)","v":565},{"$f":"HLOOKUP(BQ$7+0.5,$K$68:$DL$122,ROWS($B$12:$B60)+2,FALSE)","v":4474},{"$f":"HLOOKUP(BR$7+0.5,$K$68:$DL$122,ROWS($B$12:$B60)+2,FALSE)","v":1215},{"$f":"HLOOKUP(BS$7+0.5,$K$68:$DL$122,ROWS($B$12:$B60)+2,FALSE)","v":533},{"$f":"HLOOKUP(BT$7+0.5,$K$68:$DL$122,ROWS($B$12:$B60)+2,FALSE)","v":201},{"$f":"HLOOKUP(BU$7+0.5,$K$68:$DL$122,ROWS($B$12:$B60)+2,FALSE)","v":254},{"$f":"HLOOKUP(BV$7+0.5,$K$68:$DL$122,ROWS($B$12:$B60)+2,FALSE)","v":1777},{"$f":"HLOOKUP(BW$7+0.5,$K$68:$DL$122,ROWS($B$12:$B60)+2,FALSE)","v":3348},{"$f":"HLOOKUP(BX$7+0.5,$K$68:$DL$122,ROWS($B$12:$B60)+2,FALSE)","v":2264},{"$f":"HLOOKUP(BY$7+0.5,$K$68:$DL$122,ROWS($B$12:$B60)+2,FALSE)","v":4263},{"$f":"HLOOKUP(BZ$7+0.5,$K$68:$DL$122,ROWS($B$12:$B60)+2,FALSE)","v":821},{"$f":"HLOOKUP(CA$7+0.5,$K$68:$DL$122,ROWS($B$12:$B60)+2,FALSE)","v":1315},{"$f":"HLOOKUP(CB$7+0.5,$K$68:$DL$122,ROWS($B$12:$B60)+2,FALSE)","v":465},{"$f":"HLOOKUP(CC$7+0.5,$K$68:$DL$122,ROWS($B$12:$B60)+2,FALSE)","v":1740},{"$f":"HLOOKUP(CD$7+0.5,$K$68:$DL$122,ROWS($B$12:$B60)+2,FALSE)","v":936},{"$f":"HLOOKUP(CE$7+0.5,$K$68:$DL$122,ROWS($B$12:$B60)+2,FALSE)","v":1018},{"$f":"HLOOKUP(CF$7+0.5,$K$68:$DL$122,ROWS($B$12:$B60)+2,FALSE)","v":1689},{"$f":"HLOOKUP(CG$7+0.5,$K$68:$DL$122,ROWS($B$12:$B60)+2,FALSE)","v":808},{"$f":"HLOOKUP(CH$7+0.5,$K$68:$DL$122,ROWS($B$12:$B60)+2,FALSE)","v":757},{"$f":"HLOOKUP(CI$7+0.5,$K$68:$DL$122,ROWS($B$12:$B60)+2,FALSE)","v":1212},{"$f":"HLOOKUP(CJ$7+0.5,$K$68:$DL$122,ROWS($B$12:$B60)+2,FALSE)","v":898},{"$f":"HLOOKUP(CK$7+0.5,$K$68:$DL$122,ROWS($B$12:$B60)+2,FALSE)","v":762},{"$f":"HLOOKUP(CL$7+0.5,$K$68:$DL$122,ROWS($B$12:$B60)+2,FALSE)","v":2181},{"$f":"HLOOKUP(CM$7+0.5,$K$68:$DL$122,ROWS($B$12:$B60)+2,FALSE)","v":934},{"$f":"HLOOKUP(CN$7+0.5,$K$68:$DL$122,ROWS($B$12:$B60)+2,FALSE)","v":441},{"$f":"HLOOKUP(CO$7+0.5,$K$68:$DL$122,ROWS($B$12:$B60)+2,FALSE)","v":1696},{"$f":"HLOOKUP(CP$7+0.5,$K$68:$DL$122,ROWS($B$12:$B60)+2,FALSE)","v":605},{"$f":"HLOOKUP(CQ$7+0.5,$K$68:$DL$122,ROWS($B$12:$B60)+2,FALSE)","v":987},{"$f":"HLOOKUP(CR$7+0.5,$K$68:$DL$122,ROWS($B$12:$B60)+2,FALSE)","v":1254},{"$f":"HLOOKUP(CS$7+0.5,$K$68:$DL$122,ROWS($B$12:$B60)+2,FALSE)","v":1322},{"$f":"HLOOKUP(CT$7+0.5,$K$68:$DL$122,ROWS($B$12:$B60)+2,FALSE)","v":1452},{"$f":"HLOOKUP(CU$7+0.5,$K$68:$DL$122,ROWS($B$12:$B60)+2,FALSE)","v":304},{"$f":"HLOOKUP(CV$7+0.5,$K$68:$DL$122,ROWS($B$12:$B60)+2,FALSE)","v":1217},{"$f":"HLOOKUP(CW$7+0.5,$K$68:$DL$122,ROWS($B$12:$B60)+2,FALSE)","v":573},{"$f":"HLOOKUP(CX$7+0.5,$K$68:$DL$122,ROWS($B$12:$B60)+2,FALSE)","v":5436},{"$f":"HLOOKUP(CY$7+0.5,$K$68:$DL$122,ROWS($B$12:$B60)+2,FALSE)","v":1378},{"$f":"HLOOKUP(CZ$7+0.5,$K$68:$DL$122,ROWS($B$12:$B60)+2,FALSE)","v":319},{"$f":"HLOOKUP(DA$7+0.5,$K$68:$DL$122,ROWS($B$12:$B60)+2,FALSE)","v":1267},{"$f":"HLOOKUP(DB$7+0.5,$K$68:$DL$122,ROWS($B$12:$B60)+2,FALSE)","v":225},{"$f":"HLOOKUP(DC$7+0.5,$K$68:$DL$122,ROWS($B$12:$B60)+2,FALSE)","v":1116},{"$f":"HLOOKUP(DD$7+0.5,$K$68:$DL$122,ROWS($B$12:$B60)+2,FALSE)","v":4361},{"$f":"HLOOKUP(DE$7+0.5,$K$68:$DL$122,ROWS($B$12:$B60)+2,FALSE)","v":1640},{"$f":"HLOOKUP(DF$7+0.5,$K$68:$DL$122,ROWS($B$12:$B60)+2,FALSE)","v":196},{"$f":"HLOOKUP(DG$7+0.5,$K$68:$DL$122,ROWS($B$12:$B60)+2,FALSE)","v":1698},{"$f":"HLOOKUP(DH$7+0.5,$K$68:$DL$122,ROWS($B$12:$B60)+2,FALSE)","v":"N/A"},{"$f":"HLOOKUP(DI$7+0.5,$K$68:$DL$122,ROWS($B$12:$B60)+2,FALSE)","v":186},{"$f":"HLOOKUP(DJ$7+0.5,$K$68:$DL$122,ROWS($B$12:$B60)+2,FALSE)","v":892},{"$f":"HLOOKUP(DK$7+0.5,$K$68:$DL$122,ROWS($B$12:$B60)+2,FALSE)","v":870},{"$f":"HLOOKUP(DL$7+0.5,$K$68:$DL$122,ROWS($B$12:$B60)+2,FALSE)","v":1061}]
[null,null,"West Virginia",1836614,1681,1609110,9854,172262,8430,7.1654528655514431E-3,{"$f":"HLOOKUP(K$7,$K$68:$DL$122,ROWS($B$12:$B61)+2,FALSE)","v":50068},{"$f":"HLOOKUP(L$7,$K$68:$DL$122,ROWS($B$12:$B61)+2,FALSE)","v":221},{"$f":"HLOOKUP(M$7,$K$68:$DL$122,ROWS($B$12:$B61)+2,FALSE)","v":598},{"$f":"HLOOKUP(N$7,$K$68:$DL$122,ROWS($B$12:$B61)+2,FALSE)","v":50},{"$f":"HLOOKUP(O$7,$K$68:$DL$122,ROWS($B$12:$B61)+2,FALSE)","v":225},{"$f":"HLOOKUP(P$7,$K$68:$DL$122,ROWS($B$12:$B61)+2,FALSE)","v":1442},{"$f":"HLOOKUP(Q$7,$K$68:$DL$122,ROWS($B$12:$B61)+2,FALSE)","v":124},{"$f":"HLOOKUP(R$7,$K$68:$DL$122,ROWS($B$12:$B61)+2,FALSE)","v":594},{"$f":"HLOOKUP(S$7,$K$68:$DL$122,ROWS($B$12:$B61)+2,FALSE)","v":89},{"$f":"HLOOKUP(T$7,$K$68:$DL$122,ROWS($B$12:$B61)+2,FALSE)","v":300},{"$f":"HLOOKUP(U$7,$K$68:$DL$122,ROWS($B$12:$B61)+2,FALSE)","v":2949},{"$f":"HLOOKUP(V$7,$K$68:$DL$122,ROWS($B$12:$B61)+2,FALSE)","v":1296},{"$f":"HLOOKUP(W$7,$K$68:$DL$122,ROWS($B$12:$B61)+2,FALSE)","v":147},{"$f":"HLOOKUP(X$7,$K$68:$DL$122,ROWS($B$12:$B61)+2,FALSE)","v":120},{"$f":"HLOOKUP(Y$7,$K$68:$DL$122,ROWS($B$12:$B61)+2,FALSE)","v":1331},{"$f":"HLOOKUP(Z$7,$K$68:$DL$122,ROWS($B$12:$B61)+2,FALSE)","v":210},{"$f":"HLOOKUP(AA$7,$K$68:$DL$122,ROWS($B$12:$B61)+2,FALSE)","v":0},{"$f":"HLOOKUP(AB$7,$K$68:$DL$122,ROWS($B$12:$B61)+2,FALSE)","v":0},{"$f":"HLOOKUP(AC$7,$K$68:$DL$122,ROWS($B$12:$B61)+2,FALSE)","v":515},{"$f":"HLOOKUP(AD$7,$K$68:$DL$122,ROWS($B$12:$B61)+2,FALSE)","v":326},{"$f":"HLOOKUP(AE$7,$K$68:$DL$122,ROWS($B$12:$B61)+2,FALSE)","v":45},{"$f":"HLOOKUP(AF$7,$K$68:$DL$122,ROWS($B$12:$B61)+2,FALSE)","v":7515},{"$f":"HLOOKUP(AG$7,$K$68:$DL$122,ROWS($B$12:$B61)+2,FALSE)","v":236},{"$f":"HLOOKUP(AH$7,$K$68:$DL$122,ROWS($B$12:$B61)+2,FALSE)","v":459},{"$f":"HLOOKUP(AI$7,$K$68:$DL$122,ROWS($B$12:$B61)+2,FALSE)","v":0},{"$f":"HLOOKUP(AJ$7,$K$68:$DL$122,ROWS($B$12:$B61)+2,FALSE)","v":0},{"$f":"HLOOKUP(AK$7,$K$68:$DL$122,ROWS($B$12:$B61)+2,FALSE)","v":309},{"$f":"HLOOKUP(AL$7,$K$68:$DL$122,ROWS($B$12:$B61)+2,FALSE)","v":60},{"$f":"HLOOKUP(AM$7,$K$68:$DL$122,ROWS($B$12:$B61)+2,FALSE)","v":78},{"$f":"HLOOKUP(AN$7,$K$68:$DL$122,ROWS($B$12:$B61)+2,FALSE)","v":293},{"$f":"HLOOKUP(AO$7,$K$68:$DL$122,ROWS($B$12:$B61)+2,FALSE)","v":160},{"$f":"HLOOKUP(AP$7,$K$68:$DL$122,ROWS($B$12:$B61)+2,FALSE)","v":1431},{"$f":"HLOOKUP(AQ$7,$K$68:$DL$122,ROWS($B$12:$B61)+2,FALSE)","v":0},{"$f":"HLOOKUP(AR$7,$K$68:$DL$122,ROWS($B$12:$B61)+2,FALSE)","v":2017},{"$f":"HLOOKUP(AS$7,$K$68:$DL$122,ROWS($B$12:$B61)+2,FALSE)","v":3865},{"$f":"HLOOKUP(AT$7,$K$68:$DL$122,ROWS($B$12:$B61)+2,FALSE)","v":0},{"$f":"HLOOKUP(AU$7,$K$68:$DL$122,ROWS($B$12:$B61)+2,FALSE)","v":8545},{"$f":"HLOOKUP(AV$7,$K$68:$DL$122,ROWS($B$12:$B61)+2,FALSE)","v":97},{"$f":"HLOOKUP(AW$7,$K$68:$DL$122,ROWS($B$12:$B61)+2,FALSE)","v":132},{"$f":"HLOOKUP(AX$7,$K$68:$DL$122,ROWS($B$12:$B61)+2,FALSE)","v":4205},{"$f":"HLOOKUP(AY$7,$K$68:$DL$122,ROWS($B$12:$B61)+2,FALSE)","v":284},{"$f":"HLOOKUP(AZ$7,$K$68:$DL$122,ROWS($B$12:$B61)+2,FALSE)","v":1857},{"$f":"HLOOKUP(BA$7,$K$68:$DL$122,ROWS($B$12:$B61)+2,FALSE)","v":0},{"$f":"HLOOKUP(BB$7,$K$68:$DL$122,ROWS($B$12:$B61)+2,FALSE)","v":546},{"$f":"HLOOKUP(BC$7,$K$68:$DL$122,ROWS($B$12:$B61)+2,FALSE)","v":1574},{"$f":"HLOOKUP(BD$7,$K$68:$DL$122,ROWS($B$12:$B61)+2,FALSE)","v":114},{"$f":"HLOOKUP(BE$7,$K$68:$DL$122,ROWS($B$12:$B61)+2,FALSE)","v":23},{"$f":"HLOOKUP(BF$7,$K$68:$DL$122,ROWS($B$12:$B61)+2,FALSE)","v":5561},{"$f":"HLOOKUP(BG$7,$K$68:$DL$122,ROWS($B$12:$B61)+2,FALSE)","v":83},{"$f":"HLOOKUP(BH$7,$K$68:$DL$122,ROWS($B$12:$B61)+2,FALSE)","v":"N/A"},{"$f":"HLOOKUP(BI$7,$K$68:$DL$122,ROWS($B$12:$B61)+2,FALSE)","v":42},{"$f":"HLOOKUP(BJ$7,$K$68:$DL$122,ROWS($B$12:$B61)+2,FALSE)","v":0},{"$f":"HLOOKUP(BK$7,$K$68:$DL$122,ROWS($B$12:$B61)+2,FALSE)","v":680},{"$f":"HLOOKUP(BL$7+0.5,$K$68:$DL$122,ROWS($B$12:$B61)+2,FALSE)","v":4934},{"$f":"HLOOKUP(BM$7+0.5,$K$68:$DL$122,ROWS($B$12:$B61)+2,FALSE)","v":228},{"$f":"HLOOKUP(BN$7+0.5,$K$68:$DL$122,ROWS($B$12:$B61)+2,FALSE)","v":566},{"$f":"HLOOKUP(BO$7+0.5,$K$68:$DL$122,ROWS($B$12:$B61)+2,FALSE)","v":95},{"$f":"HLOOKUP(BP$7+0.5,$K$68:$DL$122,ROWS($B$12:$B61)+2,FALSE)","v":361},{"$f":"HLOOKUP(BQ$7+0.5,$K$68:$DL$122,ROWS($B$12:$B61)+2,FALSE)","v":1085},{"$f":"HLOOKUP(BR$7+0.5,$K$68:$DL$122,ROWS($B$12:$B61)+2,FALSE)","v":160},{"$f":"HLOOKUP(BS$7+0.5,$K$68:$DL$122,ROWS($B$12:$B61)+2,FALSE)","v":401},{"$f":"HLOOKUP(BT$7+0.5,$K$68:$DL$122,ROWS($B$12:$B61)+2,FALSE)","v":102},{"$f":"HLOOKUP(BU$7+0.5,$K$68:$DL$122,ROWS($B$12:$B61)+2,FALSE)","v":231},{"$f":"HLOOKUP(BV$7+0.5,$K$68:$DL$122,ROWS($B$12:$B61)+2,FALSE)","v":1076},{"$f":"HLOOKUP(BW$7+0.5,$K$68:$DL$122,ROWS($B$12:$B61)+2,FALSE)","v":898},{"$f":"HLOOKUP(BX$7+0.5,$K$68:$DL$122,ROWS($B$12:$B61)+2,FALSE)","v":248},{"$f":"HLOOKUP(BY$7+0.5,$K$68:$DL$122,ROWS($B$12:$B61)+2,FALSE)","v":127},{"$f":"HLOOKUP(BZ$7+0.5,$K$68:$DL$122,ROWS($B$12:$B61)+2,FALSE)","v":1134},{"$f":"HLOOKUP(CA$7+0.5,$K$68:$DL$122,ROWS($B$12:$B61)+2,FALSE)","v":200},{"$f":"HLOOKUP(CB$7+0.5,$K$68:$DL$122,ROWS($B$12:$B61)+2,FALSE)","v":184},{"$f":"HLOOKUP(CC$7+0.5,$K$68:$DL$122,ROWS($B$12:$B61)+2,FALSE)","v":184},{"$f":"HLOOKUP(CD$7+0.5,$K$68:$DL$122,ROWS($B$12:$B61)+2,FALSE)","v":259},{"$f":"HLOOKUP(CE$7+0.5,$K$68:$DL$122,ROWS($B$12:$B61)+2,FALSE)","v":313},{"$f":"HLOOKUP(CF$7+0.5,$K$68:$DL$122,ROWS($B$12:$B61)+2,FALSE)","v":75},{"$f":"HLOOKUP(CG$7+0.5,$K$68:$DL$122,ROWS($B$12:$B61)+2,FALSE)","v":2257},{"$f":"HLOOKUP(CH$7+0.5,$K$68:$DL$122,ROWS($B$12:$B61)+2,FALSE)","v":196},{"$f":"HLOOKUP(CI$7+0.5,$K$68:$DL$122,ROWS($B$12:$B61)+2,FALSE)","v":263},{"$f":"HLOOKUP(CJ$7+0.5,$K$68:$DL$122,ROWS($B$12:$B61)+2,FALSE)","v":184},{"$f":"HLOOKUP(CK$7+0.5,$K$68:$DL$122,ROWS($B$12:$B61)+2,FALSE)","v":184},{"$f":"HLOOKUP(CL$7+0.5,$K$68:$DL$122,ROWS($B$12:$B61)+2,FALSE)","v":345},{"$f":"HLOOKUP(CM$7+0.5,$K$68:$DL$122,ROWS($B$12:$B61)+2,FALSE)","v":101},{"$f":"HLOOKUP(CN$7+0.5,$K$68:$DL$122,ROWS($B$12:$B61)+2,FALSE)","v":140},{"$f":"HLOOKUP(CO$7+0.5,$K$68:$DL$122,ROWS($B$12:$B61)+2,FALSE)","v":235},{"$f":"HLOOKUP(CP$7+0.5,$K$68:$DL$122,ROWS($B$12:$B61)+2,FALSE)","v":223},{"$f":"HLOOKUP(CQ$7+0.5,$K$68:$DL$122,ROWS($B$12:$B61)+2,FALSE)","v":611},{"$f":"HLOOKUP(CR$7+0.5,$K$68:$DL$122,ROWS($B$12:$B61)+2,FALSE)","v":184},{"$f":"HLOOKUP(CS$7+0.5,$K$68:$DL$122,ROWS($B$12:$B61)+2,FALSE)","v":866},{"$f":"HLOOKUP(CT$7+0.5,$K$68:$DL$122,ROWS($B$12:$B61)+2,FALSE)","v":1241},{"$f":"HLOOKUP(CU$7+0.5,$K$68:$DL$122,ROWS($B$12:$B61)+2,FALSE)","v":184},{"$f":"HLOOKUP(CV$7+0.5,$K$68:$DL$122,ROWS($B$12:$B61)+2,FALSE)","v":1913},{"$f":"HLOOKUP(CW$7+0.5,$K$68:$DL$122,ROWS($B$12:$B61)+2,FALSE)","v":113},{"$f":"HLOOKUP(CX$7+0.5,$K$68:$DL$122,ROWS($B$12:$B61)+2,FALSE)","v":203},{"$f":"HLOOKUP(CY$7+0.5,$K$68:$DL$122,ROWS($B$12:$B61)+2,FALSE)","v":1569},{"$f":"HLOOKUP(CZ$7+0.5,$K$68:$DL$122,ROWS($B$12:$B61)+2,FALSE)","v":344},{"$f":"HLOOKUP(DA$7+0.5,$K$68:$DL$122,ROWS($B$12:$B61)+2,FALSE)","v":1316},{"$f":"HLOOKUP(DB$7+0.5,$K$68:$DL$122,ROWS($B$12:$B61)+2,FALSE)","v":184},{"$f":"HLOOKUP(DC$7+0.5,$K$68:$DL$122,ROWS($B$12:$B61)+2,FALSE)","v":449},{"$f":"HLOOKUP(DD$7+0.5,$K$68:$DL$122,ROWS($B$12:$B61)+2,FALSE)","v":1047},{"$f":"HLOOKUP(DE$7+0.5,$K$68:$DL$122,ROWS($B$12:$B61)+2,FALSE)","v":216},{"$f":"HLOOKUP(DF$7+0.5,$K$68:$DL$122,ROWS($B$12:$B61)+2,FALSE)","v":33},{"$f":"HLOOKUP(DG$7+0.5,$K$68:$DL$122,ROWS($B$12:$B61)+2,FALSE)","v":1534},{"$f":"HLOOKUP(DH$7+0.5,$K$68:$DL$122,ROWS($B$12:$B61)+2,FALSE)","v":137},{"$f":"HLOOKUP(DI$7+0.5,$K$68:$DL$122,ROWS($B$12:$B61)+2,FALSE)","v":"N/A"},{"$f":"HLOOKUP(DJ$7+0.5,$K$68:$DL$122,ROWS($B$12:$B61)+2,FALSE)","v":69},{"$f":"HLOOKUP(DK$7+0.5,$K$68:$DL$122,ROWS($B$12:$B61)+2,FALSE)","v":184},{"$f":"HLOOKUP(DL$7+0.5,$K$68:$DL$122,ROWS($B$12:$B61)+2,FALSE)","v":450}]
[null,null,"Wisconsin",5647213,2653,4846550,18735,675623,19411,1.5662299196154916E-2,{"$f":"HLOOKUP(K$7,$K$68:$DL$122,ROWS($B$12:$B62)+2,FALSE)","v":109439},{"$f":"HLOOKUP(L$7,$K$68:$DL$122,ROWS($B$12:$B62)+2,FALSE)","v":708},{"$f":"HLOOKUP(M$7,$K$68:$DL$122,ROWS($B$12:$B62)+2,FALSE)","v":432},{"$f":"HLOOKUP(N$7,$K$68:$DL$122,ROWS($B$12:$B62)+2,FALSE)","v":4045},{"$f":"HLOOKUP(O$7,$K$68:$DL$122,ROWS($B$12:$B62)+2,FALSE)","v":335},{"$f":"HLOOKUP(P$7,$K$68:$DL$122,ROWS($B$12:$B62)+2,FALSE)","v":6637},{"$f":"HLOOKUP(Q$7,$K$68:$DL$122,ROWS($B$12:$B62)+2,FALSE)","v":2592},{"$f":"HLOOKUP(R$7,$K$68:$DL$122,ROWS($B$12:$B62)+2,FALSE)","v":993},{"$f":"HLOOKUP(S$7,$K$68:$DL$122,ROWS($B$12:$B62)+2,FALSE)","v":219},{"$f":"HLOOKUP(T$7,$K$68:$DL$122,ROWS($B$12:$B62)+2,FALSE)","v":123},{"$f":"HLOOKUP(U$7,$K$68:$DL$122,ROWS($B$12:$B62)+2,FALSE)","v":4338},{"$f":"HLOOKUP(V$7,$K$68:$DL$122,ROWS($B$12:$B62)+2,FALSE)","v":1745},{"$f":"HLOOKUP(W$7,$K$68:$DL$122,ROWS($B$12:$B62)+2,FALSE)","v":1108},{"$f":"HLOOKUP(X$7,$K$68:$DL$122,ROWS($B$12:$B62)+2,FALSE)","v":566},{"$f":"HLOOKUP(Y$7,$K$68:$DL$122,ROWS($B$12:$B62)+2,FALSE)","v":25521},{"$f":"HLOOKUP(Z$7,$K$68:$DL$122,ROWS($B$12:$B62)+2,FALSE)","v":4017},{"$f":"HLOOKUP(AA$7,$K$68:$DL$122,ROWS($B$12:$B62)+2,FALSE)","v":3306},{"$f":"HLOOKUP(AB$7,$K$68:$DL$122,ROWS($B$12:$B62)+2,FALSE)","v":418},{"$f":"HLOOKUP(AC$7,$K$68:$DL$122,ROWS($B$12:$B62)+2,FALSE)","v":1040},{"$f":"HLOOKUP(AD$7,$K$68:$DL$122,ROWS($B$12:$B62)+2,FALSE)","v":850},{"$f":"HLOOKUP(AE$7,$K$68:$DL$122,ROWS($B$12:$B62)+2,FALSE)","v":12},{"$f":"HLOOKUP(AF$7,$K$68:$DL$122,ROWS($B$12:$B62)+2,FALSE)","v":147},{"$f":"HLOOKUP(AG$7,$K$68:$DL$122,ROWS($B$12:$B62)+2,FALSE)","v":733},{"$f":"HLOOKUP(AH$7,$K$68:$DL$122,ROWS($B$12:$B62)+2,FALSE)","v":5623},{"$f":"HLOOKUP(AI$7,$K$68:$DL$122,ROWS($B$12:$B62)+2,FALSE)","v":17927},{"$f":"HLOOKUP(AJ$7,$K$68:$DL$122,ROWS($B$12:$B62)+2,FALSE)","v":983},{"$f":"HLOOKUP(AK$7,$K$68:$DL$122,ROWS($B$12:$B62)+2,FALSE)","v":2090},{"$f":"HLOOKUP(AL$7,$K$68:$DL$122,ROWS($B$12:$B62)+2,FALSE)","v":143},{"$f":"HLOOKUP(AM$7,$K$68:$DL$122,ROWS($B$12:$B62)+2,FALSE)","v":483},{"$f":"HLOOKUP(AN$7,$K$68:$DL$122,ROWS($B$12:$B62)+2,FALSE)","v":663},{"$f":"HLOOKUP(AO$7,$K$68:$DL$122,ROWS($B$12:$B62)+2,FALSE)","v":480},{"$f":"HLOOKUP(AP$7,$K$68:$DL$122,ROWS($B$12:$B62)+2,FALSE)","v":378},{"$f":"HLOOKUP(AQ$7,$K$68:$DL$122,ROWS($B$12:$B62)+2,FALSE)","v":714},{"$f":"HLOOKUP(AR$7,$K$68:$DL$122,ROWS($B$12:$B62)+2,FALSE)","v":2213},{"$f":"HLOOKUP(AS$7,$K$68:$DL$122,ROWS($B$12:$B62)+2,FALSE)","v":2120},{"$f":"HLOOKUP(AT$7,$K$68:$DL$122,ROWS($B$12:$B62)+2,FALSE)","v":1383},{"$f":"HLOOKUP(AU$7,$K$68:$DL$122,ROWS($B$12:$B62)+2,FALSE)","v":1358},{"$f":"HLOOKUP(AV$7,$K$68:$DL$122,ROWS($B$12:$B62)+2,FALSE)","v":118},{"$f":"HLOOKUP(AW$7,$K$68:$DL$122,ROWS($B$12:$B62)+2,FALSE)","v":1057},{"$f":"HLOOKUP(AX$7,$K$68:$DL$122,ROWS($B$12:$B62)+2,FALSE)","v":1294},{"$f":"HLOOKUP(AY$7,$K$68:$DL$122,ROWS($B$12:$B62)+2,FALSE)","v":368},{"$f":"HLOOKUP(AZ$7,$K$68:$DL$122,ROWS($B$12:$B62)+2,FALSE)","v":377},{"$f":"HLOOKUP(BA$7,$K$68:$DL$122,ROWS($B$12:$B62)+2,FALSE)","v":590},{"$f":"HLOOKUP(BB$7,$K$68:$DL$122,ROWS($B$12:$B62)+2,FALSE)","v":744},{"$f":"HLOOKUP(BC$7,$K$68:$DL$122,ROWS($B$12:$B62)+2,FALSE)","v":1984},{"$f":"HLOOKUP(BD$7,$K$68:$DL$122,ROWS($B$12:$B62)+2,FALSE)","v":890},{"$f":"HLOOKUP(BE$7,$K$68:$DL$122,ROWS($B$12:$B62)+2,FALSE)","v":342},{"$f":"HLOOKUP(BF$7,$K$68:$DL$122,ROWS($B$12:$B62)+2,FALSE)","v":2573},{"$f":"HLOOKUP(BG$7,$K$68:$DL$122,ROWS($B$12:$B62)+2,FALSE)","v":1555},{"$f":"HLOOKUP(BH$7,$K$68:$DL$122,ROWS($B$12:$B62)+2,FALSE)","v":1090},{"$f":"HLOOKUP(BI$7,$K$68:$DL$122,ROWS($B$12:$B62)+2,FALSE)","v":"N/A"},{"$f":"HLOOKUP(BJ$7,$K$68:$DL$122,ROWS($B$12:$B62)+2,FALSE)","v":14},{"$f":"HLOOKUP(BK$7,$K$68:$DL$122,ROWS($B$12:$B62)+2,FALSE)","v":728},{"$f":"HLOOKUP(BL$7+0.5,$K$68:$DL$122,ROWS($B$12:$B62)+2,FALSE)","v":8715},{"$f":"HLOOKUP(BM$7+0.5,$K$68:$DL$122,ROWS($B$12:$B62)+2,FALSE)","v":761},{"$f":"HLOOKUP(BN$7+0.5,$K$68:$DL$122,ROWS($B$12:$B62)+2,FALSE)","v":323},{"$f":"HLOOKUP(BO$7+0.5,$K$68:$DL$122,ROWS($B$12:$B62)+2,FALSE)","v":1532},{"$f":"HLOOKUP(BP$7+0.5,$K$68:$DL$122,ROWS($B$12:$B62)+2,FALSE)","v":285},{"$f":"HLOOKUP(BQ$7+0.5,$K$68:$DL$122,ROWS($B$12:$B62)+2,FALSE)","v":2054},{"$f":"HLOOKUP(BR$7+0.5,$K$68:$DL$122,ROWS($B$12:$B62)+2,FALSE)","v":1457},{"$f":"HLOOKUP(BS$7+0.5,$K$68:$DL$122,ROWS($B$12:$B62)+2,FALSE)","v":1397},{"$f":"HLOOKUP(BT$7+0.5,$K$68:$DL$122,ROWS($B$12:$B62)+2,FALSE)","v":276},{"$f":"HLOOKUP(BU$7+0.5,$K$68:$DL$122,ROWS($B$12:$B62)+2,FALSE)","v":170},{"$f":"HLOOKUP(BV$7+0.5,$K$68:$DL$122,ROWS($B$12:$B62)+2,FALSE)","v":1103},{"$f":"HLOOKUP(BW$7+0.5,$K$68:$DL$122,ROWS($B$12:$B62)+2,FALSE)","v":1106},{"$f":"HLOOKUP(BX$7+0.5,$K$68:$DL$122,ROWS($B$12:$B62)+2,FALSE)","v":1597},{"$f":"HLOOKUP(BY$7+0.5,$K$68:$DL$122,ROWS($B$12:$B62)+2,FALSE)","v":434},{"$f":"HLOOKUP(BZ$7+0.5,$K$68:$DL$122,ROWS($B$12:$B62)+2,FALSE)","v":4568},{"$f":"HLOOKUP(CA$7+0.5,$K$68:$DL$122,ROWS($B$12:$B62)+2,FALSE)","v":2027},{"$f":"HLOOKUP(CB$7+0.5,$K$68:$DL$122,ROWS($B$12:$B62)+2,FALSE)","v":1757},{"$f":"HLOOKUP(CC$7+0.5,$K$68:$DL$122,ROWS($B$12:$B62)+2,FALSE)","v":446},{"$f":"HLOOKUP(CD$7+0.5,$K$68:$DL$122,ROWS($B$12:$B62)+2,FALSE)","v":570},{"$f":"HLOOKUP(CE$7+0.5,$K$68:$DL$122,ROWS($B$12:$B62)+2,FALSE)","v":563},{"$f":"HLOOKUP(CF$7+0.5,$K$68:$DL$122,ROWS($B$12:$B62)+2,FALSE)","v":21},{"$f":"HLOOKUP(CG$7+0.5,$K$68:$DL$122,ROWS($B$12:$B62)+2,FALSE)","v":141},{"$f":"HLOOKUP(CH$7+0.5,$K$68:$DL$122,ROWS($B$12:$B62)+2,FALSE)","v":578},{"$f":"HLOOKUP(CI$7+0.5,$K$68:$DL$122,ROWS($B$12:$B62)+2,FALSE)","v":1353},{"$f":"HLOOKUP(CJ$7+0.5,$K$68:$DL$122,ROWS($B$12:$B62)+2,FALSE)","v":2244},{"$f":"HLOOKUP(CK$7+0.5,$K$68:$DL$122,ROWS($B$12:$B62)+2,FALSE)","v":924},{"$f":"HLOOKUP(CL$7+0.5,$K$68:$DL$122,ROWS($B$12:$B62)+2,FALSE)","v":1117},{"$f":"HLOOKUP(CM$7+0.5,$K$68:$DL$122,ROWS($B$12:$B62)+2,FALSE)","v":93},{"$f":"HLOOKUP(CN$7+0.5,$K$68:$DL$122,ROWS($B$12:$B62)+2,FALSE)","v":405},{"$f":"HLOOKUP(CO$7+0.5,$K$68:$DL$122,ROWS($B$12:$B62)+2,FALSE)","v":345},{"$f":"HLOOKUP(CP$7+0.5,$K$68:$DL$122,ROWS($B$12:$B62)+2,FALSE)","v":364},{"$f":"HLOOKUP(CQ$7+0.5,$K$68:$DL$122,ROWS($B$12:$B62)+2,FALSE)","v":352},{"$f":"HLOOKUP(CR$7+0.5,$K$68:$DL$122,ROWS($B$12:$B62)+2,FALSE)","v":502},{"$f":"HLOOKUP(CS$7+0.5,$K$68:$DL$122,ROWS($B$12:$B62)+2,FALSE)","v":835},{"$f":"HLOOKUP(CT$7+0.5,$K$68:$DL$122,ROWS($B$12:$B62)+2,FALSE)","v":967},{"$f":"HLOOKUP(CU$7+0.5,$K$68:$DL$122,ROWS($B$12:$B62)+2,FALSE)","v":1273},{"$f":"HLOOKUP(CV$7+0.5,$K$68:$DL$122,ROWS($B$12:$B62)+2,FALSE)","v":628},{"$f":"HLOOKUP(CW$7+0.5,$K$68:$DL$122,ROWS($B$12:$B62)+2,FALSE)","v":119},{"$f":"HLOOKUP(CX$7+0.5,$K$68:$DL$122,ROWS($B$12:$B62)+2,FALSE)","v":680},{"$f":"HLOOKUP(CY$7+0.5,$K$68:$DL$122,ROWS($B$12:$B62)+2,FALSE)","v":781},{"$f":"HLOOKUP(CZ$7+0.5,$K$68:$DL$122,ROWS($B$12:$B62)+2,FALSE)","v":407},{"$f":"HLOOKUP(DA$7+0.5,$K$68:$DL$122,ROWS($B$12:$B62)+2,FALSE)","v":312},{"$f":"HLOOKUP(DB$7+0.5,$K$68:$DL$122,ROWS($B$12:$B62)+2,FALSE)","v":487},{"$f":"HLOOKUP(DC$7+0.5,$K$68:$DL$122,ROWS($B$12:$B62)+2,FALSE)","v":527},{"$f":"HLOOKUP(DD$7+0.5,$K$68:$DL$122,ROWS($B$12:$B62)+2,FALSE)","v":836},{"$f":"HLOOKUP(DE$7+0.5,$K$68:$DL$122,ROWS($B$12:$B62)+2,FALSE)","v":652},{"$f":"HLOOKUP(DF$7+0.5,$K$68:$DL$122,ROWS($B$12:$B62)+2,FALSE)","v":311},{"$f":"HLOOKUP(DG$7+0.5,$K$68:$DL$122,ROWS($B$12:$B62)+2,FALSE)","v":1465},{"$f":"HLOOKUP(DH$7+0.5,$K$68:$DL$122,ROWS($B$12:$B62)+2,FALSE)","v":1071},{"$f":"HLOOKUP(DI$7+0.5,$K$68:$DL$122,ROWS($B$12:$B62)+2,FALSE)","v":1630},{"$f":"HLOOKUP(DJ$7+0.5,$K$68:$DL$122,ROWS($B$12:$B62)+2,FALSE)","v":"N/A"},{"$f":"HLOOKUP(DK$7+0.5,$K$68:$DL$122,ROWS($B$12:$B62)+2,FALSE)","v":23},{"$f":"HLOOKUP(DL$7+0.5,$K$68:$DL$122,ROWS($B$12:$B62)+2,FALSE)","v":715}]
[null,null,"Wyoming",561389,1021,462808,7194,66648,5771,4.3866001394506924E-3,{"$f":"HLOOKUP(K$7,$K$68:$DL$122,ROWS($B$12:$B63)+2,FALSE)","v":30651},{"$f":"HLOOKUP(L$7,$K$68:$DL$122,ROWS($B$12:$B63)+2,FALSE)","v":51},{"$f":"HLOOKUP(M$7,$K$68:$DL$122,ROWS($B$12:$B63)+2,FALSE)","v":761},{"$f":"HLOOKUP(N$7,$K$68:$DL$122,ROWS($B$12:$B63)+2,FALSE)","v":369},{"$f":"HLOOKUP(O$7,$K$68:$DL$122,ROWS($B$12:$B63)+2,FALSE)","v":174},{"$f":"HLOOKUP(P$7,$K$68:$DL$122,ROWS($B$12:$B63)+2,FALSE)","v":2539},{"$f":"HLOOKUP(Q$7,$K$68:$DL$122,ROWS($B$12:$B63)+2,FALSE)","v":6905},{"$f":"HLOOKUP(R$7,$K$68:$DL$122,ROWS($B$12:$B63)+2,FALSE)","v":11},{"$f":"HLOOKUP(S$7,$K$68:$DL$122,ROWS($B$12:$B63)+2,FALSE)","v":0},{"$f":"HLOOKUP(T$7,$K$68:$DL$122,ROWS($B$12:$B63)+2,FALSE)","v":0},{"$f":"HLOOKUP(U$7,$K$68:$DL$122,ROWS($B$12:$B63)+2,FALSE)","v":1525},{"$f":"HLOOKUP(V$7,$K$68:$DL$122,ROWS($B$12:$B63)+2,FALSE)","v":46},{"$f":"HLOOKUP(W$7,$K$68:$DL$122,ROWS($B$12:$B63)+2,FALSE)","v":0},{"$f":"HLOOKUP(X$7,$K$68:$DL$122,ROWS($B$12:$B63)+2,FALSE)","v":2140},{"$f":"HLOOKUP(Y$7,$K$68:$DL$122,ROWS($B$12:$B63)+2,FALSE)","v":450},{"$f":"HLOOKUP(Z$7,$K$68:$DL$122,ROWS($B$12:$B63)+2,FALSE)","v":6},{"$f":"HLOOKUP(AA$7,$K$68:$DL$122,ROWS($B$12:$B63)+2,FALSE)","v":342},{"$f":"HLOOKUP(AB$7,$K$68:$DL$122,ROWS($B$12:$B63)+2,FALSE)","v":286},{"$f":"HLOOKUP(AC$7,$K$68:$DL$122,ROWS($B$12:$B63)+2,FALSE)","v":83},{"$f":"HLOOKUP(AD$7,$K$68:$DL$122,ROWS($B$12:$B63)+2,FALSE)","v":114},{"$f":"HLOOKUP(AE$7,$K$68:$DL$122,ROWS($B$12:$B63)+2,FALSE)","v":0},{"$f":"HLOOKUP(AF$7,$K$68:$DL$122,ROWS($B$12:$B63)+2,FALSE)","v":0},{"$f":"HLOOKUP(AG$7,$K$68:$DL$122,ROWS($B$12:$B63)+2,FALSE)","v":152},{"$f":"HLOOKUP(AH$7,$K$68:$DL$122,ROWS($B$12:$B63)+2,FALSE)","v":849},{"$f":"HLOOKUP(AI$7,$K$68:$DL$122,ROWS($B$12:$B63)+2,FALSE)","v":357},{"$f":"HLOOKUP(AJ$7,$K$68:$DL$122,ROWS($B$12:$B63)+2,FALSE)","v":70},{"$f":"HLOOKUP(AK$7,$K$68:$DL$122,ROWS($B$12:$B63)+2,FALSE)","v":241},{"$f":"HLOOKUP(AL$7,$K$68:$DL$122,ROWS($B$12:$B63)+2,FALSE)","v":1105},{"$f":"HLOOKUP(AM$7,$K$68:$DL$122,ROWS($B$12:$B63)+2,FALSE)","v":1784},{"$f":"HLOOKUP(AN$7,$K$68:$DL$122,ROWS($B$12:$B63)+2,FALSE)","v":427},{"$f":"HLOOKUP(AO$7,$K$68:$DL$122,ROWS($B$12:$B63)+2,FALSE)","v":0},{"$f":"HLOOKUP(AP$7,$K$68:$DL$122,ROWS($B$12:$B63)+2,FALSE)","v":7},{"$f":"HLOOKUP(AQ$7,$K$68:$DL$122,ROWS($B$12:$B63)+2,FALSE)","v":76},{"$f":"HLOOKUP(AR$7,$K$68:$DL$122,ROWS($B$12:$B63)+2,FALSE)","v":113},{"$f":"HLOOKUP(AS$7,$K$68:$DL$122,ROWS($B$12:$B63)+2,FALSE)","v":395},{"$f":"HLOOKUP(AT$7,$K$68:$DL$122,ROWS($B$12:$B63)+2,FALSE)","v":237},{"$f":"HLOOKUP(AU$7,$K$68:$DL$122,ROWS($B$12:$B63)+2,FALSE)","v":22},{"$f":"HLOOKUP(AV$7,$K$68:$DL$122,ROWS($B$12:$B63)+2,FALSE)","v":462},{"$f":"HLOOKUP(AW$7,$K$68:$DL$122,ROWS($B$12:$B63)+2,FALSE)","v":960},{"$f":"HLOOKUP(AX$7,$K$68:$DL$122,ROWS($B$12:$B63)+2,FALSE)","v":284},{"$f":"HLOOKUP(AY$7,$K$68:$DL$122,ROWS($B$12:$B63)+2,FALSE)","v":13},{"$f":"HLOOKUP(AZ$7,$K$68:$DL$122,ROWS($B$12:$B63)+2,FALSE)","v":219},{"$f":"HLOOKUP(BA$7,$K$68:$DL$122,ROWS($B$12:$B63)+2,FALSE)","v":1043},{"$f":"HLOOKUP(BB$7,$K$68:$DL$122,ROWS($B$12:$B63)+2,FALSE)","v":69},{"$f":"HLOOKUP(BC$7,$K$68:$DL$122,ROWS($B$12:$B63)+2,FALSE)","v":1398},{"$f":"HLOOKUP(BD$7,$K$68:$DL$122,ROWS($B$12:$B63)+2,FALSE)","v":2140},{"$f":"HLOOKUP(BE$7,$K$68:$DL$122,ROWS($B$12:$B63)+2,FALSE)","v":4},{"$f":"HLOOKUP(BF$7,$K$68:$DL$122,ROWS($B$12:$B63)+2,FALSE)","v":451},{"$f":"HLOOKUP(BG$7,$K$68:$DL$122,ROWS($B$12:$B63)+2,FALSE)","v":1803},{"$f":"HLOOKUP(BH$7,$K$68:$DL$122,ROWS($B$12:$B63)+2,FALSE)","v":0},{"$f":"HLOOKUP(BI$7,$K$68:$DL$122,ROWS($B$12:$B63)+2,FALSE)","v":168},{"$f":"HLOOKUP(BJ$7,$K$68:$DL$122,ROWS($B$12:$B63)+2,FALSE)","v":"N/A"},{"$f":"HLOOKUP(BK$7,$K$68:$DL$122,ROWS($B$12:$B63)+2,FALSE)","v":0},{"$f":"HLOOKUP(BL$7+0.5,$K$68:$DL$122,ROWS($B$12:$B63)+2,FALSE)","v":4428},{"$f":"HLOOKUP(BM$7+0.5,$K$68:$DL$122,ROWS($B$12:$B63)+2,FALSE)","v":62},{"$f":"HLOOKUP(BN$7+0.5,$K$68:$DL$122,ROWS($B$12:$B63)+2,FALSE)","v":597},{"$f":"HLOOKUP(BO$7+0.5,$K$68:$DL$122,ROWS($B$12:$B63)+2,FALSE)","v":276},{"$f":"HLOOKUP(BP$7+0.5,$K$68:$DL$122,ROWS($B$12:$B63)+2,FALSE)","v":191},{"$f":"HLOOKUP(BQ$7+0.5,$K$68:$DL$122,ROWS($B$12:$B63)+2,FALSE)","v":1151},{"$f":"HLOOKUP(BR$7+0.5,$K$68:$DL$122,ROWS($B$12:$B63)+2,FALSE)","v":2099},{"$f":"HLOOKUP(BS$7+0.5,$K$68:$DL$122,ROWS($B$12:$B63)+2,FALSE)","v":22},{"$f":"HLOOKUP(BT$7+0.5,$K$68:$DL$122,ROWS($B$12:$B63)+2,FALSE)","v":189},{"$f":"HLOOKUP(BU$7+0.5,$K$68:$DL$122,ROWS($B$12:$B63)+2,FALSE)","v":189},{"$f":"HLOOKUP(BV$7+0.5,$K$68:$DL$122,ROWS($B$12:$B63)+2,FALSE)","v":1206},{"$f":"HLOOKUP(BW$7+0.5,$K$68:$DL$122,ROWS($B$12:$B63)+2,FALSE)","v":80},{"$f":"HLOOKUP(BX$7+0.5,$K$68:$DL$122,ROWS($B$12:$B63)+2,FALSE)","v":189},{"$f":"HLOOKUP(BY$7+0.5,$K$68:$DL$122,ROWS($B$12:$B63)+2,FALSE)","v":1161},{"$f":"HLOOKUP(BZ$7+0.5,$K$68:$DL$122,ROWS($B$12:$B63)+2,FALSE)","v":409},{"$f":"HLOOKUP(CA$7+0.5,$K$68:$DL$122,ROWS($B$12:$B63)+2,FALSE)","v":14},{"$f":"HLOOKUP(CB$7+0.5,$K$68:$DL$122,ROWS($B$12:$B63)+2,FALSE)","v":323},{"$f":"HLOOKUP(CC$7+0.5,$K$68:$DL$122,ROWS($B$12:$B63)+2,FALSE)","v":364},{"$f":"HLOOKUP(CD$7+0.5,$K$68:$DL$122,ROWS($B$12:$B63)+2,FALSE)","v":140},{"$f":"HLOOKUP(CE$7+0.5,$K$68:$DL$122,ROWS($B$12:$B63)+2,FALSE)","v":204},{"$f":"HLOOKUP(CF$7+0.5,$K$68:$DL$122,ROWS($B$12:$B63)+2,FALSE)","v":189},{"$f":"HLOOKUP(CG$7+0.5,$K$68:$DL$122,ROWS($B$12:$B63)+2,FALSE)","v":189},{"$f":"HLOOKUP(CH$7+0.5,$K$68:$DL$122,ROWS($B$12:$B63)+2,FALSE)","v":226},{"$f":"HLOOKUP(CI$7+0.5,$K$68:$DL$122,ROWS($B$12:$B63)+2,FALSE)","v":545},{"$f":"HLOOKUP(CJ$7+0.5,$K$68:$DL$122,ROWS($B$12:$B63)+2,FALSE)","v":355},{"$f":"HLOOKUP(CK$7+0.5,$K$68:$DL$122,ROWS($B$12:$B63)+2,FALSE)","v":117},{"$f":"HLOOKUP(CL$7+0.5,$K$68:$DL$122,ROWS($B$12:$B63)+2,FALSE)","v":274},{"$f":"HLOOKUP(CM$7+0.5,$K$68:$DL$122,ROWS($B$12:$B63)+2,FALSE)","v":531},{"$f":"HLOOKUP(CN$7+0.5,$K$68:$DL$122,ROWS($B$12:$B63)+2,FALSE)","v":957},{"$f":"HLOOKUP(CO$7+0.5,$K$68:$DL$122,ROWS($B$12:$B63)+2,FALSE)","v":656},{"$f":"HLOOKUP(CP$7+0.5,$K$68:$DL$122,ROWS($B$12:$B63)+2,FALSE)","v":189},{"$f":"HLOOKUP(CQ$7+0.5,$K$68:$DL$122,ROWS($B$12:$B63)+2,FALSE)","v":16},{"$f":"HLOOKUP(CR$7+0.5,$K$68:$DL$122,ROWS($B$12:$B63)+2,FALSE)","v":101},{"$f":"HLOOKUP(CS$7+0.5,$K$68:$DL$122,ROWS($B$12:$B63)+2,FALSE)","v":149},{"$f":"HLOOKUP(CT$7+0.5,$K$68:$DL$122,ROWS($B$12:$B63)+2,FALSE)","v":457},{"$f":"HLOOKUP(CU$7+0.5,$K$68:$DL$122,ROWS($B$12:$B63)+2,FALSE)","v":313},{"$f":"HLOOKUP(CV$7+0.5,$K$68:$DL$122,ROWS($B$12:$B63)+2,FALSE)","v":40},{"$f":"HLOOKUP(CW$7+0.5,$K$68:$DL$122,ROWS($B$12:$B63)+2,FALSE)","v":555},{"$f":"HLOOKUP(CX$7+0.5,$K$68:$DL$122,ROWS($B$12:$B63)+2,FALSE)","v":851},{"$f":"HLOOKUP(CY$7+0.5,$K$68:$DL$122,ROWS($B$12:$B63)+2,FALSE)","v":254},{"$f":"HLOOKUP(CZ$7+0.5,$K$68:$DL$122,ROWS($B$12:$B63)+2,FALSE)","v":28},{"$f":"HLOOKUP(DA$7+0.5,$K$68:$DL$122,ROWS($B$12:$B63)+2,FALSE)","v":307},{"$f":"HLOOKUP(DB$7+0.5,$K$68:$DL$122,ROWS($B$12:$B63)+2,FALSE)","v":1077},{"$f":"HLOOKUP(DC$7+0.5,$K$68:$DL$122,ROWS($B$12:$B63)+2,FALSE)","v":66},{"$f":"HLOOKUP(DD$7+0.5,$K$68:$DL$122,ROWS($B$12:$B63)+2,FALSE)","v":927},{"$f":"HLOOKUP(DE$7+0.5,$K$68:$DL$122,ROWS($B$12:$B63)+2,FALSE)","v":1003},{"$f":"HLOOKUP(DF$7+0.5,$K$68:$DL$122,ROWS($B$12:$B63)+2,FALSE)","v":8},{"$f":"HLOOKUP(DG$7+0.5,$K$68:$DL$122,ROWS($B$12:$B63)+2,FALSE)","v":634},{"$f":"HLOOKUP(DH$7+0.5,$K$68:$DL$122,ROWS($B$12:$B63)+2,FALSE)","v":1343},{"$f":"HLOOKUP(DI$7+0.5,$K$68:$DL$122,ROWS($B$12:$B63)+2,FALSE)","v":189},{"$f":"HLOOKUP(DJ$7+0.5,$K$68:$DL$122,ROWS($B$12:$B63)+2,FALSE)","v":260},{"$f":"HLOOKUP(DK$7+0.5,$K$68:$DL$122,ROWS($B$12:$B63)+2,FALSE)","v":"N/A"},{"$f":"HLOOKUP(DL$7+0.5,$K$68:$DL$122,ROWS($B$12:$B63)+2,FALSE)","v":189}]
[null,null,"Puerto Rico",3669195,3034,3403602,12450,238263,11889,null,{"$f":"HLOOKUP(K$7,$K$68:$DL$122,ROWS($B$12:$B64)+2,FALSE)","v":22649},{"$f":"HLOOKUP(L$7,$K$68:$DL$122,ROWS($B$12:$B64)+2,FALSE)","v":35},{"$f":"HLOOKUP(M$7,$K$68:$DL$122,ROWS($B$12:$B64)+2,FALSE)","v":378},{"$f":"HLOOKUP(N$7,$K$68:$DL$122,ROWS($B$12:$B64)+2,FALSE)","v":229},{"$f":"HLOOKUP(O$7,$K$68:$DL$122,ROWS($B$12:$B64)+2,FALSE)","v":0},{"$f":"HLOOKUP(P$7,$K$68:$DL$122,ROWS($B$12:$B64)+2,FALSE)","v":207},{"$f":"HLOOKUP(Q$7,$K$68:$DL$122,ROWS($B$12:$B64)+2,FALSE)","v":0},{"$f":"HLOOKUP(R$7,$K$68:$DL$122,ROWS($B$12:$B64)+2,FALSE)","v":1849},{"$f":"HLOOKUP(S$7,$K$68:$DL$122,ROWS($B$12:$B64)+2,FALSE)","v":13},{"$f":"HLOOKUP(T$7,$K$68:$DL$122,ROWS($B$12:$B64)+2,FALSE)","v":212},{"$f":"HLOOKUP(U$7,$K$68:$DL$122,ROWS($B$12:$B64)+2,FALSE)","v":6614},{"$f":"HLOOKUP(V$7,$K$68:$DL$122,ROWS($B$12:$B64)+2,FALSE)","v":247},{"$f":"HLOOKUP(W$7,$K$68:$DL$122,ROWS($B$12:$B64)+2,FALSE)","v":0},{"$f":"HLOOKUP(X$7,$K$68:$DL$122,ROWS($B$12:$B64)+2,FALSE)","v":13},{"$f":"HLOOKUP(Y$7,$K$68:$DL$122,ROWS($B$12:$B64)+2,FALSE)","v":624},{"$f":"HLOOKUP(Z$7,$K$68:$DL$122,ROWS($B$12:$B64)+2,FALSE)","v":784},{"$f":"HLOOKUP(AA$7,$K$68:$DL$122,ROWS($B$12:$B64)+2,FALSE)","v":0},{"$f":"HLOOKUP(AB$7,$K$68:$DL$122,ROWS($B$12:$B64)+2,FALSE)","v":38},{"$f":"HLOOKUP(AC$7,$K$68:$DL$122,ROWS($B$12:$B64)+2,FALSE)","v":0},{"$f":"HLOOKUP(AD$7,$K$68:$DL$122,ROWS($B$12:$B64)+2,FALSE)","v":0},{"$f":"HLOOKUP(AE$7,$K$68:$DL$122,ROWS($B$12:$B64)+2,FALSE)","v":0},{"$f":"HLOOKUP(AF$7,$K$68:$DL$122,ROWS($B$12:$B64)+2,FALSE)","v":70},{"$f":"HLOOKUP(AG$7,$K$68:$DL$122,ROWS($B$12:$B64)+2,FALSE)","v":1412},{"$f":"HLOOKUP(AH$7,$K$68:$DL$122,ROWS($B$12:$B64)+2,FALSE)","v":88},{"$f":"HLOOKUP(AI$7,$K$68:$DL$122,ROWS($B$12:$B64)+2,FALSE)","v":0},{"$f":"HLOOKUP(AJ$7,$K$68:$DL$122,ROWS($B$12:$B64)+2,FALSE)","v":27},{"$f":"HLOOKUP(AK$7,$K$68:$DL$122,ROWS($B$12:$B64)+2,FALSE)","v":101},{"$f":"HLOOKUP(AL$7,$K$68:$DL$122,ROWS($B$12:$B64)+2,FALSE)","v":0},{"$f":"HLOOKUP(AM$7,$K$68:$DL$122,ROWS($B$12:$B64)+2,FALSE)","v":0},{"$f":"HLOOKUP(AN$7,$K$68:$DL$122,ROWS($B$12:$B64)+2,FALSE)","v":0},{"$f":"HLOOKUP(AO$7,$K$68:$DL$122,ROWS($B$12:$B64)+2,FALSE)","v":0},{"$f":"HLOOKUP(AP$7,$K$68:$DL$122,ROWS($B$12:$B64)+2,FALSE)","v":2150},{"$f":"HLOOKUP(AQ$7,$K$68:$DL$122,ROWS($B$12:$B64)+2,FALSE)","v":51},{"$f":"HLOOKUP(AR$7,$K$68:$DL$122,ROWS($B$12:$B64)+2,FALSE)","v":2615},{"$f":"HLOOKUP(AS$7,$K$68:$DL$122,ROWS($B$12:$B64)+2,FALSE)","v":200},{"$f":"HLOOKUP(AT$7,$K$68:$DL$122,ROWS($B$12:$B64)+2,FALSE)","v":0},{"$f":"HLOOKUP(AU$7,$K$68:$DL$122,ROWS($B$12:$B64)+2,FALSE)","v":0},{"$f":"HLOOKUP(AV$7,$K$68:$DL$122,ROWS($B$12:$B64)+2,FALSE)","v":79},{"$f":"HLOOKUP(AW$7,$K$68:$DL$122,ROWS($B$12:$B64)+2,FALSE)","v":0},{"$f":"HLOOKUP(AX$7,$K$68:$DL$122,ROWS($B$12:$B64)+2,FALSE)","v":1978},{"$f":"HLOOKUP(AY$7,$K$68:$DL$122,ROWS($B$12:$B64)+2,FALSE)","v":490},{"$f":"HLOOKUP(AZ$7,$K$68:$DL$122,ROWS($B$12:$B64)+2,FALSE)","v":3},{"$f":"HLOOKUP(BA$7,$K$68:$DL$122,ROWS($B$12:$B64)+2,FALSE)","v":113},{"$f":"HLOOKUP(BB$7,$K$68:$DL$122,ROWS($B$12:$B64)+2,FALSE)","v":224},{"$f":"HLOOKUP(BC$7,$K$68:$DL$122,ROWS($B$12:$B64)+2,FALSE)","v":444},{"$f":"HLOOKUP(BD$7,$K$68:$DL$122,ROWS($B$12:$B64)+2,FALSE)","v":0},{"$f":"HLOOKUP(BE$7,$K$68:$DL$122,ROWS($B$12:$B64)+2,FALSE)","v":0},{"$f":"HLOOKUP(BF$7,$K$68:$DL$122,ROWS($B$12:$B64)+2,FALSE)","v":1077},{"$f":"HLOOKUP(BG$7,$K$68:$DL$122,ROWS($B$12:$B64)+2,FALSE)","v":41},{"$f":"HLOOKUP(BH$7,$K$68:$DL$122,ROWS($B$12:$B64)+2,FALSE)","v":14},{"$f":"HLOOKUP(BI$7,$K$68:$DL$122,ROWS($B$12:$B64)+2,FALSE)","v":229},{"$f":"HLOOKUP(BJ$7,$K$68:$DL$122,ROWS($B$12:$B64)+2,FALSE)","v":0},{"$f":"HLOOKUP(BK$7,$K$68:$DL$122,ROWS($B$12:$B64)+2,FALSE)","v":"N/A"},{"$f":"HLOOKUP(BL$7+0.5,$K$68:$DL$122,ROWS($B$12:$B64)+2,FALSE)","v":3662},{"$f":"HLOOKUP(BM$7+0.5,$K$68:$DL$122,ROWS($B$12:$B64)+2,FALSE)","v":59},{"$f":"HLOOKUP(BN$7+0.5,$K$68:$DL$122,ROWS($B$12:$B64)+2,FALSE)","v":457},{"$f":"HLOOKUP(BO$7+0.5,$K$68:$DL$122,ROWS($B$12:$B64)+2,FALSE)","v":363},{"$f":"HLOOKUP(BP$7+0.5,$K$68:$DL$122,ROWS($B$12:$B64)+2,FALSE)","v":210},{"$f":"HLOOKUP(BQ$7+0.5,$K$68:$DL$122,ROWS($B$12:$B64)+2,FALSE)","v":222},{"$f":"HLOOKUP(BR$7+0.5,$K$68:$DL$122,ROWS($B$12:$B64)+2,FALSE)","v":210},{"$f":"HLOOKUP(BS$7+0.5,$K$68:$DL$122,ROWS($B$12:$B64)+2,FALSE)","v":928},{"$f":"HLOOKUP(BT$7+0.5,$K$68:$DL$122,ROWS($B$12:$B64)+2,FALSE)","v":25},{"$f":"HLOOKUP(BU$7+0.5,$K$68:$DL$122,ROWS($B$12:$B64)+2,FALSE)","v":315},{"$f":"HLOOKUP(BV$7+0.5,$K$68:$DL$122,ROWS($B$12:$B64)+2,FALSE)","v":2336},{"$f":"HLOOKUP(BW$7+0.5,$K$68:$DL$122,ROWS($B$12:$B64)+2,FALSE)","v":195},{"$f":"HLOOKUP(BX$7+0.5,$K$68:$DL$122,ROWS($B$12:$B64)+2,FALSE)","v":210},{"$f":"HLOOKUP(BY$7+0.5,$K$68:$DL$122,ROWS($B$12:$B64)+2,FALSE)","v":24},{"$f":"HLOOKUP(BZ$7+0.5,$K$68:$DL$122,ROWS($B$12:$B64)+2,FALSE)","v":537},{"$f":"HLOOKUP(CA$7+0.5,$K$68:$DL$122,ROWS($B$12:$B64)+2,FALSE)","v":895},{"$f":"HLOOKUP(CB$7+0.5,$K$68:$DL$122,ROWS($B$12:$B64)+2,FALSE)","v":210},{"$f":"HLOOKUP(CC$7+0.5,$K$68:$DL$122,ROWS($B$12:$B64)+2,FALSE)","v":62},{"$f":"HLOOKUP(CD$7+0.5,$K$68:$DL$122,ROWS($B$12:$B64)+2,FALSE)","v":210},{"$f":"HLOOKUP(CE$7+0.5,$K$68:$DL$122,ROWS($B$12:$B64)+2,FALSE)","v":210},{"$f":"HLOOKUP(CF$7+0.5,$K$68:$DL$122,ROWS($B$12:$B64)+2,FALSE)","v":210},{"$f":"HLOOKUP(CG$7+0.5,$K$68:$DL$122,ROWS($B$12:$B64)+2,FALSE)","v":124},{"$f":"HLOOKUP(CH$7+0.5,$K$68:$DL$122,ROWS($B$12:$B64)+2,FALSE)","v":904},{"$f":"HLOOKUP(CI$7+0.5,$K$68:$DL$122,ROWS($B$12:$B64)+2,FALSE)","v":127},{"$f":"HLOOKUP(CJ$7+0.5,$K$68:$DL$122,ROWS($B$12:$B64)+2,FALSE)","v":210},{"$f":"HLOOKUP(CK$7+0.5,$K$68:$DL$122,ROWS($B$12:$B64)+2,FALSE)","v":35},{"$f":"HLOOKUP(CL$7+0.5,$K$68:$DL$122,ROWS($B$12:$B64)+2,FALSE)","v":165},{"$f":"HLOOKUP(CM$7+0.5,$K$68:$DL$122,ROWS($B$12:$B64)+2,FALSE)","v":210},{"$f":"HLOOKUP(CN$7+0.5,$K$68:$DL$122,ROWS($B$12:$B64)+2,FALSE)","v":210},{"$f":"HLOOKUP(CO$7+0.5,$K$68:$DL$122,ROWS($B$12:$B64)+2,FALSE)","v":210},{"$f":"HLOOKUP(CP$7+0.5,$K$68:$DL$122,ROWS($B$12:$B64)+2,FALSE)","v":210},{"$f":"HLOOKUP(CQ$7+0.5,$K$68:$DL$122,ROWS($B$12:$B64)+2,FALSE)","v":1149},{"$f":"HLOOKUP(CR$7+0.5,$K$68:$DL$122,ROWS($B$12:$B64)+2,FALSE)","v":94},{"$f":"HLOOKUP(CS$7+0.5,$K$68:$DL$122,ROWS($B$12:$B64)+2,FALSE)","v":1171},{"$f":"HLOOKUP(CT$7+0.5,$K$68:$DL$122,ROWS($B$12:$B64)+2,FALSE)","v":195},{"$f":"HLOOKUP(CU$7+0.5,$K$68:$DL$122,ROWS($B$12:$B64)+2,FALSE)","v":210},{"$f":"HLOOKUP(CV$7+0.5,$K$68:$DL$122,ROWS($B$12:$B64)+2,FALSE)","v":210},{"$f":"HLOOKUP(CW$7+0.5,$K$68:$DL$122,ROWS($B$12:$B64)+2,FALSE)","v":117},{"$f":"HLOOKUP(CX$7+0.5,$K$68:$DL$122,ROWS($B$12:$B64)+2,FALSE)","v":210},{"$f":"HLOOKUP(CY$7+0.5,$K$68:$DL$122,ROWS($B$12:$B64)+2,FALSE)","v":1059},{"$f":"HLOOKUP(CZ$7+0.5,$K$68:$DL$122,ROWS($B$12:$B64)+2,FALSE)","v":718},{"$f":"HLOOKUP(DA$7+0.5,$K$68:$DL$122,ROWS($B$12:$B64)+2,FALSE)","v":6},{"$f":"HLOOKUP(DB$7+0.5,$K$68:$DL$122,ROWS($B$12:$B64)+2,FALSE)","v":139},{"$f":"HLOOKUP(DC$7+0.5,$K$68:$DL$122,ROWS($B$12:$B64)+2,FALSE)","v":368},{"$f":"HLOOKUP(DD$7+0.5,$K$68:$DL$122,ROWS($B$12:$B64)+2,FALSE)","v":334},{"$f":"HLOOKUP(DE$7+0.5,$K$68:$DL$122,ROWS($B$12:$B64)+2,FALSE)","v":210},{"$f":"HLOOKUP(DF$7+0.5,$K$68:$DL$122,ROWS($B$12:$B64)+2,FALSE)","v":210},{"$f":"HLOOKUP(DG$7+0.5,$K$68:$DL$122,ROWS($B$12:$B64)+2,FALSE)","v":1097},{"$f":"HLOOKUP(DH$7+0.5,$K$68:$DL$122,ROWS($B$12:$B64)+2,FALSE)","v":42},{"$f":"HLOOKUP(DI$7+0.5,$K$68:$DL$122,ROWS($B$12:$B64)+2,FALSE)","v":25},{"$f":"HLOOKUP(DJ$7+0.5,$K$68:$DL$122,ROWS($B$12:$B64)+2,FALSE)","v":373},{"$f":"HLOOKUP(DK$7+0.5,$K$68:$DL$122,ROWS($B$12:$B64)+2,FALSE)","v":210},{"$f":"HLOOKUP(DL$7+0.5,$K$68:$DL$122,ROWS($B$12:$B64)+2,FALSE)","v":"N/A"}]
[]
[]
[]
[null,null,null,null,null,{"$f":"F64+H64-D64","v":-27330},null,null,null,null,1,1.5,2,2.5,3,3.5,4,4.5,5,5.5,6,6.5,7,7.5,8,8.5,9,9.5,10,10.5,11,11.5,12,12.5,13,13.5,14,14.5,15,15.5,16,16.5,17,17.5,18,18.5,19,19.5,20,20.5,21,21.5,22,22.5,23,23.5,24,24.5,25,25.5,26,26.5,27,27.5,28,28.5,29,29.5,30,30.5,31,31.5,32,32.5,33,33.5,34,34.5,35,35.5,36,36.5,37,37.5,38,38.5,39,39.5,40,40.5,41,41.5,42,42.5,43,43.5,44,44.5,45,45.5,46,46.5,47,47.5,48,48.5,49,49.5,50,50.5,51,51.5,52,52.5,53,53.5]
[null,null,null,null,null,null,null,null,null,null,"Estimate","MOE","Estimate","MOE","Estimate","MOE","Estimate","MOE","Estimate","MOE","Estimate","MOE","Estimate","MOE","Estimate","MOE","Estimate","MOE","Estimate","MOE","Estimate","MOE","Estimate","MOE","Estimate","MOE","Estimate","MOE","Estimate","MOE","Estimate","MOE","Estimate","MOE","Estimate","MOE","Estimate","MOE","Estimate","MOE","Estimate","MOE","Estimate","MOE","Estimate","MOE","Estimate","MOE","Estimate","MOE","Estimate","MOE","Estimate","MOE","Estimate","MOE","Estimate","MOE","Estimate","MOE","Estimate","MOE","Estimate","MOE","Estimate","MOE","Estimate","MOE","Estimate","MOE","Estimate","MOE","Estimate","MOE","Estimate","MOE","Estimate","MOE","Estimate","MOE","Estimate","MOE","Estimate","MOE","Estimate","MOE","Estimate","MOE","Estimate","MOE","Estimate","MOE","Estimate","MOE","Estimate","MOE","Estimate","MOE","Estimate","MOE","Estimate","MOE","Estimate","MOE","Estimate","MOE"]
[null,null,null,null,null,null,null,null,null,null,6987416,77858,106806,10575,88850,10161,211816,17644,77226,6899,562343,20646,160623,10427,91295,7653,26631,3629,49732,4949,437202,19015,248892,13318,61940,7295,57831,7401,269008,13750,143228,10568,74516,6398,94180,10699,99256,7329,86593,8952,33729,4154,165041,11278,145869,10414,186505,13304,103253,6978,68597,7559,138404,11145,31204,4179,52809,6362,115943,8686,43277,4875,216369,12474,61431,5579,377800,15333,225147,14191,26563,3090,206049,11406,81009,8616,109795,8590,215127,11482,31065,4192,121426,9952,29383,4358,154243,9679,404839,17998,73211,7130,18172,2845,229227,11582,190644,11567,45956,5684,105370,8011,31991,4631,76218,8799]
[null,null,null,null,null,null,null,null,null,null,117726,9414,"N/A","N/A",1771,1098,1677,1060,1642,1063,3389,1286,348,295,2921,3231,232,301,399,359,20063,4141,19346,3711,1259,1292,137,173,6991,3376,1434,634,30,52,842,632,2686,856,2413,972,626,378,1606,987,112,146,2797,1250,327,342,3945,1492,1086,536,317,463,770,638,257,333,64,109,1996,2284,119,184,1108,442,2697,1820,284,333,2596,958,973,840,169,182,1075,474,0,190,2036,973,90,98,8710,2300,7973,2240,300,390,66,108,4935,2151,2621,1272,65,110,417,457,9,15,569,601]
[null,null,null,null,null,null,null,null,null,null,35084,4168,93,113,"N/A","N/A",2467,1902,190,258,3098,1921,1583,727,138,167,11,24,140,220,1188,476,556,419,1366,703,475,253,985,686,181,156,319,374,750,741,237,354,1077,1276,0,149,216,155,141,120,771,435,593,568,554,904,921,1014,248,185,5,12,532,485,520,744,128,136,226,188,940,613,470,404,0,149,319,286,616,733,2161,841,378,371,0,149,186,182,301,343,388,308,2492,1105,662,731,68,105,1488,1112,4548,1520,89,75,23,35,246,272,1044,962]
[null,null,null,null,null,null,null,null,null,null,222877,14358,833,587,5001,2214,"N/A","N/A",1066,740,49635,8755,10189,2958,1875,1213,0,229,389,389,3732,1842,2206,1147,2199,1109,2190,1183,10035,4129,5855,1956,4526,1745,1708,883,2134,1257,844,867,0,229,1918,1096,743,430,9396,5283,3297,1064,1226,1492,3872,1689,2431,1191,1393,798,8756,3417,228,229,3379,1757,4610,1448,3880,1363,2548,1269,1159,891,4682,2116,3219,1761,4613,1465,3436,1476,72,131,1774,1932,1657,1589,1680,647,12688,2976,10577,3336,0,229,2233,1094,13940,5479,70,118,6473,2066,2510,1288,871,639]
[null,null,null,null,null,null,null,null,null,null,69845,7292,691,573,560,669,439,381,"N/A","N/A",4077,2327,746,451,519,654,79,141,0,192,3067,1273,1446,759,13,27,179,271,3684,2143,1362,1007,851,773,2008,1142,213,311,2120,1015,30,53,133,176,781,901,1881,1130,232,396,1731,864,7314,2602,713,858,332,417,641,525,52,69,341,220,775,680,674,362,1664,1220,214,248,174,176,3761,1456,632,587,567,628,0,192,235,269,0,192,6462,2269,14767,2746,0,192,0,192,1245,769,1477,636,24,45,687,632,252,399,529,507]
[null,null,null,null,null,null,null,null,null,null,468428,17921,2087,927,7358,2501,35650,4362,2648,1019,"N/A","N/A",21245,3867,3073,1222,1302,1343,3240,1457,22094,4333,13303,3042,9864,2683,4796,1560,20834,3496,4673,1297,3324,1701,2810,1256,1201,507,3600,1751,1658,1175,7793,1924,10244,2069,12069,4117,5687,1375,2092,896,7677,1995,2599,1492,1955,821,36159,5100,1222,869,8053,2169,5904,2207,25629,3287,8708,2611,1392,898,10474,3555,5113,1763,18165,2845,8550,2017,1103,545,5758,2383,1004,686,8761,2325,37087,5877,8944,2725,745,504,15753,2373,36481,6266,832,463,5668,1495,2047,1810,1344,635]
[null,null,null,null,null,null,null,null,null,null,202124,11431,2340,1681,3191,1622,12338,3704,1615,1191,23234,3742,"N/A","N/A",1567,838,501,556,298,301,8075,2090,3250,1254,1852,832,1578,766,6027,1536,2116,1289,3510,1495,3718,1495,1361,1028,908,550,1358,1235,3303,1416,2157,1085,3225,1061,3055,1092,879,621,4552,1382,4079,1579,4582,1961,4061,1432,489,396,2863,1788,8797,2308,3998,1621,4756,1686,2249,1245,5527,2388,3824,2137,5543,2105,3348,1302,435,560,718,480,1340,1037,3193,1472,22390,4287,3856,1446,914,772,6281,2671,5524,2092,412,490,3995,1774,2942,923,476,556]
[null,null,null,null,null,null,null,null,null,null,71502,6552,101,120,180,299,1387,939,84,178,3699,1455,1502,618,"N/A","N/A",62,132,607,373,4771,1275,2000,988,587,523,133,224,1843,965,168,214,67,120,16,36,0,198,315,238,259,193,1267,744,8691,1998,692,736,76,120,69,116,365,297,206,277,62,103,160,189,1221,803,3809,1324,265,225,20015,4005,1029,593,0,198,1383,791,217,211,117,161,3668,1639,1488,645,997,476,0,198,123,141,1214,646,398,359,608,354,2555,1053,2255,1469,46,77,660,898,65,110,2105,1756]
[null,null,null,null,null,null,null,null,null,null,33912,3955,81,135,329,544,541,728,0,192,699,594,169,218,66,94,"N/A","N/A",154,144,810,449,639,422,201,171,441,347,34,35,210,235,0,192,7,17,305,391,0,192,0,192,4238,1274,806,558,43,71,201,299,0,192,713,684,0,192,12,28,0,192,0,192,6297,1765,0,192,3141,1083,388,256,0,192,664,608,27,45,0,192,8571,1728,131,217,153,179,0,192,221,259,883,755,475,738,0,192,1064,512,482,530,198,174,55,96,463,527,1008,971]
[null,null,null,null,null,null,null,null,null,null,48066,4295,13,29,135,217,43,71,81,93,3797,1233,452,321,981,472,128,125,"N/A","N/A",1254,651,937,572,372,396,68,113,1397,814,128,147,241,284,6,19,297,260,0,200,0,200,14129,2971,2048,789,1108,554,409,457,83,99,112,184,38,64,79,110,238,282,145,139,1035,605,0,200,2313,697,1716,760,285,360,306,224,0,200,51,64,1589,757,50,63,357,329,104,129,421,358,1083,491,75,118,445,489,7975,1285,476,300,120,138,946,668,0,200,0,200]
[null,null,null,null,null,null,null,null,null,null,498597,22483,12635,3566,7405,3412,8451,3258,3025,1241,22420,4065,9383,2988,11704,3121,1264,949,891,495,"N/A","N/A",38658,6270,3639,2081,312,268,19152,3962,11472,3254,1846,1137,2661,1410,5441,1674,6094,2316,4689,2049,15410,3515,13701,3380,19640,3920,4663,1888,5175,1968,7114,2753,559,424,3857,2208,3527,1810,4324,1798,25206,6219,1376,781,59288,7171,23983,5251,514,600,18191,3264,2600,1168,3315,2046,20821,4267,5002,2668,11953,2956,716,1027,10451,4102,25532,4638,2343,1891,2019,1616,16614,3087,6339,2687,4964,2202,7412,2467,846,725,21611,5621]
[null,null,null,null,null,null,null,null,null,null,271077,15123,18799,5015,1079,765,4292,1849,2112,1366,14949,3387,2325,1399,709,455,619,606,364,283,42666,5232,"N/A","N/A",1006,883,126,139,6080,1774,2442,1297,950,528,4513,2909,3686,1708,6541,3121,408,269,3708,1807,4436,1979,6992,2441,1808,1416,5380,3077,2514,989,246,211,4144,3300,774,559,132,150,8371,3016,791,421,14454,4681,19138,3931,201,221,6863,1986,1632,1107,727,472,5791,1896,337,504,16914,5257,536,730,16898,3610,15760,3421,793,1061,361,334,9438,3336,3701,1532,1340,778,2727,1401,504,775,1635,841]
[null,null,null,null,null,null,null,null,null,null,57542,5083,1268,846,844,670,2900,1208,242,260,10173,2201,950,493,731,739,784,877,222,275,3160,1311,2519,956,"N/A","N/A",112,199,1884,728,402,280,478,504,125,154,18,36,179,270,106,161,341,212,92,123,1303,1067,933,750,371,391,308,219,85,140,91,95,1548,795,107,141,564,697,354,366,4246,2556,2307,1256,32,54,970,677,685,502,2030,1378,870,468,58,70,1681,919,0,187,636,1018,3007,1122,1040,872,0,187,2523,1318,3790,1075,312,306,147,159,14,23,238,398]
[null,null,null,null,null,null,null,null,null,null,60336,6293,263,259,4510,2938,3543,1771,224,188,9021,2484,1813,1022,0,195,0,195,0,195,1733,1210,275,234,254,314,"N/A","N/A",390,342,296,352,318,424,479,503,120,170,51,110,0,195,0,195,396,625,615,524,566,352,62,106,384,304,1602,828,439,591,3581,1400,129,123,84,78,141,229,419,399,263,435,1201,1099,260,212,288,243,7170,1894,343,265,0,195,55,90,842,1132,296,356,1303,952,6059,2187,0,195,905,707,8991,2313,0,195,165,174,487,340,249,412]
[null,null,null,null,null,null,null,null,null,null,216204,11862,2823,1526,4119,3153,7657,1987,3185,1513,13930,2863,3271,1390,1819,959,277,303,1440,708,17548,3370,6042,2192,1269,735,393,356,"N/A","N/A",23491,5269,8420,1581,2533,1130,5569,1718,1315,761,693,510,2565,916,3507,1540,10274,2032,4496,1177,1521,581,13889,2736,304,275,827,520,2454,1187,590,334,3009,1033,1573,1619,6412,1874,4057,1663,105,115,8384,1627,1002,552,792,426,3012,1197,278,266,1582,783,1318,1474,3223,1222,11011,2803,951,595,49,81,5233,2524,3075,1254,352,288,14507,2936,58,76,2387,715]
[null,null,null,null,null,null,null,null,null,null,127874,8918,1562,1293,371,324,3975,1427,2016,1321,7649,2229,1930,759,1227,698,79,134,0,190,8595,3053,2543,1176,1057,717,1368,1278,23071,4221,"N/A","N/A",916,468,1321,946,10177,2220,2241,1537,275,388,480,256,952,703,7896,1777,1168,568,469,366,1824,1033,34,62,622,491,511,338,90,152,651,348,504,410,2518,816,3038,1840,70,94,11109,2141,844,522,505,617,3998,1871,49,84,3306,1917,235,231,3879,1292,6326,2074,123,127,530,349,1486,853,1028,744,216,194,2923,1307,117,170,132,220]
[null,null,null,null,null,null,null,null,null,null,70405,5539,207,259,967,651,1411,726,433,317,3297,1022,2891,1129,424,628,0,155,0,155,707,455,1938,1485,299,454,161,175,13725,2238,349,204,"N/A","N/A",1776,819,387,303,228,223,26,43,487,319,466,632,1687,954,5634,1117,408,306,3649,1188,370,338,6490,1780,2009,1634,0,155,185,209,421,347,2361,1104,1760,1268,604,377,993,482,532,417,811,476,388,292,65,108,172,200,2842,965,623,529,2334,1235,1482,940,38,71,720,854,856,577,115,181,2537,850,140,117,57,115]
[null,null,null,null,null,null,null,null,null,null,83640,7144,434,310,108,84,2028,858,998,697,4743,2121,5030,1611,412,519,74,85,128,141,1581,790,1146,666,287,282,264,358,2760,1019,863,458,1715,888,"N/A","N/A",1167,770,519,338,481,527,3180,2454,28,49,1947,1003,679,418,1517,1370,22033,4568,270,255,1648,701,657,359,27,37,1189,724,769,810,780,411,1223,840,379,558,1616,901,5022,1204,285,284,1494,1815,180,261,1102,670,104,147,1066,496,6575,1436,196,265,0,168,1986,1018,772,459,0,168,893,575,1285,791,775,1013]
[null,null,null,null,null,null,null,null,null,null,110031,9177,925,441,0,189,1818,916,1058,778,2130,1154,221,197,176,251,0,189,201,248,7400,1965,2725,892,63,80,36,69,4273,1415,11071,2846,536,410,253,212,"N/A","N/A",1399,906,71,137,2076,1444,1019,885,3178,1248,475,415,1248,868,2793,1158,216,238,471,517,1358,976,52,84,1289,1472,553,370,2174,1660,3916,1965,117,195,19617,3115,1256,853,459,328,1490,598,640,876,1387,814,0,189,16852,3762,4661,1468,140,202,151,152,5154,1719,1121,614,1174,566,581,414,57,93,192,262]
[null,null,null,null,null,null,null,null,null,null,99138,7082,3065,1401,288,266,2010,1529,2774,1144,3957,898,1202,983,358,264,0,198,195,168,5193,2120,4425,1541,688,808,230,269,1189,417,1549,827,468,441,312,466,1520,1286,"N/A","N/A",120,163,1221,1058,439,255,1163,875,698,445,10255,2829,1375,565,278,364,176,198,994,623,15,26,453,269,1028,867,1360,849,2134,1242,277,359,2641,2281,4235,3044,1531,1577,455,473,268,395,1573,1149,37,47,2495,938,30292,5028,179,275,87,149,2055,1060,1075,504,110,123,339,372,357,541,393,384]
[null,null,null,null,null,null,null,null,null,null,33818,4248,634,541,37,43,325,301,38,67,829,428,290,222,2481,668,238,228,239,177,4304,1908,507,415,177,214,0,157,675,358,164,157,275,452,523,641,158,217,138,218,"N/A","N/A",52,105,4439,1293,702,703,296,307,0,157,325,228,10,18,0,157,150,250,4302,1394,694,498,144,191,2589,1633,1439,1059,19,31,483,530,25,48,471,406,915,418,234,282,587,429,42,89,394,513,1637,1115,182,202,612,341,570,337,88,131,43,73,321,408,21,37,65,64]
[null,null,null,null,null,null,null,null,null,null,153979,9033,228,128,671,493,945,604,423,528,8595,1773,1796,837,1608,903,6652,1916,18492,3025,7825,1691,7113,1789,1170,815,389,366,2392,1052,1318,791,110,146,689,551,848,671,860,484,1526,1245,"N/A","N/A",3470,1341,2077,1273,810,503,1109,825,1469,944,73,103,0,204,1105,1033,232,160,9627,1880,797,676,9222,2041,6686,2008,0,204,3396,1110,845,592,276,247,14158,3380,197,162,2882,1696,0,204,1942,1093,3619,1102,223,230,40,69,22089,3805,1525,611,2027,859,353,514,80,132,779,654]
[null,null,null,null,null,null,null,null,null,null,139830,8282,1201,1083,225,345,1017,518,167,201,11556,2290,1388,972,9445,1884,399,579,676,358,11396,2715,3264,1666,733,860,412,695,2991,899,640,456,138,136,969,867,180,203,977,1200,4006,1526,2762,2048,"N/A","N/A",2629,1245,862,537,356,567,1261,654,596,719,637,727,163,158,12010,2630,8332,1949,199,276,19431,3914,3964,1384,61,111,1757,681,90,123,178,220,6538,1883,10182,2144,1621,989,44,72,371,355,5203,1491,548,411,2246,944,2984,1241,1673,741,911,855,441,311,0,204,4413,1542]
[null,null,null,null,null,null,null,null,null,null,139158,8465,3527,2060,3456,1793,3840,1382,2054,1024,7793,1752,3425,1462,1656,1087,0,167,256,259,17712,3844,4254,1566,630,469,882,675,9897,1863,7668,1841,1709,1026,1148,867,2578,1158,955,556,599,735,1035,431,2861,1135,"N/A","N/A",2671,1085,715,558,2509,1200,84,105,439,312,1215,610,73,120,1849,779,508,367,6087,2170,3405,1427,159,164,11224,2069,917,570,647,324,2864,1095,385,377,2185,1094,571,599,3106,973,9935,2208,642,582,0,167,2327,834,1430,669,417,301,4018,1002,841,655,908,857]
[null,null,null,null,null,null,null,null,null,null,101029,7052,123,150,893,619,2314,1071,951,599,6638,2072,2662,1023,74,131,86,143,367,391,2820,806,840,467,901,634,402,328,8209,2632,786,470,6175,1326,606,324,755,580,573,599,321,343,424,382,970,422,5164,2149,"N/A","N/A",549,593,1345,712,1457,859,1936,821,2682,1858,21,26,631,522,540,319,2416,913,845,520,7574,1390,1961,1059,546,399,1800,1169,870,509,0,143,447,428,5305,1596,874,489,3062,1108,919,742,177,161,1034,420,1413,656,92,98,19255,2960,224,178,54,91]
[null,null,null,null,null,null,null,null,null,null,68511,5606,8922,2639,117,102,556,405,2315,1360,4723,1290,484,453,54,74,0,206,415,434,6152,2463,3136,1397,369,429,55,82,2068,853,611,411,650,603,66,90,1626,841,7139,1767,0,206,265,239,1445,1561,1610,900,614,615,"N/A","N/A",1581,973,0,206,118,198,84,141,65,135,269,293,1075,1040,364,449,483,299,0,206,991,536,566,362,74,107,2568,1700,41,89,398,320,6,15,7683,2248,5243,1807,332,520,0,206,1453,805,286,252,303,411,1136,1061,0,206,318,411]
[null,null,null,null,null,null,null,null,null,null,149439,9288,1395,654,2043,2471,2356,1028,6168,1528,8386,1909,3144,1163,1516,1078,0,184,215,254,4513,1398,2964,972,871,517,560,439,20161,3086,4404,1588,4811,1405,20884,4170,1993,803,1728,905,291,295,716,317,463,306,2830,1176,2026,809,1641,884,"N/A","N/A",845,541,4860,1645,1544,830,769,750,1114,755,1016,718,2904,1260,3669,1527,977,446,3240,1684,6073,2312,777,538,1810,1085,359,424,267,237,361,296,2676,1056,10293,2994,1697,946,88,195,2684,1493,2518,843,196,214,1503,671,1120,900,709,463]
[null,null,null,null,null,null,null,null,null,null,33553,4015,449,318,1118,921,1971,1358,49,70,3033,1110,2856,1265,58,72,365,392,0,165,291,235,231,193,32,35,1543,1005,765,526,646,646,417,307,845,492,0,165,0,165,71,127,57,71,10,18,353,295,969,634,0,165,158,220,"N/A","N/A",384,392,688,543,0,165,889,589,264,389,422,377,1173,982,360,250,321,409,96,127,1959,914,840,640,0,165,77,92,227,233,266,237,1329,643,1232,623,53,71,278,288,3835,1160,14,28,146,184,2413,1709,353,522]
[null,null,null,null,null,null,null,null,null,null,52070,5507,169,271,721,785,1646,898,161,146,5124,1727,3245,962,381,372,0,155,29,48,1105,499,434,358,275,215,506,464,1415,777,615,541,9575,2602,3040,1210,352,457,222,253,122,127,318,344,0,155,683,435,1455,1009,424,430,1848,771,64,88,"N/A","N/A",240,165,0,155,119,101,242,326,544,349,829,872,292,213,268,250,1255,884,1556,1249,252,179,0,155,243,285,2999,1280,226,244,5343,2737,734,507,0,155,615,478,835,593,24,40,560,427,965,421,0,155]
[null,null,null,null,null,null,null,null,null,null,110345,9419,280,330,597,525,10142,4338,310,358,40114,5354,2714,1470,189,163,184,226,983,1261,2923,1608,1731,909,4093,2643,3929,1734,1668,1031,855,781,114,188,602,734,628,620,78,128,49,80,931,701,256,255,1663,831,1055,1329,203,279,335,237,1137,740,32,37,"N/A","N/A",0,234,2118,1709,2136,1429,1516,819,1333,895,0,234,1354,894,258,254,1691,695,570,581,86,148,165,273,588,557,96,150,7249,3923,3365,2105,0,234,1740,1369,4680,1646,0,234,2672,2369,933,702,153,258]
[null,null,null,null,null,null,null,null,null,null,37000,3717,193,237,0,184,246,210,22,37,547,334,403,313,1617,519,20,32,68,112,1970,813,535,449,0,184,0,184,478,402,470,394,47,78,0,184,0,184,0,184,3080,1064,222,177,15526,2811,155,165,104,145,160,258,153,181,230,378,33,54,186,231,"N/A","N/A",294,247,186,179,1471,510,1297,649,47,79,248,223,0,184,198,267,1015,569,608,301,588,757,86,102,126,159,605,438,158,271,2138,991,880,575,428,497,0,184,0,184,162,218,0,184]
[null,null,null,null,null,null,null,null,null,null,140194,8607,189,209,1198,790,3784,2287,57,97,5986,1519,2203,1931,1924,845,2100,1025,781,409,12907,3313,4268,2025,264,307,256,262,3690,1572,718,436,332,441,317,306,102,125,871,590,624,629,5335,2324,4675,1356,1889,1056,1261,1200,510,677,583,544,49,80,312,429,899,566,499,360,"N/A","N/A",355,537,40815,4703,2482,1416,61,103,1121,608,773,707,360,331,19733,2951,463,319,1586,789,0,198,1412,782,3801,1818,256,229,0,198,4458,1750,2454,1946,1252,1293,214,259,15,29,4312,1535]
[null,null,null,null,null,null,null,null,null,null,62130,7330,410,494,416,446,7444,3409,682,607,7066,2324,5525,1537,0,198,0,198,212,336,2806,1557,676,406,81,128,355,326,466,315,2030,2244,0,198,1333,1078,87,152,184,244,510,384,2277,1964,252,213,908,699,438,435,556,553,1183,877,544,340,353,312,2099,1159,114,130,245,229,"N/A","N/A",1445,781,522,300,264,310,1742,1115,234,203,916,655,492,284,0,198,145,204,240,281,899,577,13633,3724,303,218,71,120,425,337,924,616,0,198,340,342,283,313,99,158]
[null,null,null,null,null,null,null,null,null,null,282209,11956,1812,1002,6124,2270,2821,1100,1041,734,25761,3856,3724,1151,15123,3667,1124,588,3702,1051,29344,4718,10584,2320,1002,973,434,377,6914,1720,2198,958,928,783,838,397,2414,1223,1495,916,2915,1114,5037,1192,14646,2367,3936,947,1824,678,401,266,1417,595,391,282,579,553,1785,1037,2972,1172,41450,4170,461,276,"N/A","N/A",9336,1874,374,266,5191,1717,1425,887,2189,977,26596,3427,1393,663,6947,2791,112,121,2660,1051,9151,2132,773,482,3882,1242,10800,2343,2986,1367,631,470,1878,1014,688,645,10582,3796]
[null,null,null,null,null,null,null,null,null,null,265291,16660,5420,2338,3991,2185,4286,2860,327,322,15373,5531,3919,1645,1975,820,954,600,1135,591,28044,4471,16192,3163,1806,1362,675,615,5971,2065,3228,1379,654,530,4995,4644,1637,786,2936,1135,824,663,10485,2304,9053,4920,7530,2879,1294,825,1273,829,2638,1150,563,549,1056,1334,1048,716,2078,1738,10374,2643,1737,1297,18321,3621,"N/A","N/A",189,272,10187,3649,1390,684,1175,826,9450,2770,444,384,20427,3260,565,609,6057,2083,6621,2034,961,692,212,345,27302,4012,3295,1566,2780,1517,2291,1192,153,228,844,447]
[null,null,null,null,null,null,null,null,null,null,32510,3641,97,125,393,365,1313,613,249,293,1356,1011,1229,612,0,143,84,100,0,143,459,303,364,410,138,216,1209,817,571,504,130,171,208,178,75,96,0,143,422,441,50,72,10,16,369,359,328,324,12244,2374,80,143,330,284,1227,612,218,170,845,860,0,143,183,306,99,112,264,233,900,678,"N/A","N/A",286,248,59,68,264,256,652,637,0,143,1,2,1293,714,113,120,1862,1029,429,427,0,143,166,202,404,312,0,143,1398,601,139,102,76,110]
[null,null,null,null,null,null,null,null,null,null,191778,11799,1567,705,1637,1579,6763,3193,1952,1128,9032,1771,2690,1023,1189,663,263,270,587,449,16492,3173,4290,1143,1044,694,312,223,7027,1504,11588,2147,1146,614,657,519,12744,3507,1872,1784,0,187,4982,1578,2101,1008,14330,2896,1788,784,691,462,2003,873,101,172,1176,616,1851,1107,1992,1509,3936,1643,255,287,8784,2659,4572,1270,204,270,"N/A","N/A",2333,1263,1326,614,14292,2842,369,353,3826,1192,34,68,6468,2336,11987,4302,691,469,68,77,5425,2020,1979,965,7548,1866,2534,1620,1280,793,1607,1062]
[null,null,null,null,null,null,null,null,null,null,108878,7998,591,368,1137,857,3770,1522,6894,2060,8233,2583,3273,1511,97,138,66,110,191,234,6056,1588,3514,1642,140,148,21,35,2179,1297,2113,1098,580,536,4626,1250,1398,747,1934,727,271,425,432,312,160,103,1038,848,497,341,199,202,5781,1311,803,793,1979,1196,705,532,0,163,391,333,403,259,1858,925,1322,800,928,805,1608,791,"N/A","N/A",917,713,1116,492,152,179,2015,971,600,379,1700,1101,31595,4987,587,450,0,163,1013,610,1246,620,44,68,942,474,1763,1572,105,139]
[null,null,null,null,null,null,null,null,null,null,127906,9071,758,1071,1935,1062,7911,3054,988,1155,34214,4555,2110,659,949,564,251,264,349,291,3384,1934,1946,1914,2491,1173,6236,2097,1350,663,1371,1707,659,627,1263,1355,71,118,0,203,269,320,453,482,1423,768,1652,1174,1413,863,7,14,1172,664,1079,784,324,342,7222,3426,427,404,1322,771,537,449,2056,850,1099,740,313,340,949,789,2034,1244,"N/A","N/A",1407,775,0,203,370,292,417,395,673,420,4498,2398,3443,1781,176,203,1179,619,21862,3732,66,115,914,697,914,880,4,8]
[null,null,null,null,null,null,null,null,null,null,234291,11246,1332,684,759,664,2278,917,582,601,10672,2349,2491,1027,4150,993,5177,1304,1401,584,19299,3790,4627,1185,495,369,236,223,3902,1438,4086,1429,1176,960,2323,1449,4013,1826,615,294,608,328,17751,3723,6284,1711,4406,1278,853,592,1238,943,1761,1063,338,308,582,439,1057,501,1326,520,36133,4167,325,405,29436,3921,11254,3103,195,208,13075,2133,283,220,1594,1022,"N/A","N/A",799,558,3438,1057,142,140,3742,1402,7006,1441,1246,776,446,327,8419,1530,3688,1533,4631,1483,2426,1046,195,237,2723,1294]
[null,null,null,null,null,null,null,null,null,null,26769,2836,0,207,0,207,214,348,0,207,1949,734,301,271,2613,984,0,207,0,207,2230,915,476,361,0,207,107,199,373,375,41,95,82,145,374,433,211,318,121,185,228,177,472,323,7715,1532,178,117,27,60,0,207,109,163,0,207,0,207,0,207,941,745,1224,501,93,153,2776,1118,259,212,0,207,60,89,0,207,57,94,1125,725,"N/A","N/A",223,232,0,207,210,187,207,153,181,267,621,328,485,448,262,277,199,253,2,5,23,47,293,292]
[null,null,null,null,null,null,null,null,null,null,157644,12647,2999,1543,2421,1281,1971,1391,1333,1301,6592,1789,1000,598,1752,1005,841,746,589,681,15476,4230,16355,2798,712,626,55,68,2371,831,3249,1601,1379,1468,1885,1445,2454,1692,878,486,652,566,3807,1261,730,447,4483,1737,471,393,2163,1979,1522,1671,915,999,204,329,1017,722,372,280,4241,1445,598,609,11317,3991,23102,4356,271,213,6327,2177,1008,934,833,583,3523,1139,453,360,"N/A","N/A",62,107,3324,1252,8623,4005,181,188,91,115,7879,2193,2510,1257,1680,1114,341,291,632,647,2166,1534]
[null,null,null,null,null,null,null,null,null,null,27506,3893,0,155,554,492,1422,1445,659,778,1286,622,1021,604,0,155,0,155,0,155,101,102,69,104,0,155,186,262,267,235,285,378,4772,1898,144,212,211,208,0,155,0,155,254,222,113,179,239,201,5342,1981,129,155,354,294,232,258,1695,784,110,177,0,155,441,473,513,571,6,11,166,257,2060,1025,84,102,40,46,15,26,57,77,7,12,529,706,"N/A","N/A",0,155,1156,384,560,567,0,155,79,92,557,780,0,155,481,594,1310,880,0,155]
[null,null,null,null,null,null,null,null,null,null,170969,13046,9326,2717,531,465,1346,1176,7393,3038,7130,2041,1372,902,150,163,155,191,307,186,15491,3282,17507,4897,179,230,0,208,8593,2245,5645,1932,387,432,1805,1529,13884,2654,1901,908,9,17,1135,675,1690,1886,5983,2441,445,315,9172,2752,3795,1409,43,69,631,660,883,816,132,134,1396,850,381,330,4921,1493,9353,2989,50,92,5944,2044,3166,3444,726,610,3360,1716,14,31,5531,1883,181,156,"N/A","N/A",7009,1999,200,223,38,64,6098,1279,2852,2746,1385,764,1213,631,131,214,1083,1191]
[null,null,null,null,null,null,null,null,null,null,514726,23860,8747,2609,6670,2828,20073,5295,16461,3965,58992,7044,19126,3821,2927,1710,884,658,2276,1540,35777,6888,17401,3608,6106,2623,4379,3119,15064,3097,10265,3693,3236,1628,12766,4731,6616,2648,25513,5283,1357,1052,9443,3323,5035,1644,15654,4327,7691,2576,6048,2921,13473,3950,537,423,3837,2060,7793,2927,459,334,7578,2982,15225,2786,26155,6509,14956,4396,809,652,12315,2730,19302,4804,3743,1552,9107,2433,1297,1223,4075,1969,1486,1045,10788,3114,"N/A","N/A",5234,2551,349,344,13231,3158,15325,3090,663,563,5982,2396,2500,1485,5225,2173]
[null,null,null,null,null,null,null,null,null,null,85217,7587,486,558,2151,1259,6585,2560,422,455,18237,4113,3986,1191,562,590,0,192,132,141,1643,960,1052,595,1701,997,7538,3248,1447,825,545,398,290,250,1146,829,611,529,494,402,0,192,342,301,959,638,1099,724,939,634,143,163,511,372,1241,623,195,178,4315,1358,34,42,506,485,1707,1068,1937,1299,1653,1181,2,5,2584,1124,150,218,2037,1026,1496,808,0,192,309,259,128,146,549,419,4507,1517,"N/A","N/A",122,205,2413,1459,4825,2196,270,268,158,153,1058,609,0,192]
[null,null,null,null,null,null,null,null,null,null,20463,1946,0,145,580,441,310,325,0,145,819,508,529,493,2105,608,107,135,27,53,366,199,101,99,143,85,0,145,386,245,258,210,0,145,7,13,627,660,41,74,322,200,361,233,2378,606,335,345,206,255,0,145,69,86,0,145,0,145,15,26,2244,783,962,305,56,105,3723,904,250,193,0,145,383,485,0,145,124,128,389,231,401,411,21,36,0,145,327,498,185,147,182,212,"N/A","N/A",740,420,156,159,53,81,137,115,38,62,19,45]
[null,null,null,null,null,null,null,null,null,null,257130,14025,4930,2057,3202,1687,4679,2151,645,606,19371,4241,4908,2334,5376,2730,961,652,6854,1711,17773,3494,8715,1962,2917,1400,434,430,4000,1213,2703,1067,1503,899,892,645,3630,1551,2496,1642,2855,1930,22051,3143,5386,2316,7323,3026,834,361,1682,1191,2277,1178,617,714,256,289,1717,961,1344,798,7327,2046,1014,604,12455,2816,22753,4584,462,729,9570,2217,853,477,3499,1935,12009,2497,1897,1477,6612,2032,908,841,7482,2452,11655,3004,1426,641,173,138,"N/A","N/A",4615,1717,9041,2596,858,745,190,274,1222,779]
[null,null,null,null,null,null,null,null,null,null,208507,13639,1821,1049,5266,2233,12397,3133,756,565,38421,4474,3938,1215,1026,533,0,201,358,254,6094,1777,8705,3348,5940,2264,10895,4263,2062,821,2303,1315,1000,465,2820,1740,1271,936,1016,1018,1313,1689,1899,808,1580,757,3720,1212,1543,898,1110,762,3307,2181,2125,934,673,441,4925,1696,824,605,2006,987,1569,1254,4512,1322,3870,1452,189,304,2686,1217,765,573,29168,5436,2296,1378,463,319,1519,1267,227,225,2342,1116,15491,4361,4789,1640,119,196,4233,1698,"N/A","N/A",157,186,1491,892,1507,870,1083,1061]
[null,null,null,null,null,null,null,null,null,null,50068,4934,221,228,598,566,50,95,225,361,1442,1085,124,160,594,401,89,102,300,231,2949,1076,1296,898,147,248,120,127,1331,1134,210,200,0,184,0,184,515,259,326,313,45,75,7515,2257,236,196,459,263,0,184,0,184,309,345,60,101,78,140,293,235,160,223,1431,611,0,184,2017,866,3865,1241,0,184,8545,1913,97,113,132,203,4205,1569,284,344,1857,1316,0,184,546,449,1574,1047,114,216,23,33,5561,1534,83,137,"N/A","N/A",42,69,0,184,680,450]
[null,null,null,null,null,null,null,null,null,null,109439,8715,708,761,432,323,4045,1532,335,285,6637,2054,2592,1457,993,1397,219,276,123,170,4338,1103,1745,1106,1108,1597,566,434,25521,4568,4017,2027,3306,1757,418,446,1040,570,850,563,12,21,147,141,733,578,5623,1353,17927,2244,983,924,2090,1117,143,93,483,405,663,345,480,364,378,352,714,502,2213,835,2120,967,1383,1273,1358,628,118,119,1057,680,1294,781,368,407,377,312,590,487,744,527,1984,836,890,652,342,311,2573,1465,1555,1071,1090,1630,"N/A","N/A",14,23,728,715]
[null,null,null,null,null,null,null,null,null,null,30651,4428,51,62,761,597,369,276,174,191,2539,1151,6905,2099,11,22,0,189,0,189,1525,1206,46,80,0,189,2140,1161,450,409,6,14,342,323,286,364,83,140,114,204,0,189,0,189,152,226,849,545,357,355,70,117,241,274,1105,531,1784,957,427,656,0,189,7,16,76,101,113,149,395,457,237,313,22,40,462,555,960,851,284,254,13,28,219,307,1043,1077,69,66,1398,927,2140,1003,4,8,451,634,1803,1343,0,189,168,260,"N/A","N/A",0,189]
[null,null,null,null,null,null,null,null,null,null,22649,3662,35,59,378,457,229,363,0,210,207,222,0,210,1849,928,13,25,212,315,6614,2336,247,195,0,210,13,24,624,537,784,895,0,210,38,62,0,210,0,210,0,210,70,124,1412,904,88,127,0,210,27,35,101,165,0,210,0,210,0,210,0,210,2150,1149,51,94,2615,1171,200,195,0,210,0,210,79,117,0,210,1978,1059,490,718,3,6,113,139,224,368,444,334,0,210,0,210,1077,1097,41,42,14,25,229,373,0,210,"N/A","N/A"]

{"sheet":"2010","index":6,"n_rows":121,"n_cols":119,"rows_kept":121,"cut":false,"hidden":true,"merged":[[6,1,8,1],[6,2,7,3],[6,4,7,5],[6,6,7,7]]}
[]
[null,"Table 3  State-to-State Migration Flows*: 2010"]
[null,"Dataset: 2010 American Community Survey 1-Year Estimates"]
[null,"Universe: Population 1 year and over"]
[null,"Source: http://www.census.gov/hhes/migration/files/acs/st-to-st/State_to_State_Migrations_Table_2010.xls"]
[null,null,null,null,null,null,null,null,null,"ESTIMATES",null,null,null,null,null,null,null,null,null,null,null,null,null,null,null,null,null,null,null,null,null,null,null,null,null,null,null,null,null,null,null,null,null,null,null,null,null,null,null,null,null,null,null,null,null,null,null,null,null,null,null,null,null,null,null,null,"Margin of Error"]
[null,"Current residence in --","Population 1 year and over",null,"Same residence 1 year ago",null,"Different residence, same state 1 year ago",null,null,1,2,3,4,5,6,7,8,9,10,11,12,13,14,15,16,17,18,19,20,21,22,23,24,25,26,27,28,29,30,31,32,33,34,35,36,37,38,39,40,41,42,43,44,45,46,47,48,49,50,51,52,53,null,null,null,null,1,2,3,4,5,6,7,8,9,10,11,12,13,14,15,16,17,18,19,20,21,22,23,24,25,26,27,28,29,30,31,32,33,34,35,36,37,38,39,40,41,42,43,44,45,46,47,48,49,50,51,52,53]
[null,null,null,null,null,null,null,null,null,"State of Residence Last year (Estimate)",null,null,null,null,null,null,null,null,null,null,null,null,null,null,null,null,null,null,null,null,null,null,null,null,null,null,null,null,null,null,null,null,null,null,null,null,null,null,null,null,null,null,null,null,null,null,null,null,null,null,null,null,null,null,null,null,"State of Residence Last year (Margin of Error)"]
[null,null,"Estimate","MOE","Estimate","MOE","Estimate","MOE",null,"TOTAL","Alabama","Alaska","Arizona","Arkansas","California","Colorado","Connecticut","Delaware","District of Columbia ","Florida","Georgia","Hawaii","Idaho","Illinois","Indiana","Iowa","Kansas","Kentucky","Louisiana","Maine","Maryland","Massachusetts","Michigan","Minnesota","Mississippi","Missouri","Montana","Nebraska","Nevada","New Hampshire","New Jersey","New Mexico","New York","North Carolina","North Dakota","Ohio","Oklahoma","Oregon","Pennsylvania","Rhode Island","South Carolina","South Dakota","Tennessee","Texas","Utah","Vermont","Virginia","Washington","West Virginia","Wisconsin","Wyoming","Puerto Rico",null,null,null,null,"TOTAL","Alabama","Alaska","Arizona","Arkansas","California","Colorado","Connecticut","Delaware","District of Columbia ","Florida","Georgia","Hawaii","Idaho","Illinois","Indiana","Iowa","Kansas","Kentucky","Louisiana","Maine","Maryland","Massachusetts","Michigan","Minnesota","Mississippi","Missouri","Montana","Nebraska","Nevada","New Hampshire","New Jersey","New Mexico","New York","North Carolina","North Dakota","Ohio","Oklahoma","Oregon","Pennsylvania","Rhode Island","South Carolina","South Dakota","Tennessee","Texas","Utah","Vermont","Virginia","Washington","West Virginia","Wisconsin","Wyoming","Puerto Rico"]
[null,null,null,null,null,null,null,null,null,null,{"$f":"K11/$J$11","v":1.4714167352169117E-2},{"$f":"L11/$J$11","v":1.4042530662980598E-2},2.6214147554532108E-2,9.5301523943499469E-3,8.5120644723766611E-2,2.0853510981163476E-2,1.3251811557934633E-2,4.4570635225349752E-3,8.3123381988065362E-3,6.3449276303681815E-2,3.6331555698316045E-2,7.2988771403136388E-3,7.8778282629879542E-3,4.1164106987913354E-2,1.9303808309046006E-2,9.9243255716215482E-3,1.3447711771319051E-2,1.3791464000406926E-2,1.3069554659941106E-2,4.7764950589695232E-3,2.3707633242175227E-2,2.1377295654648538E-2,2.6427546802874409E-2,1.5536325401376699E-2,1.0138021413776694E-2,2.1956098480416429E-2,5.3194100333831167E-3,6.4555126334876062E-3,1.6225016234803831E-2,5.6944529097261859E-3,2.8765447532628656E-2,7.4797993661493622E-3,5.3852390301441636E-2,3.0701167052164476E-2,3.6258593620356063E-3,2.7881746267255644E-2,1.3438072472401575E-2,1.4857125569960623E-2,3.1114173936551762E-2,3.6997112214341228E-3,1.743511899121326E-2,4.1397081427903453E-3,2.1226477700816627E-2,6.1045086856756609E-2,1.1202496608079008E-2,2.7256971400496707E-3,3.4405178883884856E-2,2.4641310565012696E-2,7.3183040350550156E-3,1.649654787046384E-2,4.1798966044309036E-3]
[null,"United States",305628607,29823,258552348,236128,38582885,213239,null,{"$f":"HLOOKUP(J$7,$J$67:$DO$121,ROWS($A$11:$A11)+2,FALSE)","v":6743229},{"$f":"HLOOKUP(K$7,$J$67:$DO$121,ROWS($A$11:$A11)+2,FALSE)","v":99221},{"$f":"HLOOKUP(L$7,$J$67:$DO$121,ROWS($A$11:$A11)+2,FALSE)","v":94692},{"$f":"HLOOKUP(M$7,$J$67:$DO$121,ROWS($A$11:$A11)+2,FALSE)","v":176768},{"$f":"HLOOKUP(N$7,$J$67:$DO$121,ROWS($A$11:$A11)+2,FALSE)","v":64264},{"$f":"HLOOKUP(O$7,$J$67:$DO$121,ROWS($A$11:$A11)+2,FALSE)","v":573988},{"$f":"HLOOKUP(P$7,$J$67:$DO$121,ROWS($A$11:$A11)+2,FALSE)","v":140620},{"$f":"HLOOKUP(Q$7,$J$67:$DO$121,ROWS($A$11:$A11)+2,FALSE)","v":89360},{"$f":"HLOOKUP(R$7,$J$67:$DO$121,ROWS($A$11:$A11)+2,FALSE)","v":30055},{"$f":"HLOOKUP(S$7,$J$67:$DO$121,ROWS($A$11:$A11)+2,FALSE)","v":56052},{"$f":"HLOOKUP(T$7,$J$67:$DO$121,ROWS($A$11:$A11)+2,FALSE)","v":427853},{"$f":"HLOOKUP(U$7,$J$67:$DO$121,ROWS($A$11:$A11)+2,FALSE)","v":244992},{"$f":"HLOOKUP(V$7,$J$67:$DO$121,ROWS($A$11:$A11)+2,FALSE)","v":49218},{"$f":"HLOOKUP(W$7,$J$67:$DO$121,ROWS($A$11:$A11)+2,FALSE)","v":53122},{"$f":"HLOOKUP(X$7,$J$67:$DO$121,ROWS($A$11:$A11)+2,FALSE)","v":277579},{"$f":"HLOOKUP(Y$7,$J$67:$DO$121,ROWS($A$11:$A11)+2,FALSE)","v":130170},{"$f":"HLOOKUP(Z$7,$J$67:$DO$121,ROWS($A$11:$A11)+2,FALSE)","v":66922},{"$f":"HLOOKUP(AA$7,$J$67:$DO$121,ROWS($A$11:$A11)+2,FALSE)","v":90681},{"$f":"HLOOKUP(AB$7,$J$67:$DO$121,ROWS($A$11:$A11)+2,FALSE)","v":92999},{"$f":"HLOOKUP(AC$7,$J$67:$DO$121,ROWS($A$11:$A11)+2,FALSE)","v":88131},{"$f":"HLOOKUP(AD$7,$J$67:$DO$121,ROWS($A$11:$A11)+2,FALSE)","v":32209},{"$f":"HLOOKUP(AE$7,$J$67:$DO$121,ROWS($A$11:$A11)+2,FALSE)","v":159866},{"$f":"HLOOKUP(AF$7,$J$67:$DO$121,ROWS($A$11:$A11)+2,FALSE)","v":144152},{"$f":"HLOOKUP(AG$7,$J$67:$DO$121,ROWS($A$11:$A11)+2,FALSE)","v":178207},{"$f":"HLOOKUP(AH$7,$J$67:$DO$121,ROWS($A$11:$A11)+2,FALSE)","v":104765},{"$f":"HLOOKUP(AI$7,$J$67:$DO$121,ROWS($A$11:$A11)+2,FALSE)","v":68363},{"$f":"HLOOKUP(AJ$7,$J$67:$DO$121,ROWS($A$11:$A11)+2,FALSE)","v":148055},{"$f":"HLOOKUP(AK$7,$J$67:$DO$121,ROWS($A$11:$A11)+2,FALSE)","v":35870},{"$f":"HLOOKUP(AL$7,$J$67:$DO$121,ROWS($A$11:$A11)+2,FALSE)","v":43531},{"$f":"HLOOKUP(AM$7,$J$67:$DO$121,ROWS($A$11:$A11)+2,FALSE)","v":109409},{"$f":"HLOOKUP(AN$7,$J$67:$DO$121,ROWS($A$11:$A11)+2,FALSE)","v":38399},{"$f":"HLOOKUP(AO$7,$J$67:$DO$121,ROWS($A$11:$A11)+2,FALSE)","v":193972},{"$f":"HLOOKUP(AP$7,$J$67:$DO$121,ROWS($A$11:$A11)+2,FALSE)","v":50438},{"$f":"HLOOKUP(AQ$7,$J$67:$DO$121,ROWS($A$11:$A11)+2,FALSE)","v":363139},{"$f":"HLOOKUP(AR$7,$J$67:$DO$121,ROWS($A$11:$A11)+2,FALSE)","v":207025},{"$f":"HLOOKUP(AS$7,$J$67:$DO$121,ROWS($A$11:$A11)+2,FALSE)","v":24450},{"$f":"HLOOKUP(AT$7,$J$67:$DO$121,ROWS($A$11:$A11)+2,FALSE)","v":188013},{"$f":"HLOOKUP(AU$7,$J$67:$DO$121,ROWS($A$11:$A11)+2,FALSE)","v":90616},{"$f":"HLOOKUP(AV$7,$J$67:$DO$121,ROWS($A$11:$A11)+2,FALSE)","v":100185},{"$f":"HLOOKUP(AW$7,$J$67:$DO$121,ROWS($A$11:$A11)+2,FALSE)","v":209810},{"$f":"HLOOKUP(AX$7,$J$67:$DO$121,ROWS($A$11:$A11)+2,FALSE)","v":24948},{"$f":"HLOOKUP(AY$7,$J$67:$DO$121,ROWS($A$11:$A11)+2,FALSE)","v":117569},{"$f":"HLOOKUP(AZ$7,$J$67:$DO$121,ROWS($A$11:$A11)+2,FALSE)","v":27915},{"$f":"HLOOKUP(BA$7,$J$67:$DO$121,ROWS($A$11:$A11)+2,FALSE)","v":143135},{"$f":"HLOOKUP(BB$7,$J$67:$DO$121,ROWS($A$11:$A11)+2,FALSE)","v":411641},{"$f":"HLOOKUP(BC$7,$J$67:$DO$121,ROWS($A$11:$A11)+2,FALSE)","v":75541},{"$f":"HLOOKUP(BD$7,$J$67:$DO$121,ROWS($A$11:$A11)+2,FALSE)","v":18380},{"$f":"HLOOKUP(BE$7,$J$67:$DO$121,ROWS($A$11:$A11)+2,FALSE)","v":232002},{"$f":"HLOOKUP(BF$7,$J$67:$DO$121,ROWS($A$11:$A11)+2,FALSE)","v":166162},{"$f":"HLOOKUP(BG$7,$J$67:$DO$121,ROWS($A$11:$A11)+2,FALSE)","v":49349},{"$f":"HLOOKUP(BH$7,$J$67:$DO$121,ROWS($A$11:$A11)+2,FALSE)","v":111240},{"$f":"HLOOKUP(BI$7,$J$67:$DO$121,ROWS($A$11:$A11)+2,FALSE)","v":28186},{"$f":"HLOOKUP(BJ$7,$J$67:$DO$121,ROWS($A$11:$A11)+2,FALSE)","v":59885},null,null,null,null,{"$f":"HLOOKUP(BO$7+0.5,$J$67:$DO$121,ROWS($A$11:$A11)+2,FALSE)","v":69387},{"$f":"HLOOKUP(BP$7+0.5,$J$67:$DO$121,ROWS($A$11:$A11)+2,FALSE)","v":8532},{"$f":"HLOOKUP(BQ$7+0.5,$J$67:$DO$121,ROWS($A$11:$A11)+2,FALSE)","v":9780},{"$f":"HLOOKUP(BR$7+0.5,$J$67:$DO$121,ROWS($A$11:$A11)+2,FALSE)","v":9764},{"$f":"HLOOKUP(BS$7+0.5,$J$67:$DO$121,ROWS($A$11:$A11)+2,FALSE)","v":6502},{"$f":"HLOOKUP(BT$7+0.5,$J$67:$DO$121,ROWS($A$11:$A11)+2,FALSE)","v":20898},{"$f":"HLOOKUP(BU$7+0.5,$J$67:$DO$121,ROWS($A$11:$A11)+2,FALSE)","v":8392},{"$f":"HLOOKUP(BV$7+0.5,$J$67:$DO$121,ROWS($A$11:$A11)+2,FALSE)","v":8104},{"$f":"HLOOKUP(BW$7+0.5,$J$67:$DO$121,ROWS($A$11:$A11)+2,FALSE)","v":4817},{"$f":"HLOOKUP(BX$7+0.5,$J$67:$DO$121,ROWS($A$11:$A11)+2,FALSE)","v":5274},{"$f":"HLOOKUP(BY$7+0.5,$J$67:$DO$121,ROWS($A$11:$A11)+2,FALSE)","v":16117},{"$f":"HLOOKUP(BZ$7+0.5,$J$67:$DO$121,ROWS($A$11:$A11)+2,FALSE)","v":13712},{"$f":"HLOOKUP(CA$7+0.5,$J$67:$DO$121,ROWS($A$11:$A11)+2,FALSE)","v":5580},{"$f":"HLOOKUP(CB$7+0.5,$J$67:$DO$121,ROWS($A$11:$A11)+2,FALSE)","v":6197},{"$f":"HLOOKUP(CC$7+0.5,$J$67:$DO$121,ROWS($A$11:$A11)+2,FALSE)","v":14177},{"$f":"HLOOKUP(CD$7+0.5,$J$67:$DO$121,ROWS($A$11:$A11)+2,FALSE)","v":9685},{"$f":"HLOOKUP(CE$7+0.5,$J$67:$DO$121,ROWS($A$11:$A11)+2,FALSE)","v":5441},{"$f":"HLOOKUP(CF$7+0.5,$J$67:$DO$121,ROWS($A$11:$A11)+2,FALSE)","v":7300},{"$f":"HLOOKUP(CG$7+0.5,$J$67:$DO$121,ROWS($A$11:$A11)+2,FALSE)","v":8240},{"$f":"HLOOKUP(CH$7+0.5,$J$67:$DO$121,ROWS($A$11:$A11)+2,FALSE)","v":8540},{"$f":"HLOOKUP(CI$7+0.5,$J$67:$DO$121,ROWS($A$11:$A11)+2,FALSE)","v":4475},{"$f":"HLOOKUP(CJ$7+0.5,$J$67:$DO$121,ROWS($A$11:$A11)+2,FALSE)","v":9741},{"$f":"HLOOKUP(CK$7+0.5,$J$67:$DO$121,ROWS($A$11:$A11)+2,FALSE)","v":8102},{"$f":"HLOOKUP(CL$7+0.5,$J$67:$DO$121,ROWS($A$11:$A11)+2,FALSE)","v":11238},{"$f":"HLOOKUP(CM$7+0.5,$J$67:$DO$121,ROWS($A$11:$A11)+2,FALSE)","v":7734},{"$f":"HLOOKUP(CN$7+0.5,$J$67:$DO$121,ROWS($A$11:$A11)+2,FALSE)","v":7286},{"$f":"HLOOKUP(CO$7+0.5,$J$67:$DO$121,ROWS($A$11:$A11)+2,FALSE)","v":11141},{"$f":"HLOOKUP(CP$7+0.5,$J$67:$DO$121,ROWS($A$11:$A11)+2,FALSE)","v":4482},{"$f":"HLOOKUP(CQ$7+0.5,$J$67:$DO$121,ROWS($A$11:$A11)+2,FALSE)","v":5996},{"$f":"HLOOKUP(CR$7+0.5,$J$67:$DO$121,ROWS($A$11:$A11)+2,FALSE)","v":10422},{"$f":"HLOOKUP(CS$7+0.5,$J$67:$DO$121,ROWS($A$11:$A11)+2,FALSE)","v":4262},{"$f":"HLOOKUP(CT$7+0.5,$J$67:$DO$121,ROWS($A$11:$A11)+2,FALSE)","v":11560},{"$f":"HLOOKUP(CU$7+0.5,$J$67:$DO$121,ROWS($A$11:$A11)+2,FALSE)","v":5032},{"$f":"HLOOKUP(CV$7+0.5,$J$67:$DO$121,ROWS($A$11:$A11)+2,FALSE)","v":16245},{"$f":"HLOOKUP(CW$7+0.5,$J$67:$DO$121,ROWS($A$11:$A11)+2,FALSE)","v":11068},{"$f":"HLOOKUP(CX$7+0.5,$J$67:$DO$121,ROWS($A$11:$A11)+2,FALSE)","v":3757},{"$f":"HLOOKUP(CY$7+0.5,$J$67:$DO$121,ROWS($A$11:$A11)+2,FALSE)","v":11207},{"$f":"HLOOKUP(CZ$7+0.5,$J$67:$DO$121,ROWS($A$11:$A11)+2,FALSE)","v":7414},{"$f":"HLOOKUP(DA$7+0.5,$J$67:$DO$121,ROWS($A$11:$A11)+2,FALSE)","v":8825},{"$f":"HLOOKUP(DB$7+0.5,$J$67:$DO$121,ROWS($A$11:$A11)+2,FALSE)","v":10357},{"$f":"HLOOKUP(DC$7+0.5,$J$67:$DO$121,ROWS($A$11:$A11)+2,FALSE)","v":3127},{"$f":"HLOOKUP(DD$7+0.5,$J$67:$DO$121,ROWS($A$11:$A11)+2,FALSE)","v":9315},{"$f":"HLOOKUP(DE$7+0.5,$J$67:$DO$121,ROWS($A$11:$A11)+2,FALSE)","v":3665},{"$f":"HLOOKUP(DF$7+0.5,$J$67:$DO$121,ROWS($A$11:$A11)+2,FALSE)","v":9159},{"$f":"HLOOKUP(DG$7+0.5,$J$67:$DO$121,ROWS($A$11:$A11)+2,FALSE)","v":16805},{"$f":"HLOOKUP(DH$7+0.5,$J$67:$DO$121,ROWS($A$11:$A11)+2,FALSE)","v":7183},{"$f":"HLOOKUP(DI$7+0.5,$J$67:$DO$121,ROWS($A$11:$A11)+2,FALSE)","v":3009},{"$f":"HLOOKUP(DJ$7+0.5,$J$67:$DO$121,ROWS($A$11:$A11)+2,FALSE)","v":11248},{"$f":"HLOOKUP(DK$7+0.5,$J$67:$DO$121,ROWS($A$11:$A11)+2,FALSE)","v":10010},{"$f":"HLOOKUP(DL$7+0.5,$J$67:$DO$121,ROWS($A$11:$A11)+2,FALSE)","v":5605},{"$f":"HLOOKUP(DM$7+0.5,$J$67:$DO$121,ROWS($A$11:$A11)+2,FALSE)","v":9166},{"$f":"HLOOKUP(DN$7+0.5,$J$67:$DO$121,ROWS($A$11:$A11)+2,FALSE)","v":3185},{"$f":"HLOOKUP(DO$7+0.5,$J$67:$DO$121,ROWS($A$11:$A11)+2,FALSE)","v":6923}]
[null,"Alabama",4729509,3716,3987155,21708,620465,21448,{"$f":"J12/$J$11","v":1.6123284556997842E-2},{"$f":"HLOOKUP(J$7,$J$67:$DO$121,ROWS($A$11:$A12)+2,FALSE)","v":108723},{"$f":"HLOOKUP(K$7,$J$67:$DO$121,ROWS($A$11:$A12)+2,FALSE)","v":"N/A"},{"$f":"HLOOKUP(L$7,$J$67:$DO$121,ROWS($A$11:$A12)+2,FALSE)","v":3013},{"$f":"HLOOKUP(M$7,$J$67:$DO$121,ROWS($A$11:$A12)+2,FALSE)","v":676},{"$f":"HLOOKUP(N$7,$J$67:$DO$121,ROWS($A$11:$A12)+2,FALSE)","v":1481},{"$f":"HLOOKUP(O$7,$J$67:$DO$121,ROWS($A$11:$A12)+2,FALSE)","v":3827},{"$f":"HLOOKUP(P$7,$J$67:$DO$121,ROWS($A$11:$A12)+2,FALSE)","v":1278},{"$f":"HLOOKUP(Q$7,$J$67:$DO$121,ROWS($A$11:$A12)+2,FALSE)","v":454},{"$f":"HLOOKUP(R$7,$J$67:$DO$121,ROWS($A$11:$A12)+2,FALSE)","v":811},{"$f":"HLOOKUP(S$7,$J$67:$DO$121,ROWS($A$11:$A12)+2,FALSE)","v":211},{"$f":"HLOOKUP(T$7,$J$67:$DO$121,ROWS($A$11:$A12)+2,FALSE)","v":15062},{"$f":"HLOOKUP(U$7,$J$67:$DO$121,ROWS($A$11:$A12)+2,FALSE)","v":21644},{"$f":"HLOOKUP(V$7,$J$67:$DO$121,ROWS($A$11:$A12)+2,FALSE)","v":267},{"$f":"HLOOKUP(W$7,$J$67:$DO$121,ROWS($A$11:$A12)+2,FALSE)","v":304},{"$f":"HLOOKUP(X$7,$J$67:$DO$121,ROWS($A$11:$A12)+2,FALSE)","v":2503},{"$f":"HLOOKUP(Y$7,$J$67:$DO$121,ROWS($A$11:$A12)+2,FALSE)","v":3945},{"$f":"HLOOKUP(Z$7,$J$67:$DO$121,ROWS($A$11:$A12)+2,FALSE)","v":669},{"$f":"HLOOKUP(AA$7,$J$67:$DO$121,ROWS($A$11:$A12)+2,FALSE)","v":649},{"$f":"HLOOKUP(AB$7,$J$67:$DO$121,ROWS($A$11:$A12)+2,FALSE)","v":1967},{"$f":"HLOOKUP(AC$7,$J$67:$DO$121,ROWS($A$11:$A12)+2,FALSE)","v":1901},{"$f":"HLOOKUP(AD$7,$J$67:$DO$121,ROWS($A$11:$A12)+2,FALSE)","v":97},{"$f":"HLOOKUP(AE$7,$J$67:$DO$121,ROWS($A$11:$A12)+2,FALSE)","v":716},{"$f":"HLOOKUP(AF$7,$J$67:$DO$121,ROWS($A$11:$A12)+2,FALSE)","v":435},{"$f":"HLOOKUP(AG$7,$J$67:$DO$121,ROWS($A$11:$A12)+2,FALSE)","v":2334},{"$f":"HLOOKUP(AH$7,$J$67:$DO$121,ROWS($A$11:$A12)+2,FALSE)","v":386},{"$f":"HLOOKUP(AI$7,$J$67:$DO$121,ROWS($A$11:$A12)+2,FALSE)","v":7233},{"$f":"HLOOKUP(AJ$7,$J$67:$DO$121,ROWS($A$11:$A12)+2,FALSE)","v":1373},{"$f":"HLOOKUP(AK$7,$J$67:$DO$121,ROWS($A$11:$A12)+2,FALSE)","v":229},{"$f":"HLOOKUP(AL$7,$J$67:$DO$121,ROWS($A$11:$A12)+2,FALSE)","v":169},{"$f":"HLOOKUP(AM$7,$J$67:$DO$121,ROWS($A$11:$A12)+2,FALSE)","v":265},{"$f":"HLOOKUP(AN$7,$J$67:$DO$121,ROWS($A$11:$A12)+2,FALSE)","v":0},{"$f":"HLOOKUP(AO$7,$J$67:$DO$121,ROWS($A$11:$A12)+2,FALSE)","v":356},{"$f":"HLOOKUP(AP$7,$J$67:$DO$121,ROWS($A$11:$A12)+2,FALSE)","v":650},{"$f":"HLOOKUP(AQ$7,$J$67:$DO$121,ROWS($A$11:$A12)+2,FALSE)","v":3686},{"$f":"HLOOKUP(AR$7,$J$67:$DO$121,ROWS($A$11:$A12)+2,FALSE)","v":2371},{"$f":"HLOOKUP(AS$7,$J$67:$DO$121,ROWS($A$11:$A12)+2,FALSE)","v":169},{"$f":"HLOOKUP(AT$7,$J$67:$DO$121,ROWS($A$11:$A12)+2,FALSE)","v":2222},{"$f":"HLOOKUP(AU$7,$J$67:$DO$121,ROWS($A$11:$A12)+2,FALSE)","v":880},{"$f":"HLOOKUP(AV$7,$J$67:$DO$121,ROWS($A$11:$A12)+2,FALSE)","v":485},{"$f":"HLOOKUP(AW$7,$J$67:$DO$121,ROWS($A$11:$A12)+2,FALSE)","v":1477},{"$f":"HLOOKUP(AX$7,$J$67:$DO$121,ROWS($A$11:$A12)+2,FALSE)","v":0},{"$f":"HLOOKUP(AY$7,$J$67:$DO$121,ROWS($A$11:$A12)+2,FALSE)","v":2368},{"$f":"HLOOKUP(AZ$7,$J$67:$DO$121,ROWS($A$11:$A12)+2,FALSE)","v":31},{"$f":"HLOOKUP(BA$7,$J$67:$DO$121,ROWS($A$11:$A12)+2,FALSE)","v":7409},{"$f":"HLOOKUP(BB$7,$J$67:$DO$121,ROWS($A$11:$A12)+2,FALSE)","v":6500},{"$f":"HLOOKUP(BC$7,$J$67:$DO$121,ROWS($A$11:$A12)+2,FALSE)","v":1336},{"$f":"HLOOKUP(BD$7,$J$67:$DO$121,ROWS($A$11:$A12)+2,FALSE)","v":0},{"$f":"HLOOKUP(BE$7,$J$67:$DO$121,ROWS($A$11:$A12)+2,FALSE)","v":2490},{"$f":"HLOOKUP(BF$7,$J$67:$DO$121,ROWS($A$11:$A12)+2,FALSE)","v":1171},{"$f":"HLOOKUP(BG$7,$J$67:$DO$121,ROWS($A$11:$A12)+2,FALSE)","v":41},{"$f":"HLOOKUP(BH$7,$J$67:$DO$121,ROWS($A$11:$A12)+2,FALSE)","v":1155},{"$f":"HLOOKUP(BI$7,$J$67:$DO$121,ROWS($A$11:$A12)+2,FALSE)","v":27},{"$f":"HLOOKUP(BJ$7,$J$67:$DO$121,ROWS($A$11:$A12)+2,FALSE)","v":228},{"$f":"MAX(L12:BJ12)","v":21644},null,null,null,{"$f":"HLOOKUP(BO$7+0.5,$J$67:$DO$121,ROWS($A$11:$A12)+2,FALSE)","v":8781},{"$f":"HLOOKUP(BP$7+0.5,$J$67:$DO$121,ROWS($A$11:$A12)+2,FALSE)","v":"N/A"},{"$f":"HLOOKUP(BQ$7+0.5,$J$67:$DO$121,ROWS($A$11:$A12)+2,FALSE)","v":1452},{"$f":"HLOOKUP(BR$7+0.5,$J$67:$DO$121,ROWS($A$11:$A12)+2,FALSE)","v":606},{"$f":"HLOOKUP(BS$7+0.5,$J$67:$DO$121,ROWS($A$11:$A12)+2,FALSE)","v":1038},{"$f":"HLOOKUP(BT$7+0.5,$J$67:$DO$121,ROWS($A$11:$A12)+2,FALSE)","v":1660},{"$f":"HLOOKUP(BU$7+0.5,$J$67:$DO$121,ROWS($A$11:$A12)+2,FALSE)","v":778},{"$f":"HLOOKUP(BV$7+0.5,$J$67:$DO$121,ROWS($A$11:$A12)+2,FALSE)","v":694},{"$f":"HLOOKUP(BW$7+0.5,$J$67:$DO$121,ROWS($A$11:$A12)+2,FALSE)","v":694},{"$f":"HLOOKUP(BX$7+0.5,$J$67:$DO$121,ROWS($A$11:$A12)+2,FALSE)","v":186},{"$f":"HLOOKUP(BY$7+0.5,$J$67:$DO$121,ROWS($A$11:$A12)+2,FALSE)","v":3138},{"$f":"HLOOKUP(BZ$7+0.5,$J$67:$DO$121,ROWS($A$11:$A12)+2,FALSE)","v":3955},{"$f":"HLOOKUP(CA$7+0.5,$J$67:$DO$121,ROWS($A$11:$A12)+2,FALSE)","v":440},{"$f":"HLOOKUP(CB$7+0.5,$J$67:$DO$121,ROWS($A$11:$A12)+2,FALSE)","v":399},{"$f":"HLOOKUP(CC$7+0.5,$J$67:$DO$121,ROWS($A$11:$A12)+2,FALSE)","v":1224},{"$f":"HLOOKUP(CD$7+0.5,$J$67:$DO$121,ROWS($A$11:$A12)+2,FALSE)","v":1979},{"$f":"HLOOKUP(CE$7+0.5,$J$67:$DO$121,ROWS($A$11:$A12)+2,FALSE)","v":882},{"$f":"HLOOKUP(CF$7+0.5,$J$67:$DO$121,ROWS($A$11:$A12)+2,FALSE)","v":516},{"$f":"HLOOKUP(CG$7+0.5,$J$67:$DO$121,ROWS($A$11:$A12)+2,FALSE)","v":1192},{"$f":"HLOOKUP(CH$7+0.5,$J$67:$DO$121,ROWS($A$11:$A12)+2,FALSE)","v":868},{"$f":"HLOOKUP(CI$7+0.5,$J$67:$DO$121,ROWS($A$11:$A12)+2,FALSE)","v":158},{"$f":"HLOOKUP(CJ$7+0.5,$J$67:$DO$121,ROWS($A$11:$A12)+2,FALSE)","v":458},{"$f":"HLOOKUP(CK$7+0.5,$J$67:$DO$121,ROWS($A$11:$A12)+2,FALSE)","v":396},{"$f":"HLOOKUP(CL$7+0.5,$J$67:$DO$121,ROWS($A$11:$A12)+2,FALSE)","v":1294},{"$f":"HLOOKUP(CM$7+0.5,$J$67:$DO$121,ROWS($A$11:$A12)+2,FALSE)","v":358},{"$f":"HLOOKUP(CN$7+0.5,$J$67:$DO$121,ROWS($A$11:$A12)+2,FALSE)","v":2367},{"$f":"HLOOKUP(CO$7+0.5,$J$67:$DO$121,ROWS($A$11:$A12)+2,FALSE)","v":1180},{"$f":"HLOOKUP(CP$7+0.5,$J$67:$DO$121,ROWS($A$11:$A12)+2,FALSE)","v":182},{"$f":"HLOOKUP(CQ$7+0.5,$J$67:$DO$121,ROWS($A$11:$A12)+2,FALSE)","v":286},{"$f":"HLOOKUP(CR$7+0.5,$J$67:$DO$121,ROWS($A$11:$A12)+2,FALSE)","v":297},{"$f":"HLOOKUP(CS$7+0.5,$J$67:$DO$121,ROWS($A$11:$A12)+2,FALSE)","v":273},{"$f":"HLOOKUP(CT$7+0.5,$J$67:$DO$121,ROWS($A$11:$A12)+2,FALSE)","v":285},{"$f":"HLOOKUP(CU$7+0.5,$J$67:$DO$121,ROWS($A$11:$A12)+2,FALSE)","v":749},{"$f":"HLOOKUP(CV$7+0.5,$J$67:$DO$121,ROWS($A$11:$A12)+2,FALSE)","v":2920},{"$f":"HLOOKUP(CW$7+0.5,$J$67:$DO$121,ROWS($A$11:$A12)+2,FALSE)","v":945},{"$f":"HLOOKUP(CX$7+0.5,$J$67:$DO$121,ROWS($A$11:$A12)+2,FALSE)","v":213},{"$f":"HLOOKUP(CY$7+0.5,$J$67:$DO$121,ROWS($A$11:$A12)+2,FALSE)","v":931},{"$f":"HLOOKUP(CZ$7+0.5,$J$67:$DO$121,ROWS($A$11:$A12)+2,FALSE)","v":609},{"$f":"HLOOKUP(DA$7+0.5,$J$67:$DO$121,ROWS($A$11:$A12)+2,FALSE)","v":435},{"$f":"HLOOKUP(DB$7+0.5,$J$67:$DO$121,ROWS($A$11:$A12)+2,FALSE)","v":696},{"$f":"HLOOKUP(DC$7+0.5,$J$67:$DO$121,ROWS($A$11:$A12)+2,FALSE)","v":273},{"$f":"HLOOKUP(DD$7+0.5,$J$67:$DO$121,ROWS($A$11:$A12)+2,FALSE)","v":1142},{"$f":"HLOOKUP(DE$7+0.5,$J$67:$DO$121,ROWS($A$11:$A12)+2,FALSE)","v":62},{"$f":"HLOOKUP(DF$7+0.5,$J$67:$DO$121,ROWS($A$11:$A12)+2,FALSE)","v":1926},{"$f":"HLOOKUP(DG$7+0.5,$J$67:$DO$121,ROWS($A$11:$A12)+2,FALSE)","v":2016},{"$f":"HLOOKUP(DH$7+0.5,$J$67:$DO$121,ROWS($A$11:$A12)+2,FALSE)","v":1129},{"$f":"HLOOKUP(DI$7+0.5,$J$67:$DO$121,ROWS($A$11:$A12)+2,FALSE)","v":273},{"$f":"HLOOKUP(DJ$7+0.5,$J$67:$DO$121,ROWS($A$11:$A12)+2,FALSE)","v":1026},{"$f":"HLOOKUP(DK$7+0.5,$J$67:$DO$121,ROWS($A$11:$A12)+2,FALSE)","v":756},{"$f":"HLOOKUP(DL$7+0.5,$J$67:$DO$121,ROWS($A$11:$A12)+2,FALSE)","v":73},{"$f":"HLOOKUP(DM$7+0.5,$J$67:$DO$121,ROWS($A$11:$A12)+2,FALSE)","v":895},{"$f":"HLOOKUP(DN$7+0.5,$J$67:$DO$121,ROWS($A$11:$A12)+2,FALSE)","v":52},{"$f":"HLOOKUP(DO$7+0.5,$J$67:$DO$121,ROWS($A$11:$A12)+2,FALSE)","v":265}]
[null,"Alaska",702974,1600,565031,7596,95878,7984,{"$f":"J13/$J$11","v":5.3870334227118788E-3},{"$f":"HLOOKUP(J$7,$J$67:$DO$121,ROWS($A$11:$A13)+2,FALSE)","v":36326},{"$f":"HLOOKUP(K$7,$J$67:$DO$121,ROWS($A$11:$A13)+2,FALSE)","v":477},{"$f":"HLOOKUP(L$7,$J$67:$DO$121,ROWS($A$11:$A13)+2,FALSE)","v":"N/A"},{"$f":"HLOOKUP(M$7,$J$67:$DO$121,ROWS($A$11:$A13)+2,FALSE)","v":1354},{"$f":"HLOOKUP(N$7,$J$67:$DO$121,ROWS($A$11:$A13)+2,FALSE)","v":47},{"$f":"HLOOKUP(O$7,$J$67:$DO$121,ROWS($A$11:$A13)+2,FALSE)","v":3906},{"$f":"HLOOKUP(P$7,$J$67:$DO$121,ROWS($A$11:$A13)+2,FALSE)","v":1930},{"$f":"HLOOKUP(Q$7,$J$67:$DO$121,ROWS($A$11:$A13)+2,FALSE)","v":0},{"$f":"HLOOKUP(R$7,$J$67:$DO$121,ROWS($A$11:$A13)+2,FALSE)","v":0},{"$f":"HLOOKUP(S$7,$J$67:$DO$121,ROWS($A$11:$A13)+2,FALSE)","v":14},{"$f":"HLOOKUP(T$7,$J$67:$DO$121,ROWS($A$11:$A13)+2,FALSE)","v":2315},{"$f":"HLOOKUP(U$7,$J$67:$DO$121,ROWS($A$11:$A13)+2,FALSE)","v":1251},{"$f":"HLOOKUP(V$7,$J$67:$DO$121,ROWS($A$11:$A13)+2,FALSE)","v":1705},{"$f":"HLOOKUP(W$7,$J$67:$DO$121,ROWS($A$11:$A13)+2,FALSE)","v":895},{"$f":"HLOOKUP(X$7,$J$67:$DO$121,ROWS($A$11:$A13)+2,FALSE)","v":388},{"$f":"HLOOKUP(Y$7,$J$67:$DO$121,ROWS($A$11:$A13)+2,FALSE)","v":9},{"$f":"HLOOKUP(Z$7,$J$67:$DO$121,ROWS($A$11:$A13)+2,FALSE)","v":262},{"$f":"HLOOKUP(AA$7,$J$67:$DO$121,ROWS($A$11:$A13)+2,FALSE)","v":106},{"$f":"HLOOKUP(AB$7,$J$67:$DO$121,ROWS($A$11:$A13)+2,FALSE)","v":1440},{"$f":"HLOOKUP(AC$7,$J$67:$DO$121,ROWS($A$11:$A13)+2,FALSE)","v":100},{"$f":"HLOOKUP(AD$7,$J$67:$DO$121,ROWS($A$11:$A13)+2,FALSE)","v":574},{"$f":"HLOOKUP(AE$7,$J$67:$DO$121,ROWS($A$11:$A13)+2,FALSE)","v":704},{"$f":"HLOOKUP(AF$7,$J$67:$DO$121,ROWS($A$11:$A13)+2,FALSE)","v":107},{"$f":"HLOOKUP(AG$7,$J$67:$DO$121,ROWS($A$11:$A13)+2,FALSE)","v":923},{"$f":"HLOOKUP(AH$7,$J$67:$DO$121,ROWS($A$11:$A13)+2,FALSE)","v":530},{"$f":"HLOOKUP(AI$7,$J$67:$DO$121,ROWS($A$11:$A13)+2,FALSE)","v":263},{"$f":"HLOOKUP(AJ$7,$J$67:$DO$121,ROWS($A$11:$A13)+2,FALSE)","v":0},{"$f":"HLOOKUP(AK$7,$J$67:$DO$121,ROWS($A$11:$A13)+2,FALSE)","v":616},{"$f":"HLOOKUP(AL$7,$J$67:$DO$121,ROWS($A$11:$A13)+2,FALSE)","v":215},{"$f":"HLOOKUP(AM$7,$J$67:$DO$121,ROWS($A$11:$A13)+2,FALSE)","v":240},{"$f":"HLOOKUP(AN$7,$J$67:$DO$121,ROWS($A$11:$A13)+2,FALSE)","v":316},{"$f":"HLOOKUP(AO$7,$J$67:$DO$121,ROWS($A$11:$A13)+2,FALSE)","v":413},{"$f":"HLOOKUP(AP$7,$J$67:$DO$121,ROWS($A$11:$A13)+2,FALSE)","v":421},{"$f":"HLOOKUP(AQ$7,$J$67:$DO$121,ROWS($A$11:$A13)+2,FALSE)","v":255},{"$f":"HLOOKUP(AR$7,$J$67:$DO$121,ROWS($A$11:$A13)+2,FALSE)","v":698},{"$f":"HLOOKUP(AS$7,$J$67:$DO$121,ROWS($A$11:$A13)+2,FALSE)","v":69},{"$f":"HLOOKUP(AT$7,$J$67:$DO$121,ROWS($A$11:$A13)+2,FALSE)","v":156},{"$f":"HLOOKUP(AU$7,$J$67:$DO$121,ROWS($A$11:$A13)+2,FALSE)","v":1455},{"$f":"HLOOKUP(AV$7,$J$67:$DO$121,ROWS($A$11:$A13)+2,FALSE)","v":1793},{"$f":"HLOOKUP(AW$7,$J$67:$DO$121,ROWS($A$11:$A13)+2,FALSE)","v":126},{"$f":"HLOOKUP(AX$7,$J$67:$DO$121,ROWS($A$11:$A13)+2,FALSE)","v":0},{"$f":"HLOOKUP(AY$7,$J$67:$DO$121,ROWS($A$11:$A13)+2,FALSE)","v":121},{"$f":"HLOOKUP(AZ$7,$J$67:$DO$121,ROWS($A$11:$A13)+2,FALSE)","v":531},{"$f":"HLOOKUP(BA$7,$J$67:$DO$121,ROWS($A$11:$A13)+2,FALSE)","v":477},{"$f":"HLOOKUP(BB$7,$J$67:$DO$121,ROWS($A$11:$A13)+2,FALSE)","v":4123},{"$f":"HLOOKUP(BC$7,$J$67:$DO$121,ROWS($A$11:$A13)+2,FALSE)","v":1274},{"$f":"HLOOKUP(BD$7,$J$67:$DO$121,ROWS($A$11:$A13)+2,FALSE)","v":353},{"$f":"HLOOKUP(BE$7,$J$67:$DO$121,ROWS($A$11:$A13)+2,FALSE)","v":714},{"$f":"HLOOKUP(BF$7,$J$67:$DO$121,ROWS($A$11:$A13)+2,FALSE)","v":2421},{"$f":"HLOOKUP(BG$7,$J$67:$DO$121,ROWS($A$11:$A13)+2,FALSE)","v":0},{"$f":"HLOOKUP(BH$7,$J$67:$DO$121,ROWS($A$11:$A13)+2,FALSE)","v":158},{"$f":"HLOOKUP(BI$7,$J$67:$DO$121,ROWS($A$11:$A13)+2,FALSE)","v":81},{"$f":"HLOOKUP(BJ$7,$J$67:$DO$121,ROWS($A$11:$A13)+2,FALSE)","v":19},null,null,null,null,{"$f":"HLOOKUP(BO$7+0.5,$J$67:$DO$121,ROWS($A$11:$A13)+2,FALSE)","v":3708},{"$f":"HLOOKUP(BP$7+0.5,$J$67:$DO$121,ROWS($A$11:$A13)+2,FALSE)","v":790},{"$f":"HLOOKUP(BQ$7+0.5,$J$67:$DO$121,ROWS($A$11:$A13)+2,FALSE)","v":"N/A"},{"$f":"HLOOKUP(BR$7+0.5,$J$67:$DO$121,ROWS($A$11:$A13)+2,FALSE)","v":805},{"$f":"HLOOKUP(BS$7+0.5,$J$67:$DO$121,ROWS($A$11:$A13)+2,FALSE)","v":78},{"$f":"HLOOKUP(BT$7+0.5,$J$67:$DO$121,ROWS($A$11:$A13)+2,FALSE)","v":1041},{"$f":"HLOOKUP(BU$7+0.5,$J$67:$DO$121,ROWS($A$11:$A13)+2,FALSE)","v":866},{"$f":"HLOOKUP(BV$7+0.5,$J$67:$DO$121,ROWS($A$11:$A13)+2,FALSE)","v":246},{"$f":"HLOOKUP(BW$7+0.5,$J$67:$DO$121,ROWS($A$11:$A13)+2,FALSE)","v":246},{"$f":"HLOOKUP(BX$7+0.5,$J$67:$DO$121,ROWS($A$11:$A13)+2,FALSE)","v":23},{"$f":"HLOOKUP(BY$7+0.5,$J$67:$DO$121,ROWS($A$11:$A13)+2,FALSE)","v":1026},{"$f":"HLOOKUP(BZ$7+0.5,$J$67:$DO$121,ROWS($A$11:$A13)+2,FALSE)","v":902},{"$f":"HLOOKUP(CA$7+0.5,$J$67:$DO$121,ROWS($A$11:$A13)+2,FALSE)","v":1289},{"$f":"HLOOKUP(CB$7+0.5,$J$67:$DO$121,ROWS($A$11:$A13)+2,FALSE)","v":524},{"$f":"HLOOKUP(CC$7+0.5,$J$67:$DO$121,ROWS($A$11:$A13)+2,FALSE)","v":293},{"$f":"HLOOKUP(CD$7+0.5,$J$67:$DO$121,ROWS($A$11:$A13)+2,FALSE)","v":24},{"$f":"HLOOKUP(CE$7+0.5,$J$67:$DO$121,ROWS($A$11:$A13)+2,FALSE)","v":349},{"$f":"HLOOKUP(CF$7+0.5,$J$67:$DO$121,ROWS($A$11:$A13)+2,FALSE)","v":107},{"$f":"HLOOKUP(CG$7+0.5,$J$67:$DO$121,ROWS($A$11:$A13)+2,FALSE)","v":1506},{"$f":"HLOOKUP(CH$7+0.5,$J$67:$DO$121,ROWS($A$11:$A13)+2,FALSE)","v":171},{"$f":"HLOOKUP(CI$7+0.5,$J$67:$DO$121,ROWS($A$11:$A13)+2,FALSE)","v":655},{"$f":"HLOOKUP(CJ$7+0.5,$J$67:$DO$121,ROWS($A$11:$A13)+2,FALSE)","v":460},{"$f":"HLOOKUP(CK$7+0.5,$J$67:$DO$121,ROWS($A$11:$A13)+2,FALSE)","v":183},{"$f":"HLOOKUP(CL$7+0.5,$J$67:$DO$121,ROWS($A$11:$A13)+2,FALSE)","v":814},{"$f":"HLOOKUP(CM$7+0.5,$J$67:$DO$121,ROWS($A$11:$A13)+2,FALSE)","v":409},{"$f":"HLOOKUP(CN$7+0.5,$J$67:$DO$121,ROWS($A$11:$A13)+2,FALSE)","v":386},{"$f":"HLOOKUP(CO$7+0.5,$J$67:$DO$121,ROWS($A$11:$A13)+2,FALSE)","v":246},{"$f":"HLOOKUP(CP$7+0.5,$J$67:$DO$121,ROWS($A$11:$A13)+2,FALSE)","v":507},{"$f":"HLOOKUP(CQ$7+0.5,$J$67:$DO$121,ROWS($A$11:$A13)+2,FALSE)","v":259},{"$f":"HLOOKUP(CR$7+0.5,$J$67:$DO$121,ROWS($A$11:$A13)+2,FALSE)","v":247},{"$f":"HLOOKUP(CS$7+0.5,$J$67:$DO$121,ROWS($A$11:$A13)+2,FALSE)","v":368},{"$f":"HLOOKUP(CT$7+0.5,$J$67:$DO$121,ROWS($A$11:$A13)+2,FALSE)","v":501},{"$f":"HLOOKUP(CU$7+0.5,$J$67:$DO$121,ROWS($A$11:$A13)+2,FALSE)","v":446},{"$f":"HLOOKUP(CV$7+0.5,$J$67:$DO$121,ROWS($A$11:$A13)+2,FALSE)","v":206},{"$f":"HLOOKUP(CW$7+0.5,$J$67:$DO$121,ROWS($A$11:$A13)+2,FALSE)","v":587},{"$f":"HLOOKUP(CX$7+0.5,$J$67:$DO$121,ROWS($A$11:$A13)+2,FALSE)","v":89},{"$f":"HLOOKUP(CY$7+0.5,$J$67:$DO$121,ROWS($A$11:$A13)+2,FALSE)","v":213},{"$f":"HLOOKUP(CZ$7+0.5,$J$67:$DO$121,ROWS($A$11:$A13)+2,FALSE)","v":971},{"$f":"HLOOKUP(DA$7+0.5,$J$67:$DO$121,ROWS($A$11:$A13)+2,FALSE)","v":1104},{"$f":"HLOOKUP(DB$7+0.5,$J$67:$DO$121,ROWS($A$11:$A13)+2,FALSE)","v":164},{"$f":"HLOOKUP(DC$7+0.5,$J$67:$DO$121,ROWS($A$11:$A13)+2,FALSE)","v":246},{"$f":"HLOOKUP(DD$7+0.5,$J$67:$DO$121,ROWS($A$11:$A13)+2,FALSE)","v":153},{"$f":"HLOOKUP(DE$7+0.5,$J$67:$DO$121,ROWS($A$11:$A13)+2,FALSE)","v":817},{"$f":"HLOOKUP(DF$7+0.5,$J$67:$DO$121,ROWS($A$11:$A13)+2,FALSE)","v":341},{"$f":"HLOOKUP(DG$7+0.5,$J$67:$DO$121,ROWS($A$11:$A13)+2,FALSE)","v":1774},{"$f":"HLOOKUP(DH$7+0.5,$J$67:$DO$121,ROWS($A$11:$A13)+2,FALSE)","v":926},{"$f":"HLOOKUP(DI$7+0.5,$J$67:$DO$121,ROWS($A$11:$A13)+2,FALSE)","v":429},{"$f":"HLOOKUP(DJ$7+0.5,$J$67:$DO$121,ROWS($A$11:$A13)+2,FALSE)","v":681},{"$f":"HLOOKUP(DK$7+0.5,$J$67:$DO$121,ROWS($A$11:$A13)+2,FALSE)","v":790},{"$f":"HLOOKUP(DL$7+0.5,$J$67:$DO$121,ROWS($A$11:$A13)+2,FALSE)","v":246},{"$f":"HLOOKUP(DM$7+0.5,$J$67:$DO$121,ROWS($A$11:$A13)+2,FALSE)","v":198},{"$f":"HLOOKUP(DN$7+0.5,$J$67:$DO$121,ROWS($A$11:$A13)+2,FALSE)","v":131},{"$f":"HLOOKUP(DO$7+0.5,$J$67:$DO$121,ROWS($A$11:$A13)+2,FALSE)","v":30}]
[null,"Arizona",6332786,4439,5069002,35057,1001991,32027,3.3029428483001243E-2,{"$f":"HLOOKUP(J$7,$J$67:$DO$121,ROWS($A$11:$A14)+2,FALSE)","v":222725},{"$f":"HLOOKUP(K$7,$J$67:$DO$121,ROWS($A$11:$A14)+2,FALSE)","v":416},{"$f":"HLOOKUP(L$7,$J$67:$DO$121,ROWS($A$11:$A14)+2,FALSE)","v":3109},{"$f":"HLOOKUP(M$7,$J$67:$DO$121,ROWS($A$11:$A14)+2,FALSE)","v":"N/A"},{"$f":"HLOOKUP(N$7,$J$67:$DO$121,ROWS($A$11:$A14)+2,FALSE)","v":689},{"$f":"HLOOKUP(O$7,$J$67:$DO$121,ROWS($A$11:$A14)+2,FALSE)","v":47164},{"$f":"HLOOKUP(P$7,$J$67:$DO$121,ROWS($A$11:$A14)+2,FALSE)","v":7687},{"$f":"HLOOKUP(Q$7,$J$67:$DO$121,ROWS($A$11:$A14)+2,FALSE)","v":479},{"$f":"HLOOKUP(R$7,$J$67:$DO$121,ROWS($A$11:$A14)+2,FALSE)","v":738},{"$f":"HLOOKUP(S$7,$J$67:$DO$121,ROWS($A$11:$A14)+2,FALSE)","v":0},{"$f":"HLOOKUP(T$7,$J$67:$DO$121,ROWS($A$11:$A14)+2,FALSE)","v":7712},{"$f":"HLOOKUP(U$7,$J$67:$DO$121,ROWS($A$11:$A14)+2,FALSE)","v":4261},{"$f":"HLOOKUP(V$7,$J$67:$DO$121,ROWS($A$11:$A14)+2,FALSE)","v":1966},{"$f":"HLOOKUP(W$7,$J$67:$DO$121,ROWS($A$11:$A14)+2,FALSE)","v":2147},{"$f":"HLOOKUP(X$7,$J$67:$DO$121,ROWS($A$11:$A14)+2,FALSE)","v":12250},{"$f":"HLOOKUP(Y$7,$J$67:$DO$121,ROWS($A$11:$A14)+2,FALSE)","v":2690},{"$f":"HLOOKUP(Z$7,$J$67:$DO$121,ROWS($A$11:$A14)+2,FALSE)","v":3008},{"$f":"HLOOKUP(AA$7,$J$67:$DO$121,ROWS($A$11:$A14)+2,FALSE)","v":1935},{"$f":"HLOOKUP(AB$7,$J$67:$DO$121,ROWS($A$11:$A14)+2,FALSE)","v":1705},{"$f":"HLOOKUP(AC$7,$J$67:$DO$121,ROWS($A$11:$A14)+2,FALSE)","v":2014},{"$f":"HLOOKUP(AD$7,$J$67:$DO$121,ROWS($A$11:$A14)+2,FALSE)","v":241},{"$f":"HLOOKUP(AE$7,$J$67:$DO$121,ROWS($A$11:$A14)+2,FALSE)","v":1284},{"$f":"HLOOKUP(AF$7,$J$67:$DO$121,ROWS($A$11:$A14)+2,FALSE)","v":1449},{"$f":"HLOOKUP(AG$7,$J$67:$DO$121,ROWS($A$11:$A14)+2,FALSE)","v":6354},{"$f":"HLOOKUP(AH$7,$J$67:$DO$121,ROWS($A$11:$A14)+2,FALSE)","v":5421},{"$f":"HLOOKUP(AI$7,$J$67:$DO$121,ROWS($A$11:$A14)+2,FALSE)","v":272},{"$f":"HLOOKUP(AJ$7,$J$67:$DO$121,ROWS($A$11:$A14)+2,FALSE)","v":4567},{"$f":"HLOOKUP(AK$7,$J$67:$DO$121,ROWS($A$11:$A14)+2,FALSE)","v":1343},{"$f":"HLOOKUP(AL$7,$J$67:$DO$121,ROWS($A$11:$A14)+2,FALSE)","v":1750},{"$f":"HLOOKUP(AM$7,$J$67:$DO$121,ROWS($A$11:$A14)+2,FALSE)","v":10342},{"$f":"HLOOKUP(AN$7,$J$67:$DO$121,ROWS($A$11:$A14)+2,FALSE)","v":64},{"$f":"HLOOKUP(AO$7,$J$67:$DO$121,ROWS($A$11:$A14)+2,FALSE)","v":1782},{"$f":"HLOOKUP(AP$7,$J$67:$DO$121,ROWS($A$11:$A14)+2,FALSE)","v":4419},{"$f":"HLOOKUP(AQ$7,$J$67:$DO$121,ROWS($A$11:$A14)+2,FALSE)","v":6618},{"$f":"HLOOKUP(AR$7,$J$67:$DO$121,ROWS($A$11:$A14)+2,FALSE)","v":4463},{"$f":"HLOOKUP(AS$7,$J$67:$DO$121,ROWS($A$11:$A14)+2,FALSE)","v":826},{"$f":"HLOOKUP(AT$7,$J$67:$DO$121,ROWS($A$11:$A14)+2,FALSE)","v":5225},{"$f":"HLOOKUP(AU$7,$J$67:$DO$121,ROWS($A$11:$A14)+2,FALSE)","v":2910},{"$f":"HLOOKUP(AV$7,$J$67:$DO$121,ROWS($A$11:$A14)+2,FALSE)","v":5430},{"$f":"HLOOKUP(AW$7,$J$67:$DO$121,ROWS($A$11:$A14)+2,FALSE)","v":5535},{"$f":"HLOOKUP(AX$7,$J$67:$DO$121,ROWS($A$11:$A14)+2,FALSE)","v":403},{"$f":"HLOOKUP(AY$7,$J$67:$DO$121,ROWS($A$11:$A14)+2,FALSE)","v":2310},{"$f":"HLOOKUP(AZ$7,$J$67:$DO$121,ROWS($A$11:$A14)+2,FALSE)","v":1351},{"$f":"HLOOKUP(BA$7,$J$67:$DO$121,ROWS($A$11:$A14)+2,FALSE)","v":3061},{"$f":"HLOOKUP(BB$7,$J$67:$DO$121,ROWS($A$11:$A14)+2,FALSE)","v":14705},{"$f":"HLOOKUP(BC$7,$J$67:$DO$121,ROWS($A$11:$A14)+2,FALSE)","v":7164},{"$f":"HLOOKUP(BD$7,$J$67:$DO$121,ROWS($A$11:$A14)+2,FALSE)","v":664},{"$f":"HLOOKUP(BE$7,$J$67:$DO$121,ROWS($A$11:$A14)+2,FALSE)","v":3413},{"$f":"HLOOKUP(BF$7,$J$67:$DO$121,ROWS($A$11:$A14)+2,FALSE)","v":12645},{"$f":"HLOOKUP(BG$7,$J$67:$DO$121,ROWS($A$11:$A14)+2,FALSE)","v":595},{"$f":"HLOOKUP(BH$7,$J$67:$DO$121,ROWS($A$11:$A14)+2,FALSE)","v":5556},{"$f":"HLOOKUP(BI$7,$J$67:$DO$121,ROWS($A$11:$A14)+2,FALSE)","v":593},{"$f":"HLOOKUP(BJ$7,$J$67:$DO$121,ROWS($A$11:$A14)+2,FALSE)","v":599},null,null,null,null,{"$f":"HLOOKUP(BO$7+0.5,$J$67:$DO$121,ROWS($A$11:$A14)+2,FALSE)","v":11873},{"$f":"HLOOKUP(BP$7+0.5,$J$67:$DO$121,ROWS($A$11:$A14)+2,FALSE)","v":305},{"$f":"HLOOKUP(BQ$7+0.5,$J$67:$DO$121,ROWS($A$11:$A14)+2,FALSE)","v":1297},{"$f":"HLOOKUP(BR$7+0.5,$J$67:$DO$121,ROWS($A$11:$A14)+2,FALSE)","v":"N/A"},{"$f":"HLOOKUP(BS$7+0.5,$J$67:$DO$121,ROWS($A$11:$A14)+2,FALSE)","v":415},{"$f":"HLOOKUP(BT$7+0.5,$J$67:$DO$121,ROWS($A$11:$A14)+2,FALSE)","v":6018},{"$f":"HLOOKUP(BU$7+0.5,$J$67:$DO$121,ROWS($A$11:$A14)+2,FALSE)","v":2494},{"$f":"HLOOKUP(BV$7+0.5,$J$67:$DO$121,ROWS($A$11:$A14)+2,FALSE)","v":386},{"$f":"HLOOKUP(BW$7+0.5,$J$67:$DO$121,ROWS($A$11:$A14)+2,FALSE)","v":774},{"$f":"HLOOKUP(BX$7+0.5,$J$67:$DO$121,ROWS($A$11:$A14)+2,FALSE)","v":305},{"$f":"HLOOKUP(BY$7+0.5,$J$67:$DO$121,ROWS($A$11:$A14)+2,FALSE)","v":2149},{"$f":"HLOOKUP(BZ$7+0.5,$J$67:$DO$121,ROWS($A$11:$A14)+2,FALSE)","v":1828},{"$f":"HLOOKUP(CA$7+0.5,$J$67:$DO$121,ROWS($A$11:$A14)+2,FALSE)","v":928},{"$f":"HLOOKUP(CB$7+0.5,$J$67:$DO$121,ROWS($A$11:$A14)+2,FALSE)","v":984},{"$f":"HLOOKUP(CC$7+0.5,$J$67:$DO$121,ROWS($A$11:$A14)+2,FALSE)","v":3263},{"$f":"HLOOKUP(CD$7+0.5,$J$67:$DO$121,ROWS($A$11:$A14)+2,FALSE)","v":1358},{"$f":"HLOOKUP(CE$7+0.5,$J$67:$DO$121,ROWS($A$11:$A14)+2,FALSE)","v":1405},{"$f":"HLOOKUP(CF$7+0.5,$J$67:$DO$121,ROWS($A$11:$A14)+2,FALSE)","v":1008},{"$f":"HLOOKUP(CG$7+0.5,$J$67:$DO$121,ROWS($A$11:$A14)+2,FALSE)","v":928},{"$f":"HLOOKUP(CH$7+0.5,$J$67:$DO$121,ROWS($A$11:$A14)+2,FALSE)","v":1697},{"$f":"HLOOKUP(CI$7+0.5,$J$67:$DO$121,ROWS($A$11:$A14)+2,FALSE)","v":308},{"$f":"HLOOKUP(CJ$7+0.5,$J$67:$DO$121,ROWS($A$11:$A14)+2,FALSE)","v":1052},{"$f":"HLOOKUP(CK$7+0.5,$J$67:$DO$121,ROWS($A$11:$A14)+2,FALSE)","v":975},{"$f":"HLOOKUP(CL$7+0.5,$J$67:$DO$121,ROWS($A$11:$A14)+2,FALSE)","v":1796},{"$f":"HLOOKUP(CM$7+0.5,$J$67:$DO$121,ROWS($A$11:$A14)+2,FALSE)","v":1542},{"$f":"HLOOKUP(CN$7+0.5,$J$67:$DO$121,ROWS($A$11:$A14)+2,FALSE)","v":238},{"$f":"HLOOKUP(CO$7+0.5,$J$67:$DO$121,ROWS($A$11:$A14)+2,FALSE)","v":1621},{"$f":"HLOOKUP(CP$7+0.5,$J$67:$DO$121,ROWS($A$11:$A14)+2,FALSE)","v":1038},{"$f":"HLOOKUP(CQ$7+0.5,$J$67:$DO$121,ROWS($A$11:$A14)+2,FALSE)","v":1130},{"$f":"HLOOKUP(CR$7+0.5,$J$67:$DO$121,ROWS($A$11:$A14)+2,FALSE)","v":3881},{"$f":"HLOOKUP(CS$7+0.5,$J$67:$DO$121,ROWS($A$11:$A14)+2,FALSE)","v":105},{"$f":"HLOOKUP(CT$7+0.5,$J$67:$DO$121,ROWS($A$11:$A14)+2,FALSE)","v":762},{"$f":"HLOOKUP(CU$7+0.5,$J$67:$DO$121,ROWS($A$11:$A14)+2,FALSE)","v":1430},{"$f":"HLOOKUP(CV$7+0.5,$J$67:$DO$121,ROWS($A$11:$A14)+2,FALSE)","v":2661},{"$f":"HLOOKUP(CW$7+0.5,$J$67:$DO$121,ROWS($A$11:$A14)+2,FALSE)","v":1627},{"$f":"HLOOKUP(CX$7+0.5,$J$67:$DO$121,ROWS($A$11:$A14)+2,FALSE)","v":612},{"$f":"HLOOKUP(CY$7+0.5,$J$67:$DO$121,ROWS($A$11:$A14)+2,FALSE)","v":1513},{"$f":"HLOOKUP(CZ$7+0.5,$J$67:$DO$121,ROWS($A$11:$A14)+2,FALSE)","v":1310},{"$f":"HLOOKUP(DA$7+0.5,$J$67:$DO$121,ROWS($A$11:$A14)+2,FALSE)","v":1887},{"$f":"HLOOKUP(DB$7+0.5,$J$67:$DO$121,ROWS($A$11:$A14)+2,FALSE)","v":2842},{"$f":"HLOOKUP(DC$7+0.5,$J$67:$DO$121,ROWS($A$11:$A14)+2,FALSE)","v":336},{"$f":"HLOOKUP(DD$7+0.5,$J$67:$DO$121,ROWS($A$11:$A14)+2,FALSE)","v":1189},{"$f":"HLOOKUP(DE$7+0.5,$J$67:$DO$121,ROWS($A$11:$A14)+2,FALSE)","v":843},{"$f":"HLOOKUP(DF$7+0.5,$J$67:$DO$121,ROWS($A$11:$A14)+2,FALSE)","v":1643},{"$f":"HLOOKUP(DG$7+0.5,$J$67:$DO$121,ROWS($A$11:$A14)+2,FALSE)","v":3301},{"$f":"HLOOKUP(DH$7+0.5,$J$67:$DO$121,ROWS($A$11:$A14)+2,FALSE)","v":3154},{"$f":"HLOOKUP(DI$7+0.5,$J$67:$DO$121,ROWS($A$11:$A14)+2,FALSE)","v":498},{"$f":"HLOOKUP(DJ$7+0.5,$J$67:$DO$121,ROWS($A$11:$A14)+2,FALSE)","v":1613},{"$f":"HLOOKUP(DK$7+0.5,$J$67:$DO$121,ROWS($A$11:$A14)+2,FALSE)","v":2459},{"$f":"HLOOKUP(DL$7+0.5,$J$67:$DO$121,ROWS($A$11:$A14)+2,FALSE)","v":563},{"$f":"HLOOKUP(DM$7+0.5,$J$67:$DO$121,ROWS($A$11:$A14)+2,FALSE)","v":1827},{"$f":"HLOOKUP(DN$7+0.5,$J$67:$DO$121,ROWS($A$11:$A14)+2,FALSE)","v":393},{"$f":"HLOOKUP(DO$7+0.5,$J$67:$DO$121,ROWS($A$11:$A14)+2,FALSE)","v":771}]
[null,"Arkansas",2888304,2453,2387806,18627,412997,17485,1.1734289314510897E-2,{"$f":"HLOOKUP(J$7,$J$67:$DO$121,ROWS($A$11:$A15)+2,FALSE)","v":79127},{"$f":"HLOOKUP(K$7,$J$67:$DO$121,ROWS($A$11:$A15)+2,FALSE)","v":1405},{"$f":"HLOOKUP(L$7,$J$67:$DO$121,ROWS($A$11:$A15)+2,FALSE)","v":934},{"$f":"HLOOKUP(M$7,$J$67:$DO$121,ROWS($A$11:$A15)+2,FALSE)","v":777},{"$f":"HLOOKUP(N$7,$J$67:$DO$121,ROWS($A$11:$A15)+2,FALSE)","v":"N/A"},{"$f":"HLOOKUP(O$7,$J$67:$DO$121,ROWS($A$11:$A15)+2,FALSE)","v":4457},{"$f":"HLOOKUP(P$7,$J$67:$DO$121,ROWS($A$11:$A15)+2,FALSE)","v":2535},{"$f":"HLOOKUP(Q$7,$J$67:$DO$121,ROWS($A$11:$A15)+2,FALSE)","v":451},{"$f":"HLOOKUP(R$7,$J$67:$DO$121,ROWS($A$11:$A15)+2,FALSE)","v":0},{"$f":"HLOOKUP(S$7,$J$67:$DO$121,ROWS($A$11:$A15)+2,FALSE)","v":154},{"$f":"HLOOKUP(T$7,$J$67:$DO$121,ROWS($A$11:$A15)+2,FALSE)","v":3578},{"$f":"HLOOKUP(U$7,$J$67:$DO$121,ROWS($A$11:$A15)+2,FALSE)","v":3921},{"$f":"HLOOKUP(V$7,$J$67:$DO$121,ROWS($A$11:$A15)+2,FALSE)","v":129},{"$f":"HLOOKUP(W$7,$J$67:$DO$121,ROWS($A$11:$A15)+2,FALSE)","v":618},{"$f":"HLOOKUP(X$7,$J$67:$DO$121,ROWS($A$11:$A15)+2,FALSE)","v":3221},{"$f":"HLOOKUP(Y$7,$J$67:$DO$121,ROWS($A$11:$A15)+2,FALSE)","v":722},{"$f":"HLOOKUP(Z$7,$J$67:$DO$121,ROWS($A$11:$A15)+2,FALSE)","v":85},{"$f":"HLOOKUP(AA$7,$J$67:$DO$121,ROWS($A$11:$A15)+2,FALSE)","v":3611},{"$f":"HLOOKUP(AB$7,$J$67:$DO$121,ROWS($A$11:$A15)+2,FALSE)","v":2540},{"$f":"HLOOKUP(AC$7,$J$67:$DO$121,ROWS($A$11:$A15)+2,FALSE)","v":4012},{"$f":"HLOOKUP(AD$7,$J$67:$DO$121,ROWS($A$11:$A15)+2,FALSE)","v":0},{"$f":"HLOOKUP(AE$7,$J$67:$DO$121,ROWS($A$11:$A15)+2,FALSE)","v":306},{"$f":"HLOOKUP(AF$7,$J$67:$DO$121,ROWS($A$11:$A15)+2,FALSE)","v":190},{"$f":"HLOOKUP(AG$7,$J$67:$DO$121,ROWS($A$11:$A15)+2,FALSE)","v":1506},{"$f":"HLOOKUP(AH$7,$J$67:$DO$121,ROWS($A$11:$A15)+2,FALSE)","v":222},{"$f":"HLOOKUP(AI$7,$J$67:$DO$121,ROWS($A$11:$A15)+2,FALSE)","v":2764},{"$f":"HLOOKUP(AJ$7,$J$67:$DO$121,ROWS($A$11:$A15)+2,FALSE)","v":7320},{"$f":"HLOOKUP(AK$7,$J$67:$DO$121,ROWS($A$11:$A15)+2,FALSE)","v":85},{"$f":"HLOOKUP(AL$7,$J$67:$DO$121,ROWS($A$11:$A15)+2,FALSE)","v":394},{"$f":"HLOOKUP(AM$7,$J$67:$DO$121,ROWS($A$11:$A15)+2,FALSE)","v":67},{"$f":"HLOOKUP(AN$7,$J$67:$DO$121,ROWS($A$11:$A15)+2,FALSE)","v":0},{"$f":"HLOOKUP(AO$7,$J$67:$DO$121,ROWS($A$11:$A15)+2,FALSE)","v":77},{"$f":"HLOOKUP(AP$7,$J$67:$DO$121,ROWS($A$11:$A15)+2,FALSE)","v":0},{"$f":"HLOOKUP(AQ$7,$J$67:$DO$121,ROWS($A$11:$A15)+2,FALSE)","v":289},{"$f":"HLOOKUP(AR$7,$J$67:$DO$121,ROWS($A$11:$A15)+2,FALSE)","v":1561},{"$f":"HLOOKUP(AS$7,$J$67:$DO$121,ROWS($A$11:$A15)+2,FALSE)","v":0},{"$f":"HLOOKUP(AT$7,$J$67:$DO$121,ROWS($A$11:$A15)+2,FALSE)","v":1137},{"$f":"HLOOKUP(AU$7,$J$67:$DO$121,ROWS($A$11:$A15)+2,FALSE)","v":8607},{"$f":"HLOOKUP(AV$7,$J$67:$DO$121,ROWS($A$11:$A15)+2,FALSE)","v":239},{"$f":"HLOOKUP(AW$7,$J$67:$DO$121,ROWS($A$11:$A15)+2,FALSE)","v":731},{"$f":"HLOOKUP(AX$7,$J$67:$DO$121,ROWS($A$11:$A15)+2,FALSE)","v":0},{"$f":"HLOOKUP(AY$7,$J$67:$DO$121,ROWS($A$11:$A15)+2,FALSE)","v":1496},{"$f":"HLOOKUP(AZ$7,$J$67:$DO$121,ROWS($A$11:$A15)+2,FALSE)","v":243},{"$f":"HLOOKUP(BA$7,$J$67:$DO$121,ROWS($A$11:$A15)+2,FALSE)","v":2653},{"$f":"HLOOKUP(BB$7,$J$67:$DO$121,ROWS($A$11:$A15)+2,FALSE)","v":13707},{"$f":"HLOOKUP(BC$7,$J$67:$DO$121,ROWS($A$11:$A15)+2,FALSE)","v":361},{"$f":"HLOOKUP(BD$7,$J$67:$DO$121,ROWS($A$11:$A15)+2,FALSE)","v":0},{"$f":"HLOOKUP(BE$7,$J$67:$DO$121,ROWS($A$11:$A15)+2,FALSE)","v":494},{"$f":"HLOOKUP(BF$7,$J$67:$DO$121,ROWS($A$11:$A15)+2,FALSE)","v":264},{"$f":"HLOOKUP(BG$7,$J$67:$DO$121,ROWS($A$11:$A15)+2,FALSE)","v":0},{"$f":"HLOOKUP(BH$7,$J$67:$DO$121,ROWS($A$11:$A15)+2,FALSE)","v":821},{"$f":"HLOOKUP(BI$7,$J$67:$DO$121,ROWS($A$11:$A15)+2,FALSE)","v":443},{"$f":"HLOOKUP(BJ$7,$J$67:$DO$121,ROWS($A$11:$A15)+2,FALSE)","v":87},null,null,null,null,{"$f":"HLOOKUP(BO$7+0.5,$J$67:$DO$121,ROWS($A$11:$A15)+2,FALSE)","v":7901},{"$f":"HLOOKUP(BP$7+0.5,$J$67:$DO$121,ROWS($A$11:$A15)+2,FALSE)","v":1001},{"$f":"HLOOKUP(BQ$7+0.5,$J$67:$DO$121,ROWS($A$11:$A15)+2,FALSE)","v":798},{"$f":"HLOOKUP(BR$7+0.5,$J$67:$DO$121,ROWS($A$11:$A15)+2,FALSE)","v":557},{"$f":"HLOOKUP(BS$7+0.5,$J$67:$DO$121,ROWS($A$11:$A15)+2,FALSE)","v":"N/A"},{"$f":"HLOOKUP(BT$7+0.5,$J$67:$DO$121,ROWS($A$11:$A15)+2,FALSE)","v":1991},{"$f":"HLOOKUP(BU$7+0.5,$J$67:$DO$121,ROWS($A$11:$A15)+2,FALSE)","v":1149},{"$f":"HLOOKUP(BV$7+0.5,$J$67:$DO$121,ROWS($A$11:$A15)+2,FALSE)","v":315},{"$f":"HLOOKUP(BW$7+0.5,$J$67:$DO$121,ROWS($A$11:$A15)+2,FALSE)","v":273},{"$f":"HLOOKUP(BX$7+0.5,$J$67:$DO$121,ROWS($A$11:$A15)+2,FALSE)","v":264},{"$f":"HLOOKUP(BY$7+0.5,$J$67:$DO$121,ROWS($A$11:$A15)+2,FALSE)","v":1239},{"$f":"HLOOKUP(BZ$7+0.5,$J$67:$DO$121,ROWS($A$11:$A15)+2,FALSE)","v":2077},{"$f":"HLOOKUP(CA$7+0.5,$J$67:$DO$121,ROWS($A$11:$A15)+2,FALSE)","v":166},{"$f":"HLOOKUP(CB$7+0.5,$J$67:$DO$121,ROWS($A$11:$A15)+2,FALSE)","v":754},{"$f":"HLOOKUP(CC$7+0.5,$J$67:$DO$121,ROWS($A$11:$A15)+2,FALSE)","v":1474},{"$f":"HLOOKUP(CD$7+0.5,$J$67:$DO$121,ROWS($A$11:$A15)+2,FALSE)","v":498},{"$f":"HLOOKUP(CE$7+0.5,$J$67:$DO$121,ROWS($A$11:$A15)+2,FALSE)","v":143},{"$f":"HLOOKUP(CF$7+0.5,$J$67:$DO$121,ROWS($A$11:$A15)+2,FALSE)","v":1704},{"$f":"HLOOKUP(CG$7+0.5,$J$67:$DO$121,ROWS($A$11:$A15)+2,FALSE)","v":1895},{"$f":"HLOOKUP(CH$7+0.5,$J$67:$DO$121,ROWS($A$11:$A15)+2,FALSE)","v":1625},{"$f":"HLOOKUP(CI$7+0.5,$J$67:$DO$121,ROWS($A$11:$A15)+2,FALSE)","v":273},{"$f":"HLOOKUP(CJ$7+0.5,$J$67:$DO$121,ROWS($A$11:$A15)+2,FALSE)","v":254},{"$f":"HLOOKUP(CK$7+0.5,$J$67:$DO$121,ROWS($A$11:$A15)+2,FALSE)","v":196},{"$f":"HLOOKUP(CL$7+0.5,$J$67:$DO$121,ROWS($A$11:$A15)+2,FALSE)","v":674},{"$f":"HLOOKUP(CM$7+0.5,$J$67:$DO$121,ROWS($A$11:$A15)+2,FALSE)","v":153},{"$f":"HLOOKUP(CN$7+0.5,$J$67:$DO$121,ROWS($A$11:$A15)+2,FALSE)","v":1337},{"$f":"HLOOKUP(CO$7+0.5,$J$67:$DO$121,ROWS($A$11:$A15)+2,FALSE)","v":2181},{"$f":"HLOOKUP(CP$7+0.5,$J$67:$DO$121,ROWS($A$11:$A15)+2,FALSE)","v":159},{"$f":"HLOOKUP(CQ$7+0.5,$J$67:$DO$121,ROWS($A$11:$A15)+2,FALSE)","v":538},{"$f":"HLOOKUP(CR$7+0.5,$J$67:$DO$121,ROWS($A$11:$A15)+2,FALSE)","v":104},{"$f":"HLOOKUP(CS$7+0.5,$J$67:$DO$121,ROWS($A$11:$A15)+2,FALSE)","v":273},{"$f":"HLOOKUP(CT$7+0.5,$J$67:$DO$121,ROWS($A$11:$A15)+2,FALSE)","v":130},{"$f":"HLOOKUP(CU$7+0.5,$J$67:$DO$121,ROWS($A$11:$A15)+2,FALSE)","v":273},{"$f":"HLOOKUP(CV$7+0.5,$J$67:$DO$121,ROWS($A$11:$A15)+2,FALSE)","v":336},{"$f":"HLOOKUP(CW$7+0.5,$J$67:$DO$121,ROWS($A$11:$A15)+2,FALSE)","v":900},{"$f":"HLOOKUP(CX$7+0.5,$J$67:$DO$121,ROWS($A$11:$A15)+2,FALSE)","v":273},{"$f":"HLOOKUP(CY$7+0.5,$J$67:$DO$121,ROWS($A$11:$A15)+2,FALSE)","v":811},{"$f":"HLOOKUP(CZ$7+0.5,$J$67:$DO$121,ROWS($A$11:$A15)+2,FALSE)","v":3434},{"$f":"HLOOKUP(DA$7+0.5,$J$67:$DO$121,ROWS($A$11:$A15)+2,FALSE)","v":174},{"$f":"HLOOKUP(DB$7+0.5,$J$67:$DO$121,ROWS($A$11:$A15)+2,FALSE)","v":570},{"$f":"HLOOKUP(DC$7+0.5,$J$67:$DO$121,ROWS($A$11:$A15)+2,FALSE)","v":273},{"$f":"HLOOKUP(DD$7+0.5,$J$67:$DO$121,ROWS($A$11:$A15)+2,FALSE)","v":983},{"$f":"HLOOKUP(DE$7+0.5,$J$67:$DO$121,ROWS($A$11:$A15)+2,FALSE)","v":264},{"$f":"HLOOKUP(DF$7+0.5,$J$67:$DO$121,ROWS($A$11:$A15)+2,FALSE)","v":1121},{"$f":"HLOOKUP(DG$7+0.5,$J$67:$DO$121,ROWS($A$11:$A15)+2,FALSE)","v":2911},{"$f":"HLOOKUP(DH$7+0.5,$J$67:$DO$121,ROWS($A$11:$A15)+2,FALSE)","v":322},{"$f":"HLOOKUP(DI$7+0.5,$J$67:$DO$121,ROWS($A$11:$A15)+2,FALSE)","v":273},{"$f":"HLOOKUP(DJ$7+0.5,$J$67:$DO$121,ROWS($A$11:$A15)+2,FALSE)","v":382},{"$f":"HLOOKUP(DK$7+0.5,$J$67:$DO$121,ROWS($A$11:$A15)+2,FALSE)","v":228},{"$f":"HLOOKUP(DL$7+0.5,$J$67:$DO$121,ROWS($A$11:$A15)+2,FALSE)","v":273},{"$f":"HLOOKUP(DM$7+0.5,$J$67:$DO$121,ROWS($A$11:$A15)+2,FALSE)","v":503},{"$f":"HLOOKUP(DN$7+0.5,$J$67:$DO$121,ROWS($A$11:$A15)+2,FALSE)","v":513},{"$f":"HLOOKUP(DO$7+0.5,$J$67:$DO$121,ROWS($A$11:$A15)+2,FALSE)","v":146}]
[null,"California",36907897,10889,30790221,71574,5413287,66460,6.5954900834600164E-2,{"$f":"HLOOKUP(J$7,$J$67:$DO$121,ROWS($A$11:$A16)+2,FALSE)","v":444749},{"$f":"HLOOKUP(K$7,$J$67:$DO$121,ROWS($A$11:$A16)+2,FALSE)","v":3364},{"$f":"HLOOKUP(L$7,$J$67:$DO$121,ROWS($A$11:$A16)+2,FALSE)","v":9579},{"$f":"HLOOKUP(M$7,$J$67:$DO$121,ROWS($A$11:$A16)+2,FALSE)","v":33854},{"$f":"HLOOKUP(N$7,$J$67:$DO$121,ROWS($A$11:$A16)+2,FALSE)","v":4172},{"$f":"HLOOKUP(O$7,$J$67:$DO$121,ROWS($A$11:$A16)+2,FALSE)","v":"N/A"},{"$f":"HLOOKUP(P$7,$J$67:$DO$121,ROWS($A$11:$A16)+2,FALSE)","v":15662},{"$f":"HLOOKUP(Q$7,$J$67:$DO$121,ROWS($A$11:$A16)+2,FALSE)","v":4631},{"$f":"HLOOKUP(R$7,$J$67:$DO$121,ROWS($A$11:$A16)+2,FALSE)","v":643},{"$f":"HLOOKUP(S$7,$J$67:$DO$121,ROWS($A$11:$A16)+2,FALSE)","v":3683},{"$f":"HLOOKUP(T$7,$J$67:$DO$121,ROWS($A$11:$A16)+2,FALSE)","v":20362},{"$f":"HLOOKUP(U$7,$J$67:$DO$121,ROWS($A$11:$A16)+2,FALSE)","v":8820},{"$f":"HLOOKUP(V$7,$J$67:$DO$121,ROWS($A$11:$A16)+2,FALSE)","v":9528},{"$f":"HLOOKUP(W$7,$J$67:$DO$121,ROWS($A$11:$A16)+2,FALSE)","v":5719},{"$f":"HLOOKUP(X$7,$J$67:$DO$121,ROWS($A$11:$A16)+2,FALSE)","v":16482},{"$f":"HLOOKUP(Y$7,$J$67:$DO$121,ROWS($A$11:$A16)+2,FALSE)","v":6550},{"$f":"HLOOKUP(Z$7,$J$67:$DO$121,ROWS($A$11:$A16)+2,FALSE)","v":3163},{"$f":"HLOOKUP(AA$7,$J$67:$DO$121,ROWS($A$11:$A16)+2,FALSE)","v":3857},{"$f":"HLOOKUP(AB$7,$J$67:$DO$121,ROWS($A$11:$A16)+2,FALSE)","v":3394},{"$f":"HLOOKUP(AC$7,$J$67:$DO$121,ROWS($A$11:$A16)+2,FALSE)","v":2989},{"$f":"HLOOKUP(AD$7,$J$67:$DO$121,ROWS($A$11:$A16)+2,FALSE)","v":1796},{"$f":"HLOOKUP(AE$7,$J$67:$DO$121,ROWS($A$11:$A16)+2,FALSE)","v":10626},{"$f":"HLOOKUP(AF$7,$J$67:$DO$121,ROWS($A$11:$A16)+2,FALSE)","v":11969},{"$f":"HLOOKUP(AG$7,$J$67:$DO$121,ROWS($A$11:$A16)+2,FALSE)","v":10435},{"$f":"HLOOKUP(AH$7,$J$67:$DO$121,ROWS($A$11:$A16)+2,FALSE)","v":5095},{"$f":"HLOOKUP(AI$7,$J$67:$DO$121,ROWS($A$11:$A16)+2,FALSE)","v":2757},{"$f":"HLOOKUP(AJ$7,$J$67:$DO$121,ROWS($A$11:$A16)+2,FALSE)","v":6921},{"$f":"HLOOKUP(AK$7,$J$67:$DO$121,ROWS($A$11:$A16)+2,FALSE)","v":3009},{"$f":"HLOOKUP(AL$7,$J$67:$DO$121,ROWS($A$11:$A16)+2,FALSE)","v":3062},{"$f":"HLOOKUP(AM$7,$J$67:$DO$121,ROWS($A$11:$A16)+2,FALSE)","v":27724},{"$f":"HLOOKUP(AN$7,$J$67:$DO$121,ROWS($A$11:$A16)+2,FALSE)","v":1614},{"$f":"HLOOKUP(AO$7,$J$67:$DO$121,ROWS($A$11:$A16)+2,FALSE)","v":10108},{"$f":"HLOOKUP(AP$7,$J$67:$DO$121,ROWS($A$11:$A16)+2,FALSE)","v":4632},{"$f":"HLOOKUP(AQ$7,$J$67:$DO$121,ROWS($A$11:$A16)+2,FALSE)","v":20981},{"$f":"HLOOKUP(AR$7,$J$67:$DO$121,ROWS($A$11:$A16)+2,FALSE)","v":9593},{"$f":"HLOOKUP(AS$7,$J$67:$DO$121,ROWS($A$11:$A16)+2,FALSE)","v":392},{"$f":"HLOOKUP(AT$7,$J$67:$DO$121,ROWS($A$11:$A16)+2,FALSE)","v":8170},{"$f":"HLOOKUP(AU$7,$J$67:$DO$121,ROWS($A$11:$A16)+2,FALSE)","v":5708},{"$f":"HLOOKUP(AV$7,$J$67:$DO$121,ROWS($A$11:$A16)+2,FALSE)","v":20913},{"$f":"HLOOKUP(AW$7,$J$67:$DO$121,ROWS($A$11:$A16)+2,FALSE)","v":9948},{"$f":"HLOOKUP(AX$7,$J$67:$DO$121,ROWS($A$11:$A16)+2,FALSE)","v":526},{"$f":"HLOOKUP(AY$7,$J$67:$DO$121,ROWS($A$11:$A16)+2,FALSE)","v":5016},{"$f":"HLOOKUP(AZ$7,$J$67:$DO$121,ROWS($A$11:$A16)+2,FALSE)","v":1604},{"$f":"HLOOKUP(BA$7,$J$67:$DO$121,ROWS($A$11:$A16)+2,FALSE)","v":4349},{"$f":"HLOOKUP(BB$7,$J$67:$DO$121,ROWS($A$11:$A16)+2,FALSE)","v":36582},{"$f":"HLOOKUP(BC$7,$J$67:$DO$121,ROWS($A$11:$A16)+2,FALSE)","v":10653},{"$f":"HLOOKUP(BD$7,$J$67:$DO$121,ROWS($A$11:$A16)+2,FALSE)","v":525},{"$f":"HLOOKUP(BE$7,$J$67:$DO$121,ROWS($A$11:$A16)+2,FALSE)","v":14232},{"$f":"HLOOKUP(BF$7,$J$67:$DO$121,ROWS($A$11:$A16)+2,FALSE)","v":30544},{"$f":"HLOOKUP(BG$7,$J$67:$DO$121,ROWS($A$11:$A16)+2,FALSE)","v":1446},{"$f":"HLOOKUP(BH$7,$J$67:$DO$121,ROWS($A$11:$A16)+2,FALSE)","v":6031},{"$f":"HLOOKUP(BI$7,$J$67:$DO$121,ROWS($A$11:$A16)+2,FALSE)","v":1336},{"$f":"HLOOKUP(BJ$7,$J$67:$DO$121,ROWS($A$11:$A16)+2,FALSE)","v":1223},null,null,null,null,{"$f":"HLOOKUP(BO$7+0.5,$J$67:$DO$121,ROWS($A$11:$A16)+2,FALSE)","v":18415},{"$f":"HLOOKUP(BP$7+0.5,$J$67:$DO$121,ROWS($A$11:$A16)+2,FALSE)","v":1977},{"$f":"HLOOKUP(BQ$7+0.5,$J$67:$DO$121,ROWS($A$11:$A16)+2,FALSE)","v":2911},{"$f":"HLOOKUP(BR$7+0.5,$J$67:$DO$121,ROWS($A$11:$A16)+2,FALSE)","v":4816},{"$f":"HLOOKUP(BS$7+0.5,$J$67:$DO$121,ROWS($A$11:$A16)+2,FALSE)","v":1340},{"$f":"HLOOKUP(BT$7+0.5,$J$67:$DO$121,ROWS($A$11:$A16)+2,FALSE)","v":"N/A"},{"$f":"HLOOKUP(BU$7+0.5,$J$67:$DO$121,ROWS($A$11:$A16)+2,FALSE)","v":3236},{"$f":"HLOOKUP(BV$7+0.5,$J$67:$DO$121,ROWS($A$11:$A16)+2,FALSE)","v":1802},{"$f":"HLOOKUP(BW$7+0.5,$J$67:$DO$121,ROWS($A$11:$A16)+2,FALSE)","v":408},{"$f":"HLOOKUP(BX$7+0.5,$J$67:$DO$121,ROWS($A$11:$A16)+2,FALSE)","v":1306},{"$f":"HLOOKUP(BY$7+0.5,$J$67:$DO$121,ROWS($A$11:$A16)+2,FALSE)","v":4008},{"$f":"HLOOKUP(BZ$7+0.5,$J$67:$DO$121,ROWS($A$11:$A16)+2,FALSE)","v":2545},{"$f":"HLOOKUP(CA$7+0.5,$J$67:$DO$121,ROWS($A$11:$A16)+2,FALSE)","v":2191},{"$f":"HLOOKUP(CB$7+0.5,$J$67:$DO$121,ROWS($A$11:$A16)+2,FALSE)","v":1572},{"$f":"HLOOKUP(CC$7+0.5,$J$67:$DO$121,ROWS($A$11:$A16)+2,FALSE)","v":2806},{"$f":"HLOOKUP(CD$7+0.5,$J$67:$DO$121,ROWS($A$11:$A16)+2,FALSE)","v":1860},{"$f":"HLOOKUP(CE$7+0.5,$J$67:$DO$121,ROWS($A$11:$A16)+2,FALSE)","v":1259},{"$f":"HLOOKUP(CF$7+0.5,$J$67:$DO$121,ROWS($A$11:$A16)+2,FALSE)","v":1813},{"$f":"HLOOKUP(CG$7+0.5,$J$67:$DO$121,ROWS($A$11:$A16)+2,FALSE)","v":1797},{"$f":"HLOOKUP(CH$7+0.5,$J$67:$DO$121,ROWS($A$11:$A16)+2,FALSE)","v":1207},{"$f":"HLOOKUP(CI$7+0.5,$J$67:$DO$121,ROWS($A$11:$A16)+2,FALSE)","v":1139},{"$f":"HLOOKUP(CJ$7+0.5,$J$67:$DO$121,ROWS($A$11:$A16)+2,FALSE)","v":2848},{"$f":"HLOOKUP(CK$7+0.5,$J$67:$DO$121,ROWS($A$11:$A16)+2,FALSE)","v":2774},{"$f":"HLOOKUP(CL$7+0.5,$J$67:$DO$121,ROWS($A$11:$A16)+2,FALSE)","v":2487},{"$f":"HLOOKUP(CM$7+0.5,$J$67:$DO$121,ROWS($A$11:$A16)+2,FALSE)","v":1319},{"$f":"HLOOKUP(CN$7+0.5,$J$67:$DO$121,ROWS($A$11:$A16)+2,FALSE)","v":1338},{"$f":"HLOOKUP(CO$7+0.5,$J$67:$DO$121,ROWS($A$11:$A16)+2,FALSE)","v":2357},{"$f":"HLOOKUP(CP$7+0.5,$J$67:$DO$121,ROWS($A$11:$A16)+2,FALSE)","v":1511},{"$f":"HLOOKUP(CQ$7+0.5,$J$67:$DO$121,ROWS($A$11:$A16)+2,FALSE)","v":1860},{"$f":"HLOOKUP(CR$7+0.5,$J$67:$DO$121,ROWS($A$11:$A16)+2,FALSE)","v":4878},{"$f":"HLOOKUP(CS$7+0.5,$J$67:$DO$121,ROWS($A$11:$A16)+2,FALSE)","v":1059},{"$f":"HLOOKUP(CT$7+0.5,$J$67:$DO$121,ROWS($A$11:$A16)+2,FALSE)","v":2848},{"$f":"HLOOKUP(CU$7+0.5,$J$67:$DO$121,ROWS($A$11:$A16)+2,FALSE)","v":1266},{"$f":"HLOOKUP(CV$7+0.5,$J$67:$DO$121,ROWS($A$11:$A16)+2,FALSE)","v":2977},{"$f":"HLOOKUP(CW$7+0.5,$J$67:$DO$121,ROWS($A$11:$A16)+2,FALSE)","v":2005},{"$f":"HLOOKUP(CX$7+0.5,$J$67:$DO$121,ROWS($A$11:$A16)+2,FALSE)","v":343},{"$f":"HLOOKUP(CY$7+0.5,$J$67:$DO$121,ROWS($A$11:$A16)+2,FALSE)","v":2399},{"$f":"HLOOKUP(CZ$7+0.5,$J$67:$DO$121,ROWS($A$11:$A16)+2,FALSE)","v":1591},{"$f":"HLOOKUP(DA$7+0.5,$J$67:$DO$121,ROWS($A$11:$A16)+2,FALSE)","v":3580},{"$f":"HLOOKUP(DB$7+0.5,$J$67:$DO$121,ROWS($A$11:$A16)+2,FALSE)","v":1991},{"$f":"HLOOKUP(DC$7+0.5,$J$67:$DO$121,ROWS($A$11:$A16)+2,FALSE)","v":264},{"$f":"HLOOKUP(DD$7+0.5,$J$67:$DO$121,ROWS($A$11:$A16)+2,FALSE)","v":2183},{"$f":"HLOOKUP(DE$7+0.5,$J$67:$DO$121,ROWS($A$11:$A16)+2,FALSE)","v":1117},{"$f":"HLOOKUP(DF$7+0.5,$J$67:$DO$121,ROWS($A$11:$A16)+2,FALSE)","v":1174},{"$f":"HLOOKUP(DG$7+0.5,$J$67:$DO$121,ROWS($A$11:$A16)+2,FALSE)","v":5299},{"$f":"HLOOKUP(DH$7+0.5,$J$67:$DO$121,ROWS($A$11:$A16)+2,FALSE)","v":2235},{"$f":"HLOOKUP(DI$7+0.5,$J$67:$DO$121,ROWS($A$11:$A16)+2,FALSE)","v":369},{"$f":"HLOOKUP(DJ$7+0.5,$J$67:$DO$121,ROWS($A$11:$A16)+2,FALSE)","v":2597},{"$f":"HLOOKUP(DK$7+0.5,$J$67:$DO$121,ROWS($A$11:$A16)+2,FALSE)","v":4481},{"$f":"HLOOKUP(DL$7+0.5,$J$67:$DO$121,ROWS($A$11:$A16)+2,FALSE)","v":919},{"$f":"HLOOKUP(DM$7+0.5,$J$67:$DO$121,ROWS($A$11:$A16)+2,FALSE)","v":2181},{"$f":"HLOOKUP(DN$7+0.5,$J$67:$DO$121,ROWS($A$11:$A16)+2,FALSE)","v":664},{"$f":"HLOOKUP(DO$7+0.5,$J$67:$DO$121,ROWS($A$11:$A16)+2,FALSE)","v":1128}]
[null,"Colorado",4988190,3936,4042039,25546,725413,23003,2.7637501262377417E-2,{"$f":"HLOOKUP(J$7,$J$67:$DO$121,ROWS($A$11:$A17)+2,FALSE)","v":186366},{"$f":"HLOOKUP(K$7,$J$67:$DO$121,ROWS($A$11:$A17)+2,FALSE)","v":954},{"$f":"HLOOKUP(L$7,$J$67:$DO$121,ROWS($A$11:$A17)+2,FALSE)","v":2225},{"$f":"HLOOKUP(M$7,$J$67:$DO$121,ROWS($A$11:$A17)+2,FALSE)","v":12287},{"$f":"HLOOKUP(N$7,$J$67:$DO$121,ROWS($A$11:$A17)+2,FALSE)","v":1034},{"$f":"HLOOKUP(O$7,$J$67:$DO$121,ROWS($A$11:$A17)+2,FALSE)","v":26089},{"$f":"HLOOKUP(P$7,$J$67:$DO$121,ROWS($A$11:$A17)+2,FALSE)","v":"N/A"},{"$f":"HLOOKUP(Q$7,$J$67:$DO$121,ROWS($A$11:$A17)+2,FALSE)","v":459},{"$f":"HLOOKUP(R$7,$J$67:$DO$121,ROWS($A$11:$A17)+2,FALSE)","v":486},{"$f":"HLOOKUP(S$7,$J$67:$DO$121,ROWS($A$11:$A17)+2,FALSE)","v":479},{"$f":"HLOOKUP(T$7,$J$67:$DO$121,ROWS($A$11:$A17)+2,FALSE)","v":8849},{"$f":"HLOOKUP(U$7,$J$67:$DO$121,ROWS($A$11:$A17)+2,FALSE)","v":6445},{"$f":"HLOOKUP(V$7,$J$67:$DO$121,ROWS($A$11:$A17)+2,FALSE)","v":2355},{"$f":"HLOOKUP(W$7,$J$67:$DO$121,ROWS($A$11:$A17)+2,FALSE)","v":839},{"$f":"HLOOKUP(X$7,$J$67:$DO$121,ROWS($A$11:$A17)+2,FALSE)","v":6950},{"$f":"HLOOKUP(Y$7,$J$67:$DO$121,ROWS($A$11:$A17)+2,FALSE)","v":3296},{"$f":"HLOOKUP(Z$7,$J$67:$DO$121,ROWS($A$11:$A17)+2,FALSE)","v":2140},{"$f":"HLOOKUP(AA$7,$J$67:$DO$121,ROWS($A$11:$A17)+2,FALSE)","v":4308},{"$f":"HLOOKUP(AB$7,$J$67:$DO$121,ROWS($A$11:$A17)+2,FALSE)","v":1961},{"$f":"HLOOKUP(AC$7,$J$67:$DO$121,ROWS($A$11:$A17)+2,FALSE)","v":968},{"$f":"HLOOKUP(AD$7,$J$67:$DO$121,ROWS($A$11:$A17)+2,FALSE)","v":532},{"$f":"HLOOKUP(AE$7,$J$67:$DO$121,ROWS($A$11:$A17)+2,FALSE)","v":1532},{"$f":"HLOOKUP(AF$7,$J$67:$DO$121,ROWS($A$11:$A17)+2,FALSE)","v":2242},{"$f":"HLOOKUP(AG$7,$J$67:$DO$121,ROWS($A$11:$A17)+2,FALSE)","v":4587},{"$f":"HLOOKUP(AH$7,$J$67:$DO$121,ROWS($A$11:$A17)+2,FALSE)","v":2878},{"$f":"HLOOKUP(AI$7,$J$67:$DO$121,ROWS($A$11:$A17)+2,FALSE)","v":1277},{"$f":"HLOOKUP(AJ$7,$J$67:$DO$121,ROWS($A$11:$A17)+2,FALSE)","v":1978},{"$f":"HLOOKUP(AK$7,$J$67:$DO$121,ROWS($A$11:$A17)+2,FALSE)","v":2042},{"$f":"HLOOKUP(AL$7,$J$67:$DO$121,ROWS($A$11:$A17)+2,FALSE)","v":4065},{"$f":"HLOOKUP(AM$7,$J$67:$DO$121,ROWS($A$11:$A17)+2,FALSE)","v":4131},{"$f":"HLOOKUP(AN$7,$J$67:$DO$121,ROWS($A$11:$A17)+2,FALSE)","v":791},{"$f":"HLOOKUP(AO$7,$J$67:$DO$121,ROWS($A$11:$A17)+2,FALSE)","v":1259},{"$f":"HLOOKUP(AP$7,$J$67:$DO$121,ROWS($A$11:$A17)+2,FALSE)","v":3921},{"$f":"HLOOKUP(AQ$7,$J$67:$DO$121,ROWS($A$11:$A17)+2,FALSE)","v":4594},{"$f":"HLOOKUP(AR$7,$J$67:$DO$121,ROWS($A$11:$A17)+2,FALSE)","v":2940},{"$f":"HLOOKUP(AS$7,$J$67:$DO$121,ROWS($A$11:$A17)+2,FALSE)","v":802},{"$f":"HLOOKUP(AT$7,$J$67:$DO$121,ROWS($A$11:$A17)+2,FALSE)","v":2838},{"$f":"HLOOKUP(AU$7,$J$67:$DO$121,ROWS($A$11:$A17)+2,FALSE)","v":3464},{"$f":"HLOOKUP(AV$7,$J$67:$DO$121,ROWS($A$11:$A17)+2,FALSE)","v":4330},{"$f":"HLOOKUP(AW$7,$J$67:$DO$121,ROWS($A$11:$A17)+2,FALSE)","v":3928},{"$f":"HLOOKUP(AX$7,$J$67:$DO$121,ROWS($A$11:$A17)+2,FALSE)","v":192},{"$f":"HLOOKUP(AY$7,$J$67:$DO$121,ROWS($A$11:$A17)+2,FALSE)","v":1231},{"$f":"HLOOKUP(AZ$7,$J$67:$DO$121,ROWS($A$11:$A17)+2,FALSE)","v":1847},{"$f":"HLOOKUP(BA$7,$J$67:$DO$121,ROWS($A$11:$A17)+2,FALSE)","v":1628},{"$f":"HLOOKUP(BB$7,$J$67:$DO$121,ROWS($A$11:$A17)+2,FALSE)","v":22253},{"$f":"HLOOKUP(BC$7,$J$67:$DO$121,ROWS($A$11:$A17)+2,FALSE)","v":4748},{"$f":"HLOOKUP(BD$7,$J$67:$DO$121,ROWS($A$11:$A17)+2,FALSE)","v":350},{"$f":"HLOOKUP(BE$7,$J$67:$DO$121,ROWS($A$11:$A17)+2,FALSE)","v":2739},{"$f":"HLOOKUP(BF$7,$J$67:$DO$121,ROWS($A$11:$A17)+2,FALSE)","v":7583},{"$f":"HLOOKUP(BG$7,$J$67:$DO$121,ROWS($A$11:$A17)+2,FALSE)","v":623},{"$f":"HLOOKUP(BH$7,$J$67:$DO$121,ROWS($A$11:$A17)+2,FALSE)","v":2499},{"$f":"HLOOKUP(BI$7,$J$67:$DO$121,ROWS($A$11:$A17)+2,FALSE)","v":4418},{"$f":"HLOOKUP(BJ$7,$J$67:$DO$121,ROWS($A$11:$A17)+2,FALSE)","v":874},null,null,null,null,{"$f":"HLOOKUP(BO$7+0.5,$J$67:$DO$121,ROWS($A$11:$A17)+2,FALSE)","v":9897},{"$f":"HLOOKUP(BP$7+0.5,$J$67:$DO$121,ROWS($A$11:$A17)+2,FALSE)","v":803},{"$f":"HLOOKUP(BQ$7+0.5,$J$67:$DO$121,ROWS($A$11:$A17)+2,FALSE)","v":1220},{"$f":"HLOOKUP(BR$7+0.5,$J$67:$DO$121,ROWS($A$11:$A17)+2,FALSE)","v":2324},{"$f":"HLOOKUP(BS$7+0.5,$J$67:$DO$121,ROWS($A$11:$A17)+2,FALSE)","v":739},{"$f":"HLOOKUP(BT$7+0.5,$J$67:$DO$121,ROWS($A$11:$A17)+2,FALSE)","v":4183},{"$f":"HLOOKUP(BU$7+0.5,$J$67:$DO$121,ROWS($A$11:$A17)+2,FALSE)","v":"N/A"},{"$f":"HLOOKUP(BV$7+0.5,$J$67:$DO$121,ROWS($A$11:$A17)+2,FALSE)","v":360},{"$f":"HLOOKUP(BW$7+0.5,$J$67:$DO$121,ROWS($A$11:$A17)+2,FALSE)","v":486},{"$f":"HLOOKUP(BX$7+0.5,$J$67:$DO$121,ROWS($A$11:$A17)+2,FALSE)","v":381},{"$f":"HLOOKUP(BY$7+0.5,$J$67:$DO$121,ROWS($A$11:$A17)+2,FALSE)","v":2300},{"$f":"HLOOKUP(BZ$7+0.5,$J$67:$DO$121,ROWS($A$11:$A17)+2,FALSE)","v":2553},{"$f":"HLOOKUP(CA$7+0.5,$J$67:$DO$121,ROWS($A$11:$A17)+2,FALSE)","v":1220},{"$f":"HLOOKUP(CB$7+0.5,$J$67:$DO$121,ROWS($A$11:$A17)+2,FALSE)","v":572},{"$f":"HLOOKUP(CC$7+0.5,$J$67:$DO$121,ROWS($A$11:$A17)+2,FALSE)","v":1968},{"$f":"HLOOKUP(CD$7+0.5,$J$67:$DO$121,ROWS($A$11:$A17)+2,FALSE)","v":1584},{"$f":"HLOOKUP(CE$7+0.5,$J$67:$DO$121,ROWS($A$11:$A17)+2,FALSE)","v":1179},{"$f":"HLOOKUP(CF$7+0.5,$J$67:$DO$121,ROWS($A$11:$A17)+2,FALSE)","v":1577},{"$f":"HLOOKUP(CG$7+0.5,$J$67:$DO$121,ROWS($A$11:$A17)+2,FALSE)","v":1194},{"$f":"HLOOKUP(CH$7+0.5,$J$67:$DO$121,ROWS($A$11:$A17)+2,FALSE)","v":664},{"$f":"HLOOKUP(CI$7+0.5,$J$67:$DO$121,ROWS($A$11:$A17)+2,FALSE)","v":385},{"$f":"HLOOKUP(CJ$7+0.5,$J$67:$DO$121,ROWS($A$11:$A17)+2,FALSE)","v":978},{"$f":"HLOOKUP(CK$7+0.5,$J$67:$DO$121,ROWS($A$11:$A17)+2,FALSE)","v":778},{"$f":"HLOOKUP(CL$7+0.5,$J$67:$DO$121,ROWS($A$11:$A17)+2,FALSE)","v":1679},{"$f":"HLOOKUP(CM$7+0.5,$J$67:$DO$121,ROWS($A$11:$A17)+2,FALSE)","v":1093},{"$f":"HLOOKUP(CN$7+0.5,$J$67:$DO$121,ROWS($A$11:$A17)+2,FALSE)","v":883},{"$f":"HLOOKUP(CO$7+0.5,$J$67:$DO$121,ROWS($A$11:$A17)+2,FALSE)","v":803},{"$f":"HLOOKUP(CP$7+0.5,$J$67:$DO$121,ROWS($A$11:$A17)+2,FALSE)","v":1490},{"$f":"HLOOKUP(CQ$7+0.5,$J$67:$DO$121,ROWS($A$11:$A17)+2,FALSE)","v":1455},{"$f":"HLOOKUP(CR$7+0.5,$J$67:$DO$121,ROWS($A$11:$A17)+2,FALSE)","v":1784},{"$f":"HLOOKUP(CS$7+0.5,$J$67:$DO$121,ROWS($A$11:$A17)+2,FALSE)","v":521},{"$f":"HLOOKUP(CT$7+0.5,$J$67:$DO$121,ROWS($A$11:$A17)+2,FALSE)","v":537},{"$f":"HLOOKUP(CU$7+0.5,$J$67:$DO$121,ROWS($A$11:$A17)+2,FALSE)","v":1326},{"$f":"HLOOKUP(CV$7+0.5,$J$67:$DO$121,ROWS($A$11:$A17)+2,FALSE)","v":1518},{"$f":"HLOOKUP(CW$7+0.5,$J$67:$DO$121,ROWS($A$11:$A17)+2,FALSE)","v":1376},{"$f":"HLOOKUP(CX$7+0.5,$J$67:$DO$121,ROWS($A$11:$A17)+2,FALSE)","v":598},{"$f":"HLOOKUP(CY$7+0.5,$J$67:$DO$121,ROWS($A$11:$A17)+2,FALSE)","v":1325},{"$f":"HLOOKUP(CZ$7+0.5,$J$67:$DO$121,ROWS($A$11:$A17)+2,FALSE)","v":1440},{"$f":"HLOOKUP(DA$7+0.5,$J$67:$DO$121,ROWS($A$11:$A17)+2,FALSE)","v":1962},{"$f":"HLOOKUP(DB$7+0.5,$J$67:$DO$121,ROWS($A$11:$A17)+2,FALSE)","v":1124},{"$f":"HLOOKUP(DC$7+0.5,$J$67:$DO$121,ROWS($A$11:$A17)+2,FALSE)","v":248},{"$f":"HLOOKUP(DD$7+0.5,$J$67:$DO$121,ROWS($A$11:$A17)+2,FALSE)","v":796},{"$f":"HLOOKUP(DE$7+0.5,$J$67:$DO$121,ROWS($A$11:$A17)+2,FALSE)","v":826},{"$f":"HLOOKUP(DF$7+0.5,$J$67:$DO$121,ROWS($A$11:$A17)+2,FALSE)","v":706},{"$f":"HLOOKUP(DG$7+0.5,$J$67:$DO$121,ROWS($A$11:$A17)+2,FALSE)","v":4494},{"$f":"HLOOKUP(DH$7+0.5,$J$67:$DO$121,ROWS($A$11:$A17)+2,FALSE)","v":1658},{"$f":"HLOOKUP(DI$7+0.5,$J$67:$DO$121,ROWS($A$11:$A17)+2,FALSE)","v":246},{"$f":"HLOOKUP(DJ$7+0.5,$J$67:$DO$121,ROWS($A$11:$A17)+2,FALSE)","v":1077},{"$f":"HLOOKUP(DK$7+0.5,$J$67:$DO$121,ROWS($A$11:$A17)+2,FALSE)","v":3004},{"$f":"HLOOKUP(DL$7+0.5,$J$67:$DO$121,ROWS($A$11:$A17)+2,FALSE)","v":493},{"$f":"HLOOKUP(DM$7+0.5,$J$67:$DO$121,ROWS($A$11:$A17)+2,FALSE)","v":1153},{"$f":"HLOOKUP(DN$7+0.5,$J$67:$DO$121,ROWS($A$11:$A17)+2,FALSE)","v":1439},{"$f":"HLOOKUP(DO$7+0.5,$J$67:$DO$121,ROWS($A$11:$A17)+2,FALSE)","v":880}]
[null,"Connecticut",3541146,2779,3100742,16358,342904,15404,1.1468244664388529E-2,{"$f":"HLOOKUP(J$7,$J$67:$DO$121,ROWS($A$11:$A18)+2,FALSE)","v":77333},{"$f":"HLOOKUP(K$7,$J$67:$DO$121,ROWS($A$11:$A18)+2,FALSE)","v":896},{"$f":"HLOOKUP(L$7,$J$67:$DO$121,ROWS($A$11:$A18)+2,FALSE)","v":0},{"$f":"HLOOKUP(M$7,$J$67:$DO$121,ROWS($A$11:$A18)+2,FALSE)","v":664},{"$f":"HLOOKUP(N$7,$J$67:$DO$121,ROWS($A$11:$A18)+2,FALSE)","v":334},{"$f":"HLOOKUP(O$7,$J$67:$DO$121,ROWS($A$11:$A18)+2,FALSE)","v":4479},{"$f":"HLOOKUP(P$7,$J$67:$DO$121,ROWS($A$11:$A18)+2,FALSE)","v":547},{"$f":"HLOOKUP(Q$7,$J$67:$DO$121,ROWS($A$11:$A18)+2,FALSE)","v":"N/A"},{"$f":"HLOOKUP(R$7,$J$67:$DO$121,ROWS($A$11:$A18)+2,FALSE)","v":149},{"$f":"HLOOKUP(S$7,$J$67:$DO$121,ROWS($A$11:$A18)+2,FALSE)","v":331},{"$f":"HLOOKUP(T$7,$J$67:$DO$121,ROWS($A$11:$A18)+2,FALSE)","v":9207},{"$f":"HLOOKUP(U$7,$J$67:$DO$121,ROWS($A$11:$A18)+2,FALSE)","v":748},{"$f":"HLOOKUP(V$7,$J$67:$DO$121,ROWS($A$11:$A18)+2,FALSE)","v":182},{"$f":"HLOOKUP(W$7,$J$67:$DO$121,ROWS($A$11:$A18)+2,FALSE)","v":147},{"$f":"HLOOKUP(X$7,$J$67:$DO$121,ROWS($A$11:$A18)+2,FALSE)","v":3391},{"$f":"HLOOKUP(Y$7,$J$67:$DO$121,ROWS($A$11:$A18)+2,FALSE)","v":1074},{"$f":"HLOOKUP(Z$7,$J$67:$DO$121,ROWS($A$11:$A18)+2,FALSE)","v":108},{"$f":"HLOOKUP(AA$7,$J$67:$DO$121,ROWS($A$11:$A18)+2,FALSE)","v":0},{"$f":"HLOOKUP(AB$7,$J$67:$DO$121,ROWS($A$11:$A18)+2,FALSE)","v":400},{"$f":"HLOOKUP(AC$7,$J$67:$DO$121,ROWS($A$11:$A18)+2,FALSE)","v":0},{"$f":"HLOOKUP(AD$7,$J$67:$DO$121,ROWS($A$11:$A18)+2,FALSE)","v":528},{"$f":"HLOOKUP(AE$7,$J$67:$DO$121,ROWS($A$11:$A18)+2,FALSE)","v":1531},{"$f":"HLOOKUP(AF$7,$J$67:$DO$121,ROWS($A$11:$A18)+2,FALSE)","v":8510},{"$f":"HLOOKUP(AG$7,$J$67:$DO$121,ROWS($A$11:$A18)+2,FALSE)","v":770},{"$f":"HLOOKUP(AH$7,$J$67:$DO$121,ROWS($A$11:$A18)+2,FALSE)","v":934},{"$f":"HLOOKUP(AI$7,$J$67:$DO$121,ROWS($A$11:$A18)+2,FALSE)","v":67},{"$f":"HLOOKUP(AJ$7,$J$67:$DO$121,ROWS($A$11:$A18)+2,FALSE)","v":42},{"$f":"HLOOKUP(AK$7,$J$67:$DO$121,ROWS($A$11:$A18)+2,FALSE)","v":0},{"$f":"HLOOKUP(AL$7,$J$67:$DO$121,ROWS($A$11:$A18)+2,FALSE)","v":0},{"$f":"HLOOKUP(AM$7,$J$67:$DO$121,ROWS($A$11:$A18)+2,FALSE)","v":507},{"$f":"HLOOKUP(AN$7,$J$67:$DO$121,ROWS($A$11:$A18)+2,FALSE)","v":1049},{"$f":"HLOOKUP(AO$7,$J$67:$DO$121,ROWS($A$11:$A18)+2,FALSE)","v":3475},{"$f":"HLOOKUP(AP$7,$J$67:$DO$121,ROWS($A$11:$A18)+2,FALSE)","v":112},{"$f":"HLOOKUP(AQ$7,$J$67:$DO$121,ROWS($A$11:$A18)+2,FALSE)","v":20727},{"$f":"HLOOKUP(AR$7,$J$67:$DO$121,ROWS($A$11:$A18)+2,FALSE)","v":1345},{"$f":"HLOOKUP(AS$7,$J$67:$DO$121,ROWS($A$11:$A18)+2,FALSE)","v":0},{"$f":"HLOOKUP(AT$7,$J$67:$DO$121,ROWS($A$11:$A18)+2,FALSE)","v":1296},{"$f":"HLOOKUP(AU$7,$J$67:$DO$121,ROWS($A$11:$A18)+2,FALSE)","v":145},{"$f":"HLOOKUP(AV$7,$J$67:$DO$121,ROWS($A$11:$A18)+2,FALSE)","v":640},{"$f":"HLOOKUP(AW$7,$J$67:$DO$121,ROWS($A$11:$A18)+2,FALSE)","v":1955},{"$f":"HLOOKUP(AX$7,$J$67:$DO$121,ROWS($A$11:$A18)+2,FALSE)","v":1728},{"$f":"HLOOKUP(AY$7,$J$67:$DO$121,ROWS($A$11:$A18)+2,FALSE)","v":1140},{"$f":"HLOOKUP(AZ$7,$J$67:$DO$121,ROWS($A$11:$A18)+2,FALSE)","v":0},{"$f":"HLOOKUP(BA$7,$J$67:$DO$121,ROWS($A$11:$A18)+2,FALSE)","v":430},{"$f":"HLOOKUP(BB$7,$J$67:$DO$121,ROWS($A$11:$A18)+2,FALSE)","v":1887},{"$f":"HLOOKUP(BC$7,$J$67:$DO$121,ROWS($A$11:$A18)+2,FALSE)","v":0},{"$f":"HLOOKUP(BD$7,$J$67:$DO$121,ROWS($A$11:$A18)+2,FALSE)","v":458},{"$f":"HLOOKUP(BE$7,$J$67:$DO$121,ROWS($A$11:$A18)+2,FALSE)","v":1735},{"$f":"HLOOKUP(BF$7,$J$67:$DO$121,ROWS($A$11:$A18)+2,FALSE)","v":2084},{"$f":"HLOOKUP(BG$7,$J$67:$DO$121,ROWS($A$11:$A18)+2,FALSE)","v":442},{"$f":"HLOOKUP(BH$7,$J$67:$DO$121,ROWS($A$11:$A18)+2,FALSE)","v":1092},{"$f":"HLOOKUP(BI$7,$J$67:$DO$121,ROWS($A$11:$A18)+2,FALSE)","v":47},{"$f":"HLOOKUP(BJ$7,$J$67:$DO$121,ROWS($A$11:$A18)+2,FALSE)","v":2027},null,null,null,null,{"$f":"HLOOKUP(BO$7+0.5,$J$67:$DO$121,ROWS($A$11:$A18)+2,FALSE)","v":6651},{"$f":"HLOOKUP(BP$7+0.5,$J$67:$DO$121,ROWS($A$11:$A18)+2,FALSE)","v":891},{"$f":"HLOOKUP(BQ$7+0.5,$J$67:$DO$121,ROWS($A$11:$A18)+2,FALSE)","v":281},{"$f":"HLOOKUP(BR$7+0.5,$J$67:$DO$121,ROWS($A$11:$A18)+2,FALSE)","v":484},{"$f":"HLOOKUP(BS$7+0.5,$J$67:$DO$121,ROWS($A$11:$A18)+2,FALSE)","v":517},{"$f":"HLOOKUP(BT$7+0.5,$J$67:$DO$121,ROWS($A$11:$A18)+2,FALSE)","v":1653},{"$f":"HLOOKUP(BU$7+0.5,$J$67:$DO$121,ROWS($A$11:$A18)+2,FALSE)","v":487},{"$f":"HLOOKUP(BV$7+0.5,$J$67:$DO$121,ROWS($A$11:$A18)+2,FALSE)","v":"N/A"},{"$f":"HLOOKUP(BW$7+0.5,$J$67:$DO$121,ROWS($A$11:$A18)+2,FALSE)","v":227},{"$f":"HLOOKUP(BX$7+0.5,$J$67:$DO$121,ROWS($A$11:$A18)+2,FALSE)","v":343},{"$f":"HLOOKUP(BY$7+0.5,$J$67:$DO$121,ROWS($A$11:$A18)+2,FALSE)","v":2532},{"$f":"HLOOKUP(BZ$7+0.5,$J$67:$DO$121,ROWS($A$11:$A18)+2,FALSE)","v":467},{"$f":"HLOOKUP(CA$7+0.5,$J$67:$DO$121,ROWS($A$11:$A18)+2,FALSE)","v":171},{"$f":"HLOOKUP(CB$7+0.5,$J$67:$DO$121,ROWS($A$11:$A18)+2,FALSE)","v":130},{"$f":"HLOOKUP(CC$7+0.5,$J$67:$DO$121,ROWS($A$11:$A18)+2,FALSE)","v":1847},{"$f":"HLOOKUP(CD$7+0.5,$J$67:$DO$121,ROWS($A$11:$A18)+2,FALSE)","v":798},{"$f":"HLOOKUP(CE$7+0.5,$J$67:$DO$121,ROWS($A$11:$A18)+2,FALSE)","v":131},{"$f":"HLOOKUP(CF$7+0.5,$J$67:$DO$121,ROWS($A$11:$A18)+2,FALSE)","v":281},{"$f":"HLOOKUP(CG$7+0.5,$J$67:$DO$121,ROWS($A$11:$A18)+2,FALSE)","v":430},{"$f":"HLOOKUP(CH$7+0.5,$J$67:$DO$121,ROWS($A$11:$A18)+2,FALSE)","v":281},{"$f":"HLOOKUP(CI$7+0.5,$J$67:$DO$121,ROWS($A$11:$A18)+2,FALSE)","v":447},{"$f":"HLOOKUP(CJ$7+0.5,$J$67:$DO$121,ROWS($A$11:$A18)+2,FALSE)","v":814},{"$f":"HLOOKUP(CK$7+0.5,$J$67:$DO$121,ROWS($A$11:$A18)+2,FALSE)","v":2107},{"$f":"HLOOKUP(CL$7+0.5,$J$67:$DO$121,ROWS($A$11:$A18)+2,FALSE)","v":486},{"$f":"HLOOKUP(CM$7+0.5,$J$67:$DO$121,ROWS($A$11:$A18)+2,FALSE)","v":659},{"$f":"HLOOKUP(CN$7+0.5,$J$67:$DO$121,ROWS($A$11:$A18)+2,FALSE)","v":111},{"$f":"HLOOKUP(CO$7+0.5,$J$67:$DO$121,ROWS($A$11:$A18)+2,FALSE)","v":68},{"$f":"HLOOKUP(CP$7+0.5,$J$67:$DO$121,ROWS($A$11:$A18)+2,FALSE)","v":281},{"$f":"HLOOKUP(CQ$7+0.5,$J$67:$DO$121,ROWS($A$11:$A18)+2,FALSE)","v":281},{"$f":"HLOOKUP(CR$7+0.5,$J$67:$DO$121,ROWS($A$11:$A18)+2,FALSE)","v":424},{"$f":"HLOOKUP(CS$7+0.5,$J$67:$DO$121,ROWS($A$11:$A18)+2,FALSE)","v":628},{"$f":"HLOOKUP(CT$7+0.5,$J$67:$DO$121,ROWS($A$11:$A18)+2,FALSE)","v":1175},{"$f":"HLOOKUP(CU$7+0.5,$J$67:$DO$121,ROWS($A$11:$A18)+2,FALSE)","v":189},{"$f":"HLOOKUP(CV$7+0.5,$J$67:$DO$121,ROWS($A$11:$A18)+2,FALSE)","v":3325},{"$f":"HLOOKUP(CW$7+0.5,$J$67:$DO$121,ROWS($A$11:$A18)+2,FALSE)","v":587},{"$f":"HLOOKUP(CX$7+0.5,$J$67:$DO$121,ROWS($A$11:$A18)+2,FALSE)","v":281},{"$f":"HLOOKUP(CY$7+0.5,$J$67:$DO$121,ROWS($A$11:$A18)+2,FALSE)","v":710},{"$f":"HLOOKUP(CZ$7+0.5,$J$67:$DO$121,ROWS($A$11:$A18)+2,FALSE)","v":171},{"$f":"HLOOKUP(DA$7+0.5,$J$67:$DO$121,ROWS($A$11:$A18)+2,FALSE)","v":592},{"$f":"HLOOKUP(DB$7+0.5,$J$67:$DO$121,ROWS($A$11:$A18)+2,FALSE)","v":808},{"$f":"HLOOKUP(DC$7+0.5,$J$67:$DO$121,ROWS($A$11:$A18)+2,FALSE)","v":796},{"$f":"HLOOKUP(DD$7+0.5,$J$67:$DO$121,ROWS($A$11:$A18)+2,FALSE)","v":627},{"$f":"HLOOKUP(DE$7+0.5,$J$67:$DO$121,ROWS($A$11:$A18)+2,FALSE)","v":281},{"$f":"HLOOKUP(DF$7+0.5,$J$67:$DO$121,ROWS($A$11:$A18)+2,FALSE)","v":389},{"$f":"HLOOKUP(DG$7+0.5,$J$67:$DO$121,ROWS($A$11:$A18)+2,FALSE)","v":1100},{"$f":"HLOOKUP(DH$7+0.5,$J$67:$DO$121,ROWS($A$11:$A18)+2,FALSE)","v":281},{"$f":"HLOOKUP(DI$7+0.5,$J$67:$DO$121,ROWS($A$11:$A18)+2,FALSE)","v":419},{"$f":"HLOOKUP(DJ$7+0.5,$J$67:$DO$121,ROWS($A$11:$A18)+2,FALSE)","v":691},{"$f":"HLOOKUP(DK$7+0.5,$J$67:$DO$121,ROWS($A$11:$A18)+2,FALSE)","v":1631},{"$f":"HLOOKUP(DL$7+0.5,$J$67:$DO$121,ROWS($A$11:$A18)+2,FALSE)","v":674},{"$f":"HLOOKUP(DM$7+0.5,$J$67:$DO$121,ROWS($A$11:$A18)+2,FALSE)","v":1321},{"$f":"HLOOKUP(DN$7+0.5,$J$67:$DO$121,ROWS($A$11:$A18)+2,FALSE)","v":78},{"$f":"HLOOKUP(DO$7+0.5,$J$67:$DO$121,ROWS($A$11:$A18)+2,FALSE)","v":1233}]
[null,"Delaware",889812,1573,764640,9145,90001,8498,4.5614645446565736E-3,{"$f":"HLOOKUP(J$7,$J$67:$DO$121,ROWS($A$11:$A19)+2,FALSE)","v":30759},{"$f":"HLOOKUP(K$7,$J$67:$DO$121,ROWS($A$11:$A19)+2,FALSE)","v":128},{"$f":"HLOOKUP(L$7,$J$67:$DO$121,ROWS($A$11:$A19)+2,FALSE)","v":68},{"$f":"HLOOKUP(M$7,$J$67:$DO$121,ROWS($A$11:$A19)+2,FALSE)","v":60},{"$f":"HLOOKUP(N$7,$J$67:$DO$121,ROWS($A$11:$A19)+2,FALSE)","v":0},{"$f":"HLOOKUP(O$7,$J$67:$DO$121,ROWS($A$11:$A19)+2,FALSE)","v":353},{"$f":"HLOOKUP(P$7,$J$67:$DO$121,ROWS($A$11:$A19)+2,FALSE)","v":178},{"$f":"HLOOKUP(Q$7,$J$67:$DO$121,ROWS($A$11:$A19)+2,FALSE)","v":714},{"$f":"HLOOKUP(R$7,$J$67:$DO$121,ROWS($A$11:$A19)+2,FALSE)","v":"N/A"},{"$f":"HLOOKUP(S$7,$J$67:$DO$121,ROWS($A$11:$A19)+2,FALSE)","v":432},{"$f":"HLOOKUP(T$7,$J$67:$DO$121,ROWS($A$11:$A19)+2,FALSE)","v":2362},{"$f":"HLOOKUP(U$7,$J$67:$DO$121,ROWS($A$11:$A19)+2,FALSE)","v":585},{"$f":"HLOOKUP(V$7,$J$67:$DO$121,ROWS($A$11:$A19)+2,FALSE)","v":0},{"$f":"HLOOKUP(W$7,$J$67:$DO$121,ROWS($A$11:$A19)+2,FALSE)","v":0},{"$f":"HLOOKUP(X$7,$J$67:$DO$121,ROWS($A$11:$A19)+2,FALSE)","v":612},{"$f":"HLOOKUP(Y$7,$J$67:$DO$121,ROWS($A$11:$A19)+2,FALSE)","v":0},{"$f":"HLOOKUP(Z$7,$J$67:$DO$121,ROWS($A$11:$A19)+2,FALSE)","v":0},{"$f":"HLOOKUP(AA$7,$J$67:$DO$121,ROWS($A$11:$A19)+2,FALSE)","v":28},{"$f":"HLOOKUP(AB$7,$J$67:$DO$121,ROWS($A$11:$A19)+2,FALSE)","v":163},{"$f":"HLOOKUP(AC$7,$J$67:$DO$121,ROWS($A$11:$A19)+2,FALSE)","v":0},{"$f":"HLOOKUP(AD$7,$J$67:$DO$121,ROWS($A$11:$A19)+2,FALSE)","v":294},{"$f":"HLOOKUP(AE$7,$J$67:$DO$121,ROWS($A$11:$A19)+2,FALSE)","v":4969},{"$f":"HLOOKUP(AF$7,$J$67:$DO$121,ROWS($A$11:$A19)+2,FALSE)","v":689},{"$f":"HLOOKUP(AG$7,$J$67:$DO$121,ROWS($A$11:$A19)+2,FALSE)","v":61},{"$f":"HLOOKUP(AH$7,$J$67:$DO$121,ROWS($A$11:$A19)+2,FALSE)","v":55},{"$f":"HLOOKUP(AI$7,$J$67:$DO$121,ROWS($A$11:$A19)+2,FALSE)","v":0},{"$f":"HLOOKUP(AJ$7,$J$67:$DO$121,ROWS($A$11:$A19)+2,FALSE)","v":539},{"$f":"HLOOKUP(AK$7,$J$67:$DO$121,ROWS($A$11:$A19)+2,FALSE)","v":73},{"$f":"HLOOKUP(AL$7,$J$67:$DO$121,ROWS($A$11:$A19)+2,FALSE)","v":0},{"$f":"HLOOKUP(AM$7,$J$67:$DO$121,ROWS($A$11:$A19)+2,FALSE)","v":106},{"$f":"HLOOKUP(AN$7,$J$67:$DO$121,ROWS($A$11:$A19)+2,FALSE)","v":139},{"$f":"HLOOKUP(AO$7,$J$67:$DO$121,ROWS($A$11:$A19)+2,FALSE)","v":3678},{"$f":"HLOOKUP(AP$7,$J$67:$DO$121,ROWS($A$11:$A19)+2,FALSE)","v":59},{"$f":"HLOOKUP(AQ$7,$J$67:$DO$121,ROWS($A$11:$A19)+2,FALSE)","v":4251},{"$f":"HLOOKUP(AR$7,$J$67:$DO$121,ROWS($A$11:$A19)+2,FALSE)","v":424},{"$f":"HLOOKUP(AS$7,$J$67:$DO$121,ROWS($A$11:$A19)+2,FALSE)","v":0},{"$f":"HLOOKUP(AT$7,$J$67:$DO$121,ROWS($A$11:$A19)+2,FALSE)","v":325},{"$f":"HLOOKUP(AU$7,$J$67:$DO$121,ROWS($A$11:$A19)+2,FALSE)","v":0},{"$f":"HLOOKUP(AV$7,$J$67:$DO$121,ROWS($A$11:$A19)+2,FALSE)","v":0},{"$f":"HLOOKUP(AW$7,$J$67:$DO$121,ROWS($A$11:$A19)+2,FALSE)","v":7318},{"$f":"HLOOKUP(AX$7,$J$67:$DO$121,ROWS($A$11:$A19)+2,FALSE)","v":149},{"$f":"HLOOKUP(AY$7,$J$67:$DO$121,ROWS($A$11:$A19)+2,FALSE)","v":195},{"$f":"HLOOKUP(AZ$7,$J$67:$DO$121,ROWS($A$11:$A19)+2,FALSE)","v":0},{"$f":"HLOOKUP(BA$7,$J$67:$DO$121,ROWS($A$11:$A19)+2,FALSE)","v":146},{"$f":"HLOOKUP(BB$7,$J$67:$DO$121,ROWS($A$11:$A19)+2,FALSE)","v":178},{"$f":"HLOOKUP(BC$7,$J$67:$DO$121,ROWS($A$11:$A19)+2,FALSE)","v":0},{"$f":"HLOOKUP(BD$7,$J$67:$DO$121,ROWS($A$11:$A19)+2,FALSE)","v":0},{"$f":"HLOOKUP(BE$7,$J$67:$DO$121,ROWS($A$11:$A19)+2,FALSE)","v":1051},{"$f":"HLOOKUP(BF$7,$J$67:$DO$121,ROWS($A$11:$A19)+2,FALSE)","v":377},{"$f":"HLOOKUP(BG$7,$J$67:$DO$121,ROWS($A$11:$A19)+2,FALSE)","v":0},{"$f":"HLOOKUP(BH$7,$J$67:$DO$121,ROWS($A$11:$A19)+2,FALSE)","v":0},{"$f":"HLOOKUP(BI$7,$J$67:$DO$121,ROWS($A$11:$A19)+2,FALSE)","v":0},{"$f":"HLOOKUP(BJ$7,$J$67:$DO$121,ROWS($A$11:$A19)+2,FALSE)","v":954},null,null,null,null,{"$f":"HLOOKUP(BO$7+0.5,$J$67:$DO$121,ROWS($A$11:$A19)+2,FALSE)","v":4030},{"$f":"HLOOKUP(BP$7+0.5,$J$67:$DO$121,ROWS($A$11:$A19)+2,FALSE)","v":211},{"$f":"HLOOKUP(BQ$7+0.5,$J$67:$DO$121,ROWS($A$11:$A19)+2,FALSE)","v":111},{"$f":"HLOOKUP(BR$7+0.5,$J$67:$DO$121,ROWS($A$11:$A19)+2,FALSE)","v":78},{"$f":"HLOOKUP(BS$7+0.5,$J$67:$DO$121,ROWS($A$11:$A19)+2,FALSE)","v":265},{"$f":"HLOOKUP(BT$7+0.5,$J$67:$DO$121,ROWS($A$11:$A19)+2,FALSE)","v":290},{"$f":"HLOOKUP(BU$7+0.5,$J$67:$DO$121,ROWS($A$11:$A19)+2,FALSE)","v":249},{"$f":"HLOOKUP(BV$7+0.5,$J$67:$DO$121,ROWS($A$11:$A19)+2,FALSE)","v":693},{"$f":"HLOOKUP(BW$7+0.5,$J$67:$DO$121,ROWS($A$11:$A19)+2,FALSE)","v":"N/A"},{"$f":"HLOOKUP(BX$7+0.5,$J$67:$DO$121,ROWS($A$11:$A19)+2,FALSE)","v":467},{"$f":"HLOOKUP(BY$7+0.5,$J$67:$DO$121,ROWS($A$11:$A19)+2,FALSE)","v":996},{"$f":"HLOOKUP(BZ$7+0.5,$J$67:$DO$121,ROWS($A$11:$A19)+2,FALSE)","v":575},{"$f":"HLOOKUP(CA$7+0.5,$J$67:$DO$121,ROWS($A$11:$A19)+2,FALSE)","v":265},{"$f":"HLOOKUP(CB$7+0.5,$J$67:$DO$121,ROWS($A$11:$A19)+2,FALSE)","v":265},{"$f":"HLOOKUP(CC$7+0.5,$J$67:$DO$121,ROWS($A$11:$A19)+2,FALSE)","v":583},{"$f":"HLOOKUP(CD$7+0.5,$J$67:$DO$121,ROWS($A$11:$A19)+2,FALSE)","v":265},{"$f":"HLOOKUP(CE$7+0.5,$J$67:$DO$121,ROWS($A$11:$A19)+2,FALSE)","v":265},{"$f":"HLOOKUP(CF$7+0.5,$J$67:$DO$121,ROWS($A$11:$A19)+2,FALSE)","v":47},{"$f":"HLOOKUP(CG$7+0.5,$J$67:$DO$121,ROWS($A$11:$A19)+2,FALSE)","v":273},{"$f":"HLOOKUP(CH$7+0.5,$J$67:$DO$121,ROWS($A$11:$A19)+2,FALSE)","v":265},{"$f":"HLOOKUP(CI$7+0.5,$J$67:$DO$121,ROWS($A$11:$A19)+2,FALSE)","v":406},{"$f":"HLOOKUP(CJ$7+0.5,$J$67:$DO$121,ROWS($A$11:$A19)+2,FALSE)","v":1144},{"$f":"HLOOKUP(CK$7+0.5,$J$67:$DO$121,ROWS($A$11:$A19)+2,FALSE)","v":538},{"$f":"HLOOKUP(CL$7+0.5,$J$67:$DO$121,ROWS($A$11:$A19)+2,FALSE)","v":102},{"$f":"HLOOKUP(CM$7+0.5,$J$67:$DO$121,ROWS($A$11:$A19)+2,FALSE)","v":92},{"$f":"HLOOKUP(CN$7+0.5,$J$67:$DO$121,ROWS($A$11:$A19)+2,FALSE)","v":265},{"$f":"HLOOKUP(CO$7+0.5,$J$67:$DO$121,ROWS($A$11:$A19)+2,FALSE)","v":842},{"$f":"HLOOKUP(CP$7+0.5,$J$67:$DO$121,ROWS($A$11:$A19)+2,FALSE)","v":120},{"$f":"HLOOKUP(CQ$7+0.5,$J$67:$DO$121,ROWS($A$11:$A19)+2,FALSE)","v":265},{"$f":"HLOOKUP(CR$7+0.5,$J$67:$DO$121,ROWS($A$11:$A19)+2,FALSE)","v":183},{"$f":"HLOOKUP(CS$7+0.5,$J$67:$DO$121,ROWS($A$11:$A19)+2,FALSE)","v":246},{"$f":"HLOOKUP(CT$7+0.5,$J$67:$DO$121,ROWS($A$11:$A19)+2,FALSE)","v":935},{"$f":"HLOOKUP(CU$7+0.5,$J$67:$DO$121,ROWS($A$11:$A19)+2,FALSE)","v":98},{"$f":"HLOOKUP(CV$7+0.5,$J$67:$DO$121,ROWS($A$11:$A19)+2,FALSE)","v":1555},{"$f":"HLOOKUP(CW$7+0.5,$J$67:$DO$121,ROWS($A$11:$A19)+2,FALSE)","v":466},{"$f":"HLOOKUP(CX$7+0.5,$J$67:$DO$121,ROWS($A$11:$A19)+2,FALSE)","v":265},{"$f":"HLOOKUP(CY$7+0.5,$J$67:$DO$121,ROWS($A$11:$A19)+2,FALSE)","v":339},{"$f":"HLOOKUP(CZ$7+0.5,$J$67:$DO$121,ROWS($A$11:$A19)+2,FALSE)","v":265},{"$f":"HLOOKUP(DA$7+0.5,$J$67:$DO$121,ROWS($A$11:$A19)+2,FALSE)","v":265},{"$f":"HLOOKUP(DB$7+0.5,$J$67:$DO$121,ROWS($A$11:$A19)+2,FALSE)","v":2368},{"$f":"HLOOKUP(DC$7+0.5,$J$67:$DO$121,ROWS($A$11:$A19)+2,FALSE)","v":241},{"$f":"HLOOKUP(DD$7+0.5,$J$67:$DO$121,ROWS($A$11:$A19)+2,FALSE)","v":272},{"$f":"HLOOKUP(DE$7+0.5,$J$67:$DO$121,ROWS($A$11:$A19)+2,FALSE)","v":265},{"$f":"HLOOKUP(DF$7+0.5,$J$67:$DO$121,ROWS($A$11:$A19)+2,FALSE)","v":248},{"$f":"HLOOKUP(DG$7+0.5,$J$67:$DO$121,ROWS($A$11:$A19)+2,FALSE)","v":313},{"$f":"HLOOKUP(DH$7+0.5,$J$67:$DO$121,ROWS($A$11:$A19)+2,FALSE)","v":265},{"$f":"HLOOKUP(DI$7+0.5,$J$67:$DO$121,ROWS($A$11:$A19)+2,FALSE)","v":265},{"$f":"HLOOKUP(DJ$7+0.5,$J$67:$DO$121,ROWS($A$11:$A19)+2,FALSE)","v":538},{"$f":"HLOOKUP(DK$7+0.5,$J$67:$DO$121,ROWS($A$11:$A19)+2,FALSE)","v":280},{"$f":"HLOOKUP(DL$7+0.5,$J$67:$DO$121,ROWS($A$11:$A19)+2,FALSE)","v":265},{"$f":"HLOOKUP(DM$7+0.5,$J$67:$DO$121,ROWS($A$11:$A19)+2,FALSE)","v":265},{"$f":"HLOOKUP(DN$7+0.5,$J$67:$DO$121,ROWS($A$11:$A19)+2,FALSE)","v":265},{"$f":"HLOOKUP(DO$7+0.5,$J$67:$DO$121,ROWS($A$11:$A19)+2,FALSE)","v":1095}]
[null,"District of Columbia ",596747,1124,474676,8281,63766,6163,7.599326672726078E-3,{"$f":"HLOOKUP(J$7,$J$67:$DO$121,ROWS($A$11:$A20)+2,FALSE)","v":51244},{"$f":"HLOOKUP(K$7,$J$67:$DO$121,ROWS($A$11:$A20)+2,FALSE)","v":360},{"$f":"HLOOKUP(L$7,$J$67:$DO$121,ROWS($A$11:$A20)+2,FALSE)","v":591},{"$f":"HLOOKUP(M$7,$J$67:$DO$121,ROWS($A$11:$A20)+2,FALSE)","v":662},{"$f":"HLOOKUP(N$7,$J$67:$DO$121,ROWS($A$11:$A20)+2,FALSE)","v":155},{"$f":"HLOOKUP(O$7,$J$67:$DO$121,ROWS($A$11:$A20)+2,FALSE)","v":4205},{"$f":"HLOOKUP(P$7,$J$67:$DO$121,ROWS($A$11:$A20)+2,FALSE)","v":656},{"$f":"HLOOKUP(Q$7,$J$67:$DO$121,ROWS($A$11:$A20)+2,FALSE)","v":926},{"$f":"HLOOKUP(R$7,$J$67:$DO$121,ROWS($A$11:$A20)+2,FALSE)","v":0},{"$f":"HLOOKUP(S$7,$J$67:$DO$121,ROWS($A$11:$A20)+2,FALSE)","v":"N/A"},{"$f":"HLOOKUP(T$7,$J$67:$DO$121,ROWS($A$11:$A20)+2,FALSE)","v":1100},{"$f":"HLOOKUP(U$7,$J$67:$DO$121,ROWS($A$11:$A20)+2,FALSE)","v":1597},{"$f":"HLOOKUP(V$7,$J$67:$DO$121,ROWS($A$11:$A20)+2,FALSE)","v":0},{"$f":"HLOOKUP(W$7,$J$67:$DO$121,ROWS($A$11:$A20)+2,FALSE)","v":0},{"$f":"HLOOKUP(X$7,$J$67:$DO$121,ROWS($A$11:$A20)+2,FALSE)","v":615},{"$f":"HLOOKUP(Y$7,$J$67:$DO$121,ROWS($A$11:$A20)+2,FALSE)","v":711},{"$f":"HLOOKUP(Z$7,$J$67:$DO$121,ROWS($A$11:$A20)+2,FALSE)","v":392},{"$f":"HLOOKUP(AA$7,$J$67:$DO$121,ROWS($A$11:$A20)+2,FALSE)","v":83},{"$f":"HLOOKUP(AB$7,$J$67:$DO$121,ROWS($A$11:$A20)+2,FALSE)","v":94},{"$f":"HLOOKUP(AC$7,$J$67:$DO$121,ROWS($A$11:$A20)+2,FALSE)","v":0},{"$f":"HLOOKUP(AD$7,$J$67:$DO$121,ROWS($A$11:$A20)+2,FALSE)","v":76},{"$f":"HLOOKUP(AE$7,$J$67:$DO$121,ROWS($A$11:$A20)+2,FALSE)","v":13503},{"$f":"HLOOKUP(AF$7,$J$67:$DO$121,ROWS($A$11:$A20)+2,FALSE)","v":1376},{"$f":"HLOOKUP(AG$7,$J$67:$DO$121,ROWS($A$11:$A20)+2,FALSE)","v":126},{"$f":"HLOOKUP(AH$7,$J$67:$DO$121,ROWS($A$11:$A20)+2,FALSE)","v":87},{"$f":"HLOOKUP(AI$7,$J$67:$DO$121,ROWS($A$11:$A20)+2,FALSE)","v":0},{"$f":"HLOOKUP(AJ$7,$J$67:$DO$121,ROWS($A$11:$A20)+2,FALSE)","v":272},{"$f":"HLOOKUP(AK$7,$J$67:$DO$121,ROWS($A$11:$A20)+2,FALSE)","v":0},{"$f":"HLOOKUP(AL$7,$J$67:$DO$121,ROWS($A$11:$A20)+2,FALSE)","v":62},{"$f":"HLOOKUP(AM$7,$J$67:$DO$121,ROWS($A$11:$A20)+2,FALSE)","v":0},{"$f":"HLOOKUP(AN$7,$J$67:$DO$121,ROWS($A$11:$A20)+2,FALSE)","v":137},{"$f":"HLOOKUP(AO$7,$J$67:$DO$121,ROWS($A$11:$A20)+2,FALSE)","v":1924},{"$f":"HLOOKUP(AP$7,$J$67:$DO$121,ROWS($A$11:$A20)+2,FALSE)","v":61},{"$f":"HLOOKUP(AQ$7,$J$67:$DO$121,ROWS($A$11:$A20)+2,FALSE)","v":3852},{"$f":"HLOOKUP(AR$7,$J$67:$DO$121,ROWS($A$11:$A20)+2,FALSE)","v":1897},{"$f":"HLOOKUP(AS$7,$J$67:$DO$121,ROWS($A$11:$A20)+2,FALSE)","v":98},{"$f":"HLOOKUP(AT$7,$J$67:$DO$121,ROWS($A$11:$A20)+2,FALSE)","v":598},{"$f":"HLOOKUP(AU$7,$J$67:$DO$121,ROWS($A$11:$A20)+2,FALSE)","v":0},{"$f":"HLOOKUP(AV$7,$J$67:$DO$121,ROWS($A$11:$A20)+2,FALSE)","v":601},{"$f":"HLOOKUP(AW$7,$J$67:$DO$121,ROWS($A$11:$A20)+2,FALSE)","v":2378},{"$f":"HLOOKUP(AX$7,$J$67:$DO$121,ROWS($A$11:$A20)+2,FALSE)","v":249},{"$f":"HLOOKUP(AY$7,$J$67:$DO$121,ROWS($A$11:$A20)+2,FALSE)","v":380},{"$f":"HLOOKUP(AZ$7,$J$67:$DO$121,ROWS($A$11:$A20)+2,FALSE)","v":0},{"$f":"HLOOKUP(BA$7,$J$67:$DO$121,ROWS($A$11:$A20)+2,FALSE)","v":591},{"$f":"HLOOKUP(BB$7,$J$67:$DO$121,ROWS($A$11:$A20)+2,FALSE)","v":1180},{"$f":"HLOOKUP(BC$7,$J$67:$DO$121,ROWS($A$11:$A20)+2,FALSE)","v":0},{"$f":"HLOOKUP(BD$7,$J$67:$DO$121,ROWS($A$11:$A20)+2,FALSE)","v":199},{"$f":"HLOOKUP(BE$7,$J$67:$DO$121,ROWS($A$11:$A20)+2,FALSE)","v":7915},{"$f":"HLOOKUP(BF$7,$J$67:$DO$121,ROWS($A$11:$A20)+2,FALSE)","v":284},{"$f":"HLOOKUP(BG$7,$J$67:$DO$121,ROWS($A$11:$A20)+2,FALSE)","v":860},{"$f":"HLOOKUP(BH$7,$J$67:$DO$121,ROWS($A$11:$A20)+2,FALSE)","v":391},{"$f":"HLOOKUP(BI$7,$J$67:$DO$121,ROWS($A$11:$A20)+2,FALSE)","v":0},{"$f":"HLOOKUP(BJ$7,$J$67:$DO$121,ROWS($A$11:$A20)+2,FALSE)","v":0},null,null,null,null,{"$f":"HLOOKUP(BO$7+0.5,$J$67:$DO$121,ROWS($A$11:$A20)+2,FALSE)","v":4828},{"$f":"HLOOKUP(BP$7+0.5,$J$67:$DO$121,ROWS($A$11:$A20)+2,FALSE)","v":418},{"$f":"HLOOKUP(BQ$7+0.5,$J$67:$DO$121,ROWS($A$11:$A20)+2,FALSE)","v":529},{"$f":"HLOOKUP(BR$7+0.5,$J$67:$DO$121,ROWS($A$11:$A20)+2,FALSE)","v":466},{"$f":"HLOOKUP(BS$7+0.5,$J$67:$DO$121,ROWS($A$11:$A20)+2,FALSE)","v":195},{"$f":"HLOOKUP(BT$7+0.5,$J$67:$DO$121,ROWS($A$11:$A20)+2,FALSE)","v":1255},{"$f":"HLOOKUP(BU$7+0.5,$J$67:$DO$121,ROWS($A$11:$A20)+2,FALSE)","v":637},{"$f":"HLOOKUP(BV$7+0.5,$J$67:$DO$121,ROWS($A$11:$A20)+2,FALSE)","v":592},{"$f":"HLOOKUP(BW$7+0.5,$J$67:$DO$121,ROWS($A$11:$A20)+2,FALSE)","v":292},{"$f":"HLOOKUP(BX$7+0.5,$J$67:$DO$121,ROWS($A$11:$A20)+2,FALSE)","v":"N/A"},{"$f":"HLOOKUP(BY$7+0.5,$J$67:$DO$121,ROWS($A$11:$A20)+2,FALSE)","v":609},{"$f":"HLOOKUP(BZ$7+0.5,$J$67:$DO$121,ROWS($A$11:$A20)+2,FALSE)","v":795},{"$f":"HLOOKUP(CA$7+0.5,$J$67:$DO$121,ROWS($A$11:$A20)+2,FALSE)","v":292},{"$f":"HLOOKUP(CB$7+0.5,$J$67:$DO$121,ROWS($A$11:$A20)+2,FALSE)","v":292},{"$f":"HLOOKUP(CC$7+0.5,$J$67:$DO$121,ROWS($A$11:$A20)+2,FALSE)","v":373},{"$f":"HLOOKUP(CD$7+0.5,$J$67:$DO$121,ROWS($A$11:$A20)+2,FALSE)","v":461},{"$f":"HLOOKUP(CE$7+0.5,$J$67:$DO$121,ROWS($A$11:$A20)+2,FALSE)","v":377},{"$f":"HLOOKUP(CF$7+0.5,$J$67:$DO$121,ROWS($A$11:$A20)+2,FALSE)","v":137},{"$f":"HLOOKUP(CG$7+0.5,$J$67:$DO$121,ROWS($A$11:$A20)+2,FALSE)","v":155},{"$f":"HLOOKUP(CH$7+0.5,$J$67:$DO$121,ROWS($A$11:$A20)+2,FALSE)","v":292},{"$f":"HLOOKUP(CI$7+0.5,$J$67:$DO$121,ROWS($A$11:$A20)+2,FALSE)","v":121},{"$f":"HLOOKUP(CJ$7+0.5,$J$67:$DO$121,ROWS($A$11:$A20)+2,FALSE)","v":2647},{"$f":"HLOOKUP(CK$7+0.5,$J$67:$DO$121,ROWS($A$11:$A20)+2,FALSE)","v":540},{"$f":"HLOOKUP(CL$7+0.5,$J$67:$DO$121,ROWS($A$11:$A20)+2,FALSE)","v":153},{"$f":"HLOOKUP(CM$7+0.5,$J$67:$DO$121,ROWS($A$11:$A20)+2,FALSE)","v":105},{"$f":"HLOOKUP(CN$7+0.5,$J$67:$DO$121,ROWS($A$11:$A20)+2,FALSE)","v":292},{"$f":"HLOOKUP(CO$7+0.5,$J$67:$DO$121,ROWS($A$11:$A20)+2,FALSE)","v":371},{"$f":"HLOOKUP(CP$7+0.5,$J$67:$DO$121,ROWS($A$11:$A20)+2,FALSE)","v":292},{"$f":"HLOOKUP(CQ$7+0.5,$J$67:$DO$121,ROWS($A$11:$A20)+2,FALSE)","v":103},{"$f":"HLOOKUP(CR$7+0.5,$J$67:$DO$121,ROWS($A$11:$A20)+2,FALSE)","v":292},{"$f":"HLOOKUP(CS$7+0.5,$J$67:$DO$121,ROWS($A$11:$A20)+2,FALSE)","v":136},{"$f":"HLOOKUP(CT$7+0.5,$J$67:$DO$121,ROWS($A$11:$A20)+2,FALSE)","v":694},{"$f":"HLOOKUP(CU$7+0.5,$J$67:$DO$121,ROWS($A$11:$A20)+2,FALSE)","v":100},{"$f":"HLOOKUP(CV$7+0.5,$J$67:$DO$121,ROWS($A$11:$A20)+2,FALSE)","v":1325},{"$f":"HLOOKUP(CW$7+0.5,$J$67:$DO$121,ROWS($A$11:$A20)+2,FALSE)","v":1089},{"$f":"HLOOKUP(CX$7+0.5,$J$67:$DO$121,ROWS($A$11:$A20)+2,FALSE)","v":165},{"$f":"HLOOKUP(CY$7+0.5,$J$67:$DO$121,ROWS($A$11:$A20)+2,FALSE)","v":359},{"$f":"HLOOKUP(CZ$7+0.5,$J$67:$DO$121,ROWS($A$11:$A20)+2,FALSE)","v":292},{"$f":"HLOOKUP(DA$7+0.5,$J$67:$DO$121,ROWS($A$11:$A20)+2,FALSE)","v":520},{"$f":"HLOOKUP(DB$7+0.5,$J$67:$DO$121,ROWS($A$11:$A20)+2,FALSE)","v":771},{"$f":"HLOOKUP(DC$7+0.5,$J$67:$DO$121,ROWS($A$11:$A20)+2,FALSE)","v":206},{"$f":"HLOOKUP(DD$7+0.5,$J$67:$DO$121,ROWS($A$11:$A20)+2,FALSE)","v":339},{"$f":"HLOOKUP(DE$7+0.5,$J$67:$DO$121,ROWS($A$11:$A20)+2,FALSE)","v":292},{"$f":"HLOOKUP(DF$7+0.5,$J$67:$DO$121,ROWS($A$11:$A20)+2,FALSE)","v":543},{"$f":"HLOOKUP(DG$7+0.5,$J$67:$DO$121,ROWS($A$11:$A20)+2,FALSE)","v":605},{"$f":"HLOOKUP(DH$7+0.5,$J$67:$DO$121,ROWS($A$11:$A20)+2,FALSE)","v":292},{"$f":"HLOOKUP(DI$7+0.5,$J$67:$DO$121,ROWS($A$11:$A20)+2,FALSE)","v":245},{"$f":"HLOOKUP(DJ$7+0.5,$J$67:$DO$121,ROWS($A$11:$A20)+2,FALSE)","v":1638},{"$f":"HLOOKUP(DK$7+0.5,$J$67:$DO$121,ROWS($A$11:$A20)+2,FALSE)","v":220},{"$f":"HLOOKUP(DL$7+0.5,$J$67:$DO$121,ROWS($A$11:$A20)+2,FALSE)","v":754},{"$f":"HLOOKUP(DM$7+0.5,$J$67:$DO$121,ROWS($A$11:$A20)+2,FALSE)","v":325},{"$f":"HLOOKUP(DN$7+0.5,$J$67:$DO$121,ROWS($A$11:$A20)+2,FALSE)","v":292},{"$f":"HLOOKUP(DO$7+0.5,$J$67:$DO$121,ROWS($A$11:$A20)+2,FALSE)","v":292}]
[null,"Florida",18647600,7733,15554008,45602,2459530,38387,7.1610944845562866E-2,{"$f":"HLOOKUP(J$7,$J$67:$DO$121,ROWS($A$11:$A21)+2,FALSE)","v":482889},{"$f":"HLOOKUP(K$7,$J$67:$DO$121,ROWS($A$11:$A21)+2,FALSE)","v":15830},{"$f":"HLOOKUP(L$7,$J$67:$DO$121,ROWS($A$11:$A21)+2,FALSE)","v":5887},{"$f":"HLOOKUP(M$7,$J$67:$DO$121,ROWS($A$11:$A21)+2,FALSE)","v":3907},{"$f":"HLOOKUP(N$7,$J$67:$DO$121,ROWS($A$11:$A21)+2,FALSE)","v":3611},{"$f":"HLOOKUP(O$7,$J$67:$DO$121,ROWS($A$11:$A21)+2,FALSE)","v":22130},{"$f":"HLOOKUP(P$7,$J$67:$DO$121,ROWS($A$11:$A21)+2,FALSE)","v":6428},{"$f":"HLOOKUP(Q$7,$J$67:$DO$121,ROWS($A$11:$A21)+2,FALSE)","v":11183},{"$f":"HLOOKUP(R$7,$J$67:$DO$121,ROWS($A$11:$A21)+2,FALSE)","v":3099},{"$f":"HLOOKUP(S$7,$J$67:$DO$121,ROWS($A$11:$A21)+2,FALSE)","v":1110},{"$f":"HLOOKUP(T$7,$J$67:$DO$121,ROWS($A$11:$A21)+2,FALSE)","v":"N/A"},{"$f":"HLOOKUP(U$7,$J$67:$DO$121,ROWS($A$11:$A21)+2,FALSE)","v":35615},{"$f":"HLOOKUP(V$7,$J$67:$DO$121,ROWS($A$11:$A21)+2,FALSE)","v":2021},{"$f":"HLOOKUP(W$7,$J$67:$DO$121,ROWS($A$11:$A21)+2,FALSE)","v":884},{"$f":"HLOOKUP(X$7,$J$67:$DO$121,ROWS($A$11:$A21)+2,FALSE)","v":17432},{"$f":"HLOOKUP(Y$7,$J$67:$DO$121,ROWS($A$11:$A21)+2,FALSE)","v":9030},{"$f":"HLOOKUP(Z$7,$J$67:$DO$121,ROWS($A$11:$A21)+2,FALSE)","v":2921},{"$f":"HLOOKUP(AA$7,$J$67:$DO$121,ROWS($A$11:$A21)+2,FALSE)","v":4136},{"$f":"HLOOKUP(AB$7,$J$67:$DO$121,ROWS($A$11:$A21)+2,FALSE)","v":6321},{"$f":"HLOOKUP(AC$7,$J$67:$DO$121,ROWS($A$11:$A21)+2,FALSE)","v":7232},{"$f":"HLOOKUP(AD$7,$J$67:$DO$121,ROWS($A$11:$A21)+2,FALSE)","v":5497},{"$f":"HLOOKUP(AE$7,$J$67:$DO$121,ROWS($A$11:$A21)+2,FALSE)","v":13241},{"$f":"HLOOKUP(AF$7,$J$67:$DO$121,ROWS($A$11:$A21)+2,FALSE)","v":13900},{"$f":"HLOOKUP(AG$7,$J$67:$DO$121,ROWS($A$11:$A21)+2,FALSE)","v":21359},{"$f":"HLOOKUP(AH$7,$J$67:$DO$121,ROWS($A$11:$A21)+2,FALSE)","v":5439},{"$f":"HLOOKUP(AI$7,$J$67:$DO$121,ROWS($A$11:$A21)+2,FALSE)","v":7929},{"$f":"HLOOKUP(AJ$7,$J$67:$DO$121,ROWS($A$11:$A21)+2,FALSE)","v":7984},{"$f":"HLOOKUP(AK$7,$J$67:$DO$121,ROWS($A$11:$A21)+2,FALSE)","v":338},{"$f":"HLOOKUP(AL$7,$J$67:$DO$121,ROWS($A$11:$A21)+2,FALSE)","v":1544},{"$f":"HLOOKUP(AM$7,$J$67:$DO$121,ROWS($A$11:$A21)+2,FALSE)","v":7050},{"$f":"HLOOKUP(AN$7,$J$67:$DO$121,ROWS($A$11:$A21)+2,FALSE)","v":3645},{"$f":"HLOOKUP(AO$7,$J$67:$DO$121,ROWS($A$11:$A21)+2,FALSE)","v":22344},{"$f":"HLOOKUP(AP$7,$J$67:$DO$121,ROWS($A$11:$A21)+2,FALSE)","v":900},{"$f":"HLOOKUP(AQ$7,$J$67:$DO$121,ROWS($A$11:$A21)+2,FALSE)","v":55011},{"$f":"HLOOKUP(AR$7,$J$67:$DO$121,ROWS($A$11:$A21)+2,FALSE)","v":19108},{"$f":"HLOOKUP(AS$7,$J$67:$DO$121,ROWS($A$11:$A21)+2,FALSE)","v":794},{"$f":"HLOOKUP(AT$7,$J$67:$DO$121,ROWS($A$11:$A21)+2,FALSE)","v":21047},{"$f":"HLOOKUP(AU$7,$J$67:$DO$121,ROWS($A$11:$A21)+2,FALSE)","v":3466},{"$f":"HLOOKUP(AV$7,$J$67:$DO$121,ROWS($A$11:$A21)+2,FALSE)","v":1655},{"$f":"HLOOKUP(AW$7,$J$67:$DO$121,ROWS($A$11:$A21)+2,FALSE)","v":19935},{"$f":"HLOOKUP(AX$7,$J$67:$DO$121,ROWS($A$11:$A21)+2,FALSE)","v":1982},{"$f":"HLOOKUP(AY$7,$J$67:$DO$121,ROWS($A$11:$A21)+2,FALSE)","v":10759},{"$f":"HLOOKUP(AZ$7,$J$67:$DO$121,ROWS($A$11:$A21)+2,FALSE)","v":430},{"$f":"HLOOKUP(BA$7,$J$67:$DO$121,ROWS($A$11:$A21)+2,FALSE)","v":12882},{"$f":"HLOOKUP(BB$7,$J$67:$DO$121,ROWS($A$11:$A21)+2,FALSE)","v":24039},{"$f":"HLOOKUP(BC$7,$J$67:$DO$121,ROWS($A$11:$A21)+2,FALSE)","v":2833},{"$f":"HLOOKUP(BD$7,$J$67:$DO$121,ROWS($A$11:$A21)+2,FALSE)","v":1442},{"$f":"HLOOKUP(BE$7,$J$67:$DO$121,ROWS($A$11:$A21)+2,FALSE)","v":20080},{"$f":"HLOOKUP(BF$7,$J$67:$DO$121,ROWS($A$11:$A21)+2,FALSE)","v":3573},{"$f":"HLOOKUP(BG$7,$J$67:$DO$121,ROWS($A$11:$A21)+2,FALSE)","v":5634},{"$f":"HLOOKUP(BH$7,$J$67:$DO$121,ROWS($A$11:$A21)+2,FALSE)","v":8081},{"$f":"HLOOKUP(BI$7,$J$67:$DO$121,ROWS($A$11:$A21)+2,FALSE)","v":191},{"$f":"HLOOKUP(BJ$7,$J$67:$DO$121,ROWS($A$11:$A21)+2,FALSE)","v":12968},null,null,null,null,{"$f":"HLOOKUP(BO$7+0.5,$J$67:$DO$121,ROWS($A$11:$A21)+2,FALSE)","v":22701},{"$f":"HLOOKUP(BP$7+0.5,$J$67:$DO$121,ROWS($A$11:$A21)+2,FALSE)","v":3829},{"$f":"HLOOKUP(BQ$7+0.5,$J$67:$DO$121,ROWS($A$11:$A21)+2,FALSE)","v":2502},{"$f":"HLOOKUP(BR$7+0.5,$J$67:$DO$121,ROWS($A$11:$A21)+2,FALSE)","v":1463},{"$f":"HLOOKUP(BS$7+0.5,$J$67:$DO$121,ROWS($A$11:$A21)+2,FALSE)","v":1562},{"$f":"HLOOKUP(BT$7+0.5,$J$67:$DO$121,ROWS($A$11:$A21)+2,FALSE)","v":3867},{"$f":"HLOOKUP(BU$7+0.5,$J$67:$DO$121,ROWS($A$11:$A21)+2,FALSE)","v":1941},{"$f":"HLOOKUP(BV$7+0.5,$J$67:$DO$121,ROWS($A$11:$A21)+2,FALSE)","v":2730},{"$f":"HLOOKUP(BW$7+0.5,$J$67:$DO$121,ROWS($A$11:$A21)+2,FALSE)","v":1603},{"$f":"HLOOKUP(BX$7+0.5,$J$67:$DO$121,ROWS($A$11:$A21)+2,FALSE)","v":564},{"$f":"HLOOKUP(BY$7+0.5,$J$67:$DO$121,ROWS($A$11:$A21)+2,FALSE)","v":"N/A"},{"$f":"HLOOKUP(BZ$7+0.5,$J$67:$DO$121,ROWS($A$11:$A21)+2,FALSE)","v":5500},{"$f":"HLOOKUP(CA$7+0.5,$J$67:$DO$121,ROWS($A$11:$A21)+2,FALSE)","v":990},{"$f":"HLOOKUP(CB$7+0.5,$J$67:$DO$121,ROWS($A$11:$A21)+2,FALSE)","v":747},{"$f":"HLOOKUP(CC$7+0.5,$J$67:$DO$121,ROWS($A$11:$A21)+2,FALSE)","v":3007},{"$f":"HLOOKUP(CD$7+0.5,$J$67:$DO$121,ROWS($A$11:$A21)+2,FALSE)","v":2849},{"$f":"HLOOKUP(CE$7+0.5,$J$67:$DO$121,ROWS($A$11:$A21)+2,FALSE)","v":1091},{"$f":"HLOOKUP(CF$7+0.5,$J$67:$DO$121,ROWS($A$11:$A21)+2,FALSE)","v":2062},{"$f":"HLOOKUP(CG$7+0.5,$J$67:$DO$121,ROWS($A$11:$A21)+2,FALSE)","v":1902},{"$f":"HLOOKUP(CH$7+0.5,$J$67:$DO$121,ROWS($A$11:$A21)+2,FALSE)","v":2781},{"$f":"HLOOKUP(CI$7+0.5,$J$67:$DO$121,ROWS($A$11:$A21)+2,FALSE)","v":1861},{"$f":"HLOOKUP(CJ$7+0.5,$J$67:$DO$121,ROWS($A$11:$A21)+2,FALSE)","v":2929},{"$f":"HLOOKUP(CK$7+0.5,$J$67:$DO$121,ROWS($A$11:$A21)+2,FALSE)","v":2269},{"$f":"HLOOKUP(CL$7+0.5,$J$67:$DO$121,ROWS($A$11:$A21)+2,FALSE)","v":4622},{"$f":"HLOOKUP(CM$7+0.5,$J$67:$DO$121,ROWS($A$11:$A21)+2,FALSE)","v":2349},{"$f":"HLOOKUP(CN$7+0.5,$J$67:$DO$121,ROWS($A$11:$A21)+2,FALSE)","v":3596},{"$f":"HLOOKUP(CO$7+0.5,$J$67:$DO$121,ROWS($A$11:$A21)+2,FALSE)","v":2232},{"$f":"HLOOKUP(CP$7+0.5,$J$67:$DO$121,ROWS($A$11:$A21)+2,FALSE)","v":289},{"$f":"HLOOKUP(CQ$7+0.5,$J$67:$DO$121,ROWS($A$11:$A21)+2,FALSE)","v":1314},{"$f":"HLOOKUP(CR$7+0.5,$J$67:$DO$121,ROWS($A$11:$A21)+2,FALSE)","v":3281},{"$f":"HLOOKUP(CS$7+0.5,$J$67:$DO$121,ROWS($A$11:$A21)+2,FALSE)","v":1193},{"$f":"HLOOKUP(CT$7+0.5,$J$67:$DO$121,ROWS($A$11:$A21)+2,FALSE)","v":3256},{"$f":"HLOOKUP(CU$7+0.5,$J$67:$DO$121,ROWS($A$11:$A21)+2,FALSE)","v":872},{"$f":"HLOOKUP(CV$7+0.5,$J$67:$DO$121,ROWS($A$11:$A21)+2,FALSE)","v":6848},{"$f":"HLOOKUP(CW$7+0.5,$J$67:$DO$121,ROWS($A$11:$A21)+2,FALSE)","v":3464},{"$f":"HLOOKUP(CX$7+0.5,$J$67:$DO$121,ROWS($A$11:$A21)+2,FALSE)","v":720},{"$f":"HLOOKUP(CY$7+0.5,$J$67:$DO$121,ROWS($A$11:$A21)+2,FALSE)","v":3825},{"$f":"HLOOKUP(CZ$7+0.5,$J$67:$DO$121,ROWS($A$11:$A21)+2,FALSE)","v":1518},{"$f":"HLOOKUP(DA$7+0.5,$J$67:$DO$121,ROWS($A$11:$A21)+2,FALSE)","v":1187},{"$f":"HLOOKUP(DB$7+0.5,$J$67:$DO$121,ROWS($A$11:$A21)+2,FALSE)","v":3976},{"$f":"HLOOKUP(DC$7+0.5,$J$67:$DO$121,ROWS($A$11:$A21)+2,FALSE)","v":813},{"$f":"HLOOKUP(DD$7+0.5,$J$67:$DO$121,ROWS($A$11:$A21)+2,FALSE)","v":2906},{"$f":"HLOOKUP(DE$7+0.5,$J$67:$DO$121,ROWS($A$11:$A21)+2,FALSE)","v":473},{"$f":"HLOOKUP(DF$7+0.5,$J$67:$DO$121,ROWS($A$11:$A21)+2,FALSE)","v":2482},{"$f":"HLOOKUP(DG$7+0.5,$J$67:$DO$121,ROWS($A$11:$A21)+2,FALSE)","v":5038},{"$f":"HLOOKUP(DH$7+0.5,$J$67:$DO$121,ROWS($A$11:$A21)+2,FALSE)","v":1249},{"$f":"HLOOKUP(DI$7+0.5,$J$67:$DO$121,ROWS($A$11:$A21)+2,FALSE)","v":935},{"$f":"HLOOKUP(DJ$7+0.5,$J$67:$DO$121,ROWS($A$11:$A21)+2,FALSE)","v":4137},{"$f":"HLOOKUP(DK$7+0.5,$J$67:$DO$121,ROWS($A$11:$A21)+2,FALSE)","v":1239},{"$f":"HLOOKUP(DL$7+0.5,$J$67:$DO$121,ROWS($A$11:$A21)+2,FALSE)","v":2872},{"$f":"HLOOKUP(DM$7+0.5,$J$67:$DO$121,ROWS($A$11:$A21)+2,FALSE)","v":2929},{"$f":"HLOOKUP(DN$7+0.5,$J$67:$DO$121,ROWS($A$11:$A21)+2,FALSE)","v":258},{"$f":"HLOOKUP(DO$7+0.5,$J$67:$DO$121,ROWS($A$11:$A21)+2,FALSE)","v":4149}]
[null,"Georgia",9587237,5924,8015409,37393,1278548,36794,3.6993997979306352E-2,{"$f":"HLOOKUP(J$7,$J$67:$DO$121,ROWS($A$11:$A22)+2,FALSE)","v":249459},{"$f":"HLOOKUP(K$7,$J$67:$DO$121,ROWS($A$11:$A22)+2,FALSE)","v":13840},{"$f":"HLOOKUP(L$7,$J$67:$DO$121,ROWS($A$11:$A22)+2,FALSE)","v":3645},{"$f":"HLOOKUP(M$7,$J$67:$DO$121,ROWS($A$11:$A22)+2,FALSE)","v":2554},{"$f":"HLOOKUP(N$7,$J$67:$DO$121,ROWS($A$11:$A22)+2,FALSE)","v":599},{"$f":"HLOOKUP(O$7,$J$67:$DO$121,ROWS($A$11:$A22)+2,FALSE)","v":8909},{"$f":"HLOOKUP(P$7,$J$67:$DO$121,ROWS($A$11:$A22)+2,FALSE)","v":3224},{"$f":"HLOOKUP(Q$7,$J$67:$DO$121,ROWS($A$11:$A22)+2,FALSE)","v":2619},{"$f":"HLOOKUP(R$7,$J$67:$DO$121,ROWS($A$11:$A22)+2,FALSE)","v":837},{"$f":"HLOOKUP(S$7,$J$67:$DO$121,ROWS($A$11:$A22)+2,FALSE)","v":1708},{"$f":"HLOOKUP(T$7,$J$67:$DO$121,ROWS($A$11:$A22)+2,FALSE)","v":49901},{"$f":"HLOOKUP(U$7,$J$67:$DO$121,ROWS($A$11:$A22)+2,FALSE)","v":"N/A"},{"$f":"HLOOKUP(V$7,$J$67:$DO$121,ROWS($A$11:$A22)+2,FALSE)","v":1040},{"$f":"HLOOKUP(W$7,$J$67:$DO$121,ROWS($A$11:$A22)+2,FALSE)","v":414},{"$f":"HLOOKUP(X$7,$J$67:$DO$121,ROWS($A$11:$A22)+2,FALSE)","v":9736},{"$f":"HLOOKUP(Y$7,$J$67:$DO$121,ROWS($A$11:$A22)+2,FALSE)","v":2649},{"$f":"HLOOKUP(Z$7,$J$67:$DO$121,ROWS($A$11:$A22)+2,FALSE)","v":1096},{"$f":"HLOOKUP(AA$7,$J$67:$DO$121,ROWS($A$11:$A22)+2,FALSE)","v":1355},{"$f":"HLOOKUP(AB$7,$J$67:$DO$121,ROWS($A$11:$A22)+2,FALSE)","v":6525},{"$f":"HLOOKUP(AC$7,$J$67:$DO$121,ROWS($A$11:$A22)+2,FALSE)","v":3645},{"$f":"HLOOKUP(AD$7,$J$67:$DO$121,ROWS($A$11:$A22)+2,FALSE)","v":0},{"$f":"HLOOKUP(AE$7,$J$67:$DO$121,ROWS($A$11:$A22)+2,FALSE)","v":5382},{"$f":"HLOOKUP(AF$7,$J$67:$DO$121,ROWS($A$11:$A22)+2,FALSE)","v":3910},{"$f":"HLOOKUP(AG$7,$J$67:$DO$121,ROWS($A$11:$A22)+2,FALSE)","v":6857},{"$f":"HLOOKUP(AH$7,$J$67:$DO$121,ROWS($A$11:$A22)+2,FALSE)","v":1169},{"$f":"HLOOKUP(AI$7,$J$67:$DO$121,ROWS($A$11:$A22)+2,FALSE)","v":2380},{"$f":"HLOOKUP(AJ$7,$J$67:$DO$121,ROWS($A$11:$A22)+2,FALSE)","v":3072},{"$f":"HLOOKUP(AK$7,$J$67:$DO$121,ROWS($A$11:$A22)+2,FALSE)","v":52},{"$f":"HLOOKUP(AL$7,$J$67:$DO$121,ROWS($A$11:$A22)+2,FALSE)","v":148},{"$f":"HLOOKUP(AM$7,$J$67:$DO$121,ROWS($A$11:$A22)+2,FALSE)","v":1155},{"$f":"HLOOKUP(AN$7,$J$67:$DO$121,ROWS($A$11:$A22)+2,FALSE)","v":162},{"$f":"HLOOKUP(AO$7,$J$67:$DO$121,ROWS($A$11:$A22)+2,FALSE)","v":4151},{"$f":"HLOOKUP(AP$7,$J$67:$DO$121,ROWS($A$11:$A22)+2,FALSE)","v":826},{"$f":"HLOOKUP(AQ$7,$J$67:$DO$121,ROWS($A$11:$A22)+2,FALSE)","v":12472},{"$f":"HLOOKUP(AR$7,$J$67:$DO$121,ROWS($A$11:$A22)+2,FALSE)","v":15361},{"$f":"HLOOKUP(AS$7,$J$67:$DO$121,ROWS($A$11:$A22)+2,FALSE)","v":0},{"$f":"HLOOKUP(AT$7,$J$67:$DO$121,ROWS($A$11:$A22)+2,FALSE)","v":9323},{"$f":"HLOOKUP(AU$7,$J$67:$DO$121,ROWS($A$11:$A22)+2,FALSE)","v":2070},{"$f":"HLOOKUP(AV$7,$J$67:$DO$121,ROWS($A$11:$A22)+2,FALSE)","v":843},{"$f":"HLOOKUP(AW$7,$J$67:$DO$121,ROWS($A$11:$A22)+2,FALSE)","v":6294},{"$f":"HLOOKUP(AX$7,$J$67:$DO$121,ROWS($A$11:$A22)+2,FALSE)","v":43},{"$f":"HLOOKUP(AY$7,$J$67:$DO$121,ROWS($A$11:$A22)+2,FALSE)","v":15562},{"$f":"HLOOKUP(AZ$7,$J$67:$DO$121,ROWS($A$11:$A22)+2,FALSE)","v":557},{"$f":"HLOOKUP(BA$7,$J$67:$DO$121,ROWS($A$11:$A22)+2,FALSE)","v":14445},{"$f":"HLOOKUP(BB$7,$J$67:$DO$121,ROWS($A$11:$A22)+2,FALSE)","v":11424},{"$f":"HLOOKUP(BC$7,$J$67:$DO$121,ROWS($A$11:$A22)+2,FALSE)","v":380},{"$f":"HLOOKUP(BD$7,$J$67:$DO$121,ROWS($A$11:$A22)+2,FALSE)","v":361},{"$f":"HLOOKUP(BE$7,$J$67:$DO$121,ROWS($A$11:$A22)+2,FALSE)","v":8393},{"$f":"HLOOKUP(BF$7,$J$67:$DO$121,ROWS($A$11:$A22)+2,FALSE)","v":4495},{"$f":"HLOOKUP(BG$7,$J$67:$DO$121,ROWS($A$11:$A22)+2,FALSE)","v":358},{"$f":"HLOOKUP(BH$7,$J$67:$DO$121,ROWS($A$11:$A22)+2,FALSE)","v":3416},{"$f":"HLOOKUP(BI$7,$J$67:$DO$121,ROWS($A$11:$A22)+2,FALSE)","v":102},{"$f":"HLOOKUP(BJ$7,$J$67:$DO$121,ROWS($A$11:$A22)+2,FALSE)","v":1010},{"$f":"MAX(L22:BJ22)","v":49901},null,null,null,{"$f":"HLOOKUP(BO$7+0.5,$J$67:$DO$121,ROWS($A$11:$A22)+2,FALSE)","v":15858},{"$f":"HLOOKUP(BP$7+0.5,$J$67:$DO$121,ROWS($A$11:$A22)+2,FALSE)","v":2473},{"$f":"HLOOKUP(BQ$7+0.5,$J$67:$DO$121,ROWS($A$11:$A22)+2,FALSE)","v":1932},{"$f":"HLOOKUP(BR$7+0.5,$J$67:$DO$121,ROWS($A$11:$A22)+2,FALSE)","v":1303},{"$f":"HLOOKUP(BS$7+0.5,$J$67:$DO$121,ROWS($A$11:$A22)+2,FALSE)","v":436},{"$f":"HLOOKUP(BT$7+0.5,$J$67:$DO$121,ROWS($A$11:$A22)+2,FALSE)","v":2412},{"$f":"HLOOKUP(BU$7+0.5,$J$67:$DO$121,ROWS($A$11:$A22)+2,FALSE)","v":2058},{"$f":"HLOOKUP(BV$7+0.5,$J$67:$DO$121,ROWS($A$11:$A22)+2,FALSE)","v":1473},{"$f":"HLOOKUP(BW$7+0.5,$J$67:$DO$121,ROWS($A$11:$A22)+2,FALSE)","v":753},{"$f":"HLOOKUP(BX$7+0.5,$J$67:$DO$121,ROWS($A$11:$A22)+2,FALSE)","v":1278},{"$f":"HLOOKUP(BY$7+0.5,$J$67:$DO$121,ROWS($A$11:$A22)+2,FALSE)","v":5558},{"$f":"HLOOKUP(BZ$7+0.5,$J$67:$DO$121,ROWS($A$11:$A22)+2,FALSE)","v":"N/A"},{"$f":"HLOOKUP(CA$7+0.5,$J$67:$DO$121,ROWS($A$11:$A22)+2,FALSE)","v":658},{"$f":"HLOOKUP(CB$7+0.5,$J$67:$DO$121,ROWS($A$11:$A22)+2,FALSE)","v":478},{"$f":"HLOOKUP(CC$7+0.5,$J$67:$DO$121,ROWS($A$11:$A22)+2,FALSE)","v":3665},{"$f":"HLOOKUP(CD$7+0.5,$J$67:$DO$121,ROWS($A$11:$A22)+2,FALSE)","v":1023},{"$f":"HLOOKUP(CE$7+0.5,$J$67:$DO$121,ROWS($A$11:$A22)+2,FALSE)","v":821},{"$f":"HLOOKUP(CF$7+0.5,$J$67:$DO$121,ROWS($A$11:$A22)+2,FALSE)","v":1097},{"$f":"HLOOKUP(CG$7+0.5,$J$67:$DO$121,ROWS($A$11:$A22)+2,FALSE)","v":2248},{"$f":"HLOOKUP(CH$7+0.5,$J$67:$DO$121,ROWS($A$11:$A22)+2,FALSE)","v":1604},{"$f":"HLOOKUP(CI$7+0.5,$J$67:$DO$121,ROWS($A$11:$A22)+2,FALSE)","v":300},{"$f":"HLOOKUP(CJ$7+0.5,$J$67:$DO$121,ROWS($A$11:$A22)+2,FALSE)","v":1767},{"$f":"HLOOKUP(CK$7+0.5,$J$67:$DO$121,ROWS($A$11:$A22)+2,FALSE)","v":2127},{"$f":"HLOOKUP(CL$7+0.5,$J$67:$DO$121,ROWS($A$11:$A22)+2,FALSE)","v":1831},{"$f":"HLOOKUP(CM$7+0.5,$J$67:$DO$121,ROWS($A$11:$A22)+2,FALSE)","v":718},{"$f":"HLOOKUP(CN$7+0.5,$J$67:$DO$121,ROWS($A$11:$A22)+2,FALSE)","v":959},{"$f":"HLOOKUP(CO$7+0.5,$J$67:$DO$121,ROWS($A$11:$A22)+2,FALSE)","v":1087},{"$f":"HLOOKUP(CP$7+0.5,$J$67:$DO$121,ROWS($A$11:$A22)+2,FALSE)","v":92},{"$f":"HLOOKUP(CQ$7+0.5,$J$67:$DO$121,ROWS($A$11:$A22)+2,FALSE)","v":139},{"$f":"HLOOKUP(CR$7+0.5,$J$67:$DO$121,ROWS($A$11:$A22)+2,FALSE)","v":684},{"$f":"HLOOKUP(CS$7+0.5,$J$67:$DO$121,ROWS($A$11:$A22)+2,FALSE)","v":161},{"$f":"HLOOKUP(CT$7+0.5,$J$67:$DO$121,ROWS($A$11:$A22)+2,FALSE)","v":1203},{"$f":"HLOOKUP(CU$7+0.5,$J$67:$DO$121,ROWS($A$11:$A22)+2,FALSE)","v":509},{"$f":"HLOOKUP(CV$7+0.5,$J$67:$DO$121,ROWS($A$11:$A22)+2,FALSE)","v":2568},{"$f":"HLOOKUP(CW$7+0.5,$J$67:$DO$121,ROWS($A$11:$A22)+2,FALSE)","v":3426},{"$f":"HLOOKUP(CX$7+0.5,$J$67:$DO$121,ROWS($A$11:$A22)+2,FALSE)","v":300},{"$f":"HLOOKUP(CY$7+0.5,$J$67:$DO$121,ROWS($A$11:$A22)+2,FALSE)","v":2446},{"$f":"HLOOKUP(CZ$7+0.5,$J$67:$DO$121,ROWS($A$11:$A22)+2,FALSE)","v":1458},{"$f":"HLOOKUP(DA$7+0.5,$J$67:$DO$121,ROWS($A$11:$A22)+2,FALSE)","v":626},{"$f":"HLOOKUP(DB$7+0.5,$J$67:$DO$121,ROWS($A$11:$A22)+2,FALSE)","v":1914},{"$f":"HLOOKUP(DC$7+0.5,$J$67:$DO$121,ROWS($A$11:$A22)+2,FALSE)","v":70},{"$f":"HLOOKUP(DD$7+0.5,$J$67:$DO$121,ROWS($A$11:$A22)+2,FALSE)","v":3592},{"$f":"HLOOKUP(DE$7+0.5,$J$67:$DO$121,ROWS($A$11:$A22)+2,FALSE)","v":540},{"$f":"HLOOKUP(DF$7+0.5,$J$67:$DO$121,ROWS($A$11:$A22)+2,FALSE)","v":3273},{"$f":"HLOOKUP(DG$7+0.5,$J$67:$DO$121,ROWS($A$11:$A22)+2,FALSE)","v":2574},{"$f":"HLOOKUP(DH$7+0.5,$J$67:$DO$121,ROWS($A$11:$A22)+2,FALSE)","v":291},{"$f":"HLOOKUP(DI$7+0.5,$J$67:$DO$121,ROWS($A$11:$A22)+2,FALSE)","v":458},{"$f":"HLOOKUP(DJ$7+0.5,$J$67:$DO$121,ROWS($A$11:$A22)+2,FALSE)","v":2087},{"$f":"HLOOKUP(DK$7+0.5,$J$67:$DO$121,ROWS($A$11:$A22)+2,FALSE)","v":2034},{"$f":"HLOOKUP(DL$7+0.5,$J$67:$DO$121,ROWS($A$11:$A22)+2,FALSE)","v":295},{"$f":"HLOOKUP(DM$7+0.5,$J$67:$DO$121,ROWS($A$11:$A22)+2,FALSE)","v":2022},{"$f":"HLOOKUP(DN$7+0.5,$J$67:$DO$121,ROWS($A$11:$A22)+2,FALSE)","v":118},{"$f":"HLOOKUP(DO$7+0.5,$J$67:$DO$121,ROWS($A$11:$A22)+2,FALSE)","v":742}]
[null,"Hawaii",1346274,1690,1140572,10422,134315,9295,7.9458965430359851E-3,{"$f":"HLOOKUP(J$7,$J$67:$DO$121,ROWS($A$11:$A23)+2,FALSE)","v":53581},{"$f":"HLOOKUP(K$7,$J$67:$DO$121,ROWS($A$11:$A23)+2,FALSE)","v":749},{"$f":"HLOOKUP(L$7,$J$67:$DO$121,ROWS($A$11:$A23)+2,FALSE)","v":743},{"$f":"HLOOKUP(M$7,$J$67:$DO$121,ROWS($A$11:$A23)+2,FALSE)","v":1398},{"$f":"HLOOKUP(N$7,$J$67:$DO$121,ROWS($A$11:$A23)+2,FALSE)","v":0},{"$f":"HLOOKUP(O$7,$J$67:$DO$121,ROWS($A$11:$A23)+2,FALSE)","v":12677},{"$f":"HLOOKUP(P$7,$J$67:$DO$121,ROWS($A$11:$A23)+2,FALSE)","v":1073},{"$f":"HLOOKUP(Q$7,$J$67:$DO$121,ROWS($A$11:$A23)+2,FALSE)","v":307},{"$f":"HLOOKUP(R$7,$J$67:$DO$121,ROWS($A$11:$A23)+2,FALSE)","v":0},{"$f":"HLOOKUP(S$7,$J$67:$DO$121,ROWS($A$11:$A23)+2,FALSE)","v":0},{"$f":"HLOOKUP(T$7,$J$67:$DO$121,ROWS($A$11:$A23)+2,FALSE)","v":4599},{"$f":"HLOOKUP(U$7,$J$67:$DO$121,ROWS($A$11:$A23)+2,FALSE)","v":2013},{"$f":"HLOOKUP(V$7,$J$67:$DO$121,ROWS($A$11:$A23)+2,FALSE)","v":"N/A"},{"$f":"HLOOKUP(W$7,$J$67:$DO$121,ROWS($A$11:$A23)+2,FALSE)","v":42},{"$f":"HLOOKUP(X$7,$J$67:$DO$121,ROWS($A$11:$A23)+2,FALSE)","v":715},{"$f":"HLOOKUP(Y$7,$J$67:$DO$121,ROWS($A$11:$A23)+2,FALSE)","v":192},{"$f":"HLOOKUP(Z$7,$J$67:$DO$121,ROWS($A$11:$A23)+2,FALSE)","v":68},{"$f":"HLOOKUP(AA$7,$J$67:$DO$121,ROWS($A$11:$A23)+2,FALSE)","v":387},{"$f":"HLOOKUP(AB$7,$J$67:$DO$121,ROWS($A$11:$A23)+2,FALSE)","v":95},{"$f":"HLOOKUP(AC$7,$J$67:$DO$121,ROWS($A$11:$A23)+2,FALSE)","v":88},{"$f":"HLOOKUP(AD$7,$J$67:$DO$121,ROWS($A$11:$A23)+2,FALSE)","v":89},{"$f":"HLOOKUP(AE$7,$J$67:$DO$121,ROWS($A$11:$A23)+2,FALSE)","v":990},{"$f":"HLOOKUP(AF$7,$J$67:$DO$121,ROWS($A$11:$A23)+2,FALSE)","v":1283},{"$f":"HLOOKUP(AG$7,$J$67:$DO$121,ROWS($A$11:$A23)+2,FALSE)","v":627},{"$f":"HLOOKUP(AH$7,$J$67:$DO$121,ROWS($A$11:$A23)+2,FALSE)","v":476},{"$f":"HLOOKUP(AI$7,$J$67:$DO$121,ROWS($A$11:$A23)+2,FALSE)","v":234},{"$f":"HLOOKUP(AJ$7,$J$67:$DO$121,ROWS($A$11:$A23)+2,FALSE)","v":170},{"$f":"HLOOKUP(AK$7,$J$67:$DO$121,ROWS($A$11:$A23)+2,FALSE)","v":150},{"$f":"HLOOKUP(AL$7,$J$67:$DO$121,ROWS($A$11:$A23)+2,FALSE)","v":0},{"$f":"HLOOKUP(AM$7,$J$67:$DO$121,ROWS($A$11:$A23)+2,FALSE)","v":1925},{"$f":"HLOOKUP(AN$7,$J$67:$DO$121,ROWS($A$11:$A23)+2,FALSE)","v":496},{"$f":"HLOOKUP(AO$7,$J$67:$DO$121,ROWS($A$11:$A23)+2,FALSE)","v":443},{"$f":"HLOOKUP(AP$7,$J$67:$DO$121,ROWS($A$11:$A23)+2,FALSE)","v":11},{"$f":"HLOOKUP(AQ$7,$J$67:$DO$121,ROWS($A$11:$A23)+2,FALSE)","v":1339},{"$f":"HLOOKUP(AR$7,$J$67:$DO$121,ROWS($A$11:$A23)+2,FALSE)","v":1510},{"$f":"HLOOKUP(AS$7,$J$67:$DO$121,ROWS($A$11:$A23)+2,FALSE)","v":69},{"$f":"HLOOKUP(AT$7,$J$67:$DO$121,ROWS($A$11:$A23)+2,FALSE)","v":625},{"$f":"HLOOKUP(AU$7,$J$67:$DO$121,ROWS($A$11:$A23)+2,FALSE)","v":57},{"$f":"HLOOKUP(AV$7,$J$67:$DO$121,ROWS($A$11:$A23)+2,FALSE)","v":1834},{"$f":"HLOOKUP(AW$7,$J$67:$DO$121,ROWS($A$11:$A23)+2,FALSE)","v":553},{"$f":"HLOOKUP(AX$7,$J$67:$DO$121,ROWS($A$11:$A23)+2,FALSE)","v":644},{"$f":"HLOOKUP(AY$7,$J$67:$DO$121,ROWS($A$11:$A23)+2,FALSE)","v":322},{"$f":"HLOOKUP(AZ$7,$J$67:$DO$121,ROWS($A$11:$A23)+2,FALSE)","v":267},{"$f":"HLOOKUP(BA$7,$J$67:$DO$121,ROWS($A$11:$A23)+2,FALSE)","v":142},{"$f":"HLOOKUP(BB$7,$J$67:$DO$121,ROWS($A$11:$A23)+2,FALSE)","v":6694},{"$f":"HLOOKUP(BC$7,$J$67:$DO$121,ROWS($A$11:$A23)+2,FALSE)","v":467},{"$f":"HLOOKUP(BD$7,$J$67:$DO$121,ROWS($A$11:$A23)+2,FALSE)","v":0},{"$f":"HLOOKUP(BE$7,$J$67:$DO$121,ROWS($A$11:$A23)+2,FALSE)","v":2644},{"$f":"HLOOKUP(BF$7,$J$67:$DO$121,ROWS($A$11:$A23)+2,FALSE)","v":2705},{"$f":"HLOOKUP(BG$7,$J$67:$DO$121,ROWS($A$11:$A23)+2,FALSE)","v":483},{"$f":"HLOOKUP(BH$7,$J$67:$DO$121,ROWS($A$11:$A23)+2,FALSE)","v":1168},{"$f":"HLOOKUP(BI$7,$J$67:$DO$121,ROWS($A$11:$A23)+2,FALSE)","v":18},{"$f":"HLOOKUP(BJ$7,$J$67:$DO$121,ROWS($A$11:$A23)+2,FALSE)","v":0},null,null,null,null,{"$f":"HLOOKUP(BO$7+0.5,$J$67:$DO$121,ROWS($A$11:$A23)+2,FALSE)","v":6065},{"$f":"HLOOKUP(BP$7+0.5,$J$67:$DO$121,ROWS($A$11:$A23)+2,FALSE)","v":542},{"$f":"HLOOKUP(BQ$7+0.5,$J$67:$DO$121,ROWS($A$11:$A23)+2,FALSE)","v":609},{"$f":"HLOOKUP(BR$7+0.5,$J$67:$DO$121,ROWS($A$11:$A23)+2,FALSE)","v":849},{"$f":"HLOOKUP(BS$7+0.5,$J$67:$DO$121,ROWS($A$11:$A23)+2,FALSE)","v":275},{"$f":"HLOOKUP(BT$7+0.5,$J$67:$DO$121,ROWS($A$11:$A23)+2,FALSE)","v":2325},{"$f":"HLOOKUP(BU$7+0.5,$J$67:$DO$121,ROWS($A$11:$A23)+2,FALSE)","v":667},{"$f":"HLOOKUP(BV$7+0.5,$J$67:$DO$121,ROWS($A$11:$A23)+2,FALSE)","v":392},{"$f":"HLOOKUP(BW$7+0.5,$J$67:$DO$121,ROWS($A$11:$A23)+2,FALSE)","v":275},{"$f":"HLOOKUP(BX$7+0.5,$J$67:$DO$121,ROWS($A$11:$A23)+2,FALSE)","v":275},{"$f":"HLOOKUP(BY$7+0.5,$J$67:$DO$121,ROWS($A$11:$A23)+2,FALSE)","v":2610},{"$f":"HLOOKUP(BZ$7+0.5,$J$67:$DO$121,ROWS($A$11:$A23)+2,FALSE)","v":1185},{"$f":"HLOOKUP(CA$7+0.5,$J$67:$DO$121,ROWS($A$11:$A23)+2,FALSE)","v":"N/A"},{"$f":"HLOOKUP(CB$7+0.5,$J$67:$DO$121,ROWS($A$11:$A23)+2,FALSE)","v":70},{"$f":"HLOOKUP(CC$7+0.5,$J$67:$DO$121,ROWS($A$11:$A23)+2,FALSE)","v":412},{"$f":"HLOOKUP(CD$7+0.5,$J$67:$DO$121,ROWS($A$11:$A23)+2,FALSE)","v":209},{"$f":"HLOOKUP(CE$7+0.5,$J$67:$DO$121,ROWS($A$11:$A23)+2,FALSE)","v":118},{"$f":"HLOOKUP(CF$7+0.5,$J$67:$DO$121,ROWS($A$11:$A23)+2,FALSE)","v":345},{"$f":"HLOOKUP(CG$7+0.5,$J$67:$DO$121,ROWS($A$11:$A23)+2,FALSE)","v":159},{"$f":"HLOOKUP(CH$7+0.5,$J$67:$DO$121,ROWS($A$11:$A23)+2,FALSE)","v":151},{"$f":"HLOOKUP(CI$7+0.5,$J$67:$DO$121,ROWS($A$11:$A23)+2,FALSE)","v":145},{"$f":"HLOOKUP(CJ$7+0.5,$J$67:$DO$121,ROWS($A$11:$A23)+2,FALSE)","v":737},{"$f":"HLOOKUP(CK$7+0.5,$J$67:$DO$121,ROWS($A$11:$A23)+2,FALSE)","v":944},{"$f":"HLOOKUP(CL$7+0.5,$J$67:$DO$121,ROWS($A$11:$A23)+2,FALSE)","v":548},{"$f":"HLOOKUP(CM$7+0.5,$J$67:$DO$121,ROWS($A$11:$A23)+2,FALSE)","v":350},{"$f":"HLOOKUP(CN$7+0.5,$J$67:$DO$121,ROWS($A$11:$A23)+2,FALSE)","v":368},{"$f":"HLOOKUP(CO$7+0.5,$J$67:$DO$121,ROWS($A$11:$A23)+2,FALSE)","v":171},{"$f":"HLOOKUP(CP$7+0.5,$J$67:$DO$121,ROWS($A$11:$A23)+2,FALSE)","v":261},{"$f":"HLOOKUP(CQ$7+0.5,$J$67:$DO$121,ROWS($A$11:$A23)+2,FALSE)","v":275},{"$f":"HLOOKUP(CR$7+0.5,$J$67:$DO$121,ROWS($A$11:$A23)+2,FALSE)","v":1184},{"$f":"HLOOKUP(CS$7+0.5,$J$67:$DO$121,ROWS($A$11:$A23)+2,FALSE)","v":685},{"$f":"HLOOKUP(CT$7+0.5,$J$67:$DO$121,ROWS($A$11:$A23)+2,FALSE)","v":417},{"$f":"HLOOKUP(CU$7+0.5,$J$67:$DO$121,ROWS($A$11:$A23)+2,FALSE)","v":19},{"$f":"HLOOKUP(CV$7+0.5,$J$67:$DO$121,ROWS($A$11:$A23)+2,FALSE)","v":794},{"$f":"HLOOKUP(CW$7+0.5,$J$67:$DO$121,ROWS($A$11:$A23)+2,FALSE)","v":994},{"$f":"HLOOKUP(CX$7+0.5,$J$67:$DO$121,ROWS($A$11:$A23)+2,FALSE)","v":116},{"$f":"HLOOKUP(CY$7+0.5,$J$67:$DO$121,ROWS($A$11:$A23)+2,FALSE)","v":515},{"$f":"HLOOKUP(CZ$7+0.5,$J$67:$DO$121,ROWS($A$11:$A23)+2,FALSE)","v":94},{"$f":"HLOOKUP(DA$7+0.5,$J$67:$DO$121,ROWS($A$11:$A23)+2,FALSE)","v":958},{"$f":"HLOOKUP(DB$7+0.5,$J$67:$DO$121,ROWS($A$11:$A23)+2,FALSE)","v":478},{"$f":"HLOOKUP(DC$7+0.5,$J$67:$DO$121,ROWS($A$11:$A23)+2,FALSE)","v":829},{"$f":"HLOOKUP(DD$7+0.5,$J$67:$DO$121,ROWS($A$11:$A23)+2,FALSE)","v":378},{"$f":"HLOOKUP(DE$7+0.5,$J$67:$DO$121,ROWS($A$11:$A23)+2,FALSE)","v":380},{"$f":"HLOOKUP(DF$7+0.5,$J$67:$DO$121,ROWS($A$11:$A23)+2,FALSE)","v":205},{"$f":"HLOOKUP(DG$7+0.5,$J$67:$DO$121,ROWS($A$11:$A23)+2,FALSE)","v":2760},{"$f":"HLOOKUP(DH$7+0.5,$J$67:$DO$121,ROWS($A$11:$A23)+2,FALSE)","v":369},{"$f":"HLOOKUP(DI$7+0.5,$J$67:$DO$121,ROWS($A$11:$A23)+2,FALSE)","v":275},{"$f":"HLOOKUP(DJ$7+0.5,$J$67:$DO$121,ROWS($A$11:$A23)+2,FALSE)","v":1136},{"$f":"HLOOKUP(DK$7+0.5,$J$67:$DO$121,ROWS($A$11:$A23)+2,FALSE)","v":883},{"$f":"HLOOKUP(DL$7+0.5,$J$67:$DO$121,ROWS($A$11:$A23)+2,FALSE)","v":782},{"$f":"HLOOKUP(DM$7+0.5,$J$67:$DO$121,ROWS($A$11:$A23)+2,FALSE)","v":1133},{"$f":"HLOOKUP(DN$7+0.5,$J$67:$DO$121,ROWS($A$11:$A23)+2,FALSE)","v":33},{"$f":"HLOOKUP(DO$7+0.5,$J$67:$DO$121,ROWS($A$11:$A23)+2,FALSE)","v":275}]
[null,"Idaho",1550967,1954,1279856,12606,209272,10887,8.2509432795475277E-3,{"$f":"HLOOKUP(J$7,$J$67:$DO$121,ROWS($A$11:$A24)+2,FALSE)","v":55638},{"$f":"HLOOKUP(K$7,$J$67:$DO$121,ROWS($A$11:$A24)+2,FALSE)","v":376},{"$f":"HLOOKUP(L$7,$J$67:$DO$121,ROWS($A$11:$A24)+2,FALSE)","v":3264},{"$f":"HLOOKUP(M$7,$J$67:$DO$121,ROWS($A$11:$A24)+2,FALSE)","v":3086},{"$f":"HLOOKUP(N$7,$J$67:$DO$121,ROWS($A$11:$A24)+2,FALSE)","v":45},{"$f":"HLOOKUP(O$7,$J$67:$DO$121,ROWS($A$11:$A24)+2,FALSE)","v":8932},{"$f":"HLOOKUP(P$7,$J$67:$DO$121,ROWS($A$11:$A24)+2,FALSE)","v":1372},{"$f":"HLOOKUP(Q$7,$J$67:$DO$121,ROWS($A$11:$A24)+2,FALSE)","v":0},{"$f":"HLOOKUP(R$7,$J$67:$DO$121,ROWS($A$11:$A24)+2,FALSE)","v":0},{"$f":"HLOOKUP(S$7,$J$67:$DO$121,ROWS($A$11:$A24)+2,FALSE)","v":144},{"$f":"HLOOKUP(T$7,$J$67:$DO$121,ROWS($A$11:$A24)+2,FALSE)","v":612},{"$f":"HLOOKUP(U$7,$J$67:$DO$121,ROWS($A$11:$A24)+2,FALSE)","v":313},{"$f":"HLOOKUP(V$7,$J$67:$DO$121,ROWS($A$11:$A24)+2,FALSE)","v":123},{"$f":"HLOOKUP(W$7,$J$67:$DO$121,ROWS($A$11:$A24)+2,FALSE)","v":"N/A"},{"$f":"HLOOKUP(X$7,$J$67:$DO$121,ROWS($A$11:$A24)+2,FALSE)","v":169},{"$f":"HLOOKUP(Y$7,$J$67:$DO$121,ROWS($A$11:$A24)+2,FALSE)","v":132},{"$f":"HLOOKUP(Z$7,$J$67:$DO$121,ROWS($A$11:$A24)+2,FALSE)","v":773},{"$f":"HLOOKUP(AA$7,$J$67:$DO$121,ROWS($A$11:$A24)+2,FALSE)","v":422},{"$f":"HLOOKUP(AB$7,$J$67:$DO$121,ROWS($A$11:$A24)+2,FALSE)","v":315},{"$f":"HLOOKUP(AC$7,$J$67:$DO$121,ROWS($A$11:$A24)+2,FALSE)","v":59},{"$f":"HLOOKUP(AD$7,$J$67:$DO$121,ROWS($A$11:$A24)+2,FALSE)","v":202},{"$f":"HLOOKUP(AE$7,$J$67:$DO$121,ROWS($A$11:$A24)+2,FALSE)","v":44},{"$f":"HLOOKUP(AF$7,$J$67:$DO$121,ROWS($A$11:$A24)+2,FALSE)","v":115},{"$f":"HLOOKUP(AG$7,$J$67:$DO$121,ROWS($A$11:$A24)+2,FALSE)","v":427},{"$f":"HLOOKUP(AH$7,$J$67:$DO$121,ROWS($A$11:$A24)+2,FALSE)","v":465},{"$f":"HLOOKUP(AI$7,$J$67:$DO$121,ROWS($A$11:$A24)+2,FALSE)","v":37},{"$f":"HLOOKUP(AJ$7,$J$67:$DO$121,ROWS($A$11:$A24)+2,FALSE)","v":425},{"$f":"HLOOKUP(AK$7,$J$67:$DO$121,ROWS($A$11:$A24)+2,FALSE)","v":1509},{"$f":"HLOOKUP(AL$7,$J$67:$DO$121,ROWS($A$11:$A24)+2,FALSE)","v":0},{"$f":"HLOOKUP(AM$7,$J$67:$DO$121,ROWS($A$11:$A24)+2,FALSE)","v":2110},{"$f":"HLOOKUP(AN$7,$J$67:$DO$121,ROWS($A$11:$A24)+2,FALSE)","v":109},{"$f":"HLOOKUP(AO$7,$J$67:$DO$121,ROWS($A$11:$A24)+2,FALSE)","v":97},{"$f":"HLOOKUP(AP$7,$J$67:$DO$121,ROWS($A$11:$A24)+2,FALSE)","v":694},{"$f":"HLOOKUP(AQ$7,$J$67:$DO$121,ROWS($A$11:$A24)+2,FALSE)","v":155},{"$f":"HLOOKUP(AR$7,$J$67:$DO$121,ROWS($A$11:$A24)+2,FALSE)","v":134},{"$f":"HLOOKUP(AS$7,$J$67:$DO$121,ROWS($A$11:$A24)+2,FALSE)","v":96},{"$f":"HLOOKUP(AT$7,$J$67:$DO$121,ROWS($A$11:$A24)+2,FALSE)","v":325},{"$f":"HLOOKUP(AU$7,$J$67:$DO$121,ROWS($A$11:$A24)+2,FALSE)","v":711},{"$f":"HLOOKUP(AV$7,$J$67:$DO$121,ROWS($A$11:$A24)+2,FALSE)","v":3202},{"$f":"HLOOKUP(AW$7,$J$67:$DO$121,ROWS($A$11:$A24)+2,FALSE)","v":172},{"$f":"HLOOKUP(AX$7,$J$67:$DO$121,ROWS($A$11:$A24)+2,FALSE)","v":0},{"$f":"HLOOKUP(AY$7,$J$67:$DO$121,ROWS($A$11:$A24)+2,FALSE)","v":0},{"$f":"HLOOKUP(AZ$7,$J$67:$DO$121,ROWS($A$11:$A24)+2,FALSE)","v":296},{"$f":"HLOOKUP(BA$7,$J$67:$DO$121,ROWS($A$11:$A24)+2,FALSE)","v":1153},{"$f":"HLOOKUP(BB$7,$J$67:$DO$121,ROWS($A$11:$A24)+2,FALSE)","v":1746},{"$f":"HLOOKUP(BC$7,$J$67:$DO$121,ROWS($A$11:$A24)+2,FALSE)","v":8014},{"$f":"HLOOKUP(BD$7,$J$67:$DO$121,ROWS($A$11:$A24)+2,FALSE)","v":0},{"$f":"HLOOKUP(BE$7,$J$67:$DO$121,ROWS($A$11:$A24)+2,FALSE)","v":611},{"$f":"HLOOKUP(BF$7,$J$67:$DO$121,ROWS($A$11:$A24)+2,FALSE)","v":10876},{"$f":"HLOOKUP(BG$7,$J$67:$DO$121,ROWS($A$11:$A24)+2,FALSE)","v":133},{"$f":"HLOOKUP(BH$7,$J$67:$DO$121,ROWS($A$11:$A24)+2,FALSE)","v":233},{"$f":"HLOOKUP(BI$7,$J$67:$DO$121,ROWS($A$11:$A24)+2,FALSE)","v":1410},{"$f":"HLOOKUP(BJ$7,$J$67:$DO$121,ROWS($A$11:$A24)+2,FALSE)","v":233},null,null,null,null,{"$f":"HLOOKUP(BO$7+0.5,$J$67:$DO$121,ROWS($A$11:$A24)+2,FALSE)","v":6079},{"$f":"HLOOKUP(BP$7+0.5,$J$67:$DO$121,ROWS($A$11:$A24)+2,FALSE)","v":369},{"$f":"HLOOKUP(BQ$7+0.5,$J$67:$DO$121,ROWS($A$11:$A24)+2,FALSE)","v":1813},{"$f":"HLOOKUP(BR$7+0.5,$J$67:$DO$121,ROWS($A$11:$A24)+2,FALSE)","v":2015},{"$f":"HLOOKUP(BS$7+0.5,$J$67:$DO$121,ROWS($A$11:$A24)+2,FALSE)","v":73},{"$f":"HLOOKUP(BT$7+0.5,$J$67:$DO$121,ROWS($A$11:$A24)+2,FALSE)","v":2415},{"$f":"HLOOKUP(BU$7+0.5,$J$67:$DO$121,ROWS($A$11:$A24)+2,FALSE)","v":867},{"$f":"HLOOKUP(BV$7+0.5,$J$67:$DO$121,ROWS($A$11:$A24)+2,FALSE)","v":267},{"$f":"HLOOKUP(BW$7+0.5,$J$67:$DO$121,ROWS($A$11:$A24)+2,FALSE)","v":267},{"$f":"HLOOKUP(BX$7+0.5,$J$67:$DO$121,ROWS($A$11:$A24)+2,FALSE)","v":233},{"$f":"HLOOKUP(BY$7+0.5,$J$67:$DO$121,ROWS($A$11:$A24)+2,FALSE)","v":508},{"$f":"HLOOKUP(BZ$7+0.5,$J$67:$DO$121,ROWS($A$11:$A24)+2,FALSE)","v":280},{"$f":"HLOOKUP(CA$7+0.5,$J$67:$DO$121,ROWS($A$11:$A24)+2,FALSE)","v":206},{"$f":"HLOOKUP(CB$7+0.5,$J$67:$DO$121,ROWS($A$11:$A24)+2,FALSE)","v":"N/A"},{"$f":"HLOOKUP(CC$7+0.5,$J$67:$DO$121,ROWS($A$11:$A24)+2,FALSE)","v":236},{"$f":"HLOOKUP(CD$7+0.5,$J$67:$DO$121,ROWS($A$11:$A24)+2,FALSE)","v":133},{"$f":"HLOOKUP(CE$7+0.5,$J$67:$DO$121,ROWS($A$11:$A24)+2,FALSE)","v":470},{"$f":"HLOOKUP(CF$7+0.5,$J$67:$DO$121,ROWS($A$11:$A24)+2,FALSE)","v":415},{"$f":"HLOOKUP(CG$7+0.5,$J$67:$DO$121,ROWS($A$11:$A24)+2,FALSE)","v":272},{"$f":"HLOOKUP(CH$7+0.5,$J$67:$DO$121,ROWS($A$11:$A24)+2,FALSE)","v":102},{"$f":"HLOOKUP(CI$7+0.5,$J$67:$DO$121,ROWS($A$11:$A24)+2,FALSE)","v":272},{"$f":"HLOOKUP(CJ$7+0.5,$J$67:$DO$121,ROWS($A$11:$A24)+2,FALSE)","v":73},{"$f":"HLOOKUP(CK$7+0.5,$J$67:$DO$121,ROWS($A$11:$A24)+2,FALSE)","v":135},{"$f":"HLOOKUP(CL$7+0.5,$J$67:$DO$121,ROWS($A$11:$A24)+2,FALSE)","v":363},{"$f":"HLOOKUP(CM$7+0.5,$J$67:$DO$121,ROWS($A$11:$A24)+2,FALSE)","v":613},{"$f":"HLOOKUP(CN$7+0.5,$J$67:$DO$121,ROWS($A$11:$A24)+2,FALSE)","v":61},{"$f":"HLOOKUP(CO$7+0.5,$J$67:$DO$121,ROWS($A$11:$A24)+2,FALSE)","v":345},{"$f":"HLOOKUP(CP$7+0.5,$J$67:$DO$121,ROWS($A$11:$A24)+2,FALSE)","v":584},{"$f":"HLOOKUP(CQ$7+0.5,$J$67:$DO$121,ROWS($A$11:$A24)+2,FALSE)","v":267},{"$f":"HLOOKUP(CR$7+0.5,$J$67:$DO$121,ROWS($A$11:$A24)+2,FALSE)","v":1061},{"$f":"HLOOKUP(CS$7+0.5,$J$67:$DO$121,ROWS($A$11:$A24)+2,FALSE)","v":147},{"$f":"HLOOKUP(CT$7+0.5,$J$67:$DO$121,ROWS($A$11:$A24)+2,FALSE)","v":148},{"$f":"HLOOKUP(CU$7+0.5,$J$67:$DO$121,ROWS($A$11:$A24)+2,FALSE)","v":811},{"$f":"HLOOKUP(CV$7+0.5,$J$67:$DO$121,ROWS($A$11:$A24)+2,FALSE)","v":169},{"$f":"HLOOKUP(CW$7+0.5,$J$67:$DO$121,ROWS($A$11:$A24)+2,FALSE)","v":164},{"$f":"HLOOKUP(CX$7+0.5,$J$67:$DO$121,ROWS($A$11:$A24)+2,FALSE)","v":112},{"$f":"HLOOKUP(CY$7+0.5,$J$67:$DO$121,ROWS($A$11:$A24)+2,FALSE)","v":261},{"$f":"HLOOKUP(CZ$7+0.5,$J$67:$DO$121,ROWS($A$11:$A24)+2,FALSE)","v":702},{"$f":"HLOOKUP(DA$7+0.5,$J$67:$DO$121,ROWS($A$11:$A24)+2,FALSE)","v":1259},{"$f":"HLOOKUP(DB$7+0.5,$J$67:$DO$121,ROWS($A$11:$A24)+2,FALSE)","v":206},{"$f":"HLOOKUP(DC$7+0.5,$J$67:$DO$121,ROWS($A$11:$A24)+2,FALSE)","v":267},{"$f":"HLOOKUP(DD$7+0.5,$J$67:$DO$121,ROWS($A$11:$A24)+2,FALSE)","v":267},{"$f":"HLOOKUP(DE$7+0.5,$J$67:$DO$121,ROWS($A$11:$A24)+2,FALSE)","v":375},{"$f":"HLOOKUP(DF$7+0.5,$J$67:$DO$121,ROWS($A$11:$A24)+2,FALSE)","v":995},{"$f":"HLOOKUP(DG$7+0.5,$J$67:$DO$121,ROWS($A$11:$A24)+2,FALSE)","v":951},{"$f":"HLOOKUP(DH$7+0.5,$J$67:$DO$121,ROWS($A$11:$A24)+2,FALSE)","v":2403},{"$f":"HLOOKUP(DI$7+0.5,$J$67:$DO$121,ROWS($A$11:$A24)+2,FALSE)","v":267},{"$f":"HLOOKUP(DJ$7+0.5,$J$67:$DO$121,ROWS($A$11:$A24)+2,FALSE)","v":662},{"$f":"HLOOKUP(DK$7+0.5,$J$67:$DO$121,ROWS($A$11:$A24)+2,FALSE)","v":2438},{"$f":"HLOOKUP(DL$7+0.5,$J$67:$DO$121,ROWS($A$11:$A24)+2,FALSE)","v":158},{"$f":"HLOOKUP(DM$7+0.5,$J$67:$DO$121,ROWS($A$11:$A24)+2,FALSE)","v":292},{"$f":"HLOOKUP(DN$7+0.5,$J$67:$DO$121,ROWS($A$11:$A24)+2,FALSE)","v":723},{"$f":"HLOOKUP(DO$7+0.5,$J$67:$DO$121,ROWS($A$11:$A24)+2,FALSE)","v":374}]
[null,"Illinois",12680126,5467,11009852,32636,1404525,28126,3.0246488737072402E-2,{"$f":"HLOOKUP(J$7,$J$67:$DO$121,ROWS($A$11:$A25)+2,FALSE)","v":203959},{"$f":"HLOOKUP(K$7,$J$67:$DO$121,ROWS($A$11:$A25)+2,FALSE)","v":1397},{"$f":"HLOOKUP(L$7,$J$67:$DO$121,ROWS($A$11:$A25)+2,FALSE)","v":1764},{"$f":"HLOOKUP(M$7,$J$67:$DO$121,ROWS($A$11:$A25)+2,FALSE)","v":5921},{"$f":"HLOOKUP(N$7,$J$67:$DO$121,ROWS($A$11:$A25)+2,FALSE)","v":1194},{"$f":"HLOOKUP(O$7,$J$67:$DO$121,ROWS($A$11:$A25)+2,FALSE)","v":16205},{"$f":"HLOOKUP(P$7,$J$67:$DO$121,ROWS($A$11:$A25)+2,FALSE)","v":3850},{"$f":"HLOOKUP(Q$7,$J$67:$DO$121,ROWS($A$11:$A25)+2,FALSE)","v":2264},{"$f":"HLOOKUP(R$7,$J$67:$DO$121,ROWS($A$11:$A25)+2,FALSE)","v":56},{"$f":"HLOOKUP(S$7,$J$67:$DO$121,ROWS($A$11:$A25)+2,FALSE)","v":1047},{"$f":"HLOOKUP(T$7,$J$67:$DO$121,ROWS($A$11:$A25)+2,FALSE)","v":8051},{"$f":"HLOOKUP(U$7,$J$67:$DO$121,ROWS($A$11:$A25)+2,FALSE)","v":6781},{"$f":"HLOOKUP(V$7,$J$67:$DO$121,ROWS($A$11:$A25)+2,FALSE)","v":1224},{"$f":"HLOOKUP(W$7,$J$67:$DO$121,ROWS($A$11:$A25)+2,FALSE)","v":313},{"$f":"HLOOKUP(X$7,$J$67:$DO$121,ROWS($A$11:$A25)+2,FALSE)","v":"N/A"},{"$f":"HLOOKUP(Y$7,$J$67:$DO$121,ROWS($A$11:$A25)+2,FALSE)","v":21918},{"$f":"HLOOKUP(Z$7,$J$67:$DO$121,ROWS($A$11:$A25)+2,FALSE)","v":9141},{"$f":"HLOOKUP(AA$7,$J$67:$DO$121,ROWS($A$11:$A25)+2,FALSE)","v":1970},{"$f":"HLOOKUP(AB$7,$J$67:$DO$121,ROWS($A$11:$A25)+2,FALSE)","v":2921},{"$f":"HLOOKUP(AC$7,$J$67:$DO$121,ROWS($A$11:$A25)+2,FALSE)","v":1419},{"$f":"HLOOKUP(AD$7,$J$67:$DO$121,ROWS($A$11:$A25)+2,FALSE)","v":55},{"$f":"HLOOKUP(AE$7,$J$67:$DO$121,ROWS($A$11:$A25)+2,FALSE)","v":1985},{"$f":"HLOOKUP(AF$7,$J$67:$DO$121,ROWS($A$11:$A25)+2,FALSE)","v":2811},{"$f":"HLOOKUP(AG$7,$J$67:$DO$121,ROWS($A$11:$A25)+2,FALSE)","v":11865},{"$f":"HLOOKUP(AH$7,$J$67:$DO$121,ROWS($A$11:$A25)+2,FALSE)","v":4300},{"$f":"HLOOKUP(AI$7,$J$67:$DO$121,ROWS($A$11:$A25)+2,FALSE)","v":1093},{"$f":"HLOOKUP(AJ$7,$J$67:$DO$121,ROWS($A$11:$A25)+2,FALSE)","v":16703},{"$f":"HLOOKUP(AK$7,$J$67:$DO$121,ROWS($A$11:$A25)+2,FALSE)","v":928},{"$f":"HLOOKUP(AL$7,$J$67:$DO$121,ROWS($A$11:$A25)+2,FALSE)","v":546},{"$f":"HLOOKUP(AM$7,$J$67:$DO$121,ROWS($A$11:$A25)+2,FALSE)","v":2541},{"$f":"HLOOKUP(AN$7,$J$67:$DO$121,ROWS($A$11:$A25)+2,FALSE)","v":206},{"$f":"HLOOKUP(AO$7,$J$67:$DO$121,ROWS($A$11:$A25)+2,FALSE)","v":2331},{"$f":"HLOOKUP(AP$7,$J$67:$DO$121,ROWS($A$11:$A25)+2,FALSE)","v":996},{"$f":"HLOOKUP(AQ$7,$J$67:$DO$121,ROWS($A$11:$A25)+2,FALSE)","v":8479},{"$f":"HLOOKUP(AR$7,$J$67:$DO$121,ROWS($A$11:$A25)+2,FALSE)","v":5504},{"$f":"HLOOKUP(AS$7,$J$67:$DO$121,ROWS($A$11:$A25)+2,FALSE)","v":1112},{"$f":"HLOOKUP(AT$7,$J$67:$DO$121,ROWS($A$11:$A25)+2,FALSE)","v":5103},{"$f":"HLOOKUP(AU$7,$J$67:$DO$121,ROWS($A$11:$A25)+2,FALSE)","v":1459},{"$f":"HLOOKUP(AV$7,$J$67:$DO$121,ROWS($A$11:$A25)+2,FALSE)","v":1224},{"$f":"HLOOKUP(AW$7,$J$67:$DO$121,ROWS($A$11:$A25)+2,FALSE)","v":5190},{"$f":"HLOOKUP(AX$7,$J$67:$DO$121,ROWS($A$11:$A25)+2,FALSE)","v":838},{"$f":"HLOOKUP(AY$7,$J$67:$DO$121,ROWS($A$11:$A25)+2,FALSE)","v":1565},{"$f":"HLOOKUP(AZ$7,$J$67:$DO$121,ROWS($A$11:$A25)+2,FALSE)","v":292},{"$f":"HLOOKUP(BA$7,$J$67:$DO$121,ROWS($A$11:$A25)+2,FALSE)","v":3999},{"$f":"HLOOKUP(BB$7,$J$67:$DO$121,ROWS($A$11:$A25)+2,FALSE)","v":12245},{"$f":"HLOOKUP(BC$7,$J$67:$DO$121,ROWS($A$11:$A25)+2,FALSE)","v":658},{"$f":"HLOOKUP(BD$7,$J$67:$DO$121,ROWS($A$11:$A25)+2,FALSE)","v":260},{"$f":"HLOOKUP(BE$7,$J$67:$DO$121,ROWS($A$11:$A25)+2,FALSE)","v":3831},{"$f":"HLOOKUP(BF$7,$J$67:$DO$121,ROWS($A$11:$A25)+2,FALSE)","v":1642},{"$f":"HLOOKUP(BG$7,$J$67:$DO$121,ROWS($A$11:$A25)+2,FALSE)","v":812},{"$f":"HLOOKUP(BH$7,$J$67:$DO$121,ROWS($A$11:$A25)+2,FALSE)","v":15364},{"$f":"HLOOKUP(BI$7,$J$67:$DO$121,ROWS($A$11:$A25)+2,FALSE)","v":586},{"$f":"HLOOKUP(BJ$7,$J$67:$DO$121,ROWS($A$11:$A25)+2,FALSE)","v":2055},null,null,null,null,{"$f":"HLOOKUP(BO$7+0.5,$J$67:$DO$121,ROWS($A$11:$A25)+2,FALSE)","v":11573},{"$f":"HLOOKUP(BP$7+0.5,$J$67:$DO$121,ROWS($A$11:$A25)+2,FALSE)","v":596},{"$f":"HLOOKUP(BQ$7+0.5,$J$67:$DO$121,ROWS($A$11:$A25)+2,FALSE)","v":1078},{"$f":"HLOOKUP(BR$7+0.5,$J$67:$DO$121,ROWS($A$11:$A25)+2,FALSE)","v":1897},{"$f":"HLOOKUP(BS$7+0.5,$J$67:$DO$121,ROWS($A$11:$A25)+2,FALSE)","v":665},{"$f":"HLOOKUP(BT$7+0.5,$J$67:$DO$121,ROWS($A$11:$A25)+2,FALSE)","v":3236},{"$f":"HLOOKUP(BU$7+0.5,$J$67:$DO$121,ROWS($A$11:$A25)+2,FALSE)","v":1360},{"$f":"HLOOKUP(BV$7+0.5,$J$67:$DO$121,ROWS($A$11:$A25)+2,FALSE)","v":1125},{"$f":"HLOOKUP(BW$7+0.5,$J$67:$DO$121,ROWS($A$11:$A25)+2,FALSE)","v":57},{"$f":"HLOOKUP(BX$7+0.5,$J$67:$DO$121,ROWS($A$11:$A25)+2,FALSE)","v":581},{"$f":"HLOOKUP(BY$7+0.5,$J$67:$DO$121,ROWS($A$11:$A25)+2,FALSE)","v":1715},{"$f":"HLOOKUP(BZ$7+0.5,$J$67:$DO$121,ROWS($A$11:$A25)+2,FALSE)","v":2524},{"$f":"HLOOKUP(CA$7+0.5,$J$67:$DO$121,ROWS($A$11:$A25)+2,FALSE)","v":776},{"$f":"HLOOKUP(CB$7+0.5,$J$67:$DO$121,ROWS($A$11:$A25)+2,FALSE)","v":258},{"$f":"HLOOKUP(CC$7+0.5,$J$67:$DO$121,ROWS($A$11:$A25)+2,FALSE)","v":"N/A"},{"$f":"HLOOKUP(CD$7+0.5,$J$67:$DO$121,ROWS($A$11:$A25)+2,FALSE)","v":4147},{"$f":"HLOOKUP(CE$7+0.5,$J$67:$DO$121,ROWS($A$11:$A25)+2,FALSE)","v":1866},{"$f":"HLOOKUP(CF$7+0.5,$J$67:$DO$121,ROWS($A$11:$A25)+2,FALSE)","v":991},{"$f":"HLOOKUP(CG$7+0.5,$J$67:$DO$121,ROWS($A$11:$A25)+2,FALSE)","v":831},{"$f":"HLOOKUP(CH$7+0.5,$J$67:$DO$121,ROWS($A$11:$A25)+2,FALSE)","v":687},{"$f":"HLOOKUP(CI$7+0.5,$J$67:$DO$121,ROWS($A$11:$A25)+2,FALSE)","v":93},{"$f":"HLOOKUP(CJ$7+0.5,$J$67:$DO$121,ROWS($A$11:$A25)+2,FALSE)","v":1210},{"$f":"HLOOKUP(CK$7+0.5,$J$67:$DO$121,ROWS($A$11:$A25)+2,FALSE)","v":1111},{"$f":"HLOOKUP(CL$7+0.5,$J$67:$DO$121,ROWS($A$11:$A25)+2,FALSE)","v":2138},{"$f":"HLOOKUP(CM$7+0.5,$J$67:$DO$121,ROWS($A$11:$A25)+2,FALSE)","v":1815},{"$f":"HLOOKUP(CN$7+0.5,$J$67:$DO$121,ROWS($A$11:$A25)+2,FALSE)","v":861},{"$f":"HLOOKUP(CO$7+0.5,$J$67:$DO$121,ROWS($A$11:$A25)+2,FALSE)","v":3325},{"$f":"HLOOKUP(CP$7+0.5,$J$67:$DO$121,ROWS($A$11:$A25)+2,FALSE)","v":937},{"$f":"HLOOKUP(CQ$7+0.5,$J$67:$DO$121,ROWS($A$11:$A25)+2,FALSE)","v":373},{"$f":"HLOOKUP(CR$7+0.5,$J$67:$DO$121,ROWS($A$11:$A25)+2,FALSE)","v":1214},{"$f":"HLOOKUP(CS$7+0.5,$J$67:$DO$121,ROWS($A$11:$A25)+2,FALSE)","v":202},{"$f":"HLOOKUP(CT$7+0.5,$J$67:$DO$121,ROWS($A$11:$A25)+2,FALSE)","v":1262},{"$f":"HLOOKUP(CU$7+0.5,$J$67:$DO$121,ROWS($A$11:$A25)+2,FALSE)","v":709},{"$f":"HLOOKUP(CV$7+0.5,$J$67:$DO$121,ROWS($A$11:$A25)+2,FALSE)","v":2555},{"$f":"HLOOKUP(CW$7+0.5,$J$67:$DO$121,ROWS($A$11:$A25)+2,FALSE)","v":2479},{"$f":"HLOOKUP(CX$7+0.5,$J$67:$DO$121,ROWS($A$11:$A25)+2,FALSE)","v":788},{"$f":"HLOOKUP(CY$7+0.5,$J$67:$DO$121,ROWS($A$11:$A25)+2,FALSE)","v":1201},{"$f":"HLOOKUP(CZ$7+0.5,$J$67:$DO$121,ROWS($A$11:$A25)+2,FALSE)","v":777},{"$f":"HLOOKUP(DA$7+0.5,$J$67:$DO$121,ROWS($A$11:$A25)+2,FALSE)","v":789},{"$f":"HLOOKUP(DB$7+0.5,$J$67:$DO$121,ROWS($A$11:$A25)+2,FALSE)","v":1822},{"$f":"HLOOKUP(DC$7+0.5,$J$67:$DO$121,ROWS($A$11:$A25)+2,FALSE)","v":643},{"$f":"HLOOKUP(DD$7+0.5,$J$67:$DO$121,ROWS($A$11:$A25)+2,FALSE)","v":787},{"$f":"HLOOKUP(DE$7+0.5,$J$67:$DO$121,ROWS($A$11:$A25)+2,FALSE)","v":264},{"$f":"HLOOKUP(DF$7+0.5,$J$67:$DO$121,ROWS($A$11:$A25)+2,FALSE)","v":1131},{"$f":"HLOOKUP(DG$7+0.5,$J$67:$DO$121,ROWS($A$11:$A25)+2,FALSE)","v":3113},{"$f":"HLOOKUP(DH$7+0.5,$J$67:$DO$121,ROWS($A$11:$A25)+2,FALSE)","v":427},{"$f":"HLOOKUP(DI$7+0.5,$J$67:$DO$121,ROWS($A$11:$A25)+2,FALSE)","v":257},{"$f":"HLOOKUP(DJ$7+0.5,$J$67:$DO$121,ROWS($A$11:$A25)+2,FALSE)","v":1241},{"$f":"HLOOKUP(DK$7+0.5,$J$67:$DO$121,ROWS($A$11:$A25)+2,FALSE)","v":707},{"$f":"HLOOKUP(DL$7+0.5,$J$67:$DO$121,ROWS($A$11:$A25)+2,FALSE)","v":523},{"$f":"HLOOKUP(DM$7+0.5,$J$67:$DO$121,ROWS($A$11:$A25)+2,FALSE)","v":2866},{"$f":"HLOOKUP(DN$7+0.5,$J$67:$DO$121,ROWS($A$11:$A25)+2,FALSE)","v":432},{"$f":"HLOOKUP(DO$7+0.5,$J$67:$DO$121,ROWS($A$11:$A25)+2,FALSE)","v":820}]
[null,"Indiana",6414862,4257,5431015,24897,833086,22796,1.8886055923653194E-2,{"$f":"HLOOKUP(J$7,$J$67:$DO$121,ROWS($A$11:$A26)+2,FALSE)","v":127353},{"$f":"HLOOKUP(K$7,$J$67:$DO$121,ROWS($A$11:$A26)+2,FALSE)","v":1502},{"$f":"HLOOKUP(L$7,$J$67:$DO$121,ROWS($A$11:$A26)+2,FALSE)","v":177},{"$f":"HLOOKUP(M$7,$J$67:$DO$121,ROWS($A$11:$A26)+2,FALSE)","v":2210},{"$f":"HLOOKUP(N$7,$J$67:$DO$121,ROWS($A$11:$A26)+2,FALSE)","v":1548},{"$f":"HLOOKUP(O$7,$J$67:$DO$121,ROWS($A$11:$A26)+2,FALSE)","v":8959},{"$f":"HLOOKUP(P$7,$J$67:$DO$121,ROWS($A$11:$A26)+2,FALSE)","v":1362},{"$f":"HLOOKUP(Q$7,$J$67:$DO$121,ROWS($A$11:$A26)+2,FALSE)","v":544},{"$f":"HLOOKUP(R$7,$J$67:$DO$121,ROWS($A$11:$A26)+2,FALSE)","v":0},{"$f":"HLOOKUP(S$7,$J$67:$DO$121,ROWS($A$11:$A26)+2,FALSE)","v":181},{"$f":"HLOOKUP(T$7,$J$67:$DO$121,ROWS($A$11:$A26)+2,FALSE)","v":5496},{"$f":"HLOOKUP(U$7,$J$67:$DO$121,ROWS($A$11:$A26)+2,FALSE)","v":1623},{"$f":"HLOOKUP(V$7,$J$67:$DO$121,ROWS($A$11:$A26)+2,FALSE)","v":267},{"$f":"HLOOKUP(W$7,$J$67:$DO$121,ROWS($A$11:$A26)+2,FALSE)","v":772},{"$f":"HLOOKUP(X$7,$J$67:$DO$121,ROWS($A$11:$A26)+2,FALSE)","v":27950},{"$f":"HLOOKUP(Y$7,$J$67:$DO$121,ROWS($A$11:$A26)+2,FALSE)","v":"N/A"},{"$f":"HLOOKUP(Z$7,$J$67:$DO$121,ROWS($A$11:$A26)+2,FALSE)","v":1885},{"$f":"HLOOKUP(AA$7,$J$67:$DO$121,ROWS($A$11:$A26)+2,FALSE)","v":1582},{"$f":"HLOOKUP(AB$7,$J$67:$DO$121,ROWS($A$11:$A26)+2,FALSE)","v":10643},{"$f":"HLOOKUP(AC$7,$J$67:$DO$121,ROWS($A$11:$A26)+2,FALSE)","v":749},{"$f":"HLOOKUP(AD$7,$J$67:$DO$121,ROWS($A$11:$A26)+2,FALSE)","v":30},{"$f":"HLOOKUP(AE$7,$J$67:$DO$121,ROWS($A$11:$A26)+2,FALSE)","v":1641},{"$f":"HLOOKUP(AF$7,$J$67:$DO$121,ROWS($A$11:$A26)+2,FALSE)","v":103},{"$f":"HLOOKUP(AG$7,$J$67:$DO$121,ROWS($A$11:$A26)+2,FALSE)","v":9361},{"$f":"HLOOKUP(AH$7,$J$67:$DO$121,ROWS($A$11:$A26)+2,FALSE)","v":916},{"$f":"HLOOKUP(AI$7,$J$67:$DO$121,ROWS($A$11:$A26)+2,FALSE)","v":270},{"$f":"HLOOKUP(AJ$7,$J$67:$DO$121,ROWS($A$11:$A26)+2,FALSE)","v":3893},{"$f":"HLOOKUP(AK$7,$J$67:$DO$121,ROWS($A$11:$A26)+2,FALSE)","v":164},{"$f":"HLOOKUP(AL$7,$J$67:$DO$121,ROWS($A$11:$A26)+2,FALSE)","v":705},{"$f":"HLOOKUP(AM$7,$J$67:$DO$121,ROWS($A$11:$A26)+2,FALSE)","v":227},{"$f":"HLOOKUP(AN$7,$J$67:$DO$121,ROWS($A$11:$A26)+2,FALSE)","v":114},{"$f":"HLOOKUP(AO$7,$J$67:$DO$121,ROWS($A$11:$A26)+2,FALSE)","v":1876},{"$f":"HLOOKUP(AP$7,$J$67:$DO$121,ROWS($A$11:$A26)+2,FALSE)","v":188},{"$f":"HLOOKUP(AQ$7,$J$67:$DO$121,ROWS($A$11:$A26)+2,FALSE)","v":2564},{"$f":"HLOOKUP(AR$7,$J$67:$DO$121,ROWS($A$11:$A26)+2,FALSE)","v":2828},{"$f":"HLOOKUP(AS$7,$J$67:$DO$121,ROWS($A$11:$A26)+2,FALSE)","v":0},{"$f":"HLOOKUP(AT$7,$J$67:$DO$121,ROWS($A$11:$A26)+2,FALSE)","v":13272},{"$f":"HLOOKUP(AU$7,$J$67:$DO$121,ROWS($A$11:$A26)+2,FALSE)","v":681},{"$f":"HLOOKUP(AV$7,$J$67:$DO$121,ROWS($A$11:$A26)+2,FALSE)","v":423},{"$f":"HLOOKUP(AW$7,$J$67:$DO$121,ROWS($A$11:$A26)+2,FALSE)","v":2668},{"$f":"HLOOKUP(AX$7,$J$67:$DO$121,ROWS($A$11:$A26)+2,FALSE)","v":174},{"$f":"HLOOKUP(AY$7,$J$67:$DO$121,ROWS($A$11:$A26)+2,FALSE)","v":584},{"$f":"HLOOKUP(AZ$7,$J$67:$DO$121,ROWS($A$11:$A26)+2,FALSE)","v":216},{"$f":"HLOOKUP(BA$7,$J$67:$DO$121,ROWS($A$11:$A26)+2,FALSE)","v":3093},{"$f":"HLOOKUP(BB$7,$J$67:$DO$121,ROWS($A$11:$A26)+2,FALSE)","v":6335},{"$f":"HLOOKUP(BC$7,$J$67:$DO$121,ROWS($A$11:$A26)+2,FALSE)","v":444},{"$f":"HLOOKUP(BD$7,$J$67:$DO$121,ROWS($A$11:$A26)+2,FALSE)","v":45},{"$f":"HLOOKUP(BE$7,$J$67:$DO$121,ROWS($A$11:$A26)+2,FALSE)","v":3673},{"$f":"HLOOKUP(BF$7,$J$67:$DO$121,ROWS($A$11:$A26)+2,FALSE)","v":571},{"$f":"HLOOKUP(BG$7,$J$67:$DO$121,ROWS($A$11:$A26)+2,FALSE)","v":669},{"$f":"HLOOKUP(BH$7,$J$67:$DO$121,ROWS($A$11:$A26)+2,FALSE)","v":1762},{"$f":"HLOOKUP(BI$7,$J$67:$DO$121,ROWS($A$11:$A26)+2,FALSE)","v":413},{"$f":"HLOOKUP(BJ$7,$J$67:$DO$121,ROWS($A$11:$A26)+2,FALSE)","v":572},null,null,null,null,{"$f":"HLOOKUP(BO$7+0.5,$J$67:$DO$121,ROWS($A$11:$A26)+2,FALSE)","v":8463},{"$f":"HLOOKUP(BP$7+0.5,$J$67:$DO$121,ROWS($A$11:$A26)+2,FALSE)","v":1110},{"$f":"HLOOKUP(BQ$7+0.5,$J$67:$DO$121,ROWS($A$11:$A26)+2,FALSE)","v":143},{"$f":"HLOOKUP(BR$7+0.5,$J$67:$DO$121,ROWS($A$11:$A26)+2,FALSE)","v":914},{"$f":"HLOOKUP(BS$7+0.5,$J$67:$DO$121,ROWS($A$11:$A26)+2,FALSE)","v":1104},{"$f":"HLOOKUP(BT$7+0.5,$J$67:$DO$121,ROWS($A$11:$A26)+2,FALSE)","v":2863},{"$f":"HLOOKUP(BU$7+0.5,$J$67:$DO$121,ROWS($A$11:$A26)+2,FALSE)","v":658},{"$f":"HLOOKUP(BV$7+0.5,$J$67:$DO$121,ROWS($A$11:$A26)+2,FALSE)","v":404},{"$f":"HLOOKUP(BW$7+0.5,$J$67:$DO$121,ROWS($A$11:$A26)+2,FALSE)","v":267},{"$f":"HLOOKUP(BX$7+0.5,$J$67:$DO$121,ROWS($A$11:$A26)+2,FALSE)","v":156},{"$f":"HLOOKUP(BY$7+0.5,$J$67:$DO$121,ROWS($A$11:$A26)+2,FALSE)","v":1564},{"$f":"HLOOKUP(BZ$7+0.5,$J$67:$DO$121,ROWS($A$11:$A26)+2,FALSE)","v":913},{"$f":"HLOOKUP(CA$7+0.5,$J$67:$DO$121,ROWS($A$11:$A26)+2,FALSE)","v":316},{"$f":"HLOOKUP(CB$7+0.5,$J$67:$DO$121,ROWS($A$11:$A26)+2,FALSE)","v":604},{"$f":"HLOOKUP(CC$7+0.5,$J$67:$DO$121,ROWS($A$11:$A26)+2,FALSE)","v":4658},{"$f":"HLOOKUP(CD$7+0.5,$J$67:$DO$121,ROWS($A$11:$A26)+2,FALSE)","v":"N/A"},{"$f":"HLOOKUP(CE$7+0.5,$J$67:$DO$121,ROWS($A$11:$A26)+2,FALSE)","v":1191},{"$f":"HLOOKUP(CF$7+0.5,$J$67:$DO$121,ROWS($A$11:$A26)+2,FALSE)","v":996},{"$f":"HLOOKUP(CG$7+0.5,$J$67:$DO$121,ROWS($A$11:$A26)+2,FALSE)","v":2402},{"$f":"HLOOKUP(CH$7+0.5,$J$67:$DO$121,ROWS($A$11:$A26)+2,FALSE)","v":599},{"$f":"HLOOKUP(CI$7+0.5,$J$67:$DO$121,ROWS($A$11:$A26)+2,FALSE)","v":50},{"$f":"HLOOKUP(CJ$7+0.5,$J$67:$DO$121,ROWS($A$11:$A26)+2,FALSE)","v":950},{"$f":"HLOOKUP(CK$7+0.5,$J$67:$DO$121,ROWS($A$11:$A26)+2,FALSE)","v":135},{"$f":"HLOOKUP(CL$7+0.5,$J$67:$DO$121,ROWS($A$11:$A26)+2,FALSE)","v":1837},{"$f":"HLOOKUP(CM$7+0.5,$J$67:$DO$121,ROWS($A$11:$A26)+2,FALSE)","v":385},{"$f":"HLOOKUP(CN$7+0.5,$J$67:$DO$121,ROWS($A$11:$A26)+2,FALSE)","v":255},{"$f":"HLOOKUP(CO$7+0.5,$J$67:$DO$121,ROWS($A$11:$A26)+2,FALSE)","v":2531},{"$f":"HLOOKUP(CP$7+0.5,$J$67:$DO$121,ROWS($A$11:$A26)+2,FALSE)","v":201},{"$f":"HLOOKUP(CQ$7+0.5,$J$67:$DO$121,ROWS($A$11:$A26)+2,FALSE)","v":654},{"$f":"HLOOKUP(CR$7+0.5,$J$67:$DO$121,ROWS($A$11:$A26)+2,FALSE)","v":239},{"$f":"HLOOKUP(CS$7+0.5,$J$67:$DO$121,ROWS($A$11:$A26)+2,FALSE)","v":134},{"$f":"HLOOKUP(CT$7+0.5,$J$67:$DO$121,ROWS($A$11:$A26)+2,FALSE)","v":1526},{"$f":"HLOOKUP(CU$7+0.5,$J$67:$DO$121,ROWS($A$11:$A26)+2,FALSE)","v":229},{"$f":"HLOOKUP(CV$7+0.5,$J$67:$DO$121,ROWS($A$11:$A26)+2,FALSE)","v":952},{"$f":"HLOOKUP(CW$7+0.5,$J$67:$DO$121,ROWS($A$11:$A26)+2,FALSE)","v":1141},{"$f":"HLOOKUP(CX$7+0.5,$J$67:$DO$121,ROWS($A$11:$A26)+2,FALSE)","v":267},{"$f":"HLOOKUP(CY$7+0.5,$J$67:$DO$121,ROWS($A$11:$A26)+2,FALSE)","v":2750},{"$f":"HLOOKUP(CZ$7+0.5,$J$67:$DO$121,ROWS($A$11:$A26)+2,FALSE)","v":563},{"$f":"HLOOKUP(DA$7+0.5,$J$67:$DO$121,ROWS($A$11:$A26)+2,FALSE)","v":380},{"$f":"HLOOKUP(DB$7+0.5,$J$67:$DO$121,ROWS($A$11:$A26)+2,FALSE)","v":1128},{"$f":"HLOOKUP(DC$7+0.5,$J$67:$DO$121,ROWS($A$11:$A26)+2,FALSE)","v":284},{"$f":"HLOOKUP(DD$7+0.5,$J$67:$DO$121,ROWS($A$11:$A26)+2,FALSE)","v":405},{"$f":"HLOOKUP(DE$7+0.5,$J$67:$DO$121,ROWS($A$11:$A26)+2,FALSE)","v":258},{"$f":"HLOOKUP(DF$7+0.5,$J$67:$DO$121,ROWS($A$11:$A26)+2,FALSE)","v":1261},{"$f":"HLOOKUP(DG$7+0.5,$J$67:$DO$121,ROWS($A$11:$A26)+2,FALSE)","v":1643},{"$f":"HLOOKUP(DH$7+0.5,$J$67:$DO$121,ROWS($A$11:$A26)+2,FALSE)","v":432},{"$f":"HLOOKUP(DI$7+0.5,$J$67:$DO$121,ROWS($A$11:$A26)+2,FALSE)","v":73},{"$f":"HLOOKUP(DJ$7+0.5,$J$67:$DO$121,ROWS($A$11:$A26)+2,FALSE)","v":1633},{"$f":"HLOOKUP(DK$7+0.5,$J$67:$DO$121,ROWS($A$11:$A26)+2,FALSE)","v":340},{"$f":"HLOOKUP(DL$7+0.5,$J$67:$DO$121,ROWS($A$11:$A26)+2,FALSE)","v":562},{"$f":"HLOOKUP(DM$7+0.5,$J$67:$DO$121,ROWS($A$11:$A26)+2,FALSE)","v":893},{"$f":"HLOOKUP(DN$7+0.5,$J$67:$DO$121,ROWS($A$11:$A26)+2,FALSE)","v":403},{"$f":"HLOOKUP(DO$7+0.5,$J$67:$DO$121,ROWS($A$11:$A26)+2,FALSE)","v":457}]
[null,"Iowa",3013053,2381,2553210,15158,375650,12448,1.0759978639313598E-2,{"$f":"HLOOKUP(J$7,$J$67:$DO$121,ROWS($A$11:$A27)+2,FALSE)","v":72557},{"$f":"HLOOKUP(K$7,$J$67:$DO$121,ROWS($A$11:$A27)+2,FALSE)","v":330},{"$f":"HLOOKUP(L$7,$J$67:$DO$121,ROWS($A$11:$A27)+2,FALSE)","v":519},{"$f":"HLOOKUP(M$7,$J$67:$DO$121,ROWS($A$11:$A27)+2,FALSE)","v":1483},{"$f":"HLOOKUP(N$7,$J$67:$DO$121,ROWS($A$11:$A27)+2,FALSE)","v":247},{"$f":"HLOOKUP(O$7,$J$67:$DO$121,ROWS($A$11:$A27)+2,FALSE)","v":2847},{"$f":"HLOOKUP(P$7,$J$67:$DO$121,ROWS($A$11:$A27)+2,FALSE)","v":2554},{"$f":"HLOOKUP(Q$7,$J$67:$DO$121,ROWS($A$11:$A27)+2,FALSE)","v":114},{"$f":"HLOOKUP(R$7,$J$67:$DO$121,ROWS($A$11:$A27)+2,FALSE)","v":0},{"$f":"HLOOKUP(S$7,$J$67:$DO$121,ROWS($A$11:$A27)+2,FALSE)","v":53},{"$f":"HLOOKUP(T$7,$J$67:$DO$121,ROWS($A$11:$A27)+2,FALSE)","v":1364},{"$f":"HLOOKUP(U$7,$J$67:$DO$121,ROWS($A$11:$A27)+2,FALSE)","v":973},{"$f":"HLOOKUP(V$7,$J$67:$DO$121,ROWS($A$11:$A27)+2,FALSE)","v":866},{"$f":"HLOOKUP(W$7,$J$67:$DO$121,ROWS($A$11:$A27)+2,FALSE)","v":315},{"$f":"HLOOKUP(X$7,$J$67:$DO$121,ROWS($A$11:$A27)+2,FALSE)","v":17016},{"$f":"HLOOKUP(Y$7,$J$67:$DO$121,ROWS($A$11:$A27)+2,FALSE)","v":1710},{"$f":"HLOOKUP(Z$7,$J$67:$DO$121,ROWS($A$11:$A27)+2,FALSE)","v":"N/A"},{"$f":"HLOOKUP(AA$7,$J$67:$DO$121,ROWS($A$11:$A27)+2,FALSE)","v":1520},{"$f":"HLOOKUP(AB$7,$J$67:$DO$121,ROWS($A$11:$A27)+2,FALSE)","v":334},{"$f":"HLOOKUP(AC$7,$J$67:$DO$121,ROWS($A$11:$A27)+2,FALSE)","v":315},{"$f":"HLOOKUP(AD$7,$J$67:$DO$121,ROWS($A$11:$A27)+2,FALSE)","v":0},{"$f":"HLOOKUP(AE$7,$J$67:$DO$121,ROWS($A$11:$A27)+2,FALSE)","v":134},{"$f":"HLOOKUP(AF$7,$J$67:$DO$121,ROWS($A$11:$A27)+2,FALSE)","v":189},{"$f":"HLOOKUP(AG$7,$J$67:$DO$121,ROWS($A$11:$A27)+2,FALSE)","v":1439},{"$f":"HLOOKUP(AH$7,$J$67:$DO$121,ROWS($A$11:$A27)+2,FALSE)","v":7564},{"$f":"HLOOKUP(AI$7,$J$67:$DO$121,ROWS($A$11:$A27)+2,FALSE)","v":117},{"$f":"HLOOKUP(AJ$7,$J$67:$DO$121,ROWS($A$11:$A27)+2,FALSE)","v":6031},{"$f":"HLOOKUP(AK$7,$J$67:$DO$121,ROWS($A$11:$A27)+2,FALSE)","v":836},{"$f":"HLOOKUP(AL$7,$J$67:$DO$121,ROWS($A$11:$A27)+2,FALSE)","v":4783},{"$f":"HLOOKUP(AM$7,$J$67:$DO$121,ROWS($A$11:$A27)+2,FALSE)","v":623},{"$f":"HLOOKUP(AN$7,$J$67:$DO$121,ROWS($A$11:$A27)+2,FALSE)","v":381},{"$f":"HLOOKUP(AO$7,$J$67:$DO$121,ROWS($A$11:$A27)+2,FALSE)","v":472},{"$f":"HLOOKUP(AP$7,$J$67:$DO$121,ROWS($A$11:$A27)+2,FALSE)","v":492},{"$f":"HLOOKUP(AQ$7,$J$67:$DO$121,ROWS($A$11:$A27)+2,FALSE)","v":273},{"$f":"HLOOKUP(AR$7,$J$67:$DO$121,ROWS($A$11:$A27)+2,FALSE)","v":1123},{"$f":"HLOOKUP(AS$7,$J$67:$DO$121,ROWS($A$11:$A27)+2,FALSE)","v":601},{"$f":"HLOOKUP(AT$7,$J$67:$DO$121,ROWS($A$11:$A27)+2,FALSE)","v":632},{"$f":"HLOOKUP(AU$7,$J$67:$DO$121,ROWS($A$11:$A27)+2,FALSE)","v":679},{"$f":"HLOOKUP(AV$7,$J$67:$DO$121,ROWS($A$11:$A27)+2,FALSE)","v":1071},{"$f":"HLOOKUP(AW$7,$J$67:$DO$121,ROWS($A$11:$A27)+2,FALSE)","v":378},{"$f":"HLOOKUP(AX$7,$J$67:$DO$121,ROWS($A$11:$A27)+2,FALSE)","v":0},{"$f":"HLOOKUP(AY$7,$J$67:$DO$121,ROWS($A$11:$A27)+2,FALSE)","v":591},{"$f":"HLOOKUP(AZ$7,$J$67:$DO$121,ROWS($A$11:$A27)+2,FALSE)","v":1992},{"$f":"HLOOKUP(BA$7,$J$67:$DO$121,ROWS($A$11:$A27)+2,FALSE)","v":1617},{"$f":"HLOOKUP(BB$7,$J$67:$DO$121,ROWS($A$11:$A27)+2,FALSE)","v":4131},{"$f":"HLOOKUP(BC$7,$J$67:$DO$121,ROWS($A$11:$A27)+2,FALSE)","v":146},{"$f":"HLOOKUP(BD$7,$J$67:$DO$121,ROWS($A$11:$A27)+2,FALSE)","v":45},{"$f":"HLOOKUP(BE$7,$J$67:$DO$121,ROWS($A$11:$A27)+2,FALSE)","v":303},{"$f":"HLOOKUP(BF$7,$J$67:$DO$121,ROWS($A$11:$A27)+2,FALSE)","v":538},{"$f":"HLOOKUP(BG$7,$J$67:$DO$121,ROWS($A$11:$A27)+2,FALSE)","v":0},{"$f":"HLOOKUP(BH$7,$J$67:$DO$121,ROWS($A$11:$A27)+2,FALSE)","v":2705},{"$f":"HLOOKUP(BI$7,$J$67:$DO$121,ROWS($A$11:$A27)+2,FALSE)","v":111},{"$f":"HLOOKUP(BJ$7,$J$67:$DO$121,ROWS($A$11:$A27)+2,FALSE)","v":149},null,null,null,null,{"$f":"HLOOKUP(BO$7+0.5,$J$67:$DO$121,ROWS($A$11:$A27)+2,FALSE)","v":5707},{"$f":"HLOOKUP(BP$7+0.5,$J$67:$DO$121,ROWS($A$11:$A27)+2,FALSE)","v":202},{"$f":"HLOOKUP(BQ$7+0.5,$J$67:$DO$121,ROWS($A$11:$A27)+2,FALSE)","v":407},{"$f":"HLOOKUP(BR$7+0.5,$J$67:$DO$121,ROWS($A$11:$A27)+2,FALSE)","v":623},{"$f":"HLOOKUP(BS$7+0.5,$J$67:$DO$121,ROWS($A$11:$A27)+2,FALSE)","v":190},{"$f":"HLOOKUP(BT$7+0.5,$J$67:$DO$121,ROWS($A$11:$A27)+2,FALSE)","v":1227},{"$f":"HLOOKUP(BU$7+0.5,$J$67:$DO$121,ROWS($A$11:$A27)+2,FALSE)","v":865},{"$f":"HLOOKUP(BV$7+0.5,$J$67:$DO$121,ROWS($A$11:$A27)+2,FALSE)","v":155},{"$f":"HLOOKUP(BW$7+0.5,$J$67:$DO$121,ROWS($A$11:$A27)+2,FALSE)","v":228},{"$f":"HLOOKUP(BX$7+0.5,$J$67:$DO$121,ROWS($A$11:$A27)+2,FALSE)","v":85},{"$f":"HLOOKUP(BY$7+0.5,$J$67:$DO$121,ROWS($A$11:$A27)+2,FALSE)","v":573},{"$f":"HLOOKUP(BZ$7+0.5,$J$67:$DO$121,ROWS($A$11:$A27)+2,FALSE)","v":472},{"$f":"HLOOKUP(CA$7+0.5,$J$67:$DO$121,ROWS($A$11:$A27)+2,FALSE)","v":651},{"$f":"HLOOKUP(CB$7+0.5,$J$67:$DO$121,ROWS($A$11:$A27)+2,FALSE)","v":415},{"$f":"HLOOKUP(CC$7+0.5,$J$67:$DO$121,ROWS($A$11:$A27)+2,FALSE)","v":2840},{"$f":"HLOOKUP(CD$7+0.5,$J$67:$DO$121,ROWS($A$11:$A27)+2,FALSE)","v":917},{"$f":"HLOOKUP(CE$7+0.5,$J$67:$DO$121,ROWS($A$11:$A27)+2,FALSE)","v":"N/A"},{"$f":"HLOOKUP(CF$7+0.5,$J$67:$DO$121,ROWS($A$11:$A27)+2,FALSE)","v":741},{"$f":"HLOOKUP(CG$7+0.5,$J$67:$DO$121,ROWS($A$11:$A27)+2,FALSE)","v":377},{"$f":"HLOOKUP(CH$7+0.5,$J$67:$DO$121,ROWS($A$11:$A27)+2,FALSE)","v":384},{"$f":"HLOOKUP(CI$7+0.5,$J$67:$DO$121,ROWS($A$11:$A27)+2,FALSE)","v":228},{"$f":"HLOOKUP(CJ$7+0.5,$J$67:$DO$121,ROWS($A$11:$A27)+2,FALSE)","v":156},{"$f":"HLOOKUP(CK$7+0.5,$J$67:$DO$121,ROWS($A$11:$A27)+2,FALSE)","v":175},{"$f":"HLOOKUP(CL$7+0.5,$J$67:$DO$121,ROWS($A$11:$A27)+2,FALSE)","v":652},{"$f":"HLOOKUP(CM$7+0.5,$J$67:$DO$121,ROWS($A$11:$A27)+2,FALSE)","v":1722},{"$f":"HLOOKUP(CN$7+0.5,$J$67:$DO$121,ROWS($A$11:$A27)+2,FALSE)","v":138},{"$f":"HLOOKUP(CO$7+0.5,$J$67:$DO$121,ROWS($A$11:$A27)+2,FALSE)","v":2253},{"$f":"HLOOKUP(CP$7+0.5,$J$67:$DO$121,ROWS($A$11:$A27)+2,FALSE)","v":743},{"$f":"HLOOKUP(CQ$7+0.5,$J$67:$DO$121,ROWS($A$11:$A27)+2,FALSE)","v":1799},{"$f":"HLOOKUP(CR$7+0.5,$J$67:$DO$121,ROWS($A$11:$A27)+2,FALSE)","v":371},{"$f":"HLOOKUP(CS$7+0.5,$J$67:$DO$121,ROWS($A$11:$A27)+2,FALSE)","v":531},{"$f":"HLOOKUP(CT$7+0.5,$J$67:$DO$121,ROWS($A$11:$A27)+2,FALSE)","v":405},{"$f":"HLOOKUP(CU$7+0.5,$J$67:$DO$121,ROWS($A$11:$A27)+2,FALSE)","v":490},{"$f":"HLOOKUP(CV$7+0.5,$J$67:$DO$121,ROWS($A$11:$A27)+2,FALSE)","v":270},{"$f":"HLOOKUP(CW$7+0.5,$J$67:$DO$121,ROWS($A$11:$A27)+2,FALSE)","v":744},{"$f":"HLOOKUP(CX$7+0.5,$J$67:$DO$121,ROWS($A$11:$A27)+2,FALSE)","v":617},{"$f":"HLOOKUP(CY$7+0.5,$J$67:$DO$121,ROWS($A$11:$A27)+2,FALSE)","v":421},{"$f":"HLOOKUP(CZ$7+0.5,$J$67:$DO$121,ROWS($A$11:$A27)+2,FALSE)","v":491},{"$f":"HLOOKUP(DA$7+0.5,$J$67:$DO$121,ROWS($A$11:$A27)+2,FALSE)","v":568},{"$f":"HLOOKUP(DB$7+0.5,$J$67:$DO$121,ROWS($A$11:$A27)+2,FALSE)","v":242},{"$f":"HLOOKUP(DC$7+0.5,$J$67:$DO$121,ROWS($A$11:$A27)+2,FALSE)","v":228},{"$f":"HLOOKUP(DD$7+0.5,$J$67:$DO$121,ROWS($A$11:$A27)+2,FALSE)","v":442},{"$f":"HLOOKUP(DE$7+0.5,$J$67:$DO$121,ROWS($A$11:$A27)+2,FALSE)","v":980},{"$f":"HLOOKUP(DF$7+0.5,$J$67:$DO$121,ROWS($A$11:$A27)+2,FALSE)","v":1222},{"$f":"HLOOKUP(DG$7+0.5,$J$67:$DO$121,ROWS($A$11:$A27)+2,FALSE)","v":1470},{"$f":"HLOOKUP(DH$7+0.5,$J$67:$DO$121,ROWS($A$11:$A27)+2,FALSE)","v":156},{"$f":"HLOOKUP(DI$7+0.5,$J$67:$DO$121,ROWS($A$11:$A27)+2,FALSE)","v":81},{"$f":"HLOOKUP(DJ$7+0.5,$J$67:$DO$121,ROWS($A$11:$A27)+2,FALSE)","v":329},{"$f":"HLOOKUP(DK$7+0.5,$J$67:$DO$121,ROWS($A$11:$A27)+2,FALSE)","v":365},{"$f":"HLOOKUP(DL$7+0.5,$J$67:$DO$121,ROWS($A$11:$A27)+2,FALSE)","v":228},{"$f":"HLOOKUP(DM$7+0.5,$J$67:$DO$121,ROWS($A$11:$A27)+2,FALSE)","v":1206},{"$f":"HLOOKUP(DN$7+0.5,$J$67:$DO$121,ROWS($A$11:$A27)+2,FALSE)","v":119},{"$f":"HLOOKUP(DO$7+0.5,$J$67:$DO$121,ROWS($A$11:$A27)+2,FALSE)","v":176}]
[null,"Kansas",2820894,2731,2341401,17752,372161,15608,1.4096955627637738E-2,{"$f":"HLOOKUP(J$7,$J$67:$DO$121,ROWS($A$11:$A28)+2,FALSE)","v":95059},{"$f":"HLOOKUP(K$7,$J$67:$DO$121,ROWS($A$11:$A28)+2,FALSE)","v":44},{"$f":"HLOOKUP(L$7,$J$67:$DO$121,ROWS($A$11:$A28)+2,FALSE)","v":1050},{"$f":"HLOOKUP(M$7,$J$67:$DO$121,ROWS($A$11:$A28)+2,FALSE)","v":2238},{"$f":"HLOOKUP(N$7,$J$67:$DO$121,ROWS($A$11:$A28)+2,FALSE)","v":1596},{"$f":"HLOOKUP(O$7,$J$67:$DO$121,ROWS($A$11:$A28)+2,FALSE)","v":6125},{"$f":"HLOOKUP(P$7,$J$67:$DO$121,ROWS($A$11:$A28)+2,FALSE)","v":6022},{"$f":"HLOOKUP(Q$7,$J$67:$DO$121,ROWS($A$11:$A28)+2,FALSE)","v":85},{"$f":"HLOOKUP(R$7,$J$67:$DO$121,ROWS($A$11:$A28)+2,FALSE)","v":238},{"$f":"HLOOKUP(S$7,$J$67:$DO$121,ROWS($A$11:$A28)+2,FALSE)","v":0},{"$f":"HLOOKUP(T$7,$J$67:$DO$121,ROWS($A$11:$A28)+2,FALSE)","v":2863},{"$f":"HLOOKUP(U$7,$J$67:$DO$121,ROWS($A$11:$A28)+2,FALSE)","v":1916},{"$f":"HLOOKUP(V$7,$J$67:$DO$121,ROWS($A$11:$A28)+2,FALSE)","v":128},{"$f":"HLOOKUP(W$7,$J$67:$DO$121,ROWS($A$11:$A28)+2,FALSE)","v":398},{"$f":"HLOOKUP(X$7,$J$67:$DO$121,ROWS($A$11:$A28)+2,FALSE)","v":2943},{"$f":"HLOOKUP(Y$7,$J$67:$DO$121,ROWS($A$11:$A28)+2,FALSE)","v":1544},{"$f":"HLOOKUP(Z$7,$J$67:$DO$121,ROWS($A$11:$A28)+2,FALSE)","v":1875},{"$f":"HLOOKUP(AA$7,$J$67:$DO$121,ROWS($A$11:$A28)+2,FALSE)","v":"N/A"},{"$f":"HLOOKUP(AB$7,$J$67:$DO$121,ROWS($A$11:$A28)+2,FALSE)","v":1048},{"$f":"HLOOKUP(AC$7,$J$67:$DO$121,ROWS($A$11:$A28)+2,FALSE)","v":890},{"$f":"HLOOKUP(AD$7,$J$67:$DO$121,ROWS($A$11:$A28)+2,FALSE)","v":0},{"$f":"HLOOKUP(AE$7,$J$67:$DO$121,ROWS($A$11:$A28)+2,FALSE)","v":1369},{"$f":"HLOOKUP(AF$7,$J$67:$DO$121,ROWS($A$11:$A28)+2,FALSE)","v":100},{"$f":"HLOOKUP(AG$7,$J$67:$DO$121,ROWS($A$11:$A28)+2,FALSE)","v":806},{"$f":"HLOOKUP(AH$7,$J$67:$DO$121,ROWS($A$11:$A28)+2,FALSE)","v":1562},{"$f":"HLOOKUP(AI$7,$J$67:$DO$121,ROWS($A$11:$A28)+2,FALSE)","v":167},{"$f":"HLOOKUP(AJ$7,$J$67:$DO$121,ROWS($A$11:$A28)+2,FALSE)","v":23384},{"$f":"HLOOKUP(AK$7,$J$67:$DO$121,ROWS($A$11:$A28)+2,FALSE)","v":289},{"$f":"HLOOKUP(AL$7,$J$67:$DO$121,ROWS($A$11:$A28)+2,FALSE)","v":2678},{"$f":"HLOOKUP(AM$7,$J$67:$DO$121,ROWS($A$11:$A28)+2,FALSE)","v":1318},{"$f":"HLOOKUP(AN$7,$J$67:$DO$121,ROWS($A$11:$A28)+2,FALSE)","v":76},{"$f":"HLOOKUP(AO$7,$J$67:$DO$121,ROWS($A$11:$A28)+2,FALSE)","v":1743},{"$f":"HLOOKUP(AP$7,$J$67:$DO$121,ROWS($A$11:$A28)+2,FALSE)","v":873},{"$f":"HLOOKUP(AQ$7,$J$67:$DO$121,ROWS($A$11:$A28)+2,FALSE)","v":2390},{"$f":"HLOOKUP(AR$7,$J$67:$DO$121,ROWS($A$11:$A28)+2,FALSE)","v":1083},{"$f":"HLOOKUP(AS$7,$J$67:$DO$121,ROWS($A$11:$A28)+2,FALSE)","v":225},{"$f":"HLOOKUP(AT$7,$J$67:$DO$121,ROWS($A$11:$A28)+2,FALSE)","v":1509},{"$f":"HLOOKUP(AU$7,$J$67:$DO$121,ROWS($A$11:$A28)+2,FALSE)","v":7568},{"$f":"HLOOKUP(AV$7,$J$67:$DO$121,ROWS($A$11:$A28)+2,FALSE)","v":514},{"$f":"HLOOKUP(AW$7,$J$67:$DO$121,ROWS($A$11:$A28)+2,FALSE)","v":563},{"$f":"HLOOKUP(AX$7,$J$67:$DO$121,ROWS($A$11:$A28)+2,FALSE)","v":39},{"$f":"HLOOKUP(AY$7,$J$67:$DO$121,ROWS($A$11:$A28)+2,FALSE)","v":137},{"$f":"HLOOKUP(AZ$7,$J$67:$DO$121,ROWS($A$11:$A28)+2,FALSE)","v":352},{"$f":"HLOOKUP(BA$7,$J$67:$DO$121,ROWS($A$11:$A28)+2,FALSE)","v":1152},{"$f":"HLOOKUP(BB$7,$J$67:$DO$121,ROWS($A$11:$A28)+2,FALSE)","v":9217},{"$f":"HLOOKUP(BC$7,$J$67:$DO$121,ROWS($A$11:$A28)+2,FALSE)","v":238},{"$f":"HLOOKUP(BD$7,$J$67:$DO$121,ROWS($A$11:$A28)+2,FALSE)","v":75},{"$f":"HLOOKUP(BE$7,$J$67:$DO$121,ROWS($A$11:$A28)+2,FALSE)","v":1648},{"$f":"HLOOKUP(BF$7,$J$67:$DO$121,ROWS($A$11:$A28)+2,FALSE)","v":1175},{"$f":"HLOOKUP(BG$7,$J$67:$DO$121,ROWS($A$11:$A28)+2,FALSE)","v":0},{"$f":"HLOOKUP(BH$7,$J$67:$DO$121,ROWS($A$11:$A28)+2,FALSE)","v":1233},{"$f":"HLOOKUP(BI$7,$J$67:$DO$121,ROWS($A$11:$A28)+2,FALSE)","v":573},{"$f":"HLOOKUP(BJ$7,$J$67:$DO$121,ROWS($A$11:$A28)+2,FALSE)","v":68},null,null,null,null,{"$f":"HLOOKUP(BO$7+0.5,$J$67:$DO$121,ROWS($A$11:$A28)+2,FALSE)","v":7804},{"$f":"HLOOKUP(BP$7+0.5,$J$67:$DO$121,ROWS($A$11:$A28)+2,FALSE)","v":75},{"$f":"HLOOKUP(BQ$7+0.5,$J$67:$DO$121,ROWS($A$11:$A28)+2,FALSE)","v":697},{"$f":"HLOOKUP(BR$7+0.5,$J$67:$DO$121,ROWS($A$11:$A28)+2,FALSE)","v":878},{"$f":"HLOOKUP(BS$7+0.5,$J$67:$DO$121,ROWS($A$11:$A28)+2,FALSE)","v":1073},{"$f":"HLOOKUP(BT$7+0.5,$J$67:$DO$121,ROWS($A$11:$A28)+2,FALSE)","v":1459},{"$f":"HLOOKUP(BU$7+0.5,$J$67:$DO$121,ROWS($A$11:$A28)+2,FALSE)","v":2519},{"$f":"HLOOKUP(BV$7+0.5,$J$67:$DO$121,ROWS($A$11:$A28)+2,FALSE)","v":140},{"$f":"HLOOKUP(BW$7+0.5,$J$67:$DO$121,ROWS($A$11:$A28)+2,FALSE)","v":275},{"$f":"HLOOKUP(BX$7+0.5,$J$67:$DO$121,ROWS($A$11:$A28)+2,FALSE)","v":248},{"$f":"HLOOKUP(BY$7+0.5,$J$67:$DO$121,ROWS($A$11:$A28)+2,FALSE)","v":1848},{"$f":"HLOOKUP(BZ$7+0.5,$J$67:$DO$121,ROWS($A$11:$A28)+2,FALSE)","v":1039},{"$f":"HLOOKUP(CA$7+0.5,$J$67:$DO$121,ROWS($A$11:$A28)+2,FALSE)","v":154},{"$f":"HLOOKUP(CB$7+0.5,$J$67:$DO$121,ROWS($A$11:$A28)+2,FALSE)","v":407},{"$f":"HLOOKUP(CC$7+0.5,$J$67:$DO$121,ROWS($A$11:$A28)+2,FALSE)","v":1096},{"$f":"HLOOKUP(CD$7+0.5,$J$67:$DO$121,ROWS($A$11:$A28)+2,FALSE)","v":859},{"$f":"HLOOKUP(CE$7+0.5,$J$67:$DO$121,ROWS($A$11:$A28)+2,FALSE)","v":1184},{"$f":"HLOOKUP(CF$7+0.5,$J$67:$DO$121,ROWS($A$11:$A28)+2,FALSE)","v":"N/A"},{"$f":"HLOOKUP(CG$7+0.5,$J$67:$DO$121,ROWS($A$11:$A28)+2,FALSE)","v":1402},{"$f":"HLOOKUP(CH$7+0.5,$J$67:$DO$121,ROWS($A$11:$A28)+2,FALSE)","v":580},{"$f":"HLOOKUP(CI$7+0.5,$J$67:$DO$121,ROWS($A$11:$A28)+2,FALSE)","v":248},{"$f":"HLOOKUP(CJ$7+0.5,$J$67:$DO$121,ROWS($A$11:$A28)+2,FALSE)","v":1103},{"$f":"HLOOKUP(CK$7+0.5,$J$67:$DO$121,ROWS($A$11:$A28)+2,FALSE)","v":120},{"$f":"HLOOKUP(CL$7+0.5,$J$67:$DO$121,ROWS($A$11:$A28)+2,FALSE)","v":457},{"$f":"HLOOKUP(CM$7+0.5,$J$67:$DO$121,ROWS($A$11:$A28)+2,FALSE)","v":1147},{"$f":"HLOOKUP(CN$7+0.5,$J$67:$DO$121,ROWS($A$11:$A28)+2,FALSE)","v":146},{"$f":"HLOOKUP(CO$7+0.5,$J$67:$DO$121,ROWS($A$11:$A28)+2,FALSE)","v":3524},{"$f":"HLOOKUP(CP$7+0.5,$J$67:$DO$121,ROWS($A$11:$A28)+2,FALSE)","v":318},{"$f":"HLOOKUP(CQ$7+0.5,$J$67:$DO$121,ROWS($A$11:$A28)+2,FALSE)","v":875},{"$f":"HLOOKUP(CR$7+0.5,$J$67:$DO$121,ROWS($A$11:$A28)+2,FALSE)","v":1245},{"$f":"HLOOKUP(CS$7+0.5,$J$67:$DO$121,ROWS($A$11:$A28)+2,FALSE)","v":130},{"$f":"HLOOKUP(CT$7+0.5,$J$67:$DO$121,ROWS($A$11:$A28)+2,FALSE)","v":1236},{"$f":"HLOOKUP(CU$7+0.5,$J$67:$DO$121,ROWS($A$11:$A28)+2,FALSE)","v":580},{"$f":"HLOOKUP(CV$7+0.5,$J$67:$DO$121,ROWS($A$11:$A28)+2,FALSE)","v":1235},{"$f":"HLOOKUP(CW$7+0.5,$J$67:$DO$121,ROWS($A$11:$A28)+2,FALSE)","v":649},{"$f":"HLOOKUP(CX$7+0.5,$J$67:$DO$121,ROWS($A$11:$A28)+2,FALSE)","v":373},{"$f":"HLOOKUP(CY$7+0.5,$J$67:$DO$121,ROWS($A$11:$A28)+2,FALSE)","v":1127},{"$f":"HLOOKUP(CZ$7+0.5,$J$67:$DO$121,ROWS($A$11:$A28)+2,FALSE)","v":2302},{"$f":"HLOOKUP(DA$7+0.5,$J$67:$DO$121,ROWS($A$11:$A28)+2,FALSE)","v":610},{"$f":"HLOOKUP(DB$7+0.5,$J$67:$DO$121,ROWS($A$11:$A28)+2,FALSE)","v":537},{"$f":"HLOOKUP(DC$7+0.5,$J$67:$DO$121,ROWS($A$11:$A28)+2,FALSE)","v":79},{"$f":"HLOOKUP(DD$7+0.5,$J$67:$DO$121,ROWS($A$11:$A28)+2,FALSE)","v":211},{"$f":"HLOOKUP(DE$7+0.5,$J$67:$DO$121,ROWS($A$11:$A28)+2,FALSE)","v":227},{"$f":"HLOOKUP(DF$7+0.5,$J$67:$DO$121,ROWS($A$11:$A28)+2,FALSE)","v":821},{"$f":"HLOOKUP(DG$7+0.5,$J$67:$DO$121,ROWS($A$11:$A28)+2,FALSE)","v":2824},{"$f":"HLOOKUP(DH$7+0.5,$J$67:$DO$121,ROWS($A$11:$A28)+2,FALSE)","v":298},{"$f":"HLOOKUP(DI$7+0.5,$J$67:$DO$121,ROWS($A$11:$A28)+2,FALSE)","v":126},{"$f":"HLOOKUP(DJ$7+0.5,$J$67:$DO$121,ROWS($A$11:$A28)+2,FALSE)","v":934},{"$f":"HLOOKUP(DK$7+0.5,$J$67:$DO$121,ROWS($A$11:$A28)+2,FALSE)","v":792},{"$f":"HLOOKUP(DL$7+0.5,$J$67:$DO$121,ROWS($A$11:$A28)+2,FALSE)","v":248},{"$f":"HLOOKUP(DM$7+0.5,$J$67:$DO$121,ROWS($A$11:$A28)+2,FALSE)","v":898},{"$f":"HLOOKUP(DN$7+0.5,$J$67:$DO$121,ROWS($A$11:$A28)+2,FALSE)","v":531},{"$f":"HLOOKUP(DO$7+0.5,$J$67:$DO$121,ROWS($A$11:$A28)+2,FALSE)","v":88}]
[null,"Kentucky",4296639,3389,3638259,20337,519887,18955,1.7564730487426721E-2,{"$f":"HLOOKUP(J$7,$J$67:$DO$121,ROWS($A$11:$A29)+2,FALSE)","v":118443},{"$f":"HLOOKUP(K$7,$J$67:$DO$121,ROWS($A$11:$A29)+2,FALSE)","v":2161},{"$f":"HLOOKUP(L$7,$J$67:$DO$121,ROWS($A$11:$A29)+2,FALSE)","v":3017},{"$f":"HLOOKUP(M$7,$J$67:$DO$121,ROWS($A$11:$A29)+2,FALSE)","v":2598},{"$f":"HLOOKUP(N$7,$J$67:$DO$121,ROWS($A$11:$A29)+2,FALSE)","v":558},{"$f":"HLOOKUP(O$7,$J$67:$DO$121,ROWS($A$11:$A29)+2,FALSE)","v":3779},{"$f":"HLOOKUP(P$7,$J$67:$DO$121,ROWS($A$11:$A29)+2,FALSE)","v":329},{"$f":"HLOOKUP(Q$7,$J$67:$DO$121,ROWS($A$11:$A29)+2,FALSE)","v":698},{"$f":"HLOOKUP(R$7,$J$67:$DO$121,ROWS($A$11:$A29)+2,FALSE)","v":38},{"$f":"HLOOKUP(S$7,$J$67:$DO$121,ROWS($A$11:$A29)+2,FALSE)","v":147},{"$f":"HLOOKUP(T$7,$J$67:$DO$121,ROWS($A$11:$A29)+2,FALSE)","v":10119},{"$f":"HLOOKUP(U$7,$J$67:$DO$121,ROWS($A$11:$A29)+2,FALSE)","v":6397},{"$f":"HLOOKUP(V$7,$J$67:$DO$121,ROWS($A$11:$A29)+2,FALSE)","v":520},{"$f":"HLOOKUP(W$7,$J$67:$DO$121,ROWS($A$11:$A29)+2,FALSE)","v":71},{"$f":"HLOOKUP(X$7,$J$67:$DO$121,ROWS($A$11:$A29)+2,FALSE)","v":4659},{"$f":"HLOOKUP(Y$7,$J$67:$DO$121,ROWS($A$11:$A29)+2,FALSE)","v":11906},{"$f":"HLOOKUP(Z$7,$J$67:$DO$121,ROWS($A$11:$A29)+2,FALSE)","v":656},{"$f":"HLOOKUP(AA$7,$J$67:$DO$121,ROWS($A$11:$A29)+2,FALSE)","v":1109},{"$f":"HLOOKUP(AB$7,$J$67:$DO$121,ROWS($A$11:$A29)+2,FALSE)","v":"N/A"},{"$f":"HLOOKUP(AC$7,$J$67:$DO$121,ROWS($A$11:$A29)+2,FALSE)","v":437},{"$f":"HLOOKUP(AD$7,$J$67:$DO$121,ROWS($A$11:$A29)+2,FALSE)","v":0},{"$f":"HLOOKUP(AE$7,$J$67:$DO$121,ROWS($A$11:$A29)+2,FALSE)","v":1395},{"$f":"HLOOKUP(AF$7,$J$67:$DO$121,ROWS($A$11:$A29)+2,FALSE)","v":1036},{"$f":"HLOOKUP(AG$7,$J$67:$DO$121,ROWS($A$11:$A29)+2,FALSE)","v":4672},{"$f":"HLOOKUP(AH$7,$J$67:$DO$121,ROWS($A$11:$A29)+2,FALSE)","v":930},{"$f":"HLOOKUP(AI$7,$J$67:$DO$121,ROWS($A$11:$A29)+2,FALSE)","v":1442},{"$f":"HLOOKUP(AJ$7,$J$67:$DO$121,ROWS($A$11:$A29)+2,FALSE)","v":3153},{"$f":"HLOOKUP(AK$7,$J$67:$DO$121,ROWS($A$11:$A29)+2,FALSE)","v":0},{"$f":"HLOOKUP(AL$7,$J$67:$DO$121,ROWS($A$11:$A29)+2,FALSE)","v":858},{"$f":"HLOOKUP(AM$7,$J$67:$DO$121,ROWS($A$11:$A29)+2,FALSE)","v":76},{"$f":"HLOOKUP(AN$7,$J$67:$DO$121,ROWS($A$11:$A29)+2,FALSE)","v":0},{"$f":"HLOOKUP(AO$7,$J$67:$DO$121,ROWS($A$11:$A29)+2,FALSE)","v":1147},{"$f":"HLOOKUP(AP$7,$J$67:$DO$121,ROWS($A$11:$A29)+2,FALSE)","v":122},{"$f":"HLOOKUP(AQ$7,$J$67:$DO$121,ROWS($A$11:$A29)+2,FALSE)","v":2057},{"$f":"HLOOKUP(AR$7,$J$67:$DO$121,ROWS($A$11:$A29)+2,FALSE)","v":3758},{"$f":"HLOOKUP(AS$7,$J$67:$DO$121,ROWS($A$11:$A29)+2,FALSE)","v":0},{"$f":"HLOOKUP(AT$7,$J$67:$DO$121,ROWS($A$11:$A29)+2,FALSE)","v":15598},{"$f":"HLOOKUP(AU$7,$J$67:$DO$121,ROWS($A$11:$A29)+2,FALSE)","v":1153},{"$f":"HLOOKUP(AV$7,$J$67:$DO$121,ROWS($A$11:$A29)+2,FALSE)","v":181},{"$f":"HLOOKUP(AW$7,$J$67:$DO$121,ROWS($A$11:$A29)+2,FALSE)","v":2618},{"$f":"HLOOKUP(AX$7,$J$67:$DO$121,ROWS($A$11:$A29)+2,FALSE)","v":289},{"$f":"HLOOKUP(AY$7,$J$67:$DO$121,ROWS($A$11:$A29)+2,FALSE)","v":1286},{"$f":"HLOOKUP(AZ$7,$J$67:$DO$121,ROWS($A$11:$A29)+2,FALSE)","v":163},{"$f":"HLOOKUP(BA$7,$J$67:$DO$121,ROWS($A$11:$A29)+2,FALSE)","v":11153},{"$f":"HLOOKUP(BB$7,$J$67:$DO$121,ROWS($A$11:$A29)+2,FALSE)","v":5758},{"$f":"HLOOKUP(BC$7,$J$67:$DO$121,ROWS($A$11:$A29)+2,FALSE)","v":905},{"$f":"HLOOKUP(BD$7,$J$67:$DO$121,ROWS($A$11:$A29)+2,FALSE)","v":525},{"$f":"HLOOKUP(BE$7,$J$67:$DO$121,ROWS($A$11:$A29)+2,FALSE)","v":3671},{"$f":"HLOOKUP(BF$7,$J$67:$DO$121,ROWS($A$11:$A29)+2,FALSE)","v":716},{"$f":"HLOOKUP(BG$7,$J$67:$DO$121,ROWS($A$11:$A29)+2,FALSE)","v":2297},{"$f":"HLOOKUP(BH$7,$J$67:$DO$121,ROWS($A$11:$A29)+2,FALSE)","v":1993},{"$f":"HLOOKUP(BI$7,$J$67:$DO$121,ROWS($A$11:$A29)+2,FALSE)","v":292},{"$f":"HLOOKUP(BJ$7,$J$67:$DO$121,ROWS($A$11:$A29)+2,FALSE)","v":179},null,null,null,null,{"$f":"HLOOKUP(BO$7+0.5,$J$67:$DO$121,ROWS($A$11:$A29)+2,FALSE)","v":8947},{"$f":"HLOOKUP(BP$7+0.5,$J$67:$DO$121,ROWS($A$11:$A29)+2,FALSE)","v":871},{"$f":"HLOOKUP(BQ$7+0.5,$J$67:$DO$121,ROWS($A$11:$A29)+2,FALSE)","v":2024},{"$f":"HLOOKUP(BR$7+0.5,$J$67:$DO$121,ROWS($A$11:$A29)+2,FALSE)","v":1483},{"$f":"HLOOKUP(BS$7+0.5,$J$67:$DO$121,ROWS($A$11:$A29)+2,FALSE)","v":547},{"$f":"HLOOKUP(BT$7+0.5,$J$67:$DO$121,ROWS($A$11:$A29)+2,FALSE)","v":1387},{"$f":"HLOOKUP(BU$7+0.5,$J$67:$DO$121,ROWS($A$11:$A29)+2,FALSE)","v":363},{"$f":"HLOOKUP(BV$7+0.5,$J$67:$DO$121,ROWS($A$11:$A29)+2,FALSE)","v":710},{"$f":"HLOOKUP(BW$7+0.5,$J$67:$DO$121,ROWS($A$11:$A29)+2,FALSE)","v":64},{"$f":"HLOOKUP(BX$7+0.5,$J$67:$DO$121,ROWS($A$11:$A29)+2,FALSE)","v":210},{"$f":"HLOOKUP(BY$7+0.5,$J$67:$DO$121,ROWS($A$11:$A29)+2,FALSE)","v":2893},{"$f":"HLOOKUP(BZ$7+0.5,$J$67:$DO$121,ROWS($A$11:$A29)+2,FALSE)","v":2093},{"$f":"HLOOKUP(CA$7+0.5,$J$67:$DO$121,ROWS($A$11:$A29)+2,FALSE)","v":520},{"$f":"HLOOKUP(CB$7+0.5,$J$67:$DO$121,ROWS($A$11:$A29)+2,FALSE)","v":119},{"$f":"HLOOKUP(CC$7+0.5,$J$67:$DO$121,ROWS($A$11:$A29)+2,FALSE)","v":1887},{"$f":"HLOOKUP(CD$7+0.5,$J$67:$DO$121,ROWS($A$11:$A29)+2,FALSE)","v":2334},{"$f":"HLOOKUP(CE$7+0.5,$J$67:$DO$121,ROWS($A$11:$A29)+2,FALSE)","v":788},{"$f":"HLOOKUP(CF$7+0.5,$J$67:$DO$121,ROWS($A$11:$A29)+2,FALSE)","v":1031},{"$f":"HLOOKUP(CG$7+0.5,$J$67:$DO$121,ROWS($A$11:$A29)+2,FALSE)","v":"N/A"},{"$f":"HLOOKUP(CH$7+0.5,$J$67:$DO$121,ROWS($A$11:$A29)+2,FALSE)","v":435},{"$f":"HLOOKUP(CI$7+0.5,$J$67:$DO$121,ROWS($A$11:$A29)+2,FALSE)","v":271},{"$f":"HLOOKUP(CJ$7+0.5,$J$67:$DO$121,ROWS($A$11:$A29)+2,FALSE)","v":995},{"$f":"HLOOKUP(CK$7+0.5,$J$67:$DO$121,ROWS($A$11:$A29)+2,FALSE)","v":738},{"$f":"HLOOKUP(CL$7+0.5,$J$67:$DO$121,ROWS($A$11:$A29)+2,FALSE)","v":1897},{"$f":"HLOOKUP(CM$7+0.5,$J$67:$DO$121,ROWS($A$11:$A29)+2,FALSE)","v":781},{"$f":"HLOOKUP(CN$7+0.5,$J$67:$DO$121,ROWS($A$11:$A29)+2,FALSE)","v":917},{"$f":"HLOOKUP(CO$7+0.5,$J$67:$DO$121,ROWS($A$11:$A29)+2,FALSE)","v":1147},{"$f":"HLOOKUP(CP$7+0.5,$J$67:$DO$121,ROWS($A$11:$A29)+2,FALSE)","v":271},{"$f":"HLOOKUP(CQ$7+0.5,$J$67:$DO$121,ROWS($A$11:$A29)+2,FALSE)","v":809},{"$f":"HLOOKUP(CR$7+0.5,$J$67:$DO$121,ROWS($A$11:$A29)+2,FALSE)","v":129},{"$f":"HLOOKUP(CS$7+0.5,$J$67:$DO$121,ROWS($A$11:$A29)+2,FALSE)","v":271},{"$f":"HLOOKUP(CT$7+0.5,$J$67:$DO$121,ROWS($A$11:$A29)+2,FALSE)","v":807},{"$f":"HLOOKUP(CU$7+0.5,$J$67:$DO$121,ROWS($A$11:$A29)+2,FALSE)","v":189},{"$f":"HLOOKUP(CV$7+0.5,$J$67:$DO$121,ROWS($A$11:$A29)+2,FALSE)","v":1057},{"$f":"HLOOKUP(CW$7+0.5,$J$67:$DO$121,ROWS($A$11:$A29)+2,FALSE)","v":1216},{"$f":"HLOOKUP(CX$7+0.5,$J$67:$DO$121,ROWS($A$11:$A29)+2,FALSE)","v":271},{"$f":"HLOOKUP(CY$7+0.5,$J$67:$DO$121,ROWS($A$11:$A29)+2,FALSE)","v":2549},{"$f":"HLOOKUP(CZ$7+0.5,$J$67:$DO$121,ROWS($A$11:$A29)+2,FALSE)","v":900},{"$f":"HLOOKUP(DA$7+0.5,$J$67:$DO$121,ROWS($A$11:$A29)+2,FALSE)","v":220},{"$f":"HLOOKUP(DB$7+0.5,$J$67:$DO$121,ROWS($A$11:$A29)+2,FALSE)","v":1480},{"$f":"HLOOKUP(DC$7+0.5,$J$67:$DO$121,ROWS($A$11:$A29)+2,FALSE)","v":381},{"$f":"HLOOKUP(DD$7+0.5,$J$67:$DO$121,ROWS($A$11:$A29)+2,FALSE)","v":741},{"$f":"HLOOKUP(DE$7+0.5,$J$67:$DO$121,ROWS($A$11:$A29)+2,FALSE)","v":262},{"$f":"HLOOKUP(DF$7+0.5,$J$67:$DO$121,ROWS($A$11:$A29)+2,FALSE)","v":3003},{"$f":"HLOOKUP(DG$7+0.5,$J$67:$DO$121,ROWS($A$11:$A29)+2,FALSE)","v":1631},{"$f":"HLOOKUP(DH$7+0.5,$J$67:$DO$121,ROWS($A$11:$A29)+2,FALSE)","v":721},{"$f":"HLOOKUP(DI$7+0.5,$J$67:$DO$121,ROWS($A$11:$A29)+2,FALSE)","v":515},{"$f":"HLOOKUP(DJ$7+0.5,$J$67:$DO$121,ROWS($A$11:$A29)+2,FALSE)","v":1981},{"$f":"HLOOKUP(DK$7+0.5,$J$67:$DO$121,ROWS($A$11:$A29)+2,FALSE)","v":599},{"$f":"HLOOKUP(DL$7+0.5,$J$67:$DO$121,ROWS($A$11:$A29)+2,FALSE)","v":1276},{"$f":"HLOOKUP(DM$7+0.5,$J$67:$DO$121,ROWS($A$11:$A29)+2,FALSE)","v":1413},{"$f":"HLOOKUP(DN$7+0.5,$J$67:$DO$121,ROWS($A$11:$A29)+2,FALSE)","v":462},{"$f":"HLOOKUP(DO$7+0.5,$J$67:$DO$121,ROWS($A$11:$A29)+2,FALSE)","v":240}]
[null,"Louisiana",4483529,3720,3826390,25103,547291,22645,1.4516635872814048E-2,{"$f":"HLOOKUP(J$7,$J$67:$DO$121,ROWS($A$11:$A30)+2,FALSE)","v":97889},{"$f":"HLOOKUP(K$7,$J$67:$DO$121,ROWS($A$11:$A30)+2,FALSE)","v":5740},{"$f":"HLOOKUP(L$7,$J$67:$DO$121,ROWS($A$11:$A30)+2,FALSE)","v":1504},{"$f":"HLOOKUP(M$7,$J$67:$DO$121,ROWS($A$11:$A30)+2,FALSE)","v":1960},{"$f":"HLOOKUP(N$7,$J$67:$DO$121,ROWS($A$11:$A30)+2,FALSE)","v":2382},{"$f":"HLOOKUP(O$7,$J$67:$DO$121,ROWS($A$11:$A30)+2,FALSE)","v":5751},{"$f":"HLOOKUP(P$7,$J$67:$DO$121,ROWS($A$11:$A30)+2,FALSE)","v":1215},{"$f":"HLOOKUP(Q$7,$J$67:$DO$121,ROWS($A$11:$A30)+2,FALSE)","v":89},{"$f":"HLOOKUP(R$7,$J$67:$DO$121,ROWS($A$11:$A30)+2,FALSE)","v":0},{"$f":"HLOOKUP(S$7,$J$67:$DO$121,ROWS($A$11:$A30)+2,FALSE)","v":264},{"$f":"HLOOKUP(T$7,$J$67:$DO$121,ROWS($A$11:$A30)+2,FALSE)","v":9394},{"$f":"HLOOKUP(U$7,$J$67:$DO$121,ROWS($A$11:$A30)+2,FALSE)","v":5766},{"$f":"HLOOKUP(V$7,$J$67:$DO$121,ROWS($A$11:$A30)+2,FALSE)","v":342},{"$f":"HLOOKUP(W$7,$J$67:$DO$121,ROWS($A$11:$A30)+2,FALSE)","v":202},{"$f":"HLOOKUP(X$7,$J$67:$DO$121,ROWS($A$11:$A30)+2,FALSE)","v":2131},{"$f":"HLOOKUP(Y$7,$J$67:$DO$121,ROWS($A$11:$A30)+2,FALSE)","v":948},{"$f":"HLOOKUP(Z$7,$J$67:$DO$121,ROWS($A$11:$A30)+2,FALSE)","v":625},{"$f":"HLOOKUP(AA$7,$J$67:$DO$121,ROWS($A$11:$A30)+2,FALSE)","v":706},{"$f":"HLOOKUP(AB$7,$J$67:$DO$121,ROWS($A$11:$A30)+2,FALSE)","v":1656},{"$f":"HLOOKUP(AC$7,$J$67:$DO$121,ROWS($A$11:$A30)+2,FALSE)","v":"N/A"},{"$f":"HLOOKUP(AD$7,$J$67:$DO$121,ROWS($A$11:$A30)+2,FALSE)","v":162},{"$f":"HLOOKUP(AE$7,$J$67:$DO$121,ROWS($A$11:$A30)+2,FALSE)","v":963},{"$f":"HLOOKUP(AF$7,$J$67:$DO$121,ROWS($A$11:$A30)+2,FALSE)","v":995},{"$f":"HLOOKUP(AG$7,$J$67:$DO$121,ROWS($A$11:$A30)+2,FALSE)","v":1301},{"$f":"HLOOKUP(AH$7,$J$67:$DO$121,ROWS($A$11:$A30)+2,FALSE)","v":569},{"$f":"HLOOKUP(AI$7,$J$67:$DO$121,ROWS($A$11:$A30)+2,FALSE)","v":7032},{"$f":"HLOOKUP(AJ$7,$J$67:$DO$121,ROWS($A$11:$A30)+2,FALSE)","v":2852},{"$f":"HLOOKUP(AK$7,$J$67:$DO$121,ROWS($A$11:$A30)+2,FALSE)","v":40},{"$f":"HLOOKUP(AL$7,$J$67:$DO$121,ROWS($A$11:$A30)+2,FALSE)","v":119},{"$f":"HLOOKUP(AM$7,$J$67:$DO$121,ROWS($A$11:$A30)+2,FALSE)","v":1552},{"$f":"HLOOKUP(AN$7,$J$67:$DO$121,ROWS($A$11:$A30)+2,FALSE)","v":462},{"$f":"HLOOKUP(AO$7,$J$67:$DO$121,ROWS($A$11:$A30)+2,FALSE)","v":171},{"$f":"HLOOKUP(AP$7,$J$67:$DO$121,ROWS($A$11:$A30)+2,FALSE)","v":294},{"$f":"HLOOKUP(AQ$7,$J$67:$DO$121,ROWS($A$11:$A30)+2,FALSE)","v":2161},{"$f":"HLOOKUP(AR$7,$J$67:$DO$121,ROWS($A$11:$A30)+2,FALSE)","v":1443},{"$f":"HLOOKUP(AS$7,$J$67:$DO$121,ROWS($A$11:$A30)+2,FALSE)","v":438},{"$f":"HLOOKUP(AT$7,$J$67:$DO$121,ROWS($A$11:$A30)+2,FALSE)","v":1100},{"$f":"HLOOKUP(AU$7,$J$67:$DO$121,ROWS($A$11:$A30)+2,FALSE)","v":1074},{"$f":"HLOOKUP(AV$7,$J$67:$DO$121,ROWS($A$11:$A30)+2,FALSE)","v":281},{"$f":"HLOOKUP(AW$7,$J$67:$DO$121,ROWS($A$11:$A30)+2,FALSE)","v":1350},{"$f":"HLOOKUP(AX$7,$J$67:$DO$121,ROWS($A$11:$A30)+2,FALSE)","v":0},{"$f":"HLOOKUP(AY$7,$J$67:$DO$121,ROWS($A$11:$A30)+2,FALSE)","v":1130},{"$f":"HLOOKUP(AZ$7,$J$67:$DO$121,ROWS($A$11:$A30)+2,FALSE)","v":0},{"$f":"HLOOKUP(BA$7,$J$67:$DO$121,ROWS($A$11:$A30)+2,FALSE)","v":1853},{"$f":"HLOOKUP(BB$7,$J$67:$DO$121,ROWS($A$11:$A30)+2,FALSE)","v":26134},{"$f":"HLOOKUP(BC$7,$J$67:$DO$121,ROWS($A$11:$A30)+2,FALSE)","v":473},{"$f":"HLOOKUP(BD$7,$J$67:$DO$121,ROWS($A$11:$A30)+2,FALSE)","v":0},{"$f":"HLOOKUP(BE$7,$J$67:$DO$121,ROWS($A$11:$A30)+2,FALSE)","v":1278},{"$f":"HLOOKUP(BF$7,$J$67:$DO$121,ROWS($A$11:$A30)+2,FALSE)","v":1509},{"$f":"HLOOKUP(BG$7,$J$67:$DO$121,ROWS($A$11:$A30)+2,FALSE)","v":210},{"$f":"HLOOKUP(BH$7,$J$67:$DO$121,ROWS($A$11:$A30)+2,FALSE)","v":237},{"$f":"HLOOKUP(BI$7,$J$67:$DO$121,ROWS($A$11:$A30)+2,FALSE)","v":31},{"$f":"HLOOKUP(BJ$7,$J$67:$DO$121,ROWS($A$11:$A30)+2,FALSE)","v":402},null,null,null,null,{"$f":"HLOOKUP(BO$7+0.5,$J$67:$DO$121,ROWS($A$11:$A30)+2,FALSE)","v":8319},{"$f":"HLOOKUP(BP$7+0.5,$J$67:$DO$121,ROWS($A$11:$A30)+2,FALSE)","v":2537},{"$f":"HLOOKUP(BQ$7+0.5,$J$67:$DO$121,ROWS($A$11:$A30)+2,FALSE)","v":922},{"$f":"HLOOKUP(BR$7+0.5,$J$67:$DO$121,ROWS($A$11:$A30)+2,FALSE)","v":1204},{"$f":"HLOOKUP(BS$7+0.5,$J$67:$DO$121,ROWS($A$11:$A30)+2,FALSE)","v":1114},{"$f":"HLOOKUP(BT$7+0.5,$J$67:$DO$121,ROWS($A$11:$A30)+2,FALSE)","v":1933},{"$f":"HLOOKUP(BU$7+0.5,$J$67:$DO$121,ROWS($A$11:$A30)+2,FALSE)","v":567},{"$f":"HLOOKUP(BV$7+0.5,$J$67:$DO$121,ROWS($A$11:$A30)+2,FALSE)","v":120},{"$f":"HLOOKUP(BW$7+0.5,$J$67:$DO$121,ROWS($A$11:$A30)+2,FALSE)","v":281},{"$f":"HLOOKUP(BX$7+0.5,$J$67:$DO$121,ROWS($A$11:$A30)+2,FALSE)","v":228},{"$f":"HLOOKUP(BY$7+0.5,$J$67:$DO$121,ROWS($A$11:$A30)+2,FALSE)","v":2799},{"$f":"HLOOKUP(BZ$7+0.5,$J$67:$DO$121,ROWS($A$11:$A30)+2,FALSE)","v":1868},{"$f":"HLOOKUP(CA$7+0.5,$J$67:$DO$121,ROWS($A$11:$A30)+2,FALSE)","v":502},{"$f":"HLOOKUP(CB$7+0.5,$J$67:$DO$121,ROWS($A$11:$A30)+2,FALSE)","v":205},{"$f":"HLOOKUP(CC$7+0.5,$J$67:$DO$121,ROWS($A$11:$A30)+2,FALSE)","v":1394},{"$f":"HLOOKUP(CD$7+0.5,$J$67:$DO$121,ROWS($A$11:$A30)+2,FALSE)","v":651},{"$f":"HLOOKUP(CE$7+0.5,$J$67:$DO$121,ROWS($A$11:$A30)+2,FALSE)","v":656},{"$f":"HLOOKUP(CF$7+0.5,$J$67:$DO$121,ROWS($A$11:$A30)+2,FALSE)","v":483},{"$f":"HLOOKUP(CG$7+0.5,$J$67:$DO$121,ROWS($A$11:$A30)+2,FALSE)","v":1093},{"$f":"HLOOKUP(CH$7+0.5,$J$67:$DO$121,ROWS($A$11:$A30)+2,FALSE)","v":"N/A"},{"$f":"HLOOKUP(CI$7+0.5,$J$67:$DO$121,ROWS($A$11:$A30)+2,FALSE)","v":269},{"$f":"HLOOKUP(CJ$7+0.5,$J$67:$DO$121,ROWS($A$11:$A30)+2,FALSE)","v":699},{"$f":"HLOOKUP(CK$7+0.5,$J$67:$DO$121,ROWS($A$11:$A30)+2,FALSE)","v":702},{"$f":"HLOOKUP(CL$7+0.5,$J$67:$DO$121,ROWS($A$11:$A30)+2,FALSE)","v":886},{"$f":"HLOOKUP(CM$7+0.5,$J$67:$DO$121,ROWS($A$11:$A30)+2,FALSE)","v":513},{"$f":"HLOOKUP(CN$7+0.5,$J$67:$DO$121,ROWS($A$11:$A30)+2,FALSE)","v":2217},{"$f":"HLOOKUP(CO$7+0.5,$J$67:$DO$121,ROWS($A$11:$A30)+2,FALSE)","v":1534},{"$f":"HLOOKUP(CP$7+0.5,$J$67:$DO$121,ROWS($A$11:$A30)+2,FALSE)","v":72},{"$f":"HLOOKUP(CQ$7+0.5,$J$67:$DO$121,ROWS($A$11:$A30)+2,FALSE)","v":193},{"$f":"HLOOKUP(CR$7+0.5,$J$67:$DO$121,ROWS($A$11:$A30)+2,FALSE)","v":785},{"$f":"HLOOKUP(CS$7+0.5,$J$67:$DO$121,ROWS($A$11:$A30)+2,FALSE)","v":427},{"$f":"HLOOKUP(CT$7+0.5,$J$67:$DO$121,ROWS($A$11:$A30)+2,FALSE)","v":249},{"$f":"HLOOKUP(CU$7+0.5,$J$67:$DO$121,ROWS($A$11:$A30)+2,FALSE)","v":256},{"$f":"HLOOKUP(CV$7+0.5,$J$67:$DO$121,ROWS($A$11:$A30)+2,FALSE)","v":822},{"$f":"HLOOKUP(CW$7+0.5,$J$67:$DO$121,ROWS($A$11:$A30)+2,FALSE)","v":686},{"$f":"HLOOKUP(CX$7+0.5,$J$67:$DO$121,ROWS($A$11:$A30)+2,FALSE)","v":514},{"$f":"HLOOKUP(CY$7+0.5,$J$67:$DO$121,ROWS($A$11:$A30)+2,FALSE)","v":774},{"$f":"HLOOKUP(CZ$7+0.5,$J$67:$DO$121,ROWS($A$11:$A30)+2,FALSE)","v":675},{"$f":"HLOOKUP(DA$7+0.5,$J$67:$DO$121,ROWS($A$11:$A30)+2,FALSE)","v":277},{"$f":"HLOOKUP(DB$7+0.5,$J$67:$DO$121,ROWS($A$11:$A30)+2,FALSE)","v":747},{"$f":"HLOOKUP(DC$7+0.5,$J$67:$DO$121,ROWS($A$11:$A30)+2,FALSE)","v":281},{"$f":"HLOOKUP(DD$7+0.5,$J$67:$DO$121,ROWS($A$11:$A30)+2,FALSE)","v":706},{"$f":"HLOOKUP(DE$7+0.5,$J$67:$DO$121,ROWS($A$11:$A30)+2,FALSE)","v":281},{"$f":"HLOOKUP(DF$7+0.5,$J$67:$DO$121,ROWS($A$11:$A30)+2,FALSE)","v":621},{"$f":"HLOOKUP(DG$7+0.5,$J$67:$DO$121,ROWS($A$11:$A30)+2,FALSE)","v":3903},{"$f":"HLOOKUP(DH$7+0.5,$J$67:$DO$121,ROWS($A$11:$A30)+2,FALSE)","v":380},{"$f":"HLOOKUP(DI$7+0.5,$J$67:$DO$121,ROWS($A$11:$A30)+2,FALSE)","v":281},{"$f":"HLOOKUP(DJ$7+0.5,$J$67:$DO$121,ROWS($A$11:$A30)+2,FALSE)","v":733},{"$f":"HLOOKUP(DK$7+0.5,$J$67:$DO$121,ROWS($A$11:$A30)+2,FALSE)","v":1126},{"$f":"HLOOKUP(DL$7+0.5,$J$67:$DO$121,ROWS($A$11:$A30)+2,FALSE)","v":254},{"$f":"HLOOKUP(DM$7+0.5,$J$67:$DO$121,ROWS($A$11:$A30)+2,FALSE)","v":229},{"$f":"HLOOKUP(DN$7+0.5,$J$67:$DO$121,ROWS($A$11:$A30)+2,FALSE)","v":67},{"$f":"HLOOKUP(DO$7+0.5,$J$67:$DO$121,ROWS($A$11:$A30)+2,FALSE)","v":285}]
[null,"Maine",1313902,1878,1136780,8034,146735,7677,4.1164255284819777E-3,{"$f":"HLOOKUP(J$7,$J$67:$DO$121,ROWS($A$11:$A31)+2,FALSE)","v":27758},{"$f":"HLOOKUP(K$7,$J$67:$DO$121,ROWS($A$11:$A31)+2,FALSE)","v":402},{"$f":"HLOOKUP(L$7,$J$67:$DO$121,ROWS($A$11:$A31)+2,FALSE)","v":424},{"$f":"HLOOKUP(M$7,$J$67:$DO$121,ROWS($A$11:$A31)+2,FALSE)","v":254},{"$f":"HLOOKUP(N$7,$J$67:$DO$121,ROWS($A$11:$A31)+2,FALSE)","v":67},{"$f":"HLOOKUP(O$7,$J$67:$DO$121,ROWS($A$11:$A31)+2,FALSE)","v":1066},{"$f":"HLOOKUP(P$7,$J$67:$DO$121,ROWS($A$11:$A31)+2,FALSE)","v":478},{"$f":"HLOOKUP(Q$7,$J$67:$DO$121,ROWS($A$11:$A31)+2,FALSE)","v":1361},{"$f":"HLOOKUP(R$7,$J$67:$DO$121,ROWS($A$11:$A31)+2,FALSE)","v":174},{"$f":"HLOOKUP(S$7,$J$67:$DO$121,ROWS($A$11:$A31)+2,FALSE)","v":55},{"$f":"HLOOKUP(T$7,$J$67:$DO$121,ROWS($A$11:$A31)+2,FALSE)","v":3025},{"$f":"HLOOKUP(U$7,$J$67:$DO$121,ROWS($A$11:$A31)+2,FALSE)","v":844},{"$f":"HLOOKUP(V$7,$J$67:$DO$121,ROWS($A$11:$A31)+2,FALSE)","v":62},{"$f":"HLOOKUP(W$7,$J$67:$DO$121,ROWS($A$11:$A31)+2,FALSE)","v":0},{"$f":"HLOOKUP(X$7,$J$67:$DO$121,ROWS($A$11:$A31)+2,FALSE)","v":311},{"$f":"HLOOKUP(Y$7,$J$67:$DO$121,ROWS($A$11:$A31)+2,FALSE)","v":259},{"$f":"HLOOKUP(Z$7,$J$67:$DO$121,ROWS($A$11:$A31)+2,FALSE)","v":337},{"$f":"HLOOKUP(AA$7,$J$67:$DO$121,ROWS($A$11:$A31)+2,FALSE)","v":56},{"$f":"HLOOKUP(AB$7,$J$67:$DO$121,ROWS($A$11:$A31)+2,FALSE)","v":484},{"$f":"HLOOKUP(AC$7,$J$67:$DO$121,ROWS($A$11:$A31)+2,FALSE)","v":115},{"$f":"HLOOKUP(AD$7,$J$67:$DO$121,ROWS($A$11:$A31)+2,FALSE)","v":"N/A"},{"$f":"HLOOKUP(AE$7,$J$67:$DO$121,ROWS($A$11:$A31)+2,FALSE)","v":243},{"$f":"HLOOKUP(AF$7,$J$67:$DO$121,ROWS($A$11:$A31)+2,FALSE)","v":3521},{"$f":"HLOOKUP(AG$7,$J$67:$DO$121,ROWS($A$11:$A31)+2,FALSE)","v":122},{"$f":"HLOOKUP(AH$7,$J$67:$DO$121,ROWS($A$11:$A31)+2,FALSE)","v":91},{"$f":"HLOOKUP(AI$7,$J$67:$DO$121,ROWS($A$11:$A31)+2,FALSE)","v":0},{"$f":"HLOOKUP(AJ$7,$J$67:$DO$121,ROWS($A$11:$A31)+2,FALSE)","v":201},{"$f":"HLOOKUP(AK$7,$J$67:$DO$121,ROWS($A$11:$A31)+2,FALSE)","v":275},{"$f":"HLOOKUP(AL$7,$J$67:$DO$121,ROWS($A$11:$A31)+2,FALSE)","v":204},{"$f":"HLOOKUP(AM$7,$J$67:$DO$121,ROWS($A$11:$A31)+2,FALSE)","v":345},{"$f":"HLOOKUP(AN$7,$J$67:$DO$121,ROWS($A$11:$A31)+2,FALSE)","v":4058},{"$f":"HLOOKUP(AO$7,$J$67:$DO$121,ROWS($A$11:$A31)+2,FALSE)","v":902},{"$f":"HLOOKUP(AP$7,$J$67:$DO$121,ROWS($A$11:$A31)+2,FALSE)","v":234},{"$f":"HLOOKUP(AQ$7,$J$67:$DO$121,ROWS($A$11:$A31)+2,FALSE)","v":2339},{"$f":"HLOOKUP(AR$7,$J$67:$DO$121,ROWS($A$11:$A31)+2,FALSE)","v":1001},{"$f":"HLOOKUP(AS$7,$J$67:$DO$121,ROWS($A$11:$A31)+2,FALSE)","v":55},{"$f":"HLOOKUP(AT$7,$J$67:$DO$121,ROWS($A$11:$A31)+2,FALSE)","v":315},{"$f":"HLOOKUP(AU$7,$J$67:$DO$121,ROWS($A$11:$A31)+2,FALSE)","v":124},{"$f":"HLOOKUP(AV$7,$J$67:$DO$121,ROWS($A$11:$A31)+2,FALSE)","v":0},{"$f":"HLOOKUP(AW$7,$J$67:$DO$121,ROWS($A$11:$A31)+2,FALSE)","v":375},{"$f":"HLOOKUP(AX$7,$J$67:$DO$121,ROWS($A$11:$A31)+2,FALSE)","v":379},{"$f":"HLOOKUP(AY$7,$J$67:$DO$121,ROWS($A$11:$A31)+2,FALSE)","v":148},{"$f":"HLOOKUP(AZ$7,$J$67:$DO$121,ROWS($A$11:$A31)+2,FALSE)","v":0},{"$f":"HLOOKUP(BA$7,$J$67:$DO$121,ROWS($A$11:$A31)+2,FALSE)","v":249},{"$f":"HLOOKUP(BB$7,$J$67:$DO$121,ROWS($A$11:$A31)+2,FALSE)","v":458},{"$f":"HLOOKUP(BC$7,$J$67:$DO$121,ROWS($A$11:$A31)+2,FALSE)","v":390},{"$f":"HLOOKUP(BD$7,$J$67:$DO$121,ROWS($A$11:$A31)+2,FALSE)","v":420},{"$f":"HLOOKUP(BE$7,$J$67:$DO$121,ROWS($A$11:$A31)+2,FALSE)","v":654},{"$f":"HLOOKUP(BF$7,$J$67:$DO$121,ROWS($A$11:$A31)+2,FALSE)","v":381},{"$f":"HLOOKUP(BG$7,$J$67:$DO$121,ROWS($A$11:$A31)+2,FALSE)","v":0},{"$f":"HLOOKUP(BH$7,$J$67:$DO$121,ROWS($A$11:$A31)+2,FALSE)","v":0},{"$f":"HLOOKUP(BI$7,$J$67:$DO$121,ROWS($A$11:$A31)+2,FALSE)","v":500},{"$f":"HLOOKUP(BJ$7,$J$67:$DO$121,ROWS($A$11:$A31)+2,FALSE)","v":204},null,null,null,null,{"$f":"HLOOKUP(BO$7+0.5,$J$67:$DO$121,ROWS($A$11:$A31)+2,FALSE)","v":3059},{"$f":"HLOOKUP(BP$7+0.5,$J$67:$DO$121,ROWS($A$11:$A31)+2,FALSE)","v":311},{"$f":"HLOOKUP(BQ$7+0.5,$J$67:$DO$121,ROWS($A$11:$A31)+2,FALSE)","v":439},{"$f":"HLOOKUP(BR$7+0.5,$J$67:$DO$121,ROWS($A$11:$A31)+2,FALSE)","v":290},{"$f":"HLOOKUP(BS$7+0.5,$J$67:$DO$121,ROWS($A$11:$A31)+2,FALSE)","v":112},{"$f":"HLOOKUP(BT$7+0.5,$J$67:$DO$121,ROWS($A$11:$A31)+2,FALSE)","v":740},{"$f":"HLOOKUP(BU$7+0.5,$J$67:$DO$121,ROWS($A$11:$A31)+2,FALSE)","v":377},{"$f":"HLOOKUP(BV$7+0.5,$J$67:$DO$121,ROWS($A$11:$A31)+2,FALSE)","v":689},{"$f":"HLOOKUP(BW$7+0.5,$J$67:$DO$121,ROWS($A$11:$A31)+2,FALSE)","v":229},{"$f":"HLOOKUP(BX$7+0.5,$J$67:$DO$121,ROWS($A$11:$A31)+2,FALSE)","v":89},{"$f":"HLOOKUP(BY$7+0.5,$J$67:$DO$121,ROWS($A$11:$A31)+2,FALSE)","v":924},{"$f":"HLOOKUP(BZ$7+0.5,$J$67:$DO$121,ROWS($A$11:$A31)+2,FALSE)","v":817},{"$f":"HLOOKUP(CA$7+0.5,$J$67:$DO$121,ROWS($A$11:$A31)+2,FALSE)","v":102},{"$f":"HLOOKUP(CB$7+0.5,$J$67:$DO$121,ROWS($A$11:$A31)+2,FALSE)","v":230},{"$f":"HLOOKUP(CC$7+0.5,$J$67:$DO$121,ROWS($A$11:$A31)+2,FALSE)","v":251},{"$f":"HLOOKUP(CD$7+0.5,$J$67:$DO$121,ROWS($A$11:$A31)+2,FALSE)","v":379},{"$f":"HLOOKUP(CE$7+0.5,$J$67:$DO$121,ROWS($A$11:$A31)+2,FALSE)","v":561},{"$f":"HLOOKUP(CF$7+0.5,$J$67:$DO$121,ROWS($A$11:$A31)+2,FALSE)","v":92},{"$f":"HLOOKUP(CG$7+0.5,$J$67:$DO$121,ROWS($A$11:$A31)+2,FALSE)","v":643},{"$f":"HLOOKUP(CH$7+0.5,$J$67:$DO$121,ROWS($A$11:$A31)+2,FALSE)","v":211},{"$f":"HLOOKUP(CI$7+0.5,$J$67:$DO$121,ROWS($A$11:$A31)+2,FALSE)","v":"N/A"},{"$f":"HLOOKUP(CJ$7+0.5,$J$67:$DO$121,ROWS($A$11:$A31)+2,FALSE)","v":223},{"$f":"HLOOKUP(CK$7+0.5,$J$67:$DO$121,ROWS($A$11:$A31)+2,FALSE)","v":958},{"$f":"HLOOKUP(CL$7+0.5,$J$67:$DO$121,ROWS($A$11:$A31)+2,FALSE)","v":133},{"$f":"HLOOKUP(CM$7+0.5,$J$67:$DO$121,ROWS($A$11:$A31)+2,FALSE)","v":109},{"$f":"HLOOKUP(CN$7+0.5,$J$67:$DO$121,ROWS($A$11:$A31)+2,FALSE)","v":230},{"$f":"HLOOKUP(CO$7+0.5,$J$67:$DO$121,ROWS($A$11:$A31)+2,FALSE)","v":260},{"$f":"HLOOKUP(CP$7+0.5,$J$67:$DO$121,ROWS($A$11:$A31)+2,FALSE)","v":335},{"$f":"HLOOKUP(CQ$7+0.5,$J$67:$DO$121,ROWS($A$11:$A31)+2,FALSE)","v":283},{"$f":"HLOOKUP(CR$7+0.5,$J$67:$DO$121,ROWS($A$11:$A31)+2,FALSE)","v":344},{"$f":"HLOOKUP(CS$7+0.5,$J$67:$DO$121,ROWS($A$11:$A31)+2,FALSE)","v":1966},{"$f":"HLOOKUP(CT$7+0.5,$J$67:$DO$121,ROWS($A$11:$A31)+2,FALSE)","v":508},{"$f":"HLOOKUP(CU$7+0.5,$J$67:$DO$121,ROWS($A$11:$A31)+2,FALSE)","v":298},{"$f":"HLOOKUP(CV$7+0.5,$J$67:$DO$121,ROWS($A$11:$A31)+2,FALSE)","v":962},{"$f":"HLOOKUP(CW$7+0.5,$J$67:$DO$121,ROWS($A$11:$A31)+2,FALSE)","v":1161},{"$f":"HLOOKUP(CX$7+0.5,$J$67:$DO$121,ROWS($A$11:$A31)+2,FALSE)","v":89},{"$f":"HLOOKUP(CY$7+0.5,$J$67:$DO$121,ROWS($A$11:$A31)+2,FALSE)","v":362},{"$f":"HLOOKUP(CZ$7+0.5,$J$67:$DO$121,ROWS($A$11:$A31)+2,FALSE)","v":215},{"$f":"HLOOKUP(DA$7+0.5,$J$67:$DO$121,ROWS($A$11:$A31)+2,FALSE)","v":230},{"$f":"HLOOKUP(DB$7+0.5,$J$67:$DO$121,ROWS($A$11:$A31)+2,FALSE)","v":287},{"$f":"HLOOKUP(DC$7+0.5,$J$67:$DO$121,ROWS($A$11:$A31)+2,FALSE)","v":284},{"$f":"HLOOKUP(DD$7+0.5,$J$67:$DO$121,ROWS($A$11:$A31)+2,FALSE)","v":160},{"$f":"HLOOKUP(DE$7+0.5,$J$67:$DO$121,ROWS($A$11:$A31)+2,FALSE)","v":230},{"$f":"HLOOKUP(DF$7+0.5,$J$67:$DO$121,ROWS($A$11:$A31)+2,FALSE)","v":231},{"$f":"HLOOKUP(DG$7+0.5,$J$67:$DO$121,ROWS($A$11:$A31)+2,FALSE)","v":327},{"$f":"HLOOKUP(DH$7+0.5,$J$67:$DO$121,ROWS($A$11:$A31)+2,FALSE)","v":427},{"$f":"HLOOKUP(DI$7+0.5,$J$67:$DO$121,ROWS($A$11:$A31)+2,FALSE)","v":368},{"$f":"HLOOKUP(DJ$7+0.5,$J$67:$DO$121,ROWS($A$11:$A31)+2,FALSE)","v":307},{"$f":"HLOOKUP(DK$7+0.5,$J$67:$DO$121,ROWS($A$11:$A31)+2,FALSE)","v":533},{"$f":"HLOOKUP(DL$7+0.5,$J$67:$DO$121,ROWS($A$11:$A31)+2,FALSE)","v":230},{"$f":"HLOOKUP(DM$7+0.5,$J$67:$DO$121,ROWS($A$11:$A31)+2,FALSE)","v":230},{"$f":"HLOOKUP(DN$7+0.5,$J$67:$DO$121,ROWS($A$11:$A31)+2,FALSE)","v":766},{"$f":"HLOOKUP(DO$7+0.5,$J$67:$DO$121,ROWS($A$11:$A31)+2,FALSE)","v":355}]
[null,"Maryland",5716785,3648,4917637,22981,588879,20180,2.4392468356035365E-2,{"$f":"HLOOKUP(J$7,$J$67:$DO$121,ROWS($A$11:$A32)+2,FALSE)","v":164484},{"$f":"HLOOKUP(K$7,$J$67:$DO$121,ROWS($A$11:$A32)+2,FALSE)","v":1641},{"$f":"HLOOKUP(L$7,$J$67:$DO$121,ROWS($A$11:$A32)+2,FALSE)","v":2672},{"$f":"HLOOKUP(M$7,$J$67:$DO$121,ROWS($A$11:$A32)+2,FALSE)","v":1124},{"$f":"HLOOKUP(N$7,$J$67:$DO$121,ROWS($A$11:$A32)+2,FALSE)","v":273},{"$f":"HLOOKUP(O$7,$J$67:$DO$121,ROWS($A$11:$A32)+2,FALSE)","v":8206},{"$f":"HLOOKUP(P$7,$J$67:$DO$121,ROWS($A$11:$A32)+2,FALSE)","v":2501},{"$f":"HLOOKUP(Q$7,$J$67:$DO$121,ROWS($A$11:$A32)+2,FALSE)","v":1603},{"$f":"HLOOKUP(R$7,$J$67:$DO$121,ROWS($A$11:$A32)+2,FALSE)","v":8340},{"$f":"HLOOKUP(S$7,$J$67:$DO$121,ROWS($A$11:$A32)+2,FALSE)","v":23202},{"$f":"HLOOKUP(T$7,$J$67:$DO$121,ROWS($A$11:$A32)+2,FALSE)","v":6564},{"$f":"HLOOKUP(U$7,$J$67:$DO$121,ROWS($A$11:$A32)+2,FALSE)","v":3454},{"$f":"HLOOKUP(V$7,$J$67:$DO$121,ROWS($A$11:$A32)+2,FALSE)","v":422},{"$f":"HLOOKUP(W$7,$J$67:$DO$121,ROWS($A$11:$A32)+2,FALSE)","v":357},{"$f":"HLOOKUP(X$7,$J$67:$DO$121,ROWS($A$11:$A32)+2,FALSE)","v":3300},{"$f":"HLOOKUP(Y$7,$J$67:$DO$121,ROWS($A$11:$A32)+2,FALSE)","v":431},{"$f":"HLOOKUP(Z$7,$J$67:$DO$121,ROWS($A$11:$A32)+2,FALSE)","v":160},{"$f":"HLOOKUP(AA$7,$J$67:$DO$121,ROWS($A$11:$A32)+2,FALSE)","v":781},{"$f":"HLOOKUP(AB$7,$J$67:$DO$121,ROWS($A$11:$A32)+2,FALSE)","v":396},{"$f":"HLOOKUP(AC$7,$J$67:$DO$121,ROWS($A$11:$A32)+2,FALSE)","v":1376},{"$f":"HLOOKUP(AD$7,$J$67:$DO$121,ROWS($A$11:$A32)+2,FALSE)","v":53},{"$f":"HLOOKUP(AE$7,$J$67:$DO$121,ROWS($A$11:$A32)+2,FALSE)","v":"N/A"},{"$f":"HLOOKUP(AF$7,$J$67:$DO$121,ROWS($A$11:$A32)+2,FALSE)","v":1983},{"$f":"HLOOKUP(AG$7,$J$67:$DO$121,ROWS($A$11:$A32)+2,FALSE)","v":3572},{"$f":"HLOOKUP(AH$7,$J$67:$DO$121,ROWS($A$11:$A32)+2,FALSE)","v":820},{"$f":"HLOOKUP(AI$7,$J$67:$DO$121,ROWS($A$11:$A32)+2,FALSE)","v":403},{"$f":"HLOOKUP(AJ$7,$J$67:$DO$121,ROWS($A$11:$A32)+2,FALSE)","v":1147},{"$f":"HLOOKUP(AK$7,$J$67:$DO$121,ROWS($A$11:$A32)+2,FALSE)","v":86},{"$f":"HLOOKUP(AL$7,$J$67:$DO$121,ROWS($A$11:$A32)+2,FALSE)","v":54},{"$f":"HLOOKUP(AM$7,$J$67:$DO$121,ROWS($A$11:$A32)+2,FALSE)","v":979},{"$f":"HLOOKUP(AN$7,$J$67:$DO$121,ROWS($A$11:$A32)+2,FALSE)","v":1369},{"$f":"HLOOKUP(AO$7,$J$67:$DO$121,ROWS($A$11:$A32)+2,FALSE)","v":9058},{"$f":"HLOOKUP(AP$7,$J$67:$DO$121,ROWS($A$11:$A32)+2,FALSE)","v":238},{"$f":"HLOOKUP(AQ$7,$J$67:$DO$121,ROWS($A$11:$A32)+2,FALSE)","v":10736},{"$f":"HLOOKUP(AR$7,$J$67:$DO$121,ROWS($A$11:$A32)+2,FALSE)","v":5787},{"$f":"HLOOKUP(AS$7,$J$67:$DO$121,ROWS($A$11:$A32)+2,FALSE)","v":0},{"$f":"HLOOKUP(AT$7,$J$67:$DO$121,ROWS($A$11:$A32)+2,FALSE)","v":3277},{"$f":"HLOOKUP(AU$7,$J$67:$DO$121,ROWS($A$11:$A32)+2,FALSE)","v":607},{"$f":"HLOOKUP(AV$7,$J$67:$DO$121,ROWS($A$11:$A32)+2,FALSE)","v":723},{"$f":"HLOOKUP(AW$7,$J$67:$DO$121,ROWS($A$11:$A32)+2,FALSE)","v":13467},{"$f":"HLOOKUP(AX$7,$J$67:$DO$121,ROWS($A$11:$A32)+2,FALSE)","v":782},{"$f":"HLOOKUP(AY$7,$J$67:$DO$121,ROWS($A$11:$A32)+2,FALSE)","v":1710},{"$f":"HLOOKUP(AZ$7,$J$67:$DO$121,ROWS($A$11:$A32)+2,FALSE)","v":49},{"$f":"HLOOKUP(BA$7,$J$67:$DO$121,ROWS($A$11:$A32)+2,FALSE)","v":2669},{"$f":"HLOOKUP(BB$7,$J$67:$DO$121,ROWS($A$11:$A32)+2,FALSE)","v":5883},{"$f":"HLOOKUP(BC$7,$J$67:$DO$121,ROWS($A$11:$A32)+2,FALSE)","v":655},{"$f":"HLOOKUP(BD$7,$J$67:$DO$121,ROWS($A$11:$A32)+2,FALSE)","v":350},{"$f":"HLOOKUP(BE$7,$J$67:$DO$121,ROWS($A$11:$A32)+2,FALSE)","v":24765},{"$f":"HLOOKUP(BF$7,$J$67:$DO$121,ROWS($A$11:$A32)+2,FALSE)","v":1542},{"$f":"HLOOKUP(BG$7,$J$67:$DO$121,ROWS($A$11:$A32)+2,FALSE)","v":4363},{"$f":"HLOOKUP(BH$7,$J$67:$DO$121,ROWS($A$11:$A32)+2,FALSE)","v":324},{"$f":"HLOOKUP(BI$7,$J$67:$DO$121,ROWS($A$11:$A32)+2,FALSE)","v":230},{"$f":"HLOOKUP(BJ$7,$J$67:$DO$121,ROWS($A$11:$A32)+2,FALSE)","v":612},null,null,null,null,{"$f":"HLOOKUP(BO$7+0.5,$J$67:$DO$121,ROWS($A$11:$A32)+2,FALSE)","v":9180},{"$f":"HLOOKUP(BP$7+0.5,$J$67:$DO$121,ROWS($A$11:$A32)+2,FALSE)","v":1004},{"$f":"HLOOKUP(BQ$7+0.5,$J$67:$DO$121,ROWS($A$11:$A32)+2,FALSE)","v":1268},{"$f":"HLOOKUP(BR$7+0.5,$J$67:$DO$121,ROWS($A$11:$A32)+2,FALSE)","v":770},{"$f":"HLOOKUP(BS$7+0.5,$J$67:$DO$121,ROWS($A$11:$A32)+2,FALSE)","v":418},{"$f":"HLOOKUP(BT$7+0.5,$J$67:$DO$121,ROWS($A$11:$A32)+2,FALSE)","v":2230},{"$f":"HLOOKUP(BU$7+0.5,$J$67:$DO$121,ROWS($A$11:$A32)+2,FALSE)","v":1523},{"$f":"HLOOKUP(BV$7+0.5,$J$67:$DO$121,ROWS($A$11:$A32)+2,FALSE)","v":798},{"$f":"HLOOKUP(BW$7+0.5,$J$67:$DO$121,ROWS($A$11:$A32)+2,FALSE)","v":3099},{"$f":"HLOOKUP(BX$7+0.5,$J$67:$DO$121,ROWS($A$11:$A32)+2,FALSE)","v":3764},{"$f":"HLOOKUP(BY$7+0.5,$J$67:$DO$121,ROWS($A$11:$A32)+2,FALSE)","v":1906},{"$f":"HLOOKUP(BZ$7+0.5,$J$67:$DO$121,ROWS($A$11:$A32)+2,FALSE)","v":1271},{"$f":"HLOOKUP(CA$7+0.5,$J$67:$DO$121,ROWS($A$11:$A32)+2,FALSE)","v":439},{"$f":"HLOOKUP(CB$7+0.5,$J$67:$DO$121,ROWS($A$11:$A32)+2,FALSE)","v":415},{"$f":"HLOOKUP(CC$7+0.5,$J$67:$DO$121,ROWS($A$11:$A32)+2,FALSE)","v":1310},{"$f":"HLOOKUP(CD$7+0.5,$J$67:$DO$121,ROWS($A$11:$A32)+2,FALSE)","v":330},{"$f":"HLOOKUP(CE$7+0.5,$J$67:$DO$121,ROWS($A$11:$A32)+2,FALSE)","v":190},{"$f":"HLOOKUP(CF$7+0.5,$J$67:$DO$121,ROWS($A$11:$A32)+2,FALSE)","v":822},{"$f":"HLOOKUP(CG$7+0.5,$J$67:$DO$121,ROWS($A$11:$A32)+2,FALSE)","v":362},{"$f":"HLOOKUP(CH$7+0.5,$J$67:$DO$121,ROWS($A$11:$A32)+2,FALSE)","v":695},{"$f":"HLOOKUP(CI$7+0.5,$J$67:$DO$121,ROWS($A$11:$A32)+2,FALSE)","v":96},{"$f":"HLOOKUP(CJ$7+0.5,$J$67:$DO$121,ROWS($A$11:$A32)+2,FALSE)","v":"N/A"},{"$f":"HLOOKUP(CK$7+0.5,$J$67:$DO$121,ROWS($A$11:$A32)+2,FALSE)","v":730},{"$f":"HLOOKUP(CL$7+0.5,$J$67:$DO$121,ROWS($A$11:$A32)+2,FALSE)","v":1269},{"$f":"HLOOKUP(CM$7+0.5,$J$67:$DO$121,ROWS($A$11:$A32)+2,FALSE)","v":543},{"$f":"HLOOKUP(CN$7+0.5,$J$67:$DO$121,ROWS($A$11:$A32)+2,FALSE)","v":383},{"$f":"HLOOKUP(CO$7+0.5,$J$67:$DO$121,ROWS($A$11:$A32)+2,FALSE)","v":633},{"$f":"HLOOKUP(CP$7+0.5,$J$67:$DO$121,ROWS($A$11:$A32)+2,FALSE)","v":106},{"$f":"HLOOKUP(CQ$7+0.5,$J$67:$DO$121,ROWS($A$11:$A32)+2,FALSE)","v":88},{"$f":"HLOOKUP(CR$7+0.5,$J$67:$DO$121,ROWS($A$11:$A32)+2,FALSE)","v":800},{"$f":"HLOOKUP(CS$7+0.5,$J$67:$DO$121,ROWS($A$11:$A32)+2,FALSE)","v":1276},{"$f":"HLOOKUP(CT$7+0.5,$J$67:$DO$121,ROWS($A$11:$A32)+2,FALSE)","v":2330},{"$f":"HLOOKUP(CU$7+0.5,$J$67:$DO$121,ROWS($A$11:$A32)+2,FALSE)","v":287},{"$f":"HLOOKUP(CV$7+0.5,$J$67:$DO$121,ROWS($A$11:$A32)+2,FALSE)","v":2103},{"$f":"HLOOKUP(CW$7+0.5,$J$67:$DO$121,ROWS($A$11:$A32)+2,FALSE)","v":2059},{"$f":"HLOOKUP(CX$7+0.5,$J$67:$DO$121,ROWS($A$11:$A32)+2,FALSE)","v":289},{"$f":"HLOOKUP(CY$7+0.5,$J$67:$DO$121,ROWS($A$11:$A32)+2,FALSE)","v":1497},{"$f":"HLOOKUP(CZ$7+0.5,$J$67:$DO$121,ROWS($A$11:$A32)+2,FALSE)","v":541},{"$f":"HLOOKUP(DA$7+0.5,$J$67:$DO$121,ROWS($A$11:$A32)+2,FALSE)","v":654},{"$f":"HLOOKUP(DB$7+0.5,$J$67:$DO$121,ROWS($A$11:$A32)+2,FALSE)","v":3147},{"$f":"HLOOKUP(DC$7+0.5,$J$67:$DO$121,ROWS($A$11:$A32)+2,FALSE)","v":626},{"$f":"HLOOKUP(DD$7+0.5,$J$67:$DO$121,ROWS($A$11:$A32)+2,FALSE)","v":852},{"$f":"HLOOKUP(DE$7+0.5,$J$67:$DO$121,ROWS($A$11:$A32)+2,FALSE)","v":81},{"$f":"HLOOKUP(DF$7+0.5,$J$67:$DO$121,ROWS($A$11:$A32)+2,FALSE)","v":1332},{"$f":"HLOOKUP(DG$7+0.5,$J$67:$DO$121,ROWS($A$11:$A32)+2,FALSE)","v":1511},{"$f":"HLOOKUP(DH$7+0.5,$J$67:$DO$121,ROWS($A$11:$A32)+2,FALSE)","v":451},{"$f":"HLOOKUP(DI$7+0.5,$J$67:$DO$121,ROWS($A$11:$A32)+2,FALSE)","v":328},{"$f":"HLOOKUP(DJ$7+0.5,$J$67:$DO$121,ROWS($A$11:$A32)+2,FALSE)","v":4735},{"$f":"HLOOKUP(DK$7+0.5,$J$67:$DO$121,ROWS($A$11:$A32)+2,FALSE)","v":1004},{"$f":"HLOOKUP(DL$7+0.5,$J$67:$DO$121,ROWS($A$11:$A32)+2,FALSE)","v":1701},{"$f":"HLOOKUP(DM$7+0.5,$J$67:$DO$121,ROWS($A$11:$A32)+2,FALSE)","v":241},{"$f":"HLOOKUP(DN$7+0.5,$J$67:$DO$121,ROWS($A$11:$A32)+2,FALSE)","v":299},{"$f":"HLOOKUP(DO$7+0.5,$J$67:$DO$121,ROWS($A$11:$A32)+2,FALSE)","v":678}]
[null,"Massachusetts",6489250,3528,5583650,23686,706624,22760,2.0785590998021866E-2,{"$f":"HLOOKUP(J$7,$J$67:$DO$121,ROWS($A$11:$A33)+2,FALSE)","v":140162},{"$f":"HLOOKUP(K$7,$J$67:$DO$121,ROWS($A$11:$A33)+2,FALSE)","v":583},{"$f":"HLOOKUP(L$7,$J$67:$DO$121,ROWS($A$11:$A33)+2,FALSE)","v":1891},{"$f":"HLOOKUP(M$7,$J$67:$DO$121,ROWS($A$11:$A33)+2,FALSE)","v":1572},{"$f":"HLOOKUP(N$7,$J$67:$DO$121,ROWS($A$11:$A33)+2,FALSE)","v":206},{"$f":"HLOOKUP(O$7,$J$67:$DO$121,ROWS($A$11:$A33)+2,FALSE)","v":14971},{"$f":"HLOOKUP(P$7,$J$67:$DO$121,ROWS($A$11:$A33)+2,FALSE)","v":1051},{"$f":"HLOOKUP(Q$7,$J$67:$DO$121,ROWS($A$11:$A33)+2,FALSE)","v":13270},{"$f":"HLOOKUP(R$7,$J$67:$DO$121,ROWS($A$11:$A33)+2,FALSE)","v":131},{"$f":"HLOOKUP(S$7,$J$67:$DO$121,ROWS($A$11:$A33)+2,FALSE)","v":1539},{"$f":"HLOOKUP(T$7,$J$67:$DO$121,ROWS($A$11:$A33)+2,FALSE)","v":11118},{"$f":"HLOOKUP(U$7,$J$67:$DO$121,ROWS($A$11:$A33)+2,FALSE)","v":1409},{"$f":"HLOOKUP(V$7,$J$67:$DO$121,ROWS($A$11:$A33)+2,FALSE)","v":682},{"$f":"HLOOKUP(W$7,$J$67:$DO$121,ROWS($A$11:$A33)+2,FALSE)","v":79},{"$f":"HLOOKUP(X$7,$J$67:$DO$121,ROWS($A$11:$A33)+2,FALSE)","v":2842},{"$f":"HLOOKUP(Y$7,$J$67:$DO$121,ROWS($A$11:$A33)+2,FALSE)","v":1891},{"$f":"HLOOKUP(Z$7,$J$67:$DO$121,ROWS($A$11:$A33)+2,FALSE)","v":307},{"$f":"HLOOKUP(AA$7,$J$67:$DO$121,ROWS($A$11:$A33)+2,FALSE)","v":0},{"$f":"HLOOKUP(AB$7,$J$67:$DO$121,ROWS($A$11:$A33)+2,FALSE)","v":340},{"$f":"HLOOKUP(AC$7,$J$67:$DO$121,ROWS($A$11:$A33)+2,FALSE)","v":0},{"$f":"HLOOKUP(AD$7,$J$67:$DO$121,ROWS($A$11:$A33)+2,FALSE)","v":4666},{"$f":"HLOOKUP(AE$7,$J$67:$DO$121,ROWS($A$11:$A33)+2,FALSE)","v":3660},{"$f":"HLOOKUP(AF$7,$J$67:$DO$121,ROWS($A$11:$A33)+2,FALSE)","v":"N/A"},{"$f":"HLOOKUP(AG$7,$J$67:$DO$121,ROWS($A$11:$A33)+2,FALSE)","v":1624},{"$f":"HLOOKUP(AH$7,$J$67:$DO$121,ROWS($A$11:$A33)+2,FALSE)","v":2185},{"$f":"HLOOKUP(AI$7,$J$67:$DO$121,ROWS($A$11:$A33)+2,FALSE)","v":453},{"$f":"HLOOKUP(AJ$7,$J$67:$DO$121,ROWS($A$11:$A33)+2,FALSE)","v":1957},{"$f":"HLOOKUP(AK$7,$J$67:$DO$121,ROWS($A$11:$A33)+2,FALSE)","v":388},{"$f":"HLOOKUP(AL$7,$J$67:$DO$121,ROWS($A$11:$A33)+2,FALSE)","v":46},{"$f":"HLOOKUP(AM$7,$J$67:$DO$121,ROWS($A$11:$A33)+2,FALSE)","v":792},{"$f":"HLOOKUP(AN$7,$J$67:$DO$121,ROWS($A$11:$A33)+2,FALSE)","v":9911},{"$f":"HLOOKUP(AO$7,$J$67:$DO$121,ROWS($A$11:$A33)+2,FALSE)","v":4709},{"$f":"HLOOKUP(AP$7,$J$67:$DO$121,ROWS($A$11:$A33)+2,FALSE)","v":161},{"$f":"HLOOKUP(AQ$7,$J$67:$DO$121,ROWS($A$11:$A33)+2,FALSE)","v":20002},{"$f":"HLOOKUP(AR$7,$J$67:$DO$121,ROWS($A$11:$A33)+2,FALSE)","v":2798},{"$f":"HLOOKUP(AS$7,$J$67:$DO$121,ROWS($A$11:$A33)+2,FALSE)","v":0},{"$f":"HLOOKUP(AT$7,$J$67:$DO$121,ROWS($A$11:$A33)+2,FALSE)","v":2163},{"$f":"HLOOKUP(AU$7,$J$67:$DO$121,ROWS($A$11:$A33)+2,FALSE)","v":158},{"$f":"HLOOKUP(AV$7,$J$67:$DO$121,ROWS($A$11:$A33)+2,FALSE)","v":228},{"$f":"HLOOKUP(AW$7,$J$67:$DO$121,ROWS($A$11:$A33)+2,FALSE)","v":5316},{"$f":"HLOOKUP(AX$7,$J$67:$DO$121,ROWS($A$11:$A33)+2,FALSE)","v":6965},{"$f":"HLOOKUP(AY$7,$J$67:$DO$121,ROWS($A$11:$A33)+2,FALSE)","v":1659},{"$f":"HLOOKUP(AZ$7,$J$67:$DO$121,ROWS($A$11:$A33)+2,FALSE)","v":0},{"$f":"HLOOKUP(BA$7,$J$67:$DO$121,ROWS($A$11:$A33)+2,FALSE)","v":918},{"$f":"HLOOKUP(BB$7,$J$67:$DO$121,ROWS($A$11:$A33)+2,FALSE)","v":7073},{"$f":"HLOOKUP(BC$7,$J$67:$DO$121,ROWS($A$11:$A33)+2,FALSE)","v":207},{"$f":"HLOOKUP(BD$7,$J$67:$DO$121,ROWS($A$11:$A33)+2,FALSE)","v":1526},{"$f":"HLOOKUP(BE$7,$J$67:$DO$121,ROWS($A$11:$A33)+2,FALSE)","v":4542},{"$f":"HLOOKUP(BF$7,$J$67:$DO$121,ROWS($A$11:$A33)+2,FALSE)","v":1627},{"$f":"HLOOKUP(BG$7,$J$67:$DO$121,ROWS($A$11:$A33)+2,FALSE)","v":0},{"$f":"HLOOKUP(BH$7,$J$67:$DO$121,ROWS($A$11:$A33)+2,FALSE)","v":546},{"$f":"HLOOKUP(BI$7,$J$67:$DO$121,ROWS($A$11:$A33)+2,FALSE)","v":0},{"$f":"HLOOKUP(BJ$7,$J$67:$DO$121,ROWS($A$11:$A33)+2,FALSE)","v":3085},null,null,null,null,{"$f":"HLOOKUP(BO$7+0.5,$J$67:$DO$121,ROWS($A$11:$A33)+2,FALSE)","v":8906},{"$f":"HLOOKUP(BP$7+0.5,$J$67:$DO$121,ROWS($A$11:$A33)+2,FALSE)","v":382},{"$f":"HLOOKUP(BQ$7+0.5,$J$67:$DO$121,ROWS($A$11:$A33)+2,FALSE)","v":1205},{"$f":"HLOOKUP(BR$7+0.5,$J$67:$DO$121,ROWS($A$11:$A33)+2,FALSE)","v":1170},{"$f":"HLOOKUP(BS$7+0.5,$J$67:$DO$121,ROWS($A$11:$A33)+2,FALSE)","v":343},{"$f":"HLOOKUP(BT$7+0.5,$J$67:$DO$121,ROWS($A$11:$A33)+2,FALSE)","v":3388},{"$f":"HLOOKUP(BU$7+0.5,$J$67:$DO$121,ROWS($A$11:$A33)+2,FALSE)","v":527},{"$f":"HLOOKUP(BV$7+0.5,$J$67:$DO$121,ROWS($A$11:$A33)+2,FALSE)","v":2422},{"$f":"HLOOKUP(BW$7+0.5,$J$67:$DO$121,ROWS($A$11:$A33)+2,FALSE)","v":214},{"$f":"HLOOKUP(BX$7+0.5,$J$67:$DO$121,ROWS($A$11:$A33)+2,FALSE)","v":649},{"$f":"HLOOKUP(BY$7+0.5,$J$67:$DO$121,ROWS($A$11:$A33)+2,FALSE)","v":2520},{"$f":"HLOOKUP(BZ$7+0.5,$J$67:$DO$121,ROWS($A$11:$A33)+2,FALSE)","v":612},{"$f":"HLOOKUP(CA$7+0.5,$J$67:$DO$121,ROWS($A$11:$A33)+2,FALSE)","v":598},{"$f":"HLOOKUP(CB$7+0.5,$J$67:$DO$121,ROWS($A$11:$A33)+2,FALSE)","v":128},{"$f":"HLOOKUP(CC$7+0.5,$J$67:$DO$121,ROWS($A$11:$A33)+2,FALSE)","v":1071},{"$f":"HLOOKUP(CD$7+0.5,$J$67:$DO$121,ROWS($A$11:$A33)+2,FALSE)","v":857},{"$f":"HLOOKUP(CE$7+0.5,$J$67:$DO$121,ROWS($A$11:$A33)+2,FALSE)","v":253},{"$f":"HLOOKUP(CF$7+0.5,$J$67:$DO$121,ROWS($A$11:$A33)+2,FALSE)","v":285},{"$f":"HLOOKUP(CG$7+0.5,$J$67:$DO$121,ROWS($A$11:$A33)+2,FALSE)","v":397},{"$f":"HLOOKUP(CH$7+0.5,$J$67:$DO$121,ROWS($A$11:$A33)+2,FALSE)","v":285},{"$f":"HLOOKUP(CI$7+0.5,$J$67:$DO$121,ROWS($A$11:$A33)+2,FALSE)","v":1266},{"$f":"HLOOKUP(CJ$7+0.5,$J$67:$DO$121,ROWS($A$11:$A33)+2,FALSE)","v":1356},{"$f":"HLOOKUP(CK$7+0.5,$J$67:$DO$121,ROWS($A$11:$A33)+2,FALSE)","v":"N/A"},{"$f":"HLOOKUP(CL$7+0.5,$J$67:$DO$121,ROWS($A$11:$A33)+2,FALSE)","v":931},{"$f":"HLOOKUP(CM$7+0.5,$J$67:$DO$121,ROWS($A$11:$A33)+2,FALSE)","v":2035},{"$f":"HLOOKUP(CN$7+0.5,$J$67:$DO$121,ROWS($A$11:$A33)+2,FALSE)","v":534},{"$f":"HLOOKUP(CO$7+0.5,$J$67:$DO$121,ROWS($A$11:$A33)+2,FALSE)","v":1987},{"$f":"HLOOKUP(CP$7+0.5,$J$67:$DO$121,ROWS($A$11:$A33)+2,FALSE)","v":356},{"$f":"HLOOKUP(CQ$7+0.5,$J$67:$DO$121,ROWS($A$11:$A33)+2,FALSE)","v":77},{"$f":"HLOOKUP(CR$7+0.5,$J$67:$DO$121,ROWS($A$11:$A33)+2,FALSE)","v":705},{"$f":"HLOOKUP(CS$7+0.5,$J$67:$DO$121,ROWS($A$11:$A33)+2,FALSE)","v":1876},{"$f":"HLOOKUP(CT$7+0.5,$J$67:$DO$121,ROWS($A$11:$A33)+2,FALSE)","v":1295},{"$f":"HLOOKUP(CU$7+0.5,$J$67:$DO$121,ROWS($A$11:$A33)+2,FALSE)","v":271},{"$f":"HLOOKUP(CV$7+0.5,$J$67:$DO$121,ROWS($A$11:$A33)+2,FALSE)","v":3186},{"$f":"HLOOKUP(CW$7+0.5,$J$67:$DO$121,ROWS($A$11:$A33)+2,FALSE)","v":1277},{"$f":"HLOOKUP(CX$7+0.5,$J$67:$DO$121,ROWS($A$11:$A33)+2,FALSE)","v":285},{"$f":"HLOOKUP(CY$7+0.5,$J$67:$DO$121,ROWS($A$11:$A33)+2,FALSE)","v":975},{"$f":"HLOOKUP(CZ$7+0.5,$J$67:$DO$121,ROWS($A$11:$A33)+2,FALSE)","v":204},{"$f":"HLOOKUP(DA$7+0.5,$J$67:$DO$121,ROWS($A$11:$A33)+2,FALSE)","v":217},{"$f":"HLOOKUP(DB$7+0.5,$J$67:$DO$121,ROWS($A$11:$A33)+2,FALSE)","v":1681},{"$f":"HLOOKUP(DC$7+0.5,$J$67:$DO$121,ROWS($A$11:$A33)+2,FALSE)","v":1573},{"$f":"HLOOKUP(DD$7+0.5,$J$67:$DO$121,ROWS($A$11:$A33)+2,FALSE)","v":1086},{"$f":"HLOOKUP(DE$7+0.5,$J$67:$DO$121,ROWS($A$11:$A33)+2,FALSE)","v":285},{"$f":"HLOOKUP(DF$7+0.5,$J$67:$DO$121,ROWS($A$11:$A33)+2,FALSE)","v":591},{"$f":"HLOOKUP(DG$7+0.5,$J$67:$DO$121,ROWS($A$11:$A33)+2,FALSE)","v":2465},{"$f":"HLOOKUP(DH$7+0.5,$J$67:$DO$121,ROWS($A$11:$A33)+2,FALSE)","v":159},{"$f":"HLOOKUP(DI$7+0.5,$J$67:$DO$121,ROWS($A$11:$A33)+2,FALSE)","v":673},{"$f":"HLOOKUP(DJ$7+0.5,$J$67:$DO$121,ROWS($A$11:$A33)+2,FALSE)","v":1704},{"$f":"HLOOKUP(DK$7+0.5,$J$67:$DO$121,ROWS($A$11:$A33)+2,FALSE)","v":791},{"$f":"HLOOKUP(DL$7+0.5,$J$67:$DO$121,ROWS($A$11:$A33)+2,FALSE)","v":285},{"$f":"HLOOKUP(DM$7+0.5,$J$67:$DO$121,ROWS($A$11:$A33)+2,FALSE)","v":404},{"$f":"HLOOKUP(DN$7+0.5,$J$67:$DO$121,ROWS($A$11:$A33)+2,FALSE)","v":285},{"$f":"HLOOKUP(DO$7+0.5,$J$67:$DO$121,ROWS($A$11:$A33)+2,FALSE)","v":1219}]
[null,"Michigan",9762127,4595,8310098,29394,1291901,28130,1.7224537384092992E-2,{"$f":"HLOOKUP(J$7,$J$67:$DO$121,ROWS($A$11:$A34)+2,FALSE)","v":116149},{"$f":"HLOOKUP(K$7,$J$67:$DO$121,ROWS($A$11:$A34)+2,FALSE)","v":2403},{"$f":"HLOOKUP(L$7,$J$67:$DO$121,ROWS($A$11:$A34)+2,FALSE)","v":1040},{"$f":"HLOOKUP(M$7,$J$67:$DO$121,ROWS($A$11:$A34)+2,FALSE)","v":3197},{"$f":"HLOOKUP(N$7,$J$67:$DO$121,ROWS($A$11:$A34)+2,FALSE)","v":636},{"$f":"HLOOKUP(O$7,$J$67:$DO$121,ROWS($A$11:$A34)+2,FALSE)","v":6726},{"$f":"HLOOKUP(P$7,$J$67:$DO$121,ROWS($A$11:$A34)+2,FALSE)","v":2031},{"$f":"HLOOKUP(Q$7,$J$67:$DO$121,ROWS($A$11:$A34)+2,FALSE)","v":277},{"$f":"HLOOKUP(R$7,$J$67:$DO$121,ROWS($A$11:$A34)+2,FALSE)","v":167},{"$f":"HLOOKUP(S$7,$J$67:$DO$121,ROWS($A$11:$A34)+2,FALSE)","v":471},{"$f":"HLOOKUP(T$7,$J$67:$DO$121,ROWS($A$11:$A34)+2,FALSE)","v":11646},{"$f":"HLOOKUP(U$7,$J$67:$DO$121,ROWS($A$11:$A34)+2,FALSE)","v":3913},{"$f":"HLOOKUP(V$7,$J$67:$DO$121,ROWS($A$11:$A34)+2,FALSE)","v":313},{"$f":"HLOOKUP(W$7,$J$67:$DO$121,ROWS($A$11:$A34)+2,FALSE)","v":66},{"$f":"HLOOKUP(X$7,$J$67:$DO$121,ROWS($A$11:$A34)+2,FALSE)","v":10651},{"$f":"HLOOKUP(Y$7,$J$67:$DO$121,ROWS($A$11:$A34)+2,FALSE)","v":7816},{"$f":"HLOOKUP(Z$7,$J$67:$DO$121,ROWS($A$11:$A34)+2,FALSE)","v":758},{"$f":"HLOOKUP(AA$7,$J$67:$DO$121,ROWS($A$11:$A34)+2,FALSE)","v":640},{"$f":"HLOOKUP(AB$7,$J$67:$DO$121,ROWS($A$11:$A34)+2,FALSE)","v":2353},{"$f":"HLOOKUP(AC$7,$J$67:$DO$121,ROWS($A$11:$A34)+2,FALSE)","v":1342},{"$f":"HLOOKUP(AD$7,$J$67:$DO$121,ROWS($A$11:$A34)+2,FALSE)","v":645},{"$f":"HLOOKUP(AE$7,$J$67:$DO$121,ROWS($A$11:$A34)+2,FALSE)","v":620},{"$f":"HLOOKUP(AF$7,$J$67:$DO$121,ROWS($A$11:$A34)+2,FALSE)","v":1206},{"$f":"HLOOKUP(AG$7,$J$67:$DO$121,ROWS($A$11:$A34)+2,FALSE)","v":"N/A"},{"$f":"HLOOKUP(AH$7,$J$67:$DO$121,ROWS($A$11:$A34)+2,FALSE)","v":1275},{"$f":"HLOOKUP(AI$7,$J$67:$DO$121,ROWS($A$11:$A34)+2,FALSE)","v":656},{"$f":"HLOOKUP(AJ$7,$J$67:$DO$121,ROWS($A$11:$A34)+2,FALSE)","v":2921},{"$f":"HLOOKUP(AK$7,$J$67:$DO$121,ROWS($A$11:$A34)+2,FALSE)","v":312},{"$f":"HLOOKUP(AL$7,$J$67:$DO$121,ROWS($A$11:$A34)+2,FALSE)","v":213},{"$f":"HLOOKUP(AM$7,$J$67:$DO$121,ROWS($A$11:$A34)+2,FALSE)","v":1874},{"$f":"HLOOKUP(AN$7,$J$67:$DO$121,ROWS($A$11:$A34)+2,FALSE)","v":437},{"$f":"HLOOKUP(AO$7,$J$67:$DO$121,ROWS($A$11:$A34)+2,FALSE)","v":1676},{"$f":"HLOOKUP(AP$7,$J$67:$DO$121,ROWS($A$11:$A34)+2,FALSE)","v":669},{"$f":"HLOOKUP(AQ$7,$J$67:$DO$121,ROWS($A$11:$A34)+2,FALSE)","v":3135},{"$f":"HLOOKUP(AR$7,$J$67:$DO$121,ROWS($A$11:$A34)+2,FALSE)","v":2444},{"$f":"HLOOKUP(AS$7,$J$67:$DO$121,ROWS($A$11:$A34)+2,FALSE)","v":53},{"$f":"HLOOKUP(AT$7,$J$67:$DO$121,ROWS($A$11:$A34)+2,FALSE)","v":9783},{"$f":"HLOOKUP(AU$7,$J$67:$DO$121,ROWS($A$11:$A34)+2,FALSE)","v":2276},{"$f":"HLOOKUP(AV$7,$J$67:$DO$121,ROWS($A$11:$A34)+2,FALSE)","v":537},{"$f":"HLOOKUP(AW$7,$J$67:$DO$121,ROWS($A$11:$A34)+2,FALSE)","v":3134},{"$f":"HLOOKUP(AX$7,$J$67:$DO$121,ROWS($A$11:$A34)+2,FALSE)","v":653},{"$f":"HLOOKUP(AY$7,$J$67:$DO$121,ROWS($A$11:$A34)+2,FALSE)","v":1446},{"$f":"HLOOKUP(AZ$7,$J$67:$DO$121,ROWS($A$11:$A34)+2,FALSE)","v":706},{"$f":"HLOOKUP(BA$7,$J$67:$DO$121,ROWS($A$11:$A34)+2,FALSE)","v":4453},{"$f":"HLOOKUP(BB$7,$J$67:$DO$121,ROWS($A$11:$A34)+2,FALSE)","v":7184},{"$f":"HLOOKUP(BC$7,$J$67:$DO$121,ROWS($A$11:$A34)+2,FALSE)","v":545},{"$f":"HLOOKUP(BD$7,$J$67:$DO$121,ROWS($A$11:$A34)+2,FALSE)","v":45},{"$f":"HLOOKUP(BE$7,$J$67:$DO$121,ROWS($A$11:$A34)+2,FALSE)","v":2073},{"$f":"HLOOKUP(BF$7,$J$67:$DO$121,ROWS($A$11:$A34)+2,FALSE)","v":1427},{"$f":"HLOOKUP(BG$7,$J$67:$DO$121,ROWS($A$11:$A34)+2,FALSE)","v":446},{"$f":"HLOOKUP(BH$7,$J$67:$DO$121,ROWS($A$11:$A34)+2,FALSE)","v":6291},{"$f":"HLOOKUP(BI$7,$J$67:$DO$121,ROWS($A$11:$A34)+2,FALSE)","v":568},{"$f":"HLOOKUP(BJ$7,$J$67:$DO$121,ROWS($A$11:$A34)+2,FALSE)","v":1432},null,null,null,null,{"$f":"HLOOKUP(BO$7+0.5,$J$67:$DO$121,ROWS($A$11:$A34)+2,FALSE)","v":8123},{"$f":"HLOOKUP(BP$7+0.5,$J$67:$DO$121,ROWS($A$11:$A34)+2,FALSE)","v":1803},{"$f":"HLOOKUP(BQ$7+0.5,$J$67:$DO$121,ROWS($A$11:$A34)+2,FALSE)","v":758},{"$f":"HLOOKUP(BR$7+0.5,$J$67:$DO$121,ROWS($A$11:$A34)+2,FALSE)","v":1076},{"$f":"HLOOKUP(BS$7+0.5,$J$67:$DO$121,ROWS($A$11:$A34)+2,FALSE)","v":434},{"$f":"HLOOKUP(BT$7+0.5,$J$67:$DO$121,ROWS($A$11:$A34)+2,FALSE)","v":2018},{"$f":"HLOOKUP(BU$7+0.5,$J$67:$DO$121,ROWS($A$11:$A34)+2,FALSE)","v":695},{"$f":"HLOOKUP(BV$7+0.5,$J$67:$DO$121,ROWS($A$11:$A34)+2,FALSE)","v":303},{"$f":"HLOOKUP(BW$7+0.5,$J$67:$DO$121,ROWS($A$11:$A34)+2,FALSE)","v":160},{"$f":"HLOOKUP(BX$7+0.5,$J$67:$DO$121,ROWS($A$11:$A34)+2,FALSE)","v":272},{"$f":"HLOOKUP(BY$7+0.5,$J$67:$DO$121,ROWS($A$11:$A34)+2,FALSE)","v":2178},{"$f":"HLOOKUP(BZ$7+0.5,$J$67:$DO$121,ROWS($A$11:$A34)+2,FALSE)","v":1925},{"$f":"HLOOKUP(CA$7+0.5,$J$67:$DO$121,ROWS($A$11:$A34)+2,FALSE)","v":337},{"$f":"HLOOKUP(CB$7+0.5,$J$67:$DO$121,ROWS($A$11:$A34)+2,FALSE)","v":79},{"$f":"HLOOKUP(CC$7+0.5,$J$67:$DO$121,ROWS($A$11:$A34)+2,FALSE)","v":1903},{"$f":"HLOOKUP(CD$7+0.5,$J$67:$DO$121,ROWS($A$11:$A34)+2,FALSE)","v":2004},{"$f":"HLOOKUP(CE$7+0.5,$J$67:$DO$121,ROWS($A$11:$A34)+2,FALSE)","v":493},{"$f":"HLOOKUP(CF$7+0.5,$J$67:$DO$121,ROWS($A$11:$A34)+2,FALSE)","v":469},{"$f":"HLOOKUP(CG$7+0.5,$J$67:$DO$121,ROWS($A$11:$A34)+2,FALSE)","v":1473},{"$f":"HLOOKUP(CH$7+0.5,$J$67:$DO$121,ROWS($A$11:$A34)+2,FALSE)","v":747},{"$f":"HLOOKUP(CI$7+0.5,$J$67:$DO$121,ROWS($A$11:$A34)+2,FALSE)","v":477},{"$f":"HLOOKUP(CJ$7+0.5,$J$67:$DO$121,ROWS($A$11:$A34)+2,FALSE)","v":428},{"$f":"HLOOKUP(CK$7+0.5,$J$67:$DO$121,ROWS($A$11:$A34)+2,FALSE)","v":574},{"$f":"HLOOKUP(CL$7+0.5,$J$67:$DO$121,ROWS($A$11:$A34)+2,FALSE)","v":"N/A"},{"$f":"HLOOKUP(CM$7+0.5,$J$67:$DO$121,ROWS($A$11:$A34)+2,FALSE)","v":646},{"$f":"HLOOKUP(CN$7+0.5,$J$67:$DO$121,ROWS($A$11:$A34)+2,FALSE)","v":474},{"$f":"HLOOKUP(CO$7+0.5,$J$67:$DO$121,ROWS($A$11:$A34)+2,FALSE)","v":1486},{"$f":"HLOOKUP(CP$7+0.5,$J$67:$DO$121,ROWS($A$11:$A34)+2,FALSE)","v":235},{"$f":"HLOOKUP(CQ$7+0.5,$J$67:$DO$121,ROWS($A$11:$A34)+2,FALSE)","v":214},{"$f":"HLOOKUP(CR$7+0.5,$J$67:$DO$121,ROWS($A$11:$A34)+2,FALSE)","v":1028},{"$f":"HLOOKUP(CS$7+0.5,$J$67:$DO$121,ROWS($A$11:$A34)+2,FALSE)","v":357},{"$f":"HLOOKUP(CT$7+0.5,$J$67:$DO$121,ROWS($A$11:$A34)+2,FALSE)","v":861},{"$f":"HLOOKUP(CU$7+0.5,$J$67:$DO$121,ROWS($A$11:$A34)+2,FALSE)","v":411},{"$f":"HLOOKUP(CV$7+0.5,$J$67:$DO$121,ROWS($A$11:$A34)+2,FALSE)","v":871},{"$f":"HLOOKUP(CW$7+0.5,$J$67:$DO$121,ROWS($A$11:$A34)+2,FALSE)","v":903},{"$f":"HLOOKUP(CX$7+0.5,$J$67:$DO$121,ROWS($A$11:$A34)+2,FALSE)","v":71},{"$f":"HLOOKUP(CY$7+0.5,$J$67:$DO$121,ROWS($A$11:$A34)+2,FALSE)","v":1851},{"$f":"HLOOKUP(CZ$7+0.5,$J$67:$DO$121,ROWS($A$11:$A34)+2,FALSE)","v":1296},{"$f":"HLOOKUP(DA$7+0.5,$J$67:$DO$121,ROWS($A$11:$A34)+2,FALSE)","v":341},{"$f":"HLOOKUP(DB$7+0.5,$J$67:$DO$121,ROWS($A$11:$A34)+2,FALSE)","v":1226},{"$f":"HLOOKUP(DC$7+0.5,$J$67:$DO$121,ROWS($A$11:$A34)+2,FALSE)","v":702},{"$f":"HLOOKUP(DD$7+0.5,$J$67:$DO$121,ROWS($A$11:$A34)+2,FALSE)","v":869},{"$f":"HLOOKUP(DE$7+0.5,$J$67:$DO$121,ROWS($A$11:$A34)+2,FALSE)","v":521},{"$f":"HLOOKUP(DF$7+0.5,$J$67:$DO$121,ROWS($A$11:$A34)+2,FALSE)","v":1559},{"$f":"HLOOKUP(DG$7+0.5,$J$67:$DO$121,ROWS($A$11:$A34)+2,FALSE)","v":2265},{"$f":"HLOOKUP(DH$7+0.5,$J$67:$DO$121,ROWS($A$11:$A34)+2,FALSE)","v":388},{"$f":"HLOOKUP(DI$7+0.5,$J$67:$DO$121,ROWS($A$11:$A34)+2,FALSE)","v":77},{"$f":"HLOOKUP(DJ$7+0.5,$J$67:$DO$121,ROWS($A$11:$A34)+2,FALSE)","v":807},{"$f":"HLOOKUP(DK$7+0.5,$J$67:$DO$121,ROWS($A$11:$A34)+2,FALSE)","v":666},{"$f":"HLOOKUP(DL$7+0.5,$J$67:$DO$121,ROWS($A$11:$A34)+2,FALSE)","v":319},{"$f":"HLOOKUP(DM$7+0.5,$J$67:$DO$121,ROWS($A$11:$A34)+2,FALSE)","v":1731},{"$f":"HLOOKUP(DN$7+0.5,$J$67:$DO$121,ROWS($A$11:$A34)+2,FALSE)","v":429},{"$f":"HLOOKUP(DO$7+0.5,$J$67:$DO$121,ROWS($A$11:$A34)+2,FALSE)","v":1082}]
[null,"Minnesota",5244256,3049,4480630,17843,647946,16565,1.3327739574023069E-2,{"$f":"HLOOKUP(J$7,$J$67:$DO$121,ROWS($A$11:$A35)+2,FALSE)","v":89872},{"$f":"HLOOKUP(K$7,$J$67:$DO$121,ROWS($A$11:$A35)+2,FALSE)","v":266},{"$f":"HLOOKUP(L$7,$J$67:$DO$121,ROWS($A$11:$A35)+2,FALSE)","v":1169},{"$f":"HLOOKUP(M$7,$J$67:$DO$121,ROWS($A$11:$A35)+2,FALSE)","v":4165},{"$f":"HLOOKUP(N$7,$J$67:$DO$121,ROWS($A$11:$A35)+2,FALSE)","v":279},{"$f":"HLOOKUP(O$7,$J$67:$DO$121,ROWS($A$11:$A35)+2,FALSE)","v":6233},{"$f":"HLOOKUP(P$7,$J$67:$DO$121,ROWS($A$11:$A35)+2,FALSE)","v":2521},{"$f":"HLOOKUP(Q$7,$J$67:$DO$121,ROWS($A$11:$A35)+2,FALSE)","v":211},{"$f":"HLOOKUP(R$7,$J$67:$DO$121,ROWS($A$11:$A35)+2,FALSE)","v":176},{"$f":"HLOOKUP(S$7,$J$67:$DO$121,ROWS($A$11:$A35)+2,FALSE)","v":306},{"$f":"HLOOKUP(T$7,$J$67:$DO$121,ROWS($A$11:$A35)+2,FALSE)","v":2575},{"$f":"HLOOKUP(U$7,$J$67:$DO$121,ROWS($A$11:$A35)+2,FALSE)","v":1776},{"$f":"HLOOKUP(V$7,$J$67:$DO$121,ROWS($A$11:$A35)+2,FALSE)","v":227},{"$f":"HLOOKUP(W$7,$J$67:$DO$121,ROWS($A$11:$A35)+2,FALSE)","v":231},{"$f":"HLOOKUP(X$7,$J$67:$DO$121,ROWS($A$11:$A35)+2,FALSE)","v":6641},{"$f":"HLOOKUP(Y$7,$J$67:$DO$121,ROWS($A$11:$A35)+2,FALSE)","v":1120},{"$f":"HLOOKUP(Z$7,$J$67:$DO$121,ROWS($A$11:$A35)+2,FALSE)","v":4948},{"$f":"HLOOKUP(AA$7,$J$67:$DO$121,ROWS($A$11:$A35)+2,FALSE)","v":1067},{"$f":"HLOOKUP(AB$7,$J$67:$DO$121,ROWS($A$11:$A35)+2,FALSE)","v":402},{"$f":"HLOOKUP(AC$7,$J$67:$DO$121,ROWS($A$11:$A35)+2,FALSE)","v":519},{"$f":"HLOOKUP(AD$7,$J$67:$DO$121,ROWS($A$11:$A35)+2,FALSE)","v":172},{"$f":"HLOOKUP(AE$7,$J$67:$DO$121,ROWS($A$11:$A35)+2,FALSE)","v":1259},{"$f":"HLOOKUP(AF$7,$J$67:$DO$121,ROWS($A$11:$A35)+2,FALSE)","v":1092},{"$f":"HLOOKUP(AG$7,$J$67:$DO$121,ROWS($A$11:$A35)+2,FALSE)","v":2631},{"$f":"HLOOKUP(AH$7,$J$67:$DO$121,ROWS($A$11:$A35)+2,FALSE)","v":"N/A"},{"$f":"HLOOKUP(AI$7,$J$67:$DO$121,ROWS($A$11:$A35)+2,FALSE)","v":196},{"$f":"HLOOKUP(AJ$7,$J$67:$DO$121,ROWS($A$11:$A35)+2,FALSE)","v":1549},{"$f":"HLOOKUP(AK$7,$J$67:$DO$121,ROWS($A$11:$A35)+2,FALSE)","v":1020},{"$f":"HLOOKUP(AL$7,$J$67:$DO$121,ROWS($A$11:$A35)+2,FALSE)","v":734},{"$f":"HLOOKUP(AM$7,$J$67:$DO$121,ROWS($A$11:$A35)+2,FALSE)","v":540},{"$f":"HLOOKUP(AN$7,$J$67:$DO$121,ROWS($A$11:$A35)+2,FALSE)","v":183},{"$f":"HLOOKUP(AO$7,$J$67:$DO$121,ROWS($A$11:$A35)+2,FALSE)","v":513},{"$f":"HLOOKUP(AP$7,$J$67:$DO$121,ROWS($A$11:$A35)+2,FALSE)","v":151},{"$f":"HLOOKUP(AQ$7,$J$67:$DO$121,ROWS($A$11:$A35)+2,FALSE)","v":1309},{"$f":"HLOOKUP(AR$7,$J$67:$DO$121,ROWS($A$11:$A35)+2,FALSE)","v":1673},{"$f":"HLOOKUP(AS$7,$J$67:$DO$121,ROWS($A$11:$A35)+2,FALSE)","v":7316},{"$f":"HLOOKUP(AT$7,$J$67:$DO$121,ROWS($A$11:$A35)+2,FALSE)","v":1035},{"$f":"HLOOKUP(AU$7,$J$67:$DO$121,ROWS($A$11:$A35)+2,FALSE)","v":284},{"$f":"HLOOKUP(AV$7,$J$67:$DO$121,ROWS($A$11:$A35)+2,FALSE)","v":738},{"$f":"HLOOKUP(AW$7,$J$67:$DO$121,ROWS($A$11:$A35)+2,FALSE)","v":730},{"$f":"HLOOKUP(AX$7,$J$67:$DO$121,ROWS($A$11:$A35)+2,FALSE)","v":123},{"$f":"HLOOKUP(AY$7,$J$67:$DO$121,ROWS($A$11:$A35)+2,FALSE)","v":1597},{"$f":"HLOOKUP(AZ$7,$J$67:$DO$121,ROWS($A$11:$A35)+2,FALSE)","v":3237},{"$f":"HLOOKUP(BA$7,$J$67:$DO$121,ROWS($A$11:$A35)+2,FALSE)","v":1155},{"$f":"HLOOKUP(BB$7,$J$67:$DO$121,ROWS($A$11:$A35)+2,FALSE)","v":2619},{"$f":"HLOOKUP(BC$7,$J$67:$DO$121,ROWS($A$11:$A35)+2,FALSE)","v":1013},{"$f":"HLOOKUP(BD$7,$J$67:$DO$121,ROWS($A$11:$A35)+2,FALSE)","v":0},{"$f":"HLOOKUP(BE$7,$J$67:$DO$121,ROWS($A$11:$A35)+2,FALSE)","v":2371},{"$f":"HLOOKUP(BF$7,$J$67:$DO$121,ROWS($A$11:$A35)+2,FALSE)","v":1328},{"$f":"HLOOKUP(BG$7,$J$67:$DO$121,ROWS($A$11:$A35)+2,FALSE)","v":200},{"$f":"HLOOKUP(BH$7,$J$67:$DO$121,ROWS($A$11:$A35)+2,FALSE)","v":17929},{"$f":"HLOOKUP(BI$7,$J$67:$DO$121,ROWS($A$11:$A35)+2,FALSE)","v":343},{"$f":"HLOOKUP(BJ$7,$J$67:$DO$121,ROWS($A$11:$A35)+2,FALSE)","v":39},null,null,null,null,{"$f":"HLOOKUP(BO$7+0.5,$J$67:$DO$121,ROWS($A$11:$A35)+2,FALSE)","v":6022},{"$f":"HLOOKUP(BP$7+0.5,$J$67:$DO$121,ROWS($A$11:$A35)+2,FALSE)","v":342},{"$f":"HLOOKUP(BQ$7+0.5,$J$67:$DO$121,ROWS($A$11:$A35)+2,FALSE)","v":851},{"$f":"HLOOKUP(BR$7+0.5,$J$67:$DO$121,ROWS($A$11:$A35)+2,FALSE)","v":1655},{"$f":"HLOOKUP(BS$7+0.5,$J$67:$DO$121,ROWS($A$11:$A35)+2,FALSE)","v":321},{"$f":"HLOOKUP(BT$7+0.5,$J$67:$DO$121,ROWS($A$11:$A35)+2,FALSE)","v":1680},{"$f":"HLOOKUP(BU$7+0.5,$J$67:$DO$121,ROWS($A$11:$A35)+2,FALSE)","v":1122},{"$f":"HLOOKUP(BV$7+0.5,$J$67:$DO$121,ROWS($A$11:$A35)+2,FALSE)","v":259},{"$f":"HLOOKUP(BW$7+0.5,$J$67:$DO$121,ROWS($A$11:$A35)+2,FALSE)","v":171},{"$f":"HLOOKUP(BX$7+0.5,$J$67:$DO$121,ROWS($A$11:$A35)+2,FALSE)","v":353},{"$f":"HLOOKUP(BY$7+0.5,$J$67:$DO$121,ROWS($A$11:$A35)+2,FALSE)","v":951},{"$f":"HLOOKUP(BZ$7+0.5,$J$67:$DO$121,ROWS($A$11:$A35)+2,FALSE)","v":1237},{"$f":"HLOOKUP(CA$7+0.5,$J$67:$DO$121,ROWS($A$11:$A35)+2,FALSE)","v":253},{"$f":"HLOOKUP(CB$7+0.5,$J$67:$DO$121,ROWS($A$11:$A35)+2,FALSE)","v":314},{"$f":"HLOOKUP(CC$7+0.5,$J$67:$DO$121,ROWS($A$11:$A35)+2,FALSE)","v":2137},{"$f":"HLOOKUP(CD$7+0.5,$J$67:$DO$121,ROWS($A$11:$A35)+2,FALSE)","v":433},{"$f":"HLOOKUP(CE$7+0.5,$J$67:$DO$121,ROWS($A$11:$A35)+2,FALSE)","v":2094},{"$f":"HLOOKUP(CF$7+0.5,$J$67:$DO$121,ROWS($A$11:$A35)+2,FALSE)","v":576},{"$f":"HLOOKUP(CG$7+0.5,$J$67:$DO$121,ROWS($A$11:$A35)+2,FALSE)","v":273},{"$f":"HLOOKUP(CH$7+0.5,$J$67:$DO$121,ROWS($A$11:$A35)+2,FALSE)","v":402},{"$f":"HLOOKUP(CI$7+0.5,$J$67:$DO$121,ROWS($A$11:$A35)+2,FALSE)","v":199},{"$f":"HLOOKUP(CJ$7+0.5,$J$67:$DO$121,ROWS($A$11:$A35)+2,FALSE)","v":797},{"$f":"HLOOKUP(CK$7+0.5,$J$67:$DO$121,ROWS($A$11:$A35)+2,FALSE)","v":531},{"$f":"HLOOKUP(CL$7+0.5,$J$67:$DO$121,ROWS($A$11:$A35)+2,FALSE)","v":1867},{"$f":"HLOOKUP(CM$7+0.5,$J$67:$DO$121,ROWS($A$11:$A35)+2,FALSE)","v":"N/A"},{"$f":"HLOOKUP(CN$7+0.5,$J$67:$DO$121,ROWS($A$11:$A35)+2,FALSE)","v":169},{"$f":"HLOOKUP(CO$7+0.5,$J$67:$DO$121,ROWS($A$11:$A35)+2,FALSE)","v":898},{"$f":"HLOOKUP(CP$7+0.5,$J$67:$DO$121,ROWS($A$11:$A35)+2,FALSE)","v":547},{"$f":"HLOOKUP(CQ$7+0.5,$J$67:$DO$121,ROWS($A$11:$A35)+2,FALSE)","v":415},{"$f":"HLOOKUP(CR$7+0.5,$J$67:$DO$121,ROWS($A$11:$A35)+2,FALSE)","v":364},{"$f":"HLOOKUP(CS$7+0.5,$J$67:$DO$121,ROWS($A$11:$A35)+2,FALSE)","v":142},{"$f":"HLOOKUP(CT$7+0.5,$J$67:$DO$121,ROWS($A$11:$A35)+2,FALSE)","v":416},{"$f":"HLOOKUP(CU$7+0.5,$J$67:$DO$121,ROWS($A$11:$A35)+2,FALSE)","v":137},{"$f":"HLOOKUP(CV$7+0.5,$J$67:$DO$121,ROWS($A$11:$A35)+2,FALSE)","v":650},{"$f":"HLOOKUP(CW$7+0.5,$J$67:$DO$121,ROWS($A$11:$A35)+2,FALSE)","v":808},{"$f":"HLOOKUP(CX$7+0.5,$J$67:$DO$121,ROWS($A$11:$A35)+2,FALSE)","v":1621},{"$f":"HLOOKUP(CY$7+0.5,$J$67:$DO$121,ROWS($A$11:$A35)+2,FALSE)","v":669},{"$f":"HLOOKUP(CZ$7+0.5,$J$67:$DO$121,ROWS($A$11:$A35)+2,FALSE)","v":299},{"$f":"HLOOKUP(DA$7+0.5,$J$67:$DO$121,ROWS($A$11:$A35)+2,FALSE)","v":390},{"$f":"HLOOKUP(DB$7+0.5,$J$67:$DO$121,ROWS($A$11:$A35)+2,FALSE)","v":459},{"$f":"HLOOKUP(DC$7+0.5,$J$67:$DO$121,ROWS($A$11:$A35)+2,FALSE)","v":148},{"$f":"HLOOKUP(DD$7+0.5,$J$67:$DO$121,ROWS($A$11:$A35)+2,FALSE)","v":1554},{"$f":"HLOOKUP(DE$7+0.5,$J$67:$DO$121,ROWS($A$11:$A35)+2,FALSE)","v":922},{"$f":"HLOOKUP(DF$7+0.5,$J$67:$DO$121,ROWS($A$11:$A35)+2,FALSE)","v":1037},{"$f":"HLOOKUP(DG$7+0.5,$J$67:$DO$121,ROWS($A$11:$A35)+2,FALSE)","v":1241},{"$f":"HLOOKUP(DH$7+0.5,$J$67:$DO$121,ROWS($A$11:$A35)+2,FALSE)","v":792},{"$f":"HLOOKUP(DI$7+0.5,$J$67:$DO$121,ROWS($A$11:$A35)+2,FALSE)","v":211},{"$f":"HLOOKUP(DJ$7+0.5,$J$67:$DO$121,ROWS($A$11:$A35)+2,FALSE)","v":1485},{"$f":"HLOOKUP(DK$7+0.5,$J$67:$DO$121,ROWS($A$11:$A35)+2,FALSE)","v":604},{"$f":"HLOOKUP(DL$7+0.5,$J$67:$DO$121,ROWS($A$11:$A35)+2,FALSE)","v":211},{"$f":"HLOOKUP(DM$7+0.5,$J$67:$DO$121,ROWS($A$11:$A35)+2,FALSE)","v":2252},{"$f":"HLOOKUP(DN$7+0.5,$J$67:$DO$121,ROWS($A$11:$A35)+2,FALSE)","v":280},{"$f":"HLOOKUP(DO$7+0.5,$J$67:$DO$121,ROWS($A$11:$A35)+2,FALSE)","v":62}]
[null,"Mississippi",2931228,3253,2510729,16977,340266,16300,1.0724980569397836E-2,{"$f":"HLOOKUP(J$7,$J$67:$DO$121,ROWS($A$11:$A36)+2,FALSE)","v":72321},{"$f":"HLOOKUP(K$7,$J$67:$DO$121,ROWS($A$11:$A36)+2,FALSE)","v":8306},{"$f":"HLOOKUP(L$7,$J$67:$DO$121,ROWS($A$11:$A36)+2,FALSE)","v":1192},{"$f":"HLOOKUP(M$7,$J$67:$DO$121,ROWS($A$11:$A36)+2,FALSE)","v":187},{"$f":"HLOOKUP(N$7,$J$67:$DO$121,ROWS($A$11:$A36)+2,FALSE)","v":4941},{"$f":"HLOOKUP(O$7,$J$67:$DO$121,ROWS($A$11:$A36)+2,FALSE)","v":3000},{"$f":"HLOOKUP(P$7,$J$67:$DO$121,ROWS($A$11:$A36)+2,FALSE)","v":1167},{"$f":"HLOOKUP(Q$7,$J$67:$DO$121,ROWS($A$11:$A36)+2,FALSE)","v":71},{"$f":"HLOOKUP(R$7,$J$67:$DO$121,ROWS($A$11:$A36)+2,FALSE)","v":0},{"$f":"HLOOKUP(S$7,$J$67:$DO$121,ROWS($A$11:$A36)+2,FALSE)","v":0},{"$f":"HLOOKUP(T$7,$J$67:$DO$121,ROWS($A$11:$A36)+2,FALSE)","v":4814},{"$f":"HLOOKUP(U$7,$J$67:$DO$121,ROWS($A$11:$A36)+2,FALSE)","v":4014},{"$f":"HLOOKUP(V$7,$J$67:$DO$121,ROWS($A$11:$A36)+2,FALSE)","v":276},{"$f":"HLOOKUP(W$7,$J$67:$DO$121,ROWS($A$11:$A36)+2,FALSE)","v":121},{"$f":"HLOOKUP(X$7,$J$67:$DO$121,ROWS($A$11:$A36)+2,FALSE)","v":3030},{"$f":"HLOOKUP(Y$7,$J$67:$DO$121,ROWS($A$11:$A36)+2,FALSE)","v":1403},{"$f":"HLOOKUP(Z$7,$J$67:$DO$121,ROWS($A$11:$A36)+2,FALSE)","v":114},{"$f":"HLOOKUP(AA$7,$J$67:$DO$121,ROWS($A$11:$A36)+2,FALSE)","v":330},{"$f":"HLOOKUP(AB$7,$J$67:$DO$121,ROWS($A$11:$A36)+2,FALSE)","v":407},{"$f":"HLOOKUP(AC$7,$J$67:$DO$121,ROWS($A$11:$A36)+2,FALSE)","v":7390},{"$f":"HLOOKUP(AD$7,$J$67:$DO$121,ROWS($A$11:$A36)+2,FALSE)","v":0},{"$f":"HLOOKUP(AE$7,$J$67:$DO$121,ROWS($A$11:$A36)+2,FALSE)","v":649},{"$f":"HLOOKUP(AF$7,$J$67:$DO$121,ROWS($A$11:$A36)+2,FALSE)","v":107},{"$f":"HLOOKUP(AG$7,$J$67:$DO$121,ROWS($A$11:$A36)+2,FALSE)","v":2495},{"$f":"HLOOKUP(AH$7,$J$67:$DO$121,ROWS($A$11:$A36)+2,FALSE)","v":863},{"$f":"HLOOKUP(AI$7,$J$67:$DO$121,ROWS($A$11:$A36)+2,FALSE)","v":"N/A"},{"$f":"HLOOKUP(AJ$7,$J$67:$DO$121,ROWS($A$11:$A36)+2,FALSE)","v":959},{"$f":"HLOOKUP(AK$7,$J$67:$DO$121,ROWS($A$11:$A36)+2,FALSE)","v":314},{"$f":"HLOOKUP(AL$7,$J$67:$DO$121,ROWS($A$11:$A36)+2,FALSE)","v":0},{"$f":"HLOOKUP(AM$7,$J$67:$DO$121,ROWS($A$11:$A36)+2,FALSE)","v":408},{"$f":"HLOOKUP(AN$7,$J$67:$DO$121,ROWS($A$11:$A36)+2,FALSE)","v":0},{"$f":"HLOOKUP(AO$7,$J$67:$DO$121,ROWS($A$11:$A36)+2,FALSE)","v":403},{"$f":"HLOOKUP(AP$7,$J$67:$DO$121,ROWS($A$11:$A36)+2,FALSE)","v":633},{"$f":"HLOOKUP(AQ$7,$J$67:$DO$121,ROWS($A$11:$A36)+2,FALSE)","v":1026},{"$f":"HLOOKUP(AR$7,$J$67:$DO$121,ROWS($A$11:$A36)+2,FALSE)","v":2227},{"$f":"HLOOKUP(AS$7,$J$67:$DO$121,ROWS($A$11:$A36)+2,FALSE)","v":0},{"$f":"HLOOKUP(AT$7,$J$67:$DO$121,ROWS($A$11:$A36)+2,FALSE)","v":1312},{"$f":"HLOOKUP(AU$7,$J$67:$DO$121,ROWS($A$11:$A36)+2,FALSE)","v":663},{"$f":"HLOOKUP(AV$7,$J$67:$DO$121,ROWS($A$11:$A36)+2,FALSE)","v":0},{"$f":"HLOOKUP(AW$7,$J$67:$DO$121,ROWS($A$11:$A36)+2,FALSE)","v":750},{"$f":"HLOOKUP(AX$7,$J$67:$DO$121,ROWS($A$11:$A36)+2,FALSE)","v":145},{"$f":"HLOOKUP(AY$7,$J$67:$DO$121,ROWS($A$11:$A36)+2,FALSE)","v":1860},{"$f":"HLOOKUP(AZ$7,$J$67:$DO$121,ROWS($A$11:$A36)+2,FALSE)","v":56},{"$f":"HLOOKUP(BA$7,$J$67:$DO$121,ROWS($A$11:$A36)+2,FALSE)","v":8158},{"$f":"HLOOKUP(BB$7,$J$67:$DO$121,ROWS($A$11:$A36)+2,FALSE)","v":5755},{"$f":"HLOOKUP(BC$7,$J$67:$DO$121,ROWS($A$11:$A36)+2,FALSE)","v":232},{"$f":"HLOOKUP(BD$7,$J$67:$DO$121,ROWS($A$11:$A36)+2,FALSE)","v":0},{"$f":"HLOOKUP(BE$7,$J$67:$DO$121,ROWS($A$11:$A36)+2,FALSE)","v":572},{"$f":"HLOOKUP(BF$7,$J$67:$DO$121,ROWS($A$11:$A36)+2,FALSE)","v":508},{"$f":"HLOOKUP(BG$7,$J$67:$DO$121,ROWS($A$11:$A36)+2,FALSE)","v":94},{"$f":"HLOOKUP(BH$7,$J$67:$DO$121,ROWS($A$11:$A36)+2,FALSE)","v":879},{"$f":"HLOOKUP(BI$7,$J$67:$DO$121,ROWS($A$11:$A36)+2,FALSE)","v":490},{"$f":"HLOOKUP(BJ$7,$J$67:$DO$121,ROWS($A$11:$A36)+2,FALSE)","v":814},null,null,null,null,{"$f":"HLOOKUP(BO$7+0.5,$J$67:$DO$121,ROWS($A$11:$A36)+2,FALSE)","v":5412},{"$f":"HLOOKUP(BP$7+0.5,$J$67:$DO$121,ROWS($A$11:$A36)+2,FALSE)","v":2433},{"$f":"HLOOKUP(BQ$7+0.5,$J$67:$DO$121,ROWS($A$11:$A36)+2,FALSE)","v":1055},{"$f":"HLOOKUP(BR$7+0.5,$J$67:$DO$121,ROWS($A$11:$A36)+2,FALSE)","v":188},{"$f":"HLOOKUP(BS$7+0.5,$J$67:$DO$121,ROWS($A$11:$A36)+2,FALSE)","v":2495},{"$f":"HLOOKUP(BT$7+0.5,$J$67:$DO$121,ROWS($A$11:$A36)+2,FALSE)","v":1221},{"$f":"HLOOKUP(BU$7+0.5,$J$67:$DO$121,ROWS($A$11:$A36)+2,FALSE)","v":854},{"$f":"HLOOKUP(BV$7+0.5,$J$67:$DO$121,ROWS($A$11:$A36)+2,FALSE)","v":140},{"$f":"HLOOKUP(BW$7+0.5,$J$67:$DO$121,ROWS($A$11:$A36)+2,FALSE)","v":287},{"$f":"HLOOKUP(BX$7+0.5,$J$67:$DO$121,ROWS($A$11:$A36)+2,FALSE)","v":287},{"$f":"HLOOKUP(BY$7+0.5,$J$67:$DO$121,ROWS($A$11:$A36)+2,FALSE)","v":1372},{"$f":"HLOOKUP(BZ$7+0.5,$J$67:$DO$121,ROWS($A$11:$A36)+2,FALSE)","v":1632},{"$f":"HLOOKUP(CA$7+0.5,$J$67:$DO$121,ROWS($A$11:$A36)+2,FALSE)","v":383},{"$f":"HLOOKUP(CB$7+0.5,$J$67:$DO$121,ROWS($A$11:$A36)+2,FALSE)","v":172},{"$f":"HLOOKUP(CC$7+0.5,$J$67:$DO$121,ROWS($A$11:$A36)+2,FALSE)","v":1391},{"$f":"HLOOKUP(CD$7+0.5,$J$67:$DO$121,ROWS($A$11:$A36)+2,FALSE)","v":1445},{"$f":"HLOOKUP(CE$7+0.5,$J$67:$DO$121,ROWS($A$11:$A36)+2,FALSE)","v":136},{"$f":"HLOOKUP(CF$7+0.5,$J$67:$DO$121,ROWS($A$11:$A36)+2,FALSE)","v":360},{"$f":"HLOOKUP(CG$7+0.5,$J$67:$DO$121,ROWS($A$11:$A36)+2,FALSE)","v":350},{"$f":"HLOOKUP(CH$7+0.5,$J$67:$DO$121,ROWS($A$11:$A36)+2,FALSE)","v":1780},{"$f":"HLOOKUP(CI$7+0.5,$J$67:$DO$121,ROWS($A$11:$A36)+2,FALSE)","v":287},{"$f":"HLOOKUP(CJ$7+0.5,$J$67:$DO$121,ROWS($A$11:$A36)+2,FALSE)","v":529},{"$f":"HLOOKUP(CK$7+0.5,$J$67:$DO$121,ROWS($A$11:$A36)+2,FALSE)","v":154},{"$f":"HLOOKUP(CL$7+0.5,$J$67:$DO$121,ROWS($A$11:$A36)+2,FALSE)","v":1469},{"$f":"HLOOKUP(CM$7+0.5,$J$67:$DO$121,ROWS($A$11:$A36)+2,FALSE)","v":996},{"$f":"HLOOKUP(CN$7+0.5,$J$67:$DO$121,ROWS($A$11:$A36)+2,FALSE)","v":"N/A"},{"$f":"HLOOKUP(CO$7+0.5,$J$67:$DO$121,ROWS($A$11:$A36)+2,FALSE)","v":544},{"$f":"HLOOKUP(CP$7+0.5,$J$67:$DO$121,ROWS($A$11:$A36)+2,FALSE)","v":278},{"$f":"HLOOKUP(CQ$7+0.5,$J$67:$DO$121,ROWS($A$11:$A36)+2,FALSE)","v":287},{"$f":"HLOOKUP(CR$7+0.5,$J$67:$DO$121,ROWS($A$11:$A36)+2,FALSE)","v":323},{"$f":"HLOOKUP(CS$7+0.5,$J$67:$DO$121,ROWS($A$11:$A36)+2,FALSE)","v":287},{"$f":"HLOOKUP(CT$7+0.5,$J$67:$DO$121,ROWS($A$11:$A36)+2,FALSE)","v":398},{"$f":"HLOOKUP(CU$7+0.5,$J$67:$DO$121,ROWS($A$11:$A36)+2,FALSE)","v":669},{"$f":"HLOOKUP(CV$7+0.5,$J$67:$DO$121,ROWS($A$11:$A36)+2,FALSE)","v":524},{"$f":"HLOOKUP(CW$7+0.5,$J$67:$DO$121,ROWS($A$11:$A36)+2,FALSE)","v":1080},{"$f":"HLOOKUP(CX$7+0.5,$J$67:$DO$121,ROWS($A$11:$A36)+2,FALSE)","v":287},{"$f":"HLOOKUP(CY$7+0.5,$J$67:$DO$121,ROWS($A$11:$A36)+2,FALSE)","v":783},{"$f":"HLOOKUP(CZ$7+0.5,$J$67:$DO$121,ROWS($A$11:$A36)+2,FALSE)","v":520},{"$f":"HLOOKUP(DA$7+0.5,$J$67:$DO$121,ROWS($A$11:$A36)+2,FALSE)","v":287},{"$f":"HLOOKUP(DB$7+0.5,$J$67:$DO$121,ROWS($A$11:$A36)+2,FALSE)","v":499},{"$f":"HLOOKUP(DC$7+0.5,$J$67:$DO$121,ROWS($A$11:$A36)+2,FALSE)","v":241},{"$f":"HLOOKUP(DD$7+0.5,$J$67:$DO$121,ROWS($A$11:$A36)+2,FALSE)","v":982},{"$f":"HLOOKUP(DE$7+0.5,$J$67:$DO$121,ROWS($A$11:$A36)+2,FALSE)","v":99},{"$f":"HLOOKUP(DF$7+0.5,$J$67:$DO$121,ROWS($A$11:$A36)+2,FALSE)","v":2173},{"$f":"HLOOKUP(DG$7+0.5,$J$67:$DO$121,ROWS($A$11:$A36)+2,FALSE)","v":1663},{"$f":"HLOOKUP(DH$7+0.5,$J$67:$DO$121,ROWS($A$11:$A36)+2,FALSE)","v":229},{"$f":"HLOOKUP(DI$7+0.5,$J$67:$DO$121,ROWS($A$11:$A36)+2,FALSE)","v":287},{"$f":"HLOOKUP(DJ$7+0.5,$J$67:$DO$121,ROWS($A$11:$A36)+2,FALSE)","v":350},{"$f":"HLOOKUP(DK$7+0.5,$J$67:$DO$121,ROWS($A$11:$A36)+2,FALSE)","v":492},{"$f":"HLOOKUP(DL$7+0.5,$J$67:$DO$121,ROWS($A$11:$A36)+2,FALSE)","v":177},{"$f":"HLOOKUP(DM$7+0.5,$J$67:$DO$121,ROWS($A$11:$A36)+2,FALSE)","v":630},{"$f":"HLOOKUP(DN$7+0.5,$J$67:$DO$121,ROWS($A$11:$A36)+2,FALSE)","v":422},{"$f":"HLOOKUP(DO$7+0.5,$J$67:$DO$121,ROWS($A$11:$A36)+2,FALSE)","v":728}]
[null,"Missouri",5920858,4730,4968921,23164,786726,21904,2.1536566532146542E-2,{"$f":"HLOOKUP(J$7,$J$67:$DO$121,ROWS($A$11:$A37)+2,FALSE)","v":145226},{"$f":"HLOOKUP(K$7,$J$67:$DO$121,ROWS($A$11:$A37)+2,FALSE)","v":819},{"$f":"HLOOKUP(L$7,$J$67:$DO$121,ROWS($A$11:$A37)+2,FALSE)","v":1051},{"$f":"HLOOKUP(M$7,$J$67:$DO$121,ROWS($A$11:$A37)+2,FALSE)","v":2988},{"$f":"HLOOKUP(N$7,$J$67:$DO$121,ROWS($A$11:$A37)+2,FALSE)","v":4381},{"$f":"HLOOKUP(O$7,$J$67:$DO$121,ROWS($A$11:$A37)+2,FALSE)","v":9840},{"$f":"HLOOKUP(P$7,$J$67:$DO$121,ROWS($A$11:$A37)+2,FALSE)","v":1903},{"$f":"HLOOKUP(Q$7,$J$67:$DO$121,ROWS($A$11:$A37)+2,FALSE)","v":243},{"$f":"HLOOKUP(R$7,$J$67:$DO$121,ROWS($A$11:$A37)+2,FALSE)","v":314},{"$f":"HLOOKUP(S$7,$J$67:$DO$121,ROWS($A$11:$A37)+2,FALSE)","v":478},{"$f":"HLOOKUP(T$7,$J$67:$DO$121,ROWS($A$11:$A37)+2,FALSE)","v":8317},{"$f":"HLOOKUP(U$7,$J$67:$DO$121,ROWS($A$11:$A37)+2,FALSE)","v":2492},{"$f":"HLOOKUP(V$7,$J$67:$DO$121,ROWS($A$11:$A37)+2,FALSE)","v":380},{"$f":"HLOOKUP(W$7,$J$67:$DO$121,ROWS($A$11:$A37)+2,FALSE)","v":830},{"$f":"HLOOKUP(X$7,$J$67:$DO$121,ROWS($A$11:$A37)+2,FALSE)","v":21277},{"$f":"HLOOKUP(Y$7,$J$67:$DO$121,ROWS($A$11:$A37)+2,FALSE)","v":3351},{"$f":"HLOOKUP(Z$7,$J$67:$DO$121,ROWS($A$11:$A37)+2,FALSE)","v":4708},{"$f":"HLOOKUP(AA$7,$J$67:$DO$121,ROWS($A$11:$A37)+2,FALSE)","v":23427},{"$f":"HLOOKUP(AB$7,$J$67:$DO$121,ROWS($A$11:$A37)+2,FALSE)","v":2552},{"$f":"HLOOKUP(AC$7,$J$67:$DO$121,ROWS($A$11:$A37)+2,FALSE)","v":2238},{"$f":"HLOOKUP(AD$7,$J$67:$DO$121,ROWS($A$11:$A37)+2,FALSE)","v":171},{"$f":"HLOOKUP(AE$7,$J$67:$DO$121,ROWS($A$11:$A37)+2,FALSE)","v":1359},{"$f":"HLOOKUP(AF$7,$J$67:$DO$121,ROWS($A$11:$A37)+2,FALSE)","v":1395},{"$f":"HLOOKUP(AG$7,$J$67:$DO$121,ROWS($A$11:$A37)+2,FALSE)","v":2610},{"$f":"HLOOKUP(AH$7,$J$67:$DO$121,ROWS($A$11:$A37)+2,FALSE)","v":1701},{"$f":"HLOOKUP(AI$7,$J$67:$DO$121,ROWS($A$11:$A37)+2,FALSE)","v":1183},{"$f":"HLOOKUP(AJ$7,$J$67:$DO$121,ROWS($A$11:$A37)+2,FALSE)","v":"N/A"},{"$f":"HLOOKUP(AK$7,$J$67:$DO$121,ROWS($A$11:$A37)+2,FALSE)","v":220},{"$f":"HLOOKUP(AL$7,$J$67:$DO$121,ROWS($A$11:$A37)+2,FALSE)","v":2636},{"$f":"HLOOKUP(AM$7,$J$67:$DO$121,ROWS($A$11:$A37)+2,FALSE)","v":1060},{"$f":"HLOOKUP(AN$7,$J$67:$DO$121,ROWS($A$11:$A37)+2,FALSE)","v":108},{"$f":"HLOOKUP(AO$7,$J$67:$DO$121,ROWS($A$11:$A37)+2,FALSE)","v":1320},{"$f":"HLOOKUP(AP$7,$J$67:$DO$121,ROWS($A$11:$A37)+2,FALSE)","v":150},{"$f":"HLOOKUP(AQ$7,$J$67:$DO$121,ROWS($A$11:$A37)+2,FALSE)","v":2630},{"$f":"HLOOKUP(AR$7,$J$67:$DO$121,ROWS($A$11:$A37)+2,FALSE)","v":1825},{"$f":"HLOOKUP(AS$7,$J$67:$DO$121,ROWS($A$11:$A37)+2,FALSE)","v":848},{"$f":"HLOOKUP(AT$7,$J$67:$DO$121,ROWS($A$11:$A37)+2,FALSE)","v":2163},{"$f":"HLOOKUP(AU$7,$J$67:$DO$121,ROWS($A$11:$A37)+2,FALSE)","v":4647},{"$f":"HLOOKUP(AV$7,$J$67:$DO$121,ROWS($A$11:$A37)+2,FALSE)","v":314},{"$f":"HLOOKUP(AW$7,$J$67:$DO$121,ROWS($A$11:$A37)+2,FALSE)","v":1639},{"$f":"HLOOKUP(AX$7,$J$67:$DO$121,ROWS($A$11:$A37)+2,FALSE)","v":0},{"$f":"HLOOKUP(AY$7,$J$67:$DO$121,ROWS($A$11:$A37)+2,FALSE)","v":954},{"$f":"HLOOKUP(AZ$7,$J$67:$DO$121,ROWS($A$11:$A37)+2,FALSE)","v":512},{"$f":"HLOOKUP(BA$7,$J$67:$DO$121,ROWS($A$11:$A37)+2,FALSE)","v":3311},{"$f":"HLOOKUP(BB$7,$J$67:$DO$121,ROWS($A$11:$A37)+2,FALSE)","v":12884},{"$f":"HLOOKUP(BC$7,$J$67:$DO$121,ROWS($A$11:$A37)+2,FALSE)","v":1319},{"$f":"HLOOKUP(BD$7,$J$67:$DO$121,ROWS($A$11:$A37)+2,FALSE)","v":498},{"$f":"HLOOKUP(BE$7,$J$67:$DO$121,ROWS($A$11:$A37)+2,FALSE)","v":3206},{"$f":"HLOOKUP(BF$7,$J$67:$DO$121,ROWS($A$11:$A37)+2,FALSE)","v":1107},{"$f":"HLOOKUP(BG$7,$J$67:$DO$121,ROWS($A$11:$A37)+2,FALSE)","v":177},{"$f":"HLOOKUP(BH$7,$J$67:$DO$121,ROWS($A$11:$A37)+2,FALSE)","v":1331},{"$f":"HLOOKUP(BI$7,$J$67:$DO$121,ROWS($A$11:$A37)+2,FALSE)","v":359},{"$f":"HLOOKUP(BJ$7,$J$67:$DO$121,ROWS($A$11:$A37)+2,FALSE)","v":867},null,null,null,null,{"$f":"HLOOKUP(BO$7+0.5,$J$67:$DO$121,ROWS($A$11:$A37)+2,FALSE)","v":7633},{"$f":"HLOOKUP(BP$7+0.5,$J$67:$DO$121,ROWS($A$11:$A37)+2,FALSE)","v":561},{"$f":"HLOOKUP(BQ$7+0.5,$J$67:$DO$121,ROWS($A$11:$A37)+2,FALSE)","v":822},{"$f":"HLOOKUP(BR$7+0.5,$J$67:$DO$121,ROWS($A$11:$A37)+2,FALSE)","v":1145},{"$f":"HLOOKUP(BS$7+0.5,$J$67:$DO$121,ROWS($A$11:$A37)+2,FALSE)","v":1133},{"$f":"HLOOKUP(BT$7+0.5,$J$67:$DO$121,ROWS($A$11:$A37)+2,FALSE)","v":2218},{"$f":"HLOOKUP(BU$7+0.5,$J$67:$DO$121,ROWS($A$11:$A37)+2,FALSE)","v":781},{"$f":"HLOOKUP(BV$7+0.5,$J$67:$DO$121,ROWS($A$11:$A37)+2,FALSE)","v":282},{"$f":"HLOOKUP(BW$7+0.5,$J$67:$DO$121,ROWS($A$11:$A37)+2,FALSE)","v":322},{"$f":"HLOOKUP(BX$7+0.5,$J$67:$DO$121,ROWS($A$11:$A37)+2,FALSE)","v":322},{"$f":"HLOOKUP(BY$7+0.5,$J$67:$DO$121,ROWS($A$11:$A37)+2,FALSE)","v":2320},{"$f":"HLOOKUP(BZ$7+0.5,$J$67:$DO$121,ROWS($A$11:$A37)+2,FALSE)","v":1119},{"$f":"HLOOKUP(CA$7+0.5,$J$67:$DO$121,ROWS($A$11:$A37)+2,FALSE)","v":294},{"$f":"HLOOKUP(CB$7+0.5,$J$67:$DO$121,ROWS($A$11:$A37)+2,FALSE)","v":909},{"$f":"HLOOKUP(CC$7+0.5,$J$67:$DO$121,ROWS($A$11:$A37)+2,FALSE)","v":3689},{"$f":"HLOOKUP(CD$7+0.5,$J$67:$DO$121,ROWS($A$11:$A37)+2,FALSE)","v":1123},{"$f":"HLOOKUP(CE$7+0.5,$J$67:$DO$121,ROWS($A$11:$A37)+2,FALSE)","v":1328},{"$f":"HLOOKUP(CF$7+0.5,$J$67:$DO$121,ROWS($A$11:$A37)+2,FALSE)","v":3689},{"$f":"HLOOKUP(CG$7+0.5,$J$67:$DO$121,ROWS($A$11:$A37)+2,FALSE)","v":1075},{"$f":"HLOOKUP(CH$7+0.5,$J$67:$DO$121,ROWS($A$11:$A37)+2,FALSE)","v":2007},{"$f":"HLOOKUP(CI$7+0.5,$J$67:$DO$121,ROWS($A$11:$A37)+2,FALSE)","v":179},{"$f":"HLOOKUP(CJ$7+0.5,$J$67:$DO$121,ROWS($A$11:$A37)+2,FALSE)","v":812},{"$f":"HLOOKUP(CK$7+0.5,$J$67:$DO$121,ROWS($A$11:$A37)+2,FALSE)","v":931},{"$f":"HLOOKUP(CL$7+0.5,$J$67:$DO$121,ROWS($A$11:$A37)+2,FALSE)","v":954},{"$f":"HLOOKUP(CM$7+0.5,$J$67:$DO$121,ROWS($A$11:$A37)+2,FALSE)","v":810},{"$f":"HLOOKUP(CN$7+0.5,$J$67:$DO$121,ROWS($A$11:$A37)+2,FALSE)","v":510},{"$f":"HLOOKUP(CO$7+0.5,$J$67:$DO$121,ROWS($A$11:$A37)+2,FALSE)","v":"N/A"},{"$f":"HLOOKUP(CP$7+0.5,$J$67:$DO$121,ROWS($A$11:$A37)+2,FALSE)","v":192},{"$f":"HLOOKUP(CQ$7+0.5,$J$67:$DO$121,ROWS($A$11:$A37)+2,FALSE)","v":1240},{"$f":"HLOOKUP(CR$7+0.5,$J$67:$DO$121,ROWS($A$11:$A37)+2,FALSE)","v":648},{"$f":"HLOOKUP(CS$7+0.5,$J$67:$DO$121,ROWS($A$11:$A37)+2,FALSE)","v":180},{"$f":"HLOOKUP(CT$7+0.5,$J$67:$DO$121,ROWS($A$11:$A37)+2,FALSE)","v":804},{"$f":"HLOOKUP(CU$7+0.5,$J$67:$DO$121,ROWS($A$11:$A37)+2,FALSE)","v":147},{"$f":"HLOOKUP(CV$7+0.5,$J$67:$DO$121,ROWS($A$11:$A37)+2,FALSE)","v":1474},{"$f":"HLOOKUP(CW$7+0.5,$J$67:$DO$121,ROWS($A$11:$A37)+2,FALSE)","v":760},{"$f":"HLOOKUP(CX$7+0.5,$J$67:$DO$121,ROWS($A$11:$A37)+2,FALSE)","v":1186},{"$f":"HLOOKUP(CY$7+0.5,$J$67:$DO$121,ROWS($A$11:$A37)+2,FALSE)","v":847},{"$f":"HLOOKUP(CZ$7+0.5,$J$67:$DO$121,ROWS($A$11:$A37)+2,FALSE)","v":1478},{"$f":"HLOOKUP(DA$7+0.5,$J$67:$DO$121,ROWS($A$11:$A37)+2,FALSE)","v":204},{"$f":"HLOOKUP(DB$7+0.5,$J$67:$DO$121,ROWS($A$11:$A37)+2,FALSE)","v":755},{"$f":"HLOOKUP(DC$7+0.5,$J$67:$DO$121,ROWS($A$11:$A37)+2,FALSE)","v":259},{"$f":"HLOOKUP(DD$7+0.5,$J$67:$DO$121,ROWS($A$11:$A37)+2,FALSE)","v":578},{"$f":"HLOOKUP(DE$7+0.5,$J$67:$DO$121,ROWS($A$11:$A37)+2,FALSE)","v":445},{"$f":"HLOOKUP(DF$7+0.5,$J$67:$DO$121,ROWS($A$11:$A37)+2,FALSE)","v":1272},{"$f":"HLOOKUP(DG$7+0.5,$J$67:$DO$121,ROWS($A$11:$A37)+2,FALSE)","v":3043},{"$f":"HLOOKUP(DH$7+0.5,$J$67:$DO$121,ROWS($A$11:$A37)+2,FALSE)","v":664},{"$f":"HLOOKUP(DI$7+0.5,$J$67:$DO$121,ROWS($A$11:$A37)+2,FALSE)","v":524},{"$f":"HLOOKUP(DJ$7+0.5,$J$67:$DO$121,ROWS($A$11:$A37)+2,FALSE)","v":1413},{"$f":"HLOOKUP(DK$7+0.5,$J$67:$DO$121,ROWS($A$11:$A37)+2,FALSE)","v":748},{"$f":"HLOOKUP(DL$7+0.5,$J$67:$DO$121,ROWS($A$11:$A37)+2,FALSE)","v":231},{"$f":"HLOOKUP(DM$7+0.5,$J$67:$DO$121,ROWS($A$11:$A37)+2,FALSE)","v":693},{"$f":"HLOOKUP(DN$7+0.5,$J$67:$DO$121,ROWS($A$11:$A37)+2,FALSE)","v":496},{"$f":"HLOOKUP(DO$7+0.5,$J$67:$DO$121,ROWS($A$11:$A37)+2,FALSE)","v":658}]
[null,"Montana",978507,1744,821709,7063,117752,6986,5.2838187758416626E-3,{"$f":"HLOOKUP(J$7,$J$67:$DO$121,ROWS($A$11:$A38)+2,FALSE)","v":35630},{"$f":"HLOOKUP(K$7,$J$67:$DO$121,ROWS($A$11:$A38)+2,FALSE)","v":212},{"$f":"HLOOKUP(L$7,$J$67:$DO$121,ROWS($A$11:$A38)+2,FALSE)","v":650},{"$f":"HLOOKUP(M$7,$J$67:$DO$121,ROWS($A$11:$A38)+2,FALSE)","v":1909},{"$f":"HLOOKUP(N$7,$J$67:$DO$121,ROWS($A$11:$A38)+2,FALSE)","v":672},{"$f":"HLOOKUP(O$7,$J$67:$DO$121,ROWS($A$11:$A38)+2,FALSE)","v":5756},{"$f":"HLOOKUP(P$7,$J$67:$DO$121,ROWS($A$11:$A38)+2,FALSE)","v":2185},{"$f":"HLOOKUP(Q$7,$J$67:$DO$121,ROWS($A$11:$A38)+2,FALSE)","v":128},{"$f":"HLOOKUP(R$7,$J$67:$DO$121,ROWS($A$11:$A38)+2,FALSE)","v":71},{"$f":"HLOOKUP(S$7,$J$67:$DO$121,ROWS($A$11:$A38)+2,FALSE)","v":0},{"$f":"HLOOKUP(T$7,$J$67:$DO$121,ROWS($A$11:$A38)+2,FALSE)","v":1373},{"$f":"HLOOKUP(U$7,$J$67:$DO$121,ROWS($A$11:$A38)+2,FALSE)","v":46},{"$f":"HLOOKUP(V$7,$J$67:$DO$121,ROWS($A$11:$A38)+2,FALSE)","v":0},{"$f":"HLOOKUP(W$7,$J$67:$DO$121,ROWS($A$11:$A38)+2,FALSE)","v":1458},{"$f":"HLOOKUP(X$7,$J$67:$DO$121,ROWS($A$11:$A38)+2,FALSE)","v":1094},{"$f":"HLOOKUP(Y$7,$J$67:$DO$121,ROWS($A$11:$A38)+2,FALSE)","v":251},{"$f":"HLOOKUP(Z$7,$J$67:$DO$121,ROWS($A$11:$A38)+2,FALSE)","v":169},{"$f":"HLOOKUP(AA$7,$J$67:$DO$121,ROWS($A$11:$A38)+2,FALSE)","v":60},{"$f":"HLOOKUP(AB$7,$J$67:$DO$121,ROWS($A$11:$A38)+2,FALSE)","v":321},{"$f":"HLOOKUP(AC$7,$J$67:$DO$121,ROWS($A$11:$A38)+2,FALSE)","v":85},{"$f":"HLOOKUP(AD$7,$J$67:$DO$121,ROWS($A$11:$A38)+2,FALSE)","v":76},{"$f":"HLOOKUP(AE$7,$J$67:$DO$121,ROWS($A$11:$A38)+2,FALSE)","v":51},{"$f":"HLOOKUP(AF$7,$J$67:$DO$121,ROWS($A$11:$A38)+2,FALSE)","v":59},{"$f":"HLOOKUP(AG$7,$J$67:$DO$121,ROWS($A$11:$A38)+2,FALSE)","v":648},{"$f":"HLOOKUP(AH$7,$J$67:$DO$121,ROWS($A$11:$A38)+2,FALSE)","v":1323},{"$f":"HLOOKUP(AI$7,$J$67:$DO$121,ROWS($A$11:$A38)+2,FALSE)","v":242},{"$f":"HLOOKUP(AJ$7,$J$67:$DO$121,ROWS($A$11:$A38)+2,FALSE)","v":564},{"$f":"HLOOKUP(AK$7,$J$67:$DO$121,ROWS($A$11:$A38)+2,FALSE)","v":"N/A"},{"$f":"HLOOKUP(AL$7,$J$67:$DO$121,ROWS($A$11:$A38)+2,FALSE)","v":340},{"$f":"HLOOKUP(AM$7,$J$67:$DO$121,ROWS($A$11:$A38)+2,FALSE)","v":548},{"$f":"HLOOKUP(AN$7,$J$67:$DO$121,ROWS($A$11:$A38)+2,FALSE)","v":0},{"$f":"HLOOKUP(AO$7,$J$67:$DO$121,ROWS($A$11:$A38)+2,FALSE)","v":0},{"$f":"HLOOKUP(AP$7,$J$67:$DO$121,ROWS($A$11:$A38)+2,FALSE)","v":660},{"$f":"HLOOKUP(AQ$7,$J$67:$DO$121,ROWS($A$11:$A38)+2,FALSE)","v":246},{"$f":"HLOOKUP(AR$7,$J$67:$DO$121,ROWS($A$11:$A38)+2,FALSE)","v":1072},{"$f":"HLOOKUP(AS$7,$J$67:$DO$121,ROWS($A$11:$A38)+2,FALSE)","v":1677},{"$f":"HLOOKUP(AT$7,$J$67:$DO$121,ROWS($A$11:$A38)+2,FALSE)","v":89},{"$f":"HLOOKUP(AU$7,$J$67:$DO$121,ROWS($A$11:$A38)+2,FALSE)","v":182},{"$f":"HLOOKUP(AV$7,$J$67:$DO$121,ROWS($A$11:$A38)+2,FALSE)","v":1620},{"$f":"HLOOKUP(AW$7,$J$67:$DO$121,ROWS($A$11:$A38)+2,FALSE)","v":419},{"$f":"HLOOKUP(AX$7,$J$67:$DO$121,ROWS($A$11:$A38)+2,FALSE)","v":0},{"$f":"HLOOKUP(AY$7,$J$67:$DO$121,ROWS($A$11:$A38)+2,FALSE)","v":110},{"$f":"HLOOKUP(AZ$7,$J$67:$DO$121,ROWS($A$11:$A38)+2,FALSE)","v":295},{"$f":"HLOOKUP(BA$7,$J$67:$DO$121,ROWS($A$11:$A38)+2,FALSE)","v":111},{"$f":"HLOOKUP(BB$7,$J$67:$DO$121,ROWS($A$11:$A38)+2,FALSE)","v":2101},{"$f":"HLOOKUP(BC$7,$J$67:$DO$121,ROWS($A$11:$A38)+2,FALSE)","v":964},{"$f":"HLOOKUP(BD$7,$J$67:$DO$121,ROWS($A$11:$A38)+2,FALSE)","v":0},{"$f":"HLOOKUP(BE$7,$J$67:$DO$121,ROWS($A$11:$A38)+2,FALSE)","v":497},{"$f":"HLOOKUP(BF$7,$J$67:$DO$121,ROWS($A$11:$A38)+2,FALSE)","v":3250},{"$f":"HLOOKUP(BG$7,$J$67:$DO$121,ROWS($A$11:$A38)+2,FALSE)","v":0},{"$f":"HLOOKUP(BH$7,$J$67:$DO$121,ROWS($A$11:$A38)+2,FALSE)","v":357},{"$f":"HLOOKUP(BI$7,$J$67:$DO$121,ROWS($A$11:$A38)+2,FALSE)","v":1689},{"$f":"HLOOKUP(BJ$7,$J$67:$DO$121,ROWS($A$11:$A38)+2,FALSE)","v":11},null,null,null,null,{"$f":"HLOOKUP(BO$7+0.5,$J$67:$DO$121,ROWS($A$11:$A38)+2,FALSE)","v":3807},{"$f":"HLOOKUP(BP$7+0.5,$J$67:$DO$121,ROWS($A$11:$A38)+2,FALSE)","v":332},{"$f":"HLOOKUP(BQ$7+0.5,$J$67:$DO$121,ROWS($A$11:$A38)+2,FALSE)","v":561},{"$f":"HLOOKUP(BR$7+0.5,$J$67:$DO$121,ROWS($A$11:$A38)+2,FALSE)","v":1125},{"$f":"HLOOKUP(BS$7+0.5,$J$67:$DO$121,ROWS($A$11:$A38)+2,FALSE)","v":487},{"$f":"HLOOKUP(BT$7+0.5,$J$67:$DO$121,ROWS($A$11:$A38)+2,FALSE)","v":1903},{"$f":"HLOOKUP(BU$7+0.5,$J$67:$DO$121,ROWS($A$11:$A38)+2,FALSE)","v":870},{"$f":"HLOOKUP(BV$7+0.5,$J$67:$DO$121,ROWS($A$11:$A38)+2,FALSE)","v":148},{"$f":"HLOOKUP(BW$7+0.5,$J$67:$DO$121,ROWS($A$11:$A38)+2,FALSE)","v":120},{"$f":"HLOOKUP(BX$7+0.5,$J$67:$DO$121,ROWS($A$11:$A38)+2,FALSE)","v":237},{"$f":"HLOOKUP(BY$7+0.5,$J$67:$DO$121,ROWS($A$11:$A38)+2,FALSE)","v":1173},{"$f":"HLOOKUP(BZ$7+0.5,$J$67:$DO$121,ROWS($A$11:$A38)+2,FALSE)","v":87},{"$f":"HLOOKUP(CA$7+0.5,$J$67:$DO$121,ROWS($A$11:$A38)+2,FALSE)","v":237},{"$f":"HLOOKUP(CB$7+0.5,$J$67:$DO$121,ROWS($A$11:$A38)+2,FALSE)","v":859},{"$f":"HLOOKUP(CC$7+0.5,$J$67:$DO$121,ROWS($A$11:$A38)+2,FALSE)","v":789},{"$f":"HLOOKUP(CD$7+0.5,$J$67:$DO$121,ROWS($A$11:$A38)+2,FALSE)","v":233},{"$f":"HLOOKUP(CE$7+0.5,$J$67:$DO$121,ROWS($A$11:$A38)+2,FALSE)","v":198},{"$f":"HLOOKUP(CF$7+0.5,$J$67:$DO$121,ROWS($A$11:$A38)+2,FALSE)","v":93},{"$f":"HLOOKUP(CG$7+0.5,$J$67:$DO$121,ROWS($A$11:$A38)+2,FALSE)","v":490},{"$f":"HLOOKUP(CH$7+0.5,$J$67:$DO$121,ROWS($A$11:$A38)+2,FALSE)","v":118},{"$f":"HLOOKUP(CI$7+0.5,$J$67:$DO$121,ROWS($A$11:$A38)+2,FALSE)","v":102},{"$f":"HLOOKUP(CJ$7+0.5,$J$67:$DO$121,ROWS($A$11:$A38)+2,FALSE)","v":86},{"$f":"HLOOKUP(CK$7+0.5,$J$67:$DO$121,ROWS($A$11:$A38)+2,FALSE)","v":97},{"$f":"HLOOKUP(CL$7+0.5,$J$67:$DO$121,ROWS($A$11:$A38)+2,FALSE)","v":534},{"$f":"HLOOKUP(CM$7+0.5,$J$67:$DO$121,ROWS($A$11:$A38)+2,FALSE)","v":603},{"$f":"HLOOKUP(CN$7+0.5,$J$67:$DO$121,ROWS($A$11:$A38)+2,FALSE)","v":356},{"$f":"HLOOKUP(CO$7+0.5,$J$67:$DO$121,ROWS($A$11:$A38)+2,FALSE)","v":481},{"$f":"HLOOKUP(CP$7+0.5,$J$67:$DO$121,ROWS($A$11:$A38)+2,FALSE)","v":"N/A"},{"$f":"HLOOKUP(CQ$7+0.5,$J$67:$DO$121,ROWS($A$11:$A38)+2,FALSE)","v":424},{"$f":"HLOOKUP(CR$7+0.5,$J$67:$DO$121,ROWS($A$11:$A38)+2,FALSE)","v":386},{"$f":"HLOOKUP(CS$7+0.5,$J$67:$DO$121,ROWS($A$11:$A38)+2,FALSE)","v":237},{"$f":"HLOOKUP(CT$7+0.5,$J$67:$DO$121,ROWS($A$11:$A38)+2,FALSE)","v":237},{"$f":"HLOOKUP(CU$7+0.5,$J$67:$DO$121,ROWS($A$11:$A38)+2,FALSE)","v":688},{"$f":"HLOOKUP(CV$7+0.5,$J$67:$DO$121,ROWS($A$11:$A38)+2,FALSE)","v":282},{"$f":"HLOOKUP(CW$7+0.5,$J$67:$DO$121,ROWS($A$11:$A38)+2,FALSE)","v":1127},{"$f":"HLOOKUP(CX$7+0.5,$J$67:$DO$121,ROWS($A$11:$A38)+2,FALSE)","v":1012},{"$f":"HLOOKUP(CY$7+0.5,$J$67:$DO$121,ROWS($A$11:$A38)+2,FALSE)","v":118},{"$f":"HLOOKUP(CZ$7+0.5,$J$67:$DO$121,ROWS($A$11:$A38)+2,FALSE)","v":174},{"$f":"HLOOKUP(DA$7+0.5,$J$67:$DO$121,ROWS($A$11:$A38)+2,FALSE)","v":861},{"$f":"HLOOKUP(DB$7+0.5,$J$67:$DO$121,ROWS($A$11:$A38)+2,FALSE)","v":319},{"$f":"HLOOKUP(DC$7+0.5,$J$67:$DO$121,ROWS($A$11:$A38)+2,FALSE)","v":237},{"$f":"HLOOKUP(DD$7+0.5,$J$67:$DO$121,ROWS($A$11:$A38)+2,FALSE)","v":150},{"$f":"HLOOKUP(DE$7+0.5,$J$67:$DO$121,ROWS($A$11:$A38)+2,FALSE)","v":258},{"$f":"HLOOKUP(DF$7+0.5,$J$67:$DO$121,ROWS($A$11:$A38)+2,FALSE)","v":193},{"$f":"HLOOKUP(DG$7+0.5,$J$67:$DO$121,ROWS($A$11:$A38)+2,FALSE)","v":1013},{"$f":"HLOOKUP(DH$7+0.5,$J$67:$DO$121,ROWS($A$11:$A38)+2,FALSE)","v":618},{"$f":"HLOOKUP(DI$7+0.5,$J$67:$DO$121,ROWS($A$11:$A38)+2,FALSE)","v":237},{"$f":"HLOOKUP(DJ$7+0.5,$J$67:$DO$121,ROWS($A$11:$A38)+2,FALSE)","v":401},{"$f":"HLOOKUP(DK$7+0.5,$J$67:$DO$121,ROWS($A$11:$A38)+2,FALSE)","v":1281},{"$f":"HLOOKUP(DL$7+0.5,$J$67:$DO$121,ROWS($A$11:$A38)+2,FALSE)","v":237},{"$f":"HLOOKUP(DM$7+0.5,$J$67:$DO$121,ROWS($A$11:$A38)+2,FALSE)","v":267},{"$f":"HLOOKUP(DN$7+0.5,$J$67:$DO$121,ROWS($A$11:$A38)+2,FALSE)","v":672},{"$f":"HLOOKUP(DO$7+0.5,$J$67:$DO$121,ROWS($A$11:$A38)+2,FALSE)","v":19}]
[null,"Nebraska",1802697,2153,1497138,11336,247005,9960,7.6061483304215236E-3,{"$f":"HLOOKUP(J$7,$J$67:$DO$121,ROWS($A$11:$A39)+2,FALSE)","v":51290},{"$f":"HLOOKUP(K$7,$J$67:$DO$121,ROWS($A$11:$A39)+2,FALSE)","v":232},{"$f":"HLOOKUP(L$7,$J$67:$DO$121,ROWS($A$11:$A39)+2,FALSE)","v":35},{"$f":"HLOOKUP(M$7,$J$67:$DO$121,ROWS($A$11:$A39)+2,FALSE)","v":2322},{"$f":"HLOOKUP(N$7,$J$67:$DO$121,ROWS($A$11:$A39)+2,FALSE)","v":674},{"$f":"HLOOKUP(O$7,$J$67:$DO$121,ROWS($A$11:$A39)+2,FALSE)","v":4430},{"$f":"HLOOKUP(P$7,$J$67:$DO$121,ROWS($A$11:$A39)+2,FALSE)","v":4182},{"$f":"HLOOKUP(Q$7,$J$67:$DO$121,ROWS($A$11:$A39)+2,FALSE)","v":361},{"$f":"HLOOKUP(R$7,$J$67:$DO$121,ROWS($A$11:$A39)+2,FALSE)","v":177},{"$f":"HLOOKUP(S$7,$J$67:$DO$121,ROWS($A$11:$A39)+2,FALSE)","v":0},{"$f":"HLOOKUP(T$7,$J$67:$DO$121,ROWS($A$11:$A39)+2,FALSE)","v":1775},{"$f":"HLOOKUP(U$7,$J$67:$DO$121,ROWS($A$11:$A39)+2,FALSE)","v":1202},{"$f":"HLOOKUP(V$7,$J$67:$DO$121,ROWS($A$11:$A39)+2,FALSE)","v":257},{"$f":"HLOOKUP(W$7,$J$67:$DO$121,ROWS($A$11:$A39)+2,FALSE)","v":127},{"$f":"HLOOKUP(X$7,$J$67:$DO$121,ROWS($A$11:$A39)+2,FALSE)","v":1820},{"$f":"HLOOKUP(Y$7,$J$67:$DO$121,ROWS($A$11:$A39)+2,FALSE)","v":639},{"$f":"HLOOKUP(Z$7,$J$67:$DO$121,ROWS($A$11:$A39)+2,FALSE)","v":5536},{"$f":"HLOOKUP(AA$7,$J$67:$DO$121,ROWS($A$11:$A39)+2,FALSE)","v":2484},{"$f":"HLOOKUP(AB$7,$J$67:$DO$121,ROWS($A$11:$A39)+2,FALSE)","v":153},{"$f":"HLOOKUP(AC$7,$J$67:$DO$121,ROWS($A$11:$A39)+2,FALSE)","v":89},{"$f":"HLOOKUP(AD$7,$J$67:$DO$121,ROWS($A$11:$A39)+2,FALSE)","v":0},{"$f":"HLOOKUP(AE$7,$J$67:$DO$121,ROWS($A$11:$A39)+2,FALSE)","v":77},{"$f":"HLOOKUP(AF$7,$J$67:$DO$121,ROWS($A$11:$A39)+2,FALSE)","v":100},{"$f":"HLOOKUP(AG$7,$J$67:$DO$121,ROWS($A$11:$A39)+2,FALSE)","v":726},{"$f":"HLOOKUP(AH$7,$J$67:$DO$121,ROWS($A$11:$A39)+2,FALSE)","v":2254},{"$f":"HLOOKUP(AI$7,$J$67:$DO$121,ROWS($A$11:$A39)+2,FALSE)","v":823},{"$f":"HLOOKUP(AJ$7,$J$67:$DO$121,ROWS($A$11:$A39)+2,FALSE)","v":2723},{"$f":"HLOOKUP(AK$7,$J$67:$DO$121,ROWS($A$11:$A39)+2,FALSE)","v":112},{"$f":"HLOOKUP(AL$7,$J$67:$DO$121,ROWS($A$11:$A39)+2,FALSE)","v":"N/A"},{"$f":"HLOOKUP(AM$7,$J$67:$DO$121,ROWS($A$11:$A39)+2,FALSE)","v":232},{"$f":"HLOOKUP(AN$7,$J$67:$DO$121,ROWS($A$11:$A39)+2,FALSE)","v":0},{"$f":"HLOOKUP(AO$7,$J$67:$DO$121,ROWS($A$11:$A39)+2,FALSE)","v":143},{"$f":"HLOOKUP(AP$7,$J$67:$DO$121,ROWS($A$11:$A39)+2,FALSE)","v":831},{"$f":"HLOOKUP(AQ$7,$J$67:$DO$121,ROWS($A$11:$A39)+2,FALSE)","v":111},{"$f":"HLOOKUP(AR$7,$J$67:$DO$121,ROWS($A$11:$A39)+2,FALSE)","v":442},{"$f":"HLOOKUP(AS$7,$J$67:$DO$121,ROWS($A$11:$A39)+2,FALSE)","v":777},{"$f":"HLOOKUP(AT$7,$J$67:$DO$121,ROWS($A$11:$A39)+2,FALSE)","v":1232},{"$f":"HLOOKUP(AU$7,$J$67:$DO$121,ROWS($A$11:$A39)+2,FALSE)","v":702},{"$f":"HLOOKUP(AV$7,$J$67:$DO$121,ROWS($A$11:$A39)+2,FALSE)","v":506},{"$f":"HLOOKUP(AW$7,$J$67:$DO$121,ROWS($A$11:$A39)+2,FALSE)","v":345},{"$f":"HLOOKUP(AX$7,$J$67:$DO$121,ROWS($A$11:$A39)+2,FALSE)","v":0},{"$f":"HLOOKUP(AY$7,$J$67:$DO$121,ROWS($A$11:$A39)+2,FALSE)","v":65},{"$f":"HLOOKUP(AZ$7,$J$67:$DO$121,ROWS($A$11:$A39)+2,FALSE)","v":2936},{"$f":"HLOOKUP(BA$7,$J$67:$DO$121,ROWS($A$11:$A39)+2,FALSE)","v":77},{"$f":"HLOOKUP(BB$7,$J$67:$DO$121,ROWS($A$11:$A39)+2,FALSE)","v":4445},{"$f":"HLOOKUP(BC$7,$J$67:$DO$121,ROWS($A$11:$A39)+2,FALSE)","v":537},{"$f":"HLOOKUP(BD$7,$J$67:$DO$121,ROWS($A$11:$A39)+2,FALSE)","v":0},{"$f":"HLOOKUP(BE$7,$J$67:$DO$121,ROWS($A$11:$A39)+2,FALSE)","v":772},{"$f":"HLOOKUP(BF$7,$J$67:$DO$121,ROWS($A$11:$A39)+2,FALSE)","v":1230},{"$f":"HLOOKUP(BG$7,$J$67:$DO$121,ROWS($A$11:$A39)+2,FALSE)","v":73},{"$f":"HLOOKUP(BH$7,$J$67:$DO$121,ROWS($A$11:$A39)+2,FALSE)","v":1046},{"$f":"HLOOKUP(BI$7,$J$67:$DO$121,ROWS($A$11:$A39)+2,FALSE)","v":1478},{"$f":"HLOOKUP(BJ$7,$J$67:$DO$121,ROWS($A$11:$A39)+2,FALSE)","v":0},null,null,null,null,{"$f":"HLOOKUP(BO$7+0.5,$J$67:$DO$121,ROWS($A$11:$A39)+2,FALSE)","v":4521},{"$f":"HLOOKUP(BP$7+0.5,$J$67:$DO$121,ROWS($A$11:$A39)+2,FALSE)","v":262},{"$f":"HLOOKUP(BQ$7+0.5,$J$67:$DO$121,ROWS($A$11:$A39)+2,FALSE)","v":46},{"$f":"HLOOKUP(BR$7+0.5,$J$67:$DO$121,ROWS($A$11:$A39)+2,FALSE)","v":1501},{"$f":"HLOOKUP(BS$7+0.5,$J$67:$DO$121,ROWS($A$11:$A39)+2,FALSE)","v":587},{"$f":"HLOOKUP(BT$7+0.5,$J$67:$DO$121,ROWS($A$11:$A39)+2,FALSE)","v":1419},{"$f":"HLOOKUP(BU$7+0.5,$J$67:$DO$121,ROWS($A$11:$A39)+2,FALSE)","v":1393},{"$f":"HLOOKUP(BV$7+0.5,$J$67:$DO$121,ROWS($A$11:$A39)+2,FALSE)","v":562},{"$f":"HLOOKUP(BW$7+0.5,$J$67:$DO$121,ROWS($A$11:$A39)+2,FALSE)","v":235},{"$f":"HLOOKUP(BX$7+0.5,$J$67:$DO$121,ROWS($A$11:$A39)+2,FALSE)","v":228},{"$f":"HLOOKUP(BY$7+0.5,$J$67:$DO$121,ROWS($A$11:$A39)+2,FALSE)","v":992},{"$f":"HLOOKUP(BZ$7+0.5,$J$67:$DO$121,ROWS($A$11:$A39)+2,FALSE)","v":870},{"$f":"HLOOKUP(CA$7+0.5,$J$67:$DO$121,ROWS($A$11:$A39)+2,FALSE)","v":213},{"$f":"HLOOKUP(CB$7+0.5,$J$67:$DO$121,ROWS($A$11:$A39)+2,FALSE)","v":135},{"$f":"HLOOKUP(CC$7+0.5,$J$67:$DO$121,ROWS($A$11:$A39)+2,FALSE)","v":1218},{"$f":"HLOOKUP(CD$7+0.5,$J$67:$DO$121,ROWS($A$11:$A39)+2,FALSE)","v":453},{"$f":"HLOOKUP(CE$7+0.5,$J$67:$DO$121,ROWS($A$11:$A39)+2,FALSE)","v":1473},{"$f":"HLOOKUP(CF$7+0.5,$J$67:$DO$121,ROWS($A$11:$A39)+2,FALSE)","v":869},{"$f":"HLOOKUP(CG$7+0.5,$J$67:$DO$121,ROWS($A$11:$A39)+2,FALSE)","v":166},{"$f":"HLOOKUP(CH$7+0.5,$J$67:$DO$121,ROWS($A$11:$A39)+2,FALSE)","v":166},{"$f":"HLOOKUP(CI$7+0.5,$J$67:$DO$121,ROWS($A$11:$A39)+2,FALSE)","v":228},{"$f":"HLOOKUP(CJ$7+0.5,$J$67:$DO$121,ROWS($A$11:$A39)+2,FALSE)","v":100},{"$f":"HLOOKUP(CK$7+0.5,$J$67:$DO$121,ROWS($A$11:$A39)+2,FALSE)","v":167},{"$f":"HLOOKUP(CL$7+0.5,$J$67:$DO$121,ROWS($A$11:$A39)+2,FALSE)","v":440},{"$f":"HLOOKUP(CM$7+0.5,$J$67:$DO$121,ROWS($A$11:$A39)+2,FALSE)","v":1114},{"$f":"HLOOKUP(CN$7+0.5,$J$67:$DO$121,ROWS($A$11:$A39)+2,FALSE)","v":865},{"$f":"HLOOKUP(CO$7+0.5,$J$67:$DO$121,ROWS($A$11:$A39)+2,FALSE)","v":1319},{"$f":"HLOOKUP(CP$7+0.5,$J$67:$DO$121,ROWS($A$11:$A39)+2,FALSE)","v":160},{"$f":"HLOOKUP(CQ$7+0.5,$J$67:$DO$121,ROWS($A$11:$A39)+2,FALSE)","v":"N/A"},{"$f":"HLOOKUP(CR$7+0.5,$J$67:$DO$121,ROWS($A$11:$A39)+2,FALSE)","v":180},{"$f":"HLOOKUP(CS$7+0.5,$J$67:$DO$121,ROWS($A$11:$A39)+2,FALSE)","v":228},{"$f":"HLOOKUP(CT$7+0.5,$J$67:$DO$121,ROWS($A$11:$A39)+2,FALSE)","v":171},{"$f":"HLOOKUP(CU$7+0.5,$J$67:$DO$121,ROWS($A$11:$A39)+2,FALSE)","v":805},{"$f":"HLOOKUP(CV$7+0.5,$J$67:$DO$121,ROWS($A$11:$A39)+2,FALSE)","v":115},{"$f":"HLOOKUP(CW$7+0.5,$J$67:$DO$121,ROWS($A$11:$A39)+2,FALSE)","v":284},{"$f":"HLOOKUP(CX$7+0.5,$J$67:$DO$121,ROWS($A$11:$A39)+2,FALSE)","v":978},{"$f":"HLOOKUP(CY$7+0.5,$J$67:$DO$121,ROWS($A$11:$A39)+2,FALSE)","v":966},{"$f":"HLOOKUP(CZ$7+0.5,$J$67:$DO$121,ROWS($A$11:$A39)+2,FALSE)","v":393},{"$f":"HLOOKUP(DA$7+0.5,$J$67:$DO$121,ROWS($A$11:$A39)+2,FALSE)","v":385},{"$f":"HLOOKUP(DB$7+0.5,$J$67:$DO$121,ROWS($A$11:$A39)+2,FALSE)","v":347},{"$f":"HLOOKUP(DC$7+0.5,$J$67:$DO$121,ROWS($A$11:$A39)+2,FALSE)","v":228},{"$f":"HLOOKUP(DD$7+0.5,$J$67:$DO$121,ROWS($A$11:$A39)+2,FALSE)","v":105},{"$f":"HLOOKUP(DE$7+0.5,$J$67:$DO$121,ROWS($A$11:$A39)+2,FALSE)","v":1369},{"$f":"HLOOKUP(DF$7+0.5,$J$67:$DO$121,ROWS($A$11:$A39)+2,FALSE)","v":129},{"$f":"HLOOKUP(DG$7+0.5,$J$67:$DO$121,ROWS($A$11:$A39)+2,FALSE)","v":1562},{"$f":"HLOOKUP(DH$7+0.5,$J$67:$DO$121,ROWS($A$11:$A39)+2,FALSE)","v":495},{"$f":"HLOOKUP(DI$7+0.5,$J$67:$DO$121,ROWS($A$11:$A39)+2,FALSE)","v":228},{"$f":"HLOOKUP(DJ$7+0.5,$J$67:$DO$121,ROWS($A$11:$A39)+2,FALSE)","v":604},{"$f":"HLOOKUP(DK$7+0.5,$J$67:$DO$121,ROWS($A$11:$A39)+2,FALSE)","v":793},{"$f":"HLOOKUP(DL$7+0.5,$J$67:$DO$121,ROWS($A$11:$A39)+2,FALSE)","v":89},{"$f":"HLOOKUP(DM$7+0.5,$J$67:$DO$121,ROWS($A$11:$A39)+2,FALSE)","v":585},{"$f":"HLOOKUP(DN$7+0.5,$J$67:$DO$121,ROWS($A$11:$A39)+2,FALSE)","v":545},{"$f":"HLOOKUP(DO$7+0.5,$J$67:$DO$121,ROWS($A$11:$A39)+2,FALSE)","v":228}]
[null,"Nevada",2667364,3181,2030410,22983,517261,21311,1.5226681460766051E-2,{"$f":"HLOOKUP(J$7,$J$67:$DO$121,ROWS($A$11:$A40)+2,FALSE)","v":102677},{"$f":"HLOOKUP(K$7,$J$67:$DO$121,ROWS($A$11:$A40)+2,FALSE)","v":150},{"$f":"HLOOKUP(L$7,$J$67:$DO$121,ROWS($A$11:$A40)+2,FALSE)","v":511},{"$f":"HLOOKUP(M$7,$J$67:$DO$121,ROWS($A$11:$A40)+2,FALSE)","v":7818},{"$f":"HLOOKUP(N$7,$J$67:$DO$121,ROWS($A$11:$A40)+2,FALSE)","v":530},{"$f":"HLOOKUP(O$7,$J$67:$DO$121,ROWS($A$11:$A40)+2,FALSE)","v":35472},{"$f":"HLOOKUP(P$7,$J$67:$DO$121,ROWS($A$11:$A40)+2,FALSE)","v":2935},{"$f":"HLOOKUP(Q$7,$J$67:$DO$121,ROWS($A$11:$A40)+2,FALSE)","v":648},{"$f":"HLOOKUP(R$7,$J$67:$DO$121,ROWS($A$11:$A40)+2,FALSE)","v":0},{"$f":"HLOOKUP(S$7,$J$67:$DO$121,ROWS($A$11:$A40)+2,FALSE)","v":0},{"$f":"HLOOKUP(T$7,$J$67:$DO$121,ROWS($A$11:$A40)+2,FALSE)","v":3579},{"$f":"HLOOKUP(U$7,$J$67:$DO$121,ROWS($A$11:$A40)+2,FALSE)","v":1187},{"$f":"HLOOKUP(V$7,$J$67:$DO$121,ROWS($A$11:$A40)+2,FALSE)","v":4363},{"$f":"HLOOKUP(W$7,$J$67:$DO$121,ROWS($A$11:$A40)+2,FALSE)","v":1686},{"$f":"HLOOKUP(X$7,$J$67:$DO$121,ROWS($A$11:$A40)+2,FALSE)","v":1711},{"$f":"HLOOKUP(Y$7,$J$67:$DO$121,ROWS($A$11:$A40)+2,FALSE)","v":739},{"$f":"HLOOKUP(Z$7,$J$67:$DO$121,ROWS($A$11:$A40)+2,FALSE)","v":543},{"$f":"HLOOKUP(AA$7,$J$67:$DO$121,ROWS($A$11:$A40)+2,FALSE)","v":453},{"$f":"HLOOKUP(AB$7,$J$67:$DO$121,ROWS($A$11:$A40)+2,FALSE)","v":569},{"$f":"HLOOKUP(AC$7,$J$67:$DO$121,ROWS($A$11:$A40)+2,FALSE)","v":733},{"$f":"HLOOKUP(AD$7,$J$67:$DO$121,ROWS($A$11:$A40)+2,FALSE)","v":0},{"$f":"HLOOKUP(AE$7,$J$67:$DO$121,ROWS($A$11:$A40)+2,FALSE)","v":485},{"$f":"HLOOKUP(AF$7,$J$67:$DO$121,ROWS($A$11:$A40)+2,FALSE)","v":1275},{"$f":"HLOOKUP(AG$7,$J$67:$DO$121,ROWS($A$11:$A40)+2,FALSE)","v":2202},{"$f":"HLOOKUP(AH$7,$J$67:$DO$121,ROWS($A$11:$A40)+2,FALSE)","v":805},{"$f":"HLOOKUP(AI$7,$J$67:$DO$121,ROWS($A$11:$A40)+2,FALSE)","v":946},{"$f":"HLOOKUP(AJ$7,$J$67:$DO$121,ROWS($A$11:$A40)+2,FALSE)","v":1747},{"$f":"HLOOKUP(AK$7,$J$67:$DO$121,ROWS($A$11:$A40)+2,FALSE)","v":770},{"$f":"HLOOKUP(AL$7,$J$67:$DO$121,ROWS($A$11:$A40)+2,FALSE)","v":1129},{"$f":"HLOOKUP(AM$7,$J$67:$DO$121,ROWS($A$11:$A40)+2,FALSE)","v":"N/A"},{"$f":"HLOOKUP(AN$7,$J$67:$DO$121,ROWS($A$11:$A40)+2,FALSE)","v":59},{"$f":"HLOOKUP(AO$7,$J$67:$DO$121,ROWS($A$11:$A40)+2,FALSE)","v":1528},{"$f":"HLOOKUP(AP$7,$J$67:$DO$121,ROWS($A$11:$A40)+2,FALSE)","v":1220},{"$f":"HLOOKUP(AQ$7,$J$67:$DO$121,ROWS($A$11:$A40)+2,FALSE)","v":1204},{"$f":"HLOOKUP(AR$7,$J$67:$DO$121,ROWS($A$11:$A40)+2,FALSE)","v":957},{"$f":"HLOOKUP(AS$7,$J$67:$DO$121,ROWS($A$11:$A40)+2,FALSE)","v":37},{"$f":"HLOOKUP(AT$7,$J$67:$DO$121,ROWS($A$11:$A40)+2,FALSE)","v":1554},{"$f":"HLOOKUP(AU$7,$J$67:$DO$121,ROWS($A$11:$A40)+2,FALSE)","v":886},{"$f":"HLOOKUP(AV$7,$J$67:$DO$121,ROWS($A$11:$A40)+2,FALSE)","v":2629},{"$f":"HLOOKUP(AW$7,$J$67:$DO$121,ROWS($A$11:$A40)+2,FALSE)","v":1567},{"$f":"HLOOKUP(AX$7,$J$67:$DO$121,ROWS($A$11:$A40)+2,FALSE)","v":167},{"$f":"HLOOKUP(AY$7,$J$67:$DO$121,ROWS($A$11:$A40)+2,FALSE)","v":312},{"$f":"HLOOKUP(AZ$7,$J$67:$DO$121,ROWS($A$11:$A40)+2,FALSE)","v":1203},{"$f":"HLOOKUP(BA$7,$J$67:$DO$121,ROWS($A$11:$A40)+2,FALSE)","v":706},{"$f":"HLOOKUP(BB$7,$J$67:$DO$121,ROWS($A$11:$A40)+2,FALSE)","v":5224},{"$f":"HLOOKUP(BC$7,$J$67:$DO$121,ROWS($A$11:$A40)+2,FALSE)","v":4500},{"$f":"HLOOKUP(BD$7,$J$67:$DO$121,ROWS($A$11:$A40)+2,FALSE)","v":197},{"$f":"HLOOKUP(BE$7,$J$67:$DO$121,ROWS($A$11:$A40)+2,FALSE)","v":1832},{"$f":"HLOOKUP(BF$7,$J$67:$DO$121,ROWS($A$11:$A40)+2,FALSE)","v":3290},{"$f":"HLOOKUP(BG$7,$J$67:$DO$121,ROWS($A$11:$A40)+2,FALSE)","v":56},{"$f":"HLOOKUP(BH$7,$J$67:$DO$121,ROWS($A$11:$A40)+2,FALSE)","v":419},{"$f":"HLOOKUP(BI$7,$J$67:$DO$121,ROWS($A$11:$A40)+2,FALSE)","v":144},{"$f":"HLOOKUP(BJ$7,$J$67:$DO$121,ROWS($A$11:$A40)+2,FALSE)","v":502},null,null,null,null,{"$f":"HLOOKUP(BO$7+0.5,$J$67:$DO$121,ROWS($A$11:$A40)+2,FALSE)","v":8786},{"$f":"HLOOKUP(BP$7+0.5,$J$67:$DO$121,ROWS($A$11:$A40)+2,FALSE)","v":246},{"$f":"HLOOKUP(BQ$7+0.5,$J$67:$DO$121,ROWS($A$11:$A40)+2,FALSE)","v":659},{"$f":"HLOOKUP(BR$7+0.5,$J$67:$DO$121,ROWS($A$11:$A40)+2,FALSE)","v":2342},{"$f":"HLOOKUP(BS$7+0.5,$J$67:$DO$121,ROWS($A$11:$A40)+2,FALSE)","v":421},{"$f":"HLOOKUP(BT$7+0.5,$J$67:$DO$121,ROWS($A$11:$A40)+2,FALSE)","v":5381},{"$f":"HLOOKUP(BU$7+0.5,$J$67:$DO$121,ROWS($A$11:$A40)+2,FALSE)","v":1969},{"$f":"HLOOKUP(BV$7+0.5,$J$67:$DO$121,ROWS($A$11:$A40)+2,FALSE)","v":868},{"$f":"HLOOKUP(BW$7+0.5,$J$67:$DO$121,ROWS($A$11:$A40)+2,FALSE)","v":309},{"$f":"HLOOKUP(BX$7+0.5,$J$67:$DO$121,ROWS($A$11:$A40)+2,FALSE)","v":309},{"$f":"HLOOKUP(BY$7+0.5,$J$67:$DO$121,ROWS($A$11:$A40)+2,FALSE)","v":2182},{"$f":"HLOOKUP(BZ$7+0.5,$J$67:$DO$121,ROWS($A$11:$A40)+2,FALSE)","v":1333},{"$f":"HLOOKUP(CA$7+0.5,$J$67:$DO$121,ROWS($A$11:$A40)+2,FALSE)","v":2688},{"$f":"HLOOKUP(CB$7+0.5,$J$67:$DO$121,ROWS($A$11:$A40)+2,FALSE)","v":984},{"$f":"HLOOKUP(CC$7+0.5,$J$67:$DO$121,ROWS($A$11:$A40)+2,FALSE)","v":927},{"$f":"HLOOKUP(CD$7+0.5,$J$67:$DO$121,ROWS($A$11:$A40)+2,FALSE)","v":545},{"$f":"HLOOKUP(CE$7+0.5,$J$67:$DO$121,ROWS($A$11:$A40)+2,FALSE)","v":371},{"$f":"HLOOKUP(CF$7+0.5,$J$67:$DO$121,ROWS($A$11:$A40)+2,FALSE)","v":654},{"$f":"HLOOKUP(CG$7+0.5,$J$67:$DO$121,ROWS($A$11:$A40)+2,FALSE)","v":668},{"$f":"HLOOKUP(CH$7+0.5,$J$67:$DO$121,ROWS($A$11:$A40)+2,FALSE)","v":757},{"$f":"HLOOKUP(CI$7+0.5,$J$67:$DO$121,ROWS($A$11:$A40)+2,FALSE)","v":309},{"$f":"HLOOKUP(CJ$7+0.5,$J$67:$DO$121,ROWS($A$11:$A40)+2,FALSE)","v":402},{"$f":"HLOOKUP(CK$7+0.5,$J$67:$DO$121,ROWS($A$11:$A40)+2,FALSE)","v":752},{"$f":"HLOOKUP(CL$7+0.5,$J$67:$DO$121,ROWS($A$11:$A40)+2,FALSE)","v":861},{"$f":"HLOOKUP(CM$7+0.5,$J$67:$DO$121,ROWS($A$11:$A40)+2,FALSE)","v":528},{"$f":"HLOOKUP(CN$7+0.5,$J$67:$DO$121,ROWS($A$11:$A40)+2,FALSE)","v":748},{"$f":"HLOOKUP(CO$7+0.5,$J$67:$DO$121,ROWS($A$11:$A40)+2,FALSE)","v":1218},{"$f":"HLOOKUP(CP$7+0.5,$J$67:$DO$121,ROWS($A$11:$A40)+2,FALSE)","v":742},{"$f":"HLOOKUP(CQ$7+0.5,$J$67:$DO$121,ROWS($A$11:$A40)+2,FALSE)","v":951},{"$f":"HLOOKUP(CR$7+0.5,$J$67:$DO$121,ROWS($A$11:$A40)+2,FALSE)","v":"N/A"},{"$f":"HLOOKUP(CS$7+0.5,$J$67:$DO$121,ROWS($A$11:$A40)+2,FALSE)","v":97},{"$f":"HLOOKUP(CT$7+0.5,$J$67:$DO$121,ROWS($A$11:$A40)+2,FALSE)","v":1205},{"$f":"HLOOKUP(CU$7+0.5,$J$67:$DO$121,ROWS($A$11:$A40)+2,FALSE)","v":715},{"$f":"HLOOKUP(CV$7+0.5,$J$67:$DO$121,ROWS($A$11:$A40)+2,FALSE)","v":753},{"$f":"HLOOKUP(CW$7+0.5,$J$67:$DO$121,ROWS($A$11:$A40)+2,FALSE)","v":531},{"$f":"HLOOKUP(CX$7+0.5,$J$67:$DO$121,ROWS($A$11:$A40)+2,FALSE)","v":64},{"$f":"HLOOKUP(CY$7+0.5,$J$67:$DO$121,ROWS($A$11:$A40)+2,FALSE)","v":852},{"$f":"HLOOKUP(CZ$7+0.5,$J$67:$DO$121,ROWS($A$11:$A40)+2,FALSE)","v":600},{"$f":"HLOOKUP(DA$7+0.5,$J$67:$DO$121,ROWS($A$11:$A40)+2,FALSE)","v":1056},{"$f":"HLOOKUP(DB$7+0.5,$J$67:$DO$121,ROWS($A$11:$A40)+2,FALSE)","v":752},{"$f":"HLOOKUP(DC$7+0.5,$J$67:$DO$121,ROWS($A$11:$A40)+2,FALSE)","v":223},{"$f":"HLOOKUP(DD$7+0.5,$J$67:$DO$121,ROWS($A$11:$A40)+2,FALSE)","v":291},{"$f":"HLOOKUP(DE$7+0.5,$J$67:$DO$121,ROWS($A$11:$A40)+2,FALSE)","v":803},{"$f":"HLOOKUP(DF$7+0.5,$J$67:$DO$121,ROWS($A$11:$A40)+2,FALSE)","v":681},{"$f":"HLOOKUP(DG$7+0.5,$J$67:$DO$121,ROWS($A$11:$A40)+2,FALSE)","v":2241},{"$f":"HLOOKUP(DH$7+0.5,$J$67:$DO$121,ROWS($A$11:$A40)+2,FALSE)","v":2410},{"$f":"HLOOKUP(DI$7+0.5,$J$67:$DO$121,ROWS($A$11:$A40)+2,FALSE)","v":328},{"$f":"HLOOKUP(DJ$7+0.5,$J$67:$DO$121,ROWS($A$11:$A40)+2,FALSE)","v":1429},{"$f":"HLOOKUP(DK$7+0.5,$J$67:$DO$121,ROWS($A$11:$A40)+2,FALSE)","v":1219},{"$f":"HLOOKUP(DL$7+0.5,$J$67:$DO$121,ROWS($A$11:$A40)+2,FALSE)","v":101},{"$f":"HLOOKUP(DM$7+0.5,$J$67:$DO$121,ROWS($A$11:$A40)+2,FALSE)","v":244},{"$f":"HLOOKUP(DN$7+0.5,$J$67:$DO$121,ROWS($A$11:$A40)+2,FALSE)","v":144},{"$f":"HLOOKUP(DO$7+0.5,$J$67:$DO$121,ROWS($A$11:$A40)+2,FALSE)","v":618}]
[null,"New Hampshire",1303865,1720,1118359,9822,141213,9061,5.8380043151433827E-3,{"$f":"HLOOKUP(J$7,$J$67:$DO$121,ROWS($A$11:$A41)+2,FALSE)","v":39367},{"$f":"HLOOKUP(K$7,$J$67:$DO$121,ROWS($A$11:$A41)+2,FALSE)","v":152},{"$f":"HLOOKUP(L$7,$J$67:$DO$121,ROWS($A$11:$A41)+2,FALSE)","v":0},{"$f":"HLOOKUP(M$7,$J$67:$DO$121,ROWS($A$11:$A41)+2,FALSE)","v":544},{"$f":"HLOOKUP(N$7,$J$67:$DO$121,ROWS($A$11:$A41)+2,FALSE)","v":0},{"$f":"HLOOKUP(O$7,$J$67:$DO$121,ROWS($A$11:$A41)+2,FALSE)","v":1692},{"$f":"HLOOKUP(P$7,$J$67:$DO$121,ROWS($A$11:$A41)+2,FALSE)","v":240},{"$f":"HLOOKUP(Q$7,$J$67:$DO$121,ROWS($A$11:$A41)+2,FALSE)","v":3134},{"$f":"HLOOKUP(R$7,$J$67:$DO$121,ROWS($A$11:$A41)+2,FALSE)","v":0},{"$f":"HLOOKUP(S$7,$J$67:$DO$121,ROWS($A$11:$A41)+2,FALSE)","v":298},{"$f":"HLOOKUP(T$7,$J$67:$DO$121,ROWS($A$11:$A41)+2,FALSE)","v":1659},{"$f":"HLOOKUP(U$7,$J$67:$DO$121,ROWS($A$11:$A41)+2,FALSE)","v":0},{"$f":"HLOOKUP(V$7,$J$67:$DO$121,ROWS($A$11:$A41)+2,FALSE)","v":51},{"$f":"HLOOKUP(W$7,$J$67:$DO$121,ROWS($A$11:$A41)+2,FALSE)","v":66},{"$f":"HLOOKUP(X$7,$J$67:$DO$121,ROWS($A$11:$A41)+2,FALSE)","v":850},{"$f":"HLOOKUP(Y$7,$J$67:$DO$121,ROWS($A$11:$A41)+2,FALSE)","v":23},{"$f":"HLOOKUP(Z$7,$J$67:$DO$121,ROWS($A$11:$A41)+2,FALSE)","v":109},{"$f":"HLOOKUP(AA$7,$J$67:$DO$121,ROWS($A$11:$A41)+2,FALSE)","v":57},{"$f":"HLOOKUP(AB$7,$J$67:$DO$121,ROWS($A$11:$A41)+2,FALSE)","v":0},{"$f":"HLOOKUP(AC$7,$J$67:$DO$121,ROWS($A$11:$A41)+2,FALSE)","v":19},{"$f":"HLOOKUP(AD$7,$J$67:$DO$121,ROWS($A$11:$A41)+2,FALSE)","v":3242},{"$f":"HLOOKUP(AE$7,$J$67:$DO$121,ROWS($A$11:$A41)+2,FALSE)","v":49},{"$f":"HLOOKUP(AF$7,$J$67:$DO$121,ROWS($A$11:$A41)+2,FALSE)","v":13752},{"$f":"HLOOKUP(AG$7,$J$67:$DO$121,ROWS($A$11:$A41)+2,FALSE)","v":230},{"$f":"HLOOKUP(AH$7,$J$67:$DO$121,ROWS($A$11:$A41)+2,FALSE)","v":240},{"$f":"HLOOKUP(AI$7,$J$67:$DO$121,ROWS($A$11:$A41)+2,FALSE)","v":25},{"$f":"HLOOKUP(AJ$7,$J$67:$DO$121,ROWS($A$11:$A41)+2,FALSE)","v":295},{"$f":"HLOOKUP(AK$7,$J$67:$DO$121,ROWS($A$11:$A41)+2,FALSE)","v":486},{"$f":"HLOOKUP(AL$7,$J$67:$DO$121,ROWS($A$11:$A41)+2,FALSE)","v":0},{"$f":"HLOOKUP(AM$7,$J$67:$DO$121,ROWS($A$11:$A41)+2,FALSE)","v":95},{"$f":"HLOOKUP(AN$7,$J$67:$DO$121,ROWS($A$11:$A41)+2,FALSE)","v":"N/A"},{"$f":"HLOOKUP(AO$7,$J$67:$DO$121,ROWS($A$11:$A41)+2,FALSE)","v":540},{"$f":"HLOOKUP(AP$7,$J$67:$DO$121,ROWS($A$11:$A41)+2,FALSE)","v":276},{"$f":"HLOOKUP(AQ$7,$J$67:$DO$121,ROWS($A$11:$A41)+2,FALSE)","v":2462},{"$f":"HLOOKUP(AR$7,$J$67:$DO$121,ROWS($A$11:$A41)+2,FALSE)","v":471},{"$f":"HLOOKUP(AS$7,$J$67:$DO$121,ROWS($A$11:$A41)+2,FALSE)","v":0},{"$f":"HLOOKUP(AT$7,$J$67:$DO$121,ROWS($A$11:$A41)+2,FALSE)","v":28},{"$f":"HLOOKUP(AU$7,$J$67:$DO$121,ROWS($A$11:$A41)+2,FALSE)","v":0},{"$f":"HLOOKUP(AV$7,$J$67:$DO$121,ROWS($A$11:$A41)+2,FALSE)","v":508},{"$f":"HLOOKUP(AW$7,$J$67:$DO$121,ROWS($A$11:$A41)+2,FALSE)","v":674},{"$f":"HLOOKUP(AX$7,$J$67:$DO$121,ROWS($A$11:$A41)+2,FALSE)","v":988},{"$f":"HLOOKUP(AY$7,$J$67:$DO$121,ROWS($A$11:$A41)+2,FALSE)","v":51},{"$f":"HLOOKUP(AZ$7,$J$67:$DO$121,ROWS($A$11:$A41)+2,FALSE)","v":0},{"$f":"HLOOKUP(BA$7,$J$67:$DO$121,ROWS($A$11:$A41)+2,FALSE)","v":372},{"$f":"HLOOKUP(BB$7,$J$67:$DO$121,ROWS($A$11:$A41)+2,FALSE)","v":1570},{"$f":"HLOOKUP(BC$7,$J$67:$DO$121,ROWS($A$11:$A41)+2,FALSE)","v":279},{"$f":"HLOOKUP(BD$7,$J$67:$DO$121,ROWS($A$11:$A41)+2,FALSE)","v":2566},{"$f":"HLOOKUP(BE$7,$J$67:$DO$121,ROWS($A$11:$A41)+2,FALSE)","v":745},{"$f":"HLOOKUP(BF$7,$J$67:$DO$121,ROWS($A$11:$A41)+2,FALSE)","v":261},{"$f":"HLOOKUP(BG$7,$J$67:$DO$121,ROWS($A$11:$A41)+2,FALSE)","v":0},{"$f":"HLOOKUP(BH$7,$J$67:$DO$121,ROWS($A$11:$A41)+2,FALSE)","v":268},{"$f":"HLOOKUP(BI$7,$J$67:$DO$121,ROWS($A$11:$A41)+2,FALSE)","v":0},{"$f":"HLOOKUP(BJ$7,$J$67:$DO$121,ROWS($A$11:$A41)+2,FALSE)","v":56},null,null,null,null,{"$f":"HLOOKUP(BO$7+0.5,$J$67:$DO$121,ROWS($A$11:$A41)+2,FALSE)","v":4220},{"$f":"HLOOKUP(BP$7+0.5,$J$67:$DO$121,ROWS($A$11:$A41)+2,FALSE)","v":235},{"$f":"HLOOKUP(BQ$7+0.5,$J$67:$DO$121,ROWS($A$11:$A41)+2,FALSE)","v":257},{"$f":"HLOOKUP(BR$7+0.5,$J$67:$DO$121,ROWS($A$11:$A41)+2,FALSE)","v":383},{"$f":"HLOOKUP(BS$7+0.5,$J$67:$DO$121,ROWS($A$11:$A41)+2,FALSE)","v":257},{"$f":"HLOOKUP(BT$7+0.5,$J$67:$DO$121,ROWS($A$11:$A41)+2,FALSE)","v":969},{"$f":"HLOOKUP(BU$7+0.5,$J$67:$DO$121,ROWS($A$11:$A41)+2,FALSE)","v":250},{"$f":"HLOOKUP(BV$7+0.5,$J$67:$DO$121,ROWS($A$11:$A41)+2,FALSE)","v":1187},{"$f":"HLOOKUP(BW$7+0.5,$J$67:$DO$121,ROWS($A$11:$A41)+2,FALSE)","v":257},{"$f":"HLOOKUP(BX$7+0.5,$J$67:$DO$121,ROWS($A$11:$A41)+2,FALSE)","v":389},{"$f":"HLOOKUP(BY$7+0.5,$J$67:$DO$121,ROWS($A$11:$A41)+2,FALSE)","v":699},{"$f":"HLOOKUP(BZ$7+0.5,$J$67:$DO$121,ROWS($A$11:$A41)+2,FALSE)","v":257},{"$f":"HLOOKUP(CA$7+0.5,$J$67:$DO$121,ROWS($A$11:$A41)+2,FALSE)","v":83},{"$f":"HLOOKUP(CB$7+0.5,$J$67:$DO$121,ROWS($A$11:$A41)+2,FALSE)","v":113},{"$f":"HLOOKUP(CC$7+0.5,$J$67:$DO$121,ROWS($A$11:$A41)+2,FALSE)","v":741},{"$f":"HLOOKUP(CD$7+0.5,$J$67:$DO$121,ROWS($A$11:$A41)+2,FALSE)","v":37},{"$f":"HLOOKUP(CE$7+0.5,$J$67:$DO$121,ROWS($A$11:$A41)+2,FALSE)","v":124},{"$f":"HLOOKUP(CF$7+0.5,$J$67:$DO$121,ROWS($A$11:$A41)+2,FALSE)","v":100},{"$f":"HLOOKUP(CG$7+0.5,$J$67:$DO$121,ROWS($A$11:$A41)+2,FALSE)","v":257},{"$f":"HLOOKUP(CH$7+0.5,$J$67:$DO$121,ROWS($A$11:$A41)+2,FALSE)","v":33},{"$f":"HLOOKUP(CI$7+0.5,$J$67:$DO$121,ROWS($A$11:$A41)+2,FALSE)","v":983},{"$f":"HLOOKUP(CJ$7+0.5,$J$67:$DO$121,ROWS($A$11:$A41)+2,FALSE)","v":81},{"$f":"HLOOKUP(CK$7+0.5,$J$67:$DO$121,ROWS($A$11:$A41)+2,FALSE)","v":2615},{"$f":"HLOOKUP(CL$7+0.5,$J$67:$DO$121,ROWS($A$11:$A41)+2,FALSE)","v":222},{"$f":"HLOOKUP(CM$7+0.5,$J$67:$DO$121,ROWS($A$11:$A41)+2,FALSE)","v":270},{"$f":"HLOOKUP(CN$7+0.5,$J$67:$DO$121,ROWS($A$11:$A41)+2,FALSE)","v":41},{"$f":"HLOOKUP(CO$7+0.5,$J$67:$DO$121,ROWS($A$11:$A41)+2,FALSE)","v":387},{"$f":"HLOOKUP(CP$7+0.5,$J$67:$DO$121,ROWS($A$11:$A41)+2,FALSE)","v":638},{"$f":"HLOOKUP(CQ$7+0.5,$J$67:$DO$121,ROWS($A$11:$A41)+2,FALSE)","v":257},{"$f":"HLOOKUP(CR$7+0.5,$J$67:$DO$121,ROWS($A$11:$A41)+2,FALSE)","v":123},{"$f":"HLOOKUP(CS$7+0.5,$J$67:$DO$121,ROWS($A$11:$A41)+2,FALSE)","v":"N/A"},{"$f":"HLOOKUP(CT$7+0.5,$J$67:$DO$121,ROWS($A$11:$A41)+2,FALSE)","v":365},{"$f":"HLOOKUP(CU$7+0.5,$J$67:$DO$121,ROWS($A$11:$A41)+2,FALSE)","v":394},{"$f":"HLOOKUP(CV$7+0.5,$J$67:$DO$121,ROWS($A$11:$A41)+2,FALSE)","v":997},{"$f":"HLOOKUP(CW$7+0.5,$J$67:$DO$121,ROWS($A$11:$A41)+2,FALSE)","v":439},{"$f":"HLOOKUP(CX$7+0.5,$J$67:$DO$121,ROWS($A$11:$A41)+2,FALSE)","v":257},{"$f":"HLOOKUP(CY$7+0.5,$J$67:$DO$121,ROWS($A$11:$A41)+2,FALSE)","v":35},{"$f":"HLOOKUP(CZ$7+0.5,$J$67:$DO$121,ROWS($A$11:$A41)+2,FALSE)","v":257},{"$f":"HLOOKUP(DA$7+0.5,$J$67:$DO$121,ROWS($A$11:$A41)+2,FALSE)","v":544},{"$f":"HLOOKUP(DB$7+0.5,$J$67:$DO$121,ROWS($A$11:$A41)+2,FALSE)","v":406},{"$f":"HLOOKUP(DC$7+0.5,$J$67:$DO$121,ROWS($A$11:$A41)+2,FALSE)","v":677},{"$f":"HLOOKUP(DD$7+0.5,$J$67:$DO$121,ROWS($A$11:$A41)+2,FALSE)","v":85},{"$f":"HLOOKUP(DE$7+0.5,$J$67:$DO$121,ROWS($A$11:$A41)+2,FALSE)","v":257},{"$f":"HLOOKUP(DF$7+0.5,$J$67:$DO$121,ROWS($A$11:$A41)+2,FALSE)","v":387},{"$f":"HLOOKUP(DG$7+0.5,$J$67:$DO$121,ROWS($A$11:$A41)+2,FALSE)","v":1644},{"$f":"HLOOKUP(DH$7+0.5,$J$67:$DO$121,ROWS($A$11:$A41)+2,FALSE)","v":223},{"$f":"HLOOKUP(DI$7+0.5,$J$67:$DO$121,ROWS($A$11:$A41)+2,FALSE)","v":1011},{"$f":"HLOOKUP(DJ$7+0.5,$J$67:$DO$121,ROWS($A$11:$A41)+2,FALSE)","v":807},{"$f":"HLOOKUP(DK$7+0.5,$J$67:$DO$121,ROWS($A$11:$A41)+2,FALSE)","v":434},{"$f":"HLOOKUP(DL$7+0.5,$J$67:$DO$121,ROWS($A$11:$A41)+2,FALSE)","v":257},{"$f":"HLOOKUP(DM$7+0.5,$J$67:$DO$121,ROWS($A$11:$A41)+2,FALSE)","v":418},{"$f":"HLOOKUP(DN$7+0.5,$J$67:$DO$121,ROWS($A$11:$A41)+2,FALSE)","v":257},{"$f":"HLOOKUP(DO$7+0.5,$J$67:$DO$121,ROWS($A$11:$A41)+2,FALSE)","v":93}]
[null,"New Jersey",8709933,4515,7841470,25935,684482,23318,1.8888428674155956E-2,{"$f":"HLOOKUP(J$7,$J$67:$DO$121,ROWS($A$11:$A42)+2,FALSE)","v":127369},{"$f":"HLOOKUP(K$7,$J$67:$DO$121,ROWS($A$11:$A42)+2,FALSE)","v":616},{"$f":"HLOOKUP(L$7,$J$67:$DO$121,ROWS($A$11:$A42)+2,FALSE)","v":383},{"$f":"HLOOKUP(M$7,$J$67:$DO$121,ROWS($A$11:$A42)+2,FALSE)","v":1625},{"$f":"HLOOKUP(N$7,$J$67:$DO$121,ROWS($A$11:$A42)+2,FALSE)","v":258},{"$f":"HLOOKUP(O$7,$J$67:$DO$121,ROWS($A$11:$A42)+2,FALSE)","v":8777},{"$f":"HLOOKUP(P$7,$J$67:$DO$121,ROWS($A$11:$A42)+2,FALSE)","v":807},{"$f":"HLOOKUP(Q$7,$J$67:$DO$121,ROWS($A$11:$A42)+2,FALSE)","v":2503},{"$f":"HLOOKUP(R$7,$J$67:$DO$121,ROWS($A$11:$A42)+2,FALSE)","v":1543},{"$f":"HLOOKUP(S$7,$J$67:$DO$121,ROWS($A$11:$A42)+2,FALSE)","v":431},{"$f":"HLOOKUP(T$7,$J$67:$DO$121,ROWS($A$11:$A42)+2,FALSE)","v":9841},{"$f":"HLOOKUP(U$7,$J$67:$DO$121,ROWS($A$11:$A42)+2,FALSE)","v":4588},{"$f":"HLOOKUP(V$7,$J$67:$DO$121,ROWS($A$11:$A42)+2,FALSE)","v":385},{"$f":"HLOOKUP(W$7,$J$67:$DO$121,ROWS($A$11:$A42)+2,FALSE)","v":91},{"$f":"HLOOKUP(X$7,$J$67:$DO$121,ROWS($A$11:$A42)+2,FALSE)","v":2656},{"$f":"HLOOKUP(Y$7,$J$67:$DO$121,ROWS($A$11:$A42)+2,FALSE)","v":402},{"$f":"HLOOKUP(Z$7,$J$67:$DO$121,ROWS($A$11:$A42)+2,FALSE)","v":332},{"$f":"HLOOKUP(AA$7,$J$67:$DO$121,ROWS($A$11:$A42)+2,FALSE)","v":442},{"$f":"HLOOKUP(AB$7,$J$67:$DO$121,ROWS($A$11:$A42)+2,FALSE)","v":91},{"$f":"HLOOKUP(AC$7,$J$67:$DO$121,ROWS($A$11:$A42)+2,FALSE)","v":249},{"$f":"HLOOKUP(AD$7,$J$67:$DO$121,ROWS($A$11:$A42)+2,FALSE)","v":95},{"$f":"HLOOKUP(AE$7,$J$67:$DO$121,ROWS($A$11:$A42)+2,FALSE)","v":4231},{"$f":"HLOOKUP(AF$7,$J$67:$DO$121,ROWS($A$11:$A42)+2,FALSE)","v":2626},{"$f":"HLOOKUP(AG$7,$J$67:$DO$121,ROWS($A$11:$A42)+2,FALSE)","v":1070},{"$f":"HLOOKUP(AH$7,$J$67:$DO$121,ROWS($A$11:$A42)+2,FALSE)","v":322},{"$f":"HLOOKUP(AI$7,$J$67:$DO$121,ROWS($A$11:$A42)+2,FALSE)","v":450},{"$f":"HLOOKUP(AJ$7,$J$67:$DO$121,ROWS($A$11:$A42)+2,FALSE)","v":727},{"$f":"HLOOKUP(AK$7,$J$67:$DO$121,ROWS($A$11:$A42)+2,FALSE)","v":122},{"$f":"HLOOKUP(AL$7,$J$67:$DO$121,ROWS($A$11:$A42)+2,FALSE)","v":261},{"$f":"HLOOKUP(AM$7,$J$67:$DO$121,ROWS($A$11:$A42)+2,FALSE)","v":874},{"$f":"HLOOKUP(AN$7,$J$67:$DO$121,ROWS($A$11:$A42)+2,FALSE)","v":705},{"$f":"HLOOKUP(AO$7,$J$67:$DO$121,ROWS($A$11:$A42)+2,FALSE)","v":"N/A"},{"$f":"HLOOKUP(AP$7,$J$67:$DO$121,ROWS($A$11:$A42)+2,FALSE)","v":421},{"$f":"HLOOKUP(AQ$7,$J$67:$DO$121,ROWS($A$11:$A42)+2,FALSE)","v":41374},{"$f":"HLOOKUP(AR$7,$J$67:$DO$121,ROWS($A$11:$A42)+2,FALSE)","v":3052},{"$f":"HLOOKUP(AS$7,$J$67:$DO$121,ROWS($A$11:$A42)+2,FALSE)","v":0},{"$f":"HLOOKUP(AT$7,$J$67:$DO$121,ROWS($A$11:$A42)+2,FALSE)","v":1584},{"$f":"HLOOKUP(AU$7,$J$67:$DO$121,ROWS($A$11:$A42)+2,FALSE)","v":32},{"$f":"HLOOKUP(AV$7,$J$67:$DO$121,ROWS($A$11:$A42)+2,FALSE)","v":613},{"$f":"HLOOKUP(AW$7,$J$67:$DO$121,ROWS($A$11:$A42)+2,FALSE)","v":22225},{"$f":"HLOOKUP(AX$7,$J$67:$DO$121,ROWS($A$11:$A42)+2,FALSE)","v":332},{"$f":"HLOOKUP(AY$7,$J$67:$DO$121,ROWS($A$11:$A42)+2,FALSE)","v":1134},{"$f":"HLOOKUP(AZ$7,$J$67:$DO$121,ROWS($A$11:$A42)+2,FALSE)","v":0},{"$f":"HLOOKUP(BA$7,$J$67:$DO$121,ROWS($A$11:$A42)+2,FALSE)","v":852},{"$f":"HLOOKUP(BB$7,$J$67:$DO$121,ROWS($A$11:$A42)+2,FALSE)","v":3434},{"$f":"HLOOKUP(BC$7,$J$67:$DO$121,ROWS($A$11:$A42)+2,FALSE)","v":178},{"$f":"HLOOKUP(BD$7,$J$67:$DO$121,ROWS($A$11:$A42)+2,FALSE)","v":57},{"$f":"HLOOKUP(BE$7,$J$67:$DO$121,ROWS($A$11:$A42)+2,FALSE)","v":2670},{"$f":"HLOOKUP(BF$7,$J$67:$DO$121,ROWS($A$11:$A42)+2,FALSE)","v":964},{"$f":"HLOOKUP(BG$7,$J$67:$DO$121,ROWS($A$11:$A42)+2,FALSE)","v":358},{"$f":"HLOOKUP(BH$7,$J$67:$DO$121,ROWS($A$11:$A42)+2,FALSE)","v":586},{"$f":"HLOOKUP(BI$7,$J$67:$DO$121,ROWS($A$11:$A42)+2,FALSE)","v":0},{"$f":"HLOOKUP(BJ$7,$J$67:$DO$121,ROWS($A$11:$A42)+2,FALSE)","v":2732},null,null,null,null,{"$f":"HLOOKUP(BO$7+0.5,$J$67:$DO$121,ROWS($A$11:$A42)+2,FALSE)","v":8536},{"$f":"HLOOKUP(BP$7+0.5,$J$67:$DO$121,ROWS($A$11:$A42)+2,FALSE)","v":406},{"$f":"HLOOKUP(BQ$7+0.5,$J$67:$DO$121,ROWS($A$11:$A42)+2,FALSE)","v":407},{"$f":"HLOOKUP(BR$7+0.5,$J$67:$DO$121,ROWS($A$11:$A42)+2,FALSE)","v":847},{"$f":"HLOOKUP(BS$7+0.5,$J$67:$DO$121,ROWS($A$11:$A42)+2,FALSE)","v":346},{"$f":"HLOOKUP(BT$7+0.5,$J$67:$DO$121,ROWS($A$11:$A42)+2,FALSE)","v":2628},{"$f":"HLOOKUP(BU$7+0.5,$J$67:$DO$121,ROWS($A$11:$A42)+2,FALSE)","v":590},{"$f":"HLOOKUP(BV$7+0.5,$J$67:$DO$121,ROWS($A$11:$A42)+2,FALSE)","v":1323},{"$f":"HLOOKUP(BW$7+0.5,$J$67:$DO$121,ROWS($A$11:$A42)+2,FALSE)","v":702},{"$f":"HLOOKUP(BX$7+0.5,$J$67:$DO$121,ROWS($A$11:$A42)+2,FALSE)","v":335},{"$f":"HLOOKUP(BY$7+0.5,$J$67:$DO$121,ROWS($A$11:$A42)+2,FALSE)","v":2289},{"$f":"HLOOKUP(BZ$7+0.5,$J$67:$DO$121,ROWS($A$11:$A42)+2,FALSE)","v":2901},{"$f":"HLOOKUP(CA$7+0.5,$J$67:$DO$121,ROWS($A$11:$A42)+2,FALSE)","v":422},{"$f":"HLOOKUP(CB$7+0.5,$J$67:$DO$121,ROWS($A$11:$A42)+2,FALSE)","v":148},{"$f":"HLOOKUP(CC$7+0.5,$J$67:$DO$121,ROWS($A$11:$A42)+2,FALSE)","v":995},{"$f":"HLOOKUP(CD$7+0.5,$J$67:$DO$121,ROWS($A$11:$A42)+2,FALSE)","v":471},{"$f":"HLOOKUP(CE$7+0.5,$J$67:$DO$121,ROWS($A$11:$A42)+2,FALSE)","v":331},{"$f":"HLOOKUP(CF$7+0.5,$J$67:$DO$121,ROWS($A$11:$A42)+2,FALSE)","v":403},{"$f":"HLOOKUP(CG$7+0.5,$J$67:$DO$121,ROWS($A$11:$A42)+2,FALSE)","v":147},{"$f":"HLOOKUP(CH$7+0.5,$J$67:$DO$121,ROWS($A$11:$A42)+2,FALSE)","v":264},{"$f":"HLOOKUP(CI$7+0.5,$J$67:$DO$121,ROWS($A$11:$A42)+2,FALSE)","v":112},{"$f":"HLOOKUP(CJ$7+0.5,$J$67:$DO$121,ROWS($A$11:$A42)+2,FALSE)","v":2100},{"$f":"HLOOKUP(CK$7+0.5,$J$67:$DO$121,ROWS($A$11:$A42)+2,FALSE)","v":973},{"$f":"HLOOKUP(CL$7+0.5,$J$67:$DO$121,ROWS($A$11:$A42)+2,FALSE)","v":578},{"$f":"HLOOKUP(CM$7+0.5,$J$67:$DO$121,ROWS($A$11:$A42)+2,FALSE)","v":274},{"$f":"HLOOKUP(CN$7+0.5,$J$67:$DO$121,ROWS($A$11:$A42)+2,FALSE)","v":478},{"$f":"HLOOKUP(CO$7+0.5,$J$67:$DO$121,ROWS($A$11:$A42)+2,FALSE)","v":417},{"$f":"HLOOKUP(CP$7+0.5,$J$67:$DO$121,ROWS($A$11:$A42)+2,FALSE)","v":206},{"$f":"HLOOKUP(CQ$7+0.5,$J$67:$DO$121,ROWS($A$11:$A42)+2,FALSE)","v":361},{"$f":"HLOOKUP(CR$7+0.5,$J$67:$DO$121,ROWS($A$11:$A42)+2,FALSE)","v":616},{"$f":"HLOOKUP(CS$7+0.5,$J$67:$DO$121,ROWS($A$11:$A42)+2,FALSE)","v":380},{"$f":"HLOOKUP(CT$7+0.5,$J$67:$DO$121,ROWS($A$11:$A42)+2,FALSE)","v":"N/A"},{"$f":"HLOOKUP(CU$7+0.5,$J$67:$DO$121,ROWS($A$11:$A42)+2,FALSE)","v":281},{"$f":"HLOOKUP(CV$7+0.5,$J$67:$DO$121,ROWS($A$11:$A42)+2,FALSE)","v":5068},{"$f":"HLOOKUP(CW$7+0.5,$J$67:$DO$121,ROWS($A$11:$A42)+2,FALSE)","v":1042},{"$f":"HLOOKUP(CX$7+0.5,$J$67:$DO$121,ROWS($A$11:$A42)+2,FALSE)","v":281},{"$f":"HLOOKUP(CY$7+0.5,$J$67:$DO$121,ROWS($A$11:$A42)+2,FALSE)","v":1069},{"$f":"HLOOKUP(CZ$7+0.5,$J$67:$DO$121,ROWS($A$11:$A42)+2,FALSE)","v":51},{"$f":"HLOOKUP(DA$7+0.5,$J$67:$DO$121,ROWS($A$11:$A42)+2,FALSE)","v":578},{"$f":"HLOOKUP(DB$7+0.5,$J$67:$DO$121,ROWS($A$11:$A42)+2,FALSE)","v":3517},{"$f":"HLOOKUP(DC$7+0.5,$J$67:$DO$121,ROWS($A$11:$A42)+2,FALSE)","v":376},{"$f":"HLOOKUP(DD$7+0.5,$J$67:$DO$121,ROWS($A$11:$A42)+2,FALSE)","v":598},{"$f":"HLOOKUP(DE$7+0.5,$J$67:$DO$121,ROWS($A$11:$A42)+2,FALSE)","v":281},{"$f":"HLOOKUP(DF$7+0.5,$J$67:$DO$121,ROWS($A$11:$A42)+2,FALSE)","v":631},{"$f":"HLOOKUP(DG$7+0.5,$J$67:$DO$121,ROWS($A$11:$A42)+2,FALSE)","v":1520},{"$f":"HLOOKUP(DH$7+0.5,$J$67:$DO$121,ROWS($A$11:$A42)+2,FALSE)","v":205},{"$f":"HLOOKUP(DI$7+0.5,$J$67:$DO$121,ROWS($A$11:$A42)+2,FALSE)","v":98},{"$f":"HLOOKUP(DJ$7+0.5,$J$67:$DO$121,ROWS($A$11:$A42)+2,FALSE)","v":1099},{"$f":"HLOOKUP(DK$7+0.5,$J$67:$DO$121,ROWS($A$11:$A42)+2,FALSE)","v":617},{"$f":"HLOOKUP(DL$7+0.5,$J$67:$DO$121,ROWS($A$11:$A42)+2,FALSE)","v":353},{"$f":"HLOOKUP(DM$7+0.5,$J$67:$DO$121,ROWS($A$11:$A42)+2,FALSE)","v":571},{"$f":"HLOOKUP(DN$7+0.5,$J$67:$DO$121,ROWS($A$11:$A42)+2,FALSE)","v":281},{"$f":"HLOOKUP(DO$7+0.5,$J$67:$DO$121,ROWS($A$11:$A42)+2,FALSE)","v":1263}]
[null,"New Mexico",2039549,2727,1735950,14043,220663,12854,1.0915393797244613E-2,{"$f":"HLOOKUP(J$7,$J$67:$DO$121,ROWS($A$11:$A43)+2,FALSE)","v":73605},{"$f":"HLOOKUP(K$7,$J$67:$DO$121,ROWS($A$11:$A43)+2,FALSE)","v":751},{"$f":"HLOOKUP(L$7,$J$67:$DO$121,ROWS($A$11:$A43)+2,FALSE)","v":969},{"$f":"HLOOKUP(M$7,$J$67:$DO$121,ROWS($A$11:$A43)+2,FALSE)","v":6117},{"$f":"HLOOKUP(N$7,$J$67:$DO$121,ROWS($A$11:$A43)+2,FALSE)","v":77},{"$f":"HLOOKUP(O$7,$J$67:$DO$121,ROWS($A$11:$A43)+2,FALSE)","v":6547},{"$f":"HLOOKUP(P$7,$J$67:$DO$121,ROWS($A$11:$A43)+2,FALSE)","v":2852},{"$f":"HLOOKUP(Q$7,$J$67:$DO$121,ROWS($A$11:$A43)+2,FALSE)","v":25},{"$f":"HLOOKUP(R$7,$J$67:$DO$121,ROWS($A$11:$A43)+2,FALSE)","v":391},{"$f":"HLOOKUP(S$7,$J$67:$DO$121,ROWS($A$11:$A43)+2,FALSE)","v":56},{"$f":"HLOOKUP(T$7,$J$67:$DO$121,ROWS($A$11:$A43)+2,FALSE)","v":3259},{"$f":"HLOOKUP(U$7,$J$67:$DO$121,ROWS($A$11:$A43)+2,FALSE)","v":1977},{"$f":"HLOOKUP(V$7,$J$67:$DO$121,ROWS($A$11:$A43)+2,FALSE)","v":122},{"$f":"HLOOKUP(W$7,$J$67:$DO$121,ROWS($A$11:$A43)+2,FALSE)","v":755},{"$f":"HLOOKUP(X$7,$J$67:$DO$121,ROWS($A$11:$A43)+2,FALSE)","v":526},{"$f":"HLOOKUP(Y$7,$J$67:$DO$121,ROWS($A$11:$A43)+2,FALSE)","v":465},{"$f":"HLOOKUP(Z$7,$J$67:$DO$121,ROWS($A$11:$A43)+2,FALSE)","v":0},{"$f":"HLOOKUP(AA$7,$J$67:$DO$121,ROWS($A$11:$A43)+2,FALSE)","v":751},{"$f":"HLOOKUP(AB$7,$J$67:$DO$121,ROWS($A$11:$A43)+2,FALSE)","v":739},{"$f":"HLOOKUP(AC$7,$J$67:$DO$121,ROWS($A$11:$A43)+2,FALSE)","v":65},{"$f":"HLOOKUP(AD$7,$J$67:$DO$121,ROWS($A$11:$A43)+2,FALSE)","v":94},{"$f":"HLOOKUP(AE$7,$J$67:$DO$121,ROWS($A$11:$A43)+2,FALSE)","v":1968},{"$f":"HLOOKUP(AF$7,$J$67:$DO$121,ROWS($A$11:$A43)+2,FALSE)","v":2076},{"$f":"HLOOKUP(AG$7,$J$67:$DO$121,ROWS($A$11:$A43)+2,FALSE)","v":1460},{"$f":"HLOOKUP(AH$7,$J$67:$DO$121,ROWS($A$11:$A43)+2,FALSE)","v":179},{"$f":"HLOOKUP(AI$7,$J$67:$DO$121,ROWS($A$11:$A43)+2,FALSE)","v":719},{"$f":"HLOOKUP(AJ$7,$J$67:$DO$121,ROWS($A$11:$A43)+2,FALSE)","v":138},{"$f":"HLOOKUP(AK$7,$J$67:$DO$121,ROWS($A$11:$A43)+2,FALSE)","v":1003},{"$f":"HLOOKUP(AL$7,$J$67:$DO$121,ROWS($A$11:$A43)+2,FALSE)","v":530},{"$f":"HLOOKUP(AM$7,$J$67:$DO$121,ROWS($A$11:$A43)+2,FALSE)","v":4192},{"$f":"HLOOKUP(AN$7,$J$67:$DO$121,ROWS($A$11:$A43)+2,FALSE)","v":79},{"$f":"HLOOKUP(AO$7,$J$67:$DO$121,ROWS($A$11:$A43)+2,FALSE)","v":160},{"$f":"HLOOKUP(AP$7,$J$67:$DO$121,ROWS($A$11:$A43)+2,FALSE)","v":"N/A"},{"$f":"HLOOKUP(AQ$7,$J$67:$DO$121,ROWS($A$11:$A43)+2,FALSE)","v":784},{"$f":"HLOOKUP(AR$7,$J$67:$DO$121,ROWS($A$11:$A43)+2,FALSE)","v":1793},{"$f":"HLOOKUP(AS$7,$J$67:$DO$121,ROWS($A$11:$A43)+2,FALSE)","v":79},{"$f":"HLOOKUP(AT$7,$J$67:$DO$121,ROWS($A$11:$A43)+2,FALSE)","v":1712},{"$f":"HLOOKUP(AU$7,$J$67:$DO$121,ROWS($A$11:$A43)+2,FALSE)","v":1182},{"$f":"HLOOKUP(AV$7,$J$67:$DO$121,ROWS($A$11:$A43)+2,FALSE)","v":1659},{"$f":"HLOOKUP(AW$7,$J$67:$DO$121,ROWS($A$11:$A43)+2,FALSE)","v":809},{"$f":"HLOOKUP(AX$7,$J$67:$DO$121,ROWS($A$11:$A43)+2,FALSE)","v":46},{"$f":"HLOOKUP(AY$7,$J$67:$DO$121,ROWS($A$11:$A43)+2,FALSE)","v":152},{"$f":"HLOOKUP(AZ$7,$J$67:$DO$121,ROWS($A$11:$A43)+2,FALSE)","v":204},{"$f":"HLOOKUP(BA$7,$J$67:$DO$121,ROWS($A$11:$A43)+2,FALSE)","v":1269},{"$f":"HLOOKUP(BB$7,$J$67:$DO$121,ROWS($A$11:$A43)+2,FALSE)","v":18511},{"$f":"HLOOKUP(BC$7,$J$67:$DO$121,ROWS($A$11:$A43)+2,FALSE)","v":1601},{"$f":"HLOOKUP(BD$7,$J$67:$DO$121,ROWS($A$11:$A43)+2,FALSE)","v":309},{"$f":"HLOOKUP(BE$7,$J$67:$DO$121,ROWS($A$11:$A43)+2,FALSE)","v":290},{"$f":"HLOOKUP(BF$7,$J$67:$DO$121,ROWS($A$11:$A43)+2,FALSE)","v":3004},{"$f":"HLOOKUP(BG$7,$J$67:$DO$121,ROWS($A$11:$A43)+2,FALSE)","v":0},{"$f":"HLOOKUP(BH$7,$J$67:$DO$121,ROWS($A$11:$A43)+2,FALSE)","v":407},{"$f":"HLOOKUP(BI$7,$J$67:$DO$121,ROWS($A$11:$A43)+2,FALSE)","v":752},{"$f":"HLOOKUP(BJ$7,$J$67:$DO$121,ROWS($A$11:$A43)+2,FALSE)","v":632},null,null,null,null,{"$f":"HLOOKUP(BO$7+0.5,$J$67:$DO$121,ROWS($A$11:$A43)+2,FALSE)","v":7703},{"$f":"HLOOKUP(BP$7+0.5,$J$67:$DO$121,ROWS($A$11:$A43)+2,FALSE)","v":550},{"$f":"HLOOKUP(BQ$7+0.5,$J$67:$DO$121,ROWS($A$11:$A43)+2,FALSE)","v":801},{"$f":"HLOOKUP(BR$7+0.5,$J$67:$DO$121,ROWS($A$11:$A43)+2,FALSE)","v":2902},{"$f":"HLOOKUP(BS$7+0.5,$J$67:$DO$121,ROWS($A$11:$A43)+2,FALSE)","v":109},{"$f":"HLOOKUP(BT$7+0.5,$J$67:$DO$121,ROWS($A$11:$A43)+2,FALSE)","v":2252},{"$f":"HLOOKUP(BU$7+0.5,$J$67:$DO$121,ROWS($A$11:$A43)+2,FALSE)","v":1095},{"$f":"HLOOKUP(BV$7+0.5,$J$67:$DO$121,ROWS($A$11:$A43)+2,FALSE)","v":41},{"$f":"HLOOKUP(BW$7+0.5,$J$67:$DO$121,ROWS($A$11:$A43)+2,FALSE)","v":444},{"$f":"HLOOKUP(BX$7+0.5,$J$67:$DO$121,ROWS($A$11:$A43)+2,FALSE)","v":95},{"$f":"HLOOKUP(BY$7+0.5,$J$67:$DO$121,ROWS($A$11:$A43)+2,FALSE)","v":1428},{"$f":"HLOOKUP(BZ$7+0.5,$J$67:$DO$121,ROWS($A$11:$A43)+2,FALSE)","v":1097},{"$f":"HLOOKUP(CA$7+0.5,$J$67:$DO$121,ROWS($A$11:$A43)+2,FALSE)","v":185},{"$f":"HLOOKUP(CB$7+0.5,$J$67:$DO$121,ROWS($A$11:$A43)+2,FALSE)","v":565},{"$f":"HLOOKUP(CC$7+0.5,$J$67:$DO$121,ROWS($A$11:$A43)+2,FALSE)","v":362},{"$f":"HLOOKUP(CD$7+0.5,$J$67:$DO$121,ROWS($A$11:$A43)+2,FALSE)","v":458},{"$f":"HLOOKUP(CE$7+0.5,$J$67:$DO$121,ROWS($A$11:$A43)+2,FALSE)","v":285},{"$f":"HLOOKUP(CF$7+0.5,$J$67:$DO$121,ROWS($A$11:$A43)+2,FALSE)","v":581},{"$f":"HLOOKUP(CG$7+0.5,$J$67:$DO$121,ROWS($A$11:$A43)+2,FALSE)","v":1131},{"$f":"HLOOKUP(CH$7+0.5,$J$67:$DO$121,ROWS($A$11:$A43)+2,FALSE)","v":87},{"$f":"HLOOKUP(CI$7+0.5,$J$67:$DO$121,ROWS($A$11:$A43)+2,FALSE)","v":155},{"$f":"HLOOKUP(CJ$7+0.5,$J$67:$DO$121,ROWS($A$11:$A43)+2,FALSE)","v":1112},{"$f":"HLOOKUP(CK$7+0.5,$J$67:$DO$121,ROWS($A$11:$A43)+2,FALSE)","v":1567},{"$f":"HLOOKUP(CL$7+0.5,$J$67:$DO$121,ROWS($A$11:$A43)+2,FALSE)","v":843},{"$f":"HLOOKUP(CM$7+0.5,$J$67:$DO$121,ROWS($A$11:$A43)+2,FALSE)","v":231},{"$f":"HLOOKUP(CN$7+0.5,$J$67:$DO$121,ROWS($A$11:$A43)+2,FALSE)","v":630},{"$f":"HLOOKUP(CO$7+0.5,$J$67:$DO$121,ROWS($A$11:$A43)+2,FALSE)","v":211},{"$f":"HLOOKUP(CP$7+0.5,$J$67:$DO$121,ROWS($A$11:$A43)+2,FALSE)","v":1419},{"$f":"HLOOKUP(CQ$7+0.5,$J$67:$DO$121,ROWS($A$11:$A43)+2,FALSE)","v":726},{"$f":"HLOOKUP(CR$7+0.5,$J$67:$DO$121,ROWS($A$11:$A43)+2,FALSE)","v":2452},{"$f":"HLOOKUP(CS$7+0.5,$J$67:$DO$121,ROWS($A$11:$A43)+2,FALSE)","v":130},{"$f":"HLOOKUP(CT$7+0.5,$J$67:$DO$121,ROWS($A$11:$A43)+2,FALSE)","v":200},{"$f":"HLOOKUP(CU$7+0.5,$J$67:$DO$121,ROWS($A$11:$A43)+2,FALSE)","v":"N/A"},{"$f":"HLOOKUP(CV$7+0.5,$J$67:$DO$121,ROWS($A$11:$A43)+2,FALSE)","v":581},{"$f":"HLOOKUP(CW$7+0.5,$J$67:$DO$121,ROWS($A$11:$A43)+2,FALSE)","v":844},{"$f":"HLOOKUP(CX$7+0.5,$J$67:$DO$121,ROWS($A$11:$A43)+2,FALSE)","v":150},{"$f":"HLOOKUP(CY$7+0.5,$J$67:$DO$121,ROWS($A$11:$A43)+2,FALSE)","v":883},{"$f":"HLOOKUP(CZ$7+0.5,$J$67:$DO$121,ROWS($A$11:$A43)+2,FALSE)","v":854},{"$f":"HLOOKUP(DA$7+0.5,$J$67:$DO$121,ROWS($A$11:$A43)+2,FALSE)","v":1403},{"$f":"HLOOKUP(DB$7+0.5,$J$67:$DO$121,ROWS($A$11:$A43)+2,FALSE)","v":526},{"$f":"HLOOKUP(DC$7+0.5,$J$67:$DO$121,ROWS($A$11:$A43)+2,FALSE)","v":81},{"$f":"HLOOKUP(DD$7+0.5,$J$67:$DO$121,ROWS($A$11:$A43)+2,FALSE)","v":182},{"$f":"HLOOKUP(DE$7+0.5,$J$67:$DO$121,ROWS($A$11:$A43)+2,FALSE)","v":322},{"$f":"HLOOKUP(DF$7+0.5,$J$67:$DO$121,ROWS($A$11:$A43)+2,FALSE)","v":801},{"$f":"HLOOKUP(DG$7+0.5,$J$67:$DO$121,ROWS($A$11:$A43)+2,FALSE)","v":3785},{"$f":"HLOOKUP(DH$7+0.5,$J$67:$DO$121,ROWS($A$11:$A43)+2,FALSE)","v":1033},{"$f":"HLOOKUP(DI$7+0.5,$J$67:$DO$121,ROWS($A$11:$A43)+2,FALSE)","v":435},{"$f":"HLOOKUP(DJ$7+0.5,$J$67:$DO$121,ROWS($A$11:$A43)+2,FALSE)","v":249},{"$f":"HLOOKUP(DK$7+0.5,$J$67:$DO$121,ROWS($A$11:$A43)+2,FALSE)","v":1315},{"$f":"HLOOKUP(DL$7+0.5,$J$67:$DO$121,ROWS($A$11:$A43)+2,FALSE)","v":285},{"$f":"HLOOKUP(DM$7+0.5,$J$67:$DO$121,ROWS($A$11:$A43)+2,FALSE)","v":339},{"$f":"HLOOKUP(DN$7+0.5,$J$67:$DO$121,ROWS($A$11:$A43)+2,FALSE)","v":727},{"$f":"HLOOKUP(DO$7+0.5,$J$67:$DO$121,ROWS($A$11:$A43)+2,FALSE)","v":678}]
[null,"New York",19171916,7371,16976205,41292,1779540,36331,3.9955190606755307E-2,{"$f":"HLOOKUP(J$7,$J$67:$DO$121,ROWS($A$11:$A44)+2,FALSE)","v":269427},{"$f":"HLOOKUP(K$7,$J$67:$DO$121,ROWS($A$11:$A44)+2,FALSE)","v":1310},{"$f":"HLOOKUP(L$7,$J$67:$DO$121,ROWS($A$11:$A44)+2,FALSE)","v":5070},{"$f":"HLOOKUP(M$7,$J$67:$DO$121,ROWS($A$11:$A44)+2,FALSE)","v":2649},{"$f":"HLOOKUP(N$7,$J$67:$DO$121,ROWS($A$11:$A44)+2,FALSE)","v":362},{"$f":"HLOOKUP(O$7,$J$67:$DO$121,ROWS($A$11:$A44)+2,FALSE)","v":25177},{"$f":"HLOOKUP(P$7,$J$67:$DO$121,ROWS($A$11:$A44)+2,FALSE)","v":3135},{"$f":"HLOOKUP(Q$7,$J$67:$DO$121,ROWS($A$11:$A44)+2,FALSE)","v":15338},{"$f":"HLOOKUP(R$7,$J$67:$DO$121,ROWS($A$11:$A44)+2,FALSE)","v":2603},{"$f":"HLOOKUP(S$7,$J$67:$DO$121,ROWS($A$11:$A44)+2,FALSE)","v":1983},{"$f":"HLOOKUP(T$7,$J$67:$DO$121,ROWS($A$11:$A44)+2,FALSE)","v":30553},{"$f":"HLOOKUP(U$7,$J$67:$DO$121,ROWS($A$11:$A44)+2,FALSE)","v":7676},{"$f":"HLOOKUP(V$7,$J$67:$DO$121,ROWS($A$11:$A44)+2,FALSE)","v":259},{"$f":"HLOOKUP(W$7,$J$67:$DO$121,ROWS($A$11:$A44)+2,FALSE)","v":198},{"$f":"HLOOKUP(X$7,$J$67:$DO$121,ROWS($A$11:$A44)+2,FALSE)","v":6533},{"$f":"HLOOKUP(Y$7,$J$67:$DO$121,ROWS($A$11:$A44)+2,FALSE)","v":2497},{"$f":"HLOOKUP(Z$7,$J$67:$DO$121,ROWS($A$11:$A44)+2,FALSE)","v":477},{"$f":"HLOOKUP(AA$7,$J$67:$DO$121,ROWS($A$11:$A44)+2,FALSE)","v":1189},{"$f":"HLOOKUP(AB$7,$J$67:$DO$121,ROWS($A$11:$A44)+2,FALSE)","v":804},{"$f":"HLOOKUP(AC$7,$J$67:$DO$121,ROWS($A$11:$A44)+2,FALSE)","v":1321},{"$f":"HLOOKUP(AD$7,$J$67:$DO$121,ROWS($A$11:$A44)+2,FALSE)","v":2270},{"$f":"HLOOKUP(AE$7,$J$67:$DO$121,ROWS($A$11:$A44)+2,FALSE)","v":5912},{"$f":"HLOOKUP(AF$7,$J$67:$DO$121,ROWS($A$11:$A44)+2,FALSE)","v":16855},{"$f":"HLOOKUP(AG$7,$J$67:$DO$121,ROWS($A$11:$A44)+2,FALSE)","v":4779},{"$f":"HLOOKUP(AH$7,$J$67:$DO$121,ROWS($A$11:$A44)+2,FALSE)","v":1649},{"$f":"HLOOKUP(AI$7,$J$67:$DO$121,ROWS($A$11:$A44)+2,FALSE)","v":872},{"$f":"HLOOKUP(AJ$7,$J$67:$DO$121,ROWS($A$11:$A44)+2,FALSE)","v":1870},{"$f":"HLOOKUP(AK$7,$J$67:$DO$121,ROWS($A$11:$A44)+2,FALSE)","v":237},{"$f":"HLOOKUP(AL$7,$J$67:$DO$121,ROWS($A$11:$A44)+2,FALSE)","v":886},{"$f":"HLOOKUP(AM$7,$J$67:$DO$121,ROWS($A$11:$A44)+2,FALSE)","v":2077},{"$f":"HLOOKUP(AN$7,$J$67:$DO$121,ROWS($A$11:$A44)+2,FALSE)","v":2636},{"$f":"HLOOKUP(AO$7,$J$67:$DO$121,ROWS($A$11:$A44)+2,FALSE)","v":35333},{"$f":"HLOOKUP(AP$7,$J$67:$DO$121,ROWS($A$11:$A44)+2,FALSE)","v":829},{"$f":"HLOOKUP(AQ$7,$J$67:$DO$121,ROWS($A$11:$A44)+2,FALSE)","v":"N/A"},{"$f":"HLOOKUP(AR$7,$J$67:$DO$121,ROWS($A$11:$A44)+2,FALSE)","v":13322},{"$f":"HLOOKUP(AS$7,$J$67:$DO$121,ROWS($A$11:$A44)+2,FALSE)","v":0},{"$f":"HLOOKUP(AT$7,$J$67:$DO$121,ROWS($A$11:$A44)+2,FALSE)","v":6510},{"$f":"HLOOKUP(AU$7,$J$67:$DO$121,ROWS($A$11:$A44)+2,FALSE)","v":2298},{"$f":"HLOOKUP(AV$7,$J$67:$DO$121,ROWS($A$11:$A44)+2,FALSE)","v":2284},{"$f":"HLOOKUP(AW$7,$J$67:$DO$121,ROWS($A$11:$A44)+2,FALSE)","v":20514},{"$f":"HLOOKUP(AX$7,$J$67:$DO$121,ROWS($A$11:$A44)+2,FALSE)","v":1913},{"$f":"HLOOKUP(AY$7,$J$67:$DO$121,ROWS($A$11:$A44)+2,FALSE)","v":7161},{"$f":"HLOOKUP(AZ$7,$J$67:$DO$121,ROWS($A$11:$A44)+2,FALSE)","v":521},{"$f":"HLOOKUP(BA$7,$J$67:$DO$121,ROWS($A$11:$A44)+2,FALSE)","v":1730},{"$f":"HLOOKUP(BB$7,$J$67:$DO$121,ROWS($A$11:$A44)+2,FALSE)","v":9692},{"$f":"HLOOKUP(BC$7,$J$67:$DO$121,ROWS($A$11:$A44)+2,FALSE)","v":910},{"$f":"HLOOKUP(BD$7,$J$67:$DO$121,ROWS($A$11:$A44)+2,FALSE)","v":2900},{"$f":"HLOOKUP(BE$7,$J$67:$DO$121,ROWS($A$11:$A44)+2,FALSE)","v":8881},{"$f":"HLOOKUP(BF$7,$J$67:$DO$121,ROWS($A$11:$A44)+2,FALSE)","v":2503},{"$f":"HLOOKUP(BG$7,$J$67:$DO$121,ROWS($A$11:$A44)+2,FALSE)","v":444},{"$f":"HLOOKUP(BH$7,$J$67:$DO$121,ROWS($A$11:$A44)+2,FALSE)","v":2354},{"$f":"HLOOKUP(BI$7,$J$67:$DO$121,ROWS($A$11:$A44)+2,FALSE)","v":151},{"$f":"HLOOKUP(BJ$7,$J$67:$DO$121,ROWS($A$11:$A44)+2,FALSE)","v":6740},null,null,null,null,{"$f":"HLOOKUP(BO$7+0.5,$J$67:$DO$121,ROWS($A$11:$A44)+2,FALSE)","v":14924},{"$f":"HLOOKUP(BP$7+0.5,$J$67:$DO$121,ROWS($A$11:$A44)+2,FALSE)","v":924},{"$f":"HLOOKUP(BQ$7+0.5,$J$67:$DO$121,ROWS($A$11:$A44)+2,FALSE)","v":2375},{"$f":"HLOOKUP(BR$7+0.5,$J$67:$DO$121,ROWS($A$11:$A44)+2,FALSE)","v":799},{"$f":"HLOOKUP(BS$7+0.5,$J$67:$DO$121,ROWS($A$11:$A44)+2,FALSE)","v":249},{"$f":"HLOOKUP(BT$7+0.5,$J$67:$DO$121,ROWS($A$11:$A44)+2,FALSE)","v":4560},{"$f":"HLOOKUP(BU$7+0.5,$J$67:$DO$121,ROWS($A$11:$A44)+2,FALSE)","v":1173},{"$f":"HLOOKUP(BV$7+0.5,$J$67:$DO$121,ROWS($A$11:$A44)+2,FALSE)","v":2651},{"$f":"HLOOKUP(BW$7+0.5,$J$67:$DO$121,ROWS($A$11:$A44)+2,FALSE)","v":1828},{"$f":"HLOOKUP(BX$7+0.5,$J$67:$DO$121,ROWS($A$11:$A44)+2,FALSE)","v":820},{"$f":"HLOOKUP(BY$7+0.5,$J$67:$DO$121,ROWS($A$11:$A44)+2,FALSE)","v":4156},{"$f":"HLOOKUP(BZ$7+0.5,$J$67:$DO$121,ROWS($A$11:$A44)+2,FALSE)","v":1970},{"$f":"HLOOKUP(CA$7+0.5,$J$67:$DO$121,ROWS($A$11:$A44)+2,FALSE)","v":195},{"$f":"HLOOKUP(CB$7+0.5,$J$67:$DO$121,ROWS($A$11:$A44)+2,FALSE)","v":198},{"$f":"HLOOKUP(CC$7+0.5,$J$67:$DO$121,ROWS($A$11:$A44)+2,FALSE)","v":2144},{"$f":"HLOOKUP(CD$7+0.5,$J$67:$DO$121,ROWS($A$11:$A44)+2,FALSE)","v":1311},{"$f":"HLOOKUP(CE$7+0.5,$J$67:$DO$121,ROWS($A$11:$A44)+2,FALSE)","v":319},{"$f":"HLOOKUP(CF$7+0.5,$J$67:$DO$121,ROWS($A$11:$A44)+2,FALSE)","v":712},{"$f":"HLOOKUP(CG$7+0.5,$J$67:$DO$121,ROWS($A$11:$A44)+2,FALSE)","v":500},{"$f":"HLOOKUP(CH$7+0.5,$J$67:$DO$121,ROWS($A$11:$A44)+2,FALSE)","v":847},{"$f":"HLOOKUP(CI$7+0.5,$J$67:$DO$121,ROWS($A$11:$A44)+2,FALSE)","v":1705},{"$f":"HLOOKUP(CJ$7+0.5,$J$67:$DO$121,ROWS($A$11:$A44)+2,FALSE)","v":1583},{"$f":"HLOOKUP(CK$7+0.5,$J$67:$DO$121,ROWS($A$11:$A44)+2,FALSE)","v":3094},{"$f":"HLOOKUP(CL$7+0.5,$J$67:$DO$121,ROWS($A$11:$A44)+2,FALSE)","v":1496},{"$f":"HLOOKUP(CM$7+0.5,$J$67:$DO$121,ROWS($A$11:$A44)+2,FALSE)","v":1086},{"$f":"HLOOKUP(CN$7+0.5,$J$67:$DO$121,ROWS($A$11:$A44)+2,FALSE)","v":381},{"$f":"HLOOKUP(CO$7+0.5,$J$67:$DO$121,ROWS($A$11:$A44)+2,FALSE)","v":961},{"$f":"HLOOKUP(CP$7+0.5,$J$67:$DO$121,ROWS($A$11:$A44)+2,FALSE)","v":210},{"$f":"HLOOKUP(CQ$7+0.5,$J$67:$DO$121,ROWS($A$11:$A44)+2,FALSE)","v":564},{"$f":"HLOOKUP(CR$7+0.5,$J$67:$DO$121,ROWS($A$11:$A44)+2,FALSE)","v":810},{"$f":"HLOOKUP(CS$7+0.5,$J$67:$DO$121,ROWS($A$11:$A44)+2,FALSE)","v":1065},{"$f":"HLOOKUP(CT$7+0.5,$J$67:$DO$121,ROWS($A$11:$A44)+2,FALSE)","v":4610},{"$f":"HLOOKUP(CU$7+0.5,$J$67:$DO$121,ROWS($A$11:$A44)+2,FALSE)","v":596},{"$f":"HLOOKUP(CV$7+0.5,$J$67:$DO$121,ROWS($A$11:$A44)+2,FALSE)","v":"N/A"},{"$f":"HLOOKUP(CW$7+0.5,$J$67:$DO$121,ROWS($A$11:$A44)+2,FALSE)","v":3003},{"$f":"HLOOKUP(CX$7+0.5,$J$67:$DO$121,ROWS($A$11:$A44)+2,FALSE)","v":275},{"$f":"HLOOKUP(CY$7+0.5,$J$67:$DO$121,ROWS($A$11:$A44)+2,FALSE)","v":1610},{"$f":"HLOOKUP(CZ$7+0.5,$J$67:$DO$121,ROWS($A$11:$A44)+2,FALSE)","v":1033},{"$f":"HLOOKUP(DA$7+0.5,$J$67:$DO$121,ROWS($A$11:$A44)+2,FALSE)","v":1098},{"$f":"HLOOKUP(DB$7+0.5,$J$67:$DO$121,ROWS($A$11:$A44)+2,FALSE)","v":3022},{"$f":"HLOOKUP(DC$7+0.5,$J$67:$DO$121,ROWS($A$11:$A44)+2,FALSE)","v":1041},{"$f":"HLOOKUP(DD$7+0.5,$J$67:$DO$121,ROWS($A$11:$A44)+2,FALSE)","v":2607},{"$f":"HLOOKUP(DE$7+0.5,$J$67:$DO$121,ROWS($A$11:$A44)+2,FALSE)","v":509},{"$f":"HLOOKUP(DF$7+0.5,$J$67:$DO$121,ROWS($A$11:$A44)+2,FALSE)","v":835},{"$f":"HLOOKUP(DG$7+0.5,$J$67:$DO$121,ROWS($A$11:$A44)+2,FALSE)","v":2018},{"$f":"HLOOKUP(DH$7+0.5,$J$67:$DO$121,ROWS($A$11:$A44)+2,FALSE)","v":988},{"$f":"HLOOKUP(DI$7+0.5,$J$67:$DO$121,ROWS($A$11:$A44)+2,FALSE)","v":908},{"$f":"HLOOKUP(DJ$7+0.5,$J$67:$DO$121,ROWS($A$11:$A44)+2,FALSE)","v":1939},{"$f":"HLOOKUP(DK$7+0.5,$J$67:$DO$121,ROWS($A$11:$A44)+2,FALSE)","v":976},{"$f":"HLOOKUP(DL$7+0.5,$J$67:$DO$121,ROWS($A$11:$A44)+2,FALSE)","v":285},{"$f":"HLOOKUP(DM$7+0.5,$J$67:$DO$121,ROWS($A$11:$A44)+2,FALSE)","v":1588},{"$f":"HLOOKUP(DN$7+0.5,$J$67:$DO$121,ROWS($A$11:$A44)+2,FALSE)","v":148},{"$f":"HLOOKUP(DO$7+0.5,$J$67:$DO$121,ROWS($A$11:$A44)+2,FALSE)","v":2049}]
[null,"North Carolina",9443000,5070,7982017,29580,1141001,25307,3.904005039722068E-2,{"$f":"HLOOKUP(J$7,$J$67:$DO$121,ROWS($A$11:$A45)+2,FALSE)","v":263256},{"$f":"HLOOKUP(K$7,$J$67:$DO$121,ROWS($A$11:$A45)+2,FALSE)","v":3044},{"$f":"HLOOKUP(L$7,$J$67:$DO$121,ROWS($A$11:$A45)+2,FALSE)","v":1618},{"$f":"HLOOKUP(M$7,$J$67:$DO$121,ROWS($A$11:$A45)+2,FALSE)","v":2847},{"$f":"HLOOKUP(N$7,$J$67:$DO$121,ROWS($A$11:$A45)+2,FALSE)","v":550},{"$f":"HLOOKUP(O$7,$J$67:$DO$121,ROWS($A$11:$A45)+2,FALSE)","v":16699},{"$f":"HLOOKUP(P$7,$J$67:$DO$121,ROWS($A$11:$A45)+2,FALSE)","v":1842},{"$f":"HLOOKUP(Q$7,$J$67:$DO$121,ROWS($A$11:$A45)+2,FALSE)","v":3752},{"$f":"HLOOKUP(R$7,$J$67:$DO$121,ROWS($A$11:$A45)+2,FALSE)","v":479},{"$f":"HLOOKUP(S$7,$J$67:$DO$121,ROWS($A$11:$A45)+2,FALSE)","v":1691},{"$f":"HLOOKUP(T$7,$J$67:$DO$121,ROWS($A$11:$A45)+2,FALSE)","v":28983},{"$f":"HLOOKUP(U$7,$J$67:$DO$121,ROWS($A$11:$A45)+2,FALSE)","v":15943},{"$f":"HLOOKUP(V$7,$J$67:$DO$121,ROWS($A$11:$A45)+2,FALSE)","v":1567},{"$f":"HLOOKUP(W$7,$J$67:$DO$121,ROWS($A$11:$A45)+2,FALSE)","v":724},{"$f":"HLOOKUP(X$7,$J$67:$DO$121,ROWS($A$11:$A45)+2,FALSE)","v":5657},{"$f":"HLOOKUP(Y$7,$J$67:$DO$121,ROWS($A$11:$A45)+2,FALSE)","v":4132},{"$f":"HLOOKUP(Z$7,$J$67:$DO$121,ROWS($A$11:$A45)+2,FALSE)","v":1077},{"$f":"HLOOKUP(AA$7,$J$67:$DO$121,ROWS($A$11:$A45)+2,FALSE)","v":2192},{"$f":"HLOOKUP(AB$7,$J$67:$DO$121,ROWS($A$11:$A45)+2,FALSE)","v":4419},{"$f":"HLOOKUP(AC$7,$J$67:$DO$121,ROWS($A$11:$A45)+2,FALSE)","v":2180},{"$f":"HLOOKUP(AD$7,$J$67:$DO$121,ROWS($A$11:$A45)+2,FALSE)","v":2259},{"$f":"HLOOKUP(AE$7,$J$67:$DO$121,ROWS($A$11:$A45)+2,FALSE)","v":9881},{"$f":"HLOOKUP(AF$7,$J$67:$DO$121,ROWS($A$11:$A45)+2,FALSE)","v":4052},{"$f":"HLOOKUP(AG$7,$J$67:$DO$121,ROWS($A$11:$A45)+2,FALSE)","v":5789},{"$f":"HLOOKUP(AH$7,$J$67:$DO$121,ROWS($A$11:$A45)+2,FALSE)","v":1839},{"$f":"HLOOKUP(AI$7,$J$67:$DO$121,ROWS($A$11:$A45)+2,FALSE)","v":1187},{"$f":"HLOOKUP(AJ$7,$J$67:$DO$121,ROWS($A$11:$A45)+2,FALSE)","v":1932},{"$f":"HLOOKUP(AK$7,$J$67:$DO$121,ROWS($A$11:$A45)+2,FALSE)","v":230},{"$f":"HLOOKUP(AL$7,$J$67:$DO$121,ROWS($A$11:$A45)+2,FALSE)","v":516},{"$f":"HLOOKUP(AM$7,$J$67:$DO$121,ROWS($A$11:$A45)+2,FALSE)","v":698},{"$f":"HLOOKUP(AN$7,$J$67:$DO$121,ROWS($A$11:$A45)+2,FALSE)","v":2130},{"$f":"HLOOKUP(AO$7,$J$67:$DO$121,ROWS($A$11:$A45)+2,FALSE)","v":7195},{"$f":"HLOOKUP(AP$7,$J$67:$DO$121,ROWS($A$11:$A45)+2,FALSE)","v":1186},{"$f":"HLOOKUP(AQ$7,$J$67:$DO$121,ROWS($A$11:$A45)+2,FALSE)","v":19406},{"$f":"HLOOKUP(AR$7,$J$67:$DO$121,ROWS($A$11:$A45)+2,FALSE)","v":"N/A"},{"$f":"HLOOKUP(AS$7,$J$67:$DO$121,ROWS($A$11:$A45)+2,FALSE)","v":243},{"$f":"HLOOKUP(AT$7,$J$67:$DO$121,ROWS($A$11:$A45)+2,FALSE)","v":8661},{"$f":"HLOOKUP(AU$7,$J$67:$DO$121,ROWS($A$11:$A45)+2,FALSE)","v":1453},{"$f":"HLOOKUP(AV$7,$J$67:$DO$121,ROWS($A$11:$A45)+2,FALSE)","v":1796},{"$f":"HLOOKUP(AW$7,$J$67:$DO$121,ROWS($A$11:$A45)+2,FALSE)","v":11155},{"$f":"HLOOKUP(AX$7,$J$67:$DO$121,ROWS($A$11:$A45)+2,FALSE)","v":97},{"$f":"HLOOKUP(AY$7,$J$67:$DO$121,ROWS($A$11:$A45)+2,FALSE)","v":23196},{"$f":"HLOOKUP(AZ$7,$J$67:$DO$121,ROWS($A$11:$A45)+2,FALSE)","v":362},{"$f":"HLOOKUP(BA$7,$J$67:$DO$121,ROWS($A$11:$A45)+2,FALSE)","v":8685},{"$f":"HLOOKUP(BB$7,$J$67:$DO$121,ROWS($A$11:$A45)+2,FALSE)","v":14329},{"$f":"HLOOKUP(BC$7,$J$67:$DO$121,ROWS($A$11:$A45)+2,FALSE)","v":790},{"$f":"HLOOKUP(BD$7,$J$67:$DO$121,ROWS($A$11:$A45)+2,FALSE)","v":350},{"$f":"HLOOKUP(BE$7,$J$67:$DO$121,ROWS($A$11:$A45)+2,FALSE)","v":25662},{"$f":"HLOOKUP(BF$7,$J$67:$DO$121,ROWS($A$11:$A45)+2,FALSE)","v":2874},{"$f":"HLOOKUP(BG$7,$J$67:$DO$121,ROWS($A$11:$A45)+2,FALSE)","v":3025},{"$f":"HLOOKUP(BH$7,$J$67:$DO$121,ROWS($A$11:$A45)+2,FALSE)","v":2012},{"$f":"HLOOKUP(BI$7,$J$67:$DO$121,ROWS($A$11:$A45)+2,FALSE)","v":870},{"$f":"HLOOKUP(BJ$7,$J$67:$DO$121,ROWS($A$11:$A45)+2,FALSE)","v":1950},null,null,null,null,{"$f":"HLOOKUP(BO$7+0.5,$J$67:$DO$121,ROWS($A$11:$A45)+2,FALSE)","v":13976},{"$f":"HLOOKUP(BP$7+0.5,$J$67:$DO$121,ROWS($A$11:$A45)+2,FALSE)","v":1381},{"$f":"HLOOKUP(BQ$7+0.5,$J$67:$DO$121,ROWS($A$11:$A45)+2,FALSE)","v":1103},{"$f":"HLOOKUP(BR$7+0.5,$J$67:$DO$121,ROWS($A$11:$A45)+2,FALSE)","v":1062},{"$f":"HLOOKUP(BS$7+0.5,$J$67:$DO$121,ROWS($A$11:$A45)+2,FALSE)","v":306},{"$f":"HLOOKUP(BT$7+0.5,$J$67:$DO$121,ROWS($A$11:$A45)+2,FALSE)","v":3085},{"$f":"HLOOKUP(BU$7+0.5,$J$67:$DO$121,ROWS($A$11:$A45)+2,FALSE)","v":1052},{"$f":"HLOOKUP(BV$7+0.5,$J$67:$DO$121,ROWS($A$11:$A45)+2,FALSE)","v":1748},{"$f":"HLOOKUP(BW$7+0.5,$J$67:$DO$121,ROWS($A$11:$A45)+2,FALSE)","v":354},{"$f":"HLOOKUP(BX$7+0.5,$J$67:$DO$121,ROWS($A$11:$A45)+2,FALSE)","v":548},{"$f":"HLOOKUP(BY$7+0.5,$J$67:$DO$121,ROWS($A$11:$A45)+2,FALSE)","v":4184},{"$f":"HLOOKUP(BZ$7+0.5,$J$67:$DO$121,ROWS($A$11:$A45)+2,FALSE)","v":3370},{"$f":"HLOOKUP(CA$7+0.5,$J$67:$DO$121,ROWS($A$11:$A45)+2,FALSE)","v":871},{"$f":"HLOOKUP(CB$7+0.5,$J$67:$DO$121,ROWS($A$11:$A45)+2,FALSE)","v":564},{"$f":"HLOOKUP(CC$7+0.5,$J$67:$DO$121,ROWS($A$11:$A45)+2,FALSE)","v":1875},{"$f":"HLOOKUP(CD$7+0.5,$J$67:$DO$121,ROWS($A$11:$A45)+2,FALSE)","v":1280},{"$f":"HLOOKUP(CE$7+0.5,$J$67:$DO$121,ROWS($A$11:$A45)+2,FALSE)","v":806},{"$f":"HLOOKUP(CF$7+0.5,$J$67:$DO$121,ROWS($A$11:$A45)+2,FALSE)","v":1266},{"$f":"HLOOKUP(CG$7+0.5,$J$67:$DO$121,ROWS($A$11:$A45)+2,FALSE)","v":1984},{"$f":"HLOOKUP(CH$7+0.5,$J$67:$DO$121,ROWS($A$11:$A45)+2,FALSE)","v":1222},{"$f":"HLOOKUP(CI$7+0.5,$J$67:$DO$121,ROWS($A$11:$A45)+2,FALSE)","v":990},{"$f":"HLOOKUP(CJ$7+0.5,$J$67:$DO$121,ROWS($A$11:$A45)+2,FALSE)","v":2730},{"$f":"HLOOKUP(CK$7+0.5,$J$67:$DO$121,ROWS($A$11:$A45)+2,FALSE)","v":1420},{"$f":"HLOOKUP(CL$7+0.5,$J$67:$DO$121,ROWS($A$11:$A45)+2,FALSE)","v":2071},{"$f":"HLOOKUP(CM$7+0.5,$J$67:$DO$121,ROWS($A$11:$A45)+2,FALSE)","v":844},{"$f":"HLOOKUP(CN$7+0.5,$J$67:$DO$121,ROWS($A$11:$A45)+2,FALSE)","v":818},{"$f":"HLOOKUP(CO$7+0.5,$J$67:$DO$121,ROWS($A$11:$A45)+2,FALSE)","v":965},{"$f":"HLOOKUP(CP$7+0.5,$J$67:$DO$121,ROWS($A$11:$A45)+2,FALSE)","v":274},{"$f":"HLOOKUP(CQ$7+0.5,$J$67:$DO$121,ROWS($A$11:$A45)+2,FALSE)","v":357},{"$f":"HLOOKUP(CR$7+0.5,$J$67:$DO$121,ROWS($A$11:$A45)+2,FALSE)","v":639},{"$f":"HLOOKUP(CS$7+0.5,$J$67:$DO$121,ROWS($A$11:$A45)+2,FALSE)","v":1440},{"$f":"HLOOKUP(CT$7+0.5,$J$67:$DO$121,ROWS($A$11:$A45)+2,FALSE)","v":1847},{"$f":"HLOOKUP(CU$7+0.5,$J$67:$DO$121,ROWS($A$11:$A45)+2,FALSE)","v":1065},{"$f":"HLOOKUP(CV$7+0.5,$J$67:$DO$121,ROWS($A$11:$A45)+2,FALSE)","v":3099},{"$f":"HLOOKUP(CW$7+0.5,$J$67:$DO$121,ROWS($A$11:$A45)+2,FALSE)","v":"N/A"},{"$f":"HLOOKUP(CX$7+0.5,$J$67:$DO$121,ROWS($A$11:$A45)+2,FALSE)","v":402},{"$f":"HLOOKUP(CY$7+0.5,$J$67:$DO$121,ROWS($A$11:$A45)+2,FALSE)","v":2362},{"$f":"HLOOKUP(CZ$7+0.5,$J$67:$DO$121,ROWS($A$11:$A45)+2,FALSE)","v":717},{"$f":"HLOOKUP(DA$7+0.5,$J$67:$DO$121,ROWS($A$11:$A45)+2,FALSE)","v":1013},{"$f":"HLOOKUP(DB$7+0.5,$J$67:$DO$121,ROWS($A$11:$A45)+2,FALSE)","v":2465},{"$f":"HLOOKUP(DC$7+0.5,$J$67:$DO$121,ROWS($A$11:$A45)+2,FALSE)","v":161},{"$f":"HLOOKUP(DD$7+0.5,$J$67:$DO$121,ROWS($A$11:$A45)+2,FALSE)","v":4788},{"$f":"HLOOKUP(DE$7+0.5,$J$67:$DO$121,ROWS($A$11:$A45)+2,FALSE)","v":304},{"$f":"HLOOKUP(DF$7+0.5,$J$67:$DO$121,ROWS($A$11:$A45)+2,FALSE)","v":2249},{"$f":"HLOOKUP(DG$7+0.5,$J$67:$DO$121,ROWS($A$11:$A45)+2,FALSE)","v":3409},{"$f":"HLOOKUP(DH$7+0.5,$J$67:$DO$121,ROWS($A$11:$A45)+2,FALSE)","v":551},{"$f":"HLOOKUP(DI$7+0.5,$J$67:$DO$121,ROWS($A$11:$A45)+2,FALSE)","v":244},{"$f":"HLOOKUP(DJ$7+0.5,$J$67:$DO$121,ROWS($A$11:$A45)+2,FALSE)","v":3825},{"$f":"HLOOKUP(DK$7+0.5,$J$67:$DO$121,ROWS($A$11:$A45)+2,FALSE)","v":1166},{"$f":"HLOOKUP(DL$7+0.5,$J$67:$DO$121,ROWS($A$11:$A45)+2,FALSE)","v":1129},{"$f":"HLOOKUP(DM$7+0.5,$J$67:$DO$121,ROWS($A$11:$A45)+2,FALSE)","v":910},{"$f":"HLOOKUP(DN$7+0.5,$J$67:$DO$121,ROWS($A$11:$A45)+2,FALSE)","v":819},{"$f":"HLOOKUP(DO$7+0.5,$J$67:$DO$121,ROWS($A$11:$A45)+2,FALSE)","v":1463}]
[null,"North Dakota",665654,1209,556222,6833,75720,5430,4.4637368833239984E-3,{"$f":"HLOOKUP(J$7,$J$67:$DO$121,ROWS($A$11:$A46)+2,FALSE)","v":30100},{"$f":"HLOOKUP(K$7,$J$67:$DO$121,ROWS($A$11:$A46)+2,FALSE)","v":109},{"$f":"HLOOKUP(L$7,$J$67:$DO$121,ROWS($A$11:$A46)+2,FALSE)","v":1066},{"$f":"HLOOKUP(M$7,$J$67:$DO$121,ROWS($A$11:$A46)+2,FALSE)","v":662},{"$f":"HLOOKUP(N$7,$J$67:$DO$121,ROWS($A$11:$A46)+2,FALSE)","v":168},{"$f":"HLOOKUP(O$7,$J$67:$DO$121,ROWS($A$11:$A46)+2,FALSE)","v":1411},{"$f":"HLOOKUP(P$7,$J$67:$DO$121,ROWS($A$11:$A46)+2,FALSE)","v":873},{"$f":"HLOOKUP(Q$7,$J$67:$DO$121,ROWS($A$11:$A46)+2,FALSE)","v":30},{"$f":"HLOOKUP(R$7,$J$67:$DO$121,ROWS($A$11:$A46)+2,FALSE)","v":0},{"$f":"HLOOKUP(S$7,$J$67:$DO$121,ROWS($A$11:$A46)+2,FALSE)","v":175},{"$f":"HLOOKUP(T$7,$J$67:$DO$121,ROWS($A$11:$A46)+2,FALSE)","v":492},{"$f":"HLOOKUP(U$7,$J$67:$DO$121,ROWS($A$11:$A46)+2,FALSE)","v":799},{"$f":"HLOOKUP(V$7,$J$67:$DO$121,ROWS($A$11:$A46)+2,FALSE)","v":53},{"$f":"HLOOKUP(W$7,$J$67:$DO$121,ROWS($A$11:$A46)+2,FALSE)","v":69},{"$f":"HLOOKUP(X$7,$J$67:$DO$121,ROWS($A$11:$A46)+2,FALSE)","v":39},{"$f":"HLOOKUP(Y$7,$J$67:$DO$121,ROWS($A$11:$A46)+2,FALSE)","v":45},{"$f":"HLOOKUP(Z$7,$J$67:$DO$121,ROWS($A$11:$A46)+2,FALSE)","v":289},{"$f":"HLOOKUP(AA$7,$J$67:$DO$121,ROWS($A$11:$A46)+2,FALSE)","v":114},{"$f":"HLOOKUP(AB$7,$J$67:$DO$121,ROWS($A$11:$A46)+2,FALSE)","v":97},{"$f":"HLOOKUP(AC$7,$J$67:$DO$121,ROWS($A$11:$A46)+2,FALSE)","v":374},{"$f":"HLOOKUP(AD$7,$J$67:$DO$121,ROWS($A$11:$A46)+2,FALSE)","v":0},{"$f":"HLOOKUP(AE$7,$J$67:$DO$121,ROWS($A$11:$A46)+2,FALSE)","v":121},{"$f":"HLOOKUP(AF$7,$J$67:$DO$121,ROWS($A$11:$A46)+2,FALSE)","v":52},{"$f":"HLOOKUP(AG$7,$J$67:$DO$121,ROWS($A$11:$A46)+2,FALSE)","v":298},{"$f":"HLOOKUP(AH$7,$J$67:$DO$121,ROWS($A$11:$A46)+2,FALSE)","v":12350},{"$f":"HLOOKUP(AI$7,$J$67:$DO$121,ROWS($A$11:$A46)+2,FALSE)","v":0},{"$f":"HLOOKUP(AJ$7,$J$67:$DO$121,ROWS($A$11:$A46)+2,FALSE)","v":197},{"$f":"HLOOKUP(AK$7,$J$67:$DO$121,ROWS($A$11:$A46)+2,FALSE)","v":1236},{"$f":"HLOOKUP(AL$7,$J$67:$DO$121,ROWS($A$11:$A46)+2,FALSE)","v":328},{"$f":"HLOOKUP(AM$7,$J$67:$DO$121,ROWS($A$11:$A46)+2,FALSE)","v":382},{"$f":"HLOOKUP(AN$7,$J$67:$DO$121,ROWS($A$11:$A46)+2,FALSE)","v":0},{"$f":"HLOOKUP(AO$7,$J$67:$DO$121,ROWS($A$11:$A46)+2,FALSE)","v":144},{"$f":"HLOOKUP(AP$7,$J$67:$DO$121,ROWS($A$11:$A46)+2,FALSE)","v":380},{"$f":"HLOOKUP(AQ$7,$J$67:$DO$121,ROWS($A$11:$A46)+2,FALSE)","v":188},{"$f":"HLOOKUP(AR$7,$J$67:$DO$121,ROWS($A$11:$A46)+2,FALSE)","v":637},{"$f":"HLOOKUP(AS$7,$J$67:$DO$121,ROWS($A$11:$A46)+2,FALSE)","v":"N/A"},{"$f":"HLOOKUP(AT$7,$J$67:$DO$121,ROWS($A$11:$A46)+2,FALSE)","v":134},{"$f":"HLOOKUP(AU$7,$J$67:$DO$121,ROWS($A$11:$A46)+2,FALSE)","v":108},{"$f":"HLOOKUP(AV$7,$J$67:$DO$121,ROWS($A$11:$A46)+2,FALSE)","v":313},{"$f":"HLOOKUP(AW$7,$J$67:$DO$121,ROWS($A$11:$A46)+2,FALSE)","v":392},{"$f":"HLOOKUP(AX$7,$J$67:$DO$121,ROWS($A$11:$A46)+2,FALSE)","v":0},{"$f":"HLOOKUP(AY$7,$J$67:$DO$121,ROWS($A$11:$A46)+2,FALSE)","v":0},{"$f":"HLOOKUP(AZ$7,$J$67:$DO$121,ROWS($A$11:$A46)+2,FALSE)","v":1038},{"$f":"HLOOKUP(BA$7,$J$67:$DO$121,ROWS($A$11:$A46)+2,FALSE)","v":273},{"$f":"HLOOKUP(BB$7,$J$67:$DO$121,ROWS($A$11:$A46)+2,FALSE)","v":2513},{"$f":"HLOOKUP(BC$7,$J$67:$DO$121,ROWS($A$11:$A46)+2,FALSE)","v":462},{"$f":"HLOOKUP(BD$7,$J$67:$DO$121,ROWS($A$11:$A46)+2,FALSE)","v":0},{"$f":"HLOOKUP(BE$7,$J$67:$DO$121,ROWS($A$11:$A46)+2,FALSE)","v":25},{"$f":"HLOOKUP(BF$7,$J$67:$DO$121,ROWS($A$11:$A46)+2,FALSE)","v":696},{"$f":"HLOOKUP(BG$7,$J$67:$DO$121,ROWS($A$11:$A46)+2,FALSE)","v":0},{"$f":"HLOOKUP(BH$7,$J$67:$DO$121,ROWS($A$11:$A46)+2,FALSE)","v":749},{"$f":"HLOOKUP(BI$7,$J$67:$DO$121,ROWS($A$11:$A46)+2,FALSE)","v":219},{"$f":"HLOOKUP(BJ$7,$J$67:$DO$121,ROWS($A$11:$A46)+2,FALSE)","v":0},null,null,null,null,{"$f":"HLOOKUP(BO$7+0.5,$J$67:$DO$121,ROWS($A$11:$A46)+2,FALSE)","v":3890},{"$f":"HLOOKUP(BP$7+0.5,$J$67:$DO$121,ROWS($A$11:$A46)+2,FALSE)","v":108},{"$f":"HLOOKUP(BQ$7+0.5,$J$67:$DO$121,ROWS($A$11:$A46)+2,FALSE)","v":823},{"$f":"HLOOKUP(BR$7+0.5,$J$67:$DO$121,ROWS($A$11:$A46)+2,FALSE)","v":481},{"$f":"HLOOKUP(BS$7+0.5,$J$67:$DO$121,ROWS($A$11:$A46)+2,FALSE)","v":206},{"$f":"HLOOKUP(BT$7+0.5,$J$67:$DO$121,ROWS($A$11:$A46)+2,FALSE)","v":873},{"$f":"HLOOKUP(BU$7+0.5,$J$67:$DO$121,ROWS($A$11:$A46)+2,FALSE)","v":614},{"$f":"HLOOKUP(BV$7+0.5,$J$67:$DO$121,ROWS($A$11:$A46)+2,FALSE)","v":47},{"$f":"HLOOKUP(BW$7+0.5,$J$67:$DO$121,ROWS($A$11:$A46)+2,FALSE)","v":211},{"$f":"HLOOKUP(BX$7+0.5,$J$67:$DO$121,ROWS($A$11:$A46)+2,FALSE)","v":275},{"$f":"HLOOKUP(BY$7+0.5,$J$67:$DO$121,ROWS($A$11:$A46)+2,FALSE)","v":376},{"$f":"HLOOKUP(BZ$7+0.5,$J$67:$DO$121,ROWS($A$11:$A46)+2,FALSE)","v":837},{"$f":"HLOOKUP(CA$7+0.5,$J$67:$DO$121,ROWS($A$11:$A46)+2,FALSE)","v":84},{"$f":"HLOOKUP(CB$7+0.5,$J$67:$DO$121,ROWS($A$11:$A46)+2,FALSE)","v":82},{"$f":"HLOOKUP(CC$7+0.5,$J$67:$DO$121,ROWS($A$11:$A46)+2,FALSE)","v":54},{"$f":"HLOOKUP(CD$7+0.5,$J$67:$DO$121,ROWS($A$11:$A46)+2,FALSE)","v":77},{"$f":"HLOOKUP(CE$7+0.5,$J$67:$DO$121,ROWS($A$11:$A46)+2,FALSE)","v":376},{"$f":"HLOOKUP(CF$7+0.5,$J$67:$DO$121,ROWS($A$11:$A46)+2,FALSE)","v":154},{"$f":"HLOOKUP(CG$7+0.5,$J$67:$DO$121,ROWS($A$11:$A46)+2,FALSE)","v":85},{"$f":"HLOOKUP(CH$7+0.5,$J$67:$DO$121,ROWS($A$11:$A46)+2,FALSE)","v":422},{"$f":"HLOOKUP(CI$7+0.5,$J$67:$DO$121,ROWS($A$11:$A46)+2,FALSE)","v":211},{"$f":"HLOOKUP(CJ$7+0.5,$J$67:$DO$121,ROWS($A$11:$A46)+2,FALSE)","v":94},{"$f":"HLOOKUP(CK$7+0.5,$J$67:$DO$121,ROWS($A$11:$A46)+2,FALSE)","v":84},{"$f":"HLOOKUP(CL$7+0.5,$J$67:$DO$121,ROWS($A$11:$A46)+2,FALSE)","v":250},{"$f":"HLOOKUP(CM$7+0.5,$J$67:$DO$121,ROWS($A$11:$A46)+2,FALSE)","v":2469},{"$f":"HLOOKUP(CN$7+0.5,$J$67:$DO$121,ROWS($A$11:$A46)+2,FALSE)","v":211},{"$f":"HLOOKUP(CO$7+0.5,$J$67:$DO$121,ROWS($A$11:$A46)+2,FALSE)","v":208},{"$f":"HLOOKUP(CP$7+0.5,$J$67:$DO$121,ROWS($A$11:$A46)+2,FALSE)","v":733},{"$f":"HLOOKUP(CQ$7+0.5,$J$67:$DO$121,ROWS($A$11:$A46)+2,FALSE)","v":316},{"$f":"HLOOKUP(CR$7+0.5,$J$67:$DO$121,ROWS($A$11:$A46)+2,FALSE)","v":357},{"$f":"HLOOKUP(CS$7+0.5,$J$67:$DO$121,ROWS($A$11:$A46)+2,FALSE)","v":211},{"$f":"HLOOKUP(CT$7+0.5,$J$67:$DO$121,ROWS($A$11:$A46)+2,FALSE)","v":183},{"$f":"HLOOKUP(CU$7+0.5,$J$67:$DO$121,ROWS($A$11:$A46)+2,FALSE)","v":517},{"$f":"HLOOKUP(CV$7+0.5,$J$67:$DO$121,ROWS($A$11:$A46)+2,FALSE)","v":224},{"$f":"HLOOKUP(CW$7+0.5,$J$67:$DO$121,ROWS($A$11:$A46)+2,FALSE)","v":680},{"$f":"HLOOKUP(CX$7+0.5,$J$67:$DO$121,ROWS($A$11:$A46)+2,FALSE)","v":"N/A"},{"$f":"HLOOKUP(CY$7+0.5,$J$67:$DO$121,ROWS($A$11:$A46)+2,FALSE)","v":167},{"$f":"HLOOKUP(CZ$7+0.5,$J$67:$DO$121,ROWS($A$11:$A46)+2,FALSE)","v":120},{"$f":"HLOOKUP(DA$7+0.5,$J$67:$DO$121,ROWS($A$11:$A46)+2,FALSE)","v":439},{"$f":"HLOOKUP(DB$7+0.5,$J$67:$DO$121,ROWS($A$11:$A46)+2,FALSE)","v":377},{"$f":"HLOOKUP(DC$7+0.5,$J$67:$DO$121,ROWS($A$11:$A46)+2,FALSE)","v":211},{"$f":"HLOOKUP(DD$7+0.5,$J$67:$DO$121,ROWS($A$11:$A46)+2,FALSE)","v":211},{"$f":"HLOOKUP(DE$7+0.5,$J$67:$DO$121,ROWS($A$11:$A46)+2,FALSE)","v":510},{"$f":"HLOOKUP(DF$7+0.5,$J$67:$DO$121,ROWS($A$11:$A46)+2,FALSE)","v":270},{"$f":"HLOOKUP(DG$7+0.5,$J$67:$DO$121,ROWS($A$11:$A46)+2,FALSE)","v":1293},{"$f":"HLOOKUP(DH$7+0.5,$J$67:$DO$121,ROWS($A$11:$A46)+2,FALSE)","v":431},{"$f":"HLOOKUP(DI$7+0.5,$J$67:$DO$121,ROWS($A$11:$A46)+2,FALSE)","v":211},{"$f":"HLOOKUP(DJ$7+0.5,$J$67:$DO$121,ROWS($A$11:$A46)+2,FALSE)","v":39},{"$f":"HLOOKUP(DK$7+0.5,$J$67:$DO$121,ROWS($A$11:$A46)+2,FALSE)","v":344},{"$f":"HLOOKUP(DL$7+0.5,$J$67:$DO$121,ROWS($A$11:$A46)+2,FALSE)","v":211},{"$f":"HLOOKUP(DM$7+0.5,$J$67:$DO$121,ROWS($A$11:$A46)+2,FALSE)","v":480},{"$f":"HLOOKUP(DN$7+0.5,$J$67:$DO$121,ROWS($A$11:$A46)+2,FALSE)","v":206},{"$f":"HLOOKUP(DO$7+0.5,$J$67:$DO$121,ROWS($A$11:$A46)+2,FALSE)","v":211}]
[null,"Ohio",11405101,4931,9745227,23258,1453401,23324,2.5600939846474144E-2,{"$f":"HLOOKUP(J$7,$J$67:$DO$121,ROWS($A$11:$A47)+2,FALSE)","v":172633},{"$f":"HLOOKUP(K$7,$J$67:$DO$121,ROWS($A$11:$A47)+2,FALSE)","v":1289},{"$f":"HLOOKUP(L$7,$J$67:$DO$121,ROWS($A$11:$A47)+2,FALSE)","v":1556},{"$f":"HLOOKUP(M$7,$J$67:$DO$121,ROWS($A$11:$A47)+2,FALSE)","v":4715},{"$f":"HLOOKUP(N$7,$J$67:$DO$121,ROWS($A$11:$A47)+2,FALSE)","v":434},{"$f":"HLOOKUP(O$7,$J$67:$DO$121,ROWS($A$11:$A47)+2,FALSE)","v":8997},{"$f":"HLOOKUP(P$7,$J$67:$DO$121,ROWS($A$11:$A47)+2,FALSE)","v":2859},{"$f":"HLOOKUP(Q$7,$J$67:$DO$121,ROWS($A$11:$A47)+2,FALSE)","v":1307},{"$f":"HLOOKUP(R$7,$J$67:$DO$121,ROWS($A$11:$A47)+2,FALSE)","v":15},{"$f":"HLOOKUP(S$7,$J$67:$DO$121,ROWS($A$11:$A47)+2,FALSE)","v":972},{"$f":"HLOOKUP(T$7,$J$67:$DO$121,ROWS($A$11:$A47)+2,FALSE)","v":16495},{"$f":"HLOOKUP(U$7,$J$67:$DO$121,ROWS($A$11:$A47)+2,FALSE)","v":9502},{"$f":"HLOOKUP(V$7,$J$67:$DO$121,ROWS($A$11:$A47)+2,FALSE)","v":436},{"$f":"HLOOKUP(W$7,$J$67:$DO$121,ROWS($A$11:$A47)+2,FALSE)","v":564},{"$f":"HLOOKUP(X$7,$J$67:$DO$121,ROWS($A$11:$A47)+2,FALSE)","v":7092},{"$f":"HLOOKUP(Y$7,$J$67:$DO$121,ROWS($A$11:$A47)+2,FALSE)","v":9438},{"$f":"HLOOKUP(Z$7,$J$67:$DO$121,ROWS($A$11:$A47)+2,FALSE)","v":1270},{"$f":"HLOOKUP(AA$7,$J$67:$DO$121,ROWS($A$11:$A47)+2,FALSE)","v":1016},{"$f":"HLOOKUP(AB$7,$J$67:$DO$121,ROWS($A$11:$A47)+2,FALSE)","v":9159},{"$f":"HLOOKUP(AC$7,$J$67:$DO$121,ROWS($A$11:$A47)+2,FALSE)","v":743},{"$f":"HLOOKUP(AD$7,$J$67:$DO$121,ROWS($A$11:$A47)+2,FALSE)","v":291},{"$f":"HLOOKUP(AE$7,$J$67:$DO$121,ROWS($A$11:$A47)+2,FALSE)","v":3828},{"$f":"HLOOKUP(AF$7,$J$67:$DO$121,ROWS($A$11:$A47)+2,FALSE)","v":3686},{"$f":"HLOOKUP(AG$7,$J$67:$DO$121,ROWS($A$11:$A47)+2,FALSE)","v":15130},{"$f":"HLOOKUP(AH$7,$J$67:$DO$121,ROWS($A$11:$A47)+2,FALSE)","v":2298},{"$f":"HLOOKUP(AI$7,$J$67:$DO$121,ROWS($A$11:$A47)+2,FALSE)","v":89},{"$f":"HLOOKUP(AJ$7,$J$67:$DO$121,ROWS($A$11:$A47)+2,FALSE)","v":1171},{"$f":"HLOOKUP(AK$7,$J$67:$DO$121,ROWS($A$11:$A47)+2,FALSE)","v":460},{"$f":"HLOOKUP(AL$7,$J$67:$DO$121,ROWS($A$11:$A47)+2,FALSE)","v":1531},{"$f":"HLOOKUP(AM$7,$J$67:$DO$121,ROWS($A$11:$A47)+2,FALSE)","v":2240},{"$f":"HLOOKUP(AN$7,$J$67:$DO$121,ROWS($A$11:$A47)+2,FALSE)","v":175},{"$f":"HLOOKUP(AO$7,$J$67:$DO$121,ROWS($A$11:$A47)+2,FALSE)","v":2465},{"$f":"HLOOKUP(AP$7,$J$67:$DO$121,ROWS($A$11:$A47)+2,FALSE)","v":515},{"$f":"HLOOKUP(AQ$7,$J$67:$DO$121,ROWS($A$11:$A47)+2,FALSE)","v":5988},{"$f":"HLOOKUP(AR$7,$J$67:$DO$121,ROWS($A$11:$A47)+2,FALSE)","v":5985},{"$f":"HLOOKUP(AS$7,$J$67:$DO$121,ROWS($A$11:$A47)+2,FALSE)","v":26},{"$f":"HLOOKUP(AT$7,$J$67:$DO$121,ROWS($A$11:$A47)+2,FALSE)","v":"N/A"},{"$f":"HLOOKUP(AU$7,$J$67:$DO$121,ROWS($A$11:$A47)+2,FALSE)","v":1228},{"$f":"HLOOKUP(AV$7,$J$67:$DO$121,ROWS($A$11:$A47)+2,FALSE)","v":342},{"$f":"HLOOKUP(AW$7,$J$67:$DO$121,ROWS($A$11:$A47)+2,FALSE)","v":12012},{"$f":"HLOOKUP(AX$7,$J$67:$DO$121,ROWS($A$11:$A47)+2,FALSE)","v":444},{"$f":"HLOOKUP(AY$7,$J$67:$DO$121,ROWS($A$11:$A47)+2,FALSE)","v":2479},{"$f":"HLOOKUP(AZ$7,$J$67:$DO$121,ROWS($A$11:$A47)+2,FALSE)","v":207},{"$f":"HLOOKUP(BA$7,$J$67:$DO$121,ROWS($A$11:$A47)+2,FALSE)","v":4987},{"$f":"HLOOKUP(BB$7,$J$67:$DO$121,ROWS($A$11:$A47)+2,FALSE)","v":7465},{"$f":"HLOOKUP(BC$7,$J$67:$DO$121,ROWS($A$11:$A47)+2,FALSE)","v":485},{"$f":"HLOOKUP(BD$7,$J$67:$DO$121,ROWS($A$11:$A47)+2,FALSE)","v":182},{"$f":"HLOOKUP(BE$7,$J$67:$DO$121,ROWS($A$11:$A47)+2,FALSE)","v":6769},{"$f":"HLOOKUP(BF$7,$J$67:$DO$121,ROWS($A$11:$A47)+2,FALSE)","v":2567},{"$f":"HLOOKUP(BG$7,$J$67:$DO$121,ROWS($A$11:$A47)+2,FALSE)","v":7814},{"$f":"HLOOKUP(BH$7,$J$67:$DO$121,ROWS($A$11:$A47)+2,FALSE)","v":1771},{"$f":"HLOOKUP(BI$7,$J$67:$DO$121,ROWS($A$11:$A47)+2,FALSE)","v":144},{"$f":"HLOOKUP(BJ$7,$J$67:$DO$121,ROWS($A$11:$A47)+2,FALSE)","v":2140},null,null,null,null,{"$f":"HLOOKUP(BO$7+0.5,$J$67:$DO$121,ROWS($A$11:$A47)+2,FALSE)","v":10673},{"$f":"HLOOKUP(BP$7+0.5,$J$67:$DO$121,ROWS($A$11:$A47)+2,FALSE)","v":751},{"$f":"HLOOKUP(BQ$7+0.5,$J$67:$DO$121,ROWS($A$11:$A47)+2,FALSE)","v":1531},{"$f":"HLOOKUP(BR$7+0.5,$J$67:$DO$121,ROWS($A$11:$A47)+2,FALSE)","v":2132},{"$f":"HLOOKUP(BS$7+0.5,$J$67:$DO$121,ROWS($A$11:$A47)+2,FALSE)","v":504},{"$f":"HLOOKUP(BT$7+0.5,$J$67:$DO$121,ROWS($A$11:$A47)+2,FALSE)","v":1767},{"$f":"HLOOKUP(BU$7+0.5,$J$67:$DO$121,ROWS($A$11:$A47)+2,FALSE)","v":1134},{"$f":"HLOOKUP(BV$7+0.5,$J$67:$DO$121,ROWS($A$11:$A47)+2,FALSE)","v":819},{"$f":"HLOOKUP(BW$7+0.5,$J$67:$DO$121,ROWS($A$11:$A47)+2,FALSE)","v":25},{"$f":"HLOOKUP(BX$7+0.5,$J$67:$DO$121,ROWS($A$11:$A47)+2,FALSE)","v":768},{"$f":"HLOOKUP(BY$7+0.5,$J$67:$DO$121,ROWS($A$11:$A47)+2,FALSE)","v":2765},{"$f":"HLOOKUP(BZ$7+0.5,$J$67:$DO$121,ROWS($A$11:$A47)+2,FALSE)","v":2685},{"$f":"HLOOKUP(CA$7+0.5,$J$67:$DO$121,ROWS($A$11:$A47)+2,FALSE)","v":331},{"$f":"HLOOKUP(CB$7+0.5,$J$67:$DO$121,ROWS($A$11:$A47)+2,FALSE)","v":694},{"$f":"HLOOKUP(CC$7+0.5,$J$67:$DO$121,ROWS($A$11:$A47)+2,FALSE)","v":1635},{"$f":"HLOOKUP(CD$7+0.5,$J$67:$DO$121,ROWS($A$11:$A47)+2,FALSE)","v":2077},{"$f":"HLOOKUP(CE$7+0.5,$J$67:$DO$121,ROWS($A$11:$A47)+2,FALSE)","v":757},{"$f":"HLOOKUP(CF$7+0.5,$J$67:$DO$121,ROWS($A$11:$A47)+2,FALSE)","v":494},{"$f":"HLOOKUP(CG$7+0.5,$J$67:$DO$121,ROWS($A$11:$A47)+2,FALSE)","v":1874},{"$f":"HLOOKUP(CH$7+0.5,$J$67:$DO$121,ROWS($A$11:$A47)+2,FALSE)","v":511},{"$f":"HLOOKUP(CI$7+0.5,$J$67:$DO$121,ROWS($A$11:$A47)+2,FALSE)","v":238},{"$f":"HLOOKUP(CJ$7+0.5,$J$67:$DO$121,ROWS($A$11:$A47)+2,FALSE)","v":1666},{"$f":"HLOOKUP(CK$7+0.5,$J$67:$DO$121,ROWS($A$11:$A47)+2,FALSE)","v":1712},{"$f":"HLOOKUP(CL$7+0.5,$J$67:$DO$121,ROWS($A$11:$A47)+2,FALSE)","v":3104},{"$f":"HLOOKUP(CM$7+0.5,$J$67:$DO$121,ROWS($A$11:$A47)+2,FALSE)","v":1327},{"$f":"HLOOKUP(CN$7+0.5,$J$67:$DO$121,ROWS($A$11:$A47)+2,FALSE)","v":105},{"$f":"HLOOKUP(CO$7+0.5,$J$67:$DO$121,ROWS($A$11:$A47)+2,FALSE)","v":569},{"$f":"HLOOKUP(CP$7+0.5,$J$67:$DO$121,ROWS($A$11:$A47)+2,FALSE)","v":450},{"$f":"HLOOKUP(CQ$7+0.5,$J$67:$DO$121,ROWS($A$11:$A47)+2,FALSE)","v":983},{"$f":"HLOOKUP(CR$7+0.5,$J$67:$DO$121,ROWS($A$11:$A47)+2,FALSE)","v":1351},{"$f":"HLOOKUP(CS$7+0.5,$J$67:$DO$121,ROWS($A$11:$A47)+2,FALSE)","v":205},{"$f":"HLOOKUP(CT$7+0.5,$J$67:$DO$121,ROWS($A$11:$A47)+2,FALSE)","v":1028},{"$f":"HLOOKUP(CU$7+0.5,$J$67:$DO$121,ROWS($A$11:$A47)+2,FALSE)","v":380},{"$f":"HLOOKUP(CV$7+0.5,$J$67:$DO$121,ROWS($A$11:$A47)+2,FALSE)","v":1895},{"$f":"HLOOKUP(CW$7+0.5,$J$67:$DO$121,ROWS($A$11:$A47)+2,FALSE)","v":1492},{"$f":"HLOOKUP(CX$7+0.5,$J$67:$DO$121,ROWS($A$11:$A47)+2,FALSE)","v":53},{"$f":"HLOOKUP(CY$7+0.5,$J$67:$DO$121,ROWS($A$11:$A47)+2,FALSE)","v":"N/A"},{"$f":"HLOOKUP(CZ$7+0.5,$J$67:$DO$121,ROWS($A$11:$A47)+2,FALSE)","v":1044},{"$f":"HLOOKUP(DA$7+0.5,$J$67:$DO$121,ROWS($A$11:$A47)+2,FALSE)","v":306},{"$f":"HLOOKUP(DB$7+0.5,$J$67:$DO$121,ROWS($A$11:$A47)+2,FALSE)","v":2269},{"$f":"HLOOKUP(DC$7+0.5,$J$67:$DO$121,ROWS($A$11:$A47)+2,FALSE)","v":314},{"$f":"HLOOKUP(DD$7+0.5,$J$67:$DO$121,ROWS($A$11:$A47)+2,FALSE)","v":1021},{"$f":"HLOOKUP(DE$7+0.5,$J$67:$DO$121,ROWS($A$11:$A47)+2,FALSE)","v":215},{"$f":"HLOOKUP(DF$7+0.5,$J$67:$DO$121,ROWS($A$11:$A47)+2,FALSE)","v":2031},{"$f":"HLOOKUP(DG$7+0.5,$J$67:$DO$121,ROWS($A$11:$A47)+2,FALSE)","v":2241},{"$f":"HLOOKUP(DH$7+0.5,$J$67:$DO$121,ROWS($A$11:$A47)+2,FALSE)","v":318},{"$f":"HLOOKUP(DI$7+0.5,$J$67:$DO$121,ROWS($A$11:$A47)+2,FALSE)","v":173},{"$f":"HLOOKUP(DJ$7+0.5,$J$67:$DO$121,ROWS($A$11:$A47)+2,FALSE)","v":1705},{"$f":"HLOOKUP(DK$7+0.5,$J$67:$DO$121,ROWS($A$11:$A47)+2,FALSE)","v":905},{"$f":"HLOOKUP(DL$7+0.5,$J$67:$DO$121,ROWS($A$11:$A47)+2,FALSE)","v":2197},{"$f":"HLOOKUP(DM$7+0.5,$J$67:$DO$121,ROWS($A$11:$A47)+2,FALSE)","v":934},{"$f":"HLOOKUP(DN$7+0.5,$J$67:$DO$121,ROWS($A$11:$A47)+2,FALSE)","v":187},{"$f":"HLOOKUP(DO$7+0.5,$J$67:$DO$121,ROWS($A$11:$A47)+2,FALSE)","v":1360}]
[null,"Oklahoma",3716264,3181,3065497,21363,528824,18463,1.5795251799990775E-2,{"$f":"HLOOKUP(J$7,$J$67:$DO$121,ROWS($A$11:$A48)+2,FALSE)","v":106511},{"$f":"HLOOKUP(K$7,$J$67:$DO$121,ROWS($A$11:$A48)+2,FALSE)","v":1612},{"$f":"HLOOKUP(L$7,$J$67:$DO$121,ROWS($A$11:$A48)+2,FALSE)","v":1397},{"$f":"HLOOKUP(M$7,$J$67:$DO$121,ROWS($A$11:$A48)+2,FALSE)","v":2759},{"$f":"HLOOKUP(N$7,$J$67:$DO$121,ROWS($A$11:$A48)+2,FALSE)","v":5873},{"$f":"HLOOKUP(O$7,$J$67:$DO$121,ROWS($A$11:$A48)+2,FALSE)","v":9429},{"$f":"HLOOKUP(P$7,$J$67:$DO$121,ROWS($A$11:$A48)+2,FALSE)","v":3184},{"$f":"HLOOKUP(Q$7,$J$67:$DO$121,ROWS($A$11:$A48)+2,FALSE)","v":68},{"$f":"HLOOKUP(R$7,$J$67:$DO$121,ROWS($A$11:$A48)+2,FALSE)","v":109},{"$f":"HLOOKUP(S$7,$J$67:$DO$121,ROWS($A$11:$A48)+2,FALSE)","v":0},{"$f":"HLOOKUP(T$7,$J$67:$DO$121,ROWS($A$11:$A48)+2,FALSE)","v":5438},{"$f":"HLOOKUP(U$7,$J$67:$DO$121,ROWS($A$11:$A48)+2,FALSE)","v":3159},{"$f":"HLOOKUP(V$7,$J$67:$DO$121,ROWS($A$11:$A48)+2,FALSE)","v":773},{"$f":"HLOOKUP(W$7,$J$67:$DO$121,ROWS($A$11:$A48)+2,FALSE)","v":611},{"$f":"HLOOKUP(X$7,$J$67:$DO$121,ROWS($A$11:$A48)+2,FALSE)","v":2679},{"$f":"HLOOKUP(Y$7,$J$67:$DO$121,ROWS($A$11:$A48)+2,FALSE)","v":957},{"$f":"HLOOKUP(Z$7,$J$67:$DO$121,ROWS($A$11:$A48)+2,FALSE)","v":1108},{"$f":"HLOOKUP(AA$7,$J$67:$DO$121,ROWS($A$11:$A48)+2,FALSE)","v":5024},{"$f":"HLOOKUP(AB$7,$J$67:$DO$121,ROWS($A$11:$A48)+2,FALSE)","v":877},{"$f":"HLOOKUP(AC$7,$J$67:$DO$121,ROWS($A$11:$A48)+2,FALSE)","v":2208},{"$f":"HLOOKUP(AD$7,$J$67:$DO$121,ROWS($A$11:$A48)+2,FALSE)","v":298},{"$f":"HLOOKUP(AE$7,$J$67:$DO$121,ROWS($A$11:$A48)+2,FALSE)","v":382},{"$f":"HLOOKUP(AF$7,$J$67:$DO$121,ROWS($A$11:$A48)+2,FALSE)","v":465},{"$f":"HLOOKUP(AG$7,$J$67:$DO$121,ROWS($A$11:$A48)+2,FALSE)","v":1047},{"$f":"HLOOKUP(AH$7,$J$67:$DO$121,ROWS($A$11:$A48)+2,FALSE)","v":599},{"$f":"HLOOKUP(AI$7,$J$67:$DO$121,ROWS($A$11:$A48)+2,FALSE)","v":1733},{"$f":"HLOOKUP(AJ$7,$J$67:$DO$121,ROWS($A$11:$A48)+2,FALSE)","v":4102},{"$f":"HLOOKUP(AK$7,$J$67:$DO$121,ROWS($A$11:$A48)+2,FALSE)","v":448},{"$f":"HLOOKUP(AL$7,$J$67:$DO$121,ROWS($A$11:$A48)+2,FALSE)","v":829},{"$f":"HLOOKUP(AM$7,$J$67:$DO$121,ROWS($A$11:$A48)+2,FALSE)","v":1079},{"$f":"HLOOKUP(AN$7,$J$67:$DO$121,ROWS($A$11:$A48)+2,FALSE)","v":69},{"$f":"HLOOKUP(AO$7,$J$67:$DO$121,ROWS($A$11:$A48)+2,FALSE)","v":890},{"$f":"HLOOKUP(AP$7,$J$67:$DO$121,ROWS($A$11:$A48)+2,FALSE)","v":2723},{"$f":"HLOOKUP(AQ$7,$J$67:$DO$121,ROWS($A$11:$A48)+2,FALSE)","v":1118},{"$f":"HLOOKUP(AR$7,$J$67:$DO$121,ROWS($A$11:$A48)+2,FALSE)","v":1991},{"$f":"HLOOKUP(AS$7,$J$67:$DO$121,ROWS($A$11:$A48)+2,FALSE)","v":139},{"$f":"HLOOKUP(AT$7,$J$67:$DO$121,ROWS($A$11:$A48)+2,FALSE)","v":1385},{"$f":"HLOOKUP(AU$7,$J$67:$DO$121,ROWS($A$11:$A48)+2,FALSE)","v":"N/A"},{"$f":"HLOOKUP(AV$7,$J$67:$DO$121,ROWS($A$11:$A48)+2,FALSE)","v":398},{"$f":"HLOOKUP(AW$7,$J$67:$DO$121,ROWS($A$11:$A48)+2,FALSE)","v":1316},{"$f":"HLOOKUP(AX$7,$J$67:$DO$121,ROWS($A$11:$A48)+2,FALSE)","v":119},{"$f":"HLOOKUP(AY$7,$J$67:$DO$121,ROWS($A$11:$A48)+2,FALSE)","v":596},{"$f":"HLOOKUP(AZ$7,$J$67:$DO$121,ROWS($A$11:$A48)+2,FALSE)","v":83},{"$f":"HLOOKUP(BA$7,$J$67:$DO$121,ROWS($A$11:$A48)+2,FALSE)","v":1872},{"$f":"HLOOKUP(BB$7,$J$67:$DO$121,ROWS($A$11:$A48)+2,FALSE)","v":28238},{"$f":"HLOOKUP(BC$7,$J$67:$DO$121,ROWS($A$11:$A48)+2,FALSE)","v":428},{"$f":"HLOOKUP(BD$7,$J$67:$DO$121,ROWS($A$11:$A48)+2,FALSE)","v":93},{"$f":"HLOOKUP(BE$7,$J$67:$DO$121,ROWS($A$11:$A48)+2,FALSE)","v":2286},{"$f":"HLOOKUP(BF$7,$J$67:$DO$121,ROWS($A$11:$A48)+2,FALSE)","v":2035},{"$f":"HLOOKUP(BG$7,$J$67:$DO$121,ROWS($A$11:$A48)+2,FALSE)","v":221},{"$f":"HLOOKUP(BH$7,$J$67:$DO$121,ROWS($A$11:$A48)+2,FALSE)","v":551},{"$f":"HLOOKUP(BI$7,$J$67:$DO$121,ROWS($A$11:$A48)+2,FALSE)","v":1713},{"$f":"HLOOKUP(BJ$7,$J$67:$DO$121,ROWS($A$11:$A48)+2,FALSE)","v":209},null,null,null,null,{"$f":"HLOOKUP(BO$7+0.5,$J$67:$DO$121,ROWS($A$11:$A48)+2,FALSE)","v":8108},{"$f":"HLOOKUP(BP$7+0.5,$J$67:$DO$121,ROWS($A$11:$A48)+2,FALSE)","v":1283},{"$f":"HLOOKUP(BQ$7+0.5,$J$67:$DO$121,ROWS($A$11:$A48)+2,FALSE)","v":1554},{"$f":"HLOOKUP(BR$7+0.5,$J$67:$DO$121,ROWS($A$11:$A48)+2,FALSE)","v":1013},{"$f":"HLOOKUP(BS$7+0.5,$J$67:$DO$121,ROWS($A$11:$A48)+2,FALSE)","v":1827},{"$f":"HLOOKUP(BT$7+0.5,$J$67:$DO$121,ROWS($A$11:$A48)+2,FALSE)","v":2426},{"$f":"HLOOKUP(BU$7+0.5,$J$67:$DO$121,ROWS($A$11:$A48)+2,FALSE)","v":1286},{"$f":"HLOOKUP(BV$7+0.5,$J$67:$DO$121,ROWS($A$11:$A48)+2,FALSE)","v":129},{"$f":"HLOOKUP(BW$7+0.5,$J$67:$DO$121,ROWS($A$11:$A48)+2,FALSE)","v":164},{"$f":"HLOOKUP(BX$7+0.5,$J$67:$DO$121,ROWS($A$11:$A48)+2,FALSE)","v":253},{"$f":"HLOOKUP(BY$7+0.5,$J$67:$DO$121,ROWS($A$11:$A48)+2,FALSE)","v":1371},{"$f":"HLOOKUP(BZ$7+0.5,$J$67:$DO$121,ROWS($A$11:$A48)+2,FALSE)","v":1688},{"$f":"HLOOKUP(CA$7+0.5,$J$67:$DO$121,ROWS($A$11:$A48)+2,FALSE)","v":864},{"$f":"HLOOKUP(CB$7+0.5,$J$67:$DO$121,ROWS($A$11:$A48)+2,FALSE)","v":668},{"$f":"HLOOKUP(CC$7+0.5,$J$67:$DO$121,ROWS($A$11:$A48)+2,FALSE)","v":1529},{"$f":"HLOOKUP(CD$7+0.5,$J$67:$DO$121,ROWS($A$11:$A48)+2,FALSE)","v":550},{"$f":"HLOOKUP(CE$7+0.5,$J$67:$DO$121,ROWS($A$11:$A48)+2,FALSE)","v":660},{"$f":"HLOOKUP(CF$7+0.5,$J$67:$DO$121,ROWS($A$11:$A48)+2,FALSE)","v":2088},{"$f":"HLOOKUP(CG$7+0.5,$J$67:$DO$121,ROWS($A$11:$A48)+2,FALSE)","v":607},{"$f":"HLOOKUP(CH$7+0.5,$J$67:$DO$121,ROWS($A$11:$A48)+2,FALSE)","v":808},{"$f":"HLOOKUP(CI$7+0.5,$J$67:$DO$121,ROWS($A$11:$A48)+2,FALSE)","v":278},{"$f":"HLOOKUP(CJ$7+0.5,$J$67:$DO$121,ROWS($A$11:$A48)+2,FALSE)","v":407},{"$f":"HLOOKUP(CK$7+0.5,$J$67:$DO$121,ROWS($A$11:$A48)+2,FALSE)","v":481},{"$f":"HLOOKUP(CL$7+0.5,$J$67:$DO$121,ROWS($A$11:$A48)+2,FALSE)","v":478},{"$f":"HLOOKUP(CM$7+0.5,$J$67:$DO$121,ROWS($A$11:$A48)+2,FALSE)","v":369},{"$f":"HLOOKUP(CN$7+0.5,$J$67:$DO$121,ROWS($A$11:$A48)+2,FALSE)","v":789},{"$f":"HLOOKUP(CO$7+0.5,$J$67:$DO$121,ROWS($A$11:$A48)+2,FALSE)","v":1427},{"$f":"HLOOKUP(CP$7+0.5,$J$67:$DO$121,ROWS($A$11:$A48)+2,FALSE)","v":342},{"$f":"HLOOKUP(CQ$7+0.5,$J$67:$DO$121,ROWS($A$11:$A48)+2,FALSE)","v":530},{"$f":"HLOOKUP(CR$7+0.5,$J$67:$DO$121,ROWS($A$11:$A48)+2,FALSE)","v":598},{"$f":"HLOOKUP(CS$7+0.5,$J$67:$DO$121,ROWS($A$11:$A48)+2,FALSE)","v":131},{"$f":"HLOOKUP(CT$7+0.5,$J$67:$DO$121,ROWS($A$11:$A48)+2,FALSE)","v":890},{"$f":"HLOOKUP(CU$7+0.5,$J$67:$DO$121,ROWS($A$11:$A48)+2,FALSE)","v":1280},{"$f":"HLOOKUP(CV$7+0.5,$J$67:$DO$121,ROWS($A$11:$A48)+2,FALSE)","v":743},{"$f":"HLOOKUP(CW$7+0.5,$J$67:$DO$121,ROWS($A$11:$A48)+2,FALSE)","v":1219},{"$f":"HLOOKUP(CX$7+0.5,$J$67:$DO$121,ROWS($A$11:$A48)+2,FALSE)","v":136},{"$f":"HLOOKUP(CY$7+0.5,$J$67:$DO$121,ROWS($A$11:$A48)+2,FALSE)","v":681},{"$f":"HLOOKUP(CZ$7+0.5,$J$67:$DO$121,ROWS($A$11:$A48)+2,FALSE)","v":"N/A"},{"$f":"HLOOKUP(DA$7+0.5,$J$67:$DO$121,ROWS($A$11:$A48)+2,FALSE)","v":300},{"$f":"HLOOKUP(DB$7+0.5,$J$67:$DO$121,ROWS($A$11:$A48)+2,FALSE)","v":1283},{"$f":"HLOOKUP(DC$7+0.5,$J$67:$DO$121,ROWS($A$11:$A48)+2,FALSE)","v":137},{"$f":"HLOOKUP(DD$7+0.5,$J$67:$DO$121,ROWS($A$11:$A48)+2,FALSE)","v":377},{"$f":"HLOOKUP(DE$7+0.5,$J$67:$DO$121,ROWS($A$11:$A48)+2,FALSE)","v":135},{"$f":"HLOOKUP(DF$7+0.5,$J$67:$DO$121,ROWS($A$11:$A48)+2,FALSE)","v":895},{"$f":"HLOOKUP(DG$7+0.5,$J$67:$DO$121,ROWS($A$11:$A48)+2,FALSE)","v":4132},{"$f":"HLOOKUP(DH$7+0.5,$J$67:$DO$121,ROWS($A$11:$A48)+2,FALSE)","v":454},{"$f":"HLOOKUP(DI$7+0.5,$J$67:$DO$121,ROWS($A$11:$A48)+2,FALSE)","v":109},{"$f":"HLOOKUP(DJ$7+0.5,$J$67:$DO$121,ROWS($A$11:$A48)+2,FALSE)","v":1049},{"$f":"HLOOKUP(DK$7+0.5,$J$67:$DO$121,ROWS($A$11:$A48)+2,FALSE)","v":1130},{"$f":"HLOOKUP(DL$7+0.5,$J$67:$DO$121,ROWS($A$11:$A48)+2,FALSE)","v":270},{"$f":"HLOOKUP(DM$7+0.5,$J$67:$DO$121,ROWS($A$11:$A48)+2,FALSE)","v":396},{"$f":"HLOOKUP(DN$7+0.5,$J$67:$DO$121,ROWS($A$11:$A48)+2,FALSE)","v":1012},{"$f":"HLOOKUP(DO$7+0.5,$J$67:$DO$121,ROWS($A$11:$A48)+2,FALSE)","v":222}]
[null,"Oregon",3794008,3282,3110896,20156,545841,17758,1.7306248979531914E-2,{"$f":"HLOOKUP(J$7,$J$67:$DO$121,ROWS($A$11:$A49)+2,FALSE)","v":116700},{"$f":"HLOOKUP(K$7,$J$67:$DO$121,ROWS($A$11:$A49)+2,FALSE)","v":400},{"$f":"HLOOKUP(L$7,$J$67:$DO$121,ROWS($A$11:$A49)+2,FALSE)","v":2027},{"$f":"HLOOKUP(M$7,$J$67:$DO$121,ROWS($A$11:$A49)+2,FALSE)","v":5264},{"$f":"HLOOKUP(N$7,$J$67:$DO$121,ROWS($A$11:$A49)+2,FALSE)","v":246},{"$f":"HLOOKUP(O$7,$J$67:$DO$121,ROWS($A$11:$A49)+2,FALSE)","v":34190},{"$f":"HLOOKUP(P$7,$J$67:$DO$121,ROWS($A$11:$A49)+2,FALSE)","v":2050},{"$f":"HLOOKUP(Q$7,$J$67:$DO$121,ROWS($A$11:$A49)+2,FALSE)","v":270},{"$f":"HLOOKUP(R$7,$J$67:$DO$121,ROWS($A$11:$A49)+2,FALSE)","v":0},{"$f":"HLOOKUP(S$7,$J$67:$DO$121,ROWS($A$11:$A49)+2,FALSE)","v":217},{"$f":"HLOOKUP(T$7,$J$67:$DO$121,ROWS($A$11:$A49)+2,FALSE)","v":2273},{"$f":"HLOOKUP(U$7,$J$67:$DO$121,ROWS($A$11:$A49)+2,FALSE)","v":688},{"$f":"HLOOKUP(V$7,$J$67:$DO$121,ROWS($A$11:$A49)+2,FALSE)","v":2323},{"$f":"HLOOKUP(W$7,$J$67:$DO$121,ROWS($A$11:$A49)+2,FALSE)","v":4129},{"$f":"HLOOKUP(X$7,$J$67:$DO$121,ROWS($A$11:$A49)+2,FALSE)","v":1565},{"$f":"HLOOKUP(Y$7,$J$67:$DO$121,ROWS($A$11:$A49)+2,FALSE)","v":317},{"$f":"HLOOKUP(Z$7,$J$67:$DO$121,ROWS($A$11:$A49)+2,FALSE)","v":161},{"$f":"HLOOKUP(AA$7,$J$67:$DO$121,ROWS($A$11:$A49)+2,FALSE)","v":678},{"$f":"HLOOKUP(AB$7,$J$67:$DO$121,ROWS($A$11:$A49)+2,FALSE)","v":0},{"$f":"HLOOKUP(AC$7,$J$67:$DO$121,ROWS($A$11:$A49)+2,FALSE)","v":0},{"$f":"HLOOKUP(AD$7,$J$67:$DO$121,ROWS($A$11:$A49)+2,FALSE)","v":0},{"$f":"HLOOKUP(AE$7,$J$67:$DO$121,ROWS($A$11:$A49)+2,FALSE)","v":595},{"$f":"HLOOKUP(AF$7,$J$67:$DO$121,ROWS($A$11:$A49)+2,FALSE)","v":1471},{"$f":"HLOOKUP(AG$7,$J$67:$DO$121,ROWS($A$11:$A49)+2,FALSE)","v":1159},{"$f":"HLOOKUP(AH$7,$J$67:$DO$121,ROWS($A$11:$A49)+2,FALSE)","v":668},{"$f":"HLOOKUP(AI$7,$J$67:$DO$121,ROWS($A$11:$A49)+2,FALSE)","v":735},{"$f":"HLOOKUP(AJ$7,$J$67:$DO$121,ROWS($A$11:$A49)+2,FALSE)","v":1786},{"$f":"HLOOKUP(AK$7,$J$67:$DO$121,ROWS($A$11:$A49)+2,FALSE)","v":3386},{"$f":"HLOOKUP(AL$7,$J$67:$DO$121,ROWS($A$11:$A49)+2,FALSE)","v":777},{"$f":"HLOOKUP(AM$7,$J$67:$DO$121,ROWS($A$11:$A49)+2,FALSE)","v":2805},{"$f":"HLOOKUP(AN$7,$J$67:$DO$121,ROWS($A$11:$A49)+2,FALSE)","v":317},{"$f":"HLOOKUP(AO$7,$J$67:$DO$121,ROWS($A$11:$A49)+2,FALSE)","v":544},{"$f":"HLOOKUP(AP$7,$J$67:$DO$121,ROWS($A$11:$A49)+2,FALSE)","v":981},{"$f":"HLOOKUP(AQ$7,$J$67:$DO$121,ROWS($A$11:$A49)+2,FALSE)","v":2538},{"$f":"HLOOKUP(AR$7,$J$67:$DO$121,ROWS($A$11:$A49)+2,FALSE)","v":1040},{"$f":"HLOOKUP(AS$7,$J$67:$DO$121,ROWS($A$11:$A49)+2,FALSE)","v":592},{"$f":"HLOOKUP(AT$7,$J$67:$DO$121,ROWS($A$11:$A49)+2,FALSE)","v":1541},{"$f":"HLOOKUP(AU$7,$J$67:$DO$121,ROWS($A$11:$A49)+2,FALSE)","v":821},{"$f":"HLOOKUP(AV$7,$J$67:$DO$121,ROWS($A$11:$A49)+2,FALSE)","v":"N/A"},{"$f":"HLOOKUP(AW$7,$J$67:$DO$121,ROWS($A$11:$A49)+2,FALSE)","v":1689},{"$f":"HLOOKUP(AX$7,$J$67:$DO$121,ROWS($A$11:$A49)+2,FALSE)","v":0},{"$f":"HLOOKUP(AY$7,$J$67:$DO$121,ROWS($A$11:$A49)+2,FALSE)","v":989},{"$f":"HLOOKUP(AZ$7,$J$67:$DO$121,ROWS($A$11:$A49)+2,FALSE)","v":741},{"$f":"HLOOKUP(BA$7,$J$67:$DO$121,ROWS($A$11:$A49)+2,FALSE)","v":787},{"$f":"HLOOKUP(BB$7,$J$67:$DO$121,ROWS($A$11:$A49)+2,FALSE)","v":3826},{"$f":"HLOOKUP(BC$7,$J$67:$DO$121,ROWS($A$11:$A49)+2,FALSE)","v":2879},{"$f":"HLOOKUP(BD$7,$J$67:$DO$121,ROWS($A$11:$A49)+2,FALSE)","v":456},{"$f":"HLOOKUP(BE$7,$J$67:$DO$121,ROWS($A$11:$A49)+2,FALSE)","v":1124},{"$f":"HLOOKUP(BF$7,$J$67:$DO$121,ROWS($A$11:$A49)+2,FALSE)","v":22793},{"$f":"HLOOKUP(BG$7,$J$67:$DO$121,ROWS($A$11:$A49)+2,FALSE)","v":358},{"$f":"HLOOKUP(BH$7,$J$67:$DO$121,ROWS($A$11:$A49)+2,FALSE)","v":1981},{"$f":"HLOOKUP(BI$7,$J$67:$DO$121,ROWS($A$11:$A49)+2,FALSE)","v":523},{"$f":"HLOOKUP(BJ$7,$J$67:$DO$121,ROWS($A$11:$A49)+2,FALSE)","v":821},null,null,null,null,{"$f":"HLOOKUP(BO$7+0.5,$J$67:$DO$121,ROWS($A$11:$A49)+2,FALSE)","v":7898},{"$f":"HLOOKUP(BP$7+0.5,$J$67:$DO$121,ROWS($A$11:$A49)+2,FALSE)","v":290},{"$f":"HLOOKUP(BQ$7+0.5,$J$67:$DO$121,ROWS($A$11:$A49)+2,FALSE)","v":910},{"$f":"HLOOKUP(BR$7+0.5,$J$67:$DO$121,ROWS($A$11:$A49)+2,FALSE)","v":1539},{"$f":"HLOOKUP(BS$7+0.5,$J$67:$DO$121,ROWS($A$11:$A49)+2,FALSE)","v":217},{"$f":"HLOOKUP(BT$7+0.5,$J$67:$DO$121,ROWS($A$11:$A49)+2,FALSE)","v":4899},{"$f":"HLOOKUP(BU$7+0.5,$J$67:$DO$121,ROWS($A$11:$A49)+2,FALSE)","v":924},{"$f":"HLOOKUP(BV$7+0.5,$J$67:$DO$121,ROWS($A$11:$A49)+2,FALSE)","v":273},{"$f":"HLOOKUP(BW$7+0.5,$J$67:$DO$121,ROWS($A$11:$A49)+2,FALSE)","v":277},{"$f":"HLOOKUP(BX$7+0.5,$J$67:$DO$121,ROWS($A$11:$A49)+2,FALSE)","v":239},{"$f":"HLOOKUP(BY$7+0.5,$J$67:$DO$121,ROWS($A$11:$A49)+2,FALSE)","v":1051},{"$f":"HLOOKUP(BZ$7+0.5,$J$67:$DO$121,ROWS($A$11:$A49)+2,FALSE)","v":572},{"$f":"HLOOKUP(CA$7+0.5,$J$67:$DO$121,ROWS($A$11:$A49)+2,FALSE)","v":1117},{"$f":"HLOOKUP(CB$7+0.5,$J$67:$DO$121,ROWS($A$11:$A49)+2,FALSE)","v":1397},{"$f":"HLOOKUP(CC$7+0.5,$J$67:$DO$121,ROWS($A$11:$A49)+2,FALSE)","v":862},{"$f":"HLOOKUP(CD$7+0.5,$J$67:$DO$121,ROWS($A$11:$A49)+2,FALSE)","v":319},{"$f":"HLOOKUP(CE$7+0.5,$J$67:$DO$121,ROWS($A$11:$A49)+2,FALSE)","v":176},{"$f":"HLOOKUP(CF$7+0.5,$J$67:$DO$121,ROWS($A$11:$A49)+2,FALSE)","v":685},{"$f":"HLOOKUP(CG$7+0.5,$J$67:$DO$121,ROWS($A$11:$A49)+2,FALSE)","v":277},{"$f":"HLOOKUP(CH$7+0.5,$J$67:$DO$121,ROWS($A$11:$A49)+2,FALSE)","v":277},{"$f":"HLOOKUP(CI$7+0.5,$J$67:$DO$121,ROWS($A$11:$A49)+2,FALSE)","v":277},{"$f":"HLOOKUP(CJ$7+0.5,$J$67:$DO$121,ROWS($A$11:$A49)+2,FALSE)","v":405},{"$f":"HLOOKUP(CK$7+0.5,$J$67:$DO$121,ROWS($A$11:$A49)+2,FALSE)","v":1154},{"$f":"HLOOKUP(CL$7+0.5,$J$67:$DO$121,ROWS($A$11:$A49)+2,FALSE)","v":783},{"$f":"HLOOKUP(CM$7+0.5,$J$67:$DO$121,ROWS($A$11:$A49)+2,FALSE)","v":442},{"$f":"HLOOKUP(CN$7+0.5,$J$67:$DO$121,ROWS($A$11:$A49)+2,FALSE)","v":770},{"$f":"HLOOKUP(CO$7+0.5,$J$67:$DO$121,ROWS($A$11:$A49)+2,FALSE)","v":992},{"$f":"HLOOKUP(CP$7+0.5,$J$67:$DO$121,ROWS($A$11:$A49)+2,FALSE)","v":1956},{"$f":"HLOOKUP(CQ$7+0.5,$J$67:$DO$121,ROWS($A$11:$A49)+2,FALSE)","v":574},{"$f":"HLOOKUP(CR$7+0.5,$J$67:$DO$121,ROWS($A$11:$A49)+2,FALSE)","v":1436},{"$f":"HLOOKUP(CS$7+0.5,$J$67:$DO$121,ROWS($A$11:$A49)+2,FALSE)","v":280},{"$f":"HLOOKUP(CT$7+0.5,$J$67:$DO$121,ROWS($A$11:$A49)+2,FALSE)","v":582},{"$f":"HLOOKUP(CU$7+0.5,$J$67:$DO$121,ROWS($A$11:$A49)+2,FALSE)","v":679},{"$f":"HLOOKUP(CV$7+0.5,$J$67:$DO$121,ROWS($A$11:$A49)+2,FALSE)","v":1146},{"$f":"HLOOKUP(CW$7+0.5,$J$67:$DO$121,ROWS($A$11:$A49)+2,FALSE)","v":758},{"$f":"HLOOKUP(CX$7+0.5,$J$67:$DO$121,ROWS($A$11:$A49)+2,FALSE)","v":521},{"$f":"HLOOKUP(CY$7+0.5,$J$67:$DO$121,ROWS($A$11:$A49)+2,FALSE)","v":902},{"$f":"HLOOKUP(CZ$7+0.5,$J$67:$DO$121,ROWS($A$11:$A49)+2,FALSE)","v":683},{"$f":"HLOOKUP(DA$7+0.5,$J$67:$DO$121,ROWS($A$11:$A49)+2,FALSE)","v":"N/A"},{"$f":"HLOOKUP(DB$7+0.5,$J$67:$DO$121,ROWS($A$11:$A49)+2,FALSE)","v":1185},{"$f":"HLOOKUP(DC$7+0.5,$J$67:$DO$121,ROWS($A$11:$A49)+2,FALSE)","v":277},{"$f":"HLOOKUP(DD$7+0.5,$J$67:$DO$121,ROWS($A$11:$A49)+2,FALSE)","v":1271},{"$f":"HLOOKUP(DE$7+0.5,$J$67:$DO$121,ROWS($A$11:$A49)+2,FALSE)","v":581},{"$f":"HLOOKUP(DF$7+0.5,$J$67:$DO$121,ROWS($A$11:$A49)+2,FALSE)","v":455},{"$f":"HLOOKUP(DG$7+0.5,$J$67:$DO$121,ROWS($A$11:$A49)+2,FALSE)","v":1484},{"$f":"HLOOKUP(DH$7+0.5,$J$67:$DO$121,ROWS($A$11:$A49)+2,FALSE)","v":1047},{"$f":"HLOOKUP(DI$7+0.5,$J$67:$DO$121,ROWS($A$11:$A49)+2,FALSE)","v":405},{"$f":"HLOOKUP(DJ$7+0.5,$J$67:$DO$121,ROWS($A$11:$A49)+2,FALSE)","v":593},{"$f":"HLOOKUP(DK$7+0.5,$J$67:$DO$121,ROWS($A$11:$A49)+2,FALSE)","v":3575},{"$f":"HLOOKUP(DL$7+0.5,$J$67:$DO$121,ROWS($A$11:$A49)+2,FALSE)","v":308},{"$f":"HLOOKUP(DM$7+0.5,$J$67:$DO$121,ROWS($A$11:$A49)+2,FALSE)","v":1181},{"$f":"HLOOKUP(DN$7+0.5,$J$67:$DO$121,ROWS($A$11:$A49)+2,FALSE)","v":336},{"$f":"HLOOKUP(DO$7+0.5,$J$67:$DO$121,ROWS($A$11:$A49)+2,FALSE)","v":847}]
[null,"Pennsylvania",12577555,4619,11053022,29699,1239199,26490,3.4935785215065365E-2,{"$f":"HLOOKUP(J$7,$J$67:$DO$121,ROWS($A$11:$A50)+2,FALSE)","v":235580},{"$f":"HLOOKUP(K$7,$J$67:$DO$121,ROWS($A$11:$A50)+2,FALSE)","v":369},{"$f":"HLOOKUP(L$7,$J$67:$DO$121,ROWS($A$11:$A50)+2,FALSE)","v":2185},{"$f":"HLOOKUP(M$7,$J$67:$DO$121,ROWS($A$11:$A50)+2,FALSE)","v":3668},{"$f":"HLOOKUP(N$7,$J$67:$DO$121,ROWS($A$11:$A50)+2,FALSE)","v":807},{"$f":"HLOOKUP(O$7,$J$67:$DO$121,ROWS($A$11:$A50)+2,FALSE)","v":12077},{"$f":"HLOOKUP(P$7,$J$67:$DO$121,ROWS($A$11:$A50)+2,FALSE)","v":3657},{"$f":"HLOOKUP(Q$7,$J$67:$DO$121,ROWS($A$11:$A50)+2,FALSE)","v":4007},{"$f":"HLOOKUP(R$7,$J$67:$DO$121,ROWS($A$11:$A50)+2,FALSE)","v":4608},{"$f":"HLOOKUP(S$7,$J$67:$DO$121,ROWS($A$11:$A50)+2,FALSE)","v":1621},{"$f":"HLOOKUP(T$7,$J$67:$DO$121,ROWS($A$11:$A50)+2,FALSE)","v":18212},{"$f":"HLOOKUP(U$7,$J$67:$DO$121,ROWS($A$11:$A50)+2,FALSE)","v":4644},{"$f":"HLOOKUP(V$7,$J$67:$DO$121,ROWS($A$11:$A50)+2,FALSE)","v":332},{"$f":"HLOOKUP(W$7,$J$67:$DO$121,ROWS($A$11:$A50)+2,FALSE)","v":380},{"$f":"HLOOKUP(X$7,$J$67:$DO$121,ROWS($A$11:$A50)+2,FALSE)","v":4490},{"$f":"HLOOKUP(Y$7,$J$67:$DO$121,ROWS($A$11:$A50)+2,FALSE)","v":2018},{"$f":"HLOOKUP(Z$7,$J$67:$DO$121,ROWS($A$11:$A50)+2,FALSE)","v":227},{"$f":"HLOOKUP(AA$7,$J$67:$DO$121,ROWS($A$11:$A50)+2,FALSE)","v":1426},{"$f":"HLOOKUP(AB$7,$J$67:$DO$121,ROWS($A$11:$A50)+2,FALSE)","v":1675},{"$f":"HLOOKUP(AC$7,$J$67:$DO$121,ROWS($A$11:$A50)+2,FALSE)","v":625},{"$f":"HLOOKUP(AD$7,$J$67:$DO$121,ROWS($A$11:$A50)+2,FALSE)","v":1621},{"$f":"HLOOKUP(AE$7,$J$67:$DO$121,ROWS($A$11:$A50)+2,FALSE)","v":18281},{"$f":"HLOOKUP(AF$7,$J$67:$DO$121,ROWS($A$11:$A50)+2,FALSE)","v":4455},{"$f":"HLOOKUP(AG$7,$J$67:$DO$121,ROWS($A$11:$A50)+2,FALSE)","v":4961},{"$f":"HLOOKUP(AH$7,$J$67:$DO$121,ROWS($A$11:$A50)+2,FALSE)","v":1491},{"$f":"HLOOKUP(AI$7,$J$67:$DO$121,ROWS($A$11:$A50)+2,FALSE)","v":563},{"$f":"HLOOKUP(AJ$7,$J$67:$DO$121,ROWS($A$11:$A50)+2,FALSE)","v":1725},{"$f":"HLOOKUP(AK$7,$J$67:$DO$121,ROWS($A$11:$A50)+2,FALSE)","v":339},{"$f":"HLOOKUP(AL$7,$J$67:$DO$121,ROWS($A$11:$A50)+2,FALSE)","v":551},{"$f":"HLOOKUP(AM$7,$J$67:$DO$121,ROWS($A$11:$A50)+2,FALSE)","v":1810},{"$f":"HLOOKUP(AN$7,$J$67:$DO$121,ROWS($A$11:$A50)+2,FALSE)","v":729},{"$f":"HLOOKUP(AO$7,$J$67:$DO$121,ROWS($A$11:$A50)+2,FALSE)","v":42456},{"$f":"HLOOKUP(AP$7,$J$67:$DO$121,ROWS($A$11:$A50)+2,FALSE)","v":1250},{"$f":"HLOOKUP(AQ$7,$J$67:$DO$121,ROWS($A$11:$A50)+2,FALSE)","v":30481},{"$f":"HLOOKUP(AR$7,$J$67:$DO$121,ROWS($A$11:$A50)+2,FALSE)","v":7611},{"$f":"HLOOKUP(AS$7,$J$67:$DO$121,ROWS($A$11:$A50)+2,FALSE)","v":521},{"$f":"HLOOKUP(AT$7,$J$67:$DO$121,ROWS($A$11:$A50)+2,FALSE)","v":14545},{"$f":"HLOOKUP(AU$7,$J$67:$DO$121,ROWS($A$11:$A50)+2,FALSE)","v":1254},{"$f":"HLOOKUP(AV$7,$J$67:$DO$121,ROWS($A$11:$A50)+2,FALSE)","v":918},{"$f":"HLOOKUP(AW$7,$J$67:$DO$121,ROWS($A$11:$A50)+2,FALSE)","v":"N/A"},{"$f":"HLOOKUP(AX$7,$J$67:$DO$121,ROWS($A$11:$A50)+2,FALSE)","v":377},{"$f":"HLOOKUP(AY$7,$J$67:$DO$121,ROWS($A$11:$A50)+2,FALSE)","v":1315},{"$f":"HLOOKUP(AZ$7,$J$67:$DO$121,ROWS($A$11:$A50)+2,FALSE)","v":966},{"$f":"HLOOKUP(BA$7,$J$67:$DO$121,ROWS($A$11:$A50)+2,FALSE)","v":1611},{"$f":"HLOOKUP(BB$7,$J$67:$DO$121,ROWS($A$11:$A50)+2,FALSE)","v":7778},{"$f":"HLOOKUP(BC$7,$J$67:$DO$121,ROWS($A$11:$A50)+2,FALSE)","v":1048},{"$f":"HLOOKUP(BD$7,$J$67:$DO$121,ROWS($A$11:$A50)+2,FALSE)","v":215},{"$f":"HLOOKUP(BE$7,$J$67:$DO$121,ROWS($A$11:$A50)+2,FALSE)","v":10558},{"$f":"HLOOKUP(BF$7,$J$67:$DO$121,ROWS($A$11:$A50)+2,FALSE)","v":2495},{"$f":"HLOOKUP(BG$7,$J$67:$DO$121,ROWS($A$11:$A50)+2,FALSE)","v":4258},{"$f":"HLOOKUP(BH$7,$J$67:$DO$121,ROWS($A$11:$A50)+2,FALSE)","v":1300},{"$f":"HLOOKUP(BI$7,$J$67:$DO$121,ROWS($A$11:$A50)+2,FALSE)","v":1069},{"$f":"HLOOKUP(BJ$7,$J$67:$DO$121,ROWS($A$11:$A50)+2,FALSE)","v":6275},null,null,null,null,{"$f":"HLOOKUP(BO$7+0.5,$J$67:$DO$121,ROWS($A$11:$A50)+2,FALSE)","v":12249},{"$f":"HLOOKUP(BP$7+0.5,$J$67:$DO$121,ROWS($A$11:$A50)+2,FALSE)","v":368},{"$f":"HLOOKUP(BQ$7+0.5,$J$67:$DO$121,ROWS($A$11:$A50)+2,FALSE)","v":1301},{"$f":"HLOOKUP(BR$7+0.5,$J$67:$DO$121,ROWS($A$11:$A50)+2,FALSE)","v":1451},{"$f":"HLOOKUP(BS$7+0.5,$J$67:$DO$121,ROWS($A$11:$A50)+2,FALSE)","v":601},{"$f":"HLOOKUP(BT$7+0.5,$J$67:$DO$121,ROWS($A$11:$A50)+2,FALSE)","v":2875},{"$f":"HLOOKUP(BU$7+0.5,$J$67:$DO$121,ROWS($A$11:$A50)+2,FALSE)","v":1375},{"$f":"HLOOKUP(BV$7+0.5,$J$67:$DO$121,ROWS($A$11:$A50)+2,FALSE)","v":1559},{"$f":"HLOOKUP(BW$7+0.5,$J$67:$DO$121,ROWS($A$11:$A50)+2,FALSE)","v":1169},{"$f":"HLOOKUP(BX$7+0.5,$J$67:$DO$121,ROWS($A$11:$A50)+2,FALSE)","v":866},{"$f":"HLOOKUP(BY$7+0.5,$J$67:$DO$121,ROWS($A$11:$A50)+2,FALSE)","v":3129},{"$f":"HLOOKUP(BZ$7+0.5,$J$67:$DO$121,ROWS($A$11:$A50)+2,FALSE)","v":1340},{"$f":"HLOOKUP(CA$7+0.5,$J$67:$DO$121,ROWS($A$11:$A50)+2,FALSE)","v":292},{"$f":"HLOOKUP(CB$7+0.5,$J$67:$DO$121,ROWS($A$11:$A50)+2,FALSE)","v":408},{"$f":"HLOOKUP(CC$7+0.5,$J$67:$DO$121,ROWS($A$11:$A50)+2,FALSE)","v":1429},{"$f":"HLOOKUP(CD$7+0.5,$J$67:$DO$121,ROWS($A$11:$A50)+2,FALSE)","v":739},{"$f":"HLOOKUP(CE$7+0.5,$J$67:$DO$121,ROWS($A$11:$A50)+2,FALSE)","v":319},{"$f":"HLOOKUP(CF$7+0.5,$J$67:$DO$121,ROWS($A$11:$A50)+2,FALSE)","v":1201},{"$f":"HLOOKUP(CG$7+0.5,$J$67:$DO$121,ROWS($A$11:$A50)+2,FALSE)","v":766},{"$f":"HLOOKUP(CH$7+0.5,$J$67:$DO$121,ROWS($A$11:$A50)+2,FALSE)","v":382},{"$f":"HLOOKUP(CI$7+0.5,$J$67:$DO$121,ROWS($A$11:$A50)+2,FALSE)","v":895},{"$f":"HLOOKUP(CJ$7+0.5,$J$67:$DO$121,ROWS($A$11:$A50)+2,FALSE)","v":2839},{"$f":"HLOOKUP(CK$7+0.5,$J$67:$DO$121,ROWS($A$11:$A50)+2,FALSE)","v":1178},{"$f":"HLOOKUP(CL$7+0.5,$J$67:$DO$121,ROWS($A$11:$A50)+2,FALSE)","v":2285},{"$f":"HLOOKUP(CM$7+0.5,$J$67:$DO$121,ROWS($A$11:$A50)+2,FALSE)","v":873},{"$f":"HLOOKUP(CN$7+0.5,$J$67:$DO$121,ROWS($A$11:$A50)+2,FALSE)","v":498},{"$f":"HLOOKUP(CO$7+0.5,$J$67:$DO$121,ROWS($A$11:$A50)+2,FALSE)","v":788},{"$f":"HLOOKUP(CP$7+0.5,$J$67:$DO$121,ROWS($A$11:$A50)+2,FALSE)","v":290},{"$f":"HLOOKUP(CQ$7+0.5,$J$67:$DO$121,ROWS($A$11:$A50)+2,FALSE)","v":410},{"$f":"HLOOKUP(CR$7+0.5,$J$67:$DO$121,ROWS($A$11:$A50)+2,FALSE)","v":1177},{"$f":"HLOOKUP(CS$7+0.5,$J$67:$DO$121,ROWS($A$11:$A50)+2,FALSE)","v":531},{"$f":"HLOOKUP(CT$7+0.5,$J$67:$DO$121,ROWS($A$11:$A50)+2,FALSE)","v":5218},{"$f":"HLOOKUP(CU$7+0.5,$J$67:$DO$121,ROWS($A$11:$A50)+2,FALSE)","v":883},{"$f":"HLOOKUP(CV$7+0.5,$J$67:$DO$121,ROWS($A$11:$A50)+2,FALSE)","v":3719},{"$f":"HLOOKUP(CW$7+0.5,$J$67:$DO$121,ROWS($A$11:$A50)+2,FALSE)","v":2053},{"$f":"HLOOKUP(CX$7+0.5,$J$67:$DO$121,ROWS($A$11:$A50)+2,FALSE)","v":517},{"$f":"HLOOKUP(CY$7+0.5,$J$67:$DO$121,ROWS($A$11:$A50)+2,FALSE)","v":3377},{"$f":"HLOOKUP(CZ$7+0.5,$J$67:$DO$121,ROWS($A$11:$A50)+2,FALSE)","v":749},{"$f":"HLOOKUP(DA$7+0.5,$J$67:$DO$121,ROWS($A$11:$A50)+2,FALSE)","v":545},{"$f":"HLOOKUP(DB$7+0.5,$J$67:$DO$121,ROWS($A$11:$A50)+2,FALSE)","v":"N/A"},{"$f":"HLOOKUP(DC$7+0.5,$J$67:$DO$121,ROWS($A$11:$A50)+2,FALSE)","v":327},{"$f":"HLOOKUP(DD$7+0.5,$J$67:$DO$121,ROWS($A$11:$A50)+2,FALSE)","v":651},{"$f":"HLOOKUP(DE$7+0.5,$J$67:$DO$121,ROWS($A$11:$A50)+2,FALSE)","v":927},{"$f":"HLOOKUP(DF$7+0.5,$J$67:$DO$121,ROWS($A$11:$A50)+2,FALSE)","v":626},{"$f":"HLOOKUP(DG$7+0.5,$J$67:$DO$121,ROWS($A$11:$A50)+2,FALSE)","v":2650},{"$f":"HLOOKUP(DH$7+0.5,$J$67:$DO$121,ROWS($A$11:$A50)+2,FALSE)","v":684},{"$f":"HLOOKUP(DI$7+0.5,$J$67:$DO$121,ROWS($A$11:$A50)+2,FALSE)","v":214},{"$f":"HLOOKUP(DJ$7+0.5,$J$67:$DO$121,ROWS($A$11:$A50)+2,FALSE)","v":2596},{"$f":"HLOOKUP(DK$7+0.5,$J$67:$DO$121,ROWS($A$11:$A50)+2,FALSE)","v":1141},{"$f":"HLOOKUP(DL$7+0.5,$J$67:$DO$121,ROWS($A$11:$A50)+2,FALSE)","v":1674},{"$f":"HLOOKUP(DM$7+0.5,$J$67:$DO$121,ROWS($A$11:$A50)+2,FALSE)","v":1081},{"$f":"HLOOKUP(DN$7+0.5,$J$67:$DO$121,ROWS($A$11:$A50)+2,FALSE)","v":936},{"$f":"HLOOKUP(DO$7+0.5,$J$67:$DO$121,ROWS($A$11:$A50)+2,FALSE)","v":2169}]
[null,"Rhode Island",1042240,1435,900283,9035,99603,7344,4.7542505230061148E-3,{"$f":"HLOOKUP(J$7,$J$67:$DO$121,ROWS($A$11:$A51)+2,FALSE)","v":32059},{"$f":"HLOOKUP(K$7,$J$67:$DO$121,ROWS($A$11:$A51)+2,FALSE)","v":136},{"$f":"HLOOKUP(L$7,$J$67:$DO$121,ROWS($A$11:$A51)+2,FALSE)","v":0},{"$f":"HLOOKUP(M$7,$J$67:$DO$121,ROWS($A$11:$A51)+2,FALSE)","v":324},{"$f":"HLOOKUP(N$7,$J$67:$DO$121,ROWS($A$11:$A51)+2,FALSE)","v":0},{"$f":"HLOOKUP(O$7,$J$67:$DO$121,ROWS($A$11:$A51)+2,FALSE)","v":1697},{"$f":"HLOOKUP(P$7,$J$67:$DO$121,ROWS($A$11:$A51)+2,FALSE)","v":59},{"$f":"HLOOKUP(Q$7,$J$67:$DO$121,ROWS($A$11:$A51)+2,FALSE)","v":4090},{"$f":"HLOOKUP(R$7,$J$67:$DO$121,ROWS($A$11:$A51)+2,FALSE)","v":0},{"$f":"HLOOKUP(S$7,$J$67:$DO$121,ROWS($A$11:$A51)+2,FALSE)","v":146},{"$f":"HLOOKUP(T$7,$J$67:$DO$121,ROWS($A$11:$A51)+2,FALSE)","v":1336},{"$f":"HLOOKUP(U$7,$J$67:$DO$121,ROWS($A$11:$A51)+2,FALSE)","v":382},{"$f":"HLOOKUP(V$7,$J$67:$DO$121,ROWS($A$11:$A51)+2,FALSE)","v":274},{"$f":"HLOOKUP(W$7,$J$67:$DO$121,ROWS($A$11:$A51)+2,FALSE)","v":0},{"$f":"HLOOKUP(X$7,$J$67:$DO$121,ROWS($A$11:$A51)+2,FALSE)","v":1210},{"$f":"HLOOKUP(Y$7,$J$67:$DO$121,ROWS($A$11:$A51)+2,FALSE)","v":206},{"$f":"HLOOKUP(Z$7,$J$67:$DO$121,ROWS($A$11:$A51)+2,FALSE)","v":48},{"$f":"HLOOKUP(AA$7,$J$67:$DO$121,ROWS($A$11:$A51)+2,FALSE)","v":0},{"$f":"HLOOKUP(AB$7,$J$67:$DO$121,ROWS($A$11:$A51)+2,FALSE)","v":0},{"$f":"HLOOKUP(AC$7,$J$67:$DO$121,ROWS($A$11:$A51)+2,FALSE)","v":0},{"$f":"HLOOKUP(AD$7,$J$67:$DO$121,ROWS($A$11:$A51)+2,FALSE)","v":447},{"$f":"HLOOKUP(AE$7,$J$67:$DO$121,ROWS($A$11:$A51)+2,FALSE)","v":977},{"$f":"HLOOKUP(AF$7,$J$67:$DO$121,ROWS($A$11:$A51)+2,FALSE)","v":8639},{"$f":"HLOOKUP(AG$7,$J$67:$DO$121,ROWS($A$11:$A51)+2,FALSE)","v":77},{"$f":"HLOOKUP(AH$7,$J$67:$DO$121,ROWS($A$11:$A51)+2,FALSE)","v":47},{"$f":"HLOOKUP(AI$7,$J$67:$DO$121,ROWS($A$11:$A51)+2,FALSE)","v":0},{"$f":"HLOOKUP(AJ$7,$J$67:$DO$121,ROWS($A$11:$A51)+2,FALSE)","v":47},{"$f":"HLOOKUP(AK$7,$J$67:$DO$121,ROWS($A$11:$A51)+2,FALSE)","v":0},{"$f":"HLOOKUP(AL$7,$J$67:$DO$121,ROWS($A$11:$A51)+2,FALSE)","v":0},{"$f":"HLOOKUP(AM$7,$J$67:$DO$121,ROWS($A$11:$A51)+2,FALSE)","v":297},{"$f":"HLOOKUP(AN$7,$J$67:$DO$121,ROWS($A$11:$A51)+2,FALSE)","v":333},{"$f":"HLOOKUP(AO$7,$J$67:$DO$121,ROWS($A$11:$A51)+2,FALSE)","v":1868},{"$f":"HLOOKUP(AP$7,$J$67:$DO$121,ROWS($A$11:$A51)+2,FALSE)","v":0},{"$f":"HLOOKUP(AQ$7,$J$67:$DO$121,ROWS($A$11:$A51)+2,FALSE)","v":4583},{"$f":"HLOOKUP(AR$7,$J$67:$DO$121,ROWS($A$11:$A51)+2,FALSE)","v":1376},{"$f":"HLOOKUP(AS$7,$J$67:$DO$121,ROWS($A$11:$A51)+2,FALSE)","v":62},{"$f":"HLOOKUP(AT$7,$J$67:$DO$121,ROWS($A$11:$A51)+2,FALSE)","v":0},{"$f":"HLOOKUP(AU$7,$J$67:$DO$121,ROWS($A$11:$A51)+2,FALSE)","v":199},{"$f":"HLOOKUP(AV$7,$J$67:$DO$121,ROWS($A$11:$A51)+2,FALSE)","v":0},{"$f":"HLOOKUP(AW$7,$J$67:$DO$121,ROWS($A$11:$A51)+2,FALSE)","v":560},{"$f":"HLOOKUP(AX$7,$J$67:$DO$121,ROWS($A$11:$A51)+2,FALSE)","v":"N/A"},{"$f":"HLOOKUP(AY$7,$J$67:$DO$121,ROWS($A$11:$A51)+2,FALSE)","v":61},{"$f":"HLOOKUP(AZ$7,$J$67:$DO$121,ROWS($A$11:$A51)+2,FALSE)","v":48},{"$f":"HLOOKUP(BA$7,$J$67:$DO$121,ROWS($A$11:$A51)+2,FALSE)","v":71},{"$f":"HLOOKUP(BB$7,$J$67:$DO$121,ROWS($A$11:$A51)+2,FALSE)","v":678},{"$f":"HLOOKUP(BC$7,$J$67:$DO$121,ROWS($A$11:$A51)+2,FALSE)","v":0},{"$f":"HLOOKUP(BD$7,$J$67:$DO$121,ROWS($A$11:$A51)+2,FALSE)","v":72},{"$f":"HLOOKUP(BE$7,$J$67:$DO$121,ROWS($A$11:$A51)+2,FALSE)","v":1399},{"$f":"HLOOKUP(BF$7,$J$67:$DO$121,ROWS($A$11:$A51)+2,FALSE)","v":160},{"$f":"HLOOKUP(BG$7,$J$67:$DO$121,ROWS($A$11:$A51)+2,FALSE)","v":150},{"$f":"HLOOKUP(BH$7,$J$67:$DO$121,ROWS($A$11:$A51)+2,FALSE)","v":0},{"$f":"HLOOKUP(BI$7,$J$67:$DO$121,ROWS($A$11:$A51)+2,FALSE)","v":0},{"$f":"HLOOKUP(BJ$7,$J$67:$DO$121,ROWS($A$11:$A51)+2,FALSE)","v":276},null,null,null,null,{"$f":"HLOOKUP(BO$7+0.5,$J$67:$DO$121,ROWS($A$11:$A51)+2,FALSE)","v":4070},{"$f":"HLOOKUP(BP$7+0.5,$J$67:$DO$121,ROWS($A$11:$A51)+2,FALSE)","v":214},{"$f":"HLOOKUP(BQ$7+0.5,$J$67:$DO$121,ROWS($A$11:$A51)+2,FALSE)","v":291},{"$f":"HLOOKUP(BR$7+0.5,$J$67:$DO$121,ROWS($A$11:$A51)+2,FALSE)","v":286},{"$f":"HLOOKUP(BS$7+0.5,$J$67:$DO$121,ROWS($A$11:$A51)+2,FALSE)","v":291},{"$f":"HLOOKUP(BT$7+0.5,$J$67:$DO$121,ROWS($A$11:$A51)+2,FALSE)","v":791},{"$f":"HLOOKUP(BU$7+0.5,$J$67:$DO$121,ROWS($A$11:$A51)+2,FALSE)","v":98},{"$f":"HLOOKUP(BV$7+0.5,$J$67:$DO$121,ROWS($A$11:$A51)+2,FALSE)","v":1497},{"$f":"HLOOKUP(BW$7+0.5,$J$67:$DO$121,ROWS($A$11:$A51)+2,FALSE)","v":291},{"$f":"HLOOKUP(BX$7+0.5,$J$67:$DO$121,ROWS($A$11:$A51)+2,FALSE)","v":240},{"$f":"HLOOKUP(BY$7+0.5,$J$67:$DO$121,ROWS($A$11:$A51)+2,FALSE)","v":778},{"$f":"HLOOKUP(BZ$7+0.5,$J$67:$DO$121,ROWS($A$11:$A51)+2,FALSE)","v":377},{"$f":"HLOOKUP(CA$7+0.5,$J$67:$DO$121,ROWS($A$11:$A51)+2,FALSE)","v":546},{"$f":"HLOOKUP(CB$7+0.5,$J$67:$DO$121,ROWS($A$11:$A51)+2,FALSE)","v":291},{"$f":"HLOOKUP(CC$7+0.5,$J$67:$DO$121,ROWS($A$11:$A51)+2,FALSE)","v":768},{"$f":"HLOOKUP(CD$7+0.5,$J$67:$DO$121,ROWS($A$11:$A51)+2,FALSE)","v":334},{"$f":"HLOOKUP(CE$7+0.5,$J$67:$DO$121,ROWS($A$11:$A51)+2,FALSE)","v":79},{"$f":"HLOOKUP(CF$7+0.5,$J$67:$DO$121,ROWS($A$11:$A51)+2,FALSE)","v":291},{"$f":"HLOOKUP(CG$7+0.5,$J$67:$DO$121,ROWS($A$11:$A51)+2,FALSE)","v":291},{"$f":"HLOOKUP(CH$7+0.5,$J$67:$DO$121,ROWS($A$11:$A51)+2,FALSE)","v":291},{"$f":"HLOOKUP(CI$7+0.5,$J$67:$DO$121,ROWS($A$11:$A51)+2,FALSE)","v":350},{"$f":"HLOOKUP(CJ$7+0.5,$J$67:$DO$121,ROWS($A$11:$A51)+2,FALSE)","v":676},{"$f":"HLOOKUP(CK$7+0.5,$J$67:$DO$121,ROWS($A$11:$A51)+2,FALSE)","v":1836},{"$f":"HLOOKUP(CL$7+0.5,$J$67:$DO$121,ROWS($A$11:$A51)+2,FALSE)","v":125},{"$f":"HLOOKUP(CM$7+0.5,$J$67:$DO$121,ROWS($A$11:$A51)+2,FALSE)","v":78},{"$f":"HLOOKUP(CN$7+0.5,$J$67:$DO$121,ROWS($A$11:$A51)+2,FALSE)","v":291},{"$f":"HLOOKUP(CO$7+0.5,$J$67:$DO$121,ROWS($A$11:$A51)+2,FALSE)","v":78},{"$f":"HLOOKUP(CP$7+0.5,$J$67:$DO$121,ROWS($A$11:$A51)+2,FALSE)","v":291},{"$f":"HLOOKUP(CQ$7+0.5,$J$67:$DO$121,ROWS($A$11:$A51)+2,FALSE)","v":291},{"$f":"HLOOKUP(CR$7+0.5,$J$67:$DO$121,ROWS($A$11:$A51)+2,FALSE)","v":259},{"$f":"HLOOKUP(CS$7+0.5,$J$67:$DO$121,ROWS($A$11:$A51)+2,FALSE)","v":322},{"$f":"HLOOKUP(CT$7+0.5,$J$67:$DO$121,ROWS($A$11:$A51)+2,FALSE)","v":649},{"$f":"HLOOKUP(CU$7+0.5,$J$67:$DO$121,ROWS($A$11:$A51)+2,FALSE)","v":291},{"$f":"HLOOKUP(CV$7+0.5,$J$67:$DO$121,ROWS($A$11:$A51)+2,FALSE)","v":1398},{"$f":"HLOOKUP(CW$7+0.5,$J$67:$DO$121,ROWS($A$11:$A51)+2,FALSE)","v":1080},{"$f":"HLOOKUP(CX$7+0.5,$J$67:$DO$121,ROWS($A$11:$A51)+2,FALSE)","v":103},{"$f":"HLOOKUP(CY$7+0.5,$J$67:$DO$121,ROWS($A$11:$A51)+2,FALSE)","v":291},{"$f":"HLOOKUP(CZ$7+0.5,$J$67:$DO$121,ROWS($A$11:$A51)+2,FALSE)","v":331},{"$f":"HLOOKUP(DA$7+0.5,$J$67:$DO$121,ROWS($A$11:$A51)+2,FALSE)","v":291},{"$f":"HLOOKUP(DB$7+0.5,$J$67:$DO$121,ROWS($A$11:$A51)+2,FALSE)","v":461},{"$f":"HLOOKUP(DC$7+0.5,$J$67:$DO$121,ROWS($A$11:$A51)+2,FALSE)","v":"N/A"},{"$f":"HLOOKUP(DD$7+0.5,$J$67:$DO$121,ROWS($A$11:$A51)+2,FALSE)","v":105},{"$f":"HLOOKUP(DE$7+0.5,$J$67:$DO$121,ROWS($A$11:$A51)+2,FALSE)","v":78},{"$f":"HLOOKUP(DF$7+0.5,$J$67:$DO$121,ROWS($A$11:$A51)+2,FALSE)","v":118},{"$f":"HLOOKUP(DG$7+0.5,$J$67:$DO$121,ROWS($A$11:$A51)+2,FALSE)","v":500},{"$f":"HLOOKUP(DH$7+0.5,$J$67:$DO$121,ROWS($A$11:$A51)+2,FALSE)","v":291},{"$f":"HLOOKUP(DI$7+0.5,$J$67:$DO$121,ROWS($A$11:$A51)+2,FALSE)","v":122},{"$f":"HLOOKUP(DJ$7+0.5,$J$67:$DO$121,ROWS($A$11:$A51)+2,FALSE)","v":908},{"$f":"HLOOKUP(DK$7+0.5,$J$67:$DO$121,ROWS($A$11:$A51)+2,FALSE)","v":206},{"$f":"HLOOKUP(DL$7+0.5,$J$67:$DO$121,ROWS($A$11:$A51)+2,FALSE)","v":233},{"$f":"HLOOKUP(DM$7+0.5,$J$67:$DO$121,ROWS($A$11:$A51)+2,FALSE)","v":291},{"$f":"HLOOKUP(DN$7+0.5,$J$67:$DO$121,ROWS($A$11:$A51)+2,FALSE)","v":291},{"$f":"HLOOKUP(DO$7+0.5,$J$67:$DO$121,ROWS($A$11:$A51)+2,FALSE)","v":353}]
[null,"South Carolina",4577399,3786,3870879,23788,537961,21768,2.2606528711986498E-2,{"$f":"HLOOKUP(J$7,$J$67:$DO$121,ROWS($A$11:$A52)+2,FALSE)","v":152441},{"$f":"HLOOKUP(K$7,$J$67:$DO$121,ROWS($A$11:$A52)+2,FALSE)","v":1741},{"$f":"HLOOKUP(L$7,$J$67:$DO$121,ROWS($A$11:$A52)+2,FALSE)","v":1670},{"$f":"HLOOKUP(M$7,$J$67:$DO$121,ROWS($A$11:$A52)+2,FALSE)","v":1457},{"$f":"HLOOKUP(N$7,$J$67:$DO$121,ROWS($A$11:$A52)+2,FALSE)","v":365},{"$f":"HLOOKUP(O$7,$J$67:$DO$121,ROWS($A$11:$A52)+2,FALSE)","v":4691},{"$f":"HLOOKUP(P$7,$J$67:$DO$121,ROWS($A$11:$A52)+2,FALSE)","v":1867},{"$f":"HLOOKUP(Q$7,$J$67:$DO$121,ROWS($A$11:$A52)+2,FALSE)","v":3998},{"$f":"HLOOKUP(R$7,$J$67:$DO$121,ROWS($A$11:$A52)+2,FALSE)","v":249},{"$f":"HLOOKUP(S$7,$J$67:$DO$121,ROWS($A$11:$A52)+2,FALSE)","v":38},{"$f":"HLOOKUP(T$7,$J$67:$DO$121,ROWS($A$11:$A52)+2,FALSE)","v":16060},{"$f":"HLOOKUP(U$7,$J$67:$DO$121,ROWS($A$11:$A52)+2,FALSE)","v":17486},{"$f":"HLOOKUP(V$7,$J$67:$DO$121,ROWS($A$11:$A52)+2,FALSE)","v":813},{"$f":"HLOOKUP(W$7,$J$67:$DO$121,ROWS($A$11:$A52)+2,FALSE)","v":233},{"$f":"HLOOKUP(X$7,$J$67:$DO$121,ROWS($A$11:$A52)+2,FALSE)","v":4253},{"$f":"HLOOKUP(Y$7,$J$67:$DO$121,ROWS($A$11:$A52)+2,FALSE)","v":2174},{"$f":"HLOOKUP(Z$7,$J$67:$DO$121,ROWS($A$11:$A52)+2,FALSE)","v":703},{"$f":"HLOOKUP(AA$7,$J$67:$DO$121,ROWS($A$11:$A52)+2,FALSE)","v":514},{"$f":"HLOOKUP(AB$7,$J$67:$DO$121,ROWS($A$11:$A52)+2,FALSE)","v":2211},{"$f":"HLOOKUP(AC$7,$J$67:$DO$121,ROWS($A$11:$A52)+2,FALSE)","v":2059},{"$f":"HLOOKUP(AD$7,$J$67:$DO$121,ROWS($A$11:$A52)+2,FALSE)","v":603},{"$f":"HLOOKUP(AE$7,$J$67:$DO$121,ROWS($A$11:$A52)+2,FALSE)","v":5184},{"$f":"HLOOKUP(AF$7,$J$67:$DO$121,ROWS($A$11:$A52)+2,FALSE)","v":3765},{"$f":"HLOOKUP(AG$7,$J$67:$DO$121,ROWS($A$11:$A52)+2,FALSE)","v":3709},{"$f":"HLOOKUP(AH$7,$J$67:$DO$121,ROWS($A$11:$A52)+2,FALSE)","v":818},{"$f":"HLOOKUP(AI$7,$J$67:$DO$121,ROWS($A$11:$A52)+2,FALSE)","v":1175},{"$f":"HLOOKUP(AJ$7,$J$67:$DO$121,ROWS($A$11:$A52)+2,FALSE)","v":1371},{"$f":"HLOOKUP(AK$7,$J$67:$DO$121,ROWS($A$11:$A52)+2,FALSE)","v":0},{"$f":"HLOOKUP(AL$7,$J$67:$DO$121,ROWS($A$11:$A52)+2,FALSE)","v":0},{"$f":"HLOOKUP(AM$7,$J$67:$DO$121,ROWS($A$11:$A52)+2,FALSE)","v":1173},{"$f":"HLOOKUP(AN$7,$J$67:$DO$121,ROWS($A$11:$A52)+2,FALSE)","v":486},{"$f":"HLOOKUP(AO$7,$J$67:$DO$121,ROWS($A$11:$A52)+2,FALSE)","v":4908},{"$f":"HLOOKUP(AP$7,$J$67:$DO$121,ROWS($A$11:$A52)+2,FALSE)","v":1390},{"$f":"HLOOKUP(AQ$7,$J$67:$DO$121,ROWS($A$11:$A52)+2,FALSE)","v":7912},{"$f":"HLOOKUP(AR$7,$J$67:$DO$121,ROWS($A$11:$A52)+2,FALSE)","v":20749},{"$f":"HLOOKUP(AS$7,$J$67:$DO$121,ROWS($A$11:$A52)+2,FALSE)","v":118},{"$f":"HLOOKUP(AT$7,$J$67:$DO$121,ROWS($A$11:$A52)+2,FALSE)","v":3883},{"$f":"HLOOKUP(AU$7,$J$67:$DO$121,ROWS($A$11:$A52)+2,FALSE)","v":1458},{"$f":"HLOOKUP(AV$7,$J$67:$DO$121,ROWS($A$11:$A52)+2,FALSE)","v":1020},{"$f":"HLOOKUP(AW$7,$J$67:$DO$121,ROWS($A$11:$A52)+2,FALSE)","v":4689},{"$f":"HLOOKUP(AX$7,$J$67:$DO$121,ROWS($A$11:$A52)+2,FALSE)","v":154},{"$f":"HLOOKUP(AY$7,$J$67:$DO$121,ROWS($A$11:$A52)+2,FALSE)","v":"N/A"},{"$f":"HLOOKUP(AZ$7,$J$67:$DO$121,ROWS($A$11:$A52)+2,FALSE)","v":95},{"$f":"HLOOKUP(BA$7,$J$67:$DO$121,ROWS($A$11:$A52)+2,FALSE)","v":3816},{"$f":"HLOOKUP(BB$7,$J$67:$DO$121,ROWS($A$11:$A52)+2,FALSE)","v":4965},{"$f":"HLOOKUP(BC$7,$J$67:$DO$121,ROWS($A$11:$A52)+2,FALSE)","v":455},{"$f":"HLOOKUP(BD$7,$J$67:$DO$121,ROWS($A$11:$A52)+2,FALSE)","v":478},{"$f":"HLOOKUP(BE$7,$J$67:$DO$121,ROWS($A$11:$A52)+2,FALSE)","v":9786},{"$f":"HLOOKUP(BF$7,$J$67:$DO$121,ROWS($A$11:$A52)+2,FALSE)","v":3070},{"$f":"HLOOKUP(BG$7,$J$67:$DO$121,ROWS($A$11:$A52)+2,FALSE)","v":1190},{"$f":"HLOOKUP(BH$7,$J$67:$DO$121,ROWS($A$11:$A52)+2,FALSE)","v":1057},{"$f":"HLOOKUP(BI$7,$J$67:$DO$121,ROWS($A$11:$A52)+2,FALSE)","v":382},{"$f":"HLOOKUP(BJ$7,$J$67:$DO$121,ROWS($A$11:$A52)+2,FALSE)","v":269},null,null,null,null,{"$f":"HLOOKUP(BO$7+0.5,$J$67:$DO$121,ROWS($A$11:$A52)+2,FALSE)","v":10548},{"$f":"HLOOKUP(BP$7+0.5,$J$67:$DO$121,ROWS($A$11:$A52)+2,FALSE)","v":721},{"$f":"HLOOKUP(BQ$7+0.5,$J$67:$DO$121,ROWS($A$11:$A52)+2,FALSE)","v":1199},{"$f":"HLOOKUP(BR$7+0.5,$J$67:$DO$121,ROWS($A$11:$A52)+2,FALSE)","v":870},{"$f":"HLOOKUP(BS$7+0.5,$J$67:$DO$121,ROWS($A$11:$A52)+2,FALSE)","v":280},{"$f":"HLOOKUP(BT$7+0.5,$J$67:$DO$121,ROWS($A$11:$A52)+2,FALSE)","v":1983},{"$f":"HLOOKUP(BU$7+0.5,$J$67:$DO$121,ROWS($A$11:$A52)+2,FALSE)","v":1378},{"$f":"HLOOKUP(BV$7+0.5,$J$67:$DO$121,ROWS($A$11:$A52)+2,FALSE)","v":2132},{"$f":"HLOOKUP(BW$7+0.5,$J$67:$DO$121,ROWS($A$11:$A52)+2,FALSE)","v":274},{"$f":"HLOOKUP(BX$7+0.5,$J$67:$DO$121,ROWS($A$11:$A52)+2,FALSE)","v":63},{"$f":"HLOOKUP(BY$7+0.5,$J$67:$DO$121,ROWS($A$11:$A52)+2,FALSE)","v":3907},{"$f":"HLOOKUP(BZ$7+0.5,$J$67:$DO$121,ROWS($A$11:$A52)+2,FALSE)","v":3100},{"$f":"HLOOKUP(CA$7+0.5,$J$67:$DO$121,ROWS($A$11:$A52)+2,FALSE)","v":521},{"$f":"HLOOKUP(CB$7+0.5,$J$67:$DO$121,ROWS($A$11:$A52)+2,FALSE)","v":207},{"$f":"HLOOKUP(CC$7+0.5,$J$67:$DO$121,ROWS($A$11:$A52)+2,FALSE)","v":1651},{"$f":"HLOOKUP(CD$7+0.5,$J$67:$DO$121,ROWS($A$11:$A52)+2,FALSE)","v":884},{"$f":"HLOOKUP(CE$7+0.5,$J$67:$DO$121,ROWS($A$11:$A52)+2,FALSE)","v":870},{"$f":"HLOOKUP(CF$7+0.5,$J$67:$DO$121,ROWS($A$11:$A52)+2,FALSE)","v":612},{"$f":"HLOOKUP(CG$7+0.5,$J$67:$DO$121,ROWS($A$11:$A52)+2,FALSE)","v":1215},{"$f":"HLOOKUP(CH$7+0.5,$J$67:$DO$121,ROWS($A$11:$A52)+2,FALSE)","v":986},{"$f":"HLOOKUP(CI$7+0.5,$J$67:$DO$121,ROWS($A$11:$A52)+2,FALSE)","v":448},{"$f":"HLOOKUP(CJ$7+0.5,$J$67:$DO$121,ROWS($A$11:$A52)+2,FALSE)","v":2183},{"$f":"HLOOKUP(CK$7+0.5,$J$67:$DO$121,ROWS($A$11:$A52)+2,FALSE)","v":1826},{"$f":"HLOOKUP(CL$7+0.5,$J$67:$DO$121,ROWS($A$11:$A52)+2,FALSE)","v":1403},{"$f":"HLOOKUP(CM$7+0.5,$J$67:$DO$121,ROWS($A$11:$A52)+2,FALSE)","v":463},{"$f":"HLOOKUP(CN$7+0.5,$J$67:$DO$121,ROWS($A$11:$A52)+2,FALSE)","v":681},{"$f":"HLOOKUP(CO$7+0.5,$J$67:$DO$121,ROWS($A$11:$A52)+2,FALSE)","v":797},{"$f":"HLOOKUP(CP$7+0.5,$J$67:$DO$121,ROWS($A$11:$A52)+2,FALSE)","v":296},{"$f":"HLOOKUP(CQ$7+0.5,$J$67:$DO$121,ROWS($A$11:$A52)+2,FALSE)","v":296},{"$f":"HLOOKUP(CR$7+0.5,$J$67:$DO$121,ROWS($A$11:$A52)+2,FALSE)","v":793},{"$f":"HLOOKUP(CS$7+0.5,$J$67:$DO$121,ROWS($A$11:$A52)+2,FALSE)","v":296},{"$f":"HLOOKUP(CT$7+0.5,$J$67:$DO$121,ROWS($A$11:$A52)+2,FALSE)","v":1660},{"$f":"HLOOKUP(CU$7+0.5,$J$67:$DO$121,ROWS($A$11:$A52)+2,FALSE)","v":1444},{"$f":"HLOOKUP(CV$7+0.5,$J$67:$DO$121,ROWS($A$11:$A52)+2,FALSE)","v":2045},{"$f":"HLOOKUP(CW$7+0.5,$J$67:$DO$121,ROWS($A$11:$A52)+2,FALSE)","v":3397},{"$f":"HLOOKUP(CX$7+0.5,$J$67:$DO$121,ROWS($A$11:$A52)+2,FALSE)","v":196},{"$f":"HLOOKUP(CY$7+0.5,$J$67:$DO$121,ROWS($A$11:$A52)+2,FALSE)","v":1190},{"$f":"HLOOKUP(CZ$7+0.5,$J$67:$DO$121,ROWS($A$11:$A52)+2,FALSE)","v":1353},{"$f":"HLOOKUP(DA$7+0.5,$J$67:$DO$121,ROWS($A$11:$A52)+2,FALSE)","v":951},{"$f":"HLOOKUP(DB$7+0.5,$J$67:$DO$121,ROWS($A$11:$A52)+2,FALSE)","v":1531},{"$f":"HLOOKUP(DC$7+0.5,$J$67:$DO$121,ROWS($A$11:$A52)+2,FALSE)","v":179},{"$f":"HLOOKUP(DD$7+0.5,$J$67:$DO$121,ROWS($A$11:$A52)+2,FALSE)","v":"N/A"},{"$f":"HLOOKUP(DE$7+0.5,$J$67:$DO$121,ROWS($A$11:$A52)+2,FALSE)","v":109},{"$f":"HLOOKUP(DF$7+0.5,$J$67:$DO$121,ROWS($A$11:$A52)+2,FALSE)","v":1732},{"$f":"HLOOKUP(DG$7+0.5,$J$67:$DO$121,ROWS($A$11:$A52)+2,FALSE)","v":1539},{"$f":"HLOOKUP(DH$7+0.5,$J$67:$DO$121,ROWS($A$11:$A52)+2,FALSE)","v":437},{"$f":"HLOOKUP(DI$7+0.5,$J$67:$DO$121,ROWS($A$11:$A52)+2,FALSE)","v":500},{"$f":"HLOOKUP(DJ$7+0.5,$J$67:$DO$121,ROWS($A$11:$A52)+2,FALSE)","v":2245},{"$f":"HLOOKUP(DK$7+0.5,$J$67:$DO$121,ROWS($A$11:$A52)+2,FALSE)","v":1589},{"$f":"HLOOKUP(DL$7+0.5,$J$67:$DO$121,ROWS($A$11:$A52)+2,FALSE)","v":536},{"$f":"HLOOKUP(DM$7+0.5,$J$67:$DO$121,ROWS($A$11:$A52)+2,FALSE)","v":639},{"$f":"HLOOKUP(DN$7+0.5,$J$67:$DO$121,ROWS($A$11:$A52)+2,FALSE)","v":524},{"$f":"HLOOKUP(DO$7+0.5,$J$67:$DO$121,ROWS($A$11:$A52)+2,FALSE)","v":229}]
[null,"South Dakota",805616,1372,680993,6027,96805,5853,3.8226493568585614E-3,{"$f":"HLOOKUP(J$7,$J$67:$DO$121,ROWS($A$11:$A53)+2,FALSE)","v":25777},{"$f":"HLOOKUP(K$7,$J$67:$DO$121,ROWS($A$11:$A53)+2,FALSE)","v":325},{"$f":"HLOOKUP(L$7,$J$67:$DO$121,ROWS($A$11:$A53)+2,FALSE)","v":25},{"$f":"HLOOKUP(M$7,$J$67:$DO$121,ROWS($A$11:$A53)+2,FALSE)","v":745},{"$f":"HLOOKUP(N$7,$J$67:$DO$121,ROWS($A$11:$A53)+2,FALSE)","v":61},{"$f":"HLOOKUP(O$7,$J$67:$DO$121,ROWS($A$11:$A53)+2,FALSE)","v":1338},{"$f":"HLOOKUP(P$7,$J$67:$DO$121,ROWS($A$11:$A53)+2,FALSE)","v":807},{"$f":"HLOOKUP(Q$7,$J$67:$DO$121,ROWS($A$11:$A53)+2,FALSE)","v":0},{"$f":"HLOOKUP(R$7,$J$67:$DO$121,ROWS($A$11:$A53)+2,FALSE)","v":0},{"$f":"HLOOKUP(S$7,$J$67:$DO$121,ROWS($A$11:$A53)+2,FALSE)","v":0},{"$f":"HLOOKUP(T$7,$J$67:$DO$121,ROWS($A$11:$A53)+2,FALSE)","v":251},{"$f":"HLOOKUP(U$7,$J$67:$DO$121,ROWS($A$11:$A53)+2,FALSE)","v":24},{"$f":"HLOOKUP(V$7,$J$67:$DO$121,ROWS($A$11:$A53)+2,FALSE)","v":75},{"$f":"HLOOKUP(W$7,$J$67:$DO$121,ROWS($A$11:$A53)+2,FALSE)","v":457},{"$f":"HLOOKUP(X$7,$J$67:$DO$121,ROWS($A$11:$A53)+2,FALSE)","v":80},{"$f":"HLOOKUP(Y$7,$J$67:$DO$121,ROWS($A$11:$A53)+2,FALSE)","v":439},{"$f":"HLOOKUP(Z$7,$J$67:$DO$121,ROWS($A$11:$A53)+2,FALSE)","v":3520},{"$f":"HLOOKUP(AA$7,$J$67:$DO$121,ROWS($A$11:$A53)+2,FALSE)","v":571},{"$f":"HLOOKUP(AB$7,$J$67:$DO$121,ROWS($A$11:$A53)+2,FALSE)","v":82},{"$f":"HLOOKUP(AC$7,$J$67:$DO$121,ROWS($A$11:$A53)+2,FALSE)","v":129},{"$f":"HLOOKUP(AD$7,$J$67:$DO$121,ROWS($A$11:$A53)+2,FALSE)","v":0},{"$f":"HLOOKUP(AE$7,$J$67:$DO$121,ROWS($A$11:$A53)+2,FALSE)","v":0},{"$f":"HLOOKUP(AF$7,$J$67:$DO$121,ROWS($A$11:$A53)+2,FALSE)","v":407},{"$f":"HLOOKUP(AG$7,$J$67:$DO$121,ROWS($A$11:$A53)+2,FALSE)","v":144},{"$f":"HLOOKUP(AH$7,$J$67:$DO$121,ROWS($A$11:$A53)+2,FALSE)","v":4615},{"$f":"HLOOKUP(AI$7,$J$67:$DO$121,ROWS($A$11:$A53)+2,FALSE)","v":201},{"$f":"HLOOKUP(AJ$7,$J$67:$DO$121,ROWS($A$11:$A53)+2,FALSE)","v":252},{"$f":"HLOOKUP(AK$7,$J$67:$DO$121,ROWS($A$11:$A53)+2,FALSE)","v":560},{"$f":"HLOOKUP(AL$7,$J$67:$DO$121,ROWS($A$11:$A53)+2,FALSE)","v":2260},{"$f":"HLOOKUP(AM$7,$J$67:$DO$121,ROWS($A$11:$A53)+2,FALSE)","v":38},{"$f":"HLOOKUP(AN$7,$J$67:$DO$121,ROWS($A$11:$A53)+2,FALSE)","v":0},{"$f":"HLOOKUP(AO$7,$J$67:$DO$121,ROWS($A$11:$A53)+2,FALSE)","v":0},{"$f":"HLOOKUP(AP$7,$J$67:$DO$121,ROWS($A$11:$A53)+2,FALSE)","v":38},{"$f":"HLOOKUP(AQ$7,$J$67:$DO$121,ROWS($A$11:$A53)+2,FALSE)","v":758},{"$f":"HLOOKUP(AR$7,$J$67:$DO$121,ROWS($A$11:$A53)+2,FALSE)","v":262},{"$f":"HLOOKUP(AS$7,$J$67:$DO$121,ROWS($A$11:$A53)+2,FALSE)","v":2020},{"$f":"HLOOKUP(AT$7,$J$67:$DO$121,ROWS($A$11:$A53)+2,FALSE)","v":160},{"$f":"HLOOKUP(AU$7,$J$67:$DO$121,ROWS($A$11:$A53)+2,FALSE)","v":296},{"$f":"HLOOKUP(AV$7,$J$67:$DO$121,ROWS($A$11:$A53)+2,FALSE)","v":122},{"$f":"HLOOKUP(AW$7,$J$67:$DO$121,ROWS($A$11:$A53)+2,FALSE)","v":209},{"$f":"HLOOKUP(AX$7,$J$67:$DO$121,ROWS($A$11:$A53)+2,FALSE)","v":0},{"$f":"HLOOKUP(AY$7,$J$67:$DO$121,ROWS($A$11:$A53)+2,FALSE)","v":0},{"$f":"HLOOKUP(AZ$7,$J$67:$DO$121,ROWS($A$11:$A53)+2,FALSE)","v":"N/A"},{"$f":"HLOOKUP(BA$7,$J$67:$DO$121,ROWS($A$11:$A53)+2,FALSE)","v":0},{"$f":"HLOOKUP(BB$7,$J$67:$DO$121,ROWS($A$11:$A53)+2,FALSE)","v":1334},{"$f":"HLOOKUP(BC$7,$J$67:$DO$121,ROWS($A$11:$A53)+2,FALSE)","v":0},{"$f":"HLOOKUP(BD$7,$J$67:$DO$121,ROWS($A$11:$A53)+2,FALSE)","v":0},{"$f":"HLOOKUP(BE$7,$J$67:$DO$121,ROWS($A$11:$A53)+2,FALSE)","v":224},{"$f":"HLOOKUP(BF$7,$J$67:$DO$121,ROWS($A$11:$A53)+2,FALSE)","v":1564},{"$f":"HLOOKUP(BG$7,$J$67:$DO$121,ROWS($A$11:$A53)+2,FALSE)","v":0},{"$f":"HLOOKUP(BH$7,$J$67:$DO$121,ROWS($A$11:$A53)+2,FALSE)","v":736},{"$f":"HLOOKUP(BI$7,$J$67:$DO$121,ROWS($A$11:$A53)+2,FALSE)","v":648},{"$f":"HLOOKUP(BJ$7,$J$67:$DO$121,ROWS($A$11:$A53)+2,FALSE)","v":0},null,null,null,null,{"$f":"HLOOKUP(BO$7+0.5,$J$67:$DO$121,ROWS($A$11:$A53)+2,FALSE)","v":3187},{"$f":"HLOOKUP(BP$7+0.5,$J$67:$DO$121,ROWS($A$11:$A53)+2,FALSE)","v":333},{"$f":"HLOOKUP(BQ$7+0.5,$J$67:$DO$121,ROWS($A$11:$A53)+2,FALSE)","v":44},{"$f":"HLOOKUP(BR$7+0.5,$J$67:$DO$121,ROWS($A$11:$A53)+2,FALSE)","v":533},{"$f":"HLOOKUP(BS$7+0.5,$J$67:$DO$121,ROWS($A$11:$A53)+2,FALSE)","v":120},{"$f":"HLOOKUP(BT$7+0.5,$J$67:$DO$121,ROWS($A$11:$A53)+2,FALSE)","v":703},{"$f":"HLOOKUP(BU$7+0.5,$J$67:$DO$121,ROWS($A$11:$A53)+2,FALSE)","v":447},{"$f":"HLOOKUP(BV$7+0.5,$J$67:$DO$121,ROWS($A$11:$A53)+2,FALSE)","v":223},{"$f":"HLOOKUP(BW$7+0.5,$J$67:$DO$121,ROWS($A$11:$A53)+2,FALSE)","v":223},{"$f":"HLOOKUP(BX$7+0.5,$J$67:$DO$121,ROWS($A$11:$A53)+2,FALSE)","v":223},{"$f":"HLOOKUP(BY$7+0.5,$J$67:$DO$121,ROWS($A$11:$A53)+2,FALSE)","v":242},{"$f":"HLOOKUP(BZ$7+0.5,$J$67:$DO$121,ROWS($A$11:$A53)+2,FALSE)","v":44},{"$f":"HLOOKUP(CA$7+0.5,$J$67:$DO$121,ROWS($A$11:$A53)+2,FALSE)","v":123},{"$f":"HLOOKUP(CB$7+0.5,$J$67:$DO$121,ROWS($A$11:$A53)+2,FALSE)","v":289},{"$f":"HLOOKUP(CC$7+0.5,$J$67:$DO$121,ROWS($A$11:$A53)+2,FALSE)","v":134},{"$f":"HLOOKUP(CD$7+0.5,$J$67:$DO$121,ROWS($A$11:$A53)+2,FALSE)","v":381},{"$f":"HLOOKUP(CE$7+0.5,$J$67:$DO$121,ROWS($A$11:$A53)+2,FALSE)","v":1429},{"$f":"HLOOKUP(CF$7+0.5,$J$67:$DO$121,ROWS($A$11:$A53)+2,FALSE)","v":471},{"$f":"HLOOKUP(CG$7+0.5,$J$67:$DO$121,ROWS($A$11:$A53)+2,FALSE)","v":103},{"$f":"HLOOKUP(CH$7+0.5,$J$67:$DO$121,ROWS($A$11:$A53)+2,FALSE)","v":196},{"$f":"HLOOKUP(CI$7+0.5,$J$67:$DO$121,ROWS($A$11:$A53)+2,FALSE)","v":223},{"$f":"HLOOKUP(CJ$7+0.5,$J$67:$DO$121,ROWS($A$11:$A53)+2,FALSE)","v":223},{"$f":"HLOOKUP(CK$7+0.5,$J$67:$DO$121,ROWS($A$11:$A53)+2,FALSE)","v":471},{"$f":"HLOOKUP(CL$7+0.5,$J$67:$DO$121,ROWS($A$11:$A53)+2,FALSE)","v":127},{"$f":"HLOOKUP(CM$7+0.5,$J$67:$DO$121,ROWS($A$11:$A53)+2,FALSE)","v":1629},{"$f":"HLOOKUP(CN$7+0.5,$J$67:$DO$121,ROWS($A$11:$A53)+2,FALSE)","v":213},{"$f":"HLOOKUP(CO$7+0.5,$J$67:$DO$121,ROWS($A$11:$A53)+2,FALSE)","v":210},{"$f":"HLOOKUP(CP$7+0.5,$J$67:$DO$121,ROWS($A$11:$A53)+2,FALSE)","v":364},{"$f":"HLOOKUP(CQ$7+0.5,$J$67:$DO$121,ROWS($A$11:$A53)+2,FALSE)","v":1028},{"$f":"HLOOKUP(CR$7+0.5,$J$67:$DO$121,ROWS($A$11:$A53)+2,FALSE)","v":63},{"$f":"HLOOKUP(CS$7+0.5,$J$67:$DO$121,ROWS($A$11:$A53)+2,FALSE)","v":223},{"$f":"HLOOKUP(CT$7+0.5,$J$67:$DO$121,ROWS($A$11:$A53)+2,FALSE)","v":223},{"$f":"HLOOKUP(CU$7+0.5,$J$67:$DO$121,ROWS($A$11:$A53)+2,FALSE)","v":67},{"$f":"HLOOKUP(CV$7+0.5,$J$67:$DO$121,ROWS($A$11:$A53)+2,FALSE)","v":469},{"$f":"HLOOKUP(CW$7+0.5,$J$67:$DO$121,ROWS($A$11:$A53)+2,FALSE)","v":231},{"$f":"HLOOKUP(CX$7+0.5,$J$67:$DO$121,ROWS($A$11:$A53)+2,FALSE)","v":1029},{"$f":"HLOOKUP(CY$7+0.5,$J$67:$DO$121,ROWS($A$11:$A53)+2,FALSE)","v":174},{"$f":"HLOOKUP(CZ$7+0.5,$J$67:$DO$121,ROWS($A$11:$A53)+2,FALSE)","v":289},{"$f":"HLOOKUP(DA$7+0.5,$J$67:$DO$121,ROWS($A$11:$A53)+2,FALSE)","v":136},{"$f":"HLOOKUP(DB$7+0.5,$J$67:$DO$121,ROWS($A$11:$A53)+2,FALSE)","v":268},{"$f":"HLOOKUP(DC$7+0.5,$J$67:$DO$121,ROWS($A$11:$A53)+2,FALSE)","v":223},{"$f":"HLOOKUP(DD$7+0.5,$J$67:$DO$121,ROWS($A$11:$A53)+2,FALSE)","v":223},{"$f":"HLOOKUP(DE$7+0.5,$J$67:$DO$121,ROWS($A$11:$A53)+2,FALSE)","v":"N/A"},{"$f":"HLOOKUP(DF$7+0.5,$J$67:$DO$121,ROWS($A$11:$A53)+2,FALSE)","v":223},{"$f":"HLOOKUP(DG$7+0.5,$J$67:$DO$121,ROWS($A$11:$A53)+2,FALSE)","v":812},{"$f":"HLOOKUP(DH$7+0.5,$J$67:$DO$121,ROWS($A$11:$A53)+2,FALSE)","v":223},{"$f":"HLOOKUP(DI$7+0.5,$J$67:$DO$121,ROWS($A$11:$A53)+2,FALSE)","v":223},{"$f":"HLOOKUP(DJ$7+0.5,$J$67:$DO$121,ROWS($A$11:$A53)+2,FALSE)","v":217},{"$f":"HLOOKUP(DK$7+0.5,$J$67:$DO$121,ROWS($A$11:$A53)+2,FALSE)","v":973},{"$f":"HLOOKUP(DL$7+0.5,$J$67:$DO$121,ROWS($A$11:$A53)+2,FALSE)","v":223},{"$f":"HLOOKUP(DM$7+0.5,$J$67:$DO$121,ROWS($A$11:$A53)+2,FALSE)","v":533},{"$f":"HLOOKUP(DN$7+0.5,$J$67:$DO$121,ROWS($A$11:$A53)+2,FALSE)","v":549},{"$f":"HLOOKUP(DO$7+0.5,$J$67:$DO$121,ROWS($A$11:$A53)+2,FALSE)","v":223}]
[null,"Tennessee",6282706,4009,5299496,24505,801355,21988,2.3694583114410025E-2,{"$f":"HLOOKUP(J$7,$J$67:$DO$121,ROWS($A$11:$A54)+2,FALSE)","v":159778},{"$f":"HLOOKUP(K$7,$J$67:$DO$121,ROWS($A$11:$A54)+2,FALSE)","v":8897},{"$f":"HLOOKUP(L$7,$J$67:$DO$121,ROWS($A$11:$A54)+2,FALSE)","v":343},{"$f":"HLOOKUP(M$7,$J$67:$DO$121,ROWS($A$11:$A54)+2,FALSE)","v":2291},{"$f":"HLOOKUP(N$7,$J$67:$DO$121,ROWS($A$11:$A54)+2,FALSE)","v":4736},{"$f":"HLOOKUP(O$7,$J$67:$DO$121,ROWS($A$11:$A54)+2,FALSE)","v":8019},{"$f":"HLOOKUP(P$7,$J$67:$DO$121,ROWS($A$11:$A54)+2,FALSE)","v":1858},{"$f":"HLOOKUP(Q$7,$J$67:$DO$121,ROWS($A$11:$A54)+2,FALSE)","v":765},{"$f":"HLOOKUP(R$7,$J$67:$DO$121,ROWS($A$11:$A54)+2,FALSE)","v":248},{"$f":"HLOOKUP(S$7,$J$67:$DO$121,ROWS($A$11:$A54)+2,FALSE)","v":394},{"$f":"HLOOKUP(T$7,$J$67:$DO$121,ROWS($A$11:$A54)+2,FALSE)","v":14168},{"$f":"HLOOKUP(U$7,$J$67:$DO$121,ROWS($A$11:$A54)+2,FALSE)","v":11065},{"$f":"HLOOKUP(V$7,$J$67:$DO$121,ROWS($A$11:$A54)+2,FALSE)","v":243},{"$f":"HLOOKUP(W$7,$J$67:$DO$121,ROWS($A$11:$A54)+2,FALSE)","v":333},{"$f":"HLOOKUP(X$7,$J$67:$DO$121,ROWS($A$11:$A54)+2,FALSE)","v":3162},{"$f":"HLOOKUP(Y$7,$J$67:$DO$121,ROWS($A$11:$A54)+2,FALSE)","v":4764},{"$f":"HLOOKUP(Z$7,$J$67:$DO$121,ROWS($A$11:$A54)+2,FALSE)","v":1052},{"$f":"HLOOKUP(AA$7,$J$67:$DO$121,ROWS($A$11:$A54)+2,FALSE)","v":2506},{"$f":"HLOOKUP(AB$7,$J$67:$DO$121,ROWS($A$11:$A54)+2,FALSE)","v":11188},{"$f":"HLOOKUP(AC$7,$J$67:$DO$121,ROWS($A$11:$A54)+2,FALSE)","v":2602},{"$f":"HLOOKUP(AD$7,$J$67:$DO$121,ROWS($A$11:$A54)+2,FALSE)","v":84},{"$f":"HLOOKUP(AE$7,$J$67:$DO$121,ROWS($A$11:$A54)+2,FALSE)","v":1450},{"$f":"HLOOKUP(AF$7,$J$67:$DO$121,ROWS($A$11:$A54)+2,FALSE)","v":1733},{"$f":"HLOOKUP(AG$7,$J$67:$DO$121,ROWS($A$11:$A54)+2,FALSE)","v":5529},{"$f":"HLOOKUP(AH$7,$J$67:$DO$121,ROWS($A$11:$A54)+2,FALSE)","v":1504},{"$f":"HLOOKUP(AI$7,$J$67:$DO$121,ROWS($A$11:$A54)+2,FALSE)","v":9029},{"$f":"HLOOKUP(AJ$7,$J$67:$DO$121,ROWS($A$11:$A54)+2,FALSE)","v":4342},{"$f":"HLOOKUP(AK$7,$J$67:$DO$121,ROWS($A$11:$A54)+2,FALSE)","v":290},{"$f":"HLOOKUP(AL$7,$J$67:$DO$121,ROWS($A$11:$A54)+2,FALSE)","v":187},{"$f":"HLOOKUP(AM$7,$J$67:$DO$121,ROWS($A$11:$A54)+2,FALSE)","v":2433},{"$f":"HLOOKUP(AN$7,$J$67:$DO$121,ROWS($A$11:$A54)+2,FALSE)","v":197},{"$f":"HLOOKUP(AO$7,$J$67:$DO$121,ROWS($A$11:$A54)+2,FALSE)","v":2230},{"$f":"HLOOKUP(AP$7,$J$67:$DO$121,ROWS($A$11:$A54)+2,FALSE)","v":621},{"$f":"HLOOKUP(AQ$7,$J$67:$DO$121,ROWS($A$11:$A54)+2,FALSE)","v":4800},{"$f":"HLOOKUP(AR$7,$J$67:$DO$121,ROWS($A$11:$A54)+2,FALSE)","v":7102},{"$f":"HLOOKUP(AS$7,$J$67:$DO$121,ROWS($A$11:$A54)+2,FALSE)","v":0},{"$f":"HLOOKUP(AT$7,$J$67:$DO$121,ROWS($A$11:$A54)+2,FALSE)","v":4462},{"$f":"HLOOKUP(AU$7,$J$67:$DO$121,ROWS($A$11:$A54)+2,FALSE)","v":669},{"$f":"HLOOKUP(AV$7,$J$67:$DO$121,ROWS($A$11:$A54)+2,FALSE)","v":430},{"$f":"HLOOKUP(AW$7,$J$67:$DO$121,ROWS($A$11:$A54)+2,FALSE)","v":2562},{"$f":"HLOOKUP(AX$7,$J$67:$DO$121,ROWS($A$11:$A54)+2,FALSE)","v":805},{"$f":"HLOOKUP(AY$7,$J$67:$DO$121,ROWS($A$11:$A54)+2,FALSE)","v":4765},{"$f":"HLOOKUP(AZ$7,$J$67:$DO$121,ROWS($A$11:$A54)+2,FALSE)","v":63},{"$f":"HLOOKUP(BA$7,$J$67:$DO$121,ROWS($A$11:$A54)+2,FALSE)","v":"N/A"},{"$f":"HLOOKUP(BB$7,$J$67:$DO$121,ROWS($A$11:$A54)+2,FALSE)","v":8701},{"$f":"HLOOKUP(BC$7,$J$67:$DO$121,ROWS($A$11:$A54)+2,FALSE)","v":2062},{"$f":"HLOOKUP(BD$7,$J$67:$DO$121,ROWS($A$11:$A54)+2,FALSE)","v":0},{"$f":"HLOOKUP(BE$7,$J$67:$DO$121,ROWS($A$11:$A54)+2,FALSE)","v":8650},{"$f":"HLOOKUP(BF$7,$J$67:$DO$121,ROWS($A$11:$A54)+2,FALSE)","v":1412},{"$f":"HLOOKUP(BG$7,$J$67:$DO$121,ROWS($A$11:$A54)+2,FALSE)","v":2201},{"$f":"HLOOKUP(BH$7,$J$67:$DO$121,ROWS($A$11:$A54)+2,FALSE)","v":2831},{"$f":"HLOOKUP(BI$7,$J$67:$DO$121,ROWS($A$11:$A54)+2,FALSE)","v":0},{"$f":"HLOOKUP(BJ$7,$J$67:$DO$121,ROWS($A$11:$A54)+2,FALSE)","v":0},null,null,null,null,{"$f":"HLOOKUP(BO$7+0.5,$J$67:$DO$121,ROWS($A$11:$A54)+2,FALSE)","v":11597},{"$f":"HLOOKUP(BP$7+0.5,$J$67:$DO$121,ROWS($A$11:$A54)+2,FALSE)","v":2131},{"$f":"HLOOKUP(BQ$7+0.5,$J$67:$DO$121,ROWS($A$11:$A54)+2,FALSE)","v":300},{"$f":"HLOOKUP(BR$7+0.5,$J$67:$DO$121,ROWS($A$11:$A54)+2,FALSE)","v":1160},{"$f":"HLOOKUP(BS$7+0.5,$J$67:$DO$121,ROWS($A$11:$A54)+2,FALSE)","v":1836},{"$f":"HLOOKUP(BT$7+0.5,$J$67:$DO$121,ROWS($A$11:$A54)+2,FALSE)","v":2431},{"$f":"HLOOKUP(BU$7+0.5,$J$67:$DO$121,ROWS($A$11:$A54)+2,FALSE)","v":1182},{"$f":"HLOOKUP(BV$7+0.5,$J$67:$DO$121,ROWS($A$11:$A54)+2,FALSE)","v":713},{"$f":"HLOOKUP(BW$7+0.5,$J$67:$DO$121,ROWS($A$11:$A54)+2,FALSE)","v":254},{"$f":"HLOOKUP(BX$7+0.5,$J$67:$DO$121,ROWS($A$11:$A54)+2,FALSE)","v":484},{"$f":"HLOOKUP(BY$7+0.5,$J$67:$DO$121,ROWS($A$11:$A54)+2,FALSE)","v":3004},{"$f":"HLOOKUP(BZ$7+0.5,$J$67:$DO$121,ROWS($A$11:$A54)+2,FALSE)","v":2592},{"$f":"HLOOKUP(CA$7+0.5,$J$67:$DO$121,ROWS($A$11:$A54)+2,FALSE)","v":402},{"$f":"HLOOKUP(CB$7+0.5,$J$67:$DO$121,ROWS($A$11:$A54)+2,FALSE)","v":374},{"$f":"HLOOKUP(CC$7+0.5,$J$67:$DO$121,ROWS($A$11:$A54)+2,FALSE)","v":1151},{"$f":"HLOOKUP(CD$7+0.5,$J$67:$DO$121,ROWS($A$11:$A54)+2,FALSE)","v":1593},{"$f":"HLOOKUP(CE$7+0.5,$J$67:$DO$121,ROWS($A$11:$A54)+2,FALSE)","v":864},{"$f":"HLOOKUP(CF$7+0.5,$J$67:$DO$121,ROWS($A$11:$A54)+2,FALSE)","v":2041},{"$f":"HLOOKUP(CG$7+0.5,$J$67:$DO$121,ROWS($A$11:$A54)+2,FALSE)","v":3378},{"$f":"HLOOKUP(CH$7+0.5,$J$67:$DO$121,ROWS($A$11:$A54)+2,FALSE)","v":1490},{"$f":"HLOOKUP(CI$7+0.5,$J$67:$DO$121,ROWS($A$11:$A54)+2,FALSE)","v":138},{"$f":"HLOOKUP(CJ$7+0.5,$J$67:$DO$121,ROWS($A$11:$A54)+2,FALSE)","v":701},{"$f":"HLOOKUP(CK$7+0.5,$J$67:$DO$121,ROWS($A$11:$A54)+2,FALSE)","v":904},{"$f":"HLOOKUP(CL$7+0.5,$J$67:$DO$121,ROWS($A$11:$A54)+2,FALSE)","v":1806},{"$f":"HLOOKUP(CM$7+0.5,$J$67:$DO$121,ROWS($A$11:$A54)+2,FALSE)","v":1160},{"$f":"HLOOKUP(CN$7+0.5,$J$67:$DO$121,ROWS($A$11:$A54)+2,FALSE)","v":2461},{"$f":"HLOOKUP(CO$7+0.5,$J$67:$DO$121,ROWS($A$11:$A54)+2,FALSE)","v":1588},{"$f":"HLOOKUP(CP$7+0.5,$J$67:$DO$121,ROWS($A$11:$A54)+2,FALSE)","v":243},{"$f":"HLOOKUP(CQ$7+0.5,$J$67:$DO$121,ROWS($A$11:$A54)+2,FALSE)","v":177},{"$f":"HLOOKUP(CR$7+0.5,$J$67:$DO$121,ROWS($A$11:$A54)+2,FALSE)","v":1517},{"$f":"HLOOKUP(CS$7+0.5,$J$67:$DO$121,ROWS($A$11:$A54)+2,FALSE)","v":238},{"$f":"HLOOKUP(CT$7+0.5,$J$67:$DO$121,ROWS($A$11:$A54)+2,FALSE)","v":1219},{"$f":"HLOOKUP(CU$7+0.5,$J$67:$DO$121,ROWS($A$11:$A54)+2,FALSE)","v":543},{"$f":"HLOOKUP(CV$7+0.5,$J$67:$DO$121,ROWS($A$11:$A54)+2,FALSE)","v":1691},{"$f":"HLOOKUP(CW$7+0.5,$J$67:$DO$121,ROWS($A$11:$A54)+2,FALSE)","v":1676},{"$f":"HLOOKUP(CX$7+0.5,$J$67:$DO$121,ROWS($A$11:$A54)+2,FALSE)","v":287},{"$f":"HLOOKUP(CY$7+0.5,$J$67:$DO$121,ROWS($A$11:$A54)+2,FALSE)","v":2091},{"$f":"HLOOKUP(CZ$7+0.5,$J$67:$DO$121,ROWS($A$11:$A54)+2,FALSE)","v":482},{"$f":"HLOOKUP(DA$7+0.5,$J$67:$DO$121,ROWS($A$11:$A54)+2,FALSE)","v":497},{"$f":"HLOOKUP(DB$7+0.5,$J$67:$DO$121,ROWS($A$11:$A54)+2,FALSE)","v":1256},{"$f":"HLOOKUP(DC$7+0.5,$J$67:$DO$121,ROWS($A$11:$A54)+2,FALSE)","v":913},{"$f":"HLOOKUP(DD$7+0.5,$J$67:$DO$121,ROWS($A$11:$A54)+2,FALSE)","v":2102},{"$f":"HLOOKUP(DE$7+0.5,$J$67:$DO$121,ROWS($A$11:$A54)+2,FALSE)","v":112},{"$f":"HLOOKUP(DF$7+0.5,$J$67:$DO$121,ROWS($A$11:$A54)+2,FALSE)","v":"N/A"},{"$f":"HLOOKUP(DG$7+0.5,$J$67:$DO$121,ROWS($A$11:$A54)+2,FALSE)","v":2089},{"$f":"HLOOKUP(DH$7+0.5,$J$67:$DO$121,ROWS($A$11:$A54)+2,FALSE)","v":1241},{"$f":"HLOOKUP(DI$7+0.5,$J$67:$DO$121,ROWS($A$11:$A54)+2,FALSE)","v":287},{"$f":"HLOOKUP(DJ$7+0.5,$J$67:$DO$121,ROWS($A$11:$A54)+2,FALSE)","v":2526},{"$f":"HLOOKUP(DK$7+0.5,$J$67:$DO$121,ROWS($A$11:$A54)+2,FALSE)","v":911},{"$f":"HLOOKUP(DL$7+0.5,$J$67:$DO$121,ROWS($A$11:$A54)+2,FALSE)","v":1455},{"$f":"HLOOKUP(DM$7+0.5,$J$67:$DO$121,ROWS($A$11:$A54)+2,FALSE)","v":1402},{"$f":"HLOOKUP(DN$7+0.5,$J$67:$DO$121,ROWS($A$11:$A54)+2,FALSE)","v":287},{"$f":"HLOOKUP(DO$7+0.5,$J$67:$DO$121,ROWS($A$11:$A54)+2,FALSE)","v":287}]
[null,"Texas",24899075,8102,20500156,52416,3740344,51566,7.2155046195227834E-2,{"$f":"HLOOKUP(J$7,$J$67:$DO$121,ROWS($A$11:$A55)+2,FALSE)","v":486558},{"$f":"HLOOKUP(K$7,$J$67:$DO$121,ROWS($A$11:$A55)+2,FALSE)","v":8636},{"$f":"HLOOKUP(L$7,$J$67:$DO$121,ROWS($A$11:$A55)+2,FALSE)","v":11613},{"$f":"HLOOKUP(M$7,$J$67:$DO$121,ROWS($A$11:$A55)+2,FALSE)","v":16521},{"$f":"HLOOKUP(N$7,$J$67:$DO$121,ROWS($A$11:$A55)+2,FALSE)","v":15251},{"$f":"HLOOKUP(O$7,$J$67:$DO$121,ROWS($A$11:$A55)+2,FALSE)","v":68959},{"$f":"HLOOKUP(P$7,$J$67:$DO$121,ROWS($A$11:$A55)+2,FALSE)","v":16361},{"$f":"HLOOKUP(Q$7,$J$67:$DO$121,ROWS($A$11:$A55)+2,FALSE)","v":924},{"$f":"HLOOKUP(R$7,$J$67:$DO$121,ROWS($A$11:$A55)+2,FALSE)","v":704},{"$f":"HLOOKUP(S$7,$J$67:$DO$121,ROWS($A$11:$A55)+2,FALSE)","v":460},{"$f":"HLOOKUP(T$7,$J$67:$DO$121,ROWS($A$11:$A55)+2,FALSE)","v":26668},{"$f":"HLOOKUP(U$7,$J$67:$DO$121,ROWS($A$11:$A55)+2,FALSE)","v":16671},{"$f":"HLOOKUP(V$7,$J$67:$DO$121,ROWS($A$11:$A55)+2,FALSE)","v":3718},{"$f":"HLOOKUP(W$7,$J$67:$DO$121,ROWS($A$11:$A55)+2,FALSE)","v":2033},{"$f":"HLOOKUP(X$7,$J$67:$DO$121,ROWS($A$11:$A55)+2,FALSE)","v":20169},{"$f":"HLOOKUP(Y$7,$J$67:$DO$121,ROWS($A$11:$A55)+2,FALSE)","v":6985},{"$f":"HLOOKUP(Z$7,$J$67:$DO$121,ROWS($A$11:$A55)+2,FALSE)","v":3946},{"$f":"HLOOKUP(AA$7,$J$67:$DO$121,ROWS($A$11:$A55)+2,FALSE)","v":11598},{"$f":"HLOOKUP(AB$7,$J$67:$DO$121,ROWS($A$11:$A55)+2,FALSE)","v":5153},{"$f":"HLOOKUP(AC$7,$J$67:$DO$121,ROWS($A$11:$A55)+2,FALSE)","v":31149},{"$f":"HLOOKUP(AD$7,$J$67:$DO$121,ROWS($A$11:$A55)+2,FALSE)","v":1318},{"$f":"HLOOKUP(AE$7,$J$67:$DO$121,ROWS($A$11:$A55)+2,FALSE)","v":4724},{"$f":"HLOOKUP(AF$7,$J$67:$DO$121,ROWS($A$11:$A55)+2,FALSE)","v":7139},{"$f":"HLOOKUP(AG$7,$J$67:$DO$121,ROWS($A$11:$A55)+2,FALSE)","v":13775},{"$f":"HLOOKUP(AH$7,$J$67:$DO$121,ROWS($A$11:$A55)+2,FALSE)","v":6088},{"$f":"HLOOKUP(AI$7,$J$67:$DO$121,ROWS($A$11:$A55)+2,FALSE)","v":7773},{"$f":"HLOOKUP(AJ$7,$J$67:$DO$121,ROWS($A$11:$A55)+2,FALSE)","v":12061},{"$f":"HLOOKUP(AK$7,$J$67:$DO$121,ROWS($A$11:$A55)+2,FALSE)","v":1027},{"$f":"HLOOKUP(AL$7,$J$67:$DO$121,ROWS($A$11:$A55)+2,FALSE)","v":4893},{"$f":"HLOOKUP(AM$7,$J$67:$DO$121,ROWS($A$11:$A55)+2,FALSE)","v":8324},{"$f":"HLOOKUP(AN$7,$J$67:$DO$121,ROWS($A$11:$A55)+2,FALSE)","v":1067},{"$f":"HLOOKUP(AO$7,$J$67:$DO$121,ROWS($A$11:$A55)+2,FALSE)","v":7058},{"$f":"HLOOKUP(AP$7,$J$67:$DO$121,ROWS($A$11:$A55)+2,FALSE)","v":11752},{"$f":"HLOOKUP(AQ$7,$J$67:$DO$121,ROWS($A$11:$A55)+2,FALSE)","v":16624},{"$f":"HLOOKUP(AR$7,$J$67:$DO$121,ROWS($A$11:$A55)+2,FALSE)","v":12183},{"$f":"HLOOKUP(AS$7,$J$67:$DO$121,ROWS($A$11:$A55)+2,FALSE)","v":2452},{"$f":"HLOOKUP(AT$7,$J$67:$DO$121,ROWS($A$11:$A55)+2,FALSE)","v":8317},{"$f":"HLOOKUP(AU$7,$J$67:$DO$121,ROWS($A$11:$A55)+2,FALSE)","v":22969},{"$f":"HLOOKUP(AV$7,$J$67:$DO$121,ROWS($A$11:$A55)+2,FALSE)","v":4373},{"$f":"HLOOKUP(AW$7,$J$67:$DO$121,ROWS($A$11:$A55)+2,FALSE)","v":7161},{"$f":"HLOOKUP(AX$7,$J$67:$DO$121,ROWS($A$11:$A55)+2,FALSE)","v":975},{"$f":"HLOOKUP(AY$7,$J$67:$DO$121,ROWS($A$11:$A55)+2,FALSE)","v":5249},{"$f":"HLOOKUP(AZ$7,$J$67:$DO$121,ROWS($A$11:$A55)+2,FALSE)","v":1936},{"$f":"HLOOKUP(BA$7,$J$67:$DO$121,ROWS($A$11:$A55)+2,FALSE)","v":13044},{"$f":"HLOOKUP(BB$7,$J$67:$DO$121,ROWS($A$11:$A55)+2,FALSE)","v":"N/A"},{"$f":"HLOOKUP(BC$7,$J$67:$DO$121,ROWS($A$11:$A55)+2,FALSE)","v":4123},{"$f":"HLOOKUP(BD$7,$J$67:$DO$121,ROWS($A$11:$A55)+2,FALSE)","v":52},{"$f":"HLOOKUP(BE$7,$J$67:$DO$121,ROWS($A$11:$A55)+2,FALSE)","v":13713},{"$f":"HLOOKUP(BF$7,$J$67:$DO$121,ROWS($A$11:$A55)+2,FALSE)","v":8847},{"$f":"HLOOKUP(BG$7,$J$67:$DO$121,ROWS($A$11:$A55)+2,FALSE)","v":2221},{"$f":"HLOOKUP(BH$7,$J$67:$DO$121,ROWS($A$11:$A55)+2,FALSE)","v":5927},{"$f":"HLOOKUP(BI$7,$J$67:$DO$121,ROWS($A$11:$A55)+2,FALSE)","v":1874},{"$f":"HLOOKUP(BJ$7,$J$67:$DO$121,ROWS($A$11:$A55)+2,FALSE)","v":4180},null,null,null,null,{"$f":"HLOOKUP(BO$7+0.5,$J$67:$DO$121,ROWS($A$11:$A55)+2,FALSE)","v":20955},{"$f":"HLOOKUP(BP$7+0.5,$J$67:$DO$121,ROWS($A$11:$A55)+2,FALSE)","v":2633},{"$f":"HLOOKUP(BQ$7+0.5,$J$67:$DO$121,ROWS($A$11:$A55)+2,FALSE)","v":3256},{"$f":"HLOOKUP(BR$7+0.5,$J$67:$DO$121,ROWS($A$11:$A55)+2,FALSE)","v":3719},{"$f":"HLOOKUP(BS$7+0.5,$J$67:$DO$121,ROWS($A$11:$A55)+2,FALSE)","v":3182},{"$f":"HLOOKUP(BT$7+0.5,$J$67:$DO$121,ROWS($A$11:$A55)+2,FALSE)","v":7058},{"$f":"HLOOKUP(BU$7+0.5,$J$67:$DO$121,ROWS($A$11:$A55)+2,FALSE)","v":3311},{"$f":"HLOOKUP(BV$7+0.5,$J$67:$DO$121,ROWS($A$11:$A55)+2,FALSE)","v":551},{"$f":"HLOOKUP(BW$7+0.5,$J$67:$DO$121,ROWS($A$11:$A55)+2,FALSE)","v":533},{"$f":"HLOOKUP(BX$7+0.5,$J$67:$DO$121,ROWS($A$11:$A55)+2,FALSE)","v":400},{"$f":"HLOOKUP(BY$7+0.5,$J$67:$DO$121,ROWS($A$11:$A55)+2,FALSE)","v":4238},{"$f":"HLOOKUP(BZ$7+0.5,$J$67:$DO$121,ROWS($A$11:$A55)+2,FALSE)","v":3792},{"$f":"HLOOKUP(CA$7+0.5,$J$67:$DO$121,ROWS($A$11:$A55)+2,FALSE)","v":1263},{"$f":"HLOOKUP(CB$7+0.5,$J$67:$DO$121,ROWS($A$11:$A55)+2,FALSE)","v":1171},{"$f":"HLOOKUP(CC$7+0.5,$J$67:$DO$121,ROWS($A$11:$A55)+2,FALSE)","v":3942},{"$f":"HLOOKUP(CD$7+0.5,$J$67:$DO$121,ROWS($A$11:$A55)+2,FALSE)","v":2350},{"$f":"HLOOKUP(CE$7+0.5,$J$67:$DO$121,ROWS($A$11:$A55)+2,FALSE)","v":1452},{"$f":"HLOOKUP(CF$7+0.5,$J$67:$DO$121,ROWS($A$11:$A55)+2,FALSE)","v":2743},{"$f":"HLOOKUP(CG$7+0.5,$J$67:$DO$121,ROWS($A$11:$A55)+2,FALSE)","v":1839},{"$f":"HLOOKUP(CH$7+0.5,$J$67:$DO$121,ROWS($A$11:$A55)+2,FALSE)","v":5628},{"$f":"HLOOKUP(CI$7+0.5,$J$67:$DO$121,ROWS($A$11:$A55)+2,FALSE)","v":889},{"$f":"HLOOKUP(CJ$7+0.5,$J$67:$DO$121,ROWS($A$11:$A55)+2,FALSE)","v":1564},{"$f":"HLOOKUP(CK$7+0.5,$J$67:$DO$121,ROWS($A$11:$A55)+2,FALSE)","v":2275},{"$f":"HLOOKUP(CL$7+0.5,$J$67:$DO$121,ROWS($A$11:$A55)+2,FALSE)","v":3091},{"$f":"HLOOKUP(CM$7+0.5,$J$67:$DO$121,ROWS($A$11:$A55)+2,FALSE)","v":2182},{"$f":"HLOOKUP(CN$7+0.5,$J$67:$DO$121,ROWS($A$11:$A55)+2,FALSE)","v":2477},{"$f":"HLOOKUP(CO$7+0.5,$J$67:$DO$121,ROWS($A$11:$A55)+2,FALSE)","v":2517},{"$f":"HLOOKUP(CP$7+0.5,$J$67:$DO$121,ROWS($A$11:$A55)+2,FALSE)","v":614},{"$f":"HLOOKUP(CQ$7+0.5,$J$67:$DO$121,ROWS($A$11:$A55)+2,FALSE)","v":2391},{"$f":"HLOOKUP(CR$7+0.5,$J$67:$DO$121,ROWS($A$11:$A55)+2,FALSE)","v":2790},{"$f":"HLOOKUP(CS$7+0.5,$J$67:$DO$121,ROWS($A$11:$A55)+2,FALSE)","v":637},{"$f":"HLOOKUP(CT$7+0.5,$J$67:$DO$121,ROWS($A$11:$A55)+2,FALSE)","v":2884},{"$f":"HLOOKUP(CU$7+0.5,$J$67:$DO$121,ROWS($A$11:$A55)+2,FALSE)","v":2780},{"$f":"HLOOKUP(CV$7+0.5,$J$67:$DO$121,ROWS($A$11:$A55)+2,FALSE)","v":4092},{"$f":"HLOOKUP(CW$7+0.5,$J$67:$DO$121,ROWS($A$11:$A55)+2,FALSE)","v":3708},{"$f":"HLOOKUP(CX$7+0.5,$J$67:$DO$121,ROWS($A$11:$A55)+2,FALSE)","v":1624},{"$f":"HLOOKUP(CY$7+0.5,$J$67:$DO$121,ROWS($A$11:$A55)+2,FALSE)","v":1971},{"$f":"HLOOKUP(CZ$7+0.5,$J$67:$DO$121,ROWS($A$11:$A55)+2,FALSE)","v":4302},{"$f":"HLOOKUP(DA$7+0.5,$J$67:$DO$121,ROWS($A$11:$A55)+2,FALSE)","v":1618},{"$f":"HLOOKUP(DB$7+0.5,$J$67:$DO$121,ROWS($A$11:$A55)+2,FALSE)","v":2092},{"$f":"HLOOKUP(DC$7+0.5,$J$67:$DO$121,ROWS($A$11:$A55)+2,FALSE)","v":613},{"$f":"HLOOKUP(DD$7+0.5,$J$67:$DO$121,ROWS($A$11:$A55)+2,FALSE)","v":1965},{"$f":"HLOOKUP(DE$7+0.5,$J$67:$DO$121,ROWS($A$11:$A55)+2,FALSE)","v":836},{"$f":"HLOOKUP(DF$7+0.5,$J$67:$DO$121,ROWS($A$11:$A55)+2,FALSE)","v":3538},{"$f":"HLOOKUP(DG$7+0.5,$J$67:$DO$121,ROWS($A$11:$A55)+2,FALSE)","v":"N/A"},{"$f":"HLOOKUP(DH$7+0.5,$J$67:$DO$121,ROWS($A$11:$A55)+2,FALSE)","v":1574},{"$f":"HLOOKUP(DI$7+0.5,$J$67:$DO$121,ROWS($A$11:$A55)+2,FALSE)","v":88},{"$f":"HLOOKUP(DJ$7+0.5,$J$67:$DO$121,ROWS($A$11:$A55)+2,FALSE)","v":2694},{"$f":"HLOOKUP(DK$7+0.5,$J$67:$DO$121,ROWS($A$11:$A55)+2,FALSE)","v":2397},{"$f":"HLOOKUP(DL$7+0.5,$J$67:$DO$121,ROWS($A$11:$A55)+2,FALSE)","v":1231},{"$f":"HLOOKUP(DM$7+0.5,$J$67:$DO$121,ROWS($A$11:$A55)+2,FALSE)","v":1723},{"$f":"HLOOKUP(DN$7+0.5,$J$67:$DO$121,ROWS($A$11:$A55)+2,FALSE)","v":1022},{"$f":"HLOOKUP(DO$7+0.5,$J$67:$DO$121,ROWS($A$11:$A55)+2,FALSE)","v":2074}]
[null,"Utah",2724064,2775,2240636,18397,388410,17535,1.1534533381559487E-2,{"$f":"HLOOKUP(J$7,$J$67:$DO$121,ROWS($A$11:$A56)+2,FALSE)","v":77780},{"$f":"HLOOKUP(K$7,$J$67:$DO$121,ROWS($A$11:$A56)+2,FALSE)","v":93},{"$f":"HLOOKUP(L$7,$J$67:$DO$121,ROWS($A$11:$A56)+2,FALSE)","v":1798},{"$f":"HLOOKUP(M$7,$J$67:$DO$121,ROWS($A$11:$A56)+2,FALSE)","v":8147},{"$f":"HLOOKUP(N$7,$J$67:$DO$121,ROWS($A$11:$A56)+2,FALSE)","v":316},{"$f":"HLOOKUP(O$7,$J$67:$DO$121,ROWS($A$11:$A56)+2,FALSE)","v":12187},{"$f":"HLOOKUP(P$7,$J$67:$DO$121,ROWS($A$11:$A56)+2,FALSE)","v":3987},{"$f":"HLOOKUP(Q$7,$J$67:$DO$121,ROWS($A$11:$A56)+2,FALSE)","v":119},{"$f":"HLOOKUP(R$7,$J$67:$DO$121,ROWS($A$11:$A56)+2,FALSE)","v":0},{"$f":"HLOOKUP(S$7,$J$67:$DO$121,ROWS($A$11:$A56)+2,FALSE)","v":138},{"$f":"HLOOKUP(T$7,$J$67:$DO$121,ROWS($A$11:$A56)+2,FALSE)","v":2097},{"$f":"HLOOKUP(U$7,$J$67:$DO$121,ROWS($A$11:$A56)+2,FALSE)","v":966},{"$f":"HLOOKUP(V$7,$J$67:$DO$121,ROWS($A$11:$A56)+2,FALSE)","v":932},{"$f":"HLOOKUP(W$7,$J$67:$DO$121,ROWS($A$11:$A56)+2,FALSE)","v":7692},{"$f":"HLOOKUP(X$7,$J$67:$DO$121,ROWS($A$11:$A56)+2,FALSE)","v":1831},{"$f":"HLOOKUP(Y$7,$J$67:$DO$121,ROWS($A$11:$A56)+2,FALSE)","v":517},{"$f":"HLOOKUP(Z$7,$J$67:$DO$121,ROWS($A$11:$A56)+2,FALSE)","v":483},{"$f":"HLOOKUP(AA$7,$J$67:$DO$121,ROWS($A$11:$A56)+2,FALSE)","v":299},{"$f":"HLOOKUP(AB$7,$J$67:$DO$121,ROWS($A$11:$A56)+2,FALSE)","v":235},{"$f":"HLOOKUP(AC$7,$J$67:$DO$121,ROWS($A$11:$A56)+2,FALSE)","v":46},{"$f":"HLOOKUP(AD$7,$J$67:$DO$121,ROWS($A$11:$A56)+2,FALSE)","v":148},{"$f":"HLOOKUP(AE$7,$J$67:$DO$121,ROWS($A$11:$A56)+2,FALSE)","v":426},{"$f":"HLOOKUP(AF$7,$J$67:$DO$121,ROWS($A$11:$A56)+2,FALSE)","v":246},{"$f":"HLOOKUP(AG$7,$J$67:$DO$121,ROWS($A$11:$A56)+2,FALSE)","v":261},{"$f":"HLOOKUP(AH$7,$J$67:$DO$121,ROWS($A$11:$A56)+2,FALSE)","v":914},{"$f":"HLOOKUP(AI$7,$J$67:$DO$121,ROWS($A$11:$A56)+2,FALSE)","v":127},{"$f":"HLOOKUP(AJ$7,$J$67:$DO$121,ROWS($A$11:$A56)+2,FALSE)","v":1255},{"$f":"HLOOKUP(AK$7,$J$67:$DO$121,ROWS($A$11:$A56)+2,FALSE)","v":1929},{"$f":"HLOOKUP(AL$7,$J$67:$DO$121,ROWS($A$11:$A56)+2,FALSE)","v":118},{"$f":"HLOOKUP(AM$7,$J$67:$DO$121,ROWS($A$11:$A56)+2,FALSE)","v":4549},{"$f":"HLOOKUP(AN$7,$J$67:$DO$121,ROWS($A$11:$A56)+2,FALSE)","v":0},{"$f":"HLOOKUP(AO$7,$J$67:$DO$121,ROWS($A$11:$A56)+2,FALSE)","v":247},{"$f":"HLOOKUP(AP$7,$J$67:$DO$121,ROWS($A$11:$A56)+2,FALSE)","v":518},{"$f":"HLOOKUP(AQ$7,$J$67:$DO$121,ROWS($A$11:$A56)+2,FALSE)","v":1462},{"$f":"HLOOKUP(AR$7,$J$67:$DO$121,ROWS($A$11:$A56)+2,FALSE)","v":1167},{"$f":"HLOOKUP(AS$7,$J$67:$DO$121,ROWS($A$11:$A56)+2,FALSE)","v":0},{"$f":"HLOOKUP(AT$7,$J$67:$DO$121,ROWS($A$11:$A56)+2,FALSE)","v":1527},{"$f":"HLOOKUP(AU$7,$J$67:$DO$121,ROWS($A$11:$A56)+2,FALSE)","v":886},{"$f":"HLOOKUP(AV$7,$J$67:$DO$121,ROWS($A$11:$A56)+2,FALSE)","v":2525},{"$f":"HLOOKUP(AW$7,$J$67:$DO$121,ROWS($A$11:$A56)+2,FALSE)","v":557},{"$f":"HLOOKUP(AX$7,$J$67:$DO$121,ROWS($A$11:$A56)+2,FALSE)","v":0},{"$f":"HLOOKUP(AY$7,$J$67:$DO$121,ROWS($A$11:$A56)+2,FALSE)","v":838},{"$f":"HLOOKUP(AZ$7,$J$67:$DO$121,ROWS($A$11:$A56)+2,FALSE)","v":875},{"$f":"HLOOKUP(BA$7,$J$67:$DO$121,ROWS($A$11:$A56)+2,FALSE)","v":459},{"$f":"HLOOKUP(BB$7,$J$67:$DO$121,ROWS($A$11:$A56)+2,FALSE)","v":5305},{"$f":"HLOOKUP(BC$7,$J$67:$DO$121,ROWS($A$11:$A56)+2,FALSE)","v":"N/A"},{"$f":"HLOOKUP(BD$7,$J$67:$DO$121,ROWS($A$11:$A56)+2,FALSE)","v":297},{"$f":"HLOOKUP(BE$7,$J$67:$DO$121,ROWS($A$11:$A56)+2,FALSE)","v":3005},{"$f":"HLOOKUP(BF$7,$J$67:$DO$121,ROWS($A$11:$A56)+2,FALSE)","v":3792},{"$f":"HLOOKUP(BG$7,$J$67:$DO$121,ROWS($A$11:$A56)+2,FALSE)","v":0},{"$f":"HLOOKUP(BH$7,$J$67:$DO$121,ROWS($A$11:$A56)+2,FALSE)","v":338},{"$f":"HLOOKUP(BI$7,$J$67:$DO$121,ROWS($A$11:$A56)+2,FALSE)","v":2126},{"$f":"HLOOKUP(BJ$7,$J$67:$DO$121,ROWS($A$11:$A56)+2,FALSE)","v":383},null,null,null,null,{"$f":"HLOOKUP(BO$7+0.5,$J$67:$DO$121,ROWS($A$11:$A56)+2,FALSE)","v":6769},{"$f":"HLOOKUP(BP$7+0.5,$J$67:$DO$121,ROWS($A$11:$A56)+2,FALSE)","v":114},{"$f":"HLOOKUP(BQ$7+0.5,$J$67:$DO$121,ROWS($A$11:$A56)+2,FALSE)","v":1320},{"$f":"HLOOKUP(BR$7+0.5,$J$67:$DO$121,ROWS($A$11:$A56)+2,FALSE)","v":2522},{"$f":"HLOOKUP(BS$7+0.5,$J$67:$DO$121,ROWS($A$11:$A56)+2,FALSE)","v":262},{"$f":"HLOOKUP(BT$7+0.5,$J$67:$DO$121,ROWS($A$11:$A56)+2,FALSE)","v":2104},{"$f":"HLOOKUP(BU$7+0.5,$J$67:$DO$121,ROWS($A$11:$A56)+2,FALSE)","v":1226},{"$f":"HLOOKUP(BV$7+0.5,$J$67:$DO$121,ROWS($A$11:$A56)+2,FALSE)","v":148},{"$f":"HLOOKUP(BW$7+0.5,$J$67:$DO$121,ROWS($A$11:$A56)+2,FALSE)","v":267},{"$f":"HLOOKUP(BX$7+0.5,$J$67:$DO$121,ROWS($A$11:$A56)+2,FALSE)","v":168},{"$f":"HLOOKUP(BY$7+0.5,$J$67:$DO$121,ROWS($A$11:$A56)+2,FALSE)","v":1007},{"$f":"HLOOKUP(BZ$7+0.5,$J$67:$DO$121,ROWS($A$11:$A56)+2,FALSE)","v":644},{"$f":"HLOOKUP(CA$7+0.5,$J$67:$DO$121,ROWS($A$11:$A56)+2,FALSE)","v":930},{"$f":"HLOOKUP(CB$7+0.5,$J$67:$DO$121,ROWS($A$11:$A56)+2,FALSE)","v":2177},{"$f":"HLOOKUP(CC$7+0.5,$J$67:$DO$121,ROWS($A$11:$A56)+2,FALSE)","v":767},{"$f":"HLOOKUP(CD$7+0.5,$J$67:$DO$121,ROWS($A$11:$A56)+2,FALSE)","v":475},{"$f":"HLOOKUP(CE$7+0.5,$J$67:$DO$121,ROWS($A$11:$A56)+2,FALSE)","v":348},{"$f":"HLOOKUP(CF$7+0.5,$J$67:$DO$121,ROWS($A$11:$A56)+2,FALSE)","v":340},{"$f":"HLOOKUP(CG$7+0.5,$J$67:$DO$121,ROWS($A$11:$A56)+2,FALSE)","v":266},{"$f":"HLOOKUP(CH$7+0.5,$J$67:$DO$121,ROWS($A$11:$A56)+2,FALSE)","v":98},{"$f":"HLOOKUP(CI$7+0.5,$J$67:$DO$121,ROWS($A$11:$A56)+2,FALSE)","v":237},{"$f":"HLOOKUP(CJ$7+0.5,$J$67:$DO$121,ROWS($A$11:$A56)+2,FALSE)","v":302},{"$f":"HLOOKUP(CK$7+0.5,$J$67:$DO$121,ROWS($A$11:$A56)+2,FALSE)","v":253},{"$f":"HLOOKUP(CL$7+0.5,$J$67:$DO$121,ROWS($A$11:$A56)+2,FALSE)","v":243},{"$f":"HLOOKUP(CM$7+0.5,$J$67:$DO$121,ROWS($A$11:$A56)+2,FALSE)","v":545},{"$f":"HLOOKUP(CN$7+0.5,$J$67:$DO$121,ROWS($A$11:$A56)+2,FALSE)","v":134},{"$f":"HLOOKUP(CO$7+0.5,$J$67:$DO$121,ROWS($A$11:$A56)+2,FALSE)","v":929},{"$f":"HLOOKUP(CP$7+0.5,$J$67:$DO$121,ROWS($A$11:$A56)+2,FALSE)","v":1099},{"$f":"HLOOKUP(CQ$7+0.5,$J$67:$DO$121,ROWS($A$11:$A56)+2,FALSE)","v":121},{"$f":"HLOOKUP(CR$7+0.5,$J$67:$DO$121,ROWS($A$11:$A56)+2,FALSE)","v":1568},{"$f":"HLOOKUP(CS$7+0.5,$J$67:$DO$121,ROWS($A$11:$A56)+2,FALSE)","v":267},{"$f":"HLOOKUP(CT$7+0.5,$J$67:$DO$121,ROWS($A$11:$A56)+2,FALSE)","v":240},{"$f":"HLOOKUP(CU$7+0.5,$J$67:$DO$121,ROWS($A$11:$A56)+2,FALSE)","v":480},{"$f":"HLOOKUP(CV$7+0.5,$J$67:$DO$121,ROWS($A$11:$A56)+2,FALSE)","v":752},{"$f":"HLOOKUP(CW$7+0.5,$J$67:$DO$121,ROWS($A$11:$A56)+2,FALSE)","v":840},{"$f":"HLOOKUP(CX$7+0.5,$J$67:$DO$121,ROWS($A$11:$A56)+2,FALSE)","v":267},{"$f":"HLOOKUP(CY$7+0.5,$J$67:$DO$121,ROWS($A$11:$A56)+2,FALSE)","v":1163},{"$f":"HLOOKUP(CZ$7+0.5,$J$67:$DO$121,ROWS($A$11:$A56)+2,FALSE)","v":947},{"$f":"HLOOKUP(DA$7+0.5,$J$67:$DO$121,ROWS($A$11:$A56)+2,FALSE)","v":1094},{"$f":"HLOOKUP(DB$7+0.5,$J$67:$DO$121,ROWS($A$11:$A56)+2,FALSE)","v":347},{"$f":"HLOOKUP(DC$7+0.5,$J$67:$DO$121,ROWS($A$11:$A56)+2,FALSE)","v":267},{"$f":"HLOOKUP(DD$7+0.5,$J$67:$DO$121,ROWS($A$11:$A56)+2,FALSE)","v":716},{"$f":"HLOOKUP(DE$7+0.5,$J$67:$DO$121,ROWS($A$11:$A56)+2,FALSE)","v":1215},{"$f":"HLOOKUP(DF$7+0.5,$J$67:$DO$121,ROWS($A$11:$A56)+2,FALSE)","v":385},{"$f":"HLOOKUP(DG$7+0.5,$J$67:$DO$121,ROWS($A$11:$A56)+2,FALSE)","v":1508},{"$f":"HLOOKUP(DH$7+0.5,$J$67:$DO$121,ROWS($A$11:$A56)+2,FALSE)","v":"N/A"},{"$f":"HLOOKUP(DI$7+0.5,$J$67:$DO$121,ROWS($A$11:$A56)+2,FALSE)","v":494},{"$f":"HLOOKUP(DJ$7+0.5,$J$67:$DO$121,ROWS($A$11:$A56)+2,FALSE)","v":2000},{"$f":"HLOOKUP(DK$7+0.5,$J$67:$DO$121,ROWS($A$11:$A56)+2,FALSE)","v":1538},{"$f":"HLOOKUP(DL$7+0.5,$J$67:$DO$121,ROWS($A$11:$A56)+2,FALSE)","v":267},{"$f":"HLOOKUP(DM$7+0.5,$J$67:$DO$121,ROWS($A$11:$A56)+2,FALSE)","v":323},{"$f":"HLOOKUP(DN$7+0.5,$J$67:$DO$121,ROWS($A$11:$A56)+2,FALSE)","v":1168},{"$f":"HLOOKUP(DO$7+0.5,$J$67:$DO$121,ROWS($A$11:$A56)+2,FALSE)","v":446}]
[null,"Vermont",619363,779,534975,5691,59032,4857,3.3409810047975532E-3,{"$f":"HLOOKUP(J$7,$J$67:$DO$121,ROWS($A$11:$A57)+2,FALSE)","v":22529},{"$f":"HLOOKUP(K$7,$J$67:$DO$121,ROWS($A$11:$A57)+2,FALSE)","v":0},{"$f":"HLOOKUP(L$7,$J$67:$DO$121,ROWS($A$11:$A57)+2,FALSE)","v":184},{"$f":"HLOOKUP(M$7,$J$67:$DO$121,ROWS($A$11:$A57)+2,FALSE)","v":65},{"$f":"HLOOKUP(N$7,$J$67:$DO$121,ROWS($A$11:$A57)+2,FALSE)","v":0},{"$f":"HLOOKUP(O$7,$J$67:$DO$121,ROWS($A$11:$A57)+2,FALSE)","v":1001},{"$f":"HLOOKUP(P$7,$J$67:$DO$121,ROWS($A$11:$A57)+2,FALSE)","v":326},{"$f":"HLOOKUP(Q$7,$J$67:$DO$121,ROWS($A$11:$A57)+2,FALSE)","v":1287},{"$f":"HLOOKUP(R$7,$J$67:$DO$121,ROWS($A$11:$A57)+2,FALSE)","v":87},{"$f":"HLOOKUP(S$7,$J$67:$DO$121,ROWS($A$11:$A57)+2,FALSE)","v":9},{"$f":"HLOOKUP(T$7,$J$67:$DO$121,ROWS($A$11:$A57)+2,FALSE)","v":2063},{"$f":"HLOOKUP(U$7,$J$67:$DO$121,ROWS($A$11:$A57)+2,FALSE)","v":496},{"$f":"HLOOKUP(V$7,$J$67:$DO$121,ROWS($A$11:$A57)+2,FALSE)","v":49},{"$f":"HLOOKUP(W$7,$J$67:$DO$121,ROWS($A$11:$A57)+2,FALSE)","v":0},{"$f":"HLOOKUP(X$7,$J$67:$DO$121,ROWS($A$11:$A57)+2,FALSE)","v":370},{"$f":"HLOOKUP(Y$7,$J$67:$DO$121,ROWS($A$11:$A57)+2,FALSE)","v":0},{"$f":"HLOOKUP(Z$7,$J$67:$DO$121,ROWS($A$11:$A57)+2,FALSE)","v":91},{"$f":"HLOOKUP(AA$7,$J$67:$DO$121,ROWS($A$11:$A57)+2,FALSE)","v":0},{"$f":"HLOOKUP(AB$7,$J$67:$DO$121,ROWS($A$11:$A57)+2,FALSE)","v":176},{"$f":"HLOOKUP(AC$7,$J$67:$DO$121,ROWS($A$11:$A57)+2,FALSE)","v":0},{"$f":"HLOOKUP(AD$7,$J$67:$DO$121,ROWS($A$11:$A57)+2,FALSE)","v":824},{"$f":"HLOOKUP(AE$7,$J$67:$DO$121,ROWS($A$11:$A57)+2,FALSE)","v":300},{"$f":"HLOOKUP(AF$7,$J$67:$DO$121,ROWS($A$11:$A57)+2,FALSE)","v":3599},{"$f":"HLOOKUP(AG$7,$J$67:$DO$121,ROWS($A$11:$A57)+2,FALSE)","v":201},{"$f":"HLOOKUP(AH$7,$J$67:$DO$121,ROWS($A$11:$A57)+2,FALSE)","v":85},{"$f":"HLOOKUP(AI$7,$J$67:$DO$121,ROWS($A$11:$A57)+2,FALSE)","v":0},{"$f":"HLOOKUP(AJ$7,$J$67:$DO$121,ROWS($A$11:$A57)+2,FALSE)","v":51},{"$f":"HLOOKUP(AK$7,$J$67:$DO$121,ROWS($A$11:$A57)+2,FALSE)","v":236},{"$f":"HLOOKUP(AL$7,$J$67:$DO$121,ROWS($A$11:$A57)+2,FALSE)","v":0},{"$f":"HLOOKUP(AM$7,$J$67:$DO$121,ROWS($A$11:$A57)+2,FALSE)","v":58},{"$f":"HLOOKUP(AN$7,$J$67:$DO$121,ROWS($A$11:$A57)+2,FALSE)","v":2760},{"$f":"HLOOKUP(AO$7,$J$67:$DO$121,ROWS($A$11:$A57)+2,FALSE)","v":751},{"$f":"HLOOKUP(AP$7,$J$67:$DO$121,ROWS($A$11:$A57)+2,FALSE)","v":0},{"$f":"HLOOKUP(AQ$7,$J$67:$DO$121,ROWS($A$11:$A57)+2,FALSE)","v":4056},{"$f":"HLOOKUP(AR$7,$J$67:$DO$121,ROWS($A$11:$A57)+2,FALSE)","v":539},{"$f":"HLOOKUP(AS$7,$J$67:$DO$121,ROWS($A$11:$A57)+2,FALSE)","v":30},{"$f":"HLOOKUP(AT$7,$J$67:$DO$121,ROWS($A$11:$A57)+2,FALSE)","v":50},{"$f":"HLOOKUP(AU$7,$J$67:$DO$121,ROWS($A$11:$A57)+2,FALSE)","v":0},{"$f":"HLOOKUP(AV$7,$J$67:$DO$121,ROWS($A$11:$A57)+2,FALSE)","v":100},{"$f":"HLOOKUP(AW$7,$J$67:$DO$121,ROWS($A$11:$A57)+2,FALSE)","v":524},{"$f":"HLOOKUP(AX$7,$J$67:$DO$121,ROWS($A$11:$A57)+2,FALSE)","v":227},{"$f":"HLOOKUP(AY$7,$J$67:$DO$121,ROWS($A$11:$A57)+2,FALSE)","v":134},{"$f":"HLOOKUP(AZ$7,$J$67:$DO$121,ROWS($A$11:$A57)+2,FALSE)","v":153},{"$f":"HLOOKUP(BA$7,$J$67:$DO$121,ROWS($A$11:$A57)+2,FALSE)","v":125},{"$f":"HLOOKUP(BB$7,$J$67:$DO$121,ROWS($A$11:$A57)+2,FALSE)","v":565},{"$f":"HLOOKUP(BC$7,$J$67:$DO$121,ROWS($A$11:$A57)+2,FALSE)","v":0},{"$f":"HLOOKUP(BD$7,$J$67:$DO$121,ROWS($A$11:$A57)+2,FALSE)","v":"N/A"},{"$f":"HLOOKUP(BE$7,$J$67:$DO$121,ROWS($A$11:$A57)+2,FALSE)","v":400},{"$f":"HLOOKUP(BF$7,$J$67:$DO$121,ROWS($A$11:$A57)+2,FALSE)","v":128},{"$f":"HLOOKUP(BG$7,$J$67:$DO$121,ROWS($A$11:$A57)+2,FALSE)","v":0},{"$f":"HLOOKUP(BH$7,$J$67:$DO$121,ROWS($A$11:$A57)+2,FALSE)","v":377},{"$f":"HLOOKUP(BI$7,$J$67:$DO$121,ROWS($A$11:$A57)+2,FALSE)","v":52},{"$f":"HLOOKUP(BJ$7,$J$67:$DO$121,ROWS($A$11:$A57)+2,FALSE)","v":0},null,null,null,null,{"$f":"HLOOKUP(BO$7+0.5,$J$67:$DO$121,ROWS($A$11:$A57)+2,FALSE)","v":2945},{"$f":"HLOOKUP(BP$7+0.5,$J$67:$DO$121,ROWS($A$11:$A57)+2,FALSE)","v":211},{"$f":"HLOOKUP(BQ$7+0.5,$J$67:$DO$121,ROWS($A$11:$A57)+2,FALSE)","v":181},{"$f":"HLOOKUP(BR$7+0.5,$J$67:$DO$121,ROWS($A$11:$A57)+2,FALSE)","v":76},{"$f":"HLOOKUP(BS$7+0.5,$J$67:$DO$121,ROWS($A$11:$A57)+2,FALSE)","v":211},{"$f":"HLOOKUP(BT$7+0.5,$J$67:$DO$121,ROWS($A$11:$A57)+2,FALSE)","v":506},{"$f":"HLOOKUP(BU$7+0.5,$J$67:$DO$121,ROWS($A$11:$A57)+2,FALSE)","v":238},{"$f":"HLOOKUP(BV$7+0.5,$J$67:$DO$121,ROWS($A$11:$A57)+2,FALSE)","v":585},{"$f":"HLOOKUP(BW$7+0.5,$J$67:$DO$121,ROWS($A$11:$A57)+2,FALSE)","v":111},{"$f":"HLOOKUP(BX$7+0.5,$J$67:$DO$121,ROWS($A$11:$A57)+2,FALSE)","v":15},{"$f":"HLOOKUP(BY$7+0.5,$J$67:$DO$121,ROWS($A$11:$A57)+2,FALSE)","v":1237},{"$f":"HLOOKUP(BZ$7+0.5,$J$67:$DO$121,ROWS($A$11:$A57)+2,FALSE)","v":395},{"$f":"HLOOKUP(CA$7+0.5,$J$67:$DO$121,ROWS($A$11:$A57)+2,FALSE)","v":71},{"$f":"HLOOKUP(CB$7+0.5,$J$67:$DO$121,ROWS($A$11:$A57)+2,FALSE)","v":211},{"$f":"HLOOKUP(CC$7+0.5,$J$67:$DO$121,ROWS($A$11:$A57)+2,FALSE)","v":415},{"$f":"HLOOKUP(CD$7+0.5,$J$67:$DO$121,ROWS($A$11:$A57)+2,FALSE)","v":211},{"$f":"HLOOKUP(CE$7+0.5,$J$67:$DO$121,ROWS($A$11:$A57)+2,FALSE)","v":93},{"$f":"HLOOKUP(CF$7+0.5,$J$67:$DO$121,ROWS($A$11:$A57)+2,FALSE)","v":211},{"$f":"HLOOKUP(CG$7+0.5,$J$67:$DO$121,ROWS($A$11:$A57)+2,FALSE)","v":146},{"$f":"HLOOKUP(CH$7+0.5,$J$67:$DO$121,ROWS($A$11:$A57)+2,FALSE)","v":211},{"$f":"HLOOKUP(CI$7+0.5,$J$67:$DO$121,ROWS($A$11:$A57)+2,FALSE)","v":365},{"$f":"HLOOKUP(CJ$7+0.5,$J$67:$DO$121,ROWS($A$11:$A57)+2,FALSE)","v":294},{"$f":"HLOOKUP(CK$7+0.5,$J$67:$DO$121,ROWS($A$11:$A57)+2,FALSE)","v":1075},{"$f":"HLOOKUP(CL$7+0.5,$J$67:$DO$121,ROWS($A$11:$A57)+2,FALSE)","v":209},{"$f":"HLOOKUP(CM$7+0.5,$J$67:$DO$121,ROWS($A$11:$A57)+2,FALSE)","v":116},{"$f":"HLOOKUP(CN$7+0.5,$J$67:$DO$121,ROWS($A$11:$A57)+2,FALSE)","v":211},{"$f":"HLOOKUP(CO$7+0.5,$J$67:$DO$121,ROWS($A$11:$A57)+2,FALSE)","v":86},{"$f":"HLOOKUP(CP$7+0.5,$J$67:$DO$121,ROWS($A$11:$A57)+2,FALSE)","v":207},{"$f":"HLOOKUP(CQ$7+0.5,$J$67:$DO$121,ROWS($A$11:$A57)+2,FALSE)","v":211},{"$f":"HLOOKUP(CR$7+0.5,$J$67:$DO$121,ROWS($A$11:$A57)+2,FALSE)","v":75},{"$f":"HLOOKUP(CS$7+0.5,$J$67:$DO$121,ROWS($A$11:$A57)+2,FALSE)","v":827},{"$f":"HLOOKUP(CT$7+0.5,$J$67:$DO$121,ROWS($A$11:$A57)+2,FALSE)","v":390},{"$f":"HLOOKUP(CU$7+0.5,$J$67:$DO$121,ROWS($A$11:$A57)+2,FALSE)","v":211},{"$f":"HLOOKUP(CV$7+0.5,$J$67:$DO$121,ROWS($A$11:$A57)+2,FALSE)","v":1050},{"$f":"HLOOKUP(CW$7+0.5,$J$67:$DO$121,ROWS($A$11:$A57)+2,FALSE)","v":455},{"$f":"HLOOKUP(CX$7+0.5,$J$67:$DO$121,ROWS($A$11:$A57)+2,FALSE)","v":50},{"$f":"HLOOKUP(CY$7+0.5,$J$67:$DO$121,ROWS($A$11:$A57)+2,FALSE)","v":65},{"$f":"HLOOKUP(CZ$7+0.5,$J$67:$DO$121,ROWS($A$11:$A57)+2,FALSE)","v":211},{"$f":"HLOOKUP(DA$7+0.5,$J$67:$DO$121,ROWS($A$11:$A57)+2,FALSE)","v":122},{"$f":"HLOOKUP(DB$7+0.5,$J$67:$DO$121,ROWS($A$11:$A57)+2,FALSE)","v":339},{"$f":"HLOOKUP(DC$7+0.5,$J$67:$DO$121,ROWS($A$11:$A57)+2,FALSE)","v":154},{"$f":"HLOOKUP(DD$7+0.5,$J$67:$DO$121,ROWS($A$11:$A57)+2,FALSE)","v":157},{"$f":"HLOOKUP(DE$7+0.5,$J$67:$DO$121,ROWS($A$11:$A57)+2,FALSE)","v":214},{"$f":"HLOOKUP(DF$7+0.5,$J$67:$DO$121,ROWS($A$11:$A57)+2,FALSE)","v":104},{"$f":"HLOOKUP(DG$7+0.5,$J$67:$DO$121,ROWS($A$11:$A57)+2,FALSE)","v":449},{"$f":"HLOOKUP(DH$7+0.5,$J$67:$DO$121,ROWS($A$11:$A57)+2,FALSE)","v":211},{"$f":"HLOOKUP(DI$7+0.5,$J$67:$DO$121,ROWS($A$11:$A57)+2,FALSE)","v":"N/A"},{"$f":"HLOOKUP(DJ$7+0.5,$J$67:$DO$121,ROWS($A$11:$A57)+2,FALSE)","v":361},{"$f":"HLOOKUP(DK$7+0.5,$J$67:$DO$121,ROWS($A$11:$A57)+2,FALSE)","v":115},{"$f":"HLOOKUP(DL$7+0.5,$J$67:$DO$121,ROWS($A$11:$A57)+2,FALSE)","v":211},{"$f":"HLOOKUP(DM$7+0.5,$J$67:$DO$121,ROWS($A$11:$A57)+2,FALSE)","v":488},{"$f":"HLOOKUP(DN$7+0.5,$J$67:$DO$121,ROWS($A$11:$A57)+2,FALSE)","v":86},{"$f":"HLOOKUP(DO$7+0.5,$J$67:$DO$121,ROWS($A$11:$A57)+2,FALSE)","v":211}]
[null,"Virginia",7930773,4735,6752310,28251,870491,21599,3.8484085295041888E-2,{"$f":"HLOOKUP(J$7,$J$67:$DO$121,ROWS($A$11:$A58)+2,FALSE)","v":259507},{"$f":"HLOOKUP(K$7,$J$67:$DO$121,ROWS($A$11:$A58)+2,FALSE)","v":2671},{"$f":"HLOOKUP(L$7,$J$67:$DO$121,ROWS($A$11:$A58)+2,FALSE)","v":3296},{"$f":"HLOOKUP(M$7,$J$67:$DO$121,ROWS($A$11:$A58)+2,FALSE)","v":3807},{"$f":"HLOOKUP(N$7,$J$67:$DO$121,ROWS($A$11:$A58)+2,FALSE)","v":1233},{"$f":"HLOOKUP(O$7,$J$67:$DO$121,ROWS($A$11:$A58)+2,FALSE)","v":17088},{"$f":"HLOOKUP(P$7,$J$67:$DO$121,ROWS($A$11:$A58)+2,FALSE)","v":3229},{"$f":"HLOOKUP(Q$7,$J$67:$DO$121,ROWS($A$11:$A58)+2,FALSE)","v":2468},{"$f":"HLOOKUP(R$7,$J$67:$DO$121,ROWS($A$11:$A58)+2,FALSE)","v":1265},{"$f":"HLOOKUP(S$7,$J$67:$DO$121,ROWS($A$11:$A58)+2,FALSE)","v":10593},{"$f":"HLOOKUP(T$7,$J$67:$DO$121,ROWS($A$11:$A58)+2,FALSE)","v":18165},{"$f":"HLOOKUP(U$7,$J$67:$DO$121,ROWS($A$11:$A58)+2,FALSE)","v":11927},{"$f":"HLOOKUP(V$7,$J$67:$DO$121,ROWS($A$11:$A58)+2,FALSE)","v":2347},{"$f":"HLOOKUP(W$7,$J$67:$DO$121,ROWS($A$11:$A58)+2,FALSE)","v":1159},{"$f":"HLOOKUP(X$7,$J$67:$DO$121,ROWS($A$11:$A58)+2,FALSE)","v":7576},{"$f":"HLOOKUP(Y$7,$J$67:$DO$121,ROWS($A$11:$A58)+2,FALSE)","v":2892},{"$f":"HLOOKUP(Z$7,$J$67:$DO$121,ROWS($A$11:$A58)+2,FALSE)","v":1135},{"$f":"HLOOKUP(AA$7,$J$67:$DO$121,ROWS($A$11:$A58)+2,FALSE)","v":2103},{"$f":"HLOOKUP(AB$7,$J$67:$DO$121,ROWS($A$11:$A58)+2,FALSE)","v":2051},{"$f":"HLOOKUP(AC$7,$J$67:$DO$121,ROWS($A$11:$A58)+2,FALSE)","v":2148},{"$f":"HLOOKUP(AD$7,$J$67:$DO$121,ROWS($A$11:$A58)+2,FALSE)","v":1494},{"$f":"HLOOKUP(AE$7,$J$67:$DO$121,ROWS($A$11:$A58)+2,FALSE)","v":24822},{"$f":"HLOOKUP(AF$7,$J$67:$DO$121,ROWS($A$11:$A58)+2,FALSE)","v":4104},{"$f":"HLOOKUP(AG$7,$J$67:$DO$121,ROWS($A$11:$A58)+2,FALSE)","v":5733},{"$f":"HLOOKUP(AH$7,$J$67:$DO$121,ROWS($A$11:$A58)+2,FALSE)","v":462},{"$f":"HLOOKUP(AI$7,$J$67:$DO$121,ROWS($A$11:$A58)+2,FALSE)","v":1858},{"$f":"HLOOKUP(AJ$7,$J$67:$DO$121,ROWS($A$11:$A58)+2,FALSE)","v":4262},{"$f":"HLOOKUP(AK$7,$J$67:$DO$121,ROWS($A$11:$A58)+2,FALSE)","v":866},{"$f":"HLOOKUP(AL$7,$J$67:$DO$121,ROWS($A$11:$A58)+2,FALSE)","v":523},{"$f":"HLOOKUP(AM$7,$J$67:$DO$121,ROWS($A$11:$A58)+2,FALSE)","v":748},{"$f":"HLOOKUP(AN$7,$J$67:$DO$121,ROWS($A$11:$A58)+2,FALSE)","v":372},{"$f":"HLOOKUP(AO$7,$J$67:$DO$121,ROWS($A$11:$A58)+2,FALSE)","v":6825},{"$f":"HLOOKUP(AP$7,$J$67:$DO$121,ROWS($A$11:$A58)+2,FALSE)","v":1098},{"$f":"HLOOKUP(AQ$7,$J$67:$DO$121,ROWS($A$11:$A58)+2,FALSE)","v":17525},{"$f":"HLOOKUP(AR$7,$J$67:$DO$121,ROWS($A$11:$A58)+2,FALSE)","v":23829},{"$f":"HLOOKUP(AS$7,$J$67:$DO$121,ROWS($A$11:$A58)+2,FALSE)","v":201},{"$f":"HLOOKUP(AT$7,$J$67:$DO$121,ROWS($A$11:$A58)+2,FALSE)","v":7708},{"$f":"HLOOKUP(AU$7,$J$67:$DO$121,ROWS($A$11:$A58)+2,FALSE)","v":781},{"$f":"HLOOKUP(AV$7,$J$67:$DO$121,ROWS($A$11:$A58)+2,FALSE)","v":2137},{"$f":"HLOOKUP(AW$7,$J$67:$DO$121,ROWS($A$11:$A58)+2,FALSE)","v":11796},{"$f":"HLOOKUP(AX$7,$J$67:$DO$121,ROWS($A$11:$A58)+2,FALSE)","v":1543},{"$f":"HLOOKUP(AY$7,$J$67:$DO$121,ROWS($A$11:$A58)+2,FALSE)","v":8339},{"$f":"HLOOKUP(AZ$7,$J$67:$DO$121,ROWS($A$11:$A58)+2,FALSE)","v":98},{"$f":"HLOOKUP(BA$7,$J$67:$DO$121,ROWS($A$11:$A58)+2,FALSE)","v":5842},{"$f":"HLOOKUP(BB$7,$J$67:$DO$121,ROWS($A$11:$A58)+2,FALSE)","v":12938},{"$f":"HLOOKUP(BC$7,$J$67:$DO$121,ROWS($A$11:$A58)+2,FALSE)","v":1551},{"$f":"HLOOKUP(BD$7,$J$67:$DO$121,ROWS($A$11:$A58)+2,FALSE)","v":676},{"$f":"HLOOKUP(BE$7,$J$67:$DO$121,ROWS($A$11:$A58)+2,FALSE)","v":"N/A"},{"$f":"HLOOKUP(BF$7,$J$67:$DO$121,ROWS($A$11:$A58)+2,FALSE)","v":4373},{"$f":"HLOOKUP(BG$7,$J$67:$DO$121,ROWS($A$11:$A58)+2,FALSE)","v":6779},{"$f":"HLOOKUP(BH$7,$J$67:$DO$121,ROWS($A$11:$A58)+2,FALSE)","v":2648},{"$f":"HLOOKUP(BI$7,$J$67:$DO$121,ROWS($A$11:$A58)+2,FALSE)","v":423},{"$f":"HLOOKUP(BJ$7,$J$67:$DO$121,ROWS($A$11:$A58)+2,FALSE)","v":1306},null,null,null,null,{"$f":"HLOOKUP(BO$7+0.5,$J$67:$DO$121,ROWS($A$11:$A58)+2,FALSE)","v":12319},{"$f":"HLOOKUP(BP$7+0.5,$J$67:$DO$121,ROWS($A$11:$A58)+2,FALSE)","v":1201},{"$f":"HLOOKUP(BQ$7+0.5,$J$67:$DO$121,ROWS($A$11:$A58)+2,FALSE)","v":1952},{"$f":"HLOOKUP(BR$7+0.5,$J$67:$DO$121,ROWS($A$11:$A58)+2,FALSE)","v":1454},{"$f":"HLOOKUP(BS$7+0.5,$J$67:$DO$121,ROWS($A$11:$A58)+2,FALSE)","v":1034},{"$f":"HLOOKUP(BT$7+0.5,$J$67:$DO$121,ROWS($A$11:$A58)+2,FALSE)","v":3674},{"$f":"HLOOKUP(BU$7+0.5,$J$67:$DO$121,ROWS($A$11:$A58)+2,FALSE)","v":1571},{"$f":"HLOOKUP(BV$7+0.5,$J$67:$DO$121,ROWS($A$11:$A58)+2,FALSE)","v":921},{"$f":"HLOOKUP(BW$7+0.5,$J$67:$DO$121,ROWS($A$11:$A58)+2,FALSE)","v":828},{"$f":"HLOOKUP(BX$7+0.5,$J$67:$DO$121,ROWS($A$11:$A58)+2,FALSE)","v":2299},{"$f":"HLOOKUP(BY$7+0.5,$J$67:$DO$121,ROWS($A$11:$A58)+2,FALSE)","v":3554},{"$f":"HLOOKUP(BZ$7+0.5,$J$67:$DO$121,ROWS($A$11:$A58)+2,FALSE)","v":3210},{"$f":"HLOOKUP(CA$7+0.5,$J$67:$DO$121,ROWS($A$11:$A58)+2,FALSE)","v":1394},{"$f":"HLOOKUP(CB$7+0.5,$J$67:$DO$121,ROWS($A$11:$A58)+2,FALSE)","v":787},{"$f":"HLOOKUP(CC$7+0.5,$J$67:$DO$121,ROWS($A$11:$A58)+2,FALSE)","v":2202},{"$f":"HLOOKUP(CD$7+0.5,$J$67:$DO$121,ROWS($A$11:$A58)+2,FALSE)","v":1856},{"$f":"HLOOKUP(CE$7+0.5,$J$67:$DO$121,ROWS($A$11:$A58)+2,FALSE)","v":758},{"$f":"HLOOKUP(CF$7+0.5,$J$67:$DO$121,ROWS($A$11:$A58)+2,FALSE)","v":1418},{"$f":"HLOOKUP(CG$7+0.5,$J$67:$DO$121,ROWS($A$11:$A58)+2,FALSE)","v":1056},{"$f":"HLOOKUP(CH$7+0.5,$J$67:$DO$121,ROWS($A$11:$A58)+2,FALSE)","v":926},{"$f":"HLOOKUP(CI$7+0.5,$J$67:$DO$121,ROWS($A$11:$A58)+2,FALSE)","v":932},{"$f":"HLOOKUP(CJ$7+0.5,$J$67:$DO$121,ROWS($A$11:$A58)+2,FALSE)","v":4371},{"$f":"HLOOKUP(CK$7+0.5,$J$67:$DO$121,ROWS($A$11:$A58)+2,FALSE)","v":1347},{"$f":"HLOOKUP(CL$7+0.5,$J$67:$DO$121,ROWS($A$11:$A58)+2,FALSE)","v":2245},{"$f":"HLOOKUP(CM$7+0.5,$J$67:$DO$121,ROWS($A$11:$A58)+2,FALSE)","v":292},{"$f":"HLOOKUP(CN$7+0.5,$J$67:$DO$121,ROWS($A$11:$A58)+2,FALSE)","v":1007},{"$f":"HLOOKUP(CO$7+0.5,$J$67:$DO$121,ROWS($A$11:$A58)+2,FALSE)","v":2141},{"$f":"HLOOKUP(CP$7+0.5,$J$67:$DO$121,ROWS($A$11:$A58)+2,FALSE)","v":1090},{"$f":"HLOOKUP(CQ$7+0.5,$J$67:$DO$121,ROWS($A$11:$A58)+2,FALSE)","v":475},{"$f":"HLOOKUP(CR$7+0.5,$J$67:$DO$121,ROWS($A$11:$A58)+2,FALSE)","v":469},{"$f":"HLOOKUP(CS$7+0.5,$J$67:$DO$121,ROWS($A$11:$A58)+2,FALSE)","v":515},{"$f":"HLOOKUP(CT$7+0.5,$J$67:$DO$121,ROWS($A$11:$A58)+2,FALSE)","v":1687},{"$f":"HLOOKUP(CU$7+0.5,$J$67:$DO$121,ROWS($A$11:$A58)+2,FALSE)","v":735},{"$f":"HLOOKUP(CV$7+0.5,$J$67:$DO$121,ROWS($A$11:$A58)+2,FALSE)","v":3087},{"$f":"HLOOKUP(CW$7+0.5,$J$67:$DO$121,ROWS($A$11:$A58)+2,FALSE)","v":4041},{"$f":"HLOOKUP(CX$7+0.5,$J$67:$DO$121,ROWS($A$11:$A58)+2,FALSE)","v":325},{"$f":"HLOOKUP(CY$7+0.5,$J$67:$DO$121,ROWS($A$11:$A58)+2,FALSE)","v":2181},{"$f":"HLOOKUP(CZ$7+0.5,$J$67:$DO$121,ROWS($A$11:$A58)+2,FALSE)","v":611},{"$f":"HLOOKUP(DA$7+0.5,$J$67:$DO$121,ROWS($A$11:$A58)+2,FALSE)","v":2081},{"$f":"HLOOKUP(DB$7+0.5,$J$67:$DO$121,ROWS($A$11:$A58)+2,FALSE)","v":2546},{"$f":"HLOOKUP(DC$7+0.5,$J$67:$DO$121,ROWS($A$11:$A58)+2,FALSE)","v":1150},{"$f":"HLOOKUP(DD$7+0.5,$J$67:$DO$121,ROWS($A$11:$A58)+2,FALSE)","v":2247},{"$f":"HLOOKUP(DE$7+0.5,$J$67:$DO$121,ROWS($A$11:$A58)+2,FALSE)","v":179},{"$f":"HLOOKUP(DF$7+0.5,$J$67:$DO$121,ROWS($A$11:$A58)+2,FALSE)","v":1776},{"$f":"HLOOKUP(DG$7+0.5,$J$67:$DO$121,ROWS($A$11:$A58)+2,FALSE)","v":3212},{"$f":"HLOOKUP(DH$7+0.5,$J$67:$DO$121,ROWS($A$11:$A58)+2,FALSE)","v":822},{"$f":"HLOOKUP(DI$7+0.5,$J$67:$DO$121,ROWS($A$11:$A58)+2,FALSE)","v":599},{"$f":"HLOOKUP(DJ$7+0.5,$J$67:$DO$121,ROWS($A$11:$A58)+2,FALSE)","v":"N/A"},{"$f":"HLOOKUP(DK$7+0.5,$J$67:$DO$121,ROWS($A$11:$A58)+2,FALSE)","v":1700},{"$f":"HLOOKUP(DL$7+0.5,$J$67:$DO$121,ROWS($A$11:$A58)+2,FALSE)","v":2481},{"$f":"HLOOKUP(DM$7+0.5,$J$67:$DO$121,ROWS($A$11:$A58)+2,FALSE)","v":1525},{"$f":"HLOOKUP(DN$7+0.5,$J$67:$DO$121,ROWS($A$11:$A58)+2,FALSE)","v":429},{"$f":"HLOOKUP(DO$7+0.5,$J$67:$DO$121,ROWS($A$11:$A58)+2,FALSE)","v":872}]
[null,"Washington",6661321,4568,5464985,26926,946923,24983,2.8440973901375736E-2,{"$f":"HLOOKUP(J$7,$J$67:$DO$121,ROWS($A$11:$A59)+2,FALSE)","v":191784},{"$f":"HLOOKUP(K$7,$J$67:$DO$121,ROWS($A$11:$A59)+2,FALSE)","v":1322},{"$f":"HLOOKUP(L$7,$J$67:$DO$121,ROWS($A$11:$A59)+2,FALSE)","v":5644},{"$f":"HLOOKUP(M$7,$J$67:$DO$121,ROWS($A$11:$A59)+2,FALSE)","v":5971},{"$f":"HLOOKUP(N$7,$J$67:$DO$121,ROWS($A$11:$A59)+2,FALSE)","v":658},{"$f":"HLOOKUP(O$7,$J$67:$DO$121,ROWS($A$11:$A59)+2,FALSE)","v":39468},{"$f":"HLOOKUP(P$7,$J$67:$DO$121,ROWS($A$11:$A59)+2,FALSE)","v":4883},{"$f":"HLOOKUP(Q$7,$J$67:$DO$121,ROWS($A$11:$A59)+2,FALSE)","v":642},{"$f":"HLOOKUP(R$7,$J$67:$DO$121,ROWS($A$11:$A59)+2,FALSE)","v":202},{"$f":"HLOOKUP(S$7,$J$67:$DO$121,ROWS($A$11:$A59)+2,FALSE)","v":243},{"$f":"HLOOKUP(T$7,$J$67:$DO$121,ROWS($A$11:$A59)+2,FALSE)","v":5378},{"$f":"HLOOKUP(U$7,$J$67:$DO$121,ROWS($A$11:$A59)+2,FALSE)","v":3107},{"$f":"HLOOKUP(V$7,$J$67:$DO$121,ROWS($A$11:$A59)+2,FALSE)","v":4246},{"$f":"HLOOKUP(W$7,$J$67:$DO$121,ROWS($A$11:$A59)+2,FALSE)","v":12661},{"$f":"HLOOKUP(X$7,$J$67:$DO$121,ROWS($A$11:$A59)+2,FALSE)","v":3931},{"$f":"HLOOKUP(Y$7,$J$67:$DO$121,ROWS($A$11:$A59)+2,FALSE)","v":1912},{"$f":"HLOOKUP(Z$7,$J$67:$DO$121,ROWS($A$11:$A59)+2,FALSE)","v":1685},{"$f":"HLOOKUP(AA$7,$J$67:$DO$121,ROWS($A$11:$A59)+2,FALSE)","v":1694},{"$f":"HLOOKUP(AB$7,$J$67:$DO$121,ROWS($A$11:$A59)+2,FALSE)","v":886},{"$f":"HLOOKUP(AC$7,$J$67:$DO$121,ROWS($A$11:$A59)+2,FALSE)","v":1011},{"$f":"HLOOKUP(AD$7,$J$67:$DO$121,ROWS($A$11:$A59)+2,FALSE)","v":717},{"$f":"HLOOKUP(AE$7,$J$67:$DO$121,ROWS($A$11:$A59)+2,FALSE)","v":629},{"$f":"HLOOKUP(AF$7,$J$67:$DO$121,ROWS($A$11:$A59)+2,FALSE)","v":1448},{"$f":"HLOOKUP(AG$7,$J$67:$DO$121,ROWS($A$11:$A59)+2,FALSE)","v":2871},{"$f":"HLOOKUP(AH$7,$J$67:$DO$121,ROWS($A$11:$A59)+2,FALSE)","v":1323},{"$f":"HLOOKUP(AI$7,$J$67:$DO$121,ROWS($A$11:$A59)+2,FALSE)","v":737},{"$f":"HLOOKUP(AJ$7,$J$67:$DO$121,ROWS($A$11:$A59)+2,FALSE)","v":3727},{"$f":"HLOOKUP(AK$7,$J$67:$DO$121,ROWS($A$11:$A59)+2,FALSE)","v":5094},{"$f":"HLOOKUP(AL$7,$J$67:$DO$121,ROWS($A$11:$A59)+2,FALSE)","v":323},{"$f":"HLOOKUP(AM$7,$J$67:$DO$121,ROWS($A$11:$A59)+2,FALSE)","v":5310},{"$f":"HLOOKUP(AN$7,$J$67:$DO$121,ROWS($A$11:$A59)+2,FALSE)","v":282},{"$f":"HLOOKUP(AO$7,$J$67:$DO$121,ROWS($A$11:$A59)+2,FALSE)","v":721},{"$f":"HLOOKUP(AP$7,$J$67:$DO$121,ROWS($A$11:$A59)+2,FALSE)","v":1012},{"$f":"HLOOKUP(AQ$7,$J$67:$DO$121,ROWS($A$11:$A59)+2,FALSE)","v":4140},{"$f":"HLOOKUP(AR$7,$J$67:$DO$121,ROWS($A$11:$A59)+2,FALSE)","v":2143},{"$f":"HLOOKUP(AS$7,$J$67:$DO$121,ROWS($A$11:$A59)+2,FALSE)","v":515},{"$f":"HLOOKUP(AT$7,$J$67:$DO$121,ROWS($A$11:$A59)+2,FALSE)","v":2727},{"$f":"HLOOKUP(AU$7,$J$67:$DO$121,ROWS($A$11:$A59)+2,FALSE)","v":1986},{"$f":"HLOOKUP(AV$7,$J$67:$DO$121,ROWS($A$11:$A59)+2,FALSE)","v":26235},{"$f":"HLOOKUP(AW$7,$J$67:$DO$121,ROWS($A$11:$A59)+2,FALSE)","v":2893},{"$f":"HLOOKUP(AX$7,$J$67:$DO$121,ROWS($A$11:$A59)+2,FALSE)","v":220},{"$f":"HLOOKUP(AY$7,$J$67:$DO$121,ROWS($A$11:$A59)+2,FALSE)","v":3047},{"$f":"HLOOKUP(AZ$7,$J$67:$DO$121,ROWS($A$11:$A59)+2,FALSE)","v":866},{"$f":"HLOOKUP(BA$7,$J$67:$DO$121,ROWS($A$11:$A59)+2,FALSE)","v":789},{"$f":"HLOOKUP(BB$7,$J$67:$DO$121,ROWS($A$11:$A59)+2,FALSE)","v":11338},{"$f":"HLOOKUP(BC$7,$J$67:$DO$121,ROWS($A$11:$A59)+2,FALSE)","v":4020},{"$f":"HLOOKUP(BD$7,$J$67:$DO$121,ROWS($A$11:$A59)+2,FALSE)","v":981},{"$f":"HLOOKUP(BE$7,$J$67:$DO$121,ROWS($A$11:$A59)+2,FALSE)","v":7266},{"$f":"HLOOKUP(BF$7,$J$67:$DO$121,ROWS($A$11:$A59)+2,FALSE)","v":"N/A"},{"$f":"HLOOKUP(BG$7,$J$67:$DO$121,ROWS($A$11:$A59)+2,FALSE)","v":62},{"$f":"HLOOKUP(BH$7,$J$67:$DO$121,ROWS($A$11:$A59)+2,FALSE)","v":2180},{"$f":"HLOOKUP(BI$7,$J$67:$DO$121,ROWS($A$11:$A59)+2,FALSE)","v":638},{"$f":"HLOOKUP(BJ$7,$J$67:$DO$121,ROWS($A$11:$A59)+2,FALSE)","v":0},null,null,null,null,{"$f":"HLOOKUP(BO$7+0.5,$J$67:$DO$121,ROWS($A$11:$A59)+2,FALSE)","v":12094},{"$f":"HLOOKUP(BP$7+0.5,$J$67:$DO$121,ROWS($A$11:$A59)+2,FALSE)","v":1150},{"$f":"HLOOKUP(BQ$7+0.5,$J$67:$DO$121,ROWS($A$11:$A59)+2,FALSE)","v":2055},{"$f":"HLOOKUP(BR$7+0.5,$J$67:$DO$121,ROWS($A$11:$A59)+2,FALSE)","v":2284},{"$f":"HLOOKUP(BS$7+0.5,$J$67:$DO$121,ROWS($A$11:$A59)+2,FALSE)","v":531},{"$f":"HLOOKUP(BT$7+0.5,$J$67:$DO$121,ROWS($A$11:$A59)+2,FALSE)","v":5451},{"$f":"HLOOKUP(BU$7+0.5,$J$67:$DO$121,ROWS($A$11:$A59)+2,FALSE)","v":1316},{"$f":"HLOOKUP(BV$7+0.5,$J$67:$DO$121,ROWS($A$11:$A59)+2,FALSE)","v":450},{"$f":"HLOOKUP(BW$7+0.5,$J$67:$DO$121,ROWS($A$11:$A59)+2,FALSE)","v":198},{"$f":"HLOOKUP(BX$7+0.5,$J$67:$DO$121,ROWS($A$11:$A59)+2,FALSE)","v":260},{"$f":"HLOOKUP(BY$7+0.5,$J$67:$DO$121,ROWS($A$11:$A59)+2,FALSE)","v":1314},{"$f":"HLOOKUP(BZ$7+0.5,$J$67:$DO$121,ROWS($A$11:$A59)+2,FALSE)","v":1650},{"$f":"HLOOKUP(CA$7+0.5,$J$67:$DO$121,ROWS($A$11:$A59)+2,FALSE)","v":1482},{"$f":"HLOOKUP(CB$7+0.5,$J$67:$DO$121,ROWS($A$11:$A59)+2,FALSE)","v":3237},{"$f":"HLOOKUP(CC$7+0.5,$J$67:$DO$121,ROWS($A$11:$A59)+2,FALSE)","v":1438},{"$f":"HLOOKUP(CD$7+0.5,$J$67:$DO$121,ROWS($A$11:$A59)+2,FALSE)","v":1321},{"$f":"HLOOKUP(CE$7+0.5,$J$67:$DO$121,ROWS($A$11:$A59)+2,FALSE)","v":993},{"$f":"HLOOKUP(CF$7+0.5,$J$67:$DO$121,ROWS($A$11:$A59)+2,FALSE)","v":1174},{"$f":"HLOOKUP(CG$7+0.5,$J$67:$DO$121,ROWS($A$11:$A59)+2,FALSE)","v":626},{"$f":"HLOOKUP(CH$7+0.5,$J$67:$DO$121,ROWS($A$11:$A59)+2,FALSE)","v":588},{"$f":"HLOOKUP(CI$7+0.5,$J$67:$DO$121,ROWS($A$11:$A59)+2,FALSE)","v":653},{"$f":"HLOOKUP(CJ$7+0.5,$J$67:$DO$121,ROWS($A$11:$A59)+2,FALSE)","v":445},{"$f":"HLOOKUP(CK$7+0.5,$J$67:$DO$121,ROWS($A$11:$A59)+2,FALSE)","v":796},{"$f":"HLOOKUP(CL$7+0.5,$J$67:$DO$121,ROWS($A$11:$A59)+2,FALSE)","v":1443},{"$f":"HLOOKUP(CM$7+0.5,$J$67:$DO$121,ROWS($A$11:$A59)+2,FALSE)","v":656},{"$f":"HLOOKUP(CN$7+0.5,$J$67:$DO$121,ROWS($A$11:$A59)+2,FALSE)","v":784},{"$f":"HLOOKUP(CO$7+0.5,$J$67:$DO$121,ROWS($A$11:$A59)+2,FALSE)","v":2288},{"$f":"HLOOKUP(CP$7+0.5,$J$67:$DO$121,ROWS($A$11:$A59)+2,FALSE)","v":1449},{"$f":"HLOOKUP(CQ$7+0.5,$J$67:$DO$121,ROWS($A$11:$A59)+2,FALSE)","v":245},{"$f":"HLOOKUP(CR$7+0.5,$J$67:$DO$121,ROWS($A$11:$A59)+2,FALSE)","v":1954},{"$f":"HLOOKUP(CS$7+0.5,$J$67:$DO$121,ROWS($A$11:$A59)+2,FALSE)","v":305},{"$f":"HLOOKUP(CT$7+0.5,$J$67:$DO$121,ROWS($A$11:$A59)+2,FALSE)","v":604},{"$f":"HLOOKUP(CU$7+0.5,$J$67:$DO$121,ROWS($A$11:$A59)+2,FALSE)","v":599},{"$f":"HLOOKUP(CV$7+0.5,$J$67:$DO$121,ROWS($A$11:$A59)+2,FALSE)","v":1494},{"$f":"HLOOKUP(CW$7+0.5,$J$67:$DO$121,ROWS($A$11:$A59)+2,FALSE)","v":1189},{"$f":"HLOOKUP(CX$7+0.5,$J$67:$DO$121,ROWS($A$11:$A59)+2,FALSE)","v":426},{"$f":"HLOOKUP(CY$7+0.5,$J$67:$DO$121,ROWS($A$11:$A59)+2,FALSE)","v":1146},{"$f":"HLOOKUP(CZ$7+0.5,$J$67:$DO$121,ROWS($A$11:$A59)+2,FALSE)","v":1131},{"$f":"HLOOKUP(DA$7+0.5,$J$67:$DO$121,ROWS($A$11:$A59)+2,FALSE)","v":4414},{"$f":"HLOOKUP(DB$7+0.5,$J$67:$DO$121,ROWS($A$11:$A59)+2,FALSE)","v":1410},{"$f":"HLOOKUP(DC$7+0.5,$J$67:$DO$121,ROWS($A$11:$A59)+2,FALSE)","v":197},{"$f":"HLOOKUP(DD$7+0.5,$J$67:$DO$121,ROWS($A$11:$A59)+2,FALSE)","v":1800},{"$f":"HLOOKUP(DE$7+0.5,$J$67:$DO$121,ROWS($A$11:$A59)+2,FALSE)","v":729},{"$f":"HLOOKUP(DF$7+0.5,$J$67:$DO$121,ROWS($A$11:$A59)+2,FALSE)","v":511},{"$f":"HLOOKUP(DG$7+0.5,$J$67:$DO$121,ROWS($A$11:$A59)+2,FALSE)","v":3003},{"$f":"HLOOKUP(DH$7+0.5,$J$67:$DO$121,ROWS($A$11:$A59)+2,FALSE)","v":1681},{"$f":"HLOOKUP(DI$7+0.5,$J$67:$DO$121,ROWS($A$11:$A59)+2,FALSE)","v":803},{"$f":"HLOOKUP(DJ$7+0.5,$J$67:$DO$121,ROWS($A$11:$A59)+2,FALSE)","v":2764},{"$f":"HLOOKUP(DK$7+0.5,$J$67:$DO$121,ROWS($A$11:$A59)+2,FALSE)","v":"N/A"},{"$f":"HLOOKUP(DL$7+0.5,$J$67:$DO$121,ROWS($A$11:$A59)+2,FALSE)","v":107},{"$f":"HLOOKUP(DM$7+0.5,$J$67:$DO$121,ROWS($A$11:$A59)+2,FALSE)","v":1074},{"$f":"HLOOKUP(DN$7+0.5,$J$67:$DO$121,ROWS($A$11:$A59)+2,FALSE)","v":524},{"$f":"HLOOKUP(DO$7+0.5,$J$67:$DO$121,ROWS($A$11:$A59)+2,FALSE)","v":277}]
[null,"West Virginia",1833535,1890,1625125,9824,166168,9198,5.8738921664976823E-3,{"$f":"HLOOKUP(J$7,$J$67:$DO$121,ROWS($A$11:$A60)+2,FALSE)","v":39609},{"$f":"HLOOKUP(K$7,$J$67:$DO$121,ROWS($A$11:$A60)+2,FALSE)","v":41},{"$f":"HLOOKUP(L$7,$J$67:$DO$121,ROWS($A$11:$A60)+2,FALSE)","v":1326},{"$f":"HLOOKUP(M$7,$J$67:$DO$121,ROWS($A$11:$A60)+2,FALSE)","v":0},{"$f":"HLOOKUP(N$7,$J$67:$DO$121,ROWS($A$11:$A60)+2,FALSE)","v":0},{"$f":"HLOOKUP(O$7,$J$67:$DO$121,ROWS($A$11:$A60)+2,FALSE)","v":760},{"$f":"HLOOKUP(P$7,$J$67:$DO$121,ROWS($A$11:$A60)+2,FALSE)","v":608},{"$f":"HLOOKUP(Q$7,$J$67:$DO$121,ROWS($A$11:$A60)+2,FALSE)","v":84},{"$f":"HLOOKUP(R$7,$J$67:$DO$121,ROWS($A$11:$A60)+2,FALSE)","v":556},{"$f":"HLOOKUP(S$7,$J$67:$DO$121,ROWS($A$11:$A60)+2,FALSE)","v":480},{"$f":"HLOOKUP(T$7,$J$67:$DO$121,ROWS($A$11:$A60)+2,FALSE)","v":1842},{"$f":"HLOOKUP(U$7,$J$67:$DO$121,ROWS($A$11:$A60)+2,FALSE)","v":485},{"$f":"HLOOKUP(V$7,$J$67:$DO$121,ROWS($A$11:$A60)+2,FALSE)","v":0},{"$f":"HLOOKUP(W$7,$J$67:$DO$121,ROWS($A$11:$A60)+2,FALSE)","v":88},{"$f":"HLOOKUP(X$7,$J$67:$DO$121,ROWS($A$11:$A60)+2,FALSE)","v":356},{"$f":"HLOOKUP(Y$7,$J$67:$DO$121,ROWS($A$11:$A60)+2,FALSE)","v":366},{"$f":"HLOOKUP(Z$7,$J$67:$DO$121,ROWS($A$11:$A60)+2,FALSE)","v":0},{"$f":"HLOOKUP(AA$7,$J$67:$DO$121,ROWS($A$11:$A60)+2,FALSE)","v":161},{"$f":"HLOOKUP(AB$7,$J$67:$DO$121,ROWS($A$11:$A60)+2,FALSE)","v":851},{"$f":"HLOOKUP(AC$7,$J$67:$DO$121,ROWS($A$11:$A60)+2,FALSE)","v":60},{"$f":"HLOOKUP(AD$7,$J$67:$DO$121,ROWS($A$11:$A60)+2,FALSE)","v":0},{"$f":"HLOOKUP(AE$7,$J$67:$DO$121,ROWS($A$11:$A60)+2,FALSE)","v":4249},{"$f":"HLOOKUP(AF$7,$J$67:$DO$121,ROWS($A$11:$A60)+2,FALSE)","v":191},{"$f":"HLOOKUP(AG$7,$J$67:$DO$121,ROWS($A$11:$A60)+2,FALSE)","v":657},{"$f":"HLOOKUP(AH$7,$J$67:$DO$121,ROWS($A$11:$A60)+2,FALSE)","v":0},{"$f":"HLOOKUP(AI$7,$J$67:$DO$121,ROWS($A$11:$A60)+2,FALSE)","v":44},{"$f":"HLOOKUP(AJ$7,$J$67:$DO$121,ROWS($A$11:$A60)+2,FALSE)","v":160},{"$f":"HLOOKUP(AK$7,$J$67:$DO$121,ROWS($A$11:$A60)+2,FALSE)","v":39},{"$f":"HLOOKUP(AL$7,$J$67:$DO$121,ROWS($A$11:$A60)+2,FALSE)","v":0},{"$f":"HLOOKUP(AM$7,$J$67:$DO$121,ROWS($A$11:$A60)+2,FALSE)","v":25},{"$f":"HLOOKUP(AN$7,$J$67:$DO$121,ROWS($A$11:$A60)+2,FALSE)","v":107},{"$f":"HLOOKUP(AO$7,$J$67:$DO$121,ROWS($A$11:$A60)+2,FALSE)","v":906},{"$f":"HLOOKUP(AP$7,$J$67:$DO$121,ROWS($A$11:$A60)+2,FALSE)","v":0},{"$f":"HLOOKUP(AQ$7,$J$67:$DO$121,ROWS($A$11:$A60)+2,FALSE)","v":611},{"$f":"HLOOKUP(AR$7,$J$67:$DO$121,ROWS($A$11:$A60)+2,FALSE)","v":2552},{"$f":"HLOOKUP(AS$7,$J$67:$DO$121,ROWS($A$11:$A60)+2,FALSE)","v":268},{"$f":"HLOOKUP(AT$7,$J$67:$DO$121,ROWS($A$11:$A60)+2,FALSE)","v":7925},{"$f":"HLOOKUP(AU$7,$J$67:$DO$121,ROWS($A$11:$A60)+2,FALSE)","v":229},{"$f":"HLOOKUP(AV$7,$J$67:$DO$121,ROWS($A$11:$A60)+2,FALSE)","v":0},{"$f":"HLOOKUP(AW$7,$J$67:$DO$121,ROWS($A$11:$A60)+2,FALSE)","v":4908},{"$f":"HLOOKUP(AX$7,$J$67:$DO$121,ROWS($A$11:$A60)+2,FALSE)","v":238},{"$f":"HLOOKUP(AY$7,$J$67:$DO$121,ROWS($A$11:$A60)+2,FALSE)","v":647},{"$f":"HLOOKUP(AZ$7,$J$67:$DO$121,ROWS($A$11:$A60)+2,FALSE)","v":0},{"$f":"HLOOKUP(BA$7,$J$67:$DO$121,ROWS($A$11:$A60)+2,FALSE)","v":1160},{"$f":"HLOOKUP(BB$7,$J$67:$DO$121,ROWS($A$11:$A60)+2,FALSE)","v":968},{"$f":"HLOOKUP(BC$7,$J$67:$DO$121,ROWS($A$11:$A60)+2,FALSE)","v":112},{"$f":"HLOOKUP(BD$7,$J$67:$DO$121,ROWS($A$11:$A60)+2,FALSE)","v":208},{"$f":"HLOOKUP(BE$7,$J$67:$DO$121,ROWS($A$11:$A60)+2,FALSE)","v":4999},{"$f":"HLOOKUP(BF$7,$J$67:$DO$121,ROWS($A$11:$A60)+2,FALSE)","v":192},{"$f":"HLOOKUP(BG$7,$J$67:$DO$121,ROWS($A$11:$A60)+2,FALSE)","v":"N/A"},{"$f":"HLOOKUP(BH$7,$J$67:$DO$121,ROWS($A$11:$A60)+2,FALSE)","v":150},{"$f":"HLOOKUP(BI$7,$J$67:$DO$121,ROWS($A$11:$A60)+2,FALSE)","v":0},{"$f":"HLOOKUP(BJ$7,$J$67:$DO$121,ROWS($A$11:$A60)+2,FALSE)","v":182},null,null,null,null,{"$f":"HLOOKUP(BO$7+0.5,$J$67:$DO$121,ROWS($A$11:$A60)+2,FALSE)","v":4590},{"$f":"HLOOKUP(BP$7+0.5,$J$67:$DO$121,ROWS($A$11:$A60)+2,FALSE)","v":69},{"$f":"HLOOKUP(BQ$7+0.5,$J$67:$DO$121,ROWS($A$11:$A60)+2,FALSE)","v":1210},{"$f":"HLOOKUP(BR$7+0.5,$J$67:$DO$121,ROWS($A$11:$A60)+2,FALSE)","v":269},{"$f":"HLOOKUP(BS$7+0.5,$J$67:$DO$121,ROWS($A$11:$A60)+2,FALSE)","v":269},{"$f":"HLOOKUP(BT$7+0.5,$J$67:$DO$121,ROWS($A$11:$A60)+2,FALSE)","v":511},{"$f":"HLOOKUP(BU$7+0.5,$J$67:$DO$121,ROWS($A$11:$A60)+2,FALSE)","v":553},{"$f":"HLOOKUP(BV$7+0.5,$J$67:$DO$121,ROWS($A$11:$A60)+2,FALSE)","v":148},{"$f":"HLOOKUP(BW$7+0.5,$J$67:$DO$121,ROWS($A$11:$A60)+2,FALSE)","v":506},{"$f":"HLOOKUP(BX$7+0.5,$J$67:$DO$121,ROWS($A$11:$A60)+2,FALSE)","v":466},{"$f":"HLOOKUP(BY$7+0.5,$J$67:$DO$121,ROWS($A$11:$A60)+2,FALSE)","v":825},{"$f":"HLOOKUP(BZ$7+0.5,$J$67:$DO$121,ROWS($A$11:$A60)+2,FALSE)","v":354},{"$f":"HLOOKUP(CA$7+0.5,$J$67:$DO$121,ROWS($A$11:$A60)+2,FALSE)","v":269},{"$f":"HLOOKUP(CB$7+0.5,$J$67:$DO$121,ROWS($A$11:$A60)+2,FALSE)","v":158},{"$f":"HLOOKUP(CC$7+0.5,$J$67:$DO$121,ROWS($A$11:$A60)+2,FALSE)","v":338},{"$f":"HLOOKUP(CD$7+0.5,$J$67:$DO$121,ROWS($A$11:$A60)+2,FALSE)","v":311},{"$f":"HLOOKUP(CE$7+0.5,$J$67:$DO$121,ROWS($A$11:$A60)+2,FALSE)","v":269},{"$f":"HLOOKUP(CF$7+0.5,$J$67:$DO$121,ROWS($A$11:$A60)+2,FALSE)","v":198},{"$f":"HLOOKUP(CG$7+0.5,$J$67:$DO$121,ROWS($A$11:$A60)+2,FALSE)","v":732},{"$f":"HLOOKUP(CH$7+0.5,$J$67:$DO$121,ROWS($A$11:$A60)+2,FALSE)","v":117},{"$f":"HLOOKUP(CI$7+0.5,$J$67:$DO$121,ROWS($A$11:$A60)+2,FALSE)","v":269},{"$f":"HLOOKUP(CJ$7+0.5,$J$67:$DO$121,ROWS($A$11:$A60)+2,FALSE)","v":1182},{"$f":"HLOOKUP(CK$7+0.5,$J$67:$DO$121,ROWS($A$11:$A60)+2,FALSE)","v":169},{"$f":"HLOOKUP(CL$7+0.5,$J$67:$DO$121,ROWS($A$11:$A60)+2,FALSE)","v":379},{"$f":"HLOOKUP(CM$7+0.5,$J$67:$DO$121,ROWS($A$11:$A60)+2,FALSE)","v":269},{"$f":"HLOOKUP(CN$7+0.5,$J$67:$DO$121,ROWS($A$11:$A60)+2,FALSE)","v":75},{"$f":"HLOOKUP(CO$7+0.5,$J$67:$DO$121,ROWS($A$11:$A60)+2,FALSE)","v":190},{"$f":"HLOOKUP(CP$7+0.5,$J$67:$DO$121,ROWS($A$11:$A60)+2,FALSE)","v":62},{"$f":"HLOOKUP(CQ$7+0.5,$J$67:$DO$121,ROWS($A$11:$A60)+2,FALSE)","v":269},{"$f":"HLOOKUP(CR$7+0.5,$J$67:$DO$121,ROWS($A$11:$A60)+2,FALSE)","v":42},{"$f":"HLOOKUP(CS$7+0.5,$J$67:$DO$121,ROWS($A$11:$A60)+2,FALSE)","v":185},{"$f":"HLOOKUP(CT$7+0.5,$J$67:$DO$121,ROWS($A$11:$A60)+2,FALSE)","v":537},{"$f":"HLOOKUP(CU$7+0.5,$J$67:$DO$121,ROWS($A$11:$A60)+2,FALSE)","v":269},{"$f":"HLOOKUP(CV$7+0.5,$J$67:$DO$121,ROWS($A$11:$A60)+2,FALSE)","v":416},{"$f":"HLOOKUP(CW$7+0.5,$J$67:$DO$121,ROWS($A$11:$A60)+2,FALSE)","v":985},{"$f":"HLOOKUP(CX$7+0.5,$J$67:$DO$121,ROWS($A$11:$A60)+2,FALSE)","v":399},{"$f":"HLOOKUP(CY$7+0.5,$J$67:$DO$121,ROWS($A$11:$A60)+2,FALSE)","v":2201},{"$f":"HLOOKUP(CZ$7+0.5,$J$67:$DO$121,ROWS($A$11:$A60)+2,FALSE)","v":363},{"$f":"HLOOKUP(DA$7+0.5,$J$67:$DO$121,ROWS($A$11:$A60)+2,FALSE)","v":269},{"$f":"HLOOKUP(DB$7+0.5,$J$67:$DO$121,ROWS($A$11:$A60)+2,FALSE)","v":1396},{"$f":"HLOOKUP(DC$7+0.5,$J$67:$DO$121,ROWS($A$11:$A60)+2,FALSE)","v":292},{"$f":"HLOOKUP(DD$7+0.5,$J$67:$DO$121,ROWS($A$11:$A60)+2,FALSE)","v":493},{"$f":"HLOOKUP(DE$7+0.5,$J$67:$DO$121,ROWS($A$11:$A60)+2,FALSE)","v":269},{"$f":"HLOOKUP(DF$7+0.5,$J$67:$DO$121,ROWS($A$11:$A60)+2,FALSE)","v":833},{"$f":"HLOOKUP(DG$7+0.5,$J$67:$DO$121,ROWS($A$11:$A60)+2,FALSE)","v":650},{"$f":"HLOOKUP(DH$7+0.5,$J$67:$DO$121,ROWS($A$11:$A60)+2,FALSE)","v":144},{"$f":"HLOOKUP(DI$7+0.5,$J$67:$DO$121,ROWS($A$11:$A60)+2,FALSE)","v":205},{"$f":"HLOOKUP(DJ$7+0.5,$J$67:$DO$121,ROWS($A$11:$A60)+2,FALSE)","v":1573},{"$f":"HLOOKUP(DK$7+0.5,$J$67:$DO$121,ROWS($A$11:$A60)+2,FALSE)","v":199},{"$f":"HLOOKUP(DL$7+0.5,$J$67:$DO$121,ROWS($A$11:$A60)+2,FALSE)","v":"N/A"},{"$f":"HLOOKUP(DM$7+0.5,$J$67:$DO$121,ROWS($A$11:$A60)+2,FALSE)","v":188},{"$f":"HLOOKUP(DN$7+0.5,$J$67:$DO$121,ROWS($A$11:$A60)+2,FALSE)","v":269},{"$f":"HLOOKUP(DO$7+0.5,$J$67:$DO$121,ROWS($A$11:$A60)+2,FALSE)","v":232}]
[null,"Wisconsin",5623196,3124,4824045,20412,691592,17462,1.3801251596230827E-2,{"$f":"HLOOKUP(J$7,$J$67:$DO$121,ROWS($A$11:$A61)+2,FALSE)","v":93065},{"$f":"HLOOKUP(K$7,$J$67:$DO$121,ROWS($A$11:$A61)+2,FALSE)","v":552},{"$f":"HLOOKUP(L$7,$J$67:$DO$121,ROWS($A$11:$A61)+2,FALSE)","v":798},{"$f":"HLOOKUP(M$7,$J$67:$DO$121,ROWS($A$11:$A61)+2,FALSE)","v":1854},{"$f":"HLOOKUP(N$7,$J$67:$DO$121,ROWS($A$11:$A61)+2,FALSE)","v":518},{"$f":"HLOOKUP(O$7,$J$67:$DO$121,ROWS($A$11:$A61)+2,FALSE)","v":4506},{"$f":"HLOOKUP(P$7,$J$67:$DO$121,ROWS($A$11:$A61)+2,FALSE)","v":1890},{"$f":"HLOOKUP(Q$7,$J$67:$DO$121,ROWS($A$11:$A61)+2,FALSE)","v":359},{"$f":"HLOOKUP(R$7,$J$67:$DO$121,ROWS($A$11:$A61)+2,FALSE)","v":351},{"$f":"HLOOKUP(S$7,$J$67:$DO$121,ROWS($A$11:$A61)+2,FALSE)","v":98},{"$f":"HLOOKUP(T$7,$J$67:$DO$121,ROWS($A$11:$A61)+2,FALSE)","v":4492},{"$f":"HLOOKUP(U$7,$J$67:$DO$121,ROWS($A$11:$A61)+2,FALSE)","v":1656},{"$f":"HLOOKUP(V$7,$J$67:$DO$121,ROWS($A$11:$A61)+2,FALSE)","v":550},{"$f":"HLOOKUP(W$7,$J$67:$DO$121,ROWS($A$11:$A61)+2,FALSE)","v":902},{"$f":"HLOOKUP(X$7,$J$67:$DO$121,ROWS($A$11:$A61)+2,FALSE)","v":20299},{"$f":"HLOOKUP(Y$7,$J$67:$DO$121,ROWS($A$11:$A61)+2,FALSE)","v":2563},{"$f":"HLOOKUP(Z$7,$J$67:$DO$121,ROWS($A$11:$A61)+2,FALSE)","v":2300},{"$f":"HLOOKUP(AA$7,$J$67:$DO$121,ROWS($A$11:$A61)+2,FALSE)","v":752},{"$f":"HLOOKUP(AB$7,$J$67:$DO$121,ROWS($A$11:$A61)+2,FALSE)","v":287},{"$f":"HLOOKUP(AC$7,$J$67:$DO$121,ROWS($A$11:$A61)+2,FALSE)","v":331},{"$f":"HLOOKUP(AD$7,$J$67:$DO$121,ROWS($A$11:$A61)+2,FALSE)","v":448},{"$f":"HLOOKUP(AE$7,$J$67:$DO$121,ROWS($A$11:$A61)+2,FALSE)","v":1088},{"$f":"HLOOKUP(AF$7,$J$67:$DO$121,ROWS($A$11:$A61)+2,FALSE)","v":992},{"$f":"HLOOKUP(AG$7,$J$67:$DO$121,ROWS($A$11:$A61)+2,FALSE)","v":6317},{"$f":"HLOOKUP(AH$7,$J$67:$DO$121,ROWS($A$11:$A61)+2,FALSE)","v":16741},{"$f":"HLOOKUP(AI$7,$J$67:$DO$121,ROWS($A$11:$A61)+2,FALSE)","v":810},{"$f":"HLOOKUP(AJ$7,$J$67:$DO$121,ROWS($A$11:$A61)+2,FALSE)","v":1716},{"$f":"HLOOKUP(AK$7,$J$67:$DO$121,ROWS($A$11:$A61)+2,FALSE)","v":154},{"$f":"HLOOKUP(AL$7,$J$67:$DO$121,ROWS($A$11:$A61)+2,FALSE)","v":853},{"$f":"HLOOKUP(AM$7,$J$67:$DO$121,ROWS($A$11:$A61)+2,FALSE)","v":1049},{"$f":"HLOOKUP(AN$7,$J$67:$DO$121,ROWS($A$11:$A61)+2,FALSE)","v":69},{"$f":"HLOOKUP(AO$7,$J$67:$DO$121,ROWS($A$11:$A61)+2,FALSE)","v":632},{"$f":"HLOOKUP(AP$7,$J$67:$DO$121,ROWS($A$11:$A61)+2,FALSE)","v":123},{"$f":"HLOOKUP(AQ$7,$J$67:$DO$121,ROWS($A$11:$A61)+2,FALSE)","v":1291},{"$f":"HLOOKUP(AR$7,$J$67:$DO$121,ROWS($A$11:$A61)+2,FALSE)","v":1817},{"$f":"HLOOKUP(AS$7,$J$67:$DO$121,ROWS($A$11:$A61)+2,FALSE)","v":497},{"$f":"HLOOKUP(AT$7,$J$67:$DO$121,ROWS($A$11:$A61)+2,FALSE)","v":1674},{"$f":"HLOOKUP(AU$7,$J$67:$DO$121,ROWS($A$11:$A61)+2,FALSE)","v":89},{"$f":"HLOOKUP(AV$7,$J$67:$DO$121,ROWS($A$11:$A61)+2,FALSE)","v":1444},{"$f":"HLOOKUP(AW$7,$J$67:$DO$121,ROWS($A$11:$A61)+2,FALSE)","v":2211},{"$f":"HLOOKUP(AX$7,$J$67:$DO$121,ROWS($A$11:$A61)+2,FALSE)","v":0},{"$f":"HLOOKUP(AY$7,$J$67:$DO$121,ROWS($A$11:$A61)+2,FALSE)","v":1142},{"$f":"HLOOKUP(AZ$7,$J$67:$DO$121,ROWS($A$11:$A61)+2,FALSE)","v":235},{"$f":"HLOOKUP(BA$7,$J$67:$DO$121,ROWS($A$11:$A61)+2,FALSE)","v":856},{"$f":"HLOOKUP(BB$7,$J$67:$DO$121,ROWS($A$11:$A61)+2,FALSE)","v":3039},{"$f":"HLOOKUP(BC$7,$J$67:$DO$121,ROWS($A$11:$A61)+2,FALSE)","v":476},{"$f":"HLOOKUP(BD$7,$J$67:$DO$121,ROWS($A$11:$A61)+2,FALSE)","v":75},{"$f":"HLOOKUP(BE$7,$J$67:$DO$121,ROWS($A$11:$A61)+2,FALSE)","v":771},{"$f":"HLOOKUP(BF$7,$J$67:$DO$121,ROWS($A$11:$A61)+2,FALSE)","v":1013},{"$f":"HLOOKUP(BG$7,$J$67:$DO$121,ROWS($A$11:$A61)+2,FALSE)","v":256},{"$f":"HLOOKUP(BH$7,$J$67:$DO$121,ROWS($A$11:$A61)+2,FALSE)","v":"N/A"},{"$f":"HLOOKUP(BI$7,$J$67:$DO$121,ROWS($A$11:$A61)+2,FALSE)","v":129},{"$f":"HLOOKUP(BJ$7,$J$67:$DO$121,ROWS($A$11:$A61)+2,FALSE)","v":521},null,null,null,null,{"$f":"HLOOKUP(BO$7+0.5,$J$67:$DO$121,ROWS($A$11:$A61)+2,FALSE)","v":6949},{"$f":"HLOOKUP(BP$7+0.5,$J$67:$DO$121,ROWS($A$11:$A61)+2,FALSE)","v":523},{"$f":"HLOOKUP(BQ$7+0.5,$J$67:$DO$121,ROWS($A$11:$A61)+2,FALSE)","v":549},{"$f":"HLOOKUP(BR$7+0.5,$J$67:$DO$121,ROWS($A$11:$A61)+2,FALSE)","v":674},{"$f":"HLOOKUP(BS$7+0.5,$J$67:$DO$121,ROWS($A$11:$A61)+2,FALSE)","v":299},{"$f":"HLOOKUP(BT$7+0.5,$J$67:$DO$121,ROWS($A$11:$A61)+2,FALSE)","v":1080},{"$f":"HLOOKUP(BU$7+0.5,$J$67:$DO$121,ROWS($A$11:$A61)+2,FALSE)","v":806},{"$f":"HLOOKUP(BV$7+0.5,$J$67:$DO$121,ROWS($A$11:$A61)+2,FALSE)","v":356},{"$f":"HLOOKUP(BW$7+0.5,$J$67:$DO$121,ROWS($A$11:$A61)+2,FALSE)","v":522},{"$f":"HLOOKUP(BX$7+0.5,$J$67:$DO$121,ROWS($A$11:$A61)+2,FALSE)","v":118},{"$f":"HLOOKUP(BY$7+0.5,$J$67:$DO$121,ROWS($A$11:$A61)+2,FALSE)","v":1416},{"$f":"HLOOKUP(BZ$7+0.5,$J$67:$DO$121,ROWS($A$11:$A61)+2,FALSE)","v":684},{"$f":"HLOOKUP(CA$7+0.5,$J$67:$DO$121,ROWS($A$11:$A61)+2,FALSE)","v":532},{"$f":"HLOOKUP(CB$7+0.5,$J$67:$DO$121,ROWS($A$11:$A61)+2,FALSE)","v":771},{"$f":"HLOOKUP(CC$7+0.5,$J$67:$DO$121,ROWS($A$11:$A61)+2,FALSE)","v":3115},{"$f":"HLOOKUP(CD$7+0.5,$J$67:$DO$121,ROWS($A$11:$A61)+2,FALSE)","v":921},{"$f":"HLOOKUP(CE$7+0.5,$J$67:$DO$121,ROWS($A$11:$A61)+2,FALSE)","v":936},{"$f":"HLOOKUP(CF$7+0.5,$J$67:$DO$121,ROWS($A$11:$A61)+2,FALSE)","v":696},{"$f":"HLOOKUP(CG$7+0.5,$J$67:$DO$121,ROWS($A$11:$A61)+2,FALSE)","v":215},{"$f":"HLOOKUP(CH$7+0.5,$J$67:$DO$121,ROWS($A$11:$A61)+2,FALSE)","v":302},{"$f":"HLOOKUP(CI$7+0.5,$J$67:$DO$121,ROWS($A$11:$A61)+2,FALSE)","v":427},{"$f":"HLOOKUP(CJ$7+0.5,$J$67:$DO$121,ROWS($A$11:$A61)+2,FALSE)","v":700},{"$f":"HLOOKUP(CK$7+0.5,$J$67:$DO$121,ROWS($A$11:$A61)+2,FALSE)","v":1121},{"$f":"HLOOKUP(CL$7+0.5,$J$67:$DO$121,ROWS($A$11:$A61)+2,FALSE)","v":1567},{"$f":"HLOOKUP(CM$7+0.5,$J$67:$DO$121,ROWS($A$11:$A61)+2,FALSE)","v":2575},{"$f":"HLOOKUP(CN$7+0.5,$J$67:$DO$121,ROWS($A$11:$A61)+2,FALSE)","v":987},{"$f":"HLOOKUP(CO$7+0.5,$J$67:$DO$121,ROWS($A$11:$A61)+2,FALSE)","v":890},{"$f":"HLOOKUP(CP$7+0.5,$J$67:$DO$121,ROWS($A$11:$A61)+2,FALSE)","v":164},{"$f":"HLOOKUP(CQ$7+0.5,$J$67:$DO$121,ROWS($A$11:$A61)+2,FALSE)","v":685},{"$f":"HLOOKUP(CR$7+0.5,$J$67:$DO$121,ROWS($A$11:$A61)+2,FALSE)","v":897},{"$f":"HLOOKUP(CS$7+0.5,$J$67:$DO$121,ROWS($A$11:$A61)+2,FALSE)","v":116},{"$f":"HLOOKUP(CT$7+0.5,$J$67:$DO$121,ROWS($A$11:$A61)+2,FALSE)","v":422},{"$f":"HLOOKUP(CU$7+0.5,$J$67:$DO$121,ROWS($A$11:$A61)+2,FALSE)","v":115},{"$f":"HLOOKUP(CV$7+0.5,$J$67:$DO$121,ROWS($A$11:$A61)+2,FALSE)","v":512},{"$f":"HLOOKUP(CW$7+0.5,$J$67:$DO$121,ROWS($A$11:$A61)+2,FALSE)","v":1007},{"$f":"HLOOKUP(CX$7+0.5,$J$67:$DO$121,ROWS($A$11:$A61)+2,FALSE)","v":373},{"$f":"HLOOKUP(CY$7+0.5,$J$67:$DO$121,ROWS($A$11:$A61)+2,FALSE)","v":1063},{"$f":"HLOOKUP(CZ$7+0.5,$J$67:$DO$121,ROWS($A$11:$A61)+2,FALSE)","v":137},{"$f":"HLOOKUP(DA$7+0.5,$J$67:$DO$121,ROWS($A$11:$A61)+2,FALSE)","v":768},{"$f":"HLOOKUP(DB$7+0.5,$J$67:$DO$121,ROWS($A$11:$A61)+2,FALSE)","v":1428},{"$f":"HLOOKUP(DC$7+0.5,$J$67:$DO$121,ROWS($A$11:$A61)+2,FALSE)","v":218},{"$f":"HLOOKUP(DD$7+0.5,$J$67:$DO$121,ROWS($A$11:$A61)+2,FALSE)","v":626},{"$f":"HLOOKUP(DE$7+0.5,$J$67:$DO$121,ROWS($A$11:$A61)+2,FALSE)","v":159},{"$f":"HLOOKUP(DF$7+0.5,$J$67:$DO$121,ROWS($A$11:$A61)+2,FALSE)","v":469},{"$f":"HLOOKUP(DG$7+0.5,$J$67:$DO$121,ROWS($A$11:$A61)+2,FALSE)","v":983},{"$f":"HLOOKUP(DH$7+0.5,$J$67:$DO$121,ROWS($A$11:$A61)+2,FALSE)","v":398},{"$f":"HLOOKUP(DI$7+0.5,$J$67:$DO$121,ROWS($A$11:$A61)+2,FALSE)","v":123},{"$f":"HLOOKUP(DJ$7+0.5,$J$67:$DO$121,ROWS($A$11:$A61)+2,FALSE)","v":543},{"$f":"HLOOKUP(DK$7+0.5,$J$67:$DO$121,ROWS($A$11:$A61)+2,FALSE)","v":634},{"$f":"HLOOKUP(DL$7+0.5,$J$67:$DO$121,ROWS($A$11:$A61)+2,FALSE)","v":229},{"$f":"HLOOKUP(DM$7+0.5,$J$67:$DO$121,ROWS($A$11:$A61)+2,FALSE)","v":"N/A"},{"$f":"HLOOKUP(DN$7+0.5,$J$67:$DO$121,ROWS($A$11:$A61)+2,FALSE)","v":104},{"$f":"HLOOKUP(DO$7+0.5,$J$67:$DO$121,ROWS($A$11:$A61)+2,FALSE)","v":478}]
[null,"Wyoming",556954,1133,444614,8794,82255,8679,4.159135037531723E-3,{"$f":"HLOOKUP(J$7,$J$67:$DO$121,ROWS($A$11:$A62)+2,FALSE)","v":28046},{"$f":"HLOOKUP(K$7,$J$67:$DO$121,ROWS($A$11:$A62)+2,FALSE)","v":172},{"$f":"HLOOKUP(L$7,$J$67:$DO$121,ROWS($A$11:$A62)+2,FALSE)","v":0},{"$f":"HLOOKUP(M$7,$J$67:$DO$121,ROWS($A$11:$A62)+2,FALSE)","v":1511},{"$f":"HLOOKUP(N$7,$J$67:$DO$121,ROWS($A$11:$A62)+2,FALSE)","v":0},{"$f":"HLOOKUP(O$7,$J$67:$DO$121,ROWS($A$11:$A62)+2,FALSE)","v":2784},{"$f":"HLOOKUP(P$7,$J$67:$DO$121,ROWS($A$11:$A62)+2,FALSE)","v":4390},{"$f":"HLOOKUP(Q$7,$J$67:$DO$121,ROWS($A$11:$A62)+2,FALSE)","v":0},{"$f":"HLOOKUP(R$7,$J$67:$DO$121,ROWS($A$11:$A62)+2,FALSE)","v":0},{"$f":"HLOOKUP(S$7,$J$67:$DO$121,ROWS($A$11:$A62)+2,FALSE)","v":0},{"$f":"HLOOKUP(T$7,$J$67:$DO$121,ROWS($A$11:$A62)+2,FALSE)","v":396},{"$f":"HLOOKUP(U$7,$J$67:$DO$121,ROWS($A$11:$A62)+2,FALSE)","v":745},{"$f":"HLOOKUP(V$7,$J$67:$DO$121,ROWS($A$11:$A62)+2,FALSE)","v":25},{"$f":"HLOOKUP(W$7,$J$67:$DO$121,ROWS($A$11:$A62)+2,FALSE)","v":942},{"$f":"HLOOKUP(X$7,$J$67:$DO$121,ROWS($A$11:$A62)+2,FALSE)","v":415},{"$f":"HLOOKUP(Y$7,$J$67:$DO$121,ROWS($A$11:$A62)+2,FALSE)","v":132},{"$f":"HLOOKUP(Z$7,$J$67:$DO$121,ROWS($A$11:$A62)+2,FALSE)","v":462},{"$f":"HLOOKUP(AA$7,$J$67:$DO$121,ROWS($A$11:$A62)+2,FALSE)","v":532},{"$f":"HLOOKUP(AB$7,$J$67:$DO$121,ROWS($A$11:$A62)+2,FALSE)","v":519},{"$f":"HLOOKUP(AC$7,$J$67:$DO$121,ROWS($A$11:$A62)+2,FALSE)","v":107},{"$f":"HLOOKUP(AD$7,$J$67:$DO$121,ROWS($A$11:$A62)+2,FALSE)","v":0},{"$f":"HLOOKUP(AE$7,$J$67:$DO$121,ROWS($A$11:$A62)+2,FALSE)","v":51},{"$f":"HLOOKUP(AF$7,$J$67:$DO$121,ROWS($A$11:$A62)+2,FALSE)","v":252},{"$f":"HLOOKUP(AG$7,$J$67:$DO$121,ROWS($A$11:$A62)+2,FALSE)","v":570},{"$f":"HLOOKUP(AH$7,$J$67:$DO$121,ROWS($A$11:$A62)+2,FALSE)","v":218},{"$f":"HLOOKUP(AI$7,$J$67:$DO$121,ROWS($A$11:$A62)+2,FALSE)","v":0},{"$f":"HLOOKUP(AJ$7,$J$67:$DO$121,ROWS($A$11:$A62)+2,FALSE)","v":421},{"$f":"HLOOKUP(AK$7,$J$67:$DO$121,ROWS($A$11:$A62)+2,FALSE)","v":2528},{"$f":"HLOOKUP(AL$7,$J$67:$DO$121,ROWS($A$11:$A62)+2,FALSE)","v":1711},{"$f":"HLOOKUP(AM$7,$J$67:$DO$121,ROWS($A$11:$A62)+2,FALSE)","v":416},{"$f":"HLOOKUP(AN$7,$J$67:$DO$121,ROWS($A$11:$A62)+2,FALSE)","v":0},{"$f":"HLOOKUP(AO$7,$J$67:$DO$121,ROWS($A$11:$A62)+2,FALSE)","v":0},{"$f":"HLOOKUP(AP$7,$J$67:$DO$121,ROWS($A$11:$A62)+2,FALSE)","v":707},{"$f":"HLOOKUP(AQ$7,$J$67:$DO$121,ROWS($A$11:$A62)+2,FALSE)","v":146},{"$f":"HLOOKUP(AR$7,$J$67:$DO$121,ROWS($A$11:$A62)+2,FALSE)","v":34},{"$f":"HLOOKUP(AS$7,$J$67:$DO$121,ROWS($A$11:$A62)+2,FALSE)","v":233},{"$f":"HLOOKUP(AT$7,$J$67:$DO$121,ROWS($A$11:$A62)+2,FALSE)","v":56},{"$f":"HLOOKUP(AU$7,$J$67:$DO$121,ROWS($A$11:$A62)+2,FALSE)","v":62},{"$f":"HLOOKUP(AV$7,$J$67:$DO$121,ROWS($A$11:$A62)+2,FALSE)","v":14},{"$f":"HLOOKUP(AW$7,$J$67:$DO$121,ROWS($A$11:$A62)+2,FALSE)","v":95},{"$f":"HLOOKUP(AX$7,$J$67:$DO$121,ROWS($A$11:$A62)+2,FALSE)","v":0},{"$f":"HLOOKUP(AY$7,$J$67:$DO$121,ROWS($A$11:$A62)+2,FALSE)","v":220},{"$f":"HLOOKUP(AZ$7,$J$67:$DO$121,ROWS($A$11:$A62)+2,FALSE)","v":258},{"$f":"HLOOKUP(BA$7,$J$67:$DO$121,ROWS($A$11:$A62)+2,FALSE)","v":495},{"$f":"HLOOKUP(BB$7,$J$67:$DO$121,ROWS($A$11:$A62)+2,FALSE)","v":1990},{"$f":"HLOOKUP(BC$7,$J$67:$DO$121,ROWS($A$11:$A62)+2,FALSE)","v":3226},{"$f":"HLOOKUP(BD$7,$J$67:$DO$121,ROWS($A$11:$A62)+2,FALSE)","v":75},{"$f":"HLOOKUP(BE$7,$J$67:$DO$121,ROWS($A$11:$A62)+2,FALSE)","v":580},{"$f":"HLOOKUP(BF$7,$J$67:$DO$121,ROWS($A$11:$A62)+2,FALSE)","v":556},{"$f":"HLOOKUP(BG$7,$J$67:$DO$121,ROWS($A$11:$A62)+2,FALSE)","v":0},{"$f":"HLOOKUP(BH$7,$J$67:$DO$121,ROWS($A$11:$A62)+2,FALSE)","v":0},{"$f":"HLOOKUP(BI$7,$J$67:$DO$121,ROWS($A$11:$A62)+2,FALSE)","v":"N/A"},{"$f":"HLOOKUP(BJ$7,$J$67:$DO$121,ROWS($A$11:$A62)+2,FALSE)","v":0},null,null,null,null,{"$f":"HLOOKUP(BO$7+0.5,$J$67:$DO$121,ROWS($A$11:$A62)+2,FALSE)","v":4226},{"$f":"HLOOKUP(BP$7+0.5,$J$67:$DO$121,ROWS($A$11:$A62)+2,FALSE)","v":257},{"$f":"HLOOKUP(BQ$7+0.5,$J$67:$DO$121,ROWS($A$11:$A62)+2,FALSE)","v":269},{"$f":"HLOOKUP(BR$7+0.5,$J$67:$DO$121,ROWS($A$11:$A62)+2,FALSE)","v":915},{"$f":"HLOOKUP(BS$7+0.5,$J$67:$DO$121,ROWS($A$11:$A62)+2,FALSE)","v":269},{"$f":"HLOOKUP(BT$7+0.5,$J$67:$DO$121,ROWS($A$11:$A62)+2,FALSE)","v":1647},{"$f":"HLOOKUP(BU$7+0.5,$J$67:$DO$121,ROWS($A$11:$A62)+2,FALSE)","v":1357},{"$f":"HLOOKUP(BV$7+0.5,$J$67:$DO$121,ROWS($A$11:$A62)+2,FALSE)","v":269},{"$f":"HLOOKUP(BW$7+0.5,$J$67:$DO$121,ROWS($A$11:$A62)+2,FALSE)","v":269},{"$f":"HLOOKUP(BX$7+0.5,$J$67:$DO$121,ROWS($A$11:$A62)+2,FALSE)","v":269},{"$f":"HLOOKUP(BY$7+0.5,$J$67:$DO$121,ROWS($A$11:$A62)+2,FALSE)","v":347},{"$f":"HLOOKUP(BZ$7+0.5,$J$67:$DO$121,ROWS($A$11:$A62)+2,FALSE)","v":553},{"$f":"HLOOKUP(CA$7+0.5,$J$67:$DO$121,ROWS($A$11:$A62)+2,FALSE)","v":41},{"$f":"HLOOKUP(CB$7+0.5,$J$67:$DO$121,ROWS($A$11:$A62)+2,FALSE)","v":849},{"$f":"HLOOKUP(CC$7+0.5,$J$67:$DO$121,ROWS($A$11:$A62)+2,FALSE)","v":444},{"$f":"HLOOKUP(CD$7+0.5,$J$67:$DO$121,ROWS($A$11:$A62)+2,FALSE)","v":217},{"$f":"HLOOKUP(CE$7+0.5,$J$67:$DO$121,ROWS($A$11:$A62)+2,FALSE)","v":641},{"$f":"HLOOKUP(CF$7+0.5,$J$67:$DO$121,ROWS($A$11:$A62)+2,FALSE)","v":514},{"$f":"HLOOKUP(CG$7+0.5,$J$67:$DO$121,ROWS($A$11:$A62)+2,FALSE)","v":743},{"$f":"HLOOKUP(CH$7+0.5,$J$67:$DO$121,ROWS($A$11:$A62)+2,FALSE)","v":144},{"$f":"HLOOKUP(CI$7+0.5,$J$67:$DO$121,ROWS($A$11:$A62)+2,FALSE)","v":269},{"$f":"HLOOKUP(CJ$7+0.5,$J$67:$DO$121,ROWS($A$11:$A62)+2,FALSE)","v":92},{"$f":"HLOOKUP(CK$7+0.5,$J$67:$DO$121,ROWS($A$11:$A62)+2,FALSE)","v":470},{"$f":"HLOOKUP(CL$7+0.5,$J$67:$DO$121,ROWS($A$11:$A62)+2,FALSE)","v":597},{"$f":"HLOOKUP(CM$7+0.5,$J$67:$DO$121,ROWS($A$11:$A62)+2,FALSE)","v":277},{"$f":"HLOOKUP(CN$7+0.5,$J$67:$DO$121,ROWS($A$11:$A62)+2,FALSE)","v":269},{"$f":"HLOOKUP(CO$7+0.5,$J$67:$DO$121,ROWS($A$11:$A62)+2,FALSE)","v":418},{"$f":"HLOOKUP(CP$7+0.5,$J$67:$DO$121,ROWS($A$11:$A62)+2,FALSE)","v":1395},{"$f":"HLOOKUP(CQ$7+0.5,$J$67:$DO$121,ROWS($A$11:$A62)+2,FALSE)","v":1394},{"$f":"HLOOKUP(CR$7+0.5,$J$67:$DO$121,ROWS($A$11:$A62)+2,FALSE)","v":383},{"$f":"HLOOKUP(CS$7+0.5,$J$67:$DO$121,ROWS($A$11:$A62)+2,FALSE)","v":269},{"$f":"HLOOKUP(CT$7+0.5,$J$67:$DO$121,ROWS($A$11:$A62)+2,FALSE)","v":269},{"$f":"HLOOKUP(CU$7+0.5,$J$67:$DO$121,ROWS($A$11:$A62)+2,FALSE)","v":527},{"$f":"HLOOKUP(CV$7+0.5,$J$67:$DO$121,ROWS($A$11:$A62)+2,FALSE)","v":144},{"$f":"HLOOKUP(CW$7+0.5,$J$67:$DO$121,ROWS($A$11:$A62)+2,FALSE)","v":84},{"$f":"HLOOKUP(CX$7+0.5,$J$67:$DO$121,ROWS($A$11:$A62)+2,FALSE)","v":228},{"$f":"HLOOKUP(CY$7+0.5,$J$67:$DO$121,ROWS($A$11:$A62)+2,FALSE)","v":90},{"$f":"HLOOKUP(CZ$7+0.5,$J$67:$DO$121,ROWS($A$11:$A62)+2,FALSE)","v":79},{"$f":"HLOOKUP(DA$7+0.5,$J$67:$DO$121,ROWS($A$11:$A62)+2,FALSE)","v":25},{"$f":"HLOOKUP(DB$7+0.5,$J$67:$DO$121,ROWS($A$11:$A62)+2,FALSE)","v":118},{"$f":"HLOOKUP(DC$7+0.5,$J$67:$DO$121,ROWS($A$11:$A62)+2,FALSE)","v":269},{"$f":"HLOOKUP(DD$7+0.5,$J$67:$DO$121,ROWS($A$11:$A62)+2,FALSE)","v":235},{"$f":"HLOOKUP(DE$7+0.5,$J$67:$DO$121,ROWS($A$11:$A62)+2,FALSE)","v":183},{"$f":"HLOOKUP(DF$7+0.5,$J$67:$DO$121,ROWS($A$11:$A62)+2,FALSE)","v":638},{"$f":"HLOOKUP(DG$7+0.5,$J$67:$DO$121,ROWS($A$11:$A62)+2,FALSE)","v":1143},{"$f":"HLOOKUP(DH$7+0.5,$J$67:$DO$121,ROWS($A$11:$A62)+2,FALSE)","v":1437},{"$f":"HLOOKUP(DI$7+0.5,$J$67:$DO$121,ROWS($A$11:$A62)+2,FALSE)","v":137},{"$f":"HLOOKUP(DJ$7+0.5,$J$67:$DO$121,ROWS($A$11:$A62)+2,FALSE)","v":459},{"$f":"HLOOKUP(DK$7+0.5,$J$67:$DO$121,ROWS($A$11:$A62)+2,FALSE)","v":469},{"$f":"HLOOKUP(DL$7+0.5,$J$67:$DO$121,ROWS($A$11:$A62)+2,FALSE)","v":269},{"$f":"HLOOKUP(DM$7+0.5,$J$67:$DO$121,ROWS($A$11:$A62)+2,FALSE)","v":269},{"$f":"HLOOKUP(DN$7+0.5,$J$67:$DO$121,ROWS($A$11:$A62)+2,FALSE)","v":"N/A"},{"$f":"HLOOKUP(DO$7+0.5,$J$67:$DO$121,ROWS($A$11:$A62)+2,FALSE)","v":269}]
[null,"Puerto Rico",3676493,2933,3392179,13112,247593,12844,null,{"$f":"HLOOKUP(J$7,$J$67:$DO$121,ROWS($A$11:$A63)+2,FALSE)","v":31732},{"$f":"HLOOKUP(K$7,$J$67:$DO$121,ROWS($A$11:$A63)+2,FALSE)","v":629},{"$f":"HLOOKUP(L$7,$J$67:$DO$121,ROWS($A$11:$A63)+2,FALSE)","v":156},{"$f":"HLOOKUP(M$7,$J$67:$DO$121,ROWS($A$11:$A63)+2,FALSE)","v":288},{"$f":"HLOOKUP(N$7,$J$67:$DO$121,ROWS($A$11:$A63)+2,FALSE)","v":0},{"$f":"HLOOKUP(O$7,$J$67:$DO$121,ROWS($A$11:$A63)+2,FALSE)","v":1177},{"$f":"HLOOKUP(P$7,$J$67:$DO$121,ROWS($A$11:$A63)+2,FALSE)","v":388},{"$f":"HLOOKUP(Q$7,$J$67:$DO$121,ROWS($A$11:$A63)+2,FALSE)","v":899},{"$f":"HLOOKUP(R$7,$J$67:$DO$121,ROWS($A$11:$A63)+2,FALSE)","v":0},{"$f":"HLOOKUP(S$7,$J$67:$DO$121,ROWS($A$11:$A63)+2,FALSE)","v":0},{"$f":"HLOOKUP(T$7,$J$67:$DO$121,ROWS($A$11:$A63)+2,FALSE)","v":11262},{"$f":"HLOOKUP(U$7,$J$67:$DO$121,ROWS($A$11:$A63)+2,FALSE)","v":207},{"$f":"HLOOKUP(V$7,$J$67:$DO$121,ROWS($A$11:$A63)+2,FALSE)","v":0},{"$f":"HLOOKUP(W$7,$J$67:$DO$121,ROWS($A$11:$A63)+2,FALSE)","v":0},{"$f":"HLOOKUP(X$7,$J$67:$DO$121,ROWS($A$11:$A63)+2,FALSE)","v":1642},{"$f":"HLOOKUP(Y$7,$J$67:$DO$121,ROWS($A$11:$A63)+2,FALSE)","v":109},{"$f":"HLOOKUP(Z$7,$J$67:$DO$121,ROWS($A$11:$A63)+2,FALSE)","v":0},{"$f":"HLOOKUP(AA$7,$J$67:$DO$121,ROWS($A$11:$A63)+2,FALSE)","v":112},{"$f":"HLOOKUP(AB$7,$J$67:$DO$121,ROWS($A$11:$A63)+2,FALSE)","v":254},{"$f":"HLOOKUP(AC$7,$J$67:$DO$121,ROWS($A$11:$A63)+2,FALSE)","v":109},{"$f":"HLOOKUP(AD$7,$J$67:$DO$121,ROWS($A$11:$A63)+2,FALSE)","v":0},{"$f":"HLOOKUP(AE$7,$J$67:$DO$121,ROWS($A$11:$A63)+2,FALSE)","v":59},{"$f":"HLOOKUP(AF$7,$J$67:$DO$121,ROWS($A$11:$A63)+2,FALSE)","v":2004},{"$f":"HLOOKUP(AG$7,$J$67:$DO$121,ROWS($A$11:$A63)+2,FALSE)","v":89},{"$f":"HLOOKUP(AH$7,$J$67:$DO$121,ROWS($A$11:$A63)+2,FALSE)","v":50},{"$f":"HLOOKUP(AI$7,$J$67:$DO$121,ROWS($A$11:$A63)+2,FALSE)","v":170},{"$f":"HLOOKUP(AJ$7,$J$67:$DO$121,ROWS($A$11:$A63)+2,FALSE)","v":221},{"$f":"HLOOKUP(AK$7,$J$67:$DO$121,ROWS($A$11:$A63)+2,FALSE)","v":0},{"$f":"HLOOKUP(AL$7,$J$67:$DO$121,ROWS($A$11:$A63)+2,FALSE)","v":0},{"$f":"HLOOKUP(AM$7,$J$67:$DO$121,ROWS($A$11:$A63)+2,FALSE)","v":0},{"$f":"HLOOKUP(AN$7,$J$67:$DO$121,ROWS($A$11:$A63)+2,FALSE)","v":0},{"$f":"HLOOKUP(AO$7,$J$67:$DO$121,ROWS($A$11:$A63)+2,FALSE)","v":1244},{"$f":"HLOOKUP(AP$7,$J$67:$DO$121,ROWS($A$11:$A63)+2,FALSE)","v":364},{"$f":"HLOOKUP(AQ$7,$J$67:$DO$121,ROWS($A$11:$A63)+2,FALSE)","v":4768},{"$f":"HLOOKUP(AR$7,$J$67:$DO$121,ROWS($A$11:$A63)+2,FALSE)","v":146},{"$f":"HLOOKUP(AS$7,$J$67:$DO$121,ROWS($A$11:$A63)+2,FALSE)","v":0},{"$f":"HLOOKUP(AT$7,$J$67:$DO$121,ROWS($A$11:$A63)+2,FALSE)","v":69},{"$f":"HLOOKUP(AU$7,$J$67:$DO$121,ROWS($A$11:$A63)+2,FALSE)","v":0},{"$f":"HLOOKUP(AV$7,$J$67:$DO$121,ROWS($A$11:$A63)+2,FALSE)","v":0},{"$f":"HLOOKUP(AW$7,$J$67:$DO$121,ROWS($A$11:$A63)+2,FALSE)","v":1516},{"$f":"HLOOKUP(AX$7,$J$67:$DO$121,ROWS($A$11:$A63)+2,FALSE)","v":684},{"$f":"HLOOKUP(AY$7,$J$67:$DO$121,ROWS($A$11:$A63)+2,FALSE)","v":109},{"$f":"HLOOKUP(AZ$7,$J$67:$DO$121,ROWS($A$11:$A63)+2,FALSE)","v":0},{"$f":"HLOOKUP(BA$7,$J$67:$DO$121,ROWS($A$11:$A63)+2,FALSE)","v":30},{"$f":"HLOOKUP(BB$7,$J$67:$DO$121,ROWS($A$11:$A63)+2,FALSE)","v":977},{"$f":"HLOOKUP(BC$7,$J$67:$DO$121,ROWS($A$11:$A63)+2,FALSE)","v":882},{"$f":"HLOOKUP(BD$7,$J$67:$DO$121,ROWS($A$11:$A63)+2,FALSE)","v":0},{"$f":"HLOOKUP(BE$7,$J$67:$DO$121,ROWS($A$11:$A63)+2,FALSE)","v":392},{"$f":"HLOOKUP(BF$7,$J$67:$DO$121,ROWS($A$11:$A63)+2,FALSE)","v":0},{"$f":"HLOOKUP(BG$7,$J$67:$DO$121,ROWS($A$11:$A63)+2,FALSE)","v":141},{"$f":"HLOOKUP(BH$7,$J$67:$DO$121,ROWS($A$11:$A63)+2,FALSE)","v":585},{"$f":"HLOOKUP(BI$7,$J$67:$DO$121,ROWS($A$11:$A63)+2,FALSE)","v":0},{"$f":"HLOOKUP(BJ$7,$J$67:$DO$121,ROWS($A$11:$A63)+2,FALSE)","v":"N/A"},null,null,null,null,{"$f":"HLOOKUP(BO$7+0.5,$J$67:$DO$121,ROWS($A$11:$A63)+2,FALSE)","v":4381},{"$f":"HLOOKUP(BP$7+0.5,$J$67:$DO$121,ROWS($A$11:$A63)+2,FALSE)","v":711},{"$f":"HLOOKUP(BQ$7+0.5,$J$67:$DO$121,ROWS($A$11:$A63)+2,FALSE)","v":259},{"$f":"HLOOKUP(BR$7+0.5,$J$67:$DO$121,ROWS($A$11:$A63)+2,FALSE)","v":356},{"$f":"HLOOKUP(BS$7+0.5,$J$67:$DO$121,ROWS($A$11:$A63)+2,FALSE)","v":285},{"$f":"HLOOKUP(BT$7+0.5,$J$67:$DO$121,ROWS($A$11:$A63)+2,FALSE)","v":949},{"$f":"HLOOKUP(BU$7+0.5,$J$67:$DO$121,ROWS($A$11:$A63)+2,FALSE)","v":492},{"$f":"HLOOKUP(BV$7+0.5,$J$67:$DO$121,ROWS($A$11:$A63)+2,FALSE)","v":653},{"$f":"HLOOKUP(BW$7+0.5,$J$67:$DO$121,ROWS($A$11:$A63)+2,FALSE)","v":285},{"$f":"HLOOKUP(BX$7+0.5,$J$67:$DO$121,ROWS($A$11:$A63)+2,FALSE)","v":285},{"$f":"HLOOKUP(BY$7+0.5,$J$67:$DO$121,ROWS($A$11:$A63)+2,FALSE)","v":2512},{"$f":"HLOOKUP(BZ$7+0.5,$J$67:$DO$121,ROWS($A$11:$A63)+2,FALSE)","v":334},{"$f":"HLOOKUP(CA$7+0.5,$J$67:$DO$121,ROWS($A$11:$A63)+2,FALSE)","v":285},{"$f":"HLOOKUP(CB$7+0.5,$J$67:$DO$121,ROWS($A$11:$A63)+2,FALSE)","v":285},{"$f":"HLOOKUP(CC$7+0.5,$J$67:$DO$121,ROWS($A$11:$A63)+2,FALSE)","v":1175},{"$f":"HLOOKUP(CD$7+0.5,$J$67:$DO$121,ROWS($A$11:$A63)+2,FALSE)","v":173},{"$f":"HLOOKUP(CE$7+0.5,$J$67:$DO$121,ROWS($A$11:$A63)+2,FALSE)","v":285},{"$f":"HLOOKUP(CF$7+0.5,$J$67:$DO$121,ROWS($A$11:$A63)+2,FALSE)","v":184},{"$f":"HLOOKUP(CG$7+0.5,$J$67:$DO$121,ROWS($A$11:$A63)+2,FALSE)","v":211},{"$f":"HLOOKUP(CH$7+0.5,$J$67:$DO$121,ROWS($A$11:$A63)+2,FALSE)","v":130},{"$f":"HLOOKUP(CI$7+0.5,$J$67:$DO$121,ROWS($A$11:$A63)+2,FALSE)","v":285},{"$f":"HLOOKUP(CJ$7+0.5,$J$67:$DO$121,ROWS($A$11:$A63)+2,FALSE)","v":106},{"$f":"HLOOKUP(CK$7+0.5,$J$67:$DO$121,ROWS($A$11:$A63)+2,FALSE)","v":960},{"$f":"HLOOKUP(CL$7+0.5,$J$67:$DO$121,ROWS($A$11:$A63)+2,FALSE)","v":149},{"$f":"HLOOKUP(CM$7+0.5,$J$67:$DO$121,ROWS($A$11:$A63)+2,FALSE)","v":83},{"$f":"HLOOKUP(CN$7+0.5,$J$67:$DO$121,ROWS($A$11:$A63)+2,FALSE)","v":198},{"$f":"HLOOKUP(CO$7+0.5,$J$67:$DO$121,ROWS($A$11:$A63)+2,FALSE)","v":258},{"$f":"HLOOKUP(CP$7+0.5,$J$67:$DO$121,ROWS($A$11:$A63)+2,FALSE)","v":285},{"$f":"HLOOKUP(CQ$7+0.5,$J$67:$DO$121,ROWS($A$11:$A63)+2,FALSE)","v":285},{"$f":"HLOOKUP(CR$7+0.5,$J$67:$DO$121,ROWS($A$11:$A63)+2,FALSE)","v":285},{"$f":"HLOOKUP(CS$7+0.5,$J$67:$DO$121,ROWS($A$11:$A63)+2,FALSE)","v":285},{"$f":"HLOOKUP(CT$7+0.5,$J$67:$DO$121,ROWS($A$11:$A63)+2,FALSE)","v":830},{"$f":"HLOOKUP(CU$7+0.5,$J$67:$DO$121,ROWS($A$11:$A63)+2,FALSE)","v":603},{"$f":"HLOOKUP(CV$7+0.5,$J$67:$DO$121,ROWS($A$11:$A63)+2,FALSE)","v":1546},{"$f":"HLOOKUP(CW$7+0.5,$J$67:$DO$121,ROWS($A$11:$A63)+2,FALSE)","v":240},{"$f":"HLOOKUP(CX$7+0.5,$J$67:$DO$121,ROWS($A$11:$A63)+2,FALSE)","v":285},{"$f":"HLOOKUP(CY$7+0.5,$J$67:$DO$121,ROWS($A$11:$A63)+2,FALSE)","v":127},{"$f":"HLOOKUP(CZ$7+0.5,$J$67:$DO$121,ROWS($A$11:$A63)+2,FALSE)","v":285},{"$f":"HLOOKUP(DA$7+0.5,$J$67:$DO$121,ROWS($A$11:$A63)+2,FALSE)","v":285},{"$f":"HLOOKUP(DB$7+0.5,$J$67:$DO$121,ROWS($A$11:$A63)+2,FALSE)","v":772},{"$f":"HLOOKUP(DC$7+0.5,$J$67:$DO$121,ROWS($A$11:$A63)+2,FALSE)","v":829},{"$f":"HLOOKUP(DD$7+0.5,$J$67:$DO$121,ROWS($A$11:$A63)+2,FALSE)","v":173},{"$f":"HLOOKUP(DE$7+0.5,$J$67:$DO$121,ROWS($A$11:$A63)+2,FALSE)","v":285},{"$f":"HLOOKUP(DF$7+0.5,$J$67:$DO$121,ROWS($A$11:$A63)+2,FALSE)","v":56},{"$f":"HLOOKUP(DG$7+0.5,$J$67:$DO$121,ROWS($A$11:$A63)+2,FALSE)","v":742},{"$f":"HLOOKUP(DH$7+0.5,$J$67:$DO$121,ROWS($A$11:$A63)+2,FALSE)","v":1289},{"$f":"HLOOKUP(DI$7+0.5,$J$67:$DO$121,ROWS($A$11:$A63)+2,FALSE)","v":285},{"$f":"HLOOKUP(DJ$7+0.5,$J$67:$DO$121,ROWS($A$11:$A63)+2,FALSE)","v":320},{"$f":"HLOOKUP(DK$7+0.5,$J$67:$DO$121,ROWS($A$11:$A63)+2,FALSE)","v":285},{"$f":"HLOOKUP(DL$7+0.5,$J$67:$DO$121,ROWS($A$11:$A63)+2,FALSE)","v":135},{"$f":"HLOOKUP(DM$7+0.5,$J$67:$DO$121,ROWS($A$11:$A63)+2,FALSE)","v":815},{"$f":"HLOOKUP(DN$7+0.5,$J$67:$DO$121,ROWS($A$11:$A63)+2,FALSE)","v":285},{"$f":"HLOOKUP(DO$7+0.5,$J$67:$DO$121,ROWS($A$11:$A63)+2,FALSE)","v":"N/A"}]
[]
[]
[]
[null,null,null,null,null,null,null,null,null,1,1.5,2,2.5,3,3.5,4,4.5,5,5.5,6,6.5,7,7.5,8,8.5,9,9.5,10,10.5,11,11.5,12,12.5,13,13.5,14,14.5,15,15.5,16,16.5,17,17.5,18,18.5,19,19.5,20,20.5,21,21.5,22,22.5,23,23.5,24,24.5,25,25.5,26,26.5,27,null,null,null,null,27.5,28,28.5,29,29.5,30,30.5,31,31.5,32,32.5,33,33.5,34,34.5,35,35.5,36,36.5,37,37.5,38,38.5,39,39.5,40,40.5,41,41.5,42,42.5,43,43.5,44,44.5,45,45.5,46,46.5,47,47.5,48,48.5,49,49.5,50,50.5,51,51.5,52,52.5,53,53.5]
[null,null,null,null,null,null,null,null,null,"Estimate","MOE","Estimate","MOE","Estimate","MOE","Estimate","MOE","Estimate","MOE","Estimate","MOE","Estimate","MOE","Estimate","MOE","Estimate","MOE","Estimate","MOE","Estimate","MOE","Estimate","MOE","Estimate","MOE","Estimate","MOE","Estimate","MOE","Estimate","MOE","Estimate","MOE","Estimate","MOE","Estimate","MOE","Estimate","MOE","Estimate","MOE","Estimate","MOE","Estimate","MOE","Estimate","MOE","Estimate","MOE","Estimate","MOE","Estimate",null,null,null,null,"MOE","Estimate","MOE","Estimate","MOE","Estimate","MOE","Estimate","MOE","Estimate","MOE","Estimate","MOE","Estimate","MOE","Estimate","MOE","Estimate","MOE","Estimate","MOE","Estimate","MOE","Estimate","MOE","Estimate","MOE","Estimate","MOE","Estimate","MOE","Estimate","MOE","Estimate","MOE","Estimate","MOE","Estimate","MOE","Estimate","MOE","Estimate","MOE","Estimate","MOE","Estimate","MOE","Estimate","MOE","Estimate","MOE","Estimate","MOE"]
[null,null,null,null,null,null,null,null,null,6743229,69387,99221,8532,94692,9780,176768,9764,64264,6502,573988,20898,140620,8392,89360,8104,30055,4817,56052,5274,427853,16117,244992,13712,49218,5580,53122,6197,277579,14177,130170,9685,66922,5441,90681,7300,92999,8240,88131,8540,32209,4475,159866,9741,144152,8102,178207,11238,104765,7734,68363,7286,148055,null,null,null,null,11141,35870,4482,43531,5996,109409,10422,38399,4262,193972,11560,50438,5032,363139,16245,207025,11068,24450,3757,188013,11207,90616,7414,100185,8825,209810,10357,24948,3127,117569,9315,27915,3665,143135,9159,411641,16805,75541,7183,18380,3009,232002,11248,166162,10010,49349,5605,111240,9166,28186,3185,59885,6923]
[null,null,null,null,null,null,null,null,null,108723,8781,"N/A","N/A",3013,1452,676,606,1481,1038,3827,1660,1278,778,454,694,811,694,211,186,15062,3138,21644,3955,267,440,304,399,2503,1224,3945,1979,669,882,649,516,1967,1192,1901,868,97,158,716,458,435,396,2334,1294,386,358,7233,2367,1373,null,null,null,null,1180,229,182,169,286,265,297,0,273,356,285,650,749,3686,2920,2371,945,169,213,2222,931,880,609,485,435,1477,696,0,273,2368,1142,31,62,7409,1926,6500,2016,1336,1129,0,273,2490,1026,1171,756,41,73,1155,895,27,52,228,265]
[null,null,null,null,null,null,null,null,null,36326,3708,477,790,"N/A","N/A",1354,805,47,78,3906,1041,1930,866,0,246,0,246,14,23,2315,1026,1251,902,1705,1289,895,524,388,293,9,24,262,349,106,107,1440,1506,100,171,574,655,704,460,107,183,923,814,530,409,263,386,0,null,null,null,null,246,616,507,215,259,240,247,316,368,413,501,421,446,255,206,698,587,69,89,156,213,1455,971,1793,1104,126,164,0,246,121,153,531,817,477,341,4123,1774,1274,926,353,429,714,681,2421,790,0,246,158,198,81,131,19,30]
[null,null,null,null,null,null,null,null,null,222725,11873,416,305,3109,1297,"N/A","N/A",689,415,47164,6018,7687,2494,479,386,738,774,0,305,7712,2149,4261,1828,1966,928,2147,984,12250,3263,2690,1358,3008,1405,1935,1008,1705,928,2014,1697,241,308,1284,1052,1449,975,6354,1796,5421,1542,272,238,4567,null,null,null,null,1621,1343,1038,1750,1130,10342,3881,64,105,1782,762,4419,1430,6618,2661,4463,1627,826,612,5225,1513,2910,1310,5430,1887,5535,2842,403,336,2310,1189,1351,843,3061,1643,14705,3301,7164,3154,664,498,3413,1613,12645,2459,595,563,5556,1827,593,393,599,771]
[null,null,null,null,null,null,null,null,null,79127,7901,1405,1001,934,798,777,557,"N/A","N/A",4457,1991,2535,1149,451,315,0,273,154,264,3578,1239,3921,2077,129,166,618,754,3221,1474,722,498,85,143,3611,1704,2540,1895,4012,1625,0,273,306,254,190,196,1506,674,222,153,2764,1337,7320,null,null,null,null,2181,85,159,394,538,67,104,0,273,77,130,0,273,289,336,1561,900,0,273,1137,811,8607,3434,239,174,731,570,0,273,1496,983,243,264,2653,1121,13707,2911,361,322,0,273,494,382,264,228,0,273,821,503,443,513,87,146]
[null,null,null,null,null,null,null,null,null,444749,18415,3364,1977,9579,2911,33854,4816,4172,1340,"N/A","N/A",15662,3236,4631,1802,643,408,3683,1306,20362,4008,8820,2545,9528,2191,5719,1572,16482,2806,6550,1860,3163,1259,3857,1813,3394,1797,2989,1207,1796,1139,10626,2848,11969,2774,10435,2487,5095,1319,2757,1338,6921,null,null,null,null,2357,3009,1511,3062,1860,27724,4878,1614,1059,10108,2848,4632,1266,20981,2977,9593,2005,392,343,8170,2399,5708,1591,20913,3580,9948,1991,526,264,5016,2183,1604,1117,4349,1174,36582,5299,10653,2235,525,369,14232,2597,30544,4481,1446,919,6031,2181,1336,664,1223,1128]
[null,null,null,null,null,null,null,null,null,186366,9897,954,803,2225,1220,12287,2324,1034,739,26089,4183,"N/A","N/A",459,360,486,486,479,381,8849,2300,6445,2553,2355,1220,839,572,6950,1968,3296,1584,2140,1179,4308,1577,1961,1194,968,664,532,385,1532,978,2242,778,4587,1679,2878,1093,1277,883,1978,null,null,null,null,803,2042,1490,4065,1455,4131,1784,791,521,1259,537,3921,1326,4594,1518,2940,1376,802,598,2838,1325,3464,1440,4330,1962,3928,1124,192,248,1231,796,1847,826,1628,706,22253,4494,4748,1658,350,246,2739,1077,7583,3004,623,493,2499,1153,4418,1439,874,880]
[null,null,null,null,null,null,null,null,null,77333,6651,896,891,0,281,664,484,334,517,4479,1653,547,487,"N/A","N/A",149,227,331,343,9207,2532,748,467,182,171,147,130,3391,1847,1074,798,108,131,0,281,400,430,0,281,528,447,1531,814,8510,2107,770,486,934,659,67,111,42,null,null,null,null,68,0,281,0,281,507,424,1049,628,3475,1175,112,189,20727,3325,1345,587,0,281,1296,710,145,171,640,592,1955,808,1728,796,1140,627,0,281,430,389,1887,1100,0,281,458,419,1735,691,2084,1631,442,674,1092,1321,47,78,2027,1233]
[null,null,null,null,null,null,null,null,null,30759,4030,128,211,68,111,60,78,0,265,353,290,178,249,714,693,"N/A","N/A",432,467,2362,996,585,575,0,265,0,265,612,583,0,265,0,265,28,47,163,273,0,265,294,406,4969,1144,689,538,61,102,55,92,0,265,539,null,null,null,null,842,73,120,0,265,106,183,139,246,3678,935,59,98,4251,1555,424,466,0,265,325,339,0,265,0,265,7318,2368,149,241,195,272,0,265,146,248,178,313,0,265,0,265,1051,538,377,280,0,265,0,265,0,265,954,1095]
[null,null,null,null,null,null,null,null,null,51244,4828,360,418,591,529,662,466,155,195,4205,1255,656,637,926,592,0,292,"N/A","N/A",1100,609,1597,795,0,292,0,292,615,373,711,461,392,377,83,137,94,155,0,292,76,121,13503,2647,1376,540,126,153,87,105,0,292,272,null,null,null,null,371,0,292,62,103,0,292,137,136,1924,694,61,100,3852,1325,1897,1089,98,165,598,359,0,292,601,520,2378,771,249,206,380,339,0,292,591,543,1180,605,0,292,199,245,7915,1638,284,220,860,754,391,325,0,292,0,292]
[null,null,null,null,null,null,null,null,null,482889,22701,15830,3829,5887,2502,3907,1463,3611,1562,22130,3867,6428,1941,11183,2730,3099,1603,1110,564,"N/A","N/A",35615,5500,2021,990,884,747,17432,3007,9030,2849,2921,1091,4136,2062,6321,1902,7232,2781,5497,1861,13241,2929,13900,2269,21359,4622,5439,2349,7929,3596,7984,null,null,null,null,2232,338,289,1544,1314,7050,3281,3645,1193,22344,3256,900,872,55011,6848,19108,3464,794,720,21047,3825,3466,1518,1655,1187,19935,3976,1982,813,10759,2906,430,473,12882,2482,24039,5038,2833,1249,1442,935,20080,4137,3573,1239,5634,2872,8081,2929,191,258,12968,4149]
[null,null,null,null,null,null,null,null,null,249459,15858,13840,2473,3645,1932,2554,1303,599,436,8909,2412,3224,2058,2619,1473,837,753,1708,1278,49901,5558,"N/A","N/A",1040,658,414,478,9736,3665,2649,1023,1096,821,1355,1097,6525,2248,3645,1604,0,300,5382,1767,3910,2127,6857,1831,1169,718,2380,959,3072,null,null,null,null,1087,52,92,148,139,1155,684,162,161,4151,1203,826,509,12472,2568,15361,3426,0,300,9323,2446,2070,1458,843,626,6294,1914,43,70,15562,3592,557,540,14445,3273,11424,2574,380,291,361,458,8393,2087,4495,2034,358,295,3416,2022,102,118,1010,742]
[null,null,null,null,null,null,null,null,null,53581,6065,749,542,743,609,1398,849,0,275,12677,2325,1073,667,307,392,0,275,0,275,4599,2610,2013,1185,"N/A","N/A",42,70,715,412,192,209,68,118,387,345,95,159,88,151,89,145,990,737,1283,944,627,548,476,350,234,368,170,null,null,null,null,171,150,261,0,275,1925,1184,496,685,443,417,11,19,1339,794,1510,994,69,116,625,515,57,94,1834,958,553,478,644,829,322,378,267,380,142,205,6694,2760,467,369,0,275,2644,1136,2705,883,483,782,1168,1133,18,33,0,275]
[null,null,null,null,null,null,null,null,null,55638,6079,376,369,3264,1813,3086,2015,45,73,8932,2415,1372,867,0,267,0,267,144,233,612,508,313,280,123,206,"N/A","N/A",169,236,132,133,773,470,422,415,315,272,59,102,202,272,44,73,115,135,427,363,465,613,37,61,425,null,null,null,null,345,1509,584,0,267,2110,1061,109,147,97,148,694,811,155,169,134,164,96,112,325,261,711,702,3202,1259,172,206,0,267,0,267,296,375,1153,995,1746,951,8014,2403,0,267,611,662,10876,2438,133,158,233,292,1410,723,233,374]
[null,null,null,null,null,null,null,null,null,203959,11573,1397,596,1764,1078,5921,1897,1194,665,16205,3236,3850,1360,2264,1125,56,57,1047,581,8051,1715,6781,2524,1224,776,313,258,"N/A","N/A",21918,4147,9141,1866,1970,991,2921,831,1419,687,55,93,1985,1210,2811,1111,11865,2138,4300,1815,1093,861,16703,null,null,null,null,3325,928,937,546,373,2541,1214,206,202,2331,1262,996,709,8479,2555,5504,2479,1112,788,5103,1201,1459,777,1224,789,5190,1822,838,643,1565,787,292,264,3999,1131,12245,3113,658,427,260,257,3831,1241,1642,707,812,523,15364,2866,586,432,2055,820]
[null,null,null,null,null,null,null,null,null,127353,8463,1502,1110,177,143,2210,914,1548,1104,8959,2863,1362,658,544,404,0,267,181,156,5496,1564,1623,913,267,316,772,604,27950,4658,"N/A","N/A",1885,1191,1582,996,10643,2402,749,599,30,50,1641,950,103,135,9361,1837,916,385,270,255,3893,null,null,null,null,2531,164,201,705,654,227,239,114,134,1876,1526,188,229,2564,952,2828,1141,0,267,13272,2750,681,563,423,380,2668,1128,174,284,584,405,216,258,3093,1261,6335,1643,444,432,45,73,3673,1633,571,340,669,562,1762,893,413,403,572,457]
[null,null,null,null,null,null,null,null,null,72557,5707,330,202,519,407,1483,623,247,190,2847,1227,2554,865,114,155,0,228,53,85,1364,573,973,472,866,651,315,415,17016,2840,1710,917,"N/A","N/A",1520,741,334,377,315,384,0,228,134,156,189,175,1439,652,7564,1722,117,138,6031,null,null,null,null,2253,836,743,4783,1799,623,371,381,531,472,405,492,490,273,270,1123,744,601,617,632,421,679,491,1071,568,378,242,0,228,591,442,1992,980,1617,1222,4131,1470,146,156,45,81,303,329,538,365,0,228,2705,1206,111,119,149,176]
[null,null,null,null,null,null,null,null,null,95059,7804,44,75,1050,697,2238,878,1596,1073,6125,1459,6022,2519,85,140,238,275,0,248,2863,1848,1916,1039,128,154,398,407,2943,1096,1544,859,1875,1184,"N/A","N/A",1048,1402,890,580,0,248,1369,1103,100,120,806,457,1562,1147,167,146,23384,null,null,null,null,3524,289,318,2678,875,1318,1245,76,130,1743,1236,873,580,2390,1235,1083,649,225,373,1509,1127,7568,2302,514,610,563,537,39,79,137,211,352,227,1152,821,9217,2824,238,298,75,126,1648,934,1175,792,0,248,1233,898,573,531,68,88]
[null,null,null,null,null,null,null,null,null,118443,8947,2161,871,3017,2024,2598,1483,558,547,3779,1387,329,363,698,710,38,64,147,210,10119,2893,6397,2093,520,520,71,119,4659,1887,11906,2334,656,788,1109,1031,"N/A","N/A",437,435,0,271,1395,995,1036,738,4672,1897,930,781,1442,917,3153,null,null,null,null,1147,0,271,858,809,76,129,0,271,1147,807,122,189,2057,1057,3758,1216,0,271,15598,2549,1153,900,181,220,2618,1480,289,381,1286,741,163,262,11153,3003,5758,1631,905,721,525,515,3671,1981,716,599,2297,1276,1993,1413,292,462,179,240]
[null,null,null,null,null,null,null,null,null,97889,8319,5740,2537,1504,922,1960,1204,2382,1114,5751,1933,1215,567,89,120,0,281,264,228,9394,2799,5766,1868,342,502,202,205,2131,1394,948,651,625,656,706,483,1656,1093,"N/A","N/A",162,269,963,699,995,702,1301,886,569,513,7032,2217,2852,null,null,null,null,1534,40,72,119,193,1552,785,462,427,171,249,294,256,2161,822,1443,686,438,514,1100,774,1074,675,281,277,1350,747,0,281,1130,706,0,281,1853,621,26134,3903,473,380,0,281,1278,733,1509,1126,210,254,237,229,31,67,402,285]
[null,null,null,null,null,null,null,null,null,27758,3059,402,311,424,439,254,290,67,112,1066,740,478,377,1361,689,174,229,55,89,3025,924,844,817,62,102,0,230,311,251,259,379,337,561,56,92,484,643,115,211,"N/A","N/A",243,223,3521,958,122,133,91,109,0,230,201,null,null,null,null,260,275,335,204,283,345,344,4058,1966,902,508,234,298,2339,962,1001,1161,55,89,315,362,124,215,0,230,375,287,379,284,148,160,0,230,249,231,458,327,390,427,420,368,654,307,381,533,0,230,0,230,500,766,204,355]
[null,null,null,null,null,null,null,null,null,164484,9180,1641,1004,2672,1268,1124,770,273,418,8206,2230,2501,1523,1603,798,8340,3099,23202,3764,6564,1906,3454,1271,422,439,357,415,3300,1310,431,330,160,190,781,822,396,362,1376,695,53,96,"N/A","N/A",1983,730,3572,1269,820,543,403,383,1147,null,null,null,null,633,86,106,54,88,979,800,1369,1276,9058,2330,238,287,10736,2103,5787,2059,0,289,3277,1497,607,541,723,654,13467,3147,782,626,1710,852,49,81,2669,1332,5883,1511,655,451,350,328,24765,4735,1542,1004,4363,1701,324,241,230,299,612,678]
[null,null,null,null,null,null,null,null,null,140162,8906,583,382,1891,1205,1572,1170,206,343,14971,3388,1051,527,13270,2422,131,214,1539,649,11118,2520,1409,612,682,598,79,128,2842,1071,1891,857,307,253,0,285,340,397,0,285,4666,1266,3660,1356,"N/A","N/A",1624,931,2185,2035,453,534,1957,null,null,null,null,1987,388,356,46,77,792,705,9911,1876,4709,1295,161,271,20002,3186,2798,1277,0,285,2163,975,158,204,228,217,5316,1681,6965,1573,1659,1086,0,285,918,591,7073,2465,207,159,1526,673,4542,1704,1627,791,0,285,546,404,0,285,3085,1219]
[null,null,null,null,null,null,null,null,null,116149,8123,2403,1803,1040,758,3197,1076,636,434,6726,2018,2031,695,277,303,167,160,471,272,11646,2178,3913,1925,313,337,66,79,10651,1903,7816,2004,758,493,640,469,2353,1473,1342,747,645,477,620,428,1206,574,"N/A","N/A",1275,646,656,474,2921,null,null,null,null,1486,312,235,213,214,1874,1028,437,357,1676,861,669,411,3135,871,2444,903,53,71,9783,1851,2276,1296,537,341,3134,1226,653,702,1446,869,706,521,4453,1559,7184,2265,545,388,45,77,2073,807,1427,666,446,319,6291,1731,568,429,1432,1082]
[null,null,null,null,null,null,null,null,null,89872,6022,266,342,1169,851,4165,1655,279,321,6233,1680,2521,1122,211,259,176,171,306,353,2575,951,1776,1237,227,253,231,314,6641,2137,1120,433,4948,2094,1067,576,402,273,519,402,172,199,1259,797,1092,531,2631,1867,"N/A","N/A",196,169,1549,null,null,null,null,898,1020,547,734,415,540,364,183,142,513,416,151,137,1309,650,1673,808,7316,1621,1035,669,284,299,738,390,730,459,123,148,1597,1554,3237,922,1155,1037,2619,1241,1013,792,0,211,2371,1485,1328,604,200,211,17929,2252,343,280,39,62]
[null,null,null,null,null,null,null,null,null,72321,5412,8306,2433,1192,1055,187,188,4941,2495,3000,1221,1167,854,71,140,0,287,0,287,4814,1372,4014,1632,276,383,121,172,3030,1391,1403,1445,114,136,330,360,407,350,7390,1780,0,287,649,529,107,154,2495,1469,863,996,"N/A","N/A",959,null,null,null,null,544,314,278,0,287,408,323,0,287,403,398,633,669,1026,524,2227,1080,0,287,1312,783,663,520,0,287,750,499,145,241,1860,982,56,99,8158,2173,5755,1663,232,229,0,287,572,350,508,492,94,177,879,630,490,422,814,728]
[null,null,null,null,null,null,null,null,null,145226,7633,819,561,1051,822,2988,1145,4381,1133,9840,2218,1903,781,243,282,314,322,478,322,8317,2320,2492,1119,380,294,830,909,21277,3689,3351,1123,4708,1328,23427,3689,2552,1075,2238,2007,171,179,1359,812,1395,931,2610,954,1701,810,1183,510,"N/A",null,null,null,null,"N/A",220,192,2636,1240,1060,648,108,180,1320,804,150,147,2630,1474,1825,760,848,1186,2163,847,4647,1478,314,204,1639,755,0,259,954,578,512,445,3311,1272,12884,3043,1319,664,498,524,3206,1413,1107,748,177,231,1331,693,359,496,867,658]
[null,null,null,null,null,null,null,null,null,35630,3807,212,332,650,561,1909,1125,672,487,5756,1903,2185,870,128,148,71,120,0,237,1373,1173,46,87,0,237,1458,859,1094,789,251,233,169,198,60,93,321,490,85,118,76,102,51,86,59,97,648,534,1323,603,242,356,564,null,null,null,null,481,"N/A","N/A",340,424,548,386,0,237,0,237,660,688,246,282,1072,1127,1677,1012,89,118,182,174,1620,861,419,319,0,237,110,150,295,258,111,193,2101,1013,964,618,0,237,497,401,3250,1281,0,237,357,267,1689,672,11,19]
[null,null,null,null,null,null,null,null,null,51290,4521,232,262,35,46,2322,1501,674,587,4430,1419,4182,1393,361,562,177,235,0,228,1775,992,1202,870,257,213,127,135,1820,1218,639,453,5536,1473,2484,869,153,166,89,166,0,228,77,100,100,167,726,440,2254,1114,823,865,2723,null,null,null,null,1319,112,160,"N/A","N/A",232,180,0,228,143,171,831,805,111,115,442,284,777,978,1232,966,702,393,506,385,345,347,0,228,65,105,2936,1369,77,129,4445,1562,537,495,0,228,772,604,1230,793,73,89,1046,585,1478,545,0,228]
[null,null,null,null,null,null,null,null,null,102677,8786,150,246,511,659,7818,2342,530,421,35472,5381,2935,1969,648,868,0,309,0,309,3579,2182,1187,1333,4363,2688,1686,984,1711,927,739,545,543,371,453,654,569,668,733,757,0,309,485,402,1275,752,2202,861,805,528,946,748,1747,null,null,null,null,1218,770,742,1129,951,"N/A","N/A",59,97,1528,1205,1220,715,1204,753,957,531,37,64,1554,852,886,600,2629,1056,1567,752,167,223,312,291,1203,803,706,681,5224,2241,4500,2410,197,328,1832,1429,3290,1219,56,101,419,244,144,144,502,618]
[null,null,null,null,null,null,null,null,null,39367,4220,152,235,0,257,544,383,0,257,1692,969,240,250,3134,1187,0,257,298,389,1659,699,0,257,51,83,66,113,850,741,23,37,109,124,57,100,0,257,19,33,3242,983,49,81,13752,2615,230,222,240,270,25,41,295,null,null,null,null,387,486,638,0,257,95,123,"N/A","N/A",540,365,276,394,2462,997,471,439,0,257,28,35,0,257,508,544,674,406,988,677,51,85,0,257,372,387,1570,1644,279,223,2566,1011,745,807,261,434,0,257,268,418,0,257,56,93]
[null,null,null,null,null,null,null,null,null,127369,8536,616,406,383,407,1625,847,258,346,8777,2628,807,590,2503,1323,1543,702,431,335,9841,2289,4588,2901,385,422,91,148,2656,995,402,471,332,331,442,403,91,147,249,264,95,112,4231,2100,2626,973,1070,578,322,274,450,478,727,null,null,null,null,417,122,206,261,361,874,616,705,380,"N/A","N/A",421,281,41374,5068,3052,1042,0,281,1584,1069,32,51,613,578,22225,3517,332,376,1134,598,0,281,852,631,3434,1520,178,205,57,98,2670,1099,964,617,358,353,586,571,0,281,2732,1263]
[null,null,null,null,null,null,null,null,null,73605,7703,751,550,969,801,6117,2902,77,109,6547,2252,2852,1095,25,41,391,444,56,95,3259,1428,1977,1097,122,185,755,565,526,362,465,458,0,285,751,581,739,1131,65,87,94,155,1968,1112,2076,1567,1460,843,179,231,719,630,138,null,null,null,null,211,1003,1419,530,726,4192,2452,79,130,160,200,"N/A","N/A",784,581,1793,844,79,150,1712,883,1182,854,1659,1403,809,526,46,81,152,182,204,322,1269,801,18511,3785,1601,1033,309,435,290,249,3004,1315,0,285,407,339,752,727,632,678]
[null,null,null,null,null,null,null,null,null,269427,14924,1310,924,5070,2375,2649,799,362,249,25177,4560,3135,1173,15338,2651,2603,1828,1983,820,30553,4156,7676,1970,259,195,198,198,6533,2144,2497,1311,477,319,1189,712,804,500,1321,847,2270,1705,5912,1583,16855,3094,4779,1496,1649,1086,872,381,1870,null,null,null,null,961,237,210,886,564,2077,810,2636,1065,35333,4610,829,596,"N/A","N/A",13322,3003,0,275,6510,1610,2298,1033,2284,1098,20514,3022,1913,1041,7161,2607,521,509,1730,835,9692,2018,910,988,2900,908,8881,1939,2503,976,444,285,2354,1588,151,148,6740,2049]
[null,null,null,null,null,null,null,null,null,263256,13976,3044,1381,1618,1103,2847,1062,550,306,16699,3085,1842,1052,3752,1748,479,354,1691,548,28983,4184,15943,3370,1567,871,724,564,5657,1875,4132,1280,1077,806,2192,1266,4419,1984,2180,1222,2259,990,9881,2730,4052,1420,5789,2071,1839,844,1187,818,1932,null,null,null,null,965,230,274,516,357,698,639,2130,1440,7195,1847,1186,1065,19406,3099,"N/A","N/A",243,402,8661,2362,1453,717,1796,1013,11155,2465,97,161,23196,4788,362,304,8685,2249,14329,3409,790,551,350,244,25662,3825,2874,1166,3025,1129,2012,910,870,819,1950,1463]
[null,null,null,null,null,null,null,null,null,30100,3890,109,108,1066,823,662,481,168,206,1411,873,873,614,30,47,0,211,175,275,492,376,799,837,53,84,69,82,39,54,45,77,289,376,114,154,97,85,374,422,0,211,121,94,52,84,298,250,12350,2469,0,211,197,null,null,null,null,208,1236,733,328,316,382,357,0,211,144,183,380,517,188,224,637,680,"N/A","N/A",134,167,108,120,313,439,392,377,0,211,0,211,1038,510,273,270,2513,1293,462,431,0,211,25,39,696,344,0,211,749,480,219,206,0,211]
[null,null,null,null,null,null,null,null,null,172633,10673,1289,751,1556,1531,4715,2132,434,504,8997,1767,2859,1134,1307,819,15,25,972,768,16495,2765,9502,2685,436,331,564,694,7092,1635,9438,2077,1270,757,1016,494,9159,1874,743,511,291,238,3828,1666,3686,1712,15130,3104,2298,1327,89,105,1171,null,null,null,null,569,460,450,1531,983,2240,1351,175,205,2465,1028,515,380,5988,1895,5985,1492,26,53,"N/A","N/A",1228,1044,342,306,12012,2269,444,314,2479,1021,207,215,4987,2031,7465,2241,485,318,182,173,6769,1705,2567,905,7814,2197,1771,934,144,187,2140,1360]
[null,null,null,null,null,null,null,null,null,106511,8108,1612,1283,1397,1554,2759,1013,5873,1827,9429,2426,3184,1286,68,129,109,164,0,253,5438,1371,3159,1688,773,864,611,668,2679,1529,957,550,1108,660,5024,2088,877,607,2208,808,298,278,382,407,465,481,1047,478,599,369,1733,789,4102,null,null,null,null,1427,448,342,829,530,1079,598,69,131,890,890,2723,1280,1118,743,1991,1219,139,136,1385,681,"N/A","N/A",398,300,1316,1283,119,137,596,377,83,135,1872,895,28238,4132,428,454,93,109,2286,1049,2035,1130,221,270,551,396,1713,1012,209,222]
[null,null,null,null,null,null,null,null,null,116700,7898,400,290,2027,910,5264,1539,246,217,34190,4899,2050,924,270,273,0,277,217,239,2273,1051,688,572,2323,1117,4129,1397,1565,862,317,319,161,176,678,685,0,277,0,277,0,277,595,405,1471,1154,1159,783,668,442,735,770,1786,null,null,null,null,992,3386,1956,777,574,2805,1436,317,280,544,582,981,679,2538,1146,1040,758,592,521,1541,902,821,683,"N/A","N/A",1689,1185,0,277,989,1271,741,581,787,455,3826,1484,2879,1047,456,405,1124,593,22793,3575,358,308,1981,1181,523,336,821,847]
[null,null,null,null,null,null,null,null,null,235580,12249,369,368,2185,1301,3668,1451,807,601,12077,2875,3657,1375,4007,1559,4608,1169,1621,866,18212,3129,4644,1340,332,292,380,408,4490,1429,2018,739,227,319,1426,1201,1675,766,625,382,1621,895,18281,2839,4455,1178,4961,2285,1491,873,563,498,1725,null,null,null,null,788,339,290,551,410,1810,1177,729,531,42456,5218,1250,883,30481,3719,7611,2053,521,517,14545,3377,1254,749,918,545,"N/A","N/A",377,327,1315,651,966,927,1611,626,7778,2650,1048,684,215,214,10558,2596,2495,1141,4258,1674,1300,1081,1069,936,6275,2169]
[null,null,null,null,null,null,null,null,null,32059,4070,136,214,0,291,324,286,0,291,1697,791,59,98,4090,1497,0,291,146,240,1336,778,382,377,274,546,0,291,1210,768,206,334,48,79,0,291,0,291,0,291,447,350,977,676,8639,1836,77,125,47,78,0,291,47,null,null,null,null,78,0,291,0,291,297,259,333,322,1868,649,0,291,4583,1398,1376,1080,62,103,0,291,199,331,0,291,560,461,"N/A","N/A",61,105,48,78,71,118,678,500,0,291,72,122,1399,908,160,206,150,233,0,291,0,291,276,353]
[null,null,null,null,null,null,null,null,null,152441,10548,1741,721,1670,1199,1457,870,365,280,4691,1983,1867,1378,3998,2132,249,274,38,63,16060,3907,17486,3100,813,521,233,207,4253,1651,2174,884,703,870,514,612,2211,1215,2059,986,603,448,5184,2183,3765,1826,3709,1403,818,463,1175,681,1371,null,null,null,null,797,0,296,0,296,1173,793,486,296,4908,1660,1390,1444,7912,2045,20749,3397,118,196,3883,1190,1458,1353,1020,951,4689,1531,154,179,"N/A","N/A",95,109,3816,1732,4965,1539,455,437,478,500,9786,2245,3070,1589,1190,536,1057,639,382,524,269,229]
[null,null,null,null,null,null,null,null,null,25777,3187,325,333,25,44,745,533,61,120,1338,703,807,447,0,223,0,223,0,223,251,242,24,44,75,123,457,289,80,134,439,381,3520,1429,571,471,82,103,129,196,0,223,0,223,407,471,144,127,4615,1629,201,213,252,null,null,null,null,210,560,364,2260,1028,38,63,0,223,0,223,38,67,758,469,262,231,2020,1029,160,174,296,289,122,136,209,268,0,223,0,223,"N/A","N/A",0,223,1334,812,0,223,0,223,224,217,1564,973,0,223,736,533,648,549,0,223]
[null,null,null,null,null,null,null,null,null,159778,11597,8897,2131,343,300,2291,1160,4736,1836,8019,2431,1858,1182,765,713,248,254,394,484,14168,3004,11065,2592,243,402,333,374,3162,1151,4764,1593,1052,864,2506,2041,11188,3378,2602,1490,84,138,1450,701,1733,904,5529,1806,1504,1160,9029,2461,4342,null,null,null,null,1588,290,243,187,177,2433,1517,197,238,2230,1219,621,543,4800,1691,7102,1676,0,287,4462,2091,669,482,430,497,2562,1256,805,913,4765,2102,63,112,"N/A","N/A",8701,2089,2062,1241,0,287,8650,2526,1412,911,2201,1455,2831,1402,0,287,0,287]
[null,null,null,null,null,null,null,null,null,486558,20955,8636,2633,11613,3256,16521,3719,15251,3182,68959,7058,16361,3311,924,551,704,533,460,400,26668,4238,16671,3792,3718,1263,2033,1171,20169,3942,6985,2350,3946,1452,11598,2743,5153,1839,31149,5628,1318,889,4724,1564,7139,2275,13775,3091,6088,2182,7773,2477,12061,null,null,null,null,2517,1027,614,4893,2391,8324,2790,1067,637,7058,2884,11752,2780,16624,4092,12183,3708,2452,1624,8317,1971,22969,4302,4373,1618,7161,2092,975,613,5249,1965,1936,836,13044,3538,"N/A","N/A",4123,1574,52,88,13713,2694,8847,2397,2221,1231,5927,1723,1874,1022,4180,2074]
[null,null,null,null,null,null,null,null,null,77780,6769,93,114,1798,1320,8147,2522,316,262,12187,2104,3987,1226,119,148,0,267,138,168,2097,1007,966,644,932,930,7692,2177,1831,767,517,475,483,348,299,340,235,266,46,98,148,237,426,302,246,253,261,243,914,545,127,134,1255,null,null,null,null,929,1929,1099,118,121,4549,1568,0,267,247,240,518,480,1462,752,1167,840,0,267,1527,1163,886,947,2525,1094,557,347,0,267,838,716,875,1215,459,385,5305,1508,"N/A","N/A",297,494,3005,2000,3792,1538,0,267,338,323,2126,1168,383,446]
[null,null,null,null,null,null,null,null,null,22529,2945,0,211,184,181,65,76,0,211,1001,506,326,238,1287,585,87,111,9,15,2063,1237,496,395,49,71,0,211,370,415,0,211,91,93,0,211,176,146,0,211,824,365,300,294,3599,1075,201,209,85,116,0,211,51,null,null,null,null,86,236,207,0,211,58,75,2760,827,751,390,0,211,4056,1050,539,455,30,50,50,65,0,211,100,122,524,339,227,154,134,157,153,214,125,104,565,449,0,211,"N/A","N/A",400,361,128,115,0,211,377,488,52,86,0,211]
[null,null,null,null,null,null,null,null,null,259507,12319,2671,1201,3296,1952,3807,1454,1233,1034,17088,3674,3229,1571,2468,921,1265,828,10593,2299,18165,3554,11927,3210,2347,1394,1159,787,7576,2202,2892,1856,1135,758,2103,1418,2051,1056,2148,926,1494,932,24822,4371,4104,1347,5733,2245,462,292,1858,1007,4262,null,null,null,null,2141,866,1090,523,475,748,469,372,515,6825,1687,1098,735,17525,3087,23829,4041,201,325,7708,2181,781,611,2137,2081,11796,2546,1543,1150,8339,2247,98,179,5842,1776,12938,3212,1551,822,676,599,"N/A","N/A",4373,1700,6779,2481,2648,1525,423,429,1306,872]
[null,null,null,null,null,null,null,null,null,191784,12094,1322,1150,5644,2055,5971,2284,658,531,39468,5451,4883,1316,642,450,202,198,243,260,5378,1314,3107,1650,4246,1482,12661,3237,3931,1438,1912,1321,1685,993,1694,1174,886,626,1011,588,717,653,629,445,1448,796,2871,1443,1323,656,737,784,3727,null,null,null,null,2288,5094,1449,323,245,5310,1954,282,305,721,604,1012,599,4140,1494,2143,1189,515,426,2727,1146,1986,1131,26235,4414,2893,1410,220,197,3047,1800,866,729,789,511,11338,3003,4020,1681,981,803,7266,2764,"N/A","N/A",62,107,2180,1074,638,524,0,277]
[null,null,null,null,null,null,null,null,null,39609,4590,41,69,1326,1210,0,269,0,269,760,511,608,553,84,148,556,506,480,466,1842,825,485,354,0,269,88,158,356,338,366,311,0,269,161,198,851,732,60,117,0,269,4249,1182,191,169,657,379,0,269,44,75,160,null,null,null,null,190,39,62,0,269,25,42,107,185,906,537,0,269,611,416,2552,985,268,399,7925,2201,229,363,0,269,4908,1396,238,292,647,493,0,269,1160,833,968,650,112,144,208,205,4999,1573,192,199,"N/A","N/A",150,188,0,269,182,232]
[null,null,null,null,null,null,null,null,null,93065,6949,552,523,798,549,1854,674,518,299,4506,1080,1890,806,359,356,351,522,98,118,4492,1416,1656,684,550,532,902,771,20299,3115,2563,921,2300,936,752,696,287,215,331,302,448,427,1088,700,992,1121,6317,1567,16741,2575,810,987,1716,null,null,null,null,890,154,164,853,685,1049,897,69,116,632,422,123,115,1291,512,1817,1007,497,373,1674,1063,89,137,1444,768,2211,1428,0,218,1142,626,235,159,856,469,3039,983,476,398,75,123,771,543,1013,634,256,229,"N/A","N/A",129,104,521,478]
[null,null,null,null,null,null,null,null,null,28046,4226,172,257,0,269,1511,915,0,269,2784,1647,4390,1357,0,269,0,269,0,269,396,347,745,553,25,41,942,849,415,444,132,217,462,641,532,514,519,743,107,144,0,269,51,92,252,470,570,597,218,277,0,269,421,null,null,null,null,418,2528,1395,1711,1394,416,383,0,269,0,269,707,527,146,144,34,84,233,228,56,90,62,79,14,25,95,118,0,269,220,235,258,183,495,638,1990,1143,3226,1437,75,137,580,459,556,469,0,269,0,269,"N/A","N/A",0,269]
[null,null,null,null,null,null,null,null,null,31732,4381,629,711,156,259,288,356,0,285,1177,949,388,492,899,653,0,285,0,285,11262,2512,207,334,0,285,0,285,1642,1175,109,173,0,285,112,184,254,211,109,130,0,285,59,106,2004,960,89,149,50,83,170,198,221,null,null,null,null,258,0,285,0,285,0,285,0,285,1244,830,364,603,4768,1546,146,240,0,285,69,127,0,285,0,285,1516,772,684,829,109,173,0,285,30,56,977,742,882,1289,0,285,392,320,0,285,141,135,585,815,0,285,"N/A","N/A"]

{"sheet":"Unemployement","index":7,"n_rows":56,"n_cols":9,"rows_kept":56,"cut":false,"hidden":true,"merged":[[1,2,1,3],[1,4,1,5],[1,6,1,7]]}
["source : http://www.dlt.ri.gov/lmi/laus/us/annavg.htm"]
[null,null,2012,null,2011,null,2010,null,"Average unemployement rate"]
["State",null,"Rate","Rank","Rate","Rank","Rate","Rank"]
["North Dakota","ND",3,1,3.4,1,3.8,1,{"$f":"(C4+E4+G4)/3","v":3.4}]
["Nebraska","NE",4,2,4.5,2,4.7,2,4.3999999999999995]
["South Dakota","SD",4.2,3,4.7,3,5.0999999999999996,3,4.666666666666667]
["Vermont","VT",4.9000000000000004,4,5.6,5,6.4,6,5.6333333333333329]
["New Hampshire","NH",5.5,9,5.5,4,6.2,4,5.7333333333333334]
["Iowa","IA",5.2,5,5.8,6,6.3,5,5.7666666666666666]
["Oklahoma","OK",5.4,6,5.9,7,6.9,9,6.0666666666666673]
["Wyoming","WY",5.4,6,6.1,8,7,10,6.166666666666667]
["Hawaii","HI",5.7,11,6.5,10,6.7,7,6.3]
["Montana","MT",6,14,6.5,10,6.7,7,6.3999999999999995]
["Kansas","KS",5.8,12,6.5,10,7.1,11,6.4666666666666659]
["Virginia","VA",5.9,13,6.4,9,7.1,11,6.4666666666666659]
["Minnesota","MN",5.6,10,6.5,10,7.4,13,6.5]
["Utah","UT",5.4,6,6.8,14,8.1,20,6.7666666666666657]
["Louisiana","LA",6.5,15,7.2,15,7.4,13,7.0333333333333341]
["Maryland","MD",6.9,18,7.3,16,7.9,15,7.3666666666666671]
["Massachusetts","MA",6.8,16,7.3,16,8.3000000000000007,23,7.4666666666666659]
["Alaska","AK",6.9,18,7.6,20,8,17,7.5]
["Delaware","DE",7.1,22,7.4,18,8,17,7.5]
["New Mexico","NM",7.1,22,7.6,20,8,17,7.5666666666666664]
["Texas","TX",6.8,16,7.9,24,8.1999999999999993,21,7.6333333333333329]
["Wisconsin","WI",6.9,18,7.5,19,8.5,24,7.6333333333333329]
["Maine","ME",7.2,25,7.7,22,8.1999999999999993,21,7.7]
["Arkansas","AR",7.5,29,8,25,7.9,15,7.8]
["West Virginia","WV",7.2,25,7.8,23,8.5,24,7.833333333333333]
["Idaho","ID",7.3,27,8.4,28,8.6999999999999993,28,8.1333333333333329]
["Pennsylvania","PA",7.9,31,8,25,8.5,24,8.1333333333333329]
["Alabama","AL",7.1,22,8.5,29,9.1999999999999993,30,8.2666666666666657]
["Missouri","MO",7,21,8.5,29,9.3000000000000007,31,8.2666666666666675]
["New York","NY",8.5,38,8.1999999999999993,27,8.6,27,8.4333333333333318]
["Colorado","CO",7.8,30,8.5,29,9,29,8.4333333333333336]
["Ohio","OH",7.4,28,8.6999999999999993,32,10,36,8.7000000000000011]
["Connecticut","CT",8.3000000000000007,35,8.9,34,9.3000000000000007,31,{"$f":"(C36+E36+G36)/3","v":8.8333333333333339}]
["Indiana","IN",8.1,32,8.8000000000000007,33,10,36,8.9666666666666668]
["Washington","WA",8.1,32,9.1999999999999993,35,9.9,34,9.0666666666666647]
["Tennessee","TN",8.1999999999999993,34,9.3000000000000007,36,9.9,34,9.1333333333333329]
["Kentucky","KY",8.3000000000000007,35,9.5,39,10.199999999999999,39,9.3333333333333339]
["Arizona","AZ",8.3000000000000007,35,9.4,38,10.4,41,9.3666666666666671]
["New Jersey","NJ",9.3000000000000007,48,9.3000000000000007,36,9.6,33,9.4]
["Georgia","GA",9,42,9.9,42,10.199999999999999,39,9.6999999999999993]
["Illinois","IL",8.9,41,9.6999999999999993,40,10.5,42,9.7000000000000011]
["Oregon","OR",8.8000000000000007,39,9.6999999999999993,40,10.8,44,9.7666666666666675]
["District of Columbia","DC",9.1,44,10.199999999999999,43,10.1,38,9.7999999999999989]
["Puerto Rico","PR",9.1999999999999993,null,9.6,null,9.3000000000000007,null,9.3666666666666654]
["North Carolina","NC",9.1999999999999993,46,10.199999999999999,43,10.8,44,10.066666666666666]
["Mississippi","MS",9.1999999999999993,46,10.6,48,10.6,43,10.133333333333333]
["South Carolina","SC",9,42,10.3,45,11.1,46,10.133333333333333]
["Florida","FL",8.8000000000000007,39,10.3,45,11.3,47,10.133333333333335]
["Michigan","MI",9.1,44,10.4,47,12.7,50,10.733333333333334]
["Rhode Island","RI",10.3,49,11.2,49,11.7,48,11.066666666666668]
["California","CA",10.4,50,11.8,50,12.4,49,11.533333333333333]
["Nevada","NV",11.5,51,13.2,51,13.8,51,12.833333333333334]
[null,null,{"$f":"AVERAGE(C4:C55)","v":7.365384615384615},null,{"$f":"AVERAGE(E4:E55)","v":8.1596153846153836},null,{"$f":"AVERAGE(G4:G55)","v":8.7750000000000004}]

{"sheet":"Info Sheet","index":8,"n_rows":66,"n_cols":20,"rows_kept":66,"cut":false,"hidden":true,"merged":[]}
[null,null,null,null,null,null,null,null,null,null,null,null,null,null,"Current Residence","Code","Immigrants","Leaves",null,"Per income Capita"]
[null,null,null,null,null,null,null,null,null,null,null,null,null,null,"Mississippi","MS",215545,204104,{"$f":"Q2/$Q$54","v":1.0222176610111971E-2},{"$f":"VLOOKUP(O2,'Per Income capita'!A:H,8,0)","v":31971.333333333332}]
[null,2010,null,null,2011,null,null,2012,null,null,null,null,null,null,"Idaho","ID",175875,166157,8.3408351448813148E-3,{"$f":"VLOOKUP(O3,'Per Income capita'!A:H,8,0)","v":32728.666666666668}]
[null,"Leavers %","Newcomers %",null,"Leavers %","Newcomers %",null,"Leavers %","Newcomers %",null,null,null,null,null,"West Virginia","WV",137743,142893,6.5324330084513826E-3,{"$f":"VLOOKUP(O4,'Per Income capita'!A:H,8,0)","v":33228.666666666664}]
["Alabama",1.4714167352169117E-2,1.6123284556997842E-2,{"$f":"C5-B5","v":1.4091172048287248E-3},1.5285478923825346E-2,1.6848288408762267E-2,{"$f":"F5-E5","v":1.5628094849369206E-3},1.5446205241752701E-2,1.4794186139431668E-2,{"$f":"I5-H5","v":-6.5201910232103207E-4},null,{"$f":"J5+G5+D5","v":2.3199075874446133E-3},null,null,"South Carolina","SC",470295,366529,2.2303642157566212E-2,{"$f":"VLOOKUP(O5,'Per Income capita'!A:H,8,0)","v":33282.333333333336}]
["Alaska",1.4042530662980598E-2,5.3870334227118788E-3,{"$f":"C6-B6","v":-8.6554972402687197E-3},1.2715716367824672E-2,5.0210263708358E-3,{"$f":"F6-E6","v":-7.6946899969888719E-3},1.1890226007358905E-2,4.7260777232228414E-3,{"$f":"I6-H6","v":-7.164148284136064E-3},null,{"$f":"J6+G6+D6","v":-2.3514335521393655E-2},null,null,"Utah","UT",251489,231799,1.1926813303488597E-2,{"$f":"VLOOKUP(O6,'Per Income capita'!A:H,8,0)","v":33410.333333333336}]
["Arizona",2.6214147554532108E-2,3.3029428483001243E-2,6.8152809284691349E-3,3.0313924346281943E-2,3.1896912964678219E-2,1.5829886183962756E-3,2.925486662956334E-2,3.2877745003956668E-2,3.6228783743933284E-3,null,1.2021147921258739E-2,null,null,"Arkansas","AR",226536,206550,1.0743422489727553E-2,{"$f":"VLOOKUP(O7,'Per Income capita'!A:H,8,0)","v":33612}]
["Arkansas",9.5301523943499469E-3,1.1734289314510897E-2,2.2041369201609498E-3,1.1052154330012698E-2,9.9958267834633005E-3,-1.056327546549397E-3,9.1886605250521714E-3,1.0883203012017093E-2,1.6945424869649218E-3,null,2.8423518605764746E-3,null,null,"Kentucky","KY",341802,295550,1.620988846732465E-2,{"$f":"VLOOKUP(O8,'Per Income capita'!A:H,8,0)","v":33844.666666666664}]
["California",8.5120644723766611E-2,6.5954900834600164E-2,-1.9165743889166448E-2,8.0479393240648622E-2,6.7038802326926009E-2,-1.3440590913722614E-2,8.0192126409673076E-2,6.9818516635326844E-2,-1.0373609774346232E-2,null,-4.2979944577235293E-2,null,null,"New Mexico","NM",191588,176233,9.0860208883441155E-3,{"$f":"VLOOKUP(O9,'Per Income capita'!A:H,8,0)","v":34050.666666666664}]
["Colorado",2.0853510981163476E-2,2.7637501262377417E-2,6.7839902812139412E-3,2.2987467756320792E-2,2.8926859371189578E-2,5.9393916148687866E-3,2.2846127027747586E-2,2.9002828009099979E-2,6.1567009813523928E-3,null,1.8880082877435121E-2,null,null,"Alabama","AL",332465,315909,1.57670831922841E-2,{"$f":"VLOOKUP(O10,'Per Income capita'!A:H,8,0)","v":34738.333333333336}]
["Connecticut",1.3251811557934633E-2,1.1468244664388529E-2,-1.7835668935461037E-3,1.306563112887511E-2,1.0232967380216092E-2,-2.8326637486590176E-3,1.2308168837588548E-2,1.1358851654339357E-2,-9.4931718324919173E-4,null,-5.5655478254543131E-3,null,null,"Arizona","AZ",681320,595997,3.2311458711644842E-2,{"$f":"VLOOKUP(O11,'Per Income capita'!A:H,8,0)","v":34938}]
["Delaware",4.4570635225349752E-3,4.5614645446565736E-3,1.0440102212159845E-4,3.8112801642266611E-3,4.8532962686063056E-3,1.0420161043796445E-3,3.5569692850914631E-3,4.9158845855470984E-3,1.3589153004556352E-3,null,2.5053324269568781E-3,null,null,"Indiana","IN",390204,419009,1.8505343208945379E-2,{"$f":"VLOOKUP(O12,'Per Income capita'!A:H,8,0)","v":35539.666666666664}]
["District of Columbia ",8.3123381988065362E-3,7.599326672726078E-3,-7.1301152608045822E-4,7.1173664198610756E-3,6.8789377933130072E-3,-2.3842862654806837E-4,8.4172695957552279E-3,7.6134898650631619E-3,-8.0377973069206601E-4,null,-1.7552198833205926E-3,null,null,"Georgia","GA",802377,746832,3.8052561654836871E-2,{"$f":"VLOOKUP(O13,'Per Income capita'!A:H,8,0)","v":35793}]
["Florida",6.3449276303681815E-2,7.1610944845562866E-2,8.1616685418810508E-3,6.2569911394999234E-2,7.135642131511849E-2,8.7865099201192565E-3,6.058049501120525E-2,7.5971964592958338E-2,1.5391469581753088E-2,null,3.2339648043753395E-2,null,null,"Montana","MT",107237,100906,5.0856923293909739E-3,{"$f":"VLOOKUP(O14,'Per Income capita'!A:H,8,0)","v":35930.333333333336}]
["Georgia",3.6331555698316045E-2,3.6993997979306352E-2,6.6244228099030661E-4,3.5620034645139208E-2,3.8795028090498694E-2,3.1749934453594864E-3,3.567888129928596E-2,3.9243629554144809E-2,3.5647482548588488E-3,null,7.4021839812086418E-3,null,null,"Michigan","MI",392410,541057,1.8609962298239524E-2,{"$f":"VLOOKUP(O15,'Per Income capita'!A:H,8,0)","v":36029}]
["Hawaii",7.2988771403136388E-3,7.9458965430359851E-3,6.4701940272234634E-4,8.8645072799444034E-3,8.2350900533187093E-3,-6.2941722662569408E-4,8.6995754804044222E-3,7.7994779604107015E-3,-9.000975199937207E-4,null,-8.8249534389706844E-4,null,null,"Tennessee","TN",509645,461490,2.4169807689626368E-2,{"$f":"VLOOKUP(O16,'Per Income capita'!A:H,8,0)","v":36449.333333333336}]
["Idaho",7.8778282629879542E-3,8.2509432795475277E-3,3.7311501655957341E-4,8.2764501211892924E-3,8.6349517475415808E-3,3.585016263522884E-4,7.8059840078525166E-3,8.3847393585461533E-3,5.787553506936367E-4,null,1.3103719936054985E-3,null,null,"Nevada","NV",338199,324234,1.6039016944783033E-2,{"$f":"VLOOKUP(O17,'Per Income capita'!A:H,8,0)","v":36700.666666666664}]
["Illinois",4.1164106987913354E-2,3.0246488737072402E-2,-1.0917618250840953E-2,3.8498924352006518E-2,3.0941910428690662E-2,-7.5570139233158556E-3,3.9312508795539679E-2,2.9525433341654472E-2,-9.7870754538852064E-3,null,-2.8261707628042015E-2,null,null,"Oregon","OR",364508,318162,1.7286715775354077E-2,{"$f":"VLOOKUP(O18,'Per Income capita'!A:H,8,0)","v":37406.333333333336}]
["Indiana",1.9303808309046006E-2,1.8886055923653194E-2,-4.1775238539281181E-4,2.0497992390892426E-2,1.8300613560148702E-2,-2.1973788307437236E-3,2.0451194390089876E-2,1.8971775776146709E-2,-1.4794186139431668E-3,null,-4.0945498300797023E-3,null,null,"Oklahoma","OK",324675,274276,1.5397644069164695E-2,{"$f":"VLOOKUP(O19,'Per Income capita'!A:H,8,0)","v":37406.666666666664}]
["Iowa",9.9243255716215482E-3,1.0759978639313598E-2,8.3565306769205032E-4,1.0664314247212417E-2,1.0075970859613911E-2,-5.8834338759850523E-4,1.037078105806718E-2,1.0715177265041523E-2,3.4439620697434246E-4,null,5.9170588706788756E-4,null,null,"Ohio","OH",565952,593661,2.6840155405349651E-2,{"$f":"VLOOKUP(O20,'Per Income capita'!A:H,8,0)","v":37685.333333333336}]
["Kansas",1.3447711771319051E-2,1.4096955627637738E-2,6.4924385631868683E-4,1.3478516235472455E-2,1.1970090230780592E-2,-1.5084260046918634E-3,1.3172483096652286E-2,1.2486519398982652E-2,-6.8596369766963337E-4,null,-1.54514584604281E-3,null,null,"Missouri","MO",459997,429535,2.1815261658222999E-2,{"$f":"VLOOKUP(O21,'Per Income capita'!A:H,8,0)","v":37808}]
["Kentucky",1.3791464000406926E-2,1.7564730487426721E-2,3.7732664870197951E-3,1.4204965040009067E-2,1.5747022933799849E-2,1.5420578937907822E-3,1.4568454580363476E-2,1.5952121148260799E-2,1.3836665678973233E-3,null,6.6989909487079006E-3,null,null,"Maine","ME",89406,104512,4.2400608782559137E-3,{"$f":"VLOOKUP(O22,'Per Income capita'!A:H,8,0)","v":38136.333333333336}]
["Louisiana",1.3069554659941106E-2,1.4516635872814048E-2,1.4470812128729426E-3,1.2392707118053368E-2,1.418807753824876E-2,1.7953704201953916E-3,1.3571614963626244E-2,1.2901067769677435E-2,-6.7054719394880891E-4,null,2.5719044391195253E-3,null,null,"Louisiana","LA",289692,270848,1.3738582600090733E-2,{"$f":"VLOOKUP(O23,'Per Income capita'!A:H,8,0)","v":38359.333333333336}]
["Maine",4.7764950589695232E-3,4.1164255284819777E-3,-6.6006953048754549E-4,4.8271063294356596E-3,4.8398435129667393E-3,1.2737183531079735E-5,5.4557450874037974E-3,3.8927379074147018E-3,-1.5630071799890956E-3,null,-2.2103395269455614E-3,null,null,"Wisconsin","WI",303920,316137,1.4413342528684174E-2,{"$f":"VLOOKUP(O24,'Per Income capita'!A:H,8,0)","v":39374}]
["Maryland",2.3707633242175227E-2,2.4392468356035365E-2,6.8483511386013829E-4,2.3619747271380435E-2,2.2036615538562468E-2,-1.5831317328179675E-3,2.2299336171007215E-2,2.1920146753800558E-2,-3.7918941720665664E-4,null,-1.2774860361644859E-3,null,null,"Florida","FL",1574851,1315448,7.4686979779681487E-2,{"$f":"VLOOKUP(O25,'Per Income capita'!A:H,8,0)","v":39441.666666666664}]
["Massachusetts",2.1377295654648538E-2,2.0785590998021866E-2,-5.9170465662667163E-4,2.0875957578595578E-2,2.0011689585964252E-2,-8.6426799263132625E-4,2.2368922591471843E-2,2.0165494045905823E-2,-2.2034285455660198E-3,null,-3.6594011948240177E-3,null,null,"Texas","TX",1522876,1220448,7.2222076259253878E-2,{"$f":"VLOOKUP(O26,'Per Income capita'!A:H,8,0)","v":39946.666666666664}]
["Michigan",2.6427546802874409E-2,1.7224537384092992E-2,-9.2030094187814174E-3,2.6691555218696011E-2,1.991551669458352E-2,-6.7760385241124911E-3,2.4854939893314967E-2,1.8949711789170119E-2,-5.9052281041448475E-3,null,-2.1884276047038756E-2,null,null,"Iowa","IA",219714,214763,1.0419890564448916E-2,{"$f":"VLOOKUP(O27,'Per Income capita'!A:H,8,0)","v":40388}]
["Minnesota",1.5536325401376699E-2,1.3327739574023069E-2,-2.2085858273536308E-3,1.4776993383534056E-2,1.4458706909678772E-2,-3.1828647385528409E-4,1.6398916884536752E-2,1.4290957513388668E-2,-2.107959371148084E-3,null,-4.6348316723569989E-3,null,null,"Kansas","KS",267908,278288,1.2705480949508817E-2,{"$f":"VLOOKUP(O28,'Per Income capita'!A:H,8,0)","v":40421}]
["Mississippi",1.0138021413776694E-2,1.0724980569397836E-2,5.8695915562114245E-4,9.8172199851847951E-3,9.8049121449188086E-3,-1.2307840265986594E-5,9.4687034366781261E-3,1.0395532325508869E-2,9.2682888883074271E-4,null,1.5014802041858986E-3,null,null,"Delaware","DE",101446,81848,4.811055363796047E-3,{"$f":"VLOOKUP(O29,'Per Income capita'!A:H,8,0)","v":40938}]
["Missouri",2.1956098480416429E-2,2.1536566532146542E-2,-4.1953194826988699E-4,1.9807608420623589E-2,2.1386876064055725E-2,1.5792676434321362E-3,2.0190528184975416E-2,2.3044137167281088E-2,2.8536089823056714E-3,null,4.0133446774679206E-3,null,null,"Vermont","VT",67442,56608,3.1984227652655899E-3,{"$f":"VLOOKUP(O30,'Per Income capita'!A:H,8,0)","v":41434}]
["Montana",5.3194100333831167E-3,5.2838187758416626E-3,-3.5591257541454056E-5,4.4657424146494215E-3,4.8019181912168961E-3,3.3617577656747458E-4,4.7850564576410346E-3,5.3307158278697855E-3,5.4565937022875086E-4,null,8.4624388925477138E-4,null,null,"Nebraska","NE",146626,145156,6.9537074283062836E-3,{"$f":"VLOOKUP(O31,'Per Income capita'!A:H,8,0)","v":41679.333333333336}]
["Nebraska",6.4555126334876062E-3,7.6061483304215236E-3,1.1506356969339174E-3,7.5577294954243457E-3,7.4519679377898782E-3,-1.0576155763446747E-4,6.9043306939053188E-3,6.1193619264689348E-3,-7.8496876743638401E-4,null,2.5990537186306589E-4,null,null,"Pennsylvania","PA",702216,667900,3.3302447147678618E-2,{"$f":"VLOOKUP(O32,'Per Income capita'!A:H,8,0)","v":42117}]
["Nevada",1.6225016234803831E-2,1.5226681460766051E-2,-9.9833477403778008E-4,1.6593115394875589E-2,1.5791960862212871E-2,-8.0115453266271786E-4,1.3985456155251264E-2,1.7578350137086661E-2,3.5928939818353975E-3,null,1.7934046751348996E-3,null,null,"South Dakota","SD",79468,79945,3.7687533037295139E-3,{"$f":"VLOOKUP(O33,'Per Income capita'!A:H,8,0)","v":42478}]
["New Hampshire",5.6944529097261859E-3,5.8380043151433827E-3,1.4355140541719678E-4,6.1935628278035832E-3,5.2952336028082485E-3,-8.9832922499533466E-4,5.4730002567060024E-3,7.140245631578091E-3,1.6672453748720886E-3,null,9.1246755529395072E-4,null,null,"Hawaii","HI",166842,172777,{"$f":"Q34/$Q$54","v":7.9124470063527408E-3},{"$f":"VLOOKUP(O34,'Per Income capita'!A:H,8,0)","v":42633.666666666664}]
["New Jersey",2.8765447532628656E-2,1.8888428674155956E-2,-9.8770188584727005E-3,3.0965524308270754E-2,2.0063783235462151E-2,-1.0901741072808602E-2,3.1003013290016257E-2,1.8418196000336617E-2,-1.258481728967964E-2,null,-3.3363577220960942E-2,null,null,"California","CA",1411708,1705220,6.694995707582152E-2,{"$f":"VLOOKUP(O35,'Per Income capita'!A:H,8,0)","v":43506.666666666664}]
["New Mexico",7.4797993661493622E-3,1.0915393797244613E-2,3.4355944310952508E-3,8.7916620393003655E-3,8.8916990200669319E-3,1.0003698076656645E-4,9.0407186636578558E-3,7.735548972504171E-3,-1.3051696911536848E-3,null,2.2304617207081325E-3,null,null,"Illinois","IL",635409,827827,3.0134139124798242E-2,{"$f":"VLOOKUP(O36,'Per Income capita'!A:H,8,0)","v":43520.333333333336}]
["New York",5.3852390301441636E-2,3.9955190606755307E-2,-1.3897199694686328E-2,5.4068628517323143E-2,4.0388177832835485E-2,-1.3680450684487658E-2,5.7403705194018113E-2,3.819516586531492E-2,-1.9208539328703193E-2,null,-4.6786189707877179E-2,null,null,"Rhode Island","RI",92959,88309,4.4085611612396424E-3,{"$f":"VLOOKUP(O37,'Per Income capita'!A:H,8,0)","v":43622}]
["North Carolina",3.0701167052164476E-2,3.904005039722068E-2,8.3388833450562042E-3,3.2221782701931587E-2,3.7966968046556838E-2,5.7451853446252518E-3,3.3755495665345893E-2,3.8633051145311861E-2,4.8775554799659684E-3,null,1.8961624169647424E-2,null,null,"Colorado","CO",596044,463161,2.8267262220870722E-2,{"$f":"VLOOKUP(O38,'Per Income capita'!A:H,8,0)","v":43765}]
["North Dakota",3.6258593620356063E-3,4.4637368833239984E-3,8.3787752128839212E-4,3.8015483835512299E-3,4.6526498493863824E-3,8.5110146583515251E-4,3.3886606664879863E-3,5.4046867585669442E-3,2.0160260920789579E-3,null,3.7050050792025026E-3,null,null,"Washington","WA",617893,537309,2.9303446482877894E-2,{"$f":"VLOOKUP(O39,'Per Income capita'!A:H,8,0)","v":43771.666666666664}]
["Ohio",2.7881746267255644E-2,2.5600939846474144E-2,-2.2808064207814997E-3,2.9488583476352345E-2,2.7446197564307034E-2,-2.0423859120453115E-3,2.8174297010966225E-2,2.7776720937945743E-2,-3.975760730204822E-4,null,-4.7207684058472935E-3,null,null,"Minnesota","MN",292170,324014,1.3856101232579807E-2,{"$f":"VLOOKUP(O40,'Per Income capita'!A:H,8,0)","v":44438.333333333336}]
["Oklahoma",1.3438072472401575E-2,1.5795251799990775E-2,2.3571793275891997E-3,1.1593556187294416E-2,1.5582012005582607E-2,3.9884558182881908E-3,1.4507354308735995E-2,1.5412543518032005E-2,9.0518920929601003E-4,null,7.2508243551734006E-3,null,null,"Alaska","AK",105913,268201,5.0229019058980221E-3,{"$f":"VLOOKUP(O41,'Per Income capita'!A:H,8,0)","v":45397.333333333336}]
["Oregon",1.4857125569960623E-2,1.7306248979531914E-2,2.449123409571291E-3,1.5713247930279232E-2,1.8305193221643021E-2,2.591945291363789E-3,1.5300809225009529E-2,1.6820254174301254E-2,1.5194449492917251E-3,null,6.5605136502268051E-3,null,null,"New Hampshire","NH",126982,120372,6.0220948308020985E-3,{"$f":"VLOOKUP(O42,'Per Income capita'!A:H,8,0)","v":45635.666666666664}]
["Pennsylvania",3.1114173936551762E-2,3.4935785215065365E-2,3.8216112785136036E-3,3.0787776196522433E-2,3.353042097393371E-2,2.7426447774112767E-3,3.3542351893719471E-2,3.0479417906764096E-2,-3.0629339869553754E-3,null,3.5013220689695049E-3,null,null,"Virginia","VA",770334,701922,3.653292907176689E-2,{"$f":"VLOOKUP(O43,'Per Income capita'!A:H,8,0)","v":45774.333333333336}]
["Rhode Island",3.6997112214341228E-3,4.7542505230061148E-3,1.0545393015719919E-3,4.445849510033466E-3,3.8310299544209192E-3,-6.1481955561254681E-4,4.3135094539233938E-3,4.7304622334553691E-3,4.1695277953197538E-4,null,8.5667252549142051E-4,null,null,"North Dakota","ND",100899,74972,4.7851140030327208E-3,{"$f":"VLOOKUP(O44,'Per Income capita'!A:H,8,0)","v":47197}]
["South Carolina",1.743511899121326E-2,2.2606528711986498E-2,5.171409720773238E-3,1.737781176904309E-2,2.2561129894083879E-2,5.1833181250407895E-3,1.802146854219985E-2,2.2163699225426766E-2,4.1422306832269162E-3,null,1.4496958529040944E-2,null,null,"Wyoming","WY",89862,92405,4.2616865830238789E-3,{"$f":"VLOOKUP(O45,'Per Income capita'!A:H,8,0)","v":47307}]
["South Dakota",4.1397081427903453E-3,3.8226493568585614E-3,-3.170587859317839E-4,4.2051310527382365E-3,3.9365052832119911E-3,-2.6862576952624544E-4,3.1871146316056714E-3,3.6845443892766193E-3,4.9742975767094787E-4,null,-8.8254797787081472E-5,null,null,"Maryland","MD",475131,482808,2.2532988447605422E-2,{"$f":"VLOOKUP(O46,'Per Income capita'!A:H,8,0)","v":50416}]
["Tennessee",2.1226477700816627E-2,2.3694583114410025E-2,2.4681054135933973E-3,2.2074397745890612E-2,2.4468129563203336E-2,2.3937318173127241E-3,2.3173268065419722E-2,2.504799977936013E-2,1.8747317139404078E-3,null,6.7365689448465292E-3,null,null,"New York","NY",846332,1156500,4.0137118350178774E-2,{"$f":"VLOOKUP(O47,'Per Income capita'!A:H,8,0)","v":50780}]
["Texas",6.1045086856756609E-2,7.2155046195227834E-2,1.1109959338471226E-2,5.7938299365602394E-2,7.3664713822677794E-2,1.5726414457075399E-2,5.6883645706114767E-2,7.1814317406010603E-2,1.4930671699895835E-2,null,4.1767045495442461E-2,null,null,"New Jersey","NJ",407404,634859,1.9321049616859855E-2,{"$f":"VLOOKUP(O48,'Per Income capita'!A:H,8,0)","v":52162}]
["Utah",1.1202496608079008E-2,1.1534533381559487E-2,3.3203677348047841E-4,1.0477549926897154E-2,1.2195781673797581E-2,1.7182317469004275E-3,1.1621073653407294E-2,1.2427964972006317E-2,8.0689131859902272E-4,null,2.8571598389799287E-3,null,null,"Massachusetts","MA",434123,453851,2.0588192611805604E-2,{"$f":"VLOOKUP(O49,'Per Income capita'!A:H,8,0)","v":53100.333333333336}]
["Vermont",2.7256971400496707E-3,3.3409810047975532E-3,6.1528386474788256E-4,2.6006752710873377E-3,2.9285504111963563E-3,3.2787514010901861E-4,2.8366366846313724E-3,3.455418370673567E-3,6.1878168604219451E-4,null,1.5619406908990957E-3,null,null,"Connecticut","CT",236506,270796,1.1216247657571003E-2,{"$f":"VLOOKUP(O50,'Per Income capita'!A:H,8,0)","v":57412.333333333336}]
["Virginia",3.4405178883884856E-2,3.8484085295041888E-2,4.0789064111570322E-3,3.2805689542457467E-2,3.6799011251083376E-2,3.993321708625909E-3,3.3738099060229731E-2,3.5451311074636387E-2,1.7132120144066551E-3,null,9.7854401341895964E-3,null,null,"District of Columbia","DC",153140,165509,7.2626325179083124E-3,{"$f":"VLOOKUP(O51,'Per Income capita'!A:H,8,0)","v":73237.666666666672}]
["Washington",2.4641310565012696E-2,2.8440973901375736E-2,3.7996633363630399E-3,2.7283905810102045E-2,2.9840358724884851E-2,2.5564529147828058E-3,2.5523789857496346E-2,3.0478569291880381E-2,4.9547794343840351E-3,null,1.1310895685529881E-2,null,null,"Puerto Rico","PR",74425,210603,3.5295900819206356E-3,{"$f":"VLOOKUP(O52,'Per Income capita'!A:H,8,0)","v":42561.666666666664}]
["West Virginia",7.3183040350550156E-3,5.8738921664976823E-3,-1.4444118685573333E-3,6.5769663635312399E-3,7.1654528655514431E-3,5.8848650202020323E-4,6.7075934766973886E-3,6.6651627325116387E-3,-4.2430744185749901E-5,null,-8.9835611072287998E-4,null,null,"North Carolina","NC",806515,671819,3.8248805440647925E-2,{"$f":"VLOOKUP(O53,'Per Income capita'!A:H,8,0)","v":35893.666666666664}]
["Wisconsin",1.649654787046384E-2,1.3801251596230827E-2,-2.6952962742330128E-3,1.5079966614267706E-2,1.5662299196154916E-2,5.8233258188720993E-4,1.3821673482694268E-2,1.4029301257576539E-2,2.0762777488227135E-4,null,-1.9053359174635316E-3,null,null,null,null,{"$f":"SUM(Q2:Q53)","v":21086018},{"$f":"SUM(R2:R53)","v":21086018},{"$f":"Q54/$Q$54","v":1}]
["Wyoming",4.1798966044309036E-3,4.159135037531723E-3,-2.0761566899180593E-5,4.5783734645253697E-3,4.3866001394506924E-3,-1.9177332507467736E-4,4.5581934120612223E-3,4.4055841688064729E-3,-1.5260924325474941E-4,null,-3.6514413522860736E-4]
[]
[]
[]
[]
[1,"Incomers vs Leavers %"]
[null,"Trend 3 yrs"]
[2,"3 yrs data - showing states with highest leavers and newcomers"]
[3,"Population % movement by State"]
[4,"Moved residence within State %"]
[5,"State to State movement comparison"]
[4,"Job/Weather/Area/GDP/Crime Rate"]

{"sheet":"ParetoPivot","index":9,"n_rows":2705,"n_cols":20,"rows_kept":2705,"cut":false,"hidden":true,"merged":[]}
["State","M from","Code","Total","Total 2",null,"State","M to","Code","Total","Total 2"]
["Alabama","Alabama",{"$f":"VLOOKUP(B2,'Info Sheet'!O:P,2,0)","v":"AL"},0,0,null,"Alabama","Alabama",{"$f":"VLOOKUP(H2,'Info Sheet'!O:P,2,0)","v":"AL"},0,0,null,"Row Labels","Sum of Total","Sum of Total 2",null,null,"Row Labels","Sum of Total","Sum of Total 2"]
["Alabama","Alaska",{"$f":"VLOOKUP(B3,'Info Sheet'!O:P,2,0)","v":"AK"},5788,5788,null,"Alabama","Alaska",{"$f":"VLOOKUP(H3,'Info Sheet'!O:P,2,0)","v":"AK"},1667,1667,null,"Alaska",105913,null,null,null,"Alaska",268201]
["Alabama","Arizona",{"$f":"VLOOKUP(B4,'Info Sheet'!O:P,2,0)","v":"AZ"},3315,3315,null,"Alabama","Arizona",{"$f":"VLOOKUP(H4,'Info Sheet'!O:P,2,0)","v":"AZ"},2580,2580,null,"WA",10694,0.10096966378065016,null,null,"TX",25042,9.3370270804359418E-2]
["Alabama","Arkansas",{"$f":"VLOOKUP(B5,'Info Sheet'!O:P,2,0)","v":"AR"},3783,3783,null,"Alabama","Arkansas",{"$f":"VLOOKUP(H5,'Info Sheet'!O:P,2,0)","v":"AR"},2470,2470,null,"CA",10498,0.20008875208897869,null,null,"FL",23996,0.18284048157911417]
["Alabama","California",{"$f":"VLOOKUP(B6,'Info Sheet'!O:P,2,0)","v":"CA"},10293,10293,null,"Alabama","California",{"$f":"VLOOKUP(H6,'Info Sheet'!O:P,2,0)","v":"CA"},7960,7960,null,"TX",8103,0.2765949411309282,null,null,"CA",23932,0.27207206535396961]
["Alabama","Colorado",{"$f":"VLOOKUP(B7,'Info Sheet'!O:P,2,0)","v":"CO"},3012,3012,null,"Alabama","Colorado",{"$f":"VLOOKUP(H7,'Info Sheet'!O:P,2,0)","v":"CO"},6402,6402,null,"OR",7128,0.34389546136923699,null,null,"WA",15238,0.32888766261125052]
["Alabama","Connecticut",{"$f":"VLOOKUP(B8,'Info Sheet'!O:P,2,0)","v":"CT"},3659,3659,null,"Alabama","Connecticut",{"$f":"VLOOKUP(H8,'Info Sheet'!O:P,2,0)","v":"CT"},1043,1043,null,"FL",5494,0.39576822486380331,null,null,"NY",15196,0.38554666089984752]
["Alabama","Delaware",{"$f":"VLOOKUP(B9,'Info Sheet'!O:P,2,0)","v":"DE"},1085,1085,null,"Alabama","Delaware",{"$f":"VLOOKUP(H9,'Info Sheet'!O:P,2,0)","v":"DE"},328,328,null,"AZ",5341,0.44619640648456754,null,null,"AZ",11827,0.42964418477186889]
["Alabama","District of Columbia",{"$f":"VLOOKUP(B10,'Info Sheet'!O:P,2,0)","v":"DC"},772,772,null,"Alabama","District of Columbia",{"$f":"VLOOKUP(H10,'Info Sheet'!O:P,2,0)","v":"DC"},452,452,null,"HI",4447,0.48818369794076272,null,null,"ID",8972,0.4630967073202561]
["Alabama","Florida",{"$f":"VLOOKUP(B11,'Info Sheet'!O:P,2,0)","v":"FL"},46369,46369,null,"Alabama","Florida",{"$f":"VLOOKUP(H11,'Info Sheet'!O:P,2,0)","v":"FL"},47064,47064,null,"CO",4069,0.52660202241462328,null,null,"CO",8873,0.496180103728174]
["Alabama","Georgia",{"$f":"VLOOKUP(B12,'Info Sheet'!O:P,2,0)","v":"GA"},60910,60910,null,"Alabama","Georgia",{"$f":"VLOOKUP(H12,'Info Sheet'!O:P,2,0)","v":"GA"},46503,46503,null,"VA",3467,0.55933643650921039,null,null,"VA",8404,0.52751481165245473]
["Alabama","Hawaii",{"$f":"VLOOKUP(B13,'Info Sheet'!O:P,2,0)","v":"HI"},2153,2153,null,"Alabama","Hawaii",{"$f":"VLOOKUP(H13,'Info Sheet'!O:P,2,0)","v":"HI"},2625,2625,null,"GA",2735,0.58515951771737185,null,null,"IL",8133,0.55783908337403665]
["Alabama","Idaho",{"$f":"VLOOKUP(B14,'Info Sheet'!O:P,2,0)","v":"ID"},934,934,null,"Alabama","Idaho",{"$f":"VLOOKUP(H14,'Info Sheet'!O:P,2,0)","v":"ID"},1214,1214,null,"OK",2406,0.60787627581127912,null,null,"GA",7378,0.58534830220618117]
["Alabama","Illinois",{"$f":"VLOOKUP(B15,'Info Sheet'!O:P,2,0)","v":"IL"},12216,12216,null,"Alabama","Illinois",{"$f":"VLOOKUP(H15,'Info Sheet'!O:P,2,0)","v":"IL"},5103,5103,null,"UT",2266,0.62927119428209943,null,null,"NC",7067,0.61169794296068991]
["Alabama","Indiana",{"$f":"VLOOKUP(B16,'Info Sheet'!O:P,2,0)","v":"IN"},6726,6726,null,"Alabama","Indiana",{"$f":"VLOOKUP(H16,'Info Sheet'!O:P,2,0)","v":"IN"},4689,4689,null,"MI",2257,0.65058113734857859,null,null,"UT",6768,0.63693274820004397]
["Alabama","Iowa",{"$f":"VLOOKUP(B17,'Info Sheet'!O:P,2,0)","v":"IA"},1044,1044,null,"Alabama","Iowa",{"$f":"VLOOKUP(H17,'Info Sheet'!O:P,2,0)","v":"IA"},1040,1040,null,"NC",2088,0.67029543115575996,null,null,"OR",6475,0.66107508920548397]
["Alabama","Kansas",{"$f":"VLOOKUP(B18,'Info Sheet'!O:P,2,0)","v":"KS"},2356,2356,null,"Alabama","Kansas",{"$f":"VLOOKUP(H18,'Info Sheet'!O:P,2,0)","v":"KS"},1331,1331,null,"NY",1931,0.68852737624276528,null,null,"AL",5788,0.68265591850887952]
["Alabama","Kentucky",{"$f":"VLOOKUP(B19,'Info Sheet'!O:P,2,0)","v":"KY"},7148,7148,null,"Alabama","Kentucky",{"$f":"VLOOKUP(H19,'Info Sheet'!O:P,2,0)","v":"KY"},7223,7223,null,"ID",1908,0.7065421619631207,null,null,"MI",5648,0.70371475124999538]
["Alabama","Louisiana",{"$f":"VLOOKUP(B20,'Info Sheet'!O:P,2,0)","v":"LA"},7418,7418,null,"Alabama","Louisiana",{"$f":"VLOOKUP(H20,'Info Sheet'!O:P,2,0)","v":"LA"},11134,11134,null,"KY",1838,0.72389602787193263,null,null,"OH",5400,0.72384890436650129]
["Alabama","Maine",{"$f":"VLOOKUP(B21,'Info Sheet'!O:P,2,0)","v":"ME"},790,790,null,"Alabama","Maine",{"$f":"VLOOKUP(H21,'Info Sheet'!O:P,2,0)","v":"ME"},1165,1165,null,"OH",1791,0.7408061333358511,null,null,"SC",5335,0.74374070193623443]
["Alabama","Maryland",{"$f":"VLOOKUP(B22,'Info Sheet'!O:P,2,0)","v":"MD"},3835,3835,null,"Alabama","Maryland",{"$f":"VLOOKUP(H22,'Info Sheet'!O:P,2,0)","v":"MD"},3130,3130,null,"MO",1740,0.7572347115085023,null,null,"MD",5290,0.76346471489666334]
["Alabama","Massachusetts",{"$f":"VLOOKUP(B23,'Info Sheet'!O:P,2,0)","v":"MA"},881,881,null,"Alabama","Massachusetts",{"$f":"VLOOKUP(H23,'Info Sheet'!O:P,2,0)","v":"MA"},2420,2420,null,"AL",1667,0.77297404473482956,null,null,"MO",5280,0.78315144238835799]
["Alabama","Michigan",{"$f":"VLOOKUP(B24,'Info Sheet'!O:P,2,0)","v":"MI"},7429,7429,null,"Alabama","Michigan",{"$f":"VLOOKUP(H24,'Info Sheet'!O:P,2,0)","v":"MI"},8271,8271,null,"NV",1575,0.78784474049455688,null,null,"PA",4602,0.8003102150998691]
["Alabama","Minnesota",{"$f":"VLOOKUP(B25,'Info Sheet'!O:P,2,0)","v":"MN"},1465,1465,null,"Alabama","Minnesota",{"$f":"VLOOKUP(H25,'Info Sheet'!O:P,2,0)","v":"MN"},1688,1688,null,"IL",1431,0.80135582978482345,null,null,"OK",3813,0.81452716432824634]
["Alabama","Mississippi",{"$f":"VLOOKUP(B26,'Info Sheet'!O:P,2,0)","v":"MS"},16130,16130,null,"Alabama","Mississippi",{"$f":"VLOOKUP(H26,'Info Sheet'!O:P,2,0)","v":"MS"},22369,22369,null,"MD",1428,0.81483859394030955,null,null,"KY",3321,0.82690966849489744]
["Alabama","Missouri",{"$f":"VLOOKUP(B27,'Info Sheet'!O:P,2,0)","v":"MO"},4014,4014,null,"Alabama","Missouri",{"$f":"VLOOKUP(H27,'Info Sheet'!O:P,2,0)","v":"MO"},3547,3547,null,"NE",1415,0.82819861584508037,null,null,"NV",3269,0.83909828822413046]
["Alabama","Montana",{"$f":"VLOOKUP(B28,'Info Sheet'!O:P,2,0)","v":"MT"},647,647,null,"Alabama","Montana",{"$f":"VLOOKUP(H28,'Info Sheet'!O:P,2,0)","v":"MT"},692,692,null,"TN",1316,0.84062390830209699,null,null,"MA",3006,0.850306300125652]
["Alabama","Nebraska",{"$f":"VLOOKUP(B29,'Info Sheet'!O:P,2,0)","v":"NE"},1090,1090,null,"Alabama","Nebraska",{"$f":"VLOOKUP(H29,'Info Sheet'!O:P,2,0)","v":"NE"},646,646,null,"MN",1315,0.85303975904752016,null,null,"HI",3004,0.86150685493342682]
["Alabama","Nevada",{"$f":"VLOOKUP(B30,'Info Sheet'!O:P,2,0)","v":"NV"},1531,1531,null,"Alabama","Nevada",{"$f":"VLOOKUP(H30,'Info Sheet'!O:P,2,0)","v":"NV"},1191,1191,null,"LA",1297,0.86528565898426069,null,null,"MN",2585,0.8711451486012356]
["Alabama","New Hampshire",{"$f":"VLOOKUP(B31,'Info Sheet'!O:P,2,0)","v":"NH"},225,225,null,"Alabama","New Hampshire",{"$f":"VLOOKUP(H31,'Info Sheet'!O:P,2,0)","v":"NH"},345,345,null,"MT",1235,0.87694617280220555,null,null,"MT",2494,0.88044414450356268]
["Alabama","New Jersey",{"$f":"VLOOKUP(B32,'Info Sheet'!O:P,2,0)","v":"NJ"},4054,4054,null,"Alabama","New Jersey",{"$f":"VLOOKUP(H32,'Info Sheet'!O:P,2,0)","v":"NJ"},1584,1584,null,"PR",1088,0.8872187550159093,null,null,"IA",2437,0.88953061323410432]
["Alabama","New Mexico",{"$f":"VLOOKUP(B33,'Info Sheet'!O:P,2,0)","v":"NM"},1228,1228,null,"Alabama","New Mexico",{"$f":"VLOOKUP(H33,'Info Sheet'!O:P,2,0)","v":"NM"},1948,1948,null,"KS",1077,0.89738747840208477,null,null,"AR",2349,0.89828896983978435]
["Alabama","New York",{"$f":"VLOOKUP(B34,'Info Sheet'!O:P,2,0)","v":"NY"},7503,7503,null,"Alabama","New York",{"$f":"VLOOKUP(H34,'Info Sheet'!O:P,2,0)","v":"NY"},4486,4486,null,"NH",954,0.90639487126226237,null,null,"WV",2230,0.90660362936752659]
["Alabama","North Carolina",{"$f":"VLOOKUP(B35,'Info Sheet'!O:P,2,0)","v":"NC"},10201,10201,null,"Alabama","North Carolina",{"$f":"VLOOKUP(H35,'Info Sheet'!O:P,2,0)","v":"NC"},12793,12793,null,"SD",931,0.91518510475579018,null,null,"LA",2195,0.91478778975469888]
["Alabama","North Dakota",{"$f":"VLOOKUP(B36,'Info Sheet'!O:P,2,0)","v":"ND"},681,681,null,"Alabama","North Dakota",{"$f":"VLOOKUP(H36,'Info Sheet'!O:P,2,0)","v":"ND"},289,289,null,"NM",910,0.92377706230585477,null,null,"TN",2155,0.92282280826693408]
["Alabama","Ohio",{"$f":"VLOOKUP(B37,'Info Sheet'!O:P,2,0)","v":"OH"},6229,6229,null,"Alabama","Ohio",{"$f":"VLOOKUP(H37,'Info Sheet'!O:P,2,0)","v":"OH"},6561,6561,null,"MS",873,0.93201967652696083,null,null,"DC",1973,0.93017923124820567]
["Alabama","Oklahoma",{"$f":"VLOOKUP(B38,'Info Sheet'!O:P,2,0)","v":"OK"},2047,2047,null,"Alabama","Oklahoma",{"$f":"VLOOKUP(H38,'Info Sheet'!O:P,2,0)","v":"OK"},3233,3233,null,"PA",759,0.9391859356264104,null,null,"NJ",1940,0.93741261218265404]
["Alabama","Oregon",{"$f":"VLOOKUP(B39,'Info Sheet'!O:P,2,0)","v":"OR"},854,854,null,"Alabama","Oregon",{"$f":"VLOOKUP(H39,'Info Sheet'!O:P,2,0)","v":"OR"},1531,1531,null,"SC",691,0.94571015833750338,null,null,"NM",1705,0.94376978460184713]
["Alabama","Pennsylvania",{"$f":"VLOOKUP(B40,'Info Sheet'!O:P,2,0)","v":"PA"},4389,4389,null,"Alabama","Pennsylvania",{"$f":"VLOOKUP(H40,'Info Sheet'!O:P,2,0)","v":"PA"},3627,3627,null,"NJ",657,0.9519133628544183,null,null,"ND",1529,0.94947073277131699]
["Alabama","Rhode Island",{"$f":"VLOOKUP(B41,'Info Sheet'!O:P,2,0)","v":"RI"},0,0,null,"Alabama","Rhode Island",{"$f":"VLOOKUP(H41,'Info Sheet'!O:P,2,0)","v":"RI"},156,156,null,"ME",640,0.9579560582742439,null,null,"KS",1491,0.95502999615959672]
["Alabama","South Carolina",{"$f":"VLOOKUP(B42,'Info Sheet'!O:P,2,0)","v":"SC"},7215,7215,null,"Alabama","South Carolina",{"$f":"VLOOKUP(H42,'Info Sheet'!O:P,2,0)","v":"SC"},6405,6405,null,"IA",594,0.96356443496076971,null,null,"WI",1466,0.96049604587604076]
["Alabama","South Dakota",{"$f":"VLOOKUP(B43,'Info Sheet'!O:P,2,0)","v":"SD"},639,639,null,"Alabama","South Dakota",{"$f":"VLOOKUP(H43,'Info Sheet'!O:P,2,0)","v":"SD"},325,325,null,"MA",545,0.96871016777921504,null,null,"SD",1434,0.96584278209253505]
["Alabama","Tennessee",{"$f":"VLOOKUP(B44,'Info Sheet'!O:P,2,0)","v":"TN"},26658,26658,null,"Alabama","Tennessee",{"$f":"VLOOKUP(H44,'Info Sheet'!O:P,2,0)","v":"TN"},30339,30339,null,"DC",510,0.97352544069188862,null,null,"NE",1382,0.97099563387161125]
["Alabama","Texas",{"$f":"VLOOKUP(B45,'Info Sheet'!O:P,2,0)","v":"TX"},21941,21941,null,"Alabama","Texas",{"$f":"VLOOKUP(H45,'Info Sheet'!O:P,2,0)","v":"TX"},27376,27376,null,"VT",500,0.97824629648862749,null,null,"WY",1351,0.97603290069761117]
["Alabama","Utah",{"$f":"VLOOKUP(B46,'Info Sheet'!O:P,2,0)","v":"UT"},2215,2215,null,"Alabama","Utah",{"$f":"VLOOKUP(H46,'Info Sheet'!O:P,2,0)","v":"UT"},705,705,null,"WY",463,0.9826178089564076,null,null,"MS",1309,0.98091356855492706]
["Alabama","Vermont",{"$f":"VLOOKUP(B47,'Info Sheet'!O:P,2,0)","v":"VT"},66,66,null,"Alabama","Vermont",{"$f":"VLOOKUP(H47,'Info Sheet'!O:P,2,0)","v":"VT"},16,16,null,"IN",450,0.98686657917347254,null,null,"DE",1089,0.98497395610008909]
["Alabama","Virginia",{"$f":"VLOOKUP(B48,'Info Sheet'!O:P,2,0)","v":"VA"},10595,10595,null,"Alabama","Virginia",{"$f":"VLOOKUP(H48,'Info Sheet'!O:P,2,0)","v":"VA"},10116,10116,null,"AR",433,0.99095484029344838,null,null,"IN",1027,0.98880317373909865]
["Alabama","Washington",{"$f":"VLOOKUP(B49,'Info Sheet'!O:P,2,0)","v":"WA"},4826,4826,null,"Alabama","Washington",{"$f":"VLOOKUP(H49,'Info Sheet'!O:P,2,0)","v":"WA"},4650,4650,null,"WI",387,0.9946087826801242,null,null,"VT",857,0.9919985384096256]
["Alabama","West Virginia",{"$f":"VLOOKUP(B50,'Info Sheet'!O:P,2,0)","v":"WV"},234,234,null,"Alabama","West Virginia",{"$f":"VLOOKUP(H50,'Info Sheet'!O:P,2,0)","v":"WV"},739,739,null,"ND",333,0.9977528726407523,null,null,"CT",619,0.99430650892427697]
["Alabama","Wisconsin",{"$f":"VLOOKUP(B51,'Info Sheet'!O:P,2,0)","v":"WI"},2332,2332,null,"Alabama","Wisconsin",{"$f":"VLOOKUP(H51,'Info Sheet'!O:P,2,0)","v":"WI"},1583,1583,null,"CT",138,0.99905582884065225,null,null,"PR",591,0.99651008012647235]
["Alabama","Wyoming",{"$f":"VLOOKUP(B52,'Info Sheet'!O:P,2,0)","v":"WY"},124,124,null,"Alabama","Wyoming",{"$f":"VLOOKUP(H52,'Info Sheet'!O:P,2,0)","v":"WY"},483,483,null,"WV",89,0.99989614117247172,null,null,"ME",499,0.99837062501631235]
["Alabama","Puerto Rico",{"$f":"VLOOKUP(B53,'Info Sheet'!O:P,2,0)","v":"PR"},1416,1416,null,"Alabama","Puerto Rico",{"$f":"VLOOKUP(H53,'Info Sheet'!O:P,2,0)","v":"PR"},672,672,null,"DE",11,1,null,null,"NH",437,1]
["Alaska","Alabama",{"$f":"VLOOKUP(B54,'Info Sheet'!O:P,2,0)","v":"AL"},1667,1667,null,"Alaska","Alabama",{"$f":"VLOOKUP(H54,'Info Sheet'!O:P,2,0)","v":"AL"},5788,5788,null,"RI",0,1,null,null,"AK",0,1]
["Alaska","Alaska",{"$f":"VLOOKUP(B55,'Info Sheet'!O:P,2,0)","v":"AK"},0,0,null,"Alaska","Alaska",{"$f":"VLOOKUP(H55,'Info Sheet'!O:P,2,0)","v":"AK"},0,0,null,"AK",0,1,null,null,"RI",0,1]
["Alaska","Arizona",{"$f":"VLOOKUP(B56,'Info Sheet'!O:P,2,0)","v":"AZ"},5341,5341,null,"Alaska","Arizona",{"$f":"VLOOKUP(H56,'Info Sheet'!O:P,2,0)","v":"AZ"},11827,11827,null,"Grand Total",105913,null,null,null,"Grand Total",268201]
["Alaska","Arkansas",{"$f":"VLOOKUP(B57,'Info Sheet'!O:P,2,0)","v":"AR"},433,433,null,"Alaska","Arkansas",{"$f":"VLOOKUP(H57,'Info Sheet'!O:P,2,0)","v":"AR"},2349,2349]
["Alaska","California",{"$f":"VLOOKUP(B58,'Info Sheet'!O:P,2,0)","v":"CA"},10498,10498,null,"Alaska","California",{"$f":"VLOOKUP(H58,'Info Sheet'!O:P,2,0)","v":"CA"},23932,23932]
["Alaska","Colorado",{"$f":"VLOOKUP(B59,'Info Sheet'!O:P,2,0)","v":"CO"},4069,4069,null,"Alaska","Colorado",{"$f":"VLOOKUP(H59,'Info Sheet'!O:P,2,0)","v":"CO"},8873,8873]
["Alaska","Connecticut",{"$f":"VLOOKUP(B60,'Info Sheet'!O:P,2,0)","v":"CT"},138,138,null,"Alaska","Connecticut",{"$f":"VLOOKUP(H60,'Info Sheet'!O:P,2,0)","v":"CT"},619,619]
["Alaska","Delaware",{"$f":"VLOOKUP(B61,'Info Sheet'!O:P,2,0)","v":"DE"},11,11,null,"Alaska","Delaware",{"$f":"VLOOKUP(H61,'Info Sheet'!O:P,2,0)","v":"DE"},1089,1089]
["Alaska","District of Columbia",{"$f":"VLOOKUP(B62,'Info Sheet'!O:P,2,0)","v":"DC"},510,510,null,"Alaska","District of Columbia",{"$f":"VLOOKUP(H62,'Info Sheet'!O:P,2,0)","v":"DC"},1973,1973]
["Alaska","Florida",{"$f":"VLOOKUP(B63,'Info Sheet'!O:P,2,0)","v":"FL"},5494,5494,null,"Alaska","Florida",{"$f":"VLOOKUP(H63,'Info Sheet'!O:P,2,0)","v":"FL"},23996,23996]
["Alaska","Georgia",{"$f":"VLOOKUP(B64,'Info Sheet'!O:P,2,0)","v":"GA"},2735,2735,null,"Alaska","Georgia",{"$f":"VLOOKUP(H64,'Info Sheet'!O:P,2,0)","v":"GA"},7378,7378]
["Alaska","Hawaii",{"$f":"VLOOKUP(B65,'Info Sheet'!O:P,2,0)","v":"HI"},4447,4447,null,"Alaska","Hawaii",{"$f":"VLOOKUP(H65,'Info Sheet'!O:P,2,0)","v":"HI"},3004,3004]
["Alaska","Idaho",{"$f":"VLOOKUP(B66,'Info Sheet'!O:P,2,0)","v":"ID"},1908,1908,null,"Alaska","Idaho",{"$f":"VLOOKUP(H66,'Info Sheet'!O:P,2,0)","v":"ID"},8972,8972]
["Alaska","Illinois",{"$f":"VLOOKUP(B67,'Info Sheet'!O:P,2,0)","v":"IL"},1431,1431,null,"Alaska","Illinois",{"$f":"VLOOKUP(H67,'Info Sheet'!O:P,2,0)","v":"IL"},8133,8133]
["Alaska","Indiana",{"$f":"VLOOKUP(B68,'Info Sheet'!O:P,2,0)","v":"IN"},450,450,null,"Alaska","Indiana",{"$f":"VLOOKUP(H68,'Info Sheet'!O:P,2,0)","v":"IN"},1027,1027]
["Alaska","Iowa",{"$f":"VLOOKUP(B69,'Info Sheet'!O:P,2,0)","v":"IA"},594,594,null,"Alaska","Iowa",{"$f":"VLOOKUP(H69,'Info Sheet'!O:P,2,0)","v":"IA"},2437,2437]
["Alaska","Kansas",{"$f":"VLOOKUP(B70,'Info Sheet'!O:P,2,0)","v":"KS"},1077,1077,null,"Alaska","Kansas",{"$f":"VLOOKUP(H70,'Info Sheet'!O:P,2,0)","v":"KS"},1491,1491]
["Alaska","Kentucky",{"$f":"VLOOKUP(B71,'Info Sheet'!O:P,2,0)","v":"KY"},1838,1838,null,"Alaska","Kentucky",{"$f":"VLOOKUP(H71,'Info Sheet'!O:P,2,0)","v":"KY"},3321,3321]
["Alaska","Louisiana",{"$f":"VLOOKUP(B72,'Info Sheet'!O:P,2,0)","v":"LA"},1297,1297,null,"Alaska","Louisiana",{"$f":"VLOOKUP(H72,'Info Sheet'!O:P,2,0)","v":"LA"},2195,2195]
["Alaska","Maine",{"$f":"VLOOKUP(B73,'Info Sheet'!O:P,2,0)","v":"ME"},640,640,null,"Alaska","Maine",{"$f":"VLOOKUP(H73,'Info Sheet'!O:P,2,0)","v":"ME"},499,499]
["Alaska","Maryland",{"$f":"VLOOKUP(B74,'Info Sheet'!O:P,2,0)","v":"MD"},1428,1428,null,"Alaska","Maryland",{"$f":"VLOOKUP(H74,'Info Sheet'!O:P,2,0)","v":"MD"},5290,5290]
["Alaska","Massachusetts",{"$f":"VLOOKUP(B75,'Info Sheet'!O:P,2,0)","v":"MA"},545,545,null,"Alaska","Massachusetts",{"$f":"VLOOKUP(H75,'Info Sheet'!O:P,2,0)","v":"MA"},3006,3006]
["Alaska","Michigan",{"$f":"VLOOKUP(B76,'Info Sheet'!O:P,2,0)","v":"MI"},2257,2257,null,"Alaska","Michigan",{"$f":"VLOOKUP(H76,'Info Sheet'!O:P,2,0)","v":"MI"},5648,5648]
["Alaska","Minnesota",{"$f":"VLOOKUP(B77,'Info Sheet'!O:P,2,0)","v":"MN"},1315,1315,null,"Alaska","Minnesota",{"$f":"VLOOKUP(H77,'Info Sheet'!O:P,2,0)","v":"MN"},2585,2585]
["Alaska","Mississippi",{"$f":"VLOOKUP(B78,'Info Sheet'!O:P,2,0)","v":"MS"},873,873,null,"Alaska","Mississippi",{"$f":"VLOOKUP(H78,'Info Sheet'!O:P,2,0)","v":"MS"},1309,1309]
["Alaska","Missouri",{"$f":"VLOOKUP(B79,'Info Sheet'!O:P,2,0)","v":"MO"},1740,1740,null,"Alaska","Missouri",{"$f":"VLOOKUP(H79,'Info Sheet'!O:P,2,0)","v":"MO"},5280,5280]
["Alaska","Montana",{"$f":"VLOOKUP(B80,'Info Sheet'!O:P,2,0)","v":"MT"},1235,1235,null,"Alaska","Montana",{"$f":"VLOOKUP(H80,'Info Sheet'!O:P,2,0)","v":"MT"},2494,2494]
["Alaska","Nebraska",{"$f":"VLOOKUP(B81,'Info Sheet'!O:P,2,0)","v":"NE"},1415,1415,null,"Alaska","Nebraska",{"$f":"VLOOKUP(H81,'Info Sheet'!O:P,2,0)","v":"NE"},1382,1382]
["Alaska","Nevada",{"$f":"VLOOKUP(B82,'Info Sheet'!O:P,2,0)","v":"NV"},1575,1575,null,"Alaska","Nevada",{"$f":"VLOOKUP(H82,'Info Sheet'!O:P,2,0)","v":"NV"},3269,3269]
["Alaska","New Hampshire",{"$f":"VLOOKUP(B83,'Info Sheet'!O:P,2,0)","v":"NH"},954,954,null,"Alaska","New Hampshire",{"$f":"VLOOKUP(H83,'Info Sheet'!O:P,2,0)","v":"NH"},437,437]
["Alaska","New Jersey",{"$f":"VLOOKUP(B84,'Info Sheet'!O:P,2,0)","v":"NJ"},657,657,null,"Alaska","New Jersey",{"$f":"VLOOKUP(H84,'Info Sheet'!O:P,2,0)","v":"NJ"},1940,1940]
["Alaska","New Mexico",{"$f":"VLOOKUP(B85,'Info Sheet'!O:P,2,0)","v":"NM"},910,910,null,"Alaska","New Mexico",{"$f":"VLOOKUP(H85,'Info Sheet'!O:P,2,0)","v":"NM"},1705,1705]
["Alaska","New York",{"$f":"VLOOKUP(B86,'Info Sheet'!O:P,2,0)","v":"NY"},1931,1931,null,"Alaska","New York",{"$f":"VLOOKUP(H86,'Info Sheet'!O:P,2,0)","v":"NY"},15196,15196]
["Alaska","North Carolina",{"$f":"VLOOKUP(B87,'Info Sheet'!O:P,2,0)","v":"NC"},2088,2088,null,"Alaska","North Carolina",{"$f":"VLOOKUP(H87,'Info Sheet'!O:P,2,0)","v":"NC"},7067,7067]
["Alaska","North Dakota",{"$f":"VLOOKUP(B88,'Info Sheet'!O:P,2,0)","v":"ND"},333,333,null,"Alaska","North Dakota",{"$f":"VLOOKUP(H88,'Info Sheet'!O:P,2,0)","v":"ND"},1529,1529]
["Alaska","Ohio",{"$f":"VLOOKUP(B89,'Info Sheet'!O:P,2,0)","v":"OH"},1791,1791,null,"Alaska","Ohio",{"$f":"VLOOKUP(H89,'Info Sheet'!O:P,2,0)","v":"OH"},5400,5400]
["Alaska","Oklahoma",{"$f":"VLOOKUP(B90,'Info Sheet'!O:P,2,0)","v":"OK"},2406,2406,null,"Alaska","Oklahoma",{"$f":"VLOOKUP(H90,'Info Sheet'!O:P,2,0)","v":"OK"},3813,3813]
["Alaska","Oregon",{"$f":"VLOOKUP(B91,'Info Sheet'!O:P,2,0)","v":"OR"},7128,7128,null,"Alaska","Oregon",{"$f":"VLOOKUP(H91,'Info Sheet'!O:P,2,0)","v":"OR"},6475,6475]
["Alaska","Pennsylvania",{"$f":"VLOOKUP(B92,'Info Sheet'!O:P,2,0)","v":"PA"},759,759,null,"Alaska","Pennsylvania",{"$f":"VLOOKUP(H92,'Info Sheet'!O:P,2,0)","v":"PA"},4602,4602]
["Alaska","Rhode Island",{"$f":"VLOOKUP(B93,'Info Sheet'!O:P,2,0)","v":"RI"},0,0,null,"Alaska","Rhode Island",{"$f":"VLOOKUP(H93,'Info Sheet'!O:P,2,0)","v":"RI"},0,0]
["Alaska","South Carolina",{"$f":"VLOOKUP(B94,'Info Sheet'!O:P,2,0)","v":"SC"},691,691,null,"Alaska","South Carolina",{"$f":"VLOOKUP(H94,'Info Sheet'!O:P,2,0)","v":"SC"},5335,5335]
["Alaska","South Dakota",{"$f":"VLOOKUP(B95,'Info Sheet'!O:P,2,0)","v":"SD"},931,931,null,"Alaska","South Dakota",{"$f":"VLOOKUP(H95,'Info Sheet'!O:P,2,0)","v":"SD"},1434,1434]
["Alaska","Tennessee",{"$f":"VLOOKUP(B96,'Info Sheet'!O:P,2,0)","v":"TN"},1316,1316,null,"Alaska","Tennessee",{"$f":"VLOOKUP(H96,'Info Sheet'!O:P,2,0)","v":"TN"},2155,2155]
["Alaska","Texas",{"$f":"VLOOKUP(B97,'Info Sheet'!O:P,2,0)","v":"TX"},8103,8103,null,"Alaska","Texas",{"$f":"VLOOKUP(H97,'Info Sheet'!O:P,2,0)","v":"TX"},25042,25042]
["Alaska","Utah",{"$f":"VLOOKUP(B98,'Info Sheet'!O:P,2,0)","v":"UT"},2266,2266,null,"Alaska","Utah",{"$f":"VLOOKUP(H98,'Info Sheet'!O:P,2,0)","v":"UT"},6768,6768]
["Alaska","Vermont",{"$f":"VLOOKUP(B99,'Info Sheet'!O:P,2,0)","v":"VT"},500,500,null,"Alaska","Vermont",{"$f":"VLOOKUP(H99,'Info Sheet'!O:P,2,0)","v":"VT"},857,857]
["Alaska","Virginia",{"$f":"VLOOKUP(B100,'Info Sheet'!O:P,2,0)","v":"VA"},3467,3467,null,"Alaska","Virginia",{"$f":"VLOOKUP(H100,'Info Sheet'!O:P,2,0)","v":"VA"},8404,8404]
["Alaska","Washington",{"$f":"VLOOKUP(B101,'Info Sheet'!O:P,2,0)","v":"WA"},10694,10694,null,"Alaska","Washington",{"$f":"VLOOKUP(H101,'Info Sheet'!O:P,2,0)","v":"WA"},15238,15238]
["Alaska","West Virginia",{"$f":"VLOOKUP(B102,'Info Sheet'!O:P,2,0)","v":"WV"},89,89,null,"Alaska","West Virginia",{"$f":"VLOOKUP(H102,'Info Sheet'!O:P,2,0)","v":"WV"},2230,2230]
["Alaska","Wisconsin",{"$f":"VLOOKUP(B103,'Info Sheet'!O:P,2,0)","v":"WI"},387,387,null,"Alaska","Wisconsin",{"$f":"VLOOKUP(H103,'Info Sheet'!O:P,2,0)","v":"WI"},1466,1466]
["Alaska","Wyoming",{"$f":"VLOOKUP(B104,'Info Sheet'!O:P,2,0)","v":"WY"},463,463,null,"Alaska","Wyoming",{"$f":"VLOOKUP(H104,'Info Sheet'!O:P,2,0)","v":"WY"},1351,1351]
["Alaska","Puerto Rico",{"$f":"VLOOKUP(B105,'Info Sheet'!O:P,2,0)","v":"PR"},1088,1088,null,"Alaska","Puerto Rico",{"$f":"VLOOKUP(H105,'Info Sheet'!O:P,2,0)","v":"PR"},591,591]
["Arizona","Alabama",{"$f":"VLOOKUP(B106,'Info Sheet'!O:P,2,0)","v":"AL"},2580,2580,null,"Arizona","Alabama",{"$f":"VLOOKUP(H106,'Info Sheet'!O:P,2,0)","v":"AL"},3315,3315]
["Arizona","Alaska",{"$f":"VLOOKUP(B107,'Info Sheet'!O:P,2,0)","v":"AK"},11827,11827,null,"Arizona","Alaska",{"$f":"VLOOKUP(H107,'Info Sheet'!O:P,2,0)","v":"AK"},5341,5341]
["Arizona","Arizona",{"$f":"VLOOKUP(B108,'Info Sheet'!O:P,2,0)","v":"AZ"},0,0,null,"Arizona","Arizona",{"$f":"VLOOKUP(H108,'Info Sheet'!O:P,2,0)","v":"AZ"},0,0]
["Arizona","Arkansas",{"$f":"VLOOKUP(B109,'Info Sheet'!O:P,2,0)","v":"AR"},2969,2969,null,"Arizona","Arkansas",{"$f":"VLOOKUP(H109,'Info Sheet'!O:P,2,0)","v":"AR"},2893,2893]
["Arizona","California",{"$f":"VLOOKUP(B110,'Info Sheet'!O:P,2,0)","v":"CA"},141688,141688,null,"Arizona","California",{"$f":"VLOOKUP(H110,'Info Sheet'!O:P,2,0)","v":"CA"},108420,108420]
["Arizona","Colorado",{"$f":"VLOOKUP(B111,'Info Sheet'!O:P,2,0)","v":"CO"},31666,31666,null,"Arizona","Colorado",{"$f":"VLOOKUP(H111,'Info Sheet'!O:P,2,0)","v":"CO"},35214,35214]
["Arizona","Connecticut",{"$f":"VLOOKUP(B112,'Info Sheet'!O:P,2,0)","v":"CT"},2771,2771,null,"Arizona","Connecticut",{"$f":"VLOOKUP(H112,'Info Sheet'!O:P,2,0)","v":"CT"},5218,5218]
["Arizona","Delaware",{"$f":"VLOOKUP(B113,'Info Sheet'!O:P,2,0)","v":"DE"},984,984,null,"Arizona","Delaware",{"$f":"VLOOKUP(H113,'Info Sheet'!O:P,2,0)","v":"DE"},789,789]
["Arizona","District of Columbia",{"$f":"VLOOKUP(B114,'Info Sheet'!O:P,2,0)","v":"DC"},425,425,null,"Arizona","District of Columbia",{"$f":"VLOOKUP(H114,'Info Sheet'!O:P,2,0)","v":"DC"},1607,1607]
["Arizona","Florida",{"$f":"VLOOKUP(B115,'Info Sheet'!O:P,2,0)","v":"FL"},16997,16997,null,"Arizona","Florida",{"$f":"VLOOKUP(H115,'Info Sheet'!O:P,2,0)","v":"FL"},18831,18831]
["Arizona","Georgia",{"$f":"VLOOKUP(B116,'Info Sheet'!O:P,2,0)","v":"GA"},8730,8730,null,"Arizona","Georgia",{"$f":"VLOOKUP(H116,'Info Sheet'!O:P,2,0)","v":"GA"},13503,13503]
["Arizona","Hawaii",{"$f":"VLOOKUP(B117,'Info Sheet'!O:P,2,0)","v":"HI"},6656,6656,null,"Arizona","Hawaii",{"$f":"VLOOKUP(H117,'Info Sheet'!O:P,2,0)","v":"HI"},6163,6163]
["Arizona","Idaho",{"$f":"VLOOKUP(B118,'Info Sheet'!O:P,2,0)","v":"ID"},7271,7271,null,"Arizona","Idaho",{"$f":"VLOOKUP(H118,'Info Sheet'!O:P,2,0)","v":"ID"},9053,9053]
["Arizona","Illinois",{"$f":"VLOOKUP(B119,'Info Sheet'!O:P,2,0)","v":"IL"},33029,33029,null,"Arizona","Illinois",{"$f":"VLOOKUP(H119,'Info Sheet'!O:P,2,0)","v":"IL"},20717,20717]
["Arizona","Indiana",{"$f":"VLOOKUP(B120,'Info Sheet'!O:P,2,0)","v":"IN"},11475,11475,null,"Arizona","Indiana",{"$f":"VLOOKUP(H120,'Info Sheet'!O:P,2,0)","v":"IN"},8948,8948]
["Arizona","Iowa",{"$f":"VLOOKUP(B121,'Info Sheet'!O:P,2,0)","v":"IA"},10236,10236,null,"Arizona","Iowa",{"$f":"VLOOKUP(H121,'Info Sheet'!O:P,2,0)","v":"IA"},4484,4484]
["Arizona","Kansas",{"$f":"VLOOKUP(B122,'Info Sheet'!O:P,2,0)","v":"KS"},6141,6141,null,"Arizona","Kansas",{"$f":"VLOOKUP(H122,'Info Sheet'!O:P,2,0)","v":"KS"},7360,7360]
["Arizona","Kentucky",{"$f":"VLOOKUP(B123,'Info Sheet'!O:P,2,0)","v":"KY"},5167,5167,null,"Arizona","Kentucky",{"$f":"VLOOKUP(H123,'Info Sheet'!O:P,2,0)","v":"KY"},5519,5519]
["Arizona","Louisiana",{"$f":"VLOOKUP(B124,'Info Sheet'!O:P,2,0)","v":"LA"},3582,3582,null,"Arizona","Louisiana",{"$f":"VLOOKUP(H124,'Info Sheet'!O:P,2,0)","v":"LA"},5991,5991]
["Arizona","Maine",{"$f":"VLOOKUP(B125,'Info Sheet'!O:P,2,0)","v":"ME"},857,857,null,"Arizona","Maine",{"$f":"VLOOKUP(H125,'Info Sheet'!O:P,2,0)","v":"ME"},809,809]
["Arizona","Maryland",{"$f":"VLOOKUP(B126,'Info Sheet'!O:P,2,0)","v":"MD"},6209,6209,null,"Arizona","Maryland",{"$f":"VLOOKUP(H126,'Info Sheet'!O:P,2,0)","v":"MD"},2829,2829]
["Arizona","Massachusetts",{"$f":"VLOOKUP(B127,'Info Sheet'!O:P,2,0)","v":"MA"},4153,4153,null,"Arizona","Massachusetts",{"$f":"VLOOKUP(H127,'Info Sheet'!O:P,2,0)","v":"MA"},4561,4561]
["Arizona","Michigan",{"$f":"VLOOKUP(B128,'Info Sheet'!O:P,2,0)","v":"MI"},25348,25348,null,"Arizona","Michigan",{"$f":"VLOOKUP(H128,'Info Sheet'!O:P,2,0)","v":"MI"},14205,14205]
["Arizona","Minnesota",{"$f":"VLOOKUP(B129,'Info Sheet'!O:P,2,0)","v":"MN"},17288,17288,null,"Arizona","Minnesota",{"$f":"VLOOKUP(H129,'Info Sheet'!O:P,2,0)","v":"MN"},9544,9544]
["Arizona","Mississippi",{"$f":"VLOOKUP(B130,'Info Sheet'!O:P,2,0)","v":"MS"},1791,1791,null,"Arizona","Mississippi",{"$f":"VLOOKUP(H130,'Info Sheet'!O:P,2,0)","v":"MS"},1453,1453]
["Arizona","Missouri",{"$f":"VLOOKUP(B131,'Info Sheet'!O:P,2,0)","v":"MO"},11034,11034,null,"Arizona","Missouri",{"$f":"VLOOKUP(H131,'Info Sheet'!O:P,2,0)","v":"MO"},7641,7641]
["Arizona","Montana",{"$f":"VLOOKUP(B132,'Info Sheet'!O:P,2,0)","v":"MT"},4892,4892,null,"Arizona","Montana",{"$f":"VLOOKUP(H132,'Info Sheet'!O:P,2,0)","v":"MT"},5428,5428]
["Arizona","Nebraska",{"$f":"VLOOKUP(B133,'Info Sheet'!O:P,2,0)","v":"NE"},5436,5436,null,"Arizona","Nebraska",{"$f":"VLOOKUP(H133,'Info Sheet'!O:P,2,0)","v":"NE"},6374,6374]
["Arizona","Nevada",{"$f":"VLOOKUP(B134,'Info Sheet'!O:P,2,0)","v":"NV"},25810,25810,null,"Arizona","Nevada",{"$f":"VLOOKUP(H134,'Info Sheet'!O:P,2,0)","v":"NV"},26708,26708]
["Arizona","New Hampshire",{"$f":"VLOOKUP(B135,'Info Sheet'!O:P,2,0)","v":"NH"},802,802,null,"Arizona","New Hampshire",{"$f":"VLOOKUP(H135,'Info Sheet'!O:P,2,0)","v":"NH"},1230,1230]
["Arizona","New Jersey",{"$f":"VLOOKUP(B136,'Info Sheet'!O:P,2,0)","v":"NJ"},7725,7725,null,"Arizona","New Jersey",{"$f":"VLOOKUP(H136,'Info Sheet'!O:P,2,0)","v":"NJ"},6737,6737]
["Arizona","New Mexico",{"$f":"VLOOKUP(B137,'Info Sheet'!O:P,2,0)","v":"NM"},15975,15975,null,"Arizona","New Mexico",{"$f":"VLOOKUP(H137,'Info Sheet'!O:P,2,0)","v":"NM"},19952,19952]
["Arizona","New York",{"$f":"VLOOKUP(B138,'Info Sheet'!O:P,2,0)","v":"NY"},17900,17900,null,"Arizona","New York",{"$f":"VLOOKUP(H138,'Info Sheet'!O:P,2,0)","v":"NY"},9616,9616]
["Arizona","North Carolina",{"$f":"VLOOKUP(B139,'Info Sheet'!O:P,2,0)","v":"NC"},9732,9732,null,"Arizona","North Carolina",{"$f":"VLOOKUP(H139,'Info Sheet'!O:P,2,0)","v":"NC"},10626,10626]
["Arizona","North Dakota",{"$f":"VLOOKUP(B140,'Info Sheet'!O:P,2,0)","v":"ND"},2862,2862,null,"Arizona","North Dakota",{"$f":"VLOOKUP(H140,'Info Sheet'!O:P,2,0)","v":"ND"},3546,3546]
["Arizona","Ohio",{"$f":"VLOOKUP(B141,'Info Sheet'!O:P,2,0)","v":"OH"},17813,17813,null,"Arizona","Ohio",{"$f":"VLOOKUP(H141,'Info Sheet'!O:P,2,0)","v":"OH"},16407,16407]
["Arizona","Oklahoma",{"$f":"VLOOKUP(B142,'Info Sheet'!O:P,2,0)","v":"OK"},7755,7755,null,"Arizona","Oklahoma",{"$f":"VLOOKUP(H142,'Info Sheet'!O:P,2,0)","v":"OK"},9503,9503]
["Arizona","Oregon",{"$f":"VLOOKUP(B143,'Info Sheet'!O:P,2,0)","v":"OR"},18630,18630,null,"Arizona","Oregon",{"$f":"VLOOKUP(H143,'Info Sheet'!O:P,2,0)","v":"OR"},21129,21129]
["Arizona","Pennsylvania",{"$f":"VLOOKUP(B144,'Info Sheet'!O:P,2,0)","v":"PA"},13251,13251,null,"Arizona","Pennsylvania",{"$f":"VLOOKUP(H144,'Info Sheet'!O:P,2,0)","v":"PA"},9475,9475]
["Arizona","Rhode Island",{"$f":"VLOOKUP(B145,'Info Sheet'!O:P,2,0)","v":"RI"},1089,1089,null,"Arizona","Rhode Island",{"$f":"VLOOKUP(H145,'Info Sheet'!O:P,2,0)","v":"RI"},631,631]
["Arizona","South Carolina",{"$f":"VLOOKUP(B146,'Info Sheet'!O:P,2,0)","v":"SC"},5154,5154,null,"Arizona","South Carolina",{"$f":"VLOOKUP(H146,'Info Sheet'!O:P,2,0)","v":"SC"},5650,5650]
["Arizona","South Dakota",{"$f":"VLOOKUP(B147,'Info Sheet'!O:P,2,0)","v":"SD"},4480,4480,null,"Arizona","South Dakota",{"$f":"VLOOKUP(H147,'Info Sheet'!O:P,2,0)","v":"SD"},2602,2602]
["Arizona","Tennessee",{"$f":"VLOOKUP(B148,'Info Sheet'!O:P,2,0)","v":"TN"},9816,9816,null,"Arizona","Tennessee",{"$f":"VLOOKUP(H148,'Info Sheet'!O:P,2,0)","v":"TN"},5887,5887]
["Arizona","Texas",{"$f":"VLOOKUP(B149,'Info Sheet'!O:P,2,0)","v":"TX"},42181,42181,null,"Arizona","Texas",{"$f":"VLOOKUP(H149,'Info Sheet'!O:P,2,0)","v":"TX"},55502,55502]
["Arizona","Utah",{"$f":"VLOOKUP(B150,'Info Sheet'!O:P,2,0)","v":"UT"},23657,23657,null,"Arizona","Utah",{"$f":"VLOOKUP(H150,'Info Sheet'!O:P,2,0)","v":"UT"},22698,22698]
["Arizona","Vermont",{"$f":"VLOOKUP(B151,'Info Sheet'!O:P,2,0)","v":"VT"},871,871,null,"Arizona","Vermont",{"$f":"VLOOKUP(H151,'Info Sheet'!O:P,2,0)","v":"VT"},502,502]
["Arizona","Virginia",{"$f":"VLOOKUP(B152,'Info Sheet'!O:P,2,0)","v":"VA"},8409,8409,null,"Arizona","Virginia",{"$f":"VLOOKUP(H152,'Info Sheet'!O:P,2,0)","v":"VA"},10906,10906]
["Arizona","Washington",{"$f":"VLOOKUP(B153,'Info Sheet'!O:P,2,0)","v":"WA"},39832,39832,null,"Arizona","Washington",{"$f":"VLOOKUP(H153,'Info Sheet'!O:P,2,0)","v":"WA"},26730,26730]
["Arizona","West Virginia",{"$f":"VLOOKUP(B154,'Info Sheet'!O:P,2,0)","v":"WV"},1430,1430,null,"Arizona","West Virginia",{"$f":"VLOOKUP(H154,'Info Sheet'!O:P,2,0)","v":"WV"},129,129]
["Arizona","Wisconsin",{"$f":"VLOOKUP(B155,'Info Sheet'!O:P,2,0)","v":"WI"},15794,15794,null,"Arizona","Wisconsin",{"$f":"VLOOKUP(H155,'Info Sheet'!O:P,2,0)","v":"WI"},9156,9156]
["Arizona","Wyoming",{"$f":"VLOOKUP(B156,'Info Sheet'!O:P,2,0)","v":"WY"},5889,5889,null,"Arizona","Wyoming",{"$f":"VLOOKUP(H156,'Info Sheet'!O:P,2,0)","v":"WY"},3894,3894]
["Arizona","Puerto Rico",{"$f":"VLOOKUP(B157,'Info Sheet'!O:P,2,0)","v":"PR"},3261,3261,null,"Arizona","Puerto Rico",{"$f":"VLOOKUP(H157,'Info Sheet'!O:P,2,0)","v":"PR"},571,571]
["Arkansas","Alabama",{"$f":"VLOOKUP(B158,'Info Sheet'!O:P,2,0)","v":"AL"},2470,2470,null,"Arkansas","Alabama",{"$f":"VLOOKUP(H158,'Info Sheet'!O:P,2,0)","v":"AL"},3783,3783]
["Arkansas","Alaska",{"$f":"VLOOKUP(B159,'Info Sheet'!O:P,2,0)","v":"AK"},2349,2349,null,"Arkansas","Alaska",{"$f":"VLOOKUP(H159,'Info Sheet'!O:P,2,0)","v":"AK"},433,433]
["Arkansas","Arizona",{"$f":"VLOOKUP(B160,'Info Sheet'!O:P,2,0)","v":"AZ"},2893,2893,null,"Arkansas","Arizona",{"$f":"VLOOKUP(H160,'Info Sheet'!O:P,2,0)","v":"AZ"},2969,2969]
["Arkansas","Arkansas",{"$f":"VLOOKUP(B161,'Info Sheet'!O:P,2,0)","v":"AR"},0,0,null,"Arkansas","Arkansas",{"$f":"VLOOKUP(H161,'Info Sheet'!O:P,2,0)","v":"AR"},0,0]
["Arkansas","California",{"$f":"VLOOKUP(B162,'Info Sheet'!O:P,2,0)","v":"CA"},12059,12059,null,"Arkansas","California",{"$f":"VLOOKUP(H162,'Info Sheet'!O:P,2,0)","v":"CA"},10292,10292]
["Arkansas","Colorado",{"$f":"VLOOKUP(B163,'Info Sheet'!O:P,2,0)","v":"CO"},3884,3884,null,"Arkansas","Colorado",{"$f":"VLOOKUP(H163,'Info Sheet'!O:P,2,0)","v":"CO"},3692,3692]
["Arkansas","Connecticut",{"$f":"VLOOKUP(B164,'Info Sheet'!O:P,2,0)","v":"CT"},1155,1155,null,"Arkansas","Connecticut",{"$f":"VLOOKUP(H164,'Info Sheet'!O:P,2,0)","v":"CT"},618,618]
["Arkansas","Delaware",{"$f":"VLOOKUP(B165,'Info Sheet'!O:P,2,0)","v":"DE"},79,79,null,"Arkansas","Delaware",{"$f":"VLOOKUP(H165,'Info Sheet'!O:P,2,0)","v":"DE"},0,0]
["Arkansas","District of Columbia",{"$f":"VLOOKUP(B166,'Info Sheet'!O:P,2,0)","v":"DC"},359,359,null,"Arkansas","District of Columbia",{"$f":"VLOOKUP(H166,'Info Sheet'!O:P,2,0)","v":"DC"},271,271]
["Arkansas","Florida",{"$f":"VLOOKUP(B167,'Info Sheet'!O:P,2,0)","v":"FL"},9327,9327,null,"Arkansas","Florida",{"$f":"VLOOKUP(H167,'Info Sheet'!O:P,2,0)","v":"FL"},9957,9957]
["Arkansas","Georgia",{"$f":"VLOOKUP(B168,'Info Sheet'!O:P,2,0)","v":"GA"},6892,6892,null,"Arkansas","Georgia",{"$f":"VLOOKUP(H168,'Info Sheet'!O:P,2,0)","v":"GA"},3752,3752]
["Arkansas","Hawaii",{"$f":"VLOOKUP(B169,'Info Sheet'!O:P,2,0)","v":"HI"},142,142,null,"Arkansas","Hawaii",{"$f":"VLOOKUP(H169,'Info Sheet'!O:P,2,0)","v":"HI"},266,266]
["Arkansas","Idaho",{"$f":"VLOOKUP(B170,'Info Sheet'!O:P,2,0)","v":"ID"},797,797,null,"Arkansas","Idaho",{"$f":"VLOOKUP(H170,'Info Sheet'!O:P,2,0)","v":"ID"},560,560]
["Arkansas","Illinois",{"$f":"VLOOKUP(B171,'Info Sheet'!O:P,2,0)","v":"IL"},10481,10481,null,"Arkansas","Illinois",{"$f":"VLOOKUP(H171,'Info Sheet'!O:P,2,0)","v":"IL"},5966,5966]
["Arkansas","Indiana",{"$f":"VLOOKUP(B172,'Info Sheet'!O:P,2,0)","v":"IN"},3256,3256,null,"Arkansas","Indiana",{"$f":"VLOOKUP(H172,'Info Sheet'!O:P,2,0)","v":"IN"},4128,4128]
["Arkansas","Iowa",{"$f":"VLOOKUP(B173,'Info Sheet'!O:P,2,0)","v":"IA"},1345,1345,null,"Arkansas","Iowa",{"$f":"VLOOKUP(H173,'Info Sheet'!O:P,2,0)","v":"IA"},1131,1131]
["Arkansas","Kansas",{"$f":"VLOOKUP(B174,'Info Sheet'!O:P,2,0)","v":"KS"},6652,6652,null,"Arkansas","Kansas",{"$f":"VLOOKUP(H174,'Info Sheet'!O:P,2,0)","v":"KS"},4752,4752]
["Arkansas","Kentucky",{"$f":"VLOOKUP(B175,'Info Sheet'!O:P,2,0)","v":"KY"},4063,4063,null,"Arkansas","Kentucky",{"$f":"VLOOKUP(H175,'Info Sheet'!O:P,2,0)","v":"KY"},2134,2134]
["Arkansas","Louisiana",{"$f":"VLOOKUP(B176,'Info Sheet'!O:P,2,0)","v":"LA"},10085,10085,null,"Arkansas","Louisiana",{"$f":"VLOOKUP(H176,'Info Sheet'!O:P,2,0)","v":"LA"},8801,8801]
["Arkansas","Maine",{"$f":"VLOOKUP(B177,'Info Sheet'!O:P,2,0)","v":"ME"},47,47,null,"Arkansas","Maine",{"$f":"VLOOKUP(H177,'Info Sheet'!O:P,2,0)","v":"ME"},105,105]
["Arkansas","Maryland",{"$f":"VLOOKUP(B178,'Info Sheet'!O:P,2,0)","v":"MD"},608,608,null,"Arkansas","Maryland",{"$f":"VLOOKUP(H178,'Info Sheet'!O:P,2,0)","v":"MD"},832,832]
["Arkansas","Massachusetts",{"$f":"VLOOKUP(B179,'Info Sheet'!O:P,2,0)","v":"MA"},1225,1225,null,"Arkansas","Massachusetts",{"$f":"VLOOKUP(H179,'Info Sheet'!O:P,2,0)","v":"MA"},767,767]
["Arkansas","Michigan",{"$f":"VLOOKUP(B180,'Info Sheet'!O:P,2,0)","v":"MI"},4670,4670,null,"Arkansas","Michigan",{"$f":"VLOOKUP(H180,'Info Sheet'!O:P,2,0)","v":"MI"},3596,3596]
["Arkansas","Minnesota",{"$f":"VLOOKUP(B181,'Info Sheet'!O:P,2,0)","v":"MN"},749,749,null,"Arkansas","Minnesota",{"$f":"VLOOKUP(H181,'Info Sheet'!O:P,2,0)","v":"MN"},1605,1605]
["Arkansas","Mississippi",{"$f":"VLOOKUP(B182,'Info Sheet'!O:P,2,0)","v":"MS"},8184,8184,null,"Arkansas","Mississippi",{"$f":"VLOOKUP(H182,'Info Sheet'!O:P,2,0)","v":"MS"},9936,9936]
["Arkansas","Missouri",{"$f":"VLOOKUP(B183,'Info Sheet'!O:P,2,0)","v":"MO"},23739,23739,null,"Arkansas","Missouri",{"$f":"VLOOKUP(H183,'Info Sheet'!O:P,2,0)","v":"MO"},19983,19983]
["Arkansas","Montana",{"$f":"VLOOKUP(B184,'Info Sheet'!O:P,2,0)","v":"MT"},1056,1056,null,"Arkansas","Montana",{"$f":"VLOOKUP(H184,'Info Sheet'!O:P,2,0)","v":"MT"},784,784]
["Arkansas","Nebraska",{"$f":"VLOOKUP(B185,'Info Sheet'!O:P,2,0)","v":"NE"},892,892,null,"Arkansas","Nebraska",{"$f":"VLOOKUP(H185,'Info Sheet'!O:P,2,0)","v":"NE"},1198,1198]
["Arkansas","Nevada",{"$f":"VLOOKUP(B186,'Info Sheet'!O:P,2,0)","v":"NV"},829,829,null,"Arkansas","Nevada",{"$f":"VLOOKUP(H186,'Info Sheet'!O:P,2,0)","v":"NV"},1193,1193]
["Arkansas","New Hampshire",{"$f":"VLOOKUP(B187,'Info Sheet'!O:P,2,0)","v":"NH"},52,52,null,"Arkansas","New Hampshire",{"$f":"VLOOKUP(H187,'Info Sheet'!O:P,2,0)","v":"NH"},22,22]
["Arkansas","New Jersey",{"$f":"VLOOKUP(B188,'Info Sheet'!O:P,2,0)","v":"NJ"},575,575,null,"Arkansas","New Jersey",{"$f":"VLOOKUP(H188,'Info Sheet'!O:P,2,0)","v":"NJ"},372,372]
["Arkansas","New Mexico",{"$f":"VLOOKUP(B189,'Info Sheet'!O:P,2,0)","v":"NM"},1322,1322,null,"Arkansas","New Mexico",{"$f":"VLOOKUP(H189,'Info Sheet'!O:P,2,0)","v":"NM"},1169,1169]
["Arkansas","New York",{"$f":"VLOOKUP(B190,'Info Sheet'!O:P,2,0)","v":"NY"},3225,3225,null,"Arkansas","New York",{"$f":"VLOOKUP(H190,'Info Sheet'!O:P,2,0)","v":"NY"},1650,1650]
["Arkansas","North Carolina",{"$f":"VLOOKUP(B191,'Info Sheet'!O:P,2,0)","v":"NC"},6282,6282,null,"Arkansas","North Carolina",{"$f":"VLOOKUP(H191,'Info Sheet'!O:P,2,0)","v":"NC"},1738,1738]
["Arkansas","North Dakota",{"$f":"VLOOKUP(B192,'Info Sheet'!O:P,2,0)","v":"ND"},214,214,null,"Arkansas","North Dakota",{"$f":"VLOOKUP(H192,'Info Sheet'!O:P,2,0)","v":"ND"},417,417]
["Arkansas","Ohio",{"$f":"VLOOKUP(B193,'Info Sheet'!O:P,2,0)","v":"OH"},2446,2446,null,"Arkansas","Ohio",{"$f":"VLOOKUP(H193,'Info Sheet'!O:P,2,0)","v":"OH"},3270,3270]
["Arkansas","Oklahoma",{"$f":"VLOOKUP(B194,'Info Sheet'!O:P,2,0)","v":"OK"},22306,22306,null,"Arkansas","Oklahoma",{"$f":"VLOOKUP(H194,'Info Sheet'!O:P,2,0)","v":"OK"},18544,18544]
["Arkansas","Oregon",{"$f":"VLOOKUP(B195,'Info Sheet'!O:P,2,0)","v":"OR"},1064,1064,null,"Arkansas","Oregon",{"$f":"VLOOKUP(H195,'Info Sheet'!O:P,2,0)","v":"OR"},1399,1399]
["Arkansas","Pennsylvania",{"$f":"VLOOKUP(B196,'Info Sheet'!O:P,2,0)","v":"PA"},1814,1814,null,"Arkansas","Pennsylvania",{"$f":"VLOOKUP(H196,'Info Sheet'!O:P,2,0)","v":"PA"},1962,1962]
["Arkansas","Rhode Island",{"$f":"VLOOKUP(B197,'Info Sheet'!O:P,2,0)","v":"RI"},59,59,null,"Arkansas","Rhode Island",{"$f":"VLOOKUP(H197,'Info Sheet'!O:P,2,0)","v":"RI"},0,0]
["Arkansas","South Carolina",{"$f":"VLOOKUP(B198,'Info Sheet'!O:P,2,0)","v":"SC"},1783,1783,null,"Arkansas","South Carolina",{"$f":"VLOOKUP(H198,'Info Sheet'!O:P,2,0)","v":"SC"},2537,2537]
["Arkansas","South Dakota",{"$f":"VLOOKUP(B199,'Info Sheet'!O:P,2,0)","v":"SD"},916,916,null,"Arkansas","South Dakota",{"$f":"VLOOKUP(H199,'Info Sheet'!O:P,2,0)","v":"SD"},947,947]
["Arkansas","Tennessee",{"$f":"VLOOKUP(B200,'Info Sheet'!O:P,2,0)","v":"TN"},13310,13310,null,"Arkansas","Tennessee",{"$f":"VLOOKUP(H200,'Info Sheet'!O:P,2,0)","v":"TN"},15435,15435]
["Arkansas","Texas",{"$f":"VLOOKUP(B201,'Info Sheet'!O:P,2,0)","v":"TX"},40241,40241,null,"Arkansas","Texas",{"$f":"VLOOKUP(H201,'Info Sheet'!O:P,2,0)","v":"TX"},45493,45493]
["Arkansas","Utah",{"$f":"VLOOKUP(B202,'Info Sheet'!O:P,2,0)","v":"UT"},630,630,null,"Arkansas","Utah",{"$f":"VLOOKUP(H202,'Info Sheet'!O:P,2,0)","v":"UT"},1099,1099]
["Arkansas","Vermont",{"$f":"VLOOKUP(B203,'Info Sheet'!O:P,2,0)","v":"VT"},0,0,null,"Arkansas","Vermont",{"$f":"VLOOKUP(H203,'Info Sheet'!O:P,2,0)","v":"VT"},0,0]
["Arkansas","Virginia",{"$f":"VLOOKUP(B204,'Info Sheet'!O:P,2,0)","v":"VA"},2898,2898,null,"Arkansas","Virginia",{"$f":"VLOOKUP(H204,'Info Sheet'!O:P,2,0)","v":"VA"},2323,2323]
["Arkansas","Washington",{"$f":"VLOOKUP(B205,'Info Sheet'!O:P,2,0)","v":"WA"},1992,1992,null,"Arkansas","Washington",{"$f":"VLOOKUP(H205,'Info Sheet'!O:P,2,0)","v":"WA"},2827,2827]
["Arkansas","West Virginia",{"$f":"VLOOKUP(B206,'Info Sheet'!O:P,2,0)","v":"WV"},108,108,null,"Arkansas","West Virginia",{"$f":"VLOOKUP(H206,'Info Sheet'!O:P,2,0)","v":"WV"},225,225]
["Arkansas","Wisconsin",{"$f":"VLOOKUP(B207,'Info Sheet'!O:P,2,0)","v":"WI"},2203,2203,null,"Arkansas","Wisconsin",{"$f":"VLOOKUP(H207,'Info Sheet'!O:P,2,0)","v":"WI"},1106,1106]
["Arkansas","Wyoming",{"$f":"VLOOKUP(B208,'Info Sheet'!O:P,2,0)","v":"WY"},2193,2193,null,"Arkansas","Wyoming",{"$f":"VLOOKUP(H208,'Info Sheet'!O:P,2,0)","v":"WY"},418,418]
["Arkansas","Puerto Rico",{"$f":"VLOOKUP(B209,'Info Sheet'!O:P,2,0)","v":"PR"},616,616,null,"Arkansas","Puerto Rico",{"$f":"VLOOKUP(H209,'Info Sheet'!O:P,2,0)","v":"PR"},93,93]
["California","Alabama",{"$f":"VLOOKUP(B210,'Info Sheet'!O:P,2,0)","v":"AL"},7960,7960,null,"California","Alabama",{"$f":"VLOOKUP(H210,'Info Sheet'!O:P,2,0)","v":"AL"},10293,10293]
["California","Alaska",{"$f":"VLOOKUP(B211,'Info Sheet'!O:P,2,0)","v":"AK"},23932,23932,null,"California","Alaska",{"$f":"VLOOKUP(H211,'Info Sheet'!O:P,2,0)","v":"AK"},10498,10498]
["California","Arizona",{"$f":"VLOOKUP(B212,'Info Sheet'!O:P,2,0)","v":"AZ"},108420,108420,null,"California","Arizona",{"$f":"VLOOKUP(H212,'Info Sheet'!O:P,2,0)","v":"AZ"},141688,141688]
["California","Arkansas",{"$f":"VLOOKUP(B213,'Info Sheet'!O:P,2,0)","v":"AR"},10292,10292,null,"California","Arkansas",{"$f":"VLOOKUP(H213,'Info Sheet'!O:P,2,0)","v":"AR"},12059,12059]
["California","California",{"$f":"VLOOKUP(B214,'Info Sheet'!O:P,2,0)","v":"CA"},0,0,null,"California","California",{"$f":"VLOOKUP(H214,'Info Sheet'!O:P,2,0)","v":"CA"},0,0]
["California","Colorado",{"$f":"VLOOKUP(B215,'Info Sheet'!O:P,2,0)","v":"CO"},52057,52057,null,"California","Colorado",{"$f":"VLOOKUP(H215,'Info Sheet'!O:P,2,0)","v":"CO"},71475,71475]
["California","Connecticut",{"$f":"VLOOKUP(B216,'Info Sheet'!O:P,2,0)","v":"CT"},14468,14468,null,"California","Connecticut",{"$f":"VLOOKUP(H216,'Info Sheet'!O:P,2,0)","v":"CT"},11339,11339]
["California","Delaware",{"$f":"VLOOKUP(B217,'Info Sheet'!O:P,2,0)","v":"DE"},2419,2419,null,"California","Delaware",{"$f":"VLOOKUP(H217,'Info Sheet'!O:P,2,0)","v":"DE"},3273,3273]
["California","District of Columbia",{"$f":"VLOOKUP(B218,'Info Sheet'!O:P,2,0)","v":"DC"},10122,10122,null,"California","District of Columbia",{"$f":"VLOOKUP(H218,'Info Sheet'!O:P,2,0)","v":"DC"},13001,13001]
["California","Florida",{"$f":"VLOOKUP(B219,'Info Sheet'!O:P,2,0)","v":"FL"},63460,63460,null,"California","Florida",{"$f":"VLOOKUP(H219,'Info Sheet'!O:P,2,0)","v":"FL"},64936,64936]
["California","Georgia",{"$f":"VLOOKUP(B220,'Info Sheet'!O:P,2,0)","v":"GA"},32913,32913,null,"California","Georgia",{"$f":"VLOOKUP(H220,'Info Sheet'!O:P,2,0)","v":"GA"},38032,38032]
["California","Hawaii",{"$f":"VLOOKUP(B221,'Info Sheet'!O:P,2,0)","v":"HI"},31298,31298,null,"California","Hawaii",{"$f":"VLOOKUP(H221,'Info Sheet'!O:P,2,0)","v":"HI"},32606,32606]
["California","Idaho",{"$f":"VLOOKUP(B222,'Info Sheet'!O:P,2,0)","v":"ID"},15846,15846,null,"California","Idaho",{"$f":"VLOOKUP(H222,'Info Sheet'!O:P,2,0)","v":"ID"},28233,28233]
["California","Illinois",{"$f":"VLOOKUP(B223,'Info Sheet'!O:P,2,0)","v":"IL"},58567,58567,null,"California","Illinois",{"$f":"VLOOKUP(H223,'Info Sheet'!O:P,2,0)","v":"IL"},45075,45075]
["California","Indiana",{"$f":"VLOOKUP(B224,'Info Sheet'!O:P,2,0)","v":"IN"},17114,17114,null,"California","Indiana",{"$f":"VLOOKUP(H224,'Info Sheet'!O:P,2,0)","v":"IN"},22641,22641]
["California","Iowa",{"$f":"VLOOKUP(B225,'Info Sheet'!O:P,2,0)","v":"IA"},8771,8771,null,"California","Iowa",{"$f":"VLOOKUP(H225,'Info Sheet'!O:P,2,0)","v":"IA"},9412,9412]
["California","Kansas",{"$f":"VLOOKUP(B226,'Info Sheet'!O:P,2,0)","v":"KS"},9457,9457,null,"California","Kansas",{"$f":"VLOOKUP(H226,'Info Sheet'!O:P,2,0)","v":"KS"},16279,16279]
["California","Kentucky",{"$f":"VLOOKUP(B227,'Info Sheet'!O:P,2,0)","v":"KY"},8358,8358,null,"California","Kentucky",{"$f":"VLOOKUP(H227,'Info Sheet'!O:P,2,0)","v":"KY"},9324,9324]
["California","Louisiana",{"$f":"VLOOKUP(B228,'Info Sheet'!O:P,2,0)","v":"LA"},11769,11769,null,"California","Louisiana",{"$f":"VLOOKUP(H228,'Info Sheet'!O:P,2,0)","v":"LA"},14847,14847]
["California","Maine",{"$f":"VLOOKUP(B229,'Info Sheet'!O:P,2,0)","v":"ME"},4710,4710,null,"California","Maine",{"$f":"VLOOKUP(H229,'Info Sheet'!O:P,2,0)","v":"ME"},3505,3505]
["California","Maryland",{"$f":"VLOOKUP(B230,'Info Sheet'!O:P,2,0)","v":"MD"},26321,26321,null,"California","Maryland",{"$f":"VLOOKUP(H230,'Info Sheet'!O:P,2,0)","v":"MD"},25415,25415]
["California","Massachusetts",{"$f":"VLOOKUP(B231,'Info Sheet'!O:P,2,0)","v":"MA"},36569,36569,null,"California","Massachusetts",{"$f":"VLOOKUP(H231,'Info Sheet'!O:P,2,0)","v":"MA"},39297,39297]
["California","Michigan",{"$f":"VLOOKUP(B232,'Info Sheet'!O:P,2,0)","v":"MI"},31425,31425,null,"California","Michigan",{"$f":"VLOOKUP(H232,'Info Sheet'!O:P,2,0)","v":"MI"},22604,22604]
["California","Minnesota",{"$f":"VLOOKUP(B233,'Info Sheet'!O:P,2,0)","v":"MN"},19321,19321,null,"California","Minnesota",{"$f":"VLOOKUP(H233,'Info Sheet'!O:P,2,0)","v":"MN"},20957,20957]
["California","Mississippi",{"$f":"VLOOKUP(B234,'Info Sheet'!O:P,2,0)","v":"MS"},7405,7405,null,"California","Mississippi",{"$f":"VLOOKUP(H234,'Info Sheet'!O:P,2,0)","v":"MS"},12094,12094]
["California","Missouri",{"$f":"VLOOKUP(B235,'Info Sheet'!O:P,2,0)","v":"MO"},21327,21327,null,"California","Missouri",{"$f":"VLOOKUP(H235,'Info Sheet'!O:P,2,0)","v":"MO"},28943,28943]
["California","Montana",{"$f":"VLOOKUP(B236,'Info Sheet'!O:P,2,0)","v":"MT"},8668,8668,null,"California","Montana",{"$f":"VLOOKUP(H236,'Info Sheet'!O:P,2,0)","v":"MT"},14217,14217]
["California","Nebraska",{"$f":"VLOOKUP(B237,'Info Sheet'!O:P,2,0)","v":"NE"},8319,8319,null,"California","Nebraska",{"$f":"VLOOKUP(H237,'Info Sheet'!O:P,2,0)","v":"NE"},12992,12992]
["California","Nevada",{"$f":"VLOOKUP(B238,'Info Sheet'!O:P,2,0)","v":"NV"},91851,91851,null,"California","Nevada",{"$f":"VLOOKUP(H238,'Info Sheet'!O:P,2,0)","v":"NV"},125564,125564]
["California","New Hampshire",{"$f":"VLOOKUP(B239,'Info Sheet'!O:P,2,0)","v":"NH"},4163,4163,null,"California","New Hampshire",{"$f":"VLOOKUP(H239,'Info Sheet'!O:P,2,0)","v":"NH"},3753,3753]
["California","New Jersey",{"$f":"VLOOKUP(B240,'Info Sheet'!O:P,2,0)","v":"NJ"},30218,30218,null,"California","New Jersey",{"$f":"VLOOKUP(H240,'Info Sheet'!O:P,2,0)","v":"NJ"},19093,19093]
["California","New Mexico",{"$f":"VLOOKUP(B241,'Info Sheet'!O:P,2,0)","v":"NM"},16457,16457,null,"California","New Mexico",{"$f":"VLOOKUP(H241,'Info Sheet'!O:P,2,0)","v":"NM"},18149,18149]
["California","New York",{"$f":"VLOOKUP(B242,'Info Sheet'!O:P,2,0)","v":"NY"},77871,77871,null,"California","New York",{"$f":"VLOOKUP(H242,'Info Sheet'!O:P,2,0)","v":"NY"},75561,75561]
["California","North Carolina",{"$f":"VLOOKUP(B243,'Info Sheet'!O:P,2,0)","v":"NC"},29496,29496,null,"California","North Carolina",{"$f":"VLOOKUP(H243,'Info Sheet'!O:P,2,0)","v":"NC"},45955,45955]
["California","North Dakota",{"$f":"VLOOKUP(B244,'Info Sheet'!O:P,2,0)","v":"ND"},3611,3611,null,"California","North Dakota",{"$f":"VLOOKUP(H244,'Info Sheet'!O:P,2,0)","v":"ND"},3766,3766]
["California","Ohio",{"$f":"VLOOKUP(B245,'Info Sheet'!O:P,2,0)","v":"OH"},29297,29297,null,"California","Ohio",{"$f":"VLOOKUP(H245,'Info Sheet'!O:P,2,0)","v":"OH"},27024,27024]
["California","Oklahoma",{"$f":"VLOOKUP(B246,'Info Sheet'!O:P,2,0)","v":"OK"},17492,17492,null,"California","Oklahoma",{"$f":"VLOOKUP(H246,'Info Sheet'!O:P,2,0)","v":"OK"},26612,26612]
["California","Oregon",{"$f":"VLOOKUP(B247,'Info Sheet'!O:P,2,0)","v":"OR"},61802,61802,null,"California","Oregon",{"$f":"VLOOKUP(H247,'Info Sheet'!O:P,2,0)","v":"OR"},100266,100266]
["California","Pennsylvania",{"$f":"VLOOKUP(B248,'Info Sheet'!O:P,2,0)","v":"PA"},28964,28964,null,"California","Pennsylvania",{"$f":"VLOOKUP(H248,'Info Sheet'!O:P,2,0)","v":"PA"},30521,30521]
["California","Rhode Island",{"$f":"VLOOKUP(B249,'Info Sheet'!O:P,2,0)","v":"RI"},3277,3277,null,"California","Rhode Island",{"$f":"VLOOKUP(H249,'Info Sheet'!O:P,2,0)","v":"RI"},5792,5792]
["California","South Carolina",{"$f":"VLOOKUP(B250,'Info Sheet'!O:P,2,0)","v":"SC"},14884,14884,null,"California","South Carolina",{"$f":"VLOOKUP(H250,'Info Sheet'!O:P,2,0)","v":"SC"},17262,17262]
["California","South Dakota",{"$f":"VLOOKUP(B251,'Info Sheet'!O:P,2,0)","v":"SD"},3434,3434,null,"California","South Dakota",{"$f":"VLOOKUP(H251,'Info Sheet'!O:P,2,0)","v":"SD"},4118,4118]
["California","Tennessee",{"$f":"VLOOKUP(B252,'Info Sheet'!O:P,2,0)","v":"TN"},18912,18912,null,"California","Tennessee",{"$f":"VLOOKUP(H252,'Info Sheet'!O:P,2,0)","v":"TN"},23545,23545]
["California","Texas",{"$f":"VLOOKUP(B253,'Info Sheet'!O:P,2,0)","v":"TX"},116674,116674,null,"California","Texas",{"$f":"VLOOKUP(H253,'Info Sheet'!O:P,2,0)","v":"TX"},190653,190653]
["California","Utah",{"$f":"VLOOKUP(B254,'Info Sheet'!O:P,2,0)","v":"UT"},31769,31769,null,"California","Utah",{"$f":"VLOOKUP(H254,'Info Sheet'!O:P,2,0)","v":"UT"},45710,45710]
["California","Vermont",{"$f":"VLOOKUP(B255,'Info Sheet'!O:P,2,0)","v":"VT"},1814,1814,null,"California","Vermont",{"$f":"VLOOKUP(H255,'Info Sheet'!O:P,2,0)","v":"VT"},2932,2932]
["California","Virginia",{"$f":"VLOOKUP(B256,'Info Sheet'!O:P,2,0)","v":"VA"},45610,45610,null,"California","Virginia",{"$f":"VLOOKUP(H256,'Info Sheet'!O:P,2,0)","v":"VA"},51239,51239]
["California","Washington",{"$f":"VLOOKUP(B257,'Info Sheet'!O:P,2,0)","v":"WA"},101594,101594,null,"California","Washington",{"$f":"VLOOKUP(H257,'Info Sheet'!O:P,2,0)","v":"WA"},123486,123486]
["California","West Virginia",{"$f":"VLOOKUP(B258,'Info Sheet'!O:P,2,0)","v":"WV"},3691,3691,null,"California","West Virginia",{"$f":"VLOOKUP(H258,'Info Sheet'!O:P,2,0)","v":"WV"},3433,3433]
["California","Wisconsin",{"$f":"VLOOKUP(B259,'Info Sheet'!O:P,2,0)","v":"WI"},17380,17380,null,"California","Wisconsin",{"$f":"VLOOKUP(H259,'Info Sheet'!O:P,2,0)","v":"WI"},16490,16490]
["California","Wyoming",{"$f":"VLOOKUP(B260,'Info Sheet'!O:P,2,0)","v":"WY"},5269,5269,null,"California","Wyoming",{"$f":"VLOOKUP(H260,'Info Sheet'!O:P,2,0)","v":"WY"},7358,7358]
["California","Puerto Rico",{"$f":"VLOOKUP(B261,'Info Sheet'!O:P,2,0)","v":"PR"},4890,4890,null,"California","Puerto Rico",{"$f":"VLOOKUP(H261,'Info Sheet'!O:P,2,0)","v":"PR"},1903,1903]
["Colorado","Alabama",{"$f":"VLOOKUP(B262,'Info Sheet'!O:P,2,0)","v":"AL"},6402,6402,null,"Colorado","Alabama",{"$f":"VLOOKUP(H262,'Info Sheet'!O:P,2,0)","v":"AL"},3012,3012]
["Colorado","Alaska",{"$f":"VLOOKUP(B263,'Info Sheet'!O:P,2,0)","v":"AK"},8873,8873,null,"Colorado","Alaska",{"$f":"VLOOKUP(H263,'Info Sheet'!O:P,2,0)","v":"AK"},4069,4069]
["Colorado","Arizona",{"$f":"VLOOKUP(B264,'Info Sheet'!O:P,2,0)","v":"AZ"},35214,35214,null,"Colorado","Arizona",{"$f":"VLOOKUP(H264,'Info Sheet'!O:P,2,0)","v":"AZ"},31666,31666]
["Colorado","Arkansas",{"$f":"VLOOKUP(B265,'Info Sheet'!O:P,2,0)","v":"AR"},3692,3692,null,"Colorado","Arkansas",{"$f":"VLOOKUP(H265,'Info Sheet'!O:P,2,0)","v":"AR"},3884,3884]
["Colorado","California",{"$f":"VLOOKUP(B266,'Info Sheet'!O:P,2,0)","v":"CA"},71475,71475,null,"Colorado","California",{"$f":"VLOOKUP(H266,'Info Sheet'!O:P,2,0)","v":"CA"},52057,52057]
["Colorado","Colorado",{"$f":"VLOOKUP(B267,'Info Sheet'!O:P,2,0)","v":"CO"},0,0,null,"Colorado","Colorado",{"$f":"VLOOKUP(H267,'Info Sheet'!O:P,2,0)","v":"CO"},0,0]
["Colorado","Connecticut",{"$f":"VLOOKUP(B268,'Info Sheet'!O:P,2,0)","v":"CT"},3343,3343,null,"Colorado","Connecticut",{"$f":"VLOOKUP(H268,'Info Sheet'!O:P,2,0)","v":"CT"},2416,2416]
["Colorado","Delaware",{"$f":"VLOOKUP(B269,'Info Sheet'!O:P,2,0)","v":"DE"},1057,1057,null,"Colorado","Delaware",{"$f":"VLOOKUP(H269,'Info Sheet'!O:P,2,0)","v":"DE"},347,347]
["Colorado","District of Columbia",{"$f":"VLOOKUP(B270,'Info Sheet'!O:P,2,0)","v":"DC"},1265,1265,null,"Colorado","District of Columbia",{"$f":"VLOOKUP(H270,'Info Sheet'!O:P,2,0)","v":"DC"},1785,1785]
["Colorado","Florida",{"$f":"VLOOKUP(B271,'Info Sheet'!O:P,2,0)","v":"FL"},25539,25539,null,"Colorado","Florida",{"$f":"VLOOKUP(H271,'Info Sheet'!O:P,2,0)","v":"FL"},24577,24577]
["Colorado","Georgia",{"$f":"VLOOKUP(B272,'Info Sheet'!O:P,2,0)","v":"GA"},15529,15529,null,"Colorado","Georgia",{"$f":"VLOOKUP(H272,'Info Sheet'!O:P,2,0)","v":"GA"},10259,10259]
["Colorado","Hawaii",{"$f":"VLOOKUP(B273,'Info Sheet'!O:P,2,0)","v":"HI"},6743,6743,null,"Colorado","Hawaii",{"$f":"VLOOKUP(H273,'Info Sheet'!O:P,2,0)","v":"HI"},3239,3239]
["Colorado","Idaho",{"$f":"VLOOKUP(B274,'Info Sheet'!O:P,2,0)","v":"ID"},5077,5077,null,"Colorado","Idaho",{"$f":"VLOOKUP(H274,'Info Sheet'!O:P,2,0)","v":"ID"},4371,4371]
["Colorado","Illinois",{"$f":"VLOOKUP(B275,'Info Sheet'!O:P,2,0)","v":"IL"},19351,19351,null,"Colorado","Illinois",{"$f":"VLOOKUP(H275,'Info Sheet'!O:P,2,0)","v":"IL"},10157,10157]
["Colorado","Indiana",{"$f":"VLOOKUP(B276,'Info Sheet'!O:P,2,0)","v":"IN"},9748,9748,null,"Colorado","Indiana",{"$f":"VLOOKUP(H276,'Info Sheet'!O:P,2,0)","v":"IN"},4517,4517]
["Colorado","Iowa",{"$f":"VLOOKUP(B277,'Info Sheet'!O:P,2,0)","v":"IA"},8426,8426,null,"Colorado","Iowa",{"$f":"VLOOKUP(H277,'Info Sheet'!O:P,2,0)","v":"IA"},8697,8697]
["Colorado","Kansas",{"$f":"VLOOKUP(B278,'Info Sheet'!O:P,2,0)","v":"KS"},13309,13309,null,"Colorado","Kansas",{"$f":"VLOOKUP(H278,'Info Sheet'!O:P,2,0)","v":"KS"},14798,14798]
["Colorado","Kentucky",{"$f":"VLOOKUP(B279,'Info Sheet'!O:P,2,0)","v":"KY"},5822,5822,null,"Colorado","Kentucky",{"$f":"VLOOKUP(H279,'Info Sheet'!O:P,2,0)","v":"KY"},1262,1262]
["Colorado","Louisiana",{"$f":"VLOOKUP(B280,'Info Sheet'!O:P,2,0)","v":"LA"},6924,6924,null,"Colorado","Louisiana",{"$f":"VLOOKUP(H280,'Info Sheet'!O:P,2,0)","v":"LA"},3850,3850]
["Colorado","Maine",{"$f":"VLOOKUP(B281,'Info Sheet'!O:P,2,0)","v":"ME"},1910,1910,null,"Colorado","Maine",{"$f":"VLOOKUP(H281,'Info Sheet'!O:P,2,0)","v":"ME"},1082,1082]
["Colorado","Maryland",{"$f":"VLOOKUP(B282,'Info Sheet'!O:P,2,0)","v":"MD"},7679,7679,null,"Colorado","Maryland",{"$f":"VLOOKUP(H282,'Info Sheet'!O:P,2,0)","v":"MD"},5368,5368]
["Colorado","Massachusetts",{"$f":"VLOOKUP(B283,'Info Sheet'!O:P,2,0)","v":"MA"},10338,10338,null,"Colorado","Massachusetts",{"$f":"VLOOKUP(H283,'Info Sheet'!O:P,2,0)","v":"MA"},3419,3419]
["Colorado","Michigan",{"$f":"VLOOKUP(B284,'Info Sheet'!O:P,2,0)","v":"MI"},11155,11155,null,"Colorado","Michigan",{"$f":"VLOOKUP(H284,'Info Sheet'!O:P,2,0)","v":"MI"},7819,7819]
["Colorado","Minnesota",{"$f":"VLOOKUP(B285,'Info Sheet'!O:P,2,0)","v":"MN"},8925,8925,null,"Colorado","Minnesota",{"$f":"VLOOKUP(H285,'Info Sheet'!O:P,2,0)","v":"MN"},8748,8748]
["Colorado","Mississippi",{"$f":"VLOOKUP(B286,'Info Sheet'!O:P,2,0)","v":"MS"},2991,2991,null,"Colorado","Mississippi",{"$f":"VLOOKUP(H286,'Info Sheet'!O:P,2,0)","v":"MS"},2450,2450]
["Colorado","Missouri",{"$f":"VLOOKUP(B287,'Info Sheet'!O:P,2,0)","v":"MO"},10301,10301,null,"Colorado","Missouri",{"$f":"VLOOKUP(H287,'Info Sheet'!O:P,2,0)","v":"MO"},8845,8845]
["Colorado","Montana",{"$f":"VLOOKUP(B288,'Info Sheet'!O:P,2,0)","v":"MT"},8142,8142,null,"Colorado","Montana",{"$f":"VLOOKUP(H288,'Info Sheet'!O:P,2,0)","v":"MT"},7176,7176]
["Colorado","Nebraska",{"$f":"VLOOKUP(B289,'Info Sheet'!O:P,2,0)","v":"NE"},13119,13119,null,"Colorado","Nebraska",{"$f":"VLOOKUP(H289,'Info Sheet'!O:P,2,0)","v":"NE"},9450,9450]
["Colorado","Nevada",{"$f":"VLOOKUP(B290,'Info Sheet'!O:P,2,0)","v":"NV"},11981,11981,null,"Colorado","Nevada",{"$f":"VLOOKUP(H290,'Info Sheet'!O:P,2,0)","v":"NV"},12051,12051]
["Colorado","New Hampshire",{"$f":"VLOOKUP(B291,'Info Sheet'!O:P,2,0)","v":"NH"},1959,1959,null,"Colorado","New Hampshire",{"$f":"VLOOKUP(H291,'Info Sheet'!O:P,2,0)","v":"NH"},1215,1215]
["Colorado","New Jersey",{"$f":"VLOOKUP(B292,'Info Sheet'!O:P,2,0)","v":"NJ"},6586,6586,null,"Colorado","New Jersey",{"$f":"VLOOKUP(H292,'Info Sheet'!O:P,2,0)","v":"NJ"},3390,3390]
["Colorado","New Mexico",{"$f":"VLOOKUP(B293,'Info Sheet'!O:P,2,0)","v":"NM"},19238,19238,null,"Colorado","New Mexico",{"$f":"VLOOKUP(H293,'Info Sheet'!O:P,2,0)","v":"NM"},13157,13157]
["Colorado","New York",{"$f":"VLOOKUP(B294,'Info Sheet'!O:P,2,0)","v":"NY"},15842,15842,null,"Colorado","New York",{"$f":"VLOOKUP(H294,'Info Sheet'!O:P,2,0)","v":"NY"},10455,10455]
["Colorado","North Carolina",{"$f":"VLOOKUP(B295,'Info Sheet'!O:P,2,0)","v":"NC"},12074,12074,null,"Colorado","North Carolina",{"$f":"VLOOKUP(H295,'Info Sheet'!O:P,2,0)","v":"NC"},10551,10551]
["Colorado","North Dakota",{"$f":"VLOOKUP(B296,'Info Sheet'!O:P,2,0)","v":"ND"},4969,4969,null,"Colorado","North Dakota",{"$f":"VLOOKUP(H296,'Info Sheet'!O:P,2,0)","v":"ND"},2648,2648]
["Colorado","Ohio",{"$f":"VLOOKUP(B297,'Info Sheet'!O:P,2,0)","v":"OH"},12898,12898,null,"Colorado","Ohio",{"$f":"VLOOKUP(H297,'Info Sheet'!O:P,2,0)","v":"OH"},8729,8729]
["Colorado","Oklahoma",{"$f":"VLOOKUP(B298,'Info Sheet'!O:P,2,0)","v":"OK"},11870,11870,null,"Colorado","Oklahoma",{"$f":"VLOOKUP(H298,'Info Sheet'!O:P,2,0)","v":"OK"},11174,11174]
["Colorado","Oregon",{"$f":"VLOOKUP(B299,'Info Sheet'!O:P,2,0)","v":"OR"},12292,12292,null,"Colorado","Oregon",{"$f":"VLOOKUP(H299,'Info Sheet'!O:P,2,0)","v":"OR"},8632,8632]
["Colorado","Pennsylvania",{"$f":"VLOOKUP(B300,'Info Sheet'!O:P,2,0)","v":"PA"},11226,11226,null,"Colorado","Pennsylvania",{"$f":"VLOOKUP(H300,'Info Sheet'!O:P,2,0)","v":"PA"},8722,8722]
["Colorado","Rhode Island",{"$f":"VLOOKUP(B301,'Info Sheet'!O:P,2,0)","v":"RI"},764,764,null,"Colorado","Rhode Island",{"$f":"VLOOKUP(H301,'Info Sheet'!O:P,2,0)","v":"RI"},692,692]
["Colorado","South Carolina",{"$f":"VLOOKUP(B302,'Info Sheet'!O:P,2,0)","v":"SC"},4332,4332,null,"Colorado","South Carolina",{"$f":"VLOOKUP(H302,'Info Sheet'!O:P,2,0)","v":"SC"},4782,4782]
["Colorado","South Dakota",{"$f":"VLOOKUP(B303,'Info Sheet'!O:P,2,0)","v":"SD"},3943,3943,null,"Colorado","South Dakota",{"$f":"VLOOKUP(H303,'Info Sheet'!O:P,2,0)","v":"SD"},3572,3572]
["Colorado","Tennessee",{"$f":"VLOOKUP(B304,'Info Sheet'!O:P,2,0)","v":"TN"},7356,7356,null,"Colorado","Tennessee",{"$f":"VLOOKUP(H304,'Info Sheet'!O:P,2,0)","v":"TN"},5703,5703]
["Colorado","Texas",{"$f":"VLOOKUP(B305,'Info Sheet'!O:P,2,0)","v":"TX"},61998,61998,null,"Colorado","Texas",{"$f":"VLOOKUP(H305,'Info Sheet'!O:P,2,0)","v":"TX"},52103,52103]
["Colorado","Utah",{"$f":"VLOOKUP(B306,'Info Sheet'!O:P,2,0)","v":"UT"},15002,15002,null,"Colorado","Utah",{"$f":"VLOOKUP(H306,'Info Sheet'!O:P,2,0)","v":"UT"},13323,13323]
["Colorado","Vermont",{"$f":"VLOOKUP(B307,'Info Sheet'!O:P,2,0)","v":"VT"},1767,1767,null,"Colorado","Vermont",{"$f":"VLOOKUP(H307,'Info Sheet'!O:P,2,0)","v":"VT"},1237,1237]
["Colorado","Virginia",{"$f":"VLOOKUP(B308,'Info Sheet'!O:P,2,0)","v":"VA"},12816,12816,null,"Colorado","Virginia",{"$f":"VLOOKUP(H308,'Info Sheet'!O:P,2,0)","v":"VA"},13489,13489]
["Colorado","Washington",{"$f":"VLOOKUP(B309,'Info Sheet'!O:P,2,0)","v":"WA"},17960,17960,null,"Colorado","Washington",{"$f":"VLOOKUP(H309,'Info Sheet'!O:P,2,0)","v":"WA"},14016,14016]
["Colorado","West Virginia",{"$f":"VLOOKUP(B310,'Info Sheet'!O:P,2,0)","v":"WV"},1872,1872,null,"Colorado","West Virginia",{"$f":"VLOOKUP(H310,'Info Sheet'!O:P,2,0)","v":"WV"},836,836]
["Colorado","Wisconsin",{"$f":"VLOOKUP(B311,'Info Sheet'!O:P,2,0)","v":"WI"},9494,9494,null,"Colorado","Wisconsin",{"$f":"VLOOKUP(H311,'Info Sheet'!O:P,2,0)","v":"WI"},6082,6082]
["Colorado","Wyoming",{"$f":"VLOOKUP(B312,'Info Sheet'!O:P,2,0)","v":"WY"},12962,12962,null,"Colorado","Wyoming",{"$f":"VLOOKUP(H312,'Info Sheet'!O:P,2,0)","v":"WY"},16894,16894]
["Colorado","Puerto Rico",{"$f":"VLOOKUP(B313,'Info Sheet'!O:P,2,0)","v":"PR"},2494,2494,null,"Colorado","Puerto Rico",{"$f":"VLOOKUP(H313,'Info Sheet'!O:P,2,0)","v":"PR"},388,388]
["Connecticut","Alabama",{"$f":"VLOOKUP(B314,'Info Sheet'!O:P,2,0)","v":"AL"},1043,1043,null,"Connecticut","Alabama",{"$f":"VLOOKUP(H314,'Info Sheet'!O:P,2,0)","v":"AL"},3659,3659]
["Connecticut","Alaska",{"$f":"VLOOKUP(B315,'Info Sheet'!O:P,2,0)","v":"AK"},619,619,null,"Connecticut","Alaska",{"$f":"VLOOKUP(H315,'Info Sheet'!O:P,2,0)","v":"AK"},138,138]
["Connecticut","Arizona",{"$f":"VLOOKUP(B316,'Info Sheet'!O:P,2,0)","v":"AZ"},5218,5218,null,"Connecticut","Arizona",{"$f":"VLOOKUP(H316,'Info Sheet'!O:P,2,0)","v":"AZ"},2771,2771]
["Connecticut","Arkansas",{"$f":"VLOOKUP(B317,'Info Sheet'!O:P,2,0)","v":"AR"},618,618,null,"Connecticut","Arkansas",{"$f":"VLOOKUP(H317,'Info Sheet'!O:P,2,0)","v":"AR"},1155,1155]
["Connecticut","California",{"$f":"VLOOKUP(B318,'Info Sheet'!O:P,2,0)","v":"CA"},11339,11339,null,"Connecticut","California",{"$f":"VLOOKUP(H318,'Info Sheet'!O:P,2,0)","v":"CA"},14468,14468]
["Connecticut","Colorado",{"$f":"VLOOKUP(B319,'Info Sheet'!O:P,2,0)","v":"CO"},2416,2416,null,"Connecticut","Colorado",{"$f":"VLOOKUP(H319,'Info Sheet'!O:P,2,0)","v":"CO"},3343,3343]
["Connecticut","Connecticut",{"$f":"VLOOKUP(B320,'Info Sheet'!O:P,2,0)","v":"CT"},0,0,null,"Connecticut","Connecticut",{"$f":"VLOOKUP(H320,'Info Sheet'!O:P,2,0)","v":"CT"},0,0]
["Connecticut","Delaware",{"$f":"VLOOKUP(B321,'Info Sheet'!O:P,2,0)","v":"DE"},233,233,null,"Connecticut","Delaware",{"$f":"VLOOKUP(H321,'Info Sheet'!O:P,2,0)","v":"DE"},2269,2269]
["Connecticut","District of Columbia",{"$f":"VLOOKUP(B322,'Info Sheet'!O:P,2,0)","v":"DC"},1226,1226,null,"Connecticut","District of Columbia",{"$f":"VLOOKUP(H322,'Info Sheet'!O:P,2,0)","v":"DC"},2525,2525]
["Connecticut","Florida",{"$f":"VLOOKUP(B323,'Info Sheet'!O:P,2,0)","v":"FL"},20556,20556,null,"Connecticut","Florida",{"$f":"VLOOKUP(H323,'Info Sheet'!O:P,2,0)","v":"FL"},31862,31862]
["Connecticut","Georgia",{"$f":"VLOOKUP(B324,'Info Sheet'!O:P,2,0)","v":"GA"},4450,4450,null,"Connecticut","Georgia",{"$f":"VLOOKUP(H324,'Info Sheet'!O:P,2,0)","v":"GA"},5157,5157]
["Connecticut","Hawaii",{"$f":"VLOOKUP(B325,'Info Sheet'!O:P,2,0)","v":"HI"},1177,1177,null,"Connecticut","Hawaii",{"$f":"VLOOKUP(H325,'Info Sheet'!O:P,2,0)","v":"HI"},1229,1229]
["Connecticut","Idaho",{"$f":"VLOOKUP(B326,'Info Sheet'!O:P,2,0)","v":"ID"},377,377,null,"Connecticut","Idaho",{"$f":"VLOOKUP(H326,'Info Sheet'!O:P,2,0)","v":"ID"},44,44]
["Connecticut","Illinois",{"$f":"VLOOKUP(B327,'Info Sheet'!O:P,2,0)","v":"IL"},6146,6146,null,"Connecticut","Illinois",{"$f":"VLOOKUP(H327,'Info Sheet'!O:P,2,0)","v":"IL"},5038,5038]
["Connecticut","Indiana",{"$f":"VLOOKUP(B328,'Info Sheet'!O:P,2,0)","v":"IN"},1295,1295,null,"Connecticut","Indiana",{"$f":"VLOOKUP(H328,'Info Sheet'!O:P,2,0)","v":"IN"},2594,2594]
["Connecticut","Iowa",{"$f":"VLOOKUP(B329,'Info Sheet'!O:P,2,0)","v":"IA"},175,175,null,"Connecticut","Iowa",{"$f":"VLOOKUP(H329,'Info Sheet'!O:P,2,0)","v":"IA"},650,650]
["Connecticut","Kansas",{"$f":"VLOOKUP(B330,'Info Sheet'!O:P,2,0)","v":"KS"},16,16,null,"Connecticut","Kansas",{"$f":"VLOOKUP(H330,'Info Sheet'!O:P,2,0)","v":"KS"},707,707]
["Connecticut","Kentucky",{"$f":"VLOOKUP(B331,'Info Sheet'!O:P,2,0)","v":"KY"},524,524,null,"Connecticut","Kentucky",{"$f":"VLOOKUP(H331,'Info Sheet'!O:P,2,0)","v":"KY"},1120,1120]
["Connecticut","Louisiana",{"$f":"VLOOKUP(B332,'Info Sheet'!O:P,2,0)","v":"LA"},1224,1224,null,"Connecticut","Louisiana",{"$f":"VLOOKUP(H332,'Info Sheet'!O:P,2,0)","v":"LA"},611,611]
["Connecticut","Maine",{"$f":"VLOOKUP(B333,'Info Sheet'!O:P,2,0)","v":"ME"},2011,2011,null,"Connecticut","Maine",{"$f":"VLOOKUP(H333,'Info Sheet'!O:P,2,0)","v":"ME"},5310,5310]
["Connecticut","Maryland",{"$f":"VLOOKUP(B334,'Info Sheet'!O:P,2,0)","v":"MD"},4550,4550,null,"Connecticut","Maryland",{"$f":"VLOOKUP(H334,'Info Sheet'!O:P,2,0)","v":"MD"},4092,4092]
["Connecticut","Massachusetts",{"$f":"VLOOKUP(B335,'Info Sheet'!O:P,2,0)","v":"MA"},25944,25944,null,"Connecticut","Massachusetts",{"$f":"VLOOKUP(H335,'Info Sheet'!O:P,2,0)","v":"MA"},33240,33240]
["Connecticut","Michigan",{"$f":"VLOOKUP(B336,'Info Sheet'!O:P,2,0)","v":"MI"},2215,2215,null,"Connecticut","Michigan",{"$f":"VLOOKUP(H336,'Info Sheet'!O:P,2,0)","v":"MI"},2731,2731]
["Connecticut","Minnesota",{"$f":"VLOOKUP(B337,'Info Sheet'!O:P,2,0)","v":"MN"},1615,1615,null,"Connecticut","Minnesota",{"$f":"VLOOKUP(H337,'Info Sheet'!O:P,2,0)","v":"MN"},981,981]
["Connecticut","Mississippi",{"$f":"VLOOKUP(B338,'Info Sheet'!O:P,2,0)","v":"MS"},412,412,null,"Connecticut","Mississippi",{"$f":"VLOOKUP(H338,'Info Sheet'!O:P,2,0)","v":"MS"},231,231]
["Connecticut","Missouri",{"$f":"VLOOKUP(B339,'Info Sheet'!O:P,2,0)","v":"MO"},765,765,null,"Connecticut","Missouri",{"$f":"VLOOKUP(H339,'Info Sheet'!O:P,2,0)","v":"MO"},2169,2169]
["Connecticut","Montana",{"$f":"VLOOKUP(B340,'Info Sheet'!O:P,2,0)","v":"MT"},256,256,null,"Connecticut","Montana",{"$f":"VLOOKUP(H340,'Info Sheet'!O:P,2,0)","v":"MT"},186,186]
["Connecticut","Nebraska",{"$f":"VLOOKUP(B341,'Info Sheet'!O:P,2,0)","v":"NE"},107,107,null,"Connecticut","Nebraska",{"$f":"VLOOKUP(H341,'Info Sheet'!O:P,2,0)","v":"NE"},742,742]
["Connecticut","Nevada",{"$f":"VLOOKUP(B342,'Info Sheet'!O:P,2,0)","v":"NV"},839,839,null,"Connecticut","Nevada",{"$f":"VLOOKUP(H342,'Info Sheet'!O:P,2,0)","v":"NV"},980,980]
["Connecticut","New Hampshire",{"$f":"VLOOKUP(B343,'Info Sheet'!O:P,2,0)","v":"NH"},3279,3279,null,"Connecticut","New Hampshire",{"$f":"VLOOKUP(H343,'Info Sheet'!O:P,2,0)","v":"NH"},6096,6096]
["Connecticut","New Jersey",{"$f":"VLOOKUP(B344,'Info Sheet'!O:P,2,0)","v":"NJ"},12949,12949,null,"Connecticut","New Jersey",{"$f":"VLOOKUP(H344,'Info Sheet'!O:P,2,0)","v":"NJ"},7893,7893]
["Connecticut","New Mexico",{"$f":"VLOOKUP(B345,'Info Sheet'!O:P,2,0)","v":"NM"},821,821,null,"Connecticut","New Mexico",{"$f":"VLOOKUP(H345,'Info Sheet'!O:P,2,0)","v":"NM"},305,305]
["Connecticut","New York",{"$f":"VLOOKUP(B346,'Info Sheet'!O:P,2,0)","v":"NY"},64052,64052,null,"Connecticut","New York",{"$f":"VLOOKUP(H346,'Info Sheet'!O:P,2,0)","v":"NY"},45056,45056]
["Connecticut","North Carolina",{"$f":"VLOOKUP(B347,'Info Sheet'!O:P,2,0)","v":"NC"},5753,5753,null,"Connecticut","North Carolina",{"$f":"VLOOKUP(H347,'Info Sheet'!O:P,2,0)","v":"NC"},10641,10641]
["Connecticut","North Dakota",{"$f":"VLOOKUP(B348,'Info Sheet'!O:P,2,0)","v":"ND"},0,0,null,"Connecticut","North Dakota",{"$f":"VLOOKUP(H348,'Info Sheet'!O:P,2,0)","v":"ND"},95,95]
["Connecticut","Ohio",{"$f":"VLOOKUP(B349,'Info Sheet'!O:P,2,0)","v":"OH"},2966,2966,null,"Connecticut","Ohio",{"$f":"VLOOKUP(H349,'Info Sheet'!O:P,2,0)","v":"OH"},3851,3851]
["Connecticut","Oklahoma",{"$f":"VLOOKUP(B350,'Info Sheet'!O:P,2,0)","v":"OK"},777,777,null,"Connecticut","Oklahoma",{"$f":"VLOOKUP(H350,'Info Sheet'!O:P,2,0)","v":"OK"},165,165]
["Connecticut","Oregon",{"$f":"VLOOKUP(B351,'Info Sheet'!O:P,2,0)","v":"OR"},792,792,null,"Connecticut","Oregon",{"$f":"VLOOKUP(H351,'Info Sheet'!O:P,2,0)","v":"OR"},1600,1600]
["Connecticut","Pennsylvania",{"$f":"VLOOKUP(B352,'Info Sheet'!O:P,2,0)","v":"PA"},7837,7837,null,"Connecticut","Pennsylvania",{"$f":"VLOOKUP(H352,'Info Sheet'!O:P,2,0)","v":"PA"},11468,11468]
["Connecticut","Rhode Island",{"$f":"VLOOKUP(B353,'Info Sheet'!O:P,2,0)","v":"RI"},4774,4774,null,"Connecticut","Rhode Island",{"$f":"VLOOKUP(H353,'Info Sheet'!O:P,2,0)","v":"RI"},10873,10873]
["Connecticut","South Carolina",{"$f":"VLOOKUP(B354,'Info Sheet'!O:P,2,0)","v":"SC"},3077,3077,null,"Connecticut","South Carolina",{"$f":"VLOOKUP(H354,'Info Sheet'!O:P,2,0)","v":"SC"},7340,7340]
["Connecticut","South Dakota",{"$f":"VLOOKUP(B355,'Info Sheet'!O:P,2,0)","v":"SD"},0,0,null,"Connecticut","South Dakota",{"$f":"VLOOKUP(H355,'Info Sheet'!O:P,2,0)","v":"SD"},2,2]
["Connecticut","Tennessee",{"$f":"VLOOKUP(B356,'Info Sheet'!O:P,2,0)","v":"TN"},813,813,null,"Connecticut","Tennessee",{"$f":"VLOOKUP(H356,'Info Sheet'!O:P,2,0)","v":"TN"},1851,1851]
["Connecticut","Texas",{"$f":"VLOOKUP(B357,'Info Sheet'!O:P,2,0)","v":"TX"},6380,6380,null,"Connecticut","Texas",{"$f":"VLOOKUP(H357,'Info Sheet'!O:P,2,0)","v":"TX"},6620,6620]
["Connecticut","Utah",{"$f":"VLOOKUP(B358,'Info Sheet'!O:P,2,0)","v":"UT"},443,443,null,"Connecticut","Utah",{"$f":"VLOOKUP(H358,'Info Sheet'!O:P,2,0)","v":"UT"},823,823]
["Connecticut","Vermont",{"$f":"VLOOKUP(B359,'Info Sheet'!O:P,2,0)","v":"VT"},1775,1775,null,"Connecticut","Vermont",{"$f":"VLOOKUP(H359,'Info Sheet'!O:P,2,0)","v":"VT"},5018,5018]
["Connecticut","Virginia",{"$f":"VLOOKUP(B360,'Info Sheet'!O:P,2,0)","v":"VA"},6019,6019,null,"Connecticut","Virginia",{"$f":"VLOOKUP(H360,'Info Sheet'!O:P,2,0)","v":"VA"},10569,10569]
["Connecticut","Washington",{"$f":"VLOOKUP(B361,'Info Sheet'!O:P,2,0)","v":"WA"},5932,5932,null,"Connecticut","Washington",{"$f":"VLOOKUP(H361,'Info Sheet'!O:P,2,0)","v":"WA"},4569,4569]
["Connecticut","West Virginia",{"$f":"VLOOKUP(B362,'Info Sheet'!O:P,2,0)","v":"WV"},662,662,null,"Connecticut","West Virginia",{"$f":"VLOOKUP(H362,'Info Sheet'!O:P,2,0)","v":"WV"},821,821]
["Connecticut","Wisconsin",{"$f":"VLOOKUP(B363,'Info Sheet'!O:P,2,0)","v":"WI"},2463,2463,null,"Connecticut","Wisconsin",{"$f":"VLOOKUP(H363,'Info Sheet'!O:P,2,0)","v":"WI"},2009,2009]
["Connecticut","Wyoming",{"$f":"VLOOKUP(B364,'Info Sheet'!O:P,2,0)","v":"WY"},216,216,null,"Connecticut","Wyoming",{"$f":"VLOOKUP(H364,'Info Sheet'!O:P,2,0)","v":"WY"},11,11]
["Connecticut","Puerto Rico",{"$f":"VLOOKUP(B365,'Info Sheet'!O:P,2,0)","v":"PR"},7360,7360,null,"Connecticut","Puerto Rico",{"$f":"VLOOKUP(H365,'Info Sheet'!O:P,2,0)","v":"PR"},3118,3118]
["Delaware","Alabama",{"$f":"VLOOKUP(B366,'Info Sheet'!O:P,2,0)","v":"AL"},328,328,null,"Delaware","Alabama",{"$f":"VLOOKUP(H366,'Info Sheet'!O:P,2,0)","v":"AL"},1085,1085]
["Delaware","Alaska",{"$f":"VLOOKUP(B367,'Info Sheet'!O:P,2,0)","v":"AK"},1089,1089,null,"Delaware","Alaska",{"$f":"VLOOKUP(H367,'Info Sheet'!O:P,2,0)","v":"AK"},11,11]
["Delaware","Arizona",{"$f":"VLOOKUP(B368,'Info Sheet'!O:P,2,0)","v":"AZ"},789,789,null,"Delaware","Arizona",{"$f":"VLOOKUP(H368,'Info Sheet'!O:P,2,0)","v":"AZ"},984,984]
["Delaware","Arkansas",{"$f":"VLOOKUP(B369,'Info Sheet'!O:P,2,0)","v":"AR"},0,0,null,"Delaware","Arkansas",{"$f":"VLOOKUP(H369,'Info Sheet'!O:P,2,0)","v":"AR"},79,79]
["Delaware","California",{"$f":"VLOOKUP(B370,'Info Sheet'!O:P,2,0)","v":"CA"},3273,3273,null,"Delaware","California",{"$f":"VLOOKUP(H370,'Info Sheet'!O:P,2,0)","v":"CA"},2419,2419]
["Delaware","Colorado",{"$f":"VLOOKUP(B371,'Info Sheet'!O:P,2,0)","v":"CO"},347,347,null,"Delaware","Colorado",{"$f":"VLOOKUP(H371,'Info Sheet'!O:P,2,0)","v":"CO"},1057,1057]
["Delaware","Connecticut",{"$f":"VLOOKUP(B372,'Info Sheet'!O:P,2,0)","v":"CT"},2269,2269,null,"Delaware","Connecticut",{"$f":"VLOOKUP(H372,'Info Sheet'!O:P,2,0)","v":"CT"},233,233]
["Delaware","Delaware",{"$f":"VLOOKUP(B373,'Info Sheet'!O:P,2,0)","v":"DE"},0,0,null,"Delaware","Delaware",{"$f":"VLOOKUP(H373,'Info Sheet'!O:P,2,0)","v":"DE"},0,0]
["Delaware","District of Columbia",{"$f":"VLOOKUP(B374,'Info Sheet'!O:P,2,0)","v":"DC"},597,597,null,"Delaware","District of Columbia",{"$f":"VLOOKUP(H374,'Info Sheet'!O:P,2,0)","v":"DC"},206,206]
["Delaware","Florida",{"$f":"VLOOKUP(B375,'Info Sheet'!O:P,2,0)","v":"FL"},3887,3887,null,"Delaware","Florida",{"$f":"VLOOKUP(H375,'Info Sheet'!O:P,2,0)","v":"FL"},5462,5462]
["Delaware","Georgia",{"$f":"VLOOKUP(B376,'Info Sheet'!O:P,2,0)","v":"GA"},1403,1403,null,"Delaware","Georgia",{"$f":"VLOOKUP(H376,'Info Sheet'!O:P,2,0)","v":"GA"},1682,1682]
["Delaware","Hawaii",{"$f":"VLOOKUP(B377,'Info Sheet'!O:P,2,0)","v":"HI"},201,201,null,"Delaware","Hawaii",{"$f":"VLOOKUP(H377,'Info Sheet'!O:P,2,0)","v":"HI"},1062,1062]
["Delaware","Idaho",{"$f":"VLOOKUP(B378,'Info Sheet'!O:P,2,0)","v":"ID"},473,473,null,"Delaware","Idaho",{"$f":"VLOOKUP(H378,'Info Sheet'!O:P,2,0)","v":"ID"},120,120]
["Delaware","Illinois",{"$f":"VLOOKUP(B379,'Info Sheet'!O:P,2,0)","v":"IL"},1213,1213,null,"Delaware","Illinois",{"$f":"VLOOKUP(H379,'Info Sheet'!O:P,2,0)","v":"IL"},567,567]
["Delaware","Indiana",{"$f":"VLOOKUP(B380,'Info Sheet'!O:P,2,0)","v":"IN"},272,272,null,"Delaware","Indiana",{"$f":"VLOOKUP(H380,'Info Sheet'!O:P,2,0)","v":"IN"},718,718]
["Delaware","Iowa",{"$f":"VLOOKUP(B381,'Info Sheet'!O:P,2,0)","v":"IA"},30,30,null,"Delaware","Iowa",{"$f":"VLOOKUP(H381,'Info Sheet'!O:P,2,0)","v":"IA"},0,0]
["Delaware","Kansas",{"$f":"VLOOKUP(B382,'Info Sheet'!O:P,2,0)","v":"KS"},148,148,null,"Delaware","Kansas",{"$f":"VLOOKUP(H382,'Info Sheet'!O:P,2,0)","v":"KS"},312,312]
["Delaware","Kentucky",{"$f":"VLOOKUP(B383,'Info Sheet'!O:P,2,0)","v":"KY"},468,468,null,"Delaware","Kentucky",{"$f":"VLOOKUP(H383,'Info Sheet'!O:P,2,0)","v":"KY"},744,744]
["Delaware","Louisiana",{"$f":"VLOOKUP(B384,'Info Sheet'!O:P,2,0)","v":"LA"},178,178,null,"Delaware","Louisiana",{"$f":"VLOOKUP(H384,'Info Sheet'!O:P,2,0)","v":"LA"},0,0]
["Delaware","Maine",{"$f":"VLOOKUP(B385,'Info Sheet'!O:P,2,0)","v":"ME"},294,294,null,"Delaware","Maine",{"$f":"VLOOKUP(H385,'Info Sheet'!O:P,2,0)","v":"ME"},646,646]
["Delaware","Maryland",{"$f":"VLOOKUP(B386,'Info Sheet'!O:P,2,0)","v":"MD"},14856,14856,null,"Delaware","Maryland",{"$f":"VLOOKUP(H386,'Info Sheet'!O:P,2,0)","v":"MD"},19092,19092]
["Delaware","Massachusetts",{"$f":"VLOOKUP(B387,'Info Sheet'!O:P,2,0)","v":"MA"},1652,1652,null,"Delaware","Massachusetts",{"$f":"VLOOKUP(H387,'Info Sheet'!O:P,2,0)","v":"MA"},1036,1036]
["Delaware","Michigan",{"$f":"VLOOKUP(B388,'Info Sheet'!O:P,2,0)","v":"MI"},331,331,null,"Delaware","Michigan",{"$f":"VLOOKUP(H388,'Info Sheet'!O:P,2,0)","v":"MI"},281,281]
["Delaware","Minnesota",{"$f":"VLOOKUP(B389,'Info Sheet'!O:P,2,0)","v":"MN"},607,607,null,"Delaware","Minnesota",{"$f":"VLOOKUP(H389,'Info Sheet'!O:P,2,0)","v":"MN"},262,262]
["Delaware","Mississippi",{"$f":"VLOOKUP(B390,'Info Sheet'!O:P,2,0)","v":"MS"},58,58,null,"Delaware","Mississippi",{"$f":"VLOOKUP(H390,'Info Sheet'!O:P,2,0)","v":"MS"},0,0]
["Delaware","Missouri",{"$f":"VLOOKUP(B391,'Info Sheet'!O:P,2,0)","v":"MO"},1332,1332,null,"Delaware","Missouri",{"$f":"VLOOKUP(H391,'Info Sheet'!O:P,2,0)","v":"MO"},548,548]
["Delaware","Montana",{"$f":"VLOOKUP(B392,'Info Sheet'!O:P,2,0)","v":"MT"},73,73,null,"Delaware","Montana",{"$f":"VLOOKUP(H392,'Info Sheet'!O:P,2,0)","v":"MT"},436,436]
["Delaware","Nebraska",{"$f":"VLOOKUP(B393,'Info Sheet'!O:P,2,0)","v":"NE"},103,103,null,"Delaware","Nebraska",{"$f":"VLOOKUP(H393,'Info Sheet'!O:P,2,0)","v":"NE"},177,177]
["Delaware","Nevada",{"$f":"VLOOKUP(B394,'Info Sheet'!O:P,2,0)","v":"NV"},678,678,null,"Delaware","Nevada",{"$f":"VLOOKUP(H394,'Info Sheet'!O:P,2,0)","v":"NV"},557,557]
["Delaware","New Hampshire",{"$f":"VLOOKUP(B395,'Info Sheet'!O:P,2,0)","v":"NH"},238,238,null,"Delaware","New Hampshire",{"$f":"VLOOKUP(H395,'Info Sheet'!O:P,2,0)","v":"NH"},20,20]
["Delaware","New Jersey",{"$f":"VLOOKUP(B396,'Info Sheet'!O:P,2,0)","v":"NJ"},15821,15821,null,"Delaware","New Jersey",{"$f":"VLOOKUP(H396,'Info Sheet'!O:P,2,0)","v":"NJ"},5564,5564]
["Delaware","New Mexico",{"$f":"VLOOKUP(B397,'Info Sheet'!O:P,2,0)","v":"NM"},144,144,null,"Delaware","New Mexico",{"$f":"VLOOKUP(H397,'Info Sheet'!O:P,2,0)","v":"NM"},491,491]
["Delaware","New York",{"$f":"VLOOKUP(B398,'Info Sheet'!O:P,2,0)","v":"NY"},10958,10958,null,"Delaware","New York",{"$f":"VLOOKUP(H398,'Info Sheet'!O:P,2,0)","v":"NY"},4204,4204]
["Delaware","North Carolina",{"$f":"VLOOKUP(B399,'Info Sheet'!O:P,2,0)","v":"NC"},2161,2161,null,"Delaware","North Carolina",{"$f":"VLOOKUP(H399,'Info Sheet'!O:P,2,0)","v":"NC"},3613,3613]
["Delaware","North Dakota",{"$f":"VLOOKUP(B400,'Info Sheet'!O:P,2,0)","v":"ND"},0,0,null,"Delaware","North Dakota",{"$f":"VLOOKUP(H400,'Info Sheet'!O:P,2,0)","v":"ND"},84,84]
["Delaware","Ohio",{"$f":"VLOOKUP(B401,'Info Sheet'!O:P,2,0)","v":"OH"},1180,1180,null,"Delaware","Ohio",{"$f":"VLOOKUP(H401,'Info Sheet'!O:P,2,0)","v":"OH"},1357,1357]
["Delaware","Oklahoma",{"$f":"VLOOKUP(B402,'Info Sheet'!O:P,2,0)","v":"OK"},27,27,null,"Delaware","Oklahoma",{"$f":"VLOOKUP(H402,'Info Sheet'!O:P,2,0)","v":"OK"},555,555]
["Delaware","Oregon",{"$f":"VLOOKUP(B403,'Info Sheet'!O:P,2,0)","v":"OR"},0,0,null,"Delaware","Oregon",{"$f":"VLOOKUP(H403,'Info Sheet'!O:P,2,0)","v":"OR"},251,251]
["Delaware","Pennsylvania",{"$f":"VLOOKUP(B404,'Info Sheet'!O:P,2,0)","v":"PA"},22717,22717,null,"Delaware","Pennsylvania",{"$f":"VLOOKUP(H404,'Info Sheet'!O:P,2,0)","v":"PA"},14599,14599]
["Delaware","Rhode Island",{"$f":"VLOOKUP(B405,'Info Sheet'!O:P,2,0)","v":"RI"},415,415,null,"Delaware","Rhode Island",{"$f":"VLOOKUP(H405,'Info Sheet'!O:P,2,0)","v":"RI"},0,0]
["Delaware","South Carolina",{"$f":"VLOOKUP(B406,'Info Sheet'!O:P,2,0)","v":"SC"},646,646,null,"Delaware","South Carolina",{"$f":"VLOOKUP(H406,'Info Sheet'!O:P,2,0)","v":"SC"},1787,1787]
["Delaware","South Dakota",{"$f":"VLOOKUP(B407,'Info Sheet'!O:P,2,0)","v":"SD"},0,0,null,"Delaware","South Dakota",{"$f":"VLOOKUP(H407,'Info Sheet'!O:P,2,0)","v":"SD"},0,0]
["Delaware","Tennessee",{"$f":"VLOOKUP(B408,'Info Sheet'!O:P,2,0)","v":"TN"},711,711,null,"Delaware","Tennessee",{"$f":"VLOOKUP(H408,'Info Sheet'!O:P,2,0)","v":"TN"},579,579]
["Delaware","Texas",{"$f":"VLOOKUP(B409,'Info Sheet'!O:P,2,0)","v":"TX"},1194,1194,null,"Delaware","Texas",{"$f":"VLOOKUP(H409,'Info Sheet'!O:P,2,0)","v":"TX"},1769,1769]
["Delaware","Utah",{"$f":"VLOOKUP(B410,'Info Sheet'!O:P,2,0)","v":"UT"},641,641,null,"Delaware","Utah",{"$f":"VLOOKUP(H410,'Info Sheet'!O:P,2,0)","v":"UT"},0,0]
["Delaware","Vermont",{"$f":"VLOOKUP(B411,'Info Sheet'!O:P,2,0)","v":"VT"},0,0,null,"Delaware","Vermont",{"$f":"VLOOKUP(H411,'Info Sheet'!O:P,2,0)","v":"VT"},194,194]
["Delaware","Virginia",{"$f":"VLOOKUP(B412,'Info Sheet'!O:P,2,0)","v":"VA"},3861,3861,null,"Delaware","Virginia",{"$f":"VLOOKUP(H412,'Info Sheet'!O:P,2,0)","v":"VA"},4505,4505]
["Delaware","Washington",{"$f":"VLOOKUP(B413,'Info Sheet'!O:P,2,0)","v":"WA"},888,888,null,"Delaware","Washington",{"$f":"VLOOKUP(H413,'Info Sheet'!O:P,2,0)","v":"WA"},302,302]
["Delaware","West Virginia",{"$f":"VLOOKUP(B414,'Info Sheet'!O:P,2,0)","v":"WV"},359,359,null,"Delaware","West Virginia",{"$f":"VLOOKUP(H414,'Info Sheet'!O:P,2,0)","v":"WV"},1319,1319]
["Delaware","Wisconsin",{"$f":"VLOOKUP(B415,'Info Sheet'!O:P,2,0)","v":"WI"},55,55,null,"Delaware","Wisconsin",{"$f":"VLOOKUP(H415,'Info Sheet'!O:P,2,0)","v":"WI"},866,866]
["Delaware","Wyoming",{"$f":"VLOOKUP(B416,'Info Sheet'!O:P,2,0)","v":"WY"},463,463,null,"Delaware","Wyoming",{"$f":"VLOOKUP(H416,'Info Sheet'!O:P,2,0)","v":"WY"},0,0]
["Delaware","Puerto Rico",{"$f":"VLOOKUP(B417,'Info Sheet'!O:P,2,0)","v":"PR"},2018,2018,null,"Delaware","Puerto Rico",{"$f":"VLOOKUP(H417,'Info Sheet'!O:P,2,0)","v":"PR"},13,13]
["District of Columbia","Alabama",{"$f":"VLOOKUP(B418,'Info Sheet'!O:P,2,0)","v":"AL"},452,452,null,"District of Columbia","Alabama",{"$f":"VLOOKUP(H418,'Info Sheet'!O:P,2,0)","v":"AL"},772,772]
["District of Columbia","Alaska",{"$f":"VLOOKUP(B419,'Info Sheet'!O:P,2,0)","v":"AK"},1973,1973,null,"District of Columbia","Alaska",{"$f":"VLOOKUP(H419,'Info Sheet'!O:P,2,0)","v":"AK"},510,510]
["District of Columbia","Arizona",{"$f":"VLOOKUP(B420,'Info Sheet'!O:P,2,0)","v":"AZ"},1607,1607,null,"District of Columbia","Arizona",{"$f":"VLOOKUP(H420,'Info Sheet'!O:P,2,0)","v":"AZ"},425,425]
["District of Columbia","Arkansas",{"$f":"VLOOKUP(B421,'Info Sheet'!O:P,2,0)","v":"AR"},271,271,null,"District of Columbia","Arkansas",{"$f":"VLOOKUP(H421,'Info Sheet'!O:P,2,0)","v":"AR"},359,359]
["District of Columbia","California",{"$f":"VLOOKUP(B422,'Info Sheet'!O:P,2,0)","v":"CA"},13001,13001,null,"District of Columbia","California",{"$f":"VLOOKUP(H422,'Info Sheet'!O:P,2,0)","v":"CA"},10122,10122]
["District of Columbia","Colorado",{"$f":"VLOOKUP(B423,'Info Sheet'!O:P,2,0)","v":"CO"},1785,1785,null,"District of Columbia","Colorado",{"$f":"VLOOKUP(H423,'Info Sheet'!O:P,2,0)","v":"CO"},1265,1265]
["District of Columbia","Connecticut",{"$f":"VLOOKUP(B424,'Info Sheet'!O:P,2,0)","v":"CT"},2525,2525,null,"District of Columbia","Connecticut",{"$f":"VLOOKUP(H424,'Info Sheet'!O:P,2,0)","v":"CT"},1226,1226]
["District of Columbia","Delaware",{"$f":"VLOOKUP(B425,'Info Sheet'!O:P,2,0)","v":"DE"},206,206,null,"District of Columbia","Delaware",{"$f":"VLOOKUP(H425,'Info Sheet'!O:P,2,0)","v":"DE"},597,597]
["District of Columbia","District of Columbia",{"$f":"VLOOKUP(B426,'Info Sheet'!O:P,2,0)","v":"DC"},0,0,null,"District of Columbia","District of Columbia",{"$f":"VLOOKUP(H426,'Info Sheet'!O:P,2,0)","v":"DC"},0,0]
["District of Columbia","Florida",{"$f":"VLOOKUP(B427,'Info Sheet'!O:P,2,0)","v":"FL"},4059,4059,null,"District of Columbia","Florida",{"$f":"VLOOKUP(H427,'Info Sheet'!O:P,2,0)","v":"FL"},2781,2781]
["District of Columbia","Georgia",{"$f":"VLOOKUP(B428,'Info Sheet'!O:P,2,0)","v":"GA"},3613,3613,null,"District of Columbia","Georgia",{"$f":"VLOOKUP(H428,'Info Sheet'!O:P,2,0)","v":"GA"},3424,3424]
["District of Columbia","Hawaii",{"$f":"VLOOKUP(B429,'Info Sheet'!O:P,2,0)","v":"HI"},410,410,null,"District of Columbia","Hawaii",{"$f":"VLOOKUP(H429,'Info Sheet'!O:P,2,0)","v":"HI"},452,452]
["District of Columbia","Idaho",{"$f":"VLOOKUP(B430,'Info Sheet'!O:P,2,0)","v":"ID"},114,114,null,"District of Columbia","Idaho",{"$f":"VLOOKUP(H430,'Info Sheet'!O:P,2,0)","v":"ID"},260,260]
["District of Columbia","Illinois",{"$f":"VLOOKUP(B431,'Info Sheet'!O:P,2,0)","v":"IL"},2807,2807,null,"District of Columbia","Illinois",{"$f":"VLOOKUP(H431,'Info Sheet'!O:P,2,0)","v":"IL"},3553,3553]
["District of Columbia","Indiana",{"$f":"VLOOKUP(B432,'Info Sheet'!O:P,2,0)","v":"IN"},1308,1308,null,"District of Columbia","Indiana",{"$f":"VLOOKUP(H432,'Info Sheet'!O:P,2,0)","v":"IN"},1226,1226]
["District of Columbia","Iowa",{"$f":"VLOOKUP(B433,'Info Sheet'!O:P,2,0)","v":"IA"},766,766,null,"District of Columbia","Iowa",{"$f":"VLOOKUP(H433,'Info Sheet'!O:P,2,0)","v":"IA"},204,204]
["District of Columbia","Kansas",{"$f":"VLOOKUP(B434,'Info Sheet'!O:P,2,0)","v":"KS"},253,253,null,"District of Columbia","Kansas",{"$f":"VLOOKUP(H434,'Info Sheet'!O:P,2,0)","v":"KS"},584,584]
["District of Columbia","Kentucky",{"$f":"VLOOKUP(B435,'Info Sheet'!O:P,2,0)","v":"KY"},503,503,null,"District of Columbia","Kentucky",{"$f":"VLOOKUP(H435,'Info Sheet'!O:P,2,0)","v":"KY"},602,602]
["District of Columbia","Louisiana",{"$f":"VLOOKUP(B436,'Info Sheet'!O:P,2,0)","v":"LA"},283,283,null,"District of Columbia","Louisiana",{"$f":"VLOOKUP(H436,'Info Sheet'!O:P,2,0)","v":"LA"},1055,1055]
["District of Columbia","Maine",{"$f":"VLOOKUP(B437,'Info Sheet'!O:P,2,0)","v":"ME"},270,270,null,"District of Columbia","Maine",{"$f":"VLOOKUP(H437,'Info Sheet'!O:P,2,0)","v":"ME"},326,326]
["District of Columbia","Maryland",{"$f":"VLOOKUP(B438,'Info Sheet'!O:P,2,0)","v":"MD"},41752,41752,null,"District of Columbia","Maryland",{"$f":"VLOOKUP(H438,'Info Sheet'!O:P,2,0)","v":"MD"},62907,62907]
["District of Columbia","Massachusetts",{"$f":"VLOOKUP(B439,'Info Sheet'!O:P,2,0)","v":"MA"},4948,4948,null,"District of Columbia","Massachusetts",{"$f":"VLOOKUP(H439,'Info Sheet'!O:P,2,0)","v":"MA"},2594,2594]
["District of Columbia","Michigan",{"$f":"VLOOKUP(B440,'Info Sheet'!O:P,2,0)","v":"MI"},2178,2178,null,"District of Columbia","Michigan",{"$f":"VLOOKUP(H440,'Info Sheet'!O:P,2,0)","v":"MI"},1001,1001]
["District of Columbia","Minnesota",{"$f":"VLOOKUP(B441,'Info Sheet'!O:P,2,0)","v":"MN"},889,889,null,"District of Columbia","Minnesota",{"$f":"VLOOKUP(H441,'Info Sheet'!O:P,2,0)","v":"MN"},983,983]
["District of Columbia","Mississippi",{"$f":"VLOOKUP(B442,'Info Sheet'!O:P,2,0)","v":"MS"},127,127,null,"District of Columbia","Mississippi",{"$f":"VLOOKUP(H442,'Info Sheet'!O:P,2,0)","v":"MS"},512,512]
["District of Columbia","Missouri",{"$f":"VLOOKUP(B443,'Info Sheet'!O:P,2,0)","v":"MO"},721,721,null,"District of Columbia","Missouri",{"$f":"VLOOKUP(H443,'Info Sheet'!O:P,2,0)","v":"MO"},837,837]
["District of Columbia","Montana",{"$f":"VLOOKUP(B444,'Info Sheet'!O:P,2,0)","v":"MT"},38,38,null,"District of Columbia","Montana",{"$f":"VLOOKUP(H444,'Info Sheet'!O:P,2,0)","v":"MT"},0,0]
["District of Columbia","Nebraska",{"$f":"VLOOKUP(B445,'Info Sheet'!O:P,2,0)","v":"NE"},313,313,null,"District of Columbia","Nebraska",{"$f":"VLOOKUP(H445,'Info Sheet'!O:P,2,0)","v":"NE"},29,29]
["District of Columbia","Nevada",{"$f":"VLOOKUP(B446,'Info Sheet'!O:P,2,0)","v":"NV"},280,280,null,"District of Columbia","Nevada",{"$f":"VLOOKUP(H446,'Info Sheet'!O:P,2,0)","v":"NV"},1451,1451]
["District of Columbia","New Hampshire",{"$f":"VLOOKUP(B447,'Info Sheet'!O:P,2,0)","v":"NH"},479,479,null,"District of Columbia","New Hampshire",{"$f":"VLOOKUP(H447,'Info Sheet'!O:P,2,0)","v":"NH"},467,467]
["District of Columbia","New Jersey",{"$f":"VLOOKUP(B448,'Info Sheet'!O:P,2,0)","v":"NJ"},4410,4410,null,"District of Columbia","New Jersey",{"$f":"VLOOKUP(H448,'Info Sheet'!O:P,2,0)","v":"NJ"},2052,2052]
["District of Columbia","New Mexico",{"$f":"VLOOKUP(B449,'Info Sheet'!O:P,2,0)","v":"NM"},177,177,null,"District of Columbia","New Mexico",{"$f":"VLOOKUP(H449,'Info Sheet'!O:P,2,0)","v":"NM"},293,293]
["District of Columbia","New York",{"$f":"VLOOKUP(B450,'Info Sheet'!O:P,2,0)","v":"NY"},9250,9250,null,"District of Columbia","New York",{"$f":"VLOOKUP(H450,'Info Sheet'!O:P,2,0)","v":"NY"},9621,9621]
["District of Columbia","North Carolina",{"$f":"VLOOKUP(B451,'Info Sheet'!O:P,2,0)","v":"NC"},4598,4598,null,"District of Columbia","North Carolina",{"$f":"VLOOKUP(H451,'Info Sheet'!O:P,2,0)","v":"NC"},4627,4627]
["District of Columbia","North Dakota",{"$f":"VLOOKUP(B452,'Info Sheet'!O:P,2,0)","v":"ND"},383,383,null,"District of Columbia","North Dakota",{"$f":"VLOOKUP(H452,'Info Sheet'!O:P,2,0)","v":"ND"},245,245]
["District of Columbia","Ohio",{"$f":"VLOOKUP(B453,'Info Sheet'!O:P,2,0)","v":"OH"},1555,1555,null,"District of Columbia","Ohio",{"$f":"VLOOKUP(H453,'Info Sheet'!O:P,2,0)","v":"OH"},2544,2544]
["District of Columbia","Oklahoma",{"$f":"VLOOKUP(B454,'Info Sheet'!O:P,2,0)","v":"OK"},0,0,null,"District of Columbia","Oklahoma",{"$f":"VLOOKUP(H454,'Info Sheet'!O:P,2,0)","v":"OK"},342,342]
["District of Columbia","Oregon",{"$f":"VLOOKUP(B455,'Info Sheet'!O:P,2,0)","v":"OR"},809,809,null,"District of Columbia","Oregon",{"$f":"VLOOKUP(H455,'Info Sheet'!O:P,2,0)","v":"OR"},1262,1262]
["District of Columbia","Pennsylvania",{"$f":"VLOOKUP(B456,'Info Sheet'!O:P,2,0)","v":"PA"},5461,5461,null,"District of Columbia","Pennsylvania",{"$f":"VLOOKUP(H456,'Info Sheet'!O:P,2,0)","v":"PA"},5943,5943]
["District of Columbia","Rhode Island",{"$f":"VLOOKUP(B457,'Info Sheet'!O:P,2,0)","v":"RI"},934,934,null,"District of Columbia","Rhode Island",{"$f":"VLOOKUP(H457,'Info Sheet'!O:P,2,0)","v":"RI"},459,459]
["District of Columbia","South Carolina",{"$f":"VLOOKUP(B458,'Info Sheet'!O:P,2,0)","v":"SC"},887,887,null,"District of Columbia","South Carolina",{"$f":"VLOOKUP(H458,'Info Sheet'!O:P,2,0)","v":"SC"},1062,1062]
["District of Columbia","South Dakota",{"$f":"VLOOKUP(B459,'Info Sheet'!O:P,2,0)","v":"SD"},104,104,null,"District of Columbia","South Dakota",{"$f":"VLOOKUP(H459,'Info Sheet'!O:P,2,0)","v":"SD"},0,0]
["District of Columbia","Tennessee",{"$f":"VLOOKUP(B460,'Info Sheet'!O:P,2,0)","v":"TN"},1589,1589,null,"District of Columbia","Tennessee",{"$f":"VLOOKUP(H460,'Info Sheet'!O:P,2,0)","v":"TN"},881,881]
["District of Columbia","Texas",{"$f":"VLOOKUP(B461,'Info Sheet'!O:P,2,0)","v":"TX"},3736,3736,null,"District of Columbia","Texas",{"$f":"VLOOKUP(H461,'Info Sheet'!O:P,2,0)","v":"TX"},3925,3925]
["District of Columbia","Utah",{"$f":"VLOOKUP(B462,'Info Sheet'!O:P,2,0)","v":"UT"},191,191,null,"District of Columbia","Utah",{"$f":"VLOOKUP(H462,'Info Sheet'!O:P,2,0)","v":"UT"},270,270]
["District of Columbia","Vermont",{"$f":"VLOOKUP(B463,'Info Sheet'!O:P,2,0)","v":"VT"},911,911,null,"District of Columbia","Vermont",{"$f":"VLOOKUP(H463,'Info Sheet'!O:P,2,0)","v":"VT"},152,152]
["District of Columbia","Virginia",{"$f":"VLOOKUP(B464,'Info Sheet'!O:P,2,0)","v":"VA"},25427,25427,null,"District of Columbia","Virginia",{"$f":"VLOOKUP(H464,'Info Sheet'!O:P,2,0)","v":"VA"},28411,28411]
["District of Columbia","Washington",{"$f":"VLOOKUP(B465,'Info Sheet'!O:P,2,0)","v":"WA"},1241,1241,null,"District of Columbia","Washington",{"$f":"VLOOKUP(H465,'Info Sheet'!O:P,2,0)","v":"WA"},1374,1374]
["District of Columbia","West Virginia",{"$f":"VLOOKUP(B466,'Info Sheet'!O:P,2,0)","v":"WV"},1273,1273,null,"District of Columbia","West Virginia",{"$f":"VLOOKUP(H466,'Info Sheet'!O:P,2,0)","v":"WV"},1074,1074]
["District of Columbia","Wisconsin",{"$f":"VLOOKUP(B467,'Info Sheet'!O:P,2,0)","v":"WI"},2058,2058,null,"District of Columbia","Wisconsin",{"$f":"VLOOKUP(H467,'Info Sheet'!O:P,2,0)","v":"WI"},236,236]
["District of Columbia","Wyoming",{"$f":"VLOOKUP(B468,'Info Sheet'!O:P,2,0)","v":"WY"},215,215,null,"District of Columbia","Wyoming",{"$f":"VLOOKUP(H468,'Info Sheet'!O:P,2,0)","v":"WY"},0,0]
["District of Columbia","Puerto Rico",{"$f":"VLOOKUP(B469,'Info Sheet'!O:P,2,0)","v":"PR"},0,0,null,"District of Columbia","Puerto Rico",{"$f":"VLOOKUP(H469,'Info Sheet'!O:P,2,0)","v":"PR"},212,212]
["Florida","Alabama",{"$f":"VLOOKUP(B470,'Info Sheet'!O:P,2,0)","v":"AL"},47064,47064,null,"Florida","Alabama",{"$f":"VLOOKUP(H470,'Info Sheet'!O:P,2,0)","v":"AL"},46369,46369]
["Florida","Alaska",{"$f":"VLOOKUP(B471,'Info Sheet'!O:P,2,0)","v":"AK"},23996,23996,null,"Florida","Alaska",{"$f":"VLOOKUP(H471,'Info Sheet'!O:P,2,0)","v":"AK"},5494,5494]
["Florida","Arizona",{"$f":"VLOOKUP(B472,'Info Sheet'!O:P,2,0)","v":"AZ"},18831,18831,null,"Florida","Arizona",{"$f":"VLOOKUP(H472,'Info Sheet'!O:P,2,0)","v":"AZ"},16997,16997]
["Florida","Arkansas",{"$f":"VLOOKUP(B473,'Info Sheet'!O:P,2,0)","v":"AR"},9957,9957,null,"Florida","Arkansas",{"$f":"VLOOKUP(H473,'Info Sheet'!O:P,2,0)","v":"AR"},9327,9327]
["Florida","California",{"$f":"VLOOKUP(B474,'Info Sheet'!O:P,2,0)","v":"CA"},64936,64936,null,"Florida","California",{"$f":"VLOOKUP(H474,'Info Sheet'!O:P,2,0)","v":"CA"},63460,63460]
["Florida","Colorado",{"$f":"VLOOKUP(B475,'Info Sheet'!O:P,2,0)","v":"CO"},24577,24577,null,"Florida","Colorado",{"$f":"VLOOKUP(H475,'Info Sheet'!O:P,2,0)","v":"CO"},25539,25539]
["Florida","Connecticut",{"$f":"VLOOKUP(B476,'Info Sheet'!O:P,2,0)","v":"CT"},31862,31862,null,"Florida","Connecticut",{"$f":"VLOOKUP(H476,'Info Sheet'!O:P,2,0)","v":"CT"},20556,20556]
["Florida","Delaware",{"$f":"VLOOKUP(B477,'Info Sheet'!O:P,2,0)","v":"DE"},5462,5462,null,"Florida","Delaware",{"$f":"VLOOKUP(H477,'Info Sheet'!O:P,2,0)","v":"DE"},3887,3887]
["Florida","District of Columbia",{"$f":"VLOOKUP(B478,'Info Sheet'!O:P,2,0)","v":"DC"},2781,2781,null,"Florida","District of Columbia",{"$f":"VLOOKUP(H478,'Info Sheet'!O:P,2,0)","v":"DC"},4059,4059]
["Florida","Florida",{"$f":"VLOOKUP(B479,'Info Sheet'!O:P,2,0)","v":"FL"},0,0,null,"Florida","Florida",{"$f":"VLOOKUP(H479,'Info Sheet'!O:P,2,0)","v":"FL"},0,0]
["Florida","Georgia",{"$f":"VLOOKUP(B480,'Info Sheet'!O:P,2,0)","v":"GA"},117027,117027,null,"Florida","Georgia",{"$f":"VLOOKUP(H480,'Info Sheet'!O:P,2,0)","v":"GA"},135437,135437]
["Florida","Hawaii",{"$f":"VLOOKUP(B481,'Info Sheet'!O:P,2,0)","v":"HI"},8837,8837,null,"Florida","Hawaii",{"$f":"VLOOKUP(H481,'Info Sheet'!O:P,2,0)","v":"HI"},10539,10539]
["Florida","Idaho",{"$f":"VLOOKUP(B482,'Info Sheet'!O:P,2,0)","v":"ID"},2464,2464,null,"Florida","Idaho",{"$f":"VLOOKUP(H482,'Info Sheet'!O:P,2,0)","v":"ID"},4359,4359]
["Florida","Illinois",{"$f":"VLOOKUP(B483,'Info Sheet'!O:P,2,0)","v":"IL"},59149,59149,null,"Florida","Illinois",{"$f":"VLOOKUP(H483,'Info Sheet'!O:P,2,0)","v":"IL"},38286,38286]
["Florida","Indiana",{"$f":"VLOOKUP(B484,'Info Sheet'!O:P,2,0)","v":"IN"},34305,34305,null,"Florida","Indiana",{"$f":"VLOOKUP(H484,'Info Sheet'!O:P,2,0)","v":"IN"},25563,25563]
["Florida","Iowa",{"$f":"VLOOKUP(B485,'Info Sheet'!O:P,2,0)","v":"IA"},8631,8631,null,"Florida","Iowa",{"$f":"VLOOKUP(H485,'Info Sheet'!O:P,2,0)","v":"IA"},6406,6406]
["Florida","Kansas",{"$f":"VLOOKUP(B486,'Info Sheet'!O:P,2,0)","v":"KS"},12458,12458,null,"Florida","Kansas",{"$f":"VLOOKUP(H486,'Info Sheet'!O:P,2,0)","v":"KS"},7562,7562]
["Florida","Kentucky",{"$f":"VLOOKUP(B487,'Info Sheet'!O:P,2,0)","v":"KY"},18674,18674,null,"Florida","Kentucky",{"$f":"VLOOKUP(H487,'Info Sheet'!O:P,2,0)","v":"KY"},26751,26751]
["Florida","Louisiana",{"$f":"VLOOKUP(B488,'Info Sheet'!O:P,2,0)","v":"LA"},18876,18876,null,"Florida","Louisiana",{"$f":"VLOOKUP(H488,'Info Sheet'!O:P,2,0)","v":"LA"},21121,21121]
["Florida","Maine",{"$f":"VLOOKUP(B489,'Info Sheet'!O:P,2,0)","v":"ME"},17534,17534,null,"Florida","Maine",{"$f":"VLOOKUP(H489,'Info Sheet'!O:P,2,0)","v":"ME"},10255,10255]
["Florida","Maryland",{"$f":"VLOOKUP(B490,'Info Sheet'!O:P,2,0)","v":"MD"},39093,39093,null,"Florida","Maryland",{"$f":"VLOOKUP(H490,'Info Sheet'!O:P,2,0)","v":"MD"},23999,23999]
["Florida","Massachusetts",{"$f":"VLOOKUP(B491,'Info Sheet'!O:P,2,0)","v":"MA"},42760,42760,null,"Florida","Massachusetts",{"$f":"VLOOKUP(H491,'Info Sheet'!O:P,2,0)","v":"MA"},35404,35404]
["Florida","Michigan",{"$f":"VLOOKUP(B492,'Info Sheet'!O:P,2,0)","v":"MI"},64399,64399,null,"Florida","Michigan",{"$f":"VLOOKUP(H492,'Info Sheet'!O:P,2,0)","v":"MI"},42504,42504]
["Florida","Minnesota",{"$f":"VLOOKUP(B493,'Info Sheet'!O:P,2,0)","v":"MN"},15562,15562,null,"Florida","Minnesota",{"$f":"VLOOKUP(H493,'Info Sheet'!O:P,2,0)","v":"MN"},7767,7767]
["Florida","Mississippi",{"$f":"VLOOKUP(B494,'Info Sheet'!O:P,2,0)","v":"MS"},18594,18594,null,"Florida","Mississippi",{"$f":"VLOOKUP(H494,'Info Sheet'!O:P,2,0)","v":"MS"},15642,15642]
["Florida","Missouri",{"$f":"VLOOKUP(B495,'Info Sheet'!O:P,2,0)","v":"MO"},25764,25764,null,"Florida","Missouri",{"$f":"VLOOKUP(H495,'Info Sheet'!O:P,2,0)","v":"MO"},21204,21204]
["Florida","Montana",{"$f":"VLOOKUP(B496,'Info Sheet'!O:P,2,0)","v":"MT"},2655,2655,null,"Florida","Montana",{"$f":"VLOOKUP(H496,'Info Sheet'!O:P,2,0)","v":"MT"},3539,3539]
["Florida","Nebraska",{"$f":"VLOOKUP(B497,'Info Sheet'!O:P,2,0)","v":"NE"},6346,6346,null,"Florida","Nebraska",{"$f":"VLOOKUP(H497,'Info Sheet'!O:P,2,0)","v":"NE"},4248,4248]
["Florida","Nevada",{"$f":"VLOOKUP(B498,'Info Sheet'!O:P,2,0)","v":"NV"},11818,11818,null,"Florida","Nevada",{"$f":"VLOOKUP(H498,'Info Sheet'!O:P,2,0)","v":"NV"},9883,9883]
["Florida","New Hampshire",{"$f":"VLOOKUP(B499,'Info Sheet'!O:P,2,0)","v":"NH"},10331,10331,null,"Florida","New Hampshire",{"$f":"VLOOKUP(H499,'Info Sheet'!O:P,2,0)","v":"NH"},6375,6375]
["Florida","New Jersey",{"$f":"VLOOKUP(B500,'Info Sheet'!O:P,2,0)","v":"NJ"},75156,75156,null,"Florida","New Jersey",{"$f":"VLOOKUP(H500,'Info Sheet'!O:P,2,0)","v":"NJ"},33397,33397]
["Florida","New Mexico",{"$f":"VLOOKUP(B501,'Info Sheet'!O:P,2,0)","v":"NM"},5129,5129,null,"Florida","New Mexico",{"$f":"VLOOKUP(H501,'Info Sheet'!O:P,2,0)","v":"NM"},10772,10772]
["Florida","New York",{"$f":"VLOOKUP(B502,'Info Sheet'!O:P,2,0)","v":"NY"},167308,167308,null,"Florida","New York",{"$f":"VLOOKUP(H502,'Info Sheet'!O:P,2,0)","v":"NY"},87289,87289]
["Florida","North Carolina",{"$f":"VLOOKUP(B503,'Info Sheet'!O:P,2,0)","v":"NC"},66224,66224,null,"Florida","North Carolina",{"$f":"VLOOKUP(H503,'Info Sheet'!O:P,2,0)","v":"NC"},83392,83392]
["Florida","North Dakota",{"$f":"VLOOKUP(B504,'Info Sheet'!O:P,2,0)","v":"ND"},1547,1547,null,"Florida","North Dakota",{"$f":"VLOOKUP(H504,'Info Sheet'!O:P,2,0)","v":"ND"},1901,1901]
["Florida","Ohio",{"$f":"VLOOKUP(B505,'Info Sheet'!O:P,2,0)","v":"OH"},62165,62165,null,"Florida","Ohio",{"$f":"VLOOKUP(H505,'Info Sheet'!O:P,2,0)","v":"OH"},49353,49353]
["Florida","Oklahoma",{"$f":"VLOOKUP(B506,'Info Sheet'!O:P,2,0)","v":"OK"},9208,9208,null,"Florida","Oklahoma",{"$f":"VLOOKUP(H506,'Info Sheet'!O:P,2,0)","v":"OK"},16505,16505]
["Florida","Oregon",{"$f":"VLOOKUP(B507,'Info Sheet'!O:P,2,0)","v":"OR"},7889,7889,null,"Florida","Oregon",{"$f":"VLOOKUP(H507,'Info Sheet'!O:P,2,0)","v":"OR"},7317,7317]
["Florida","Pennsylvania",{"$f":"VLOOKUP(B508,'Info Sheet'!O:P,2,0)","v":"PA"},66415,66415,null,"Florida","Pennsylvania",{"$f":"VLOOKUP(H508,'Info Sheet'!O:P,2,0)","v":"PA"},52142,52142]
["Florida","Rhode Island",{"$f":"VLOOKUP(B509,'Info Sheet'!O:P,2,0)","v":"RI"},10034,10034,null,"Florida","Rhode Island",{"$f":"VLOOKUP(H509,'Info Sheet'!O:P,2,0)","v":"RI"},6318,6318]
["Florida","South Carolina",{"$f":"VLOOKUP(B510,'Info Sheet'!O:P,2,0)","v":"SC"},34078,34078,null,"Florida","South Carolina",{"$f":"VLOOKUP(H510,'Info Sheet'!O:P,2,0)","v":"SC"},43088,43088]
["Florida","South Dakota",{"$f":"VLOOKUP(B511,'Info Sheet'!O:P,2,0)","v":"SD"},2216,2216,null,"Florida","South Dakota",{"$f":"VLOOKUP(H511,'Info Sheet'!O:P,2,0)","v":"SD"},1322,1322]
["Florida","Tennessee",{"$f":"VLOOKUP(B512,'Info Sheet'!O:P,2,0)","v":"TN"},39608,39608,null,"Florida","Tennessee",{"$f":"VLOOKUP(H512,'Info Sheet'!O:P,2,0)","v":"TN"},45300,45300]
["Florida","Texas",{"$f":"VLOOKUP(B513,'Info Sheet'!O:P,2,0)","v":"TX"},78135,78135,null,"Florida","Texas",{"$f":"VLOOKUP(H513,'Info Sheet'!O:P,2,0)","v":"TX"},93704,93704]
["Florida","Utah",{"$f":"VLOOKUP(B514,'Info Sheet'!O:P,2,0)","v":"UT"},7675,7675,null,"Florida","Utah",{"$f":"VLOOKUP(H514,'Info Sheet'!O:P,2,0)","v":"UT"},6168,6168]
["Florida","Vermont",{"$f":"VLOOKUP(B515,'Info Sheet'!O:P,2,0)","v":"VT"},6208,6208,null,"Florida","Vermont",{"$f":"VLOOKUP(H515,'Info Sheet'!O:P,2,0)","v":"VT"},3395,3395]
["Florida","Virginia",{"$f":"VLOOKUP(B516,'Info Sheet'!O:P,2,0)","v":"VA"},62391,62391,null,"Florida","Virginia",{"$f":"VLOOKUP(H516,'Info Sheet'!O:P,2,0)","v":"VA"},55512,55512]
["Florida","Washington",{"$f":"VLOOKUP(B517,'Info Sheet'!O:P,2,0)","v":"WA"},14855,14855,null,"Florida","Washington",{"$f":"VLOOKUP(H517,'Info Sheet'!O:P,2,0)","v":"WA"},20842,20842]
["Florida","West Virginia",{"$f":"VLOOKUP(B518,'Info Sheet'!O:P,2,0)","v":"WV"},14131,14131,null,"Florida","West Virginia",{"$f":"VLOOKUP(H518,'Info Sheet'!O:P,2,0)","v":"WV"},6710,6710]
["Florida","Wisconsin",{"$f":"VLOOKUP(B519,'Info Sheet'!O:P,2,0)","v":"WI"},21709,21709,null,"Florida","Wisconsin",{"$f":"VLOOKUP(H519,'Info Sheet'!O:P,2,0)","v":"WI"},13767,13767]
["Florida","Wyoming",{"$f":"VLOOKUP(B520,'Info Sheet'!O:P,2,0)","v":"WY"},1810,1810,null,"Florida","Wyoming",{"$f":"VLOOKUP(H520,'Info Sheet'!O:P,2,0)","v":"WY"},2654,2654]
["Florida","Puerto Rico",{"$f":"VLOOKUP(B521,'Info Sheet'!O:P,2,0)","v":"PR"},56217,56217,null,"Florida","Puerto Rico",{"$f":"VLOOKUP(H521,'Info Sheet'!O:P,2,0)","v":"PR"},22068,22068]
["Georgia","Alabama",{"$f":"VLOOKUP(B522,'Info Sheet'!O:P,2,0)","v":"AL"},46503,46503,null,"Georgia","Alabama",{"$f":"VLOOKUP(H522,'Info Sheet'!O:P,2,0)","v":"AL"},60910,60910]
["Georgia","Alaska",{"$f":"VLOOKUP(B523,'Info Sheet'!O:P,2,0)","v":"AK"},7378,7378,null,"Georgia","Alaska",{"$f":"VLOOKUP(H523,'Info Sheet'!O:P,2,0)","v":"AK"},2735,2735]
["Georgia","Arizona",{"$f":"VLOOKUP(B524,'Info Sheet'!O:P,2,0)","v":"AZ"},13503,13503,null,"Georgia","Arizona",{"$f":"VLOOKUP(H524,'Info Sheet'!O:P,2,0)","v":"AZ"},8730,8730]
["Georgia","Arkansas",{"$f":"VLOOKUP(B525,'Info Sheet'!O:P,2,0)","v":"AR"},3752,3752,null,"Georgia","Arkansas",{"$f":"VLOOKUP(H525,'Info Sheet'!O:P,2,0)","v":"AR"},6892,6892]
["Georgia","California",{"$f":"VLOOKUP(B526,'Info Sheet'!O:P,2,0)","v":"CA"},38032,38032,null,"Georgia","California",{"$f":"VLOOKUP(H526,'Info Sheet'!O:P,2,0)","v":"CA"},32913,32913]
["Georgia","Colorado",{"$f":"VLOOKUP(B527,'Info Sheet'!O:P,2,0)","v":"CO"},10259,10259,null,"Georgia","Colorado",{"$f":"VLOOKUP(H527,'Info Sheet'!O:P,2,0)","v":"CO"},15529,15529]
["Georgia","Connecticut",{"$f":"VLOOKUP(B528,'Info Sheet'!O:P,2,0)","v":"CT"},5157,5157,null,"Georgia","Connecticut",{"$f":"VLOOKUP(H528,'Info Sheet'!O:P,2,0)","v":"CT"},4450,4450]
["Georgia","Delaware",{"$f":"VLOOKUP(B529,'Info Sheet'!O:P,2,0)","v":"DE"},1682,1682,null,"Georgia","Delaware",{"$f":"VLOOKUP(H529,'Info Sheet'!O:P,2,0)","v":"DE"},1403,1403]
["Georgia","District of Columbia",{"$f":"VLOOKUP(B530,'Info Sheet'!O:P,2,0)","v":"DC"},3424,3424,null,"Georgia","District of Columbia",{"$f":"VLOOKUP(H530,'Info Sheet'!O:P,2,0)","v":"DC"},3613,3613]
["Georgia","Florida",{"$f":"VLOOKUP(B531,'Info Sheet'!O:P,2,0)","v":"FL"},135437,135437,null,"Georgia","Florida",{"$f":"VLOOKUP(H531,'Info Sheet'!O:P,2,0)","v":"FL"},117027,117027]
["Georgia","Georgia",{"$f":"VLOOKUP(B532,'Info Sheet'!O:P,2,0)","v":"GA"},0,0,null,"Georgia","Georgia",{"$f":"VLOOKUP(H532,'Info Sheet'!O:P,2,0)","v":"GA"},0,0]
["Georgia","Hawaii",{"$f":"VLOOKUP(B533,'Info Sheet'!O:P,2,0)","v":"HI"},3455,3455,null,"Georgia","Hawaii",{"$f":"VLOOKUP(H533,'Info Sheet'!O:P,2,0)","v":"HI"},5980,5980]
["Georgia","Idaho",{"$f":"VLOOKUP(B534,'Info Sheet'!O:P,2,0)","v":"ID"},1476,1476,null,"Georgia","Idaho",{"$f":"VLOOKUP(H534,'Info Sheet'!O:P,2,0)","v":"ID"},1171,1171]
["Georgia","Illinois",{"$f":"VLOOKUP(B535,'Info Sheet'!O:P,2,0)","v":"IL"},22959,22959,null,"Georgia","Illinois",{"$f":"VLOOKUP(H535,'Info Sheet'!O:P,2,0)","v":"IL"},21568,21568]
["Georgia","Indiana",{"$f":"VLOOKUP(B536,'Info Sheet'!O:P,2,0)","v":"IN"},11063,11063,null,"Georgia","Indiana",{"$f":"VLOOKUP(H536,'Info Sheet'!O:P,2,0)","v":"IN"},6424,6424]
["Georgia","Iowa",{"$f":"VLOOKUP(B537,'Info Sheet'!O:P,2,0)","v":"IA"},3733,3733,null,"Georgia","Iowa",{"$f":"VLOOKUP(H537,'Info Sheet'!O:P,2,0)","v":"IA"},3507,3507]
["Georgia","Kansas",{"$f":"VLOOKUP(B538,'Info Sheet'!O:P,2,0)","v":"KS"},7365,7365,null,"Georgia","Kansas",{"$f":"VLOOKUP(H538,'Info Sheet'!O:P,2,0)","v":"KS"},4958,4958]
["Georgia","Kentucky",{"$f":"VLOOKUP(B539,'Info Sheet'!O:P,2,0)","v":"KY"},16383,16383,null,"Georgia","Kentucky",{"$f":"VLOOKUP(H539,'Info Sheet'!O:P,2,0)","v":"KY"},13295,13295]
["Georgia","Louisiana",{"$f":"VLOOKUP(B540,'Info Sheet'!O:P,2,0)","v":"LA"},14286,14286,null,"Georgia","Louisiana",{"$f":"VLOOKUP(H540,'Info Sheet'!O:P,2,0)","v":"LA"},14669,14669]
["Georgia","Maine",{"$f":"VLOOKUP(B541,'Info Sheet'!O:P,2,0)","v":"ME"},630,630,null,"Georgia","Maine",{"$f":"VLOOKUP(H541,'Info Sheet'!O:P,2,0)","v":"ME"},1862,1862]
["Georgia","Maryland",{"$f":"VLOOKUP(B542,'Info Sheet'!O:P,2,0)","v":"MD"},12709,12709,null,"Georgia","Maryland",{"$f":"VLOOKUP(H542,'Info Sheet'!O:P,2,0)","v":"MD"},15177,15177]
["Georgia","Massachusetts",{"$f":"VLOOKUP(B543,'Info Sheet'!O:P,2,0)","v":"MA"},12499,12499,null,"Georgia","Massachusetts",{"$f":"VLOOKUP(H543,'Info Sheet'!O:P,2,0)","v":"MA"},7462,7462]
["Georgia","Michigan",{"$f":"VLOOKUP(B544,'Info Sheet'!O:P,2,0)","v":"MI"},23798,23798,null,"Georgia","Michigan",{"$f":"VLOOKUP(H544,'Info Sheet'!O:P,2,0)","v":"MI"},12437,12437]
["Georgia","Minnesota",{"$f":"VLOOKUP(B545,'Info Sheet'!O:P,2,0)","v":"MN"},5214,5214,null,"Georgia","Minnesota",{"$f":"VLOOKUP(H545,'Info Sheet'!O:P,2,0)","v":"MN"},4851,4851]
["Georgia","Mississippi",{"$f":"VLOOKUP(B546,'Info Sheet'!O:P,2,0)","v":"MS"},11040,11040,null,"Georgia","Mississippi",{"$f":"VLOOKUP(H546,'Info Sheet'!O:P,2,0)","v":"MS"},9819,9819]
["Georgia","Missouri",{"$f":"VLOOKUP(B547,'Info Sheet'!O:P,2,0)","v":"MO"},8963,8963,null,"Georgia","Missouri",{"$f":"VLOOKUP(H547,'Info Sheet'!O:P,2,0)","v":"MO"},8907,8907]
["Georgia","Montana",{"$f":"VLOOKUP(B548,'Info Sheet'!O:P,2,0)","v":"MT"},549,549,null,"Georgia","Montana",{"$f":"VLOOKUP(H548,'Info Sheet'!O:P,2,0)","v":"MT"},569,569]
["Georgia","Nebraska",{"$f":"VLOOKUP(B549,'Info Sheet'!O:P,2,0)","v":"NE"},5575,5575,null,"Georgia","Nebraska",{"$f":"VLOOKUP(H549,'Info Sheet'!O:P,2,0)","v":"NE"},2422,2422]
["Georgia","Nevada",{"$f":"VLOOKUP(B550,'Info Sheet'!O:P,2,0)","v":"NV"},5712,5712,null,"Georgia","Nevada",{"$f":"VLOOKUP(H550,'Info Sheet'!O:P,2,0)","v":"NV"},3663,3663]
["Georgia","New Hampshire",{"$f":"VLOOKUP(B551,'Info Sheet'!O:P,2,0)","v":"NH"},309,309,null,"Georgia","New Hampshire",{"$f":"VLOOKUP(H551,'Info Sheet'!O:P,2,0)","v":"NH"},1005,1005]
["Georgia","New Jersey",{"$f":"VLOOKUP(B552,'Info Sheet'!O:P,2,0)","v":"NJ"},17442,17442,null,"Georgia","New Jersey",{"$f":"VLOOKUP(H552,'Info Sheet'!O:P,2,0)","v":"NJ"},11858,11858]
["Georgia","New Mexico",{"$f":"VLOOKUP(B553,'Info Sheet'!O:P,2,0)","v":"NM"},2532,2532,null,"Georgia","New Mexico",{"$f":"VLOOKUP(H553,'Info Sheet'!O:P,2,0)","v":"NM"},2845,2845]
["Georgia","New York",{"$f":"VLOOKUP(B554,'Info Sheet'!O:P,2,0)","v":"NY"},40883,40883,null,"Georgia","New York",{"$f":"VLOOKUP(H554,'Info Sheet'!O:P,2,0)","v":"NY"},25852,25852]
["Georgia","North Carolina",{"$f":"VLOOKUP(B555,'Info Sheet'!O:P,2,0)","v":"NC"},50508,50508,null,"Georgia","North Carolina",{"$f":"VLOOKUP(H555,'Info Sheet'!O:P,2,0)","v":"NC"},48958,48958]
["Georgia","North Dakota",{"$f":"VLOOKUP(B556,'Info Sheet'!O:P,2,0)","v":"ND"},408,408,null,"Georgia","North Dakota",{"$f":"VLOOKUP(H556,'Info Sheet'!O:P,2,0)","v":"ND"},1261,1261]
["Georgia","Ohio",{"$f":"VLOOKUP(B557,'Info Sheet'!O:P,2,0)","v":"OH"},23687,23687,null,"Georgia","Ohio",{"$f":"VLOOKUP(H557,'Info Sheet'!O:P,2,0)","v":"OH"},21844,21844]
["Georgia","Oklahoma",{"$f":"VLOOKUP(B558,'Info Sheet'!O:P,2,0)","v":"OK"},7001,7001,null,"Georgia","Oklahoma",{"$f":"VLOOKUP(H558,'Info Sheet'!O:P,2,0)","v":"OK"},9254,9254]
["Georgia","Oregon",{"$f":"VLOOKUP(B559,'Info Sheet'!O:P,2,0)","v":"OR"},2023,2023,null,"Georgia","Oregon",{"$f":"VLOOKUP(H559,'Info Sheet'!O:P,2,0)","v":"OR"},3666,3666]
["Georgia","Pennsylvania",{"$f":"VLOOKUP(B560,'Info Sheet'!O:P,2,0)","v":"PA"},21161,21161,null,"Georgia","Pennsylvania",{"$f":"VLOOKUP(H560,'Info Sheet'!O:P,2,0)","v":"PA"},13608,13608]
["Georgia","Rhode Island",{"$f":"VLOOKUP(B561,'Info Sheet'!O:P,2,0)","v":"RI"},820,820,null,"Georgia","Rhode Island",{"$f":"VLOOKUP(H561,'Info Sheet'!O:P,2,0)","v":"RI"},1026,1026]
["Georgia","South Carolina",{"$f":"VLOOKUP(B562,'Info Sheet'!O:P,2,0)","v":"SC"},51087,51087,null,"Georgia","South Carolina",{"$f":"VLOOKUP(H562,'Info Sheet'!O:P,2,0)","v":"SC"},52411,52411]
["Georgia","South Dakota",{"$f":"VLOOKUP(B563,'Info Sheet'!O:P,2,0)","v":"SD"},1350,1350,null,"Georgia","South Dakota",{"$f":"VLOOKUP(H563,'Info Sheet'!O:P,2,0)","v":"SD"},215,215]
["Georgia","Tennessee",{"$f":"VLOOKUP(B564,'Info Sheet'!O:P,2,0)","v":"TN"},48949,48949,null,"Georgia","Tennessee",{"$f":"VLOOKUP(H564,'Info Sheet'!O:P,2,0)","v":"TN"},44584,44584]
["Georgia","Texas",{"$f":"VLOOKUP(B565,'Info Sheet'!O:P,2,0)","v":"TX"},43382,43382,null,"Georgia","Texas",{"$f":"VLOOKUP(H565,'Info Sheet'!O:P,2,0)","v":"TX"},54434,54434]
["Georgia","Utah",{"$f":"VLOOKUP(B566,'Info Sheet'!O:P,2,0)","v":"UT"},1193,1193,null,"Georgia","Utah",{"$f":"VLOOKUP(H566,'Info Sheet'!O:P,2,0)","v":"UT"},3160,3160]
["Georgia","Vermont",{"$f":"VLOOKUP(B567,'Info Sheet'!O:P,2,0)","v":"VT"},806,806,null,"Georgia","Vermont",{"$f":"VLOOKUP(H567,'Info Sheet'!O:P,2,0)","v":"VT"},653,653]
["Georgia","Virginia",{"$f":"VLOOKUP(B568,'Info Sheet'!O:P,2,0)","v":"VA"},28533,28533,null,"Georgia","Virginia",{"$f":"VLOOKUP(H568,'Info Sheet'!O:P,2,0)","v":"VA"},30177,30177]
["Georgia","Washington",{"$f":"VLOOKUP(B569,'Info Sheet'!O:P,2,0)","v":"WA"},10161,10161,null,"Georgia","Washington",{"$f":"VLOOKUP(H569,'Info Sheet'!O:P,2,0)","v":"WA"},18175,18175]
["Georgia","West Virginia",{"$f":"VLOOKUP(B570,'Info Sheet'!O:P,2,0)","v":"WV"},2935,2935,null,"Georgia","West Virginia",{"$f":"VLOOKUP(H570,'Info Sheet'!O:P,2,0)","v":"WV"},2889,2889]
["Georgia","Wisconsin",{"$f":"VLOOKUP(B571,'Info Sheet'!O:P,2,0)","v":"WI"},9584,9584,null,"Georgia","Wisconsin",{"$f":"VLOOKUP(H571,'Info Sheet'!O:P,2,0)","v":"WI"},4371,4371]
["Georgia","Wyoming",{"$f":"VLOOKUP(B572,'Info Sheet'!O:P,2,0)","v":"WY"},712,712,null,"Georgia","Wyoming",{"$f":"VLOOKUP(H572,'Info Sheet'!O:P,2,0)","v":"WY"},957,957]
["Georgia","Puerto Rico",{"$f":"VLOOKUP(B573,'Info Sheet'!O:P,2,0)","v":"PR"},4375,4375,null,"Georgia","Puerto Rico",{"$f":"VLOOKUP(H573,'Info Sheet'!O:P,2,0)","v":"PR"},686,686]
["Hawaii","Alabama",{"$f":"VLOOKUP(B574,'Info Sheet'!O:P,2,0)","v":"AL"},2625,2625,null,"Hawaii","Alabama",{"$f":"VLOOKUP(H574,'Info Sheet'!O:P,2,0)","v":"AL"},2153,2153]
["Hawaii","Alaska",{"$f":"VLOOKUP(B575,'Info Sheet'!O:P,2,0)","v":"AK"},3004,3004,null,"Hawaii","Alaska",{"$f":"VLOOKUP(H575,'Info Sheet'!O:P,2,0)","v":"AK"},4447,4447]
["Hawaii","Arizona",{"$f":"VLOOKUP(B576,'Info Sheet'!O:P,2,0)","v":"AZ"},6163,6163,null,"Hawaii","Arizona",{"$f":"VLOOKUP(H576,'Info Sheet'!O:P,2,0)","v":"AZ"},6656,6656]
["Hawaii","Arkansas",{"$f":"VLOOKUP(B577,'Info Sheet'!O:P,2,0)","v":"AR"},266,266,null,"Hawaii","Arkansas",{"$f":"VLOOKUP(H577,'Info Sheet'!O:P,2,0)","v":"AR"},142,142]
["Hawaii","California",{"$f":"VLOOKUP(B578,'Info Sheet'!O:P,2,0)","v":"CA"},32606,32606,null,"Hawaii","California",{"$f":"VLOOKUP(H578,'Info Sheet'!O:P,2,0)","v":"CA"},31298,31298]
["Hawaii","Colorado",{"$f":"VLOOKUP(B579,'Info Sheet'!O:P,2,0)","v":"CO"},3239,3239,null,"Hawaii","Colorado",{"$f":"VLOOKUP(H579,'Info Sheet'!O:P,2,0)","v":"CO"},6743,6743]
["Hawaii","Connecticut",{"$f":"VLOOKUP(B580,'Info Sheet'!O:P,2,0)","v":"CT"},1229,1229,null,"Hawaii","Connecticut",{"$f":"VLOOKUP(H580,'Info Sheet'!O:P,2,0)","v":"CT"},1177,1177]
["Hawaii","Delaware",{"$f":"VLOOKUP(B581,'Info Sheet'!O:P,2,0)","v":"DE"},1062,1062,null,"Hawaii","Delaware",{"$f":"VLOOKUP(H581,'Info Sheet'!O:P,2,0)","v":"DE"},201,201]
["Hawaii","District of Columbia",{"$f":"VLOOKUP(B582,'Info Sheet'!O:P,2,0)","v":"DC"},452,452,null,"Hawaii","District of Columbia",{"$f":"VLOOKUP(H582,'Info Sheet'!O:P,2,0)","v":"DC"},410,410]
["Hawaii","Florida",{"$f":"VLOOKUP(B583,'Info Sheet'!O:P,2,0)","v":"FL"},10539,10539,null,"Hawaii","Florida",{"$f":"VLOOKUP(H583,'Info Sheet'!O:P,2,0)","v":"FL"},8837,8837]
["Hawaii","Georgia",{"$f":"VLOOKUP(B584,'Info Sheet'!O:P,2,0)","v":"GA"},5980,5980,null,"Hawaii","Georgia",{"$f":"VLOOKUP(H584,'Info Sheet'!O:P,2,0)","v":"GA"},3455,3455]
["Hawaii","Hawaii",{"$f":"VLOOKUP(B585,'Info Sheet'!O:P,2,0)","v":"HI"},0,0,null,"Hawaii","Hawaii",{"$f":"VLOOKUP(H585,'Info Sheet'!O:P,2,0)","v":"HI"},0,0]
["Hawaii","Idaho",{"$f":"VLOOKUP(B586,'Info Sheet'!O:P,2,0)","v":"ID"},558,558,null,"Hawaii","Idaho",{"$f":"VLOOKUP(H586,'Info Sheet'!O:P,2,0)","v":"ID"},583,583]
["Hawaii","Illinois",{"$f":"VLOOKUP(B587,'Info Sheet'!O:P,2,0)","v":"IL"},2917,2917,null,"Hawaii","Illinois",{"$f":"VLOOKUP(H587,'Info Sheet'!O:P,2,0)","v":"IL"},3362,3362]
["Hawaii","Indiana",{"$f":"VLOOKUP(B588,'Info Sheet'!O:P,2,0)","v":"IN"},886,886,null,"Hawaii","Indiana",{"$f":"VLOOKUP(H588,'Info Sheet'!O:P,2,0)","v":"IN"},2180,2180]
["Hawaii","Iowa",{"$f":"VLOOKUP(B589,'Info Sheet'!O:P,2,0)","v":"IA"},630,630,null,"Hawaii","Iowa",{"$f":"VLOOKUP(H589,'Info Sheet'!O:P,2,0)","v":"IA"},1686,1686]
["Hawaii","Kansas",{"$f":"VLOOKUP(B590,'Info Sheet'!O:P,2,0)","v":"KS"},1647,1647,null,"Hawaii","Kansas",{"$f":"VLOOKUP(H590,'Info Sheet'!O:P,2,0)","v":"KS"},564,564]
["Hawaii","Kentucky",{"$f":"VLOOKUP(B591,'Info Sheet'!O:P,2,0)","v":"KY"},598,598,null,"Hawaii","Kentucky",{"$f":"VLOOKUP(H591,'Info Sheet'!O:P,2,0)","v":"KY"},1230,1230]
["Hawaii","Louisiana",{"$f":"VLOOKUP(B592,'Info Sheet'!O:P,2,0)","v":"LA"},474,474,null,"Hawaii","Louisiana",{"$f":"VLOOKUP(H592,'Info Sheet'!O:P,2,0)","v":"LA"},1408,1408]
["Hawaii","Maine",{"$f":"VLOOKUP(B593,'Info Sheet'!O:P,2,0)","v":"ME"},286,286,null,"Hawaii","Maine",{"$f":"VLOOKUP(H593,'Info Sheet'!O:P,2,0)","v":"ME"},239,239]
["Hawaii","Maryland",{"$f":"VLOOKUP(B594,'Info Sheet'!O:P,2,0)","v":"MD"},3822,3822,null,"Hawaii","Maryland",{"$f":"VLOOKUP(H594,'Info Sheet'!O:P,2,0)","v":"MD"},2202,2202]
["Hawaii","Massachusetts",{"$f":"VLOOKUP(B595,'Info Sheet'!O:P,2,0)","v":"MA"},2641,2641,null,"Hawaii","Massachusetts",{"$f":"VLOOKUP(H595,'Info Sheet'!O:P,2,0)","v":"MA"},2523,2523]
["Hawaii","Michigan",{"$f":"VLOOKUP(B596,'Info Sheet'!O:P,2,0)","v":"MI"},2251,2251,null,"Hawaii","Michigan",{"$f":"VLOOKUP(H596,'Info Sheet'!O:P,2,0)","v":"MI"},1234,1234]
["Hawaii","Minnesota",{"$f":"VLOOKUP(B597,'Info Sheet'!O:P,2,0)","v":"MN"},1601,1601,null,"Hawaii","Minnesota",{"$f":"VLOOKUP(H597,'Info Sheet'!O:P,2,0)","v":"MN"},2405,2405]
["Hawaii","Mississippi",{"$f":"VLOOKUP(B598,'Info Sheet'!O:P,2,0)","v":"MS"},649,649,null,"Hawaii","Mississippi",{"$f":"VLOOKUP(H598,'Info Sheet'!O:P,2,0)","v":"MS"},829,829]
["Hawaii","Missouri",{"$f":"VLOOKUP(B599,'Info Sheet'!O:P,2,0)","v":"MO"},1422,1422,null,"Hawaii","Missouri",{"$f":"VLOOKUP(H599,'Info Sheet'!O:P,2,0)","v":"MO"},3365,3365]
["Hawaii","Montana",{"$f":"VLOOKUP(B600,'Info Sheet'!O:P,2,0)","v":"MT"},366,366,null,"Hawaii","Montana",{"$f":"VLOOKUP(H600,'Info Sheet'!O:P,2,0)","v":"MT"},588,588]
["Hawaii","Nebraska",{"$f":"VLOOKUP(B601,'Info Sheet'!O:P,2,0)","v":"NE"},166,166,null,"Hawaii","Nebraska",{"$f":"VLOOKUP(H601,'Info Sheet'!O:P,2,0)","v":"NE"},697,697]
["Hawaii","Nevada",{"$f":"VLOOKUP(B602,'Info Sheet'!O:P,2,0)","v":"NV"},4233,4233,null,"Hawaii","Nevada",{"$f":"VLOOKUP(H602,'Info Sheet'!O:P,2,0)","v":"NV"},10509,10509]
["Hawaii","New Hampshire",{"$f":"VLOOKUP(B603,'Info Sheet'!O:P,2,0)","v":"NH"},688,688,null,"Hawaii","New Hampshire",{"$f":"VLOOKUP(H603,'Info Sheet'!O:P,2,0)","v":"NH"},94,94]
["Hawaii","New Jersey",{"$f":"VLOOKUP(B604,'Info Sheet'!O:P,2,0)","v":"NJ"},1417,1417,null,"Hawaii","New Jersey",{"$f":"VLOOKUP(H604,'Info Sheet'!O:P,2,0)","v":"NJ"},671,671]
["Hawaii","New Mexico",{"$f":"VLOOKUP(B605,'Info Sheet'!O:P,2,0)","v":"NM"},649,649,null,"Hawaii","New Mexico",{"$f":"VLOOKUP(H605,'Info Sheet'!O:P,2,0)","v":"NM"},371,371]
["Hawaii","New York",{"$f":"VLOOKUP(B606,'Info Sheet'!O:P,2,0)","v":"NY"},7967,7967,null,"Hawaii","New York",{"$f":"VLOOKUP(H606,'Info Sheet'!O:P,2,0)","v":"NY"},2859,2859]
["Hawaii","North Carolina",{"$f":"VLOOKUP(B607,'Info Sheet'!O:P,2,0)","v":"NC"},6058,6058,null,"Hawaii","North Carolina",{"$f":"VLOOKUP(H607,'Info Sheet'!O:P,2,0)","v":"NC"},4939,4939]
["Hawaii","North Dakota",{"$f":"VLOOKUP(B608,'Info Sheet'!O:P,2,0)","v":"ND"},101,101,null,"Hawaii","North Dakota",{"$f":"VLOOKUP(H608,'Info Sheet'!O:P,2,0)","v":"ND"},351,351]
["Hawaii","Ohio",{"$f":"VLOOKUP(B609,'Info Sheet'!O:P,2,0)","v":"OH"},2479,2479,null,"Hawaii","Ohio",{"$f":"VLOOKUP(H609,'Info Sheet'!O:P,2,0)","v":"OH"},2678,2678]
["Hawaii","Oklahoma",{"$f":"VLOOKUP(B610,'Info Sheet'!O:P,2,0)","v":"OK"},1837,1837,null,"Hawaii","Oklahoma",{"$f":"VLOOKUP(H610,'Info Sheet'!O:P,2,0)","v":"OK"},1102,1102]
["Hawaii","Oregon",{"$f":"VLOOKUP(B611,'Info Sheet'!O:P,2,0)","v":"OR"},5627,5627,null,"Hawaii","Oregon",{"$f":"VLOOKUP(H611,'Info Sheet'!O:P,2,0)","v":"OR"},7315,7315]
["Hawaii","Pennsylvania",{"$f":"VLOOKUP(B612,'Info Sheet'!O:P,2,0)","v":"PA"},2510,2510,null,"Hawaii","Pennsylvania",{"$f":"VLOOKUP(H612,'Info Sheet'!O:P,2,0)","v":"PA"},1072,1072]
["Hawaii","Rhode Island",{"$f":"VLOOKUP(B613,'Info Sheet'!O:P,2,0)","v":"RI"},808,808,null,"Hawaii","Rhode Island",{"$f":"VLOOKUP(H613,'Info Sheet'!O:P,2,0)","v":"RI"},394,394]
["Hawaii","South Carolina",{"$f":"VLOOKUP(B614,'Info Sheet'!O:P,2,0)","v":"SC"},2647,2647,null,"Hawaii","South Carolina",{"$f":"VLOOKUP(H614,'Info Sheet'!O:P,2,0)","v":"SC"},2163,2163]
["Hawaii","South Dakota",{"$f":"VLOOKUP(B615,'Info Sheet'!O:P,2,0)","v":"SD"},726,726,null,"Hawaii","South Dakota",{"$f":"VLOOKUP(H615,'Info Sheet'!O:P,2,0)","v":"SD"},83,83]
["Hawaii","Tennessee",{"$f":"VLOOKUP(B616,'Info Sheet'!O:P,2,0)","v":"TN"},2092,2092,null,"Hawaii","Tennessee",{"$f":"VLOOKUP(H616,'Info Sheet'!O:P,2,0)","v":"TN"},1480,1480]
["Hawaii","Texas",{"$f":"VLOOKUP(B617,'Info Sheet'!O:P,2,0)","v":"TX"},13001,13001,null,"Hawaii","Texas",{"$f":"VLOOKUP(H617,'Info Sheet'!O:P,2,0)","v":"TX"},14864,14864]
["Hawaii","Utah",{"$f":"VLOOKUP(B618,'Info Sheet'!O:P,2,0)","v":"UT"},3690,3690,null,"Hawaii","Utah",{"$f":"VLOOKUP(H618,'Info Sheet'!O:P,2,0)","v":"UT"},4069,4069]
["Hawaii","Vermont",{"$f":"VLOOKUP(B619,'Info Sheet'!O:P,2,0)","v":"VT"},0,0,null,"Hawaii","Vermont",{"$f":"VLOOKUP(H619,'Info Sheet'!O:P,2,0)","v":"VT"},198,198]
["Hawaii","Virginia",{"$f":"VLOOKUP(B620,'Info Sheet'!O:P,2,0)","v":"VA"},6560,6560,null,"Hawaii","Virginia",{"$f":"VLOOKUP(H620,'Info Sheet'!O:P,2,0)","v":"VA"},9087,9087]
["Hawaii","Washington",{"$f":"VLOOKUP(B621,'Info Sheet'!O:P,2,0)","v":"WA"},12415,12415,null,"Hawaii","Washington",{"$f":"VLOOKUP(H621,'Info Sheet'!O:P,2,0)","v":"WA"},15425,15425]
["Hawaii","West Virginia",{"$f":"VLOOKUP(B622,'Info Sheet'!O:P,2,0)","v":"WV"},992,992,null,"Hawaii","West Virginia",{"$f":"VLOOKUP(H622,'Info Sheet'!O:P,2,0)","v":"WV"},313,313]
["Hawaii","Wisconsin",{"$f":"VLOOKUP(B623,'Info Sheet'!O:P,2,0)","v":"WI"},1610,1610,null,"Hawaii","Wisconsin",{"$f":"VLOOKUP(H623,'Info Sheet'!O:P,2,0)","v":"WI"},1991,1991]
["Hawaii","Wyoming",{"$f":"VLOOKUP(B624,'Info Sheet'!O:P,2,0)","v":"WY"},82,82,null,"Hawaii","Wyoming",{"$f":"VLOOKUP(H624,'Info Sheet'!O:P,2,0)","v":"WY"},25,25]
["Hawaii","Puerto Rico",{"$f":"VLOOKUP(B625,'Info Sheet'!O:P,2,0)","v":"PR"},574,574,null,"Hawaii","Puerto Rico",{"$f":"VLOOKUP(H625,'Info Sheet'!O:P,2,0)","v":"PR"},110,110]
["Idaho","Alabama",{"$f":"VLOOKUP(B626,'Info Sheet'!O:P,2,0)","v":"AL"},1214,1214,null,"Idaho","Alabama",{"$f":"VLOOKUP(H626,'Info Sheet'!O:P,2,0)","v":"AL"},934,934]
["Idaho","Alaska",{"$f":"VLOOKUP(B627,'Info Sheet'!O:P,2,0)","v":"AK"},8972,8972,null,"Idaho","Alaska",{"$f":"VLOOKUP(H627,'Info Sheet'!O:P,2,0)","v":"AK"},1908,1908]
["Idaho","Arizona",{"$f":"VLOOKUP(B628,'Info Sheet'!O:P,2,0)","v":"AZ"},9053,9053,null,"Idaho","Arizona",{"$f":"VLOOKUP(H628,'Info Sheet'!O:P,2,0)","v":"AZ"},7271,7271]
["Idaho","Arkansas",{"$f":"VLOOKUP(B629,'Info Sheet'!O:P,2,0)","v":"AR"},560,560,null,"Idaho","Arkansas",{"$f":"VLOOKUP(H629,'Info Sheet'!O:P,2,0)","v":"AR"},797,797]
["Idaho","California",{"$f":"VLOOKUP(B630,'Info Sheet'!O:P,2,0)","v":"CA"},28233,28233,null,"Idaho","California",{"$f":"VLOOKUP(H630,'Info Sheet'!O:P,2,0)","v":"CA"},15846,15846]
["Idaho","Colorado",{"$f":"VLOOKUP(B631,'Info Sheet'!O:P,2,0)","v":"CO"},4371,4371,null,"Idaho","Colorado",{"$f":"VLOOKUP(H631,'Info Sheet'!O:P,2,0)","v":"CO"},5077,5077]
["Idaho","Connecticut",{"$f":"VLOOKUP(B632,'Info Sheet'!O:P,2,0)","v":"CT"},44,44,null,"Idaho","Connecticut",{"$f":"VLOOKUP(H632,'Info Sheet'!O:P,2,0)","v":"CT"},377,377]
["Idaho","Delaware",{"$f":"VLOOKUP(B633,'Info Sheet'!O:P,2,0)","v":"DE"},120,120,null,"Idaho","Delaware",{"$f":"VLOOKUP(H633,'Info Sheet'!O:P,2,0)","v":"DE"},473,473]
["Idaho","District of Columbia",{"$f":"VLOOKUP(B634,'Info Sheet'!O:P,2,0)","v":"DC"},260,260,null,"Idaho","District of Columbia",{"$f":"VLOOKUP(H634,'Info Sheet'!O:P,2,0)","v":"DC"},114,114]
["Idaho","Florida",{"$f":"VLOOKUP(B635,'Info Sheet'!O:P,2,0)","v":"FL"},4359,4359,null,"Idaho","Florida",{"$f":"VLOOKUP(H635,'Info Sheet'!O:P,2,0)","v":"FL"},2464,2464]
["Idaho","Georgia",{"$f":"VLOOKUP(B636,'Info Sheet'!O:P,2,0)","v":"GA"},1171,1171,null,"Idaho","Georgia",{"$f":"VLOOKUP(H636,'Info Sheet'!O:P,2,0)","v":"GA"},1476,1476]
["Idaho","Hawaii",{"$f":"VLOOKUP(B637,'Info Sheet'!O:P,2,0)","v":"HI"},583,583,null,"Idaho","Hawaii",{"$f":"VLOOKUP(H637,'Info Sheet'!O:P,2,0)","v":"HI"},558,558]
["Idaho","Idaho",{"$f":"VLOOKUP(B638,'Info Sheet'!O:P,2,0)","v":"ID"},0,0,null,"Idaho","Idaho",{"$f":"VLOOKUP(H638,'Info Sheet'!O:P,2,0)","v":"ID"},0,0]
["Idaho","Illinois",{"$f":"VLOOKUP(B639,'Info Sheet'!O:P,2,0)","v":"IL"},1091,1091,null,"Idaho","Illinois",{"$f":"VLOOKUP(H639,'Info Sheet'!O:P,2,0)","v":"IL"},2090,2090]
["Idaho","Indiana",{"$f":"VLOOKUP(B640,'Info Sheet'!O:P,2,0)","v":"IN"},711,711,null,"Idaho","Indiana",{"$f":"VLOOKUP(H640,'Info Sheet'!O:P,2,0)","v":"IN"},2326,2326]
["Idaho","Iowa",{"$f":"VLOOKUP(B641,'Info Sheet'!O:P,2,0)","v":"IA"},1181,1181,null,"Idaho","Iowa",{"$f":"VLOOKUP(H641,'Info Sheet'!O:P,2,0)","v":"IA"},766,766]
["Idaho","Kansas",{"$f":"VLOOKUP(B642,'Info Sheet'!O:P,2,0)","v":"KS"},964,964,null,"Idaho","Kansas",{"$f":"VLOOKUP(H642,'Info Sheet'!O:P,2,0)","v":"KS"},1118,1118]
["Idaho","Kentucky",{"$f":"VLOOKUP(B643,'Info Sheet'!O:P,2,0)","v":"KY"},518,518,null,"Idaho","Kentucky",{"$f":"VLOOKUP(H643,'Info Sheet'!O:P,2,0)","v":"KY"},157,157]
["Idaho","Louisiana",{"$f":"VLOOKUP(B644,'Info Sheet'!O:P,2,0)","v":"LA"},164,164,null,"Idaho","Louisiana",{"$f":"VLOOKUP(H644,'Info Sheet'!O:P,2,0)","v":"LA"},697,697]
["Idaho","Maine",{"$f":"VLOOKUP(B645,'Info Sheet'!O:P,2,0)","v":"ME"},202,202,null,"Idaho","Maine",{"$f":"VLOOKUP(H645,'Info Sheet'!O:P,2,0)","v":"ME"},143,143]
["Idaho","Maryland",{"$f":"VLOOKUP(B646,'Info Sheet'!O:P,2,0)","v":"MD"},151,151,null,"Idaho","Maryland",{"$f":"VLOOKUP(H646,'Info Sheet'!O:P,2,0)","v":"MD"},1175,1175]
["Idaho","Massachusetts",{"$f":"VLOOKUP(B647,'Info Sheet'!O:P,2,0)","v":"MA"},849,849,null,"Idaho","Massachusetts",{"$f":"VLOOKUP(H647,'Info Sheet'!O:P,2,0)","v":"MA"},679,679]
["Idaho","Michigan",{"$f":"VLOOKUP(B648,'Info Sheet'!O:P,2,0)","v":"MI"},1725,1725,null,"Idaho","Michigan",{"$f":"VLOOKUP(H648,'Info Sheet'!O:P,2,0)","v":"MI"},1190,1190]
["Idaho","Minnesota",{"$f":"VLOOKUP(B649,'Info Sheet'!O:P,2,0)","v":"MN"},1668,1668,null,"Idaho","Minnesota",{"$f":"VLOOKUP(H649,'Info Sheet'!O:P,2,0)","v":"MN"},1208,1208]
["Idaho","Mississippi",{"$f":"VLOOKUP(B650,'Info Sheet'!O:P,2,0)","v":"MS"},186,186,null,"Idaho","Mississippi",{"$f":"VLOOKUP(H650,'Info Sheet'!O:P,2,0)","v":"MS"},762,762]
["Idaho","Missouri",{"$f":"VLOOKUP(B651,'Info Sheet'!O:P,2,0)","v":"MO"},1023,1023,null,"Idaho","Missouri",{"$f":"VLOOKUP(H651,'Info Sheet'!O:P,2,0)","v":"MO"},1986,1986]
["Idaho","Montana",{"$f":"VLOOKUP(B652,'Info Sheet'!O:P,2,0)","v":"MT"},6911,6911,null,"Idaho","Montana",{"$f":"VLOOKUP(H652,'Info Sheet'!O:P,2,0)","v":"MT"},6386,6386]
["Idaho","Nebraska",{"$f":"VLOOKUP(B653,'Info Sheet'!O:P,2,0)","v":"NE"},474,474,null,"Idaho","Nebraska",{"$f":"VLOOKUP(H653,'Info Sheet'!O:P,2,0)","v":"NE"},948,948]
["Idaho","Nevada",{"$f":"VLOOKUP(B654,'Info Sheet'!O:P,2,0)","v":"NV"},8226,8226,null,"Idaho","Nevada",{"$f":"VLOOKUP(H654,'Info Sheet'!O:P,2,0)","v":"NV"},7118,7118]
["Idaho","New Hampshire",{"$f":"VLOOKUP(B655,'Info Sheet'!O:P,2,0)","v":"NH"},238,238,null,"Idaho","New Hampshire",{"$f":"VLOOKUP(H655,'Info Sheet'!O:P,2,0)","v":"NH"},86,86]
["Idaho","New Jersey",{"$f":"VLOOKUP(B656,'Info Sheet'!O:P,2,0)","v":"NJ"},395,395,null,"Idaho","New Jersey",{"$f":"VLOOKUP(H656,'Info Sheet'!O:P,2,0)","v":"NJ"},460,460]
["Idaho","New Mexico",{"$f":"VLOOKUP(B657,'Info Sheet'!O:P,2,0)","v":"NM"},1510,1510,null,"Idaho","New Mexico",{"$f":"VLOOKUP(H657,'Info Sheet'!O:P,2,0)","v":"NM"},1465,1465]
["Idaho","New York",{"$f":"VLOOKUP(B658,'Info Sheet'!O:P,2,0)","v":"NY"},1512,1512,null,"Idaho","New York",{"$f":"VLOOKUP(H658,'Info Sheet'!O:P,2,0)","v":"NY"},1239,1239]
["Idaho","North Carolina",{"$f":"VLOOKUP(B659,'Info Sheet'!O:P,2,0)","v":"NC"},1214,1214,null,"Idaho","North Carolina",{"$f":"VLOOKUP(H659,'Info Sheet'!O:P,2,0)","v":"NC"},1733,1733]
["Idaho","North Dakota",{"$f":"VLOOKUP(B660,'Info Sheet'!O:P,2,0)","v":"ND"},1297,1297,null,"Idaho","North Dakota",{"$f":"VLOOKUP(H660,'Info Sheet'!O:P,2,0)","v":"ND"},1818,1818]
["Idaho","Ohio",{"$f":"VLOOKUP(B661,'Info Sheet'!O:P,2,0)","v":"OH"},1603,1603,null,"Idaho","Ohio",{"$f":"VLOOKUP(H661,'Info Sheet'!O:P,2,0)","v":"OH"},1288,1288]
["Idaho","Oklahoma",{"$f":"VLOOKUP(B662,'Info Sheet'!O:P,2,0)","v":"OK"},1092,1092,null,"Idaho","Oklahoma",{"$f":"VLOOKUP(H662,'Info Sheet'!O:P,2,0)","v":"OK"},1537,1537]
["Idaho","Oregon",{"$f":"VLOOKUP(B663,'Info Sheet'!O:P,2,0)","v":"OR"},15335,15335,null,"Idaho","Oregon",{"$f":"VLOOKUP(H663,'Info Sheet'!O:P,2,0)","v":"OR"},15458,15458]
["Idaho","Pennsylvania",{"$f":"VLOOKUP(B664,'Info Sheet'!O:P,2,0)","v":"PA"},684,684,null,"Idaho","Pennsylvania",{"$f":"VLOOKUP(H664,'Info Sheet'!O:P,2,0)","v":"PA"},975,975]
["Idaho","Rhode Island",{"$f":"VLOOKUP(B665,'Info Sheet'!O:P,2,0)","v":"RI"},0,0,null,"Idaho","Rhode Island",{"$f":"VLOOKUP(H665,'Info Sheet'!O:P,2,0)","v":"RI"},107,107]
["Idaho","South Carolina",{"$f":"VLOOKUP(B666,'Info Sheet'!O:P,2,0)","v":"SC"},260,260,null,"Idaho","South Carolina",{"$f":"VLOOKUP(H666,'Info Sheet'!O:P,2,0)","v":"SC"},486,486]
["Idaho","South Dakota",{"$f":"VLOOKUP(B667,'Info Sheet'!O:P,2,0)","v":"SD"},1256,1256,null,"Idaho","South Dakota",{"$f":"VLOOKUP(H667,'Info Sheet'!O:P,2,0)","v":"SD"},721,721]
["Idaho","Tennessee",{"$f":"VLOOKUP(B668,'Info Sheet'!O:P,2,0)","v":"TN"},3406,3406,null,"Idaho","Tennessee",{"$f":"VLOOKUP(H668,'Info Sheet'!O:P,2,0)","v":"TN"},1120,1120]
["Idaho","Texas",{"$f":"VLOOKUP(B669,'Info Sheet'!O:P,2,0)","v":"TX"},4401,4401,null,"Idaho","Texas",{"$f":"VLOOKUP(H669,'Info Sheet'!O:P,2,0)","v":"TX"},8799,8799]
["Idaho","Utah",{"$f":"VLOOKUP(B670,'Info Sheet'!O:P,2,0)","v":"UT"},20690,20690,null,"Idaho","Utah",{"$f":"VLOOKUP(H670,'Info Sheet'!O:P,2,0)","v":"UT"},20359,20359]
["Idaho","Vermont",{"$f":"VLOOKUP(B671,'Info Sheet'!O:P,2,0)","v":"VT"},0,0,null,"Idaho","Vermont",{"$f":"VLOOKUP(H671,'Info Sheet'!O:P,2,0)","v":"VT"},0,0]
["Idaho","Virginia",{"$f":"VLOOKUP(B672,'Info Sheet'!O:P,2,0)","v":"VA"},1785,1785,null,"Idaho","Virginia",{"$f":"VLOOKUP(H672,'Info Sheet'!O:P,2,0)","v":"VA"},2245,2245]
["Idaho","Washington",{"$f":"VLOOKUP(B673,'Info Sheet'!O:P,2,0)","v":"WA"},30265,30265,null,"Idaho","Washington",{"$f":"VLOOKUP(H673,'Info Sheet'!O:P,2,0)","v":"WA"},34160,34160]
["Idaho","West Virginia",{"$f":"VLOOKUP(B674,'Info Sheet'!O:P,2,0)","v":"WV"},133,133,null,"Idaho","West Virginia",{"$f":"VLOOKUP(H674,'Info Sheet'!O:P,2,0)","v":"WV"},389,389]
["Idaho","Wisconsin",{"$f":"VLOOKUP(B675,'Info Sheet'!O:P,2,0)","v":"WI"},623,623,null,"Idaho","Wisconsin",{"$f":"VLOOKUP(H675,'Info Sheet'!O:P,2,0)","v":"WI"},1828,1828]
["Idaho","Wyoming",{"$f":"VLOOKUP(B676,'Info Sheet'!O:P,2,0)","v":"WY"},2574,2574,null,"Idaho","Wyoming",{"$f":"VLOOKUP(H676,'Info Sheet'!O:P,2,0)","v":"WY"},3827,3827]
["Idaho","Puerto Rico",{"$f":"VLOOKUP(B677,'Info Sheet'!O:P,2,0)","v":"PR"},618,618,null,"Idaho","Puerto Rico",{"$f":"VLOOKUP(H677,'Info Sheet'!O:P,2,0)","v":"PR"},13,13]
["Illinois","Alabama",{"$f":"VLOOKUP(B678,'Info Sheet'!O:P,2,0)","v":"AL"},5103,5103,null,"Illinois","Alabama",{"$f":"VLOOKUP(H678,'Info Sheet'!O:P,2,0)","v":"AL"},12216,12216]
["Illinois","Alaska",{"$f":"VLOOKUP(B679,'Info Sheet'!O:P,2,0)","v":"AK"},8133,8133,null,"Illinois","Alaska",{"$f":"VLOOKUP(H679,'Info Sheet'!O:P,2,0)","v":"AK"},1431,1431]
["Illinois","Arizona",{"$f":"VLOOKUP(B680,'Info Sheet'!O:P,2,0)","v":"AZ"},20717,20717,null,"Illinois","Arizona",{"$f":"VLOOKUP(H680,'Info Sheet'!O:P,2,0)","v":"AZ"},33029,33029]
["Illinois","Arkansas",{"$f":"VLOOKUP(B681,'Info Sheet'!O:P,2,0)","v":"AR"},5966,5966,null,"Illinois","Arkansas",{"$f":"VLOOKUP(H681,'Info Sheet'!O:P,2,0)","v":"AR"},10481,10481]
["Illinois","California",{"$f":"VLOOKUP(B682,'Info Sheet'!O:P,2,0)","v":"CA"},45075,45075,null,"Illinois","California",{"$f":"VLOOKUP(H682,'Info Sheet'!O:P,2,0)","v":"CA"},58567,58567]
["Illinois","Colorado",{"$f":"VLOOKUP(B683,'Info Sheet'!O:P,2,0)","v":"CO"},10157,10157,null,"Illinois","Colorado",{"$f":"VLOOKUP(H683,'Info Sheet'!O:P,2,0)","v":"CO"},19351,19351]
["Illinois","Connecticut",{"$f":"VLOOKUP(B684,'Info Sheet'!O:P,2,0)","v":"CT"},5038,5038,null,"Illinois","Connecticut",{"$f":"VLOOKUP(H684,'Info Sheet'!O:P,2,0)","v":"CT"},6146,6146]
["Illinois","Delaware",{"$f":"VLOOKUP(B685,'Info Sheet'!O:P,2,0)","v":"DE"},567,567,null,"Illinois","Delaware",{"$f":"VLOOKUP(H685,'Info Sheet'!O:P,2,0)","v":"DE"},1213,1213]
["Illinois","District of Columbia",{"$f":"VLOOKUP(B686,'Info Sheet'!O:P,2,0)","v":"DC"},3553,3553,null,"Illinois","District of Columbia",{"$f":"VLOOKUP(H686,'Info Sheet'!O:P,2,0)","v":"DC"},2807,2807]
["Illinois","Florida",{"$f":"VLOOKUP(B687,'Info Sheet'!O:P,2,0)","v":"FL"},38286,38286,null,"Illinois","Florida",{"$f":"VLOOKUP(H687,'Info Sheet'!O:P,2,0)","v":"FL"},59149,59149]
["Illinois","Georgia",{"$f":"VLOOKUP(B688,'Info Sheet'!O:P,2,0)","v":"GA"},21568,21568,null,"Illinois","Georgia",{"$f":"VLOOKUP(H688,'Info Sheet'!O:P,2,0)","v":"GA"},22959,22959]
["Illinois","Hawaii",{"$f":"VLOOKUP(B689,'Info Sheet'!O:P,2,0)","v":"HI"},3362,3362,null,"Illinois","Hawaii",{"$f":"VLOOKUP(H689,'Info Sheet'!O:P,2,0)","v":"HI"},2917,2917]
["Illinois","Idaho",{"$f":"VLOOKUP(B690,'Info Sheet'!O:P,2,0)","v":"ID"},2090,2090,null,"Illinois","Idaho",{"$f":"VLOOKUP(H690,'Info Sheet'!O:P,2,0)","v":"ID"},1091,1091]
["Illinois","Illinois",{"$f":"VLOOKUP(B691,'Info Sheet'!O:P,2,0)","v":"IL"},0,0,null,"Illinois","Illinois",{"$f":"VLOOKUP(H691,'Info Sheet'!O:P,2,0)","v":"IL"},0,0]
["Illinois","Indiana",{"$f":"VLOOKUP(B692,'Info Sheet'!O:P,2,0)","v":"IN"},62316,62316,null,"Illinois","Indiana",{"$f":"VLOOKUP(H692,'Info Sheet'!O:P,2,0)","v":"IN"},79457,79457]
["Illinois","Iowa",{"$f":"VLOOKUP(B693,'Info Sheet'!O:P,2,0)","v":"IA"},26090,26090,null,"Illinois","Iowa",{"$f":"VLOOKUP(H693,'Info Sheet'!O:P,2,0)","v":"IA"},42710,42710]
["Illinois","Kansas",{"$f":"VLOOKUP(B694,'Info Sheet'!O:P,2,0)","v":"KS"},6512,6512,null,"Illinois","Kansas",{"$f":"VLOOKUP(H694,'Info Sheet'!O:P,2,0)","v":"KS"},7405,7405]
["Illinois","Kentucky",{"$f":"VLOOKUP(B695,'Info Sheet'!O:P,2,0)","v":"KY"},11413,11413,null,"Illinois","Kentucky",{"$f":"VLOOKUP(H695,'Info Sheet'!O:P,2,0)","v":"KY"},13377,13377]
["Illinois","Louisiana",{"$f":"VLOOKUP(B696,'Info Sheet'!O:P,2,0)","v":"LA"},3963,3963,null,"Illinois","Louisiana",{"$f":"VLOOKUP(H696,'Info Sheet'!O:P,2,0)","v":"LA"},4549,4549]
["Illinois","Maine",{"$f":"VLOOKUP(B697,'Info Sheet'!O:P,2,0)","v":"ME"},1274,1274,null,"Illinois","Maine",{"$f":"VLOOKUP(H697,'Info Sheet'!O:P,2,0)","v":"ME"},1181,1181]
["Illinois","Maryland",{"$f":"VLOOKUP(B698,'Info Sheet'!O:P,2,0)","v":"MD"},6415,6415,null,"Illinois","Maryland",{"$f":"VLOOKUP(H698,'Info Sheet'!O:P,2,0)","v":"MD"},9313,9313]
["Illinois","Massachusetts",{"$f":"VLOOKUP(B699,'Info Sheet'!O:P,2,0)","v":"MA"},9614,9614,null,"Illinois","Massachusetts",{"$f":"VLOOKUP(H699,'Info Sheet'!O:P,2,0)","v":"MA"},8719,8719]
["Illinois","Michigan",{"$f":"VLOOKUP(B700,'Info Sheet'!O:P,2,0)","v":"MI"},34722,34722,null,"Illinois","Michigan",{"$f":"VLOOKUP(H700,'Info Sheet'!O:P,2,0)","v":"MI"},30595,30595]
["Illinois","Minnesota",{"$f":"VLOOKUP(B701,'Info Sheet'!O:P,2,0)","v":"MN"},15333,15333,null,"Illinois","Minnesota",{"$f":"VLOOKUP(H701,'Info Sheet'!O:P,2,0)","v":"MN"},20746,20746]
["Illinois","Mississippi",{"$f":"VLOOKUP(B702,'Info Sheet'!O:P,2,0)","v":"MS"},5358,5358,null,"Illinois","Mississippi",{"$f":"VLOOKUP(H702,'Info Sheet'!O:P,2,0)","v":"MS"},7801,7801]
["Illinois","Missouri",{"$f":"VLOOKUP(B703,'Info Sheet'!O:P,2,0)","v":"MO"},43856,43856,null,"Illinois","Missouri",{"$f":"VLOOKUP(H703,'Info Sheet'!O:P,2,0)","v":"MO"},63439,63439]
["Illinois","Montana",{"$f":"VLOOKUP(B704,'Info Sheet'!O:P,2,0)","v":"MT"},1460,1460,null,"Illinois","Montana",{"$f":"VLOOKUP(H704,'Info Sheet'!O:P,2,0)","v":"MT"},2401,2401]
["Illinois","Nebraska",{"$f":"VLOOKUP(B705,'Info Sheet'!O:P,2,0)","v":"NE"},2675,2675,null,"Illinois","Nebraska",{"$f":"VLOOKUP(H705,'Info Sheet'!O:P,2,0)","v":"NE"},4428,4428]
["Illinois","Nevada",{"$f":"VLOOKUP(B706,'Info Sheet'!O:P,2,0)","v":"NV"},6473,6473,null,"Illinois","Nevada",{"$f":"VLOOKUP(H706,'Info Sheet'!O:P,2,0)","v":"NV"},6201,6201]
["Illinois","New Hampshire",{"$f":"VLOOKUP(B707,'Info Sheet'!O:P,2,0)","v":"NH"},1079,1079,null,"Illinois","New Hampshire",{"$f":"VLOOKUP(H707,'Info Sheet'!O:P,2,0)","v":"NH"},2001,2001]
["Illinois","New Jersey",{"$f":"VLOOKUP(B708,'Info Sheet'!O:P,2,0)","v":"NJ"},7706,7706,null,"Illinois","New Jersey",{"$f":"VLOOKUP(H708,'Info Sheet'!O:P,2,0)","v":"NJ"},8398,8398]
["Illinois","New Mexico",{"$f":"VLOOKUP(B709,'Info Sheet'!O:P,2,0)","v":"NM"},3928,3928,null,"Illinois","New Mexico",{"$f":"VLOOKUP(H709,'Info Sheet'!O:P,2,0)","v":"NM"},1782,1782]
["Illinois","New York",{"$f":"VLOOKUP(B710,'Info Sheet'!O:P,2,0)","v":"NY"},22452,22452,null,"Illinois","New York",{"$f":"VLOOKUP(H710,'Info Sheet'!O:P,2,0)","v":"NY"},21464,21464]
["Illinois","North Carolina",{"$f":"VLOOKUP(B711,'Info Sheet'!O:P,2,0)","v":"NC"},13322,13322,null,"Illinois","North Carolina",{"$f":"VLOOKUP(H711,'Info Sheet'!O:P,2,0)","v":"NC"},18006,18006]
["Illinois","North Dakota",{"$f":"VLOOKUP(B712,'Info Sheet'!O:P,2,0)","v":"ND"},1413,1413,null,"Illinois","North Dakota",{"$f":"VLOOKUP(H712,'Info Sheet'!O:P,2,0)","v":"ND"},1409,1409]
["Illinois","Ohio",{"$f":"VLOOKUP(B713,'Info Sheet'!O:P,2,0)","v":"OH"},20359,20359,null,"Illinois","Ohio",{"$f":"VLOOKUP(H713,'Info Sheet'!O:P,2,0)","v":"OH"},23629,23629]
["Illinois","Oklahoma",{"$f":"VLOOKUP(B714,'Info Sheet'!O:P,2,0)","v":"OK"},3952,3952,null,"Illinois","Oklahoma",{"$f":"VLOOKUP(H714,'Info Sheet'!O:P,2,0)","v":"OK"},5958,5958]
["Illinois","Oregon",{"$f":"VLOOKUP(B715,'Info Sheet'!O:P,2,0)","v":"OR"},2970,2970,null,"Illinois","Oregon",{"$f":"VLOOKUP(H715,'Info Sheet'!O:P,2,0)","v":"OR"},4591,4591]
["Illinois","Pennsylvania",{"$f":"VLOOKUP(B716,'Info Sheet'!O:P,2,0)","v":"PA"},12790,12790,null,"Illinois","Pennsylvania",{"$f":"VLOOKUP(H716,'Info Sheet'!O:P,2,0)","v":"PA"},12141,12141]
["Illinois","Rhode Island",{"$f":"VLOOKUP(B717,'Info Sheet'!O:P,2,0)","v":"RI"},1578,1578,null,"Illinois","Rhode Island",{"$f":"VLOOKUP(H717,'Info Sheet'!O:P,2,0)","v":"RI"},1968,1968]
["Illinois","South Carolina",{"$f":"VLOOKUP(B718,'Info Sheet'!O:P,2,0)","v":"SC"},4730,4730,null,"Illinois","South Carolina",{"$f":"VLOOKUP(H718,'Info Sheet'!O:P,2,0)","v":"SC"},8749,8749]
["Illinois","South Dakota",{"$f":"VLOOKUP(B719,'Info Sheet'!O:P,2,0)","v":"SD"},2004,2004,null,"Illinois","South Dakota",{"$f":"VLOOKUP(H719,'Info Sheet'!O:P,2,0)","v":"SD"},421,421]
["Illinois","Tennessee",{"$f":"VLOOKUP(B720,'Info Sheet'!O:P,2,0)","v":"TN"},11870,11870,null,"Illinois","Tennessee",{"$f":"VLOOKUP(H720,'Info Sheet'!O:P,2,0)","v":"TN"},18849,18849]
["Illinois","Texas",{"$f":"VLOOKUP(B721,'Info Sheet'!O:P,2,0)","v":"TX"},40036,40036,null,"Illinois","Texas",{"$f":"VLOOKUP(H721,'Info Sheet'!O:P,2,0)","v":"TX"},54905,54905]
["Illinois","Utah",{"$f":"VLOOKUP(B722,'Info Sheet'!O:P,2,0)","v":"UT"},2763,2763,null,"Illinois","Utah",{"$f":"VLOOKUP(H722,'Info Sheet'!O:P,2,0)","v":"UT"},4866,4866]
["Illinois","Vermont",{"$f":"VLOOKUP(B723,'Info Sheet'!O:P,2,0)","v":"VT"},465,465,null,"Illinois","Vermont",{"$f":"VLOOKUP(H723,'Info Sheet'!O:P,2,0)","v":"VT"},986,986]
["Illinois","Virginia",{"$f":"VLOOKUP(B724,'Info Sheet'!O:P,2,0)","v":"VA"},13375,13375,null,"Illinois","Virginia",{"$f":"VLOOKUP(H724,'Info Sheet'!O:P,2,0)","v":"VA"},18665,18665]
["Illinois","Washington",{"$f":"VLOOKUP(B725,'Info Sheet'!O:P,2,0)","v":"WA"},7421,7421,null,"Illinois","Washington",{"$f":"VLOOKUP(H725,'Info Sheet'!O:P,2,0)","v":"WA"},10291,10291]
["Illinois","West Virginia",{"$f":"VLOOKUP(B726,'Info Sheet'!O:P,2,0)","v":"WV"},2385,2385,null,"Illinois","West Virginia",{"$f":"VLOOKUP(H726,'Info Sheet'!O:P,2,0)","v":"WV"},1907,1907]
["Illinois","Wisconsin",{"$f":"VLOOKUP(B727,'Info Sheet'!O:P,2,0)","v":"WI"},44285,44285,null,"Illinois","Wisconsin",{"$f":"VLOOKUP(H727,'Info Sheet'!O:P,2,0)","v":"WI"},68105,68105]
["Illinois","Wyoming",{"$f":"VLOOKUP(B728,'Info Sheet'!O:P,2,0)","v":"WY"},946,946,null,"Illinois","Wyoming",{"$f":"VLOOKUP(H728,'Info Sheet'!O:P,2,0)","v":"WY"},1770,1770]
["Illinois","Puerto Rico",{"$f":"VLOOKUP(B729,'Info Sheet'!O:P,2,0)","v":"PR"},6491,6491,null,"Illinois","Puerto Rico",{"$f":"VLOOKUP(H729,'Info Sheet'!O:P,2,0)","v":"PR"},3287,3287]
["Indiana","Alabama",{"$f":"VLOOKUP(B730,'Info Sheet'!O:P,2,0)","v":"AL"},4689,4689,null,"Indiana","Alabama",{"$f":"VLOOKUP(H730,'Info Sheet'!O:P,2,0)","v":"AL"},6726,6726]
["Indiana","Alaska",{"$f":"VLOOKUP(B731,'Info Sheet'!O:P,2,0)","v":"AK"},1027,1027,null,"Indiana","Alaska",{"$f":"VLOOKUP(H731,'Info Sheet'!O:P,2,0)","v":"AK"},450,450]
["Indiana","Arizona",{"$f":"VLOOKUP(B732,'Info Sheet'!O:P,2,0)","v":"AZ"},8948,8948,null,"Indiana","Arizona",{"$f":"VLOOKUP(H732,'Info Sheet'!O:P,2,0)","v":"AZ"},11475,11475]
["Indiana","Arkansas",{"$f":"VLOOKUP(B733,'Info Sheet'!O:P,2,0)","v":"AR"},4128,4128,null,"Indiana","Arkansas",{"$f":"VLOOKUP(H733,'Info Sheet'!O:P,2,0)","v":"AR"},3256,3256]
["Indiana","California",{"$f":"VLOOKUP(B734,'Info Sheet'!O:P,2,0)","v":"CA"},22641,22641,null,"Indiana","California",{"$f":"VLOOKUP(H734,'Info Sheet'!O:P,2,0)","v":"CA"},17114,17114]
["Indiana","Colorado",{"$f":"VLOOKUP(B735,'Info Sheet'!O:P,2,0)","v":"CO"},4517,4517,null,"Indiana","Colorado",{"$f":"VLOOKUP(H735,'Info Sheet'!O:P,2,0)","v":"CO"},9748,9748]
["Indiana","Connecticut",{"$f":"VLOOKUP(B736,'Info Sheet'!O:P,2,0)","v":"CT"},2594,2594,null,"Indiana","Connecticut",{"$f":"VLOOKUP(H736,'Info Sheet'!O:P,2,0)","v":"CT"},1295,1295]
["Indiana","Delaware",{"$f":"VLOOKUP(B737,'Info Sheet'!O:P,2,0)","v":"DE"},718,718,null,"Indiana","Delaware",{"$f":"VLOOKUP(H737,'Info Sheet'!O:P,2,0)","v":"DE"},272,272]
["Indiana","District of Columbia",{"$f":"VLOOKUP(B738,'Info Sheet'!O:P,2,0)","v":"DC"},1226,1226,null,"Indiana","District of Columbia",{"$f":"VLOOKUP(H738,'Info Sheet'!O:P,2,0)","v":"DC"},1308,1308]
["Indiana","Florida",{"$f":"VLOOKUP(B739,'Info Sheet'!O:P,2,0)","v":"FL"},25563,25563,null,"Indiana","Florida",{"$f":"VLOOKUP(H739,'Info Sheet'!O:P,2,0)","v":"FL"},34305,34305]
["Indiana","Georgia",{"$f":"VLOOKUP(B740,'Info Sheet'!O:P,2,0)","v":"GA"},6424,6424,null,"Indiana","Georgia",{"$f":"VLOOKUP(H740,'Info Sheet'!O:P,2,0)","v":"GA"},11063,11063]
["Indiana","Hawaii",{"$f":"VLOOKUP(B741,'Info Sheet'!O:P,2,0)","v":"HI"},2180,2180,null,"Indiana","Hawaii",{"$f":"VLOOKUP(H741,'Info Sheet'!O:P,2,0)","v":"HI"},886,886]
["Indiana","Idaho",{"$f":"VLOOKUP(B742,'Info Sheet'!O:P,2,0)","v":"ID"},2326,2326,null,"Indiana","Idaho",{"$f":"VLOOKUP(H742,'Info Sheet'!O:P,2,0)","v":"ID"},711,711]
["Indiana","Illinois",{"$f":"VLOOKUP(B743,'Info Sheet'!O:P,2,0)","v":"IL"},79457,79457,null,"Indiana","Illinois",{"$f":"VLOOKUP(H743,'Info Sheet'!O:P,2,0)","v":"IL"},62316,62316]
["Indiana","Indiana",{"$f":"VLOOKUP(B744,'Info Sheet'!O:P,2,0)","v":"IN"},0,0,null,"Indiana","Indiana",{"$f":"VLOOKUP(H744,'Info Sheet'!O:P,2,0)","v":"IN"},0,0]
["Indiana","Iowa",{"$f":"VLOOKUP(B745,'Info Sheet'!O:P,2,0)","v":"IA"},4479,4479,null,"Indiana","Iowa",{"$f":"VLOOKUP(H745,'Info Sheet'!O:P,2,0)","v":"IA"},3775,3775]
["Indiana","Kansas",{"$f":"VLOOKUP(B746,'Info Sheet'!O:P,2,0)","v":"KS"},4527,4527,null,"Indiana","Kansas",{"$f":"VLOOKUP(H746,'Info Sheet'!O:P,2,0)","v":"KS"},4086,4086]
["Indiana","Kentucky",{"$f":"VLOOKUP(B747,'Info Sheet'!O:P,2,0)","v":"KY"},31997,31997,null,"Indiana","Kentucky",{"$f":"VLOOKUP(H747,'Info Sheet'!O:P,2,0)","v":"KY"},35180,35180]
["Indiana","Louisiana",{"$f":"VLOOKUP(B748,'Info Sheet'!O:P,2,0)","v":"LA"},3726,3726,null,"Indiana","Louisiana",{"$f":"VLOOKUP(H748,'Info Sheet'!O:P,2,0)","v":"LA"},3856,3856]
["Indiana","Maine",{"$f":"VLOOKUP(B749,'Info Sheet'!O:P,2,0)","v":"ME"},305,305,null,"Indiana","Maine",{"$f":"VLOOKUP(H749,'Info Sheet'!O:P,2,0)","v":"ME"},423,423]
["Indiana","Maryland",{"$f":"VLOOKUP(B750,'Info Sheet'!O:P,2,0)","v":"MD"},3171,3171,null,"Indiana","Maryland",{"$f":"VLOOKUP(H750,'Info Sheet'!O:P,2,0)","v":"MD"},2959,2959]
["Indiana","Massachusetts",{"$f":"VLOOKUP(B751,'Info Sheet'!O:P,2,0)","v":"MA"},1892,1892,null,"Indiana","Massachusetts",{"$f":"VLOOKUP(H751,'Info Sheet'!O:P,2,0)","v":"MA"},3208,3208]
["Indiana","Michigan",{"$f":"VLOOKUP(B752,'Info Sheet'!O:P,2,0)","v":"MI"},28274,28274,null,"Indiana","Michigan",{"$f":"VLOOKUP(H752,'Info Sheet'!O:P,2,0)","v":"MI"},26460,26460]
["Indiana","Minnesota",{"$f":"VLOOKUP(B753,'Info Sheet'!O:P,2,0)","v":"MN"},3627,3627,null,"Indiana","Minnesota",{"$f":"VLOOKUP(H753,'Info Sheet'!O:P,2,0)","v":"MN"},3932,3932]
["Indiana","Mississippi",{"$f":"VLOOKUP(B754,'Info Sheet'!O:P,2,0)","v":"MS"},2687,2687,null,"Indiana","Mississippi",{"$f":"VLOOKUP(H754,'Info Sheet'!O:P,2,0)","v":"MS"},3214,3214]
["Indiana","Missouri",{"$f":"VLOOKUP(B755,'Info Sheet'!O:P,2,0)","v":"MO"},10243,10243,null,"Indiana","Missouri",{"$f":"VLOOKUP(H755,'Info Sheet'!O:P,2,0)","v":"MO"},11939,11939]
["Indiana","Montana",{"$f":"VLOOKUP(B756,'Info Sheet'!O:P,2,0)","v":"MT"},332,332,null,"Indiana","Montana",{"$f":"VLOOKUP(H756,'Info Sheet'!O:P,2,0)","v":"MT"},1060,1060]
["Indiana","Nebraska",{"$f":"VLOOKUP(B757,'Info Sheet'!O:P,2,0)","v":"NE"},1918,1918,null,"Indiana","Nebraska",{"$f":"VLOOKUP(H757,'Info Sheet'!O:P,2,0)","v":"NE"},1544,1544]
["Indiana","Nevada",{"$f":"VLOOKUP(B758,'Info Sheet'!O:P,2,0)","v":"NV"},1749,1749,null,"Indiana","Nevada",{"$f":"VLOOKUP(H758,'Info Sheet'!O:P,2,0)","v":"NV"},1956,1956]
["Indiana","New Hampshire",{"$f":"VLOOKUP(B759,'Info Sheet'!O:P,2,0)","v":"NH"},204,204,null,"Indiana","New Hampshire",{"$f":"VLOOKUP(H759,'Info Sheet'!O:P,2,0)","v":"NH"},790,790]
["Indiana","New Jersey",{"$f":"VLOOKUP(B760,'Info Sheet'!O:P,2,0)","v":"NJ"},4064,4064,null,"Indiana","New Jersey",{"$f":"VLOOKUP(H760,'Info Sheet'!O:P,2,0)","v":"NJ"},2159,2159]
["Indiana","New Mexico",{"$f":"VLOOKUP(B761,'Info Sheet'!O:P,2,0)","v":"NM"},911,911,null,"Indiana","New Mexico",{"$f":"VLOOKUP(H761,'Info Sheet'!O:P,2,0)","v":"NM"},3155,3155]
["Indiana","New York",{"$f":"VLOOKUP(B762,'Info Sheet'!O:P,2,0)","v":"NY"},7398,7398,null,"Indiana","New York",{"$f":"VLOOKUP(H762,'Info Sheet'!O:P,2,0)","v":"NY"},7735,7735]
["Indiana","North Carolina",{"$f":"VLOOKUP(B763,'Info Sheet'!O:P,2,0)","v":"NC"},8531,8531,null,"Indiana","North Carolina",{"$f":"VLOOKUP(H763,'Info Sheet'!O:P,2,0)","v":"NC"},11892,11892]
["Indiana","North Dakota",{"$f":"VLOOKUP(B764,'Info Sheet'!O:P,2,0)","v":"ND"},183,183,null,"Indiana","North Dakota",{"$f":"VLOOKUP(H764,'Info Sheet'!O:P,2,0)","v":"ND"},230,230]
["Indiana","Ohio",{"$f":"VLOOKUP(B765,'Info Sheet'!O:P,2,0)","v":"OH"},35616,35616,null,"Indiana","Ohio",{"$f":"VLOOKUP(H765,'Info Sheet'!O:P,2,0)","v":"OH"},34560,34560]
["Indiana","Oklahoma",{"$f":"VLOOKUP(B766,'Info Sheet'!O:P,2,0)","v":"OK"},2723,2723,null,"Indiana","Oklahoma",{"$f":"VLOOKUP(H766,'Info Sheet'!O:P,2,0)","v":"OK"},4560,4560]
["Indiana","Oregon",{"$f":"VLOOKUP(B767,'Info Sheet'!O:P,2,0)","v":"OR"},1315,1315,null,"Indiana","Oregon",{"$f":"VLOOKUP(H767,'Info Sheet'!O:P,2,0)","v":"OR"},3068,3068]
["Indiana","Pennsylvania",{"$f":"VLOOKUP(B768,'Info Sheet'!O:P,2,0)","v":"PA"},9085,9085,null,"Indiana","Pennsylvania",{"$f":"VLOOKUP(H768,'Info Sheet'!O:P,2,0)","v":"PA"},7703,7703]
["Indiana","Rhode Island",{"$f":"VLOOKUP(B769,'Info Sheet'!O:P,2,0)","v":"RI"},223,223,null,"Indiana","Rhode Island",{"$f":"VLOOKUP(H769,'Info Sheet'!O:P,2,0)","v":"RI"},247,247]
["Indiana","South Carolina",{"$f":"VLOOKUP(B770,'Info Sheet'!O:P,2,0)","v":"SC"},5304,5304,null,"Indiana","South Carolina",{"$f":"VLOOKUP(H770,'Info Sheet'!O:P,2,0)","v":"SC"},9225,9225]
["Indiana","South Dakota",{"$f":"VLOOKUP(B771,'Info Sheet'!O:P,2,0)","v":"SD"},562,562,null,"Indiana","South Dakota",{"$f":"VLOOKUP(H771,'Info Sheet'!O:P,2,0)","v":"SD"},934,934]
["Indiana","Tennessee",{"$f":"VLOOKUP(B772,'Info Sheet'!O:P,2,0)","v":"TN"},10519,10519,null,"Indiana","Tennessee",{"$f":"VLOOKUP(H772,'Info Sheet'!O:P,2,0)","v":"TN"},16000,16000]
["Indiana","Texas",{"$f":"VLOOKUP(B773,'Info Sheet'!O:P,2,0)","v":"TX"},17151,17151,null,"Indiana","Texas",{"$f":"VLOOKUP(H773,'Info Sheet'!O:P,2,0)","v":"TX"},25514,25514]
["Indiana","Utah",{"$f":"VLOOKUP(B774,'Info Sheet'!O:P,2,0)","v":"UT"},672,672,null,"Indiana","Utah",{"$f":"VLOOKUP(H774,'Info Sheet'!O:P,2,0)","v":"UT"},1537,1537]
["Indiana","Vermont",{"$f":"VLOOKUP(B775,'Info Sheet'!O:P,2,0)","v":"VT"},575,575,null,"Indiana","Vermont",{"$f":"VLOOKUP(H775,'Info Sheet'!O:P,2,0)","v":"VT"},326,326]
["Indiana","Virginia",{"$f":"VLOOKUP(B776,'Info Sheet'!O:P,2,0)","v":"VA"},7091,7091,null,"Indiana","Virginia",{"$f":"VLOOKUP(H776,'Info Sheet'!O:P,2,0)","v":"VA"},8258,8258]
["Indiana","Washington",{"$f":"VLOOKUP(B777,'Info Sheet'!O:P,2,0)","v":"WA"},1857,1857,null,"Indiana","Washington",{"$f":"VLOOKUP(H777,'Info Sheet'!O:P,2,0)","v":"WA"},5304,5304]
["Indiana","West Virginia",{"$f":"VLOOKUP(B778,'Info Sheet'!O:P,2,0)","v":"WV"},1392,1392,null,"Indiana","West Virginia",{"$f":"VLOOKUP(H778,'Info Sheet'!O:P,2,0)","v":"WV"},904,904]
["Indiana","Wisconsin",{"$f":"VLOOKUP(B779,'Info Sheet'!O:P,2,0)","v":"WI"},6412,6412,null,"Indiana","Wisconsin",{"$f":"VLOOKUP(H779,'Info Sheet'!O:P,2,0)","v":"WI"},9060,9060]
["Indiana","Wyoming",{"$f":"VLOOKUP(B780,'Info Sheet'!O:P,2,0)","v":"WY"},2211,2211,null,"Indiana","Wyoming",{"$f":"VLOOKUP(H780,'Info Sheet'!O:P,2,0)","v":"WY"},317,317]
["Indiana","Puerto Rico",{"$f":"VLOOKUP(B781,'Info Sheet'!O:P,2,0)","v":"PR"},840,840,null,"Indiana","Puerto Rico",{"$f":"VLOOKUP(H781,'Info Sheet'!O:P,2,0)","v":"PR"},1014,1014]
["Iowa","Alabama",{"$f":"VLOOKUP(B782,'Info Sheet'!O:P,2,0)","v":"AL"},1040,1040,null,"Iowa","Alabama",{"$f":"VLOOKUP(H782,'Info Sheet'!O:P,2,0)","v":"AL"},1044,1044]
["Iowa","Alaska",{"$f":"VLOOKUP(B783,'Info Sheet'!O:P,2,0)","v":"AK"},2437,2437,null,"Iowa","Alaska",{"$f":"VLOOKUP(H783,'Info Sheet'!O:P,2,0)","v":"AK"},594,594]
["Iowa","Arizona",{"$f":"VLOOKUP(B784,'Info Sheet'!O:P,2,0)","v":"AZ"},4484,4484,null,"Iowa","Arizona",{"$f":"VLOOKUP(H784,'Info Sheet'!O:P,2,0)","v":"AZ"},10236,10236]
["Iowa","Arkansas",{"$f":"VLOOKUP(B785,'Info Sheet'!O:P,2,0)","v":"AR"},1131,1131,null,"Iowa","Arkansas",{"$f":"VLOOKUP(H785,'Info Sheet'!O:P,2,0)","v":"AR"},1345,1345]
["Iowa","California",{"$f":"VLOOKUP(B786,'Info Sheet'!O:P,2,0)","v":"CA"},9412,9412,null,"Iowa","California",{"$f":"VLOOKUP(H786,'Info Sheet'!O:P,2,0)","v":"CA"},8771,8771]
["Iowa","Colorado",{"$f":"VLOOKUP(B787,'Info Sheet'!O:P,2,0)","v":"CO"},8697,8697,null,"Iowa","Colorado",{"$f":"VLOOKUP(H787,'Info Sheet'!O:P,2,0)","v":"CO"},8426,8426]
["Iowa","Connecticut",{"$f":"VLOOKUP(B788,'Info Sheet'!O:P,2,0)","v":"CT"},650,650,null,"Iowa","Connecticut",{"$f":"VLOOKUP(H788,'Info Sheet'!O:P,2,0)","v":"CT"},175,175]
["Iowa","Delaware",{"$f":"VLOOKUP(B789,'Info Sheet'!O:P,2,0)","v":"DE"},0,0,null,"Iowa","Delaware",{"$f":"VLOOKUP(H789,'Info Sheet'!O:P,2,0)","v":"DE"},30,30]
["Iowa","District of Columbia",{"$f":"VLOOKUP(B790,'Info Sheet'!O:P,2,0)","v":"DC"},204,204,null,"Iowa","District of Columbia",{"$f":"VLOOKUP(H790,'Info Sheet'!O:P,2,0)","v":"DC"},766,766]
["Iowa","Florida",{"$f":"VLOOKUP(B791,'Info Sheet'!O:P,2,0)","v":"FL"},6406,6406,null,"Iowa","Florida",{"$f":"VLOOKUP(H791,'Info Sheet'!O:P,2,0)","v":"FL"},8631,8631]
["Iowa","Georgia",{"$f":"VLOOKUP(B792,'Info Sheet'!O:P,2,0)","v":"GA"},3507,3507,null,"Iowa","Georgia",{"$f":"VLOOKUP(H792,'Info Sheet'!O:P,2,0)","v":"GA"},3733,3733]
["Iowa","Hawaii",{"$f":"VLOOKUP(B793,'Info Sheet'!O:P,2,0)","v":"HI"},1686,1686,null,"Iowa","Hawaii",{"$f":"VLOOKUP(H793,'Info Sheet'!O:P,2,0)","v":"HI"},630,630]
["Iowa","Idaho",{"$f":"VLOOKUP(B794,'Info Sheet'!O:P,2,0)","v":"ID"},766,766,null,"Iowa","Idaho",{"$f":"VLOOKUP(H794,'Info Sheet'!O:P,2,0)","v":"ID"},1181,1181]
["Iowa","Illinois",{"$f":"VLOOKUP(B795,'Info Sheet'!O:P,2,0)","v":"IL"},42710,42710,null,"Iowa","Illinois",{"$f":"VLOOKUP(H795,'Info Sheet'!O:P,2,0)","v":"IL"},26090,26090]
["Iowa","Indiana",{"$f":"VLOOKUP(B796,'Info Sheet'!O:P,2,0)","v":"IN"},3775,3775,null,"Iowa","Indiana",{"$f":"VLOOKUP(H796,'Info Sheet'!O:P,2,0)","v":"IN"},4479,4479]
["Iowa","Iowa",{"$f":"VLOOKUP(B797,'Info Sheet'!O:P,2,0)","v":"IA"},0,0,null,"Iowa","Iowa",{"$f":"VLOOKUP(H797,'Info Sheet'!O:P,2,0)","v":"IA"},0,0]
["Iowa","Kansas",{"$f":"VLOOKUP(B798,'Info Sheet'!O:P,2,0)","v":"KS"},4214,4214,null,"Iowa","Kansas",{"$f":"VLOOKUP(H798,'Info Sheet'!O:P,2,0)","v":"KS"},5117,5117]
["Iowa","Kentucky",{"$f":"VLOOKUP(B799,'Info Sheet'!O:P,2,0)","v":"KY"},1540,1540,null,"Iowa","Kentucky",{"$f":"VLOOKUP(H799,'Info Sheet'!O:P,2,0)","v":"KY"},1430,1430]
["Iowa","Louisiana",{"$f":"VLOOKUP(B800,'Info Sheet'!O:P,2,0)","v":"LA"},1306,1306,null,"Iowa","Louisiana",{"$f":"VLOOKUP(H800,'Info Sheet'!O:P,2,0)","v":"LA"},1637,1637]
["Iowa","Maine",{"$f":"VLOOKUP(B801,'Info Sheet'!O:P,2,0)","v":"ME"},104,104,null,"Iowa","Maine",{"$f":"VLOOKUP(H801,'Info Sheet'!O:P,2,0)","v":"ME"},619,619]
["Iowa","Maryland",{"$f":"VLOOKUP(B802,'Info Sheet'!O:P,2,0)","v":"MD"},1040,1040,null,"Iowa","Maryland",{"$f":"VLOOKUP(H802,'Info Sheet'!O:P,2,0)","v":"MD"},839,839]
["Iowa","Massachusetts",{"$f":"VLOOKUP(B803,'Info Sheet'!O:P,2,0)","v":"MA"},1240,1240,null,"Iowa","Massachusetts",{"$f":"VLOOKUP(H803,'Info Sheet'!O:P,2,0)","v":"MA"},596,596]
["Iowa","Michigan",{"$f":"VLOOKUP(B804,'Info Sheet'!O:P,2,0)","v":"MI"},4072,4072,null,"Iowa","Michigan",{"$f":"VLOOKUP(H804,'Info Sheet'!O:P,2,0)","v":"MI"},3460,3460]
["Iowa","Minnesota",{"$f":"VLOOKUP(B805,'Info Sheet'!O:P,2,0)","v":"MN"},20703,20703,null,"Iowa","Minnesota",{"$f":"VLOOKUP(H805,'Info Sheet'!O:P,2,0)","v":"MN"},18343,18343]
["Iowa","Mississippi",{"$f":"VLOOKUP(B806,'Info Sheet'!O:P,2,0)","v":"MS"},1276,1276,null,"Iowa","Mississippi",{"$f":"VLOOKUP(H806,'Info Sheet'!O:P,2,0)","v":"MS"},924,924]
["Iowa","Missouri",{"$f":"VLOOKUP(B807,'Info Sheet'!O:P,2,0)","v":"MO"},13848,13848,null,"Iowa","Missouri",{"$f":"VLOOKUP(H807,'Info Sheet'!O:P,2,0)","v":"MO"},15475,15475]
["Iowa","Montana",{"$f":"VLOOKUP(B808,'Info Sheet'!O:P,2,0)","v":"MT"},1658,1658,null,"Iowa","Montana",{"$f":"VLOOKUP(H808,'Info Sheet'!O:P,2,0)","v":"MT"},1001,1001]
["Iowa","Nebraska",{"$f":"VLOOKUP(B809,'Info Sheet'!O:P,2,0)","v":"NE"},18971,18971,null,"Iowa","Nebraska",{"$f":"VLOOKUP(H809,'Info Sheet'!O:P,2,0)","v":"NE"},21926,21926]
["Iowa","Nevada",{"$f":"VLOOKUP(B810,'Info Sheet'!O:P,2,0)","v":"NV"},3313,3313,null,"Iowa","Nevada",{"$f":"VLOOKUP(H810,'Info Sheet'!O:P,2,0)","v":"NV"},1371,1371]
["Iowa","New Hampshire",{"$f":"VLOOKUP(B811,'Info Sheet'!O:P,2,0)","v":"NH"},437,437,null,"Iowa","New Hampshire",{"$f":"VLOOKUP(H811,'Info Sheet'!O:P,2,0)","v":"NH"},209,209]
["Iowa","New Jersey",{"$f":"VLOOKUP(B812,'Info Sheet'!O:P,2,0)","v":"NJ"},1675,1675,null,"Iowa","New Jersey",{"$f":"VLOOKUP(H812,'Info Sheet'!O:P,2,0)","v":"NJ"},1021,1021]
["Iowa","New Mexico",{"$f":"VLOOKUP(B813,'Info Sheet'!O:P,2,0)","v":"NM"},1027,1027,null,"Iowa","New Mexico",{"$f":"VLOOKUP(H813,'Info Sheet'!O:P,2,0)","v":"NM"},384,384]
["Iowa","New York",{"$f":"VLOOKUP(B814,'Info Sheet'!O:P,2,0)","v":"NY"},3864,3864,null,"Iowa","New York",{"$f":"VLOOKUP(H814,'Info Sheet'!O:P,2,0)","v":"NY"},2360,2360]
["Iowa","North Carolina",{"$f":"VLOOKUP(B815,'Info Sheet'!O:P,2,0)","v":"NC"},3617,3617,null,"Iowa","North Carolina",{"$f":"VLOOKUP(H815,'Info Sheet'!O:P,2,0)","v":"NC"},2506,2506]
["Iowa","North Dakota",{"$f":"VLOOKUP(B816,'Info Sheet'!O:P,2,0)","v":"ND"},2038,2038,null,"Iowa","North Dakota",{"$f":"VLOOKUP(H816,'Info Sheet'!O:P,2,0)","v":"ND"},955,955]
["Iowa","Ohio",{"$f":"VLOOKUP(B817,'Info Sheet'!O:P,2,0)","v":"OH"},2752,2752,null,"Iowa","Ohio",{"$f":"VLOOKUP(H817,'Info Sheet'!O:P,2,0)","v":"OH"},3455,3455]
["Iowa","Oklahoma",{"$f":"VLOOKUP(B818,'Info Sheet'!O:P,2,0)","v":"OK"},2676,2676,null,"Iowa","Oklahoma",{"$f":"VLOOKUP(H818,'Info Sheet'!O:P,2,0)","v":"OK"},2776,2776]
["Iowa","Oregon",{"$f":"VLOOKUP(B819,'Info Sheet'!O:P,2,0)","v":"OR"},2230,2230,null,"Iowa","Oregon",{"$f":"VLOOKUP(H819,'Info Sheet'!O:P,2,0)","v":"OR"},1654,1654]
["Iowa","Pennsylvania",{"$f":"VLOOKUP(B820,'Info Sheet'!O:P,2,0)","v":"PA"},1217,1217,null,"Iowa","Pennsylvania",{"$f":"VLOOKUP(H820,'Info Sheet'!O:P,2,0)","v":"PA"},1528,1528]
["Iowa","Rhode Island",{"$f":"VLOOKUP(B821,'Info Sheet'!O:P,2,0)","v":"RI"},65,65,null,"Iowa","Rhode Island",{"$f":"VLOOKUP(H821,'Info Sheet'!O:P,2,0)","v":"RI"},130,130]
["Iowa","South Carolina",{"$f":"VLOOKUP(B822,'Info Sheet'!O:P,2,0)","v":"SC"},1706,1706,null,"Iowa","South Carolina",{"$f":"VLOOKUP(H822,'Info Sheet'!O:P,2,0)","v":"SC"},2725,2725]
["Iowa","South Dakota",{"$f":"VLOOKUP(B823,'Info Sheet'!O:P,2,0)","v":"SD"},5992,5992,null,"Iowa","South Dakota",{"$f":"VLOOKUP(H823,'Info Sheet'!O:P,2,0)","v":"SD"},10733,10733]
["Iowa","Tennessee",{"$f":"VLOOKUP(B824,'Info Sheet'!O:P,2,0)","v":"TN"},3388,3388,null,"Iowa","Tennessee",{"$f":"VLOOKUP(H824,'Info Sheet'!O:P,2,0)","v":"TN"},2056,2056]
["Iowa","Texas",{"$f":"VLOOKUP(B825,'Info Sheet'!O:P,2,0)","v":"TX"},10018,10018,null,"Iowa","Texas",{"$f":"VLOOKUP(H825,'Info Sheet'!O:P,2,0)","v":"TX"},12116,12116]
["Iowa","Utah",{"$f":"VLOOKUP(B826,'Info Sheet'!O:P,2,0)","v":"UT"},2514,2514,null,"Iowa","Utah",{"$f":"VLOOKUP(H826,'Info Sheet'!O:P,2,0)","v":"UT"},3564,3564]
["Iowa","Vermont",{"$f":"VLOOKUP(B827,'Info Sheet'!O:P,2,0)","v":"VT"},83,83,null,"Iowa","Vermont",{"$f":"VLOOKUP(H827,'Info Sheet'!O:P,2,0)","v":"VT"},121,121]
["Iowa","Virginia",{"$f":"VLOOKUP(B828,'Info Sheet'!O:P,2,0)","v":"VA"},1291,1291,null,"Iowa","Virginia",{"$f":"VLOOKUP(H828,'Info Sheet'!O:P,2,0)","v":"VA"},2859,2859]
["Iowa","Washington",{"$f":"VLOOKUP(B829,'Info Sheet'!O:P,2,0)","v":"WA"},2313,2313,null,"Iowa","Washington",{"$f":"VLOOKUP(H829,'Info Sheet'!O:P,2,0)","v":"WA"},3844,3844]
["Iowa","West Virginia",{"$f":"VLOOKUP(B830,'Info Sheet'!O:P,2,0)","v":"WV"},137,137,null,"Iowa","West Virginia",{"$f":"VLOOKUP(H830,'Info Sheet'!O:P,2,0)","v":"WV"},68,68]
["Iowa","Wisconsin",{"$f":"VLOOKUP(B831,'Info Sheet'!O:P,2,0)","v":"WI"},8849,8849,null,"Iowa","Wisconsin",{"$f":"VLOOKUP(H831,'Info Sheet'!O:P,2,0)","v":"WI"},9767,9767]
["Iowa","Wyoming",{"$f":"VLOOKUP(B832,'Info Sheet'!O:P,2,0)","v":"WY"},643,643,null,"Iowa","Wyoming",{"$f":"VLOOKUP(H832,'Info Sheet'!O:P,2,0)","v":"WY"},1063,1063]
["Iowa","Puerto Rico",{"$f":"VLOOKUP(B833,'Info Sheet'!O:P,2,0)","v":"PR"},992,992,null,"Iowa","Puerto Rico",{"$f":"VLOOKUP(H833,'Info Sheet'!O:P,2,0)","v":"PR"},0,0]
["Kansas","Alabama",{"$f":"VLOOKUP(B834,'Info Sheet'!O:P,2,0)","v":"AL"},1331,1331,null,"Kansas","Alabama",{"$f":"VLOOKUP(H834,'Info Sheet'!O:P,2,0)","v":"AL"},2356,2356]
["Kansas","Alaska",{"$f":"VLOOKUP(B835,'Info Sheet'!O:P,2,0)","v":"AK"},1491,1491,null,"Kansas","Alaska",{"$f":"VLOOKUP(H835,'Info Sheet'!O:P,2,0)","v":"AK"},1077,1077]
["Kansas","Arizona",{"$f":"VLOOKUP(B836,'Info Sheet'!O:P,2,0)","v":"AZ"},7360,7360,null,"Kansas","Arizona",{"$f":"VLOOKUP(H836,'Info Sheet'!O:P,2,0)","v":"AZ"},6141,6141]
["Kansas","Arkansas",{"$f":"VLOOKUP(B837,'Info Sheet'!O:P,2,0)","v":"AR"},4752,4752,null,"Kansas","Arkansas",{"$f":"VLOOKUP(H837,'Info Sheet'!O:P,2,0)","v":"AR"},6652,6652]
["Kansas","California",{"$f":"VLOOKUP(B838,'Info Sheet'!O:P,2,0)","v":"CA"},16279,16279,null,"Kansas","California",{"$f":"VLOOKUP(H838,'Info Sheet'!O:P,2,0)","v":"CA"},9457,9457]
["Kansas","Colorado",{"$f":"VLOOKUP(B839,'Info Sheet'!O:P,2,0)","v":"CO"},14798,14798,null,"Kansas","Colorado",{"$f":"VLOOKUP(H839,'Info Sheet'!O:P,2,0)","v":"CO"},13309,13309]
["Kansas","Connecticut",{"$f":"VLOOKUP(B840,'Info Sheet'!O:P,2,0)","v":"CT"},707,707,null,"Kansas","Connecticut",{"$f":"VLOOKUP(H840,'Info Sheet'!O:P,2,0)","v":"CT"},16,16]
["Kansas","Delaware",{"$f":"VLOOKUP(B841,'Info Sheet'!O:P,2,0)","v":"DE"},312,312,null,"Kansas","Delaware",{"$f":"VLOOKUP(H841,'Info Sheet'!O:P,2,0)","v":"DE"},148,148]
["Kansas","District of Columbia",{"$f":"VLOOKUP(B842,'Info Sheet'!O:P,2,0)","v":"DC"},584,584,null,"Kansas","District of Columbia",{"$f":"VLOOKUP(H842,'Info Sheet'!O:P,2,0)","v":"DC"},253,253]
["Kansas","Florida",{"$f":"VLOOKUP(B843,'Info Sheet'!O:P,2,0)","v":"FL"},7562,7562,null,"Kansas","Florida",{"$f":"VLOOKUP(H843,'Info Sheet'!O:P,2,0)","v":"FL"},12458,12458]
["Kansas","Georgia",{"$f":"VLOOKUP(B844,'Info Sheet'!O:P,2,0)","v":"GA"},4958,4958,null,"Kansas","Georgia",{"$f":"VLOOKUP(H844,'Info Sheet'!O:P,2,0)","v":"GA"},7365,7365]
["Kansas","Hawaii",{"$f":"VLOOKUP(B845,'Info Sheet'!O:P,2,0)","v":"HI"},564,564,null,"Kansas","Hawaii",{"$f":"VLOOKUP(H845,'Info Sheet'!O:P,2,0)","v":"HI"},1647,1647]
["Kansas","Idaho",{"$f":"VLOOKUP(B846,'Info Sheet'!O:P,2,0)","v":"ID"},1118,1118,null,"Kansas","Idaho",{"$f":"VLOOKUP(H846,'Info Sheet'!O:P,2,0)","v":"ID"},964,964]
["Kansas","Illinois",{"$f":"VLOOKUP(B847,'Info Sheet'!O:P,2,0)","v":"IL"},7405,7405,null,"Kansas","Illinois",{"$f":"VLOOKUP(H847,'Info Sheet'!O:P,2,0)","v":"IL"},6512,6512]
["Kansas","Indiana",{"$f":"VLOOKUP(B848,'Info Sheet'!O:P,2,0)","v":"IN"},4086,4086,null,"Kansas","Indiana",{"$f":"VLOOKUP(H848,'Info Sheet'!O:P,2,0)","v":"IN"},4527,4527]
["Kansas","Iowa",{"$f":"VLOOKUP(B849,'Info Sheet'!O:P,2,0)","v":"IA"},5117,5117,null,"Kansas","Iowa",{"$f":"VLOOKUP(H849,'Info Sheet'!O:P,2,0)","v":"IA"},4214,4214]
["Kansas","Kansas",{"$f":"VLOOKUP(B850,'Info Sheet'!O:P,2,0)","v":"KS"},0,0,null,"Kansas","Kansas",{"$f":"VLOOKUP(H850,'Info Sheet'!O:P,2,0)","v":"KS"},0,0]
["Kansas","Kentucky",{"$f":"VLOOKUP(B851,'Info Sheet'!O:P,2,0)","v":"KY"},2832,2832,null,"Kansas","Kentucky",{"$f":"VLOOKUP(H851,'Info Sheet'!O:P,2,0)","v":"KY"},1964,1964]
["Kansas","Louisiana",{"$f":"VLOOKUP(B852,'Info Sheet'!O:P,2,0)","v":"LA"},1847,1847,null,"Kansas","Louisiana",{"$f":"VLOOKUP(H852,'Info Sheet'!O:P,2,0)","v":"LA"},1438,1438]
["Kansas","Maine",{"$f":"VLOOKUP(B853,'Info Sheet'!O:P,2,0)","v":"ME"},692,692,null,"Kansas","Maine",{"$f":"VLOOKUP(H853,'Info Sheet'!O:P,2,0)","v":"ME"},856,856]
["Kansas","Maryland",{"$f":"VLOOKUP(B854,'Info Sheet'!O:P,2,0)","v":"MD"},4831,4831,null,"Kansas","Maryland",{"$f":"VLOOKUP(H854,'Info Sheet'!O:P,2,0)","v":"MD"},3196,3196]
["Kansas","Massachusetts",{"$f":"VLOOKUP(B855,'Info Sheet'!O:P,2,0)","v":"MA"},315,315,null,"Kansas","Massachusetts",{"$f":"VLOOKUP(H855,'Info Sheet'!O:P,2,0)","v":"MA"},1534,1534]
["Kansas","Michigan",{"$f":"VLOOKUP(B856,'Info Sheet'!O:P,2,0)","v":"MI"},3878,3878,null,"Kansas","Michigan",{"$f":"VLOOKUP(H856,'Info Sheet'!O:P,2,0)","v":"MI"},2593,2593]
["Kansas","Minnesota",{"$f":"VLOOKUP(B857,'Info Sheet'!O:P,2,0)","v":"MN"},2923,2923,null,"Kansas","Minnesota",{"$f":"VLOOKUP(H857,'Info Sheet'!O:P,2,0)","v":"MN"},2597,2597]
["Kansas","Mississippi",{"$f":"VLOOKUP(B858,'Info Sheet'!O:P,2,0)","v":"MS"},2136,2136,null,"Kansas","Mississippi",{"$f":"VLOOKUP(H858,'Info Sheet'!O:P,2,0)","v":"MS"},796,796]
["Kansas","Missouri",{"$f":"VLOOKUP(B859,'Info Sheet'!O:P,2,0)","v":"MO"},66439,66439,null,"Kansas","Missouri",{"$f":"VLOOKUP(H859,'Info Sheet'!O:P,2,0)","v":"MO"},64529,64529]
["Kansas","Montana",{"$f":"VLOOKUP(B860,'Info Sheet'!O:P,2,0)","v":"MT"},859,859,null,"Kansas","Montana",{"$f":"VLOOKUP(H860,'Info Sheet'!O:P,2,0)","v":"MT"},1129,1129]
["Kansas","Nebraska",{"$f":"VLOOKUP(B861,'Info Sheet'!O:P,2,0)","v":"NE"},8452,8452,null,"Kansas","Nebraska",{"$f":"VLOOKUP(H861,'Info Sheet'!O:P,2,0)","v":"NE"},8627,8627]
["Kansas","Nevada",{"$f":"VLOOKUP(B862,'Info Sheet'!O:P,2,0)","v":"NV"},2826,2826,null,"Kansas","Nevada",{"$f":"VLOOKUP(H862,'Info Sheet'!O:P,2,0)","v":"NV"},2257,2257]
["Kansas","New Hampshire",{"$f":"VLOOKUP(B863,'Info Sheet'!O:P,2,0)","v":"NH"},103,103,null,"Kansas","New Hampshire",{"$f":"VLOOKUP(H863,'Info Sheet'!O:P,2,0)","v":"NH"},159,159]
["Kansas","New Jersey",{"$f":"VLOOKUP(B864,'Info Sheet'!O:P,2,0)","v":"NJ"},3199,3199,null,"Kansas","New Jersey",{"$f":"VLOOKUP(H864,'Info Sheet'!O:P,2,0)","v":"NJ"},1185,1185]
["Kansas","New Mexico",{"$f":"VLOOKUP(B865,'Info Sheet'!O:P,2,0)","v":"NM"},2671,2671,null,"Kansas","New Mexico",{"$f":"VLOOKUP(H865,'Info Sheet'!O:P,2,0)","v":"NM"},2756,2756]
["Kansas","New York",{"$f":"VLOOKUP(B866,'Info Sheet'!O:P,2,0)","v":"NY"},3741,3741,null,"Kansas","New York",{"$f":"VLOOKUP(H866,'Info Sheet'!O:P,2,0)","v":"NY"},3464,3464]
["Kansas","North Carolina",{"$f":"VLOOKUP(B867,'Info Sheet'!O:P,2,0)","v":"NC"},3119,3119,null,"Kansas","North Carolina",{"$f":"VLOOKUP(H867,'Info Sheet'!O:P,2,0)","v":"NC"},8782,8782]
["Kansas","North Dakota",{"$f":"VLOOKUP(B868,'Info Sheet'!O:P,2,0)","v":"ND"},865,865,null,"Kansas","North Dakota",{"$f":"VLOOKUP(H868,'Info Sheet'!O:P,2,0)","v":"ND"},350,350]
["Kansas","Ohio",{"$f":"VLOOKUP(B869,'Info Sheet'!O:P,2,0)","v":"OH"},4435,4435,null,"Kansas","Ohio",{"$f":"VLOOKUP(H869,'Info Sheet'!O:P,2,0)","v":"OH"},2839,2839]
["Kansas","Oklahoma",{"$f":"VLOOKUP(B870,'Info Sheet'!O:P,2,0)","v":"OK"},20998,20998,null,"Kansas","Oklahoma",{"$f":"VLOOKUP(H870,'Info Sheet'!O:P,2,0)","v":"OK"},16715,16715]
["Kansas","Oregon",{"$f":"VLOOKUP(B871,'Info Sheet'!O:P,2,0)","v":"OR"},1647,1647,null,"Kansas","Oregon",{"$f":"VLOOKUP(H871,'Info Sheet'!O:P,2,0)","v":"OR"},2497,2497]
["Kansas","Pennsylvania",{"$f":"VLOOKUP(B872,'Info Sheet'!O:P,2,0)","v":"PA"},2975,2975,null,"Kansas","Pennsylvania",{"$f":"VLOOKUP(H872,'Info Sheet'!O:P,2,0)","v":"PA"},4716,4716]
["Kansas","Rhode Island",{"$f":"VLOOKUP(B873,'Info Sheet'!O:P,2,0)","v":"RI"},237,237,null,"Kansas","Rhode Island",{"$f":"VLOOKUP(H873,'Info Sheet'!O:P,2,0)","v":"RI"},401,401]
["Kansas","South Carolina",{"$f":"VLOOKUP(B874,'Info Sheet'!O:P,2,0)","v":"SC"},1795,1795,null,"Kansas","South Carolina",{"$f":"VLOOKUP(H874,'Info Sheet'!O:P,2,0)","v":"SC"},3463,3463]
["Kansas","South Dakota",{"$f":"VLOOKUP(B875,'Info Sheet'!O:P,2,0)","v":"SD"},610,610,null,"Kansas","South Dakota",{"$f":"VLOOKUP(H875,'Info Sheet'!O:P,2,0)","v":"SD"},1118,1118]
["Kansas","Tennessee",{"$f":"VLOOKUP(B876,'Info Sheet'!O:P,2,0)","v":"TN"},3760,3760,null,"Kansas","Tennessee",{"$f":"VLOOKUP(H876,'Info Sheet'!O:P,2,0)","v":"TN"},6941,6941]
["Kansas","Texas",{"$f":"VLOOKUP(B877,'Info Sheet'!O:P,2,0)","v":"TX"},24260,24260,null,"Kansas","Texas",{"$f":"VLOOKUP(H877,'Info Sheet'!O:P,2,0)","v":"TX"},37063,37063]
["Kansas","Utah",{"$f":"VLOOKUP(B878,'Info Sheet'!O:P,2,0)","v":"UT"},531,531,null,"Kansas","Utah",{"$f":"VLOOKUP(H878,'Info Sheet'!O:P,2,0)","v":"UT"},1843,1843]
["Kansas","Vermont",{"$f":"VLOOKUP(B879,'Info Sheet'!O:P,2,0)","v":"VT"},145,145,null,"Kansas","Vermont",{"$f":"VLOOKUP(H879,'Info Sheet'!O:P,2,0)","v":"VT"},7,7]
["Kansas","Virginia",{"$f":"VLOOKUP(B880,'Info Sheet'!O:P,2,0)","v":"VA"},5339,5339,null,"Kansas","Virginia",{"$f":"VLOOKUP(H880,'Info Sheet'!O:P,2,0)","v":"VA"},4139,4139]
["Kansas","Washington",{"$f":"VLOOKUP(B881,'Info Sheet'!O:P,2,0)","v":"WA"},5212,5212,null,"Kansas","Washington",{"$f":"VLOOKUP(H881,'Info Sheet'!O:P,2,0)","v":"WA"},7058,7058]
["Kansas","West Virginia",{"$f":"VLOOKUP(B882,'Info Sheet'!O:P,2,0)","v":"WV"},139,139,null,"Kansas","West Virginia",{"$f":"VLOOKUP(H882,'Info Sheet'!O:P,2,0)","v":"WV"},200,200]
["Kansas","Wisconsin",{"$f":"VLOOKUP(B883,'Info Sheet'!O:P,2,0)","v":"WI"},2612,2612,null,"Kansas","Wisconsin",{"$f":"VLOOKUP(H883,'Info Sheet'!O:P,2,0)","v":"WI"},2330,2330]
["Kansas","Wyoming",{"$f":"VLOOKUP(B884,'Info Sheet'!O:P,2,0)","v":"WY"},2136,2136,null,"Kansas","Wyoming",{"$f":"VLOOKUP(H884,'Info Sheet'!O:P,2,0)","v":"WY"},1357,1357]
["Kansas","Puerto Rico",{"$f":"VLOOKUP(B885,'Info Sheet'!O:P,2,0)","v":"PR"},925,925,null,"Kansas","Puerto Rico",{"$f":"VLOOKUP(H885,'Info Sheet'!O:P,2,0)","v":"PR"},293,293]
["Kentucky","Alabama",{"$f":"VLOOKUP(B886,'Info Sheet'!O:P,2,0)","v":"AL"},7223,7223,null,"Kentucky","Alabama",{"$f":"VLOOKUP(H886,'Info Sheet'!O:P,2,0)","v":"AL"},7148,7148]
["Kentucky","Alaska",{"$f":"VLOOKUP(B887,'Info Sheet'!O:P,2,0)","v":"AK"},3321,3321,null,"Kentucky","Alaska",{"$f":"VLOOKUP(H887,'Info Sheet'!O:P,2,0)","v":"AK"},1838,1838]
["Kentucky","Arizona",{"$f":"VLOOKUP(B888,'Info Sheet'!O:P,2,0)","v":"AZ"},5519,5519,null,"Kentucky","Arizona",{"$f":"VLOOKUP(H888,'Info Sheet'!O:P,2,0)","v":"AZ"},5167,5167]
["Kentucky","Arkansas",{"$f":"VLOOKUP(B889,'Info Sheet'!O:P,2,0)","v":"AR"},2134,2134,null,"Kentucky","Arkansas",{"$f":"VLOOKUP(H889,'Info Sheet'!O:P,2,0)","v":"AR"},4063,4063]
["Kentucky","California",{"$f":"VLOOKUP(B890,'Info Sheet'!O:P,2,0)","v":"CA"},9324,9324,null,"Kentucky","California",{"$f":"VLOOKUP(H890,'Info Sheet'!O:P,2,0)","v":"CA"},8358,8358]
["Kentucky","Colorado",{"$f":"VLOOKUP(B891,'Info Sheet'!O:P,2,0)","v":"CO"},1262,1262,null,"Kentucky","Colorado",{"$f":"VLOOKUP(H891,'Info Sheet'!O:P,2,0)","v":"CO"},5822,5822]
["Kentucky","Connecticut",{"$f":"VLOOKUP(B892,'Info Sheet'!O:P,2,0)","v":"CT"},1120,1120,null,"Kentucky","Connecticut",{"$f":"VLOOKUP(H892,'Info Sheet'!O:P,2,0)","v":"CT"},524,524]
["Kentucky","Delaware",{"$f":"VLOOKUP(B893,'Info Sheet'!O:P,2,0)","v":"DE"},744,744,null,"Kentucky","Delaware",{"$f":"VLOOKUP(H893,'Info Sheet'!O:P,2,0)","v":"DE"},468,468]
["Kentucky","District of Columbia",{"$f":"VLOOKUP(B894,'Info Sheet'!O:P,2,0)","v":"DC"},602,602,null,"Kentucky","District of Columbia",{"$f":"VLOOKUP(H894,'Info Sheet'!O:P,2,0)","v":"DC"},503,503]
["Kentucky","Florida",{"$f":"VLOOKUP(B895,'Info Sheet'!O:P,2,0)","v":"FL"},26751,26751,null,"Kentucky","Florida",{"$f":"VLOOKUP(H895,'Info Sheet'!O:P,2,0)","v":"FL"},18674,18674]
["Kentucky","Georgia",{"$f":"VLOOKUP(B896,'Info Sheet'!O:P,2,0)","v":"GA"},13295,13295,null,"Kentucky","Georgia",{"$f":"VLOOKUP(H896,'Info Sheet'!O:P,2,0)","v":"GA"},16383,16383]
["Kentucky","Hawaii",{"$f":"VLOOKUP(B897,'Info Sheet'!O:P,2,0)","v":"HI"},1230,1230,null,"Kentucky","Hawaii",{"$f":"VLOOKUP(H897,'Info Sheet'!O:P,2,0)","v":"HI"},598,598]
["Kentucky","Idaho",{"$f":"VLOOKUP(B898,'Info Sheet'!O:P,2,0)","v":"ID"},157,157,null,"Kentucky","Idaho",{"$f":"VLOOKUP(H898,'Info Sheet'!O:P,2,0)","v":"ID"},518,518]
["Kentucky","Illinois",{"$f":"VLOOKUP(B899,'Info Sheet'!O:P,2,0)","v":"IL"},13377,13377,null,"Kentucky","Illinois",{"$f":"VLOOKUP(H899,'Info Sheet'!O:P,2,0)","v":"IL"},11413,11413]
["Kentucky","Indiana",{"$f":"VLOOKUP(B900,'Info Sheet'!O:P,2,0)","v":"IN"},35180,35180,null,"Kentucky","Indiana",{"$f":"VLOOKUP(H900,'Info Sheet'!O:P,2,0)","v":"IN"},31997,31997]
["Kentucky","Iowa",{"$f":"VLOOKUP(B901,'Info Sheet'!O:P,2,0)","v":"IA"},1430,1430,null,"Kentucky","Iowa",{"$f":"VLOOKUP(H901,'Info Sheet'!O:P,2,0)","v":"IA"},1540,1540]
["Kentucky","Kansas",{"$f":"VLOOKUP(B902,'Info Sheet'!O:P,2,0)","v":"KS"},1964,1964,null,"Kentucky","Kansas",{"$f":"VLOOKUP(H902,'Info Sheet'!O:P,2,0)","v":"KS"},2832,2832]
["Kentucky","Kentucky",{"$f":"VLOOKUP(B903,'Info Sheet'!O:P,2,0)","v":"KY"},0,0,null,"Kentucky","Kentucky",{"$f":"VLOOKUP(H903,'Info Sheet'!O:P,2,0)","v":"KY"},0,0]
["Kentucky","Louisiana",{"$f":"VLOOKUP(B904,'Info Sheet'!O:P,2,0)","v":"LA"},2502,2502,null,"Kentucky","Louisiana",{"$f":"VLOOKUP(H904,'Info Sheet'!O:P,2,0)","v":"LA"},4825,4825]
["Kentucky","Maine",{"$f":"VLOOKUP(B905,'Info Sheet'!O:P,2,0)","v":"ME"},117,117,null,"Kentucky","Maine",{"$f":"VLOOKUP(H905,'Info Sheet'!O:P,2,0)","v":"ME"},1124,1124]
["Kentucky","Maryland",{"$f":"VLOOKUP(B906,'Info Sheet'!O:P,2,0)","v":"MD"},4591,4591,null,"Kentucky","Maryland",{"$f":"VLOOKUP(H906,'Info Sheet'!O:P,2,0)","v":"MD"},1959,1959]
["Kentucky","Massachusetts",{"$f":"VLOOKUP(B907,'Info Sheet'!O:P,2,0)","v":"MA"},2474,2474,null,"Kentucky","Massachusetts",{"$f":"VLOOKUP(H907,'Info Sheet'!O:P,2,0)","v":"MA"},572,572]
["Kentucky","Michigan",{"$f":"VLOOKUP(B908,'Info Sheet'!O:P,2,0)","v":"MI"},15152,15152,null,"Kentucky","Michigan",{"$f":"VLOOKUP(H908,'Info Sheet'!O:P,2,0)","v":"MI"},8340,8340]
["Kentucky","Minnesota",{"$f":"VLOOKUP(B909,'Info Sheet'!O:P,2,0)","v":"MN"},2010,2010,null,"Kentucky","Minnesota",{"$f":"VLOOKUP(H909,'Info Sheet'!O:P,2,0)","v":"MN"},1214,1214]
["Kentucky","Mississippi",{"$f":"VLOOKUP(B910,'Info Sheet'!O:P,2,0)","v":"MS"},3336,3336,null,"Kentucky","Mississippi",{"$f":"VLOOKUP(H910,'Info Sheet'!O:P,2,0)","v":"MS"},2479,2479]
["Kentucky","Missouri",{"$f":"VLOOKUP(B911,'Info Sheet'!O:P,2,0)","v":"MO"},8327,8327,null,"Kentucky","Missouri",{"$f":"VLOOKUP(H911,'Info Sheet'!O:P,2,0)","v":"MO"},6836,6836]
["Kentucky","Montana",{"$f":"VLOOKUP(B912,'Info Sheet'!O:P,2,0)","v":"MT"},216,216,null,"Kentucky","Montana",{"$f":"VLOOKUP(H912,'Info Sheet'!O:P,2,0)","v":"MT"},688,688]
["Kentucky","Nebraska",{"$f":"VLOOKUP(B913,'Info Sheet'!O:P,2,0)","v":"NE"},2052,2052,null,"Kentucky","Nebraska",{"$f":"VLOOKUP(H913,'Info Sheet'!O:P,2,0)","v":"NE"},636,636]
["Kentucky","Nevada",{"$f":"VLOOKUP(B914,'Info Sheet'!O:P,2,0)","v":"NV"},1735,1735,null,"Kentucky","Nevada",{"$f":"VLOOKUP(H914,'Info Sheet'!O:P,2,0)","v":"NV"},2149,2149]
["Kentucky","New Hampshire",{"$f":"VLOOKUP(B915,'Info Sheet'!O:P,2,0)","v":"NH"},136,136,null,"Kentucky","New Hampshire",{"$f":"VLOOKUP(H915,'Info Sheet'!O:P,2,0)","v":"NH"},284,284]
["Kentucky","New Jersey",{"$f":"VLOOKUP(B916,'Info Sheet'!O:P,2,0)","v":"NJ"},2932,2932,null,"Kentucky","New Jersey",{"$f":"VLOOKUP(H916,'Info Sheet'!O:P,2,0)","v":"NJ"},824,824]
["Kentucky","New Mexico",{"$f":"VLOOKUP(B917,'Info Sheet'!O:P,2,0)","v":"NM"},1229,1229,null,"Kentucky","New Mexico",{"$f":"VLOOKUP(H917,'Info Sheet'!O:P,2,0)","v":"NM"},985,985]
["Kentucky","New York",{"$f":"VLOOKUP(B918,'Info Sheet'!O:P,2,0)","v":"NY"},9470,9470,null,"Kentucky","New York",{"$f":"VLOOKUP(H918,'Info Sheet'!O:P,2,0)","v":"NY"},4971,4971]
["Kentucky","North Carolina",{"$f":"VLOOKUP(B919,'Info Sheet'!O:P,2,0)","v":"NC"},11317,11317,null,"Kentucky","North Carolina",{"$f":"VLOOKUP(H919,'Info Sheet'!O:P,2,0)","v":"NC"},7587,7587]
["Kentucky","North Dakota",{"$f":"VLOOKUP(B920,'Info Sheet'!O:P,2,0)","v":"ND"},239,239,null,"Kentucky","North Dakota",{"$f":"VLOOKUP(H920,'Info Sheet'!O:P,2,0)","v":"ND"},119,119]
["Kentucky","Ohio",{"$f":"VLOOKUP(B921,'Info Sheet'!O:P,2,0)","v":"OH"},52256,52256,null,"Kentucky","Ohio",{"$f":"VLOOKUP(H921,'Info Sheet'!O:P,2,0)","v":"OH"},35130,35130]
["Kentucky","Oklahoma",{"$f":"VLOOKUP(B922,'Info Sheet'!O:P,2,0)","v":"OK"},2986,2986,null,"Kentucky","Oklahoma",{"$f":"VLOOKUP(H922,'Info Sheet'!O:P,2,0)","v":"OK"},3629,3629]
["Kentucky","Oregon",{"$f":"VLOOKUP(B923,'Info Sheet'!O:P,2,0)","v":"OR"},938,938,null,"Kentucky","Oregon",{"$f":"VLOOKUP(H923,'Info Sheet'!O:P,2,0)","v":"OR"},273,273]
["Kentucky","Pennsylvania",{"$f":"VLOOKUP(B924,'Info Sheet'!O:P,2,0)","v":"PA"},6334,6334,null,"Kentucky","Pennsylvania",{"$f":"VLOOKUP(H924,'Info Sheet'!O:P,2,0)","v":"PA"},6921,6921]
["Kentucky","Rhode Island",{"$f":"VLOOKUP(B925,'Info Sheet'!O:P,2,0)","v":"RI"},929,929,null,"Kentucky","Rhode Island",{"$f":"VLOOKUP(H925,'Info Sheet'!O:P,2,0)","v":"RI"},497,497]
["Kentucky","South Carolina",{"$f":"VLOOKUP(B926,'Info Sheet'!O:P,2,0)","v":"SC"},4020,4020,null,"Kentucky","South Carolina",{"$f":"VLOOKUP(H926,'Info Sheet'!O:P,2,0)","v":"SC"},6589,6589]
["Kentucky","South Dakota",{"$f":"VLOOKUP(B927,'Info Sheet'!O:P,2,0)","v":"SD"},163,163,null,"Kentucky","South Dakota",{"$f":"VLOOKUP(H927,'Info Sheet'!O:P,2,0)","v":"SD"},293,293]
["Kentucky","Tennessee",{"$f":"VLOOKUP(B928,'Info Sheet'!O:P,2,0)","v":"TN"},38069,38069,null,"Kentucky","Tennessee",{"$f":"VLOOKUP(H928,'Info Sheet'!O:P,2,0)","v":"TN"},38274,38274]
["Kentucky","Texas",{"$f":"VLOOKUP(B929,'Info Sheet'!O:P,2,0)","v":"TX"},13764,13764,null,"Kentucky","Texas",{"$f":"VLOOKUP(H929,'Info Sheet'!O:P,2,0)","v":"TX"},17809,17809]
["Kentucky","Utah",{"$f":"VLOOKUP(B930,'Info Sheet'!O:P,2,0)","v":"UT"},1509,1509,null,"Kentucky","Utah",{"$f":"VLOOKUP(H930,'Info Sheet'!O:P,2,0)","v":"UT"},1063,1063]
["Kentucky","Vermont",{"$f":"VLOOKUP(B931,'Info Sheet'!O:P,2,0)","v":"VT"},721,721,null,"Kentucky","Vermont",{"$f":"VLOOKUP(H931,'Info Sheet'!O:P,2,0)","v":"VT"},2046,2046]
["Kentucky","Virginia",{"$f":"VLOOKUP(B932,'Info Sheet'!O:P,2,0)","v":"VA"},12144,12144,null,"Kentucky","Virginia",{"$f":"VLOOKUP(H932,'Info Sheet'!O:P,2,0)","v":"VA"},9589,9589]
["Kentucky","Washington",{"$f":"VLOOKUP(B933,'Info Sheet'!O:P,2,0)","v":"WA"},3825,3825,null,"Kentucky","Washington",{"$f":"VLOOKUP(H933,'Info Sheet'!O:P,2,0)","v":"WA"},3525,3525]
["Kentucky","West Virginia",{"$f":"VLOOKUP(B934,'Info Sheet'!O:P,2,0)","v":"WV"},6817,6817,null,"Kentucky","West Virginia",{"$f":"VLOOKUP(H934,'Info Sheet'!O:P,2,0)","v":"WV"},3615,3615]
["Kentucky","Wisconsin",{"$f":"VLOOKUP(B935,'Info Sheet'!O:P,2,0)","v":"WI"},3969,3969,null,"Kentucky","Wisconsin",{"$f":"VLOOKUP(H935,'Info Sheet'!O:P,2,0)","v":"WI"},1962,1962]
["Kentucky","Wyoming",{"$f":"VLOOKUP(B936,'Info Sheet'!O:P,2,0)","v":"WY"},349,349,null,"Kentucky","Wyoming",{"$f":"VLOOKUP(H936,'Info Sheet'!O:P,2,0)","v":"WY"},606,606]
["Kentucky","Puerto Rico",{"$f":"VLOOKUP(B937,'Info Sheet'!O:P,2,0)","v":"PR"},541,541,null,"Kentucky","Puerto Rico",{"$f":"VLOOKUP(H937,'Info Sheet'!O:P,2,0)","v":"PR"},291,291]
["Louisiana","Alabama",{"$f":"VLOOKUP(B938,'Info Sheet'!O:P,2,0)","v":"AL"},11134,11134,null,"Louisiana","Alabama",{"$f":"VLOOKUP(H938,'Info Sheet'!O:P,2,0)","v":"AL"},7418,7418]
["Louisiana","Alaska",{"$f":"VLOOKUP(B939,'Info Sheet'!O:P,2,0)","v":"AK"},2195,2195,null,"Louisiana","Alaska",{"$f":"VLOOKUP(H939,'Info Sheet'!O:P,2,0)","v":"AK"},1297,1297]
["Louisiana","Arizona",{"$f":"VLOOKUP(B940,'Info Sheet'!O:P,2,0)","v":"AZ"},5991,5991,null,"Louisiana","Arizona",{"$f":"VLOOKUP(H940,'Info Sheet'!O:P,2,0)","v":"AZ"},3582,3582]
["Louisiana","Arkansas",{"$f":"VLOOKUP(B941,'Info Sheet'!O:P,2,0)","v":"AR"},8801,8801,null,"Louisiana","Arkansas",{"$f":"VLOOKUP(H941,'Info Sheet'!O:P,2,0)","v":"AR"},10085,10085]
["Louisiana","California",{"$f":"VLOOKUP(B942,'Info Sheet'!O:P,2,0)","v":"CA"},14847,14847,null,"Louisiana","California",{"$f":"VLOOKUP(H942,'Info Sheet'!O:P,2,0)","v":"CA"},11769,11769]
["Louisiana","Colorado",{"$f":"VLOOKUP(B943,'Info Sheet'!O:P,2,0)","v":"CO"},3850,3850,null,"Louisiana","Colorado",{"$f":"VLOOKUP(H943,'Info Sheet'!O:P,2,0)","v":"CO"},6924,6924]
["Louisiana","Connecticut",{"$f":"VLOOKUP(B944,'Info Sheet'!O:P,2,0)","v":"CT"},611,611,null,"Louisiana","Connecticut",{"$f":"VLOOKUP(H944,'Info Sheet'!O:P,2,0)","v":"CT"},1224,1224]
["Louisiana","Delaware",{"$f":"VLOOKUP(B945,'Info Sheet'!O:P,2,0)","v":"DE"},0,0,null,"Louisiana","Delaware",{"$f":"VLOOKUP(H945,'Info Sheet'!O:P,2,0)","v":"DE"},178,178]
["Louisiana","District of Columbia",{"$f":"VLOOKUP(B946,'Info Sheet'!O:P,2,0)","v":"DC"},1055,1055,null,"Louisiana","District of Columbia",{"$f":"VLOOKUP(H946,'Info Sheet'!O:P,2,0)","v":"DC"},283,283]
["Louisiana","Florida",{"$f":"VLOOKUP(B947,'Info Sheet'!O:P,2,0)","v":"FL"},21121,21121,null,"Louisiana","Florida",{"$f":"VLOOKUP(H947,'Info Sheet'!O:P,2,0)","v":"FL"},18876,18876]
["Louisiana","Georgia",{"$f":"VLOOKUP(B948,'Info Sheet'!O:P,2,0)","v":"GA"},14669,14669,null,"Louisiana","Georgia",{"$f":"VLOOKUP(H948,'Info Sheet'!O:P,2,0)","v":"GA"},14286,14286]
["Louisiana","Hawaii",{"$f":"VLOOKUP(B949,'Info Sheet'!O:P,2,0)","v":"HI"},1408,1408,null,"Louisiana","Hawaii",{"$f":"VLOOKUP(H949,'Info Sheet'!O:P,2,0)","v":"HI"},474,474]
["Louisiana","Idaho",{"$f":"VLOOKUP(B950,'Info Sheet'!O:P,2,0)","v":"ID"},697,697,null,"Louisiana","Idaho",{"$f":"VLOOKUP(H950,'Info Sheet'!O:P,2,0)","v":"ID"},164,164]
["Louisiana","Illinois",{"$f":"VLOOKUP(B951,'Info Sheet'!O:P,2,0)","v":"IL"},4549,4549,null,"Louisiana","Illinois",{"$f":"VLOOKUP(H951,'Info Sheet'!O:P,2,0)","v":"IL"},3963,3963]
["Louisiana","Indiana",{"$f":"VLOOKUP(B952,'Info Sheet'!O:P,2,0)","v":"IN"},3856,3856,null,"Louisiana","Indiana",{"$f":"VLOOKUP(H952,'Info Sheet'!O:P,2,0)","v":"IN"},3726,3726]
["Louisiana","Iowa",{"$f":"VLOOKUP(B953,'Info Sheet'!O:P,2,0)","v":"IA"},1637,1637,null,"Louisiana","Iowa",{"$f":"VLOOKUP(H953,'Info Sheet'!O:P,2,0)","v":"IA"},1306,1306]
["Louisiana","Kansas",{"$f":"VLOOKUP(B954,'Info Sheet'!O:P,2,0)","v":"KS"},1438,1438,null,"Louisiana","Kansas",{"$f":"VLOOKUP(H954,'Info Sheet'!O:P,2,0)","v":"KS"},1847,1847]
["Louisiana","Kentucky",{"$f":"VLOOKUP(B955,'Info Sheet'!O:P,2,0)","v":"KY"},4825,4825,null,"Louisiana","Kentucky",{"$f":"VLOOKUP(H955,'Info Sheet'!O:P,2,0)","v":"KY"},2502,2502]
["Louisiana","Louisiana",{"$f":"VLOOKUP(B956,'Info Sheet'!O:P,2,0)","v":"LA"},0,0,null,"Louisiana","Louisiana",{"$f":"VLOOKUP(H956,'Info Sheet'!O:P,2,0)","v":"LA"},0,0]
["Louisiana","Maine",{"$f":"VLOOKUP(B957,'Info Sheet'!O:P,2,0)","v":"ME"},533,533,null,"Louisiana","Maine",{"$f":"VLOOKUP(H957,'Info Sheet'!O:P,2,0)","v":"ME"},268,268]
["Louisiana","Maryland",{"$f":"VLOOKUP(B958,'Info Sheet'!O:P,2,0)","v":"MD"},2826,2826,null,"Louisiana","Maryland",{"$f":"VLOOKUP(H958,'Info Sheet'!O:P,2,0)","v":"MD"},2842,2842]
["Louisiana","Massachusetts",{"$f":"VLOOKUP(B959,'Info Sheet'!O:P,2,0)","v":"MA"},1983,1983,null,"Louisiana","Massachusetts",{"$f":"VLOOKUP(H959,'Info Sheet'!O:P,2,0)","v":"MA"},2533,2533]
["Louisiana","Michigan",{"$f":"VLOOKUP(B960,'Info Sheet'!O:P,2,0)","v":"MI"},3544,3544,null,"Louisiana","Michigan",{"$f":"VLOOKUP(H960,'Info Sheet'!O:P,2,0)","v":"MI"},3581,3581]
["Louisiana","Minnesota",{"$f":"VLOOKUP(B961,'Info Sheet'!O:P,2,0)","v":"MN"},1597,1597,null,"Louisiana","Minnesota",{"$f":"VLOOKUP(H961,'Info Sheet'!O:P,2,0)","v":"MN"},1883,1883]
["Louisiana","Mississippi",{"$f":"VLOOKUP(B962,'Info Sheet'!O:P,2,0)","v":"MS"},24078,24078,null,"Louisiana","Mississippi",{"$f":"VLOOKUP(H962,'Info Sheet'!O:P,2,0)","v":"MS"},23117,23117]
["Louisiana","Missouri",{"$f":"VLOOKUP(B963,'Info Sheet'!O:P,2,0)","v":"MO"},5818,5818,null,"Louisiana","Missouri",{"$f":"VLOOKUP(H963,'Info Sheet'!O:P,2,0)","v":"MO"},5144,5144]
["Louisiana","Montana",{"$f":"VLOOKUP(B964,'Info Sheet'!O:P,2,0)","v":"MT"},746,746,null,"Louisiana","Montana",{"$f":"VLOOKUP(H964,'Info Sheet'!O:P,2,0)","v":"MT"},85,85]
["Louisiana","Nebraska",{"$f":"VLOOKUP(B965,'Info Sheet'!O:P,2,0)","v":"NE"},1040,1040,null,"Louisiana","Nebraska",{"$f":"VLOOKUP(H965,'Info Sheet'!O:P,2,0)","v":"NE"},722,722]
["Louisiana","Nevada",{"$f":"VLOOKUP(B966,'Info Sheet'!O:P,2,0)","v":"NV"},3477,3477,null,"Louisiana","Nevada",{"$f":"VLOOKUP(H966,'Info Sheet'!O:P,2,0)","v":"NV"},1232,1232]
["Louisiana","New Hampshire",{"$f":"VLOOKUP(B967,'Info Sheet'!O:P,2,0)","v":"NH"},488,488,null,"Louisiana","New Hampshire",{"$f":"VLOOKUP(H967,'Info Sheet'!O:P,2,0)","v":"NH"},26,26]
["Louisiana","New Jersey",{"$f":"VLOOKUP(B968,'Info Sheet'!O:P,2,0)","v":"NJ"},1599,1599,null,"Louisiana","New Jersey",{"$f":"VLOOKUP(H968,'Info Sheet'!O:P,2,0)","v":"NJ"},1459,1459]
["Louisiana","New Mexico",{"$f":"VLOOKUP(B969,'Info Sheet'!O:P,2,0)","v":"NM"},1472,1472,null,"Louisiana","New Mexico",{"$f":"VLOOKUP(H969,'Info Sheet'!O:P,2,0)","v":"NM"},1039,1039]
["Louisiana","New York",{"$f":"VLOOKUP(B970,'Info Sheet'!O:P,2,0)","v":"NY"},6307,6307,null,"Louisiana","New York",{"$f":"VLOOKUP(H970,'Info Sheet'!O:P,2,0)","v":"NY"},3899,3899]
["Louisiana","North Carolina",{"$f":"VLOOKUP(B971,'Info Sheet'!O:P,2,0)","v":"NC"},5861,5861,null,"Louisiana","North Carolina",{"$f":"VLOOKUP(H971,'Info Sheet'!O:P,2,0)","v":"NC"},6035,6035]
["Louisiana","North Dakota",{"$f":"VLOOKUP(B972,'Info Sheet'!O:P,2,0)","v":"ND"},779,779,null,"Louisiana","North Dakota",{"$f":"VLOOKUP(H972,'Info Sheet'!O:P,2,0)","v":"ND"},814,814]
["Louisiana","Ohio",{"$f":"VLOOKUP(B973,'Info Sheet'!O:P,2,0)","v":"OH"},4856,4856,null,"Louisiana","Ohio",{"$f":"VLOOKUP(H973,'Info Sheet'!O:P,2,0)","v":"OH"},4829,4829]
["Louisiana","Oklahoma",{"$f":"VLOOKUP(B974,'Info Sheet'!O:P,2,0)","v":"OK"},7468,7468,null,"Louisiana","Oklahoma",{"$f":"VLOOKUP(H974,'Info Sheet'!O:P,2,0)","v":"OK"},6704,6704]
["Louisiana","Oregon",{"$f":"VLOOKUP(B975,'Info Sheet'!O:P,2,0)","v":"OR"},2007,2007,null,"Louisiana","Oregon",{"$f":"VLOOKUP(H975,'Info Sheet'!O:P,2,0)","v":"OR"},227,227]
["Louisiana","Pennsylvania",{"$f":"VLOOKUP(B976,'Info Sheet'!O:P,2,0)","v":"PA"},3044,3044,null,"Louisiana","Pennsylvania",{"$f":"VLOOKUP(H976,'Info Sheet'!O:P,2,0)","v":"PA"},1934,1934]
["Louisiana","Rhode Island",{"$f":"VLOOKUP(B977,'Info Sheet'!O:P,2,0)","v":"RI"},1005,1005,null,"Louisiana","Rhode Island",{"$f":"VLOOKUP(H977,'Info Sheet'!O:P,2,0)","v":"RI"},145,145]
["Louisiana","South Carolina",{"$f":"VLOOKUP(B978,'Info Sheet'!O:P,2,0)","v":"SC"},4617,4617,null,"Louisiana","South Carolina",{"$f":"VLOOKUP(H978,'Info Sheet'!O:P,2,0)","v":"SC"},5646,5646]
["Louisiana","South Dakota",{"$f":"VLOOKUP(B979,'Info Sheet'!O:P,2,0)","v":"SD"},37,37,null,"Louisiana","South Dakota",{"$f":"VLOOKUP(H979,'Info Sheet'!O:P,2,0)","v":"SD"},129,129]
["Louisiana","Tennessee",{"$f":"VLOOKUP(B980,'Info Sheet'!O:P,2,0)","v":"TN"},6696,6696,null,"Louisiana","Tennessee",{"$f":"VLOOKUP(H980,'Info Sheet'!O:P,2,0)","v":"TN"},6955,6955]
["Louisiana","Texas",{"$f":"VLOOKUP(B981,'Info Sheet'!O:P,2,0)","v":"TX"},80914,80914,null,"Louisiana","Texas",{"$f":"VLOOKUP(H981,'Info Sheet'!O:P,2,0)","v":"TX"},86010,86010]
["Louisiana","Utah",{"$f":"VLOOKUP(B982,'Info Sheet'!O:P,2,0)","v":"UT"},929,929,null,"Louisiana","Utah",{"$f":"VLOOKUP(H982,'Info Sheet'!O:P,2,0)","v":"UT"},885,885]
["Louisiana","Vermont",{"$f":"VLOOKUP(B983,'Info Sheet'!O:P,2,0)","v":"VT"},132,132,null,"Louisiana","Vermont",{"$f":"VLOOKUP(H983,'Info Sheet'!O:P,2,0)","v":"VT"},114,114]
["Louisiana","Virginia",{"$f":"VLOOKUP(B984,'Info Sheet'!O:P,2,0)","v":"VA"},5190,5190,null,"Louisiana","Virginia",{"$f":"VLOOKUP(H984,'Info Sheet'!O:P,2,0)","v":"VA"},6282,6282]
["Louisiana","Washington",{"$f":"VLOOKUP(B985,'Info Sheet'!O:P,2,0)","v":"WA"},4165,4165,null,"Louisiana","Washington",{"$f":"VLOOKUP(H985,'Info Sheet'!O:P,2,0)","v":"WA"},3673,3673]
["Louisiana","West Virginia",{"$f":"VLOOKUP(B986,'Info Sheet'!O:P,2,0)","v":"WV"},558,558,null,"Louisiana","West Virginia",{"$f":"VLOOKUP(H986,'Info Sheet'!O:P,2,0)","v":"WV"},476,476]
["Louisiana","Wisconsin",{"$f":"VLOOKUP(B987,'Info Sheet'!O:P,2,0)","v":"WI"},1258,1258,null,"Louisiana","Wisconsin",{"$f":"VLOOKUP(H987,'Info Sheet'!O:P,2,0)","v":"WI"},1779,1779]
["Louisiana","Wyoming",{"$f":"VLOOKUP(B988,'Info Sheet'!O:P,2,0)","v":"WY"},534,534,null,"Louisiana","Wyoming",{"$f":"VLOOKUP(H988,'Info Sheet'!O:P,2,0)","v":"WY"},309,309]
["Louisiana","Puerto Rico",{"$f":"VLOOKUP(B989,'Info Sheet'!O:P,2,0)","v":"PR"},1450,1450,null,"Louisiana","Puerto Rico",{"$f":"VLOOKUP(H989,'Info Sheet'!O:P,2,0)","v":"PR"},168,168]
["Maine","Alabama",{"$f":"VLOOKUP(B990,'Info Sheet'!O:P,2,0)","v":"AL"},1165,1165,null,"Maine","Alabama",{"$f":"VLOOKUP(H990,'Info Sheet'!O:P,2,0)","v":"AL"},790,790]
["Maine","Alaska",{"$f":"VLOOKUP(B991,'Info Sheet'!O:P,2,0)","v":"AK"},499,499,null,"Maine","Alaska",{"$f":"VLOOKUP(H991,'Info Sheet'!O:P,2,0)","v":"AK"},640,640]
["Maine","Arizona",{"$f":"VLOOKUP(B992,'Info Sheet'!O:P,2,0)","v":"AZ"},809,809,null,"Maine","Arizona",{"$f":"VLOOKUP(H992,'Info Sheet'!O:P,2,0)","v":"AZ"},857,857]
["Maine","Arkansas",{"$f":"VLOOKUP(B993,'Info Sheet'!O:P,2,0)","v":"AR"},105,105,null,"Maine","Arkansas",{"$f":"VLOOKUP(H993,'Info Sheet'!O:P,2,0)","v":"AR"},47,47]
["Maine","California",{"$f":"VLOOKUP(B994,'Info Sheet'!O:P,2,0)","v":"CA"},3505,3505,null,"Maine","California",{"$f":"VLOOKUP(H994,'Info Sheet'!O:P,2,0)","v":"CA"},4710,4710]
["Maine","Colorado",{"$f":"VLOOKUP(B995,'Info Sheet'!O:P,2,0)","v":"CO"},1082,1082,null,"Maine","Colorado",{"$f":"VLOOKUP(H995,'Info Sheet'!O:P,2,0)","v":"CO"},1910,1910]
["Maine","Connecticut",{"$f":"VLOOKUP(B996,'Info Sheet'!O:P,2,0)","v":"CT"},5310,5310,null,"Maine","Connecticut",{"$f":"VLOOKUP(H996,'Info Sheet'!O:P,2,0)","v":"CT"},2011,2011]
["Maine","Delaware",{"$f":"VLOOKUP(B997,'Info Sheet'!O:P,2,0)","v":"DE"},646,646,null,"Maine","Delaware",{"$f":"VLOOKUP(H997,'Info Sheet'!O:P,2,0)","v":"DE"},294,294]
["Maine","District of Columbia",{"$f":"VLOOKUP(B998,'Info Sheet'!O:P,2,0)","v":"DC"},326,326,null,"Maine","District of Columbia",{"$f":"VLOOKUP(H998,'Info Sheet'!O:P,2,0)","v":"DC"},270,270]
["Maine","Florida",{"$f":"VLOOKUP(B999,'Info Sheet'!O:P,2,0)","v":"FL"},10255,10255,null,"Maine","Florida",{"$f":"VLOOKUP(H999,'Info Sheet'!O:P,2,0)","v":"FL"},17534,17534]
["Maine","Georgia",{"$f":"VLOOKUP(B1000,'Info Sheet'!O:P,2,0)","v":"GA"},1862,1862,null,"Maine","Georgia",{"$f":"VLOOKUP(H1000,'Info Sheet'!O:P,2,0)","v":"GA"},630,630]
["Maine","Hawaii",{"$f":"VLOOKUP(B1001,'Info Sheet'!O:P,2,0)","v":"HI"},239,239,null,"Maine","Hawaii",{"$f":"VLOOKUP(H1001,'Info Sheet'!O:P,2,0)","v":"HI"},286,286]
["Maine","Idaho",{"$f":"VLOOKUP(B1002,'Info Sheet'!O:P,2,0)","v":"ID"},143,143,null,"Maine","Idaho",{"$f":"VLOOKUP(H1002,'Info Sheet'!O:P,2,0)","v":"ID"},202,202]
["Maine","Illinois",{"$f":"VLOOKUP(B1003,'Info Sheet'!O:P,2,0)","v":"IL"},1181,1181,null,"Maine","Illinois",{"$f":"VLOOKUP(H1003,'Info Sheet'!O:P,2,0)","v":"IL"},1274,1274]
["Maine","Indiana",{"$f":"VLOOKUP(B1004,'Info Sheet'!O:P,2,0)","v":"IN"},423,423,null,"Maine","Indiana",{"$f":"VLOOKUP(H1004,'Info Sheet'!O:P,2,0)","v":"IN"},305,305]
["Maine","Iowa",{"$f":"VLOOKUP(B1005,'Info Sheet'!O:P,2,0)","v":"IA"},619,619,null,"Maine","Iowa",{"$f":"VLOOKUP(H1005,'Info Sheet'!O:P,2,0)","v":"IA"},104,104]
["Maine","Kansas",{"$f":"VLOOKUP(B1006,'Info Sheet'!O:P,2,0)","v":"KS"},856,856,null,"Maine","Kansas",{"$f":"VLOOKUP(H1006,'Info Sheet'!O:P,2,0)","v":"KS"},692,692]
["Maine","Kentucky",{"$f":"VLOOKUP(B1007,'Info Sheet'!O:P,2,0)","v":"KY"},1124,1124,null,"Maine","Kentucky",{"$f":"VLOOKUP(H1007,'Info Sheet'!O:P,2,0)","v":"KY"},117,117]
["Maine","Louisiana",{"$f":"VLOOKUP(B1008,'Info Sheet'!O:P,2,0)","v":"LA"},268,268,null,"Maine","Louisiana",{"$f":"VLOOKUP(H1008,'Info Sheet'!O:P,2,0)","v":"LA"},533,533]
["Maine","Maine",{"$f":"VLOOKUP(B1009,'Info Sheet'!O:P,2,0)","v":"ME"},0,0,null,"Maine","Maine",{"$f":"VLOOKUP(H1009,'Info Sheet'!O:P,2,0)","v":"ME"},0,0]
["Maine","Maryland",{"$f":"VLOOKUP(B1010,'Info Sheet'!O:P,2,0)","v":"MD"},620,620,null,"Maine","Maryland",{"$f":"VLOOKUP(H1010,'Info Sheet'!O:P,2,0)","v":"MD"},1911,1911]
["Maine","Massachusetts",{"$f":"VLOOKUP(B1011,'Info Sheet'!O:P,2,0)","v":"MA"},11847,11847,null,"Maine","Massachusetts",{"$f":"VLOOKUP(H1011,'Info Sheet'!O:P,2,0)","v":"MA"},12579,12579]
["Maine","Michigan",{"$f":"VLOOKUP(B1012,'Info Sheet'!O:P,2,0)","v":"MI"},940,940,null,"Maine","Michigan",{"$f":"VLOOKUP(H1012,'Info Sheet'!O:P,2,0)","v":"MI"},1505,1505]
["Maine","Minnesota",{"$f":"VLOOKUP(B1013,'Info Sheet'!O:P,2,0)","v":"MN"},817,817,null,"Maine","Minnesota",{"$f":"VLOOKUP(H1013,'Info Sheet'!O:P,2,0)","v":"MN"},680,680]
["Maine","Mississippi",{"$f":"VLOOKUP(B1014,'Info Sheet'!O:P,2,0)","v":"MS"},79,79,null,"Maine","Mississippi",{"$f":"VLOOKUP(H1014,'Info Sheet'!O:P,2,0)","v":"MS"},163,163]
["Maine","Missouri",{"$f":"VLOOKUP(B1015,'Info Sheet'!O:P,2,0)","v":"MO"},595,595,null,"Maine","Missouri",{"$f":"VLOOKUP(H1015,'Info Sheet'!O:P,2,0)","v":"MO"},1458,1458]
["Maine","Montana",{"$f":"VLOOKUP(B1016,'Info Sheet'!O:P,2,0)","v":"MT"},285,285,null,"Maine","Montana",{"$f":"VLOOKUP(H1016,'Info Sheet'!O:P,2,0)","v":"MT"},372,372]
["Maine","Nebraska",{"$f":"VLOOKUP(B1017,'Info Sheet'!O:P,2,0)","v":"NE"},286,286,null,"Maine","Nebraska",{"$f":"VLOOKUP(H1017,'Info Sheet'!O:P,2,0)","v":"NE"},190,190]
["Maine","Nevada",{"$f":"VLOOKUP(B1018,'Info Sheet'!O:P,2,0)","v":"NV"},530,530,null,"Maine","Nevada",{"$f":"VLOOKUP(H1018,'Info Sheet'!O:P,2,0)","v":"NV"},258,258]
["Maine","New Hampshire",{"$f":"VLOOKUP(B1019,'Info Sheet'!O:P,2,0)","v":"NH"},12015,12015,null,"Maine","New Hampshire",{"$f":"VLOOKUP(H1019,'Info Sheet'!O:P,2,0)","v":"NH"},12440,12440]
["Maine","New Jersey",{"$f":"VLOOKUP(B1020,'Info Sheet'!O:P,2,0)","v":"NJ"},2001,2001,null,"Maine","New Jersey",{"$f":"VLOOKUP(H1020,'Info Sheet'!O:P,2,0)","v":"NJ"},1149,1149]
["Maine","New Mexico",{"$f":"VLOOKUP(B1021,'Info Sheet'!O:P,2,0)","v":"NM"},650,650,null,"Maine","New Mexico",{"$f":"VLOOKUP(H1021,'Info Sheet'!O:P,2,0)","v":"NM"},661,661]
["Maine","New York",{"$f":"VLOOKUP(B1022,'Info Sheet'!O:P,2,0)","v":"NY"},7447,7447,null,"Maine","New York",{"$f":"VLOOKUP(H1022,'Info Sheet'!O:P,2,0)","v":"NY"},6530,6530]
["Maine","North Carolina",{"$f":"VLOOKUP(B1023,'Info Sheet'!O:P,2,0)","v":"NC"},3552,3552,null,"Maine","North Carolina",{"$f":"VLOOKUP(H1023,'Info Sheet'!O:P,2,0)","v":"NC"},4342,4342]
["Maine","North Dakota",{"$f":"VLOOKUP(B1024,'Info Sheet'!O:P,2,0)","v":"ND"},74,74,null,"Maine","North Dakota",{"$f":"VLOOKUP(H1024,'Info Sheet'!O:P,2,0)","v":"ND"},148,148]
["Maine","Ohio",{"$f":"VLOOKUP(B1025,'Info Sheet'!O:P,2,0)","v":"OH"},1426,1426,null,"Maine","Ohio",{"$f":"VLOOKUP(H1025,'Info Sheet'!O:P,2,0)","v":"OH"},1480,1480]
["Maine","Oklahoma",{"$f":"VLOOKUP(B1026,'Info Sheet'!O:P,2,0)","v":"OK"},228,228,null,"Maine","Oklahoma",{"$f":"VLOOKUP(H1026,'Info Sheet'!O:P,2,0)","v":"OK"},736,736]
["Maine","Oregon",{"$f":"VLOOKUP(B1027,'Info Sheet'!O:P,2,0)","v":"OR"},686,686,null,"Maine","Oregon",{"$f":"VLOOKUP(H1027,'Info Sheet'!O:P,2,0)","v":"OR"},715,715]
["Maine","Pennsylvania",{"$f":"VLOOKUP(B1028,'Info Sheet'!O:P,2,0)","v":"PA"},2266,2266,null,"Maine","Pennsylvania",{"$f":"VLOOKUP(H1028,'Info Sheet'!O:P,2,0)","v":"PA"},3217,3217]
["Maine","Rhode Island",{"$f":"VLOOKUP(B1029,'Info Sheet'!O:P,2,0)","v":"RI"},1637,1637,null,"Maine","Rhode Island",{"$f":"VLOOKUP(H1029,'Info Sheet'!O:P,2,0)","v":"RI"},954,954]
["Maine","South Carolina",{"$f":"VLOOKUP(B1030,'Info Sheet'!O:P,2,0)","v":"SC"},908,908,null,"Maine","South Carolina",{"$f":"VLOOKUP(H1030,'Info Sheet'!O:P,2,0)","v":"SC"},3332,3332]
["Maine","South Dakota",{"$f":"VLOOKUP(B1031,'Info Sheet'!O:P,2,0)","v":"SD"},42,42,null,"Maine","South Dakota",{"$f":"VLOOKUP(H1031,'Info Sheet'!O:P,2,0)","v":"SD"},0,0]
["Maine","Tennessee",{"$f":"VLOOKUP(B1032,'Info Sheet'!O:P,2,0)","v":"TN"},1628,1628,null,"Maine","Tennessee",{"$f":"VLOOKUP(H1032,'Info Sheet'!O:P,2,0)","v":"TN"},1133,1133]
["Maine","Texas",{"$f":"VLOOKUP(B1033,'Info Sheet'!O:P,2,0)","v":"TX"},2591,2591,null,"Maine","Texas",{"$f":"VLOOKUP(H1033,'Info Sheet'!O:P,2,0)","v":"TX"},3968,3968]
["Maine","Utah",{"$f":"VLOOKUP(B1034,'Info Sheet'!O:P,2,0)","v":"UT"},772,772,null,"Maine","Utah",{"$f":"VLOOKUP(H1034,'Info Sheet'!O:P,2,0)","v":"UT"},528,528]
["Maine","Vermont",{"$f":"VLOOKUP(B1035,'Info Sheet'!O:P,2,0)","v":"VT"},1381,1381,null,"Maine","Vermont",{"$f":"VLOOKUP(H1035,'Info Sheet'!O:P,2,0)","v":"VT"},2029,2029]
["Maine","Virginia",{"$f":"VLOOKUP(B1036,'Info Sheet'!O:P,2,0)","v":"VA"},1797,1797,null,"Maine","Virginia",{"$f":"VLOOKUP(H1036,'Info Sheet'!O:P,2,0)","v":"VA"},5493,5493]
["Maine","Washington",{"$f":"VLOOKUP(B1037,'Info Sheet'!O:P,2,0)","v":"WA"},587,587,null,"Maine","Washington",{"$f":"VLOOKUP(H1037,'Info Sheet'!O:P,2,0)","v":"WA"},2562,2562]
["Maine","West Virginia",{"$f":"VLOOKUP(B1038,'Info Sheet'!O:P,2,0)","v":"WV"},94,94,null,"Maine","West Virginia",{"$f":"VLOOKUP(H1038,'Info Sheet'!O:P,2,0)","v":"WV"},80,80]
["Maine","Wisconsin",{"$f":"VLOOKUP(B1039,'Info Sheet'!O:P,2,0)","v":"WI"},321,321,null,"Maine","Wisconsin",{"$f":"VLOOKUP(H1039,'Info Sheet'!O:P,2,0)","v":"WI"},693,693]
["Maine","Wyoming",{"$f":"VLOOKUP(B1040,'Info Sheet'!O:P,2,0)","v":"WY"},580,580,null,"Maine","Wyoming",{"$f":"VLOOKUP(H1040,'Info Sheet'!O:P,2,0)","v":"WY"},0,0]
["Maine","Puerto Rico",{"$f":"VLOOKUP(B1041,'Info Sheet'!O:P,2,0)","v":"PR"},307,307,null,"Maine","Puerto Rico",{"$f":"VLOOKUP(H1041,'Info Sheet'!O:P,2,0)","v":"PR"},0,0]
["Maryland","Alabama",{"$f":"VLOOKUP(B1042,'Info Sheet'!O:P,2,0)","v":"AL"},3130,3130,null,"Maryland","Alabama",{"$f":"VLOOKUP(H1042,'Info Sheet'!O:P,2,0)","v":"AL"},3835,3835]
["Maryland","Alaska",{"$f":"VLOOKUP(B1043,'Info Sheet'!O:P,2,0)","v":"AK"},5290,5290,null,"Maryland","Alaska",{"$f":"VLOOKUP(H1043,'Info Sheet'!O:P,2,0)","v":"AK"},1428,1428]
["Maryland","Arizona",{"$f":"VLOOKUP(B1044,'Info Sheet'!O:P,2,0)","v":"AZ"},2829,2829,null,"Maryland","Arizona",{"$f":"VLOOKUP(H1044,'Info Sheet'!O:P,2,0)","v":"AZ"},6209,6209]
["Maryland","Arkansas",{"$f":"VLOOKUP(B1045,'Info Sheet'!O:P,2,0)","v":"AR"},832,832,null,"Maryland","Arkansas",{"$f":"VLOOKUP(H1045,'Info Sheet'!O:P,2,0)","v":"AR"},608,608]
["Maryland","California",{"$f":"VLOOKUP(B1046,'Info Sheet'!O:P,2,0)","v":"CA"},25415,25415,null,"Maryland","California",{"$f":"VLOOKUP(H1046,'Info Sheet'!O:P,2,0)","v":"CA"},26321,26321]
["Maryland","Colorado",{"$f":"VLOOKUP(B1047,'Info Sheet'!O:P,2,0)","v":"CO"},5368,5368,null,"Maryland","Colorado",{"$f":"VLOOKUP(H1047,'Info Sheet'!O:P,2,0)","v":"CO"},7679,7679]
["Maryland","Connecticut",{"$f":"VLOOKUP(B1048,'Info Sheet'!O:P,2,0)","v":"CT"},4092,4092,null,"Maryland","Connecticut",{"$f":"VLOOKUP(H1048,'Info Sheet'!O:P,2,0)","v":"CT"},4550,4550]
["Maryland","Delaware",{"$f":"VLOOKUP(B1049,'Info Sheet'!O:P,2,0)","v":"DE"},19092,19092,null,"Maryland","Delaware",{"$f":"VLOOKUP(H1049,'Info Sheet'!O:P,2,0)","v":"DE"},14856,14856]
["Maryland","District of Columbia",{"$f":"VLOOKUP(B1050,'Info Sheet'!O:P,2,0)","v":"DC"},62907,62907,null,"Maryland","District of Columbia",{"$f":"VLOOKUP(H1050,'Info Sheet'!O:P,2,0)","v":"DC"},41752,41752]
["Maryland","Florida",{"$f":"VLOOKUP(B1051,'Info Sheet'!O:P,2,0)","v":"FL"},23999,23999,null,"Maryland","Florida",{"$f":"VLOOKUP(H1051,'Info Sheet'!O:P,2,0)","v":"FL"},39093,39093]
["Maryland","Georgia",{"$f":"VLOOKUP(B1052,'Info Sheet'!O:P,2,0)","v":"GA"},15177,15177,null,"Maryland","Georgia",{"$f":"VLOOKUP(H1052,'Info Sheet'!O:P,2,0)","v":"GA"},12709,12709]
["Maryland","Hawaii",{"$f":"VLOOKUP(B1053,'Info Sheet'!O:P,2,0)","v":"HI"},2202,2202,null,"Maryland","Hawaii",{"$f":"VLOOKUP(H1053,'Info Sheet'!O:P,2,0)","v":"HI"},3822,3822]
["Maryland","Idaho",{"$f":"VLOOKUP(B1054,'Info Sheet'!O:P,2,0)","v":"ID"},1175,1175,null,"Maryland","Idaho",{"$f":"VLOOKUP(H1054,'Info Sheet'!O:P,2,0)","v":"ID"},151,151]
["Maryland","Illinois",{"$f":"VLOOKUP(B1055,'Info Sheet'!O:P,2,0)","v":"IL"},9313,9313,null,"Maryland","Illinois",{"$f":"VLOOKUP(H1055,'Info Sheet'!O:P,2,0)","v":"IL"},6415,6415]
["Maryland","Indiana",{"$f":"VLOOKUP(B1056,'Info Sheet'!O:P,2,0)","v":"IN"},2959,2959,null,"Maryland","Indiana",{"$f":"VLOOKUP(H1056,'Info Sheet'!O:P,2,0)","v":"IN"},3171,3171]
["Maryland","Iowa",{"$f":"VLOOKUP(B1057,'Info Sheet'!O:P,2,0)","v":"IA"},839,839,null,"Maryland","Iowa",{"$f":"VLOOKUP(H1057,'Info Sheet'!O:P,2,0)","v":"IA"},1040,1040]
["Maryland","Kansas",{"$f":"VLOOKUP(B1058,'Info Sheet'!O:P,2,0)","v":"KS"},3196,3196,null,"Maryland","Kansas",{"$f":"VLOOKUP(H1058,'Info Sheet'!O:P,2,0)","v":"KS"},4831,4831]
["Maryland","Kentucky",{"$f":"VLOOKUP(B1059,'Info Sheet'!O:P,2,0)","v":"KY"},1959,1959,null,"Maryland","Kentucky",{"$f":"VLOOKUP(H1059,'Info Sheet'!O:P,2,0)","v":"KY"},4591,4591]
["Maryland","Louisiana",{"$f":"VLOOKUP(B1060,'Info Sheet'!O:P,2,0)","v":"LA"},2842,2842,null,"Maryland","Louisiana",{"$f":"VLOOKUP(H1060,'Info Sheet'!O:P,2,0)","v":"LA"},2826,2826]
["Maryland","Maine",{"$f":"VLOOKUP(B1061,'Info Sheet'!O:P,2,0)","v":"ME"},1911,1911,null,"Maryland","Maine",{"$f":"VLOOKUP(H1061,'Info Sheet'!O:P,2,0)","v":"ME"},620,620]
["Maryland","Maryland",{"$f":"VLOOKUP(B1062,'Info Sheet'!O:P,2,0)","v":"MD"},0,0,null,"Maryland","Maryland",{"$f":"VLOOKUP(H1062,'Info Sheet'!O:P,2,0)","v":"MD"},0,0]
["Maryland","Massachusetts",{"$f":"VLOOKUP(B1063,'Info Sheet'!O:P,2,0)","v":"MA"},9430,9430,null,"Maryland","Massachusetts",{"$f":"VLOOKUP(H1063,'Info Sheet'!O:P,2,0)","v":"MA"},8803,8803]
["Maryland","Michigan",{"$f":"VLOOKUP(B1064,'Info Sheet'!O:P,2,0)","v":"MI"},7816,7816,null,"Maryland","Michigan",{"$f":"VLOOKUP(H1064,'Info Sheet'!O:P,2,0)","v":"MI"},3856,3856]
["Maryland","Minnesota",{"$f":"VLOOKUP(B1065,'Info Sheet'!O:P,2,0)","v":"MN"},3052,3052,null,"Maryland","Minnesota",{"$f":"VLOOKUP(H1065,'Info Sheet'!O:P,2,0)","v":"MN"},3524,3524]
["Maryland","Mississippi",{"$f":"VLOOKUP(B1066,'Info Sheet'!O:P,2,0)","v":"MS"},2093,2093,null,"Maryland","Mississippi",{"$f":"VLOOKUP(H1066,'Info Sheet'!O:P,2,0)","v":"MS"},1293,1293]
["Maryland","Missouri",{"$f":"VLOOKUP(B1067,'Info Sheet'!O:P,2,0)","v":"MO"},2872,2872,null,"Maryland","Missouri",{"$f":"VLOOKUP(H1067,'Info Sheet'!O:P,2,0)","v":"MO"},3321,3321]
["Maryland","Montana",{"$f":"VLOOKUP(B1068,'Info Sheet'!O:P,2,0)","v":"MT"},159,159,null,"Maryland","Montana",{"$f":"VLOOKUP(H1068,'Info Sheet'!O:P,2,0)","v":"MT"},141,141]
["Maryland","Nebraska",{"$f":"VLOOKUP(B1069,'Info Sheet'!O:P,2,0)","v":"NE"},186,186,null,"Maryland","Nebraska",{"$f":"VLOOKUP(H1069,'Info Sheet'!O:P,2,0)","v":"NE"},524,524]
["Maryland","Nevada",{"$f":"VLOOKUP(B1070,'Info Sheet'!O:P,2,0)","v":"NV"},2414,2414,null,"Maryland","Nevada",{"$f":"VLOOKUP(H1070,'Info Sheet'!O:P,2,0)","v":"NV"},2350,2350]
["Maryland","New Hampshire",{"$f":"VLOOKUP(B1071,'Info Sheet'!O:P,2,0)","v":"NH"},2725,2725,null,"Maryland","New Hampshire",{"$f":"VLOOKUP(H1071,'Info Sheet'!O:P,2,0)","v":"NH"},304,304]
["Maryland","New Jersey",{"$f":"VLOOKUP(B1072,'Info Sheet'!O:P,2,0)","v":"NJ"},24945,24945,null,"Maryland","New Jersey",{"$f":"VLOOKUP(H1072,'Info Sheet'!O:P,2,0)","v":"NJ"},13040,13040]
["Maryland","New Mexico",{"$f":"VLOOKUP(B1073,'Info Sheet'!O:P,2,0)","v":"NM"},1673,1673,null,"Maryland","New Mexico",{"$f":"VLOOKUP(H1073,'Info Sheet'!O:P,2,0)","v":"NM"},4750,4750]
["Maryland","New York",{"$f":"VLOOKUP(B1074,'Info Sheet'!O:P,2,0)","v":"NY"},31694,31694,null,"Maryland","New York",{"$f":"VLOOKUP(H1074,'Info Sheet'!O:P,2,0)","v":"NY"},18270,18270]
["Maryland","North Carolina",{"$f":"VLOOKUP(B1075,'Info Sheet'!O:P,2,0)","v":"NC"},19980,19980,null,"Maryland","North Carolina",{"$f":"VLOOKUP(H1075,'Info Sheet'!O:P,2,0)","v":"NC"},29371,29371]
["Maryland","North Dakota",{"$f":"VLOOKUP(B1076,'Info Sheet'!O:P,2,0)","v":"ND"},116,116,null,"Maryland","North Dakota",{"$f":"VLOOKUP(H1076,'Info Sheet'!O:P,2,0)","v":"ND"},363,363]
["Maryland","Ohio",{"$f":"VLOOKUP(B1077,'Info Sheet'!O:P,2,0)","v":"OH"},9195,9195,null,"Maryland","Ohio",{"$f":"VLOOKUP(H1077,'Info Sheet'!O:P,2,0)","v":"OH"},13836,13836]
["Maryland","Oklahoma",{"$f":"VLOOKUP(B1078,'Info Sheet'!O:P,2,0)","v":"OK"},1915,1915,null,"Maryland","Oklahoma",{"$f":"VLOOKUP(H1078,'Info Sheet'!O:P,2,0)","v":"OK"},1564,1564]
["Maryland","Oregon",{"$f":"VLOOKUP(B1079,'Info Sheet'!O:P,2,0)","v":"OR"},1377,1377,null,"Maryland","Oregon",{"$f":"VLOOKUP(H1079,'Info Sheet'!O:P,2,0)","v":"OR"},1505,1505]
["Maryland","Pennsylvania",{"$f":"VLOOKUP(B1080,'Info Sheet'!O:P,2,0)","v":"PA"},43110,43110,null,"Maryland","Pennsylvania",{"$f":"VLOOKUP(H1080,'Info Sheet'!O:P,2,0)","v":"PA"},53561,53561]
["Maryland","Rhode Island",{"$f":"VLOOKUP(B1081,'Info Sheet'!O:P,2,0)","v":"RI"},1061,1061,null,"Maryland","Rhode Island",{"$f":"VLOOKUP(H1081,'Info Sheet'!O:P,2,0)","v":"RI"},1931,1931]
["Maryland","South Carolina",{"$f":"VLOOKUP(B1082,'Info Sheet'!O:P,2,0)","v":"SC"},6889,6889,null,"Maryland","South Carolina",{"$f":"VLOOKUP(H1082,'Info Sheet'!O:P,2,0)","v":"SC"},12556,12556]
["Maryland","South Dakota",{"$f":"VLOOKUP(B1083,'Info Sheet'!O:P,2,0)","v":"SD"},49,49,null,"Maryland","South Dakota",{"$f":"VLOOKUP(H1083,'Info Sheet'!O:P,2,0)","v":"SD"},314,314]
["Maryland","Tennessee",{"$f":"VLOOKUP(B1084,'Info Sheet'!O:P,2,0)","v":"TN"},6411,6411,null,"Maryland","Tennessee",{"$f":"VLOOKUP(H1084,'Info Sheet'!O:P,2,0)","v":"TN"},4328,4328]
["Maryland","Texas",{"$f":"VLOOKUP(B1085,'Info Sheet'!O:P,2,0)","v":"TX"},15114,15114,null,"Maryland","Texas",{"$f":"VLOOKUP(H1085,'Info Sheet'!O:P,2,0)","v":"TX"},19136,19136]
["Maryland","Utah",{"$f":"VLOOKUP(B1086,'Info Sheet'!O:P,2,0)","v":"UT"},1939,1939,null,"Maryland","Utah",{"$f":"VLOOKUP(H1086,'Info Sheet'!O:P,2,0)","v":"UT"},1381,1381]
["Maryland","Vermont",{"$f":"VLOOKUP(B1087,'Info Sheet'!O:P,2,0)","v":"VT"},979,979,null,"Maryland","Vermont",{"$f":"VLOOKUP(H1087,'Info Sheet'!O:P,2,0)","v":"VT"},1523,1523]
["Maryland","Virginia",{"$f":"VLOOKUP(B1088,'Info Sheet'!O:P,2,0)","v":"VA"},67433,67433,null,"Maryland","Virginia",{"$f":"VLOOKUP(H1088,'Info Sheet'!O:P,2,0)","v":"VA"},70798,70798]
["Maryland","Washington",{"$f":"VLOOKUP(B1089,'Info Sheet'!O:P,2,0)","v":"WA"},4498,4498,null,"Maryland","Washington",{"$f":"VLOOKUP(H1089,'Info Sheet'!O:P,2,0)","v":"WA"},3719,3719]
["Maryland","West Virginia",{"$f":"VLOOKUP(B1090,'Info Sheet'!O:P,2,0)","v":"WV"},8347,8347,null,"Maryland","West Virginia",{"$f":"VLOOKUP(H1090,'Info Sheet'!O:P,2,0)","v":"WV"},17116,17116]
["Maryland","Wisconsin",{"$f":"VLOOKUP(B1091,'Info Sheet'!O:P,2,0)","v":"WI"},1137,1137,null,"Maryland","Wisconsin",{"$f":"VLOOKUP(H1091,'Info Sheet'!O:P,2,0)","v":"WI"},2541,2541]
["Maryland","Wyoming",{"$f":"VLOOKUP(B1092,'Info Sheet'!O:P,2,0)","v":"WY"},310,310,null,"Maryland","Wyoming",{"$f":"VLOOKUP(H1092,'Info Sheet'!O:P,2,0)","v":"WY"},345,345]
["Maryland","Puerto Rico",{"$f":"VLOOKUP(B1093,'Info Sheet'!O:P,2,0)","v":"PR"},1685,1685,null,"Maryland","Puerto Rico",{"$f":"VLOOKUP(H1093,'Info Sheet'!O:P,2,0)","v":"PR"},237,237]
["Massachusetts","Alabama",{"$f":"VLOOKUP(B1094,'Info Sheet'!O:P,2,0)","v":"AL"},2420,2420,null,"Massachusetts","Alabama",{"$f":"VLOOKUP(H1094,'Info Sheet'!O:P,2,0)","v":"AL"},881,881]
["Massachusetts","Alaska",{"$f":"VLOOKUP(B1095,'Info Sheet'!O:P,2,0)","v":"AK"},3006,3006,null,"Massachusetts","Alaska",{"$f":"VLOOKUP(H1095,'Info Sheet'!O:P,2,0)","v":"AK"},545,545]
["Massachusetts","Arizona",{"$f":"VLOOKUP(B1096,'Info Sheet'!O:P,2,0)","v":"AZ"},4561,4561,null,"Massachusetts","Arizona",{"$f":"VLOOKUP(H1096,'Info Sheet'!O:P,2,0)","v":"AZ"},4153,4153]
["Massachusetts","Arkansas",{"$f":"VLOOKUP(B1097,'Info Sheet'!O:P,2,0)","v":"AR"},767,767,null,"Massachusetts","Arkansas",{"$f":"VLOOKUP(H1097,'Info Sheet'!O:P,2,0)","v":"AR"},1225,1225]
["Massachusetts","California",{"$f":"VLOOKUP(B1098,'Info Sheet'!O:P,2,0)","v":"CA"},39297,39297,null,"Massachusetts","California",{"$f":"VLOOKUP(H1098,'Info Sheet'!O:P,2,0)","v":"CA"},36569,36569]
["Massachusetts","Colorado",{"$f":"VLOOKUP(B1099,'Info Sheet'!O:P,2,0)","v":"CO"},3419,3419,null,"Massachusetts","Colorado",{"$f":"VLOOKUP(H1099,'Info Sheet'!O:P,2,0)","v":"CO"},10338,10338]
["Massachusetts","Connecticut",{"$f":"VLOOKUP(B1100,'Info Sheet'!O:P,2,0)","v":"CT"},33240,33240,null,"Massachusetts","Connecticut",{"$f":"VLOOKUP(H1100,'Info Sheet'!O:P,2,0)","v":"CT"},25944,25944]
["Massachusetts","Delaware",{"$f":"VLOOKUP(B1101,'Info Sheet'!O:P,2,0)","v":"DE"},1036,1036,null,"Massachusetts","Delaware",{"$f":"VLOOKUP(H1101,'Info Sheet'!O:P,2,0)","v":"DE"},1652,1652]
["Massachusetts","District of Columbia",{"$f":"VLOOKUP(B1102,'Info Sheet'!O:P,2,0)","v":"DC"},2594,2594,null,"Massachusetts","District of Columbia",{"$f":"VLOOKUP(H1102,'Info Sheet'!O:P,2,0)","v":"DC"},4948,4948]
["Massachusetts","Florida",{"$f":"VLOOKUP(B1103,'Info Sheet'!O:P,2,0)","v":"FL"},35404,35404,null,"Massachusetts","Florida",{"$f":"VLOOKUP(H1103,'Info Sheet'!O:P,2,0)","v":"FL"},42760,42760]
["Massachusetts","Georgia",{"$f":"VLOOKUP(B1104,'Info Sheet'!O:P,2,0)","v":"GA"},7462,7462,null,"Massachusetts","Georgia",{"$f":"VLOOKUP(H1104,'Info Sheet'!O:P,2,0)","v":"GA"},12499,12499]
["Massachusetts","Hawaii",{"$f":"VLOOKUP(B1105,'Info Sheet'!O:P,2,0)","v":"HI"},2523,2523,null,"Massachusetts","Hawaii",{"$f":"VLOOKUP(H1105,'Info Sheet'!O:P,2,0)","v":"HI"},2641,2641]
["Massachusetts","Idaho",{"$f":"VLOOKUP(B1106,'Info Sheet'!O:P,2,0)","v":"ID"},679,679,null,"Massachusetts","Idaho",{"$f":"VLOOKUP(H1106,'Info Sheet'!O:P,2,0)","v":"ID"},849,849]
["Massachusetts","Illinois",{"$f":"VLOOKUP(B1107,'Info Sheet'!O:P,2,0)","v":"IL"},8719,8719,null,"Massachusetts","Illinois",{"$f":"VLOOKUP(H1107,'Info Sheet'!O:P,2,0)","v":"IL"},9614,9614]
["Massachusetts","Indiana",{"$f":"VLOOKUP(B1108,'Info Sheet'!O:P,2,0)","v":"IN"},3208,3208,null,"Massachusetts","Indiana",{"$f":"VLOOKUP(H1108,'Info Sheet'!O:P,2,0)","v":"IN"},1892,1892]
["Massachusetts","Iowa",{"$f":"VLOOKUP(B1109,'Info Sheet'!O:P,2,0)","v":"IA"},596,596,null,"Massachusetts","Iowa",{"$f":"VLOOKUP(H1109,'Info Sheet'!O:P,2,0)","v":"IA"},1240,1240]
["Massachusetts","Kansas",{"$f":"VLOOKUP(B1110,'Info Sheet'!O:P,2,0)","v":"KS"},1534,1534,null,"Massachusetts","Kansas",{"$f":"VLOOKUP(H1110,'Info Sheet'!O:P,2,0)","v":"KS"},315,315]
["Massachusetts","Kentucky",{"$f":"VLOOKUP(B1111,'Info Sheet'!O:P,2,0)","v":"KY"},572,572,null,"Massachusetts","Kentucky",{"$f":"VLOOKUP(H1111,'Info Sheet'!O:P,2,0)","v":"KY"},2474,2474]
["Massachusetts","Louisiana",{"$f":"VLOOKUP(B1112,'Info Sheet'!O:P,2,0)","v":"LA"},2533,2533,null,"Massachusetts","Louisiana",{"$f":"VLOOKUP(H1112,'Info Sheet'!O:P,2,0)","v":"LA"},1983,1983]
["Massachusetts","Maine",{"$f":"VLOOKUP(B1113,'Info Sheet'!O:P,2,0)","v":"ME"},12579,12579,null,"Massachusetts","Maine",{"$f":"VLOOKUP(H1113,'Info Sheet'!O:P,2,0)","v":"ME"},11847,11847]
["Massachusetts","Maryland",{"$f":"VLOOKUP(B1114,'Info Sheet'!O:P,2,0)","v":"MD"},8803,8803,null,"Massachusetts","Maryland",{"$f":"VLOOKUP(H1114,'Info Sheet'!O:P,2,0)","v":"MD"},9430,9430]
["Massachusetts","Massachusetts",{"$f":"VLOOKUP(B1115,'Info Sheet'!O:P,2,0)","v":"MA"},0,0,null,"Massachusetts","Massachusetts",{"$f":"VLOOKUP(H1115,'Info Sheet'!O:P,2,0)","v":"MA"},0,0]
["Massachusetts","Michigan",{"$f":"VLOOKUP(B1116,'Info Sheet'!O:P,2,0)","v":"MI"},5590,5590,null,"Massachusetts","Michigan",{"$f":"VLOOKUP(H1116,'Info Sheet'!O:P,2,0)","v":"MI"},5787,5787]
["Massachusetts","Minnesota",{"$f":"VLOOKUP(B1117,'Info Sheet'!O:P,2,0)","v":"MN"},4013,4013,null,"Massachusetts","Minnesota",{"$f":"VLOOKUP(H1117,'Info Sheet'!O:P,2,0)","v":"MN"},2876,2876]
["Massachusetts","Mississippi",{"$f":"VLOOKUP(B1118,'Info Sheet'!O:P,2,0)","v":"MS"},964,964,null,"Massachusetts","Mississippi",{"$f":"VLOOKUP(H1118,'Info Sheet'!O:P,2,0)","v":"MS"},1619,1619]
["Massachusetts","Missouri",{"$f":"VLOOKUP(B1119,'Info Sheet'!O:P,2,0)","v":"MO"},3671,3671,null,"Massachusetts","Missouri",{"$f":"VLOOKUP(H1119,'Info Sheet'!O:P,2,0)","v":"MO"},2668,2668]
["Massachusetts","Montana",{"$f":"VLOOKUP(B1120,'Info Sheet'!O:P,2,0)","v":"MT"},1033,1033,null,"Massachusetts","Montana",{"$f":"VLOOKUP(H1120,'Info Sheet'!O:P,2,0)","v":"MT"},166,166]
["Massachusetts","Nebraska",{"$f":"VLOOKUP(B1121,'Info Sheet'!O:P,2,0)","v":"NE"},865,865,null,"Massachusetts","Nebraska",{"$f":"VLOOKUP(H1121,'Info Sheet'!O:P,2,0)","v":"NE"},295,295]
["Massachusetts","Nevada",{"$f":"VLOOKUP(B1122,'Info Sheet'!O:P,2,0)","v":"NV"},1742,1742,null,"Massachusetts","Nevada",{"$f":"VLOOKUP(H1122,'Info Sheet'!O:P,2,0)","v":"NV"},1849,1849]
["Massachusetts","New Hampshire",{"$f":"VLOOKUP(B1123,'Info Sheet'!O:P,2,0)","v":"NH"},35252,35252,null,"Massachusetts","New Hampshire",{"$f":"VLOOKUP(H1123,'Info Sheet'!O:P,2,0)","v":"NH"},48268,48268]
["Massachusetts","New Jersey",{"$f":"VLOOKUP(B1124,'Info Sheet'!O:P,2,0)","v":"NJ"},21087,21087,null,"Massachusetts","New Jersey",{"$f":"VLOOKUP(H1124,'Info Sheet'!O:P,2,0)","v":"NJ"},12208,12208]
["Massachusetts","New Mexico",{"$f":"VLOOKUP(B1125,'Info Sheet'!O:P,2,0)","v":"NM"},881,881,null,"Massachusetts","New Mexico",{"$f":"VLOOKUP(H1125,'Info Sheet'!O:P,2,0)","v":"NM"},2631,2631]
["Massachusetts","New York",{"$f":"VLOOKUP(B1126,'Info Sheet'!O:P,2,0)","v":"NY"},58900,58900,null,"Massachusetts","New York",{"$f":"VLOOKUP(H1126,'Info Sheet'!O:P,2,0)","v":"NY"},46574,46574]
["Massachusetts","North Carolina",{"$f":"VLOOKUP(B1127,'Info Sheet'!O:P,2,0)","v":"NC"},9276,9276,null,"Massachusetts","North Carolina",{"$f":"VLOOKUP(H1127,'Info Sheet'!O:P,2,0)","v":"NC"},16815,16815]
["Massachusetts","North Dakota",{"$f":"VLOOKUP(B1128,'Info Sheet'!O:P,2,0)","v":"ND"},142,142,null,"Massachusetts","North Dakota",{"$f":"VLOOKUP(H1128,'Info Sheet'!O:P,2,0)","v":"ND"},608,608]
["Massachusetts","Ohio",{"$f":"VLOOKUP(B1129,'Info Sheet'!O:P,2,0)","v":"OH"},5749,5749,null,"Massachusetts","Ohio",{"$f":"VLOOKUP(H1129,'Info Sheet'!O:P,2,0)","v":"OH"},7976,7976]
["Massachusetts","Oklahoma",{"$f":"VLOOKUP(B1130,'Info Sheet'!O:P,2,0)","v":"OK"},545,545,null,"Massachusetts","Oklahoma",{"$f":"VLOOKUP(H1130,'Info Sheet'!O:P,2,0)","v":"OK"},1858,1858]
["Massachusetts","Oregon",{"$f":"VLOOKUP(B1131,'Info Sheet'!O:P,2,0)","v":"OR"},1934,1934,null,"Massachusetts","Oregon",{"$f":"VLOOKUP(H1131,'Info Sheet'!O:P,2,0)","v":"OR"},3654,3654]
["Massachusetts","Pennsylvania",{"$f":"VLOOKUP(B1132,'Info Sheet'!O:P,2,0)","v":"PA"},20090,20090,null,"Massachusetts","Pennsylvania",{"$f":"VLOOKUP(H1132,'Info Sheet'!O:P,2,0)","v":"PA"},16639,16639]
["Massachusetts","Rhode Island",{"$f":"VLOOKUP(B1133,'Info Sheet'!O:P,2,0)","v":"RI"},24010,24010,null,"Massachusetts","Rhode Island",{"$f":"VLOOKUP(H1133,'Info Sheet'!O:P,2,0)","v":"RI"},27607,27607]
["Massachusetts","South Carolina",{"$f":"VLOOKUP(B1134,'Info Sheet'!O:P,2,0)","v":"SC"},5757,5757,null,"Massachusetts","South Carolina",{"$f":"VLOOKUP(H1134,'Info Sheet'!O:P,2,0)","v":"SC"},6808,6808]
["Massachusetts","South Dakota",{"$f":"VLOOKUP(B1135,'Info Sheet'!O:P,2,0)","v":"SD"},238,238,null,"Massachusetts","South Dakota",{"$f":"VLOOKUP(H1135,'Info Sheet'!O:P,2,0)","v":"SD"},581,581]
["Massachusetts","Tennessee",{"$f":"VLOOKUP(B1136,'Info Sheet'!O:P,2,0)","v":"TN"},2112,2112,null,"Massachusetts","Tennessee",{"$f":"VLOOKUP(H1136,'Info Sheet'!O:P,2,0)","v":"TN"},4948,4948]
["Massachusetts","Texas",{"$f":"VLOOKUP(B1137,'Info Sheet'!O:P,2,0)","v":"TX"},15970,15970,null,"Massachusetts","Texas",{"$f":"VLOOKUP(H1137,'Info Sheet'!O:P,2,0)","v":"TX"},16987,16987]
["Massachusetts","Utah",{"$f":"VLOOKUP(B1138,'Info Sheet'!O:P,2,0)","v":"UT"},1782,1782,null,"Massachusetts","Utah",{"$f":"VLOOKUP(H1138,'Info Sheet'!O:P,2,0)","v":"UT"},2708,2708]
["Massachusetts","Vermont",{"$f":"VLOOKUP(B1139,'Info Sheet'!O:P,2,0)","v":"VT"},6306,6306,null,"Massachusetts","Vermont",{"$f":"VLOOKUP(H1139,'Info Sheet'!O:P,2,0)","v":"VT"},9295,9295]
["Massachusetts","Virginia",{"$f":"VLOOKUP(B1140,'Info Sheet'!O:P,2,0)","v":"VA"},11624,11624,null,"Massachusetts","Virginia",{"$f":"VLOOKUP(H1140,'Info Sheet'!O:P,2,0)","v":"VA"},13257,13257]
["Massachusetts","Washington",{"$f":"VLOOKUP(B1141,'Info Sheet'!O:P,2,0)","v":"WA"},4953,4953,null,"Massachusetts","Washington",{"$f":"VLOOKUP(H1141,'Info Sheet'!O:P,2,0)","v":"WA"},5939,5939]
["Massachusetts","West Virginia",{"$f":"VLOOKUP(B1142,'Info Sheet'!O:P,2,0)","v":"WV"},1296,1296,null,"Massachusetts","West Virginia",{"$f":"VLOOKUP(H1142,'Info Sheet'!O:P,2,0)","v":"WV"},591,591]
["Massachusetts","Wisconsin",{"$f":"VLOOKUP(B1143,'Info Sheet'!O:P,2,0)","v":"WI"},1571,1571,null,"Massachusetts","Wisconsin",{"$f":"VLOOKUP(H1143,'Info Sheet'!O:P,2,0)","v":"WI"},2214,2214]
["Massachusetts","Wyoming",{"$f":"VLOOKUP(B1144,'Info Sheet'!O:P,2,0)","v":"WY"},264,264,null,"Massachusetts","Wyoming",{"$f":"VLOOKUP(H1144,'Info Sheet'!O:P,2,0)","v":"WY"},952,952]
["Massachusetts","Puerto Rico",{"$f":"VLOOKUP(B1145,'Info Sheet'!O:P,2,0)","v":"PR"},11554,11554,null,"Massachusetts","Puerto Rico",{"$f":"VLOOKUP(H1145,'Info Sheet'!O:P,2,0)","v":"PR"},5674,5674]
["Michigan","Alabama",{"$f":"VLOOKUP(B1146,'Info Sheet'!O:P,2,0)","v":"AL"},8271,8271,null,"Michigan","Alabama",{"$f":"VLOOKUP(H1146,'Info Sheet'!O:P,2,0)","v":"AL"},7429,7429]
["Michigan","Alaska",{"$f":"VLOOKUP(B1147,'Info Sheet'!O:P,2,0)","v":"AK"},5648,5648,null,"Michigan","Alaska",{"$f":"VLOOKUP(H1147,'Info Sheet'!O:P,2,0)","v":"AK"},2257,2257]
["Michigan","Arizona",{"$f":"VLOOKUP(B1148,'Info Sheet'!O:P,2,0)","v":"AZ"},14205,14205,null,"Michigan","Arizona",{"$f":"VLOOKUP(H1148,'Info Sheet'!O:P,2,0)","v":"AZ"},25348,25348]
["Michigan","Arkansas",{"$f":"VLOOKUP(B1149,'Info Sheet'!O:P,2,0)","v":"AR"},3596,3596,null,"Michigan","Arkansas",{"$f":"VLOOKUP(H1149,'Info Sheet'!O:P,2,0)","v":"AR"},4670,4670]
["Michigan","California",{"$f":"VLOOKUP(B1150,'Info Sheet'!O:P,2,0)","v":"CA"},22604,22604,null,"Michigan","California",{"$f":"VLOOKUP(H1150,'Info Sheet'!O:P,2,0)","v":"CA"},31425,31425]
["Michigan","Colorado",{"$f":"VLOOKUP(B1151,'Info Sheet'!O:P,2,0)","v":"CO"},7819,7819,null,"Michigan","Colorado",{"$f":"VLOOKUP(H1151,'Info Sheet'!O:P,2,0)","v":"CO"},11155,11155]
["Michigan","Connecticut",{"$f":"VLOOKUP(B1152,'Info Sheet'!O:P,2,0)","v":"CT"},2731,2731,null,"Michigan","Connecticut",{"$f":"VLOOKUP(H1152,'Info Sheet'!O:P,2,0)","v":"CT"},2215,2215]
["Michigan","Delaware",{"$f":"VLOOKUP(B1153,'Info Sheet'!O:P,2,0)","v":"DE"},281,281,null,"Michigan","Delaware",{"$f":"VLOOKUP(H1153,'Info Sheet'!O:P,2,0)","v":"DE"},331,331]
["Michigan","District of Columbia",{"$f":"VLOOKUP(B1154,'Info Sheet'!O:P,2,0)","v":"DC"},1001,1001,null,"Michigan","District of Columbia",{"$f":"VLOOKUP(H1154,'Info Sheet'!O:P,2,0)","v":"DC"},2178,2178]
["Michigan","Florida",{"$f":"VLOOKUP(B1155,'Info Sheet'!O:P,2,0)","v":"FL"},42504,42504,null,"Michigan","Florida",{"$f":"VLOOKUP(H1155,'Info Sheet'!O:P,2,0)","v":"FL"},64399,64399]
["Michigan","Georgia",{"$f":"VLOOKUP(B1156,'Info Sheet'!O:P,2,0)","v":"GA"},12437,12437,null,"Michigan","Georgia",{"$f":"VLOOKUP(H1156,'Info Sheet'!O:P,2,0)","v":"GA"},23798,23798]
["Michigan","Hawaii",{"$f":"VLOOKUP(B1157,'Info Sheet'!O:P,2,0)","v":"HI"},1234,1234,null,"Michigan","Hawaii",{"$f":"VLOOKUP(H1157,'Info Sheet'!O:P,2,0)","v":"HI"},2251,2251]
["Michigan","Idaho",{"$f":"VLOOKUP(B1158,'Info Sheet'!O:P,2,0)","v":"ID"},1190,1190,null,"Michigan","Idaho",{"$f":"VLOOKUP(H1158,'Info Sheet'!O:P,2,0)","v":"ID"},1725,1725]
["Michigan","Illinois",{"$f":"VLOOKUP(B1159,'Info Sheet'!O:P,2,0)","v":"IL"},30595,30595,null,"Michigan","Illinois",{"$f":"VLOOKUP(H1159,'Info Sheet'!O:P,2,0)","v":"IL"},34722,34722]
["Michigan","Indiana",{"$f":"VLOOKUP(B1160,'Info Sheet'!O:P,2,0)","v":"IN"},26460,26460,null,"Michigan","Indiana",{"$f":"VLOOKUP(H1160,'Info Sheet'!O:P,2,0)","v":"IN"},28274,28274]
["Michigan","Iowa",{"$f":"VLOOKUP(B1161,'Info Sheet'!O:P,2,0)","v":"IA"},3460,3460,null,"Michigan","Iowa",{"$f":"VLOOKUP(H1161,'Info Sheet'!O:P,2,0)","v":"IA"},4072,4072]
["Michigan","Kansas",{"$f":"VLOOKUP(B1162,'Info Sheet'!O:P,2,0)","v":"KS"},2593,2593,null,"Michigan","Kansas",{"$f":"VLOOKUP(H1162,'Info Sheet'!O:P,2,0)","v":"KS"},3878,3878]
["Michigan","Kentucky",{"$f":"VLOOKUP(B1163,'Info Sheet'!O:P,2,0)","v":"KY"},8340,8340,null,"Michigan","Kentucky",{"$f":"VLOOKUP(H1163,'Info Sheet'!O:P,2,0)","v":"KY"},15152,15152]
["Michigan","Louisiana",{"$f":"VLOOKUP(B1164,'Info Sheet'!O:P,2,0)","v":"LA"},3581,3581,null,"Michigan","Louisiana",{"$f":"VLOOKUP(H1164,'Info Sheet'!O:P,2,0)","v":"LA"},3544,3544]
["Michigan","Maine",{"$f":"VLOOKUP(B1165,'Info Sheet'!O:P,2,0)","v":"ME"},1505,1505,null,"Michigan","Maine",{"$f":"VLOOKUP(H1165,'Info Sheet'!O:P,2,0)","v":"ME"},940,940]
["Michigan","Maryland",{"$f":"VLOOKUP(B1166,'Info Sheet'!O:P,2,0)","v":"MD"},3856,3856,null,"Michigan","Maryland",{"$f":"VLOOKUP(H1166,'Info Sheet'!O:P,2,0)","v":"MD"},7816,7816]
["Michigan","Massachusetts",{"$f":"VLOOKUP(B1167,'Info Sheet'!O:P,2,0)","v":"MA"},5787,5787,null,"Michigan","Massachusetts",{"$f":"VLOOKUP(H1167,'Info Sheet'!O:P,2,0)","v":"MA"},5590,5590]
["Michigan","Michigan",{"$f":"VLOOKUP(B1168,'Info Sheet'!O:P,2,0)","v":"MI"},0,0,null,"Michigan","Michigan",{"$f":"VLOOKUP(H1168,'Info Sheet'!O:P,2,0)","v":"MI"},0,0]
["Michigan","Minnesota",{"$f":"VLOOKUP(B1169,'Info Sheet'!O:P,2,0)","v":"MN"},5073,5073,null,"Michigan","Minnesota",{"$f":"VLOOKUP(H1169,'Info Sheet'!O:P,2,0)","v":"MN"},10007,10007]
["Michigan","Mississippi",{"$f":"VLOOKUP(B1170,'Info Sheet'!O:P,2,0)","v":"MS"},2293,2293,null,"Michigan","Mississippi",{"$f":"VLOOKUP(H1170,'Info Sheet'!O:P,2,0)","v":"MS"},5873,5873]
["Michigan","Missouri",{"$f":"VLOOKUP(B1171,'Info Sheet'!O:P,2,0)","v":"MO"},7636,7636,null,"Michigan","Missouri",{"$f":"VLOOKUP(H1171,'Info Sheet'!O:P,2,0)","v":"MO"},8404,8404]
["Michigan","Montana",{"$f":"VLOOKUP(B1172,'Info Sheet'!O:P,2,0)","v":"MT"},614,614,null,"Michigan","Montana",{"$f":"VLOOKUP(H1172,'Info Sheet'!O:P,2,0)","v":"MT"},1823,1823]
["Michigan","Nebraska",{"$f":"VLOOKUP(B1173,'Info Sheet'!O:P,2,0)","v":"NE"},765,765,null,"Michigan","Nebraska",{"$f":"VLOOKUP(H1173,'Info Sheet'!O:P,2,0)","v":"NE"},1667,1667]
["Michigan","Nevada",{"$f":"VLOOKUP(B1174,'Info Sheet'!O:P,2,0)","v":"NV"},4443,4443,null,"Michigan","Nevada",{"$f":"VLOOKUP(H1174,'Info Sheet'!O:P,2,0)","v":"NV"},5100,5100]
["Michigan","New Hampshire",{"$f":"VLOOKUP(B1175,'Info Sheet'!O:P,2,0)","v":"NH"},956,956,null,"Michigan","New Hampshire",{"$f":"VLOOKUP(H1175,'Info Sheet'!O:P,2,0)","v":"NH"},811,811]
["Michigan","New Jersey",{"$f":"VLOOKUP(B1176,'Info Sheet'!O:P,2,0)","v":"NJ"},5142,5142,null,"Michigan","New Jersey",{"$f":"VLOOKUP(H1176,'Info Sheet'!O:P,2,0)","v":"NJ"},3283,3283]
["Michigan","New Mexico",{"$f":"VLOOKUP(B1177,'Info Sheet'!O:P,2,0)","v":"NM"},2495,2495,null,"Michigan","New Mexico",{"$f":"VLOOKUP(H1177,'Info Sheet'!O:P,2,0)","v":"NM"},2970,2970]
["Michigan","New York",{"$f":"VLOOKUP(B1178,'Info Sheet'!O:P,2,0)","v":"NY"},14953,14953,null,"Michigan","New York",{"$f":"VLOOKUP(H1178,'Info Sheet'!O:P,2,0)","v":"NY"},13906,13906]
["Michigan","North Carolina",{"$f":"VLOOKUP(B1179,'Info Sheet'!O:P,2,0)","v":"NC"},9761,9761,null,"Michigan","North Carolina",{"$f":"VLOOKUP(H1179,'Info Sheet'!O:P,2,0)","v":"NC"},19480,19480]
["Michigan","North Dakota",{"$f":"VLOOKUP(B1180,'Info Sheet'!O:P,2,0)","v":"ND"},477,477,null,"Michigan","North Dakota",{"$f":"VLOOKUP(H1180,'Info Sheet'!O:P,2,0)","v":"ND"},1383,1383]
["Michigan","Ohio",{"$f":"VLOOKUP(B1181,'Info Sheet'!O:P,2,0)","v":"OH"},32325,32325,null,"Michigan","Ohio",{"$f":"VLOOKUP(H1181,'Info Sheet'!O:P,2,0)","v":"OH"},45796,45796]
["Michigan","Oklahoma",{"$f":"VLOOKUP(B1182,'Info Sheet'!O:P,2,0)","v":"OK"},3898,3898,null,"Michigan","Oklahoma",{"$f":"VLOOKUP(H1182,'Info Sheet'!O:P,2,0)","v":"OK"},3432,3432]
["Michigan","Oregon",{"$f":"VLOOKUP(B1183,'Info Sheet'!O:P,2,0)","v":"OR"},1995,1995,null,"Michigan","Oregon",{"$f":"VLOOKUP(H1183,'Info Sheet'!O:P,2,0)","v":"OR"},3381,3381]
["Michigan","Pennsylvania",{"$f":"VLOOKUP(B1184,'Info Sheet'!O:P,2,0)","v":"PA"},8737,8737,null,"Michigan","Pennsylvania",{"$f":"VLOOKUP(H1184,'Info Sheet'!O:P,2,0)","v":"PA"},12009,12009]
["Michigan","Rhode Island",{"$f":"VLOOKUP(B1185,'Info Sheet'!O:P,2,0)","v":"RI"},1106,1106,null,"Michigan","Rhode Island",{"$f":"VLOOKUP(H1185,'Info Sheet'!O:P,2,0)","v":"RI"},485,485]
["Michigan","South Carolina",{"$f":"VLOOKUP(B1186,'Info Sheet'!O:P,2,0)","v":"SC"},5453,5453,null,"Michigan","South Carolina",{"$f":"VLOOKUP(H1186,'Info Sheet'!O:P,2,0)","v":"SC"},11158,11158]
["Michigan","South Dakota",{"$f":"VLOOKUP(B1187,'Info Sheet'!O:P,2,0)","v":"SD"},1343,1343,null,"Michigan","South Dakota",{"$f":"VLOOKUP(H1187,'Info Sheet'!O:P,2,0)","v":"SD"},1275,1275]
["Michigan","Tennessee",{"$f":"VLOOKUP(B1188,'Info Sheet'!O:P,2,0)","v":"TN"},10818,10818,null,"Michigan","Tennessee",{"$f":"VLOOKUP(H1188,'Info Sheet'!O:P,2,0)","v":"TN"},16019,16019]
["Michigan","Texas",{"$f":"VLOOKUP(B1189,'Info Sheet'!O:P,2,0)","v":"TX"},25757,25757,null,"Michigan","Texas",{"$f":"VLOOKUP(H1189,'Info Sheet'!O:P,2,0)","v":"TX"},38930,38930]
["Michigan","Utah",{"$f":"VLOOKUP(B1190,'Info Sheet'!O:P,2,0)","v":"UT"},2006,2006,null,"Michigan","Utah",{"$f":"VLOOKUP(H1190,'Info Sheet'!O:P,2,0)","v":"UT"},3030,3030]
["Michigan","Vermont",{"$f":"VLOOKUP(B1191,'Info Sheet'!O:P,2,0)","v":"VT"},105,105,null,"Michigan","Vermont",{"$f":"VLOOKUP(H1191,'Info Sheet'!O:P,2,0)","v":"VT"},820,820]
["Michigan","Virginia",{"$f":"VLOOKUP(B1192,'Info Sheet'!O:P,2,0)","v":"VA"},7457,7457,null,"Michigan","Virginia",{"$f":"VLOOKUP(H1192,'Info Sheet'!O:P,2,0)","v":"VA"},16038,16038]
["Michigan","Washington",{"$f":"VLOOKUP(B1193,'Info Sheet'!O:P,2,0)","v":"WA"},5003,5003,null,"Michigan","Washington",{"$f":"VLOOKUP(H1193,'Info Sheet'!O:P,2,0)","v":"WA"},10061,10061]
["Michigan","West Virginia",{"$f":"VLOOKUP(B1194,'Info Sheet'!O:P,2,0)","v":"WV"},1216,1216,null,"Michigan","West Virginia",{"$f":"VLOOKUP(H1194,'Info Sheet'!O:P,2,0)","v":"WV"},1894,1894]
["Michigan","Wisconsin",{"$f":"VLOOKUP(B1195,'Info Sheet'!O:P,2,0)","v":"WI"},15077,15077,null,"Michigan","Wisconsin",{"$f":"VLOOKUP(H1195,'Info Sheet'!O:P,2,0)","v":"WI"},15857,15857]
["Michigan","Wyoming",{"$f":"VLOOKUP(B1196,'Info Sheet'!O:P,2,0)","v":"WY"},2686,2686,null,"Michigan","Wyoming",{"$f":"VLOOKUP(H1196,'Info Sheet'!O:P,2,0)","v":"WY"},2384,2384]
["Michigan","Puerto Rico",{"$f":"VLOOKUP(B1197,'Info Sheet'!O:P,2,0)","v":"PR"},3122,3122,null,"Michigan","Puerto Rico",{"$f":"VLOOKUP(H1197,'Info Sheet'!O:P,2,0)","v":"PR"},612,612]
["Minnesota","Alabama",{"$f":"VLOOKUP(B1198,'Info Sheet'!O:P,2,0)","v":"AL"},1688,1688,null,"Minnesota","Alabama",{"$f":"VLOOKUP(H1198,'Info Sheet'!O:P,2,0)","v":"AL"},1465,1465]
["Minnesota","Alaska",{"$f":"VLOOKUP(B1199,'Info Sheet'!O:P,2,0)","v":"AK"},2585,2585,null,"Minnesota","Alaska",{"$f":"VLOOKUP(H1199,'Info Sheet'!O:P,2,0)","v":"AK"},1315,1315]
["Minnesota","Arizona",{"$f":"VLOOKUP(B1200,'Info Sheet'!O:P,2,0)","v":"AZ"},9544,9544,null,"Minnesota","Arizona",{"$f":"VLOOKUP(H1200,'Info Sheet'!O:P,2,0)","v":"AZ"},17288,17288]
["Minnesota","Arkansas",{"$f":"VLOOKUP(B1201,'Info Sheet'!O:P,2,0)","v":"AR"},1605,1605,null,"Minnesota","Arkansas",{"$f":"VLOOKUP(H1201,'Info Sheet'!O:P,2,0)","v":"AR"},749,749]
["Minnesota","California",{"$f":"VLOOKUP(B1202,'Info Sheet'!O:P,2,0)","v":"CA"},20957,20957,null,"Minnesota","California",{"$f":"VLOOKUP(H1202,'Info Sheet'!O:P,2,0)","v":"CA"},19321,19321]
["Minnesota","Colorado",{"$f":"VLOOKUP(B1203,'Info Sheet'!O:P,2,0)","v":"CO"},8748,8748,null,"Minnesota","Colorado",{"$f":"VLOOKUP(H1203,'Info Sheet'!O:P,2,0)","v":"CO"},8925,8925]
["Minnesota","Connecticut",{"$f":"VLOOKUP(B1204,'Info Sheet'!O:P,2,0)","v":"CT"},981,981,null,"Minnesota","Connecticut",{"$f":"VLOOKUP(H1204,'Info Sheet'!O:P,2,0)","v":"CT"},1615,1615]
["Minnesota","Delaware",{"$f":"VLOOKUP(B1205,'Info Sheet'!O:P,2,0)","v":"DE"},262,262,null,"Minnesota","Delaware",{"$f":"VLOOKUP(H1205,'Info Sheet'!O:P,2,0)","v":"DE"},607,607]
["Minnesota","District of Columbia",{"$f":"VLOOKUP(B1206,'Info Sheet'!O:P,2,0)","v":"DC"},983,983,null,"Minnesota","District of Columbia",{"$f":"VLOOKUP(H1206,'Info Sheet'!O:P,2,0)","v":"DC"},889,889]
["Minnesota","Florida",{"$f":"VLOOKUP(B1207,'Info Sheet'!O:P,2,0)","v":"FL"},7767,7767,null,"Minnesota","Florida",{"$f":"VLOOKUP(H1207,'Info Sheet'!O:P,2,0)","v":"FL"},15562,15562]
["Minnesota","Georgia",{"$f":"VLOOKUP(B1208,'Info Sheet'!O:P,2,0)","v":"GA"},4851,4851,null,"Minnesota","Georgia",{"$f":"VLOOKUP(H1208,'Info Sheet'!O:P,2,0)","v":"GA"},5214,5214]
["Minnesota","Hawaii",{"$f":"VLOOKUP(B1209,'Info Sheet'!O:P,2,0)","v":"HI"},2405,2405,null,"Minnesota","Hawaii",{"$f":"VLOOKUP(H1209,'Info Sheet'!O:P,2,0)","v":"HI"},1601,1601]
["Minnesota","Idaho",{"$f":"VLOOKUP(B1210,'Info Sheet'!O:P,2,0)","v":"ID"},1208,1208,null,"Minnesota","Idaho",{"$f":"VLOOKUP(H1210,'Info Sheet'!O:P,2,0)","v":"ID"},1668,1668]
["Minnesota","Illinois",{"$f":"VLOOKUP(B1211,'Info Sheet'!O:P,2,0)","v":"IL"},20746,20746,null,"Minnesota","Illinois",{"$f":"VLOOKUP(H1211,'Info Sheet'!O:P,2,0)","v":"IL"},15333,15333]
["Minnesota","Indiana",{"$f":"VLOOKUP(B1212,'Info Sheet'!O:P,2,0)","v":"IN"},3932,3932,null,"Minnesota","Indiana",{"$f":"VLOOKUP(H1212,'Info Sheet'!O:P,2,0)","v":"IN"},3627,3627]
["Minnesota","Iowa",{"$f":"VLOOKUP(B1213,'Info Sheet'!O:P,2,0)","v":"IA"},18343,18343,null,"Minnesota","Iowa",{"$f":"VLOOKUP(H1213,'Info Sheet'!O:P,2,0)","v":"IA"},20703,20703]
["Minnesota","Kansas",{"$f":"VLOOKUP(B1214,'Info Sheet'!O:P,2,0)","v":"KS"},2597,2597,null,"Minnesota","Kansas",{"$f":"VLOOKUP(H1214,'Info Sheet'!O:P,2,0)","v":"KS"},2923,2923]
["Minnesota","Kentucky",{"$f":"VLOOKUP(B1215,'Info Sheet'!O:P,2,0)","v":"KY"},1214,1214,null,"Minnesota","Kentucky",{"$f":"VLOOKUP(H1215,'Info Sheet'!O:P,2,0)","v":"KY"},2010,2010]
["Minnesota","Louisiana",{"$f":"VLOOKUP(B1216,'Info Sheet'!O:P,2,0)","v":"LA"},1883,1883,null,"Minnesota","Louisiana",{"$f":"VLOOKUP(H1216,'Info Sheet'!O:P,2,0)","v":"LA"},1597,1597]
["Minnesota","Maine",{"$f":"VLOOKUP(B1217,'Info Sheet'!O:P,2,0)","v":"ME"},680,680,null,"Minnesota","Maine",{"$f":"VLOOKUP(H1217,'Info Sheet'!O:P,2,0)","v":"ME"},817,817]
["Minnesota","Maryland",{"$f":"VLOOKUP(B1218,'Info Sheet'!O:P,2,0)","v":"MD"},3524,3524,null,"Minnesota","Maryland",{"$f":"VLOOKUP(H1218,'Info Sheet'!O:P,2,0)","v":"MD"},3052,3052]
["Minnesota","Massachusetts",{"$f":"VLOOKUP(B1219,'Info Sheet'!O:P,2,0)","v":"MA"},2876,2876,null,"Minnesota","Massachusetts",{"$f":"VLOOKUP(H1219,'Info Sheet'!O:P,2,0)","v":"MA"},4013,4013]
["Minnesota","Michigan",{"$f":"VLOOKUP(B1220,'Info Sheet'!O:P,2,0)","v":"MI"},10007,10007,null,"Minnesota","Michigan",{"$f":"VLOOKUP(H1220,'Info Sheet'!O:P,2,0)","v":"MI"},5073,5073]
["Minnesota","Minnesota",{"$f":"VLOOKUP(B1221,'Info Sheet'!O:P,2,0)","v":"MN"},0,0,null,"Minnesota","Minnesota",{"$f":"VLOOKUP(H1221,'Info Sheet'!O:P,2,0)","v":"MN"},0,0]
["Minnesota","Mississippi",{"$f":"VLOOKUP(B1222,'Info Sheet'!O:P,2,0)","v":"MS"},947,947,null,"Minnesota","Mississippi",{"$f":"VLOOKUP(H1222,'Info Sheet'!O:P,2,0)","v":"MS"},2045,2045]
["Minnesota","Missouri",{"$f":"VLOOKUP(B1223,'Info Sheet'!O:P,2,0)","v":"MO"},4603,4603,null,"Minnesota","Missouri",{"$f":"VLOOKUP(H1223,'Info Sheet'!O:P,2,0)","v":"MO"},6525,6525]
["Minnesota","Montana",{"$f":"VLOOKUP(B1224,'Info Sheet'!O:P,2,0)","v":"MT"},3734,3734,null,"Minnesota","Montana",{"$f":"VLOOKUP(H1224,'Info Sheet'!O:P,2,0)","v":"MT"},2773,2773]
["Minnesota","Nebraska",{"$f":"VLOOKUP(B1225,'Info Sheet'!O:P,2,0)","v":"NE"},3662,3662,null,"Minnesota","Nebraska",{"$f":"VLOOKUP(H1225,'Info Sheet'!O:P,2,0)","v":"NE"},5198,5198]
["Minnesota","Nevada",{"$f":"VLOOKUP(B1226,'Info Sheet'!O:P,2,0)","v":"NV"},4154,4154,null,"Minnesota","Nevada",{"$f":"VLOOKUP(H1226,'Info Sheet'!O:P,2,0)","v":"NV"},3017,3017]
["Minnesota","New Hampshire",{"$f":"VLOOKUP(B1227,'Info Sheet'!O:P,2,0)","v":"NH"},204,204,null,"Minnesota","New Hampshire",{"$f":"VLOOKUP(H1227,'Info Sheet'!O:P,2,0)","v":"NH"},344,344]
["Minnesota","New Jersey",{"$f":"VLOOKUP(B1228,'Info Sheet'!O:P,2,0)","v":"NJ"},2182,2182,null,"Minnesota","New Jersey",{"$f":"VLOOKUP(H1228,'Info Sheet'!O:P,2,0)","v":"NJ"},2153,2153]
["Minnesota","New Mexico",{"$f":"VLOOKUP(B1229,'Info Sheet'!O:P,2,0)","v":"NM"},1013,1013,null,"Minnesota","New Mexico",{"$f":"VLOOKUP(H1229,'Info Sheet'!O:P,2,0)","v":"NM"},901,901]
["Minnesota","New York",{"$f":"VLOOKUP(B1230,'Info Sheet'!O:P,2,0)","v":"NY"},5574,5574,null,"Minnesota","New York",{"$f":"VLOOKUP(H1230,'Info Sheet'!O:P,2,0)","v":"NY"},4532,4532]
["Minnesota","North Carolina",{"$f":"VLOOKUP(B1231,'Info Sheet'!O:P,2,0)","v":"NC"},4263,4263,null,"Minnesota","North Carolina",{"$f":"VLOOKUP(H1231,'Info Sheet'!O:P,2,0)","v":"NC"},4656,4656]
["Minnesota","North Dakota",{"$f":"VLOOKUP(B1232,'Info Sheet'!O:P,2,0)","v":"ND"},21562,21562,null,"Minnesota","North Dakota",{"$f":"VLOOKUP(H1232,'Info Sheet'!O:P,2,0)","v":"ND"},39851,39851]
["Minnesota","Ohio",{"$f":"VLOOKUP(B1233,'Info Sheet'!O:P,2,0)","v":"OH"},5631,5631,null,"Minnesota","Ohio",{"$f":"VLOOKUP(H1233,'Info Sheet'!O:P,2,0)","v":"OH"},5208,5208]
["Minnesota","Oklahoma",{"$f":"VLOOKUP(B1234,'Info Sheet'!O:P,2,0)","v":"OK"},2042,2042,null,"Minnesota","Oklahoma",{"$f":"VLOOKUP(H1234,'Info Sheet'!O:P,2,0)","v":"OK"},2002,2002]
["Minnesota","Oregon",{"$f":"VLOOKUP(B1235,'Info Sheet'!O:P,2,0)","v":"OR"},3319,3319,null,"Minnesota","Oregon",{"$f":"VLOOKUP(H1235,'Info Sheet'!O:P,2,0)","v":"OR"},3873,3873]
["Minnesota","Pennsylvania",{"$f":"VLOOKUP(B1236,'Info Sheet'!O:P,2,0)","v":"PA"},2706,2706,null,"Minnesota","Pennsylvania",{"$f":"VLOOKUP(H1236,'Info Sheet'!O:P,2,0)","v":"PA"},3513,3513]
["Minnesota","Rhode Island",{"$f":"VLOOKUP(B1237,'Info Sheet'!O:P,2,0)","v":"RI"},422,422,null,"Minnesota","Rhode Island",{"$f":"VLOOKUP(H1237,'Info Sheet'!O:P,2,0)","v":"RI"},205,205]
["Minnesota","South Carolina",{"$f":"VLOOKUP(B1238,'Info Sheet'!O:P,2,0)","v":"SC"},3749,3749,null,"Minnesota","South Carolina",{"$f":"VLOOKUP(H1238,'Info Sheet'!O:P,2,0)","v":"SC"},2046,2046]
["Minnesota","South Dakota",{"$f":"VLOOKUP(B1239,'Info Sheet'!O:P,2,0)","v":"SD"},11984,11984,null,"Minnesota","South Dakota",{"$f":"VLOOKUP(H1239,'Info Sheet'!O:P,2,0)","v":"SD"},13525,13525]
["Minnesota","Tennessee",{"$f":"VLOOKUP(B1240,'Info Sheet'!O:P,2,0)","v":"TN"},3767,3767,null,"Minnesota","Tennessee",{"$f":"VLOOKUP(H1240,'Info Sheet'!O:P,2,0)","v":"TN"},3127,3127]
["Minnesota","Texas",{"$f":"VLOOKUP(B1241,'Info Sheet'!O:P,2,0)","v":"TX"},9682,9682,null,"Minnesota","Texas",{"$f":"VLOOKUP(H1241,'Info Sheet'!O:P,2,0)","v":"TX"},16582,16582]
["Minnesota","Utah",{"$f":"VLOOKUP(B1242,'Info Sheet'!O:P,2,0)","v":"UT"},2361,2361,null,"Minnesota","Utah",{"$f":"VLOOKUP(H1242,'Info Sheet'!O:P,2,0)","v":"UT"},2238,2238]
["Minnesota","Vermont",{"$f":"VLOOKUP(B1243,'Info Sheet'!O:P,2,0)","v":"VT"},254,254,null,"Minnesota","Vermont",{"$f":"VLOOKUP(H1243,'Info Sheet'!O:P,2,0)","v":"VT"},606,606]
["Minnesota","Virginia",{"$f":"VLOOKUP(B1244,'Info Sheet'!O:P,2,0)","v":"VA"},4442,4442,null,"Minnesota","Virginia",{"$f":"VLOOKUP(H1244,'Info Sheet'!O:P,2,0)","v":"VA"},3590,3590]
["Minnesota","Washington",{"$f":"VLOOKUP(B1245,'Info Sheet'!O:P,2,0)","v":"WA"},4426,4426,null,"Minnesota","Washington",{"$f":"VLOOKUP(H1245,'Info Sheet'!O:P,2,0)","v":"WA"},5569,5569]
["Minnesota","West Virginia",{"$f":"VLOOKUP(B1246,'Info Sheet'!O:P,2,0)","v":"WV"},292,292,null,"Minnesota","West Virginia",{"$f":"VLOOKUP(H1246,'Info Sheet'!O:P,2,0)","v":"WV"},20,20]
["Minnesota","Wisconsin",{"$f":"VLOOKUP(B1247,'Info Sheet'!O:P,2,0)","v":"WI"},54802,54802,null,"Minnesota","Wisconsin",{"$f":"VLOOKUP(H1247,'Info Sheet'!O:P,2,0)","v":"WI"},53633,53633]
["Minnesota","Wyoming",{"$f":"VLOOKUP(B1248,'Info Sheet'!O:P,2,0)","v":"WY"},780,780,null,"Minnesota","Wyoming",{"$f":"VLOOKUP(H1248,'Info Sheet'!O:P,2,0)","v":"WY"},865,865]
["Minnesota","Puerto Rico",{"$f":"VLOOKUP(B1249,'Info Sheet'!O:P,2,0)","v":"PR"},227,227,null,"Minnesota","Puerto Rico",{"$f":"VLOOKUP(H1249,'Info Sheet'!O:P,2,0)","v":"PR"},50,50]
["Mississippi","Alabama",{"$f":"VLOOKUP(B1250,'Info Sheet'!O:P,2,0)","v":"AL"},22369,22369,null,"Mississippi","Alabama",{"$f":"VLOOKUP(H1250,'Info Sheet'!O:P,2,0)","v":"AL"},16130,16130]
["Mississippi","Alaska",{"$f":"VLOOKUP(B1251,'Info Sheet'!O:P,2,0)","v":"AK"},1309,1309,null,"Mississippi","Alaska",{"$f":"VLOOKUP(H1251,'Info Sheet'!O:P,2,0)","v":"AK"},873,873]
["Mississippi","Arizona",{"$f":"VLOOKUP(B1252,'Info Sheet'!O:P,2,0)","v":"AZ"},1453,1453,null,"Mississippi","Arizona",{"$f":"VLOOKUP(H1252,'Info Sheet'!O:P,2,0)","v":"AZ"},1791,1791]
["Mississippi","Arkansas",{"$f":"VLOOKUP(B1253,'Info Sheet'!O:P,2,0)","v":"AR"},9936,9936,null,"Mississippi","Arkansas",{"$f":"VLOOKUP(H1253,'Info Sheet'!O:P,2,0)","v":"AR"},8184,8184]
["Mississippi","California",{"$f":"VLOOKUP(B1254,'Info Sheet'!O:P,2,0)","v":"CA"},12094,12094,null,"Mississippi","California",{"$f":"VLOOKUP(H1254,'Info Sheet'!O:P,2,0)","v":"CA"},7405,7405]
["Mississippi","Colorado",{"$f":"VLOOKUP(B1255,'Info Sheet'!O:P,2,0)","v":"CO"},2450,2450,null,"Mississippi","Colorado",{"$f":"VLOOKUP(H1255,'Info Sheet'!O:P,2,0)","v":"CO"},2991,2991]
["Mississippi","Connecticut",{"$f":"VLOOKUP(B1256,'Info Sheet'!O:P,2,0)","v":"CT"},231,231,null,"Mississippi","Connecticut",{"$f":"VLOOKUP(H1256,'Info Sheet'!O:P,2,0)","v":"CT"},412,412]
["Mississippi","Delaware",{"$f":"VLOOKUP(B1257,'Info Sheet'!O:P,2,0)","v":"DE"},0,0,null,"Mississippi","Delaware",{"$f":"VLOOKUP(H1257,'Info Sheet'!O:P,2,0)","v":"DE"},58,58]
["Mississippi","District of Columbia",{"$f":"VLOOKUP(B1258,'Info Sheet'!O:P,2,0)","v":"DC"},512,512,null,"Mississippi","District of Columbia",{"$f":"VLOOKUP(H1258,'Info Sheet'!O:P,2,0)","v":"DC"},127,127]
["Mississippi","Florida",{"$f":"VLOOKUP(B1259,'Info Sheet'!O:P,2,0)","v":"FL"},15642,15642,null,"Mississippi","Florida",{"$f":"VLOOKUP(H1259,'Info Sheet'!O:P,2,0)","v":"FL"},18594,18594]
["Mississippi","Georgia",{"$f":"VLOOKUP(B1260,'Info Sheet'!O:P,2,0)","v":"GA"},9819,9819,null,"Mississippi","Georgia",{"$f":"VLOOKUP(H1260,'Info Sheet'!O:P,2,0)","v":"GA"},11040,11040]
["Mississippi","Hawaii",{"$f":"VLOOKUP(B1261,'Info Sheet'!O:P,2,0)","v":"HI"},829,829,null,"Mississippi","Hawaii",{"$f":"VLOOKUP(H1261,'Info Sheet'!O:P,2,0)","v":"HI"},649,649]
["Mississippi","Idaho",{"$f":"VLOOKUP(B1262,'Info Sheet'!O:P,2,0)","v":"ID"},762,762,null,"Mississippi","Idaho",{"$f":"VLOOKUP(H1262,'Info Sheet'!O:P,2,0)","v":"ID"},186,186]
["Mississippi","Illinois",{"$f":"VLOOKUP(B1263,'Info Sheet'!O:P,2,0)","v":"IL"},7801,7801,null,"Mississippi","Illinois",{"$f":"VLOOKUP(H1263,'Info Sheet'!O:P,2,0)","v":"IL"},5358,5358]
["Mississippi","Indiana",{"$f":"VLOOKUP(B1264,'Info Sheet'!O:P,2,0)","v":"IN"},3214,3214,null,"Mississippi","Indiana",{"$f":"VLOOKUP(H1264,'Info Sheet'!O:P,2,0)","v":"IN"},2687,2687]
["Mississippi","Iowa",{"$f":"VLOOKUP(B1265,'Info Sheet'!O:P,2,0)","v":"IA"},924,924,null,"Mississippi","Iowa",{"$f":"VLOOKUP(H1265,'Info Sheet'!O:P,2,0)","v":"IA"},1276,1276]
["Mississippi","Kansas",{"$f":"VLOOKUP(B1266,'Info Sheet'!O:P,2,0)","v":"KS"},796,796,null,"Mississippi","Kansas",{"$f":"VLOOKUP(H1266,'Info Sheet'!O:P,2,0)","v":"KS"},2136,2136]
["Mississippi","Kentucky",{"$f":"VLOOKUP(B1267,'Info Sheet'!O:P,2,0)","v":"KY"},2479,2479,null,"Mississippi","Kentucky",{"$f":"VLOOKUP(H1267,'Info Sheet'!O:P,2,0)","v":"KY"},3336,3336]
["Mississippi","Louisiana",{"$f":"VLOOKUP(B1268,'Info Sheet'!O:P,2,0)","v":"LA"},23117,23117,null,"Mississippi","Louisiana",{"$f":"VLOOKUP(H1268,'Info Sheet'!O:P,2,0)","v":"LA"},24078,24078]
["Mississippi","Maine",{"$f":"VLOOKUP(B1269,'Info Sheet'!O:P,2,0)","v":"ME"},163,163,null,"Mississippi","Maine",{"$f":"VLOOKUP(H1269,'Info Sheet'!O:P,2,0)","v":"ME"},79,79]
["Mississippi","Maryland",{"$f":"VLOOKUP(B1270,'Info Sheet'!O:P,2,0)","v":"MD"},1293,1293,null,"Mississippi","Maryland",{"$f":"VLOOKUP(H1270,'Info Sheet'!O:P,2,0)","v":"MD"},2093,2093]
["Mississippi","Massachusetts",{"$f":"VLOOKUP(B1271,'Info Sheet'!O:P,2,0)","v":"MA"},1619,1619,null,"Mississippi","Massachusetts",{"$f":"VLOOKUP(H1271,'Info Sheet'!O:P,2,0)","v":"MA"},964,964]
["Mississippi","Michigan",{"$f":"VLOOKUP(B1272,'Info Sheet'!O:P,2,0)","v":"MI"},5873,5873,null,"Mississippi","Michigan",{"$f":"VLOOKUP(H1272,'Info Sheet'!O:P,2,0)","v":"MI"},2293,2293]
["Mississippi","Minnesota",{"$f":"VLOOKUP(B1273,'Info Sheet'!O:P,2,0)","v":"MN"},2045,2045,null,"Mississippi","Minnesota",{"$f":"VLOOKUP(H1273,'Info Sheet'!O:P,2,0)","v":"MN"},947,947]
["Mississippi","Mississippi",{"$f":"VLOOKUP(B1274,'Info Sheet'!O:P,2,0)","v":"MS"},0,0,null,"Mississippi","Mississippi",{"$f":"VLOOKUP(H1274,'Info Sheet'!O:P,2,0)","v":"MS"},0,0]
["Mississippi","Missouri",{"$f":"VLOOKUP(B1275,'Info Sheet'!O:P,2,0)","v":"MO"},5174,5174,null,"Mississippi","Missouri",{"$f":"VLOOKUP(H1275,'Info Sheet'!O:P,2,0)","v":"MO"},3934,3934]
["Mississippi","Montana",{"$f":"VLOOKUP(B1276,'Info Sheet'!O:P,2,0)","v":"MT"},480,480,null,"Mississippi","Montana",{"$f":"VLOOKUP(H1276,'Info Sheet'!O:P,2,0)","v":"MT"},274,274]
["Mississippi","Nebraska",{"$f":"VLOOKUP(B1277,'Info Sheet'!O:P,2,0)","v":"NE"},256,256,null,"Mississippi","Nebraska",{"$f":"VLOOKUP(H1277,'Info Sheet'!O:P,2,0)","v":"NE"},1423,1423]
["Mississippi","Nevada",{"$f":"VLOOKUP(B1278,'Info Sheet'!O:P,2,0)","v":"NV"},1018,1018,null,"Mississippi","Nevada",{"$f":"VLOOKUP(H1278,'Info Sheet'!O:P,2,0)","v":"NV"},1932,1932]
["Mississippi","New Hampshire",{"$f":"VLOOKUP(B1279,'Info Sheet'!O:P,2,0)","v":"NH"},125,125,null,"Mississippi","New Hampshire",{"$f":"VLOOKUP(H1279,'Info Sheet'!O:P,2,0)","v":"NH"},185,185]
["Mississippi","New Jersey",{"$f":"VLOOKUP(B1280,'Info Sheet'!O:P,2,0)","v":"NJ"},2799,2799,null,"Mississippi","New Jersey",{"$f":"VLOOKUP(H1280,'Info Sheet'!O:P,2,0)","v":"NJ"},1066,1066]
["Mississippi","New Mexico",{"$f":"VLOOKUP(B1281,'Info Sheet'!O:P,2,0)","v":"NM"},1794,1794,null,"Mississippi","New Mexico",{"$f":"VLOOKUP(H1281,'Info Sheet'!O:P,2,0)","v":"NM"},1726,1726]
["Mississippi","New York",{"$f":"VLOOKUP(B1282,'Info Sheet'!O:P,2,0)","v":"NY"},2882,2882,null,"Mississippi","New York",{"$f":"VLOOKUP(H1282,'Info Sheet'!O:P,2,0)","v":"NY"},2046,2046]
["Mississippi","North Carolina",{"$f":"VLOOKUP(B1283,'Info Sheet'!O:P,2,0)","v":"NC"},4419,4419,null,"Mississippi","North Carolina",{"$f":"VLOOKUP(H1283,'Info Sheet'!O:P,2,0)","v":"NC"},4837,4837]
["Mississippi","North Dakota",{"$f":"VLOOKUP(B1284,'Info Sheet'!O:P,2,0)","v":"ND"},98,98,null,"Mississippi","North Dakota",{"$f":"VLOOKUP(H1284,'Info Sheet'!O:P,2,0)","v":"ND"},152,152]
["Mississippi","Ohio",{"$f":"VLOOKUP(B1285,'Info Sheet'!O:P,2,0)","v":"OH"},3199,3199,null,"Mississippi","Ohio",{"$f":"VLOOKUP(H1285,'Info Sheet'!O:P,2,0)","v":"OH"},1797,1797]
["Mississippi","Oklahoma",{"$f":"VLOOKUP(B1286,'Info Sheet'!O:P,2,0)","v":"OK"},1791,1791,null,"Mississippi","Oklahoma",{"$f":"VLOOKUP(H1286,'Info Sheet'!O:P,2,0)","v":"OK"},3782,3782]
["Mississippi","Oregon",{"$f":"VLOOKUP(B1287,'Info Sheet'!O:P,2,0)","v":"OR"},539,539,null,"Mississippi","Oregon",{"$f":"VLOOKUP(H1287,'Info Sheet'!O:P,2,0)","v":"OR"},928,928]
["Mississippi","Pennsylvania",{"$f":"VLOOKUP(B1288,'Info Sheet'!O:P,2,0)","v":"PA"},3931,3931,null,"Mississippi","Pennsylvania",{"$f":"VLOOKUP(H1288,'Info Sheet'!O:P,2,0)","v":"PA"},1856,1856]
["Mississippi","Rhode Island",{"$f":"VLOOKUP(B1289,'Info Sheet'!O:P,2,0)","v":"RI"},371,371,null,"Mississippi","Rhode Island",{"$f":"VLOOKUP(H1289,'Info Sheet'!O:P,2,0)","v":"RI"},0,0]
["Mississippi","South Carolina",{"$f":"VLOOKUP(B1290,'Info Sheet'!O:P,2,0)","v":"SC"},2854,2854,null,"Mississippi","South Carolina",{"$f":"VLOOKUP(H1290,'Info Sheet'!O:P,2,0)","v":"SC"},4745,4745]
["Mississippi","South Dakota",{"$f":"VLOOKUP(B1291,'Info Sheet'!O:P,2,0)","v":"SD"},141,141,null,"Mississippi","South Dakota",{"$f":"VLOOKUP(H1291,'Info Sheet'!O:P,2,0)","v":"SD"},364,364]
["Mississippi","Tennessee",{"$f":"VLOOKUP(B1292,'Info Sheet'!O:P,2,0)","v":"TN"},27484,27484,null,"Mississippi","Tennessee",{"$f":"VLOOKUP(H1292,'Info Sheet'!O:P,2,0)","v":"TN"},28769,28769]
["Mississippi","Texas",{"$f":"VLOOKUP(B1293,'Info Sheet'!O:P,2,0)","v":"TX"},18228,18228,null,"Mississippi","Texas",{"$f":"VLOOKUP(H1293,'Info Sheet'!O:P,2,0)","v":"TX"},20223,20223]
["Mississippi","Utah",{"$f":"VLOOKUP(B1294,'Info Sheet'!O:P,2,0)","v":"UT"},1018,1018,null,"Mississippi","Utah",{"$f":"VLOOKUP(H1294,'Info Sheet'!O:P,2,0)","v":"UT"},554,554]
["Mississippi","Vermont",{"$f":"VLOOKUP(B1295,'Info Sheet'!O:P,2,0)","v":"VT"},0,0,null,"Mississippi","Vermont",{"$f":"VLOOKUP(H1295,'Info Sheet'!O:P,2,0)","v":"VT"},0,0]
["Mississippi","Virginia",{"$f":"VLOOKUP(B1296,'Info Sheet'!O:P,2,0)","v":"VA"},3954,3954,null,"Mississippi","Virginia",{"$f":"VLOOKUP(H1296,'Info Sheet'!O:P,2,0)","v":"VA"},4884,4884]
["Mississippi","Washington",{"$f":"VLOOKUP(B1297,'Info Sheet'!O:P,2,0)","v":"WA"},1227,1227,null,"Mississippi","Washington",{"$f":"VLOOKUP(H1297,'Info Sheet'!O:P,2,0)","v":"WA"},2462,2462]
["Mississippi","West Virginia",{"$f":"VLOOKUP(B1298,'Info Sheet'!O:P,2,0)","v":"WV"},397,397,null,"Mississippi","West Virginia",{"$f":"VLOOKUP(H1298,'Info Sheet'!O:P,2,0)","v":"WV"},44,44]
["Mississippi","Wisconsin",{"$f":"VLOOKUP(B1299,'Info Sheet'!O:P,2,0)","v":"WI"},2626,2626,null,"Mississippi","Wisconsin",{"$f":"VLOOKUP(H1299,'Info Sheet'!O:P,2,0)","v":"WI"},2031,2031]
["Mississippi","Wyoming",{"$f":"VLOOKUP(B1300,'Info Sheet'!O:P,2,0)","v":"WY"},797,797,null,"Mississippi","Wyoming",{"$f":"VLOOKUP(H1300,'Info Sheet'!O:P,2,0)","v":"WY"},206,206]
["Mississippi","Puerto Rico",{"$f":"VLOOKUP(B1301,'Info Sheet'!O:P,2,0)","v":"PR"},1213,1213,null,"Mississippi","Puerto Rico",{"$f":"VLOOKUP(H1301,'Info Sheet'!O:P,2,0)","v":"PR"},197,197]
["Missouri","Alabama",{"$f":"VLOOKUP(B1302,'Info Sheet'!O:P,2,0)","v":"AL"},3547,3547,null,"Missouri","Alabama",{"$f":"VLOOKUP(H1302,'Info Sheet'!O:P,2,0)","v":"AL"},4014,4014]
["Missouri","Alaska",{"$f":"VLOOKUP(B1303,'Info Sheet'!O:P,2,0)","v":"AK"},5280,5280,null,"Missouri","Alaska",{"$f":"VLOOKUP(H1303,'Info Sheet'!O:P,2,0)","v":"AK"},1740,1740]
["Missouri","Arizona",{"$f":"VLOOKUP(B1304,'Info Sheet'!O:P,2,0)","v":"AZ"},7641,7641,null,"Missouri","Arizona",{"$f":"VLOOKUP(H1304,'Info Sheet'!O:P,2,0)","v":"AZ"},11034,11034]
["Missouri","Arkansas",{"$f":"VLOOKUP(B1305,'Info Sheet'!O:P,2,0)","v":"AR"},19983,19983,null,"Missouri","Arkansas",{"$f":"VLOOKUP(H1305,'Info Sheet'!O:P,2,0)","v":"AR"},23739,23739]
["Missouri","California",{"$f":"VLOOKUP(B1306,'Info Sheet'!O:P,2,0)","v":"CA"},28943,28943,null,"Missouri","California",{"$f":"VLOOKUP(H1306,'Info Sheet'!O:P,2,0)","v":"CA"},21327,21327]
["Missouri","Colorado",{"$f":"VLOOKUP(B1307,'Info Sheet'!O:P,2,0)","v":"CO"},8845,8845,null,"Missouri","Colorado",{"$f":"VLOOKUP(H1307,'Info Sheet'!O:P,2,0)","v":"CO"},10301,10301]
["Missouri","Connecticut",{"$f":"VLOOKUP(B1308,'Info Sheet'!O:P,2,0)","v":"CT"},2169,2169,null,"Missouri","Connecticut",{"$f":"VLOOKUP(H1308,'Info Sheet'!O:P,2,0)","v":"CT"},765,765]
["Missouri","Delaware",{"$f":"VLOOKUP(B1309,'Info Sheet'!O:P,2,0)","v":"DE"},548,548,null,"Missouri","Delaware",{"$f":"VLOOKUP(H1309,'Info Sheet'!O:P,2,0)","v":"DE"},1332,1332]
["Missouri","District of Columbia",{"$f":"VLOOKUP(B1310,'Info Sheet'!O:P,2,0)","v":"DC"},837,837,null,"Missouri","District of Columbia",{"$f":"VLOOKUP(H1310,'Info Sheet'!O:P,2,0)","v":"DC"},721,721]
["Missouri","Florida",{"$f":"VLOOKUP(B1311,'Info Sheet'!O:P,2,0)","v":"FL"},21204,21204,null,"Missouri","Florida",{"$f":"VLOOKUP(H1311,'Info Sheet'!O:P,2,0)","v":"FL"},25764,25764]
["Missouri","Georgia",{"$f":"VLOOKUP(B1312,'Info Sheet'!O:P,2,0)","v":"GA"},8907,8907,null,"Missouri","Georgia",{"$f":"VLOOKUP(H1312,'Info Sheet'!O:P,2,0)","v":"GA"},8963,8963]
["Missouri","Hawaii",{"$f":"VLOOKUP(B1313,'Info Sheet'!O:P,2,0)","v":"HI"},3365,3365,null,"Missouri","Hawaii",{"$f":"VLOOKUP(H1313,'Info Sheet'!O:P,2,0)","v":"HI"},1422,1422]
["Missouri","Idaho",{"$f":"VLOOKUP(B1314,'Info Sheet'!O:P,2,0)","v":"ID"},1986,1986,null,"Missouri","Idaho",{"$f":"VLOOKUP(H1314,'Info Sheet'!O:P,2,0)","v":"ID"},1023,1023]
["Missouri","Illinois",{"$f":"VLOOKUP(B1315,'Info Sheet'!O:P,2,0)","v":"IL"},63439,63439,null,"Missouri","Illinois",{"$f":"VLOOKUP(H1315,'Info Sheet'!O:P,2,0)","v":"IL"},43856,43856]
["Missouri","Indiana",{"$f":"VLOOKUP(B1316,'Info Sheet'!O:P,2,0)","v":"IN"},11939,11939,null,"Missouri","Indiana",{"$f":"VLOOKUP(H1316,'Info Sheet'!O:P,2,0)","v":"IN"},10243,10243]
["Missouri","Iowa",{"$f":"VLOOKUP(B1317,'Info Sheet'!O:P,2,0)","v":"IA"},15475,15475,null,"Missouri","Iowa",{"$f":"VLOOKUP(H1317,'Info Sheet'!O:P,2,0)","v":"IA"},13848,13848]
["Missouri","Kansas",{"$f":"VLOOKUP(B1318,'Info Sheet'!O:P,2,0)","v":"KS"},64529,64529,null,"Missouri","Kansas",{"$f":"VLOOKUP(H1318,'Info Sheet'!O:P,2,0)","v":"KS"},66439,66439]
["Missouri","Kentucky",{"$f":"VLOOKUP(B1319,'Info Sheet'!O:P,2,0)","v":"KY"},6836,6836,null,"Missouri","Kentucky",{"$f":"VLOOKUP(H1319,'Info Sheet'!O:P,2,0)","v":"KY"},8327,8327]
["Missouri","Louisiana",{"$f":"VLOOKUP(B1320,'Info Sheet'!O:P,2,0)","v":"LA"},5144,5144,null,"Missouri","Louisiana",{"$f":"VLOOKUP(H1320,'Info Sheet'!O:P,2,0)","v":"LA"},5818,5818]
["Missouri","Maine",{"$f":"VLOOKUP(B1321,'Info Sheet'!O:P,2,0)","v":"ME"},1458,1458,null,"Missouri","Maine",{"$f":"VLOOKUP(H1321,'Info Sheet'!O:P,2,0)","v":"ME"},595,595]
["Missouri","Maryland",{"$f":"VLOOKUP(B1322,'Info Sheet'!O:P,2,0)","v":"MD"},3321,3321,null,"Missouri","Maryland",{"$f":"VLOOKUP(H1322,'Info Sheet'!O:P,2,0)","v":"MD"},2872,2872]
["Missouri","Massachusetts",{"$f":"VLOOKUP(B1323,'Info Sheet'!O:P,2,0)","v":"MA"},2668,2668,null,"Missouri","Massachusetts",{"$f":"VLOOKUP(H1323,'Info Sheet'!O:P,2,0)","v":"MA"},3671,3671]
["Missouri","Michigan",{"$f":"VLOOKUP(B1324,'Info Sheet'!O:P,2,0)","v":"MI"},8404,8404,null,"Missouri","Michigan",{"$f":"VLOOKUP(H1324,'Info Sheet'!O:P,2,0)","v":"MI"},7636,7636]
["Missouri","Minnesota",{"$f":"VLOOKUP(B1325,'Info Sheet'!O:P,2,0)","v":"MN"},6525,6525,null,"Missouri","Minnesota",{"$f":"VLOOKUP(H1325,'Info Sheet'!O:P,2,0)","v":"MN"},4603,4603]
["Missouri","Mississippi",{"$f":"VLOOKUP(B1326,'Info Sheet'!O:P,2,0)","v":"MS"},3934,3934,null,"Missouri","Mississippi",{"$f":"VLOOKUP(H1326,'Info Sheet'!O:P,2,0)","v":"MS"},5174,5174]
["Missouri","Missouri",{"$f":"VLOOKUP(B1327,'Info Sheet'!O:P,2,0)","v":"MO"},0,0,null,"Missouri","Missouri",{"$f":"VLOOKUP(H1327,'Info Sheet'!O:P,2,0)","v":"MO"},0,0]
["Missouri","Montana",{"$f":"VLOOKUP(B1328,'Info Sheet'!O:P,2,0)","v":"MT"},1576,1576,null,"Missouri","Montana",{"$f":"VLOOKUP(H1328,'Info Sheet'!O:P,2,0)","v":"MT"},1169,1169]
["Missouri","Nebraska",{"$f":"VLOOKUP(B1329,'Info Sheet'!O:P,2,0)","v":"NE"},9495,9495,null,"Missouri","Nebraska",{"$f":"VLOOKUP(H1329,'Info Sheet'!O:P,2,0)","v":"NE"},6794,6794]
["Missouri","Nevada",{"$f":"VLOOKUP(B1330,'Info Sheet'!O:P,2,0)","v":"NV"},3440,3440,null,"Missouri","Nevada",{"$f":"VLOOKUP(H1330,'Info Sheet'!O:P,2,0)","v":"NV"},2776,2776]
["Missouri","New Hampshire",{"$f":"VLOOKUP(B1331,'Info Sheet'!O:P,2,0)","v":"NH"},912,912,null,"Missouri","New Hampshire",{"$f":"VLOOKUP(H1331,'Info Sheet'!O:P,2,0)","v":"NH"},737,737]
["Missouri","New Jersey",{"$f":"VLOOKUP(B1332,'Info Sheet'!O:P,2,0)","v":"NJ"},3394,3394,null,"Missouri","New Jersey",{"$f":"VLOOKUP(H1332,'Info Sheet'!O:P,2,0)","v":"NJ"},1694,1694]
["Missouri","New Mexico",{"$f":"VLOOKUP(B1333,'Info Sheet'!O:P,2,0)","v":"NM"},1617,1617,null,"Missouri","New Mexico",{"$f":"VLOOKUP(H1333,'Info Sheet'!O:P,2,0)","v":"NM"},2537,2537]
["Missouri","New York",{"$f":"VLOOKUP(B1334,'Info Sheet'!O:P,2,0)","v":"NY"},8368,8368,null,"Missouri","New York",{"$f":"VLOOKUP(H1334,'Info Sheet'!O:P,2,0)","v":"NY"},6597,6597]
["Missouri","North Carolina",{"$f":"VLOOKUP(B1335,'Info Sheet'!O:P,2,0)","v":"NC"},9482,9482,null,"Missouri","North Carolina",{"$f":"VLOOKUP(H1335,'Info Sheet'!O:P,2,0)","v":"NC"},7193,7193]
["Missouri","North Dakota",{"$f":"VLOOKUP(B1336,'Info Sheet'!O:P,2,0)","v":"ND"},2461,2461,null,"Missouri","North Dakota",{"$f":"VLOOKUP(H1336,'Info Sheet'!O:P,2,0)","v":"ND"},2017,2017]
["Missouri","Ohio",{"$f":"VLOOKUP(B1337,'Info Sheet'!O:P,2,0)","v":"OH"},8960,8960,null,"Missouri","Ohio",{"$f":"VLOOKUP(H1337,'Info Sheet'!O:P,2,0)","v":"OH"},6200,6200]
["Missouri","Oklahoma",{"$f":"VLOOKUP(B1338,'Info Sheet'!O:P,2,0)","v":"OK"},16018,16018,null,"Missouri","Oklahoma",{"$f":"VLOOKUP(H1338,'Info Sheet'!O:P,2,0)","v":"OK"},15093,15093]
["Missouri","Oregon",{"$f":"VLOOKUP(B1339,'Info Sheet'!O:P,2,0)","v":"OR"},2277,2277,null,"Missouri","Oregon",{"$f":"VLOOKUP(H1339,'Info Sheet'!O:P,2,0)","v":"OR"},3361,3361]
["Missouri","Pennsylvania",{"$f":"VLOOKUP(B1340,'Info Sheet'!O:P,2,0)","v":"PA"},4984,4984,null,"Missouri","Pennsylvania",{"$f":"VLOOKUP(H1340,'Info Sheet'!O:P,2,0)","v":"PA"},4657,4657]
["Missouri","Rhode Island",{"$f":"VLOOKUP(B1341,'Info Sheet'!O:P,2,0)","v":"RI"},720,720,null,"Missouri","Rhode Island",{"$f":"VLOOKUP(H1341,'Info Sheet'!O:P,2,0)","v":"RI"},366,366]
["Missouri","South Carolina",{"$f":"VLOOKUP(B1342,'Info Sheet'!O:P,2,0)","v":"SC"},4077,4077,null,"Missouri","South Carolina",{"$f":"VLOOKUP(H1342,'Info Sheet'!O:P,2,0)","v":"SC"},4777,4777]
["Missouri","South Dakota",{"$f":"VLOOKUP(B1343,'Info Sheet'!O:P,2,0)","v":"SD"},1400,1400,null,"Missouri","South Dakota",{"$f":"VLOOKUP(H1343,'Info Sheet'!O:P,2,0)","v":"SD"},1080,1080]
["Missouri","Tennessee",{"$f":"VLOOKUP(B1344,'Info Sheet'!O:P,2,0)","v":"TN"},9109,9109,null,"Missouri","Tennessee",{"$f":"VLOOKUP(H1344,'Info Sheet'!O:P,2,0)","v":"TN"},10831,10831]
["Missouri","Texas",{"$f":"VLOOKUP(B1345,'Info Sheet'!O:P,2,0)","v":"TX"},32455,32455,null,"Missouri","Texas",{"$f":"VLOOKUP(H1345,'Info Sheet'!O:P,2,0)","v":"TX"},37853,37853]
["Missouri","Utah",{"$f":"VLOOKUP(B1346,'Info Sheet'!O:P,2,0)","v":"UT"},6303,6303,null,"Missouri","Utah",{"$f":"VLOOKUP(H1346,'Info Sheet'!O:P,2,0)","v":"UT"},3319,3319]
["Missouri","Vermont",{"$f":"VLOOKUP(B1347,'Info Sheet'!O:P,2,0)","v":"VT"},904,904,null,"Missouri","Vermont",{"$f":"VLOOKUP(H1347,'Info Sheet'!O:P,2,0)","v":"VT"},143,143]
["Missouri","Virginia",{"$f":"VLOOKUP(B1348,'Info Sheet'!O:P,2,0)","v":"VA"},8499,8499,null,"Missouri","Virginia",{"$f":"VLOOKUP(H1348,'Info Sheet'!O:P,2,0)","v":"VA"},8453,8453]
["Missouri","Washington",{"$f":"VLOOKUP(B1349,'Info Sheet'!O:P,2,0)","v":"WA"},5937,5937,null,"Missouri","Washington",{"$f":"VLOOKUP(H1349,'Info Sheet'!O:P,2,0)","v":"WA"},9836,9836]
["Missouri","West Virginia",{"$f":"VLOOKUP(B1350,'Info Sheet'!O:P,2,0)","v":"WV"},521,521,null,"Missouri","West Virginia",{"$f":"VLOOKUP(H1350,'Info Sheet'!O:P,2,0)","v":"WV"},528,528]
["Missouri","Wisconsin",{"$f":"VLOOKUP(B1351,'Info Sheet'!O:P,2,0)","v":"WI"},5470,5470,null,"Missouri","Wisconsin",{"$f":"VLOOKUP(H1351,'Info Sheet'!O:P,2,0)","v":"WI"},5069,5069]
["Missouri","Wyoming",{"$f":"VLOOKUP(B1352,'Info Sheet'!O:P,2,0)","v":"WY"},2289,2289,null,"Missouri","Wyoming",{"$f":"VLOOKUP(H1352,'Info Sheet'!O:P,2,0)","v":"WY"},906,906]
["Missouri","Puerto Rico",{"$f":"VLOOKUP(B1353,'Info Sheet'!O:P,2,0)","v":"PR"},2402,2402,null,"Missouri","Puerto Rico",{"$f":"VLOOKUP(H1353,'Info Sheet'!O:P,2,0)","v":"PR"},322,322]
["Montana","Alabama",{"$f":"VLOOKUP(B1354,'Info Sheet'!O:P,2,0)","v":"AL"},692,692,null,"Montana","Alabama",{"$f":"VLOOKUP(H1354,'Info Sheet'!O:P,2,0)","v":"AL"},647,647]
["Montana","Alaska",{"$f":"VLOOKUP(B1355,'Info Sheet'!O:P,2,0)","v":"AK"},2494,2494,null,"Montana","Alaska",{"$f":"VLOOKUP(H1355,'Info Sheet'!O:P,2,0)","v":"AK"},1235,1235]
["Montana","Arizona",{"$f":"VLOOKUP(B1356,'Info Sheet'!O:P,2,0)","v":"AZ"},5428,5428,null,"Montana","Arizona",{"$f":"VLOOKUP(H1356,'Info Sheet'!O:P,2,0)","v":"AZ"},4892,4892]
["Montana","Arkansas",{"$f":"VLOOKUP(B1357,'Info Sheet'!O:P,2,0)","v":"AR"},784,784,null,"Montana","Arkansas",{"$f":"VLOOKUP(H1357,'Info Sheet'!O:P,2,0)","v":"AR"},1056,1056]
["Montana","California",{"$f":"VLOOKUP(B1358,'Info Sheet'!O:P,2,0)","v":"CA"},14217,14217,null,"Montana","California",{"$f":"VLOOKUP(H1358,'Info Sheet'!O:P,2,0)","v":"CA"},8668,8668]
["Montana","Colorado",{"$f":"VLOOKUP(B1359,'Info Sheet'!O:P,2,0)","v":"CO"},7176,7176,null,"Montana","Colorado",{"$f":"VLOOKUP(H1359,'Info Sheet'!O:P,2,0)","v":"CO"},8142,8142]
["Montana","Connecticut",{"$f":"VLOOKUP(B1360,'Info Sheet'!O:P,2,0)","v":"CT"},186,186,null,"Montana","Connecticut",{"$f":"VLOOKUP(H1360,'Info Sheet'!O:P,2,0)","v":"CT"},256,256]
["Montana","Delaware",{"$f":"VLOOKUP(B1361,'Info Sheet'!O:P,2,0)","v":"DE"},436,436,null,"Montana","Delaware",{"$f":"VLOOKUP(H1361,'Info Sheet'!O:P,2,0)","v":"DE"},73,73]
["Montana","District of Columbia",{"$f":"VLOOKUP(B1362,'Info Sheet'!O:P,2,0)","v":"DC"},0,0,null,"Montana","District of Columbia",{"$f":"VLOOKUP(H1362,'Info Sheet'!O:P,2,0)","v":"DC"},38,38]
["Montana","Florida",{"$f":"VLOOKUP(B1363,'Info Sheet'!O:P,2,0)","v":"FL"},3539,3539,null,"Montana","Florida",{"$f":"VLOOKUP(H1363,'Info Sheet'!O:P,2,0)","v":"FL"},2655,2655]
["Montana","Georgia",{"$f":"VLOOKUP(B1364,'Info Sheet'!O:P,2,0)","v":"GA"},569,569,null,"Montana","Georgia",{"$f":"VLOOKUP(H1364,'Info Sheet'!O:P,2,0)","v":"GA"},549,549]
["Montana","Hawaii",{"$f":"VLOOKUP(B1365,'Info Sheet'!O:P,2,0)","v":"HI"},588,588,null,"Montana","Hawaii",{"$f":"VLOOKUP(H1365,'Info Sheet'!O:P,2,0)","v":"HI"},366,366]
["Montana","Idaho",{"$f":"VLOOKUP(B1366,'Info Sheet'!O:P,2,0)","v":"ID"},6386,6386,null,"Montana","Idaho",{"$f":"VLOOKUP(H1366,'Info Sheet'!O:P,2,0)","v":"ID"},6911,6911]
["Montana","Illinois",{"$f":"VLOOKUP(B1367,'Info Sheet'!O:P,2,0)","v":"IL"},2401,2401,null,"Montana","Illinois",{"$f":"VLOOKUP(H1367,'Info Sheet'!O:P,2,0)","v":"IL"},1460,1460]
["Montana","Indiana",{"$f":"VLOOKUP(B1368,'Info Sheet'!O:P,2,0)","v":"IN"},1060,1060,null,"Montana","Indiana",{"$f":"VLOOKUP(H1368,'Info Sheet'!O:P,2,0)","v":"IN"},332,332]
["Montana","Iowa",{"$f":"VLOOKUP(B1369,'Info Sheet'!O:P,2,0)","v":"IA"},1001,1001,null,"Montana","Iowa",{"$f":"VLOOKUP(H1369,'Info Sheet'!O:P,2,0)","v":"IA"},1658,1658]
["Montana","Kansas",{"$f":"VLOOKUP(B1370,'Info Sheet'!O:P,2,0)","v":"KS"},1129,1129,null,"Montana","Kansas",{"$f":"VLOOKUP(H1370,'Info Sheet'!O:P,2,0)","v":"KS"},859,859]
["Montana","Kentucky",{"$f":"VLOOKUP(B1371,'Info Sheet'!O:P,2,0)","v":"KY"},688,688,null,"Montana","Kentucky",{"$f":"VLOOKUP(H1371,'Info Sheet'!O:P,2,0)","v":"KY"},216,216]
["Montana","Louisiana",{"$f":"VLOOKUP(B1372,'Info Sheet'!O:P,2,0)","v":"LA"},85,85,null,"Montana","Louisiana",{"$f":"VLOOKUP(H1372,'Info Sheet'!O:P,2,0)","v":"LA"},746,746]
["Montana","Maine",{"$f":"VLOOKUP(B1373,'Info Sheet'!O:P,2,0)","v":"ME"},372,372,null,"Montana","Maine",{"$f":"VLOOKUP(H1373,'Info Sheet'!O:P,2,0)","v":"ME"},285,285]
["Montana","Maryland",{"$f":"VLOOKUP(B1374,'Info Sheet'!O:P,2,0)","v":"MD"},141,141,null,"Montana","Maryland",{"$f":"VLOOKUP(H1374,'Info Sheet'!O:P,2,0)","v":"MD"},159,159]
["Montana","Massachusetts",{"$f":"VLOOKUP(B1375,'Info Sheet'!O:P,2,0)","v":"MA"},166,166,null,"Montana","Massachusetts",{"$f":"VLOOKUP(H1375,'Info Sheet'!O:P,2,0)","v":"MA"},1033,1033]
["Montana","Michigan",{"$f":"VLOOKUP(B1376,'Info Sheet'!O:P,2,0)","v":"MI"},1823,1823,null,"Montana","Michigan",{"$f":"VLOOKUP(H1376,'Info Sheet'!O:P,2,0)","v":"MI"},614,614]
["Montana","Minnesota",{"$f":"VLOOKUP(B1377,'Info Sheet'!O:P,2,0)","v":"MN"},2773,2773,null,"Montana","Minnesota",{"$f":"VLOOKUP(H1377,'Info Sheet'!O:P,2,0)","v":"MN"},3734,3734]
["Montana","Mississippi",{"$f":"VLOOKUP(B1378,'Info Sheet'!O:P,2,0)","v":"MS"},274,274,null,"Montana","Mississippi",{"$f":"VLOOKUP(H1378,'Info Sheet'!O:P,2,0)","v":"MS"},480,480]
["Montana","Missouri",{"$f":"VLOOKUP(B1379,'Info Sheet'!O:P,2,0)","v":"MO"},1169,1169,null,"Montana","Missouri",{"$f":"VLOOKUP(H1379,'Info Sheet'!O:P,2,0)","v":"MO"},1576,1576]
["Montana","Montana",{"$f":"VLOOKUP(B1380,'Info Sheet'!O:P,2,0)","v":"MT"},0,0,null,"Montana","Montana",{"$f":"VLOOKUP(H1380,'Info Sheet'!O:P,2,0)","v":"MT"},0,0]
["Montana","Nebraska",{"$f":"VLOOKUP(B1381,'Info Sheet'!O:P,2,0)","v":"NE"},832,832,null,"Montana","Nebraska",{"$f":"VLOOKUP(H1381,'Info Sheet'!O:P,2,0)","v":"NE"},284,284]
["Montana","Nevada",{"$f":"VLOOKUP(B1382,'Info Sheet'!O:P,2,0)","v":"NV"},2204,2204,null,"Montana","Nevada",{"$f":"VLOOKUP(H1382,'Info Sheet'!O:P,2,0)","v":"NV"},2993,2993]
["Montana","New Hampshire",{"$f":"VLOOKUP(B1383,'Info Sheet'!O:P,2,0)","v":"NH"},115,115,null,"Montana","New Hampshire",{"$f":"VLOOKUP(H1383,'Info Sheet'!O:P,2,0)","v":"NH"},716,716]
["Montana","New Jersey",{"$f":"VLOOKUP(B1384,'Info Sheet'!O:P,2,0)","v":"NJ"},1045,1045,null,"Montana","New Jersey",{"$f":"VLOOKUP(H1384,'Info Sheet'!O:P,2,0)","v":"NJ"},238,238]
["Montana","New Mexico",{"$f":"VLOOKUP(B1385,'Info Sheet'!O:P,2,0)","v":"NM"},1183,1183,null,"Montana","New Mexico",{"$f":"VLOOKUP(H1385,'Info Sheet'!O:P,2,0)","v":"NM"},1686,1686]
["Montana","New York",{"$f":"VLOOKUP(B1386,'Info Sheet'!O:P,2,0)","v":"NY"},1150,1150,null,"Montana","New York",{"$f":"VLOOKUP(H1386,'Info Sheet'!O:P,2,0)","v":"NY"},1049,1049]
["Montana","North Carolina",{"$f":"VLOOKUP(B1387,'Info Sheet'!O:P,2,0)","v":"NC"},3327,3327,null,"Montana","North Carolina",{"$f":"VLOOKUP(H1387,'Info Sheet'!O:P,2,0)","v":"NC"},1037,1037]
["Montana","North Dakota",{"$f":"VLOOKUP(B1388,'Info Sheet'!O:P,2,0)","v":"ND"},3014,3014,null,"Montana","North Dakota",{"$f":"VLOOKUP(H1388,'Info Sheet'!O:P,2,0)","v":"ND"},4239,4239]
["Montana","Ohio",{"$f":"VLOOKUP(B1389,'Info Sheet'!O:P,2,0)","v":"OH"},812,812,null,"Montana","Ohio",{"$f":"VLOOKUP(H1389,'Info Sheet'!O:P,2,0)","v":"OH"},837,837]
["Montana","Oklahoma",{"$f":"VLOOKUP(B1390,'Info Sheet'!O:P,2,0)","v":"OK"},1296,1296,null,"Montana","Oklahoma",{"$f":"VLOOKUP(H1390,'Info Sheet'!O:P,2,0)","v":"OK"},2049,2049]
["Montana","Oregon",{"$f":"VLOOKUP(B1391,'Info Sheet'!O:P,2,0)","v":"OR"},6529,6529,null,"Montana","Oregon",{"$f":"VLOOKUP(H1391,'Info Sheet'!O:P,2,0)","v":"OR"},6657,6657]
["Montana","Pennsylvania",{"$f":"VLOOKUP(B1392,'Info Sheet'!O:P,2,0)","v":"PA"},1716,1716,null,"Montana","Pennsylvania",{"$f":"VLOOKUP(H1392,'Info Sheet'!O:P,2,0)","v":"PA"},812,812]
["Montana","Rhode Island",{"$f":"VLOOKUP(B1393,'Info Sheet'!O:P,2,0)","v":"RI"},0,0,null,"Montana","Rhode Island",{"$f":"VLOOKUP(H1393,'Info Sheet'!O:P,2,0)","v":"RI"},0,0]
["Montana","South Carolina",{"$f":"VLOOKUP(B1394,'Info Sheet'!O:P,2,0)","v":"SC"},417,417,null,"Montana","South Carolina",{"$f":"VLOOKUP(H1394,'Info Sheet'!O:P,2,0)","v":"SC"},1008,1008]
["Montana","South Dakota",{"$f":"VLOOKUP(B1395,'Info Sheet'!O:P,2,0)","v":"SD"},713,713,null,"Montana","South Dakota",{"$f":"VLOOKUP(H1395,'Info Sheet'!O:P,2,0)","v":"SD"},1040,1040]
["Montana","Tennessee",{"$f":"VLOOKUP(B1396,'Info Sheet'!O:P,2,0)","v":"TN"},422,422,null,"Montana","Tennessee",{"$f":"VLOOKUP(H1396,'Info Sheet'!O:P,2,0)","v":"TN"},641,641]
["Montana","Texas",{"$f":"VLOOKUP(B1397,'Info Sheet'!O:P,2,0)","v":"TX"},4823,4823,null,"Montana","Texas",{"$f":"VLOOKUP(H1397,'Info Sheet'!O:P,2,0)","v":"TX"},3377,3377]
["Montana","Utah",{"$f":"VLOOKUP(B1398,'Info Sheet'!O:P,2,0)","v":"UT"},2456,2456,null,"Montana","Utah",{"$f":"VLOOKUP(H1398,'Info Sheet'!O:P,2,0)","v":"UT"},4227,4227]
["Montana","Vermont",{"$f":"VLOOKUP(B1399,'Info Sheet'!O:P,2,0)","v":"VT"},140,140,null,"Montana","Vermont",{"$f":"VLOOKUP(H1399,'Info Sheet'!O:P,2,0)","v":"VT"},383,383]
["Montana","Virginia",{"$f":"VLOOKUP(B1400,'Info Sheet'!O:P,2,0)","v":"VA"},931,931,null,"Montana","Virginia",{"$f":"VLOOKUP(H1400,'Info Sheet'!O:P,2,0)","v":"VA"},2141,2141]
["Montana","Washington",{"$f":"VLOOKUP(B1401,'Info Sheet'!O:P,2,0)","v":"WA"},11868,11868,null,"Montana","Washington",{"$f":"VLOOKUP(H1401,'Info Sheet'!O:P,2,0)","v":"WA"},10138,10138]
["Montana","West Virginia",{"$f":"VLOOKUP(B1402,'Info Sheet'!O:P,2,0)","v":"WV"},14,14,null,"Montana","West Virginia",{"$f":"VLOOKUP(H1402,'Info Sheet'!O:P,2,0)","v":"WV"},99,99]
["Montana","Wisconsin",{"$f":"VLOOKUP(B1403,'Info Sheet'!O:P,2,0)","v":"WI"},1253,1253,null,"Montana","Wisconsin",{"$f":"VLOOKUP(H1403,'Info Sheet'!O:P,2,0)","v":"WI"},1081,1081]
["Montana","Wyoming",{"$f":"VLOOKUP(B1404,'Info Sheet'!O:P,2,0)","v":"WY"},5036,5036,null,"Montana","Wyoming",{"$f":"VLOOKUP(H1404,'Info Sheet'!O:P,2,0)","v":"WY"},5534,5534]
["Montana","Puerto Rico",{"$f":"VLOOKUP(B1405,'Info Sheet'!O:P,2,0)","v":"PR"},364,364,null,"Montana","Puerto Rico",{"$f":"VLOOKUP(H1405,'Info Sheet'!O:P,2,0)","v":"PR"},0,0]
["Nebraska","Alabama",{"$f":"VLOOKUP(B1406,'Info Sheet'!O:P,2,0)","v":"AL"},646,646,null,"Nebraska","Alabama",{"$f":"VLOOKUP(H1406,'Info Sheet'!O:P,2,0)","v":"AL"},1090,1090]
["Nebraska","Alaska",{"$f":"VLOOKUP(B1407,'Info Sheet'!O:P,2,0)","v":"AK"},1382,1382,null,"Nebraska","Alaska",{"$f":"VLOOKUP(H1407,'Info Sheet'!O:P,2,0)","v":"AK"},1415,1415]
["Nebraska","Arizona",{"$f":"VLOOKUP(B1408,'Info Sheet'!O:P,2,0)","v":"AZ"},6374,6374,null,"Nebraska","Arizona",{"$f":"VLOOKUP(H1408,'Info Sheet'!O:P,2,0)","v":"AZ"},5436,5436]
["Nebraska","Arkansas",{"$f":"VLOOKUP(B1409,'Info Sheet'!O:P,2,0)","v":"AR"},1198,1198,null,"Nebraska","Arkansas",{"$f":"VLOOKUP(H1409,'Info Sheet'!O:P,2,0)","v":"AR"},892,892]
["Nebraska","California",{"$f":"VLOOKUP(B1410,'Info Sheet'!O:P,2,0)","v":"CA"},12992,12992,null,"Nebraska","California",{"$f":"VLOOKUP(H1410,'Info Sheet'!O:P,2,0)","v":"CA"},8319,8319]
["Nebraska","Colorado",{"$f":"VLOOKUP(B1411,'Info Sheet'!O:P,2,0)","v":"CO"},9450,9450,null,"Nebraska","Colorado",{"$f":"VLOOKUP(H1411,'Info Sheet'!O:P,2,0)","v":"CO"},13119,13119]
["Nebraska","Connecticut",{"$f":"VLOOKUP(B1412,'Info Sheet'!O:P,2,0)","v":"CT"},742,742,null,"Nebraska","Connecticut",{"$f":"VLOOKUP(H1412,'Info Sheet'!O:P,2,0)","v":"CT"},107,107]
["Nebraska","Delaware",{"$f":"VLOOKUP(B1413,'Info Sheet'!O:P,2,0)","v":"DE"},177,177,null,"Nebraska","Delaware",{"$f":"VLOOKUP(H1413,'Info Sheet'!O:P,2,0)","v":"DE"},103,103]
["Nebraska","District of Columbia",{"$f":"VLOOKUP(B1414,'Info Sheet'!O:P,2,0)","v":"DC"},29,29,null,"Nebraska","District of Columbia",{"$f":"VLOOKUP(H1414,'Info Sheet'!O:P,2,0)","v":"DC"},313,313]
["Nebraska","Florida",{"$f":"VLOOKUP(B1415,'Info Sheet'!O:P,2,0)","v":"FL"},4248,4248,null,"Nebraska","Florida",{"$f":"VLOOKUP(H1415,'Info Sheet'!O:P,2,0)","v":"FL"},6346,6346]
["Nebraska","Georgia",{"$f":"VLOOKUP(B1416,'Info Sheet'!O:P,2,0)","v":"GA"},2422,2422,null,"Nebraska","Georgia",{"$f":"VLOOKUP(H1416,'Info Sheet'!O:P,2,0)","v":"GA"},5575,5575]
["Nebraska","Hawaii",{"$f":"VLOOKUP(B1417,'Info Sheet'!O:P,2,0)","v":"HI"},697,697,null,"Nebraska","Hawaii",{"$f":"VLOOKUP(H1417,'Info Sheet'!O:P,2,0)","v":"HI"},166,166]
["Nebraska","Idaho",{"$f":"VLOOKUP(B1418,'Info Sheet'!O:P,2,0)","v":"ID"},948,948,null,"Nebraska","Idaho",{"$f":"VLOOKUP(H1418,'Info Sheet'!O:P,2,0)","v":"ID"},474,474]
["Nebraska","Illinois",{"$f":"VLOOKUP(B1419,'Info Sheet'!O:P,2,0)","v":"IL"},4428,4428,null,"Nebraska","Illinois",{"$f":"VLOOKUP(H1419,'Info Sheet'!O:P,2,0)","v":"IL"},2675,2675]
["Nebraska","Indiana",{"$f":"VLOOKUP(B1420,'Info Sheet'!O:P,2,0)","v":"IN"},1544,1544,null,"Nebraska","Indiana",{"$f":"VLOOKUP(H1420,'Info Sheet'!O:P,2,0)","v":"IN"},1918,1918]
["Nebraska","Iowa",{"$f":"VLOOKUP(B1421,'Info Sheet'!O:P,2,0)","v":"IA"},21926,21926,null,"Nebraska","Iowa",{"$f":"VLOOKUP(H1421,'Info Sheet'!O:P,2,0)","v":"IA"},18971,18971]
["Nebraska","Kansas",{"$f":"VLOOKUP(B1422,'Info Sheet'!O:P,2,0)","v":"KS"},8627,8627,null,"Nebraska","Kansas",{"$f":"VLOOKUP(H1422,'Info Sheet'!O:P,2,0)","v":"KS"},8452,8452]
["Nebraska","Kentucky",{"$f":"VLOOKUP(B1423,'Info Sheet'!O:P,2,0)","v":"KY"},636,636,null,"Nebraska","Kentucky",{"$f":"VLOOKUP(H1423,'Info Sheet'!O:P,2,0)","v":"KY"},2052,2052]
["Nebraska","Louisiana",{"$f":"VLOOKUP(B1424,'Info Sheet'!O:P,2,0)","v":"LA"},722,722,null,"Nebraska","Louisiana",{"$f":"VLOOKUP(H1424,'Info Sheet'!O:P,2,0)","v":"LA"},1040,1040]
["Nebraska","Maine",{"$f":"VLOOKUP(B1425,'Info Sheet'!O:P,2,0)","v":"ME"},190,190,null,"Nebraska","Maine",{"$f":"VLOOKUP(H1425,'Info Sheet'!O:P,2,0)","v":"ME"},286,286]
["Nebraska","Maryland",{"$f":"VLOOKUP(B1426,'Info Sheet'!O:P,2,0)","v":"MD"},524,524,null,"Nebraska","Maryland",{"$f":"VLOOKUP(H1426,'Info Sheet'!O:P,2,0)","v":"MD"},186,186]
["Nebraska","Massachusetts",{"$f":"VLOOKUP(B1427,'Info Sheet'!O:P,2,0)","v":"MA"},295,295,null,"Nebraska","Massachusetts",{"$f":"VLOOKUP(H1427,'Info Sheet'!O:P,2,0)","v":"MA"},865,865]
["Nebraska","Michigan",{"$f":"VLOOKUP(B1428,'Info Sheet'!O:P,2,0)","v":"MI"},1667,1667,null,"Nebraska","Michigan",{"$f":"VLOOKUP(H1428,'Info Sheet'!O:P,2,0)","v":"MI"},765,765]
["Nebraska","Minnesota",{"$f":"VLOOKUP(B1429,'Info Sheet'!O:P,2,0)","v":"MN"},5198,5198,null,"Nebraska","Minnesota",{"$f":"VLOOKUP(H1429,'Info Sheet'!O:P,2,0)","v":"MN"},3662,3662]
["Nebraska","Mississippi",{"$f":"VLOOKUP(B1430,'Info Sheet'!O:P,2,0)","v":"MS"},1423,1423,null,"Nebraska","Mississippi",{"$f":"VLOOKUP(H1430,'Info Sheet'!O:P,2,0)","v":"MS"},256,256]
["Nebraska","Missouri",{"$f":"VLOOKUP(B1431,'Info Sheet'!O:P,2,0)","v":"MO"},6794,6794,null,"Nebraska","Missouri",{"$f":"VLOOKUP(H1431,'Info Sheet'!O:P,2,0)","v":"MO"},9495,9495]
["Nebraska","Montana",{"$f":"VLOOKUP(B1432,'Info Sheet'!O:P,2,0)","v":"MT"},284,284,null,"Nebraska","Montana",{"$f":"VLOOKUP(H1432,'Info Sheet'!O:P,2,0)","v":"MT"},832,832]
["Nebraska","Nebraska",{"$f":"VLOOKUP(B1433,'Info Sheet'!O:P,2,0)","v":"NE"},0,0,null,"Nebraska","Nebraska",{"$f":"VLOOKUP(H1433,'Info Sheet'!O:P,2,0)","v":"NE"},0,0]
["Nebraska","Nevada",{"$f":"VLOOKUP(B1434,'Info Sheet'!O:P,2,0)","v":"NV"},705,705,null,"Nebraska","Nevada",{"$f":"VLOOKUP(H1434,'Info Sheet'!O:P,2,0)","v":"NV"},1875,1875]
["Nebraska","New Hampshire",{"$f":"VLOOKUP(B1435,'Info Sheet'!O:P,2,0)","v":"NH"},0,0,null,"Nebraska","New Hampshire",{"$f":"VLOOKUP(H1435,'Info Sheet'!O:P,2,0)","v":"NH"},143,143]
["Nebraska","New Jersey",{"$f":"VLOOKUP(B1436,'Info Sheet'!O:P,2,0)","v":"NJ"},786,786,null,"Nebraska","New Jersey",{"$f":"VLOOKUP(H1436,'Info Sheet'!O:P,2,0)","v":"NJ"},608,608]
["Nebraska","New Mexico",{"$f":"VLOOKUP(B1437,'Info Sheet'!O:P,2,0)","v":"NM"},1231,1231,null,"Nebraska","New Mexico",{"$f":"VLOOKUP(H1437,'Info Sheet'!O:P,2,0)","v":"NM"},1077,1077]
["Nebraska","New York",{"$f":"VLOOKUP(B1438,'Info Sheet'!O:P,2,0)","v":"NY"},973,973,null,"Nebraska","New York",{"$f":"VLOOKUP(H1438,'Info Sheet'!O:P,2,0)","v":"NY"},1543,1543]
["Nebraska","North Carolina",{"$f":"VLOOKUP(B1439,'Info Sheet'!O:P,2,0)","v":"NC"},2145,2145,null,"Nebraska","North Carolina",{"$f":"VLOOKUP(H1439,'Info Sheet'!O:P,2,0)","v":"NC"},2200,2200]
["Nebraska","North Dakota",{"$f":"VLOOKUP(B1440,'Info Sheet'!O:P,2,0)","v":"ND"},1566,1566,null,"Nebraska","North Dakota",{"$f":"VLOOKUP(H1440,'Info Sheet'!O:P,2,0)","v":"ND"},1496,1496]
["Nebraska","Ohio",{"$f":"VLOOKUP(B1441,'Info Sheet'!O:P,2,0)","v":"OH"},2063,2063,null,"Nebraska","Ohio",{"$f":"VLOOKUP(H1441,'Info Sheet'!O:P,2,0)","v":"OH"},3759,3759]
["Nebraska","Oklahoma",{"$f":"VLOOKUP(B1442,'Info Sheet'!O:P,2,0)","v":"OK"},2544,2544,null,"Nebraska","Oklahoma",{"$f":"VLOOKUP(H1442,'Info Sheet'!O:P,2,0)","v":"OK"},3108,3108]
["Nebraska","Oregon",{"$f":"VLOOKUP(B1443,'Info Sheet'!O:P,2,0)","v":"OR"},2168,2168,null,"Nebraska","Oregon",{"$f":"VLOOKUP(H1443,'Info Sheet'!O:P,2,0)","v":"OR"},1671,1671]
["Nebraska","Pennsylvania",{"$f":"VLOOKUP(B1444,'Info Sheet'!O:P,2,0)","v":"PA"},1299,1299,null,"Nebraska","Pennsylvania",{"$f":"VLOOKUP(H1444,'Info Sheet'!O:P,2,0)","v":"PA"},1347,1347]
["Nebraska","Rhode Island",{"$f":"VLOOKUP(B1445,'Info Sheet'!O:P,2,0)","v":"RI"},0,0,null,"Nebraska","Rhode Island",{"$f":"VLOOKUP(H1445,'Info Sheet'!O:P,2,0)","v":"RI"},188,188]
["Nebraska","South Carolina",{"$f":"VLOOKUP(B1446,'Info Sheet'!O:P,2,0)","v":"SC"},764,764,null,"Nebraska","South Carolina",{"$f":"VLOOKUP(H1446,'Info Sheet'!O:P,2,0)","v":"SC"},362,362]
["Nebraska","South Dakota",{"$f":"VLOOKUP(B1447,'Info Sheet'!O:P,2,0)","v":"SD"},8442,8442,null,"Nebraska","South Dakota",{"$f":"VLOOKUP(H1447,'Info Sheet'!O:P,2,0)","v":"SD"},6130,6130]
["Nebraska","Tennessee",{"$f":"VLOOKUP(B1448,'Info Sheet'!O:P,2,0)","v":"TN"},535,535,null,"Nebraska","Tennessee",{"$f":"VLOOKUP(H1448,'Info Sheet'!O:P,2,0)","v":"TN"},1250,1250]
["Nebraska","Texas",{"$f":"VLOOKUP(B1449,'Info Sheet'!O:P,2,0)","v":"TX"},12918,12918,null,"Nebraska","Texas",{"$f":"VLOOKUP(H1449,'Info Sheet'!O:P,2,0)","v":"TX"},13524,13524]
["Nebraska","Utah",{"$f":"VLOOKUP(B1450,'Info Sheet'!O:P,2,0)","v":"UT"},1500,1500,null,"Nebraska","Utah",{"$f":"VLOOKUP(H1450,'Info Sheet'!O:P,2,0)","v":"UT"},802,802]
["Nebraska","Vermont",{"$f":"VLOOKUP(B1451,'Info Sheet'!O:P,2,0)","v":"VT"},79,79,null,"Nebraska","Vermont",{"$f":"VLOOKUP(H1451,'Info Sheet'!O:P,2,0)","v":"VT"},0,0]
["Nebraska","Virginia",{"$f":"VLOOKUP(B1452,'Info Sheet'!O:P,2,0)","v":"VA"},2463,2463,null,"Nebraska","Virginia",{"$f":"VLOOKUP(H1452,'Info Sheet'!O:P,2,0)","v":"VA"},1136,1136]
["Nebraska","Washington",{"$f":"VLOOKUP(B1453,'Info Sheet'!O:P,2,0)","v":"WA"},3392,3392,null,"Nebraska","Washington",{"$f":"VLOOKUP(H1453,'Info Sheet'!O:P,2,0)","v":"WA"},1678,1678]
["Nebraska","West Virginia",{"$f":"VLOOKUP(B1454,'Info Sheet'!O:P,2,0)","v":"WV"},208,208,null,"Nebraska","West Virginia",{"$f":"VLOOKUP(H1454,'Info Sheet'!O:P,2,0)","v":"WV"},78,78]
["Nebraska","Wisconsin",{"$f":"VLOOKUP(B1455,'Info Sheet'!O:P,2,0)","v":"WI"},1922,1922,null,"Nebraska","Wisconsin",{"$f":"VLOOKUP(H1455,'Info Sheet'!O:P,2,0)","v":"WI"},1660,1660]
["Nebraska","Wyoming",{"$f":"VLOOKUP(B1456,'Info Sheet'!O:P,2,0)","v":"WY"},3360,3360,null,"Nebraska","Wyoming",{"$f":"VLOOKUP(H1456,'Info Sheet'!O:P,2,0)","v":"WY"},4711,4711]
["Nebraska","Puerto Rico",{"$f":"VLOOKUP(B1457,'Info Sheet'!O:P,2,0)","v":"PR"},0,0,null,"Nebraska","Puerto Rico",{"$f":"VLOOKUP(H1457,'Info Sheet'!O:P,2,0)","v":"PR"},0,0]
["Nevada","Alabama",{"$f":"VLOOKUP(B1458,'Info Sheet'!O:P,2,0)","v":"AL"},1191,1191,null,"Nevada","Alabama",{"$f":"VLOOKUP(H1458,'Info Sheet'!O:P,2,0)","v":"AL"},1531,1531]
["Nevada","Alaska",{"$f":"VLOOKUP(B1459,'Info Sheet'!O:P,2,0)","v":"AK"},3269,3269,null,"Nevada","Alaska",{"$f":"VLOOKUP(H1459,'Info Sheet'!O:P,2,0)","v":"AK"},1575,1575]
["Nevada","Arizona",{"$f":"VLOOKUP(B1460,'Info Sheet'!O:P,2,0)","v":"AZ"},26708,26708,null,"Nevada","Arizona",{"$f":"VLOOKUP(H1460,'Info Sheet'!O:P,2,0)","v":"AZ"},25810,25810]
["Nevada","Arkansas",{"$f":"VLOOKUP(B1461,'Info Sheet'!O:P,2,0)","v":"AR"},1193,1193,null,"Nevada","Arkansas",{"$f":"VLOOKUP(H1461,'Info Sheet'!O:P,2,0)","v":"AR"},829,829]
["Nevada","California",{"$f":"VLOOKUP(B1462,'Info Sheet'!O:P,2,0)","v":"CA"},125564,125564,null,"Nevada","California",{"$f":"VLOOKUP(H1462,'Info Sheet'!O:P,2,0)","v":"CA"},91851,91851]
["Nevada","Colorado",{"$f":"VLOOKUP(B1463,'Info Sheet'!O:P,2,0)","v":"CO"},12051,12051,null,"Nevada","Colorado",{"$f":"VLOOKUP(H1463,'Info Sheet'!O:P,2,0)","v":"CO"},11981,11981]
["Nevada","Connecticut",{"$f":"VLOOKUP(B1464,'Info Sheet'!O:P,2,0)","v":"CT"},980,980,null,"Nevada","Connecticut",{"$f":"VLOOKUP(H1464,'Info Sheet'!O:P,2,0)","v":"CT"},839,839]
["Nevada","Delaware",{"$f":"VLOOKUP(B1465,'Info Sheet'!O:P,2,0)","v":"DE"},557,557,null,"Nevada","Delaware",{"$f":"VLOOKUP(H1465,'Info Sheet'!O:P,2,0)","v":"DE"},678,678]
["Nevada","District of Columbia",{"$f":"VLOOKUP(B1466,'Info Sheet'!O:P,2,0)","v":"DC"},1451,1451,null,"Nevada","District of Columbia",{"$f":"VLOOKUP(H1466,'Info Sheet'!O:P,2,0)","v":"DC"},280,280]
["Nevada","Florida",{"$f":"VLOOKUP(B1467,'Info Sheet'!O:P,2,0)","v":"FL"},9883,9883,null,"Nevada","Florida",{"$f":"VLOOKUP(H1467,'Info Sheet'!O:P,2,0)","v":"FL"},11818,11818]
["Nevada","Georgia",{"$f":"VLOOKUP(B1468,'Info Sheet'!O:P,2,0)","v":"GA"},3663,3663,null,"Nevada","Georgia",{"$f":"VLOOKUP(H1468,'Info Sheet'!O:P,2,0)","v":"GA"},5712,5712]
["Nevada","Hawaii",{"$f":"VLOOKUP(B1469,'Info Sheet'!O:P,2,0)","v":"HI"},10509,10509,null,"Nevada","Hawaii",{"$f":"VLOOKUP(H1469,'Info Sheet'!O:P,2,0)","v":"HI"},4233,4233]
["Nevada","Idaho",{"$f":"VLOOKUP(B1470,'Info Sheet'!O:P,2,0)","v":"ID"},7118,7118,null,"Nevada","Idaho",{"$f":"VLOOKUP(H1470,'Info Sheet'!O:P,2,0)","v":"ID"},8226,8226]
["Nevada","Illinois",{"$f":"VLOOKUP(B1471,'Info Sheet'!O:P,2,0)","v":"IL"},6201,6201,null,"Nevada","Illinois",{"$f":"VLOOKUP(H1471,'Info Sheet'!O:P,2,0)","v":"IL"},6473,6473]
["Nevada","Indiana",{"$f":"VLOOKUP(B1472,'Info Sheet'!O:P,2,0)","v":"IN"},1956,1956,null,"Nevada","Indiana",{"$f":"VLOOKUP(H1472,'Info Sheet'!O:P,2,0)","v":"IN"},1749,1749]
["Nevada","Iowa",{"$f":"VLOOKUP(B1473,'Info Sheet'!O:P,2,0)","v":"IA"},1371,1371,null,"Nevada","Iowa",{"$f":"VLOOKUP(H1473,'Info Sheet'!O:P,2,0)","v":"IA"},3313,3313]
["Nevada","Kansas",{"$f":"VLOOKUP(B1474,'Info Sheet'!O:P,2,0)","v":"KS"},2257,2257,null,"Nevada","Kansas",{"$f":"VLOOKUP(H1474,'Info Sheet'!O:P,2,0)","v":"KS"},2826,2826]
["Nevada","Kentucky",{"$f":"VLOOKUP(B1475,'Info Sheet'!O:P,2,0)","v":"KY"},2149,2149,null,"Nevada","Kentucky",{"$f":"VLOOKUP(H1475,'Info Sheet'!O:P,2,0)","v":"KY"},1735,1735]
["Nevada","Louisiana",{"$f":"VLOOKUP(B1476,'Info Sheet'!O:P,2,0)","v":"LA"},1232,1232,null,"Nevada","Louisiana",{"$f":"VLOOKUP(H1476,'Info Sheet'!O:P,2,0)","v":"LA"},3477,3477]
["Nevada","Maine",{"$f":"VLOOKUP(B1477,'Info Sheet'!O:P,2,0)","v":"ME"},258,258,null,"Nevada","Maine",{"$f":"VLOOKUP(H1477,'Info Sheet'!O:P,2,0)","v":"ME"},530,530]
["Nevada","Maryland",{"$f":"VLOOKUP(B1478,'Info Sheet'!O:P,2,0)","v":"MD"},2350,2350,null,"Nevada","Maryland",{"$f":"VLOOKUP(H1478,'Info Sheet'!O:P,2,0)","v":"MD"},2414,2414]
["Nevada","Massachusetts",{"$f":"VLOOKUP(B1479,'Info Sheet'!O:P,2,0)","v":"MA"},1849,1849,null,"Nevada","Massachusetts",{"$f":"VLOOKUP(H1479,'Info Sheet'!O:P,2,0)","v":"MA"},1742,1742]
["Nevada","Michigan",{"$f":"VLOOKUP(B1480,'Info Sheet'!O:P,2,0)","v":"MI"},5100,5100,null,"Nevada","Michigan",{"$f":"VLOOKUP(H1480,'Info Sheet'!O:P,2,0)","v":"MI"},4443,4443]
["Nevada","Minnesota",{"$f":"VLOOKUP(B1481,'Info Sheet'!O:P,2,0)","v":"MN"},3017,3017,null,"Nevada","Minnesota",{"$f":"VLOOKUP(H1481,'Info Sheet'!O:P,2,0)","v":"MN"},4154,4154]
["Nevada","Mississippi",{"$f":"VLOOKUP(B1482,'Info Sheet'!O:P,2,0)","v":"MS"},1932,1932,null,"Nevada","Mississippi",{"$f":"VLOOKUP(H1482,'Info Sheet'!O:P,2,0)","v":"MS"},1018,1018]
["Nevada","Missouri",{"$f":"VLOOKUP(B1483,'Info Sheet'!O:P,2,0)","v":"MO"},2776,2776,null,"Nevada","Missouri",{"$f":"VLOOKUP(H1483,'Info Sheet'!O:P,2,0)","v":"MO"},3440,3440]
["Nevada","Montana",{"$f":"VLOOKUP(B1484,'Info Sheet'!O:P,2,0)","v":"MT"},2993,2993,null,"Nevada","Montana",{"$f":"VLOOKUP(H1484,'Info Sheet'!O:P,2,0)","v":"MT"},2204,2204]
["Nevada","Nebraska",{"$f":"VLOOKUP(B1485,'Info Sheet'!O:P,2,0)","v":"NE"},1875,1875,null,"Nevada","Nebraska",{"$f":"VLOOKUP(H1485,'Info Sheet'!O:P,2,0)","v":"NE"},705,705]
["Nevada","Nevada",{"$f":"VLOOKUP(B1486,'Info Sheet'!O:P,2,0)","v":"NV"},0,0,null,"Nevada","Nevada",{"$f":"VLOOKUP(H1486,'Info Sheet'!O:P,2,0)","v":"NV"},0,0]
["Nevada","New Hampshire",{"$f":"VLOOKUP(B1487,'Info Sheet'!O:P,2,0)","v":"NH"},234,234,null,"Nevada","New Hampshire",{"$f":"VLOOKUP(H1487,'Info Sheet'!O:P,2,0)","v":"NH"},281,281]
["Nevada","New Jersey",{"$f":"VLOOKUP(B1488,'Info Sheet'!O:P,2,0)","v":"NJ"},4558,4558,null,"Nevada","New Jersey",{"$f":"VLOOKUP(H1488,'Info Sheet'!O:P,2,0)","v":"NJ"},2681,2681]
["Nevada","New Mexico",{"$f":"VLOOKUP(B1489,'Info Sheet'!O:P,2,0)","v":"NM"},4494,4494,null,"Nevada","New Mexico",{"$f":"VLOOKUP(H1489,'Info Sheet'!O:P,2,0)","v":"NM"},6895,6895]
["Nevada","New York",{"$f":"VLOOKUP(B1490,'Info Sheet'!O:P,2,0)","v":"NY"},6241,6241,null,"Nevada","New York",{"$f":"VLOOKUP(H1490,'Info Sheet'!O:P,2,0)","v":"NY"},4462,4462]
["Nevada","North Carolina",{"$f":"VLOOKUP(B1491,'Info Sheet'!O:P,2,0)","v":"NC"},3057,3057,null,"Nevada","North Carolina",{"$f":"VLOOKUP(H1491,'Info Sheet'!O:P,2,0)","v":"NC"},3373,3373]
["Nevada","North Dakota",{"$f":"VLOOKUP(B1492,'Info Sheet'!O:P,2,0)","v":"ND"},739,739,null,"Nevada","North Dakota",{"$f":"VLOOKUP(H1492,'Info Sheet'!O:P,2,0)","v":"ND"},2081,2081]
["Nevada","Ohio",{"$f":"VLOOKUP(B1493,'Info Sheet'!O:P,2,0)","v":"OH"},4315,4315,null,"Nevada","Ohio",{"$f":"VLOOKUP(H1493,'Info Sheet'!O:P,2,0)","v":"OH"},4998,4998]
["Nevada","Oklahoma",{"$f":"VLOOKUP(B1494,'Info Sheet'!O:P,2,0)","v":"OK"},2664,2664,null,"Nevada","Oklahoma",{"$f":"VLOOKUP(H1494,'Info Sheet'!O:P,2,0)","v":"OK"},2885,2885]
["Nevada","Oregon",{"$f":"VLOOKUP(B1495,'Info Sheet'!O:P,2,0)","v":"OR"},7421,7421,null,"Nevada","Oregon",{"$f":"VLOOKUP(H1495,'Info Sheet'!O:P,2,0)","v":"OR"},15962,15962]
["Nevada","Pennsylvania",{"$f":"VLOOKUP(B1496,'Info Sheet'!O:P,2,0)","v":"PA"},3738,3738,null,"Nevada","Pennsylvania",{"$f":"VLOOKUP(H1496,'Info Sheet'!O:P,2,0)","v":"PA"},4467,4467]
["Nevada","Rhode Island",{"$f":"VLOOKUP(B1497,'Info Sheet'!O:P,2,0)","v":"RI"},589,589,null,"Nevada","Rhode Island",{"$f":"VLOOKUP(H1497,'Info Sheet'!O:P,2,0)","v":"RI"},322,322]
["Nevada","South Carolina",{"$f":"VLOOKUP(B1498,'Info Sheet'!O:P,2,0)","v":"SC"},957,957,null,"Nevada","South Carolina",{"$f":"VLOOKUP(H1498,'Info Sheet'!O:P,2,0)","v":"SC"},3215,3215]
["Nevada","South Dakota",{"$f":"VLOOKUP(B1499,'Info Sheet'!O:P,2,0)","v":"SD"},1791,1791,null,"Nevada","South Dakota",{"$f":"VLOOKUP(H1499,'Info Sheet'!O:P,2,0)","v":"SD"},283,283]
["Nevada","Tennessee",{"$f":"VLOOKUP(B1500,'Info Sheet'!O:P,2,0)","v":"TN"},2501,2501,null,"Nevada","Tennessee",{"$f":"VLOOKUP(H1500,'Info Sheet'!O:P,2,0)","v":"TN"},4051,4051]
["Nevada","Texas",{"$f":"VLOOKUP(B1501,'Info Sheet'!O:P,2,0)","v":"TX"},17957,17957,null,"Nevada","Texas",{"$f":"VLOOKUP(H1501,'Info Sheet'!O:P,2,0)","v":"TX"},24383,24383]
["Nevada","Utah",{"$f":"VLOOKUP(B1502,'Info Sheet'!O:P,2,0)","v":"UT"},12470,12470,null,"Nevada","Utah",{"$f":"VLOOKUP(H1502,'Info Sheet'!O:P,2,0)","v":"UT"},14255,14255]
["Nevada","Vermont",{"$f":"VLOOKUP(B1503,'Info Sheet'!O:P,2,0)","v":"VT"},318,318,null,"Nevada","Vermont",{"$f":"VLOOKUP(H1503,'Info Sheet'!O:P,2,0)","v":"VT"},90,90]
["Nevada","Virginia",{"$f":"VLOOKUP(B1504,'Info Sheet'!O:P,2,0)","v":"VA"},4707,4707,null,"Nevada","Virginia",{"$f":"VLOOKUP(H1504,'Info Sheet'!O:P,2,0)","v":"VA"},3438,3438]
["Nevada","Washington",{"$f":"VLOOKUP(B1505,'Info Sheet'!O:P,2,0)","v":"WA"},10967,10967,null,"Nevada","Washington",{"$f":"VLOOKUP(H1505,'Info Sheet'!O:P,2,0)","v":"WA"},15906,15906]
["Nevada","West Virginia",{"$f":"VLOOKUP(B1506,'Info Sheet'!O:P,2,0)","v":"WV"},156,156,null,"Nevada","West Virginia",{"$f":"VLOOKUP(H1506,'Info Sheet'!O:P,2,0)","v":"WV"},547,547]
["Nevada","Wisconsin",{"$f":"VLOOKUP(B1507,'Info Sheet'!O:P,2,0)","v":"WI"},4137,4137,null,"Nevada","Wisconsin",{"$f":"VLOOKUP(H1507,'Info Sheet'!O:P,2,0)","v":"WI"},2875,2875]
["Nevada","Wyoming",{"$f":"VLOOKUP(B1508,'Info Sheet'!O:P,2,0)","v":"WY"},1843,1843,null,"Nevada","Wyoming",{"$f":"VLOOKUP(H1508,'Info Sheet'!O:P,2,0)","v":"WY"},1198,1198]
["Nevada","Puerto Rico",{"$f":"VLOOKUP(B1509,'Info Sheet'!O:P,2,0)","v":"PR"},892,892,null,"Nevada","Puerto Rico",{"$f":"VLOOKUP(H1509,'Info Sheet'!O:P,2,0)","v":"PR"},0,0]
["New Hampshire","Alabama",{"$f":"VLOOKUP(B1510,'Info Sheet'!O:P,2,0)","v":"AL"},345,345,null,"New Hampshire","Alabama",{"$f":"VLOOKUP(H1510,'Info Sheet'!O:P,2,0)","v":"AL"},225,225]
["New Hampshire","Alaska",{"$f":"VLOOKUP(B1511,'Info Sheet'!O:P,2,0)","v":"AK"},437,437,null,"New Hampshire","Alaska",{"$f":"VLOOKUP(H1511,'Info Sheet'!O:P,2,0)","v":"AK"},954,954]
["New Hampshire","Arizona",{"$f":"VLOOKUP(B1512,'Info Sheet'!O:P,2,0)","v":"AZ"},1230,1230,null,"New Hampshire","Arizona",{"$f":"VLOOKUP(H1512,'Info Sheet'!O:P,2,0)","v":"AZ"},802,802]
["New Hampshire","Arkansas",{"$f":"VLOOKUP(B1513,'Info Sheet'!O:P,2,0)","v":"AR"},22,22,null,"New Hampshire","Arkansas",{"$f":"VLOOKUP(H1513,'Info Sheet'!O:P,2,0)","v":"AR"},52,52]
["New Hampshire","California",{"$f":"VLOOKUP(B1514,'Info Sheet'!O:P,2,0)","v":"CA"},3753,3753,null,"New Hampshire","California",{"$f":"VLOOKUP(H1514,'Info Sheet'!O:P,2,0)","v":"CA"},4163,4163]
["New Hampshire","Colorado",{"$f":"VLOOKUP(B1515,'Info Sheet'!O:P,2,0)","v":"CO"},1215,1215,null,"New Hampshire","Colorado",{"$f":"VLOOKUP(H1515,'Info Sheet'!O:P,2,0)","v":"CO"},1959,1959]
["New Hampshire","Connecticut",{"$f":"VLOOKUP(B1516,'Info Sheet'!O:P,2,0)","v":"CT"},6096,6096,null,"New Hampshire","Connecticut",{"$f":"VLOOKUP(H1516,'Info Sheet'!O:P,2,0)","v":"CT"},3279,3279]
["New Hampshire","Delaware",{"$f":"VLOOKUP(B1517,'Info Sheet'!O:P,2,0)","v":"DE"},20,20,null,"New Hampshire","Delaware",{"$f":"VLOOKUP(H1517,'Info Sheet'!O:P,2,0)","v":"DE"},238,238]
["New Hampshire","District of Columbia",{"$f":"VLOOKUP(B1518,'Info Sheet'!O:P,2,0)","v":"DC"},467,467,null,"New Hampshire","District of Columbia",{"$f":"VLOOKUP(H1518,'Info Sheet'!O:P,2,0)","v":"DC"},479,479]
["New Hampshire","Florida",{"$f":"VLOOKUP(B1519,'Info Sheet'!O:P,2,0)","v":"FL"},6375,6375,null,"New Hampshire","Florida",{"$f":"VLOOKUP(H1519,'Info Sheet'!O:P,2,0)","v":"FL"},10331,10331]
["New Hampshire","Georgia",{"$f":"VLOOKUP(B1520,'Info Sheet'!O:P,2,0)","v":"GA"},1005,1005,null,"New Hampshire","Georgia",{"$f":"VLOOKUP(H1520,'Info Sheet'!O:P,2,0)","v":"GA"},309,309]
["New Hampshire","Hawaii",{"$f":"VLOOKUP(B1521,'Info Sheet'!O:P,2,0)","v":"HI"},94,94,null,"New Hampshire","Hawaii",{"$f":"VLOOKUP(H1521,'Info Sheet'!O:P,2,0)","v":"HI"},688,688]
["New Hampshire","Idaho",{"$f":"VLOOKUP(B1522,'Info Sheet'!O:P,2,0)","v":"ID"},86,86,null,"New Hampshire","Idaho",{"$f":"VLOOKUP(H1522,'Info Sheet'!O:P,2,0)","v":"ID"},238,238]
["New Hampshire","Illinois",{"$f":"VLOOKUP(B1523,'Info Sheet'!O:P,2,0)","v":"IL"},2001,2001,null,"New Hampshire","Illinois",{"$f":"VLOOKUP(H1523,'Info Sheet'!O:P,2,0)","v":"IL"},1079,1079]
["New Hampshire","Indiana",{"$f":"VLOOKUP(B1524,'Info Sheet'!O:P,2,0)","v":"IN"},790,790,null,"New Hampshire","Indiana",{"$f":"VLOOKUP(H1524,'Info Sheet'!O:P,2,0)","v":"IN"},204,204]
["New Hampshire","Iowa",{"$f":"VLOOKUP(B1525,'Info Sheet'!O:P,2,0)","v":"IA"},209,209,null,"New Hampshire","Iowa",{"$f":"VLOOKUP(H1525,'Info Sheet'!O:P,2,0)","v":"IA"},437,437]
["New Hampshire","Kansas",{"$f":"VLOOKUP(B1526,'Info Sheet'!O:P,2,0)","v":"KS"},159,159,null,"New Hampshire","Kansas",{"$f":"VLOOKUP(H1526,'Info Sheet'!O:P,2,0)","v":"KS"},103,103]
["New Hampshire","Kentucky",{"$f":"VLOOKUP(B1527,'Info Sheet'!O:P,2,0)","v":"KY"},284,284,null,"New Hampshire","Kentucky",{"$f":"VLOOKUP(H1527,'Info Sheet'!O:P,2,0)","v":"KY"},136,136]
["New Hampshire","Louisiana",{"$f":"VLOOKUP(B1528,'Info Sheet'!O:P,2,0)","v":"LA"},26,26,null,"New Hampshire","Louisiana",{"$f":"VLOOKUP(H1528,'Info Sheet'!O:P,2,0)","v":"LA"},488,488]
["New Hampshire","Maine",{"$f":"VLOOKUP(B1529,'Info Sheet'!O:P,2,0)","v":"ME"},12440,12440,null,"New Hampshire","Maine",{"$f":"VLOOKUP(H1529,'Info Sheet'!O:P,2,0)","v":"ME"},12015,12015]
["New Hampshire","Maryland",{"$f":"VLOOKUP(B1530,'Info Sheet'!O:P,2,0)","v":"MD"},304,304,null,"New Hampshire","Maryland",{"$f":"VLOOKUP(H1530,'Info Sheet'!O:P,2,0)","v":"MD"},2725,2725]
["New Hampshire","Massachusetts",{"$f":"VLOOKUP(B1531,'Info Sheet'!O:P,2,0)","v":"MA"},48268,48268,null,"New Hampshire","Massachusetts",{"$f":"VLOOKUP(H1531,'Info Sheet'!O:P,2,0)","v":"MA"},35252,35252]
["New Hampshire","Michigan",{"$f":"VLOOKUP(B1532,'Info Sheet'!O:P,2,0)","v":"MI"},811,811,null,"New Hampshire","Michigan",{"$f":"VLOOKUP(H1532,'Info Sheet'!O:P,2,0)","v":"MI"},956,956]
["New Hampshire","Minnesota",{"$f":"VLOOKUP(B1533,'Info Sheet'!O:P,2,0)","v":"MN"},344,344,null,"New Hampshire","Minnesota",{"$f":"VLOOKUP(H1533,'Info Sheet'!O:P,2,0)","v":"MN"},204,204]
["New Hampshire","Mississippi",{"$f":"VLOOKUP(B1534,'Info Sheet'!O:P,2,0)","v":"MS"},185,185,null,"New Hampshire","Mississippi",{"$f":"VLOOKUP(H1534,'Info Sheet'!O:P,2,0)","v":"MS"},125,125]
["New Hampshire","Missouri",{"$f":"VLOOKUP(B1535,'Info Sheet'!O:P,2,0)","v":"MO"},737,737,null,"New Hampshire","Missouri",{"$f":"VLOOKUP(H1535,'Info Sheet'!O:P,2,0)","v":"MO"},912,912]
["New Hampshire","Montana",{"$f":"VLOOKUP(B1536,'Info Sheet'!O:P,2,0)","v":"MT"},716,716,null,"New Hampshire","Montana",{"$f":"VLOOKUP(H1536,'Info Sheet'!O:P,2,0)","v":"MT"},115,115]
["New Hampshire","Nebraska",{"$f":"VLOOKUP(B1537,'Info Sheet'!O:P,2,0)","v":"NE"},143,143,null,"New Hampshire","Nebraska",{"$f":"VLOOKUP(H1537,'Info Sheet'!O:P,2,0)","v":"NE"},0,0]
["New Hampshire","Nevada",{"$f":"VLOOKUP(B1538,'Info Sheet'!O:P,2,0)","v":"NV"},281,281,null,"New Hampshire","Nevada",{"$f":"VLOOKUP(H1538,'Info Sheet'!O:P,2,0)","v":"NV"},234,234]
["New Hampshire","New Hampshire",{"$f":"VLOOKUP(B1539,'Info Sheet'!O:P,2,0)","v":"NH"},0,0,null,"New Hampshire","New Hampshire",{"$f":"VLOOKUP(H1539,'Info Sheet'!O:P,2,0)","v":"NH"},0,0]
["New Hampshire","New Jersey",{"$f":"VLOOKUP(B1540,'Info Sheet'!O:P,2,0)","v":"NJ"},1425,1425,null,"New Hampshire","New Jersey",{"$f":"VLOOKUP(H1540,'Info Sheet'!O:P,2,0)","v":"NJ"},1330,1330]
["New Hampshire","New Mexico",{"$f":"VLOOKUP(B1541,'Info Sheet'!O:P,2,0)","v":"NM"},685,685,null,"New Hampshire","New Mexico",{"$f":"VLOOKUP(H1541,'Info Sheet'!O:P,2,0)","v":"NM"},461,461]
["New Hampshire","New York",{"$f":"VLOOKUP(B1542,'Info Sheet'!O:P,2,0)","v":"NY"},6838,6838,null,"New Hampshire","New York",{"$f":"VLOOKUP(H1542,'Info Sheet'!O:P,2,0)","v":"NY"},8368,8368]
["New Hampshire","North Carolina",{"$f":"VLOOKUP(B1543,'Info Sheet'!O:P,2,0)","v":"NC"},3377,3377,null,"New Hampshire","North Carolina",{"$f":"VLOOKUP(H1543,'Info Sheet'!O:P,2,0)","v":"NC"},4962,4962]
["New Hampshire","North Dakota",{"$f":"VLOOKUP(B1544,'Info Sheet'!O:P,2,0)","v":"ND"},47,47,null,"New Hampshire","North Dakota",{"$f":"VLOOKUP(H1544,'Info Sheet'!O:P,2,0)","v":"ND"},0,0]
["New Hampshire","Ohio",{"$f":"VLOOKUP(B1545,'Info Sheet'!O:P,2,0)","v":"OH"},600,600,null,"New Hampshire","Ohio",{"$f":"VLOOKUP(H1545,'Info Sheet'!O:P,2,0)","v":"OH"},2356,2356]
["New Hampshire","Oklahoma",{"$f":"VLOOKUP(B1546,'Info Sheet'!O:P,2,0)","v":"OK"},186,186,null,"New Hampshire","Oklahoma",{"$f":"VLOOKUP(H1546,'Info Sheet'!O:P,2,0)","v":"OK"},618,618]
["New Hampshire","Oregon",{"$f":"VLOOKUP(B1547,'Info Sheet'!O:P,2,0)","v":"OR"},914,914,null,"New Hampshire","Oregon",{"$f":"VLOOKUP(H1547,'Info Sheet'!O:P,2,0)","v":"OR"},783,783]
["New Hampshire","Pennsylvania",{"$f":"VLOOKUP(B1548,'Info Sheet'!O:P,2,0)","v":"PA"},2579,2579,null,"New Hampshire","Pennsylvania",{"$f":"VLOOKUP(H1548,'Info Sheet'!O:P,2,0)","v":"PA"},3193,3193]
["New Hampshire","Rhode Island",{"$f":"VLOOKUP(B1549,'Info Sheet'!O:P,2,0)","v":"RI"},2844,2844,null,"New Hampshire","Rhode Island",{"$f":"VLOOKUP(H1549,'Info Sheet'!O:P,2,0)","v":"RI"},1885,1885]
["New Hampshire","South Carolina",{"$f":"VLOOKUP(B1550,'Info Sheet'!O:P,2,0)","v":"SC"},962,962,null,"New Hampshire","South Carolina",{"$f":"VLOOKUP(H1550,'Info Sheet'!O:P,2,0)","v":"SC"},1775,1775]
["New Hampshire","South Dakota",{"$f":"VLOOKUP(B1551,'Info Sheet'!O:P,2,0)","v":"SD"},86,86,null,"New Hampshire","South Dakota",{"$f":"VLOOKUP(H1551,'Info Sheet'!O:P,2,0)","v":"SD"},0,0]
["New Hampshire","Tennessee",{"$f":"VLOOKUP(B1552,'Info Sheet'!O:P,2,0)","v":"TN"},575,575,null,"New Hampshire","Tennessee",{"$f":"VLOOKUP(H1552,'Info Sheet'!O:P,2,0)","v":"TN"},600,600]
["New Hampshire","Texas",{"$f":"VLOOKUP(B1553,'Info Sheet'!O:P,2,0)","v":"TX"},4325,4325,null,"New Hampshire","Texas",{"$f":"VLOOKUP(H1553,'Info Sheet'!O:P,2,0)","v":"TX"},2287,2287]
["New Hampshire","Utah",{"$f":"VLOOKUP(B1554,'Info Sheet'!O:P,2,0)","v":"UT"},994,994,null,"New Hampshire","Utah",{"$f":"VLOOKUP(H1554,'Info Sheet'!O:P,2,0)","v":"UT"},541,541]
["New Hampshire","Vermont",{"$f":"VLOOKUP(B1555,'Info Sheet'!O:P,2,0)","v":"VT"},7664,7664,null,"New Hampshire","Vermont",{"$f":"VLOOKUP(H1555,'Info Sheet'!O:P,2,0)","v":"VT"},7897,7897]
["New Hampshire","Virginia",{"$f":"VLOOKUP(B1556,'Info Sheet'!O:P,2,0)","v":"VA"},2285,2285,null,"New Hampshire","Virginia",{"$f":"VLOOKUP(H1556,'Info Sheet'!O:P,2,0)","v":"VA"},2251,2251]
["New Hampshire","Washington",{"$f":"VLOOKUP(B1557,'Info Sheet'!O:P,2,0)","v":"WA"},802,802,null,"New Hampshire","Washington",{"$f":"VLOOKUP(H1557,'Info Sheet'!O:P,2,0)","v":"WA"},1415,1415]
["New Hampshire","West Virginia",{"$f":"VLOOKUP(B1558,'Info Sheet'!O:P,2,0)","v":"WV"},80,80,null,"New Hampshire","West Virginia",{"$f":"VLOOKUP(H1558,'Info Sheet'!O:P,2,0)","v":"WV"},396,396]
["New Hampshire","Wisconsin",{"$f":"VLOOKUP(B1559,'Info Sheet'!O:P,2,0)","v":"WI"},507,507,null,"New Hampshire","Wisconsin",{"$f":"VLOOKUP(H1559,'Info Sheet'!O:P,2,0)","v":"WI"},552,552]
["New Hampshire","Wyoming",{"$f":"VLOOKUP(B1560,'Info Sheet'!O:P,2,0)","v":"WY"},233,233,null,"New Hampshire","Wyoming",{"$f":"VLOOKUP(H1560,'Info Sheet'!O:P,2,0)","v":"WY"},0,0]
["New Hampshire","Puerto Rico",{"$f":"VLOOKUP(B1561,'Info Sheet'!O:P,2,0)","v":"PR"},131,131,null,"New Hampshire","Puerto Rico",{"$f":"VLOOKUP(H1561,'Info Sheet'!O:P,2,0)","v":"PR"},0,0]
["New Jersey","Alabama",{"$f":"VLOOKUP(B1562,'Info Sheet'!O:P,2,0)","v":"AL"},1584,1584,null,"New Jersey","Alabama",{"$f":"VLOOKUP(H1562,'Info Sheet'!O:P,2,0)","v":"AL"},4054,4054]
["New Jersey","Alaska",{"$f":"VLOOKUP(B1563,'Info Sheet'!O:P,2,0)","v":"AK"},1940,1940,null,"New Jersey","Alaska",{"$f":"VLOOKUP(H1563,'Info Sheet'!O:P,2,0)","v":"AK"},657,657]
["New Jersey","Arizona",{"$f":"VLOOKUP(B1564,'Info Sheet'!O:P,2,0)","v":"AZ"},6737,6737,null,"New Jersey","Arizona",{"$f":"VLOOKUP(H1564,'Info Sheet'!O:P,2,0)","v":"AZ"},7725,7725]
["New Jersey","Arkansas",{"$f":"VLOOKUP(B1565,'Info Sheet'!O:P,2,0)","v":"AR"},372,372,null,"New Jersey","Arkansas",{"$f":"VLOOKUP(H1565,'Info Sheet'!O:P,2,0)","v":"AR"},575,575]
["New Jersey","California",{"$f":"VLOOKUP(B1566,'Info Sheet'!O:P,2,0)","v":"CA"},19093,19093,null,"New Jersey","California",{"$f":"VLOOKUP(H1566,'Info Sheet'!O:P,2,0)","v":"CA"},30218,30218]
["New Jersey","Colorado",{"$f":"VLOOKUP(B1567,'Info Sheet'!O:P,2,0)","v":"CO"},3390,3390,null,"New Jersey","Colorado",{"$f":"VLOOKUP(H1567,'Info Sheet'!O:P,2,0)","v":"CO"},6586,6586]
["New Jersey","Connecticut",{"$f":"VLOOKUP(B1568,'Info Sheet'!O:P,2,0)","v":"CT"},7893,7893,null,"New Jersey","Connecticut",{"$f":"VLOOKUP(H1568,'Info Sheet'!O:P,2,0)","v":"CT"},12949,12949]
["New Jersey","Delaware",{"$f":"VLOOKUP(B1569,'Info Sheet'!O:P,2,0)","v":"DE"},5564,5564,null,"New Jersey","Delaware",{"$f":"VLOOKUP(H1569,'Info Sheet'!O:P,2,0)","v":"DE"},15821,15821]
["New Jersey","District of Columbia",{"$f":"VLOOKUP(B1570,'Info Sheet'!O:P,2,0)","v":"DC"},2052,2052,null,"New Jersey","District of Columbia",{"$f":"VLOOKUP(H1570,'Info Sheet'!O:P,2,0)","v":"DC"},4410,4410]
["New Jersey","Florida",{"$f":"VLOOKUP(B1571,'Info Sheet'!O:P,2,0)","v":"FL"},33397,33397,null,"New Jersey","Florida",{"$f":"VLOOKUP(H1571,'Info Sheet'!O:P,2,0)","v":"FL"},75156,75156]
["New Jersey","Georgia",{"$f":"VLOOKUP(B1572,'Info Sheet'!O:P,2,0)","v":"GA"},11858,11858,null,"New Jersey","Georgia",{"$f":"VLOOKUP(H1572,'Info Sheet'!O:P,2,0)","v":"GA"},17442,17442]
["New Jersey","Hawaii",{"$f":"VLOOKUP(B1573,'Info Sheet'!O:P,2,0)","v":"HI"},671,671,null,"New Jersey","Hawaii",{"$f":"VLOOKUP(H1573,'Info Sheet'!O:P,2,0)","v":"HI"},1417,1417]
["New Jersey","Idaho",{"$f":"VLOOKUP(B1574,'Info Sheet'!O:P,2,0)","v":"ID"},460,460,null,"New Jersey","Idaho",{"$f":"VLOOKUP(H1574,'Info Sheet'!O:P,2,0)","v":"ID"},395,395]
["New Jersey","Illinois",{"$f":"VLOOKUP(B1575,'Info Sheet'!O:P,2,0)","v":"IL"},8398,8398,null,"New Jersey","Illinois",{"$f":"VLOOKUP(H1575,'Info Sheet'!O:P,2,0)","v":"IL"},7706,7706]
["New Jersey","Indiana",{"$f":"VLOOKUP(B1576,'Info Sheet'!O:P,2,0)","v":"IN"},2159,2159,null,"New Jersey","Indiana",{"$f":"VLOOKUP(H1576,'Info Sheet'!O:P,2,0)","v":"IN"},4064,4064]
["New Jersey","Iowa",{"$f":"VLOOKUP(B1577,'Info Sheet'!O:P,2,0)","v":"IA"},1021,1021,null,"New Jersey","Iowa",{"$f":"VLOOKUP(H1577,'Info Sheet'!O:P,2,0)","v":"IA"},1675,1675]
["New Jersey","Kansas",{"$f":"VLOOKUP(B1578,'Info Sheet'!O:P,2,0)","v":"KS"},1185,1185,null,"New Jersey","Kansas",{"$f":"VLOOKUP(H1578,'Info Sheet'!O:P,2,0)","v":"KS"},3199,3199]
["New Jersey","Kentucky",{"$f":"VLOOKUP(B1579,'Info Sheet'!O:P,2,0)","v":"KY"},824,824,null,"New Jersey","Kentucky",{"$f":"VLOOKUP(H1579,'Info Sheet'!O:P,2,0)","v":"KY"},2932,2932]
["New Jersey","Louisiana",{"$f":"VLOOKUP(B1580,'Info Sheet'!O:P,2,0)","v":"LA"},1459,1459,null,"New Jersey","Louisiana",{"$f":"VLOOKUP(H1580,'Info Sheet'!O:P,2,0)","v":"LA"},1599,1599]
["New Jersey","Maine",{"$f":"VLOOKUP(B1581,'Info Sheet'!O:P,2,0)","v":"ME"},1149,1149,null,"New Jersey","Maine",{"$f":"VLOOKUP(H1581,'Info Sheet'!O:P,2,0)","v":"ME"},2001,2001]
["New Jersey","Maryland",{"$f":"VLOOKUP(B1582,'Info Sheet'!O:P,2,0)","v":"MD"},13040,13040,null,"New Jersey","Maryland",{"$f":"VLOOKUP(H1582,'Info Sheet'!O:P,2,0)","v":"MD"},24945,24945]
["New Jersey","Massachusetts",{"$f":"VLOOKUP(B1583,'Info Sheet'!O:P,2,0)","v":"MA"},12208,12208,null,"New Jersey","Massachusetts",{"$f":"VLOOKUP(H1583,'Info Sheet'!O:P,2,0)","v":"MA"},21087,21087]
["New Jersey","Michigan",{"$f":"VLOOKUP(B1584,'Info Sheet'!O:P,2,0)","v":"MI"},3283,3283,null,"New Jersey","Michigan",{"$f":"VLOOKUP(H1584,'Info Sheet'!O:P,2,0)","v":"MI"},5142,5142]
["New Jersey","Minnesota",{"$f":"VLOOKUP(B1585,'Info Sheet'!O:P,2,0)","v":"MN"},2153,2153,null,"New Jersey","Minnesota",{"$f":"VLOOKUP(H1585,'Info Sheet'!O:P,2,0)","v":"MN"},2182,2182]
["New Jersey","Mississippi",{"$f":"VLOOKUP(B1586,'Info Sheet'!O:P,2,0)","v":"MS"},1066,1066,null,"New Jersey","Mississippi",{"$f":"VLOOKUP(H1586,'Info Sheet'!O:P,2,0)","v":"MS"},2799,2799]
["New Jersey","Missouri",{"$f":"VLOOKUP(B1587,'Info Sheet'!O:P,2,0)","v":"MO"},1694,1694,null,"New Jersey","Missouri",{"$f":"VLOOKUP(H1587,'Info Sheet'!O:P,2,0)","v":"MO"},3394,3394]
["New Jersey","Montana",{"$f":"VLOOKUP(B1588,'Info Sheet'!O:P,2,0)","v":"MT"},238,238,null,"New Jersey","Montana",{"$f":"VLOOKUP(H1588,'Info Sheet'!O:P,2,0)","v":"MT"},1045,1045]
["New Jersey","Nebraska",{"$f":"VLOOKUP(B1589,'Info Sheet'!O:P,2,0)","v":"NE"},608,608,null,"New Jersey","Nebraska",{"$f":"VLOOKUP(H1589,'Info Sheet'!O:P,2,0)","v":"NE"},786,786]
["New Jersey","Nevada",{"$f":"VLOOKUP(B1590,'Info Sheet'!O:P,2,0)","v":"NV"},2681,2681,null,"New Jersey","Nevada",{"$f":"VLOOKUP(H1590,'Info Sheet'!O:P,2,0)","v":"NV"},4558,4558]
["New Jersey","New Hampshire",{"$f":"VLOOKUP(B1591,'Info Sheet'!O:P,2,0)","v":"NH"},1330,1330,null,"New Jersey","New Hampshire",{"$f":"VLOOKUP(H1591,'Info Sheet'!O:P,2,0)","v":"NH"},1425,1425]
["New Jersey","New Jersey",{"$f":"VLOOKUP(B1592,'Info Sheet'!O:P,2,0)","v":"NJ"},0,0,null,"New Jersey","New Jersey",{"$f":"VLOOKUP(H1592,'Info Sheet'!O:P,2,0)","v":"NJ"},0,0]
["New Jersey","New Mexico",{"$f":"VLOOKUP(B1593,'Info Sheet'!O:P,2,0)","v":"NM"},821,821,null,"New Jersey","New Mexico",{"$f":"VLOOKUP(H1593,'Info Sheet'!O:P,2,0)","v":"NM"},657,657]
["New Jersey","New York",{"$f":"VLOOKUP(B1594,'Info Sheet'!O:P,2,0)","v":"NY"},122684,122684,null,"New Jersey","New York",{"$f":"VLOOKUP(H1594,'Info Sheet'!O:P,2,0)","v":"NY"},119357,119357]
["New Jersey","North Carolina",{"$f":"VLOOKUP(B1595,'Info Sheet'!O:P,2,0)","v":"NC"},8770,8770,null,"New Jersey","North Carolina",{"$f":"VLOOKUP(H1595,'Info Sheet'!O:P,2,0)","v":"NC"},29037,29037]
["New Jersey","North Dakota",{"$f":"VLOOKUP(B1596,'Info Sheet'!O:P,2,0)","v":"ND"},116,116,null,"New Jersey","North Dakota",{"$f":"VLOOKUP(H1596,'Info Sheet'!O:P,2,0)","v":"ND"},467,467]
["New Jersey","Ohio",{"$f":"VLOOKUP(B1597,'Info Sheet'!O:P,2,0)","v":"OH"},4157,4157,null,"New Jersey","Ohio",{"$f":"VLOOKUP(H1597,'Info Sheet'!O:P,2,0)","v":"OH"},11104,11104]
["New Jersey","Oklahoma",{"$f":"VLOOKUP(B1598,'Info Sheet'!O:P,2,0)","v":"OK"},2345,2345,null,"New Jersey","Oklahoma",{"$f":"VLOOKUP(H1598,'Info Sheet'!O:P,2,0)","v":"OK"},2804,2804]
["New Jersey","Oregon",{"$f":"VLOOKUP(B1599,'Info Sheet'!O:P,2,0)","v":"OR"},1733,1733,null,"New Jersey","Oregon",{"$f":"VLOOKUP(H1599,'Info Sheet'!O:P,2,0)","v":"OR"},2251,2251]
["New Jersey","Pennsylvania",{"$f":"VLOOKUP(B1600,'Info Sheet'!O:P,2,0)","v":"PA"},65555,65555,null,"New Jersey","Pennsylvania",{"$f":"VLOOKUP(H1600,'Info Sheet'!O:P,2,0)","v":"PA"},112380,112380]
["New Jersey","Rhode Island",{"$f":"VLOOKUP(B1601,'Info Sheet'!O:P,2,0)","v":"RI"},1224,1224,null,"New Jersey","Rhode Island",{"$f":"VLOOKUP(H1601,'Info Sheet'!O:P,2,0)","v":"RI"},4311,4311]
["New Jersey","South Carolina",{"$f":"VLOOKUP(B1602,'Info Sheet'!O:P,2,0)","v":"SC"},5092,5092,null,"New Jersey","South Carolina",{"$f":"VLOOKUP(H1602,'Info Sheet'!O:P,2,0)","v":"SC"},15666,15666]
["New Jersey","South Dakota",{"$f":"VLOOKUP(B1603,'Info Sheet'!O:P,2,0)","v":"SD"},581,581,null,"New Jersey","South Dakota",{"$f":"VLOOKUP(H1603,'Info Sheet'!O:P,2,0)","v":"SD"},441,441]
["New Jersey","Tennessee",{"$f":"VLOOKUP(B1604,'Info Sheet'!O:P,2,0)","v":"TN"},3664,3664,null,"New Jersey","Tennessee",{"$f":"VLOOKUP(H1604,'Info Sheet'!O:P,2,0)","v":"TN"},4409,4409]
["New Jersey","Texas",{"$f":"VLOOKUP(B1605,'Info Sheet'!O:P,2,0)","v":"TX"},9744,9744,null,"New Jersey","Texas",{"$f":"VLOOKUP(H1605,'Info Sheet'!O:P,2,0)","v":"TX"},21433,21433]
["New Jersey","Utah",{"$f":"VLOOKUP(B1606,'Info Sheet'!O:P,2,0)","v":"UT"},859,859,null,"New Jersey","Utah",{"$f":"VLOOKUP(H1606,'Info Sheet'!O:P,2,0)","v":"UT"},1190,1190]
["New Jersey","Vermont",{"$f":"VLOOKUP(B1607,'Info Sheet'!O:P,2,0)","v":"VT"},92,92,null,"New Jersey","Vermont",{"$f":"VLOOKUP(H1607,'Info Sheet'!O:P,2,0)","v":"VT"},2546,2546]
["New Jersey","Virginia",{"$f":"VLOOKUP(B1608,'Info Sheet'!O:P,2,0)","v":"VA"},12152,12152,null,"New Jersey","Virginia",{"$f":"VLOOKUP(H1608,'Info Sheet'!O:P,2,0)","v":"VA"},23225,23225]
["New Jersey","Washington",{"$f":"VLOOKUP(B1609,'Info Sheet'!O:P,2,0)","v":"WA"},5265,5265,null,"New Jersey","Washington",{"$f":"VLOOKUP(H1609,'Info Sheet'!O:P,2,0)","v":"WA"},5027,5027]
["New Jersey","West Virginia",{"$f":"VLOOKUP(B1610,'Info Sheet'!O:P,2,0)","v":"WV"},1907,1907,null,"New Jersey","West Virginia",{"$f":"VLOOKUP(H1610,'Info Sheet'!O:P,2,0)","v":"WV"},3550,3550]
["New Jersey","Wisconsin",{"$f":"VLOOKUP(B1611,'Info Sheet'!O:P,2,0)","v":"WI"},1480,1480,null,"New Jersey","Wisconsin",{"$f":"VLOOKUP(H1611,'Info Sheet'!O:P,2,0)","v":"WI"},1616,1616]
["New Jersey","Wyoming",{"$f":"VLOOKUP(B1612,'Info Sheet'!O:P,2,0)","v":"WY"},38,38,null,"New Jersey","Wyoming",{"$f":"VLOOKUP(H1612,'Info Sheet'!O:P,2,0)","v":"WY"},128,128]
["New Jersey","Puerto Rico",{"$f":"VLOOKUP(B1613,'Info Sheet'!O:P,2,0)","v":"PR"},9618,9618,null,"New Jersey","Puerto Rico",{"$f":"VLOOKUP(H1613,'Info Sheet'!O:P,2,0)","v":"PR"},5316,5316]
["New Mexico","Alabama",{"$f":"VLOOKUP(B1614,'Info Sheet'!O:P,2,0)","v":"AL"},1948,1948,null,"New Mexico","Alabama",{"$f":"VLOOKUP(H1614,'Info Sheet'!O:P,2,0)","v":"AL"},1228,1228]
["New Mexico","Alaska",{"$f":"VLOOKUP(B1615,'Info Sheet'!O:P,2,0)","v":"AK"},1705,1705,null,"New Mexico","Alaska",{"$f":"VLOOKUP(H1615,'Info Sheet'!O:P,2,0)","v":"AK"},910,910]
["New Mexico","Arizona",{"$f":"VLOOKUP(B1616,'Info Sheet'!O:P,2,0)","v":"AZ"},19952,19952,null,"New Mexico","Arizona",{"$f":"VLOOKUP(H1616,'Info Sheet'!O:P,2,0)","v":"AZ"},15975,15975]
["New Mexico","Arkansas",{"$f":"VLOOKUP(B1617,'Info Sheet'!O:P,2,0)","v":"AR"},1169,1169,null,"New Mexico","Arkansas",{"$f":"VLOOKUP(H1617,'Info Sheet'!O:P,2,0)","v":"AR"},1322,1322]
["New Mexico","California",{"$f":"VLOOKUP(B1618,'Info Sheet'!O:P,2,0)","v":"CA"},18149,18149,null,"New Mexico","California",{"$f":"VLOOKUP(H1618,'Info Sheet'!O:P,2,0)","v":"CA"},16457,16457]
["New Mexico","Colorado",{"$f":"VLOOKUP(B1619,'Info Sheet'!O:P,2,0)","v":"CO"},13157,13157,null,"New Mexico","Colorado",{"$f":"VLOOKUP(H1619,'Info Sheet'!O:P,2,0)","v":"CO"},19238,19238]
["New Mexico","Connecticut",{"$f":"VLOOKUP(B1620,'Info Sheet'!O:P,2,0)","v":"CT"},305,305,null,"New Mexico","Connecticut",{"$f":"VLOOKUP(H1620,'Info Sheet'!O:P,2,0)","v":"CT"},821,821]
["New Mexico","Delaware",{"$f":"VLOOKUP(B1621,'Info Sheet'!O:P,2,0)","v":"DE"},491,491,null,"New Mexico","Delaware",{"$f":"VLOOKUP(H1621,'Info Sheet'!O:P,2,0)","v":"DE"},144,144]
["New Mexico","District of Columbia",{"$f":"VLOOKUP(B1622,'Info Sheet'!O:P,2,0)","v":"DC"},293,293,null,"New Mexico","District of Columbia",{"$f":"VLOOKUP(H1622,'Info Sheet'!O:P,2,0)","v":"DC"},177,177]
["New Mexico","Florida",{"$f":"VLOOKUP(B1623,'Info Sheet'!O:P,2,0)","v":"FL"},10772,10772,null,"New Mexico","Florida",{"$f":"VLOOKUP(H1623,'Info Sheet'!O:P,2,0)","v":"FL"},5129,5129]
["New Mexico","Georgia",{"$f":"VLOOKUP(B1624,'Info Sheet'!O:P,2,0)","v":"GA"},2845,2845,null,"New Mexico","Georgia",{"$f":"VLOOKUP(H1624,'Info Sheet'!O:P,2,0)","v":"GA"},2532,2532]
["New Mexico","Hawaii",{"$f":"VLOOKUP(B1625,'Info Sheet'!O:P,2,0)","v":"HI"},371,371,null,"New Mexico","Hawaii",{"$f":"VLOOKUP(H1625,'Info Sheet'!O:P,2,0)","v":"HI"},649,649]
["New Mexico","Idaho",{"$f":"VLOOKUP(B1626,'Info Sheet'!O:P,2,0)","v":"ID"},1465,1465,null,"New Mexico","Idaho",{"$f":"VLOOKUP(H1626,'Info Sheet'!O:P,2,0)","v":"ID"},1510,1510]
["New Mexico","Illinois",{"$f":"VLOOKUP(B1627,'Info Sheet'!O:P,2,0)","v":"IL"},1782,1782,null,"New Mexico","Illinois",{"$f":"VLOOKUP(H1627,'Info Sheet'!O:P,2,0)","v":"IL"},3928,3928]
["New Mexico","Indiana",{"$f":"VLOOKUP(B1628,'Info Sheet'!O:P,2,0)","v":"IN"},3155,3155,null,"New Mexico","Indiana",{"$f":"VLOOKUP(H1628,'Info Sheet'!O:P,2,0)","v":"IN"},911,911]
["New Mexico","Iowa",{"$f":"VLOOKUP(B1629,'Info Sheet'!O:P,2,0)","v":"IA"},384,384,null,"New Mexico","Iowa",{"$f":"VLOOKUP(H1629,'Info Sheet'!O:P,2,0)","v":"IA"},1027,1027]
["New Mexico","Kansas",{"$f":"VLOOKUP(B1630,'Info Sheet'!O:P,2,0)","v":"KS"},2756,2756,null,"New Mexico","Kansas",{"$f":"VLOOKUP(H1630,'Info Sheet'!O:P,2,0)","v":"KS"},2671,2671]
["New Mexico","Kentucky",{"$f":"VLOOKUP(B1631,'Info Sheet'!O:P,2,0)","v":"KY"},985,985,null,"New Mexico","Kentucky",{"$f":"VLOOKUP(H1631,'Info Sheet'!O:P,2,0)","v":"KY"},1229,1229]
["New Mexico","Louisiana",{"$f":"VLOOKUP(B1632,'Info Sheet'!O:P,2,0)","v":"LA"},1039,1039,null,"New Mexico","Louisiana",{"$f":"VLOOKUP(H1632,'Info Sheet'!O:P,2,0)","v":"LA"},1472,1472]
["New Mexico","Maine",{"$f":"VLOOKUP(B1633,'Info Sheet'!O:P,2,0)","v":"ME"},661,661,null,"New Mexico","Maine",{"$f":"VLOOKUP(H1633,'Info Sheet'!O:P,2,0)","v":"ME"},650,650]
["New Mexico","Maryland",{"$f":"VLOOKUP(B1634,'Info Sheet'!O:P,2,0)","v":"MD"},4750,4750,null,"New Mexico","Maryland",{"$f":"VLOOKUP(H1634,'Info Sheet'!O:P,2,0)","v":"MD"},1673,1673]
["New Mexico","Massachusetts",{"$f":"VLOOKUP(B1635,'Info Sheet'!O:P,2,0)","v":"MA"},2631,2631,null,"New Mexico","Massachusetts",{"$f":"VLOOKUP(H1635,'Info Sheet'!O:P,2,0)","v":"MA"},881,881]
["New Mexico","Michigan",{"$f":"VLOOKUP(B1636,'Info Sheet'!O:P,2,0)","v":"MI"},2970,2970,null,"New Mexico","Michigan",{"$f":"VLOOKUP(H1636,'Info Sheet'!O:P,2,0)","v":"MI"},2495,2495]
["New Mexico","Minnesota",{"$f":"VLOOKUP(B1637,'Info Sheet'!O:P,2,0)","v":"MN"},901,901,null,"New Mexico","Minnesota",{"$f":"VLOOKUP(H1637,'Info Sheet'!O:P,2,0)","v":"MN"},1013,1013]
["New Mexico","Mississippi",{"$f":"VLOOKUP(B1638,'Info Sheet'!O:P,2,0)","v":"MS"},1726,1726,null,"New Mexico","Mississippi",{"$f":"VLOOKUP(H1638,'Info Sheet'!O:P,2,0)","v":"MS"},1794,1794]
["New Mexico","Missouri",{"$f":"VLOOKUP(B1639,'Info Sheet'!O:P,2,0)","v":"MO"},2537,2537,null,"New Mexico","Missouri",{"$f":"VLOOKUP(H1639,'Info Sheet'!O:P,2,0)","v":"MO"},1617,1617]
["New Mexico","Montana",{"$f":"VLOOKUP(B1640,'Info Sheet'!O:P,2,0)","v":"MT"},1686,1686,null,"New Mexico","Montana",{"$f":"VLOOKUP(H1640,'Info Sheet'!O:P,2,0)","v":"MT"},1183,1183]
["New Mexico","Nebraska",{"$f":"VLOOKUP(B1641,'Info Sheet'!O:P,2,0)","v":"NE"},1077,1077,null,"New Mexico","Nebraska",{"$f":"VLOOKUP(H1641,'Info Sheet'!O:P,2,0)","v":"NE"},1231,1231]
["New Mexico","Nevada",{"$f":"VLOOKUP(B1642,'Info Sheet'!O:P,2,0)","v":"NV"},6895,6895,null,"New Mexico","Nevada",{"$f":"VLOOKUP(H1642,'Info Sheet'!O:P,2,0)","v":"NV"},4494,4494]
["New Mexico","New Hampshire",{"$f":"VLOOKUP(B1643,'Info Sheet'!O:P,2,0)","v":"NH"},461,461,null,"New Mexico","New Hampshire",{"$f":"VLOOKUP(H1643,'Info Sheet'!O:P,2,0)","v":"NH"},685,685]
["New Mexico","New Jersey",{"$f":"VLOOKUP(B1644,'Info Sheet'!O:P,2,0)","v":"NJ"},657,657,null,"New Mexico","New Jersey",{"$f":"VLOOKUP(H1644,'Info Sheet'!O:P,2,0)","v":"NJ"},821,821]
["New Mexico","New Mexico",{"$f":"VLOOKUP(B1645,'Info Sheet'!O:P,2,0)","v":"NM"},0,0,null,"New Mexico","New Mexico",{"$f":"VLOOKUP(H1645,'Info Sheet'!O:P,2,0)","v":"NM"},0,0]
["New Mexico","New York",{"$f":"VLOOKUP(B1646,'Info Sheet'!O:P,2,0)","v":"NY"},3340,3340,null,"New Mexico","New York",{"$f":"VLOOKUP(H1646,'Info Sheet'!O:P,2,0)","v":"NY"},1936,1936]
["New Mexico","North Carolina",{"$f":"VLOOKUP(B1647,'Info Sheet'!O:P,2,0)","v":"NC"},2650,2650,null,"New Mexico","North Carolina",{"$f":"VLOOKUP(H1647,'Info Sheet'!O:P,2,0)","v":"NC"},4061,4061]
["New Mexico","North Dakota",{"$f":"VLOOKUP(B1648,'Info Sheet'!O:P,2,0)","v":"ND"},384,384,null,"New Mexico","North Dakota",{"$f":"VLOOKUP(H1648,'Info Sheet'!O:P,2,0)","v":"ND"},640,640]
["New Mexico","Ohio",{"$f":"VLOOKUP(B1649,'Info Sheet'!O:P,2,0)","v":"OH"},4632,4632,null,"New Mexico","Ohio",{"$f":"VLOOKUP(H1649,'Info Sheet'!O:P,2,0)","v":"OH"},2131,2131]
["New Mexico","Oklahoma",{"$f":"VLOOKUP(B1650,'Info Sheet'!O:P,2,0)","v":"OK"},2492,2492,null,"New Mexico","Oklahoma",{"$f":"VLOOKUP(H1650,'Info Sheet'!O:P,2,0)","v":"OK"},4370,4370]
["New Mexico","Oregon",{"$f":"VLOOKUP(B1651,'Info Sheet'!O:P,2,0)","v":"OR"},3507,3507,null,"New Mexico","Oregon",{"$f":"VLOOKUP(H1651,'Info Sheet'!O:P,2,0)","v":"OR"},2438,2438]
["New Mexico","Pennsylvania",{"$f":"VLOOKUP(B1652,'Info Sheet'!O:P,2,0)","v":"PA"},2123,2123,null,"New Mexico","Pennsylvania",{"$f":"VLOOKUP(H1652,'Info Sheet'!O:P,2,0)","v":"PA"},2576,2576]
["New Mexico","Rhode Island",{"$f":"VLOOKUP(B1653,'Info Sheet'!O:P,2,0)","v":"RI"},46,46,null,"New Mexico","Rhode Island",{"$f":"VLOOKUP(H1653,'Info Sheet'!O:P,2,0)","v":"RI"},129,129]
["New Mexico","South Carolina",{"$f":"VLOOKUP(B1654,'Info Sheet'!O:P,2,0)","v":"SC"},622,622,null,"New Mexico","South Carolina",{"$f":"VLOOKUP(H1654,'Info Sheet'!O:P,2,0)","v":"SC"},3040,3040]
["New Mexico","South Dakota",{"$f":"VLOOKUP(B1655,'Info Sheet'!O:P,2,0)","v":"SD"},953,953,null,"New Mexico","South Dakota",{"$f":"VLOOKUP(H1655,'Info Sheet'!O:P,2,0)","v":"SD"},726,726]
["New Mexico","Tennessee",{"$f":"VLOOKUP(B1656,'Info Sheet'!O:P,2,0)","v":"TN"},2506,2506,null,"New Mexico","Tennessee",{"$f":"VLOOKUP(H1656,'Info Sheet'!O:P,2,0)","v":"TN"},1753,1753]
["New Mexico","Texas",{"$f":"VLOOKUP(B1657,'Info Sheet'!O:P,2,0)","v":"TX"},44099,44099,null,"New Mexico","Texas",{"$f":"VLOOKUP(H1657,'Info Sheet'!O:P,2,0)","v":"TX"},43739,43739]
["New Mexico","Utah",{"$f":"VLOOKUP(B1658,'Info Sheet'!O:P,2,0)","v":"UT"},3286,3286,null,"New Mexico","Utah",{"$f":"VLOOKUP(H1658,'Info Sheet'!O:P,2,0)","v":"UT"},2911,2911]
["New Mexico","Vermont",{"$f":"VLOOKUP(B1659,'Info Sheet'!O:P,2,0)","v":"VT"},461,461,null,"New Mexico","Vermont",{"$f":"VLOOKUP(H1659,'Info Sheet'!O:P,2,0)","v":"VT"},130,130]
["New Mexico","Virginia",{"$f":"VLOOKUP(B1660,'Info Sheet'!O:P,2,0)","v":"VA"},2275,2275,null,"New Mexico","Virginia",{"$f":"VLOOKUP(H1660,'Info Sheet'!O:P,2,0)","v":"VA"},3059,3059]
["New Mexico","Washington",{"$f":"VLOOKUP(B1661,'Info Sheet'!O:P,2,0)","v":"WA"},5179,5179,null,"New Mexico","Washington",{"$f":"VLOOKUP(H1661,'Info Sheet'!O:P,2,0)","v":"WA"},3453,3453]
["New Mexico","West Virginia",{"$f":"VLOOKUP(B1662,'Info Sheet'!O:P,2,0)","v":"WV"},0,0,null,"New Mexico","West Virginia",{"$f":"VLOOKUP(H1662,'Info Sheet'!O:P,2,0)","v":"WV"},81,81]
["New Mexico","Wisconsin",{"$f":"VLOOKUP(B1663,'Info Sheet'!O:P,2,0)","v":"WI"},1068,1068,null,"New Mexico","Wisconsin",{"$f":"VLOOKUP(H1663,'Info Sheet'!O:P,2,0)","v":"WI"},1363,1363]
["New Mexico","Wyoming",{"$f":"VLOOKUP(B1664,'Info Sheet'!O:P,2,0)","v":"WY"},1130,1130,null,"New Mexico","Wyoming",{"$f":"VLOOKUP(H1664,'Info Sheet'!O:P,2,0)","v":"WY"},1387,1387]
["New Mexico","Puerto Rico",{"$f":"VLOOKUP(B1665,'Info Sheet'!O:P,2,0)","v":"PR"},1160,1160,null,"New Mexico","Puerto Rico",{"$f":"VLOOKUP(H1665,'Info Sheet'!O:P,2,0)","v":"PR"},443,443]
["New York","Alabama",{"$f":"VLOOKUP(B1666,'Info Sheet'!O:P,2,0)","v":"AL"},4486,4486,null,"New York","Alabama",{"$f":"VLOOKUP(H1666,'Info Sheet'!O:P,2,0)","v":"AL"},7503,7503]
["New York","Alaska",{"$f":"VLOOKUP(B1667,'Info Sheet'!O:P,2,0)","v":"AK"},15196,15196,null,"New York","Alaska",{"$f":"VLOOKUP(H1667,'Info Sheet'!O:P,2,0)","v":"AK"},1931,1931]
["New York","Arizona",{"$f":"VLOOKUP(B1668,'Info Sheet'!O:P,2,0)","v":"AZ"},9616,9616,null,"New York","Arizona",{"$f":"VLOOKUP(H1668,'Info Sheet'!O:P,2,0)","v":"AZ"},17900,17900]
["New York","Arkansas",{"$f":"VLOOKUP(B1669,'Info Sheet'!O:P,2,0)","v":"AR"},1650,1650,null,"New York","Arkansas",{"$f":"VLOOKUP(H1669,'Info Sheet'!O:P,2,0)","v":"AR"},3225,3225]
["New York","California",{"$f":"VLOOKUP(B1670,'Info Sheet'!O:P,2,0)","v":"CA"},75561,75561,null,"New York","California",{"$f":"VLOOKUP(H1670,'Info Sheet'!O:P,2,0)","v":"CA"},77871,77871]
["New York","Colorado",{"$f":"VLOOKUP(B1671,'Info Sheet'!O:P,2,0)","v":"CO"},10455,10455,null,"New York","Colorado",{"$f":"VLOOKUP(H1671,'Info Sheet'!O:P,2,0)","v":"CO"},15842,15842]
["New York","Connecticut",{"$f":"VLOOKUP(B1672,'Info Sheet'!O:P,2,0)","v":"CT"},45056,45056,null,"New York","Connecticut",{"$f":"VLOOKUP(H1672,'Info Sheet'!O:P,2,0)","v":"CT"},64052,64052]
["New York","Delaware",{"$f":"VLOOKUP(B1673,'Info Sheet'!O:P,2,0)","v":"DE"},4204,4204,null,"New York","Delaware",{"$f":"VLOOKUP(H1673,'Info Sheet'!O:P,2,0)","v":"DE"},10958,10958]
["New York","District of Columbia",{"$f":"VLOOKUP(B1674,'Info Sheet'!O:P,2,0)","v":"DC"},9621,9621,null,"New York","District of Columbia",{"$f":"VLOOKUP(H1674,'Info Sheet'!O:P,2,0)","v":"DC"},9250,9250]
["New York","Florida",{"$f":"VLOOKUP(B1675,'Info Sheet'!O:P,2,0)","v":"FL"},87289,87289,null,"New York","Florida",{"$f":"VLOOKUP(H1675,'Info Sheet'!O:P,2,0)","v":"FL"},167308,167308]
["New York","Georgia",{"$f":"VLOOKUP(B1676,'Info Sheet'!O:P,2,0)","v":"GA"},25852,25852,null,"New York","Georgia",{"$f":"VLOOKUP(H1676,'Info Sheet'!O:P,2,0)","v":"GA"},40883,40883]
["New York","Hawaii",{"$f":"VLOOKUP(B1677,'Info Sheet'!O:P,2,0)","v":"HI"},2859,2859,null,"New York","Hawaii",{"$f":"VLOOKUP(H1677,'Info Sheet'!O:P,2,0)","v":"HI"},7967,7967]
["New York","Idaho",{"$f":"VLOOKUP(B1678,'Info Sheet'!O:P,2,0)","v":"ID"},1239,1239,null,"New York","Idaho",{"$f":"VLOOKUP(H1678,'Info Sheet'!O:P,2,0)","v":"ID"},1512,1512]
["New York","Illinois",{"$f":"VLOOKUP(B1679,'Info Sheet'!O:P,2,0)","v":"IL"},21464,21464,null,"New York","Illinois",{"$f":"VLOOKUP(H1679,'Info Sheet'!O:P,2,0)","v":"IL"},22452,22452]
["New York","Indiana",{"$f":"VLOOKUP(B1680,'Info Sheet'!O:P,2,0)","v":"IN"},7735,7735,null,"New York","Indiana",{"$f":"VLOOKUP(H1680,'Info Sheet'!O:P,2,0)","v":"IN"},7398,7398]
["New York","Iowa",{"$f":"VLOOKUP(B1681,'Info Sheet'!O:P,2,0)","v":"IA"},2360,2360,null,"New York","Iowa",{"$f":"VLOOKUP(H1681,'Info Sheet'!O:P,2,0)","v":"IA"},3864,3864]
["New York","Kansas",{"$f":"VLOOKUP(B1682,'Info Sheet'!O:P,2,0)","v":"KS"},3464,3464,null,"New York","Kansas",{"$f":"VLOOKUP(H1682,'Info Sheet'!O:P,2,0)","v":"KS"},3741,3741]
["New York","Kentucky",{"$f":"VLOOKUP(B1683,'Info Sheet'!O:P,2,0)","v":"KY"},4971,4971,null,"New York","Kentucky",{"$f":"VLOOKUP(H1683,'Info Sheet'!O:P,2,0)","v":"KY"},9470,9470]
["New York","Louisiana",{"$f":"VLOOKUP(B1684,'Info Sheet'!O:P,2,0)","v":"LA"},3899,3899,null,"New York","Louisiana",{"$f":"VLOOKUP(H1684,'Info Sheet'!O:P,2,0)","v":"LA"},6307,6307]
["New York","Maine",{"$f":"VLOOKUP(B1685,'Info Sheet'!O:P,2,0)","v":"ME"},6530,6530,null,"New York","Maine",{"$f":"VLOOKUP(H1685,'Info Sheet'!O:P,2,0)","v":"ME"},7447,7447]
["New York","Maryland",{"$f":"VLOOKUP(B1686,'Info Sheet'!O:P,2,0)","v":"MD"},18270,18270,null,"New York","Maryland",{"$f":"VLOOKUP(H1686,'Info Sheet'!O:P,2,0)","v":"MD"},31694,31694]
["New York","Massachusetts",{"$f":"VLOOKUP(B1687,'Info Sheet'!O:P,2,0)","v":"MA"},46574,46574,null,"New York","Massachusetts",{"$f":"VLOOKUP(H1687,'Info Sheet'!O:P,2,0)","v":"MA"},58900,58900]
["New York","Michigan",{"$f":"VLOOKUP(B1688,'Info Sheet'!O:P,2,0)","v":"MI"},13906,13906,null,"New York","Michigan",{"$f":"VLOOKUP(H1688,'Info Sheet'!O:P,2,0)","v":"MI"},14953,14953]
["New York","Minnesota",{"$f":"VLOOKUP(B1689,'Info Sheet'!O:P,2,0)","v":"MN"},4532,4532,null,"New York","Minnesota",{"$f":"VLOOKUP(H1689,'Info Sheet'!O:P,2,0)","v":"MN"},5574,5574]
["New York","Mississippi",{"$f":"VLOOKUP(B1690,'Info Sheet'!O:P,2,0)","v":"MS"},2046,2046,null,"New York","Mississippi",{"$f":"VLOOKUP(H1690,'Info Sheet'!O:P,2,0)","v":"MS"},2882,2882]
["New York","Missouri",{"$f":"VLOOKUP(B1691,'Info Sheet'!O:P,2,0)","v":"MO"},6597,6597,null,"New York","Missouri",{"$f":"VLOOKUP(H1691,'Info Sheet'!O:P,2,0)","v":"MO"},8368,8368]
["New York","Montana",{"$f":"VLOOKUP(B1692,'Info Sheet'!O:P,2,0)","v":"MT"},1049,1049,null,"New York","Montana",{"$f":"VLOOKUP(H1692,'Info Sheet'!O:P,2,0)","v":"MT"},1150,1150]
["New York","Nebraska",{"$f":"VLOOKUP(B1693,'Info Sheet'!O:P,2,0)","v":"NE"},1543,1543,null,"New York","Nebraska",{"$f":"VLOOKUP(H1693,'Info Sheet'!O:P,2,0)","v":"NE"},973,973]
["New York","Nevada",{"$f":"VLOOKUP(B1694,'Info Sheet'!O:P,2,0)","v":"NV"},4462,4462,null,"New York","Nevada",{"$f":"VLOOKUP(H1694,'Info Sheet'!O:P,2,0)","v":"NV"},6241,6241]
["New York","New Hampshire",{"$f":"VLOOKUP(B1695,'Info Sheet'!O:P,2,0)","v":"NH"},8368,8368,null,"New York","New Hampshire",{"$f":"VLOOKUP(H1695,'Info Sheet'!O:P,2,0)","v":"NH"},6838,6838]
["New York","New Jersey",{"$f":"VLOOKUP(B1696,'Info Sheet'!O:P,2,0)","v":"NJ"},119357,119357,null,"New York","New Jersey",{"$f":"VLOOKUP(H1696,'Info Sheet'!O:P,2,0)","v":"NJ"},122684,122684]
["New York","New Mexico",{"$f":"VLOOKUP(B1697,'Info Sheet'!O:P,2,0)","v":"NM"},1936,1936,null,"New York","New Mexico",{"$f":"VLOOKUP(H1697,'Info Sheet'!O:P,2,0)","v":"NM"},3340,3340]
["New York","New York",{"$f":"VLOOKUP(B1698,'Info Sheet'!O:P,2,0)","v":"NY"},0,0,null,"New York","New York",{"$f":"VLOOKUP(H1698,'Info Sheet'!O:P,2,0)","v":"NY"},0,0]
["New York","North Carolina",{"$f":"VLOOKUP(B1699,'Info Sheet'!O:P,2,0)","v":"NC"},33202,33202,null,"New York","North Carolina",{"$f":"VLOOKUP(H1699,'Info Sheet'!O:P,2,0)","v":"NC"},57618,57618]
["New York","North Dakota",{"$f":"VLOOKUP(B1700,'Info Sheet'!O:P,2,0)","v":"ND"},451,451,null,"New York","North Dakota",{"$f":"VLOOKUP(H1700,'Info Sheet'!O:P,2,0)","v":"ND"},783,783]
["New York","Ohio",{"$f":"VLOOKUP(B1701,'Info Sheet'!O:P,2,0)","v":"OH"},16326,16326,null,"New York","Ohio",{"$f":"VLOOKUP(H1701,'Info Sheet'!O:P,2,0)","v":"OH"},23504,23504]
["New York","Oklahoma",{"$f":"VLOOKUP(B1702,'Info Sheet'!O:P,2,0)","v":"OK"},5050,5050,null,"New York","Oklahoma",{"$f":"VLOOKUP(H1702,'Info Sheet'!O:P,2,0)","v":"OK"},4957,4957]
["New York","Oregon",{"$f":"VLOOKUP(B1703,'Info Sheet'!O:P,2,0)","v":"OR"},5528,5528,null,"New York","Oregon",{"$f":"VLOOKUP(H1703,'Info Sheet'!O:P,2,0)","v":"OR"},6973,6973]
["New York","Pennsylvania",{"$f":"VLOOKUP(B1704,'Info Sheet'!O:P,2,0)","v":"PA"},70005,70005,null,"New York","Pennsylvania",{"$f":"VLOOKUP(H1704,'Info Sheet'!O:P,2,0)","v":"PA"},92815,92815]
["New York","Rhode Island",{"$f":"VLOOKUP(B1705,'Info Sheet'!O:P,2,0)","v":"RI"},6528,6528,null,"New York","Rhode Island",{"$f":"VLOOKUP(H1705,'Info Sheet'!O:P,2,0)","v":"RI"},10962,10962]
["New York","South Carolina",{"$f":"VLOOKUP(B1706,'Info Sheet'!O:P,2,0)","v":"SC"},20060,20060,null,"New York","South Carolina",{"$f":"VLOOKUP(H1706,'Info Sheet'!O:P,2,0)","v":"SC"},29975,29975]
["New York","South Dakota",{"$f":"VLOOKUP(B1707,'Info Sheet'!O:P,2,0)","v":"SD"},633,633,null,"New York","South Dakota",{"$f":"VLOOKUP(H1707,'Info Sheet'!O:P,2,0)","v":"SD"},1135,1135]
["New York","Tennessee",{"$f":"VLOOKUP(B1708,'Info Sheet'!O:P,2,0)","v":"TN"},5669,5669,null,"New York","Tennessee",{"$f":"VLOOKUP(H1708,'Info Sheet'!O:P,2,0)","v":"TN"},16000,16000]
["New York","Texas",{"$f":"VLOOKUP(B1709,'Info Sheet'!O:P,2,0)","v":"TX"},30074,30074,null,"New York","Texas",{"$f":"VLOOKUP(H1709,'Info Sheet'!O:P,2,0)","v":"TX"},63053,63053]
["New York","Utah",{"$f":"VLOOKUP(B1710,'Info Sheet'!O:P,2,0)","v":"UT"},2305,2305,null,"New York","Utah",{"$f":"VLOOKUP(H1710,'Info Sheet'!O:P,2,0)","v":"UT"},5528,5528]
["New York","Vermont",{"$f":"VLOOKUP(B1711,'Info Sheet'!O:P,2,0)","v":"VT"},9546,9546,null,"New York","Vermont",{"$f":"VLOOKUP(H1711,'Info Sheet'!O:P,2,0)","v":"VT"},12559,12559]
["New York","Virginia",{"$f":"VLOOKUP(B1712,'Info Sheet'!O:P,2,0)","v":"VA"},27620,27620,null,"New York","Virginia",{"$f":"VLOOKUP(H1712,'Info Sheet'!O:P,2,0)","v":"VA"},45873,45873]
["New York","Washington",{"$f":"VLOOKUP(B1713,'Info Sheet'!O:P,2,0)","v":"WA"},8103,8103,null,"New York","Washington",{"$f":"VLOOKUP(H1713,'Info Sheet'!O:P,2,0)","v":"WA"},14214,14214]
["New York","West Virginia",{"$f":"VLOOKUP(B1714,'Info Sheet'!O:P,2,0)","v":"WV"},1996,1996,null,"New York","West Virginia",{"$f":"VLOOKUP(H1714,'Info Sheet'!O:P,2,0)","v":"WV"},4349,4349]
["New York","Wisconsin",{"$f":"VLOOKUP(B1715,'Info Sheet'!O:P,2,0)","v":"WI"},5211,5211,null,"New York","Wisconsin",{"$f":"VLOOKUP(H1715,'Info Sheet'!O:P,2,0)","v":"WI"},5537,5537]
["New York","Wyoming",{"$f":"VLOOKUP(B1716,'Info Sheet'!O:P,2,0)","v":"WY"},1235,1235,null,"New York","Wyoming",{"$f":"VLOOKUP(H1716,'Info Sheet'!O:P,2,0)","v":"WY"},490,490]
["New York","Puerto Rico",{"$f":"VLOOKUP(B1717,'Info Sheet'!O:P,2,0)","v":"PR"},24643,24643,null,"New York","Puerto Rico",{"$f":"VLOOKUP(H1717,'Info Sheet'!O:P,2,0)","v":"PR"},9697,9697]
["North Carolina","Alabama",{"$f":"VLOOKUP(B1718,'Info Sheet'!O:P,2,0)","v":"AL"},12793,12793,null,"North Carolina","Alabama",{"$f":"VLOOKUP(H1718,'Info Sheet'!O:P,2,0)","v":"AL"},10201,10201]
["North Carolina","Alaska",{"$f":"VLOOKUP(B1719,'Info Sheet'!O:P,2,0)","v":"AK"},7067,7067,null,"North Carolina","Alaska",{"$f":"VLOOKUP(H1719,'Info Sheet'!O:P,2,0)","v":"AK"},2088,2088]
["North Carolina","Arizona",{"$f":"VLOOKUP(B1720,'Info Sheet'!O:P,2,0)","v":"AZ"},10626,10626,null,"North Carolina","Arizona",{"$f":"VLOOKUP(H1720,'Info Sheet'!O:P,2,0)","v":"AZ"},9732,9732]
["North Carolina","Arkansas",{"$f":"VLOOKUP(B1721,'Info Sheet'!O:P,2,0)","v":"AR"},1738,1738,null,"North Carolina","Arkansas",{"$f":"VLOOKUP(H1721,'Info Sheet'!O:P,2,0)","v":"AR"},6282,6282]
["North Carolina","California",{"$f":"VLOOKUP(B1722,'Info Sheet'!O:P,2,0)","v":"CA"},45955,45955,null,"North Carolina","California",{"$f":"VLOOKUP(H1722,'Info Sheet'!O:P,2,0)","v":"CA"},29496,29496]
["North Carolina","Colorado",{"$f":"VLOOKUP(B1723,'Info Sheet'!O:P,2,0)","v":"CO"},10551,10551,null,"North Carolina","Colorado",{"$f":"VLOOKUP(H1723,'Info Sheet'!O:P,2,0)","v":"CO"},12074,12074]
["North Carolina","Connecticut",{"$f":"VLOOKUP(B1724,'Info Sheet'!O:P,2,0)","v":"CT"},10641,10641,null,"North Carolina","Connecticut",{"$f":"VLOOKUP(H1724,'Info Sheet'!O:P,2,0)","v":"CT"},5753,5753]
["North Carolina","Delaware",{"$f":"VLOOKUP(B1725,'Info Sheet'!O:P,2,0)","v":"DE"},3613,3613,null,"North Carolina","Delaware",{"$f":"VLOOKUP(H1725,'Info Sheet'!O:P,2,0)","v":"DE"},2161,2161]
["North Carolina","District of Columbia",{"$f":"VLOOKUP(B1726,'Info Sheet'!O:P,2,0)","v":"DC"},4627,4627,null,"North Carolina","District of Columbia",{"$f":"VLOOKUP(H1726,'Info Sheet'!O:P,2,0)","v":"DC"},4598,4598]
["North Carolina","Florida",{"$f":"VLOOKUP(B1727,'Info Sheet'!O:P,2,0)","v":"FL"},83392,83392,null,"North Carolina","Florida",{"$f":"VLOOKUP(H1727,'Info Sheet'!O:P,2,0)","v":"FL"},66224,66224]
["North Carolina","Georgia",{"$f":"VLOOKUP(B1728,'Info Sheet'!O:P,2,0)","v":"GA"},48958,48958,null,"North Carolina","Georgia",{"$f":"VLOOKUP(H1728,'Info Sheet'!O:P,2,0)","v":"GA"},50508,50508]
["North Carolina","Hawaii",{"$f":"VLOOKUP(B1729,'Info Sheet'!O:P,2,0)","v":"HI"},4939,4939,null,"North Carolina","Hawaii",{"$f":"VLOOKUP(H1729,'Info Sheet'!O:P,2,0)","v":"HI"},6058,6058]
["North Carolina","Idaho",{"$f":"VLOOKUP(B1730,'Info Sheet'!O:P,2,0)","v":"ID"},1733,1733,null,"North Carolina","Idaho",{"$f":"VLOOKUP(H1730,'Info Sheet'!O:P,2,0)","v":"ID"},1214,1214]
["North Carolina","Illinois",{"$f":"VLOOKUP(B1731,'Info Sheet'!O:P,2,0)","v":"IL"},18006,18006,null,"North Carolina","Illinois",{"$f":"VLOOKUP(H1731,'Info Sheet'!O:P,2,0)","v":"IL"},13322,13322]
["North Carolina","Indiana",{"$f":"VLOOKUP(B1732,'Info Sheet'!O:P,2,0)","v":"IN"},11892,11892,null,"North Carolina","Indiana",{"$f":"VLOOKUP(H1732,'Info Sheet'!O:P,2,0)","v":"IN"},8531,8531]
["North Carolina","Iowa",{"$f":"VLOOKUP(B1733,'Info Sheet'!O:P,2,0)","v":"IA"},2506,2506,null,"North Carolina","Iowa",{"$f":"VLOOKUP(H1733,'Info Sheet'!O:P,2,0)","v":"IA"},3617,3617]
["North Carolina","Kansas",{"$f":"VLOOKUP(B1734,'Info Sheet'!O:P,2,0)","v":"KS"},8782,8782,null,"North Carolina","Kansas",{"$f":"VLOOKUP(H1734,'Info Sheet'!O:P,2,0)","v":"KS"},3119,3119]
["North Carolina","Kentucky",{"$f":"VLOOKUP(B1735,'Info Sheet'!O:P,2,0)","v":"KY"},7587,7587,null,"North Carolina","Kentucky",{"$f":"VLOOKUP(H1735,'Info Sheet'!O:P,2,0)","v":"KY"},11317,11317]
["North Carolina","Louisiana",{"$f":"VLOOKUP(B1736,'Info Sheet'!O:P,2,0)","v":"LA"},6035,6035,null,"North Carolina","Louisiana",{"$f":"VLOOKUP(H1736,'Info Sheet'!O:P,2,0)","v":"LA"},5861,5861]
["North Carolina","Maine",{"$f":"VLOOKUP(B1737,'Info Sheet'!O:P,2,0)","v":"ME"},4342,4342,null,"North Carolina","Maine",{"$f":"VLOOKUP(H1737,'Info Sheet'!O:P,2,0)","v":"ME"},3552,3552]
["North Carolina","Maryland",{"$f":"VLOOKUP(B1738,'Info Sheet'!O:P,2,0)","v":"MD"},29371,29371,null,"North Carolina","Maryland",{"$f":"VLOOKUP(H1738,'Info Sheet'!O:P,2,0)","v":"MD"},19980,19980]
["North Carolina","Massachusetts",{"$f":"VLOOKUP(B1739,'Info Sheet'!O:P,2,0)","v":"MA"},16815,16815,null,"North Carolina","Massachusetts",{"$f":"VLOOKUP(H1739,'Info Sheet'!O:P,2,0)","v":"MA"},9276,9276]
["North Carolina","Michigan",{"$f":"VLOOKUP(B1740,'Info Sheet'!O:P,2,0)","v":"MI"},19480,19480,null,"North Carolina","Michigan",{"$f":"VLOOKUP(H1740,'Info Sheet'!O:P,2,0)","v":"MI"},9761,9761]
["North Carolina","Minnesota",{"$f":"VLOOKUP(B1741,'Info Sheet'!O:P,2,0)","v":"MN"},4656,4656,null,"North Carolina","Minnesota",{"$f":"VLOOKUP(H1741,'Info Sheet'!O:P,2,0)","v":"MN"},4263,4263]
["North Carolina","Mississippi",{"$f":"VLOOKUP(B1742,'Info Sheet'!O:P,2,0)","v":"MS"},4837,4837,null,"North Carolina","Mississippi",{"$f":"VLOOKUP(H1742,'Info Sheet'!O:P,2,0)","v":"MS"},4419,4419]
["North Carolina","Missouri",{"$f":"VLOOKUP(B1743,'Info Sheet'!O:P,2,0)","v":"MO"},7193,7193,null,"North Carolina","Missouri",{"$f":"VLOOKUP(H1743,'Info Sheet'!O:P,2,0)","v":"MO"},9482,9482]
["North Carolina","Montana",{"$f":"VLOOKUP(B1744,'Info Sheet'!O:P,2,0)","v":"MT"},1037,1037,null,"North Carolina","Montana",{"$f":"VLOOKUP(H1744,'Info Sheet'!O:P,2,0)","v":"MT"},3327,3327]
["North Carolina","Nebraska",{"$f":"VLOOKUP(B1745,'Info Sheet'!O:P,2,0)","v":"NE"},2200,2200,null,"North Carolina","Nebraska",{"$f":"VLOOKUP(H1745,'Info Sheet'!O:P,2,0)","v":"NE"},2145,2145]
["North Carolina","Nevada",{"$f":"VLOOKUP(B1746,'Info Sheet'!O:P,2,0)","v":"NV"},3373,3373,null,"North Carolina","Nevada",{"$f":"VLOOKUP(H1746,'Info Sheet'!O:P,2,0)","v":"NV"},3057,3057]
["North Carolina","New Hampshire",{"$f":"VLOOKUP(B1747,'Info Sheet'!O:P,2,0)","v":"NH"},4962,4962,null,"North Carolina","New Hampshire",{"$f":"VLOOKUP(H1747,'Info Sheet'!O:P,2,0)","v":"NH"},3377,3377]
["North Carolina","New Jersey",{"$f":"VLOOKUP(B1748,'Info Sheet'!O:P,2,0)","v":"NJ"},29037,29037,null,"North Carolina","New Jersey",{"$f":"VLOOKUP(H1748,'Info Sheet'!O:P,2,0)","v":"NJ"},8770,8770]
["North Carolina","New Mexico",{"$f":"VLOOKUP(B1749,'Info Sheet'!O:P,2,0)","v":"NM"},4061,4061,null,"North Carolina","New Mexico",{"$f":"VLOOKUP(H1749,'Info Sheet'!O:P,2,0)","v":"NM"},2650,2650]
["North Carolina","New York",{"$f":"VLOOKUP(B1750,'Info Sheet'!O:P,2,0)","v":"NY"},57618,57618,null,"North Carolina","New York",{"$f":"VLOOKUP(H1750,'Info Sheet'!O:P,2,0)","v":"NY"},33202,33202]
["North Carolina","North Carolina",{"$f":"VLOOKUP(B1751,'Info Sheet'!O:P,2,0)","v":"NC"},0,0,null,"North Carolina","North Carolina",{"$f":"VLOOKUP(H1751,'Info Sheet'!O:P,2,0)","v":"NC"},0,0]
["North Carolina","North Dakota",{"$f":"VLOOKUP(B1752,'Info Sheet'!O:P,2,0)","v":"ND"},638,638,null,"North Carolina","North Dakota",{"$f":"VLOOKUP(H1752,'Info Sheet'!O:P,2,0)","v":"ND"},1768,1768]
["North Carolina","Ohio",{"$f":"VLOOKUP(B1753,'Info Sheet'!O:P,2,0)","v":"OH"},28185,28185,null,"North Carolina","Ohio",{"$f":"VLOOKUP(H1753,'Info Sheet'!O:P,2,0)","v":"OH"},16055,16055]
["North Carolina","Oklahoma",{"$f":"VLOOKUP(B1754,'Info Sheet'!O:P,2,0)","v":"OK"},4106,4106,null,"North Carolina","Oklahoma",{"$f":"VLOOKUP(H1754,'Info Sheet'!O:P,2,0)","v":"OK"},5274,5274]
["North Carolina","Oregon",{"$f":"VLOOKUP(B1755,'Info Sheet'!O:P,2,0)","v":"OR"},4304,4304,null,"North Carolina","Oregon",{"$f":"VLOOKUP(H1755,'Info Sheet'!O:P,2,0)","v":"OR"},3621,3621]
["North Carolina","Pennsylvania",{"$f":"VLOOKUP(B1756,'Info Sheet'!O:P,2,0)","v":"PA"},32784,32784,null,"North Carolina","Pennsylvania",{"$f":"VLOOKUP(H1756,'Info Sheet'!O:P,2,0)","v":"PA"},25245,25245]
["North Carolina","Rhode Island",{"$f":"VLOOKUP(B1757,'Info Sheet'!O:P,2,0)","v":"RI"},831,831,null,"North Carolina","Rhode Island",{"$f":"VLOOKUP(H1757,'Info Sheet'!O:P,2,0)","v":"RI"},2113,2113]
["North Carolina","South Carolina",{"$f":"VLOOKUP(B1758,'Info Sheet'!O:P,2,0)","v":"SC"},69155,69155,null,"North Carolina","South Carolina",{"$f":"VLOOKUP(H1758,'Info Sheet'!O:P,2,0)","v":"SC"},68615,68615]
["North Carolina","South Dakota",{"$f":"VLOOKUP(B1759,'Info Sheet'!O:P,2,0)","v":"SD"},1278,1278,null,"North Carolina","South Dakota",{"$f":"VLOOKUP(H1759,'Info Sheet'!O:P,2,0)","v":"SD"},668,668]
["North Carolina","Tennessee",{"$f":"VLOOKUP(B1760,'Info Sheet'!O:P,2,0)","v":"TN"},23972,23972,null,"North Carolina","Tennessee",{"$f":"VLOOKUP(H1760,'Info Sheet'!O:P,2,0)","v":"TN"},22359,22359]
["North Carolina","Texas",{"$f":"VLOOKUP(B1761,'Info Sheet'!O:P,2,0)","v":"TX"},33588,33588,null,"North Carolina","Texas",{"$f":"VLOOKUP(H1761,'Info Sheet'!O:P,2,0)","v":"TX"},49799,49799]
["North Carolina","Utah",{"$f":"VLOOKUP(B1762,'Info Sheet'!O:P,2,0)","v":"UT"},2940,2940,null,"North Carolina","Utah",{"$f":"VLOOKUP(H1762,'Info Sheet'!O:P,2,0)","v":"UT"},3662,3662]
["North Carolina","Vermont",{"$f":"VLOOKUP(B1763,'Info Sheet'!O:P,2,0)","v":"VT"},1007,1007,null,"North Carolina","Vermont",{"$f":"VLOOKUP(H1763,'Info Sheet'!O:P,2,0)","v":"VT"},1117,1117]
["North Carolina","Virginia",{"$f":"VLOOKUP(B1764,'Info Sheet'!O:P,2,0)","v":"VA"},79723,79723,null,"North Carolina","Virginia",{"$f":"VLOOKUP(H1764,'Info Sheet'!O:P,2,0)","v":"VA"},72157,72157]
["North Carolina","Washington",{"$f":"VLOOKUP(B1765,'Info Sheet'!O:P,2,0)","v":"WA"},12084,12084,null,"North Carolina","Washington",{"$f":"VLOOKUP(H1765,'Info Sheet'!O:P,2,0)","v":"WA"},10101,10101]
["North Carolina","West Virginia",{"$f":"VLOOKUP(B1766,'Info Sheet'!O:P,2,0)","v":"WV"},8482,8482,null,"North Carolina","West Virginia",{"$f":"VLOOKUP(H1766,'Info Sheet'!O:P,2,0)","v":"WV"},11100,11100]
["North Carolina","Wisconsin",{"$f":"VLOOKUP(B1767,'Info Sheet'!O:P,2,0)","v":"WI"},6569,6569,null,"North Carolina","Wisconsin",{"$f":"VLOOKUP(H1767,'Info Sheet'!O:P,2,0)","v":"WI"},6876,6876]
["North Carolina","Wyoming",{"$f":"VLOOKUP(B1768,'Info Sheet'!O:P,2,0)","v":"WY"},1627,1627,null,"North Carolina","Wyoming",{"$f":"VLOOKUP(H1768,'Info Sheet'!O:P,2,0)","v":"WY"},888,888]
["North Carolina","Puerto Rico",{"$f":"VLOOKUP(B1769,'Info Sheet'!O:P,2,0)","v":"PR"},4819,4819,null,"North Carolina","Puerto Rico",{"$f":"VLOOKUP(H1769,'Info Sheet'!O:P,2,0)","v":"PR"},984,984]
["North Dakota","Alabama",{"$f":"VLOOKUP(B1770,'Info Sheet'!O:P,2,0)","v":"AL"},289,289,null,"North Dakota","Alabama",{"$f":"VLOOKUP(H1770,'Info Sheet'!O:P,2,0)","v":"AL"},681,681]
["North Dakota","Alaska",{"$f":"VLOOKUP(B1771,'Info Sheet'!O:P,2,0)","v":"AK"},1529,1529,null,"North Dakota","Alaska",{"$f":"VLOOKUP(H1771,'Info Sheet'!O:P,2,0)","v":"AK"},333,333]
["North Dakota","Arizona",{"$f":"VLOOKUP(B1772,'Info Sheet'!O:P,2,0)","v":"AZ"},3546,3546,null,"North Dakota","Arizona",{"$f":"VLOOKUP(H1772,'Info Sheet'!O:P,2,0)","v":"AZ"},2862,2862]
["North Dakota","Arkansas",{"$f":"VLOOKUP(B1773,'Info Sheet'!O:P,2,0)","v":"AR"},417,417,null,"North Dakota","Arkansas",{"$f":"VLOOKUP(H1773,'Info Sheet'!O:P,2,0)","v":"AR"},214,214]
["North Dakota","California",{"$f":"VLOOKUP(B1774,'Info Sheet'!O:P,2,0)","v":"CA"},3766,3766,null,"North Dakota","California",{"$f":"VLOOKUP(H1774,'Info Sheet'!O:P,2,0)","v":"CA"},3611,3611]
["North Dakota","Colorado",{"$f":"VLOOKUP(B1775,'Info Sheet'!O:P,2,0)","v":"CO"},2648,2648,null,"North Dakota","Colorado",{"$f":"VLOOKUP(H1775,'Info Sheet'!O:P,2,0)","v":"CO"},4969,4969]
["North Dakota","Connecticut",{"$f":"VLOOKUP(B1776,'Info Sheet'!O:P,2,0)","v":"CT"},95,95,null,"North Dakota","Connecticut",{"$f":"VLOOKUP(H1776,'Info Sheet'!O:P,2,0)","v":"CT"},0,0]
["North Dakota","Delaware",{"$f":"VLOOKUP(B1777,'Info Sheet'!O:P,2,0)","v":"DE"},84,84,null,"North Dakota","Delaware",{"$f":"VLOOKUP(H1777,'Info Sheet'!O:P,2,0)","v":"DE"},0,0]
["North Dakota","District of Columbia",{"$f":"VLOOKUP(B1778,'Info Sheet'!O:P,2,0)","v":"DC"},245,245,null,"North Dakota","District of Columbia",{"$f":"VLOOKUP(H1778,'Info Sheet'!O:P,2,0)","v":"DC"},383,383]
["North Dakota","Florida",{"$f":"VLOOKUP(B1779,'Info Sheet'!O:P,2,0)","v":"FL"},1901,1901,null,"North Dakota","Florida",{"$f":"VLOOKUP(H1779,'Info Sheet'!O:P,2,0)","v":"FL"},1547,1547]
["North Dakota","Georgia",{"$f":"VLOOKUP(B1780,'Info Sheet'!O:P,2,0)","v":"GA"},1261,1261,null,"North Dakota","Georgia",{"$f":"VLOOKUP(H1780,'Info Sheet'!O:P,2,0)","v":"GA"},408,408]
["North Dakota","Hawaii",{"$f":"VLOOKUP(B1781,'Info Sheet'!O:P,2,0)","v":"HI"},351,351,null,"North Dakota","Hawaii",{"$f":"VLOOKUP(H1781,'Info Sheet'!O:P,2,0)","v":"HI"},101,101]
["North Dakota","Idaho",{"$f":"VLOOKUP(B1782,'Info Sheet'!O:P,2,0)","v":"ID"},1818,1818,null,"North Dakota","Idaho",{"$f":"VLOOKUP(H1782,'Info Sheet'!O:P,2,0)","v":"ID"},1297,1297]
["North Dakota","Illinois",{"$f":"VLOOKUP(B1783,'Info Sheet'!O:P,2,0)","v":"IL"},1409,1409,null,"North Dakota","Illinois",{"$f":"VLOOKUP(H1783,'Info Sheet'!O:P,2,0)","v":"IL"},1413,1413]
["North Dakota","Indiana",{"$f":"VLOOKUP(B1784,'Info Sheet'!O:P,2,0)","v":"IN"},230,230,null,"North Dakota","Indiana",{"$f":"VLOOKUP(H1784,'Info Sheet'!O:P,2,0)","v":"IN"},183,183]
["North Dakota","Iowa",{"$f":"VLOOKUP(B1785,'Info Sheet'!O:P,2,0)","v":"IA"},955,955,null,"North Dakota","Iowa",{"$f":"VLOOKUP(H1785,'Info Sheet'!O:P,2,0)","v":"IA"},2038,2038]
["North Dakota","Kansas",{"$f":"VLOOKUP(B1786,'Info Sheet'!O:P,2,0)","v":"KS"},350,350,null,"North Dakota","Kansas",{"$f":"VLOOKUP(H1786,'Info Sheet'!O:P,2,0)","v":"KS"},865,865]
["North Dakota","Kentucky",{"$f":"VLOOKUP(B1787,'Info Sheet'!O:P,2,0)","v":"KY"},119,119,null,"North Dakota","Kentucky",{"$f":"VLOOKUP(H1787,'Info Sheet'!O:P,2,0)","v":"KY"},239,239]
["North Dakota","Louisiana",{"$f":"VLOOKUP(B1788,'Info Sheet'!O:P,2,0)","v":"LA"},814,814,null,"North Dakota","Louisiana",{"$f":"VLOOKUP(H1788,'Info Sheet'!O:P,2,0)","v":"LA"},779,779]
["North Dakota","Maine",{"$f":"VLOOKUP(B1789,'Info Sheet'!O:P,2,0)","v":"ME"},148,148,null,"North Dakota","Maine",{"$f":"VLOOKUP(H1789,'Info Sheet'!O:P,2,0)","v":"ME"},74,74]
["North Dakota","Maryland",{"$f":"VLOOKUP(B1790,'Info Sheet'!O:P,2,0)","v":"MD"},363,363,null,"North Dakota","Maryland",{"$f":"VLOOKUP(H1790,'Info Sheet'!O:P,2,0)","v":"MD"},116,116]
["North Dakota","Massachusetts",{"$f":"VLOOKUP(B1791,'Info Sheet'!O:P,2,0)","v":"MA"},608,608,null,"North Dakota","Massachusetts",{"$f":"VLOOKUP(H1791,'Info Sheet'!O:P,2,0)","v":"MA"},142,142]
["North Dakota","Michigan",{"$f":"VLOOKUP(B1792,'Info Sheet'!O:P,2,0)","v":"MI"},1383,1383,null,"North Dakota","Michigan",{"$f":"VLOOKUP(H1792,'Info Sheet'!O:P,2,0)","v":"MI"},477,477]
["North Dakota","Minnesota",{"$f":"VLOOKUP(B1793,'Info Sheet'!O:P,2,0)","v":"MN"},39851,39851,null,"North Dakota","Minnesota",{"$f":"VLOOKUP(H1793,'Info Sheet'!O:P,2,0)","v":"MN"},21562,21562]
["North Dakota","Mississippi",{"$f":"VLOOKUP(B1794,'Info Sheet'!O:P,2,0)","v":"MS"},152,152,null,"North Dakota","Mississippi",{"$f":"VLOOKUP(H1794,'Info Sheet'!O:P,2,0)","v":"MS"},98,98]
["North Dakota","Missouri",{"$f":"VLOOKUP(B1795,'Info Sheet'!O:P,2,0)","v":"MO"},2017,2017,null,"North Dakota","Missouri",{"$f":"VLOOKUP(H1795,'Info Sheet'!O:P,2,0)","v":"MO"},2461,2461]
["North Dakota","Montana",{"$f":"VLOOKUP(B1796,'Info Sheet'!O:P,2,0)","v":"MT"},4239,4239,null,"North Dakota","Montana",{"$f":"VLOOKUP(H1796,'Info Sheet'!O:P,2,0)","v":"MT"},3014,3014]
["North Dakota","Nebraska",{"$f":"VLOOKUP(B1797,'Info Sheet'!O:P,2,0)","v":"NE"},1496,1496,null,"North Dakota","Nebraska",{"$f":"VLOOKUP(H1797,'Info Sheet'!O:P,2,0)","v":"NE"},1566,1566]
["North Dakota","Nevada",{"$f":"VLOOKUP(B1798,'Info Sheet'!O:P,2,0)","v":"NV"},2081,2081,null,"North Dakota","Nevada",{"$f":"VLOOKUP(H1798,'Info Sheet'!O:P,2,0)","v":"NV"},739,739]
["North Dakota","New Hampshire",{"$f":"VLOOKUP(B1799,'Info Sheet'!O:P,2,0)","v":"NH"},0,0,null,"North Dakota","New Hampshire",{"$f":"VLOOKUP(H1799,'Info Sheet'!O:P,2,0)","v":"NH"},47,47]
["North Dakota","New Jersey",{"$f":"VLOOKUP(B1800,'Info Sheet'!O:P,2,0)","v":"NJ"},467,467,null,"North Dakota","New Jersey",{"$f":"VLOOKUP(H1800,'Info Sheet'!O:P,2,0)","v":"NJ"},116,116]
["North Dakota","New Mexico",{"$f":"VLOOKUP(B1801,'Info Sheet'!O:P,2,0)","v":"NM"},640,640,null,"North Dakota","New Mexico",{"$f":"VLOOKUP(H1801,'Info Sheet'!O:P,2,0)","v":"NM"},384,384]
["North Dakota","New York",{"$f":"VLOOKUP(B1802,'Info Sheet'!O:P,2,0)","v":"NY"},783,783,null,"North Dakota","New York",{"$f":"VLOOKUP(H1802,'Info Sheet'!O:P,2,0)","v":"NY"},451,451]
["North Dakota","North Carolina",{"$f":"VLOOKUP(B1803,'Info Sheet'!O:P,2,0)","v":"NC"},1768,1768,null,"North Dakota","North Carolina",{"$f":"VLOOKUP(H1803,'Info Sheet'!O:P,2,0)","v":"NC"},638,638]
["North Dakota","North Dakota",{"$f":"VLOOKUP(B1804,'Info Sheet'!O:P,2,0)","v":"ND"},0,0,null,"North Dakota","North Dakota",{"$f":"VLOOKUP(H1804,'Info Sheet'!O:P,2,0)","v":"ND"},0,0]
["North Dakota","Ohio",{"$f":"VLOOKUP(B1805,'Info Sheet'!O:P,2,0)","v":"OH"},426,426,null,"North Dakota","Ohio",{"$f":"VLOOKUP(H1805,'Info Sheet'!O:P,2,0)","v":"OH"},683,683]
["North Dakota","Oklahoma",{"$f":"VLOOKUP(B1806,'Info Sheet'!O:P,2,0)","v":"OK"},447,447,null,"North Dakota","Oklahoma",{"$f":"VLOOKUP(H1806,'Info Sheet'!O:P,2,0)","v":"OK"},1375,1375]
["North Dakota","Oregon",{"$f":"VLOOKUP(B1807,'Info Sheet'!O:P,2,0)","v":"OR"},1301,1301,null,"North Dakota","Oregon",{"$f":"VLOOKUP(H1807,'Info Sheet'!O:P,2,0)","v":"OR"},947,947]
["North Dakota","Pennsylvania",{"$f":"VLOOKUP(B1808,'Info Sheet'!O:P,2,0)","v":"PA"},1158,1158,null,"North Dakota","Pennsylvania",{"$f":"VLOOKUP(H1808,'Info Sheet'!O:P,2,0)","v":"PA"},882,882]
["North Dakota","Rhode Island",{"$f":"VLOOKUP(B1809,'Info Sheet'!O:P,2,0)","v":"RI"},244,244,null,"North Dakota","Rhode Island",{"$f":"VLOOKUP(H1809,'Info Sheet'!O:P,2,0)","v":"RI"},62,62]
["North Dakota","South Carolina",{"$f":"VLOOKUP(B1810,'Info Sheet'!O:P,2,0)","v":"SC"},15,15,null,"North Dakota","South Carolina",{"$f":"VLOOKUP(H1810,'Info Sheet'!O:P,2,0)","v":"SC"},1045,1045]
["North Dakota","South Dakota",{"$f":"VLOOKUP(B1811,'Info Sheet'!O:P,2,0)","v":"SD"},4085,4085,null,"North Dakota","South Dakota",{"$f":"VLOOKUP(H1811,'Info Sheet'!O:P,2,0)","v":"SD"},5805,5805]
["North Dakota","Tennessee",{"$f":"VLOOKUP(B1812,'Info Sheet'!O:P,2,0)","v":"TN"},1132,1132,null,"North Dakota","Tennessee",{"$f":"VLOOKUP(H1812,'Info Sheet'!O:P,2,0)","v":"TN"},57,57]
["North Dakota","Texas",{"$f":"VLOOKUP(B1813,'Info Sheet'!O:P,2,0)","v":"TX"},5789,5789,null,"North Dakota","Texas",{"$f":"VLOOKUP(H1813,'Info Sheet'!O:P,2,0)","v":"TX"},4250,4250]
["North Dakota","Utah",{"$f":"VLOOKUP(B1814,'Info Sheet'!O:P,2,0)","v":"UT"},934,934,null,"North Dakota","Utah",{"$f":"VLOOKUP(H1814,'Info Sheet'!O:P,2,0)","v":"UT"},177,177]
["North Dakota","Vermont",{"$f":"VLOOKUP(B1815,'Info Sheet'!O:P,2,0)","v":"VT"},758,758,null,"North Dakota","Vermont",{"$f":"VLOOKUP(H1815,'Info Sheet'!O:P,2,0)","v":"VT"},30,30]
["North Dakota","Virginia",{"$f":"VLOOKUP(B1816,'Info Sheet'!O:P,2,0)","v":"VA"},594,594,null,"North Dakota","Virginia",{"$f":"VLOOKUP(H1816,'Info Sheet'!O:P,2,0)","v":"VA"},1515,1515]
["North Dakota","Washington",{"$f":"VLOOKUP(B1817,'Info Sheet'!O:P,2,0)","v":"WA"},2704,2704,null,"North Dakota","Washington",{"$f":"VLOOKUP(H1817,'Info Sheet'!O:P,2,0)","v":"WA"},921,921]
["North Dakota","West Virginia",{"$f":"VLOOKUP(B1818,'Info Sheet'!O:P,2,0)","v":"WV"},0,0,null,"North Dakota","West Virginia",{"$f":"VLOOKUP(H1818,'Info Sheet'!O:P,2,0)","v":"WV"},443,443]
["North Dakota","Wisconsin",{"$f":"VLOOKUP(B1819,'Info Sheet'!O:P,2,0)","v":"WI"},2690,2690,null,"North Dakota","Wisconsin",{"$f":"VLOOKUP(H1819,'Info Sheet'!O:P,2,0)","v":"WI"},2164,2164]
["North Dakota","Wyoming",{"$f":"VLOOKUP(B1820,'Info Sheet'!O:P,2,0)","v":"WY"},723,723,null,"North Dakota","Wyoming",{"$f":"VLOOKUP(H1820,'Info Sheet'!O:P,2,0)","v":"WY"},808,808]
["North Dakota","Puerto Rico",{"$f":"VLOOKUP(B1821,'Info Sheet'!O:P,2,0)","v":"PR"},76,76,null,"North Dakota","Puerto Rico",{"$f":"VLOOKUP(H1821,'Info Sheet'!O:P,2,0)","v":"PR"},0,0]
["Ohio","Alabama",{"$f":"VLOOKUP(B1822,'Info Sheet'!O:P,2,0)","v":"AL"},6561,6561,null,"Ohio","Alabama",{"$f":"VLOOKUP(H1822,'Info Sheet'!O:P,2,0)","v":"AL"},6229,6229]
["Ohio","Alaska",{"$f":"VLOOKUP(B1823,'Info Sheet'!O:P,2,0)","v":"AK"},5400,5400,null,"Ohio","Alaska",{"$f":"VLOOKUP(H1823,'Info Sheet'!O:P,2,0)","v":"AK"},1791,1791]
["Ohio","Arizona",{"$f":"VLOOKUP(B1824,'Info Sheet'!O:P,2,0)","v":"AZ"},16407,16407,null,"Ohio","Arizona",{"$f":"VLOOKUP(H1824,'Info Sheet'!O:P,2,0)","v":"AZ"},17813,17813]
["Ohio","Arkansas",{"$f":"VLOOKUP(B1825,'Info Sheet'!O:P,2,0)","v":"AR"},3270,3270,null,"Ohio","Arkansas",{"$f":"VLOOKUP(H1825,'Info Sheet'!O:P,2,0)","v":"AR"},2446,2446]
["Ohio","California",{"$f":"VLOOKUP(B1826,'Info Sheet'!O:P,2,0)","v":"CA"},27024,27024,null,"Ohio","California",{"$f":"VLOOKUP(H1826,'Info Sheet'!O:P,2,0)","v":"CA"},29297,29297]
["Ohio","Colorado",{"$f":"VLOOKUP(B1827,'Info Sheet'!O:P,2,0)","v":"CO"},8729,8729,null,"Ohio","Colorado",{"$f":"VLOOKUP(H1827,'Info Sheet'!O:P,2,0)","v":"CO"},12898,12898]
["Ohio","Connecticut",{"$f":"VLOOKUP(B1828,'Info Sheet'!O:P,2,0)","v":"CT"},3851,3851,null,"Ohio","Connecticut",{"$f":"VLOOKUP(H1828,'Info Sheet'!O:P,2,0)","v":"CT"},2966,2966]
["Ohio","Delaware",{"$f":"VLOOKUP(B1829,'Info Sheet'!O:P,2,0)","v":"DE"},1357,1357,null,"Ohio","Delaware",{"$f":"VLOOKUP(H1829,'Info Sheet'!O:P,2,0)","v":"DE"},1180,1180]
["Ohio","District of Columbia",{"$f":"VLOOKUP(B1830,'Info Sheet'!O:P,2,0)","v":"DC"},2544,2544,null,"Ohio","District of Columbia",{"$f":"VLOOKUP(H1830,'Info Sheet'!O:P,2,0)","v":"DC"},1555,1555]
["Ohio","Florida",{"$f":"VLOOKUP(B1831,'Info Sheet'!O:P,2,0)","v":"FL"},49353,49353,null,"Ohio","Florida",{"$f":"VLOOKUP(H1831,'Info Sheet'!O:P,2,0)","v":"FL"},62165,62165]
["Ohio","Georgia",{"$f":"VLOOKUP(B1832,'Info Sheet'!O:P,2,0)","v":"GA"},21844,21844,null,"Ohio","Georgia",{"$f":"VLOOKUP(H1832,'Info Sheet'!O:P,2,0)","v":"GA"},23687,23687]
["Ohio","Hawaii",{"$f":"VLOOKUP(B1833,'Info Sheet'!O:P,2,0)","v":"HI"},2678,2678,null,"Ohio","Hawaii",{"$f":"VLOOKUP(H1833,'Info Sheet'!O:P,2,0)","v":"HI"},2479,2479]
["Ohio","Idaho",{"$f":"VLOOKUP(B1834,'Info Sheet'!O:P,2,0)","v":"ID"},1288,1288,null,"Ohio","Idaho",{"$f":"VLOOKUP(H1834,'Info Sheet'!O:P,2,0)","v":"ID"},1603,1603]
["Ohio","Illinois",{"$f":"VLOOKUP(B1835,'Info Sheet'!O:P,2,0)","v":"IL"},23629,23629,null,"Ohio","Illinois",{"$f":"VLOOKUP(H1835,'Info Sheet'!O:P,2,0)","v":"IL"},20359,20359]
["Ohio","Indiana",{"$f":"VLOOKUP(B1836,'Info Sheet'!O:P,2,0)","v":"IN"},34560,34560,null,"Ohio","Indiana",{"$f":"VLOOKUP(H1836,'Info Sheet'!O:P,2,0)","v":"IN"},35616,35616]
["Ohio","Iowa",{"$f":"VLOOKUP(B1837,'Info Sheet'!O:P,2,0)","v":"IA"},3455,3455,null,"Ohio","Iowa",{"$f":"VLOOKUP(H1837,'Info Sheet'!O:P,2,0)","v":"IA"},2752,2752]
["Ohio","Kansas",{"$f":"VLOOKUP(B1838,'Info Sheet'!O:P,2,0)","v":"KS"},2839,2839,null,"Ohio","Kansas",{"$f":"VLOOKUP(H1838,'Info Sheet'!O:P,2,0)","v":"KS"},4435,4435]
["Ohio","Kentucky",{"$f":"VLOOKUP(B1839,'Info Sheet'!O:P,2,0)","v":"KY"},35130,35130,null,"Ohio","Kentucky",{"$f":"VLOOKUP(H1839,'Info Sheet'!O:P,2,0)","v":"KY"},52256,52256]
["Ohio","Louisiana",{"$f":"VLOOKUP(B1840,'Info Sheet'!O:P,2,0)","v":"LA"},4829,4829,null,"Ohio","Louisiana",{"$f":"VLOOKUP(H1840,'Info Sheet'!O:P,2,0)","v":"LA"},4856,4856]
["Ohio","Maine",{"$f":"VLOOKUP(B1841,'Info Sheet'!O:P,2,0)","v":"ME"},1480,1480,null,"Ohio","Maine",{"$f":"VLOOKUP(H1841,'Info Sheet'!O:P,2,0)","v":"ME"},1426,1426]
["Ohio","Maryland",{"$f":"VLOOKUP(B1842,'Info Sheet'!O:P,2,0)","v":"MD"},13836,13836,null,"Ohio","Maryland",{"$f":"VLOOKUP(H1842,'Info Sheet'!O:P,2,0)","v":"MD"},9195,9195]
["Ohio","Massachusetts",{"$f":"VLOOKUP(B1843,'Info Sheet'!O:P,2,0)","v":"MA"},7976,7976,null,"Ohio","Massachusetts",{"$f":"VLOOKUP(H1843,'Info Sheet'!O:P,2,0)","v":"MA"},5749,5749]
["Ohio","Michigan",{"$f":"VLOOKUP(B1844,'Info Sheet'!O:P,2,0)","v":"MI"},45796,45796,null,"Ohio","Michigan",{"$f":"VLOOKUP(H1844,'Info Sheet'!O:P,2,0)","v":"MI"},32325,32325]
["Ohio","Minnesota",{"$f":"VLOOKUP(B1845,'Info Sheet'!O:P,2,0)","v":"MN"},5208,5208,null,"Ohio","Minnesota",{"$f":"VLOOKUP(H1845,'Info Sheet'!O:P,2,0)","v":"MN"},5631,5631]
["Ohio","Mississippi",{"$f":"VLOOKUP(B1846,'Info Sheet'!O:P,2,0)","v":"MS"},1797,1797,null,"Ohio","Mississippi",{"$f":"VLOOKUP(H1846,'Info Sheet'!O:P,2,0)","v":"MS"},3199,3199]
["Ohio","Missouri",{"$f":"VLOOKUP(B1847,'Info Sheet'!O:P,2,0)","v":"MO"},6200,6200,null,"Ohio","Missouri",{"$f":"VLOOKUP(H1847,'Info Sheet'!O:P,2,0)","v":"MO"},8960,8960]
["Ohio","Montana",{"$f":"VLOOKUP(B1848,'Info Sheet'!O:P,2,0)","v":"MT"},837,837,null,"Ohio","Montana",{"$f":"VLOOKUP(H1848,'Info Sheet'!O:P,2,0)","v":"MT"},812,812]
["Ohio","Nebraska",{"$f":"VLOOKUP(B1849,'Info Sheet'!O:P,2,0)","v":"NE"},3759,3759,null,"Ohio","Nebraska",{"$f":"VLOOKUP(H1849,'Info Sheet'!O:P,2,0)","v":"NE"},2063,2063]
["Ohio","Nevada",{"$f":"VLOOKUP(B1850,'Info Sheet'!O:P,2,0)","v":"NV"},4998,4998,null,"Ohio","Nevada",{"$f":"VLOOKUP(H1850,'Info Sheet'!O:P,2,0)","v":"NV"},4315,4315]
["Ohio","New Hampshire",{"$f":"VLOOKUP(B1851,'Info Sheet'!O:P,2,0)","v":"NH"},2356,2356,null,"Ohio","New Hampshire",{"$f":"VLOOKUP(H1851,'Info Sheet'!O:P,2,0)","v":"NH"},600,600]
["Ohio","New Jersey",{"$f":"VLOOKUP(B1852,'Info Sheet'!O:P,2,0)","v":"NJ"},11104,11104,null,"Ohio","New Jersey",{"$f":"VLOOKUP(H1852,'Info Sheet'!O:P,2,0)","v":"NJ"},4157,4157]
["Ohio","New Mexico",{"$f":"VLOOKUP(B1853,'Info Sheet'!O:P,2,0)","v":"NM"},2131,2131,null,"Ohio","New Mexico",{"$f":"VLOOKUP(H1853,'Info Sheet'!O:P,2,0)","v":"NM"},4632,4632]
["Ohio","New York",{"$f":"VLOOKUP(B1854,'Info Sheet'!O:P,2,0)","v":"NY"},23504,23504,null,"Ohio","New York",{"$f":"VLOOKUP(H1854,'Info Sheet'!O:P,2,0)","v":"NY"},16326,16326]
["Ohio","North Carolina",{"$f":"VLOOKUP(B1855,'Info Sheet'!O:P,2,0)","v":"NC"},16055,16055,null,"Ohio","North Carolina",{"$f":"VLOOKUP(H1855,'Info Sheet'!O:P,2,0)","v":"NC"},28185,28185]
["Ohio","North Dakota",{"$f":"VLOOKUP(B1856,'Info Sheet'!O:P,2,0)","v":"ND"},683,683,null,"Ohio","North Dakota",{"$f":"VLOOKUP(H1856,'Info Sheet'!O:P,2,0)","v":"ND"},426,426]
["Ohio","Ohio",{"$f":"VLOOKUP(B1857,'Info Sheet'!O:P,2,0)","v":"OH"},0,0,null,"Ohio","Ohio",{"$f":"VLOOKUP(H1857,'Info Sheet'!O:P,2,0)","v":"OH"},0,0]
["Ohio","Oklahoma",{"$f":"VLOOKUP(B1858,'Info Sheet'!O:P,2,0)","v":"OK"},4419,4419,null,"Ohio","Oklahoma",{"$f":"VLOOKUP(H1858,'Info Sheet'!O:P,2,0)","v":"OK"},4141,4141]
["Ohio","Oregon",{"$f":"VLOOKUP(B1859,'Info Sheet'!O:P,2,0)","v":"OR"},2100,2100,null,"Ohio","Oregon",{"$f":"VLOOKUP(H1859,'Info Sheet'!O:P,2,0)","v":"OR"},3901,3901]
["Ohio","Pennsylvania",{"$f":"VLOOKUP(B1860,'Info Sheet'!O:P,2,0)","v":"PA"},40451,40451,null,"Ohio","Pennsylvania",{"$f":"VLOOKUP(H1860,'Info Sheet'!O:P,2,0)","v":"PA"},41939,41939]
["Ohio","Rhode Island",{"$f":"VLOOKUP(B1861,'Info Sheet'!O:P,2,0)","v":"RI"},1248,1248,null,"Ohio","Rhode Island",{"$f":"VLOOKUP(H1861,'Info Sheet'!O:P,2,0)","v":"RI"},123,123]
["Ohio","South Carolina",{"$f":"VLOOKUP(B1862,'Info Sheet'!O:P,2,0)","v":"SC"},8750,8750,null,"Ohio","South Carolina",{"$f":"VLOOKUP(H1862,'Info Sheet'!O:P,2,0)","v":"SC"},14598,14598]
["Ohio","South Dakota",{"$f":"VLOOKUP(B1863,'Info Sheet'!O:P,2,0)","v":"SD"},288,288,null,"Ohio","South Dakota",{"$f":"VLOOKUP(H1863,'Info Sheet'!O:P,2,0)","v":"SD"},308,308]
["Ohio","Tennessee",{"$f":"VLOOKUP(B1864,'Info Sheet'!O:P,2,0)","v":"TN"},14997,14997,null,"Ohio","Tennessee",{"$f":"VLOOKUP(H1864,'Info Sheet'!O:P,2,0)","v":"TN"},16606,16606]
["Ohio","Texas",{"$f":"VLOOKUP(B1865,'Info Sheet'!O:P,2,0)","v":"TX"},31212,31212,null,"Ohio","Texas",{"$f":"VLOOKUP(H1865,'Info Sheet'!O:P,2,0)","v":"TX"},29360,29360]
["Ohio","Utah",{"$f":"VLOOKUP(B1866,'Info Sheet'!O:P,2,0)","v":"UT"},1373,1373,null,"Ohio","Utah",{"$f":"VLOOKUP(H1866,'Info Sheet'!O:P,2,0)","v":"UT"},5986,5986]
["Ohio","Vermont",{"$f":"VLOOKUP(B1867,'Info Sheet'!O:P,2,0)","v":"VT"},614,614,null,"Ohio","Vermont",{"$f":"VLOOKUP(H1867,'Info Sheet'!O:P,2,0)","v":"VT"},647,647]
["Ohio","Virginia",{"$f":"VLOOKUP(B1868,'Info Sheet'!O:P,2,0)","v":"VA"},15387,15387,null,"Ohio","Virginia",{"$f":"VLOOKUP(H1868,'Info Sheet'!O:P,2,0)","v":"VA"},22900,22900]
["Ohio","Washington",{"$f":"VLOOKUP(B1869,'Info Sheet'!O:P,2,0)","v":"WA"},7408,7408,null,"Ohio","Washington",{"$f":"VLOOKUP(H1869,'Info Sheet'!O:P,2,0)","v":"WA"},8605,8605]
["Ohio","West Virginia",{"$f":"VLOOKUP(B1870,'Info Sheet'!O:P,2,0)","v":"WV"},23182,23182,null,"Ohio","West Virginia",{"$f":"VLOOKUP(H1870,'Info Sheet'!O:P,2,0)","v":"WV"},23227,23227]
["Ohio","Wisconsin",{"$f":"VLOOKUP(B1871,'Info Sheet'!O:P,2,0)","v":"WI"},5279,5279,null,"Ohio","Wisconsin",{"$f":"VLOOKUP(H1871,'Info Sheet'!O:P,2,0)","v":"WI"},5642,5642]
["Ohio","Wyoming",{"$f":"VLOOKUP(B1872,'Info Sheet'!O:P,2,0)","v":"WY"},1626,1626,null,"Ohio","Wyoming",{"$f":"VLOOKUP(H1872,'Info Sheet'!O:P,2,0)","v":"WY"},897,897]
["Ohio","Puerto Rico",{"$f":"VLOOKUP(B1873,'Info Sheet'!O:P,2,0)","v":"PR"},5150,5150,null,"Ohio","Puerto Rico",{"$f":"VLOOKUP(H1873,'Info Sheet'!O:P,2,0)","v":"PR"},397,397]
["Oklahoma","Alabama",{"$f":"VLOOKUP(B1874,'Info Sheet'!O:P,2,0)","v":"AL"},3233,3233,null,"Oklahoma","Alabama",{"$f":"VLOOKUP(H1874,'Info Sheet'!O:P,2,0)","v":"AL"},2047,2047]
["Oklahoma","Alaska",{"$f":"VLOOKUP(B1875,'Info Sheet'!O:P,2,0)","v":"AK"},3813,3813,null,"Oklahoma","Alaska",{"$f":"VLOOKUP(H1875,'Info Sheet'!O:P,2,0)","v":"AK"},2406,2406]
["Oklahoma","Arizona",{"$f":"VLOOKUP(B1876,'Info Sheet'!O:P,2,0)","v":"AZ"},9503,9503,null,"Oklahoma","Arizona",{"$f":"VLOOKUP(H1876,'Info Sheet'!O:P,2,0)","v":"AZ"},7755,7755]
["Oklahoma","Arkansas",{"$f":"VLOOKUP(B1877,'Info Sheet'!O:P,2,0)","v":"AR"},18544,18544,null,"Oklahoma","Arkansas",{"$f":"VLOOKUP(H1877,'Info Sheet'!O:P,2,0)","v":"AR"},22306,22306]
["Oklahoma","California",{"$f":"VLOOKUP(B1878,'Info Sheet'!O:P,2,0)","v":"CA"},26612,26612,null,"Oklahoma","California",{"$f":"VLOOKUP(H1878,'Info Sheet'!O:P,2,0)","v":"CA"},17492,17492]
["Oklahoma","Colorado",{"$f":"VLOOKUP(B1879,'Info Sheet'!O:P,2,0)","v":"CO"},11174,11174,null,"Oklahoma","Colorado",{"$f":"VLOOKUP(H1879,'Info Sheet'!O:P,2,0)","v":"CO"},11870,11870]
["Oklahoma","Connecticut",{"$f":"VLOOKUP(B1880,'Info Sheet'!O:P,2,0)","v":"CT"},165,165,null,"Oklahoma","Connecticut",{"$f":"VLOOKUP(H1880,'Info Sheet'!O:P,2,0)","v":"CT"},777,777]
["Oklahoma","Delaware",{"$f":"VLOOKUP(B1881,'Info Sheet'!O:P,2,0)","v":"DE"},555,555,null,"Oklahoma","Delaware",{"$f":"VLOOKUP(H1881,'Info Sheet'!O:P,2,0)","v":"DE"},27,27]
["Oklahoma","District of Columbia",{"$f":"VLOOKUP(B1882,'Info Sheet'!O:P,2,0)","v":"DC"},342,342,null,"Oklahoma","District of Columbia",{"$f":"VLOOKUP(H1882,'Info Sheet'!O:P,2,0)","v":"DC"},0,0]
["Oklahoma","Florida",{"$f":"VLOOKUP(B1883,'Info Sheet'!O:P,2,0)","v":"FL"},16505,16505,null,"Oklahoma","Florida",{"$f":"VLOOKUP(H1883,'Info Sheet'!O:P,2,0)","v":"FL"},9208,9208]
["Oklahoma","Georgia",{"$f":"VLOOKUP(B1884,'Info Sheet'!O:P,2,0)","v":"GA"},9254,9254,null,"Oklahoma","Georgia",{"$f":"VLOOKUP(H1884,'Info Sheet'!O:P,2,0)","v":"GA"},7001,7001]
["Oklahoma","Hawaii",{"$f":"VLOOKUP(B1885,'Info Sheet'!O:P,2,0)","v":"HI"},1102,1102,null,"Oklahoma","Hawaii",{"$f":"VLOOKUP(H1885,'Info Sheet'!O:P,2,0)","v":"HI"},1837,1837]
["Oklahoma","Idaho",{"$f":"VLOOKUP(B1886,'Info Sheet'!O:P,2,0)","v":"ID"},1537,1537,null,"Oklahoma","Idaho",{"$f":"VLOOKUP(H1886,'Info Sheet'!O:P,2,0)","v":"ID"},1092,1092]
["Oklahoma","Illinois",{"$f":"VLOOKUP(B1887,'Info Sheet'!O:P,2,0)","v":"IL"},5958,5958,null,"Oklahoma","Illinois",{"$f":"VLOOKUP(H1887,'Info Sheet'!O:P,2,0)","v":"IL"},3952,3952]
["Oklahoma","Indiana",{"$f":"VLOOKUP(B1888,'Info Sheet'!O:P,2,0)","v":"IN"},4560,4560,null,"Oklahoma","Indiana",{"$f":"VLOOKUP(H1888,'Info Sheet'!O:P,2,0)","v":"IN"},2723,2723]
["Oklahoma","Iowa",{"$f":"VLOOKUP(B1889,'Info Sheet'!O:P,2,0)","v":"IA"},2776,2776,null,"Oklahoma","Iowa",{"$f":"VLOOKUP(H1889,'Info Sheet'!O:P,2,0)","v":"IA"},2676,2676]
["Oklahoma","Kansas",{"$f":"VLOOKUP(B1890,'Info Sheet'!O:P,2,0)","v":"KS"},16715,16715,null,"Oklahoma","Kansas",{"$f":"VLOOKUP(H1890,'Info Sheet'!O:P,2,0)","v":"KS"},20998,20998]
["Oklahoma","Kentucky",{"$f":"VLOOKUP(B1891,'Info Sheet'!O:P,2,0)","v":"KY"},3629,3629,null,"Oklahoma","Kentucky",{"$f":"VLOOKUP(H1891,'Info Sheet'!O:P,2,0)","v":"KY"},2986,2986]
["Oklahoma","Louisiana",{"$f":"VLOOKUP(B1892,'Info Sheet'!O:P,2,0)","v":"LA"},6704,6704,null,"Oklahoma","Louisiana",{"$f":"VLOOKUP(H1892,'Info Sheet'!O:P,2,0)","v":"LA"},7468,7468]
["Oklahoma","Maine",{"$f":"VLOOKUP(B1893,'Info Sheet'!O:P,2,0)","v":"ME"},736,736,null,"Oklahoma","Maine",{"$f":"VLOOKUP(H1893,'Info Sheet'!O:P,2,0)","v":"ME"},228,228]
["Oklahoma","Maryland",{"$f":"VLOOKUP(B1894,'Info Sheet'!O:P,2,0)","v":"MD"},1564,1564,null,"Oklahoma","Maryland",{"$f":"VLOOKUP(H1894,'Info Sheet'!O:P,2,0)","v":"MD"},1915,1915]
["Oklahoma","Massachusetts",{"$f":"VLOOKUP(B1895,'Info Sheet'!O:P,2,0)","v":"MA"},1858,1858,null,"Oklahoma","Massachusetts",{"$f":"VLOOKUP(H1895,'Info Sheet'!O:P,2,0)","v":"MA"},545,545]
["Oklahoma","Michigan",{"$f":"VLOOKUP(B1896,'Info Sheet'!O:P,2,0)","v":"MI"},3432,3432,null,"Oklahoma","Michigan",{"$f":"VLOOKUP(H1896,'Info Sheet'!O:P,2,0)","v":"MI"},3898,3898]
["Oklahoma","Minnesota",{"$f":"VLOOKUP(B1897,'Info Sheet'!O:P,2,0)","v":"MN"},2002,2002,null,"Oklahoma","Minnesota",{"$f":"VLOOKUP(H1897,'Info Sheet'!O:P,2,0)","v":"MN"},2042,2042]
["Oklahoma","Mississippi",{"$f":"VLOOKUP(B1898,'Info Sheet'!O:P,2,0)","v":"MS"},3782,3782,null,"Oklahoma","Mississippi",{"$f":"VLOOKUP(H1898,'Info Sheet'!O:P,2,0)","v":"MS"},1791,1791]
["Oklahoma","Missouri",{"$f":"VLOOKUP(B1899,'Info Sheet'!O:P,2,0)","v":"MO"},15093,15093,null,"Oklahoma","Missouri",{"$f":"VLOOKUP(H1899,'Info Sheet'!O:P,2,0)","v":"MO"},16018,16018]
["Oklahoma","Montana",{"$f":"VLOOKUP(B1900,'Info Sheet'!O:P,2,0)","v":"MT"},2049,2049,null,"Oklahoma","Montana",{"$f":"VLOOKUP(H1900,'Info Sheet'!O:P,2,0)","v":"MT"},1296,1296]
["Oklahoma","Nebraska",{"$f":"VLOOKUP(B1901,'Info Sheet'!O:P,2,0)","v":"NE"},3108,3108,null,"Oklahoma","Nebraska",{"$f":"VLOOKUP(H1901,'Info Sheet'!O:P,2,0)","v":"NE"},2544,2544]
["Oklahoma","Nevada",{"$f":"VLOOKUP(B1902,'Info Sheet'!O:P,2,0)","v":"NV"},2885,2885,null,"Oklahoma","Nevada",{"$f":"VLOOKUP(H1902,'Info Sheet'!O:P,2,0)","v":"NV"},2664,2664]
["Oklahoma","New Hampshire",{"$f":"VLOOKUP(B1903,'Info Sheet'!O:P,2,0)","v":"NH"},618,618,null,"Oklahoma","New Hampshire",{"$f":"VLOOKUP(H1903,'Info Sheet'!O:P,2,0)","v":"NH"},186,186]
["Oklahoma","New Jersey",{"$f":"VLOOKUP(B1904,'Info Sheet'!O:P,2,0)","v":"NJ"},2804,2804,null,"Oklahoma","New Jersey",{"$f":"VLOOKUP(H1904,'Info Sheet'!O:P,2,0)","v":"NJ"},2345,2345]
["Oklahoma","New Mexico",{"$f":"VLOOKUP(B1905,'Info Sheet'!O:P,2,0)","v":"NM"},4370,4370,null,"Oklahoma","New Mexico",{"$f":"VLOOKUP(H1905,'Info Sheet'!O:P,2,0)","v":"NM"},2492,2492]
["Oklahoma","New York",{"$f":"VLOOKUP(B1906,'Info Sheet'!O:P,2,0)","v":"NY"},4957,4957,null,"Oklahoma","New York",{"$f":"VLOOKUP(H1906,'Info Sheet'!O:P,2,0)","v":"NY"},5050,5050]
["Oklahoma","North Carolina",{"$f":"VLOOKUP(B1907,'Info Sheet'!O:P,2,0)","v":"NC"},5274,5274,null,"Oklahoma","North Carolina",{"$f":"VLOOKUP(H1907,'Info Sheet'!O:P,2,0)","v":"NC"},4106,4106]
["Oklahoma","North Dakota",{"$f":"VLOOKUP(B1908,'Info Sheet'!O:P,2,0)","v":"ND"},1375,1375,null,"Oklahoma","North Dakota",{"$f":"VLOOKUP(H1908,'Info Sheet'!O:P,2,0)","v":"ND"},447,447]
["Oklahoma","Ohio",{"$f":"VLOOKUP(B1909,'Info Sheet'!O:P,2,0)","v":"OH"},4141,4141,null,"Oklahoma","Ohio",{"$f":"VLOOKUP(H1909,'Info Sheet'!O:P,2,0)","v":"OH"},4419,4419]
["Oklahoma","Oklahoma",{"$f":"VLOOKUP(B1910,'Info Sheet'!O:P,2,0)","v":"OK"},0,0,null,"Oklahoma","Oklahoma",{"$f":"VLOOKUP(H1910,'Info Sheet'!O:P,2,0)","v":"OK"},0,0]
["Oklahoma","Oregon",{"$f":"VLOOKUP(B1911,'Info Sheet'!O:P,2,0)","v":"OR"},2576,2576,null,"Oklahoma","Oregon",{"$f":"VLOOKUP(H1911,'Info Sheet'!O:P,2,0)","v":"OR"},3580,3580]
["Oklahoma","Pennsylvania",{"$f":"VLOOKUP(B1912,'Info Sheet'!O:P,2,0)","v":"PA"},2926,2926,null,"Oklahoma","Pennsylvania",{"$f":"VLOOKUP(H1912,'Info Sheet'!O:P,2,0)","v":"PA"},1915,1915]
["Oklahoma","Rhode Island",{"$f":"VLOOKUP(B1913,'Info Sheet'!O:P,2,0)","v":"RI"},271,271,null,"Oklahoma","Rhode Island",{"$f":"VLOOKUP(H1913,'Info Sheet'!O:P,2,0)","v":"RI"},199,199]
["Oklahoma","South Carolina",{"$f":"VLOOKUP(B1914,'Info Sheet'!O:P,2,0)","v":"SC"},3180,3180,null,"Oklahoma","South Carolina",{"$f":"VLOOKUP(H1914,'Info Sheet'!O:P,2,0)","v":"SC"},3021,3021]
["Oklahoma","South Dakota",{"$f":"VLOOKUP(B1915,'Info Sheet'!O:P,2,0)","v":"SD"},791,791,null,"Oklahoma","South Dakota",{"$f":"VLOOKUP(H1915,'Info Sheet'!O:P,2,0)","v":"SD"},357,357]
["Oklahoma","Tennessee",{"$f":"VLOOKUP(B1916,'Info Sheet'!O:P,2,0)","v":"TN"},6043,6043,null,"Oklahoma","Tennessee",{"$f":"VLOOKUP(H1916,'Info Sheet'!O:P,2,0)","v":"TN"},6330,6330]
["Oklahoma","Texas",{"$f":"VLOOKUP(B1917,'Info Sheet'!O:P,2,0)","v":"TX"},85341,85341,null,"Oklahoma","Texas",{"$f":"VLOOKUP(H1917,'Info Sheet'!O:P,2,0)","v":"TX"},68555,68555]
["Oklahoma","Utah",{"$f":"VLOOKUP(B1918,'Info Sheet'!O:P,2,0)","v":"UT"},3603,3603,null,"Oklahoma","Utah",{"$f":"VLOOKUP(H1918,'Info Sheet'!O:P,2,0)","v":"UT"},2374,2374]
["Oklahoma","Vermont",{"$f":"VLOOKUP(B1919,'Info Sheet'!O:P,2,0)","v":"VT"},290,290,null,"Oklahoma","Vermont",{"$f":"VLOOKUP(H1919,'Info Sheet'!O:P,2,0)","v":"VT"},11,11]
["Oklahoma","Virginia",{"$f":"VLOOKUP(B1920,'Info Sheet'!O:P,2,0)","v":"VA"},5048,5048,null,"Oklahoma","Virginia",{"$f":"VLOOKUP(H1920,'Info Sheet'!O:P,2,0)","v":"VA"},4444,4444]
["Oklahoma","Washington",{"$f":"VLOOKUP(B1921,'Info Sheet'!O:P,2,0)","v":"WA"},4855,4855,null,"Oklahoma","Washington",{"$f":"VLOOKUP(H1921,'Info Sheet'!O:P,2,0)","v":"WA"},3974,3974]
["Oklahoma","West Virginia",{"$f":"VLOOKUP(B1922,'Info Sheet'!O:P,2,0)","v":"WV"},633,633,null,"Oklahoma","West Virginia",{"$f":"VLOOKUP(H1922,'Info Sheet'!O:P,2,0)","v":"WV"},846,846]
["Oklahoma","Wisconsin",{"$f":"VLOOKUP(B1923,'Info Sheet'!O:P,2,0)","v":"WI"},2554,2554,null,"Oklahoma","Wisconsin",{"$f":"VLOOKUP(H1923,'Info Sheet'!O:P,2,0)","v":"WI"},496,496]
["Oklahoma","Wyoming",{"$f":"VLOOKUP(B1924,'Info Sheet'!O:P,2,0)","v":"WY"},3521,3521,null,"Oklahoma","Wyoming",{"$f":"VLOOKUP(H1924,'Info Sheet'!O:P,2,0)","v":"WY"},1488,1488]
["Oklahoma","Puerto Rico",{"$f":"VLOOKUP(B1925,'Info Sheet'!O:P,2,0)","v":"PR"},314,314,null,"Oklahoma","Puerto Rico",{"$f":"VLOOKUP(H1925,'Info Sheet'!O:P,2,0)","v":"PR"},79,79]
["Oregon","Alabama",{"$f":"VLOOKUP(B1926,'Info Sheet'!O:P,2,0)","v":"AL"},1531,1531,null,"Oregon","Alabama",{"$f":"VLOOKUP(H1926,'Info Sheet'!O:P,2,0)","v":"AL"},854,854]
["Oregon","Alaska",{"$f":"VLOOKUP(B1927,'Info Sheet'!O:P,2,0)","v":"AK"},6475,6475,null,"Oregon","Alaska",{"$f":"VLOOKUP(H1927,'Info Sheet'!O:P,2,0)","v":"AK"},7128,7128]
["Oregon","Arizona",{"$f":"VLOOKUP(B1928,'Info Sheet'!O:P,2,0)","v":"AZ"},21129,21129,null,"Oregon","Arizona",{"$f":"VLOOKUP(H1928,'Info Sheet'!O:P,2,0)","v":"AZ"},18630,18630]
["Oregon","Arkansas",{"$f":"VLOOKUP(B1929,'Info Sheet'!O:P,2,0)","v":"AR"},1399,1399,null,"Oregon","Arkansas",{"$f":"VLOOKUP(H1929,'Info Sheet'!O:P,2,0)","v":"AR"},1064,1064]
["Oregon","California",{"$f":"VLOOKUP(B1930,'Info Sheet'!O:P,2,0)","v":"CA"},100266,100266,null,"Oregon","California",{"$f":"VLOOKUP(H1930,'Info Sheet'!O:P,2,0)","v":"CA"},61802,61802]
["Oregon","Colorado",{"$f":"VLOOKUP(B1931,'Info Sheet'!O:P,2,0)","v":"CO"},8632,8632,null,"Oregon","Colorado",{"$f":"VLOOKUP(H1931,'Info Sheet'!O:P,2,0)","v":"CO"},12292,12292]
["Oregon","Connecticut",{"$f":"VLOOKUP(B1932,'Info Sheet'!O:P,2,0)","v":"CT"},1600,1600,null,"Oregon","Connecticut",{"$f":"VLOOKUP(H1932,'Info Sheet'!O:P,2,0)","v":"CT"},792,792]
["Oregon","Delaware",{"$f":"VLOOKUP(B1933,'Info Sheet'!O:P,2,0)","v":"DE"},251,251,null,"Oregon","Delaware",{"$f":"VLOOKUP(H1933,'Info Sheet'!O:P,2,0)","v":"DE"},0,0]
["Oregon","District of Columbia",{"$f":"VLOOKUP(B1934,'Info Sheet'!O:P,2,0)","v":"DC"},1262,1262,null,"Oregon","District of Columbia",{"$f":"VLOOKUP(H1934,'Info Sheet'!O:P,2,0)","v":"DC"},809,809]
["Oregon","Florida",{"$f":"VLOOKUP(B1935,'Info Sheet'!O:P,2,0)","v":"FL"},7317,7317,null,"Oregon","Florida",{"$f":"VLOOKUP(H1935,'Info Sheet'!O:P,2,0)","v":"FL"},7889,7889]
["Oregon","Georgia",{"$f":"VLOOKUP(B1936,'Info Sheet'!O:P,2,0)","v":"GA"},3666,3666,null,"Oregon","Georgia",{"$f":"VLOOKUP(H1936,'Info Sheet'!O:P,2,0)","v":"GA"},2023,2023]
["Oregon","Hawaii",{"$f":"VLOOKUP(B1937,'Info Sheet'!O:P,2,0)","v":"HI"},7315,7315,null,"Oregon","Hawaii",{"$f":"VLOOKUP(H1937,'Info Sheet'!O:P,2,0)","v":"HI"},5627,5627]
["Oregon","Idaho",{"$f":"VLOOKUP(B1938,'Info Sheet'!O:P,2,0)","v":"ID"},15458,15458,null,"Oregon","Idaho",{"$f":"VLOOKUP(H1938,'Info Sheet'!O:P,2,0)","v":"ID"},15335,15335]
["Oregon","Illinois",{"$f":"VLOOKUP(B1939,'Info Sheet'!O:P,2,0)","v":"IL"},4591,4591,null,"Oregon","Illinois",{"$f":"VLOOKUP(H1939,'Info Sheet'!O:P,2,0)","v":"IL"},2970,2970]
["Oregon","Indiana",{"$f":"VLOOKUP(B1940,'Info Sheet'!O:P,2,0)","v":"IN"},3068,3068,null,"Oregon","Indiana",{"$f":"VLOOKUP(H1940,'Info Sheet'!O:P,2,0)","v":"IN"},1315,1315]
["Oregon","Iowa",{"$f":"VLOOKUP(B1941,'Info Sheet'!O:P,2,0)","v":"IA"},1654,1654,null,"Oregon","Iowa",{"$f":"VLOOKUP(H1941,'Info Sheet'!O:P,2,0)","v":"IA"},2230,2230]
["Oregon","Kansas",{"$f":"VLOOKUP(B1942,'Info Sheet'!O:P,2,0)","v":"KS"},2497,2497,null,"Oregon","Kansas",{"$f":"VLOOKUP(H1942,'Info Sheet'!O:P,2,0)","v":"KS"},1647,1647]
["Oregon","Kentucky",{"$f":"VLOOKUP(B1943,'Info Sheet'!O:P,2,0)","v":"KY"},273,273,null,"Oregon","Kentucky",{"$f":"VLOOKUP(H1943,'Info Sheet'!O:P,2,0)","v":"KY"},938,938]
["Oregon","Louisiana",{"$f":"VLOOKUP(B1944,'Info Sheet'!O:P,2,0)","v":"LA"},227,227,null,"Oregon","Louisiana",{"$f":"VLOOKUP(H1944,'Info Sheet'!O:P,2,0)","v":"LA"},2007,2007]
["Oregon","Maine",{"$f":"VLOOKUP(B1945,'Info Sheet'!O:P,2,0)","v":"ME"},715,715,null,"Oregon","Maine",{"$f":"VLOOKUP(H1945,'Info Sheet'!O:P,2,0)","v":"ME"},686,686]
["Oregon","Maryland",{"$f":"VLOOKUP(B1946,'Info Sheet'!O:P,2,0)","v":"MD"},1505,1505,null,"Oregon","Maryland",{"$f":"VLOOKUP(H1946,'Info Sheet'!O:P,2,0)","v":"MD"},1377,1377]
["Oregon","Massachusetts",{"$f":"VLOOKUP(B1947,'Info Sheet'!O:P,2,0)","v":"MA"},3654,3654,null,"Oregon","Massachusetts",{"$f":"VLOOKUP(H1947,'Info Sheet'!O:P,2,0)","v":"MA"},1934,1934]
["Oregon","Michigan",{"$f":"VLOOKUP(B1948,'Info Sheet'!O:P,2,0)","v":"MI"},3381,3381,null,"Oregon","Michigan",{"$f":"VLOOKUP(H1948,'Info Sheet'!O:P,2,0)","v":"MI"},1995,1995]
["Oregon","Minnesota",{"$f":"VLOOKUP(B1949,'Info Sheet'!O:P,2,0)","v":"MN"},3873,3873,null,"Oregon","Minnesota",{"$f":"VLOOKUP(H1949,'Info Sheet'!O:P,2,0)","v":"MN"},3319,3319]
["Oregon","Mississippi",{"$f":"VLOOKUP(B1950,'Info Sheet'!O:P,2,0)","v":"MS"},928,928,null,"Oregon","Mississippi",{"$f":"VLOOKUP(H1950,'Info Sheet'!O:P,2,0)","v":"MS"},539,539]
["Oregon","Missouri",{"$f":"VLOOKUP(B1951,'Info Sheet'!O:P,2,0)","v":"MO"},3361,3361,null,"Oregon","Missouri",{"$f":"VLOOKUP(H1951,'Info Sheet'!O:P,2,0)","v":"MO"},2277,2277]
["Oregon","Montana",{"$f":"VLOOKUP(B1952,'Info Sheet'!O:P,2,0)","v":"MT"},6657,6657,null,"Oregon","Montana",{"$f":"VLOOKUP(H1952,'Info Sheet'!O:P,2,0)","v":"MT"},6529,6529]
["Oregon","Nebraska",{"$f":"VLOOKUP(B1953,'Info Sheet'!O:P,2,0)","v":"NE"},1671,1671,null,"Oregon","Nebraska",{"$f":"VLOOKUP(H1953,'Info Sheet'!O:P,2,0)","v":"NE"},2168,2168]
["Oregon","Nevada",{"$f":"VLOOKUP(B1954,'Info Sheet'!O:P,2,0)","v":"NV"},15962,15962,null,"Oregon","Nevada",{"$f":"VLOOKUP(H1954,'Info Sheet'!O:P,2,0)","v":"NV"},7421,7421]
["Oregon","New Hampshire",{"$f":"VLOOKUP(B1955,'Info Sheet'!O:P,2,0)","v":"NH"},783,783,null,"Oregon","New Hampshire",{"$f":"VLOOKUP(H1955,'Info Sheet'!O:P,2,0)","v":"NH"},914,914]
["Oregon","New Jersey",{"$f":"VLOOKUP(B1956,'Info Sheet'!O:P,2,0)","v":"NJ"},2251,2251,null,"Oregon","New Jersey",{"$f":"VLOOKUP(H1956,'Info Sheet'!O:P,2,0)","v":"NJ"},1733,1733]
["Oregon","New Mexico",{"$f":"VLOOKUP(B1957,'Info Sheet'!O:P,2,0)","v":"NM"},2438,2438,null,"Oregon","New Mexico",{"$f":"VLOOKUP(H1957,'Info Sheet'!O:P,2,0)","v":"NM"},3507,3507]
["Oregon","New York",{"$f":"VLOOKUP(B1958,'Info Sheet'!O:P,2,0)","v":"NY"},6973,6973,null,"Oregon","New York",{"$f":"VLOOKUP(H1958,'Info Sheet'!O:P,2,0)","v":"NY"},5528,5528]
["Oregon","North Carolina",{"$f":"VLOOKUP(B1959,'Info Sheet'!O:P,2,0)","v":"NC"},3621,3621,null,"Oregon","North Carolina",{"$f":"VLOOKUP(H1959,'Info Sheet'!O:P,2,0)","v":"NC"},4304,4304]
["Oregon","North Dakota",{"$f":"VLOOKUP(B1960,'Info Sheet'!O:P,2,0)","v":"ND"},947,947,null,"Oregon","North Dakota",{"$f":"VLOOKUP(H1960,'Info Sheet'!O:P,2,0)","v":"ND"},1301,1301]
["Oregon","Ohio",{"$f":"VLOOKUP(B1961,'Info Sheet'!O:P,2,0)","v":"OH"},3901,3901,null,"Oregon","Ohio",{"$f":"VLOOKUP(H1961,'Info Sheet'!O:P,2,0)","v":"OH"},2100,2100]
["Oregon","Oklahoma",{"$f":"VLOOKUP(B1962,'Info Sheet'!O:P,2,0)","v":"OK"},3580,3580,null,"Oregon","Oklahoma",{"$f":"VLOOKUP(H1962,'Info Sheet'!O:P,2,0)","v":"OK"},2576,2576]
["Oregon","Oregon",{"$f":"VLOOKUP(B1963,'Info Sheet'!O:P,2,0)","v":"OR"},0,0,null,"Oregon","Oregon",{"$f":"VLOOKUP(H1963,'Info Sheet'!O:P,2,0)","v":"OR"},0,0]
["Oregon","Pennsylvania",{"$f":"VLOOKUP(B1964,'Info Sheet'!O:P,2,0)","v":"PA"},4000,4000,null,"Oregon","Pennsylvania",{"$f":"VLOOKUP(H1964,'Info Sheet'!O:P,2,0)","v":"PA"},2746,2746]
["Oregon","Rhode Island",{"$f":"VLOOKUP(B1965,'Info Sheet'!O:P,2,0)","v":"RI"},177,177,null,"Oregon","Rhode Island",{"$f":"VLOOKUP(H1965,'Info Sheet'!O:P,2,0)","v":"RI"},196,196]
["Oregon","South Carolina",{"$f":"VLOOKUP(B1966,'Info Sheet'!O:P,2,0)","v":"SC"},1820,1820,null,"Oregon","South Carolina",{"$f":"VLOOKUP(H1966,'Info Sheet'!O:P,2,0)","v":"SC"},2108,2108]
["Oregon","South Dakota",{"$f":"VLOOKUP(B1967,'Info Sheet'!O:P,2,0)","v":"SD"},1277,1277,null,"Oregon","South Dakota",{"$f":"VLOOKUP(H1967,'Info Sheet'!O:P,2,0)","v":"SD"},804,804]
["Oregon","Tennessee",{"$f":"VLOOKUP(B1968,'Info Sheet'!O:P,2,0)","v":"TN"},2262,2262,null,"Oregon","Tennessee",{"$f":"VLOOKUP(H1968,'Info Sheet'!O:P,2,0)","v":"TN"},2236,2236]
["Oregon","Texas",{"$f":"VLOOKUP(B1969,'Info Sheet'!O:P,2,0)","v":"TX"},11671,11671,null,"Oregon","Texas",{"$f":"VLOOKUP(H1969,'Info Sheet'!O:P,2,0)","v":"TX"},11943,11943]
["Oregon","Utah",{"$f":"VLOOKUP(B1970,'Info Sheet'!O:P,2,0)","v":"UT"},11115,11115,null,"Oregon","Utah",{"$f":"VLOOKUP(H1970,'Info Sheet'!O:P,2,0)","v":"UT"},8651,8651]
["Oregon","Vermont",{"$f":"VLOOKUP(B1971,'Info Sheet'!O:P,2,0)","v":"VT"},999,999,null,"Oregon","Vermont",{"$f":"VLOOKUP(H1971,'Info Sheet'!O:P,2,0)","v":"VT"},250,250]
["Oregon","Virginia",{"$f":"VLOOKUP(B1972,'Info Sheet'!O:P,2,0)","v":"VA"},2979,2979,null,"Oregon","Virginia",{"$f":"VLOOKUP(H1972,'Info Sheet'!O:P,2,0)","v":"VA"},7177,7177]
["Oregon","Washington",{"$f":"VLOOKUP(B1973,'Info Sheet'!O:P,2,0)","v":"WA"},65879,65879,null,"Oregon","Washington",{"$f":"VLOOKUP(H1973,'Info Sheet'!O:P,2,0)","v":"WA"},80928,80928]
["Oregon","West Virginia",{"$f":"VLOOKUP(B1974,'Info Sheet'!O:P,2,0)","v":"WV"},1017,1017,null,"Oregon","West Virginia",{"$f":"VLOOKUP(H1974,'Info Sheet'!O:P,2,0)","v":"WV"},250,250]
["Oregon","Wisconsin",{"$f":"VLOOKUP(B1975,'Info Sheet'!O:P,2,0)","v":"WI"},3321,3321,null,"Oregon","Wisconsin",{"$f":"VLOOKUP(H1975,'Info Sheet'!O:P,2,0)","v":"WI"},3446,3446]
["Oregon","Wyoming",{"$f":"VLOOKUP(B1976,'Info Sheet'!O:P,2,0)","v":"WY"},2202,2202,null,"Oregon","Wyoming",{"$f":"VLOOKUP(H1976,'Info Sheet'!O:P,2,0)","v":"WY"},1867,1867]
["Oregon","Puerto Rico",{"$f":"VLOOKUP(B1977,'Info Sheet'!O:P,2,0)","v":"PR"},977,977,null,"Oregon","Puerto Rico",{"$f":"VLOOKUP(H1977,'Info Sheet'!O:P,2,0)","v":"PR"},0,0]
["Pennsylvania","Alabama",{"$f":"VLOOKUP(B1978,'Info Sheet'!O:P,2,0)","v":"AL"},3627,3627,null,"Pennsylvania","Alabama",{"$f":"VLOOKUP(H1978,'Info Sheet'!O:P,2,0)","v":"AL"},4389,4389]
["Pennsylvania","Alaska",{"$f":"VLOOKUP(B1979,'Info Sheet'!O:P,2,0)","v":"AK"},4602,4602,null,"Pennsylvania","Alaska",{"$f":"VLOOKUP(H1979,'Info Sheet'!O:P,2,0)","v":"AK"},759,759]
["Pennsylvania","Arizona",{"$f":"VLOOKUP(B1980,'Info Sheet'!O:P,2,0)","v":"AZ"},9475,9475,null,"Pennsylvania","Arizona",{"$f":"VLOOKUP(H1980,'Info Sheet'!O:P,2,0)","v":"AZ"},13251,13251]
["Pennsylvania","Arkansas",{"$f":"VLOOKUP(B1981,'Info Sheet'!O:P,2,0)","v":"AR"},1962,1962,null,"Pennsylvania","Arkansas",{"$f":"VLOOKUP(H1981,'Info Sheet'!O:P,2,0)","v":"AR"},1814,1814]
["Pennsylvania","California",{"$f":"VLOOKUP(B1982,'Info Sheet'!O:P,2,0)","v":"CA"},30521,30521,null,"Pennsylvania","California",{"$f":"VLOOKUP(H1982,'Info Sheet'!O:P,2,0)","v":"CA"},28964,28964]
["Pennsylvania","Colorado",{"$f":"VLOOKUP(B1983,'Info Sheet'!O:P,2,0)","v":"CO"},8722,8722,null,"Pennsylvania","Colorado",{"$f":"VLOOKUP(H1983,'Info Sheet'!O:P,2,0)","v":"CO"},11226,11226]
["Pennsylvania","Connecticut",{"$f":"VLOOKUP(B1984,'Info Sheet'!O:P,2,0)","v":"CT"},11468,11468,null,"Pennsylvania","Connecticut",{"$f":"VLOOKUP(H1984,'Info Sheet'!O:P,2,0)","v":"CT"},7837,7837]
["Pennsylvania","Delaware",{"$f":"VLOOKUP(B1985,'Info Sheet'!O:P,2,0)","v":"DE"},14599,14599,null,"Pennsylvania","Delaware",{"$f":"VLOOKUP(H1985,'Info Sheet'!O:P,2,0)","v":"DE"},22717,22717]
["Pennsylvania","District of Columbia",{"$f":"VLOOKUP(B1986,'Info Sheet'!O:P,2,0)","v":"DC"},5943,5943,null,"Pennsylvania","District of Columbia",{"$f":"VLOOKUP(H1986,'Info Sheet'!O:P,2,0)","v":"DC"},5461,5461]
["Pennsylvania","Florida",{"$f":"VLOOKUP(B1987,'Info Sheet'!O:P,2,0)","v":"FL"},52142,52142,null,"Pennsylvania","Florida",{"$f":"VLOOKUP(H1987,'Info Sheet'!O:P,2,0)","v":"FL"},66415,66415]
["Pennsylvania","Georgia",{"$f":"VLOOKUP(B1988,'Info Sheet'!O:P,2,0)","v":"GA"},13608,13608,null,"Pennsylvania","Georgia",{"$f":"VLOOKUP(H1988,'Info Sheet'!O:P,2,0)","v":"GA"},21161,21161]
["Pennsylvania","Hawaii",{"$f":"VLOOKUP(B1989,'Info Sheet'!O:P,2,0)","v":"HI"},1072,1072,null,"Pennsylvania","Hawaii",{"$f":"VLOOKUP(H1989,'Info Sheet'!O:P,2,0)","v":"HI"},2510,2510]
["Pennsylvania","Idaho",{"$f":"VLOOKUP(B1990,'Info Sheet'!O:P,2,0)","v":"ID"},975,975,null,"Pennsylvania","Idaho",{"$f":"VLOOKUP(H1990,'Info Sheet'!O:P,2,0)","v":"ID"},684,684]
["Pennsylvania","Illinois",{"$f":"VLOOKUP(B1991,'Info Sheet'!O:P,2,0)","v":"IL"},12141,12141,null,"Pennsylvania","Illinois",{"$f":"VLOOKUP(H1991,'Info Sheet'!O:P,2,0)","v":"IL"},12790,12790]
["Pennsylvania","Indiana",{"$f":"VLOOKUP(B1992,'Info Sheet'!O:P,2,0)","v":"IN"},7703,7703,null,"Pennsylvania","Indiana",{"$f":"VLOOKUP(H1992,'Info Sheet'!O:P,2,0)","v":"IN"},9085,9085]
["Pennsylvania","Iowa",{"$f":"VLOOKUP(B1993,'Info Sheet'!O:P,2,0)","v":"IA"},1528,1528,null,"Pennsylvania","Iowa",{"$f":"VLOOKUP(H1993,'Info Sheet'!O:P,2,0)","v":"IA"},1217,1217]
["Pennsylvania","Kansas",{"$f":"VLOOKUP(B1994,'Info Sheet'!O:P,2,0)","v":"KS"},4716,4716,null,"Pennsylvania","Kansas",{"$f":"VLOOKUP(H1994,'Info Sheet'!O:P,2,0)","v":"KS"},2975,2975]
["Pennsylvania","Kentucky",{"$f":"VLOOKUP(B1995,'Info Sheet'!O:P,2,0)","v":"KY"},6921,6921,null,"Pennsylvania","Kentucky",{"$f":"VLOOKUP(H1995,'Info Sheet'!O:P,2,0)","v":"KY"},6334,6334]
["Pennsylvania","Louisiana",{"$f":"VLOOKUP(B1996,'Info Sheet'!O:P,2,0)","v":"LA"},1934,1934,null,"Pennsylvania","Louisiana",{"$f":"VLOOKUP(H1996,'Info Sheet'!O:P,2,0)","v":"LA"},3044,3044]
["Pennsylvania","Maine",{"$f":"VLOOKUP(B1997,'Info Sheet'!O:P,2,0)","v":"ME"},3217,3217,null,"Pennsylvania","Maine",{"$f":"VLOOKUP(H1997,'Info Sheet'!O:P,2,0)","v":"ME"},2266,2266]
["Pennsylvania","Maryland",{"$f":"VLOOKUP(B1998,'Info Sheet'!O:P,2,0)","v":"MD"},53561,53561,null,"Pennsylvania","Maryland",{"$f":"VLOOKUP(H1998,'Info Sheet'!O:P,2,0)","v":"MD"},43110,43110]
["Pennsylvania","Massachusetts",{"$f":"VLOOKUP(B1999,'Info Sheet'!O:P,2,0)","v":"MA"},16639,16639,null,"Pennsylvania","Massachusetts",{"$f":"VLOOKUP(H1999,'Info Sheet'!O:P,2,0)","v":"MA"},20090,20090]
["Pennsylvania","Michigan",{"$f":"VLOOKUP(B2000,'Info Sheet'!O:P,2,0)","v":"MI"},12009,12009,null,"Pennsylvania","Michigan",{"$f":"VLOOKUP(H2000,'Info Sheet'!O:P,2,0)","v":"MI"},8737,8737]
["Pennsylvania","Minnesota",{"$f":"VLOOKUP(B2001,'Info Sheet'!O:P,2,0)","v":"MN"},3513,3513,null,"Pennsylvania","Minnesota",{"$f":"VLOOKUP(H2001,'Info Sheet'!O:P,2,0)","v":"MN"},2706,2706]
["Pennsylvania","Mississippi",{"$f":"VLOOKUP(B2002,'Info Sheet'!O:P,2,0)","v":"MS"},1856,1856,null,"Pennsylvania","Mississippi",{"$f":"VLOOKUP(H2002,'Info Sheet'!O:P,2,0)","v":"MS"},3931,3931]
["Pennsylvania","Missouri",{"$f":"VLOOKUP(B2003,'Info Sheet'!O:P,2,0)","v":"MO"},4657,4657,null,"Pennsylvania","Missouri",{"$f":"VLOOKUP(H2003,'Info Sheet'!O:P,2,0)","v":"MO"},4984,4984]
["Pennsylvania","Montana",{"$f":"VLOOKUP(B2004,'Info Sheet'!O:P,2,0)","v":"MT"},812,812,null,"Pennsylvania","Montana",{"$f":"VLOOKUP(H2004,'Info Sheet'!O:P,2,0)","v":"MT"},1716,1716]
["Pennsylvania","Nebraska",{"$f":"VLOOKUP(B2005,'Info Sheet'!O:P,2,0)","v":"NE"},1347,1347,null,"Pennsylvania","Nebraska",{"$f":"VLOOKUP(H2005,'Info Sheet'!O:P,2,0)","v":"NE"},1299,1299]
["Pennsylvania","Nevada",{"$f":"VLOOKUP(B2006,'Info Sheet'!O:P,2,0)","v":"NV"},4467,4467,null,"Pennsylvania","Nevada",{"$f":"VLOOKUP(H2006,'Info Sheet'!O:P,2,0)","v":"NV"},3738,3738]
["Pennsylvania","New Hampshire",{"$f":"VLOOKUP(B2007,'Info Sheet'!O:P,2,0)","v":"NH"},3193,3193,null,"Pennsylvania","New Hampshire",{"$f":"VLOOKUP(H2007,'Info Sheet'!O:P,2,0)","v":"NH"},2579,2579]
["Pennsylvania","New Jersey",{"$f":"VLOOKUP(B2008,'Info Sheet'!O:P,2,0)","v":"NJ"},112380,112380,null,"Pennsylvania","New Jersey",{"$f":"VLOOKUP(H2008,'Info Sheet'!O:P,2,0)","v":"NJ"},65555,65555]
["Pennsylvania","New Mexico",{"$f":"VLOOKUP(B2009,'Info Sheet'!O:P,2,0)","v":"NM"},2576,2576,null,"Pennsylvania","New Mexico",{"$f":"VLOOKUP(H2009,'Info Sheet'!O:P,2,0)","v":"NM"},2123,2123]
["Pennsylvania","New York",{"$f":"VLOOKUP(B2010,'Info Sheet'!O:P,2,0)","v":"NY"},92815,92815,null,"Pennsylvania","New York",{"$f":"VLOOKUP(H2010,'Info Sheet'!O:P,2,0)","v":"NY"},70005,70005]
["Pennsylvania","North Carolina",{"$f":"VLOOKUP(B2011,'Info Sheet'!O:P,2,0)","v":"NC"},25245,25245,null,"Pennsylvania","North Carolina",{"$f":"VLOOKUP(H2011,'Info Sheet'!O:P,2,0)","v":"NC"},32784,32784]
["Pennsylvania","North Dakota",{"$f":"VLOOKUP(B2012,'Info Sheet'!O:P,2,0)","v":"ND"},882,882,null,"Pennsylvania","North Dakota",{"$f":"VLOOKUP(H2012,'Info Sheet'!O:P,2,0)","v":"ND"},1158,1158]
["Pennsylvania","Ohio",{"$f":"VLOOKUP(B2013,'Info Sheet'!O:P,2,0)","v":"OH"},41939,41939,null,"Pennsylvania","Ohio",{"$f":"VLOOKUP(H2013,'Info Sheet'!O:P,2,0)","v":"OH"},40451,40451]
["Pennsylvania","Oklahoma",{"$f":"VLOOKUP(B2014,'Info Sheet'!O:P,2,0)","v":"OK"},1915,1915,null,"Pennsylvania","Oklahoma",{"$f":"VLOOKUP(H2014,'Info Sheet'!O:P,2,0)","v":"OK"},2926,2926]
["Pennsylvania","Oregon",{"$f":"VLOOKUP(B2015,'Info Sheet'!O:P,2,0)","v":"OR"},2746,2746,null,"Pennsylvania","Oregon",{"$f":"VLOOKUP(H2015,'Info Sheet'!O:P,2,0)","v":"OR"},4000,4000]
["Pennsylvania","Pennsylvania",{"$f":"VLOOKUP(B2016,'Info Sheet'!O:P,2,0)","v":"PA"},0,0,null,"Pennsylvania","Pennsylvania",{"$f":"VLOOKUP(H2016,'Info Sheet'!O:P,2,0)","v":"PA"},0,0]
["Pennsylvania","Rhode Island",{"$f":"VLOOKUP(B2017,'Info Sheet'!O:P,2,0)","v":"RI"},1947,1947,null,"Pennsylvania","Rhode Island",{"$f":"VLOOKUP(H2017,'Info Sheet'!O:P,2,0)","v":"RI"},2420,2420]
["Pennsylvania","South Carolina",{"$f":"VLOOKUP(B2018,'Info Sheet'!O:P,2,0)","v":"SC"},7776,7776,null,"Pennsylvania","South Carolina",{"$f":"VLOOKUP(H2018,'Info Sheet'!O:P,2,0)","v":"SC"},14709,14709]
["Pennsylvania","South Dakota",{"$f":"VLOOKUP(B2019,'Info Sheet'!O:P,2,0)","v":"SD"},1267,1267,null,"Pennsylvania","South Dakota",{"$f":"VLOOKUP(H2019,'Info Sheet'!O:P,2,0)","v":"SD"},781,781]
["Pennsylvania","Tennessee",{"$f":"VLOOKUP(B2020,'Info Sheet'!O:P,2,0)","v":"TN"},6626,6626,null,"Pennsylvania","Tennessee",{"$f":"VLOOKUP(H2020,'Info Sheet'!O:P,2,0)","v":"TN"},9251,9251]
["Pennsylvania","Texas",{"$f":"VLOOKUP(B2021,'Info Sheet'!O:P,2,0)","v":"TX"},21552,21552,null,"Pennsylvania","Texas",{"$f":"VLOOKUP(H2021,'Info Sheet'!O:P,2,0)","v":"TX"},26717,26717]
["Pennsylvania","Utah",{"$f":"VLOOKUP(B2022,'Info Sheet'!O:P,2,0)","v":"UT"},3570,3570,null,"Pennsylvania","Utah",{"$f":"VLOOKUP(H2022,'Info Sheet'!O:P,2,0)","v":"UT"},2997,2997]
["Pennsylvania","Vermont",{"$f":"VLOOKUP(B2023,'Info Sheet'!O:P,2,0)","v":"VT"},1673,1673,null,"Pennsylvania","Vermont",{"$f":"VLOOKUP(H2023,'Info Sheet'!O:P,2,0)","v":"VT"},1848,1848]
["Pennsylvania","Virginia",{"$f":"VLOOKUP(B2024,'Info Sheet'!O:P,2,0)","v":"VA"},30937,30937,null,"Pennsylvania","Virginia",{"$f":"VLOOKUP(H2024,'Info Sheet'!O:P,2,0)","v":"VA"},37995,37995]
["Pennsylvania","Washington",{"$f":"VLOOKUP(B2025,'Info Sheet'!O:P,2,0)","v":"WA"},7970,7970,null,"Pennsylvania","Washington",{"$f":"VLOOKUP(H2025,'Info Sheet'!O:P,2,0)","v":"WA"},8586,8586]
["Pennsylvania","West Virginia",{"$f":"VLOOKUP(B2026,'Info Sheet'!O:P,2,0)","v":"WV"},15651,15651,null,"Pennsylvania","West Virginia",{"$f":"VLOOKUP(H2026,'Info Sheet'!O:P,2,0)","v":"WV"},14321,14321]
["Pennsylvania","Wisconsin",{"$f":"VLOOKUP(B2027,'Info Sheet'!O:P,2,0)","v":"WI"},5276,5276,null,"Pennsylvania","Wisconsin",{"$f":"VLOOKUP(H2027,'Info Sheet'!O:P,2,0)","v":"WI"},5068,5068]
["Pennsylvania","Wyoming",{"$f":"VLOOKUP(B2028,'Info Sheet'!O:P,2,0)","v":"WY"},1698,1698,null,"Pennsylvania","Wyoming",{"$f":"VLOOKUP(H2028,'Info Sheet'!O:P,2,0)","v":"WY"},609,609]
["Pennsylvania","Puerto Rico",{"$f":"VLOOKUP(B2029,'Info Sheet'!O:P,2,0)","v":"PR"},16845,16845,null,"Pennsylvania","Puerto Rico",{"$f":"VLOOKUP(H2029,'Info Sheet'!O:P,2,0)","v":"PR"},5807,5807]
["Rhode Island","Alabama",{"$f":"VLOOKUP(B2030,'Info Sheet'!O:P,2,0)","v":"AL"},156,156,null,"Rhode Island","Alabama",{"$f":"VLOOKUP(H2030,'Info Sheet'!O:P,2,0)","v":"AL"},0,0]
["Rhode Island","Alaska",{"$f":"VLOOKUP(B2031,'Info Sheet'!O:P,2,0)","v":"AK"},0,0,null,"Rhode Island","Alaska",{"$f":"VLOOKUP(H2031,'Info Sheet'!O:P,2,0)","v":"AK"},0,0]
["Rhode Island","Arizona",{"$f":"VLOOKUP(B2032,'Info Sheet'!O:P,2,0)","v":"AZ"},631,631,null,"Rhode Island","Arizona",{"$f":"VLOOKUP(H2032,'Info Sheet'!O:P,2,0)","v":"AZ"},1089,1089]
["Rhode Island","Arkansas",{"$f":"VLOOKUP(B2033,'Info Sheet'!O:P,2,0)","v":"AR"},0,0,null,"Rhode Island","Arkansas",{"$f":"VLOOKUP(H2033,'Info Sheet'!O:P,2,0)","v":"AR"},59,59]
["Rhode Island","California",{"$f":"VLOOKUP(B2034,'Info Sheet'!O:P,2,0)","v":"CA"},5792,5792,null,"Rhode Island","California",{"$f":"VLOOKUP(H2034,'Info Sheet'!O:P,2,0)","v":"CA"},3277,3277]
["Rhode Island","Colorado",{"$f":"VLOOKUP(B2035,'Info Sheet'!O:P,2,0)","v":"CO"},692,692,null,"Rhode Island","Colorado",{"$f":"VLOOKUP(H2035,'Info Sheet'!O:P,2,0)","v":"CO"},764,764]
["Rhode Island","Connecticut",{"$f":"VLOOKUP(B2036,'Info Sheet'!O:P,2,0)","v":"CT"},10873,10873,null,"Rhode Island","Connecticut",{"$f":"VLOOKUP(H2036,'Info Sheet'!O:P,2,0)","v":"CT"},4774,4774]
["Rhode Island","Delaware",{"$f":"VLOOKUP(B2037,'Info Sheet'!O:P,2,0)","v":"DE"},0,0,null,"Rhode Island","Delaware",{"$f":"VLOOKUP(H2037,'Info Sheet'!O:P,2,0)","v":"DE"},415,415]
["Rhode Island","District of Columbia",{"$f":"VLOOKUP(B2038,'Info Sheet'!O:P,2,0)","v":"DC"},459,459,null,"Rhode Island","District of Columbia",{"$f":"VLOOKUP(H2038,'Info Sheet'!O:P,2,0)","v":"DC"},934,934]
["Rhode Island","Florida",{"$f":"VLOOKUP(B2039,'Info Sheet'!O:P,2,0)","v":"FL"},6318,6318,null,"Rhode Island","Florida",{"$f":"VLOOKUP(H2039,'Info Sheet'!O:P,2,0)","v":"FL"},10034,10034]
["Rhode Island","Georgia",{"$f":"VLOOKUP(B2040,'Info Sheet'!O:P,2,0)","v":"GA"},1026,1026,null,"Rhode Island","Georgia",{"$f":"VLOOKUP(H2040,'Info Sheet'!O:P,2,0)","v":"GA"},820,820]
["Rhode Island","Hawaii",{"$f":"VLOOKUP(B2041,'Info Sheet'!O:P,2,0)","v":"HI"},394,394,null,"Rhode Island","Hawaii",{"$f":"VLOOKUP(H2041,'Info Sheet'!O:P,2,0)","v":"HI"},808,808]
["Rhode Island","Idaho",{"$f":"VLOOKUP(B2042,'Info Sheet'!O:P,2,0)","v":"ID"},107,107,null,"Rhode Island","Idaho",{"$f":"VLOOKUP(H2042,'Info Sheet'!O:P,2,0)","v":"ID"},0,0]
["Rhode Island","Illinois",{"$f":"VLOOKUP(B2043,'Info Sheet'!O:P,2,0)","v":"IL"},1968,1968,null,"Rhode Island","Illinois",{"$f":"VLOOKUP(H2043,'Info Sheet'!O:P,2,0)","v":"IL"},1578,1578]
["Rhode Island","Indiana",{"$f":"VLOOKUP(B2044,'Info Sheet'!O:P,2,0)","v":"IN"},247,247,null,"Rhode Island","Indiana",{"$f":"VLOOKUP(H2044,'Info Sheet'!O:P,2,0)","v":"IN"},223,223]
["Rhode Island","Iowa",{"$f":"VLOOKUP(B2045,'Info Sheet'!O:P,2,0)","v":"IA"},130,130,null,"Rhode Island","Iowa",{"$f":"VLOOKUP(H2045,'Info Sheet'!O:P,2,0)","v":"IA"},65,65]
["Rhode Island","Kansas",{"$f":"VLOOKUP(B2046,'Info Sheet'!O:P,2,0)","v":"KS"},401,401,null,"Rhode Island","Kansas",{"$f":"VLOOKUP(H2046,'Info Sheet'!O:P,2,0)","v":"KS"},237,237]
["Rhode Island","Kentucky",{"$f":"VLOOKUP(B2047,'Info Sheet'!O:P,2,0)","v":"KY"},497,497,null,"Rhode Island","Kentucky",{"$f":"VLOOKUP(H2047,'Info Sheet'!O:P,2,0)","v":"KY"},929,929]
["Rhode Island","Louisiana",{"$f":"VLOOKUP(B2048,'Info Sheet'!O:P,2,0)","v":"LA"},145,145,null,"Rhode Island","Louisiana",{"$f":"VLOOKUP(H2048,'Info Sheet'!O:P,2,0)","v":"LA"},1005,1005]
["Rhode Island","Maine",{"$f":"VLOOKUP(B2049,'Info Sheet'!O:P,2,0)","v":"ME"},954,954,null,"Rhode Island","Maine",{"$f":"VLOOKUP(H2049,'Info Sheet'!O:P,2,0)","v":"ME"},1637,1637]
["Rhode Island","Maryland",{"$f":"VLOOKUP(B2050,'Info Sheet'!O:P,2,0)","v":"MD"},1931,1931,null,"Rhode Island","Maryland",{"$f":"VLOOKUP(H2050,'Info Sheet'!O:P,2,0)","v":"MD"},1061,1061]
["Rhode Island","Massachusetts",{"$f":"VLOOKUP(B2051,'Info Sheet'!O:P,2,0)","v":"MA"},27607,27607,null,"Rhode Island","Massachusetts",{"$f":"VLOOKUP(H2051,'Info Sheet'!O:P,2,0)","v":"MA"},24010,24010]
["Rhode Island","Michigan",{"$f":"VLOOKUP(B2052,'Info Sheet'!O:P,2,0)","v":"MI"},485,485,null,"Rhode Island","Michigan",{"$f":"VLOOKUP(H2052,'Info Sheet'!O:P,2,0)","v":"MI"},1106,1106]
["Rhode Island","Minnesota",{"$f":"VLOOKUP(B2053,'Info Sheet'!O:P,2,0)","v":"MN"},205,205,null,"Rhode Island","Minnesota",{"$f":"VLOOKUP(H2053,'Info Sheet'!O:P,2,0)","v":"MN"},422,422]
["Rhode Island","Mississippi",{"$f":"VLOOKUP(B2054,'Info Sheet'!O:P,2,0)","v":"MS"},0,0,null,"Rhode Island","Mississippi",{"$f":"VLOOKUP(H2054,'Info Sheet'!O:P,2,0)","v":"MS"},371,371]
["Rhode Island","Missouri",{"$f":"VLOOKUP(B2055,'Info Sheet'!O:P,2,0)","v":"MO"},366,366,null,"Rhode Island","Missouri",{"$f":"VLOOKUP(H2055,'Info Sheet'!O:P,2,0)","v":"MO"},720,720]
["Rhode Island","Montana",{"$f":"VLOOKUP(B2056,'Info Sheet'!O:P,2,0)","v":"MT"},0,0,null,"Rhode Island","Montana",{"$f":"VLOOKUP(H2056,'Info Sheet'!O:P,2,0)","v":"MT"},0,0]
["Rhode Island","Nebraska",{"$f":"VLOOKUP(B2057,'Info Sheet'!O:P,2,0)","v":"NE"},188,188,null,"Rhode Island","Nebraska",{"$f":"VLOOKUP(H2057,'Info Sheet'!O:P,2,0)","v":"NE"},0,0]
["Rhode Island","Nevada",{"$f":"VLOOKUP(B2058,'Info Sheet'!O:P,2,0)","v":"NV"},322,322,null,"Rhode Island","Nevada",{"$f":"VLOOKUP(H2058,'Info Sheet'!O:P,2,0)","v":"NV"},589,589]
["Rhode Island","New Hampshire",{"$f":"VLOOKUP(B2059,'Info Sheet'!O:P,2,0)","v":"NH"},1885,1885,null,"Rhode Island","New Hampshire",{"$f":"VLOOKUP(H2059,'Info Sheet'!O:P,2,0)","v":"NH"},2844,2844]
["Rhode Island","New Jersey",{"$f":"VLOOKUP(B2060,'Info Sheet'!O:P,2,0)","v":"NJ"},4311,4311,null,"Rhode Island","New Jersey",{"$f":"VLOOKUP(H2060,'Info Sheet'!O:P,2,0)","v":"NJ"},1224,1224]
["Rhode Island","New Mexico",{"$f":"VLOOKUP(B2061,'Info Sheet'!O:P,2,0)","v":"NM"},129,129,null,"Rhode Island","New Mexico",{"$f":"VLOOKUP(H2061,'Info Sheet'!O:P,2,0)","v":"NM"},46,46]
["Rhode Island","New York",{"$f":"VLOOKUP(B2062,'Info Sheet'!O:P,2,0)","v":"NY"},10962,10962,null,"Rhode Island","New York",{"$f":"VLOOKUP(H2062,'Info Sheet'!O:P,2,0)","v":"NY"},6528,6528]
["Rhode Island","North Carolina",{"$f":"VLOOKUP(B2063,'Info Sheet'!O:P,2,0)","v":"NC"},2113,2113,null,"Rhode Island","North Carolina",{"$f":"VLOOKUP(H2063,'Info Sheet'!O:P,2,0)","v":"NC"},831,831]
["Rhode Island","North Dakota",{"$f":"VLOOKUP(B2064,'Info Sheet'!O:P,2,0)","v":"ND"},62,62,null,"Rhode Island","North Dakota",{"$f":"VLOOKUP(H2064,'Info Sheet'!O:P,2,0)","v":"ND"},244,244]
["Rhode Island","Ohio",{"$f":"VLOOKUP(B2065,'Info Sheet'!O:P,2,0)","v":"OH"},123,123,null,"Rhode Island","Ohio",{"$f":"VLOOKUP(H2065,'Info Sheet'!O:P,2,0)","v":"OH"},1248,1248]
["Rhode Island","Oklahoma",{"$f":"VLOOKUP(B2066,'Info Sheet'!O:P,2,0)","v":"OK"},199,199,null,"Rhode Island","Oklahoma",{"$f":"VLOOKUP(H2066,'Info Sheet'!O:P,2,0)","v":"OK"},271,271]
["Rhode Island","Oregon",{"$f":"VLOOKUP(B2067,'Info Sheet'!O:P,2,0)","v":"OR"},196,196,null,"Rhode Island","Oregon",{"$f":"VLOOKUP(H2067,'Info Sheet'!O:P,2,0)","v":"OR"},177,177]
["Rhode Island","Pennsylvania",{"$f":"VLOOKUP(B2068,'Info Sheet'!O:P,2,0)","v":"PA"},2420,2420,null,"Rhode Island","Pennsylvania",{"$f":"VLOOKUP(H2068,'Info Sheet'!O:P,2,0)","v":"PA"},1947,1947]
["Rhode Island","Rhode Island",{"$f":"VLOOKUP(B2069,'Info Sheet'!O:P,2,0)","v":"RI"},0,0,null,"Rhode Island","Rhode Island",{"$f":"VLOOKUP(H2069,'Info Sheet'!O:P,2,0)","v":"RI"},0,0]
["Rhode Island","South Carolina",{"$f":"VLOOKUP(B2070,'Info Sheet'!O:P,2,0)","v":"SC"},765,765,null,"Rhode Island","South Carolina",{"$f":"VLOOKUP(H2070,'Info Sheet'!O:P,2,0)","v":"SC"},1145,1145]
["Rhode Island","South Dakota",{"$f":"VLOOKUP(B2071,'Info Sheet'!O:P,2,0)","v":"SD"},48,48,null,"Rhode Island","South Dakota",{"$f":"VLOOKUP(H2071,'Info Sheet'!O:P,2,0)","v":"SD"},7,7]
["Rhode Island","Tennessee",{"$f":"VLOOKUP(B2072,'Info Sheet'!O:P,2,0)","v":"TN"},401,401,null,"Rhode Island","Tennessee",{"$f":"VLOOKUP(H2072,'Info Sheet'!O:P,2,0)","v":"TN"},845,845]
["Rhode Island","Texas",{"$f":"VLOOKUP(B2073,'Info Sheet'!O:P,2,0)","v":"TX"},1708,1708,null,"Rhode Island","Texas",{"$f":"VLOOKUP(H2073,'Info Sheet'!O:P,2,0)","v":"TX"},4035,4035]
["Rhode Island","Utah",{"$f":"VLOOKUP(B2074,'Info Sheet'!O:P,2,0)","v":"UT"},181,181,null,"Rhode Island","Utah",{"$f":"VLOOKUP(H2074,'Info Sheet'!O:P,2,0)","v":"UT"},351,351]
["Rhode Island","Vermont",{"$f":"VLOOKUP(B2075,'Info Sheet'!O:P,2,0)","v":"VT"},746,746,null,"Rhode Island","Vermont",{"$f":"VLOOKUP(H2075,'Info Sheet'!O:P,2,0)","v":"VT"},969,969]
["Rhode Island","Virginia",{"$f":"VLOOKUP(B2076,'Info Sheet'!O:P,2,0)","v":"VA"},2892,2892,null,"Rhode Island","Virginia",{"$f":"VLOOKUP(H2076,'Info Sheet'!O:P,2,0)","v":"VA"},5045,5045]
["Rhode Island","Washington",{"$f":"VLOOKUP(B2077,'Info Sheet'!O:P,2,0)","v":"WA"},709,709,null,"Rhode Island","Washington",{"$f":"VLOOKUP(H2077,'Info Sheet'!O:P,2,0)","v":"WA"},780,780]
["Rhode Island","West Virginia",{"$f":"VLOOKUP(B2078,'Info Sheet'!O:P,2,0)","v":"WV"},349,349,null,"Rhode Island","West Virginia",{"$f":"VLOOKUP(H2078,'Info Sheet'!O:P,2,0)","v":"WV"},522,522]
["Rhode Island","Wisconsin",{"$f":"VLOOKUP(B2079,'Info Sheet'!O:P,2,0)","v":"WI"},137,137,null,"Rhode Island","Wisconsin",{"$f":"VLOOKUP(H2079,'Info Sheet'!O:P,2,0)","v":"WI"},512,512]
["Rhode Island","Wyoming",{"$f":"VLOOKUP(B2080,'Info Sheet'!O:P,2,0)","v":"WY"},44,44,null,"Rhode Island","Wyoming",{"$f":"VLOOKUP(H2080,'Info Sheet'!O:P,2,0)","v":"WY"},13,13]
["Rhode Island","Puerto Rico",{"$f":"VLOOKUP(B2081,'Info Sheet'!O:P,2,0)","v":"PR"},685,685,null,"Rhode Island","Puerto Rico",{"$f":"VLOOKUP(H2081,'Info Sheet'!O:P,2,0)","v":"PR"},1798,1798]
["South Carolina","Alabama",{"$f":"VLOOKUP(B2082,'Info Sheet'!O:P,2,0)","v":"AL"},6405,6405,null,"South Carolina","Alabama",{"$f":"VLOOKUP(H2082,'Info Sheet'!O:P,2,0)","v":"AL"},7215,7215]
["South Carolina","Alaska",{"$f":"VLOOKUP(B2083,'Info Sheet'!O:P,2,0)","v":"AK"},5335,5335,null,"South Carolina","Alaska",{"$f":"VLOOKUP(H2083,'Info Sheet'!O:P,2,0)","v":"AK"},691,691]
["South Carolina","Arizona",{"$f":"VLOOKUP(B2084,'Info Sheet'!O:P,2,0)","v":"AZ"},5650,5650,null,"South Carolina","Arizona",{"$f":"VLOOKUP(H2084,'Info Sheet'!O:P,2,0)","v":"AZ"},5154,5154]
["South Carolina","Arkansas",{"$f":"VLOOKUP(B2085,'Info Sheet'!O:P,2,0)","v":"AR"},2537,2537,null,"South Carolina","Arkansas",{"$f":"VLOOKUP(H2085,'Info Sheet'!O:P,2,0)","v":"AR"},1783,1783]
["South Carolina","California",{"$f":"VLOOKUP(B2086,'Info Sheet'!O:P,2,0)","v":"CA"},17262,17262,null,"South Carolina","California",{"$f":"VLOOKUP(H2086,'Info Sheet'!O:P,2,0)","v":"CA"},14884,14884]
["South Carolina","Colorado",{"$f":"VLOOKUP(B2087,'Info Sheet'!O:P,2,0)","v":"CO"},4782,4782,null,"South Carolina","Colorado",{"$f":"VLOOKUP(H2087,'Info Sheet'!O:P,2,0)","v":"CO"},4332,4332]
["South Carolina","Connecticut",{"$f":"VLOOKUP(B2088,'Info Sheet'!O:P,2,0)","v":"CT"},7340,7340,null,"South Carolina","Connecticut",{"$f":"VLOOKUP(H2088,'Info Sheet'!O:P,2,0)","v":"CT"},3077,3077]
["South Carolina","Delaware",{"$f":"VLOOKUP(B2089,'Info Sheet'!O:P,2,0)","v":"DE"},1787,1787,null,"South Carolina","Delaware",{"$f":"VLOOKUP(H2089,'Info Sheet'!O:P,2,0)","v":"DE"},646,646]
["South Carolina","District of Columbia",{"$f":"VLOOKUP(B2090,'Info Sheet'!O:P,2,0)","v":"DC"},1062,1062,null,"South Carolina","District of Columbia",{"$f":"VLOOKUP(H2090,'Info Sheet'!O:P,2,0)","v":"DC"},887,887]
["South Carolina","Florida",{"$f":"VLOOKUP(B2091,'Info Sheet'!O:P,2,0)","v":"FL"},43088,43088,null,"South Carolina","Florida",{"$f":"VLOOKUP(H2091,'Info Sheet'!O:P,2,0)","v":"FL"},34078,34078]
["South Carolina","Georgia",{"$f":"VLOOKUP(B2092,'Info Sheet'!O:P,2,0)","v":"GA"},52411,52411,null,"South Carolina","Georgia",{"$f":"VLOOKUP(H2092,'Info Sheet'!O:P,2,0)","v":"GA"},51087,51087]
["South Carolina","Hawaii",{"$f":"VLOOKUP(B2093,'Info Sheet'!O:P,2,0)","v":"HI"},2163,2163,null,"South Carolina","Hawaii",{"$f":"VLOOKUP(H2093,'Info Sheet'!O:P,2,0)","v":"HI"},2647,2647]
["South Carolina","Idaho",{"$f":"VLOOKUP(B2094,'Info Sheet'!O:P,2,0)","v":"ID"},486,486,null,"South Carolina","Idaho",{"$f":"VLOOKUP(H2094,'Info Sheet'!O:P,2,0)","v":"ID"},260,260]
["South Carolina","Illinois",{"$f":"VLOOKUP(B2095,'Info Sheet'!O:P,2,0)","v":"IL"},8749,8749,null,"South Carolina","Illinois",{"$f":"VLOOKUP(H2095,'Info Sheet'!O:P,2,0)","v":"IL"},4730,4730]
["South Carolina","Indiana",{"$f":"VLOOKUP(B2096,'Info Sheet'!O:P,2,0)","v":"IN"},9225,9225,null,"South Carolina","Indiana",{"$f":"VLOOKUP(H2096,'Info Sheet'!O:P,2,0)","v":"IN"},5304,5304]
["South Carolina","Iowa",{"$f":"VLOOKUP(B2097,'Info Sheet'!O:P,2,0)","v":"IA"},2725,2725,null,"South Carolina","Iowa",{"$f":"VLOOKUP(H2097,'Info Sheet'!O:P,2,0)","v":"IA"},1706,1706]
["South Carolina","Kansas",{"$f":"VLOOKUP(B2098,'Info Sheet'!O:P,2,0)","v":"KS"},3463,3463,null,"South Carolina","Kansas",{"$f":"VLOOKUP(H2098,'Info Sheet'!O:P,2,0)","v":"KS"},1795,1795]
["South Carolina","Kentucky",{"$f":"VLOOKUP(B2099,'Info Sheet'!O:P,2,0)","v":"KY"},6589,6589,null,"South Carolina","Kentucky",{"$f":"VLOOKUP(H2099,'Info Sheet'!O:P,2,0)","v":"KY"},4020,4020]
["South Carolina","Louisiana",{"$f":"VLOOKUP(B2100,'Info Sheet'!O:P,2,0)","v":"LA"},5646,5646,null,"South Carolina","Louisiana",{"$f":"VLOOKUP(H2100,'Info Sheet'!O:P,2,0)","v":"LA"},4617,4617]
["South Carolina","Maine",{"$f":"VLOOKUP(B2101,'Info Sheet'!O:P,2,0)","v":"ME"},3332,3332,null,"South Carolina","Maine",{"$f":"VLOOKUP(H2101,'Info Sheet'!O:P,2,0)","v":"ME"},908,908]
["South Carolina","Maryland",{"$f":"VLOOKUP(B2102,'Info Sheet'!O:P,2,0)","v":"MD"},12556,12556,null,"South Carolina","Maryland",{"$f":"VLOOKUP(H2102,'Info Sheet'!O:P,2,0)","v":"MD"},6889,6889]
["South Carolina","Massachusetts",{"$f":"VLOOKUP(B2103,'Info Sheet'!O:P,2,0)","v":"MA"},6808,6808,null,"South Carolina","Massachusetts",{"$f":"VLOOKUP(H2103,'Info Sheet'!O:P,2,0)","v":"MA"},5757,5757]
["South Carolina","Michigan",{"$f":"VLOOKUP(B2104,'Info Sheet'!O:P,2,0)","v":"MI"},11158,11158,null,"South Carolina","Michigan",{"$f":"VLOOKUP(H2104,'Info Sheet'!O:P,2,0)","v":"MI"},5453,5453]
["South Carolina","Minnesota",{"$f":"VLOOKUP(B2105,'Info Sheet'!O:P,2,0)","v":"MN"},2046,2046,null,"South Carolina","Minnesota",{"$f":"VLOOKUP(H2105,'Info Sheet'!O:P,2,0)","v":"MN"},3749,3749]
["South Carolina","Mississippi",{"$f":"VLOOKUP(B2106,'Info Sheet'!O:P,2,0)","v":"MS"},4745,4745,null,"South Carolina","Mississippi",{"$f":"VLOOKUP(H2106,'Info Sheet'!O:P,2,0)","v":"MS"},2854,2854]
["South Carolina","Missouri",{"$f":"VLOOKUP(B2107,'Info Sheet'!O:P,2,0)","v":"MO"},4777,4777,null,"South Carolina","Missouri",{"$f":"VLOOKUP(H2107,'Info Sheet'!O:P,2,0)","v":"MO"},4077,4077]
["South Carolina","Montana",{"$f":"VLOOKUP(B2108,'Info Sheet'!O:P,2,0)","v":"MT"},1008,1008,null,"South Carolina","Montana",{"$f":"VLOOKUP(H2108,'Info Sheet'!O:P,2,0)","v":"MT"},417,417]
["South Carolina","Nebraska",{"$f":"VLOOKUP(B2109,'Info Sheet'!O:P,2,0)","v":"NE"},362,362,null,"South Carolina","Nebraska",{"$f":"VLOOKUP(H2109,'Info Sheet'!O:P,2,0)","v":"NE"},764,764]
["South Carolina","Nevada",{"$f":"VLOOKUP(B2110,'Info Sheet'!O:P,2,0)","v":"NV"},3215,3215,null,"South Carolina","Nevada",{"$f":"VLOOKUP(H2110,'Info Sheet'!O:P,2,0)","v":"NV"},957,957]
["South Carolina","New Hampshire",{"$f":"VLOOKUP(B2111,'Info Sheet'!O:P,2,0)","v":"NH"},1775,1775,null,"South Carolina","New Hampshire",{"$f":"VLOOKUP(H2111,'Info Sheet'!O:P,2,0)","v":"NH"},962,962]
["South Carolina","New Jersey",{"$f":"VLOOKUP(B2112,'Info Sheet'!O:P,2,0)","v":"NJ"},15666,15666,null,"South Carolina","New Jersey",{"$f":"VLOOKUP(H2112,'Info Sheet'!O:P,2,0)","v":"NJ"},5092,5092]
["South Carolina","New Mexico",{"$f":"VLOOKUP(B2113,'Info Sheet'!O:P,2,0)","v":"NM"},3040,3040,null,"South Carolina","New Mexico",{"$f":"VLOOKUP(H2113,'Info Sheet'!O:P,2,0)","v":"NM"},622,622]
["South Carolina","New York",{"$f":"VLOOKUP(B2114,'Info Sheet'!O:P,2,0)","v":"NY"},29975,29975,null,"South Carolina","New York",{"$f":"VLOOKUP(H2114,'Info Sheet'!O:P,2,0)","v":"NY"},20060,20060]
["South Carolina","North Carolina",{"$f":"VLOOKUP(B2115,'Info Sheet'!O:P,2,0)","v":"NC"},68615,68615,null,"South Carolina","North Carolina",{"$f":"VLOOKUP(H2115,'Info Sheet'!O:P,2,0)","v":"NC"},69155,69155]
["South Carolina","North Dakota",{"$f":"VLOOKUP(B2116,'Info Sheet'!O:P,2,0)","v":"ND"},1045,1045,null,"South Carolina","North Dakota",{"$f":"VLOOKUP(H2116,'Info Sheet'!O:P,2,0)","v":"ND"},15,15]
["South Carolina","Ohio",{"$f":"VLOOKUP(B2117,'Info Sheet'!O:P,2,0)","v":"OH"},14598,14598,null,"South Carolina","Ohio",{"$f":"VLOOKUP(H2117,'Info Sheet'!O:P,2,0)","v":"OH"},8750,8750]
["South Carolina","Oklahoma",{"$f":"VLOOKUP(B2118,'Info Sheet'!O:P,2,0)","v":"OK"},3021,3021,null,"South Carolina","Oklahoma",{"$f":"VLOOKUP(H2118,'Info Sheet'!O:P,2,0)","v":"OK"},3180,3180]
["South Carolina","Oregon",{"$f":"VLOOKUP(B2119,'Info Sheet'!O:P,2,0)","v":"OR"},2108,2108,null,"South Carolina","Oregon",{"$f":"VLOOKUP(H2119,'Info Sheet'!O:P,2,0)","v":"OR"},1820,1820]
["South Carolina","Pennsylvania",{"$f":"VLOOKUP(B2120,'Info Sheet'!O:P,2,0)","v":"PA"},14709,14709,null,"South Carolina","Pennsylvania",{"$f":"VLOOKUP(H2120,'Info Sheet'!O:P,2,0)","v":"PA"},7776,7776]
["South Carolina","Rhode Island",{"$f":"VLOOKUP(B2121,'Info Sheet'!O:P,2,0)","v":"RI"},1145,1145,null,"South Carolina","Rhode Island",{"$f":"VLOOKUP(H2121,'Info Sheet'!O:P,2,0)","v":"RI"},765,765]
["South Carolina","South Carolina",{"$f":"VLOOKUP(B2122,'Info Sheet'!O:P,2,0)","v":"SC"},0,0,null,"South Carolina","South Carolina",{"$f":"VLOOKUP(H2122,'Info Sheet'!O:P,2,0)","v":"SC"},0,0]
["South Carolina","South Dakota",{"$f":"VLOOKUP(B2123,'Info Sheet'!O:P,2,0)","v":"SD"},973,973,null,"South Carolina","South Dakota",{"$f":"VLOOKUP(H2123,'Info Sheet'!O:P,2,0)","v":"SD"},687,687]
["South Carolina","Tennessee",{"$f":"VLOOKUP(B2124,'Info Sheet'!O:P,2,0)","v":"TN"},10690,10690,null,"South Carolina","Tennessee",{"$f":"VLOOKUP(H2124,'Info Sheet'!O:P,2,0)","v":"TN"},14596,14596]
["South Carolina","Texas",{"$f":"VLOOKUP(B2125,'Info Sheet'!O:P,2,0)","v":"TX"},18939,18939,null,"South Carolina","Texas",{"$f":"VLOOKUP(H2125,'Info Sheet'!O:P,2,0)","v":"TX"},13794,13794]
["South Carolina","Utah",{"$f":"VLOOKUP(B2126,'Info Sheet'!O:P,2,0)","v":"UT"},1202,1202,null,"South Carolina","Utah",{"$f":"VLOOKUP(H2126,'Info Sheet'!O:P,2,0)","v":"UT"},1207,1207]
["South Carolina","Vermont",{"$f":"VLOOKUP(B2127,'Info Sheet'!O:P,2,0)","v":"VT"},867,867,null,"South Carolina","Vermont",{"$f":"VLOOKUP(H2127,'Info Sheet'!O:P,2,0)","v":"VT"},279,279]
["South Carolina","Virginia",{"$f":"VLOOKUP(B2128,'Info Sheet'!O:P,2,0)","v":"VA"},27042,27042,null,"South Carolina","Virginia",{"$f":"VLOOKUP(H2128,'Info Sheet'!O:P,2,0)","v":"VA"},22887,22887]
["South Carolina","Washington",{"$f":"VLOOKUP(B2129,'Info Sheet'!O:P,2,0)","v":"WA"},7209,7209,null,"South Carolina","Washington",{"$f":"VLOOKUP(H2129,'Info Sheet'!O:P,2,0)","v":"WA"},7293,7293]
["South Carolina","West Virginia",{"$f":"VLOOKUP(B2130,'Info Sheet'!O:P,2,0)","v":"WV"},4215,4215,null,"South Carolina","West Virginia",{"$f":"VLOOKUP(H2130,'Info Sheet'!O:P,2,0)","v":"WV"},3602,3602]
["South Carolina","Wisconsin",{"$f":"VLOOKUP(B2131,'Info Sheet'!O:P,2,0)","v":"WI"},2230,2230,null,"South Carolina","Wisconsin",{"$f":"VLOOKUP(H2131,'Info Sheet'!O:P,2,0)","v":"WI"},2572,2572]
["South Carolina","Wyoming",{"$f":"VLOOKUP(B2132,'Info Sheet'!O:P,2,0)","v":"WY"},1014,1014,null,"South Carolina","Wyoming",{"$f":"VLOOKUP(H2132,'Info Sheet'!O:P,2,0)","v":"WY"},561,561]
["South Carolina","Puerto Rico",{"$f":"VLOOKUP(B2133,'Info Sheet'!O:P,2,0)","v":"PR"},3505,3505,null,"South Carolina","Puerto Rico",{"$f":"VLOOKUP(H2133,'Info Sheet'!O:P,2,0)","v":"PR"},116,116]
["South Dakota","Alabama",{"$f":"VLOOKUP(B2134,'Info Sheet'!O:P,2,0)","v":"AL"},325,325,null,"South Dakota","Alabama",{"$f":"VLOOKUP(H2134,'Info Sheet'!O:P,2,0)","v":"AL"},639,639]
["South Dakota","Alaska",{"$f":"VLOOKUP(B2135,'Info Sheet'!O:P,2,0)","v":"AK"},1434,1434,null,"South Dakota","Alaska",{"$f":"VLOOKUP(H2135,'Info Sheet'!O:P,2,0)","v":"AK"},931,931]
["South Dakota","Arizona",{"$f":"VLOOKUP(B2136,'Info Sheet'!O:P,2,0)","v":"AZ"},2602,2602,null,"South Dakota","Arizona",{"$f":"VLOOKUP(H2136,'Info Sheet'!O:P,2,0)","v":"AZ"},4480,4480]
["South Dakota","Arkansas",{"$f":"VLOOKUP(B2137,'Info Sheet'!O:P,2,0)","v":"AR"},947,947,null,"South Dakota","Arkansas",{"$f":"VLOOKUP(H2137,'Info Sheet'!O:P,2,0)","v":"AR"},916,916]
["South Dakota","California",{"$f":"VLOOKUP(B2138,'Info Sheet'!O:P,2,0)","v":"CA"},4118,4118,null,"South Dakota","California",{"$f":"VLOOKUP(H2138,'Info Sheet'!O:P,2,0)","v":"CA"},3434,3434]
["South Dakota","Colorado",{"$f":"VLOOKUP(B2139,'Info Sheet'!O:P,2,0)","v":"CO"},3572,3572,null,"South Dakota","Colorado",{"$f":"VLOOKUP(H2139,'Info Sheet'!O:P,2,0)","v":"CO"},3943,3943]
["South Dakota","Connecticut",{"$f":"VLOOKUP(B2140,'Info Sheet'!O:P,2,0)","v":"CT"},2,2,null,"South Dakota","Connecticut",{"$f":"VLOOKUP(H2140,'Info Sheet'!O:P,2,0)","v":"CT"},0,0]
["South Dakota","Delaware",{"$f":"VLOOKUP(B2141,'Info Sheet'!O:P,2,0)","v":"DE"},0,0,null,"South Dakota","Delaware",{"$f":"VLOOKUP(H2141,'Info Sheet'!O:P,2,0)","v":"DE"},0,0]
["South Dakota","District of Columbia",{"$f":"VLOOKUP(B2142,'Info Sheet'!O:P,2,0)","v":"DC"},0,0,null,"South Dakota","District of Columbia",{"$f":"VLOOKUP(H2142,'Info Sheet'!O:P,2,0)","v":"DC"},104,104]
["South Dakota","Florida",{"$f":"VLOOKUP(B2143,'Info Sheet'!O:P,2,0)","v":"FL"},1322,1322,null,"South Dakota","Florida",{"$f":"VLOOKUP(H2143,'Info Sheet'!O:P,2,0)","v":"FL"},2216,2216]
["South Dakota","Georgia",{"$f":"VLOOKUP(B2144,'Info Sheet'!O:P,2,0)","v":"GA"},215,215,null,"South Dakota","Georgia",{"$f":"VLOOKUP(H2144,'Info Sheet'!O:P,2,0)","v":"GA"},1350,1350]
["South Dakota","Hawaii",{"$f":"VLOOKUP(B2145,'Info Sheet'!O:P,2,0)","v":"HI"},83,83,null,"South Dakota","Hawaii",{"$f":"VLOOKUP(H2145,'Info Sheet'!O:P,2,0)","v":"HI"},726,726]
["South Dakota","Idaho",{"$f":"VLOOKUP(B2146,'Info Sheet'!O:P,2,0)","v":"ID"},721,721,null,"South Dakota","Idaho",{"$f":"VLOOKUP(H2146,'Info Sheet'!O:P,2,0)","v":"ID"},1256,1256]
["South Dakota","Illinois",{"$f":"VLOOKUP(B2147,'Info Sheet'!O:P,2,0)","v":"IL"},421,421,null,"South Dakota","Illinois",{"$f":"VLOOKUP(H2147,'Info Sheet'!O:P,2,0)","v":"IL"},2004,2004]
["South Dakota","Indiana",{"$f":"VLOOKUP(B2148,'Info Sheet'!O:P,2,0)","v":"IN"},934,934,null,"South Dakota","Indiana",{"$f":"VLOOKUP(H2148,'Info Sheet'!O:P,2,0)","v":"IN"},562,562]
["South Dakota","Iowa",{"$f":"VLOOKUP(B2149,'Info Sheet'!O:P,2,0)","v":"IA"},10733,10733,null,"South Dakota","Iowa",{"$f":"VLOOKUP(H2149,'Info Sheet'!O:P,2,0)","v":"IA"},5992,5992]
["South Dakota","Kansas",{"$f":"VLOOKUP(B2150,'Info Sheet'!O:P,2,0)","v":"KS"},1118,1118,null,"South Dakota","Kansas",{"$f":"VLOOKUP(H2150,'Info Sheet'!O:P,2,0)","v":"KS"},610,610]
["South Dakota","Kentucky",{"$f":"VLOOKUP(B2151,'Info Sheet'!O:P,2,0)","v":"KY"},293,293,null,"South Dakota","Kentucky",{"$f":"VLOOKUP(H2151,'Info Sheet'!O:P,2,0)","v":"KY"},163,163]
["South Dakota","Louisiana",{"$f":"VLOOKUP(B2152,'Info Sheet'!O:P,2,0)","v":"LA"},129,129,null,"South Dakota","Louisiana",{"$f":"VLOOKUP(H2152,'Info Sheet'!O:P,2,0)","v":"LA"},37,37]
["South Dakota","Maine",{"$f":"VLOOKUP(B2153,'Info Sheet'!O:P,2,0)","v":"ME"},0,0,null,"South Dakota","Maine",{"$f":"VLOOKUP(H2153,'Info Sheet'!O:P,2,0)","v":"ME"},42,42]
["South Dakota","Maryland",{"$f":"VLOOKUP(B2154,'Info Sheet'!O:P,2,0)","v":"MD"},314,314,null,"South Dakota","Maryland",{"$f":"VLOOKUP(H2154,'Info Sheet'!O:P,2,0)","v":"MD"},49,49]
["South Dakota","Massachusetts",{"$f":"VLOOKUP(B2155,'Info Sheet'!O:P,2,0)","v":"MA"},581,581,null,"South Dakota","Massachusetts",{"$f":"VLOOKUP(H2155,'Info Sheet'!O:P,2,0)","v":"MA"},238,238]
["South Dakota","Michigan",{"$f":"VLOOKUP(B2156,'Info Sheet'!O:P,2,0)","v":"MI"},1275,1275,null,"South Dakota","Michigan",{"$f":"VLOOKUP(H2156,'Info Sheet'!O:P,2,0)","v":"MI"},1343,1343]
["South Dakota","Minnesota",{"$f":"VLOOKUP(B2157,'Info Sheet'!O:P,2,0)","v":"MN"},13525,13525,null,"South Dakota","Minnesota",{"$f":"VLOOKUP(H2157,'Info Sheet'!O:P,2,0)","v":"MN"},11984,11984]
["South Dakota","Mississippi",{"$f":"VLOOKUP(B2158,'Info Sheet'!O:P,2,0)","v":"MS"},364,364,null,"South Dakota","Mississippi",{"$f":"VLOOKUP(H2158,'Info Sheet'!O:P,2,0)","v":"MS"},141,141]
["South Dakota","Missouri",{"$f":"VLOOKUP(B2159,'Info Sheet'!O:P,2,0)","v":"MO"},1080,1080,null,"South Dakota","Missouri",{"$f":"VLOOKUP(H2159,'Info Sheet'!O:P,2,0)","v":"MO"},1400,1400]
["South Dakota","Montana",{"$f":"VLOOKUP(B2160,'Info Sheet'!O:P,2,0)","v":"MT"},1040,1040,null,"South Dakota","Montana",{"$f":"VLOOKUP(H2160,'Info Sheet'!O:P,2,0)","v":"MT"},713,713]
["South Dakota","Nebraska",{"$f":"VLOOKUP(B2161,'Info Sheet'!O:P,2,0)","v":"NE"},6130,6130,null,"South Dakota","Nebraska",{"$f":"VLOOKUP(H2161,'Info Sheet'!O:P,2,0)","v":"NE"},8442,8442]
["South Dakota","Nevada",{"$f":"VLOOKUP(B2162,'Info Sheet'!O:P,2,0)","v":"NV"},283,283,null,"South Dakota","Nevada",{"$f":"VLOOKUP(H2162,'Info Sheet'!O:P,2,0)","v":"NV"},1791,1791]
["South Dakota","New Hampshire",{"$f":"VLOOKUP(B2163,'Info Sheet'!O:P,2,0)","v":"NH"},0,0,null,"South Dakota","New Hampshire",{"$f":"VLOOKUP(H2163,'Info Sheet'!O:P,2,0)","v":"NH"},86,86]
["South Dakota","New Jersey",{"$f":"VLOOKUP(B2164,'Info Sheet'!O:P,2,0)","v":"NJ"},441,441,null,"South Dakota","New Jersey",{"$f":"VLOOKUP(H2164,'Info Sheet'!O:P,2,0)","v":"NJ"},581,581]
["South Dakota","New Mexico",{"$f":"VLOOKUP(B2165,'Info Sheet'!O:P,2,0)","v":"NM"},726,726,null,"South Dakota","New Mexico",{"$f":"VLOOKUP(H2165,'Info Sheet'!O:P,2,0)","v":"NM"},953,953]
["South Dakota","New York",{"$f":"VLOOKUP(B2166,'Info Sheet'!O:P,2,0)","v":"NY"},1135,1135,null,"South Dakota","New York",{"$f":"VLOOKUP(H2166,'Info Sheet'!O:P,2,0)","v":"NY"},633,633]
["South Dakota","North Carolina",{"$f":"VLOOKUP(B2167,'Info Sheet'!O:P,2,0)","v":"NC"},668,668,null,"South Dakota","North Carolina",{"$f":"VLOOKUP(H2167,'Info Sheet'!O:P,2,0)","v":"NC"},1278,1278]
["South Dakota","North Dakota",{"$f":"VLOOKUP(B2168,'Info Sheet'!O:P,2,0)","v":"ND"},5805,5805,null,"South Dakota","North Dakota",{"$f":"VLOOKUP(H2168,'Info Sheet'!O:P,2,0)","v":"ND"},4085,4085]
["South Dakota","Ohio",{"$f":"VLOOKUP(B2169,'Info Sheet'!O:P,2,0)","v":"OH"},308,308,null,"South Dakota","Ohio",{"$f":"VLOOKUP(H2169,'Info Sheet'!O:P,2,0)","v":"OH"},288,288]
["South Dakota","Oklahoma",{"$f":"VLOOKUP(B2170,'Info Sheet'!O:P,2,0)","v":"OK"},357,357,null,"South Dakota","Oklahoma",{"$f":"VLOOKUP(H2170,'Info Sheet'!O:P,2,0)","v":"OK"},791,791]
["South Dakota","Oregon",{"$f":"VLOOKUP(B2171,'Info Sheet'!O:P,2,0)","v":"OR"},804,804,null,"South Dakota","Oregon",{"$f":"VLOOKUP(H2171,'Info Sheet'!O:P,2,0)","v":"OR"},1277,1277]
["South Dakota","Pennsylvania",{"$f":"VLOOKUP(B2172,'Info Sheet'!O:P,2,0)","v":"PA"},781,781,null,"South Dakota","Pennsylvania",{"$f":"VLOOKUP(H2172,'Info Sheet'!O:P,2,0)","v":"PA"},1267,1267]
["South Dakota","Rhode Island",{"$f":"VLOOKUP(B2173,'Info Sheet'!O:P,2,0)","v":"RI"},7,7,null,"South Dakota","Rhode Island",{"$f":"VLOOKUP(H2173,'Info Sheet'!O:P,2,0)","v":"RI"},48,48]
["South Dakota","South Carolina",{"$f":"VLOOKUP(B2174,'Info Sheet'!O:P,2,0)","v":"SC"},687,687,null,"South Dakota","South Carolina",{"$f":"VLOOKUP(H2174,'Info Sheet'!O:P,2,0)","v":"SC"},973,973]
["South Dakota","South Dakota",{"$f":"VLOOKUP(B2175,'Info Sheet'!O:P,2,0)","v":"SD"},0,0,null,"South Dakota","South Dakota",{"$f":"VLOOKUP(H2175,'Info Sheet'!O:P,2,0)","v":"SD"},0,0]
["South Dakota","Tennessee",{"$f":"VLOOKUP(B2176,'Info Sheet'!O:P,2,0)","v":"TN"},507,507,null,"South Dakota","Tennessee",{"$f":"VLOOKUP(H2176,'Info Sheet'!O:P,2,0)","v":"TN"},244,244]
["South Dakota","Texas",{"$f":"VLOOKUP(B2177,'Info Sheet'!O:P,2,0)","v":"TX"},4205,4205,null,"South Dakota","Texas",{"$f":"VLOOKUP(H2177,'Info Sheet'!O:P,2,0)","v":"TX"},4686,4686]
["South Dakota","Utah",{"$f":"VLOOKUP(B2178,'Info Sheet'!O:P,2,0)","v":"UT"},948,948,null,"South Dakota","Utah",{"$f":"VLOOKUP(H2178,'Info Sheet'!O:P,2,0)","v":"UT"},1050,1050]
["South Dakota","Vermont",{"$f":"VLOOKUP(B2179,'Info Sheet'!O:P,2,0)","v":"VT"},5,5,null,"South Dakota","Vermont",{"$f":"VLOOKUP(H2179,'Info Sheet'!O:P,2,0)","v":"VT"},192,192]
["South Dakota","Virginia",{"$f":"VLOOKUP(B2180,'Info Sheet'!O:P,2,0)","v":"VA"},643,643,null,"South Dakota","Virginia",{"$f":"VLOOKUP(H2180,'Info Sheet'!O:P,2,0)","v":"VA"},1041,1041]
["South Dakota","Washington",{"$f":"VLOOKUP(B2181,'Info Sheet'!O:P,2,0)","v":"WA"},3147,3147,null,"South Dakota","Washington",{"$f":"VLOOKUP(H2181,'Info Sheet'!O:P,2,0)","v":"WA"},1187,1187]
["South Dakota","West Virginia",{"$f":"VLOOKUP(B2182,'Info Sheet'!O:P,2,0)","v":"WV"},131,131,null,"South Dakota","West Virginia",{"$f":"VLOOKUP(H2182,'Info Sheet'!O:P,2,0)","v":"WV"},36,36]
["South Dakota","Wisconsin",{"$f":"VLOOKUP(B2183,'Info Sheet'!O:P,2,0)","v":"WI"},1531,1531,null,"South Dakota","Wisconsin",{"$f":"VLOOKUP(H2183,'Info Sheet'!O:P,2,0)","v":"WI"},1154,1154]
["South Dakota","Wyoming",{"$f":"VLOOKUP(B2184,'Info Sheet'!O:P,2,0)","v":"WY"},2937,2937,null,"South Dakota","Wyoming",{"$f":"VLOOKUP(H2184,'Info Sheet'!O:P,2,0)","v":"WY"},2476,2476]
["South Dakota","Puerto Rico",{"$f":"VLOOKUP(B2185,'Info Sheet'!O:P,2,0)","v":"PR"},134,134,null,"South Dakota","Puerto Rico",{"$f":"VLOOKUP(H2185,'Info Sheet'!O:P,2,0)","v":"PR"},113,113]
["Tennessee","Alabama",{"$f":"VLOOKUP(B2186,'Info Sheet'!O:P,2,0)","v":"AL"},30339,30339,null,"Tennessee","Alabama",{"$f":"VLOOKUP(H2186,'Info Sheet'!O:P,2,0)","v":"AL"},26658,26658]
["Tennessee","Alaska",{"$f":"VLOOKUP(B2187,'Info Sheet'!O:P,2,0)","v":"AK"},2155,2155,null,"Tennessee","Alaska",{"$f":"VLOOKUP(H2187,'Info Sheet'!O:P,2,0)","v":"AK"},1316,1316]
["Tennessee","Arizona",{"$f":"VLOOKUP(B2188,'Info Sheet'!O:P,2,0)","v":"AZ"},5887,5887,null,"Tennessee","Arizona",{"$f":"VLOOKUP(H2188,'Info Sheet'!O:P,2,0)","v":"AZ"},9816,9816]
["Tennessee","Arkansas",{"$f":"VLOOKUP(B2189,'Info Sheet'!O:P,2,0)","v":"AR"},15435,15435,null,"Tennessee","Arkansas",{"$f":"VLOOKUP(H2189,'Info Sheet'!O:P,2,0)","v":"AR"},13310,13310]
["Tennessee","California",{"$f":"VLOOKUP(B2190,'Info Sheet'!O:P,2,0)","v":"CA"},23545,23545,null,"Tennessee","California",{"$f":"VLOOKUP(H2190,'Info Sheet'!O:P,2,0)","v":"CA"},18912,18912]
["Tennessee","Colorado",{"$f":"VLOOKUP(B2191,'Info Sheet'!O:P,2,0)","v":"CO"},5703,5703,null,"Tennessee","Colorado",{"$f":"VLOOKUP(H2191,'Info Sheet'!O:P,2,0)","v":"CO"},7356,7356]
["Tennessee","Connecticut",{"$f":"VLOOKUP(B2192,'Info Sheet'!O:P,2,0)","v":"CT"},1851,1851,null,"Tennessee","Connecticut",{"$f":"VLOOKUP(H2192,'Info Sheet'!O:P,2,0)","v":"CT"},813,813]
["Tennessee","Delaware",{"$f":"VLOOKUP(B2193,'Info Sheet'!O:P,2,0)","v":"DE"},579,579,null,"Tennessee","Delaware",{"$f":"VLOOKUP(H2193,'Info Sheet'!O:P,2,0)","v":"DE"},711,711]
["Tennessee","District of Columbia",{"$f":"VLOOKUP(B2194,'Info Sheet'!O:P,2,0)","v":"DC"},881,881,null,"Tennessee","District of Columbia",{"$f":"VLOOKUP(H2194,'Info Sheet'!O:P,2,0)","v":"DC"},1589,1589]
["Tennessee","Florida",{"$f":"VLOOKUP(B2195,'Info Sheet'!O:P,2,0)","v":"FL"},45300,45300,null,"Tennessee","Florida",{"$f":"VLOOKUP(H2195,'Info Sheet'!O:P,2,0)","v":"FL"},39608,39608]
["Tennessee","Georgia",{"$f":"VLOOKUP(B2196,'Info Sheet'!O:P,2,0)","v":"GA"},44584,44584,null,"Tennessee","Georgia",{"$f":"VLOOKUP(H2196,'Info Sheet'!O:P,2,0)","v":"GA"},48949,48949]
["Tennessee","Hawaii",{"$f":"VLOOKUP(B2197,'Info Sheet'!O:P,2,0)","v":"HI"},1480,1480,null,"Tennessee","Hawaii",{"$f":"VLOOKUP(H2197,'Info Sheet'!O:P,2,0)","v":"HI"},2092,2092]
["Tennessee","Idaho",{"$f":"VLOOKUP(B2198,'Info Sheet'!O:P,2,0)","v":"ID"},1120,1120,null,"Tennessee","Idaho",{"$f":"VLOOKUP(H2198,'Info Sheet'!O:P,2,0)","v":"ID"},3406,3406]
["Tennessee","Illinois",{"$f":"VLOOKUP(B2199,'Info Sheet'!O:P,2,0)","v":"IL"},18849,18849,null,"Tennessee","Illinois",{"$f":"VLOOKUP(H2199,'Info Sheet'!O:P,2,0)","v":"IL"},11870,11870]
["Tennessee","Indiana",{"$f":"VLOOKUP(B2200,'Info Sheet'!O:P,2,0)","v":"IN"},16000,16000,null,"Tennessee","Indiana",{"$f":"VLOOKUP(H2200,'Info Sheet'!O:P,2,0)","v":"IN"},10519,10519]
["Tennessee","Iowa",{"$f":"VLOOKUP(B2201,'Info Sheet'!O:P,2,0)","v":"IA"},2056,2056,null,"Tennessee","Iowa",{"$f":"VLOOKUP(H2201,'Info Sheet'!O:P,2,0)","v":"IA"},3388,3388]
["Tennessee","Kansas",{"$f":"VLOOKUP(B2202,'Info Sheet'!O:P,2,0)","v":"KS"},6941,6941,null,"Tennessee","Kansas",{"$f":"VLOOKUP(H2202,'Info Sheet'!O:P,2,0)","v":"KS"},3760,3760]
["Tennessee","Kentucky",{"$f":"VLOOKUP(B2203,'Info Sheet'!O:P,2,0)","v":"KY"},38274,38274,null,"Tennessee","Kentucky",{"$f":"VLOOKUP(H2203,'Info Sheet'!O:P,2,0)","v":"KY"},38069,38069]
["Tennessee","Louisiana",{"$f":"VLOOKUP(B2204,'Info Sheet'!O:P,2,0)","v":"LA"},6955,6955,null,"Tennessee","Louisiana",{"$f":"VLOOKUP(H2204,'Info Sheet'!O:P,2,0)","v":"LA"},6696,6696]
["Tennessee","Maine",{"$f":"VLOOKUP(B2205,'Info Sheet'!O:P,2,0)","v":"ME"},1133,1133,null,"Tennessee","Maine",{"$f":"VLOOKUP(H2205,'Info Sheet'!O:P,2,0)","v":"ME"},1628,1628]
["Tennessee","Maryland",{"$f":"VLOOKUP(B2206,'Info Sheet'!O:P,2,0)","v":"MD"},4328,4328,null,"Tennessee","Maryland",{"$f":"VLOOKUP(H2206,'Info Sheet'!O:P,2,0)","v":"MD"},6411,6411]
["Tennessee","Massachusetts",{"$f":"VLOOKUP(B2207,'Info Sheet'!O:P,2,0)","v":"MA"},4948,4948,null,"Tennessee","Massachusetts",{"$f":"VLOOKUP(H2207,'Info Sheet'!O:P,2,0)","v":"MA"},2112,2112]
["Tennessee","Michigan",{"$f":"VLOOKUP(B2208,'Info Sheet'!O:P,2,0)","v":"MI"},16019,16019,null,"Tennessee","Michigan",{"$f":"VLOOKUP(H2208,'Info Sheet'!O:P,2,0)","v":"MI"},10818,10818]
["Tennessee","Minnesota",{"$f":"VLOOKUP(B2209,'Info Sheet'!O:P,2,0)","v":"MN"},3127,3127,null,"Tennessee","Minnesota",{"$f":"VLOOKUP(H2209,'Info Sheet'!O:P,2,0)","v":"MN"},3767,3767]
["Tennessee","Mississippi",{"$f":"VLOOKUP(B2210,'Info Sheet'!O:P,2,0)","v":"MS"},28769,28769,null,"Tennessee","Mississippi",{"$f":"VLOOKUP(H2210,'Info Sheet'!O:P,2,0)","v":"MS"},27484,27484]
["Tennessee","Missouri",{"$f":"VLOOKUP(B2211,'Info Sheet'!O:P,2,0)","v":"MO"},10831,10831,null,"Tennessee","Missouri",{"$f":"VLOOKUP(H2211,'Info Sheet'!O:P,2,0)","v":"MO"},9109,9109]
["Tennessee","Montana",{"$f":"VLOOKUP(B2212,'Info Sheet'!O:P,2,0)","v":"MT"},641,641,null,"Tennessee","Montana",{"$f":"VLOOKUP(H2212,'Info Sheet'!O:P,2,0)","v":"MT"},422,422]
["Tennessee","Nebraska",{"$f":"VLOOKUP(B2213,'Info Sheet'!O:P,2,0)","v":"NE"},1250,1250,null,"Tennessee","Nebraska",{"$f":"VLOOKUP(H2213,'Info Sheet'!O:P,2,0)","v":"NE"},535,535]
["Tennessee","Nevada",{"$f":"VLOOKUP(B2214,'Info Sheet'!O:P,2,0)","v":"NV"},4051,4051,null,"Tennessee","Nevada",{"$f":"VLOOKUP(H2214,'Info Sheet'!O:P,2,0)","v":"NV"},2501,2501]
["Tennessee","New Hampshire",{"$f":"VLOOKUP(B2215,'Info Sheet'!O:P,2,0)","v":"NH"},600,600,null,"Tennessee","New Hampshire",{"$f":"VLOOKUP(H2215,'Info Sheet'!O:P,2,0)","v":"NH"},575,575]
["Tennessee","New Jersey",{"$f":"VLOOKUP(B2216,'Info Sheet'!O:P,2,0)","v":"NJ"},4409,4409,null,"Tennessee","New Jersey",{"$f":"VLOOKUP(H2216,'Info Sheet'!O:P,2,0)","v":"NJ"},3664,3664]
["Tennessee","New Mexico",{"$f":"VLOOKUP(B2217,'Info Sheet'!O:P,2,0)","v":"NM"},1753,1753,null,"Tennessee","New Mexico",{"$f":"VLOOKUP(H2217,'Info Sheet'!O:P,2,0)","v":"NM"},2506,2506]
["Tennessee","New York",{"$f":"VLOOKUP(B2218,'Info Sheet'!O:P,2,0)","v":"NY"},16000,16000,null,"Tennessee","New York",{"$f":"VLOOKUP(H2218,'Info Sheet'!O:P,2,0)","v":"NY"},5669,5669]
["Tennessee","North Carolina",{"$f":"VLOOKUP(B2219,'Info Sheet'!O:P,2,0)","v":"NC"},22359,22359,null,"Tennessee","North Carolina",{"$f":"VLOOKUP(H2219,'Info Sheet'!O:P,2,0)","v":"NC"},23972,23972]
["Tennessee","North Dakota",{"$f":"VLOOKUP(B2220,'Info Sheet'!O:P,2,0)","v":"ND"},57,57,null,"Tennessee","North Dakota",{"$f":"VLOOKUP(H2220,'Info Sheet'!O:P,2,0)","v":"ND"},1132,1132]
["Tennessee","Ohio",{"$f":"VLOOKUP(B2221,'Info Sheet'!O:P,2,0)","v":"OH"},16606,16606,null,"Tennessee","Ohio",{"$f":"VLOOKUP(H2221,'Info Sheet'!O:P,2,0)","v":"OH"},14997,14997]
["Tennessee","Oklahoma",{"$f":"VLOOKUP(B2222,'Info Sheet'!O:P,2,0)","v":"OK"},6330,6330,null,"Tennessee","Oklahoma",{"$f":"VLOOKUP(H2222,'Info Sheet'!O:P,2,0)","v":"OK"},6043,6043]
["Tennessee","Oregon",{"$f":"VLOOKUP(B2223,'Info Sheet'!O:P,2,0)","v":"OR"},2236,2236,null,"Tennessee","Oregon",{"$f":"VLOOKUP(H2223,'Info Sheet'!O:P,2,0)","v":"OR"},2262,2262]
["Tennessee","Pennsylvania",{"$f":"VLOOKUP(B2224,'Info Sheet'!O:P,2,0)","v":"PA"},9251,9251,null,"Tennessee","Pennsylvania",{"$f":"VLOOKUP(H2224,'Info Sheet'!O:P,2,0)","v":"PA"},6626,6626]
["Tennessee","Rhode Island",{"$f":"VLOOKUP(B2225,'Info Sheet'!O:P,2,0)","v":"RI"},845,845,null,"Tennessee","Rhode Island",{"$f":"VLOOKUP(H2225,'Info Sheet'!O:P,2,0)","v":"RI"},401,401]
["Tennessee","South Carolina",{"$f":"VLOOKUP(B2226,'Info Sheet'!O:P,2,0)","v":"SC"},14596,14596,null,"Tennessee","South Carolina",{"$f":"VLOOKUP(H2226,'Info Sheet'!O:P,2,0)","v":"SC"},10690,10690]
["Tennessee","South Dakota",{"$f":"VLOOKUP(B2227,'Info Sheet'!O:P,2,0)","v":"SD"},244,244,null,"Tennessee","South Dakota",{"$f":"VLOOKUP(H2227,'Info Sheet'!O:P,2,0)","v":"SD"},507,507]
["Tennessee","Tennessee",{"$f":"VLOOKUP(B2228,'Info Sheet'!O:P,2,0)","v":"TN"},0,0,null,"Tennessee","Tennessee",{"$f":"VLOOKUP(H2228,'Info Sheet'!O:P,2,0)","v":"TN"},0,0]
["Tennessee","Texas",{"$f":"VLOOKUP(B2229,'Info Sheet'!O:P,2,0)","v":"TX"},24426,24426,null,"Tennessee","Texas",{"$f":"VLOOKUP(H2229,'Info Sheet'!O:P,2,0)","v":"TX"},34200,34200]
["Tennessee","Utah",{"$f":"VLOOKUP(B2230,'Info Sheet'!O:P,2,0)","v":"UT"},3046,3046,null,"Tennessee","Utah",{"$f":"VLOOKUP(H2230,'Info Sheet'!O:P,2,0)","v":"UT"},1871,1871]
["Tennessee","Vermont",{"$f":"VLOOKUP(B2231,'Info Sheet'!O:P,2,0)","v":"VT"},171,171,null,"Tennessee","Vermont",{"$f":"VLOOKUP(H2231,'Info Sheet'!O:P,2,0)","v":"VT"},645,645]
["Tennessee","Virginia",{"$f":"VLOOKUP(B2232,'Info Sheet'!O:P,2,0)","v":"VA"},22756,22756,null,"Tennessee","Virginia",{"$f":"VLOOKUP(H2232,'Info Sheet'!O:P,2,0)","v":"VA"},19513,19513]
["Tennessee","Washington",{"$f":"VLOOKUP(B2233,'Info Sheet'!O:P,2,0)","v":"WA"},6140,6140,null,"Tennessee","Washington",{"$f":"VLOOKUP(H2233,'Info Sheet'!O:P,2,0)","v":"WA"},6337,6337]
["Tennessee","West Virginia",{"$f":"VLOOKUP(B2234,'Info Sheet'!O:P,2,0)","v":"WV"},6834,6834,null,"Tennessee","West Virginia",{"$f":"VLOOKUP(H2234,'Info Sheet'!O:P,2,0)","v":"WV"},2767,2767]
["Tennessee","Wisconsin",{"$f":"VLOOKUP(B2235,'Info Sheet'!O:P,2,0)","v":"WI"},5666,5666,null,"Tennessee","Wisconsin",{"$f":"VLOOKUP(H2235,'Info Sheet'!O:P,2,0)","v":"WI"},2651,2651]
["Tennessee","Wyoming",{"$f":"VLOOKUP(B2236,'Info Sheet'!O:P,2,0)","v":"WY"},489,489,null,"Tennessee","Wyoming",{"$f":"VLOOKUP(H2236,'Info Sheet'!O:P,2,0)","v":"WY"},568,568]
["Tennessee","Puerto Rico",{"$f":"VLOOKUP(B2237,'Info Sheet'!O:P,2,0)","v":"PR"},1800,1800,null,"Tennessee","Puerto Rico",{"$f":"VLOOKUP(H2237,'Info Sheet'!O:P,2,0)","v":"PR"},269,269]
["Texas","Alabama",{"$f":"VLOOKUP(B2238,'Info Sheet'!O:P,2,0)","v":"AL"},27376,27376,null,"Texas","Alabama",{"$f":"VLOOKUP(H2238,'Info Sheet'!O:P,2,0)","v":"AL"},21941,21941]
["Texas","Alaska",{"$f":"VLOOKUP(B2239,'Info Sheet'!O:P,2,0)","v":"AK"},25042,25042,null,"Texas","Alaska",{"$f":"VLOOKUP(H2239,'Info Sheet'!O:P,2,0)","v":"AK"},8103,8103]
["Texas","Arizona",{"$f":"VLOOKUP(B2240,'Info Sheet'!O:P,2,0)","v":"AZ"},55502,55502,null,"Texas","Arizona",{"$f":"VLOOKUP(H2240,'Info Sheet'!O:P,2,0)","v":"AZ"},42181,42181]
["Texas","Arkansas",{"$f":"VLOOKUP(B2241,'Info Sheet'!O:P,2,0)","v":"AR"},45493,45493,null,"Texas","Arkansas",{"$f":"VLOOKUP(H2241,'Info Sheet'!O:P,2,0)","v":"AR"},40241,40241]
["Texas","California",{"$f":"VLOOKUP(B2242,'Info Sheet'!O:P,2,0)","v":"CA"},190653,190653,null,"Texas","California",{"$f":"VLOOKUP(H2242,'Info Sheet'!O:P,2,0)","v":"CA"},116674,116674]
["Texas","Colorado",{"$f":"VLOOKUP(B2243,'Info Sheet'!O:P,2,0)","v":"CO"},52103,52103,null,"Texas","Colorado",{"$f":"VLOOKUP(H2243,'Info Sheet'!O:P,2,0)","v":"CO"},61998,61998]
["Texas","Connecticut",{"$f":"VLOOKUP(B2244,'Info Sheet'!O:P,2,0)","v":"CT"},6620,6620,null,"Texas","Connecticut",{"$f":"VLOOKUP(H2244,'Info Sheet'!O:P,2,0)","v":"CT"},6380,6380]
["Texas","Delaware",{"$f":"VLOOKUP(B2245,'Info Sheet'!O:P,2,0)","v":"DE"},1769,1769,null,"Texas","Delaware",{"$f":"VLOOKUP(H2245,'Info Sheet'!O:P,2,0)","v":"DE"},1194,1194]
["Texas","District of Columbia",{"$f":"VLOOKUP(B2246,'Info Sheet'!O:P,2,0)","v":"DC"},3925,3925,null,"Texas","District of Columbia",{"$f":"VLOOKUP(H2246,'Info Sheet'!O:P,2,0)","v":"DC"},3736,3736]
["Texas","Florida",{"$f":"VLOOKUP(B2247,'Info Sheet'!O:P,2,0)","v":"FL"},93704,93704,null,"Texas","Florida",{"$f":"VLOOKUP(H2247,'Info Sheet'!O:P,2,0)","v":"FL"},78135,78135]
["Texas","Georgia",{"$f":"VLOOKUP(B2248,'Info Sheet'!O:P,2,0)","v":"GA"},54434,54434,null,"Texas","Georgia",{"$f":"VLOOKUP(H2248,'Info Sheet'!O:P,2,0)","v":"GA"},43382,43382]
["Texas","Hawaii",{"$f":"VLOOKUP(B2249,'Info Sheet'!O:P,2,0)","v":"HI"},14864,14864,null,"Texas","Hawaii",{"$f":"VLOOKUP(H2249,'Info Sheet'!O:P,2,0)","v":"HI"},13001,13001]
["Texas","Idaho",{"$f":"VLOOKUP(B2250,'Info Sheet'!O:P,2,0)","v":"ID"},8799,8799,null,"Texas","Idaho",{"$f":"VLOOKUP(H2250,'Info Sheet'!O:P,2,0)","v":"ID"},4401,4401]
["Texas","Illinois",{"$f":"VLOOKUP(B2251,'Info Sheet'!O:P,2,0)","v":"IL"},54905,54905,null,"Texas","Illinois",{"$f":"VLOOKUP(H2251,'Info Sheet'!O:P,2,0)","v":"IL"},40036,40036]
["Texas","Indiana",{"$f":"VLOOKUP(B2252,'Info Sheet'!O:P,2,0)","v":"IN"},25514,25514,null,"Texas","Indiana",{"$f":"VLOOKUP(H2252,'Info Sheet'!O:P,2,0)","v":"IN"},17151,17151]
["Texas","Iowa",{"$f":"VLOOKUP(B2253,'Info Sheet'!O:P,2,0)","v":"IA"},12116,12116,null,"Texas","Iowa",{"$f":"VLOOKUP(H2253,'Info Sheet'!O:P,2,0)","v":"IA"},10018,10018]
["Texas","Kansas",{"$f":"VLOOKUP(B2254,'Info Sheet'!O:P,2,0)","v":"KS"},37063,37063,null,"Texas","Kansas",{"$f":"VLOOKUP(H2254,'Info Sheet'!O:P,2,0)","v":"KS"},24260,24260]
["Texas","Kentucky",{"$f":"VLOOKUP(B2255,'Info Sheet'!O:P,2,0)","v":"KY"},17809,17809,null,"Texas","Kentucky",{"$f":"VLOOKUP(H2255,'Info Sheet'!O:P,2,0)","v":"KY"},13764,13764]
["Texas","Louisiana",{"$f":"VLOOKUP(B2256,'Info Sheet'!O:P,2,0)","v":"LA"},86010,86010,null,"Texas","Louisiana",{"$f":"VLOOKUP(H2256,'Info Sheet'!O:P,2,0)","v":"LA"},80914,80914]
["Texas","Maine",{"$f":"VLOOKUP(B2257,'Info Sheet'!O:P,2,0)","v":"ME"},3968,3968,null,"Texas","Maine",{"$f":"VLOOKUP(H2257,'Info Sheet'!O:P,2,0)","v":"ME"},2591,2591]
["Texas","Maryland",{"$f":"VLOOKUP(B2258,'Info Sheet'!O:P,2,0)","v":"MD"},19136,19136,null,"Texas","Maryland",{"$f":"VLOOKUP(H2258,'Info Sheet'!O:P,2,0)","v":"MD"},15114,15114]
["Texas","Massachusetts",{"$f":"VLOOKUP(B2259,'Info Sheet'!O:P,2,0)","v":"MA"},16987,16987,null,"Texas","Massachusetts",{"$f":"VLOOKUP(H2259,'Info Sheet'!O:P,2,0)","v":"MA"},15970,15970]
["Texas","Michigan",{"$f":"VLOOKUP(B2260,'Info Sheet'!O:P,2,0)","v":"MI"},38930,38930,null,"Texas","Michigan",{"$f":"VLOOKUP(H2260,'Info Sheet'!O:P,2,0)","v":"MI"},25757,25757]
["Texas","Minnesota",{"$f":"VLOOKUP(B2261,'Info Sheet'!O:P,2,0)","v":"MN"},16582,16582,null,"Texas","Minnesota",{"$f":"VLOOKUP(H2261,'Info Sheet'!O:P,2,0)","v":"MN"},9682,9682]
["Texas","Mississippi",{"$f":"VLOOKUP(B2262,'Info Sheet'!O:P,2,0)","v":"MS"},20223,20223,null,"Texas","Mississippi",{"$f":"VLOOKUP(H2262,'Info Sheet'!O:P,2,0)","v":"MS"},18228,18228]
["Texas","Missouri",{"$f":"VLOOKUP(B2263,'Info Sheet'!O:P,2,0)","v":"MO"},37853,37853,null,"Texas","Missouri",{"$f":"VLOOKUP(H2263,'Info Sheet'!O:P,2,0)","v":"MO"},32455,32455]
["Texas","Montana",{"$f":"VLOOKUP(B2264,'Info Sheet'!O:P,2,0)","v":"MT"},3377,3377,null,"Texas","Montana",{"$f":"VLOOKUP(H2264,'Info Sheet'!O:P,2,0)","v":"MT"},4823,4823]
["Texas","Nebraska",{"$f":"VLOOKUP(B2265,'Info Sheet'!O:P,2,0)","v":"NE"},13524,13524,null,"Texas","Nebraska",{"$f":"VLOOKUP(H2265,'Info Sheet'!O:P,2,0)","v":"NE"},12918,12918]
["Texas","Nevada",{"$f":"VLOOKUP(B2266,'Info Sheet'!O:P,2,0)","v":"NV"},24383,24383,null,"Texas","Nevada",{"$f":"VLOOKUP(H2266,'Info Sheet'!O:P,2,0)","v":"NV"},17957,17957]
["Texas","New Hampshire",{"$f":"VLOOKUP(B2267,'Info Sheet'!O:P,2,0)","v":"NH"},2287,2287,null,"Texas","New Hampshire",{"$f":"VLOOKUP(H2267,'Info Sheet'!O:P,2,0)","v":"NH"},4325,4325]
["Texas","New Jersey",{"$f":"VLOOKUP(B2268,'Info Sheet'!O:P,2,0)","v":"NJ"},21433,21433,null,"Texas","New Jersey",{"$f":"VLOOKUP(H2268,'Info Sheet'!O:P,2,0)","v":"NJ"},9744,9744]
["Texas","New Mexico",{"$f":"VLOOKUP(B2269,'Info Sheet'!O:P,2,0)","v":"NM"},43739,43739,null,"Texas","New Mexico",{"$f":"VLOOKUP(H2269,'Info Sheet'!O:P,2,0)","v":"NM"},44099,44099]
["Texas","New York",{"$f":"VLOOKUP(B2270,'Info Sheet'!O:P,2,0)","v":"NY"},63053,63053,null,"Texas","New York",{"$f":"VLOOKUP(H2270,'Info Sheet'!O:P,2,0)","v":"NY"},30074,30074]
["Texas","North Carolina",{"$f":"VLOOKUP(B2271,'Info Sheet'!O:P,2,0)","v":"NC"},49799,49799,null,"Texas","North Carolina",{"$f":"VLOOKUP(H2271,'Info Sheet'!O:P,2,0)","v":"NC"},33588,33588]
["Texas","North Dakota",{"$f":"VLOOKUP(B2272,'Info Sheet'!O:P,2,0)","v":"ND"},4250,4250,null,"Texas","North Dakota",{"$f":"VLOOKUP(H2272,'Info Sheet'!O:P,2,0)","v":"ND"},5789,5789]
["Texas","Ohio",{"$f":"VLOOKUP(B2273,'Info Sheet'!O:P,2,0)","v":"OH"},29360,29360,null,"Texas","Ohio",{"$f":"VLOOKUP(H2273,'Info Sheet'!O:P,2,0)","v":"OH"},31212,31212]
["Texas","Oklahoma",{"$f":"VLOOKUP(B2274,'Info Sheet'!O:P,2,0)","v":"OK"},68555,68555,null,"Texas","Oklahoma",{"$f":"VLOOKUP(H2274,'Info Sheet'!O:P,2,0)","v":"OK"},85341,85341]
["Texas","Oregon",{"$f":"VLOOKUP(B2275,'Info Sheet'!O:P,2,0)","v":"OR"},11943,11943,null,"Texas","Oregon",{"$f":"VLOOKUP(H2275,'Info Sheet'!O:P,2,0)","v":"OR"},11671,11671]
["Texas","Pennsylvania",{"$f":"VLOOKUP(B2276,'Info Sheet'!O:P,2,0)","v":"PA"},26717,26717,null,"Texas","Pennsylvania",{"$f":"VLOOKUP(H2276,'Info Sheet'!O:P,2,0)","v":"PA"},21552,21552]
["Texas","Rhode Island",{"$f":"VLOOKUP(B2277,'Info Sheet'!O:P,2,0)","v":"RI"},4035,4035,null,"Texas","Rhode Island",{"$f":"VLOOKUP(H2277,'Info Sheet'!O:P,2,0)","v":"RI"},1708,1708]
["Texas","South Carolina",{"$f":"VLOOKUP(B2278,'Info Sheet'!O:P,2,0)","v":"SC"},13794,13794,null,"Texas","South Carolina",{"$f":"VLOOKUP(H2278,'Info Sheet'!O:P,2,0)","v":"SC"},18939,18939]
["Texas","South Dakota",{"$f":"VLOOKUP(B2279,'Info Sheet'!O:P,2,0)","v":"SD"},4686,4686,null,"Texas","South Dakota",{"$f":"VLOOKUP(H2279,'Info Sheet'!O:P,2,0)","v":"SD"},4205,4205]
["Texas","Tennessee",{"$f":"VLOOKUP(B2280,'Info Sheet'!O:P,2,0)","v":"TN"},34200,34200,null,"Texas","Tennessee",{"$f":"VLOOKUP(H2280,'Info Sheet'!O:P,2,0)","v":"TN"},24426,24426]
["Texas","Texas",{"$f":"VLOOKUP(B2281,'Info Sheet'!O:P,2,0)","v":"TX"},0,0,null,"Texas","Texas",{"$f":"VLOOKUP(H2281,'Info Sheet'!O:P,2,0)","v":"TX"},0,0]
["Texas","Utah",{"$f":"VLOOKUP(B2282,'Info Sheet'!O:P,2,0)","v":"UT"},13967,13967,null,"Texas","Utah",{"$f":"VLOOKUP(H2282,'Info Sheet'!O:P,2,0)","v":"UT"},13417,13417]
["Texas","Vermont",{"$f":"VLOOKUP(B2283,'Info Sheet'!O:P,2,0)","v":"VT"},514,514,null,"Texas","Vermont",{"$f":"VLOOKUP(H2283,'Info Sheet'!O:P,2,0)","v":"VT"},1243,1243]
["Texas","Virginia",{"$f":"VLOOKUP(B2284,'Info Sheet'!O:P,2,0)","v":"VA"},44678,44678,null,"Texas","Virginia",{"$f":"VLOOKUP(H2284,'Info Sheet'!O:P,2,0)","v":"VA"},37537,37537]
["Texas","Washington",{"$f":"VLOOKUP(B2285,'Info Sheet'!O:P,2,0)","v":"WA"},35802,35802,null,"Texas","Washington",{"$f":"VLOOKUP(H2285,'Info Sheet'!O:P,2,0)","v":"WA"},41025,41025]
["Texas","West Virginia",{"$f":"VLOOKUP(B2286,'Info Sheet'!O:P,2,0)","v":"WV"},4613,4613,null,"Texas","West Virginia",{"$f":"VLOOKUP(H2286,'Info Sheet'!O:P,2,0)","v":"WV"},3164,3164]
["Texas","Wisconsin",{"$f":"VLOOKUP(B2287,'Info Sheet'!O:P,2,0)","v":"WI"},16101,16101,null,"Texas","Wisconsin",{"$f":"VLOOKUP(H2287,'Info Sheet'!O:P,2,0)","v":"WI"},7788,7788]
["Texas","Wyoming",{"$f":"VLOOKUP(B2288,'Info Sheet'!O:P,2,0)","v":"WY"},6846,6846,null,"Texas","Wyoming",{"$f":"VLOOKUP(H2288,'Info Sheet'!O:P,2,0)","v":"WY"},4815,4815]
["Texas","Puerto Rico",{"$f":"VLOOKUP(B2289,'Info Sheet'!O:P,2,0)","v":"PR"},13840,13840,null,"Texas","Puerto Rico",{"$f":"VLOOKUP(H2289,'Info Sheet'!O:P,2,0)","v":"PR"},1781,1781]
["Utah","Alabama",{"$f":"VLOOKUP(B2290,'Info Sheet'!O:P,2,0)","v":"AL"},705,705,null,"Utah","Alabama",{"$f":"VLOOKUP(H2290,'Info Sheet'!O:P,2,0)","v":"AL"},2215,2215]
["Utah","Alaska",{"$f":"VLOOKUP(B2291,'Info Sheet'!O:P,2,0)","v":"AK"},6768,6768,null,"Utah","Alaska",{"$f":"VLOOKUP(H2291,'Info Sheet'!O:P,2,0)","v":"AK"},2266,2266]
["Utah","Arizona",{"$f":"VLOOKUP(B2292,'Info Sheet'!O:P,2,0)","v":"AZ"},22698,22698,null,"Utah","Arizona",{"$f":"VLOOKUP(H2292,'Info Sheet'!O:P,2,0)","v":"AZ"},23657,23657]
["Utah","Arkansas",{"$f":"VLOOKUP(B2293,'Info Sheet'!O:P,2,0)","v":"AR"},1099,1099,null,"Utah","Arkansas",{"$f":"VLOOKUP(H2293,'Info Sheet'!O:P,2,0)","v":"AR"},630,630]
["Utah","California",{"$f":"VLOOKUP(B2294,'Info Sheet'!O:P,2,0)","v":"CA"},45710,45710,null,"Utah","California",{"$f":"VLOOKUP(H2294,'Info Sheet'!O:P,2,0)","v":"CA"},31769,31769]
["Utah","Colorado",{"$f":"VLOOKUP(B2295,'Info Sheet'!O:P,2,0)","v":"CO"},13323,13323,null,"Utah","Colorado",{"$f":"VLOOKUP(H2295,'Info Sheet'!O:P,2,0)","v":"CO"},15002,15002]
["Utah","Connecticut",{"$f":"VLOOKUP(B2296,'Info Sheet'!O:P,2,0)","v":"CT"},823,823,null,"Utah","Connecticut",{"$f":"VLOOKUP(H2296,'Info Sheet'!O:P,2,0)","v":"CT"},443,443]
["Utah","Delaware",{"$f":"VLOOKUP(B2297,'Info Sheet'!O:P,2,0)","v":"DE"},0,0,null,"Utah","Delaware",{"$f":"VLOOKUP(H2297,'Info Sheet'!O:P,2,0)","v":"DE"},641,641]
["Utah","District of Columbia",{"$f":"VLOOKUP(B2298,'Info Sheet'!O:P,2,0)","v":"DC"},270,270,null,"Utah","District of Columbia",{"$f":"VLOOKUP(H2298,'Info Sheet'!O:P,2,0)","v":"DC"},191,191]
["Utah","Florida",{"$f":"VLOOKUP(B2299,'Info Sheet'!O:P,2,0)","v":"FL"},6168,6168,null,"Utah","Florida",{"$f":"VLOOKUP(H2299,'Info Sheet'!O:P,2,0)","v":"FL"},7675,7675]
["Utah","Georgia",{"$f":"VLOOKUP(B2300,'Info Sheet'!O:P,2,0)","v":"GA"},3160,3160,null,"Utah","Georgia",{"$f":"VLOOKUP(H2300,'Info Sheet'!O:P,2,0)","v":"GA"},1193,1193]
["Utah","Hawaii",{"$f":"VLOOKUP(B2301,'Info Sheet'!O:P,2,0)","v":"HI"},4069,4069,null,"Utah","Hawaii",{"$f":"VLOOKUP(H2301,'Info Sheet'!O:P,2,0)","v":"HI"},3690,3690]
["Utah","Idaho",{"$f":"VLOOKUP(B2302,'Info Sheet'!O:P,2,0)","v":"ID"},20359,20359,null,"Utah","Idaho",{"$f":"VLOOKUP(H2302,'Info Sheet'!O:P,2,0)","v":"ID"},20690,20690]
["Utah","Illinois",{"$f":"VLOOKUP(B2303,'Info Sheet'!O:P,2,0)","v":"IL"},4866,4866,null,"Utah","Illinois",{"$f":"VLOOKUP(H2303,'Info Sheet'!O:P,2,0)","v":"IL"},2763,2763]
["Utah","Indiana",{"$f":"VLOOKUP(B2304,'Info Sheet'!O:P,2,0)","v":"IN"},1537,1537,null,"Utah","Indiana",{"$f":"VLOOKUP(H2304,'Info Sheet'!O:P,2,0)","v":"IN"},672,672]
["Utah","Iowa",{"$f":"VLOOKUP(B2305,'Info Sheet'!O:P,2,0)","v":"IA"},3564,3564,null,"Utah","Iowa",{"$f":"VLOOKUP(H2305,'Info Sheet'!O:P,2,0)","v":"IA"},2514,2514]
["Utah","Kansas",{"$f":"VLOOKUP(B2306,'Info Sheet'!O:P,2,0)","v":"KS"},1843,1843,null,"Utah","Kansas",{"$f":"VLOOKUP(H2306,'Info Sheet'!O:P,2,0)","v":"KS"},531,531]
["Utah","Kentucky",{"$f":"VLOOKUP(B2307,'Info Sheet'!O:P,2,0)","v":"KY"},1063,1063,null,"Utah","Kentucky",{"$f":"VLOOKUP(H2307,'Info Sheet'!O:P,2,0)","v":"KY"},1509,1509]
["Utah","Louisiana",{"$f":"VLOOKUP(B2308,'Info Sheet'!O:P,2,0)","v":"LA"},885,885,null,"Utah","Louisiana",{"$f":"VLOOKUP(H2308,'Info Sheet'!O:P,2,0)","v":"LA"},929,929]
["Utah","Maine",{"$f":"VLOOKUP(B2309,'Info Sheet'!O:P,2,0)","v":"ME"},528,528,null,"Utah","Maine",{"$f":"VLOOKUP(H2309,'Info Sheet'!O:P,2,0)","v":"ME"},772,772]
["Utah","Maryland",{"$f":"VLOOKUP(B2310,'Info Sheet'!O:P,2,0)","v":"MD"},1381,1381,null,"Utah","Maryland",{"$f":"VLOOKUP(H2310,'Info Sheet'!O:P,2,0)","v":"MD"},1939,1939]
["Utah","Massachusetts",{"$f":"VLOOKUP(B2311,'Info Sheet'!O:P,2,0)","v":"MA"},2708,2708,null,"Utah","Massachusetts",{"$f":"VLOOKUP(H2311,'Info Sheet'!O:P,2,0)","v":"MA"},1782,1782]
["Utah","Michigan",{"$f":"VLOOKUP(B2312,'Info Sheet'!O:P,2,0)","v":"MI"},3030,3030,null,"Utah","Michigan",{"$f":"VLOOKUP(H2312,'Info Sheet'!O:P,2,0)","v":"MI"},2006,2006]
["Utah","Minnesota",{"$f":"VLOOKUP(B2313,'Info Sheet'!O:P,2,0)","v":"MN"},2238,2238,null,"Utah","Minnesota",{"$f":"VLOOKUP(H2313,'Info Sheet'!O:P,2,0)","v":"MN"},2361,2361]
["Utah","Mississippi",{"$f":"VLOOKUP(B2314,'Info Sheet'!O:P,2,0)","v":"MS"},554,554,null,"Utah","Mississippi",{"$f":"VLOOKUP(H2314,'Info Sheet'!O:P,2,0)","v":"MS"},1018,1018]
["Utah","Missouri",{"$f":"VLOOKUP(B2315,'Info Sheet'!O:P,2,0)","v":"MO"},3319,3319,null,"Utah","Missouri",{"$f":"VLOOKUP(H2315,'Info Sheet'!O:P,2,0)","v":"MO"},6303,6303]
["Utah","Montana",{"$f":"VLOOKUP(B2316,'Info Sheet'!O:P,2,0)","v":"MT"},4227,4227,null,"Utah","Montana",{"$f":"VLOOKUP(H2316,'Info Sheet'!O:P,2,0)","v":"MT"},2456,2456]
["Utah","Nebraska",{"$f":"VLOOKUP(B2317,'Info Sheet'!O:P,2,0)","v":"NE"},802,802,null,"Utah","Nebraska",{"$f":"VLOOKUP(H2317,'Info Sheet'!O:P,2,0)","v":"NE"},1500,1500]
["Utah","Nevada",{"$f":"VLOOKUP(B2318,'Info Sheet'!O:P,2,0)","v":"NV"},14255,14255,null,"Utah","Nevada",{"$f":"VLOOKUP(H2318,'Info Sheet'!O:P,2,0)","v":"NV"},12470,12470]
["Utah","New Hampshire",{"$f":"VLOOKUP(B2319,'Info Sheet'!O:P,2,0)","v":"NH"},541,541,null,"Utah","New Hampshire",{"$f":"VLOOKUP(H2319,'Info Sheet'!O:P,2,0)","v":"NH"},994,994]
["Utah","New Jersey",{"$f":"VLOOKUP(B2320,'Info Sheet'!O:P,2,0)","v":"NJ"},1190,1190,null,"Utah","New Jersey",{"$f":"VLOOKUP(H2320,'Info Sheet'!O:P,2,0)","v":"NJ"},859,859]
["Utah","New Mexico",{"$f":"VLOOKUP(B2321,'Info Sheet'!O:P,2,0)","v":"NM"},2911,2911,null,"Utah","New Mexico",{"$f":"VLOOKUP(H2321,'Info Sheet'!O:P,2,0)","v":"NM"},3286,3286]
["Utah","New York",{"$f":"VLOOKUP(B2322,'Info Sheet'!O:P,2,0)","v":"NY"},5528,5528,null,"Utah","New York",{"$f":"VLOOKUP(H2322,'Info Sheet'!O:P,2,0)","v":"NY"},2305,2305]
["Utah","North Carolina",{"$f":"VLOOKUP(B2323,'Info Sheet'!O:P,2,0)","v":"NC"},3662,3662,null,"Utah","North Carolina",{"$f":"VLOOKUP(H2323,'Info Sheet'!O:P,2,0)","v":"NC"},2940,2940]
["Utah","North Dakota",{"$f":"VLOOKUP(B2324,'Info Sheet'!O:P,2,0)","v":"ND"},177,177,null,"Utah","North Dakota",{"$f":"VLOOKUP(H2324,'Info Sheet'!O:P,2,0)","v":"ND"},934,934]
["Utah","Ohio",{"$f":"VLOOKUP(B2325,'Info Sheet'!O:P,2,0)","v":"OH"},5986,5986,null,"Utah","Ohio",{"$f":"VLOOKUP(H2325,'Info Sheet'!O:P,2,0)","v":"OH"},1373,1373]
["Utah","Oklahoma",{"$f":"VLOOKUP(B2326,'Info Sheet'!O:P,2,0)","v":"OK"},2374,2374,null,"Utah","Oklahoma",{"$f":"VLOOKUP(H2326,'Info Sheet'!O:P,2,0)","v":"OK"},3603,3603]
["Utah","Oregon",{"$f":"VLOOKUP(B2327,'Info Sheet'!O:P,2,0)","v":"OR"},8651,8651,null,"Utah","Oregon",{"$f":"VLOOKUP(H2327,'Info Sheet'!O:P,2,0)","v":"OR"},11115,11115]
["Utah","Pennsylvania",{"$f":"VLOOKUP(B2328,'Info Sheet'!O:P,2,0)","v":"PA"},2997,2997,null,"Utah","Pennsylvania",{"$f":"VLOOKUP(H2328,'Info Sheet'!O:P,2,0)","v":"PA"},3570,3570]
["Utah","Rhode Island",{"$f":"VLOOKUP(B2329,'Info Sheet'!O:P,2,0)","v":"RI"},351,351,null,"Utah","Rhode Island",{"$f":"VLOOKUP(H2329,'Info Sheet'!O:P,2,0)","v":"RI"},181,181]
["Utah","South Carolina",{"$f":"VLOOKUP(B2330,'Info Sheet'!O:P,2,0)","v":"SC"},1207,1207,null,"Utah","South Carolina",{"$f":"VLOOKUP(H2330,'Info Sheet'!O:P,2,0)","v":"SC"},1202,1202]
["Utah","South Dakota",{"$f":"VLOOKUP(B2331,'Info Sheet'!O:P,2,0)","v":"SD"},1050,1050,null,"Utah","South Dakota",{"$f":"VLOOKUP(H2331,'Info Sheet'!O:P,2,0)","v":"SD"},948,948]
["Utah","Tennessee",{"$f":"VLOOKUP(B2332,'Info Sheet'!O:P,2,0)","v":"TN"},1871,1871,null,"Utah","Tennessee",{"$f":"VLOOKUP(H2332,'Info Sheet'!O:P,2,0)","v":"TN"},3046,3046]
["Utah","Texas",{"$f":"VLOOKUP(B2333,'Info Sheet'!O:P,2,0)","v":"TX"},13417,13417,null,"Utah","Texas",{"$f":"VLOOKUP(H2333,'Info Sheet'!O:P,2,0)","v":"TX"},13967,13967]
["Utah","Utah",{"$f":"VLOOKUP(B2334,'Info Sheet'!O:P,2,0)","v":"UT"},0,0,null,"Utah","Utah",{"$f":"VLOOKUP(H2334,'Info Sheet'!O:P,2,0)","v":"UT"},0,0]
["Utah","Vermont",{"$f":"VLOOKUP(B2335,'Info Sheet'!O:P,2,0)","v":"VT"},458,458,null,"Utah","Vermont",{"$f":"VLOOKUP(H2335,'Info Sheet'!O:P,2,0)","v":"VT"},263,263]
["Utah","Virginia",{"$f":"VLOOKUP(B2336,'Info Sheet'!O:P,2,0)","v":"VA"},6787,6787,null,"Utah","Virginia",{"$f":"VLOOKUP(H2336,'Info Sheet'!O:P,2,0)","v":"VA"},5069,5069]
["Utah","Washington",{"$f":"VLOOKUP(B2337,'Info Sheet'!O:P,2,0)","v":"WA"},12146,12146,null,"Utah","Washington",{"$f":"VLOOKUP(H2337,'Info Sheet'!O:P,2,0)","v":"WA"},14107,14107]
["Utah","West Virginia",{"$f":"VLOOKUP(B2338,'Info Sheet'!O:P,2,0)","v":"WV"},270,270,null,"Utah","West Virginia",{"$f":"VLOOKUP(H2338,'Info Sheet'!O:P,2,0)","v":"WV"},226,226]
["Utah","Wisconsin",{"$f":"VLOOKUP(B2339,'Info Sheet'!O:P,2,0)","v":"WI"},1941,1941,null,"Utah","Wisconsin",{"$f":"VLOOKUP(H2339,'Info Sheet'!O:P,2,0)","v":"WI"},2266,2266]
["Utah","Wyoming",{"$f":"VLOOKUP(B2340,'Info Sheet'!O:P,2,0)","v":"WY"},5400,5400,null,"Utah","Wyoming",{"$f":"VLOOKUP(H2340,'Info Sheet'!O:P,2,0)","v":"WY"},7076,7076]
["Utah","Puerto Rico",{"$f":"VLOOKUP(B2341,'Info Sheet'!O:P,2,0)","v":"PR"},622,622,null,"Utah","Puerto Rico",{"$f":"VLOOKUP(H2341,'Info Sheet'!O:P,2,0)","v":"PR"},882,882]
["Vermont","Alabama",{"$f":"VLOOKUP(B2342,'Info Sheet'!O:P,2,0)","v":"AL"},16,16,null,"Vermont","Alabama",{"$f":"VLOOKUP(H2342,'Info Sheet'!O:P,2,0)","v":"AL"},66,66]
["Vermont","Alaska",{"$f":"VLOOKUP(B2343,'Info Sheet'!O:P,2,0)","v":"AK"},857,857,null,"Vermont","Alaska",{"$f":"VLOOKUP(H2343,'Info Sheet'!O:P,2,0)","v":"AK"},500,500]
["Vermont","Arizona",{"$f":"VLOOKUP(B2344,'Info Sheet'!O:P,2,0)","v":"AZ"},502,502,null,"Vermont","Arizona",{"$f":"VLOOKUP(H2344,'Info Sheet'!O:P,2,0)","v":"AZ"},871,871]
["Vermont","Arkansas",{"$f":"VLOOKUP(B2345,'Info Sheet'!O:P,2,0)","v":"AR"},0,0,null,"Vermont","Arkansas",{"$f":"VLOOKUP(H2345,'Info Sheet'!O:P,2,0)","v":"AR"},0,0]
["Vermont","California",{"$f":"VLOOKUP(B2346,'Info Sheet'!O:P,2,0)","v":"CA"},2932,2932,null,"Vermont","California",{"$f":"VLOOKUP(H2346,'Info Sheet'!O:P,2,0)","v":"CA"},1814,1814]
["Vermont","Colorado",{"$f":"VLOOKUP(B2347,'Info Sheet'!O:P,2,0)","v":"CO"},1237,1237,null,"Vermont","Colorado",{"$f":"VLOOKUP(H2347,'Info Sheet'!O:P,2,0)","v":"CO"},1767,1767]
["Vermont","Connecticut",{"$f":"VLOOKUP(B2348,'Info Sheet'!O:P,2,0)","v":"CT"},5018,5018,null,"Vermont","Connecticut",{"$f":"VLOOKUP(H2348,'Info Sheet'!O:P,2,0)","v":"CT"},1775,1775]
["Vermont","Delaware",{"$f":"VLOOKUP(B2349,'Info Sheet'!O:P,2,0)","v":"DE"},194,194,null,"Vermont","Delaware",{"$f":"VLOOKUP(H2349,'Info Sheet'!O:P,2,0)","v":"DE"},0,0]
["Vermont","District of Columbia",{"$f":"VLOOKUP(B2350,'Info Sheet'!O:P,2,0)","v":"DC"},152,152,null,"Vermont","District of Columbia",{"$f":"VLOOKUP(H2350,'Info Sheet'!O:P,2,0)","v":"DC"},911,911]
["Vermont","Florida",{"$f":"VLOOKUP(B2351,'Info Sheet'!O:P,2,0)","v":"FL"},3395,3395,null,"Vermont","Florida",{"$f":"VLOOKUP(H2351,'Info Sheet'!O:P,2,0)","v":"FL"},6208,6208]
["Vermont","Georgia",{"$f":"VLOOKUP(B2352,'Info Sheet'!O:P,2,0)","v":"GA"},653,653,null,"Vermont","Georgia",{"$f":"VLOOKUP(H2352,'Info Sheet'!O:P,2,0)","v":"GA"},806,806]
["Vermont","Hawaii",{"$f":"VLOOKUP(B2353,'Info Sheet'!O:P,2,0)","v":"HI"},198,198,null,"Vermont","Hawaii",{"$f":"VLOOKUP(H2353,'Info Sheet'!O:P,2,0)","v":"HI"},0,0]
["Vermont","Idaho",{"$f":"VLOOKUP(B2354,'Info Sheet'!O:P,2,0)","v":"ID"},0,0,null,"Vermont","Idaho",{"$f":"VLOOKUP(H2354,'Info Sheet'!O:P,2,0)","v":"ID"},0,0]
["Vermont","Illinois",{"$f":"VLOOKUP(B2355,'Info Sheet'!O:P,2,0)","v":"IL"},986,986,null,"Vermont","Illinois",{"$f":"VLOOKUP(H2355,'Info Sheet'!O:P,2,0)","v":"IL"},465,465]
["Vermont","Indiana",{"$f":"VLOOKUP(B2356,'Info Sheet'!O:P,2,0)","v":"IN"},326,326,null,"Vermont","Indiana",{"$f":"VLOOKUP(H2356,'Info Sheet'!O:P,2,0)","v":"IN"},575,575]
["Vermont","Iowa",{"$f":"VLOOKUP(B2357,'Info Sheet'!O:P,2,0)","v":"IA"},121,121,null,"Vermont","Iowa",{"$f":"VLOOKUP(H2357,'Info Sheet'!O:P,2,0)","v":"IA"},83,83]
["Vermont","Kansas",{"$f":"VLOOKUP(B2358,'Info Sheet'!O:P,2,0)","v":"KS"},7,7,null,"Vermont","Kansas",{"$f":"VLOOKUP(H2358,'Info Sheet'!O:P,2,0)","v":"KS"},145,145]
["Vermont","Kentucky",{"$f":"VLOOKUP(B2359,'Info Sheet'!O:P,2,0)","v":"KY"},2046,2046,null,"Vermont","Kentucky",{"$f":"VLOOKUP(H2359,'Info Sheet'!O:P,2,0)","v":"KY"},721,721]
["Vermont","Louisiana",{"$f":"VLOOKUP(B2360,'Info Sheet'!O:P,2,0)","v":"LA"},114,114,null,"Vermont","Louisiana",{"$f":"VLOOKUP(H2360,'Info Sheet'!O:P,2,0)","v":"LA"},132,132]
["Vermont","Maine",{"$f":"VLOOKUP(B2361,'Info Sheet'!O:P,2,0)","v":"ME"},2029,2029,null,"Vermont","Maine",{"$f":"VLOOKUP(H2361,'Info Sheet'!O:P,2,0)","v":"ME"},1381,1381]
["Vermont","Maryland",{"$f":"VLOOKUP(B2362,'Info Sheet'!O:P,2,0)","v":"MD"},1523,1523,null,"Vermont","Maryland",{"$f":"VLOOKUP(H2362,'Info Sheet'!O:P,2,0)","v":"MD"},979,979]
["Vermont","Massachusetts",{"$f":"VLOOKUP(B2363,'Info Sheet'!O:P,2,0)","v":"MA"},9295,9295,null,"Vermont","Massachusetts",{"$f":"VLOOKUP(H2363,'Info Sheet'!O:P,2,0)","v":"MA"},6306,6306]
["Vermont","Michigan",{"$f":"VLOOKUP(B2364,'Info Sheet'!O:P,2,0)","v":"MI"},820,820,null,"Vermont","Michigan",{"$f":"VLOOKUP(H2364,'Info Sheet'!O:P,2,0)","v":"MI"},105,105]
["Vermont","Minnesota",{"$f":"VLOOKUP(B2365,'Info Sheet'!O:P,2,0)","v":"MN"},606,606,null,"Vermont","Minnesota",{"$f":"VLOOKUP(H2365,'Info Sheet'!O:P,2,0)","v":"MN"},254,254]
["Vermont","Mississippi",{"$f":"VLOOKUP(B2366,'Info Sheet'!O:P,2,0)","v":"MS"},0,0,null,"Vermont","Mississippi",{"$f":"VLOOKUP(H2366,'Info Sheet'!O:P,2,0)","v":"MS"},0,0]
["Vermont","Missouri",{"$f":"VLOOKUP(B2367,'Info Sheet'!O:P,2,0)","v":"MO"},143,143,null,"Vermont","Missouri",{"$f":"VLOOKUP(H2367,'Info Sheet'!O:P,2,0)","v":"MO"},904,904]
["Vermont","Montana",{"$f":"VLOOKUP(B2368,'Info Sheet'!O:P,2,0)","v":"MT"},383,383,null,"Vermont","Montana",{"$f":"VLOOKUP(H2368,'Info Sheet'!O:P,2,0)","v":"MT"},140,140]
["Vermont","Nebraska",{"$f":"VLOOKUP(B2369,'Info Sheet'!O:P,2,0)","v":"NE"},0,0,null,"Vermont","Nebraska",{"$f":"VLOOKUP(H2369,'Info Sheet'!O:P,2,0)","v":"NE"},79,79]
["Vermont","Nevada",{"$f":"VLOOKUP(B2370,'Info Sheet'!O:P,2,0)","v":"NV"},90,90,null,"Vermont","Nevada",{"$f":"VLOOKUP(H2370,'Info Sheet'!O:P,2,0)","v":"NV"},318,318]
["Vermont","New Hampshire",{"$f":"VLOOKUP(B2371,'Info Sheet'!O:P,2,0)","v":"NH"},7897,7897,null,"Vermont","New Hampshire",{"$f":"VLOOKUP(H2371,'Info Sheet'!O:P,2,0)","v":"NH"},7664,7664]
["Vermont","New Jersey",{"$f":"VLOOKUP(B2372,'Info Sheet'!O:P,2,0)","v":"NJ"},2546,2546,null,"Vermont","New Jersey",{"$f":"VLOOKUP(H2372,'Info Sheet'!O:P,2,0)","v":"NJ"},92,92]
["Vermont","New Mexico",{"$f":"VLOOKUP(B2373,'Info Sheet'!O:P,2,0)","v":"NM"},130,130,null,"Vermont","New Mexico",{"$f":"VLOOKUP(H2373,'Info Sheet'!O:P,2,0)","v":"NM"},461,461]
["Vermont","New York",{"$f":"VLOOKUP(B2374,'Info Sheet'!O:P,2,0)","v":"NY"},12559,12559,null,"Vermont","New York",{"$f":"VLOOKUP(H2374,'Info Sheet'!O:P,2,0)","v":"NY"},9546,9546]
["Vermont","North Carolina",{"$f":"VLOOKUP(B2375,'Info Sheet'!O:P,2,0)","v":"NC"},1117,1117,null,"Vermont","North Carolina",{"$f":"VLOOKUP(H2375,'Info Sheet'!O:P,2,0)","v":"NC"},1007,1007]
["Vermont","North Dakota",{"$f":"VLOOKUP(B2376,'Info Sheet'!O:P,2,0)","v":"ND"},30,30,null,"Vermont","North Dakota",{"$f":"VLOOKUP(H2376,'Info Sheet'!O:P,2,0)","v":"ND"},758,758]
["Vermont","Ohio",{"$f":"VLOOKUP(B2377,'Info Sheet'!O:P,2,0)","v":"OH"},647,647,null,"Vermont","Ohio",{"$f":"VLOOKUP(H2377,'Info Sheet'!O:P,2,0)","v":"OH"},614,614]
["Vermont","Oklahoma",{"$f":"VLOOKUP(B2378,'Info Sheet'!O:P,2,0)","v":"OK"},11,11,null,"Vermont","Oklahoma",{"$f":"VLOOKUP(H2378,'Info Sheet'!O:P,2,0)","v":"OK"},290,290]
["Vermont","Oregon",{"$f":"VLOOKUP(B2379,'Info Sheet'!O:P,2,0)","v":"OR"},250,250,null,"Vermont","Oregon",{"$f":"VLOOKUP(H2379,'Info Sheet'!O:P,2,0)","v":"OR"},999,999]
["Vermont","Pennsylvania",{"$f":"VLOOKUP(B2380,'Info Sheet'!O:P,2,0)","v":"PA"},1848,1848,null,"Vermont","Pennsylvania",{"$f":"VLOOKUP(H2380,'Info Sheet'!O:P,2,0)","v":"PA"},1673,1673]
["Vermont","Rhode Island",{"$f":"VLOOKUP(B2381,'Info Sheet'!O:P,2,0)","v":"RI"},969,969,null,"Vermont","Rhode Island",{"$f":"VLOOKUP(H2381,'Info Sheet'!O:P,2,0)","v":"RI"},746,746]
["Vermont","South Carolina",{"$f":"VLOOKUP(B2382,'Info Sheet'!O:P,2,0)","v":"SC"},279,279,null,"Vermont","South Carolina",{"$f":"VLOOKUP(H2382,'Info Sheet'!O:P,2,0)","v":"SC"},867,867]
["Vermont","South Dakota",{"$f":"VLOOKUP(B2383,'Info Sheet'!O:P,2,0)","v":"SD"},192,192,null,"Vermont","South Dakota",{"$f":"VLOOKUP(H2383,'Info Sheet'!O:P,2,0)","v":"SD"},5,5]
["Vermont","Tennessee",{"$f":"VLOOKUP(B2384,'Info Sheet'!O:P,2,0)","v":"TN"},645,645,null,"Vermont","Tennessee",{"$f":"VLOOKUP(H2384,'Info Sheet'!O:P,2,0)","v":"TN"},171,171]
["Vermont","Texas",{"$f":"VLOOKUP(B2385,'Info Sheet'!O:P,2,0)","v":"TX"},1243,1243,null,"Vermont","Texas",{"$f":"VLOOKUP(H2385,'Info Sheet'!O:P,2,0)","v":"TX"},514,514]
["Vermont","Utah",{"$f":"VLOOKUP(B2386,'Info Sheet'!O:P,2,0)","v":"UT"},263,263,null,"Vermont","Utah",{"$f":"VLOOKUP(H2386,'Info Sheet'!O:P,2,0)","v":"UT"},458,458]
["Vermont","Vermont",{"$f":"VLOOKUP(B2387,'Info Sheet'!O:P,2,0)","v":"VT"},0,0,null,"Vermont","Vermont",{"$f":"VLOOKUP(H2387,'Info Sheet'!O:P,2,0)","v":"VT"},0,0]
["Vermont","Virginia",{"$f":"VLOOKUP(B2388,'Info Sheet'!O:P,2,0)","v":"VA"},1868,1868,null,"Vermont","Virginia",{"$f":"VLOOKUP(H2388,'Info Sheet'!O:P,2,0)","v":"VA"},1272,1272]
["Vermont","Washington",{"$f":"VLOOKUP(B2389,'Info Sheet'!O:P,2,0)","v":"WA"},382,382,null,"Vermont","Washington",{"$f":"VLOOKUP(H2389,'Info Sheet'!O:P,2,0)","v":"WA"},1323,1323]
["Vermont","West Virginia",{"$f":"VLOOKUP(B2390,'Info Sheet'!O:P,2,0)","v":"WV"},53,53,null,"Vermont","West Virginia",{"$f":"VLOOKUP(H2390,'Info Sheet'!O:P,2,0)","v":"WV"},285,285]
["Vermont","Wisconsin",{"$f":"VLOOKUP(B2391,'Info Sheet'!O:P,2,0)","v":"WI"},665,665,null,"Vermont","Wisconsin",{"$f":"VLOOKUP(H2391,'Info Sheet'!O:P,2,0)","v":"WI"},479,479]
["Vermont","Wyoming",{"$f":"VLOOKUP(B2392,'Info Sheet'!O:P,2,0)","v":"WY"},186,186,null,"Vermont","Wyoming",{"$f":"VLOOKUP(H2392,'Info Sheet'!O:P,2,0)","v":"WY"},79,79]
["Vermont","Puerto Rico",{"$f":"VLOOKUP(B2393,'Info Sheet'!O:P,2,0)","v":"PR"},19,19,null,"Vermont","Puerto Rico",{"$f":"VLOOKUP(H2393,'Info Sheet'!O:P,2,0)","v":"PR"},0,0]
["Virginia","Alabama",{"$f":"VLOOKUP(B2394,'Info Sheet'!O:P,2,0)","v":"AL"},10116,10116,null,"Virginia","Alabama",{"$f":"VLOOKUP(H2394,'Info Sheet'!O:P,2,0)","v":"AL"},10595,10595]
["Virginia","Alaska",{"$f":"VLOOKUP(B2395,'Info Sheet'!O:P,2,0)","v":"AK"},8404,8404,null,"Virginia","Alaska",{"$f":"VLOOKUP(H2395,'Info Sheet'!O:P,2,0)","v":"AK"},3467,3467]
["Virginia","Arizona",{"$f":"VLOOKUP(B2396,'Info Sheet'!O:P,2,0)","v":"AZ"},10906,10906,null,"Virginia","Arizona",{"$f":"VLOOKUP(H2396,'Info Sheet'!O:P,2,0)","v":"AZ"},8409,8409]
["Virginia","Arkansas",{"$f":"VLOOKUP(B2397,'Info Sheet'!O:P,2,0)","v":"AR"},2323,2323,null,"Virginia","Arkansas",{"$f":"VLOOKUP(H2397,'Info Sheet'!O:P,2,0)","v":"AR"},2898,2898]
["Virginia","California",{"$f":"VLOOKUP(B2398,'Info Sheet'!O:P,2,0)","v":"CA"},51239,51239,null,"Virginia","California",{"$f":"VLOOKUP(H2398,'Info Sheet'!O:P,2,0)","v":"CA"},45610,45610]
["Virginia","Colorado",{"$f":"VLOOKUP(B2399,'Info Sheet'!O:P,2,0)","v":"CO"},13489,13489,null,"Virginia","Colorado",{"$f":"VLOOKUP(H2399,'Info Sheet'!O:P,2,0)","v":"CO"},12816,12816]
["Virginia","Connecticut",{"$f":"VLOOKUP(B2400,'Info Sheet'!O:P,2,0)","v":"CT"},10569,10569,null,"Virginia","Connecticut",{"$f":"VLOOKUP(H2400,'Info Sheet'!O:P,2,0)","v":"CT"},6019,6019]
["Virginia","Delaware",{"$f":"VLOOKUP(B2401,'Info Sheet'!O:P,2,0)","v":"DE"},4505,4505,null,"Virginia","Delaware",{"$f":"VLOOKUP(H2401,'Info Sheet'!O:P,2,0)","v":"DE"},3861,3861]
["Virginia","District of Columbia",{"$f":"VLOOKUP(B2402,'Info Sheet'!O:P,2,0)","v":"DC"},28411,28411,null,"Virginia","District of Columbia",{"$f":"VLOOKUP(H2402,'Info Sheet'!O:P,2,0)","v":"DC"},25427,25427]
["Virginia","Florida",{"$f":"VLOOKUP(B2403,'Info Sheet'!O:P,2,0)","v":"FL"},55512,55512,null,"Virginia","Florida",{"$f":"VLOOKUP(H2403,'Info Sheet'!O:P,2,0)","v":"FL"},62391,62391]
["Virginia","Georgia",{"$f":"VLOOKUP(B2404,'Info Sheet'!O:P,2,0)","v":"GA"},30177,30177,null,"Virginia","Georgia",{"$f":"VLOOKUP(H2404,'Info Sheet'!O:P,2,0)","v":"GA"},28533,28533]
["Virginia","Hawaii",{"$f":"VLOOKUP(B2405,'Info Sheet'!O:P,2,0)","v":"HI"},9087,9087,null,"Virginia","Hawaii",{"$f":"VLOOKUP(H2405,'Info Sheet'!O:P,2,0)","v":"HI"},6560,6560]
["Virginia","Idaho",{"$f":"VLOOKUP(B2406,'Info Sheet'!O:P,2,0)","v":"ID"},2245,2245,null,"Virginia","Idaho",{"$f":"VLOOKUP(H2406,'Info Sheet'!O:P,2,0)","v":"ID"},1785,1785]
["Virginia","Illinois",{"$f":"VLOOKUP(B2407,'Info Sheet'!O:P,2,0)","v":"IL"},18665,18665,null,"Virginia","Illinois",{"$f":"VLOOKUP(H2407,'Info Sheet'!O:P,2,0)","v":"IL"},13375,13375]
["Virginia","Indiana",{"$f":"VLOOKUP(B2408,'Info Sheet'!O:P,2,0)","v":"IN"},8258,8258,null,"Virginia","Indiana",{"$f":"VLOOKUP(H2408,'Info Sheet'!O:P,2,0)","v":"IN"},7091,7091]
["Virginia","Iowa",{"$f":"VLOOKUP(B2409,'Info Sheet'!O:P,2,0)","v":"IA"},2859,2859,null,"Virginia","Iowa",{"$f":"VLOOKUP(H2409,'Info Sheet'!O:P,2,0)","v":"IA"},1291,1291]
["Virginia","Kansas",{"$f":"VLOOKUP(B2410,'Info Sheet'!O:P,2,0)","v":"KS"},4139,4139,null,"Virginia","Kansas",{"$f":"VLOOKUP(H2410,'Info Sheet'!O:P,2,0)","v":"KS"},5339,5339]
["Virginia","Kentucky",{"$f":"VLOOKUP(B2411,'Info Sheet'!O:P,2,0)","v":"KY"},9589,9589,null,"Virginia","Kentucky",{"$f":"VLOOKUP(H2411,'Info Sheet'!O:P,2,0)","v":"KY"},12144,12144]
["Virginia","Louisiana",{"$f":"VLOOKUP(B2412,'Info Sheet'!O:P,2,0)","v":"LA"},6282,6282,null,"Virginia","Louisiana",{"$f":"VLOOKUP(H2412,'Info Sheet'!O:P,2,0)","v":"LA"},5190,5190]
["Virginia","Maine",{"$f":"VLOOKUP(B2413,'Info Sheet'!O:P,2,0)","v":"ME"},5493,5493,null,"Virginia","Maine",{"$f":"VLOOKUP(H2413,'Info Sheet'!O:P,2,0)","v":"ME"},1797,1797]
["Virginia","Maryland",{"$f":"VLOOKUP(B2414,'Info Sheet'!O:P,2,0)","v":"MD"},70798,70798,null,"Virginia","Maryland",{"$f":"VLOOKUP(H2414,'Info Sheet'!O:P,2,0)","v":"MD"},67433,67433]
["Virginia","Massachusetts",{"$f":"VLOOKUP(B2415,'Info Sheet'!O:P,2,0)","v":"MA"},13257,13257,null,"Virginia","Massachusetts",{"$f":"VLOOKUP(H2415,'Info Sheet'!O:P,2,0)","v":"MA"},11624,11624]
["Virginia","Michigan",{"$f":"VLOOKUP(B2416,'Info Sheet'!O:P,2,0)","v":"MI"},16038,16038,null,"Virginia","Michigan",{"$f":"VLOOKUP(H2416,'Info Sheet'!O:P,2,0)","v":"MI"},7457,7457]
["Virginia","Minnesota",{"$f":"VLOOKUP(B2417,'Info Sheet'!O:P,2,0)","v":"MN"},3590,3590,null,"Virginia","Minnesota",{"$f":"VLOOKUP(H2417,'Info Sheet'!O:P,2,0)","v":"MN"},4442,4442]
["Virginia","Mississippi",{"$f":"VLOOKUP(B2418,'Info Sheet'!O:P,2,0)","v":"MS"},4884,4884,null,"Virginia","Mississippi",{"$f":"VLOOKUP(H2418,'Info Sheet'!O:P,2,0)","v":"MS"},3954,3954]
["Virginia","Missouri",{"$f":"VLOOKUP(B2419,'Info Sheet'!O:P,2,0)","v":"MO"},8453,8453,null,"Virginia","Missouri",{"$f":"VLOOKUP(H2419,'Info Sheet'!O:P,2,0)","v":"MO"},8499,8499]
["Virginia","Montana",{"$f":"VLOOKUP(B2420,'Info Sheet'!O:P,2,0)","v":"MT"},2141,2141,null,"Virginia","Montana",{"$f":"VLOOKUP(H2420,'Info Sheet'!O:P,2,0)","v":"MT"},931,931]
["Virginia","Nebraska",{"$f":"VLOOKUP(B2421,'Info Sheet'!O:P,2,0)","v":"NE"},1136,1136,null,"Virginia","Nebraska",{"$f":"VLOOKUP(H2421,'Info Sheet'!O:P,2,0)","v":"NE"},2463,2463]
["Virginia","Nevada",{"$f":"VLOOKUP(B2422,'Info Sheet'!O:P,2,0)","v":"NV"},3438,3438,null,"Virginia","Nevada",{"$f":"VLOOKUP(H2422,'Info Sheet'!O:P,2,0)","v":"NV"},4707,4707]
["Virginia","New Hampshire",{"$f":"VLOOKUP(B2423,'Info Sheet'!O:P,2,0)","v":"NH"},2251,2251,null,"Virginia","New Hampshire",{"$f":"VLOOKUP(H2423,'Info Sheet'!O:P,2,0)","v":"NH"},2285,2285]
["Virginia","New Jersey",{"$f":"VLOOKUP(B2424,'Info Sheet'!O:P,2,0)","v":"NJ"},23225,23225,null,"Virginia","New Jersey",{"$f":"VLOOKUP(H2424,'Info Sheet'!O:P,2,0)","v":"NJ"},12152,12152]
["Virginia","New Mexico",{"$f":"VLOOKUP(B2425,'Info Sheet'!O:P,2,0)","v":"NM"},3059,3059,null,"Virginia","New Mexico",{"$f":"VLOOKUP(H2425,'Info Sheet'!O:P,2,0)","v":"NM"},2275,2275]
["Virginia","New York",{"$f":"VLOOKUP(B2426,'Info Sheet'!O:P,2,0)","v":"NY"},45873,45873,null,"Virginia","New York",{"$f":"VLOOKUP(H2426,'Info Sheet'!O:P,2,0)","v":"NY"},27620,27620]
["Virginia","North Carolina",{"$f":"VLOOKUP(B2427,'Info Sheet'!O:P,2,0)","v":"NC"},72157,72157,null,"Virginia","North Carolina",{"$f":"VLOOKUP(H2427,'Info Sheet'!O:P,2,0)","v":"NC"},79723,79723]
["Virginia","North Dakota",{"$f":"VLOOKUP(B2428,'Info Sheet'!O:P,2,0)","v":"ND"},1515,1515,null,"Virginia","North Dakota",{"$f":"VLOOKUP(H2428,'Info Sheet'!O:P,2,0)","v":"ND"},594,594]
["Virginia","Ohio",{"$f":"VLOOKUP(B2429,'Info Sheet'!O:P,2,0)","v":"OH"},22900,22900,null,"Virginia","Ohio",{"$f":"VLOOKUP(H2429,'Info Sheet'!O:P,2,0)","v":"OH"},15387,15387]
["Virginia","Oklahoma",{"$f":"VLOOKUP(B2430,'Info Sheet'!O:P,2,0)","v":"OK"},4444,4444,null,"Virginia","Oklahoma",{"$f":"VLOOKUP(H2430,'Info Sheet'!O:P,2,0)","v":"OK"},5048,5048]
["Virginia","Oregon",{"$f":"VLOOKUP(B2431,'Info Sheet'!O:P,2,0)","v":"OR"},7177,7177,null,"Virginia","Oregon",{"$f":"VLOOKUP(H2431,'Info Sheet'!O:P,2,0)","v":"OR"},2979,2979]
["Virginia","Pennsylvania",{"$f":"VLOOKUP(B2432,'Info Sheet'!O:P,2,0)","v":"PA"},37995,37995,null,"Virginia","Pennsylvania",{"$f":"VLOOKUP(H2432,'Info Sheet'!O:P,2,0)","v":"PA"},30937,30937]
["Virginia","Rhode Island",{"$f":"VLOOKUP(B2433,'Info Sheet'!O:P,2,0)","v":"RI"},5045,5045,null,"Virginia","Rhode Island",{"$f":"VLOOKUP(H2433,'Info Sheet'!O:P,2,0)","v":"RI"},2892,2892]
["Virginia","South Carolina",{"$f":"VLOOKUP(B2434,'Info Sheet'!O:P,2,0)","v":"SC"},22887,22887,null,"Virginia","South Carolina",{"$f":"VLOOKUP(H2434,'Info Sheet'!O:P,2,0)","v":"SC"},27042,27042]
["Virginia","South Dakota",{"$f":"VLOOKUP(B2435,'Info Sheet'!O:P,2,0)","v":"SD"},1041,1041,null,"Virginia","South Dakota",{"$f":"VLOOKUP(H2435,'Info Sheet'!O:P,2,0)","v":"SD"},643,643]
["Virginia","Tennessee",{"$f":"VLOOKUP(B2436,'Info Sheet'!O:P,2,0)","v":"TN"},19513,19513,null,"Virginia","Tennessee",{"$f":"VLOOKUP(H2436,'Info Sheet'!O:P,2,0)","v":"TN"},22756,22756]
["Virginia","Texas",{"$f":"VLOOKUP(B2437,'Info Sheet'!O:P,2,0)","v":"TX"},37537,37537,null,"Virginia","Texas",{"$f":"VLOOKUP(H2437,'Info Sheet'!O:P,2,0)","v":"TX"},44678,44678]
["Virginia","Utah",{"$f":"VLOOKUP(B2438,'Info Sheet'!O:P,2,0)","v":"UT"},5069,5069,null,"Virginia","Utah",{"$f":"VLOOKUP(H2438,'Info Sheet'!O:P,2,0)","v":"UT"},6787,6787]
["Virginia","Vermont",{"$f":"VLOOKUP(B2439,'Info Sheet'!O:P,2,0)","v":"VT"},1272,1272,null,"Virginia","Vermont",{"$f":"VLOOKUP(H2439,'Info Sheet'!O:P,2,0)","v":"VT"},1868,1868]
["Virginia","Virginia",{"$f":"VLOOKUP(B2440,'Info Sheet'!O:P,2,0)","v":"VA"},0,0,null,"Virginia","Virginia",{"$f":"VLOOKUP(H2440,'Info Sheet'!O:P,2,0)","v":"VA"},0,0]
["Virginia","Washington",{"$f":"VLOOKUP(B2441,'Info Sheet'!O:P,2,0)","v":"WA"},13148,13148,null,"Virginia","Washington",{"$f":"VLOOKUP(H2441,'Info Sheet'!O:P,2,0)","v":"WA"},15338,15338]
["Virginia","West Virginia",{"$f":"VLOOKUP(B2442,'Info Sheet'!O:P,2,0)","v":"WV"},19659,19659,null,"Virginia","West Virginia",{"$f":"VLOOKUP(H2442,'Info Sheet'!O:P,2,0)","v":"WV"},16877,16877]
["Virginia","Wisconsin",{"$f":"VLOOKUP(B2443,'Info Sheet'!O:P,2,0)","v":"WI"},4764,4764,null,"Virginia","Wisconsin",{"$f":"VLOOKUP(H2443,'Info Sheet'!O:P,2,0)","v":"WI"},4611,4611]
["Virginia","Wyoming",{"$f":"VLOOKUP(B2444,'Info Sheet'!O:P,2,0)","v":"WY"},756,756,null,"Virginia","Wyoming",{"$f":"VLOOKUP(H2444,'Info Sheet'!O:P,2,0)","v":"WY"},1169,1169]
["Virginia","Puerto Rico",{"$f":"VLOOKUP(B2445,'Info Sheet'!O:P,2,0)","v":"PR"},3044,3044,null,"Virginia","Puerto Rico",{"$f":"VLOOKUP(H2445,'Info Sheet'!O:P,2,0)","v":"PR"},2153,2153]
["Washington","Alabama",{"$f":"VLOOKUP(B2446,'Info Sheet'!O:P,2,0)","v":"AL"},4650,4650,null,"Washington","Alabama",{"$f":"VLOOKUP(H2446,'Info Sheet'!O:P,2,0)","v":"AL"},4826,4826]
["Washington","Alaska",{"$f":"VLOOKUP(B2447,'Info Sheet'!O:P,2,0)","v":"AK"},15238,15238,null,"Washington","Alaska",{"$f":"VLOOKUP(H2447,'Info Sheet'!O:P,2,0)","v":"AK"},10694,10694]
["Washington","Arizona",{"$f":"VLOOKUP(B2448,'Info Sheet'!O:P,2,0)","v":"AZ"},26730,26730,null,"Washington","Arizona",{"$f":"VLOOKUP(H2448,'Info Sheet'!O:P,2,0)","v":"AZ"},39832,39832]
["Washington","Arkansas",{"$f":"VLOOKUP(B2449,'Info Sheet'!O:P,2,0)","v":"AR"},2827,2827,null,"Washington","Arkansas",{"$f":"VLOOKUP(H2449,'Info Sheet'!O:P,2,0)","v":"AR"},1992,1992]
["Washington","California",{"$f":"VLOOKUP(B2450,'Info Sheet'!O:P,2,0)","v":"CA"},123486,123486,null,"Washington","California",{"$f":"VLOOKUP(H2450,'Info Sheet'!O:P,2,0)","v":"CA"},101594,101594]
["Washington","Colorado",{"$f":"VLOOKUP(B2451,'Info Sheet'!O:P,2,0)","v":"CO"},14016,14016,null,"Washington","Colorado",{"$f":"VLOOKUP(H2451,'Info Sheet'!O:P,2,0)","v":"CO"},17960,17960]
["Washington","Connecticut",{"$f":"VLOOKUP(B2452,'Info Sheet'!O:P,2,0)","v":"CT"},4569,4569,null,"Washington","Connecticut",{"$f":"VLOOKUP(H2452,'Info Sheet'!O:P,2,0)","v":"CT"},5932,5932]
["Washington","Delaware",{"$f":"VLOOKUP(B2453,'Info Sheet'!O:P,2,0)","v":"DE"},302,302,null,"Washington","Delaware",{"$f":"VLOOKUP(H2453,'Info Sheet'!O:P,2,0)","v":"DE"},888,888]
["Washington","District of Columbia",{"$f":"VLOOKUP(B2454,'Info Sheet'!O:P,2,0)","v":"DC"},1374,1374,null,"Washington","District of Columbia",{"$f":"VLOOKUP(H2454,'Info Sheet'!O:P,2,0)","v":"DC"},1241,1241]
["Washington","Florida",{"$f":"VLOOKUP(B2455,'Info Sheet'!O:P,2,0)","v":"FL"},20842,20842,null,"Washington","Florida",{"$f":"VLOOKUP(H2455,'Info Sheet'!O:P,2,0)","v":"FL"},14855,14855]
["Washington","Georgia",{"$f":"VLOOKUP(B2456,'Info Sheet'!O:P,2,0)","v":"GA"},18175,18175,null,"Washington","Georgia",{"$f":"VLOOKUP(H2456,'Info Sheet'!O:P,2,0)","v":"GA"},10161,10161]
["Washington","Hawaii",{"$f":"VLOOKUP(B2457,'Info Sheet'!O:P,2,0)","v":"HI"},15425,15425,null,"Washington","Hawaii",{"$f":"VLOOKUP(H2457,'Info Sheet'!O:P,2,0)","v":"HI"},12415,12415]
["Washington","Idaho",{"$f":"VLOOKUP(B2458,'Info Sheet'!O:P,2,0)","v":"ID"},34160,34160,null,"Washington","Idaho",{"$f":"VLOOKUP(H2458,'Info Sheet'!O:P,2,0)","v":"ID"},30265,30265]
["Washington","Illinois",{"$f":"VLOOKUP(B2459,'Info Sheet'!O:P,2,0)","v":"IL"},10291,10291,null,"Washington","Illinois",{"$f":"VLOOKUP(H2459,'Info Sheet'!O:P,2,0)","v":"IL"},7421,7421]
["Washington","Indiana",{"$f":"VLOOKUP(B2460,'Info Sheet'!O:P,2,0)","v":"IN"},5304,5304,null,"Washington","Indiana",{"$f":"VLOOKUP(H2460,'Info Sheet'!O:P,2,0)","v":"IN"},1857,1857]
["Washington","Iowa",{"$f":"VLOOKUP(B2461,'Info Sheet'!O:P,2,0)","v":"IA"},3844,3844,null,"Washington","Iowa",{"$f":"VLOOKUP(H2461,'Info Sheet'!O:P,2,0)","v":"IA"},2313,2313]
["Washington","Kansas",{"$f":"VLOOKUP(B2462,'Info Sheet'!O:P,2,0)","v":"KS"},7058,7058,null,"Washington","Kansas",{"$f":"VLOOKUP(H2462,'Info Sheet'!O:P,2,0)","v":"KS"},5212,5212]
["Washington","Kentucky",{"$f":"VLOOKUP(B2463,'Info Sheet'!O:P,2,0)","v":"KY"},3525,3525,null,"Washington","Kentucky",{"$f":"VLOOKUP(H2463,'Info Sheet'!O:P,2,0)","v":"KY"},3825,3825]
["Washington","Louisiana",{"$f":"VLOOKUP(B2464,'Info Sheet'!O:P,2,0)","v":"LA"},3673,3673,null,"Washington","Louisiana",{"$f":"VLOOKUP(H2464,'Info Sheet'!O:P,2,0)","v":"LA"},4165,4165]
["Washington","Maine",{"$f":"VLOOKUP(B2465,'Info Sheet'!O:P,2,0)","v":"ME"},2562,2562,null,"Washington","Maine",{"$f":"VLOOKUP(H2465,'Info Sheet'!O:P,2,0)","v":"ME"},587,587]
["Washington","Maryland",{"$f":"VLOOKUP(B2466,'Info Sheet'!O:P,2,0)","v":"MD"},3719,3719,null,"Washington","Maryland",{"$f":"VLOOKUP(H2466,'Info Sheet'!O:P,2,0)","v":"MD"},4498,4498]
["Washington","Massachusetts",{"$f":"VLOOKUP(B2467,'Info Sheet'!O:P,2,0)","v":"MA"},5939,5939,null,"Washington","Massachusetts",{"$f":"VLOOKUP(H2467,'Info Sheet'!O:P,2,0)","v":"MA"},4953,4953]
["Washington","Michigan",{"$f":"VLOOKUP(B2468,'Info Sheet'!O:P,2,0)","v":"MI"},10061,10061,null,"Washington","Michigan",{"$f":"VLOOKUP(H2468,'Info Sheet'!O:P,2,0)","v":"MI"},5003,5003]
["Washington","Minnesota",{"$f":"VLOOKUP(B2469,'Info Sheet'!O:P,2,0)","v":"MN"},5569,5569,null,"Washington","Minnesota",{"$f":"VLOOKUP(H2469,'Info Sheet'!O:P,2,0)","v":"MN"},4426,4426]
["Washington","Mississippi",{"$f":"VLOOKUP(B2470,'Info Sheet'!O:P,2,0)","v":"MS"},2462,2462,null,"Washington","Mississippi",{"$f":"VLOOKUP(H2470,'Info Sheet'!O:P,2,0)","v":"MS"},1227,1227]
["Washington","Missouri",{"$f":"VLOOKUP(B2471,'Info Sheet'!O:P,2,0)","v":"MO"},9836,9836,null,"Washington","Missouri",{"$f":"VLOOKUP(H2471,'Info Sheet'!O:P,2,0)","v":"MO"},5937,5937]
["Washington","Montana",{"$f":"VLOOKUP(B2472,'Info Sheet'!O:P,2,0)","v":"MT"},10138,10138,null,"Washington","Montana",{"$f":"VLOOKUP(H2472,'Info Sheet'!O:P,2,0)","v":"MT"},11868,11868]
["Washington","Nebraska",{"$f":"VLOOKUP(B2473,'Info Sheet'!O:P,2,0)","v":"NE"},1678,1678,null,"Washington","Nebraska",{"$f":"VLOOKUP(H2473,'Info Sheet'!O:P,2,0)","v":"NE"},3392,3392]
["Washington","Nevada",{"$f":"VLOOKUP(B2474,'Info Sheet'!O:P,2,0)","v":"NV"},15906,15906,null,"Washington","Nevada",{"$f":"VLOOKUP(H2474,'Info Sheet'!O:P,2,0)","v":"NV"},10967,10967]
["Washington","New Hampshire",{"$f":"VLOOKUP(B2475,'Info Sheet'!O:P,2,0)","v":"NH"},1415,1415,null,"Washington","New Hampshire",{"$f":"VLOOKUP(H2475,'Info Sheet'!O:P,2,0)","v":"NH"},802,802]
["Washington","New Jersey",{"$f":"VLOOKUP(B2476,'Info Sheet'!O:P,2,0)","v":"NJ"},5027,5027,null,"Washington","New Jersey",{"$f":"VLOOKUP(H2476,'Info Sheet'!O:P,2,0)","v":"NJ"},5265,5265]
["Washington","New Mexico",{"$f":"VLOOKUP(B2477,'Info Sheet'!O:P,2,0)","v":"NM"},3453,3453,null,"Washington","New Mexico",{"$f":"VLOOKUP(H2477,'Info Sheet'!O:P,2,0)","v":"NM"},5179,5179]
["Washington","New York",{"$f":"VLOOKUP(B2478,'Info Sheet'!O:P,2,0)","v":"NY"},14214,14214,null,"Washington","New York",{"$f":"VLOOKUP(H2478,'Info Sheet'!O:P,2,0)","v":"NY"},8103,8103]
["Washington","North Carolina",{"$f":"VLOOKUP(B2479,'Info Sheet'!O:P,2,0)","v":"NC"},10101,10101,null,"Washington","North Carolina",{"$f":"VLOOKUP(H2479,'Info Sheet'!O:P,2,0)","v":"NC"},12084,12084]
["Washington","North Dakota",{"$f":"VLOOKUP(B2480,'Info Sheet'!O:P,2,0)","v":"ND"},921,921,null,"Washington","North Dakota",{"$f":"VLOOKUP(H2480,'Info Sheet'!O:P,2,0)","v":"ND"},2704,2704]
["Washington","Ohio",{"$f":"VLOOKUP(B2481,'Info Sheet'!O:P,2,0)","v":"OH"},8605,8605,null,"Washington","Ohio",{"$f":"VLOOKUP(H2481,'Info Sheet'!O:P,2,0)","v":"OH"},7408,7408]
["Washington","Oklahoma",{"$f":"VLOOKUP(B2482,'Info Sheet'!O:P,2,0)","v":"OK"},3974,3974,null,"Washington","Oklahoma",{"$f":"VLOOKUP(H2482,'Info Sheet'!O:P,2,0)","v":"OK"},4855,4855]
["Washington","Oregon",{"$f":"VLOOKUP(B2483,'Info Sheet'!O:P,2,0)","v":"OR"},80928,80928,null,"Washington","Oregon",{"$f":"VLOOKUP(H2483,'Info Sheet'!O:P,2,0)","v":"OR"},65879,65879]
["Washington","Pennsylvania",{"$f":"VLOOKUP(B2484,'Info Sheet'!O:P,2,0)","v":"PA"},8586,8586,null,"Washington","Pennsylvania",{"$f":"VLOOKUP(H2484,'Info Sheet'!O:P,2,0)","v":"PA"},7970,7970]
["Washington","Rhode Island",{"$f":"VLOOKUP(B2485,'Info Sheet'!O:P,2,0)","v":"RI"},780,780,null,"Washington","Rhode Island",{"$f":"VLOOKUP(H2485,'Info Sheet'!O:P,2,0)","v":"RI"},709,709]
["Washington","South Carolina",{"$f":"VLOOKUP(B2486,'Info Sheet'!O:P,2,0)","v":"SC"},7293,7293,null,"Washington","South Carolina",{"$f":"VLOOKUP(H2486,'Info Sheet'!O:P,2,0)","v":"SC"},7209,7209]
["Washington","South Dakota",{"$f":"VLOOKUP(B2487,'Info Sheet'!O:P,2,0)","v":"SD"},1187,1187,null,"Washington","South Dakota",{"$f":"VLOOKUP(H2487,'Info Sheet'!O:P,2,0)","v":"SD"},3147,3147]
["Washington","Tennessee",{"$f":"VLOOKUP(B2488,'Info Sheet'!O:P,2,0)","v":"TN"},6337,6337,null,"Washington","Tennessee",{"$f":"VLOOKUP(H2488,'Info Sheet'!O:P,2,0)","v":"TN"},6140,6140]
["Washington","Texas",{"$f":"VLOOKUP(B2489,'Info Sheet'!O:P,2,0)","v":"TX"},41025,41025,null,"Washington","Texas",{"$f":"VLOOKUP(H2489,'Info Sheet'!O:P,2,0)","v":"TX"},35802,35802]
["Washington","Utah",{"$f":"VLOOKUP(B2490,'Info Sheet'!O:P,2,0)","v":"UT"},14107,14107,null,"Washington","Utah",{"$f":"VLOOKUP(H2490,'Info Sheet'!O:P,2,0)","v":"UT"},12146,12146]
["Washington","Vermont",{"$f":"VLOOKUP(B2491,'Info Sheet'!O:P,2,0)","v":"VT"},1323,1323,null,"Washington","Vermont",{"$f":"VLOOKUP(H2491,'Info Sheet'!O:P,2,0)","v":"VT"},382,382]
["Washington","Virginia",{"$f":"VLOOKUP(B2492,'Info Sheet'!O:P,2,0)","v":"VA"},15338,15338,null,"Washington","Virginia",{"$f":"VLOOKUP(H2492,'Info Sheet'!O:P,2,0)","v":"VA"},13148,13148]
["Washington","Washington",{"$f":"VLOOKUP(B2493,'Info Sheet'!O:P,2,0)","v":"WA"},0,0,null,"Washington","Washington",{"$f":"VLOOKUP(H2493,'Info Sheet'!O:P,2,0)","v":"WA"},0,0]
["Washington","West Virginia",{"$f":"VLOOKUP(B2494,'Info Sheet'!O:P,2,0)","v":"WV"},434,434,null,"Washington","West Virginia",{"$f":"VLOOKUP(H2494,'Info Sheet'!O:P,2,0)","v":"WV"},572,572]
["Washington","Wisconsin",{"$f":"VLOOKUP(B2495,'Info Sheet'!O:P,2,0)","v":"WI"},4839,4839,null,"Washington","Wisconsin",{"$f":"VLOOKUP(H2495,'Info Sheet'!O:P,2,0)","v":"WI"},3776,3776]
["Washington","Wyoming",{"$f":"VLOOKUP(B2496,'Info Sheet'!O:P,2,0)","v":"WY"},2539,2539,null,"Washington","Wyoming",{"$f":"VLOOKUP(H2496,'Info Sheet'!O:P,2,0)","v":"WY"},3682,3682]
["Washington","Puerto Rico",{"$f":"VLOOKUP(B2497,'Info Sheet'!O:P,2,0)","v":"PR"},2108,2108,null,"Washington","Puerto Rico",{"$f":"VLOOKUP(H2497,'Info Sheet'!O:P,2,0)","v":"PR"},41,41]
["West Virginia","Alabama",{"$f":"VLOOKUP(B2498,'Info Sheet'!O:P,2,0)","v":"AL"},739,739,null,"West Virginia","Alabama",{"$f":"VLOOKUP(H2498,'Info Sheet'!O:P,2,0)","v":"AL"},234,234]
["West Virginia","Alaska",{"$f":"VLOOKUP(B2499,'Info Sheet'!O:P,2,0)","v":"AK"},2230,2230,null,"West Virginia","Alaska",{"$f":"VLOOKUP(H2499,'Info Sheet'!O:P,2,0)","v":"AK"},89,89]
["West Virginia","Arizona",{"$f":"VLOOKUP(B2500,'Info Sheet'!O:P,2,0)","v":"AZ"},129,129,null,"West Virginia","Arizona",{"$f":"VLOOKUP(H2500,'Info Sheet'!O:P,2,0)","v":"AZ"},1430,1430]
["West Virginia","Arkansas",{"$f":"VLOOKUP(B2501,'Info Sheet'!O:P,2,0)","v":"AR"},225,225,null,"West Virginia","Arkansas",{"$f":"VLOOKUP(H2501,'Info Sheet'!O:P,2,0)","v":"AR"},108,108]
["West Virginia","California",{"$f":"VLOOKUP(B2502,'Info Sheet'!O:P,2,0)","v":"CA"},3433,3433,null,"West Virginia","California",{"$f":"VLOOKUP(H2502,'Info Sheet'!O:P,2,0)","v":"CA"},3691,3691]
["West Virginia","Colorado",{"$f":"VLOOKUP(B2503,'Info Sheet'!O:P,2,0)","v":"CO"},836,836,null,"West Virginia","Colorado",{"$f":"VLOOKUP(H2503,'Info Sheet'!O:P,2,0)","v":"CO"},1872,1872]
["West Virginia","Connecticut",{"$f":"VLOOKUP(B2504,'Info Sheet'!O:P,2,0)","v":"CT"},821,821,null,"West Virginia","Connecticut",{"$f":"VLOOKUP(H2504,'Info Sheet'!O:P,2,0)","v":"CT"},662,662]
["West Virginia","Delaware",{"$f":"VLOOKUP(B2505,'Info Sheet'!O:P,2,0)","v":"DE"},1319,1319,null,"West Virginia","Delaware",{"$f":"VLOOKUP(H2505,'Info Sheet'!O:P,2,0)","v":"DE"},359,359]
["West Virginia","District of Columbia",{"$f":"VLOOKUP(B2506,'Info Sheet'!O:P,2,0)","v":"DC"},1074,1074,null,"West Virginia","District of Columbia",{"$f":"VLOOKUP(H2506,'Info Sheet'!O:P,2,0)","v":"DC"},1273,1273]
["West Virginia","Florida",{"$f":"VLOOKUP(B2507,'Info Sheet'!O:P,2,0)","v":"FL"},6710,6710,null,"West Virginia","Florida",{"$f":"VLOOKUP(H2507,'Info Sheet'!O:P,2,0)","v":"FL"},14131,14131]
["West Virginia","Georgia",{"$f":"VLOOKUP(B2508,'Info Sheet'!O:P,2,0)","v":"GA"},2889,2889,null,"West Virginia","Georgia",{"$f":"VLOOKUP(H2508,'Info Sheet'!O:P,2,0)","v":"GA"},2935,2935]
["West Virginia","Hawaii",{"$f":"VLOOKUP(B2509,'Info Sheet'!O:P,2,0)","v":"HI"},313,313,null,"West Virginia","Hawaii",{"$f":"VLOOKUP(H2509,'Info Sheet'!O:P,2,0)","v":"HI"},992,992]
["West Virginia","Idaho",{"$f":"VLOOKUP(B2510,'Info Sheet'!O:P,2,0)","v":"ID"},389,389,null,"West Virginia","Idaho",{"$f":"VLOOKUP(H2510,'Info Sheet'!O:P,2,0)","v":"ID"},133,133]
["West Virginia","Illinois",{"$f":"VLOOKUP(B2511,'Info Sheet'!O:P,2,0)","v":"IL"},1907,1907,null,"West Virginia","Illinois",{"$f":"VLOOKUP(H2511,'Info Sheet'!O:P,2,0)","v":"IL"},2385,2385]
["West Virginia","Indiana",{"$f":"VLOOKUP(B2512,'Info Sheet'!O:P,2,0)","v":"IN"},904,904,null,"West Virginia","Indiana",{"$f":"VLOOKUP(H2512,'Info Sheet'!O:P,2,0)","v":"IN"},1392,1392]
["West Virginia","Iowa",{"$f":"VLOOKUP(B2513,'Info Sheet'!O:P,2,0)","v":"IA"},68,68,null,"West Virginia","Iowa",{"$f":"VLOOKUP(H2513,'Info Sheet'!O:P,2,0)","v":"IA"},137,137]
["West Virginia","Kansas",{"$f":"VLOOKUP(B2514,'Info Sheet'!O:P,2,0)","v":"KS"},200,200,null,"West Virginia","Kansas",{"$f":"VLOOKUP(H2514,'Info Sheet'!O:P,2,0)","v":"KS"},139,139]
["West Virginia","Kentucky",{"$f":"VLOOKUP(B2515,'Info Sheet'!O:P,2,0)","v":"KY"},3615,3615,null,"West Virginia","Kentucky",{"$f":"VLOOKUP(H2515,'Info Sheet'!O:P,2,0)","v":"KY"},6817,6817]
["West Virginia","Louisiana",{"$f":"VLOOKUP(B2516,'Info Sheet'!O:P,2,0)","v":"LA"},476,476,null,"West Virginia","Louisiana",{"$f":"VLOOKUP(H2516,'Info Sheet'!O:P,2,0)","v":"LA"},558,558]
["West Virginia","Maine",{"$f":"VLOOKUP(B2517,'Info Sheet'!O:P,2,0)","v":"ME"},80,80,null,"West Virginia","Maine",{"$f":"VLOOKUP(H2517,'Info Sheet'!O:P,2,0)","v":"ME"},94,94]
["West Virginia","Maryland",{"$f":"VLOOKUP(B2518,'Info Sheet'!O:P,2,0)","v":"MD"},17116,17116,null,"West Virginia","Maryland",{"$f":"VLOOKUP(H2518,'Info Sheet'!O:P,2,0)","v":"MD"},8347,8347]
["West Virginia","Massachusetts",{"$f":"VLOOKUP(B2519,'Info Sheet'!O:P,2,0)","v":"MA"},591,591,null,"West Virginia","Massachusetts",{"$f":"VLOOKUP(H2519,'Info Sheet'!O:P,2,0)","v":"MA"},1296,1296]
["West Virginia","Michigan",{"$f":"VLOOKUP(B2520,'Info Sheet'!O:P,2,0)","v":"MI"},1894,1894,null,"West Virginia","Michigan",{"$f":"VLOOKUP(H2520,'Info Sheet'!O:P,2,0)","v":"MI"},1216,1216]
["West Virginia","Minnesota",{"$f":"VLOOKUP(B2521,'Info Sheet'!O:P,2,0)","v":"MN"},20,20,null,"West Virginia","Minnesota",{"$f":"VLOOKUP(H2521,'Info Sheet'!O:P,2,0)","v":"MN"},292,292]
["West Virginia","Mississippi",{"$f":"VLOOKUP(B2522,'Info Sheet'!O:P,2,0)","v":"MS"},44,44,null,"West Virginia","Mississippi",{"$f":"VLOOKUP(H2522,'Info Sheet'!O:P,2,0)","v":"MS"},397,397]
["West Virginia","Missouri",{"$f":"VLOOKUP(B2523,'Info Sheet'!O:P,2,0)","v":"MO"},528,528,null,"West Virginia","Missouri",{"$f":"VLOOKUP(H2523,'Info Sheet'!O:P,2,0)","v":"MO"},521,521]
["West Virginia","Montana",{"$f":"VLOOKUP(B2524,'Info Sheet'!O:P,2,0)","v":"MT"},99,99,null,"West Virginia","Montana",{"$f":"VLOOKUP(H2524,'Info Sheet'!O:P,2,0)","v":"MT"},14,14]
["West Virginia","Nebraska",{"$f":"VLOOKUP(B2525,'Info Sheet'!O:P,2,0)","v":"NE"},78,78,null,"West Virginia","Nebraska",{"$f":"VLOOKUP(H2525,'Info Sheet'!O:P,2,0)","v":"NE"},208,208]
["West Virginia","Nevada",{"$f":"VLOOKUP(B2526,'Info Sheet'!O:P,2,0)","v":"NV"},547,547,null,"West Virginia","Nevada",{"$f":"VLOOKUP(H2526,'Info Sheet'!O:P,2,0)","v":"NV"},156,156]
["West Virginia","New Hampshire",{"$f":"VLOOKUP(B2527,'Info Sheet'!O:P,2,0)","v":"NH"},396,396,null,"West Virginia","New Hampshire",{"$f":"VLOOKUP(H2527,'Info Sheet'!O:P,2,0)","v":"NH"},80,80]
["West Virginia","New Jersey",{"$f":"VLOOKUP(B2528,'Info Sheet'!O:P,2,0)","v":"NJ"},3550,3550,null,"West Virginia","New Jersey",{"$f":"VLOOKUP(H2528,'Info Sheet'!O:P,2,0)","v":"NJ"},1907,1907]
["West Virginia","New Mexico",{"$f":"VLOOKUP(B2529,'Info Sheet'!O:P,2,0)","v":"NM"},81,81,null,"West Virginia","New Mexico",{"$f":"VLOOKUP(H2529,'Info Sheet'!O:P,2,0)","v":"NM"},0,0]
["West Virginia","New York",{"$f":"VLOOKUP(B2530,'Info Sheet'!O:P,2,0)","v":"NY"},4349,4349,null,"West Virginia","New York",{"$f":"VLOOKUP(H2530,'Info Sheet'!O:P,2,0)","v":"NY"},1996,1996]
["West Virginia","North Carolina",{"$f":"VLOOKUP(B2531,'Info Sheet'!O:P,2,0)","v":"NC"},11100,11100,null,"West Virginia","North Carolina",{"$f":"VLOOKUP(H2531,'Info Sheet'!O:P,2,0)","v":"NC"},8482,8482]
["West Virginia","North Dakota",{"$f":"VLOOKUP(B2532,'Info Sheet'!O:P,2,0)","v":"ND"},443,443,null,"West Virginia","North Dakota",{"$f":"VLOOKUP(H2532,'Info Sheet'!O:P,2,0)","v":"ND"},0,0]
["West Virginia","Ohio",{"$f":"VLOOKUP(B2533,'Info Sheet'!O:P,2,0)","v":"OH"},23227,23227,null,"West Virginia","Ohio",{"$f":"VLOOKUP(H2533,'Info Sheet'!O:P,2,0)","v":"OH"},23182,23182]
["West Virginia","Oklahoma",{"$f":"VLOOKUP(B2534,'Info Sheet'!O:P,2,0)","v":"OK"},846,846,null,"West Virginia","Oklahoma",{"$f":"VLOOKUP(H2534,'Info Sheet'!O:P,2,0)","v":"OK"},633,633]
["West Virginia","Oregon",{"$f":"VLOOKUP(B2535,'Info Sheet'!O:P,2,0)","v":"OR"},250,250,null,"West Virginia","Oregon",{"$f":"VLOOKUP(H2535,'Info Sheet'!O:P,2,0)","v":"OR"},1017,1017]
["West Virginia","Pennsylvania",{"$f":"VLOOKUP(B2536,'Info Sheet'!O:P,2,0)","v":"PA"},14321,14321,null,"West Virginia","Pennsylvania",{"$f":"VLOOKUP(H2536,'Info Sheet'!O:P,2,0)","v":"PA"},15651,15651]
["West Virginia","Rhode Island",{"$f":"VLOOKUP(B2537,'Info Sheet'!O:P,2,0)","v":"RI"},522,522,null,"West Virginia","Rhode Island",{"$f":"VLOOKUP(H2537,'Info Sheet'!O:P,2,0)","v":"RI"},349,349]
["West Virginia","South Carolina",{"$f":"VLOOKUP(B2538,'Info Sheet'!O:P,2,0)","v":"SC"},3602,3602,null,"West Virginia","South Carolina",{"$f":"VLOOKUP(H2538,'Info Sheet'!O:P,2,0)","v":"SC"},4215,4215]
["West Virginia","South Dakota",{"$f":"VLOOKUP(B2539,'Info Sheet'!O:P,2,0)","v":"SD"},36,36,null,"West Virginia","South Dakota",{"$f":"VLOOKUP(H2539,'Info Sheet'!O:P,2,0)","v":"SD"},131,131]
["West Virginia","Tennessee",{"$f":"VLOOKUP(B2540,'Info Sheet'!O:P,2,0)","v":"TN"},2767,2767,null,"West Virginia","Tennessee",{"$f":"VLOOKUP(H2540,'Info Sheet'!O:P,2,0)","v":"TN"},6834,6834]
["West Virginia","Texas",{"$f":"VLOOKUP(B2541,'Info Sheet'!O:P,2,0)","v":"TX"},3164,3164,null,"West Virginia","Texas",{"$f":"VLOOKUP(H2541,'Info Sheet'!O:P,2,0)","v":"TX"},4613,4613]
["West Virginia","Utah",{"$f":"VLOOKUP(B2542,'Info Sheet'!O:P,2,0)","v":"UT"},226,226,null,"West Virginia","Utah",{"$f":"VLOOKUP(H2542,'Info Sheet'!O:P,2,0)","v":"UT"},270,270]
["West Virginia","Vermont",{"$f":"VLOOKUP(B2543,'Info Sheet'!O:P,2,0)","v":"VT"},285,285,null,"West Virginia","Vermont",{"$f":"VLOOKUP(H2543,'Info Sheet'!O:P,2,0)","v":"VT"},53,53]
["West Virginia","Virginia",{"$f":"VLOOKUP(B2544,'Info Sheet'!O:P,2,0)","v":"VA"},16877,16877,null,"West Virginia","Virginia",{"$f":"VLOOKUP(H2544,'Info Sheet'!O:P,2,0)","v":"VA"},19659,19659]
["West Virginia","Washington",{"$f":"VLOOKUP(B2545,'Info Sheet'!O:P,2,0)","v":"WA"},572,572,null,"West Virginia","Washington",{"$f":"VLOOKUP(H2545,'Info Sheet'!O:P,2,0)","v":"WA"},434,434]
["West Virginia","West Virginia",{"$f":"VLOOKUP(B2546,'Info Sheet'!O:P,2,0)","v":"WV"},0,0,null,"West Virginia","West Virginia",{"$f":"VLOOKUP(H2546,'Info Sheet'!O:P,2,0)","v":"WV"},0,0]
["West Virginia","Wisconsin",{"$f":"VLOOKUP(B2547,'Info Sheet'!O:P,2,0)","v":"WI"},662,662,null,"West Virginia","Wisconsin",{"$f":"VLOOKUP(H2547,'Info Sheet'!O:P,2,0)","v":"WI"},1346,1346]
["West Virginia","Wyoming",{"$f":"VLOOKUP(B2548,'Info Sheet'!O:P,2,0)","v":"WY"},252,252,null,"West Virginia","Wyoming",{"$f":"VLOOKUP(H2548,'Info Sheet'!O:P,2,0)","v":"WY"},0,0]
["West Virginia","Puerto Rico",{"$f":"VLOOKUP(B2549,'Info Sheet'!O:P,2,0)","v":"PR"},941,941,null,"West Virginia","Puerto Rico",{"$f":"VLOOKUP(H2549,'Info Sheet'!O:P,2,0)","v":"PR"},163,163]
["Wisconsin","Alabama",{"$f":"VLOOKUP(B2550,'Info Sheet'!O:P,2,0)","v":"AL"},1583,1583,null,"Wisconsin","Alabama",{"$f":"VLOOKUP(H2550,'Info Sheet'!O:P,2,0)","v":"AL"},2332,2332]
["Wisconsin","Alaska",{"$f":"VLOOKUP(B2551,'Info Sheet'!O:P,2,0)","v":"AK"},1466,1466,null,"Wisconsin","Alaska",{"$f":"VLOOKUP(H2551,'Info Sheet'!O:P,2,0)","v":"AK"},387,387]
["Wisconsin","Arizona",{"$f":"VLOOKUP(B2552,'Info Sheet'!O:P,2,0)","v":"AZ"},9156,9156,null,"Wisconsin","Arizona",{"$f":"VLOOKUP(H2552,'Info Sheet'!O:P,2,0)","v":"AZ"},15794,15794]
["Wisconsin","Arkansas",{"$f":"VLOOKUP(B2553,'Info Sheet'!O:P,2,0)","v":"AR"},1106,1106,null,"Wisconsin","Arkansas",{"$f":"VLOOKUP(H2553,'Info Sheet'!O:P,2,0)","v":"AR"},2203,2203]
["Wisconsin","California",{"$f":"VLOOKUP(B2554,'Info Sheet'!O:P,2,0)","v":"CA"},16490,16490,null,"Wisconsin","California",{"$f":"VLOOKUP(H2554,'Info Sheet'!O:P,2,0)","v":"CA"},17380,17380]
["Wisconsin","Colorado",{"$f":"VLOOKUP(B2555,'Info Sheet'!O:P,2,0)","v":"CO"},6082,6082,null,"Wisconsin","Colorado",{"$f":"VLOOKUP(H2555,'Info Sheet'!O:P,2,0)","v":"CO"},9494,9494]
["Wisconsin","Connecticut",{"$f":"VLOOKUP(B2556,'Info Sheet'!O:P,2,0)","v":"CT"},2009,2009,null,"Wisconsin","Connecticut",{"$f":"VLOOKUP(H2556,'Info Sheet'!O:P,2,0)","v":"CT"},2463,2463]
["Wisconsin","Delaware",{"$f":"VLOOKUP(B2557,'Info Sheet'!O:P,2,0)","v":"DE"},866,866,null,"Wisconsin","Delaware",{"$f":"VLOOKUP(H2557,'Info Sheet'!O:P,2,0)","v":"DE"},55,55]
["Wisconsin","District of Columbia",{"$f":"VLOOKUP(B2558,'Info Sheet'!O:P,2,0)","v":"DC"},236,236,null,"Wisconsin","District of Columbia",{"$f":"VLOOKUP(H2558,'Info Sheet'!O:P,2,0)","v":"DC"},2058,2058]
["Wisconsin","Florida",{"$f":"VLOOKUP(B2559,'Info Sheet'!O:P,2,0)","v":"FL"},13767,13767,null,"Wisconsin","Florida",{"$f":"VLOOKUP(H2559,'Info Sheet'!O:P,2,0)","v":"FL"},21709,21709]
["Wisconsin","Georgia",{"$f":"VLOOKUP(B2560,'Info Sheet'!O:P,2,0)","v":"GA"},4371,4371,null,"Wisconsin","Georgia",{"$f":"VLOOKUP(H2560,'Info Sheet'!O:P,2,0)","v":"GA"},9584,9584]
["Wisconsin","Hawaii",{"$f":"VLOOKUP(B2561,'Info Sheet'!O:P,2,0)","v":"HI"},1991,1991,null,"Wisconsin","Hawaii",{"$f":"VLOOKUP(H2561,'Info Sheet'!O:P,2,0)","v":"HI"},1610,1610]
["Wisconsin","Idaho",{"$f":"VLOOKUP(B2562,'Info Sheet'!O:P,2,0)","v":"ID"},1828,1828,null,"Wisconsin","Idaho",{"$f":"VLOOKUP(H2562,'Info Sheet'!O:P,2,0)","v":"ID"},623,623]
["Wisconsin","Illinois",{"$f":"VLOOKUP(B2563,'Info Sheet'!O:P,2,0)","v":"IL"},68105,68105,null,"Wisconsin","Illinois",{"$f":"VLOOKUP(H2563,'Info Sheet'!O:P,2,0)","v":"IL"},44285,44285]
["Wisconsin","Indiana",{"$f":"VLOOKUP(B2564,'Info Sheet'!O:P,2,0)","v":"IN"},9060,9060,null,"Wisconsin","Indiana",{"$f":"VLOOKUP(H2564,'Info Sheet'!O:P,2,0)","v":"IN"},6412,6412]
["Wisconsin","Iowa",{"$f":"VLOOKUP(B2565,'Info Sheet'!O:P,2,0)","v":"IA"},9767,9767,null,"Wisconsin","Iowa",{"$f":"VLOOKUP(H2565,'Info Sheet'!O:P,2,0)","v":"IA"},8849,8849]
["Wisconsin","Kansas",{"$f":"VLOOKUP(B2566,'Info Sheet'!O:P,2,0)","v":"KS"},2330,2330,null,"Wisconsin","Kansas",{"$f":"VLOOKUP(H2566,'Info Sheet'!O:P,2,0)","v":"KS"},2612,2612]
["Wisconsin","Kentucky",{"$f":"VLOOKUP(B2567,'Info Sheet'!O:P,2,0)","v":"KY"},1962,1962,null,"Wisconsin","Kentucky",{"$f":"VLOOKUP(H2567,'Info Sheet'!O:P,2,0)","v":"KY"},3969,3969]
["Wisconsin","Louisiana",{"$f":"VLOOKUP(B2568,'Info Sheet'!O:P,2,0)","v":"LA"},1779,1779,null,"Wisconsin","Louisiana",{"$f":"VLOOKUP(H2568,'Info Sheet'!O:P,2,0)","v":"LA"},1258,1258]
["Wisconsin","Maine",{"$f":"VLOOKUP(B2569,'Info Sheet'!O:P,2,0)","v":"ME"},693,693,null,"Wisconsin","Maine",{"$f":"VLOOKUP(H2569,'Info Sheet'!O:P,2,0)","v":"ME"},321,321]
["Wisconsin","Maryland",{"$f":"VLOOKUP(B2570,'Info Sheet'!O:P,2,0)","v":"MD"},2541,2541,null,"Wisconsin","Maryland",{"$f":"VLOOKUP(H2570,'Info Sheet'!O:P,2,0)","v":"MD"},1137,1137]
["Wisconsin","Massachusetts",{"$f":"VLOOKUP(B2571,'Info Sheet'!O:P,2,0)","v":"MA"},2214,2214,null,"Wisconsin","Massachusetts",{"$f":"VLOOKUP(H2571,'Info Sheet'!O:P,2,0)","v":"MA"},1571,1571]
["Wisconsin","Michigan",{"$f":"VLOOKUP(B2572,'Info Sheet'!O:P,2,0)","v":"MI"},15857,15857,null,"Wisconsin","Michigan",{"$f":"VLOOKUP(H2572,'Info Sheet'!O:P,2,0)","v":"MI"},15077,15077]
["Wisconsin","Minnesota",{"$f":"VLOOKUP(B2573,'Info Sheet'!O:P,2,0)","v":"MN"},53633,53633,null,"Wisconsin","Minnesota",{"$f":"VLOOKUP(H2573,'Info Sheet'!O:P,2,0)","v":"MN"},54802,54802]
["Wisconsin","Mississippi",{"$f":"VLOOKUP(B2574,'Info Sheet'!O:P,2,0)","v":"MS"},2031,2031,null,"Wisconsin","Mississippi",{"$f":"VLOOKUP(H2574,'Info Sheet'!O:P,2,0)","v":"MS"},2626,2626]
["Wisconsin","Missouri",{"$f":"VLOOKUP(B2575,'Info Sheet'!O:P,2,0)","v":"MO"},5069,5069,null,"Wisconsin","Missouri",{"$f":"VLOOKUP(H2575,'Info Sheet'!O:P,2,0)","v":"MO"},5470,5470]
["Wisconsin","Montana",{"$f":"VLOOKUP(B2576,'Info Sheet'!O:P,2,0)","v":"MT"},1081,1081,null,"Wisconsin","Montana",{"$f":"VLOOKUP(H2576,'Info Sheet'!O:P,2,0)","v":"MT"},1253,1253]
["Wisconsin","Nebraska",{"$f":"VLOOKUP(B2577,'Info Sheet'!O:P,2,0)","v":"NE"},1660,1660,null,"Wisconsin","Nebraska",{"$f":"VLOOKUP(H2577,'Info Sheet'!O:P,2,0)","v":"NE"},1922,1922]
["Wisconsin","Nevada",{"$f":"VLOOKUP(B2578,'Info Sheet'!O:P,2,0)","v":"NV"},2875,2875,null,"Wisconsin","Nevada",{"$f":"VLOOKUP(H2578,'Info Sheet'!O:P,2,0)","v":"NV"},4137,4137]
["Wisconsin","New Hampshire",{"$f":"VLOOKUP(B2579,'Info Sheet'!O:P,2,0)","v":"NH"},552,552,null,"Wisconsin","New Hampshire",{"$f":"VLOOKUP(H2579,'Info Sheet'!O:P,2,0)","v":"NH"},507,507]
["Wisconsin","New Jersey",{"$f":"VLOOKUP(B2580,'Info Sheet'!O:P,2,0)","v":"NJ"},1616,1616,null,"Wisconsin","New Jersey",{"$f":"VLOOKUP(H2580,'Info Sheet'!O:P,2,0)","v":"NJ"},1480,1480]
["Wisconsin","New Mexico",{"$f":"VLOOKUP(B2581,'Info Sheet'!O:P,2,0)","v":"NM"},1363,1363,null,"Wisconsin","New Mexico",{"$f":"VLOOKUP(H2581,'Info Sheet'!O:P,2,0)","v":"NM"},1068,1068]
["Wisconsin","New York",{"$f":"VLOOKUP(B2582,'Info Sheet'!O:P,2,0)","v":"NY"},5537,5537,null,"Wisconsin","New York",{"$f":"VLOOKUP(H2582,'Info Sheet'!O:P,2,0)","v":"NY"},5211,5211]
["Wisconsin","North Carolina",{"$f":"VLOOKUP(B2583,'Info Sheet'!O:P,2,0)","v":"NC"},6876,6876,null,"Wisconsin","North Carolina",{"$f":"VLOOKUP(H2583,'Info Sheet'!O:P,2,0)","v":"NC"},6569,6569]
["Wisconsin","North Dakota",{"$f":"VLOOKUP(B2584,'Info Sheet'!O:P,2,0)","v":"ND"},2164,2164,null,"Wisconsin","North Dakota",{"$f":"VLOOKUP(H2584,'Info Sheet'!O:P,2,0)","v":"ND"},2690,2690]
["Wisconsin","Ohio",{"$f":"VLOOKUP(B2585,'Info Sheet'!O:P,2,0)","v":"OH"},5642,5642,null,"Wisconsin","Ohio",{"$f":"VLOOKUP(H2585,'Info Sheet'!O:P,2,0)","v":"OH"},5279,5279]
["Wisconsin","Oklahoma",{"$f":"VLOOKUP(B2586,'Info Sheet'!O:P,2,0)","v":"OK"},496,496,null,"Wisconsin","Oklahoma",{"$f":"VLOOKUP(H2586,'Info Sheet'!O:P,2,0)","v":"OK"},2554,2554]
["Wisconsin","Oregon",{"$f":"VLOOKUP(B2587,'Info Sheet'!O:P,2,0)","v":"OR"},3446,3446,null,"Wisconsin","Oregon",{"$f":"VLOOKUP(H2587,'Info Sheet'!O:P,2,0)","v":"OR"},3321,3321]
["Wisconsin","Pennsylvania",{"$f":"VLOOKUP(B2588,'Info Sheet'!O:P,2,0)","v":"PA"},5068,5068,null,"Wisconsin","Pennsylvania",{"$f":"VLOOKUP(H2588,'Info Sheet'!O:P,2,0)","v":"PA"},5276,5276]
["Wisconsin","Rhode Island",{"$f":"VLOOKUP(B2589,'Info Sheet'!O:P,2,0)","v":"RI"},512,512,null,"Wisconsin","Rhode Island",{"$f":"VLOOKUP(H2589,'Info Sheet'!O:P,2,0)","v":"RI"},137,137]
["Wisconsin","South Carolina",{"$f":"VLOOKUP(B2590,'Info Sheet'!O:P,2,0)","v":"SC"},2572,2572,null,"Wisconsin","South Carolina",{"$f":"VLOOKUP(H2590,'Info Sheet'!O:P,2,0)","v":"SC"},2230,2230]
["Wisconsin","South Dakota",{"$f":"VLOOKUP(B2591,'Info Sheet'!O:P,2,0)","v":"SD"},1154,1154,null,"Wisconsin","South Dakota",{"$f":"VLOOKUP(H2591,'Info Sheet'!O:P,2,0)","v":"SD"},1531,1531]
["Wisconsin","Tennessee",{"$f":"VLOOKUP(B2592,'Info Sheet'!O:P,2,0)","v":"TN"},2651,2651,null,"Wisconsin","Tennessee",{"$f":"VLOOKUP(H2592,'Info Sheet'!O:P,2,0)","v":"TN"},5666,5666]
["Wisconsin","Texas",{"$f":"VLOOKUP(B2593,'Info Sheet'!O:P,2,0)","v":"TX"},7788,7788,null,"Wisconsin","Texas",{"$f":"VLOOKUP(H2593,'Info Sheet'!O:P,2,0)","v":"TX"},16101,16101]
["Wisconsin","Utah",{"$f":"VLOOKUP(B2594,'Info Sheet'!O:P,2,0)","v":"UT"},2266,2266,null,"Wisconsin","Utah",{"$f":"VLOOKUP(H2594,'Info Sheet'!O:P,2,0)","v":"UT"},1941,1941]
["Wisconsin","Vermont",{"$f":"VLOOKUP(B2595,'Info Sheet'!O:P,2,0)","v":"VT"},479,479,null,"Wisconsin","Vermont",{"$f":"VLOOKUP(H2595,'Info Sheet'!O:P,2,0)","v":"VT"},665,665]
["Wisconsin","Virginia",{"$f":"VLOOKUP(B2596,'Info Sheet'!O:P,2,0)","v":"VA"},4611,4611,null,"Wisconsin","Virginia",{"$f":"VLOOKUP(H2596,'Info Sheet'!O:P,2,0)","v":"VA"},4764,4764]
["Wisconsin","Washington",{"$f":"VLOOKUP(B2597,'Info Sheet'!O:P,2,0)","v":"WA"},3776,3776,null,"Wisconsin","Washington",{"$f":"VLOOKUP(H2597,'Info Sheet'!O:P,2,0)","v":"WA"},4839,4839]
["Wisconsin","West Virginia",{"$f":"VLOOKUP(B2598,'Info Sheet'!O:P,2,0)","v":"WV"},1346,1346,null,"Wisconsin","West Virginia",{"$f":"VLOOKUP(H2598,'Info Sheet'!O:P,2,0)","v":"WV"},662,662]
["Wisconsin","Wisconsin",{"$f":"VLOOKUP(B2599,'Info Sheet'!O:P,2,0)","v":"WI"},0,0,null,"Wisconsin","Wisconsin",{"$f":"VLOOKUP(H2599,'Info Sheet'!O:P,2,0)","v":"WI"},0,0]
["Wisconsin","Wyoming",{"$f":"VLOOKUP(B2600,'Info Sheet'!O:P,2,0)","v":"WY"},173,173,null,"Wisconsin","Wyoming",{"$f":"VLOOKUP(H2600,'Info Sheet'!O:P,2,0)","v":"WY"},450,450]
["Wisconsin","Puerto Rico",{"$f":"VLOOKUP(B2601,'Info Sheet'!O:P,2,0)","v":"PR"},2224,2224,null,"Wisconsin","Puerto Rico",{"$f":"VLOOKUP(H2601,'Info Sheet'!O:P,2,0)","v":"PR"},1803,1803]
["Wyoming","Alabama",{"$f":"VLOOKUP(B2602,'Info Sheet'!O:P,2,0)","v":"AL"},483,483,null,"Wyoming","Alabama",{"$f":"VLOOKUP(H2602,'Info Sheet'!O:P,2,0)","v":"AL"},124,124]
["Wyoming","Alaska",{"$f":"VLOOKUP(B2603,'Info Sheet'!O:P,2,0)","v":"AK"},1351,1351,null,"Wyoming","Alaska",{"$f":"VLOOKUP(H2603,'Info Sheet'!O:P,2,0)","v":"AK"},463,463]
["Wyoming","Arizona",{"$f":"VLOOKUP(B2604,'Info Sheet'!O:P,2,0)","v":"AZ"},3894,3894,null,"Wyoming","Arizona",{"$f":"VLOOKUP(H2604,'Info Sheet'!O:P,2,0)","v":"AZ"},5889,5889]
["Wyoming","Arkansas",{"$f":"VLOOKUP(B2605,'Info Sheet'!O:P,2,0)","v":"AR"},418,418,null,"Wyoming","Arkansas",{"$f":"VLOOKUP(H2605,'Info Sheet'!O:P,2,0)","v":"AR"},2193,2193]
["Wyoming","California",{"$f":"VLOOKUP(B2606,'Info Sheet'!O:P,2,0)","v":"CA"},7358,7358,null,"Wyoming","California",{"$f":"VLOOKUP(H2606,'Info Sheet'!O:P,2,0)","v":"CA"},5269,5269]
["Wyoming","Colorado",{"$f":"VLOOKUP(B2607,'Info Sheet'!O:P,2,0)","v":"CO"},16894,16894,null,"Wyoming","Colorado",{"$f":"VLOOKUP(H2607,'Info Sheet'!O:P,2,0)","v":"CO"},12962,12962]
["Wyoming","Connecticut",{"$f":"VLOOKUP(B2608,'Info Sheet'!O:P,2,0)","v":"CT"},11,11,null,"Wyoming","Connecticut",{"$f":"VLOOKUP(H2608,'Info Sheet'!O:P,2,0)","v":"CT"},216,216]
["Wyoming","Delaware",{"$f":"VLOOKUP(B2609,'Info Sheet'!O:P,2,0)","v":"DE"},0,0,null,"Wyoming","Delaware",{"$f":"VLOOKUP(H2609,'Info Sheet'!O:P,2,0)","v":"DE"},463,463]
["Wyoming","District of Columbia",{"$f":"VLOOKUP(B2610,'Info Sheet'!O:P,2,0)","v":"DC"},0,0,null,"Wyoming","District of Columbia",{"$f":"VLOOKUP(H2610,'Info Sheet'!O:P,2,0)","v":"DC"},215,215]
["Wyoming","Florida",{"$f":"VLOOKUP(B2611,'Info Sheet'!O:P,2,0)","v":"FL"},2654,2654,null,"Wyoming","Florida",{"$f":"VLOOKUP(H2611,'Info Sheet'!O:P,2,0)","v":"FL"},1810,1810]
["Wyoming","Georgia",{"$f":"VLOOKUP(B2612,'Info Sheet'!O:P,2,0)","v":"GA"},957,957,null,"Wyoming","Georgia",{"$f":"VLOOKUP(H2612,'Info Sheet'!O:P,2,0)","v":"GA"},712,712]
["Wyoming","Hawaii",{"$f":"VLOOKUP(B2613,'Info Sheet'!O:P,2,0)","v":"HI"},25,25,null,"Wyoming","Hawaii",{"$f":"VLOOKUP(H2613,'Info Sheet'!O:P,2,0)","v":"HI"},82,82]
["Wyoming","Idaho",{"$f":"VLOOKUP(B2614,'Info Sheet'!O:P,2,0)","v":"ID"},3827,3827,null,"Wyoming","Idaho",{"$f":"VLOOKUP(H2614,'Info Sheet'!O:P,2,0)","v":"ID"},2574,2574]
["Wyoming","Illinois",{"$f":"VLOOKUP(B2615,'Info Sheet'!O:P,2,0)","v":"IL"},1770,1770,null,"Wyoming","Illinois",{"$f":"VLOOKUP(H2615,'Info Sheet'!O:P,2,0)","v":"IL"},946,946]
["Wyoming","Indiana",{"$f":"VLOOKUP(B2616,'Info Sheet'!O:P,2,0)","v":"IN"},317,317,null,"Wyoming","Indiana",{"$f":"VLOOKUP(H2616,'Info Sheet'!O:P,2,0)","v":"IN"},2211,2211]
["Wyoming","Iowa",{"$f":"VLOOKUP(B2617,'Info Sheet'!O:P,2,0)","v":"IA"},1063,1063,null,"Wyoming","Iowa",{"$f":"VLOOKUP(H2617,'Info Sheet'!O:P,2,0)","v":"IA"},643,643]
["Wyoming","Kansas",{"$f":"VLOOKUP(B2618,'Info Sheet'!O:P,2,0)","v":"KS"},1357,1357,null,"Wyoming","Kansas",{"$f":"VLOOKUP(H2618,'Info Sheet'!O:P,2,0)","v":"KS"},2136,2136]
["Wyoming","Kentucky",{"$f":"VLOOKUP(B2619,'Info Sheet'!O:P,2,0)","v":"KY"},606,606,null,"Wyoming","Kentucky",{"$f":"VLOOKUP(H2619,'Info Sheet'!O:P,2,0)","v":"KY"},349,349]
["Wyoming","Louisiana",{"$f":"VLOOKUP(B2620,'Info Sheet'!O:P,2,0)","v":"LA"},309,309,null,"Wyoming","Louisiana",{"$f":"VLOOKUP(H2620,'Info Sheet'!O:P,2,0)","v":"LA"},534,534]
["Wyoming","Maine",{"$f":"VLOOKUP(B2621,'Info Sheet'!O:P,2,0)","v":"ME"},0,0,null,"Wyoming","Maine",{"$f":"VLOOKUP(H2621,'Info Sheet'!O:P,2,0)","v":"ME"},580,580]
["Wyoming","Maryland",{"$f":"VLOOKUP(B2622,'Info Sheet'!O:P,2,0)","v":"MD"},345,345,null,"Wyoming","Maryland",{"$f":"VLOOKUP(H2622,'Info Sheet'!O:P,2,0)","v":"MD"},310,310]
["Wyoming","Massachusetts",{"$f":"VLOOKUP(B2623,'Info Sheet'!O:P,2,0)","v":"MA"},952,952,null,"Wyoming","Massachusetts",{"$f":"VLOOKUP(H2623,'Info Sheet'!O:P,2,0)","v":"MA"},264,264]
["Wyoming","Michigan",{"$f":"VLOOKUP(B2624,'Info Sheet'!O:P,2,0)","v":"MI"},2384,2384,null,"Wyoming","Michigan",{"$f":"VLOOKUP(H2624,'Info Sheet'!O:P,2,0)","v":"MI"},2686,2686]
["Wyoming","Minnesota",{"$f":"VLOOKUP(B2625,'Info Sheet'!O:P,2,0)","v":"MN"},865,865,null,"Wyoming","Minnesota",{"$f":"VLOOKUP(H2625,'Info Sheet'!O:P,2,0)","v":"MN"},780,780]
["Wyoming","Mississippi",{"$f":"VLOOKUP(B2626,'Info Sheet'!O:P,2,0)","v":"MS"},206,206,null,"Wyoming","Mississippi",{"$f":"VLOOKUP(H2626,'Info Sheet'!O:P,2,0)","v":"MS"},797,797]
["Wyoming","Missouri",{"$f":"VLOOKUP(B2627,'Info Sheet'!O:P,2,0)","v":"MO"},906,906,null,"Wyoming","Missouri",{"$f":"VLOOKUP(H2627,'Info Sheet'!O:P,2,0)","v":"MO"},2289,2289]
["Wyoming","Montana",{"$f":"VLOOKUP(B2628,'Info Sheet'!O:P,2,0)","v":"MT"},5534,5534,null,"Wyoming","Montana",{"$f":"VLOOKUP(H2628,'Info Sheet'!O:P,2,0)","v":"MT"},5036,5036]
["Wyoming","Nebraska",{"$f":"VLOOKUP(B2629,'Info Sheet'!O:P,2,0)","v":"NE"},4711,4711,null,"Wyoming","Nebraska",{"$f":"VLOOKUP(H2629,'Info Sheet'!O:P,2,0)","v":"NE"},3360,3360]
["Wyoming","Nevada",{"$f":"VLOOKUP(B2630,'Info Sheet'!O:P,2,0)","v":"NV"},1198,1198,null,"Wyoming","Nevada",{"$f":"VLOOKUP(H2630,'Info Sheet'!O:P,2,0)","v":"NV"},1843,1843]
["Wyoming","New Hampshire",{"$f":"VLOOKUP(B2631,'Info Sheet'!O:P,2,0)","v":"NH"},0,0,null,"Wyoming","New Hampshire",{"$f":"VLOOKUP(H2631,'Info Sheet'!O:P,2,0)","v":"NH"},233,233]
["Wyoming","New Jersey",{"$f":"VLOOKUP(B2632,'Info Sheet'!O:P,2,0)","v":"NJ"},128,128,null,"Wyoming","New Jersey",{"$f":"VLOOKUP(H2632,'Info Sheet'!O:P,2,0)","v":"NJ"},38,38]
["Wyoming","New Mexico",{"$f":"VLOOKUP(B2633,'Info Sheet'!O:P,2,0)","v":"NM"},1387,1387,null,"Wyoming","New Mexico",{"$f":"VLOOKUP(H2633,'Info Sheet'!O:P,2,0)","v":"NM"},1130,1130]
["Wyoming","New York",{"$f":"VLOOKUP(B2634,'Info Sheet'!O:P,2,0)","v":"NY"},490,490,null,"Wyoming","New York",{"$f":"VLOOKUP(H2634,'Info Sheet'!O:P,2,0)","v":"NY"},1235,1235]
["Wyoming","North Carolina",{"$f":"VLOOKUP(B2635,'Info Sheet'!O:P,2,0)","v":"NC"},888,888,null,"Wyoming","North Carolina",{"$f":"VLOOKUP(H2635,'Info Sheet'!O:P,2,0)","v":"NC"},1627,1627]
["Wyoming","North Dakota",{"$f":"VLOOKUP(B2636,'Info Sheet'!O:P,2,0)","v":"ND"},808,808,null,"Wyoming","North Dakota",{"$f":"VLOOKUP(H2636,'Info Sheet'!O:P,2,0)","v":"ND"},723,723]
["Wyoming","Ohio",{"$f":"VLOOKUP(B2637,'Info Sheet'!O:P,2,0)","v":"OH"},897,897,null,"Wyoming","Ohio",{"$f":"VLOOKUP(H2637,'Info Sheet'!O:P,2,0)","v":"OH"},1626,1626]
["Wyoming","Oklahoma",{"$f":"VLOOKUP(B2638,'Info Sheet'!O:P,2,0)","v":"OK"},1488,1488,null,"Wyoming","Oklahoma",{"$f":"VLOOKUP(H2638,'Info Sheet'!O:P,2,0)","v":"OK"},3521,3521]
["Wyoming","Oregon",{"$f":"VLOOKUP(B2639,'Info Sheet'!O:P,2,0)","v":"OR"},1867,1867,null,"Wyoming","Oregon",{"$f":"VLOOKUP(H2639,'Info Sheet'!O:P,2,0)","v":"OR"},2202,2202]
["Wyoming","Pennsylvania",{"$f":"VLOOKUP(B2640,'Info Sheet'!O:P,2,0)","v":"PA"},609,609,null,"Wyoming","Pennsylvania",{"$f":"VLOOKUP(H2640,'Info Sheet'!O:P,2,0)","v":"PA"},1698,1698]
["Wyoming","Rhode Island",{"$f":"VLOOKUP(B2641,'Info Sheet'!O:P,2,0)","v":"RI"},13,13,null,"Wyoming","Rhode Island",{"$f":"VLOOKUP(H2641,'Info Sheet'!O:P,2,0)","v":"RI"},44,44]
["Wyoming","South Carolina",{"$f":"VLOOKUP(B2642,'Info Sheet'!O:P,2,0)","v":"SC"},561,561,null,"Wyoming","South Carolina",{"$f":"VLOOKUP(H2642,'Info Sheet'!O:P,2,0)","v":"SC"},1014,1014]
["Wyoming","South Dakota",{"$f":"VLOOKUP(B2643,'Info Sheet'!O:P,2,0)","v":"SD"},2476,2476,null,"Wyoming","South Dakota",{"$f":"VLOOKUP(H2643,'Info Sheet'!O:P,2,0)","v":"SD"},2937,2937]
["Wyoming","Tennessee",{"$f":"VLOOKUP(B2644,'Info Sheet'!O:P,2,0)","v":"TN"},568,568,null,"Wyoming","Tennessee",{"$f":"VLOOKUP(H2644,'Info Sheet'!O:P,2,0)","v":"TN"},489,489]
["Wyoming","Texas",{"$f":"VLOOKUP(B2645,'Info Sheet'!O:P,2,0)","v":"TX"},4815,4815,null,"Wyoming","Texas",{"$f":"VLOOKUP(H2645,'Info Sheet'!O:P,2,0)","v":"TX"},6846,6846]
["Wyoming","Utah",{"$f":"VLOOKUP(B2646,'Info Sheet'!O:P,2,0)","v":"UT"},7076,7076,null,"Wyoming","Utah",{"$f":"VLOOKUP(H2646,'Info Sheet'!O:P,2,0)","v":"UT"},5400,5400]
["Wyoming","Vermont",{"$f":"VLOOKUP(B2647,'Info Sheet'!O:P,2,0)","v":"VT"},79,79,null,"Wyoming","Vermont",{"$f":"VLOOKUP(H2647,'Info Sheet'!O:P,2,0)","v":"VT"},186,186]
["Wyoming","Virginia",{"$f":"VLOOKUP(B2648,'Info Sheet'!O:P,2,0)","v":"VA"},1169,1169,null,"Wyoming","Virginia",{"$f":"VLOOKUP(H2648,'Info Sheet'!O:P,2,0)","v":"VA"},756,756]
["Wyoming","Washington",{"$f":"VLOOKUP(B2649,'Info Sheet'!O:P,2,0)","v":"WA"},3682,3682,null,"Wyoming","Washington",{"$f":"VLOOKUP(H2649,'Info Sheet'!O:P,2,0)","v":"WA"},2539,2539]
["Wyoming","West Virginia",{"$f":"VLOOKUP(B2650,'Info Sheet'!O:P,2,0)","v":"WV"},0,0,null,"Wyoming","West Virginia",{"$f":"VLOOKUP(H2650,'Info Sheet'!O:P,2,0)","v":"WV"},252,252]
["Wyoming","Wisconsin",{"$f":"VLOOKUP(B2651,'Info Sheet'!O:P,2,0)","v":"WI"},450,450,null,"Wyoming","Wisconsin",{"$f":"VLOOKUP(H2651,'Info Sheet'!O:P,2,0)","v":"WI"},173,173]
["Wyoming","Wyoming",{"$f":"VLOOKUP(B2652,'Info Sheet'!O:P,2,0)","v":"WY"},0,0,null,"Wyoming","Wyoming",{"$f":"VLOOKUP(H2652,'Info Sheet'!O:P,2,0)","v":"WY"},0,0]
["Wyoming","Puerto Rico",{"$f":"VLOOKUP(B2653,'Info Sheet'!O:P,2,0)","v":"PR"},16,16,null,"Wyoming","Puerto Rico",{"$f":"VLOOKUP(H2653,'Info Sheet'!O:P,2,0)","v":"PR"},0,0]
["Puerto Rico","Alabama",{"$f":"VLOOKUP(B2654,'Info Sheet'!O:P,2,0)","v":"AL"},672,672,null,"Puerto Rico","Alabama",{"$f":"VLOOKUP(H2654,'Info Sheet'!O:P,2,0)","v":"AL"},1416,1416]
["Puerto Rico","Alaska",{"$f":"VLOOKUP(B2655,'Info Sheet'!O:P,2,0)","v":"AK"},591,591,null,"Puerto Rico","Alaska",{"$f":"VLOOKUP(H2655,'Info Sheet'!O:P,2,0)","v":"AK"},1088,1088]
["Puerto Rico","Arizona",{"$f":"VLOOKUP(B2656,'Info Sheet'!O:P,2,0)","v":"AZ"},571,571,null,"Puerto Rico","Arizona",{"$f":"VLOOKUP(H2656,'Info Sheet'!O:P,2,0)","v":"AZ"},3261,3261]
["Puerto Rico","Arkansas",{"$f":"VLOOKUP(B2657,'Info Sheet'!O:P,2,0)","v":"AR"},93,93,null,"Puerto Rico","Arkansas",{"$f":"VLOOKUP(H2657,'Info Sheet'!O:P,2,0)","v":"AR"},616,616]
["Puerto Rico","California",{"$f":"VLOOKUP(B2658,'Info Sheet'!O:P,2,0)","v":"CA"},1903,1903,null,"Puerto Rico","California",{"$f":"VLOOKUP(H2658,'Info Sheet'!O:P,2,0)","v":"CA"},4890,4890]
["Puerto Rico","Colorado",{"$f":"VLOOKUP(B2659,'Info Sheet'!O:P,2,0)","v":"CO"},388,388,null,"Puerto Rico","Colorado",{"$f":"VLOOKUP(H2659,'Info Sheet'!O:P,2,0)","v":"CO"},2494,2494]
["Puerto Rico","Connecticut",{"$f":"VLOOKUP(B2660,'Info Sheet'!O:P,2,0)","v":"CT"},3118,3118,null,"Puerto Rico","Connecticut",{"$f":"VLOOKUP(H2660,'Info Sheet'!O:P,2,0)","v":"CT"},7360,7360]
["Puerto Rico","Delaware",{"$f":"VLOOKUP(B2661,'Info Sheet'!O:P,2,0)","v":"DE"},13,13,null,"Puerto Rico","Delaware",{"$f":"VLOOKUP(H2661,'Info Sheet'!O:P,2,0)","v":"DE"},2018,2018]
["Puerto Rico","District of Columbia",{"$f":"VLOOKUP(B2662,'Info Sheet'!O:P,2,0)","v":"DC"},212,212,null,"Puerto Rico","District of Columbia",{"$f":"VLOOKUP(H2662,'Info Sheet'!O:P,2,0)","v":"DC"},0,0]
["Puerto Rico","Florida",{"$f":"VLOOKUP(B2663,'Info Sheet'!O:P,2,0)","v":"FL"},22068,22068,null,"Puerto Rico","Florida",{"$f":"VLOOKUP(H2663,'Info Sheet'!O:P,2,0)","v":"FL"},56217,56217]
["Puerto Rico","Georgia",{"$f":"VLOOKUP(B2664,'Info Sheet'!O:P,2,0)","v":"GA"},686,686,null,"Puerto Rico","Georgia",{"$f":"VLOOKUP(H2664,'Info Sheet'!O:P,2,0)","v":"GA"},4375,4375]
["Puerto Rico","Hawaii",{"$f":"VLOOKUP(B2665,'Info Sheet'!O:P,2,0)","v":"HI"},110,110,null,"Puerto Rico","Hawaii",{"$f":"VLOOKUP(H2665,'Info Sheet'!O:P,2,0)","v":"HI"},574,574]
["Puerto Rico","Idaho",{"$f":"VLOOKUP(B2666,'Info Sheet'!O:P,2,0)","v":"ID"},13,13,null,"Puerto Rico","Idaho",{"$f":"VLOOKUP(H2666,'Info Sheet'!O:P,2,0)","v":"ID"},618,618]
["Puerto Rico","Illinois",{"$f":"VLOOKUP(B2667,'Info Sheet'!O:P,2,0)","v":"IL"},3287,3287,null,"Puerto Rico","Illinois",{"$f":"VLOOKUP(H2667,'Info Sheet'!O:P,2,0)","v":"IL"},6491,6491]
["Puerto Rico","Indiana",{"$f":"VLOOKUP(B2668,'Info Sheet'!O:P,2,0)","v":"IN"},1014,1014,null,"Puerto Rico","Indiana",{"$f":"VLOOKUP(H2668,'Info Sheet'!O:P,2,0)","v":"IN"},840,840]
["Puerto Rico","Iowa",{"$f":"VLOOKUP(B2669,'Info Sheet'!O:P,2,0)","v":"IA"},0,0,null,"Puerto Rico","Iowa",{"$f":"VLOOKUP(H2669,'Info Sheet'!O:P,2,0)","v":"IA"},992,992]
["Puerto Rico","Kansas",{"$f":"VLOOKUP(B2670,'Info Sheet'!O:P,2,0)","v":"KS"},293,293,null,"Puerto Rico","Kansas",{"$f":"VLOOKUP(H2670,'Info Sheet'!O:P,2,0)","v":"KS"},925,925]
["Puerto Rico","Kentucky",{"$f":"VLOOKUP(B2671,'Info Sheet'!O:P,2,0)","v":"KY"},291,291,null,"Puerto Rico","Kentucky",{"$f":"VLOOKUP(H2671,'Info Sheet'!O:P,2,0)","v":"KY"},541,541]
["Puerto Rico","Louisiana",{"$f":"VLOOKUP(B2672,'Info Sheet'!O:P,2,0)","v":"LA"},168,168,null,"Puerto Rico","Louisiana",{"$f":"VLOOKUP(H2672,'Info Sheet'!O:P,2,0)","v":"LA"},1450,1450]
["Puerto Rico","Maine",{"$f":"VLOOKUP(B2673,'Info Sheet'!O:P,2,0)","v":"ME"},0,0,null,"Puerto Rico","Maine",{"$f":"VLOOKUP(H2673,'Info Sheet'!O:P,2,0)","v":"ME"},307,307]
["Puerto Rico","Maryland",{"$f":"VLOOKUP(B2674,'Info Sheet'!O:P,2,0)","v":"MD"},237,237,null,"Puerto Rico","Maryland",{"$f":"VLOOKUP(H2674,'Info Sheet'!O:P,2,0)","v":"MD"},1685,1685]
["Puerto Rico","Massachusetts",{"$f":"VLOOKUP(B2675,'Info Sheet'!O:P,2,0)","v":"MA"},5674,5674,null,"Puerto Rico","Massachusetts",{"$f":"VLOOKUP(H2675,'Info Sheet'!O:P,2,0)","v":"MA"},11554,11554]
["Puerto Rico","Michigan",{"$f":"VLOOKUP(B2676,'Info Sheet'!O:P,2,0)","v":"MI"},612,612,null,"Puerto Rico","Michigan",{"$f":"VLOOKUP(H2676,'Info Sheet'!O:P,2,0)","v":"MI"},3122,3122]
["Puerto Rico","Minnesota",{"$f":"VLOOKUP(B2677,'Info Sheet'!O:P,2,0)","v":"MN"},50,50,null,"Puerto Rico","Minnesota",{"$f":"VLOOKUP(H2677,'Info Sheet'!O:P,2,0)","v":"MN"},227,227]
["Puerto Rico","Mississippi",{"$f":"VLOOKUP(B2678,'Info Sheet'!O:P,2,0)","v":"MS"},197,197,null,"Puerto Rico","Mississippi",{"$f":"VLOOKUP(H2678,'Info Sheet'!O:P,2,0)","v":"MS"},1213,1213]
["Puerto Rico","Missouri",{"$f":"VLOOKUP(B2679,'Info Sheet'!O:P,2,0)","v":"MO"},322,322,null,"Puerto Rico","Missouri",{"$f":"VLOOKUP(H2679,'Info Sheet'!O:P,2,0)","v":"MO"},2402,2402]
["Puerto Rico","Montana",{"$f":"VLOOKUP(B2680,'Info Sheet'!O:P,2,0)","v":"MT"},0,0,null,"Puerto Rico","Montana",{"$f":"VLOOKUP(H2680,'Info Sheet'!O:P,2,0)","v":"MT"},364,364]
["Puerto Rico","Nebraska",{"$f":"VLOOKUP(B2681,'Info Sheet'!O:P,2,0)","v":"NE"},0,0,null,"Puerto Rico","Nebraska",{"$f":"VLOOKUP(H2681,'Info Sheet'!O:P,2,0)","v":"NE"},0,0]
["Puerto Rico","Nevada",{"$f":"VLOOKUP(B2682,'Info Sheet'!O:P,2,0)","v":"NV"},0,0,null,"Puerto Rico","Nevada",{"$f":"VLOOKUP(H2682,'Info Sheet'!O:P,2,0)","v":"NV"},892,892]
["Puerto Rico","New Hampshire",{"$f":"VLOOKUP(B2683,'Info Sheet'!O:P,2,0)","v":"NH"},0,0,null,"Puerto Rico","New Hampshire",{"$f":"VLOOKUP(H2683,'Info Sheet'!O:P,2,0)","v":"NH"},131,131]
["Puerto Rico","New Jersey",{"$f":"VLOOKUP(B2684,'Info Sheet'!O:P,2,0)","v":"NJ"},5316,5316,null,"Puerto Rico","New Jersey",{"$f":"VLOOKUP(H2684,'Info Sheet'!O:P,2,0)","v":"NJ"},9618,9618]
["Puerto Rico","New Mexico",{"$f":"VLOOKUP(B2685,'Info Sheet'!O:P,2,0)","v":"NM"},443,443,null,"Puerto Rico","New Mexico",{"$f":"VLOOKUP(H2685,'Info Sheet'!O:P,2,0)","v":"NM"},1160,1160]
["Puerto Rico","New York",{"$f":"VLOOKUP(B2686,'Info Sheet'!O:P,2,0)","v":"NY"},9697,9697,null,"Puerto Rico","New York",{"$f":"VLOOKUP(H2686,'Info Sheet'!O:P,2,0)","v":"NY"},24643,24643]
["Puerto Rico","North Carolina",{"$f":"VLOOKUP(B2687,'Info Sheet'!O:P,2,0)","v":"NC"},984,984,null,"Puerto Rico","North Carolina",{"$f":"VLOOKUP(H2687,'Info Sheet'!O:P,2,0)","v":"NC"},4819,4819]
["Puerto Rico","North Dakota",{"$f":"VLOOKUP(B2688,'Info Sheet'!O:P,2,0)","v":"ND"},0,0,null,"Puerto Rico","North Dakota",{"$f":"VLOOKUP(H2688,'Info Sheet'!O:P,2,0)","v":"ND"},76,76]
["Puerto Rico","Ohio",{"$f":"VLOOKUP(B2689,'Info Sheet'!O:P,2,0)","v":"OH"},397,397,null,"Puerto Rico","Ohio",{"$f":"VLOOKUP(H2689,'Info Sheet'!O:P,2,0)","v":"OH"},5150,5150]
["Puerto Rico","Oklahoma",{"$f":"VLOOKUP(B2690,'Info Sheet'!O:P,2,0)","v":"OK"},79,79,null,"Puerto Rico","Oklahoma",{"$f":"VLOOKUP(H2690,'Info Sheet'!O:P,2,0)","v":"OK"},314,314]
["Puerto Rico","Oregon",{"$f":"VLOOKUP(B2691,'Info Sheet'!O:P,2,0)","v":"OR"},0,0,null,"Puerto Rico","Oregon",{"$f":"VLOOKUP(H2691,'Info Sheet'!O:P,2,0)","v":"OR"},977,977]
["Puerto Rico","Pennsylvania",{"$f":"VLOOKUP(B2692,'Info Sheet'!O:P,2,0)","v":"PA"},5807,5807,null,"Puerto Rico","Pennsylvania",{"$f":"VLOOKUP(H2692,'Info Sheet'!O:P,2,0)","v":"PA"},16845,16845]
["Puerto Rico","Rhode Island",{"$f":"VLOOKUP(B2693,'Info Sheet'!O:P,2,0)","v":"RI"},1798,1798,null,"Puerto Rico","Rhode Island",{"$f":"VLOOKUP(H2693,'Info Sheet'!O:P,2,0)","v":"RI"},685,685]
["Puerto Rico","South Carolina",{"$f":"VLOOKUP(B2694,'Info Sheet'!O:P,2,0)","v":"SC"},116,116,null,"Puerto Rico","South Carolina",{"$f":"VLOOKUP(H2694,'Info Sheet'!O:P,2,0)","v":"SC"},3505,3505]
["Puerto Rico","South Dakota",{"$f":"VLOOKUP(B2695,'Info Sheet'!O:P,2,0)","v":"SD"},113,113,null,"Puerto Rico","South Dakota",{"$f":"VLOOKUP(H2695,'Info Sheet'!O:P,2,0)","v":"SD"},134,134]
["Puerto Rico","Tennessee",{"$f":"VLOOKUP(B2696,'Info Sheet'!O:P,2,0)","v":"TN"},269,269,null,"Puerto Rico","Tennessee",{"$f":"VLOOKUP(H2696,'Info Sheet'!O:P,2,0)","v":"TN"},1800,1800]
["Puerto Rico","Texas",{"$f":"VLOOKUP(B2697,'Info Sheet'!O:P,2,0)","v":"TX"},1781,1781,null,"Puerto Rico","Texas",{"$f":"VLOOKUP(H2697,'Info Sheet'!O:P,2,0)","v":"TX"},13840,13840]
["Puerto Rico","Utah",{"$f":"VLOOKUP(B2698,'Info Sheet'!O:P,2,0)","v":"UT"},882,882,null,"Puerto Rico","Utah",{"$f":"VLOOKUP(H2698,'Info Sheet'!O:P,2,0)","v":"UT"},622,622]
["Puerto Rico","Vermont",{"$f":"VLOOKUP(B2699,'Info Sheet'!O:P,2,0)","v":"VT"},0,0,null,"Puerto Rico","Vermont",{"$f":"VLOOKUP(H2699,'Info Sheet'!O:P,2,0)","v":"VT"},19,19]
["Puerto Rico","Virginia",{"$f":"VLOOKUP(B2700,'Info Sheet'!O:P,2,0)","v":"VA"},2153,2153,null,"Puerto Rico","Virginia",{"$f":"VLOOKUP(H2700,'Info Sheet'!O:P,2,0)","v":"VA"},3044,3044]
["Puerto Rico","Washington",{"$f":"VLOOKUP(B2701,'Info Sheet'!O:P,2,0)","v":"WA"},41,41,null,"Puerto Rico","Washington",{"$f":"VLOOKUP(H2701,'Info Sheet'!O:P,2,0)","v":"WA"},2108,2108]
["Puerto Rico","West Virginia",{"$f":"VLOOKUP(B2702,'Info Sheet'!O:P,2,0)","v":"WV"},163,163,null,"Puerto Rico","West Virginia",{"$f":"VLOOKUP(H2702,'Info Sheet'!O:P,2,0)","v":"WV"},941,941]
["Puerto Rico","Wisconsin",{"$f":"VLOOKUP(B2703,'Info Sheet'!O:P,2,0)","v":"WI"},1803,1803,null,"Puerto Rico","Wisconsin",{"$f":"VLOOKUP(H2703,'Info Sheet'!O:P,2,0)","v":"WI"},2224,2224]
["Puerto Rico","Wyoming",{"$f":"VLOOKUP(B2704,'Info Sheet'!O:P,2,0)","v":"WY"},0,0,null,"Puerto Rico","Wyoming",{"$f":"VLOOKUP(H2704,'Info Sheet'!O:P,2,0)","v":"WY"},16,16]
["Puerto Rico","Puerto Rico",{"$f":"VLOOKUP(B2705,'Info Sheet'!O:P,2,0)","v":"PR"},0,0,null,"Puerto Rico","Puerto Rico",{"$f":"VLOOKUP(H2705,'Info Sheet'!O:P,2,0)","v":"PR"},0,0]

{"sheet":"Per Income capita","index":10,"n_rows":57,"n_cols":12,"rows_kept":57,"cut":false,"hidden":true,"merged":[[2,1,2,2],[2,3,2,4],[2,5,2,6]]}
[]
[]
[null,"2012p",null,2011,null,2010]
["Area name","Dollars","Rank*","Dollars","Rank*","Dollars","Rank*","Average Incme"]
["United States",42693,"NA",41560,"NA",39791,"NA",{"$f":"(B5+D5+F5)/3","v":41348}]
["Alabama",35625,42,34880,42,33710,42,{"$f":"(B6+D6+F6)/3","v":34738.333333333336}]
["Alaska",46778,10,45665,10,43749,9,45397.333333333336]
["Arizona",35979,41,35062,41,33773,41,34938]
["Arkansas",34723,45,33740,45,32373,45,33612]
["California",44980,15,43647,17,41893,16,43506.666666666664]
["Colorado",45135,13,44053,13,42107,12,43765]
["Connecticut",58908,1,57902,1,55427,1,57412.333333333336]
["Delaware",41940,23,41449,22,39425,22,40938]
["District of Columbia",74710,"NA",73783,"NA",71220,"NA",73237.666666666672]
["Florida",40344,27,39636,26,38345,24,39441.666666666664]
["Georgia",36869,40,35979,39,34531,37,35793]
["Hawaii",44024,17,42925,18,40952,17,42633.666666666664]
["Idaho",33749,49,32881,49,31556,49,32728.666666666668]
["Illinois",44815,16,43721,16,42025,13,43520.333333333336]
["Indiana",36902,39,35689,40,34028,40,35539.666666666664]
["Iowa",42126,22,41156,23,37882,27,40388]
["Kansas",41835,24,40883,24,38545,23,40421]
["Kentucky",35041,44,33989,44,32504,44,33844.666666666664]
["Louisiana",39413,29,38549,28,37116,28,38359.333333333336]
["Maine",39481,28,38299,29,36629,29,38136.333333333336]
["Maryland",51971,5,50656,5,48621,5,50416]
["Massachusetts",54687,2,53471,2,51143,2,53100.333333333336]
["Michigan",37497,35,36264,36,34326,39,36029]
["Minnesota",46227,11,44560,11,42528,10,44438.333333333336]
["Mississippi",33073,50,32000,50,30841,50,31971.333333333332]
["Missouri",39049,31,37969,30,36406,30,37808]
["Montana",37370,36,36016,38,34405,38,35930.333333333336]
["Nebraska",43143,20,42450,19,39445,21,41679.333333333336]
["Nevada",37361,37,36964,34,35777,33,36700.666666666664]
["New Hampshire",47058,9,45881,9,43968,8,45635.666666666664]
["New Jersey",53628,3,52430,3,50428,3,52162]
["New Mexico",35079,43,34133,43,32940,43,34050.666666666664]
["New York",52095,4,51126,4,49119,4,50780]
["North Carolina",37049,38,36028,37,34604,36,35893.666666666664,"NORTH CAROLINA",{"$f":"EXACT(I39,A39)","v":false},{"$f":"PROPER(I39)","v":"North Carolina"},{"$f":"EXACT(K39,A39)","v":true}]
["North Dakota",51893,6,47236,7,42462,11,47197]
["Ohio",39289,30,37836,31,35931,31,37685.333333333336]
["Oklahoma",39006,32,37679,32,35535,34,37406.666666666664]
["Oregon",38786,33,37527,33,35906,32,37406.333333333336]
["Pennsylvania",43616,19,42291,20,40444,18,42117]
["Puerto Rico",42015,null,43015,null,42655,null,42561.666666666664]
["Rhode Island",44990,14,43875,15,42001,15,43622]
["South Carolina",34266,48,33388,48,32193,46,33282.333333333336]
["South Dakota",43659,18,44217,12,39558,20,42478]
["Tennessee",37678,34,36567,35,35103,35,36449.333333333336]
["Texas",41471,25,40147,25,38222,25,39946.666666666664]
["Utah",34601,46,33509,46,32121,47,33410.333333333336]
["Vermont",42994,21,41572,21,39736,19,41434]
["Virginia",47082,8,46107,8,44134,7,45774.333333333336]
["Washington",45413,12,43878,14,42024,14,43771.666666666664]
["West Virginia",34477,47,33403,47,31806,48,33228.666666666664]
["Wisconsin",40537,26,39575,27,38010,26,39374]
["Wyoming",48670,7,47898,6,45353,6,47307]

{"sheet":"In_out migration","index":11,"n_rows":55,"n_cols":29,"rows_kept":55,"cut":false,"hidden":true,"merged":[[0,15,0,17],[0,3,0,4],[0,5,0,6],[0,1,0,2]]}
[null,2010,null,2011,null,2012,null,null,null,null,null,null,null,null,null,"Population 1 year and over"]
[null,"In migration","Out migration","In migration","Out migration","In migration","Out migration","Total In Migrants"," Total Out migrants","In %","Out %",null,null,null,null,2012,2011,2010,"Total",null,"State","InMigrants % of Total Population","OutMigrants % of Total Population",null,"OutMigrants % of Total Population"]
["Alabama",108723,99221,117726,106806,104600,109210,{"$f":"F3++D3+B3","v":331049},{"$f":"G3+E3+C3","v":315237},{"$f":"H3/S3","v":2.3249104673256214E-2},{"$f":"I3/S3","v":2.2138650199466755E-2},{"$f":"IF(J3>K3,1,0)","v":1},null,null,"Alabama",4764428,4745278,4729509,{"$f":"P3+Q3+R3","v":14239215},null,"DE",8.353689337017961E-2,{"$f":"VLOOKUP(U3,$X$3:$Y$54,2,FALSE)","v":9.0168459340541851E-2},"AK",0.12527842510867826,null,null,"ALASKA","AK"]
["Alaska",36326,94692,35084,88850,33415,84068,{"$f":"F4++D4+B4","v":104825},{"$f":"G4+E4+C4","v":267610},{"$f":"H4/S4","v":4.9072571697683934E-2},{"$f":"I4/S4","v":0.12527842510867826},{"$f":"IF(J4>K4,1,0)","v":0},null,null,"Alaska",721186,711962,702974,2136122,null,"WY",5.3223875451179063E-2,{"$f":"VLOOKUP(U4,$X$3:$Y$54,2,FALSE)","v":5.4739801561184707E-2},"DE",9.0168459340541851E-2,null,null,"ALABAMA","AL"]
["Arizona",222725,176768,222877,211816,232457,206842,678059,595426,3.5308228069640096E-2,3.100532108060438E-2,1,null,null,"Arizona",6468907,6402301,6332786,19203994,null,"ND",4.9650531134566071E-2,3.6920143421845089E-2,"WY",5.4739801561184707E-2,null,null,"ARKANSAS","AR"]
["Arkansas",79127,64264,69845,77226,76948,64967,225920,206457,2.5945103688541159E-2,2.3709933924509301E-2,1,null,null,"Arkansas",2912680,2906632,2888304,8707616,null,"AK",4.9072571697683934E-2,0.12527842510867826,"HI",4.2331424010010464E-2,null,null,"ARIZONA","AZ"]
["California",444749,573988,468428,562343,493641,566986,1406818,1703317,1.2594237021421199E-2,1.5248580854535622E-2,0,null,null,"California",37572738,37222678,36907897,111703313,null,"NV",4.1740853213347889E-2,4.0123103880964933E-2,"NV",4.0123103880964933E-2,null,null,"CALIFORNIA","CA"]
["Colorado",186366,140620,202124,160623,205060,161530,593550,462773,3.9150884560660189E-2,3.0524761689479232E-2,1,null,null,"Colorado",5123944,5048443,4988190,15160577,null,"HI",4.0762631002429064E-2,4.2331424010010464E-2,"ND",3.6920143421845089E-2,null,null,"COLORADO","CO"]
["Connecticut",77333,89360,71502,91295,80311,87023,229146,267678,2.1525895592464237E-2,2.514557827934872E-2,0,null,null,"Connecticut",3555319,3548667,3541146,10645132,null,"CO",3.9150884560660189E-2,3.0524761689479232E-2,"ID",3.5473264384111504E-2,null,null,"CONNECTICUT","CT"]
["Delaware",30759,30055,33912,26631,34757,25149,99428,81835,3.6913024512033266E-2,3.0381556110373759E-2,1,null,null,"Delaware",906576,897187,889812,2693575,null,"ID",3.7418973277194657E-2,3.5473264384111504E-2,"MT",3.4076890319125114E-2,null,null,"DISTRICT OF COLUMBIA","DC"]
["District of Columbia",51244,56052,48066,49732,53830,59513,153140,165297,8.353689337017961E-2,9.0168459340541851E-2,0,null,null,"District of Columbia ",624847,611608,596747,1833202,null,"DC",3.6913024512033266E-2,3.0381556110373759E-2,"SD",3.269846731054369E-2,null,null,"DELAWARE","DE"]
["Florida",482889,427853,498597,437202,537148,428325,1518634,1293380,2.6818590302631815E-2,2.2840676769793074E-2,1,null,null,"Florida",19114620,18863948,18647600,56626168,null,"VT",3.6230595166638811E-2,3.0419019195127628E-2,"KS",3.2693039997008178E-2,null,null,"FLORIDA","FL"]
["Georgia",249459,244992,271077,248892,277466,252262,798002,746146,2.7438172033675424E-2,2.5655176691585714E-2,1,null,null,"Georgia",9796547,9699859,9587237,29083643,null,"MT",3.6092001457553154E-2,3.4076890319125114E-2,"AZ",3.100532108060438E-2,null,null,"GEORGIA","GA"]
["Hawaii",53581,49218,57542,61940,55145,61509,166268,172667,4.0762631002429064E-2,4.2331424010010464E-2,0,null,null,"Hawaii",1374852,1357806,1346274,4078932,null,"AZ",3.5308228069640096E-2,3.100532108060438E-2,"NH",3.0716969152887172E-2,null,null,"HAWAII","HI"]
["Idaho",55638,53122,60336,57831,59283,55191,175257,166144,3.7418973277194657E-2,3.5473264384111504E-2,1,null,null,"Idaho",1573036,1559637,1550967,4683640,null,"SC",3.3653522070096427E-2,2.6416778384863088E-2,"CO",3.0524761689479232E-2,null,null,"IOWA","IA"]
["Illinois",203959,277579,216204,269008,208755,277953,628918,824540,1.6496795282990633E-2,2.1628046235975272E-2,0,null,null,"Illinois",12725119,12718402,12680126,38123647,null,"SD",3.2494491001286117E-2,3.269846731054369E-2,"VT",3.0419019195127628E-2,null,null,"IDAHO","ID"]
["Indiana",127353,130170,127874,143228,134137,144597,389364,417995,2.0164809475167231E-2,2.1647583075406374E-2,0,null,null,"Indiana",6457067,6437155,6414862,19309084,null,"NH",3.2370304173835199E-2,3.0716969152887172E-2,"DC",3.0381556110373759E-2,null,null,"ILLINOIS","IL"]
["Iowa",72557,66922,70405,74516,75760,73325,218722,214763,2.4098305024988321E-2,2.3662111182604251E-2,1,null,null,"Iowa",3035469,3027718,3013053,9076240,null,"VA",3.1953489305706968E-2,2.9141603901999581E-2,"VA",2.9141603901999581E-2,null,null,"INDIANA","IN"]
["Kansas",95059,90681,83640,94180,88284,93134,266983,277995,3.1397995998205849E-2,3.2693039997008178E-2,0,null,null,"Kansas",2848708,2833584,2820894,8503186,null,"OR",3.1665947601724607E-2,2.7714008491325097E-2,"NM",2.8558492272766335E-2,null,null,"KANSAS","KS"]
["Kentucky",118443,92999,110031,99256,112787,103004,341261,295259,2.6369382613937946E-2,2.2814788508527795E-2,1,null,null,"Kentucky",4328626,4316297,4296639,12941562,null,"KS",3.1397995998205849E-2,3.2693039997008178E-2,"MD",2.7906627349074248E-2,null,null,"KENTUCKY","KY"]
["Louisiana",97889,88131,99138,86593,91215,95956,288242,270680,2.1275499569237601E-2,1.9979226564488289E-2,1,null,null,"Louisiana",4545914,4518629,4483529,13548072,null,"NM",3.0936552514468103E-2,2.8558492272766335E-2,"UT",2.7824238465448972E-2,null,null,"LOUISIANA","LA"]
["Maine",27758,32209,33818,33729,27523,38574,89099,104512,2.2583460255832161E-2,2.649011322526101E-2,0,null,null,"Maine",1315586,1315833,1313902,3945321,null,"WA",3.0445884360767696E-2,2.656381594020793E-2,"OR",2.7714008491325097E-2,null,null,"MASSACHUSETTS","MA"]
["Maryland",164484,159866,153979,165041,154983,157664,473446,482571,2.7378937175897032E-2,2.7906627349074248E-2,0,null,null,"Maryland",5816472,5759087,5716785,17292344,null,"UT",3.0228104605168903E-2,2.7824238465448972E-2,"RI",2.7703120511824525E-2,null,null,"MARYLAND","MD"]
["Massachusetts",140162,144152,139830,145869,142577,158156,422569,448177,2.1576212507687025E-2,2.2883747253247749E-2,0,null,null,"Massachusetts",6580641,6515057,6489250,19584948,null,"RI",2.9548586215719347E-2,2.7703120511824525E-2,"NE",2.6637828410294787E-2,null,null,"MAINE","ME"]
["Michigan",116149,178207,139158,186505,133981,175733,389288,540445,1.328279777577762E-2,1.8440387692223073E-2,0,null,null,"Michigan",9778980,9766574,9762127,29307681,null,"OK",2.8905900426805409E-2,2.4435462892668239E-2,"WA",2.656381594020793E-2,null,null,"MICHIGAN","MI"]
["Minnesota",89872,104765,101029,103253,101042,115946,291943,323964,1.8434453952319827E-2,2.0456388542315931E-2,0,null,null,"Minnesota",5315228,5277329,5244256,15836813,null,"NC",2.8008900006016163E-2,2.3437001601025641E-2,"ME",2.649011322526101E-2,null,null,"MINNESOTA","MN"]
["Mississippi",72321,68363,68511,68597,73500,66947,214332,203907,2.4295322630100279E-2,2.3113610433980261E-2,1,null,null,"Mississippi",2947696,2943021,2931228,8821945,null,"GA",2.7438172033675424E-2,2.5655176691585714E-2,"SC",2.6416778384863088E-2,null,null,"MISSOURI","MO"]
["Missouri",145226,148055,149439,138404,162930,142754,457595,429213,2.5692187720987653E-2,2.409864829879757E-2,1,null,null,"Missouri",5951913,5937896,5920858,17810667,null,"MD",2.7378937175897032E-2,2.7906627349074248E-2,"WV",2.5914783882177335E-2,null,null,"MISSISSIPPI","MS"]
["Montana",35630,35870,33553,31204,37690,33832,106873,100906,3.6092001457553154E-2,3.4076890319125114E-2,1,null,null,"Montana",995544,987076,978507,2961127,null,"NE",2.6907590650664687E-2,2.6637828410294787E-2,"GA",2.5655176691585714E-2,null,null,"MONTANA","MT"]
["Nebraska",51290,43531,52070,52809,43266,48816,146626,145156,2.6907590650664687E-2,2.6637828410294787E-2,1,null,null,"Nebraska",1829420,1817126,1802697,5449243,null,"FL",2.6818590302631815E-2,2.2840676769793074E-2,"CT",2.514557827934872E-2,null,null,"NORTH CAROLINA","NC"]
["Nevada",102677,109409,110345,115943,124285,98882,337307,324234,4.1740853213347889E-2,4.0123103880964933E-2,1,null,null,"Nevada",2725280,2688336,2667364,8080980,null,"TN",2.6736494081165813E-2,2.4281882339314904E-2,"OK",2.4435462892668239E-2,null,null,"NORTH DAKOTA","ND"]
["New Hampshire",39367,38399,37000,43277,50484,38696,126851,120372,3.2370304173835199E-2,3.0716969152887172E-2,1,null,null,"New Hampshire",1309203,1305678,1303865,3918746,null,"KY",2.6369382613937946E-2,2.2814788508527795E-2,"TN",2.4281882339314904E-2,null,null,"NEBRASKA","NE"]
["New Jersey",127369,193972,140194,216369,130223,219202,397786,629543,1.5181148425984278E-2,2.4025947930644668E-2,0,null,null,"New Jersey",8772744,8719952,8709933,26202629,null,"AR",2.5945103688541159E-2,2.3709933924509301E-2,"MO",2.409864829879757E-2,null,null,"NEW HAMPSHIRE","NH"]
["New Mexico",73605,50438,62130,61431,54693,63921,190428,175790,3.0936552514468103E-2,2.8558492272766335E-2,1,null,null,"New Mexico",2060595,2055293,2039549,6155437,null,"MO",2.5692187720987653E-2,2.409864829879757E-2,"NJ",2.4025947930644668E-2,null,null,"NEW JERSEY","NJ"]
["New York",269427,363139,282209,377800,270053,405864,821689,1146803,1.4222777055080325E-2,1.9850239439857757E-2,0,null,null,"New York",19352153,19248685,19171916,57772754,null,"WV",2.4838466087365122E-2,2.5914783882177335E-2,"AR",2.3709933924509301E-2,null,null,"NEW MEXICO","NM"]
["North Carolina",263256,207025,265291,225147,273149,238663,801696,670835,2.8008900006016163E-2,2.3437001601025641E-2,1,null,null,"North Carolina",9640490,9539412,9443000,28622902,null,"MS",2.4295322630100279E-2,2.3113610433980261E-2,"IA",2.3662111182604251E-2,null,null,"NEVADA","NV"]
["North Dakota",30100,24450,32510,26563,38213,23959,100823,74972,4.9650531134566071E-2,3.6920143421845089E-2,1,null,null,"North Dakota",689838,675161,665654,2030653,null,"IA",2.4098305024988321E-2,2.3662111182604251E-2,"NC",2.3437001601025641E-2,null,null,"NEW YORK","NY"]
["Ohio",172633,188013,191778,206049,196391,199202,560802,593264,1.6379194525022577E-2,1.7327303505859454E-2,0,null,null,"Ohio",11414635,11418944,11405101,34238680,null,"AL",2.3249104673256214E-2,2.2138650199466755E-2,"MS",2.3113610433980261E-2,null,null,"OHIO","OH"]
["Oklahoma",106511,90616,108878,81009,108972,102572,324361,274197,2.8905900426805409E-2,2.4435462892668239E-2,1,null,null,"Oklahoma",3762311,3742698,3716264,11221273,null,"ME",2.2583460255832161E-2,2.649011322526101E-2,"MA",2.2883747253247749E-2,null,null,"OKLAHOMA","OK"]
["Oregon",116700,100185,127906,109795,118925,108182,363531,318162,3.1665947601724607E-2,2.7714008491325097E-2,1,null,null,"Oregon",3857465,3828714,3794008,11480187,null,"MA",2.1576212507687025E-2,2.2883747253247749E-2,"FL",2.2840676769793074E-2,null,null,"OREGON","OR"]
["Pennsylvania",235580,209810,234291,215127,215500,237156,685371,662093,1.8122819051595976E-2,1.7507294055815515E-2,1,null,null,"Pennsylvania",12630082,12610486,12577555,37818123,null,"CT",2.1525895592464237E-2,2.514557827934872E-2,"KY",2.2814788508527795E-2,null,null,"PENNSYLVANIA","PA"]
["Rhode Island",32059,24948,26769,31065,33446,30498,92274,86511,2.9548586215719347E-2,2.7703120511824525E-2,1,null,null,"Rhode Island",1040527,1040022,1042240,3122789,null,"LA",2.1275499569237601E-2,1.9979226564488289E-2,"AL",2.2138650199466755E-2,null,null,"PUERTO RICO","PR"]
["South Carolina",152441,117569,157644,121426,156705,127418,466790,366413,3.3653522070096427E-2,2.6416778384863088E-2,1,null,null,"South Carolina",4668886,4624180,4577399,13870465,null,"IN",2.0164809475167231E-2,2.1647583075406374E-2,"IN",2.1647583075406374E-2,null,null,"RHODE ISLAND","RI"]
["South Dakota",25777,27915,27506,29383,26051,22534,79334,79832,3.2494491001286117E-2,3.269846731054369E-2,0,null,null,"South Dakota",821669,814175,805616,2441460,null,"TX",1.9871956018840113E-2,1.6048190384862802E-2,"IL",2.1628046235975272E-2,null,null,"SOUTH CAROLINA","SC"]
["Tennessee",159778,143135,170969,154243,177098,163843,507845,461221,2.6736494081165813E-2,2.4281882339314904E-2,1,null,null,"Tennessee",6378278,6333466,6282706,18994450,null,"MN",1.8434453952319827E-2,2.0456388542315931E-2,"MN",2.0456388542315931E-2,null,null,"SOUTH DAKOTA","SD"]
["Texas",486558,411641,514726,404839,507752,402187,1509036,1218667,1.9871956018840113E-2,1.6048190384862802E-2,1,null,null,"Texas",25711791,25327104,24899075,75937970,null,"PA",1.8122819051595976E-2,1.7507294055815515E-2,"LA",1.9979226564488289E-2,null,null,"TENNESSEE","TN"]
["Utah",77780,75541,85217,73211,87870,82165,250867,230917,3.0228104605168903E-2,2.7824238465448972E-2,1,null,null,"Utah",2805440,2769627,2724064,8299131,null,"WI",1.7819057797001325E-2,1.8565495444296958E-2,"NY",1.9850239439857757E-2,null,null,"TEXAS","TX"]
["Vermont",22529,18380,20463,18172,24431,20056,67423,56608,3.6230595166638811E-2,3.0419019195127628E-2,1,null,null,"Vermont",620224,621354,619363,1860941,null,"IL",1.6496795282990633E-2,2.1628046235975272E-2,"PR",1.9190930637528945E-2,null,null,"UTAH","UT"]
["Virginia",259507,232002,257130,229227,250653,238540,767290,699769,3.1953489305706968E-2,2.9141603901999581E-2,1,null,null,"Virginia",8085389,7996552,7930773,24012714,null,"OH",1.6379194525022577E-2,1.7327303505859454E-2,"WI",1.8565495444296958E-2,null,null,"VIRGINIA","VA"]
["Washington",191784,166162,208507,190644,215494,180462,615785,537268,3.0445884360767696E-2,2.656381594020793E-2,1,null,null,"Washington",6815763,6748474,6661321,20225558,null,"NJ",1.5181148425984278E-2,2.4025947930644668E-2,"MI",1.8440387692223073E-2,null,null,"VERMONT","VT"]
["West Virginia",39609,49349,50068,45956,47125,47425,136802,142730,2.4838466087365122E-2,2.5914783882177335E-2,0,null,null,"West Virginia",1837518,1836614,1833535,5507667,null,"NY",1.4222777055080325E-2,1.9850239439857757E-2,"PA",1.7507294055815515E-2,null,null,"WASHINGTON","WA"]
["Wisconsin",93065,111240,109439,105370,99192,97724,301696,314334,1.7819057797001325E-2,1.8565495444296958E-2,0,null,null,"Wisconsin",5660677,5647213,5623196,16931086,null,"MI",1.328279777577762E-2,1.8440387692223073E-2,"OH",1.7327303505859454E-2,null,null,"WISCONSIN","WI"]
["Wyoming",28046,28186,30651,31991,31149,32228,89846,92405,5.3223875451179063E-2,5.4739801561184707E-2,0,null,null,"Wyoming",569734,561389,556954,1688077,null,"CA",1.2594237021421199E-2,1.5248580854535622E-2,"TX",1.6048190384862802E-2,null,null,"WEST VIRGINIA","WV"]
["Puerto Rico",31732,59885,22649,76218,20044,74500,74425,210603,6.7818835092476916E-3,1.9190930637528945E-2,0,null,null,"Puerto Rico",3628402,3669195,3676493,10974090,null,"PR",6.7818835092476916E-3,1.9190930637528945E-2,"CA",1.5248580854535622E-2,null,null,"WYOMING","WY"]
[null,null,null,null,null,null,null,null,null,null,null,null,null,null,null,{"$f":"SUM(P3:P54)","v":313841157},{"$f":"SUM(Q3:Q54)","v":311569514},{"$f":"SUM(R3:R54)","v":309305100}]

{"sheet":"Total","index":12,"n_rows":54,"n_cols":58,"rows_kept":54,"cut":false,"hidden":true,"merged":[]}
["Current Residence","Code","Alabama","Alaska","Arizona","Arkansas","California","Colorado","Connecticut","Delaware","District of Columbia ","Florida","Georgia","Hawaii","Idaho","Illinois","Indiana","Iowa","Kansas","Kentucky","Louisiana","Maine","Maryland","Massachusetts","Michigan","Minnesota","Mississippi","Missouri","Montana","Nebraska","Nevada","New Hampshire","New Jersey","New Mexico","New York","North Carolina","North Dakota","Ohio","Oklahoma","Oregon","Pennsylvania","Rhode Island","South Carolina","South Dakota","Tennessee","Texas","Utah","Vermont","Virginia","Washington","West Virginia","Wisconsin","Wyoming","Puerto Rico",null,null,"TX","WA"]
["State","State Code","AL","AK","AZ","AR","CA","CO","CT","DE","DC","FL","GA","HI","ID","IL","IN","IA","KS","KY","LA","ME","MD","MA","MI","MN","MS","MO","MT","NE","NV","NH","NJ","NM","NY","NC","ND","OH","OK","OR","PA","RI","SC","SD","TN","TX","UT","VT","VA","WA","WV","WI","WY","PR"]
["Alabama","AL",0,5788,3315,3783,10293,3012,3659,1085,772,46369,60910,2153,934,12216,6726,1044,2356,7148,7418,790,3835,881,7429,1465,16130,4014,647,1090,1531,225,4054,1228,7503,10201,681,6229,2047,854,4389,0,7215,639,26658,21941,2215,66,10595,4826,234,2332,124,1416]
["Alaska","AK",1667,0,5341,433,10498,4069,138,11,510,5494,2735,4447,1908,1431,450,594,1077,1838,1297,640,1428,545,2257,1315,873,1740,1235,1415,1575,954,657,910,1931,2088,333,1791,2406,7128,759,0,691,931,1316,8103,2266,500,3467,10694,89,387,463,1088]
["Arizona","AZ",2580,11827,0,2969,141688,31666,2771,984,425,16997,8730,6656,7271,33029,11475,10236,6141,5167,3582,857,6209,4153,25348,17288,1791,11034,4892,5436,25810,802,7725,15975,17900,9732,2862,17813,7755,18630,13251,1089,5154,4480,9816,42181,23657,871,8409,39832,1430,15794,5889,3261]
["Arkansas","AR",2470,2349,2893,0,12059,3884,1155,79,359,9327,6892,142,797,10481,3256,1345,6652,4063,10085,47,608,1225,4670,749,8184,23739,1056,892,829,52,575,1322,3225,6282,214,2446,22306,1064,1814,59,1783,916,13310,40241,630,0,2898,1992,108,2203,2193,616]
["California","CA",7960,23932,108420,10292,0,52057,14468,2419,10122,63460,32913,31298,15846,58567,17114,8771,9457,8358,11769,4710,26321,36569,31425,19321,7405,21327,8668,8319,91851,4163,30218,16457,77871,29496,3611,29297,17492,61802,28964,3277,14884,3434,18912,116674,31769,1814,45610,101594,3691,17380,5269,4890]
["Colorado","CO",6402,8873,35214,3692,71475,0,3343,1057,1265,25539,15529,6743,5077,19351,9748,8426,13309,5822,6924,1910,7679,10338,11155,8925,2991,10301,8142,13119,11981,1959,6586,19238,15842,12074,4969,12898,11870,12292,11226,764,4332,3943,7356,61998,15002,1767,12816,17960,1872,9494,12962,2494]
["Connecticut","CT",1043,619,5218,618,11339,2416,0,233,1226,20556,4450,1177,377,6146,1295,175,16,524,1224,2011,4550,25944,2215,1615,412,765,256,107,839,3279,12949,821,64052,5753,0,2966,777,792,7837,4774,3077,0,813,6380,443,1775,6019,5932,662,2463,216,7360]
["Delaware","DE",328,1089,789,0,3273,347,2269,0,597,3887,1403,201,473,1213,272,30,148,468,178,294,14856,1652,331,607,58,1332,73,103,678,238,15821,144,10958,2161,0,1180,27,0,22717,415,646,0,711,1194,641,0,3861,888,359,55,463,2018]
["District of Columbia ","DC",452,1973,1607,271,13001,1785,2525,206,0,4059,3613,410,114,2807,1308,766,253,503,283,270,41752,4948,2178,889,127,721,38,313,280,479,4410,177,9250,4598,383,1555,0,809,5461,934,887,104,1589,3736,191,911,25427,1241,1273,2058,215,0]
["Florida","FL",47064,23996,18831,9957,64936,24577,31862,5462,2781,0,117027,8837,2464,59149,34305,8631,12458,18674,18876,17534,39093,42760,64399,15562,18594,25764,2655,6346,11818,10331,75156,5129,167308,66224,1547,62165,9208,7889,66415,10034,34078,2216,39608,78135,7675,6208,62391,14855,14131,21709,1810,56217]
["Georgia","GA",46503,7378,13503,3752,38032,10259,5157,1682,3424,135437,0,3455,1476,22959,11063,3733,7365,16383,14286,630,12709,12499,23798,5214,11040,8963,549,5575,5712,309,17442,2532,40883,50508,408,23687,7001,2023,21161,820,51087,1350,48949,43382,1193,806,28533,10161,2935,9584,712,4375]
["Hawaii","HI",2625,3004,6163,266,32606,3239,1229,1062,452,10539,5980,0,558,2917,886,630,1647,598,474,286,3822,2641,2251,1601,649,1422,366,166,4233,688,1417,649,7967,6058,101,2479,1837,5627,2510,808,2647,726,2092,13001,3690,0,6560,12415,992,1610,82,574]
["Idaho","ID",1214,8972,9053,560,28233,4371,44,120,260,4359,1171,583,0,1091,711,1181,964,518,164,202,151,849,1725,1668,186,1023,6911,474,8226,238,395,1510,1512,1214,1297,1603,1092,15335,684,0,260,1256,3406,4401,20690,0,1785,30265,133,623,2574,618]
["Illinois","IL",5103,8133,20717,5966,45075,10157,5038,567,3553,38286,21568,3362,2090,0,62316,26090,6512,11413,3963,1274,6415,9614,34722,15333,5358,43856,1460,2675,6473,1079,7706,3928,22452,13322,1413,20359,3952,2970,12790,1578,4730,2004,11870,40036,2763,465,13375,7421,2385,44285,946,6491]
["Indiana","IN",4689,1027,8948,4128,22641,4517,2594,718,1226,25563,6424,2180,2326,79457,0,4479,4527,31997,3726,305,3171,1892,28274,3627,2687,10243,332,1918,1749,204,4064,911,7398,8531,183,35616,2723,1315,9085,223,5304,562,10519,17151,672,575,7091,1857,1392,6412,2211,840]
["Iowa","IA",1040,2437,4484,1131,9412,8697,650,0,204,6406,3507,1686,766,42710,3775,0,4214,1540,1306,104,1040,1240,4072,20703,1276,13848,1658,18971,3313,437,1675,1027,3864,3617,2038,2752,2676,2230,1217,65,1706,5992,3388,10018,2514,83,1291,2313,137,8849,643,992]
["Kansas","KS",1331,1491,7360,4752,16279,14798,707,312,584,7562,4958,564,1118,7405,4086,5117,0,2832,1847,692,4831,315,3878,2923,2136,66439,859,8452,2826,103,3199,2671,3741,3119,865,4435,20998,1647,2975,237,1795,610,3760,24260,531,145,5339,5212,139,2612,2136,925]
["Kentucky","KY",7223,3321,5519,2134,9324,1262,1120,744,602,26751,13295,1230,157,13377,35180,1430,1964,0,2502,117,4591,2474,15152,2010,3336,8327,216,2052,1735,136,2932,1229,9470,11317,239,52256,2986,938,6334,929,4020,163,38069,13764,1509,721,12144,3825,6817,3969,349,541]
["Louisiana","LA",11134,2195,5991,8801,14847,3850,611,0,1055,21121,14669,1408,697,4549,3856,1637,1438,4825,0,533,2826,1983,3544,1597,24078,5818,746,1040,3477,488,1599,1472,6307,5861,779,4856,7468,2007,3044,1005,4617,37,6696,80914,929,132,5190,4165,558,1258,534,1450]
["Maine","ME",1165,499,809,105,3505,1082,5310,646,326,10255,1862,239,143,1181,423,619,856,1124,268,0,620,11847,940,817,79,595,285,286,530,12015,2001,650,7447,3552,74,1426,228,686,2266,1637,908,42,1628,2591,772,1381,1797,587,94,321,580,307]
["Maryland","MD",3130,5290,2829,832,25415,5368,4092,19092,62907,23999,15177,2202,1175,9313,2959,839,3196,1959,2842,1911,0,9430,7816,3052,2093,2872,159,186,2414,2725,24945,1673,31694,19980,116,9195,1915,1377,43110,1061,6889,49,6411,15114,1939,979,67433,4498,8347,1137,310,1685,null,null,"MD"]
["Massachusetts","MA",2420,3006,4561,767,39297,3419,33240,1036,2594,35404,7462,2523,679,8719,3208,596,1534,572,2533,12579,8803,0,5590,4013,964,3671,1033,865,1742,35252,21087,881,58900,9276,142,5749,545,1934,20090,24010,5757,238,2112,15970,1782,6306,11624,4953,1296,1571,264,11554]
["Michigan","MI",8271,5648,14205,3596,22604,7819,2731,281,1001,42504,12437,1234,1190,30595,26460,3460,2593,8340,3581,1505,3856,5787,0,5073,2293,7636,614,765,4443,956,5142,2495,14953,9761,477,32325,3898,1995,8737,1106,5453,1343,10818,25757,2006,105,7457,5003,1216,15077,2686,3122]
["Minnesota","MN",1688,2585,9544,1605,20957,8748,981,262,983,7767,4851,2405,1208,20746,3932,18343,2597,1214,1883,680,3524,2876,10007,0,947,4603,3734,3662,4154,204,2182,1013,5574,4263,21562,5631,2042,3319,2706,422,3749,11984,3767,9682,2361,254,4442,4426,292,54802,780,227]
["Mississippi","MS",22369,1309,1453,9936,12094,2450,231,0,512,15642,9819,829,762,7801,3214,924,796,2479,23117,163,1293,1619,5873,2045,0,5174,480,256,1018,125,2799,1794,2882,4419,98,3199,1791,539,3931,371,2854,141,27484,18228,1018,0,3954,1227,397,2626,797,1213]
["Missouri","MO",3547,5280,7641,19983,28943,8845,2169,548,837,21204,8907,3365,1986,63439,11939,15475,64529,6836,5144,1458,3321,2668,8404,6525,3934,0,1576,9495,3440,912,3394,1617,8368,9482,2461,8960,16018,2277,4984,720,4077,1400,9109,32455,6303,904,8499,5937,521,5470,2289,2402,null,null,"MO"]
["Montana","MT",692,2494,5428,784,14217,7176,186,436,0,3539,569,588,6386,2401,1060,1001,1129,688,85,372,141,166,1823,2773,274,1169,0,832,2204,115,1045,1183,1150,3327,3014,812,1296,6529,1716,0,417,713,422,4823,2456,140,931,11868,14,1253,5036,364]
["Nebraska","NE",646,1382,6374,1198,12992,9450,742,177,29,4248,2422,697,948,4428,1544,21926,8627,636,722,190,524,295,1667,5198,1423,6794,284,0,705,0,786,1231,973,2145,1566,2063,2544,2168,1299,0,764,8442,535,12918,1500,79,2463,3392,208,1922,3360,0]
["Nevada","NV",1191,3269,26708,1193,125564,12051,980,557,1451,9883,3663,10509,7118,6201,1956,1371,2257,2149,1232,258,2350,1849,5100,3017,1932,2776,2993,1875,0,234,4558,4494,6241,3057,739,4315,2664,7421,3738,589,957,1791,2501,17957,12470,318,4707,10967,156,4137,1843,892]
["New Hampshire","NH",345,437,1230,22,3753,1215,6096,20,467,6375,1005,94,86,2001,790,209,159,284,26,12440,304,48268,811,344,185,737,716,143,281,0,1425,685,6838,3377,47,600,186,914,2579,2844,962,86,575,4325,994,7664,2285,802,80,507,233,131]
["New Jersey","NJ",1584,1940,6737,372,19093,3390,7893,5564,2052,33397,11858,671,460,8398,2159,1021,1185,824,1459,1149,13040,12208,3283,2153,1066,1694,238,608,2681,1330,0,821,122684,8770,116,4157,2345,1733,65555,1224,5092,581,3664,9744,859,92,12152,5265,1907,1480,38,9618]
["New Mexico","NM",1948,1705,19952,1169,18149,13157,305,491,293,10772,2845,371,1465,1782,3155,384,2756,985,1039,661,4750,2631,2970,901,1726,2537,1686,1077,6895,461,657,0,3340,2650,384,4632,2492,3507,2123,46,622,953,2506,44099,3286,461,2275,5179,0,1068,1130,1160]
["New York","NY",4486,15196,9616,1650,75561,10455,45056,4204,9621,87289,25852,2859,1239,21464,7735,2360,3464,4971,3899,6530,18270,46574,13906,4532,2046,6597,1049,1543,4462,8368,119357,1936,0,33202,451,16326,5050,5528,70005,6528,20060,633,5669,30074,2305,9546,27620,8103,1996,5211,1235,24643]
["North Carolina","NC",12793,7067,10626,1738,45955,10551,10641,3613,4627,83392,48958,4939,1733,18006,11892,2506,8782,7587,6035,4342,29371,16815,19480,4656,4837,7193,1037,2200,3373,4962,29037,4061,57618,0,638,28185,4106,4304,32784,831,69155,1278,23972,33588,2940,1007,79723,12084,8482,6569,1627,4819]
["North Dakota","ND",289,1529,3546,417,3766,2648,95,84,245,1901,1261,351,1818,1409,230,955,350,119,814,148,363,608,1383,39851,152,2017,4239,1496,2081,0,467,640,783,1768,0,426,447,1301,1158,244,15,4085,1132,5789,934,758,594,2704,0,2690,723,76]
["Ohio","OH",6561,5400,16407,3270,27024,8729,3851,1357,2544,49353,21844,2678,1288,23629,34560,3455,2839,35130,4829,1480,13836,7976,45796,5208,1797,6200,837,3759,4998,2356,11104,2131,23504,16055,683,0,4419,2100,40451,1248,8750,288,14997,31212,1373,614,15387,7408,23182,5279,1626,5150,null,null,"OH"]
["Oklahoma","OK",3233,3813,9503,18544,26612,11174,165,555,342,16505,9254,1102,1537,5958,4560,2776,16715,3629,6704,736,1564,1858,3432,2002,3782,15093,2049,3108,2885,618,2804,4370,4957,5274,1375,4141,0,2576,2926,271,3180,791,6043,85341,3603,290,5048,4855,633,2554,3521,314]
["Oregon","OR",1531,6475,21129,1399,100266,8632,1600,251,1262,7317,3666,7315,15458,4591,3068,1654,2497,273,227,715,1505,3654,3381,3873,928,3361,6657,1671,15962,783,2251,2438,6973,3621,947,3901,3580,0,4000,177,1820,1277,2262,11671,11115,999,2979,65879,1017,3321,2202,977]
["Pennsylvania","PA",3627,4602,9475,1962,30521,8722,11468,14599,5943,52142,13608,1072,975,12141,7703,1528,4716,6921,1934,3217,53561,16639,12009,3513,1856,4657,812,1347,4467,3193,112380,2576,92815,25245,882,41939,1915,2746,0,1947,7776,1267,6626,21552,3570,1673,30937,7970,15651,5276,1698,16845]
["Rhode Island","RI",156,0,631,0,5792,692,10873,0,459,6318,1026,394,107,1968,247,130,401,497,145,954,1931,27607,485,205,0,366,0,188,322,1885,4311,129,10962,2113,62,123,199,196,2420,0,765,48,401,1708,181,746,2892,709,349,137,44,685]
["South Carolina","SC",6405,5335,5650,2537,17262,4782,7340,1787,1062,43088,52411,2163,486,8749,9225,2725,3463,6589,5646,3332,12556,6808,11158,2046,4745,4777,1008,362,3215,1775,15666,3040,29975,68615,1045,14598,3021,2108,14709,1145,0,973,10690,18939,1202,867,27042,7209,4215,2230,1014,3505]
["South Dakota","SD",325,1434,2602,947,4118,3572,2,0,0,1322,215,83,721,421,934,10733,1118,293,129,0,314,581,1275,13525,364,1080,1040,6130,283,0,441,726,1135,668,5805,308,357,804,781,7,687,0,507,4205,948,5,643,3147,131,1531,2937,134]
["Tennessee","TN",30339,2155,5887,15435,23545,5703,1851,579,881,45300,44584,1480,1120,18849,16000,2056,6941,38274,6955,1133,4328,4948,16019,3127,28769,10831,641,1250,4051,600,4409,1753,16000,22359,57,16606,6330,2236,9251,845,14596,244,0,24426,3046,171,22756,6140,6834,5666,489,1800]
["Texas","TX",27376,25042,55502,45493,190653,52103,6620,1769,3925,93704,54434,14864,8799,54905,25514,12116,37063,17809,86010,3968,19136,16987,38930,16582,20223,37853,3377,13524,24383,2287,21433,43739,63053,49799,4250,29360,68555,11943,26717,4035,13794,4686,34200,0,13967,514,44678,35802,4613,16101,6846,13840,null,null,"TX"]
["Utah","UT",705,6768,22698,1099,45710,13323,823,0,270,6168,3160,4069,20359,4866,1537,3564,1843,1063,885,528,1381,2708,3030,2238,554,3319,4227,802,14255,541,1190,2911,5528,3662,177,5986,2374,8651,2997,351,1207,1050,1871,13417,0,458,6787,12146,270,1941,5400,622]
["Vermont","VT",16,857,502,0,2932,1237,5018,194,152,3395,653,198,0,986,326,121,7,2046,114,2029,1523,9295,820,606,0,143,383,0,90,7897,2546,130,12559,1117,30,647,11,250,1848,969,279,192,645,1243,263,0,1868,382,53,665,186,19]
["Virginia","VA",10116,8404,10906,2323,51239,13489,10569,4505,28411,55512,30177,9087,2245,18665,8258,2859,4139,9589,6282,5493,70798,13257,16038,3590,4884,8453,2141,1136,3438,2251,23225,3059,45873,72157,1515,22900,4444,7177,37995,5045,22887,1041,19513,37537,5069,1272,0,13148,19659,4764,756,3044]
["Washington","WA",4650,15238,26730,2827,123486,14016,4569,302,1374,20842,18175,15425,34160,10291,5304,3844,7058,3525,3673,2562,3719,5939,10061,5569,2462,9836,10138,1678,15906,1415,5027,3453,14214,10101,921,8605,3974,80928,8586,780,7293,1187,6337,41025,14107,1323,15338,0,434,4839,2539,2108]
["West Virginia","WV",739,2230,129,225,3433,836,821,1319,1074,6710,2889,313,389,1907,904,68,200,3615,476,80,17116,591,1894,20,44,528,99,78,547,396,3550,81,4349,11100,443,23227,846,250,14321,522,3602,36,2767,3164,226,285,16877,572,0,662,252,941]
["Wisconsin","WI",1583,1466,9156,1106,16490,6082,2009,866,236,13767,4371,1991,1828,68105,9060,9767,2330,1962,1779,693,2541,2214,15857,53633,2031,5069,1081,1660,2875,552,1616,1363,5537,6876,2164,5642,496,3446,5068,512,2572,1154,2651,7788,2266,479,4611,3776,1346,0,173,2224]
["Wyoming","WY",483,1351,3894,418,7358,16894,11,0,0,2654,957,25,3827,1770,317,1063,1357,606,309,0,345,952,2384,865,206,906,5534,4711,1198,0,128,1387,490,888,808,897,1488,1867,609,13,561,2476,568,4815,7076,79,1169,3682,0,450,0,16]
["Puerto Rico","PR",672,591,571,93,1903,388,3118,13,212,22068,686,110,13,3287,1014,0,293,291,168,0,237,5674,612,50,197,322,0,0,0,0,5316,443,9697,984,0,397,79,0,5807,1798,116,113,269,1781,882,0,2153,41,163,1803,0,0]

{"sheet":"Per_capita_income","index":13,"n_rows":55,"n_cols":10,"rows_kept":55,"cut":false,"hidden":true,"merged":[[0,2,0,3],[0,4,0,5],[0,6,0,7]]}
[null,null,"2012p",null,2011,null,2010,null,null,"http://bber.unm.edu/econ/us-pci.htm"]
["Area name",null,"Dollars","Rank*","Dollars","Rank*","Dollars","Rank*"]
["Alabama","AL",35625,42,34880,42,33710,42]
["Alaska","AK",46778,10,45665,10,43749,9]
["Arizona","AZ",35979,41,35062,41,33773,41]
["Arkansas","AR",34723,45,33740,45,32373,45]
["California","CA",44980,15,43647,17,41893,16]
["Colorado","CO",45135,13,44053,13,42107,12]
["Connecticut","CT",58908,1,57902,1,55427,1]
["Delaware","DE",41940,23,41449,22,39425,22]
["District Of Columbia","DC",74710,"NA",73783,"NA",71220,"NA"]
["Florida","FL",40344,27,39636,26,38345,24]
["Georgia","GA",36869,40,35979,39,34531,37]
["Hawaii","HI",44024,17,42925,18,40952,17]
["Idaho","ID",33749,49,32881,49,31556,49]
["Illinois","IL",44815,16,43721,16,42025,13]
["Indiana","IN",36902,39,35689,40,34028,40]
["Iowa","IA",42126,22,41156,23,37882,27]
["Kansas","KS",41835,24,40883,24,38545,23]
["Kentucky","KY",35041,44,33989,44,32504,44]
["Louisiana","LA",39413,29,38549,28,37116,28]
["Maine","ME",39481,28,38299,29,36629,29]
["Maryland","MD",51971,5,50656,5,48621,5]
["Massachusetts","MA",54687,2,53471,2,51143,2]
["Michigan","MI",37497,35,36264,36,34326,39]
["Minnesota","MN",46227,11,44560,11,42528,10]
["Mississippi","MS",33073,50,32000,50,30841,50]
["Missouri","MO",39049,31,37969,30,36406,30]
["Montana","MT",37370,36,36016,38,34405,38]
["Nebraska","NE",43143,20,42450,19,39445,21]
["Nevada","NV",37361,37,36964,34,35777,33]
["New Hampshire","NH",47058,9,45881,9,43968,8]
["New Jersey","NJ",53628,3,52430,3,50428,3]
["New Mexico","NM",35079,43,34133,43,32940,43]
["New York","NY",52095,4,51126,4,49119,4]
["North Carolina","NC",37049,38,36028,37,34604,36]
["North Dakota","ND",51893,6,47236,7,42462,11]
["Ohio","OH",39289,30,37836,31,35931,31]
["Oklahoma","OK",39006,32,37679,32,35535,34]
["Oregon","OR",38786,33,37527,33,35906,32]
["Pennsylvania","PA",43616,19,42291,20,40444,18]
["Puerto Rico","PR",42015,null,43015,null,42655]
["Rhode Island","RI",44990,14,43875,15,42001,15]
["South Carolina","SC",34266,48,33388,48,32193,46]
["South Dakota","SD",43659,18,44217,12,39558,20]
["Tennessee","TN",37678,34,36567,35,35103,35]
["Texas","TX",41471,25,40147,25,38222,25]
["Utah","UT",34601,46,33509,46,32121,47]
["Vermont","VT",42994,21,41572,21,39736,19]
["Virginia","VA",47082,8,46107,8,44134,7]
["Washington","WA",45413,12,43878,14,42024,14]
["West Virginia","WV",34477,47,33403,47,31806,48]
["Wisconsin","WI",40537,26,39575,27,38010,26]
["Wyoming","WY",48670,7,47898,6,45353,6]
[null,null,{"$f":"AVERAGE(C3:C54)","v":42482.826923076922},null,{"$f":"AVERAGE(E3:E54)","v":41414.538461538461},null,{"$f":"AVERAGE(G3:G54)","v":39529.519230769234}]

{"sheet":"Cost_of_living_index","index":14,"n_rows":329,"n_cols":4,"rows_kept":329,"cut":false,"hidden":true,"merged":[[0,0,0,2]]}
["Table 728. Cost of Living Index--Selected Urban Areas: Annual Average 2010",null,null,"https://www.census.gov/compendia/statab/cats/prices.html"]
["Urban Area",null,"100% Composite Index"]
["Anniston-Calhoun, County, AL",{"$f":"RIGHT(A3,2)","v":"AL"},91.237575560176552]
["Akron OH","OH",100.2076922665626]
["Albany, GA","GA",90.12605161366443]
["Albany, NY","NY",108.07212233156491]
["Alexandria, LA","LA",95.123192963591976]
["Amarillo, TX","TX",89.525509018614173]
["Americus, GA","GA",88.301396200208288]
["Ames, IA","IA",96.791118677030937]
["Anchorage, AK","AK",128.41311980608808]
["Anderson, SC","SC",91.762249424346678]
["Appleton, WI","WI",93.279527809877919]
["Ardmore, OK","OK",87.34432640010408]
["Arlington, TX","TX",99.347480221735822]
["Asheville, NC","NC",101.13315881709164]
["Ashland, OH","OH",88.54209513778342]
["Atlanta, GA","GA",95.552129103510367]
["Auburn-Opelika, AL","AL",98.859501709244142]
["Augusta-Aiken, GA-SC","SC",93.233116525057824]
["Austin, TX","TX",95.474864392651114]
["Bakersfield, CA","CA",103.42142950701708]
["Baltimore, MD","MD",119.36841735522896]
["Baton, Rouge, LA","LA",96.050443950987486]
["Beaufort, SC","SC",105.18525990281475]
["Beaumont, TX","TX",95.677037155219523]
["Bellingham, WA","WA",113.04354333558601]
["Bergen-Passaic, NJ","NJ",131.31491878910464]
["Bethesda-Gaithersburg-Frederick, MD","MD",130.51014719607431]
["Binghamton, NY","NY",98.396079622147994]
["Birmingham, AL","AL",90.801726811966532]
["Bismarck-Mandan, ND","ND",95.326794840772891]
["Blacksburg, VA","VA",94.986431602572281]
["Boise, ID","ID",97.242584001364008]
["Boston, MA","MA",132.48530104055715]
["Bowling, Green, KY","KY",90.67132779920783]
["Bozeman, MT","MT",101.95691878974515]
["Bradenton, FL","FL",95.800570468006924]
["Brazoria, County, TX","TX",89.347877420698836]
["Brownsville, TX","TX",85.789835805809162]
["Buffalo, NY","NY",95.759568871514745]
["Burlington, IA","IA",96.965907043477301]
["Burlington, NC","NC",94.60245423948335]
["Burlington-Chittenden, Co, VT","VT",120.47687988399971]
["Camden, SC","SC",97.401309032346489]
["Cape, Coral-Fort, Myers, FL","FL",95.599044812932817]
["Carlsbad, NM","NM",95.382652490002883]
["Cedar, City, UT","UT",88.739305160468589]
["Cedar, Rapids, IA","IA",92.027361250939393]
["Champaign-Urbana, IL","IL",96.882287586623363]
["Chapel, Hill, NC","NC",113.04917713146924]
["Charleston, WV","WV",92.726148508002879]
["Charleston-N, Charleston, SC","SC",98.312474358509945]
["Charlotte, NC","NC",93.211856056838087]
["Charlottesville, VA","VA",107.02929449782832]
["Chattanooga, TN","TN",91.118816982966536]
["Cheyenne, WY","WY",100.46303752717134]
["Chicago, IL","IL",116.87070709248179]
["Cincinnati, OH","OH",93.807182746953799]
["Clarksburg, WV","WV",94.9954784425708]
["Clarksville, TN","TN",93.022572524044193]
["Cleveland, OH","OH",101.04741634900498]
["Cleveland, TN","TN",93.444842631004349]
["Colorado, Springs, CO","CO",92.823282957834735]
["Columbia, MO","MO",91.798595595738647]
["Columbia, SC","SC",100.39299314345517]
["Columbus, OH",{"$f":"RIGHT(A67,2)","v":"OH"},92.004251366702192]
["Conroe, TX","TX",91.441535966648814]
["Conway, AR","AR",86.645362017562206]
["Cookeville, TN","TN",85.744823189285114]
["Corpus, Christi, TX","TX",90.770200171115931]
["Covington, KY","KY",87.76127436874016]
["Dallas, TX","TX",91.873970348657167]
["Danville, IL","IL",91.055509582745813]
["Dare, County, NC","NC",107.34794276821832]
["Davenport-Moline-Rock, Is, IA-IL","IL",96.807907655105481]
["Dayton, OH","OH",91.42580045795782]
["Decatur, IL","IL",91.39692293617972]
["Decatur-Hartselle, AL","AL",89.220631147322649]
["Denver, CO","CO",103.20214184303467]
["Des, Moines, IA","IA",90.934891962500899]
["Detroit, MI","MI",99.375663125687097]
["Dodge, City, KS","KS",89.275248651498998]
["Dothan, AL","AL",89.830700257265391]
["Douglas, GA","GA",88.576502469706242]
["Dover, DE","DE",99.71983660803437]
["Dubuque, IA","IA",95.948481822096909]
["Durham, NC","NC",96.561442015576603]
["Dutchess, County, NY","NY",120.36284537894502]
["Dyersburg, TN","TN",88.575772500026972]
["Eau, Claire, WI","WI",93.699015554611833]
["Edmond, OK","OK",91.631185795818283]
["El, Paso, TX","TX",90.378917216259893]
["Elkhart-Goshen, IN","IN",93.998569546973272]
["Enid, OK","OK",93.631785541969691]
["Erie, PA","PA",92.130360054736798]
["Eugene, OR","OR",109.84038604850997]
["Evansville, IN","IN",96.165450924164745]
["Everett, WA","WA",111.27453554770152]
["Fairbanks, AK","AK",137.39751665572834]
["Fargo-Moorhead, ND-MN","MN",92.668552414268788]
["Farmington, NM","NM",97.046381349061832]
["Fayetteville, AR","AR",92.109393987081049]
["Fayetteville, NC","NC",95.191756438601658]
["Findlay, OH","OH",94.264401215859706]
["Fitchburg-Leominster, MA","MA",103.27693149164207]
["Flagstaff, AZ","AZ",114.93950099501808]
["Florence, AL","AL",90.217325997775589]
["Fort, Lauderdale, FL","FL",115.72641745547185]
["Fort, Smith, AR","AR",86.115178354682243]
["Fort, Wayne-Allen, County, IN","IN",94.405159908189106]
["Fort, Worth, TX","TX",91.05743069057327]
["Framingham-Natick, MA","MA",134.48372878147336]
["Fresno, CA","CA",117.32711524257525]
["Gainesville, FL","FL",99.813517409035342]
["Galesburg, IL","IL",92.985014952611039]
["Garden, City, KS","KS",89.706912678741034]
["Glens, Falls, NY","NY",112.26497847771407]
["Glenwood, Springs, CO","CO",123.98729574169863]
["Grand, Junction, CO","CO",98.254291974853828]
["Grand, Rapids, MI","MI",90.668173932343095]
["Green, Bay, WI","WI",95.089986744608979]
["Greenville, NC","NC",98.542606435596554]
["Greenville, SC","SC",90.304273130909792]
["Gunnison, CO","CO",110.02149035371312]
["Hammond, LA","LA",95.891866985348912]
["Hampton, Roads-SE, Virginia, VA","VA",111.74598164233251]
["Harlingen, TX","TX",82.803659885440567]
["Harrisburg, PA","PA",99.713051478681933]
["Harrisonburg, VA","VA",97.043882315931313]
["Hartford, CT",{"$f":"RIGHT(A131,2)","v":"CT"},121.83553227333701]
["Hastings, NE","NE",93.401845689481775]
["Hattiesburg, MS","MS",91.924691989033676]
["Hays, KS","KS",89.395036771201717]
["Hickory, NC","NC",92.899975842207084]
["Hilton, Head, Island, SC","SC",114.07879484909876]
["Honolulu, HI","HI",165.737756163244]
["Hot, Springs, AR","AR",93.794690369983897]
["Houston, TX","TX",92.189182909646263]
["Huntsville, AL","AL",91.236320942901358]
["Hutchinson, KS","KS",93.970571302090136]
["Idaho, Falls, ID","ID",90.637564395375534]
["Indiana, County, PA","PA",93.310337642064852]
["Indianapolis, IN","IN",87.20671948434105]
["Iowa, City, IA","IA",96.24201538772563]
["Ithaca, NY","NY",102.83744743386882]
["Jackson, MS","MS",96.885811763103362]
["Jackson-Madison, County, TN","TN",90.152740249874483]
["Jacksonville, FL","FL",92.917129320029687]
["Jacksonville, NC","NC",96.544739415427159]
["Janesville, WI","WI",96.188062042725733]
["Jefferson, City, MO","MO",92.907456555074347]
["Johnson, City, TN","TN",86.741550822544127]
["Johnstown, PA","PA",92.883949822787187]
["Joliet-Will, County, IL","IL",102.23938454292251]
["Jonesboro, AR","AR",88.862341400163103]
["Joplin, MO","MO",88.826133895436868]
["Juneau, AK","AK",136.5298740504312]
["Kalamazoo, MI","MI",91.228252659215045]
["Kalispell, MT","MT",98.82849850802657]
["Kansas, City, MO-KS","KS",97.776162369607817]
["Kennewick-Richland-Pasco, WA","WA",92.557964555439369]
["Kinston, NC","NC",93.802946166800851]
["Knoxville, TN","TN",89.438528660688604]
["Kodiak, AK","AK",128.66724899882416]
["Lafayette, IN","IN",98.16681897282642]
["Lafayette, LA","LA",99.201897919030458]
["Lake, Charles, LA","LA",97.421514877065775]
["Lake, Havasu, City, AZ","AZ",111.84766049062021]
["Lancaster, PA","PA",106.76490753846258]
["Laramie, WY","WY",97.010055596288666]
["Las, Cruces, NM","NM",100.60524393100889]
["Las, Vegas, NV","NV",101.8589590012694]
["Lawrence, KS","KS",94.593454433334642]
["Lawton, OK","OK",93.831306385445004]
["Lexington, KY","KY",92.848084636877743]
["Lexington-Buena, Vista-Rockbridge, VA","VA",93.708030426275741]
["Lima, OH","OH",93.134848612554066]
["Little, Rock-North, Little, Rock, AR","AR",96.458882064920516]
["Logan, UT","UT",95.624631193140942]
["Los, Alamos, NM","NM",109.66468786285479]
["Los, Angeles-Long, Beach, CA","CA",136.36729517544347]
["Louisville, KY","KY",87.683562779684934]
["Loveland, CO","CO",90.987610408082361]
["Lubbock, TX","TX",89.09648807722597]
["Lufkin, TX","TX",92.438312118181699]
["Lynchburg, VA","VA",95.147308132102012]
["Manchester, NH","NH",116.75269213263601]
["Manhattan, KS","KS",94.980739702896557]
["Mankato, MN","MN",92.990578694734239]
["Marietta, GA","GA",94.800179420153881]
["Marion-McDowell, County, NC","NC",92.072289819114346]
["Marshfield, WI","WI",94.166742098965642]
["Martinsburg-Berkeley, County, WV","WV",89.639871362325067]
["Martinsville-Henry, County, VA",{"$f":"RIGHT(A195,2)","v":"VA"},87.076461812899723]
["Mason, City, IA","IA",89.069003070598853]
["McAllen, TX","TX",85.019999262756542]
["Memphis, TN","TN",88.238346742782454]
["Miami-Dade, County, FL","FL",106.03264428134869]
["Middlesex-Monmouth, NJ","NJ",124.77249834026856]
["Midland, TX","TX",93.199449264654078]
["Milwaukee-Waukesha, WI","WI",101.85011521337154]
["Minneapolis, MN","MN",110.97635749247237]
["Minot, ND","ND",99.924726375807822]
["Missoula, MT","MT",99.435967824183962]
["Mobile, AL","AL",92.711071564736457]
["Monroe, LA","LA",92.694613088894357]
["Montgomery, AL","AL",99.226827637290683]
["Morgantown, WV","WV",100.57932179838129]
["Morristown, TN","TN",90.913961995911421]
["Muncie, IN","IN",90.987736995158912]
["Murfreesboro-Smyrna, TN","TN",88.181854399418356]
["Muskogee, OK","OK",86.004767163939775]
["Myrtle, Beach, SC","SC",95.193263961764202]
["Nacogdoches, TX","TX",92.53710165045527]
["Nashville-Franklin, TN","TN",88.93336301671313]
["Nassau, County, NY","NY",145.66838848438303]
["New, Haven, CT","CT",122.09233601161775]
["New, York, (Brooklyn), NY","NY",181.69974971549496]
["New, York, (Manhattan), NY","NY",216.65506549290603]
["New, York, (Queens), NY","NY",158.96644081185099]
["Newark-Elizabeth, NJ","NJ",129.68058497229055]
["Norman, OK","OK",94.404459831584319]
["Oakland, CA","CA",139.07210191607061]
["Odessa, TX","TX",90.942952329422155]
["Oklahoma, City, OK","OK",91.722306675488113]
["Olympia, WA","WA",104.14120438332873]
["Omaha, NE","NE",88.300319730100682]
["Orange, County, CA","CA",146.38823366209888]
["Orlando, FL","FL",97.781233000692708]
["Paducah, KY","KY",87.276811415306511]
["Palm, Springs, CA","CA",121.75370700305518]
["Panama, City, FL","FL",99.429371549061528]
["Paris, TX","TX",88.859226106991116]
["Pascagoula, MS","MS",92.258111422159573]
["Peoria, IL","IL",96.280611291855195]
["Philadelphia, PA","PA",126.46462335283231]
["Phoenix, AZ","AZ",100.69447560093747]
["Pittsburgh, PA","PA",91.5288581707606]
["Pittsfield, MA","MA",110.63570388474733]
["Plano, TX","TX",97.394681833342261]
["Plattsburgh, NY","NY",100.12834265999848]
["Ponca, City, OK","OK",89.985867493030497]
["Portland, ME","ME",116.52382456290432]
["Portland, OR","OR",111.30431586377981]
["Prescott-Prescott, Valley, AZ","AZ",103.67091727042347]
["Providence, RI","RI",123.32922233948244]
["Pryor, Creek, OK","OK",84.500610382354267]
["Pueblo, CO","CO",85.571383751645016]
["Quincy, IL","IL",95.509458475217755]
["Raleigh, NC","NC",98.189201220026348]
["Reno-Sparks, NV","NV",101.0624899542767]
["Richmond, IN","IN",90.81275795716401]
["Richmond, VA","VA",104.47181733905339]
["Rio, Rancho, NM","NM",95.055826873081799]
["Riverside, City, CA","CA",112.47077901459409]
["Roanoke, VA","VA",94.078234567737056]
["Rochester, MN","MN",99.1610405468452]
["Rochester, NY",{"$f":"RIGHT(A259,2)","v":"NY"},99.988770848482531]
["Rockford, IL","IL",92.412760263191217]
["Roswell, NM","NM",95.948638771679271]
["Round, Rock, TX","TX",89.708088608589449]
["Sacramento, CA","CA",116.17832558315828]
["Salina, KS","KS",86.872215995721746]
["Salt, Lake, City, UT","UT",100.64921199614474]
["San, Angelo, TX","TX",92.439643889592475]
["San, Antonio, TX","TX",95.662595530940848]
["San, Diego, CA","CA",132.25549931502167]
["San, Francisco, CA","CA",164.04839828695373]
["San, Jose, CA","CA",156.13834440217221]
["San, Marcos, TX","TX",94.820859478798909]
["Sarasota, FL","FL",101.45222969922588]
["Savannah, GA","GA",93.481915420282249]
["Seattle, WA","WA",121.35363503570304]
["Seguin, TX","TX",90.667337387467029]
["Sheboygan, WI","WI",101.36359904877298]
["Shreveport-Bossier, City, LA","LA",95.298217376606118]
["Sierra, Vista, AZ","AZ",97.90761290319773]
["Sioux, Falls, SD","SD",94.112865170487851]
["Slidell-St., Tammany, Parish, LA","LA",96.961189159946542]
["South, Bend, IN","IN",91.927056787928294]
["Spokane, WA","WA",93.889624105017845]
["Springfield, IL","IL",85.788858940556381]
["Springfield, MO","MO",88.022168075330427]
["St., Cloud, MN","MN",98.324868691509664]
["St., George, UT","UT",95.854478181436036]
["St., Joseph, MO","MO",92.273939882915386]
["St., Louis, MO-IL","IL",90.411080109358039]
["St., Paul, MN","MN",110.03845825560796]
["Stamford, CT","CT",146.89046664370412]
["Staunton-Augusta, County, VA","VA",96.186351038319259]
["Stillwater, OK","OK",90.128976313165452]
["Sumter, SC","SC",96.304847141894754]
["Syracuse, NY","NY",101.45765196634986]
["Tacoma, WA","WA",109.53191989879546]
["Tampa, FL","FL",92.440219199172205]
["Temple, TX","TX",87.390016267948511]
["Thomasville-Lexington, NC","NC",89.209263136346394]
["Topeka, KS","KS",91.763334903019555]
["Troy-Miami, County, OH","OH",95.39632307382692]
["Truckee-Nevada, County, CA","CA",146.85986731740584]
["Tucson, AZ","AZ",96.463687585040432]
["Tulsa, OK","OK",88.448897724379449]
["Tupelo, MS","MS",88.125296664793424]
["Tuscaloosa, AL","AL",94.575065382627656]
["Twin, Falls, ID","ID",91.493334124195812]
["Tyler, TX","TX",96.250385986272406]
["Valdosta, GA","GA",94.107510576690586]
["Vancouver, WA","WA",94.780903425075891]
["Vero, Beach-Indian, River, FL","FL",97.350390205286004]
["Waco, TX","TX",88.930269052019099]
["Washington-Arlington-Alexandria, DC-VA","VA",140.08986868609901]
["Waterloo-Cedar, Falls, IA","IA",91.731200679129543]
["Wausau, WI","WI",96.513703253793011]
["Weatherford, TX","TX",91.382896684944001]
["Wichita, Falls, TX","TX",86.524981788028271]
["Wichita, KS","KS",91.848193368702681]
["Williamsport-Lycoming, Co, PA","PA",100.71027952243284]
["Wilmington, DE","DE",105.20317910944934]
["Wilmington, NC","NC",98.758745007128738]
["Winchester, VA-WV","WV",102.32636927263508]
["Winston-Salem, NC","NC",92.436869949800425]
["Wooster, OH",{"$f":"RIGHT(A323,2)","v":"OH"},92.644218298876339]
["Yakima, WA","WA",95.800802272457645]
["York, County, PA","PA",102.1131950024584]
["Youngstown-Warren, OH","OH",90.35438380566211]
["Yuma, AZ","AZ",101.15743534732417]
["Source: C2ER, Arlington, VA, ACCRA Cost of Living Index, Annual Average 2010 (copyright)."]
["Internet release date: 9/30/2011"]

{"sheet":"Notes","index":15,"n_rows":109,"n_cols":4,"rows_kept":109,"cut":false,"hidden":true,"merged":[]}
["ALASKA","Alaska has most inmigrants from the west coast states of Washington, California,Oregon & Texas while majority of the outmigrants of Alaska move to much warmer states like California, Texas & Florida","ALASKA","The longest coastline in the U.S., 6,640 miles, greater than that of all other states combined"]
["ALABAMA","Both of Alabama's inmigrants and outmigrants move to the states surrounding them such as Florida, Georgia & Tennesse","ALABAMA","Alabama workers built the first rocket to put humans on the moon"]
["ARKANSAS","Both of Arkansas' inmigrants and outmigrants move to the states surrounding them such as Texas, Missouri & Oklahoma","ARKANSAS","Arkansas has the only active diamond mine in the U.S."]
["ARIZONA","Arizona has the most inmigrants from California, Texas and colder States like Colorado & Illinois. Outmigrants move mostly to California and Texas","ARIZONA","Arizona is the home of the Grand Canyon and has the most telescopes in the World"]
["CALIFORNIA","Most of Inmigrants & Outmigrants come from or go to Texas, Arizona, Washington & Nevada","CALIFORNIA","It is estimated there are approximately 500,000 detectable seismic tremors in California annually"]
["COLORADO","Inmigrants & Outmigrants are mostly from and to Texas, California & Arizona","COLORADO","The world's largest silver nugget (1,840 pounds) found in 1894 near Aspen"]
["CONNECTICUT","Inmigrants are mostly from New York while Outmigrants go to New York, Massachusetts and Florida","CONNECTICUT","The first American cookbook, published in Connecticut in 1796: American Cookery by Amelia Simmons"]
["DISTRICT OF COLUMBIA","Most inmigrants are outmigrants are from and to the close states of Maryland and Virginia","DISTRICT OF COLUMBIA","Washington, D.C., formally the District of Columbia and commonly referred to as Washington, \"the District\", or simply D.C., is the capital of the United States"]
["DELAWARE","Outmigrants are mostly to Maryland & Pennsylvania but they get inmigrants from more states close to them like New Jersey & New York","DELAWARE","The first log cabins in North America, were built in Delaware by Swedish immigrants in 1683\n"]
["FLORIDA","Florida gets most of its inmigrants from New York and Georgia while people move to Georgia, Texas, New York & North Carolina","FLORIDA","U.S. spacecraft launchings happen from Cape Canaveral, Florida formerly Cape Kennedy\n"]
["GEORGIA","People move in and out of Georgia predominantly to Florida","GEORGIA","The Girl Scouts, founded in Savannah, Georgia by Juliette Gordon Low in 1912\n"]
["HAWAII","People move in and out of Hawaii predominantly to California due to it's proximity","HAWAII","The only royal palace in the U.S. is in Hawaii\n"]
["IOWA","Inmigrants to Iowa are mostly from Illinois but people move out to Illnois, Minnesota & Nebraska all surrounding states","IOWA","The shortest and steepest railroad in the U.S., Dubuque, Iowa: 60° incline, 296 feet"]
["IDAHO","Inmigrants to Idaho are from California & Washington while people move out mostly to Washington","IDAHO","The longest main street in America, 33 miles, in Island Park\n"]
["ILLINOIS","The movement from Illinois is mostly in and out of the surrounding states such as Indiana, Wisconsin & Missouri","ILLINOIS","The tallest building in the U.S., Sears Tower, in Chicago"]
["INDIANA","Most inmigrants and outmigrants are from and to Illinois","INDIANA","The famous car race: the Indy 500 happens in Indiana"]
["KANSAS","People move between Kansas and Missouri. There are also outmigrants to Texas","KANSAS","Helium discovered in 1905 at the University of Kansas"]
["KENTUCKY","Outmigrants are predominantly moving to Ohio, Indiana and Tennesse while inmigrants come from the same states and Florida","KENTUCKY","The largest underground cave in the world: 300 miles long, the Mammoth-Flint Cave system"]
["LOUISIANA","Louisiana's Inmigrants and outmigrants are dominated by people from and to Texas","LOUISIANA","Louisiana has the most crayfish: 98% of the world's crayfish"]
["MASSACHUSETTS","While Inmigrants are mostly from California, New York, Florida, it has people migrating in and out between the neighbouring states as well","MASSACHUSETTS","Boston built the first subway system in the United States in 1897"]
["MARYLAND","Virgina, DC and Pennsylvania dominate the inmigrants and outmigrant States for Maryland","MARYLAND","The first umbrella factory in the U.S., 1928, Baltimore"]
["MAINE","Most of Maine's inmigrants and outmigrants are from Florida and the neighboring States","MAINE","The most easterly point in the U.S., West Quoddy Head"]
["MICHIGAN","A lot of people migrate in and out of Michigan to Florida. Inmigrants come mostly from Ohio, Indiana, Illinois and Texas","MICHIGAN","The Cereal Bowl of America, Battle Creek, produces most cereal in the U.S."]
["MINNESOTA","Most migration happens between Wisconsin, Minnesota and North Dakota","MINNESOTA","The oldest rock in the world, 3.8 billion years old, found in Minnesota River valley"]
["MISSOURI","Most inmigrants and outmigrants are from and to Kansans it's neighboring State. Illinois and Texas also get inmigrants and outmigrants from Missouri","MISSOURI","Mark Twain and some of his characters, such as Tom Sawyer and Huckleberry Finn were from Missouri"]
["MISSISSIPPI","Tennsesse, Louisiana, Alabama, Texas and Florida are the States contributing mostly to the inmigration and outmigration of Missisipi","MISSISSIPPI","Coca-Cola, first bottled in 1894 in Vicksburg"]
["MONTANA","While most inmigrants are from California & Washington people move out to all the western states including Oregon, Idaho etc","MONTANA","Home of the Grasshopper Glacier, named for the grasshoppers that can still be seen frozen in ice"]
["NORTH CAROLINA","People from North Carolina move in and out of surrounding states such as South Carolina, Virginia, Florida and Georgia","NORTH CAROLINA","Virginia Dare, the first English child born in America, on Roanoake Island in 1587"]
["NORTH DAKOTA","Most migration happens from and to Minnesota","NORTH DAKOTA","The geographic center of North America, in Pierce County, near Balta"]
["NEBRASKA","People move in from Iowa, California & Texas while People move out to Iowa, Texas, Colorado and Missouri","NEBRASKA","The only roller skating museum in the world, in Lincoln"]
["NEW HAMPSHIRE","New Hampshire's inmigrants and outmigrants are mostly from and to Massachusetts","NEW HAMPSHIRE","Artificial rain, first used near Concord in 1947 to fight a forest fire"]
["NEW JERSEY","Top 3 states from which people move in and out to are Pennsylvania, New York and Florida","NEW JERSEY","The world's first drive-in movie theater, built in 1933 near Camden"]
["NEW MEXICO","New Mexico's inmigration and outmigration is mostly to it's neighbor Texas","NEW MEXICO","Each October Albuquerque hosts the world's largest international hot air balloon fiesta"]
["NEVADA","Nevada's inmigration and outmigration is mostly to it's neighbor California","NEVADA","There is 1 slot machine for every 10 residents of Nevada"]
["NEW YORK","New York has inmigrants and outmigrants from the States such as Pennsylvania, New Jersey, California and Florida","NEW YORK","The first presidential inauguration: George Washington took the oath of office in New York City on April 30, 1789."]
["OHIO","Ohio's inmigrants and outmigrants are from a number of states including Florida, Pennsylvania, Michigan, Kentucky, Indiana etc","OHIO","The first electric traffic lights, invented and installed in Cleveland in 1914"]
["OKLAHOMA","Oklahoma's inmigration and outmigration is mostly to it's neighbor Texas","OKLAHOMA","The first parking meter, installed in Oklahoma City in 1935"]
["OREGON","People move in and out of oregon to the two neighbors - Washington and California","OREGON","The world's smallest park, totaling 452 inches, created in Portland on St. Patrick's Day for leprechauns and snail races"]
["PENNSYLVANIA","People move in and out of Pennsylvania to the two neighbors - New York and New Jersey. Outmigrants also move to Florida","PENNSYLVANIA","The first magazine in America: the American Magazine, published in Philadelphia for 3 months in 1741"]
["PUERTO RICO","Puerto Rico mostly gets people from Florida, New York and Pennsylvania and people move to the same states","PUERTO RICO","Puerto Rico consists of the main island of Puerto Rico and various smaller islands, including Vieques, Culebra, Mona, Desecheo, and Caja de Muertos"]
["RHODE ISLAND","People move in and out of Rhode Island to it's neighbor Massachusetts","RHODE ISLAND","Rhode Island Red chickens, first bred in 1854; the start of poultry as a major American industry"]
["SOUTH CAROLINA","Movement from South Carolina is mostly to it's neighbors North Carolina, Georgia and Florida","SOUTH CAROLINA","The first tea farm in the U.S., created in 1890 near Summerville"]
["SOUTH DAKOTA","Movement from South Dakota is mostly to it's neighbors Minnesota, Iowa and Nebraska","SOUTH DAKOTA","The world's largest natural, indoor warmwater pool, Evans' Plunge in Hot Springs"]
["TENNESSEE","Inmigrants are dominated by people from Georgia, Florida and Kentucky. Outmigrants move to the same states and Texas","TENNESSEE","Graceland, the estate and gravesite of Elvis Presley"]
["TEXAS","Inmigrants are mostly from California. Outmigrants move to closer states such as Oklahoma, Florida and Lousiana","TEXAS","NASA, in Houston, headquarters for all piloted U.S. space projects is in Texas"]
["UTAH","Inmigrants are mostly from California. Outmigrants move to closer states such as Idaho, Arizona and California","UTAH","Rainbow Bridge, the largest natural stone bridge in the world, 290 feet high, 275 feet across is in Utah"]
["VIRGINIA","North Carolina, Maryland and Florida dominate both inmigrants and outmigrants","VIRGINIA","The only full-length statue of George Washington, placed in capitol in 1796"]
["VERMONT","New York, Massachusetts, New Hampshire provide Inmigrants while people move out to these states and Florida","VERMONT","The largest production of maple syrup in the U.S."]
["WASHINGTON","The movement from Washington is mostly from and to the west coast states of Washington and Oregon","WASHINGTON","Home of Lunar Rover, the vehicle used by astronauts on the moon; Boeing, in Seattle, makes aircraft and spacecraft"]
["WISCONSIN","Illinois and Minnesota are the major contributors to outmigrants and inmigrants of Wisconsin","WISCONSIN","The typewriter, invented in Milwaukee in 1867"]
["WEST VIRGINIA","People move to Ohio, Virgina and Pennsylvania while people move in from the same states and Maryland","WEST VIRGINIA","Marbles; most of the country's glass marbles made around Parkersburg"]
["WYOMING","Most inmigrants and outmigrants of Wyoming are from and to Colorado","WYOMING","Wyoming was the first state to give women the right to vote. Yellowstone - the first official National Park is here"]
[]
[]
[]
[]
[]
[]
[]
[]
[]
[]
[]
[]
[]
[]
[]
[]
[]
[]
[]
[]
[]
[]
[]
[]
[]
[]
[]
[]
[]
[]
[]
[]
[]
[]
[]
[]
[]
[]
[]
[]
[]
[]
[]
[]
[]
[]
[]
[]
[]
[]
[]
[]
[]
[]
["http://www.50states.com/facts/#.U1PV4_mSwlL"]
["http://www.factmonster.com/ipka/A0770175.html"]
["Wikipedia"]